{"text_format":"1","workbook":"xlsx","n_sheets":45,"sheets":["CoverSheet","Version history","Coversheet Import-Export","Admin Sheet","Translations","Impact Outcome Indicators_1A","ImpactOutcome_Import-Export","Disaggregation_1A","Disagg.1A_import-export","Coverage Indicators_1B","Coverage Indicator_Import-Expor","Disaggregation_1B","Disaggregation1B_Import-Export","WPTM_1C","WPTM_1C  Import-Export","PR Cash Reconciliation_2A,B,C,D","Commitments_Obligations","PR Cash Recon Import-Export","SR_Cash Reconciliation_2E","SR Cash Recon Import Export","Budget Variance_2F","Budget Variance Import-Export","Procurement_3","Grant Management_4","Grant Management_4 imp-exp","MitigationAction","RiskData","PR-LFA Evaluation_5","LFA_Findings&Recommendations_6","LFA_Findings&Recom export","PR Expenditure_7A","PR Expenditure_7A import-export","LFA Expenditure_7B","LFA Expenditure_7B imp-exp","Cash Forecast_8A","Cash Forecast_8A import-export","Request and Recommendation_8B","Reference Records","PR Authorization_9A","LFA Authorization_9B","Financial Triggers_10","Free Sheet 1","Free Sheet 2","Free Sheet 3","apttusmetadata"],"not_rendered":{"charts":0,"images":5,"macros":0,"external_links":2,"defined_names":781,"comments":0,"pivot_tables":0},"unopened":[],"bounds":{"document_bytes":16777216,"sheet_cells":100000,"rows_first":2000,"rows_last":500,"rows_between":2000,"halvings":0,"cell_chars":16384,"cell_head_chars":4096},"cells_cut":0,"cells_raw":0,"read":"whole","date_system":"1900"}

{"sheet":"CoverSheet","index":0,"n_rows":16,"n_cols":13,"rows_kept":16,"cut":false,"hidden":false,"merged":[[15,5,15,7],[7,5,7,8],[13,5,13,9],[14,0,14,2],[11,0,11,2],[9,0,9,2],[10,0,10,2],[10,5,10,11],[12,0,12,2],[13,0,13,2],[11,5,11,7],[14,5,14,7],[1,0,2,14],[0,0,0,11],[0,12,0,14],[7,0,7,2],[8,0,8,2],[8,5,8,7]]}
[{"$f":"VLOOKUP(Translations!B3,Translations!B3:H508,4,0)","v":"Progress Report with Disbursement Request"},null,null,null,null,null,null,null,null,null,null,null,"Version 3 - 20July 2018"]
[{"$f":"VLOOKUP(Translations!B4,Translations!B3:H508,4,0)","v":"Cover Sheet: Instructions\n\n• This template is compatible with MS Excel 2013 and later versions. Some drop-downs and formulae may not work with earlier versions and specifically MS Excel 2010. Hence, Principal Recipients with earlier MS versions are requested to upgrade to MS Excel 2013 to have the full functionalities of this tool.\n\n• Principal Recipients are first required to confirm the information on the Cover Sheet with the General Grant Information listed in the boxes below. They can refer to their Grant Face Sheet/Grant Confirmation to confirm part of this information.\n\n• Principal Recipients are required to confirm the information related to the periods covered by the progress update and disbursement request."}]
[]
[]
[null,null,"Language"]
[null,null,"English"]
[]
["Country:",null,null,{"$f":"IFERROR(VLOOKUP(A8,'Coversheet Import-Export'!$A$5:$B$12,2,0),\"\")","v":"Burundi"},null,{"$f":"VLOOKUP(Translations!B14,Translations!B3:H508,4,0)","v":"REPORTING PERIOD FOR PROGRAMMATIC REPORTING"}]
["(Disease) Component",null,null,{"$f":"IFERROR(VLOOKUP(A9,'Coversheet Import-Export'!$A$5:$B$12,2,0),\"\")","v":"Malaria"},null,{"$f":"VLOOKUP(Translations!B15,Translations!B3:H508,4,0)","v":"Period of Programmatic Reporting"},null,null,{"$f":"VLOOKUP(Translations!B16,Translations!B3:H508,4,0)","v":"Beginning Date:"},{"$f":"IFERROR(_7b228704_0b7d_4fb6_ad6d_ec11fd6ca43e,\"\")","v":"2018-01-01"},{"$f":"VLOOKUP(Translations!B17,Translations!B3:H508,4,0)","v":"End Date:"},{"$f":"IFERROR(_bbfbd99a_1ffd_42e5_b449_9d7101abff3f,\"\")","v":"2018-06-30"}]
["Grant Name:",null,null,{"$f":"IFERROR(VLOOKUP(A10,'Coversheet Import-Export'!$A$5:$B$12,2,0),\"\")","v":"BDI-M-UNDP"}]
["Principal Recipient:",null,null,{"$f":"IFERROR(VLOOKUP(A11,'Coversheet Import-Export'!$A$5:$B$12,2,0),\"\")","v":"United Nations Development Programme"},null,"Period of Financial Reporting"]
["LFA Name:",null,null,null,null,{"$f":"VLOOKUP(Translations!B19,Translations!B3:H508,4,0)","v":"Period of Financial Reporting"},null,null,{"$f":"VLOOKUP(Translations!B16,Translations!B3:H508,4,0)","v":"Beginning Date:"},{"$f":"IF(_6ecf7e83_bf38_48ce_9f75_06e710f915b2=\"\",\"n/a\",_6ecf7e83_bf38_48ce_9f75_06e710f915b2)","v":"2018-01-01"},{"$f":"VLOOKUP(Translations!B17,Translations!B3:H508,4,0)","v":"End Date:"},{"$f":"IF(_bbfbd99a_1ffd_42e5_b449_9d7101abff3f=\"\",\"n/a\",_bbfbd99a_1ffd_42e5_b449_9d7101abff3f)","v":"2018-06-30"}]
["Program Start Date:",null,null,{"$f":"IFERROR(VLOOKUP(A13,'Coversheet Import-Export'!$A$5:$B$12,2,0),\"\")","v":"2018-01-01"}]
["Grant Currency:",null,null,{"$f":"IFERROR(VLOOKUP(A14,'Coversheet Import-Export'!$A$5:$B$12,2,0),\"\")","v":"USD"},null,{"$f":"VLOOKUP(Translations!B22,Translations!B3:H508,4,0)","v":"DISBURSEMENT REQUEST "}]
["Local Currency:",null,null,{"$f":"IFERROR(VLOOKUP(A15,'Coversheet Import-Export'!$A$5:$B$12,2,0),\"\")","v":"BIF"},null,{"$f":"VLOOKUP(Translations!B23,Translations!B3:H508,4,0)","v":"Disbursement Request Execution Period"},null,null,{"$f":"VLOOKUP(Translations!B16,Translations!B3:H508,4,0)","v":"Beginning Date:"},{"$f":"IF(_43bc67ab_a2dd_4a32_a150_b7acc6e5ffaf=\"\",\"n/a\",_43bc67ab_a2dd_4a32_a150_b7acc6e5ffaf)","v":"2018-07-01"},{"$f":"VLOOKUP(Translations!B17,Translations!B3:H508,4,0)","v":"End Date:"},{"$f":"IF(_44d37288_5e43_48e6_a9cc_80a3f02fc40f=\"\",\"n/a\",_44d37288_5e43_48e6_a9cc_80a3f02fc40f)","v":"2018-12-31"}]
[null,null,null,null,null,{"$f":"VLOOKUP(Translations!B26,Translations!B3:H508,4,0)","v":"Disbursement Request Buffer Period"},null,null,{"$f":"VLOOKUP(Translations!B16,Translations!B3:H508,4,0)","v":"Beginning Date:"},{"$f":"IF(_78bfad15_335d_4773_9ea3_22dbf845ec19=\"\",\"n/a\",_78bfad15_335d_4773_9ea3_22dbf845ec19)","v":"2019-01-01"},{"$f":"VLOOKUP(Translations!B17,Translations!B3:H508,4,0)","v":"End Date:"},{"$f":"IF(_d0e80b24_abb1_49ca_98e8_e4a4f83d98c3=\"\",\"n/a\",_d0e80b24_abb1_49ca_98e8_e4a4f83d98c3)","v":"2019-03-31"}]

{"sheet":"Version history","index":1,"n_rows":4,"n_cols":5,"rows_kept":4,"cut":false,"hidden":true,"merged":[]}
["Version number","Date","Changes made","Made by","At request of"]
[1,"2018-07-16","• First version of PR Reporting Template\n","Tanaka Ndowa","Tanaka Ndowa"]
[2,"2018-07-16","• updated excel mapping of financial start date\n• updated mapping of coverage indicator country column\n• corrected formulas for PR expenditure and LFA expenditure for cost input","Tanaka Ndowa","Tanaka Ndowa"]
[3,"2018-07-20","• Corrected PR expenditure Implementer formula for total cumulative\n• Made disaggregation for impact,outcome, coverage filter out blank disaggregations\n• Added Country field for impact, outcome, coverage and their disaggregations\n• Correct buffer start date on the Cash Forecast page","Tanaka Ndowa","Tanaka Ndowa"]

{"sheet":"Coversheet Import-Export","index":2,"n_rows":32,"n_cols":11,"rows_kept":32,"cut":false,"hidden":true,"merged":[]}
[null,null,null,null,null,null,"IRT_Mitigating_actions_status","Year_of_result","Source","Verification_Method","WPTM_Progress"]
[null,null,null,null,null,null,"In Progress",2002,"HMIS","Not Verified","Not Started"]
["COVER SHEET",null,null,null,null,null,"Delayed",2003,"Patient records","Desk Review","Started"]
[null,null,null,null,null,null,"Not Started",2004,"Training records","Other","Advancing"]
["Country:","Burundi",null,null,null,null,"Met",2005,"MICS (Multiple Indicator Cluster Survey)",null,"Completed"]
["(Disease) Component","Malaria",null,null,null,null,null,2006,"DHS/DHS+ (Demographic and Health Survey)"]
["Grant Name:","BDI-M-UNDP",null,null,null,null,null,2007,"AIS (AIDS Indicator Survey)"]
["Principal Recipient:","United Nations Development Programme",null,null,null,null,null,2008,"BSS (Behavioral Surveillance Survey)"]
["LFA Name:",null,null,null,null,null,null,2009,"Health Facility survey"]
["Program Start Date:","2018-01-01",null,null,null,null,null,2010,"SAMS (Service Availability Mapping Survey)"]
["Grant Currency:","USD",null,null,null,null,null,2011,"Households survey"]
["Local Currency:","BIF",null,null,null,null,null,2012,"Specific surveys and research (specify)"]
[null,null,null,null,null,null,null,2013,"Reports (specify)"]
["Reporting Period Start Date","2018-01-01",null,null,null,null,null,2014,"Vital and disease-specific registry"]
["Reporting Period End Date","2018-06-30",null,null,null,null,null,2015,"Operational Research"]
["Financial Period Start Date","2018-01-01",null,null,null,null,null,2016,"Health Provider survey"]
["Disbursement Execution Start Date","2018-07-01",null,null,null,null,null,2017,"National Health Account"]
["Disbursement Execution End Date","2018-12-31",null,null,null,null,null,2018,"Administrative records"]
["Disbursement Buffer Start Date","2019-01-01",null,null,null,null,null,2019,"R&R TB system, quarterly reports"]
["Disbursement Buffer End Date","2019-03-31",null,null,null,null,null,2020,"R&R TB system, yearly management report "]
[null,null,null,null,null,null,null,2021,"TB prevalence survey"]
[null,null,null,null,null,null,null,2022,"TB patient register"]
["PR Import Date",{"$f":"IF('PR Authorization_9A'!F17=\"\",\"\",'PR Authorization_9A'!F17)","v":"2018-08-22"},null,null,null,null,null,2023,"TB laboratory register"]
["LFA Import date",{"$f":"IF('LFA Authorization_9B'!D21=\"\",\"\",'LFA Authorization_9B'!D21)","v":""},null,null,null,null,null,2024,"TB treatment card"]
[null,null,null,null,null,null,null,2025,"Specify- Reports, Surveys, Questionnaires etc."]
["Being Uploaded from PR Template",{"$f":"IFERROR(\"TRUE\",\"FALSE\")","v":"TRUE"},null,null,null,null,null,null,"MIS (Malaria Indicator Survey)"]
[null,null,null,null,null,null,null,null,"Situation Analysis"]
[null,null,null,null,null,null,null,null,"Key informant survey"]
[null,null,null,null,null,null,null,null,"Surveillance systems"]
[null,null,null,null,null,null,null,null,"Modelled"]
[null,null,null,null,null,null,null,null,"Other survey, specify"]
[null,null,null,null,null,null,null,null,"IBBS"]

{"sheet":"Admin Sheet","index":3,"n_rows":55,"n_cols":4,"rows_kept":55,"cut":false,"hidden":true,"merged":[]}
["Progress Update",true,"Grant Name","BDI-M-UNDP"]
["Disbursement Request",false,"Reporting Period End Date","2018-06-30"]
["Last PR of Implementation Period",false,"Version",6]
["Tab Name","Opt-In/Opt-out Progress Report","Opt-In/Opt-out Disbursement Request","Opt-In/Opt-Out Last Progress Rep. of IP"]
["[Tab Name]","[Opt-In/Opt-out Progress Report]","[Opt-In/Opt-out Disbursement Request]","[Opt-In/Opt-Out Last Progress Rep. of IP]"]
["Impact Outcome Indicators_1A",true,true,true]
["Coverage Indicators_1B",true,true,true]
["LFA_Findings&Recommendations_6",true,true,true]
["Disaggregation_1A",true,true,true]
["Grant Management_4",true,true,true]
["PR Cash Reconciliation_2A,B,C,D",false,true,true]
["Semi-Annual Cash Forecast_8AA",false,false,false]
["LFA Expenditure_7B",true,true,true]
["Procurement_3",true,true,true]
["Request and Recommendation_8B",false,true,false]
["Budget Variance_2F",false,true,true]
["PR Authorization_9A",true,true,true]
["PR-LFA Evaluation_5",true,true,true]
["PR Expenditure_7A",true,true,true]
["WPTM_1C",true,true,true]
["SR_Cash Reconciliation_2E",false,true,true]
["Annual Cash Forecast_8A",false,true,false]
["Financial Triggers_10",false,false,false]
["Disaggregation_1B",true,true,true]
["LFA Authorization_9B",true,true,true]
[]
[]
[]
[]
[]
[]
[]
[]
[]
["Sheet LFA_Findings&Recommendations_6"]
["Record Type Id"]
["Record Type ID","01236000000OMQ7AAO"]
[]
[]
["IP Id"]
["Record ID","a1K36000006Uv7VEAS"]
[]
[]
["Record ID","a1Y36000002HrxFEAS"]
[]
[]
[]
[]
[]
["Fetching RP Dates to filter out Grant Requirements"]
["Reporting Period Start Date","2018-01-01"]
["Reporting Period End Date","2018-06-30"]
[]
[]
["Sheet Name",{"$f":"CONCATENATE(CoverSheet!D7,\"_Progress Report_Imported_\",TEXT(TODAY(),\"dd-mmm-yy\"))","v":"_Progress Report_Imported_dd-oct-yy"}]

{"sheet":"Translations","index":4,"n_rows":587,"n_cols":8,"rows_kept":587,"cut":false,"hidden":true,"merged":[]}
["Translations",null,null,{"$f":"IF(Language=\"English\",0,IF(Language=\"French\",1,IF(Language=\"Spanish\",2)))","v":0}]
["Tab name",null,"Key",null,null,"English Value ","French Value ","Spanish Value "]
["Cover Sheet",1,"Cover Sheet 1",{"$f":"\"=Vlookup(\"\"\"&B3&\"\"\",Translations!F3:H508,1,0)\"","v":"=Vlookup(\"1\",Translations!F3:H508,1,0)"},{"$f":"IF(LangOffset=0,F3,IF(LangOffset=1,G3,IF(LangOffset=2,H3)))","v":"Progress Report with Disbursement Request"},"Progress Report with Disbursement Request","Rapport périodique sur les résultats actuels et demande de décaissement","Informe de progreso y solicitud de desembolso"]
["Cover Sheet",2,"Cover Sheet 2",{"$f":"\"=Vlookup(\"\"\"&B4&\"\"\",Translations!F3:H508,1,0)\"","v":"=Vlookup(\"2\",Translations!F3:H508,1,0)"},"Cover Sheet: Instructions\n\n• This template is compatible with MS Excel 2013 and later versions. Some drop-downs and formulae may not work with earlier versions and specifically MS Excel 2010. Hence, Principal Recipients with earlier MS versions are requested to upgrade to MS Excel 2013 to have the full functionalities of this tool.\n\n• Principal Recipients are first required to confirm the information on the Cover Sheet with the General Grant Information listed in the boxes below. They can refer to their Grant Face Sheet/Grant Confirmation to confirm part of this information.\n\n• Principal Recipients are required to confirm the information related to the periods covered by the progress update and disbursement request.","Cover Sheet: Instructions\n\n• This template is compatible with MS Excel 2013 and later versions. Some drop-downs and formulae may not work with earlier versions and specifically MS Excel 2010. Hence, Principal Recipients with earlier MS versions are requested to upgrade to MS Excel 2013 to have the full functionalities of this tool.\n\n• Principal Recipients are first required to confirm the information on the Cover Sheet with the General Grant Information listed in the boxes below. They can refer to their Grant Face Sheet/Grant Confirmation to confirm part of this information.\n\n• Principal Recipients are required to confirm the information related to the periods covered by the progress update and disbursement request.","Page de garde : Instructions\n\n•Ce modèle est compatible avec MS Excel 2013 et les versions ultérieures. Certaines listes déroulantes et formules ne fonctionnent pas avec les versions antérieures et spécifiquement avec MS Excel 2010. De ce fait, les récipiendaires principaux qui possèdent des versions antérieures de MS sont priés de se doter de MS Excel 2013 pour avoir les fonctionnalités du modèle.\n\n• Les bénéficiaires principaux doivent d'abord confirmer les informations figurant sur la page de garde, y compris les renseignements généraux sur la subvention énumérés dans les cases ci-dessous. Les bénéficiaires principaux sont encourages de se reporter à la feuille de présentation de la subvention/Confirmation de la subvention pour confirmer une partie de ces renseignements.\n\n• Les bénéficiaires principaux sont tenus de confirmer les informations relatives aux périodes couvertes par le rapport sur les résultats actuels et la demande de décaissement.","Portada: Instrucciones\n\n• El formulario es compatible con MS Excel 2013 y versiones posteriores. Algunos menús desplegables y fórmulas pueden no funcionar con versiones anteriores y, específicamente, MS Excel 2010. Por lo tanto , se solicita a los Receptores principlas con versiones anteriores de actualizarlas a MS Excel 2013 para poder tener todas las funcionalidades de la plantilla.\n\n• Se solicita a los Receptores principales de primero confirmar la información de la hoja de portada (“CoverSheet”) con la Información general sobre la subvención listada en las tablas abajo. Pueden referirse a sus acuerdos de subvención (“Grant Face Sheet”/”Grant Confirmation”) para confirmar una parte de esta información.\n\n• Se requiere que los Receptores principales confirmen la información relacionada a los periodos cubiertos por el informe de progreso y la solicitud de desembolso."]
["Cover Sheet",3,"Cover Sheet 3","=Vlookup(\"3\",Translations!F3:H508,1,0)","GENERAL GRANT INFORMATION","GENERAL GRANT INFORMATION","RENSEIGNEMENTS GÉNÉRAUX SUR LA SUBVENTION","INFORMACIÓN GENERAL SOBRE LA SUBVENCIÓN"]
["Cover Sheet",4,"Cover Sheet 4","=Vlookup(\"4\",Translations!F3:H508,1,0)","Country:","Country:","Pays :","País:"]
["Cover Sheet",5,"Cover Sheet 5","=Vlookup(\"5\",Translations!F3:H508,1,0)","(Disease) Component","(Disease) Component","Composante (maladie)","Componente (enfermedad):"]
["Cover Sheet",6,"Cover Sheet 6","=Vlookup(\"6\",Translations!F3:H508,1,0)","Grant Name/Number:","Grant Name/Number:","Nom/numéro de la subvention :","Nombre o número de la subvención:"]
["Cover Sheet",7,"Cover Sheet 7","=Vlookup(\"7\",Translations!F3:H508,1,0)","Principal Recipient:","Principal Recipient:","Récipiendaire principal :","Receptor principal:"]
["Cover Sheet",8,"Cover Sheet 8","=Vlookup(\"8\",Translations!F3:H508,1,0)","LFA Name:","LFA Name:","Nom de l'agent local du Fonds :","Nombre del ALF:"]
["Cover Sheet",9,"Cover Sheet 9","=Vlookup(\"9\",Translations!F3:H508,1,0)","Program Start Date:","Program Start Date:","Date de début du programme :","Fecha de inicio del programa:"]
["Cover Sheet",10,"Cover Sheet 10","=Vlookup(\"10\",Translations!F3:H508,1,0)","Grant Currency:","Grant Currency:","Monnaie Subvention :","Moneda de la subvención:"]
["Cover Sheet",11,"Cover Sheet 11","=Vlookup(\"11\",Translations!F3:H508,1,0)","Local Currency:","Local Currency:","Monnaie Locale:","Moneda local:"]
["Cover Sheet",12,"Cover Sheet 12","=Vlookup(\"12\",Translations!F3:H508,1,0)","REPORTING PERIOD FOR PROGRAMMATIC REPORTING","REPORTING PERIOD FOR PROGRAMMATIC REPORTING","PÉRIODE COUVERTE PAR LES RÉSULTATS ACTUELS PROGRAMMATIQUES","PERIODO DE INFORME DE ACTUALIZACIÓN DE AVANCES PROGRAMÁTICOS"]
["Cover Sheet",13,"Cover Sheet 13","=Vlookup(\"13\",Translations!F3:H508,1,0)","Period of Programmatic Reporting","Period of Programmatic Reporting","Période couverte par le rapport sur les résultats actuels :","Periodo de avances programáticos:"]
["Cover Sheet",14,"Cover Sheet 14","=Vlookup(\"14\",Translations!F3:H508,1,0)","Beginning Date:","Beginning Date:","Date de début :","Fecha de inicio:"]
["Cover Sheet",15,"Cover Sheet 15","=Vlookup(\"15\",Translations!F3:H508,1,0)","End Date:","End Date:","Date de fin :","Fecha final:"]
["Cover Sheet",16,"Cover Sheet 16","=Vlookup(\"16\",Translations!F3:H508,1,0)","REPORTING PERIOD FOR FINANCIAL REPORTING","REPORTING PERIOD FOR FINANCIAL REPORTING","PÉRIODE COUVERTE PAR LES RÉSULTATS ACTUELS FINANCIERS","PERIODO DE INFORME DE ACTUALIZACIÓN DE AVANCES FINANCIEROS"]
["Cover Sheet",17,"Cover Sheet 17","=Vlookup(\"17\",Translations!F3:H508,1,0)","Period of Financial Reporting","Period of Financial Reporting","Période couverte par le rapport sur les information financière","Periodo de avances financieros"]
["Cover Sheet",18,"Cover Sheet 18","=Vlookup(\"18\",Translations!F3:H508,1,0)","Beginning Date:","Beginning Date:","Date de début :","Fecha de inicio:"]
["Cover Sheet",19,"Cover Sheet 19","=Vlookup(\"19\",Translations!F3:H508,1,0)","End Date:","End Date:","Date de fin :","Fecha final:"]
["Cover Sheet",20,"Cover Sheet 20","=Vlookup(\"20\",Translations!F3:H508,1,0)","DISBURSEMENT REQUEST ","DISBURSEMENT REQUEST ","DEMANDE DE DÉCAISSEMENT ","SOLICITUD DE DESEMBOLSO"]
["Cover Sheet",21,"Cover Sheet 21","=Vlookup(\"21\",Translations!F3:H508,1,0)","Disbursement Request Execution Period","Disbursement Request Execution Period","Demande de décaissement  - période de prévision:","Solicitud de desembolso – Periodo de ejecución:"]
["Cover Sheet",22,"Cover Sheet 22","=Vlookup(\"22\",Translations!F3:H508,1,0)","Beginning Date:","Beginning Date:","Date de début :","Fecha de inicio:"]
["Cover Sheet",23,"Cover Sheet 23","=Vlookup(\"23\",Translations!F3:H508,1,0)","End Date:","End Date:","Date de fin :","Fecha final:"]
["Cover Sheet",24,"Cover Sheet 24","=Vlookup(\"24\",Translations!F3:H508,1,0)","Disbursement Request Buffer Period","Disbursement Request Buffer Period","Demande de décaissement  - Période additionnelle convenue:","Solicitud de desembolso – Periodo de reserva (colchón) :"]
["Cover Sheet",25,"Cover Sheet 25","=Vlookup(\"25\",Translations!F3:H508,1,0)","Beginning Date:","Beginning Date:","Date de début :","Fecha de inicio:"]
["Cover Sheet",26,"Cover Sheet 26","=Vlookup(\"26\",Translations!F3:H508,1,0)","End Date:","End Date:","Date de fin :","Fecha final:"]
[null,27,null,"=Vlookup(\"27\",Translations!F3:H508,1,0)",0]
["Impact Outcome Indicators_1A",28,null,"=Vlookup(\"28\",Translations!F3:H508,1,0)","Progress Report with Disbursement Request","Progress Report with Disbursement Request","Rapport périodique sur les résultats actuels et demande de décaissement","Informe de progreso y solicitud de desembolso"]
["Impact Outcome Indicators_1A",29,null,"=Vlookup(\"29\",Translations!F3:H508,1,0)","Section 1:  Programmatic Information","Section 1:  Programmatic Information","Section 1 : Information programmatique","Sección 1: Información programática"]
["Impact Outcome Indicators_1A",30,null,"=Vlookup(\"30\",Translations!F3:H508,1,0)","Note: The table contains those Impact/Outcome indicators that are (1) due for reporting in the current reporting period and (2) those reporting on which is overdue from the previous periods.","Note: The table contains those Impact/Outcome indicators that are (1) due for reporting in the current reporting period and (2) those reporting on which is overdue from the previous periods.","Remarque : Le tableau ci-dessous doit contenir les indicateurs d'impact/d'effet 1) dont il doit être fait rapport pendant l'année en cours de la subvention et 2) ceux dont la communication de l'information est en suspens depuis les périodes précédentes.","Nota: la siguiente tabla debe incluir los indicadores de impacto y resultados (1) sobre los que debe informarse durante el año actual de la subvención y (2) aquellos que hayan quedado pendientes de periodos anteriores."]
["Impact Outcome Indicators_1A",31,null,"=Vlookup(\"31\",Translations!F3:H508,1,0)","A- Impact/Outcome Indicators","A- Impact/Outcome Indicators","A- Impact/Outcome Indicators","A- Indicadores de impacto y resultados"]
["Impact Outcome Indicators_1A",32,null,"=Vlookup(\"32\",Translations!F3:H508,1,0)","Impact / Outcome ","Impact / Outcome ","Impact / Effet ","Impacto/Resultados"]
["Impact Outcome Indicators_1A",33,null,"=Vlookup(\"33\",Translations!F3:H508,1,0)","Impact/Outcome Indicator","Impact/Outcome Indicator","Indicateurs","Indicador "]
["Impact Outcome Indicators_1A",34,null,"=Vlookup(\"34\",Translations!F3:H508,1,0)","Custom Impact/Outcome Indicator","Custom Impact/Outcome Indicator","L'indicateur personnalisé","Indicador personalizado"]
["Impact Outcome Indicators_1A",35,null,"=Vlookup(\"35\",Translations!F3:H508,1,0)","Baseline \n(if applicable)","Baseline \n(if applicable)","Référence \n(le cas échéant)","Linea de base\n(si corresponde)"]
["Impact Outcome Indicators_1A",36,null,"=Vlookup(\"36\",Translations!F3:H508,1,0)","Value","Value","Valeur","Valor"]
["Impact Outcome Indicators_1A",37,null,"=Vlookup(\"37\",Translations!F3:H508,1,0)","Year","Year","Année","Año"]
["Impact Outcome Indicators_1A",38,null,"=Vlookup(\"38\",Translations!F3:H508,1,0)","Target","Target","Cible","Meta"]
["Impact Outcome Indicators_1A",39,null,"=Vlookup(\"39\",Translations!F3:H508,1,0)","N#","N#","N#","N#"]
["Impact Outcome Indicators_1A",40,null,"=Vlookup(\"40\",Translations!F3:H508,1,0)","D#","D#","D#","D#"]
["Impact Outcome Indicators_1A",41,null,"=Vlookup(\"41\",Translations!F3:H508,1,0)","%","%","%","%"]
["Impact Outcome Indicators_1A",42,null,"=Vlookup(\"42\",Translations!F3:H508,1,0)","Year of Target","Year of Target","Year of Target","Year of Target"]
["Impact Outcome Indicators_1A",43,null,"=Vlookup(\"43\",Translations!F3:H508,1,0)","Report Due Date","Report Due Date","Échéance de rapport","Fecha de presentación del informe"]
["Impact Outcome Indicators_1A",44,null,"=Vlookup(\"44\",Translations!F3:H508,1,0)","Result","Result","Résultat","Resultado "]
["Impact Outcome Indicators_1A",45,null,"=Vlookup(\"45\",Translations!F3:H508,1,0)","N#","N#","N#","N#"]
["Impact Outcome Indicators_1A",46,null,"=Vlookup(\"46\",Translations!F3:H508,1,0)","D#","D#","D#","D#"]
["Impact Outcome Indicators_1A",47,null,"=Vlookup(\"47\",Translations!F3:H508,1,0)","%","%","%","%"]
["Impact Outcome Indicators_1A",48,null,"=Vlookup(\"48\",Translations!F3:H508,1,0)","Year of Result","Year of Result","Année du résultat","Año de resultado"]
["Impact Outcome Indicators_1A",49,null,"=Vlookup(\"49\",Translations!F3:H508,1,0)","Source","Source","Source de données des résultats","Fuente de datos de los resultados"]
["Impact Outcome Indicators_1A",50,null,"=Vlookup(\"50\",Translations!F3:H508,1,0)","Comments on results on Impact/Outcome indicators and data sources, and any other comments","Comments on results on Impact/Outcome indicators and data sources, and any other comments","Commentaires sur les résultats concernant les indicateurs d'impact/d'effet et les sources de données, ainsi que tout autre commentaire","Comentarios sobre los resultados de los indicadores de impacto y resultados, fuentes de los datos, y otros comentarios"]
["Impact Outcome Indicators_1A",51,null,"=Vlookup(\"51\",Translations!F3:H508,1,0)","Verification Method","Verification Method","Verification Method","Verification Method"]
["Impact Outcome Indicators_1A",52,null,"=Vlookup(\"52\",Translations!F3:H508,1,0)","Verified Result","Verified Result","Verified Result","Verified Result"]
["Impact Outcome Indicators_1A",53,null,"=Vlookup(\"53\",Translations!F3:H508,1,0)","N#","N#","N#","N#"]
["Impact Outcome Indicators_1A",54,null,"=Vlookup(\"54\",Translations!F3:H508,1,0)","D#","D#","D#","D#"]
["Impact Outcome Indicators_1A",55,null,"=Vlookup(\"55\",Translations!F3:H508,1,0)","%","%","%","%"]
["Impact Outcome Indicators_1A",56,null,"=Vlookup(\"56\",Translations!F3:H508,1,0)","Year of Result","Year of Result","Year of Result","Year of Result"]
["Impact Outcome Indicators_1A",57,null,"=Vlookup(\"57\",Translations!F3:H508,1,0)","Source","Source","Source","Source"]
["Impact Outcome Indicators_1A",58,null,"=Vlookup(\"58\",Translations!F3:H508,1,0)","LFA comments on (a) verified result, (b) source of information used by the PR to report results, including the status of completion of surveys and other methods to measure Impact/Outcome, as applicable,  ","LFA comments on (a) verified result, (b) source of information used by the PR to report results, including the status of completion of surveys and other methods to measure Impact/Outcome, as applicable,  ","LFA comments on (a) verified result, (b) source of information used by the PR to report results, including the status of completion of surveys and other methods to measure Impact/Outcome, as applicable,  ","LFA comments on (a) verified result, (b) source of information used by the PR to report results, including the status of completion of surveys and other methods to measure Impact/Outcome, as applicable,  "]
["Disaggregation_1A",59,null,"=Vlookup(\"59\",Translations!F3:H508,1,0)","Progress Report with Disbursement Request","Progress Report with Disbursement Request","Rapport périodique sur les résultats actuels et demande de décaissement","Informe de progreso y solicitud de desembolso"]
["Disaggregation_1A",60,null,"=Vlookup(\"60\",Translations!F3:H508,1,0)","Section 1: Programmatic Information","Section 1: Programmatic Information","Section 1 : Information programmatique","Sección 1: Información programática"]
["Disaggregation_1A",61,null,"=Vlookup(\"61\",Translations!F3:H508,1,0)","A- Impact/Outcome Indicators - Disaggregation","A- Impact/Outcome Indicators - Disaggregation","A- Indicateurs d'impact / d'effet - Ventilation","A- Indicadores de repercusión y resultados: desglose"]
["Disaggregation_1A",62,null,"=Vlookup(\"62\",Translations!F3:H508,1,0)","Impact/Outcome","Impact/Outcome","Impact/Outcome","Impacto/Resultados"]
["Disaggregation_1A",63,null,"=Vlookup(\"63\",Translations!F3:H508,1,0)","Standard Impact/Outcome Indicator","Standard Impact/Outcome Indicator","Indicateurs standard","Indicador estándar "]
["Disaggregation_1A",64,null,"=Vlookup(\"64\",Translations!F3:H508,1,0)","Disaggregation","Disaggregation","Ventilation","Desglose"]
["Disaggregation_1A",65,null,"=Vlookup(\"65\",Translations!F3:H508,1,0)",{"$f":"IF(LangOffset=0,F67,IF(LangOffset=1,G67,IF(LangOffset=2,H67)))","v":"Category"},"Category","Catégorie ","Categoría"]
["Disaggregation_1A",66,null,{"$f":"\"=Vlookup(\"\"\"&B68&\"\"\",Translations!F3:H508,1,0)\"","v":"=Vlookup(\"66\",Translations!F3:H508,1,0)"},"Value","Value","Valeur","Valor"]
["Disaggregation_1A",67,null,"=Vlookup(\"67\",Translations!F3:H508,1,0)","Baseline","Baseline","Référence","Linea de base"]
["Disaggregation_1A",68,null,"=Vlookup(\"68\",Translations!F3:H508,1,0)","Year","Year","Année","Año"]
["Disaggregation_1A",69,null,"=Vlookup(\"69\",Translations!F3:H508,1,0)","Source","Source","Source","Fuente"]
["Disaggregation_1A",70,null,"=Vlookup(\"70\",Translations!F3:H508,1,0)","Disaggregation Report Year","Disaggregation Report Year","Ventilation Année de la cible","Fecha de presentación del informe"]
["Disaggregation_1A",71,null,"=Vlookup(\"71\",Translations!F3:H508,1,0)","Result","Result","Résultats","Resultados"]
["Disaggregation_1A",72,null,"=Vlookup(\"72\",Translations!F3:H508,1,0)","Value","Value","Valeur","Valor"]
["Disaggregation_1A",73,null,"=Vlookup(\"73\",Translations!F3:H508,1,0)","Source","Source","Source","Fuente"]
["Disaggregation_1A",74,null,"=Vlookup(\"74\",Translations!F3:H508,1,0)","Comments","Comments","Commentaires","Comentarios"]
["Disaggregation_1A",75,null,"=Vlookup(\"75\",Translations!F3:H508,1,0)","Verified Result","Verified Result","Verified Result","Verified Result"]
["Disaggregation_1A",76,null,"=Vlookup(\"76\",Translations!F3:H508,1,0)","Value","Value","Value","Value"]
["Disaggregation_1A",77,null,"=Vlookup(\"77\",Translations!F3:H508,1,0)","Verified Result","Verified Result","Verified Result","Verified Result"]
["Disaggregation_1A",78,null,"=Vlookup(\"78\",Translations!F3:H508,1,0)","Value","Value","Value","Value"]
["Disaggregation_1A",79,null,"=Vlookup(\"79\",Translations!F3:H508,1,0)","Source","Source","Source","Source"]
["Disaggregation_1A",80,null,"=Vlookup(\"80\",Translations!F3:H508,1,0)","LFA Comments","LFA Comments","LFA Comments","LFA Comments"]
["Coverage Inidcators_1B",81,null,"=Vlookup(\"81\",Translations!F3:H508,1,0)","Progress Report with Disbursement Request","Progress Report with Disbursement Request","Rapport périodique sur les résultats actuels et demande de décaissement","Informe de progreso y solicitud de desembolso"]
["Coverage Inidcators_1B",82,null,"=Vlookup(\"82\",Translations!F3:H508,1,0)","Section 1:  Programmatic Information","Section 1:  Programmatic Information","Section 1 :  Information programmatique","Sección 1: Progresos programáticos"]
["Coverage Inidcators_1B",83,null,"=Vlookup(\"83\",Translations!F3:H508,1,0)","Note: All coverage indicators contained in the current Performance Framework should be listed, regardless of whether the targets have been met in previous periods.  ","Note: All coverage indicators contained in the current Performance Framework should be listed, regardless of whether the targets have been met in previous periods.  ","Remarque : Tous les indicateurs de couverture figurant dans le cadre de résultats actuel doivent être répertoriés, que les cibles aient été atteintes ou non pendant les périodes précédentes.  ","Nota: en esta sección deben enumerarse todos los indicadores de cobertura incluidos en el actual Marco de Desempeño, con independencia de que  de metas alcanzadas en periodos anteriores."]
["Coverage Inidcators_1B",84,null,"=Vlookup(\"84\",Translations!F3:H508,1,0)","B- Coverage Indicators","B- Coverage Indicators","B- Indicateurs de couverture","B- Indicadores de cobertura"]
["Coverage Inidcators_1B",85,null,"=Vlookup(\"85\",Translations!F3:H508,1,0)","Module","Module","Module","Módulo"]
["Coverage Inidcators_1B",86,null,"=Vlookup(\"86\",Translations!F3:H508,1,0)","Coverage Indicator","Coverage Indicator","Indicateurs","Indicador "]
["Coverage Inidcators_1B",87,null,"=Vlookup(\"87\",Translations!F3:H508,1,0)","Custom Coverage Indicator","Custom Coverage Indicator","L'indicateur personnalisé","Indicador personalizado"]
["Coverage Inidcators_1B",88,null,"=Vlookup(\"88\",Translations!F3:H508,1,0)","If sub-national, please specify under the \"Comments\" Column","If sub-national, please specify under the \"Comments\" Column","Si infranationale, veuillez préciser dans la colonne des commentaires","Si es subnacional, especifíquelo en el columna de comentarios"]
["Coverage Inidcators_1B",89,null,"=Vlookup(\"89\",Translations!F3:H508,1,0)","Targets cumulative?\n","Targets cumulative?\n","Cibles cumulatives ?\n","¿Metas acumulativas?\n"]
["Coverage Inidcators_1B",90,null,"=Vlookup(\"90\",Translations!F3:H508,1,0)","N#","N#","N#","N#"]
["Coverage Inidcators_1B",91,null,"=Vlookup(\"91\",Translations!F3:H508,1,0)","D#","D#","D#","D#"]
["Coverage Inidcators_1B",92,null,"=Vlookup(\"92\",Translations!F3:H508,1,0)","%","%","%","%"]
["Coverage Inidcators_1B",93,null,"=Vlookup(\"93\",Translations!F3:H508,1,0)","Source","Source","Source","Fuente"]
["Coverage Inidcators_1B",94,null,"=Vlookup(\"94\",Translations!F3:H508,1,0)","Target","Target","Cible","Meta"]
["Coverage Inidcators_1B",95,null,"=Vlookup(\"95\",Translations!F3:H508,1,0)","N#","N#","N#","N#"]
["Coverage Inidcators_1B",96,null,"=Vlookup(\"96\",Translations!F3:H508,1,0)","D#","D#","D#","D#"]
["Coverage Inidcators_1B",97,null,"=Vlookup(\"97\",Translations!F3:H508,1,0)","%","%","%","%"]
["Coverage Inidcators_1B",98,null,"=Vlookup(\"98\",Translations!F3:H508,1,0)","Result","Result","Résultats","Resultados"]
["Coverage Inidcators_1B",99,null,"=Vlookup(\"99\",Translations!F3:H508,1,0)","N#","N#","N#","N#"]
["Coverage Inidcators_1B",100,null,"=Vlookup(\"100\",Translations!F3:H508,1,0)","D#","D#","D#","D#"]
["Coverage Inidcators_1B",101,null,"=Vlookup(\"101\",Translations!F3:H508,1,0)","%","%","%","%"]
["Coverage Inidcators_1B",102,null,"=Vlookup(\"102\",Translations!F3:H508,1,0)","Source","Source","Source","Fuente"]
["Coverage Inidcators_1B",103,null,"=Vlookup(\"103\",Translations!F3:H508,1,0)","Achievement Ratio","Achievement Ratio","Taux d'accomplissement","Relación de logro"]
["Coverage Inidcators_1B",104,null,"=Vlookup(\"104\",Translations!F3:H508,1,0)","Comments:\nReasons for programmatic deviation from intended target and deviations from the related workplan activities","Comments:\nReasons for programmatic deviation from intended target and deviations from the related workplan activities","Commentaires:\nMotifs de l'écart programmatique par rapport à la cible visée et des écarts par rapport aux activités connexes du plan de travail","Causas de la variación programática con respecto a la meta fijada y de las varianzas en relación con las actividades del plan de trabajo"]
["Coverage Inidcators_1B",105,null,"=Vlookup(\"105\",Translations!F3:H508,1,0)","Verified Result","Verified Result","Verified Result","Verified Result"]
["Coverage Inidcators_1B",106,null,"=Vlookup(\"106\",Translations!F3:H508,1,0)","N#","N#","N#","N#"]
["Coverage Inidcators_1B",107,null,"=Vlookup(\"107\",Translations!F3:H508,1,0)","D#","D#","D#","D#"]
["Coverage Inidcators_1B",108,null,"=Vlookup(\"108\",Translations!F3:H508,1,0)","%","%","%","%"]
["Coverage Inidcators_1B",109,null,"=Vlookup(\"109\",Translations!F3:H508,1,0)","Source","Source","Source","Source"]
["Coverage Inidcators_1B",110,null,"=Vlookup(\"110\",Translations!F3:H508,1,0)","Achievement Ratio","Achievement Ratio","Achievement Ratio","Achievement Ratio"]
["Coverage Inidcators_1B",111,null,"=Vlookup(\"111\",Translations!F3:H508,1,0)","Verification Method","Verification Method","Verification Method","Verification Method"]
["Coverage Inidcators_1B",112,null,"=Vlookup(\"112\",Translations!F3:H508,1,0)","Comments:\nLFA analysis on progress to date and any variance between targets and results, and any other comments\n(this should not be a “Copy and Paste” of the reasons provided by the PR)","Comments:\nLFA analysis on progress to date and any variance between targets and results, and any other comments\n(this should not be a “Copy and Paste” of the reasons provided by the PR)","Comments:\nLFA analysis on progress to date and any variance between targets and results, and any other comments\n(this should not be a “Copy and Paste” of the reasons provided by the PR)","Comments:\nLFA analysis on progress to date and any variance between targets and results, and any other comments\n(this should not be a “Copy and Paste” of the reasons provided by the PR)"]
["Disaggregation_1B",113,null,"=Vlookup(\"113\",Translations!F3:H508,1,0)","Progress Report with Disbursement Request","Progress Report with Disbursement Request","Rapport périodique sur les résultats actuels et demande de décaissement","Informe de progreso y solicitud de desembolso"]
["Disaggregation_1B",114,null,"=Vlookup(\"114\",Translations!F3:H508,1,0)","Section 1:  Programmatic Information","Section 1:  Programmatic Information","Section 1 : Information programmatique","Sección 1: Información programática"]
["Disaggregation_1B",115,null,"=Vlookup(\"115\",Translations!F3:H508,1,0)","B- Coverage Indicators - Disaggregation","B- Coverage Indicators - Disaggregation","B- Indicateurs de couverture - Ventilation","B- Indicadores de cobertura: desglose"]
["Disaggregation_1B",116,null,"=Vlookup(\"116\",Translations!F3:H508,1,0)","Module","Module","Module","Módulo"]
["Disaggregation_1B",117,null,"=Vlookup(\"117\",Translations!F3:H508,1,0)","Coverage Indicator","Coverage Indicator","Indicateurs","Indicadores"]
["Disaggregation_1B",118,null,"=Vlookup(\"118\",Translations!F3:H508,1,0)","Disaggregation","Disaggregation","Ventilation","Desglose"]
["Disaggregation_1B",119,null,"=Vlookup(\"119\",Translations!F3:H508,1,0)","Category","Category","Catégorie","Categoría"]
["Disaggregation_1B",120,null,"=Vlookup(\"120\",Translations!F3:H508,1,0)","Baseline","Baseline","Référence","Base de referencia"]
["Disaggregation_1B",121,null,"=Vlookup(\"121\",Translations!F3:H508,1,0)","N#","N#","N#","N#"]
["Disaggregation_1B",122,null,"=Vlookup(\"122\",Translations!F3:H508,1,0)","D#","D#","D#","D#"]
["Disaggregation_1B",123,null,"=Vlookup(\"123\",Translations!F3:H508,1,0)","%","%","%","%"]
["Disaggregation_1B",124,null,"=Vlookup(\"124\",Translations!F3:H508,1,0)","Year","Year","Année","Año"]
["Disaggregation_1B",125,null,"=Vlookup(\"125\",Translations!F3:H508,1,0)","Source","Source","Source","Fuente"]
["Disaggregation_1B",126,null,"=Vlookup(\"126\",Translations!F3:H508,1,0)","Results","Results","Résultats","Resultados"]
["Disaggregation_1B",127,null,"=Vlookup(\"127\",Translations!F3:H508,1,0)","N#","N#","N#","N#"]
["Disaggregation_1B",128,null,"=Vlookup(\"128\",Translations!F3:H508,1,0)","D#","D#","D#","D#"]
["Disaggregation_1B",129,null,"=Vlookup(\"129\",Translations!F3:H508,1,0)",{"$f":"IF(LangOffset=0,F131,IF(LangOffset=1,G131,IF(LangOffset=2,H131)))","v":"%"},"%","%","%"]
["Disaggregation_1B",130,null,{"$f":"\"=Vlookup(\"\"\"&B132&\"\"\",Translations!F3:H508,1,0)\"","v":"=Vlookup(\"130\",Translations!F3:H508,1,0)"},"Source","Source","Source","Fuente"]
["Disaggregation_1B",131,null,"=Vlookup(\"131\",Translations!F3:H508,1,0)","Comments","Comments","Commentaires","Comentarios"]
["Disaggregation_1B",132,null,"=Vlookup(\"132\",Translations!F3:H508,1,0)","Verified Results","Verified Results","Verified Results","Verified Results"]
["Disaggregation_1B",133,null,"=Vlookup(\"133\",Translations!F3:H508,1,0)","N#","N#","N#","N#"]
["Disaggregation_1B",134,null,"=Vlookup(\"134\",Translations!F3:H508,1,0)","D#","D#","D#","D#"]
["Disaggregation_1B",135,null,"=Vlookup(\"135\",Translations!F3:H508,1,0)","%","%","%","%"]
["Disaggregation_1B",136,null,"=Vlookup(\"136\",Translations!F3:H508,1,0)","Source","Source","Source","Source"]
["Disaggregation_1B",137,null,"=Vlookup(\"137\",Translations!F3:H508,1,0)","Comments","Comments","Comments","Comments"]
["WPTM_1C",138,null,"=Vlookup(\"138\",Translations!F3:H508,1,0)","Progress Report with Disbursement Request","Progress Report with Disbursement Request","Rapport périodique sur les résultats actuels et demande de décaissement","Informe de progreso y solicitud de desembolso"]
["WPTM_1C",139,null,"=Vlookup(\"139\",Translations!F3:H508,1,0)","Section 1:  Programmatic Information","Section 1:  Programmatic Information","Section 1 :  information programmatique","Sección 1: Información programática"]
["WPTM_1C",140,null,"=Vlookup(\"140\",Translations!F3:H508,1,0)","Note: Only the Workplan Tracking Measures that are due for the reporting period have been captured","Note: Only the Workplan Tracking Measures that are due for the reporting period have been captured","Remarque : Saisissez uniquement les mesures de suivi du plan de travail dont il doit être fait rapport pendant la période concernée ","Nota: introduzca únicamente las medidas de seguimiento del plan de trabajo sobre las que debe informarse en el periodo de notificación."]
["WPTM_1C",141,null,"=Vlookup(\"141\",Translations!F3:H508,1,0)","C- Workplan Tracking Measures","C- Workplan Tracking Measures","C- Mesures de suivi du plan de travail","C- Medidas de seguimiento del plan de trabajo"]
["WPTM_1C",142,null,"=Vlookup(\"142\",Translations!F3:H508,1,0)","Module Name","Module Name","Module","Módulo"]
["WPTM_1C",143,null,"=Vlookup(\"143\",Translations!F3:H508,1,0)","Intervention","Intervention","Intervention","Intervención"]
["WPTM_1C",144,null,"=Vlookup(\"144\",Translations!F3:H508,1,0)","Custom Intervention","Custom Intervention","Activité","Intervención personalizado"]
["WPTM_1C",145,null,"=Vlookup(\"145\",Translations!F3:H508,1,0)","Activity","Activity","Détails de l'activité- étapes clés/cibles","Actividad"]
["WPTM_1C",146,null,"=Vlookup(\"146\",Translations!F3:H508,1,0)","Activity details- milestones/ targets","Activity details- milestones/ targets","Critère de réalisation","Detalles de la actividad: objetivos/metas"]
["WPTM_1C",147,null,"=Vlookup(\"147\",Translations!F3:H508,1,0)","Criterion for Completion","Criterion for Completion","Étapes clés/cible pour la période actuelle","Criterios para la realización"]
["WPTM_1C",148,null,"=Vlookup(\"148\",Translations!F3:H508,1,0)","Country (relevant for multi-country grants)","Country (relevant for multi-country grants)","Pays (pour les subventions multipays)","País (pertinente en las subvenciones multipaís)"]
["WPTM_1C",149,null,"=Vlookup(\"149\",Translations!F3:H508,1,0)","Progress Status","Progress Status","Note","Situación de los progresos"]
["WPTM_1C",150,null,"=Vlookup(\"150\",Translations!F3:H508,1,0)","Score","Score","Motifs de l'écart par rapport aux activités et étapes clés du plan de travail","Calificación"]
["WPTM_1C",151,null,"=Vlookup(\"151\",Translations!F3:H508,1,0)","Reasons for deviation from workplan activities and milestones","Reasons for deviation from workplan activities and milestones","Progress Status","Causas de la variación con respecto a las actividades y los objetivos del plan de trabajo"]
["WPTM_1C",152,null,"=Vlookup(\"152\",Translations!F3:H508,1,0)","Progress Status","Progress Status","Verified Score","Progress Status"]
["WPTM_1C",153,null,"=Vlookup(\"153\",Translations!F3:H508,1,0)","Verified Score","Verified Score","LFA analysis of progress and any variance between targets and results, and any other comments\n(this should not be a “Copy and Paste” of the reasons provided by the PR)","Verified Score"]
["WPTM_1C",154,null,"=Vlookup(\"154\",Translations!F3:H508,1,0)","LFA analysis of progress and any variance between targets and results, and any other comments\n(this should not be a “Copy and Paste” of the reasons provided by the PR)","LFA analysis of progress and any variance between targets and results, and any other comments\n(this should not be a “Copy and Paste” of the reasons provided by the PR)",0,"LFA analysis of progress and any variance between targets and results, and any other comments\n(this should not be a “Copy and Paste” of the reasons provided by the PR)"]
["SR Cash Reconciliation_2A,B,C,D",155,null,"=Vlookup(\"155\",Translations!F3:H508,1,0)","Progress Report with Disbursement Request","Progress Report with Disbursement Request","Rapport périodique sur les résultats actuels et demande de décaissement","Informe de progreso y solicitud de desembolso"]
["SR Cash Reconciliation_2A,B,C,D",156,null,"=Vlookup(\"156\",Translations!F3:H508,1,0)","Section 2: Financial Information","Section 2: Financial Information","Section 2 : Information financière","Sección 2: Información financiera"]
["SR Cash Reconciliation_2A,B,C,D",157,null,"=Vlookup(\"157\",Translations!F3:H508,1,0)","Period of Financial Reporting","Period of Financial Reporting","Période couverte par le rapport sur les information financière","Periodo de avances financieros"]
["SR Cash Reconciliation_2A,B,C,D",158,null,"=Vlookup(\"158\",Translations!F3:H508,1,0)","Beginning Date:","Beginning Date:","Date de début :","Fecha de inicio:"]
["SR Cash Reconciliation_2A,B,C,D",159,null,"=Vlookup(\"159\",Translations!F3:H508,1,0)","End Date:","End Date:","Date de fin :","Fecha final:"]
["SR Cash Reconciliation_2A,B,C,D",160,null,"=Vlookup(\"160\",Translations!F3:H508,1,0)","Cumulative Period of Financial Reporting","Cumulative Period of Financial Reporting","Cumulative Period of Financial Reporting","Periodo acumulativo de avances financieros"]
["SR Cash Reconciliation_2A,B,C,D",161,null,"=Vlookup(\"161\",Translations!F3:H508,1,0)","Beginning Date:","Beginning Date:","Date de début :","Fecha de inicio:"]
["SR Cash Reconciliation_2A,B,C,D",162,null,"=Vlookup(\"162\",Translations!F3:H508,1,0)","End Date:","End Date:","Date de fin :","Fecha final:"]
["SR Cash Reconciliation_2A,B,C,D",163,null,"=Vlookup(\"163\",Translations!F3:H508,1,0)","Principal Recipient Reconciliation of funds provided to Sub-Recipients for the Current Implementation Period","Principal Recipient Reconciliation of funds provided to Sub-Recipients for the Current Implementation Period","Rapprochement du récipiendaire principal concernant les fonds fournis aux sous-récipiendaires pour la période actuelle de mise en œuvre","Principal Recipient Reconciliation of funds provided to Sub-Recipients for the Current Implementation Period"]
["SR Cash Reconciliation_2A,B,C,D",164,null,"=Vlookup(\"164\",Translations!F3:H508,1,0)","Principal Recipient","Principal Recipient","Principal Recipient","Principal Recipient"]
["SR Cash Reconciliation_2A,B,C,D",165,null,"=Vlookup(\"165\",Translations!F3:H508,1,0)","(1) \nSub-Recipient Name","(1) \nSub-Recipient Name","(1) \nNom du sous-récipiendaire","(1) \nNombre del SR"]
["SR Cash Reconciliation_2A,B,C,D",166,null,"=Vlookup(\"166\",Translations!F3:H508,1,0)","(2) \n Cumulative Sub-Recipient expenses for prior periods at Principal Recipient level","(2) \n Cumulative Sub-Recipient expenses for prior periods at Principal Recipient level","(2) \n Dépenses cumulées du sous-récipiendaire pour les périodes précédentes au niveau du récipiendaire principal","(2) \n Gastos acumulativos del SR en periodos anteriores a nivel del RP"]
["SR Cash Reconciliation_2A,B,C,D",167,null,"=Vlookup(\"167\",Translations!F3:H508,1,0)","(3) \nSub-Recipient Open Advances at Principal Recipient Level","(3) \nSub-Recipient Open Advances at Principal Recipient Level","(3) \nAvances ouvertes au sous-récipiendaire au niveau du récipiendaire principal","(3) \nAnticipos pendientes al SR a nivel del RP"]
["SR Cash Reconciliation_2A,B,C,D",168,null,"=Vlookup(\"168\",Translations!F3:H508,1,0)","(4) \nDisbursements made by Principal Recipient during the Reporting Period","(4) \nDisbursements made by Principal Recipient during the Reporting Period","(4) \nDécaissements réalisés par le récipiendaire principal","(4) \nDesembolsos realizados por el RP"]
["SR Cash Reconciliation_2A,B,C,D",169,null,"=Vlookup(\"169\",Translations!F3:H508,1,0)","(5) \nOther Income* during the Reporting Period ","(5) \nOther Income* during the Reporting Period ","(5) \nAutres revenus*","(5) \nOtros ingresos*"]
["SR Cash Reconciliation_2A,B,C,D",170,null,"=Vlookup(\"170\",Translations!F3:H508,1,0)","(6) \nExpenditure validated by Principal Recipient during the Reporting Period","(6) \nExpenditure validated by Principal Recipient during the Reporting Period","(6) \nDépenses validées par le récipiendaire principal","(6) \nGastos validados por el RP"]
["SR Cash Reconciliation_2A,B,C,D",171,null,"=Vlookup(\"171\",Translations!F3:H508,1,0)","(7)\nRefunds received  from the Sub-Recipient","(7)\nRefunds received  from the Sub-Recipient","(7)\nRefunds received  from the Sub-Recipient","(7)\nReembolsos recibidos por los subreceptores"]
["SR Cash Reconciliation_2A,B,C,D",172,null,"=Vlookup(\"172\",Translations!F3:H508,1,0)","(8) \nSub-Recipient Closing Balance at Principal Recipient Level","(8) \nSub-Recipient Closing Balance at Principal Recipient Level","(8) \nSolde de trésorerie de clôture du sous-récipiendaire au niveau du récipiendaire principal","(8) \nSaldo de cierre del SR a nivel del RP"]
["SR Cash Reconciliation_2A,B,C,D",173,null,"=Vlookup(\"173\",Translations!F3:H508,1,0)","(9) \nActual Sub-Recipient Cash Balance (if applicable)","(9) \nActual Sub-Recipient Cash Balance (if applicable)","(9) \nSolde de trésorerie réel du sous-récipiendaire (le cas échéant)","(9) \nSaldo de caja real del SR (si corresponde)"]
["SR Cash Reconciliation_2A,B,C,D",174,null,"=Vlookup(\"174\",Translations!F3:H508,1,0)"," (10)\nVariances on Sub-Recipient Balances"," (10)\nVariances on Sub-Recipient Balances"," (10)\nÉcarts par rapport aux soldes des sous-récipiendaires"," (10)\nVariaciones en los saldos del SR"]
["SR Cash Reconciliation_2A,B,C,D",175,null,"=Vlookup(\"175\",Translations!F3:H508,1,0)","Comments","Comments","Commentaires","Comentarios"]
["SR Cash Reconciliation_2A,B,C,D",176,null,"=Vlookup(\"176\",Translations!F3:H508,1,0)","For Local Fund Agent Use Only ","For Local Fund Agent Use Only ","For Local Fund Agent Use Only ","For Local Fund Agent Use Only "]
["SR Cash Reconciliation_2A,B,C,D",177,null,"=Vlookup(\"177\",Translations!F3:H508,1,0)","LFA Adjustments","LFA Adjustments","LFA Adjustments","LFA Adjustments"]
["SR Cash Reconciliation_2A,B,C,D",178,null,"=Vlookup(\"178\",Translations!F3:H508,1,0)","As verified by LFA","As verified by LFA","As verified by LFA","As verified by LFA"]
["SR Cash Reconciliation_2A,B,C,D",179,null,"=Vlookup(\"179\",Translations!F3:H508,1,0)","Comments","Comments","Comments","Comments"]
["SR Cash Reconciliation_2A,B,C,D",180,null,"=Vlookup(\"180\",Translations!F3:H508,1,0)","Total for the Reporting Period","Total for the Reporting Period","Total pour la période de rapport","Total para el periodo del informe"]
["SR Cash Reconciliation_2A,B,C,D",181,null,"=Vlookup(\"181\",Translations!F3:H508,1,0)","* Includes interest income, income generating activites etc.","* Includes interest income, income generating activites etc.","* Inclut les intérêts, les activités génératrices de revenu, etc.","*Incluye ingresos derivados de intereses, actividades generadores de ingresos, etc."]
["Budget Variance_2F",182,null,"=Vlookup(\"182\",Translations!F3:H508,1,0)","Progress Report with Disbursement Request","Progress Report with Disbursement Request","Rapport périodique sur les résultats actuels et demande de décaissement","Informe de progreso y solicitud de desembolso"]
["Budget Variance_2F",183,null,"=Vlookup(\"183\",Translations!F3:H508,1,0)","Section 2: Financial Information","Section 2: Financial Information","Section 2 : Information financière","Sección 2: Información financiera"]
["Budget Variance_2F",184,null,"=Vlookup(\"184\",Translations!F3:H508,1,0)","Period of Financial Reporting","Period of Financial Reporting","Période couverte par le rapport sur les information financière","Periodo de avances financieros"]
["Budget Variance_2F",185,null,"=Vlookup(\"185\",Translations!F3:H508,1,0)","Beginning Date:","Beginning Date:","Date de début :","Fecha de inicio:"]
["Budget Variance_2F",186,null,"=Vlookup(\"186\",Translations!F3:H508,1,0)","End Date:","End Date:","Date de fin :","Fecha final:"]
["Budget Variance_2F",187,null,"=Vlookup(\"187\",Translations!F3:H508,1,0)","Cumulative Period of Financial Reporting","Cumulative Period of Financial Reporting","Cumulative Period of Financial Reporting","Periodo acumulativo de avances financieros"]
["Budget Variance_2F",188,null,"=Vlookup(\"188\",Translations!F3:H508,1,0)","Beginning Date:","Beginning Date:","Date de début :","Fecha de inicio:"]
["Budget Variance_2F",189,null,"=Vlookup(\"189\",Translations!F3:H508,1,0)","End Date:","End Date:","Date de fin :","Fecha final:"]
["Budget Variance_2F",190,null,"=Vlookup(\"190\",Translations!F3:H508,1,0)","Total Principal Recipient Budget Variance and Funding Absorption Analysis","Total Principal Recipient Budget Variance and Funding Absorption Analysis","Écart budgétaire total du récipiendaire principal et analyse de l'absorption des fonds","Variación total del presupuesto del RP y análisis de absorción del financiamiento"]
["Budget Variance_2F",191,null,"=Vlookup(\"191\",Translations!F3:H508,1,0)","Principal Recipient","Principal Recipient","Récipiendaire principal","Receptor principal"]
["Budget Variance_2F",192,null,"=Vlookup(\"192\",Translations!F3:H508,1,0)","Budget for Reporting Period","Budget for Reporting Period","Budget pour la période de rapport","Presupuesto del periodo de avances financieros"]
["Budget Variance_2F",193,null,"=Vlookup(\"193\",Translations!F3:H508,1,0)",{"$f":"IF(LangOffset=0,F195,IF(LangOffset=1,G195,IF(LangOffset=2,H195)))","v":"Actual Grant Cash Out-Flow - Cash Basis for Reporting Period"},"Actual Grant Cash Out-Flow - Cash Basis for Reporting Period","Sorties de fonds réelles de la subvention - Comptabilité de trésorerie pour la période de rapport","Salidas de efectivo de la subvención (base de efectivo) para el periodo de avances financieros"]
["Budget Variance_2F",194,null,{"$f":"\"=Vlookup(\"\"\"&B196&\"\"\",Translations!F3:H508,1,0)\"","v":"=Vlookup(\"194\",Translations!F3:H508,1,0)"},"Budget Vs Actual Variances","Budget Vs Actual Variances","Écarts budget - dép. réelles","Presupuesto frente a variaciones reales"]
["Budget Variance_2F",195,null,"=Vlookup(\"195\",Translations!F3:H508,1,0)","Absorption Capacity","Absorption Capacity","Capacité d'absorption","Capacidad de absorción"]
["Budget Variance_2F",196,null,"=Vlookup(\"196\",Translations!F3:H508,1,0)","Reasons for Variance","Reasons for Variance","Motifs de l'écart","Causas de la variación"]
["Budget Variance_2F",197,null,"=Vlookup(\"197\",Translations!F3:H508,1,0)","Cumulative Budget through period of Progress Update","Cumulative Budget through period of Progress Update","Budget cumulé jusqu'à la fin de la période du rapport","Presupuesto acumulativo hasta el final del perodo de avances financieros"]
["Budget Variance_2F",198,null,"=Vlookup(\"198\",Translations!F3:H508,1,0)","Cumulative Actual Grant Cash-Outflow - Cash Basis through period of Progress Update","Cumulative Actual Grant Cash-Outflow - Cash Basis through period of Progress Update","Sorties de fonds réelles cumulées de la subvention - comptabilité de trésorerie - jusqu’à la fin de la période du rapport","Salidas de efectivo de la subvención (base de efectivo) acumulado hasta el final del perodo de avances financieros"]
["Budget Variance_2F",199,null,"=Vlookup(\"199\",Translations!F3:H508,1,0)","Cumulative Budget Vs Actuals Variances","Cumulative Budget Vs Actuals Variances","Écarts cumulés budget - dép. réelles","Presupuesto acumulativo frente a variaciones reales "]
["Budget Variance_2F",200,null,"=Vlookup(\"200\",Translations!F3:H508,1,0)","Absorption Capacity","Absorption Capacity","Capacité d'absorption","Capacidad de absorción"]
["Budget Variance_2F",201,null,"=Vlookup(\"201\",Translations!F3:H508,1,0)","Reasons for Variance","Reasons for Variance","Motifs de l'écart","Causas de la variación"]
["Budget Variance_2F",202,null,"=Vlookup(\"202\",Translations!F3:H508,1,0)","1. Total Principal Recipient cash outflow vs. budget","1. Total Principal Recipient cash outflow vs. budget","1. Sorties de fonds totales du récipiendaire principal par rapport au budget","1. Salidas totales de efectivo del RP frente al presupuesto"]
["Budget Variance_2F",203,null,"=Vlookup(\"203\",Translations!F3:H508,1,0)","    1a. Principal Recipient's total expenditures (including any direct-disbursements to third-parties)","    1a. Principal Recipient's total expenditures (including any direct-disbursements to third-parties)","    1a. Dépenses totales du récipiendaire principal (y compris tout décaissement direct à des tiers)","    1a. Gastos totales del RP (incluidos desembolsos directos a terceros)"]
["Budget Variance_2F",204,null,"=Vlookup(\"204\",Translations!F3:H508,1,0)","    1b. Disbursements to sub-recipients","    1b. Disbursements to sub-recipients","    1b. Décaissements aux sous-récipiendaires","    1b. Desembolsos a los subreceptores"]
["Budget Variance_2F",205,null,"=Vlookup(\"205\",Translations!F3:H508,1,0)","Procurement data for analytical purposes","Procurement data for analytical purposes","Données d'achats à des fins d'analyse","Datos sobre adquisiciones con fines analíticos"]
["Budget Variance_2F",206,null,"=Vlookup(\"206\",Translations!F3:H508,1,0)","Budget for Reporting Period","Budget for Reporting Period","Budget pour la période de rapport","Presupuesto del periodo de avances financieros"]
["Budget Variance_2F",207,null,"=Vlookup(\"207\",Translations!F3:H508,1,0)","Actual Grant Cash Out-Flow - Cash Basis for Reporting Period","Actual Grant Cash Out-Flow - Cash Basis for Reporting Period","Sorties de fonds réelles de la subvention - Comptabilité de trésorerie pour la période de rapport","Salidas de efectivo de la subvención (base de efectivo) para el periodo de avances financieros"]
["Budget Variance_2F",208,null,"=Vlookup(\"208\",Translations!F3:H508,1,0)","Budget Vs Actual Variances","Budget Vs Actual Variances","Écarts budget - dép. réelles","Presupuesto frente a variaciones reales"]
["Budget Variance_2F",209,null,"=Vlookup(\"209\",Translations!F3:H508,1,0)","Absorption Capacity","Absorption Capacity","Capacité d'absorption","Capacidad de absorción"]
["Budget Variance_2F",210,null,"=Vlookup(\"210\",Translations!F3:H508,1,0)","Reasons for Variance","Reasons for Variance","Motifs de l'écart","Causas de la variación"]
["Budget Variance_2F",211,null,"=Vlookup(\"211\",Translations!F3:H508,1,0)","Cumulative Budget through period of Progress Update","Cumulative Budget through period of Progress Update","Budget cumulé jusqu'à la fin de la période du rapport","Presupuesto acumulativo hasta el final del perodo de avances financieros"]
["Budget Variance_2F",212,null,"=Vlookup(\"212\",Translations!F3:H508,1,0)","Cumulative Actual Grant Cash-Outflow - Cash Basis through period of Progress Update","Cumulative Actual Grant Cash-Outflow - Cash Basis through period of Progress Update","Sorties de fonds réelles cumulées de la subvention - comptabilité de trésorerie - jusqu’à la fin de la période du rapport","Salidas de efectivo de la subvención (base de efectivo) acumulado hasta el final del perodo de avances financieros"]
["Budget Variance_2F",213,null,"=Vlookup(\"213\",Translations!F3:H508,1,0)","Cumulative Budget Vs Actuals Variances","Cumulative Budget Vs Actuals Variances","Écarts cumulés budget - dép. réelles","Presupuesto acumulativo frente a variaciones reales "]
["Budget Variance_2F",214,null,"=Vlookup(\"214\",Translations!F3:H508,1,0)","Absorption Capacity","Absorption Capacity","Capacité d'absorption","Capacidad de absorción"]
["Budget Variance_2F",215,null,"=Vlookup(\"215\",Translations!F3:H508,1,0)","Reasons for Variance","Reasons for Variance","Motifs de l'écart","Causas de la variación"]
["Budget Variance_2F",216,null,"=Vlookup(\"216\",Translations!F3:H508,1,0)","2. Total pharmaceutical & non-pharmaceutical incl. equipment expenditures vs.    budget","2. Total pharmaceutical & non-pharmaceutical incl. equipment expenditures vs.    budget","2. Dépenses pharmaceutiques et non pharmaceutiques (y compris équipements) totales par rapport au budget","2. Gastos totales en productos farmacéuticos y no farmacéuticos, incluido equipamiento, frente al presupuesto"]
["Budget Variance_2F",217,null,"=Vlookup(\"217\",Translations!F3:H508,1,0)","    2a.  Health Products- Pharmaceutical Products","    2a.  Health Products- Pharmaceutical Products","    2a.  Produits de santé - Produits pharmaceutiques","    2a.  Productos sanitarios: productos farmacéuticos"]
["Budget Variance_2F",218,null,"=Vlookup(\"218\",Translations!F3:H508,1,0)","    2b.  Health Products - Non-Pharmaceuticals & Equipment","    2b.  Health Products - Non-Pharmaceuticals & Equipment","    2b.  Produits de santé - Produits non pharmaceutiques et équipements","    2b.  Productos sanitarios: productos no farmacéuticos y equipamiento"]
["Budget Variance_2F",219,null,"=Vlookup(\"219\",Translations!F3:H508,1,0)","For LFA Use Only","For LFA Use Only","For LFA Use Only","For LFA Use Only"]
["Budget Variance_2F",220,null,"=Vlookup(\"220\",Translations!F3:H508,1,0)","E. Total Principal Recipient Budget Variance and Absorption Analysis","E. Total Principal Recipient Budget Variance and Absorption Analysis","E. Total Principal Recipient Budget Variance and Absorption Analysis","E. Total Principal Recipient Budget Variance and Absorption Analysis"]
["Budget Variance_2F",221,null,"=Vlookup(\"221\",Translations!F3:H508,1,0)","Local Fund Agent (LFA)","Local Fund Agent (LFA)","Local Fund Agent (LFA)","Local Fund Agent (LFA)"]
["Budget Variance_2F",222,null,"=Vlookup(\"222\",Translations!F3:H508,1,0)","Budget for Reporting Period","Budget for Reporting Period","Budget for Reporting Period","Budget for Reporting Period"]
["Budget Variance_2F",223,null,"=Vlookup(\"223\",Translations!F3:H508,1,0)","Actual Grant Expenditure - Cash Basis for Reporting Period","Actual Grant Expenditure - Cash Basis for Reporting Period","Actual Grant Expenditure - Cash Basis for Reporting Period","Actual Grant Expenditure - Cash Basis for Reporting Period"]
["Budget Variance_2F",224,null,"=Vlookup(\"224\",Translations!F3:H508,1,0)","Budget Vs Actual Variances","Budget Vs Actual Variances","Budget Vs Actual Variances","Budget Vs Actual Variances"]
["Budget Variance_2F",225,null,"=Vlookup(\"225\",Translations!F3:H508,1,0)","Absorption Capacity","Absorption Capacity","Absorption Capacity","Absorption Capacity"]
["Budget Variance_2F",226,null,"=Vlookup(\"226\",Translations!F3:H508,1,0)","LFA comments on thePrincipal Recipient's explanation of variances ","LFA comments on thePrincipal Recipient's explanation of variances ","LFA comments on thePrincipal Recipient's explanation of variances ","LFA comments on thePrincipal Recipient's explanation of variances "]
["Budget Variance_2F",227,null,"=Vlookup(\"227\",Translations!F3:H508,1,0)","Cumulative Budget through period of Progress Update","Cumulative Budget through period of Progress Update","Cumulative Budget through period of Progress Update","Cumulative Budget through period of Progress Update"]
["Budget Variance_2F",228,null,"=Vlookup(\"228\",Translations!F3:H508,1,0)","Cumulative Actual Grant Expenditure - Cash Basis through period of Progress Update","Cumulative Actual Grant Expenditure - Cash Basis through period of Progress Update","Cumulative Actual Grant Expenditure - Cash Basis through period of Progress Update","Cumulative Actual Grant Expenditure - Cash Basis through period of Progress Update"]
["Budget Variance_2F",229,null,"=Vlookup(\"229\",Translations!F3:H508,1,0)","Cumulative Budget Vs Actuals Variances","Cumulative Budget Vs Actuals Variances","Cumulative Budget Vs Actuals Variances","Cumulative Budget Vs Actuals Variances"]
["Budget Variance_2F",230,null,"=Vlookup(\"230\",Translations!F3:H508,1,0)","Absorption Capacity","Absorption Capacity","Absorption Capacity","Absorption Capacity"]
["Budget Variance_2F",231,null,"=Vlookup(\"231\",Translations!F3:H508,1,0)","LFA comments on the Principal Recipient's explanation of variances ","LFA comments on the Principal Recipient's explanation of variances ","LFA comments on the Principal Recipient's explanation of variances ","LFA comments on the Principal Recipient's explanation of variances "]
["Budget Variance_2F",232,null,"=Vlookup(\"232\",Translations!F3:H508,1,0)","1. Total Principal Recipient cash outflow vs. budget","1. Total Principal Recipient cash outflow vs. budget","1. Total Principal Recipient cash outflow vs. budget","1. Total Principal Recipient cash outflow vs. budget"]
["Budget Variance_2F",233,null,"=Vlookup(\"233\",Translations!F3:H508,1,0)","    1a. Principal Recipient's total expenditures (including any direct-disbursements to third-parties)","    1a. Principal Recipient's total expenditures (including any direct-disbursements to third-parties)","    1a. Principal Recipient's total expenditures (including any direct-disbursements to third-parties)","    1a. Principal Recipient's total expenditures (including any direct-disbursements to third-parties)"]
["Budget Variance_2F",234,null,"=Vlookup(\"234\",Translations!F3:H508,1,0)","    1b. Disbursements to sub-recipients","    1b. Disbursements to sub-recipients","    1b. Disbursements to sub-recipients","    1b. Disbursements to sub-recipients"]
["Budget Variance_2F",235,null,"=Vlookup(\"235\",Translations!F3:H508,1,0)","Procurement data for analytical purposes","Procurement data for analytical purposes","Procurement data for analytical purposes","Procurement data for analytical purposes"]
["Budget Variance_2F",236,null,"=Vlookup(\"236\",Translations!F3:H508,1,0)","Budget for Reporting Period","Budget for Reporting Period","Budget for Reporting Period","Budget for Reporting Period"]
["Budget Variance_2F",237,null,"=Vlookup(\"237\",Translations!F3:H508,1,0)","Actual Grant Expenditure - Cash Basis for Reporting Period","Actual Grant Expenditure - Cash Basis for Reporting Period","Actual Grant Expenditure - Cash Basis for Reporting Period","Actual Grant Expenditure - Cash Basis for Reporting Period"]
["Budget Variance_2F",238,null,"=Vlookup(\"238\",Translations!F3:H508,1,0)","Budget Vs Actual Variances","Budget Vs Actual Variances","Budget Vs Actual Variances","Budget Vs Actual Variances"]
["Budget Variance_2F",239,null,"=Vlookup(\"239\",Translations!F3:H508,1,0)","Absorption Capacity","Absorption Capacity","Absorption Capacity","Absorption Capacity"]
["Budget Variance_2F",240,null,"=Vlookup(\"240\",Translations!F3:H508,1,0)","LFA comments on the Principal Recipient's explanation of variances ","LFA comments on the Principal Recipient's explanation of variances ","LFA comments on the Principal Recipient's explanation of variances ","LFA comments on the Principal Recipient's explanation of variances "]
["Budget Variance_2F",241,null,"=Vlookup(\"241\",Translations!F3:H508,1,0)","Cumulative Budget through period of Progress Update","Cumulative Budget through period of Progress Update","Cumulative Budget through period of Progress Update","Cumulative Budget through period of Progress Update"]
["Budget Variance_2F",242,null,"=Vlookup(\"242\",Translations!F3:H508,1,0)","Cumulative Actual Grant Expenditure - Cash Basis through period of Progress Update","Cumulative Actual Grant Expenditure - Cash Basis through period of Progress Update","Cumulative Actual Grant Expenditure - Cash Basis through period of Progress Update","Cumulative Actual Grant Expenditure - Cash Basis through period of Progress Update"]
["Budget Variance_2F",243,null,"=Vlookup(\"243\",Translations!F3:H508,1,0)","Cumulative Budget Vs Actuals Variances","Cumulative Budget Vs Actuals Variances","Cumulative Budget Vs Actuals Variances","Cumulative Budget Vs Actuals Variances"]
["Budget Variance_2F",244,null,"=Vlookup(\"244\",Translations!F3:H508,1,0)","Absorption Capacity","Absorption Capacity","Absorption Capacity","Absorption Capacity"]
["Budget Variance_2F",245,null,"=Vlookup(\"245\",Translations!F3:H508,1,0)","LFA comments on the Principal Recipient's explanation of variances ","LFA comments on the Principal Recipient's explanation of variances ","LFA comments on the Principal Recipient's explanation of variances ","LFA comments on the Principal Recipient's explanation of variances "]
["Budget Variance_2F",246,null,"=Vlookup(\"246\",Translations!F3:H508,1,0)","2. Total pharmaceutical & non-pharmaceutical incl. equipment expenditures vs. budget","2. Total pharmaceutical & non-pharmaceutical incl. equipment expenditures vs. budget","2. Total pharmaceutical & non-pharmaceutical incl. equipment expenditures vs. budget","2. Total pharmaceutical & non-pharmaceutical incl. equipment expenditures vs. budget"]
["Budget Variance_2F",247,null,"=Vlookup(\"247\",Translations!F3:H508,1,0)","    2a.  Health Products- Pharmaceutical Products","    2a.  Health Products- Pharmaceutical Products","    2a.  Health Products- Pharmaceutical Products","    2a.  Health Products- Pharmaceutical Products"]
["Budget Variance_2F",248,null,"=Vlookup(\"248\",Translations!F3:H508,1,0)","    2b.  Health Products - Non-Pharmaceuticals & Equipment","    2b.  Health Products - Non-Pharmaceuticals & Equipment","    2b.  Health Products - Non-Pharmaceuticals & Equipment","    2b.  Health Products - Non-Pharmaceuticals & Equipment"]
["Procurement_3",249,null,"=Vlookup(\"249\",Translations!F3:H508,1,0)","Progress Report with Disbursement Request","Progress Report with Disbursement Request","Rapport périodique sur les résultats actuels et demande de décaissement","Informe de progreso y solicitud de desembolso"]
["Procurement_3",250,null,"=Vlookup(\"250\",Translations!F3:H508,1,0)","Section 3A:  Principal Recipient - Procurement and Supply Management","Section 3A:  Principal Recipient - Procurement and Supply Management","Section 3A :  RP - Gestion des achats et des stocks","Sección 3A:  Gestión de adquisiciones y suministros a nivel del RP"]
["Procurement_3",251,null,"=Vlookup(\"251\",Translations!F3:H508,1,0)","1.  Have you updated the Price Quality Reporting (PQR) with the required information on the pharmaceuticals and health products received during the period covered by this PU/DR’ (if applicable)?  If health products procurement information has not been entered into the PQR, please explain why.\n\n!  For further guidance on PQR data entry, please refer to the guidelines.","1.  Have you updated the Price Quality Reporting (PQR) with the required information on the pharmaceuticals and health products received during the period covered by this PU/DR’ (if applicable)?  If health products procurement information has not been entered into the PQR, please explain why.\n\n!  For further guidance on PQR data entry, please refer to the guidelines.","1. Avez-vous enregistré dans le système d'information sur les prix et la qualité (PQR) l'information actualisée requise sur les produits pharmaceutiques et de santé reçus pendant la période couverte par ce RA/DD (le cas échéant) ? Si l'information relative aux achats de produits de santé n'a pas été saisie dans le système, veuillez expliquer pourquoi.\n\n! Pour des recommandations plus détaillées sur la saisie de données dans le système PQR, veuillez vous reporter aux directives.","1.  ¿Ha actualizado el Sistema de Información de Precios y Calidad (PQR) con los datos necesarios sobre los productos farmacéuticos y sanitarios recibidos durante el periodo que abarca el presente PU/DR (si corresponde)? Si no se ha incluido información sobre las adquisiciones de productos sanitarios en el sistema PQR indique por qué.\n\n!  Para obtener más información sobre la introducción de datos en el sistema PQR, consulte las directrices."]
["Procurement_3",252,null,"=Vlookup(\"252\",Translations!F3:H508,1,0)","Comments","Comments","Commentaires","Comentarios"]
["Procurement_3",253,null,"=Vlookup(\"253\",Translations!F3:H508,1,0)"," 2. Based on the most up-to-date stock situation, are there any risks of stock-outs or expiries for the key pharmaceuticals & health products, listed below, at the central level in the next Reporting Period?  If yes, please comment."," 2. Based on the most up-to-date stock situation, are there any risks of stock-outs or expiries for the key pharmaceuticals & health products, listed below, at the central level in the next Reporting Period?  If yes, please comment."," 2. Selon l'état des stocks le plus récent, y a-t-il des risques de rupture de stock ou de péremption des produits pharmaceutiques et de santé clés répertoriés ci-dessous au niveau central au cours de la période de mise en œuvre suivante ? Dans l'affirmative, veuillez commenter."," 2. A tenor de los niveles de existencias más recientes, ¿hay riesgo de que las existencias de productos farmacéuticos y sanitarios básicos enumerados a continuación se agoten o alcancen el final de su periodo de validez a nivel central durante el siguiente período de ejecución? En caso afirmativo, explíquelo."]
["Procurement_3",254,null,"=Vlookup(\"254\",Translations!F3:H508,1,0)","Key Pharmaceuticals & Health Products","Key Pharmaceuticals & Health Products","Produits pharmaceutiques et de santé clés","Productos farmacéuticos y sanitarios básicos"]
["Procurement_3",255,null,"=Vlookup(\"255\",Translations!F3:H508,1,0)","Risk of Stock-Out","Risk of Stock-Out","Risque de rupture de stock","Riesgo de desabastecimiento"]
["Procurement_3",256,null,"=Vlookup(\"256\",Translations!F3:H508,1,0)","Risk of Expiry","Risk of Expiry","Risque de péremption","Riesgo de vencimiento"]
["Procurement_3",257,null,"=Vlookup(\"257\",Translations!F3:H508,1,0)",{"$f":"IF(LangOffset=0,F259,IF(LangOffset=1,G259,IF(LangOffset=2,H259)))","v":"Comment (if yes, please provide information on the specific items that are at risk of stock-out or expiry and the mitigation measures in place or to be implemented)"},"Comment (if yes, please provide information on the specific items that are at risk of stock-out or expiry and the mitigation measures in place or to be implemented)","Commentaire (si oui, veuillez fournir des informations sur les articles spécifiques présentant un risque de rupture de stock ou de péremption ainsi que les mesures d’atténuation en place ou à mettre en œuvre)","Comentarios (si existen riesgos, incluya información sobre los artículos concretos cuyas existencias pueden agotarse o alcanzar el final de su periodo de validez y las medidas de mitigación en el lugar o para ser implementado)"]
["Procurement_3",258,null,{"$f":"\"=Vlookup(\"\"\"&B260&\"\"\",Translations!F3:H508,1,0)\"","v":"=Vlookup(\"258\",Translations!F3:H508,1,0)"},"1. Anti-malaria medicines","1. Anti-malaria medicines","1. Antipaludéens","1. Antimaláricos"]
["Procurement_3",259,null,"=Vlookup(\"259\",Translations!F3:H508,1,0)","2. Bed nets","2. Bed nets","2. Moustiquaires","2. Mosquiteros"]
["Procurement_3",260,null,"=Vlookup(\"260\",Translations!F3:H508,1,0)","3. In-Vitro Diagnostic Products","3. In-Vitro Diagnostic Products","3. Produits de diagnostic in-vitro ","3. Productos de diagnóstico in vitro"]
["Procurement_3",261,null,"=Vlookup(\"261\",Translations!F3:H508,1,0)","4. Condoms","4. Condoms","4. Préservatifs","4. Preservativos"]
["Procurement_3",262,null,"=Vlookup(\"262\",Translations!F3:H508,1,0)","5. Anti-retrovirals","5. Anti-retrovirals","5. Antirétroviraux","5. Antirretrovirales"]
["Procurement_3",263,null,"=Vlookup(\"263\",Translations!F3:H508,1,0)","6. Anti-TB medicines","6. Anti-TB medicines","6. Antituberuculeux","6. Antituberculosos"]
["Procurement_3",264,null,"=Vlookup(\"264\",Translations!F3:H508,1,0)","7. Lab supplies (e.g. CD4, Viral Load, Cartridges…)","7. Lab supplies (e.g. CD4, Viral Load, Cartridges…)","7. Fournitures de laboratoire (par ex. CD4, charge virales, cartouches…)","7. Suministros de laboratorio (CD4, carga vírica, cartuchos…)"]
["Procurement_3",265,null,"=Vlookup(\"265\",Translations!F3:H508,1,0)","8. Other (Please specify in the \"Comment\" column)","8. Other (Please specify in the \"Comment\" column)","8. Autres (veuillez préciser dans la colonne des commentaires)","8. Otros (Especifique cuáles en la columna de comentarios)"]
["Procurement_3",266,null,"=Vlookup(\"266\",Translations!F3:H508,1,0)","3.  Comment on additional issues related to the procurement and supply management of pharmaceuticals and health products.","3.  Comment on additional issues related to the procurement and supply management of pharmaceuticals and health products.","3.  Veuillez commenter tout problème supplémentaire lié à la gestion des achats et des stocks de produits pharmaceutiques et de santé.","3.  Comentarios sobre otras cuestiones relacionados con la gestión de adquisiciones y suministros de productos farmacéuticos y sanitarios."]
["Procurement_3",267,null,"=Vlookup(\"267\",Translations!F3:H508,1,0)","For LFA Use Only","For LFA Use Only","For LFA Use Only","For LFA Use Only"]
["Procurement_3",268,null,"=Vlookup(\"268\",Translations!F3:H508,1,0)","Section 3B: LFA-Verified Procurement and Supply Management Information","Section 3B: LFA-Verified Procurement and Supply Management Information","Section 3B: LFA-Verified Procurement and Supply Management Information","Section 3B: LFA-Verified Procurement and Supply Management Information"]
["Procurement_3",269,null,"=Vlookup(\"269\",Translations!F3:H508,1,0)","PR's response","PR's response","PR's response","PR's response"]
["Procurement_3",270,null,"=Vlookup(\"270\",Translations!F3:H508,1,0)","LFA's response","LFA's response","LFA's response","LFA's response"]
["Procurement_3",271,null,"=Vlookup(\"271\",Translations!F3:H508,1,0)","LFA Comments/Analysis ","LFA Comments/Analysis ","LFA Comments/Analysis ","LFA Comments/Analysis "]
["Procurement_3",272,null,"=Vlookup(\"272\",Translations!F3:H508,1,0)","1a.  Has the PR updated the Price Quality Reporting (PQR) with the required information on the pharmaceuticals and health products received during the period covered by this PU/DR’ (if applicable)?  (If health products procurement information has not been entered into the PQR, please explain why in comments box)    ","1a.  Has the PR updated the Price Quality Reporting (PQR) with the required information on the pharmaceuticals and health products received during the period covered by this PU/DR’ (if applicable)?  (If health products procurement information has not been entered into the PQR, please explain why in comments box)    ","1a.  Has the PR updated the Price Quality Reporting (PQR) with the required information on the pharmaceuticals and health products received during the period covered by this PU/DR’ (if applicable)?  (If health products procurement information has not been entered into the PQR, please explain why in comments box)    ","1a.  Has the PR updated the Price Quality Reporting (PQR) with the required information on the pharmaceuticals and health products received during the period covered by this PU/DR’ (if applicable)?  (If health products procurement information has not been entered into the PQR, please explain why in comments box)    "]
["Procurement_3",273,null,"=Vlookup(\"273\",Translations!F3:H508,1,0)","1b.  Value of Pharmaceuticals and Health Products in the PQR (7 categories only)","1b.  Value of Pharmaceuticals and Health Products in the PQR (7 categories only)","1b.  Value of Pharmaceuticals and Health Products in the PQR (7 categories only)","1b.  Value of Pharmaceuticals and Health Products in the PQR (7 categories only)"]
["Procurement_3",274,null,"=Vlookup(\"274\",Translations!F3:H508,1,0)","(!) This table is included in the PU/DR form with the aim to improve completeness of information in the PQR system and not for comparing PQR amounts vis-à-vis expenditure per se. NB: PQR and expenditure amounts on health products may not be equal due to a timelag between payments and delivery of pharmaceuticals/health products.\n(!)  For further guidance on PQR data entry, please refer to the guidelines.","(!) This table is included in the PU/DR form with the aim to improve completeness of information in the PQR system and not for comparing PQR amounts vis-à-vis expenditure per se. NB: PQR and expenditure amounts on health products may not be equal due to a timelag between payments and delivery of pharmaceuticals/health products.\n(!)  For further guidance on PQR data entry, please refer to the guidelines.","(!) This table is included in the PU/DR form with the aim to improve completeness of information in the PQR system and not for comparing PQR amounts vis-à-vis expenditure per se. NB: PQR and expenditure amounts on health products may not be equal due to a timelag between payments and delivery of pharmaceuticals/health products.\n(!)  For further guidance on PQR data entry, please refer to the guidelines.","(!) This table is included in the PU/DR form with the aim to improve completeness of information in the PQR system and not for comparing PQR amounts vis-à-vis expenditure per se. NB: PQR and expenditure amounts on health products may not be equal due to a timelag between payments and delivery of pharmaceuticals/health products.\n(!)  For further guidance on PQR data entry, please refer to the guidelines."]
["Procurement_3",275,null,"=Vlookup(\"275\",Translations!F3:H508,1,0)","Reporting Currency","Reporting Currency","Reporting Currency","Reporting Currency"]
["Procurement_3",276,null,"=Vlookup(\"276\",Translations!F3:H508,1,0)","PQR Product Categories","PQR Product Categories","PQR Product Categories","PQR Product Categories"]
["Procurement_3",277,null,"=Vlookup(\"277\",Translations!F3:H508,1,0)","Value of  products received during reporting period","Value of  products received during reporting period","Value of  products received during reporting period","Value of  products received during reporting period"]
["Procurement_3",278,null,"=Vlookup(\"278\",Translations!F3:H508,1,0)","Value of products entered by the PR and verified as correct by the LFA in the PQR during reporting period","Value of products entered by the PR and verified as correct by the LFA in the PQR during reporting period","Value of products entered by the PR and verified as correct by the LFA in the PQR during reporting period","Value of products entered by the PR and verified as correct by the LFA in the PQR during reporting period"]
["Procurement_3",279,null,"=Vlookup(\"279\",Translations!F3:H508,1,0)","Variance","Variance","Variance","Variance"]
["Procurement_3",280,null,"=Vlookup(\"280\",Translations!F3:H508,1,0)","Reason for Variance","Reason for Variance","Reason for Variance","Reason for Variance"]
["Procurement_3",281,null,"=Vlookup(\"281\",Translations!F3:H508,1,0)","Cumulative value of  products received since the start of the Implementation Period","Cumulative value of  products received since the start of the Implementation Period","Cumulative value of  products received since the start of the Implementation Period","Cumulative value of  products received since the start of the Implementation Period"]
["Procurement_3",282,null,"=Vlookup(\"282\",Translations!F3:H508,1,0)","Cumulative value of products verified as correct by the LFA in the PQR since the start of the Implementation Period","Cumulative value of products verified as correct by the LFA in the PQR since the start of the Implementation Period","Cumulative value of products verified as correct by the LFA in the PQR since the start of the Implementation Period","Cumulative value of products verified as correct by the LFA in the PQR since the start of the Implementation Period"]
["Procurement_3",283,null,"=Vlookup(\"283\",Translations!F3:H508,1,0)","Variance","Variance","Variance","Variance"]
["Procurement_3",284,null,"=Vlookup(\"284\",Translations!F3:H508,1,0)","Reason for Variance","Reason for Variance","Reason for Variance","Reason for Variance"]
["Procurement_3",285,null,"=Vlookup(\"285\",Translations!F3:H508,1,0)","1. Anti-malaria medicines","1. Anti-malaria medicines","1. Anti-malaria medicines","1. Anti-malaria medicines"]
["Procurement_3",286,null,"=Vlookup(\"286\",Translations!F3:H508,1,0)","2. Bed nets","2. Bed nets","2. Bed nets","2. Bed nets"]
["Procurement_3",287,null,"=Vlookup(\"287\",Translations!F3:H508,1,0)","3. In-Vitro Diagnostic Products","3. In-Vitro Diagnostic Products","3. In-Vitro Diagnostic Products","3. In-Vitro Diagnostic Products"]
["Procurement_3",288,null,"=Vlookup(\"288\",Translations!F3:H508,1,0)","4. Condoms","4. Condoms","4. Condoms","4. Condoms"]
["Procurement_3",289,null,"=Vlookup(\"289\",Translations!F3:H508,1,0)","5. Anti-retrovirals","5. Anti-retrovirals","5. Anti-retrovirals","5. Anti-retrovirals"]
["Procurement_3",290,null,"=Vlookup(\"290\",Translations!F3:H508,1,0)","6. Anti-TB medicines","6. Anti-TB medicines","6. Anti-TB medicines","6. Anti-TB medicines"]
["Procurement_3",291,null,"=Vlookup(\"291\",Translations!F3:H508,1,0)","7. Indoor Residual Spraying (IRS)","7. Indoor Residual Spraying (IRS)","7. Indoor Residual Spraying (IRS)","7. Indoor Residual Spraying (IRS)"]
["Procurement_3",292,null,"=Vlookup(\"292\",Translations!F3:H508,1,0)","Total","Total","Total","Total"]
["Procurement_3",293,null,"=Vlookup(\"293\",Translations!F3:H508,1,0)"," 2. Based on best information available to the LFA, are there any risks of drug stock-out or expiries at the central level in the next period of implementation?  (If yes, please explain in comments box)\n! This section should be completed by the LFA based on best information on stock at the central level available to the LFA and should not require dedicated visits for on-site checks of stocks."," 2. Based on best information available to the LFA, are there any risks of drug stock-out or expiries at the central level in the next period of implementation?  (If yes, please explain in comments box)\n! This section should be completed by the LFA based on best information on stock at the central level available to the LFA and should not require dedicated visits for on-site checks of stocks."," 2. Based on best information available to the LFA, are there any risks of drug stock-out or expiries at the central level in the next period of implementation?  (If yes, please explain in comments box)\n! This section should be completed by the LFA based on best information on stock at the central level available to the LFA and should not require dedicated visits for on-site checks of stocks."," 2. Based on best information available to the LFA, are there any risks of drug stock-out or expiries at the central level in the next period of implementation?  (If yes, please explain in comments box)\n! This section should be completed by the LFA based on best information on stock at the central level available to the LFA and should not require dedicated visits for on-site checks of stocks."]
["Procurement_3",294,null,"=Vlookup(\"294\",Translations!F3:H508,1,0)","Key Pharmaceuticals & Health Products","Key Pharmaceuticals & Health Products","Key Pharmaceuticals & Health Products","Key Pharmaceuticals & Health Products"]
["Procurement_3",295,null,"=Vlookup(\"295\",Translations!F3:H508,1,0)","Risk of Stock-Out","Risk of Stock-Out","Risk of Stock-Out","Risk of Stock-Out"]
["Procurement_3",296,null,"=Vlookup(\"296\",Translations!F3:H508,1,0)","Risk of Expiry","Risk of Expiry","Risk of Expiry","Risk of Expiry"]
["Procurement_3",297,null,"=Vlookup(\"297\",Translations!F3:H508,1,0)","Comment (if yes, please provide information on the specific items that are at risk of stock-out or expiry and the mitigation measures in place or to be implemented)","Comment (if yes, please provide information on the specific items that are at risk of stock-out or expiry and the mitigation measures in place or to be implemented)","Comment (if yes, please provide information on the specific items that are at risk of stock-out or expiry and the mitigation measures in place or to be implemented)","Comment (if yes, please provide information on the specific items that are at risk of stock-out or expiry and the mitigation measures in place or to be implemented)"]
["Procurement_3",298,null,"=Vlookup(\"298\",Translations!F3:H508,1,0)","1. Anti-malaria medicines","1. Anti-malaria medicines","1. Anti-malaria medicines","1. Anti-malaria medicines"]
["Procurement_3",299,null,"=Vlookup(\"299\",Translations!F3:H508,1,0)","2. Bed nets","2. Bed nets","2. Bed nets","2. Bed nets"]
["Procurement_3",300,null,"=Vlookup(\"300\",Translations!F3:H508,1,0)","3. In-Vitro Diagnostic Products","3. In-Vitro Diagnostic Products","3. In-Vitro Diagnostic Products","3. In-Vitro Diagnostic Products"]
["Procurement_3",301,null,"=Vlookup(\"301\",Translations!F3:H508,1,0)","4. Condoms","4. Condoms","4. Condoms","4. Condoms"]
["Procurement_3",302,null,"=Vlookup(\"302\",Translations!F3:H508,1,0)","5. Anti-retrovirals","5. Anti-retrovirals","5. Anti-retrovirals","5. Anti-retrovirals"]
["Procurement_3",303,null,"=Vlookup(\"303\",Translations!F3:H508,1,0)","6. Anti-TB medicines","6. Anti-TB medicines","6. Anti-TB medicines","6. Anti-TB medicines"]
["Procurement_3",304,null,"=Vlookup(\"304\",Translations!F3:H508,1,0)","7. Lab supplies (e.g. CD4, Viral Load, Cartridges…)","7. Lab supplies (e.g. CD4, Viral Load, Cartridges…)","7. Lab supplies (e.g. CD4, Viral Load, Cartridges…)","7. Lab supplies (e.g. CD4, Viral Load, Cartridges…)"]
["Procurement_3",305,null,"=Vlookup(\"305\",Translations!F3:H508,1,0)","8. Other (Please specify in the \"Comment\" column)","8. Other (Please specify in the \"Comment\" column)","8. Other (Please specify in the \"Comment\" column)","8. Other (Please specify in the \"Comment\" column)"]
["Procurement_3",306,null,"=Vlookup(\"306\",Translations!F3:H508,1,0)","3. LFA analysis of issues related to the procurement and supply management of pharmaceuticals and health products","3. LFA analysis of issues related to the procurement and supply management of pharmaceuticals and health products","3. LFA analysis of issues related to the procurement and supply management of pharmaceuticals and health products","3. LFA analysis of issues related to the procurement and supply management of pharmaceuticals and health products"]
["Grant Mangement_4",307,null,"=Vlookup(\"307\",Translations!F3:H508,1,0)","Progress Report with Disbursement Request","Progress Report with Disbursement Request","Rapport périodique sur les résultats actuels et demande de décaissement","Informe de progreso y solicitud de desembolso"]
["Grant Mangement_4",308,null,"=Vlookup(\"308\",Translations!F3:H508,1,0)","Section 4:  Grant Management","Section 4:  Grant Management","Section 4 : Gestion de subvention","Sección 4:  Gestión de subvenciones"]
["Grant Mangement_4",309,null,"=Vlookup(\"309\",Translations!F3:H508,1,0)","A.  PR and LFA Comments on the Fulfilment of Grant Requirements","A.  PR and LFA Comments on the Fulfilment of Grant Requirements","A. Commentaires du récipiendaire principal et de l'agent local du Fonds sur la réalisation des exigences de la subvention conformément à l'accord de subvention","A.  Comentarios del RP y el ALF sobre el cumplimiento de las condiciones previas y/o especiales en el marco del Acuerdo de Subvención"]
["Grant Mangement_4",310,null,"=Vlookup(\"310\",Translations!F3:H508,1,0)","! Please include in this table the Grant Requirement number as per Grant Confirmation and full text of the requirement due for fulfilment during this period or outstanding from previous periods. \n! Some may apply to more than one period of grant implementation.  Their fulfilment during one period does not automatically imply fulfilment in subsequent periods.  The LFA should verify that the status of such Grant Requirements is reported by the Principal Recipient during each period concerned.","! Please include in this table the Grant Requirement number as per Grant Confirmation and full text of the requirement due for fulfilment during this period or outstanding from previous periods. \n! Some may apply to more than one period of grant implementation.  Their fulfilment during one period does not automatically imply fulfilment in subsequent periods.  The LFA should verify that the status of such Grant Requirements is reported by the Principal Recipient during each period concerned.","! Veuillez inclure dans ce tableau le numéro des exigences conformément à l'accord de subvention et l'énoncé complet des exigences de la subvention devant être réalisées pendant cette période ou en suspens depuis les périodes précédentes. \n! Certaines exigences peuvent s'appliquer à plusieurs périodes de mise en œuvre de la subvention. Leur réalisation pendant une période ne suppose pas automatiquement leur réalisation pendant les périodes ultérieures. L'agent local du Fonds doit vérifier que le récipiendaire principal fait rapport sur l'état de ces exigences pour chaque période concernée.","! Incluya en esta tabla el número de condición previa conforme al establecido en el Acuerdo de Subvención y el texto completo de las condiciones previas y/o condiciones especiales cuyo cumplimiento esté previsto durante el periodo en curso o que esté pendiente de periodos anteriores.\n! Es posible que ciertas condiciones especiales se apliquen a más de un periodo de ejecución de la subvención. Su cumplimiento durante un periodo no exime automáticamente de cumplirlas en periodos posteriores. El ALF verificará que el RP informe sobre el estado de esas condiciones en cada periodo pertinente."]
["Grant Mangement_4",311,null,"=Vlookup(\"311\",Translations!F3:H508,1,0)","Grant Requirements","Grant Requirements","Exigences de la Subvention","Condiciones previas y/u otras condiciones especiales"]
["Grant Mangement_4",312,null,"=Vlookup(\"312\",Translations!F3:H508,1,0)","Status","Status","État","Estado"]
["Grant Mangement_4",313,null,"=Vlookup(\"313\",Translations!F3:H508,1,0)","PR Comments on Progress of Implementation","PR Comments on Progress of Implementation","Commentaires du récipiendaire principal sur l'avancement de la mise en œuvre","Comentarios del RP sobre los progresos en su aplicación"]
["Grant Mangement_4",314,null,"=Vlookup(\"314\",Translations!F3:H508,1,0)","For LFA Use Only","For LFA Use Only","For LFA Use Only","For LFA Use Only"]
["Grant Mangement_4",315,null,"=Vlookup(\"315\",Translations!F3:H508,1,0)","Status","Status","Status","Status"]
["Grant Mangement_4",316,null,"=Vlookup(\"316\",Translations!F3:H508,1,0)","LFA Analysis\n(this should not be a \"\"Copy and Paste\"\" of the comments provided by the PR)","LFA Analysis\n(this should not be a \"\"Copy and Paste\"\" of the comments provided by the PR)","LFA Analysis\n(this should not be a \"\"Copy and Paste\"\" of the comments provided by the PR)","Analysis (LFA)"]
["Grant Mangement_4",317,null,"=Vlookup(\"317\",Translations!F3:H508,1,0)","B.  PR & LFA Review of Progress on Implementation of Outstanding Management Actions from Previous Disbursements","B.  PR & LFA Review of Progress on Implementation of Outstanding Management Actions from Previous Disbursements","B.  Examen par le RP et l'ALF de l'état d'avancement de la mise en œuvre des mesures de gestion en suspens depuis les décaissements précédents","B.  Revisión del RP y el ALF de los progresos realizados en la aplicación de las medidas de gestión pendientes de periodos de desembolso anteriores"]
["Grant Mangement_4",318,null,"=Vlookup(\"318\",Translations!F3:H508,1,0)","! Please list all issues raised in the last Performance Letter from the Global Fund or outstanding from previous Performance Letters, and comment on the progress. Please include the date of the Performance Letter and the item number.","! Please list all issues raised in the last Performance Letter from the Global Fund or outstanding from previous Performance Letters, and comment on the progress. Please include the date of the Performance Letter and the item number.","! Veuillez répertorier tous les problèmes soulevés dans la dernière lettre de résultats du Fonds mondial ou en suspens depuis des lettres de résultats antérieures, et commenter leur avancement. Veuillez inclure la date de la lettre de résultats et le numéro de la mesure de gestion.","! Enumere todas las cuestiones señaladas en la última carta de desempeño del Fondo Mundial o que estén pendientes de cartas de desempeño anteriores, y comente los progresos realizados al respecto. Incluya la fecha de la carta de desempeño y el número de artículo."]
["Grant Mangement_4",319,null,"=Vlookup(\"319\",Translations!F3:H508,1,0)","Global Fund Management Actions","Global Fund Management Actions","Mesures de gestion recommandées par le Fonds mondial","Medidas de gestión del Fondo Mundial"]
["Grant Mangement_4",320,null,"=Vlookup(\"320\",Translations!F3:H508,1,0)","Status","Status","État","Estado"]
["Grant Mangement_4",321,null,"=Vlookup(\"321\",Translations!F3:H508,1,0)",{"$f":"IF(LangOffset=0,F323,IF(LangOffset=1,G323,IF(LangOffset=2,H323)))","v":"PR Comments on Progress of Implementation"},"PR Comments on Progress of Implementation","^Commentaires du RP sur l'avancement de la mise en œuvre","Comentarios del RP sobre los progresos en su aplicación"]
["Grant Mangement_4",322,null,{"$f":"\"=Vlookup(\"\"\"&B324&\"\"\",Translations!F3:H508,1,0)\"","v":"=Vlookup(\"322\",Translations!F3:H508,1,0)"},"For LFA Use Only","For LFA Use Only","For LFA Use Only","For LFA Use Only"]
["Grant Mangement_4",323,null,"=Vlookup(\"323\",Translations!F3:H508,1,0)","Status","Status","Status","Status"]
["Grant Mangement_4",324,null,"=Vlookup(\"324\",Translations!F3:H508,1,0)","LFA Review of PR Progress on Global Fund Management Actions ","LFA Review of PR Progress on Global Fund Management Actions ","LFA Review of PR Progress on Global Fund Management Actions ","LFA Review of PR Progress on Global Fund Management Actions "]
["Grant Mangement_4",325,null,"=Vlookup(\"325\",Translations!F3:H508,1,0)","C.  Comments on Annual Grant Reporting Requirements","C.  Comments on Annual Grant Reporting Requirements","C.  Commentaires sur les exigences de rapport annuel concernant la subvention","'C.  Comentarios sobre los requisitos para la presentación de informes anuales sobre la subvención"]
["Grant Mangement_4",326,null,"=Vlookup(\"326\",Translations!F3:H508,1,0)","! Please indicate a date for the report due for submission.  If a report is overdue, indicate the original due date and explain the reason for delay.","! Please indicate a date for the report due for submission.  If a report is overdue, indicate the original due date and explain the reason for delay.","! Veuillez indiquer l'échéance du rapport à présenter. Si un rapport est en retard, indiquez l'échéance originale et le motif du retard.","! Indique una fecha para el informe pendiente. Si el plazo de entrega del informe ha vencido, indique la fecha límite original y explique las causas del retraso."]
["Grant Mangement_4",327,null,"=Vlookup(\"327\",Translations!F3:H508,1,0)","Required Documentation","Required Documentation","Documentation requise","Documentación solicitada"]
["Grant Mangement_4",328,null,"=Vlookup(\"328\",Translations!F3:H508,1,0)","Due date \n(dd-mmm-yy)","Due date \n(dd-mmm-yy)","Échéance \n(jj-mmm-aa)","Fecha límite\n(dd-mm-aa)"]
["Grant Mangement_4",329,null,"=Vlookup(\"329\",Translations!F3:H508,1,0)","Status","Status","État","Estado"]
["Grant Mangement_4",330,null,"=Vlookup(\"330\",Translations!F3:H508,1,0)","Comments","Comments","Commentaires","Comentarios"]
["Grant Mangement_4",331,null,"=Vlookup(\"331\",Translations!F3:H508,1,0)","For LFA Use Only","For LFA Use Only","For LFA Use Only","For LFA Use Only"]
["Grant Mangement_4",332,null,"=Vlookup(\"332\",Translations!F3:H508,1,0)","Due date\n(dd-mmm-yy)","Due date\n(dd-mmm-yy)","Due date\n(dd-mmm-yy)","Due date\n(dd-mmm-yy)"]
["Grant Mangement_4",333,null,"=Vlookup(\"333\",Translations!F3:H508,1,0)","Status","Status","Status","Status"]
["Grant Mangement_4",334,null,"=Vlookup(\"334\",Translations!F3:H508,1,0)","Comments","Comments","Comments","Comments"]
["Grant Mangement_4",335,null,"=Vlookup(\"335\",Translations!F3:H508,1,0)","PR Audit Report","PR Audit Report","Rapport d'audit du RP","Informe de Auditoría del RP"]
["Grant Mangement_4",336,null,"=Vlookup(\"336\",Translations!F3:H508,1,0)","Annual Financial Report (AFR) / Enhanced Financial Report (EFR)","Annual Financial Report (AFR) / Enhanced Financial Report (EFR)","Rapport financier annuel / Rapport financier renforcé","Informe financiero anual (AFR) / Informe financiero detallado  (EFR)"]
["PR-LFA Evaluation_5",337,null,"=Vlookup(\"337\",Translations!F3:H508,1,0)","Progress Report with Disbursement Request","Progress Report with Disbursement Request","Rapport périodique sur les résultats actuels et demande de décaissement","Informe de progreso y solicitud de desembolso"]
["PR-LFA Evaluation_5",338,null,"=Vlookup(\"338\",Translations!F3:H508,1,0)","Section 5: Principal Recipient and LFA Evaluation of Overall Performance","Section 5: Principal Recipient and LFA Evaluation of Overall Performance","Section 5 : Évaluation des résultats globaux par le récipiendaire principal et l'agent local du Fonds","Sección 5: Evaluación del RP y el ALF del desempeño general"]
["PR-LFA Evaluation_5",339,null,"=Vlookup(\"339\",Translations!F3:H508,1,0)","A.  Principal Recipient's Overall Self-Evaluation of Grant Performance (including a summary of how financial performance is linked to programmatic achievements)","A.  Principal Recipient's Overall Self-Evaluation of Grant Performance (including a summary of how financial performance is linked to programmatic achievements)","A. Autoévaluation globale des résultats de la subvention par le RP (y compris un résumé des liens entre les résultats financiers et programmatiques)","A.  Autoevaluación general del RP del desempeño de la subvención (incluido un resumen sobre los vínculos entre el desempeño financiero y los logros programáticos)"]
["PR-LFA Evaluation_5",340,null,"=Vlookup(\"340\",Translations!F3:H508,1,0)","!  The self-evaluation should be undertaken by taking into account programmatic achievements, financial performance and program issues in various functional areas (M&E, Finance, Procurement, and Program Management, including management of Sub-Recipients).  See Guidelines for more detailed guidance.","!  The self-evaluation should be undertaken by taking into account programmatic achievements, financial performance and program issues in various functional areas (M&E, Finance, Procurement, and Program Management, including management of Sub-Recipients).  See Guidelines for more detailed guidance.","! L'autoévaluation doit prendre en compte les résultats programmatiques et financiers, ainsi que les problèmes rencontrés dans les différents domaines fonctionnels du programme (S&É, Finances, Achats et Gestion de programme, notamment la gestion des sous-récipiendaires). Voir les directives pour des orientations détaillées.","!  La autoevaluación debe realizarse teniendo en cuenta los logros programáticos, el desempeño financiero y cuestiones relativas a diversas áreas funcionales del programa (seguimiento y evaluación, finanzas, adquisiciones y gestión de programas, incluida la gestión de los subreceptores). Para obtener orientación más detallada, consulte las Directrices."]
["PR-LFA Evaluation_5",341,null,"=Vlookup(\"341\",Translations!F3:H508,1,0)","B.  Planned Changes in the Program, if any","B.  Planned Changes in the Program, if any","B. Modifications prévues du programme, le cas échéant","B.  Modificaciones previstas en el programa, si las hubiera"]
["PR-LFA Evaluation_5",342,null,"=Vlookup(\"342\",Translations!F3:H508,1,0)","C.  External factors beyond the control of the Principal Recipient that have impacted or may impact the Program","C.  External factors beyond the control of the Principal Recipient that have impacted or may impact the Program","C.  Facteurs externes échappant au contrôle du récipiendaire principal et ayant eu ou étant susceptibles d’avoir une incidence sur le programme","C.  Factores externos fuera del control de los RP que hayan afectado o puedan afectar al programa"]
["PR-LFA Evaluation_5",343,null,"=Vlookup(\"343\",Translations!F3:H508,1,0)","C.  External factors beyond the control of the Principal Recipient that have impacted or may impact the Program","C.  External factors beyond the control of the Principal Recipient that have impacted or may impact the Program","C.  Facteurs externes échappant au contrôle du récipiendaire principal et ayant eu ou étant susceptibles d’avoir une incidence sur le programme","C.  Factores externos fuera del control de los RP que hayan afectado o puedan afectar al programa"]
["PR-LFA Evaluation_5",344,null,"=Vlookup(\"344\",Translations!F3:H508,1,0)","For LFA Use Only","For LFA Use Only","For LFA Use Only","For LFA Use Only"]
["PR-LFA Evaluation_5",345,null,"=Vlookup(\"345\",Translations!F3:H508,1,0)","A. LFA  Overall Evaluation and Rating of Grant Performance (including a summary of how financial performance is linked to programmatic achievements)","A. LFA  Overall Evaluation and Rating of Grant Performance (including a summary of how financial performance is linked to programmatic achievements)","A. LFA  Overall Evaluation and Rating of Grant Performance (including a summary of how financial performance is linked to programmatic achievements)","A. LFA  Overall Evaluation and Rating of Grant Performance (including a summary of how financial performance is linked to programmatic achievements)"]
["PR-LFA Evaluation_5",346,null,"=Vlookup(\"346\",Translations!F3:H508,1,0)","!  The evaluation should be undertaken by taking into account programmatic achievements, financial performance and program issues in various functional areas (M&E, Finance, Procurement, and Program Management, including management of Sub-Recipients).  See Guidelines for more detailed guidance on the completion of this section.","!  The evaluation should be undertaken by taking into account programmatic achievements, financial performance and program issues in various functional areas (M&E, Finance, Procurement, and Program Management, including management of Sub-Recipients).  See Guidelines for more detailed guidance on the completion of this section.","!  The evaluation should be undertaken by taking into account programmatic achievements, financial performance and program issues in various functional areas (M&E, Finance, Procurement, and Program Management, including management of Sub-Recipients).  See Guidelines for more detailed guidance on the completion of this section.","!  The evaluation should be undertaken by taking into account programmatic achievements, financial performance and program issues in various functional areas (M&E, Finance, Procurement, and Program Management, including management of Sub-Recipients).  See Guidelines for more detailed guidance on the completion of this section."]
["PR-LFA Evaluation_5",347,null,"=Vlookup(\"347\",Translations!F3:H508,1,0)","Indicator rating","Indicator rating","Indicator rating","Indicator rating"]
["PR-LFA Evaluation_5",348,null,"=Vlookup(\"348\",Translations!F3:H508,1,0)","Any major management issues resulting in downgrade?","Any major management issues resulting in downgrade?","Any major management issues resulting in downgrade?","Any major management issues resulting in downgrade?"]
["PR-LFA Evaluation_5",349,null,"=Vlookup(\"349\",Translations!F3:H508,1,0)","Overall Grant Rating","Overall Grant Rating","Overall Grant Rating","Overall Grant Rating"]
["PR-LFA Evaluation_5",350,null,"=Vlookup(\"350\",Translations!F3:H508,1,0)","B.  LFA comments on the Principal Recipient planned changes in the program, if any","B.  LFA comments on the Principal Recipient planned changes in the program, if any","B.  LFA comments on the Principal Recipient planned changes in the program, if any","B.  LFA comments on the Principal Recipient planned changes in the program, if any"]
["PR-LFA Evaluation_5",351,null,"=Vlookup(\"351\",Translations!F3:H508,1,0)","C.  LFA Comments on External Factors Beyond Control of the Principal Recipients that have impacted or may impact program","C.  LFA Comments on External Factors Beyond Control of the Principal Recipients that have impacted or may impact program","C.  LFA Comments on External Factors Beyond Control of the Principal Recipients that have impacted or may impact program","C.  LFA Comments on External Factors Beyond Control of the Principal Recipients that have impacted or may impact program"]
["LFA_Findings&Recommendations_6",352,null,"=Vlookup(\"352\",Translations!F3:H508,1,0)","Progress Report with Disbursement Request","Progress Report with Disbursement Request","Rapport périodique sur les résultats actuels et demande de décaissement","Progress Report with Disbursement Request"]
["LFA_Findings&Recommendations_6",353,null,"=Vlookup(\"353\",Translations!F3:H508,1,0)","For LFA Use Only","For LFA Use Only","For LFA Use Only","For LFA Use Only"]
["LFA_Findings&Recommendations_6",354,null,"=Vlookup(\"354\",Translations!F3:H508,1,0)","Section 6: LFA Findings & Recommendations  ","Section 6: LFA Findings & Recommendations  ","Section 6: LFA Findings & Recommendations  ","Section 6: LFA Findings & Recommendations  "]
["LFA_Findings&Recommendations_6",355,null,"=Vlookup(\"355\",Translations!F3:H508,1,0)","! Based on the information provided in the previous sections and your understanding of the grant, please summarise any important management issues, proposing a recommendation for each.\nNB: an issue is considered as 'important' if it impacts or is likely to impact program implementation and results.                                                                                                                                                                                                          ! Instead of repeating detailed descriptions of issues covered in other sections, it is acceptable to state the issue and reference the section containing the details.","! Based on the information provided in the previous sections and your understanding of the grant, please summarise any important management issues, proposing a recommendation for each.\nNB: an issue is considered as 'important' if it impacts or is likely to impact program implementation and results.                                                                                                                                                                                                          ! Instead of repeating detailed descriptions of issues covered in other sections, it is acceptable to state the issue and reference the section containing the details.","! Based on the information provided in the previous sections and your understanding of the grant, please summarise any important management issues, proposing a recommendation for each.\nNB: an issue is considered as 'important' if it impacts or is likely to impact program implementation and results.                                                                                                                                                                                                          ! Instead of repeating detailed descriptions of issues covered in other sections, it is acceptable to state the issue and reference the section containing the details.","! Based on the information provided in the previous sections and your understanding of the grant, please summarise any important management issues, proposing a recommendation for each.\nNB: an issue is considered as 'important' if it impacts or is likely to impact program implementation and results.                                                                                                                                                                                                          ! Instead of repeating detailed descriptions of issues covered in other sections, it is acceptable to state the issue and reference the section containing the details."]
["LFA_Findings&Recommendations_6",356,null,"=Vlookup(\"356\",Translations!F3:H508,1,0)","Functional Areas","Functional Areas","Functional Areas","Functional Areas"]
["LFA_Findings&Recommendations_6",357,null,"=Vlookup(\"357\",Translations!F3:H508,1,0)","Description of Identified Issues \n(in order of importance)","Description of Identified Issues \n(in order of importance)","Description of Identified Issues \n(in order of importance)","Description of Identified Issues \n(in order of importance)"]
["LFA_Findings&Recommendations_6",358,null,"=Vlookup(\"358\",Translations!F3:H508,1,0)","LFA Recommendations \n(in order of importance)","LFA Recommendations \n(in order of importance)","LFA Recommendations \n(in order of importance)","LFA Recommendations \n(in order of importance)"]
["Cash Forecast_8A",359,null,"=Vlookup(\"359\",Translations!F3:H508,1,0)","Progress Report with Disbursement Request","Progress Report with Disbursement Request","Rapport périodique sur les résultats actuels et demande de décaissement","Informe de progreso y solicitud de desembolso"]
["Cash Forecast_8A",360,null,"=Vlookup(\"360\",Translations!F3:H508,1,0)","Section 8A: The Global Fund  Forecast Template","Section 8A: The Global Fund  Forecast Template","Section 8A : Modèle de prévision annuelle du Fonds mondial","Sección 8A: Plantilla de previsión anual del Fondo Mundial"]
["Cash Forecast_8A",361,null,"=Vlookup(\"361\",Translations!F3:H508,1,0)","Disbursement Request Execution Period","Disbursement Request Execution Period","Demande de décaissement  - période de prévision:","Solicitud de desembolso – Periodo de ejecución:"]
["Cash Forecast_8A",362,null,"=Vlookup(\"362\",Translations!F3:H508,1,0)","End Date:","End Date:","Date de fin :","Fecha final:"]
["Cash Forecast_8A",363,null,"=Vlookup(\"363\",Translations!F3:H508,1,0)","Disbursement Request Buffer Period","Disbursement Request Buffer Period","Demande de décaissement  - Période additionnelle convenue:","Solicitud de desembolso – Periodo de reserva (colchón) :"]
["Cash Forecast_8A",364,null,"=Vlookup(\"364\",Translations!F3:H508,1,0)","End Date:","End Date:","Date de fin :","Fecha final:"]
["Cash Forecast_8A",365,null,"=Vlookup(\"365\",Translations!F3:H508,1,0)","Has the LFA Verified the Principal Recipient Forecast?","Has the LFA Verified the Principal Recipient Forecast?","Has the LFA Verified the Principal Recipient Forecast?","Has the LFA Verified the Principal Recipient Forecast?"]
["Cash Forecast_8A",366,null,"=Vlookup(\"366\",Translations!F3:H508,1,0)","Summary Breakdown by Cost Grouping","Summary Breakdown by Cost Grouping","Ventilation récapitulative par groupes de coûts","Resumen desglosado por grupo de costos"]
["Cash Forecast_8A",367,null,"=Vlookup(\"367\",Translations!F3:H508,1,0)","Costing Dimension (Cost Grouping)","Costing Dimension (Cost Grouping)","'Évaluation des coûts (groupes de coûts)","Dimensión de cálculo de costos (grupos de costos)"]
["Cash Forecast_8A",368,null,"=Vlookup(\"368\",Translations!F3:H508,1,0)","Budget for Forecast Period","Budget for Forecast Period","Budget pour la période de prévision","Presupuesto para el periodo de previsión"]
["Cash Forecast_8A",369,null,"=Vlookup(\"369\",Translations!F3:H508,1,0)","Principal Recipient Forecast for the period (not including the Buffer)","Principal Recipient Forecast for the period (not including the Buffer)","Montant prévu pour la période de prévision","Previsión del RP para el periodo (excluida el periodo de reserva - colchón)"]
["Cash Forecast_8A",370,null,"=Vlookup(\"370\",Translations!F3:H508,1,0)","Budget for the Buffer Period","Budget for the Buffer Period","Budget pour la période additionnelle","Presupuesto para el periodo de reserva (colchón)"]
["Cash Forecast_8A",371,null,"=Vlookup(\"371\",Translations!F3:H508,1,0)","Principal Recipient Forecast for the Buffer Period","Principal Recipient Forecast for the Buffer Period","Montant prévu pour la période additionnelle","Previsión para el periodo de reserva (colchón)"]
["Cash Forecast_8A",372,null,"=Vlookup(\"372\",Translations!F3:H508,1,0)","Total Principal Recipient Forecast (including Buffer)","Total Principal Recipient Forecast (including Buffer)","Budget total disponible (période additionnelle comprise)","Previsión total del RP (incluida la estabilización)"]
["Cash Forecast_8A",373,null,"=Vlookup(\"373\",Translations!F3:H508,1,0)","Comments","Comments","Commentaires","Comentarios"]
["Cash Forecast_8A",374,null,"=Vlookup(\"374\",Translations!F3:H508,1,0)","Grand Total","Grand Total","Total général","Total general"]
["Cash Forecast_8A",375,null,"=Vlookup(\"375\",Translations!F3:H508,1,0)","Local Fund Agent Adjusted Principal Recipient Forecast for the period (not including the Buffer)","Local Fund Agent Adjusted Principal Recipient Forecast for the period (not including the Buffer)","Local Fund Agent Adjusted Principal Recipient Forecast for the period (not including the Buffer)","Local Fund Agent Adjusted Principal Recipient Forecast for the period (not including the Buffer)"]
["Cash Forecast_8A",376,null,"=Vlookup(\"376\",Translations!F3:H508,1,0)","Local Fund Agent Adjusted Principal Recipient Forecast for the Buffer Period","Local Fund Agent Adjusted Principal Recipient Forecast for the Buffer Period","Local Fund Agent Adjusted Principal Recipient Forecast for the Buffer Period","Local Fund Agent Adjusted Principal Recipient Forecast for the Buffer Period"]
["Cash Forecast_8A",377,null,"=Vlookup(\"377\",Translations!F3:H508,1,0)","Local Fund Agent - Adjusted Forecast (including the buffer)","Local Fund Agent - Adjusted Forecast (including the buffer)","Local Fund Agent - Adjusted Forecast (including the buffer)","Local Fund Agent - Adjusted Forecast (including the buffer)"]
["Cash Forecast_8A",378,null,"=Vlookup(\"378\",Translations!F3:H508,1,0)","Comments","Comments","LFA Comments","Comments"]
["Cash Forecast_8A",379,null,"=Vlookup(\"379\",Translations!F3:H508,1,0)","Summary Breakdown by Interventions","Summary Breakdown by Interventions","B. RFA RÉCAPITULATIF - VENTILATION PAR INTERVENTIONS","RESUMEN DESGLOSADO DEL INFORME FINANCIERO ANUAL POR INTERVENCIONESs"]
["Cash Forecast_8A",380,null,"=Vlookup(\"380\",Translations!F3:H508,1,0)","Modular Approach - Modules","Modular Approach - Modules","Démarche modulaire - Modules","Enfoque modular: módulos"]
["Cash Forecast_8A",381,null,"=Vlookup(\"381\",Translations!F3:H508,1,0)","Modular Approach - Interventions","Modular Approach - Interventions","Démarche modulaire - Interventions","Enfoque modular: intervenciones"]
["Cash Forecast_8A",382,null,"=Vlookup(\"382\",Translations!F3:H508,1,0)","Budget for Forecast Period","Budget for Forecast Period","Budget pour la période de prévision","Presupuesto para el periodo de previsión"]
["Cash Forecast_8A",383,null,"=Vlookup(\"383\",Translations!F3:H508,1,0)","Principal Recipient Forecast for the period (not including the Buffer)","Principal Recipient Forecast for the period (not including the Buffer)","Montant prévu pour la période de prévision","Previsión del RP para el periodo (excluida el periodo de reserva - colchón)"]
["Cash Forecast_8A",384,null,"=Vlookup(\"384\",Translations!F3:H508,1,0)","Budget for the Buffer Period","Budget for the Buffer Period","Budget pour la période additionnelle","Presupuesto para el periodo de reserva (colchón)"]
["Cash Forecast_8A",385,null,"=Vlookup(\"385\",Translations!F3:H508,1,0)",{"$f":"IF(LangOffset=0,F387,IF(LangOffset=1,G387,IF(LangOffset=2,H387)))","v":"Principal Recipient Forecast for the Buffer Period"},"Principal Recipient Forecast for the Buffer Period","Montant prévu pour la période additionnelle","Previsión para el periodo de reserva (colchón)"]
["Cash Forecast_8A",386,null,{"$f":"\"=Vlookup(\"\"\"&B388&\"\"\",Translations!F3:H508,1,0)\"","v":"=Vlookup(\"386\",Translations!F3:H508,1,0)"},"Total Principal Recipient Forecast (including Buffer)","Total Principal Recipient Forecast (including Buffer)","Budget total disponible (période additionnelle comprise)","Previsión total del RP (incluida la estabilización)"]
["Cash Forecast_8A",387,null,"=Vlookup(\"387\",Translations!F3:H508,1,0)","Comments","Comments","Commentaires","Comentarios"]
["Cash Forecast_8A",388,null,"=Vlookup(\"388\",Translations!F3:H508,1,0)","Local Fund Agent Adjusted Principal Recipient Forecast for the period (not including the Buffer)","Local Fund Agent Adjusted Principal Recipient Forecast for the period (not including the Buffer)","Local Fund Agent Adjusted Principal Recipient Forecast for the period (not including the Buffer)","Local Fund Agent Adjusted Principal Recipient Forecast for the period (not including the Buffer)"]
["Cash Forecast_8A",389,null,"=Vlookup(\"389\",Translations!F3:H508,1,0)","Local Fund Agent Adjusted Principal Recipient Forecast for the Buffer Period","Local Fund Agent Adjusted Principal Recipient Forecast for the Buffer Period","Local Fund Agent Adjusted Principal Recipient Forecast for the Buffer Period","Local Fund Agent Adjusted Principal Recipient Forecast for the Buffer Period"]
["Cash Forecast_8A",390,null,"=Vlookup(\"390\",Translations!F3:H508,1,0)","Local Fund Agent - Adjusted Forecast (including the buffer)","Local Fund Agent - Adjusted Forecast (including the buffer)","Local Fund Agent - Adjusted Forecast (including the buffer)","Local Fund Agent - Adjusted Forecast (including the buffer)"]
["Cash Forecast_8A",391,null,"=Vlookup(\"391\",Translations!F3:H508,1,0)","Comments","Comments","LFA Comments","Comments"]
["Cash Forecast_8A",392,null,"=Vlookup(\"392\",Translations!F3:H508,1,0)","Summary Breakdown by Implementing Entity","Summary Breakdown by Implementing Entity","C. RFA RÉCAPITULATIF - VENTILATION PAR ENTITÉ DE MISE EN ŒUVRE","RESUMEN DESGLOSADO DEL INFORME FINANCIERO ANUAL POR ENTIDAD EJECUTORA DE PROGRAMAS"]
["Cash Forecast_8A",393,null,"=Vlookup(\"393\",Translations!F3:H508,1,0)","Implementing Entity","Implementing Entity","Entité de mise en œuvre","Entidad ejecutora"]
["Cash Forecast_8A",394,null,"=Vlookup(\"394\",Translations!F3:H508,1,0)","Budget for Forecast Period","Budget for Forecast Period","Budget pour la période de prévision","Presupuesto para el periodo de previsión"]
["Cash Forecast_8A",395,null,"=Vlookup(\"395\",Translations!F3:H508,1,0)","Principal Recipient Forecast for the period (not including the Buffer)","Principal Recipient Forecast for the period (not including the Buffer)","Montant prévu pour la période de prévision","Previsión del RP para el periodo (excluida el periodo de reserva - colchón)"]
["Cash Forecast_8A",396,null,"=Vlookup(\"396\",Translations!F3:H508,1,0)","Budget for the Buffer Period","Budget for the Buffer Period","Budget pour la période additionnelle","Presupuesto para el periodo de reserva (colchón)"]
["Cash Forecast_8A",397,null,"=Vlookup(\"397\",Translations!F3:H508,1,0)","Principal Recipient Forecast for the Buffer Period","Principal Recipient Forecast for the Buffer Period","Montant prévu pour la période additionnelle","Previsión para el periodo de reserva (colchón)"]
["Cash Forecast_8A",398,null,"=Vlookup(\"398\",Translations!F3:H508,1,0)","Total Principal Recipient Forecast (including Buffer)","Total Principal Recipient Forecast (including Buffer)","Budget total disponible (période additionnelle comprise)","Previsión total del RP (incluida la estabilización)"]
["Cash Forecast_8A",399,null,"=Vlookup(\"399\",Translations!F3:H508,1,0)","Comments","Comments","Commentaires","Comentarios"]
["Cash Forecast_8A",400,null,"=Vlookup(\"400\",Translations!F3:H508,1,0)","Local Fund Agent Adjusted Principal Recipient Forecast for the period (not including the Buffer)","Local Fund Agent Adjusted Principal Recipient Forecast for the period (not including the Buffer)","Local Fund Agent Adjusted Principal Recipient Forecast for the period (not including the Buffer)","Local Fund Agent Adjusted Principal Recipient Forecast for the period (not including the Buffer)"]
["Cash Forecast_8A",401,null,"=Vlookup(\"401\",Translations!F3:H508,1,0)","Local Fund Agent Adjusted Principal Recipient Forecast for the Buffer Period","Local Fund Agent Adjusted Principal Recipient Forecast for the Buffer Period","Local Fund Agent Adjusted Principal Recipient Forecast for the Buffer Period","Local Fund Agent Adjusted Principal Recipient Forecast for the Buffer Period"]
["Cash Forecast_8A",402,null,"=Vlookup(\"402\",Translations!F3:H508,1,0)","Local Fund Agent - Adjusted Forecast (including the buffer)","Local Fund Agent - Adjusted Forecast (including the buffer)","Local Fund Agent - Adjusted Forecast (including the buffer)","Local Fund Agent - Adjusted Forecast (including the buffer)"]
["Cash Forecast_8A",403,null,"=Vlookup(\"403\",Translations!F3:H508,1,0)","Comments","Comments","LFA Comments","Comments"]
["Cash Forecast_8A",404,null,"=Vlookup(\"404\",Translations!F3:H508,1,0)","Validation of Grand Total ","Validation of Grand Total ","Validation du total général ","Validation of Grand Total "]
["Cash Forecast_8A",405,null,"=Vlookup(\"405\",Translations!F3:H508,1,0)","Summary Breakdown by Quarter","Summary Breakdown by Quarter","Summary Breakdown by Quarter","Summary Breakdown by Quarter"]
["Cash Forecast_8A",406,null,"=Vlookup(\"406\",Translations!F3:H508,1,0)","Calendar Period ","Calendar Period ","Calendar Period ","Calendar Period "]
["Cash Forecast_8A",407,null,"=Vlookup(\"407\",Translations!F3:H508,1,0)","Principal Recipient","Principal Recipient","Principal Recipient","Principal Recipient"]
["Cash Forecast_8A",408,null,"=Vlookup(\"408\",Translations!F3:H508,1,0)","Total","Total","Total","Total"]
["Cash Forecast_8A",409,null,"=Vlookup(\"409\",Translations!F3:H508,1,0)","Local Fund Agent","Local Fund Agent","Local Fund Agent","Local Fund Agent"]
["Cash Forecast_8A",410,null,"=Vlookup(\"410\",Translations!F3:H508,1,0)","Total","Total","Total","Total"]
["Cash Forecast_8A",411,null,"=Vlookup(\"411\",Translations!F3:H508,1,0)","Validation of Principal Recipient Grand Total ","Validation of Principal Recipient Grand Total ","Validation du total général ","Validación del total general"]
["Cash Forecast_8A",412,null,"=Vlookup(\"412\",Translations!F3:H508,1,0)","Validation of Local Fund Agent Grand Total ","Validation of Local Fund Agent Grand Total ","Validation of Local Fund Agent Grand Total ","Validation of Local Fund Agent Grand Total "]
["Request and Recommendation_8B",413,null,"=Vlookup(\"413\",Translations!F3:H508,1,0)","Progress Report with Disbursement Request","Progress Report with Disbursement Request","Progress Report with Disbursement Request","Progress Report with Disbursement Request"]
["Request and Recommendation_8B",414,null,"=Vlookup(\"414\",Translations!F3:H508,1,0)","Section 8B.  Disbursement Request and Recommendation","Section 8B.  Disbursement Request and Recommendation","Section 8B.  Disbursement Request and Recommendation","Section 8B.  Disbursement Request and Recommendation"]
["Request and Recommendation_8B",415,null,"=Vlookup(\"415\",Translations!F3:H508,1,0)","Disbursement Request Execution Period","Disbursement Request Execution Period","Disbursement Request Execution Period","Disbursement Request Execution Period"]
["Request and Recommendation_8B",416,null,"=Vlookup(\"416\",Translations!F3:H508,1,0)","End Date:","End Date:","End Date:","End Date:"]
["Request and Recommendation_8B",417,null,"=Vlookup(\"417\",Translations!F3:H508,1,0)","Disbursement Request Buffer Period","Disbursement Request Buffer Period","Disbursement Request Buffer Period","Disbursement Request Buffer Period"]
["Request and Recommendation_8B",418,null,"=Vlookup(\"418\",Translations!F3:H508,1,0)","End Date:","End Date:","End Date:","End Date:"]
["Request and Recommendation_8B",419,null,"=Vlookup(\"419\",Translations!F3:H508,1,0)","Total forecasted net cash expenditures by the Principal Recipient for the period immediately following the period covered by the Progress Update:","Total forecasted net cash expenditures by the Principal Recipient for the period immediately following the period covered by the Progress Update:","Total forecasted net cash expenditures by the Principal Recipient for the period immediately following the period covered by the Progress Update:","Total forecasted net cash expenditures by the Principal Recipient for the period immediately following the period covered by the Progress Update:"]
["Request and Recommendation_8B",420,null,"=Vlookup(\"420\",Translations!F3:H508,1,0)","Principal RECIPIENT","Principal RECIPIENT","Principal RECIPIENT","Principal RECIPIENT"]
["Request and Recommendation_8B",421,null,"=Vlookup(\"421\",Translations!F3:H508,1,0)","Explanation of any significant variance between forecasted amounts and amounts as originally budgeted.  Please explain any significant variance (based on your judgment) between the forecasted amounts and the amounts as per approved budgets.  Please specify the main factors and related amounts that are the major drivers of the variance. ","Explanation of any significant variance between forecasted amounts and amounts as originally budgeted.  Please explain any significant variance (based on your judgment) between the forecasted amounts and the amounts as per approved budgets.  Please specify the main factors and related amounts that are the major drivers of the variance. ","Explanation of any significant variance between forecasted amounts and amounts as originally budgeted.  Please explain any significant variance (based on your judgment) between the forecasted amounts and the amounts as per approved budgets.  Please specify the main factors and related amounts that are the major drivers of the variance. ","Explanation of any significant variance between forecasted amounts and amounts as originally budgeted.  Please explain any significant variance (based on your judgment) between the forecasted amounts and the amounts as per approved budgets.  Please specify the main factors and related amounts that are the major drivers of the variance. "]
["Request and Recommendation_8B",422,null,"=Vlookup(\"422\",Translations!F3:H508,1,0)","Execution Period","Execution Period","Execution Period","Execution Period"]
["Request and Recommendation_8B",423,null,"=Vlookup(\"423\",Translations!F3:H508,1,0)","Total","Total","Total","Total"]
["Request and Recommendation_8B",424,null,"=Vlookup(\"424\",Translations!F3:H508,1,0)","Buffer Period","Buffer Period","Buffer Period","Buffer Period"]
["Request and Recommendation_8B",425,null,"=Vlookup(\"425\",Translations!F3:H508,1,0)","Total","Total","Total","Total"]
["Request and Recommendation_8B",426,null,"=Vlookup(\"426\",Translations!F3:H508,1,0)","Calendar Period","Calendar Period","Calendar Period","Calendar Period"]
["Request and Recommendation_8B",427,null,"=Vlookup(\"427\",Translations!F3:H508,1,0)","Approved Budget","Approved Budget","Approved Budget","Approved Budget"]
["Request and Recommendation_8B",428,null,"=Vlookup(\"428\",Translations!F3:H508,1,0)","Principal Recipient Forecast","Principal Recipient Forecast","Principal Recipient Forecast","Principal Recipient Forecast"]
["Request and Recommendation_8B",429,null,"=Vlookup(\"429\",Translations!F3:H508,1,0)","Cash Balance: End of period covered by Progress Update (Item 5.3 in PRLFA Cash Reconciliation):","Cash Balance: End of period covered by Progress Update (Item 5.3 in PRLFA Cash Reconciliation):","Solde de trésorerie : fin de la période couverte par le rapport sur les résultats actuels (ligne 5.3 du rapprochement de la trésorerie du récipiendaire principal).","Saldos de caja de cierre totales: final del periodo del informe (Item 5.3 in PRLFA Cash Reconciliation):"]
["Request and Recommendation_8B",430,null,"=Vlookup(\"430\",Translations!F3:H508,1,0)","Cash in Transit for the reporting period (Disbursements to PR:","Cash in Transit for the reporting period (Disbursements to PR:","Fonds en transit pour la période de rapport (décaissements  effectués en faveur du récipiendaire principal). ","Efectivo en tránsito durante el periodo del informe (Desembolso al Receptor Principal)"]
["Request and Recommendation_8B",431,null,"=Vlookup(\"431\",Translations!F3:H508,1,0)","Cash in Transit for the reporting period (Third party disbursements):","Cash in Transit for the reporting period (Third party disbursements):","Fonds en transit pour la période de rapport (décaissements effectués a un tiers). ","Efectivo en tránsito durante el periodo del informe (Desembolso a terceros)"]
["Request and Recommendation_8B",432,null,"=Vlookup(\"432\",Translations!F3:H508,1,0)","Cash in Transit after the current reporting period (Disbursements to PR","Cash in Transit after the current reporting period (Disbursements to PR","Fonds en transit après la période de rapport en cours : (décaissements  effectués en faveur du récipiendaire principal).","Efectivo en tránsito tras el periodo del informe en curso (desembolsos a Receptores principales) "]
["Request and Recommendation_8B",433,null,"=Vlookup(\"433\",Translations!F3:H508,1,0)","Cash in Transit after the current reporting period (Third party disbursements) :","Cash in Transit after the current reporting period (Third party disbursements) :","Fonds en transit après la période de rapport en cours » : (décaissements effectués en faveur d’un tiers au nom du récipiendaire principal).","Efectivo en tránsito tras el periodo del informe en curso  (desembolsos a terceros):"]
["Request and Recommendation_8B",434,null,"=Vlookup(\"434\",Translations!F3:H508,1,0)","Disbursement Request","Disbursement Request","Demande de décaissement","Solicitud de desembolso"]
["Request and Recommendation_8B",435,null,"=Vlookup(\"435\",Translations!F3:H508,1,0)","Forecasted Disbursement to Principal Recipient","Forecasted Disbursement to Principal Recipient","Forecasted Disbursement to Principal Recipient","Forecasted Disbursement to Principal Recipient"]
["Request and Recommendation_8B",436,null,"=Vlookup(\"436\",Translations!F3:H508,1,0)","Forecasted Direct Disbursement","Forecasted Direct Disbursement","Forecasted Direct Disbursement","Forecasted Direct Disbursement"]
["Request and Recommendation_8B",437,null,"=Vlookup(\"437\",Translations!F3:H508,1,0)","PPM/Wambo.org  forecasted disbursement","PPM/Wambo.org  forecasted disbursement","PPM/Wambo.org  forecasted disbursement","PPM/Wambo.org  forecasted disbursement"]
["Request and Recommendation_8B",438,null,"=Vlookup(\"438\",Translations!F3:H508,1,0)","Disbursement Request","Disbursement Request","Disbursement Request","Disbursement Request"]
["Request and Recommendation_8B",439,null,"=Vlookup(\"439\",Translations!F3:H508,1,0)","For LFA Use Only","For LFA Use Only","For LFA Use Only","For LFA Use Only"]
["Request and Recommendation_8B",440,null,"=Vlookup(\"440\",Translations!F3:H508,1,0)","LFA comments on PR's explanation of any significant variance between forecasted amounts and amounts as originally budgeted.","LFA comments on PR's explanation of any significant variance between forecasted amounts and amounts as originally budgeted.","LFA comments on PR's explanation of any significant variance between forecasted amounts and amounts as originally budgeted.","LFA comments on PR's explanation of any significant variance between forecasted amounts and amounts as originally budgeted."]
["Request and Recommendation_8B",441,null,"=Vlookup(\"441\",Translations!F3:H508,1,0)","Execution Period","Execution Period","Execution Period","Execution Period"]
["Request and Recommendation_8B",442,null,"=Vlookup(\"442\",Translations!F3:H508,1,0)","Total","Total","Total","Total"]
["Request and Recommendation_8B",443,null,"=Vlookup(\"443\",Translations!F3:H508,1,0)","Buffer Period","Buffer Period","Buffer Period","Buffer Period"]
["Request and Recommendation_8B",444,null,"=Vlookup(\"444\",Translations!F3:H508,1,0)","Total","Total","Total","Total"]
["Request and Recommendation_8B",445,null,"=Vlookup(\"445\",Translations!F3:H508,1,0)","Calendar Period","Calendar Period","Calendar Period","Calendar Period"]
["Request and Recommendation_8B",446,null,"=Vlookup(\"446\",Translations!F3:H508,1,0)","Approved Budget","Approved Budget","Approved Budget","Approved Budget"]
["Request and Recommendation_8B",447,null,"=Vlookup(\"447\",Translations!F3:H508,1,0)","Local Fund Agent  Forecast","Local Fund Agent  Forecast","Local Fund Agent  Forecast","Local Fund Agent  Forecast"]
["Request and Recommendation_8B",448,null,"=Vlookup(\"448\",Translations!F3:H508,1,0)","Cash Balance: End of period covered by Progress Update (Item 5.3 in PRLFA Cash Reconciliation):","Cash Balance: End of period covered by Progress Update (Item 5.3 in PRLFA Cash Reconciliation):","Cash Balance: End of period covered by Progress Update (Item 5.3 in PRLFA Cash Reconciliation):","Cash Balance: End of period covered by Progress Update (Item 5.3 in PRLFA Cash Reconciliation):"]
["Request and Recommendation_8B",449,null,"=Vlookup(\"449\",Translations!F3:H508,1,0)",{"$f":"IF(LangOffset=0,F451,IF(LangOffset=1,G451,IF(LangOffset=2,H451)))","v":"Cash in Transit for the reporting period (Disbursements to PR:"},"Cash in Transit for the reporting period (Disbursements to PR:","Cash in Transit for the reporting period (Disbursements to PR:","Cash in Transit for the reporting period (Disbursements to PR:"]
["Request and Recommendation_8B",450,null,{"$f":"\"=Vlookup(\"\"\"&B452&\"\"\",Translations!F3:H508,1,0)\"","v":"=Vlookup(\"450\",Translations!F3:H508,1,0)"},"Cash in Transit for the reporting period (Third party disbursements):","Cash in Transit for the reporting period (Third party disbursements):","Cash in Transit for the reporting period (Third party disbursements):","Cash in Transit for the reporting period (Third party disbursements):"]
["Request and Recommendation_8B",451,null,"=Vlookup(\"451\",Translations!F3:H508,1,0)","Cash in Transit after the current reporting period (Disbursements to PR:","Cash in Transit after the current reporting period (Disbursements to PR:","Cash in Transit after the current reporting period (Disbursements to PR:","Cash in Transit after the current reporting period (Disbursements to PR"]
["Request and Recommendation_8B",452,null,"=Vlookup(\"452\",Translations!F3:H508,1,0)","Cash in Transit after the current reporting period (Third party disbursements) :","Cash in Transit after the current reporting period (Third party disbursements) :","Cash in Transit after the current reporting period (Third party disbursements) :","Cash in Transit after the current reporting period (Third party disbursements) :"]
["Request and Recommendation_8B",453,null,"=Vlookup(\"453\",Translations!F3:H508,1,0)","Disbursement Request","Disbursement Request","Disbursement Request","Disbursement Request"]
["Request and Recommendation_8B",454,null,"=Vlookup(\"454\",Translations!F3:H508,1,0)","Forecasted Disbursement to Principal Recipient","Forecasted Disbursement to Principal Recipient","Forecasted Disbursement to Principal Recipient","Forecasted Disbursement to Principal Recipient"]
["Request and Recommendation_8B",455,null,"=Vlookup(\"455\",Translations!F3:H508,1,0)","Forecasted Direct Disbursement","Forecasted Direct Disbursement","Forecasted Direct Disbursement","Forecasted Direct Disbursement"]
["Request and Recommendation_8B",456,null,"=Vlookup(\"456\",Translations!F3:H508,1,0)","PPM/Wambo.org  forecasted disbursement","PPM/Wambo.org  forecasted disbursement","PPM/Wambo.org  forecasted disbursement","PPM/Wambo.org  forecasted disbursement"]
["Request and Recommendation_8B",457,null,"=Vlookup(\"457\",Translations!F3:H508,1,0)","Disbursement Request","Disbursement Request","Disbursement Request","Disbursement Request"]
["Request and Recommendation_8B",458,null,"=Vlookup(\"458\",Translations!F3:H508,1,0)","Exchange Rate","Exchange Rate","Exchange Rate","Exchange Rate"]
["Request and Recommendation_8B",459,null,"=Vlookup(\"459\",Translations!F3:H508,1,0)","Rates used by the PR","Rates used by the PR","Rates used by the PR","Rates used by the PR"]
["Request and Recommendation_8B",460,null,"=Vlookup(\"460\",Translations!F3:H508,1,0)","LFA-verified rates","LFA-verified rates","LFA-verified rates","LFA-verified rates"]
["Request and Recommendation_8B",461,null,"=Vlookup(\"461\",Translations!F3:H508,1,0)","Name of local currency, date and source of the exchange rate, and other comments (if appropriate) ","Name of local currency, date and source of the exchange rate, and other comments (if appropriate) ","Name of local currency, date and source of the exchange rate, and other comments (if appropriate) ","Name of local currency, date and source of the exchange rate, and other comments (if appropriate) "]
["Request and Recommendation_8B",462,null,"=Vlookup(\"462\",Translations!F3:H508,1,0)","LFA comments on the exchange rates used by the PR","LFA comments on the exchange rates used by the PR","LFA comments on the exchange rates used by the PR","LFA comments on the exchange rates used by the PR"]
["Request and Recommendation_8B",463,null,"=Vlookup(\"463\",Translations!F3:H508,1,0)","'- used to convert Opening Cash Balance","'- used to convert Opening Cash Balance","'- used to convert Opening Cash Balance","'- used to convert Opening Cash Balance"]
["Request and Recommendation_8B",464,null,"=Vlookup(\"464\",Translations!F3:H508,1,0)",{"$error":"#NAME?"},{"$f":"- used to convert Closing Cash Balance","v":{"$error":"#NAME?"}},{"$f":"- used to convert Closing Cash Balance","v":{"$error":"#NAME?"}},{"$f":"- used to convert Closing Cash Balance","v":{"$error":"#NAME?"}}]
["Request and Recommendation_8B",465,null,"=Vlookup(\"465\",Translations!F3:H508,1,0)",{"$error":"#NAME?"},{"$f":"- used to convert Total PR Cash Outflow for the Progress Update Period","v":{"$error":"#NAME?"}},{"$f":"- used to convert Total PR Cash Outflow for the Progress Update Period","v":{"$error":"#NAME?"}},{"$f":"- used to convert Total PR Cash Outflow for the Progress Update Period","v":{"$error":"#NAME?"}}]
["PR Authorisation_9A",466,null,"=Vlookup(\"466\",Translations!F3:H508,1,0)","Progress Report with Disbursement Request","Progress Report with Disbursement Request","Rapport périodique sur les résultats actuels et demande de décaissement","Progress Report with Disbursement Request"]
["PR Authorisation_9A",467,null,"=Vlookup(\"467\",Translations!F3:H508,1,0)","Section 9A.  Principal Recipient Authorization","Section 9A.  Principal Recipient Authorization","Section 9A.  Principal Recipient Authorization","Sección 9A: Autorización del RP"]
["PR Authorisation_9A",468,null,"=Vlookup(\"468\",Translations!F3:H508,1,0)","Grant Name:","Grant Name:","Nom/numéro de la subvention :","Nombre o número de la subvención:"]
["PR Authorisation_9A",469,null,"=Vlookup(\"469\",Translations!F3:H508,1,0)","Principal Recipient Reporting - Period Covered:","Principal Recipient Reporting - Period Covered:","Période couverte par le rapport sur les résultats actuels :","Periodo de avances programáticos:"]
["PR Authorisation_9A",470,null,"=Vlookup(\"470\",Translations!F3:H508,1,0)","Beginning Date:","Beginning Date:","Date de début :","Fecha de inicio:"]
["PR Authorisation_9A",471,null,"=Vlookup(\"471\",Translations!F3:H508,1,0)","End Date:","End Date:","Date de fin :","Fecha final:"]
["PR Authorisation_9A",472,null,"=Vlookup(\"472\",Translations!F3:H508,1,0)","Disbursement Request Execution Period","Disbursement Request Execution Period","Demande de décaissement  - période de prévision:","Solicitud de desembolso – Periodo de ejecución:"]
["PR Authorisation_9A",473,null,"=Vlookup(\"473\",Translations!F3:H508,1,0)","Beginning Date:","Beginning Date:","Date de début :","Fecha de inicio:"]
["PR Authorisation_9A",474,null,"=Vlookup(\"474\",Translations!F3:H508,1,0)","End Date:","End Date:","Date de fin :","Fecha final:"]
["PR Authorisation_9A",475,null,"=Vlookup(\"475\",Translations!F3:H508,1,0)","Disbursement Request Buffer Period","Disbursement Request Buffer Period","Demande de décaissement  - Période additionnelle convenue:","Solicitud de desembolso – Periodo de reserva (colchón) :"]
["PR Authorisation_9A",476,null,"=Vlookup(\"476\",Translations!F3:H508,1,0)","Beginning Date:","Beginning Date:","Date de début :","Fecha de inicio:"]
["PR Authorisation_9A",477,null,"=Vlookup(\"477\",Translations!F3:H508,1,0)","End Date:","End Date:","Date de fin :","Fecha final:"]
["PR Authorisation_9A",478,null,"=Vlookup(\"478\",Translations!F3:H508,1,0)","Currency:","Currency:","Monnaie Subvention :","Moneda de la subvención:"]
["PR Authorisation_9A",479,null,"=Vlookup(\"479\",Translations!F3:H508,1,0)","Disbursement Request Amount:","Disbursement Request Amount:","Fonds en transit après la période de rapport en cours : (décaissements  effectués en faveur du récipiendaire principal).","Solicitud de desembolso:"]
["PR Authorisation_9A",480,null,"=Vlookup(\"480\",Translations!F3:H508,1,0)","The undersigned acknowledges that: (i) all the information (programmatic, financial, or otherwise) provided in this Progress Update and Disbursement Request is complete and accurate; (ii) funds disbursed in accordance with this request shall be deposited in the bank account specified in the Core Data Forms; and (iii) funds disbursed under the Grant Agreement shall be used in accordance with the Grant Agreement.","The undersigned acknowledges that: (i) all the information (programmatic, financial, or otherwise) provided in this Progress Update and Disbursement Request is complete and accurate; (ii) funds disbursed in accordance with this request shall be deposited in the bank account specified in the Core Data Forms; and (iii) funds disbursed under the Grant Agreement shall be used in accordance with the Grant Agreement.","Le(la) soussigné(e) déclare : i) que tous les renseignements (programmatiques, financiers et autres) fournis dans le présent rapport sur les résultats actuels/demande de décaissement sont complets et exacts ; ii) que les fonds décaissés conformément à la présente demande seront déposés dans le compte bancaire visé dans les formulaires sur les données de base, et iii) que les fonds décaissés au titre de l'accord de subvention seront utilisés conformément à celui-ci.","El abajo firmante reconoce que: (i) toda la información (programática, financiera o de otro tipo) facilitada en el presente informe progreso y solicitud de desembolso es completa y precisa; (ii) los fondos desembolsados conforme a esta solicitud se depositarán en la cuenta bancaria que se detalla en los formularios de datos básicos, y (iii) los fondos desembolsados en el marco del Acuerdo de Subvención se utilizarán con arreglo al mismo."]
["PR Authorisation_9A",481,null,"=Vlookup(\"481\",Translations!F3:H508,1,0)","Signed on behalf of the Principal Recipient:\n(signature of Authorized Designated Representative)","Signed on behalf of the Principal Recipient:\n(signature of Authorized Designated Representative)","Signé au nom du récipiendaire principal :\n(signature du représentant désigné dûment autorisé)","Firmado en representación del Receptor principal:\n(firma del representante autorizado designado)"]
["PR Authorisation_9A",482,null,"=Vlookup(\"482\",Translations!F3:H508,1,0)","Name:","Name:","Nom :","Nombre:"]
["PR Authorisation_9A",483,null,"=Vlookup(\"483\",Translations!F3:H508,1,0)","Title:","Title:","Titre :","Título:"]
["PR Authorisation_9A",484,null,"=Vlookup(\"484\",Translations!F3:H508,1,0)","Date and Place:","Date and Place:","Lieu et date :","Fecha y lugar:"]
["LFA Authorisation_9B",485,null,"=Vlookup(\"485\",Translations!F3:H508,1,0)","Progress Report with Disbursement Request","Progress Report with Disbursement Request","Rapport périodique sur les résultats actuels et demande de décaissement","Progress Report with Disbursement Request"]
["LFA Authorisation_9B",486,null,"=Vlookup(\"486\",Translations!F3:H508,1,0)","For LFA Use Only","For LFA Use Only","For LFA Use Only","For LFA Use Only"]
["LFA Authorisation_9B",487,null,"=Vlookup(\"487\",Translations!F3:H508,1,0)","Section 9B.  LFA Authorization","Section 9B.  LFA Authorization","Section 9B.  LFA Authorization","Section 9B.  LFA Authorization"]
["LFA Authorisation_9B",488,null,"=Vlookup(\"488\",Translations!F3:H508,1,0)","Grant Name:","Grant Name:","Grant Name:","Grant Name:"]
["LFA Authorisation_9B",489,null,"=Vlookup(\"489\",Translations!F3:H508,1,0)","Principal Recipient Reporting - Period Covered:","Principal Recipient Reporting - Period Covered:","Principal Recipient Reporting - Period Covered:","Principal Recipient Reporting - Period Covered:"]
["LFA Authorisation_9B",490,null,"=Vlookup(\"490\",Translations!F3:H508,1,0)","Beginning Date:","Beginning Date:","Beginning Date:","Beginning Date:"]
["LFA Authorisation_9B",491,null,"=Vlookup(\"491\",Translations!F3:H508,1,0)","End Date:","End Date:","End Date:","End Date:"]
["LFA Authorisation_9B",492,null,"=Vlookup(\"492\",Translations!F3:H508,1,0)","Disbursement Request  - Period Covered:","Disbursement Request  - Period Covered:","Disbursement Request  - Period Covered:","Disbursement Request  - Period Covered:"]
["LFA Authorisation_9B",493,null,"=Vlookup(\"493\",Translations!F3:H508,1,0)","Beginning Date:","Beginning Date:","Beginning Date:","Beginning Date:"]
["LFA Authorisation_9B",494,null,"=Vlookup(\"494\",Translations!F3:H508,1,0)","End Date:","End Date:","End Date:","End Date:"]
["LFA Authorisation_9B",495,null,"=Vlookup(\"495\",Translations!F3:H508,1,0)","Disbursement Request Buffer Period","Disbursement Request Buffer Period","Demande de décaissement  - Période additionnelle convenue:","Solicitud de desembolso – Periodo de reserva (colchón) :"]
["LFA Authorisation_9B",496,null,"=Vlookup(\"496\",Translations!F3:H508,1,0)","Beginning Date:","Beginning Date:","Beginning Date:","Beginning Date:"]
["LFA Authorisation_9B",497,null,"=Vlookup(\"497\",Translations!F3:H508,1,0)","End Date:","End Date:","End Date:","End Date:"]
["LFA Authorisation_9B",498,null,"=Vlookup(\"498\",Translations!F3:H508,1,0)","Currency:","Currency:","Currency:","Currency:"]
["LFA Authorisation_9B",499,null,"=Vlookup(\"499\",Translations!F3:H508,1,0)","Disbursement Recommendation Amount:","Disbursement Recommendation Amount:","Disbursement Recommendation Amount:","Disbursement Recommendation Amount:"]
["LFA Authorisation_9B",500,null,"=Vlookup(\"500\",Translations!F3:H508,1,0)","Summary of the LFA's approach used for verification of financial, programmatic and procurement data and Quality Assurance undertaken by the LFA","Summary of the LFA's approach used for verification of financial, programmatic and procurement data and Quality Assurance undertaken by the LFA","Summary of the LFA's approach used for verification of financial, programmatic and procurement data and Quality Assurance undertaken by the LFA","Summary of the LFA's approach used for verification of financial, programmatic and procurement data and Quality Assurance undertaken by the LFA"]
["LFA Authorisation_9B",501,null,"=Vlookup(\"501\",Translations!F3:H508,1,0)","In this section the LFA should indicate, as applicable, what percentage of expenditures was verified at PR level, if any expenditures were verified at SR level, how many site visits were made, what tender documentation was verified, and any other material parts of verification procedures in line with the verification approach agreed upfront between the LFA and the Global Fund's Secretariat based on country/grant risks.  As a good practice, the verification approach needs to be reviewed jointly by the LFA and the Secretariat annually.","In this section the LFA should indicate, as applicable, what percentage of expenditures was verified at PR level, if any expenditures were verified at SR level, how many site visits were made, what tender documentation was verified, and any other material parts of verification procedures in line with the verification approach agreed upfront between the LFA and the Global Fund's Secretariat based on country/grant risks.  As a good practice, the verification approach needs to be reviewed jointly by the LFA and the Secretariat annually.","In this section the LFA should indicate, as applicable, what percentage of expenditures was verified at PR level, if any expenditures were verified at SR level, how many site visits were made, what tender documentation was verified, and any other material parts of verification procedures in line with the verification approach agreed upfront between the LFA and the Global Fund's Secretariat based on country/grant risks.  As a good practice, the verification approach needs to be reviewed jointly by the LFA and the Secretariat annually.","In this section the LFA should indicate, as applicable, what percentage of expenditures was verified at PR level, if any expenditures were verified at SR level, how many site visits were made, what tender documentation was verified, and any other material parts of verification procedures in line with the verification approach agreed upfront between the LFA and the Global Fund's Secretariat based on country/grant risks.  As a good practice, the verification approach needs to be reviewed jointly by the LFA and the Secretariat annually."]
["LFA Authorisation_9B",502,null,"=Vlookup(\"502\",Translations!F3:H508,1,0)","The LFA should sign a printed version of the verified PU/DR and send it to the Secretariat as a pdf file by email, or include an electronic signature in the Excel file to be submitted to the Global Fund.","The LFA should sign a printed version of the verified PU/DR and send it to the Secretariat as a pdf file by email, or include an electronic signature in the Excel file to be submitted to the Global Fund.","The LFA should sign a printed version of the verified PU/DR and send it to the Secretariat as a pdf file by email, or include an electronic signature in the Excel file to be submitted to the Global Fund.","The LFA should sign a printed version of the verified PU/DR and send it to the Secretariat as a pdf file by email, or include an electronic signature in the Excel file to be submitted to the Global Fund."]
["LFA Authorisation_9B",503,null,"=Vlookup(\"503\",Translations!F3:H508,1,0)","Signed on behalf of the LFA:","Signed on behalf of the LFA:","Signed on behalf of the LFA:","Signed on behalf of the LFA:"]
["LFA Authorisation_9B",504,null,"=Vlookup(\"504\",Translations!F3:H508,1,0)","Name:","Name:","Name:","Name:"]
["LFA Authorisation_9B",505,null,"=Vlookup(\"505\",Translations!F3:H508,1,0)","Title:","Title:","Title:","Title:"]
["LFA Authorisation_9B",506,null,"=Vlookup(\"506\",Translations!F3:H508,1,0)","Title:","Title:","Title:","Title:"]
[null,507,null,{"$f":"\"=Vlookup(\"\"\"&B509&\"\"\",Translations!F3:H508,1,0)\"","v":"=Vlookup(\"507\",Translations!F3:H508,1,0)"},{"$f":"IF(LangOffset=0,F509,IF(LangOffset=1,G509,IF(LangOffset=2,H509)))","v":"Cash Balance Reconciliation Report"},"Cash Balance Reconciliation Report","État de rapprochement du solde de trésorerie","Informe de conciliación de saldos de caja"]
[null,508,null,"=Vlookup(\"508\",Translations!F3:H508,1,0)"," Section 1. Principal Recipient Reconciliation of Final Cash Balance in Grant Currency"," Section 1. Principal Recipient Reconciliation of Final Cash Balance in Grant Currency"," Section 1. Rapprochement par le récipiendaire principal du solde de trésorerie final dans la monnaie de la subvention","Sección 1. Conciliación del saldos de caja finales en la moneda de la subvención."]
[null,509,null,"=Vlookup(\"509\",Translations!F3:H508,1,0)","REPORTING PERIOD FOR FINANCIAL REPORTING","REPORTING PERIOD FOR FINANCIAL REPORTING","PÉRIODE DE COMMUNICATION DE L’INFORMATION FINANCIÈRE","PERIODO DE PRESENTACIÓN DE INFORMES FINANCIEROS"]
[null,510,null,"=Vlookup(\"510\",Translations!F3:H508,1,0)","Period of Financial Reporting","Period of Financial Reporting","Période de communication de l’information financière","Periodo de presentación de informes financieros"]
[null,511,null,"=Vlookup(\"511\",Translations!F3:H508,1,0)","Beginning Date:","Beginning Date:","Date de début :","Fecha de inicio:"]
[null,512,null,"=Vlookup(\"512\",Translations!F3:H508,1,0)","End Date:","End Date:","Date de fin :","Fecha de finalización:"]
[null,513,null,"=Vlookup(\"513\",Translations!F3:H508,1,0)","Principal Recipient","Principal Recipient","Récipiendaire principal","Receptor Principal"]
[null,514,null,"=Vlookup(\"514\",Translations!F3:H508,1,0)","For LFA Use Only ","For LFA Use Only ","Réservé à l’agent local du Fonds ","Solo para uso del ALF"]
[null,515,null,"=Vlookup(\"515\",Translations!F3:H508,1,0)","For the Global Fund Use Only","For the Global Fund Use Only","Réservé au Fonds mondial","Solo para uso del Fondo Mundial"]
[null,516,null,"=Vlookup(\"516\",Translations!F3:H508,1,0)","Current Reporting Period","Current Reporting Period","Période visée par le rapport","Periodo actual de presentación de informes"]
[null,517,null,"=Vlookup(\"517\",Translations!F3:H508,1,0)","Comments","Comments","Commentaires","Comentarios"]
[null,518,null,"=Vlookup(\"518\",Translations!F3:H508,1,0)","LFA Adjustments on Current Reporting Period","LFA Adjustments on Current Reporting Period","Ajustements par l’agent local du Fonds pour la période visée par le rapport","Ajustes del ALF para el periodo actual de presentación de informes"]
[null,519,null,"=Vlookup(\"519\",Translations!F3:H508,1,0)","As verified by LFA","As verified by LFA","Vérifié par l’agent local du Fonds","Verificado por el ALF"]
[null,520,null,"=Vlookup(\"520\",Translations!F3:H508,1,0)","Comments","Comments","Commentaires","Comentarios"]
[null,521,null,"=Vlookup(\"521\",Translations!F3:H508,1,0)","CT Adjustments","CT Adjustments","Ajustements par l’équipe de pays","Ajustes del equipo de país"]
[null,522,null,"=Vlookup(\"522\",Translations!F3:H508,1,0)","The Global Fund Validated Figures","The Global Fund Validated Figures","Chiffres validés par le Fonds mondial","Cifras validadas por el Fondo Mundial"]
[null,523,null,"=Vlookup(\"523\",Translations!F3:H508,1,0)","Comments","Comments","Commentaires","Comentarios"]
[null,524,null,"=Vlookup(\"524\",Translations!F3:H508,1,0)","Total Cash Balance  as reported in the last Progress Update","Total Cash Balance  as reported in the last Progress Update","Total du solde de trésorerie figurant dans le dernier rapport sur les résultats actuels","Saldos de caja totales según la última actualización de avances a la fecha"]
[null,525,null,"=Vlookup(\"525\",Translations!F3:H508,1,0)","2. Grant Income","2. Grant Income","2. Recettes de la subvention","2. Ingresos de la subvención"]
[null,526,null,"=Vlookup(\"526\",Translations!F3:H508,1,0)","Disbursement made to the Principal Recipient","Disbursement made to the Principal Recipient","Décaissement au récipiendaire principal","Desembolsos destinados al Receptor Principal"]
[null,527,null,"=Vlookup(\"527\",Translations!F3:H508,1,0)","Disbursement to third parties by the Global Fund on behalf of the Principal Recipient","Disbursement to third parties by the Global Fund on behalf of the Principal Recipient","Décaissements à des tiers par le Fonds mondial au nom du récipiendaire principal","Desembolsos a terceros realizados por el Fondo Mundial en nombre del Receptor Principal"]
[null,528,null,"=Vlookup(\"528\",Translations!F3:H508,1,0)","Other income, if applicable (e.g. VAT/Other Tax returns, income from disposal of assets etc.)","Other income, if applicable (e.g. VAT/Other Tax returns, income from disposal of assets etc.)","Autres recettes, le cas échéant (par ex. remboursements de TVA/d’autres impôts, produit de la cession d’actifs, etc.)","Otros ingresos, si corresponde (por ejemplo, devoluciones tributarias de IVA o de otros impuestos, ingresos derivados de la enajenación de activos, etc.)"]
[null,529,null,{"$f":"\"=Vlookup(\"\"\"&B531&\"\"\",Translations!F3:H508,1,0)\"","v":"=Vlookup(\"529\",Translations!F3:H508,1,0)"},{"$f":"IF(LangOffset=0,F531,IF(LangOffset=1,G531,IF(LangOffset=2,H531)))","v":"Closure Expenditure Report"},"Closure Expenditure Report","Rapport sur les dépenses de clôture","Informe de cierre sobre gastos"]
[null,530,null,"=Vlookup(\"530\",Translations!F3:H508,1,0)","Section 3A.The Principal Recipient Expenditure Report Completed by the Principal Recipient","Section 3A.The Principal Recipient Expenditure Report Completed by the Principal Recipient","Section 3A. Rapport sur les dépenses du récipiendaire principal rempli par ce dernier","Sección 3A. El informe sobre gastos del Receptor Principal elaborado por el Receptor Principal"]
[null,531,null,"=Vlookup(\"531\",Translations!F3:H508,1,0)","Period of Financial Reporting","Period of Financial Reporting","Période couverte par le rapport sur les information financière","Periodo de avances financieros"]
[null,532,null,"=Vlookup(\"532\",Translations!F3:H508,1,0)","Beginning Date:","Beginning Date:","Date de début :","Fecha de inicio:"]
[null,533,null,"=Vlookup(\"533\",Translations!F3:H508,1,0)","End Date:","End Date:","Date de fin :","Fecha de finalización:"]
[null,534,null,"=Vlookup(\"534\",Translations!F3:H508,1,0)","Cumulative Period of Expenditure Reporting","Cumulative Period of Expenditure Reporting","Période cumulative de rapport sur les dépenses","Período acumulativo de presentación de informes sobre gastos"]
[null,535,null,"=Vlookup(\"535\",Translations!F3:H508,1,0)","Beginning Date:","Beginning Date:","Date de début :","Fecha de inicio:"]
[null,536,null,"=Vlookup(\"536\",Translations!F3:H508,1,0)","End Date:","End Date:","Date de fin :","Fecha de finalización:"]
[null,537,null,"=Vlookup(\"537\",Translations!F3:H508,1,0)","A. BREAKDOWN BY COST GROUPING","A. BREAKDOWN BY COST GROUPING","B. VENTILATION PAR GROUPES DE COÛTS","DESGLOSE POR AGRUPACIÓN DE COSTOS"]
[null,538,null,"=Vlookup(\"538\",Translations!F3:H508,1,0)","Current Reporting Period","Current Reporting Period","Période de rapport en cours","Periodo de notificación en curso"]
[null,539,null,"=Vlookup(\"539\",Translations!F3:H508,1,0)","Cumulative for the Implementation Period","Cumulative for the Implementation Period","Données cumulées pour la période de mise en œuvre","Acumulativo para el periodo de ejecución"]
[null,540,null,"=Vlookup(\"540\",Translations!F3:H508,1,0)","Costing Dimension (Cost Grouping)","Costing Dimension (Cost Grouping)","'Évaluation des coûts (groupes de coûts)","Dimensión de cálculo de costos (grupos de costos)"]
[null,541,null,"=Vlookup(\"541\",Translations!F3:H508,1,0)","Budget for Reporting Period","Budget for Reporting Period","Budget pour la période de rapport","Presupuesto para el periodo que abarca el informe"]
[null,542,null,"=Vlookup(\"542\",Translations!F3:H508,1,0)","Actual Expenditure","Actual Expenditure","Dépenses réelles","Gastos reales"]
[null,543,null,"=Vlookup(\"543\",Translations!F3:H508,1,0)","Budget Vs Actual Variances","Budget Vs Actual Variances","Écarts budget - dépenses réelles","Presupuesto frente a variaciones reales"]
[null,544,null,"=Vlookup(\"544\",Translations!F3:H508,1,0)","Absorption Rate","Absorption Rate","Taux d’absorption","Índice de absorción"]
[null,545,null,"=Vlookup(\"545\",Translations!F3:H508,1,0)","Explanation of Variances (mandatory for all percentages below 95% & above 105%)","Explanation of Variances (mandatory for all percentages below 95% & above 105%)","Explication des écarts (obligatoire si les dépenses sont inférieures ou supérieures au budget de plus de 5 %)","Explicación de las variaciones (obligatorio para los porcentajes por debajo del 95% y por encima del 105%)"]
[null,546,null,"=Vlookup(\"546\",Translations!F3:H508,1,0)","Cumulative Budget","Cumulative Budget","Budget cumulé","Presupuesto acumulativo"]
[null,547,null,"=Vlookup(\"547\",Translations!F3:H508,1,0)","Cumulative Actual Expenditure","Cumulative Actual Expenditure","Dépenses réelles cumulées","Gasto real acumulativo"]
[null,548,null,"=Vlookup(\"548\",Translations!F3:H508,1,0)","Cumulative Budget Vs Actuals Variances","Cumulative Budget Vs Actuals Variances","Écarts budget cumulé - dép. réelles cumulées","Presupuesto acumulativo frente a variaciones reales"]
[null,549,null,"=Vlookup(\"549\",Translations!F3:H508,1,0)","Absorption Rate","Absorption Rate","Taux d’absorption","Índice de absorción"]
[null,550,null,"=Vlookup(\"550\",Translations!F3:H508,1,0)","Grand Total","Grand Total","Total Général","Total General"]
[null,551,null,null,"Total Grant Income","Total Grant Income","Recettes totales de la subvention","Ingresos totales de la subvención"]
[null,552,null,null,"3. Financial Commitments","3. Financial Commitments","3. Engagements financiers","3. Compromisos financieros"]
[null,553,null,null,"Financial Commitments as reported in the last Progress Update","Financial Commitments as reported in the last Progress Update","Engagements financiers figurant dans le dernier rapport sur les résultats actuels","Compromisos financieros según la última actualización de avances a la fecha"]
[null,554,null,null,"Adjustments to the Financial Commitments","Adjustments to the Financial Commitments","Ajustements aux engagements financiers","Ajustes de los compromisos financieros"]
[null,555,null,null,"Total Financial Commitments","Total Financial Commitments","Total des engagements financiers","Compromisos financieros totales"]
[null,556,null,null,"4. Grant Cash Outflows","4. Grant Cash Outflows","4. Sorties de fonds de la subvention","4. Salida de efectivo de la subvención"]
[null,557,null,null,"Principal Recipient and Sub-Recipient Expenditure (including payments made against the prior implementation period Financial Commitments)","Principal Recipient and Sub-Recipient Expenditure (including payments made against the prior implementation period Financial Commitments)","Dépenses du récipiendaire principal et des sous-récipiendaires (y compris les paiements effectués au regard des engagements financiers)","Gastos del Receptor Principal y del Subreceptor (que incluyen pagos realizados contra los compromisos financieros)"]
[null,558,null,null,"Total Grant Cash Outflows","Total Grant Cash Outflows","Sorties de fonds totales de la subvention","Salidas totales de efectivo de la subvención"]
[null,559,null,null,"5. Reconciling Adjustments","5. Reconciling Adjustments","5. Ajustements de rapprochement","5. Ajustes de conciliación"]
[null,560,null,null,"Other reconciliation adjustments (including for prior periods)","Other reconciliation adjustments (including for prior periods)","Autres ajustements de rapprochement (y compris pour les périodes précédentes)","Otros ajustes de conciliación (incluidos periodos anteriores"]
[null,561,null,null,"Ineligible transactions from previous periods for which justification was approved by the Global Fund","Ineligible transactions from previous periods for which justification was approved by the Global Fund","Transactions non recevables de périodes précédentes dont la justification a été approuvée par le Fonds mondial","Transacciones no elegibles de periodos anteriores cuya justificación ha sido aprobada por el Fondo Mundial"]
[null,562,null,null,"Reimbursement of ineligible transaction from previous periods","Reimbursement of ineligible transaction from previous periods","Remboursement de transactions non recevables des périodes précédentes","Reembolso de transacciones no elegibles de periodos anteriores"]
[null,563,null,null,"6. Cash Balance","6. Cash Balance","6. Solde de trésorerie","6. Saldo de caja"]
[null,564,null,null,"Total Cash Balance from the implementation period","Total Cash Balance from the implementation period","Total du solde de trésorerie pour la période de mise en œuvre","Salto de caja total del periodo de ejecución"]
[null,565,null,null,"Advance payment made for the next implementation period","Advance payment made for the next implementation period","Paiement anticipé pour la prochaine période de mise en œuvre","Pago anticipado para el siguiente periodo de ejecución"]
[null,566,null,null,"Final Closing Cash Balance of the implementation period","Final Closing Cash Balance of the implementation period","Solde final de trésorerie à la clôture de la période de mise en œuvre","Saldo de caja de cierre final del periodo de ejecución"]
[null,567,null,null,"Principal Recipient Ineligible Transactions in Grant Currency ","Principal Recipient Ineligible Transactions in Grant Currency ","Transactions non recevables du récipiendaire principal dans la monnaie de la subvention ","Transacciones no elegibles del Receptor Principal en la moneda de la subvención"]
[null,568,null,null,"Principal Recipient","Principal Recipient","Récipiendaire principal","Receptor Principal"]
[null,569,null,null,"For LFA Use Only ","For LFA Use Only ","Réservé à l’agent local du Fonds ","Solo para uso del ALF"]
[null,570,null,null,"For the Global Fund Use Only","For the Global Fund Use Only","Réservé au Fonds mondial","Solo para uso del Fondo Mundial"]
[null,571,null,null,"Cumulative for Previous Periods","Cumulative for Previous Periods","Montant cumulé pour les périodes précédentes","Acumulativo para periodos previos"]
[null,572,null,null,"Current Reporting Period","Current Reporting Period","Période visée par le rapport","Periodo actual de presentación de informes"]
[null,573,null,null,"Comments","Comments","Commentaires","Comentarios"]
[null,574,null,null,"Cumulative for Previous Periods as validated by Global Fund","Cumulative for Previous Periods as validated by Global Fund","Montant cumulé pour les périodes précédentes validé par le Fonds mondial","Acumulativo para periodos previos validado por el Fondo Mundial"]
[null,575,null,null,"LFA Adjustments on Current Reporting Period","LFA Adjustments on Current Reporting Period","Ajustements par l’agent local du Fonds pour la période visée par le rapport","Ajustes realizados por el ALF del periodo actual de presentación de informes"]
[null,576,null,null,"As verified by LFA","As verified by LFA","Vérifié par l’agent local du Fonds","Verificado por el ALF"]
[null,577,null,null,"Comments","Comments","Commentaires","Comentarios"]
[null,578,null,null,"CT Adjustments","CT Adjustments","Ajustements par l’équipe de pays","Ajustes del equipo de país"]
[null,579,null,null,"The Global Fund Validated Figures","The Global Fund Validated Figures","Chiffres validés par le Fonds mondial","Cifras validadas por el Fondo Mundial"]
[null,580,null,null,"Comments","Comments","Commentaires","Comentarios"]
[null,581,null,null,"Ineligible transactions validated for the reporting period","Ineligible transactions validated for the reporting period","Transactions non recevables validées pour la période de rapport","Transacciones no elegibles validadas para el periodo del informe"]
[null,582,null,null,"Ineligible transactions from previous periods for which justification was approved by the Global Fund","Ineligible transactions from previous periods for which justification was approved by the Global Fund","Transactions non recevables des périodes précédentes dont la justification a été approuvée par le Fonds mondial","Transacciones no elegibles de periodos anteriores cuya justificación ha sido aprobada por el Fondo Mundial"]
[null,583,null,null,"Reimbursement of ineligible transactions from previous periods","Reimbursement of ineligible transactions from previous periods","Remboursement de transactions non recevables des périodes précédentes","Reembolso de transacciones no elegibles de periodos anteriores"]
[null,584,null,null,"Cumulative ineligible transactions for the implementation period","Cumulative ineligible transactions for the implementation period","Transactions non recevables cumulées pour la période de mise en œuvre","Transacciones no elegibles acumulativas del periodo de ejecución"]
[null,585,null,null,"Open ineligible transactions to be justified and/or reimbursed","Open ineligible transactions to be justified and/or reimbursed","Transactions non recevables ouvertes à justifier et/ou rembourser","Transacciones no elegibles pendientes de justificar y/o reembolsar"]

{"sheet":"Impact Outcome Indicators_1A","index":5,"n_rows":80,"n_cols":31,"rows_kept":80,"cut":false,"hidden":false,"merged":[[8,30,9,30],[8,18,9,18],[8,19,8,21],[8,22,9,22],[8,23,9,23],[8,24,9,24],[8,17,9,17],[8,25,9,25],[8,29,9,29],[8,26,8,28],[4,1,4,24],[8,3,8,4],[8,5,8,7],[8,8,9,8],[8,9,9,9],[8,11,8,13],[8,14,9,14],[8,15,9,15],[8,16,9,16],[8,10,9,10],[8,2,9,2],[8,1,9,1]]}
[null,{"$f":"VLOOKUP(Translations!B30,Translations!B3:H508,4,0)","v":"Progress Report with Disbursement Request"}]
[]
[null,{"$f":"VLOOKUP(Translations!B31,Translations!B3:H508,4,0)","v":"Section 1:  Programmatic Information"}]
[]
[null,"Guidance: The table contains those Impact/Outcome indicators that are:\n1. Included in the Grant Confirmation/Agreement through the latest signed Performance Framework\n2. Are due for reporting in the current reporting period; and\n3. Were due for reporting in previous periods but were never reported on\n4. Data validation checks are being performed on entered data in the columns. Any issues identified that are not resolved should be explained"]
[]
[null,{"$f":"VLOOKUP(Translations!B33,Translations!B3:H508,4,0)","v":"A- Impact/Outcome Indicators"}]
[]
["Mapping",{"$f":"VLOOKUP(Translations!B34,Translations!B3:H508,4,0)","v":"Impact / Outcome "},{"$f":"VLOOKUP(Translations!B35,Translations!B3:H508,4,0)","v":"Impact/Outcome Indicator"},{"$f":"VLOOKUP(Translations!B37,Translations!B3:H508,4,0)","v":"Baseline \n(if applicable)"},null,{"$f":"VLOOKUP(Translations!B40,Translations!B3:H508,4,0)","v":"Target"},null,null,{"$f":"VLOOKUP(Translations!B44,Translations!B3:H508,4,0)","v":"Year of Target"},{"$f":"VLOOKUP(Translations!B45,Translations!B3:H508,4,0)","v":"Report Due Date"},"Geography",{"$f":"VLOOKUP(Translations!B46,Translations!B3:H508,4,0)","v":"Result"},null,null,{"$f":"VLOOKUP(Translations!B50,Translations!B3:H508,4,0)","v":"Year of Result"},{"$f":"VLOOKUP(Translations!B51,Translations!B3:H508,4,0)","v":"Source"},{"$f":"VLOOKUP(Translations!B52,Translations!B3:H508,4,0)","v":"Comments on results on Impact/Outcome indicators and data sources, and any other comments"},"Data validation checks on PR data",{"$f":"VLOOKUP(Translations!B53,Translations!B3:H508,4,0)","v":"Verification Method"},{"$f":"VLOOKUP(Translations!B54,Translations!B3:H508,4,0)","v":"Verified Result"},null,null,{"$f":"VLOOKUP(Translations!B58,Translations!B3:H508,4,0)","v":"Year of Result"},{"$f":"VLOOKUP(Translations!B59,Translations!B3:H508,4,0)","v":"Source"},{"$f":"VLOOKUP(Translations!B60,Translations!B3:H508,4,0)","v":"LFA comments on (a) verified result, (b) source of information used by the PR to report results, including the status of completion of surveys and other methods to measure Impact/Outcome, as applicable,  "},"Data Validation checks on LFA data","Global Fund Validated Result",null,null,"Global Fund comments","Data validation checks on GF data"]
[null,null,null,{"$f":"VLOOKUP(Translations!B38,Translations!B3:H508,4,0)","v":"Value"},{"$f":"VLOOKUP(Translations!B38,Translations!B3:H508,4,0)","v":"Value"},{"$f":"VLOOKUP(Translations!B41,Translations!B3:H508,4,0)","v":"N#"},"D#","%",null,null,null,"N#","D#","%",null,null,null,null,null,"N#","D#","%",null,null,null,null,"N#","D#","%"]
[{"$f":"IFERROR(IF(INDEX(Impactlist,MATCH(0,INDEX(COUNTIF(A$10:A10,Impactlist),0,0),0))<>\"\",INDEX(Impactlist,MATCH(0,INDEX(COUNTIF(A$10:A10,Impactlist),0,0),0)),INDEX(Outcomelist,MATCH(0,INDEX(COUNTIF(A$10:A10,Outcomelist),0,0),0))),\"\")","v":0},{"$f":"IFERROR(INDEX('ImpactOutcome_Import-Export'!D$7:D$200,MATCH($A11,'ImpactOutcome_Import-Export'!$B$7:$B$200,0)),\"\")","v":""},{"$f":"IF(B11=\"\",\"\",IFERROR(INDEX('ImpactOutcome_Import-Export'!F$7:F$13,MATCH($A11,'ImpactOutcome_Import-Export'!$B$7:$B$13,0)),\"\"))","v":""},{"$f":"IF(B11=\"\",\"\",IFERROR(IF(INDEX('ImpactOutcome_Import-Export'!K$7:K$13,MATCH($A11,'ImpactOutcome_Import-Export'!$B$7:$B$13,0))=\"\",\"\",INDEX('ImpactOutcome_Import-Export'!K$7:K$13,MATCH($A11,'ImpactOutcome_Import-Export'!$B$7:$B$13,0))),\"\"))","v":""},{"$f":"IF(B11=\"\",\"\",IFERROR(IF(INDEX('ImpactOutcome_Import-Export'!L$7:L$13,MATCH($A11,'ImpactOutcome_Import-Export'!$B$7:$B$13,0))=\"\",\"\",INDEX('ImpactOutcome_Import-Export'!L$7:L$13,MATCH($A11,'ImpactOutcome_Import-Export'!$B$7:$B$13,0))),\"\"))","v":""},{"$f":"IF(B11=\"\",\"\",IFERROR(IF(INDEX('ImpactOutcome_Import-Export'!M$7:M$13,MATCH($A11,'ImpactOutcome_Import-Export'!$B$7:$B$13,0))=\"\",\"\",INDEX('ImpactOutcome_Import-Export'!M$7:M$13,MATCH($A11,'ImpactOutcome_Import-Export'!$B$7:$B$13,0))),\"\"))","v":""},{"$f":"IF(B11=\"\",\"\",IFERROR(IF(INDEX('ImpactOutcome_Import-Export'!N$7:N$13,MATCH($A11,'ImpactOutcome_Import-Export'!$B$7:$B$13,0))=\"\",\"\",INDEX('ImpactOutcome_Import-Export'!N$7:N$13,MATCH($A11,'ImpactOutcome_Import-Export'!$B$7:$B$13,0))),\"\"))","v":""},{"$f":"IF(B11=\"\",\"\",IFERROR(IF(INDEX('ImpactOutcome_Import-Export'!O$7:O$13,MATCH($A11,'ImpactOutcome_Import-Export'!$B$7:$B$13,0))=\"\",\"\",INDEX('ImpactOutcome_Import-Export'!O$7:O$13,MATCH($A11,'ImpactOutcome_Import-Export'!$B$7:$B$13,0))),\"\"))","v":""},{"$f":"IF(B11=\"\",\"\",IFERROR(IF(INDEX('ImpactOutcome_Import-Export'!P$7:P$13,MATCH($A11,'ImpactOutcome_Import-Export'!$B$7:$B$13,0))=\"\",\"\",INDEX('ImpactOutcome_Import-Export'!P$7:P$13,MATCH($A11,'ImpactOutcome_Import-Export'!$B$7:$B$13,0))),\"\"))","v":""},{"$f":"IF(B11=\"\",\"\",IFERROR(IF(INDEX('ImpactOutcome_Import-Export'!Q$7:Q$13,MATCH($A11,'ImpactOutcome_Import-Export'!$B$7:$B$13,0))=\"\",\"\",INDEX('ImpactOutcome_Import-Export'!Q$7:Q$13,MATCH($A11,'ImpactOutcome_Import-Export'!$B$7:$B$13,0))),\"\"))","v":""},{"$f":"IF(B11=\"\",\"\",IFERROR(IF(INDEX('ImpactOutcome_Import-Export'!R$7:R$13,MATCH($A11,'ImpactOutcome_Import-Export'!$B$7:$B$13,0))=\"\",\"\",INDEX('ImpactOutcome_Import-Export'!R$7:R$13,MATCH($A11,'ImpactOutcome_Import-Export'!$B$7:$B$13,0))),\"\"))","v":""},null,null,{"$f":"IFERROR((L11/M11)*100,\"\")","v":""},null,null,null,{"$f":"IF(AND(F11=\"\",G11=\"\",H11=\"\"),\"\",IF(AND(L11=\"\",M11=\"\",N11=\"\"),\"No Results Reported\",IF(AND(F11<>\"\",G11=\"\",H11=\"\",OR(M11<>\"\",N11<>\"\")),\"Target contains only a numerator. Please Report only a numerator for the result\",\"Continue\")))","v":""},null,null,null,{"$f":"IFERROR((T11/U11)*100,\"\")","v":""},null,null,null,{"$f":"IF(AND(L11=\"\",M11=\"\",N11=\"\"),\"\",IF(AND(T11=\"\",U11=\"\",V11=\"\"),\"No Results Reported\",IF(AND(L11<>\"\",M11=\"\",N11=\"\",OR(U11<>\"\",V11<>\"\")),\"Target contains only a numerator. Please Report only a numerator for the result\",\"Continue\")))","v":""},null,null,{"$f":"IFERROR((AA11/AB11)*100,\"\")","v":""},null,{"$f":"IF(AND(F11=\"\",G11=\"\",H11=\"\"),\"\",IF(AND(AA11=\"\",AB11=\"\",AC11=\"\"),\"No Results Reported\",IF(AND(F11<>\"\",G11=\"\",H11=\"\",OR(AB11<>\"\",AC11<>\"\")),\"Target contains only a numerator. Please Report only a numerator for the result\",\"Continue\")))","v":""}]
[{"$f":"IFERROR(IF(INDEX(Impactlist,MATCH(0,INDEX(COUNTIF(A$10:A11,Impactlist),0,0),0))<>\"\",INDEX(Impactlist,MATCH(0,INDEX(COUNTIF(A$10:A11,Impactlist),0,0),0)),INDEX(Outcomelist,MATCH(0,INDEX(COUNTIF(A$10:A11,Outcomelist),0,0),0))),\"\")","v":""},{"$f":"IFERROR(INDEX('ImpactOutcome_Import-Export'!D$7:D$200,MATCH($A12,'ImpactOutcome_Import-Export'!$B$7:$B$200,0)),\"\")","v":""},{"$f":"IF(B12=\"\",\"\",IFERROR(INDEX('ImpactOutcome_Import-Export'!F$7:F$13,MATCH($A12,'ImpactOutcome_Import-Export'!$B$7:$B$13,0)),\"\"))","v":""},{"$f":"IF(B12=\"\",\"\",IFERROR(IF(INDEX('ImpactOutcome_Import-Export'!K$7:K$13,MATCH($A12,'ImpactOutcome_Import-Export'!$B$7:$B$13,0))=\"\",\"\",INDEX('ImpactOutcome_Import-Export'!K$7:K$13,MATCH($A12,'ImpactOutcome_Import-Export'!$B$7:$B$13,0))),\"\"))","v":""},{"$f":"IF(B12=\"\",\"\",IFERROR(IF(INDEX('ImpactOutcome_Import-Export'!L$7:L$13,MATCH($A12,'ImpactOutcome_Import-Export'!$B$7:$B$13,0))=\"\",\"\",INDEX('ImpactOutcome_Import-Export'!L$7:L$13,MATCH($A12,'ImpactOutcome_Import-Export'!$B$7:$B$13,0))),\"\"))","v":""},{"$f":"IF(B12=\"\",\"\",IFERROR(IF(INDEX('ImpactOutcome_Import-Export'!M$7:M$13,MATCH($A12,'ImpactOutcome_Import-Export'!$B$7:$B$13,0))=\"\",\"\",INDEX('ImpactOutcome_Import-Export'!M$7:M$13,MATCH($A12,'ImpactOutcome_Import-Export'!$B$7:$B$13,0))),\"\"))","v":""},{"$f":"IF(B12=\"\",\"\",IFERROR(IF(INDEX('ImpactOutcome_Import-Export'!N$7:N$13,MATCH($A12,'ImpactOutcome_Import-Export'!$B$7:$B$13,0))=\"\",\"\",INDEX('ImpactOutcome_Import-Export'!N$7:N$13,MATCH($A12,'ImpactOutcome_Import-Export'!$B$7:$B$13,0))),\"\"))","v":""},{"$f":"IF(B12=\"\",\"\",IFERROR(IF(INDEX('ImpactOutcome_Import-Export'!O$7:O$13,MATCH($A12,'ImpactOutcome_Import-Export'!$B$7:$B$13,0))=\"\",\"\",INDEX('ImpactOutcome_Import-Export'!O$7:O$13,MATCH($A12,'ImpactOutcome_Import-Export'!$B$7:$B$13,0))),\"\"))","v":""},{"$f":"IF(B12=\"\",\"\",IFERROR(IF(INDEX('ImpactOutcome_Import-Export'!P$7:P$13,MATCH($A12,'ImpactOutcome_Import-Export'!$B$7:$B$13,0))=\"\",\"\",INDEX('ImpactOutcome_Import-Export'!P$7:P$13,MATCH($A12,'ImpactOutcome_Import-Export'!$B$7:$B$13,0))),\"\"))","v":""},{"$f":"IF(B12=\"\",\"\",IFERROR(IF(INDEX('ImpactOutcome_Import-Export'!Q$7:Q$13,MATCH($A12,'ImpactOutcome_Import-Export'!$B$7:$B$13,0))=\"\",\"\",INDEX('ImpactOutcome_Import-Export'!Q$7:Q$13,MATCH($A12,'ImpactOutcome_Import-Export'!$B$7:$B$13,0))),\"\"))","v":""},{"$f":"IF(B12=\"\",\"\",IFERROR(IF(INDEX('ImpactOutcome_Import-Export'!R$7:R$13,MATCH($A12,'ImpactOutcome_Import-Export'!$B$7:$B$13,0))=\"\",\"\",INDEX('ImpactOutcome_Import-Export'!R$7:R$13,MATCH($A12,'ImpactOutcome_Import-Export'!$B$7:$B$13,0))),\"\"))","v":""},null,null,{"$f":"IFERROR((L12/M12)*100,\"\")","v":""},null,null,null,"",null,null,null,{"$f":"IFERROR((T12/U12)*100,\"\")","v":""},null,null,null,{"$f":"IF(AND(L12=\"\",M12=\"\",N12=\"\"),\"\",IF(AND(T12=\"\",U12=\"\",V12=\"\"),\"No Results Reported\",IF(AND(L12<>\"\",M12=\"\",N12=\"\",OR(U12<>\"\",V12<>\"\")),\"Target contains only a numerator. Please Report only a numerator for the result\",\"Continue\")))","v":""},null,null,{"$f":"IFERROR((AA12/AB12)*100,\"\")","v":""},null,{"$f":"IF(AND(F12=\"\",G12=\"\",H12=\"\"),\"\",IF(AND(AA12=\"\",AB12=\"\",AC12=\"\"),\"No Results Reported\",IF(AND(F12<>\"\",G12=\"\",H12=\"\",OR(AB12<>\"\",AC12<>\"\")),\"Target contains only a numerator. Please Report only a numerator for the result\",\"Continue\")))","v":""}]
[{"$f":"IFERROR(IF(INDEX(Impactlist,MATCH(0,INDEX(COUNTIF(A$10:A12,Impactlist),0,0),0))<>\"\",INDEX(Impactlist,MATCH(0,INDEX(COUNTIF(A$10:A12,Impactlist),0,0),0)),INDEX(Outcomelist,MATCH(0,INDEX(COUNTIF(A$10:A12,Outcomelist),0,0),0))),\"\")","v":""},{"$f":"IFERROR(INDEX('ImpactOutcome_Import-Export'!D$7:D$200,MATCH($A13,'ImpactOutcome_Import-Export'!$B$7:$B$200,0)),\"\")","v":""},{"$f":"IF(B13=\"\",\"\",IFERROR(INDEX('ImpactOutcome_Import-Export'!F$7:F$13,MATCH($A13,'ImpactOutcome_Import-Export'!$B$7:$B$13,0)),\"\"))","v":""},{"$f":"IF(B13=\"\",\"\",IFERROR(IF(INDEX('ImpactOutcome_Import-Export'!K$7:K$13,MATCH($A13,'ImpactOutcome_Import-Export'!$B$7:$B$13,0))=\"\",\"\",INDEX('ImpactOutcome_Import-Export'!K$7:K$13,MATCH($A13,'ImpactOutcome_Import-Export'!$B$7:$B$13,0))),\"\"))","v":""},{"$f":"IF(B13=\"\",\"\",IFERROR(IF(INDEX('ImpactOutcome_Import-Export'!L$7:L$13,MATCH($A13,'ImpactOutcome_Import-Export'!$B$7:$B$13,0))=\"\",\"\",INDEX('ImpactOutcome_Import-Export'!L$7:L$13,MATCH($A13,'ImpactOutcome_Import-Export'!$B$7:$B$13,0))),\"\"))","v":""},{"$f":"IF(B13=\"\",\"\",IFERROR(IF(INDEX('ImpactOutcome_Import-Export'!M$7:M$13,MATCH($A13,'ImpactOutcome_Import-Export'!$B$7:$B$13,0))=\"\",\"\",INDEX('ImpactOutcome_Import-Export'!M$7:M$13,MATCH($A13,'ImpactOutcome_Import-Export'!$B$7:$B$13,0))),\"\"))","v":""},{"$f":"IF(B13=\"\",\"\",IFERROR(IF(INDEX('ImpactOutcome_Import-Export'!N$7:N$13,MATCH($A13,'ImpactOutcome_Import-Export'!$B$7:$B$13,0))=\"\",\"\",INDEX('ImpactOutcome_Import-Export'!N$7:N$13,MATCH($A13,'ImpactOutcome_Import-Export'!$B$7:$B$13,0))),\"\"))","v":""},{"$f":"IF(B13=\"\",\"\",IFERROR(IF(INDEX('ImpactOutcome_Import-Export'!O$7:O$13,MATCH($A13,'ImpactOutcome_Import-Export'!$B$7:$B$13,0))=\"\",\"\",INDEX('ImpactOutcome_Import-Export'!O$7:O$13,MATCH($A13,'ImpactOutcome_Import-Export'!$B$7:$B$13,0))),\"\"))","v":""},{"$f":"IF(B13=\"\",\"\",IFERROR(IF(INDEX('ImpactOutcome_Import-Export'!P$7:P$13,MATCH($A13,'ImpactOutcome_Import-Export'!$B$7:$B$13,0))=\"\",\"\",INDEX('ImpactOutcome_Import-Export'!P$7:P$13,MATCH($A13,'ImpactOutcome_Import-Export'!$B$7:$B$13,0))),\"\"))","v":""},{"$f":"IF(B13=\"\",\"\",IFERROR(IF(INDEX('ImpactOutcome_Import-Export'!Q$7:Q$13,MATCH($A13,'ImpactOutcome_Import-Export'!$B$7:$B$13,0))=\"\",\"\",INDEX('ImpactOutcome_Import-Export'!Q$7:Q$13,MATCH($A13,'ImpactOutcome_Import-Export'!$B$7:$B$13,0))),\"\"))","v":""},{"$f":"IF(B13=\"\",\"\",IFERROR(IF(INDEX('ImpactOutcome_Import-Export'!R$7:R$13,MATCH($A13,'ImpactOutcome_Import-Export'!$B$7:$B$13,0))=\"\",\"\",INDEX('ImpactOutcome_Import-Export'!R$7:R$13,MATCH($A13,'ImpactOutcome_Import-Export'!$B$7:$B$13,0))),\"\"))","v":""},null,null,"",null,null,null,"",null,null,null,"",null,null,null,"",null,null,"",null,""]
[{"$f":"IFERROR(IF(INDEX(Impactlist,MATCH(0,INDEX(COUNTIF(A$10:A13,Impactlist),0,0),0))<>\"\",INDEX(Impactlist,MATCH(0,INDEX(COUNTIF(A$10:A13,Impactlist),0,0),0)),INDEX(Outcomelist,MATCH(0,INDEX(COUNTIF(A$10:A13,Outcomelist),0,0),0))),\"\")","v":""},{"$f":"IFERROR(INDEX('ImpactOutcome_Import-Export'!D$7:D$200,MATCH($A14,'ImpactOutcome_Import-Export'!$B$7:$B$200,0)),\"\")","v":""},{"$f":"IF(B14=\"\",\"\",IFERROR(INDEX('ImpactOutcome_Import-Export'!F$7:F$13,MATCH($A14,'ImpactOutcome_Import-Export'!$B$7:$B$13,0)),\"\"))","v":""},{"$f":"IF(B14=\"\",\"\",IFERROR(IF(INDEX('ImpactOutcome_Import-Export'!K$7:K$13,MATCH($A14,'ImpactOutcome_Import-Export'!$B$7:$B$13,0))=\"\",\"\",INDEX('ImpactOutcome_Import-Export'!K$7:K$13,MATCH($A14,'ImpactOutcome_Import-Export'!$B$7:$B$13,0))),\"\"))","v":""},{"$f":"IF(B14=\"\",\"\",IFERROR(IF(INDEX('ImpactOutcome_Import-Export'!L$7:L$13,MATCH($A14,'ImpactOutcome_Import-Export'!$B$7:$B$13,0))=\"\",\"\",INDEX('ImpactOutcome_Import-Export'!L$7:L$13,MATCH($A14,'ImpactOutcome_Import-Export'!$B$7:$B$13,0))),\"\"))","v":""},{"$f":"IF(B14=\"\",\"\",IFERROR(IF(INDEX('ImpactOutcome_Import-Export'!M$7:M$13,MATCH($A14,'ImpactOutcome_Import-Export'!$B$7:$B$13,0))=\"\",\"\",INDEX('ImpactOutcome_Import-Export'!M$7:M$13,MATCH($A14,'ImpactOutcome_Import-Export'!$B$7:$B$13,0))),\"\"))","v":""},{"$f":"IF(B14=\"\",\"\",IFERROR(IF(INDEX('ImpactOutcome_Import-Export'!N$7:N$13,MATCH($A14,'ImpactOutcome_Import-Export'!$B$7:$B$13,0))=\"\",\"\",INDEX('ImpactOutcome_Import-Export'!N$7:N$13,MATCH($A14,'ImpactOutcome_Import-Export'!$B$7:$B$13,0))),\"\"))","v":""},{"$f":"IF(B14=\"\",\"\",IFERROR(IF(INDEX('ImpactOutcome_Import-Export'!O$7:O$13,MATCH($A14,'ImpactOutcome_Import-Export'!$B$7:$B$13,0))=\"\",\"\",INDEX('ImpactOutcome_Import-Export'!O$7:O$13,MATCH($A14,'ImpactOutcome_Import-Export'!$B$7:$B$13,0))),\"\"))","v":""},{"$f":"IF(B14=\"\",\"\",IFERROR(IF(INDEX('ImpactOutcome_Import-Export'!P$7:P$13,MATCH($A14,'ImpactOutcome_Import-Export'!$B$7:$B$13,0))=\"\",\"\",INDEX('ImpactOutcome_Import-Export'!P$7:P$13,MATCH($A14,'ImpactOutcome_Import-Export'!$B$7:$B$13,0))),\"\"))","v":""},{"$f":"IF(B14=\"\",\"\",IFERROR(IF(INDEX('ImpactOutcome_Import-Export'!Q$7:Q$13,MATCH($A14,'ImpactOutcome_Import-Export'!$B$7:$B$13,0))=\"\",\"\",INDEX('ImpactOutcome_Import-Export'!Q$7:Q$13,MATCH($A14,'ImpactOutcome_Import-Export'!$B$7:$B$13,0))),\"\"))","v":""},{"$f":"IF(B14=\"\",\"\",IFERROR(IF(INDEX('ImpactOutcome_Import-Export'!R$7:R$13,MATCH($A14,'ImpactOutcome_Import-Export'!$B$7:$B$13,0))=\"\",\"\",INDEX('ImpactOutcome_Import-Export'!R$7:R$13,MATCH($A14,'ImpactOutcome_Import-Export'!$B$7:$B$13,0))),\"\"))","v":""},null,null,"",null,null,null,"",null,null,null,"",null,null,null,"",null,null,"",null,""]
[{"$f":"IFERROR(IF(INDEX(Impactlist,MATCH(0,INDEX(COUNTIF(A$10:A14,Impactlist),0,0),0))<>\"\",INDEX(Impactlist,MATCH(0,INDEX(COUNTIF(A$10:A14,Impactlist),0,0),0)),INDEX(Outcomelist,MATCH(0,INDEX(COUNTIF(A$10:A14,Outcomelist),0,0),0))),\"\")","v":""},{"$f":"IFERROR(INDEX('ImpactOutcome_Import-Export'!D$7:D$200,MATCH($A15,'ImpactOutcome_Import-Export'!$B$7:$B$200,0)),\"\")","v":""},{"$f":"IF(B15=\"\",\"\",IFERROR(INDEX('ImpactOutcome_Import-Export'!F$7:F$13,MATCH($A15,'ImpactOutcome_Import-Export'!$B$7:$B$13,0)),\"\"))","v":""},{"$f":"IF(B15=\"\",\"\",IFERROR(IF(INDEX('ImpactOutcome_Import-Export'!K$7:K$13,MATCH($A15,'ImpactOutcome_Import-Export'!$B$7:$B$13,0))=\"\",\"\",INDEX('ImpactOutcome_Import-Export'!K$7:K$13,MATCH($A15,'ImpactOutcome_Import-Export'!$B$7:$B$13,0))),\"\"))","v":""},{"$f":"IF(B15=\"\",\"\",IFERROR(IF(INDEX('ImpactOutcome_Import-Export'!L$7:L$13,MATCH($A15,'ImpactOutcome_Import-Export'!$B$7:$B$13,0))=\"\",\"\",INDEX('ImpactOutcome_Import-Export'!L$7:L$13,MATCH($A15,'ImpactOutcome_Import-Export'!$B$7:$B$13,0))),\"\"))","v":""},{"$f":"IF(B15=\"\",\"\",IFERROR(IF(INDEX('ImpactOutcome_Import-Export'!M$7:M$13,MATCH($A15,'ImpactOutcome_Import-Export'!$B$7:$B$13,0))=\"\",\"\",INDEX('ImpactOutcome_Import-Export'!M$7:M$13,MATCH($A15,'ImpactOutcome_Import-Export'!$B$7:$B$13,0))),\"\"))","v":""},{"$f":"IF(B15=\"\",\"\",IFERROR(IF(INDEX('ImpactOutcome_Import-Export'!N$7:N$13,MATCH($A15,'ImpactOutcome_Import-Export'!$B$7:$B$13,0))=\"\",\"\",INDEX('ImpactOutcome_Import-Export'!N$7:N$13,MATCH($A15,'ImpactOutcome_Import-Export'!$B$7:$B$13,0))),\"\"))","v":""},{"$f":"IF(B15=\"\",\"\",IFERROR(IF(INDEX('ImpactOutcome_Import-Export'!O$7:O$13,MATCH($A15,'ImpactOutcome_Import-Export'!$B$7:$B$13,0))=\"\",\"\",INDEX('ImpactOutcome_Import-Export'!O$7:O$13,MATCH($A15,'ImpactOutcome_Import-Export'!$B$7:$B$13,0))),\"\"))","v":""},{"$f":"IF(B15=\"\",\"\",IFERROR(IF(INDEX('ImpactOutcome_Import-Export'!P$7:P$13,MATCH($A15,'ImpactOutcome_Import-Export'!$B$7:$B$13,0))=\"\",\"\",INDEX('ImpactOutcome_Import-Export'!P$7:P$13,MATCH($A15,'ImpactOutcome_Import-Export'!$B$7:$B$13,0))),\"\"))","v":""},{"$f":"IF(B15=\"\",\"\",IFERROR(IF(INDEX('ImpactOutcome_Import-Export'!Q$7:Q$13,MATCH($A15,'ImpactOutcome_Import-Export'!$B$7:$B$13,0))=\"\",\"\",INDEX('ImpactOutcome_Import-Export'!Q$7:Q$13,MATCH($A15,'ImpactOutcome_Import-Export'!$B$7:$B$13,0))),\"\"))","v":""},{"$f":"IF(B15=\"\",\"\",IFERROR(IF(INDEX('ImpactOutcome_Import-Export'!R$7:R$13,MATCH($A15,'ImpactOutcome_Import-Export'!$B$7:$B$13,0))=\"\",\"\",INDEX('ImpactOutcome_Import-Export'!R$7:R$13,MATCH($A15,'ImpactOutcome_Import-Export'!$B$7:$B$13,0))),\"\"))","v":""},null,null,"",null,null,null,"",null,null,null,"",null,null,null,"",null,null,"",null,""]
[{"$f":"IFERROR(IF(INDEX(Impactlist,MATCH(0,INDEX(COUNTIF(A$10:A15,Impactlist),0,0),0))<>\"\",INDEX(Impactlist,MATCH(0,INDEX(COUNTIF(A$10:A15,Impactlist),0,0),0)),INDEX(Outcomelist,MATCH(0,INDEX(COUNTIF(A$10:A15,Outcomelist),0,0),0))),\"\")","v":""},{"$f":"IFERROR(INDEX('ImpactOutcome_Import-Export'!D$7:D$200,MATCH($A16,'ImpactOutcome_Import-Export'!$B$7:$B$200,0)),\"\")","v":""},{"$f":"IF(B16=\"\",\"\",IFERROR(INDEX('ImpactOutcome_Import-Export'!F$7:F$13,MATCH($A16,'ImpactOutcome_Import-Export'!$B$7:$B$13,0)),\"\"))","v":""},{"$f":"IF(B16=\"\",\"\",IFERROR(IF(INDEX('ImpactOutcome_Import-Export'!K$7:K$13,MATCH($A16,'ImpactOutcome_Import-Export'!$B$7:$B$13,0))=\"\",\"\",INDEX('ImpactOutcome_Import-Export'!K$7:K$13,MATCH($A16,'ImpactOutcome_Import-Export'!$B$7:$B$13,0))),\"\"))","v":""},{"$f":"IF(B16=\"\",\"\",IFERROR(IF(INDEX('ImpactOutcome_Import-Export'!L$7:L$13,MATCH($A16,'ImpactOutcome_Import-Export'!$B$7:$B$13,0))=\"\",\"\",INDEX('ImpactOutcome_Import-Export'!L$7:L$13,MATCH($A16,'ImpactOutcome_Import-Export'!$B$7:$B$13,0))),\"\"))","v":""},{"$f":"IF(B16=\"\",\"\",IFERROR(IF(INDEX('ImpactOutcome_Import-Export'!M$7:M$13,MATCH($A16,'ImpactOutcome_Import-Export'!$B$7:$B$13,0))=\"\",\"\",INDEX('ImpactOutcome_Import-Export'!M$7:M$13,MATCH($A16,'ImpactOutcome_Import-Export'!$B$7:$B$13,0))),\"\"))","v":""},{"$f":"IF(B16=\"\",\"\",IFERROR(IF(INDEX('ImpactOutcome_Import-Export'!N$7:N$13,MATCH($A16,'ImpactOutcome_Import-Export'!$B$7:$B$13,0))=\"\",\"\",INDEX('ImpactOutcome_Import-Export'!N$7:N$13,MATCH($A16,'ImpactOutcome_Import-Export'!$B$7:$B$13,0))),\"\"))","v":""},{"$f":"IF(B16=\"\",\"\",IFERROR(IF(INDEX('ImpactOutcome_Import-Export'!O$7:O$13,MATCH($A16,'ImpactOutcome_Import-Export'!$B$7:$B$13,0))=\"\",\"\",INDEX('ImpactOutcome_Import-Export'!O$7:O$13,MATCH($A16,'ImpactOutcome_Import-Export'!$B$7:$B$13,0))),\"\"))","v":""},{"$f":"IF(B16=\"\",\"\",IFERROR(IF(INDEX('ImpactOutcome_Import-Export'!P$7:P$13,MATCH($A16,'ImpactOutcome_Import-Export'!$B$7:$B$13,0))=\"\",\"\",INDEX('ImpactOutcome_Import-Export'!P$7:P$13,MATCH($A16,'ImpactOutcome_Import-Export'!$B$7:$B$13,0))),\"\"))","v":""},{"$f":"IF(B16=\"\",\"\",IFERROR(IF(INDEX('ImpactOutcome_Import-Export'!Q$7:Q$13,MATCH($A16,'ImpactOutcome_Import-Export'!$B$7:$B$13,0))=\"\",\"\",INDEX('ImpactOutcome_Import-Export'!Q$7:Q$13,MATCH($A16,'ImpactOutcome_Import-Export'!$B$7:$B$13,0))),\"\"))","v":""},{"$f":"IF(B16=\"\",\"\",IFERROR(IF(INDEX('ImpactOutcome_Import-Export'!R$7:R$13,MATCH($A16,'ImpactOutcome_Import-Export'!$B$7:$B$13,0))=\"\",\"\",INDEX('ImpactOutcome_Import-Export'!R$7:R$13,MATCH($A16,'ImpactOutcome_Import-Export'!$B$7:$B$13,0))),\"\"))","v":""},null,null,"",null,null,null,"",null,null,null,"",null,null,null,"",null,null,"",null,""]
[{"$f":"IFERROR(IF(INDEX(Impactlist,MATCH(0,INDEX(COUNTIF(A$10:A16,Impactlist),0,0),0))<>\"\",INDEX(Impactlist,MATCH(0,INDEX(COUNTIF(A$10:A16,Impactlist),0,0),0)),INDEX(Outcomelist,MATCH(0,INDEX(COUNTIF(A$10:A16,Outcomelist),0,0),0))),\"\")","v":""},{"$f":"IFERROR(INDEX('ImpactOutcome_Import-Export'!D$7:D$200,MATCH($A17,'ImpactOutcome_Import-Export'!$B$7:$B$200,0)),\"\")","v":""},{"$f":"IF(B17=\"\",\"\",IFERROR(INDEX('ImpactOutcome_Import-Export'!F$7:F$13,MATCH($A17,'ImpactOutcome_Import-Export'!$B$7:$B$13,0)),\"\"))","v":""},{"$f":"IF(B17=\"\",\"\",IFERROR(IF(INDEX('ImpactOutcome_Import-Export'!K$7:K$13,MATCH($A17,'ImpactOutcome_Import-Export'!$B$7:$B$13,0))=\"\",\"\",INDEX('ImpactOutcome_Import-Export'!K$7:K$13,MATCH($A17,'ImpactOutcome_Import-Export'!$B$7:$B$13,0))),\"\"))","v":""},{"$f":"IF(B17=\"\",\"\",IFERROR(IF(INDEX('ImpactOutcome_Import-Export'!L$7:L$13,MATCH($A17,'ImpactOutcome_Import-Export'!$B$7:$B$13,0))=\"\",\"\",INDEX('ImpactOutcome_Import-Export'!L$7:L$13,MATCH($A17,'ImpactOutcome_Import-Export'!$B$7:$B$13,0))),\"\"))","v":""},{"$f":"IF(B17=\"\",\"\",IFERROR(IF(INDEX('ImpactOutcome_Import-Export'!M$7:M$13,MATCH($A17,'ImpactOutcome_Import-Export'!$B$7:$B$13,0))=\"\",\"\",INDEX('ImpactOutcome_Import-Export'!M$7:M$13,MATCH($A17,'ImpactOutcome_Import-Export'!$B$7:$B$13,0))),\"\"))","v":""},{"$f":"IF(B17=\"\",\"\",IFERROR(IF(INDEX('ImpactOutcome_Import-Export'!N$7:N$13,MATCH($A17,'ImpactOutcome_Import-Export'!$B$7:$B$13,0))=\"\",\"\",INDEX('ImpactOutcome_Import-Export'!N$7:N$13,MATCH($A17,'ImpactOutcome_Import-Export'!$B$7:$B$13,0))),\"\"))","v":""},{"$f":"IF(B17=\"\",\"\",IFERROR(IF(INDEX('ImpactOutcome_Import-Export'!O$7:O$13,MATCH($A17,'ImpactOutcome_Import-Export'!$B$7:$B$13,0))=\"\",\"\",INDEX('ImpactOutcome_Import-Export'!O$7:O$13,MATCH($A17,'ImpactOutcome_Import-Export'!$B$7:$B$13,0))),\"\"))","v":""},{"$f":"IF(B17=\"\",\"\",IFERROR(IF(INDEX('ImpactOutcome_Import-Export'!P$7:P$13,MATCH($A17,'ImpactOutcome_Import-Export'!$B$7:$B$13,0))=\"\",\"\",INDEX('ImpactOutcome_Import-Export'!P$7:P$13,MATCH($A17,'ImpactOutcome_Import-Export'!$B$7:$B$13,0))),\"\"))","v":""},{"$f":"IF(B17=\"\",\"\",IFERROR(IF(INDEX('ImpactOutcome_Import-Export'!Q$7:Q$13,MATCH($A17,'ImpactOutcome_Import-Export'!$B$7:$B$13,0))=\"\",\"\",INDEX('ImpactOutcome_Import-Export'!Q$7:Q$13,MATCH($A17,'ImpactOutcome_Import-Export'!$B$7:$B$13,0))),\"\"))","v":""},{"$f":"IF(B17=\"\",\"\",IFERROR(IF(INDEX('ImpactOutcome_Import-Export'!R$7:R$13,MATCH($A17,'ImpactOutcome_Import-Export'!$B$7:$B$13,0))=\"\",\"\",INDEX('ImpactOutcome_Import-Export'!R$7:R$13,MATCH($A17,'ImpactOutcome_Import-Export'!$B$7:$B$13,0))),\"\"))","v":""},null,null,"",null,null,null,"",null,null,null,"",null,null,null,"",null,null,"",null,""]
[{"$f":"IFERROR(IF(INDEX(Impactlist,MATCH(0,INDEX(COUNTIF(A$10:A17,Impactlist),0,0),0))<>\"\",INDEX(Impactlist,MATCH(0,INDEX(COUNTIF(A$10:A17,Impactlist),0,0),0)),INDEX(Outcomelist,MATCH(0,INDEX(COUNTIF(A$10:A17,Outcomelist),0,0),0))),\"\")","v":""},{"$f":"IFERROR(INDEX('ImpactOutcome_Import-Export'!D$7:D$200,MATCH($A18,'ImpactOutcome_Import-Export'!$B$7:$B$200,0)),\"\")","v":""},{"$f":"IF(B18=\"\",\"\",IFERROR(INDEX('ImpactOutcome_Import-Export'!F$7:F$13,MATCH($A18,'ImpactOutcome_Import-Export'!$B$7:$B$13,0)),\"\"))","v":""},{"$f":"IF(B18=\"\",\"\",IFERROR(IF(INDEX('ImpactOutcome_Import-Export'!K$7:K$13,MATCH($A18,'ImpactOutcome_Import-Export'!$B$7:$B$13,0))=\"\",\"\",INDEX('ImpactOutcome_Import-Export'!K$7:K$13,MATCH($A18,'ImpactOutcome_Import-Export'!$B$7:$B$13,0))),\"\"))","v":""},{"$f":"IF(B18=\"\",\"\",IFERROR(IF(INDEX('ImpactOutcome_Import-Export'!L$7:L$13,MATCH($A18,'ImpactOutcome_Import-Export'!$B$7:$B$13,0))=\"\",\"\",INDEX('ImpactOutcome_Import-Export'!L$7:L$13,MATCH($A18,'ImpactOutcome_Import-Export'!$B$7:$B$13,0))),\"\"))","v":""},{"$f":"IF(B18=\"\",\"\",IFERROR(IF(INDEX('ImpactOutcome_Import-Export'!M$7:M$13,MATCH($A18,'ImpactOutcome_Import-Export'!$B$7:$B$13,0))=\"\",\"\",INDEX('ImpactOutcome_Import-Export'!M$7:M$13,MATCH($A18,'ImpactOutcome_Import-Export'!$B$7:$B$13,0))),\"\"))","v":""},{"$f":"IF(B18=\"\",\"\",IFERROR(IF(INDEX('ImpactOutcome_Import-Export'!N$7:N$13,MATCH($A18,'ImpactOutcome_Import-Export'!$B$7:$B$13,0))=\"\",\"\",INDEX('ImpactOutcome_Import-Export'!N$7:N$13,MATCH($A18,'ImpactOutcome_Import-Export'!$B$7:$B$13,0))),\"\"))","v":""},{"$f":"IF(B18=\"\",\"\",IFERROR(IF(INDEX('ImpactOutcome_Import-Export'!O$7:O$13,MATCH($A18,'ImpactOutcome_Import-Export'!$B$7:$B$13,0))=\"\",\"\",INDEX('ImpactOutcome_Import-Export'!O$7:O$13,MATCH($A18,'ImpactOutcome_Import-Export'!$B$7:$B$13,0))),\"\"))","v":""},{"$f":"IF(B18=\"\",\"\",IFERROR(IF(INDEX('ImpactOutcome_Import-Export'!P$7:P$13,MATCH($A18,'ImpactOutcome_Import-Export'!$B$7:$B$13,0))=\"\",\"\",INDEX('ImpactOutcome_Import-Export'!P$7:P$13,MATCH($A18,'ImpactOutcome_Import-Export'!$B$7:$B$13,0))),\"\"))","v":""},{"$f":"IF(B18=\"\",\"\",IFERROR(IF(INDEX('ImpactOutcome_Import-Export'!Q$7:Q$13,MATCH($A18,'ImpactOutcome_Import-Export'!$B$7:$B$13,0))=\"\",\"\",INDEX('ImpactOutcome_Import-Export'!Q$7:Q$13,MATCH($A18,'ImpactOutcome_Import-Export'!$B$7:$B$13,0))),\"\"))","v":""},{"$f":"IF(B18=\"\",\"\",IFERROR(IF(INDEX('ImpactOutcome_Import-Export'!R$7:R$13,MATCH($A18,'ImpactOutcome_Import-Export'!$B$7:$B$13,0))=\"\",\"\",INDEX('ImpactOutcome_Import-Export'!R$7:R$13,MATCH($A18,'ImpactOutcome_Import-Export'!$B$7:$B$13,0))),\"\"))","v":""},null,null,"",null,null,null,"",null,null,null,"",null,null,null,"",null,null,"",null,""]
[{"$f":"IFERROR(IF(INDEX(Impactlist,MATCH(0,INDEX(COUNTIF(A$10:A18,Impactlist),0,0),0))<>\"\",INDEX(Impactlist,MATCH(0,INDEX(COUNTIF(A$10:A18,Impactlist),0,0),0)),INDEX(Outcomelist,MATCH(0,INDEX(COUNTIF(A$10:A18,Outcomelist),0,0),0))),\"\")","v":""},{"$f":"IFERROR(INDEX('ImpactOutcome_Import-Export'!D$7:D$200,MATCH($A19,'ImpactOutcome_Import-Export'!$B$7:$B$200,0)),\"\")","v":""},{"$f":"IF(B19=\"\",\"\",IFERROR(INDEX('ImpactOutcome_Import-Export'!F$7:F$13,MATCH($A19,'ImpactOutcome_Import-Export'!$B$7:$B$13,0)),\"\"))","v":""},{"$f":"IF(B19=\"\",\"\",IFERROR(IF(INDEX('ImpactOutcome_Import-Export'!K$7:K$13,MATCH($A19,'ImpactOutcome_Import-Export'!$B$7:$B$13,0))=\"\",\"\",INDEX('ImpactOutcome_Import-Export'!K$7:K$13,MATCH($A19,'ImpactOutcome_Import-Export'!$B$7:$B$13,0))),\"\"))","v":""},{"$f":"IF(B19=\"\",\"\",IFERROR(IF(INDEX('ImpactOutcome_Import-Export'!L$7:L$13,MATCH($A19,'ImpactOutcome_Import-Export'!$B$7:$B$13,0))=\"\",\"\",INDEX('ImpactOutcome_Import-Export'!L$7:L$13,MATCH($A19,'ImpactOutcome_Import-Export'!$B$7:$B$13,0))),\"\"))","v":""},{"$f":"IF(B19=\"\",\"\",IFERROR(IF(INDEX('ImpactOutcome_Import-Export'!M$7:M$13,MATCH($A19,'ImpactOutcome_Import-Export'!$B$7:$B$13,0))=\"\",\"\",INDEX('ImpactOutcome_Import-Export'!M$7:M$13,MATCH($A19,'ImpactOutcome_Import-Export'!$B$7:$B$13,0))),\"\"))","v":""},{"$f":"IF(B19=\"\",\"\",IFERROR(IF(INDEX('ImpactOutcome_Import-Export'!N$7:N$13,MATCH($A19,'ImpactOutcome_Import-Export'!$B$7:$B$13,0))=\"\",\"\",INDEX('ImpactOutcome_Import-Export'!N$7:N$13,MATCH($A19,'ImpactOutcome_Import-Export'!$B$7:$B$13,0))),\"\"))","v":""},{"$f":"IF(B19=\"\",\"\",IFERROR(IF(INDEX('ImpactOutcome_Import-Export'!O$7:O$13,MATCH($A19,'ImpactOutcome_Import-Export'!$B$7:$B$13,0))=\"\",\"\",INDEX('ImpactOutcome_Import-Export'!O$7:O$13,MATCH($A19,'ImpactOutcome_Import-Export'!$B$7:$B$13,0))),\"\"))","v":""},{"$f":"IF(B19=\"\",\"\",IFERROR(IF(INDEX('ImpactOutcome_Import-Export'!P$7:P$13,MATCH($A19,'ImpactOutcome_Import-Export'!$B$7:$B$13,0))=\"\",\"\",INDEX('ImpactOutcome_Import-Export'!P$7:P$13,MATCH($A19,'ImpactOutcome_Import-Export'!$B$7:$B$13,0))),\"\"))","v":""},{"$f":"IF(B19=\"\",\"\",IFERROR(IF(INDEX('ImpactOutcome_Import-Export'!Q$7:Q$13,MATCH($A19,'ImpactOutcome_Import-Export'!$B$7:$B$13,0))=\"\",\"\",INDEX('ImpactOutcome_Import-Export'!Q$7:Q$13,MATCH($A19,'ImpactOutcome_Import-Export'!$B$7:$B$13,0))),\"\"))","v":""},{"$f":"IF(B19=\"\",\"\",IFERROR(IF(INDEX('ImpactOutcome_Import-Export'!R$7:R$13,MATCH($A19,'ImpactOutcome_Import-Export'!$B$7:$B$13,0))=\"\",\"\",INDEX('ImpactOutcome_Import-Export'!R$7:R$13,MATCH($A19,'ImpactOutcome_Import-Export'!$B$7:$B$13,0))),\"\"))","v":""},null,null,"",null,null,null,"",null,null,null,"",null,null,null,"",null,null,"",null,""]
[{"$f":"IFERROR(IF(INDEX(Impactlist,MATCH(0,INDEX(COUNTIF(A$10:A19,Impactlist),0,0),0))<>\"\",INDEX(Impactlist,MATCH(0,INDEX(COUNTIF(A$10:A19,Impactlist),0,0),0)),INDEX(Outcomelist,MATCH(0,INDEX(COUNTIF(A$10:A19,Outcomelist),0,0),0))),\"\")","v":""},{"$f":"IFERROR(INDEX('ImpactOutcome_Import-Export'!D$7:D$200,MATCH($A20,'ImpactOutcome_Import-Export'!$B$7:$B$200,0)),\"\")","v":""},{"$f":"IF(B20=\"\",\"\",IFERROR(INDEX('ImpactOutcome_Import-Export'!F$7:F$13,MATCH($A20,'ImpactOutcome_Import-Export'!$B$7:$B$13,0)),\"\"))","v":""},{"$f":"IF(B20=\"\",\"\",IFERROR(IF(INDEX('ImpactOutcome_Import-Export'!K$7:K$13,MATCH($A20,'ImpactOutcome_Import-Export'!$B$7:$B$13,0))=\"\",\"\",INDEX('ImpactOutcome_Import-Export'!K$7:K$13,MATCH($A20,'ImpactOutcome_Import-Export'!$B$7:$B$13,0))),\"\"))","v":""},{"$f":"IF(B20=\"\",\"\",IFERROR(IF(INDEX('ImpactOutcome_Import-Export'!L$7:L$13,MATCH($A20,'ImpactOutcome_Import-Export'!$B$7:$B$13,0))=\"\",\"\",INDEX('ImpactOutcome_Import-Export'!L$7:L$13,MATCH($A20,'ImpactOutcome_Import-Export'!$B$7:$B$13,0))),\"\"))","v":""},{"$f":"IF(B20=\"\",\"\",IFERROR(IF(INDEX('ImpactOutcome_Import-Export'!M$7:M$13,MATCH($A20,'ImpactOutcome_Import-Export'!$B$7:$B$13,0))=\"\",\"\",INDEX('ImpactOutcome_Import-Export'!M$7:M$13,MATCH($A20,'ImpactOutcome_Import-Export'!$B$7:$B$13,0))),\"\"))","v":""},{"$f":"IF(B20=\"\",\"\",IFERROR(IF(INDEX('ImpactOutcome_Import-Export'!N$7:N$13,MATCH($A20,'ImpactOutcome_Import-Export'!$B$7:$B$13,0))=\"\",\"\",INDEX('ImpactOutcome_Import-Export'!N$7:N$13,MATCH($A20,'ImpactOutcome_Import-Export'!$B$7:$B$13,0))),\"\"))","v":""},{"$f":"IF(B20=\"\",\"\",IFERROR(IF(INDEX('ImpactOutcome_Import-Export'!O$7:O$13,MATCH($A20,'ImpactOutcome_Import-Export'!$B$7:$B$13,0))=\"\",\"\",INDEX('ImpactOutcome_Import-Export'!O$7:O$13,MATCH($A20,'ImpactOutcome_Import-Export'!$B$7:$B$13,0))),\"\"))","v":""},{"$f":"IF(B20=\"\",\"\",IFERROR(IF(INDEX('ImpactOutcome_Import-Export'!P$7:P$13,MATCH($A20,'ImpactOutcome_Import-Export'!$B$7:$B$13,0))=\"\",\"\",INDEX('ImpactOutcome_Import-Export'!P$7:P$13,MATCH($A20,'ImpactOutcome_Import-Export'!$B$7:$B$13,0))),\"\"))","v":""},{"$f":"IF(B20=\"\",\"\",IFERROR(IF(INDEX('ImpactOutcome_Import-Export'!Q$7:Q$13,MATCH($A20,'ImpactOutcome_Import-Export'!$B$7:$B$13,0))=\"\",\"\",INDEX('ImpactOutcome_Import-Export'!Q$7:Q$13,MATCH($A20,'ImpactOutcome_Import-Export'!$B$7:$B$13,0))),\"\"))","v":""},{"$f":"IF(B20=\"\",\"\",IFERROR(IF(INDEX('ImpactOutcome_Import-Export'!R$7:R$13,MATCH($A20,'ImpactOutcome_Import-Export'!$B$7:$B$13,0))=\"\",\"\",INDEX('ImpactOutcome_Import-Export'!R$7:R$13,MATCH($A20,'ImpactOutcome_Import-Export'!$B$7:$B$13,0))),\"\"))","v":""},null,null,"",null,null,null,"",null,null,null,"",null,null,null,"",null,null,"",null,""]
[{"$f":"IFERROR(IF(INDEX(Impactlist,MATCH(0,INDEX(COUNTIF(A$10:A20,Impactlist),0,0),0))<>\"\",INDEX(Impactlist,MATCH(0,INDEX(COUNTIF(A$10:A20,Impactlist),0,0),0)),INDEX(Outcomelist,MATCH(0,INDEX(COUNTIF(A$10:A20,Outcomelist),0,0),0))),\"\")","v":""},{"$f":"IFERROR(INDEX('ImpactOutcome_Import-Export'!D$7:D$200,MATCH($A21,'ImpactOutcome_Import-Export'!$B$7:$B$200,0)),\"\")","v":""},{"$f":"IF(B21=\"\",\"\",IFERROR(INDEX('ImpactOutcome_Import-Export'!F$7:F$13,MATCH($A21,'ImpactOutcome_Import-Export'!$B$7:$B$13,0)),\"\"))","v":""},{"$f":"IF(B21=\"\",\"\",IFERROR(IF(INDEX('ImpactOutcome_Import-Export'!K$7:K$13,MATCH($A21,'ImpactOutcome_Import-Export'!$B$7:$B$13,0))=\"\",\"\",INDEX('ImpactOutcome_Import-Export'!K$7:K$13,MATCH($A21,'ImpactOutcome_Import-Export'!$B$7:$B$13,0))),\"\"))","v":""},{"$f":"IF(B21=\"\",\"\",IFERROR(IF(INDEX('ImpactOutcome_Import-Export'!L$7:L$13,MATCH($A21,'ImpactOutcome_Import-Export'!$B$7:$B$13,0))=\"\",\"\",INDEX('ImpactOutcome_Import-Export'!L$7:L$13,MATCH($A21,'ImpactOutcome_Import-Export'!$B$7:$B$13,0))),\"\"))","v":""},{"$f":"IF(B21=\"\",\"\",IFERROR(IF(INDEX('ImpactOutcome_Import-Export'!M$7:M$13,MATCH($A21,'ImpactOutcome_Import-Export'!$B$7:$B$13,0))=\"\",\"\",INDEX('ImpactOutcome_Import-Export'!M$7:M$13,MATCH($A21,'ImpactOutcome_Import-Export'!$B$7:$B$13,0))),\"\"))","v":""},{"$f":"IF(B21=\"\",\"\",IFERROR(IF(INDEX('ImpactOutcome_Import-Export'!N$7:N$13,MATCH($A21,'ImpactOutcome_Import-Export'!$B$7:$B$13,0))=\"\",\"\",INDEX('ImpactOutcome_Import-Export'!N$7:N$13,MATCH($A21,'ImpactOutcome_Import-Export'!$B$7:$B$13,0))),\"\"))","v":""},{"$f":"IF(B21=\"\",\"\",IFERROR(IF(INDEX('ImpactOutcome_Import-Export'!O$7:O$13,MATCH($A21,'ImpactOutcome_Import-Export'!$B$7:$B$13,0))=\"\",\"\",INDEX('ImpactOutcome_Import-Export'!O$7:O$13,MATCH($A21,'ImpactOutcome_Import-Export'!$B$7:$B$13,0))),\"\"))","v":""},{"$f":"IF(B21=\"\",\"\",IFERROR(IF(INDEX('ImpactOutcome_Import-Export'!P$7:P$13,MATCH($A21,'ImpactOutcome_Import-Export'!$B$7:$B$13,0))=\"\",\"\",INDEX('ImpactOutcome_Import-Export'!P$7:P$13,MATCH($A21,'ImpactOutcome_Import-Export'!$B$7:$B$13,0))),\"\"))","v":""},{"$f":"IF(B21=\"\",\"\",IFERROR(IF(INDEX('ImpactOutcome_Import-Export'!Q$7:Q$13,MATCH($A21,'ImpactOutcome_Import-Export'!$B$7:$B$13,0))=\"\",\"\",INDEX('ImpactOutcome_Import-Export'!Q$7:Q$13,MATCH($A21,'ImpactOutcome_Import-Export'!$B$7:$B$13,0))),\"\"))","v":""},{"$f":"IF(B21=\"\",\"\",IFERROR(IF(INDEX('ImpactOutcome_Import-Export'!R$7:R$13,MATCH($A21,'ImpactOutcome_Import-Export'!$B$7:$B$13,0))=\"\",\"\",INDEX('ImpactOutcome_Import-Export'!R$7:R$13,MATCH($A21,'ImpactOutcome_Import-Export'!$B$7:$B$13,0))),\"\"))","v":""},null,null,"",null,null,null,"",null,null,null,"",null,null,null,"",null,null,"",null,""]
[{"$f":"IFERROR(IF(INDEX(Impactlist,MATCH(0,INDEX(COUNTIF(A$10:A21,Impactlist),0,0),0))<>\"\",INDEX(Impactlist,MATCH(0,INDEX(COUNTIF(A$10:A21,Impactlist),0,0),0)),INDEX(Outcomelist,MATCH(0,INDEX(COUNTIF(A$10:A21,Outcomelist),0,0),0))),\"\")","v":""},{"$f":"IFERROR(INDEX('ImpactOutcome_Import-Export'!D$7:D$200,MATCH($A22,'ImpactOutcome_Import-Export'!$B$7:$B$200,0)),\"\")","v":""},{"$f":"IF(B22=\"\",\"\",IFERROR(INDEX('ImpactOutcome_Import-Export'!F$7:F$13,MATCH($A22,'ImpactOutcome_Import-Export'!$B$7:$B$13,0)),\"\"))","v":""},{"$f":"IF(B22=\"\",\"\",IFERROR(IF(INDEX('ImpactOutcome_Import-Export'!K$7:K$13,MATCH($A22,'ImpactOutcome_Import-Export'!$B$7:$B$13,0))=\"\",\"\",INDEX('ImpactOutcome_Import-Export'!K$7:K$13,MATCH($A22,'ImpactOutcome_Import-Export'!$B$7:$B$13,0))),\"\"))","v":""},{"$f":"IF(B22=\"\",\"\",IFERROR(IF(INDEX('ImpactOutcome_Import-Export'!L$7:L$13,MATCH($A22,'ImpactOutcome_Import-Export'!$B$7:$B$13,0))=\"\",\"\",INDEX('ImpactOutcome_Import-Export'!L$7:L$13,MATCH($A22,'ImpactOutcome_Import-Export'!$B$7:$B$13,0))),\"\"))","v":""},{"$f":"IF(B22=\"\",\"\",IFERROR(IF(INDEX('ImpactOutcome_Import-Export'!M$7:M$13,MATCH($A22,'ImpactOutcome_Import-Export'!$B$7:$B$13,0))=\"\",\"\",INDEX('ImpactOutcome_Import-Export'!M$7:M$13,MATCH($A22,'ImpactOutcome_Import-Export'!$B$7:$B$13,0))),\"\"))","v":""},{"$f":"IF(B22=\"\",\"\",IFERROR(IF(INDEX('ImpactOutcome_Import-Export'!N$7:N$13,MATCH($A22,'ImpactOutcome_Import-Export'!$B$7:$B$13,0))=\"\",\"\",INDEX('ImpactOutcome_Import-Export'!N$7:N$13,MATCH($A22,'ImpactOutcome_Import-Export'!$B$7:$B$13,0))),\"\"))","v":""},{"$f":"IF(B22=\"\",\"\",IFERROR(IF(INDEX('ImpactOutcome_Import-Export'!O$7:O$13,MATCH($A22,'ImpactOutcome_Import-Export'!$B$7:$B$13,0))=\"\",\"\",INDEX('ImpactOutcome_Import-Export'!O$7:O$13,MATCH($A22,'ImpactOutcome_Import-Export'!$B$7:$B$13,0))),\"\"))","v":""},{"$f":"IF(B22=\"\",\"\",IFERROR(IF(INDEX('ImpactOutcome_Import-Export'!P$7:P$13,MATCH($A22,'ImpactOutcome_Import-Export'!$B$7:$B$13,0))=\"\",\"\",INDEX('ImpactOutcome_Import-Export'!P$7:P$13,MATCH($A22,'ImpactOutcome_Import-Export'!$B$7:$B$13,0))),\"\"))","v":""},{"$f":"IF(B22=\"\",\"\",IFERROR(IF(INDEX('ImpactOutcome_Import-Export'!Q$7:Q$13,MATCH($A22,'ImpactOutcome_Import-Export'!$B$7:$B$13,0))=\"\",\"\",INDEX('ImpactOutcome_Import-Export'!Q$7:Q$13,MATCH($A22,'ImpactOutcome_Import-Export'!$B$7:$B$13,0))),\"\"))","v":""},{"$f":"IF(B22=\"\",\"\",IFERROR(IF(INDEX('ImpactOutcome_Import-Export'!R$7:R$13,MATCH($A22,'ImpactOutcome_Import-Export'!$B$7:$B$13,0))=\"\",\"\",INDEX('ImpactOutcome_Import-Export'!R$7:R$13,MATCH($A22,'ImpactOutcome_Import-Export'!$B$7:$B$13,0))),\"\"))","v":""},null,null,"",null,null,null,"",null,null,null,"",null,null,null,"",null,null,"",null,""]
[{"$f":"IFERROR(IF(INDEX(Impactlist,MATCH(0,INDEX(COUNTIF(A$10:A22,Impactlist),0,0),0))<>\"\",INDEX(Impactlist,MATCH(0,INDEX(COUNTIF(A$10:A22,Impactlist),0,0),0)),INDEX(Outcomelist,MATCH(0,INDEX(COUNTIF(A$10:A22,Outcomelist),0,0),0))),\"\")","v":""},{"$f":"IFERROR(INDEX('ImpactOutcome_Import-Export'!D$7:D$200,MATCH($A23,'ImpactOutcome_Import-Export'!$B$7:$B$200,0)),\"\")","v":""},{"$f":"IF(B23=\"\",\"\",IFERROR(INDEX('ImpactOutcome_Import-Export'!F$7:F$13,MATCH($A23,'ImpactOutcome_Import-Export'!$B$7:$B$13,0)),\"\"))","v":""},{"$f":"IF(B23=\"\",\"\",IFERROR(IF(INDEX('ImpactOutcome_Import-Export'!K$7:K$13,MATCH($A23,'ImpactOutcome_Import-Export'!$B$7:$B$13,0))=\"\",\"\",INDEX('ImpactOutcome_Import-Export'!K$7:K$13,MATCH($A23,'ImpactOutcome_Import-Export'!$B$7:$B$13,0))),\"\"))","v":""},{"$f":"IF(B23=\"\",\"\",IFERROR(IF(INDEX('ImpactOutcome_Import-Export'!L$7:L$13,MATCH($A23,'ImpactOutcome_Import-Export'!$B$7:$B$13,0))=\"\",\"\",INDEX('ImpactOutcome_Import-Export'!L$7:L$13,MATCH($A23,'ImpactOutcome_Import-Export'!$B$7:$B$13,0))),\"\"))","v":""},{"$f":"IF(B23=\"\",\"\",IFERROR(IF(INDEX('ImpactOutcome_Import-Export'!M$7:M$13,MATCH($A23,'ImpactOutcome_Import-Export'!$B$7:$B$13,0))=\"\",\"\",INDEX('ImpactOutcome_Import-Export'!M$7:M$13,MATCH($A23,'ImpactOutcome_Import-Export'!$B$7:$B$13,0))),\"\"))","v":""},{"$f":"IF(B23=\"\",\"\",IFERROR(IF(INDEX('ImpactOutcome_Import-Export'!N$7:N$13,MATCH($A23,'ImpactOutcome_Import-Export'!$B$7:$B$13,0))=\"\",\"\",INDEX('ImpactOutcome_Import-Export'!N$7:N$13,MATCH($A23,'ImpactOutcome_Import-Export'!$B$7:$B$13,0))),\"\"))","v":""},{"$f":"IF(B23=\"\",\"\",IFERROR(IF(INDEX('ImpactOutcome_Import-Export'!O$7:O$13,MATCH($A23,'ImpactOutcome_Import-Export'!$B$7:$B$13,0))=\"\",\"\",INDEX('ImpactOutcome_Import-Export'!O$7:O$13,MATCH($A23,'ImpactOutcome_Import-Export'!$B$7:$B$13,0))),\"\"))","v":""},{"$f":"IF(B23=\"\",\"\",IFERROR(IF(INDEX('ImpactOutcome_Import-Export'!P$7:P$13,MATCH($A23,'ImpactOutcome_Import-Export'!$B$7:$B$13,0))=\"\",\"\",INDEX('ImpactOutcome_Import-Export'!P$7:P$13,MATCH($A23,'ImpactOutcome_Import-Export'!$B$7:$B$13,0))),\"\"))","v":""},{"$f":"IF(B23=\"\",\"\",IFERROR(IF(INDEX('ImpactOutcome_Import-Export'!Q$7:Q$13,MATCH($A23,'ImpactOutcome_Import-Export'!$B$7:$B$13,0))=\"\",\"\",INDEX('ImpactOutcome_Import-Export'!Q$7:Q$13,MATCH($A23,'ImpactOutcome_Import-Export'!$B$7:$B$13,0))),\"\"))","v":""},{"$f":"IF(B23=\"\",\"\",IFERROR(IF(INDEX('ImpactOutcome_Import-Export'!R$7:R$13,MATCH($A23,'ImpactOutcome_Import-Export'!$B$7:$B$13,0))=\"\",\"\",INDEX('ImpactOutcome_Import-Export'!R$7:R$13,MATCH($A23,'ImpactOutcome_Import-Export'!$B$7:$B$13,0))),\"\"))","v":""},null,null,"",null,null,null,"",null,null,null,"",null,null,null,"",null,null,"",null,""]
[{"$f":"IFERROR(IF(INDEX(Impactlist,MATCH(0,INDEX(COUNTIF(A$10:A23,Impactlist),0,0),0))<>\"\",INDEX(Impactlist,MATCH(0,INDEX(COUNTIF(A$10:A23,Impactlist),0,0),0)),INDEX(Outcomelist,MATCH(0,INDEX(COUNTIF(A$10:A23,Outcomelist),0,0),0))),\"\")","v":""},{"$f":"IFERROR(INDEX('ImpactOutcome_Import-Export'!D$7:D$200,MATCH($A24,'ImpactOutcome_Import-Export'!$B$7:$B$200,0)),\"\")","v":""},{"$f":"IF(B24=\"\",\"\",IFERROR(INDEX('ImpactOutcome_Import-Export'!F$7:F$13,MATCH($A24,'ImpactOutcome_Import-Export'!$B$7:$B$13,0)),\"\"))","v":""},{"$f":"IF(B24=\"\",\"\",IFERROR(IF(INDEX('ImpactOutcome_Import-Export'!K$7:K$13,MATCH($A24,'ImpactOutcome_Import-Export'!$B$7:$B$13,0))=\"\",\"\",INDEX('ImpactOutcome_Import-Export'!K$7:K$13,MATCH($A24,'ImpactOutcome_Import-Export'!$B$7:$B$13,0))),\"\"))","v":""},{"$f":"IF(B24=\"\",\"\",IFERROR(IF(INDEX('ImpactOutcome_Import-Export'!L$7:L$13,MATCH($A24,'ImpactOutcome_Import-Export'!$B$7:$B$13,0))=\"\",\"\",INDEX('ImpactOutcome_Import-Export'!L$7:L$13,MATCH($A24,'ImpactOutcome_Import-Export'!$B$7:$B$13,0))),\"\"))","v":""},{"$f":"IF(B24=\"\",\"\",IFERROR(IF(INDEX('ImpactOutcome_Import-Export'!M$7:M$13,MATCH($A24,'ImpactOutcome_Import-Export'!$B$7:$B$13,0))=\"\",\"\",INDEX('ImpactOutcome_Import-Export'!M$7:M$13,MATCH($A24,'ImpactOutcome_Import-Export'!$B$7:$B$13,0))),\"\"))","v":""},{"$f":"IF(B24=\"\",\"\",IFERROR(IF(INDEX('ImpactOutcome_Import-Export'!N$7:N$13,MATCH($A24,'ImpactOutcome_Import-Export'!$B$7:$B$13,0))=\"\",\"\",INDEX('ImpactOutcome_Import-Export'!N$7:N$13,MATCH($A24,'ImpactOutcome_Import-Export'!$B$7:$B$13,0))),\"\"))","v":""},{"$f":"IF(B24=\"\",\"\",IFERROR(IF(INDEX('ImpactOutcome_Import-Export'!O$7:O$13,MATCH($A24,'ImpactOutcome_Import-Export'!$B$7:$B$13,0))=\"\",\"\",INDEX('ImpactOutcome_Import-Export'!O$7:O$13,MATCH($A24,'ImpactOutcome_Import-Export'!$B$7:$B$13,0))),\"\"))","v":""},{"$f":"IF(B24=\"\",\"\",IFERROR(IF(INDEX('ImpactOutcome_Import-Export'!P$7:P$13,MATCH($A24,'ImpactOutcome_Import-Export'!$B$7:$B$13,0))=\"\",\"\",INDEX('ImpactOutcome_Import-Export'!P$7:P$13,MATCH($A24,'ImpactOutcome_Import-Export'!$B$7:$B$13,0))),\"\"))","v":""},{"$f":"IF(B24=\"\",\"\",IFERROR(IF(INDEX('ImpactOutcome_Import-Export'!Q$7:Q$13,MATCH($A24,'ImpactOutcome_Import-Export'!$B$7:$B$13,0))=\"\",\"\",INDEX('ImpactOutcome_Import-Export'!Q$7:Q$13,MATCH($A24,'ImpactOutcome_Import-Export'!$B$7:$B$13,0))),\"\"))","v":""},{"$f":"IF(B24=\"\",\"\",IFERROR(IF(INDEX('ImpactOutcome_Import-Export'!R$7:R$13,MATCH($A24,'ImpactOutcome_Import-Export'!$B$7:$B$13,0))=\"\",\"\",INDEX('ImpactOutcome_Import-Export'!R$7:R$13,MATCH($A24,'ImpactOutcome_Import-Export'!$B$7:$B$13,0))),\"\"))","v":""},null,null,"",null,null,null,"",null,null,null,"",null,null,null,"",null,null,"",null,""]
[{"$f":"IFERROR(IF(INDEX(Impactlist,MATCH(0,INDEX(COUNTIF(A$10:A24,Impactlist),0,0),0))<>\"\",INDEX(Impactlist,MATCH(0,INDEX(COUNTIF(A$10:A24,Impactlist),0,0),0)),INDEX(Outcomelist,MATCH(0,INDEX(COUNTIF(A$10:A24,Outcomelist),0,0),0))),\"\")","v":""},{"$f":"IFERROR(INDEX('ImpactOutcome_Import-Export'!D$7:D$200,MATCH($A25,'ImpactOutcome_Import-Export'!$B$7:$B$200,0)),\"\")","v":""},{"$f":"IF(B25=\"\",\"\",IFERROR(INDEX('ImpactOutcome_Import-Export'!F$7:F$13,MATCH($A25,'ImpactOutcome_Import-Export'!$B$7:$B$13,0)),\"\"))","v":""},{"$f":"IF(B25=\"\",\"\",IFERROR(IF(INDEX('ImpactOutcome_Import-Export'!K$7:K$13,MATCH($A25,'ImpactOutcome_Import-Export'!$B$7:$B$13,0))=\"\",\"\",INDEX('ImpactOutcome_Import-Export'!K$7:K$13,MATCH($A25,'ImpactOutcome_Import-Export'!$B$7:$B$13,0))),\"\"))","v":""},{"$f":"IF(B25=\"\",\"\",IFERROR(IF(INDEX('ImpactOutcome_Import-Export'!L$7:L$13,MATCH($A25,'ImpactOutcome_Import-Export'!$B$7:$B$13,0))=\"\",\"\",INDEX('ImpactOutcome_Import-Export'!L$7:L$13,MATCH($A25,'ImpactOutcome_Import-Export'!$B$7:$B$13,0))),\"\"))","v":""},{"$f":"IF(B25=\"\",\"\",IFERROR(IF(INDEX('ImpactOutcome_Import-Export'!M$7:M$13,MATCH($A25,'ImpactOutcome_Import-Export'!$B$7:$B$13,0))=\"\",\"\",INDEX('ImpactOutcome_Import-Export'!M$7:M$13,MATCH($A25,'ImpactOutcome_Import-Export'!$B$7:$B$13,0))),\"\"))","v":""},{"$f":"IF(B25=\"\",\"\",IFERROR(IF(INDEX('ImpactOutcome_Import-Export'!N$7:N$13,MATCH($A25,'ImpactOutcome_Import-Export'!$B$7:$B$13,0))=\"\",\"\",INDEX('ImpactOutcome_Import-Export'!N$7:N$13,MATCH($A25,'ImpactOutcome_Import-Export'!$B$7:$B$13,0))),\"\"))","v":""},{"$f":"IF(B25=\"\",\"\",IFERROR(IF(INDEX('ImpactOutcome_Import-Export'!O$7:O$13,MATCH($A25,'ImpactOutcome_Import-Export'!$B$7:$B$13,0))=\"\",\"\",INDEX('ImpactOutcome_Import-Export'!O$7:O$13,MATCH($A25,'ImpactOutcome_Import-Export'!$B$7:$B$13,0))),\"\"))","v":""},{"$f":"IF(B25=\"\",\"\",IFERROR(IF(INDEX('ImpactOutcome_Import-Export'!P$7:P$13,MATCH($A25,'ImpactOutcome_Import-Export'!$B$7:$B$13,0))=\"\",\"\",INDEX('ImpactOutcome_Import-Export'!P$7:P$13,MATCH($A25,'ImpactOutcome_Import-Export'!$B$7:$B$13,0))),\"\"))","v":""},{"$f":"IF(B25=\"\",\"\",IFERROR(IF(INDEX('ImpactOutcome_Import-Export'!Q$7:Q$13,MATCH($A25,'ImpactOutcome_Import-Export'!$B$7:$B$13,0))=\"\",\"\",INDEX('ImpactOutcome_Import-Export'!Q$7:Q$13,MATCH($A25,'ImpactOutcome_Import-Export'!$B$7:$B$13,0))),\"\"))","v":""},{"$f":"IF(B25=\"\",\"\",IFERROR(IF(INDEX('ImpactOutcome_Import-Export'!R$7:R$13,MATCH($A25,'ImpactOutcome_Import-Export'!$B$7:$B$13,0))=\"\",\"\",INDEX('ImpactOutcome_Import-Export'!R$7:R$13,MATCH($A25,'ImpactOutcome_Import-Export'!$B$7:$B$13,0))),\"\"))","v":""},null,null,"",null,null,null,"",null,null,null,"",null,null,null,"",null,null,"",null,""]
[{"$f":"IFERROR(IF(INDEX(Impactlist,MATCH(0,INDEX(COUNTIF(A$10:A25,Impactlist),0,0),0))<>\"\",INDEX(Impactlist,MATCH(0,INDEX(COUNTIF(A$10:A25,Impactlist),0,0),0)),INDEX(Outcomelist,MATCH(0,INDEX(COUNTIF(A$10:A25,Outcomelist),0,0),0))),\"\")","v":""},{"$f":"IFERROR(INDEX('ImpactOutcome_Import-Export'!D$7:D$200,MATCH($A26,'ImpactOutcome_Import-Export'!$B$7:$B$200,0)),\"\")","v":""},{"$f":"IF(B26=\"\",\"\",IFERROR(INDEX('ImpactOutcome_Import-Export'!F$7:F$13,MATCH($A26,'ImpactOutcome_Import-Export'!$B$7:$B$13,0)),\"\"))","v":""},{"$f":"IF(B26=\"\",\"\",IFERROR(IF(INDEX('ImpactOutcome_Import-Export'!K$7:K$13,MATCH($A26,'ImpactOutcome_Import-Export'!$B$7:$B$13,0))=\"\",\"\",INDEX('ImpactOutcome_Import-Export'!K$7:K$13,MATCH($A26,'ImpactOutcome_Import-Export'!$B$7:$B$13,0))),\"\"))","v":""},{"$f":"IF(B26=\"\",\"\",IFERROR(IF(INDEX('ImpactOutcome_Import-Export'!L$7:L$13,MATCH($A26,'ImpactOutcome_Import-Export'!$B$7:$B$13,0))=\"\",\"\",INDEX('ImpactOutcome_Import-Export'!L$7:L$13,MATCH($A26,'ImpactOutcome_Import-Export'!$B$7:$B$13,0))),\"\"))","v":""},{"$f":"IF(B26=\"\",\"\",IFERROR(IF(INDEX('ImpactOutcome_Import-Export'!M$7:M$13,MATCH($A26,'ImpactOutcome_Import-Export'!$B$7:$B$13,0))=\"\",\"\",INDEX('ImpactOutcome_Import-Export'!M$7:M$13,MATCH($A26,'ImpactOutcome_Import-Export'!$B$7:$B$13,0))),\"\"))","v":""},{"$f":"IF(B26=\"\",\"\",IFERROR(IF(INDEX('ImpactOutcome_Import-Export'!N$7:N$13,MATCH($A26,'ImpactOutcome_Import-Export'!$B$7:$B$13,0))=\"\",\"\",INDEX('ImpactOutcome_Import-Export'!N$7:N$13,MATCH($A26,'ImpactOutcome_Import-Export'!$B$7:$B$13,0))),\"\"))","v":""},{"$f":"IF(B26=\"\",\"\",IFERROR(IF(INDEX('ImpactOutcome_Import-Export'!O$7:O$13,MATCH($A26,'ImpactOutcome_Import-Export'!$B$7:$B$13,0))=\"\",\"\",INDEX('ImpactOutcome_Import-Export'!O$7:O$13,MATCH($A26,'ImpactOutcome_Import-Export'!$B$7:$B$13,0))),\"\"))","v":""},{"$f":"IF(B26=\"\",\"\",IFERROR(IF(INDEX('ImpactOutcome_Import-Export'!P$7:P$13,MATCH($A26,'ImpactOutcome_Import-Export'!$B$7:$B$13,0))=\"\",\"\",INDEX('ImpactOutcome_Import-Export'!P$7:P$13,MATCH($A26,'ImpactOutcome_Import-Export'!$B$7:$B$13,0))),\"\"))","v":""},{"$f":"IF(B26=\"\",\"\",IFERROR(IF(INDEX('ImpactOutcome_Import-Export'!Q$7:Q$13,MATCH($A26,'ImpactOutcome_Import-Export'!$B$7:$B$13,0))=\"\",\"\",INDEX('ImpactOutcome_Import-Export'!Q$7:Q$13,MATCH($A26,'ImpactOutcome_Import-Export'!$B$7:$B$13,0))),\"\"))","v":""},{"$f":"IF(B26=\"\",\"\",IFERROR(IF(INDEX('ImpactOutcome_Import-Export'!R$7:R$13,MATCH($A26,'ImpactOutcome_Import-Export'!$B$7:$B$13,0))=\"\",\"\",INDEX('ImpactOutcome_Import-Export'!R$7:R$13,MATCH($A26,'ImpactOutcome_Import-Export'!$B$7:$B$13,0))),\"\"))","v":""},null,null,"",null,null,null,"",null,null,null,"",null,null,null,"",null,null,"",null,""]
[{"$f":"IFERROR(IF(INDEX(Impactlist,MATCH(0,INDEX(COUNTIF(A$10:A26,Impactlist),0,0),0))<>\"\",INDEX(Impactlist,MATCH(0,INDEX(COUNTIF(A$10:A26,Impactlist),0,0),0)),INDEX(Outcomelist,MATCH(0,INDEX(COUNTIF(A$10:A26,Outcomelist),0,0),0))),\"\")","v":""},{"$f":"IFERROR(INDEX('ImpactOutcome_Import-Export'!D$7:D$200,MATCH($A27,'ImpactOutcome_Import-Export'!$B$7:$B$200,0)),\"\")","v":""},{"$f":"IF(B27=\"\",\"\",IFERROR(INDEX('ImpactOutcome_Import-Export'!F$7:F$13,MATCH($A27,'ImpactOutcome_Import-Export'!$B$7:$B$13,0)),\"\"))","v":""},{"$f":"IF(B27=\"\",\"\",IFERROR(IF(INDEX('ImpactOutcome_Import-Export'!K$7:K$13,MATCH($A27,'ImpactOutcome_Import-Export'!$B$7:$B$13,0))=\"\",\"\",INDEX('ImpactOutcome_Import-Export'!K$7:K$13,MATCH($A27,'ImpactOutcome_Import-Export'!$B$7:$B$13,0))),\"\"))","v":""},{"$f":"IF(B27=\"\",\"\",IFERROR(IF(INDEX('ImpactOutcome_Import-Export'!L$7:L$13,MATCH($A27,'ImpactOutcome_Import-Export'!$B$7:$B$13,0))=\"\",\"\",INDEX('ImpactOutcome_Import-Export'!L$7:L$13,MATCH($A27,'ImpactOutcome_Import-Export'!$B$7:$B$13,0))),\"\"))","v":""},{"$f":"IF(B27=\"\",\"\",IFERROR(IF(INDEX('ImpactOutcome_Import-Export'!M$7:M$13,MATCH($A27,'ImpactOutcome_Import-Export'!$B$7:$B$13,0))=\"\",\"\",INDEX('ImpactOutcome_Import-Export'!M$7:M$13,MATCH($A27,'ImpactOutcome_Import-Export'!$B$7:$B$13,0))),\"\"))","v":""},{"$f":"IF(B27=\"\",\"\",IFERROR(IF(INDEX('ImpactOutcome_Import-Export'!N$7:N$13,MATCH($A27,'ImpactOutcome_Import-Export'!$B$7:$B$13,0))=\"\",\"\",INDEX('ImpactOutcome_Import-Export'!N$7:N$13,MATCH($A27,'ImpactOutcome_Import-Export'!$B$7:$B$13,0))),\"\"))","v":""},{"$f":"IF(B27=\"\",\"\",IFERROR(IF(INDEX('ImpactOutcome_Import-Export'!O$7:O$13,MATCH($A27,'ImpactOutcome_Import-Export'!$B$7:$B$13,0))=\"\",\"\",INDEX('ImpactOutcome_Import-Export'!O$7:O$13,MATCH($A27,'ImpactOutcome_Import-Export'!$B$7:$B$13,0))),\"\"))","v":""},{"$f":"IF(B27=\"\",\"\",IFERROR(IF(INDEX('ImpactOutcome_Import-Export'!P$7:P$13,MATCH($A27,'ImpactOutcome_Import-Export'!$B$7:$B$13,0))=\"\",\"\",INDEX('ImpactOutcome_Import-Export'!P$7:P$13,MATCH($A27,'ImpactOutcome_Import-Export'!$B$7:$B$13,0))),\"\"))","v":""},{"$f":"IF(B27=\"\",\"\",IFERROR(IF(INDEX('ImpactOutcome_Import-Export'!Q$7:Q$13,MATCH($A27,'ImpactOutcome_Import-Export'!$B$7:$B$13,0))=\"\",\"\",INDEX('ImpactOutcome_Import-Export'!Q$7:Q$13,MATCH($A27,'ImpactOutcome_Import-Export'!$B$7:$B$13,0))),\"\"))","v":""},{"$f":"IF(B27=\"\",\"\",IFERROR(IF(INDEX('ImpactOutcome_Import-Export'!R$7:R$13,MATCH($A27,'ImpactOutcome_Import-Export'!$B$7:$B$13,0))=\"\",\"\",INDEX('ImpactOutcome_Import-Export'!R$7:R$13,MATCH($A27,'ImpactOutcome_Import-Export'!$B$7:$B$13,0))),\"\"))","v":""},null,null,"",null,null,null,"",null,null,null,"",null,null,null,"",null,null,"",null,""]
[{"$f":"IFERROR(IF(INDEX(Impactlist,MATCH(0,INDEX(COUNTIF(A$10:A27,Impactlist),0,0),0))<>\"\",INDEX(Impactlist,MATCH(0,INDEX(COUNTIF(A$10:A27,Impactlist),0,0),0)),INDEX(Outcomelist,MATCH(0,INDEX(COUNTIF(A$10:A27,Outcomelist),0,0),0))),\"\")","v":""},{"$f":"IFERROR(INDEX('ImpactOutcome_Import-Export'!D$7:D$200,MATCH($A28,'ImpactOutcome_Import-Export'!$B$7:$B$200,0)),\"\")","v":""},{"$f":"IF(B28=\"\",\"\",IFERROR(INDEX('ImpactOutcome_Import-Export'!F$7:F$13,MATCH($A28,'ImpactOutcome_Import-Export'!$B$7:$B$13,0)),\"\"))","v":""},{"$f":"IF(B28=\"\",\"\",IFERROR(IF(INDEX('ImpactOutcome_Import-Export'!K$7:K$13,MATCH($A28,'ImpactOutcome_Import-Export'!$B$7:$B$13,0))=\"\",\"\",INDEX('ImpactOutcome_Import-Export'!K$7:K$13,MATCH($A28,'ImpactOutcome_Import-Export'!$B$7:$B$13,0))),\"\"))","v":""},{"$f":"IF(B28=\"\",\"\",IFERROR(IF(INDEX('ImpactOutcome_Import-Export'!L$7:L$13,MATCH($A28,'ImpactOutcome_Import-Export'!$B$7:$B$13,0))=\"\",\"\",INDEX('ImpactOutcome_Import-Export'!L$7:L$13,MATCH($A28,'ImpactOutcome_Import-Export'!$B$7:$B$13,0))),\"\"))","v":""},{"$f":"IF(B28=\"\",\"\",IFERROR(IF(INDEX('ImpactOutcome_Import-Export'!M$7:M$13,MATCH($A28,'ImpactOutcome_Import-Export'!$B$7:$B$13,0))=\"\",\"\",INDEX('ImpactOutcome_Import-Export'!M$7:M$13,MATCH($A28,'ImpactOutcome_Import-Export'!$B$7:$B$13,0))),\"\"))","v":""},{"$f":"IF(B28=\"\",\"\",IFERROR(IF(INDEX('ImpactOutcome_Import-Export'!N$7:N$13,MATCH($A28,'ImpactOutcome_Import-Export'!$B$7:$B$13,0))=\"\",\"\",INDEX('ImpactOutcome_Import-Export'!N$7:N$13,MATCH($A28,'ImpactOutcome_Import-Export'!$B$7:$B$13,0))),\"\"))","v":""},{"$f":"IF(B28=\"\",\"\",IFERROR(IF(INDEX('ImpactOutcome_Import-Export'!O$7:O$13,MATCH($A28,'ImpactOutcome_Import-Export'!$B$7:$B$13,0))=\"\",\"\",INDEX('ImpactOutcome_Import-Export'!O$7:O$13,MATCH($A28,'ImpactOutcome_Import-Export'!$B$7:$B$13,0))),\"\"))","v":""},{"$f":"IF(B28=\"\",\"\",IFERROR(IF(INDEX('ImpactOutcome_Import-Export'!P$7:P$13,MATCH($A28,'ImpactOutcome_Import-Export'!$B$7:$B$13,0))=\"\",\"\",INDEX('ImpactOutcome_Import-Export'!P$7:P$13,MATCH($A28,'ImpactOutcome_Import-Export'!$B$7:$B$13,0))),\"\"))","v":""},{"$f":"IF(B28=\"\",\"\",IFERROR(IF(INDEX('ImpactOutcome_Import-Export'!Q$7:Q$13,MATCH($A28,'ImpactOutcome_Import-Export'!$B$7:$B$13,0))=\"\",\"\",INDEX('ImpactOutcome_Import-Export'!Q$7:Q$13,MATCH($A28,'ImpactOutcome_Import-Export'!$B$7:$B$13,0))),\"\"))","v":""},{"$f":"IF(B28=\"\",\"\",IFERROR(IF(INDEX('ImpactOutcome_Import-Export'!R$7:R$13,MATCH($A28,'ImpactOutcome_Import-Export'!$B$7:$B$13,0))=\"\",\"\",INDEX('ImpactOutcome_Import-Export'!R$7:R$13,MATCH($A28,'ImpactOutcome_Import-Export'!$B$7:$B$13,0))),\"\"))","v":""},null,null,"",null,null,null,"",null,null,null,"",null,null,null,"",null,null,"",null,""]
[{"$f":"IFERROR(IF(INDEX(Impactlist,MATCH(0,INDEX(COUNTIF(A$10:A28,Impactlist),0,0),0))<>\"\",INDEX(Impactlist,MATCH(0,INDEX(COUNTIF(A$10:A28,Impactlist),0,0),0)),INDEX(Outcomelist,MATCH(0,INDEX(COUNTIF(A$10:A28,Outcomelist),0,0),0))),\"\")","v":""},{"$f":"IFERROR(INDEX('ImpactOutcome_Import-Export'!D$7:D$200,MATCH($A29,'ImpactOutcome_Import-Export'!$B$7:$B$200,0)),\"\")","v":""},{"$f":"IF(B29=\"\",\"\",IFERROR(INDEX('ImpactOutcome_Import-Export'!F$7:F$13,MATCH($A29,'ImpactOutcome_Import-Export'!$B$7:$B$13,0)),\"\"))","v":""},{"$f":"IF(B29=\"\",\"\",IFERROR(IF(INDEX('ImpactOutcome_Import-Export'!K$7:K$13,MATCH($A29,'ImpactOutcome_Import-Export'!$B$7:$B$13,0))=\"\",\"\",INDEX('ImpactOutcome_Import-Export'!K$7:K$13,MATCH($A29,'ImpactOutcome_Import-Export'!$B$7:$B$13,0))),\"\"))","v":""},{"$f":"IF(B29=\"\",\"\",IFERROR(IF(INDEX('ImpactOutcome_Import-Export'!L$7:L$13,MATCH($A29,'ImpactOutcome_Import-Export'!$B$7:$B$13,0))=\"\",\"\",INDEX('ImpactOutcome_Import-Export'!L$7:L$13,MATCH($A29,'ImpactOutcome_Import-Export'!$B$7:$B$13,0))),\"\"))","v":""},{"$f":"IF(B29=\"\",\"\",IFERROR(IF(INDEX('ImpactOutcome_Import-Export'!M$7:M$13,MATCH($A29,'ImpactOutcome_Import-Export'!$B$7:$B$13,0))=\"\",\"\",INDEX('ImpactOutcome_Import-Export'!M$7:M$13,MATCH($A29,'ImpactOutcome_Import-Export'!$B$7:$B$13,0))),\"\"))","v":""},{"$f":"IF(B29=\"\",\"\",IFERROR(IF(INDEX('ImpactOutcome_Import-Export'!N$7:N$13,MATCH($A29,'ImpactOutcome_Import-Export'!$B$7:$B$13,0))=\"\",\"\",INDEX('ImpactOutcome_Import-Export'!N$7:N$13,MATCH($A29,'ImpactOutcome_Import-Export'!$B$7:$B$13,0))),\"\"))","v":""},{"$f":"IF(B29=\"\",\"\",IFERROR(IF(INDEX('ImpactOutcome_Import-Export'!O$7:O$13,MATCH($A29,'ImpactOutcome_Import-Export'!$B$7:$B$13,0))=\"\",\"\",INDEX('ImpactOutcome_Import-Export'!O$7:O$13,MATCH($A29,'ImpactOutcome_Import-Export'!$B$7:$B$13,0))),\"\"))","v":""},{"$f":"IF(B29=\"\",\"\",IFERROR(IF(INDEX('ImpactOutcome_Import-Export'!P$7:P$13,MATCH($A29,'ImpactOutcome_Import-Export'!$B$7:$B$13,0))=\"\",\"\",INDEX('ImpactOutcome_Import-Export'!P$7:P$13,MATCH($A29,'ImpactOutcome_Import-Export'!$B$7:$B$13,0))),\"\"))","v":""},{"$f":"IF(B29=\"\",\"\",IFERROR(IF(INDEX('ImpactOutcome_Import-Export'!Q$7:Q$13,MATCH($A29,'ImpactOutcome_Import-Export'!$B$7:$B$13,0))=\"\",\"\",INDEX('ImpactOutcome_Import-Export'!Q$7:Q$13,MATCH($A29,'ImpactOutcome_Import-Export'!$B$7:$B$13,0))),\"\"))","v":""},{"$f":"IF(B29=\"\",\"\",IFERROR(IF(INDEX('ImpactOutcome_Import-Export'!R$7:R$13,MATCH($A29,'ImpactOutcome_Import-Export'!$B$7:$B$13,0))=\"\",\"\",INDEX('ImpactOutcome_Import-Export'!R$7:R$13,MATCH($A29,'ImpactOutcome_Import-Export'!$B$7:$B$13,0))),\"\"))","v":""},null,null,"",null,null,null,"",null,null,null,"",null,null,null,"",null,null,"",null,""]
[{"$f":"IFERROR(IF(INDEX(Impactlist,MATCH(0,INDEX(COUNTIF(A$10:A29,Impactlist),0,0),0))<>\"\",INDEX(Impactlist,MATCH(0,INDEX(COUNTIF(A$10:A29,Impactlist),0,0),0)),INDEX(Outcomelist,MATCH(0,INDEX(COUNTIF(A$10:A29,Outcomelist),0,0),0))),\"\")","v":""},{"$f":"IFERROR(INDEX('ImpactOutcome_Import-Export'!D$7:D$200,MATCH($A30,'ImpactOutcome_Import-Export'!$B$7:$B$200,0)),\"\")","v":""},{"$f":"IF(B30=\"\",\"\",IFERROR(INDEX('ImpactOutcome_Import-Export'!F$7:F$13,MATCH($A30,'ImpactOutcome_Import-Export'!$B$7:$B$13,0)),\"\"))","v":""},{"$f":"IF(B30=\"\",\"\",IFERROR(IF(INDEX('ImpactOutcome_Import-Export'!K$7:K$13,MATCH($A30,'ImpactOutcome_Import-Export'!$B$7:$B$13,0))=\"\",\"\",INDEX('ImpactOutcome_Import-Export'!K$7:K$13,MATCH($A30,'ImpactOutcome_Import-Export'!$B$7:$B$13,0))),\"\"))","v":""},{"$f":"IF(B30=\"\",\"\",IFERROR(IF(INDEX('ImpactOutcome_Import-Export'!L$7:L$13,MATCH($A30,'ImpactOutcome_Import-Export'!$B$7:$B$13,0))=\"\",\"\",INDEX('ImpactOutcome_Import-Export'!L$7:L$13,MATCH($A30,'ImpactOutcome_Import-Export'!$B$7:$B$13,0))),\"\"))","v":""},{"$f":"IF(B30=\"\",\"\",IFERROR(IF(INDEX('ImpactOutcome_Import-Export'!M$7:M$13,MATCH($A30,'ImpactOutcome_Import-Export'!$B$7:$B$13,0))=\"\",\"\",INDEX('ImpactOutcome_Import-Export'!M$7:M$13,MATCH($A30,'ImpactOutcome_Import-Export'!$B$7:$B$13,0))),\"\"))","v":""},{"$f":"IF(B30=\"\",\"\",IFERROR(IF(INDEX('ImpactOutcome_Import-Export'!N$7:N$13,MATCH($A30,'ImpactOutcome_Import-Export'!$B$7:$B$13,0))=\"\",\"\",INDEX('ImpactOutcome_Import-Export'!N$7:N$13,MATCH($A30,'ImpactOutcome_Import-Export'!$B$7:$B$13,0))),\"\"))","v":""},{"$f":"IF(B30=\"\",\"\",IFERROR(IF(INDEX('ImpactOutcome_Import-Export'!O$7:O$13,MATCH($A30,'ImpactOutcome_Import-Export'!$B$7:$B$13,0))=\"\",\"\",INDEX('ImpactOutcome_Import-Export'!O$7:O$13,MATCH($A30,'ImpactOutcome_Import-Export'!$B$7:$B$13,0))),\"\"))","v":""},{"$f":"IF(B30=\"\",\"\",IFERROR(IF(INDEX('ImpactOutcome_Import-Export'!P$7:P$13,MATCH($A30,'ImpactOutcome_Import-Export'!$B$7:$B$13,0))=\"\",\"\",INDEX('ImpactOutcome_Import-Export'!P$7:P$13,MATCH($A30,'ImpactOutcome_Import-Export'!$B$7:$B$13,0))),\"\"))","v":""},{"$f":"IF(B30=\"\",\"\",IFERROR(IF(INDEX('ImpactOutcome_Import-Export'!Q$7:Q$13,MATCH($A30,'ImpactOutcome_Import-Export'!$B$7:$B$13,0))=\"\",\"\",INDEX('ImpactOutcome_Import-Export'!Q$7:Q$13,MATCH($A30,'ImpactOutcome_Import-Export'!$B$7:$B$13,0))),\"\"))","v":""},{"$f":"IF(B30=\"\",\"\",IFERROR(IF(INDEX('ImpactOutcome_Import-Export'!R$7:R$13,MATCH($A30,'ImpactOutcome_Import-Export'!$B$7:$B$13,0))=\"\",\"\",INDEX('ImpactOutcome_Import-Export'!R$7:R$13,MATCH($A30,'ImpactOutcome_Import-Export'!$B$7:$B$13,0))),\"\"))","v":""},null,null,"",null,null,null,"",null,null,null,"",null,null,null,"",null,null,"",null,""]
[{"$f":"IFERROR(IF(INDEX(Impactlist,MATCH(0,INDEX(COUNTIF(A$10:A30,Impactlist),0,0),0))<>\"\",INDEX(Impactlist,MATCH(0,INDEX(COUNTIF(A$10:A30,Impactlist),0,0),0)),INDEX(Outcomelist,MATCH(0,INDEX(COUNTIF(A$10:A30,Outcomelist),0,0),0))),\"\")","v":""},{"$f":"IFERROR(INDEX('ImpactOutcome_Import-Export'!D$7:D$200,MATCH($A31,'ImpactOutcome_Import-Export'!$B$7:$B$200,0)),\"\")","v":""},{"$f":"IF(B31=\"\",\"\",IFERROR(INDEX('ImpactOutcome_Import-Export'!F$7:F$13,MATCH($A31,'ImpactOutcome_Import-Export'!$B$7:$B$13,0)),\"\"))","v":""},{"$f":"IF(B31=\"\",\"\",IFERROR(IF(INDEX('ImpactOutcome_Import-Export'!K$7:K$13,MATCH($A31,'ImpactOutcome_Import-Export'!$B$7:$B$13,0))=\"\",\"\",INDEX('ImpactOutcome_Import-Export'!K$7:K$13,MATCH($A31,'ImpactOutcome_Import-Export'!$B$7:$B$13,0))),\"\"))","v":""},{"$f":"IF(B31=\"\",\"\",IFERROR(IF(INDEX('ImpactOutcome_Import-Export'!L$7:L$13,MATCH($A31,'ImpactOutcome_Import-Export'!$B$7:$B$13,0))=\"\",\"\",INDEX('ImpactOutcome_Import-Export'!L$7:L$13,MATCH($A31,'ImpactOutcome_Import-Export'!$B$7:$B$13,0))),\"\"))","v":""},{"$f":"IF(B31=\"\",\"\",IFERROR(IF(INDEX('ImpactOutcome_Import-Export'!M$7:M$13,MATCH($A31,'ImpactOutcome_Import-Export'!$B$7:$B$13,0))=\"\",\"\",INDEX('ImpactOutcome_Import-Export'!M$7:M$13,MATCH($A31,'ImpactOutcome_Import-Export'!$B$7:$B$13,0))),\"\"))","v":""},{"$f":"IF(B31=\"\",\"\",IFERROR(IF(INDEX('ImpactOutcome_Import-Export'!N$7:N$13,MATCH($A31,'ImpactOutcome_Import-Export'!$B$7:$B$13,0))=\"\",\"\",INDEX('ImpactOutcome_Import-Export'!N$7:N$13,MATCH($A31,'ImpactOutcome_Import-Export'!$B$7:$B$13,0))),\"\"))","v":""},{"$f":"IF(B31=\"\",\"\",IFERROR(IF(INDEX('ImpactOutcome_Import-Export'!O$7:O$13,MATCH($A31,'ImpactOutcome_Import-Export'!$B$7:$B$13,0))=\"\",\"\",INDEX('ImpactOutcome_Import-Export'!O$7:O$13,MATCH($A31,'ImpactOutcome_Import-Export'!$B$7:$B$13,0))),\"\"))","v":""},{"$f":"IF(B31=\"\",\"\",IFERROR(IF(INDEX('ImpactOutcome_Import-Export'!P$7:P$13,MATCH($A31,'ImpactOutcome_Import-Export'!$B$7:$B$13,0))=\"\",\"\",INDEX('ImpactOutcome_Import-Export'!P$7:P$13,MATCH($A31,'ImpactOutcome_Import-Export'!$B$7:$B$13,0))),\"\"))","v":""},{"$f":"IF(B31=\"\",\"\",IFERROR(IF(INDEX('ImpactOutcome_Import-Export'!Q$7:Q$13,MATCH($A31,'ImpactOutcome_Import-Export'!$B$7:$B$13,0))=\"\",\"\",INDEX('ImpactOutcome_Import-Export'!Q$7:Q$13,MATCH($A31,'ImpactOutcome_Import-Export'!$B$7:$B$13,0))),\"\"))","v":""},{"$f":"IF(B31=\"\",\"\",IFERROR(IF(INDEX('ImpactOutcome_Import-Export'!R$7:R$13,MATCH($A31,'ImpactOutcome_Import-Export'!$B$7:$B$13,0))=\"\",\"\",INDEX('ImpactOutcome_Import-Export'!R$7:R$13,MATCH($A31,'ImpactOutcome_Import-Export'!$B$7:$B$13,0))),\"\"))","v":""},null,null,"",null,null,null,"",null,null,null,"",null,null,null,"",null,null,"",null,""]
[{"$f":"IFERROR(IF(INDEX(Impactlist,MATCH(0,INDEX(COUNTIF(A$10:A31,Impactlist),0,0),0))<>\"\",INDEX(Impactlist,MATCH(0,INDEX(COUNTIF(A$10:A31,Impactlist),0,0),0)),INDEX(Outcomelist,MATCH(0,INDEX(COUNTIF(A$10:A31,Outcomelist),0,0),0))),\"\")","v":""},{"$f":"IFERROR(INDEX('ImpactOutcome_Import-Export'!D$7:D$200,MATCH($A32,'ImpactOutcome_Import-Export'!$B$7:$B$200,0)),\"\")","v":""},{"$f":"IF(B32=\"\",\"\",IFERROR(INDEX('ImpactOutcome_Import-Export'!F$7:F$13,MATCH($A32,'ImpactOutcome_Import-Export'!$B$7:$B$13,0)),\"\"))","v":""},{"$f":"IF(B32=\"\",\"\",IFERROR(IF(INDEX('ImpactOutcome_Import-Export'!K$7:K$13,MATCH($A32,'ImpactOutcome_Import-Export'!$B$7:$B$13,0))=\"\",\"\",INDEX('ImpactOutcome_Import-Export'!K$7:K$13,MATCH($A32,'ImpactOutcome_Import-Export'!$B$7:$B$13,0))),\"\"))","v":""},{"$f":"IF(B32=\"\",\"\",IFERROR(IF(INDEX('ImpactOutcome_Import-Export'!L$7:L$13,MATCH($A32,'ImpactOutcome_Import-Export'!$B$7:$B$13,0))=\"\",\"\",INDEX('ImpactOutcome_Import-Export'!L$7:L$13,MATCH($A32,'ImpactOutcome_Import-Export'!$B$7:$B$13,0))),\"\"))","v":""},{"$f":"IF(B32=\"\",\"\",IFERROR(IF(INDEX('ImpactOutcome_Import-Export'!M$7:M$13,MATCH($A32,'ImpactOutcome_Import-Export'!$B$7:$B$13,0))=\"\",\"\",INDEX('ImpactOutcome_Import-Export'!M$7:M$13,MATCH($A32,'ImpactOutcome_Import-Export'!$B$7:$B$13,0))),\"\"))","v":""},{"$f":"IF(B32=\"\",\"\",IFERROR(IF(INDEX('ImpactOutcome_Import-Export'!N$7:N$13,MATCH($A32,'ImpactOutcome_Import-Export'!$B$7:$B$13,0))=\"\",\"\",INDEX('ImpactOutcome_Import-Export'!N$7:N$13,MATCH($A32,'ImpactOutcome_Import-Export'!$B$7:$B$13,0))),\"\"))","v":""},{"$f":"IF(B32=\"\",\"\",IFERROR(IF(INDEX('ImpactOutcome_Import-Export'!O$7:O$13,MATCH($A32,'ImpactOutcome_Import-Export'!$B$7:$B$13,0))=\"\",\"\",INDEX('ImpactOutcome_Import-Export'!O$7:O$13,MATCH($A32,'ImpactOutcome_Import-Export'!$B$7:$B$13,0))),\"\"))","v":""},{"$f":"IF(B32=\"\",\"\",IFERROR(IF(INDEX('ImpactOutcome_Import-Export'!P$7:P$13,MATCH($A32,'ImpactOutcome_Import-Export'!$B$7:$B$13,0))=\"\",\"\",INDEX('ImpactOutcome_Import-Export'!P$7:P$13,MATCH($A32,'ImpactOutcome_Import-Export'!$B$7:$B$13,0))),\"\"))","v":""},{"$f":"IF(B32=\"\",\"\",IFERROR(IF(INDEX('ImpactOutcome_Import-Export'!Q$7:Q$13,MATCH($A32,'ImpactOutcome_Import-Export'!$B$7:$B$13,0))=\"\",\"\",INDEX('ImpactOutcome_Import-Export'!Q$7:Q$13,MATCH($A32,'ImpactOutcome_Import-Export'!$B$7:$B$13,0))),\"\"))","v":""},{"$f":"IF(B32=\"\",\"\",IFERROR(IF(INDEX('ImpactOutcome_Import-Export'!R$7:R$13,MATCH($A32,'ImpactOutcome_Import-Export'!$B$7:$B$13,0))=\"\",\"\",INDEX('ImpactOutcome_Import-Export'!R$7:R$13,MATCH($A32,'ImpactOutcome_Import-Export'!$B$7:$B$13,0))),\"\"))","v":""},null,null,"",null,null,null,"",null,null,null,"",null,null,null,"",null,null,"",null,""]
[{"$f":"IFERROR(IF(INDEX(Impactlist,MATCH(0,INDEX(COUNTIF(A$10:A32,Impactlist),0,0),0))<>\"\",INDEX(Impactlist,MATCH(0,INDEX(COUNTIF(A$10:A32,Impactlist),0,0),0)),INDEX(Outcomelist,MATCH(0,INDEX(COUNTIF(A$10:A32,Outcomelist),0,0),0))),\"\")","v":""},{"$f":"IFERROR(INDEX('ImpactOutcome_Import-Export'!D$7:D$200,MATCH($A33,'ImpactOutcome_Import-Export'!$B$7:$B$200,0)),\"\")","v":""},{"$f":"IF(B33=\"\",\"\",IFERROR(INDEX('ImpactOutcome_Import-Export'!F$7:F$13,MATCH($A33,'ImpactOutcome_Import-Export'!$B$7:$B$13,0)),\"\"))","v":""},{"$f":"IF(B33=\"\",\"\",IFERROR(IF(INDEX('ImpactOutcome_Import-Export'!K$7:K$13,MATCH($A33,'ImpactOutcome_Import-Export'!$B$7:$B$13,0))=\"\",\"\",INDEX('ImpactOutcome_Import-Export'!K$7:K$13,MATCH($A33,'ImpactOutcome_Import-Export'!$B$7:$B$13,0))),\"\"))","v":""},{"$f":"IF(B33=\"\",\"\",IFERROR(IF(INDEX('ImpactOutcome_Import-Export'!L$7:L$13,MATCH($A33,'ImpactOutcome_Import-Export'!$B$7:$B$13,0))=\"\",\"\",INDEX('ImpactOutcome_Import-Export'!L$7:L$13,MATCH($A33,'ImpactOutcome_Import-Export'!$B$7:$B$13,0))),\"\"))","v":""},{"$f":"IF(B33=\"\",\"\",IFERROR(IF(INDEX('ImpactOutcome_Import-Export'!M$7:M$13,MATCH($A33,'ImpactOutcome_Import-Export'!$B$7:$B$13,0))=\"\",\"\",INDEX('ImpactOutcome_Import-Export'!M$7:M$13,MATCH($A33,'ImpactOutcome_Import-Export'!$B$7:$B$13,0))),\"\"))","v":""},{"$f":"IF(B33=\"\",\"\",IFERROR(IF(INDEX('ImpactOutcome_Import-Export'!N$7:N$13,MATCH($A33,'ImpactOutcome_Import-Export'!$B$7:$B$13,0))=\"\",\"\",INDEX('ImpactOutcome_Import-Export'!N$7:N$13,MATCH($A33,'ImpactOutcome_Import-Export'!$B$7:$B$13,0))),\"\"))","v":""},{"$f":"IF(B33=\"\",\"\",IFERROR(IF(INDEX('ImpactOutcome_Import-Export'!O$7:O$13,MATCH($A33,'ImpactOutcome_Import-Export'!$B$7:$B$13,0))=\"\",\"\",INDEX('ImpactOutcome_Import-Export'!O$7:O$13,MATCH($A33,'ImpactOutcome_Import-Export'!$B$7:$B$13,0))),\"\"))","v":""},{"$f":"IF(B33=\"\",\"\",IFERROR(IF(INDEX('ImpactOutcome_Import-Export'!P$7:P$13,MATCH($A33,'ImpactOutcome_Import-Export'!$B$7:$B$13,0))=\"\",\"\",INDEX('ImpactOutcome_Import-Export'!P$7:P$13,MATCH($A33,'ImpactOutcome_Import-Export'!$B$7:$B$13,0))),\"\"))","v":""},{"$f":"IF(B33=\"\",\"\",IFERROR(IF(INDEX('ImpactOutcome_Import-Export'!Q$7:Q$13,MATCH($A33,'ImpactOutcome_Import-Export'!$B$7:$B$13,0))=\"\",\"\",INDEX('ImpactOutcome_Import-Export'!Q$7:Q$13,MATCH($A33,'ImpactOutcome_Import-Export'!$B$7:$B$13,0))),\"\"))","v":""},{"$f":"IF(B33=\"\",\"\",IFERROR(IF(INDEX('ImpactOutcome_Import-Export'!R$7:R$13,MATCH($A33,'ImpactOutcome_Import-Export'!$B$7:$B$13,0))=\"\",\"\",INDEX('ImpactOutcome_Import-Export'!R$7:R$13,MATCH($A33,'ImpactOutcome_Import-Export'!$B$7:$B$13,0))),\"\"))","v":""},null,null,"",null,null,null,"",null,null,null,"",null,null,null,"",null,null,"",null,""]
[{"$f":"IFERROR(IF(INDEX(Impactlist,MATCH(0,INDEX(COUNTIF(A$10:A33,Impactlist),0,0),0))<>\"\",INDEX(Impactlist,MATCH(0,INDEX(COUNTIF(A$10:A33,Impactlist),0,0),0)),INDEX(Outcomelist,MATCH(0,INDEX(COUNTIF(A$10:A33,Outcomelist),0,0),0))),\"\")","v":""},{"$f":"IFERROR(INDEX('ImpactOutcome_Import-Export'!D$7:D$200,MATCH($A34,'ImpactOutcome_Import-Export'!$B$7:$B$200,0)),\"\")","v":""},{"$f":"IF(B34=\"\",\"\",IFERROR(INDEX('ImpactOutcome_Import-Export'!F$7:F$13,MATCH($A34,'ImpactOutcome_Import-Export'!$B$7:$B$13,0)),\"\"))","v":""},{"$f":"IF(B34=\"\",\"\",IFERROR(IF(INDEX('ImpactOutcome_Import-Export'!K$7:K$13,MATCH($A34,'ImpactOutcome_Import-Export'!$B$7:$B$13,0))=\"\",\"\",INDEX('ImpactOutcome_Import-Export'!K$7:K$13,MATCH($A34,'ImpactOutcome_Import-Export'!$B$7:$B$13,0))),\"\"))","v":""},{"$f":"IF(B34=\"\",\"\",IFERROR(IF(INDEX('ImpactOutcome_Import-Export'!L$7:L$13,MATCH($A34,'ImpactOutcome_Import-Export'!$B$7:$B$13,0))=\"\",\"\",INDEX('ImpactOutcome_Import-Export'!L$7:L$13,MATCH($A34,'ImpactOutcome_Import-Export'!$B$7:$B$13,0))),\"\"))","v":""},{"$f":"IF(B34=\"\",\"\",IFERROR(IF(INDEX('ImpactOutcome_Import-Export'!M$7:M$13,MATCH($A34,'ImpactOutcome_Import-Export'!$B$7:$B$13,0))=\"\",\"\",INDEX('ImpactOutcome_Import-Export'!M$7:M$13,MATCH($A34,'ImpactOutcome_Import-Export'!$B$7:$B$13,0))),\"\"))","v":""},{"$f":"IF(B34=\"\",\"\",IFERROR(IF(INDEX('ImpactOutcome_Import-Export'!N$7:N$13,MATCH($A34,'ImpactOutcome_Import-Export'!$B$7:$B$13,0))=\"\",\"\",INDEX('ImpactOutcome_Import-Export'!N$7:N$13,MATCH($A34,'ImpactOutcome_Import-Export'!$B$7:$B$13,0))),\"\"))","v":""},{"$f":"IF(B34=\"\",\"\",IFERROR(IF(INDEX('ImpactOutcome_Import-Export'!O$7:O$13,MATCH($A34,'ImpactOutcome_Import-Export'!$B$7:$B$13,0))=\"\",\"\",INDEX('ImpactOutcome_Import-Export'!O$7:O$13,MATCH($A34,'ImpactOutcome_Import-Export'!$B$7:$B$13,0))),\"\"))","v":""},{"$f":"IF(B34=\"\",\"\",IFERROR(IF(INDEX('ImpactOutcome_Import-Export'!P$7:P$13,MATCH($A34,'ImpactOutcome_Import-Export'!$B$7:$B$13,0))=\"\",\"\",INDEX('ImpactOutcome_Import-Export'!P$7:P$13,MATCH($A34,'ImpactOutcome_Import-Export'!$B$7:$B$13,0))),\"\"))","v":""},{"$f":"IF(B34=\"\",\"\",IFERROR(IF(INDEX('ImpactOutcome_Import-Export'!Q$7:Q$13,MATCH($A34,'ImpactOutcome_Import-Export'!$B$7:$B$13,0))=\"\",\"\",INDEX('ImpactOutcome_Import-Export'!Q$7:Q$13,MATCH($A34,'ImpactOutcome_Import-Export'!$B$7:$B$13,0))),\"\"))","v":""},{"$f":"IF(B34=\"\",\"\",IFERROR(IF(INDEX('ImpactOutcome_Import-Export'!R$7:R$13,MATCH($A34,'ImpactOutcome_Import-Export'!$B$7:$B$13,0))=\"\",\"\",INDEX('ImpactOutcome_Import-Export'!R$7:R$13,MATCH($A34,'ImpactOutcome_Import-Export'!$B$7:$B$13,0))),\"\"))","v":""},null,null,"",null,null,null,"",null,null,null,"",null,null,null,"",null,null,"",null,""]
[{"$f":"IFERROR(IF(INDEX(Impactlist,MATCH(0,INDEX(COUNTIF(A$10:A34,Impactlist),0,0),0))<>\"\",INDEX(Impactlist,MATCH(0,INDEX(COUNTIF(A$10:A34,Impactlist),0,0),0)),INDEX(Outcomelist,MATCH(0,INDEX(COUNTIF(A$10:A34,Outcomelist),0,0),0))),\"\")","v":""},{"$f":"IFERROR(INDEX('ImpactOutcome_Import-Export'!D$7:D$200,MATCH($A35,'ImpactOutcome_Import-Export'!$B$7:$B$200,0)),\"\")","v":""},{"$f":"IF(B35=\"\",\"\",IFERROR(INDEX('ImpactOutcome_Import-Export'!F$7:F$13,MATCH($A35,'ImpactOutcome_Import-Export'!$B$7:$B$13,0)),\"\"))","v":""},{"$f":"IF(B35=\"\",\"\",IFERROR(IF(INDEX('ImpactOutcome_Import-Export'!K$7:K$13,MATCH($A35,'ImpactOutcome_Import-Export'!$B$7:$B$13,0))=\"\",\"\",INDEX('ImpactOutcome_Import-Export'!K$7:K$13,MATCH($A35,'ImpactOutcome_Import-Export'!$B$7:$B$13,0))),\"\"))","v":""},{"$f":"IF(B35=\"\",\"\",IFERROR(IF(INDEX('ImpactOutcome_Import-Export'!L$7:L$13,MATCH($A35,'ImpactOutcome_Import-Export'!$B$7:$B$13,0))=\"\",\"\",INDEX('ImpactOutcome_Import-Export'!L$7:L$13,MATCH($A35,'ImpactOutcome_Import-Export'!$B$7:$B$13,0))),\"\"))","v":""},{"$f":"IF(B35=\"\",\"\",IFERROR(IF(INDEX('ImpactOutcome_Import-Export'!M$7:M$13,MATCH($A35,'ImpactOutcome_Import-Export'!$B$7:$B$13,0))=\"\",\"\",INDEX('ImpactOutcome_Import-Export'!M$7:M$13,MATCH($A35,'ImpactOutcome_Import-Export'!$B$7:$B$13,0))),\"\"))","v":""},{"$f":"IF(B35=\"\",\"\",IFERROR(IF(INDEX('ImpactOutcome_Import-Export'!N$7:N$13,MATCH($A35,'ImpactOutcome_Import-Export'!$B$7:$B$13,0))=\"\",\"\",INDEX('ImpactOutcome_Import-Export'!N$7:N$13,MATCH($A35,'ImpactOutcome_Import-Export'!$B$7:$B$13,0))),\"\"))","v":""},{"$f":"IF(B35=\"\",\"\",IFERROR(IF(INDEX('ImpactOutcome_Import-Export'!O$7:O$13,MATCH($A35,'ImpactOutcome_Import-Export'!$B$7:$B$13,0))=\"\",\"\",INDEX('ImpactOutcome_Import-Export'!O$7:O$13,MATCH($A35,'ImpactOutcome_Import-Export'!$B$7:$B$13,0))),\"\"))","v":""},{"$f":"IF(B35=\"\",\"\",IFERROR(IF(INDEX('ImpactOutcome_Import-Export'!P$7:P$13,MATCH($A35,'ImpactOutcome_Import-Export'!$B$7:$B$13,0))=\"\",\"\",INDEX('ImpactOutcome_Import-Export'!P$7:P$13,MATCH($A35,'ImpactOutcome_Import-Export'!$B$7:$B$13,0))),\"\"))","v":""},{"$f":"IF(B35=\"\",\"\",IFERROR(IF(INDEX('ImpactOutcome_Import-Export'!Q$7:Q$13,MATCH($A35,'ImpactOutcome_Import-Export'!$B$7:$B$13,0))=\"\",\"\",INDEX('ImpactOutcome_Import-Export'!Q$7:Q$13,MATCH($A35,'ImpactOutcome_Import-Export'!$B$7:$B$13,0))),\"\"))","v":""},{"$f":"IF(B35=\"\",\"\",IFERROR(IF(INDEX('ImpactOutcome_Import-Export'!R$7:R$13,MATCH($A35,'ImpactOutcome_Import-Export'!$B$7:$B$13,0))=\"\",\"\",INDEX('ImpactOutcome_Import-Export'!R$7:R$13,MATCH($A35,'ImpactOutcome_Import-Export'!$B$7:$B$13,0))),\"\"))","v":""},null,null,"",null,null,null,"",null,null,null,"",null,null,null,"",null,null,"",null,""]
[{"$f":"IFERROR(IF(INDEX(Impactlist,MATCH(0,INDEX(COUNTIF(A$10:A35,Impactlist),0,0),0))<>\"\",INDEX(Impactlist,MATCH(0,INDEX(COUNTIF(A$10:A35,Impactlist),0,0),0)),INDEX(Outcomelist,MATCH(0,INDEX(COUNTIF(A$10:A35,Outcomelist),0,0),0))),\"\")","v":""},{"$f":"IFERROR(INDEX('ImpactOutcome_Import-Export'!D$7:D$200,MATCH($A36,'ImpactOutcome_Import-Export'!$B$7:$B$200,0)),\"\")","v":""},{"$f":"IF(B36=\"\",\"\",IFERROR(INDEX('ImpactOutcome_Import-Export'!F$7:F$13,MATCH($A36,'ImpactOutcome_Import-Export'!$B$7:$B$13,0)),\"\"))","v":""},{"$f":"IF(B36=\"\",\"\",IFERROR(IF(INDEX('ImpactOutcome_Import-Export'!K$7:K$13,MATCH($A36,'ImpactOutcome_Import-Export'!$B$7:$B$13,0))=\"\",\"\",INDEX('ImpactOutcome_Import-Export'!K$7:K$13,MATCH($A36,'ImpactOutcome_Import-Export'!$B$7:$B$13,0))),\"\"))","v":""},{"$f":"IF(B36=\"\",\"\",IFERROR(IF(INDEX('ImpactOutcome_Import-Export'!L$7:L$13,MATCH($A36,'ImpactOutcome_Import-Export'!$B$7:$B$13,0))=\"\",\"\",INDEX('ImpactOutcome_Import-Export'!L$7:L$13,MATCH($A36,'ImpactOutcome_Import-Export'!$B$7:$B$13,0))),\"\"))","v":""},{"$f":"IF(B36=\"\",\"\",IFERROR(IF(INDEX('ImpactOutcome_Import-Export'!M$7:M$13,MATCH($A36,'ImpactOutcome_Import-Export'!$B$7:$B$13,0))=\"\",\"\",INDEX('ImpactOutcome_Import-Export'!M$7:M$13,MATCH($A36,'ImpactOutcome_Import-Export'!$B$7:$B$13,0))),\"\"))","v":""},{"$f":"IF(B36=\"\",\"\",IFERROR(IF(INDEX('ImpactOutcome_Import-Export'!N$7:N$13,MATCH($A36,'ImpactOutcome_Import-Export'!$B$7:$B$13,0))=\"\",\"\",INDEX('ImpactOutcome_Import-Export'!N$7:N$13,MATCH($A36,'ImpactOutcome_Import-Export'!$B$7:$B$13,0))),\"\"))","v":""},{"$f":"IF(B36=\"\",\"\",IFERROR(IF(INDEX('ImpactOutcome_Import-Export'!O$7:O$13,MATCH($A36,'ImpactOutcome_Import-Export'!$B$7:$B$13,0))=\"\",\"\",INDEX('ImpactOutcome_Import-Export'!O$7:O$13,MATCH($A36,'ImpactOutcome_Import-Export'!$B$7:$B$13,0))),\"\"))","v":""},{"$f":"IF(B36=\"\",\"\",IFERROR(IF(INDEX('ImpactOutcome_Import-Export'!P$7:P$13,MATCH($A36,'ImpactOutcome_Import-Export'!$B$7:$B$13,0))=\"\",\"\",INDEX('ImpactOutcome_Import-Export'!P$7:P$13,MATCH($A36,'ImpactOutcome_Import-Export'!$B$7:$B$13,0))),\"\"))","v":""},{"$f":"IF(B36=\"\",\"\",IFERROR(IF(INDEX('ImpactOutcome_Import-Export'!Q$7:Q$13,MATCH($A36,'ImpactOutcome_Import-Export'!$B$7:$B$13,0))=\"\",\"\",INDEX('ImpactOutcome_Import-Export'!Q$7:Q$13,MATCH($A36,'ImpactOutcome_Import-Export'!$B$7:$B$13,0))),\"\"))","v":""},{"$f":"IF(B36=\"\",\"\",IFERROR(IF(INDEX('ImpactOutcome_Import-Export'!R$7:R$13,MATCH($A36,'ImpactOutcome_Import-Export'!$B$7:$B$13,0))=\"\",\"\",INDEX('ImpactOutcome_Import-Export'!R$7:R$13,MATCH($A36,'ImpactOutcome_Import-Export'!$B$7:$B$13,0))),\"\"))","v":""},null,null,"",null,null,null,"",null,null,null,"",null,null,null,"",null,null,"",null,""]
[{"$f":"IFERROR(IF(INDEX(Impactlist,MATCH(0,INDEX(COUNTIF(A$10:A36,Impactlist),0,0),0))<>\"\",INDEX(Impactlist,MATCH(0,INDEX(COUNTIF(A$10:A36,Impactlist),0,0),0)),INDEX(Outcomelist,MATCH(0,INDEX(COUNTIF(A$10:A36,Outcomelist),0,0),0))),\"\")","v":""},{"$f":"IFERROR(INDEX('ImpactOutcome_Import-Export'!D$7:D$200,MATCH($A37,'ImpactOutcome_Import-Export'!$B$7:$B$200,0)),\"\")","v":""},{"$f":"IF(B37=\"\",\"\",IFERROR(INDEX('ImpactOutcome_Import-Export'!F$7:F$13,MATCH($A37,'ImpactOutcome_Import-Export'!$B$7:$B$13,0)),\"\"))","v":""},{"$f":"IF(B37=\"\",\"\",IFERROR(IF(INDEX('ImpactOutcome_Import-Export'!K$7:K$13,MATCH($A37,'ImpactOutcome_Import-Export'!$B$7:$B$13,0))=\"\",\"\",INDEX('ImpactOutcome_Import-Export'!K$7:K$13,MATCH($A37,'ImpactOutcome_Import-Export'!$B$7:$B$13,0))),\"\"))","v":""},{"$f":"IF(B37=\"\",\"\",IFERROR(IF(INDEX('ImpactOutcome_Import-Export'!L$7:L$13,MATCH($A37,'ImpactOutcome_Import-Export'!$B$7:$B$13,0))=\"\",\"\",INDEX('ImpactOutcome_Import-Export'!L$7:L$13,MATCH($A37,'ImpactOutcome_Import-Export'!$B$7:$B$13,0))),\"\"))","v":""},{"$f":"IF(B37=\"\",\"\",IFERROR(IF(INDEX('ImpactOutcome_Import-Export'!M$7:M$13,MATCH($A37,'ImpactOutcome_Import-Export'!$B$7:$B$13,0))=\"\",\"\",INDEX('ImpactOutcome_Import-Export'!M$7:M$13,MATCH($A37,'ImpactOutcome_Import-Export'!$B$7:$B$13,0))),\"\"))","v":""},{"$f":"IF(B37=\"\",\"\",IFERROR(IF(INDEX('ImpactOutcome_Import-Export'!N$7:N$13,MATCH($A37,'ImpactOutcome_Import-Export'!$B$7:$B$13,0))=\"\",\"\",INDEX('ImpactOutcome_Import-Export'!N$7:N$13,MATCH($A37,'ImpactOutcome_Import-Export'!$B$7:$B$13,0))),\"\"))","v":""},{"$f":"IF(B37=\"\",\"\",IFERROR(IF(INDEX('ImpactOutcome_Import-Export'!O$7:O$13,MATCH($A37,'ImpactOutcome_Import-Export'!$B$7:$B$13,0))=\"\",\"\",INDEX('ImpactOutcome_Import-Export'!O$7:O$13,MATCH($A37,'ImpactOutcome_Import-Export'!$B$7:$B$13,0))),\"\"))","v":""},{"$f":"IF(B37=\"\",\"\",IFERROR(IF(INDEX('ImpactOutcome_Import-Export'!P$7:P$13,MATCH($A37,'ImpactOutcome_Import-Export'!$B$7:$B$13,0))=\"\",\"\",INDEX('ImpactOutcome_Import-Export'!P$7:P$13,MATCH($A37,'ImpactOutcome_Import-Export'!$B$7:$B$13,0))),\"\"))","v":""},{"$f":"IF(B37=\"\",\"\",IFERROR(IF(INDEX('ImpactOutcome_Import-Export'!Q$7:Q$13,MATCH($A37,'ImpactOutcome_Import-Export'!$B$7:$B$13,0))=\"\",\"\",INDEX('ImpactOutcome_Import-Export'!Q$7:Q$13,MATCH($A37,'ImpactOutcome_Import-Export'!$B$7:$B$13,0))),\"\"))","v":""},{"$f":"IF(B37=\"\",\"\",IFERROR(IF(INDEX('ImpactOutcome_Import-Export'!R$7:R$13,MATCH($A37,'ImpactOutcome_Import-Export'!$B$7:$B$13,0))=\"\",\"\",INDEX('ImpactOutcome_Import-Export'!R$7:R$13,MATCH($A37,'ImpactOutcome_Import-Export'!$B$7:$B$13,0))),\"\"))","v":""},null,null,"",null,null,null,"",null,null,null,"",null,null,null,"",null,null,"",null,""]
[{"$f":"IFERROR(IF(INDEX(Impactlist,MATCH(0,INDEX(COUNTIF(A$10:A37,Impactlist),0,0),0))<>\"\",INDEX(Impactlist,MATCH(0,INDEX(COUNTIF(A$10:A37,Impactlist),0,0),0)),INDEX(Outcomelist,MATCH(0,INDEX(COUNTIF(A$10:A37,Outcomelist),0,0),0))),\"\")","v":""},{"$f":"IFERROR(INDEX('ImpactOutcome_Import-Export'!D$7:D$200,MATCH($A38,'ImpactOutcome_Import-Export'!$B$7:$B$200,0)),\"\")","v":""},{"$f":"IF(B38=\"\",\"\",IFERROR(INDEX('ImpactOutcome_Import-Export'!F$7:F$13,MATCH($A38,'ImpactOutcome_Import-Export'!$B$7:$B$13,0)),\"\"))","v":""},{"$f":"IF(B38=\"\",\"\",IFERROR(IF(INDEX('ImpactOutcome_Import-Export'!K$7:K$13,MATCH($A38,'ImpactOutcome_Import-Export'!$B$7:$B$13,0))=\"\",\"\",INDEX('ImpactOutcome_Import-Export'!K$7:K$13,MATCH($A38,'ImpactOutcome_Import-Export'!$B$7:$B$13,0))),\"\"))","v":""},{"$f":"IF(B38=\"\",\"\",IFERROR(IF(INDEX('ImpactOutcome_Import-Export'!L$7:L$13,MATCH($A38,'ImpactOutcome_Import-Export'!$B$7:$B$13,0))=\"\",\"\",INDEX('ImpactOutcome_Import-Export'!L$7:L$13,MATCH($A38,'ImpactOutcome_Import-Export'!$B$7:$B$13,0))),\"\"))","v":""},{"$f":"IF(B38=\"\",\"\",IFERROR(IF(INDEX('ImpactOutcome_Import-Export'!M$7:M$13,MATCH($A38,'ImpactOutcome_Import-Export'!$B$7:$B$13,0))=\"\",\"\",INDEX('ImpactOutcome_Import-Export'!M$7:M$13,MATCH($A38,'ImpactOutcome_Import-Export'!$B$7:$B$13,0))),\"\"))","v":""},{"$f":"IF(B38=\"\",\"\",IFERROR(IF(INDEX('ImpactOutcome_Import-Export'!N$7:N$13,MATCH($A38,'ImpactOutcome_Import-Export'!$B$7:$B$13,0))=\"\",\"\",INDEX('ImpactOutcome_Import-Export'!N$7:N$13,MATCH($A38,'ImpactOutcome_Import-Export'!$B$7:$B$13,0))),\"\"))","v":""},{"$f":"IF(B38=\"\",\"\",IFERROR(IF(INDEX('ImpactOutcome_Import-Export'!O$7:O$13,MATCH($A38,'ImpactOutcome_Import-Export'!$B$7:$B$13,0))=\"\",\"\",INDEX('ImpactOutcome_Import-Export'!O$7:O$13,MATCH($A38,'ImpactOutcome_Import-Export'!$B$7:$B$13,0))),\"\"))","v":""},{"$f":"IF(B38=\"\",\"\",IFERROR(IF(INDEX('ImpactOutcome_Import-Export'!P$7:P$13,MATCH($A38,'ImpactOutcome_Import-Export'!$B$7:$B$13,0))=\"\",\"\",INDEX('ImpactOutcome_Import-Export'!P$7:P$13,MATCH($A38,'ImpactOutcome_Import-Export'!$B$7:$B$13,0))),\"\"))","v":""},{"$f":"IF(B38=\"\",\"\",IFERROR(IF(INDEX('ImpactOutcome_Import-Export'!Q$7:Q$13,MATCH($A38,'ImpactOutcome_Import-Export'!$B$7:$B$13,0))=\"\",\"\",INDEX('ImpactOutcome_Import-Export'!Q$7:Q$13,MATCH($A38,'ImpactOutcome_Import-Export'!$B$7:$B$13,0))),\"\"))","v":""},{"$f":"IF(B38=\"\",\"\",IFERROR(IF(INDEX('ImpactOutcome_Import-Export'!R$7:R$13,MATCH($A38,'ImpactOutcome_Import-Export'!$B$7:$B$13,0))=\"\",\"\",INDEX('ImpactOutcome_Import-Export'!R$7:R$13,MATCH($A38,'ImpactOutcome_Import-Export'!$B$7:$B$13,0))),\"\"))","v":""},null,null,"",null,null,null,"",null,null,null,"",null,null,null,"",null,null,"",null,""]
[{"$f":"IFERROR(IF(INDEX(Impactlist,MATCH(0,INDEX(COUNTIF(A$10:A38,Impactlist),0,0),0))<>\"\",INDEX(Impactlist,MATCH(0,INDEX(COUNTIF(A$10:A38,Impactlist),0,0),0)),INDEX(Outcomelist,MATCH(0,INDEX(COUNTIF(A$10:A38,Outcomelist),0,0),0))),\"\")","v":""},{"$f":"IFERROR(INDEX('ImpactOutcome_Import-Export'!D$7:D$200,MATCH($A39,'ImpactOutcome_Import-Export'!$B$7:$B$200,0)),\"\")","v":""},{"$f":"IF(B39=\"\",\"\",IFERROR(INDEX('ImpactOutcome_Import-Export'!F$7:F$13,MATCH($A39,'ImpactOutcome_Import-Export'!$B$7:$B$13,0)),\"\"))","v":""},{"$f":"IF(B39=\"\",\"\",IFERROR(IF(INDEX('ImpactOutcome_Import-Export'!K$7:K$13,MATCH($A39,'ImpactOutcome_Import-Export'!$B$7:$B$13,0))=\"\",\"\",INDEX('ImpactOutcome_Import-Export'!K$7:K$13,MATCH($A39,'ImpactOutcome_Import-Export'!$B$7:$B$13,0))),\"\"))","v":""},{"$f":"IF(B39=\"\",\"\",IFERROR(IF(INDEX('ImpactOutcome_Import-Export'!L$7:L$13,MATCH($A39,'ImpactOutcome_Import-Export'!$B$7:$B$13,0))=\"\",\"\",INDEX('ImpactOutcome_Import-Export'!L$7:L$13,MATCH($A39,'ImpactOutcome_Import-Export'!$B$7:$B$13,0))),\"\"))","v":""},{"$f":"IF(B39=\"\",\"\",IFERROR(IF(INDEX('ImpactOutcome_Import-Export'!M$7:M$13,MATCH($A39,'ImpactOutcome_Import-Export'!$B$7:$B$13,0))=\"\",\"\",INDEX('ImpactOutcome_Import-Export'!M$7:M$13,MATCH($A39,'ImpactOutcome_Import-Export'!$B$7:$B$13,0))),\"\"))","v":""},{"$f":"IF(B39=\"\",\"\",IFERROR(IF(INDEX('ImpactOutcome_Import-Export'!N$7:N$13,MATCH($A39,'ImpactOutcome_Import-Export'!$B$7:$B$13,0))=\"\",\"\",INDEX('ImpactOutcome_Import-Export'!N$7:N$13,MATCH($A39,'ImpactOutcome_Import-Export'!$B$7:$B$13,0))),\"\"))","v":""},{"$f":"IF(B39=\"\",\"\",IFERROR(IF(INDEX('ImpactOutcome_Import-Export'!O$7:O$13,MATCH($A39,'ImpactOutcome_Import-Export'!$B$7:$B$13,0))=\"\",\"\",INDEX('ImpactOutcome_Import-Export'!O$7:O$13,MATCH($A39,'ImpactOutcome_Import-Export'!$B$7:$B$13,0))),\"\"))","v":""},{"$f":"IF(B39=\"\",\"\",IFERROR(IF(INDEX('ImpactOutcome_Import-Export'!P$7:P$13,MATCH($A39,'ImpactOutcome_Import-Export'!$B$7:$B$13,0))=\"\",\"\",INDEX('ImpactOutcome_Import-Export'!P$7:P$13,MATCH($A39,'ImpactOutcome_Import-Export'!$B$7:$B$13,0))),\"\"))","v":""},{"$f":"IF(B39=\"\",\"\",IFERROR(IF(INDEX('ImpactOutcome_Import-Export'!Q$7:Q$13,MATCH($A39,'ImpactOutcome_Import-Export'!$B$7:$B$13,0))=\"\",\"\",INDEX('ImpactOutcome_Import-Export'!Q$7:Q$13,MATCH($A39,'ImpactOutcome_Import-Export'!$B$7:$B$13,0))),\"\"))","v":""},{"$f":"IF(B39=\"\",\"\",IFERROR(IF(INDEX('ImpactOutcome_Import-Export'!R$7:R$13,MATCH($A39,'ImpactOutcome_Import-Export'!$B$7:$B$13,0))=\"\",\"\",INDEX('ImpactOutcome_Import-Export'!R$7:R$13,MATCH($A39,'ImpactOutcome_Import-Export'!$B$7:$B$13,0))),\"\"))","v":""},null,null,"",null,null,null,"",null,null,null,"",null,null,null,"",null,null,"",null,""]
[{"$f":"IFERROR(IF(INDEX(Impactlist,MATCH(0,INDEX(COUNTIF(A$10:A39,Impactlist),0,0),0))<>\"\",INDEX(Impactlist,MATCH(0,INDEX(COUNTIF(A$10:A39,Impactlist),0,0),0)),INDEX(Outcomelist,MATCH(0,INDEX(COUNTIF(A$10:A39,Outcomelist),0,0),0))),\"\")","v":""},{"$f":"IFERROR(INDEX('ImpactOutcome_Import-Export'!D$7:D$200,MATCH($A40,'ImpactOutcome_Import-Export'!$B$7:$B$200,0)),\"\")","v":""},{"$f":"IF(B40=\"\",\"\",IFERROR(INDEX('ImpactOutcome_Import-Export'!F$7:F$13,MATCH($A40,'ImpactOutcome_Import-Export'!$B$7:$B$13,0)),\"\"))","v":""},{"$f":"IF(B40=\"\",\"\",IFERROR(IF(INDEX('ImpactOutcome_Import-Export'!K$7:K$13,MATCH($A40,'ImpactOutcome_Import-Export'!$B$7:$B$13,0))=\"\",\"\",INDEX('ImpactOutcome_Import-Export'!K$7:K$13,MATCH($A40,'ImpactOutcome_Import-Export'!$B$7:$B$13,0))),\"\"))","v":""},{"$f":"IF(B40=\"\",\"\",IFERROR(IF(INDEX('ImpactOutcome_Import-Export'!L$7:L$13,MATCH($A40,'ImpactOutcome_Import-Export'!$B$7:$B$13,0))=\"\",\"\",INDEX('ImpactOutcome_Import-Export'!L$7:L$13,MATCH($A40,'ImpactOutcome_Import-Export'!$B$7:$B$13,0))),\"\"))","v":""},{"$f":"IF(B40=\"\",\"\",IFERROR(IF(INDEX('ImpactOutcome_Import-Export'!M$7:M$13,MATCH($A40,'ImpactOutcome_Import-Export'!$B$7:$B$13,0))=\"\",\"\",INDEX('ImpactOutcome_Import-Export'!M$7:M$13,MATCH($A40,'ImpactOutcome_Import-Export'!$B$7:$B$13,0))),\"\"))","v":""},{"$f":"IF(B40=\"\",\"\",IFERROR(IF(INDEX('ImpactOutcome_Import-Export'!N$7:N$13,MATCH($A40,'ImpactOutcome_Import-Export'!$B$7:$B$13,0))=\"\",\"\",INDEX('ImpactOutcome_Import-Export'!N$7:N$13,MATCH($A40,'ImpactOutcome_Import-Export'!$B$7:$B$13,0))),\"\"))","v":""},{"$f":"IF(B40=\"\",\"\",IFERROR(IF(INDEX('ImpactOutcome_Import-Export'!O$7:O$13,MATCH($A40,'ImpactOutcome_Import-Export'!$B$7:$B$13,0))=\"\",\"\",INDEX('ImpactOutcome_Import-Export'!O$7:O$13,MATCH($A40,'ImpactOutcome_Import-Export'!$B$7:$B$13,0))),\"\"))","v":""},{"$f":"IF(B40=\"\",\"\",IFERROR(IF(INDEX('ImpactOutcome_Import-Export'!P$7:P$13,MATCH($A40,'ImpactOutcome_Import-Export'!$B$7:$B$13,0))=\"\",\"\",INDEX('ImpactOutcome_Import-Export'!P$7:P$13,MATCH($A40,'ImpactOutcome_Import-Export'!$B$7:$B$13,0))),\"\"))","v":""},{"$f":"IF(B40=\"\",\"\",IFERROR(IF(INDEX('ImpactOutcome_Import-Export'!Q$7:Q$13,MATCH($A40,'ImpactOutcome_Import-Export'!$B$7:$B$13,0))=\"\",\"\",INDEX('ImpactOutcome_Import-Export'!Q$7:Q$13,MATCH($A40,'ImpactOutcome_Import-Export'!$B$7:$B$13,0))),\"\"))","v":""},{"$f":"IF(B40=\"\",\"\",IFERROR(IF(INDEX('ImpactOutcome_Import-Export'!R$7:R$13,MATCH($A40,'ImpactOutcome_Import-Export'!$B$7:$B$13,0))=\"\",\"\",INDEX('ImpactOutcome_Import-Export'!R$7:R$13,MATCH($A40,'ImpactOutcome_Import-Export'!$B$7:$B$13,0))),\"\"))","v":""},null,null,"",null,null,null,"",null,null,null,"",null,null,null,"",null,null,"",null,""]
[{"$f":"IFERROR(IF(INDEX(Impactlist,MATCH(0,INDEX(COUNTIF(A$10:A40,Impactlist),0,0),0))<>\"\",INDEX(Impactlist,MATCH(0,INDEX(COUNTIF(A$10:A40,Impactlist),0,0),0)),INDEX(Outcomelist,MATCH(0,INDEX(COUNTIF(A$10:A40,Outcomelist),0,0),0))),\"\")","v":""},{"$f":"IFERROR(INDEX('ImpactOutcome_Import-Export'!D$7:D$200,MATCH($A41,'ImpactOutcome_Import-Export'!$B$7:$B$200,0)),\"\")","v":""},{"$f":"IF(B41=\"\",\"\",IFERROR(INDEX('ImpactOutcome_Import-Export'!F$7:F$13,MATCH($A41,'ImpactOutcome_Import-Export'!$B$7:$B$13,0)),\"\"))","v":""},{"$f":"IF(B41=\"\",\"\",IFERROR(IF(INDEX('ImpactOutcome_Import-Export'!K$7:K$13,MATCH($A41,'ImpactOutcome_Import-Export'!$B$7:$B$13,0))=\"\",\"\",INDEX('ImpactOutcome_Import-Export'!K$7:K$13,MATCH($A41,'ImpactOutcome_Import-Export'!$B$7:$B$13,0))),\"\"))","v":""},{"$f":"IF(B41=\"\",\"\",IFERROR(IF(INDEX('ImpactOutcome_Import-Export'!L$7:L$13,MATCH($A41,'ImpactOutcome_Import-Export'!$B$7:$B$13,0))=\"\",\"\",INDEX('ImpactOutcome_Import-Export'!L$7:L$13,MATCH($A41,'ImpactOutcome_Import-Export'!$B$7:$B$13,0))),\"\"))","v":""},{"$f":"IF(B41=\"\",\"\",IFERROR(IF(INDEX('ImpactOutcome_Import-Export'!M$7:M$13,MATCH($A41,'ImpactOutcome_Import-Export'!$B$7:$B$13,0))=\"\",\"\",INDEX('ImpactOutcome_Import-Export'!M$7:M$13,MATCH($A41,'ImpactOutcome_Import-Export'!$B$7:$B$13,0))),\"\"))","v":""},{"$f":"IF(B41=\"\",\"\",IFERROR(IF(INDEX('ImpactOutcome_Import-Export'!N$7:N$13,MATCH($A41,'ImpactOutcome_Import-Export'!$B$7:$B$13,0))=\"\",\"\",INDEX('ImpactOutcome_Import-Export'!N$7:N$13,MATCH($A41,'ImpactOutcome_Import-Export'!$B$7:$B$13,0))),\"\"))","v":""},{"$f":"IF(B41=\"\",\"\",IFERROR(IF(INDEX('ImpactOutcome_Import-Export'!O$7:O$13,MATCH($A41,'ImpactOutcome_Import-Export'!$B$7:$B$13,0))=\"\",\"\",INDEX('ImpactOutcome_Import-Export'!O$7:O$13,MATCH($A41,'ImpactOutcome_Import-Export'!$B$7:$B$13,0))),\"\"))","v":""},{"$f":"IF(B41=\"\",\"\",IFERROR(IF(INDEX('ImpactOutcome_Import-Export'!P$7:P$13,MATCH($A41,'ImpactOutcome_Import-Export'!$B$7:$B$13,0))=\"\",\"\",INDEX('ImpactOutcome_Import-Export'!P$7:P$13,MATCH($A41,'ImpactOutcome_Import-Export'!$B$7:$B$13,0))),\"\"))","v":""},{"$f":"IF(B41=\"\",\"\",IFERROR(IF(INDEX('ImpactOutcome_Import-Export'!Q$7:Q$13,MATCH($A41,'ImpactOutcome_Import-Export'!$B$7:$B$13,0))=\"\",\"\",INDEX('ImpactOutcome_Import-Export'!Q$7:Q$13,MATCH($A41,'ImpactOutcome_Import-Export'!$B$7:$B$13,0))),\"\"))","v":""},{"$f":"IF(B41=\"\",\"\",IFERROR(IF(INDEX('ImpactOutcome_Import-Export'!R$7:R$13,MATCH($A41,'ImpactOutcome_Import-Export'!$B$7:$B$13,0))=\"\",\"\",INDEX('ImpactOutcome_Import-Export'!R$7:R$13,MATCH($A41,'ImpactOutcome_Import-Export'!$B$7:$B$13,0))),\"\"))","v":""},null,null,"",null,null,null,"",null,null,null,"",null,null,null,"",null,null,"",null,""]
[{"$f":"IFERROR(IF(INDEX(Impactlist,MATCH(0,INDEX(COUNTIF(A$10:A41,Impactlist),0,0),0))<>\"\",INDEX(Impactlist,MATCH(0,INDEX(COUNTIF(A$10:A41,Impactlist),0,0),0)),INDEX(Outcomelist,MATCH(0,INDEX(COUNTIF(A$10:A41,Outcomelist),0,0),0))),\"\")","v":""},{"$f":"IFERROR(INDEX('ImpactOutcome_Import-Export'!D$7:D$200,MATCH($A42,'ImpactOutcome_Import-Export'!$B$7:$B$200,0)),\"\")","v":""},{"$f":"IF(B42=\"\",\"\",IFERROR(INDEX('ImpactOutcome_Import-Export'!F$7:F$13,MATCH($A42,'ImpactOutcome_Import-Export'!$B$7:$B$13,0)),\"\"))","v":""},{"$f":"IF(B42=\"\",\"\",IFERROR(IF(INDEX('ImpactOutcome_Import-Export'!K$7:K$13,MATCH($A42,'ImpactOutcome_Import-Export'!$B$7:$B$13,0))=\"\",\"\",INDEX('ImpactOutcome_Import-Export'!K$7:K$13,MATCH($A42,'ImpactOutcome_Import-Export'!$B$7:$B$13,0))),\"\"))","v":""},{"$f":"IF(B42=\"\",\"\",IFERROR(IF(INDEX('ImpactOutcome_Import-Export'!L$7:L$13,MATCH($A42,'ImpactOutcome_Import-Export'!$B$7:$B$13,0))=\"\",\"\",INDEX('ImpactOutcome_Import-Export'!L$7:L$13,MATCH($A42,'ImpactOutcome_Import-Export'!$B$7:$B$13,0))),\"\"))","v":""},{"$f":"IF(B42=\"\",\"\",IFERROR(IF(INDEX('ImpactOutcome_Import-Export'!M$7:M$13,MATCH($A42,'ImpactOutcome_Import-Export'!$B$7:$B$13,0))=\"\",\"\",INDEX('ImpactOutcome_Import-Export'!M$7:M$13,MATCH($A42,'ImpactOutcome_Import-Export'!$B$7:$B$13,0))),\"\"))","v":""},{"$f":"IF(B42=\"\",\"\",IFERROR(IF(INDEX('ImpactOutcome_Import-Export'!N$7:N$13,MATCH($A42,'ImpactOutcome_Import-Export'!$B$7:$B$13,0))=\"\",\"\",INDEX('ImpactOutcome_Import-Export'!N$7:N$13,MATCH($A42,'ImpactOutcome_Import-Export'!$B$7:$B$13,0))),\"\"))","v":""},{"$f":"IF(B42=\"\",\"\",IFERROR(IF(INDEX('ImpactOutcome_Import-Export'!O$7:O$13,MATCH($A42,'ImpactOutcome_Import-Export'!$B$7:$B$13,0))=\"\",\"\",INDEX('ImpactOutcome_Import-Export'!O$7:O$13,MATCH($A42,'ImpactOutcome_Import-Export'!$B$7:$B$13,0))),\"\"))","v":""},{"$f":"IF(B42=\"\",\"\",IFERROR(IF(INDEX('ImpactOutcome_Import-Export'!P$7:P$13,MATCH($A42,'ImpactOutcome_Import-Export'!$B$7:$B$13,0))=\"\",\"\",INDEX('ImpactOutcome_Import-Export'!P$7:P$13,MATCH($A42,'ImpactOutcome_Import-Export'!$B$7:$B$13,0))),\"\"))","v":""},{"$f":"IF(B42=\"\",\"\",IFERROR(IF(INDEX('ImpactOutcome_Import-Export'!Q$7:Q$13,MATCH($A42,'ImpactOutcome_Import-Export'!$B$7:$B$13,0))=\"\",\"\",INDEX('ImpactOutcome_Import-Export'!Q$7:Q$13,MATCH($A42,'ImpactOutcome_Import-Export'!$B$7:$B$13,0))),\"\"))","v":""},{"$f":"IF(B42=\"\",\"\",IFERROR(IF(INDEX('ImpactOutcome_Import-Export'!R$7:R$13,MATCH($A42,'ImpactOutcome_Import-Export'!$B$7:$B$13,0))=\"\",\"\",INDEX('ImpactOutcome_Import-Export'!R$7:R$13,MATCH($A42,'ImpactOutcome_Import-Export'!$B$7:$B$13,0))),\"\"))","v":""},null,null,"",null,null,null,"",null,null,null,"",null,null,null,"",null,null,"",null,""]
[{"$f":"IFERROR(IF(INDEX(Impactlist,MATCH(0,INDEX(COUNTIF(A$10:A42,Impactlist),0,0),0))<>\"\",INDEX(Impactlist,MATCH(0,INDEX(COUNTIF(A$10:A42,Impactlist),0,0),0)),INDEX(Outcomelist,MATCH(0,INDEX(COUNTIF(A$10:A42,Outcomelist),0,0),0))),\"\")","v":""},{"$f":"IFERROR(INDEX('ImpactOutcome_Import-Export'!D$7:D$200,MATCH($A43,'ImpactOutcome_Import-Export'!$B$7:$B$200,0)),\"\")","v":""},{"$f":"IF(B43=\"\",\"\",IFERROR(INDEX('ImpactOutcome_Import-Export'!F$7:F$13,MATCH($A43,'ImpactOutcome_Import-Export'!$B$7:$B$13,0)),\"\"))","v":""},{"$f":"IF(B43=\"\",\"\",IFERROR(IF(INDEX('ImpactOutcome_Import-Export'!K$7:K$13,MATCH($A43,'ImpactOutcome_Import-Export'!$B$7:$B$13,0))=\"\",\"\",INDEX('ImpactOutcome_Import-Export'!K$7:K$13,MATCH($A43,'ImpactOutcome_Import-Export'!$B$7:$B$13,0))),\"\"))","v":""},{"$f":"IF(B43=\"\",\"\",IFERROR(IF(INDEX('ImpactOutcome_Import-Export'!L$7:L$13,MATCH($A43,'ImpactOutcome_Import-Export'!$B$7:$B$13,0))=\"\",\"\",INDEX('ImpactOutcome_Import-Export'!L$7:L$13,MATCH($A43,'ImpactOutcome_Import-Export'!$B$7:$B$13,0))),\"\"))","v":""},{"$f":"IF(B43=\"\",\"\",IFERROR(IF(INDEX('ImpactOutcome_Import-Export'!M$7:M$13,MATCH($A43,'ImpactOutcome_Import-Export'!$B$7:$B$13,0))=\"\",\"\",INDEX('ImpactOutcome_Import-Export'!M$7:M$13,MATCH($A43,'ImpactOutcome_Import-Export'!$B$7:$B$13,0))),\"\"))","v":""},{"$f":"IF(B43=\"\",\"\",IFERROR(IF(INDEX('ImpactOutcome_Import-Export'!N$7:N$13,MATCH($A43,'ImpactOutcome_Import-Export'!$B$7:$B$13,0))=\"\",\"\",INDEX('ImpactOutcome_Import-Export'!N$7:N$13,MATCH($A43,'ImpactOutcome_Import-Export'!$B$7:$B$13,0))),\"\"))","v":""},{"$f":"IF(B43=\"\",\"\",IFERROR(IF(INDEX('ImpactOutcome_Import-Export'!O$7:O$13,MATCH($A43,'ImpactOutcome_Import-Export'!$B$7:$B$13,0))=\"\",\"\",INDEX('ImpactOutcome_Import-Export'!O$7:O$13,MATCH($A43,'ImpactOutcome_Import-Export'!$B$7:$B$13,0))),\"\"))","v":""},{"$f":"IF(B43=\"\",\"\",IFERROR(IF(INDEX('ImpactOutcome_Import-Export'!P$7:P$13,MATCH($A43,'ImpactOutcome_Import-Export'!$B$7:$B$13,0))=\"\",\"\",INDEX('ImpactOutcome_Import-Export'!P$7:P$13,MATCH($A43,'ImpactOutcome_Import-Export'!$B$7:$B$13,0))),\"\"))","v":""},{"$f":"IF(B43=\"\",\"\",IFERROR(IF(INDEX('ImpactOutcome_Import-Export'!Q$7:Q$13,MATCH($A43,'ImpactOutcome_Import-Export'!$B$7:$B$13,0))=\"\",\"\",INDEX('ImpactOutcome_Import-Export'!Q$7:Q$13,MATCH($A43,'ImpactOutcome_Import-Export'!$B$7:$B$13,0))),\"\"))","v":""},{"$f":"IF(B43=\"\",\"\",IFERROR(IF(INDEX('ImpactOutcome_Import-Export'!R$7:R$13,MATCH($A43,'ImpactOutcome_Import-Export'!$B$7:$B$13,0))=\"\",\"\",INDEX('ImpactOutcome_Import-Export'!R$7:R$13,MATCH($A43,'ImpactOutcome_Import-Export'!$B$7:$B$13,0))),\"\"))","v":""},null,null,"",null,null,null,"",null,null,null,"",null,null,null,"",null,null,"",null,""]
[{"$f":"IFERROR(IF(INDEX(Impactlist,MATCH(0,INDEX(COUNTIF(A$10:A43,Impactlist),0,0),0))<>\"\",INDEX(Impactlist,MATCH(0,INDEX(COUNTIF(A$10:A43,Impactlist),0,0),0)),INDEX(Outcomelist,MATCH(0,INDEX(COUNTIF(A$10:A43,Outcomelist),0,0),0))),\"\")","v":""},{"$f":"IFERROR(INDEX('ImpactOutcome_Import-Export'!D$7:D$200,MATCH($A44,'ImpactOutcome_Import-Export'!$B$7:$B$200,0)),\"\")","v":""},{"$f":"IF(B44=\"\",\"\",IFERROR(INDEX('ImpactOutcome_Import-Export'!F$7:F$13,MATCH($A44,'ImpactOutcome_Import-Export'!$B$7:$B$13,0)),\"\"))","v":""},{"$f":"IF(B44=\"\",\"\",IFERROR(IF(INDEX('ImpactOutcome_Import-Export'!K$7:K$13,MATCH($A44,'ImpactOutcome_Import-Export'!$B$7:$B$13,0))=\"\",\"\",INDEX('ImpactOutcome_Import-Export'!K$7:K$13,MATCH($A44,'ImpactOutcome_Import-Export'!$B$7:$B$13,0))),\"\"))","v":""},{"$f":"IF(B44=\"\",\"\",IFERROR(IF(INDEX('ImpactOutcome_Import-Export'!L$7:L$13,MATCH($A44,'ImpactOutcome_Import-Export'!$B$7:$B$13,0))=\"\",\"\",INDEX('ImpactOutcome_Import-Export'!L$7:L$13,MATCH($A44,'ImpactOutcome_Import-Export'!$B$7:$B$13,0))),\"\"))","v":""},{"$f":"IF(B44=\"\",\"\",IFERROR(IF(INDEX('ImpactOutcome_Import-Export'!M$7:M$13,MATCH($A44,'ImpactOutcome_Import-Export'!$B$7:$B$13,0))=\"\",\"\",INDEX('ImpactOutcome_Import-Export'!M$7:M$13,MATCH($A44,'ImpactOutcome_Import-Export'!$B$7:$B$13,0))),\"\"))","v":""},{"$f":"IF(B44=\"\",\"\",IFERROR(IF(INDEX('ImpactOutcome_Import-Export'!N$7:N$13,MATCH($A44,'ImpactOutcome_Import-Export'!$B$7:$B$13,0))=\"\",\"\",INDEX('ImpactOutcome_Import-Export'!N$7:N$13,MATCH($A44,'ImpactOutcome_Import-Export'!$B$7:$B$13,0))),\"\"))","v":""},{"$f":"IF(B44=\"\",\"\",IFERROR(IF(INDEX('ImpactOutcome_Import-Export'!O$7:O$13,MATCH($A44,'ImpactOutcome_Import-Export'!$B$7:$B$13,0))=\"\",\"\",INDEX('ImpactOutcome_Import-Export'!O$7:O$13,MATCH($A44,'ImpactOutcome_Import-Export'!$B$7:$B$13,0))),\"\"))","v":""},{"$f":"IF(B44=\"\",\"\",IFERROR(IF(INDEX('ImpactOutcome_Import-Export'!P$7:P$13,MATCH($A44,'ImpactOutcome_Import-Export'!$B$7:$B$13,0))=\"\",\"\",INDEX('ImpactOutcome_Import-Export'!P$7:P$13,MATCH($A44,'ImpactOutcome_Import-Export'!$B$7:$B$13,0))),\"\"))","v":""},{"$f":"IF(B44=\"\",\"\",IFERROR(IF(INDEX('ImpactOutcome_Import-Export'!Q$7:Q$13,MATCH($A44,'ImpactOutcome_Import-Export'!$B$7:$B$13,0))=\"\",\"\",INDEX('ImpactOutcome_Import-Export'!Q$7:Q$13,MATCH($A44,'ImpactOutcome_Import-Export'!$B$7:$B$13,0))),\"\"))","v":""},{"$f":"IF(B44=\"\",\"\",IFERROR(IF(INDEX('ImpactOutcome_Import-Export'!R$7:R$13,MATCH($A44,'ImpactOutcome_Import-Export'!$B$7:$B$13,0))=\"\",\"\",INDEX('ImpactOutcome_Import-Export'!R$7:R$13,MATCH($A44,'ImpactOutcome_Import-Export'!$B$7:$B$13,0))),\"\"))","v":""},null,null,"",null,null,null,"",null,null,null,"",null,null,null,"",null,null,"",null,""]
[{"$f":"IFERROR(IF(INDEX(Impactlist,MATCH(0,INDEX(COUNTIF(A$10:A44,Impactlist),0,0),0))<>\"\",INDEX(Impactlist,MATCH(0,INDEX(COUNTIF(A$10:A44,Impactlist),0,0),0)),INDEX(Outcomelist,MATCH(0,INDEX(COUNTIF(A$10:A44,Outcomelist),0,0),0))),\"\")","v":""},{"$f":"IFERROR(INDEX('ImpactOutcome_Import-Export'!D$7:D$200,MATCH($A45,'ImpactOutcome_Import-Export'!$B$7:$B$200,0)),\"\")","v":""},{"$f":"IF(B45=\"\",\"\",IFERROR(INDEX('ImpactOutcome_Import-Export'!F$7:F$13,MATCH($A45,'ImpactOutcome_Import-Export'!$B$7:$B$13,0)),\"\"))","v":""},{"$f":"IF(B45=\"\",\"\",IFERROR(IF(INDEX('ImpactOutcome_Import-Export'!K$7:K$13,MATCH($A45,'ImpactOutcome_Import-Export'!$B$7:$B$13,0))=\"\",\"\",INDEX('ImpactOutcome_Import-Export'!K$7:K$13,MATCH($A45,'ImpactOutcome_Import-Export'!$B$7:$B$13,0))),\"\"))","v":""},{"$f":"IF(B45=\"\",\"\",IFERROR(IF(INDEX('ImpactOutcome_Import-Export'!L$7:L$13,MATCH($A45,'ImpactOutcome_Import-Export'!$B$7:$B$13,0))=\"\",\"\",INDEX('ImpactOutcome_Import-Export'!L$7:L$13,MATCH($A45,'ImpactOutcome_Import-Export'!$B$7:$B$13,0))),\"\"))","v":""},{"$f":"IF(B45=\"\",\"\",IFERROR(IF(INDEX('ImpactOutcome_Import-Export'!M$7:M$13,MATCH($A45,'ImpactOutcome_Import-Export'!$B$7:$B$13,0))=\"\",\"\",INDEX('ImpactOutcome_Import-Export'!M$7:M$13,MATCH($A45,'ImpactOutcome_Import-Export'!$B$7:$B$13,0))),\"\"))","v":""},{"$f":"IF(B45=\"\",\"\",IFERROR(IF(INDEX('ImpactOutcome_Import-Export'!N$7:N$13,MATCH($A45,'ImpactOutcome_Import-Export'!$B$7:$B$13,0))=\"\",\"\",INDEX('ImpactOutcome_Import-Export'!N$7:N$13,MATCH($A45,'ImpactOutcome_Import-Export'!$B$7:$B$13,0))),\"\"))","v":""},{"$f":"IF(B45=\"\",\"\",IFERROR(IF(INDEX('ImpactOutcome_Import-Export'!O$7:O$13,MATCH($A45,'ImpactOutcome_Import-Export'!$B$7:$B$13,0))=\"\",\"\",INDEX('ImpactOutcome_Import-Export'!O$7:O$13,MATCH($A45,'ImpactOutcome_Import-Export'!$B$7:$B$13,0))),\"\"))","v":""},{"$f":"IF(B45=\"\",\"\",IFERROR(IF(INDEX('ImpactOutcome_Import-Export'!P$7:P$13,MATCH($A45,'ImpactOutcome_Import-Export'!$B$7:$B$13,0))=\"\",\"\",INDEX('ImpactOutcome_Import-Export'!P$7:P$13,MATCH($A45,'ImpactOutcome_Import-Export'!$B$7:$B$13,0))),\"\"))","v":""},{"$f":"IF(B45=\"\",\"\",IFERROR(IF(INDEX('ImpactOutcome_Import-Export'!Q$7:Q$13,MATCH($A45,'ImpactOutcome_Import-Export'!$B$7:$B$13,0))=\"\",\"\",INDEX('ImpactOutcome_Import-Export'!Q$7:Q$13,MATCH($A45,'ImpactOutcome_Import-Export'!$B$7:$B$13,0))),\"\"))","v":""},{"$f":"IF(B45=\"\",\"\",IFERROR(IF(INDEX('ImpactOutcome_Import-Export'!R$7:R$13,MATCH($A45,'ImpactOutcome_Import-Export'!$B$7:$B$13,0))=\"\",\"\",INDEX('ImpactOutcome_Import-Export'!R$7:R$13,MATCH($A45,'ImpactOutcome_Import-Export'!$B$7:$B$13,0))),\"\"))","v":""},null,null,"",null,null,null,"",null,null,null,"",null,null,null,"",null,null,"",null,""]
[{"$f":"IFERROR(IF(INDEX(Impactlist,MATCH(0,INDEX(COUNTIF(A$10:A45,Impactlist),0,0),0))<>\"\",INDEX(Impactlist,MATCH(0,INDEX(COUNTIF(A$10:A45,Impactlist),0,0),0)),INDEX(Outcomelist,MATCH(0,INDEX(COUNTIF(A$10:A45,Outcomelist),0,0),0))),\"\")","v":""},{"$f":"IFERROR(INDEX('ImpactOutcome_Import-Export'!D$7:D$200,MATCH($A46,'ImpactOutcome_Import-Export'!$B$7:$B$200,0)),\"\")","v":""},{"$f":"IF(B46=\"\",\"\",IFERROR(INDEX('ImpactOutcome_Import-Export'!F$7:F$13,MATCH($A46,'ImpactOutcome_Import-Export'!$B$7:$B$13,0)),\"\"))","v":""},{"$f":"IF(B46=\"\",\"\",IFERROR(IF(INDEX('ImpactOutcome_Import-Export'!K$7:K$13,MATCH($A46,'ImpactOutcome_Import-Export'!$B$7:$B$13,0))=\"\",\"\",INDEX('ImpactOutcome_Import-Export'!K$7:K$13,MATCH($A46,'ImpactOutcome_Import-Export'!$B$7:$B$13,0))),\"\"))","v":""},{"$f":"IF(B46=\"\",\"\",IFERROR(IF(INDEX('ImpactOutcome_Import-Export'!L$7:L$13,MATCH($A46,'ImpactOutcome_Import-Export'!$B$7:$B$13,0))=\"\",\"\",INDEX('ImpactOutcome_Import-Export'!L$7:L$13,MATCH($A46,'ImpactOutcome_Import-Export'!$B$7:$B$13,0))),\"\"))","v":""},{"$f":"IF(B46=\"\",\"\",IFERROR(IF(INDEX('ImpactOutcome_Import-Export'!M$7:M$13,MATCH($A46,'ImpactOutcome_Import-Export'!$B$7:$B$13,0))=\"\",\"\",INDEX('ImpactOutcome_Import-Export'!M$7:M$13,MATCH($A46,'ImpactOutcome_Import-Export'!$B$7:$B$13,0))),\"\"))","v":""},{"$f":"IF(B46=\"\",\"\",IFERROR(IF(INDEX('ImpactOutcome_Import-Export'!N$7:N$13,MATCH($A46,'ImpactOutcome_Import-Export'!$B$7:$B$13,0))=\"\",\"\",INDEX('ImpactOutcome_Import-Export'!N$7:N$13,MATCH($A46,'ImpactOutcome_Import-Export'!$B$7:$B$13,0))),\"\"))","v":""},{"$f":"IF(B46=\"\",\"\",IFERROR(IF(INDEX('ImpactOutcome_Import-Export'!O$7:O$13,MATCH($A46,'ImpactOutcome_Import-Export'!$B$7:$B$13,0))=\"\",\"\",INDEX('ImpactOutcome_Import-Export'!O$7:O$13,MATCH($A46,'ImpactOutcome_Import-Export'!$B$7:$B$13,0))),\"\"))","v":""},{"$f":"IF(B46=\"\",\"\",IFERROR(IF(INDEX('ImpactOutcome_Import-Export'!P$7:P$13,MATCH($A46,'ImpactOutcome_Import-Export'!$B$7:$B$13,0))=\"\",\"\",INDEX('ImpactOutcome_Import-Export'!P$7:P$13,MATCH($A46,'ImpactOutcome_Import-Export'!$B$7:$B$13,0))),\"\"))","v":""},{"$f":"IF(B46=\"\",\"\",IFERROR(IF(INDEX('ImpactOutcome_Import-Export'!Q$7:Q$13,MATCH($A46,'ImpactOutcome_Import-Export'!$B$7:$B$13,0))=\"\",\"\",INDEX('ImpactOutcome_Import-Export'!Q$7:Q$13,MATCH($A46,'ImpactOutcome_Import-Export'!$B$7:$B$13,0))),\"\"))","v":""},{"$f":"IF(B46=\"\",\"\",IFERROR(IF(INDEX('ImpactOutcome_Import-Export'!R$7:R$13,MATCH($A46,'ImpactOutcome_Import-Export'!$B$7:$B$13,0))=\"\",\"\",INDEX('ImpactOutcome_Import-Export'!R$7:R$13,MATCH($A46,'ImpactOutcome_Import-Export'!$B$7:$B$13,0))),\"\"))","v":""},null,null,"",null,null,null,"",null,null,null,"",null,null,null,"",null,null,"",null,""]
[{"$f":"IFERROR(IF(INDEX(Impactlist,MATCH(0,INDEX(COUNTIF(A$10:A46,Impactlist),0,0),0))<>\"\",INDEX(Impactlist,MATCH(0,INDEX(COUNTIF(A$10:A46,Impactlist),0,0),0)),INDEX(Outcomelist,MATCH(0,INDEX(COUNTIF(A$10:A46,Outcomelist),0,0),0))),\"\")","v":""},{"$f":"IFERROR(INDEX('ImpactOutcome_Import-Export'!D$7:D$200,MATCH($A47,'ImpactOutcome_Import-Export'!$B$7:$B$200,0)),\"\")","v":""},{"$f":"IF(B47=\"\",\"\",IFERROR(INDEX('ImpactOutcome_Import-Export'!F$7:F$13,MATCH($A47,'ImpactOutcome_Import-Export'!$B$7:$B$13,0)),\"\"))","v":""},{"$f":"IF(B47=\"\",\"\",IFERROR(IF(INDEX('ImpactOutcome_Import-Export'!K$7:K$13,MATCH($A47,'ImpactOutcome_Import-Export'!$B$7:$B$13,0))=\"\",\"\",INDEX('ImpactOutcome_Import-Export'!K$7:K$13,MATCH($A47,'ImpactOutcome_Import-Export'!$B$7:$B$13,0))),\"\"))","v":""},{"$f":"IF(B47=\"\",\"\",IFERROR(IF(INDEX('ImpactOutcome_Import-Export'!L$7:L$13,MATCH($A47,'ImpactOutcome_Import-Export'!$B$7:$B$13,0))=\"\",\"\",INDEX('ImpactOutcome_Import-Export'!L$7:L$13,MATCH($A47,'ImpactOutcome_Import-Export'!$B$7:$B$13,0))),\"\"))","v":""},{"$f":"IF(B47=\"\",\"\",IFERROR(IF(INDEX('ImpactOutcome_Import-Export'!M$7:M$13,MATCH($A47,'ImpactOutcome_Import-Export'!$B$7:$B$13,0))=\"\",\"\",INDEX('ImpactOutcome_Import-Export'!M$7:M$13,MATCH($A47,'ImpactOutcome_Import-Export'!$B$7:$B$13,0))),\"\"))","v":""},{"$f":"IF(B47=\"\",\"\",IFERROR(IF(INDEX('ImpactOutcome_Import-Export'!N$7:N$13,MATCH($A47,'ImpactOutcome_Import-Export'!$B$7:$B$13,0))=\"\",\"\",INDEX('ImpactOutcome_Import-Export'!N$7:N$13,MATCH($A47,'ImpactOutcome_Import-Export'!$B$7:$B$13,0))),\"\"))","v":""},{"$f":"IF(B47=\"\",\"\",IFERROR(IF(INDEX('ImpactOutcome_Import-Export'!O$7:O$13,MATCH($A47,'ImpactOutcome_Import-Export'!$B$7:$B$13,0))=\"\",\"\",INDEX('ImpactOutcome_Import-Export'!O$7:O$13,MATCH($A47,'ImpactOutcome_Import-Export'!$B$7:$B$13,0))),\"\"))","v":""},{"$f":"IF(B47=\"\",\"\",IFERROR(IF(INDEX('ImpactOutcome_Import-Export'!P$7:P$13,MATCH($A47,'ImpactOutcome_Import-Export'!$B$7:$B$13,0))=\"\",\"\",INDEX('ImpactOutcome_Import-Export'!P$7:P$13,MATCH($A47,'ImpactOutcome_Import-Export'!$B$7:$B$13,0))),\"\"))","v":""},{"$f":"IF(B47=\"\",\"\",IFERROR(IF(INDEX('ImpactOutcome_Import-Export'!Q$7:Q$13,MATCH($A47,'ImpactOutcome_Import-Export'!$B$7:$B$13,0))=\"\",\"\",INDEX('ImpactOutcome_Import-Export'!Q$7:Q$13,MATCH($A47,'ImpactOutcome_Import-Export'!$B$7:$B$13,0))),\"\"))","v":""},{"$f":"IF(B47=\"\",\"\",IFERROR(IF(INDEX('ImpactOutcome_Import-Export'!R$7:R$13,MATCH($A47,'ImpactOutcome_Import-Export'!$B$7:$B$13,0))=\"\",\"\",INDEX('ImpactOutcome_Import-Export'!R$7:R$13,MATCH($A47,'ImpactOutcome_Import-Export'!$B$7:$B$13,0))),\"\"))","v":""},null,null,"",null,null,null,"",null,null,null,"",null,null,null,"",null,null,"",null,""]
[{"$f":"IFERROR(IF(INDEX(Impactlist,MATCH(0,INDEX(COUNTIF(A$10:A47,Impactlist),0,0),0))<>\"\",INDEX(Impactlist,MATCH(0,INDEX(COUNTIF(A$10:A47,Impactlist),0,0),0)),INDEX(Outcomelist,MATCH(0,INDEX(COUNTIF(A$10:A47,Outcomelist),0,0),0))),\"\")","v":""},{"$f":"IFERROR(INDEX('ImpactOutcome_Import-Export'!D$7:D$200,MATCH($A48,'ImpactOutcome_Import-Export'!$B$7:$B$200,0)),\"\")","v":""},{"$f":"IF(B48=\"\",\"\",IFERROR(INDEX('ImpactOutcome_Import-Export'!F$7:F$13,MATCH($A48,'ImpactOutcome_Import-Export'!$B$7:$B$13,0)),\"\"))","v":""},{"$f":"IF(B48=\"\",\"\",IFERROR(IF(INDEX('ImpactOutcome_Import-Export'!K$7:K$13,MATCH($A48,'ImpactOutcome_Import-Export'!$B$7:$B$13,0))=\"\",\"\",INDEX('ImpactOutcome_Import-Export'!K$7:K$13,MATCH($A48,'ImpactOutcome_Import-Export'!$B$7:$B$13,0))),\"\"))","v":""},{"$f":"IF(B48=\"\",\"\",IFERROR(IF(INDEX('ImpactOutcome_Import-Export'!L$7:L$13,MATCH($A48,'ImpactOutcome_Import-Export'!$B$7:$B$13,0))=\"\",\"\",INDEX('ImpactOutcome_Import-Export'!L$7:L$13,MATCH($A48,'ImpactOutcome_Import-Export'!$B$7:$B$13,0))),\"\"))","v":""},{"$f":"IF(B48=\"\",\"\",IFERROR(IF(INDEX('ImpactOutcome_Import-Export'!M$7:M$13,MATCH($A48,'ImpactOutcome_Import-Export'!$B$7:$B$13,0))=\"\",\"\",INDEX('ImpactOutcome_Import-Export'!M$7:M$13,MATCH($A48,'ImpactOutcome_Import-Export'!$B$7:$B$13,0))),\"\"))","v":""},{"$f":"IF(B48=\"\",\"\",IFERROR(IF(INDEX('ImpactOutcome_Import-Export'!N$7:N$13,MATCH($A48,'ImpactOutcome_Import-Export'!$B$7:$B$13,0))=\"\",\"\",INDEX('ImpactOutcome_Import-Export'!N$7:N$13,MATCH($A48,'ImpactOutcome_Import-Export'!$B$7:$B$13,0))),\"\"))","v":""},{"$f":"IF(B48=\"\",\"\",IFERROR(IF(INDEX('ImpactOutcome_Import-Export'!O$7:O$13,MATCH($A48,'ImpactOutcome_Import-Export'!$B$7:$B$13,0))=\"\",\"\",INDEX('ImpactOutcome_Import-Export'!O$7:O$13,MATCH($A48,'ImpactOutcome_Import-Export'!$B$7:$B$13,0))),\"\"))","v":""},{"$f":"IF(B48=\"\",\"\",IFERROR(IF(INDEX('ImpactOutcome_Import-Export'!P$7:P$13,MATCH($A48,'ImpactOutcome_Import-Export'!$B$7:$B$13,0))=\"\",\"\",INDEX('ImpactOutcome_Import-Export'!P$7:P$13,MATCH($A48,'ImpactOutcome_Import-Export'!$B$7:$B$13,0))),\"\"))","v":""},{"$f":"IF(B48=\"\",\"\",IFERROR(IF(INDEX('ImpactOutcome_Import-Export'!Q$7:Q$13,MATCH($A48,'ImpactOutcome_Import-Export'!$B$7:$B$13,0))=\"\",\"\",INDEX('ImpactOutcome_Import-Export'!Q$7:Q$13,MATCH($A48,'ImpactOutcome_Import-Export'!$B$7:$B$13,0))),\"\"))","v":""},{"$f":"IF(B48=\"\",\"\",IFERROR(IF(INDEX('ImpactOutcome_Import-Export'!R$7:R$13,MATCH($A48,'ImpactOutcome_Import-Export'!$B$7:$B$13,0))=\"\",\"\",INDEX('ImpactOutcome_Import-Export'!R$7:R$13,MATCH($A48,'ImpactOutcome_Import-Export'!$B$7:$B$13,0))),\"\"))","v":""},null,null,"",null,null,null,"",null,null,null,"",null,null,null,"",null,null,"",null,""]
[{"$f":"IFERROR(IF(INDEX(Impactlist,MATCH(0,INDEX(COUNTIF(A$10:A48,Impactlist),0,0),0))<>\"\",INDEX(Impactlist,MATCH(0,INDEX(COUNTIF(A$10:A48,Impactlist),0,0),0)),INDEX(Outcomelist,MATCH(0,INDEX(COUNTIF(A$10:A48,Outcomelist),0,0),0))),\"\")","v":""},{"$f":"IFERROR(INDEX('ImpactOutcome_Import-Export'!D$7:D$200,MATCH($A49,'ImpactOutcome_Import-Export'!$B$7:$B$200,0)),\"\")","v":""},{"$f":"IF(B49=\"\",\"\",IFERROR(INDEX('ImpactOutcome_Import-Export'!F$7:F$13,MATCH($A49,'ImpactOutcome_Import-Export'!$B$7:$B$13,0)),\"\"))","v":""},{"$f":"IF(B49=\"\",\"\",IFERROR(IF(INDEX('ImpactOutcome_Import-Export'!K$7:K$13,MATCH($A49,'ImpactOutcome_Import-Export'!$B$7:$B$13,0))=\"\",\"\",INDEX('ImpactOutcome_Import-Export'!K$7:K$13,MATCH($A49,'ImpactOutcome_Import-Export'!$B$7:$B$13,0))),\"\"))","v":""},{"$f":"IF(B49=\"\",\"\",IFERROR(IF(INDEX('ImpactOutcome_Import-Export'!L$7:L$13,MATCH($A49,'ImpactOutcome_Import-Export'!$B$7:$B$13,0))=\"\",\"\",INDEX('ImpactOutcome_Import-Export'!L$7:L$13,MATCH($A49,'ImpactOutcome_Import-Export'!$B$7:$B$13,0))),\"\"))","v":""},{"$f":"IF(B49=\"\",\"\",IFERROR(IF(INDEX('ImpactOutcome_Import-Export'!M$7:M$13,MATCH($A49,'ImpactOutcome_Import-Export'!$B$7:$B$13,0))=\"\",\"\",INDEX('ImpactOutcome_Import-Export'!M$7:M$13,MATCH($A49,'ImpactOutcome_Import-Export'!$B$7:$B$13,0))),\"\"))","v":""},{"$f":"IF(B49=\"\",\"\",IFERROR(IF(INDEX('ImpactOutcome_Import-Export'!N$7:N$13,MATCH($A49,'ImpactOutcome_Import-Export'!$B$7:$B$13,0))=\"\",\"\",INDEX('ImpactOutcome_Import-Export'!N$7:N$13,MATCH($A49,'ImpactOutcome_Import-Export'!$B$7:$B$13,0))),\"\"))","v":""},{"$f":"IF(B49=\"\",\"\",IFERROR(IF(INDEX('ImpactOutcome_Import-Export'!O$7:O$13,MATCH($A49,'ImpactOutcome_Import-Export'!$B$7:$B$13,0))=\"\",\"\",INDEX('ImpactOutcome_Import-Export'!O$7:O$13,MATCH($A49,'ImpactOutcome_Import-Export'!$B$7:$B$13,0))),\"\"))","v":""},{"$f":"IF(B49=\"\",\"\",IFERROR(IF(INDEX('ImpactOutcome_Import-Export'!P$7:P$13,MATCH($A49,'ImpactOutcome_Import-Export'!$B$7:$B$13,0))=\"\",\"\",INDEX('ImpactOutcome_Import-Export'!P$7:P$13,MATCH($A49,'ImpactOutcome_Import-Export'!$B$7:$B$13,0))),\"\"))","v":""},{"$f":"IF(B49=\"\",\"\",IFERROR(IF(INDEX('ImpactOutcome_Import-Export'!Q$7:Q$13,MATCH($A49,'ImpactOutcome_Import-Export'!$B$7:$B$13,0))=\"\",\"\",INDEX('ImpactOutcome_Import-Export'!Q$7:Q$13,MATCH($A49,'ImpactOutcome_Import-Export'!$B$7:$B$13,0))),\"\"))","v":""},{"$f":"IF(B49=\"\",\"\",IFERROR(IF(INDEX('ImpactOutcome_Import-Export'!R$7:R$13,MATCH($A49,'ImpactOutcome_Import-Export'!$B$7:$B$13,0))=\"\",\"\",INDEX('ImpactOutcome_Import-Export'!R$7:R$13,MATCH($A49,'ImpactOutcome_Import-Export'!$B$7:$B$13,0))),\"\"))","v":""},null,null,"",null,null,null,"",null,null,null,"",null,null,null,"",null,null,"",null,""]
[{"$f":"IFERROR(IF(INDEX(Impactlist,MATCH(0,INDEX(COUNTIF(A$10:A49,Impactlist),0,0),0))<>\"\",INDEX(Impactlist,MATCH(0,INDEX(COUNTIF(A$10:A49,Impactlist),0,0),0)),INDEX(Outcomelist,MATCH(0,INDEX(COUNTIF(A$10:A49,Outcomelist),0,0),0))),\"\")","v":""},{"$f":"IFERROR(INDEX('ImpactOutcome_Import-Export'!D$7:D$200,MATCH($A50,'ImpactOutcome_Import-Export'!$B$7:$B$200,0)),\"\")","v":""},{"$f":"IF(B50=\"\",\"\",IFERROR(INDEX('ImpactOutcome_Import-Export'!F$7:F$13,MATCH($A50,'ImpactOutcome_Import-Export'!$B$7:$B$13,0)),\"\"))","v":""},{"$f":"IF(B50=\"\",\"\",IFERROR(IF(INDEX('ImpactOutcome_Import-Export'!K$7:K$13,MATCH($A50,'ImpactOutcome_Import-Export'!$B$7:$B$13,0))=\"\",\"\",INDEX('ImpactOutcome_Import-Export'!K$7:K$13,MATCH($A50,'ImpactOutcome_Import-Export'!$B$7:$B$13,0))),\"\"))","v":""},{"$f":"IF(B50=\"\",\"\",IFERROR(IF(INDEX('ImpactOutcome_Import-Export'!L$7:L$13,MATCH($A50,'ImpactOutcome_Import-Export'!$B$7:$B$13,0))=\"\",\"\",INDEX('ImpactOutcome_Import-Export'!L$7:L$13,MATCH($A50,'ImpactOutcome_Import-Export'!$B$7:$B$13,0))),\"\"))","v":""},{"$f":"IF(B50=\"\",\"\",IFERROR(IF(INDEX('ImpactOutcome_Import-Export'!M$7:M$13,MATCH($A50,'ImpactOutcome_Import-Export'!$B$7:$B$13,0))=\"\",\"\",INDEX('ImpactOutcome_Import-Export'!M$7:M$13,MATCH($A50,'ImpactOutcome_Import-Export'!$B$7:$B$13,0))),\"\"))","v":""},{"$f":"IF(B50=\"\",\"\",IFERROR(IF(INDEX('ImpactOutcome_Import-Export'!N$7:N$13,MATCH($A50,'ImpactOutcome_Import-Export'!$B$7:$B$13,0))=\"\",\"\",INDEX('ImpactOutcome_Import-Export'!N$7:N$13,MATCH($A50,'ImpactOutcome_Import-Export'!$B$7:$B$13,0))),\"\"))","v":""},{"$f":"IF(B50=\"\",\"\",IFERROR(IF(INDEX('ImpactOutcome_Import-Export'!O$7:O$13,MATCH($A50,'ImpactOutcome_Import-Export'!$B$7:$B$13,0))=\"\",\"\",INDEX('ImpactOutcome_Import-Export'!O$7:O$13,MATCH($A50,'ImpactOutcome_Import-Export'!$B$7:$B$13,0))),\"\"))","v":""},{"$f":"IF(B50=\"\",\"\",IFERROR(IF(INDEX('ImpactOutcome_Import-Export'!P$7:P$13,MATCH($A50,'ImpactOutcome_Import-Export'!$B$7:$B$13,0))=\"\",\"\",INDEX('ImpactOutcome_Import-Export'!P$7:P$13,MATCH($A50,'ImpactOutcome_Import-Export'!$B$7:$B$13,0))),\"\"))","v":""},{"$f":"IF(B50=\"\",\"\",IFERROR(IF(INDEX('ImpactOutcome_Import-Export'!Q$7:Q$13,MATCH($A50,'ImpactOutcome_Import-Export'!$B$7:$B$13,0))=\"\",\"\",INDEX('ImpactOutcome_Import-Export'!Q$7:Q$13,MATCH($A50,'ImpactOutcome_Import-Export'!$B$7:$B$13,0))),\"\"))","v":""},{"$f":"IF(B50=\"\",\"\",IFERROR(IF(INDEX('ImpactOutcome_Import-Export'!R$7:R$13,MATCH($A50,'ImpactOutcome_Import-Export'!$B$7:$B$13,0))=\"\",\"\",INDEX('ImpactOutcome_Import-Export'!R$7:R$13,MATCH($A50,'ImpactOutcome_Import-Export'!$B$7:$B$13,0))),\"\"))","v":""},null,null,"",null,null,null,"",null,null,null,"",null,null,null,"",null,null,"",null,""]
[{"$f":"IFERROR(IF(INDEX(Impactlist,MATCH(0,INDEX(COUNTIF(A$10:A50,Impactlist),0,0),0))<>\"\",INDEX(Impactlist,MATCH(0,INDEX(COUNTIF(A$10:A50,Impactlist),0,0),0)),INDEX(Outcomelist,MATCH(0,INDEX(COUNTIF(A$10:A50,Outcomelist),0,0),0))),\"\")","v":""},{"$f":"IFERROR(INDEX('ImpactOutcome_Import-Export'!D$7:D$200,MATCH($A51,'ImpactOutcome_Import-Export'!$B$7:$B$200,0)),\"\")","v":""},{"$f":"IF(B51=\"\",\"\",IFERROR(INDEX('ImpactOutcome_Import-Export'!F$7:F$13,MATCH($A51,'ImpactOutcome_Import-Export'!$B$7:$B$13,0)),\"\"))","v":""},{"$f":"IF(B51=\"\",\"\",IFERROR(IF(INDEX('ImpactOutcome_Import-Export'!K$7:K$13,MATCH($A51,'ImpactOutcome_Import-Export'!$B$7:$B$13,0))=\"\",\"\",INDEX('ImpactOutcome_Import-Export'!K$7:K$13,MATCH($A51,'ImpactOutcome_Import-Export'!$B$7:$B$13,0))),\"\"))","v":""},{"$f":"IF(B51=\"\",\"\",IFERROR(IF(INDEX('ImpactOutcome_Import-Export'!L$7:L$13,MATCH($A51,'ImpactOutcome_Import-Export'!$B$7:$B$13,0))=\"\",\"\",INDEX('ImpactOutcome_Import-Export'!L$7:L$13,MATCH($A51,'ImpactOutcome_Import-Export'!$B$7:$B$13,0))),\"\"))","v":""},{"$f":"IF(B51=\"\",\"\",IFERROR(IF(INDEX('ImpactOutcome_Import-Export'!M$7:M$13,MATCH($A51,'ImpactOutcome_Import-Export'!$B$7:$B$13,0))=\"\",\"\",INDEX('ImpactOutcome_Import-Export'!M$7:M$13,MATCH($A51,'ImpactOutcome_Import-Export'!$B$7:$B$13,0))),\"\"))","v":""},{"$f":"IF(B51=\"\",\"\",IFERROR(IF(INDEX('ImpactOutcome_Import-Export'!N$7:N$13,MATCH($A51,'ImpactOutcome_Import-Export'!$B$7:$B$13,0))=\"\",\"\",INDEX('ImpactOutcome_Import-Export'!N$7:N$13,MATCH($A51,'ImpactOutcome_Import-Export'!$B$7:$B$13,0))),\"\"))","v":""},{"$f":"IF(B51=\"\",\"\",IFERROR(IF(INDEX('ImpactOutcome_Import-Export'!O$7:O$13,MATCH($A51,'ImpactOutcome_Import-Export'!$B$7:$B$13,0))=\"\",\"\",INDEX('ImpactOutcome_Import-Export'!O$7:O$13,MATCH($A51,'ImpactOutcome_Import-Export'!$B$7:$B$13,0))),\"\"))","v":""},{"$f":"IF(B51=\"\",\"\",IFERROR(IF(INDEX('ImpactOutcome_Import-Export'!P$7:P$13,MATCH($A51,'ImpactOutcome_Import-Export'!$B$7:$B$13,0))=\"\",\"\",INDEX('ImpactOutcome_Import-Export'!P$7:P$13,MATCH($A51,'ImpactOutcome_Import-Export'!$B$7:$B$13,0))),\"\"))","v":""},{"$f":"IF(B51=\"\",\"\",IFERROR(IF(INDEX('ImpactOutcome_Import-Export'!Q$7:Q$13,MATCH($A51,'ImpactOutcome_Import-Export'!$B$7:$B$13,0))=\"\",\"\",INDEX('ImpactOutcome_Import-Export'!Q$7:Q$13,MATCH($A51,'ImpactOutcome_Import-Export'!$B$7:$B$13,0))),\"\"))","v":""},{"$f":"IF(B51=\"\",\"\",IFERROR(IF(INDEX('ImpactOutcome_Import-Export'!R$7:R$13,MATCH($A51,'ImpactOutcome_Import-Export'!$B$7:$B$13,0))=\"\",\"\",INDEX('ImpactOutcome_Import-Export'!R$7:R$13,MATCH($A51,'ImpactOutcome_Import-Export'!$B$7:$B$13,0))),\"\"))","v":""},null,null,{"$f":"IFERROR((L51/M51)*100,\"\")","v":""},null,null,null,{"$f":"IF(AND(F51=\"\",G51=\"\",H51=\"\"),\"\",IF(AND(L51=\"\",M51=\"\",N51=\"\"),\"No Results Reported\",IF(AND(F51<>\"\",G51=\"\",H51=\"\",OR(M51<>\"\",N51<>\"\")),\"Target contains only a numerator. Please Report only a numerator for the result\",\"Continue\")))","v":""},null,null,null,{"$f":"IFERROR((T51/U51)*100,\"\")","v":""},null,null,null,{"$f":"IF(AND(L51=\"\",M51=\"\",N51=\"\"),\"\",IF(AND(T51=\"\",U51=\"\",V51=\"\"),\"No Results Reported\",IF(AND(L51<>\"\",M51=\"\",N51=\"\",OR(U51<>\"\",V51<>\"\")),\"Target contains only a numerator. Please Report only a numerator for the result\",\"Continue\")))","v":""},null,null,{"$f":"IFERROR((AA51/AB51)*100,\"\")","v":""},null,{"$f":"IF(AND(F51=\"\",G51=\"\",H51=\"\"),\"\",IF(AND(AA51=\"\",AB51=\"\",AC51=\"\"),\"No Results Reported\",IF(AND(F51<>\"\",G51=\"\",H51=\"\",OR(AB51<>\"\",AC51<>\"\")),\"Target contains only a numerator. Please Report only a numerator for the result\",\"Continue\")))","v":""}]
[{"$f":"IFERROR(IF(INDEX(Impactlist,MATCH(0,INDEX(COUNTIF(A$10:A51,Impactlist),0,0),0))<>\"\",INDEX(Impactlist,MATCH(0,INDEX(COUNTIF(A$10:A51,Impactlist),0,0),0)),INDEX(Outcomelist,MATCH(0,INDEX(COUNTIF(A$10:A51,Outcomelist),0,0),0))),\"\")","v":""},{"$f":"IFERROR(INDEX('ImpactOutcome_Import-Export'!D$7:D$200,MATCH($A52,'ImpactOutcome_Import-Export'!$B$7:$B$200,0)),\"\")","v":""},{"$f":"IF(B52=\"\",\"\",IFERROR(INDEX('ImpactOutcome_Import-Export'!F$7:F$13,MATCH($A52,'ImpactOutcome_Import-Export'!$B$7:$B$13,0)),\"\"))","v":""},{"$f":"IF(B52=\"\",\"\",IFERROR(IF(INDEX('ImpactOutcome_Import-Export'!K$7:K$13,MATCH($A52,'ImpactOutcome_Import-Export'!$B$7:$B$13,0))=\"\",\"\",INDEX('ImpactOutcome_Import-Export'!K$7:K$13,MATCH($A52,'ImpactOutcome_Import-Export'!$B$7:$B$13,0))),\"\"))","v":""},{"$f":"IF(B52=\"\",\"\",IFERROR(IF(INDEX('ImpactOutcome_Import-Export'!L$7:L$13,MATCH($A52,'ImpactOutcome_Import-Export'!$B$7:$B$13,0))=\"\",\"\",INDEX('ImpactOutcome_Import-Export'!L$7:L$13,MATCH($A52,'ImpactOutcome_Import-Export'!$B$7:$B$13,0))),\"\"))","v":""},{"$f":"IF(B52=\"\",\"\",IFERROR(IF(INDEX('ImpactOutcome_Import-Export'!M$7:M$13,MATCH($A52,'ImpactOutcome_Import-Export'!$B$7:$B$13,0))=\"\",\"\",INDEX('ImpactOutcome_Import-Export'!M$7:M$13,MATCH($A52,'ImpactOutcome_Import-Export'!$B$7:$B$13,0))),\"\"))","v":""},{"$f":"IF(B52=\"\",\"\",IFERROR(IF(INDEX('ImpactOutcome_Import-Export'!N$7:N$13,MATCH($A52,'ImpactOutcome_Import-Export'!$B$7:$B$13,0))=\"\",\"\",INDEX('ImpactOutcome_Import-Export'!N$7:N$13,MATCH($A52,'ImpactOutcome_Import-Export'!$B$7:$B$13,0))),\"\"))","v":""},{"$f":"IF(B52=\"\",\"\",IFERROR(IF(INDEX('ImpactOutcome_Import-Export'!O$7:O$13,MATCH($A52,'ImpactOutcome_Import-Export'!$B$7:$B$13,0))=\"\",\"\",INDEX('ImpactOutcome_Import-Export'!O$7:O$13,MATCH($A52,'ImpactOutcome_Import-Export'!$B$7:$B$13,0))),\"\"))","v":""},{"$f":"IF(B52=\"\",\"\",IFERROR(IF(INDEX('ImpactOutcome_Import-Export'!P$7:P$13,MATCH($A52,'ImpactOutcome_Import-Export'!$B$7:$B$13,0))=\"\",\"\",INDEX('ImpactOutcome_Import-Export'!P$7:P$13,MATCH($A52,'ImpactOutcome_Import-Export'!$B$7:$B$13,0))),\"\"))","v":""},{"$f":"IF(B52=\"\",\"\",IFERROR(IF(INDEX('ImpactOutcome_Import-Export'!Q$7:Q$13,MATCH($A52,'ImpactOutcome_Import-Export'!$B$7:$B$13,0))=\"\",\"\",INDEX('ImpactOutcome_Import-Export'!Q$7:Q$13,MATCH($A52,'ImpactOutcome_Import-Export'!$B$7:$B$13,0))),\"\"))","v":""},{"$f":"IF(B52=\"\",\"\",IFERROR(IF(INDEX('ImpactOutcome_Import-Export'!R$7:R$13,MATCH($A52,'ImpactOutcome_Import-Export'!$B$7:$B$13,0))=\"\",\"\",INDEX('ImpactOutcome_Import-Export'!R$7:R$13,MATCH($A52,'ImpactOutcome_Import-Export'!$B$7:$B$13,0))),\"\"))","v":""},null,null,"",null,null,null,"",null,null,null,"",null,null,null,"",null,null,"",null,""]
[{"$f":"IFERROR(IF(INDEX(Impactlist,MATCH(0,INDEX(COUNTIF(A$10:A52,Impactlist),0,0),0))<>\"\",INDEX(Impactlist,MATCH(0,INDEX(COUNTIF(A$10:A52,Impactlist),0,0),0)),INDEX(Outcomelist,MATCH(0,INDEX(COUNTIF(A$10:A52,Outcomelist),0,0),0))),\"\")","v":""},{"$f":"IFERROR(INDEX('ImpactOutcome_Import-Export'!D$7:D$200,MATCH($A53,'ImpactOutcome_Import-Export'!$B$7:$B$200,0)),\"\")","v":""},{"$f":"IF(B53=\"\",\"\",IFERROR(INDEX('ImpactOutcome_Import-Export'!F$7:F$13,MATCH($A53,'ImpactOutcome_Import-Export'!$B$7:$B$13,0)),\"\"))","v":""},{"$f":"IF(B53=\"\",\"\",IFERROR(IF(INDEX('ImpactOutcome_Import-Export'!K$7:K$13,MATCH($A53,'ImpactOutcome_Import-Export'!$B$7:$B$13,0))=\"\",\"\",INDEX('ImpactOutcome_Import-Export'!K$7:K$13,MATCH($A53,'ImpactOutcome_Import-Export'!$B$7:$B$13,0))),\"\"))","v":""},{"$f":"IF(B53=\"\",\"\",IFERROR(IF(INDEX('ImpactOutcome_Import-Export'!L$7:L$13,MATCH($A53,'ImpactOutcome_Import-Export'!$B$7:$B$13,0))=\"\",\"\",INDEX('ImpactOutcome_Import-Export'!L$7:L$13,MATCH($A53,'ImpactOutcome_Import-Export'!$B$7:$B$13,0))),\"\"))","v":""},{"$f":"IF(B53=\"\",\"\",IFERROR(IF(INDEX('ImpactOutcome_Import-Export'!M$7:M$13,MATCH($A53,'ImpactOutcome_Import-Export'!$B$7:$B$13,0))=\"\",\"\",INDEX('ImpactOutcome_Import-Export'!M$7:M$13,MATCH($A53,'ImpactOutcome_Import-Export'!$B$7:$B$13,0))),\"\"))","v":""},{"$f":"IF(B53=\"\",\"\",IFERROR(IF(INDEX('ImpactOutcome_Import-Export'!N$7:N$13,MATCH($A53,'ImpactOutcome_Import-Export'!$B$7:$B$13,0))=\"\",\"\",INDEX('ImpactOutcome_Import-Export'!N$7:N$13,MATCH($A53,'ImpactOutcome_Import-Export'!$B$7:$B$13,0))),\"\"))","v":""},{"$f":"IF(B53=\"\",\"\",IFERROR(IF(INDEX('ImpactOutcome_Import-Export'!O$7:O$13,MATCH($A53,'ImpactOutcome_Import-Export'!$B$7:$B$13,0))=\"\",\"\",INDEX('ImpactOutcome_Import-Export'!O$7:O$13,MATCH($A53,'ImpactOutcome_Import-Export'!$B$7:$B$13,0))),\"\"))","v":""},{"$f":"IF(B53=\"\",\"\",IFERROR(IF(INDEX('ImpactOutcome_Import-Export'!P$7:P$13,MATCH($A53,'ImpactOutcome_Import-Export'!$B$7:$B$13,0))=\"\",\"\",INDEX('ImpactOutcome_Import-Export'!P$7:P$13,MATCH($A53,'ImpactOutcome_Import-Export'!$B$7:$B$13,0))),\"\"))","v":""},{"$f":"IF(B53=\"\",\"\",IFERROR(IF(INDEX('ImpactOutcome_Import-Export'!Q$7:Q$13,MATCH($A53,'ImpactOutcome_Import-Export'!$B$7:$B$13,0))=\"\",\"\",INDEX('ImpactOutcome_Import-Export'!Q$7:Q$13,MATCH($A53,'ImpactOutcome_Import-Export'!$B$7:$B$13,0))),\"\"))","v":""},{"$f":"IF(B53=\"\",\"\",IFERROR(IF(INDEX('ImpactOutcome_Import-Export'!R$7:R$13,MATCH($A53,'ImpactOutcome_Import-Export'!$B$7:$B$13,0))=\"\",\"\",INDEX('ImpactOutcome_Import-Export'!R$7:R$13,MATCH($A53,'ImpactOutcome_Import-Export'!$B$7:$B$13,0))),\"\"))","v":""},null,null,"",null,null,null,"",null,null,null,"",null,null,null,"",null,null,"",null,""]
[{"$f":"IFERROR(IF(INDEX(Impactlist,MATCH(0,INDEX(COUNTIF(A$10:A53,Impactlist),0,0),0))<>\"\",INDEX(Impactlist,MATCH(0,INDEX(COUNTIF(A$10:A53,Impactlist),0,0),0)),INDEX(Outcomelist,MATCH(0,INDEX(COUNTIF(A$10:A53,Outcomelist),0,0),0))),\"\")","v":""},{"$f":"IFERROR(INDEX('ImpactOutcome_Import-Export'!D$7:D$200,MATCH($A54,'ImpactOutcome_Import-Export'!$B$7:$B$200,0)),\"\")","v":""},{"$f":"IF(B54=\"\",\"\",IFERROR(INDEX('ImpactOutcome_Import-Export'!F$7:F$13,MATCH($A54,'ImpactOutcome_Import-Export'!$B$7:$B$13,0)),\"\"))","v":""},{"$f":"IF(B54=\"\",\"\",IFERROR(IF(INDEX('ImpactOutcome_Import-Export'!K$7:K$13,MATCH($A54,'ImpactOutcome_Import-Export'!$B$7:$B$13,0))=\"\",\"\",INDEX('ImpactOutcome_Import-Export'!K$7:K$13,MATCH($A54,'ImpactOutcome_Import-Export'!$B$7:$B$13,0))),\"\"))","v":""},{"$f":"IF(B54=\"\",\"\",IFERROR(IF(INDEX('ImpactOutcome_Import-Export'!L$7:L$13,MATCH($A54,'ImpactOutcome_Import-Export'!$B$7:$B$13,0))=\"\",\"\",INDEX('ImpactOutcome_Import-Export'!L$7:L$13,MATCH($A54,'ImpactOutcome_Import-Export'!$B$7:$B$13,0))),\"\"))","v":""},{"$f":"IF(B54=\"\",\"\",IFERROR(IF(INDEX('ImpactOutcome_Import-Export'!M$7:M$13,MATCH($A54,'ImpactOutcome_Import-Export'!$B$7:$B$13,0))=\"\",\"\",INDEX('ImpactOutcome_Import-Export'!M$7:M$13,MATCH($A54,'ImpactOutcome_Import-Export'!$B$7:$B$13,0))),\"\"))","v":""},{"$f":"IF(B54=\"\",\"\",IFERROR(IF(INDEX('ImpactOutcome_Import-Export'!N$7:N$13,MATCH($A54,'ImpactOutcome_Import-Export'!$B$7:$B$13,0))=\"\",\"\",INDEX('ImpactOutcome_Import-Export'!N$7:N$13,MATCH($A54,'ImpactOutcome_Import-Export'!$B$7:$B$13,0))),\"\"))","v":""},{"$f":"IF(B54=\"\",\"\",IFERROR(IF(INDEX('ImpactOutcome_Import-Export'!O$7:O$13,MATCH($A54,'ImpactOutcome_Import-Export'!$B$7:$B$13,0))=\"\",\"\",INDEX('ImpactOutcome_Import-Export'!O$7:O$13,MATCH($A54,'ImpactOutcome_Import-Export'!$B$7:$B$13,0))),\"\"))","v":""},{"$f":"IF(B54=\"\",\"\",IFERROR(IF(INDEX('ImpactOutcome_Import-Export'!P$7:P$13,MATCH($A54,'ImpactOutcome_Import-Export'!$B$7:$B$13,0))=\"\",\"\",INDEX('ImpactOutcome_Import-Export'!P$7:P$13,MATCH($A54,'ImpactOutcome_Import-Export'!$B$7:$B$13,0))),\"\"))","v":""},{"$f":"IF(B54=\"\",\"\",IFERROR(IF(INDEX('ImpactOutcome_Import-Export'!Q$7:Q$13,MATCH($A54,'ImpactOutcome_Import-Export'!$B$7:$B$13,0))=\"\",\"\",INDEX('ImpactOutcome_Import-Export'!Q$7:Q$13,MATCH($A54,'ImpactOutcome_Import-Export'!$B$7:$B$13,0))),\"\"))","v":""},{"$f":"IF(B54=\"\",\"\",IFERROR(IF(INDEX('ImpactOutcome_Import-Export'!R$7:R$13,MATCH($A54,'ImpactOutcome_Import-Export'!$B$7:$B$13,0))=\"\",\"\",INDEX('ImpactOutcome_Import-Export'!R$7:R$13,MATCH($A54,'ImpactOutcome_Import-Export'!$B$7:$B$13,0))),\"\"))","v":""},null,null,"",null,null,null,"",null,null,null,"",null,null,null,"",null,null,"",null,""]
[{"$f":"IFERROR(IF(INDEX(Impactlist,MATCH(0,INDEX(COUNTIF(A$10:A54,Impactlist),0,0),0))<>\"\",INDEX(Impactlist,MATCH(0,INDEX(COUNTIF(A$10:A54,Impactlist),0,0),0)),INDEX(Outcomelist,MATCH(0,INDEX(COUNTIF(A$10:A54,Outcomelist),0,0),0))),\"\")","v":""},{"$f":"IFERROR(INDEX('ImpactOutcome_Import-Export'!D$7:D$200,MATCH($A55,'ImpactOutcome_Import-Export'!$B$7:$B$200,0)),\"\")","v":""},{"$f":"IF(B55=\"\",\"\",IFERROR(INDEX('ImpactOutcome_Import-Export'!F$7:F$13,MATCH($A55,'ImpactOutcome_Import-Export'!$B$7:$B$13,0)),\"\"))","v":""},{"$f":"IF(B55=\"\",\"\",IFERROR(IF(INDEX('ImpactOutcome_Import-Export'!K$7:K$13,MATCH($A55,'ImpactOutcome_Import-Export'!$B$7:$B$13,0))=\"\",\"\",INDEX('ImpactOutcome_Import-Export'!K$7:K$13,MATCH($A55,'ImpactOutcome_Import-Export'!$B$7:$B$13,0))),\"\"))","v":""},{"$f":"IF(B55=\"\",\"\",IFERROR(IF(INDEX('ImpactOutcome_Import-Export'!L$7:L$13,MATCH($A55,'ImpactOutcome_Import-Export'!$B$7:$B$13,0))=\"\",\"\",INDEX('ImpactOutcome_Import-Export'!L$7:L$13,MATCH($A55,'ImpactOutcome_Import-Export'!$B$7:$B$13,0))),\"\"))","v":""},{"$f":"IF(B55=\"\",\"\",IFERROR(IF(INDEX('ImpactOutcome_Import-Export'!M$7:M$13,MATCH($A55,'ImpactOutcome_Import-Export'!$B$7:$B$13,0))=\"\",\"\",INDEX('ImpactOutcome_Import-Export'!M$7:M$13,MATCH($A55,'ImpactOutcome_Import-Export'!$B$7:$B$13,0))),\"\"))","v":""},{"$f":"IF(B55=\"\",\"\",IFERROR(IF(INDEX('ImpactOutcome_Import-Export'!N$7:N$13,MATCH($A55,'ImpactOutcome_Import-Export'!$B$7:$B$13,0))=\"\",\"\",INDEX('ImpactOutcome_Import-Export'!N$7:N$13,MATCH($A55,'ImpactOutcome_Import-Export'!$B$7:$B$13,0))),\"\"))","v":""},{"$f":"IF(B55=\"\",\"\",IFERROR(IF(INDEX('ImpactOutcome_Import-Export'!O$7:O$13,MATCH($A55,'ImpactOutcome_Import-Export'!$B$7:$B$13,0))=\"\",\"\",INDEX('ImpactOutcome_Import-Export'!O$7:O$13,MATCH($A55,'ImpactOutcome_Import-Export'!$B$7:$B$13,0))),\"\"))","v":""},{"$f":"IF(B55=\"\",\"\",IFERROR(IF(INDEX('ImpactOutcome_Import-Export'!P$7:P$13,MATCH($A55,'ImpactOutcome_Import-Export'!$B$7:$B$13,0))=\"\",\"\",INDEX('ImpactOutcome_Import-Export'!P$7:P$13,MATCH($A55,'ImpactOutcome_Import-Export'!$B$7:$B$13,0))),\"\"))","v":""},{"$f":"IF(B55=\"\",\"\",IFERROR(IF(INDEX('ImpactOutcome_Import-Export'!Q$7:Q$13,MATCH($A55,'ImpactOutcome_Import-Export'!$B$7:$B$13,0))=\"\",\"\",INDEX('ImpactOutcome_Import-Export'!Q$7:Q$13,MATCH($A55,'ImpactOutcome_Import-Export'!$B$7:$B$13,0))),\"\"))","v":""},{"$f":"IF(B55=\"\",\"\",IFERROR(IF(INDEX('ImpactOutcome_Import-Export'!R$7:R$13,MATCH($A55,'ImpactOutcome_Import-Export'!$B$7:$B$13,0))=\"\",\"\",INDEX('ImpactOutcome_Import-Export'!R$7:R$13,MATCH($A55,'ImpactOutcome_Import-Export'!$B$7:$B$13,0))),\"\"))","v":""},null,null,"",null,null,null,"",null,null,null,"",null,null,null,"",null,null,"",null,""]
[{"$f":"IFERROR(IF(INDEX(Impactlist,MATCH(0,INDEX(COUNTIF(A$10:A55,Impactlist),0,0),0))<>\"\",INDEX(Impactlist,MATCH(0,INDEX(COUNTIF(A$10:A55,Impactlist),0,0),0)),INDEX(Outcomelist,MATCH(0,INDEX(COUNTIF(A$10:A55,Outcomelist),0,0),0))),\"\")","v":""},{"$f":"IFERROR(INDEX('ImpactOutcome_Import-Export'!D$7:D$200,MATCH($A56,'ImpactOutcome_Import-Export'!$B$7:$B$200,0)),\"\")","v":""},{"$f":"IF(B56=\"\",\"\",IFERROR(INDEX('ImpactOutcome_Import-Export'!F$7:F$13,MATCH($A56,'ImpactOutcome_Import-Export'!$B$7:$B$13,0)),\"\"))","v":""},{"$f":"IF(B56=\"\",\"\",IFERROR(IF(INDEX('ImpactOutcome_Import-Export'!K$7:K$13,MATCH($A56,'ImpactOutcome_Import-Export'!$B$7:$B$13,0))=\"\",\"\",INDEX('ImpactOutcome_Import-Export'!K$7:K$13,MATCH($A56,'ImpactOutcome_Import-Export'!$B$7:$B$13,0))),\"\"))","v":""},{"$f":"IF(B56=\"\",\"\",IFERROR(IF(INDEX('ImpactOutcome_Import-Export'!L$7:L$13,MATCH($A56,'ImpactOutcome_Import-Export'!$B$7:$B$13,0))=\"\",\"\",INDEX('ImpactOutcome_Import-Export'!L$7:L$13,MATCH($A56,'ImpactOutcome_Import-Export'!$B$7:$B$13,0))),\"\"))","v":""},{"$f":"IF(B56=\"\",\"\",IFERROR(IF(INDEX('ImpactOutcome_Import-Export'!M$7:M$13,MATCH($A56,'ImpactOutcome_Import-Export'!$B$7:$B$13,0))=\"\",\"\",INDEX('ImpactOutcome_Import-Export'!M$7:M$13,MATCH($A56,'ImpactOutcome_Import-Export'!$B$7:$B$13,0))),\"\"))","v":""},{"$f":"IF(B56=\"\",\"\",IFERROR(IF(INDEX('ImpactOutcome_Import-Export'!N$7:N$13,MATCH($A56,'ImpactOutcome_Import-Export'!$B$7:$B$13,0))=\"\",\"\",INDEX('ImpactOutcome_Import-Export'!N$7:N$13,MATCH($A56,'ImpactOutcome_Import-Export'!$B$7:$B$13,0))),\"\"))","v":""},{"$f":"IF(B56=\"\",\"\",IFERROR(IF(INDEX('ImpactOutcome_Import-Export'!O$7:O$13,MATCH($A56,'ImpactOutcome_Import-Export'!$B$7:$B$13,0))=\"\",\"\",INDEX('ImpactOutcome_Import-Export'!O$7:O$13,MATCH($A56,'ImpactOutcome_Import-Export'!$B$7:$B$13,0))),\"\"))","v":""},{"$f":"IF(B56=\"\",\"\",IFERROR(IF(INDEX('ImpactOutcome_Import-Export'!P$7:P$13,MATCH($A56,'ImpactOutcome_Import-Export'!$B$7:$B$13,0))=\"\",\"\",INDEX('ImpactOutcome_Import-Export'!P$7:P$13,MATCH($A56,'ImpactOutcome_Import-Export'!$B$7:$B$13,0))),\"\"))","v":""},{"$f":"IF(B56=\"\",\"\",IFERROR(IF(INDEX('ImpactOutcome_Import-Export'!Q$7:Q$13,MATCH($A56,'ImpactOutcome_Import-Export'!$B$7:$B$13,0))=\"\",\"\",INDEX('ImpactOutcome_Import-Export'!Q$7:Q$13,MATCH($A56,'ImpactOutcome_Import-Export'!$B$7:$B$13,0))),\"\"))","v":""},{"$f":"IF(B56=\"\",\"\",IFERROR(IF(INDEX('ImpactOutcome_Import-Export'!R$7:R$13,MATCH($A56,'ImpactOutcome_Import-Export'!$B$7:$B$13,0))=\"\",\"\",INDEX('ImpactOutcome_Import-Export'!R$7:R$13,MATCH($A56,'ImpactOutcome_Import-Export'!$B$7:$B$13,0))),\"\"))","v":""},null,null,"",null,null,null,"",null,null,null,"",null,null,null,"",null,null,"",null,""]
[{"$f":"IFERROR(IF(INDEX(Impactlist,MATCH(0,INDEX(COUNTIF(A$10:A56,Impactlist),0,0),0))<>\"\",INDEX(Impactlist,MATCH(0,INDEX(COUNTIF(A$10:A56,Impactlist),0,0),0)),INDEX(Outcomelist,MATCH(0,INDEX(COUNTIF(A$10:A56,Outcomelist),0,0),0))),\"\")","v":""},{"$f":"IFERROR(INDEX('ImpactOutcome_Import-Export'!D$7:D$200,MATCH($A57,'ImpactOutcome_Import-Export'!$B$7:$B$200,0)),\"\")","v":""},{"$f":"IF(B57=\"\",\"\",IFERROR(INDEX('ImpactOutcome_Import-Export'!F$7:F$13,MATCH($A57,'ImpactOutcome_Import-Export'!$B$7:$B$13,0)),\"\"))","v":""},{"$f":"IF(B57=\"\",\"\",IFERROR(IF(INDEX('ImpactOutcome_Import-Export'!K$7:K$13,MATCH($A57,'ImpactOutcome_Import-Export'!$B$7:$B$13,0))=\"\",\"\",INDEX('ImpactOutcome_Import-Export'!K$7:K$13,MATCH($A57,'ImpactOutcome_Import-Export'!$B$7:$B$13,0))),\"\"))","v":""},{"$f":"IF(B57=\"\",\"\",IFERROR(IF(INDEX('ImpactOutcome_Import-Export'!L$7:L$13,MATCH($A57,'ImpactOutcome_Import-Export'!$B$7:$B$13,0))=\"\",\"\",INDEX('ImpactOutcome_Import-Export'!L$7:L$13,MATCH($A57,'ImpactOutcome_Import-Export'!$B$7:$B$13,0))),\"\"))","v":""},{"$f":"IF(B57=\"\",\"\",IFERROR(IF(INDEX('ImpactOutcome_Import-Export'!M$7:M$13,MATCH($A57,'ImpactOutcome_Import-Export'!$B$7:$B$13,0))=\"\",\"\",INDEX('ImpactOutcome_Import-Export'!M$7:M$13,MATCH($A57,'ImpactOutcome_Import-Export'!$B$7:$B$13,0))),\"\"))","v":""},{"$f":"IF(B57=\"\",\"\",IFERROR(IF(INDEX('ImpactOutcome_Import-Export'!N$7:N$13,MATCH($A57,'ImpactOutcome_Import-Export'!$B$7:$B$13,0))=\"\",\"\",INDEX('ImpactOutcome_Import-Export'!N$7:N$13,MATCH($A57,'ImpactOutcome_Import-Export'!$B$7:$B$13,0))),\"\"))","v":""},{"$f":"IF(B57=\"\",\"\",IFERROR(IF(INDEX('ImpactOutcome_Import-Export'!O$7:O$13,MATCH($A57,'ImpactOutcome_Import-Export'!$B$7:$B$13,0))=\"\",\"\",INDEX('ImpactOutcome_Import-Export'!O$7:O$13,MATCH($A57,'ImpactOutcome_Import-Export'!$B$7:$B$13,0))),\"\"))","v":""},{"$f":"IF(B57=\"\",\"\",IFERROR(IF(INDEX('ImpactOutcome_Import-Export'!P$7:P$13,MATCH($A57,'ImpactOutcome_Import-Export'!$B$7:$B$13,0))=\"\",\"\",INDEX('ImpactOutcome_Import-Export'!P$7:P$13,MATCH($A57,'ImpactOutcome_Import-Export'!$B$7:$B$13,0))),\"\"))","v":""},{"$f":"IF(B57=\"\",\"\",IFERROR(IF(INDEX('ImpactOutcome_Import-Export'!Q$7:Q$13,MATCH($A57,'ImpactOutcome_Import-Export'!$B$7:$B$13,0))=\"\",\"\",INDEX('ImpactOutcome_Import-Export'!Q$7:Q$13,MATCH($A57,'ImpactOutcome_Import-Export'!$B$7:$B$13,0))),\"\"))","v":""},{"$f":"IF(B57=\"\",\"\",IFERROR(IF(INDEX('ImpactOutcome_Import-Export'!R$7:R$13,MATCH($A57,'ImpactOutcome_Import-Export'!$B$7:$B$13,0))=\"\",\"\",INDEX('ImpactOutcome_Import-Export'!R$7:R$13,MATCH($A57,'ImpactOutcome_Import-Export'!$B$7:$B$13,0))),\"\"))","v":""},null,null,"",null,null,null,"",null,null,null,"",null,null,null,"",null,null,"",null,""]
[{"$f":"IFERROR(IF(INDEX(Impactlist,MATCH(0,INDEX(COUNTIF(A$10:A57,Impactlist),0,0),0))<>\"\",INDEX(Impactlist,MATCH(0,INDEX(COUNTIF(A$10:A57,Impactlist),0,0),0)),INDEX(Outcomelist,MATCH(0,INDEX(COUNTIF(A$10:A57,Outcomelist),0,0),0))),\"\")","v":""},{"$f":"IFERROR(INDEX('ImpactOutcome_Import-Export'!D$7:D$200,MATCH($A58,'ImpactOutcome_Import-Export'!$B$7:$B$200,0)),\"\")","v":""},{"$f":"IF(B58=\"\",\"\",IFERROR(INDEX('ImpactOutcome_Import-Export'!F$7:F$13,MATCH($A58,'ImpactOutcome_Import-Export'!$B$7:$B$13,0)),\"\"))","v":""},{"$f":"IF(B58=\"\",\"\",IFERROR(IF(INDEX('ImpactOutcome_Import-Export'!K$7:K$13,MATCH($A58,'ImpactOutcome_Import-Export'!$B$7:$B$13,0))=\"\",\"\",INDEX('ImpactOutcome_Import-Export'!K$7:K$13,MATCH($A58,'ImpactOutcome_Import-Export'!$B$7:$B$13,0))),\"\"))","v":""},{"$f":"IF(B58=\"\",\"\",IFERROR(IF(INDEX('ImpactOutcome_Import-Export'!L$7:L$13,MATCH($A58,'ImpactOutcome_Import-Export'!$B$7:$B$13,0))=\"\",\"\",INDEX('ImpactOutcome_Import-Export'!L$7:L$13,MATCH($A58,'ImpactOutcome_Import-Export'!$B$7:$B$13,0))),\"\"))","v":""},{"$f":"IF(B58=\"\",\"\",IFERROR(IF(INDEX('ImpactOutcome_Import-Export'!M$7:M$13,MATCH($A58,'ImpactOutcome_Import-Export'!$B$7:$B$13,0))=\"\",\"\",INDEX('ImpactOutcome_Import-Export'!M$7:M$13,MATCH($A58,'ImpactOutcome_Import-Export'!$B$7:$B$13,0))),\"\"))","v":""},{"$f":"IF(B58=\"\",\"\",IFERROR(IF(INDEX('ImpactOutcome_Import-Export'!N$7:N$13,MATCH($A58,'ImpactOutcome_Import-Export'!$B$7:$B$13,0))=\"\",\"\",INDEX('ImpactOutcome_Import-Export'!N$7:N$13,MATCH($A58,'ImpactOutcome_Import-Export'!$B$7:$B$13,0))),\"\"))","v":""},{"$f":"IF(B58=\"\",\"\",IFERROR(IF(INDEX('ImpactOutcome_Import-Export'!O$7:O$13,MATCH($A58,'ImpactOutcome_Import-Export'!$B$7:$B$13,0))=\"\",\"\",INDEX('ImpactOutcome_Import-Export'!O$7:O$13,MATCH($A58,'ImpactOutcome_Import-Export'!$B$7:$B$13,0))),\"\"))","v":""},{"$f":"IF(B58=\"\",\"\",IFERROR(IF(INDEX('ImpactOutcome_Import-Export'!P$7:P$13,MATCH($A58,'ImpactOutcome_Import-Export'!$B$7:$B$13,0))=\"\",\"\",INDEX('ImpactOutcome_Import-Export'!P$7:P$13,MATCH($A58,'ImpactOutcome_Import-Export'!$B$7:$B$13,0))),\"\"))","v":""},{"$f":"IF(B58=\"\",\"\",IFERROR(IF(INDEX('ImpactOutcome_Import-Export'!Q$7:Q$13,MATCH($A58,'ImpactOutcome_Import-Export'!$B$7:$B$13,0))=\"\",\"\",INDEX('ImpactOutcome_Import-Export'!Q$7:Q$13,MATCH($A58,'ImpactOutcome_Import-Export'!$B$7:$B$13,0))),\"\"))","v":""},{"$f":"IF(B58=\"\",\"\",IFERROR(IF(INDEX('ImpactOutcome_Import-Export'!R$7:R$13,MATCH($A58,'ImpactOutcome_Import-Export'!$B$7:$B$13,0))=\"\",\"\",INDEX('ImpactOutcome_Import-Export'!R$7:R$13,MATCH($A58,'ImpactOutcome_Import-Export'!$B$7:$B$13,0))),\"\"))","v":""},null,null,"",null,null,null,"",null,null,null,"",null,null,null,"",null,null,"",null,""]
[{"$f":"IFERROR(IF(INDEX(Impactlist,MATCH(0,INDEX(COUNTIF(A$10:A58,Impactlist),0,0),0))<>\"\",INDEX(Impactlist,MATCH(0,INDEX(COUNTIF(A$10:A58,Impactlist),0,0),0)),INDEX(Outcomelist,MATCH(0,INDEX(COUNTIF(A$10:A58,Outcomelist),0,0),0))),\"\")","v":""},{"$f":"IFERROR(INDEX('ImpactOutcome_Import-Export'!D$7:D$200,MATCH($A59,'ImpactOutcome_Import-Export'!$B$7:$B$200,0)),\"\")","v":""},{"$f":"IF(B59=\"\",\"\",IFERROR(INDEX('ImpactOutcome_Import-Export'!F$7:F$13,MATCH($A59,'ImpactOutcome_Import-Export'!$B$7:$B$13,0)),\"\"))","v":""},{"$f":"IF(B59=\"\",\"\",IFERROR(IF(INDEX('ImpactOutcome_Import-Export'!K$7:K$13,MATCH($A59,'ImpactOutcome_Import-Export'!$B$7:$B$13,0))=\"\",\"\",INDEX('ImpactOutcome_Import-Export'!K$7:K$13,MATCH($A59,'ImpactOutcome_Import-Export'!$B$7:$B$13,0))),\"\"))","v":""},{"$f":"IF(B59=\"\",\"\",IFERROR(IF(INDEX('ImpactOutcome_Import-Export'!L$7:L$13,MATCH($A59,'ImpactOutcome_Import-Export'!$B$7:$B$13,0))=\"\",\"\",INDEX('ImpactOutcome_Import-Export'!L$7:L$13,MATCH($A59,'ImpactOutcome_Import-Export'!$B$7:$B$13,0))),\"\"))","v":""},{"$f":"IF(B59=\"\",\"\",IFERROR(IF(INDEX('ImpactOutcome_Import-Export'!M$7:M$13,MATCH($A59,'ImpactOutcome_Import-Export'!$B$7:$B$13,0))=\"\",\"\",INDEX('ImpactOutcome_Import-Export'!M$7:M$13,MATCH($A59,'ImpactOutcome_Import-Export'!$B$7:$B$13,0))),\"\"))","v":""},{"$f":"IF(B59=\"\",\"\",IFERROR(IF(INDEX('ImpactOutcome_Import-Export'!N$7:N$13,MATCH($A59,'ImpactOutcome_Import-Export'!$B$7:$B$13,0))=\"\",\"\",INDEX('ImpactOutcome_Import-Export'!N$7:N$13,MATCH($A59,'ImpactOutcome_Import-Export'!$B$7:$B$13,0))),\"\"))","v":""},{"$f":"IF(B59=\"\",\"\",IFERROR(IF(INDEX('ImpactOutcome_Import-Export'!O$7:O$13,MATCH($A59,'ImpactOutcome_Import-Export'!$B$7:$B$13,0))=\"\",\"\",INDEX('ImpactOutcome_Import-Export'!O$7:O$13,MATCH($A59,'ImpactOutcome_Import-Export'!$B$7:$B$13,0))),\"\"))","v":""},{"$f":"IF(B59=\"\",\"\",IFERROR(IF(INDEX('ImpactOutcome_Import-Export'!P$7:P$13,MATCH($A59,'ImpactOutcome_Import-Export'!$B$7:$B$13,0))=\"\",\"\",INDEX('ImpactOutcome_Import-Export'!P$7:P$13,MATCH($A59,'ImpactOutcome_Import-Export'!$B$7:$B$13,0))),\"\"))","v":""},{"$f":"IF(B59=\"\",\"\",IFERROR(IF(INDEX('ImpactOutcome_Import-Export'!Q$7:Q$13,MATCH($A59,'ImpactOutcome_Import-Export'!$B$7:$B$13,0))=\"\",\"\",INDEX('ImpactOutcome_Import-Export'!Q$7:Q$13,MATCH($A59,'ImpactOutcome_Import-Export'!$B$7:$B$13,0))),\"\"))","v":""},{"$f":"IF(B59=\"\",\"\",IFERROR(IF(INDEX('ImpactOutcome_Import-Export'!R$7:R$13,MATCH($A59,'ImpactOutcome_Import-Export'!$B$7:$B$13,0))=\"\",\"\",INDEX('ImpactOutcome_Import-Export'!R$7:R$13,MATCH($A59,'ImpactOutcome_Import-Export'!$B$7:$B$13,0))),\"\"))","v":""},null,null,"",null,null,null,"",null,null,null,"",null,null,null,"",null,null,"",null,""]
[{"$f":"IFERROR(IF(INDEX(Impactlist,MATCH(0,INDEX(COUNTIF(A$10:A59,Impactlist),0,0),0))<>\"\",INDEX(Impactlist,MATCH(0,INDEX(COUNTIF(A$10:A59,Impactlist),0,0),0)),INDEX(Outcomelist,MATCH(0,INDEX(COUNTIF(A$10:A59,Outcomelist),0,0),0))),\"\")","v":""},{"$f":"IFERROR(INDEX('ImpactOutcome_Import-Export'!D$7:D$200,MATCH($A60,'ImpactOutcome_Import-Export'!$B$7:$B$200,0)),\"\")","v":""},{"$f":"IF(B60=\"\",\"\",IFERROR(INDEX('ImpactOutcome_Import-Export'!F$7:F$13,MATCH($A60,'ImpactOutcome_Import-Export'!$B$7:$B$13,0)),\"\"))","v":""},{"$f":"IF(B60=\"\",\"\",IFERROR(IF(INDEX('ImpactOutcome_Import-Export'!K$7:K$13,MATCH($A60,'ImpactOutcome_Import-Export'!$B$7:$B$13,0))=\"\",\"\",INDEX('ImpactOutcome_Import-Export'!K$7:K$13,MATCH($A60,'ImpactOutcome_Import-Export'!$B$7:$B$13,0))),\"\"))","v":""},{"$f":"IF(B60=\"\",\"\",IFERROR(IF(INDEX('ImpactOutcome_Import-Export'!L$7:L$13,MATCH($A60,'ImpactOutcome_Import-Export'!$B$7:$B$13,0))=\"\",\"\",INDEX('ImpactOutcome_Import-Export'!L$7:L$13,MATCH($A60,'ImpactOutcome_Import-Export'!$B$7:$B$13,0))),\"\"))","v":""},{"$f":"IF(B60=\"\",\"\",IFERROR(IF(INDEX('ImpactOutcome_Import-Export'!M$7:M$13,MATCH($A60,'ImpactOutcome_Import-Export'!$B$7:$B$13,0))=\"\",\"\",INDEX('ImpactOutcome_Import-Export'!M$7:M$13,MATCH($A60,'ImpactOutcome_Import-Export'!$B$7:$B$13,0))),\"\"))","v":""},{"$f":"IF(B60=\"\",\"\",IFERROR(IF(INDEX('ImpactOutcome_Import-Export'!N$7:N$13,MATCH($A60,'ImpactOutcome_Import-Export'!$B$7:$B$13,0))=\"\",\"\",INDEX('ImpactOutcome_Import-Export'!N$7:N$13,MATCH($A60,'ImpactOutcome_Import-Export'!$B$7:$B$13,0))),\"\"))","v":""},{"$f":"IF(B60=\"\",\"\",IFERROR(IF(INDEX('ImpactOutcome_Import-Export'!O$7:O$13,MATCH($A60,'ImpactOutcome_Import-Export'!$B$7:$B$13,0))=\"\",\"\",INDEX('ImpactOutcome_Import-Export'!O$7:O$13,MATCH($A60,'ImpactOutcome_Import-Export'!$B$7:$B$13,0))),\"\"))","v":""},{"$f":"IF(B60=\"\",\"\",IFERROR(IF(INDEX('ImpactOutcome_Import-Export'!P$7:P$13,MATCH($A60,'ImpactOutcome_Import-Export'!$B$7:$B$13,0))=\"\",\"\",INDEX('ImpactOutcome_Import-Export'!P$7:P$13,MATCH($A60,'ImpactOutcome_Import-Export'!$B$7:$B$13,0))),\"\"))","v":""},{"$f":"IF(B60=\"\",\"\",IFERROR(IF(INDEX('ImpactOutcome_Import-Export'!Q$7:Q$13,MATCH($A60,'ImpactOutcome_Import-Export'!$B$7:$B$13,0))=\"\",\"\",INDEX('ImpactOutcome_Import-Export'!Q$7:Q$13,MATCH($A60,'ImpactOutcome_Import-Export'!$B$7:$B$13,0))),\"\"))","v":""},{"$f":"IF(B60=\"\",\"\",IFERROR(IF(INDEX('ImpactOutcome_Import-Export'!R$7:R$13,MATCH($A60,'ImpactOutcome_Import-Export'!$B$7:$B$13,0))=\"\",\"\",INDEX('ImpactOutcome_Import-Export'!R$7:R$13,MATCH($A60,'ImpactOutcome_Import-Export'!$B$7:$B$13,0))),\"\"))","v":""},null,null,"",null,null,null,"",null,null,null,"",null,null,null,"",null,null,"",null,""]
[{"$f":"IFERROR(IF(INDEX(Impactlist,MATCH(0,INDEX(COUNTIF(A$10:A60,Impactlist),0,0),0))<>\"\",INDEX(Impactlist,MATCH(0,INDEX(COUNTIF(A$10:A60,Impactlist),0,0),0)),INDEX(Outcomelist,MATCH(0,INDEX(COUNTIF(A$10:A60,Outcomelist),0,0),0))),\"\")","v":""},{"$f":"IFERROR(INDEX('ImpactOutcome_Import-Export'!D$7:D$200,MATCH($A61,'ImpactOutcome_Import-Export'!$B$7:$B$200,0)),\"\")","v":""},{"$f":"IF(B61=\"\",\"\",IFERROR(INDEX('ImpactOutcome_Import-Export'!F$7:F$13,MATCH($A61,'ImpactOutcome_Import-Export'!$B$7:$B$13,0)),\"\"))","v":""},{"$f":"IF(B61=\"\",\"\",IFERROR(IF(INDEX('ImpactOutcome_Import-Export'!K$7:K$13,MATCH($A61,'ImpactOutcome_Import-Export'!$B$7:$B$13,0))=\"\",\"\",INDEX('ImpactOutcome_Import-Export'!K$7:K$13,MATCH($A61,'ImpactOutcome_Import-Export'!$B$7:$B$13,0))),\"\"))","v":""},{"$f":"IF(B61=\"\",\"\",IFERROR(IF(INDEX('ImpactOutcome_Import-Export'!L$7:L$13,MATCH($A61,'ImpactOutcome_Import-Export'!$B$7:$B$13,0))=\"\",\"\",INDEX('ImpactOutcome_Import-Export'!L$7:L$13,MATCH($A61,'ImpactOutcome_Import-Export'!$B$7:$B$13,0))),\"\"))","v":""},{"$f":"IF(B61=\"\",\"\",IFERROR(IF(INDEX('ImpactOutcome_Import-Export'!M$7:M$13,MATCH($A61,'ImpactOutcome_Import-Export'!$B$7:$B$13,0))=\"\",\"\",INDEX('ImpactOutcome_Import-Export'!M$7:M$13,MATCH($A61,'ImpactOutcome_Import-Export'!$B$7:$B$13,0))),\"\"))","v":""},{"$f":"IF(B61=\"\",\"\",IFERROR(IF(INDEX('ImpactOutcome_Import-Export'!N$7:N$13,MATCH($A61,'ImpactOutcome_Import-Export'!$B$7:$B$13,0))=\"\",\"\",INDEX('ImpactOutcome_Import-Export'!N$7:N$13,MATCH($A61,'ImpactOutcome_Import-Export'!$B$7:$B$13,0))),\"\"))","v":""},{"$f":"IF(B61=\"\",\"\",IFERROR(IF(INDEX('ImpactOutcome_Import-Export'!O$7:O$13,MATCH($A61,'ImpactOutcome_Import-Export'!$B$7:$B$13,0))=\"\",\"\",INDEX('ImpactOutcome_Import-Export'!O$7:O$13,MATCH($A61,'ImpactOutcome_Import-Export'!$B$7:$B$13,0))),\"\"))","v":""},{"$f":"IF(B61=\"\",\"\",IFERROR(IF(INDEX('ImpactOutcome_Import-Export'!P$7:P$13,MATCH($A61,'ImpactOutcome_Import-Export'!$B$7:$B$13,0))=\"\",\"\",INDEX('ImpactOutcome_Import-Export'!P$7:P$13,MATCH($A61,'ImpactOutcome_Import-Export'!$B$7:$B$13,0))),\"\"))","v":""},{"$f":"IF(B61=\"\",\"\",IFERROR(IF(INDEX('ImpactOutcome_Import-Export'!Q$7:Q$13,MATCH($A61,'ImpactOutcome_Import-Export'!$B$7:$B$13,0))=\"\",\"\",INDEX('ImpactOutcome_Import-Export'!Q$7:Q$13,MATCH($A61,'ImpactOutcome_Import-Export'!$B$7:$B$13,0))),\"\"))","v":""},{"$f":"IF(B61=\"\",\"\",IFERROR(IF(INDEX('ImpactOutcome_Import-Export'!R$7:R$13,MATCH($A61,'ImpactOutcome_Import-Export'!$B$7:$B$13,0))=\"\",\"\",INDEX('ImpactOutcome_Import-Export'!R$7:R$13,MATCH($A61,'ImpactOutcome_Import-Export'!$B$7:$B$13,0))),\"\"))","v":""},null,null,"",null,null,null,"",null,null,null,"",null,null,null,"",null,null,"",null,""]
[{"$f":"IFERROR(IF(INDEX(Impactlist,MATCH(0,INDEX(COUNTIF(A$10:A61,Impactlist),0,0),0))<>\"\",INDEX(Impactlist,MATCH(0,INDEX(COUNTIF(A$10:A61,Impactlist),0,0),0)),INDEX(Outcomelist,MATCH(0,INDEX(COUNTIF(A$10:A61,Outcomelist),0,0),0))),\"\")","v":""},{"$f":"IFERROR(INDEX('ImpactOutcome_Import-Export'!D$7:D$200,MATCH($A62,'ImpactOutcome_Import-Export'!$B$7:$B$200,0)),\"\")","v":""},{"$f":"IF(B62=\"\",\"\",IFERROR(INDEX('ImpactOutcome_Import-Export'!F$7:F$13,MATCH($A62,'ImpactOutcome_Import-Export'!$B$7:$B$13,0)),\"\"))","v":""},{"$f":"IF(B62=\"\",\"\",IFERROR(IF(INDEX('ImpactOutcome_Import-Export'!K$7:K$13,MATCH($A62,'ImpactOutcome_Import-Export'!$B$7:$B$13,0))=\"\",\"\",INDEX('ImpactOutcome_Import-Export'!K$7:K$13,MATCH($A62,'ImpactOutcome_Import-Export'!$B$7:$B$13,0))),\"\"))","v":""},{"$f":"IF(B62=\"\",\"\",IFERROR(IF(INDEX('ImpactOutcome_Import-Export'!L$7:L$13,MATCH($A62,'ImpactOutcome_Import-Export'!$B$7:$B$13,0))=\"\",\"\",INDEX('ImpactOutcome_Import-Export'!L$7:L$13,MATCH($A62,'ImpactOutcome_Import-Export'!$B$7:$B$13,0))),\"\"))","v":""},{"$f":"IF(B62=\"\",\"\",IFERROR(IF(INDEX('ImpactOutcome_Import-Export'!M$7:M$13,MATCH($A62,'ImpactOutcome_Import-Export'!$B$7:$B$13,0))=\"\",\"\",INDEX('ImpactOutcome_Import-Export'!M$7:M$13,MATCH($A62,'ImpactOutcome_Import-Export'!$B$7:$B$13,0))),\"\"))","v":""},{"$f":"IF(B62=\"\",\"\",IFERROR(IF(INDEX('ImpactOutcome_Import-Export'!N$7:N$13,MATCH($A62,'ImpactOutcome_Import-Export'!$B$7:$B$13,0))=\"\",\"\",INDEX('ImpactOutcome_Import-Export'!N$7:N$13,MATCH($A62,'ImpactOutcome_Import-Export'!$B$7:$B$13,0))),\"\"))","v":""},{"$f":"IF(B62=\"\",\"\",IFERROR(IF(INDEX('ImpactOutcome_Import-Export'!O$7:O$13,MATCH($A62,'ImpactOutcome_Import-Export'!$B$7:$B$13,0))=\"\",\"\",INDEX('ImpactOutcome_Import-Export'!O$7:O$13,MATCH($A62,'ImpactOutcome_Import-Export'!$B$7:$B$13,0))),\"\"))","v":""},{"$f":"IF(B62=\"\",\"\",IFERROR(IF(INDEX('ImpactOutcome_Import-Export'!P$7:P$13,MATCH($A62,'ImpactOutcome_Import-Export'!$B$7:$B$13,0))=\"\",\"\",INDEX('ImpactOutcome_Import-Export'!P$7:P$13,MATCH($A62,'ImpactOutcome_Import-Export'!$B$7:$B$13,0))),\"\"))","v":""},{"$f":"IF(B62=\"\",\"\",IFERROR(IF(INDEX('ImpactOutcome_Import-Export'!Q$7:Q$13,MATCH($A62,'ImpactOutcome_Import-Export'!$B$7:$B$13,0))=\"\",\"\",INDEX('ImpactOutcome_Import-Export'!Q$7:Q$13,MATCH($A62,'ImpactOutcome_Import-Export'!$B$7:$B$13,0))),\"\"))","v":""},{"$f":"IF(B62=\"\",\"\",IFERROR(IF(INDEX('ImpactOutcome_Import-Export'!R$7:R$13,MATCH($A62,'ImpactOutcome_Import-Export'!$B$7:$B$13,0))=\"\",\"\",INDEX('ImpactOutcome_Import-Export'!R$7:R$13,MATCH($A62,'ImpactOutcome_Import-Export'!$B$7:$B$13,0))),\"\"))","v":""},null,null,"",null,null,null,"",null,null,null,"",null,null,null,"",null,null,"",null,""]
[{"$f":"IFERROR(IF(INDEX(Impactlist,MATCH(0,INDEX(COUNTIF(A$10:A62,Impactlist),0,0),0))<>\"\",INDEX(Impactlist,MATCH(0,INDEX(COUNTIF(A$10:A62,Impactlist),0,0),0)),INDEX(Outcomelist,MATCH(0,INDEX(COUNTIF(A$10:A62,Outcomelist),0,0),0))),\"\")","v":""},{"$f":"IFERROR(INDEX('ImpactOutcome_Import-Export'!D$7:D$200,MATCH($A63,'ImpactOutcome_Import-Export'!$B$7:$B$200,0)),\"\")","v":""},{"$f":"IF(B63=\"\",\"\",IFERROR(INDEX('ImpactOutcome_Import-Export'!F$7:F$13,MATCH($A63,'ImpactOutcome_Import-Export'!$B$7:$B$13,0)),\"\"))","v":""},{"$f":"IF(B63=\"\",\"\",IFERROR(IF(INDEX('ImpactOutcome_Import-Export'!K$7:K$13,MATCH($A63,'ImpactOutcome_Import-Export'!$B$7:$B$13,0))=\"\",\"\",INDEX('ImpactOutcome_Import-Export'!K$7:K$13,MATCH($A63,'ImpactOutcome_Import-Export'!$B$7:$B$13,0))),\"\"))","v":""},{"$f":"IF(B63=\"\",\"\",IFERROR(IF(INDEX('ImpactOutcome_Import-Export'!L$7:L$13,MATCH($A63,'ImpactOutcome_Import-Export'!$B$7:$B$13,0))=\"\",\"\",INDEX('ImpactOutcome_Import-Export'!L$7:L$13,MATCH($A63,'ImpactOutcome_Import-Export'!$B$7:$B$13,0))),\"\"))","v":""},{"$f":"IF(B63=\"\",\"\",IFERROR(IF(INDEX('ImpactOutcome_Import-Export'!M$7:M$13,MATCH($A63,'ImpactOutcome_Import-Export'!$B$7:$B$13,0))=\"\",\"\",INDEX('ImpactOutcome_Import-Export'!M$7:M$13,MATCH($A63,'ImpactOutcome_Import-Export'!$B$7:$B$13,0))),\"\"))","v":""},{"$f":"IF(B63=\"\",\"\",IFERROR(IF(INDEX('ImpactOutcome_Import-Export'!N$7:N$13,MATCH($A63,'ImpactOutcome_Import-Export'!$B$7:$B$13,0))=\"\",\"\",INDEX('ImpactOutcome_Import-Export'!N$7:N$13,MATCH($A63,'ImpactOutcome_Import-Export'!$B$7:$B$13,0))),\"\"))","v":""},{"$f":"IF(B63=\"\",\"\",IFERROR(IF(INDEX('ImpactOutcome_Import-Export'!O$7:O$13,MATCH($A63,'ImpactOutcome_Import-Export'!$B$7:$B$13,0))=\"\",\"\",INDEX('ImpactOutcome_Import-Export'!O$7:O$13,MATCH($A63,'ImpactOutcome_Import-Export'!$B$7:$B$13,0))),\"\"))","v":""},{"$f":"IF(B63=\"\",\"\",IFERROR(IF(INDEX('ImpactOutcome_Import-Export'!P$7:P$13,MATCH($A63,'ImpactOutcome_Import-Export'!$B$7:$B$13,0))=\"\",\"\",INDEX('ImpactOutcome_Import-Export'!P$7:P$13,MATCH($A63,'ImpactOutcome_Import-Export'!$B$7:$B$13,0))),\"\"))","v":""},{"$f":"IF(B63=\"\",\"\",IFERROR(IF(INDEX('ImpactOutcome_Import-Export'!Q$7:Q$13,MATCH($A63,'ImpactOutcome_Import-Export'!$B$7:$B$13,0))=\"\",\"\",INDEX('ImpactOutcome_Import-Export'!Q$7:Q$13,MATCH($A63,'ImpactOutcome_Import-Export'!$B$7:$B$13,0))),\"\"))","v":""},{"$f":"IF(B63=\"\",\"\",IFERROR(IF(INDEX('ImpactOutcome_Import-Export'!R$7:R$13,MATCH($A63,'ImpactOutcome_Import-Export'!$B$7:$B$13,0))=\"\",\"\",INDEX('ImpactOutcome_Import-Export'!R$7:R$13,MATCH($A63,'ImpactOutcome_Import-Export'!$B$7:$B$13,0))),\"\"))","v":""},null,null,"",null,null,null,"",null,null,null,"",null,null,null,"",null,null,"",null,""]
[{"$f":"IFERROR(IF(INDEX(Impactlist,MATCH(0,INDEX(COUNTIF(A$10:A63,Impactlist),0,0),0))<>\"\",INDEX(Impactlist,MATCH(0,INDEX(COUNTIF(A$10:A63,Impactlist),0,0),0)),INDEX(Outcomelist,MATCH(0,INDEX(COUNTIF(A$10:A63,Outcomelist),0,0),0))),\"\")","v":""},{"$f":"IFERROR(INDEX('ImpactOutcome_Import-Export'!D$7:D$200,MATCH($A64,'ImpactOutcome_Import-Export'!$B$7:$B$200,0)),\"\")","v":""},{"$f":"IF(B64=\"\",\"\",IFERROR(INDEX('ImpactOutcome_Import-Export'!F$7:F$13,MATCH($A64,'ImpactOutcome_Import-Export'!$B$7:$B$13,0)),\"\"))","v":""},{"$f":"IF(B64=\"\",\"\",IFERROR(IF(INDEX('ImpactOutcome_Import-Export'!K$7:K$13,MATCH($A64,'ImpactOutcome_Import-Export'!$B$7:$B$13,0))=\"\",\"\",INDEX('ImpactOutcome_Import-Export'!K$7:K$13,MATCH($A64,'ImpactOutcome_Import-Export'!$B$7:$B$13,0))),\"\"))","v":""},{"$f":"IF(B64=\"\",\"\",IFERROR(IF(INDEX('ImpactOutcome_Import-Export'!L$7:L$13,MATCH($A64,'ImpactOutcome_Import-Export'!$B$7:$B$13,0))=\"\",\"\",INDEX('ImpactOutcome_Import-Export'!L$7:L$13,MATCH($A64,'ImpactOutcome_Import-Export'!$B$7:$B$13,0))),\"\"))","v":""},{"$f":"IF(B64=\"\",\"\",IFERROR(IF(INDEX('ImpactOutcome_Import-Export'!M$7:M$13,MATCH($A64,'ImpactOutcome_Import-Export'!$B$7:$B$13,0))=\"\",\"\",INDEX('ImpactOutcome_Import-Export'!M$7:M$13,MATCH($A64,'ImpactOutcome_Import-Export'!$B$7:$B$13,0))),\"\"))","v":""},{"$f":"IF(B64=\"\",\"\",IFERROR(IF(INDEX('ImpactOutcome_Import-Export'!N$7:N$13,MATCH($A64,'ImpactOutcome_Import-Export'!$B$7:$B$13,0))=\"\",\"\",INDEX('ImpactOutcome_Import-Export'!N$7:N$13,MATCH($A64,'ImpactOutcome_Import-Export'!$B$7:$B$13,0))),\"\"))","v":""},{"$f":"IF(B64=\"\",\"\",IFERROR(IF(INDEX('ImpactOutcome_Import-Export'!O$7:O$13,MATCH($A64,'ImpactOutcome_Import-Export'!$B$7:$B$13,0))=\"\",\"\",INDEX('ImpactOutcome_Import-Export'!O$7:O$13,MATCH($A64,'ImpactOutcome_Import-Export'!$B$7:$B$13,0))),\"\"))","v":""},{"$f":"IF(B64=\"\",\"\",IFERROR(IF(INDEX('ImpactOutcome_Import-Export'!P$7:P$13,MATCH($A64,'ImpactOutcome_Import-Export'!$B$7:$B$13,0))=\"\",\"\",INDEX('ImpactOutcome_Import-Export'!P$7:P$13,MATCH($A64,'ImpactOutcome_Import-Export'!$B$7:$B$13,0))),\"\"))","v":""},{"$f":"IF(B64=\"\",\"\",IFERROR(IF(INDEX('ImpactOutcome_Import-Export'!Q$7:Q$13,MATCH($A64,'ImpactOutcome_Import-Export'!$B$7:$B$13,0))=\"\",\"\",INDEX('ImpactOutcome_Import-Export'!Q$7:Q$13,MATCH($A64,'ImpactOutcome_Import-Export'!$B$7:$B$13,0))),\"\"))","v":""},{"$f":"IF(B64=\"\",\"\",IFERROR(IF(INDEX('ImpactOutcome_Import-Export'!R$7:R$13,MATCH($A64,'ImpactOutcome_Import-Export'!$B$7:$B$13,0))=\"\",\"\",INDEX('ImpactOutcome_Import-Export'!R$7:R$13,MATCH($A64,'ImpactOutcome_Import-Export'!$B$7:$B$13,0))),\"\"))","v":""},null,null,"",null,null,null,"",null,null,null,"",null,null,null,"",null,null,"",null,""]
[{"$f":"IFERROR(IF(INDEX(Impactlist,MATCH(0,INDEX(COUNTIF(A$10:A64,Impactlist),0,0),0))<>\"\",INDEX(Impactlist,MATCH(0,INDEX(COUNTIF(A$10:A64,Impactlist),0,0),0)),INDEX(Outcomelist,MATCH(0,INDEX(COUNTIF(A$10:A64,Outcomelist),0,0),0))),\"\")","v":""},{"$f":"IFERROR(INDEX('ImpactOutcome_Import-Export'!D$7:D$200,MATCH($A65,'ImpactOutcome_Import-Export'!$B$7:$B$200,0)),\"\")","v":""},{"$f":"IF(B65=\"\",\"\",IFERROR(INDEX('ImpactOutcome_Import-Export'!F$7:F$13,MATCH($A65,'ImpactOutcome_Import-Export'!$B$7:$B$13,0)),\"\"))","v":""},{"$f":"IF(B65=\"\",\"\",IFERROR(IF(INDEX('ImpactOutcome_Import-Export'!K$7:K$13,MATCH($A65,'ImpactOutcome_Import-Export'!$B$7:$B$13,0))=\"\",\"\",INDEX('ImpactOutcome_Import-Export'!K$7:K$13,MATCH($A65,'ImpactOutcome_Import-Export'!$B$7:$B$13,0))),\"\"))","v":""},{"$f":"IF(B65=\"\",\"\",IFERROR(IF(INDEX('ImpactOutcome_Import-Export'!L$7:L$13,MATCH($A65,'ImpactOutcome_Import-Export'!$B$7:$B$13,0))=\"\",\"\",INDEX('ImpactOutcome_Import-Export'!L$7:L$13,MATCH($A65,'ImpactOutcome_Import-Export'!$B$7:$B$13,0))),\"\"))","v":""},{"$f":"IF(B65=\"\",\"\",IFERROR(IF(INDEX('ImpactOutcome_Import-Export'!M$7:M$13,MATCH($A65,'ImpactOutcome_Import-Export'!$B$7:$B$13,0))=\"\",\"\",INDEX('ImpactOutcome_Import-Export'!M$7:M$13,MATCH($A65,'ImpactOutcome_Import-Export'!$B$7:$B$13,0))),\"\"))","v":""},{"$f":"IF(B65=\"\",\"\",IFERROR(IF(INDEX('ImpactOutcome_Import-Export'!N$7:N$13,MATCH($A65,'ImpactOutcome_Import-Export'!$B$7:$B$13,0))=\"\",\"\",INDEX('ImpactOutcome_Import-Export'!N$7:N$13,MATCH($A65,'ImpactOutcome_Import-Export'!$B$7:$B$13,0))),\"\"))","v":""},{"$f":"IF(B65=\"\",\"\",IFERROR(IF(INDEX('ImpactOutcome_Import-Export'!O$7:O$13,MATCH($A65,'ImpactOutcome_Import-Export'!$B$7:$B$13,0))=\"\",\"\",INDEX('ImpactOutcome_Import-Export'!O$7:O$13,MATCH($A65,'ImpactOutcome_Import-Export'!$B$7:$B$13,0))),\"\"))","v":""},{"$f":"IF(B65=\"\",\"\",IFERROR(IF(INDEX('ImpactOutcome_Import-Export'!P$7:P$13,MATCH($A65,'ImpactOutcome_Import-Export'!$B$7:$B$13,0))=\"\",\"\",INDEX('ImpactOutcome_Import-Export'!P$7:P$13,MATCH($A65,'ImpactOutcome_Import-Export'!$B$7:$B$13,0))),\"\"))","v":""},{"$f":"IF(B65=\"\",\"\",IFERROR(IF(INDEX('ImpactOutcome_Import-Export'!Q$7:Q$13,MATCH($A65,'ImpactOutcome_Import-Export'!$B$7:$B$13,0))=\"\",\"\",INDEX('ImpactOutcome_Import-Export'!Q$7:Q$13,MATCH($A65,'ImpactOutcome_Import-Export'!$B$7:$B$13,0))),\"\"))","v":""},{"$f":"IF(B65=\"\",\"\",IFERROR(IF(INDEX('ImpactOutcome_Import-Export'!R$7:R$13,MATCH($A65,'ImpactOutcome_Import-Export'!$B$7:$B$13,0))=\"\",\"\",INDEX('ImpactOutcome_Import-Export'!R$7:R$13,MATCH($A65,'ImpactOutcome_Import-Export'!$B$7:$B$13,0))),\"\"))","v":""},null,null,"",null,null,null,"",null,null,null,"",null,null,null,"",null,null,"",null,""]
[{"$f":"IFERROR(IF(INDEX(Impactlist,MATCH(0,INDEX(COUNTIF(A$10:A65,Impactlist),0,0),0))<>\"\",INDEX(Impactlist,MATCH(0,INDEX(COUNTIF(A$10:A65,Impactlist),0,0),0)),INDEX(Outcomelist,MATCH(0,INDEX(COUNTIF(A$10:A65,Outcomelist),0,0),0))),\"\")","v":""},{"$f":"IFERROR(INDEX('ImpactOutcome_Import-Export'!D$7:D$200,MATCH($A66,'ImpactOutcome_Import-Export'!$B$7:$B$200,0)),\"\")","v":""},{"$f":"IF(B66=\"\",\"\",IFERROR(INDEX('ImpactOutcome_Import-Export'!F$7:F$13,MATCH($A66,'ImpactOutcome_Import-Export'!$B$7:$B$13,0)),\"\"))","v":""},{"$f":"IF(B66=\"\",\"\",IFERROR(IF(INDEX('ImpactOutcome_Import-Export'!K$7:K$13,MATCH($A66,'ImpactOutcome_Import-Export'!$B$7:$B$13,0))=\"\",\"\",INDEX('ImpactOutcome_Import-Export'!K$7:K$13,MATCH($A66,'ImpactOutcome_Import-Export'!$B$7:$B$13,0))),\"\"))","v":""},{"$f":"IF(B66=\"\",\"\",IFERROR(IF(INDEX('ImpactOutcome_Import-Export'!L$7:L$13,MATCH($A66,'ImpactOutcome_Import-Export'!$B$7:$B$13,0))=\"\",\"\",INDEX('ImpactOutcome_Import-Export'!L$7:L$13,MATCH($A66,'ImpactOutcome_Import-Export'!$B$7:$B$13,0))),\"\"))","v":""},{"$f":"IF(B66=\"\",\"\",IFERROR(IF(INDEX('ImpactOutcome_Import-Export'!M$7:M$13,MATCH($A66,'ImpactOutcome_Import-Export'!$B$7:$B$13,0))=\"\",\"\",INDEX('ImpactOutcome_Import-Export'!M$7:M$13,MATCH($A66,'ImpactOutcome_Import-Export'!$B$7:$B$13,0))),\"\"))","v":""},{"$f":"IF(B66=\"\",\"\",IFERROR(IF(INDEX('ImpactOutcome_Import-Export'!N$7:N$13,MATCH($A66,'ImpactOutcome_Import-Export'!$B$7:$B$13,0))=\"\",\"\",INDEX('ImpactOutcome_Import-Export'!N$7:N$13,MATCH($A66,'ImpactOutcome_Import-Export'!$B$7:$B$13,0))),\"\"))","v":""},{"$f":"IF(B66=\"\",\"\",IFERROR(IF(INDEX('ImpactOutcome_Import-Export'!O$7:O$13,MATCH($A66,'ImpactOutcome_Import-Export'!$B$7:$B$13,0))=\"\",\"\",INDEX('ImpactOutcome_Import-Export'!O$7:O$13,MATCH($A66,'ImpactOutcome_Import-Export'!$B$7:$B$13,0))),\"\"))","v":""},{"$f":"IF(B66=\"\",\"\",IFERROR(IF(INDEX('ImpactOutcome_Import-Export'!P$7:P$13,MATCH($A66,'ImpactOutcome_Import-Export'!$B$7:$B$13,0))=\"\",\"\",INDEX('ImpactOutcome_Import-Export'!P$7:P$13,MATCH($A66,'ImpactOutcome_Import-Export'!$B$7:$B$13,0))),\"\"))","v":""},{"$f":"IF(B66=\"\",\"\",IFERROR(IF(INDEX('ImpactOutcome_Import-Export'!Q$7:Q$13,MATCH($A66,'ImpactOutcome_Import-Export'!$B$7:$B$13,0))=\"\",\"\",INDEX('ImpactOutcome_Import-Export'!Q$7:Q$13,MATCH($A66,'ImpactOutcome_Import-Export'!$B$7:$B$13,0))),\"\"))","v":""},{"$f":"IF(B66=\"\",\"\",IFERROR(IF(INDEX('ImpactOutcome_Import-Export'!R$7:R$13,MATCH($A66,'ImpactOutcome_Import-Export'!$B$7:$B$13,0))=\"\",\"\",INDEX('ImpactOutcome_Import-Export'!R$7:R$13,MATCH($A66,'ImpactOutcome_Import-Export'!$B$7:$B$13,0))),\"\"))","v":""},null,null,"",null,null,null,"",null,null,null,"",null,null,null,"",null,null,"",null,""]
[{"$f":"IFERROR(IF(INDEX(Impactlist,MATCH(0,INDEX(COUNTIF(A$10:A66,Impactlist),0,0),0))<>\"\",INDEX(Impactlist,MATCH(0,INDEX(COUNTIF(A$10:A66,Impactlist),0,0),0)),INDEX(Outcomelist,MATCH(0,INDEX(COUNTIF(A$10:A66,Outcomelist),0,0),0))),\"\")","v":""},{"$f":"IFERROR(INDEX('ImpactOutcome_Import-Export'!D$7:D$200,MATCH($A67,'ImpactOutcome_Import-Export'!$B$7:$B$200,0)),\"\")","v":""},{"$f":"IF(B67=\"\",\"\",IFERROR(INDEX('ImpactOutcome_Import-Export'!F$7:F$13,MATCH($A67,'ImpactOutcome_Import-Export'!$B$7:$B$13,0)),\"\"))","v":""},{"$f":"IF(B67=\"\",\"\",IFERROR(IF(INDEX('ImpactOutcome_Import-Export'!K$7:K$13,MATCH($A67,'ImpactOutcome_Import-Export'!$B$7:$B$13,0))=\"\",\"\",INDEX('ImpactOutcome_Import-Export'!K$7:K$13,MATCH($A67,'ImpactOutcome_Import-Export'!$B$7:$B$13,0))),\"\"))","v":""},{"$f":"IF(B67=\"\",\"\",IFERROR(IF(INDEX('ImpactOutcome_Import-Export'!L$7:L$13,MATCH($A67,'ImpactOutcome_Import-Export'!$B$7:$B$13,0))=\"\",\"\",INDEX('ImpactOutcome_Import-Export'!L$7:L$13,MATCH($A67,'ImpactOutcome_Import-Export'!$B$7:$B$13,0))),\"\"))","v":""},{"$f":"IF(B67=\"\",\"\",IFERROR(IF(INDEX('ImpactOutcome_Import-Export'!M$7:M$13,MATCH($A67,'ImpactOutcome_Import-Export'!$B$7:$B$13,0))=\"\",\"\",INDEX('ImpactOutcome_Import-Export'!M$7:M$13,MATCH($A67,'ImpactOutcome_Import-Export'!$B$7:$B$13,0))),\"\"))","v":""},{"$f":"IF(B67=\"\",\"\",IFERROR(IF(INDEX('ImpactOutcome_Import-Export'!N$7:N$13,MATCH($A67,'ImpactOutcome_Import-Export'!$B$7:$B$13,0))=\"\",\"\",INDEX('ImpactOutcome_Import-Export'!N$7:N$13,MATCH($A67,'ImpactOutcome_Import-Export'!$B$7:$B$13,0))),\"\"))","v":""},{"$f":"IF(B67=\"\",\"\",IFERROR(IF(INDEX('ImpactOutcome_Import-Export'!O$7:O$13,MATCH($A67,'ImpactOutcome_Import-Export'!$B$7:$B$13,0))=\"\",\"\",INDEX('ImpactOutcome_Import-Export'!O$7:O$13,MATCH($A67,'ImpactOutcome_Import-Export'!$B$7:$B$13,0))),\"\"))","v":""},{"$f":"IF(B67=\"\",\"\",IFERROR(IF(INDEX('ImpactOutcome_Import-Export'!P$7:P$13,MATCH($A67,'ImpactOutcome_Import-Export'!$B$7:$B$13,0))=\"\",\"\",INDEX('ImpactOutcome_Import-Export'!P$7:P$13,MATCH($A67,'ImpactOutcome_Import-Export'!$B$7:$B$13,0))),\"\"))","v":""},{"$f":"IF(B67=\"\",\"\",IFERROR(IF(INDEX('ImpactOutcome_Import-Export'!Q$7:Q$13,MATCH($A67,'ImpactOutcome_Import-Export'!$B$7:$B$13,0))=\"\",\"\",INDEX('ImpactOutcome_Import-Export'!Q$7:Q$13,MATCH($A67,'ImpactOutcome_Import-Export'!$B$7:$B$13,0))),\"\"))","v":""},{"$f":"IF(B67=\"\",\"\",IFERROR(IF(INDEX('ImpactOutcome_Import-Export'!R$7:R$13,MATCH($A67,'ImpactOutcome_Import-Export'!$B$7:$B$13,0))=\"\",\"\",INDEX('ImpactOutcome_Import-Export'!R$7:R$13,MATCH($A67,'ImpactOutcome_Import-Export'!$B$7:$B$13,0))),\"\"))","v":""},null,null,"",null,null,null,"",null,null,null,"",null,null,null,"",null,null,"",null,""]
[{"$f":"IFERROR(IF(INDEX(Impactlist,MATCH(0,INDEX(COUNTIF(A$10:A67,Impactlist),0,0),0))<>\"\",INDEX(Impactlist,MATCH(0,INDEX(COUNTIF(A$10:A67,Impactlist),0,0),0)),INDEX(Outcomelist,MATCH(0,INDEX(COUNTIF(A$10:A67,Outcomelist),0,0),0))),\"\")","v":""},{"$f":"IFERROR(INDEX('ImpactOutcome_Import-Export'!D$7:D$200,MATCH($A68,'ImpactOutcome_Import-Export'!$B$7:$B$200,0)),\"\")","v":""},{"$f":"IF(B68=\"\",\"\",IFERROR(INDEX('ImpactOutcome_Import-Export'!F$7:F$13,MATCH($A68,'ImpactOutcome_Import-Export'!$B$7:$B$13,0)),\"\"))","v":""},{"$f":"IF(B68=\"\",\"\",IFERROR(IF(INDEX('ImpactOutcome_Import-Export'!K$7:K$13,MATCH($A68,'ImpactOutcome_Import-Export'!$B$7:$B$13,0))=\"\",\"\",INDEX('ImpactOutcome_Import-Export'!K$7:K$13,MATCH($A68,'ImpactOutcome_Import-Export'!$B$7:$B$13,0))),\"\"))","v":""},{"$f":"IF(B68=\"\",\"\",IFERROR(IF(INDEX('ImpactOutcome_Import-Export'!L$7:L$13,MATCH($A68,'ImpactOutcome_Import-Export'!$B$7:$B$13,0))=\"\",\"\",INDEX('ImpactOutcome_Import-Export'!L$7:L$13,MATCH($A68,'ImpactOutcome_Import-Export'!$B$7:$B$13,0))),\"\"))","v":""},{"$f":"IF(B68=\"\",\"\",IFERROR(IF(INDEX('ImpactOutcome_Import-Export'!M$7:M$13,MATCH($A68,'ImpactOutcome_Import-Export'!$B$7:$B$13,0))=\"\",\"\",INDEX('ImpactOutcome_Import-Export'!M$7:M$13,MATCH($A68,'ImpactOutcome_Import-Export'!$B$7:$B$13,0))),\"\"))","v":""},{"$f":"IF(B68=\"\",\"\",IFERROR(IF(INDEX('ImpactOutcome_Import-Export'!N$7:N$13,MATCH($A68,'ImpactOutcome_Import-Export'!$B$7:$B$13,0))=\"\",\"\",INDEX('ImpactOutcome_Import-Export'!N$7:N$13,MATCH($A68,'ImpactOutcome_Import-Export'!$B$7:$B$13,0))),\"\"))","v":""},{"$f":"IF(B68=\"\",\"\",IFERROR(IF(INDEX('ImpactOutcome_Import-Export'!O$7:O$13,MATCH($A68,'ImpactOutcome_Import-Export'!$B$7:$B$13,0))=\"\",\"\",INDEX('ImpactOutcome_Import-Export'!O$7:O$13,MATCH($A68,'ImpactOutcome_Import-Export'!$B$7:$B$13,0))),\"\"))","v":""},{"$f":"IF(B68=\"\",\"\",IFERROR(IF(INDEX('ImpactOutcome_Import-Export'!P$7:P$13,MATCH($A68,'ImpactOutcome_Import-Export'!$B$7:$B$13,0))=\"\",\"\",INDEX('ImpactOutcome_Import-Export'!P$7:P$13,MATCH($A68,'ImpactOutcome_Import-Export'!$B$7:$B$13,0))),\"\"))","v":""},{"$f":"IF(B68=\"\",\"\",IFERROR(IF(INDEX('ImpactOutcome_Import-Export'!Q$7:Q$13,MATCH($A68,'ImpactOutcome_Import-Export'!$B$7:$B$13,0))=\"\",\"\",INDEX('ImpactOutcome_Import-Export'!Q$7:Q$13,MATCH($A68,'ImpactOutcome_Import-Export'!$B$7:$B$13,0))),\"\"))","v":""},{"$f":"IF(B68=\"\",\"\",IFERROR(IF(INDEX('ImpactOutcome_Import-Export'!R$7:R$13,MATCH($A68,'ImpactOutcome_Import-Export'!$B$7:$B$13,0))=\"\",\"\",INDEX('ImpactOutcome_Import-Export'!R$7:R$13,MATCH($A68,'ImpactOutcome_Import-Export'!$B$7:$B$13,0))),\"\"))","v":""},null,null,"",null,null,null,"",null,null,null,"",null,null,null,"",null,null,"",null,""]
[{"$f":"IFERROR(IF(INDEX(Impactlist,MATCH(0,INDEX(COUNTIF(A$10:A68,Impactlist),0,0),0))<>\"\",INDEX(Impactlist,MATCH(0,INDEX(COUNTIF(A$10:A68,Impactlist),0,0),0)),INDEX(Outcomelist,MATCH(0,INDEX(COUNTIF(A$10:A68,Outcomelist),0,0),0))),\"\")","v":""},{"$f":"IFERROR(INDEX('ImpactOutcome_Import-Export'!D$7:D$200,MATCH($A69,'ImpactOutcome_Import-Export'!$B$7:$B$200,0)),\"\")","v":""},{"$f":"IF(B69=\"\",\"\",IFERROR(INDEX('ImpactOutcome_Import-Export'!F$7:F$13,MATCH($A69,'ImpactOutcome_Import-Export'!$B$7:$B$13,0)),\"\"))","v":""},{"$f":"IF(B69=\"\",\"\",IFERROR(IF(INDEX('ImpactOutcome_Import-Export'!K$7:K$13,MATCH($A69,'ImpactOutcome_Import-Export'!$B$7:$B$13,0))=\"\",\"\",INDEX('ImpactOutcome_Import-Export'!K$7:K$13,MATCH($A69,'ImpactOutcome_Import-Export'!$B$7:$B$13,0))),\"\"))","v":""},{"$f":"IF(B69=\"\",\"\",IFERROR(IF(INDEX('ImpactOutcome_Import-Export'!L$7:L$13,MATCH($A69,'ImpactOutcome_Import-Export'!$B$7:$B$13,0))=\"\",\"\",INDEX('ImpactOutcome_Import-Export'!L$7:L$13,MATCH($A69,'ImpactOutcome_Import-Export'!$B$7:$B$13,0))),\"\"))","v":""},{"$f":"IF(B69=\"\",\"\",IFERROR(IF(INDEX('ImpactOutcome_Import-Export'!M$7:M$13,MATCH($A69,'ImpactOutcome_Import-Export'!$B$7:$B$13,0))=\"\",\"\",INDEX('ImpactOutcome_Import-Export'!M$7:M$13,MATCH($A69,'ImpactOutcome_Import-Export'!$B$7:$B$13,0))),\"\"))","v":""},{"$f":"IF(B69=\"\",\"\",IFERROR(IF(INDEX('ImpactOutcome_Import-Export'!N$7:N$13,MATCH($A69,'ImpactOutcome_Import-Export'!$B$7:$B$13,0))=\"\",\"\",INDEX('ImpactOutcome_Import-Export'!N$7:N$13,MATCH($A69,'ImpactOutcome_Import-Export'!$B$7:$B$13,0))),\"\"))","v":""},{"$f":"IF(B69=\"\",\"\",IFERROR(IF(INDEX('ImpactOutcome_Import-Export'!O$7:O$13,MATCH($A69,'ImpactOutcome_Import-Export'!$B$7:$B$13,0))=\"\",\"\",INDEX('ImpactOutcome_Import-Export'!O$7:O$13,MATCH($A69,'ImpactOutcome_Import-Export'!$B$7:$B$13,0))),\"\"))","v":""},{"$f":"IF(B69=\"\",\"\",IFERROR(IF(INDEX('ImpactOutcome_Import-Export'!P$7:P$13,MATCH($A69,'ImpactOutcome_Import-Export'!$B$7:$B$13,0))=\"\",\"\",INDEX('ImpactOutcome_Import-Export'!P$7:P$13,MATCH($A69,'ImpactOutcome_Import-Export'!$B$7:$B$13,0))),\"\"))","v":""},{"$f":"IF(B69=\"\",\"\",IFERROR(IF(INDEX('ImpactOutcome_Import-Export'!Q$7:Q$13,MATCH($A69,'ImpactOutcome_Import-Export'!$B$7:$B$13,0))=\"\",\"\",INDEX('ImpactOutcome_Import-Export'!Q$7:Q$13,MATCH($A69,'ImpactOutcome_Import-Export'!$B$7:$B$13,0))),\"\"))","v":""},{"$f":"IF(B69=\"\",\"\",IFERROR(IF(INDEX('ImpactOutcome_Import-Export'!R$7:R$13,MATCH($A69,'ImpactOutcome_Import-Export'!$B$7:$B$13,0))=\"\",\"\",INDEX('ImpactOutcome_Import-Export'!R$7:R$13,MATCH($A69,'ImpactOutcome_Import-Export'!$B$7:$B$13,0))),\"\"))","v":""},null,null,"",null,null,null,"",null,null,null,"",null,null,null,"",null,null,"",null,""]
[{"$f":"IFERROR(IF(INDEX(Impactlist,MATCH(0,INDEX(COUNTIF(A$10:A69,Impactlist),0,0),0))<>\"\",INDEX(Impactlist,MATCH(0,INDEX(COUNTIF(A$10:A69,Impactlist),0,0),0)),INDEX(Outcomelist,MATCH(0,INDEX(COUNTIF(A$10:A69,Outcomelist),0,0),0))),\"\")","v":""},{"$f":"IFERROR(INDEX('ImpactOutcome_Import-Export'!D$7:D$200,MATCH($A70,'ImpactOutcome_Import-Export'!$B$7:$B$200,0)),\"\")","v":""},{"$f":"IF(B70=\"\",\"\",IFERROR(INDEX('ImpactOutcome_Import-Export'!F$7:F$13,MATCH($A70,'ImpactOutcome_Import-Export'!$B$7:$B$13,0)),\"\"))","v":""},{"$f":"IF(B70=\"\",\"\",IFERROR(IF(INDEX('ImpactOutcome_Import-Export'!K$7:K$13,MATCH($A70,'ImpactOutcome_Import-Export'!$B$7:$B$13,0))=\"\",\"\",INDEX('ImpactOutcome_Import-Export'!K$7:K$13,MATCH($A70,'ImpactOutcome_Import-Export'!$B$7:$B$13,0))),\"\"))","v":""},{"$f":"IF(B70=\"\",\"\",IFERROR(IF(INDEX('ImpactOutcome_Import-Export'!L$7:L$13,MATCH($A70,'ImpactOutcome_Import-Export'!$B$7:$B$13,0))=\"\",\"\",INDEX('ImpactOutcome_Import-Export'!L$7:L$13,MATCH($A70,'ImpactOutcome_Import-Export'!$B$7:$B$13,0))),\"\"))","v":""},{"$f":"IF(B70=\"\",\"\",IFERROR(IF(INDEX('ImpactOutcome_Import-Export'!M$7:M$13,MATCH($A70,'ImpactOutcome_Import-Export'!$B$7:$B$13,0))=\"\",\"\",INDEX('ImpactOutcome_Import-Export'!M$7:M$13,MATCH($A70,'ImpactOutcome_Import-Export'!$B$7:$B$13,0))),\"\"))","v":""},{"$f":"IF(B70=\"\",\"\",IFERROR(IF(INDEX('ImpactOutcome_Import-Export'!N$7:N$13,MATCH($A70,'ImpactOutcome_Import-Export'!$B$7:$B$13,0))=\"\",\"\",INDEX('ImpactOutcome_Import-Export'!N$7:N$13,MATCH($A70,'ImpactOutcome_Import-Export'!$B$7:$B$13,0))),\"\"))","v":""},{"$f":"IF(B70=\"\",\"\",IFERROR(IF(INDEX('ImpactOutcome_Import-Export'!O$7:O$13,MATCH($A70,'ImpactOutcome_Import-Export'!$B$7:$B$13,0))=\"\",\"\",INDEX('ImpactOutcome_Import-Export'!O$7:O$13,MATCH($A70,'ImpactOutcome_Import-Export'!$B$7:$B$13,0))),\"\"))","v":""},{"$f":"IF(B70=\"\",\"\",IFERROR(IF(INDEX('ImpactOutcome_Import-Export'!P$7:P$13,MATCH($A70,'ImpactOutcome_Import-Export'!$B$7:$B$13,0))=\"\",\"\",INDEX('ImpactOutcome_Import-Export'!P$7:P$13,MATCH($A70,'ImpactOutcome_Import-Export'!$B$7:$B$13,0))),\"\"))","v":""},{"$f":"IF(B70=\"\",\"\",IFERROR(IF(INDEX('ImpactOutcome_Import-Export'!Q$7:Q$13,MATCH($A70,'ImpactOutcome_Import-Export'!$B$7:$B$13,0))=\"\",\"\",INDEX('ImpactOutcome_Import-Export'!Q$7:Q$13,MATCH($A70,'ImpactOutcome_Import-Export'!$B$7:$B$13,0))),\"\"))","v":""},{"$f":"IF(B70=\"\",\"\",IFERROR(IF(INDEX('ImpactOutcome_Import-Export'!R$7:R$13,MATCH($A70,'ImpactOutcome_Import-Export'!$B$7:$B$13,0))=\"\",\"\",INDEX('ImpactOutcome_Import-Export'!R$7:R$13,MATCH($A70,'ImpactOutcome_Import-Export'!$B$7:$B$13,0))),\"\"))","v":""},null,null,"",null,null,null,"",null,null,null,"",null,null,null,"",null,null,"",null,""]
[{"$f":"IFERROR(IF(INDEX(Impactlist,MATCH(0,INDEX(COUNTIF(A$10:A70,Impactlist),0,0),0))<>\"\",INDEX(Impactlist,MATCH(0,INDEX(COUNTIF(A$10:A70,Impactlist),0,0),0)),INDEX(Outcomelist,MATCH(0,INDEX(COUNTIF(A$10:A70,Outcomelist),0,0),0))),\"\")","v":""},{"$f":"IFERROR(INDEX('ImpactOutcome_Import-Export'!D$7:D$200,MATCH($A71,'ImpactOutcome_Import-Export'!$B$7:$B$200,0)),\"\")","v":""},{"$f":"IF(B71=\"\",\"\",IFERROR(INDEX('ImpactOutcome_Import-Export'!F$7:F$13,MATCH($A71,'ImpactOutcome_Import-Export'!$B$7:$B$13,0)),\"\"))","v":""},{"$f":"IF(B71=\"\",\"\",IFERROR(IF(INDEX('ImpactOutcome_Import-Export'!K$7:K$13,MATCH($A71,'ImpactOutcome_Import-Export'!$B$7:$B$13,0))=\"\",\"\",INDEX('ImpactOutcome_Import-Export'!K$7:K$13,MATCH($A71,'ImpactOutcome_Import-Export'!$B$7:$B$13,0))),\"\"))","v":""},{"$f":"IF(B71=\"\",\"\",IFERROR(IF(INDEX('ImpactOutcome_Import-Export'!L$7:L$13,MATCH($A71,'ImpactOutcome_Import-Export'!$B$7:$B$13,0))=\"\",\"\",INDEX('ImpactOutcome_Import-Export'!L$7:L$13,MATCH($A71,'ImpactOutcome_Import-Export'!$B$7:$B$13,0))),\"\"))","v":""},{"$f":"IF(B71=\"\",\"\",IFERROR(IF(INDEX('ImpactOutcome_Import-Export'!M$7:M$13,MATCH($A71,'ImpactOutcome_Import-Export'!$B$7:$B$13,0))=\"\",\"\",INDEX('ImpactOutcome_Import-Export'!M$7:M$13,MATCH($A71,'ImpactOutcome_Import-Export'!$B$7:$B$13,0))),\"\"))","v":""},{"$f":"IF(B71=\"\",\"\",IFERROR(IF(INDEX('ImpactOutcome_Import-Export'!N$7:N$13,MATCH($A71,'ImpactOutcome_Import-Export'!$B$7:$B$13,0))=\"\",\"\",INDEX('ImpactOutcome_Import-Export'!N$7:N$13,MATCH($A71,'ImpactOutcome_Import-Export'!$B$7:$B$13,0))),\"\"))","v":""},{"$f":"IF(B71=\"\",\"\",IFERROR(IF(INDEX('ImpactOutcome_Import-Export'!O$7:O$13,MATCH($A71,'ImpactOutcome_Import-Export'!$B$7:$B$13,0))=\"\",\"\",INDEX('ImpactOutcome_Import-Export'!O$7:O$13,MATCH($A71,'ImpactOutcome_Import-Export'!$B$7:$B$13,0))),\"\"))","v":""},{"$f":"IF(B71=\"\",\"\",IFERROR(IF(INDEX('ImpactOutcome_Import-Export'!P$7:P$13,MATCH($A71,'ImpactOutcome_Import-Export'!$B$7:$B$13,0))=\"\",\"\",INDEX('ImpactOutcome_Import-Export'!P$7:P$13,MATCH($A71,'ImpactOutcome_Import-Export'!$B$7:$B$13,0))),\"\"))","v":""},{"$f":"IF(B71=\"\",\"\",IFERROR(IF(INDEX('ImpactOutcome_Import-Export'!Q$7:Q$13,MATCH($A71,'ImpactOutcome_Import-Export'!$B$7:$B$13,0))=\"\",\"\",INDEX('ImpactOutcome_Import-Export'!Q$7:Q$13,MATCH($A71,'ImpactOutcome_Import-Export'!$B$7:$B$13,0))),\"\"))","v":""},{"$f":"IF(B71=\"\",\"\",IFERROR(IF(INDEX('ImpactOutcome_Import-Export'!R$7:R$13,MATCH($A71,'ImpactOutcome_Import-Export'!$B$7:$B$13,0))=\"\",\"\",INDEX('ImpactOutcome_Import-Export'!R$7:R$13,MATCH($A71,'ImpactOutcome_Import-Export'!$B$7:$B$13,0))),\"\"))","v":""},null,null,"",null,null,null,"",null,null,null,"",null,null,null,"",null,null,"",null,""]
[{"$f":"IFERROR(IF(INDEX(Impactlist,MATCH(0,INDEX(COUNTIF(A$10:A71,Impactlist),0,0),0))<>\"\",INDEX(Impactlist,MATCH(0,INDEX(COUNTIF(A$10:A71,Impactlist),0,0),0)),INDEX(Outcomelist,MATCH(0,INDEX(COUNTIF(A$10:A71,Outcomelist),0,0),0))),\"\")","v":""},{"$f":"IFERROR(INDEX('ImpactOutcome_Import-Export'!D$7:D$200,MATCH($A72,'ImpactOutcome_Import-Export'!$B$7:$B$200,0)),\"\")","v":""},{"$f":"IF(B72=\"\",\"\",IFERROR(INDEX('ImpactOutcome_Import-Export'!F$7:F$13,MATCH($A72,'ImpactOutcome_Import-Export'!$B$7:$B$13,0)),\"\"))","v":""},{"$f":"IF(B72=\"\",\"\",IFERROR(IF(INDEX('ImpactOutcome_Import-Export'!K$7:K$13,MATCH($A72,'ImpactOutcome_Import-Export'!$B$7:$B$13,0))=\"\",\"\",INDEX('ImpactOutcome_Import-Export'!K$7:K$13,MATCH($A72,'ImpactOutcome_Import-Export'!$B$7:$B$13,0))),\"\"))","v":""},{"$f":"IF(B72=\"\",\"\",IFERROR(IF(INDEX('ImpactOutcome_Import-Export'!L$7:L$13,MATCH($A72,'ImpactOutcome_Import-Export'!$B$7:$B$13,0))=\"\",\"\",INDEX('ImpactOutcome_Import-Export'!L$7:L$13,MATCH($A72,'ImpactOutcome_Import-Export'!$B$7:$B$13,0))),\"\"))","v":""},{"$f":"IF(B72=\"\",\"\",IFERROR(IF(INDEX('ImpactOutcome_Import-Export'!M$7:M$13,MATCH($A72,'ImpactOutcome_Import-Export'!$B$7:$B$13,0))=\"\",\"\",INDEX('ImpactOutcome_Import-Export'!M$7:M$13,MATCH($A72,'ImpactOutcome_Import-Export'!$B$7:$B$13,0))),\"\"))","v":""},{"$f":"IF(B72=\"\",\"\",IFERROR(IF(INDEX('ImpactOutcome_Import-Export'!N$7:N$13,MATCH($A72,'ImpactOutcome_Import-Export'!$B$7:$B$13,0))=\"\",\"\",INDEX('ImpactOutcome_Import-Export'!N$7:N$13,MATCH($A72,'ImpactOutcome_Import-Export'!$B$7:$B$13,0))),\"\"))","v":""},{"$f":"IF(B72=\"\",\"\",IFERROR(IF(INDEX('ImpactOutcome_Import-Export'!O$7:O$13,MATCH($A72,'ImpactOutcome_Import-Export'!$B$7:$B$13,0))=\"\",\"\",INDEX('ImpactOutcome_Import-Export'!O$7:O$13,MATCH($A72,'ImpactOutcome_Import-Export'!$B$7:$B$13,0))),\"\"))","v":""},{"$f":"IF(B72=\"\",\"\",IFERROR(IF(INDEX('ImpactOutcome_Import-Export'!P$7:P$13,MATCH($A72,'ImpactOutcome_Import-Export'!$B$7:$B$13,0))=\"\",\"\",INDEX('ImpactOutcome_Import-Export'!P$7:P$13,MATCH($A72,'ImpactOutcome_Import-Export'!$B$7:$B$13,0))),\"\"))","v":""},{"$f":"IF(B72=\"\",\"\",IFERROR(IF(INDEX('ImpactOutcome_Import-Export'!Q$7:Q$13,MATCH($A72,'ImpactOutcome_Import-Export'!$B$7:$B$13,0))=\"\",\"\",INDEX('ImpactOutcome_Import-Export'!Q$7:Q$13,MATCH($A72,'ImpactOutcome_Import-Export'!$B$7:$B$13,0))),\"\"))","v":""},{"$f":"IF(B72=\"\",\"\",IFERROR(IF(INDEX('ImpactOutcome_Import-Export'!R$7:R$13,MATCH($A72,'ImpactOutcome_Import-Export'!$B$7:$B$13,0))=\"\",\"\",INDEX('ImpactOutcome_Import-Export'!R$7:R$13,MATCH($A72,'ImpactOutcome_Import-Export'!$B$7:$B$13,0))),\"\"))","v":""},null,null,"",null,null,null,"",null,null,null,"",null,null,null,"",null,null,"",null,""]
[{"$f":"IFERROR(IF(INDEX(Impactlist,MATCH(0,INDEX(COUNTIF(A$10:A72,Impactlist),0,0),0))<>\"\",INDEX(Impactlist,MATCH(0,INDEX(COUNTIF(A$10:A72,Impactlist),0,0),0)),INDEX(Outcomelist,MATCH(0,INDEX(COUNTIF(A$10:A72,Outcomelist),0,0),0))),\"\")","v":""},{"$f":"IFERROR(INDEX('ImpactOutcome_Import-Export'!D$7:D$200,MATCH($A73,'ImpactOutcome_Import-Export'!$B$7:$B$200,0)),\"\")","v":""},{"$f":"IF(B73=\"\",\"\",IFERROR(INDEX('ImpactOutcome_Import-Export'!F$7:F$13,MATCH($A73,'ImpactOutcome_Import-Export'!$B$7:$B$13,0)),\"\"))","v":""},{"$f":"IF(B73=\"\",\"\",IFERROR(IF(INDEX('ImpactOutcome_Import-Export'!K$7:K$13,MATCH($A73,'ImpactOutcome_Import-Export'!$B$7:$B$13,0))=\"\",\"\",INDEX('ImpactOutcome_Import-Export'!K$7:K$13,MATCH($A73,'ImpactOutcome_Import-Export'!$B$7:$B$13,0))),\"\"))","v":""},{"$f":"IF(B73=\"\",\"\",IFERROR(IF(INDEX('ImpactOutcome_Import-Export'!L$7:L$13,MATCH($A73,'ImpactOutcome_Import-Export'!$B$7:$B$13,0))=\"\",\"\",INDEX('ImpactOutcome_Import-Export'!L$7:L$13,MATCH($A73,'ImpactOutcome_Import-Export'!$B$7:$B$13,0))),\"\"))","v":""},{"$f":"IF(B73=\"\",\"\",IFERROR(IF(INDEX('ImpactOutcome_Import-Export'!M$7:M$13,MATCH($A73,'ImpactOutcome_Import-Export'!$B$7:$B$13,0))=\"\",\"\",INDEX('ImpactOutcome_Import-Export'!M$7:M$13,MATCH($A73,'ImpactOutcome_Import-Export'!$B$7:$B$13,0))),\"\"))","v":""},{"$f":"IF(B73=\"\",\"\",IFERROR(IF(INDEX('ImpactOutcome_Import-Export'!N$7:N$13,MATCH($A73,'ImpactOutcome_Import-Export'!$B$7:$B$13,0))=\"\",\"\",INDEX('ImpactOutcome_Import-Export'!N$7:N$13,MATCH($A73,'ImpactOutcome_Import-Export'!$B$7:$B$13,0))),\"\"))","v":""},{"$f":"IF(B73=\"\",\"\",IFERROR(IF(INDEX('ImpactOutcome_Import-Export'!O$7:O$13,MATCH($A73,'ImpactOutcome_Import-Export'!$B$7:$B$13,0))=\"\",\"\",INDEX('ImpactOutcome_Import-Export'!O$7:O$13,MATCH($A73,'ImpactOutcome_Import-Export'!$B$7:$B$13,0))),\"\"))","v":""},{"$f":"IF(B73=\"\",\"\",IFERROR(IF(INDEX('ImpactOutcome_Import-Export'!P$7:P$13,MATCH($A73,'ImpactOutcome_Import-Export'!$B$7:$B$13,0))=\"\",\"\",INDEX('ImpactOutcome_Import-Export'!P$7:P$13,MATCH($A73,'ImpactOutcome_Import-Export'!$B$7:$B$13,0))),\"\"))","v":""},{"$f":"IF(B73=\"\",\"\",IFERROR(IF(INDEX('ImpactOutcome_Import-Export'!Q$7:Q$13,MATCH($A73,'ImpactOutcome_Import-Export'!$B$7:$B$13,0))=\"\",\"\",INDEX('ImpactOutcome_Import-Export'!Q$7:Q$13,MATCH($A73,'ImpactOutcome_Import-Export'!$B$7:$B$13,0))),\"\"))","v":""},{"$f":"IF(B73=\"\",\"\",IFERROR(IF(INDEX('ImpactOutcome_Import-Export'!R$7:R$13,MATCH($A73,'ImpactOutcome_Import-Export'!$B$7:$B$13,0))=\"\",\"\",INDEX('ImpactOutcome_Import-Export'!R$7:R$13,MATCH($A73,'ImpactOutcome_Import-Export'!$B$7:$B$13,0))),\"\"))","v":""},null,null,"",null,null,null,"",null,null,null,"",null,null,null,"",null,null,"",null,""]
[{"$f":"IFERROR(IF(INDEX(Impactlist,MATCH(0,INDEX(COUNTIF(A$10:A73,Impactlist),0,0),0))<>\"\",INDEX(Impactlist,MATCH(0,INDEX(COUNTIF(A$10:A73,Impactlist),0,0),0)),INDEX(Outcomelist,MATCH(0,INDEX(COUNTIF(A$10:A73,Outcomelist),0,0),0))),\"\")","v":""},{"$f":"IFERROR(INDEX('ImpactOutcome_Import-Export'!D$7:D$200,MATCH($A74,'ImpactOutcome_Import-Export'!$B$7:$B$200,0)),\"\")","v":""},{"$f":"IF(B74=\"\",\"\",IFERROR(INDEX('ImpactOutcome_Import-Export'!F$7:F$13,MATCH($A74,'ImpactOutcome_Import-Export'!$B$7:$B$13,0)),\"\"))","v":""},{"$f":"IF(B74=\"\",\"\",IFERROR(IF(INDEX('ImpactOutcome_Import-Export'!K$7:K$13,MATCH($A74,'ImpactOutcome_Import-Export'!$B$7:$B$13,0))=\"\",\"\",INDEX('ImpactOutcome_Import-Export'!K$7:K$13,MATCH($A74,'ImpactOutcome_Import-Export'!$B$7:$B$13,0))),\"\"))","v":""},{"$f":"IF(B74=\"\",\"\",IFERROR(IF(INDEX('ImpactOutcome_Import-Export'!L$7:L$13,MATCH($A74,'ImpactOutcome_Import-Export'!$B$7:$B$13,0))=\"\",\"\",INDEX('ImpactOutcome_Import-Export'!L$7:L$13,MATCH($A74,'ImpactOutcome_Import-Export'!$B$7:$B$13,0))),\"\"))","v":""},{"$f":"IF(B74=\"\",\"\",IFERROR(IF(INDEX('ImpactOutcome_Import-Export'!M$7:M$13,MATCH($A74,'ImpactOutcome_Import-Export'!$B$7:$B$13,0))=\"\",\"\",INDEX('ImpactOutcome_Import-Export'!M$7:M$13,MATCH($A74,'ImpactOutcome_Import-Export'!$B$7:$B$13,0))),\"\"))","v":""},{"$f":"IF(B74=\"\",\"\",IFERROR(IF(INDEX('ImpactOutcome_Import-Export'!N$7:N$13,MATCH($A74,'ImpactOutcome_Import-Export'!$B$7:$B$13,0))=\"\",\"\",INDEX('ImpactOutcome_Import-Export'!N$7:N$13,MATCH($A74,'ImpactOutcome_Import-Export'!$B$7:$B$13,0))),\"\"))","v":""},{"$f":"IF(B74=\"\",\"\",IFERROR(IF(INDEX('ImpactOutcome_Import-Export'!O$7:O$13,MATCH($A74,'ImpactOutcome_Import-Export'!$B$7:$B$13,0))=\"\",\"\",INDEX('ImpactOutcome_Import-Export'!O$7:O$13,MATCH($A74,'ImpactOutcome_Import-Export'!$B$7:$B$13,0))),\"\"))","v":""},{"$f":"IF(B74=\"\",\"\",IFERROR(IF(INDEX('ImpactOutcome_Import-Export'!P$7:P$13,MATCH($A74,'ImpactOutcome_Import-Export'!$B$7:$B$13,0))=\"\",\"\",INDEX('ImpactOutcome_Import-Export'!P$7:P$13,MATCH($A74,'ImpactOutcome_Import-Export'!$B$7:$B$13,0))),\"\"))","v":""},{"$f":"IF(B74=\"\",\"\",IFERROR(IF(INDEX('ImpactOutcome_Import-Export'!Q$7:Q$13,MATCH($A74,'ImpactOutcome_Import-Export'!$B$7:$B$13,0))=\"\",\"\",INDEX('ImpactOutcome_Import-Export'!Q$7:Q$13,MATCH($A74,'ImpactOutcome_Import-Export'!$B$7:$B$13,0))),\"\"))","v":""},{"$f":"IF(B74=\"\",\"\",IFERROR(IF(INDEX('ImpactOutcome_Import-Export'!R$7:R$13,MATCH($A74,'ImpactOutcome_Import-Export'!$B$7:$B$13,0))=\"\",\"\",INDEX('ImpactOutcome_Import-Export'!R$7:R$13,MATCH($A74,'ImpactOutcome_Import-Export'!$B$7:$B$13,0))),\"\"))","v":""},null,null,"",null,null,null,"",null,null,null,"",null,null,null,"",null,null,"",null,""]
[{"$f":"IFERROR(IF(INDEX(Impactlist,MATCH(0,INDEX(COUNTIF(A$10:A74,Impactlist),0,0),0))<>\"\",INDEX(Impactlist,MATCH(0,INDEX(COUNTIF(A$10:A74,Impactlist),0,0),0)),INDEX(Outcomelist,MATCH(0,INDEX(COUNTIF(A$10:A74,Outcomelist),0,0),0))),\"\")","v":""},{"$f":"IFERROR(INDEX('ImpactOutcome_Import-Export'!D$7:D$200,MATCH($A75,'ImpactOutcome_Import-Export'!$B$7:$B$200,0)),\"\")","v":""},{"$f":"IF(B75=\"\",\"\",IFERROR(INDEX('ImpactOutcome_Import-Export'!F$7:F$13,MATCH($A75,'ImpactOutcome_Import-Export'!$B$7:$B$13,0)),\"\"))","v":""},{"$f":"IF(B75=\"\",\"\",IFERROR(IF(INDEX('ImpactOutcome_Import-Export'!K$7:K$13,MATCH($A75,'ImpactOutcome_Import-Export'!$B$7:$B$13,0))=\"\",\"\",INDEX('ImpactOutcome_Import-Export'!K$7:K$13,MATCH($A75,'ImpactOutcome_Import-Export'!$B$7:$B$13,0))),\"\"))","v":""},{"$f":"IF(B75=\"\",\"\",IFERROR(IF(INDEX('ImpactOutcome_Import-Export'!L$7:L$13,MATCH($A75,'ImpactOutcome_Import-Export'!$B$7:$B$13,0))=\"\",\"\",INDEX('ImpactOutcome_Import-Export'!L$7:L$13,MATCH($A75,'ImpactOutcome_Import-Export'!$B$7:$B$13,0))),\"\"))","v":""},{"$f":"IF(B75=\"\",\"\",IFERROR(IF(INDEX('ImpactOutcome_Import-Export'!M$7:M$13,MATCH($A75,'ImpactOutcome_Import-Export'!$B$7:$B$13,0))=\"\",\"\",INDEX('ImpactOutcome_Import-Export'!M$7:M$13,MATCH($A75,'ImpactOutcome_Import-Export'!$B$7:$B$13,0))),\"\"))","v":""},{"$f":"IF(B75=\"\",\"\",IFERROR(IF(INDEX('ImpactOutcome_Import-Export'!N$7:N$13,MATCH($A75,'ImpactOutcome_Import-Export'!$B$7:$B$13,0))=\"\",\"\",INDEX('ImpactOutcome_Import-Export'!N$7:N$13,MATCH($A75,'ImpactOutcome_Import-Export'!$B$7:$B$13,0))),\"\"))","v":""},{"$f":"IF(B75=\"\",\"\",IFERROR(IF(INDEX('ImpactOutcome_Import-Export'!O$7:O$13,MATCH($A75,'ImpactOutcome_Import-Export'!$B$7:$B$13,0))=\"\",\"\",INDEX('ImpactOutcome_Import-Export'!O$7:O$13,MATCH($A75,'ImpactOutcome_Import-Export'!$B$7:$B$13,0))),\"\"))","v":""},{"$f":"IF(B75=\"\",\"\",IFERROR(IF(INDEX('ImpactOutcome_Import-Export'!P$7:P$13,MATCH($A75,'ImpactOutcome_Import-Export'!$B$7:$B$13,0))=\"\",\"\",INDEX('ImpactOutcome_Import-Export'!P$7:P$13,MATCH($A75,'ImpactOutcome_Import-Export'!$B$7:$B$13,0))),\"\"))","v":""},{"$f":"IF(B75=\"\",\"\",IFERROR(IF(INDEX('ImpactOutcome_Import-Export'!Q$7:Q$13,MATCH($A75,'ImpactOutcome_Import-Export'!$B$7:$B$13,0))=\"\",\"\",INDEX('ImpactOutcome_Import-Export'!Q$7:Q$13,MATCH($A75,'ImpactOutcome_Import-Export'!$B$7:$B$13,0))),\"\"))","v":""},{"$f":"IF(B75=\"\",\"\",IFERROR(IF(INDEX('ImpactOutcome_Import-Export'!R$7:R$13,MATCH($A75,'ImpactOutcome_Import-Export'!$B$7:$B$13,0))=\"\",\"\",INDEX('ImpactOutcome_Import-Export'!R$7:R$13,MATCH($A75,'ImpactOutcome_Import-Export'!$B$7:$B$13,0))),\"\"))","v":""},null,null,"",null,null,null,"",null,null,null,"",null,null,null,"",null,null,"",null,""]
[{"$f":"IFERROR(IF(INDEX(Impactlist,MATCH(0,INDEX(COUNTIF(A$10:A75,Impactlist),0,0),0))<>\"\",INDEX(Impactlist,MATCH(0,INDEX(COUNTIF(A$10:A75,Impactlist),0,0),0)),INDEX(Outcomelist,MATCH(0,INDEX(COUNTIF(A$10:A75,Outcomelist),0,0),0))),\"\")","v":""},{"$f":"IFERROR(INDEX('ImpactOutcome_Import-Export'!D$7:D$200,MATCH($A76,'ImpactOutcome_Import-Export'!$B$7:$B$200,0)),\"\")","v":""},{"$f":"IF(B76=\"\",\"\",IFERROR(INDEX('ImpactOutcome_Import-Export'!F$7:F$13,MATCH($A76,'ImpactOutcome_Import-Export'!$B$7:$B$13,0)),\"\"))","v":""},{"$f":"IF(B76=\"\",\"\",IFERROR(IF(INDEX('ImpactOutcome_Import-Export'!K$7:K$13,MATCH($A76,'ImpactOutcome_Import-Export'!$B$7:$B$13,0))=\"\",\"\",INDEX('ImpactOutcome_Import-Export'!K$7:K$13,MATCH($A76,'ImpactOutcome_Import-Export'!$B$7:$B$13,0))),\"\"))","v":""},{"$f":"IF(B76=\"\",\"\",IFERROR(IF(INDEX('ImpactOutcome_Import-Export'!L$7:L$13,MATCH($A76,'ImpactOutcome_Import-Export'!$B$7:$B$13,0))=\"\",\"\",INDEX('ImpactOutcome_Import-Export'!L$7:L$13,MATCH($A76,'ImpactOutcome_Import-Export'!$B$7:$B$13,0))),\"\"))","v":""},{"$f":"IF(B76=\"\",\"\",IFERROR(IF(INDEX('ImpactOutcome_Import-Export'!M$7:M$13,MATCH($A76,'ImpactOutcome_Import-Export'!$B$7:$B$13,0))=\"\",\"\",INDEX('ImpactOutcome_Import-Export'!M$7:M$13,MATCH($A76,'ImpactOutcome_Import-Export'!$B$7:$B$13,0))),\"\"))","v":""},{"$f":"IF(B76=\"\",\"\",IFERROR(IF(INDEX('ImpactOutcome_Import-Export'!N$7:N$13,MATCH($A76,'ImpactOutcome_Import-Export'!$B$7:$B$13,0))=\"\",\"\",INDEX('ImpactOutcome_Import-Export'!N$7:N$13,MATCH($A76,'ImpactOutcome_Import-Export'!$B$7:$B$13,0))),\"\"))","v":""},{"$f":"IF(B76=\"\",\"\",IFERROR(IF(INDEX('ImpactOutcome_Import-Export'!O$7:O$13,MATCH($A76,'ImpactOutcome_Import-Export'!$B$7:$B$13,0))=\"\",\"\",INDEX('ImpactOutcome_Import-Export'!O$7:O$13,MATCH($A76,'ImpactOutcome_Import-Export'!$B$7:$B$13,0))),\"\"))","v":""},{"$f":"IF(B76=\"\",\"\",IFERROR(IF(INDEX('ImpactOutcome_Import-Export'!P$7:P$13,MATCH($A76,'ImpactOutcome_Import-Export'!$B$7:$B$13,0))=\"\",\"\",INDEX('ImpactOutcome_Import-Export'!P$7:P$13,MATCH($A76,'ImpactOutcome_Import-Export'!$B$7:$B$13,0))),\"\"))","v":""},{"$f":"IF(B76=\"\",\"\",IFERROR(IF(INDEX('ImpactOutcome_Import-Export'!Q$7:Q$13,MATCH($A76,'ImpactOutcome_Import-Export'!$B$7:$B$13,0))=\"\",\"\",INDEX('ImpactOutcome_Import-Export'!Q$7:Q$13,MATCH($A76,'ImpactOutcome_Import-Export'!$B$7:$B$13,0))),\"\"))","v":""},{"$f":"IF(B76=\"\",\"\",IFERROR(IF(INDEX('ImpactOutcome_Import-Export'!R$7:R$13,MATCH($A76,'ImpactOutcome_Import-Export'!$B$7:$B$13,0))=\"\",\"\",INDEX('ImpactOutcome_Import-Export'!R$7:R$13,MATCH($A76,'ImpactOutcome_Import-Export'!$B$7:$B$13,0))),\"\"))","v":""},null,null,"",null,null,null,"",null,null,null,"",null,null,null,"",null,null,"",null,""]
[{"$f":"IFERROR(IF(INDEX(Impactlist,MATCH(0,INDEX(COUNTIF(A$10:A76,Impactlist),0,0),0))<>\"\",INDEX(Impactlist,MATCH(0,INDEX(COUNTIF(A$10:A76,Impactlist),0,0),0)),INDEX(Outcomelist,MATCH(0,INDEX(COUNTIF(A$10:A76,Outcomelist),0,0),0))),\"\")","v":""},{"$f":"IFERROR(INDEX('ImpactOutcome_Import-Export'!D$7:D$200,MATCH($A77,'ImpactOutcome_Import-Export'!$B$7:$B$200,0)),\"\")","v":""},{"$f":"IF(B77=\"\",\"\",IFERROR(INDEX('ImpactOutcome_Import-Export'!F$7:F$13,MATCH($A77,'ImpactOutcome_Import-Export'!$B$7:$B$13,0)),\"\"))","v":""},{"$f":"IF(B77=\"\",\"\",IFERROR(IF(INDEX('ImpactOutcome_Import-Export'!K$7:K$13,MATCH($A77,'ImpactOutcome_Import-Export'!$B$7:$B$13,0))=\"\",\"\",INDEX('ImpactOutcome_Import-Export'!K$7:K$13,MATCH($A77,'ImpactOutcome_Import-Export'!$B$7:$B$13,0))),\"\"))","v":""},{"$f":"IF(B77=\"\",\"\",IFERROR(IF(INDEX('ImpactOutcome_Import-Export'!L$7:L$13,MATCH($A77,'ImpactOutcome_Import-Export'!$B$7:$B$13,0))=\"\",\"\",INDEX('ImpactOutcome_Import-Export'!L$7:L$13,MATCH($A77,'ImpactOutcome_Import-Export'!$B$7:$B$13,0))),\"\"))","v":""},{"$f":"IF(B77=\"\",\"\",IFERROR(IF(INDEX('ImpactOutcome_Import-Export'!M$7:M$13,MATCH($A77,'ImpactOutcome_Import-Export'!$B$7:$B$13,0))=\"\",\"\",INDEX('ImpactOutcome_Import-Export'!M$7:M$13,MATCH($A77,'ImpactOutcome_Import-Export'!$B$7:$B$13,0))),\"\"))","v":""},{"$f":"IF(B77=\"\",\"\",IFERROR(IF(INDEX('ImpactOutcome_Import-Export'!N$7:N$13,MATCH($A77,'ImpactOutcome_Import-Export'!$B$7:$B$13,0))=\"\",\"\",INDEX('ImpactOutcome_Import-Export'!N$7:N$13,MATCH($A77,'ImpactOutcome_Import-Export'!$B$7:$B$13,0))),\"\"))","v":""},{"$f":"IF(B77=\"\",\"\",IFERROR(IF(INDEX('ImpactOutcome_Import-Export'!O$7:O$13,MATCH($A77,'ImpactOutcome_Import-Export'!$B$7:$B$13,0))=\"\",\"\",INDEX('ImpactOutcome_Import-Export'!O$7:O$13,MATCH($A77,'ImpactOutcome_Import-Export'!$B$7:$B$13,0))),\"\"))","v":""},{"$f":"IF(B77=\"\",\"\",IFERROR(IF(INDEX('ImpactOutcome_Import-Export'!P$7:P$13,MATCH($A77,'ImpactOutcome_Import-Export'!$B$7:$B$13,0))=\"\",\"\",INDEX('ImpactOutcome_Import-Export'!P$7:P$13,MATCH($A77,'ImpactOutcome_Import-Export'!$B$7:$B$13,0))),\"\"))","v":""},{"$f":"IF(B77=\"\",\"\",IFERROR(IF(INDEX('ImpactOutcome_Import-Export'!Q$7:Q$13,MATCH($A77,'ImpactOutcome_Import-Export'!$B$7:$B$13,0))=\"\",\"\",INDEX('ImpactOutcome_Import-Export'!Q$7:Q$13,MATCH($A77,'ImpactOutcome_Import-Export'!$B$7:$B$13,0))),\"\"))","v":""},{"$f":"IF(B77=\"\",\"\",IFERROR(IF(INDEX('ImpactOutcome_Import-Export'!R$7:R$13,MATCH($A77,'ImpactOutcome_Import-Export'!$B$7:$B$13,0))=\"\",\"\",INDEX('ImpactOutcome_Import-Export'!R$7:R$13,MATCH($A77,'ImpactOutcome_Import-Export'!$B$7:$B$13,0))),\"\"))","v":""},null,null,"",null,null,null,"",null,null,null,"",null,null,null,"",null,null,"",null,""]
[{"$f":"IFERROR(IF(INDEX(Impactlist,MATCH(0,INDEX(COUNTIF(A$10:A77,Impactlist),0,0),0))<>\"\",INDEX(Impactlist,MATCH(0,INDEX(COUNTIF(A$10:A77,Impactlist),0,0),0)),INDEX(Outcomelist,MATCH(0,INDEX(COUNTIF(A$10:A77,Outcomelist),0,0),0))),\"\")","v":""},{"$f":"IFERROR(INDEX('ImpactOutcome_Import-Export'!D$7:D$200,MATCH($A78,'ImpactOutcome_Import-Export'!$B$7:$B$200,0)),\"\")","v":""},{"$f":"IF(B78=\"\",\"\",IFERROR(INDEX('ImpactOutcome_Import-Export'!F$7:F$13,MATCH($A78,'ImpactOutcome_Import-Export'!$B$7:$B$13,0)),\"\"))","v":""},{"$f":"IF(B78=\"\",\"\",IFERROR(IF(INDEX('ImpactOutcome_Import-Export'!K$7:K$13,MATCH($A78,'ImpactOutcome_Import-Export'!$B$7:$B$13,0))=\"\",\"\",INDEX('ImpactOutcome_Import-Export'!K$7:K$13,MATCH($A78,'ImpactOutcome_Import-Export'!$B$7:$B$13,0))),\"\"))","v":""},{"$f":"IF(B78=\"\",\"\",IFERROR(IF(INDEX('ImpactOutcome_Import-Export'!L$7:L$13,MATCH($A78,'ImpactOutcome_Import-Export'!$B$7:$B$13,0))=\"\",\"\",INDEX('ImpactOutcome_Import-Export'!L$7:L$13,MATCH($A78,'ImpactOutcome_Import-Export'!$B$7:$B$13,0))),\"\"))","v":""},{"$f":"IF(B78=\"\",\"\",IFERROR(IF(INDEX('ImpactOutcome_Import-Export'!M$7:M$13,MATCH($A78,'ImpactOutcome_Import-Export'!$B$7:$B$13,0))=\"\",\"\",INDEX('ImpactOutcome_Import-Export'!M$7:M$13,MATCH($A78,'ImpactOutcome_Import-Export'!$B$7:$B$13,0))),\"\"))","v":""},{"$f":"IF(B78=\"\",\"\",IFERROR(IF(INDEX('ImpactOutcome_Import-Export'!N$7:N$13,MATCH($A78,'ImpactOutcome_Import-Export'!$B$7:$B$13,0))=\"\",\"\",INDEX('ImpactOutcome_Import-Export'!N$7:N$13,MATCH($A78,'ImpactOutcome_Import-Export'!$B$7:$B$13,0))),\"\"))","v":""},{"$f":"IF(B78=\"\",\"\",IFERROR(IF(INDEX('ImpactOutcome_Import-Export'!O$7:O$13,MATCH($A78,'ImpactOutcome_Import-Export'!$B$7:$B$13,0))=\"\",\"\",INDEX('ImpactOutcome_Import-Export'!O$7:O$13,MATCH($A78,'ImpactOutcome_Import-Export'!$B$7:$B$13,0))),\"\"))","v":""},{"$f":"IF(B78=\"\",\"\",IFERROR(IF(INDEX('ImpactOutcome_Import-Export'!P$7:P$13,MATCH($A78,'ImpactOutcome_Import-Export'!$B$7:$B$13,0))=\"\",\"\",INDEX('ImpactOutcome_Import-Export'!P$7:P$13,MATCH($A78,'ImpactOutcome_Import-Export'!$B$7:$B$13,0))),\"\"))","v":""},{"$f":"IF(B78=\"\",\"\",IFERROR(IF(INDEX('ImpactOutcome_Import-Export'!Q$7:Q$13,MATCH($A78,'ImpactOutcome_Import-Export'!$B$7:$B$13,0))=\"\",\"\",INDEX('ImpactOutcome_Import-Export'!Q$7:Q$13,MATCH($A78,'ImpactOutcome_Import-Export'!$B$7:$B$13,0))),\"\"))","v":""},{"$f":"IF(B78=\"\",\"\",IFERROR(IF(INDEX('ImpactOutcome_Import-Export'!R$7:R$13,MATCH($A78,'ImpactOutcome_Import-Export'!$B$7:$B$13,0))=\"\",\"\",INDEX('ImpactOutcome_Import-Export'!R$7:R$13,MATCH($A78,'ImpactOutcome_Import-Export'!$B$7:$B$13,0))),\"\"))","v":""},null,null,"",null,null,null,"",null,null,null,"",null,null,null,"",null,null,"",null,""]
[{"$f":"IFERROR(IF(INDEX(Impactlist,MATCH(0,INDEX(COUNTIF(A$10:A78,Impactlist),0,0),0))<>\"\",INDEX(Impactlist,MATCH(0,INDEX(COUNTIF(A$10:A78,Impactlist),0,0),0)),INDEX(Outcomelist,MATCH(0,INDEX(COUNTIF(A$10:A78,Outcomelist),0,0),0))),\"\")","v":""},{"$f":"IFERROR(INDEX('ImpactOutcome_Import-Export'!D$7:D$200,MATCH($A79,'ImpactOutcome_Import-Export'!$B$7:$B$200,0)),\"\")","v":""},{"$f":"IF(B79=\"\",\"\",IFERROR(INDEX('ImpactOutcome_Import-Export'!F$7:F$13,MATCH($A79,'ImpactOutcome_Import-Export'!$B$7:$B$13,0)),\"\"))","v":""},{"$f":"IF(B79=\"\",\"\",IFERROR(IF(INDEX('ImpactOutcome_Import-Export'!K$7:K$13,MATCH($A79,'ImpactOutcome_Import-Export'!$B$7:$B$13,0))=\"\",\"\",INDEX('ImpactOutcome_Import-Export'!K$7:K$13,MATCH($A79,'ImpactOutcome_Import-Export'!$B$7:$B$13,0))),\"\"))","v":""},{"$f":"IF(B79=\"\",\"\",IFERROR(IF(INDEX('ImpactOutcome_Import-Export'!L$7:L$13,MATCH($A79,'ImpactOutcome_Import-Export'!$B$7:$B$13,0))=\"\",\"\",INDEX('ImpactOutcome_Import-Export'!L$7:L$13,MATCH($A79,'ImpactOutcome_Import-Export'!$B$7:$B$13,0))),\"\"))","v":""},{"$f":"IF(B79=\"\",\"\",IFERROR(IF(INDEX('ImpactOutcome_Import-Export'!M$7:M$13,MATCH($A79,'ImpactOutcome_Import-Export'!$B$7:$B$13,0))=\"\",\"\",INDEX('ImpactOutcome_Import-Export'!M$7:M$13,MATCH($A79,'ImpactOutcome_Import-Export'!$B$7:$B$13,0))),\"\"))","v":""},{"$f":"IF(B79=\"\",\"\",IFERROR(IF(INDEX('ImpactOutcome_Import-Export'!N$7:N$13,MATCH($A79,'ImpactOutcome_Import-Export'!$B$7:$B$13,0))=\"\",\"\",INDEX('ImpactOutcome_Import-Export'!N$7:N$13,MATCH($A79,'ImpactOutcome_Import-Export'!$B$7:$B$13,0))),\"\"))","v":""},{"$f":"IF(B79=\"\",\"\",IFERROR(IF(INDEX('ImpactOutcome_Import-Export'!O$7:O$13,MATCH($A79,'ImpactOutcome_Import-Export'!$B$7:$B$13,0))=\"\",\"\",INDEX('ImpactOutcome_Import-Export'!O$7:O$13,MATCH($A79,'ImpactOutcome_Import-Export'!$B$7:$B$13,0))),\"\"))","v":""},{"$f":"IF(B79=\"\",\"\",IFERROR(IF(INDEX('ImpactOutcome_Import-Export'!P$7:P$13,MATCH($A79,'ImpactOutcome_Import-Export'!$B$7:$B$13,0))=\"\",\"\",INDEX('ImpactOutcome_Import-Export'!P$7:P$13,MATCH($A79,'ImpactOutcome_Import-Export'!$B$7:$B$13,0))),\"\"))","v":""},{"$f":"IF(B79=\"\",\"\",IFERROR(IF(INDEX('ImpactOutcome_Import-Export'!Q$7:Q$13,MATCH($A79,'ImpactOutcome_Import-Export'!$B$7:$B$13,0))=\"\",\"\",INDEX('ImpactOutcome_Import-Export'!Q$7:Q$13,MATCH($A79,'ImpactOutcome_Import-Export'!$B$7:$B$13,0))),\"\"))","v":""},{"$f":"IF(B79=\"\",\"\",IFERROR(IF(INDEX('ImpactOutcome_Import-Export'!R$7:R$13,MATCH($A79,'ImpactOutcome_Import-Export'!$B$7:$B$13,0))=\"\",\"\",INDEX('ImpactOutcome_Import-Export'!R$7:R$13,MATCH($A79,'ImpactOutcome_Import-Export'!$B$7:$B$13,0))),\"\"))","v":""},null,null,"",null,null,null,"",null,null,null,"",null,null,null,"",null,null,"",null,""]
[{"$f":"IFERROR(IF(INDEX(Impactlist,MATCH(0,INDEX(COUNTIF(A$10:A79,Impactlist),0,0),0))<>\"\",INDEX(Impactlist,MATCH(0,INDEX(COUNTIF(A$10:A79,Impactlist),0,0),0)),INDEX(Outcomelist,MATCH(0,INDEX(COUNTIF(A$10:A79,Outcomelist),0,0),0))),\"\")","v":""},{"$f":"IFERROR(INDEX('ImpactOutcome_Import-Export'!D$7:D$200,MATCH($A80,'ImpactOutcome_Import-Export'!$B$7:$B$200,0)),\"\")","v":""},{"$f":"IF(B80=\"\",\"\",IFERROR(INDEX('ImpactOutcome_Import-Export'!F$7:F$13,MATCH($A80,'ImpactOutcome_Import-Export'!$B$7:$B$13,0)),\"\"))","v":""},{"$f":"IF(B80=\"\",\"\",IFERROR(IF(INDEX('ImpactOutcome_Import-Export'!K$7:K$13,MATCH($A80,'ImpactOutcome_Import-Export'!$B$7:$B$13,0))=\"\",\"\",INDEX('ImpactOutcome_Import-Export'!K$7:K$13,MATCH($A80,'ImpactOutcome_Import-Export'!$B$7:$B$13,0))),\"\"))","v":""},{"$f":"IF(B80=\"\",\"\",IFERROR(IF(INDEX('ImpactOutcome_Import-Export'!L$7:L$13,MATCH($A80,'ImpactOutcome_Import-Export'!$B$7:$B$13,0))=\"\",\"\",INDEX('ImpactOutcome_Import-Export'!L$7:L$13,MATCH($A80,'ImpactOutcome_Import-Export'!$B$7:$B$13,0))),\"\"))","v":""},{"$f":"IF(B80=\"\",\"\",IFERROR(IF(INDEX('ImpactOutcome_Import-Export'!M$7:M$13,MATCH($A80,'ImpactOutcome_Import-Export'!$B$7:$B$13,0))=\"\",\"\",INDEX('ImpactOutcome_Import-Export'!M$7:M$13,MATCH($A80,'ImpactOutcome_Import-Export'!$B$7:$B$13,0))),\"\"))","v":""},{"$f":"IF(B80=\"\",\"\",IFERROR(IF(INDEX('ImpactOutcome_Import-Export'!N$7:N$13,MATCH($A80,'ImpactOutcome_Import-Export'!$B$7:$B$13,0))=\"\",\"\",INDEX('ImpactOutcome_Import-Export'!N$7:N$13,MATCH($A80,'ImpactOutcome_Import-Export'!$B$7:$B$13,0))),\"\"))","v":""},{"$f":"IF(B80=\"\",\"\",IFERROR(IF(INDEX('ImpactOutcome_Import-Export'!O$7:O$13,MATCH($A80,'ImpactOutcome_Import-Export'!$B$7:$B$13,0))=\"\",\"\",INDEX('ImpactOutcome_Import-Export'!O$7:O$13,MATCH($A80,'ImpactOutcome_Import-Export'!$B$7:$B$13,0))),\"\"))","v":""},{"$f":"IF(B80=\"\",\"\",IFERROR(IF(INDEX('ImpactOutcome_Import-Export'!P$7:P$13,MATCH($A80,'ImpactOutcome_Import-Export'!$B$7:$B$13,0))=\"\",\"\",INDEX('ImpactOutcome_Import-Export'!P$7:P$13,MATCH($A80,'ImpactOutcome_Import-Export'!$B$7:$B$13,0))),\"\"))","v":""},{"$f":"IF(B80=\"\",\"\",IFERROR(IF(INDEX('ImpactOutcome_Import-Export'!Q$7:Q$13,MATCH($A80,'ImpactOutcome_Import-Export'!$B$7:$B$13,0))=\"\",\"\",INDEX('ImpactOutcome_Import-Export'!Q$7:Q$13,MATCH($A80,'ImpactOutcome_Import-Export'!$B$7:$B$13,0))),\"\"))","v":""},{"$f":"IF(B80=\"\",\"\",IFERROR(IF(INDEX('ImpactOutcome_Import-Export'!R$7:R$13,MATCH($A80,'ImpactOutcome_Import-Export'!$B$7:$B$13,0))=\"\",\"\",INDEX('ImpactOutcome_Import-Export'!R$7:R$13,MATCH($A80,'ImpactOutcome_Import-Export'!$B$7:$B$13,0))),\"\"))","v":""},null,null,"",null,null,null,"",null,null,null,"",null,null,null,"",null,null,"",null,""]

{"sheet":"ImpactOutcome_Import-Export","index":6,"n_rows":11,"n_cols":38,"rows_kept":11,"cut":false,"hidden":true,"merged":[[2,1,3,1],[2,5,3,5],[2,37,3,37],[2,36,3,36],[2,26,2,28],[2,29,3,29],[2,30,3,30],[2,31,3,31],[2,32,2,34],[2,35,3,35],[2,19,2,21],[0,3,0,5],[2,22,3,22],[2,23,3,23],[2,24,3,24],[2,25,3,25]]}
[null,null,null,"Instructions for population:\n1. Columns C to M should be mapped for download only\n2. Columns N to Z should be mapped for import only\n3. Population should follow same rules as in tab Impact Outcome Indicators_1A of current template with exception that:\na. population should be 1st sorted by field \"Impact Indicator Number\" on the parent record Impact Indicator \nb. It should then be sorted by field \"Year of Target\" on the Impact Indicator Target Result record (e.g. 2016->2017->2018)\n"]
[]
[null,"Mapping ID",null,"Impact / Outcome ","Standard Impact/Outcome Indicator","Name to display","Standard Indicator (English)","Standard Indicator (French)","Standard Indicator (Spanish)","Custom Impact/Outcome Indicator","Baseline\n(ifapplicable)",null,"Target",null,null,"Year of target","Report Due Date","Geography","Comments","Result",null,null,"Year of Result","Source","Comments on results on Impact/Outcome indicators and data sources, and any other comments","Verification Method","Verified Result",null,null,"Year of Result","Source","LFA comments on (a) verified result, (b) source of information used by the PR to report results, including the status of completion of surveys and other methods to measure Impact/Outcome, as applicable,  ","Global Fund Validated Result",null,null,"Global Fund comments","Data validation checks on GF data","Impact Indicator Number"]
["Salesforce ID",null,null,null,null,null,null,null,null,null,"Value","Year","N#","D#","%",null,null,null,null,"N#","D#","%",null,null,null,null,"N#","D#","%",null,null,null,"N#","D#","%",null,null,"Impact Indicator Number"]
[]
["Record ID",null,-1,null,"Impact Indicator Name",null,"Custom Impact Indicator","Impact Indicator Name FR","Impact Indicator Name ES","Custom Impact Indicator Local","Baseline Value","Baseline Year","Target N#","Target D#","Target %","Year of Target","Report Due Date","Country (Name)","Comment","Result N#  (PR)","Result D# (PR)","Result % (PR)","Year of Result (PR)","Data Source Result (PR)","Comments (PR)","Verification Method (LFA)","Verified Result N#  (LFA)","Verified Result D# (LFA)","Verified Result % (LFA)","Year of Result (LFA)","Data Source Result (LFA)","Comments (LFA)",null,null,null,null,null,"Impact Indicator Number"]
[null,{"$f":"IF(D7=\"\",\"\",C7&D7)","v":""},{"$f":"C6+1","v":0},{"$f":"IF(A7<>\"\",\"Impact\",\"\")","v":""},"[Impact Indicator Name]",{"$f":"IF(LangOffset=0,CONCATENATE(E7&G7),IF(LangOffset=1,CONCATENATE(H7&J7),IF(LangOffset=2,I7&J7)))","v":"[Impact Indicator Name][Custom Impact Indicator]"},"[Custom Impact Indicator]","[Impact Indicator Name FR]","[Impact Indicator Name ES]","[Custom Impact Indicator Local]","[Baseline Value]","[Baseline Year]","[Target N#]","[Target D#]","[Target %]","[Year of Target]","[Report Due Date]","[Country (Name)]","[Comment]",{"$f":"IFERROR(IF(INDEX('Impact Outcome Indicators_1A'!L$11:L$80,MATCH('ImpactOutcome_Import-Export'!$B7,'Impact Outcome Indicators_1A'!$A$11:$A$80,0))=\"\",\"\",INDEX('Impact Outcome Indicators_1A'!L$11:L$80,MATCH('ImpactOutcome_Import-Export'!$B7,'Impact Outcome Indicators_1A'!$A$11:$A$80,0))),\"\")","v":""},{"$f":"IFERROR(IF(INDEX('Impact Outcome Indicators_1A'!M$11:M$80,MATCH('ImpactOutcome_Import-Export'!$B7,'Impact Outcome Indicators_1A'!$A$11:$A$80,0))=\"\",\"\",INDEX('Impact Outcome Indicators_1A'!M$11:M$80,MATCH('ImpactOutcome_Import-Export'!$B7,'Impact Outcome Indicators_1A'!$A$11:$A$80,0))),\"\")","v":""},{"$f":"IFERROR(IF(INDEX('Impact Outcome Indicators_1A'!N$11:N$80,MATCH('ImpactOutcome_Import-Export'!$B7,'Impact Outcome Indicators_1A'!$A$11:$A$80,0))=\"\",\"\",INDEX('Impact Outcome Indicators_1A'!N$11:N$80,MATCH('ImpactOutcome_Import-Export'!$B7,'Impact Outcome Indicators_1A'!$A$11:$A$80,0))),\"\")","v":""},{"$f":"IFERROR(IF(INDEX('Impact Outcome Indicators_1A'!O$11:O$80,MATCH('ImpactOutcome_Import-Export'!$B7,'Impact Outcome Indicators_1A'!$A$11:$A$80,0))=\"\",\"\",INDEX('Impact Outcome Indicators_1A'!O$11:O$80,MATCH('ImpactOutcome_Import-Export'!$B7,'Impact Outcome Indicators_1A'!$A$11:$A$80,0))),\"\")","v":""},{"$f":"IFERROR(IF(INDEX('Impact Outcome Indicators_1A'!P$11:P$80,MATCH('ImpactOutcome_Import-Export'!$B7,'Impact Outcome Indicators_1A'!$A$11:$A$80,0))=\"\",\"\",INDEX('Impact Outcome Indicators_1A'!P$11:P$80,MATCH('ImpactOutcome_Import-Export'!$B7,'Impact Outcome Indicators_1A'!$A$11:$A$80,0))),\"\")","v":""},{"$f":"IFERROR(IF(INDEX('Impact Outcome Indicators_1A'!Q$11:Q$80,MATCH('ImpactOutcome_Import-Export'!$B7,'Impact Outcome Indicators_1A'!$A$11:$A$80,0))=\"\",\"\",INDEX('Impact Outcome Indicators_1A'!Q$11:Q$80,MATCH('ImpactOutcome_Import-Export'!$B7,'Impact Outcome Indicators_1A'!$A$11:$A$80,0))),\"\")","v":""},{"$f":"IFERROR(IF(INDEX('Impact Outcome Indicators_1A'!S$11:S$80,MATCH('ImpactOutcome_Import-Export'!$B7,'Impact Outcome Indicators_1A'!$A$11:$A$80,0))=\"\",\"\",INDEX('Impact Outcome Indicators_1A'!S$11:S$80,MATCH('ImpactOutcome_Import-Export'!$B7,'Impact Outcome Indicators_1A'!$A$11:$A$80,0))),\"\")","v":""},{"$f":"IFERROR(IF(INDEX('Impact Outcome Indicators_1A'!T$11:T$80,MATCH('ImpactOutcome_Import-Export'!$B7,'Impact Outcome Indicators_1A'!$A$11:$A$80,0))=\"\",\"\",INDEX('Impact Outcome Indicators_1A'!T$11:T$80,MATCH('ImpactOutcome_Import-Export'!$B7,'Impact Outcome Indicators_1A'!$A$11:$A$80,0))),\"\")","v":""},{"$f":"IFERROR(IF(INDEX('Impact Outcome Indicators_1A'!U$11:U$80,MATCH('ImpactOutcome_Import-Export'!$B7,'Impact Outcome Indicators_1A'!$A$11:$A$80,0))=\"\",\"\",INDEX('Impact Outcome Indicators_1A'!U$11:U$80,MATCH('ImpactOutcome_Import-Export'!$B7,'Impact Outcome Indicators_1A'!$A$11:$A$80,0))),\"\")","v":""},{"$f":"IFERROR(IF(INDEX('Impact Outcome Indicators_1A'!V$11:V$80,MATCH('ImpactOutcome_Import-Export'!$B7,'Impact Outcome Indicators_1A'!$A$11:$A$80,0))=\"\",\"\",INDEX('Impact Outcome Indicators_1A'!V$11:V$80,MATCH('ImpactOutcome_Import-Export'!$B7,'Impact Outcome Indicators_1A'!$A$11:$A$80,0))),\"\")","v":""},{"$f":"IFERROR(IF(INDEX('Impact Outcome Indicators_1A'!W$11:W$80,MATCH('ImpactOutcome_Import-Export'!$B7,'Impact Outcome Indicators_1A'!$A$11:$A$80,0))=\"\",\"\",INDEX('Impact Outcome Indicators_1A'!W$11:W$80,MATCH('ImpactOutcome_Import-Export'!$B7,'Impact Outcome Indicators_1A'!$A$11:$A$80,0))),\"\")","v":""},{"$f":"IFERROR(IF(INDEX('Impact Outcome Indicators_1A'!X$11:X$80,MATCH('ImpactOutcome_Import-Export'!$B7,'Impact Outcome Indicators_1A'!$A$11:$A$80,0))=\"\",\"\",INDEX('Impact Outcome Indicators_1A'!X$11:X$80,MATCH('ImpactOutcome_Import-Export'!$B7,'Impact Outcome Indicators_1A'!$A$11:$A$80,0))),\"\")","v":""},{"$f":"IFERROR(IF(INDEX('Impact Outcome Indicators_1A'!Y$11:Y$80,MATCH('ImpactOutcome_Import-Export'!$B7,'Impact Outcome Indicators_1A'!$A$11:$A$80,0))=\"\",\"\",INDEX('Impact Outcome Indicators_1A'!Y$11:Y$80,MATCH('ImpactOutcome_Import-Export'!$B7,'Impact Outcome Indicators_1A'!$A$11:$A$80,0))),\"\")","v":""},null,null,null,null,{"$f":"IFERROR(INDEX('Impact Outcome Indicators_1A'!AE$11:AE$80,MATCH('ImpactOutcome_Import-Export'!$B7,'Impact Outcome Indicators_1A'!$A$11:$A$80,0)),\"\")","v":""},"[Impact Indicator Number]"]
[]
[]
["Record ID",null,-1,null,"Outcome Indicator Name",null,"Custom Outcome Indicator","Outcome Indicator Name FR","Outcome Indicator Name ES","Custom Outcome Indicator Local","Baseline Value","Baseline Year","Target N#","Target D#","Target %","Year of Target","Report Due Date","Country (Name)","Comment","Result N#  (PR)","Result D# (PR)","Result % (PR)","Year of Result (PR)","Data Source Result (PR)","Comments (PR)","Verification Method (LFA)","Verified Result N#  (LFA)","Verified Result D# (LFA)","Verified Result % (LFA)","Year of Result (LFA)","Data Source Result (LFA)","Comments (LFA)",null,null,null,null,null,"Outcome Indicator Number"]
[null,{"$f":"IF(D11=\"\",\"\",C11&D11)","v":""},{"$f":"C10+1","v":0},{"$f":"IF(A11<>\"\",\"Outcome\",\"\")","v":""},"[Outcome Indicator Name]",{"$f":"IF(LangOffset=0,CONCATENATE(E11&G11),IF(LangOffset=1,CONCATENATE(H11&J11),IF(LangOffset=2,I11&J11)))","v":"[Outcome Indicator Name][Custom Outcome Indicator]"},"[Custom Outcome Indicator]","[Outcome Indicator Name FR]","[Outcome Indicator Name ES]","[Custom Outcome Indicator Local]","[Baseline Value]","[Baseline Year]","[Target N#]","[Target D#]","[Target %]","[Year of Target]","[Report Due Date]","[Country (Name)]","[Comment]",{"$f":"IFERROR(IF(INDEX('Impact Outcome Indicators_1A'!L$11:L$80,MATCH('ImpactOutcome_Import-Export'!$B11,'Impact Outcome Indicators_1A'!$A$11:$A$80,0))=\"\",\"\",INDEX('Impact Outcome Indicators_1A'!L$11:L$80,MATCH('ImpactOutcome_Import-Export'!$B11,'Impact Outcome Indicators_1A'!$A$11:$A$80,0))),\"\")","v":""},{"$f":"IFERROR(IF(INDEX('Impact Outcome Indicators_1A'!M$11:M$80,MATCH('ImpactOutcome_Import-Export'!$B11,'Impact Outcome Indicators_1A'!$A$11:$A$80,0))=\"\",\"\",INDEX('Impact Outcome Indicators_1A'!M$11:M$80,MATCH('ImpactOutcome_Import-Export'!$B11,'Impact Outcome Indicators_1A'!$A$11:$A$80,0))),\"\")","v":""},{"$f":"IFERROR(IF(INDEX('Impact Outcome Indicators_1A'!N$11:N$80,MATCH('ImpactOutcome_Import-Export'!$B11,'Impact Outcome Indicators_1A'!$A$11:$A$80,0))=\"\",\"\",INDEX('Impact Outcome Indicators_1A'!N$11:N$80,MATCH('ImpactOutcome_Import-Export'!$B11,'Impact Outcome Indicators_1A'!$A$11:$A$80,0))),\"\")","v":""},{"$f":"IFERROR(IF(INDEX('Impact Outcome Indicators_1A'!O$11:O$80,MATCH('ImpactOutcome_Import-Export'!$B11,'Impact Outcome Indicators_1A'!$A$11:$A$80,0))=\"\",\"\",INDEX('Impact Outcome Indicators_1A'!O$11:O$80,MATCH('ImpactOutcome_Import-Export'!$B11,'Impact Outcome Indicators_1A'!$A$11:$A$80,0))),\"\")","v":""},{"$f":"IFERROR(IF(INDEX('Impact Outcome Indicators_1A'!P$11:P$80,MATCH('ImpactOutcome_Import-Export'!$B11,'Impact Outcome Indicators_1A'!$A$11:$A$80,0))=\"\",\"\",INDEX('Impact Outcome Indicators_1A'!P$11:P$80,MATCH('ImpactOutcome_Import-Export'!$B11,'Impact Outcome Indicators_1A'!$A$11:$A$80,0))),\"\")","v":""},{"$f":"IFERROR(IF(INDEX('Impact Outcome Indicators_1A'!Q$11:Q$80,MATCH('ImpactOutcome_Import-Export'!$B11,'Impact Outcome Indicators_1A'!$A$11:$A$80,0))=\"\",\"\",INDEX('Impact Outcome Indicators_1A'!Q$11:Q$80,MATCH('ImpactOutcome_Import-Export'!$B11,'Impact Outcome Indicators_1A'!$A$11:$A$80,0))),\"\")","v":""},{"$f":"IFERROR(IF(INDEX('Impact Outcome Indicators_1A'!S$11:S$80,MATCH('ImpactOutcome_Import-Export'!$B11,'Impact Outcome Indicators_1A'!$A$11:$A$80,0))=\"\",\"\",INDEX('Impact Outcome Indicators_1A'!S$11:S$80,MATCH('ImpactOutcome_Import-Export'!$B11,'Impact Outcome Indicators_1A'!$A$11:$A$80,0))),\"\")","v":""},{"$f":"IFERROR(IF(INDEX('Impact Outcome Indicators_1A'!T$11:T$80,MATCH('ImpactOutcome_Import-Export'!$B11,'Impact Outcome Indicators_1A'!$A$11:$A$80,0))=\"\",\"\",INDEX('Impact Outcome Indicators_1A'!T$11:T$80,MATCH('ImpactOutcome_Import-Export'!$B11,'Impact Outcome Indicators_1A'!$A$11:$A$80,0))),\"\")","v":""},{"$f":"IFERROR(IF(INDEX('Impact Outcome Indicators_1A'!U$11:U$80,MATCH('ImpactOutcome_Import-Export'!$B11,'Impact Outcome Indicators_1A'!$A$11:$A$80,0))=\"\",\"\",INDEX('Impact Outcome Indicators_1A'!U$11:U$80,MATCH('ImpactOutcome_Import-Export'!$B11,'Impact Outcome Indicators_1A'!$A$11:$A$80,0))),\"\")","v":""},{"$f":"IFERROR(IF(INDEX('Impact Outcome Indicators_1A'!V$11:V$80,MATCH('ImpactOutcome_Import-Export'!$B11,'Impact Outcome Indicators_1A'!$A$11:$A$80,0))=\"\",\"\",INDEX('Impact Outcome Indicators_1A'!V$11:V$80,MATCH('ImpactOutcome_Import-Export'!$B11,'Impact Outcome Indicators_1A'!$A$11:$A$80,0))),\"\")","v":""},{"$f":"IFERROR(IF(INDEX('Impact Outcome Indicators_1A'!W$11:W$80,MATCH('ImpactOutcome_Import-Export'!$B11,'Impact Outcome Indicators_1A'!$A$11:$A$80,0))=\"\",\"\",INDEX('Impact Outcome Indicators_1A'!W$11:W$80,MATCH('ImpactOutcome_Import-Export'!$B11,'Impact Outcome Indicators_1A'!$A$11:$A$80,0))),\"\")","v":""},{"$f":"IFERROR(IF(INDEX('Impact Outcome Indicators_1A'!X$11:X$80,MATCH('ImpactOutcome_Import-Export'!$B11,'Impact Outcome Indicators_1A'!$A$11:$A$80,0))=\"\",\"\",INDEX('Impact Outcome Indicators_1A'!X$11:X$80,MATCH('ImpactOutcome_Import-Export'!$B11,'Impact Outcome Indicators_1A'!$A$11:$A$80,0))),\"\")","v":""},{"$f":"IFERROR(IF(INDEX('Impact Outcome Indicators_1A'!Y$11:Y$80,MATCH('ImpactOutcome_Import-Export'!$B11,'Impact Outcome Indicators_1A'!$A$11:$A$80,0))=\"\",\"\",INDEX('Impact Outcome Indicators_1A'!Y$11:Y$80,MATCH('ImpactOutcome_Import-Export'!$B11,'Impact Outcome Indicators_1A'!$A$11:$A$80,0))),\"\")","v":""},null,null,null,null,{"$f":"IFERROR(INDEX('Impact Outcome Indicators_1A'!AE$11:AE$80,MATCH('ImpactOutcome_Import-Export'!$B11,'Impact Outcome Indicators_1A'!$A$11:$A$80,0)),\"\")","v":""},"[Outcome Indicator Number]"]

{"sheet":"Disaggregation_1A","index":7,"n_rows":100,"n_cols":21,"rows_kept":100,"cut":false,"hidden":false,"merged":[[8,21,9,21],[8,4,9,4],[8,5,8,7],[8,8,9,8],[8,14,8,15],[8,16,9,16],[8,17,9,17],[8,18,8,19],[8,10,8,11],[8,12,9,12],[8,13,9,13],[8,9,9,9],[4,1,4,16],[8,1,9,1],[8,2,9,2],[8,3,9,3],[8,20,9,20]]}
[null,"Progress Report with Disbursement Request"]
[]
[null,"Section 1:  Programmatic Information"]
[]
[null,"Guidance: The table contains those Impact/Outcome indicators that are:\n1. Included in the Grant Confirmation/Agreement through the latest signed Performance Framework\n2. According to the Global Fund Modular Framework require disaggregation\n3. Were due for reporting in previous periods but were never reported on\n4. Data validation checks are being performed on entered data in the columns. Any issues identified that are not resolved should be explained"]
[]
[null,"A- Impact/Outcome Indicators - Disaggregation"]
[]
["ID",{"$f":"VLOOKUP(Translations!B64,Translations!B3:H508,4,0)","v":"Impact/Outcome"},{"$f":"VLOOKUP(Translations!B65,Translations!B3:H508,4,0)","v":"Standard Impact/Outcome Indicator"},{"$f":"VLOOKUP(Translations!B66,Translations!B3:H508,4,0)","v":"Disaggregation"},{"$f":"VLOOKUP(Translations!B67,Translations!B3:H508,4,0)","v":"Category"},{"$f":"VLOOKUP(Translations!B69,Translations!B3:H508,4,0)","v":"Baseline"},null,null,{"$f":"VLOOKUP(Translations!B72,Translations!B3:H508,4,0)","v":"Disaggregation Report Year"},"Geography",{"$f":"VLOOKUP(Translations!B73,Translations!B3:H508,4,0)","v":"Result"},null,{"$f":"VLOOKUP(Translations!B76,Translations!B3:H508,4,0)","v":"Comments"},null,"Verified Result",null,"LFA comments",null,"Global Fund Validated Result",null,"Global Fund comments"]
[null,null,null,null,null,{"$f":"VLOOKUP(Translations!B68,Translations!B3:H508,4,0)","v":"Value"},{"$f":"VLOOKUP(Translations!B70,Translations!B3:H508,4,0)","v":"Year"},{"$f":"VLOOKUP(Translations!B71,Translations!B3:H508,4,0)","v":"Source"},null,null,{"$f":"VLOOKUP(Translations!B68,Translations!B3:H508,4,0)","v":"Value"},{"$f":"VLOOKUP(Translations!B71,Translations!B3:H508,4,0)","v":"Source"},null,null,"Value","Source",null,null,"Value","Source"]
[{"$f":"IFERROR(IF(INDEX(ImpactDisaglist,MATCH(0,INDEX(COUNTIF(A$10:A10,ImpactDisaglist),0,0),0))<>\"\",INDEX(ImpactDisaglist,MATCH(0,INDEX(COUNTIF(A$10:A10,ImpactDisaglist),0,0),0)),INDEX(OutcomeDisaglist,MATCH(0,INDEX(COUNTIF(A$10:A10,OutcomeDisaglist),0,0),0))),\"\")","v":0},{"$f":"IFERROR(INDEX('Disagg.1A_import-export'!D$7:D$200,MATCH($A11,'Disagg.1A_import-export'!$B$7:$B$200,0)),\"\")","v":""},{"$f":"IF(B11=\"\",\"\",IFERROR(INDEX('Disagg.1A_import-export'!E$7:E$13,MATCH($A11,'Disagg.1A_import-export'!$B$7:$B$13,0)),\"\"))","v":""},{"$f":"IF(B11=\"\",\"\",IFERROR(IF(INDEX('Disagg.1A_import-export'!I$7:I$13,MATCH($A11,'Disagg.1A_import-export'!$B$7:$B$13,0))=\"\",\"\",INDEX('Disagg.1A_import-export'!I$7:I$13,MATCH($A11,'Disagg.1A_import-export'!$B$7:$B$13,0))),\"\"))","v":""},{"$f":"IF(B11=\"\",\"\",IFERROR(IF(INDEX('Disagg.1A_import-export'!J$7:J$13,MATCH($A11,'Disagg.1A_import-export'!$B$7:$B$13,0))=\"\",\"\",INDEX('Disagg.1A_import-export'!J$7:J$13,MATCH($A11,'Disagg.1A_import-export'!$B$7:$B$13,0))),\"\"))","v":""},{"$f":"IF(B11=\"\",\"\",IFERROR(IF(INDEX('Disagg.1A_import-export'!K$7:K$13,MATCH($A11,'Disagg.1A_import-export'!$B$7:$B$13,0))=\"\",\"\",INDEX('Disagg.1A_import-export'!K$7:K$13,MATCH($A11,'Disagg.1A_import-export'!$B$7:$B$13,0))),\"\"))","v":""},{"$f":"IF(B11=\"\",\"\",IFERROR(IF(INDEX('Disagg.1A_import-export'!L$7:L$13,MATCH($A11,'Disagg.1A_import-export'!$B$7:$B$13,0))=\"\",\"\",INDEX('Disagg.1A_import-export'!L$7:L$13,MATCH($A11,'Disagg.1A_import-export'!$B$7:$B$13,0))),\"\"))","v":""},{"$f":"IF(B11=\"\",\"\",IFERROR(IF(INDEX('Disagg.1A_import-export'!M$7:M$13,MATCH($A11,'Disagg.1A_import-export'!$B$7:$B$13,0))=\"\",\"\",INDEX('Disagg.1A_import-export'!M$7:M$13,MATCH($A11,'Disagg.1A_import-export'!$B$7:$B$13,0))),\"\"))","v":""},{"$f":"IF(B11=\"\",\"\",IFERROR(IF(INDEX('Disagg.1A_import-export'!N$7:N$13,MATCH($A11,'Disagg.1A_import-export'!$B$7:$B$13,0))=\"\",\"\",INDEX('Disagg.1A_import-export'!N$7:N$13,MATCH($A11,'Disagg.1A_import-export'!$B$7:$B$13,0))),\"\"))","v":""},{"$f":"IF(B11=\"\",\"\",IFERROR(IF(INDEX('Disagg.1A_import-export'!AC$7:AC$13,MATCH($A11,'Disagg.1A_import-export'!$B$7:$B$13,0))=\"\",\"\",INDEX('Disagg.1A_import-export'!AC$7:AC$13,MATCH($A11,'Disagg.1A_import-export'!$B$7:$B$13,0))),\"\"))","v":""}]
[{"$f":"IFERROR(IF(INDEX(ImpactDisaglist,MATCH(0,INDEX(COUNTIF(A$10:A11,ImpactDisaglist),0,0),0))<>\"\",INDEX(ImpactDisaglist,MATCH(0,INDEX(COUNTIF(A$10:A11,ImpactDisaglist),0,0),0)),INDEX(OutcomeDisaglist,MATCH(0,INDEX(COUNTIF(A$10:A11,OutcomeDisaglist),0,0),0))),\"\")","v":""},{"$f":"IFERROR(INDEX('Disagg.1A_import-export'!D$7:D$200,MATCH($A12,'Disagg.1A_import-export'!$B$7:$B$200,0)),\"\")","v":""},{"$f":"IF(B12=\"\",\"\",IFERROR(INDEX('Disagg.1A_import-export'!E$7:E$13,MATCH($A12,'Disagg.1A_import-export'!$B$7:$B$13,0)),\"\"))","v":""},{"$f":"IF(B12=\"\",\"\",IFERROR(IF(INDEX('Disagg.1A_import-export'!I$7:I$13,MATCH($A12,'Disagg.1A_import-export'!$B$7:$B$13,0))=\"\",\"\",INDEX('Disagg.1A_import-export'!I$7:I$13,MATCH($A12,'Disagg.1A_import-export'!$B$7:$B$13,0))),\"\"))","v":""},{"$f":"IF(B12=\"\",\"\",IFERROR(IF(INDEX('Disagg.1A_import-export'!J$7:J$13,MATCH($A12,'Disagg.1A_import-export'!$B$7:$B$13,0))=\"\",\"\",INDEX('Disagg.1A_import-export'!J$7:J$13,MATCH($A12,'Disagg.1A_import-export'!$B$7:$B$13,0))),\"\"))","v":""},{"$f":"IF(B12=\"\",\"\",IFERROR(IF(INDEX('Disagg.1A_import-export'!K$7:K$13,MATCH($A12,'Disagg.1A_import-export'!$B$7:$B$13,0))=\"\",\"\",INDEX('Disagg.1A_import-export'!K$7:K$13,MATCH($A12,'Disagg.1A_import-export'!$B$7:$B$13,0))),\"\"))","v":""},{"$f":"IF(B12=\"\",\"\",IFERROR(IF(INDEX('Disagg.1A_import-export'!L$7:L$13,MATCH($A12,'Disagg.1A_import-export'!$B$7:$B$13,0))=\"\",\"\",INDEX('Disagg.1A_import-export'!L$7:L$13,MATCH($A12,'Disagg.1A_import-export'!$B$7:$B$13,0))),\"\"))","v":""},{"$f":"IF(B12=\"\",\"\",IFERROR(IF(INDEX('Disagg.1A_import-export'!M$7:M$13,MATCH($A12,'Disagg.1A_import-export'!$B$7:$B$13,0))=\"\",\"\",INDEX('Disagg.1A_import-export'!M$7:M$13,MATCH($A12,'Disagg.1A_import-export'!$B$7:$B$13,0))),\"\"))","v":""},{"$f":"IF(B12=\"\",\"\",IFERROR(IF(INDEX('Disagg.1A_import-export'!N$7:N$13,MATCH($A12,'Disagg.1A_import-export'!$B$7:$B$13,0))=\"\",\"\",INDEX('Disagg.1A_import-export'!N$7:N$13,MATCH($A12,'Disagg.1A_import-export'!$B$7:$B$13,0))),\"\"))","v":""},{"$f":"IF(B12=\"\",\"\",IFERROR(IF(INDEX('Disagg.1A_import-export'!AC$7:AC$13,MATCH($A12,'Disagg.1A_import-export'!$B$7:$B$13,0))=\"\",\"\",INDEX('Disagg.1A_import-export'!AC$7:AC$13,MATCH($A12,'Disagg.1A_import-export'!$B$7:$B$13,0))),\"\"))","v":""}]
[{"$f":"IFERROR(IF(INDEX(ImpactDisaglist,MATCH(0,INDEX(COUNTIF(A$10:A12,ImpactDisaglist),0,0),0))<>\"\",INDEX(ImpactDisaglist,MATCH(0,INDEX(COUNTIF(A$10:A12,ImpactDisaglist),0,0),0)),INDEX(OutcomeDisaglist,MATCH(0,INDEX(COUNTIF(A$10:A12,OutcomeDisaglist),0,0),0))),\"\")","v":""},{"$f":"IFERROR(INDEX('Disagg.1A_import-export'!D$7:D$200,MATCH($A13,'Disagg.1A_import-export'!$B$7:$B$200,0)),\"\")","v":""},{"$f":"IF(B13=\"\",\"\",IFERROR(INDEX('Disagg.1A_import-export'!E$7:E$13,MATCH($A13,'Disagg.1A_import-export'!$B$7:$B$13,0)),\"\"))","v":""},{"$f":"IF(B13=\"\",\"\",IFERROR(IF(INDEX('Disagg.1A_import-export'!I$7:I$13,MATCH($A13,'Disagg.1A_import-export'!$B$7:$B$13,0))=\"\",\"\",INDEX('Disagg.1A_import-export'!I$7:I$13,MATCH($A13,'Disagg.1A_import-export'!$B$7:$B$13,0))),\"\"))","v":""},{"$f":"IF(B13=\"\",\"\",IFERROR(IF(INDEX('Disagg.1A_import-export'!J$7:J$13,MATCH($A13,'Disagg.1A_import-export'!$B$7:$B$13,0))=\"\",\"\",INDEX('Disagg.1A_import-export'!J$7:J$13,MATCH($A13,'Disagg.1A_import-export'!$B$7:$B$13,0))),\"\"))","v":""},{"$f":"IF(B13=\"\",\"\",IFERROR(IF(INDEX('Disagg.1A_import-export'!K$7:K$13,MATCH($A13,'Disagg.1A_import-export'!$B$7:$B$13,0))=\"\",\"\",INDEX('Disagg.1A_import-export'!K$7:K$13,MATCH($A13,'Disagg.1A_import-export'!$B$7:$B$13,0))),\"\"))","v":""},{"$f":"IF(B13=\"\",\"\",IFERROR(IF(INDEX('Disagg.1A_import-export'!L$7:L$13,MATCH($A13,'Disagg.1A_import-export'!$B$7:$B$13,0))=\"\",\"\",INDEX('Disagg.1A_import-export'!L$7:L$13,MATCH($A13,'Disagg.1A_import-export'!$B$7:$B$13,0))),\"\"))","v":""},{"$f":"IF(B13=\"\",\"\",IFERROR(IF(INDEX('Disagg.1A_import-export'!M$7:M$13,MATCH($A13,'Disagg.1A_import-export'!$B$7:$B$13,0))=\"\",\"\",INDEX('Disagg.1A_import-export'!M$7:M$13,MATCH($A13,'Disagg.1A_import-export'!$B$7:$B$13,0))),\"\"))","v":""},{"$f":"IF(B13=\"\",\"\",IFERROR(IF(INDEX('Disagg.1A_import-export'!N$7:N$13,MATCH($A13,'Disagg.1A_import-export'!$B$7:$B$13,0))=\"\",\"\",INDEX('Disagg.1A_import-export'!N$7:N$13,MATCH($A13,'Disagg.1A_import-export'!$B$7:$B$13,0))),\"\"))","v":""},{"$f":"IF(B13=\"\",\"\",IFERROR(IF(INDEX('Disagg.1A_import-export'!AC$7:AC$13,MATCH($A13,'Disagg.1A_import-export'!$B$7:$B$13,0))=\"\",\"\",INDEX('Disagg.1A_import-export'!AC$7:AC$13,MATCH($A13,'Disagg.1A_import-export'!$B$7:$B$13,0))),\"\"))","v":""}]
[{"$f":"IFERROR(IF(INDEX(ImpactDisaglist,MATCH(0,INDEX(COUNTIF(A$10:A13,ImpactDisaglist),0,0),0))<>\"\",INDEX(ImpactDisaglist,MATCH(0,INDEX(COUNTIF(A$10:A13,ImpactDisaglist),0,0),0)),INDEX(OutcomeDisaglist,MATCH(0,INDEX(COUNTIF(A$10:A13,OutcomeDisaglist),0,0),0))),\"\")","v":""},{"$f":"IFERROR(INDEX('Disagg.1A_import-export'!D$7:D$200,MATCH($A14,'Disagg.1A_import-export'!$B$7:$B$200,0)),\"\")","v":""},{"$f":"IF(B14=\"\",\"\",IFERROR(INDEX('Disagg.1A_import-export'!E$7:E$13,MATCH($A14,'Disagg.1A_import-export'!$B$7:$B$13,0)),\"\"))","v":""},{"$f":"IF(B14=\"\",\"\",IFERROR(IF(INDEX('Disagg.1A_import-export'!I$7:I$13,MATCH($A14,'Disagg.1A_import-export'!$B$7:$B$13,0))=\"\",\"\",INDEX('Disagg.1A_import-export'!I$7:I$13,MATCH($A14,'Disagg.1A_import-export'!$B$7:$B$13,0))),\"\"))","v":""},{"$f":"IF(B14=\"\",\"\",IFERROR(IF(INDEX('Disagg.1A_import-export'!J$7:J$13,MATCH($A14,'Disagg.1A_import-export'!$B$7:$B$13,0))=\"\",\"\",INDEX('Disagg.1A_import-export'!J$7:J$13,MATCH($A14,'Disagg.1A_import-export'!$B$7:$B$13,0))),\"\"))","v":""},{"$f":"IF(B14=\"\",\"\",IFERROR(IF(INDEX('Disagg.1A_import-export'!K$7:K$13,MATCH($A14,'Disagg.1A_import-export'!$B$7:$B$13,0))=\"\",\"\",INDEX('Disagg.1A_import-export'!K$7:K$13,MATCH($A14,'Disagg.1A_import-export'!$B$7:$B$13,0))),\"\"))","v":""},{"$f":"IF(B14=\"\",\"\",IFERROR(IF(INDEX('Disagg.1A_import-export'!L$7:L$13,MATCH($A14,'Disagg.1A_import-export'!$B$7:$B$13,0))=\"\",\"\",INDEX('Disagg.1A_import-export'!L$7:L$13,MATCH($A14,'Disagg.1A_import-export'!$B$7:$B$13,0))),\"\"))","v":""},{"$f":"IF(B14=\"\",\"\",IFERROR(IF(INDEX('Disagg.1A_import-export'!M$7:M$13,MATCH($A14,'Disagg.1A_import-export'!$B$7:$B$13,0))=\"\",\"\",INDEX('Disagg.1A_import-export'!M$7:M$13,MATCH($A14,'Disagg.1A_import-export'!$B$7:$B$13,0))),\"\"))","v":""},{"$f":"IF(B14=\"\",\"\",IFERROR(IF(INDEX('Disagg.1A_import-export'!N$7:N$13,MATCH($A14,'Disagg.1A_import-export'!$B$7:$B$13,0))=\"\",\"\",INDEX('Disagg.1A_import-export'!N$7:N$13,MATCH($A14,'Disagg.1A_import-export'!$B$7:$B$13,0))),\"\"))","v":""},{"$f":"IF(B14=\"\",\"\",IFERROR(IF(INDEX('Disagg.1A_import-export'!AC$7:AC$13,MATCH($A14,'Disagg.1A_import-export'!$B$7:$B$13,0))=\"\",\"\",INDEX('Disagg.1A_import-export'!AC$7:AC$13,MATCH($A14,'Disagg.1A_import-export'!$B$7:$B$13,0))),\"\"))","v":""}]
[{"$f":"IFERROR(IF(INDEX(ImpactDisaglist,MATCH(0,INDEX(COUNTIF(A$10:A14,ImpactDisaglist),0,0),0))<>\"\",INDEX(ImpactDisaglist,MATCH(0,INDEX(COUNTIF(A$10:A14,ImpactDisaglist),0,0),0)),INDEX(OutcomeDisaglist,MATCH(0,INDEX(COUNTIF(A$10:A14,OutcomeDisaglist),0,0),0))),\"\")","v":""},{"$f":"IFERROR(INDEX('Disagg.1A_import-export'!D$7:D$200,MATCH($A15,'Disagg.1A_import-export'!$B$7:$B$200,0)),\"\")","v":""},{"$f":"IF(B15=\"\",\"\",IFERROR(INDEX('Disagg.1A_import-export'!E$7:E$13,MATCH($A15,'Disagg.1A_import-export'!$B$7:$B$13,0)),\"\"))","v":""},{"$f":"IF(B15=\"\",\"\",IFERROR(IF(INDEX('Disagg.1A_import-export'!I$7:I$13,MATCH($A15,'Disagg.1A_import-export'!$B$7:$B$13,0))=\"\",\"\",INDEX('Disagg.1A_import-export'!I$7:I$13,MATCH($A15,'Disagg.1A_import-export'!$B$7:$B$13,0))),\"\"))","v":""},{"$f":"IF(B15=\"\",\"\",IFERROR(IF(INDEX('Disagg.1A_import-export'!J$7:J$13,MATCH($A15,'Disagg.1A_import-export'!$B$7:$B$13,0))=\"\",\"\",INDEX('Disagg.1A_import-export'!J$7:J$13,MATCH($A15,'Disagg.1A_import-export'!$B$7:$B$13,0))),\"\"))","v":""},{"$f":"IF(B15=\"\",\"\",IFERROR(IF(INDEX('Disagg.1A_import-export'!K$7:K$13,MATCH($A15,'Disagg.1A_import-export'!$B$7:$B$13,0))=\"\",\"\",INDEX('Disagg.1A_import-export'!K$7:K$13,MATCH($A15,'Disagg.1A_import-export'!$B$7:$B$13,0))),\"\"))","v":""},{"$f":"IF(B15=\"\",\"\",IFERROR(IF(INDEX('Disagg.1A_import-export'!L$7:L$13,MATCH($A15,'Disagg.1A_import-export'!$B$7:$B$13,0))=\"\",\"\",INDEX('Disagg.1A_import-export'!L$7:L$13,MATCH($A15,'Disagg.1A_import-export'!$B$7:$B$13,0))),\"\"))","v":""},{"$f":"IF(B15=\"\",\"\",IFERROR(IF(INDEX('Disagg.1A_import-export'!M$7:M$13,MATCH($A15,'Disagg.1A_import-export'!$B$7:$B$13,0))=\"\",\"\",INDEX('Disagg.1A_import-export'!M$7:M$13,MATCH($A15,'Disagg.1A_import-export'!$B$7:$B$13,0))),\"\"))","v":""},{"$f":"IF(B15=\"\",\"\",IFERROR(IF(INDEX('Disagg.1A_import-export'!N$7:N$13,MATCH($A15,'Disagg.1A_import-export'!$B$7:$B$13,0))=\"\",\"\",INDEX('Disagg.1A_import-export'!N$7:N$13,MATCH($A15,'Disagg.1A_import-export'!$B$7:$B$13,0))),\"\"))","v":""},{"$f":"IF(B15=\"\",\"\",IFERROR(IF(INDEX('Disagg.1A_import-export'!AC$7:AC$13,MATCH($A15,'Disagg.1A_import-export'!$B$7:$B$13,0))=\"\",\"\",INDEX('Disagg.1A_import-export'!AC$7:AC$13,MATCH($A15,'Disagg.1A_import-export'!$B$7:$B$13,0))),\"\"))","v":""}]
[{"$f":"IFERROR(IF(INDEX(ImpactDisaglist,MATCH(0,INDEX(COUNTIF(A$10:A15,ImpactDisaglist),0,0),0))<>\"\",INDEX(ImpactDisaglist,MATCH(0,INDEX(COUNTIF(A$10:A15,ImpactDisaglist),0,0),0)),INDEX(OutcomeDisaglist,MATCH(0,INDEX(COUNTIF(A$10:A15,OutcomeDisaglist),0,0),0))),\"\")","v":""},{"$f":"IFERROR(INDEX('Disagg.1A_import-export'!D$7:D$200,MATCH($A16,'Disagg.1A_import-export'!$B$7:$B$200,0)),\"\")","v":""},{"$f":"IF(B16=\"\",\"\",IFERROR(INDEX('Disagg.1A_import-export'!E$7:E$13,MATCH($A16,'Disagg.1A_import-export'!$B$7:$B$13,0)),\"\"))","v":""},{"$f":"IF(B16=\"\",\"\",IFERROR(IF(INDEX('Disagg.1A_import-export'!I$7:I$13,MATCH($A16,'Disagg.1A_import-export'!$B$7:$B$13,0))=\"\",\"\",INDEX('Disagg.1A_import-export'!I$7:I$13,MATCH($A16,'Disagg.1A_import-export'!$B$7:$B$13,0))),\"\"))","v":""},{"$f":"IF(B16=\"\",\"\",IFERROR(IF(INDEX('Disagg.1A_import-export'!J$7:J$13,MATCH($A16,'Disagg.1A_import-export'!$B$7:$B$13,0))=\"\",\"\",INDEX('Disagg.1A_import-export'!J$7:J$13,MATCH($A16,'Disagg.1A_import-export'!$B$7:$B$13,0))),\"\"))","v":""},{"$f":"IF(B16=\"\",\"\",IFERROR(IF(INDEX('Disagg.1A_import-export'!K$7:K$13,MATCH($A16,'Disagg.1A_import-export'!$B$7:$B$13,0))=\"\",\"\",INDEX('Disagg.1A_import-export'!K$7:K$13,MATCH($A16,'Disagg.1A_import-export'!$B$7:$B$13,0))),\"\"))","v":""},{"$f":"IF(B16=\"\",\"\",IFERROR(IF(INDEX('Disagg.1A_import-export'!L$7:L$13,MATCH($A16,'Disagg.1A_import-export'!$B$7:$B$13,0))=\"\",\"\",INDEX('Disagg.1A_import-export'!L$7:L$13,MATCH($A16,'Disagg.1A_import-export'!$B$7:$B$13,0))),\"\"))","v":""},{"$f":"IF(B16=\"\",\"\",IFERROR(IF(INDEX('Disagg.1A_import-export'!M$7:M$13,MATCH($A16,'Disagg.1A_import-export'!$B$7:$B$13,0))=\"\",\"\",INDEX('Disagg.1A_import-export'!M$7:M$13,MATCH($A16,'Disagg.1A_import-export'!$B$7:$B$13,0))),\"\"))","v":""},{"$f":"IF(B16=\"\",\"\",IFERROR(IF(INDEX('Disagg.1A_import-export'!N$7:N$13,MATCH($A16,'Disagg.1A_import-export'!$B$7:$B$13,0))=\"\",\"\",INDEX('Disagg.1A_import-export'!N$7:N$13,MATCH($A16,'Disagg.1A_import-export'!$B$7:$B$13,0))),\"\"))","v":""},{"$f":"IF(B16=\"\",\"\",IFERROR(IF(INDEX('Disagg.1A_import-export'!AC$7:AC$13,MATCH($A16,'Disagg.1A_import-export'!$B$7:$B$13,0))=\"\",\"\",INDEX('Disagg.1A_import-export'!AC$7:AC$13,MATCH($A16,'Disagg.1A_import-export'!$B$7:$B$13,0))),\"\"))","v":""}]
[{"$f":"IFERROR(IF(INDEX(ImpactDisaglist,MATCH(0,INDEX(COUNTIF(A$10:A16,ImpactDisaglist),0,0),0))<>\"\",INDEX(ImpactDisaglist,MATCH(0,INDEX(COUNTIF(A$10:A16,ImpactDisaglist),0,0),0)),INDEX(OutcomeDisaglist,MATCH(0,INDEX(COUNTIF(A$10:A16,OutcomeDisaglist),0,0),0))),\"\")","v":""},{"$f":"IFERROR(INDEX('Disagg.1A_import-export'!D$7:D$200,MATCH($A17,'Disagg.1A_import-export'!$B$7:$B$200,0)),\"\")","v":""},{"$f":"IF(B17=\"\",\"\",IFERROR(INDEX('Disagg.1A_import-export'!E$7:E$13,MATCH($A17,'Disagg.1A_import-export'!$B$7:$B$13,0)),\"\"))","v":""},{"$f":"IF(B17=\"\",\"\",IFERROR(IF(INDEX('Disagg.1A_import-export'!I$7:I$13,MATCH($A17,'Disagg.1A_import-export'!$B$7:$B$13,0))=\"\",\"\",INDEX('Disagg.1A_import-export'!I$7:I$13,MATCH($A17,'Disagg.1A_import-export'!$B$7:$B$13,0))),\"\"))","v":""},{"$f":"IF(B17=\"\",\"\",IFERROR(IF(INDEX('Disagg.1A_import-export'!J$7:J$13,MATCH($A17,'Disagg.1A_import-export'!$B$7:$B$13,0))=\"\",\"\",INDEX('Disagg.1A_import-export'!J$7:J$13,MATCH($A17,'Disagg.1A_import-export'!$B$7:$B$13,0))),\"\"))","v":""},{"$f":"IF(B17=\"\",\"\",IFERROR(IF(INDEX('Disagg.1A_import-export'!K$7:K$13,MATCH($A17,'Disagg.1A_import-export'!$B$7:$B$13,0))=\"\",\"\",INDEX('Disagg.1A_import-export'!K$7:K$13,MATCH($A17,'Disagg.1A_import-export'!$B$7:$B$13,0))),\"\"))","v":""},{"$f":"IF(B17=\"\",\"\",IFERROR(IF(INDEX('Disagg.1A_import-export'!L$7:L$13,MATCH($A17,'Disagg.1A_import-export'!$B$7:$B$13,0))=\"\",\"\",INDEX('Disagg.1A_import-export'!L$7:L$13,MATCH($A17,'Disagg.1A_import-export'!$B$7:$B$13,0))),\"\"))","v":""},{"$f":"IF(B17=\"\",\"\",IFERROR(IF(INDEX('Disagg.1A_import-export'!M$7:M$13,MATCH($A17,'Disagg.1A_import-export'!$B$7:$B$13,0))=\"\",\"\",INDEX('Disagg.1A_import-export'!M$7:M$13,MATCH($A17,'Disagg.1A_import-export'!$B$7:$B$13,0))),\"\"))","v":""},{"$f":"IF(B17=\"\",\"\",IFERROR(IF(INDEX('Disagg.1A_import-export'!N$7:N$13,MATCH($A17,'Disagg.1A_import-export'!$B$7:$B$13,0))=\"\",\"\",INDEX('Disagg.1A_import-export'!N$7:N$13,MATCH($A17,'Disagg.1A_import-export'!$B$7:$B$13,0))),\"\"))","v":""},{"$f":"IF(B17=\"\",\"\",IFERROR(IF(INDEX('Disagg.1A_import-export'!AC$7:AC$13,MATCH($A17,'Disagg.1A_import-export'!$B$7:$B$13,0))=\"\",\"\",INDEX('Disagg.1A_import-export'!AC$7:AC$13,MATCH($A17,'Disagg.1A_import-export'!$B$7:$B$13,0))),\"\"))","v":""}]
[{"$f":"IFERROR(IF(INDEX(ImpactDisaglist,MATCH(0,INDEX(COUNTIF(A$10:A17,ImpactDisaglist),0,0),0))<>\"\",INDEX(ImpactDisaglist,MATCH(0,INDEX(COUNTIF(A$10:A17,ImpactDisaglist),0,0),0)),INDEX(OutcomeDisaglist,MATCH(0,INDEX(COUNTIF(A$10:A17,OutcomeDisaglist),0,0),0))),\"\")","v":""},{"$f":"IFERROR(INDEX('Disagg.1A_import-export'!D$7:D$200,MATCH($A18,'Disagg.1A_import-export'!$B$7:$B$200,0)),\"\")","v":""},{"$f":"IF(B18=\"\",\"\",IFERROR(INDEX('Disagg.1A_import-export'!E$7:E$13,MATCH($A18,'Disagg.1A_import-export'!$B$7:$B$13,0)),\"\"))","v":""},{"$f":"IF(B18=\"\",\"\",IFERROR(IF(INDEX('Disagg.1A_import-export'!I$7:I$13,MATCH($A18,'Disagg.1A_import-export'!$B$7:$B$13,0))=\"\",\"\",INDEX('Disagg.1A_import-export'!I$7:I$13,MATCH($A18,'Disagg.1A_import-export'!$B$7:$B$13,0))),\"\"))","v":""},{"$f":"IF(B18=\"\",\"\",IFERROR(IF(INDEX('Disagg.1A_import-export'!J$7:J$13,MATCH($A18,'Disagg.1A_import-export'!$B$7:$B$13,0))=\"\",\"\",INDEX('Disagg.1A_import-export'!J$7:J$13,MATCH($A18,'Disagg.1A_import-export'!$B$7:$B$13,0))),\"\"))","v":""},{"$f":"IF(B18=\"\",\"\",IFERROR(IF(INDEX('Disagg.1A_import-export'!K$7:K$13,MATCH($A18,'Disagg.1A_import-export'!$B$7:$B$13,0))=\"\",\"\",INDEX('Disagg.1A_import-export'!K$7:K$13,MATCH($A18,'Disagg.1A_import-export'!$B$7:$B$13,0))),\"\"))","v":""},{"$f":"IF(B18=\"\",\"\",IFERROR(IF(INDEX('Disagg.1A_import-export'!L$7:L$13,MATCH($A18,'Disagg.1A_import-export'!$B$7:$B$13,0))=\"\",\"\",INDEX('Disagg.1A_import-export'!L$7:L$13,MATCH($A18,'Disagg.1A_import-export'!$B$7:$B$13,0))),\"\"))","v":""},{"$f":"IF(B18=\"\",\"\",IFERROR(IF(INDEX('Disagg.1A_import-export'!M$7:M$13,MATCH($A18,'Disagg.1A_import-export'!$B$7:$B$13,0))=\"\",\"\",INDEX('Disagg.1A_import-export'!M$7:M$13,MATCH($A18,'Disagg.1A_import-export'!$B$7:$B$13,0))),\"\"))","v":""},{"$f":"IF(B18=\"\",\"\",IFERROR(IF(INDEX('Disagg.1A_import-export'!N$7:N$13,MATCH($A18,'Disagg.1A_import-export'!$B$7:$B$13,0))=\"\",\"\",INDEX('Disagg.1A_import-export'!N$7:N$13,MATCH($A18,'Disagg.1A_import-export'!$B$7:$B$13,0))),\"\"))","v":""},{"$f":"IF(B18=\"\",\"\",IFERROR(IF(INDEX('Disagg.1A_import-export'!AC$7:AC$13,MATCH($A18,'Disagg.1A_import-export'!$B$7:$B$13,0))=\"\",\"\",INDEX('Disagg.1A_import-export'!AC$7:AC$13,MATCH($A18,'Disagg.1A_import-export'!$B$7:$B$13,0))),\"\"))","v":""}]
[{"$f":"IFERROR(IF(INDEX(ImpactDisaglist,MATCH(0,INDEX(COUNTIF(A$10:A18,ImpactDisaglist),0,0),0))<>\"\",INDEX(ImpactDisaglist,MATCH(0,INDEX(COUNTIF(A$10:A18,ImpactDisaglist),0,0),0)),INDEX(OutcomeDisaglist,MATCH(0,INDEX(COUNTIF(A$10:A18,OutcomeDisaglist),0,0),0))),\"\")","v":""},{"$f":"IFERROR(INDEX('Disagg.1A_import-export'!D$7:D$200,MATCH($A19,'Disagg.1A_import-export'!$B$7:$B$200,0)),\"\")","v":""},{"$f":"IF(B19=\"\",\"\",IFERROR(INDEX('Disagg.1A_import-export'!E$7:E$13,MATCH($A19,'Disagg.1A_import-export'!$B$7:$B$13,0)),\"\"))","v":""},{"$f":"IF(B19=\"\",\"\",IFERROR(IF(INDEX('Disagg.1A_import-export'!I$7:I$13,MATCH($A19,'Disagg.1A_import-export'!$B$7:$B$13,0))=\"\",\"\",INDEX('Disagg.1A_import-export'!I$7:I$13,MATCH($A19,'Disagg.1A_import-export'!$B$7:$B$13,0))),\"\"))","v":""},{"$f":"IF(B19=\"\",\"\",IFERROR(IF(INDEX('Disagg.1A_import-export'!J$7:J$13,MATCH($A19,'Disagg.1A_import-export'!$B$7:$B$13,0))=\"\",\"\",INDEX('Disagg.1A_import-export'!J$7:J$13,MATCH($A19,'Disagg.1A_import-export'!$B$7:$B$13,0))),\"\"))","v":""},{"$f":"IF(B19=\"\",\"\",IFERROR(IF(INDEX('Disagg.1A_import-export'!K$7:K$13,MATCH($A19,'Disagg.1A_import-export'!$B$7:$B$13,0))=\"\",\"\",INDEX('Disagg.1A_import-export'!K$7:K$13,MATCH($A19,'Disagg.1A_import-export'!$B$7:$B$13,0))),\"\"))","v":""},{"$f":"IF(B19=\"\",\"\",IFERROR(IF(INDEX('Disagg.1A_import-export'!L$7:L$13,MATCH($A19,'Disagg.1A_import-export'!$B$7:$B$13,0))=\"\",\"\",INDEX('Disagg.1A_import-export'!L$7:L$13,MATCH($A19,'Disagg.1A_import-export'!$B$7:$B$13,0))),\"\"))","v":""},{"$f":"IF(B19=\"\",\"\",IFERROR(IF(INDEX('Disagg.1A_import-export'!M$7:M$13,MATCH($A19,'Disagg.1A_import-export'!$B$7:$B$13,0))=\"\",\"\",INDEX('Disagg.1A_import-export'!M$7:M$13,MATCH($A19,'Disagg.1A_import-export'!$B$7:$B$13,0))),\"\"))","v":""},{"$f":"IF(B19=\"\",\"\",IFERROR(IF(INDEX('Disagg.1A_import-export'!N$7:N$13,MATCH($A19,'Disagg.1A_import-export'!$B$7:$B$13,0))=\"\",\"\",INDEX('Disagg.1A_import-export'!N$7:N$13,MATCH($A19,'Disagg.1A_import-export'!$B$7:$B$13,0))),\"\"))","v":""},{"$f":"IF(B19=\"\",\"\",IFERROR(IF(INDEX('Disagg.1A_import-export'!AC$7:AC$13,MATCH($A19,'Disagg.1A_import-export'!$B$7:$B$13,0))=\"\",\"\",INDEX('Disagg.1A_import-export'!AC$7:AC$13,MATCH($A19,'Disagg.1A_import-export'!$B$7:$B$13,0))),\"\"))","v":""}]
[{"$f":"IFERROR(IF(INDEX(ImpactDisaglist,MATCH(0,INDEX(COUNTIF(A$10:A19,ImpactDisaglist),0,0),0))<>\"\",INDEX(ImpactDisaglist,MATCH(0,INDEX(COUNTIF(A$10:A19,ImpactDisaglist),0,0),0)),INDEX(OutcomeDisaglist,MATCH(0,INDEX(COUNTIF(A$10:A19,OutcomeDisaglist),0,0),0))),\"\")","v":""},{"$f":"IFERROR(INDEX('Disagg.1A_import-export'!D$7:D$200,MATCH($A20,'Disagg.1A_import-export'!$B$7:$B$200,0)),\"\")","v":""},{"$f":"IF(B20=\"\",\"\",IFERROR(INDEX('Disagg.1A_import-export'!E$7:E$13,MATCH($A20,'Disagg.1A_import-export'!$B$7:$B$13,0)),\"\"))","v":""},{"$f":"IF(B20=\"\",\"\",IFERROR(IF(INDEX('Disagg.1A_import-export'!I$7:I$13,MATCH($A20,'Disagg.1A_import-export'!$B$7:$B$13,0))=\"\",\"\",INDEX('Disagg.1A_import-export'!I$7:I$13,MATCH($A20,'Disagg.1A_import-export'!$B$7:$B$13,0))),\"\"))","v":""},{"$f":"IF(B20=\"\",\"\",IFERROR(IF(INDEX('Disagg.1A_import-export'!J$7:J$13,MATCH($A20,'Disagg.1A_import-export'!$B$7:$B$13,0))=\"\",\"\",INDEX('Disagg.1A_import-export'!J$7:J$13,MATCH($A20,'Disagg.1A_import-export'!$B$7:$B$13,0))),\"\"))","v":""},{"$f":"IF(B20=\"\",\"\",IFERROR(IF(INDEX('Disagg.1A_import-export'!K$7:K$13,MATCH($A20,'Disagg.1A_import-export'!$B$7:$B$13,0))=\"\",\"\",INDEX('Disagg.1A_import-export'!K$7:K$13,MATCH($A20,'Disagg.1A_import-export'!$B$7:$B$13,0))),\"\"))","v":""},{"$f":"IF(B20=\"\",\"\",IFERROR(IF(INDEX('Disagg.1A_import-export'!L$7:L$13,MATCH($A20,'Disagg.1A_import-export'!$B$7:$B$13,0))=\"\",\"\",INDEX('Disagg.1A_import-export'!L$7:L$13,MATCH($A20,'Disagg.1A_import-export'!$B$7:$B$13,0))),\"\"))","v":""},{"$f":"IF(B20=\"\",\"\",IFERROR(IF(INDEX('Disagg.1A_import-export'!M$7:M$13,MATCH($A20,'Disagg.1A_import-export'!$B$7:$B$13,0))=\"\",\"\",INDEX('Disagg.1A_import-export'!M$7:M$13,MATCH($A20,'Disagg.1A_import-export'!$B$7:$B$13,0))),\"\"))","v":""},{"$f":"IF(B20=\"\",\"\",IFERROR(IF(INDEX('Disagg.1A_import-export'!N$7:N$13,MATCH($A20,'Disagg.1A_import-export'!$B$7:$B$13,0))=\"\",\"\",INDEX('Disagg.1A_import-export'!N$7:N$13,MATCH($A20,'Disagg.1A_import-export'!$B$7:$B$13,0))),\"\"))","v":""},{"$f":"IF(B20=\"\",\"\",IFERROR(IF(INDEX('Disagg.1A_import-export'!AC$7:AC$13,MATCH($A20,'Disagg.1A_import-export'!$B$7:$B$13,0))=\"\",\"\",INDEX('Disagg.1A_import-export'!AC$7:AC$13,MATCH($A20,'Disagg.1A_import-export'!$B$7:$B$13,0))),\"\"))","v":""}]
[{"$f":"IFERROR(IF(INDEX(ImpactDisaglist,MATCH(0,INDEX(COUNTIF(A$10:A20,ImpactDisaglist),0,0),0))<>\"\",INDEX(ImpactDisaglist,MATCH(0,INDEX(COUNTIF(A$10:A20,ImpactDisaglist),0,0),0)),INDEX(OutcomeDisaglist,MATCH(0,INDEX(COUNTIF(A$10:A20,OutcomeDisaglist),0,0),0))),\"\")","v":""},{"$f":"IFERROR(INDEX('Disagg.1A_import-export'!D$7:D$200,MATCH($A21,'Disagg.1A_import-export'!$B$7:$B$200,0)),\"\")","v":""},{"$f":"IF(B21=\"\",\"\",IFERROR(INDEX('Disagg.1A_import-export'!E$7:E$13,MATCH($A21,'Disagg.1A_import-export'!$B$7:$B$13,0)),\"\"))","v":""},{"$f":"IF(B21=\"\",\"\",IFERROR(IF(INDEX('Disagg.1A_import-export'!I$7:I$13,MATCH($A21,'Disagg.1A_import-export'!$B$7:$B$13,0))=\"\",\"\",INDEX('Disagg.1A_import-export'!I$7:I$13,MATCH($A21,'Disagg.1A_import-export'!$B$7:$B$13,0))),\"\"))","v":""},{"$f":"IF(B21=\"\",\"\",IFERROR(IF(INDEX('Disagg.1A_import-export'!J$7:J$13,MATCH($A21,'Disagg.1A_import-export'!$B$7:$B$13,0))=\"\",\"\",INDEX('Disagg.1A_import-export'!J$7:J$13,MATCH($A21,'Disagg.1A_import-export'!$B$7:$B$13,0))),\"\"))","v":""},{"$f":"IF(B21=\"\",\"\",IFERROR(IF(INDEX('Disagg.1A_import-export'!K$7:K$13,MATCH($A21,'Disagg.1A_import-export'!$B$7:$B$13,0))=\"\",\"\",INDEX('Disagg.1A_import-export'!K$7:K$13,MATCH($A21,'Disagg.1A_import-export'!$B$7:$B$13,0))),\"\"))","v":""},{"$f":"IF(B21=\"\",\"\",IFERROR(IF(INDEX('Disagg.1A_import-export'!L$7:L$13,MATCH($A21,'Disagg.1A_import-export'!$B$7:$B$13,0))=\"\",\"\",INDEX('Disagg.1A_import-export'!L$7:L$13,MATCH($A21,'Disagg.1A_import-export'!$B$7:$B$13,0))),\"\"))","v":""},{"$f":"IF(B21=\"\",\"\",IFERROR(IF(INDEX('Disagg.1A_import-export'!M$7:M$13,MATCH($A21,'Disagg.1A_import-export'!$B$7:$B$13,0))=\"\",\"\",INDEX('Disagg.1A_import-export'!M$7:M$13,MATCH($A21,'Disagg.1A_import-export'!$B$7:$B$13,0))),\"\"))","v":""},{"$f":"IF(B21=\"\",\"\",IFERROR(IF(INDEX('Disagg.1A_import-export'!N$7:N$13,MATCH($A21,'Disagg.1A_import-export'!$B$7:$B$13,0))=\"\",\"\",INDEX('Disagg.1A_import-export'!N$7:N$13,MATCH($A21,'Disagg.1A_import-export'!$B$7:$B$13,0))),\"\"))","v":""},{"$f":"IF(B21=\"\",\"\",IFERROR(IF(INDEX('Disagg.1A_import-export'!AC$7:AC$13,MATCH($A21,'Disagg.1A_import-export'!$B$7:$B$13,0))=\"\",\"\",INDEX('Disagg.1A_import-export'!AC$7:AC$13,MATCH($A21,'Disagg.1A_import-export'!$B$7:$B$13,0))),\"\"))","v":""}]
[{"$f":"IFERROR(IF(INDEX(ImpactDisaglist,MATCH(0,INDEX(COUNTIF(A$10:A21,ImpactDisaglist),0,0),0))<>\"\",INDEX(ImpactDisaglist,MATCH(0,INDEX(COUNTIF(A$10:A21,ImpactDisaglist),0,0),0)),INDEX(OutcomeDisaglist,MATCH(0,INDEX(COUNTIF(A$10:A21,OutcomeDisaglist),0,0),0))),\"\")","v":""},{"$f":"IFERROR(INDEX('Disagg.1A_import-export'!D$7:D$200,MATCH($A22,'Disagg.1A_import-export'!$B$7:$B$200,0)),\"\")","v":""},{"$f":"IF(B22=\"\",\"\",IFERROR(INDEX('Disagg.1A_import-export'!E$7:E$13,MATCH($A22,'Disagg.1A_import-export'!$B$7:$B$13,0)),\"\"))","v":""},{"$f":"IF(B22=\"\",\"\",IFERROR(IF(INDEX('Disagg.1A_import-export'!I$7:I$13,MATCH($A22,'Disagg.1A_import-export'!$B$7:$B$13,0))=\"\",\"\",INDEX('Disagg.1A_import-export'!I$7:I$13,MATCH($A22,'Disagg.1A_import-export'!$B$7:$B$13,0))),\"\"))","v":""},{"$f":"IF(B22=\"\",\"\",IFERROR(IF(INDEX('Disagg.1A_import-export'!J$7:J$13,MATCH($A22,'Disagg.1A_import-export'!$B$7:$B$13,0))=\"\",\"\",INDEX('Disagg.1A_import-export'!J$7:J$13,MATCH($A22,'Disagg.1A_import-export'!$B$7:$B$13,0))),\"\"))","v":""},{"$f":"IF(B22=\"\",\"\",IFERROR(IF(INDEX('Disagg.1A_import-export'!K$7:K$13,MATCH($A22,'Disagg.1A_import-export'!$B$7:$B$13,0))=\"\",\"\",INDEX('Disagg.1A_import-export'!K$7:K$13,MATCH($A22,'Disagg.1A_import-export'!$B$7:$B$13,0))),\"\"))","v":""},{"$f":"IF(B22=\"\",\"\",IFERROR(IF(INDEX('Disagg.1A_import-export'!L$7:L$13,MATCH($A22,'Disagg.1A_import-export'!$B$7:$B$13,0))=\"\",\"\",INDEX('Disagg.1A_import-export'!L$7:L$13,MATCH($A22,'Disagg.1A_import-export'!$B$7:$B$13,0))),\"\"))","v":""},{"$f":"IF(B22=\"\",\"\",IFERROR(IF(INDEX('Disagg.1A_import-export'!M$7:M$13,MATCH($A22,'Disagg.1A_import-export'!$B$7:$B$13,0))=\"\",\"\",INDEX('Disagg.1A_import-export'!M$7:M$13,MATCH($A22,'Disagg.1A_import-export'!$B$7:$B$13,0))),\"\"))","v":""},{"$f":"IF(B22=\"\",\"\",IFERROR(IF(INDEX('Disagg.1A_import-export'!N$7:N$13,MATCH($A22,'Disagg.1A_import-export'!$B$7:$B$13,0))=\"\",\"\",INDEX('Disagg.1A_import-export'!N$7:N$13,MATCH($A22,'Disagg.1A_import-export'!$B$7:$B$13,0))),\"\"))","v":""},{"$f":"IF(B22=\"\",\"\",IFERROR(IF(INDEX('Disagg.1A_import-export'!AC$7:AC$13,MATCH($A22,'Disagg.1A_import-export'!$B$7:$B$13,0))=\"\",\"\",INDEX('Disagg.1A_import-export'!AC$7:AC$13,MATCH($A22,'Disagg.1A_import-export'!$B$7:$B$13,0))),\"\"))","v":""}]
[{"$f":"IFERROR(IF(INDEX(ImpactDisaglist,MATCH(0,INDEX(COUNTIF(A$10:A22,ImpactDisaglist),0,0),0))<>\"\",INDEX(ImpactDisaglist,MATCH(0,INDEX(COUNTIF(A$10:A22,ImpactDisaglist),0,0),0)),INDEX(OutcomeDisaglist,MATCH(0,INDEX(COUNTIF(A$10:A22,OutcomeDisaglist),0,0),0))),\"\")","v":""},{"$f":"IFERROR(INDEX('Disagg.1A_import-export'!D$7:D$200,MATCH($A23,'Disagg.1A_import-export'!$B$7:$B$200,0)),\"\")","v":""},{"$f":"IF(B23=\"\",\"\",IFERROR(INDEX('Disagg.1A_import-export'!E$7:E$13,MATCH($A23,'Disagg.1A_import-export'!$B$7:$B$13,0)),\"\"))","v":""},{"$f":"IF(B23=\"\",\"\",IFERROR(IF(INDEX('Disagg.1A_import-export'!I$7:I$13,MATCH($A23,'Disagg.1A_import-export'!$B$7:$B$13,0))=\"\",\"\",INDEX('Disagg.1A_import-export'!I$7:I$13,MATCH($A23,'Disagg.1A_import-export'!$B$7:$B$13,0))),\"\"))","v":""},{"$f":"IF(B23=\"\",\"\",IFERROR(IF(INDEX('Disagg.1A_import-export'!J$7:J$13,MATCH($A23,'Disagg.1A_import-export'!$B$7:$B$13,0))=\"\",\"\",INDEX('Disagg.1A_import-export'!J$7:J$13,MATCH($A23,'Disagg.1A_import-export'!$B$7:$B$13,0))),\"\"))","v":""},{"$f":"IF(B23=\"\",\"\",IFERROR(IF(INDEX('Disagg.1A_import-export'!K$7:K$13,MATCH($A23,'Disagg.1A_import-export'!$B$7:$B$13,0))=\"\",\"\",INDEX('Disagg.1A_import-export'!K$7:K$13,MATCH($A23,'Disagg.1A_import-export'!$B$7:$B$13,0))),\"\"))","v":""},{"$f":"IF(B23=\"\",\"\",IFERROR(IF(INDEX('Disagg.1A_import-export'!L$7:L$13,MATCH($A23,'Disagg.1A_import-export'!$B$7:$B$13,0))=\"\",\"\",INDEX('Disagg.1A_import-export'!L$7:L$13,MATCH($A23,'Disagg.1A_import-export'!$B$7:$B$13,0))),\"\"))","v":""},{"$f":"IF(B23=\"\",\"\",IFERROR(IF(INDEX('Disagg.1A_import-export'!M$7:M$13,MATCH($A23,'Disagg.1A_import-export'!$B$7:$B$13,0))=\"\",\"\",INDEX('Disagg.1A_import-export'!M$7:M$13,MATCH($A23,'Disagg.1A_import-export'!$B$7:$B$13,0))),\"\"))","v":""},{"$f":"IF(B23=\"\",\"\",IFERROR(IF(INDEX('Disagg.1A_import-export'!N$7:N$13,MATCH($A23,'Disagg.1A_import-export'!$B$7:$B$13,0))=\"\",\"\",INDEX('Disagg.1A_import-export'!N$7:N$13,MATCH($A23,'Disagg.1A_import-export'!$B$7:$B$13,0))),\"\"))","v":""},{"$f":"IF(B23=\"\",\"\",IFERROR(IF(INDEX('Disagg.1A_import-export'!AC$7:AC$13,MATCH($A23,'Disagg.1A_import-export'!$B$7:$B$13,0))=\"\",\"\",INDEX('Disagg.1A_import-export'!AC$7:AC$13,MATCH($A23,'Disagg.1A_import-export'!$B$7:$B$13,0))),\"\"))","v":""}]
[{"$f":"IFERROR(IF(INDEX(ImpactDisaglist,MATCH(0,INDEX(COUNTIF(A$10:A23,ImpactDisaglist),0,0),0))<>\"\",INDEX(ImpactDisaglist,MATCH(0,INDEX(COUNTIF(A$10:A23,ImpactDisaglist),0,0),0)),INDEX(OutcomeDisaglist,MATCH(0,INDEX(COUNTIF(A$10:A23,OutcomeDisaglist),0,0),0))),\"\")","v":""},{"$f":"IFERROR(INDEX('Disagg.1A_import-export'!D$7:D$200,MATCH($A24,'Disagg.1A_import-export'!$B$7:$B$200,0)),\"\")","v":""},{"$f":"IF(B24=\"\",\"\",IFERROR(INDEX('Disagg.1A_import-export'!E$7:E$13,MATCH($A24,'Disagg.1A_import-export'!$B$7:$B$13,0)),\"\"))","v":""},{"$f":"IF(B24=\"\",\"\",IFERROR(IF(INDEX('Disagg.1A_import-export'!I$7:I$13,MATCH($A24,'Disagg.1A_import-export'!$B$7:$B$13,0))=\"\",\"\",INDEX('Disagg.1A_import-export'!I$7:I$13,MATCH($A24,'Disagg.1A_import-export'!$B$7:$B$13,0))),\"\"))","v":""},{"$f":"IF(B24=\"\",\"\",IFERROR(IF(INDEX('Disagg.1A_import-export'!J$7:J$13,MATCH($A24,'Disagg.1A_import-export'!$B$7:$B$13,0))=\"\",\"\",INDEX('Disagg.1A_import-export'!J$7:J$13,MATCH($A24,'Disagg.1A_import-export'!$B$7:$B$13,0))),\"\"))","v":""},{"$f":"IF(B24=\"\",\"\",IFERROR(IF(INDEX('Disagg.1A_import-export'!K$7:K$13,MATCH($A24,'Disagg.1A_import-export'!$B$7:$B$13,0))=\"\",\"\",INDEX('Disagg.1A_import-export'!K$7:K$13,MATCH($A24,'Disagg.1A_import-export'!$B$7:$B$13,0))),\"\"))","v":""},{"$f":"IF(B24=\"\",\"\",IFERROR(IF(INDEX('Disagg.1A_import-export'!L$7:L$13,MATCH($A24,'Disagg.1A_import-export'!$B$7:$B$13,0))=\"\",\"\",INDEX('Disagg.1A_import-export'!L$7:L$13,MATCH($A24,'Disagg.1A_import-export'!$B$7:$B$13,0))),\"\"))","v":""},{"$f":"IF(B24=\"\",\"\",IFERROR(IF(INDEX('Disagg.1A_import-export'!M$7:M$13,MATCH($A24,'Disagg.1A_import-export'!$B$7:$B$13,0))=\"\",\"\",INDEX('Disagg.1A_import-export'!M$7:M$13,MATCH($A24,'Disagg.1A_import-export'!$B$7:$B$13,0))),\"\"))","v":""},{"$f":"IF(B24=\"\",\"\",IFERROR(IF(INDEX('Disagg.1A_import-export'!N$7:N$13,MATCH($A24,'Disagg.1A_import-export'!$B$7:$B$13,0))=\"\",\"\",INDEX('Disagg.1A_import-export'!N$7:N$13,MATCH($A24,'Disagg.1A_import-export'!$B$7:$B$13,0))),\"\"))","v":""},{"$f":"IF(B24=\"\",\"\",IFERROR(IF(INDEX('Disagg.1A_import-export'!AC$7:AC$13,MATCH($A24,'Disagg.1A_import-export'!$B$7:$B$13,0))=\"\",\"\",INDEX('Disagg.1A_import-export'!AC$7:AC$13,MATCH($A24,'Disagg.1A_import-export'!$B$7:$B$13,0))),\"\"))","v":""}]
[{"$f":"IFERROR(IF(INDEX(ImpactDisaglist,MATCH(0,INDEX(COUNTIF(A$10:A24,ImpactDisaglist),0,0),0))<>\"\",INDEX(ImpactDisaglist,MATCH(0,INDEX(COUNTIF(A$10:A24,ImpactDisaglist),0,0),0)),INDEX(OutcomeDisaglist,MATCH(0,INDEX(COUNTIF(A$10:A24,OutcomeDisaglist),0,0),0))),\"\")","v":""},{"$f":"IFERROR(INDEX('Disagg.1A_import-export'!D$7:D$200,MATCH($A25,'Disagg.1A_import-export'!$B$7:$B$200,0)),\"\")","v":""},{"$f":"IF(B25=\"\",\"\",IFERROR(INDEX('Disagg.1A_import-export'!E$7:E$13,MATCH($A25,'Disagg.1A_import-export'!$B$7:$B$13,0)),\"\"))","v":""},{"$f":"IF(B25=\"\",\"\",IFERROR(IF(INDEX('Disagg.1A_import-export'!I$7:I$13,MATCH($A25,'Disagg.1A_import-export'!$B$7:$B$13,0))=\"\",\"\",INDEX('Disagg.1A_import-export'!I$7:I$13,MATCH($A25,'Disagg.1A_import-export'!$B$7:$B$13,0))),\"\"))","v":""},{"$f":"IF(B25=\"\",\"\",IFERROR(IF(INDEX('Disagg.1A_import-export'!J$7:J$13,MATCH($A25,'Disagg.1A_import-export'!$B$7:$B$13,0))=\"\",\"\",INDEX('Disagg.1A_import-export'!J$7:J$13,MATCH($A25,'Disagg.1A_import-export'!$B$7:$B$13,0))),\"\"))","v":""},{"$f":"IF(B25=\"\",\"\",IFERROR(IF(INDEX('Disagg.1A_import-export'!K$7:K$13,MATCH($A25,'Disagg.1A_import-export'!$B$7:$B$13,0))=\"\",\"\",INDEX('Disagg.1A_import-export'!K$7:K$13,MATCH($A25,'Disagg.1A_import-export'!$B$7:$B$13,0))),\"\"))","v":""},{"$f":"IF(B25=\"\",\"\",IFERROR(IF(INDEX('Disagg.1A_import-export'!L$7:L$13,MATCH($A25,'Disagg.1A_import-export'!$B$7:$B$13,0))=\"\",\"\",INDEX('Disagg.1A_import-export'!L$7:L$13,MATCH($A25,'Disagg.1A_import-export'!$B$7:$B$13,0))),\"\"))","v":""},{"$f":"IF(B25=\"\",\"\",IFERROR(IF(INDEX('Disagg.1A_import-export'!M$7:M$13,MATCH($A25,'Disagg.1A_import-export'!$B$7:$B$13,0))=\"\",\"\",INDEX('Disagg.1A_import-export'!M$7:M$13,MATCH($A25,'Disagg.1A_import-export'!$B$7:$B$13,0))),\"\"))","v":""},{"$f":"IF(B25=\"\",\"\",IFERROR(IF(INDEX('Disagg.1A_import-export'!N$7:N$13,MATCH($A25,'Disagg.1A_import-export'!$B$7:$B$13,0))=\"\",\"\",INDEX('Disagg.1A_import-export'!N$7:N$13,MATCH($A25,'Disagg.1A_import-export'!$B$7:$B$13,0))),\"\"))","v":""},{"$f":"IF(B25=\"\",\"\",IFERROR(IF(INDEX('Disagg.1A_import-export'!AC$7:AC$13,MATCH($A25,'Disagg.1A_import-export'!$B$7:$B$13,0))=\"\",\"\",INDEX('Disagg.1A_import-export'!AC$7:AC$13,MATCH($A25,'Disagg.1A_import-export'!$B$7:$B$13,0))),\"\"))","v":""}]
[{"$f":"IFERROR(IF(INDEX(ImpactDisaglist,MATCH(0,INDEX(COUNTIF(A$10:A25,ImpactDisaglist),0,0),0))<>\"\",INDEX(ImpactDisaglist,MATCH(0,INDEX(COUNTIF(A$10:A25,ImpactDisaglist),0,0),0)),INDEX(OutcomeDisaglist,MATCH(0,INDEX(COUNTIF(A$10:A25,OutcomeDisaglist),0,0),0))),\"\")","v":""},{"$f":"IFERROR(INDEX('Disagg.1A_import-export'!D$7:D$200,MATCH($A26,'Disagg.1A_import-export'!$B$7:$B$200,0)),\"\")","v":""},{"$f":"IF(B26=\"\",\"\",IFERROR(INDEX('Disagg.1A_import-export'!E$7:E$13,MATCH($A26,'Disagg.1A_import-export'!$B$7:$B$13,0)),\"\"))","v":""},{"$f":"IF(B26=\"\",\"\",IFERROR(IF(INDEX('Disagg.1A_import-export'!I$7:I$13,MATCH($A26,'Disagg.1A_import-export'!$B$7:$B$13,0))=\"\",\"\",INDEX('Disagg.1A_import-export'!I$7:I$13,MATCH($A26,'Disagg.1A_import-export'!$B$7:$B$13,0))),\"\"))","v":""},{"$f":"IF(B26=\"\",\"\",IFERROR(IF(INDEX('Disagg.1A_import-export'!J$7:J$13,MATCH($A26,'Disagg.1A_import-export'!$B$7:$B$13,0))=\"\",\"\",INDEX('Disagg.1A_import-export'!J$7:J$13,MATCH($A26,'Disagg.1A_import-export'!$B$7:$B$13,0))),\"\"))","v":""},{"$f":"IF(B26=\"\",\"\",IFERROR(IF(INDEX('Disagg.1A_import-export'!K$7:K$13,MATCH($A26,'Disagg.1A_import-export'!$B$7:$B$13,0))=\"\",\"\",INDEX('Disagg.1A_import-export'!K$7:K$13,MATCH($A26,'Disagg.1A_import-export'!$B$7:$B$13,0))),\"\"))","v":""},{"$f":"IF(B26=\"\",\"\",IFERROR(IF(INDEX('Disagg.1A_import-export'!L$7:L$13,MATCH($A26,'Disagg.1A_import-export'!$B$7:$B$13,0))=\"\",\"\",INDEX('Disagg.1A_import-export'!L$7:L$13,MATCH($A26,'Disagg.1A_import-export'!$B$7:$B$13,0))),\"\"))","v":""},{"$f":"IF(B26=\"\",\"\",IFERROR(IF(INDEX('Disagg.1A_import-export'!M$7:M$13,MATCH($A26,'Disagg.1A_import-export'!$B$7:$B$13,0))=\"\",\"\",INDEX('Disagg.1A_import-export'!M$7:M$13,MATCH($A26,'Disagg.1A_import-export'!$B$7:$B$13,0))),\"\"))","v":""},{"$f":"IF(B26=\"\",\"\",IFERROR(IF(INDEX('Disagg.1A_import-export'!N$7:N$13,MATCH($A26,'Disagg.1A_import-export'!$B$7:$B$13,0))=\"\",\"\",INDEX('Disagg.1A_import-export'!N$7:N$13,MATCH($A26,'Disagg.1A_import-export'!$B$7:$B$13,0))),\"\"))","v":""},{"$f":"IF(B26=\"\",\"\",IFERROR(IF(INDEX('Disagg.1A_import-export'!AC$7:AC$13,MATCH($A26,'Disagg.1A_import-export'!$B$7:$B$13,0))=\"\",\"\",INDEX('Disagg.1A_import-export'!AC$7:AC$13,MATCH($A26,'Disagg.1A_import-export'!$B$7:$B$13,0))),\"\"))","v":""}]
[{"$f":"IFERROR(IF(INDEX(ImpactDisaglist,MATCH(0,INDEX(COUNTIF(A$10:A26,ImpactDisaglist),0,0),0))<>\"\",INDEX(ImpactDisaglist,MATCH(0,INDEX(COUNTIF(A$10:A26,ImpactDisaglist),0,0),0)),INDEX(OutcomeDisaglist,MATCH(0,INDEX(COUNTIF(A$10:A26,OutcomeDisaglist),0,0),0))),\"\")","v":""},{"$f":"IFERROR(INDEX('Disagg.1A_import-export'!D$7:D$200,MATCH($A27,'Disagg.1A_import-export'!$B$7:$B$200,0)),\"\")","v":""},{"$f":"IF(B27=\"\",\"\",IFERROR(INDEX('Disagg.1A_import-export'!E$7:E$13,MATCH($A27,'Disagg.1A_import-export'!$B$7:$B$13,0)),\"\"))","v":""},{"$f":"IF(B27=\"\",\"\",IFERROR(IF(INDEX('Disagg.1A_import-export'!I$7:I$13,MATCH($A27,'Disagg.1A_import-export'!$B$7:$B$13,0))=\"\",\"\",INDEX('Disagg.1A_import-export'!I$7:I$13,MATCH($A27,'Disagg.1A_import-export'!$B$7:$B$13,0))),\"\"))","v":""},{"$f":"IF(B27=\"\",\"\",IFERROR(IF(INDEX('Disagg.1A_import-export'!J$7:J$13,MATCH($A27,'Disagg.1A_import-export'!$B$7:$B$13,0))=\"\",\"\",INDEX('Disagg.1A_import-export'!J$7:J$13,MATCH($A27,'Disagg.1A_import-export'!$B$7:$B$13,0))),\"\"))","v":""},{"$f":"IF(B27=\"\",\"\",IFERROR(IF(INDEX('Disagg.1A_import-export'!K$7:K$13,MATCH($A27,'Disagg.1A_import-export'!$B$7:$B$13,0))=\"\",\"\",INDEX('Disagg.1A_import-export'!K$7:K$13,MATCH($A27,'Disagg.1A_import-export'!$B$7:$B$13,0))),\"\"))","v":""},{"$f":"IF(B27=\"\",\"\",IFERROR(IF(INDEX('Disagg.1A_import-export'!L$7:L$13,MATCH($A27,'Disagg.1A_import-export'!$B$7:$B$13,0))=\"\",\"\",INDEX('Disagg.1A_import-export'!L$7:L$13,MATCH($A27,'Disagg.1A_import-export'!$B$7:$B$13,0))),\"\"))","v":""},{"$f":"IF(B27=\"\",\"\",IFERROR(IF(INDEX('Disagg.1A_import-export'!M$7:M$13,MATCH($A27,'Disagg.1A_import-export'!$B$7:$B$13,0))=\"\",\"\",INDEX('Disagg.1A_import-export'!M$7:M$13,MATCH($A27,'Disagg.1A_import-export'!$B$7:$B$13,0))),\"\"))","v":""},{"$f":"IF(B27=\"\",\"\",IFERROR(IF(INDEX('Disagg.1A_import-export'!N$7:N$13,MATCH($A27,'Disagg.1A_import-export'!$B$7:$B$13,0))=\"\",\"\",INDEX('Disagg.1A_import-export'!N$7:N$13,MATCH($A27,'Disagg.1A_import-export'!$B$7:$B$13,0))),\"\"))","v":""},{"$f":"IF(B27=\"\",\"\",IFERROR(IF(INDEX('Disagg.1A_import-export'!AC$7:AC$13,MATCH($A27,'Disagg.1A_import-export'!$B$7:$B$13,0))=\"\",\"\",INDEX('Disagg.1A_import-export'!AC$7:AC$13,MATCH($A27,'Disagg.1A_import-export'!$B$7:$B$13,0))),\"\"))","v":""}]
[{"$f":"IFERROR(IF(INDEX(ImpactDisaglist,MATCH(0,INDEX(COUNTIF(A$10:A27,ImpactDisaglist),0,0),0))<>\"\",INDEX(ImpactDisaglist,MATCH(0,INDEX(COUNTIF(A$10:A27,ImpactDisaglist),0,0),0)),INDEX(OutcomeDisaglist,MATCH(0,INDEX(COUNTIF(A$10:A27,OutcomeDisaglist),0,0),0))),\"\")","v":""},{"$f":"IFERROR(INDEX('Disagg.1A_import-export'!D$7:D$200,MATCH($A28,'Disagg.1A_import-export'!$B$7:$B$200,0)),\"\")","v":""},{"$f":"IF(B28=\"\",\"\",IFERROR(INDEX('Disagg.1A_import-export'!E$7:E$13,MATCH($A28,'Disagg.1A_import-export'!$B$7:$B$13,0)),\"\"))","v":""},{"$f":"IF(B28=\"\",\"\",IFERROR(IF(INDEX('Disagg.1A_import-export'!I$7:I$13,MATCH($A28,'Disagg.1A_import-export'!$B$7:$B$13,0))=\"\",\"\",INDEX('Disagg.1A_import-export'!I$7:I$13,MATCH($A28,'Disagg.1A_import-export'!$B$7:$B$13,0))),\"\"))","v":""},{"$f":"IF(B28=\"\",\"\",IFERROR(IF(INDEX('Disagg.1A_import-export'!J$7:J$13,MATCH($A28,'Disagg.1A_import-export'!$B$7:$B$13,0))=\"\",\"\",INDEX('Disagg.1A_import-export'!J$7:J$13,MATCH($A28,'Disagg.1A_import-export'!$B$7:$B$13,0))),\"\"))","v":""},{"$f":"IF(B28=\"\",\"\",IFERROR(IF(INDEX('Disagg.1A_import-export'!K$7:K$13,MATCH($A28,'Disagg.1A_import-export'!$B$7:$B$13,0))=\"\",\"\",INDEX('Disagg.1A_import-export'!K$7:K$13,MATCH($A28,'Disagg.1A_import-export'!$B$7:$B$13,0))),\"\"))","v":""},{"$f":"IF(B28=\"\",\"\",IFERROR(IF(INDEX('Disagg.1A_import-export'!L$7:L$13,MATCH($A28,'Disagg.1A_import-export'!$B$7:$B$13,0))=\"\",\"\",INDEX('Disagg.1A_import-export'!L$7:L$13,MATCH($A28,'Disagg.1A_import-export'!$B$7:$B$13,0))),\"\"))","v":""},{"$f":"IF(B28=\"\",\"\",IFERROR(IF(INDEX('Disagg.1A_import-export'!M$7:M$13,MATCH($A28,'Disagg.1A_import-export'!$B$7:$B$13,0))=\"\",\"\",INDEX('Disagg.1A_import-export'!M$7:M$13,MATCH($A28,'Disagg.1A_import-export'!$B$7:$B$13,0))),\"\"))","v":""},{"$f":"IF(B28=\"\",\"\",IFERROR(IF(INDEX('Disagg.1A_import-export'!N$7:N$13,MATCH($A28,'Disagg.1A_import-export'!$B$7:$B$13,0))=\"\",\"\",INDEX('Disagg.1A_import-export'!N$7:N$13,MATCH($A28,'Disagg.1A_import-export'!$B$7:$B$13,0))),\"\"))","v":""},{"$f":"IF(B28=\"\",\"\",IFERROR(IF(INDEX('Disagg.1A_import-export'!AC$7:AC$13,MATCH($A28,'Disagg.1A_import-export'!$B$7:$B$13,0))=\"\",\"\",INDEX('Disagg.1A_import-export'!AC$7:AC$13,MATCH($A28,'Disagg.1A_import-export'!$B$7:$B$13,0))),\"\"))","v":""}]
[{"$f":"IFERROR(IF(INDEX(ImpactDisaglist,MATCH(0,INDEX(COUNTIF(A$10:A28,ImpactDisaglist),0,0),0))<>\"\",INDEX(ImpactDisaglist,MATCH(0,INDEX(COUNTIF(A$10:A28,ImpactDisaglist),0,0),0)),INDEX(OutcomeDisaglist,MATCH(0,INDEX(COUNTIF(A$10:A28,OutcomeDisaglist),0,0),0))),\"\")","v":""},{"$f":"IFERROR(INDEX('Disagg.1A_import-export'!D$7:D$200,MATCH($A29,'Disagg.1A_import-export'!$B$7:$B$200,0)),\"\")","v":""},{"$f":"IF(B29=\"\",\"\",IFERROR(INDEX('Disagg.1A_import-export'!E$7:E$13,MATCH($A29,'Disagg.1A_import-export'!$B$7:$B$13,0)),\"\"))","v":""},{"$f":"IF(B29=\"\",\"\",IFERROR(IF(INDEX('Disagg.1A_import-export'!I$7:I$13,MATCH($A29,'Disagg.1A_import-export'!$B$7:$B$13,0))=\"\",\"\",INDEX('Disagg.1A_import-export'!I$7:I$13,MATCH($A29,'Disagg.1A_import-export'!$B$7:$B$13,0))),\"\"))","v":""},{"$f":"IF(B29=\"\",\"\",IFERROR(IF(INDEX('Disagg.1A_import-export'!J$7:J$13,MATCH($A29,'Disagg.1A_import-export'!$B$7:$B$13,0))=\"\",\"\",INDEX('Disagg.1A_import-export'!J$7:J$13,MATCH($A29,'Disagg.1A_import-export'!$B$7:$B$13,0))),\"\"))","v":""},{"$f":"IF(B29=\"\",\"\",IFERROR(IF(INDEX('Disagg.1A_import-export'!K$7:K$13,MATCH($A29,'Disagg.1A_import-export'!$B$7:$B$13,0))=\"\",\"\",INDEX('Disagg.1A_import-export'!K$7:K$13,MATCH($A29,'Disagg.1A_import-export'!$B$7:$B$13,0))),\"\"))","v":""},{"$f":"IF(B29=\"\",\"\",IFERROR(IF(INDEX('Disagg.1A_import-export'!L$7:L$13,MATCH($A29,'Disagg.1A_import-export'!$B$7:$B$13,0))=\"\",\"\",INDEX('Disagg.1A_import-export'!L$7:L$13,MATCH($A29,'Disagg.1A_import-export'!$B$7:$B$13,0))),\"\"))","v":""},{"$f":"IF(B29=\"\",\"\",IFERROR(IF(INDEX('Disagg.1A_import-export'!M$7:M$13,MATCH($A29,'Disagg.1A_import-export'!$B$7:$B$13,0))=\"\",\"\",INDEX('Disagg.1A_import-export'!M$7:M$13,MATCH($A29,'Disagg.1A_import-export'!$B$7:$B$13,0))),\"\"))","v":""},{"$f":"IF(B29=\"\",\"\",IFERROR(IF(INDEX('Disagg.1A_import-export'!N$7:N$13,MATCH($A29,'Disagg.1A_import-export'!$B$7:$B$13,0))=\"\",\"\",INDEX('Disagg.1A_import-export'!N$7:N$13,MATCH($A29,'Disagg.1A_import-export'!$B$7:$B$13,0))),\"\"))","v":""},{"$f":"IF(B29=\"\",\"\",IFERROR(IF(INDEX('Disagg.1A_import-export'!AC$7:AC$13,MATCH($A29,'Disagg.1A_import-export'!$B$7:$B$13,0))=\"\",\"\",INDEX('Disagg.1A_import-export'!AC$7:AC$13,MATCH($A29,'Disagg.1A_import-export'!$B$7:$B$13,0))),\"\"))","v":""}]
[{"$f":"IFERROR(IF(INDEX(ImpactDisaglist,MATCH(0,INDEX(COUNTIF(A$10:A29,ImpactDisaglist),0,0),0))<>\"\",INDEX(ImpactDisaglist,MATCH(0,INDEX(COUNTIF(A$10:A29,ImpactDisaglist),0,0),0)),INDEX(OutcomeDisaglist,MATCH(0,INDEX(COUNTIF(A$10:A29,OutcomeDisaglist),0,0),0))),\"\")","v":""},{"$f":"IFERROR(INDEX('Disagg.1A_import-export'!D$7:D$200,MATCH($A30,'Disagg.1A_import-export'!$B$7:$B$200,0)),\"\")","v":""},{"$f":"IF(B30=\"\",\"\",IFERROR(INDEX('Disagg.1A_import-export'!E$7:E$13,MATCH($A30,'Disagg.1A_import-export'!$B$7:$B$13,0)),\"\"))","v":""},{"$f":"IF(B30=\"\",\"\",IFERROR(IF(INDEX('Disagg.1A_import-export'!I$7:I$13,MATCH($A30,'Disagg.1A_import-export'!$B$7:$B$13,0))=\"\",\"\",INDEX('Disagg.1A_import-export'!I$7:I$13,MATCH($A30,'Disagg.1A_import-export'!$B$7:$B$13,0))),\"\"))","v":""},{"$f":"IF(B30=\"\",\"\",IFERROR(IF(INDEX('Disagg.1A_import-export'!J$7:J$13,MATCH($A30,'Disagg.1A_import-export'!$B$7:$B$13,0))=\"\",\"\",INDEX('Disagg.1A_import-export'!J$7:J$13,MATCH($A30,'Disagg.1A_import-export'!$B$7:$B$13,0))),\"\"))","v":""},{"$f":"IF(B30=\"\",\"\",IFERROR(IF(INDEX('Disagg.1A_import-export'!K$7:K$13,MATCH($A30,'Disagg.1A_import-export'!$B$7:$B$13,0))=\"\",\"\",INDEX('Disagg.1A_import-export'!K$7:K$13,MATCH($A30,'Disagg.1A_import-export'!$B$7:$B$13,0))),\"\"))","v":""},{"$f":"IF(B30=\"\",\"\",IFERROR(IF(INDEX('Disagg.1A_import-export'!L$7:L$13,MATCH($A30,'Disagg.1A_import-export'!$B$7:$B$13,0))=\"\",\"\",INDEX('Disagg.1A_import-export'!L$7:L$13,MATCH($A30,'Disagg.1A_import-export'!$B$7:$B$13,0))),\"\"))","v":""},{"$f":"IF(B30=\"\",\"\",IFERROR(IF(INDEX('Disagg.1A_import-export'!M$7:M$13,MATCH($A30,'Disagg.1A_import-export'!$B$7:$B$13,0))=\"\",\"\",INDEX('Disagg.1A_import-export'!M$7:M$13,MATCH($A30,'Disagg.1A_import-export'!$B$7:$B$13,0))),\"\"))","v":""},{"$f":"IF(B30=\"\",\"\",IFERROR(IF(INDEX('Disagg.1A_import-export'!N$7:N$13,MATCH($A30,'Disagg.1A_import-export'!$B$7:$B$13,0))=\"\",\"\",INDEX('Disagg.1A_import-export'!N$7:N$13,MATCH($A30,'Disagg.1A_import-export'!$B$7:$B$13,0))),\"\"))","v":""},{"$f":"IF(B30=\"\",\"\",IFERROR(IF(INDEX('Disagg.1A_import-export'!AC$7:AC$13,MATCH($A30,'Disagg.1A_import-export'!$B$7:$B$13,0))=\"\",\"\",INDEX('Disagg.1A_import-export'!AC$7:AC$13,MATCH($A30,'Disagg.1A_import-export'!$B$7:$B$13,0))),\"\"))","v":""}]
[{"$f":"IFERROR(IF(INDEX(ImpactDisaglist,MATCH(0,INDEX(COUNTIF(A$10:A30,ImpactDisaglist),0,0),0))<>\"\",INDEX(ImpactDisaglist,MATCH(0,INDEX(COUNTIF(A$10:A30,ImpactDisaglist),0,0),0)),INDEX(OutcomeDisaglist,MATCH(0,INDEX(COUNTIF(A$10:A30,OutcomeDisaglist),0,0),0))),\"\")","v":""},{"$f":"IFERROR(INDEX('Disagg.1A_import-export'!D$7:D$200,MATCH($A31,'Disagg.1A_import-export'!$B$7:$B$200,0)),\"\")","v":""},{"$f":"IF(B31=\"\",\"\",IFERROR(INDEX('Disagg.1A_import-export'!E$7:E$13,MATCH($A31,'Disagg.1A_import-export'!$B$7:$B$13,0)),\"\"))","v":""},{"$f":"IF(B31=\"\",\"\",IFERROR(IF(INDEX('Disagg.1A_import-export'!I$7:I$13,MATCH($A31,'Disagg.1A_import-export'!$B$7:$B$13,0))=\"\",\"\",INDEX('Disagg.1A_import-export'!I$7:I$13,MATCH($A31,'Disagg.1A_import-export'!$B$7:$B$13,0))),\"\"))","v":""},{"$f":"IF(B31=\"\",\"\",IFERROR(IF(INDEX('Disagg.1A_import-export'!J$7:J$13,MATCH($A31,'Disagg.1A_import-export'!$B$7:$B$13,0))=\"\",\"\",INDEX('Disagg.1A_import-export'!J$7:J$13,MATCH($A31,'Disagg.1A_import-export'!$B$7:$B$13,0))),\"\"))","v":""},{"$f":"IF(B31=\"\",\"\",IFERROR(IF(INDEX('Disagg.1A_import-export'!K$7:K$13,MATCH($A31,'Disagg.1A_import-export'!$B$7:$B$13,0))=\"\",\"\",INDEX('Disagg.1A_import-export'!K$7:K$13,MATCH($A31,'Disagg.1A_import-export'!$B$7:$B$13,0))),\"\"))","v":""},{"$f":"IF(B31=\"\",\"\",IFERROR(IF(INDEX('Disagg.1A_import-export'!L$7:L$13,MATCH($A31,'Disagg.1A_import-export'!$B$7:$B$13,0))=\"\",\"\",INDEX('Disagg.1A_import-export'!L$7:L$13,MATCH($A31,'Disagg.1A_import-export'!$B$7:$B$13,0))),\"\"))","v":""},{"$f":"IF(B31=\"\",\"\",IFERROR(IF(INDEX('Disagg.1A_import-export'!M$7:M$13,MATCH($A31,'Disagg.1A_import-export'!$B$7:$B$13,0))=\"\",\"\",INDEX('Disagg.1A_import-export'!M$7:M$13,MATCH($A31,'Disagg.1A_import-export'!$B$7:$B$13,0))),\"\"))","v":""},{"$f":"IF(B31=\"\",\"\",IFERROR(IF(INDEX('Disagg.1A_import-export'!N$7:N$13,MATCH($A31,'Disagg.1A_import-export'!$B$7:$B$13,0))=\"\",\"\",INDEX('Disagg.1A_import-export'!N$7:N$13,MATCH($A31,'Disagg.1A_import-export'!$B$7:$B$13,0))),\"\"))","v":""},{"$f":"IF(B31=\"\",\"\",IFERROR(IF(INDEX('Disagg.1A_import-export'!AC$7:AC$13,MATCH($A31,'Disagg.1A_import-export'!$B$7:$B$13,0))=\"\",\"\",INDEX('Disagg.1A_import-export'!AC$7:AC$13,MATCH($A31,'Disagg.1A_import-export'!$B$7:$B$13,0))),\"\"))","v":""}]
[{"$f":"IFERROR(IF(INDEX(ImpactDisaglist,MATCH(0,INDEX(COUNTIF(A$10:A31,ImpactDisaglist),0,0),0))<>\"\",INDEX(ImpactDisaglist,MATCH(0,INDEX(COUNTIF(A$10:A31,ImpactDisaglist),0,0),0)),INDEX(OutcomeDisaglist,MATCH(0,INDEX(COUNTIF(A$10:A31,OutcomeDisaglist),0,0),0))),\"\")","v":""},{"$f":"IFERROR(INDEX('Disagg.1A_import-export'!D$7:D$200,MATCH($A32,'Disagg.1A_import-export'!$B$7:$B$200,0)),\"\")","v":""},{"$f":"IF(B32=\"\",\"\",IFERROR(INDEX('Disagg.1A_import-export'!E$7:E$13,MATCH($A32,'Disagg.1A_import-export'!$B$7:$B$13,0)),\"\"))","v":""},{"$f":"IF(B32=\"\",\"\",IFERROR(IF(INDEX('Disagg.1A_import-export'!I$7:I$13,MATCH($A32,'Disagg.1A_import-export'!$B$7:$B$13,0))=\"\",\"\",INDEX('Disagg.1A_import-export'!I$7:I$13,MATCH($A32,'Disagg.1A_import-export'!$B$7:$B$13,0))),\"\"))","v":""},{"$f":"IF(B32=\"\",\"\",IFERROR(IF(INDEX('Disagg.1A_import-export'!J$7:J$13,MATCH($A32,'Disagg.1A_import-export'!$B$7:$B$13,0))=\"\",\"\",INDEX('Disagg.1A_import-export'!J$7:J$13,MATCH($A32,'Disagg.1A_import-export'!$B$7:$B$13,0))),\"\"))","v":""},{"$f":"IF(B32=\"\",\"\",IFERROR(IF(INDEX('Disagg.1A_import-export'!K$7:K$13,MATCH($A32,'Disagg.1A_import-export'!$B$7:$B$13,0))=\"\",\"\",INDEX('Disagg.1A_import-export'!K$7:K$13,MATCH($A32,'Disagg.1A_import-export'!$B$7:$B$13,0))),\"\"))","v":""},{"$f":"IF(B32=\"\",\"\",IFERROR(IF(INDEX('Disagg.1A_import-export'!L$7:L$13,MATCH($A32,'Disagg.1A_import-export'!$B$7:$B$13,0))=\"\",\"\",INDEX('Disagg.1A_import-export'!L$7:L$13,MATCH($A32,'Disagg.1A_import-export'!$B$7:$B$13,0))),\"\"))","v":""},{"$f":"IF(B32=\"\",\"\",IFERROR(IF(INDEX('Disagg.1A_import-export'!M$7:M$13,MATCH($A32,'Disagg.1A_import-export'!$B$7:$B$13,0))=\"\",\"\",INDEX('Disagg.1A_import-export'!M$7:M$13,MATCH($A32,'Disagg.1A_import-export'!$B$7:$B$13,0))),\"\"))","v":""},{"$f":"IF(B32=\"\",\"\",IFERROR(IF(INDEX('Disagg.1A_import-export'!N$7:N$13,MATCH($A32,'Disagg.1A_import-export'!$B$7:$B$13,0))=\"\",\"\",INDEX('Disagg.1A_import-export'!N$7:N$13,MATCH($A32,'Disagg.1A_import-export'!$B$7:$B$13,0))),\"\"))","v":""},{"$f":"IF(B32=\"\",\"\",IFERROR(IF(INDEX('Disagg.1A_import-export'!AC$7:AC$13,MATCH($A32,'Disagg.1A_import-export'!$B$7:$B$13,0))=\"\",\"\",INDEX('Disagg.1A_import-export'!AC$7:AC$13,MATCH($A32,'Disagg.1A_import-export'!$B$7:$B$13,0))),\"\"))","v":""}]
[{"$f":"IFERROR(IF(INDEX(ImpactDisaglist,MATCH(0,INDEX(COUNTIF(A$10:A32,ImpactDisaglist),0,0),0))<>\"\",INDEX(ImpactDisaglist,MATCH(0,INDEX(COUNTIF(A$10:A32,ImpactDisaglist),0,0),0)),INDEX(OutcomeDisaglist,MATCH(0,INDEX(COUNTIF(A$10:A32,OutcomeDisaglist),0,0),0))),\"\")","v":""},{"$f":"IFERROR(INDEX('Disagg.1A_import-export'!D$7:D$200,MATCH($A33,'Disagg.1A_import-export'!$B$7:$B$200,0)),\"\")","v":""},{"$f":"IF(B33=\"\",\"\",IFERROR(INDEX('Disagg.1A_import-export'!E$7:E$13,MATCH($A33,'Disagg.1A_import-export'!$B$7:$B$13,0)),\"\"))","v":""},{"$f":"IF(B33=\"\",\"\",IFERROR(IF(INDEX('Disagg.1A_import-export'!I$7:I$13,MATCH($A33,'Disagg.1A_import-export'!$B$7:$B$13,0))=\"\",\"\",INDEX('Disagg.1A_import-export'!I$7:I$13,MATCH($A33,'Disagg.1A_import-export'!$B$7:$B$13,0))),\"\"))","v":""},{"$f":"IF(B33=\"\",\"\",IFERROR(IF(INDEX('Disagg.1A_import-export'!J$7:J$13,MATCH($A33,'Disagg.1A_import-export'!$B$7:$B$13,0))=\"\",\"\",INDEX('Disagg.1A_import-export'!J$7:J$13,MATCH($A33,'Disagg.1A_import-export'!$B$7:$B$13,0))),\"\"))","v":""},{"$f":"IF(B33=\"\",\"\",IFERROR(IF(INDEX('Disagg.1A_import-export'!K$7:K$13,MATCH($A33,'Disagg.1A_import-export'!$B$7:$B$13,0))=\"\",\"\",INDEX('Disagg.1A_import-export'!K$7:K$13,MATCH($A33,'Disagg.1A_import-export'!$B$7:$B$13,0))),\"\"))","v":""},{"$f":"IF(B33=\"\",\"\",IFERROR(IF(INDEX('Disagg.1A_import-export'!L$7:L$13,MATCH($A33,'Disagg.1A_import-export'!$B$7:$B$13,0))=\"\",\"\",INDEX('Disagg.1A_import-export'!L$7:L$13,MATCH($A33,'Disagg.1A_import-export'!$B$7:$B$13,0))),\"\"))","v":""},{"$f":"IF(B33=\"\",\"\",IFERROR(IF(INDEX('Disagg.1A_import-export'!M$7:M$13,MATCH($A33,'Disagg.1A_import-export'!$B$7:$B$13,0))=\"\",\"\",INDEX('Disagg.1A_import-export'!M$7:M$13,MATCH($A33,'Disagg.1A_import-export'!$B$7:$B$13,0))),\"\"))","v":""},{"$f":"IF(B33=\"\",\"\",IFERROR(IF(INDEX('Disagg.1A_import-export'!N$7:N$13,MATCH($A33,'Disagg.1A_import-export'!$B$7:$B$13,0))=\"\",\"\",INDEX('Disagg.1A_import-export'!N$7:N$13,MATCH($A33,'Disagg.1A_import-export'!$B$7:$B$13,0))),\"\"))","v":""},{"$f":"IF(B33=\"\",\"\",IFERROR(IF(INDEX('Disagg.1A_import-export'!AC$7:AC$13,MATCH($A33,'Disagg.1A_import-export'!$B$7:$B$13,0))=\"\",\"\",INDEX('Disagg.1A_import-export'!AC$7:AC$13,MATCH($A33,'Disagg.1A_import-export'!$B$7:$B$13,0))),\"\"))","v":""}]
[{"$f":"IFERROR(IF(INDEX(ImpactDisaglist,MATCH(0,INDEX(COUNTIF(A$10:A33,ImpactDisaglist),0,0),0))<>\"\",INDEX(ImpactDisaglist,MATCH(0,INDEX(COUNTIF(A$10:A33,ImpactDisaglist),0,0),0)),INDEX(OutcomeDisaglist,MATCH(0,INDEX(COUNTIF(A$10:A33,OutcomeDisaglist),0,0),0))),\"\")","v":""},{"$f":"IFERROR(INDEX('Disagg.1A_import-export'!D$7:D$200,MATCH($A34,'Disagg.1A_import-export'!$B$7:$B$200,0)),\"\")","v":""},{"$f":"IF(B34=\"\",\"\",IFERROR(INDEX('Disagg.1A_import-export'!E$7:E$13,MATCH($A34,'Disagg.1A_import-export'!$B$7:$B$13,0)),\"\"))","v":""},{"$f":"IF(B34=\"\",\"\",IFERROR(IF(INDEX('Disagg.1A_import-export'!I$7:I$13,MATCH($A34,'Disagg.1A_import-export'!$B$7:$B$13,0))=\"\",\"\",INDEX('Disagg.1A_import-export'!I$7:I$13,MATCH($A34,'Disagg.1A_import-export'!$B$7:$B$13,0))),\"\"))","v":""},{"$f":"IF(B34=\"\",\"\",IFERROR(IF(INDEX('Disagg.1A_import-export'!J$7:J$13,MATCH($A34,'Disagg.1A_import-export'!$B$7:$B$13,0))=\"\",\"\",INDEX('Disagg.1A_import-export'!J$7:J$13,MATCH($A34,'Disagg.1A_import-export'!$B$7:$B$13,0))),\"\"))","v":""},{"$f":"IF(B34=\"\",\"\",IFERROR(IF(INDEX('Disagg.1A_import-export'!K$7:K$13,MATCH($A34,'Disagg.1A_import-export'!$B$7:$B$13,0))=\"\",\"\",INDEX('Disagg.1A_import-export'!K$7:K$13,MATCH($A34,'Disagg.1A_import-export'!$B$7:$B$13,0))),\"\"))","v":""},{"$f":"IF(B34=\"\",\"\",IFERROR(IF(INDEX('Disagg.1A_import-export'!L$7:L$13,MATCH($A34,'Disagg.1A_import-export'!$B$7:$B$13,0))=\"\",\"\",INDEX('Disagg.1A_import-export'!L$7:L$13,MATCH($A34,'Disagg.1A_import-export'!$B$7:$B$13,0))),\"\"))","v":""},{"$f":"IF(B34=\"\",\"\",IFERROR(IF(INDEX('Disagg.1A_import-export'!M$7:M$13,MATCH($A34,'Disagg.1A_import-export'!$B$7:$B$13,0))=\"\",\"\",INDEX('Disagg.1A_import-export'!M$7:M$13,MATCH($A34,'Disagg.1A_import-export'!$B$7:$B$13,0))),\"\"))","v":""},{"$f":"IF(B34=\"\",\"\",IFERROR(IF(INDEX('Disagg.1A_import-export'!N$7:N$13,MATCH($A34,'Disagg.1A_import-export'!$B$7:$B$13,0))=\"\",\"\",INDEX('Disagg.1A_import-export'!N$7:N$13,MATCH($A34,'Disagg.1A_import-export'!$B$7:$B$13,0))),\"\"))","v":""},{"$f":"IF(B34=\"\",\"\",IFERROR(IF(INDEX('Disagg.1A_import-export'!AC$7:AC$13,MATCH($A34,'Disagg.1A_import-export'!$B$7:$B$13,0))=\"\",\"\",INDEX('Disagg.1A_import-export'!AC$7:AC$13,MATCH($A34,'Disagg.1A_import-export'!$B$7:$B$13,0))),\"\"))","v":""}]
[{"$f":"IFERROR(IF(INDEX(ImpactDisaglist,MATCH(0,INDEX(COUNTIF(A$10:A34,ImpactDisaglist),0,0),0))<>\"\",INDEX(ImpactDisaglist,MATCH(0,INDEX(COUNTIF(A$10:A34,ImpactDisaglist),0,0),0)),INDEX(OutcomeDisaglist,MATCH(0,INDEX(COUNTIF(A$10:A34,OutcomeDisaglist),0,0),0))),\"\")","v":""},{"$f":"IFERROR(INDEX('Disagg.1A_import-export'!D$7:D$200,MATCH($A35,'Disagg.1A_import-export'!$B$7:$B$200,0)),\"\")","v":""},{"$f":"IF(B35=\"\",\"\",IFERROR(INDEX('Disagg.1A_import-export'!E$7:E$13,MATCH($A35,'Disagg.1A_import-export'!$B$7:$B$13,0)),\"\"))","v":""},{"$f":"IF(B35=\"\",\"\",IFERROR(IF(INDEX('Disagg.1A_import-export'!I$7:I$13,MATCH($A35,'Disagg.1A_import-export'!$B$7:$B$13,0))=\"\",\"\",INDEX('Disagg.1A_import-export'!I$7:I$13,MATCH($A35,'Disagg.1A_import-export'!$B$7:$B$13,0))),\"\"))","v":""},{"$f":"IF(B35=\"\",\"\",IFERROR(IF(INDEX('Disagg.1A_import-export'!J$7:J$13,MATCH($A35,'Disagg.1A_import-export'!$B$7:$B$13,0))=\"\",\"\",INDEX('Disagg.1A_import-export'!J$7:J$13,MATCH($A35,'Disagg.1A_import-export'!$B$7:$B$13,0))),\"\"))","v":""},{"$f":"IF(B35=\"\",\"\",IFERROR(IF(INDEX('Disagg.1A_import-export'!K$7:K$13,MATCH($A35,'Disagg.1A_import-export'!$B$7:$B$13,0))=\"\",\"\",INDEX('Disagg.1A_import-export'!K$7:K$13,MATCH($A35,'Disagg.1A_import-export'!$B$7:$B$13,0))),\"\"))","v":""},{"$f":"IF(B35=\"\",\"\",IFERROR(IF(INDEX('Disagg.1A_import-export'!L$7:L$13,MATCH($A35,'Disagg.1A_import-export'!$B$7:$B$13,0))=\"\",\"\",INDEX('Disagg.1A_import-export'!L$7:L$13,MATCH($A35,'Disagg.1A_import-export'!$B$7:$B$13,0))),\"\"))","v":""},{"$f":"IF(B35=\"\",\"\",IFERROR(IF(INDEX('Disagg.1A_import-export'!M$7:M$13,MATCH($A35,'Disagg.1A_import-export'!$B$7:$B$13,0))=\"\",\"\",INDEX('Disagg.1A_import-export'!M$7:M$13,MATCH($A35,'Disagg.1A_import-export'!$B$7:$B$13,0))),\"\"))","v":""},{"$f":"IF(B35=\"\",\"\",IFERROR(IF(INDEX('Disagg.1A_import-export'!N$7:N$13,MATCH($A35,'Disagg.1A_import-export'!$B$7:$B$13,0))=\"\",\"\",INDEX('Disagg.1A_import-export'!N$7:N$13,MATCH($A35,'Disagg.1A_import-export'!$B$7:$B$13,0))),\"\"))","v":""},{"$f":"IF(B35=\"\",\"\",IFERROR(IF(INDEX('Disagg.1A_import-export'!AC$7:AC$13,MATCH($A35,'Disagg.1A_import-export'!$B$7:$B$13,0))=\"\",\"\",INDEX('Disagg.1A_import-export'!AC$7:AC$13,MATCH($A35,'Disagg.1A_import-export'!$B$7:$B$13,0))),\"\"))","v":""}]
[{"$f":"IFERROR(IF(INDEX(ImpactDisaglist,MATCH(0,INDEX(COUNTIF(A$10:A35,ImpactDisaglist),0,0),0))<>\"\",INDEX(ImpactDisaglist,MATCH(0,INDEX(COUNTIF(A$10:A35,ImpactDisaglist),0,0),0)),INDEX(OutcomeDisaglist,MATCH(0,INDEX(COUNTIF(A$10:A35,OutcomeDisaglist),0,0),0))),\"\")","v":""},{"$f":"IFERROR(INDEX('Disagg.1A_import-export'!D$7:D$200,MATCH($A36,'Disagg.1A_import-export'!$B$7:$B$200,0)),\"\")","v":""},{"$f":"IF(B36=\"\",\"\",IFERROR(INDEX('Disagg.1A_import-export'!E$7:E$13,MATCH($A36,'Disagg.1A_import-export'!$B$7:$B$13,0)),\"\"))","v":""},{"$f":"IF(B36=\"\",\"\",IFERROR(IF(INDEX('Disagg.1A_import-export'!I$7:I$13,MATCH($A36,'Disagg.1A_import-export'!$B$7:$B$13,0))=\"\",\"\",INDEX('Disagg.1A_import-export'!I$7:I$13,MATCH($A36,'Disagg.1A_import-export'!$B$7:$B$13,0))),\"\"))","v":""},{"$f":"IF(B36=\"\",\"\",IFERROR(IF(INDEX('Disagg.1A_import-export'!J$7:J$13,MATCH($A36,'Disagg.1A_import-export'!$B$7:$B$13,0))=\"\",\"\",INDEX('Disagg.1A_import-export'!J$7:J$13,MATCH($A36,'Disagg.1A_import-export'!$B$7:$B$13,0))),\"\"))","v":""},{"$f":"IF(B36=\"\",\"\",IFERROR(IF(INDEX('Disagg.1A_import-export'!K$7:K$13,MATCH($A36,'Disagg.1A_import-export'!$B$7:$B$13,0))=\"\",\"\",INDEX('Disagg.1A_import-export'!K$7:K$13,MATCH($A36,'Disagg.1A_import-export'!$B$7:$B$13,0))),\"\"))","v":""},{"$f":"IF(B36=\"\",\"\",IFERROR(IF(INDEX('Disagg.1A_import-export'!L$7:L$13,MATCH($A36,'Disagg.1A_import-export'!$B$7:$B$13,0))=\"\",\"\",INDEX('Disagg.1A_import-export'!L$7:L$13,MATCH($A36,'Disagg.1A_import-export'!$B$7:$B$13,0))),\"\"))","v":""},{"$f":"IF(B36=\"\",\"\",IFERROR(IF(INDEX('Disagg.1A_import-export'!M$7:M$13,MATCH($A36,'Disagg.1A_import-export'!$B$7:$B$13,0))=\"\",\"\",INDEX('Disagg.1A_import-export'!M$7:M$13,MATCH($A36,'Disagg.1A_import-export'!$B$7:$B$13,0))),\"\"))","v":""},{"$f":"IF(B36=\"\",\"\",IFERROR(IF(INDEX('Disagg.1A_import-export'!N$7:N$13,MATCH($A36,'Disagg.1A_import-export'!$B$7:$B$13,0))=\"\",\"\",INDEX('Disagg.1A_import-export'!N$7:N$13,MATCH($A36,'Disagg.1A_import-export'!$B$7:$B$13,0))),\"\"))","v":""},{"$f":"IF(B36=\"\",\"\",IFERROR(IF(INDEX('Disagg.1A_import-export'!AC$7:AC$13,MATCH($A36,'Disagg.1A_import-export'!$B$7:$B$13,0))=\"\",\"\",INDEX('Disagg.1A_import-export'!AC$7:AC$13,MATCH($A36,'Disagg.1A_import-export'!$B$7:$B$13,0))),\"\"))","v":""}]
[{"$f":"IFERROR(IF(INDEX(ImpactDisaglist,MATCH(0,INDEX(COUNTIF(A$10:A36,ImpactDisaglist),0,0),0))<>\"\",INDEX(ImpactDisaglist,MATCH(0,INDEX(COUNTIF(A$10:A36,ImpactDisaglist),0,0),0)),INDEX(OutcomeDisaglist,MATCH(0,INDEX(COUNTIF(A$10:A36,OutcomeDisaglist),0,0),0))),\"\")","v":""},{"$f":"IFERROR(INDEX('Disagg.1A_import-export'!D$7:D$200,MATCH($A37,'Disagg.1A_import-export'!$B$7:$B$200,0)),\"\")","v":""},{"$f":"IF(B37=\"\",\"\",IFERROR(INDEX('Disagg.1A_import-export'!E$7:E$13,MATCH($A37,'Disagg.1A_import-export'!$B$7:$B$13,0)),\"\"))","v":""},{"$f":"IF(B37=\"\",\"\",IFERROR(IF(INDEX('Disagg.1A_import-export'!I$7:I$13,MATCH($A37,'Disagg.1A_import-export'!$B$7:$B$13,0))=\"\",\"\",INDEX('Disagg.1A_import-export'!I$7:I$13,MATCH($A37,'Disagg.1A_import-export'!$B$7:$B$13,0))),\"\"))","v":""},{"$f":"IF(B37=\"\",\"\",IFERROR(IF(INDEX('Disagg.1A_import-export'!J$7:J$13,MATCH($A37,'Disagg.1A_import-export'!$B$7:$B$13,0))=\"\",\"\",INDEX('Disagg.1A_import-export'!J$7:J$13,MATCH($A37,'Disagg.1A_import-export'!$B$7:$B$13,0))),\"\"))","v":""},{"$f":"IF(B37=\"\",\"\",IFERROR(IF(INDEX('Disagg.1A_import-export'!K$7:K$13,MATCH($A37,'Disagg.1A_import-export'!$B$7:$B$13,0))=\"\",\"\",INDEX('Disagg.1A_import-export'!K$7:K$13,MATCH($A37,'Disagg.1A_import-export'!$B$7:$B$13,0))),\"\"))","v":""},{"$f":"IF(B37=\"\",\"\",IFERROR(IF(INDEX('Disagg.1A_import-export'!L$7:L$13,MATCH($A37,'Disagg.1A_import-export'!$B$7:$B$13,0))=\"\",\"\",INDEX('Disagg.1A_import-export'!L$7:L$13,MATCH($A37,'Disagg.1A_import-export'!$B$7:$B$13,0))),\"\"))","v":""},{"$f":"IF(B37=\"\",\"\",IFERROR(IF(INDEX('Disagg.1A_import-export'!M$7:M$13,MATCH($A37,'Disagg.1A_import-export'!$B$7:$B$13,0))=\"\",\"\",INDEX('Disagg.1A_import-export'!M$7:M$13,MATCH($A37,'Disagg.1A_import-export'!$B$7:$B$13,0))),\"\"))","v":""},{"$f":"IF(B37=\"\",\"\",IFERROR(IF(INDEX('Disagg.1A_import-export'!N$7:N$13,MATCH($A37,'Disagg.1A_import-export'!$B$7:$B$13,0))=\"\",\"\",INDEX('Disagg.1A_import-export'!N$7:N$13,MATCH($A37,'Disagg.1A_import-export'!$B$7:$B$13,0))),\"\"))","v":""},{"$f":"IF(B37=\"\",\"\",IFERROR(IF(INDEX('Disagg.1A_import-export'!AC$7:AC$13,MATCH($A37,'Disagg.1A_import-export'!$B$7:$B$13,0))=\"\",\"\",INDEX('Disagg.1A_import-export'!AC$7:AC$13,MATCH($A37,'Disagg.1A_import-export'!$B$7:$B$13,0))),\"\"))","v":""}]
[{"$f":"IFERROR(IF(INDEX(ImpactDisaglist,MATCH(0,INDEX(COUNTIF(A$10:A37,ImpactDisaglist),0,0),0))<>\"\",INDEX(ImpactDisaglist,MATCH(0,INDEX(COUNTIF(A$10:A37,ImpactDisaglist),0,0),0)),INDEX(OutcomeDisaglist,MATCH(0,INDEX(COUNTIF(A$10:A37,OutcomeDisaglist),0,0),0))),\"\")","v":""},{"$f":"IFERROR(INDEX('Disagg.1A_import-export'!D$7:D$200,MATCH($A38,'Disagg.1A_import-export'!$B$7:$B$200,0)),\"\")","v":""},{"$f":"IF(B38=\"\",\"\",IFERROR(INDEX('Disagg.1A_import-export'!E$7:E$13,MATCH($A38,'Disagg.1A_import-export'!$B$7:$B$13,0)),\"\"))","v":""},{"$f":"IF(B38=\"\",\"\",IFERROR(IF(INDEX('Disagg.1A_import-export'!I$7:I$13,MATCH($A38,'Disagg.1A_import-export'!$B$7:$B$13,0))=\"\",\"\",INDEX('Disagg.1A_import-export'!I$7:I$13,MATCH($A38,'Disagg.1A_import-export'!$B$7:$B$13,0))),\"\"))","v":""},{"$f":"IF(B38=\"\",\"\",IFERROR(IF(INDEX('Disagg.1A_import-export'!J$7:J$13,MATCH($A38,'Disagg.1A_import-export'!$B$7:$B$13,0))=\"\",\"\",INDEX('Disagg.1A_import-export'!J$7:J$13,MATCH($A38,'Disagg.1A_import-export'!$B$7:$B$13,0))),\"\"))","v":""},{"$f":"IF(B38=\"\",\"\",IFERROR(IF(INDEX('Disagg.1A_import-export'!K$7:K$13,MATCH($A38,'Disagg.1A_import-export'!$B$7:$B$13,0))=\"\",\"\",INDEX('Disagg.1A_import-export'!K$7:K$13,MATCH($A38,'Disagg.1A_import-export'!$B$7:$B$13,0))),\"\"))","v":""},{"$f":"IF(B38=\"\",\"\",IFERROR(IF(INDEX('Disagg.1A_import-export'!L$7:L$13,MATCH($A38,'Disagg.1A_import-export'!$B$7:$B$13,0))=\"\",\"\",INDEX('Disagg.1A_import-export'!L$7:L$13,MATCH($A38,'Disagg.1A_import-export'!$B$7:$B$13,0))),\"\"))","v":""},{"$f":"IF(B38=\"\",\"\",IFERROR(IF(INDEX('Disagg.1A_import-export'!M$7:M$13,MATCH($A38,'Disagg.1A_import-export'!$B$7:$B$13,0))=\"\",\"\",INDEX('Disagg.1A_import-export'!M$7:M$13,MATCH($A38,'Disagg.1A_import-export'!$B$7:$B$13,0))),\"\"))","v":""},{"$f":"IF(B38=\"\",\"\",IFERROR(IF(INDEX('Disagg.1A_import-export'!N$7:N$13,MATCH($A38,'Disagg.1A_import-export'!$B$7:$B$13,0))=\"\",\"\",INDEX('Disagg.1A_import-export'!N$7:N$13,MATCH($A38,'Disagg.1A_import-export'!$B$7:$B$13,0))),\"\"))","v":""},{"$f":"IF(B38=\"\",\"\",IFERROR(IF(INDEX('Disagg.1A_import-export'!AC$7:AC$13,MATCH($A38,'Disagg.1A_import-export'!$B$7:$B$13,0))=\"\",\"\",INDEX('Disagg.1A_import-export'!AC$7:AC$13,MATCH($A38,'Disagg.1A_import-export'!$B$7:$B$13,0))),\"\"))","v":""}]
[{"$f":"IFERROR(IF(INDEX(ImpactDisaglist,MATCH(0,INDEX(COUNTIF(A$10:A38,ImpactDisaglist),0,0),0))<>\"\",INDEX(ImpactDisaglist,MATCH(0,INDEX(COUNTIF(A$10:A38,ImpactDisaglist),0,0),0)),INDEX(OutcomeDisaglist,MATCH(0,INDEX(COUNTIF(A$10:A38,OutcomeDisaglist),0,0),0))),\"\")","v":""},{"$f":"IFERROR(INDEX('Disagg.1A_import-export'!D$7:D$200,MATCH($A39,'Disagg.1A_import-export'!$B$7:$B$200,0)),\"\")","v":""},{"$f":"IF(B39=\"\",\"\",IFERROR(INDEX('Disagg.1A_import-export'!E$7:E$13,MATCH($A39,'Disagg.1A_import-export'!$B$7:$B$13,0)),\"\"))","v":""},{"$f":"IF(B39=\"\",\"\",IFERROR(IF(INDEX('Disagg.1A_import-export'!I$7:I$13,MATCH($A39,'Disagg.1A_import-export'!$B$7:$B$13,0))=\"\",\"\",INDEX('Disagg.1A_import-export'!I$7:I$13,MATCH($A39,'Disagg.1A_import-export'!$B$7:$B$13,0))),\"\"))","v":""},{"$f":"IF(B39=\"\",\"\",IFERROR(IF(INDEX('Disagg.1A_import-export'!J$7:J$13,MATCH($A39,'Disagg.1A_import-export'!$B$7:$B$13,0))=\"\",\"\",INDEX('Disagg.1A_import-export'!J$7:J$13,MATCH($A39,'Disagg.1A_import-export'!$B$7:$B$13,0))),\"\"))","v":""},{"$f":"IF(B39=\"\",\"\",IFERROR(IF(INDEX('Disagg.1A_import-export'!K$7:K$13,MATCH($A39,'Disagg.1A_import-export'!$B$7:$B$13,0))=\"\",\"\",INDEX('Disagg.1A_import-export'!K$7:K$13,MATCH($A39,'Disagg.1A_import-export'!$B$7:$B$13,0))),\"\"))","v":""},{"$f":"IF(B39=\"\",\"\",IFERROR(IF(INDEX('Disagg.1A_import-export'!L$7:L$13,MATCH($A39,'Disagg.1A_import-export'!$B$7:$B$13,0))=\"\",\"\",INDEX('Disagg.1A_import-export'!L$7:L$13,MATCH($A39,'Disagg.1A_import-export'!$B$7:$B$13,0))),\"\"))","v":""},{"$f":"IF(B39=\"\",\"\",IFERROR(IF(INDEX('Disagg.1A_import-export'!M$7:M$13,MATCH($A39,'Disagg.1A_import-export'!$B$7:$B$13,0))=\"\",\"\",INDEX('Disagg.1A_import-export'!M$7:M$13,MATCH($A39,'Disagg.1A_import-export'!$B$7:$B$13,0))),\"\"))","v":""},{"$f":"IF(B39=\"\",\"\",IFERROR(IF(INDEX('Disagg.1A_import-export'!N$7:N$13,MATCH($A39,'Disagg.1A_import-export'!$B$7:$B$13,0))=\"\",\"\",INDEX('Disagg.1A_import-export'!N$7:N$13,MATCH($A39,'Disagg.1A_import-export'!$B$7:$B$13,0))),\"\"))","v":""},{"$f":"IF(B39=\"\",\"\",IFERROR(IF(INDEX('Disagg.1A_import-export'!AC$7:AC$13,MATCH($A39,'Disagg.1A_import-export'!$B$7:$B$13,0))=\"\",\"\",INDEX('Disagg.1A_import-export'!AC$7:AC$13,MATCH($A39,'Disagg.1A_import-export'!$B$7:$B$13,0))),\"\"))","v":""}]
[{"$f":"IFERROR(IF(INDEX(ImpactDisaglist,MATCH(0,INDEX(COUNTIF(A$10:A39,ImpactDisaglist),0,0),0))<>\"\",INDEX(ImpactDisaglist,MATCH(0,INDEX(COUNTIF(A$10:A39,ImpactDisaglist),0,0),0)),INDEX(OutcomeDisaglist,MATCH(0,INDEX(COUNTIF(A$10:A39,OutcomeDisaglist),0,0),0))),\"\")","v":""},{"$f":"IFERROR(INDEX('Disagg.1A_import-export'!D$7:D$200,MATCH($A40,'Disagg.1A_import-export'!$B$7:$B$200,0)),\"\")","v":""},{"$f":"IF(B40=\"\",\"\",IFERROR(INDEX('Disagg.1A_import-export'!E$7:E$13,MATCH($A40,'Disagg.1A_import-export'!$B$7:$B$13,0)),\"\"))","v":""},{"$f":"IF(B40=\"\",\"\",IFERROR(IF(INDEX('Disagg.1A_import-export'!I$7:I$13,MATCH($A40,'Disagg.1A_import-export'!$B$7:$B$13,0))=\"\",\"\",INDEX('Disagg.1A_import-export'!I$7:I$13,MATCH($A40,'Disagg.1A_import-export'!$B$7:$B$13,0))),\"\"))","v":""},{"$f":"IF(B40=\"\",\"\",IFERROR(IF(INDEX('Disagg.1A_import-export'!J$7:J$13,MATCH($A40,'Disagg.1A_import-export'!$B$7:$B$13,0))=\"\",\"\",INDEX('Disagg.1A_import-export'!J$7:J$13,MATCH($A40,'Disagg.1A_import-export'!$B$7:$B$13,0))),\"\"))","v":""},{"$f":"IF(B40=\"\",\"\",IFERROR(IF(INDEX('Disagg.1A_import-export'!K$7:K$13,MATCH($A40,'Disagg.1A_import-export'!$B$7:$B$13,0))=\"\",\"\",INDEX('Disagg.1A_import-export'!K$7:K$13,MATCH($A40,'Disagg.1A_import-export'!$B$7:$B$13,0))),\"\"))","v":""},{"$f":"IF(B40=\"\",\"\",IFERROR(IF(INDEX('Disagg.1A_import-export'!L$7:L$13,MATCH($A40,'Disagg.1A_import-export'!$B$7:$B$13,0))=\"\",\"\",INDEX('Disagg.1A_import-export'!L$7:L$13,MATCH($A40,'Disagg.1A_import-export'!$B$7:$B$13,0))),\"\"))","v":""},{"$f":"IF(B40=\"\",\"\",IFERROR(IF(INDEX('Disagg.1A_import-export'!M$7:M$13,MATCH($A40,'Disagg.1A_import-export'!$B$7:$B$13,0))=\"\",\"\",INDEX('Disagg.1A_import-export'!M$7:M$13,MATCH($A40,'Disagg.1A_import-export'!$B$7:$B$13,0))),\"\"))","v":""},{"$f":"IF(B40=\"\",\"\",IFERROR(IF(INDEX('Disagg.1A_import-export'!N$7:N$13,MATCH($A40,'Disagg.1A_import-export'!$B$7:$B$13,0))=\"\",\"\",INDEX('Disagg.1A_import-export'!N$7:N$13,MATCH($A40,'Disagg.1A_import-export'!$B$7:$B$13,0))),\"\"))","v":""},{"$f":"IF(B40=\"\",\"\",IFERROR(IF(INDEX('Disagg.1A_import-export'!AC$7:AC$13,MATCH($A40,'Disagg.1A_import-export'!$B$7:$B$13,0))=\"\",\"\",INDEX('Disagg.1A_import-export'!AC$7:AC$13,MATCH($A40,'Disagg.1A_import-export'!$B$7:$B$13,0))),\"\"))","v":""}]
[{"$f":"IFERROR(IF(INDEX(ImpactDisaglist,MATCH(0,INDEX(COUNTIF(A$10:A40,ImpactDisaglist),0,0),0))<>\"\",INDEX(ImpactDisaglist,MATCH(0,INDEX(COUNTIF(A$10:A40,ImpactDisaglist),0,0),0)),INDEX(OutcomeDisaglist,MATCH(0,INDEX(COUNTIF(A$10:A40,OutcomeDisaglist),0,0),0))),\"\")","v":""},{"$f":"IFERROR(INDEX('Disagg.1A_import-export'!D$7:D$200,MATCH($A41,'Disagg.1A_import-export'!$B$7:$B$200,0)),\"\")","v":""},{"$f":"IF(B41=\"\",\"\",IFERROR(INDEX('Disagg.1A_import-export'!E$7:E$13,MATCH($A41,'Disagg.1A_import-export'!$B$7:$B$13,0)),\"\"))","v":""},{"$f":"IF(B41=\"\",\"\",IFERROR(IF(INDEX('Disagg.1A_import-export'!I$7:I$13,MATCH($A41,'Disagg.1A_import-export'!$B$7:$B$13,0))=\"\",\"\",INDEX('Disagg.1A_import-export'!I$7:I$13,MATCH($A41,'Disagg.1A_import-export'!$B$7:$B$13,0))),\"\"))","v":""},{"$f":"IF(B41=\"\",\"\",IFERROR(IF(INDEX('Disagg.1A_import-export'!J$7:J$13,MATCH($A41,'Disagg.1A_import-export'!$B$7:$B$13,0))=\"\",\"\",INDEX('Disagg.1A_import-export'!J$7:J$13,MATCH($A41,'Disagg.1A_import-export'!$B$7:$B$13,0))),\"\"))","v":""},{"$f":"IF(B41=\"\",\"\",IFERROR(IF(INDEX('Disagg.1A_import-export'!K$7:K$13,MATCH($A41,'Disagg.1A_import-export'!$B$7:$B$13,0))=\"\",\"\",INDEX('Disagg.1A_import-export'!K$7:K$13,MATCH($A41,'Disagg.1A_import-export'!$B$7:$B$13,0))),\"\"))","v":""},{"$f":"IF(B41=\"\",\"\",IFERROR(IF(INDEX('Disagg.1A_import-export'!L$7:L$13,MATCH($A41,'Disagg.1A_import-export'!$B$7:$B$13,0))=\"\",\"\",INDEX('Disagg.1A_import-export'!L$7:L$13,MATCH($A41,'Disagg.1A_import-export'!$B$7:$B$13,0))),\"\"))","v":""},{"$f":"IF(B41=\"\",\"\",IFERROR(IF(INDEX('Disagg.1A_import-export'!M$7:M$13,MATCH($A41,'Disagg.1A_import-export'!$B$7:$B$13,0))=\"\",\"\",INDEX('Disagg.1A_import-export'!M$7:M$13,MATCH($A41,'Disagg.1A_import-export'!$B$7:$B$13,0))),\"\"))","v":""},{"$f":"IF(B41=\"\",\"\",IFERROR(IF(INDEX('Disagg.1A_import-export'!N$7:N$13,MATCH($A41,'Disagg.1A_import-export'!$B$7:$B$13,0))=\"\",\"\",INDEX('Disagg.1A_import-export'!N$7:N$13,MATCH($A41,'Disagg.1A_import-export'!$B$7:$B$13,0))),\"\"))","v":""},{"$f":"IF(B41=\"\",\"\",IFERROR(IF(INDEX('Disagg.1A_import-export'!AC$7:AC$13,MATCH($A41,'Disagg.1A_import-export'!$B$7:$B$13,0))=\"\",\"\",INDEX('Disagg.1A_import-export'!AC$7:AC$13,MATCH($A41,'Disagg.1A_import-export'!$B$7:$B$13,0))),\"\"))","v":""}]
[{"$f":"IFERROR(IF(INDEX(ImpactDisaglist,MATCH(0,INDEX(COUNTIF(A$10:A41,ImpactDisaglist),0,0),0))<>\"\",INDEX(ImpactDisaglist,MATCH(0,INDEX(COUNTIF(A$10:A41,ImpactDisaglist),0,0),0)),INDEX(OutcomeDisaglist,MATCH(0,INDEX(COUNTIF(A$10:A41,OutcomeDisaglist),0,0),0))),\"\")","v":""},{"$f":"IFERROR(INDEX('Disagg.1A_import-export'!D$7:D$200,MATCH($A42,'Disagg.1A_import-export'!$B$7:$B$200,0)),\"\")","v":""},{"$f":"IF(B42=\"\",\"\",IFERROR(INDEX('Disagg.1A_import-export'!E$7:E$13,MATCH($A42,'Disagg.1A_import-export'!$B$7:$B$13,0)),\"\"))","v":""},{"$f":"IF(B42=\"\",\"\",IFERROR(IF(INDEX('Disagg.1A_import-export'!I$7:I$13,MATCH($A42,'Disagg.1A_import-export'!$B$7:$B$13,0))=\"\",\"\",INDEX('Disagg.1A_import-export'!I$7:I$13,MATCH($A42,'Disagg.1A_import-export'!$B$7:$B$13,0))),\"\"))","v":""},{"$f":"IF(B42=\"\",\"\",IFERROR(IF(INDEX('Disagg.1A_import-export'!J$7:J$13,MATCH($A42,'Disagg.1A_import-export'!$B$7:$B$13,0))=\"\",\"\",INDEX('Disagg.1A_import-export'!J$7:J$13,MATCH($A42,'Disagg.1A_import-export'!$B$7:$B$13,0))),\"\"))","v":""},{"$f":"IF(B42=\"\",\"\",IFERROR(IF(INDEX('Disagg.1A_import-export'!K$7:K$13,MATCH($A42,'Disagg.1A_import-export'!$B$7:$B$13,0))=\"\",\"\",INDEX('Disagg.1A_import-export'!K$7:K$13,MATCH($A42,'Disagg.1A_import-export'!$B$7:$B$13,0))),\"\"))","v":""},{"$f":"IF(B42=\"\",\"\",IFERROR(IF(INDEX('Disagg.1A_import-export'!L$7:L$13,MATCH($A42,'Disagg.1A_import-export'!$B$7:$B$13,0))=\"\",\"\",INDEX('Disagg.1A_import-export'!L$7:L$13,MATCH($A42,'Disagg.1A_import-export'!$B$7:$B$13,0))),\"\"))","v":""},{"$f":"IF(B42=\"\",\"\",IFERROR(IF(INDEX('Disagg.1A_import-export'!M$7:M$13,MATCH($A42,'Disagg.1A_import-export'!$B$7:$B$13,0))=\"\",\"\",INDEX('Disagg.1A_import-export'!M$7:M$13,MATCH($A42,'Disagg.1A_import-export'!$B$7:$B$13,0))),\"\"))","v":""},{"$f":"IF(B42=\"\",\"\",IFERROR(IF(INDEX('Disagg.1A_import-export'!N$7:N$13,MATCH($A42,'Disagg.1A_import-export'!$B$7:$B$13,0))=\"\",\"\",INDEX('Disagg.1A_import-export'!N$7:N$13,MATCH($A42,'Disagg.1A_import-export'!$B$7:$B$13,0))),\"\"))","v":""},{"$f":"IF(B42=\"\",\"\",IFERROR(IF(INDEX('Disagg.1A_import-export'!AC$7:AC$13,MATCH($A42,'Disagg.1A_import-export'!$B$7:$B$13,0))=\"\",\"\",INDEX('Disagg.1A_import-export'!AC$7:AC$13,MATCH($A42,'Disagg.1A_import-export'!$B$7:$B$13,0))),\"\"))","v":""}]
[{"$f":"IFERROR(IF(INDEX(ImpactDisaglist,MATCH(0,INDEX(COUNTIF(A$10:A42,ImpactDisaglist),0,0),0))<>\"\",INDEX(ImpactDisaglist,MATCH(0,INDEX(COUNTIF(A$10:A42,ImpactDisaglist),0,0),0)),INDEX(OutcomeDisaglist,MATCH(0,INDEX(COUNTIF(A$10:A42,OutcomeDisaglist),0,0),0))),\"\")","v":""},{"$f":"IFERROR(INDEX('Disagg.1A_import-export'!D$7:D$200,MATCH($A43,'Disagg.1A_import-export'!$B$7:$B$200,0)),\"\")","v":""},{"$f":"IF(B43=\"\",\"\",IFERROR(INDEX('Disagg.1A_import-export'!E$7:E$13,MATCH($A43,'Disagg.1A_import-export'!$B$7:$B$13,0)),\"\"))","v":""},{"$f":"IF(B43=\"\",\"\",IFERROR(IF(INDEX('Disagg.1A_import-export'!I$7:I$13,MATCH($A43,'Disagg.1A_import-export'!$B$7:$B$13,0))=\"\",\"\",INDEX('Disagg.1A_import-export'!I$7:I$13,MATCH($A43,'Disagg.1A_import-export'!$B$7:$B$13,0))),\"\"))","v":""},{"$f":"IF(B43=\"\",\"\",IFERROR(IF(INDEX('Disagg.1A_import-export'!J$7:J$13,MATCH($A43,'Disagg.1A_import-export'!$B$7:$B$13,0))=\"\",\"\",INDEX('Disagg.1A_import-export'!J$7:J$13,MATCH($A43,'Disagg.1A_import-export'!$B$7:$B$13,0))),\"\"))","v":""},{"$f":"IF(B43=\"\",\"\",IFERROR(IF(INDEX('Disagg.1A_import-export'!K$7:K$13,MATCH($A43,'Disagg.1A_import-export'!$B$7:$B$13,0))=\"\",\"\",INDEX('Disagg.1A_import-export'!K$7:K$13,MATCH($A43,'Disagg.1A_import-export'!$B$7:$B$13,0))),\"\"))","v":""},{"$f":"IF(B43=\"\",\"\",IFERROR(IF(INDEX('Disagg.1A_import-export'!L$7:L$13,MATCH($A43,'Disagg.1A_import-export'!$B$7:$B$13,0))=\"\",\"\",INDEX('Disagg.1A_import-export'!L$7:L$13,MATCH($A43,'Disagg.1A_import-export'!$B$7:$B$13,0))),\"\"))","v":""},{"$f":"IF(B43=\"\",\"\",IFERROR(IF(INDEX('Disagg.1A_import-export'!M$7:M$13,MATCH($A43,'Disagg.1A_import-export'!$B$7:$B$13,0))=\"\",\"\",INDEX('Disagg.1A_import-export'!M$7:M$13,MATCH($A43,'Disagg.1A_import-export'!$B$7:$B$13,0))),\"\"))","v":""},{"$f":"IF(B43=\"\",\"\",IFERROR(IF(INDEX('Disagg.1A_import-export'!N$7:N$13,MATCH($A43,'Disagg.1A_import-export'!$B$7:$B$13,0))=\"\",\"\",INDEX('Disagg.1A_import-export'!N$7:N$13,MATCH($A43,'Disagg.1A_import-export'!$B$7:$B$13,0))),\"\"))","v":""},{"$f":"IF(B43=\"\",\"\",IFERROR(IF(INDEX('Disagg.1A_import-export'!AC$7:AC$13,MATCH($A43,'Disagg.1A_import-export'!$B$7:$B$13,0))=\"\",\"\",INDEX('Disagg.1A_import-export'!AC$7:AC$13,MATCH($A43,'Disagg.1A_import-export'!$B$7:$B$13,0))),\"\"))","v":""}]
[{"$f":"IFERROR(IF(INDEX(ImpactDisaglist,MATCH(0,INDEX(COUNTIF(A$10:A43,ImpactDisaglist),0,0),0))<>\"\",INDEX(ImpactDisaglist,MATCH(0,INDEX(COUNTIF(A$10:A43,ImpactDisaglist),0,0),0)),INDEX(OutcomeDisaglist,MATCH(0,INDEX(COUNTIF(A$10:A43,OutcomeDisaglist),0,0),0))),\"\")","v":""},{"$f":"IFERROR(INDEX('Disagg.1A_import-export'!D$7:D$200,MATCH($A44,'Disagg.1A_import-export'!$B$7:$B$200,0)),\"\")","v":""},{"$f":"IF(B44=\"\",\"\",IFERROR(INDEX('Disagg.1A_import-export'!E$7:E$13,MATCH($A44,'Disagg.1A_import-export'!$B$7:$B$13,0)),\"\"))","v":""},{"$f":"IF(B44=\"\",\"\",IFERROR(IF(INDEX('Disagg.1A_import-export'!I$7:I$13,MATCH($A44,'Disagg.1A_import-export'!$B$7:$B$13,0))=\"\",\"\",INDEX('Disagg.1A_import-export'!I$7:I$13,MATCH($A44,'Disagg.1A_import-export'!$B$7:$B$13,0))),\"\"))","v":""},{"$f":"IF(B44=\"\",\"\",IFERROR(IF(INDEX('Disagg.1A_import-export'!J$7:J$13,MATCH($A44,'Disagg.1A_import-export'!$B$7:$B$13,0))=\"\",\"\",INDEX('Disagg.1A_import-export'!J$7:J$13,MATCH($A44,'Disagg.1A_import-export'!$B$7:$B$13,0))),\"\"))","v":""},{"$f":"IF(B44=\"\",\"\",IFERROR(IF(INDEX('Disagg.1A_import-export'!K$7:K$13,MATCH($A44,'Disagg.1A_import-export'!$B$7:$B$13,0))=\"\",\"\",INDEX('Disagg.1A_import-export'!K$7:K$13,MATCH($A44,'Disagg.1A_import-export'!$B$7:$B$13,0))),\"\"))","v":""},{"$f":"IF(B44=\"\",\"\",IFERROR(IF(INDEX('Disagg.1A_import-export'!L$7:L$13,MATCH($A44,'Disagg.1A_import-export'!$B$7:$B$13,0))=\"\",\"\",INDEX('Disagg.1A_import-export'!L$7:L$13,MATCH($A44,'Disagg.1A_import-export'!$B$7:$B$13,0))),\"\"))","v":""},{"$f":"IF(B44=\"\",\"\",IFERROR(IF(INDEX('Disagg.1A_import-export'!M$7:M$13,MATCH($A44,'Disagg.1A_import-export'!$B$7:$B$13,0))=\"\",\"\",INDEX('Disagg.1A_import-export'!M$7:M$13,MATCH($A44,'Disagg.1A_import-export'!$B$7:$B$13,0))),\"\"))","v":""},{"$f":"IF(B44=\"\",\"\",IFERROR(IF(INDEX('Disagg.1A_import-export'!N$7:N$13,MATCH($A44,'Disagg.1A_import-export'!$B$7:$B$13,0))=\"\",\"\",INDEX('Disagg.1A_import-export'!N$7:N$13,MATCH($A44,'Disagg.1A_import-export'!$B$7:$B$13,0))),\"\"))","v":""},{"$f":"IF(B44=\"\",\"\",IFERROR(IF(INDEX('Disagg.1A_import-export'!AC$7:AC$13,MATCH($A44,'Disagg.1A_import-export'!$B$7:$B$13,0))=\"\",\"\",INDEX('Disagg.1A_import-export'!AC$7:AC$13,MATCH($A44,'Disagg.1A_import-export'!$B$7:$B$13,0))),\"\"))","v":""}]
[{"$f":"IFERROR(IF(INDEX(ImpactDisaglist,MATCH(0,INDEX(COUNTIF(A$10:A44,ImpactDisaglist),0,0),0))<>\"\",INDEX(ImpactDisaglist,MATCH(0,INDEX(COUNTIF(A$10:A44,ImpactDisaglist),0,0),0)),INDEX(OutcomeDisaglist,MATCH(0,INDEX(COUNTIF(A$10:A44,OutcomeDisaglist),0,0),0))),\"\")","v":""},{"$f":"IFERROR(INDEX('Disagg.1A_import-export'!D$7:D$200,MATCH($A45,'Disagg.1A_import-export'!$B$7:$B$200,0)),\"\")","v":""},{"$f":"IF(B45=\"\",\"\",IFERROR(INDEX('Disagg.1A_import-export'!E$7:E$13,MATCH($A45,'Disagg.1A_import-export'!$B$7:$B$13,0)),\"\"))","v":""},{"$f":"IF(B45=\"\",\"\",IFERROR(IF(INDEX('Disagg.1A_import-export'!I$7:I$13,MATCH($A45,'Disagg.1A_import-export'!$B$7:$B$13,0))=\"\",\"\",INDEX('Disagg.1A_import-export'!I$7:I$13,MATCH($A45,'Disagg.1A_import-export'!$B$7:$B$13,0))),\"\"))","v":""},{"$f":"IF(B45=\"\",\"\",IFERROR(IF(INDEX('Disagg.1A_import-export'!J$7:J$13,MATCH($A45,'Disagg.1A_import-export'!$B$7:$B$13,0))=\"\",\"\",INDEX('Disagg.1A_import-export'!J$7:J$13,MATCH($A45,'Disagg.1A_import-export'!$B$7:$B$13,0))),\"\"))","v":""},{"$f":"IF(B45=\"\",\"\",IFERROR(IF(INDEX('Disagg.1A_import-export'!K$7:K$13,MATCH($A45,'Disagg.1A_import-export'!$B$7:$B$13,0))=\"\",\"\",INDEX('Disagg.1A_import-export'!K$7:K$13,MATCH($A45,'Disagg.1A_import-export'!$B$7:$B$13,0))),\"\"))","v":""},{"$f":"IF(B45=\"\",\"\",IFERROR(IF(INDEX('Disagg.1A_import-export'!L$7:L$13,MATCH($A45,'Disagg.1A_import-export'!$B$7:$B$13,0))=\"\",\"\",INDEX('Disagg.1A_import-export'!L$7:L$13,MATCH($A45,'Disagg.1A_import-export'!$B$7:$B$13,0))),\"\"))","v":""},{"$f":"IF(B45=\"\",\"\",IFERROR(IF(INDEX('Disagg.1A_import-export'!M$7:M$13,MATCH($A45,'Disagg.1A_import-export'!$B$7:$B$13,0))=\"\",\"\",INDEX('Disagg.1A_import-export'!M$7:M$13,MATCH($A45,'Disagg.1A_import-export'!$B$7:$B$13,0))),\"\"))","v":""},{"$f":"IF(B45=\"\",\"\",IFERROR(IF(INDEX('Disagg.1A_import-export'!N$7:N$13,MATCH($A45,'Disagg.1A_import-export'!$B$7:$B$13,0))=\"\",\"\",INDEX('Disagg.1A_import-export'!N$7:N$13,MATCH($A45,'Disagg.1A_import-export'!$B$7:$B$13,0))),\"\"))","v":""},{"$f":"IF(B45=\"\",\"\",IFERROR(IF(INDEX('Disagg.1A_import-export'!AC$7:AC$13,MATCH($A45,'Disagg.1A_import-export'!$B$7:$B$13,0))=\"\",\"\",INDEX('Disagg.1A_import-export'!AC$7:AC$13,MATCH($A45,'Disagg.1A_import-export'!$B$7:$B$13,0))),\"\"))","v":""}]
[{"$f":"IFERROR(IF(INDEX(ImpactDisaglist,MATCH(0,INDEX(COUNTIF(A$10:A45,ImpactDisaglist),0,0),0))<>\"\",INDEX(ImpactDisaglist,MATCH(0,INDEX(COUNTIF(A$10:A45,ImpactDisaglist),0,0),0)),INDEX(OutcomeDisaglist,MATCH(0,INDEX(COUNTIF(A$10:A45,OutcomeDisaglist),0,0),0))),\"\")","v":""},{"$f":"IFERROR(INDEX('Disagg.1A_import-export'!D$7:D$200,MATCH($A46,'Disagg.1A_import-export'!$B$7:$B$200,0)),\"\")","v":""},{"$f":"IF(B46=\"\",\"\",IFERROR(INDEX('Disagg.1A_import-export'!E$7:E$13,MATCH($A46,'Disagg.1A_import-export'!$B$7:$B$13,0)),\"\"))","v":""},{"$f":"IF(B46=\"\",\"\",IFERROR(IF(INDEX('Disagg.1A_import-export'!I$7:I$13,MATCH($A46,'Disagg.1A_import-export'!$B$7:$B$13,0))=\"\",\"\",INDEX('Disagg.1A_import-export'!I$7:I$13,MATCH($A46,'Disagg.1A_import-export'!$B$7:$B$13,0))),\"\"))","v":""},{"$f":"IF(B46=\"\",\"\",IFERROR(IF(INDEX('Disagg.1A_import-export'!J$7:J$13,MATCH($A46,'Disagg.1A_import-export'!$B$7:$B$13,0))=\"\",\"\",INDEX('Disagg.1A_import-export'!J$7:J$13,MATCH($A46,'Disagg.1A_import-export'!$B$7:$B$13,0))),\"\"))","v":""},{"$f":"IF(B46=\"\",\"\",IFERROR(IF(INDEX('Disagg.1A_import-export'!K$7:K$13,MATCH($A46,'Disagg.1A_import-export'!$B$7:$B$13,0))=\"\",\"\",INDEX('Disagg.1A_import-export'!K$7:K$13,MATCH($A46,'Disagg.1A_import-export'!$B$7:$B$13,0))),\"\"))","v":""},{"$f":"IF(B46=\"\",\"\",IFERROR(IF(INDEX('Disagg.1A_import-export'!L$7:L$13,MATCH($A46,'Disagg.1A_import-export'!$B$7:$B$13,0))=\"\",\"\",INDEX('Disagg.1A_import-export'!L$7:L$13,MATCH($A46,'Disagg.1A_import-export'!$B$7:$B$13,0))),\"\"))","v":""},{"$f":"IF(B46=\"\",\"\",IFERROR(IF(INDEX('Disagg.1A_import-export'!M$7:M$13,MATCH($A46,'Disagg.1A_import-export'!$B$7:$B$13,0))=\"\",\"\",INDEX('Disagg.1A_import-export'!M$7:M$13,MATCH($A46,'Disagg.1A_import-export'!$B$7:$B$13,0))),\"\"))","v":""},{"$f":"IF(B46=\"\",\"\",IFERROR(IF(INDEX('Disagg.1A_import-export'!N$7:N$13,MATCH($A46,'Disagg.1A_import-export'!$B$7:$B$13,0))=\"\",\"\",INDEX('Disagg.1A_import-export'!N$7:N$13,MATCH($A46,'Disagg.1A_import-export'!$B$7:$B$13,0))),\"\"))","v":""},{"$f":"IF(B46=\"\",\"\",IFERROR(IF(INDEX('Disagg.1A_import-export'!AC$7:AC$13,MATCH($A46,'Disagg.1A_import-export'!$B$7:$B$13,0))=\"\",\"\",INDEX('Disagg.1A_import-export'!AC$7:AC$13,MATCH($A46,'Disagg.1A_import-export'!$B$7:$B$13,0))),\"\"))","v":""}]
[{"$f":"IFERROR(IF(INDEX(ImpactDisaglist,MATCH(0,INDEX(COUNTIF(A$10:A46,ImpactDisaglist),0,0),0))<>\"\",INDEX(ImpactDisaglist,MATCH(0,INDEX(COUNTIF(A$10:A46,ImpactDisaglist),0,0),0)),INDEX(OutcomeDisaglist,MATCH(0,INDEX(COUNTIF(A$10:A46,OutcomeDisaglist),0,0),0))),\"\")","v":""},{"$f":"IFERROR(INDEX('Disagg.1A_import-export'!D$7:D$200,MATCH($A47,'Disagg.1A_import-export'!$B$7:$B$200,0)),\"\")","v":""},{"$f":"IF(B47=\"\",\"\",IFERROR(INDEX('Disagg.1A_import-export'!E$7:E$13,MATCH($A47,'Disagg.1A_import-export'!$B$7:$B$13,0)),\"\"))","v":""},{"$f":"IF(B47=\"\",\"\",IFERROR(IF(INDEX('Disagg.1A_import-export'!I$7:I$13,MATCH($A47,'Disagg.1A_import-export'!$B$7:$B$13,0))=\"\",\"\",INDEX('Disagg.1A_import-export'!I$7:I$13,MATCH($A47,'Disagg.1A_import-export'!$B$7:$B$13,0))),\"\"))","v":""},{"$f":"IF(B47=\"\",\"\",IFERROR(IF(INDEX('Disagg.1A_import-export'!J$7:J$13,MATCH($A47,'Disagg.1A_import-export'!$B$7:$B$13,0))=\"\",\"\",INDEX('Disagg.1A_import-export'!J$7:J$13,MATCH($A47,'Disagg.1A_import-export'!$B$7:$B$13,0))),\"\"))","v":""},{"$f":"IF(B47=\"\",\"\",IFERROR(IF(INDEX('Disagg.1A_import-export'!K$7:K$13,MATCH($A47,'Disagg.1A_import-export'!$B$7:$B$13,0))=\"\",\"\",INDEX('Disagg.1A_import-export'!K$7:K$13,MATCH($A47,'Disagg.1A_import-export'!$B$7:$B$13,0))),\"\"))","v":""},{"$f":"IF(B47=\"\",\"\",IFERROR(IF(INDEX('Disagg.1A_import-export'!L$7:L$13,MATCH($A47,'Disagg.1A_import-export'!$B$7:$B$13,0))=\"\",\"\",INDEX('Disagg.1A_import-export'!L$7:L$13,MATCH($A47,'Disagg.1A_import-export'!$B$7:$B$13,0))),\"\"))","v":""},{"$f":"IF(B47=\"\",\"\",IFERROR(IF(INDEX('Disagg.1A_import-export'!M$7:M$13,MATCH($A47,'Disagg.1A_import-export'!$B$7:$B$13,0))=\"\",\"\",INDEX('Disagg.1A_import-export'!M$7:M$13,MATCH($A47,'Disagg.1A_import-export'!$B$7:$B$13,0))),\"\"))","v":""},{"$f":"IF(B47=\"\",\"\",IFERROR(IF(INDEX('Disagg.1A_import-export'!N$7:N$13,MATCH($A47,'Disagg.1A_import-export'!$B$7:$B$13,0))=\"\",\"\",INDEX('Disagg.1A_import-export'!N$7:N$13,MATCH($A47,'Disagg.1A_import-export'!$B$7:$B$13,0))),\"\"))","v":""},{"$f":"IF(B47=\"\",\"\",IFERROR(IF(INDEX('Disagg.1A_import-export'!AC$7:AC$13,MATCH($A47,'Disagg.1A_import-export'!$B$7:$B$13,0))=\"\",\"\",INDEX('Disagg.1A_import-export'!AC$7:AC$13,MATCH($A47,'Disagg.1A_import-export'!$B$7:$B$13,0))),\"\"))","v":""}]
[{"$f":"IFERROR(IF(INDEX(ImpactDisaglist,MATCH(0,INDEX(COUNTIF(A$10:A47,ImpactDisaglist),0,0),0))<>\"\",INDEX(ImpactDisaglist,MATCH(0,INDEX(COUNTIF(A$10:A47,ImpactDisaglist),0,0),0)),INDEX(OutcomeDisaglist,MATCH(0,INDEX(COUNTIF(A$10:A47,OutcomeDisaglist),0,0),0))),\"\")","v":""},{"$f":"IFERROR(INDEX('Disagg.1A_import-export'!D$7:D$200,MATCH($A48,'Disagg.1A_import-export'!$B$7:$B$200,0)),\"\")","v":""},{"$f":"IF(B48=\"\",\"\",IFERROR(INDEX('Disagg.1A_import-export'!E$7:E$13,MATCH($A48,'Disagg.1A_import-export'!$B$7:$B$13,0)),\"\"))","v":""},{"$f":"IF(B48=\"\",\"\",IFERROR(IF(INDEX('Disagg.1A_import-export'!I$7:I$13,MATCH($A48,'Disagg.1A_import-export'!$B$7:$B$13,0))=\"\",\"\",INDEX('Disagg.1A_import-export'!I$7:I$13,MATCH($A48,'Disagg.1A_import-export'!$B$7:$B$13,0))),\"\"))","v":""},{"$f":"IF(B48=\"\",\"\",IFERROR(IF(INDEX('Disagg.1A_import-export'!J$7:J$13,MATCH($A48,'Disagg.1A_import-export'!$B$7:$B$13,0))=\"\",\"\",INDEX('Disagg.1A_import-export'!J$7:J$13,MATCH($A48,'Disagg.1A_import-export'!$B$7:$B$13,0))),\"\"))","v":""},{"$f":"IF(B48=\"\",\"\",IFERROR(IF(INDEX('Disagg.1A_import-export'!K$7:K$13,MATCH($A48,'Disagg.1A_import-export'!$B$7:$B$13,0))=\"\",\"\",INDEX('Disagg.1A_import-export'!K$7:K$13,MATCH($A48,'Disagg.1A_import-export'!$B$7:$B$13,0))),\"\"))","v":""},{"$f":"IF(B48=\"\",\"\",IFERROR(IF(INDEX('Disagg.1A_import-export'!L$7:L$13,MATCH($A48,'Disagg.1A_import-export'!$B$7:$B$13,0))=\"\",\"\",INDEX('Disagg.1A_import-export'!L$7:L$13,MATCH($A48,'Disagg.1A_import-export'!$B$7:$B$13,0))),\"\"))","v":""},{"$f":"IF(B48=\"\",\"\",IFERROR(IF(INDEX('Disagg.1A_import-export'!M$7:M$13,MATCH($A48,'Disagg.1A_import-export'!$B$7:$B$13,0))=\"\",\"\",INDEX('Disagg.1A_import-export'!M$7:M$13,MATCH($A48,'Disagg.1A_import-export'!$B$7:$B$13,0))),\"\"))","v":""},{"$f":"IF(B48=\"\",\"\",IFERROR(IF(INDEX('Disagg.1A_import-export'!N$7:N$13,MATCH($A48,'Disagg.1A_import-export'!$B$7:$B$13,0))=\"\",\"\",INDEX('Disagg.1A_import-export'!N$7:N$13,MATCH($A48,'Disagg.1A_import-export'!$B$7:$B$13,0))),\"\"))","v":""},{"$f":"IF(B48=\"\",\"\",IFERROR(IF(INDEX('Disagg.1A_import-export'!AC$7:AC$13,MATCH($A48,'Disagg.1A_import-export'!$B$7:$B$13,0))=\"\",\"\",INDEX('Disagg.1A_import-export'!AC$7:AC$13,MATCH($A48,'Disagg.1A_import-export'!$B$7:$B$13,0))),\"\"))","v":""}]
[{"$f":"IFERROR(IF(INDEX(ImpactDisaglist,MATCH(0,INDEX(COUNTIF(A$10:A48,ImpactDisaglist),0,0),0))<>\"\",INDEX(ImpactDisaglist,MATCH(0,INDEX(COUNTIF(A$10:A48,ImpactDisaglist),0,0),0)),INDEX(OutcomeDisaglist,MATCH(0,INDEX(COUNTIF(A$10:A48,OutcomeDisaglist),0,0),0))),\"\")","v":""},{"$f":"IFERROR(INDEX('Disagg.1A_import-export'!D$7:D$200,MATCH($A49,'Disagg.1A_import-export'!$B$7:$B$200,0)),\"\")","v":""},{"$f":"IF(B49=\"\",\"\",IFERROR(INDEX('Disagg.1A_import-export'!E$7:E$13,MATCH($A49,'Disagg.1A_import-export'!$B$7:$B$13,0)),\"\"))","v":""},{"$f":"IF(B49=\"\",\"\",IFERROR(IF(INDEX('Disagg.1A_import-export'!I$7:I$13,MATCH($A49,'Disagg.1A_import-export'!$B$7:$B$13,0))=\"\",\"\",INDEX('Disagg.1A_import-export'!I$7:I$13,MATCH($A49,'Disagg.1A_import-export'!$B$7:$B$13,0))),\"\"))","v":""},{"$f":"IF(B49=\"\",\"\",IFERROR(IF(INDEX('Disagg.1A_import-export'!J$7:J$13,MATCH($A49,'Disagg.1A_import-export'!$B$7:$B$13,0))=\"\",\"\",INDEX('Disagg.1A_import-export'!J$7:J$13,MATCH($A49,'Disagg.1A_import-export'!$B$7:$B$13,0))),\"\"))","v":""},{"$f":"IF(B49=\"\",\"\",IFERROR(IF(INDEX('Disagg.1A_import-export'!K$7:K$13,MATCH($A49,'Disagg.1A_import-export'!$B$7:$B$13,0))=\"\",\"\",INDEX('Disagg.1A_import-export'!K$7:K$13,MATCH($A49,'Disagg.1A_import-export'!$B$7:$B$13,0))),\"\"))","v":""},{"$f":"IF(B49=\"\",\"\",IFERROR(IF(INDEX('Disagg.1A_import-export'!L$7:L$13,MATCH($A49,'Disagg.1A_import-export'!$B$7:$B$13,0))=\"\",\"\",INDEX('Disagg.1A_import-export'!L$7:L$13,MATCH($A49,'Disagg.1A_import-export'!$B$7:$B$13,0))),\"\"))","v":""},{"$f":"IF(B49=\"\",\"\",IFERROR(IF(INDEX('Disagg.1A_import-export'!M$7:M$13,MATCH($A49,'Disagg.1A_import-export'!$B$7:$B$13,0))=\"\",\"\",INDEX('Disagg.1A_import-export'!M$7:M$13,MATCH($A49,'Disagg.1A_import-export'!$B$7:$B$13,0))),\"\"))","v":""},{"$f":"IF(B49=\"\",\"\",IFERROR(IF(INDEX('Disagg.1A_import-export'!N$7:N$13,MATCH($A49,'Disagg.1A_import-export'!$B$7:$B$13,0))=\"\",\"\",INDEX('Disagg.1A_import-export'!N$7:N$13,MATCH($A49,'Disagg.1A_import-export'!$B$7:$B$13,0))),\"\"))","v":""},{"$f":"IF(B49=\"\",\"\",IFERROR(IF(INDEX('Disagg.1A_import-export'!AC$7:AC$13,MATCH($A49,'Disagg.1A_import-export'!$B$7:$B$13,0))=\"\",\"\",INDEX('Disagg.1A_import-export'!AC$7:AC$13,MATCH($A49,'Disagg.1A_import-export'!$B$7:$B$13,0))),\"\"))","v":""}]
[{"$f":"IFERROR(IF(INDEX(ImpactDisaglist,MATCH(0,INDEX(COUNTIF(A$10:A49,ImpactDisaglist),0,0),0))<>\"\",INDEX(ImpactDisaglist,MATCH(0,INDEX(COUNTIF(A$10:A49,ImpactDisaglist),0,0),0)),INDEX(OutcomeDisaglist,MATCH(0,INDEX(COUNTIF(A$10:A49,OutcomeDisaglist),0,0),0))),\"\")","v":""},{"$f":"IFERROR(INDEX('Disagg.1A_import-export'!D$7:D$200,MATCH($A50,'Disagg.1A_import-export'!$B$7:$B$200,0)),\"\")","v":""},{"$f":"IF(B50=\"\",\"\",IFERROR(INDEX('Disagg.1A_import-export'!E$7:E$13,MATCH($A50,'Disagg.1A_import-export'!$B$7:$B$13,0)),\"\"))","v":""},{"$f":"IF(B50=\"\",\"\",IFERROR(IF(INDEX('Disagg.1A_import-export'!I$7:I$13,MATCH($A50,'Disagg.1A_import-export'!$B$7:$B$13,0))=\"\",\"\",INDEX('Disagg.1A_import-export'!I$7:I$13,MATCH($A50,'Disagg.1A_import-export'!$B$7:$B$13,0))),\"\"))","v":""},{"$f":"IF(B50=\"\",\"\",IFERROR(IF(INDEX('Disagg.1A_import-export'!J$7:J$13,MATCH($A50,'Disagg.1A_import-export'!$B$7:$B$13,0))=\"\",\"\",INDEX('Disagg.1A_import-export'!J$7:J$13,MATCH($A50,'Disagg.1A_import-export'!$B$7:$B$13,0))),\"\"))","v":""},{"$f":"IF(B50=\"\",\"\",IFERROR(IF(INDEX('Disagg.1A_import-export'!K$7:K$13,MATCH($A50,'Disagg.1A_import-export'!$B$7:$B$13,0))=\"\",\"\",INDEX('Disagg.1A_import-export'!K$7:K$13,MATCH($A50,'Disagg.1A_import-export'!$B$7:$B$13,0))),\"\"))","v":""},{"$f":"IF(B50=\"\",\"\",IFERROR(IF(INDEX('Disagg.1A_import-export'!L$7:L$13,MATCH($A50,'Disagg.1A_import-export'!$B$7:$B$13,0))=\"\",\"\",INDEX('Disagg.1A_import-export'!L$7:L$13,MATCH($A50,'Disagg.1A_import-export'!$B$7:$B$13,0))),\"\"))","v":""},{"$f":"IF(B50=\"\",\"\",IFERROR(IF(INDEX('Disagg.1A_import-export'!M$7:M$13,MATCH($A50,'Disagg.1A_import-export'!$B$7:$B$13,0))=\"\",\"\",INDEX('Disagg.1A_import-export'!M$7:M$13,MATCH($A50,'Disagg.1A_import-export'!$B$7:$B$13,0))),\"\"))","v":""},{"$f":"IF(B50=\"\",\"\",IFERROR(IF(INDEX('Disagg.1A_import-export'!N$7:N$13,MATCH($A50,'Disagg.1A_import-export'!$B$7:$B$13,0))=\"\",\"\",INDEX('Disagg.1A_import-export'!N$7:N$13,MATCH($A50,'Disagg.1A_import-export'!$B$7:$B$13,0))),\"\"))","v":""},{"$f":"IF(B50=\"\",\"\",IFERROR(IF(INDEX('Disagg.1A_import-export'!AC$7:AC$13,MATCH($A50,'Disagg.1A_import-export'!$B$7:$B$13,0))=\"\",\"\",INDEX('Disagg.1A_import-export'!AC$7:AC$13,MATCH($A50,'Disagg.1A_import-export'!$B$7:$B$13,0))),\"\"))","v":""}]
[{"$f":"IFERROR(IF(INDEX(ImpactDisaglist,MATCH(0,INDEX(COUNTIF(A$10:A50,ImpactDisaglist),0,0),0))<>\"\",INDEX(ImpactDisaglist,MATCH(0,INDEX(COUNTIF(A$10:A50,ImpactDisaglist),0,0),0)),INDEX(OutcomeDisaglist,MATCH(0,INDEX(COUNTIF(A$10:A50,OutcomeDisaglist),0,0),0))),\"\")","v":""},{"$f":"IFERROR(INDEX('Disagg.1A_import-export'!D$7:D$200,MATCH($A51,'Disagg.1A_import-export'!$B$7:$B$200,0)),\"\")","v":""},{"$f":"IF(B51=\"\",\"\",IFERROR(INDEX('Disagg.1A_import-export'!E$7:E$13,MATCH($A51,'Disagg.1A_import-export'!$B$7:$B$13,0)),\"\"))","v":""},{"$f":"IF(B51=\"\",\"\",IFERROR(IF(INDEX('Disagg.1A_import-export'!I$7:I$13,MATCH($A51,'Disagg.1A_import-export'!$B$7:$B$13,0))=\"\",\"\",INDEX('Disagg.1A_import-export'!I$7:I$13,MATCH($A51,'Disagg.1A_import-export'!$B$7:$B$13,0))),\"\"))","v":""},{"$f":"IF(B51=\"\",\"\",IFERROR(IF(INDEX('Disagg.1A_import-export'!J$7:J$13,MATCH($A51,'Disagg.1A_import-export'!$B$7:$B$13,0))=\"\",\"\",INDEX('Disagg.1A_import-export'!J$7:J$13,MATCH($A51,'Disagg.1A_import-export'!$B$7:$B$13,0))),\"\"))","v":""},{"$f":"IF(B51=\"\",\"\",IFERROR(IF(INDEX('Disagg.1A_import-export'!K$7:K$13,MATCH($A51,'Disagg.1A_import-export'!$B$7:$B$13,0))=\"\",\"\",INDEX('Disagg.1A_import-export'!K$7:K$13,MATCH($A51,'Disagg.1A_import-export'!$B$7:$B$13,0))),\"\"))","v":""},{"$f":"IF(B51=\"\",\"\",IFERROR(IF(INDEX('Disagg.1A_import-export'!L$7:L$13,MATCH($A51,'Disagg.1A_import-export'!$B$7:$B$13,0))=\"\",\"\",INDEX('Disagg.1A_import-export'!L$7:L$13,MATCH($A51,'Disagg.1A_import-export'!$B$7:$B$13,0))),\"\"))","v":""},{"$f":"IF(B51=\"\",\"\",IFERROR(IF(INDEX('Disagg.1A_import-export'!M$7:M$13,MATCH($A51,'Disagg.1A_import-export'!$B$7:$B$13,0))=\"\",\"\",INDEX('Disagg.1A_import-export'!M$7:M$13,MATCH($A51,'Disagg.1A_import-export'!$B$7:$B$13,0))),\"\"))","v":""},{"$f":"IF(B51=\"\",\"\",IFERROR(IF(INDEX('Disagg.1A_import-export'!N$7:N$13,MATCH($A51,'Disagg.1A_import-export'!$B$7:$B$13,0))=\"\",\"\",INDEX('Disagg.1A_import-export'!N$7:N$13,MATCH($A51,'Disagg.1A_import-export'!$B$7:$B$13,0))),\"\"))","v":""},{"$f":"IF(B51=\"\",\"\",IFERROR(IF(INDEX('Disagg.1A_import-export'!AC$7:AC$13,MATCH($A51,'Disagg.1A_import-export'!$B$7:$B$13,0))=\"\",\"\",INDEX('Disagg.1A_import-export'!AC$7:AC$13,MATCH($A51,'Disagg.1A_import-export'!$B$7:$B$13,0))),\"\"))","v":""}]
[{"$f":"IFERROR(IF(INDEX(ImpactDisaglist,MATCH(0,INDEX(COUNTIF(A$10:A51,ImpactDisaglist),0,0),0))<>\"\",INDEX(ImpactDisaglist,MATCH(0,INDEX(COUNTIF(A$10:A51,ImpactDisaglist),0,0),0)),INDEX(OutcomeDisaglist,MATCH(0,INDEX(COUNTIF(A$10:A51,OutcomeDisaglist),0,0),0))),\"\")","v":""},{"$f":"IFERROR(INDEX('Disagg.1A_import-export'!D$7:D$200,MATCH($A52,'Disagg.1A_import-export'!$B$7:$B$200,0)),\"\")","v":""},{"$f":"IF(B52=\"\",\"\",IFERROR(INDEX('Disagg.1A_import-export'!E$7:E$13,MATCH($A52,'Disagg.1A_import-export'!$B$7:$B$13,0)),\"\"))","v":""},{"$f":"IF(B52=\"\",\"\",IFERROR(IF(INDEX('Disagg.1A_import-export'!I$7:I$13,MATCH($A52,'Disagg.1A_import-export'!$B$7:$B$13,0))=\"\",\"\",INDEX('Disagg.1A_import-export'!I$7:I$13,MATCH($A52,'Disagg.1A_import-export'!$B$7:$B$13,0))),\"\"))","v":""},{"$f":"IF(B52=\"\",\"\",IFERROR(IF(INDEX('Disagg.1A_import-export'!J$7:J$13,MATCH($A52,'Disagg.1A_import-export'!$B$7:$B$13,0))=\"\",\"\",INDEX('Disagg.1A_import-export'!J$7:J$13,MATCH($A52,'Disagg.1A_import-export'!$B$7:$B$13,0))),\"\"))","v":""},{"$f":"IF(B52=\"\",\"\",IFERROR(IF(INDEX('Disagg.1A_import-export'!K$7:K$13,MATCH($A52,'Disagg.1A_import-export'!$B$7:$B$13,0))=\"\",\"\",INDEX('Disagg.1A_import-export'!K$7:K$13,MATCH($A52,'Disagg.1A_import-export'!$B$7:$B$13,0))),\"\"))","v":""},{"$f":"IF(B52=\"\",\"\",IFERROR(IF(INDEX('Disagg.1A_import-export'!L$7:L$13,MATCH($A52,'Disagg.1A_import-export'!$B$7:$B$13,0))=\"\",\"\",INDEX('Disagg.1A_import-export'!L$7:L$13,MATCH($A52,'Disagg.1A_import-export'!$B$7:$B$13,0))),\"\"))","v":""},{"$f":"IF(B52=\"\",\"\",IFERROR(IF(INDEX('Disagg.1A_import-export'!M$7:M$13,MATCH($A52,'Disagg.1A_import-export'!$B$7:$B$13,0))=\"\",\"\",INDEX('Disagg.1A_import-export'!M$7:M$13,MATCH($A52,'Disagg.1A_import-export'!$B$7:$B$13,0))),\"\"))","v":""},{"$f":"IF(B52=\"\",\"\",IFERROR(IF(INDEX('Disagg.1A_import-export'!N$7:N$13,MATCH($A52,'Disagg.1A_import-export'!$B$7:$B$13,0))=\"\",\"\",INDEX('Disagg.1A_import-export'!N$7:N$13,MATCH($A52,'Disagg.1A_import-export'!$B$7:$B$13,0))),\"\"))","v":""},{"$f":"IF(B52=\"\",\"\",IFERROR(IF(INDEX('Disagg.1A_import-export'!AC$7:AC$13,MATCH($A52,'Disagg.1A_import-export'!$B$7:$B$13,0))=\"\",\"\",INDEX('Disagg.1A_import-export'!AC$7:AC$13,MATCH($A52,'Disagg.1A_import-export'!$B$7:$B$13,0))),\"\"))","v":""}]
[{"$f":"IFERROR(IF(INDEX(ImpactDisaglist,MATCH(0,INDEX(COUNTIF(A$10:A52,ImpactDisaglist),0,0),0))<>\"\",INDEX(ImpactDisaglist,MATCH(0,INDEX(COUNTIF(A$10:A52,ImpactDisaglist),0,0),0)),INDEX(OutcomeDisaglist,MATCH(0,INDEX(COUNTIF(A$10:A52,OutcomeDisaglist),0,0),0))),\"\")","v":""},{"$f":"IFERROR(INDEX('Disagg.1A_import-export'!D$7:D$200,MATCH($A53,'Disagg.1A_import-export'!$B$7:$B$200,0)),\"\")","v":""},{"$f":"IF(B53=\"\",\"\",IFERROR(INDEX('Disagg.1A_import-export'!E$7:E$13,MATCH($A53,'Disagg.1A_import-export'!$B$7:$B$13,0)),\"\"))","v":""},{"$f":"IF(B53=\"\",\"\",IFERROR(IF(INDEX('Disagg.1A_import-export'!I$7:I$13,MATCH($A53,'Disagg.1A_import-export'!$B$7:$B$13,0))=\"\",\"\",INDEX('Disagg.1A_import-export'!I$7:I$13,MATCH($A53,'Disagg.1A_import-export'!$B$7:$B$13,0))),\"\"))","v":""},{"$f":"IF(B53=\"\",\"\",IFERROR(IF(INDEX('Disagg.1A_import-export'!J$7:J$13,MATCH($A53,'Disagg.1A_import-export'!$B$7:$B$13,0))=\"\",\"\",INDEX('Disagg.1A_import-export'!J$7:J$13,MATCH($A53,'Disagg.1A_import-export'!$B$7:$B$13,0))),\"\"))","v":""},{"$f":"IF(B53=\"\",\"\",IFERROR(IF(INDEX('Disagg.1A_import-export'!K$7:K$13,MATCH($A53,'Disagg.1A_import-export'!$B$7:$B$13,0))=\"\",\"\",INDEX('Disagg.1A_import-export'!K$7:K$13,MATCH($A53,'Disagg.1A_import-export'!$B$7:$B$13,0))),\"\"))","v":""},{"$f":"IF(B53=\"\",\"\",IFERROR(IF(INDEX('Disagg.1A_import-export'!L$7:L$13,MATCH($A53,'Disagg.1A_import-export'!$B$7:$B$13,0))=\"\",\"\",INDEX('Disagg.1A_import-export'!L$7:L$13,MATCH($A53,'Disagg.1A_import-export'!$B$7:$B$13,0))),\"\"))","v":""},{"$f":"IF(B53=\"\",\"\",IFERROR(IF(INDEX('Disagg.1A_import-export'!M$7:M$13,MATCH($A53,'Disagg.1A_import-export'!$B$7:$B$13,0))=\"\",\"\",INDEX('Disagg.1A_import-export'!M$7:M$13,MATCH($A53,'Disagg.1A_import-export'!$B$7:$B$13,0))),\"\"))","v":""},{"$f":"IF(B53=\"\",\"\",IFERROR(IF(INDEX('Disagg.1A_import-export'!N$7:N$13,MATCH($A53,'Disagg.1A_import-export'!$B$7:$B$13,0))=\"\",\"\",INDEX('Disagg.1A_import-export'!N$7:N$13,MATCH($A53,'Disagg.1A_import-export'!$B$7:$B$13,0))),\"\"))","v":""},{"$f":"IF(B53=\"\",\"\",IFERROR(IF(INDEX('Disagg.1A_import-export'!AC$7:AC$13,MATCH($A53,'Disagg.1A_import-export'!$B$7:$B$13,0))=\"\",\"\",INDEX('Disagg.1A_import-export'!AC$7:AC$13,MATCH($A53,'Disagg.1A_import-export'!$B$7:$B$13,0))),\"\"))","v":""}]
[{"$f":"IFERROR(IF(INDEX(ImpactDisaglist,MATCH(0,INDEX(COUNTIF(A$10:A53,ImpactDisaglist),0,0),0))<>\"\",INDEX(ImpactDisaglist,MATCH(0,INDEX(COUNTIF(A$10:A53,ImpactDisaglist),0,0),0)),INDEX(OutcomeDisaglist,MATCH(0,INDEX(COUNTIF(A$10:A53,OutcomeDisaglist),0,0),0))),\"\")","v":""},{"$f":"IFERROR(INDEX('Disagg.1A_import-export'!D$7:D$200,MATCH($A54,'Disagg.1A_import-export'!$B$7:$B$200,0)),\"\")","v":""},{"$f":"IF(B54=\"\",\"\",IFERROR(INDEX('Disagg.1A_import-export'!E$7:E$13,MATCH($A54,'Disagg.1A_import-export'!$B$7:$B$13,0)),\"\"))","v":""},{"$f":"IF(B54=\"\",\"\",IFERROR(IF(INDEX('Disagg.1A_import-export'!I$7:I$13,MATCH($A54,'Disagg.1A_import-export'!$B$7:$B$13,0))=\"\",\"\",INDEX('Disagg.1A_import-export'!I$7:I$13,MATCH($A54,'Disagg.1A_import-export'!$B$7:$B$13,0))),\"\"))","v":""},{"$f":"IF(B54=\"\",\"\",IFERROR(IF(INDEX('Disagg.1A_import-export'!J$7:J$13,MATCH($A54,'Disagg.1A_import-export'!$B$7:$B$13,0))=\"\",\"\",INDEX('Disagg.1A_import-export'!J$7:J$13,MATCH($A54,'Disagg.1A_import-export'!$B$7:$B$13,0))),\"\"))","v":""},{"$f":"IF(B54=\"\",\"\",IFERROR(IF(INDEX('Disagg.1A_import-export'!K$7:K$13,MATCH($A54,'Disagg.1A_import-export'!$B$7:$B$13,0))=\"\",\"\",INDEX('Disagg.1A_import-export'!K$7:K$13,MATCH($A54,'Disagg.1A_import-export'!$B$7:$B$13,0))),\"\"))","v":""},{"$f":"IF(B54=\"\",\"\",IFERROR(IF(INDEX('Disagg.1A_import-export'!L$7:L$13,MATCH($A54,'Disagg.1A_import-export'!$B$7:$B$13,0))=\"\",\"\",INDEX('Disagg.1A_import-export'!L$7:L$13,MATCH($A54,'Disagg.1A_import-export'!$B$7:$B$13,0))),\"\"))","v":""},{"$f":"IF(B54=\"\",\"\",IFERROR(IF(INDEX('Disagg.1A_import-export'!M$7:M$13,MATCH($A54,'Disagg.1A_import-export'!$B$7:$B$13,0))=\"\",\"\",INDEX('Disagg.1A_import-export'!M$7:M$13,MATCH($A54,'Disagg.1A_import-export'!$B$7:$B$13,0))),\"\"))","v":""},{"$f":"IF(B54=\"\",\"\",IFERROR(IF(INDEX('Disagg.1A_import-export'!N$7:N$13,MATCH($A54,'Disagg.1A_import-export'!$B$7:$B$13,0))=\"\",\"\",INDEX('Disagg.1A_import-export'!N$7:N$13,MATCH($A54,'Disagg.1A_import-export'!$B$7:$B$13,0))),\"\"))","v":""},{"$f":"IF(B54=\"\",\"\",IFERROR(IF(INDEX('Disagg.1A_import-export'!AC$7:AC$13,MATCH($A54,'Disagg.1A_import-export'!$B$7:$B$13,0))=\"\",\"\",INDEX('Disagg.1A_import-export'!AC$7:AC$13,MATCH($A54,'Disagg.1A_import-export'!$B$7:$B$13,0))),\"\"))","v":""}]
[{"$f":"IFERROR(IF(INDEX(ImpactDisaglist,MATCH(0,INDEX(COUNTIF(A$10:A54,ImpactDisaglist),0,0),0))<>\"\",INDEX(ImpactDisaglist,MATCH(0,INDEX(COUNTIF(A$10:A54,ImpactDisaglist),0,0),0)),INDEX(OutcomeDisaglist,MATCH(0,INDEX(COUNTIF(A$10:A54,OutcomeDisaglist),0,0),0))),\"\")","v":""},{"$f":"IFERROR(INDEX('Disagg.1A_import-export'!D$7:D$200,MATCH($A55,'Disagg.1A_import-export'!$B$7:$B$200,0)),\"\")","v":""},{"$f":"IF(B55=\"\",\"\",IFERROR(INDEX('Disagg.1A_import-export'!E$7:E$13,MATCH($A55,'Disagg.1A_import-export'!$B$7:$B$13,0)),\"\"))","v":""},{"$f":"IF(B55=\"\",\"\",IFERROR(IF(INDEX('Disagg.1A_import-export'!I$7:I$13,MATCH($A55,'Disagg.1A_import-export'!$B$7:$B$13,0))=\"\",\"\",INDEX('Disagg.1A_import-export'!I$7:I$13,MATCH($A55,'Disagg.1A_import-export'!$B$7:$B$13,0))),\"\"))","v":""},{"$f":"IF(B55=\"\",\"\",IFERROR(IF(INDEX('Disagg.1A_import-export'!J$7:J$13,MATCH($A55,'Disagg.1A_import-export'!$B$7:$B$13,0))=\"\",\"\",INDEX('Disagg.1A_import-export'!J$7:J$13,MATCH($A55,'Disagg.1A_import-export'!$B$7:$B$13,0))),\"\"))","v":""},{"$f":"IF(B55=\"\",\"\",IFERROR(IF(INDEX('Disagg.1A_import-export'!K$7:K$13,MATCH($A55,'Disagg.1A_import-export'!$B$7:$B$13,0))=\"\",\"\",INDEX('Disagg.1A_import-export'!K$7:K$13,MATCH($A55,'Disagg.1A_import-export'!$B$7:$B$13,0))),\"\"))","v":""},{"$f":"IF(B55=\"\",\"\",IFERROR(IF(INDEX('Disagg.1A_import-export'!L$7:L$13,MATCH($A55,'Disagg.1A_import-export'!$B$7:$B$13,0))=\"\",\"\",INDEX('Disagg.1A_import-export'!L$7:L$13,MATCH($A55,'Disagg.1A_import-export'!$B$7:$B$13,0))),\"\"))","v":""},{"$f":"IF(B55=\"\",\"\",IFERROR(IF(INDEX('Disagg.1A_import-export'!M$7:M$13,MATCH($A55,'Disagg.1A_import-export'!$B$7:$B$13,0))=\"\",\"\",INDEX('Disagg.1A_import-export'!M$7:M$13,MATCH($A55,'Disagg.1A_import-export'!$B$7:$B$13,0))),\"\"))","v":""},{"$f":"IF(B55=\"\",\"\",IFERROR(IF(INDEX('Disagg.1A_import-export'!N$7:N$13,MATCH($A55,'Disagg.1A_import-export'!$B$7:$B$13,0))=\"\",\"\",INDEX('Disagg.1A_import-export'!N$7:N$13,MATCH($A55,'Disagg.1A_import-export'!$B$7:$B$13,0))),\"\"))","v":""},{"$f":"IF(B55=\"\",\"\",IFERROR(IF(INDEX('Disagg.1A_import-export'!AC$7:AC$13,MATCH($A55,'Disagg.1A_import-export'!$B$7:$B$13,0))=\"\",\"\",INDEX('Disagg.1A_import-export'!AC$7:AC$13,MATCH($A55,'Disagg.1A_import-export'!$B$7:$B$13,0))),\"\"))","v":""}]
[{"$f":"IFERROR(IF(INDEX(ImpactDisaglist,MATCH(0,INDEX(COUNTIF(A$10:A55,ImpactDisaglist),0,0),0))<>\"\",INDEX(ImpactDisaglist,MATCH(0,INDEX(COUNTIF(A$10:A55,ImpactDisaglist),0,0),0)),INDEX(OutcomeDisaglist,MATCH(0,INDEX(COUNTIF(A$10:A55,OutcomeDisaglist),0,0),0))),\"\")","v":""},{"$f":"IFERROR(INDEX('Disagg.1A_import-export'!D$7:D$200,MATCH($A56,'Disagg.1A_import-export'!$B$7:$B$200,0)),\"\")","v":""},{"$f":"IF(B56=\"\",\"\",IFERROR(INDEX('Disagg.1A_import-export'!E$7:E$13,MATCH($A56,'Disagg.1A_import-export'!$B$7:$B$13,0)),\"\"))","v":""},{"$f":"IF(B56=\"\",\"\",IFERROR(IF(INDEX('Disagg.1A_import-export'!I$7:I$13,MATCH($A56,'Disagg.1A_import-export'!$B$7:$B$13,0))=\"\",\"\",INDEX('Disagg.1A_import-export'!I$7:I$13,MATCH($A56,'Disagg.1A_import-export'!$B$7:$B$13,0))),\"\"))","v":""},{"$f":"IF(B56=\"\",\"\",IFERROR(IF(INDEX('Disagg.1A_import-export'!J$7:J$13,MATCH($A56,'Disagg.1A_import-export'!$B$7:$B$13,0))=\"\",\"\",INDEX('Disagg.1A_import-export'!J$7:J$13,MATCH($A56,'Disagg.1A_import-export'!$B$7:$B$13,0))),\"\"))","v":""},{"$f":"IF(B56=\"\",\"\",IFERROR(IF(INDEX('Disagg.1A_import-export'!K$7:K$13,MATCH($A56,'Disagg.1A_import-export'!$B$7:$B$13,0))=\"\",\"\",INDEX('Disagg.1A_import-export'!K$7:K$13,MATCH($A56,'Disagg.1A_import-export'!$B$7:$B$13,0))),\"\"))","v":""},{"$f":"IF(B56=\"\",\"\",IFERROR(IF(INDEX('Disagg.1A_import-export'!L$7:L$13,MATCH($A56,'Disagg.1A_import-export'!$B$7:$B$13,0))=\"\",\"\",INDEX('Disagg.1A_import-export'!L$7:L$13,MATCH($A56,'Disagg.1A_import-export'!$B$7:$B$13,0))),\"\"))","v":""},{"$f":"IF(B56=\"\",\"\",IFERROR(IF(INDEX('Disagg.1A_import-export'!M$7:M$13,MATCH($A56,'Disagg.1A_import-export'!$B$7:$B$13,0))=\"\",\"\",INDEX('Disagg.1A_import-export'!M$7:M$13,MATCH($A56,'Disagg.1A_import-export'!$B$7:$B$13,0))),\"\"))","v":""},{"$f":"IF(B56=\"\",\"\",IFERROR(IF(INDEX('Disagg.1A_import-export'!N$7:N$13,MATCH($A56,'Disagg.1A_import-export'!$B$7:$B$13,0))=\"\",\"\",INDEX('Disagg.1A_import-export'!N$7:N$13,MATCH($A56,'Disagg.1A_import-export'!$B$7:$B$13,0))),\"\"))","v":""},{"$f":"IF(B56=\"\",\"\",IFERROR(IF(INDEX('Disagg.1A_import-export'!AC$7:AC$13,MATCH($A56,'Disagg.1A_import-export'!$B$7:$B$13,0))=\"\",\"\",INDEX('Disagg.1A_import-export'!AC$7:AC$13,MATCH($A56,'Disagg.1A_import-export'!$B$7:$B$13,0))),\"\"))","v":""}]
[{"$f":"IFERROR(IF(INDEX(ImpactDisaglist,MATCH(0,INDEX(COUNTIF(A$10:A56,ImpactDisaglist),0,0),0))<>\"\",INDEX(ImpactDisaglist,MATCH(0,INDEX(COUNTIF(A$10:A56,ImpactDisaglist),0,0),0)),INDEX(OutcomeDisaglist,MATCH(0,INDEX(COUNTIF(A$10:A56,OutcomeDisaglist),0,0),0))),\"\")","v":""},{"$f":"IFERROR(INDEX('Disagg.1A_import-export'!D$7:D$200,MATCH($A57,'Disagg.1A_import-export'!$B$7:$B$200,0)),\"\")","v":""},{"$f":"IF(B57=\"\",\"\",IFERROR(INDEX('Disagg.1A_import-export'!E$7:E$13,MATCH($A57,'Disagg.1A_import-export'!$B$7:$B$13,0)),\"\"))","v":""},{"$f":"IF(B57=\"\",\"\",IFERROR(IF(INDEX('Disagg.1A_import-export'!I$7:I$13,MATCH($A57,'Disagg.1A_import-export'!$B$7:$B$13,0))=\"\",\"\",INDEX('Disagg.1A_import-export'!I$7:I$13,MATCH($A57,'Disagg.1A_import-export'!$B$7:$B$13,0))),\"\"))","v":""},{"$f":"IF(B57=\"\",\"\",IFERROR(IF(INDEX('Disagg.1A_import-export'!J$7:J$13,MATCH($A57,'Disagg.1A_import-export'!$B$7:$B$13,0))=\"\",\"\",INDEX('Disagg.1A_import-export'!J$7:J$13,MATCH($A57,'Disagg.1A_import-export'!$B$7:$B$13,0))),\"\"))","v":""},{"$f":"IF(B57=\"\",\"\",IFERROR(IF(INDEX('Disagg.1A_import-export'!K$7:K$13,MATCH($A57,'Disagg.1A_import-export'!$B$7:$B$13,0))=\"\",\"\",INDEX('Disagg.1A_import-export'!K$7:K$13,MATCH($A57,'Disagg.1A_import-export'!$B$7:$B$13,0))),\"\"))","v":""},{"$f":"IF(B57=\"\",\"\",IFERROR(IF(INDEX('Disagg.1A_import-export'!L$7:L$13,MATCH($A57,'Disagg.1A_import-export'!$B$7:$B$13,0))=\"\",\"\",INDEX('Disagg.1A_import-export'!L$7:L$13,MATCH($A57,'Disagg.1A_import-export'!$B$7:$B$13,0))),\"\"))","v":""},{"$f":"IF(B57=\"\",\"\",IFERROR(IF(INDEX('Disagg.1A_import-export'!M$7:M$13,MATCH($A57,'Disagg.1A_import-export'!$B$7:$B$13,0))=\"\",\"\",INDEX('Disagg.1A_import-export'!M$7:M$13,MATCH($A57,'Disagg.1A_import-export'!$B$7:$B$13,0))),\"\"))","v":""},{"$f":"IF(B57=\"\",\"\",IFERROR(IF(INDEX('Disagg.1A_import-export'!N$7:N$13,MATCH($A57,'Disagg.1A_import-export'!$B$7:$B$13,0))=\"\",\"\",INDEX('Disagg.1A_import-export'!N$7:N$13,MATCH($A57,'Disagg.1A_import-export'!$B$7:$B$13,0))),\"\"))","v":""},{"$f":"IF(B57=\"\",\"\",IFERROR(IF(INDEX('Disagg.1A_import-export'!AC$7:AC$13,MATCH($A57,'Disagg.1A_import-export'!$B$7:$B$13,0))=\"\",\"\",INDEX('Disagg.1A_import-export'!AC$7:AC$13,MATCH($A57,'Disagg.1A_import-export'!$B$7:$B$13,0))),\"\"))","v":""}]
[{"$f":"IFERROR(IF(INDEX(ImpactDisaglist,MATCH(0,INDEX(COUNTIF(A$10:A57,ImpactDisaglist),0,0),0))<>\"\",INDEX(ImpactDisaglist,MATCH(0,INDEX(COUNTIF(A$10:A57,ImpactDisaglist),0,0),0)),INDEX(OutcomeDisaglist,MATCH(0,INDEX(COUNTIF(A$10:A57,OutcomeDisaglist),0,0),0))),\"\")","v":""},{"$f":"IFERROR(INDEX('Disagg.1A_import-export'!D$7:D$200,MATCH($A58,'Disagg.1A_import-export'!$B$7:$B$200,0)),\"\")","v":""},{"$f":"IF(B58=\"\",\"\",IFERROR(INDEX('Disagg.1A_import-export'!E$7:E$13,MATCH($A58,'Disagg.1A_import-export'!$B$7:$B$13,0)),\"\"))","v":""},{"$f":"IF(B58=\"\",\"\",IFERROR(IF(INDEX('Disagg.1A_import-export'!I$7:I$13,MATCH($A58,'Disagg.1A_import-export'!$B$7:$B$13,0))=\"\",\"\",INDEX('Disagg.1A_import-export'!I$7:I$13,MATCH($A58,'Disagg.1A_import-export'!$B$7:$B$13,0))),\"\"))","v":""},{"$f":"IF(B58=\"\",\"\",IFERROR(IF(INDEX('Disagg.1A_import-export'!J$7:J$13,MATCH($A58,'Disagg.1A_import-export'!$B$7:$B$13,0))=\"\",\"\",INDEX('Disagg.1A_import-export'!J$7:J$13,MATCH($A58,'Disagg.1A_import-export'!$B$7:$B$13,0))),\"\"))","v":""},{"$f":"IF(B58=\"\",\"\",IFERROR(IF(INDEX('Disagg.1A_import-export'!K$7:K$13,MATCH($A58,'Disagg.1A_import-export'!$B$7:$B$13,0))=\"\",\"\",INDEX('Disagg.1A_import-export'!K$7:K$13,MATCH($A58,'Disagg.1A_import-export'!$B$7:$B$13,0))),\"\"))","v":""},{"$f":"IF(B58=\"\",\"\",IFERROR(IF(INDEX('Disagg.1A_import-export'!L$7:L$13,MATCH($A58,'Disagg.1A_import-export'!$B$7:$B$13,0))=\"\",\"\",INDEX('Disagg.1A_import-export'!L$7:L$13,MATCH($A58,'Disagg.1A_import-export'!$B$7:$B$13,0))),\"\"))","v":""},{"$f":"IF(B58=\"\",\"\",IFERROR(IF(INDEX('Disagg.1A_import-export'!M$7:M$13,MATCH($A58,'Disagg.1A_import-export'!$B$7:$B$13,0))=\"\",\"\",INDEX('Disagg.1A_import-export'!M$7:M$13,MATCH($A58,'Disagg.1A_import-export'!$B$7:$B$13,0))),\"\"))","v":""},{"$f":"IF(B58=\"\",\"\",IFERROR(IF(INDEX('Disagg.1A_import-export'!N$7:N$13,MATCH($A58,'Disagg.1A_import-export'!$B$7:$B$13,0))=\"\",\"\",INDEX('Disagg.1A_import-export'!N$7:N$13,MATCH($A58,'Disagg.1A_import-export'!$B$7:$B$13,0))),\"\"))","v":""},{"$f":"IF(B58=\"\",\"\",IFERROR(IF(INDEX('Disagg.1A_import-export'!AC$7:AC$13,MATCH($A58,'Disagg.1A_import-export'!$B$7:$B$13,0))=\"\",\"\",INDEX('Disagg.1A_import-export'!AC$7:AC$13,MATCH($A58,'Disagg.1A_import-export'!$B$7:$B$13,0))),\"\"))","v":""}]
[{"$f":"IFERROR(IF(INDEX(ImpactDisaglist,MATCH(0,INDEX(COUNTIF(A$10:A58,ImpactDisaglist),0,0),0))<>\"\",INDEX(ImpactDisaglist,MATCH(0,INDEX(COUNTIF(A$10:A58,ImpactDisaglist),0,0),0)),INDEX(OutcomeDisaglist,MATCH(0,INDEX(COUNTIF(A$10:A58,OutcomeDisaglist),0,0),0))),\"\")","v":""},{"$f":"IFERROR(INDEX('Disagg.1A_import-export'!D$7:D$200,MATCH($A59,'Disagg.1A_import-export'!$B$7:$B$200,0)),\"\")","v":""},{"$f":"IF(B59=\"\",\"\",IFERROR(INDEX('Disagg.1A_import-export'!E$7:E$13,MATCH($A59,'Disagg.1A_import-export'!$B$7:$B$13,0)),\"\"))","v":""},{"$f":"IF(B59=\"\",\"\",IFERROR(IF(INDEX('Disagg.1A_import-export'!I$7:I$13,MATCH($A59,'Disagg.1A_import-export'!$B$7:$B$13,0))=\"\",\"\",INDEX('Disagg.1A_import-export'!I$7:I$13,MATCH($A59,'Disagg.1A_import-export'!$B$7:$B$13,0))),\"\"))","v":""},{"$f":"IF(B59=\"\",\"\",IFERROR(IF(INDEX('Disagg.1A_import-export'!J$7:J$13,MATCH($A59,'Disagg.1A_import-export'!$B$7:$B$13,0))=\"\",\"\",INDEX('Disagg.1A_import-export'!J$7:J$13,MATCH($A59,'Disagg.1A_import-export'!$B$7:$B$13,0))),\"\"))","v":""},{"$f":"IF(B59=\"\",\"\",IFERROR(IF(INDEX('Disagg.1A_import-export'!K$7:K$13,MATCH($A59,'Disagg.1A_import-export'!$B$7:$B$13,0))=\"\",\"\",INDEX('Disagg.1A_import-export'!K$7:K$13,MATCH($A59,'Disagg.1A_import-export'!$B$7:$B$13,0))),\"\"))","v":""},{"$f":"IF(B59=\"\",\"\",IFERROR(IF(INDEX('Disagg.1A_import-export'!L$7:L$13,MATCH($A59,'Disagg.1A_import-export'!$B$7:$B$13,0))=\"\",\"\",INDEX('Disagg.1A_import-export'!L$7:L$13,MATCH($A59,'Disagg.1A_import-export'!$B$7:$B$13,0))),\"\"))","v":""},{"$f":"IF(B59=\"\",\"\",IFERROR(IF(INDEX('Disagg.1A_import-export'!M$7:M$13,MATCH($A59,'Disagg.1A_import-export'!$B$7:$B$13,0))=\"\",\"\",INDEX('Disagg.1A_import-export'!M$7:M$13,MATCH($A59,'Disagg.1A_import-export'!$B$7:$B$13,0))),\"\"))","v":""},{"$f":"IF(B59=\"\",\"\",IFERROR(IF(INDEX('Disagg.1A_import-export'!N$7:N$13,MATCH($A59,'Disagg.1A_import-export'!$B$7:$B$13,0))=\"\",\"\",INDEX('Disagg.1A_import-export'!N$7:N$13,MATCH($A59,'Disagg.1A_import-export'!$B$7:$B$13,0))),\"\"))","v":""},{"$f":"IF(B59=\"\",\"\",IFERROR(IF(INDEX('Disagg.1A_import-export'!AC$7:AC$13,MATCH($A59,'Disagg.1A_import-export'!$B$7:$B$13,0))=\"\",\"\",INDEX('Disagg.1A_import-export'!AC$7:AC$13,MATCH($A59,'Disagg.1A_import-export'!$B$7:$B$13,0))),\"\"))","v":""}]
[{"$f":"IFERROR(IF(INDEX(ImpactDisaglist,MATCH(0,INDEX(COUNTIF(A$10:A59,ImpactDisaglist),0,0),0))<>\"\",INDEX(ImpactDisaglist,MATCH(0,INDEX(COUNTIF(A$10:A59,ImpactDisaglist),0,0),0)),INDEX(OutcomeDisaglist,MATCH(0,INDEX(COUNTIF(A$10:A59,OutcomeDisaglist),0,0),0))),\"\")","v":""},{"$f":"IFERROR(INDEX('Disagg.1A_import-export'!D$7:D$200,MATCH($A60,'Disagg.1A_import-export'!$B$7:$B$200,0)),\"\")","v":""},{"$f":"IF(B60=\"\",\"\",IFERROR(INDEX('Disagg.1A_import-export'!E$7:E$13,MATCH($A60,'Disagg.1A_import-export'!$B$7:$B$13,0)),\"\"))","v":""},{"$f":"IF(B60=\"\",\"\",IFERROR(IF(INDEX('Disagg.1A_import-export'!I$7:I$13,MATCH($A60,'Disagg.1A_import-export'!$B$7:$B$13,0))=\"\",\"\",INDEX('Disagg.1A_import-export'!I$7:I$13,MATCH($A60,'Disagg.1A_import-export'!$B$7:$B$13,0))),\"\"))","v":""},{"$f":"IF(B60=\"\",\"\",IFERROR(IF(INDEX('Disagg.1A_import-export'!J$7:J$13,MATCH($A60,'Disagg.1A_import-export'!$B$7:$B$13,0))=\"\",\"\",INDEX('Disagg.1A_import-export'!J$7:J$13,MATCH($A60,'Disagg.1A_import-export'!$B$7:$B$13,0))),\"\"))","v":""},{"$f":"IF(B60=\"\",\"\",IFERROR(IF(INDEX('Disagg.1A_import-export'!K$7:K$13,MATCH($A60,'Disagg.1A_import-export'!$B$7:$B$13,0))=\"\",\"\",INDEX('Disagg.1A_import-export'!K$7:K$13,MATCH($A60,'Disagg.1A_import-export'!$B$7:$B$13,0))),\"\"))","v":""},{"$f":"IF(B60=\"\",\"\",IFERROR(IF(INDEX('Disagg.1A_import-export'!L$7:L$13,MATCH($A60,'Disagg.1A_import-export'!$B$7:$B$13,0))=\"\",\"\",INDEX('Disagg.1A_import-export'!L$7:L$13,MATCH($A60,'Disagg.1A_import-export'!$B$7:$B$13,0))),\"\"))","v":""},{"$f":"IF(B60=\"\",\"\",IFERROR(IF(INDEX('Disagg.1A_import-export'!M$7:M$13,MATCH($A60,'Disagg.1A_import-export'!$B$7:$B$13,0))=\"\",\"\",INDEX('Disagg.1A_import-export'!M$7:M$13,MATCH($A60,'Disagg.1A_import-export'!$B$7:$B$13,0))),\"\"))","v":""},{"$f":"IF(B60=\"\",\"\",IFERROR(IF(INDEX('Disagg.1A_import-export'!N$7:N$13,MATCH($A60,'Disagg.1A_import-export'!$B$7:$B$13,0))=\"\",\"\",INDEX('Disagg.1A_import-export'!N$7:N$13,MATCH($A60,'Disagg.1A_import-export'!$B$7:$B$13,0))),\"\"))","v":""},{"$f":"IF(B60=\"\",\"\",IFERROR(IF(INDEX('Disagg.1A_import-export'!AC$7:AC$13,MATCH($A60,'Disagg.1A_import-export'!$B$7:$B$13,0))=\"\",\"\",INDEX('Disagg.1A_import-export'!AC$7:AC$13,MATCH($A60,'Disagg.1A_import-export'!$B$7:$B$13,0))),\"\"))","v":""}]
[{"$f":"IFERROR(IF(INDEX(ImpactDisaglist,MATCH(0,INDEX(COUNTIF(A$10:A60,ImpactDisaglist),0,0),0))<>\"\",INDEX(ImpactDisaglist,MATCH(0,INDEX(COUNTIF(A$10:A60,ImpactDisaglist),0,0),0)),INDEX(OutcomeDisaglist,MATCH(0,INDEX(COUNTIF(A$10:A60,OutcomeDisaglist),0,0),0))),\"\")","v":""},{"$f":"IFERROR(INDEX('Disagg.1A_import-export'!D$7:D$200,MATCH($A61,'Disagg.1A_import-export'!$B$7:$B$200,0)),\"\")","v":""},{"$f":"IF(B61=\"\",\"\",IFERROR(INDEX('Disagg.1A_import-export'!E$7:E$13,MATCH($A61,'Disagg.1A_import-export'!$B$7:$B$13,0)),\"\"))","v":""},{"$f":"IF(B61=\"\",\"\",IFERROR(IF(INDEX('Disagg.1A_import-export'!I$7:I$13,MATCH($A61,'Disagg.1A_import-export'!$B$7:$B$13,0))=\"\",\"\",INDEX('Disagg.1A_import-export'!I$7:I$13,MATCH($A61,'Disagg.1A_import-export'!$B$7:$B$13,0))),\"\"))","v":""},{"$f":"IF(B61=\"\",\"\",IFERROR(IF(INDEX('Disagg.1A_import-export'!J$7:J$13,MATCH($A61,'Disagg.1A_import-export'!$B$7:$B$13,0))=\"\",\"\",INDEX('Disagg.1A_import-export'!J$7:J$13,MATCH($A61,'Disagg.1A_import-export'!$B$7:$B$13,0))),\"\"))","v":""},{"$f":"IF(B61=\"\",\"\",IFERROR(IF(INDEX('Disagg.1A_import-export'!K$7:K$13,MATCH($A61,'Disagg.1A_import-export'!$B$7:$B$13,0))=\"\",\"\",INDEX('Disagg.1A_import-export'!K$7:K$13,MATCH($A61,'Disagg.1A_import-export'!$B$7:$B$13,0))),\"\"))","v":""},{"$f":"IF(B61=\"\",\"\",IFERROR(IF(INDEX('Disagg.1A_import-export'!L$7:L$13,MATCH($A61,'Disagg.1A_import-export'!$B$7:$B$13,0))=\"\",\"\",INDEX('Disagg.1A_import-export'!L$7:L$13,MATCH($A61,'Disagg.1A_import-export'!$B$7:$B$13,0))),\"\"))","v":""},{"$f":"IF(B61=\"\",\"\",IFERROR(IF(INDEX('Disagg.1A_import-export'!M$7:M$13,MATCH($A61,'Disagg.1A_import-export'!$B$7:$B$13,0))=\"\",\"\",INDEX('Disagg.1A_import-export'!M$7:M$13,MATCH($A61,'Disagg.1A_import-export'!$B$7:$B$13,0))),\"\"))","v":""},{"$f":"IF(B61=\"\",\"\",IFERROR(IF(INDEX('Disagg.1A_import-export'!N$7:N$13,MATCH($A61,'Disagg.1A_import-export'!$B$7:$B$13,0))=\"\",\"\",INDEX('Disagg.1A_import-export'!N$7:N$13,MATCH($A61,'Disagg.1A_import-export'!$B$7:$B$13,0))),\"\"))","v":""},{"$f":"IF(B61=\"\",\"\",IFERROR(IF(INDEX('Disagg.1A_import-export'!AC$7:AC$13,MATCH($A61,'Disagg.1A_import-export'!$B$7:$B$13,0))=\"\",\"\",INDEX('Disagg.1A_import-export'!AC$7:AC$13,MATCH($A61,'Disagg.1A_import-export'!$B$7:$B$13,0))),\"\"))","v":""}]
[{"$f":"IFERROR(IF(INDEX(ImpactDisaglist,MATCH(0,INDEX(COUNTIF(A$10:A61,ImpactDisaglist),0,0),0))<>\"\",INDEX(ImpactDisaglist,MATCH(0,INDEX(COUNTIF(A$10:A61,ImpactDisaglist),0,0),0)),INDEX(OutcomeDisaglist,MATCH(0,INDEX(COUNTIF(A$10:A61,OutcomeDisaglist),0,0),0))),\"\")","v":""},{"$f":"IFERROR(INDEX('Disagg.1A_import-export'!D$7:D$200,MATCH($A62,'Disagg.1A_import-export'!$B$7:$B$200,0)),\"\")","v":""},{"$f":"IF(B62=\"\",\"\",IFERROR(INDEX('Disagg.1A_import-export'!E$7:E$13,MATCH($A62,'Disagg.1A_import-export'!$B$7:$B$13,0)),\"\"))","v":""},{"$f":"IF(B62=\"\",\"\",IFERROR(IF(INDEX('Disagg.1A_import-export'!I$7:I$13,MATCH($A62,'Disagg.1A_import-export'!$B$7:$B$13,0))=\"\",\"\",INDEX('Disagg.1A_import-export'!I$7:I$13,MATCH($A62,'Disagg.1A_import-export'!$B$7:$B$13,0))),\"\"))","v":""},{"$f":"IF(B62=\"\",\"\",IFERROR(IF(INDEX('Disagg.1A_import-export'!J$7:J$13,MATCH($A62,'Disagg.1A_import-export'!$B$7:$B$13,0))=\"\",\"\",INDEX('Disagg.1A_import-export'!J$7:J$13,MATCH($A62,'Disagg.1A_import-export'!$B$7:$B$13,0))),\"\"))","v":""},{"$f":"IF(B62=\"\",\"\",IFERROR(IF(INDEX('Disagg.1A_import-export'!K$7:K$13,MATCH($A62,'Disagg.1A_import-export'!$B$7:$B$13,0))=\"\",\"\",INDEX('Disagg.1A_import-export'!K$7:K$13,MATCH($A62,'Disagg.1A_import-export'!$B$7:$B$13,0))),\"\"))","v":""},{"$f":"IF(B62=\"\",\"\",IFERROR(IF(INDEX('Disagg.1A_import-export'!L$7:L$13,MATCH($A62,'Disagg.1A_import-export'!$B$7:$B$13,0))=\"\",\"\",INDEX('Disagg.1A_import-export'!L$7:L$13,MATCH($A62,'Disagg.1A_import-export'!$B$7:$B$13,0))),\"\"))","v":""},{"$f":"IF(B62=\"\",\"\",IFERROR(IF(INDEX('Disagg.1A_import-export'!M$7:M$13,MATCH($A62,'Disagg.1A_import-export'!$B$7:$B$13,0))=\"\",\"\",INDEX('Disagg.1A_import-export'!M$7:M$13,MATCH($A62,'Disagg.1A_import-export'!$B$7:$B$13,0))),\"\"))","v":""},{"$f":"IF(B62=\"\",\"\",IFERROR(IF(INDEX('Disagg.1A_import-export'!N$7:N$13,MATCH($A62,'Disagg.1A_import-export'!$B$7:$B$13,0))=\"\",\"\",INDEX('Disagg.1A_import-export'!N$7:N$13,MATCH($A62,'Disagg.1A_import-export'!$B$7:$B$13,0))),\"\"))","v":""},{"$f":"IF(B62=\"\",\"\",IFERROR(IF(INDEX('Disagg.1A_import-export'!AC$7:AC$13,MATCH($A62,'Disagg.1A_import-export'!$B$7:$B$13,0))=\"\",\"\",INDEX('Disagg.1A_import-export'!AC$7:AC$13,MATCH($A62,'Disagg.1A_import-export'!$B$7:$B$13,0))),\"\"))","v":""}]
[{"$f":"IFERROR(IF(INDEX(ImpactDisaglist,MATCH(0,INDEX(COUNTIF(A$10:A62,ImpactDisaglist),0,0),0))<>\"\",INDEX(ImpactDisaglist,MATCH(0,INDEX(COUNTIF(A$10:A62,ImpactDisaglist),0,0),0)),INDEX(OutcomeDisaglist,MATCH(0,INDEX(COUNTIF(A$10:A62,OutcomeDisaglist),0,0),0))),\"\")","v":""},{"$f":"IFERROR(INDEX('Disagg.1A_import-export'!D$7:D$200,MATCH($A63,'Disagg.1A_import-export'!$B$7:$B$200,0)),\"\")","v":""},{"$f":"IF(B63=\"\",\"\",IFERROR(INDEX('Disagg.1A_import-export'!E$7:E$13,MATCH($A63,'Disagg.1A_import-export'!$B$7:$B$13,0)),\"\"))","v":""},{"$f":"IF(B63=\"\",\"\",IFERROR(IF(INDEX('Disagg.1A_import-export'!I$7:I$13,MATCH($A63,'Disagg.1A_import-export'!$B$7:$B$13,0))=\"\",\"\",INDEX('Disagg.1A_import-export'!I$7:I$13,MATCH($A63,'Disagg.1A_import-export'!$B$7:$B$13,0))),\"\"))","v":""},{"$f":"IF(B63=\"\",\"\",IFERROR(IF(INDEX('Disagg.1A_import-export'!J$7:J$13,MATCH($A63,'Disagg.1A_import-export'!$B$7:$B$13,0))=\"\",\"\",INDEX('Disagg.1A_import-export'!J$7:J$13,MATCH($A63,'Disagg.1A_import-export'!$B$7:$B$13,0))),\"\"))","v":""},{"$f":"IF(B63=\"\",\"\",IFERROR(IF(INDEX('Disagg.1A_import-export'!K$7:K$13,MATCH($A63,'Disagg.1A_import-export'!$B$7:$B$13,0))=\"\",\"\",INDEX('Disagg.1A_import-export'!K$7:K$13,MATCH($A63,'Disagg.1A_import-export'!$B$7:$B$13,0))),\"\"))","v":""},{"$f":"IF(B63=\"\",\"\",IFERROR(IF(INDEX('Disagg.1A_import-export'!L$7:L$13,MATCH($A63,'Disagg.1A_import-export'!$B$7:$B$13,0))=\"\",\"\",INDEX('Disagg.1A_import-export'!L$7:L$13,MATCH($A63,'Disagg.1A_import-export'!$B$7:$B$13,0))),\"\"))","v":""},{"$f":"IF(B63=\"\",\"\",IFERROR(IF(INDEX('Disagg.1A_import-export'!M$7:M$13,MATCH($A63,'Disagg.1A_import-export'!$B$7:$B$13,0))=\"\",\"\",INDEX('Disagg.1A_import-export'!M$7:M$13,MATCH($A63,'Disagg.1A_import-export'!$B$7:$B$13,0))),\"\"))","v":""},{"$f":"IF(B63=\"\",\"\",IFERROR(IF(INDEX('Disagg.1A_import-export'!N$7:N$13,MATCH($A63,'Disagg.1A_import-export'!$B$7:$B$13,0))=\"\",\"\",INDEX('Disagg.1A_import-export'!N$7:N$13,MATCH($A63,'Disagg.1A_import-export'!$B$7:$B$13,0))),\"\"))","v":""},{"$f":"IF(B63=\"\",\"\",IFERROR(IF(INDEX('Disagg.1A_import-export'!AC$7:AC$13,MATCH($A63,'Disagg.1A_import-export'!$B$7:$B$13,0))=\"\",\"\",INDEX('Disagg.1A_import-export'!AC$7:AC$13,MATCH($A63,'Disagg.1A_import-export'!$B$7:$B$13,0))),\"\"))","v":""}]
[{"$f":"IFERROR(IF(INDEX(ImpactDisaglist,MATCH(0,INDEX(COUNTIF(A$10:A63,ImpactDisaglist),0,0),0))<>\"\",INDEX(ImpactDisaglist,MATCH(0,INDEX(COUNTIF(A$10:A63,ImpactDisaglist),0,0),0)),INDEX(OutcomeDisaglist,MATCH(0,INDEX(COUNTIF(A$10:A63,OutcomeDisaglist),0,0),0))),\"\")","v":""},{"$f":"IFERROR(INDEX('Disagg.1A_import-export'!D$7:D$200,MATCH($A64,'Disagg.1A_import-export'!$B$7:$B$200,0)),\"\")","v":""},{"$f":"IF(B64=\"\",\"\",IFERROR(INDEX('Disagg.1A_import-export'!E$7:E$13,MATCH($A64,'Disagg.1A_import-export'!$B$7:$B$13,0)),\"\"))","v":""},{"$f":"IF(B64=\"\",\"\",IFERROR(IF(INDEX('Disagg.1A_import-export'!I$7:I$13,MATCH($A64,'Disagg.1A_import-export'!$B$7:$B$13,0))=\"\",\"\",INDEX('Disagg.1A_import-export'!I$7:I$13,MATCH($A64,'Disagg.1A_import-export'!$B$7:$B$13,0))),\"\"))","v":""},{"$f":"IF(B64=\"\",\"\",IFERROR(IF(INDEX('Disagg.1A_import-export'!J$7:J$13,MATCH($A64,'Disagg.1A_import-export'!$B$7:$B$13,0))=\"\",\"\",INDEX('Disagg.1A_import-export'!J$7:J$13,MATCH($A64,'Disagg.1A_import-export'!$B$7:$B$13,0))),\"\"))","v":""},{"$f":"IF(B64=\"\",\"\",IFERROR(IF(INDEX('Disagg.1A_import-export'!K$7:K$13,MATCH($A64,'Disagg.1A_import-export'!$B$7:$B$13,0))=\"\",\"\",INDEX('Disagg.1A_import-export'!K$7:K$13,MATCH($A64,'Disagg.1A_import-export'!$B$7:$B$13,0))),\"\"))","v":""},{"$f":"IF(B64=\"\",\"\",IFERROR(IF(INDEX('Disagg.1A_import-export'!L$7:L$13,MATCH($A64,'Disagg.1A_import-export'!$B$7:$B$13,0))=\"\",\"\",INDEX('Disagg.1A_import-export'!L$7:L$13,MATCH($A64,'Disagg.1A_import-export'!$B$7:$B$13,0))),\"\"))","v":""},{"$f":"IF(B64=\"\",\"\",IFERROR(IF(INDEX('Disagg.1A_import-export'!M$7:M$13,MATCH($A64,'Disagg.1A_import-export'!$B$7:$B$13,0))=\"\",\"\",INDEX('Disagg.1A_import-export'!M$7:M$13,MATCH($A64,'Disagg.1A_import-export'!$B$7:$B$13,0))),\"\"))","v":""},{"$f":"IF(B64=\"\",\"\",IFERROR(IF(INDEX('Disagg.1A_import-export'!N$7:N$13,MATCH($A64,'Disagg.1A_import-export'!$B$7:$B$13,0))=\"\",\"\",INDEX('Disagg.1A_import-export'!N$7:N$13,MATCH($A64,'Disagg.1A_import-export'!$B$7:$B$13,0))),\"\"))","v":""},{"$f":"IF(B64=\"\",\"\",IFERROR(IF(INDEX('Disagg.1A_import-export'!AC$7:AC$13,MATCH($A64,'Disagg.1A_import-export'!$B$7:$B$13,0))=\"\",\"\",INDEX('Disagg.1A_import-export'!AC$7:AC$13,MATCH($A64,'Disagg.1A_import-export'!$B$7:$B$13,0))),\"\"))","v":""}]
[{"$f":"IFERROR(IF(INDEX(ImpactDisaglist,MATCH(0,INDEX(COUNTIF(A$10:A64,ImpactDisaglist),0,0),0))<>\"\",INDEX(ImpactDisaglist,MATCH(0,INDEX(COUNTIF(A$10:A64,ImpactDisaglist),0,0),0)),INDEX(OutcomeDisaglist,MATCH(0,INDEX(COUNTIF(A$10:A64,OutcomeDisaglist),0,0),0))),\"\")","v":""},{"$f":"IFERROR(INDEX('Disagg.1A_import-export'!D$7:D$200,MATCH($A65,'Disagg.1A_import-export'!$B$7:$B$200,0)),\"\")","v":""},{"$f":"IF(B65=\"\",\"\",IFERROR(INDEX('Disagg.1A_import-export'!E$7:E$13,MATCH($A65,'Disagg.1A_import-export'!$B$7:$B$13,0)),\"\"))","v":""},{"$f":"IF(B65=\"\",\"\",IFERROR(IF(INDEX('Disagg.1A_import-export'!I$7:I$13,MATCH($A65,'Disagg.1A_import-export'!$B$7:$B$13,0))=\"\",\"\",INDEX('Disagg.1A_import-export'!I$7:I$13,MATCH($A65,'Disagg.1A_import-export'!$B$7:$B$13,0))),\"\"))","v":""},{"$f":"IF(B65=\"\",\"\",IFERROR(IF(INDEX('Disagg.1A_import-export'!J$7:J$13,MATCH($A65,'Disagg.1A_import-export'!$B$7:$B$13,0))=\"\",\"\",INDEX('Disagg.1A_import-export'!J$7:J$13,MATCH($A65,'Disagg.1A_import-export'!$B$7:$B$13,0))),\"\"))","v":""},{"$f":"IF(B65=\"\",\"\",IFERROR(IF(INDEX('Disagg.1A_import-export'!K$7:K$13,MATCH($A65,'Disagg.1A_import-export'!$B$7:$B$13,0))=\"\",\"\",INDEX('Disagg.1A_import-export'!K$7:K$13,MATCH($A65,'Disagg.1A_import-export'!$B$7:$B$13,0))),\"\"))","v":""},{"$f":"IF(B65=\"\",\"\",IFERROR(IF(INDEX('Disagg.1A_import-export'!L$7:L$13,MATCH($A65,'Disagg.1A_import-export'!$B$7:$B$13,0))=\"\",\"\",INDEX('Disagg.1A_import-export'!L$7:L$13,MATCH($A65,'Disagg.1A_import-export'!$B$7:$B$13,0))),\"\"))","v":""},{"$f":"IF(B65=\"\",\"\",IFERROR(IF(INDEX('Disagg.1A_import-export'!M$7:M$13,MATCH($A65,'Disagg.1A_import-export'!$B$7:$B$13,0))=\"\",\"\",INDEX('Disagg.1A_import-export'!M$7:M$13,MATCH($A65,'Disagg.1A_import-export'!$B$7:$B$13,0))),\"\"))","v":""},{"$f":"IF(B65=\"\",\"\",IFERROR(IF(INDEX('Disagg.1A_import-export'!N$7:N$13,MATCH($A65,'Disagg.1A_import-export'!$B$7:$B$13,0))=\"\",\"\",INDEX('Disagg.1A_import-export'!N$7:N$13,MATCH($A65,'Disagg.1A_import-export'!$B$7:$B$13,0))),\"\"))","v":""},{"$f":"IF(B65=\"\",\"\",IFERROR(IF(INDEX('Disagg.1A_import-export'!AC$7:AC$13,MATCH($A65,'Disagg.1A_import-export'!$B$7:$B$13,0))=\"\",\"\",INDEX('Disagg.1A_import-export'!AC$7:AC$13,MATCH($A65,'Disagg.1A_import-export'!$B$7:$B$13,0))),\"\"))","v":""}]
[{"$f":"IFERROR(IF(INDEX(ImpactDisaglist,MATCH(0,INDEX(COUNTIF(A$10:A65,ImpactDisaglist),0,0),0))<>\"\",INDEX(ImpactDisaglist,MATCH(0,INDEX(COUNTIF(A$10:A65,ImpactDisaglist),0,0),0)),INDEX(OutcomeDisaglist,MATCH(0,INDEX(COUNTIF(A$10:A65,OutcomeDisaglist),0,0),0))),\"\")","v":""},{"$f":"IFERROR(INDEX('Disagg.1A_import-export'!D$7:D$200,MATCH($A66,'Disagg.1A_import-export'!$B$7:$B$200,0)),\"\")","v":""},{"$f":"IF(B66=\"\",\"\",IFERROR(INDEX('Disagg.1A_import-export'!E$7:E$13,MATCH($A66,'Disagg.1A_import-export'!$B$7:$B$13,0)),\"\"))","v":""},{"$f":"IF(B66=\"\",\"\",IFERROR(IF(INDEX('Disagg.1A_import-export'!I$7:I$13,MATCH($A66,'Disagg.1A_import-export'!$B$7:$B$13,0))=\"\",\"\",INDEX('Disagg.1A_import-export'!I$7:I$13,MATCH($A66,'Disagg.1A_import-export'!$B$7:$B$13,0))),\"\"))","v":""},{"$f":"IF(B66=\"\",\"\",IFERROR(IF(INDEX('Disagg.1A_import-export'!J$7:J$13,MATCH($A66,'Disagg.1A_import-export'!$B$7:$B$13,0))=\"\",\"\",INDEX('Disagg.1A_import-export'!J$7:J$13,MATCH($A66,'Disagg.1A_import-export'!$B$7:$B$13,0))),\"\"))","v":""},{"$f":"IF(B66=\"\",\"\",IFERROR(IF(INDEX('Disagg.1A_import-export'!K$7:K$13,MATCH($A66,'Disagg.1A_import-export'!$B$7:$B$13,0))=\"\",\"\",INDEX('Disagg.1A_import-export'!K$7:K$13,MATCH($A66,'Disagg.1A_import-export'!$B$7:$B$13,0))),\"\"))","v":""},{"$f":"IF(B66=\"\",\"\",IFERROR(IF(INDEX('Disagg.1A_import-export'!L$7:L$13,MATCH($A66,'Disagg.1A_import-export'!$B$7:$B$13,0))=\"\",\"\",INDEX('Disagg.1A_import-export'!L$7:L$13,MATCH($A66,'Disagg.1A_import-export'!$B$7:$B$13,0))),\"\"))","v":""},{"$f":"IF(B66=\"\",\"\",IFERROR(IF(INDEX('Disagg.1A_import-export'!M$7:M$13,MATCH($A66,'Disagg.1A_import-export'!$B$7:$B$13,0))=\"\",\"\",INDEX('Disagg.1A_import-export'!M$7:M$13,MATCH($A66,'Disagg.1A_import-export'!$B$7:$B$13,0))),\"\"))","v":""},{"$f":"IF(B66=\"\",\"\",IFERROR(IF(INDEX('Disagg.1A_import-export'!N$7:N$13,MATCH($A66,'Disagg.1A_import-export'!$B$7:$B$13,0))=\"\",\"\",INDEX('Disagg.1A_import-export'!N$7:N$13,MATCH($A66,'Disagg.1A_import-export'!$B$7:$B$13,0))),\"\"))","v":""},{"$f":"IF(B66=\"\",\"\",IFERROR(IF(INDEX('Disagg.1A_import-export'!AC$7:AC$13,MATCH($A66,'Disagg.1A_import-export'!$B$7:$B$13,0))=\"\",\"\",INDEX('Disagg.1A_import-export'!AC$7:AC$13,MATCH($A66,'Disagg.1A_import-export'!$B$7:$B$13,0))),\"\"))","v":""}]
[{"$f":"IFERROR(IF(INDEX(ImpactDisaglist,MATCH(0,INDEX(COUNTIF(A$10:A66,ImpactDisaglist),0,0),0))<>\"\",INDEX(ImpactDisaglist,MATCH(0,INDEX(COUNTIF(A$10:A66,ImpactDisaglist),0,0),0)),INDEX(OutcomeDisaglist,MATCH(0,INDEX(COUNTIF(A$10:A66,OutcomeDisaglist),0,0),0))),\"\")","v":""},{"$f":"IFERROR(INDEX('Disagg.1A_import-export'!D$7:D$200,MATCH($A67,'Disagg.1A_import-export'!$B$7:$B$200,0)),\"\")","v":""},{"$f":"IF(B67=\"\",\"\",IFERROR(INDEX('Disagg.1A_import-export'!E$7:E$13,MATCH($A67,'Disagg.1A_import-export'!$B$7:$B$13,0)),\"\"))","v":""},{"$f":"IF(B67=\"\",\"\",IFERROR(IF(INDEX('Disagg.1A_import-export'!I$7:I$13,MATCH($A67,'Disagg.1A_import-export'!$B$7:$B$13,0))=\"\",\"\",INDEX('Disagg.1A_import-export'!I$7:I$13,MATCH($A67,'Disagg.1A_import-export'!$B$7:$B$13,0))),\"\"))","v":""},{"$f":"IF(B67=\"\",\"\",IFERROR(IF(INDEX('Disagg.1A_import-export'!J$7:J$13,MATCH($A67,'Disagg.1A_import-export'!$B$7:$B$13,0))=\"\",\"\",INDEX('Disagg.1A_import-export'!J$7:J$13,MATCH($A67,'Disagg.1A_import-export'!$B$7:$B$13,0))),\"\"))","v":""},{"$f":"IF(B67=\"\",\"\",IFERROR(IF(INDEX('Disagg.1A_import-export'!K$7:K$13,MATCH($A67,'Disagg.1A_import-export'!$B$7:$B$13,0))=\"\",\"\",INDEX('Disagg.1A_import-export'!K$7:K$13,MATCH($A67,'Disagg.1A_import-export'!$B$7:$B$13,0))),\"\"))","v":""},{"$f":"IF(B67=\"\",\"\",IFERROR(IF(INDEX('Disagg.1A_import-export'!L$7:L$13,MATCH($A67,'Disagg.1A_import-export'!$B$7:$B$13,0))=\"\",\"\",INDEX('Disagg.1A_import-export'!L$7:L$13,MATCH($A67,'Disagg.1A_import-export'!$B$7:$B$13,0))),\"\"))","v":""},{"$f":"IF(B67=\"\",\"\",IFERROR(IF(INDEX('Disagg.1A_import-export'!M$7:M$13,MATCH($A67,'Disagg.1A_import-export'!$B$7:$B$13,0))=\"\",\"\",INDEX('Disagg.1A_import-export'!M$7:M$13,MATCH($A67,'Disagg.1A_import-export'!$B$7:$B$13,0))),\"\"))","v":""},{"$f":"IF(B67=\"\",\"\",IFERROR(IF(INDEX('Disagg.1A_import-export'!N$7:N$13,MATCH($A67,'Disagg.1A_import-export'!$B$7:$B$13,0))=\"\",\"\",INDEX('Disagg.1A_import-export'!N$7:N$13,MATCH($A67,'Disagg.1A_import-export'!$B$7:$B$13,0))),\"\"))","v":""},{"$f":"IF(B67=\"\",\"\",IFERROR(IF(INDEX('Disagg.1A_import-export'!AC$7:AC$13,MATCH($A67,'Disagg.1A_import-export'!$B$7:$B$13,0))=\"\",\"\",INDEX('Disagg.1A_import-export'!AC$7:AC$13,MATCH($A67,'Disagg.1A_import-export'!$B$7:$B$13,0))),\"\"))","v":""}]
[{"$f":"IFERROR(IF(INDEX(ImpactDisaglist,MATCH(0,INDEX(COUNTIF(A$10:A67,ImpactDisaglist),0,0),0))<>\"\",INDEX(ImpactDisaglist,MATCH(0,INDEX(COUNTIF(A$10:A67,ImpactDisaglist),0,0),0)),INDEX(OutcomeDisaglist,MATCH(0,INDEX(COUNTIF(A$10:A67,OutcomeDisaglist),0,0),0))),\"\")","v":""},{"$f":"IFERROR(INDEX('Disagg.1A_import-export'!D$7:D$200,MATCH($A68,'Disagg.1A_import-export'!$B$7:$B$200,0)),\"\")","v":""},{"$f":"IF(B68=\"\",\"\",IFERROR(INDEX('Disagg.1A_import-export'!E$7:E$13,MATCH($A68,'Disagg.1A_import-export'!$B$7:$B$13,0)),\"\"))","v":""},{"$f":"IF(B68=\"\",\"\",IFERROR(IF(INDEX('Disagg.1A_import-export'!I$7:I$13,MATCH($A68,'Disagg.1A_import-export'!$B$7:$B$13,0))=\"\",\"\",INDEX('Disagg.1A_import-export'!I$7:I$13,MATCH($A68,'Disagg.1A_import-export'!$B$7:$B$13,0))),\"\"))","v":""},{"$f":"IF(B68=\"\",\"\",IFERROR(IF(INDEX('Disagg.1A_import-export'!J$7:J$13,MATCH($A68,'Disagg.1A_import-export'!$B$7:$B$13,0))=\"\",\"\",INDEX('Disagg.1A_import-export'!J$7:J$13,MATCH($A68,'Disagg.1A_import-export'!$B$7:$B$13,0))),\"\"))","v":""},{"$f":"IF(B68=\"\",\"\",IFERROR(IF(INDEX('Disagg.1A_import-export'!K$7:K$13,MATCH($A68,'Disagg.1A_import-export'!$B$7:$B$13,0))=\"\",\"\",INDEX('Disagg.1A_import-export'!K$7:K$13,MATCH($A68,'Disagg.1A_import-export'!$B$7:$B$13,0))),\"\"))","v":""},{"$f":"IF(B68=\"\",\"\",IFERROR(IF(INDEX('Disagg.1A_import-export'!L$7:L$13,MATCH($A68,'Disagg.1A_import-export'!$B$7:$B$13,0))=\"\",\"\",INDEX('Disagg.1A_import-export'!L$7:L$13,MATCH($A68,'Disagg.1A_import-export'!$B$7:$B$13,0))),\"\"))","v":""},{"$f":"IF(B68=\"\",\"\",IFERROR(IF(INDEX('Disagg.1A_import-export'!M$7:M$13,MATCH($A68,'Disagg.1A_import-export'!$B$7:$B$13,0))=\"\",\"\",INDEX('Disagg.1A_import-export'!M$7:M$13,MATCH($A68,'Disagg.1A_import-export'!$B$7:$B$13,0))),\"\"))","v":""},{"$f":"IF(B68=\"\",\"\",IFERROR(IF(INDEX('Disagg.1A_import-export'!N$7:N$13,MATCH($A68,'Disagg.1A_import-export'!$B$7:$B$13,0))=\"\",\"\",INDEX('Disagg.1A_import-export'!N$7:N$13,MATCH($A68,'Disagg.1A_import-export'!$B$7:$B$13,0))),\"\"))","v":""},{"$f":"IF(B68=\"\",\"\",IFERROR(IF(INDEX('Disagg.1A_import-export'!AC$7:AC$13,MATCH($A68,'Disagg.1A_import-export'!$B$7:$B$13,0))=\"\",\"\",INDEX('Disagg.1A_import-export'!AC$7:AC$13,MATCH($A68,'Disagg.1A_import-export'!$B$7:$B$13,0))),\"\"))","v":""}]
[{"$f":"IFERROR(IF(INDEX(ImpactDisaglist,MATCH(0,INDEX(COUNTIF(A$10:A68,ImpactDisaglist),0,0),0))<>\"\",INDEX(ImpactDisaglist,MATCH(0,INDEX(COUNTIF(A$10:A68,ImpactDisaglist),0,0),0)),INDEX(OutcomeDisaglist,MATCH(0,INDEX(COUNTIF(A$10:A68,OutcomeDisaglist),0,0),0))),\"\")","v":""},{"$f":"IFERROR(INDEX('Disagg.1A_import-export'!D$7:D$200,MATCH($A69,'Disagg.1A_import-export'!$B$7:$B$200,0)),\"\")","v":""},{"$f":"IF(B69=\"\",\"\",IFERROR(INDEX('Disagg.1A_import-export'!E$7:E$13,MATCH($A69,'Disagg.1A_import-export'!$B$7:$B$13,0)),\"\"))","v":""},{"$f":"IF(B69=\"\",\"\",IFERROR(IF(INDEX('Disagg.1A_import-export'!I$7:I$13,MATCH($A69,'Disagg.1A_import-export'!$B$7:$B$13,0))=\"\",\"\",INDEX('Disagg.1A_import-export'!I$7:I$13,MATCH($A69,'Disagg.1A_import-export'!$B$7:$B$13,0))),\"\"))","v":""},{"$f":"IF(B69=\"\",\"\",IFERROR(IF(INDEX('Disagg.1A_import-export'!J$7:J$13,MATCH($A69,'Disagg.1A_import-export'!$B$7:$B$13,0))=\"\",\"\",INDEX('Disagg.1A_import-export'!J$7:J$13,MATCH($A69,'Disagg.1A_import-export'!$B$7:$B$13,0))),\"\"))","v":""},{"$f":"IF(B69=\"\",\"\",IFERROR(IF(INDEX('Disagg.1A_import-export'!K$7:K$13,MATCH($A69,'Disagg.1A_import-export'!$B$7:$B$13,0))=\"\",\"\",INDEX('Disagg.1A_import-export'!K$7:K$13,MATCH($A69,'Disagg.1A_import-export'!$B$7:$B$13,0))),\"\"))","v":""},{"$f":"IF(B69=\"\",\"\",IFERROR(IF(INDEX('Disagg.1A_import-export'!L$7:L$13,MATCH($A69,'Disagg.1A_import-export'!$B$7:$B$13,0))=\"\",\"\",INDEX('Disagg.1A_import-export'!L$7:L$13,MATCH($A69,'Disagg.1A_import-export'!$B$7:$B$13,0))),\"\"))","v":""},{"$f":"IF(B69=\"\",\"\",IFERROR(IF(INDEX('Disagg.1A_import-export'!M$7:M$13,MATCH($A69,'Disagg.1A_import-export'!$B$7:$B$13,0))=\"\",\"\",INDEX('Disagg.1A_import-export'!M$7:M$13,MATCH($A69,'Disagg.1A_import-export'!$B$7:$B$13,0))),\"\"))","v":""},{"$f":"IF(B69=\"\",\"\",IFERROR(IF(INDEX('Disagg.1A_import-export'!N$7:N$13,MATCH($A69,'Disagg.1A_import-export'!$B$7:$B$13,0))=\"\",\"\",INDEX('Disagg.1A_import-export'!N$7:N$13,MATCH($A69,'Disagg.1A_import-export'!$B$7:$B$13,0))),\"\"))","v":""},{"$f":"IF(B69=\"\",\"\",IFERROR(IF(INDEX('Disagg.1A_import-export'!AC$7:AC$13,MATCH($A69,'Disagg.1A_import-export'!$B$7:$B$13,0))=\"\",\"\",INDEX('Disagg.1A_import-export'!AC$7:AC$13,MATCH($A69,'Disagg.1A_import-export'!$B$7:$B$13,0))),\"\"))","v":""}]
[{"$f":"IFERROR(IF(INDEX(ImpactDisaglist,MATCH(0,INDEX(COUNTIF(A$10:A69,ImpactDisaglist),0,0),0))<>\"\",INDEX(ImpactDisaglist,MATCH(0,INDEX(COUNTIF(A$10:A69,ImpactDisaglist),0,0),0)),INDEX(OutcomeDisaglist,MATCH(0,INDEX(COUNTIF(A$10:A69,OutcomeDisaglist),0,0),0))),\"\")","v":""},{"$f":"IFERROR(INDEX('Disagg.1A_import-export'!D$7:D$200,MATCH($A70,'Disagg.1A_import-export'!$B$7:$B$200,0)),\"\")","v":""},{"$f":"IF(B70=\"\",\"\",IFERROR(INDEX('Disagg.1A_import-export'!E$7:E$13,MATCH($A70,'Disagg.1A_import-export'!$B$7:$B$13,0)),\"\"))","v":""},{"$f":"IF(B70=\"\",\"\",IFERROR(IF(INDEX('Disagg.1A_import-export'!I$7:I$13,MATCH($A70,'Disagg.1A_import-export'!$B$7:$B$13,0))=\"\",\"\",INDEX('Disagg.1A_import-export'!I$7:I$13,MATCH($A70,'Disagg.1A_import-export'!$B$7:$B$13,0))),\"\"))","v":""},{"$f":"IF(B70=\"\",\"\",IFERROR(IF(INDEX('Disagg.1A_import-export'!J$7:J$13,MATCH($A70,'Disagg.1A_import-export'!$B$7:$B$13,0))=\"\",\"\",INDEX('Disagg.1A_import-export'!J$7:J$13,MATCH($A70,'Disagg.1A_import-export'!$B$7:$B$13,0))),\"\"))","v":""},{"$f":"IF(B70=\"\",\"\",IFERROR(IF(INDEX('Disagg.1A_import-export'!K$7:K$13,MATCH($A70,'Disagg.1A_import-export'!$B$7:$B$13,0))=\"\",\"\",INDEX('Disagg.1A_import-export'!K$7:K$13,MATCH($A70,'Disagg.1A_import-export'!$B$7:$B$13,0))),\"\"))","v":""},{"$f":"IF(B70=\"\",\"\",IFERROR(IF(INDEX('Disagg.1A_import-export'!L$7:L$13,MATCH($A70,'Disagg.1A_import-export'!$B$7:$B$13,0))=\"\",\"\",INDEX('Disagg.1A_import-export'!L$7:L$13,MATCH($A70,'Disagg.1A_import-export'!$B$7:$B$13,0))),\"\"))","v":""},{"$f":"IF(B70=\"\",\"\",IFERROR(IF(INDEX('Disagg.1A_import-export'!M$7:M$13,MATCH($A70,'Disagg.1A_import-export'!$B$7:$B$13,0))=\"\",\"\",INDEX('Disagg.1A_import-export'!M$7:M$13,MATCH($A70,'Disagg.1A_import-export'!$B$7:$B$13,0))),\"\"))","v":""},{"$f":"IF(B70=\"\",\"\",IFERROR(IF(INDEX('Disagg.1A_import-export'!N$7:N$13,MATCH($A70,'Disagg.1A_import-export'!$B$7:$B$13,0))=\"\",\"\",INDEX('Disagg.1A_import-export'!N$7:N$13,MATCH($A70,'Disagg.1A_import-export'!$B$7:$B$13,0))),\"\"))","v":""},{"$f":"IF(B70=\"\",\"\",IFERROR(IF(INDEX('Disagg.1A_import-export'!AC$7:AC$13,MATCH($A70,'Disagg.1A_import-export'!$B$7:$B$13,0))=\"\",\"\",INDEX('Disagg.1A_import-export'!AC$7:AC$13,MATCH($A70,'Disagg.1A_import-export'!$B$7:$B$13,0))),\"\"))","v":""}]
[{"$f":"IFERROR(IF(INDEX(ImpactDisaglist,MATCH(0,INDEX(COUNTIF(A$10:A70,ImpactDisaglist),0,0),0))<>\"\",INDEX(ImpactDisaglist,MATCH(0,INDEX(COUNTIF(A$10:A70,ImpactDisaglist),0,0),0)),INDEX(OutcomeDisaglist,MATCH(0,INDEX(COUNTIF(A$10:A70,OutcomeDisaglist),0,0),0))),\"\")","v":""},{"$f":"IFERROR(INDEX('Disagg.1A_import-export'!D$7:D$200,MATCH($A71,'Disagg.1A_import-export'!$B$7:$B$200,0)),\"\")","v":""},{"$f":"IF(B71=\"\",\"\",IFERROR(INDEX('Disagg.1A_import-export'!E$7:E$13,MATCH($A71,'Disagg.1A_import-export'!$B$7:$B$13,0)),\"\"))","v":""},{"$f":"IF(B71=\"\",\"\",IFERROR(IF(INDEX('Disagg.1A_import-export'!I$7:I$13,MATCH($A71,'Disagg.1A_import-export'!$B$7:$B$13,0))=\"\",\"\",INDEX('Disagg.1A_import-export'!I$7:I$13,MATCH($A71,'Disagg.1A_import-export'!$B$7:$B$13,0))),\"\"))","v":""},{"$f":"IF(B71=\"\",\"\",IFERROR(IF(INDEX('Disagg.1A_import-export'!J$7:J$13,MATCH($A71,'Disagg.1A_import-export'!$B$7:$B$13,0))=\"\",\"\",INDEX('Disagg.1A_import-export'!J$7:J$13,MATCH($A71,'Disagg.1A_import-export'!$B$7:$B$13,0))),\"\"))","v":""},{"$f":"IF(B71=\"\",\"\",IFERROR(IF(INDEX('Disagg.1A_import-export'!K$7:K$13,MATCH($A71,'Disagg.1A_import-export'!$B$7:$B$13,0))=\"\",\"\",INDEX('Disagg.1A_import-export'!K$7:K$13,MATCH($A71,'Disagg.1A_import-export'!$B$7:$B$13,0))),\"\"))","v":""},{"$f":"IF(B71=\"\",\"\",IFERROR(IF(INDEX('Disagg.1A_import-export'!L$7:L$13,MATCH($A71,'Disagg.1A_import-export'!$B$7:$B$13,0))=\"\",\"\",INDEX('Disagg.1A_import-export'!L$7:L$13,MATCH($A71,'Disagg.1A_import-export'!$B$7:$B$13,0))),\"\"))","v":""},{"$f":"IF(B71=\"\",\"\",IFERROR(IF(INDEX('Disagg.1A_import-export'!M$7:M$13,MATCH($A71,'Disagg.1A_import-export'!$B$7:$B$13,0))=\"\",\"\",INDEX('Disagg.1A_import-export'!M$7:M$13,MATCH($A71,'Disagg.1A_import-export'!$B$7:$B$13,0))),\"\"))","v":""},{"$f":"IF(B71=\"\",\"\",IFERROR(IF(INDEX('Disagg.1A_import-export'!N$7:N$13,MATCH($A71,'Disagg.1A_import-export'!$B$7:$B$13,0))=\"\",\"\",INDEX('Disagg.1A_import-export'!N$7:N$13,MATCH($A71,'Disagg.1A_import-export'!$B$7:$B$13,0))),\"\"))","v":""},{"$f":"IF(B71=\"\",\"\",IFERROR(IF(INDEX('Disagg.1A_import-export'!AC$7:AC$13,MATCH($A71,'Disagg.1A_import-export'!$B$7:$B$13,0))=\"\",\"\",INDEX('Disagg.1A_import-export'!AC$7:AC$13,MATCH($A71,'Disagg.1A_import-export'!$B$7:$B$13,0))),\"\"))","v":""}]
[{"$f":"IFERROR(IF(INDEX(ImpactDisaglist,MATCH(0,INDEX(COUNTIF(A$10:A71,ImpactDisaglist),0,0),0))<>\"\",INDEX(ImpactDisaglist,MATCH(0,INDEX(COUNTIF(A$10:A71,ImpactDisaglist),0,0),0)),INDEX(OutcomeDisaglist,MATCH(0,INDEX(COUNTIF(A$10:A71,OutcomeDisaglist),0,0),0))),\"\")","v":""},{"$f":"IFERROR(INDEX('Disagg.1A_import-export'!D$7:D$200,MATCH($A72,'Disagg.1A_import-export'!$B$7:$B$200,0)),\"\")","v":""},{"$f":"IF(B72=\"\",\"\",IFERROR(INDEX('Disagg.1A_import-export'!E$7:E$13,MATCH($A72,'Disagg.1A_import-export'!$B$7:$B$13,0)),\"\"))","v":""},{"$f":"IF(B72=\"\",\"\",IFERROR(IF(INDEX('Disagg.1A_import-export'!I$7:I$13,MATCH($A72,'Disagg.1A_import-export'!$B$7:$B$13,0))=\"\",\"\",INDEX('Disagg.1A_import-export'!I$7:I$13,MATCH($A72,'Disagg.1A_import-export'!$B$7:$B$13,0))),\"\"))","v":""},{"$f":"IF(B72=\"\",\"\",IFERROR(IF(INDEX('Disagg.1A_import-export'!J$7:J$13,MATCH($A72,'Disagg.1A_import-export'!$B$7:$B$13,0))=\"\",\"\",INDEX('Disagg.1A_import-export'!J$7:J$13,MATCH($A72,'Disagg.1A_import-export'!$B$7:$B$13,0))),\"\"))","v":""},{"$f":"IF(B72=\"\",\"\",IFERROR(IF(INDEX('Disagg.1A_import-export'!K$7:K$13,MATCH($A72,'Disagg.1A_import-export'!$B$7:$B$13,0))=\"\",\"\",INDEX('Disagg.1A_import-export'!K$7:K$13,MATCH($A72,'Disagg.1A_import-export'!$B$7:$B$13,0))),\"\"))","v":""},{"$f":"IF(B72=\"\",\"\",IFERROR(IF(INDEX('Disagg.1A_import-export'!L$7:L$13,MATCH($A72,'Disagg.1A_import-export'!$B$7:$B$13,0))=\"\",\"\",INDEX('Disagg.1A_import-export'!L$7:L$13,MATCH($A72,'Disagg.1A_import-export'!$B$7:$B$13,0))),\"\"))","v":""},{"$f":"IF(B72=\"\",\"\",IFERROR(IF(INDEX('Disagg.1A_import-export'!M$7:M$13,MATCH($A72,'Disagg.1A_import-export'!$B$7:$B$13,0))=\"\",\"\",INDEX('Disagg.1A_import-export'!M$7:M$13,MATCH($A72,'Disagg.1A_import-export'!$B$7:$B$13,0))),\"\"))","v":""},{"$f":"IF(B72=\"\",\"\",IFERROR(IF(INDEX('Disagg.1A_import-export'!N$7:N$13,MATCH($A72,'Disagg.1A_import-export'!$B$7:$B$13,0))=\"\",\"\",INDEX('Disagg.1A_import-export'!N$7:N$13,MATCH($A72,'Disagg.1A_import-export'!$B$7:$B$13,0))),\"\"))","v":""},{"$f":"IF(B72=\"\",\"\",IFERROR(IF(INDEX('Disagg.1A_import-export'!AC$7:AC$13,MATCH($A72,'Disagg.1A_import-export'!$B$7:$B$13,0))=\"\",\"\",INDEX('Disagg.1A_import-export'!AC$7:AC$13,MATCH($A72,'Disagg.1A_import-export'!$B$7:$B$13,0))),\"\"))","v":""}]
[{"$f":"IFERROR(IF(INDEX(ImpactDisaglist,MATCH(0,INDEX(COUNTIF(A$10:A72,ImpactDisaglist),0,0),0))<>\"\",INDEX(ImpactDisaglist,MATCH(0,INDEX(COUNTIF(A$10:A72,ImpactDisaglist),0,0),0)),INDEX(OutcomeDisaglist,MATCH(0,INDEX(COUNTIF(A$10:A72,OutcomeDisaglist),0,0),0))),\"\")","v":""},{"$f":"IFERROR(INDEX('Disagg.1A_import-export'!D$7:D$200,MATCH($A73,'Disagg.1A_import-export'!$B$7:$B$200,0)),\"\")","v":""},{"$f":"IF(B73=\"\",\"\",IFERROR(INDEX('Disagg.1A_import-export'!E$7:E$13,MATCH($A73,'Disagg.1A_import-export'!$B$7:$B$13,0)),\"\"))","v":""},{"$f":"IF(B73=\"\",\"\",IFERROR(IF(INDEX('Disagg.1A_import-export'!I$7:I$13,MATCH($A73,'Disagg.1A_import-export'!$B$7:$B$13,0))=\"\",\"\",INDEX('Disagg.1A_import-export'!I$7:I$13,MATCH($A73,'Disagg.1A_import-export'!$B$7:$B$13,0))),\"\"))","v":""},{"$f":"IF(B73=\"\",\"\",IFERROR(IF(INDEX('Disagg.1A_import-export'!J$7:J$13,MATCH($A73,'Disagg.1A_import-export'!$B$7:$B$13,0))=\"\",\"\",INDEX('Disagg.1A_import-export'!J$7:J$13,MATCH($A73,'Disagg.1A_import-export'!$B$7:$B$13,0))),\"\"))","v":""},{"$f":"IF(B73=\"\",\"\",IFERROR(IF(INDEX('Disagg.1A_import-export'!K$7:K$13,MATCH($A73,'Disagg.1A_import-export'!$B$7:$B$13,0))=\"\",\"\",INDEX('Disagg.1A_import-export'!K$7:K$13,MATCH($A73,'Disagg.1A_import-export'!$B$7:$B$13,0))),\"\"))","v":""},{"$f":"IF(B73=\"\",\"\",IFERROR(IF(INDEX('Disagg.1A_import-export'!L$7:L$13,MATCH($A73,'Disagg.1A_import-export'!$B$7:$B$13,0))=\"\",\"\",INDEX('Disagg.1A_import-export'!L$7:L$13,MATCH($A73,'Disagg.1A_import-export'!$B$7:$B$13,0))),\"\"))","v":""},{"$f":"IF(B73=\"\",\"\",IFERROR(IF(INDEX('Disagg.1A_import-export'!M$7:M$13,MATCH($A73,'Disagg.1A_import-export'!$B$7:$B$13,0))=\"\",\"\",INDEX('Disagg.1A_import-export'!M$7:M$13,MATCH($A73,'Disagg.1A_import-export'!$B$7:$B$13,0))),\"\"))","v":""},{"$f":"IF(B73=\"\",\"\",IFERROR(IF(INDEX('Disagg.1A_import-export'!N$7:N$13,MATCH($A73,'Disagg.1A_import-export'!$B$7:$B$13,0))=\"\",\"\",INDEX('Disagg.1A_import-export'!N$7:N$13,MATCH($A73,'Disagg.1A_import-export'!$B$7:$B$13,0))),\"\"))","v":""},{"$f":"IF(B73=\"\",\"\",IFERROR(IF(INDEX('Disagg.1A_import-export'!AC$7:AC$13,MATCH($A73,'Disagg.1A_import-export'!$B$7:$B$13,0))=\"\",\"\",INDEX('Disagg.1A_import-export'!AC$7:AC$13,MATCH($A73,'Disagg.1A_import-export'!$B$7:$B$13,0))),\"\"))","v":""}]
[{"$f":"IFERROR(IF(INDEX(ImpactDisaglist,MATCH(0,INDEX(COUNTIF(A$10:A73,ImpactDisaglist),0,0),0))<>\"\",INDEX(ImpactDisaglist,MATCH(0,INDEX(COUNTIF(A$10:A73,ImpactDisaglist),0,0),0)),INDEX(OutcomeDisaglist,MATCH(0,INDEX(COUNTIF(A$10:A73,OutcomeDisaglist),0,0),0))),\"\")","v":""},{"$f":"IFERROR(INDEX('Disagg.1A_import-export'!D$7:D$200,MATCH($A74,'Disagg.1A_import-export'!$B$7:$B$200,0)),\"\")","v":""},{"$f":"IF(B74=\"\",\"\",IFERROR(INDEX('Disagg.1A_import-export'!E$7:E$13,MATCH($A74,'Disagg.1A_import-export'!$B$7:$B$13,0)),\"\"))","v":""},{"$f":"IF(B74=\"\",\"\",IFERROR(IF(INDEX('Disagg.1A_import-export'!I$7:I$13,MATCH($A74,'Disagg.1A_import-export'!$B$7:$B$13,0))=\"\",\"\",INDEX('Disagg.1A_import-export'!I$7:I$13,MATCH($A74,'Disagg.1A_import-export'!$B$7:$B$13,0))),\"\"))","v":""},{"$f":"IF(B74=\"\",\"\",IFERROR(IF(INDEX('Disagg.1A_import-export'!J$7:J$13,MATCH($A74,'Disagg.1A_import-export'!$B$7:$B$13,0))=\"\",\"\",INDEX('Disagg.1A_import-export'!J$7:J$13,MATCH($A74,'Disagg.1A_import-export'!$B$7:$B$13,0))),\"\"))","v":""},{"$f":"IF(B74=\"\",\"\",IFERROR(IF(INDEX('Disagg.1A_import-export'!K$7:K$13,MATCH($A74,'Disagg.1A_import-export'!$B$7:$B$13,0))=\"\",\"\",INDEX('Disagg.1A_import-export'!K$7:K$13,MATCH($A74,'Disagg.1A_import-export'!$B$7:$B$13,0))),\"\"))","v":""},{"$f":"IF(B74=\"\",\"\",IFERROR(IF(INDEX('Disagg.1A_import-export'!L$7:L$13,MATCH($A74,'Disagg.1A_import-export'!$B$7:$B$13,0))=\"\",\"\",INDEX('Disagg.1A_import-export'!L$7:L$13,MATCH($A74,'Disagg.1A_import-export'!$B$7:$B$13,0))),\"\"))","v":""},{"$f":"IF(B74=\"\",\"\",IFERROR(IF(INDEX('Disagg.1A_import-export'!M$7:M$13,MATCH($A74,'Disagg.1A_import-export'!$B$7:$B$13,0))=\"\",\"\",INDEX('Disagg.1A_import-export'!M$7:M$13,MATCH($A74,'Disagg.1A_import-export'!$B$7:$B$13,0))),\"\"))","v":""},{"$f":"IF(B74=\"\",\"\",IFERROR(IF(INDEX('Disagg.1A_import-export'!N$7:N$13,MATCH($A74,'Disagg.1A_import-export'!$B$7:$B$13,0))=\"\",\"\",INDEX('Disagg.1A_import-export'!N$7:N$13,MATCH($A74,'Disagg.1A_import-export'!$B$7:$B$13,0))),\"\"))","v":""},{"$f":"IF(B74=\"\",\"\",IFERROR(IF(INDEX('Disagg.1A_import-export'!AC$7:AC$13,MATCH($A74,'Disagg.1A_import-export'!$B$7:$B$13,0))=\"\",\"\",INDEX('Disagg.1A_import-export'!AC$7:AC$13,MATCH($A74,'Disagg.1A_import-export'!$B$7:$B$13,0))),\"\"))","v":""}]
[{"$f":"IFERROR(IF(INDEX(ImpactDisaglist,MATCH(0,INDEX(COUNTIF(A$10:A74,ImpactDisaglist),0,0),0))<>\"\",INDEX(ImpactDisaglist,MATCH(0,INDEX(COUNTIF(A$10:A74,ImpactDisaglist),0,0),0)),INDEX(OutcomeDisaglist,MATCH(0,INDEX(COUNTIF(A$10:A74,OutcomeDisaglist),0,0),0))),\"\")","v":""},{"$f":"IFERROR(INDEX('Disagg.1A_import-export'!D$7:D$200,MATCH($A75,'Disagg.1A_import-export'!$B$7:$B$200,0)),\"\")","v":""},{"$f":"IF(B75=\"\",\"\",IFERROR(INDEX('Disagg.1A_import-export'!E$7:E$13,MATCH($A75,'Disagg.1A_import-export'!$B$7:$B$13,0)),\"\"))","v":""},{"$f":"IF(B75=\"\",\"\",IFERROR(IF(INDEX('Disagg.1A_import-export'!I$7:I$13,MATCH($A75,'Disagg.1A_import-export'!$B$7:$B$13,0))=\"\",\"\",INDEX('Disagg.1A_import-export'!I$7:I$13,MATCH($A75,'Disagg.1A_import-export'!$B$7:$B$13,0))),\"\"))","v":""},{"$f":"IF(B75=\"\",\"\",IFERROR(IF(INDEX('Disagg.1A_import-export'!J$7:J$13,MATCH($A75,'Disagg.1A_import-export'!$B$7:$B$13,0))=\"\",\"\",INDEX('Disagg.1A_import-export'!J$7:J$13,MATCH($A75,'Disagg.1A_import-export'!$B$7:$B$13,0))),\"\"))","v":""},{"$f":"IF(B75=\"\",\"\",IFERROR(IF(INDEX('Disagg.1A_import-export'!K$7:K$13,MATCH($A75,'Disagg.1A_import-export'!$B$7:$B$13,0))=\"\",\"\",INDEX('Disagg.1A_import-export'!K$7:K$13,MATCH($A75,'Disagg.1A_import-export'!$B$7:$B$13,0))),\"\"))","v":""},{"$f":"IF(B75=\"\",\"\",IFERROR(IF(INDEX('Disagg.1A_import-export'!L$7:L$13,MATCH($A75,'Disagg.1A_import-export'!$B$7:$B$13,0))=\"\",\"\",INDEX('Disagg.1A_import-export'!L$7:L$13,MATCH($A75,'Disagg.1A_import-export'!$B$7:$B$13,0))),\"\"))","v":""},{"$f":"IF(B75=\"\",\"\",IFERROR(IF(INDEX('Disagg.1A_import-export'!M$7:M$13,MATCH($A75,'Disagg.1A_import-export'!$B$7:$B$13,0))=\"\",\"\",INDEX('Disagg.1A_import-export'!M$7:M$13,MATCH($A75,'Disagg.1A_import-export'!$B$7:$B$13,0))),\"\"))","v":""},{"$f":"IF(B75=\"\",\"\",IFERROR(IF(INDEX('Disagg.1A_import-export'!N$7:N$13,MATCH($A75,'Disagg.1A_import-export'!$B$7:$B$13,0))=\"\",\"\",INDEX('Disagg.1A_import-export'!N$7:N$13,MATCH($A75,'Disagg.1A_import-export'!$B$7:$B$13,0))),\"\"))","v":""},{"$f":"IF(B75=\"\",\"\",IFERROR(IF(INDEX('Disagg.1A_import-export'!AC$7:AC$13,MATCH($A75,'Disagg.1A_import-export'!$B$7:$B$13,0))=\"\",\"\",INDEX('Disagg.1A_import-export'!AC$7:AC$13,MATCH($A75,'Disagg.1A_import-export'!$B$7:$B$13,0))),\"\"))","v":""}]
[{"$f":"IFERROR(IF(INDEX(ImpactDisaglist,MATCH(0,INDEX(COUNTIF(A$10:A75,ImpactDisaglist),0,0),0))<>\"\",INDEX(ImpactDisaglist,MATCH(0,INDEX(COUNTIF(A$10:A75,ImpactDisaglist),0,0),0)),INDEX(OutcomeDisaglist,MATCH(0,INDEX(COUNTIF(A$10:A75,OutcomeDisaglist),0,0),0))),\"\")","v":""},{"$f":"IFERROR(INDEX('Disagg.1A_import-export'!D$7:D$200,MATCH($A76,'Disagg.1A_import-export'!$B$7:$B$200,0)),\"\")","v":""},{"$f":"IF(B76=\"\",\"\",IFERROR(INDEX('Disagg.1A_import-export'!E$7:E$13,MATCH($A76,'Disagg.1A_import-export'!$B$7:$B$13,0)),\"\"))","v":""},{"$f":"IF(B76=\"\",\"\",IFERROR(IF(INDEX('Disagg.1A_import-export'!I$7:I$13,MATCH($A76,'Disagg.1A_import-export'!$B$7:$B$13,0))=\"\",\"\",INDEX('Disagg.1A_import-export'!I$7:I$13,MATCH($A76,'Disagg.1A_import-export'!$B$7:$B$13,0))),\"\"))","v":""},{"$f":"IF(B76=\"\",\"\",IFERROR(IF(INDEX('Disagg.1A_import-export'!J$7:J$13,MATCH($A76,'Disagg.1A_import-export'!$B$7:$B$13,0))=\"\",\"\",INDEX('Disagg.1A_import-export'!J$7:J$13,MATCH($A76,'Disagg.1A_import-export'!$B$7:$B$13,0))),\"\"))","v":""},{"$f":"IF(B76=\"\",\"\",IFERROR(IF(INDEX('Disagg.1A_import-export'!K$7:K$13,MATCH($A76,'Disagg.1A_import-export'!$B$7:$B$13,0))=\"\",\"\",INDEX('Disagg.1A_import-export'!K$7:K$13,MATCH($A76,'Disagg.1A_import-export'!$B$7:$B$13,0))),\"\"))","v":""},{"$f":"IF(B76=\"\",\"\",IFERROR(IF(INDEX('Disagg.1A_import-export'!L$7:L$13,MATCH($A76,'Disagg.1A_import-export'!$B$7:$B$13,0))=\"\",\"\",INDEX('Disagg.1A_import-export'!L$7:L$13,MATCH($A76,'Disagg.1A_import-export'!$B$7:$B$13,0))),\"\"))","v":""},{"$f":"IF(B76=\"\",\"\",IFERROR(IF(INDEX('Disagg.1A_import-export'!M$7:M$13,MATCH($A76,'Disagg.1A_import-export'!$B$7:$B$13,0))=\"\",\"\",INDEX('Disagg.1A_import-export'!M$7:M$13,MATCH($A76,'Disagg.1A_import-export'!$B$7:$B$13,0))),\"\"))","v":""},{"$f":"IF(B76=\"\",\"\",IFERROR(IF(INDEX('Disagg.1A_import-export'!N$7:N$13,MATCH($A76,'Disagg.1A_import-export'!$B$7:$B$13,0))=\"\",\"\",INDEX('Disagg.1A_import-export'!N$7:N$13,MATCH($A76,'Disagg.1A_import-export'!$B$7:$B$13,0))),\"\"))","v":""},{"$f":"IF(B76=\"\",\"\",IFERROR(IF(INDEX('Disagg.1A_import-export'!AC$7:AC$13,MATCH($A76,'Disagg.1A_import-export'!$B$7:$B$13,0))=\"\",\"\",INDEX('Disagg.1A_import-export'!AC$7:AC$13,MATCH($A76,'Disagg.1A_import-export'!$B$7:$B$13,0))),\"\"))","v":""}]
[{"$f":"IFERROR(IF(INDEX(ImpactDisaglist,MATCH(0,INDEX(COUNTIF(A$10:A76,ImpactDisaglist),0,0),0))<>\"\",INDEX(ImpactDisaglist,MATCH(0,INDEX(COUNTIF(A$10:A76,ImpactDisaglist),0,0),0)),INDEX(OutcomeDisaglist,MATCH(0,INDEX(COUNTIF(A$10:A76,OutcomeDisaglist),0,0),0))),\"\")","v":""},{"$f":"IFERROR(INDEX('Disagg.1A_import-export'!D$7:D$200,MATCH($A77,'Disagg.1A_import-export'!$B$7:$B$200,0)),\"\")","v":""},{"$f":"IF(B77=\"\",\"\",IFERROR(INDEX('Disagg.1A_import-export'!E$7:E$13,MATCH($A77,'Disagg.1A_import-export'!$B$7:$B$13,0)),\"\"))","v":""},{"$f":"IF(B77=\"\",\"\",IFERROR(IF(INDEX('Disagg.1A_import-export'!I$7:I$13,MATCH($A77,'Disagg.1A_import-export'!$B$7:$B$13,0))=\"\",\"\",INDEX('Disagg.1A_import-export'!I$7:I$13,MATCH($A77,'Disagg.1A_import-export'!$B$7:$B$13,0))),\"\"))","v":""},{"$f":"IF(B77=\"\",\"\",IFERROR(IF(INDEX('Disagg.1A_import-export'!J$7:J$13,MATCH($A77,'Disagg.1A_import-export'!$B$7:$B$13,0))=\"\",\"\",INDEX('Disagg.1A_import-export'!J$7:J$13,MATCH($A77,'Disagg.1A_import-export'!$B$7:$B$13,0))),\"\"))","v":""},{"$f":"IF(B77=\"\",\"\",IFERROR(IF(INDEX('Disagg.1A_import-export'!K$7:K$13,MATCH($A77,'Disagg.1A_import-export'!$B$7:$B$13,0))=\"\",\"\",INDEX('Disagg.1A_import-export'!K$7:K$13,MATCH($A77,'Disagg.1A_import-export'!$B$7:$B$13,0))),\"\"))","v":""},{"$f":"IF(B77=\"\",\"\",IFERROR(IF(INDEX('Disagg.1A_import-export'!L$7:L$13,MATCH($A77,'Disagg.1A_import-export'!$B$7:$B$13,0))=\"\",\"\",INDEX('Disagg.1A_import-export'!L$7:L$13,MATCH($A77,'Disagg.1A_import-export'!$B$7:$B$13,0))),\"\"))","v":""},{"$f":"IF(B77=\"\",\"\",IFERROR(IF(INDEX('Disagg.1A_import-export'!M$7:M$13,MATCH($A77,'Disagg.1A_import-export'!$B$7:$B$13,0))=\"\",\"\",INDEX('Disagg.1A_import-export'!M$7:M$13,MATCH($A77,'Disagg.1A_import-export'!$B$7:$B$13,0))),\"\"))","v":""},{"$f":"IF(B77=\"\",\"\",IFERROR(IF(INDEX('Disagg.1A_import-export'!N$7:N$13,MATCH($A77,'Disagg.1A_import-export'!$B$7:$B$13,0))=\"\",\"\",INDEX('Disagg.1A_import-export'!N$7:N$13,MATCH($A77,'Disagg.1A_import-export'!$B$7:$B$13,0))),\"\"))","v":""},{"$f":"IF(B77=\"\",\"\",IFERROR(IF(INDEX('Disagg.1A_import-export'!AC$7:AC$13,MATCH($A77,'Disagg.1A_import-export'!$B$7:$B$13,0))=\"\",\"\",INDEX('Disagg.1A_import-export'!AC$7:AC$13,MATCH($A77,'Disagg.1A_import-export'!$B$7:$B$13,0))),\"\"))","v":""}]
[{"$f":"IFERROR(IF(INDEX(ImpactDisaglist,MATCH(0,INDEX(COUNTIF(A$10:A77,ImpactDisaglist),0,0),0))<>\"\",INDEX(ImpactDisaglist,MATCH(0,INDEX(COUNTIF(A$10:A77,ImpactDisaglist),0,0),0)),INDEX(OutcomeDisaglist,MATCH(0,INDEX(COUNTIF(A$10:A77,OutcomeDisaglist),0,0),0))),\"\")","v":""},{"$f":"IFERROR(INDEX('Disagg.1A_import-export'!D$7:D$200,MATCH($A78,'Disagg.1A_import-export'!$B$7:$B$200,0)),\"\")","v":""},{"$f":"IF(B78=\"\",\"\",IFERROR(INDEX('Disagg.1A_import-export'!E$7:E$13,MATCH($A78,'Disagg.1A_import-export'!$B$7:$B$13,0)),\"\"))","v":""},{"$f":"IF(B78=\"\",\"\",IFERROR(IF(INDEX('Disagg.1A_import-export'!I$7:I$13,MATCH($A78,'Disagg.1A_import-export'!$B$7:$B$13,0))=\"\",\"\",INDEX('Disagg.1A_import-export'!I$7:I$13,MATCH($A78,'Disagg.1A_import-export'!$B$7:$B$13,0))),\"\"))","v":""},{"$f":"IF(B78=\"\",\"\",IFERROR(IF(INDEX('Disagg.1A_import-export'!J$7:J$13,MATCH($A78,'Disagg.1A_import-export'!$B$7:$B$13,0))=\"\",\"\",INDEX('Disagg.1A_import-export'!J$7:J$13,MATCH($A78,'Disagg.1A_import-export'!$B$7:$B$13,0))),\"\"))","v":""},{"$f":"IF(B78=\"\",\"\",IFERROR(IF(INDEX('Disagg.1A_import-export'!K$7:K$13,MATCH($A78,'Disagg.1A_import-export'!$B$7:$B$13,0))=\"\",\"\",INDEX('Disagg.1A_import-export'!K$7:K$13,MATCH($A78,'Disagg.1A_import-export'!$B$7:$B$13,0))),\"\"))","v":""},{"$f":"IF(B78=\"\",\"\",IFERROR(IF(INDEX('Disagg.1A_import-export'!L$7:L$13,MATCH($A78,'Disagg.1A_import-export'!$B$7:$B$13,0))=\"\",\"\",INDEX('Disagg.1A_import-export'!L$7:L$13,MATCH($A78,'Disagg.1A_import-export'!$B$7:$B$13,0))),\"\"))","v":""},{"$f":"IF(B78=\"\",\"\",IFERROR(IF(INDEX('Disagg.1A_import-export'!M$7:M$13,MATCH($A78,'Disagg.1A_import-export'!$B$7:$B$13,0))=\"\",\"\",INDEX('Disagg.1A_import-export'!M$7:M$13,MATCH($A78,'Disagg.1A_import-export'!$B$7:$B$13,0))),\"\"))","v":""},{"$f":"IF(B78=\"\",\"\",IFERROR(IF(INDEX('Disagg.1A_import-export'!N$7:N$13,MATCH($A78,'Disagg.1A_import-export'!$B$7:$B$13,0))=\"\",\"\",INDEX('Disagg.1A_import-export'!N$7:N$13,MATCH($A78,'Disagg.1A_import-export'!$B$7:$B$13,0))),\"\"))","v":""},{"$f":"IF(B78=\"\",\"\",IFERROR(IF(INDEX('Disagg.1A_import-export'!AC$7:AC$13,MATCH($A78,'Disagg.1A_import-export'!$B$7:$B$13,0))=\"\",\"\",INDEX('Disagg.1A_import-export'!AC$7:AC$13,MATCH($A78,'Disagg.1A_import-export'!$B$7:$B$13,0))),\"\"))","v":""}]
[{"$f":"IFERROR(IF(INDEX(ImpactDisaglist,MATCH(0,INDEX(COUNTIF(A$10:A78,ImpactDisaglist),0,0),0))<>\"\",INDEX(ImpactDisaglist,MATCH(0,INDEX(COUNTIF(A$10:A78,ImpactDisaglist),0,0),0)),INDEX(OutcomeDisaglist,MATCH(0,INDEX(COUNTIF(A$10:A78,OutcomeDisaglist),0,0),0))),\"\")","v":""},{"$f":"IFERROR(INDEX('Disagg.1A_import-export'!D$7:D$200,MATCH($A79,'Disagg.1A_import-export'!$B$7:$B$200,0)),\"\")","v":""},{"$f":"IF(B79=\"\",\"\",IFERROR(INDEX('Disagg.1A_import-export'!E$7:E$13,MATCH($A79,'Disagg.1A_import-export'!$B$7:$B$13,0)),\"\"))","v":""},{"$f":"IF(B79=\"\",\"\",IFERROR(IF(INDEX('Disagg.1A_import-export'!I$7:I$13,MATCH($A79,'Disagg.1A_import-export'!$B$7:$B$13,0))=\"\",\"\",INDEX('Disagg.1A_import-export'!I$7:I$13,MATCH($A79,'Disagg.1A_import-export'!$B$7:$B$13,0))),\"\"))","v":""},{"$f":"IF(B79=\"\",\"\",IFERROR(IF(INDEX('Disagg.1A_import-export'!J$7:J$13,MATCH($A79,'Disagg.1A_import-export'!$B$7:$B$13,0))=\"\",\"\",INDEX('Disagg.1A_import-export'!J$7:J$13,MATCH($A79,'Disagg.1A_import-export'!$B$7:$B$13,0))),\"\"))","v":""},{"$f":"IF(B79=\"\",\"\",IFERROR(IF(INDEX('Disagg.1A_import-export'!K$7:K$13,MATCH($A79,'Disagg.1A_import-export'!$B$7:$B$13,0))=\"\",\"\",INDEX('Disagg.1A_import-export'!K$7:K$13,MATCH($A79,'Disagg.1A_import-export'!$B$7:$B$13,0))),\"\"))","v":""},{"$f":"IF(B79=\"\",\"\",IFERROR(IF(INDEX('Disagg.1A_import-export'!L$7:L$13,MATCH($A79,'Disagg.1A_import-export'!$B$7:$B$13,0))=\"\",\"\",INDEX('Disagg.1A_import-export'!L$7:L$13,MATCH($A79,'Disagg.1A_import-export'!$B$7:$B$13,0))),\"\"))","v":""},{"$f":"IF(B79=\"\",\"\",IFERROR(IF(INDEX('Disagg.1A_import-export'!M$7:M$13,MATCH($A79,'Disagg.1A_import-export'!$B$7:$B$13,0))=\"\",\"\",INDEX('Disagg.1A_import-export'!M$7:M$13,MATCH($A79,'Disagg.1A_import-export'!$B$7:$B$13,0))),\"\"))","v":""},{"$f":"IF(B79=\"\",\"\",IFERROR(IF(INDEX('Disagg.1A_import-export'!N$7:N$13,MATCH($A79,'Disagg.1A_import-export'!$B$7:$B$13,0))=\"\",\"\",INDEX('Disagg.1A_import-export'!N$7:N$13,MATCH($A79,'Disagg.1A_import-export'!$B$7:$B$13,0))),\"\"))","v":""},{"$f":"IF(B79=\"\",\"\",IFERROR(IF(INDEX('Disagg.1A_import-export'!AC$7:AC$13,MATCH($A79,'Disagg.1A_import-export'!$B$7:$B$13,0))=\"\",\"\",INDEX('Disagg.1A_import-export'!AC$7:AC$13,MATCH($A79,'Disagg.1A_import-export'!$B$7:$B$13,0))),\"\"))","v":""}]
[{"$f":"IFERROR(IF(INDEX(ImpactDisaglist,MATCH(0,INDEX(COUNTIF(A$10:A79,ImpactDisaglist),0,0),0))<>\"\",INDEX(ImpactDisaglist,MATCH(0,INDEX(COUNTIF(A$10:A79,ImpactDisaglist),0,0),0)),INDEX(OutcomeDisaglist,MATCH(0,INDEX(COUNTIF(A$10:A79,OutcomeDisaglist),0,0),0))),\"\")","v":""},{"$f":"IFERROR(INDEX('Disagg.1A_import-export'!D$7:D$200,MATCH($A80,'Disagg.1A_import-export'!$B$7:$B$200,0)),\"\")","v":""},{"$f":"IF(B80=\"\",\"\",IFERROR(INDEX('Disagg.1A_import-export'!E$7:E$13,MATCH($A80,'Disagg.1A_import-export'!$B$7:$B$13,0)),\"\"))","v":""},{"$f":"IF(B80=\"\",\"\",IFERROR(IF(INDEX('Disagg.1A_import-export'!I$7:I$13,MATCH($A80,'Disagg.1A_import-export'!$B$7:$B$13,0))=\"\",\"\",INDEX('Disagg.1A_import-export'!I$7:I$13,MATCH($A80,'Disagg.1A_import-export'!$B$7:$B$13,0))),\"\"))","v":""},{"$f":"IF(B80=\"\",\"\",IFERROR(IF(INDEX('Disagg.1A_import-export'!J$7:J$13,MATCH($A80,'Disagg.1A_import-export'!$B$7:$B$13,0))=\"\",\"\",INDEX('Disagg.1A_import-export'!J$7:J$13,MATCH($A80,'Disagg.1A_import-export'!$B$7:$B$13,0))),\"\"))","v":""},{"$f":"IF(B80=\"\",\"\",IFERROR(IF(INDEX('Disagg.1A_import-export'!K$7:K$13,MATCH($A80,'Disagg.1A_import-export'!$B$7:$B$13,0))=\"\",\"\",INDEX('Disagg.1A_import-export'!K$7:K$13,MATCH($A80,'Disagg.1A_import-export'!$B$7:$B$13,0))),\"\"))","v":""},{"$f":"IF(B80=\"\",\"\",IFERROR(IF(INDEX('Disagg.1A_import-export'!L$7:L$13,MATCH($A80,'Disagg.1A_import-export'!$B$7:$B$13,0))=\"\",\"\",INDEX('Disagg.1A_import-export'!L$7:L$13,MATCH($A80,'Disagg.1A_import-export'!$B$7:$B$13,0))),\"\"))","v":""},{"$f":"IF(B80=\"\",\"\",IFERROR(IF(INDEX('Disagg.1A_import-export'!M$7:M$13,MATCH($A80,'Disagg.1A_import-export'!$B$7:$B$13,0))=\"\",\"\",INDEX('Disagg.1A_import-export'!M$7:M$13,MATCH($A80,'Disagg.1A_import-export'!$B$7:$B$13,0))),\"\"))","v":""},{"$f":"IF(B80=\"\",\"\",IFERROR(IF(INDEX('Disagg.1A_import-export'!N$7:N$13,MATCH($A80,'Disagg.1A_import-export'!$B$7:$B$13,0))=\"\",\"\",INDEX('Disagg.1A_import-export'!N$7:N$13,MATCH($A80,'Disagg.1A_import-export'!$B$7:$B$13,0))),\"\"))","v":""},{"$f":"IF(B80=\"\",\"\",IFERROR(IF(INDEX('Disagg.1A_import-export'!AC$7:AC$13,MATCH($A80,'Disagg.1A_import-export'!$B$7:$B$13,0))=\"\",\"\",INDEX('Disagg.1A_import-export'!AC$7:AC$13,MATCH($A80,'Disagg.1A_import-export'!$B$7:$B$13,0))),\"\"))","v":""}]
[{"$f":"IFERROR(IF(INDEX(ImpactDisaglist,MATCH(0,INDEX(COUNTIF(A$10:A80,ImpactDisaglist),0,0),0))<>\"\",INDEX(ImpactDisaglist,MATCH(0,INDEX(COUNTIF(A$10:A80,ImpactDisaglist),0,0),0)),INDEX(OutcomeDisaglist,MATCH(0,INDEX(COUNTIF(A$10:A80,OutcomeDisaglist),0,0),0))),\"\")","v":""},{"$f":"IFERROR(INDEX('Disagg.1A_import-export'!D$7:D$200,MATCH($A81,'Disagg.1A_import-export'!$B$7:$B$200,0)),\"\")","v":""},{"$f":"IF(B81=\"\",\"\",IFERROR(INDEX('Disagg.1A_import-export'!E$7:E$13,MATCH($A81,'Disagg.1A_import-export'!$B$7:$B$13,0)),\"\"))","v":""},{"$f":"IF(B81=\"\",\"\",IFERROR(IF(INDEX('Disagg.1A_import-export'!I$7:I$13,MATCH($A81,'Disagg.1A_import-export'!$B$7:$B$13,0))=\"\",\"\",INDEX('Disagg.1A_import-export'!I$7:I$13,MATCH($A81,'Disagg.1A_import-export'!$B$7:$B$13,0))),\"\"))","v":""},{"$f":"IF(B81=\"\",\"\",IFERROR(IF(INDEX('Disagg.1A_import-export'!J$7:J$13,MATCH($A81,'Disagg.1A_import-export'!$B$7:$B$13,0))=\"\",\"\",INDEX('Disagg.1A_import-export'!J$7:J$13,MATCH($A81,'Disagg.1A_import-export'!$B$7:$B$13,0))),\"\"))","v":""},{"$f":"IF(B81=\"\",\"\",IFERROR(IF(INDEX('Disagg.1A_import-export'!K$7:K$13,MATCH($A81,'Disagg.1A_import-export'!$B$7:$B$13,0))=\"\",\"\",INDEX('Disagg.1A_import-export'!K$7:K$13,MATCH($A81,'Disagg.1A_import-export'!$B$7:$B$13,0))),\"\"))","v":""},{"$f":"IF(B81=\"\",\"\",IFERROR(IF(INDEX('Disagg.1A_import-export'!L$7:L$13,MATCH($A81,'Disagg.1A_import-export'!$B$7:$B$13,0))=\"\",\"\",INDEX('Disagg.1A_import-export'!L$7:L$13,MATCH($A81,'Disagg.1A_import-export'!$B$7:$B$13,0))),\"\"))","v":""},{"$f":"IF(B81=\"\",\"\",IFERROR(IF(INDEX('Disagg.1A_import-export'!M$7:M$13,MATCH($A81,'Disagg.1A_import-export'!$B$7:$B$13,0))=\"\",\"\",INDEX('Disagg.1A_import-export'!M$7:M$13,MATCH($A81,'Disagg.1A_import-export'!$B$7:$B$13,0))),\"\"))","v":""},{"$f":"IF(B81=\"\",\"\",IFERROR(IF(INDEX('Disagg.1A_import-export'!N$7:N$13,MATCH($A81,'Disagg.1A_import-export'!$B$7:$B$13,0))=\"\",\"\",INDEX('Disagg.1A_import-export'!N$7:N$13,MATCH($A81,'Disagg.1A_import-export'!$B$7:$B$13,0))),\"\"))","v":""},{"$f":"IF(B81=\"\",\"\",IFERROR(IF(INDEX('Disagg.1A_import-export'!AC$7:AC$13,MATCH($A81,'Disagg.1A_import-export'!$B$7:$B$13,0))=\"\",\"\",INDEX('Disagg.1A_import-export'!AC$7:AC$13,MATCH($A81,'Disagg.1A_import-export'!$B$7:$B$13,0))),\"\"))","v":""}]
[{"$f":"IFERROR(IF(INDEX(ImpactDisaglist,MATCH(0,INDEX(COUNTIF(A$10:A81,ImpactDisaglist),0,0),0))<>\"\",INDEX(ImpactDisaglist,MATCH(0,INDEX(COUNTIF(A$10:A81,ImpactDisaglist),0,0),0)),INDEX(OutcomeDisaglist,MATCH(0,INDEX(COUNTIF(A$10:A81,OutcomeDisaglist),0,0),0))),\"\")","v":""},{"$f":"IFERROR(INDEX('Disagg.1A_import-export'!D$7:D$200,MATCH($A82,'Disagg.1A_import-export'!$B$7:$B$200,0)),\"\")","v":""},{"$f":"IF(B82=\"\",\"\",IFERROR(INDEX('Disagg.1A_import-export'!E$7:E$13,MATCH($A82,'Disagg.1A_import-export'!$B$7:$B$13,0)),\"\"))","v":""},{"$f":"IF(B82=\"\",\"\",IFERROR(IF(INDEX('Disagg.1A_import-export'!I$7:I$13,MATCH($A82,'Disagg.1A_import-export'!$B$7:$B$13,0))=\"\",\"\",INDEX('Disagg.1A_import-export'!I$7:I$13,MATCH($A82,'Disagg.1A_import-export'!$B$7:$B$13,0))),\"\"))","v":""},{"$f":"IF(B82=\"\",\"\",IFERROR(IF(INDEX('Disagg.1A_import-export'!J$7:J$13,MATCH($A82,'Disagg.1A_import-export'!$B$7:$B$13,0))=\"\",\"\",INDEX('Disagg.1A_import-export'!J$7:J$13,MATCH($A82,'Disagg.1A_import-export'!$B$7:$B$13,0))),\"\"))","v":""},{"$f":"IF(B82=\"\",\"\",IFERROR(IF(INDEX('Disagg.1A_import-export'!K$7:K$13,MATCH($A82,'Disagg.1A_import-export'!$B$7:$B$13,0))=\"\",\"\",INDEX('Disagg.1A_import-export'!K$7:K$13,MATCH($A82,'Disagg.1A_import-export'!$B$7:$B$13,0))),\"\"))","v":""},{"$f":"IF(B82=\"\",\"\",IFERROR(IF(INDEX('Disagg.1A_import-export'!L$7:L$13,MATCH($A82,'Disagg.1A_import-export'!$B$7:$B$13,0))=\"\",\"\",INDEX('Disagg.1A_import-export'!L$7:L$13,MATCH($A82,'Disagg.1A_import-export'!$B$7:$B$13,0))),\"\"))","v":""},{"$f":"IF(B82=\"\",\"\",IFERROR(IF(INDEX('Disagg.1A_import-export'!M$7:M$13,MATCH($A82,'Disagg.1A_import-export'!$B$7:$B$13,0))=\"\",\"\",INDEX('Disagg.1A_import-export'!M$7:M$13,MATCH($A82,'Disagg.1A_import-export'!$B$7:$B$13,0))),\"\"))","v":""},{"$f":"IF(B82=\"\",\"\",IFERROR(IF(INDEX('Disagg.1A_import-export'!N$7:N$13,MATCH($A82,'Disagg.1A_import-export'!$B$7:$B$13,0))=\"\",\"\",INDEX('Disagg.1A_import-export'!N$7:N$13,MATCH($A82,'Disagg.1A_import-export'!$B$7:$B$13,0))),\"\"))","v":""},{"$f":"IF(B82=\"\",\"\",IFERROR(IF(INDEX('Disagg.1A_import-export'!AC$7:AC$13,MATCH($A82,'Disagg.1A_import-export'!$B$7:$B$13,0))=\"\",\"\",INDEX('Disagg.1A_import-export'!AC$7:AC$13,MATCH($A82,'Disagg.1A_import-export'!$B$7:$B$13,0))),\"\"))","v":""}]
[{"$f":"IFERROR(IF(INDEX(ImpactDisaglist,MATCH(0,INDEX(COUNTIF(A$10:A82,ImpactDisaglist),0,0),0))<>\"\",INDEX(ImpactDisaglist,MATCH(0,INDEX(COUNTIF(A$10:A82,ImpactDisaglist),0,0),0)),INDEX(OutcomeDisaglist,MATCH(0,INDEX(COUNTIF(A$10:A82,OutcomeDisaglist),0,0),0))),\"\")","v":""},{"$f":"IFERROR(INDEX('Disagg.1A_import-export'!D$7:D$200,MATCH($A83,'Disagg.1A_import-export'!$B$7:$B$200,0)),\"\")","v":""},{"$f":"IF(B83=\"\",\"\",IFERROR(INDEX('Disagg.1A_import-export'!E$7:E$13,MATCH($A83,'Disagg.1A_import-export'!$B$7:$B$13,0)),\"\"))","v":""},{"$f":"IF(B83=\"\",\"\",IFERROR(IF(INDEX('Disagg.1A_import-export'!I$7:I$13,MATCH($A83,'Disagg.1A_import-export'!$B$7:$B$13,0))=\"\",\"\",INDEX('Disagg.1A_import-export'!I$7:I$13,MATCH($A83,'Disagg.1A_import-export'!$B$7:$B$13,0))),\"\"))","v":""},{"$f":"IF(B83=\"\",\"\",IFERROR(IF(INDEX('Disagg.1A_import-export'!J$7:J$13,MATCH($A83,'Disagg.1A_import-export'!$B$7:$B$13,0))=\"\",\"\",INDEX('Disagg.1A_import-export'!J$7:J$13,MATCH($A83,'Disagg.1A_import-export'!$B$7:$B$13,0))),\"\"))","v":""},{"$f":"IF(B83=\"\",\"\",IFERROR(IF(INDEX('Disagg.1A_import-export'!K$7:K$13,MATCH($A83,'Disagg.1A_import-export'!$B$7:$B$13,0))=\"\",\"\",INDEX('Disagg.1A_import-export'!K$7:K$13,MATCH($A83,'Disagg.1A_import-export'!$B$7:$B$13,0))),\"\"))","v":""},{"$f":"IF(B83=\"\",\"\",IFERROR(IF(INDEX('Disagg.1A_import-export'!L$7:L$13,MATCH($A83,'Disagg.1A_import-export'!$B$7:$B$13,0))=\"\",\"\",INDEX('Disagg.1A_import-export'!L$7:L$13,MATCH($A83,'Disagg.1A_import-export'!$B$7:$B$13,0))),\"\"))","v":""},{"$f":"IF(B83=\"\",\"\",IFERROR(IF(INDEX('Disagg.1A_import-export'!M$7:M$13,MATCH($A83,'Disagg.1A_import-export'!$B$7:$B$13,0))=\"\",\"\",INDEX('Disagg.1A_import-export'!M$7:M$13,MATCH($A83,'Disagg.1A_import-export'!$B$7:$B$13,0))),\"\"))","v":""},{"$f":"IF(B83=\"\",\"\",IFERROR(IF(INDEX('Disagg.1A_import-export'!N$7:N$13,MATCH($A83,'Disagg.1A_import-export'!$B$7:$B$13,0))=\"\",\"\",INDEX('Disagg.1A_import-export'!N$7:N$13,MATCH($A83,'Disagg.1A_import-export'!$B$7:$B$13,0))),\"\"))","v":""},{"$f":"IF(B83=\"\",\"\",IFERROR(IF(INDEX('Disagg.1A_import-export'!AC$7:AC$13,MATCH($A83,'Disagg.1A_import-export'!$B$7:$B$13,0))=\"\",\"\",INDEX('Disagg.1A_import-export'!AC$7:AC$13,MATCH($A83,'Disagg.1A_import-export'!$B$7:$B$13,0))),\"\"))","v":""}]
[{"$f":"IFERROR(IF(INDEX(ImpactDisaglist,MATCH(0,INDEX(COUNTIF(A$10:A83,ImpactDisaglist),0,0),0))<>\"\",INDEX(ImpactDisaglist,MATCH(0,INDEX(COUNTIF(A$10:A83,ImpactDisaglist),0,0),0)),INDEX(OutcomeDisaglist,MATCH(0,INDEX(COUNTIF(A$10:A83,OutcomeDisaglist),0,0),0))),\"\")","v":""},{"$f":"IFERROR(INDEX('Disagg.1A_import-export'!D$7:D$200,MATCH($A84,'Disagg.1A_import-export'!$B$7:$B$200,0)),\"\")","v":""},{"$f":"IF(B84=\"\",\"\",IFERROR(INDEX('Disagg.1A_import-export'!E$7:E$13,MATCH($A84,'Disagg.1A_import-export'!$B$7:$B$13,0)),\"\"))","v":""},{"$f":"IF(B84=\"\",\"\",IFERROR(IF(INDEX('Disagg.1A_import-export'!I$7:I$13,MATCH($A84,'Disagg.1A_import-export'!$B$7:$B$13,0))=\"\",\"\",INDEX('Disagg.1A_import-export'!I$7:I$13,MATCH($A84,'Disagg.1A_import-export'!$B$7:$B$13,0))),\"\"))","v":""},{"$f":"IF(B84=\"\",\"\",IFERROR(IF(INDEX('Disagg.1A_import-export'!J$7:J$13,MATCH($A84,'Disagg.1A_import-export'!$B$7:$B$13,0))=\"\",\"\",INDEX('Disagg.1A_import-export'!J$7:J$13,MATCH($A84,'Disagg.1A_import-export'!$B$7:$B$13,0))),\"\"))","v":""},{"$f":"IF(B84=\"\",\"\",IFERROR(IF(INDEX('Disagg.1A_import-export'!K$7:K$13,MATCH($A84,'Disagg.1A_import-export'!$B$7:$B$13,0))=\"\",\"\",INDEX('Disagg.1A_import-export'!K$7:K$13,MATCH($A84,'Disagg.1A_import-export'!$B$7:$B$13,0))),\"\"))","v":""},{"$f":"IF(B84=\"\",\"\",IFERROR(IF(INDEX('Disagg.1A_import-export'!L$7:L$13,MATCH($A84,'Disagg.1A_import-export'!$B$7:$B$13,0))=\"\",\"\",INDEX('Disagg.1A_import-export'!L$7:L$13,MATCH($A84,'Disagg.1A_import-export'!$B$7:$B$13,0))),\"\"))","v":""},{"$f":"IF(B84=\"\",\"\",IFERROR(IF(INDEX('Disagg.1A_import-export'!M$7:M$13,MATCH($A84,'Disagg.1A_import-export'!$B$7:$B$13,0))=\"\",\"\",INDEX('Disagg.1A_import-export'!M$7:M$13,MATCH($A84,'Disagg.1A_import-export'!$B$7:$B$13,0))),\"\"))","v":""},{"$f":"IF(B84=\"\",\"\",IFERROR(IF(INDEX('Disagg.1A_import-export'!N$7:N$13,MATCH($A84,'Disagg.1A_import-export'!$B$7:$B$13,0))=\"\",\"\",INDEX('Disagg.1A_import-export'!N$7:N$13,MATCH($A84,'Disagg.1A_import-export'!$B$7:$B$13,0))),\"\"))","v":""},{"$f":"IF(B84=\"\",\"\",IFERROR(IF(INDEX('Disagg.1A_import-export'!AC$7:AC$13,MATCH($A84,'Disagg.1A_import-export'!$B$7:$B$13,0))=\"\",\"\",INDEX('Disagg.1A_import-export'!AC$7:AC$13,MATCH($A84,'Disagg.1A_import-export'!$B$7:$B$13,0))),\"\"))","v":""}]
[{"$f":"IFERROR(IF(INDEX(ImpactDisaglist,MATCH(0,INDEX(COUNTIF(A$10:A84,ImpactDisaglist),0,0),0))<>\"\",INDEX(ImpactDisaglist,MATCH(0,INDEX(COUNTIF(A$10:A84,ImpactDisaglist),0,0),0)),INDEX(OutcomeDisaglist,MATCH(0,INDEX(COUNTIF(A$10:A84,OutcomeDisaglist),0,0),0))),\"\")","v":""},{"$f":"IFERROR(INDEX('Disagg.1A_import-export'!D$7:D$200,MATCH($A85,'Disagg.1A_import-export'!$B$7:$B$200,0)),\"\")","v":""},{"$f":"IF(B85=\"\",\"\",IFERROR(INDEX('Disagg.1A_import-export'!E$7:E$13,MATCH($A85,'Disagg.1A_import-export'!$B$7:$B$13,0)),\"\"))","v":""},{"$f":"IF(B85=\"\",\"\",IFERROR(IF(INDEX('Disagg.1A_import-export'!I$7:I$13,MATCH($A85,'Disagg.1A_import-export'!$B$7:$B$13,0))=\"\",\"\",INDEX('Disagg.1A_import-export'!I$7:I$13,MATCH($A85,'Disagg.1A_import-export'!$B$7:$B$13,0))),\"\"))","v":""},{"$f":"IF(B85=\"\",\"\",IFERROR(IF(INDEX('Disagg.1A_import-export'!J$7:J$13,MATCH($A85,'Disagg.1A_import-export'!$B$7:$B$13,0))=\"\",\"\",INDEX('Disagg.1A_import-export'!J$7:J$13,MATCH($A85,'Disagg.1A_import-export'!$B$7:$B$13,0))),\"\"))","v":""},{"$f":"IF(B85=\"\",\"\",IFERROR(IF(INDEX('Disagg.1A_import-export'!K$7:K$13,MATCH($A85,'Disagg.1A_import-export'!$B$7:$B$13,0))=\"\",\"\",INDEX('Disagg.1A_import-export'!K$7:K$13,MATCH($A85,'Disagg.1A_import-export'!$B$7:$B$13,0))),\"\"))","v":""},{"$f":"IF(B85=\"\",\"\",IFERROR(IF(INDEX('Disagg.1A_import-export'!L$7:L$13,MATCH($A85,'Disagg.1A_import-export'!$B$7:$B$13,0))=\"\",\"\",INDEX('Disagg.1A_import-export'!L$7:L$13,MATCH($A85,'Disagg.1A_import-export'!$B$7:$B$13,0))),\"\"))","v":""},{"$f":"IF(B85=\"\",\"\",IFERROR(IF(INDEX('Disagg.1A_import-export'!M$7:M$13,MATCH($A85,'Disagg.1A_import-export'!$B$7:$B$13,0))=\"\",\"\",INDEX('Disagg.1A_import-export'!M$7:M$13,MATCH($A85,'Disagg.1A_import-export'!$B$7:$B$13,0))),\"\"))","v":""},{"$f":"IF(B85=\"\",\"\",IFERROR(IF(INDEX('Disagg.1A_import-export'!N$7:N$13,MATCH($A85,'Disagg.1A_import-export'!$B$7:$B$13,0))=\"\",\"\",INDEX('Disagg.1A_import-export'!N$7:N$13,MATCH($A85,'Disagg.1A_import-export'!$B$7:$B$13,0))),\"\"))","v":""},{"$f":"IF(B85=\"\",\"\",IFERROR(IF(INDEX('Disagg.1A_import-export'!AC$7:AC$13,MATCH($A85,'Disagg.1A_import-export'!$B$7:$B$13,0))=\"\",\"\",INDEX('Disagg.1A_import-export'!AC$7:AC$13,MATCH($A85,'Disagg.1A_import-export'!$B$7:$B$13,0))),\"\"))","v":""}]
[{"$f":"IFERROR(IF(INDEX(ImpactDisaglist,MATCH(0,INDEX(COUNTIF(A$10:A85,ImpactDisaglist),0,0),0))<>\"\",INDEX(ImpactDisaglist,MATCH(0,INDEX(COUNTIF(A$10:A85,ImpactDisaglist),0,0),0)),INDEX(OutcomeDisaglist,MATCH(0,INDEX(COUNTIF(A$10:A85,OutcomeDisaglist),0,0),0))),\"\")","v":""},{"$f":"IFERROR(INDEX('Disagg.1A_import-export'!D$7:D$200,MATCH($A86,'Disagg.1A_import-export'!$B$7:$B$200,0)),\"\")","v":""},{"$f":"IF(B86=\"\",\"\",IFERROR(INDEX('Disagg.1A_import-export'!E$7:E$13,MATCH($A86,'Disagg.1A_import-export'!$B$7:$B$13,0)),\"\"))","v":""},{"$f":"IF(B86=\"\",\"\",IFERROR(IF(INDEX('Disagg.1A_import-export'!I$7:I$13,MATCH($A86,'Disagg.1A_import-export'!$B$7:$B$13,0))=\"\",\"\",INDEX('Disagg.1A_import-export'!I$7:I$13,MATCH($A86,'Disagg.1A_import-export'!$B$7:$B$13,0))),\"\"))","v":""},{"$f":"IF(B86=\"\",\"\",IFERROR(IF(INDEX('Disagg.1A_import-export'!J$7:J$13,MATCH($A86,'Disagg.1A_import-export'!$B$7:$B$13,0))=\"\",\"\",INDEX('Disagg.1A_import-export'!J$7:J$13,MATCH($A86,'Disagg.1A_import-export'!$B$7:$B$13,0))),\"\"))","v":""},{"$f":"IF(B86=\"\",\"\",IFERROR(IF(INDEX('Disagg.1A_import-export'!K$7:K$13,MATCH($A86,'Disagg.1A_import-export'!$B$7:$B$13,0))=\"\",\"\",INDEX('Disagg.1A_import-export'!K$7:K$13,MATCH($A86,'Disagg.1A_import-export'!$B$7:$B$13,0))),\"\"))","v":""},{"$f":"IF(B86=\"\",\"\",IFERROR(IF(INDEX('Disagg.1A_import-export'!L$7:L$13,MATCH($A86,'Disagg.1A_import-export'!$B$7:$B$13,0))=\"\",\"\",INDEX('Disagg.1A_import-export'!L$7:L$13,MATCH($A86,'Disagg.1A_import-export'!$B$7:$B$13,0))),\"\"))","v":""},{"$f":"IF(B86=\"\",\"\",IFERROR(IF(INDEX('Disagg.1A_import-export'!M$7:M$13,MATCH($A86,'Disagg.1A_import-export'!$B$7:$B$13,0))=\"\",\"\",INDEX('Disagg.1A_import-export'!M$7:M$13,MATCH($A86,'Disagg.1A_import-export'!$B$7:$B$13,0))),\"\"))","v":""},{"$f":"IF(B86=\"\",\"\",IFERROR(IF(INDEX('Disagg.1A_import-export'!N$7:N$13,MATCH($A86,'Disagg.1A_import-export'!$B$7:$B$13,0))=\"\",\"\",INDEX('Disagg.1A_import-export'!N$7:N$13,MATCH($A86,'Disagg.1A_import-export'!$B$7:$B$13,0))),\"\"))","v":""},{"$f":"IF(B86=\"\",\"\",IFERROR(IF(INDEX('Disagg.1A_import-export'!AC$7:AC$13,MATCH($A86,'Disagg.1A_import-export'!$B$7:$B$13,0))=\"\",\"\",INDEX('Disagg.1A_import-export'!AC$7:AC$13,MATCH($A86,'Disagg.1A_import-export'!$B$7:$B$13,0))),\"\"))","v":""}]
[{"$f":"IFERROR(IF(INDEX(ImpactDisaglist,MATCH(0,INDEX(COUNTIF(A$10:A86,ImpactDisaglist),0,0),0))<>\"\",INDEX(ImpactDisaglist,MATCH(0,INDEX(COUNTIF(A$10:A86,ImpactDisaglist),0,0),0)),INDEX(OutcomeDisaglist,MATCH(0,INDEX(COUNTIF(A$10:A86,OutcomeDisaglist),0,0),0))),\"\")","v":""},{"$f":"IFERROR(INDEX('Disagg.1A_import-export'!D$7:D$200,MATCH($A87,'Disagg.1A_import-export'!$B$7:$B$200,0)),\"\")","v":""},{"$f":"IF(B87=\"\",\"\",IFERROR(INDEX('Disagg.1A_import-export'!E$7:E$13,MATCH($A87,'Disagg.1A_import-export'!$B$7:$B$13,0)),\"\"))","v":""},{"$f":"IF(B87=\"\",\"\",IFERROR(IF(INDEX('Disagg.1A_import-export'!I$7:I$13,MATCH($A87,'Disagg.1A_import-export'!$B$7:$B$13,0))=\"\",\"\",INDEX('Disagg.1A_import-export'!I$7:I$13,MATCH($A87,'Disagg.1A_import-export'!$B$7:$B$13,0))),\"\"))","v":""},{"$f":"IF(B87=\"\",\"\",IFERROR(IF(INDEX('Disagg.1A_import-export'!J$7:J$13,MATCH($A87,'Disagg.1A_import-export'!$B$7:$B$13,0))=\"\",\"\",INDEX('Disagg.1A_import-export'!J$7:J$13,MATCH($A87,'Disagg.1A_import-export'!$B$7:$B$13,0))),\"\"))","v":""},{"$f":"IF(B87=\"\",\"\",IFERROR(IF(INDEX('Disagg.1A_import-export'!K$7:K$13,MATCH($A87,'Disagg.1A_import-export'!$B$7:$B$13,0))=\"\",\"\",INDEX('Disagg.1A_import-export'!K$7:K$13,MATCH($A87,'Disagg.1A_import-export'!$B$7:$B$13,0))),\"\"))","v":""},{"$f":"IF(B87=\"\",\"\",IFERROR(IF(INDEX('Disagg.1A_import-export'!L$7:L$13,MATCH($A87,'Disagg.1A_import-export'!$B$7:$B$13,0))=\"\",\"\",INDEX('Disagg.1A_import-export'!L$7:L$13,MATCH($A87,'Disagg.1A_import-export'!$B$7:$B$13,0))),\"\"))","v":""},{"$f":"IF(B87=\"\",\"\",IFERROR(IF(INDEX('Disagg.1A_import-export'!M$7:M$13,MATCH($A87,'Disagg.1A_import-export'!$B$7:$B$13,0))=\"\",\"\",INDEX('Disagg.1A_import-export'!M$7:M$13,MATCH($A87,'Disagg.1A_import-export'!$B$7:$B$13,0))),\"\"))","v":""},{"$f":"IF(B87=\"\",\"\",IFERROR(IF(INDEX('Disagg.1A_import-export'!N$7:N$13,MATCH($A87,'Disagg.1A_import-export'!$B$7:$B$13,0))=\"\",\"\",INDEX('Disagg.1A_import-export'!N$7:N$13,MATCH($A87,'Disagg.1A_import-export'!$B$7:$B$13,0))),\"\"))","v":""},{"$f":"IF(B87=\"\",\"\",IFERROR(IF(INDEX('Disagg.1A_import-export'!AC$7:AC$13,MATCH($A87,'Disagg.1A_import-export'!$B$7:$B$13,0))=\"\",\"\",INDEX('Disagg.1A_import-export'!AC$7:AC$13,MATCH($A87,'Disagg.1A_import-export'!$B$7:$B$13,0))),\"\"))","v":""}]
[{"$f":"IFERROR(IF(INDEX(ImpactDisaglist,MATCH(0,INDEX(COUNTIF(A$10:A87,ImpactDisaglist),0,0),0))<>\"\",INDEX(ImpactDisaglist,MATCH(0,INDEX(COUNTIF(A$10:A87,ImpactDisaglist),0,0),0)),INDEX(OutcomeDisaglist,MATCH(0,INDEX(COUNTIF(A$10:A87,OutcomeDisaglist),0,0),0))),\"\")","v":""},{"$f":"IFERROR(INDEX('Disagg.1A_import-export'!D$7:D$200,MATCH($A88,'Disagg.1A_import-export'!$B$7:$B$200,0)),\"\")","v":""},{"$f":"IF(B88=\"\",\"\",IFERROR(INDEX('Disagg.1A_import-export'!E$7:E$13,MATCH($A88,'Disagg.1A_import-export'!$B$7:$B$13,0)),\"\"))","v":""},{"$f":"IF(B88=\"\",\"\",IFERROR(IF(INDEX('Disagg.1A_import-export'!I$7:I$13,MATCH($A88,'Disagg.1A_import-export'!$B$7:$B$13,0))=\"\",\"\",INDEX('Disagg.1A_import-export'!I$7:I$13,MATCH($A88,'Disagg.1A_import-export'!$B$7:$B$13,0))),\"\"))","v":""},{"$f":"IF(B88=\"\",\"\",IFERROR(IF(INDEX('Disagg.1A_import-export'!J$7:J$13,MATCH($A88,'Disagg.1A_import-export'!$B$7:$B$13,0))=\"\",\"\",INDEX('Disagg.1A_import-export'!J$7:J$13,MATCH($A88,'Disagg.1A_import-export'!$B$7:$B$13,0))),\"\"))","v":""},{"$f":"IF(B88=\"\",\"\",IFERROR(IF(INDEX('Disagg.1A_import-export'!K$7:K$13,MATCH($A88,'Disagg.1A_import-export'!$B$7:$B$13,0))=\"\",\"\",INDEX('Disagg.1A_import-export'!K$7:K$13,MATCH($A88,'Disagg.1A_import-export'!$B$7:$B$13,0))),\"\"))","v":""},{"$f":"IF(B88=\"\",\"\",IFERROR(IF(INDEX('Disagg.1A_import-export'!L$7:L$13,MATCH($A88,'Disagg.1A_import-export'!$B$7:$B$13,0))=\"\",\"\",INDEX('Disagg.1A_import-export'!L$7:L$13,MATCH($A88,'Disagg.1A_import-export'!$B$7:$B$13,0))),\"\"))","v":""},{"$f":"IF(B88=\"\",\"\",IFERROR(IF(INDEX('Disagg.1A_import-export'!M$7:M$13,MATCH($A88,'Disagg.1A_import-export'!$B$7:$B$13,0))=\"\",\"\",INDEX('Disagg.1A_import-export'!M$7:M$13,MATCH($A88,'Disagg.1A_import-export'!$B$7:$B$13,0))),\"\"))","v":""},{"$f":"IF(B88=\"\",\"\",IFERROR(IF(INDEX('Disagg.1A_import-export'!N$7:N$13,MATCH($A88,'Disagg.1A_import-export'!$B$7:$B$13,0))=\"\",\"\",INDEX('Disagg.1A_import-export'!N$7:N$13,MATCH($A88,'Disagg.1A_import-export'!$B$7:$B$13,0))),\"\"))","v":""},{"$f":"IF(B88=\"\",\"\",IFERROR(IF(INDEX('Disagg.1A_import-export'!AC$7:AC$13,MATCH($A88,'Disagg.1A_import-export'!$B$7:$B$13,0))=\"\",\"\",INDEX('Disagg.1A_import-export'!AC$7:AC$13,MATCH($A88,'Disagg.1A_import-export'!$B$7:$B$13,0))),\"\"))","v":""}]
[{"$f":"IFERROR(IF(INDEX(ImpactDisaglist,MATCH(0,INDEX(COUNTIF(A$10:A88,ImpactDisaglist),0,0),0))<>\"\",INDEX(ImpactDisaglist,MATCH(0,INDEX(COUNTIF(A$10:A88,ImpactDisaglist),0,0),0)),INDEX(OutcomeDisaglist,MATCH(0,INDEX(COUNTIF(A$10:A88,OutcomeDisaglist),0,0),0))),\"\")","v":""},{"$f":"IFERROR(INDEX('Disagg.1A_import-export'!D$7:D$200,MATCH($A89,'Disagg.1A_import-export'!$B$7:$B$200,0)),\"\")","v":""},{"$f":"IF(B89=\"\",\"\",IFERROR(INDEX('Disagg.1A_import-export'!E$7:E$13,MATCH($A89,'Disagg.1A_import-export'!$B$7:$B$13,0)),\"\"))","v":""},{"$f":"IF(B89=\"\",\"\",IFERROR(IF(INDEX('Disagg.1A_import-export'!I$7:I$13,MATCH($A89,'Disagg.1A_import-export'!$B$7:$B$13,0))=\"\",\"\",INDEX('Disagg.1A_import-export'!I$7:I$13,MATCH($A89,'Disagg.1A_import-export'!$B$7:$B$13,0))),\"\"))","v":""},{"$f":"IF(B89=\"\",\"\",IFERROR(IF(INDEX('Disagg.1A_import-export'!J$7:J$13,MATCH($A89,'Disagg.1A_import-export'!$B$7:$B$13,0))=\"\",\"\",INDEX('Disagg.1A_import-export'!J$7:J$13,MATCH($A89,'Disagg.1A_import-export'!$B$7:$B$13,0))),\"\"))","v":""},{"$f":"IF(B89=\"\",\"\",IFERROR(IF(INDEX('Disagg.1A_import-export'!K$7:K$13,MATCH($A89,'Disagg.1A_import-export'!$B$7:$B$13,0))=\"\",\"\",INDEX('Disagg.1A_import-export'!K$7:K$13,MATCH($A89,'Disagg.1A_import-export'!$B$7:$B$13,0))),\"\"))","v":""},{"$f":"IF(B89=\"\",\"\",IFERROR(IF(INDEX('Disagg.1A_import-export'!L$7:L$13,MATCH($A89,'Disagg.1A_import-export'!$B$7:$B$13,0))=\"\",\"\",INDEX('Disagg.1A_import-export'!L$7:L$13,MATCH($A89,'Disagg.1A_import-export'!$B$7:$B$13,0))),\"\"))","v":""},{"$f":"IF(B89=\"\",\"\",IFERROR(IF(INDEX('Disagg.1A_import-export'!M$7:M$13,MATCH($A89,'Disagg.1A_import-export'!$B$7:$B$13,0))=\"\",\"\",INDEX('Disagg.1A_import-export'!M$7:M$13,MATCH($A89,'Disagg.1A_import-export'!$B$7:$B$13,0))),\"\"))","v":""},{"$f":"IF(B89=\"\",\"\",IFERROR(IF(INDEX('Disagg.1A_import-export'!N$7:N$13,MATCH($A89,'Disagg.1A_import-export'!$B$7:$B$13,0))=\"\",\"\",INDEX('Disagg.1A_import-export'!N$7:N$13,MATCH($A89,'Disagg.1A_import-export'!$B$7:$B$13,0))),\"\"))","v":""},{"$f":"IF(B89=\"\",\"\",IFERROR(IF(INDEX('Disagg.1A_import-export'!AC$7:AC$13,MATCH($A89,'Disagg.1A_import-export'!$B$7:$B$13,0))=\"\",\"\",INDEX('Disagg.1A_import-export'!AC$7:AC$13,MATCH($A89,'Disagg.1A_import-export'!$B$7:$B$13,0))),\"\"))","v":""}]
[{"$f":"IFERROR(IF(INDEX(ImpactDisaglist,MATCH(0,INDEX(COUNTIF(A$10:A89,ImpactDisaglist),0,0),0))<>\"\",INDEX(ImpactDisaglist,MATCH(0,INDEX(COUNTIF(A$10:A89,ImpactDisaglist),0,0),0)),INDEX(OutcomeDisaglist,MATCH(0,INDEX(COUNTIF(A$10:A89,OutcomeDisaglist),0,0),0))),\"\")","v":""},{"$f":"IFERROR(INDEX('Disagg.1A_import-export'!D$7:D$200,MATCH($A90,'Disagg.1A_import-export'!$B$7:$B$200,0)),\"\")","v":""},{"$f":"IF(B90=\"\",\"\",IFERROR(INDEX('Disagg.1A_import-export'!E$7:E$13,MATCH($A90,'Disagg.1A_import-export'!$B$7:$B$13,0)),\"\"))","v":""},{"$f":"IF(B90=\"\",\"\",IFERROR(IF(INDEX('Disagg.1A_import-export'!I$7:I$13,MATCH($A90,'Disagg.1A_import-export'!$B$7:$B$13,0))=\"\",\"\",INDEX('Disagg.1A_import-export'!I$7:I$13,MATCH($A90,'Disagg.1A_import-export'!$B$7:$B$13,0))),\"\"))","v":""},{"$f":"IF(B90=\"\",\"\",IFERROR(IF(INDEX('Disagg.1A_import-export'!J$7:J$13,MATCH($A90,'Disagg.1A_import-export'!$B$7:$B$13,0))=\"\",\"\",INDEX('Disagg.1A_import-export'!J$7:J$13,MATCH($A90,'Disagg.1A_import-export'!$B$7:$B$13,0))),\"\"))","v":""},{"$f":"IF(B90=\"\",\"\",IFERROR(IF(INDEX('Disagg.1A_import-export'!K$7:K$13,MATCH($A90,'Disagg.1A_import-export'!$B$7:$B$13,0))=\"\",\"\",INDEX('Disagg.1A_import-export'!K$7:K$13,MATCH($A90,'Disagg.1A_import-export'!$B$7:$B$13,0))),\"\"))","v":""},{"$f":"IF(B90=\"\",\"\",IFERROR(IF(INDEX('Disagg.1A_import-export'!L$7:L$13,MATCH($A90,'Disagg.1A_import-export'!$B$7:$B$13,0))=\"\",\"\",INDEX('Disagg.1A_import-export'!L$7:L$13,MATCH($A90,'Disagg.1A_import-export'!$B$7:$B$13,0))),\"\"))","v":""},{"$f":"IF(B90=\"\",\"\",IFERROR(IF(INDEX('Disagg.1A_import-export'!M$7:M$13,MATCH($A90,'Disagg.1A_import-export'!$B$7:$B$13,0))=\"\",\"\",INDEX('Disagg.1A_import-export'!M$7:M$13,MATCH($A90,'Disagg.1A_import-export'!$B$7:$B$13,0))),\"\"))","v":""},{"$f":"IF(B90=\"\",\"\",IFERROR(IF(INDEX('Disagg.1A_import-export'!N$7:N$13,MATCH($A90,'Disagg.1A_import-export'!$B$7:$B$13,0))=\"\",\"\",INDEX('Disagg.1A_import-export'!N$7:N$13,MATCH($A90,'Disagg.1A_import-export'!$B$7:$B$13,0))),\"\"))","v":""},{"$f":"IF(B90=\"\",\"\",IFERROR(IF(INDEX('Disagg.1A_import-export'!AC$7:AC$13,MATCH($A90,'Disagg.1A_import-export'!$B$7:$B$13,0))=\"\",\"\",INDEX('Disagg.1A_import-export'!AC$7:AC$13,MATCH($A90,'Disagg.1A_import-export'!$B$7:$B$13,0))),\"\"))","v":""}]
[{"$f":"IFERROR(IF(INDEX(ImpactDisaglist,MATCH(0,INDEX(COUNTIF(A$10:A90,ImpactDisaglist),0,0),0))<>\"\",INDEX(ImpactDisaglist,MATCH(0,INDEX(COUNTIF(A$10:A90,ImpactDisaglist),0,0),0)),INDEX(OutcomeDisaglist,MATCH(0,INDEX(COUNTIF(A$10:A90,OutcomeDisaglist),0,0),0))),\"\")","v":""},{"$f":"IFERROR(INDEX('Disagg.1A_import-export'!D$7:D$200,MATCH($A91,'Disagg.1A_import-export'!$B$7:$B$200,0)),\"\")","v":""},{"$f":"IF(B91=\"\",\"\",IFERROR(INDEX('Disagg.1A_import-export'!E$7:E$13,MATCH($A91,'Disagg.1A_import-export'!$B$7:$B$13,0)),\"\"))","v":""},{"$f":"IF(B91=\"\",\"\",IFERROR(IF(INDEX('Disagg.1A_import-export'!I$7:I$13,MATCH($A91,'Disagg.1A_import-export'!$B$7:$B$13,0))=\"\",\"\",INDEX('Disagg.1A_import-export'!I$7:I$13,MATCH($A91,'Disagg.1A_import-export'!$B$7:$B$13,0))),\"\"))","v":""},{"$f":"IF(B91=\"\",\"\",IFERROR(IF(INDEX('Disagg.1A_import-export'!J$7:J$13,MATCH($A91,'Disagg.1A_import-export'!$B$7:$B$13,0))=\"\",\"\",INDEX('Disagg.1A_import-export'!J$7:J$13,MATCH($A91,'Disagg.1A_import-export'!$B$7:$B$13,0))),\"\"))","v":""},{"$f":"IF(B91=\"\",\"\",IFERROR(IF(INDEX('Disagg.1A_import-export'!K$7:K$13,MATCH($A91,'Disagg.1A_import-export'!$B$7:$B$13,0))=\"\",\"\",INDEX('Disagg.1A_import-export'!K$7:K$13,MATCH($A91,'Disagg.1A_import-export'!$B$7:$B$13,0))),\"\"))","v":""},{"$f":"IF(B91=\"\",\"\",IFERROR(IF(INDEX('Disagg.1A_import-export'!L$7:L$13,MATCH($A91,'Disagg.1A_import-export'!$B$7:$B$13,0))=\"\",\"\",INDEX('Disagg.1A_import-export'!L$7:L$13,MATCH($A91,'Disagg.1A_import-export'!$B$7:$B$13,0))),\"\"))","v":""},{"$f":"IF(B91=\"\",\"\",IFERROR(IF(INDEX('Disagg.1A_import-export'!M$7:M$13,MATCH($A91,'Disagg.1A_import-export'!$B$7:$B$13,0))=\"\",\"\",INDEX('Disagg.1A_import-export'!M$7:M$13,MATCH($A91,'Disagg.1A_import-export'!$B$7:$B$13,0))),\"\"))","v":""},{"$f":"IF(B91=\"\",\"\",IFERROR(IF(INDEX('Disagg.1A_import-export'!N$7:N$13,MATCH($A91,'Disagg.1A_import-export'!$B$7:$B$13,0))=\"\",\"\",INDEX('Disagg.1A_import-export'!N$7:N$13,MATCH($A91,'Disagg.1A_import-export'!$B$7:$B$13,0))),\"\"))","v":""},{"$f":"IF(B91=\"\",\"\",IFERROR(IF(INDEX('Disagg.1A_import-export'!AC$7:AC$13,MATCH($A91,'Disagg.1A_import-export'!$B$7:$B$13,0))=\"\",\"\",INDEX('Disagg.1A_import-export'!AC$7:AC$13,MATCH($A91,'Disagg.1A_import-export'!$B$7:$B$13,0))),\"\"))","v":""}]
[{"$f":"IFERROR(IF(INDEX(ImpactDisaglist,MATCH(0,INDEX(COUNTIF(A$10:A91,ImpactDisaglist),0,0),0))<>\"\",INDEX(ImpactDisaglist,MATCH(0,INDEX(COUNTIF(A$10:A91,ImpactDisaglist),0,0),0)),INDEX(OutcomeDisaglist,MATCH(0,INDEX(COUNTIF(A$10:A91,OutcomeDisaglist),0,0),0))),\"\")","v":""},{"$f":"IFERROR(INDEX('Disagg.1A_import-export'!D$7:D$200,MATCH($A92,'Disagg.1A_import-export'!$B$7:$B$200,0)),\"\")","v":""},{"$f":"IF(B92=\"\",\"\",IFERROR(INDEX('Disagg.1A_import-export'!E$7:E$13,MATCH($A92,'Disagg.1A_import-export'!$B$7:$B$13,0)),\"\"))","v":""},{"$f":"IF(B92=\"\",\"\",IFERROR(IF(INDEX('Disagg.1A_import-export'!I$7:I$13,MATCH($A92,'Disagg.1A_import-export'!$B$7:$B$13,0))=\"\",\"\",INDEX('Disagg.1A_import-export'!I$7:I$13,MATCH($A92,'Disagg.1A_import-export'!$B$7:$B$13,0))),\"\"))","v":""},{"$f":"IF(B92=\"\",\"\",IFERROR(IF(INDEX('Disagg.1A_import-export'!J$7:J$13,MATCH($A92,'Disagg.1A_import-export'!$B$7:$B$13,0))=\"\",\"\",INDEX('Disagg.1A_import-export'!J$7:J$13,MATCH($A92,'Disagg.1A_import-export'!$B$7:$B$13,0))),\"\"))","v":""},{"$f":"IF(B92=\"\",\"\",IFERROR(IF(INDEX('Disagg.1A_import-export'!K$7:K$13,MATCH($A92,'Disagg.1A_import-export'!$B$7:$B$13,0))=\"\",\"\",INDEX('Disagg.1A_import-export'!K$7:K$13,MATCH($A92,'Disagg.1A_import-export'!$B$7:$B$13,0))),\"\"))","v":""},{"$f":"IF(B92=\"\",\"\",IFERROR(IF(INDEX('Disagg.1A_import-export'!L$7:L$13,MATCH($A92,'Disagg.1A_import-export'!$B$7:$B$13,0))=\"\",\"\",INDEX('Disagg.1A_import-export'!L$7:L$13,MATCH($A92,'Disagg.1A_import-export'!$B$7:$B$13,0))),\"\"))","v":""},{"$f":"IF(B92=\"\",\"\",IFERROR(IF(INDEX('Disagg.1A_import-export'!M$7:M$13,MATCH($A92,'Disagg.1A_import-export'!$B$7:$B$13,0))=\"\",\"\",INDEX('Disagg.1A_import-export'!M$7:M$13,MATCH($A92,'Disagg.1A_import-export'!$B$7:$B$13,0))),\"\"))","v":""},{"$f":"IF(B92=\"\",\"\",IFERROR(IF(INDEX('Disagg.1A_import-export'!N$7:N$13,MATCH($A92,'Disagg.1A_import-export'!$B$7:$B$13,0))=\"\",\"\",INDEX('Disagg.1A_import-export'!N$7:N$13,MATCH($A92,'Disagg.1A_import-export'!$B$7:$B$13,0))),\"\"))","v":""},{"$f":"IF(B92=\"\",\"\",IFERROR(IF(INDEX('Disagg.1A_import-export'!AC$7:AC$13,MATCH($A92,'Disagg.1A_import-export'!$B$7:$B$13,0))=\"\",\"\",INDEX('Disagg.1A_import-export'!AC$7:AC$13,MATCH($A92,'Disagg.1A_import-export'!$B$7:$B$13,0))),\"\"))","v":""}]
[{"$f":"IFERROR(IF(INDEX(ImpactDisaglist,MATCH(0,INDEX(COUNTIF(A$10:A92,ImpactDisaglist),0,0),0))<>\"\",INDEX(ImpactDisaglist,MATCH(0,INDEX(COUNTIF(A$10:A92,ImpactDisaglist),0,0),0)),INDEX(OutcomeDisaglist,MATCH(0,INDEX(COUNTIF(A$10:A92,OutcomeDisaglist),0,0),0))),\"\")","v":""},{"$f":"IFERROR(INDEX('Disagg.1A_import-export'!D$7:D$200,MATCH($A93,'Disagg.1A_import-export'!$B$7:$B$200,0)),\"\")","v":""},{"$f":"IF(B93=\"\",\"\",IFERROR(INDEX('Disagg.1A_import-export'!E$7:E$13,MATCH($A93,'Disagg.1A_import-export'!$B$7:$B$13,0)),\"\"))","v":""},{"$f":"IF(B93=\"\",\"\",IFERROR(IF(INDEX('Disagg.1A_import-export'!I$7:I$13,MATCH($A93,'Disagg.1A_import-export'!$B$7:$B$13,0))=\"\",\"\",INDEX('Disagg.1A_import-export'!I$7:I$13,MATCH($A93,'Disagg.1A_import-export'!$B$7:$B$13,0))),\"\"))","v":""},{"$f":"IF(B93=\"\",\"\",IFERROR(IF(INDEX('Disagg.1A_import-export'!J$7:J$13,MATCH($A93,'Disagg.1A_import-export'!$B$7:$B$13,0))=\"\",\"\",INDEX('Disagg.1A_import-export'!J$7:J$13,MATCH($A93,'Disagg.1A_import-export'!$B$7:$B$13,0))),\"\"))","v":""},{"$f":"IF(B93=\"\",\"\",IFERROR(IF(INDEX('Disagg.1A_import-export'!K$7:K$13,MATCH($A93,'Disagg.1A_import-export'!$B$7:$B$13,0))=\"\",\"\",INDEX('Disagg.1A_import-export'!K$7:K$13,MATCH($A93,'Disagg.1A_import-export'!$B$7:$B$13,0))),\"\"))","v":""},{"$f":"IF(B93=\"\",\"\",IFERROR(IF(INDEX('Disagg.1A_import-export'!L$7:L$13,MATCH($A93,'Disagg.1A_import-export'!$B$7:$B$13,0))=\"\",\"\",INDEX('Disagg.1A_import-export'!L$7:L$13,MATCH($A93,'Disagg.1A_import-export'!$B$7:$B$13,0))),\"\"))","v":""},{"$f":"IF(B93=\"\",\"\",IFERROR(IF(INDEX('Disagg.1A_import-export'!M$7:M$13,MATCH($A93,'Disagg.1A_import-export'!$B$7:$B$13,0))=\"\",\"\",INDEX('Disagg.1A_import-export'!M$7:M$13,MATCH($A93,'Disagg.1A_import-export'!$B$7:$B$13,0))),\"\"))","v":""},{"$f":"IF(B93=\"\",\"\",IFERROR(IF(INDEX('Disagg.1A_import-export'!N$7:N$13,MATCH($A93,'Disagg.1A_import-export'!$B$7:$B$13,0))=\"\",\"\",INDEX('Disagg.1A_import-export'!N$7:N$13,MATCH($A93,'Disagg.1A_import-export'!$B$7:$B$13,0))),\"\"))","v":""},{"$f":"IF(B93=\"\",\"\",IFERROR(IF(INDEX('Disagg.1A_import-export'!AC$7:AC$13,MATCH($A93,'Disagg.1A_import-export'!$B$7:$B$13,0))=\"\",\"\",INDEX('Disagg.1A_import-export'!AC$7:AC$13,MATCH($A93,'Disagg.1A_import-export'!$B$7:$B$13,0))),\"\"))","v":""}]
[{"$f":"IFERROR(IF(INDEX(ImpactDisaglist,MATCH(0,INDEX(COUNTIF(A$10:A93,ImpactDisaglist),0,0),0))<>\"\",INDEX(ImpactDisaglist,MATCH(0,INDEX(COUNTIF(A$10:A93,ImpactDisaglist),0,0),0)),INDEX(OutcomeDisaglist,MATCH(0,INDEX(COUNTIF(A$10:A93,OutcomeDisaglist),0,0),0))),\"\")","v":""},{"$f":"IFERROR(INDEX('Disagg.1A_import-export'!D$7:D$200,MATCH($A94,'Disagg.1A_import-export'!$B$7:$B$200,0)),\"\")","v":""},{"$f":"IF(B94=\"\",\"\",IFERROR(INDEX('Disagg.1A_import-export'!E$7:E$13,MATCH($A94,'Disagg.1A_import-export'!$B$7:$B$13,0)),\"\"))","v":""},{"$f":"IF(B94=\"\",\"\",IFERROR(IF(INDEX('Disagg.1A_import-export'!I$7:I$13,MATCH($A94,'Disagg.1A_import-export'!$B$7:$B$13,0))=\"\",\"\",INDEX('Disagg.1A_import-export'!I$7:I$13,MATCH($A94,'Disagg.1A_import-export'!$B$7:$B$13,0))),\"\"))","v":""},{"$f":"IF(B94=\"\",\"\",IFERROR(IF(INDEX('Disagg.1A_import-export'!J$7:J$13,MATCH($A94,'Disagg.1A_import-export'!$B$7:$B$13,0))=\"\",\"\",INDEX('Disagg.1A_import-export'!J$7:J$13,MATCH($A94,'Disagg.1A_import-export'!$B$7:$B$13,0))),\"\"))","v":""},{"$f":"IF(B94=\"\",\"\",IFERROR(IF(INDEX('Disagg.1A_import-export'!K$7:K$13,MATCH($A94,'Disagg.1A_import-export'!$B$7:$B$13,0))=\"\",\"\",INDEX('Disagg.1A_import-export'!K$7:K$13,MATCH($A94,'Disagg.1A_import-export'!$B$7:$B$13,0))),\"\"))","v":""},{"$f":"IF(B94=\"\",\"\",IFERROR(IF(INDEX('Disagg.1A_import-export'!L$7:L$13,MATCH($A94,'Disagg.1A_import-export'!$B$7:$B$13,0))=\"\",\"\",INDEX('Disagg.1A_import-export'!L$7:L$13,MATCH($A94,'Disagg.1A_import-export'!$B$7:$B$13,0))),\"\"))","v":""},{"$f":"IF(B94=\"\",\"\",IFERROR(IF(INDEX('Disagg.1A_import-export'!M$7:M$13,MATCH($A94,'Disagg.1A_import-export'!$B$7:$B$13,0))=\"\",\"\",INDEX('Disagg.1A_import-export'!M$7:M$13,MATCH($A94,'Disagg.1A_import-export'!$B$7:$B$13,0))),\"\"))","v":""},{"$f":"IF(B94=\"\",\"\",IFERROR(IF(INDEX('Disagg.1A_import-export'!N$7:N$13,MATCH($A94,'Disagg.1A_import-export'!$B$7:$B$13,0))=\"\",\"\",INDEX('Disagg.1A_import-export'!N$7:N$13,MATCH($A94,'Disagg.1A_import-export'!$B$7:$B$13,0))),\"\"))","v":""},{"$f":"IF(B94=\"\",\"\",IFERROR(IF(INDEX('Disagg.1A_import-export'!AC$7:AC$13,MATCH($A94,'Disagg.1A_import-export'!$B$7:$B$13,0))=\"\",\"\",INDEX('Disagg.1A_import-export'!AC$7:AC$13,MATCH($A94,'Disagg.1A_import-export'!$B$7:$B$13,0))),\"\"))","v":""}]
[{"$f":"IFERROR(IF(INDEX(ImpactDisaglist,MATCH(0,INDEX(COUNTIF(A$10:A94,ImpactDisaglist),0,0),0))<>\"\",INDEX(ImpactDisaglist,MATCH(0,INDEX(COUNTIF(A$10:A94,ImpactDisaglist),0,0),0)),INDEX(OutcomeDisaglist,MATCH(0,INDEX(COUNTIF(A$10:A94,OutcomeDisaglist),0,0),0))),\"\")","v":""},{"$f":"IFERROR(INDEX('Disagg.1A_import-export'!D$7:D$200,MATCH($A95,'Disagg.1A_import-export'!$B$7:$B$200,0)),\"\")","v":""},{"$f":"IF(B95=\"\",\"\",IFERROR(INDEX('Disagg.1A_import-export'!E$7:E$13,MATCH($A95,'Disagg.1A_import-export'!$B$7:$B$13,0)),\"\"))","v":""},{"$f":"IF(B95=\"\",\"\",IFERROR(IF(INDEX('Disagg.1A_import-export'!I$7:I$13,MATCH($A95,'Disagg.1A_import-export'!$B$7:$B$13,0))=\"\",\"\",INDEX('Disagg.1A_import-export'!I$7:I$13,MATCH($A95,'Disagg.1A_import-export'!$B$7:$B$13,0))),\"\"))","v":""},{"$f":"IF(B95=\"\",\"\",IFERROR(IF(INDEX('Disagg.1A_import-export'!J$7:J$13,MATCH($A95,'Disagg.1A_import-export'!$B$7:$B$13,0))=\"\",\"\",INDEX('Disagg.1A_import-export'!J$7:J$13,MATCH($A95,'Disagg.1A_import-export'!$B$7:$B$13,0))),\"\"))","v":""},{"$f":"IF(B95=\"\",\"\",IFERROR(IF(INDEX('Disagg.1A_import-export'!K$7:K$13,MATCH($A95,'Disagg.1A_import-export'!$B$7:$B$13,0))=\"\",\"\",INDEX('Disagg.1A_import-export'!K$7:K$13,MATCH($A95,'Disagg.1A_import-export'!$B$7:$B$13,0))),\"\"))","v":""},{"$f":"IF(B95=\"\",\"\",IFERROR(IF(INDEX('Disagg.1A_import-export'!L$7:L$13,MATCH($A95,'Disagg.1A_import-export'!$B$7:$B$13,0))=\"\",\"\",INDEX('Disagg.1A_import-export'!L$7:L$13,MATCH($A95,'Disagg.1A_import-export'!$B$7:$B$13,0))),\"\"))","v":""},{"$f":"IF(B95=\"\",\"\",IFERROR(IF(INDEX('Disagg.1A_import-export'!M$7:M$13,MATCH($A95,'Disagg.1A_import-export'!$B$7:$B$13,0))=\"\",\"\",INDEX('Disagg.1A_import-export'!M$7:M$13,MATCH($A95,'Disagg.1A_import-export'!$B$7:$B$13,0))),\"\"))","v":""},{"$f":"IF(B95=\"\",\"\",IFERROR(IF(INDEX('Disagg.1A_import-export'!N$7:N$13,MATCH($A95,'Disagg.1A_import-export'!$B$7:$B$13,0))=\"\",\"\",INDEX('Disagg.1A_import-export'!N$7:N$13,MATCH($A95,'Disagg.1A_import-export'!$B$7:$B$13,0))),\"\"))","v":""},{"$f":"IF(B95=\"\",\"\",IFERROR(IF(INDEX('Disagg.1A_import-export'!AC$7:AC$13,MATCH($A95,'Disagg.1A_import-export'!$B$7:$B$13,0))=\"\",\"\",INDEX('Disagg.1A_import-export'!AC$7:AC$13,MATCH($A95,'Disagg.1A_import-export'!$B$7:$B$13,0))),\"\"))","v":""}]
[{"$f":"IFERROR(IF(INDEX(ImpactDisaglist,MATCH(0,INDEX(COUNTIF(A$10:A95,ImpactDisaglist),0,0),0))<>\"\",INDEX(ImpactDisaglist,MATCH(0,INDEX(COUNTIF(A$10:A95,ImpactDisaglist),0,0),0)),INDEX(OutcomeDisaglist,MATCH(0,INDEX(COUNTIF(A$10:A95,OutcomeDisaglist),0,0),0))),\"\")","v":""},{"$f":"IFERROR(INDEX('Disagg.1A_import-export'!D$7:D$200,MATCH($A96,'Disagg.1A_import-export'!$B$7:$B$200,0)),\"\")","v":""},{"$f":"IF(B96=\"\",\"\",IFERROR(INDEX('Disagg.1A_import-export'!E$7:E$13,MATCH($A96,'Disagg.1A_import-export'!$B$7:$B$13,0)),\"\"))","v":""},{"$f":"IF(B96=\"\",\"\",IFERROR(IF(INDEX('Disagg.1A_import-export'!I$7:I$13,MATCH($A96,'Disagg.1A_import-export'!$B$7:$B$13,0))=\"\",\"\",INDEX('Disagg.1A_import-export'!I$7:I$13,MATCH($A96,'Disagg.1A_import-export'!$B$7:$B$13,0))),\"\"))","v":""},{"$f":"IF(B96=\"\",\"\",IFERROR(IF(INDEX('Disagg.1A_import-export'!J$7:J$13,MATCH($A96,'Disagg.1A_import-export'!$B$7:$B$13,0))=\"\",\"\",INDEX('Disagg.1A_import-export'!J$7:J$13,MATCH($A96,'Disagg.1A_import-export'!$B$7:$B$13,0))),\"\"))","v":""},{"$f":"IF(B96=\"\",\"\",IFERROR(IF(INDEX('Disagg.1A_import-export'!K$7:K$13,MATCH($A96,'Disagg.1A_import-export'!$B$7:$B$13,0))=\"\",\"\",INDEX('Disagg.1A_import-export'!K$7:K$13,MATCH($A96,'Disagg.1A_import-export'!$B$7:$B$13,0))),\"\"))","v":""},{"$f":"IF(B96=\"\",\"\",IFERROR(IF(INDEX('Disagg.1A_import-export'!L$7:L$13,MATCH($A96,'Disagg.1A_import-export'!$B$7:$B$13,0))=\"\",\"\",INDEX('Disagg.1A_import-export'!L$7:L$13,MATCH($A96,'Disagg.1A_import-export'!$B$7:$B$13,0))),\"\"))","v":""},{"$f":"IF(B96=\"\",\"\",IFERROR(IF(INDEX('Disagg.1A_import-export'!M$7:M$13,MATCH($A96,'Disagg.1A_import-export'!$B$7:$B$13,0))=\"\",\"\",INDEX('Disagg.1A_import-export'!M$7:M$13,MATCH($A96,'Disagg.1A_import-export'!$B$7:$B$13,0))),\"\"))","v":""},{"$f":"IF(B96=\"\",\"\",IFERROR(IF(INDEX('Disagg.1A_import-export'!N$7:N$13,MATCH($A96,'Disagg.1A_import-export'!$B$7:$B$13,0))=\"\",\"\",INDEX('Disagg.1A_import-export'!N$7:N$13,MATCH($A96,'Disagg.1A_import-export'!$B$7:$B$13,0))),\"\"))","v":""},{"$f":"IF(B96=\"\",\"\",IFERROR(IF(INDEX('Disagg.1A_import-export'!AC$7:AC$13,MATCH($A96,'Disagg.1A_import-export'!$B$7:$B$13,0))=\"\",\"\",INDEX('Disagg.1A_import-export'!AC$7:AC$13,MATCH($A96,'Disagg.1A_import-export'!$B$7:$B$13,0))),\"\"))","v":""}]
[{"$f":"IFERROR(IF(INDEX(ImpactDisaglist,MATCH(0,INDEX(COUNTIF(A$10:A96,ImpactDisaglist),0,0),0))<>\"\",INDEX(ImpactDisaglist,MATCH(0,INDEX(COUNTIF(A$10:A96,ImpactDisaglist),0,0),0)),INDEX(OutcomeDisaglist,MATCH(0,INDEX(COUNTIF(A$10:A96,OutcomeDisaglist),0,0),0))),\"\")","v":""},{"$f":"IFERROR(INDEX('Disagg.1A_import-export'!D$7:D$200,MATCH($A97,'Disagg.1A_import-export'!$B$7:$B$200,0)),\"\")","v":""},{"$f":"IF(B97=\"\",\"\",IFERROR(INDEX('Disagg.1A_import-export'!E$7:E$13,MATCH($A97,'Disagg.1A_import-export'!$B$7:$B$13,0)),\"\"))","v":""},{"$f":"IF(B97=\"\",\"\",IFERROR(IF(INDEX('Disagg.1A_import-export'!I$7:I$13,MATCH($A97,'Disagg.1A_import-export'!$B$7:$B$13,0))=\"\",\"\",INDEX('Disagg.1A_import-export'!I$7:I$13,MATCH($A97,'Disagg.1A_import-export'!$B$7:$B$13,0))),\"\"))","v":""},{"$f":"IF(B97=\"\",\"\",IFERROR(IF(INDEX('Disagg.1A_import-export'!J$7:J$13,MATCH($A97,'Disagg.1A_import-export'!$B$7:$B$13,0))=\"\",\"\",INDEX('Disagg.1A_import-export'!J$7:J$13,MATCH($A97,'Disagg.1A_import-export'!$B$7:$B$13,0))),\"\"))","v":""},{"$f":"IF(B97=\"\",\"\",IFERROR(IF(INDEX('Disagg.1A_import-export'!K$7:K$13,MATCH($A97,'Disagg.1A_import-export'!$B$7:$B$13,0))=\"\",\"\",INDEX('Disagg.1A_import-export'!K$7:K$13,MATCH($A97,'Disagg.1A_import-export'!$B$7:$B$13,0))),\"\"))","v":""},{"$f":"IF(B97=\"\",\"\",IFERROR(IF(INDEX('Disagg.1A_import-export'!L$7:L$13,MATCH($A97,'Disagg.1A_import-export'!$B$7:$B$13,0))=\"\",\"\",INDEX('Disagg.1A_import-export'!L$7:L$13,MATCH($A97,'Disagg.1A_import-export'!$B$7:$B$13,0))),\"\"))","v":""},{"$f":"IF(B97=\"\",\"\",IFERROR(IF(INDEX('Disagg.1A_import-export'!M$7:M$13,MATCH($A97,'Disagg.1A_import-export'!$B$7:$B$13,0))=\"\",\"\",INDEX('Disagg.1A_import-export'!M$7:M$13,MATCH($A97,'Disagg.1A_import-export'!$B$7:$B$13,0))),\"\"))","v":""},{"$f":"IF(B97=\"\",\"\",IFERROR(IF(INDEX('Disagg.1A_import-export'!N$7:N$13,MATCH($A97,'Disagg.1A_import-export'!$B$7:$B$13,0))=\"\",\"\",INDEX('Disagg.1A_import-export'!N$7:N$13,MATCH($A97,'Disagg.1A_import-export'!$B$7:$B$13,0))),\"\"))","v":""},{"$f":"IF(B97=\"\",\"\",IFERROR(IF(INDEX('Disagg.1A_import-export'!AC$7:AC$13,MATCH($A97,'Disagg.1A_import-export'!$B$7:$B$13,0))=\"\",\"\",INDEX('Disagg.1A_import-export'!AC$7:AC$13,MATCH($A97,'Disagg.1A_import-export'!$B$7:$B$13,0))),\"\"))","v":""}]
[{"$f":"IFERROR(IF(INDEX(ImpactDisaglist,MATCH(0,INDEX(COUNTIF(A$10:A97,ImpactDisaglist),0,0),0))<>\"\",INDEX(ImpactDisaglist,MATCH(0,INDEX(COUNTIF(A$10:A97,ImpactDisaglist),0,0),0)),INDEX(OutcomeDisaglist,MATCH(0,INDEX(COUNTIF(A$10:A97,OutcomeDisaglist),0,0),0))),\"\")","v":""},{"$f":"IFERROR(INDEX('Disagg.1A_import-export'!D$7:D$200,MATCH($A98,'Disagg.1A_import-export'!$B$7:$B$200,0)),\"\")","v":""},{"$f":"IF(B98=\"\",\"\",IFERROR(INDEX('Disagg.1A_import-export'!E$7:E$13,MATCH($A98,'Disagg.1A_import-export'!$B$7:$B$13,0)),\"\"))","v":""},{"$f":"IF(B98=\"\",\"\",IFERROR(IF(INDEX('Disagg.1A_import-export'!I$7:I$13,MATCH($A98,'Disagg.1A_import-export'!$B$7:$B$13,0))=\"\",\"\",INDEX('Disagg.1A_import-export'!I$7:I$13,MATCH($A98,'Disagg.1A_import-export'!$B$7:$B$13,0))),\"\"))","v":""},{"$f":"IF(B98=\"\",\"\",IFERROR(IF(INDEX('Disagg.1A_import-export'!J$7:J$13,MATCH($A98,'Disagg.1A_import-export'!$B$7:$B$13,0))=\"\",\"\",INDEX('Disagg.1A_import-export'!J$7:J$13,MATCH($A98,'Disagg.1A_import-export'!$B$7:$B$13,0))),\"\"))","v":""},{"$f":"IF(B98=\"\",\"\",IFERROR(IF(INDEX('Disagg.1A_import-export'!K$7:K$13,MATCH($A98,'Disagg.1A_import-export'!$B$7:$B$13,0))=\"\",\"\",INDEX('Disagg.1A_import-export'!K$7:K$13,MATCH($A98,'Disagg.1A_import-export'!$B$7:$B$13,0))),\"\"))","v":""},{"$f":"IF(B98=\"\",\"\",IFERROR(IF(INDEX('Disagg.1A_import-export'!L$7:L$13,MATCH($A98,'Disagg.1A_import-export'!$B$7:$B$13,0))=\"\",\"\",INDEX('Disagg.1A_import-export'!L$7:L$13,MATCH($A98,'Disagg.1A_import-export'!$B$7:$B$13,0))),\"\"))","v":""},{"$f":"IF(B98=\"\",\"\",IFERROR(IF(INDEX('Disagg.1A_import-export'!M$7:M$13,MATCH($A98,'Disagg.1A_import-export'!$B$7:$B$13,0))=\"\",\"\",INDEX('Disagg.1A_import-export'!M$7:M$13,MATCH($A98,'Disagg.1A_import-export'!$B$7:$B$13,0))),\"\"))","v":""},{"$f":"IF(B98=\"\",\"\",IFERROR(IF(INDEX('Disagg.1A_import-export'!N$7:N$13,MATCH($A98,'Disagg.1A_import-export'!$B$7:$B$13,0))=\"\",\"\",INDEX('Disagg.1A_import-export'!N$7:N$13,MATCH($A98,'Disagg.1A_import-export'!$B$7:$B$13,0))),\"\"))","v":""},{"$f":"IF(B98=\"\",\"\",IFERROR(IF(INDEX('Disagg.1A_import-export'!AC$7:AC$13,MATCH($A98,'Disagg.1A_import-export'!$B$7:$B$13,0))=\"\",\"\",INDEX('Disagg.1A_import-export'!AC$7:AC$13,MATCH($A98,'Disagg.1A_import-export'!$B$7:$B$13,0))),\"\"))","v":""}]
[{"$f":"IFERROR(IF(INDEX(ImpactDisaglist,MATCH(0,INDEX(COUNTIF(A$10:A98,ImpactDisaglist),0,0),0))<>\"\",INDEX(ImpactDisaglist,MATCH(0,INDEX(COUNTIF(A$10:A98,ImpactDisaglist),0,0),0)),INDEX(OutcomeDisaglist,MATCH(0,INDEX(COUNTIF(A$10:A98,OutcomeDisaglist),0,0),0))),\"\")","v":""},{"$f":"IFERROR(INDEX('Disagg.1A_import-export'!D$7:D$200,MATCH($A99,'Disagg.1A_import-export'!$B$7:$B$200,0)),\"\")","v":""},{"$f":"IF(B99=\"\",\"\",IFERROR(INDEX('Disagg.1A_import-export'!E$7:E$13,MATCH($A99,'Disagg.1A_import-export'!$B$7:$B$13,0)),\"\"))","v":""},{"$f":"IF(B99=\"\",\"\",IFERROR(IF(INDEX('Disagg.1A_import-export'!I$7:I$13,MATCH($A99,'Disagg.1A_import-export'!$B$7:$B$13,0))=\"\",\"\",INDEX('Disagg.1A_import-export'!I$7:I$13,MATCH($A99,'Disagg.1A_import-export'!$B$7:$B$13,0))),\"\"))","v":""},{"$f":"IF(B99=\"\",\"\",IFERROR(IF(INDEX('Disagg.1A_import-export'!J$7:J$13,MATCH($A99,'Disagg.1A_import-export'!$B$7:$B$13,0))=\"\",\"\",INDEX('Disagg.1A_import-export'!J$7:J$13,MATCH($A99,'Disagg.1A_import-export'!$B$7:$B$13,0))),\"\"))","v":""},{"$f":"IF(B99=\"\",\"\",IFERROR(IF(INDEX('Disagg.1A_import-export'!K$7:K$13,MATCH($A99,'Disagg.1A_import-export'!$B$7:$B$13,0))=\"\",\"\",INDEX('Disagg.1A_import-export'!K$7:K$13,MATCH($A99,'Disagg.1A_import-export'!$B$7:$B$13,0))),\"\"))","v":""},{"$f":"IF(B99=\"\",\"\",IFERROR(IF(INDEX('Disagg.1A_import-export'!L$7:L$13,MATCH($A99,'Disagg.1A_import-export'!$B$7:$B$13,0))=\"\",\"\",INDEX('Disagg.1A_import-export'!L$7:L$13,MATCH($A99,'Disagg.1A_import-export'!$B$7:$B$13,0))),\"\"))","v":""},{"$f":"IF(B99=\"\",\"\",IFERROR(IF(INDEX('Disagg.1A_import-export'!M$7:M$13,MATCH($A99,'Disagg.1A_import-export'!$B$7:$B$13,0))=\"\",\"\",INDEX('Disagg.1A_import-export'!M$7:M$13,MATCH($A99,'Disagg.1A_import-export'!$B$7:$B$13,0))),\"\"))","v":""},{"$f":"IF(B99=\"\",\"\",IFERROR(IF(INDEX('Disagg.1A_import-export'!N$7:N$13,MATCH($A99,'Disagg.1A_import-export'!$B$7:$B$13,0))=\"\",\"\",INDEX('Disagg.1A_import-export'!N$7:N$13,MATCH($A99,'Disagg.1A_import-export'!$B$7:$B$13,0))),\"\"))","v":""},{"$f":"IF(B99=\"\",\"\",IFERROR(IF(INDEX('Disagg.1A_import-export'!AC$7:AC$13,MATCH($A99,'Disagg.1A_import-export'!$B$7:$B$13,0))=\"\",\"\",INDEX('Disagg.1A_import-export'!AC$7:AC$13,MATCH($A99,'Disagg.1A_import-export'!$B$7:$B$13,0))),\"\"))","v":""}]
[{"$f":"IFERROR(IF(INDEX(ImpactDisaglist,MATCH(0,INDEX(COUNTIF(A$10:A99,ImpactDisaglist),0,0),0))<>\"\",INDEX(ImpactDisaglist,MATCH(0,INDEX(COUNTIF(A$10:A99,ImpactDisaglist),0,0),0)),INDEX(OutcomeDisaglist,MATCH(0,INDEX(COUNTIF(A$10:A99,OutcomeDisaglist),0,0),0))),\"\")","v":""},{"$f":"IFERROR(INDEX('Disagg.1A_import-export'!D$7:D$200,MATCH($A100,'Disagg.1A_import-export'!$B$7:$B$200,0)),\"\")","v":""},{"$f":"IF(B100=\"\",\"\",IFERROR(INDEX('Disagg.1A_import-export'!E$7:E$13,MATCH($A100,'Disagg.1A_import-export'!$B$7:$B$13,0)),\"\"))","v":""},{"$f":"IF(B100=\"\",\"\",IFERROR(IF(INDEX('Disagg.1A_import-export'!I$7:I$13,MATCH($A100,'Disagg.1A_import-export'!$B$7:$B$13,0))=\"\",\"\",INDEX('Disagg.1A_import-export'!I$7:I$13,MATCH($A100,'Disagg.1A_import-export'!$B$7:$B$13,0))),\"\"))","v":""},{"$f":"IF(B100=\"\",\"\",IFERROR(IF(INDEX('Disagg.1A_import-export'!J$7:J$13,MATCH($A100,'Disagg.1A_import-export'!$B$7:$B$13,0))=\"\",\"\",INDEX('Disagg.1A_import-export'!J$7:J$13,MATCH($A100,'Disagg.1A_import-export'!$B$7:$B$13,0))),\"\"))","v":""},{"$f":"IF(B100=\"\",\"\",IFERROR(IF(INDEX('Disagg.1A_import-export'!K$7:K$13,MATCH($A100,'Disagg.1A_import-export'!$B$7:$B$13,0))=\"\",\"\",INDEX('Disagg.1A_import-export'!K$7:K$13,MATCH($A100,'Disagg.1A_import-export'!$B$7:$B$13,0))),\"\"))","v":""},{"$f":"IF(B100=\"\",\"\",IFERROR(IF(INDEX('Disagg.1A_import-export'!L$7:L$13,MATCH($A100,'Disagg.1A_import-export'!$B$7:$B$13,0))=\"\",\"\",INDEX('Disagg.1A_import-export'!L$7:L$13,MATCH($A100,'Disagg.1A_import-export'!$B$7:$B$13,0))),\"\"))","v":""},{"$f":"IF(B100=\"\",\"\",IFERROR(IF(INDEX('Disagg.1A_import-export'!M$7:M$13,MATCH($A100,'Disagg.1A_import-export'!$B$7:$B$13,0))=\"\",\"\",INDEX('Disagg.1A_import-export'!M$7:M$13,MATCH($A100,'Disagg.1A_import-export'!$B$7:$B$13,0))),\"\"))","v":""},{"$f":"IF(B100=\"\",\"\",IFERROR(IF(INDEX('Disagg.1A_import-export'!N$7:N$13,MATCH($A100,'Disagg.1A_import-export'!$B$7:$B$13,0))=\"\",\"\",INDEX('Disagg.1A_import-export'!N$7:N$13,MATCH($A100,'Disagg.1A_import-export'!$B$7:$B$13,0))),\"\"))","v":""},{"$f":"IF(B100=\"\",\"\",IFERROR(IF(INDEX('Disagg.1A_import-export'!AC$7:AC$13,MATCH($A100,'Disagg.1A_import-export'!$B$7:$B$13,0))=\"\",\"\",INDEX('Disagg.1A_import-export'!AC$7:AC$13,MATCH($A100,'Disagg.1A_import-export'!$B$7:$B$13,0))),\"\"))","v":""}]

{"sheet":"Disagg.1A_import-export","index":8,"n_rows":21,"n_cols":39,"rows_kept":21,"cut":false,"hidden":true,"merged":[[4,1,5,1],[4,26,5,26],[4,5,5,5],[4,6,5,6],[4,7,5,7],[4,18,5,18],[4,19,4,20],[4,21,5,21],[4,22,5,22],[4,23,4,24],[4,25,5,25],[1,3,1,21],[4,3,5,3],[4,4,5,4],[4,8,5,8],[4,9,5,9],[4,10,4,12],[4,13,5,13],[4,14,5,14],[4,15,4,16],[4,17,5,17],[4,27,5,27],[4,28,5,28],[4,29,5,29],[4,30,5,30],[4,31,5,31],[4,37,5,37],[4,38,5,38],[4,32,5,32],[4,33,5,33],[4,34,5,34],[4,35,5,35],[4,36,5,36]]}
[]
[null,null,null,"Instructions for population:\n1. Columns D to M should be mapped for download only\n2. Columns N to T should be mapped for import only\n3. Population should follow same rules as in tab Disaggregation_1A of current template with exception that:\na. population should be 1st sorted by field \"Impact Indicator Number\" on the parent record Impact Indicator \nb. It should then be sorted by field \"Year of Target\" on the Impact Indicator Target Result record (e.g. 2016->2017->2018)\nc. It should then be sorted by field Disaggregation\n"]
[]
[]
[null,null,null,"Impact / Outcome ","Name to display","Standard Impact Indicator Name","Standard Impact Indicator Name - French","Standard Impact Indicator Name - Spanish","Disaggregation","Category","Baseline",null,null,"Disaggregation Report Year","Comments","Result",null,"Comments ","Data validation checks on PR data","Verified Result",null,"LFA comments","Data Validation checks on LFA data","Global Fund Validated Result",null,"Global Fund comments","Data validation checks on GF data","Impact Indicator Number",null,null,null,null,null,"Disaggregation ES","Disaggregation FR","Category ES","Category FR","Comments Local","Baseline Source Local"]
["Record ID",null,-1,null,null,null,null,null,null,null,"Baseline Value","Baseline Year","Baseline Source",null,null,"Result Value (PR)","Result Source (PR)",null,null,"Verified Result Value (LFA)","Source",null,null,"Value","Source",null,null,null,null,null,null,null,null,"Disaggregation ES","Disaggregation FR","Category ES","Category FR","Comments Local","Baseline Source Local"]
[null,{"$f":"IF(D7=\"\",\"\",C7&D7)","v":""},{"$f":"C6+1","v":0},{"$f":"IF(A7<>\"\",\"Impact\",\"\")","v":""},{"$f":"IF(LangOffset=0,F7,IF(LangOffset=1,G7,IF(LangOffset=2,H7)))","v":"[Impact Indicator Name]"},"[Impact Indicator Name]","[Impact Indicator Name FR]","[Impact Indicator Name ES]","[Disaggregation]","[Category]","[Baseline Value]","[Baseline Year]","[Baseline Source]","[Report Year]","[Comments]",{"$f":"IFERROR(IF(INDEX(Disaggregation_1A!K$11:K$80,MATCH('Disagg.1A_import-export'!$B7,Disaggregation_1A!$A$11:$A$80,0))=\"\",\"\",INDEX(Disaggregation_1A!K$11:K$80,MATCH('Disagg.1A_import-export'!$B7,Disaggregation_1A!$A$11:$A$80,0))),\"\")","v":""},{"$f":"IFERROR(IF(INDEX(Disaggregation_1A!L$11:L$80,MATCH('Disagg.1A_import-export'!$B7,Disaggregation_1A!$A$11:$A$80,0))=\"\",\"\",INDEX(Disaggregation_1A!L$11:L$80,MATCH('Disagg.1A_import-export'!$B7,Disaggregation_1A!$A$11:$A$80,0))),\"\")","v":""},{"$f":"IFERROR(IF(INDEX(Disaggregation_1A!M$11:M$80,MATCH('Disagg.1A_import-export'!$B7,Disaggregation_1A!$A$11:$A$80,0))=\"\",\"\",INDEX(Disaggregation_1A!M$11:M$80,MATCH('Disagg.1A_import-export'!$B7,Disaggregation_1A!$A$11:$A$80,0))),\"\")","v":""},{"$f":"IFERROR(INDEX(Disaggregation_1A!N$11:N$80,MATCH('Disagg.1A_import-export'!$B7,Disaggregation_1A!$A$11:$A$80,0)),\"\")","v":0},{"$f":"IFERROR(IF(INDEX(Disaggregation_1A!O$11:O$80,MATCH('Disagg.1A_import-export'!$B7,Disaggregation_1A!$A$11:$A$80,0))=\"\",\"\",INDEX(Disaggregation_1A!O$11:O$80,MATCH('Disagg.1A_import-export'!$B7,Disaggregation_1A!$A$11:$A$80,0))),\"\")","v":""},{"$f":"IFERROR(IF(INDEX(Disaggregation_1A!P$11:P$80,MATCH('Disagg.1A_import-export'!$B7,Disaggregation_1A!$A$11:$A$80,0))=\"\",\"\",INDEX(Disaggregation_1A!P$11:P$80,MATCH('Disagg.1A_import-export'!$B7,Disaggregation_1A!$A$11:$A$80,0))),\"\")","v":""},{"$f":"IFERROR(IF(INDEX(Disaggregation_1A!Q$11:Q$80,MATCH('Disagg.1A_import-export'!$B7,Disaggregation_1A!$A$11:$A$80,0))=\"\",INDEX(Disaggregation_1A!Q$11:Q$80,MATCH('Disagg.1A_import-export'!$B7,Disaggregation_1A!$A$11:$A$80,0)),\"\"),\"\")","v":0},{"$f":"IFERROR(INDEX(Disaggregation_1A!R$11:R$80,MATCH('Disagg.1A_import-export'!$B7,Disaggregation_1A!$A$11:$A$80,0)),\"\")","v":0},{"$f":"IFERROR(INDEX(Disaggregation_1A!S$11:S$80,MATCH('Disagg.1A_import-export'!$B7,Disaggregation_1A!$A$11:$A$80,0)),\"\")","v":0},{"$f":"IFERROR(INDEX(Disaggregation_1A!T$11:T$80,MATCH('Disagg.1A_import-export'!$B7,Disaggregation_1A!$A$11:$A$80,0)),\"\")","v":0},{"$f":"IFERROR(INDEX(Disaggregation_1A!U$11:U$80,MATCH('Disagg.1A_import-export'!$B7,Disaggregation_1A!$A$11:$A$80,0)),\"\")","v":0},{"$f":"IFERROR(INDEX(Disaggregation_1A!V$11:V$80,MATCH('Disagg.1A_import-export'!$B7,Disaggregation_1A!$A$11:$A$80,0)),\"\")","v":0},"[Impact Indicator Number]","[Country (Name)]",null,null,null,null,"[Disaggregation ES]","[Disaggregation FR]","[Category ES]","[Category FR]","[Comments Local]","[Baseline Source Local]"]
[null,null,null,null,null,null,null,null,null,null,null,null,null,null,null,null,null,null,null,null,{"$f":"IFERROR(IF(INDEX(Disaggregation_1A!P$11:P$80,MATCH('Disagg.1A_import-export'!$B8,Disaggregation_1A!$A$11:$A$80,0))=\"\",\"\",INDEX(Disaggregation_1A!P$11:P$80,MATCH('Disagg.1A_import-export'!$B8,Disaggregation_1A!$A$11:$A$80,0))),\"\")","v":""}]
[null,null,null,null,null,null,"outcome indicator "]
["Record ID",null,-1,null,null,"Outcome Indicator Name","Outcome Indicator Name FR","Outcome Indicator Name ES","Disaggregation","Category","Baseline Value","Baseline Year","Baseline Source","Report Year","Comments","Result Value (PR)","Result Source (PR)","Result Comments (PR)",null,"Verified Result Value (LFA)","Verified Result Source (LFA)","Verified Result Comments (LFA)",null,null,null,"Comments (GF)",null,"Outcome Indicator Number","Country (Name)",null,null,null,null,"Disaggregation ES","Disaggregation FR","Category ES","Category FR","Comments Local","Baseline Source Local"]
[null,{"$f":"IF(D11=\"\",\"\",C11&D11)","v":""},{"$f":"C10+1","v":0},{"$f":"IF(A11<>\"\",\"Outcome\",\"\")","v":""},{"$f":"IF(LangOffset=0,F11,IF(LangOffset=1,G11,IF(LangOffset=2,H11)))","v":"[Outcome Indicator Name]"},"[Outcome Indicator Name]","[Outcome Indicator Name FR]","[Outcome Indicator Name ES]","[Disaggregation]","[Category]","[Baseline Value]","[Baseline Year]","[Baseline Source]","[Report Year]","[Comments]",{"$f":"IFERROR(IF(INDEX(Disaggregation_1A!K$11:K$80,MATCH('Disagg.1A_import-export'!$B11,Disaggregation_1A!$A$11:$A$80,0))=\"\",\"\",INDEX(Disaggregation_1A!K$11:K$80,MATCH('Disagg.1A_import-export'!$B11,Disaggregation_1A!$A$11:$A$80,0))),\"\")","v":""},{"$f":"IFERROR(IF(INDEX(Disaggregation_1A!L$11:L$80,MATCH('Disagg.1A_import-export'!$B11,Disaggregation_1A!$A$11:$A$80,0))=\"\",\"\",INDEX(Disaggregation_1A!L$11:L$80,MATCH('Disagg.1A_import-export'!$B11,Disaggregation_1A!$A$11:$A$80,0))),\"\")","v":""},{"$f":"IFERROR(IF(INDEX(Disaggregation_1A!M$11:M$80,MATCH('Disagg.1A_import-export'!$B11,Disaggregation_1A!$A$11:$A$80,0))=\"\",\"\",INDEX(Disaggregation_1A!M$11:M$80,MATCH('Disagg.1A_import-export'!$B11,Disaggregation_1A!$A$11:$A$80,0))),\"\")","v":""},{"$f":"IFERROR(IF(INDEX(Disaggregation_1A!N$11:N$80,MATCH('Disagg.1A_import-export'!$B11,Disaggregation_1A!$A$11:$A$80,0))=\"\",INDEX(Disaggregation_1A!N$11:N$80,MATCH('Disagg.1A_import-export'!$B11,Disaggregation_1A!$A$11:$A$80,0)),\"\"),\"\")","v":0},{"$f":"IFERROR(IF(INDEX(Disaggregation_1A!O$11:O$80,MATCH('Disagg.1A_import-export'!$B11,Disaggregation_1A!$A$11:$A$80,0))=\"\",\"\",INDEX(Disaggregation_1A!O$11:O$80,MATCH('Disagg.1A_import-export'!$B11,Disaggregation_1A!$A$11:$A$80,0))),\"\")","v":""},{"$f":"IFERROR(IF(INDEX(Disaggregation_1A!P$11:P$80,MATCH('Disagg.1A_import-export'!$B11,Disaggregation_1A!$A$11:$A$80,0))=\"\",\"\",INDEX(Disaggregation_1A!P$11:P$80,MATCH('Disagg.1A_import-export'!$B11,Disaggregation_1A!$A$11:$A$80,0))),\"\")","v":""},{"$f":"IFERROR(IF(INDEX(Disaggregation_1A!Q$11:Q$80,MATCH('Disagg.1A_import-export'!$B11,Disaggregation_1A!$A$11:$A$80,0))=\"\",\"\",INDEX(Disaggregation_1A!Q$11:Q$80,MATCH('Disagg.1A_import-export'!$B11,Disaggregation_1A!$A$11:$A$80,0))),\"\")","v":""},{"$f":"IFERROR(INDEX(Disaggregation_1A!R$11:R$80,MATCH('Disagg.1A_import-export'!$B11,Disaggregation_1A!$A$11:$A$80,0)),\"\")","v":0},{"$f":"IFERROR(INDEX(Disaggregation_1A!S$11:S$80,MATCH('Disagg.1A_import-export'!$B11,Disaggregation_1A!$A$11:$A$80,0)),\"\")","v":0},{"$f":"IFERROR(INDEX(Disaggregation_1A!T$11:T$80,MATCH('Disagg.1A_import-export'!$B11,Disaggregation_1A!$A$11:$A$80,0)),\"\")","v":0},{"$f":"IFERROR(INDEX(Disaggregation_1A!U$11:U$80,MATCH('Disagg.1A_import-export'!$B11,Disaggregation_1A!$A$11:$A$80,0)),\"\")","v":0},{"$f":"IFERROR(INDEX(Disaggregation_1A!V$11:V$80,MATCH('Disagg.1A_import-export'!$B11,Disaggregation_1A!$A$11:$A$80,0)),\"\")","v":0},"[Outcome Indicator Number]","[Country (Name)]",null,null,null,null,"[Disaggregation ES]","[Disaggregation FR]","[Category ES]","[Category FR]","[Comments Local]","[Baseline Source Local]"]
[]
[]
[]
[]
[]
[]
[]
[]
[]
[null,null,null,null," "]

{"sheet":"Coverage Indicators_1B","index":9,"n_rows":100,"n_cols":37,"rows_kept":100,"cut":false,"hidden":false,"merged":[[8,35,9,35],[8,36,9,36],[8,5,9,5],[8,6,9,6],[8,13,8,15],[8,26,9,26],[8,34,9,34],[8,8,8,12],[8,23,8,25],[8,27,9,27],[8,28,9,28],[8,29,9,29],[8,30,9,30],[8,31,8,33],[8,16,8,18],[8,19,9,19],[8,20,9,20],[8,21,9,21],[8,22,9,22],[4,2,4,29],[8,2,9,2],[8,3,9,3],[8,7,9,7]]}
[null,null,{"$f":"VLOOKUP(Translations!B83,Translations!B3:H508,4,0)","v":"Progress Report with Disbursement Request"}]
[]
[null,null,{"$f":"VLOOKUP(Translations!B84,Translations!B3:H508,4,0)","v":"Section 1:  Programmatic Information"}]
[]
[null,null,"• Guidance: The table contains those Coverage indicators that are:\n1. Included in the Grant Confirmation/Agreement through the latest signed Performance Framework\n2. Are due for reporting in the current reporting period;\n\n\n• Data validation checks are being performed on entered data in the columns. Any issues identified that are not resolved should be explained"]
[]
[null,null,{"$f":"VLOOKUP(Translations!B86,Translations!B3:H508,4,0)","v":"B- Coverage Indicators"}]
[]
[null,null,{"$f":"VLOOKUP(Translations!B87,Translations!B3:H508,4,0)","v":"Module"},{"$f":"VLOOKUP(Translations!B88,Translations!B3:H508,4,0)","v":"Coverage Indicator"},"Geographic Area",{"$f":"VLOOKUP(Translations!B91,Translations!B3:H508,4,0)","v":"Targets cumulative?\n"},"Reverse Indicator?","Geography",{"$f":"VLOOKUP(Translations!B69,Translations!B3:H508,4,0)","v":"Baseline"},null,null,null,null,{"$f":"VLOOKUP(Translations!B96,Translations!B3:H508,4,0)","v":"Target"},null,null,{"$f":"VLOOKUP(Translations!B100,Translations!B3:H508,4,0)","v":"Result"},null,null,{"$f":"VLOOKUP(Translations!B95,Translations!B3:H508,4,0)","v":"Source"},{"$f":"VLOOKUP(Translations!B105,Translations!B3:H508,4,0)","v":"Achievement Ratio"},"Comments:\nReasons for programmatic deviation from intended target and deviations from the related workplan activities","Data validation checks on PR data","Verified Result",null,null,"Source","Achivement Ratio","Verification Method","Comments:\nLFA analysis on progress to date and any variance between targets and results, and any other comments\n(this should not be a “Copy and Paste” of the reasons provided by the PR)","Data Validation checks on LFA data","Global Fund Validated Result",null,null,"Achivement Ratio\n(final one is calculated by GOS)","Country Team comments on validated results","Data validation checks on GF data"]
[null,null,null,null,{"$f":"VLOOKUP(Translations!B90,Translations!B3:H508,4,0)","v":"If sub-national, please specify under the \"Comments\" Column"},null,null,null,"N#","D#","%",{"$f":"VLOOKUP(Translations!B70,Translations!B3:H508,4,0)","v":"Year"},{"$f":"VLOOKUP(Translations!B75,Translations!B3:H508,4,0)","v":"Source"},"N#","D#","%","N#","D#","%",null,null,null,null,"N#","D#","%",null,null,null,null,null,"N#","D#","%"]
[{"$f":"A10+1","v":1},{"$f":"\"Coverage\"&A11","v":"Coverage1"},{"$f":"IFERROR(INDEX('Coverage Indicator_Import-Expor'!$D$7:$D$210,MATCH(B11,'Coverage Indicator_Import-Expor'!$C$7:$C$210,0)),\"\")","v":"Case management"},{"$f":"IFERROR(INDEX('Coverage Indicator_Import-Expor'!$E$7:$E$210,MATCH(B11,'Coverage Indicator_Import-Expor'!$C$7:$C$210,0)),\"\")","v":"CM-1a(M): Proportion of suspected malaria cases that receive a parasitological test at public sector health facilities"},{"$f":"IFERROR(IF(INDEX('Coverage Indicator_Import-Expor'!K$7:K$210,MATCH($B11,'Coverage Indicator_Import-Expor'!$C$7:$C$210,0))=\"\",\"\",INDEX('Coverage Indicator_Import-Expor'!K$7:K$210,MATCH($B11,'Coverage Indicator_Import-Expor'!$C$7:$C$210,0))),\"\")","v":"National"},{"$f":"IFERROR(IF(INDEX('Coverage Indicator_Import-Expor'!L$7:L$210,MATCH($B11,'Coverage Indicator_Import-Expor'!$C$7:$C$210,0))=\"\",\"\",INDEX('Coverage Indicator_Import-Expor'!L$7:L$210,MATCH($B11,'Coverage Indicator_Import-Expor'!$C$7:$C$210,0))),\"\")","v":"N-Non-cumulative"},{"$f":"IFERROR(IF(INDEX('Coverage Indicator_Import-Expor'!AR$7:AR$210,MATCH($B11,'Coverage Indicator_Import-Expor'!$C$7:$C$210,0))=\"\",\"\",INDEX('Coverage Indicator_Import-Expor'!AR$7:AR$210,MATCH($B11,'Coverage Indicator_Import-Expor'!$C$7:$C$210,0))),\"\")","v":"No"},{"$f":"IFERROR(IF(INDEX('Coverage Indicator_Import-Expor'!AS$7:AS$210,MATCH($B11,'Coverage Indicator_Import-Expor'!$C$7:$C$210,0))=\"\",\"\",INDEX('Coverage Indicator_Import-Expor'!AS$7:AS$210,MATCH($B11,'Coverage Indicator_Import-Expor'!$C$7:$C$210,0))),\"\")","v":"Burundi"},{"$f":"IFERROR(IF(INDEX('Coverage Indicator_Import-Expor'!N$7:N$210,MATCH($B11,'Coverage Indicator_Import-Expor'!$C$7:$C$210,0))=\"\",\"\",INDEX('Coverage Indicator_Import-Expor'!N$7:N$210,MATCH($B11,'Coverage Indicator_Import-Expor'!$C$7:$C$210,0))),\"\")","v":11487514},{"$f":"IFERROR(IF(INDEX('Coverage Indicator_Import-Expor'!O$7:O$210,MATCH($B11,'Coverage Indicator_Import-Expor'!$C$7:$C$210,0))=\"\",\"\",INDEX('Coverage Indicator_Import-Expor'!O$7:O$210,MATCH($B11,'Coverage Indicator_Import-Expor'!$C$7:$C$210,0))),\"\")","v":10896389},{"$f":"IFERROR(IF(INDEX('Coverage Indicator_Import-Expor'!P$7:P$210,MATCH($B11,'Coverage Indicator_Import-Expor'!$C$7:$C$210,0))=\"\",\"\",INDEX('Coverage Indicator_Import-Expor'!P$7:P$210,MATCH($B11,'Coverage Indicator_Import-Expor'!$C$7:$C$210,0))),\"\")","v":105.4},{"$f":"IFERROR(IF(INDEX('Coverage Indicator_Import-Expor'!Q$7:Q$210,MATCH($B11,'Coverage Indicator_Import-Expor'!$C$7:$C$210,0))=\"\",\"\",INDEX('Coverage Indicator_Import-Expor'!Q$7:Q$210,MATCH($B11,'Coverage Indicator_Import-Expor'!$C$7:$C$210,0))),\"\")","v":"2016"},{"$f":"IFERROR(IF(INDEX('Coverage Indicator_Import-Expor'!R$7:R$210,MATCH($B11,'Coverage Indicator_Import-Expor'!$C$7:$C$210,0))=\"\",\"\",INDEX('Coverage Indicator_Import-Expor'!R$7:R$210,MATCH($B11,'Coverage Indicator_Import-Expor'!$C$7:$C$210,0))),\"\")","v":"HMIS"},{"$f":"IFERROR(IF(INDEX('Coverage Indicator_Import-Expor'!S$7:S$210,MATCH($B11,'Coverage Indicator_Import-Expor'!$C$7:$C$210,0))=\"\",\"\",INDEX('Coverage Indicator_Import-Expor'!S$7:S$210,MATCH($B11,'Coverage Indicator_Import-Expor'!$C$7:$C$210,0))),\"\")","v":5523563},{"$f":"IFERROR(IF(INDEX('Coverage Indicator_Import-Expor'!T$7:T$210,MATCH($B11,'Coverage Indicator_Import-Expor'!$C$7:$C$210,0))=\"\",\"\",INDEX('Coverage Indicator_Import-Expor'!T$7:T$210,MATCH($B11,'Coverage Indicator_Import-Expor'!$C$7:$C$210,0))),\"\")","v":5523563},{"$f":"IFERROR(IF(INDEX('Coverage Indicator_Import-Expor'!U$7:U$210,MATCH($B11,'Coverage Indicator_Import-Expor'!$C$7:$C$210,0))=\"\",\"\",INDEX('Coverage Indicator_Import-Expor'!U$7:U$210,MATCH($B11,'Coverage Indicator_Import-Expor'!$C$7:$C$210,0))),\"\")","v":100},4876942,4879911,{"$f":"IFERROR((Q11/R11)*100,\"\")","v":99.939158726460377},"HMIS",{"$f":"IFERROR(IF(AND(N11<>\"\",O11=\"\",Q11<>\"\",R11=\"\"),IF((Q11/N11)>120%,120%,(Q11/N11)),IF((S11/P11)>120%,120%,(S11/P11))),\" \")","v":0.99939158726460375},"Le numérateur est le nombre de tous les cas suspect de paludisme soumis à un test parasitologique (GE et TDR) dans les centres de santé et hôpitaux du secteur public. Soit, 1 204 788 cas testés par GE, 3 672 154 cas testés par TDR; au total, ces sont 4 876 942 cas testés pendant la période de janvier à juin 2018. \nLe test par TDR représente 75% tandis que le test par GE représente 25%. \nNB: Les strucures confessionnelles sont incluses dans le secteur public et comptabilisées dans l'indicateur.\nLe nombre de cas suspects est estimé dans DHIS2 par le nombre total de  cas soumis au test parasitologique par TDR ou GE ainsi que les cas traités sans tests dans les  CDS et Hôpitaux du secteur public et constitut ainsi le dénominateur. \nPendant la période de janvier à juin 2018, il y a eu 4 879 911 cas suspects dont seulement 2 969 cas traités non testés. Le constat est que la stratégie de tester avant de traiter est effective à 99.9%. \nEn comparaison avec les chiffres de référence de 2016 année marquée par une épidémie, avec 11 487 514 cas enregistrés, on constate que les cas ont fortement diminué (4 879 911 cas) de près de 58%; \nEn comparant les cibles attendus par projection au premier semestre 2018 (5 523 563 cas suspects de paludisme) et ceux reellemet observés (4 879 911 cas suspects de paludisme) pour la période de janvier à juin 2018, on constate qu'il ya 643 652 cas de paludisme évités soit 12% . \nLes cas de paludisme ont diminué dans le secteur public probablement en relation avec les stratégies déployées (CDM, PID, traitement communautaire, IEC/CCC) pendant et apres l'épidemie de fin 2016- debut 2017.   ",{"$f":"IF(AND(Q11=\"\",R11=\"\",S11=\"\"),\"No Results Reported\",IF(AND(N11<>\"\",O11=\"\",P11=\"\",OR(R11<>\"\",S11<>\"\")),\"Target contains only a numerator. Please Report only a numerator for the result\",\"Continue\"))","v":"Continue"},null,null,{"$f":"IFERROR((X11/Y11)*100,\"\")","v":""},null,{"$f":"IFERROR(IF(AND(N11<>\"\",O11=\"\",X11<>\"\",Y11=\"\"),IF((X11/N11)>120%,120%,(X11/N11)),IF((Z11/P11)>120%,120%,(Z11/P11))),\" \")","v":" "},null,null,{"$f":"IF(AND(X11=\"\",Y11=\"\",Z11=\"\"),\"No Results Reported\",IF(AND(Q11<>\"\",R11=\"\",S11=\"\",OR(Y11<>\"\",Z11<>\"\")),\"Target contains only a numerator. Please Report only a numerator for the result\",\"Continue\"))","v":"No Results Reported"},null,null,{"$f":"IFERROR((AF11/AG11)*100,\"\")","v":""},{"$f":"IFERROR(IF(AND(N11<>\"\",O11=\"\",AF11<>\"\",AG11=\"\"),IF((AF11/N11)>120%,120%,(AF11/N11)),IF((AH11/P11)>120%,120%,(AH11/P11))),\" \")","v":" "},null,{"$f":"IF(AND(AF11=\"\",AG11=\"\",AH11=\"\"),\"No Results Reported\",IF(AND(I11<>\"\",J11=\"\",K11=\"\",OR(AG11<>\"\",AH11<>\"\")),\"Target contains only a numerator. Please Report only a numerator for the result\",\"Continue\"))","v":"No Results Reported"}]
[{"$f":"A11+1","v":2},{"$f":"\"Coverage\"&A12","v":"Coverage2"},{"$f":"IFERROR(INDEX('Coverage Indicator_Import-Expor'!$D$7:$D$210,MATCH(B12,'Coverage Indicator_Import-Expor'!$C$7:$C$210,0)),\"\")","v":"Case management"},{"$f":"IFERROR(INDEX('Coverage Indicator_Import-Expor'!$E$7:$E$210,MATCH(B12,'Coverage Indicator_Import-Expor'!$C$7:$C$210,0)),\"\")","v":"CM-1b(M): Proportion of suspected malaria cases that receive a parasitological test in the community"},{"$f":"IFERROR(IF(INDEX('Coverage Indicator_Import-Expor'!K$7:K$210,MATCH($B12,'Coverage Indicator_Import-Expor'!$C$7:$C$210,0))=\"\",\"\",INDEX('Coverage Indicator_Import-Expor'!K$7:K$210,MATCH($B12,'Coverage Indicator_Import-Expor'!$C$7:$C$210,0))),\"\")","v":"Subnational"},{"$f":"IFERROR(IF(INDEX('Coverage Indicator_Import-Expor'!L$7:L$210,MATCH($B12,'Coverage Indicator_Import-Expor'!$C$7:$C$210,0))=\"\",\"\",INDEX('Coverage Indicator_Import-Expor'!L$7:L$210,MATCH($B12,'Coverage Indicator_Import-Expor'!$C$7:$C$210,0))),\"\")","v":"N-Non-cumulative"},{"$f":"IFERROR(IF(INDEX('Coverage Indicator_Import-Expor'!AR$7:AR$210,MATCH($B12,'Coverage Indicator_Import-Expor'!$C$7:$C$210,0))=\"\",\"\",INDEX('Coverage Indicator_Import-Expor'!AR$7:AR$210,MATCH($B12,'Coverage Indicator_Import-Expor'!$C$7:$C$210,0))),\"\")","v":"No"},{"$f":"IFERROR(IF(INDEX('Coverage Indicator_Import-Expor'!AS$7:AS$210,MATCH($B12,'Coverage Indicator_Import-Expor'!$C$7:$C$210,0))=\"\",\"\",INDEX('Coverage Indicator_Import-Expor'!AS$7:AS$210,MATCH($B12,'Coverage Indicator_Import-Expor'!$C$7:$C$210,0))),\"\")","v":"Burundi"},{"$f":"IFERROR(IF(INDEX('Coverage Indicator_Import-Expor'!N$7:N$210,MATCH($B12,'Coverage Indicator_Import-Expor'!$C$7:$C$210,0))=\"\",\"\",INDEX('Coverage Indicator_Import-Expor'!N$7:N$210,MATCH($B12,'Coverage Indicator_Import-Expor'!$C$7:$C$210,0))),\"\")","v":646543},{"$f":"IFERROR(IF(INDEX('Coverage Indicator_Import-Expor'!O$7:O$210,MATCH($B12,'Coverage Indicator_Import-Expor'!$C$7:$C$210,0))=\"\",\"\",INDEX('Coverage Indicator_Import-Expor'!O$7:O$210,MATCH($B12,'Coverage Indicator_Import-Expor'!$C$7:$C$210,0))),\"\")","v":781862},{"$f":"IFERROR(IF(INDEX('Coverage Indicator_Import-Expor'!P$7:P$210,MATCH($B12,'Coverage Indicator_Import-Expor'!$C$7:$C$210,0))=\"\",\"\",INDEX('Coverage Indicator_Import-Expor'!P$7:P$210,MATCH($B12,'Coverage Indicator_Import-Expor'!$C$7:$C$210,0))),\"\")","v":82.7},{"$f":"IFERROR(IF(INDEX('Coverage Indicator_Import-Expor'!Q$7:Q$210,MATCH($B12,'Coverage Indicator_Import-Expor'!$C$7:$C$210,0))=\"\",\"\",INDEX('Coverage Indicator_Import-Expor'!Q$7:Q$210,MATCH($B12,'Coverage Indicator_Import-Expor'!$C$7:$C$210,0))),\"\")","v":"2016"},{"$f":"IFERROR(IF(INDEX('Coverage Indicator_Import-Expor'!R$7:R$210,MATCH($B12,'Coverage Indicator_Import-Expor'!$C$7:$C$210,0))=\"\",\"\",INDEX('Coverage Indicator_Import-Expor'!R$7:R$210,MATCH($B12,'Coverage Indicator_Import-Expor'!$C$7:$C$210,0))),\"\")","v":"HMIS"},{"$f":"IFERROR(IF(INDEX('Coverage Indicator_Import-Expor'!S$7:S$210,MATCH($B12,'Coverage Indicator_Import-Expor'!$C$7:$C$210,0))=\"\",\"\",INDEX('Coverage Indicator_Import-Expor'!S$7:S$210,MATCH($B12,'Coverage Indicator_Import-Expor'!$C$7:$C$210,0))),\"\")","v":513820},{"$f":"IFERROR(IF(INDEX('Coverage Indicator_Import-Expor'!T$7:T$210,MATCH($B12,'Coverage Indicator_Import-Expor'!$C$7:$C$210,0))=\"\",\"\",INDEX('Coverage Indicator_Import-Expor'!T$7:T$210,MATCH($B12,'Coverage Indicator_Import-Expor'!$C$7:$C$210,0))),\"\")","v":513820},{"$f":"IFERROR(IF(INDEX('Coverage Indicator_Import-Expor'!U$7:U$210,MATCH($B12,'Coverage Indicator_Import-Expor'!$C$7:$C$210,0))=\"\",\"\",INDEX('Coverage Indicator_Import-Expor'!U$7:U$210,MATCH($B12,'Coverage Indicator_Import-Expor'!$C$7:$C$210,0))),\"\")","v":100},329235,513820,{"$f":"IFERROR((Q12/R12)*100,\"\")","v":64.075940991008522},"HMIS",{"$f":"IFERROR(IF(AND(N12<>\"\",O12=\"\",Q12<>\"\",R12=\"\"),IF((Q12/N12)>120%,120%,(Q12/N12)),IF((S12/P12)>120%,120%,(S12/P12))),\" \")","v":0.64075940991008518},"Selon la strategie de PeC communautaire, tous les cas suspects doivent être testés par un TDR dans la communauté. Seul les TDRs positifs recoivent un traitement. \n\nLe dénominateur est l'estimation  du nombre de tous les cas suspects de paludisme dans la communauté dans tout le pays, 513820 cas au 1er semestre 2018.\nLe système national d'information sanitaire ne permet pas de connaitre le nombre des cas suspects de paludisme au niveau communautaire.\nCe dénominateur semble être surestimé si l'on tient compte de la tendance à la baisse observée dans le secteur public et dans le secteur privé de l'ordre de 50%.\n\nEn comparant la cible de référence 2016, on constate une une diminution de la performance qui peut être liée à la surestimation du dénominateur.",{"$f":"IF(AND(Q12=\"\",R12=\"\",S12=\"\"),\"No Results Reported\",IF(AND(N12<>\"\",O12=\"\",P12=\"\",OR(R12<>\"\",S12<>\"\")),\"Target contains only a numerator. Please Report only a numerator for the result\",\"Continue\"))","v":"Continue"},null,null,{"$f":"IFERROR((X12/Y12)*100,\"\")","v":""},null,{"$f":"IFERROR(IF(AND(N12<>\"\",O12=\"\",X12<>\"\",Y12=\"\"),IF((X12/N12)>120%,120%,(X12/N12)),IF((Z12/P12)>120%,120%,(Z12/P12))),\" \")","v":" "},null,null,{"$f":"IF(AND(X12=\"\",Y12=\"\",Z12=\"\"),\"No Results Reported\",IF(AND(Q12<>\"\",R12=\"\",S12=\"\",OR(Y12<>\"\",Z12<>\"\")),\"Target contains only a numerator. Please Report only a numerator for the result\",\"Continue\"))","v":"No Results Reported"},null,null,{"$f":"IFERROR((AF12/AG12)*100,\"\")","v":""},{"$f":"IFERROR(IF(AND(N12<>\"\",O12=\"\",AF12<>\"\",AG12=\"\"),IF((AF12/N12)>120%,120%,(AF12/N12)),IF((AH12/P12)>120%,120%,(AH12/P12))),\" \")","v":" "},null,{"$f":"IF(AND(AF12=\"\",AG12=\"\",AH12=\"\"),\"No Results Reported\",IF(AND(I12<>\"\",J12=\"\",K12=\"\",OR(AG12<>\"\",AH12<>\"\")),\"Target contains only a numerator. Please Report only a numerator for the result\",\"Continue\"))","v":"No Results Reported"}]
[3,"Coverage3",{"$f":"IFERROR(INDEX('Coverage Indicator_Import-Expor'!$D$7:$D$210,MATCH(B13,'Coverage Indicator_Import-Expor'!$C$7:$C$210,0)),\"\")","v":"Case management"},{"$f":"IFERROR(INDEX('Coverage Indicator_Import-Expor'!$E$7:$E$210,MATCH(B13,'Coverage Indicator_Import-Expor'!$C$7:$C$210,0)),\"\")","v":"CM-1c(M): Proportion of suspected malaria cases that receive a parasitological test at private sector sites"},{"$f":"IFERROR(IF(INDEX('Coverage Indicator_Import-Expor'!K$7:K$210,MATCH($B13,'Coverage Indicator_Import-Expor'!$C$7:$C$210,0))=\"\",\"\",INDEX('Coverage Indicator_Import-Expor'!K$7:K$210,MATCH($B13,'Coverage Indicator_Import-Expor'!$C$7:$C$210,0))),\"\")","v":"National"},{"$f":"IFERROR(IF(INDEX('Coverage Indicator_Import-Expor'!L$7:L$210,MATCH($B13,'Coverage Indicator_Import-Expor'!$C$7:$C$210,0))=\"\",\"\",INDEX('Coverage Indicator_Import-Expor'!L$7:L$210,MATCH($B13,'Coverage Indicator_Import-Expor'!$C$7:$C$210,0))),\"\")","v":"N-Non-cumulative"},{"$f":"IFERROR(IF(INDEX('Coverage Indicator_Import-Expor'!AR$7:AR$210,MATCH($B13,'Coverage Indicator_Import-Expor'!$C$7:$C$210,0))=\"\",\"\",INDEX('Coverage Indicator_Import-Expor'!AR$7:AR$210,MATCH($B13,'Coverage Indicator_Import-Expor'!$C$7:$C$210,0))),\"\")","v":"No"},{"$f":"IFERROR(IF(INDEX('Coverage Indicator_Import-Expor'!AS$7:AS$210,MATCH($B13,'Coverage Indicator_Import-Expor'!$C$7:$C$210,0))=\"\",\"\",INDEX('Coverage Indicator_Import-Expor'!AS$7:AS$210,MATCH($B13,'Coverage Indicator_Import-Expor'!$C$7:$C$210,0))),\"\")","v":"Burundi"},{"$f":"IFERROR(IF(INDEX('Coverage Indicator_Import-Expor'!N$7:N$210,MATCH($B13,'Coverage Indicator_Import-Expor'!$C$7:$C$210,0))=\"\",\"\",INDEX('Coverage Indicator_Import-Expor'!N$7:N$210,MATCH($B13,'Coverage Indicator_Import-Expor'!$C$7:$C$210,0))),\"\")","v":757055},{"$f":"IFERROR(IF(INDEX('Coverage Indicator_Import-Expor'!O$7:O$210,MATCH($B13,'Coverage Indicator_Import-Expor'!$C$7:$C$210,0))=\"\",\"\",INDEX('Coverage Indicator_Import-Expor'!O$7:O$210,MATCH($B13,'Coverage Indicator_Import-Expor'!$C$7:$C$210,0))),\"\")","v":759546},{"$f":"IFERROR(IF(INDEX('Coverage Indicator_Import-Expor'!P$7:P$210,MATCH($B13,'Coverage Indicator_Import-Expor'!$C$7:$C$210,0))=\"\",\"\",INDEX('Coverage Indicator_Import-Expor'!P$7:P$210,MATCH($B13,'Coverage Indicator_Import-Expor'!$C$7:$C$210,0))),\"\")","v":99.7},{"$f":"IFERROR(IF(INDEX('Coverage Indicator_Import-Expor'!Q$7:Q$210,MATCH($B13,'Coverage Indicator_Import-Expor'!$C$7:$C$210,0))=\"\",\"\",INDEX('Coverage Indicator_Import-Expor'!Q$7:Q$210,MATCH($B13,'Coverage Indicator_Import-Expor'!$C$7:$C$210,0))),\"\")","v":"2016"},{"$f":"IFERROR(IF(INDEX('Coverage Indicator_Import-Expor'!R$7:R$210,MATCH($B13,'Coverage Indicator_Import-Expor'!$C$7:$C$210,0))=\"\",\"\",INDEX('Coverage Indicator_Import-Expor'!R$7:R$210,MATCH($B13,'Coverage Indicator_Import-Expor'!$C$7:$C$210,0))),\"\")","v":"HMIS"},{"$f":"IFERROR(IF(INDEX('Coverage Indicator_Import-Expor'!S$7:S$210,MATCH($B13,'Coverage Indicator_Import-Expor'!$C$7:$C$210,0))=\"\",\"\",INDEX('Coverage Indicator_Import-Expor'!S$7:S$210,MATCH($B13,'Coverage Indicator_Import-Expor'!$C$7:$C$210,0))),\"\")","v":385365},{"$f":"IFERROR(IF(INDEX('Coverage Indicator_Import-Expor'!T$7:T$210,MATCH($B13,'Coverage Indicator_Import-Expor'!$C$7:$C$210,0))=\"\",\"\",INDEX('Coverage Indicator_Import-Expor'!T$7:T$210,MATCH($B13,'Coverage Indicator_Import-Expor'!$C$7:$C$210,0))),\"\")","v":385365},{"$f":"IFERROR(IF(INDEX('Coverage Indicator_Import-Expor'!U$7:U$210,MATCH($B13,'Coverage Indicator_Import-Expor'!$C$7:$C$210,0))=\"\",\"\",INDEX('Coverage Indicator_Import-Expor'!U$7:U$210,MATCH($B13,'Coverage Indicator_Import-Expor'!$C$7:$C$210,0))),\"\")","v":100},356801,358910,99.412387506617264,"HMIS",0.99412387506617261,"Le numérateur est le nombre de tous les cas suspect de paludisme soumis à un test parasitologique (GE et TDR) dans les centres de santé et hôpitaux du secteur privé. Soit, 257 440 cas testés par GE, 99 361 cas testés par TDR; au total, ces 358 910  cas testés pendant la période de janvier à juin 2018. Le test par TDR représente 28% tandis que le test par GE représente 72%. Ce chiffre élevé de GE dans le secteur privé est au fait que l'examen GE est payé par le patient pendant que l'examen par TDR est gratuit. Les privés préfèrent alors utiliser beaucoup plus celui qui apporte directement un bénéfice.\nNB: Les données des structures privées et associatives sont comptabilisées ensemble sous l'indicateur secteur privé.\nLe dénominateur comprend le nombre total de  cas soumis au test parasitologique par TDR et GE ainsi que les cas traités sans être testés dans les  CDS et Hôpitaux du secteur privé; pendant la période de janvier à juin 2018. Ainsi, il y a eu 358 109 cas suspects dont 2 109 cas traités sans être testés. \nLe constat est que la stratégie de tester avant de traiter est effective à 99.4%. En comparaison avec les chiffres de référence de 2016 ( 757 055 cas suspects de paludisme testés), on constate que les cas ont fortement diminué (356 801 cas) de près de 53%; en comparant les cibles attendus au 1er semestre 2018 (385 365 cas ) et ceux atteints (356 801 cas) pour la même période, on constate qu'il ya 28 564 cas de différence soit 7% de différence entre les cibles attendus et atteints. Les cas suspects de paludisme ont diminué dans le secteur privé probablement en relation avec les strategies deployées pendant et apres l'épidemie de fin 2016- debut 2017 suivant la tendance du secteur public.   \n   \n","Continue",null,null,"",null," ",null,null,"No Results Reported",null,null,""," ",null,"No Results Reported"]
[4,"Coverage4",{"$f":"IFERROR(INDEX('Coverage Indicator_Import-Expor'!$D$7:$D$210,MATCH(B14,'Coverage Indicator_Import-Expor'!$C$7:$C$210,0)),\"\")","v":"Case management"},{"$f":"IFERROR(INDEX('Coverage Indicator_Import-Expor'!$E$7:$E$210,MATCH(B14,'Coverage Indicator_Import-Expor'!$C$7:$C$210,0)),\"\")","v":"CM-2a(M): Proportion of confirmed malaria cases that received first-line antimalarial treatment at public sector health facilities"},{"$f":"IFERROR(IF(INDEX('Coverage Indicator_Import-Expor'!K$7:K$210,MATCH($B14,'Coverage Indicator_Import-Expor'!$C$7:$C$210,0))=\"\",\"\",INDEX('Coverage Indicator_Import-Expor'!K$7:K$210,MATCH($B14,'Coverage Indicator_Import-Expor'!$C$7:$C$210,0))),\"\")","v":"National"},{"$f":"IFERROR(IF(INDEX('Coverage Indicator_Import-Expor'!L$7:L$210,MATCH($B14,'Coverage Indicator_Import-Expor'!$C$7:$C$210,0))=\"\",\"\",INDEX('Coverage Indicator_Import-Expor'!L$7:L$210,MATCH($B14,'Coverage Indicator_Import-Expor'!$C$7:$C$210,0))),\"\")","v":"N-Non-cumulative"},{"$f":"IFERROR(IF(INDEX('Coverage Indicator_Import-Expor'!AR$7:AR$210,MATCH($B14,'Coverage Indicator_Import-Expor'!$C$7:$C$210,0))=\"\",\"\",INDEX('Coverage Indicator_Import-Expor'!AR$7:AR$210,MATCH($B14,'Coverage Indicator_Import-Expor'!$C$7:$C$210,0))),\"\")","v":"No"},{"$f":"IFERROR(IF(INDEX('Coverage Indicator_Import-Expor'!AS$7:AS$210,MATCH($B14,'Coverage Indicator_Import-Expor'!$C$7:$C$210,0))=\"\",\"\",INDEX('Coverage Indicator_Import-Expor'!AS$7:AS$210,MATCH($B14,'Coverage Indicator_Import-Expor'!$C$7:$C$210,0))),\"\")","v":"Burundi"},{"$f":"IFERROR(IF(INDEX('Coverage Indicator_Import-Expor'!N$7:N$210,MATCH($B14,'Coverage Indicator_Import-Expor'!$C$7:$C$210,0))=\"\",\"\",INDEX('Coverage Indicator_Import-Expor'!N$7:N$210,MATCH($B14,'Coverage Indicator_Import-Expor'!$C$7:$C$210,0))),\"\")","v":7446810},{"$f":"IFERROR(IF(INDEX('Coverage Indicator_Import-Expor'!O$7:O$210,MATCH($B14,'Coverage Indicator_Import-Expor'!$C$7:$C$210,0))=\"\",\"\",INDEX('Coverage Indicator_Import-Expor'!O$7:O$210,MATCH($B14,'Coverage Indicator_Import-Expor'!$C$7:$C$210,0))),\"\")","v":7759020},{"$f":"IFERROR(IF(INDEX('Coverage Indicator_Import-Expor'!P$7:P$210,MATCH($B14,'Coverage Indicator_Import-Expor'!$C$7:$C$210,0))=\"\",\"\",INDEX('Coverage Indicator_Import-Expor'!P$7:P$210,MATCH($B14,'Coverage Indicator_Import-Expor'!$C$7:$C$210,0))),\"\")","v":96},{"$f":"IFERROR(IF(INDEX('Coverage Indicator_Import-Expor'!Q$7:Q$210,MATCH($B14,'Coverage Indicator_Import-Expor'!$C$7:$C$210,0))=\"\",\"\",INDEX('Coverage Indicator_Import-Expor'!Q$7:Q$210,MATCH($B14,'Coverage Indicator_Import-Expor'!$C$7:$C$210,0))),\"\")","v":"2016"},{"$f":"IFERROR(IF(INDEX('Coverage Indicator_Import-Expor'!R$7:R$210,MATCH($B14,'Coverage Indicator_Import-Expor'!$C$7:$C$210,0))=\"\",\"\",INDEX('Coverage Indicator_Import-Expor'!R$7:R$210,MATCH($B14,'Coverage Indicator_Import-Expor'!$C$7:$C$210,0))),\"\")","v":"HMIS"},{"$f":"IFERROR(IF(INDEX('Coverage Indicator_Import-Expor'!S$7:S$210,MATCH($B14,'Coverage Indicator_Import-Expor'!$C$7:$C$210,0))=\"\",\"\",INDEX('Coverage Indicator_Import-Expor'!S$7:S$210,MATCH($B14,'Coverage Indicator_Import-Expor'!$C$7:$C$210,0))),\"\")","v":3573690},{"$f":"IFERROR(IF(INDEX('Coverage Indicator_Import-Expor'!T$7:T$210,MATCH($B14,'Coverage Indicator_Import-Expor'!$C$7:$C$210,0))=\"\",\"\",INDEX('Coverage Indicator_Import-Expor'!T$7:T$210,MATCH($B14,'Coverage Indicator_Import-Expor'!$C$7:$C$210,0))),\"\")","v":3573690},{"$f":"IFERROR(IF(INDEX('Coverage Indicator_Import-Expor'!U$7:U$210,MATCH($B14,'Coverage Indicator_Import-Expor'!$C$7:$C$210,0))=\"\",\"\",INDEX('Coverage Indicator_Import-Expor'!U$7:U$210,MATCH($B14,'Coverage Indicator_Import-Expor'!$C$7:$C$210,0))),\"\")","v":100},2374016,2445905,97.060842510236498,"HMIS",0.970608425102365,"Les cas confirmés  de paludisme ayant reçu un traitement de première intention (ACT) dans les centres de santé et hôpitaux du secteur public constitue le numérateur. Soit, 2 374 016 cas pour la période de janvier à juin 2018. \nLe dénominateur comprend les cas de paludisme confirmés dans les établissements de santé du secteur public, soit 2 445 905 cas. 97 % des cas testés positifs recoivent un traitement conforme a la politique nationale de PeC.\nEn comparaison avec les chiffres de référence de 2016 (76%) il y a une legere amelioration.\nAu cours du 1er semestre 2018, le taux de traitement des cas confirmés est de 97%, on peut dire donc que la stratégie de traitement de première intention par ACT est bien suivi et les resultats constants.","Continue",null,null,"",null," ",null,null,"No Results Reported",null,null,""," ",null,"No Results Reported"]
[5,"Coverage5",{"$f":"IFERROR(INDEX('Coverage Indicator_Import-Expor'!$D$7:$D$210,MATCH(B15,'Coverage Indicator_Import-Expor'!$C$7:$C$210,0)),\"\")","v":"Case management"},{"$f":"IFERROR(INDEX('Coverage Indicator_Import-Expor'!$E$7:$E$210,MATCH(B15,'Coverage Indicator_Import-Expor'!$C$7:$C$210,0)),\"\")","v":"CM-2b(M): Proportion of confirmed malaria cases that received first-line antimalarial treatment in the community"},{"$f":"IFERROR(IF(INDEX('Coverage Indicator_Import-Expor'!K$7:K$210,MATCH($B15,'Coverage Indicator_Import-Expor'!$C$7:$C$210,0))=\"\",\"\",INDEX('Coverage Indicator_Import-Expor'!K$7:K$210,MATCH($B15,'Coverage Indicator_Import-Expor'!$C$7:$C$210,0))),\"\")","v":"Subnational"},{"$f":"IFERROR(IF(INDEX('Coverage Indicator_Import-Expor'!L$7:L$210,MATCH($B15,'Coverage Indicator_Import-Expor'!$C$7:$C$210,0))=\"\",\"\",INDEX('Coverage Indicator_Import-Expor'!L$7:L$210,MATCH($B15,'Coverage Indicator_Import-Expor'!$C$7:$C$210,0))),\"\")","v":"N-Non-cumulative"},{"$f":"IFERROR(IF(INDEX('Coverage Indicator_Import-Expor'!AR$7:AR$210,MATCH($B15,'Coverage Indicator_Import-Expor'!$C$7:$C$210,0))=\"\",\"\",INDEX('Coverage Indicator_Import-Expor'!AR$7:AR$210,MATCH($B15,'Coverage Indicator_Import-Expor'!$C$7:$C$210,0))),\"\")","v":"No"},{"$f":"IFERROR(IF(INDEX('Coverage Indicator_Import-Expor'!AS$7:AS$210,MATCH($B15,'Coverage Indicator_Import-Expor'!$C$7:$C$210,0))=\"\",\"\",INDEX('Coverage Indicator_Import-Expor'!AS$7:AS$210,MATCH($B15,'Coverage Indicator_Import-Expor'!$C$7:$C$210,0))),\"\")","v":"Burundi"},{"$f":"IFERROR(IF(INDEX('Coverage Indicator_Import-Expor'!N$7:N$210,MATCH($B15,'Coverage Indicator_Import-Expor'!$C$7:$C$210,0))=\"\",\"\",INDEX('Coverage Indicator_Import-Expor'!N$7:N$210,MATCH($B15,'Coverage Indicator_Import-Expor'!$C$7:$C$210,0))),\"\")","v":502453},{"$f":"IFERROR(IF(INDEX('Coverage Indicator_Import-Expor'!O$7:O$210,MATCH($B15,'Coverage Indicator_Import-Expor'!$C$7:$C$210,0))=\"\",\"\",INDEX('Coverage Indicator_Import-Expor'!O$7:O$210,MATCH($B15,'Coverage Indicator_Import-Expor'!$C$7:$C$210,0))),\"\")","v":1147382},{"$f":"IFERROR(IF(INDEX('Coverage Indicator_Import-Expor'!P$7:P$210,MATCH($B15,'Coverage Indicator_Import-Expor'!$C$7:$C$210,0))=\"\",\"\",INDEX('Coverage Indicator_Import-Expor'!P$7:P$210,MATCH($B15,'Coverage Indicator_Import-Expor'!$C$7:$C$210,0))),\"\")","v":43.8},{"$f":"IFERROR(IF(INDEX('Coverage Indicator_Import-Expor'!Q$7:Q$210,MATCH($B15,'Coverage Indicator_Import-Expor'!$C$7:$C$210,0))=\"\",\"\",INDEX('Coverage Indicator_Import-Expor'!Q$7:Q$210,MATCH($B15,'Coverage Indicator_Import-Expor'!$C$7:$C$210,0))),\"\")","v":"2016"},{"$f":"IFERROR(IF(INDEX('Coverage Indicator_Import-Expor'!R$7:R$210,MATCH($B15,'Coverage Indicator_Import-Expor'!$C$7:$C$210,0))=\"\",\"\",INDEX('Coverage Indicator_Import-Expor'!R$7:R$210,MATCH($B15,'Coverage Indicator_Import-Expor'!$C$7:$C$210,0))),\"\")","v":"HMIS"},{"$f":"IFERROR(IF(INDEX('Coverage Indicator_Import-Expor'!S$7:S$210,MATCH($B15,'Coverage Indicator_Import-Expor'!$C$7:$C$210,0))=\"\",\"\",INDEX('Coverage Indicator_Import-Expor'!S$7:S$210,MATCH($B15,'Coverage Indicator_Import-Expor'!$C$7:$C$210,0))),\"\")","v":332436.5},{"$f":"IFERROR(IF(INDEX('Coverage Indicator_Import-Expor'!T$7:T$210,MATCH($B15,'Coverage Indicator_Import-Expor'!$C$7:$C$210,0))=\"\",\"\",INDEX('Coverage Indicator_Import-Expor'!T$7:T$210,MATCH($B15,'Coverage Indicator_Import-Expor'!$C$7:$C$210,0))),\"\")","v":332436.5},{"$f":"IFERROR(IF(INDEX('Coverage Indicator_Import-Expor'!U$7:U$210,MATCH($B15,'Coverage Indicator_Import-Expor'!$C$7:$C$210,0))=\"\",\"\",INDEX('Coverage Indicator_Import-Expor'!U$7:U$210,MATCH($B15,'Coverage Indicator_Import-Expor'!$C$7:$C$210,0))),\"\")","v":100},198130,245359,80.751062728491718,"HMIS",0.80751062728491718,"Au niveau communautaire, les cas confirmés  de paludisme ayant reçu un traitement de première intention par ACT constitue le numérateur. Soit, 198130 cas pour la période de janvier à juin 2018. \n\nLe dénominateur comprend les cas de paludisme confirmés par le test TDR dans la communauté,  245.359 cas.\nLa compréhension de l'indicateur au niveau des ASC est qu'il s'inscrit dans la gestion du protocole national ICCM paludisme de l'enfant, à noter que la stratégie ICCM s'est élargie au 37 DS sur 46 DS en 2018.\n\nAinsi, bien que nous anticipions une baisse nominale du nombre de cas, il est constaté un sous reportage dans la période sous revue. Au premier trimestre, on constate que six D.S n'ont pas renseigné au DHIS 2: DS Cankuzo, Isale, Kiganda, Buye, Fota, Kabezi. On constate également que quatre DS n'ont pas renseigné au DHIS2 au deuxième trimestre 2018: DS Cibitoke, Kabezi, Kiganda et Mabayi.\nEn comparant la référence de 2016, il y a une amélioration de la prise en charge communautaire lorsque les cas sont diagnostiqués. Cependant, le programme PNILP devra investiguer les 19% diagnostiqués positifs qui ne recoivent pas de traitement d'une part et  les DS qui ne rapportent pas d'autre part.","Continue",null,null,"",null," ",null,null,"No Results Reported",null,null,""," ",null,"No Results Reported"]
[6,"Coverage6",{"$f":"IFERROR(INDEX('Coverage Indicator_Import-Expor'!$D$7:$D$210,MATCH(B16,'Coverage Indicator_Import-Expor'!$C$7:$C$210,0)),\"\")","v":"Case management"},{"$f":"IFERROR(INDEX('Coverage Indicator_Import-Expor'!$E$7:$E$210,MATCH(B16,'Coverage Indicator_Import-Expor'!$C$7:$C$210,0)),\"\")","v":"CM-3c: Proportion of malaria cases (presumed and confirmed) that received first line antimalarial treatment at private sector sites"},{"$f":"IFERROR(IF(INDEX('Coverage Indicator_Import-Expor'!K$7:K$210,MATCH($B16,'Coverage Indicator_Import-Expor'!$C$7:$C$210,0))=\"\",\"\",INDEX('Coverage Indicator_Import-Expor'!K$7:K$210,MATCH($B16,'Coverage Indicator_Import-Expor'!$C$7:$C$210,0))),\"\")","v":"National"},{"$f":"IFERROR(IF(INDEX('Coverage Indicator_Import-Expor'!L$7:L$210,MATCH($B16,'Coverage Indicator_Import-Expor'!$C$7:$C$210,0))=\"\",\"\",INDEX('Coverage Indicator_Import-Expor'!L$7:L$210,MATCH($B16,'Coverage Indicator_Import-Expor'!$C$7:$C$210,0))),\"\")","v":"N-Non-cumulative"},{"$f":"IFERROR(IF(INDEX('Coverage Indicator_Import-Expor'!AR$7:AR$210,MATCH($B16,'Coverage Indicator_Import-Expor'!$C$7:$C$210,0))=\"\",\"\",INDEX('Coverage Indicator_Import-Expor'!AR$7:AR$210,MATCH($B16,'Coverage Indicator_Import-Expor'!$C$7:$C$210,0))),\"\")","v":"No"},{"$f":"IFERROR(IF(INDEX('Coverage Indicator_Import-Expor'!AS$7:AS$210,MATCH($B16,'Coverage Indicator_Import-Expor'!$C$7:$C$210,0))=\"\",\"\",INDEX('Coverage Indicator_Import-Expor'!AS$7:AS$210,MATCH($B16,'Coverage Indicator_Import-Expor'!$C$7:$C$210,0))),\"\")","v":"Burundi"},{"$f":"IFERROR(IF(INDEX('Coverage Indicator_Import-Expor'!N$7:N$210,MATCH($B16,'Coverage Indicator_Import-Expor'!$C$7:$C$210,0))=\"\",\"\",INDEX('Coverage Indicator_Import-Expor'!N$7:N$210,MATCH($B16,'Coverage Indicator_Import-Expor'!$C$7:$C$210,0))),\"\")","v":94012},{"$f":"IFERROR(IF(INDEX('Coverage Indicator_Import-Expor'!O$7:O$210,MATCH($B16,'Coverage Indicator_Import-Expor'!$C$7:$C$210,0))=\"\",\"\",INDEX('Coverage Indicator_Import-Expor'!O$7:O$210,MATCH($B16,'Coverage Indicator_Import-Expor'!$C$7:$C$210,0))),\"\")","v":205031},{"$f":"IFERROR(IF(INDEX('Coverage Indicator_Import-Expor'!P$7:P$210,MATCH($B16,'Coverage Indicator_Import-Expor'!$C$7:$C$210,0))=\"\",\"\",INDEX('Coverage Indicator_Import-Expor'!P$7:P$210,MATCH($B16,'Coverage Indicator_Import-Expor'!$C$7:$C$210,0))),\"\")","v":45.9},{"$f":"IFERROR(IF(INDEX('Coverage Indicator_Import-Expor'!Q$7:Q$210,MATCH($B16,'Coverage Indicator_Import-Expor'!$C$7:$C$210,0))=\"\",\"\",INDEX('Coverage Indicator_Import-Expor'!Q$7:Q$210,MATCH($B16,'Coverage Indicator_Import-Expor'!$C$7:$C$210,0))),\"\")","v":"2016"},{"$f":"IFERROR(IF(INDEX('Coverage Indicator_Import-Expor'!R$7:R$210,MATCH($B16,'Coverage Indicator_Import-Expor'!$C$7:$C$210,0))=\"\",\"\",INDEX('Coverage Indicator_Import-Expor'!R$7:R$210,MATCH($B16,'Coverage Indicator_Import-Expor'!$C$7:$C$210,0))),\"\")","v":"HMIS"},{"$f":"IFERROR(IF(INDEX('Coverage Indicator_Import-Expor'!S$7:S$210,MATCH($B16,'Coverage Indicator_Import-Expor'!$C$7:$C$210,0))=\"\",\"\",INDEX('Coverage Indicator_Import-Expor'!S$7:S$210,MATCH($B16,'Coverage Indicator_Import-Expor'!$C$7:$C$210,0))),\"\")","v":249327},{"$f":"IFERROR(IF(INDEX('Coverage Indicator_Import-Expor'!T$7:T$210,MATCH($B16,'Coverage Indicator_Import-Expor'!$C$7:$C$210,0))=\"\",\"\",INDEX('Coverage Indicator_Import-Expor'!T$7:T$210,MATCH($B16,'Coverage Indicator_Import-Expor'!$C$7:$C$210,0))),\"\")","v":249327},{"$f":"IFERROR(IF(INDEX('Coverage Indicator_Import-Expor'!U$7:U$210,MATCH($B16,'Coverage Indicator_Import-Expor'!$C$7:$C$210,0))=\"\",\"\",INDEX('Coverage Indicator_Import-Expor'!U$7:U$210,MATCH($B16,'Coverage Indicator_Import-Expor'!$C$7:$C$210,0))),\"\")","v":100},49569,160631,30.858925114081341,"HMIS",0.30858925114081343,"Les structures privés qui utilisent les ACT sont les structures sous contrat PBF qui sont approvisionnées en intrants par les Districts Sanitaires. Noter que les cas traités sans test ont été éliminés car la molécule utilisée n'est pas spécifiée dans le DHSI2. Structures privées = privées et associatives .  \n\nLe numérateur est représenté par les cas confirmés de paludisme ayant reçu un traitement de première intention (ACT) dans les locaux du secteur privé. Seulement, 49 569 cas pour la période de janvier à juin 2018. Le dénominateur comprend les cas de paludisme confirmés par un test parasitologique, soit 160 631 cas. Soit un poucentage de 30.85%.\nHormis le milieu associatif, les privés n'accèdent pas aux ACT pour le moment. La quinine orale est largement utilisée dans le secteur privé. \nLa rationalisation et la conformité à la politique nationale par le secteur privé passe par l'accès réglementé au circuit d'approvisionnement public et privé.","Continue",null,null,"",null," ",null,null,"No Results Reported",null,null,""," ",null,"No Results Reported"]
[7,"Coverage7",{"$f":"IFERROR(INDEX('Coverage Indicator_Import-Expor'!$D$7:$D$210,MATCH(B17,'Coverage Indicator_Import-Expor'!$C$7:$C$210,0)),\"\")","v":"Case management"},{"$f":"IFERROR(INDEX('Coverage Indicator_Import-Expor'!$E$7:$E$210,MATCH(B17,'Coverage Indicator_Import-Expor'!$C$7:$C$210,0)),\"\")","v":"CM - other1: Percentage of CHWs not having had a stock-out for ACTs or RDTs during the reporting period in the 30 districts implementing iCCM."},{"$f":"IFERROR(IF(INDEX('Coverage Indicator_Import-Expor'!K$7:K$210,MATCH($B17,'Coverage Indicator_Import-Expor'!$C$7:$C$210,0))=\"\",\"\",INDEX('Coverage Indicator_Import-Expor'!K$7:K$210,MATCH($B17,'Coverage Indicator_Import-Expor'!$C$7:$C$210,0))),\"\")","v":"Subnational"},{"$f":"IFERROR(IF(INDEX('Coverage Indicator_Import-Expor'!L$7:L$210,MATCH($B17,'Coverage Indicator_Import-Expor'!$C$7:$C$210,0))=\"\",\"\",INDEX('Coverage Indicator_Import-Expor'!L$7:L$210,MATCH($B17,'Coverage Indicator_Import-Expor'!$C$7:$C$210,0))),\"\")","v":"N-Non-cumulative"},{"$f":"IFERROR(IF(INDEX('Coverage Indicator_Import-Expor'!AR$7:AR$210,MATCH($B17,'Coverage Indicator_Import-Expor'!$C$7:$C$210,0))=\"\",\"\",INDEX('Coverage Indicator_Import-Expor'!AR$7:AR$210,MATCH($B17,'Coverage Indicator_Import-Expor'!$C$7:$C$210,0))),\"\")","v":"No"},{"$f":"IFERROR(IF(INDEX('Coverage Indicator_Import-Expor'!AS$7:AS$210,MATCH($B17,'Coverage Indicator_Import-Expor'!$C$7:$C$210,0))=\"\",\"\",INDEX('Coverage Indicator_Import-Expor'!AS$7:AS$210,MATCH($B17,'Coverage Indicator_Import-Expor'!$C$7:$C$210,0))),\"\")","v":"Burundi"},{"$f":"IFERROR(IF(INDEX('Coverage Indicator_Import-Expor'!N$7:N$210,MATCH($B17,'Coverage Indicator_Import-Expor'!$C$7:$C$210,0))=\"\",\"\",INDEX('Coverage Indicator_Import-Expor'!N$7:N$210,MATCH($B17,'Coverage Indicator_Import-Expor'!$C$7:$C$210,0))),\"\")","v":159},{"$f":"IFERROR(IF(INDEX('Coverage Indicator_Import-Expor'!O$7:O$210,MATCH($B17,'Coverage Indicator_Import-Expor'!$C$7:$C$210,0))=\"\",\"\",INDEX('Coverage Indicator_Import-Expor'!O$7:O$210,MATCH($B17,'Coverage Indicator_Import-Expor'!$C$7:$C$210,0))),\"\")","v":268},{"$f":"IFERROR(IF(INDEX('Coverage Indicator_Import-Expor'!P$7:P$210,MATCH($B17,'Coverage Indicator_Import-Expor'!$C$7:$C$210,0))=\"\",\"\",INDEX('Coverage Indicator_Import-Expor'!P$7:P$210,MATCH($B17,'Coverage Indicator_Import-Expor'!$C$7:$C$210,0))),\"\")","v":59.3},{"$f":"IFERROR(IF(INDEX('Coverage Indicator_Import-Expor'!Q$7:Q$210,MATCH($B17,'Coverage Indicator_Import-Expor'!$C$7:$C$210,0))=\"\",\"\",INDEX('Coverage Indicator_Import-Expor'!Q$7:Q$210,MATCH($B17,'Coverage Indicator_Import-Expor'!$C$7:$C$210,0))),\"\")","v":"2016"},{"$f":"IFERROR(IF(INDEX('Coverage Indicator_Import-Expor'!R$7:R$210,MATCH($B17,'Coverage Indicator_Import-Expor'!$C$7:$C$210,0))=\"\",\"\",INDEX('Coverage Indicator_Import-Expor'!R$7:R$210,MATCH($B17,'Coverage Indicator_Import-Expor'!$C$7:$C$210,0))),\"\")","v":"Data from the regional supervisors of CHWs (Caritas)"},{"$f":"IFERROR(IF(INDEX('Coverage Indicator_Import-Expor'!S$7:S$210,MATCH($B17,'Coverage Indicator_Import-Expor'!$C$7:$C$210,0))=\"\",\"\",INDEX('Coverage Indicator_Import-Expor'!S$7:S$210,MATCH($B17,'Coverage Indicator_Import-Expor'!$C$7:$C$210,0))),\"\")","v":3479.2},{"$f":"IFERROR(IF(INDEX('Coverage Indicator_Import-Expor'!T$7:T$210,MATCH($B17,'Coverage Indicator_Import-Expor'!$C$7:$C$210,0))=\"\",\"\",INDEX('Coverage Indicator_Import-Expor'!T$7:T$210,MATCH($B17,'Coverage Indicator_Import-Expor'!$C$7:$C$210,0))),\"\")","v":4349},{"$f":"IFERROR(IF(INDEX('Coverage Indicator_Import-Expor'!U$7:U$210,MATCH($B17,'Coverage Indicator_Import-Expor'!$C$7:$C$210,0))=\"\",\"\",INDEX('Coverage Indicator_Import-Expor'!U$7:U$210,MATCH($B17,'Coverage Indicator_Import-Expor'!$C$7:$C$210,0))),\"\")","v":80},790,802,98.503740648379051,"HMIS",1.2,"Une structure sanitaire aura connu rupture du stock quand un des intrants de base du paludisme (ACT, TDR) ne sera pas disponible pendant au moins sept jours consécutifs au cours du semestre.\nAu premier semestre 2018, selon les informations du DHIS2, 802 CDS (731 CDS publics et 71 structures associatives bénéficiaires des intrants ACT et TDR) sont opérationnels dans les 46 districts sanitaires du pays. C'est pour cela que les résultats rapportés ne sont pas limités aux 30 districts sanitaires prévus dans l'indicateur du cadre de performance. \nLa moyenne mensuelle des CDS n'ayant pas connu de rupture de stock de l'un des 2 intrants clés est de  790 sur 802.\nPour déterminer cet indicateur, le numérateur est la somme du nombre de formations sanitaires n’ayant pas connu de rupture de stock pour chaque mois du semestre et divisé par 6 (nombre des mois) Le dénominateur est la somme du nombre de formations sanitaires fonctionnelles pour chaque mois du semestre et divisé par 6 si le nombre des formations fonctionnelles a varié d’un mois à l’autre.","Continue",null,null,"",null," ",null,null,"No Results Reported",null,null,""," ",null,"No Results Reported"]
[8,"Coverage8",{"$f":"IFERROR(INDEX('Coverage Indicator_Import-Expor'!$D$7:$D$210,MATCH(B18,'Coverage Indicator_Import-Expor'!$C$7:$C$210,0)),\"\")","v":"Specific prevention interventions (SPI)"},{"$f":"IFERROR(INDEX('Coverage Indicator_Import-Expor'!$E$7:$E$210,MATCH(B18,'Coverage Indicator_Import-Expor'!$C$7:$C$210,0)),\"\")","v":"SPI-1: Proportion of pregnant women attending antenatal clinics who received three or more doses of intermittent preventive treatment for malaria"},{"$f":"IFERROR(IF(INDEX('Coverage Indicator_Import-Expor'!K$7:K$210,MATCH($B18,'Coverage Indicator_Import-Expor'!$C$7:$C$210,0))=\"\",\"\",INDEX('Coverage Indicator_Import-Expor'!K$7:K$210,MATCH($B18,'Coverage Indicator_Import-Expor'!$C$7:$C$210,0))),\"\")","v":"National"},{"$f":"IFERROR(IF(INDEX('Coverage Indicator_Import-Expor'!L$7:L$210,MATCH($B18,'Coverage Indicator_Import-Expor'!$C$7:$C$210,0))=\"\",\"\",INDEX('Coverage Indicator_Import-Expor'!L$7:L$210,MATCH($B18,'Coverage Indicator_Import-Expor'!$C$7:$C$210,0))),\"\")","v":"N-Non-cumulative"},{"$f":"IFERROR(IF(INDEX('Coverage Indicator_Import-Expor'!AR$7:AR$210,MATCH($B18,'Coverage Indicator_Import-Expor'!$C$7:$C$210,0))=\"\",\"\",INDEX('Coverage Indicator_Import-Expor'!AR$7:AR$210,MATCH($B18,'Coverage Indicator_Import-Expor'!$C$7:$C$210,0))),\"\")","v":"No"},{"$f":"IFERROR(IF(INDEX('Coverage Indicator_Import-Expor'!AS$7:AS$210,MATCH($B18,'Coverage Indicator_Import-Expor'!$C$7:$C$210,0))=\"\",\"\",INDEX('Coverage Indicator_Import-Expor'!AS$7:AS$210,MATCH($B18,'Coverage Indicator_Import-Expor'!$C$7:$C$210,0))),\"\")","v":"Burundi"},{"$f":"IFERROR(IF(INDEX('Coverage Indicator_Import-Expor'!N$7:N$210,MATCH($B18,'Coverage Indicator_Import-Expor'!$C$7:$C$210,0))=\"\",\"\",INDEX('Coverage Indicator_Import-Expor'!N$7:N$210,MATCH($B18,'Coverage Indicator_Import-Expor'!$C$7:$C$210,0))),\"\")","v":140741},{"$f":"IFERROR(IF(INDEX('Coverage Indicator_Import-Expor'!O$7:O$210,MATCH($B18,'Coverage Indicator_Import-Expor'!$C$7:$C$210,0))=\"\",\"\",INDEX('Coverage Indicator_Import-Expor'!O$7:O$210,MATCH($B18,'Coverage Indicator_Import-Expor'!$C$7:$C$210,0))),\"\")","v":243404},{"$f":"IFERROR(IF(INDEX('Coverage Indicator_Import-Expor'!P$7:P$210,MATCH($B18,'Coverage Indicator_Import-Expor'!$C$7:$C$210,0))=\"\",\"\",INDEX('Coverage Indicator_Import-Expor'!P$7:P$210,MATCH($B18,'Coverage Indicator_Import-Expor'!$C$7:$C$210,0))),\"\")","v":57.8},{"$f":"IFERROR(IF(INDEX('Coverage Indicator_Import-Expor'!Q$7:Q$210,MATCH($B18,'Coverage Indicator_Import-Expor'!$C$7:$C$210,0))=\"\",\"\",INDEX('Coverage Indicator_Import-Expor'!Q$7:Q$210,MATCH($B18,'Coverage Indicator_Import-Expor'!$C$7:$C$210,0))),\"\")","v":"2016"},{"$f":"IFERROR(IF(INDEX('Coverage Indicator_Import-Expor'!R$7:R$210,MATCH($B18,'Coverage Indicator_Import-Expor'!$C$7:$C$210,0))=\"\",\"\",INDEX('Coverage Indicator_Import-Expor'!R$7:R$210,MATCH($B18,'Coverage Indicator_Import-Expor'!$C$7:$C$210,0))),\"\")","v":"Data reported by the BDS (health distict offices), S2"},{"$f":"IFERROR(IF(INDEX('Coverage Indicator_Import-Expor'!S$7:S$210,MATCH($B18,'Coverage Indicator_Import-Expor'!$C$7:$C$210,0))=\"\",\"\",INDEX('Coverage Indicator_Import-Expor'!S$7:S$210,MATCH($B18,'Coverage Indicator_Import-Expor'!$C$7:$C$210,0))),\"\")","v":178909.76500000001},{"$f":"IFERROR(IF(INDEX('Coverage Indicator_Import-Expor'!T$7:T$210,MATCH($B18,'Coverage Indicator_Import-Expor'!$C$7:$C$210,0))=\"\",\"\",INDEX('Coverage Indicator_Import-Expor'!T$7:T$210,MATCH($B18,'Coverage Indicator_Import-Expor'!$C$7:$C$210,0))),\"\")","v":267029.5},{"$f":"IFERROR(IF(INDEX('Coverage Indicator_Import-Expor'!U$7:U$210,MATCH($B18,'Coverage Indicator_Import-Expor'!$C$7:$C$210,0))=\"\",\"\",INDEX('Coverage Indicator_Import-Expor'!U$7:U$210,MATCH($B18,'Coverage Indicator_Import-Expor'!$C$7:$C$210,0))),\"\")","v":67},132225,219454,60.251806756769078,"HMIS",0.89928069786222509,"Le numérateur est le nombre de femmes enceintes fréquentant les centres de consultation prénatale ayant reçu au moins 3 doses de TPI pour la prévention du paludisme, soit 132 225 femmes enceintes. \nLe dénominateur est le nombre de première visite en centre de consultation prénatale, soit 219 454 visites. \nEn faisant une comparaison entre le pourcentage réalisé en 2016 (57.80) et celui atteint au 1er semestre 2018 (60.25%), on constate que une légère augmentation de 2.45%. Aussi, par comparaison entre le pourcentage attendu (67.00%) et celui réalisé (60.25%), on constate que un écart de 6.75%    Noter que la cible nominale attendue de 178 909 femmes enceintes ayant reçu au moins 3 doses de TPI pour prévention contre le paludisme n'a pas été atteint, soit une différence de 46 684. \nSignalons que le taux de CPN1 au 3ème trimestre de la grossesse représente 15, 07%  aucours de la période du 1er semestre 2018. Des améliorations dans l'accès au TPIg sont donc nécessaires.","Continue",null,null,"",null," ",null,null,"No Results Reported",null,null,""," ",null,"No Results Reported"]
[9,"Coverage9",{"$f":"IFERROR(INDEX('Coverage Indicator_Import-Expor'!$D$7:$D$210,MATCH(B19,'Coverage Indicator_Import-Expor'!$C$7:$C$210,0)),\"\")","v":"RSSH: Health management information systems and M&E"},{"$f":"IFERROR(INDEX('Coverage Indicator_Import-Expor'!$E$7:$E$210,MATCH(B19,'Coverage Indicator_Import-Expor'!$C$7:$C$210,0)),\"\")","v":"M&E-1: Percentage of HMIS or other routine reporting units submitting timely reports according to national guidelines"},{"$f":"IFERROR(IF(INDEX('Coverage Indicator_Import-Expor'!K$7:K$210,MATCH($B19,'Coverage Indicator_Import-Expor'!$C$7:$C$210,0))=\"\",\"\",INDEX('Coverage Indicator_Import-Expor'!K$7:K$210,MATCH($B19,'Coverage Indicator_Import-Expor'!$C$7:$C$210,0))),\"\")","v":"National"},{"$f":"IFERROR(IF(INDEX('Coverage Indicator_Import-Expor'!L$7:L$210,MATCH($B19,'Coverage Indicator_Import-Expor'!$C$7:$C$210,0))=\"\",\"\",INDEX('Coverage Indicator_Import-Expor'!L$7:L$210,MATCH($B19,'Coverage Indicator_Import-Expor'!$C$7:$C$210,0))),\"\")","v":"N-Non-cumulative"},{"$f":"IFERROR(IF(INDEX('Coverage Indicator_Import-Expor'!AR$7:AR$210,MATCH($B19,'Coverage Indicator_Import-Expor'!$C$7:$C$210,0))=\"\",\"\",INDEX('Coverage Indicator_Import-Expor'!AR$7:AR$210,MATCH($B19,'Coverage Indicator_Import-Expor'!$C$7:$C$210,0))),\"\")","v":"No"},{"$f":"IFERROR(IF(INDEX('Coverage Indicator_Import-Expor'!AS$7:AS$210,MATCH($B19,'Coverage Indicator_Import-Expor'!$C$7:$C$210,0))=\"\",\"\",INDEX('Coverage Indicator_Import-Expor'!AS$7:AS$210,MATCH($B19,'Coverage Indicator_Import-Expor'!$C$7:$C$210,0))),\"\")","v":"Burundi"},{"$f":"IFERROR(IF(INDEX('Coverage Indicator_Import-Expor'!N$7:N$210,MATCH($B19,'Coverage Indicator_Import-Expor'!$C$7:$C$210,0))=\"\",\"\",INDEX('Coverage Indicator_Import-Expor'!N$7:N$210,MATCH($B19,'Coverage Indicator_Import-Expor'!$C$7:$C$210,0))),\"\")","v":951},{"$f":"IFERROR(IF(INDEX('Coverage Indicator_Import-Expor'!O$7:O$210,MATCH($B19,'Coverage Indicator_Import-Expor'!$C$7:$C$210,0))=\"\",\"\",INDEX('Coverage Indicator_Import-Expor'!O$7:O$210,MATCH($B19,'Coverage Indicator_Import-Expor'!$C$7:$C$210,0))),\"\")","v":951},{"$f":"IFERROR(IF(INDEX('Coverage Indicator_Import-Expor'!P$7:P$210,MATCH($B19,'Coverage Indicator_Import-Expor'!$C$7:$C$210,0))=\"\",\"\",INDEX('Coverage Indicator_Import-Expor'!P$7:P$210,MATCH($B19,'Coverage Indicator_Import-Expor'!$C$7:$C$210,0))),\"\")","v":100},{"$f":"IFERROR(IF(INDEX('Coverage Indicator_Import-Expor'!Q$7:Q$210,MATCH($B19,'Coverage Indicator_Import-Expor'!$C$7:$C$210,0))=\"\",\"\",INDEX('Coverage Indicator_Import-Expor'!Q$7:Q$210,MATCH($B19,'Coverage Indicator_Import-Expor'!$C$7:$C$210,0))),\"\")","v":"2016"},{"$f":"IFERROR(IF(INDEX('Coverage Indicator_Import-Expor'!R$7:R$210,MATCH($B19,'Coverage Indicator_Import-Expor'!$C$7:$C$210,0))=\"\",\"\",INDEX('Coverage Indicator_Import-Expor'!R$7:R$210,MATCH($B19,'Coverage Indicator_Import-Expor'!$C$7:$C$210,0))),\"\")","v":"HMIS"},{"$f":"IFERROR(IF(INDEX('Coverage Indicator_Import-Expor'!S$7:S$210,MATCH($B19,'Coverage Indicator_Import-Expor'!$C$7:$C$210,0))=\"\",\"\",INDEX('Coverage Indicator_Import-Expor'!S$7:S$210,MATCH($B19,'Coverage Indicator_Import-Expor'!$C$7:$C$210,0))),\"\")","v":1090},{"$f":"IFERROR(IF(INDEX('Coverage Indicator_Import-Expor'!T$7:T$210,MATCH($B19,'Coverage Indicator_Import-Expor'!$C$7:$C$210,0))=\"\",\"\",INDEX('Coverage Indicator_Import-Expor'!T$7:T$210,MATCH($B19,'Coverage Indicator_Import-Expor'!$C$7:$C$210,0))),\"\")","v":1090},{"$f":"IFERROR(IF(INDEX('Coverage Indicator_Import-Expor'!U$7:U$210,MATCH($B19,'Coverage Indicator_Import-Expor'!$C$7:$C$210,0))=\"\",\"\",INDEX('Coverage Indicator_Import-Expor'!U$7:U$210,MATCH($B19,'Coverage Indicator_Import-Expor'!$C$7:$C$210,0))),\"\")","v":100},927,1093,84.812442817932293,"HMIS",0.84812442817932299,"Au premier semestre de 2018, le nombre de formations sanitaires opérationnelles, publics et privés, est de 1093. Selon les informations collectées dans DHIS2, une moyenne de 927 formations sanitaires ont transmis leurs rapports. \nLa méthodologie de calcul appliquée pour déterminer le nombre de formations sanitaires ayant transmis leurs rapports dans les delais a été faite la suivantes : \n- Extraction dans DHIS2 des sections contenant des informations relatives au paludisme uniquement;\n - Calcul de la moyenne des CDS ayant soumis à temps les rapports à temps pour chaque section relative au paludisme;\n\nOn note un taux de 84.8% de formations sanitaires ayant transmis leurs rapports dans les délais selon les directives nationales. La performance enregistrée pour le période couvert pour ce rapport est de 85%.\n\nConjointement avec le PNLP, nous envisageons la relance et l'identification des entités non déclarantes pour améliorer la performance de cet indicateur.\nSource des données : DHIS2","Continue",null,null,"",null," ",null,null,"No Results Reported",null,null,""," ",null,"No Results Reported"]
[10,"Coverage10",{"$f":"IFERROR(INDEX('Coverage Indicator_Import-Expor'!$D$7:$D$210,MATCH(B20,'Coverage Indicator_Import-Expor'!$C$7:$C$210,0)),\"\")","v":"RSSH: Health management information systems and M&E"},{"$f":"IFERROR(INDEX('Coverage Indicator_Import-Expor'!$E$7:$E$210,MATCH(B20,'Coverage Indicator_Import-Expor'!$C$7:$C$210,0)),\"\")","v":"M&E - other1: Percentage of CHWs having submitted their monthly reports in a timely manner, from the community to the health centres."},{"$f":"IFERROR(IF(INDEX('Coverage Indicator_Import-Expor'!K$7:K$210,MATCH($B20,'Coverage Indicator_Import-Expor'!$C$7:$C$210,0))=\"\",\"\",INDEX('Coverage Indicator_Import-Expor'!K$7:K$210,MATCH($B20,'Coverage Indicator_Import-Expor'!$C$7:$C$210,0))),\"\")","v":"Subnational"},{"$f":"IFERROR(IF(INDEX('Coverage Indicator_Import-Expor'!L$7:L$210,MATCH($B20,'Coverage Indicator_Import-Expor'!$C$7:$C$210,0))=\"\",\"\",INDEX('Coverage Indicator_Import-Expor'!L$7:L$210,MATCH($B20,'Coverage Indicator_Import-Expor'!$C$7:$C$210,0))),\"\")","v":"N-Non-cumulative"},{"$f":"IFERROR(IF(INDEX('Coverage Indicator_Import-Expor'!AR$7:AR$210,MATCH($B20,'Coverage Indicator_Import-Expor'!$C$7:$C$210,0))=\"\",\"\",INDEX('Coverage Indicator_Import-Expor'!AR$7:AR$210,MATCH($B20,'Coverage Indicator_Import-Expor'!$C$7:$C$210,0))),\"\")","v":"No"},{"$f":"IFERROR(IF(INDEX('Coverage Indicator_Import-Expor'!AS$7:AS$210,MATCH($B20,'Coverage Indicator_Import-Expor'!$C$7:$C$210,0))=\"\",\"\",INDEX('Coverage Indicator_Import-Expor'!AS$7:AS$210,MATCH($B20,'Coverage Indicator_Import-Expor'!$C$7:$C$210,0))),\"\")","v":"Burundi"},{"$f":"IFERROR(IF(INDEX('Coverage Indicator_Import-Expor'!N$7:N$210,MATCH($B20,'Coverage Indicator_Import-Expor'!$C$7:$C$210,0))=\"\",\"\",INDEX('Coverage Indicator_Import-Expor'!N$7:N$210,MATCH($B20,'Coverage Indicator_Import-Expor'!$C$7:$C$210,0))),\"\")","v":229},{"$f":"IFERROR(IF(INDEX('Coverage Indicator_Import-Expor'!O$7:O$210,MATCH($B20,'Coverage Indicator_Import-Expor'!$C$7:$C$210,0))=\"\",\"\",INDEX('Coverage Indicator_Import-Expor'!O$7:O$210,MATCH($B20,'Coverage Indicator_Import-Expor'!$C$7:$C$210,0))),\"\")","v":268},{"$f":"IFERROR(IF(INDEX('Coverage Indicator_Import-Expor'!P$7:P$210,MATCH($B20,'Coverage Indicator_Import-Expor'!$C$7:$C$210,0))=\"\",\"\",INDEX('Coverage Indicator_Import-Expor'!P$7:P$210,MATCH($B20,'Coverage Indicator_Import-Expor'!$C$7:$C$210,0))),\"\")","v":85.4},{"$f":"IFERROR(IF(INDEX('Coverage Indicator_Import-Expor'!Q$7:Q$210,MATCH($B20,'Coverage Indicator_Import-Expor'!$C$7:$C$210,0))=\"\",\"\",INDEX('Coverage Indicator_Import-Expor'!Q$7:Q$210,MATCH($B20,'Coverage Indicator_Import-Expor'!$C$7:$C$210,0))),\"\")","v":"2016"},{"$f":"IFERROR(IF(INDEX('Coverage Indicator_Import-Expor'!R$7:R$210,MATCH($B20,'Coverage Indicator_Import-Expor'!$C$7:$C$210,0))=\"\",\"\",INDEX('Coverage Indicator_Import-Expor'!R$7:R$210,MATCH($B20,'Coverage Indicator_Import-Expor'!$C$7:$C$210,0))),\"\")","v":"Data from the regional supervisors of CHWs (Caritas)"},{"$f":"IFERROR(IF(INDEX('Coverage Indicator_Import-Expor'!S$7:S$210,MATCH($B20,'Coverage Indicator_Import-Expor'!$C$7:$C$210,0))=\"\",\"\",INDEX('Coverage Indicator_Import-Expor'!S$7:S$210,MATCH($B20,'Coverage Indicator_Import-Expor'!$C$7:$C$210,0))),\"\")","v":3696.65},{"$f":"IFERROR(IF(INDEX('Coverage Indicator_Import-Expor'!T$7:T$210,MATCH($B20,'Coverage Indicator_Import-Expor'!$C$7:$C$210,0))=\"\",\"\",INDEX('Coverage Indicator_Import-Expor'!T$7:T$210,MATCH($B20,'Coverage Indicator_Import-Expor'!$C$7:$C$210,0))),\"\")","v":4349},{"$f":"IFERROR(IF(INDEX('Coverage Indicator_Import-Expor'!U$7:U$210,MATCH($B20,'Coverage Indicator_Import-Expor'!$C$7:$C$210,0))=\"\",\"\",INDEX('Coverage Indicator_Import-Expor'!U$7:U$210,MATCH($B20,'Coverage Indicator_Import-Expor'!$C$7:$C$210,0))),\"\")","v":85},3207,{"$f":"4349","v":4349},73.74108990572546,"HMIS",0.86754223418500542,"L'indicateur tel qu'il est formulé dans le PF ne permet pas d'être  renseigné par les données collectées à travers DHIS2. Cet indicateur est renseigné a partir de la modification proposée par le SR Caritas à l'equipe pays mais non encore validé. Le PNUD va engager des discussions avec le FM pour cadrer l'indicateur avec ce qui est mesurable dans DHIS2; \n\nToutefois, les données mentionnées dans les cases résultats sont extraites à travers DHIS2. Le numérateur concerne les rapports mensuels des ASC soumis a travers les GASC  dans les delais pendant la période de janvier à juin 2018 dans les 30 DS sanitaires impl:iqués dans l'iCCM.\nLe dénominateur concerne l'effectif des ASCs des GASC fonctionnels pendant la période de janvier à juin 2018, soit 4349 ASCs présents et actifs dans 37 DS sanitaires qui font iCCM. Nous arrivons alors à un pourcentage de rapportage de 73.74%.","Continue",null,null,"",null," ",null,null,"No Results Reported",null,null,""," ",null,"No Results Reported"]
[11,"Coverage11",{"$f":"IFERROR(INDEX('Coverage Indicator_Import-Expor'!$D$7:$D$210,MATCH(B21,'Coverage Indicator_Import-Expor'!$C$7:$C$210,0)),\"\")","v":""},{"$f":"IFERROR(INDEX('Coverage Indicator_Import-Expor'!$E$7:$E$210,MATCH(B21,'Coverage Indicator_Import-Expor'!$C$7:$C$210,0)),\"\")","v":""},{"$f":"IFERROR(IF(INDEX('Coverage Indicator_Import-Expor'!K$7:K$210,MATCH($B21,'Coverage Indicator_Import-Expor'!$C$7:$C$210,0))=\"\",\"\",INDEX('Coverage Indicator_Import-Expor'!K$7:K$210,MATCH($B21,'Coverage Indicator_Import-Expor'!$C$7:$C$210,0))),\"\")","v":""},{"$f":"IFERROR(IF(INDEX('Coverage Indicator_Import-Expor'!L$7:L$210,MATCH($B21,'Coverage Indicator_Import-Expor'!$C$7:$C$210,0))=\"\",\"\",INDEX('Coverage Indicator_Import-Expor'!L$7:L$210,MATCH($B21,'Coverage Indicator_Import-Expor'!$C$7:$C$210,0))),\"\")","v":""},{"$f":"IFERROR(IF(INDEX('Coverage Indicator_Import-Expor'!AR$7:AR$210,MATCH($B21,'Coverage Indicator_Import-Expor'!$C$7:$C$210,0))=\"\",\"\",INDEX('Coverage Indicator_Import-Expor'!AR$7:AR$210,MATCH($B21,'Coverage Indicator_Import-Expor'!$C$7:$C$210,0))),\"\")","v":""},{"$f":"IFERROR(IF(INDEX('Coverage Indicator_Import-Expor'!AS$7:AS$210,MATCH($B21,'Coverage Indicator_Import-Expor'!$C$7:$C$210,0))=\"\",\"\",INDEX('Coverage Indicator_Import-Expor'!AS$7:AS$210,MATCH($B21,'Coverage Indicator_Import-Expor'!$C$7:$C$210,0))),\"\")","v":""},{"$f":"IFERROR(IF(INDEX('Coverage Indicator_Import-Expor'!N$7:N$210,MATCH($B21,'Coverage Indicator_Import-Expor'!$C$7:$C$210,0))=\"\",\"\",INDEX('Coverage Indicator_Import-Expor'!N$7:N$210,MATCH($B21,'Coverage Indicator_Import-Expor'!$C$7:$C$210,0))),\"\")","v":""},{"$f":"IFERROR(IF(INDEX('Coverage Indicator_Import-Expor'!O$7:O$210,MATCH($B21,'Coverage Indicator_Import-Expor'!$C$7:$C$210,0))=\"\",\"\",INDEX('Coverage Indicator_Import-Expor'!O$7:O$210,MATCH($B21,'Coverage Indicator_Import-Expor'!$C$7:$C$210,0))),\"\")","v":""},{"$f":"IFERROR(IF(INDEX('Coverage Indicator_Import-Expor'!P$7:P$210,MATCH($B21,'Coverage Indicator_Import-Expor'!$C$7:$C$210,0))=\"\",\"\",INDEX('Coverage Indicator_Import-Expor'!P$7:P$210,MATCH($B21,'Coverage Indicator_Import-Expor'!$C$7:$C$210,0))),\"\")","v":""},{"$f":"IFERROR(IF(INDEX('Coverage Indicator_Import-Expor'!Q$7:Q$210,MATCH($B21,'Coverage Indicator_Import-Expor'!$C$7:$C$210,0))=\"\",\"\",INDEX('Coverage Indicator_Import-Expor'!Q$7:Q$210,MATCH($B21,'Coverage Indicator_Import-Expor'!$C$7:$C$210,0))),\"\")","v":""},{"$f":"IFERROR(IF(INDEX('Coverage Indicator_Import-Expor'!R$7:R$210,MATCH($B21,'Coverage Indicator_Import-Expor'!$C$7:$C$210,0))=\"\",\"\",INDEX('Coverage Indicator_Import-Expor'!R$7:R$210,MATCH($B21,'Coverage Indicator_Import-Expor'!$C$7:$C$210,0))),\"\")","v":""},{"$f":"IFERROR(IF(INDEX('Coverage Indicator_Import-Expor'!S$7:S$210,MATCH($B21,'Coverage Indicator_Import-Expor'!$C$7:$C$210,0))=\"\",\"\",INDEX('Coverage Indicator_Import-Expor'!S$7:S$210,MATCH($B21,'Coverage Indicator_Import-Expor'!$C$7:$C$210,0))),\"\")","v":""},{"$f":"IFERROR(IF(INDEX('Coverage Indicator_Import-Expor'!T$7:T$210,MATCH($B21,'Coverage Indicator_Import-Expor'!$C$7:$C$210,0))=\"\",\"\",INDEX('Coverage Indicator_Import-Expor'!T$7:T$210,MATCH($B21,'Coverage Indicator_Import-Expor'!$C$7:$C$210,0))),\"\")","v":""},{"$f":"IFERROR(IF(INDEX('Coverage Indicator_Import-Expor'!U$7:U$210,MATCH($B21,'Coverage Indicator_Import-Expor'!$C$7:$C$210,0))=\"\",\"\",INDEX('Coverage Indicator_Import-Expor'!U$7:U$210,MATCH($B21,'Coverage Indicator_Import-Expor'!$C$7:$C$210,0))),\"\")","v":""},null,null,"",null," ",null,"No Results Reported",null,null,"",null," ",null,null,"No Results Reported",null,null,""," ",null,"No Results Reported"]
[12,"Coverage12",{"$f":"IFERROR(INDEX('Coverage Indicator_Import-Expor'!$D$7:$D$210,MATCH(B22,'Coverage Indicator_Import-Expor'!$C$7:$C$210,0)),\"\")","v":""},{"$f":"IFERROR(INDEX('Coverage Indicator_Import-Expor'!$E$7:$E$210,MATCH(B22,'Coverage Indicator_Import-Expor'!$C$7:$C$210,0)),\"\")","v":""},{"$f":"IFERROR(IF(INDEX('Coverage Indicator_Import-Expor'!K$7:K$210,MATCH($B22,'Coverage Indicator_Import-Expor'!$C$7:$C$210,0))=\"\",\"\",INDEX('Coverage Indicator_Import-Expor'!K$7:K$210,MATCH($B22,'Coverage Indicator_Import-Expor'!$C$7:$C$210,0))),\"\")","v":""},{"$f":"IFERROR(IF(INDEX('Coverage Indicator_Import-Expor'!L$7:L$210,MATCH($B22,'Coverage Indicator_Import-Expor'!$C$7:$C$210,0))=\"\",\"\",INDEX('Coverage Indicator_Import-Expor'!L$7:L$210,MATCH($B22,'Coverage Indicator_Import-Expor'!$C$7:$C$210,0))),\"\")","v":""},{"$f":"IFERROR(IF(INDEX('Coverage Indicator_Import-Expor'!AR$7:AR$210,MATCH($B22,'Coverage Indicator_Import-Expor'!$C$7:$C$210,0))=\"\",\"\",INDEX('Coverage Indicator_Import-Expor'!AR$7:AR$210,MATCH($B22,'Coverage Indicator_Import-Expor'!$C$7:$C$210,0))),\"\")","v":""},{"$f":"IFERROR(IF(INDEX('Coverage Indicator_Import-Expor'!AS$7:AS$210,MATCH($B22,'Coverage Indicator_Import-Expor'!$C$7:$C$210,0))=\"\",\"\",INDEX('Coverage Indicator_Import-Expor'!AS$7:AS$210,MATCH($B22,'Coverage Indicator_Import-Expor'!$C$7:$C$210,0))),\"\")","v":""},{"$f":"IFERROR(IF(INDEX('Coverage Indicator_Import-Expor'!N$7:N$210,MATCH($B22,'Coverage Indicator_Import-Expor'!$C$7:$C$210,0))=\"\",\"\",INDEX('Coverage Indicator_Import-Expor'!N$7:N$210,MATCH($B22,'Coverage Indicator_Import-Expor'!$C$7:$C$210,0))),\"\")","v":""},{"$f":"IFERROR(IF(INDEX('Coverage Indicator_Import-Expor'!O$7:O$210,MATCH($B22,'Coverage Indicator_Import-Expor'!$C$7:$C$210,0))=\"\",\"\",INDEX('Coverage Indicator_Import-Expor'!O$7:O$210,MATCH($B22,'Coverage Indicator_Import-Expor'!$C$7:$C$210,0))),\"\")","v":""},{"$f":"IFERROR(IF(INDEX('Coverage Indicator_Import-Expor'!P$7:P$210,MATCH($B22,'Coverage Indicator_Import-Expor'!$C$7:$C$210,0))=\"\",\"\",INDEX('Coverage Indicator_Import-Expor'!P$7:P$210,MATCH($B22,'Coverage Indicator_Import-Expor'!$C$7:$C$210,0))),\"\")","v":""},{"$f":"IFERROR(IF(INDEX('Coverage Indicator_Import-Expor'!Q$7:Q$210,MATCH($B22,'Coverage Indicator_Import-Expor'!$C$7:$C$210,0))=\"\",\"\",INDEX('Coverage Indicator_Import-Expor'!Q$7:Q$210,MATCH($B22,'Coverage Indicator_Import-Expor'!$C$7:$C$210,0))),\"\")","v":""},{"$f":"IFERROR(IF(INDEX('Coverage Indicator_Import-Expor'!R$7:R$210,MATCH($B22,'Coverage Indicator_Import-Expor'!$C$7:$C$210,0))=\"\",\"\",INDEX('Coverage Indicator_Import-Expor'!R$7:R$210,MATCH($B22,'Coverage Indicator_Import-Expor'!$C$7:$C$210,0))),\"\")","v":""},{"$f":"IFERROR(IF(INDEX('Coverage Indicator_Import-Expor'!S$7:S$210,MATCH($B22,'Coverage Indicator_Import-Expor'!$C$7:$C$210,0))=\"\",\"\",INDEX('Coverage Indicator_Import-Expor'!S$7:S$210,MATCH($B22,'Coverage Indicator_Import-Expor'!$C$7:$C$210,0))),\"\")","v":""},{"$f":"IFERROR(IF(INDEX('Coverage Indicator_Import-Expor'!T$7:T$210,MATCH($B22,'Coverage Indicator_Import-Expor'!$C$7:$C$210,0))=\"\",\"\",INDEX('Coverage Indicator_Import-Expor'!T$7:T$210,MATCH($B22,'Coverage Indicator_Import-Expor'!$C$7:$C$210,0))),\"\")","v":""},{"$f":"IFERROR(IF(INDEX('Coverage Indicator_Import-Expor'!U$7:U$210,MATCH($B22,'Coverage Indicator_Import-Expor'!$C$7:$C$210,0))=\"\",\"\",INDEX('Coverage Indicator_Import-Expor'!U$7:U$210,MATCH($B22,'Coverage Indicator_Import-Expor'!$C$7:$C$210,0))),\"\")","v":""},null,null,"",null," ",null,"No Results Reported",null,null,"",null," ",null,null,"No Results Reported",null,null,""," ",null,"No Results Reported"]
[13,"Coverage13",{"$f":"IFERROR(INDEX('Coverage Indicator_Import-Expor'!$D$7:$D$210,MATCH(B23,'Coverage Indicator_Import-Expor'!$C$7:$C$210,0)),\"\")","v":""},{"$f":"IFERROR(INDEX('Coverage Indicator_Import-Expor'!$E$7:$E$210,MATCH(B23,'Coverage Indicator_Import-Expor'!$C$7:$C$210,0)),\"\")","v":""},{"$f":"IFERROR(IF(INDEX('Coverage Indicator_Import-Expor'!K$7:K$210,MATCH($B23,'Coverage Indicator_Import-Expor'!$C$7:$C$210,0))=\"\",\"\",INDEX('Coverage Indicator_Import-Expor'!K$7:K$210,MATCH($B23,'Coverage Indicator_Import-Expor'!$C$7:$C$210,0))),\"\")","v":""},{"$f":"IFERROR(IF(INDEX('Coverage Indicator_Import-Expor'!L$7:L$210,MATCH($B23,'Coverage Indicator_Import-Expor'!$C$7:$C$210,0))=\"\",\"\",INDEX('Coverage Indicator_Import-Expor'!L$7:L$210,MATCH($B23,'Coverage Indicator_Import-Expor'!$C$7:$C$210,0))),\"\")","v":""},{"$f":"IFERROR(IF(INDEX('Coverage Indicator_Import-Expor'!AR$7:AR$210,MATCH($B23,'Coverage Indicator_Import-Expor'!$C$7:$C$210,0))=\"\",\"\",INDEX('Coverage Indicator_Import-Expor'!AR$7:AR$210,MATCH($B23,'Coverage Indicator_Import-Expor'!$C$7:$C$210,0))),\"\")","v":""},{"$f":"IFERROR(IF(INDEX('Coverage Indicator_Import-Expor'!AS$7:AS$210,MATCH($B23,'Coverage Indicator_Import-Expor'!$C$7:$C$210,0))=\"\",\"\",INDEX('Coverage Indicator_Import-Expor'!AS$7:AS$210,MATCH($B23,'Coverage Indicator_Import-Expor'!$C$7:$C$210,0))),\"\")","v":""},{"$f":"IFERROR(IF(INDEX('Coverage Indicator_Import-Expor'!N$7:N$210,MATCH($B23,'Coverage Indicator_Import-Expor'!$C$7:$C$210,0))=\"\",\"\",INDEX('Coverage Indicator_Import-Expor'!N$7:N$210,MATCH($B23,'Coverage Indicator_Import-Expor'!$C$7:$C$210,0))),\"\")","v":""},{"$f":"IFERROR(IF(INDEX('Coverage Indicator_Import-Expor'!O$7:O$210,MATCH($B23,'Coverage Indicator_Import-Expor'!$C$7:$C$210,0))=\"\",\"\",INDEX('Coverage Indicator_Import-Expor'!O$7:O$210,MATCH($B23,'Coverage Indicator_Import-Expor'!$C$7:$C$210,0))),\"\")","v":""},{"$f":"IFERROR(IF(INDEX('Coverage Indicator_Import-Expor'!P$7:P$210,MATCH($B23,'Coverage Indicator_Import-Expor'!$C$7:$C$210,0))=\"\",\"\",INDEX('Coverage Indicator_Import-Expor'!P$7:P$210,MATCH($B23,'Coverage Indicator_Import-Expor'!$C$7:$C$210,0))),\"\")","v":""},{"$f":"IFERROR(IF(INDEX('Coverage Indicator_Import-Expor'!Q$7:Q$210,MATCH($B23,'Coverage Indicator_Import-Expor'!$C$7:$C$210,0))=\"\",\"\",INDEX('Coverage Indicator_Import-Expor'!Q$7:Q$210,MATCH($B23,'Coverage Indicator_Import-Expor'!$C$7:$C$210,0))),\"\")","v":""},{"$f":"IFERROR(IF(INDEX('Coverage Indicator_Import-Expor'!R$7:R$210,MATCH($B23,'Coverage Indicator_Import-Expor'!$C$7:$C$210,0))=\"\",\"\",INDEX('Coverage Indicator_Import-Expor'!R$7:R$210,MATCH($B23,'Coverage Indicator_Import-Expor'!$C$7:$C$210,0))),\"\")","v":""},{"$f":"IFERROR(IF(INDEX('Coverage Indicator_Import-Expor'!S$7:S$210,MATCH($B23,'Coverage Indicator_Import-Expor'!$C$7:$C$210,0))=\"\",\"\",INDEX('Coverage Indicator_Import-Expor'!S$7:S$210,MATCH($B23,'Coverage Indicator_Import-Expor'!$C$7:$C$210,0))),\"\")","v":""},{"$f":"IFERROR(IF(INDEX('Coverage Indicator_Import-Expor'!T$7:T$210,MATCH($B23,'Coverage Indicator_Import-Expor'!$C$7:$C$210,0))=\"\",\"\",INDEX('Coverage Indicator_Import-Expor'!T$7:T$210,MATCH($B23,'Coverage Indicator_Import-Expor'!$C$7:$C$210,0))),\"\")","v":""},{"$f":"IFERROR(IF(INDEX('Coverage Indicator_Import-Expor'!U$7:U$210,MATCH($B23,'Coverage Indicator_Import-Expor'!$C$7:$C$210,0))=\"\",\"\",INDEX('Coverage Indicator_Import-Expor'!U$7:U$210,MATCH($B23,'Coverage Indicator_Import-Expor'!$C$7:$C$210,0))),\"\")","v":""},null,null,"",null," ",null,"No Results Reported",null,null,"",null," ",null,null,"No Results Reported",null,null,""," ",null,"No Results Reported"]
[14,"Coverage14",{"$f":"IFERROR(INDEX('Coverage Indicator_Import-Expor'!$D$7:$D$210,MATCH(B24,'Coverage Indicator_Import-Expor'!$C$7:$C$210,0)),\"\")","v":""},{"$f":"IFERROR(INDEX('Coverage Indicator_Import-Expor'!$E$7:$E$210,MATCH(B24,'Coverage Indicator_Import-Expor'!$C$7:$C$210,0)),\"\")","v":""},{"$f":"IFERROR(IF(INDEX('Coverage Indicator_Import-Expor'!K$7:K$210,MATCH($B24,'Coverage Indicator_Import-Expor'!$C$7:$C$210,0))=\"\",\"\",INDEX('Coverage Indicator_Import-Expor'!K$7:K$210,MATCH($B24,'Coverage Indicator_Import-Expor'!$C$7:$C$210,0))),\"\")","v":""},{"$f":"IFERROR(IF(INDEX('Coverage Indicator_Import-Expor'!L$7:L$210,MATCH($B24,'Coverage Indicator_Import-Expor'!$C$7:$C$210,0))=\"\",\"\",INDEX('Coverage Indicator_Import-Expor'!L$7:L$210,MATCH($B24,'Coverage Indicator_Import-Expor'!$C$7:$C$210,0))),\"\")","v":""},{"$f":"IFERROR(IF(INDEX('Coverage Indicator_Import-Expor'!AR$7:AR$210,MATCH($B24,'Coverage Indicator_Import-Expor'!$C$7:$C$210,0))=\"\",\"\",INDEX('Coverage Indicator_Import-Expor'!AR$7:AR$210,MATCH($B24,'Coverage Indicator_Import-Expor'!$C$7:$C$210,0))),\"\")","v":""},{"$f":"IFERROR(IF(INDEX('Coverage Indicator_Import-Expor'!AS$7:AS$210,MATCH($B24,'Coverage Indicator_Import-Expor'!$C$7:$C$210,0))=\"\",\"\",INDEX('Coverage Indicator_Import-Expor'!AS$7:AS$210,MATCH($B24,'Coverage Indicator_Import-Expor'!$C$7:$C$210,0))),\"\")","v":""},{"$f":"IFERROR(IF(INDEX('Coverage Indicator_Import-Expor'!N$7:N$210,MATCH($B24,'Coverage Indicator_Import-Expor'!$C$7:$C$210,0))=\"\",\"\",INDEX('Coverage Indicator_Import-Expor'!N$7:N$210,MATCH($B24,'Coverage Indicator_Import-Expor'!$C$7:$C$210,0))),\"\")","v":""},{"$f":"IFERROR(IF(INDEX('Coverage Indicator_Import-Expor'!O$7:O$210,MATCH($B24,'Coverage Indicator_Import-Expor'!$C$7:$C$210,0))=\"\",\"\",INDEX('Coverage Indicator_Import-Expor'!O$7:O$210,MATCH($B24,'Coverage Indicator_Import-Expor'!$C$7:$C$210,0))),\"\")","v":""},{"$f":"IFERROR(IF(INDEX('Coverage Indicator_Import-Expor'!P$7:P$210,MATCH($B24,'Coverage Indicator_Import-Expor'!$C$7:$C$210,0))=\"\",\"\",INDEX('Coverage Indicator_Import-Expor'!P$7:P$210,MATCH($B24,'Coverage Indicator_Import-Expor'!$C$7:$C$210,0))),\"\")","v":""},{"$f":"IFERROR(IF(INDEX('Coverage Indicator_Import-Expor'!Q$7:Q$210,MATCH($B24,'Coverage Indicator_Import-Expor'!$C$7:$C$210,0))=\"\",\"\",INDEX('Coverage Indicator_Import-Expor'!Q$7:Q$210,MATCH($B24,'Coverage Indicator_Import-Expor'!$C$7:$C$210,0))),\"\")","v":""},{"$f":"IFERROR(IF(INDEX('Coverage Indicator_Import-Expor'!R$7:R$210,MATCH($B24,'Coverage Indicator_Import-Expor'!$C$7:$C$210,0))=\"\",\"\",INDEX('Coverage Indicator_Import-Expor'!R$7:R$210,MATCH($B24,'Coverage Indicator_Import-Expor'!$C$7:$C$210,0))),\"\")","v":""},{"$f":"IFERROR(IF(INDEX('Coverage Indicator_Import-Expor'!S$7:S$210,MATCH($B24,'Coverage Indicator_Import-Expor'!$C$7:$C$210,0))=\"\",\"\",INDEX('Coverage Indicator_Import-Expor'!S$7:S$210,MATCH($B24,'Coverage Indicator_Import-Expor'!$C$7:$C$210,0))),\"\")","v":""},{"$f":"IFERROR(IF(INDEX('Coverage Indicator_Import-Expor'!T$7:T$210,MATCH($B24,'Coverage Indicator_Import-Expor'!$C$7:$C$210,0))=\"\",\"\",INDEX('Coverage Indicator_Import-Expor'!T$7:T$210,MATCH($B24,'Coverage Indicator_Import-Expor'!$C$7:$C$210,0))),\"\")","v":""},{"$f":"IFERROR(IF(INDEX('Coverage Indicator_Import-Expor'!U$7:U$210,MATCH($B24,'Coverage Indicator_Import-Expor'!$C$7:$C$210,0))=\"\",\"\",INDEX('Coverage Indicator_Import-Expor'!U$7:U$210,MATCH($B24,'Coverage Indicator_Import-Expor'!$C$7:$C$210,0))),\"\")","v":""},null,null,"",null," ",null,"No Results Reported",null,null,"",null," ",null,null,"No Results Reported",null,null,""," ",null,"No Results Reported"]
[15,"Coverage15",{"$f":"IFERROR(INDEX('Coverage Indicator_Import-Expor'!$D$7:$D$210,MATCH(B25,'Coverage Indicator_Import-Expor'!$C$7:$C$210,0)),\"\")","v":""},{"$f":"IFERROR(INDEX('Coverage Indicator_Import-Expor'!$E$7:$E$210,MATCH(B25,'Coverage Indicator_Import-Expor'!$C$7:$C$210,0)),\"\")","v":""},{"$f":"IFERROR(IF(INDEX('Coverage Indicator_Import-Expor'!K$7:K$210,MATCH($B25,'Coverage Indicator_Import-Expor'!$C$7:$C$210,0))=\"\",\"\",INDEX('Coverage Indicator_Import-Expor'!K$7:K$210,MATCH($B25,'Coverage Indicator_Import-Expor'!$C$7:$C$210,0))),\"\")","v":""},{"$f":"IFERROR(IF(INDEX('Coverage Indicator_Import-Expor'!L$7:L$210,MATCH($B25,'Coverage Indicator_Import-Expor'!$C$7:$C$210,0))=\"\",\"\",INDEX('Coverage Indicator_Import-Expor'!L$7:L$210,MATCH($B25,'Coverage Indicator_Import-Expor'!$C$7:$C$210,0))),\"\")","v":""},{"$f":"IFERROR(IF(INDEX('Coverage Indicator_Import-Expor'!AR$7:AR$210,MATCH($B25,'Coverage Indicator_Import-Expor'!$C$7:$C$210,0))=\"\",\"\",INDEX('Coverage Indicator_Import-Expor'!AR$7:AR$210,MATCH($B25,'Coverage Indicator_Import-Expor'!$C$7:$C$210,0))),\"\")","v":""},{"$f":"IFERROR(IF(INDEX('Coverage Indicator_Import-Expor'!AS$7:AS$210,MATCH($B25,'Coverage Indicator_Import-Expor'!$C$7:$C$210,0))=\"\",\"\",INDEX('Coverage Indicator_Import-Expor'!AS$7:AS$210,MATCH($B25,'Coverage Indicator_Import-Expor'!$C$7:$C$210,0))),\"\")","v":""},{"$f":"IFERROR(IF(INDEX('Coverage Indicator_Import-Expor'!N$7:N$210,MATCH($B25,'Coverage Indicator_Import-Expor'!$C$7:$C$210,0))=\"\",\"\",INDEX('Coverage Indicator_Import-Expor'!N$7:N$210,MATCH($B25,'Coverage Indicator_Import-Expor'!$C$7:$C$210,0))),\"\")","v":""},{"$f":"IFERROR(IF(INDEX('Coverage Indicator_Import-Expor'!O$7:O$210,MATCH($B25,'Coverage Indicator_Import-Expor'!$C$7:$C$210,0))=\"\",\"\",INDEX('Coverage Indicator_Import-Expor'!O$7:O$210,MATCH($B25,'Coverage Indicator_Import-Expor'!$C$7:$C$210,0))),\"\")","v":""},{"$f":"IFERROR(IF(INDEX('Coverage Indicator_Import-Expor'!P$7:P$210,MATCH($B25,'Coverage Indicator_Import-Expor'!$C$7:$C$210,0))=\"\",\"\",INDEX('Coverage Indicator_Import-Expor'!P$7:P$210,MATCH($B25,'Coverage Indicator_Import-Expor'!$C$7:$C$210,0))),\"\")","v":""},{"$f":"IFERROR(IF(INDEX('Coverage Indicator_Import-Expor'!Q$7:Q$210,MATCH($B25,'Coverage Indicator_Import-Expor'!$C$7:$C$210,0))=\"\",\"\",INDEX('Coverage Indicator_Import-Expor'!Q$7:Q$210,MATCH($B25,'Coverage Indicator_Import-Expor'!$C$7:$C$210,0))),\"\")","v":""},{"$f":"IFERROR(IF(INDEX('Coverage Indicator_Import-Expor'!R$7:R$210,MATCH($B25,'Coverage Indicator_Import-Expor'!$C$7:$C$210,0))=\"\",\"\",INDEX('Coverage Indicator_Import-Expor'!R$7:R$210,MATCH($B25,'Coverage Indicator_Import-Expor'!$C$7:$C$210,0))),\"\")","v":""},{"$f":"IFERROR(IF(INDEX('Coverage Indicator_Import-Expor'!S$7:S$210,MATCH($B25,'Coverage Indicator_Import-Expor'!$C$7:$C$210,0))=\"\",\"\",INDEX('Coverage Indicator_Import-Expor'!S$7:S$210,MATCH($B25,'Coverage Indicator_Import-Expor'!$C$7:$C$210,0))),\"\")","v":""},{"$f":"IFERROR(IF(INDEX('Coverage Indicator_Import-Expor'!T$7:T$210,MATCH($B25,'Coverage Indicator_Import-Expor'!$C$7:$C$210,0))=\"\",\"\",INDEX('Coverage Indicator_Import-Expor'!T$7:T$210,MATCH($B25,'Coverage Indicator_Import-Expor'!$C$7:$C$210,0))),\"\")","v":""},{"$f":"IFERROR(IF(INDEX('Coverage Indicator_Import-Expor'!U$7:U$210,MATCH($B25,'Coverage Indicator_Import-Expor'!$C$7:$C$210,0))=\"\",\"\",INDEX('Coverage Indicator_Import-Expor'!U$7:U$210,MATCH($B25,'Coverage Indicator_Import-Expor'!$C$7:$C$210,0))),\"\")","v":""},null,null,"",null," ",null,"No Results Reported",null,null,"",null," ",null,null,"No Results Reported",null,null,""," ",null,"No Results Reported"]
[16,"Coverage16",{"$f":"IFERROR(INDEX('Coverage Indicator_Import-Expor'!$D$7:$D$210,MATCH(B26,'Coverage Indicator_Import-Expor'!$C$7:$C$210,0)),\"\")","v":""},{"$f":"IFERROR(INDEX('Coverage Indicator_Import-Expor'!$E$7:$E$210,MATCH(B26,'Coverage Indicator_Import-Expor'!$C$7:$C$210,0)),\"\")","v":""},{"$f":"IFERROR(IF(INDEX('Coverage Indicator_Import-Expor'!K$7:K$210,MATCH($B26,'Coverage Indicator_Import-Expor'!$C$7:$C$210,0))=\"\",\"\",INDEX('Coverage Indicator_Import-Expor'!K$7:K$210,MATCH($B26,'Coverage Indicator_Import-Expor'!$C$7:$C$210,0))),\"\")","v":""},{"$f":"IFERROR(IF(INDEX('Coverage Indicator_Import-Expor'!L$7:L$210,MATCH($B26,'Coverage Indicator_Import-Expor'!$C$7:$C$210,0))=\"\",\"\",INDEX('Coverage Indicator_Import-Expor'!L$7:L$210,MATCH($B26,'Coverage Indicator_Import-Expor'!$C$7:$C$210,0))),\"\")","v":""},{"$f":"IFERROR(IF(INDEX('Coverage Indicator_Import-Expor'!AR$7:AR$210,MATCH($B26,'Coverage Indicator_Import-Expor'!$C$7:$C$210,0))=\"\",\"\",INDEX('Coverage Indicator_Import-Expor'!AR$7:AR$210,MATCH($B26,'Coverage Indicator_Import-Expor'!$C$7:$C$210,0))),\"\")","v":""},{"$f":"IFERROR(IF(INDEX('Coverage Indicator_Import-Expor'!AS$7:AS$210,MATCH($B26,'Coverage Indicator_Import-Expor'!$C$7:$C$210,0))=\"\",\"\",INDEX('Coverage Indicator_Import-Expor'!AS$7:AS$210,MATCH($B26,'Coverage Indicator_Import-Expor'!$C$7:$C$210,0))),\"\")","v":""},{"$f":"IFERROR(IF(INDEX('Coverage Indicator_Import-Expor'!N$7:N$210,MATCH($B26,'Coverage Indicator_Import-Expor'!$C$7:$C$210,0))=\"\",\"\",INDEX('Coverage Indicator_Import-Expor'!N$7:N$210,MATCH($B26,'Coverage Indicator_Import-Expor'!$C$7:$C$210,0))),\"\")","v":""},{"$f":"IFERROR(IF(INDEX('Coverage Indicator_Import-Expor'!O$7:O$210,MATCH($B26,'Coverage Indicator_Import-Expor'!$C$7:$C$210,0))=\"\",\"\",INDEX('Coverage Indicator_Import-Expor'!O$7:O$210,MATCH($B26,'Coverage Indicator_Import-Expor'!$C$7:$C$210,0))),\"\")","v":""},{"$f":"IFERROR(IF(INDEX('Coverage Indicator_Import-Expor'!P$7:P$210,MATCH($B26,'Coverage Indicator_Import-Expor'!$C$7:$C$210,0))=\"\",\"\",INDEX('Coverage Indicator_Import-Expor'!P$7:P$210,MATCH($B26,'Coverage Indicator_Import-Expor'!$C$7:$C$210,0))),\"\")","v":""},{"$f":"IFERROR(IF(INDEX('Coverage Indicator_Import-Expor'!Q$7:Q$210,MATCH($B26,'Coverage Indicator_Import-Expor'!$C$7:$C$210,0))=\"\",\"\",INDEX('Coverage Indicator_Import-Expor'!Q$7:Q$210,MATCH($B26,'Coverage Indicator_Import-Expor'!$C$7:$C$210,0))),\"\")","v":""},{"$f":"IFERROR(IF(INDEX('Coverage Indicator_Import-Expor'!R$7:R$210,MATCH($B26,'Coverage Indicator_Import-Expor'!$C$7:$C$210,0))=\"\",\"\",INDEX('Coverage Indicator_Import-Expor'!R$7:R$210,MATCH($B26,'Coverage Indicator_Import-Expor'!$C$7:$C$210,0))),\"\")","v":""},{"$f":"IFERROR(IF(INDEX('Coverage Indicator_Import-Expor'!S$7:S$210,MATCH($B26,'Coverage Indicator_Import-Expor'!$C$7:$C$210,0))=\"\",\"\",INDEX('Coverage Indicator_Import-Expor'!S$7:S$210,MATCH($B26,'Coverage Indicator_Import-Expor'!$C$7:$C$210,0))),\"\")","v":""},{"$f":"IFERROR(IF(INDEX('Coverage Indicator_Import-Expor'!T$7:T$210,MATCH($B26,'Coverage Indicator_Import-Expor'!$C$7:$C$210,0))=\"\",\"\",INDEX('Coverage Indicator_Import-Expor'!T$7:T$210,MATCH($B26,'Coverage Indicator_Import-Expor'!$C$7:$C$210,0))),\"\")","v":""},{"$f":"IFERROR(IF(INDEX('Coverage Indicator_Import-Expor'!U$7:U$210,MATCH($B26,'Coverage Indicator_Import-Expor'!$C$7:$C$210,0))=\"\",\"\",INDEX('Coverage Indicator_Import-Expor'!U$7:U$210,MATCH($B26,'Coverage Indicator_Import-Expor'!$C$7:$C$210,0))),\"\")","v":""},null,null,"",null," ",null,"No Results Reported",null,null,"",null," ",null,null,"No Results Reported",null,null,""," ",null,"No Results Reported"]
[17,"Coverage17",{"$f":"IFERROR(INDEX('Coverage Indicator_Import-Expor'!$D$7:$D$210,MATCH(B27,'Coverage Indicator_Import-Expor'!$C$7:$C$210,0)),\"\")","v":""},{"$f":"IFERROR(INDEX('Coverage Indicator_Import-Expor'!$E$7:$E$210,MATCH(B27,'Coverage Indicator_Import-Expor'!$C$7:$C$210,0)),\"\")","v":""},{"$f":"IFERROR(IF(INDEX('Coverage Indicator_Import-Expor'!K$7:K$210,MATCH($B27,'Coverage Indicator_Import-Expor'!$C$7:$C$210,0))=\"\",\"\",INDEX('Coverage Indicator_Import-Expor'!K$7:K$210,MATCH($B27,'Coverage Indicator_Import-Expor'!$C$7:$C$210,0))),\"\")","v":""},{"$f":"IFERROR(IF(INDEX('Coverage Indicator_Import-Expor'!L$7:L$210,MATCH($B27,'Coverage Indicator_Import-Expor'!$C$7:$C$210,0))=\"\",\"\",INDEX('Coverage Indicator_Import-Expor'!L$7:L$210,MATCH($B27,'Coverage Indicator_Import-Expor'!$C$7:$C$210,0))),\"\")","v":""},{"$f":"IFERROR(IF(INDEX('Coverage Indicator_Import-Expor'!AR$7:AR$210,MATCH($B27,'Coverage Indicator_Import-Expor'!$C$7:$C$210,0))=\"\",\"\",INDEX('Coverage Indicator_Import-Expor'!AR$7:AR$210,MATCH($B27,'Coverage Indicator_Import-Expor'!$C$7:$C$210,0))),\"\")","v":""},{"$f":"IFERROR(IF(INDEX('Coverage Indicator_Import-Expor'!AS$7:AS$210,MATCH($B27,'Coverage Indicator_Import-Expor'!$C$7:$C$210,0))=\"\",\"\",INDEX('Coverage Indicator_Import-Expor'!AS$7:AS$210,MATCH($B27,'Coverage Indicator_Import-Expor'!$C$7:$C$210,0))),\"\")","v":""},{"$f":"IFERROR(IF(INDEX('Coverage Indicator_Import-Expor'!N$7:N$210,MATCH($B27,'Coverage Indicator_Import-Expor'!$C$7:$C$210,0))=\"\",\"\",INDEX('Coverage Indicator_Import-Expor'!N$7:N$210,MATCH($B27,'Coverage Indicator_Import-Expor'!$C$7:$C$210,0))),\"\")","v":""},{"$f":"IFERROR(IF(INDEX('Coverage Indicator_Import-Expor'!O$7:O$210,MATCH($B27,'Coverage Indicator_Import-Expor'!$C$7:$C$210,0))=\"\",\"\",INDEX('Coverage Indicator_Import-Expor'!O$7:O$210,MATCH($B27,'Coverage Indicator_Import-Expor'!$C$7:$C$210,0))),\"\")","v":""},{"$f":"IFERROR(IF(INDEX('Coverage Indicator_Import-Expor'!P$7:P$210,MATCH($B27,'Coverage Indicator_Import-Expor'!$C$7:$C$210,0))=\"\",\"\",INDEX('Coverage Indicator_Import-Expor'!P$7:P$210,MATCH($B27,'Coverage Indicator_Import-Expor'!$C$7:$C$210,0))),\"\")","v":""},{"$f":"IFERROR(IF(INDEX('Coverage Indicator_Import-Expor'!Q$7:Q$210,MATCH($B27,'Coverage Indicator_Import-Expor'!$C$7:$C$210,0))=\"\",\"\",INDEX('Coverage Indicator_Import-Expor'!Q$7:Q$210,MATCH($B27,'Coverage Indicator_Import-Expor'!$C$7:$C$210,0))),\"\")","v":""},{"$f":"IFERROR(IF(INDEX('Coverage Indicator_Import-Expor'!R$7:R$210,MATCH($B27,'Coverage Indicator_Import-Expor'!$C$7:$C$210,0))=\"\",\"\",INDEX('Coverage Indicator_Import-Expor'!R$7:R$210,MATCH($B27,'Coverage Indicator_Import-Expor'!$C$7:$C$210,0))),\"\")","v":""},{"$f":"IFERROR(IF(INDEX('Coverage Indicator_Import-Expor'!S$7:S$210,MATCH($B27,'Coverage Indicator_Import-Expor'!$C$7:$C$210,0))=\"\",\"\",INDEX('Coverage Indicator_Import-Expor'!S$7:S$210,MATCH($B27,'Coverage Indicator_Import-Expor'!$C$7:$C$210,0))),\"\")","v":""},{"$f":"IFERROR(IF(INDEX('Coverage Indicator_Import-Expor'!T$7:T$210,MATCH($B27,'Coverage Indicator_Import-Expor'!$C$7:$C$210,0))=\"\",\"\",INDEX('Coverage Indicator_Import-Expor'!T$7:T$210,MATCH($B27,'Coverage Indicator_Import-Expor'!$C$7:$C$210,0))),\"\")","v":""},{"$f":"IFERROR(IF(INDEX('Coverage Indicator_Import-Expor'!U$7:U$210,MATCH($B27,'Coverage Indicator_Import-Expor'!$C$7:$C$210,0))=\"\",\"\",INDEX('Coverage Indicator_Import-Expor'!U$7:U$210,MATCH($B27,'Coverage Indicator_Import-Expor'!$C$7:$C$210,0))),\"\")","v":""},null,null,"",null," ",null,"No Results Reported",null,null,"",null," ",null,null,"No Results Reported",null,null,""," ",null,"No Results Reported"]
[18,"Coverage18",{"$f":"IFERROR(INDEX('Coverage Indicator_Import-Expor'!$D$7:$D$210,MATCH(B28,'Coverage Indicator_Import-Expor'!$C$7:$C$210,0)),\"\")","v":""},{"$f":"IFERROR(INDEX('Coverage Indicator_Import-Expor'!$E$7:$E$210,MATCH(B28,'Coverage Indicator_Import-Expor'!$C$7:$C$210,0)),\"\")","v":""},{"$f":"IFERROR(IF(INDEX('Coverage Indicator_Import-Expor'!K$7:K$210,MATCH($B28,'Coverage Indicator_Import-Expor'!$C$7:$C$210,0))=\"\",\"\",INDEX('Coverage Indicator_Import-Expor'!K$7:K$210,MATCH($B28,'Coverage Indicator_Import-Expor'!$C$7:$C$210,0))),\"\")","v":""},{"$f":"IFERROR(IF(INDEX('Coverage Indicator_Import-Expor'!L$7:L$210,MATCH($B28,'Coverage Indicator_Import-Expor'!$C$7:$C$210,0))=\"\",\"\",INDEX('Coverage Indicator_Import-Expor'!L$7:L$210,MATCH($B28,'Coverage Indicator_Import-Expor'!$C$7:$C$210,0))),\"\")","v":""},{"$f":"IFERROR(IF(INDEX('Coverage Indicator_Import-Expor'!AR$7:AR$210,MATCH($B28,'Coverage Indicator_Import-Expor'!$C$7:$C$210,0))=\"\",\"\",INDEX('Coverage Indicator_Import-Expor'!AR$7:AR$210,MATCH($B28,'Coverage Indicator_Import-Expor'!$C$7:$C$210,0))),\"\")","v":""},{"$f":"IFERROR(IF(INDEX('Coverage Indicator_Import-Expor'!AS$7:AS$210,MATCH($B28,'Coverage Indicator_Import-Expor'!$C$7:$C$210,0))=\"\",\"\",INDEX('Coverage Indicator_Import-Expor'!AS$7:AS$210,MATCH($B28,'Coverage Indicator_Import-Expor'!$C$7:$C$210,0))),\"\")","v":""},{"$f":"IFERROR(IF(INDEX('Coverage Indicator_Import-Expor'!N$7:N$210,MATCH($B28,'Coverage Indicator_Import-Expor'!$C$7:$C$210,0))=\"\",\"\",INDEX('Coverage Indicator_Import-Expor'!N$7:N$210,MATCH($B28,'Coverage Indicator_Import-Expor'!$C$7:$C$210,0))),\"\")","v":""},{"$f":"IFERROR(IF(INDEX('Coverage Indicator_Import-Expor'!O$7:O$210,MATCH($B28,'Coverage Indicator_Import-Expor'!$C$7:$C$210,0))=\"\",\"\",INDEX('Coverage Indicator_Import-Expor'!O$7:O$210,MATCH($B28,'Coverage Indicator_Import-Expor'!$C$7:$C$210,0))),\"\")","v":""},{"$f":"IFERROR(IF(INDEX('Coverage Indicator_Import-Expor'!P$7:P$210,MATCH($B28,'Coverage Indicator_Import-Expor'!$C$7:$C$210,0))=\"\",\"\",INDEX('Coverage Indicator_Import-Expor'!P$7:P$210,MATCH($B28,'Coverage Indicator_Import-Expor'!$C$7:$C$210,0))),\"\")","v":""},{"$f":"IFERROR(IF(INDEX('Coverage Indicator_Import-Expor'!Q$7:Q$210,MATCH($B28,'Coverage Indicator_Import-Expor'!$C$7:$C$210,0))=\"\",\"\",INDEX('Coverage Indicator_Import-Expor'!Q$7:Q$210,MATCH($B28,'Coverage Indicator_Import-Expor'!$C$7:$C$210,0))),\"\")","v":""},{"$f":"IFERROR(IF(INDEX('Coverage Indicator_Import-Expor'!R$7:R$210,MATCH($B28,'Coverage Indicator_Import-Expor'!$C$7:$C$210,0))=\"\",\"\",INDEX('Coverage Indicator_Import-Expor'!R$7:R$210,MATCH($B28,'Coverage Indicator_Import-Expor'!$C$7:$C$210,0))),\"\")","v":""},{"$f":"IFERROR(IF(INDEX('Coverage Indicator_Import-Expor'!S$7:S$210,MATCH($B28,'Coverage Indicator_Import-Expor'!$C$7:$C$210,0))=\"\",\"\",INDEX('Coverage Indicator_Import-Expor'!S$7:S$210,MATCH($B28,'Coverage Indicator_Import-Expor'!$C$7:$C$210,0))),\"\")","v":""},{"$f":"IFERROR(IF(INDEX('Coverage Indicator_Import-Expor'!T$7:T$210,MATCH($B28,'Coverage Indicator_Import-Expor'!$C$7:$C$210,0))=\"\",\"\",INDEX('Coverage Indicator_Import-Expor'!T$7:T$210,MATCH($B28,'Coverage Indicator_Import-Expor'!$C$7:$C$210,0))),\"\")","v":""},{"$f":"IFERROR(IF(INDEX('Coverage Indicator_Import-Expor'!U$7:U$210,MATCH($B28,'Coverage Indicator_Import-Expor'!$C$7:$C$210,0))=\"\",\"\",INDEX('Coverage Indicator_Import-Expor'!U$7:U$210,MATCH($B28,'Coverage Indicator_Import-Expor'!$C$7:$C$210,0))),\"\")","v":""},null,null,"",null," ",null,"No Results Reported",null,null,"",null," ",null,null,"No Results Reported",null,null,""," ",null,"No Results Reported"]
[19,"Coverage19",{"$f":"IFERROR(INDEX('Coverage Indicator_Import-Expor'!$D$7:$D$210,MATCH(B29,'Coverage Indicator_Import-Expor'!$C$7:$C$210,0)),\"\")","v":""},{"$f":"IFERROR(INDEX('Coverage Indicator_Import-Expor'!$E$7:$E$210,MATCH(B29,'Coverage Indicator_Import-Expor'!$C$7:$C$210,0)),\"\")","v":""},{"$f":"IFERROR(IF(INDEX('Coverage Indicator_Import-Expor'!K$7:K$210,MATCH($B29,'Coverage Indicator_Import-Expor'!$C$7:$C$210,0))=\"\",\"\",INDEX('Coverage Indicator_Import-Expor'!K$7:K$210,MATCH($B29,'Coverage Indicator_Import-Expor'!$C$7:$C$210,0))),\"\")","v":""},{"$f":"IFERROR(IF(INDEX('Coverage Indicator_Import-Expor'!L$7:L$210,MATCH($B29,'Coverage Indicator_Import-Expor'!$C$7:$C$210,0))=\"\",\"\",INDEX('Coverage Indicator_Import-Expor'!L$7:L$210,MATCH($B29,'Coverage Indicator_Import-Expor'!$C$7:$C$210,0))),\"\")","v":""},{"$f":"IFERROR(IF(INDEX('Coverage Indicator_Import-Expor'!AR$7:AR$210,MATCH($B29,'Coverage Indicator_Import-Expor'!$C$7:$C$210,0))=\"\",\"\",INDEX('Coverage Indicator_Import-Expor'!AR$7:AR$210,MATCH($B29,'Coverage Indicator_Import-Expor'!$C$7:$C$210,0))),\"\")","v":""},{"$f":"IFERROR(IF(INDEX('Coverage Indicator_Import-Expor'!AS$7:AS$210,MATCH($B29,'Coverage Indicator_Import-Expor'!$C$7:$C$210,0))=\"\",\"\",INDEX('Coverage Indicator_Import-Expor'!AS$7:AS$210,MATCH($B29,'Coverage Indicator_Import-Expor'!$C$7:$C$210,0))),\"\")","v":""},{"$f":"IFERROR(IF(INDEX('Coverage Indicator_Import-Expor'!N$7:N$210,MATCH($B29,'Coverage Indicator_Import-Expor'!$C$7:$C$210,0))=\"\",\"\",INDEX('Coverage Indicator_Import-Expor'!N$7:N$210,MATCH($B29,'Coverage Indicator_Import-Expor'!$C$7:$C$210,0))),\"\")","v":""},{"$f":"IFERROR(IF(INDEX('Coverage Indicator_Import-Expor'!O$7:O$210,MATCH($B29,'Coverage Indicator_Import-Expor'!$C$7:$C$210,0))=\"\",\"\",INDEX('Coverage Indicator_Import-Expor'!O$7:O$210,MATCH($B29,'Coverage Indicator_Import-Expor'!$C$7:$C$210,0))),\"\")","v":""},{"$f":"IFERROR(IF(INDEX('Coverage Indicator_Import-Expor'!P$7:P$210,MATCH($B29,'Coverage Indicator_Import-Expor'!$C$7:$C$210,0))=\"\",\"\",INDEX('Coverage Indicator_Import-Expor'!P$7:P$210,MATCH($B29,'Coverage Indicator_Import-Expor'!$C$7:$C$210,0))),\"\")","v":""},{"$f":"IFERROR(IF(INDEX('Coverage Indicator_Import-Expor'!Q$7:Q$210,MATCH($B29,'Coverage Indicator_Import-Expor'!$C$7:$C$210,0))=\"\",\"\",INDEX('Coverage Indicator_Import-Expor'!Q$7:Q$210,MATCH($B29,'Coverage Indicator_Import-Expor'!$C$7:$C$210,0))),\"\")","v":""},{"$f":"IFERROR(IF(INDEX('Coverage Indicator_Import-Expor'!R$7:R$210,MATCH($B29,'Coverage Indicator_Import-Expor'!$C$7:$C$210,0))=\"\",\"\",INDEX('Coverage Indicator_Import-Expor'!R$7:R$210,MATCH($B29,'Coverage Indicator_Import-Expor'!$C$7:$C$210,0))),\"\")","v":""},{"$f":"IFERROR(IF(INDEX('Coverage Indicator_Import-Expor'!S$7:S$210,MATCH($B29,'Coverage Indicator_Import-Expor'!$C$7:$C$210,0))=\"\",\"\",INDEX('Coverage Indicator_Import-Expor'!S$7:S$210,MATCH($B29,'Coverage Indicator_Import-Expor'!$C$7:$C$210,0))),\"\")","v":""},{"$f":"IFERROR(IF(INDEX('Coverage Indicator_Import-Expor'!T$7:T$210,MATCH($B29,'Coverage Indicator_Import-Expor'!$C$7:$C$210,0))=\"\",\"\",INDEX('Coverage Indicator_Import-Expor'!T$7:T$210,MATCH($B29,'Coverage Indicator_Import-Expor'!$C$7:$C$210,0))),\"\")","v":""},{"$f":"IFERROR(IF(INDEX('Coverage Indicator_Import-Expor'!U$7:U$210,MATCH($B29,'Coverage Indicator_Import-Expor'!$C$7:$C$210,0))=\"\",\"\",INDEX('Coverage Indicator_Import-Expor'!U$7:U$210,MATCH($B29,'Coverage Indicator_Import-Expor'!$C$7:$C$210,0))),\"\")","v":""},null,null,"",null," ",null,"No Results Reported",null,null,"",null," ",null,null,"No Results Reported",null,null,""," ",null,"No Results Reported"]
[20,"Coverage20",{"$f":"IFERROR(INDEX('Coverage Indicator_Import-Expor'!$D$7:$D$210,MATCH(B30,'Coverage Indicator_Import-Expor'!$C$7:$C$210,0)),\"\")","v":""},{"$f":"IFERROR(INDEX('Coverage Indicator_Import-Expor'!$E$7:$E$210,MATCH(B30,'Coverage Indicator_Import-Expor'!$C$7:$C$210,0)),\"\")","v":""},{"$f":"IFERROR(IF(INDEX('Coverage Indicator_Import-Expor'!K$7:K$210,MATCH($B30,'Coverage Indicator_Import-Expor'!$C$7:$C$210,0))=\"\",\"\",INDEX('Coverage Indicator_Import-Expor'!K$7:K$210,MATCH($B30,'Coverage Indicator_Import-Expor'!$C$7:$C$210,0))),\"\")","v":""},{"$f":"IFERROR(IF(INDEX('Coverage Indicator_Import-Expor'!L$7:L$210,MATCH($B30,'Coverage Indicator_Import-Expor'!$C$7:$C$210,0))=\"\",\"\",INDEX('Coverage Indicator_Import-Expor'!L$7:L$210,MATCH($B30,'Coverage Indicator_Import-Expor'!$C$7:$C$210,0))),\"\")","v":""},{"$f":"IFERROR(IF(INDEX('Coverage Indicator_Import-Expor'!AR$7:AR$210,MATCH($B30,'Coverage Indicator_Import-Expor'!$C$7:$C$210,0))=\"\",\"\",INDEX('Coverage Indicator_Import-Expor'!AR$7:AR$210,MATCH($B30,'Coverage Indicator_Import-Expor'!$C$7:$C$210,0))),\"\")","v":""},{"$f":"IFERROR(IF(INDEX('Coverage Indicator_Import-Expor'!AS$7:AS$210,MATCH($B30,'Coverage Indicator_Import-Expor'!$C$7:$C$210,0))=\"\",\"\",INDEX('Coverage Indicator_Import-Expor'!AS$7:AS$210,MATCH($B30,'Coverage Indicator_Import-Expor'!$C$7:$C$210,0))),\"\")","v":""},{"$f":"IFERROR(IF(INDEX('Coverage Indicator_Import-Expor'!N$7:N$210,MATCH($B30,'Coverage Indicator_Import-Expor'!$C$7:$C$210,0))=\"\",\"\",INDEX('Coverage Indicator_Import-Expor'!N$7:N$210,MATCH($B30,'Coverage Indicator_Import-Expor'!$C$7:$C$210,0))),\"\")","v":""},{"$f":"IFERROR(IF(INDEX('Coverage Indicator_Import-Expor'!O$7:O$210,MATCH($B30,'Coverage Indicator_Import-Expor'!$C$7:$C$210,0))=\"\",\"\",INDEX('Coverage Indicator_Import-Expor'!O$7:O$210,MATCH($B30,'Coverage Indicator_Import-Expor'!$C$7:$C$210,0))),\"\")","v":""},{"$f":"IFERROR(IF(INDEX('Coverage Indicator_Import-Expor'!P$7:P$210,MATCH($B30,'Coverage Indicator_Import-Expor'!$C$7:$C$210,0))=\"\",\"\",INDEX('Coverage Indicator_Import-Expor'!P$7:P$210,MATCH($B30,'Coverage Indicator_Import-Expor'!$C$7:$C$210,0))),\"\")","v":""},{"$f":"IFERROR(IF(INDEX('Coverage Indicator_Import-Expor'!Q$7:Q$210,MATCH($B30,'Coverage Indicator_Import-Expor'!$C$7:$C$210,0))=\"\",\"\",INDEX('Coverage Indicator_Import-Expor'!Q$7:Q$210,MATCH($B30,'Coverage Indicator_Import-Expor'!$C$7:$C$210,0))),\"\")","v":""},{"$f":"IFERROR(IF(INDEX('Coverage Indicator_Import-Expor'!R$7:R$210,MATCH($B30,'Coverage Indicator_Import-Expor'!$C$7:$C$210,0))=\"\",\"\",INDEX('Coverage Indicator_Import-Expor'!R$7:R$210,MATCH($B30,'Coverage Indicator_Import-Expor'!$C$7:$C$210,0))),\"\")","v":""},{"$f":"IFERROR(IF(INDEX('Coverage Indicator_Import-Expor'!S$7:S$210,MATCH($B30,'Coverage Indicator_Import-Expor'!$C$7:$C$210,0))=\"\",\"\",INDEX('Coverage Indicator_Import-Expor'!S$7:S$210,MATCH($B30,'Coverage Indicator_Import-Expor'!$C$7:$C$210,0))),\"\")","v":""},{"$f":"IFERROR(IF(INDEX('Coverage Indicator_Import-Expor'!T$7:T$210,MATCH($B30,'Coverage Indicator_Import-Expor'!$C$7:$C$210,0))=\"\",\"\",INDEX('Coverage Indicator_Import-Expor'!T$7:T$210,MATCH($B30,'Coverage Indicator_Import-Expor'!$C$7:$C$210,0))),\"\")","v":""},{"$f":"IFERROR(IF(INDEX('Coverage Indicator_Import-Expor'!U$7:U$210,MATCH($B30,'Coverage Indicator_Import-Expor'!$C$7:$C$210,0))=\"\",\"\",INDEX('Coverage Indicator_Import-Expor'!U$7:U$210,MATCH($B30,'Coverage Indicator_Import-Expor'!$C$7:$C$210,0))),\"\")","v":""},null,null,"",null," ",null,"No Results Reported",null,null,"",null," ",null,null,"No Results Reported",null,null,""," ",null,"No Results Reported"]
[21,"Coverage21",{"$f":"IFERROR(INDEX('Coverage Indicator_Import-Expor'!$D$7:$D$210,MATCH(B31,'Coverage Indicator_Import-Expor'!$C$7:$C$210,0)),\"\")","v":""},{"$f":"IFERROR(INDEX('Coverage Indicator_Import-Expor'!$E$7:$E$210,MATCH(B31,'Coverage Indicator_Import-Expor'!$C$7:$C$210,0)),\"\")","v":""},{"$f":"IFERROR(IF(INDEX('Coverage Indicator_Import-Expor'!K$7:K$210,MATCH($B31,'Coverage Indicator_Import-Expor'!$C$7:$C$210,0))=\"\",\"\",INDEX('Coverage Indicator_Import-Expor'!K$7:K$210,MATCH($B31,'Coverage Indicator_Import-Expor'!$C$7:$C$210,0))),\"\")","v":""},{"$f":"IFERROR(IF(INDEX('Coverage Indicator_Import-Expor'!L$7:L$210,MATCH($B31,'Coverage Indicator_Import-Expor'!$C$7:$C$210,0))=\"\",\"\",INDEX('Coverage Indicator_Import-Expor'!L$7:L$210,MATCH($B31,'Coverage Indicator_Import-Expor'!$C$7:$C$210,0))),\"\")","v":""},{"$f":"IFERROR(IF(INDEX('Coverage Indicator_Import-Expor'!AR$7:AR$210,MATCH($B31,'Coverage Indicator_Import-Expor'!$C$7:$C$210,0))=\"\",\"\",INDEX('Coverage Indicator_Import-Expor'!AR$7:AR$210,MATCH($B31,'Coverage Indicator_Import-Expor'!$C$7:$C$210,0))),\"\")","v":""},{"$f":"IFERROR(IF(INDEX('Coverage Indicator_Import-Expor'!AS$7:AS$210,MATCH($B31,'Coverage Indicator_Import-Expor'!$C$7:$C$210,0))=\"\",\"\",INDEX('Coverage Indicator_Import-Expor'!AS$7:AS$210,MATCH($B31,'Coverage Indicator_Import-Expor'!$C$7:$C$210,0))),\"\")","v":""},{"$f":"IFERROR(IF(INDEX('Coverage Indicator_Import-Expor'!N$7:N$210,MATCH($B31,'Coverage Indicator_Import-Expor'!$C$7:$C$210,0))=\"\",\"\",INDEX('Coverage Indicator_Import-Expor'!N$7:N$210,MATCH($B31,'Coverage Indicator_Import-Expor'!$C$7:$C$210,0))),\"\")","v":""},{"$f":"IFERROR(IF(INDEX('Coverage Indicator_Import-Expor'!O$7:O$210,MATCH($B31,'Coverage Indicator_Import-Expor'!$C$7:$C$210,0))=\"\",\"\",INDEX('Coverage Indicator_Import-Expor'!O$7:O$210,MATCH($B31,'Coverage Indicator_Import-Expor'!$C$7:$C$210,0))),\"\")","v":""},{"$f":"IFERROR(IF(INDEX('Coverage Indicator_Import-Expor'!P$7:P$210,MATCH($B31,'Coverage Indicator_Import-Expor'!$C$7:$C$210,0))=\"\",\"\",INDEX('Coverage Indicator_Import-Expor'!P$7:P$210,MATCH($B31,'Coverage Indicator_Import-Expor'!$C$7:$C$210,0))),\"\")","v":""},{"$f":"IFERROR(IF(INDEX('Coverage Indicator_Import-Expor'!Q$7:Q$210,MATCH($B31,'Coverage Indicator_Import-Expor'!$C$7:$C$210,0))=\"\",\"\",INDEX('Coverage Indicator_Import-Expor'!Q$7:Q$210,MATCH($B31,'Coverage Indicator_Import-Expor'!$C$7:$C$210,0))),\"\")","v":""},{"$f":"IFERROR(IF(INDEX('Coverage Indicator_Import-Expor'!R$7:R$210,MATCH($B31,'Coverage Indicator_Import-Expor'!$C$7:$C$210,0))=\"\",\"\",INDEX('Coverage Indicator_Import-Expor'!R$7:R$210,MATCH($B31,'Coverage Indicator_Import-Expor'!$C$7:$C$210,0))),\"\")","v":""},{"$f":"IFERROR(IF(INDEX('Coverage Indicator_Import-Expor'!S$7:S$210,MATCH($B31,'Coverage Indicator_Import-Expor'!$C$7:$C$210,0))=\"\",\"\",INDEX('Coverage Indicator_Import-Expor'!S$7:S$210,MATCH($B31,'Coverage Indicator_Import-Expor'!$C$7:$C$210,0))),\"\")","v":""},{"$f":"IFERROR(IF(INDEX('Coverage Indicator_Import-Expor'!T$7:T$210,MATCH($B31,'Coverage Indicator_Import-Expor'!$C$7:$C$210,0))=\"\",\"\",INDEX('Coverage Indicator_Import-Expor'!T$7:T$210,MATCH($B31,'Coverage Indicator_Import-Expor'!$C$7:$C$210,0))),\"\")","v":""},{"$f":"IFERROR(IF(INDEX('Coverage Indicator_Import-Expor'!U$7:U$210,MATCH($B31,'Coverage Indicator_Import-Expor'!$C$7:$C$210,0))=\"\",\"\",INDEX('Coverage Indicator_Import-Expor'!U$7:U$210,MATCH($B31,'Coverage Indicator_Import-Expor'!$C$7:$C$210,0))),\"\")","v":""},null,null,"",null," ",null,"No Results Reported",null,null,"",null," ",null,null,"No Results Reported",null,null,""," ",null,"No Results Reported"]
[22,"Coverage22",{"$f":"IFERROR(INDEX('Coverage Indicator_Import-Expor'!$D$7:$D$210,MATCH(B32,'Coverage Indicator_Import-Expor'!$C$7:$C$210,0)),\"\")","v":""},{"$f":"IFERROR(INDEX('Coverage Indicator_Import-Expor'!$E$7:$E$210,MATCH(B32,'Coverage Indicator_Import-Expor'!$C$7:$C$210,0)),\"\")","v":""},{"$f":"IFERROR(IF(INDEX('Coverage Indicator_Import-Expor'!K$7:K$210,MATCH($B32,'Coverage Indicator_Import-Expor'!$C$7:$C$210,0))=\"\",\"\",INDEX('Coverage Indicator_Import-Expor'!K$7:K$210,MATCH($B32,'Coverage Indicator_Import-Expor'!$C$7:$C$210,0))),\"\")","v":""},{"$f":"IFERROR(IF(INDEX('Coverage Indicator_Import-Expor'!L$7:L$210,MATCH($B32,'Coverage Indicator_Import-Expor'!$C$7:$C$210,0))=\"\",\"\",INDEX('Coverage Indicator_Import-Expor'!L$7:L$210,MATCH($B32,'Coverage Indicator_Import-Expor'!$C$7:$C$210,0))),\"\")","v":""},{"$f":"IFERROR(IF(INDEX('Coverage Indicator_Import-Expor'!AR$7:AR$210,MATCH($B32,'Coverage Indicator_Import-Expor'!$C$7:$C$210,0))=\"\",\"\",INDEX('Coverage Indicator_Import-Expor'!AR$7:AR$210,MATCH($B32,'Coverage Indicator_Import-Expor'!$C$7:$C$210,0))),\"\")","v":""},{"$f":"IFERROR(IF(INDEX('Coverage Indicator_Import-Expor'!AS$7:AS$210,MATCH($B32,'Coverage Indicator_Import-Expor'!$C$7:$C$210,0))=\"\",\"\",INDEX('Coverage Indicator_Import-Expor'!AS$7:AS$210,MATCH($B32,'Coverage Indicator_Import-Expor'!$C$7:$C$210,0))),\"\")","v":""},{"$f":"IFERROR(IF(INDEX('Coverage Indicator_Import-Expor'!N$7:N$210,MATCH($B32,'Coverage Indicator_Import-Expor'!$C$7:$C$210,0))=\"\",\"\",INDEX('Coverage Indicator_Import-Expor'!N$7:N$210,MATCH($B32,'Coverage Indicator_Import-Expor'!$C$7:$C$210,0))),\"\")","v":""},{"$f":"IFERROR(IF(INDEX('Coverage Indicator_Import-Expor'!O$7:O$210,MATCH($B32,'Coverage Indicator_Import-Expor'!$C$7:$C$210,0))=\"\",\"\",INDEX('Coverage Indicator_Import-Expor'!O$7:O$210,MATCH($B32,'Coverage Indicator_Import-Expor'!$C$7:$C$210,0))),\"\")","v":""},{"$f":"IFERROR(IF(INDEX('Coverage Indicator_Import-Expor'!P$7:P$210,MATCH($B32,'Coverage Indicator_Import-Expor'!$C$7:$C$210,0))=\"\",\"\",INDEX('Coverage Indicator_Import-Expor'!P$7:P$210,MATCH($B32,'Coverage Indicator_Import-Expor'!$C$7:$C$210,0))),\"\")","v":""},{"$f":"IFERROR(IF(INDEX('Coverage Indicator_Import-Expor'!Q$7:Q$210,MATCH($B32,'Coverage Indicator_Import-Expor'!$C$7:$C$210,0))=\"\",\"\",INDEX('Coverage Indicator_Import-Expor'!Q$7:Q$210,MATCH($B32,'Coverage Indicator_Import-Expor'!$C$7:$C$210,0))),\"\")","v":""},{"$f":"IFERROR(IF(INDEX('Coverage Indicator_Import-Expor'!R$7:R$210,MATCH($B32,'Coverage Indicator_Import-Expor'!$C$7:$C$210,0))=\"\",\"\",INDEX('Coverage Indicator_Import-Expor'!R$7:R$210,MATCH($B32,'Coverage Indicator_Import-Expor'!$C$7:$C$210,0))),\"\")","v":""},{"$f":"IFERROR(IF(INDEX('Coverage Indicator_Import-Expor'!S$7:S$210,MATCH($B32,'Coverage Indicator_Import-Expor'!$C$7:$C$210,0))=\"\",\"\",INDEX('Coverage Indicator_Import-Expor'!S$7:S$210,MATCH($B32,'Coverage Indicator_Import-Expor'!$C$7:$C$210,0))),\"\")","v":""},{"$f":"IFERROR(IF(INDEX('Coverage Indicator_Import-Expor'!T$7:T$210,MATCH($B32,'Coverage Indicator_Import-Expor'!$C$7:$C$210,0))=\"\",\"\",INDEX('Coverage Indicator_Import-Expor'!T$7:T$210,MATCH($B32,'Coverage Indicator_Import-Expor'!$C$7:$C$210,0))),\"\")","v":""},{"$f":"IFERROR(IF(INDEX('Coverage Indicator_Import-Expor'!U$7:U$210,MATCH($B32,'Coverage Indicator_Import-Expor'!$C$7:$C$210,0))=\"\",\"\",INDEX('Coverage Indicator_Import-Expor'!U$7:U$210,MATCH($B32,'Coverage Indicator_Import-Expor'!$C$7:$C$210,0))),\"\")","v":""},null,null,"",null," ",null,"No Results Reported",null,null,"",null," ",null,null,"No Results Reported",null,null,""," ",null,"No Results Reported"]
[23,"Coverage23",{"$f":"IFERROR(INDEX('Coverage Indicator_Import-Expor'!$D$7:$D$210,MATCH(B33,'Coverage Indicator_Import-Expor'!$C$7:$C$210,0)),\"\")","v":""},{"$f":"IFERROR(INDEX('Coverage Indicator_Import-Expor'!$E$7:$E$210,MATCH(B33,'Coverage Indicator_Import-Expor'!$C$7:$C$210,0)),\"\")","v":""},{"$f":"IFERROR(IF(INDEX('Coverage Indicator_Import-Expor'!K$7:K$210,MATCH($B33,'Coverage Indicator_Import-Expor'!$C$7:$C$210,0))=\"\",\"\",INDEX('Coverage Indicator_Import-Expor'!K$7:K$210,MATCH($B33,'Coverage Indicator_Import-Expor'!$C$7:$C$210,0))),\"\")","v":""},{"$f":"IFERROR(IF(INDEX('Coverage Indicator_Import-Expor'!L$7:L$210,MATCH($B33,'Coverage Indicator_Import-Expor'!$C$7:$C$210,0))=\"\",\"\",INDEX('Coverage Indicator_Import-Expor'!L$7:L$210,MATCH($B33,'Coverage Indicator_Import-Expor'!$C$7:$C$210,0))),\"\")","v":""},{"$f":"IFERROR(IF(INDEX('Coverage Indicator_Import-Expor'!AR$7:AR$210,MATCH($B33,'Coverage Indicator_Import-Expor'!$C$7:$C$210,0))=\"\",\"\",INDEX('Coverage Indicator_Import-Expor'!AR$7:AR$210,MATCH($B33,'Coverage Indicator_Import-Expor'!$C$7:$C$210,0))),\"\")","v":""},{"$f":"IFERROR(IF(INDEX('Coverage Indicator_Import-Expor'!AS$7:AS$210,MATCH($B33,'Coverage Indicator_Import-Expor'!$C$7:$C$210,0))=\"\",\"\",INDEX('Coverage Indicator_Import-Expor'!AS$7:AS$210,MATCH($B33,'Coverage Indicator_Import-Expor'!$C$7:$C$210,0))),\"\")","v":""},{"$f":"IFERROR(IF(INDEX('Coverage Indicator_Import-Expor'!N$7:N$210,MATCH($B33,'Coverage Indicator_Import-Expor'!$C$7:$C$210,0))=\"\",\"\",INDEX('Coverage Indicator_Import-Expor'!N$7:N$210,MATCH($B33,'Coverage Indicator_Import-Expor'!$C$7:$C$210,0))),\"\")","v":""},{"$f":"IFERROR(IF(INDEX('Coverage Indicator_Import-Expor'!O$7:O$210,MATCH($B33,'Coverage Indicator_Import-Expor'!$C$7:$C$210,0))=\"\",\"\",INDEX('Coverage Indicator_Import-Expor'!O$7:O$210,MATCH($B33,'Coverage Indicator_Import-Expor'!$C$7:$C$210,0))),\"\")","v":""},{"$f":"IFERROR(IF(INDEX('Coverage Indicator_Import-Expor'!P$7:P$210,MATCH($B33,'Coverage Indicator_Import-Expor'!$C$7:$C$210,0))=\"\",\"\",INDEX('Coverage Indicator_Import-Expor'!P$7:P$210,MATCH($B33,'Coverage Indicator_Import-Expor'!$C$7:$C$210,0))),\"\")","v":""},{"$f":"IFERROR(IF(INDEX('Coverage Indicator_Import-Expor'!Q$7:Q$210,MATCH($B33,'Coverage Indicator_Import-Expor'!$C$7:$C$210,0))=\"\",\"\",INDEX('Coverage Indicator_Import-Expor'!Q$7:Q$210,MATCH($B33,'Coverage Indicator_Import-Expor'!$C$7:$C$210,0))),\"\")","v":""},{"$f":"IFERROR(IF(INDEX('Coverage Indicator_Import-Expor'!R$7:R$210,MATCH($B33,'Coverage Indicator_Import-Expor'!$C$7:$C$210,0))=\"\",\"\",INDEX('Coverage Indicator_Import-Expor'!R$7:R$210,MATCH($B33,'Coverage Indicator_Import-Expor'!$C$7:$C$210,0))),\"\")","v":""},{"$f":"IFERROR(IF(INDEX('Coverage Indicator_Import-Expor'!S$7:S$210,MATCH($B33,'Coverage Indicator_Import-Expor'!$C$7:$C$210,0))=\"\",\"\",INDEX('Coverage Indicator_Import-Expor'!S$7:S$210,MATCH($B33,'Coverage Indicator_Import-Expor'!$C$7:$C$210,0))),\"\")","v":""},{"$f":"IFERROR(IF(INDEX('Coverage Indicator_Import-Expor'!T$7:T$210,MATCH($B33,'Coverage Indicator_Import-Expor'!$C$7:$C$210,0))=\"\",\"\",INDEX('Coverage Indicator_Import-Expor'!T$7:T$210,MATCH($B33,'Coverage Indicator_Import-Expor'!$C$7:$C$210,0))),\"\")","v":""},{"$f":"IFERROR(IF(INDEX('Coverage Indicator_Import-Expor'!U$7:U$210,MATCH($B33,'Coverage Indicator_Import-Expor'!$C$7:$C$210,0))=\"\",\"\",INDEX('Coverage Indicator_Import-Expor'!U$7:U$210,MATCH($B33,'Coverage Indicator_Import-Expor'!$C$7:$C$210,0))),\"\")","v":""},null,null,"",null," ",null,"No Results Reported",null,null,"",null," ",null,null,"No Results Reported",null,null,""," ",null,"No Results Reported"]
[24,"Coverage24",{"$f":"IFERROR(INDEX('Coverage Indicator_Import-Expor'!$D$7:$D$210,MATCH(B34,'Coverage Indicator_Import-Expor'!$C$7:$C$210,0)),\"\")","v":""},{"$f":"IFERROR(INDEX('Coverage Indicator_Import-Expor'!$E$7:$E$210,MATCH(B34,'Coverage Indicator_Import-Expor'!$C$7:$C$210,0)),\"\")","v":""},{"$f":"IFERROR(IF(INDEX('Coverage Indicator_Import-Expor'!K$7:K$210,MATCH($B34,'Coverage Indicator_Import-Expor'!$C$7:$C$210,0))=\"\",\"\",INDEX('Coverage Indicator_Import-Expor'!K$7:K$210,MATCH($B34,'Coverage Indicator_Import-Expor'!$C$7:$C$210,0))),\"\")","v":""},{"$f":"IFERROR(IF(INDEX('Coverage Indicator_Import-Expor'!L$7:L$210,MATCH($B34,'Coverage Indicator_Import-Expor'!$C$7:$C$210,0))=\"\",\"\",INDEX('Coverage Indicator_Import-Expor'!L$7:L$210,MATCH($B34,'Coverage Indicator_Import-Expor'!$C$7:$C$210,0))),\"\")","v":""},{"$f":"IFERROR(IF(INDEX('Coverage Indicator_Import-Expor'!AR$7:AR$210,MATCH($B34,'Coverage Indicator_Import-Expor'!$C$7:$C$210,0))=\"\",\"\",INDEX('Coverage Indicator_Import-Expor'!AR$7:AR$210,MATCH($B34,'Coverage Indicator_Import-Expor'!$C$7:$C$210,0))),\"\")","v":""},{"$f":"IFERROR(IF(INDEX('Coverage Indicator_Import-Expor'!AS$7:AS$210,MATCH($B34,'Coverage Indicator_Import-Expor'!$C$7:$C$210,0))=\"\",\"\",INDEX('Coverage Indicator_Import-Expor'!AS$7:AS$210,MATCH($B34,'Coverage Indicator_Import-Expor'!$C$7:$C$210,0))),\"\")","v":""},{"$f":"IFERROR(IF(INDEX('Coverage Indicator_Import-Expor'!N$7:N$210,MATCH($B34,'Coverage Indicator_Import-Expor'!$C$7:$C$210,0))=\"\",\"\",INDEX('Coverage Indicator_Import-Expor'!N$7:N$210,MATCH($B34,'Coverage Indicator_Import-Expor'!$C$7:$C$210,0))),\"\")","v":""},{"$f":"IFERROR(IF(INDEX('Coverage Indicator_Import-Expor'!O$7:O$210,MATCH($B34,'Coverage Indicator_Import-Expor'!$C$7:$C$210,0))=\"\",\"\",INDEX('Coverage Indicator_Import-Expor'!O$7:O$210,MATCH($B34,'Coverage Indicator_Import-Expor'!$C$7:$C$210,0))),\"\")","v":""},{"$f":"IFERROR(IF(INDEX('Coverage Indicator_Import-Expor'!P$7:P$210,MATCH($B34,'Coverage Indicator_Import-Expor'!$C$7:$C$210,0))=\"\",\"\",INDEX('Coverage Indicator_Import-Expor'!P$7:P$210,MATCH($B34,'Coverage Indicator_Import-Expor'!$C$7:$C$210,0))),\"\")","v":""},{"$f":"IFERROR(IF(INDEX('Coverage Indicator_Import-Expor'!Q$7:Q$210,MATCH($B34,'Coverage Indicator_Import-Expor'!$C$7:$C$210,0))=\"\",\"\",INDEX('Coverage Indicator_Import-Expor'!Q$7:Q$210,MATCH($B34,'Coverage Indicator_Import-Expor'!$C$7:$C$210,0))),\"\")","v":""},{"$f":"IFERROR(IF(INDEX('Coverage Indicator_Import-Expor'!R$7:R$210,MATCH($B34,'Coverage Indicator_Import-Expor'!$C$7:$C$210,0))=\"\",\"\",INDEX('Coverage Indicator_Import-Expor'!R$7:R$210,MATCH($B34,'Coverage Indicator_Import-Expor'!$C$7:$C$210,0))),\"\")","v":""},{"$f":"IFERROR(IF(INDEX('Coverage Indicator_Import-Expor'!S$7:S$210,MATCH($B34,'Coverage Indicator_Import-Expor'!$C$7:$C$210,0))=\"\",\"\",INDEX('Coverage Indicator_Import-Expor'!S$7:S$210,MATCH($B34,'Coverage Indicator_Import-Expor'!$C$7:$C$210,0))),\"\")","v":""},{"$f":"IFERROR(IF(INDEX('Coverage Indicator_Import-Expor'!T$7:T$210,MATCH($B34,'Coverage Indicator_Import-Expor'!$C$7:$C$210,0))=\"\",\"\",INDEX('Coverage Indicator_Import-Expor'!T$7:T$210,MATCH($B34,'Coverage Indicator_Import-Expor'!$C$7:$C$210,0))),\"\")","v":""},{"$f":"IFERROR(IF(INDEX('Coverage Indicator_Import-Expor'!U$7:U$210,MATCH($B34,'Coverage Indicator_Import-Expor'!$C$7:$C$210,0))=\"\",\"\",INDEX('Coverage Indicator_Import-Expor'!U$7:U$210,MATCH($B34,'Coverage Indicator_Import-Expor'!$C$7:$C$210,0))),\"\")","v":""},null,null,"",null," ",null,"No Results Reported",null,null,"",null," ",null,null,"No Results Reported",null,null,""," ",null,"No Results Reported"]
[25,"Coverage25",{"$f":"IFERROR(INDEX('Coverage Indicator_Import-Expor'!$D$7:$D$210,MATCH(B35,'Coverage Indicator_Import-Expor'!$C$7:$C$210,0)),\"\")","v":""},{"$f":"IFERROR(INDEX('Coverage Indicator_Import-Expor'!$E$7:$E$210,MATCH(B35,'Coverage Indicator_Import-Expor'!$C$7:$C$210,0)),\"\")","v":""},{"$f":"IFERROR(IF(INDEX('Coverage Indicator_Import-Expor'!K$7:K$210,MATCH($B35,'Coverage Indicator_Import-Expor'!$C$7:$C$210,0))=\"\",\"\",INDEX('Coverage Indicator_Import-Expor'!K$7:K$210,MATCH($B35,'Coverage Indicator_Import-Expor'!$C$7:$C$210,0))),\"\")","v":""},{"$f":"IFERROR(IF(INDEX('Coverage Indicator_Import-Expor'!L$7:L$210,MATCH($B35,'Coverage Indicator_Import-Expor'!$C$7:$C$210,0))=\"\",\"\",INDEX('Coverage Indicator_Import-Expor'!L$7:L$210,MATCH($B35,'Coverage Indicator_Import-Expor'!$C$7:$C$210,0))),\"\")","v":""},{"$f":"IFERROR(IF(INDEX('Coverage Indicator_Import-Expor'!AR$7:AR$210,MATCH($B35,'Coverage Indicator_Import-Expor'!$C$7:$C$210,0))=\"\",\"\",INDEX('Coverage Indicator_Import-Expor'!AR$7:AR$210,MATCH($B35,'Coverage Indicator_Import-Expor'!$C$7:$C$210,0))),\"\")","v":""},{"$f":"IFERROR(IF(INDEX('Coverage Indicator_Import-Expor'!AS$7:AS$210,MATCH($B35,'Coverage Indicator_Import-Expor'!$C$7:$C$210,0))=\"\",\"\",INDEX('Coverage Indicator_Import-Expor'!AS$7:AS$210,MATCH($B35,'Coverage Indicator_Import-Expor'!$C$7:$C$210,0))),\"\")","v":""},{"$f":"IFERROR(IF(INDEX('Coverage Indicator_Import-Expor'!N$7:N$210,MATCH($B35,'Coverage Indicator_Import-Expor'!$C$7:$C$210,0))=\"\",\"\",INDEX('Coverage Indicator_Import-Expor'!N$7:N$210,MATCH($B35,'Coverage Indicator_Import-Expor'!$C$7:$C$210,0))),\"\")","v":""},{"$f":"IFERROR(IF(INDEX('Coverage Indicator_Import-Expor'!O$7:O$210,MATCH($B35,'Coverage Indicator_Import-Expor'!$C$7:$C$210,0))=\"\",\"\",INDEX('Coverage Indicator_Import-Expor'!O$7:O$210,MATCH($B35,'Coverage Indicator_Import-Expor'!$C$7:$C$210,0))),\"\")","v":""},{"$f":"IFERROR(IF(INDEX('Coverage Indicator_Import-Expor'!P$7:P$210,MATCH($B35,'Coverage Indicator_Import-Expor'!$C$7:$C$210,0))=\"\",\"\",INDEX('Coverage Indicator_Import-Expor'!P$7:P$210,MATCH($B35,'Coverage Indicator_Import-Expor'!$C$7:$C$210,0))),\"\")","v":""},{"$f":"IFERROR(IF(INDEX('Coverage Indicator_Import-Expor'!Q$7:Q$210,MATCH($B35,'Coverage Indicator_Import-Expor'!$C$7:$C$210,0))=\"\",\"\",INDEX('Coverage Indicator_Import-Expor'!Q$7:Q$210,MATCH($B35,'Coverage Indicator_Import-Expor'!$C$7:$C$210,0))),\"\")","v":""},{"$f":"IFERROR(IF(INDEX('Coverage Indicator_Import-Expor'!R$7:R$210,MATCH($B35,'Coverage Indicator_Import-Expor'!$C$7:$C$210,0))=\"\",\"\",INDEX('Coverage Indicator_Import-Expor'!R$7:R$210,MATCH($B35,'Coverage Indicator_Import-Expor'!$C$7:$C$210,0))),\"\")","v":""},{"$f":"IFERROR(IF(INDEX('Coverage Indicator_Import-Expor'!S$7:S$210,MATCH($B35,'Coverage Indicator_Import-Expor'!$C$7:$C$210,0))=\"\",\"\",INDEX('Coverage Indicator_Import-Expor'!S$7:S$210,MATCH($B35,'Coverage Indicator_Import-Expor'!$C$7:$C$210,0))),\"\")","v":""},{"$f":"IFERROR(IF(INDEX('Coverage Indicator_Import-Expor'!T$7:T$210,MATCH($B35,'Coverage Indicator_Import-Expor'!$C$7:$C$210,0))=\"\",\"\",INDEX('Coverage Indicator_Import-Expor'!T$7:T$210,MATCH($B35,'Coverage Indicator_Import-Expor'!$C$7:$C$210,0))),\"\")","v":""},{"$f":"IFERROR(IF(INDEX('Coverage Indicator_Import-Expor'!U$7:U$210,MATCH($B35,'Coverage Indicator_Import-Expor'!$C$7:$C$210,0))=\"\",\"\",INDEX('Coverage Indicator_Import-Expor'!U$7:U$210,MATCH($B35,'Coverage Indicator_Import-Expor'!$C$7:$C$210,0))),\"\")","v":""},null,null,"",null," ",null,"No Results Reported",null,null,"",null," ",null,null,"No Results Reported",null,null,""," ",null,"No Results Reported"]
[26,"Coverage26",{"$f":"IFERROR(INDEX('Coverage Indicator_Import-Expor'!$D$7:$D$210,MATCH(B36,'Coverage Indicator_Import-Expor'!$C$7:$C$210,0)),\"\")","v":""},{"$f":"IFERROR(INDEX('Coverage Indicator_Import-Expor'!$E$7:$E$210,MATCH(B36,'Coverage Indicator_Import-Expor'!$C$7:$C$210,0)),\"\")","v":""},{"$f":"IFERROR(IF(INDEX('Coverage Indicator_Import-Expor'!K$7:K$210,MATCH($B36,'Coverage Indicator_Import-Expor'!$C$7:$C$210,0))=\"\",\"\",INDEX('Coverage Indicator_Import-Expor'!K$7:K$210,MATCH($B36,'Coverage Indicator_Import-Expor'!$C$7:$C$210,0))),\"\")","v":""},{"$f":"IFERROR(IF(INDEX('Coverage Indicator_Import-Expor'!L$7:L$210,MATCH($B36,'Coverage Indicator_Import-Expor'!$C$7:$C$210,0))=\"\",\"\",INDEX('Coverage Indicator_Import-Expor'!L$7:L$210,MATCH($B36,'Coverage Indicator_Import-Expor'!$C$7:$C$210,0))),\"\")","v":""},{"$f":"IFERROR(IF(INDEX('Coverage Indicator_Import-Expor'!AR$7:AR$210,MATCH($B36,'Coverage Indicator_Import-Expor'!$C$7:$C$210,0))=\"\",\"\",INDEX('Coverage Indicator_Import-Expor'!AR$7:AR$210,MATCH($B36,'Coverage Indicator_Import-Expor'!$C$7:$C$210,0))),\"\")","v":""},{"$f":"IFERROR(IF(INDEX('Coverage Indicator_Import-Expor'!AS$7:AS$210,MATCH($B36,'Coverage Indicator_Import-Expor'!$C$7:$C$210,0))=\"\",\"\",INDEX('Coverage Indicator_Import-Expor'!AS$7:AS$210,MATCH($B36,'Coverage Indicator_Import-Expor'!$C$7:$C$210,0))),\"\")","v":""},{"$f":"IFERROR(IF(INDEX('Coverage Indicator_Import-Expor'!N$7:N$210,MATCH($B36,'Coverage Indicator_Import-Expor'!$C$7:$C$210,0))=\"\",\"\",INDEX('Coverage Indicator_Import-Expor'!N$7:N$210,MATCH($B36,'Coverage Indicator_Import-Expor'!$C$7:$C$210,0))),\"\")","v":""},{"$f":"IFERROR(IF(INDEX('Coverage Indicator_Import-Expor'!O$7:O$210,MATCH($B36,'Coverage Indicator_Import-Expor'!$C$7:$C$210,0))=\"\",\"\",INDEX('Coverage Indicator_Import-Expor'!O$7:O$210,MATCH($B36,'Coverage Indicator_Import-Expor'!$C$7:$C$210,0))),\"\")","v":""},{"$f":"IFERROR(IF(INDEX('Coverage Indicator_Import-Expor'!P$7:P$210,MATCH($B36,'Coverage Indicator_Import-Expor'!$C$7:$C$210,0))=\"\",\"\",INDEX('Coverage Indicator_Import-Expor'!P$7:P$210,MATCH($B36,'Coverage Indicator_Import-Expor'!$C$7:$C$210,0))),\"\")","v":""},{"$f":"IFERROR(IF(INDEX('Coverage Indicator_Import-Expor'!Q$7:Q$210,MATCH($B36,'Coverage Indicator_Import-Expor'!$C$7:$C$210,0))=\"\",\"\",INDEX('Coverage Indicator_Import-Expor'!Q$7:Q$210,MATCH($B36,'Coverage Indicator_Import-Expor'!$C$7:$C$210,0))),\"\")","v":""},{"$f":"IFERROR(IF(INDEX('Coverage Indicator_Import-Expor'!R$7:R$210,MATCH($B36,'Coverage Indicator_Import-Expor'!$C$7:$C$210,0))=\"\",\"\",INDEX('Coverage Indicator_Import-Expor'!R$7:R$210,MATCH($B36,'Coverage Indicator_Import-Expor'!$C$7:$C$210,0))),\"\")","v":""},{"$f":"IFERROR(IF(INDEX('Coverage Indicator_Import-Expor'!S$7:S$210,MATCH($B36,'Coverage Indicator_Import-Expor'!$C$7:$C$210,0))=\"\",\"\",INDEX('Coverage Indicator_Import-Expor'!S$7:S$210,MATCH($B36,'Coverage Indicator_Import-Expor'!$C$7:$C$210,0))),\"\")","v":""},{"$f":"IFERROR(IF(INDEX('Coverage Indicator_Import-Expor'!T$7:T$210,MATCH($B36,'Coverage Indicator_Import-Expor'!$C$7:$C$210,0))=\"\",\"\",INDEX('Coverage Indicator_Import-Expor'!T$7:T$210,MATCH($B36,'Coverage Indicator_Import-Expor'!$C$7:$C$210,0))),\"\")","v":""},{"$f":"IFERROR(IF(INDEX('Coverage Indicator_Import-Expor'!U$7:U$210,MATCH($B36,'Coverage Indicator_Import-Expor'!$C$7:$C$210,0))=\"\",\"\",INDEX('Coverage Indicator_Import-Expor'!U$7:U$210,MATCH($B36,'Coverage Indicator_Import-Expor'!$C$7:$C$210,0))),\"\")","v":""},null,null,"",null," ",null,"No Results Reported",null,null,"",null," ",null,null,"No Results Reported",null,null,""," ",null,"No Results Reported"]
[27,"Coverage27",{"$f":"IFERROR(INDEX('Coverage Indicator_Import-Expor'!$D$7:$D$210,MATCH(B37,'Coverage Indicator_Import-Expor'!$C$7:$C$210,0)),\"\")","v":""},{"$f":"IFERROR(INDEX('Coverage Indicator_Import-Expor'!$E$7:$E$210,MATCH(B37,'Coverage Indicator_Import-Expor'!$C$7:$C$210,0)),\"\")","v":""},{"$f":"IFERROR(IF(INDEX('Coverage Indicator_Import-Expor'!K$7:K$210,MATCH($B37,'Coverage Indicator_Import-Expor'!$C$7:$C$210,0))=\"\",\"\",INDEX('Coverage Indicator_Import-Expor'!K$7:K$210,MATCH($B37,'Coverage Indicator_Import-Expor'!$C$7:$C$210,0))),\"\")","v":""},{"$f":"IFERROR(IF(INDEX('Coverage Indicator_Import-Expor'!L$7:L$210,MATCH($B37,'Coverage Indicator_Import-Expor'!$C$7:$C$210,0))=\"\",\"\",INDEX('Coverage Indicator_Import-Expor'!L$7:L$210,MATCH($B37,'Coverage Indicator_Import-Expor'!$C$7:$C$210,0))),\"\")","v":""},{"$f":"IFERROR(IF(INDEX('Coverage Indicator_Import-Expor'!AR$7:AR$210,MATCH($B37,'Coverage Indicator_Import-Expor'!$C$7:$C$210,0))=\"\",\"\",INDEX('Coverage Indicator_Import-Expor'!AR$7:AR$210,MATCH($B37,'Coverage Indicator_Import-Expor'!$C$7:$C$210,0))),\"\")","v":""},{"$f":"IFERROR(IF(INDEX('Coverage Indicator_Import-Expor'!AS$7:AS$210,MATCH($B37,'Coverage Indicator_Import-Expor'!$C$7:$C$210,0))=\"\",\"\",INDEX('Coverage Indicator_Import-Expor'!AS$7:AS$210,MATCH($B37,'Coverage Indicator_Import-Expor'!$C$7:$C$210,0))),\"\")","v":""},{"$f":"IFERROR(IF(INDEX('Coverage Indicator_Import-Expor'!N$7:N$210,MATCH($B37,'Coverage Indicator_Import-Expor'!$C$7:$C$210,0))=\"\",\"\",INDEX('Coverage Indicator_Import-Expor'!N$7:N$210,MATCH($B37,'Coverage Indicator_Import-Expor'!$C$7:$C$210,0))),\"\")","v":""},{"$f":"IFERROR(IF(INDEX('Coverage Indicator_Import-Expor'!O$7:O$210,MATCH($B37,'Coverage Indicator_Import-Expor'!$C$7:$C$210,0))=\"\",\"\",INDEX('Coverage Indicator_Import-Expor'!O$7:O$210,MATCH($B37,'Coverage Indicator_Import-Expor'!$C$7:$C$210,0))),\"\")","v":""},{"$f":"IFERROR(IF(INDEX('Coverage Indicator_Import-Expor'!P$7:P$210,MATCH($B37,'Coverage Indicator_Import-Expor'!$C$7:$C$210,0))=\"\",\"\",INDEX('Coverage Indicator_Import-Expor'!P$7:P$210,MATCH($B37,'Coverage Indicator_Import-Expor'!$C$7:$C$210,0))),\"\")","v":""},{"$f":"IFERROR(IF(INDEX('Coverage Indicator_Import-Expor'!Q$7:Q$210,MATCH($B37,'Coverage Indicator_Import-Expor'!$C$7:$C$210,0))=\"\",\"\",INDEX('Coverage Indicator_Import-Expor'!Q$7:Q$210,MATCH($B37,'Coverage Indicator_Import-Expor'!$C$7:$C$210,0))),\"\")","v":""},{"$f":"IFERROR(IF(INDEX('Coverage Indicator_Import-Expor'!R$7:R$210,MATCH($B37,'Coverage Indicator_Import-Expor'!$C$7:$C$210,0))=\"\",\"\",INDEX('Coverage Indicator_Import-Expor'!R$7:R$210,MATCH($B37,'Coverage Indicator_Import-Expor'!$C$7:$C$210,0))),\"\")","v":""},{"$f":"IFERROR(IF(INDEX('Coverage Indicator_Import-Expor'!S$7:S$210,MATCH($B37,'Coverage Indicator_Import-Expor'!$C$7:$C$210,0))=\"\",\"\",INDEX('Coverage Indicator_Import-Expor'!S$7:S$210,MATCH($B37,'Coverage Indicator_Import-Expor'!$C$7:$C$210,0))),\"\")","v":""},{"$f":"IFERROR(IF(INDEX('Coverage Indicator_Import-Expor'!T$7:T$210,MATCH($B37,'Coverage Indicator_Import-Expor'!$C$7:$C$210,0))=\"\",\"\",INDEX('Coverage Indicator_Import-Expor'!T$7:T$210,MATCH($B37,'Coverage Indicator_Import-Expor'!$C$7:$C$210,0))),\"\")","v":""},{"$f":"IFERROR(IF(INDEX('Coverage Indicator_Import-Expor'!U$7:U$210,MATCH($B37,'Coverage Indicator_Import-Expor'!$C$7:$C$210,0))=\"\",\"\",INDEX('Coverage Indicator_Import-Expor'!U$7:U$210,MATCH($B37,'Coverage Indicator_Import-Expor'!$C$7:$C$210,0))),\"\")","v":""},null,null,"",null," ",null,"No Results Reported",null,null,"",null," ",null,null,"No Results Reported",null,null,""," ",null,"No Results Reported"]
[28,"Coverage28",{"$f":"IFERROR(INDEX('Coverage Indicator_Import-Expor'!$D$7:$D$210,MATCH(B38,'Coverage Indicator_Import-Expor'!$C$7:$C$210,0)),\"\")","v":""},{"$f":"IFERROR(INDEX('Coverage Indicator_Import-Expor'!$E$7:$E$210,MATCH(B38,'Coverage Indicator_Import-Expor'!$C$7:$C$210,0)),\"\")","v":""},{"$f":"IFERROR(IF(INDEX('Coverage Indicator_Import-Expor'!K$7:K$210,MATCH($B38,'Coverage Indicator_Import-Expor'!$C$7:$C$210,0))=\"\",\"\",INDEX('Coverage Indicator_Import-Expor'!K$7:K$210,MATCH($B38,'Coverage Indicator_Import-Expor'!$C$7:$C$210,0))),\"\")","v":""},{"$f":"IFERROR(IF(INDEX('Coverage Indicator_Import-Expor'!L$7:L$210,MATCH($B38,'Coverage Indicator_Import-Expor'!$C$7:$C$210,0))=\"\",\"\",INDEX('Coverage Indicator_Import-Expor'!L$7:L$210,MATCH($B38,'Coverage Indicator_Import-Expor'!$C$7:$C$210,0))),\"\")","v":""},{"$f":"IFERROR(IF(INDEX('Coverage Indicator_Import-Expor'!AR$7:AR$210,MATCH($B38,'Coverage Indicator_Import-Expor'!$C$7:$C$210,0))=\"\",\"\",INDEX('Coverage Indicator_Import-Expor'!AR$7:AR$210,MATCH($B38,'Coverage Indicator_Import-Expor'!$C$7:$C$210,0))),\"\")","v":""},{"$f":"IFERROR(IF(INDEX('Coverage Indicator_Import-Expor'!AS$7:AS$210,MATCH($B38,'Coverage Indicator_Import-Expor'!$C$7:$C$210,0))=\"\",\"\",INDEX('Coverage Indicator_Import-Expor'!AS$7:AS$210,MATCH($B38,'Coverage Indicator_Import-Expor'!$C$7:$C$210,0))),\"\")","v":""},{"$f":"IFERROR(IF(INDEX('Coverage Indicator_Import-Expor'!N$7:N$210,MATCH($B38,'Coverage Indicator_Import-Expor'!$C$7:$C$210,0))=\"\",\"\",INDEX('Coverage Indicator_Import-Expor'!N$7:N$210,MATCH($B38,'Coverage Indicator_Import-Expor'!$C$7:$C$210,0))),\"\")","v":""},{"$f":"IFERROR(IF(INDEX('Coverage Indicator_Import-Expor'!O$7:O$210,MATCH($B38,'Coverage Indicator_Import-Expor'!$C$7:$C$210,0))=\"\",\"\",INDEX('Coverage Indicator_Import-Expor'!O$7:O$210,MATCH($B38,'Coverage Indicator_Import-Expor'!$C$7:$C$210,0))),\"\")","v":""},{"$f":"IFERROR(IF(INDEX('Coverage Indicator_Import-Expor'!P$7:P$210,MATCH($B38,'Coverage Indicator_Import-Expor'!$C$7:$C$210,0))=\"\",\"\",INDEX('Coverage Indicator_Import-Expor'!P$7:P$210,MATCH($B38,'Coverage Indicator_Import-Expor'!$C$7:$C$210,0))),\"\")","v":""},{"$f":"IFERROR(IF(INDEX('Coverage Indicator_Import-Expor'!Q$7:Q$210,MATCH($B38,'Coverage Indicator_Import-Expor'!$C$7:$C$210,0))=\"\",\"\",INDEX('Coverage Indicator_Import-Expor'!Q$7:Q$210,MATCH($B38,'Coverage Indicator_Import-Expor'!$C$7:$C$210,0))),\"\")","v":""},{"$f":"IFERROR(IF(INDEX('Coverage Indicator_Import-Expor'!R$7:R$210,MATCH($B38,'Coverage Indicator_Import-Expor'!$C$7:$C$210,0))=\"\",\"\",INDEX('Coverage Indicator_Import-Expor'!R$7:R$210,MATCH($B38,'Coverage Indicator_Import-Expor'!$C$7:$C$210,0))),\"\")","v":""},{"$f":"IFERROR(IF(INDEX('Coverage Indicator_Import-Expor'!S$7:S$210,MATCH($B38,'Coverage Indicator_Import-Expor'!$C$7:$C$210,0))=\"\",\"\",INDEX('Coverage Indicator_Import-Expor'!S$7:S$210,MATCH($B38,'Coverage Indicator_Import-Expor'!$C$7:$C$210,0))),\"\")","v":""},{"$f":"IFERROR(IF(INDEX('Coverage Indicator_Import-Expor'!T$7:T$210,MATCH($B38,'Coverage Indicator_Import-Expor'!$C$7:$C$210,0))=\"\",\"\",INDEX('Coverage Indicator_Import-Expor'!T$7:T$210,MATCH($B38,'Coverage Indicator_Import-Expor'!$C$7:$C$210,0))),\"\")","v":""},{"$f":"IFERROR(IF(INDEX('Coverage Indicator_Import-Expor'!U$7:U$210,MATCH($B38,'Coverage Indicator_Import-Expor'!$C$7:$C$210,0))=\"\",\"\",INDEX('Coverage Indicator_Import-Expor'!U$7:U$210,MATCH($B38,'Coverage Indicator_Import-Expor'!$C$7:$C$210,0))),\"\")","v":""},null,null,"",null," ",null,"No Results Reported",null,null,"",null," ",null,null,"No Results Reported",null,null,""," ",null,"No Results Reported"]
[29,"Coverage29",{"$f":"IFERROR(INDEX('Coverage Indicator_Import-Expor'!$D$7:$D$210,MATCH(B39,'Coverage Indicator_Import-Expor'!$C$7:$C$210,0)),\"\")","v":""},{"$f":"IFERROR(INDEX('Coverage Indicator_Import-Expor'!$E$7:$E$210,MATCH(B39,'Coverage Indicator_Import-Expor'!$C$7:$C$210,0)),\"\")","v":""},{"$f":"IFERROR(IF(INDEX('Coverage Indicator_Import-Expor'!K$7:K$210,MATCH($B39,'Coverage Indicator_Import-Expor'!$C$7:$C$210,0))=\"\",\"\",INDEX('Coverage Indicator_Import-Expor'!K$7:K$210,MATCH($B39,'Coverage Indicator_Import-Expor'!$C$7:$C$210,0))),\"\")","v":""},{"$f":"IFERROR(IF(INDEX('Coverage Indicator_Import-Expor'!L$7:L$210,MATCH($B39,'Coverage Indicator_Import-Expor'!$C$7:$C$210,0))=\"\",\"\",INDEX('Coverage Indicator_Import-Expor'!L$7:L$210,MATCH($B39,'Coverage Indicator_Import-Expor'!$C$7:$C$210,0))),\"\")","v":""},{"$f":"IFERROR(IF(INDEX('Coverage Indicator_Import-Expor'!AR$7:AR$210,MATCH($B39,'Coverage Indicator_Import-Expor'!$C$7:$C$210,0))=\"\",\"\",INDEX('Coverage Indicator_Import-Expor'!AR$7:AR$210,MATCH($B39,'Coverage Indicator_Import-Expor'!$C$7:$C$210,0))),\"\")","v":""},{"$f":"IFERROR(IF(INDEX('Coverage Indicator_Import-Expor'!AS$7:AS$210,MATCH($B39,'Coverage Indicator_Import-Expor'!$C$7:$C$210,0))=\"\",\"\",INDEX('Coverage Indicator_Import-Expor'!AS$7:AS$210,MATCH($B39,'Coverage Indicator_Import-Expor'!$C$7:$C$210,0))),\"\")","v":""},{"$f":"IFERROR(IF(INDEX('Coverage Indicator_Import-Expor'!N$7:N$210,MATCH($B39,'Coverage Indicator_Import-Expor'!$C$7:$C$210,0))=\"\",\"\",INDEX('Coverage Indicator_Import-Expor'!N$7:N$210,MATCH($B39,'Coverage Indicator_Import-Expor'!$C$7:$C$210,0))),\"\")","v":""},{"$f":"IFERROR(IF(INDEX('Coverage Indicator_Import-Expor'!O$7:O$210,MATCH($B39,'Coverage Indicator_Import-Expor'!$C$7:$C$210,0))=\"\",\"\",INDEX('Coverage Indicator_Import-Expor'!O$7:O$210,MATCH($B39,'Coverage Indicator_Import-Expor'!$C$7:$C$210,0))),\"\")","v":""},{"$f":"IFERROR(IF(INDEX('Coverage Indicator_Import-Expor'!P$7:P$210,MATCH($B39,'Coverage Indicator_Import-Expor'!$C$7:$C$210,0))=\"\",\"\",INDEX('Coverage Indicator_Import-Expor'!P$7:P$210,MATCH($B39,'Coverage Indicator_Import-Expor'!$C$7:$C$210,0))),\"\")","v":""},{"$f":"IFERROR(IF(INDEX('Coverage Indicator_Import-Expor'!Q$7:Q$210,MATCH($B39,'Coverage Indicator_Import-Expor'!$C$7:$C$210,0))=\"\",\"\",INDEX('Coverage Indicator_Import-Expor'!Q$7:Q$210,MATCH($B39,'Coverage Indicator_Import-Expor'!$C$7:$C$210,0))),\"\")","v":""},{"$f":"IFERROR(IF(INDEX('Coverage Indicator_Import-Expor'!R$7:R$210,MATCH($B39,'Coverage Indicator_Import-Expor'!$C$7:$C$210,0))=\"\",\"\",INDEX('Coverage Indicator_Import-Expor'!R$7:R$210,MATCH($B39,'Coverage Indicator_Import-Expor'!$C$7:$C$210,0))),\"\")","v":""},{"$f":"IFERROR(IF(INDEX('Coverage Indicator_Import-Expor'!S$7:S$210,MATCH($B39,'Coverage Indicator_Import-Expor'!$C$7:$C$210,0))=\"\",\"\",INDEX('Coverage Indicator_Import-Expor'!S$7:S$210,MATCH($B39,'Coverage Indicator_Import-Expor'!$C$7:$C$210,0))),\"\")","v":""},{"$f":"IFERROR(IF(INDEX('Coverage Indicator_Import-Expor'!T$7:T$210,MATCH($B39,'Coverage Indicator_Import-Expor'!$C$7:$C$210,0))=\"\",\"\",INDEX('Coverage Indicator_Import-Expor'!T$7:T$210,MATCH($B39,'Coverage Indicator_Import-Expor'!$C$7:$C$210,0))),\"\")","v":""},{"$f":"IFERROR(IF(INDEX('Coverage Indicator_Import-Expor'!U$7:U$210,MATCH($B39,'Coverage Indicator_Import-Expor'!$C$7:$C$210,0))=\"\",\"\",INDEX('Coverage Indicator_Import-Expor'!U$7:U$210,MATCH($B39,'Coverage Indicator_Import-Expor'!$C$7:$C$210,0))),\"\")","v":""},null,null,"",null," ",null,"No Results Reported",null,null,"",null," ",null,null,"No Results Reported",null,null,""," ",null,"No Results Reported"]
[30,"Coverage30",{"$f":"IFERROR(INDEX('Coverage Indicator_Import-Expor'!$D$7:$D$210,MATCH(B40,'Coverage Indicator_Import-Expor'!$C$7:$C$210,0)),\"\")","v":""},{"$f":"IFERROR(INDEX('Coverage Indicator_Import-Expor'!$E$7:$E$210,MATCH(B40,'Coverage Indicator_Import-Expor'!$C$7:$C$210,0)),\"\")","v":""},{"$f":"IFERROR(IF(INDEX('Coverage Indicator_Import-Expor'!K$7:K$210,MATCH($B40,'Coverage Indicator_Import-Expor'!$C$7:$C$210,0))=\"\",\"\",INDEX('Coverage Indicator_Import-Expor'!K$7:K$210,MATCH($B40,'Coverage Indicator_Import-Expor'!$C$7:$C$210,0))),\"\")","v":""},{"$f":"IFERROR(IF(INDEX('Coverage Indicator_Import-Expor'!L$7:L$210,MATCH($B40,'Coverage Indicator_Import-Expor'!$C$7:$C$210,0))=\"\",\"\",INDEX('Coverage Indicator_Import-Expor'!L$7:L$210,MATCH($B40,'Coverage Indicator_Import-Expor'!$C$7:$C$210,0))),\"\")","v":""},{"$f":"IFERROR(IF(INDEX('Coverage Indicator_Import-Expor'!AR$7:AR$210,MATCH($B40,'Coverage Indicator_Import-Expor'!$C$7:$C$210,0))=\"\",\"\",INDEX('Coverage Indicator_Import-Expor'!AR$7:AR$210,MATCH($B40,'Coverage Indicator_Import-Expor'!$C$7:$C$210,0))),\"\")","v":""},{"$f":"IFERROR(IF(INDEX('Coverage Indicator_Import-Expor'!AS$7:AS$210,MATCH($B40,'Coverage Indicator_Import-Expor'!$C$7:$C$210,0))=\"\",\"\",INDEX('Coverage Indicator_Import-Expor'!AS$7:AS$210,MATCH($B40,'Coverage Indicator_Import-Expor'!$C$7:$C$210,0))),\"\")","v":""},{"$f":"IFERROR(IF(INDEX('Coverage Indicator_Import-Expor'!N$7:N$210,MATCH($B40,'Coverage Indicator_Import-Expor'!$C$7:$C$210,0))=\"\",\"\",INDEX('Coverage Indicator_Import-Expor'!N$7:N$210,MATCH($B40,'Coverage Indicator_Import-Expor'!$C$7:$C$210,0))),\"\")","v":""},{"$f":"IFERROR(IF(INDEX('Coverage Indicator_Import-Expor'!O$7:O$210,MATCH($B40,'Coverage Indicator_Import-Expor'!$C$7:$C$210,0))=\"\",\"\",INDEX('Coverage Indicator_Import-Expor'!O$7:O$210,MATCH($B40,'Coverage Indicator_Import-Expor'!$C$7:$C$210,0))),\"\")","v":""},{"$f":"IFERROR(IF(INDEX('Coverage Indicator_Import-Expor'!P$7:P$210,MATCH($B40,'Coverage Indicator_Import-Expor'!$C$7:$C$210,0))=\"\",\"\",INDEX('Coverage Indicator_Import-Expor'!P$7:P$210,MATCH($B40,'Coverage Indicator_Import-Expor'!$C$7:$C$210,0))),\"\")","v":""},{"$f":"IFERROR(IF(INDEX('Coverage Indicator_Import-Expor'!Q$7:Q$210,MATCH($B40,'Coverage Indicator_Import-Expor'!$C$7:$C$210,0))=\"\",\"\",INDEX('Coverage Indicator_Import-Expor'!Q$7:Q$210,MATCH($B40,'Coverage Indicator_Import-Expor'!$C$7:$C$210,0))),\"\")","v":""},{"$f":"IFERROR(IF(INDEX('Coverage Indicator_Import-Expor'!R$7:R$210,MATCH($B40,'Coverage Indicator_Import-Expor'!$C$7:$C$210,0))=\"\",\"\",INDEX('Coverage Indicator_Import-Expor'!R$7:R$210,MATCH($B40,'Coverage Indicator_Import-Expor'!$C$7:$C$210,0))),\"\")","v":""},{"$f":"IFERROR(IF(INDEX('Coverage Indicator_Import-Expor'!S$7:S$210,MATCH($B40,'Coverage Indicator_Import-Expor'!$C$7:$C$210,0))=\"\",\"\",INDEX('Coverage Indicator_Import-Expor'!S$7:S$210,MATCH($B40,'Coverage Indicator_Import-Expor'!$C$7:$C$210,0))),\"\")","v":""},{"$f":"IFERROR(IF(INDEX('Coverage Indicator_Import-Expor'!T$7:T$210,MATCH($B40,'Coverage Indicator_Import-Expor'!$C$7:$C$210,0))=\"\",\"\",INDEX('Coverage Indicator_Import-Expor'!T$7:T$210,MATCH($B40,'Coverage Indicator_Import-Expor'!$C$7:$C$210,0))),\"\")","v":""},{"$f":"IFERROR(IF(INDEX('Coverage Indicator_Import-Expor'!U$7:U$210,MATCH($B40,'Coverage Indicator_Import-Expor'!$C$7:$C$210,0))=\"\",\"\",INDEX('Coverage Indicator_Import-Expor'!U$7:U$210,MATCH($B40,'Coverage Indicator_Import-Expor'!$C$7:$C$210,0))),\"\")","v":""},null,null,"",null," ",null,"No Results Reported",null,null,"",null," ",null,null,"No Results Reported",null,null,""," ",null,"No Results Reported"]
[31,"Coverage31",{"$f":"IFERROR(INDEX('Coverage Indicator_Import-Expor'!$D$7:$D$210,MATCH(B41,'Coverage Indicator_Import-Expor'!$C$7:$C$210,0)),\"\")","v":""},{"$f":"IFERROR(INDEX('Coverage Indicator_Import-Expor'!$E$7:$E$210,MATCH(B41,'Coverage Indicator_Import-Expor'!$C$7:$C$210,0)),\"\")","v":""},{"$f":"IFERROR(IF(INDEX('Coverage Indicator_Import-Expor'!K$7:K$210,MATCH($B41,'Coverage Indicator_Import-Expor'!$C$7:$C$210,0))=\"\",\"\",INDEX('Coverage Indicator_Import-Expor'!K$7:K$210,MATCH($B41,'Coverage Indicator_Import-Expor'!$C$7:$C$210,0))),\"\")","v":""},{"$f":"IFERROR(IF(INDEX('Coverage Indicator_Import-Expor'!L$7:L$210,MATCH($B41,'Coverage Indicator_Import-Expor'!$C$7:$C$210,0))=\"\",\"\",INDEX('Coverage Indicator_Import-Expor'!L$7:L$210,MATCH($B41,'Coverage Indicator_Import-Expor'!$C$7:$C$210,0))),\"\")","v":""},{"$f":"IFERROR(IF(INDEX('Coverage Indicator_Import-Expor'!AR$7:AR$210,MATCH($B41,'Coverage Indicator_Import-Expor'!$C$7:$C$210,0))=\"\",\"\",INDEX('Coverage Indicator_Import-Expor'!AR$7:AR$210,MATCH($B41,'Coverage Indicator_Import-Expor'!$C$7:$C$210,0))),\"\")","v":""},{"$f":"IFERROR(IF(INDEX('Coverage Indicator_Import-Expor'!AS$7:AS$210,MATCH($B41,'Coverage Indicator_Import-Expor'!$C$7:$C$210,0))=\"\",\"\",INDEX('Coverage Indicator_Import-Expor'!AS$7:AS$210,MATCH($B41,'Coverage Indicator_Import-Expor'!$C$7:$C$210,0))),\"\")","v":""},{"$f":"IFERROR(IF(INDEX('Coverage Indicator_Import-Expor'!N$7:N$210,MATCH($B41,'Coverage Indicator_Import-Expor'!$C$7:$C$210,0))=\"\",\"\",INDEX('Coverage Indicator_Import-Expor'!N$7:N$210,MATCH($B41,'Coverage Indicator_Import-Expor'!$C$7:$C$210,0))),\"\")","v":""},{"$f":"IFERROR(IF(INDEX('Coverage Indicator_Import-Expor'!O$7:O$210,MATCH($B41,'Coverage Indicator_Import-Expor'!$C$7:$C$210,0))=\"\",\"\",INDEX('Coverage Indicator_Import-Expor'!O$7:O$210,MATCH($B41,'Coverage Indicator_Import-Expor'!$C$7:$C$210,0))),\"\")","v":""},{"$f":"IFERROR(IF(INDEX('Coverage Indicator_Import-Expor'!P$7:P$210,MATCH($B41,'Coverage Indicator_Import-Expor'!$C$7:$C$210,0))=\"\",\"\",INDEX('Coverage Indicator_Import-Expor'!P$7:P$210,MATCH($B41,'Coverage Indicator_Import-Expor'!$C$7:$C$210,0))),\"\")","v":""},{"$f":"IFERROR(IF(INDEX('Coverage Indicator_Import-Expor'!Q$7:Q$210,MATCH($B41,'Coverage Indicator_Import-Expor'!$C$7:$C$210,0))=\"\",\"\",INDEX('Coverage Indicator_Import-Expor'!Q$7:Q$210,MATCH($B41,'Coverage Indicator_Import-Expor'!$C$7:$C$210,0))),\"\")","v":""},{"$f":"IFERROR(IF(INDEX('Coverage Indicator_Import-Expor'!R$7:R$210,MATCH($B41,'Coverage Indicator_Import-Expor'!$C$7:$C$210,0))=\"\",\"\",INDEX('Coverage Indicator_Import-Expor'!R$7:R$210,MATCH($B41,'Coverage Indicator_Import-Expor'!$C$7:$C$210,0))),\"\")","v":""},{"$f":"IFERROR(IF(INDEX('Coverage Indicator_Import-Expor'!S$7:S$210,MATCH($B41,'Coverage Indicator_Import-Expor'!$C$7:$C$210,0))=\"\",\"\",INDEX('Coverage Indicator_Import-Expor'!S$7:S$210,MATCH($B41,'Coverage Indicator_Import-Expor'!$C$7:$C$210,0))),\"\")","v":""},{"$f":"IFERROR(IF(INDEX('Coverage Indicator_Import-Expor'!T$7:T$210,MATCH($B41,'Coverage Indicator_Import-Expor'!$C$7:$C$210,0))=\"\",\"\",INDEX('Coverage Indicator_Import-Expor'!T$7:T$210,MATCH($B41,'Coverage Indicator_Import-Expor'!$C$7:$C$210,0))),\"\")","v":""},{"$f":"IFERROR(IF(INDEX('Coverage Indicator_Import-Expor'!U$7:U$210,MATCH($B41,'Coverage Indicator_Import-Expor'!$C$7:$C$210,0))=\"\",\"\",INDEX('Coverage Indicator_Import-Expor'!U$7:U$210,MATCH($B41,'Coverage Indicator_Import-Expor'!$C$7:$C$210,0))),\"\")","v":""},null,null,"",null," ",null,"No Results Reported",null,null,"",null," ",null,null,"No Results Reported",null,null,""," ",null,"No Results Reported"]
[32,"Coverage32",{"$f":"IFERROR(INDEX('Coverage Indicator_Import-Expor'!$D$7:$D$210,MATCH(B42,'Coverage Indicator_Import-Expor'!$C$7:$C$210,0)),\"\")","v":""},{"$f":"IFERROR(INDEX('Coverage Indicator_Import-Expor'!$E$7:$E$210,MATCH(B42,'Coverage Indicator_Import-Expor'!$C$7:$C$210,0)),\"\")","v":""},{"$f":"IFERROR(IF(INDEX('Coverage Indicator_Import-Expor'!K$7:K$210,MATCH($B42,'Coverage Indicator_Import-Expor'!$C$7:$C$210,0))=\"\",\"\",INDEX('Coverage Indicator_Import-Expor'!K$7:K$210,MATCH($B42,'Coverage Indicator_Import-Expor'!$C$7:$C$210,0))),\"\")","v":""},{"$f":"IFERROR(IF(INDEX('Coverage Indicator_Import-Expor'!L$7:L$210,MATCH($B42,'Coverage Indicator_Import-Expor'!$C$7:$C$210,0))=\"\",\"\",INDEX('Coverage Indicator_Import-Expor'!L$7:L$210,MATCH($B42,'Coverage Indicator_Import-Expor'!$C$7:$C$210,0))),\"\")","v":""},{"$f":"IFERROR(IF(INDEX('Coverage Indicator_Import-Expor'!AR$7:AR$210,MATCH($B42,'Coverage Indicator_Import-Expor'!$C$7:$C$210,0))=\"\",\"\",INDEX('Coverage Indicator_Import-Expor'!AR$7:AR$210,MATCH($B42,'Coverage Indicator_Import-Expor'!$C$7:$C$210,0))),\"\")","v":""},{"$f":"IFERROR(IF(INDEX('Coverage Indicator_Import-Expor'!AS$7:AS$210,MATCH($B42,'Coverage Indicator_Import-Expor'!$C$7:$C$210,0))=\"\",\"\",INDEX('Coverage Indicator_Import-Expor'!AS$7:AS$210,MATCH($B42,'Coverage Indicator_Import-Expor'!$C$7:$C$210,0))),\"\")","v":""},{"$f":"IFERROR(IF(INDEX('Coverage Indicator_Import-Expor'!N$7:N$210,MATCH($B42,'Coverage Indicator_Import-Expor'!$C$7:$C$210,0))=\"\",\"\",INDEX('Coverage Indicator_Import-Expor'!N$7:N$210,MATCH($B42,'Coverage Indicator_Import-Expor'!$C$7:$C$210,0))),\"\")","v":""},{"$f":"IFERROR(IF(INDEX('Coverage Indicator_Import-Expor'!O$7:O$210,MATCH($B42,'Coverage Indicator_Import-Expor'!$C$7:$C$210,0))=\"\",\"\",INDEX('Coverage Indicator_Import-Expor'!O$7:O$210,MATCH($B42,'Coverage Indicator_Import-Expor'!$C$7:$C$210,0))),\"\")","v":""},{"$f":"IFERROR(IF(INDEX('Coverage Indicator_Import-Expor'!P$7:P$210,MATCH($B42,'Coverage Indicator_Import-Expor'!$C$7:$C$210,0))=\"\",\"\",INDEX('Coverage Indicator_Import-Expor'!P$7:P$210,MATCH($B42,'Coverage Indicator_Import-Expor'!$C$7:$C$210,0))),\"\")","v":""},{"$f":"IFERROR(IF(INDEX('Coverage Indicator_Import-Expor'!Q$7:Q$210,MATCH($B42,'Coverage Indicator_Import-Expor'!$C$7:$C$210,0))=\"\",\"\",INDEX('Coverage Indicator_Import-Expor'!Q$7:Q$210,MATCH($B42,'Coverage Indicator_Import-Expor'!$C$7:$C$210,0))),\"\")","v":""},{"$f":"IFERROR(IF(INDEX('Coverage Indicator_Import-Expor'!R$7:R$210,MATCH($B42,'Coverage Indicator_Import-Expor'!$C$7:$C$210,0))=\"\",\"\",INDEX('Coverage Indicator_Import-Expor'!R$7:R$210,MATCH($B42,'Coverage Indicator_Import-Expor'!$C$7:$C$210,0))),\"\")","v":""},{"$f":"IFERROR(IF(INDEX('Coverage Indicator_Import-Expor'!S$7:S$210,MATCH($B42,'Coverage Indicator_Import-Expor'!$C$7:$C$210,0))=\"\",\"\",INDEX('Coverage Indicator_Import-Expor'!S$7:S$210,MATCH($B42,'Coverage Indicator_Import-Expor'!$C$7:$C$210,0))),\"\")","v":""},{"$f":"IFERROR(IF(INDEX('Coverage Indicator_Import-Expor'!T$7:T$210,MATCH($B42,'Coverage Indicator_Import-Expor'!$C$7:$C$210,0))=\"\",\"\",INDEX('Coverage Indicator_Import-Expor'!T$7:T$210,MATCH($B42,'Coverage Indicator_Import-Expor'!$C$7:$C$210,0))),\"\")","v":""},{"$f":"IFERROR(IF(INDEX('Coverage Indicator_Import-Expor'!U$7:U$210,MATCH($B42,'Coverage Indicator_Import-Expor'!$C$7:$C$210,0))=\"\",\"\",INDEX('Coverage Indicator_Import-Expor'!U$7:U$210,MATCH($B42,'Coverage Indicator_Import-Expor'!$C$7:$C$210,0))),\"\")","v":""},null,null,"",null," ",null,"No Results Reported",null,null,"",null," ",null,null,"No Results Reported",null,null,""," ",null,"No Results Reported"]
[33,"Coverage33",{"$f":"IFERROR(INDEX('Coverage Indicator_Import-Expor'!$D$7:$D$210,MATCH(B43,'Coverage Indicator_Import-Expor'!$C$7:$C$210,0)),\"\")","v":""},{"$f":"IFERROR(INDEX('Coverage Indicator_Import-Expor'!$E$7:$E$210,MATCH(B43,'Coverage Indicator_Import-Expor'!$C$7:$C$210,0)),\"\")","v":""},{"$f":"IFERROR(IF(INDEX('Coverage Indicator_Import-Expor'!K$7:K$210,MATCH($B43,'Coverage Indicator_Import-Expor'!$C$7:$C$210,0))=\"\",\"\",INDEX('Coverage Indicator_Import-Expor'!K$7:K$210,MATCH($B43,'Coverage Indicator_Import-Expor'!$C$7:$C$210,0))),\"\")","v":""},{"$f":"IFERROR(IF(INDEX('Coverage Indicator_Import-Expor'!L$7:L$210,MATCH($B43,'Coverage Indicator_Import-Expor'!$C$7:$C$210,0))=\"\",\"\",INDEX('Coverage Indicator_Import-Expor'!L$7:L$210,MATCH($B43,'Coverage Indicator_Import-Expor'!$C$7:$C$210,0))),\"\")","v":""},{"$f":"IFERROR(IF(INDEX('Coverage Indicator_Import-Expor'!AR$7:AR$210,MATCH($B43,'Coverage Indicator_Import-Expor'!$C$7:$C$210,0))=\"\",\"\",INDEX('Coverage Indicator_Import-Expor'!AR$7:AR$210,MATCH($B43,'Coverage Indicator_Import-Expor'!$C$7:$C$210,0))),\"\")","v":""},{"$f":"IFERROR(IF(INDEX('Coverage Indicator_Import-Expor'!AS$7:AS$210,MATCH($B43,'Coverage Indicator_Import-Expor'!$C$7:$C$210,0))=\"\",\"\",INDEX('Coverage Indicator_Import-Expor'!AS$7:AS$210,MATCH($B43,'Coverage Indicator_Import-Expor'!$C$7:$C$210,0))),\"\")","v":""},{"$f":"IFERROR(IF(INDEX('Coverage Indicator_Import-Expor'!N$7:N$210,MATCH($B43,'Coverage Indicator_Import-Expor'!$C$7:$C$210,0))=\"\",\"\",INDEX('Coverage Indicator_Import-Expor'!N$7:N$210,MATCH($B43,'Coverage Indicator_Import-Expor'!$C$7:$C$210,0))),\"\")","v":""},{"$f":"IFERROR(IF(INDEX('Coverage Indicator_Import-Expor'!O$7:O$210,MATCH($B43,'Coverage Indicator_Import-Expor'!$C$7:$C$210,0))=\"\",\"\",INDEX('Coverage Indicator_Import-Expor'!O$7:O$210,MATCH($B43,'Coverage Indicator_Import-Expor'!$C$7:$C$210,0))),\"\")","v":""},{"$f":"IFERROR(IF(INDEX('Coverage Indicator_Import-Expor'!P$7:P$210,MATCH($B43,'Coverage Indicator_Import-Expor'!$C$7:$C$210,0))=\"\",\"\",INDEX('Coverage Indicator_Import-Expor'!P$7:P$210,MATCH($B43,'Coverage Indicator_Import-Expor'!$C$7:$C$210,0))),\"\")","v":""},{"$f":"IFERROR(IF(INDEX('Coverage Indicator_Import-Expor'!Q$7:Q$210,MATCH($B43,'Coverage Indicator_Import-Expor'!$C$7:$C$210,0))=\"\",\"\",INDEX('Coverage Indicator_Import-Expor'!Q$7:Q$210,MATCH($B43,'Coverage Indicator_Import-Expor'!$C$7:$C$210,0))),\"\")","v":""},{"$f":"IFERROR(IF(INDEX('Coverage Indicator_Import-Expor'!R$7:R$210,MATCH($B43,'Coverage Indicator_Import-Expor'!$C$7:$C$210,0))=\"\",\"\",INDEX('Coverage Indicator_Import-Expor'!R$7:R$210,MATCH($B43,'Coverage Indicator_Import-Expor'!$C$7:$C$210,0))),\"\")","v":""},{"$f":"IFERROR(IF(INDEX('Coverage Indicator_Import-Expor'!S$7:S$210,MATCH($B43,'Coverage Indicator_Import-Expor'!$C$7:$C$210,0))=\"\",\"\",INDEX('Coverage Indicator_Import-Expor'!S$7:S$210,MATCH($B43,'Coverage Indicator_Import-Expor'!$C$7:$C$210,0))),\"\")","v":""},{"$f":"IFERROR(IF(INDEX('Coverage Indicator_Import-Expor'!T$7:T$210,MATCH($B43,'Coverage Indicator_Import-Expor'!$C$7:$C$210,0))=\"\",\"\",INDEX('Coverage Indicator_Import-Expor'!T$7:T$210,MATCH($B43,'Coverage Indicator_Import-Expor'!$C$7:$C$210,0))),\"\")","v":""},{"$f":"IFERROR(IF(INDEX('Coverage Indicator_Import-Expor'!U$7:U$210,MATCH($B43,'Coverage Indicator_Import-Expor'!$C$7:$C$210,0))=\"\",\"\",INDEX('Coverage Indicator_Import-Expor'!U$7:U$210,MATCH($B43,'Coverage Indicator_Import-Expor'!$C$7:$C$210,0))),\"\")","v":""},null,null,"",null," ",null,"No Results Reported",null,null,"",null," ",null,null,"No Results Reported",null,null,""," ",null,"No Results Reported"]
[34,"Coverage34",{"$f":"IFERROR(INDEX('Coverage Indicator_Import-Expor'!$D$7:$D$210,MATCH(B44,'Coverage Indicator_Import-Expor'!$C$7:$C$210,0)),\"\")","v":""},{"$f":"IFERROR(INDEX('Coverage Indicator_Import-Expor'!$E$7:$E$210,MATCH(B44,'Coverage Indicator_Import-Expor'!$C$7:$C$210,0)),\"\")","v":""},{"$f":"IFERROR(IF(INDEX('Coverage Indicator_Import-Expor'!K$7:K$210,MATCH($B44,'Coverage Indicator_Import-Expor'!$C$7:$C$210,0))=\"\",\"\",INDEX('Coverage Indicator_Import-Expor'!K$7:K$210,MATCH($B44,'Coverage Indicator_Import-Expor'!$C$7:$C$210,0))),\"\")","v":""},{"$f":"IFERROR(IF(INDEX('Coverage Indicator_Import-Expor'!L$7:L$210,MATCH($B44,'Coverage Indicator_Import-Expor'!$C$7:$C$210,0))=\"\",\"\",INDEX('Coverage Indicator_Import-Expor'!L$7:L$210,MATCH($B44,'Coverage Indicator_Import-Expor'!$C$7:$C$210,0))),\"\")","v":""},{"$f":"IFERROR(IF(INDEX('Coverage Indicator_Import-Expor'!AR$7:AR$210,MATCH($B44,'Coverage Indicator_Import-Expor'!$C$7:$C$210,0))=\"\",\"\",INDEX('Coverage Indicator_Import-Expor'!AR$7:AR$210,MATCH($B44,'Coverage Indicator_Import-Expor'!$C$7:$C$210,0))),\"\")","v":""},{"$f":"IFERROR(IF(INDEX('Coverage Indicator_Import-Expor'!AS$7:AS$210,MATCH($B44,'Coverage Indicator_Import-Expor'!$C$7:$C$210,0))=\"\",\"\",INDEX('Coverage Indicator_Import-Expor'!AS$7:AS$210,MATCH($B44,'Coverage Indicator_Import-Expor'!$C$7:$C$210,0))),\"\")","v":""},{"$f":"IFERROR(IF(INDEX('Coverage Indicator_Import-Expor'!N$7:N$210,MATCH($B44,'Coverage Indicator_Import-Expor'!$C$7:$C$210,0))=\"\",\"\",INDEX('Coverage Indicator_Import-Expor'!N$7:N$210,MATCH($B44,'Coverage Indicator_Import-Expor'!$C$7:$C$210,0))),\"\")","v":""},{"$f":"IFERROR(IF(INDEX('Coverage Indicator_Import-Expor'!O$7:O$210,MATCH($B44,'Coverage Indicator_Import-Expor'!$C$7:$C$210,0))=\"\",\"\",INDEX('Coverage Indicator_Import-Expor'!O$7:O$210,MATCH($B44,'Coverage Indicator_Import-Expor'!$C$7:$C$210,0))),\"\")","v":""},{"$f":"IFERROR(IF(INDEX('Coverage Indicator_Import-Expor'!P$7:P$210,MATCH($B44,'Coverage Indicator_Import-Expor'!$C$7:$C$210,0))=\"\",\"\",INDEX('Coverage Indicator_Import-Expor'!P$7:P$210,MATCH($B44,'Coverage Indicator_Import-Expor'!$C$7:$C$210,0))),\"\")","v":""},{"$f":"IFERROR(IF(INDEX('Coverage Indicator_Import-Expor'!Q$7:Q$210,MATCH($B44,'Coverage Indicator_Import-Expor'!$C$7:$C$210,0))=\"\",\"\",INDEX('Coverage Indicator_Import-Expor'!Q$7:Q$210,MATCH($B44,'Coverage Indicator_Import-Expor'!$C$7:$C$210,0))),\"\")","v":""},{"$f":"IFERROR(IF(INDEX('Coverage Indicator_Import-Expor'!R$7:R$210,MATCH($B44,'Coverage Indicator_Import-Expor'!$C$7:$C$210,0))=\"\",\"\",INDEX('Coverage Indicator_Import-Expor'!R$7:R$210,MATCH($B44,'Coverage Indicator_Import-Expor'!$C$7:$C$210,0))),\"\")","v":""},{"$f":"IFERROR(IF(INDEX('Coverage Indicator_Import-Expor'!S$7:S$210,MATCH($B44,'Coverage Indicator_Import-Expor'!$C$7:$C$210,0))=\"\",\"\",INDEX('Coverage Indicator_Import-Expor'!S$7:S$210,MATCH($B44,'Coverage Indicator_Import-Expor'!$C$7:$C$210,0))),\"\")","v":""},{"$f":"IFERROR(IF(INDEX('Coverage Indicator_Import-Expor'!T$7:T$210,MATCH($B44,'Coverage Indicator_Import-Expor'!$C$7:$C$210,0))=\"\",\"\",INDEX('Coverage Indicator_Import-Expor'!T$7:T$210,MATCH($B44,'Coverage Indicator_Import-Expor'!$C$7:$C$210,0))),\"\")","v":""},{"$f":"IFERROR(IF(INDEX('Coverage Indicator_Import-Expor'!U$7:U$210,MATCH($B44,'Coverage Indicator_Import-Expor'!$C$7:$C$210,0))=\"\",\"\",INDEX('Coverage Indicator_Import-Expor'!U$7:U$210,MATCH($B44,'Coverage Indicator_Import-Expor'!$C$7:$C$210,0))),\"\")","v":""},null,null,"",null," ",null,"No Results Reported",null,null,"",null," ",null,null,"No Results Reported",null,null,""," ",null,"No Results Reported"]
[35,"Coverage35",{"$f":"IFERROR(INDEX('Coverage Indicator_Import-Expor'!$D$7:$D$210,MATCH(B45,'Coverage Indicator_Import-Expor'!$C$7:$C$210,0)),\"\")","v":""},{"$f":"IFERROR(INDEX('Coverage Indicator_Import-Expor'!$E$7:$E$210,MATCH(B45,'Coverage Indicator_Import-Expor'!$C$7:$C$210,0)),\"\")","v":""},{"$f":"IFERROR(IF(INDEX('Coverage Indicator_Import-Expor'!K$7:K$210,MATCH($B45,'Coverage Indicator_Import-Expor'!$C$7:$C$210,0))=\"\",\"\",INDEX('Coverage Indicator_Import-Expor'!K$7:K$210,MATCH($B45,'Coverage Indicator_Import-Expor'!$C$7:$C$210,0))),\"\")","v":""},{"$f":"IFERROR(IF(INDEX('Coverage Indicator_Import-Expor'!L$7:L$210,MATCH($B45,'Coverage Indicator_Import-Expor'!$C$7:$C$210,0))=\"\",\"\",INDEX('Coverage Indicator_Import-Expor'!L$7:L$210,MATCH($B45,'Coverage Indicator_Import-Expor'!$C$7:$C$210,0))),\"\")","v":""},{"$f":"IFERROR(IF(INDEX('Coverage Indicator_Import-Expor'!AR$7:AR$210,MATCH($B45,'Coverage Indicator_Import-Expor'!$C$7:$C$210,0))=\"\",\"\",INDEX('Coverage Indicator_Import-Expor'!AR$7:AR$210,MATCH($B45,'Coverage Indicator_Import-Expor'!$C$7:$C$210,0))),\"\")","v":""},{"$f":"IFERROR(IF(INDEX('Coverage Indicator_Import-Expor'!AS$7:AS$210,MATCH($B45,'Coverage Indicator_Import-Expor'!$C$7:$C$210,0))=\"\",\"\",INDEX('Coverage Indicator_Import-Expor'!AS$7:AS$210,MATCH($B45,'Coverage Indicator_Import-Expor'!$C$7:$C$210,0))),\"\")","v":""},{"$f":"IFERROR(IF(INDEX('Coverage Indicator_Import-Expor'!N$7:N$210,MATCH($B45,'Coverage Indicator_Import-Expor'!$C$7:$C$210,0))=\"\",\"\",INDEX('Coverage Indicator_Import-Expor'!N$7:N$210,MATCH($B45,'Coverage Indicator_Import-Expor'!$C$7:$C$210,0))),\"\")","v":""},{"$f":"IFERROR(IF(INDEX('Coverage Indicator_Import-Expor'!O$7:O$210,MATCH($B45,'Coverage Indicator_Import-Expor'!$C$7:$C$210,0))=\"\",\"\",INDEX('Coverage Indicator_Import-Expor'!O$7:O$210,MATCH($B45,'Coverage Indicator_Import-Expor'!$C$7:$C$210,0))),\"\")","v":""},{"$f":"IFERROR(IF(INDEX('Coverage Indicator_Import-Expor'!P$7:P$210,MATCH($B45,'Coverage Indicator_Import-Expor'!$C$7:$C$210,0))=\"\",\"\",INDEX('Coverage Indicator_Import-Expor'!P$7:P$210,MATCH($B45,'Coverage Indicator_Import-Expor'!$C$7:$C$210,0))),\"\")","v":""},{"$f":"IFERROR(IF(INDEX('Coverage Indicator_Import-Expor'!Q$7:Q$210,MATCH($B45,'Coverage Indicator_Import-Expor'!$C$7:$C$210,0))=\"\",\"\",INDEX('Coverage Indicator_Import-Expor'!Q$7:Q$210,MATCH($B45,'Coverage Indicator_Import-Expor'!$C$7:$C$210,0))),\"\")","v":""},{"$f":"IFERROR(IF(INDEX('Coverage Indicator_Import-Expor'!R$7:R$210,MATCH($B45,'Coverage Indicator_Import-Expor'!$C$7:$C$210,0))=\"\",\"\",INDEX('Coverage Indicator_Import-Expor'!R$7:R$210,MATCH($B45,'Coverage Indicator_Import-Expor'!$C$7:$C$210,0))),\"\")","v":""},{"$f":"IFERROR(IF(INDEX('Coverage Indicator_Import-Expor'!S$7:S$210,MATCH($B45,'Coverage Indicator_Import-Expor'!$C$7:$C$210,0))=\"\",\"\",INDEX('Coverage Indicator_Import-Expor'!S$7:S$210,MATCH($B45,'Coverage Indicator_Import-Expor'!$C$7:$C$210,0))),\"\")","v":""},{"$f":"IFERROR(IF(INDEX('Coverage Indicator_Import-Expor'!T$7:T$210,MATCH($B45,'Coverage Indicator_Import-Expor'!$C$7:$C$210,0))=\"\",\"\",INDEX('Coverage Indicator_Import-Expor'!T$7:T$210,MATCH($B45,'Coverage Indicator_Import-Expor'!$C$7:$C$210,0))),\"\")","v":""},{"$f":"IFERROR(IF(INDEX('Coverage Indicator_Import-Expor'!U$7:U$210,MATCH($B45,'Coverage Indicator_Import-Expor'!$C$7:$C$210,0))=\"\",\"\",INDEX('Coverage Indicator_Import-Expor'!U$7:U$210,MATCH($B45,'Coverage Indicator_Import-Expor'!$C$7:$C$210,0))),\"\")","v":""},null,null,"",null," ",null,"No Results Reported",null,null,"",null," ",null,null,"No Results Reported",null,null,""," ",null,"No Results Reported"]
[36,"Coverage36",{"$f":"IFERROR(INDEX('Coverage Indicator_Import-Expor'!$D$7:$D$210,MATCH(B46,'Coverage Indicator_Import-Expor'!$C$7:$C$210,0)),\"\")","v":""},{"$f":"IFERROR(INDEX('Coverage Indicator_Import-Expor'!$E$7:$E$210,MATCH(B46,'Coverage Indicator_Import-Expor'!$C$7:$C$210,0)),\"\")","v":""},{"$f":"IFERROR(IF(INDEX('Coverage Indicator_Import-Expor'!K$7:K$210,MATCH($B46,'Coverage Indicator_Import-Expor'!$C$7:$C$210,0))=\"\",\"\",INDEX('Coverage Indicator_Import-Expor'!K$7:K$210,MATCH($B46,'Coverage Indicator_Import-Expor'!$C$7:$C$210,0))),\"\")","v":""},{"$f":"IFERROR(IF(INDEX('Coverage Indicator_Import-Expor'!L$7:L$210,MATCH($B46,'Coverage Indicator_Import-Expor'!$C$7:$C$210,0))=\"\",\"\",INDEX('Coverage Indicator_Import-Expor'!L$7:L$210,MATCH($B46,'Coverage Indicator_Import-Expor'!$C$7:$C$210,0))),\"\")","v":""},{"$f":"IFERROR(IF(INDEX('Coverage Indicator_Import-Expor'!AR$7:AR$210,MATCH($B46,'Coverage Indicator_Import-Expor'!$C$7:$C$210,0))=\"\",\"\",INDEX('Coverage Indicator_Import-Expor'!AR$7:AR$210,MATCH($B46,'Coverage Indicator_Import-Expor'!$C$7:$C$210,0))),\"\")","v":""},{"$f":"IFERROR(IF(INDEX('Coverage Indicator_Import-Expor'!AS$7:AS$210,MATCH($B46,'Coverage Indicator_Import-Expor'!$C$7:$C$210,0))=\"\",\"\",INDEX('Coverage Indicator_Import-Expor'!AS$7:AS$210,MATCH($B46,'Coverage Indicator_Import-Expor'!$C$7:$C$210,0))),\"\")","v":""},{"$f":"IFERROR(IF(INDEX('Coverage Indicator_Import-Expor'!N$7:N$210,MATCH($B46,'Coverage Indicator_Import-Expor'!$C$7:$C$210,0))=\"\",\"\",INDEX('Coverage Indicator_Import-Expor'!N$7:N$210,MATCH($B46,'Coverage Indicator_Import-Expor'!$C$7:$C$210,0))),\"\")","v":""},{"$f":"IFERROR(IF(INDEX('Coverage Indicator_Import-Expor'!O$7:O$210,MATCH($B46,'Coverage Indicator_Import-Expor'!$C$7:$C$210,0))=\"\",\"\",INDEX('Coverage Indicator_Import-Expor'!O$7:O$210,MATCH($B46,'Coverage Indicator_Import-Expor'!$C$7:$C$210,0))),\"\")","v":""},{"$f":"IFERROR(IF(INDEX('Coverage Indicator_Import-Expor'!P$7:P$210,MATCH($B46,'Coverage Indicator_Import-Expor'!$C$7:$C$210,0))=\"\",\"\",INDEX('Coverage Indicator_Import-Expor'!P$7:P$210,MATCH($B46,'Coverage Indicator_Import-Expor'!$C$7:$C$210,0))),\"\")","v":""},{"$f":"IFERROR(IF(INDEX('Coverage Indicator_Import-Expor'!Q$7:Q$210,MATCH($B46,'Coverage Indicator_Import-Expor'!$C$7:$C$210,0))=\"\",\"\",INDEX('Coverage Indicator_Import-Expor'!Q$7:Q$210,MATCH($B46,'Coverage Indicator_Import-Expor'!$C$7:$C$210,0))),\"\")","v":""},{"$f":"IFERROR(IF(INDEX('Coverage Indicator_Import-Expor'!R$7:R$210,MATCH($B46,'Coverage Indicator_Import-Expor'!$C$7:$C$210,0))=\"\",\"\",INDEX('Coverage Indicator_Import-Expor'!R$7:R$210,MATCH($B46,'Coverage Indicator_Import-Expor'!$C$7:$C$210,0))),\"\")","v":""},{"$f":"IFERROR(IF(INDEX('Coverage Indicator_Import-Expor'!S$7:S$210,MATCH($B46,'Coverage Indicator_Import-Expor'!$C$7:$C$210,0))=\"\",\"\",INDEX('Coverage Indicator_Import-Expor'!S$7:S$210,MATCH($B46,'Coverage Indicator_Import-Expor'!$C$7:$C$210,0))),\"\")","v":""},{"$f":"IFERROR(IF(INDEX('Coverage Indicator_Import-Expor'!T$7:T$210,MATCH($B46,'Coverage Indicator_Import-Expor'!$C$7:$C$210,0))=\"\",\"\",INDEX('Coverage Indicator_Import-Expor'!T$7:T$210,MATCH($B46,'Coverage Indicator_Import-Expor'!$C$7:$C$210,0))),\"\")","v":""},{"$f":"IFERROR(IF(INDEX('Coverage Indicator_Import-Expor'!U$7:U$210,MATCH($B46,'Coverage Indicator_Import-Expor'!$C$7:$C$210,0))=\"\",\"\",INDEX('Coverage Indicator_Import-Expor'!U$7:U$210,MATCH($B46,'Coverage Indicator_Import-Expor'!$C$7:$C$210,0))),\"\")","v":""},null,null,"",null," ",null,"No Results Reported",null,null,"",null," ",null,null,"No Results Reported",null,null,""," ",null,"No Results Reported"]
[37,"Coverage37",{"$f":"IFERROR(INDEX('Coverage Indicator_Import-Expor'!$D$7:$D$210,MATCH(B47,'Coverage Indicator_Import-Expor'!$C$7:$C$210,0)),\"\")","v":""},{"$f":"IFERROR(INDEX('Coverage Indicator_Import-Expor'!$E$7:$E$210,MATCH(B47,'Coverage Indicator_Import-Expor'!$C$7:$C$210,0)),\"\")","v":""},{"$f":"IFERROR(IF(INDEX('Coverage Indicator_Import-Expor'!K$7:K$210,MATCH($B47,'Coverage Indicator_Import-Expor'!$C$7:$C$210,0))=\"\",\"\",INDEX('Coverage Indicator_Import-Expor'!K$7:K$210,MATCH($B47,'Coverage Indicator_Import-Expor'!$C$7:$C$210,0))),\"\")","v":""},{"$f":"IFERROR(IF(INDEX('Coverage Indicator_Import-Expor'!L$7:L$210,MATCH($B47,'Coverage Indicator_Import-Expor'!$C$7:$C$210,0))=\"\",\"\",INDEX('Coverage Indicator_Import-Expor'!L$7:L$210,MATCH($B47,'Coverage Indicator_Import-Expor'!$C$7:$C$210,0))),\"\")","v":""},{"$f":"IFERROR(IF(INDEX('Coverage Indicator_Import-Expor'!AR$7:AR$210,MATCH($B47,'Coverage Indicator_Import-Expor'!$C$7:$C$210,0))=\"\",\"\",INDEX('Coverage Indicator_Import-Expor'!AR$7:AR$210,MATCH($B47,'Coverage Indicator_Import-Expor'!$C$7:$C$210,0))),\"\")","v":""},{"$f":"IFERROR(IF(INDEX('Coverage Indicator_Import-Expor'!AS$7:AS$210,MATCH($B47,'Coverage Indicator_Import-Expor'!$C$7:$C$210,0))=\"\",\"\",INDEX('Coverage Indicator_Import-Expor'!AS$7:AS$210,MATCH($B47,'Coverage Indicator_Import-Expor'!$C$7:$C$210,0))),\"\")","v":""},{"$f":"IFERROR(IF(INDEX('Coverage Indicator_Import-Expor'!N$7:N$210,MATCH($B47,'Coverage Indicator_Import-Expor'!$C$7:$C$210,0))=\"\",\"\",INDEX('Coverage Indicator_Import-Expor'!N$7:N$210,MATCH($B47,'Coverage Indicator_Import-Expor'!$C$7:$C$210,0))),\"\")","v":""},{"$f":"IFERROR(IF(INDEX('Coverage Indicator_Import-Expor'!O$7:O$210,MATCH($B47,'Coverage Indicator_Import-Expor'!$C$7:$C$210,0))=\"\",\"\",INDEX('Coverage Indicator_Import-Expor'!O$7:O$210,MATCH($B47,'Coverage Indicator_Import-Expor'!$C$7:$C$210,0))),\"\")","v":""},{"$f":"IFERROR(IF(INDEX('Coverage Indicator_Import-Expor'!P$7:P$210,MATCH($B47,'Coverage Indicator_Import-Expor'!$C$7:$C$210,0))=\"\",\"\",INDEX('Coverage Indicator_Import-Expor'!P$7:P$210,MATCH($B47,'Coverage Indicator_Import-Expor'!$C$7:$C$210,0))),\"\")","v":""},{"$f":"IFERROR(IF(INDEX('Coverage Indicator_Import-Expor'!Q$7:Q$210,MATCH($B47,'Coverage Indicator_Import-Expor'!$C$7:$C$210,0))=\"\",\"\",INDEX('Coverage Indicator_Import-Expor'!Q$7:Q$210,MATCH($B47,'Coverage Indicator_Import-Expor'!$C$7:$C$210,0))),\"\")","v":""},{"$f":"IFERROR(IF(INDEX('Coverage Indicator_Import-Expor'!R$7:R$210,MATCH($B47,'Coverage Indicator_Import-Expor'!$C$7:$C$210,0))=\"\",\"\",INDEX('Coverage Indicator_Import-Expor'!R$7:R$210,MATCH($B47,'Coverage Indicator_Import-Expor'!$C$7:$C$210,0))),\"\")","v":""},{"$f":"IFERROR(IF(INDEX('Coverage Indicator_Import-Expor'!S$7:S$210,MATCH($B47,'Coverage Indicator_Import-Expor'!$C$7:$C$210,0))=\"\",\"\",INDEX('Coverage Indicator_Import-Expor'!S$7:S$210,MATCH($B47,'Coverage Indicator_Import-Expor'!$C$7:$C$210,0))),\"\")","v":""},{"$f":"IFERROR(IF(INDEX('Coverage Indicator_Import-Expor'!T$7:T$210,MATCH($B47,'Coverage Indicator_Import-Expor'!$C$7:$C$210,0))=\"\",\"\",INDEX('Coverage Indicator_Import-Expor'!T$7:T$210,MATCH($B47,'Coverage Indicator_Import-Expor'!$C$7:$C$210,0))),\"\")","v":""},{"$f":"IFERROR(IF(INDEX('Coverage Indicator_Import-Expor'!U$7:U$210,MATCH($B47,'Coverage Indicator_Import-Expor'!$C$7:$C$210,0))=\"\",\"\",INDEX('Coverage Indicator_Import-Expor'!U$7:U$210,MATCH($B47,'Coverage Indicator_Import-Expor'!$C$7:$C$210,0))),\"\")","v":""},null,null,"",null," ",null,"No Results Reported",null,null,"",null," ",null,null,"No Results Reported",null,null,""," ",null,"No Results Reported"]
[38,"Coverage38",{"$f":"IFERROR(INDEX('Coverage Indicator_Import-Expor'!$D$7:$D$210,MATCH(B48,'Coverage Indicator_Import-Expor'!$C$7:$C$210,0)),\"\")","v":""},{"$f":"IFERROR(INDEX('Coverage Indicator_Import-Expor'!$E$7:$E$210,MATCH(B48,'Coverage Indicator_Import-Expor'!$C$7:$C$210,0)),\"\")","v":""},{"$f":"IFERROR(IF(INDEX('Coverage Indicator_Import-Expor'!K$7:K$210,MATCH($B48,'Coverage Indicator_Import-Expor'!$C$7:$C$210,0))=\"\",\"\",INDEX('Coverage Indicator_Import-Expor'!K$7:K$210,MATCH($B48,'Coverage Indicator_Import-Expor'!$C$7:$C$210,0))),\"\")","v":""},{"$f":"IFERROR(IF(INDEX('Coverage Indicator_Import-Expor'!L$7:L$210,MATCH($B48,'Coverage Indicator_Import-Expor'!$C$7:$C$210,0))=\"\",\"\",INDEX('Coverage Indicator_Import-Expor'!L$7:L$210,MATCH($B48,'Coverage Indicator_Import-Expor'!$C$7:$C$210,0))),\"\")","v":""},{"$f":"IFERROR(IF(INDEX('Coverage Indicator_Import-Expor'!AR$7:AR$210,MATCH($B48,'Coverage Indicator_Import-Expor'!$C$7:$C$210,0))=\"\",\"\",INDEX('Coverage Indicator_Import-Expor'!AR$7:AR$210,MATCH($B48,'Coverage Indicator_Import-Expor'!$C$7:$C$210,0))),\"\")","v":""},{"$f":"IFERROR(IF(INDEX('Coverage Indicator_Import-Expor'!AS$7:AS$210,MATCH($B48,'Coverage Indicator_Import-Expor'!$C$7:$C$210,0))=\"\",\"\",INDEX('Coverage Indicator_Import-Expor'!AS$7:AS$210,MATCH($B48,'Coverage Indicator_Import-Expor'!$C$7:$C$210,0))),\"\")","v":""},{"$f":"IFERROR(IF(INDEX('Coverage Indicator_Import-Expor'!N$7:N$210,MATCH($B48,'Coverage Indicator_Import-Expor'!$C$7:$C$210,0))=\"\",\"\",INDEX('Coverage Indicator_Import-Expor'!N$7:N$210,MATCH($B48,'Coverage Indicator_Import-Expor'!$C$7:$C$210,0))),\"\")","v":""},{"$f":"IFERROR(IF(INDEX('Coverage Indicator_Import-Expor'!O$7:O$210,MATCH($B48,'Coverage Indicator_Import-Expor'!$C$7:$C$210,0))=\"\",\"\",INDEX('Coverage Indicator_Import-Expor'!O$7:O$210,MATCH($B48,'Coverage Indicator_Import-Expor'!$C$7:$C$210,0))),\"\")","v":""},{"$f":"IFERROR(IF(INDEX('Coverage Indicator_Import-Expor'!P$7:P$210,MATCH($B48,'Coverage Indicator_Import-Expor'!$C$7:$C$210,0))=\"\",\"\",INDEX('Coverage Indicator_Import-Expor'!P$7:P$210,MATCH($B48,'Coverage Indicator_Import-Expor'!$C$7:$C$210,0))),\"\")","v":""},{"$f":"IFERROR(IF(INDEX('Coverage Indicator_Import-Expor'!Q$7:Q$210,MATCH($B48,'Coverage Indicator_Import-Expor'!$C$7:$C$210,0))=\"\",\"\",INDEX('Coverage Indicator_Import-Expor'!Q$7:Q$210,MATCH($B48,'Coverage Indicator_Import-Expor'!$C$7:$C$210,0))),\"\")","v":""},{"$f":"IFERROR(IF(INDEX('Coverage Indicator_Import-Expor'!R$7:R$210,MATCH($B48,'Coverage Indicator_Import-Expor'!$C$7:$C$210,0))=\"\",\"\",INDEX('Coverage Indicator_Import-Expor'!R$7:R$210,MATCH($B48,'Coverage Indicator_Import-Expor'!$C$7:$C$210,0))),\"\")","v":""},{"$f":"IFERROR(IF(INDEX('Coverage Indicator_Import-Expor'!S$7:S$210,MATCH($B48,'Coverage Indicator_Import-Expor'!$C$7:$C$210,0))=\"\",\"\",INDEX('Coverage Indicator_Import-Expor'!S$7:S$210,MATCH($B48,'Coverage Indicator_Import-Expor'!$C$7:$C$210,0))),\"\")","v":""},{"$f":"IFERROR(IF(INDEX('Coverage Indicator_Import-Expor'!T$7:T$210,MATCH($B48,'Coverage Indicator_Import-Expor'!$C$7:$C$210,0))=\"\",\"\",INDEX('Coverage Indicator_Import-Expor'!T$7:T$210,MATCH($B48,'Coverage Indicator_Import-Expor'!$C$7:$C$210,0))),\"\")","v":""},{"$f":"IFERROR(IF(INDEX('Coverage Indicator_Import-Expor'!U$7:U$210,MATCH($B48,'Coverage Indicator_Import-Expor'!$C$7:$C$210,0))=\"\",\"\",INDEX('Coverage Indicator_Import-Expor'!U$7:U$210,MATCH($B48,'Coverage Indicator_Import-Expor'!$C$7:$C$210,0))),\"\")","v":""},null,null,"",null," ",null,"No Results Reported",null,null,"",null," ",null,null,"No Results Reported",null,null,""," ",null,"No Results Reported"]
[39,"Coverage39",{"$f":"IFERROR(INDEX('Coverage Indicator_Import-Expor'!$D$7:$D$210,MATCH(B49,'Coverage Indicator_Import-Expor'!$C$7:$C$210,0)),\"\")","v":""},{"$f":"IFERROR(INDEX('Coverage Indicator_Import-Expor'!$E$7:$E$210,MATCH(B49,'Coverage Indicator_Import-Expor'!$C$7:$C$210,0)),\"\")","v":""},{"$f":"IFERROR(IF(INDEX('Coverage Indicator_Import-Expor'!K$7:K$210,MATCH($B49,'Coverage Indicator_Import-Expor'!$C$7:$C$210,0))=\"\",\"\",INDEX('Coverage Indicator_Import-Expor'!K$7:K$210,MATCH($B49,'Coverage Indicator_Import-Expor'!$C$7:$C$210,0))),\"\")","v":""},{"$f":"IFERROR(IF(INDEX('Coverage Indicator_Import-Expor'!L$7:L$210,MATCH($B49,'Coverage Indicator_Import-Expor'!$C$7:$C$210,0))=\"\",\"\",INDEX('Coverage Indicator_Import-Expor'!L$7:L$210,MATCH($B49,'Coverage Indicator_Import-Expor'!$C$7:$C$210,0))),\"\")","v":""},{"$f":"IFERROR(IF(INDEX('Coverage Indicator_Import-Expor'!AR$7:AR$210,MATCH($B49,'Coverage Indicator_Import-Expor'!$C$7:$C$210,0))=\"\",\"\",INDEX('Coverage Indicator_Import-Expor'!AR$7:AR$210,MATCH($B49,'Coverage Indicator_Import-Expor'!$C$7:$C$210,0))),\"\")","v":""},{"$f":"IFERROR(IF(INDEX('Coverage Indicator_Import-Expor'!AS$7:AS$210,MATCH($B49,'Coverage Indicator_Import-Expor'!$C$7:$C$210,0))=\"\",\"\",INDEX('Coverage Indicator_Import-Expor'!AS$7:AS$210,MATCH($B49,'Coverage Indicator_Import-Expor'!$C$7:$C$210,0))),\"\")","v":""},{"$f":"IFERROR(IF(INDEX('Coverage Indicator_Import-Expor'!N$7:N$210,MATCH($B49,'Coverage Indicator_Import-Expor'!$C$7:$C$210,0))=\"\",\"\",INDEX('Coverage Indicator_Import-Expor'!N$7:N$210,MATCH($B49,'Coverage Indicator_Import-Expor'!$C$7:$C$210,0))),\"\")","v":""},{"$f":"IFERROR(IF(INDEX('Coverage Indicator_Import-Expor'!O$7:O$210,MATCH($B49,'Coverage Indicator_Import-Expor'!$C$7:$C$210,0))=\"\",\"\",INDEX('Coverage Indicator_Import-Expor'!O$7:O$210,MATCH($B49,'Coverage Indicator_Import-Expor'!$C$7:$C$210,0))),\"\")","v":""},{"$f":"IFERROR(IF(INDEX('Coverage Indicator_Import-Expor'!P$7:P$210,MATCH($B49,'Coverage Indicator_Import-Expor'!$C$7:$C$210,0))=\"\",\"\",INDEX('Coverage Indicator_Import-Expor'!P$7:P$210,MATCH($B49,'Coverage Indicator_Import-Expor'!$C$7:$C$210,0))),\"\")","v":""},{"$f":"IFERROR(IF(INDEX('Coverage Indicator_Import-Expor'!Q$7:Q$210,MATCH($B49,'Coverage Indicator_Import-Expor'!$C$7:$C$210,0))=\"\",\"\",INDEX('Coverage Indicator_Import-Expor'!Q$7:Q$210,MATCH($B49,'Coverage Indicator_Import-Expor'!$C$7:$C$210,0))),\"\")","v":""},{"$f":"IFERROR(IF(INDEX('Coverage Indicator_Import-Expor'!R$7:R$210,MATCH($B49,'Coverage Indicator_Import-Expor'!$C$7:$C$210,0))=\"\",\"\",INDEX('Coverage Indicator_Import-Expor'!R$7:R$210,MATCH($B49,'Coverage Indicator_Import-Expor'!$C$7:$C$210,0))),\"\")","v":""},{"$f":"IFERROR(IF(INDEX('Coverage Indicator_Import-Expor'!S$7:S$210,MATCH($B49,'Coverage Indicator_Import-Expor'!$C$7:$C$210,0))=\"\",\"\",INDEX('Coverage Indicator_Import-Expor'!S$7:S$210,MATCH($B49,'Coverage Indicator_Import-Expor'!$C$7:$C$210,0))),\"\")","v":""},{"$f":"IFERROR(IF(INDEX('Coverage Indicator_Import-Expor'!T$7:T$210,MATCH($B49,'Coverage Indicator_Import-Expor'!$C$7:$C$210,0))=\"\",\"\",INDEX('Coverage Indicator_Import-Expor'!T$7:T$210,MATCH($B49,'Coverage Indicator_Import-Expor'!$C$7:$C$210,0))),\"\")","v":""},{"$f":"IFERROR(IF(INDEX('Coverage Indicator_Import-Expor'!U$7:U$210,MATCH($B49,'Coverage Indicator_Import-Expor'!$C$7:$C$210,0))=\"\",\"\",INDEX('Coverage Indicator_Import-Expor'!U$7:U$210,MATCH($B49,'Coverage Indicator_Import-Expor'!$C$7:$C$210,0))),\"\")","v":""},null,null,"",null," ",null,"No Results Reported",null,null,"",null," ",null,null,"No Results Reported",null,null,""," ",null,"No Results Reported"]
[40,{"$f":"\"Coverage\"&A50","v":"Coverage40"},{"$f":"IFERROR(INDEX('Coverage Indicator_Import-Expor'!$D$7:$D$210,MATCH(B50,'Coverage Indicator_Import-Expor'!$C$7:$C$210,0)),\"\")","v":""},{"$f":"IFERROR(INDEX('Coverage Indicator_Import-Expor'!$E$7:$E$210,MATCH(B50,'Coverage Indicator_Import-Expor'!$C$7:$C$210,0)),\"\")","v":""},{"$f":"IFERROR(IF(INDEX('Coverage Indicator_Import-Expor'!K$7:K$210,MATCH($B50,'Coverage Indicator_Import-Expor'!$C$7:$C$210,0))=\"\",\"\",INDEX('Coverage Indicator_Import-Expor'!K$7:K$210,MATCH($B50,'Coverage Indicator_Import-Expor'!$C$7:$C$210,0))),\"\")","v":""},{"$f":"IFERROR(IF(INDEX('Coverage Indicator_Import-Expor'!L$7:L$210,MATCH($B50,'Coverage Indicator_Import-Expor'!$C$7:$C$210,0))=\"\",\"\",INDEX('Coverage Indicator_Import-Expor'!L$7:L$210,MATCH($B50,'Coverage Indicator_Import-Expor'!$C$7:$C$210,0))),\"\")","v":""},{"$f":"IFERROR(IF(INDEX('Coverage Indicator_Import-Expor'!AR$7:AR$210,MATCH($B50,'Coverage Indicator_Import-Expor'!$C$7:$C$210,0))=\"\",\"\",INDEX('Coverage Indicator_Import-Expor'!AR$7:AR$210,MATCH($B50,'Coverage Indicator_Import-Expor'!$C$7:$C$210,0))),\"\")","v":""},{"$f":"IFERROR(IF(INDEX('Coverage Indicator_Import-Expor'!AS$7:AS$210,MATCH($B50,'Coverage Indicator_Import-Expor'!$C$7:$C$210,0))=\"\",\"\",INDEX('Coverage Indicator_Import-Expor'!AS$7:AS$210,MATCH($B50,'Coverage Indicator_Import-Expor'!$C$7:$C$210,0))),\"\")","v":""},{"$f":"IFERROR(IF(INDEX('Coverage Indicator_Import-Expor'!N$7:N$210,MATCH($B50,'Coverage Indicator_Import-Expor'!$C$7:$C$210,0))=\"\",\"\",INDEX('Coverage Indicator_Import-Expor'!N$7:N$210,MATCH($B50,'Coverage Indicator_Import-Expor'!$C$7:$C$210,0))),\"\")","v":""},{"$f":"IFERROR(IF(INDEX('Coverage Indicator_Import-Expor'!O$7:O$210,MATCH($B50,'Coverage Indicator_Import-Expor'!$C$7:$C$210,0))=\"\",\"\",INDEX('Coverage Indicator_Import-Expor'!O$7:O$210,MATCH($B50,'Coverage Indicator_Import-Expor'!$C$7:$C$210,0))),\"\")","v":""},{"$f":"IFERROR(IF(INDEX('Coverage Indicator_Import-Expor'!P$7:P$210,MATCH($B50,'Coverage Indicator_Import-Expor'!$C$7:$C$210,0))=\"\",\"\",INDEX('Coverage Indicator_Import-Expor'!P$7:P$210,MATCH($B50,'Coverage Indicator_Import-Expor'!$C$7:$C$210,0))),\"\")","v":""},{"$f":"IFERROR(IF(INDEX('Coverage Indicator_Import-Expor'!Q$7:Q$210,MATCH($B50,'Coverage Indicator_Import-Expor'!$C$7:$C$210,0))=\"\",\"\",INDEX('Coverage Indicator_Import-Expor'!Q$7:Q$210,MATCH($B50,'Coverage Indicator_Import-Expor'!$C$7:$C$210,0))),\"\")","v":""},{"$f":"IFERROR(IF(INDEX('Coverage Indicator_Import-Expor'!R$7:R$210,MATCH($B50,'Coverage Indicator_Import-Expor'!$C$7:$C$210,0))=\"\",\"\",INDEX('Coverage Indicator_Import-Expor'!R$7:R$210,MATCH($B50,'Coverage Indicator_Import-Expor'!$C$7:$C$210,0))),\"\")","v":""},{"$f":"IFERROR(IF(INDEX('Coverage Indicator_Import-Expor'!S$7:S$210,MATCH($B50,'Coverage Indicator_Import-Expor'!$C$7:$C$210,0))=\"\",\"\",INDEX('Coverage Indicator_Import-Expor'!S$7:S$210,MATCH($B50,'Coverage Indicator_Import-Expor'!$C$7:$C$210,0))),\"\")","v":""},{"$f":"IFERROR(IF(INDEX('Coverage Indicator_Import-Expor'!T$7:T$210,MATCH($B50,'Coverage Indicator_Import-Expor'!$C$7:$C$210,0))=\"\",\"\",INDEX('Coverage Indicator_Import-Expor'!T$7:T$210,MATCH($B50,'Coverage Indicator_Import-Expor'!$C$7:$C$210,0))),\"\")","v":""},{"$f":"IFERROR(IF(INDEX('Coverage Indicator_Import-Expor'!U$7:U$210,MATCH($B50,'Coverage Indicator_Import-Expor'!$C$7:$C$210,0))=\"\",\"\",INDEX('Coverage Indicator_Import-Expor'!U$7:U$210,MATCH($B50,'Coverage Indicator_Import-Expor'!$C$7:$C$210,0))),\"\")","v":""},null,null,{"$f":"IFERROR((Q50/R50)*100,\"\")","v":""},null,{"$f":"IFERROR(IF(AND(N50<>\"\",O50=\"\",Q50<>\"\",R50=\"\"),IF((Q50/N50)>120%,120%,(Q50/N50)),IF((S50/P50)>120%,120%,(S50/P50))),\" \")","v":" "},null,{"$f":"IF(AND(Q50=\"\",R50=\"\",S50=\"\"),\"No Results Reported\",IF(AND(N50<>\"\",O50=\"\",P50=\"\",OR(R50<>\"\",S50<>\"\")),\"Target contains only a numerator. Please Report only a numerator for the result\",\"Continue\"))","v":"No Results Reported"},null,null,{"$f":"IFERROR((X50/Y50)*100,\"\")","v":""},null,{"$f":"IFERROR(IF(AND(N50<>\"\",O50=\"\",X50<>\"\",Y50=\"\"),IF((X50/N50)>120%,120%,(X50/N50)),IF((Z50/P50)>120%,120%,(Z50/P50))),\" \")","v":" "},null,null,{"$f":"IF(AND(X50=\"\",Y50=\"\",Z50=\"\"),\"No Results Reported\",IF(AND(Q50<>\"\",R50=\"\",S50=\"\",OR(Y50<>\"\",Z50<>\"\")),\"Target contains only a numerator. Please Report only a numerator for the result\",\"Continue\"))","v":"No Results Reported"},null,null,{"$f":"IFERROR((AF50/AG50)*100,\"\")","v":""},{"$f":"IFERROR(IF(AND(N50<>\"\",O50=\"\",AF50<>\"\",AG50=\"\"),IF((AF50/N50)>120%,120%,(AF50/N50)),IF((AH50/P50)>120%,120%,(AH50/P50))),\" \")","v":" "},null,{"$f":"IF(AND(AF50=\"\",AG50=\"\",AH50=\"\"),\"No Results Reported\",IF(AND(I50<>\"\",J50=\"\",K50=\"\",OR(AG50<>\"\",AH50<>\"\")),\"Target contains only a numerator. Please Report only a numerator for the result\",\"Continue\"))","v":"No Results Reported"}]
[41,"Coverage41",{"$f":"IFERROR(INDEX('Coverage Indicator_Import-Expor'!$D$7:$D$210,MATCH(B51,'Coverage Indicator_Import-Expor'!$C$7:$C$210,0)),\"\")","v":""},{"$f":"IFERROR(INDEX('Coverage Indicator_Import-Expor'!$E$7:$E$210,MATCH(B51,'Coverage Indicator_Import-Expor'!$C$7:$C$210,0)),\"\")","v":""},{"$f":"IFERROR(IF(INDEX('Coverage Indicator_Import-Expor'!K$7:K$210,MATCH($B51,'Coverage Indicator_Import-Expor'!$C$7:$C$210,0))=\"\",\"\",INDEX('Coverage Indicator_Import-Expor'!K$7:K$210,MATCH($B51,'Coverage Indicator_Import-Expor'!$C$7:$C$210,0))),\"\")","v":""},{"$f":"IFERROR(IF(INDEX('Coverage Indicator_Import-Expor'!L$7:L$210,MATCH($B51,'Coverage Indicator_Import-Expor'!$C$7:$C$210,0))=\"\",\"\",INDEX('Coverage Indicator_Import-Expor'!L$7:L$210,MATCH($B51,'Coverage Indicator_Import-Expor'!$C$7:$C$210,0))),\"\")","v":""},{"$f":"IFERROR(IF(INDEX('Coverage Indicator_Import-Expor'!AR$7:AR$210,MATCH($B51,'Coverage Indicator_Import-Expor'!$C$7:$C$210,0))=\"\",\"\",INDEX('Coverage Indicator_Import-Expor'!AR$7:AR$210,MATCH($B51,'Coverage Indicator_Import-Expor'!$C$7:$C$210,0))),\"\")","v":""},{"$f":"IFERROR(IF(INDEX('Coverage Indicator_Import-Expor'!AS$7:AS$210,MATCH($B51,'Coverage Indicator_Import-Expor'!$C$7:$C$210,0))=\"\",\"\",INDEX('Coverage Indicator_Import-Expor'!AS$7:AS$210,MATCH($B51,'Coverage Indicator_Import-Expor'!$C$7:$C$210,0))),\"\")","v":""},{"$f":"IFERROR(IF(INDEX('Coverage Indicator_Import-Expor'!N$7:N$210,MATCH($B51,'Coverage Indicator_Import-Expor'!$C$7:$C$210,0))=\"\",\"\",INDEX('Coverage Indicator_Import-Expor'!N$7:N$210,MATCH($B51,'Coverage Indicator_Import-Expor'!$C$7:$C$210,0))),\"\")","v":""},{"$f":"IFERROR(IF(INDEX('Coverage Indicator_Import-Expor'!O$7:O$210,MATCH($B51,'Coverage Indicator_Import-Expor'!$C$7:$C$210,0))=\"\",\"\",INDEX('Coverage Indicator_Import-Expor'!O$7:O$210,MATCH($B51,'Coverage Indicator_Import-Expor'!$C$7:$C$210,0))),\"\")","v":""},{"$f":"IFERROR(IF(INDEX('Coverage Indicator_Import-Expor'!P$7:P$210,MATCH($B51,'Coverage Indicator_Import-Expor'!$C$7:$C$210,0))=\"\",\"\",INDEX('Coverage Indicator_Import-Expor'!P$7:P$210,MATCH($B51,'Coverage Indicator_Import-Expor'!$C$7:$C$210,0))),\"\")","v":""},{"$f":"IFERROR(IF(INDEX('Coverage Indicator_Import-Expor'!Q$7:Q$210,MATCH($B51,'Coverage Indicator_Import-Expor'!$C$7:$C$210,0))=\"\",\"\",INDEX('Coverage Indicator_Import-Expor'!Q$7:Q$210,MATCH($B51,'Coverage Indicator_Import-Expor'!$C$7:$C$210,0))),\"\")","v":""},{"$f":"IFERROR(IF(INDEX('Coverage Indicator_Import-Expor'!R$7:R$210,MATCH($B51,'Coverage Indicator_Import-Expor'!$C$7:$C$210,0))=\"\",\"\",INDEX('Coverage Indicator_Import-Expor'!R$7:R$210,MATCH($B51,'Coverage Indicator_Import-Expor'!$C$7:$C$210,0))),\"\")","v":""},{"$f":"IFERROR(IF(INDEX('Coverage Indicator_Import-Expor'!S$7:S$210,MATCH($B51,'Coverage Indicator_Import-Expor'!$C$7:$C$210,0))=\"\",\"\",INDEX('Coverage Indicator_Import-Expor'!S$7:S$210,MATCH($B51,'Coverage Indicator_Import-Expor'!$C$7:$C$210,0))),\"\")","v":""},{"$f":"IFERROR(IF(INDEX('Coverage Indicator_Import-Expor'!T$7:T$210,MATCH($B51,'Coverage Indicator_Import-Expor'!$C$7:$C$210,0))=\"\",\"\",INDEX('Coverage Indicator_Import-Expor'!T$7:T$210,MATCH($B51,'Coverage Indicator_Import-Expor'!$C$7:$C$210,0))),\"\")","v":""},{"$f":"IFERROR(IF(INDEX('Coverage Indicator_Import-Expor'!U$7:U$210,MATCH($B51,'Coverage Indicator_Import-Expor'!$C$7:$C$210,0))=\"\",\"\",INDEX('Coverage Indicator_Import-Expor'!U$7:U$210,MATCH($B51,'Coverage Indicator_Import-Expor'!$C$7:$C$210,0))),\"\")","v":""},null,null,"",null," ",null,"No Results Reported",null,null,"",null," ",null,null,"No Results Reported",null,null,""," ",null,"No Results Reported"]
[42,"Coverage42",{"$f":"IFERROR(INDEX('Coverage Indicator_Import-Expor'!$D$7:$D$210,MATCH(B52,'Coverage Indicator_Import-Expor'!$C$7:$C$210,0)),\"\")","v":""},{"$f":"IFERROR(INDEX('Coverage Indicator_Import-Expor'!$E$7:$E$210,MATCH(B52,'Coverage Indicator_Import-Expor'!$C$7:$C$210,0)),\"\")","v":""},{"$f":"IFERROR(IF(INDEX('Coverage Indicator_Import-Expor'!K$7:K$210,MATCH($B52,'Coverage Indicator_Import-Expor'!$C$7:$C$210,0))=\"\",\"\",INDEX('Coverage Indicator_Import-Expor'!K$7:K$210,MATCH($B52,'Coverage Indicator_Import-Expor'!$C$7:$C$210,0))),\"\")","v":""},{"$f":"IFERROR(IF(INDEX('Coverage Indicator_Import-Expor'!L$7:L$210,MATCH($B52,'Coverage Indicator_Import-Expor'!$C$7:$C$210,0))=\"\",\"\",INDEX('Coverage Indicator_Import-Expor'!L$7:L$210,MATCH($B52,'Coverage Indicator_Import-Expor'!$C$7:$C$210,0))),\"\")","v":""},{"$f":"IFERROR(IF(INDEX('Coverage Indicator_Import-Expor'!AR$7:AR$210,MATCH($B52,'Coverage Indicator_Import-Expor'!$C$7:$C$210,0))=\"\",\"\",INDEX('Coverage Indicator_Import-Expor'!AR$7:AR$210,MATCH($B52,'Coverage Indicator_Import-Expor'!$C$7:$C$210,0))),\"\")","v":""},{"$f":"IFERROR(IF(INDEX('Coverage Indicator_Import-Expor'!AS$7:AS$210,MATCH($B52,'Coverage Indicator_Import-Expor'!$C$7:$C$210,0))=\"\",\"\",INDEX('Coverage Indicator_Import-Expor'!AS$7:AS$210,MATCH($B52,'Coverage Indicator_Import-Expor'!$C$7:$C$210,0))),\"\")","v":""},{"$f":"IFERROR(IF(INDEX('Coverage Indicator_Import-Expor'!N$7:N$210,MATCH($B52,'Coverage Indicator_Import-Expor'!$C$7:$C$210,0))=\"\",\"\",INDEX('Coverage Indicator_Import-Expor'!N$7:N$210,MATCH($B52,'Coverage Indicator_Import-Expor'!$C$7:$C$210,0))),\"\")","v":""},{"$f":"IFERROR(IF(INDEX('Coverage Indicator_Import-Expor'!O$7:O$210,MATCH($B52,'Coverage Indicator_Import-Expor'!$C$7:$C$210,0))=\"\",\"\",INDEX('Coverage Indicator_Import-Expor'!O$7:O$210,MATCH($B52,'Coverage Indicator_Import-Expor'!$C$7:$C$210,0))),\"\")","v":""},{"$f":"IFERROR(IF(INDEX('Coverage Indicator_Import-Expor'!P$7:P$210,MATCH($B52,'Coverage Indicator_Import-Expor'!$C$7:$C$210,0))=\"\",\"\",INDEX('Coverage Indicator_Import-Expor'!P$7:P$210,MATCH($B52,'Coverage Indicator_Import-Expor'!$C$7:$C$210,0))),\"\")","v":""},{"$f":"IFERROR(IF(INDEX('Coverage Indicator_Import-Expor'!Q$7:Q$210,MATCH($B52,'Coverage Indicator_Import-Expor'!$C$7:$C$210,0))=\"\",\"\",INDEX('Coverage Indicator_Import-Expor'!Q$7:Q$210,MATCH($B52,'Coverage Indicator_Import-Expor'!$C$7:$C$210,0))),\"\")","v":""},{"$f":"IFERROR(IF(INDEX('Coverage Indicator_Import-Expor'!R$7:R$210,MATCH($B52,'Coverage Indicator_Import-Expor'!$C$7:$C$210,0))=\"\",\"\",INDEX('Coverage Indicator_Import-Expor'!R$7:R$210,MATCH($B52,'Coverage Indicator_Import-Expor'!$C$7:$C$210,0))),\"\")","v":""},{"$f":"IFERROR(IF(INDEX('Coverage Indicator_Import-Expor'!S$7:S$210,MATCH($B52,'Coverage Indicator_Import-Expor'!$C$7:$C$210,0))=\"\",\"\",INDEX('Coverage Indicator_Import-Expor'!S$7:S$210,MATCH($B52,'Coverage Indicator_Import-Expor'!$C$7:$C$210,0))),\"\")","v":""},{"$f":"IFERROR(IF(INDEX('Coverage Indicator_Import-Expor'!T$7:T$210,MATCH($B52,'Coverage Indicator_Import-Expor'!$C$7:$C$210,0))=\"\",\"\",INDEX('Coverage Indicator_Import-Expor'!T$7:T$210,MATCH($B52,'Coverage Indicator_Import-Expor'!$C$7:$C$210,0))),\"\")","v":""},{"$f":"IFERROR(IF(INDEX('Coverage Indicator_Import-Expor'!U$7:U$210,MATCH($B52,'Coverage Indicator_Import-Expor'!$C$7:$C$210,0))=\"\",\"\",INDEX('Coverage Indicator_Import-Expor'!U$7:U$210,MATCH($B52,'Coverage Indicator_Import-Expor'!$C$7:$C$210,0))),\"\")","v":""},null,null,"",null," ",null,"No Results Reported",null,null,"",null," ",null,null,"No Results Reported",null,null,""," ",null,"No Results Reported"]
[43,"Coverage43",{"$f":"IFERROR(INDEX('Coverage Indicator_Import-Expor'!$D$7:$D$210,MATCH(B53,'Coverage Indicator_Import-Expor'!$C$7:$C$210,0)),\"\")","v":""},{"$f":"IFERROR(INDEX('Coverage Indicator_Import-Expor'!$E$7:$E$210,MATCH(B53,'Coverage Indicator_Import-Expor'!$C$7:$C$210,0)),\"\")","v":""},{"$f":"IFERROR(IF(INDEX('Coverage Indicator_Import-Expor'!K$7:K$210,MATCH($B53,'Coverage Indicator_Import-Expor'!$C$7:$C$210,0))=\"\",\"\",INDEX('Coverage Indicator_Import-Expor'!K$7:K$210,MATCH($B53,'Coverage Indicator_Import-Expor'!$C$7:$C$210,0))),\"\")","v":""},{"$f":"IFERROR(IF(INDEX('Coverage Indicator_Import-Expor'!L$7:L$210,MATCH($B53,'Coverage Indicator_Import-Expor'!$C$7:$C$210,0))=\"\",\"\",INDEX('Coverage Indicator_Import-Expor'!L$7:L$210,MATCH($B53,'Coverage Indicator_Import-Expor'!$C$7:$C$210,0))),\"\")","v":""},{"$f":"IFERROR(IF(INDEX('Coverage Indicator_Import-Expor'!AR$7:AR$210,MATCH($B53,'Coverage Indicator_Import-Expor'!$C$7:$C$210,0))=\"\",\"\",INDEX('Coverage Indicator_Import-Expor'!AR$7:AR$210,MATCH($B53,'Coverage Indicator_Import-Expor'!$C$7:$C$210,0))),\"\")","v":""},{"$f":"IFERROR(IF(INDEX('Coverage Indicator_Import-Expor'!AS$7:AS$210,MATCH($B53,'Coverage Indicator_Import-Expor'!$C$7:$C$210,0))=\"\",\"\",INDEX('Coverage Indicator_Import-Expor'!AS$7:AS$210,MATCH($B53,'Coverage Indicator_Import-Expor'!$C$7:$C$210,0))),\"\")","v":""},{"$f":"IFERROR(IF(INDEX('Coverage Indicator_Import-Expor'!N$7:N$210,MATCH($B53,'Coverage Indicator_Import-Expor'!$C$7:$C$210,0))=\"\",\"\",INDEX('Coverage Indicator_Import-Expor'!N$7:N$210,MATCH($B53,'Coverage Indicator_Import-Expor'!$C$7:$C$210,0))),\"\")","v":""},{"$f":"IFERROR(IF(INDEX('Coverage Indicator_Import-Expor'!O$7:O$210,MATCH($B53,'Coverage Indicator_Import-Expor'!$C$7:$C$210,0))=\"\",\"\",INDEX('Coverage Indicator_Import-Expor'!O$7:O$210,MATCH($B53,'Coverage Indicator_Import-Expor'!$C$7:$C$210,0))),\"\")","v":""},{"$f":"IFERROR(IF(INDEX('Coverage Indicator_Import-Expor'!P$7:P$210,MATCH($B53,'Coverage Indicator_Import-Expor'!$C$7:$C$210,0))=\"\",\"\",INDEX('Coverage Indicator_Import-Expor'!P$7:P$210,MATCH($B53,'Coverage Indicator_Import-Expor'!$C$7:$C$210,0))),\"\")","v":""},{"$f":"IFERROR(IF(INDEX('Coverage Indicator_Import-Expor'!Q$7:Q$210,MATCH($B53,'Coverage Indicator_Import-Expor'!$C$7:$C$210,0))=\"\",\"\",INDEX('Coverage Indicator_Import-Expor'!Q$7:Q$210,MATCH($B53,'Coverage Indicator_Import-Expor'!$C$7:$C$210,0))),\"\")","v":""},{"$f":"IFERROR(IF(INDEX('Coverage Indicator_Import-Expor'!R$7:R$210,MATCH($B53,'Coverage Indicator_Import-Expor'!$C$7:$C$210,0))=\"\",\"\",INDEX('Coverage Indicator_Import-Expor'!R$7:R$210,MATCH($B53,'Coverage Indicator_Import-Expor'!$C$7:$C$210,0))),\"\")","v":""},{"$f":"IFERROR(IF(INDEX('Coverage Indicator_Import-Expor'!S$7:S$210,MATCH($B53,'Coverage Indicator_Import-Expor'!$C$7:$C$210,0))=\"\",\"\",INDEX('Coverage Indicator_Import-Expor'!S$7:S$210,MATCH($B53,'Coverage Indicator_Import-Expor'!$C$7:$C$210,0))),\"\")","v":""},{"$f":"IFERROR(IF(INDEX('Coverage Indicator_Import-Expor'!T$7:T$210,MATCH($B53,'Coverage Indicator_Import-Expor'!$C$7:$C$210,0))=\"\",\"\",INDEX('Coverage Indicator_Import-Expor'!T$7:T$210,MATCH($B53,'Coverage Indicator_Import-Expor'!$C$7:$C$210,0))),\"\")","v":""},{"$f":"IFERROR(IF(INDEX('Coverage Indicator_Import-Expor'!U$7:U$210,MATCH($B53,'Coverage Indicator_Import-Expor'!$C$7:$C$210,0))=\"\",\"\",INDEX('Coverage Indicator_Import-Expor'!U$7:U$210,MATCH($B53,'Coverage Indicator_Import-Expor'!$C$7:$C$210,0))),\"\")","v":""},null,null,"",null," ",null,"No Results Reported",null,null,"",null," ",null,null,"No Results Reported",null,null,""," ",null,"No Results Reported"]
[44,"Coverage44",{"$f":"IFERROR(INDEX('Coverage Indicator_Import-Expor'!$D$7:$D$210,MATCH(B54,'Coverage Indicator_Import-Expor'!$C$7:$C$210,0)),\"\")","v":""},{"$f":"IFERROR(INDEX('Coverage Indicator_Import-Expor'!$E$7:$E$210,MATCH(B54,'Coverage Indicator_Import-Expor'!$C$7:$C$210,0)),\"\")","v":""},{"$f":"IFERROR(IF(INDEX('Coverage Indicator_Import-Expor'!K$7:K$210,MATCH($B54,'Coverage Indicator_Import-Expor'!$C$7:$C$210,0))=\"\",\"\",INDEX('Coverage Indicator_Import-Expor'!K$7:K$210,MATCH($B54,'Coverage Indicator_Import-Expor'!$C$7:$C$210,0))),\"\")","v":""},{"$f":"IFERROR(IF(INDEX('Coverage Indicator_Import-Expor'!L$7:L$210,MATCH($B54,'Coverage Indicator_Import-Expor'!$C$7:$C$210,0))=\"\",\"\",INDEX('Coverage Indicator_Import-Expor'!L$7:L$210,MATCH($B54,'Coverage Indicator_Import-Expor'!$C$7:$C$210,0))),\"\")","v":""},{"$f":"IFERROR(IF(INDEX('Coverage Indicator_Import-Expor'!AR$7:AR$210,MATCH($B54,'Coverage Indicator_Import-Expor'!$C$7:$C$210,0))=\"\",\"\",INDEX('Coverage Indicator_Import-Expor'!AR$7:AR$210,MATCH($B54,'Coverage Indicator_Import-Expor'!$C$7:$C$210,0))),\"\")","v":""},{"$f":"IFERROR(IF(INDEX('Coverage Indicator_Import-Expor'!AS$7:AS$210,MATCH($B54,'Coverage Indicator_Import-Expor'!$C$7:$C$210,0))=\"\",\"\",INDEX('Coverage Indicator_Import-Expor'!AS$7:AS$210,MATCH($B54,'Coverage Indicator_Import-Expor'!$C$7:$C$210,0))),\"\")","v":""},{"$f":"IFERROR(IF(INDEX('Coverage Indicator_Import-Expor'!N$7:N$210,MATCH($B54,'Coverage Indicator_Import-Expor'!$C$7:$C$210,0))=\"\",\"\",INDEX('Coverage Indicator_Import-Expor'!N$7:N$210,MATCH($B54,'Coverage Indicator_Import-Expor'!$C$7:$C$210,0))),\"\")","v":""},{"$f":"IFERROR(IF(INDEX('Coverage Indicator_Import-Expor'!O$7:O$210,MATCH($B54,'Coverage Indicator_Import-Expor'!$C$7:$C$210,0))=\"\",\"\",INDEX('Coverage Indicator_Import-Expor'!O$7:O$210,MATCH($B54,'Coverage Indicator_Import-Expor'!$C$7:$C$210,0))),\"\")","v":""},{"$f":"IFERROR(IF(INDEX('Coverage Indicator_Import-Expor'!P$7:P$210,MATCH($B54,'Coverage Indicator_Import-Expor'!$C$7:$C$210,0))=\"\",\"\",INDEX('Coverage Indicator_Import-Expor'!P$7:P$210,MATCH($B54,'Coverage Indicator_Import-Expor'!$C$7:$C$210,0))),\"\")","v":""},{"$f":"IFERROR(IF(INDEX('Coverage Indicator_Import-Expor'!Q$7:Q$210,MATCH($B54,'Coverage Indicator_Import-Expor'!$C$7:$C$210,0))=\"\",\"\",INDEX('Coverage Indicator_Import-Expor'!Q$7:Q$210,MATCH($B54,'Coverage Indicator_Import-Expor'!$C$7:$C$210,0))),\"\")","v":""},{"$f":"IFERROR(IF(INDEX('Coverage Indicator_Import-Expor'!R$7:R$210,MATCH($B54,'Coverage Indicator_Import-Expor'!$C$7:$C$210,0))=\"\",\"\",INDEX('Coverage Indicator_Import-Expor'!R$7:R$210,MATCH($B54,'Coverage Indicator_Import-Expor'!$C$7:$C$210,0))),\"\")","v":""},{"$f":"IFERROR(IF(INDEX('Coverage Indicator_Import-Expor'!S$7:S$210,MATCH($B54,'Coverage Indicator_Import-Expor'!$C$7:$C$210,0))=\"\",\"\",INDEX('Coverage Indicator_Import-Expor'!S$7:S$210,MATCH($B54,'Coverage Indicator_Import-Expor'!$C$7:$C$210,0))),\"\")","v":""},{"$f":"IFERROR(IF(INDEX('Coverage Indicator_Import-Expor'!T$7:T$210,MATCH($B54,'Coverage Indicator_Import-Expor'!$C$7:$C$210,0))=\"\",\"\",INDEX('Coverage Indicator_Import-Expor'!T$7:T$210,MATCH($B54,'Coverage Indicator_Import-Expor'!$C$7:$C$210,0))),\"\")","v":""},{"$f":"IFERROR(IF(INDEX('Coverage Indicator_Import-Expor'!U$7:U$210,MATCH($B54,'Coverage Indicator_Import-Expor'!$C$7:$C$210,0))=\"\",\"\",INDEX('Coverage Indicator_Import-Expor'!U$7:U$210,MATCH($B54,'Coverage Indicator_Import-Expor'!$C$7:$C$210,0))),\"\")","v":""},null,null,"",null," ",null,"No Results Reported",null,null,"",null," ",null,null,"No Results Reported",null,null,""," ",null,"No Results Reported"]
[45,"Coverage45",{"$f":"IFERROR(INDEX('Coverage Indicator_Import-Expor'!$D$7:$D$210,MATCH(B55,'Coverage Indicator_Import-Expor'!$C$7:$C$210,0)),\"\")","v":""},{"$f":"IFERROR(INDEX('Coverage Indicator_Import-Expor'!$E$7:$E$210,MATCH(B55,'Coverage Indicator_Import-Expor'!$C$7:$C$210,0)),\"\")","v":""},{"$f":"IFERROR(IF(INDEX('Coverage Indicator_Import-Expor'!K$7:K$210,MATCH($B55,'Coverage Indicator_Import-Expor'!$C$7:$C$210,0))=\"\",\"\",INDEX('Coverage Indicator_Import-Expor'!K$7:K$210,MATCH($B55,'Coverage Indicator_Import-Expor'!$C$7:$C$210,0))),\"\")","v":""},{"$f":"IFERROR(IF(INDEX('Coverage Indicator_Import-Expor'!L$7:L$210,MATCH($B55,'Coverage Indicator_Import-Expor'!$C$7:$C$210,0))=\"\",\"\",INDEX('Coverage Indicator_Import-Expor'!L$7:L$210,MATCH($B55,'Coverage Indicator_Import-Expor'!$C$7:$C$210,0))),\"\")","v":""},{"$f":"IFERROR(IF(INDEX('Coverage Indicator_Import-Expor'!AR$7:AR$210,MATCH($B55,'Coverage Indicator_Import-Expor'!$C$7:$C$210,0))=\"\",\"\",INDEX('Coverage Indicator_Import-Expor'!AR$7:AR$210,MATCH($B55,'Coverage Indicator_Import-Expor'!$C$7:$C$210,0))),\"\")","v":""},{"$f":"IFERROR(IF(INDEX('Coverage Indicator_Import-Expor'!AS$7:AS$210,MATCH($B55,'Coverage Indicator_Import-Expor'!$C$7:$C$210,0))=\"\",\"\",INDEX('Coverage Indicator_Import-Expor'!AS$7:AS$210,MATCH($B55,'Coverage Indicator_Import-Expor'!$C$7:$C$210,0))),\"\")","v":""},{"$f":"IFERROR(IF(INDEX('Coverage Indicator_Import-Expor'!N$7:N$210,MATCH($B55,'Coverage Indicator_Import-Expor'!$C$7:$C$210,0))=\"\",\"\",INDEX('Coverage Indicator_Import-Expor'!N$7:N$210,MATCH($B55,'Coverage Indicator_Import-Expor'!$C$7:$C$210,0))),\"\")","v":""},{"$f":"IFERROR(IF(INDEX('Coverage Indicator_Import-Expor'!O$7:O$210,MATCH($B55,'Coverage Indicator_Import-Expor'!$C$7:$C$210,0))=\"\",\"\",INDEX('Coverage Indicator_Import-Expor'!O$7:O$210,MATCH($B55,'Coverage Indicator_Import-Expor'!$C$7:$C$210,0))),\"\")","v":""},{"$f":"IFERROR(IF(INDEX('Coverage Indicator_Import-Expor'!P$7:P$210,MATCH($B55,'Coverage Indicator_Import-Expor'!$C$7:$C$210,0))=\"\",\"\",INDEX('Coverage Indicator_Import-Expor'!P$7:P$210,MATCH($B55,'Coverage Indicator_Import-Expor'!$C$7:$C$210,0))),\"\")","v":""},{"$f":"IFERROR(IF(INDEX('Coverage Indicator_Import-Expor'!Q$7:Q$210,MATCH($B55,'Coverage Indicator_Import-Expor'!$C$7:$C$210,0))=\"\",\"\",INDEX('Coverage Indicator_Import-Expor'!Q$7:Q$210,MATCH($B55,'Coverage Indicator_Import-Expor'!$C$7:$C$210,0))),\"\")","v":""},{"$f":"IFERROR(IF(INDEX('Coverage Indicator_Import-Expor'!R$7:R$210,MATCH($B55,'Coverage Indicator_Import-Expor'!$C$7:$C$210,0))=\"\",\"\",INDEX('Coverage Indicator_Import-Expor'!R$7:R$210,MATCH($B55,'Coverage Indicator_Import-Expor'!$C$7:$C$210,0))),\"\")","v":""},{"$f":"IFERROR(IF(INDEX('Coverage Indicator_Import-Expor'!S$7:S$210,MATCH($B55,'Coverage Indicator_Import-Expor'!$C$7:$C$210,0))=\"\",\"\",INDEX('Coverage Indicator_Import-Expor'!S$7:S$210,MATCH($B55,'Coverage Indicator_Import-Expor'!$C$7:$C$210,0))),\"\")","v":""},{"$f":"IFERROR(IF(INDEX('Coverage Indicator_Import-Expor'!T$7:T$210,MATCH($B55,'Coverage Indicator_Import-Expor'!$C$7:$C$210,0))=\"\",\"\",INDEX('Coverage Indicator_Import-Expor'!T$7:T$210,MATCH($B55,'Coverage Indicator_Import-Expor'!$C$7:$C$210,0))),\"\")","v":""},{"$f":"IFERROR(IF(INDEX('Coverage Indicator_Import-Expor'!U$7:U$210,MATCH($B55,'Coverage Indicator_Import-Expor'!$C$7:$C$210,0))=\"\",\"\",INDEX('Coverage Indicator_Import-Expor'!U$7:U$210,MATCH($B55,'Coverage Indicator_Import-Expor'!$C$7:$C$210,0))),\"\")","v":""},null,null,"",null," ",null,"No Results Reported",null,null,"",null," ",null,null,"No Results Reported",null,null,""," ",null,"No Results Reported"]
[46,"Coverage46",{"$f":"IFERROR(INDEX('Coverage Indicator_Import-Expor'!$D$7:$D$210,MATCH(B56,'Coverage Indicator_Import-Expor'!$C$7:$C$210,0)),\"\")","v":""},{"$f":"IFERROR(INDEX('Coverage Indicator_Import-Expor'!$E$7:$E$210,MATCH(B56,'Coverage Indicator_Import-Expor'!$C$7:$C$210,0)),\"\")","v":""},{"$f":"IFERROR(IF(INDEX('Coverage Indicator_Import-Expor'!K$7:K$210,MATCH($B56,'Coverage Indicator_Import-Expor'!$C$7:$C$210,0))=\"\",\"\",INDEX('Coverage Indicator_Import-Expor'!K$7:K$210,MATCH($B56,'Coverage Indicator_Import-Expor'!$C$7:$C$210,0))),\"\")","v":""},{"$f":"IFERROR(IF(INDEX('Coverage Indicator_Import-Expor'!L$7:L$210,MATCH($B56,'Coverage Indicator_Import-Expor'!$C$7:$C$210,0))=\"\",\"\",INDEX('Coverage Indicator_Import-Expor'!L$7:L$210,MATCH($B56,'Coverage Indicator_Import-Expor'!$C$7:$C$210,0))),\"\")","v":""},{"$f":"IFERROR(IF(INDEX('Coverage Indicator_Import-Expor'!AR$7:AR$210,MATCH($B56,'Coverage Indicator_Import-Expor'!$C$7:$C$210,0))=\"\",\"\",INDEX('Coverage Indicator_Import-Expor'!AR$7:AR$210,MATCH($B56,'Coverage Indicator_Import-Expor'!$C$7:$C$210,0))),\"\")","v":""},{"$f":"IFERROR(IF(INDEX('Coverage Indicator_Import-Expor'!AS$7:AS$210,MATCH($B56,'Coverage Indicator_Import-Expor'!$C$7:$C$210,0))=\"\",\"\",INDEX('Coverage Indicator_Import-Expor'!AS$7:AS$210,MATCH($B56,'Coverage Indicator_Import-Expor'!$C$7:$C$210,0))),\"\")","v":""},{"$f":"IFERROR(IF(INDEX('Coverage Indicator_Import-Expor'!N$7:N$210,MATCH($B56,'Coverage Indicator_Import-Expor'!$C$7:$C$210,0))=\"\",\"\",INDEX('Coverage Indicator_Import-Expor'!N$7:N$210,MATCH($B56,'Coverage Indicator_Import-Expor'!$C$7:$C$210,0))),\"\")","v":""},{"$f":"IFERROR(IF(INDEX('Coverage Indicator_Import-Expor'!O$7:O$210,MATCH($B56,'Coverage Indicator_Import-Expor'!$C$7:$C$210,0))=\"\",\"\",INDEX('Coverage Indicator_Import-Expor'!O$7:O$210,MATCH($B56,'Coverage Indicator_Import-Expor'!$C$7:$C$210,0))),\"\")","v":""},{"$f":"IFERROR(IF(INDEX('Coverage Indicator_Import-Expor'!P$7:P$210,MATCH($B56,'Coverage Indicator_Import-Expor'!$C$7:$C$210,0))=\"\",\"\",INDEX('Coverage Indicator_Import-Expor'!P$7:P$210,MATCH($B56,'Coverage Indicator_Import-Expor'!$C$7:$C$210,0))),\"\")","v":""},{"$f":"IFERROR(IF(INDEX('Coverage Indicator_Import-Expor'!Q$7:Q$210,MATCH($B56,'Coverage Indicator_Import-Expor'!$C$7:$C$210,0))=\"\",\"\",INDEX('Coverage Indicator_Import-Expor'!Q$7:Q$210,MATCH($B56,'Coverage Indicator_Import-Expor'!$C$7:$C$210,0))),\"\")","v":""},{"$f":"IFERROR(IF(INDEX('Coverage Indicator_Import-Expor'!R$7:R$210,MATCH($B56,'Coverage Indicator_Import-Expor'!$C$7:$C$210,0))=\"\",\"\",INDEX('Coverage Indicator_Import-Expor'!R$7:R$210,MATCH($B56,'Coverage Indicator_Import-Expor'!$C$7:$C$210,0))),\"\")","v":""},{"$f":"IFERROR(IF(INDEX('Coverage Indicator_Import-Expor'!S$7:S$210,MATCH($B56,'Coverage Indicator_Import-Expor'!$C$7:$C$210,0))=\"\",\"\",INDEX('Coverage Indicator_Import-Expor'!S$7:S$210,MATCH($B56,'Coverage Indicator_Import-Expor'!$C$7:$C$210,0))),\"\")","v":""},{"$f":"IFERROR(IF(INDEX('Coverage Indicator_Import-Expor'!T$7:T$210,MATCH($B56,'Coverage Indicator_Import-Expor'!$C$7:$C$210,0))=\"\",\"\",INDEX('Coverage Indicator_Import-Expor'!T$7:T$210,MATCH($B56,'Coverage Indicator_Import-Expor'!$C$7:$C$210,0))),\"\")","v":""},{"$f":"IFERROR(IF(INDEX('Coverage Indicator_Import-Expor'!U$7:U$210,MATCH($B56,'Coverage Indicator_Import-Expor'!$C$7:$C$210,0))=\"\",\"\",INDEX('Coverage Indicator_Import-Expor'!U$7:U$210,MATCH($B56,'Coverage Indicator_Import-Expor'!$C$7:$C$210,0))),\"\")","v":""},null,null,"",null," ",null,"No Results Reported",null,null,"",null," ",null,null,"No Results Reported",null,null,""," ",null,"No Results Reported"]
[47,"Coverage47",{"$f":"IFERROR(INDEX('Coverage Indicator_Import-Expor'!$D$7:$D$210,MATCH(B57,'Coverage Indicator_Import-Expor'!$C$7:$C$210,0)),\"\")","v":""},{"$f":"IFERROR(INDEX('Coverage Indicator_Import-Expor'!$E$7:$E$210,MATCH(B57,'Coverage Indicator_Import-Expor'!$C$7:$C$210,0)),\"\")","v":""},{"$f":"IFERROR(IF(INDEX('Coverage Indicator_Import-Expor'!K$7:K$210,MATCH($B57,'Coverage Indicator_Import-Expor'!$C$7:$C$210,0))=\"\",\"\",INDEX('Coverage Indicator_Import-Expor'!K$7:K$210,MATCH($B57,'Coverage Indicator_Import-Expor'!$C$7:$C$210,0))),\"\")","v":""},{"$f":"IFERROR(IF(INDEX('Coverage Indicator_Import-Expor'!L$7:L$210,MATCH($B57,'Coverage Indicator_Import-Expor'!$C$7:$C$210,0))=\"\",\"\",INDEX('Coverage Indicator_Import-Expor'!L$7:L$210,MATCH($B57,'Coverage Indicator_Import-Expor'!$C$7:$C$210,0))),\"\")","v":""},{"$f":"IFERROR(IF(INDEX('Coverage Indicator_Import-Expor'!AR$7:AR$210,MATCH($B57,'Coverage Indicator_Import-Expor'!$C$7:$C$210,0))=\"\",\"\",INDEX('Coverage Indicator_Import-Expor'!AR$7:AR$210,MATCH($B57,'Coverage Indicator_Import-Expor'!$C$7:$C$210,0))),\"\")","v":""},{"$f":"IFERROR(IF(INDEX('Coverage Indicator_Import-Expor'!AS$7:AS$210,MATCH($B57,'Coverage Indicator_Import-Expor'!$C$7:$C$210,0))=\"\",\"\",INDEX('Coverage Indicator_Import-Expor'!AS$7:AS$210,MATCH($B57,'Coverage Indicator_Import-Expor'!$C$7:$C$210,0))),\"\")","v":""},{"$f":"IFERROR(IF(INDEX('Coverage Indicator_Import-Expor'!N$7:N$210,MATCH($B57,'Coverage Indicator_Import-Expor'!$C$7:$C$210,0))=\"\",\"\",INDEX('Coverage Indicator_Import-Expor'!N$7:N$210,MATCH($B57,'Coverage Indicator_Import-Expor'!$C$7:$C$210,0))),\"\")","v":""},{"$f":"IFERROR(IF(INDEX('Coverage Indicator_Import-Expor'!O$7:O$210,MATCH($B57,'Coverage Indicator_Import-Expor'!$C$7:$C$210,0))=\"\",\"\",INDEX('Coverage Indicator_Import-Expor'!O$7:O$210,MATCH($B57,'Coverage Indicator_Import-Expor'!$C$7:$C$210,0))),\"\")","v":""},{"$f":"IFERROR(IF(INDEX('Coverage Indicator_Import-Expor'!P$7:P$210,MATCH($B57,'Coverage Indicator_Import-Expor'!$C$7:$C$210,0))=\"\",\"\",INDEX('Coverage Indicator_Import-Expor'!P$7:P$210,MATCH($B57,'Coverage Indicator_Import-Expor'!$C$7:$C$210,0))),\"\")","v":""},{"$f":"IFERROR(IF(INDEX('Coverage Indicator_Import-Expor'!Q$7:Q$210,MATCH($B57,'Coverage Indicator_Import-Expor'!$C$7:$C$210,0))=\"\",\"\",INDEX('Coverage Indicator_Import-Expor'!Q$7:Q$210,MATCH($B57,'Coverage Indicator_Import-Expor'!$C$7:$C$210,0))),\"\")","v":""},{"$f":"IFERROR(IF(INDEX('Coverage Indicator_Import-Expor'!R$7:R$210,MATCH($B57,'Coverage Indicator_Import-Expor'!$C$7:$C$210,0))=\"\",\"\",INDEX('Coverage Indicator_Import-Expor'!R$7:R$210,MATCH($B57,'Coverage Indicator_Import-Expor'!$C$7:$C$210,0))),\"\")","v":""},{"$f":"IFERROR(IF(INDEX('Coverage Indicator_Import-Expor'!S$7:S$210,MATCH($B57,'Coverage Indicator_Import-Expor'!$C$7:$C$210,0))=\"\",\"\",INDEX('Coverage Indicator_Import-Expor'!S$7:S$210,MATCH($B57,'Coverage Indicator_Import-Expor'!$C$7:$C$210,0))),\"\")","v":""},{"$f":"IFERROR(IF(INDEX('Coverage Indicator_Import-Expor'!T$7:T$210,MATCH($B57,'Coverage Indicator_Import-Expor'!$C$7:$C$210,0))=\"\",\"\",INDEX('Coverage Indicator_Import-Expor'!T$7:T$210,MATCH($B57,'Coverage Indicator_Import-Expor'!$C$7:$C$210,0))),\"\")","v":""},{"$f":"IFERROR(IF(INDEX('Coverage Indicator_Import-Expor'!U$7:U$210,MATCH($B57,'Coverage Indicator_Import-Expor'!$C$7:$C$210,0))=\"\",\"\",INDEX('Coverage Indicator_Import-Expor'!U$7:U$210,MATCH($B57,'Coverage Indicator_Import-Expor'!$C$7:$C$210,0))),\"\")","v":""},null,null,"",null," ",null,"No Results Reported",null,null,"",null," ",null,null,"No Results Reported",null,null,""," ",null,"No Results Reported"]
[48,"Coverage48",{"$f":"IFERROR(INDEX('Coverage Indicator_Import-Expor'!$D$7:$D$210,MATCH(B58,'Coverage Indicator_Import-Expor'!$C$7:$C$210,0)),\"\")","v":""},{"$f":"IFERROR(INDEX('Coverage Indicator_Import-Expor'!$E$7:$E$210,MATCH(B58,'Coverage Indicator_Import-Expor'!$C$7:$C$210,0)),\"\")","v":""},{"$f":"IFERROR(IF(INDEX('Coverage Indicator_Import-Expor'!K$7:K$210,MATCH($B58,'Coverage Indicator_Import-Expor'!$C$7:$C$210,0))=\"\",\"\",INDEX('Coverage Indicator_Import-Expor'!K$7:K$210,MATCH($B58,'Coverage Indicator_Import-Expor'!$C$7:$C$210,0))),\"\")","v":""},{"$f":"IFERROR(IF(INDEX('Coverage Indicator_Import-Expor'!L$7:L$210,MATCH($B58,'Coverage Indicator_Import-Expor'!$C$7:$C$210,0))=\"\",\"\",INDEX('Coverage Indicator_Import-Expor'!L$7:L$210,MATCH($B58,'Coverage Indicator_Import-Expor'!$C$7:$C$210,0))),\"\")","v":""},{"$f":"IFERROR(IF(INDEX('Coverage Indicator_Import-Expor'!AR$7:AR$210,MATCH($B58,'Coverage Indicator_Import-Expor'!$C$7:$C$210,0))=\"\",\"\",INDEX('Coverage Indicator_Import-Expor'!AR$7:AR$210,MATCH($B58,'Coverage Indicator_Import-Expor'!$C$7:$C$210,0))),\"\")","v":""},{"$f":"IFERROR(IF(INDEX('Coverage Indicator_Import-Expor'!AS$7:AS$210,MATCH($B58,'Coverage Indicator_Import-Expor'!$C$7:$C$210,0))=\"\",\"\",INDEX('Coverage Indicator_Import-Expor'!AS$7:AS$210,MATCH($B58,'Coverage Indicator_Import-Expor'!$C$7:$C$210,0))),\"\")","v":""},{"$f":"IFERROR(IF(INDEX('Coverage Indicator_Import-Expor'!N$7:N$210,MATCH($B58,'Coverage Indicator_Import-Expor'!$C$7:$C$210,0))=\"\",\"\",INDEX('Coverage Indicator_Import-Expor'!N$7:N$210,MATCH($B58,'Coverage Indicator_Import-Expor'!$C$7:$C$210,0))),\"\")","v":""},{"$f":"IFERROR(IF(INDEX('Coverage Indicator_Import-Expor'!O$7:O$210,MATCH($B58,'Coverage Indicator_Import-Expor'!$C$7:$C$210,0))=\"\",\"\",INDEX('Coverage Indicator_Import-Expor'!O$7:O$210,MATCH($B58,'Coverage Indicator_Import-Expor'!$C$7:$C$210,0))),\"\")","v":""},{"$f":"IFERROR(IF(INDEX('Coverage Indicator_Import-Expor'!P$7:P$210,MATCH($B58,'Coverage Indicator_Import-Expor'!$C$7:$C$210,0))=\"\",\"\",INDEX('Coverage Indicator_Import-Expor'!P$7:P$210,MATCH($B58,'Coverage Indicator_Import-Expor'!$C$7:$C$210,0))),\"\")","v":""},{"$f":"IFERROR(IF(INDEX('Coverage Indicator_Import-Expor'!Q$7:Q$210,MATCH($B58,'Coverage Indicator_Import-Expor'!$C$7:$C$210,0))=\"\",\"\",INDEX('Coverage Indicator_Import-Expor'!Q$7:Q$210,MATCH($B58,'Coverage Indicator_Import-Expor'!$C$7:$C$210,0))),\"\")","v":""},{"$f":"IFERROR(IF(INDEX('Coverage Indicator_Import-Expor'!R$7:R$210,MATCH($B58,'Coverage Indicator_Import-Expor'!$C$7:$C$210,0))=\"\",\"\",INDEX('Coverage Indicator_Import-Expor'!R$7:R$210,MATCH($B58,'Coverage Indicator_Import-Expor'!$C$7:$C$210,0))),\"\")","v":""},{"$f":"IFERROR(IF(INDEX('Coverage Indicator_Import-Expor'!S$7:S$210,MATCH($B58,'Coverage Indicator_Import-Expor'!$C$7:$C$210,0))=\"\",\"\",INDEX('Coverage Indicator_Import-Expor'!S$7:S$210,MATCH($B58,'Coverage Indicator_Import-Expor'!$C$7:$C$210,0))),\"\")","v":""},{"$f":"IFERROR(IF(INDEX('Coverage Indicator_Import-Expor'!T$7:T$210,MATCH($B58,'Coverage Indicator_Import-Expor'!$C$7:$C$210,0))=\"\",\"\",INDEX('Coverage Indicator_Import-Expor'!T$7:T$210,MATCH($B58,'Coverage Indicator_Import-Expor'!$C$7:$C$210,0))),\"\")","v":""},{"$f":"IFERROR(IF(INDEX('Coverage Indicator_Import-Expor'!U$7:U$210,MATCH($B58,'Coverage Indicator_Import-Expor'!$C$7:$C$210,0))=\"\",\"\",INDEX('Coverage Indicator_Import-Expor'!U$7:U$210,MATCH($B58,'Coverage Indicator_Import-Expor'!$C$7:$C$210,0))),\"\")","v":""},null,null,"",null," ",null,"No Results Reported",null,null,"",null," ",null,null,"No Results Reported",null,null,""," ",null,"No Results Reported"]
[49,"Coverage49",{"$f":"IFERROR(INDEX('Coverage Indicator_Import-Expor'!$D$7:$D$210,MATCH(B59,'Coverage Indicator_Import-Expor'!$C$7:$C$210,0)),\"\")","v":""},{"$f":"IFERROR(INDEX('Coverage Indicator_Import-Expor'!$E$7:$E$210,MATCH(B59,'Coverage Indicator_Import-Expor'!$C$7:$C$210,0)),\"\")","v":""},{"$f":"IFERROR(IF(INDEX('Coverage Indicator_Import-Expor'!K$7:K$210,MATCH($B59,'Coverage Indicator_Import-Expor'!$C$7:$C$210,0))=\"\",\"\",INDEX('Coverage Indicator_Import-Expor'!K$7:K$210,MATCH($B59,'Coverage Indicator_Import-Expor'!$C$7:$C$210,0))),\"\")","v":""},{"$f":"IFERROR(IF(INDEX('Coverage Indicator_Import-Expor'!L$7:L$210,MATCH($B59,'Coverage Indicator_Import-Expor'!$C$7:$C$210,0))=\"\",\"\",INDEX('Coverage Indicator_Import-Expor'!L$7:L$210,MATCH($B59,'Coverage Indicator_Import-Expor'!$C$7:$C$210,0))),\"\")","v":""},{"$f":"IFERROR(IF(INDEX('Coverage Indicator_Import-Expor'!AR$7:AR$210,MATCH($B59,'Coverage Indicator_Import-Expor'!$C$7:$C$210,0))=\"\",\"\",INDEX('Coverage Indicator_Import-Expor'!AR$7:AR$210,MATCH($B59,'Coverage Indicator_Import-Expor'!$C$7:$C$210,0))),\"\")","v":""},{"$f":"IFERROR(IF(INDEX('Coverage Indicator_Import-Expor'!AS$7:AS$210,MATCH($B59,'Coverage Indicator_Import-Expor'!$C$7:$C$210,0))=\"\",\"\",INDEX('Coverage Indicator_Import-Expor'!AS$7:AS$210,MATCH($B59,'Coverage Indicator_Import-Expor'!$C$7:$C$210,0))),\"\")","v":""},{"$f":"IFERROR(IF(INDEX('Coverage Indicator_Import-Expor'!N$7:N$210,MATCH($B59,'Coverage Indicator_Import-Expor'!$C$7:$C$210,0))=\"\",\"\",INDEX('Coverage Indicator_Import-Expor'!N$7:N$210,MATCH($B59,'Coverage Indicator_Import-Expor'!$C$7:$C$210,0))),\"\")","v":""},{"$f":"IFERROR(IF(INDEX('Coverage Indicator_Import-Expor'!O$7:O$210,MATCH($B59,'Coverage Indicator_Import-Expor'!$C$7:$C$210,0))=\"\",\"\",INDEX('Coverage Indicator_Import-Expor'!O$7:O$210,MATCH($B59,'Coverage Indicator_Import-Expor'!$C$7:$C$210,0))),\"\")","v":""},{"$f":"IFERROR(IF(INDEX('Coverage Indicator_Import-Expor'!P$7:P$210,MATCH($B59,'Coverage Indicator_Import-Expor'!$C$7:$C$210,0))=\"\",\"\",INDEX('Coverage Indicator_Import-Expor'!P$7:P$210,MATCH($B59,'Coverage Indicator_Import-Expor'!$C$7:$C$210,0))),\"\")","v":""},{"$f":"IFERROR(IF(INDEX('Coverage Indicator_Import-Expor'!Q$7:Q$210,MATCH($B59,'Coverage Indicator_Import-Expor'!$C$7:$C$210,0))=\"\",\"\",INDEX('Coverage Indicator_Import-Expor'!Q$7:Q$210,MATCH($B59,'Coverage Indicator_Import-Expor'!$C$7:$C$210,0))),\"\")","v":""},{"$f":"IFERROR(IF(INDEX('Coverage Indicator_Import-Expor'!R$7:R$210,MATCH($B59,'Coverage Indicator_Import-Expor'!$C$7:$C$210,0))=\"\",\"\",INDEX('Coverage Indicator_Import-Expor'!R$7:R$210,MATCH($B59,'Coverage Indicator_Import-Expor'!$C$7:$C$210,0))),\"\")","v":""},{"$f":"IFERROR(IF(INDEX('Coverage Indicator_Import-Expor'!S$7:S$210,MATCH($B59,'Coverage Indicator_Import-Expor'!$C$7:$C$210,0))=\"\",\"\",INDEX('Coverage Indicator_Import-Expor'!S$7:S$210,MATCH($B59,'Coverage Indicator_Import-Expor'!$C$7:$C$210,0))),\"\")","v":""},{"$f":"IFERROR(IF(INDEX('Coverage Indicator_Import-Expor'!T$7:T$210,MATCH($B59,'Coverage Indicator_Import-Expor'!$C$7:$C$210,0))=\"\",\"\",INDEX('Coverage Indicator_Import-Expor'!T$7:T$210,MATCH($B59,'Coverage Indicator_Import-Expor'!$C$7:$C$210,0))),\"\")","v":""},{"$f":"IFERROR(IF(INDEX('Coverage Indicator_Import-Expor'!U$7:U$210,MATCH($B59,'Coverage Indicator_Import-Expor'!$C$7:$C$210,0))=\"\",\"\",INDEX('Coverage Indicator_Import-Expor'!U$7:U$210,MATCH($B59,'Coverage Indicator_Import-Expor'!$C$7:$C$210,0))),\"\")","v":""},null,null,"",null," ",null,"No Results Reported",null,null,"",null," ",null,null,"No Results Reported",null,null,""," ",null,"No Results Reported"]
[50,"Coverage50",{"$f":"IFERROR(INDEX('Coverage Indicator_Import-Expor'!$D$7:$D$210,MATCH(B60,'Coverage Indicator_Import-Expor'!$C$7:$C$210,0)),\"\")","v":""},{"$f":"IFERROR(INDEX('Coverage Indicator_Import-Expor'!$E$7:$E$210,MATCH(B60,'Coverage Indicator_Import-Expor'!$C$7:$C$210,0)),\"\")","v":""},{"$f":"IFERROR(IF(INDEX('Coverage Indicator_Import-Expor'!K$7:K$210,MATCH($B60,'Coverage Indicator_Import-Expor'!$C$7:$C$210,0))=\"\",\"\",INDEX('Coverage Indicator_Import-Expor'!K$7:K$210,MATCH($B60,'Coverage Indicator_Import-Expor'!$C$7:$C$210,0))),\"\")","v":""},{"$f":"IFERROR(IF(INDEX('Coverage Indicator_Import-Expor'!L$7:L$210,MATCH($B60,'Coverage Indicator_Import-Expor'!$C$7:$C$210,0))=\"\",\"\",INDEX('Coverage Indicator_Import-Expor'!L$7:L$210,MATCH($B60,'Coverage Indicator_Import-Expor'!$C$7:$C$210,0))),\"\")","v":""},{"$f":"IFERROR(IF(INDEX('Coverage Indicator_Import-Expor'!AR$7:AR$210,MATCH($B60,'Coverage Indicator_Import-Expor'!$C$7:$C$210,0))=\"\",\"\",INDEX('Coverage Indicator_Import-Expor'!AR$7:AR$210,MATCH($B60,'Coverage Indicator_Import-Expor'!$C$7:$C$210,0))),\"\")","v":""},{"$f":"IFERROR(IF(INDEX('Coverage Indicator_Import-Expor'!AS$7:AS$210,MATCH($B60,'Coverage Indicator_Import-Expor'!$C$7:$C$210,0))=\"\",\"\",INDEX('Coverage Indicator_Import-Expor'!AS$7:AS$210,MATCH($B60,'Coverage Indicator_Import-Expor'!$C$7:$C$210,0))),\"\")","v":""},{"$f":"IFERROR(IF(INDEX('Coverage Indicator_Import-Expor'!N$7:N$210,MATCH($B60,'Coverage Indicator_Import-Expor'!$C$7:$C$210,0))=\"\",\"\",INDEX('Coverage Indicator_Import-Expor'!N$7:N$210,MATCH($B60,'Coverage Indicator_Import-Expor'!$C$7:$C$210,0))),\"\")","v":""},{"$f":"IFERROR(IF(INDEX('Coverage Indicator_Import-Expor'!O$7:O$210,MATCH($B60,'Coverage Indicator_Import-Expor'!$C$7:$C$210,0))=\"\",\"\",INDEX('Coverage Indicator_Import-Expor'!O$7:O$210,MATCH($B60,'Coverage Indicator_Import-Expor'!$C$7:$C$210,0))),\"\")","v":""},{"$f":"IFERROR(IF(INDEX('Coverage Indicator_Import-Expor'!P$7:P$210,MATCH($B60,'Coverage Indicator_Import-Expor'!$C$7:$C$210,0))=\"\",\"\",INDEX('Coverage Indicator_Import-Expor'!P$7:P$210,MATCH($B60,'Coverage Indicator_Import-Expor'!$C$7:$C$210,0))),\"\")","v":""},{"$f":"IFERROR(IF(INDEX('Coverage Indicator_Import-Expor'!Q$7:Q$210,MATCH($B60,'Coverage Indicator_Import-Expor'!$C$7:$C$210,0))=\"\",\"\",INDEX('Coverage Indicator_Import-Expor'!Q$7:Q$210,MATCH($B60,'Coverage Indicator_Import-Expor'!$C$7:$C$210,0))),\"\")","v":""},{"$f":"IFERROR(IF(INDEX('Coverage Indicator_Import-Expor'!R$7:R$210,MATCH($B60,'Coverage Indicator_Import-Expor'!$C$7:$C$210,0))=\"\",\"\",INDEX('Coverage Indicator_Import-Expor'!R$7:R$210,MATCH($B60,'Coverage Indicator_Import-Expor'!$C$7:$C$210,0))),\"\")","v":""},{"$f":"IFERROR(IF(INDEX('Coverage Indicator_Import-Expor'!S$7:S$210,MATCH($B60,'Coverage Indicator_Import-Expor'!$C$7:$C$210,0))=\"\",\"\",INDEX('Coverage Indicator_Import-Expor'!S$7:S$210,MATCH($B60,'Coverage Indicator_Import-Expor'!$C$7:$C$210,0))),\"\")","v":""},{"$f":"IFERROR(IF(INDEX('Coverage Indicator_Import-Expor'!T$7:T$210,MATCH($B60,'Coverage Indicator_Import-Expor'!$C$7:$C$210,0))=\"\",\"\",INDEX('Coverage Indicator_Import-Expor'!T$7:T$210,MATCH($B60,'Coverage Indicator_Import-Expor'!$C$7:$C$210,0))),\"\")","v":""},{"$f":"IFERROR(IF(INDEX('Coverage Indicator_Import-Expor'!U$7:U$210,MATCH($B60,'Coverage Indicator_Import-Expor'!$C$7:$C$210,0))=\"\",\"\",INDEX('Coverage Indicator_Import-Expor'!U$7:U$210,MATCH($B60,'Coverage Indicator_Import-Expor'!$C$7:$C$210,0))),\"\")","v":""},null,null,"",null," ",null,"No Results Reported",null,null,"",null," ",null,null,"No Results Reported",null,null,""," ",null,"No Results Reported"]
[51,"Coverage51",{"$f":"IFERROR(INDEX('Coverage Indicator_Import-Expor'!$D$7:$D$210,MATCH(B61,'Coverage Indicator_Import-Expor'!$C$7:$C$210,0)),\"\")","v":""},{"$f":"IFERROR(INDEX('Coverage Indicator_Import-Expor'!$E$7:$E$210,MATCH(B61,'Coverage Indicator_Import-Expor'!$C$7:$C$210,0)),\"\")","v":""},{"$f":"IFERROR(IF(INDEX('Coverage Indicator_Import-Expor'!K$7:K$210,MATCH($B61,'Coverage Indicator_Import-Expor'!$C$7:$C$210,0))=\"\",\"\",INDEX('Coverage Indicator_Import-Expor'!K$7:K$210,MATCH($B61,'Coverage Indicator_Import-Expor'!$C$7:$C$210,0))),\"\")","v":""},{"$f":"IFERROR(IF(INDEX('Coverage Indicator_Import-Expor'!L$7:L$210,MATCH($B61,'Coverage Indicator_Import-Expor'!$C$7:$C$210,0))=\"\",\"\",INDEX('Coverage Indicator_Import-Expor'!L$7:L$210,MATCH($B61,'Coverage Indicator_Import-Expor'!$C$7:$C$210,0))),\"\")","v":""},{"$f":"IFERROR(IF(INDEX('Coverage Indicator_Import-Expor'!AR$7:AR$210,MATCH($B61,'Coverage Indicator_Import-Expor'!$C$7:$C$210,0))=\"\",\"\",INDEX('Coverage Indicator_Import-Expor'!AR$7:AR$210,MATCH($B61,'Coverage Indicator_Import-Expor'!$C$7:$C$210,0))),\"\")","v":""},{"$f":"IFERROR(IF(INDEX('Coverage Indicator_Import-Expor'!AS$7:AS$210,MATCH($B61,'Coverage Indicator_Import-Expor'!$C$7:$C$210,0))=\"\",\"\",INDEX('Coverage Indicator_Import-Expor'!AS$7:AS$210,MATCH($B61,'Coverage Indicator_Import-Expor'!$C$7:$C$210,0))),\"\")","v":""},{"$f":"IFERROR(IF(INDEX('Coverage Indicator_Import-Expor'!N$7:N$210,MATCH($B61,'Coverage Indicator_Import-Expor'!$C$7:$C$210,0))=\"\",\"\",INDEX('Coverage Indicator_Import-Expor'!N$7:N$210,MATCH($B61,'Coverage Indicator_Import-Expor'!$C$7:$C$210,0))),\"\")","v":""},{"$f":"IFERROR(IF(INDEX('Coverage Indicator_Import-Expor'!O$7:O$210,MATCH($B61,'Coverage Indicator_Import-Expor'!$C$7:$C$210,0))=\"\",\"\",INDEX('Coverage Indicator_Import-Expor'!O$7:O$210,MATCH($B61,'Coverage Indicator_Import-Expor'!$C$7:$C$210,0))),\"\")","v":""},{"$f":"IFERROR(IF(INDEX('Coverage Indicator_Import-Expor'!P$7:P$210,MATCH($B61,'Coverage Indicator_Import-Expor'!$C$7:$C$210,0))=\"\",\"\",INDEX('Coverage Indicator_Import-Expor'!P$7:P$210,MATCH($B61,'Coverage Indicator_Import-Expor'!$C$7:$C$210,0))),\"\")","v":""},{"$f":"IFERROR(IF(INDEX('Coverage Indicator_Import-Expor'!Q$7:Q$210,MATCH($B61,'Coverage Indicator_Import-Expor'!$C$7:$C$210,0))=\"\",\"\",INDEX('Coverage Indicator_Import-Expor'!Q$7:Q$210,MATCH($B61,'Coverage Indicator_Import-Expor'!$C$7:$C$210,0))),\"\")","v":""},{"$f":"IFERROR(IF(INDEX('Coverage Indicator_Import-Expor'!R$7:R$210,MATCH($B61,'Coverage Indicator_Import-Expor'!$C$7:$C$210,0))=\"\",\"\",INDEX('Coverage Indicator_Import-Expor'!R$7:R$210,MATCH($B61,'Coverage Indicator_Import-Expor'!$C$7:$C$210,0))),\"\")","v":""},{"$f":"IFERROR(IF(INDEX('Coverage Indicator_Import-Expor'!S$7:S$210,MATCH($B61,'Coverage Indicator_Import-Expor'!$C$7:$C$210,0))=\"\",\"\",INDEX('Coverage Indicator_Import-Expor'!S$7:S$210,MATCH($B61,'Coverage Indicator_Import-Expor'!$C$7:$C$210,0))),\"\")","v":""},{"$f":"IFERROR(IF(INDEX('Coverage Indicator_Import-Expor'!T$7:T$210,MATCH($B61,'Coverage Indicator_Import-Expor'!$C$7:$C$210,0))=\"\",\"\",INDEX('Coverage Indicator_Import-Expor'!T$7:T$210,MATCH($B61,'Coverage Indicator_Import-Expor'!$C$7:$C$210,0))),\"\")","v":""},{"$f":"IFERROR(IF(INDEX('Coverage Indicator_Import-Expor'!U$7:U$210,MATCH($B61,'Coverage Indicator_Import-Expor'!$C$7:$C$210,0))=\"\",\"\",INDEX('Coverage Indicator_Import-Expor'!U$7:U$210,MATCH($B61,'Coverage Indicator_Import-Expor'!$C$7:$C$210,0))),\"\")","v":""},null,null,"",null," ",null,"No Results Reported",null,null,"",null," ",null,null,"No Results Reported",null,null,""," ",null,"No Results Reported"]
[52,"Coverage52",{"$f":"IFERROR(INDEX('Coverage Indicator_Import-Expor'!$D$7:$D$210,MATCH(B62,'Coverage Indicator_Import-Expor'!$C$7:$C$210,0)),\"\")","v":""},{"$f":"IFERROR(INDEX('Coverage Indicator_Import-Expor'!$E$7:$E$210,MATCH(B62,'Coverage Indicator_Import-Expor'!$C$7:$C$210,0)),\"\")","v":""},{"$f":"IFERROR(IF(INDEX('Coverage Indicator_Import-Expor'!K$7:K$210,MATCH($B62,'Coverage Indicator_Import-Expor'!$C$7:$C$210,0))=\"\",\"\",INDEX('Coverage Indicator_Import-Expor'!K$7:K$210,MATCH($B62,'Coverage Indicator_Import-Expor'!$C$7:$C$210,0))),\"\")","v":""},{"$f":"IFERROR(IF(INDEX('Coverage Indicator_Import-Expor'!L$7:L$210,MATCH($B62,'Coverage Indicator_Import-Expor'!$C$7:$C$210,0))=\"\",\"\",INDEX('Coverage Indicator_Import-Expor'!L$7:L$210,MATCH($B62,'Coverage Indicator_Import-Expor'!$C$7:$C$210,0))),\"\")","v":""},{"$f":"IFERROR(IF(INDEX('Coverage Indicator_Import-Expor'!AR$7:AR$210,MATCH($B62,'Coverage Indicator_Import-Expor'!$C$7:$C$210,0))=\"\",\"\",INDEX('Coverage Indicator_Import-Expor'!AR$7:AR$210,MATCH($B62,'Coverage Indicator_Import-Expor'!$C$7:$C$210,0))),\"\")","v":""},{"$f":"IFERROR(IF(INDEX('Coverage Indicator_Import-Expor'!AS$7:AS$210,MATCH($B62,'Coverage Indicator_Import-Expor'!$C$7:$C$210,0))=\"\",\"\",INDEX('Coverage Indicator_Import-Expor'!AS$7:AS$210,MATCH($B62,'Coverage Indicator_Import-Expor'!$C$7:$C$210,0))),\"\")","v":""},{"$f":"IFERROR(IF(INDEX('Coverage Indicator_Import-Expor'!N$7:N$210,MATCH($B62,'Coverage Indicator_Import-Expor'!$C$7:$C$210,0))=\"\",\"\",INDEX('Coverage Indicator_Import-Expor'!N$7:N$210,MATCH($B62,'Coverage Indicator_Import-Expor'!$C$7:$C$210,0))),\"\")","v":""},{"$f":"IFERROR(IF(INDEX('Coverage Indicator_Import-Expor'!O$7:O$210,MATCH($B62,'Coverage Indicator_Import-Expor'!$C$7:$C$210,0))=\"\",\"\",INDEX('Coverage Indicator_Import-Expor'!O$7:O$210,MATCH($B62,'Coverage Indicator_Import-Expor'!$C$7:$C$210,0))),\"\")","v":""},{"$f":"IFERROR(IF(INDEX('Coverage Indicator_Import-Expor'!P$7:P$210,MATCH($B62,'Coverage Indicator_Import-Expor'!$C$7:$C$210,0))=\"\",\"\",INDEX('Coverage Indicator_Import-Expor'!P$7:P$210,MATCH($B62,'Coverage Indicator_Import-Expor'!$C$7:$C$210,0))),\"\")","v":""},{"$f":"IFERROR(IF(INDEX('Coverage Indicator_Import-Expor'!Q$7:Q$210,MATCH($B62,'Coverage Indicator_Import-Expor'!$C$7:$C$210,0))=\"\",\"\",INDEX('Coverage Indicator_Import-Expor'!Q$7:Q$210,MATCH($B62,'Coverage Indicator_Import-Expor'!$C$7:$C$210,0))),\"\")","v":""},{"$f":"IFERROR(IF(INDEX('Coverage Indicator_Import-Expor'!R$7:R$210,MATCH($B62,'Coverage Indicator_Import-Expor'!$C$7:$C$210,0))=\"\",\"\",INDEX('Coverage Indicator_Import-Expor'!R$7:R$210,MATCH($B62,'Coverage Indicator_Import-Expor'!$C$7:$C$210,0))),\"\")","v":""},{"$f":"IFERROR(IF(INDEX('Coverage Indicator_Import-Expor'!S$7:S$210,MATCH($B62,'Coverage Indicator_Import-Expor'!$C$7:$C$210,0))=\"\",\"\",INDEX('Coverage Indicator_Import-Expor'!S$7:S$210,MATCH($B62,'Coverage Indicator_Import-Expor'!$C$7:$C$210,0))),\"\")","v":""},{"$f":"IFERROR(IF(INDEX('Coverage Indicator_Import-Expor'!T$7:T$210,MATCH($B62,'Coverage Indicator_Import-Expor'!$C$7:$C$210,0))=\"\",\"\",INDEX('Coverage Indicator_Import-Expor'!T$7:T$210,MATCH($B62,'Coverage Indicator_Import-Expor'!$C$7:$C$210,0))),\"\")","v":""},{"$f":"IFERROR(IF(INDEX('Coverage Indicator_Import-Expor'!U$7:U$210,MATCH($B62,'Coverage Indicator_Import-Expor'!$C$7:$C$210,0))=\"\",\"\",INDEX('Coverage Indicator_Import-Expor'!U$7:U$210,MATCH($B62,'Coverage Indicator_Import-Expor'!$C$7:$C$210,0))),\"\")","v":""},null,null,"",null," ",null,"No Results Reported",null,null,"",null," ",null,null,"No Results Reported",null,null,""," ",null,"No Results Reported"]
[53,"Coverage53",{"$f":"IFERROR(INDEX('Coverage Indicator_Import-Expor'!$D$7:$D$210,MATCH(B63,'Coverage Indicator_Import-Expor'!$C$7:$C$210,0)),\"\")","v":""},{"$f":"IFERROR(INDEX('Coverage Indicator_Import-Expor'!$E$7:$E$210,MATCH(B63,'Coverage Indicator_Import-Expor'!$C$7:$C$210,0)),\"\")","v":""},{"$f":"IFERROR(IF(INDEX('Coverage Indicator_Import-Expor'!K$7:K$210,MATCH($B63,'Coverage Indicator_Import-Expor'!$C$7:$C$210,0))=\"\",\"\",INDEX('Coverage Indicator_Import-Expor'!K$7:K$210,MATCH($B63,'Coverage Indicator_Import-Expor'!$C$7:$C$210,0))),\"\")","v":""},{"$f":"IFERROR(IF(INDEX('Coverage Indicator_Import-Expor'!L$7:L$210,MATCH($B63,'Coverage Indicator_Import-Expor'!$C$7:$C$210,0))=\"\",\"\",INDEX('Coverage Indicator_Import-Expor'!L$7:L$210,MATCH($B63,'Coverage Indicator_Import-Expor'!$C$7:$C$210,0))),\"\")","v":""},{"$f":"IFERROR(IF(INDEX('Coverage Indicator_Import-Expor'!AR$7:AR$210,MATCH($B63,'Coverage Indicator_Import-Expor'!$C$7:$C$210,0))=\"\",\"\",INDEX('Coverage Indicator_Import-Expor'!AR$7:AR$210,MATCH($B63,'Coverage Indicator_Import-Expor'!$C$7:$C$210,0))),\"\")","v":""},{"$f":"IFERROR(IF(INDEX('Coverage Indicator_Import-Expor'!AS$7:AS$210,MATCH($B63,'Coverage Indicator_Import-Expor'!$C$7:$C$210,0))=\"\",\"\",INDEX('Coverage Indicator_Import-Expor'!AS$7:AS$210,MATCH($B63,'Coverage Indicator_Import-Expor'!$C$7:$C$210,0))),\"\")","v":""},{"$f":"IFERROR(IF(INDEX('Coverage Indicator_Import-Expor'!N$7:N$210,MATCH($B63,'Coverage Indicator_Import-Expor'!$C$7:$C$210,0))=\"\",\"\",INDEX('Coverage Indicator_Import-Expor'!N$7:N$210,MATCH($B63,'Coverage Indicator_Import-Expor'!$C$7:$C$210,0))),\"\")","v":""},{"$f":"IFERROR(IF(INDEX('Coverage Indicator_Import-Expor'!O$7:O$210,MATCH($B63,'Coverage Indicator_Import-Expor'!$C$7:$C$210,0))=\"\",\"\",INDEX('Coverage Indicator_Import-Expor'!O$7:O$210,MATCH($B63,'Coverage Indicator_Import-Expor'!$C$7:$C$210,0))),\"\")","v":""},{"$f":"IFERROR(IF(INDEX('Coverage Indicator_Import-Expor'!P$7:P$210,MATCH($B63,'Coverage Indicator_Import-Expor'!$C$7:$C$210,0))=\"\",\"\",INDEX('Coverage Indicator_Import-Expor'!P$7:P$210,MATCH($B63,'Coverage Indicator_Import-Expor'!$C$7:$C$210,0))),\"\")","v":""},{"$f":"IFERROR(IF(INDEX('Coverage Indicator_Import-Expor'!Q$7:Q$210,MATCH($B63,'Coverage Indicator_Import-Expor'!$C$7:$C$210,0))=\"\",\"\",INDEX('Coverage Indicator_Import-Expor'!Q$7:Q$210,MATCH($B63,'Coverage Indicator_Import-Expor'!$C$7:$C$210,0))),\"\")","v":""},{"$f":"IFERROR(IF(INDEX('Coverage Indicator_Import-Expor'!R$7:R$210,MATCH($B63,'Coverage Indicator_Import-Expor'!$C$7:$C$210,0))=\"\",\"\",INDEX('Coverage Indicator_Import-Expor'!R$7:R$210,MATCH($B63,'Coverage Indicator_Import-Expor'!$C$7:$C$210,0))),\"\")","v":""},{"$f":"IFERROR(IF(INDEX('Coverage Indicator_Import-Expor'!S$7:S$210,MATCH($B63,'Coverage Indicator_Import-Expor'!$C$7:$C$210,0))=\"\",\"\",INDEX('Coverage Indicator_Import-Expor'!S$7:S$210,MATCH($B63,'Coverage Indicator_Import-Expor'!$C$7:$C$210,0))),\"\")","v":""},{"$f":"IFERROR(IF(INDEX('Coverage Indicator_Import-Expor'!T$7:T$210,MATCH($B63,'Coverage Indicator_Import-Expor'!$C$7:$C$210,0))=\"\",\"\",INDEX('Coverage Indicator_Import-Expor'!T$7:T$210,MATCH($B63,'Coverage Indicator_Import-Expor'!$C$7:$C$210,0))),\"\")","v":""},{"$f":"IFERROR(IF(INDEX('Coverage Indicator_Import-Expor'!U$7:U$210,MATCH($B63,'Coverage Indicator_Import-Expor'!$C$7:$C$210,0))=\"\",\"\",INDEX('Coverage Indicator_Import-Expor'!U$7:U$210,MATCH($B63,'Coverage Indicator_Import-Expor'!$C$7:$C$210,0))),\"\")","v":""},null,null,"",null," ",null,"No Results Reported",null,null,"",null," ",null,null,"No Results Reported",null,null,""," ",null,"No Results Reported"]
[54,"Coverage54",{"$f":"IFERROR(INDEX('Coverage Indicator_Import-Expor'!$D$7:$D$210,MATCH(B64,'Coverage Indicator_Import-Expor'!$C$7:$C$210,0)),\"\")","v":""},{"$f":"IFERROR(INDEX('Coverage Indicator_Import-Expor'!$E$7:$E$210,MATCH(B64,'Coverage Indicator_Import-Expor'!$C$7:$C$210,0)),\"\")","v":""},{"$f":"IFERROR(IF(INDEX('Coverage Indicator_Import-Expor'!K$7:K$210,MATCH($B64,'Coverage Indicator_Import-Expor'!$C$7:$C$210,0))=\"\",\"\",INDEX('Coverage Indicator_Import-Expor'!K$7:K$210,MATCH($B64,'Coverage Indicator_Import-Expor'!$C$7:$C$210,0))),\"\")","v":""},{"$f":"IFERROR(IF(INDEX('Coverage Indicator_Import-Expor'!L$7:L$210,MATCH($B64,'Coverage Indicator_Import-Expor'!$C$7:$C$210,0))=\"\",\"\",INDEX('Coverage Indicator_Import-Expor'!L$7:L$210,MATCH($B64,'Coverage Indicator_Import-Expor'!$C$7:$C$210,0))),\"\")","v":""},{"$f":"IFERROR(IF(INDEX('Coverage Indicator_Import-Expor'!AR$7:AR$210,MATCH($B64,'Coverage Indicator_Import-Expor'!$C$7:$C$210,0))=\"\",\"\",INDEX('Coverage Indicator_Import-Expor'!AR$7:AR$210,MATCH($B64,'Coverage Indicator_Import-Expor'!$C$7:$C$210,0))),\"\")","v":""},{"$f":"IFERROR(IF(INDEX('Coverage Indicator_Import-Expor'!AS$7:AS$210,MATCH($B64,'Coverage Indicator_Import-Expor'!$C$7:$C$210,0))=\"\",\"\",INDEX('Coverage Indicator_Import-Expor'!AS$7:AS$210,MATCH($B64,'Coverage Indicator_Import-Expor'!$C$7:$C$210,0))),\"\")","v":""},{"$f":"IFERROR(IF(INDEX('Coverage Indicator_Import-Expor'!N$7:N$210,MATCH($B64,'Coverage Indicator_Import-Expor'!$C$7:$C$210,0))=\"\",\"\",INDEX('Coverage Indicator_Import-Expor'!N$7:N$210,MATCH($B64,'Coverage Indicator_Import-Expor'!$C$7:$C$210,0))),\"\")","v":""},{"$f":"IFERROR(IF(INDEX('Coverage Indicator_Import-Expor'!O$7:O$210,MATCH($B64,'Coverage Indicator_Import-Expor'!$C$7:$C$210,0))=\"\",\"\",INDEX('Coverage Indicator_Import-Expor'!O$7:O$210,MATCH($B64,'Coverage Indicator_Import-Expor'!$C$7:$C$210,0))),\"\")","v":""},{"$f":"IFERROR(IF(INDEX('Coverage Indicator_Import-Expor'!P$7:P$210,MATCH($B64,'Coverage Indicator_Import-Expor'!$C$7:$C$210,0))=\"\",\"\",INDEX('Coverage Indicator_Import-Expor'!P$7:P$210,MATCH($B64,'Coverage Indicator_Import-Expor'!$C$7:$C$210,0))),\"\")","v":""},{"$f":"IFERROR(IF(INDEX('Coverage Indicator_Import-Expor'!Q$7:Q$210,MATCH($B64,'Coverage Indicator_Import-Expor'!$C$7:$C$210,0))=\"\",\"\",INDEX('Coverage Indicator_Import-Expor'!Q$7:Q$210,MATCH($B64,'Coverage Indicator_Import-Expor'!$C$7:$C$210,0))),\"\")","v":""},{"$f":"IFERROR(IF(INDEX('Coverage Indicator_Import-Expor'!R$7:R$210,MATCH($B64,'Coverage Indicator_Import-Expor'!$C$7:$C$210,0))=\"\",\"\",INDEX('Coverage Indicator_Import-Expor'!R$7:R$210,MATCH($B64,'Coverage Indicator_Import-Expor'!$C$7:$C$210,0))),\"\")","v":""},{"$f":"IFERROR(IF(INDEX('Coverage Indicator_Import-Expor'!S$7:S$210,MATCH($B64,'Coverage Indicator_Import-Expor'!$C$7:$C$210,0))=\"\",\"\",INDEX('Coverage Indicator_Import-Expor'!S$7:S$210,MATCH($B64,'Coverage Indicator_Import-Expor'!$C$7:$C$210,0))),\"\")","v":""},{"$f":"IFERROR(IF(INDEX('Coverage Indicator_Import-Expor'!T$7:T$210,MATCH($B64,'Coverage Indicator_Import-Expor'!$C$7:$C$210,0))=\"\",\"\",INDEX('Coverage Indicator_Import-Expor'!T$7:T$210,MATCH($B64,'Coverage Indicator_Import-Expor'!$C$7:$C$210,0))),\"\")","v":""},{"$f":"IFERROR(IF(INDEX('Coverage Indicator_Import-Expor'!U$7:U$210,MATCH($B64,'Coverage Indicator_Import-Expor'!$C$7:$C$210,0))=\"\",\"\",INDEX('Coverage Indicator_Import-Expor'!U$7:U$210,MATCH($B64,'Coverage Indicator_Import-Expor'!$C$7:$C$210,0))),\"\")","v":""},null,null,"",null," ",null,"No Results Reported",null,null,"",null," ",null,null,"No Results Reported",null,null,""," ",null,"No Results Reported"]
[55,"Coverage55",{"$f":"IFERROR(INDEX('Coverage Indicator_Import-Expor'!$D$7:$D$210,MATCH(B65,'Coverage Indicator_Import-Expor'!$C$7:$C$210,0)),\"\")","v":""},{"$f":"IFERROR(INDEX('Coverage Indicator_Import-Expor'!$E$7:$E$210,MATCH(B65,'Coverage Indicator_Import-Expor'!$C$7:$C$210,0)),\"\")","v":""},{"$f":"IFERROR(IF(INDEX('Coverage Indicator_Import-Expor'!K$7:K$210,MATCH($B65,'Coverage Indicator_Import-Expor'!$C$7:$C$210,0))=\"\",\"\",INDEX('Coverage Indicator_Import-Expor'!K$7:K$210,MATCH($B65,'Coverage Indicator_Import-Expor'!$C$7:$C$210,0))),\"\")","v":""},{"$f":"IFERROR(IF(INDEX('Coverage Indicator_Import-Expor'!L$7:L$210,MATCH($B65,'Coverage Indicator_Import-Expor'!$C$7:$C$210,0))=\"\",\"\",INDEX('Coverage Indicator_Import-Expor'!L$7:L$210,MATCH($B65,'Coverage Indicator_Import-Expor'!$C$7:$C$210,0))),\"\")","v":""},{"$f":"IFERROR(IF(INDEX('Coverage Indicator_Import-Expor'!AR$7:AR$210,MATCH($B65,'Coverage Indicator_Import-Expor'!$C$7:$C$210,0))=\"\",\"\",INDEX('Coverage Indicator_Import-Expor'!AR$7:AR$210,MATCH($B65,'Coverage Indicator_Import-Expor'!$C$7:$C$210,0))),\"\")","v":""},{"$f":"IFERROR(IF(INDEX('Coverage Indicator_Import-Expor'!AS$7:AS$210,MATCH($B65,'Coverage Indicator_Import-Expor'!$C$7:$C$210,0))=\"\",\"\",INDEX('Coverage Indicator_Import-Expor'!AS$7:AS$210,MATCH($B65,'Coverage Indicator_Import-Expor'!$C$7:$C$210,0))),\"\")","v":""},{"$f":"IFERROR(IF(INDEX('Coverage Indicator_Import-Expor'!N$7:N$210,MATCH($B65,'Coverage Indicator_Import-Expor'!$C$7:$C$210,0))=\"\",\"\",INDEX('Coverage Indicator_Import-Expor'!N$7:N$210,MATCH($B65,'Coverage Indicator_Import-Expor'!$C$7:$C$210,0))),\"\")","v":""},{"$f":"IFERROR(IF(INDEX('Coverage Indicator_Import-Expor'!O$7:O$210,MATCH($B65,'Coverage Indicator_Import-Expor'!$C$7:$C$210,0))=\"\",\"\",INDEX('Coverage Indicator_Import-Expor'!O$7:O$210,MATCH($B65,'Coverage Indicator_Import-Expor'!$C$7:$C$210,0))),\"\")","v":""},{"$f":"IFERROR(IF(INDEX('Coverage Indicator_Import-Expor'!P$7:P$210,MATCH($B65,'Coverage Indicator_Import-Expor'!$C$7:$C$210,0))=\"\",\"\",INDEX('Coverage Indicator_Import-Expor'!P$7:P$210,MATCH($B65,'Coverage Indicator_Import-Expor'!$C$7:$C$210,0))),\"\")","v":""},{"$f":"IFERROR(IF(INDEX('Coverage Indicator_Import-Expor'!Q$7:Q$210,MATCH($B65,'Coverage Indicator_Import-Expor'!$C$7:$C$210,0))=\"\",\"\",INDEX('Coverage Indicator_Import-Expor'!Q$7:Q$210,MATCH($B65,'Coverage Indicator_Import-Expor'!$C$7:$C$210,0))),\"\")","v":""},{"$f":"IFERROR(IF(INDEX('Coverage Indicator_Import-Expor'!R$7:R$210,MATCH($B65,'Coverage Indicator_Import-Expor'!$C$7:$C$210,0))=\"\",\"\",INDEX('Coverage Indicator_Import-Expor'!R$7:R$210,MATCH($B65,'Coverage Indicator_Import-Expor'!$C$7:$C$210,0))),\"\")","v":""},{"$f":"IFERROR(IF(INDEX('Coverage Indicator_Import-Expor'!S$7:S$210,MATCH($B65,'Coverage Indicator_Import-Expor'!$C$7:$C$210,0))=\"\",\"\",INDEX('Coverage Indicator_Import-Expor'!S$7:S$210,MATCH($B65,'Coverage Indicator_Import-Expor'!$C$7:$C$210,0))),\"\")","v":""},{"$f":"IFERROR(IF(INDEX('Coverage Indicator_Import-Expor'!T$7:T$210,MATCH($B65,'Coverage Indicator_Import-Expor'!$C$7:$C$210,0))=\"\",\"\",INDEX('Coverage Indicator_Import-Expor'!T$7:T$210,MATCH($B65,'Coverage Indicator_Import-Expor'!$C$7:$C$210,0))),\"\")","v":""},{"$f":"IFERROR(IF(INDEX('Coverage Indicator_Import-Expor'!U$7:U$210,MATCH($B65,'Coverage Indicator_Import-Expor'!$C$7:$C$210,0))=\"\",\"\",INDEX('Coverage Indicator_Import-Expor'!U$7:U$210,MATCH($B65,'Coverage Indicator_Import-Expor'!$C$7:$C$210,0))),\"\")","v":""},null,null,"",null," ",null,"No Results Reported",null,null,"",null," ",null,null,"No Results Reported",null,null,""," ",null,"No Results Reported"]
[56,"Coverage56",{"$f":"IFERROR(INDEX('Coverage Indicator_Import-Expor'!$D$7:$D$210,MATCH(B66,'Coverage Indicator_Import-Expor'!$C$7:$C$210,0)),\"\")","v":""},{"$f":"IFERROR(INDEX('Coverage Indicator_Import-Expor'!$E$7:$E$210,MATCH(B66,'Coverage Indicator_Import-Expor'!$C$7:$C$210,0)),\"\")","v":""},{"$f":"IFERROR(IF(INDEX('Coverage Indicator_Import-Expor'!K$7:K$210,MATCH($B66,'Coverage Indicator_Import-Expor'!$C$7:$C$210,0))=\"\",\"\",INDEX('Coverage Indicator_Import-Expor'!K$7:K$210,MATCH($B66,'Coverage Indicator_Import-Expor'!$C$7:$C$210,0))),\"\")","v":""},{"$f":"IFERROR(IF(INDEX('Coverage Indicator_Import-Expor'!L$7:L$210,MATCH($B66,'Coverage Indicator_Import-Expor'!$C$7:$C$210,0))=\"\",\"\",INDEX('Coverage Indicator_Import-Expor'!L$7:L$210,MATCH($B66,'Coverage Indicator_Import-Expor'!$C$7:$C$210,0))),\"\")","v":""},{"$f":"IFERROR(IF(INDEX('Coverage Indicator_Import-Expor'!AR$7:AR$210,MATCH($B66,'Coverage Indicator_Import-Expor'!$C$7:$C$210,0))=\"\",\"\",INDEX('Coverage Indicator_Import-Expor'!AR$7:AR$210,MATCH($B66,'Coverage Indicator_Import-Expor'!$C$7:$C$210,0))),\"\")","v":""},{"$f":"IFERROR(IF(INDEX('Coverage Indicator_Import-Expor'!AS$7:AS$210,MATCH($B66,'Coverage Indicator_Import-Expor'!$C$7:$C$210,0))=\"\",\"\",INDEX('Coverage Indicator_Import-Expor'!AS$7:AS$210,MATCH($B66,'Coverage Indicator_Import-Expor'!$C$7:$C$210,0))),\"\")","v":""},{"$f":"IFERROR(IF(INDEX('Coverage Indicator_Import-Expor'!N$7:N$210,MATCH($B66,'Coverage Indicator_Import-Expor'!$C$7:$C$210,0))=\"\",\"\",INDEX('Coverage Indicator_Import-Expor'!N$7:N$210,MATCH($B66,'Coverage Indicator_Import-Expor'!$C$7:$C$210,0))),\"\")","v":""},{"$f":"IFERROR(IF(INDEX('Coverage Indicator_Import-Expor'!O$7:O$210,MATCH($B66,'Coverage Indicator_Import-Expor'!$C$7:$C$210,0))=\"\",\"\",INDEX('Coverage Indicator_Import-Expor'!O$7:O$210,MATCH($B66,'Coverage Indicator_Import-Expor'!$C$7:$C$210,0))),\"\")","v":""},{"$f":"IFERROR(IF(INDEX('Coverage Indicator_Import-Expor'!P$7:P$210,MATCH($B66,'Coverage Indicator_Import-Expor'!$C$7:$C$210,0))=\"\",\"\",INDEX('Coverage Indicator_Import-Expor'!P$7:P$210,MATCH($B66,'Coverage Indicator_Import-Expor'!$C$7:$C$210,0))),\"\")","v":""},{"$f":"IFERROR(IF(INDEX('Coverage Indicator_Import-Expor'!Q$7:Q$210,MATCH($B66,'Coverage Indicator_Import-Expor'!$C$7:$C$210,0))=\"\",\"\",INDEX('Coverage Indicator_Import-Expor'!Q$7:Q$210,MATCH($B66,'Coverage Indicator_Import-Expor'!$C$7:$C$210,0))),\"\")","v":""},{"$f":"IFERROR(IF(INDEX('Coverage Indicator_Import-Expor'!R$7:R$210,MATCH($B66,'Coverage Indicator_Import-Expor'!$C$7:$C$210,0))=\"\",\"\",INDEX('Coverage Indicator_Import-Expor'!R$7:R$210,MATCH($B66,'Coverage Indicator_Import-Expor'!$C$7:$C$210,0))),\"\")","v":""},{"$f":"IFERROR(IF(INDEX('Coverage Indicator_Import-Expor'!S$7:S$210,MATCH($B66,'Coverage Indicator_Import-Expor'!$C$7:$C$210,0))=\"\",\"\",INDEX('Coverage Indicator_Import-Expor'!S$7:S$210,MATCH($B66,'Coverage Indicator_Import-Expor'!$C$7:$C$210,0))),\"\")","v":""},{"$f":"IFERROR(IF(INDEX('Coverage Indicator_Import-Expor'!T$7:T$210,MATCH($B66,'Coverage Indicator_Import-Expor'!$C$7:$C$210,0))=\"\",\"\",INDEX('Coverage Indicator_Import-Expor'!T$7:T$210,MATCH($B66,'Coverage Indicator_Import-Expor'!$C$7:$C$210,0))),\"\")","v":""},{"$f":"IFERROR(IF(INDEX('Coverage Indicator_Import-Expor'!U$7:U$210,MATCH($B66,'Coverage Indicator_Import-Expor'!$C$7:$C$210,0))=\"\",\"\",INDEX('Coverage Indicator_Import-Expor'!U$7:U$210,MATCH($B66,'Coverage Indicator_Import-Expor'!$C$7:$C$210,0))),\"\")","v":""},null,null,"",null," ",null,"No Results Reported",null,null,"",null," ",null,null,"No Results Reported",null,null,""," ",null,"No Results Reported"]
[57,"Coverage57",{"$f":"IFERROR(INDEX('Coverage Indicator_Import-Expor'!$D$7:$D$210,MATCH(B67,'Coverage Indicator_Import-Expor'!$C$7:$C$210,0)),\"\")","v":""},{"$f":"IFERROR(INDEX('Coverage Indicator_Import-Expor'!$E$7:$E$210,MATCH(B67,'Coverage Indicator_Import-Expor'!$C$7:$C$210,0)),\"\")","v":""},{"$f":"IFERROR(IF(INDEX('Coverage Indicator_Import-Expor'!K$7:K$210,MATCH($B67,'Coverage Indicator_Import-Expor'!$C$7:$C$210,0))=\"\",\"\",INDEX('Coverage Indicator_Import-Expor'!K$7:K$210,MATCH($B67,'Coverage Indicator_Import-Expor'!$C$7:$C$210,0))),\"\")","v":""},{"$f":"IFERROR(IF(INDEX('Coverage Indicator_Import-Expor'!L$7:L$210,MATCH($B67,'Coverage Indicator_Import-Expor'!$C$7:$C$210,0))=\"\",\"\",INDEX('Coverage Indicator_Import-Expor'!L$7:L$210,MATCH($B67,'Coverage Indicator_Import-Expor'!$C$7:$C$210,0))),\"\")","v":""},{"$f":"IFERROR(IF(INDEX('Coverage Indicator_Import-Expor'!AR$7:AR$210,MATCH($B67,'Coverage Indicator_Import-Expor'!$C$7:$C$210,0))=\"\",\"\",INDEX('Coverage Indicator_Import-Expor'!AR$7:AR$210,MATCH($B67,'Coverage Indicator_Import-Expor'!$C$7:$C$210,0))),\"\")","v":""},{"$f":"IFERROR(IF(INDEX('Coverage Indicator_Import-Expor'!AS$7:AS$210,MATCH($B67,'Coverage Indicator_Import-Expor'!$C$7:$C$210,0))=\"\",\"\",INDEX('Coverage Indicator_Import-Expor'!AS$7:AS$210,MATCH($B67,'Coverage Indicator_Import-Expor'!$C$7:$C$210,0))),\"\")","v":""},{"$f":"IFERROR(IF(INDEX('Coverage Indicator_Import-Expor'!N$7:N$210,MATCH($B67,'Coverage Indicator_Import-Expor'!$C$7:$C$210,0))=\"\",\"\",INDEX('Coverage Indicator_Import-Expor'!N$7:N$210,MATCH($B67,'Coverage Indicator_Import-Expor'!$C$7:$C$210,0))),\"\")","v":""},{"$f":"IFERROR(IF(INDEX('Coverage Indicator_Import-Expor'!O$7:O$210,MATCH($B67,'Coverage Indicator_Import-Expor'!$C$7:$C$210,0))=\"\",\"\",INDEX('Coverage Indicator_Import-Expor'!O$7:O$210,MATCH($B67,'Coverage Indicator_Import-Expor'!$C$7:$C$210,0))),\"\")","v":""},{"$f":"IFERROR(IF(INDEX('Coverage Indicator_Import-Expor'!P$7:P$210,MATCH($B67,'Coverage Indicator_Import-Expor'!$C$7:$C$210,0))=\"\",\"\",INDEX('Coverage Indicator_Import-Expor'!P$7:P$210,MATCH($B67,'Coverage Indicator_Import-Expor'!$C$7:$C$210,0))),\"\")","v":""},{"$f":"IFERROR(IF(INDEX('Coverage Indicator_Import-Expor'!Q$7:Q$210,MATCH($B67,'Coverage Indicator_Import-Expor'!$C$7:$C$210,0))=\"\",\"\",INDEX('Coverage Indicator_Import-Expor'!Q$7:Q$210,MATCH($B67,'Coverage Indicator_Import-Expor'!$C$7:$C$210,0))),\"\")","v":""},{"$f":"IFERROR(IF(INDEX('Coverage Indicator_Import-Expor'!R$7:R$210,MATCH($B67,'Coverage Indicator_Import-Expor'!$C$7:$C$210,0))=\"\",\"\",INDEX('Coverage Indicator_Import-Expor'!R$7:R$210,MATCH($B67,'Coverage Indicator_Import-Expor'!$C$7:$C$210,0))),\"\")","v":""},{"$f":"IFERROR(IF(INDEX('Coverage Indicator_Import-Expor'!S$7:S$210,MATCH($B67,'Coverage Indicator_Import-Expor'!$C$7:$C$210,0))=\"\",\"\",INDEX('Coverage Indicator_Import-Expor'!S$7:S$210,MATCH($B67,'Coverage Indicator_Import-Expor'!$C$7:$C$210,0))),\"\")","v":""},{"$f":"IFERROR(IF(INDEX('Coverage Indicator_Import-Expor'!T$7:T$210,MATCH($B67,'Coverage Indicator_Import-Expor'!$C$7:$C$210,0))=\"\",\"\",INDEX('Coverage Indicator_Import-Expor'!T$7:T$210,MATCH($B67,'Coverage Indicator_Import-Expor'!$C$7:$C$210,0))),\"\")","v":""},{"$f":"IFERROR(IF(INDEX('Coverage Indicator_Import-Expor'!U$7:U$210,MATCH($B67,'Coverage Indicator_Import-Expor'!$C$7:$C$210,0))=\"\",\"\",INDEX('Coverage Indicator_Import-Expor'!U$7:U$210,MATCH($B67,'Coverage Indicator_Import-Expor'!$C$7:$C$210,0))),\"\")","v":""},null,null,"",null," ",null,"No Results Reported",null,null,"",null," ",null,null,"No Results Reported",null,null,""," ",null,"No Results Reported"]
[58,"Coverage58",{"$f":"IFERROR(INDEX('Coverage Indicator_Import-Expor'!$D$7:$D$210,MATCH(B68,'Coverage Indicator_Import-Expor'!$C$7:$C$210,0)),\"\")","v":""},{"$f":"IFERROR(INDEX('Coverage Indicator_Import-Expor'!$E$7:$E$210,MATCH(B68,'Coverage Indicator_Import-Expor'!$C$7:$C$210,0)),\"\")","v":""},{"$f":"IFERROR(IF(INDEX('Coverage Indicator_Import-Expor'!K$7:K$210,MATCH($B68,'Coverage Indicator_Import-Expor'!$C$7:$C$210,0))=\"\",\"\",INDEX('Coverage Indicator_Import-Expor'!K$7:K$210,MATCH($B68,'Coverage Indicator_Import-Expor'!$C$7:$C$210,0))),\"\")","v":""},{"$f":"IFERROR(IF(INDEX('Coverage Indicator_Import-Expor'!L$7:L$210,MATCH($B68,'Coverage Indicator_Import-Expor'!$C$7:$C$210,0))=\"\",\"\",INDEX('Coverage Indicator_Import-Expor'!L$7:L$210,MATCH($B68,'Coverage Indicator_Import-Expor'!$C$7:$C$210,0))),\"\")","v":""},{"$f":"IFERROR(IF(INDEX('Coverage Indicator_Import-Expor'!AR$7:AR$210,MATCH($B68,'Coverage Indicator_Import-Expor'!$C$7:$C$210,0))=\"\",\"\",INDEX('Coverage Indicator_Import-Expor'!AR$7:AR$210,MATCH($B68,'Coverage Indicator_Import-Expor'!$C$7:$C$210,0))),\"\")","v":""},{"$f":"IFERROR(IF(INDEX('Coverage Indicator_Import-Expor'!AS$7:AS$210,MATCH($B68,'Coverage Indicator_Import-Expor'!$C$7:$C$210,0))=\"\",\"\",INDEX('Coverage Indicator_Import-Expor'!AS$7:AS$210,MATCH($B68,'Coverage Indicator_Import-Expor'!$C$7:$C$210,0))),\"\")","v":""},{"$f":"IFERROR(IF(INDEX('Coverage Indicator_Import-Expor'!N$7:N$210,MATCH($B68,'Coverage Indicator_Import-Expor'!$C$7:$C$210,0))=\"\",\"\",INDEX('Coverage Indicator_Import-Expor'!N$7:N$210,MATCH($B68,'Coverage Indicator_Import-Expor'!$C$7:$C$210,0))),\"\")","v":""},{"$f":"IFERROR(IF(INDEX('Coverage Indicator_Import-Expor'!O$7:O$210,MATCH($B68,'Coverage Indicator_Import-Expor'!$C$7:$C$210,0))=\"\",\"\",INDEX('Coverage Indicator_Import-Expor'!O$7:O$210,MATCH($B68,'Coverage Indicator_Import-Expor'!$C$7:$C$210,0))),\"\")","v":""},{"$f":"IFERROR(IF(INDEX('Coverage Indicator_Import-Expor'!P$7:P$210,MATCH($B68,'Coverage Indicator_Import-Expor'!$C$7:$C$210,0))=\"\",\"\",INDEX('Coverage Indicator_Import-Expor'!P$7:P$210,MATCH($B68,'Coverage Indicator_Import-Expor'!$C$7:$C$210,0))),\"\")","v":""},{"$f":"IFERROR(IF(INDEX('Coverage Indicator_Import-Expor'!Q$7:Q$210,MATCH($B68,'Coverage Indicator_Import-Expor'!$C$7:$C$210,0))=\"\",\"\",INDEX('Coverage Indicator_Import-Expor'!Q$7:Q$210,MATCH($B68,'Coverage Indicator_Import-Expor'!$C$7:$C$210,0))),\"\")","v":""},{"$f":"IFERROR(IF(INDEX('Coverage Indicator_Import-Expor'!R$7:R$210,MATCH($B68,'Coverage Indicator_Import-Expor'!$C$7:$C$210,0))=\"\",\"\",INDEX('Coverage Indicator_Import-Expor'!R$7:R$210,MATCH($B68,'Coverage Indicator_Import-Expor'!$C$7:$C$210,0))),\"\")","v":""},{"$f":"IFERROR(IF(INDEX('Coverage Indicator_Import-Expor'!S$7:S$210,MATCH($B68,'Coverage Indicator_Import-Expor'!$C$7:$C$210,0))=\"\",\"\",INDEX('Coverage Indicator_Import-Expor'!S$7:S$210,MATCH($B68,'Coverage Indicator_Import-Expor'!$C$7:$C$210,0))),\"\")","v":""},{"$f":"IFERROR(IF(INDEX('Coverage Indicator_Import-Expor'!T$7:T$210,MATCH($B68,'Coverage Indicator_Import-Expor'!$C$7:$C$210,0))=\"\",\"\",INDEX('Coverage Indicator_Import-Expor'!T$7:T$210,MATCH($B68,'Coverage Indicator_Import-Expor'!$C$7:$C$210,0))),\"\")","v":""},{"$f":"IFERROR(IF(INDEX('Coverage Indicator_Import-Expor'!U$7:U$210,MATCH($B68,'Coverage Indicator_Import-Expor'!$C$7:$C$210,0))=\"\",\"\",INDEX('Coverage Indicator_Import-Expor'!U$7:U$210,MATCH($B68,'Coverage Indicator_Import-Expor'!$C$7:$C$210,0))),\"\")","v":""},null,null,"",null," ",null,"No Results Reported",null,null,"",null," ",null,null,"No Results Reported",null,null,""," ",null,"No Results Reported"]
[59,"Coverage59",{"$f":"IFERROR(INDEX('Coverage Indicator_Import-Expor'!$D$7:$D$210,MATCH(B69,'Coverage Indicator_Import-Expor'!$C$7:$C$210,0)),\"\")","v":""},{"$f":"IFERROR(INDEX('Coverage Indicator_Import-Expor'!$E$7:$E$210,MATCH(B69,'Coverage Indicator_Import-Expor'!$C$7:$C$210,0)),\"\")","v":""},{"$f":"IFERROR(IF(INDEX('Coverage Indicator_Import-Expor'!K$7:K$210,MATCH($B69,'Coverage Indicator_Import-Expor'!$C$7:$C$210,0))=\"\",\"\",INDEX('Coverage Indicator_Import-Expor'!K$7:K$210,MATCH($B69,'Coverage Indicator_Import-Expor'!$C$7:$C$210,0))),\"\")","v":""},{"$f":"IFERROR(IF(INDEX('Coverage Indicator_Import-Expor'!L$7:L$210,MATCH($B69,'Coverage Indicator_Import-Expor'!$C$7:$C$210,0))=\"\",\"\",INDEX('Coverage Indicator_Import-Expor'!L$7:L$210,MATCH($B69,'Coverage Indicator_Import-Expor'!$C$7:$C$210,0))),\"\")","v":""},{"$f":"IFERROR(IF(INDEX('Coverage Indicator_Import-Expor'!AR$7:AR$210,MATCH($B69,'Coverage Indicator_Import-Expor'!$C$7:$C$210,0))=\"\",\"\",INDEX('Coverage Indicator_Import-Expor'!AR$7:AR$210,MATCH($B69,'Coverage Indicator_Import-Expor'!$C$7:$C$210,0))),\"\")","v":""},{"$f":"IFERROR(IF(INDEX('Coverage Indicator_Import-Expor'!AS$7:AS$210,MATCH($B69,'Coverage Indicator_Import-Expor'!$C$7:$C$210,0))=\"\",\"\",INDEX('Coverage Indicator_Import-Expor'!AS$7:AS$210,MATCH($B69,'Coverage Indicator_Import-Expor'!$C$7:$C$210,0))),\"\")","v":""},{"$f":"IFERROR(IF(INDEX('Coverage Indicator_Import-Expor'!N$7:N$210,MATCH($B69,'Coverage Indicator_Import-Expor'!$C$7:$C$210,0))=\"\",\"\",INDEX('Coverage Indicator_Import-Expor'!N$7:N$210,MATCH($B69,'Coverage Indicator_Import-Expor'!$C$7:$C$210,0))),\"\")","v":""},{"$f":"IFERROR(IF(INDEX('Coverage Indicator_Import-Expor'!O$7:O$210,MATCH($B69,'Coverage Indicator_Import-Expor'!$C$7:$C$210,0))=\"\",\"\",INDEX('Coverage Indicator_Import-Expor'!O$7:O$210,MATCH($B69,'Coverage Indicator_Import-Expor'!$C$7:$C$210,0))),\"\")","v":""},{"$f":"IFERROR(IF(INDEX('Coverage Indicator_Import-Expor'!P$7:P$210,MATCH($B69,'Coverage Indicator_Import-Expor'!$C$7:$C$210,0))=\"\",\"\",INDEX('Coverage Indicator_Import-Expor'!P$7:P$210,MATCH($B69,'Coverage Indicator_Import-Expor'!$C$7:$C$210,0))),\"\")","v":""},{"$f":"IFERROR(IF(INDEX('Coverage Indicator_Import-Expor'!Q$7:Q$210,MATCH($B69,'Coverage Indicator_Import-Expor'!$C$7:$C$210,0))=\"\",\"\",INDEX('Coverage Indicator_Import-Expor'!Q$7:Q$210,MATCH($B69,'Coverage Indicator_Import-Expor'!$C$7:$C$210,0))),\"\")","v":""},{"$f":"IFERROR(IF(INDEX('Coverage Indicator_Import-Expor'!R$7:R$210,MATCH($B69,'Coverage Indicator_Import-Expor'!$C$7:$C$210,0))=\"\",\"\",INDEX('Coverage Indicator_Import-Expor'!R$7:R$210,MATCH($B69,'Coverage Indicator_Import-Expor'!$C$7:$C$210,0))),\"\")","v":""},{"$f":"IFERROR(IF(INDEX('Coverage Indicator_Import-Expor'!S$7:S$210,MATCH($B69,'Coverage Indicator_Import-Expor'!$C$7:$C$210,0))=\"\",\"\",INDEX('Coverage Indicator_Import-Expor'!S$7:S$210,MATCH($B69,'Coverage Indicator_Import-Expor'!$C$7:$C$210,0))),\"\")","v":""},{"$f":"IFERROR(IF(INDEX('Coverage Indicator_Import-Expor'!T$7:T$210,MATCH($B69,'Coverage Indicator_Import-Expor'!$C$7:$C$210,0))=\"\",\"\",INDEX('Coverage Indicator_Import-Expor'!T$7:T$210,MATCH($B69,'Coverage Indicator_Import-Expor'!$C$7:$C$210,0))),\"\")","v":""},{"$f":"IFERROR(IF(INDEX('Coverage Indicator_Import-Expor'!U$7:U$210,MATCH($B69,'Coverage Indicator_Import-Expor'!$C$7:$C$210,0))=\"\",\"\",INDEX('Coverage Indicator_Import-Expor'!U$7:U$210,MATCH($B69,'Coverage Indicator_Import-Expor'!$C$7:$C$210,0))),\"\")","v":""},null,null,"",null," ",null,"No Results Reported",null,null,"",null," ",null,null,"No Results Reported",null,null,""," ",null,"No Results Reported"]
[60,"Coverage60",{"$f":"IFERROR(INDEX('Coverage Indicator_Import-Expor'!$D$7:$D$210,MATCH(B70,'Coverage Indicator_Import-Expor'!$C$7:$C$210,0)),\"\")","v":""},{"$f":"IFERROR(INDEX('Coverage Indicator_Import-Expor'!$E$7:$E$210,MATCH(B70,'Coverage Indicator_Import-Expor'!$C$7:$C$210,0)),\"\")","v":""},{"$f":"IFERROR(IF(INDEX('Coverage Indicator_Import-Expor'!K$7:K$210,MATCH($B70,'Coverage Indicator_Import-Expor'!$C$7:$C$210,0))=\"\",\"\",INDEX('Coverage Indicator_Import-Expor'!K$7:K$210,MATCH($B70,'Coverage Indicator_Import-Expor'!$C$7:$C$210,0))),\"\")","v":""},{"$f":"IFERROR(IF(INDEX('Coverage Indicator_Import-Expor'!L$7:L$210,MATCH($B70,'Coverage Indicator_Import-Expor'!$C$7:$C$210,0))=\"\",\"\",INDEX('Coverage Indicator_Import-Expor'!L$7:L$210,MATCH($B70,'Coverage Indicator_Import-Expor'!$C$7:$C$210,0))),\"\")","v":""},{"$f":"IFERROR(IF(INDEX('Coverage Indicator_Import-Expor'!AR$7:AR$210,MATCH($B70,'Coverage Indicator_Import-Expor'!$C$7:$C$210,0))=\"\",\"\",INDEX('Coverage Indicator_Import-Expor'!AR$7:AR$210,MATCH($B70,'Coverage Indicator_Import-Expor'!$C$7:$C$210,0))),\"\")","v":""},{"$f":"IFERROR(IF(INDEX('Coverage Indicator_Import-Expor'!AS$7:AS$210,MATCH($B70,'Coverage Indicator_Import-Expor'!$C$7:$C$210,0))=\"\",\"\",INDEX('Coverage Indicator_Import-Expor'!AS$7:AS$210,MATCH($B70,'Coverage Indicator_Import-Expor'!$C$7:$C$210,0))),\"\")","v":""},{"$f":"IFERROR(IF(INDEX('Coverage Indicator_Import-Expor'!N$7:N$210,MATCH($B70,'Coverage Indicator_Import-Expor'!$C$7:$C$210,0))=\"\",\"\",INDEX('Coverage Indicator_Import-Expor'!N$7:N$210,MATCH($B70,'Coverage Indicator_Import-Expor'!$C$7:$C$210,0))),\"\")","v":""},{"$f":"IFERROR(IF(INDEX('Coverage Indicator_Import-Expor'!O$7:O$210,MATCH($B70,'Coverage Indicator_Import-Expor'!$C$7:$C$210,0))=\"\",\"\",INDEX('Coverage Indicator_Import-Expor'!O$7:O$210,MATCH($B70,'Coverage Indicator_Import-Expor'!$C$7:$C$210,0))),\"\")","v":""},{"$f":"IFERROR(IF(INDEX('Coverage Indicator_Import-Expor'!P$7:P$210,MATCH($B70,'Coverage Indicator_Import-Expor'!$C$7:$C$210,0))=\"\",\"\",INDEX('Coverage Indicator_Import-Expor'!P$7:P$210,MATCH($B70,'Coverage Indicator_Import-Expor'!$C$7:$C$210,0))),\"\")","v":""},{"$f":"IFERROR(IF(INDEX('Coverage Indicator_Import-Expor'!Q$7:Q$210,MATCH($B70,'Coverage Indicator_Import-Expor'!$C$7:$C$210,0))=\"\",\"\",INDEX('Coverage Indicator_Import-Expor'!Q$7:Q$210,MATCH($B70,'Coverage Indicator_Import-Expor'!$C$7:$C$210,0))),\"\")","v":""},{"$f":"IFERROR(IF(INDEX('Coverage Indicator_Import-Expor'!R$7:R$210,MATCH($B70,'Coverage Indicator_Import-Expor'!$C$7:$C$210,0))=\"\",\"\",INDEX('Coverage Indicator_Import-Expor'!R$7:R$210,MATCH($B70,'Coverage Indicator_Import-Expor'!$C$7:$C$210,0))),\"\")","v":""},{"$f":"IFERROR(IF(INDEX('Coverage Indicator_Import-Expor'!S$7:S$210,MATCH($B70,'Coverage Indicator_Import-Expor'!$C$7:$C$210,0))=\"\",\"\",INDEX('Coverage Indicator_Import-Expor'!S$7:S$210,MATCH($B70,'Coverage Indicator_Import-Expor'!$C$7:$C$210,0))),\"\")","v":""},{"$f":"IFERROR(IF(INDEX('Coverage Indicator_Import-Expor'!T$7:T$210,MATCH($B70,'Coverage Indicator_Import-Expor'!$C$7:$C$210,0))=\"\",\"\",INDEX('Coverage Indicator_Import-Expor'!T$7:T$210,MATCH($B70,'Coverage Indicator_Import-Expor'!$C$7:$C$210,0))),\"\")","v":""},{"$f":"IFERROR(IF(INDEX('Coverage Indicator_Import-Expor'!U$7:U$210,MATCH($B70,'Coverage Indicator_Import-Expor'!$C$7:$C$210,0))=\"\",\"\",INDEX('Coverage Indicator_Import-Expor'!U$7:U$210,MATCH($B70,'Coverage Indicator_Import-Expor'!$C$7:$C$210,0))),\"\")","v":""},null,null,"",null," ",null,"No Results Reported",null,null,"",null," ",null,null,"No Results Reported",null,null,""," ",null,"No Results Reported"]
[61,"Coverage61",{"$f":"IFERROR(INDEX('Coverage Indicator_Import-Expor'!$D$7:$D$210,MATCH(B71,'Coverage Indicator_Import-Expor'!$C$7:$C$210,0)),\"\")","v":""},{"$f":"IFERROR(INDEX('Coverage Indicator_Import-Expor'!$E$7:$E$210,MATCH(B71,'Coverage Indicator_Import-Expor'!$C$7:$C$210,0)),\"\")","v":""},{"$f":"IFERROR(IF(INDEX('Coverage Indicator_Import-Expor'!K$7:K$210,MATCH($B71,'Coverage Indicator_Import-Expor'!$C$7:$C$210,0))=\"\",\"\",INDEX('Coverage Indicator_Import-Expor'!K$7:K$210,MATCH($B71,'Coverage Indicator_Import-Expor'!$C$7:$C$210,0))),\"\")","v":""},{"$f":"IFERROR(IF(INDEX('Coverage Indicator_Import-Expor'!L$7:L$210,MATCH($B71,'Coverage Indicator_Import-Expor'!$C$7:$C$210,0))=\"\",\"\",INDEX('Coverage Indicator_Import-Expor'!L$7:L$210,MATCH($B71,'Coverage Indicator_Import-Expor'!$C$7:$C$210,0))),\"\")","v":""},{"$f":"IFERROR(IF(INDEX('Coverage Indicator_Import-Expor'!AR$7:AR$210,MATCH($B71,'Coverage Indicator_Import-Expor'!$C$7:$C$210,0))=\"\",\"\",INDEX('Coverage Indicator_Import-Expor'!AR$7:AR$210,MATCH($B71,'Coverage Indicator_Import-Expor'!$C$7:$C$210,0))),\"\")","v":""},{"$f":"IFERROR(IF(INDEX('Coverage Indicator_Import-Expor'!AS$7:AS$210,MATCH($B71,'Coverage Indicator_Import-Expor'!$C$7:$C$210,0))=\"\",\"\",INDEX('Coverage Indicator_Import-Expor'!AS$7:AS$210,MATCH($B71,'Coverage Indicator_Import-Expor'!$C$7:$C$210,0))),\"\")","v":""},{"$f":"IFERROR(IF(INDEX('Coverage Indicator_Import-Expor'!N$7:N$210,MATCH($B71,'Coverage Indicator_Import-Expor'!$C$7:$C$210,0))=\"\",\"\",INDEX('Coverage Indicator_Import-Expor'!N$7:N$210,MATCH($B71,'Coverage Indicator_Import-Expor'!$C$7:$C$210,0))),\"\")","v":""},{"$f":"IFERROR(IF(INDEX('Coverage Indicator_Import-Expor'!O$7:O$210,MATCH($B71,'Coverage Indicator_Import-Expor'!$C$7:$C$210,0))=\"\",\"\",INDEX('Coverage Indicator_Import-Expor'!O$7:O$210,MATCH($B71,'Coverage Indicator_Import-Expor'!$C$7:$C$210,0))),\"\")","v":""},{"$f":"IFERROR(IF(INDEX('Coverage Indicator_Import-Expor'!P$7:P$210,MATCH($B71,'Coverage Indicator_Import-Expor'!$C$7:$C$210,0))=\"\",\"\",INDEX('Coverage Indicator_Import-Expor'!P$7:P$210,MATCH($B71,'Coverage Indicator_Import-Expor'!$C$7:$C$210,0))),\"\")","v":""},{"$f":"IFERROR(IF(INDEX('Coverage Indicator_Import-Expor'!Q$7:Q$210,MATCH($B71,'Coverage Indicator_Import-Expor'!$C$7:$C$210,0))=\"\",\"\",INDEX('Coverage Indicator_Import-Expor'!Q$7:Q$210,MATCH($B71,'Coverage Indicator_Import-Expor'!$C$7:$C$210,0))),\"\")","v":""},{"$f":"IFERROR(IF(INDEX('Coverage Indicator_Import-Expor'!R$7:R$210,MATCH($B71,'Coverage Indicator_Import-Expor'!$C$7:$C$210,0))=\"\",\"\",INDEX('Coverage Indicator_Import-Expor'!R$7:R$210,MATCH($B71,'Coverage Indicator_Import-Expor'!$C$7:$C$210,0))),\"\")","v":""},{"$f":"IFERROR(IF(INDEX('Coverage Indicator_Import-Expor'!S$7:S$210,MATCH($B71,'Coverage Indicator_Import-Expor'!$C$7:$C$210,0))=\"\",\"\",INDEX('Coverage Indicator_Import-Expor'!S$7:S$210,MATCH($B71,'Coverage Indicator_Import-Expor'!$C$7:$C$210,0))),\"\")","v":""},{"$f":"IFERROR(IF(INDEX('Coverage Indicator_Import-Expor'!T$7:T$210,MATCH($B71,'Coverage Indicator_Import-Expor'!$C$7:$C$210,0))=\"\",\"\",INDEX('Coverage Indicator_Import-Expor'!T$7:T$210,MATCH($B71,'Coverage Indicator_Import-Expor'!$C$7:$C$210,0))),\"\")","v":""},{"$f":"IFERROR(IF(INDEX('Coverage Indicator_Import-Expor'!U$7:U$210,MATCH($B71,'Coverage Indicator_Import-Expor'!$C$7:$C$210,0))=\"\",\"\",INDEX('Coverage Indicator_Import-Expor'!U$7:U$210,MATCH($B71,'Coverage Indicator_Import-Expor'!$C$7:$C$210,0))),\"\")","v":""},null,null,"",null," ",null,"No Results Reported",null,null,"",null," ",null,null,"No Results Reported",null,null,""," ",null,"No Results Reported"]
[62,"Coverage62",{"$f":"IFERROR(INDEX('Coverage Indicator_Import-Expor'!$D$7:$D$210,MATCH(B72,'Coverage Indicator_Import-Expor'!$C$7:$C$210,0)),\"\")","v":""},{"$f":"IFERROR(INDEX('Coverage Indicator_Import-Expor'!$E$7:$E$210,MATCH(B72,'Coverage Indicator_Import-Expor'!$C$7:$C$210,0)),\"\")","v":""},{"$f":"IFERROR(IF(INDEX('Coverage Indicator_Import-Expor'!K$7:K$210,MATCH($B72,'Coverage Indicator_Import-Expor'!$C$7:$C$210,0))=\"\",\"\",INDEX('Coverage Indicator_Import-Expor'!K$7:K$210,MATCH($B72,'Coverage Indicator_Import-Expor'!$C$7:$C$210,0))),\"\")","v":""},{"$f":"IFERROR(IF(INDEX('Coverage Indicator_Import-Expor'!L$7:L$210,MATCH($B72,'Coverage Indicator_Import-Expor'!$C$7:$C$210,0))=\"\",\"\",INDEX('Coverage Indicator_Import-Expor'!L$7:L$210,MATCH($B72,'Coverage Indicator_Import-Expor'!$C$7:$C$210,0))),\"\")","v":""},{"$f":"IFERROR(IF(INDEX('Coverage Indicator_Import-Expor'!AR$7:AR$210,MATCH($B72,'Coverage Indicator_Import-Expor'!$C$7:$C$210,0))=\"\",\"\",INDEX('Coverage Indicator_Import-Expor'!AR$7:AR$210,MATCH($B72,'Coverage Indicator_Import-Expor'!$C$7:$C$210,0))),\"\")","v":""},{"$f":"IFERROR(IF(INDEX('Coverage Indicator_Import-Expor'!AS$7:AS$210,MATCH($B72,'Coverage Indicator_Import-Expor'!$C$7:$C$210,0))=\"\",\"\",INDEX('Coverage Indicator_Import-Expor'!AS$7:AS$210,MATCH($B72,'Coverage Indicator_Import-Expor'!$C$7:$C$210,0))),\"\")","v":""},{"$f":"IFERROR(IF(INDEX('Coverage Indicator_Import-Expor'!N$7:N$210,MATCH($B72,'Coverage Indicator_Import-Expor'!$C$7:$C$210,0))=\"\",\"\",INDEX('Coverage Indicator_Import-Expor'!N$7:N$210,MATCH($B72,'Coverage Indicator_Import-Expor'!$C$7:$C$210,0))),\"\")","v":""},{"$f":"IFERROR(IF(INDEX('Coverage Indicator_Import-Expor'!O$7:O$210,MATCH($B72,'Coverage Indicator_Import-Expor'!$C$7:$C$210,0))=\"\",\"\",INDEX('Coverage Indicator_Import-Expor'!O$7:O$210,MATCH($B72,'Coverage Indicator_Import-Expor'!$C$7:$C$210,0))),\"\")","v":""},{"$f":"IFERROR(IF(INDEX('Coverage Indicator_Import-Expor'!P$7:P$210,MATCH($B72,'Coverage Indicator_Import-Expor'!$C$7:$C$210,0))=\"\",\"\",INDEX('Coverage Indicator_Import-Expor'!P$7:P$210,MATCH($B72,'Coverage Indicator_Import-Expor'!$C$7:$C$210,0))),\"\")","v":""},{"$f":"IFERROR(IF(INDEX('Coverage Indicator_Import-Expor'!Q$7:Q$210,MATCH($B72,'Coverage Indicator_Import-Expor'!$C$7:$C$210,0))=\"\",\"\",INDEX('Coverage Indicator_Import-Expor'!Q$7:Q$210,MATCH($B72,'Coverage Indicator_Import-Expor'!$C$7:$C$210,0))),\"\")","v":""},{"$f":"IFERROR(IF(INDEX('Coverage Indicator_Import-Expor'!R$7:R$210,MATCH($B72,'Coverage Indicator_Import-Expor'!$C$7:$C$210,0))=\"\",\"\",INDEX('Coverage Indicator_Import-Expor'!R$7:R$210,MATCH($B72,'Coverage Indicator_Import-Expor'!$C$7:$C$210,0))),\"\")","v":""},{"$f":"IFERROR(IF(INDEX('Coverage Indicator_Import-Expor'!S$7:S$210,MATCH($B72,'Coverage Indicator_Import-Expor'!$C$7:$C$210,0))=\"\",\"\",INDEX('Coverage Indicator_Import-Expor'!S$7:S$210,MATCH($B72,'Coverage Indicator_Import-Expor'!$C$7:$C$210,0))),\"\")","v":""},{"$f":"IFERROR(IF(INDEX('Coverage Indicator_Import-Expor'!T$7:T$210,MATCH($B72,'Coverage Indicator_Import-Expor'!$C$7:$C$210,0))=\"\",\"\",INDEX('Coverage Indicator_Import-Expor'!T$7:T$210,MATCH($B72,'Coverage Indicator_Import-Expor'!$C$7:$C$210,0))),\"\")","v":""},{"$f":"IFERROR(IF(INDEX('Coverage Indicator_Import-Expor'!U$7:U$210,MATCH($B72,'Coverage Indicator_Import-Expor'!$C$7:$C$210,0))=\"\",\"\",INDEX('Coverage Indicator_Import-Expor'!U$7:U$210,MATCH($B72,'Coverage Indicator_Import-Expor'!$C$7:$C$210,0))),\"\")","v":""},null,null,"",null," ",null,"No Results Reported",null,null,"",null," ",null,null,"No Results Reported",null,null,""," ",null,"No Results Reported"]
[63,"Coverage63",{"$f":"IFERROR(INDEX('Coverage Indicator_Import-Expor'!$D$7:$D$210,MATCH(B73,'Coverage Indicator_Import-Expor'!$C$7:$C$210,0)),\"\")","v":""},{"$f":"IFERROR(INDEX('Coverage Indicator_Import-Expor'!$E$7:$E$210,MATCH(B73,'Coverage Indicator_Import-Expor'!$C$7:$C$210,0)),\"\")","v":""},{"$f":"IFERROR(IF(INDEX('Coverage Indicator_Import-Expor'!K$7:K$210,MATCH($B73,'Coverage Indicator_Import-Expor'!$C$7:$C$210,0))=\"\",\"\",INDEX('Coverage Indicator_Import-Expor'!K$7:K$210,MATCH($B73,'Coverage Indicator_Import-Expor'!$C$7:$C$210,0))),\"\")","v":""},{"$f":"IFERROR(IF(INDEX('Coverage Indicator_Import-Expor'!L$7:L$210,MATCH($B73,'Coverage Indicator_Import-Expor'!$C$7:$C$210,0))=\"\",\"\",INDEX('Coverage Indicator_Import-Expor'!L$7:L$210,MATCH($B73,'Coverage Indicator_Import-Expor'!$C$7:$C$210,0))),\"\")","v":""},{"$f":"IFERROR(IF(INDEX('Coverage Indicator_Import-Expor'!AR$7:AR$210,MATCH($B73,'Coverage Indicator_Import-Expor'!$C$7:$C$210,0))=\"\",\"\",INDEX('Coverage Indicator_Import-Expor'!AR$7:AR$210,MATCH($B73,'Coverage Indicator_Import-Expor'!$C$7:$C$210,0))),\"\")","v":""},{"$f":"IFERROR(IF(INDEX('Coverage Indicator_Import-Expor'!AS$7:AS$210,MATCH($B73,'Coverage Indicator_Import-Expor'!$C$7:$C$210,0))=\"\",\"\",INDEX('Coverage Indicator_Import-Expor'!AS$7:AS$210,MATCH($B73,'Coverage Indicator_Import-Expor'!$C$7:$C$210,0))),\"\")","v":""},{"$f":"IFERROR(IF(INDEX('Coverage Indicator_Import-Expor'!N$7:N$210,MATCH($B73,'Coverage Indicator_Import-Expor'!$C$7:$C$210,0))=\"\",\"\",INDEX('Coverage Indicator_Import-Expor'!N$7:N$210,MATCH($B73,'Coverage Indicator_Import-Expor'!$C$7:$C$210,0))),\"\")","v":""},{"$f":"IFERROR(IF(INDEX('Coverage Indicator_Import-Expor'!O$7:O$210,MATCH($B73,'Coverage Indicator_Import-Expor'!$C$7:$C$210,0))=\"\",\"\",INDEX('Coverage Indicator_Import-Expor'!O$7:O$210,MATCH($B73,'Coverage Indicator_Import-Expor'!$C$7:$C$210,0))),\"\")","v":""},{"$f":"IFERROR(IF(INDEX('Coverage Indicator_Import-Expor'!P$7:P$210,MATCH($B73,'Coverage Indicator_Import-Expor'!$C$7:$C$210,0))=\"\",\"\",INDEX('Coverage Indicator_Import-Expor'!P$7:P$210,MATCH($B73,'Coverage Indicator_Import-Expor'!$C$7:$C$210,0))),\"\")","v":""},{"$f":"IFERROR(IF(INDEX('Coverage Indicator_Import-Expor'!Q$7:Q$210,MATCH($B73,'Coverage Indicator_Import-Expor'!$C$7:$C$210,0))=\"\",\"\",INDEX('Coverage Indicator_Import-Expor'!Q$7:Q$210,MATCH($B73,'Coverage Indicator_Import-Expor'!$C$7:$C$210,0))),\"\")","v":""},{"$f":"IFERROR(IF(INDEX('Coverage Indicator_Import-Expor'!R$7:R$210,MATCH($B73,'Coverage Indicator_Import-Expor'!$C$7:$C$210,0))=\"\",\"\",INDEX('Coverage Indicator_Import-Expor'!R$7:R$210,MATCH($B73,'Coverage Indicator_Import-Expor'!$C$7:$C$210,0))),\"\")","v":""},{"$f":"IFERROR(IF(INDEX('Coverage Indicator_Import-Expor'!S$7:S$210,MATCH($B73,'Coverage Indicator_Import-Expor'!$C$7:$C$210,0))=\"\",\"\",INDEX('Coverage Indicator_Import-Expor'!S$7:S$210,MATCH($B73,'Coverage Indicator_Import-Expor'!$C$7:$C$210,0))),\"\")","v":""},{"$f":"IFERROR(IF(INDEX('Coverage Indicator_Import-Expor'!T$7:T$210,MATCH($B73,'Coverage Indicator_Import-Expor'!$C$7:$C$210,0))=\"\",\"\",INDEX('Coverage Indicator_Import-Expor'!T$7:T$210,MATCH($B73,'Coverage Indicator_Import-Expor'!$C$7:$C$210,0))),\"\")","v":""},{"$f":"IFERROR(IF(INDEX('Coverage Indicator_Import-Expor'!U$7:U$210,MATCH($B73,'Coverage Indicator_Import-Expor'!$C$7:$C$210,0))=\"\",\"\",INDEX('Coverage Indicator_Import-Expor'!U$7:U$210,MATCH($B73,'Coverage Indicator_Import-Expor'!$C$7:$C$210,0))),\"\")","v":""},null,null,"",null," ",null,"No Results Reported",null,null,"",null," ",null,null,"No Results Reported",null,null,""," ",null,"No Results Reported"]
[64,"Coverage64",{"$f":"IFERROR(INDEX('Coverage Indicator_Import-Expor'!$D$7:$D$210,MATCH(B74,'Coverage Indicator_Import-Expor'!$C$7:$C$210,0)),\"\")","v":""},{"$f":"IFERROR(INDEX('Coverage Indicator_Import-Expor'!$E$7:$E$210,MATCH(B74,'Coverage Indicator_Import-Expor'!$C$7:$C$210,0)),\"\")","v":""},{"$f":"IFERROR(IF(INDEX('Coverage Indicator_Import-Expor'!K$7:K$210,MATCH($B74,'Coverage Indicator_Import-Expor'!$C$7:$C$210,0))=\"\",\"\",INDEX('Coverage Indicator_Import-Expor'!K$7:K$210,MATCH($B74,'Coverage Indicator_Import-Expor'!$C$7:$C$210,0))),\"\")","v":""},{"$f":"IFERROR(IF(INDEX('Coverage Indicator_Import-Expor'!L$7:L$210,MATCH($B74,'Coverage Indicator_Import-Expor'!$C$7:$C$210,0))=\"\",\"\",INDEX('Coverage Indicator_Import-Expor'!L$7:L$210,MATCH($B74,'Coverage Indicator_Import-Expor'!$C$7:$C$210,0))),\"\")","v":""},{"$f":"IFERROR(IF(INDEX('Coverage Indicator_Import-Expor'!AR$7:AR$210,MATCH($B74,'Coverage Indicator_Import-Expor'!$C$7:$C$210,0))=\"\",\"\",INDEX('Coverage Indicator_Import-Expor'!AR$7:AR$210,MATCH($B74,'Coverage Indicator_Import-Expor'!$C$7:$C$210,0))),\"\")","v":""},{"$f":"IFERROR(IF(INDEX('Coverage Indicator_Import-Expor'!AS$7:AS$210,MATCH($B74,'Coverage Indicator_Import-Expor'!$C$7:$C$210,0))=\"\",\"\",INDEX('Coverage Indicator_Import-Expor'!AS$7:AS$210,MATCH($B74,'Coverage Indicator_Import-Expor'!$C$7:$C$210,0))),\"\")","v":""},{"$f":"IFERROR(IF(INDEX('Coverage Indicator_Import-Expor'!N$7:N$210,MATCH($B74,'Coverage Indicator_Import-Expor'!$C$7:$C$210,0))=\"\",\"\",INDEX('Coverage Indicator_Import-Expor'!N$7:N$210,MATCH($B74,'Coverage Indicator_Import-Expor'!$C$7:$C$210,0))),\"\")","v":""},{"$f":"IFERROR(IF(INDEX('Coverage Indicator_Import-Expor'!O$7:O$210,MATCH($B74,'Coverage Indicator_Import-Expor'!$C$7:$C$210,0))=\"\",\"\",INDEX('Coverage Indicator_Import-Expor'!O$7:O$210,MATCH($B74,'Coverage Indicator_Import-Expor'!$C$7:$C$210,0))),\"\")","v":""},{"$f":"IFERROR(IF(INDEX('Coverage Indicator_Import-Expor'!P$7:P$210,MATCH($B74,'Coverage Indicator_Import-Expor'!$C$7:$C$210,0))=\"\",\"\",INDEX('Coverage Indicator_Import-Expor'!P$7:P$210,MATCH($B74,'Coverage Indicator_Import-Expor'!$C$7:$C$210,0))),\"\")","v":""},{"$f":"IFERROR(IF(INDEX('Coverage Indicator_Import-Expor'!Q$7:Q$210,MATCH($B74,'Coverage Indicator_Import-Expor'!$C$7:$C$210,0))=\"\",\"\",INDEX('Coverage Indicator_Import-Expor'!Q$7:Q$210,MATCH($B74,'Coverage Indicator_Import-Expor'!$C$7:$C$210,0))),\"\")","v":""},{"$f":"IFERROR(IF(INDEX('Coverage Indicator_Import-Expor'!R$7:R$210,MATCH($B74,'Coverage Indicator_Import-Expor'!$C$7:$C$210,0))=\"\",\"\",INDEX('Coverage Indicator_Import-Expor'!R$7:R$210,MATCH($B74,'Coverage Indicator_Import-Expor'!$C$7:$C$210,0))),\"\")","v":""},{"$f":"IFERROR(IF(INDEX('Coverage Indicator_Import-Expor'!S$7:S$210,MATCH($B74,'Coverage Indicator_Import-Expor'!$C$7:$C$210,0))=\"\",\"\",INDEX('Coverage Indicator_Import-Expor'!S$7:S$210,MATCH($B74,'Coverage Indicator_Import-Expor'!$C$7:$C$210,0))),\"\")","v":""},{"$f":"IFERROR(IF(INDEX('Coverage Indicator_Import-Expor'!T$7:T$210,MATCH($B74,'Coverage Indicator_Import-Expor'!$C$7:$C$210,0))=\"\",\"\",INDEX('Coverage Indicator_Import-Expor'!T$7:T$210,MATCH($B74,'Coverage Indicator_Import-Expor'!$C$7:$C$210,0))),\"\")","v":""},{"$f":"IFERROR(IF(INDEX('Coverage Indicator_Import-Expor'!U$7:U$210,MATCH($B74,'Coverage Indicator_Import-Expor'!$C$7:$C$210,0))=\"\",\"\",INDEX('Coverage Indicator_Import-Expor'!U$7:U$210,MATCH($B74,'Coverage Indicator_Import-Expor'!$C$7:$C$210,0))),\"\")","v":""},null,null,"",null," ",null,"No Results Reported",null,null,"",null," ",null,null,"No Results Reported",null,null,""," ",null,"No Results Reported"]
[65,"Coverage65",{"$f":"IFERROR(INDEX('Coverage Indicator_Import-Expor'!$D$7:$D$210,MATCH(B75,'Coverage Indicator_Import-Expor'!$C$7:$C$210,0)),\"\")","v":""},{"$f":"IFERROR(INDEX('Coverage Indicator_Import-Expor'!$E$7:$E$210,MATCH(B75,'Coverage Indicator_Import-Expor'!$C$7:$C$210,0)),\"\")","v":""},{"$f":"IFERROR(IF(INDEX('Coverage Indicator_Import-Expor'!K$7:K$210,MATCH($B75,'Coverage Indicator_Import-Expor'!$C$7:$C$210,0))=\"\",\"\",INDEX('Coverage Indicator_Import-Expor'!K$7:K$210,MATCH($B75,'Coverage Indicator_Import-Expor'!$C$7:$C$210,0))),\"\")","v":""},{"$f":"IFERROR(IF(INDEX('Coverage Indicator_Import-Expor'!L$7:L$210,MATCH($B75,'Coverage Indicator_Import-Expor'!$C$7:$C$210,0))=\"\",\"\",INDEX('Coverage Indicator_Import-Expor'!L$7:L$210,MATCH($B75,'Coverage Indicator_Import-Expor'!$C$7:$C$210,0))),\"\")","v":""},{"$f":"IFERROR(IF(INDEX('Coverage Indicator_Import-Expor'!AR$7:AR$210,MATCH($B75,'Coverage Indicator_Import-Expor'!$C$7:$C$210,0))=\"\",\"\",INDEX('Coverage Indicator_Import-Expor'!AR$7:AR$210,MATCH($B75,'Coverage Indicator_Import-Expor'!$C$7:$C$210,0))),\"\")","v":""},{"$f":"IFERROR(IF(INDEX('Coverage Indicator_Import-Expor'!AS$7:AS$210,MATCH($B75,'Coverage Indicator_Import-Expor'!$C$7:$C$210,0))=\"\",\"\",INDEX('Coverage Indicator_Import-Expor'!AS$7:AS$210,MATCH($B75,'Coverage Indicator_Import-Expor'!$C$7:$C$210,0))),\"\")","v":""},{"$f":"IFERROR(IF(INDEX('Coverage Indicator_Import-Expor'!N$7:N$210,MATCH($B75,'Coverage Indicator_Import-Expor'!$C$7:$C$210,0))=\"\",\"\",INDEX('Coverage Indicator_Import-Expor'!N$7:N$210,MATCH($B75,'Coverage Indicator_Import-Expor'!$C$7:$C$210,0))),\"\")","v":""},{"$f":"IFERROR(IF(INDEX('Coverage Indicator_Import-Expor'!O$7:O$210,MATCH($B75,'Coverage Indicator_Import-Expor'!$C$7:$C$210,0))=\"\",\"\",INDEX('Coverage Indicator_Import-Expor'!O$7:O$210,MATCH($B75,'Coverage Indicator_Import-Expor'!$C$7:$C$210,0))),\"\")","v":""},{"$f":"IFERROR(IF(INDEX('Coverage Indicator_Import-Expor'!P$7:P$210,MATCH($B75,'Coverage Indicator_Import-Expor'!$C$7:$C$210,0))=\"\",\"\",INDEX('Coverage Indicator_Import-Expor'!P$7:P$210,MATCH($B75,'Coverage Indicator_Import-Expor'!$C$7:$C$210,0))),\"\")","v":""},{"$f":"IFERROR(IF(INDEX('Coverage Indicator_Import-Expor'!Q$7:Q$210,MATCH($B75,'Coverage Indicator_Import-Expor'!$C$7:$C$210,0))=\"\",\"\",INDEX('Coverage Indicator_Import-Expor'!Q$7:Q$210,MATCH($B75,'Coverage Indicator_Import-Expor'!$C$7:$C$210,0))),\"\")","v":""},{"$f":"IFERROR(IF(INDEX('Coverage Indicator_Import-Expor'!R$7:R$210,MATCH($B75,'Coverage Indicator_Import-Expor'!$C$7:$C$210,0))=\"\",\"\",INDEX('Coverage Indicator_Import-Expor'!R$7:R$210,MATCH($B75,'Coverage Indicator_Import-Expor'!$C$7:$C$210,0))),\"\")","v":""},{"$f":"IFERROR(IF(INDEX('Coverage Indicator_Import-Expor'!S$7:S$210,MATCH($B75,'Coverage Indicator_Import-Expor'!$C$7:$C$210,0))=\"\",\"\",INDEX('Coverage Indicator_Import-Expor'!S$7:S$210,MATCH($B75,'Coverage Indicator_Import-Expor'!$C$7:$C$210,0))),\"\")","v":""},{"$f":"IFERROR(IF(INDEX('Coverage Indicator_Import-Expor'!T$7:T$210,MATCH($B75,'Coverage Indicator_Import-Expor'!$C$7:$C$210,0))=\"\",\"\",INDEX('Coverage Indicator_Import-Expor'!T$7:T$210,MATCH($B75,'Coverage Indicator_Import-Expor'!$C$7:$C$210,0))),\"\")","v":""},{"$f":"IFERROR(IF(INDEX('Coverage Indicator_Import-Expor'!U$7:U$210,MATCH($B75,'Coverage Indicator_Import-Expor'!$C$7:$C$210,0))=\"\",\"\",INDEX('Coverage Indicator_Import-Expor'!U$7:U$210,MATCH($B75,'Coverage Indicator_Import-Expor'!$C$7:$C$210,0))),\"\")","v":""},null,null,"",null," ",null,"No Results Reported",null,null,"",null," ",null,null,"No Results Reported",null,null,""," ",null,"No Results Reported"]
[{"$f":"A75+1","v":66},"Coverage66",{"$f":"IFERROR(INDEX('Coverage Indicator_Import-Expor'!$D$7:$D$210,MATCH(B76,'Coverage Indicator_Import-Expor'!$C$7:$C$210,0)),\"\")","v":""},{"$f":"IFERROR(INDEX('Coverage Indicator_Import-Expor'!$E$7:$E$210,MATCH(B76,'Coverage Indicator_Import-Expor'!$C$7:$C$210,0)),\"\")","v":""},{"$f":"IFERROR(IF(INDEX('Coverage Indicator_Import-Expor'!K$7:K$210,MATCH($B76,'Coverage Indicator_Import-Expor'!$C$7:$C$210,0))=\"\",\"\",INDEX('Coverage Indicator_Import-Expor'!K$7:K$210,MATCH($B76,'Coverage Indicator_Import-Expor'!$C$7:$C$210,0))),\"\")","v":""},{"$f":"IFERROR(IF(INDEX('Coverage Indicator_Import-Expor'!L$7:L$210,MATCH($B76,'Coverage Indicator_Import-Expor'!$C$7:$C$210,0))=\"\",\"\",INDEX('Coverage Indicator_Import-Expor'!L$7:L$210,MATCH($B76,'Coverage Indicator_Import-Expor'!$C$7:$C$210,0))),\"\")","v":""},{"$f":"IFERROR(IF(INDEX('Coverage Indicator_Import-Expor'!AR$7:AR$210,MATCH($B76,'Coverage Indicator_Import-Expor'!$C$7:$C$210,0))=\"\",\"\",INDEX('Coverage Indicator_Import-Expor'!AR$7:AR$210,MATCH($B76,'Coverage Indicator_Import-Expor'!$C$7:$C$210,0))),\"\")","v":""},{"$f":"IFERROR(IF(INDEX('Coverage Indicator_Import-Expor'!AS$7:AS$210,MATCH($B76,'Coverage Indicator_Import-Expor'!$C$7:$C$210,0))=\"\",\"\",INDEX('Coverage Indicator_Import-Expor'!AS$7:AS$210,MATCH($B76,'Coverage Indicator_Import-Expor'!$C$7:$C$210,0))),\"\")","v":""},{"$f":"IFERROR(IF(INDEX('Coverage Indicator_Import-Expor'!N$7:N$210,MATCH($B76,'Coverage Indicator_Import-Expor'!$C$7:$C$210,0))=\"\",\"\",INDEX('Coverage Indicator_Import-Expor'!N$7:N$210,MATCH($B76,'Coverage Indicator_Import-Expor'!$C$7:$C$210,0))),\"\")","v":""},{"$f":"IFERROR(IF(INDEX('Coverage Indicator_Import-Expor'!O$7:O$210,MATCH($B76,'Coverage Indicator_Import-Expor'!$C$7:$C$210,0))=\"\",\"\",INDEX('Coverage Indicator_Import-Expor'!O$7:O$210,MATCH($B76,'Coverage Indicator_Import-Expor'!$C$7:$C$210,0))),\"\")","v":""},{"$f":"IFERROR(IF(INDEX('Coverage Indicator_Import-Expor'!P$7:P$210,MATCH($B76,'Coverage Indicator_Import-Expor'!$C$7:$C$210,0))=\"\",\"\",INDEX('Coverage Indicator_Import-Expor'!P$7:P$210,MATCH($B76,'Coverage Indicator_Import-Expor'!$C$7:$C$210,0))),\"\")","v":""},{"$f":"IFERROR(IF(INDEX('Coverage Indicator_Import-Expor'!Q$7:Q$210,MATCH($B76,'Coverage Indicator_Import-Expor'!$C$7:$C$210,0))=\"\",\"\",INDEX('Coverage Indicator_Import-Expor'!Q$7:Q$210,MATCH($B76,'Coverage Indicator_Import-Expor'!$C$7:$C$210,0))),\"\")","v":""},{"$f":"IFERROR(IF(INDEX('Coverage Indicator_Import-Expor'!R$7:R$210,MATCH($B76,'Coverage Indicator_Import-Expor'!$C$7:$C$210,0))=\"\",\"\",INDEX('Coverage Indicator_Import-Expor'!R$7:R$210,MATCH($B76,'Coverage Indicator_Import-Expor'!$C$7:$C$210,0))),\"\")","v":""},{"$f":"IFERROR(IF(INDEX('Coverage Indicator_Import-Expor'!S$7:S$210,MATCH($B76,'Coverage Indicator_Import-Expor'!$C$7:$C$210,0))=\"\",\"\",INDEX('Coverage Indicator_Import-Expor'!S$7:S$210,MATCH($B76,'Coverage Indicator_Import-Expor'!$C$7:$C$210,0))),\"\")","v":""},{"$f":"IFERROR(IF(INDEX('Coverage Indicator_Import-Expor'!T$7:T$210,MATCH($B76,'Coverage Indicator_Import-Expor'!$C$7:$C$210,0))=\"\",\"\",INDEX('Coverage Indicator_Import-Expor'!T$7:T$210,MATCH($B76,'Coverage Indicator_Import-Expor'!$C$7:$C$210,0))),\"\")","v":""},{"$f":"IFERROR(IF(INDEX('Coverage Indicator_Import-Expor'!U$7:U$210,MATCH($B76,'Coverage Indicator_Import-Expor'!$C$7:$C$210,0))=\"\",\"\",INDEX('Coverage Indicator_Import-Expor'!U$7:U$210,MATCH($B76,'Coverage Indicator_Import-Expor'!$C$7:$C$210,0))),\"\")","v":""},null,null,"",null," ",null,"No Results Reported",null,null,"",null," ",null,null,"No Results Reported",null,null,""," ",null,"No Results Reported"]
[67,"Coverage67",{"$f":"IFERROR(INDEX('Coverage Indicator_Import-Expor'!$D$7:$D$210,MATCH(B77,'Coverage Indicator_Import-Expor'!$C$7:$C$210,0)),\"\")","v":""},{"$f":"IFERROR(INDEX('Coverage Indicator_Import-Expor'!$E$7:$E$210,MATCH(B77,'Coverage Indicator_Import-Expor'!$C$7:$C$210,0)),\"\")","v":""},{"$f":"IFERROR(IF(INDEX('Coverage Indicator_Import-Expor'!K$7:K$210,MATCH($B77,'Coverage Indicator_Import-Expor'!$C$7:$C$210,0))=\"\",\"\",INDEX('Coverage Indicator_Import-Expor'!K$7:K$210,MATCH($B77,'Coverage Indicator_Import-Expor'!$C$7:$C$210,0))),\"\")","v":""},{"$f":"IFERROR(IF(INDEX('Coverage Indicator_Import-Expor'!L$7:L$210,MATCH($B77,'Coverage Indicator_Import-Expor'!$C$7:$C$210,0))=\"\",\"\",INDEX('Coverage Indicator_Import-Expor'!L$7:L$210,MATCH($B77,'Coverage Indicator_Import-Expor'!$C$7:$C$210,0))),\"\")","v":""},{"$f":"IFERROR(IF(INDEX('Coverage Indicator_Import-Expor'!AR$7:AR$210,MATCH($B77,'Coverage Indicator_Import-Expor'!$C$7:$C$210,0))=\"\",\"\",INDEX('Coverage Indicator_Import-Expor'!AR$7:AR$210,MATCH($B77,'Coverage Indicator_Import-Expor'!$C$7:$C$210,0))),\"\")","v":""},{"$f":"IFERROR(IF(INDEX('Coverage Indicator_Import-Expor'!AS$7:AS$210,MATCH($B77,'Coverage Indicator_Import-Expor'!$C$7:$C$210,0))=\"\",\"\",INDEX('Coverage Indicator_Import-Expor'!AS$7:AS$210,MATCH($B77,'Coverage Indicator_Import-Expor'!$C$7:$C$210,0))),\"\")","v":""},{"$f":"IFERROR(IF(INDEX('Coverage Indicator_Import-Expor'!N$7:N$210,MATCH($B77,'Coverage Indicator_Import-Expor'!$C$7:$C$210,0))=\"\",\"\",INDEX('Coverage Indicator_Import-Expor'!N$7:N$210,MATCH($B77,'Coverage Indicator_Import-Expor'!$C$7:$C$210,0))),\"\")","v":""},{"$f":"IFERROR(IF(INDEX('Coverage Indicator_Import-Expor'!O$7:O$210,MATCH($B77,'Coverage Indicator_Import-Expor'!$C$7:$C$210,0))=\"\",\"\",INDEX('Coverage Indicator_Import-Expor'!O$7:O$210,MATCH($B77,'Coverage Indicator_Import-Expor'!$C$7:$C$210,0))),\"\")","v":""},{"$f":"IFERROR(IF(INDEX('Coverage Indicator_Import-Expor'!P$7:P$210,MATCH($B77,'Coverage Indicator_Import-Expor'!$C$7:$C$210,0))=\"\",\"\",INDEX('Coverage Indicator_Import-Expor'!P$7:P$210,MATCH($B77,'Coverage Indicator_Import-Expor'!$C$7:$C$210,0))),\"\")","v":""},{"$f":"IFERROR(IF(INDEX('Coverage Indicator_Import-Expor'!Q$7:Q$210,MATCH($B77,'Coverage Indicator_Import-Expor'!$C$7:$C$210,0))=\"\",\"\",INDEX('Coverage Indicator_Import-Expor'!Q$7:Q$210,MATCH($B77,'Coverage Indicator_Import-Expor'!$C$7:$C$210,0))),\"\")","v":""},{"$f":"IFERROR(IF(INDEX('Coverage Indicator_Import-Expor'!R$7:R$210,MATCH($B77,'Coverage Indicator_Import-Expor'!$C$7:$C$210,0))=\"\",\"\",INDEX('Coverage Indicator_Import-Expor'!R$7:R$210,MATCH($B77,'Coverage Indicator_Import-Expor'!$C$7:$C$210,0))),\"\")","v":""},{"$f":"IFERROR(IF(INDEX('Coverage Indicator_Import-Expor'!S$7:S$210,MATCH($B77,'Coverage Indicator_Import-Expor'!$C$7:$C$210,0))=\"\",\"\",INDEX('Coverage Indicator_Import-Expor'!S$7:S$210,MATCH($B77,'Coverage Indicator_Import-Expor'!$C$7:$C$210,0))),\"\")","v":""},{"$f":"IFERROR(IF(INDEX('Coverage Indicator_Import-Expor'!T$7:T$210,MATCH($B77,'Coverage Indicator_Import-Expor'!$C$7:$C$210,0))=\"\",\"\",INDEX('Coverage Indicator_Import-Expor'!T$7:T$210,MATCH($B77,'Coverage Indicator_Import-Expor'!$C$7:$C$210,0))),\"\")","v":""},{"$f":"IFERROR(IF(INDEX('Coverage Indicator_Import-Expor'!U$7:U$210,MATCH($B77,'Coverage Indicator_Import-Expor'!$C$7:$C$210,0))=\"\",\"\",INDEX('Coverage Indicator_Import-Expor'!U$7:U$210,MATCH($B77,'Coverage Indicator_Import-Expor'!$C$7:$C$210,0))),\"\")","v":""},null,null,"",null," ",null,"No Results Reported",null,null,"",null," ",null,null,"No Results Reported",null,null,""," ",null,"No Results Reported"]
[68,"Coverage68",{"$f":"IFERROR(INDEX('Coverage Indicator_Import-Expor'!$D$7:$D$210,MATCH(B78,'Coverage Indicator_Import-Expor'!$C$7:$C$210,0)),\"\")","v":""},{"$f":"IFERROR(INDEX('Coverage Indicator_Import-Expor'!$E$7:$E$210,MATCH(B78,'Coverage Indicator_Import-Expor'!$C$7:$C$210,0)),\"\")","v":""},{"$f":"IFERROR(IF(INDEX('Coverage Indicator_Import-Expor'!K$7:K$210,MATCH($B78,'Coverage Indicator_Import-Expor'!$C$7:$C$210,0))=\"\",\"\",INDEX('Coverage Indicator_Import-Expor'!K$7:K$210,MATCH($B78,'Coverage Indicator_Import-Expor'!$C$7:$C$210,0))),\"\")","v":""},{"$f":"IFERROR(IF(INDEX('Coverage Indicator_Import-Expor'!L$7:L$210,MATCH($B78,'Coverage Indicator_Import-Expor'!$C$7:$C$210,0))=\"\",\"\",INDEX('Coverage Indicator_Import-Expor'!L$7:L$210,MATCH($B78,'Coverage Indicator_Import-Expor'!$C$7:$C$210,0))),\"\")","v":""},{"$f":"IFERROR(IF(INDEX('Coverage Indicator_Import-Expor'!AR$7:AR$210,MATCH($B78,'Coverage Indicator_Import-Expor'!$C$7:$C$210,0))=\"\",\"\",INDEX('Coverage Indicator_Import-Expor'!AR$7:AR$210,MATCH($B78,'Coverage Indicator_Import-Expor'!$C$7:$C$210,0))),\"\")","v":""},{"$f":"IFERROR(IF(INDEX('Coverage Indicator_Import-Expor'!AS$7:AS$210,MATCH($B78,'Coverage Indicator_Import-Expor'!$C$7:$C$210,0))=\"\",\"\",INDEX('Coverage Indicator_Import-Expor'!AS$7:AS$210,MATCH($B78,'Coverage Indicator_Import-Expor'!$C$7:$C$210,0))),\"\")","v":""},{"$f":"IFERROR(IF(INDEX('Coverage Indicator_Import-Expor'!N$7:N$210,MATCH($B78,'Coverage Indicator_Import-Expor'!$C$7:$C$210,0))=\"\",\"\",INDEX('Coverage Indicator_Import-Expor'!N$7:N$210,MATCH($B78,'Coverage Indicator_Import-Expor'!$C$7:$C$210,0))),\"\")","v":""},{"$f":"IFERROR(IF(INDEX('Coverage Indicator_Import-Expor'!O$7:O$210,MATCH($B78,'Coverage Indicator_Import-Expor'!$C$7:$C$210,0))=\"\",\"\",INDEX('Coverage Indicator_Import-Expor'!O$7:O$210,MATCH($B78,'Coverage Indicator_Import-Expor'!$C$7:$C$210,0))),\"\")","v":""},{"$f":"IFERROR(IF(INDEX('Coverage Indicator_Import-Expor'!P$7:P$210,MATCH($B78,'Coverage Indicator_Import-Expor'!$C$7:$C$210,0))=\"\",\"\",INDEX('Coverage Indicator_Import-Expor'!P$7:P$210,MATCH($B78,'Coverage Indicator_Import-Expor'!$C$7:$C$210,0))),\"\")","v":""},{"$f":"IFERROR(IF(INDEX('Coverage Indicator_Import-Expor'!Q$7:Q$210,MATCH($B78,'Coverage Indicator_Import-Expor'!$C$7:$C$210,0))=\"\",\"\",INDEX('Coverage Indicator_Import-Expor'!Q$7:Q$210,MATCH($B78,'Coverage Indicator_Import-Expor'!$C$7:$C$210,0))),\"\")","v":""},{"$f":"IFERROR(IF(INDEX('Coverage Indicator_Import-Expor'!R$7:R$210,MATCH($B78,'Coverage Indicator_Import-Expor'!$C$7:$C$210,0))=\"\",\"\",INDEX('Coverage Indicator_Import-Expor'!R$7:R$210,MATCH($B78,'Coverage Indicator_Import-Expor'!$C$7:$C$210,0))),\"\")","v":""},{"$f":"IFERROR(IF(INDEX('Coverage Indicator_Import-Expor'!S$7:S$210,MATCH($B78,'Coverage Indicator_Import-Expor'!$C$7:$C$210,0))=\"\",\"\",INDEX('Coverage Indicator_Import-Expor'!S$7:S$210,MATCH($B78,'Coverage Indicator_Import-Expor'!$C$7:$C$210,0))),\"\")","v":""},{"$f":"IFERROR(IF(INDEX('Coverage Indicator_Import-Expor'!T$7:T$210,MATCH($B78,'Coverage Indicator_Import-Expor'!$C$7:$C$210,0))=\"\",\"\",INDEX('Coverage Indicator_Import-Expor'!T$7:T$210,MATCH($B78,'Coverage Indicator_Import-Expor'!$C$7:$C$210,0))),\"\")","v":""},{"$f":"IFERROR(IF(INDEX('Coverage Indicator_Import-Expor'!U$7:U$210,MATCH($B78,'Coverage Indicator_Import-Expor'!$C$7:$C$210,0))=\"\",\"\",INDEX('Coverage Indicator_Import-Expor'!U$7:U$210,MATCH($B78,'Coverage Indicator_Import-Expor'!$C$7:$C$210,0))),\"\")","v":""},null,null,"",null," ",null,"No Results Reported",null,null,"",null," ",null,null,"No Results Reported",null,null,""," ",null,"No Results Reported"]
[69,"Coverage69",{"$f":"IFERROR(INDEX('Coverage Indicator_Import-Expor'!$D$7:$D$210,MATCH(B79,'Coverage Indicator_Import-Expor'!$C$7:$C$210,0)),\"\")","v":""},{"$f":"IFERROR(INDEX('Coverage Indicator_Import-Expor'!$E$7:$E$210,MATCH(B79,'Coverage Indicator_Import-Expor'!$C$7:$C$210,0)),\"\")","v":""},{"$f":"IFERROR(IF(INDEX('Coverage Indicator_Import-Expor'!K$7:K$210,MATCH($B79,'Coverage Indicator_Import-Expor'!$C$7:$C$210,0))=\"\",\"\",INDEX('Coverage Indicator_Import-Expor'!K$7:K$210,MATCH($B79,'Coverage Indicator_Import-Expor'!$C$7:$C$210,0))),\"\")","v":""},{"$f":"IFERROR(IF(INDEX('Coverage Indicator_Import-Expor'!L$7:L$210,MATCH($B79,'Coverage Indicator_Import-Expor'!$C$7:$C$210,0))=\"\",\"\",INDEX('Coverage Indicator_Import-Expor'!L$7:L$210,MATCH($B79,'Coverage Indicator_Import-Expor'!$C$7:$C$210,0))),\"\")","v":""},{"$f":"IFERROR(IF(INDEX('Coverage Indicator_Import-Expor'!AR$7:AR$210,MATCH($B79,'Coverage Indicator_Import-Expor'!$C$7:$C$210,0))=\"\",\"\",INDEX('Coverage Indicator_Import-Expor'!AR$7:AR$210,MATCH($B79,'Coverage Indicator_Import-Expor'!$C$7:$C$210,0))),\"\")","v":""},{"$f":"IFERROR(IF(INDEX('Coverage Indicator_Import-Expor'!AS$7:AS$210,MATCH($B79,'Coverage Indicator_Import-Expor'!$C$7:$C$210,0))=\"\",\"\",INDEX('Coverage Indicator_Import-Expor'!AS$7:AS$210,MATCH($B79,'Coverage Indicator_Import-Expor'!$C$7:$C$210,0))),\"\")","v":""},{"$f":"IFERROR(IF(INDEX('Coverage Indicator_Import-Expor'!N$7:N$210,MATCH($B79,'Coverage Indicator_Import-Expor'!$C$7:$C$210,0))=\"\",\"\",INDEX('Coverage Indicator_Import-Expor'!N$7:N$210,MATCH($B79,'Coverage Indicator_Import-Expor'!$C$7:$C$210,0))),\"\")","v":""},{"$f":"IFERROR(IF(INDEX('Coverage Indicator_Import-Expor'!O$7:O$210,MATCH($B79,'Coverage Indicator_Import-Expor'!$C$7:$C$210,0))=\"\",\"\",INDEX('Coverage Indicator_Import-Expor'!O$7:O$210,MATCH($B79,'Coverage Indicator_Import-Expor'!$C$7:$C$210,0))),\"\")","v":""},{"$f":"IFERROR(IF(INDEX('Coverage Indicator_Import-Expor'!P$7:P$210,MATCH($B79,'Coverage Indicator_Import-Expor'!$C$7:$C$210,0))=\"\",\"\",INDEX('Coverage Indicator_Import-Expor'!P$7:P$210,MATCH($B79,'Coverage Indicator_Import-Expor'!$C$7:$C$210,0))),\"\")","v":""},{"$f":"IFERROR(IF(INDEX('Coverage Indicator_Import-Expor'!Q$7:Q$210,MATCH($B79,'Coverage Indicator_Import-Expor'!$C$7:$C$210,0))=\"\",\"\",INDEX('Coverage Indicator_Import-Expor'!Q$7:Q$210,MATCH($B79,'Coverage Indicator_Import-Expor'!$C$7:$C$210,0))),\"\")","v":""},{"$f":"IFERROR(IF(INDEX('Coverage Indicator_Import-Expor'!R$7:R$210,MATCH($B79,'Coverage Indicator_Import-Expor'!$C$7:$C$210,0))=\"\",\"\",INDEX('Coverage Indicator_Import-Expor'!R$7:R$210,MATCH($B79,'Coverage Indicator_Import-Expor'!$C$7:$C$210,0))),\"\")","v":""},{"$f":"IFERROR(IF(INDEX('Coverage Indicator_Import-Expor'!S$7:S$210,MATCH($B79,'Coverage Indicator_Import-Expor'!$C$7:$C$210,0))=\"\",\"\",INDEX('Coverage Indicator_Import-Expor'!S$7:S$210,MATCH($B79,'Coverage Indicator_Import-Expor'!$C$7:$C$210,0))),\"\")","v":""},{"$f":"IFERROR(IF(INDEX('Coverage Indicator_Import-Expor'!T$7:T$210,MATCH($B79,'Coverage Indicator_Import-Expor'!$C$7:$C$210,0))=\"\",\"\",INDEX('Coverage Indicator_Import-Expor'!T$7:T$210,MATCH($B79,'Coverage Indicator_Import-Expor'!$C$7:$C$210,0))),\"\")","v":""},{"$f":"IFERROR(IF(INDEX('Coverage Indicator_Import-Expor'!U$7:U$210,MATCH($B79,'Coverage Indicator_Import-Expor'!$C$7:$C$210,0))=\"\",\"\",INDEX('Coverage Indicator_Import-Expor'!U$7:U$210,MATCH($B79,'Coverage Indicator_Import-Expor'!$C$7:$C$210,0))),\"\")","v":""},null,null,"",null," ",null,"No Results Reported",null,null,"",null," ",null,null,"No Results Reported",null,null,""," ",null,"No Results Reported"]
[70,"Coverage70",{"$f":"IFERROR(INDEX('Coverage Indicator_Import-Expor'!$D$7:$D$210,MATCH(B80,'Coverage Indicator_Import-Expor'!$C$7:$C$210,0)),\"\")","v":""},{"$f":"IFERROR(INDEX('Coverage Indicator_Import-Expor'!$E$7:$E$210,MATCH(B80,'Coverage Indicator_Import-Expor'!$C$7:$C$210,0)),\"\")","v":""},{"$f":"IFERROR(IF(INDEX('Coverage Indicator_Import-Expor'!K$7:K$210,MATCH($B80,'Coverage Indicator_Import-Expor'!$C$7:$C$210,0))=\"\",\"\",INDEX('Coverage Indicator_Import-Expor'!K$7:K$210,MATCH($B80,'Coverage Indicator_Import-Expor'!$C$7:$C$210,0))),\"\")","v":""},{"$f":"IFERROR(IF(INDEX('Coverage Indicator_Import-Expor'!L$7:L$210,MATCH($B80,'Coverage Indicator_Import-Expor'!$C$7:$C$210,0))=\"\",\"\",INDEX('Coverage Indicator_Import-Expor'!L$7:L$210,MATCH($B80,'Coverage Indicator_Import-Expor'!$C$7:$C$210,0))),\"\")","v":""},{"$f":"IFERROR(IF(INDEX('Coverage Indicator_Import-Expor'!AR$7:AR$210,MATCH($B80,'Coverage Indicator_Import-Expor'!$C$7:$C$210,0))=\"\",\"\",INDEX('Coverage Indicator_Import-Expor'!AR$7:AR$210,MATCH($B80,'Coverage Indicator_Import-Expor'!$C$7:$C$210,0))),\"\")","v":""},{"$f":"IFERROR(IF(INDEX('Coverage Indicator_Import-Expor'!AS$7:AS$210,MATCH($B80,'Coverage Indicator_Import-Expor'!$C$7:$C$210,0))=\"\",\"\",INDEX('Coverage Indicator_Import-Expor'!AS$7:AS$210,MATCH($B80,'Coverage Indicator_Import-Expor'!$C$7:$C$210,0))),\"\")","v":""},{"$f":"IFERROR(IF(INDEX('Coverage Indicator_Import-Expor'!N$7:N$210,MATCH($B80,'Coverage Indicator_Import-Expor'!$C$7:$C$210,0))=\"\",\"\",INDEX('Coverage Indicator_Import-Expor'!N$7:N$210,MATCH($B80,'Coverage Indicator_Import-Expor'!$C$7:$C$210,0))),\"\")","v":""},{"$f":"IFERROR(IF(INDEX('Coverage Indicator_Import-Expor'!O$7:O$210,MATCH($B80,'Coverage Indicator_Import-Expor'!$C$7:$C$210,0))=\"\",\"\",INDEX('Coverage Indicator_Import-Expor'!O$7:O$210,MATCH($B80,'Coverage Indicator_Import-Expor'!$C$7:$C$210,0))),\"\")","v":""},{"$f":"IFERROR(IF(INDEX('Coverage Indicator_Import-Expor'!P$7:P$210,MATCH($B80,'Coverage Indicator_Import-Expor'!$C$7:$C$210,0))=\"\",\"\",INDEX('Coverage Indicator_Import-Expor'!P$7:P$210,MATCH($B80,'Coverage Indicator_Import-Expor'!$C$7:$C$210,0))),\"\")","v":""},{"$f":"IFERROR(IF(INDEX('Coverage Indicator_Import-Expor'!Q$7:Q$210,MATCH($B80,'Coverage Indicator_Import-Expor'!$C$7:$C$210,0))=\"\",\"\",INDEX('Coverage Indicator_Import-Expor'!Q$7:Q$210,MATCH($B80,'Coverage Indicator_Import-Expor'!$C$7:$C$210,0))),\"\")","v":""},{"$f":"IFERROR(IF(INDEX('Coverage Indicator_Import-Expor'!R$7:R$210,MATCH($B80,'Coverage Indicator_Import-Expor'!$C$7:$C$210,0))=\"\",\"\",INDEX('Coverage Indicator_Import-Expor'!R$7:R$210,MATCH($B80,'Coverage Indicator_Import-Expor'!$C$7:$C$210,0))),\"\")","v":""},{"$f":"IFERROR(IF(INDEX('Coverage Indicator_Import-Expor'!S$7:S$210,MATCH($B80,'Coverage Indicator_Import-Expor'!$C$7:$C$210,0))=\"\",\"\",INDEX('Coverage Indicator_Import-Expor'!S$7:S$210,MATCH($B80,'Coverage Indicator_Import-Expor'!$C$7:$C$210,0))),\"\")","v":""},{"$f":"IFERROR(IF(INDEX('Coverage Indicator_Import-Expor'!T$7:T$210,MATCH($B80,'Coverage Indicator_Import-Expor'!$C$7:$C$210,0))=\"\",\"\",INDEX('Coverage Indicator_Import-Expor'!T$7:T$210,MATCH($B80,'Coverage Indicator_Import-Expor'!$C$7:$C$210,0))),\"\")","v":""},{"$f":"IFERROR(IF(INDEX('Coverage Indicator_Import-Expor'!U$7:U$210,MATCH($B80,'Coverage Indicator_Import-Expor'!$C$7:$C$210,0))=\"\",\"\",INDEX('Coverage Indicator_Import-Expor'!U$7:U$210,MATCH($B80,'Coverage Indicator_Import-Expor'!$C$7:$C$210,0))),\"\")","v":""},null,null,"",null," ",null,"No Results Reported",null,null,"",null," ",null,null,"No Results Reported",null,null,""," ",null,"No Results Reported"]
[71,"Coverage71",{"$f":"IFERROR(INDEX('Coverage Indicator_Import-Expor'!$D$7:$D$210,MATCH(B81,'Coverage Indicator_Import-Expor'!$C$7:$C$210,0)),\"\")","v":""},{"$f":"IFERROR(INDEX('Coverage Indicator_Import-Expor'!$E$7:$E$210,MATCH(B81,'Coverage Indicator_Import-Expor'!$C$7:$C$210,0)),\"\")","v":""},{"$f":"IFERROR(IF(INDEX('Coverage Indicator_Import-Expor'!K$7:K$210,MATCH($B81,'Coverage Indicator_Import-Expor'!$C$7:$C$210,0))=\"\",\"\",INDEX('Coverage Indicator_Import-Expor'!K$7:K$210,MATCH($B81,'Coverage Indicator_Import-Expor'!$C$7:$C$210,0))),\"\")","v":""},{"$f":"IFERROR(IF(INDEX('Coverage Indicator_Import-Expor'!L$7:L$210,MATCH($B81,'Coverage Indicator_Import-Expor'!$C$7:$C$210,0))=\"\",\"\",INDEX('Coverage Indicator_Import-Expor'!L$7:L$210,MATCH($B81,'Coverage Indicator_Import-Expor'!$C$7:$C$210,0))),\"\")","v":""},{"$f":"IFERROR(IF(INDEX('Coverage Indicator_Import-Expor'!AR$7:AR$210,MATCH($B81,'Coverage Indicator_Import-Expor'!$C$7:$C$210,0))=\"\",\"\",INDEX('Coverage Indicator_Import-Expor'!AR$7:AR$210,MATCH($B81,'Coverage Indicator_Import-Expor'!$C$7:$C$210,0))),\"\")","v":""},{"$f":"IFERROR(IF(INDEX('Coverage Indicator_Import-Expor'!AS$7:AS$210,MATCH($B81,'Coverage Indicator_Import-Expor'!$C$7:$C$210,0))=\"\",\"\",INDEX('Coverage Indicator_Import-Expor'!AS$7:AS$210,MATCH($B81,'Coverage Indicator_Import-Expor'!$C$7:$C$210,0))),\"\")","v":""},{"$f":"IFERROR(IF(INDEX('Coverage Indicator_Import-Expor'!N$7:N$210,MATCH($B81,'Coverage Indicator_Import-Expor'!$C$7:$C$210,0))=\"\",\"\",INDEX('Coverage Indicator_Import-Expor'!N$7:N$210,MATCH($B81,'Coverage Indicator_Import-Expor'!$C$7:$C$210,0))),\"\")","v":""},{"$f":"IFERROR(IF(INDEX('Coverage Indicator_Import-Expor'!O$7:O$210,MATCH($B81,'Coverage Indicator_Import-Expor'!$C$7:$C$210,0))=\"\",\"\",INDEX('Coverage Indicator_Import-Expor'!O$7:O$210,MATCH($B81,'Coverage Indicator_Import-Expor'!$C$7:$C$210,0))),\"\")","v":""},{"$f":"IFERROR(IF(INDEX('Coverage Indicator_Import-Expor'!P$7:P$210,MATCH($B81,'Coverage Indicator_Import-Expor'!$C$7:$C$210,0))=\"\",\"\",INDEX('Coverage Indicator_Import-Expor'!P$7:P$210,MATCH($B81,'Coverage Indicator_Import-Expor'!$C$7:$C$210,0))),\"\")","v":""},{"$f":"IFERROR(IF(INDEX('Coverage Indicator_Import-Expor'!Q$7:Q$210,MATCH($B81,'Coverage Indicator_Import-Expor'!$C$7:$C$210,0))=\"\",\"\",INDEX('Coverage Indicator_Import-Expor'!Q$7:Q$210,MATCH($B81,'Coverage Indicator_Import-Expor'!$C$7:$C$210,0))),\"\")","v":""},{"$f":"IFERROR(IF(INDEX('Coverage Indicator_Import-Expor'!R$7:R$210,MATCH($B81,'Coverage Indicator_Import-Expor'!$C$7:$C$210,0))=\"\",\"\",INDEX('Coverage Indicator_Import-Expor'!R$7:R$210,MATCH($B81,'Coverage Indicator_Import-Expor'!$C$7:$C$210,0))),\"\")","v":""},{"$f":"IFERROR(IF(INDEX('Coverage Indicator_Import-Expor'!S$7:S$210,MATCH($B81,'Coverage Indicator_Import-Expor'!$C$7:$C$210,0))=\"\",\"\",INDEX('Coverage Indicator_Import-Expor'!S$7:S$210,MATCH($B81,'Coverage Indicator_Import-Expor'!$C$7:$C$210,0))),\"\")","v":""},{"$f":"IFERROR(IF(INDEX('Coverage Indicator_Import-Expor'!T$7:T$210,MATCH($B81,'Coverage Indicator_Import-Expor'!$C$7:$C$210,0))=\"\",\"\",INDEX('Coverage Indicator_Import-Expor'!T$7:T$210,MATCH($B81,'Coverage Indicator_Import-Expor'!$C$7:$C$210,0))),\"\")","v":""},{"$f":"IFERROR(IF(INDEX('Coverage Indicator_Import-Expor'!U$7:U$210,MATCH($B81,'Coverage Indicator_Import-Expor'!$C$7:$C$210,0))=\"\",\"\",INDEX('Coverage Indicator_Import-Expor'!U$7:U$210,MATCH($B81,'Coverage Indicator_Import-Expor'!$C$7:$C$210,0))),\"\")","v":""},null,null,"",null," ",null,"No Results Reported",null,null,"",null," ",null,null,"No Results Reported",null,null,""," ",null,"No Results Reported"]
[72,"Coverage72",{"$f":"IFERROR(INDEX('Coverage Indicator_Import-Expor'!$D$7:$D$210,MATCH(B82,'Coverage Indicator_Import-Expor'!$C$7:$C$210,0)),\"\")","v":""},{"$f":"IFERROR(INDEX('Coverage Indicator_Import-Expor'!$E$7:$E$210,MATCH(B82,'Coverage Indicator_Import-Expor'!$C$7:$C$210,0)),\"\")","v":""},{"$f":"IFERROR(IF(INDEX('Coverage Indicator_Import-Expor'!K$7:K$210,MATCH($B82,'Coverage Indicator_Import-Expor'!$C$7:$C$210,0))=\"\",\"\",INDEX('Coverage Indicator_Import-Expor'!K$7:K$210,MATCH($B82,'Coverage Indicator_Import-Expor'!$C$7:$C$210,0))),\"\")","v":""},{"$f":"IFERROR(IF(INDEX('Coverage Indicator_Import-Expor'!L$7:L$210,MATCH($B82,'Coverage Indicator_Import-Expor'!$C$7:$C$210,0))=\"\",\"\",INDEX('Coverage Indicator_Import-Expor'!L$7:L$210,MATCH($B82,'Coverage Indicator_Import-Expor'!$C$7:$C$210,0))),\"\")","v":""},{"$f":"IFERROR(IF(INDEX('Coverage Indicator_Import-Expor'!AR$7:AR$210,MATCH($B82,'Coverage Indicator_Import-Expor'!$C$7:$C$210,0))=\"\",\"\",INDEX('Coverage Indicator_Import-Expor'!AR$7:AR$210,MATCH($B82,'Coverage Indicator_Import-Expor'!$C$7:$C$210,0))),\"\")","v":""},{"$f":"IFERROR(IF(INDEX('Coverage Indicator_Import-Expor'!AS$7:AS$210,MATCH($B82,'Coverage Indicator_Import-Expor'!$C$7:$C$210,0))=\"\",\"\",INDEX('Coverage Indicator_Import-Expor'!AS$7:AS$210,MATCH($B82,'Coverage Indicator_Import-Expor'!$C$7:$C$210,0))),\"\")","v":""},{"$f":"IFERROR(IF(INDEX('Coverage Indicator_Import-Expor'!N$7:N$210,MATCH($B82,'Coverage Indicator_Import-Expor'!$C$7:$C$210,0))=\"\",\"\",INDEX('Coverage Indicator_Import-Expor'!N$7:N$210,MATCH($B82,'Coverage Indicator_Import-Expor'!$C$7:$C$210,0))),\"\")","v":""},{"$f":"IFERROR(IF(INDEX('Coverage Indicator_Import-Expor'!O$7:O$210,MATCH($B82,'Coverage Indicator_Import-Expor'!$C$7:$C$210,0))=\"\",\"\",INDEX('Coverage Indicator_Import-Expor'!O$7:O$210,MATCH($B82,'Coverage Indicator_Import-Expor'!$C$7:$C$210,0))),\"\")","v":""},{"$f":"IFERROR(IF(INDEX('Coverage Indicator_Import-Expor'!P$7:P$210,MATCH($B82,'Coverage Indicator_Import-Expor'!$C$7:$C$210,0))=\"\",\"\",INDEX('Coverage Indicator_Import-Expor'!P$7:P$210,MATCH($B82,'Coverage Indicator_Import-Expor'!$C$7:$C$210,0))),\"\")","v":""},{"$f":"IFERROR(IF(INDEX('Coverage Indicator_Import-Expor'!Q$7:Q$210,MATCH($B82,'Coverage Indicator_Import-Expor'!$C$7:$C$210,0))=\"\",\"\",INDEX('Coverage Indicator_Import-Expor'!Q$7:Q$210,MATCH($B82,'Coverage Indicator_Import-Expor'!$C$7:$C$210,0))),\"\")","v":""},{"$f":"IFERROR(IF(INDEX('Coverage Indicator_Import-Expor'!R$7:R$210,MATCH($B82,'Coverage Indicator_Import-Expor'!$C$7:$C$210,0))=\"\",\"\",INDEX('Coverage Indicator_Import-Expor'!R$7:R$210,MATCH($B82,'Coverage Indicator_Import-Expor'!$C$7:$C$210,0))),\"\")","v":""},{"$f":"IFERROR(IF(INDEX('Coverage Indicator_Import-Expor'!S$7:S$210,MATCH($B82,'Coverage Indicator_Import-Expor'!$C$7:$C$210,0))=\"\",\"\",INDEX('Coverage Indicator_Import-Expor'!S$7:S$210,MATCH($B82,'Coverage Indicator_Import-Expor'!$C$7:$C$210,0))),\"\")","v":""},{"$f":"IFERROR(IF(INDEX('Coverage Indicator_Import-Expor'!T$7:T$210,MATCH($B82,'Coverage Indicator_Import-Expor'!$C$7:$C$210,0))=\"\",\"\",INDEX('Coverage Indicator_Import-Expor'!T$7:T$210,MATCH($B82,'Coverage Indicator_Import-Expor'!$C$7:$C$210,0))),\"\")","v":""},{"$f":"IFERROR(IF(INDEX('Coverage Indicator_Import-Expor'!U$7:U$210,MATCH($B82,'Coverage Indicator_Import-Expor'!$C$7:$C$210,0))=\"\",\"\",INDEX('Coverage Indicator_Import-Expor'!U$7:U$210,MATCH($B82,'Coverage Indicator_Import-Expor'!$C$7:$C$210,0))),\"\")","v":""},null,null,"",null," ",null,"No Results Reported",null,null,"",null," ",null,null,"No Results Reported",null,null,""," ",null,"No Results Reported"]
[73,"Coverage73",{"$f":"IFERROR(INDEX('Coverage Indicator_Import-Expor'!$D$7:$D$210,MATCH(B83,'Coverage Indicator_Import-Expor'!$C$7:$C$210,0)),\"\")","v":""},{"$f":"IFERROR(INDEX('Coverage Indicator_Import-Expor'!$E$7:$E$210,MATCH(B83,'Coverage Indicator_Import-Expor'!$C$7:$C$210,0)),\"\")","v":""},{"$f":"IFERROR(IF(INDEX('Coverage Indicator_Import-Expor'!K$7:K$210,MATCH($B83,'Coverage Indicator_Import-Expor'!$C$7:$C$210,0))=\"\",\"\",INDEX('Coverage Indicator_Import-Expor'!K$7:K$210,MATCH($B83,'Coverage Indicator_Import-Expor'!$C$7:$C$210,0))),\"\")","v":""},{"$f":"IFERROR(IF(INDEX('Coverage Indicator_Import-Expor'!L$7:L$210,MATCH($B83,'Coverage Indicator_Import-Expor'!$C$7:$C$210,0))=\"\",\"\",INDEX('Coverage Indicator_Import-Expor'!L$7:L$210,MATCH($B83,'Coverage Indicator_Import-Expor'!$C$7:$C$210,0))),\"\")","v":""},{"$f":"IFERROR(IF(INDEX('Coverage Indicator_Import-Expor'!AR$7:AR$210,MATCH($B83,'Coverage Indicator_Import-Expor'!$C$7:$C$210,0))=\"\",\"\",INDEX('Coverage Indicator_Import-Expor'!AR$7:AR$210,MATCH($B83,'Coverage Indicator_Import-Expor'!$C$7:$C$210,0))),\"\")","v":""},{"$f":"IFERROR(IF(INDEX('Coverage Indicator_Import-Expor'!AS$7:AS$210,MATCH($B83,'Coverage Indicator_Import-Expor'!$C$7:$C$210,0))=\"\",\"\",INDEX('Coverage Indicator_Import-Expor'!AS$7:AS$210,MATCH($B83,'Coverage Indicator_Import-Expor'!$C$7:$C$210,0))),\"\")","v":""},{"$f":"IFERROR(IF(INDEX('Coverage Indicator_Import-Expor'!N$7:N$210,MATCH($B83,'Coverage Indicator_Import-Expor'!$C$7:$C$210,0))=\"\",\"\",INDEX('Coverage Indicator_Import-Expor'!N$7:N$210,MATCH($B83,'Coverage Indicator_Import-Expor'!$C$7:$C$210,0))),\"\")","v":""},{"$f":"IFERROR(IF(INDEX('Coverage Indicator_Import-Expor'!O$7:O$210,MATCH($B83,'Coverage Indicator_Import-Expor'!$C$7:$C$210,0))=\"\",\"\",INDEX('Coverage Indicator_Import-Expor'!O$7:O$210,MATCH($B83,'Coverage Indicator_Import-Expor'!$C$7:$C$210,0))),\"\")","v":""},{"$f":"IFERROR(IF(INDEX('Coverage Indicator_Import-Expor'!P$7:P$210,MATCH($B83,'Coverage Indicator_Import-Expor'!$C$7:$C$210,0))=\"\",\"\",INDEX('Coverage Indicator_Import-Expor'!P$7:P$210,MATCH($B83,'Coverage Indicator_Import-Expor'!$C$7:$C$210,0))),\"\")","v":""},{"$f":"IFERROR(IF(INDEX('Coverage Indicator_Import-Expor'!Q$7:Q$210,MATCH($B83,'Coverage Indicator_Import-Expor'!$C$7:$C$210,0))=\"\",\"\",INDEX('Coverage Indicator_Import-Expor'!Q$7:Q$210,MATCH($B83,'Coverage Indicator_Import-Expor'!$C$7:$C$210,0))),\"\")","v":""},{"$f":"IFERROR(IF(INDEX('Coverage Indicator_Import-Expor'!R$7:R$210,MATCH($B83,'Coverage Indicator_Import-Expor'!$C$7:$C$210,0))=\"\",\"\",INDEX('Coverage Indicator_Import-Expor'!R$7:R$210,MATCH($B83,'Coverage Indicator_Import-Expor'!$C$7:$C$210,0))),\"\")","v":""},{"$f":"IFERROR(IF(INDEX('Coverage Indicator_Import-Expor'!S$7:S$210,MATCH($B83,'Coverage Indicator_Import-Expor'!$C$7:$C$210,0))=\"\",\"\",INDEX('Coverage Indicator_Import-Expor'!S$7:S$210,MATCH($B83,'Coverage Indicator_Import-Expor'!$C$7:$C$210,0))),\"\")","v":""},{"$f":"IFERROR(IF(INDEX('Coverage Indicator_Import-Expor'!T$7:T$210,MATCH($B83,'Coverage Indicator_Import-Expor'!$C$7:$C$210,0))=\"\",\"\",INDEX('Coverage Indicator_Import-Expor'!T$7:T$210,MATCH($B83,'Coverage Indicator_Import-Expor'!$C$7:$C$210,0))),\"\")","v":""},{"$f":"IFERROR(IF(INDEX('Coverage Indicator_Import-Expor'!U$7:U$210,MATCH($B83,'Coverage Indicator_Import-Expor'!$C$7:$C$210,0))=\"\",\"\",INDEX('Coverage Indicator_Import-Expor'!U$7:U$210,MATCH($B83,'Coverage Indicator_Import-Expor'!$C$7:$C$210,0))),\"\")","v":""},null,null,"",null," ",null,"No Results Reported",null,null,"",null," ",null,null,"No Results Reported",null,null,""," ",null,"No Results Reported"]
[74,"Coverage74",{"$f":"IFERROR(INDEX('Coverage Indicator_Import-Expor'!$D$7:$D$210,MATCH(B84,'Coverage Indicator_Import-Expor'!$C$7:$C$210,0)),\"\")","v":""},{"$f":"IFERROR(INDEX('Coverage Indicator_Import-Expor'!$E$7:$E$210,MATCH(B84,'Coverage Indicator_Import-Expor'!$C$7:$C$210,0)),\"\")","v":""},{"$f":"IFERROR(IF(INDEX('Coverage Indicator_Import-Expor'!K$7:K$210,MATCH($B84,'Coverage Indicator_Import-Expor'!$C$7:$C$210,0))=\"\",\"\",INDEX('Coverage Indicator_Import-Expor'!K$7:K$210,MATCH($B84,'Coverage Indicator_Import-Expor'!$C$7:$C$210,0))),\"\")","v":""},{"$f":"IFERROR(IF(INDEX('Coverage Indicator_Import-Expor'!L$7:L$210,MATCH($B84,'Coverage Indicator_Import-Expor'!$C$7:$C$210,0))=\"\",\"\",INDEX('Coverage Indicator_Import-Expor'!L$7:L$210,MATCH($B84,'Coverage Indicator_Import-Expor'!$C$7:$C$210,0))),\"\")","v":""},{"$f":"IFERROR(IF(INDEX('Coverage Indicator_Import-Expor'!AR$7:AR$210,MATCH($B84,'Coverage Indicator_Import-Expor'!$C$7:$C$210,0))=\"\",\"\",INDEX('Coverage Indicator_Import-Expor'!AR$7:AR$210,MATCH($B84,'Coverage Indicator_Import-Expor'!$C$7:$C$210,0))),\"\")","v":""},{"$f":"IFERROR(IF(INDEX('Coverage Indicator_Import-Expor'!AS$7:AS$210,MATCH($B84,'Coverage Indicator_Import-Expor'!$C$7:$C$210,0))=\"\",\"\",INDEX('Coverage Indicator_Import-Expor'!AS$7:AS$210,MATCH($B84,'Coverage Indicator_Import-Expor'!$C$7:$C$210,0))),\"\")","v":""},{"$f":"IFERROR(IF(INDEX('Coverage Indicator_Import-Expor'!N$7:N$210,MATCH($B84,'Coverage Indicator_Import-Expor'!$C$7:$C$210,0))=\"\",\"\",INDEX('Coverage Indicator_Import-Expor'!N$7:N$210,MATCH($B84,'Coverage Indicator_Import-Expor'!$C$7:$C$210,0))),\"\")","v":""},{"$f":"IFERROR(IF(INDEX('Coverage Indicator_Import-Expor'!O$7:O$210,MATCH($B84,'Coverage Indicator_Import-Expor'!$C$7:$C$210,0))=\"\",\"\",INDEX('Coverage Indicator_Import-Expor'!O$7:O$210,MATCH($B84,'Coverage Indicator_Import-Expor'!$C$7:$C$210,0))),\"\")","v":""},{"$f":"IFERROR(IF(INDEX('Coverage Indicator_Import-Expor'!P$7:P$210,MATCH($B84,'Coverage Indicator_Import-Expor'!$C$7:$C$210,0))=\"\",\"\",INDEX('Coverage Indicator_Import-Expor'!P$7:P$210,MATCH($B84,'Coverage Indicator_Import-Expor'!$C$7:$C$210,0))),\"\")","v":""},{"$f":"IFERROR(IF(INDEX('Coverage Indicator_Import-Expor'!Q$7:Q$210,MATCH($B84,'Coverage Indicator_Import-Expor'!$C$7:$C$210,0))=\"\",\"\",INDEX('Coverage Indicator_Import-Expor'!Q$7:Q$210,MATCH($B84,'Coverage Indicator_Import-Expor'!$C$7:$C$210,0))),\"\")","v":""},{"$f":"IFERROR(IF(INDEX('Coverage Indicator_Import-Expor'!R$7:R$210,MATCH($B84,'Coverage Indicator_Import-Expor'!$C$7:$C$210,0))=\"\",\"\",INDEX('Coverage Indicator_Import-Expor'!R$7:R$210,MATCH($B84,'Coverage Indicator_Import-Expor'!$C$7:$C$210,0))),\"\")","v":""},{"$f":"IFERROR(IF(INDEX('Coverage Indicator_Import-Expor'!S$7:S$210,MATCH($B84,'Coverage Indicator_Import-Expor'!$C$7:$C$210,0))=\"\",\"\",INDEX('Coverage Indicator_Import-Expor'!S$7:S$210,MATCH($B84,'Coverage Indicator_Import-Expor'!$C$7:$C$210,0))),\"\")","v":""},{"$f":"IFERROR(IF(INDEX('Coverage Indicator_Import-Expor'!T$7:T$210,MATCH($B84,'Coverage Indicator_Import-Expor'!$C$7:$C$210,0))=\"\",\"\",INDEX('Coverage Indicator_Import-Expor'!T$7:T$210,MATCH($B84,'Coverage Indicator_Import-Expor'!$C$7:$C$210,0))),\"\")","v":""},{"$f":"IFERROR(IF(INDEX('Coverage Indicator_Import-Expor'!U$7:U$210,MATCH($B84,'Coverage Indicator_Import-Expor'!$C$7:$C$210,0))=\"\",\"\",INDEX('Coverage Indicator_Import-Expor'!U$7:U$210,MATCH($B84,'Coverage Indicator_Import-Expor'!$C$7:$C$210,0))),\"\")","v":""},null,null,"",null," ",null,"No Results Reported",null,null,"",null," ",null,null,"No Results Reported",null,null,""," ",null,"No Results Reported"]
[75,"Coverage75",{"$f":"IFERROR(INDEX('Coverage Indicator_Import-Expor'!$D$7:$D$210,MATCH(B85,'Coverage Indicator_Import-Expor'!$C$7:$C$210,0)),\"\")","v":""},{"$f":"IFERROR(INDEX('Coverage Indicator_Import-Expor'!$E$7:$E$210,MATCH(B85,'Coverage Indicator_Import-Expor'!$C$7:$C$210,0)),\"\")","v":""},{"$f":"IFERROR(IF(INDEX('Coverage Indicator_Import-Expor'!K$7:K$210,MATCH($B85,'Coverage Indicator_Import-Expor'!$C$7:$C$210,0))=\"\",\"\",INDEX('Coverage Indicator_Import-Expor'!K$7:K$210,MATCH($B85,'Coverage Indicator_Import-Expor'!$C$7:$C$210,0))),\"\")","v":""},{"$f":"IFERROR(IF(INDEX('Coverage Indicator_Import-Expor'!L$7:L$210,MATCH($B85,'Coverage Indicator_Import-Expor'!$C$7:$C$210,0))=\"\",\"\",INDEX('Coverage Indicator_Import-Expor'!L$7:L$210,MATCH($B85,'Coverage Indicator_Import-Expor'!$C$7:$C$210,0))),\"\")","v":""},{"$f":"IFERROR(IF(INDEX('Coverage Indicator_Import-Expor'!AR$7:AR$210,MATCH($B85,'Coverage Indicator_Import-Expor'!$C$7:$C$210,0))=\"\",\"\",INDEX('Coverage Indicator_Import-Expor'!AR$7:AR$210,MATCH($B85,'Coverage Indicator_Import-Expor'!$C$7:$C$210,0))),\"\")","v":""},{"$f":"IFERROR(IF(INDEX('Coverage Indicator_Import-Expor'!AS$7:AS$210,MATCH($B85,'Coverage Indicator_Import-Expor'!$C$7:$C$210,0))=\"\",\"\",INDEX('Coverage Indicator_Import-Expor'!AS$7:AS$210,MATCH($B85,'Coverage Indicator_Import-Expor'!$C$7:$C$210,0))),\"\")","v":""},{"$f":"IFERROR(IF(INDEX('Coverage Indicator_Import-Expor'!N$7:N$210,MATCH($B85,'Coverage Indicator_Import-Expor'!$C$7:$C$210,0))=\"\",\"\",INDEX('Coverage Indicator_Import-Expor'!N$7:N$210,MATCH($B85,'Coverage Indicator_Import-Expor'!$C$7:$C$210,0))),\"\")","v":""},{"$f":"IFERROR(IF(INDEX('Coverage Indicator_Import-Expor'!O$7:O$210,MATCH($B85,'Coverage Indicator_Import-Expor'!$C$7:$C$210,0))=\"\",\"\",INDEX('Coverage Indicator_Import-Expor'!O$7:O$210,MATCH($B85,'Coverage Indicator_Import-Expor'!$C$7:$C$210,0))),\"\")","v":""},{"$f":"IFERROR(IF(INDEX('Coverage Indicator_Import-Expor'!P$7:P$210,MATCH($B85,'Coverage Indicator_Import-Expor'!$C$7:$C$210,0))=\"\",\"\",INDEX('Coverage Indicator_Import-Expor'!P$7:P$210,MATCH($B85,'Coverage Indicator_Import-Expor'!$C$7:$C$210,0))),\"\")","v":""},{"$f":"IFERROR(IF(INDEX('Coverage Indicator_Import-Expor'!Q$7:Q$210,MATCH($B85,'Coverage Indicator_Import-Expor'!$C$7:$C$210,0))=\"\",\"\",INDEX('Coverage Indicator_Import-Expor'!Q$7:Q$210,MATCH($B85,'Coverage Indicator_Import-Expor'!$C$7:$C$210,0))),\"\")","v":""},{"$f":"IFERROR(IF(INDEX('Coverage Indicator_Import-Expor'!R$7:R$210,MATCH($B85,'Coverage Indicator_Import-Expor'!$C$7:$C$210,0))=\"\",\"\",INDEX('Coverage Indicator_Import-Expor'!R$7:R$210,MATCH($B85,'Coverage Indicator_Import-Expor'!$C$7:$C$210,0))),\"\")","v":""},{"$f":"IFERROR(IF(INDEX('Coverage Indicator_Import-Expor'!S$7:S$210,MATCH($B85,'Coverage Indicator_Import-Expor'!$C$7:$C$210,0))=\"\",\"\",INDEX('Coverage Indicator_Import-Expor'!S$7:S$210,MATCH($B85,'Coverage Indicator_Import-Expor'!$C$7:$C$210,0))),\"\")","v":""},{"$f":"IFERROR(IF(INDEX('Coverage Indicator_Import-Expor'!T$7:T$210,MATCH($B85,'Coverage Indicator_Import-Expor'!$C$7:$C$210,0))=\"\",\"\",INDEX('Coverage Indicator_Import-Expor'!T$7:T$210,MATCH($B85,'Coverage Indicator_Import-Expor'!$C$7:$C$210,0))),\"\")","v":""},{"$f":"IFERROR(IF(INDEX('Coverage Indicator_Import-Expor'!U$7:U$210,MATCH($B85,'Coverage Indicator_Import-Expor'!$C$7:$C$210,0))=\"\",\"\",INDEX('Coverage Indicator_Import-Expor'!U$7:U$210,MATCH($B85,'Coverage Indicator_Import-Expor'!$C$7:$C$210,0))),\"\")","v":""},null,null,"",null," ",null,"No Results Reported",null,null,"",null," ",null,null,"No Results Reported",null,null,""," ",null,"No Results Reported"]
[76,"Coverage76",{"$f":"IFERROR(INDEX('Coverage Indicator_Import-Expor'!$D$7:$D$210,MATCH(B86,'Coverage Indicator_Import-Expor'!$C$7:$C$210,0)),\"\")","v":""},{"$f":"IFERROR(INDEX('Coverage Indicator_Import-Expor'!$E$7:$E$210,MATCH(B86,'Coverage Indicator_Import-Expor'!$C$7:$C$210,0)),\"\")","v":""},{"$f":"IFERROR(IF(INDEX('Coverage Indicator_Import-Expor'!K$7:K$210,MATCH($B86,'Coverage Indicator_Import-Expor'!$C$7:$C$210,0))=\"\",\"\",INDEX('Coverage Indicator_Import-Expor'!K$7:K$210,MATCH($B86,'Coverage Indicator_Import-Expor'!$C$7:$C$210,0))),\"\")","v":""},{"$f":"IFERROR(IF(INDEX('Coverage Indicator_Import-Expor'!L$7:L$210,MATCH($B86,'Coverage Indicator_Import-Expor'!$C$7:$C$210,0))=\"\",\"\",INDEX('Coverage Indicator_Import-Expor'!L$7:L$210,MATCH($B86,'Coverage Indicator_Import-Expor'!$C$7:$C$210,0))),\"\")","v":""},{"$f":"IFERROR(IF(INDEX('Coverage Indicator_Import-Expor'!AR$7:AR$210,MATCH($B86,'Coverage Indicator_Import-Expor'!$C$7:$C$210,0))=\"\",\"\",INDEX('Coverage Indicator_Import-Expor'!AR$7:AR$210,MATCH($B86,'Coverage Indicator_Import-Expor'!$C$7:$C$210,0))),\"\")","v":""},{"$f":"IFERROR(IF(INDEX('Coverage Indicator_Import-Expor'!AS$7:AS$210,MATCH($B86,'Coverage Indicator_Import-Expor'!$C$7:$C$210,0))=\"\",\"\",INDEX('Coverage Indicator_Import-Expor'!AS$7:AS$210,MATCH($B86,'Coverage Indicator_Import-Expor'!$C$7:$C$210,0))),\"\")","v":""},{"$f":"IFERROR(IF(INDEX('Coverage Indicator_Import-Expor'!N$7:N$210,MATCH($B86,'Coverage Indicator_Import-Expor'!$C$7:$C$210,0))=\"\",\"\",INDEX('Coverage Indicator_Import-Expor'!N$7:N$210,MATCH($B86,'Coverage Indicator_Import-Expor'!$C$7:$C$210,0))),\"\")","v":""},{"$f":"IFERROR(IF(INDEX('Coverage Indicator_Import-Expor'!O$7:O$210,MATCH($B86,'Coverage Indicator_Import-Expor'!$C$7:$C$210,0))=\"\",\"\",INDEX('Coverage Indicator_Import-Expor'!O$7:O$210,MATCH($B86,'Coverage Indicator_Import-Expor'!$C$7:$C$210,0))),\"\")","v":""},{"$f":"IFERROR(IF(INDEX('Coverage Indicator_Import-Expor'!P$7:P$210,MATCH($B86,'Coverage Indicator_Import-Expor'!$C$7:$C$210,0))=\"\",\"\",INDEX('Coverage Indicator_Import-Expor'!P$7:P$210,MATCH($B86,'Coverage Indicator_Import-Expor'!$C$7:$C$210,0))),\"\")","v":""},{"$f":"IFERROR(IF(INDEX('Coverage Indicator_Import-Expor'!Q$7:Q$210,MATCH($B86,'Coverage Indicator_Import-Expor'!$C$7:$C$210,0))=\"\",\"\",INDEX('Coverage Indicator_Import-Expor'!Q$7:Q$210,MATCH($B86,'Coverage Indicator_Import-Expor'!$C$7:$C$210,0))),\"\")","v":""},{"$f":"IFERROR(IF(INDEX('Coverage Indicator_Import-Expor'!R$7:R$210,MATCH($B86,'Coverage Indicator_Import-Expor'!$C$7:$C$210,0))=\"\",\"\",INDEX('Coverage Indicator_Import-Expor'!R$7:R$210,MATCH($B86,'Coverage Indicator_Import-Expor'!$C$7:$C$210,0))),\"\")","v":""},{"$f":"IFERROR(IF(INDEX('Coverage Indicator_Import-Expor'!S$7:S$210,MATCH($B86,'Coverage Indicator_Import-Expor'!$C$7:$C$210,0))=\"\",\"\",INDEX('Coverage Indicator_Import-Expor'!S$7:S$210,MATCH($B86,'Coverage Indicator_Import-Expor'!$C$7:$C$210,0))),\"\")","v":""},{"$f":"IFERROR(IF(INDEX('Coverage Indicator_Import-Expor'!T$7:T$210,MATCH($B86,'Coverage Indicator_Import-Expor'!$C$7:$C$210,0))=\"\",\"\",INDEX('Coverage Indicator_Import-Expor'!T$7:T$210,MATCH($B86,'Coverage Indicator_Import-Expor'!$C$7:$C$210,0))),\"\")","v":""},{"$f":"IFERROR(IF(INDEX('Coverage Indicator_Import-Expor'!U$7:U$210,MATCH($B86,'Coverage Indicator_Import-Expor'!$C$7:$C$210,0))=\"\",\"\",INDEX('Coverage Indicator_Import-Expor'!U$7:U$210,MATCH($B86,'Coverage Indicator_Import-Expor'!$C$7:$C$210,0))),\"\")","v":""},null,null,"",null," ",null,"No Results Reported",null,null,"",null," ",null,null,"No Results Reported",null,null,""," ",null,"No Results Reported"]
[77,"Coverage77",{"$f":"IFERROR(INDEX('Coverage Indicator_Import-Expor'!$D$7:$D$210,MATCH(B87,'Coverage Indicator_Import-Expor'!$C$7:$C$210,0)),\"\")","v":""},{"$f":"IFERROR(INDEX('Coverage Indicator_Import-Expor'!$E$7:$E$210,MATCH(B87,'Coverage Indicator_Import-Expor'!$C$7:$C$210,0)),\"\")","v":""},{"$f":"IFERROR(IF(INDEX('Coverage Indicator_Import-Expor'!K$7:K$210,MATCH($B87,'Coverage Indicator_Import-Expor'!$C$7:$C$210,0))=\"\",\"\",INDEX('Coverage Indicator_Import-Expor'!K$7:K$210,MATCH($B87,'Coverage Indicator_Import-Expor'!$C$7:$C$210,0))),\"\")","v":""},{"$f":"IFERROR(IF(INDEX('Coverage Indicator_Import-Expor'!L$7:L$210,MATCH($B87,'Coverage Indicator_Import-Expor'!$C$7:$C$210,0))=\"\",\"\",INDEX('Coverage Indicator_Import-Expor'!L$7:L$210,MATCH($B87,'Coverage Indicator_Import-Expor'!$C$7:$C$210,0))),\"\")","v":""},{"$f":"IFERROR(IF(INDEX('Coverage Indicator_Import-Expor'!AR$7:AR$210,MATCH($B87,'Coverage Indicator_Import-Expor'!$C$7:$C$210,0))=\"\",\"\",INDEX('Coverage Indicator_Import-Expor'!AR$7:AR$210,MATCH($B87,'Coverage Indicator_Import-Expor'!$C$7:$C$210,0))),\"\")","v":""},{"$f":"IFERROR(IF(INDEX('Coverage Indicator_Import-Expor'!AS$7:AS$210,MATCH($B87,'Coverage Indicator_Import-Expor'!$C$7:$C$210,0))=\"\",\"\",INDEX('Coverage Indicator_Import-Expor'!AS$7:AS$210,MATCH($B87,'Coverage Indicator_Import-Expor'!$C$7:$C$210,0))),\"\")","v":""},{"$f":"IFERROR(IF(INDEX('Coverage Indicator_Import-Expor'!N$7:N$210,MATCH($B87,'Coverage Indicator_Import-Expor'!$C$7:$C$210,0))=\"\",\"\",INDEX('Coverage Indicator_Import-Expor'!N$7:N$210,MATCH($B87,'Coverage Indicator_Import-Expor'!$C$7:$C$210,0))),\"\")","v":""},{"$f":"IFERROR(IF(INDEX('Coverage Indicator_Import-Expor'!O$7:O$210,MATCH($B87,'Coverage Indicator_Import-Expor'!$C$7:$C$210,0))=\"\",\"\",INDEX('Coverage Indicator_Import-Expor'!O$7:O$210,MATCH($B87,'Coverage Indicator_Import-Expor'!$C$7:$C$210,0))),\"\")","v":""},{"$f":"IFERROR(IF(INDEX('Coverage Indicator_Import-Expor'!P$7:P$210,MATCH($B87,'Coverage Indicator_Import-Expor'!$C$7:$C$210,0))=\"\",\"\",INDEX('Coverage Indicator_Import-Expor'!P$7:P$210,MATCH($B87,'Coverage Indicator_Import-Expor'!$C$7:$C$210,0))),\"\")","v":""},{"$f":"IFERROR(IF(INDEX('Coverage Indicator_Import-Expor'!Q$7:Q$210,MATCH($B87,'Coverage Indicator_Import-Expor'!$C$7:$C$210,0))=\"\",\"\",INDEX('Coverage Indicator_Import-Expor'!Q$7:Q$210,MATCH($B87,'Coverage Indicator_Import-Expor'!$C$7:$C$210,0))),\"\")","v":""},{"$f":"IFERROR(IF(INDEX('Coverage Indicator_Import-Expor'!R$7:R$210,MATCH($B87,'Coverage Indicator_Import-Expor'!$C$7:$C$210,0))=\"\",\"\",INDEX('Coverage Indicator_Import-Expor'!R$7:R$210,MATCH($B87,'Coverage Indicator_Import-Expor'!$C$7:$C$210,0))),\"\")","v":""},{"$f":"IFERROR(IF(INDEX('Coverage Indicator_Import-Expor'!S$7:S$210,MATCH($B87,'Coverage Indicator_Import-Expor'!$C$7:$C$210,0))=\"\",\"\",INDEX('Coverage Indicator_Import-Expor'!S$7:S$210,MATCH($B87,'Coverage Indicator_Import-Expor'!$C$7:$C$210,0))),\"\")","v":""},{"$f":"IFERROR(IF(INDEX('Coverage Indicator_Import-Expor'!T$7:T$210,MATCH($B87,'Coverage Indicator_Import-Expor'!$C$7:$C$210,0))=\"\",\"\",INDEX('Coverage Indicator_Import-Expor'!T$7:T$210,MATCH($B87,'Coverage Indicator_Import-Expor'!$C$7:$C$210,0))),\"\")","v":""},{"$f":"IFERROR(IF(INDEX('Coverage Indicator_Import-Expor'!U$7:U$210,MATCH($B87,'Coverage Indicator_Import-Expor'!$C$7:$C$210,0))=\"\",\"\",INDEX('Coverage Indicator_Import-Expor'!U$7:U$210,MATCH($B87,'Coverage Indicator_Import-Expor'!$C$7:$C$210,0))),\"\")","v":""},null,null,"",null," ",null,"No Results Reported",null,null,"",null," ",null,null,"No Results Reported",null,null,""," ",null,"No Results Reported"]
[78,"Coverage78",{"$f":"IFERROR(INDEX('Coverage Indicator_Import-Expor'!$D$7:$D$210,MATCH(B88,'Coverage Indicator_Import-Expor'!$C$7:$C$210,0)),\"\")","v":""},{"$f":"IFERROR(INDEX('Coverage Indicator_Import-Expor'!$E$7:$E$210,MATCH(B88,'Coverage Indicator_Import-Expor'!$C$7:$C$210,0)),\"\")","v":""},{"$f":"IFERROR(IF(INDEX('Coverage Indicator_Import-Expor'!K$7:K$210,MATCH($B88,'Coverage Indicator_Import-Expor'!$C$7:$C$210,0))=\"\",\"\",INDEX('Coverage Indicator_Import-Expor'!K$7:K$210,MATCH($B88,'Coverage Indicator_Import-Expor'!$C$7:$C$210,0))),\"\")","v":""},{"$f":"IFERROR(IF(INDEX('Coverage Indicator_Import-Expor'!L$7:L$210,MATCH($B88,'Coverage Indicator_Import-Expor'!$C$7:$C$210,0))=\"\",\"\",INDEX('Coverage Indicator_Import-Expor'!L$7:L$210,MATCH($B88,'Coverage Indicator_Import-Expor'!$C$7:$C$210,0))),\"\")","v":""},{"$f":"IFERROR(IF(INDEX('Coverage Indicator_Import-Expor'!AR$7:AR$210,MATCH($B88,'Coverage Indicator_Import-Expor'!$C$7:$C$210,0))=\"\",\"\",INDEX('Coverage Indicator_Import-Expor'!AR$7:AR$210,MATCH($B88,'Coverage Indicator_Import-Expor'!$C$7:$C$210,0))),\"\")","v":""},{"$f":"IFERROR(IF(INDEX('Coverage Indicator_Import-Expor'!AS$7:AS$210,MATCH($B88,'Coverage Indicator_Import-Expor'!$C$7:$C$210,0))=\"\",\"\",INDEX('Coverage Indicator_Import-Expor'!AS$7:AS$210,MATCH($B88,'Coverage Indicator_Import-Expor'!$C$7:$C$210,0))),\"\")","v":""},{"$f":"IFERROR(IF(INDEX('Coverage Indicator_Import-Expor'!N$7:N$210,MATCH($B88,'Coverage Indicator_Import-Expor'!$C$7:$C$210,0))=\"\",\"\",INDEX('Coverage Indicator_Import-Expor'!N$7:N$210,MATCH($B88,'Coverage Indicator_Import-Expor'!$C$7:$C$210,0))),\"\")","v":""},{"$f":"IFERROR(IF(INDEX('Coverage Indicator_Import-Expor'!O$7:O$210,MATCH($B88,'Coverage Indicator_Import-Expor'!$C$7:$C$210,0))=\"\",\"\",INDEX('Coverage Indicator_Import-Expor'!O$7:O$210,MATCH($B88,'Coverage Indicator_Import-Expor'!$C$7:$C$210,0))),\"\")","v":""},{"$f":"IFERROR(IF(INDEX('Coverage Indicator_Import-Expor'!P$7:P$210,MATCH($B88,'Coverage Indicator_Import-Expor'!$C$7:$C$210,0))=\"\",\"\",INDEX('Coverage Indicator_Import-Expor'!P$7:P$210,MATCH($B88,'Coverage Indicator_Import-Expor'!$C$7:$C$210,0))),\"\")","v":""},{"$f":"IFERROR(IF(INDEX('Coverage Indicator_Import-Expor'!Q$7:Q$210,MATCH($B88,'Coverage Indicator_Import-Expor'!$C$7:$C$210,0))=\"\",\"\",INDEX('Coverage Indicator_Import-Expor'!Q$7:Q$210,MATCH($B88,'Coverage Indicator_Import-Expor'!$C$7:$C$210,0))),\"\")","v":""},{"$f":"IFERROR(IF(INDEX('Coverage Indicator_Import-Expor'!R$7:R$210,MATCH($B88,'Coverage Indicator_Import-Expor'!$C$7:$C$210,0))=\"\",\"\",INDEX('Coverage Indicator_Import-Expor'!R$7:R$210,MATCH($B88,'Coverage Indicator_Import-Expor'!$C$7:$C$210,0))),\"\")","v":""},{"$f":"IFERROR(IF(INDEX('Coverage Indicator_Import-Expor'!S$7:S$210,MATCH($B88,'Coverage Indicator_Import-Expor'!$C$7:$C$210,0))=\"\",\"\",INDEX('Coverage Indicator_Import-Expor'!S$7:S$210,MATCH($B88,'Coverage Indicator_Import-Expor'!$C$7:$C$210,0))),\"\")","v":""},{"$f":"IFERROR(IF(INDEX('Coverage Indicator_Import-Expor'!T$7:T$210,MATCH($B88,'Coverage Indicator_Import-Expor'!$C$7:$C$210,0))=\"\",\"\",INDEX('Coverage Indicator_Import-Expor'!T$7:T$210,MATCH($B88,'Coverage Indicator_Import-Expor'!$C$7:$C$210,0))),\"\")","v":""},{"$f":"IFERROR(IF(INDEX('Coverage Indicator_Import-Expor'!U$7:U$210,MATCH($B88,'Coverage Indicator_Import-Expor'!$C$7:$C$210,0))=\"\",\"\",INDEX('Coverage Indicator_Import-Expor'!U$7:U$210,MATCH($B88,'Coverage Indicator_Import-Expor'!$C$7:$C$210,0))),\"\")","v":""},null,null,"",null," ",null,"No Results Reported",null,null,"",null," ",null,null,"No Results Reported",null,null,""," ",null,"No Results Reported"]
[79,"Coverage79",{"$f":"IFERROR(INDEX('Coverage Indicator_Import-Expor'!$D$7:$D$210,MATCH(B89,'Coverage Indicator_Import-Expor'!$C$7:$C$210,0)),\"\")","v":""},{"$f":"IFERROR(INDEX('Coverage Indicator_Import-Expor'!$E$7:$E$210,MATCH(B89,'Coverage Indicator_Import-Expor'!$C$7:$C$210,0)),\"\")","v":""},{"$f":"IFERROR(IF(INDEX('Coverage Indicator_Import-Expor'!K$7:K$210,MATCH($B89,'Coverage Indicator_Import-Expor'!$C$7:$C$210,0))=\"\",\"\",INDEX('Coverage Indicator_Import-Expor'!K$7:K$210,MATCH($B89,'Coverage Indicator_Import-Expor'!$C$7:$C$210,0))),\"\")","v":""},{"$f":"IFERROR(IF(INDEX('Coverage Indicator_Import-Expor'!L$7:L$210,MATCH($B89,'Coverage Indicator_Import-Expor'!$C$7:$C$210,0))=\"\",\"\",INDEX('Coverage Indicator_Import-Expor'!L$7:L$210,MATCH($B89,'Coverage Indicator_Import-Expor'!$C$7:$C$210,0))),\"\")","v":""},{"$f":"IFERROR(IF(INDEX('Coverage Indicator_Import-Expor'!AR$7:AR$210,MATCH($B89,'Coverage Indicator_Import-Expor'!$C$7:$C$210,0))=\"\",\"\",INDEX('Coverage Indicator_Import-Expor'!AR$7:AR$210,MATCH($B89,'Coverage Indicator_Import-Expor'!$C$7:$C$210,0))),\"\")","v":""},{"$f":"IFERROR(IF(INDEX('Coverage Indicator_Import-Expor'!AS$7:AS$210,MATCH($B89,'Coverage Indicator_Import-Expor'!$C$7:$C$210,0))=\"\",\"\",INDEX('Coverage Indicator_Import-Expor'!AS$7:AS$210,MATCH($B89,'Coverage Indicator_Import-Expor'!$C$7:$C$210,0))),\"\")","v":""},{"$f":"IFERROR(IF(INDEX('Coverage Indicator_Import-Expor'!N$7:N$210,MATCH($B89,'Coverage Indicator_Import-Expor'!$C$7:$C$210,0))=\"\",\"\",INDEX('Coverage Indicator_Import-Expor'!N$7:N$210,MATCH($B89,'Coverage Indicator_Import-Expor'!$C$7:$C$210,0))),\"\")","v":""},{"$f":"IFERROR(IF(INDEX('Coverage Indicator_Import-Expor'!O$7:O$210,MATCH($B89,'Coverage Indicator_Import-Expor'!$C$7:$C$210,0))=\"\",\"\",INDEX('Coverage Indicator_Import-Expor'!O$7:O$210,MATCH($B89,'Coverage Indicator_Import-Expor'!$C$7:$C$210,0))),\"\")","v":""},{"$f":"IFERROR(IF(INDEX('Coverage Indicator_Import-Expor'!P$7:P$210,MATCH($B89,'Coverage Indicator_Import-Expor'!$C$7:$C$210,0))=\"\",\"\",INDEX('Coverage Indicator_Import-Expor'!P$7:P$210,MATCH($B89,'Coverage Indicator_Import-Expor'!$C$7:$C$210,0))),\"\")","v":""},{"$f":"IFERROR(IF(INDEX('Coverage Indicator_Import-Expor'!Q$7:Q$210,MATCH($B89,'Coverage Indicator_Import-Expor'!$C$7:$C$210,0))=\"\",\"\",INDEX('Coverage Indicator_Import-Expor'!Q$7:Q$210,MATCH($B89,'Coverage Indicator_Import-Expor'!$C$7:$C$210,0))),\"\")","v":""},{"$f":"IFERROR(IF(INDEX('Coverage Indicator_Import-Expor'!R$7:R$210,MATCH($B89,'Coverage Indicator_Import-Expor'!$C$7:$C$210,0))=\"\",\"\",INDEX('Coverage Indicator_Import-Expor'!R$7:R$210,MATCH($B89,'Coverage Indicator_Import-Expor'!$C$7:$C$210,0))),\"\")","v":""},{"$f":"IFERROR(IF(INDEX('Coverage Indicator_Import-Expor'!S$7:S$210,MATCH($B89,'Coverage Indicator_Import-Expor'!$C$7:$C$210,0))=\"\",\"\",INDEX('Coverage Indicator_Import-Expor'!S$7:S$210,MATCH($B89,'Coverage Indicator_Import-Expor'!$C$7:$C$210,0))),\"\")","v":""},{"$f":"IFERROR(IF(INDEX('Coverage Indicator_Import-Expor'!T$7:T$210,MATCH($B89,'Coverage Indicator_Import-Expor'!$C$7:$C$210,0))=\"\",\"\",INDEX('Coverage Indicator_Import-Expor'!T$7:T$210,MATCH($B89,'Coverage Indicator_Import-Expor'!$C$7:$C$210,0))),\"\")","v":""},{"$f":"IFERROR(IF(INDEX('Coverage Indicator_Import-Expor'!U$7:U$210,MATCH($B89,'Coverage Indicator_Import-Expor'!$C$7:$C$210,0))=\"\",\"\",INDEX('Coverage Indicator_Import-Expor'!U$7:U$210,MATCH($B89,'Coverage Indicator_Import-Expor'!$C$7:$C$210,0))),\"\")","v":""},null,null,"",null," ",null,"No Results Reported",null,null,"",null," ",null,null,"No Results Reported",null,null,""," ",null,"No Results Reported"]
[80,"Coverage80",{"$f":"IFERROR(INDEX('Coverage Indicator_Import-Expor'!$D$7:$D$210,MATCH(B90,'Coverage Indicator_Import-Expor'!$C$7:$C$210,0)),\"\")","v":""},{"$f":"IFERROR(INDEX('Coverage Indicator_Import-Expor'!$E$7:$E$210,MATCH(B90,'Coverage Indicator_Import-Expor'!$C$7:$C$210,0)),\"\")","v":""},{"$f":"IFERROR(IF(INDEX('Coverage Indicator_Import-Expor'!K$7:K$210,MATCH($B90,'Coverage Indicator_Import-Expor'!$C$7:$C$210,0))=\"\",\"\",INDEX('Coverage Indicator_Import-Expor'!K$7:K$210,MATCH($B90,'Coverage Indicator_Import-Expor'!$C$7:$C$210,0))),\"\")","v":""},{"$f":"IFERROR(IF(INDEX('Coverage Indicator_Import-Expor'!L$7:L$210,MATCH($B90,'Coverage Indicator_Import-Expor'!$C$7:$C$210,0))=\"\",\"\",INDEX('Coverage Indicator_Import-Expor'!L$7:L$210,MATCH($B90,'Coverage Indicator_Import-Expor'!$C$7:$C$210,0))),\"\")","v":""},{"$f":"IFERROR(IF(INDEX('Coverage Indicator_Import-Expor'!AR$7:AR$210,MATCH($B90,'Coverage Indicator_Import-Expor'!$C$7:$C$210,0))=\"\",\"\",INDEX('Coverage Indicator_Import-Expor'!AR$7:AR$210,MATCH($B90,'Coverage Indicator_Import-Expor'!$C$7:$C$210,0))),\"\")","v":""},{"$f":"IFERROR(IF(INDEX('Coverage Indicator_Import-Expor'!AS$7:AS$210,MATCH($B90,'Coverage Indicator_Import-Expor'!$C$7:$C$210,0))=\"\",\"\",INDEX('Coverage Indicator_Import-Expor'!AS$7:AS$210,MATCH($B90,'Coverage Indicator_Import-Expor'!$C$7:$C$210,0))),\"\")","v":""},{"$f":"IFERROR(IF(INDEX('Coverage Indicator_Import-Expor'!N$7:N$210,MATCH($B90,'Coverage Indicator_Import-Expor'!$C$7:$C$210,0))=\"\",\"\",INDEX('Coverage Indicator_Import-Expor'!N$7:N$210,MATCH($B90,'Coverage Indicator_Import-Expor'!$C$7:$C$210,0))),\"\")","v":""},{"$f":"IFERROR(IF(INDEX('Coverage Indicator_Import-Expor'!O$7:O$210,MATCH($B90,'Coverage Indicator_Import-Expor'!$C$7:$C$210,0))=\"\",\"\",INDEX('Coverage Indicator_Import-Expor'!O$7:O$210,MATCH($B90,'Coverage Indicator_Import-Expor'!$C$7:$C$210,0))),\"\")","v":""},{"$f":"IFERROR(IF(INDEX('Coverage Indicator_Import-Expor'!P$7:P$210,MATCH($B90,'Coverage Indicator_Import-Expor'!$C$7:$C$210,0))=\"\",\"\",INDEX('Coverage Indicator_Import-Expor'!P$7:P$210,MATCH($B90,'Coverage Indicator_Import-Expor'!$C$7:$C$210,0))),\"\")","v":""},{"$f":"IFERROR(IF(INDEX('Coverage Indicator_Import-Expor'!Q$7:Q$210,MATCH($B90,'Coverage Indicator_Import-Expor'!$C$7:$C$210,0))=\"\",\"\",INDEX('Coverage Indicator_Import-Expor'!Q$7:Q$210,MATCH($B90,'Coverage Indicator_Import-Expor'!$C$7:$C$210,0))),\"\")","v":""},{"$f":"IFERROR(IF(INDEX('Coverage Indicator_Import-Expor'!R$7:R$210,MATCH($B90,'Coverage Indicator_Import-Expor'!$C$7:$C$210,0))=\"\",\"\",INDEX('Coverage Indicator_Import-Expor'!R$7:R$210,MATCH($B90,'Coverage Indicator_Import-Expor'!$C$7:$C$210,0))),\"\")","v":""},{"$f":"IFERROR(IF(INDEX('Coverage Indicator_Import-Expor'!S$7:S$210,MATCH($B90,'Coverage Indicator_Import-Expor'!$C$7:$C$210,0))=\"\",\"\",INDEX('Coverage Indicator_Import-Expor'!S$7:S$210,MATCH($B90,'Coverage Indicator_Import-Expor'!$C$7:$C$210,0))),\"\")","v":""},{"$f":"IFERROR(IF(INDEX('Coverage Indicator_Import-Expor'!T$7:T$210,MATCH($B90,'Coverage Indicator_Import-Expor'!$C$7:$C$210,0))=\"\",\"\",INDEX('Coverage Indicator_Import-Expor'!T$7:T$210,MATCH($B90,'Coverage Indicator_Import-Expor'!$C$7:$C$210,0))),\"\")","v":""},{"$f":"IFERROR(IF(INDEX('Coverage Indicator_Import-Expor'!U$7:U$210,MATCH($B90,'Coverage Indicator_Import-Expor'!$C$7:$C$210,0))=\"\",\"\",INDEX('Coverage Indicator_Import-Expor'!U$7:U$210,MATCH($B90,'Coverage Indicator_Import-Expor'!$C$7:$C$210,0))),\"\")","v":""},null,null,"",null," ",null,"No Results Reported",null,null,"",null," ",null,null,"No Results Reported",null,null,""," ",null,"No Results Reported"]
[81,"Coverage81",{"$f":"IFERROR(INDEX('Coverage Indicator_Import-Expor'!$D$7:$D$210,MATCH(B91,'Coverage Indicator_Import-Expor'!$C$7:$C$210,0)),\"\")","v":""},{"$f":"IFERROR(INDEX('Coverage Indicator_Import-Expor'!$E$7:$E$210,MATCH(B91,'Coverage Indicator_Import-Expor'!$C$7:$C$210,0)),\"\")","v":""},{"$f":"IFERROR(IF(INDEX('Coverage Indicator_Import-Expor'!K$7:K$210,MATCH($B91,'Coverage Indicator_Import-Expor'!$C$7:$C$210,0))=\"\",\"\",INDEX('Coverage Indicator_Import-Expor'!K$7:K$210,MATCH($B91,'Coverage Indicator_Import-Expor'!$C$7:$C$210,0))),\"\")","v":""},{"$f":"IFERROR(IF(INDEX('Coverage Indicator_Import-Expor'!L$7:L$210,MATCH($B91,'Coverage Indicator_Import-Expor'!$C$7:$C$210,0))=\"\",\"\",INDEX('Coverage Indicator_Import-Expor'!L$7:L$210,MATCH($B91,'Coverage Indicator_Import-Expor'!$C$7:$C$210,0))),\"\")","v":""},{"$f":"IFERROR(IF(INDEX('Coverage Indicator_Import-Expor'!AR$7:AR$210,MATCH($B91,'Coverage Indicator_Import-Expor'!$C$7:$C$210,0))=\"\",\"\",INDEX('Coverage Indicator_Import-Expor'!AR$7:AR$210,MATCH($B91,'Coverage Indicator_Import-Expor'!$C$7:$C$210,0))),\"\")","v":""},{"$f":"IFERROR(IF(INDEX('Coverage Indicator_Import-Expor'!AS$7:AS$210,MATCH($B91,'Coverage Indicator_Import-Expor'!$C$7:$C$210,0))=\"\",\"\",INDEX('Coverage Indicator_Import-Expor'!AS$7:AS$210,MATCH($B91,'Coverage Indicator_Import-Expor'!$C$7:$C$210,0))),\"\")","v":""},{"$f":"IFERROR(IF(INDEX('Coverage Indicator_Import-Expor'!N$7:N$210,MATCH($B91,'Coverage Indicator_Import-Expor'!$C$7:$C$210,0))=\"\",\"\",INDEX('Coverage Indicator_Import-Expor'!N$7:N$210,MATCH($B91,'Coverage Indicator_Import-Expor'!$C$7:$C$210,0))),\"\")","v":""},{"$f":"IFERROR(IF(INDEX('Coverage Indicator_Import-Expor'!O$7:O$210,MATCH($B91,'Coverage Indicator_Import-Expor'!$C$7:$C$210,0))=\"\",\"\",INDEX('Coverage Indicator_Import-Expor'!O$7:O$210,MATCH($B91,'Coverage Indicator_Import-Expor'!$C$7:$C$210,0))),\"\")","v":""},{"$f":"IFERROR(IF(INDEX('Coverage Indicator_Import-Expor'!P$7:P$210,MATCH($B91,'Coverage Indicator_Import-Expor'!$C$7:$C$210,0))=\"\",\"\",INDEX('Coverage Indicator_Import-Expor'!P$7:P$210,MATCH($B91,'Coverage Indicator_Import-Expor'!$C$7:$C$210,0))),\"\")","v":""},{"$f":"IFERROR(IF(INDEX('Coverage Indicator_Import-Expor'!Q$7:Q$210,MATCH($B91,'Coverage Indicator_Import-Expor'!$C$7:$C$210,0))=\"\",\"\",INDEX('Coverage Indicator_Import-Expor'!Q$7:Q$210,MATCH($B91,'Coverage Indicator_Import-Expor'!$C$7:$C$210,0))),\"\")","v":""},{"$f":"IFERROR(IF(INDEX('Coverage Indicator_Import-Expor'!R$7:R$210,MATCH($B91,'Coverage Indicator_Import-Expor'!$C$7:$C$210,0))=\"\",\"\",INDEX('Coverage Indicator_Import-Expor'!R$7:R$210,MATCH($B91,'Coverage Indicator_Import-Expor'!$C$7:$C$210,0))),\"\")","v":""},{"$f":"IFERROR(IF(INDEX('Coverage Indicator_Import-Expor'!S$7:S$210,MATCH($B91,'Coverage Indicator_Import-Expor'!$C$7:$C$210,0))=\"\",\"\",INDEX('Coverage Indicator_Import-Expor'!S$7:S$210,MATCH($B91,'Coverage Indicator_Import-Expor'!$C$7:$C$210,0))),\"\")","v":""},{"$f":"IFERROR(IF(INDEX('Coverage Indicator_Import-Expor'!T$7:T$210,MATCH($B91,'Coverage Indicator_Import-Expor'!$C$7:$C$210,0))=\"\",\"\",INDEX('Coverage Indicator_Import-Expor'!T$7:T$210,MATCH($B91,'Coverage Indicator_Import-Expor'!$C$7:$C$210,0))),\"\")","v":""},{"$f":"IFERROR(IF(INDEX('Coverage Indicator_Import-Expor'!U$7:U$210,MATCH($B91,'Coverage Indicator_Import-Expor'!$C$7:$C$210,0))=\"\",\"\",INDEX('Coverage Indicator_Import-Expor'!U$7:U$210,MATCH($B91,'Coverage Indicator_Import-Expor'!$C$7:$C$210,0))),\"\")","v":""},null,null,"",null," ",null,"No Results Reported",null,null,"",null," ",null,null,"No Results Reported",null,null,""," ",null,"No Results Reported"]
[82,"Coverage82",{"$f":"IFERROR(INDEX('Coverage Indicator_Import-Expor'!$D$7:$D$210,MATCH(B92,'Coverage Indicator_Import-Expor'!$C$7:$C$210,0)),\"\")","v":""},{"$f":"IFERROR(INDEX('Coverage Indicator_Import-Expor'!$E$7:$E$210,MATCH(B92,'Coverage Indicator_Import-Expor'!$C$7:$C$210,0)),\"\")","v":""},{"$f":"IFERROR(IF(INDEX('Coverage Indicator_Import-Expor'!K$7:K$210,MATCH($B92,'Coverage Indicator_Import-Expor'!$C$7:$C$210,0))=\"\",\"\",INDEX('Coverage Indicator_Import-Expor'!K$7:K$210,MATCH($B92,'Coverage Indicator_Import-Expor'!$C$7:$C$210,0))),\"\")","v":""},{"$f":"IFERROR(IF(INDEX('Coverage Indicator_Import-Expor'!L$7:L$210,MATCH($B92,'Coverage Indicator_Import-Expor'!$C$7:$C$210,0))=\"\",\"\",INDEX('Coverage Indicator_Import-Expor'!L$7:L$210,MATCH($B92,'Coverage Indicator_Import-Expor'!$C$7:$C$210,0))),\"\")","v":""},{"$f":"IFERROR(IF(INDEX('Coverage Indicator_Import-Expor'!AR$7:AR$210,MATCH($B92,'Coverage Indicator_Import-Expor'!$C$7:$C$210,0))=\"\",\"\",INDEX('Coverage Indicator_Import-Expor'!AR$7:AR$210,MATCH($B92,'Coverage Indicator_Import-Expor'!$C$7:$C$210,0))),\"\")","v":""},{"$f":"IFERROR(IF(INDEX('Coverage Indicator_Import-Expor'!AS$7:AS$210,MATCH($B92,'Coverage Indicator_Import-Expor'!$C$7:$C$210,0))=\"\",\"\",INDEX('Coverage Indicator_Import-Expor'!AS$7:AS$210,MATCH($B92,'Coverage Indicator_Import-Expor'!$C$7:$C$210,0))),\"\")","v":""},{"$f":"IFERROR(IF(INDEX('Coverage Indicator_Import-Expor'!N$7:N$210,MATCH($B92,'Coverage Indicator_Import-Expor'!$C$7:$C$210,0))=\"\",\"\",INDEX('Coverage Indicator_Import-Expor'!N$7:N$210,MATCH($B92,'Coverage Indicator_Import-Expor'!$C$7:$C$210,0))),\"\")","v":""},{"$f":"IFERROR(IF(INDEX('Coverage Indicator_Import-Expor'!O$7:O$210,MATCH($B92,'Coverage Indicator_Import-Expor'!$C$7:$C$210,0))=\"\",\"\",INDEX('Coverage Indicator_Import-Expor'!O$7:O$210,MATCH($B92,'Coverage Indicator_Import-Expor'!$C$7:$C$210,0))),\"\")","v":""},{"$f":"IFERROR(IF(INDEX('Coverage Indicator_Import-Expor'!P$7:P$210,MATCH($B92,'Coverage Indicator_Import-Expor'!$C$7:$C$210,0))=\"\",\"\",INDEX('Coverage Indicator_Import-Expor'!P$7:P$210,MATCH($B92,'Coverage Indicator_Import-Expor'!$C$7:$C$210,0))),\"\")","v":""},{"$f":"IFERROR(IF(INDEX('Coverage Indicator_Import-Expor'!Q$7:Q$210,MATCH($B92,'Coverage Indicator_Import-Expor'!$C$7:$C$210,0))=\"\",\"\",INDEX('Coverage Indicator_Import-Expor'!Q$7:Q$210,MATCH($B92,'Coverage Indicator_Import-Expor'!$C$7:$C$210,0))),\"\")","v":""},{"$f":"IFERROR(IF(INDEX('Coverage Indicator_Import-Expor'!R$7:R$210,MATCH($B92,'Coverage Indicator_Import-Expor'!$C$7:$C$210,0))=\"\",\"\",INDEX('Coverage Indicator_Import-Expor'!R$7:R$210,MATCH($B92,'Coverage Indicator_Import-Expor'!$C$7:$C$210,0))),\"\")","v":""},{"$f":"IFERROR(IF(INDEX('Coverage Indicator_Import-Expor'!S$7:S$210,MATCH($B92,'Coverage Indicator_Import-Expor'!$C$7:$C$210,0))=\"\",\"\",INDEX('Coverage Indicator_Import-Expor'!S$7:S$210,MATCH($B92,'Coverage Indicator_Import-Expor'!$C$7:$C$210,0))),\"\")","v":""},{"$f":"IFERROR(IF(INDEX('Coverage Indicator_Import-Expor'!T$7:T$210,MATCH($B92,'Coverage Indicator_Import-Expor'!$C$7:$C$210,0))=\"\",\"\",INDEX('Coverage Indicator_Import-Expor'!T$7:T$210,MATCH($B92,'Coverage Indicator_Import-Expor'!$C$7:$C$210,0))),\"\")","v":""},{"$f":"IFERROR(IF(INDEX('Coverage Indicator_Import-Expor'!U$7:U$210,MATCH($B92,'Coverage Indicator_Import-Expor'!$C$7:$C$210,0))=\"\",\"\",INDEX('Coverage Indicator_Import-Expor'!U$7:U$210,MATCH($B92,'Coverage Indicator_Import-Expor'!$C$7:$C$210,0))),\"\")","v":""},null,null,"",null," ",null,"No Results Reported",null,null,"",null," ",null,null,"No Results Reported",null,null,""," ",null,"No Results Reported"]
[83,"Coverage83",{"$f":"IFERROR(INDEX('Coverage Indicator_Import-Expor'!$D$7:$D$210,MATCH(B93,'Coverage Indicator_Import-Expor'!$C$7:$C$210,0)),\"\")","v":""},{"$f":"IFERROR(INDEX('Coverage Indicator_Import-Expor'!$E$7:$E$210,MATCH(B93,'Coverage Indicator_Import-Expor'!$C$7:$C$210,0)),\"\")","v":""},{"$f":"IFERROR(IF(INDEX('Coverage Indicator_Import-Expor'!K$7:K$210,MATCH($B93,'Coverage Indicator_Import-Expor'!$C$7:$C$210,0))=\"\",\"\",INDEX('Coverage Indicator_Import-Expor'!K$7:K$210,MATCH($B93,'Coverage Indicator_Import-Expor'!$C$7:$C$210,0))),\"\")","v":""},{"$f":"IFERROR(IF(INDEX('Coverage Indicator_Import-Expor'!L$7:L$210,MATCH($B93,'Coverage Indicator_Import-Expor'!$C$7:$C$210,0))=\"\",\"\",INDEX('Coverage Indicator_Import-Expor'!L$7:L$210,MATCH($B93,'Coverage Indicator_Import-Expor'!$C$7:$C$210,0))),\"\")","v":""},{"$f":"IFERROR(IF(INDEX('Coverage Indicator_Import-Expor'!AR$7:AR$210,MATCH($B93,'Coverage Indicator_Import-Expor'!$C$7:$C$210,0))=\"\",\"\",INDEX('Coverage Indicator_Import-Expor'!AR$7:AR$210,MATCH($B93,'Coverage Indicator_Import-Expor'!$C$7:$C$210,0))),\"\")","v":""},{"$f":"IFERROR(IF(INDEX('Coverage Indicator_Import-Expor'!AS$7:AS$210,MATCH($B93,'Coverage Indicator_Import-Expor'!$C$7:$C$210,0))=\"\",\"\",INDEX('Coverage Indicator_Import-Expor'!AS$7:AS$210,MATCH($B93,'Coverage Indicator_Import-Expor'!$C$7:$C$210,0))),\"\")","v":""},{"$f":"IFERROR(IF(INDEX('Coverage Indicator_Import-Expor'!N$7:N$210,MATCH($B93,'Coverage Indicator_Import-Expor'!$C$7:$C$210,0))=\"\",\"\",INDEX('Coverage Indicator_Import-Expor'!N$7:N$210,MATCH($B93,'Coverage Indicator_Import-Expor'!$C$7:$C$210,0))),\"\")","v":""},{"$f":"IFERROR(IF(INDEX('Coverage Indicator_Import-Expor'!O$7:O$210,MATCH($B93,'Coverage Indicator_Import-Expor'!$C$7:$C$210,0))=\"\",\"\",INDEX('Coverage Indicator_Import-Expor'!O$7:O$210,MATCH($B93,'Coverage Indicator_Import-Expor'!$C$7:$C$210,0))),\"\")","v":""},{"$f":"IFERROR(IF(INDEX('Coverage Indicator_Import-Expor'!P$7:P$210,MATCH($B93,'Coverage Indicator_Import-Expor'!$C$7:$C$210,0))=\"\",\"\",INDEX('Coverage Indicator_Import-Expor'!P$7:P$210,MATCH($B93,'Coverage Indicator_Import-Expor'!$C$7:$C$210,0))),\"\")","v":""},{"$f":"IFERROR(IF(INDEX('Coverage Indicator_Import-Expor'!Q$7:Q$210,MATCH($B93,'Coverage Indicator_Import-Expor'!$C$7:$C$210,0))=\"\",\"\",INDEX('Coverage Indicator_Import-Expor'!Q$7:Q$210,MATCH($B93,'Coverage Indicator_Import-Expor'!$C$7:$C$210,0))),\"\")","v":""},{"$f":"IFERROR(IF(INDEX('Coverage Indicator_Import-Expor'!R$7:R$210,MATCH($B93,'Coverage Indicator_Import-Expor'!$C$7:$C$210,0))=\"\",\"\",INDEX('Coverage Indicator_Import-Expor'!R$7:R$210,MATCH($B93,'Coverage Indicator_Import-Expor'!$C$7:$C$210,0))),\"\")","v":""},{"$f":"IFERROR(IF(INDEX('Coverage Indicator_Import-Expor'!S$7:S$210,MATCH($B93,'Coverage Indicator_Import-Expor'!$C$7:$C$210,0))=\"\",\"\",INDEX('Coverage Indicator_Import-Expor'!S$7:S$210,MATCH($B93,'Coverage Indicator_Import-Expor'!$C$7:$C$210,0))),\"\")","v":""},{"$f":"IFERROR(IF(INDEX('Coverage Indicator_Import-Expor'!T$7:T$210,MATCH($B93,'Coverage Indicator_Import-Expor'!$C$7:$C$210,0))=\"\",\"\",INDEX('Coverage Indicator_Import-Expor'!T$7:T$210,MATCH($B93,'Coverage Indicator_Import-Expor'!$C$7:$C$210,0))),\"\")","v":""},{"$f":"IFERROR(IF(INDEX('Coverage Indicator_Import-Expor'!U$7:U$210,MATCH($B93,'Coverage Indicator_Import-Expor'!$C$7:$C$210,0))=\"\",\"\",INDEX('Coverage Indicator_Import-Expor'!U$7:U$210,MATCH($B93,'Coverage Indicator_Import-Expor'!$C$7:$C$210,0))),\"\")","v":""},null,null,"",null," ",null,"No Results Reported",null,null,"",null," ",null,null,"No Results Reported",null,null,""," ",null,"No Results Reported"]
[84,"Coverage84",{"$f":"IFERROR(INDEX('Coverage Indicator_Import-Expor'!$D$7:$D$210,MATCH(B94,'Coverage Indicator_Import-Expor'!$C$7:$C$210,0)),\"\")","v":""},{"$f":"IFERROR(INDEX('Coverage Indicator_Import-Expor'!$E$7:$E$210,MATCH(B94,'Coverage Indicator_Import-Expor'!$C$7:$C$210,0)),\"\")","v":""},{"$f":"IFERROR(IF(INDEX('Coverage Indicator_Import-Expor'!K$7:K$210,MATCH($B94,'Coverage Indicator_Import-Expor'!$C$7:$C$210,0))=\"\",\"\",INDEX('Coverage Indicator_Import-Expor'!K$7:K$210,MATCH($B94,'Coverage Indicator_Import-Expor'!$C$7:$C$210,0))),\"\")","v":""},{"$f":"IFERROR(IF(INDEX('Coverage Indicator_Import-Expor'!L$7:L$210,MATCH($B94,'Coverage Indicator_Import-Expor'!$C$7:$C$210,0))=\"\",\"\",INDEX('Coverage Indicator_Import-Expor'!L$7:L$210,MATCH($B94,'Coverage Indicator_Import-Expor'!$C$7:$C$210,0))),\"\")","v":""},{"$f":"IFERROR(IF(INDEX('Coverage Indicator_Import-Expor'!AR$7:AR$210,MATCH($B94,'Coverage Indicator_Import-Expor'!$C$7:$C$210,0))=\"\",\"\",INDEX('Coverage Indicator_Import-Expor'!AR$7:AR$210,MATCH($B94,'Coverage Indicator_Import-Expor'!$C$7:$C$210,0))),\"\")","v":""},{"$f":"IFERROR(IF(INDEX('Coverage Indicator_Import-Expor'!AS$7:AS$210,MATCH($B94,'Coverage Indicator_Import-Expor'!$C$7:$C$210,0))=\"\",\"\",INDEX('Coverage Indicator_Import-Expor'!AS$7:AS$210,MATCH($B94,'Coverage Indicator_Import-Expor'!$C$7:$C$210,0))),\"\")","v":""},{"$f":"IFERROR(IF(INDEX('Coverage Indicator_Import-Expor'!N$7:N$210,MATCH($B94,'Coverage Indicator_Import-Expor'!$C$7:$C$210,0))=\"\",\"\",INDEX('Coverage Indicator_Import-Expor'!N$7:N$210,MATCH($B94,'Coverage Indicator_Import-Expor'!$C$7:$C$210,0))),\"\")","v":""},{"$f":"IFERROR(IF(INDEX('Coverage Indicator_Import-Expor'!O$7:O$210,MATCH($B94,'Coverage Indicator_Import-Expor'!$C$7:$C$210,0))=\"\",\"\",INDEX('Coverage Indicator_Import-Expor'!O$7:O$210,MATCH($B94,'Coverage Indicator_Import-Expor'!$C$7:$C$210,0))),\"\")","v":""},{"$f":"IFERROR(IF(INDEX('Coverage Indicator_Import-Expor'!P$7:P$210,MATCH($B94,'Coverage Indicator_Import-Expor'!$C$7:$C$210,0))=\"\",\"\",INDEX('Coverage Indicator_Import-Expor'!P$7:P$210,MATCH($B94,'Coverage Indicator_Import-Expor'!$C$7:$C$210,0))),\"\")","v":""},{"$f":"IFERROR(IF(INDEX('Coverage Indicator_Import-Expor'!Q$7:Q$210,MATCH($B94,'Coverage Indicator_Import-Expor'!$C$7:$C$210,0))=\"\",\"\",INDEX('Coverage Indicator_Import-Expor'!Q$7:Q$210,MATCH($B94,'Coverage Indicator_Import-Expor'!$C$7:$C$210,0))),\"\")","v":""},{"$f":"IFERROR(IF(INDEX('Coverage Indicator_Import-Expor'!R$7:R$210,MATCH($B94,'Coverage Indicator_Import-Expor'!$C$7:$C$210,0))=\"\",\"\",INDEX('Coverage Indicator_Import-Expor'!R$7:R$210,MATCH($B94,'Coverage Indicator_Import-Expor'!$C$7:$C$210,0))),\"\")","v":""},{"$f":"IFERROR(IF(INDEX('Coverage Indicator_Import-Expor'!S$7:S$210,MATCH($B94,'Coverage Indicator_Import-Expor'!$C$7:$C$210,0))=\"\",\"\",INDEX('Coverage Indicator_Import-Expor'!S$7:S$210,MATCH($B94,'Coverage Indicator_Import-Expor'!$C$7:$C$210,0))),\"\")","v":""},{"$f":"IFERROR(IF(INDEX('Coverage Indicator_Import-Expor'!T$7:T$210,MATCH($B94,'Coverage Indicator_Import-Expor'!$C$7:$C$210,0))=\"\",\"\",INDEX('Coverage Indicator_Import-Expor'!T$7:T$210,MATCH($B94,'Coverage Indicator_Import-Expor'!$C$7:$C$210,0))),\"\")","v":""},{"$f":"IFERROR(IF(INDEX('Coverage Indicator_Import-Expor'!U$7:U$210,MATCH($B94,'Coverage Indicator_Import-Expor'!$C$7:$C$210,0))=\"\",\"\",INDEX('Coverage Indicator_Import-Expor'!U$7:U$210,MATCH($B94,'Coverage Indicator_Import-Expor'!$C$7:$C$210,0))),\"\")","v":""},null,null,"",null," ",null,"No Results Reported",null,null,"",null," ",null,null,"No Results Reported",null,null,""," ",null,"No Results Reported"]
[85,"Coverage85",{"$f":"IFERROR(INDEX('Coverage Indicator_Import-Expor'!$D$7:$D$210,MATCH(B95,'Coverage Indicator_Import-Expor'!$C$7:$C$210,0)),\"\")","v":""},{"$f":"IFERROR(INDEX('Coverage Indicator_Import-Expor'!$E$7:$E$210,MATCH(B95,'Coverage Indicator_Import-Expor'!$C$7:$C$210,0)),\"\")","v":""},{"$f":"IFERROR(IF(INDEX('Coverage Indicator_Import-Expor'!K$7:K$210,MATCH($B95,'Coverage Indicator_Import-Expor'!$C$7:$C$210,0))=\"\",\"\",INDEX('Coverage Indicator_Import-Expor'!K$7:K$210,MATCH($B95,'Coverage Indicator_Import-Expor'!$C$7:$C$210,0))),\"\")","v":""},{"$f":"IFERROR(IF(INDEX('Coverage Indicator_Import-Expor'!L$7:L$210,MATCH($B95,'Coverage Indicator_Import-Expor'!$C$7:$C$210,0))=\"\",\"\",INDEX('Coverage Indicator_Import-Expor'!L$7:L$210,MATCH($B95,'Coverage Indicator_Import-Expor'!$C$7:$C$210,0))),\"\")","v":""},{"$f":"IFERROR(IF(INDEX('Coverage Indicator_Import-Expor'!AR$7:AR$210,MATCH($B95,'Coverage Indicator_Import-Expor'!$C$7:$C$210,0))=\"\",\"\",INDEX('Coverage Indicator_Import-Expor'!AR$7:AR$210,MATCH($B95,'Coverage Indicator_Import-Expor'!$C$7:$C$210,0))),\"\")","v":""},{"$f":"IFERROR(IF(INDEX('Coverage Indicator_Import-Expor'!AS$7:AS$210,MATCH($B95,'Coverage Indicator_Import-Expor'!$C$7:$C$210,0))=\"\",\"\",INDEX('Coverage Indicator_Import-Expor'!AS$7:AS$210,MATCH($B95,'Coverage Indicator_Import-Expor'!$C$7:$C$210,0))),\"\")","v":""},{"$f":"IFERROR(IF(INDEX('Coverage Indicator_Import-Expor'!N$7:N$210,MATCH($B95,'Coverage Indicator_Import-Expor'!$C$7:$C$210,0))=\"\",\"\",INDEX('Coverage Indicator_Import-Expor'!N$7:N$210,MATCH($B95,'Coverage Indicator_Import-Expor'!$C$7:$C$210,0))),\"\")","v":""},{"$f":"IFERROR(IF(INDEX('Coverage Indicator_Import-Expor'!O$7:O$210,MATCH($B95,'Coverage Indicator_Import-Expor'!$C$7:$C$210,0))=\"\",\"\",INDEX('Coverage Indicator_Import-Expor'!O$7:O$210,MATCH($B95,'Coverage Indicator_Import-Expor'!$C$7:$C$210,0))),\"\")","v":""},{"$f":"IFERROR(IF(INDEX('Coverage Indicator_Import-Expor'!P$7:P$210,MATCH($B95,'Coverage Indicator_Import-Expor'!$C$7:$C$210,0))=\"\",\"\",INDEX('Coverage Indicator_Import-Expor'!P$7:P$210,MATCH($B95,'Coverage Indicator_Import-Expor'!$C$7:$C$210,0))),\"\")","v":""},{"$f":"IFERROR(IF(INDEX('Coverage Indicator_Import-Expor'!Q$7:Q$210,MATCH($B95,'Coverage Indicator_Import-Expor'!$C$7:$C$210,0))=\"\",\"\",INDEX('Coverage Indicator_Import-Expor'!Q$7:Q$210,MATCH($B95,'Coverage Indicator_Import-Expor'!$C$7:$C$210,0))),\"\")","v":""},{"$f":"IFERROR(IF(INDEX('Coverage Indicator_Import-Expor'!R$7:R$210,MATCH($B95,'Coverage Indicator_Import-Expor'!$C$7:$C$210,0))=\"\",\"\",INDEX('Coverage Indicator_Import-Expor'!R$7:R$210,MATCH($B95,'Coverage Indicator_Import-Expor'!$C$7:$C$210,0))),\"\")","v":""},{"$f":"IFERROR(IF(INDEX('Coverage Indicator_Import-Expor'!S$7:S$210,MATCH($B95,'Coverage Indicator_Import-Expor'!$C$7:$C$210,0))=\"\",\"\",INDEX('Coverage Indicator_Import-Expor'!S$7:S$210,MATCH($B95,'Coverage Indicator_Import-Expor'!$C$7:$C$210,0))),\"\")","v":""},{"$f":"IFERROR(IF(INDEX('Coverage Indicator_Import-Expor'!T$7:T$210,MATCH($B95,'Coverage Indicator_Import-Expor'!$C$7:$C$210,0))=\"\",\"\",INDEX('Coverage Indicator_Import-Expor'!T$7:T$210,MATCH($B95,'Coverage Indicator_Import-Expor'!$C$7:$C$210,0))),\"\")","v":""},{"$f":"IFERROR(IF(INDEX('Coverage Indicator_Import-Expor'!U$7:U$210,MATCH($B95,'Coverage Indicator_Import-Expor'!$C$7:$C$210,0))=\"\",\"\",INDEX('Coverage Indicator_Import-Expor'!U$7:U$210,MATCH($B95,'Coverage Indicator_Import-Expor'!$C$7:$C$210,0))),\"\")","v":""},null,null,"",null," ",null,"No Results Reported",null,null,"",null," ",null,null,"No Results Reported",null,null,""," ",null,"No Results Reported"]
[86,"Coverage86",{"$f":"IFERROR(INDEX('Coverage Indicator_Import-Expor'!$D$7:$D$210,MATCH(B96,'Coverage Indicator_Import-Expor'!$C$7:$C$210,0)),\"\")","v":""},{"$f":"IFERROR(INDEX('Coverage Indicator_Import-Expor'!$E$7:$E$210,MATCH(B96,'Coverage Indicator_Import-Expor'!$C$7:$C$210,0)),\"\")","v":""},{"$f":"IFERROR(IF(INDEX('Coverage Indicator_Import-Expor'!K$7:K$210,MATCH($B96,'Coverage Indicator_Import-Expor'!$C$7:$C$210,0))=\"\",\"\",INDEX('Coverage Indicator_Import-Expor'!K$7:K$210,MATCH($B96,'Coverage Indicator_Import-Expor'!$C$7:$C$210,0))),\"\")","v":""},{"$f":"IFERROR(IF(INDEX('Coverage Indicator_Import-Expor'!L$7:L$210,MATCH($B96,'Coverage Indicator_Import-Expor'!$C$7:$C$210,0))=\"\",\"\",INDEX('Coverage Indicator_Import-Expor'!L$7:L$210,MATCH($B96,'Coverage Indicator_Import-Expor'!$C$7:$C$210,0))),\"\")","v":""},{"$f":"IFERROR(IF(INDEX('Coverage Indicator_Import-Expor'!AR$7:AR$210,MATCH($B96,'Coverage Indicator_Import-Expor'!$C$7:$C$210,0))=\"\",\"\",INDEX('Coverage Indicator_Import-Expor'!AR$7:AR$210,MATCH($B96,'Coverage Indicator_Import-Expor'!$C$7:$C$210,0))),\"\")","v":""},{"$f":"IFERROR(IF(INDEX('Coverage Indicator_Import-Expor'!AS$7:AS$210,MATCH($B96,'Coverage Indicator_Import-Expor'!$C$7:$C$210,0))=\"\",\"\",INDEX('Coverage Indicator_Import-Expor'!AS$7:AS$210,MATCH($B96,'Coverage Indicator_Import-Expor'!$C$7:$C$210,0))),\"\")","v":""},{"$f":"IFERROR(IF(INDEX('Coverage Indicator_Import-Expor'!N$7:N$210,MATCH($B96,'Coverage Indicator_Import-Expor'!$C$7:$C$210,0))=\"\",\"\",INDEX('Coverage Indicator_Import-Expor'!N$7:N$210,MATCH($B96,'Coverage Indicator_Import-Expor'!$C$7:$C$210,0))),\"\")","v":""},{"$f":"IFERROR(IF(INDEX('Coverage Indicator_Import-Expor'!O$7:O$210,MATCH($B96,'Coverage Indicator_Import-Expor'!$C$7:$C$210,0))=\"\",\"\",INDEX('Coverage Indicator_Import-Expor'!O$7:O$210,MATCH($B96,'Coverage Indicator_Import-Expor'!$C$7:$C$210,0))),\"\")","v":""},{"$f":"IFERROR(IF(INDEX('Coverage Indicator_Import-Expor'!P$7:P$210,MATCH($B96,'Coverage Indicator_Import-Expor'!$C$7:$C$210,0))=\"\",\"\",INDEX('Coverage Indicator_Import-Expor'!P$7:P$210,MATCH($B96,'Coverage Indicator_Import-Expor'!$C$7:$C$210,0))),\"\")","v":""},{"$f":"IFERROR(IF(INDEX('Coverage Indicator_Import-Expor'!Q$7:Q$210,MATCH($B96,'Coverage Indicator_Import-Expor'!$C$7:$C$210,0))=\"\",\"\",INDEX('Coverage Indicator_Import-Expor'!Q$7:Q$210,MATCH($B96,'Coverage Indicator_Import-Expor'!$C$7:$C$210,0))),\"\")","v":""},{"$f":"IFERROR(IF(INDEX('Coverage Indicator_Import-Expor'!R$7:R$210,MATCH($B96,'Coverage Indicator_Import-Expor'!$C$7:$C$210,0))=\"\",\"\",INDEX('Coverage Indicator_Import-Expor'!R$7:R$210,MATCH($B96,'Coverage Indicator_Import-Expor'!$C$7:$C$210,0))),\"\")","v":""},{"$f":"IFERROR(IF(INDEX('Coverage Indicator_Import-Expor'!S$7:S$210,MATCH($B96,'Coverage Indicator_Import-Expor'!$C$7:$C$210,0))=\"\",\"\",INDEX('Coverage Indicator_Import-Expor'!S$7:S$210,MATCH($B96,'Coverage Indicator_Import-Expor'!$C$7:$C$210,0))),\"\")","v":""},{"$f":"IFERROR(IF(INDEX('Coverage Indicator_Import-Expor'!T$7:T$210,MATCH($B96,'Coverage Indicator_Import-Expor'!$C$7:$C$210,0))=\"\",\"\",INDEX('Coverage Indicator_Import-Expor'!T$7:T$210,MATCH($B96,'Coverage Indicator_Import-Expor'!$C$7:$C$210,0))),\"\")","v":""},{"$f":"IFERROR(IF(INDEX('Coverage Indicator_Import-Expor'!U$7:U$210,MATCH($B96,'Coverage Indicator_Import-Expor'!$C$7:$C$210,0))=\"\",\"\",INDEX('Coverage Indicator_Import-Expor'!U$7:U$210,MATCH($B96,'Coverage Indicator_Import-Expor'!$C$7:$C$210,0))),\"\")","v":""},null,null,"",null," ",null,"No Results Reported",null,null,"",null," ",null,null,"No Results Reported",null,null,""," ",null,"No Results Reported"]
[87,"Coverage87",{"$f":"IFERROR(INDEX('Coverage Indicator_Import-Expor'!$D$7:$D$210,MATCH(B97,'Coverage Indicator_Import-Expor'!$C$7:$C$210,0)),\"\")","v":""},{"$f":"IFERROR(INDEX('Coverage Indicator_Import-Expor'!$E$7:$E$210,MATCH(B97,'Coverage Indicator_Import-Expor'!$C$7:$C$210,0)),\"\")","v":""},{"$f":"IFERROR(IF(INDEX('Coverage Indicator_Import-Expor'!K$7:K$210,MATCH($B97,'Coverage Indicator_Import-Expor'!$C$7:$C$210,0))=\"\",\"\",INDEX('Coverage Indicator_Import-Expor'!K$7:K$210,MATCH($B97,'Coverage Indicator_Import-Expor'!$C$7:$C$210,0))),\"\")","v":""},{"$f":"IFERROR(IF(INDEX('Coverage Indicator_Import-Expor'!L$7:L$210,MATCH($B97,'Coverage Indicator_Import-Expor'!$C$7:$C$210,0))=\"\",\"\",INDEX('Coverage Indicator_Import-Expor'!L$7:L$210,MATCH($B97,'Coverage Indicator_Import-Expor'!$C$7:$C$210,0))),\"\")","v":""},{"$f":"IFERROR(IF(INDEX('Coverage Indicator_Import-Expor'!AR$7:AR$210,MATCH($B97,'Coverage Indicator_Import-Expor'!$C$7:$C$210,0))=\"\",\"\",INDEX('Coverage Indicator_Import-Expor'!AR$7:AR$210,MATCH($B97,'Coverage Indicator_Import-Expor'!$C$7:$C$210,0))),\"\")","v":""},{"$f":"IFERROR(IF(INDEX('Coverage Indicator_Import-Expor'!AS$7:AS$210,MATCH($B97,'Coverage Indicator_Import-Expor'!$C$7:$C$210,0))=\"\",\"\",INDEX('Coverage Indicator_Import-Expor'!AS$7:AS$210,MATCH($B97,'Coverage Indicator_Import-Expor'!$C$7:$C$210,0))),\"\")","v":""},{"$f":"IFERROR(IF(INDEX('Coverage Indicator_Import-Expor'!N$7:N$210,MATCH($B97,'Coverage Indicator_Import-Expor'!$C$7:$C$210,0))=\"\",\"\",INDEX('Coverage Indicator_Import-Expor'!N$7:N$210,MATCH($B97,'Coverage Indicator_Import-Expor'!$C$7:$C$210,0))),\"\")","v":""},{"$f":"IFERROR(IF(INDEX('Coverage Indicator_Import-Expor'!O$7:O$210,MATCH($B97,'Coverage Indicator_Import-Expor'!$C$7:$C$210,0))=\"\",\"\",INDEX('Coverage Indicator_Import-Expor'!O$7:O$210,MATCH($B97,'Coverage Indicator_Import-Expor'!$C$7:$C$210,0))),\"\")","v":""},{"$f":"IFERROR(IF(INDEX('Coverage Indicator_Import-Expor'!P$7:P$210,MATCH($B97,'Coverage Indicator_Import-Expor'!$C$7:$C$210,0))=\"\",\"\",INDEX('Coverage Indicator_Import-Expor'!P$7:P$210,MATCH($B97,'Coverage Indicator_Import-Expor'!$C$7:$C$210,0))),\"\")","v":""},{"$f":"IFERROR(IF(INDEX('Coverage Indicator_Import-Expor'!Q$7:Q$210,MATCH($B97,'Coverage Indicator_Import-Expor'!$C$7:$C$210,0))=\"\",\"\",INDEX('Coverage Indicator_Import-Expor'!Q$7:Q$210,MATCH($B97,'Coverage Indicator_Import-Expor'!$C$7:$C$210,0))),\"\")","v":""},{"$f":"IFERROR(IF(INDEX('Coverage Indicator_Import-Expor'!R$7:R$210,MATCH($B97,'Coverage Indicator_Import-Expor'!$C$7:$C$210,0))=\"\",\"\",INDEX('Coverage Indicator_Import-Expor'!R$7:R$210,MATCH($B97,'Coverage Indicator_Import-Expor'!$C$7:$C$210,0))),\"\")","v":""},{"$f":"IFERROR(IF(INDEX('Coverage Indicator_Import-Expor'!S$7:S$210,MATCH($B97,'Coverage Indicator_Import-Expor'!$C$7:$C$210,0))=\"\",\"\",INDEX('Coverage Indicator_Import-Expor'!S$7:S$210,MATCH($B97,'Coverage Indicator_Import-Expor'!$C$7:$C$210,0))),\"\")","v":""},{"$f":"IFERROR(IF(INDEX('Coverage Indicator_Import-Expor'!T$7:T$210,MATCH($B97,'Coverage Indicator_Import-Expor'!$C$7:$C$210,0))=\"\",\"\",INDEX('Coverage Indicator_Import-Expor'!T$7:T$210,MATCH($B97,'Coverage Indicator_Import-Expor'!$C$7:$C$210,0))),\"\")","v":""},{"$f":"IFERROR(IF(INDEX('Coverage Indicator_Import-Expor'!U$7:U$210,MATCH($B97,'Coverage Indicator_Import-Expor'!$C$7:$C$210,0))=\"\",\"\",INDEX('Coverage Indicator_Import-Expor'!U$7:U$210,MATCH($B97,'Coverage Indicator_Import-Expor'!$C$7:$C$210,0))),\"\")","v":""},null,null,"",null," ",null,"No Results Reported",null,null,"",null," ",null,null,"No Results Reported",null,null,""," ",null,"No Results Reported"]
[88,"Coverage88",{"$f":"IFERROR(INDEX('Coverage Indicator_Import-Expor'!$D$7:$D$210,MATCH(B98,'Coverage Indicator_Import-Expor'!$C$7:$C$210,0)),\"\")","v":""},{"$f":"IFERROR(INDEX('Coverage Indicator_Import-Expor'!$E$7:$E$210,MATCH(B98,'Coverage Indicator_Import-Expor'!$C$7:$C$210,0)),\"\")","v":""},{"$f":"IFERROR(IF(INDEX('Coverage Indicator_Import-Expor'!K$7:K$210,MATCH($B98,'Coverage Indicator_Import-Expor'!$C$7:$C$210,0))=\"\",\"\",INDEX('Coverage Indicator_Import-Expor'!K$7:K$210,MATCH($B98,'Coverage Indicator_Import-Expor'!$C$7:$C$210,0))),\"\")","v":""},{"$f":"IFERROR(IF(INDEX('Coverage Indicator_Import-Expor'!L$7:L$210,MATCH($B98,'Coverage Indicator_Import-Expor'!$C$7:$C$210,0))=\"\",\"\",INDEX('Coverage Indicator_Import-Expor'!L$7:L$210,MATCH($B98,'Coverage Indicator_Import-Expor'!$C$7:$C$210,0))),\"\")","v":""},{"$f":"IFERROR(IF(INDEX('Coverage Indicator_Import-Expor'!AR$7:AR$210,MATCH($B98,'Coverage Indicator_Import-Expor'!$C$7:$C$210,0))=\"\",\"\",INDEX('Coverage Indicator_Import-Expor'!AR$7:AR$210,MATCH($B98,'Coverage Indicator_Import-Expor'!$C$7:$C$210,0))),\"\")","v":""},{"$f":"IFERROR(IF(INDEX('Coverage Indicator_Import-Expor'!AS$7:AS$210,MATCH($B98,'Coverage Indicator_Import-Expor'!$C$7:$C$210,0))=\"\",\"\",INDEX('Coverage Indicator_Import-Expor'!AS$7:AS$210,MATCH($B98,'Coverage Indicator_Import-Expor'!$C$7:$C$210,0))),\"\")","v":""},{"$f":"IFERROR(IF(INDEX('Coverage Indicator_Import-Expor'!N$7:N$210,MATCH($B98,'Coverage Indicator_Import-Expor'!$C$7:$C$210,0))=\"\",\"\",INDEX('Coverage Indicator_Import-Expor'!N$7:N$210,MATCH($B98,'Coverage Indicator_Import-Expor'!$C$7:$C$210,0))),\"\")","v":""},{"$f":"IFERROR(IF(INDEX('Coverage Indicator_Import-Expor'!O$7:O$210,MATCH($B98,'Coverage Indicator_Import-Expor'!$C$7:$C$210,0))=\"\",\"\",INDEX('Coverage Indicator_Import-Expor'!O$7:O$210,MATCH($B98,'Coverage Indicator_Import-Expor'!$C$7:$C$210,0))),\"\")","v":""},{"$f":"IFERROR(IF(INDEX('Coverage Indicator_Import-Expor'!P$7:P$210,MATCH($B98,'Coverage Indicator_Import-Expor'!$C$7:$C$210,0))=\"\",\"\",INDEX('Coverage Indicator_Import-Expor'!P$7:P$210,MATCH($B98,'Coverage Indicator_Import-Expor'!$C$7:$C$210,0))),\"\")","v":""},{"$f":"IFERROR(IF(INDEX('Coverage Indicator_Import-Expor'!Q$7:Q$210,MATCH($B98,'Coverage Indicator_Import-Expor'!$C$7:$C$210,0))=\"\",\"\",INDEX('Coverage Indicator_Import-Expor'!Q$7:Q$210,MATCH($B98,'Coverage Indicator_Import-Expor'!$C$7:$C$210,0))),\"\")","v":""},{"$f":"IFERROR(IF(INDEX('Coverage Indicator_Import-Expor'!R$7:R$210,MATCH($B98,'Coverage Indicator_Import-Expor'!$C$7:$C$210,0))=\"\",\"\",INDEX('Coverage Indicator_Import-Expor'!R$7:R$210,MATCH($B98,'Coverage Indicator_Import-Expor'!$C$7:$C$210,0))),\"\")","v":""},{"$f":"IFERROR(IF(INDEX('Coverage Indicator_Import-Expor'!S$7:S$210,MATCH($B98,'Coverage Indicator_Import-Expor'!$C$7:$C$210,0))=\"\",\"\",INDEX('Coverage Indicator_Import-Expor'!S$7:S$210,MATCH($B98,'Coverage Indicator_Import-Expor'!$C$7:$C$210,0))),\"\")","v":""},{"$f":"IFERROR(IF(INDEX('Coverage Indicator_Import-Expor'!T$7:T$210,MATCH($B98,'Coverage Indicator_Import-Expor'!$C$7:$C$210,0))=\"\",\"\",INDEX('Coverage Indicator_Import-Expor'!T$7:T$210,MATCH($B98,'Coverage Indicator_Import-Expor'!$C$7:$C$210,0))),\"\")","v":""},{"$f":"IFERROR(IF(INDEX('Coverage Indicator_Import-Expor'!U$7:U$210,MATCH($B98,'Coverage Indicator_Import-Expor'!$C$7:$C$210,0))=\"\",\"\",INDEX('Coverage Indicator_Import-Expor'!U$7:U$210,MATCH($B98,'Coverage Indicator_Import-Expor'!$C$7:$C$210,0))),\"\")","v":""},null,null,"",null," ",null,"No Results Reported",null,null,"",null," ",null,null,"No Results Reported",null,null,""," ",null,"No Results Reported"]
[89,"Coverage89",{"$f":"IFERROR(INDEX('Coverage Indicator_Import-Expor'!$D$7:$D$210,MATCH(B99,'Coverage Indicator_Import-Expor'!$C$7:$C$210,0)),\"\")","v":""},{"$f":"IFERROR(INDEX('Coverage Indicator_Import-Expor'!$E$7:$E$210,MATCH(B99,'Coverage Indicator_Import-Expor'!$C$7:$C$210,0)),\"\")","v":""},{"$f":"IFERROR(IF(INDEX('Coverage Indicator_Import-Expor'!K$7:K$210,MATCH($B99,'Coverage Indicator_Import-Expor'!$C$7:$C$210,0))=\"\",\"\",INDEX('Coverage Indicator_Import-Expor'!K$7:K$210,MATCH($B99,'Coverage Indicator_Import-Expor'!$C$7:$C$210,0))),\"\")","v":""},{"$f":"IFERROR(IF(INDEX('Coverage Indicator_Import-Expor'!L$7:L$210,MATCH($B99,'Coverage Indicator_Import-Expor'!$C$7:$C$210,0))=\"\",\"\",INDEX('Coverage Indicator_Import-Expor'!L$7:L$210,MATCH($B99,'Coverage Indicator_Import-Expor'!$C$7:$C$210,0))),\"\")","v":""},{"$f":"IFERROR(IF(INDEX('Coverage Indicator_Import-Expor'!AR$7:AR$210,MATCH($B99,'Coverage Indicator_Import-Expor'!$C$7:$C$210,0))=\"\",\"\",INDEX('Coverage Indicator_Import-Expor'!AR$7:AR$210,MATCH($B99,'Coverage Indicator_Import-Expor'!$C$7:$C$210,0))),\"\")","v":""},{"$f":"IFERROR(IF(INDEX('Coverage Indicator_Import-Expor'!AS$7:AS$210,MATCH($B99,'Coverage Indicator_Import-Expor'!$C$7:$C$210,0))=\"\",\"\",INDEX('Coverage Indicator_Import-Expor'!AS$7:AS$210,MATCH($B99,'Coverage Indicator_Import-Expor'!$C$7:$C$210,0))),\"\")","v":""},{"$f":"IFERROR(IF(INDEX('Coverage Indicator_Import-Expor'!N$7:N$210,MATCH($B99,'Coverage Indicator_Import-Expor'!$C$7:$C$210,0))=\"\",\"\",INDEX('Coverage Indicator_Import-Expor'!N$7:N$210,MATCH($B99,'Coverage Indicator_Import-Expor'!$C$7:$C$210,0))),\"\")","v":""},{"$f":"IFERROR(IF(INDEX('Coverage Indicator_Import-Expor'!O$7:O$210,MATCH($B99,'Coverage Indicator_Import-Expor'!$C$7:$C$210,0))=\"\",\"\",INDEX('Coverage Indicator_Import-Expor'!O$7:O$210,MATCH($B99,'Coverage Indicator_Import-Expor'!$C$7:$C$210,0))),\"\")","v":""},{"$f":"IFERROR(IF(INDEX('Coverage Indicator_Import-Expor'!P$7:P$210,MATCH($B99,'Coverage Indicator_Import-Expor'!$C$7:$C$210,0))=\"\",\"\",INDEX('Coverage Indicator_Import-Expor'!P$7:P$210,MATCH($B99,'Coverage Indicator_Import-Expor'!$C$7:$C$210,0))),\"\")","v":""},{"$f":"IFERROR(IF(INDEX('Coverage Indicator_Import-Expor'!Q$7:Q$210,MATCH($B99,'Coverage Indicator_Import-Expor'!$C$7:$C$210,0))=\"\",\"\",INDEX('Coverage Indicator_Import-Expor'!Q$7:Q$210,MATCH($B99,'Coverage Indicator_Import-Expor'!$C$7:$C$210,0))),\"\")","v":""},{"$f":"IFERROR(IF(INDEX('Coverage Indicator_Import-Expor'!R$7:R$210,MATCH($B99,'Coverage Indicator_Import-Expor'!$C$7:$C$210,0))=\"\",\"\",INDEX('Coverage Indicator_Import-Expor'!R$7:R$210,MATCH($B99,'Coverage Indicator_Import-Expor'!$C$7:$C$210,0))),\"\")","v":""},{"$f":"IFERROR(IF(INDEX('Coverage Indicator_Import-Expor'!S$7:S$210,MATCH($B99,'Coverage Indicator_Import-Expor'!$C$7:$C$210,0))=\"\",\"\",INDEX('Coverage Indicator_Import-Expor'!S$7:S$210,MATCH($B99,'Coverage Indicator_Import-Expor'!$C$7:$C$210,0))),\"\")","v":""},{"$f":"IFERROR(IF(INDEX('Coverage Indicator_Import-Expor'!T$7:T$210,MATCH($B99,'Coverage Indicator_Import-Expor'!$C$7:$C$210,0))=\"\",\"\",INDEX('Coverage Indicator_Import-Expor'!T$7:T$210,MATCH($B99,'Coverage Indicator_Import-Expor'!$C$7:$C$210,0))),\"\")","v":""},{"$f":"IFERROR(IF(INDEX('Coverage Indicator_Import-Expor'!U$7:U$210,MATCH($B99,'Coverage Indicator_Import-Expor'!$C$7:$C$210,0))=\"\",\"\",INDEX('Coverage Indicator_Import-Expor'!U$7:U$210,MATCH($B99,'Coverage Indicator_Import-Expor'!$C$7:$C$210,0))),\"\")","v":""},null,null,"",null," ",null,"No Results Reported",null,null,"",null," ",null,null,"No Results Reported",null,null,""," ",null,"No Results Reported"]
[90,"Coverage90",{"$f":"IFERROR(INDEX('Coverage Indicator_Import-Expor'!$D$7:$D$210,MATCH(B100,'Coverage Indicator_Import-Expor'!$C$7:$C$210,0)),\"\")","v":""},{"$f":"IFERROR(INDEX('Coverage Indicator_Import-Expor'!$E$7:$E$210,MATCH(B100,'Coverage Indicator_Import-Expor'!$C$7:$C$210,0)),\"\")","v":""},{"$f":"IFERROR(IF(INDEX('Coverage Indicator_Import-Expor'!K$7:K$210,MATCH($B100,'Coverage Indicator_Import-Expor'!$C$7:$C$210,0))=\"\",\"\",INDEX('Coverage Indicator_Import-Expor'!K$7:K$210,MATCH($B100,'Coverage Indicator_Import-Expor'!$C$7:$C$210,0))),\"\")","v":""},{"$f":"IFERROR(IF(INDEX('Coverage Indicator_Import-Expor'!L$7:L$210,MATCH($B100,'Coverage Indicator_Import-Expor'!$C$7:$C$210,0))=\"\",\"\",INDEX('Coverage Indicator_Import-Expor'!L$7:L$210,MATCH($B100,'Coverage Indicator_Import-Expor'!$C$7:$C$210,0))),\"\")","v":""},{"$f":"IFERROR(IF(INDEX('Coverage Indicator_Import-Expor'!AR$7:AR$210,MATCH($B100,'Coverage Indicator_Import-Expor'!$C$7:$C$210,0))=\"\",\"\",INDEX('Coverage Indicator_Import-Expor'!AR$7:AR$210,MATCH($B100,'Coverage Indicator_Import-Expor'!$C$7:$C$210,0))),\"\")","v":""},{"$f":"IFERROR(IF(INDEX('Coverage Indicator_Import-Expor'!AS$7:AS$210,MATCH($B100,'Coverage Indicator_Import-Expor'!$C$7:$C$210,0))=\"\",\"\",INDEX('Coverage Indicator_Import-Expor'!AS$7:AS$210,MATCH($B100,'Coverage Indicator_Import-Expor'!$C$7:$C$210,0))),\"\")","v":""},{"$f":"IFERROR(IF(INDEX('Coverage Indicator_Import-Expor'!N$7:N$210,MATCH($B100,'Coverage Indicator_Import-Expor'!$C$7:$C$210,0))=\"\",\"\",INDEX('Coverage Indicator_Import-Expor'!N$7:N$210,MATCH($B100,'Coverage Indicator_Import-Expor'!$C$7:$C$210,0))),\"\")","v":""},{"$f":"IFERROR(IF(INDEX('Coverage Indicator_Import-Expor'!O$7:O$210,MATCH($B100,'Coverage Indicator_Import-Expor'!$C$7:$C$210,0))=\"\",\"\",INDEX('Coverage Indicator_Import-Expor'!O$7:O$210,MATCH($B100,'Coverage Indicator_Import-Expor'!$C$7:$C$210,0))),\"\")","v":""},{"$f":"IFERROR(IF(INDEX('Coverage Indicator_Import-Expor'!P$7:P$210,MATCH($B100,'Coverage Indicator_Import-Expor'!$C$7:$C$210,0))=\"\",\"\",INDEX('Coverage Indicator_Import-Expor'!P$7:P$210,MATCH($B100,'Coverage Indicator_Import-Expor'!$C$7:$C$210,0))),\"\")","v":""},{"$f":"IFERROR(IF(INDEX('Coverage Indicator_Import-Expor'!Q$7:Q$210,MATCH($B100,'Coverage Indicator_Import-Expor'!$C$7:$C$210,0))=\"\",\"\",INDEX('Coverage Indicator_Import-Expor'!Q$7:Q$210,MATCH($B100,'Coverage Indicator_Import-Expor'!$C$7:$C$210,0))),\"\")","v":""},{"$f":"IFERROR(IF(INDEX('Coverage Indicator_Import-Expor'!R$7:R$210,MATCH($B100,'Coverage Indicator_Import-Expor'!$C$7:$C$210,0))=\"\",\"\",INDEX('Coverage Indicator_Import-Expor'!R$7:R$210,MATCH($B100,'Coverage Indicator_Import-Expor'!$C$7:$C$210,0))),\"\")","v":""},{"$f":"IFERROR(IF(INDEX('Coverage Indicator_Import-Expor'!S$7:S$210,MATCH($B100,'Coverage Indicator_Import-Expor'!$C$7:$C$210,0))=\"\",\"\",INDEX('Coverage Indicator_Import-Expor'!S$7:S$210,MATCH($B100,'Coverage Indicator_Import-Expor'!$C$7:$C$210,0))),\"\")","v":""},{"$f":"IFERROR(IF(INDEX('Coverage Indicator_Import-Expor'!T$7:T$210,MATCH($B100,'Coverage Indicator_Import-Expor'!$C$7:$C$210,0))=\"\",\"\",INDEX('Coverage Indicator_Import-Expor'!T$7:T$210,MATCH($B100,'Coverage Indicator_Import-Expor'!$C$7:$C$210,0))),\"\")","v":""},{"$f":"IFERROR(IF(INDEX('Coverage Indicator_Import-Expor'!U$7:U$210,MATCH($B100,'Coverage Indicator_Import-Expor'!$C$7:$C$210,0))=\"\",\"\",INDEX('Coverage Indicator_Import-Expor'!U$7:U$210,MATCH($B100,'Coverage Indicator_Import-Expor'!$C$7:$C$210,0))),\"\")","v":""},null,null,"",null," ",null,"No Results Reported",null,null,"",null," ",null,null,"No Results Reported",null,null,""," ",null,"No Results Reported"]

{"sheet":"Coverage Indicator_Import-Expor","index":10,"n_rows":18,"n_cols":53,"rows_kept":18,"cut":false,"hidden":true,"merged":[[4,42,5,42],[4,41,5,41],[4,4,5,4],[4,5,5,5],[4,7,5,7],[4,9,5,9],[4,8,5,8],[4,13,4,17],[4,33,5,33],[4,34,5,34],[4,35,5,35],[4,36,4,38],[4,39,5,39],[4,40,5,40],[4,26,5,26],[4,27,5,27],[4,28,4,30],[4,31,5,31],[4,32,5,32],[1,3,1,34],[4,3,5,3],[4,6,5,6],[4,11,5,11],[4,12,5,12],[4,18,4,20],[4,21,5,21],[4,22,4,24],[4,25,5,25],[4,43,5,43],[4,44,5,44],[4,45,5,45],[4,46,5,46],[4,47,5,47],[4,48,5,48],[4,49,5,49],[4,50,5,50],[4,51,5,51],[4,52,5,52]]}
[]
[null,null,null,"Instructions for population:\n1. Columns B to V` should be mapped for download only\n2. Columns W to AI should be mapped for import only\n3. Population should follow same rules as in tab Coverage Indicators_1B of current template with exception that:\na. population should be 1st sorted by field \"Coverage Indicator Number\" on the parent record Coverage Indicator\n\n"]
[]
[]
[null,null,null,"Module","Name to display","Standard Coverage Indicator Name","Custom Coverage Indicator Name","Standard Coverage Indicator Name - French","Standard Coverage Indicator Name - Spanish","Custom Coverage Indicator Name - local","Geographic Area","Target Cumulative?","Reverse Indicator?","Baseline",null,null,null,null,"Target",null,null,"Comments","Result",null,null,"Source","Achivement Ratio","Comments:\nReasons for programmatic deviation from intended target and deviations from the related workplan activities","Verified Result",null,null,"Source","Achivement Ratio","Verification Method","Comments:\nLFA analysis on progress to date and any variance between targets and results, and any other comments\n(this should not be a “Copy and Paste” of the reasons provided by the PR)","Data Validation checks on LFA data","Global Fund Validated Result",null,null,"Achivement Ratio\n(final one is calculated by GOS)","Country Team comments on validated results","Data validation checks on GF data","Coverage Indicator Number","Reverse Indicator","Geography",null,null,null,null,null,"Module Name ES","Module Name FR","Baseline Source - Local"]
["Record ID",-1,null,null,null,null,null,null,null,null,"Geographic Coverage",null,null,"Baseline N#","Baseline D#","Baseline %","Year","Baseline Source","Target N#","Target D#","Target %",null,"Result N#  (PR)","Result D# (PR)","Result % (PR)",null,null,null,"Verified Result N# (LFA)","Verified Result D# (LFA)","Verified Result % (LFA)",null,null,null,null,null,null,null,null,null,null,null,null,null,null,null,null,null,null,null,"Module Name ES","Module Name FR","Baseline Source - Local"]
["[Record ID]",{"$f":"B6+1","v":0},{"$f":"\"Coverage\"&B7","v":"Coverage0"},"[Module Name]",{"$f":"IF(LangOffset=0,CONCATENATE(F7&G7),IF(LangOffset=1,CONCATENATE(H7&J7),IF(LangOffset=2,I7&J7)))","v":"[Coverage Indicator Name][Custom Coverage Indicator Name - EN]"},"[Coverage Indicator Name]","[Custom Coverage Indicator Name - EN]","[Coverage Indicator Name  - FR]","[Coverage Indicator Name - ES]","[Custom Coverage Indicator Name - Local]","[Geographic Coverage]","[Rating Cumulation Type]","[Reversed indicator]","[Baseline N#]","[Baseline D#]","[Baseline %]","[Year]","[Baseline Source]","[Target N#]","[Target D#]","[Target %]","[Comment]",{"$f":"IFERROR(IF(INDEX('Coverage Indicators_1B'!Q$11:Q$100,MATCH($C7,'Coverage Indicators_1B'!$B$11:$B$100,0))=\"\",\"\",INDEX('Coverage Indicators_1B'!Q$11:Q$100,MATCH($C7,'Coverage Indicators_1B'!$B$11:$B$100,0))),\"\")","v":""},{"$f":"IFERROR(IF(INDEX('Coverage Indicators_1B'!R$11:R$100,MATCH($C7,'Coverage Indicators_1B'!$B$11:$B$100,0))=\"\",\"\",INDEX('Coverage Indicators_1B'!R$11:R$100,MATCH($C7,'Coverage Indicators_1B'!$B$11:$B$100,0))),\"\")","v":""},{"$f":"IFERROR(IF(INDEX('Coverage Indicators_1B'!S$11:S$100,MATCH($C7,'Coverage Indicators_1B'!$B$11:$B$100,0))=\"\",\"\",INDEX('Coverage Indicators_1B'!S$11:S$100,MATCH($C7,'Coverage Indicators_1B'!$B$11:$B$100,0))),\"\")","v":""},{"$f":"IFERROR(IF(INDEX('Coverage Indicators_1B'!T$11:T$100,MATCH($C7,'Coverage Indicators_1B'!$B$11:$B$100,0))=\"\",\"\",INDEX('Coverage Indicators_1B'!T$11:T$100,MATCH($C7,'Coverage Indicators_1B'!$B$11:$B$100,0))),\"\")","v":""},{"$f":"IFERROR(INDEX('Coverage Indicators_1B'!U$11:U$100,MATCH($C7,'Coverage Indicators_1B'!$B$11:$B$100,0)),\"\")","v":""},{"$f":"IFERROR(IF(INDEX('Coverage Indicators_1B'!V$11:V$100,MATCH($C7,'Coverage Indicators_1B'!$B$11:$B$100,0))=\"\",\"\",INDEX('Coverage Indicators_1B'!V$11:V$100,MATCH($C7,'Coverage Indicators_1B'!$B$11:$B$100,0))),\"\")","v":""},{"$f":"IFERROR(IF(INDEX('Coverage Indicators_1B'!X$11:X$100,MATCH($C7,'Coverage Indicators_1B'!$B$11:$B$100,0))=\"\",\"\",INDEX('Coverage Indicators_1B'!X$11:X$100,MATCH($C7,'Coverage Indicators_1B'!$B$11:$B$100,0))),\"\")","v":""},{"$f":"IFERROR(IF(INDEX('Coverage Indicators_1B'!Y$11:Y$100,MATCH($C7,'Coverage Indicators_1B'!$B$11:$B$100,0))=\"\",\"\",INDEX('Coverage Indicators_1B'!Y$11:Y$100,MATCH($C7,'Coverage Indicators_1B'!$B$11:$B$100,0))),\"\")","v":""},{"$f":"IFERROR(IF(INDEX('Coverage Indicators_1B'!Z$11:Z$100,MATCH($C7,'Coverage Indicators_1B'!$B$11:$B$100,0))=\"\",\"\",INDEX('Coverage Indicators_1B'!Z$11:Z$100,MATCH($C7,'Coverage Indicators_1B'!$B$11:$B$100,0))),\"\")","v":""},{"$f":"IFERROR(IF(INDEX('Coverage Indicators_1B'!AA$11:AA$100,MATCH($C7,'Coverage Indicators_1B'!$B$11:$B$100,0))=\"\",\"\",INDEX('Coverage Indicators_1B'!AA$11:AA$100,MATCH($C7,'Coverage Indicators_1B'!$B$11:$B$100,0))),\"\")","v":""},{"$f":"IFERROR(INDEX('Coverage Indicators_1B'!AB$11:AB$100,MATCH($C7,'Coverage Indicators_1B'!$B$11:$B$100,0)),\"\")","v":""},{"$f":"IFERROR(IF(INDEX('Coverage Indicators_1B'!AC$11:AC$100,MATCH($C7,'Coverage Indicators_1B'!$B$11:$B$100,0))=\"\",\"\",INDEX('Coverage Indicators_1B'!AC$11:AC$100,MATCH($C7,'Coverage Indicators_1B'!$B$11:$B$100,0))),\"\")","v":""},{"$f":"IFERROR(IF(INDEX('Coverage Indicators_1B'!AD$11:AD$100,MATCH($C7,'Coverage Indicators_1B'!$B$11:$B$100,0))=\"\",\"\",INDEX('Coverage Indicators_1B'!AD$11:AD$100,MATCH($C7,'Coverage Indicators_1B'!$B$11:$B$100,0))),\"\")","v":""},{"$f":"IFERROR(INDEX('Coverage Indicators_1B'!AE$11:AE$100,MATCH($C7,'Coverage Indicators_1B'!$B$11:$B$100,0)),\"\")","v":""},null,null,null,{"$f":"IFERROR(INDEX('Coverage Indicators_1B'!AI$11:AI$100,MATCH($C7,'Coverage Indicators_1B'!$B$11:$B$100,0)),\"\")","v":""},{"$f":"IFERROR(INDEX('Coverage Indicators_1B'!AJ$11:AJ$100,MATCH($C7,'Coverage Indicators_1B'!$B$11:$B$100,0)),\"\")","v":""},{"$f":"IFERROR(INDEX('Coverage Indicators_1B'!AK$11:AK$100,MATCH($C7,'Coverage Indicators_1B'!$B$11:$B$100,0)),\"\")","v":""},"[Coverage Indicator Number]",{"$f":"IFERROR(IF(M7=\"TRUE\",\"Yes\",\"No\"),\"\")","v":"No"},"[Country (Name)]",null,null,null,null,null,"[Module Name ES]","[Module Name FR]","[Baseline Source - Local]"]
["a173600000BjYdjAAF",{"$f":"B7+1","v":1},{"$f":"\"Coverage\"&B8","v":"Coverage1"},"Case management","CM-1a(M): Proportion of suspected malaria cases that receive a parasitological test at public sector health facilities","CM-1a(M): Proportion of suspected malaria cases that receive a parasitological test at public sector health facilities",null,"CM-1a(M): Proportion de cas suspect de paludisme soumis à un test parasitologique dans des établissements de santé du secteur public","CM-1a(M): Proporción de casos sospechosos de malaria sometidos a una prueba parasitológica en establecimientos de salud del sector público",null,"National","N-Non-cumulative",false,11487514,10896389,105.4,"2016","HMIS",5523563,5523563,100,"Numerator = Number of suspected malaria cases that received a parasitological test (thick smear (TS) + rapid diagnostic test (RDT)) in a public health care facility\nDenominator = Total number of suspected malaria cases expected at public health care facilities\n\nIn 2016, 105.4 percent of suspected malaria cases were tested at public health care facilities. In line with program guidelines, there are plans to increase the contributions of the community sector (through CHW capacity building) and the private sector (through the signing of contracts).\n\nAs a result, the proportion of suspected cases tested at public health care facilities is expected to fall to 86 percent in 2018, 83 percent in 2019, and 80 percent in 2020.\n\nAt the national level, there will be an estimated 12,845,496 suspected cases in 2018, 11,817,857 in 2019, and 11,108,785 in 2020. The public sector contribution will therefore be 11,047,127 cases in 2018, 9,808,821 in 2019, and 8,887,028 in 2020. Microscopy accounts for 20 percent of all tests performed, and RDT the remaining 80 percent.\n\nThe government covers 20 percent of annual RDT needs and all microscopy test needs.\n\nAs regards support from other partners, needs will be covered by USAID (approx. 2 million RDTs each year) and World Relief (2018: 174,450; 2019: 34,225; and 2020: 68,450) for all sectors (public, community and private).\n\nThe Global Fund covers 21 percent, 47 percent and 45 percent of total parasitological test needs, with the government and partners covering the remainder.  The Global Fund covers 59 percent and 57 percent of RDT needs in 2019 and 2020 respectively.",{"$f":"IFERROR(IF(INDEX('Coverage Indicators_1B'!Q$11:Q$100,MATCH($C8,'Coverage Indicators_1B'!$B$11:$B$100,0))=\"\",\"\",INDEX('Coverage Indicators_1B'!Q$11:Q$100,MATCH($C8,'Coverage Indicators_1B'!$B$11:$B$100,0))),\"\")","v":4876942},{"$f":"IFERROR(IF(INDEX('Coverage Indicators_1B'!R$11:R$100,MATCH($C8,'Coverage Indicators_1B'!$B$11:$B$100,0))=\"\",\"\",INDEX('Coverage Indicators_1B'!R$11:R$100,MATCH($C8,'Coverage Indicators_1B'!$B$11:$B$100,0))),\"\")","v":4879911},{"$f":"IFERROR(IF(INDEX('Coverage Indicators_1B'!S$11:S$100,MATCH($C8,'Coverage Indicators_1B'!$B$11:$B$100,0))=\"\",\"\",INDEX('Coverage Indicators_1B'!S$11:S$100,MATCH($C8,'Coverage Indicators_1B'!$B$11:$B$100,0))),\"\")","v":99.939158726460377},{"$f":"IFERROR(IF(INDEX('Coverage Indicators_1B'!T$11:T$100,MATCH($C8,'Coverage Indicators_1B'!$B$11:$B$100,0))=\"\",\"\",INDEX('Coverage Indicators_1B'!T$11:T$100,MATCH($C8,'Coverage Indicators_1B'!$B$11:$B$100,0))),\"\")","v":"HMIS"},{"$f":"IFERROR(INDEX('Coverage Indicators_1B'!U$11:U$100,MATCH($C8,'Coverage Indicators_1B'!$B$11:$B$100,0)),\"\")","v":0.99939158726460375},{"$f":"IFERROR(IF(INDEX('Coverage Indicators_1B'!V$11:V$100,MATCH($C8,'Coverage Indicators_1B'!$B$11:$B$100,0))=\"\",\"\",INDEX('Coverage Indicators_1B'!V$11:V$100,MATCH($C8,'Coverage Indicators_1B'!$B$11:$B$100,0))),\"\")","v":"Le numérateur est le nombre de tous les cas suspect de paludisme soumis à un test parasitologique (GE et TDR) dans les centres de santé et hôpitaux du secteur public. Soit, 1 204 788 cas testés par GE, 3 672 154 cas testés par TDR; au total, ces sont 4 876 942 cas testés pendant la période de janvier à juin 2018. \nLe test par TDR représente 75% tandis que le test par GE représente 25%. \nNB: Les strucures confessionnelles sont incluses dans le secteur public et comptabilisées dans l'indicateur.\nLe nombre de cas suspects est estimé dans DHIS2 par le nombre total de  cas soumis au test parasitologique par TDR ou GE ainsi que les cas traités sans tests dans les  CDS et Hôpitaux du secteur public et constitut ainsi le dénominateur. \nPendant la période de janvier à juin 2018, il y a eu 4 879 911 cas suspects dont seulement 2 969 cas traités non testés. Le constat est que la stratégie de tester avant de traiter est effective à 99.9%. \nEn comparaison avec les chiffres de référence de 2016 année marquée par une épidémie, avec 11 487 514 cas enregistrés, on constate que les cas ont fortement diminué (4 879 911 cas) de près de 58%; \nEn comparant les cibles attendus par projection au premier semestre 2018 (5 523 563 cas suspects de paludisme) et ceux reellemet observés (4 879 911 cas suspects de paludisme) pour la période de janvier à juin 2018, on constate qu'il ya 643 652 cas de paludisme évités soit 12% . \nLes cas de paludisme ont diminué dans le secteur public probablement en relation avec les stratégies déployées (CDM, PID, traitement communautaire, IEC/CCC) pendant et apres l'épidemie de fin 2016- debut 2017.   "},{"$f":"IFERROR(IF(INDEX('Coverage Indicators_1B'!X$11:X$100,MATCH($C8,'Coverage Indicators_1B'!$B$11:$B$100,0))=\"\",\"\",INDEX('Coverage Indicators_1B'!X$11:X$100,MATCH($C8,'Coverage Indicators_1B'!$B$11:$B$100,0))),\"\")","v":""},{"$f":"IFERROR(IF(INDEX('Coverage Indicators_1B'!Y$11:Y$100,MATCH($C8,'Coverage Indicators_1B'!$B$11:$B$100,0))=\"\",\"\",INDEX('Coverage Indicators_1B'!Y$11:Y$100,MATCH($C8,'Coverage Indicators_1B'!$B$11:$B$100,0))),\"\")","v":""},{"$f":"IFERROR(IF(INDEX('Coverage Indicators_1B'!Z$11:Z$100,MATCH($C8,'Coverage Indicators_1B'!$B$11:$B$100,0))=\"\",\"\",INDEX('Coverage Indicators_1B'!Z$11:Z$100,MATCH($C8,'Coverage Indicators_1B'!$B$11:$B$100,0))),\"\")","v":""},{"$f":"IFERROR(IF(INDEX('Coverage Indicators_1B'!AA$11:AA$100,MATCH($C8,'Coverage Indicators_1B'!$B$11:$B$100,0))=\"\",\"\",INDEX('Coverage Indicators_1B'!AA$11:AA$100,MATCH($C8,'Coverage Indicators_1B'!$B$11:$B$100,0))),\"\")","v":""},{"$f":"IFERROR(INDEX('Coverage Indicators_1B'!AB$11:AB$100,MATCH($C8,'Coverage Indicators_1B'!$B$11:$B$100,0)),\"\")","v":" "},{"$f":"IFERROR(IF(INDEX('Coverage Indicators_1B'!AC$11:AC$100,MATCH($C8,'Coverage Indicators_1B'!$B$11:$B$100,0))=\"\",\"\",INDEX('Coverage Indicators_1B'!AC$11:AC$100,MATCH($C8,'Coverage Indicators_1B'!$B$11:$B$100,0))),\"\")","v":""},{"$f":"IFERROR(IF(INDEX('Coverage Indicators_1B'!AD$11:AD$100,MATCH($C8,'Coverage Indicators_1B'!$B$11:$B$100,0))=\"\",\"\",INDEX('Coverage Indicators_1B'!AD$11:AD$100,MATCH($C8,'Coverage Indicators_1B'!$B$11:$B$100,0))),\"\")","v":""},{"$f":"IFERROR(INDEX('Coverage Indicators_1B'!AE$11:AE$100,MATCH($C8,'Coverage Indicators_1B'!$B$11:$B$100,0)),\"\")","v":"No Results Reported"},null,null,null,{"$f":"IFERROR(INDEX('Coverage Indicators_1B'!AI$11:AI$100,MATCH($C8,'Coverage Indicators_1B'!$B$11:$B$100,0)),\"\")","v":" "},{"$f":"IFERROR(INDEX('Coverage Indicators_1B'!AJ$11:AJ$100,MATCH($C8,'Coverage Indicators_1B'!$B$11:$B$100,0)),\"\")","v":0},{"$f":"IFERROR(INDEX('Coverage Indicators_1B'!AK$11:AK$100,MATCH($C8,'Coverage Indicators_1B'!$B$11:$B$100,0)),\"\")","v":"No Results Reported"},2,{"$f":"IFERROR(IF(M8=\"TRUE\",\"Yes\",\"No\"),\"\")","v":"No"},"Burundi",null,null,null,null,null,"Gestión de casos","Prise en charge","DSNIS"]
["a173600000BjYdkAAF",2,"Coverage2","Case management","CM-1b(M): Proportion of suspected malaria cases that receive a parasitological test in the community","CM-1b(M): Proportion of suspected malaria cases that receive a parasitological test in the community",null,"CM-1b(M): Proportion de cas suspects de paludisme soumis à un test parasitologique dans la communauté","CM-1b(M): Proporción de casos sospechosos de malaria sometidos a una prueba parasitológica en la comunidad",null,"Subnational","N-Non-cumulative",false,646543,781862,82.7,"2016","HMIS",513820,513820,100,"Numerator = Number of suspected malaria cases that received a parasitological test (RDT) in the community\nDenominator = Estimated total number of suspected malaria cases in the country (in the community)\n\nAt the national level, there will be an estimated 12,845,496 suspected cases in 2018, 11,817,857 in 2019, and 11,108,785 in 2020. \n\nAs part of integrated community case management (iCCM), 1,290 CHWs have received training through the community malaria grant, and 5,896 CHWs have received training on TB/HIV and malaria through the community TB/HIV grant. There are 11,845 CHWs at the national level. \n\nCommunity case management interventions are conducted in 30 health districts which, together, account for more than 85 percent of malaria cases, including 12 health districts supported by the Global Fund and 18 that were previously supported by other partners (Integrated Health Project in Burundi (IHPB)/USAID: 5 districts, Concern Worldwide: 3 districts, World Relief: 2 districts, World Vision: 6 districts, Initiative d'Appui au Développement Humain Durable [Sustainable Human Development Support Initiative -IADH]/Cordaid: 2 districts). IADH/Cordaid has withdrawn its support for the two districts as of 2017.\n\nThe community sector contribution is expected to rise from 8 percent of total suspected cases in 2018 (1,027,640), to 10 percent in 2019 (1,181,786), and to 12 percent in 2020 (1,333,054). RDTs account for 100 percent of the total.\n \nThe government covers 20 percent of annual RDT needs.\n\nAs regards support from other partners, needs will be covered by USAID (approx. 2 million RDTs each year) and World Relief (2018: 174,450; 2019: 34,225; and 2020: 68,450) for all sectors (public, private and community).\n\nLes cibles sont alignées avec le liste de produits de sante.\n\nRegarding the remuneration of CHWs:\nThe number of CHWs in Burundi is 11,845.  in 2018, the GF will fund the remuneration of CHWs and groupings of CHWs (GASC) in the non-PBF provinces (12 provinces, 417 GASC, 6404 CHWs, or 90% of the CHWs in the provinces), and 6 non-PBF provinces in 2019 (219 GASC, 3310 CHWs, or 90% of the CHWs in those provinces).  This will ensure national geographical coverage at community level (18 provinces) for the support of the CHWs and CHW groupings, complementing the efforts of partners (e.g. World Bank, GAVI) supporting the PBF approach.  The PBF approach aims to reach 6 provinces in year 1, 12 provinces in year 2, and all provinces (18) in year 3 (or 2020).\nThe payments of the CHW groupings will include: 30% for the strengthening of the GASC, and 70% for the CHW.  The payment of the CHWs will be done via \"mobile money\", allowing for traceability.  The payment to the GASC will be done via a bank transfer to the groups' accounts.  For more details, see the worksheet \"Hypothèse Mec GASC transitoire\" of the grant budget.\nThe CHWs carry out health promotion activities for the three diseases (malaria, HIV, TB), as well as for RMNCH (reproductive, maternal, neonatal and children's health), malnutrition, and SGBV (sexual and gender-based violence).\nVerification of the paments will be done via the \"mobile money\" payments, and the bank transfers to the GASC for the strengthening of the GASC.",{"$f":"IFERROR(IF(INDEX('Coverage Indicators_1B'!Q$11:Q$100,MATCH($C9,'Coverage Indicators_1B'!$B$11:$B$100,0))=\"\",\"\",INDEX('Coverage Indicators_1B'!Q$11:Q$100,MATCH($C9,'Coverage Indicators_1B'!$B$11:$B$100,0))),\"\")","v":329235},{"$f":"IFERROR(IF(INDEX('Coverage Indicators_1B'!R$11:R$100,MATCH($C9,'Coverage Indicators_1B'!$B$11:$B$100,0))=\"\",\"\",INDEX('Coverage Indicators_1B'!R$11:R$100,MATCH($C9,'Coverage Indicators_1B'!$B$11:$B$100,0))),\"\")","v":513820},{"$f":"IFERROR(IF(INDEX('Coverage Indicators_1B'!S$11:S$100,MATCH($C9,'Coverage Indicators_1B'!$B$11:$B$100,0))=\"\",\"\",INDEX('Coverage Indicators_1B'!S$11:S$100,MATCH($C9,'Coverage Indicators_1B'!$B$11:$B$100,0))),\"\")","v":64.075940991008522},{"$f":"IFERROR(IF(INDEX('Coverage Indicators_1B'!T$11:T$100,MATCH($C9,'Coverage Indicators_1B'!$B$11:$B$100,0))=\"\",\"\",INDEX('Coverage Indicators_1B'!T$11:T$100,MATCH($C9,'Coverage Indicators_1B'!$B$11:$B$100,0))),\"\")","v":"HMIS"},{"$f":"IFERROR(INDEX('Coverage Indicators_1B'!U$11:U$100,MATCH($C9,'Coverage Indicators_1B'!$B$11:$B$100,0)),\"\")","v":0.64075940991008518},{"$f":"IFERROR(IF(INDEX('Coverage Indicators_1B'!V$11:V$100,MATCH($C9,'Coverage Indicators_1B'!$B$11:$B$100,0))=\"\",\"\",INDEX('Coverage Indicators_1B'!V$11:V$100,MATCH($C9,'Coverage Indicators_1B'!$B$11:$B$100,0))),\"\")","v":"Selon la strategie de PeC communautaire, tous les cas suspects doivent être testés par un TDR dans la communauté. Seul les TDRs positifs recoivent un traitement. \n\nLe dénominateur est l'estimation  du nombre de tous les cas suspects de paludisme dans la communauté dans tout le pays, 513820 cas au 1er semestre 2018.\nLe système national d'information sanitaire ne permet pas de connaitre le nombre des cas suspects de paludisme au niveau communautaire.\nCe dénominateur semble être surestimé si l'on tient compte de la tendance à la baisse observée dans le secteur public et dans le secteur privé de l'ordre de 50%.\n\nEn comparant la cible de référence 2016, on constate une une diminution de la performance qui peut être liée à la surestimation du dénominateur."},{"$f":"IFERROR(IF(INDEX('Coverage Indicators_1B'!X$11:X$100,MATCH($C9,'Coverage Indicators_1B'!$B$11:$B$100,0))=\"\",\"\",INDEX('Coverage Indicators_1B'!X$11:X$100,MATCH($C9,'Coverage Indicators_1B'!$B$11:$B$100,0))),\"\")","v":""},{"$f":"IFERROR(IF(INDEX('Coverage Indicators_1B'!Y$11:Y$100,MATCH($C9,'Coverage Indicators_1B'!$B$11:$B$100,0))=\"\",\"\",INDEX('Coverage Indicators_1B'!Y$11:Y$100,MATCH($C9,'Coverage Indicators_1B'!$B$11:$B$100,0))),\"\")","v":""},{"$f":"IFERROR(IF(INDEX('Coverage Indicators_1B'!Z$11:Z$100,MATCH($C9,'Coverage Indicators_1B'!$B$11:$B$100,0))=\"\",\"\",INDEX('Coverage Indicators_1B'!Z$11:Z$100,MATCH($C9,'Coverage Indicators_1B'!$B$11:$B$100,0))),\"\")","v":""},{"$f":"IFERROR(IF(INDEX('Coverage Indicators_1B'!AA$11:AA$100,MATCH($C9,'Coverage Indicators_1B'!$B$11:$B$100,0))=\"\",\"\",INDEX('Coverage Indicators_1B'!AA$11:AA$100,MATCH($C9,'Coverage Indicators_1B'!$B$11:$B$100,0))),\"\")","v":""},{"$f":"IFERROR(INDEX('Coverage Indicators_1B'!AB$11:AB$100,MATCH($C9,'Coverage Indicators_1B'!$B$11:$B$100,0)),\"\")","v":" "},{"$f":"IFERROR(IF(INDEX('Coverage Indicators_1B'!AC$11:AC$100,MATCH($C9,'Coverage Indicators_1B'!$B$11:$B$100,0))=\"\",\"\",INDEX('Coverage Indicators_1B'!AC$11:AC$100,MATCH($C9,'Coverage Indicators_1B'!$B$11:$B$100,0))),\"\")","v":""},{"$f":"IFERROR(IF(INDEX('Coverage Indicators_1B'!AD$11:AD$100,MATCH($C9,'Coverage Indicators_1B'!$B$11:$B$100,0))=\"\",\"\",INDEX('Coverage Indicators_1B'!AD$11:AD$100,MATCH($C9,'Coverage Indicators_1B'!$B$11:$B$100,0))),\"\")","v":""},{"$f":"IFERROR(INDEX('Coverage Indicators_1B'!AE$11:AE$100,MATCH($C9,'Coverage Indicators_1B'!$B$11:$B$100,0)),\"\")","v":"No Results Reported"},null,null,null,{"$f":"IFERROR(INDEX('Coverage Indicators_1B'!AI$11:AI$100,MATCH($C9,'Coverage Indicators_1B'!$B$11:$B$100,0)),\"\")","v":" "},{"$f":"IFERROR(INDEX('Coverage Indicators_1B'!AJ$11:AJ$100,MATCH($C9,'Coverage Indicators_1B'!$B$11:$B$100,0)),\"\")","v":0},{"$f":"IFERROR(INDEX('Coverage Indicators_1B'!AK$11:AK$100,MATCH($C9,'Coverage Indicators_1B'!$B$11:$B$100,0)),\"\")","v":"No Results Reported"},3,"No","Burundi",null,null,null,null,null,"Gestión de casos","Prise en charge","DSNIS"]
["a173600000BjYdlAAF",3,"Coverage3","Case management","CM-1c(M): Proportion of suspected malaria cases that receive a parasitological test at private sector sites","CM-1c(M): Proportion of suspected malaria cases that receive a parasitological test at private sector sites",null,"CM-1c(M): Proportion de cas suspects de paludisme soumis à un test parasitologique dans des locaux du secteur privé","CM-1c(M): Proporción de casos sospechosos de malaria sometidos a una prueba parasitológica en establecimientos de salud del sector privado",null,"National","N-Non-cumulative",false,757055,759546,99.7,"2016","HMIS",385365,385365,100,"Numerator = Number of suspected malaria cases that received a parasitological test (TS + RDT) in a private health care facility\nDenominator = Total number of suspected malaria cases presenting at health care facilities.\n\nAt the national level, there will be an estimated 12,845,496 suspected cases in 2018, 11,817,857 in 2019, and 11,108,785 in 2020.\n\nThe private sector is expected to account for 6 percent of total cases in 2018 (i.e. 770,730 cases), 7 percent in 2019 (i.e. 827,250) and 8 percent in 2020 (i.e. 888,703). Microscopy will account for 53 percent of all tests in 2018, 51 percent in 2019, and 50 percent in 2020. RDTs, meanwhile, will account for 47 percent in 2018, 49 percent in 2019, and 50 percent in 2020.\n\nThe government covers 20 percent of annual RDT needs and all microscopy test needs.\n\nOther partners funding the purchase of RDTs are USAID (5,362,925 RDTs each year) and World Relief (2018: 174,450; 2019: 34,225; and 2020: 68,450), i.e. in total: 5,537,375 in 2018, 5,397,150 in 2019, and 5,431,375 in 2020. The private sector will use 6 percent of available RDTs in 2018, 7 percent in 2019, and 8 percent in 2020.  \n\nThe list of health products is aligned with the targets.",{"$f":"IFERROR(IF(INDEX('Coverage Indicators_1B'!Q$11:Q$100,MATCH($C10,'Coverage Indicators_1B'!$B$11:$B$100,0))=\"\",\"\",INDEX('Coverage Indicators_1B'!Q$11:Q$100,MATCH($C10,'Coverage Indicators_1B'!$B$11:$B$100,0))),\"\")","v":356801},{"$f":"IFERROR(IF(INDEX('Coverage Indicators_1B'!R$11:R$100,MATCH($C10,'Coverage Indicators_1B'!$B$11:$B$100,0))=\"\",\"\",INDEX('Coverage Indicators_1B'!R$11:R$100,MATCH($C10,'Coverage Indicators_1B'!$B$11:$B$100,0))),\"\")","v":358910},{"$f":"IFERROR(IF(INDEX('Coverage Indicators_1B'!S$11:S$100,MATCH($C10,'Coverage Indicators_1B'!$B$11:$B$100,0))=\"\",\"\",INDEX('Coverage Indicators_1B'!S$11:S$100,MATCH($C10,'Coverage Indicators_1B'!$B$11:$B$100,0))),\"\")","v":99.412387506617264},{"$f":"IFERROR(IF(INDEX('Coverage Indicators_1B'!T$11:T$100,MATCH($C10,'Coverage Indicators_1B'!$B$11:$B$100,0))=\"\",\"\",INDEX('Coverage Indicators_1B'!T$11:T$100,MATCH($C10,'Coverage Indicators_1B'!$B$11:$B$100,0))),\"\")","v":"HMIS"},{"$f":"IFERROR(INDEX('Coverage Indicators_1B'!U$11:U$100,MATCH($C10,'Coverage Indicators_1B'!$B$11:$B$100,0)),\"\")","v":0.99412387506617261},{"$f":"IFERROR(IF(INDEX('Coverage Indicators_1B'!V$11:V$100,MATCH($C10,'Coverage Indicators_1B'!$B$11:$B$100,0))=\"\",\"\",INDEX('Coverage Indicators_1B'!V$11:V$100,MATCH($C10,'Coverage Indicators_1B'!$B$11:$B$100,0))),\"\")","v":"Le numérateur est le nombre de tous les cas suspect de paludisme soumis à un test parasitologique (GE et TDR) dans les centres de santé et hôpitaux du secteur privé. Soit, 257 440 cas testés par GE, 99 361 cas testés par TDR; au total, ces 358 910  cas testés pendant la période de janvier à juin 2018. Le test par TDR représente 28% tandis que le test par GE représente 72%. Ce chiffre élevé de GE dans le secteur privé est au fait que l'examen GE est payé par le patient pendant que l'examen par TDR est gratuit. Les privés préfèrent alors utiliser beaucoup plus celui qui apporte directement un bénéfice.\nNB: Les données des structures privées et associatives sont comptabilisées ensemble sous l'indicateur secteur privé.\nLe dénominateur comprend le nombre total de  cas soumis au test parasitologique par TDR et GE ainsi que les cas traités sans être testés dans les  CDS et Hôpitaux du secteur privé; pendant la période de janvier à juin 2018. Ainsi, il y a eu 358 109 cas suspects dont 2 109 cas traités sans être testés. \nLe constat est que la stratégie de tester avant de traiter est effective à 99.4%. En comparaison avec les chiffres de référence de 2016 ( 757 055 cas suspects de paludisme testés), on constate que les cas ont fortement diminué (356 801 cas) de près de 53%; en comparant les cibles attendus au 1er semestre 2018 (385 365 cas ) et ceux atteints (356 801 cas) pour la même période, on constate qu'il ya 28 564 cas de différence soit 7% de différence entre les cibles attendus et atteints. Les cas suspects de paludisme ont diminué dans le secteur privé probablement en relation avec les strategies deployées pendant et apres l'épidemie de fin 2016- debut 2017 suivant la tendance du secteur public.   \n   \n"},{"$f":"IFERROR(IF(INDEX('Coverage Indicators_1B'!X$11:X$100,MATCH($C10,'Coverage Indicators_1B'!$B$11:$B$100,0))=\"\",\"\",INDEX('Coverage Indicators_1B'!X$11:X$100,MATCH($C10,'Coverage Indicators_1B'!$B$11:$B$100,0))),\"\")","v":""},{"$f":"IFERROR(IF(INDEX('Coverage Indicators_1B'!Y$11:Y$100,MATCH($C10,'Coverage Indicators_1B'!$B$11:$B$100,0))=\"\",\"\",INDEX('Coverage Indicators_1B'!Y$11:Y$100,MATCH($C10,'Coverage Indicators_1B'!$B$11:$B$100,0))),\"\")","v":""},{"$f":"IFERROR(IF(INDEX('Coverage Indicators_1B'!Z$11:Z$100,MATCH($C10,'Coverage Indicators_1B'!$B$11:$B$100,0))=\"\",\"\",INDEX('Coverage Indicators_1B'!Z$11:Z$100,MATCH($C10,'Coverage Indicators_1B'!$B$11:$B$100,0))),\"\")","v":""},{"$f":"IFERROR(IF(INDEX('Coverage Indicators_1B'!AA$11:AA$100,MATCH($C10,'Coverage Indicators_1B'!$B$11:$B$100,0))=\"\",\"\",INDEX('Coverage Indicators_1B'!AA$11:AA$100,MATCH($C10,'Coverage Indicators_1B'!$B$11:$B$100,0))),\"\")","v":""},{"$f":"IFERROR(INDEX('Coverage Indicators_1B'!AB$11:AB$100,MATCH($C10,'Coverage Indicators_1B'!$B$11:$B$100,0)),\"\")","v":" "},{"$f":"IFERROR(IF(INDEX('Coverage Indicators_1B'!AC$11:AC$100,MATCH($C10,'Coverage Indicators_1B'!$B$11:$B$100,0))=\"\",\"\",INDEX('Coverage Indicators_1B'!AC$11:AC$100,MATCH($C10,'Coverage Indicators_1B'!$B$11:$B$100,0))),\"\")","v":""},{"$f":"IFERROR(IF(INDEX('Coverage Indicators_1B'!AD$11:AD$100,MATCH($C10,'Coverage Indicators_1B'!$B$11:$B$100,0))=\"\",\"\",INDEX('Coverage Indicators_1B'!AD$11:AD$100,MATCH($C10,'Coverage Indicators_1B'!$B$11:$B$100,0))),\"\")","v":""},{"$f":"IFERROR(INDEX('Coverage Indicators_1B'!AE$11:AE$100,MATCH($C10,'Coverage Indicators_1B'!$B$11:$B$100,0)),\"\")","v":"No Results Reported"},null,null,null,{"$f":"IFERROR(INDEX('Coverage Indicators_1B'!AI$11:AI$100,MATCH($C10,'Coverage Indicators_1B'!$B$11:$B$100,0)),\"\")","v":" "},{"$f":"IFERROR(INDEX('Coverage Indicators_1B'!AJ$11:AJ$100,MATCH($C10,'Coverage Indicators_1B'!$B$11:$B$100,0)),\"\")","v":0},{"$f":"IFERROR(INDEX('Coverage Indicators_1B'!AK$11:AK$100,MATCH($C10,'Coverage Indicators_1B'!$B$11:$B$100,0)),\"\")","v":"No Results Reported"},4,"No","Burundi",null,null,null,null,null,"Gestión de casos","Prise en charge","DSNIS"]
["a173600000BjYdmAAF",4,"Coverage4","Case management","CM-2a(M): Proportion of confirmed malaria cases that received first-line antimalarial treatment at public sector health facilities","CM-2a(M): Proportion of confirmed malaria cases that received first-line antimalarial treatment at public sector health facilities",null,"CM-2a(M): Proportion de cas de paludisme confirmés ayant reçu un traitement antipaludique de première intention, conformément à la politique nationale, dans des établissements de santé du secteur public","CM-2a(M): Proporción de casos confirmados de malaria que han recibido tratamiento antipalúdico de primera línea en establecimientos de salud del sector público",null,"National","N-Non-cumulative",false,7446810,7759020,96,"2016","HMIS",3573690,3573690,100,"Numerator = Number of confirmed and treated malaria cases that received first-line malaria treatment, in line with national policy, in public health care facilities\nDenominator = Number of confirmed malaria cases in public health care facilities\n\nThe number of cases is calculated by multiplying the total number of suspected cases by the estimated positivity rate (66.7 percent).\n\nNational artemisinin-based combination therapy (ACT) needs are calculated to be 97 percent of the total number of malaria cases (with the remaining 3 percent accounting for severe malaria cases), i.e. 8,310,908 in 2018, 7,646,035 in 2019, and 7,187,273 in 2020. The public sector will contribute 86 percent (7,147,381) in 2018, 83 percent (6,346,209) in 2019, and 80 percent (5,749,818) in 2020. The following interventions will help drive down the number of cases: 2017 LLIN distribution campaign, early treatment (with outreach strategy), and treatment in the community by CHWs. Strengthening of the CHW package (visits, assistance, family support) will help to foster behavior change, ensuring that LLINs are used to good effect and enhancing access to treatment. As a result, the number of cases is expected to fall by 10 percent in 2018, 8 percent in 2019, and 6 percent in 2020. Injectable artesunate needs for the 3 percent of severe malaria cases are partially covered by USAID for 2018 (105,662 cases), and the remainder is covered by the GF.\n\nThe list of health products is aligned with the targets.",{"$f":"IFERROR(IF(INDEX('Coverage Indicators_1B'!Q$11:Q$100,MATCH($C11,'Coverage Indicators_1B'!$B$11:$B$100,0))=\"\",\"\",INDEX('Coverage Indicators_1B'!Q$11:Q$100,MATCH($C11,'Coverage Indicators_1B'!$B$11:$B$100,0))),\"\")","v":2374016},{"$f":"IFERROR(IF(INDEX('Coverage Indicators_1B'!R$11:R$100,MATCH($C11,'Coverage Indicators_1B'!$B$11:$B$100,0))=\"\",\"\",INDEX('Coverage Indicators_1B'!R$11:R$100,MATCH($C11,'Coverage Indicators_1B'!$B$11:$B$100,0))),\"\")","v":2445905},{"$f":"IFERROR(IF(INDEX('Coverage Indicators_1B'!S$11:S$100,MATCH($C11,'Coverage Indicators_1B'!$B$11:$B$100,0))=\"\",\"\",INDEX('Coverage Indicators_1B'!S$11:S$100,MATCH($C11,'Coverage Indicators_1B'!$B$11:$B$100,0))),\"\")","v":97.060842510236498},{"$f":"IFERROR(IF(INDEX('Coverage Indicators_1B'!T$11:T$100,MATCH($C11,'Coverage Indicators_1B'!$B$11:$B$100,0))=\"\",\"\",INDEX('Coverage Indicators_1B'!T$11:T$100,MATCH($C11,'Coverage Indicators_1B'!$B$11:$B$100,0))),\"\")","v":"HMIS"},{"$f":"IFERROR(INDEX('Coverage Indicators_1B'!U$11:U$100,MATCH($C11,'Coverage Indicators_1B'!$B$11:$B$100,0)),\"\")","v":0.970608425102365},{"$f":"IFERROR(IF(INDEX('Coverage Indicators_1B'!V$11:V$100,MATCH($C11,'Coverage Indicators_1B'!$B$11:$B$100,0))=\"\",\"\",INDEX('Coverage Indicators_1B'!V$11:V$100,MATCH($C11,'Coverage Indicators_1B'!$B$11:$B$100,0))),\"\")","v":"Les cas confirmés  de paludisme ayant reçu un traitement de première intention (ACT) dans les centres de santé et hôpitaux du secteur public constitue le numérateur. Soit, 2 374 016 cas pour la période de janvier à juin 2018. \nLe dénominateur comprend les cas de paludisme confirmés dans les établissements de santé du secteur public, soit 2 445 905 cas. 97 % des cas testés positifs recoivent un traitement conforme a la politique nationale de PeC.\nEn comparaison avec les chiffres de référence de 2016 (76%) il y a une legere amelioration.\nAu cours du 1er semestre 2018, le taux de traitement des cas confirmés est de 97%, on peut dire donc que la stratégie de traitement de première intention par ACT est bien suivi et les resultats constants."},{"$f":"IFERROR(IF(INDEX('Coverage Indicators_1B'!X$11:X$100,MATCH($C11,'Coverage Indicators_1B'!$B$11:$B$100,0))=\"\",\"\",INDEX('Coverage Indicators_1B'!X$11:X$100,MATCH($C11,'Coverage Indicators_1B'!$B$11:$B$100,0))),\"\")","v":""},{"$f":"IFERROR(IF(INDEX('Coverage Indicators_1B'!Y$11:Y$100,MATCH($C11,'Coverage Indicators_1B'!$B$11:$B$100,0))=\"\",\"\",INDEX('Coverage Indicators_1B'!Y$11:Y$100,MATCH($C11,'Coverage Indicators_1B'!$B$11:$B$100,0))),\"\")","v":""},{"$f":"IFERROR(IF(INDEX('Coverage Indicators_1B'!Z$11:Z$100,MATCH($C11,'Coverage Indicators_1B'!$B$11:$B$100,0))=\"\",\"\",INDEX('Coverage Indicators_1B'!Z$11:Z$100,MATCH($C11,'Coverage Indicators_1B'!$B$11:$B$100,0))),\"\")","v":""},{"$f":"IFERROR(IF(INDEX('Coverage Indicators_1B'!AA$11:AA$100,MATCH($C11,'Coverage Indicators_1B'!$B$11:$B$100,0))=\"\",\"\",INDEX('Coverage Indicators_1B'!AA$11:AA$100,MATCH($C11,'Coverage Indicators_1B'!$B$11:$B$100,0))),\"\")","v":""},{"$f":"IFERROR(INDEX('Coverage Indicators_1B'!AB$11:AB$100,MATCH($C11,'Coverage Indicators_1B'!$B$11:$B$100,0)),\"\")","v":" "},{"$f":"IFERROR(IF(INDEX('Coverage Indicators_1B'!AC$11:AC$100,MATCH($C11,'Coverage Indicators_1B'!$B$11:$B$100,0))=\"\",\"\",INDEX('Coverage Indicators_1B'!AC$11:AC$100,MATCH($C11,'Coverage Indicators_1B'!$B$11:$B$100,0))),\"\")","v":""},{"$f":"IFERROR(IF(INDEX('Coverage Indicators_1B'!AD$11:AD$100,MATCH($C11,'Coverage Indicators_1B'!$B$11:$B$100,0))=\"\",\"\",INDEX('Coverage Indicators_1B'!AD$11:AD$100,MATCH($C11,'Coverage Indicators_1B'!$B$11:$B$100,0))),\"\")","v":""},{"$f":"IFERROR(INDEX('Coverage Indicators_1B'!AE$11:AE$100,MATCH($C11,'Coverage Indicators_1B'!$B$11:$B$100,0)),\"\")","v":"No Results Reported"},null,null,null,{"$f":"IFERROR(INDEX('Coverage Indicators_1B'!AI$11:AI$100,MATCH($C11,'Coverage Indicators_1B'!$B$11:$B$100,0)),\"\")","v":" "},{"$f":"IFERROR(INDEX('Coverage Indicators_1B'!AJ$11:AJ$100,MATCH($C11,'Coverage Indicators_1B'!$B$11:$B$100,0)),\"\")","v":0},{"$f":"IFERROR(INDEX('Coverage Indicators_1B'!AK$11:AK$100,MATCH($C11,'Coverage Indicators_1B'!$B$11:$B$100,0)),\"\")","v":"No Results Reported"},5,"No","Burundi",null,null,null,null,null,"Gestión de casos","Prise en charge","DSNIS"]
["a173600000BjYdnAAF",5,"Coverage5","Case management","CM-2b(M): Proportion of confirmed malaria cases that received first-line antimalarial treatment in the community","CM-2b(M): Proportion of confirmed malaria cases that received first-line antimalarial treatment in the community",null,"CM-2b(M): Proportion de cas de paludisme confirmés ayant reçu un traitement antipaludique de première intention dans la communauté","CM-2b(M): Proporción de casos confirmados de malaria que han recibido tratamiento antipalúdico de primera línea en la comunidad",null,"Subnational","N-Non-cumulative",false,502453,1147382,43.8,"2016","HMIS",332436.5,332436.5,100,"Numerator = Number of confirmed malaria cases that received first-line malaria treatment, in line with national policy, in the community\nDenominator = Total number of confirmed malaria cases in the community.\n\nThe community sector contribution stands at 8 percent in 2018 (664,873), 10 percent in 2019 (764,604), and 12 percent in 2020 (862,473). The country’s strategy is to deploy the community strategy in the 30 districts recording the highest numbers of malaria cases.\n\nOther partners funding the purchase of ACTs are USAID (2018: 5,530,242; 2019: 5,401,982; and 2020: 5,401,982) and World Relief (2018: 138,025; 2019: 26,650; and 2020: 53,300), i.e. in total: 5,668,267 in 2018, 5,428,632 in 2019, and 5,445,282 in 2020. The community sector will use 8 percent of the ACTs in 2018, 10 percent in 2019, and 12 percent in 2020.\nThe government does not contribute to the purchase of ACTs.\n\nThe list of health products is aligned with the targets.",{"$f":"IFERROR(IF(INDEX('Coverage Indicators_1B'!Q$11:Q$100,MATCH($C12,'Coverage Indicators_1B'!$B$11:$B$100,0))=\"\",\"\",INDEX('Coverage Indicators_1B'!Q$11:Q$100,MATCH($C12,'Coverage Indicators_1B'!$B$11:$B$100,0))),\"\")","v":198130},{"$f":"IFERROR(IF(INDEX('Coverage Indicators_1B'!R$11:R$100,MATCH($C12,'Coverage Indicators_1B'!$B$11:$B$100,0))=\"\",\"\",INDEX('Coverage Indicators_1B'!R$11:R$100,MATCH($C12,'Coverage Indicators_1B'!$B$11:$B$100,0))),\"\")","v":245359},{"$f":"IFERROR(IF(INDEX('Coverage Indicators_1B'!S$11:S$100,MATCH($C12,'Coverage Indicators_1B'!$B$11:$B$100,0))=\"\",\"\",INDEX('Coverage Indicators_1B'!S$11:S$100,MATCH($C12,'Coverage Indicators_1B'!$B$11:$B$100,0))),\"\")","v":80.751062728491718},{"$f":"IFERROR(IF(INDEX('Coverage Indicators_1B'!T$11:T$100,MATCH($C12,'Coverage Indicators_1B'!$B$11:$B$100,0))=\"\",\"\",INDEX('Coverage Indicators_1B'!T$11:T$100,MATCH($C12,'Coverage Indicators_1B'!$B$11:$B$100,0))),\"\")","v":"HMIS"},{"$f":"IFERROR(INDEX('Coverage Indicators_1B'!U$11:U$100,MATCH($C12,'Coverage Indicators_1B'!$B$11:$B$100,0)),\"\")","v":0.80751062728491718},{"$f":"IFERROR(IF(INDEX('Coverage Indicators_1B'!V$11:V$100,MATCH($C12,'Coverage Indicators_1B'!$B$11:$B$100,0))=\"\",\"\",INDEX('Coverage Indicators_1B'!V$11:V$100,MATCH($C12,'Coverage Indicators_1B'!$B$11:$B$100,0))),\"\")","v":"Au niveau communautaire, les cas confirmés  de paludisme ayant reçu un traitement de première intention par ACT constitue le numérateur. Soit, 198130 cas pour la période de janvier à juin 2018. \n\nLe dénominateur comprend les cas de paludisme confirmés par le test TDR dans la communauté,  245.359 cas.\nLa compréhension de l'indicateur au niveau des ASC est qu'il s'inscrit dans la gestion du protocole national ICCM paludisme de l'enfant, à noter que la stratégie ICCM s'est élargie au 37 DS sur 46 DS en 2018.\n\nAinsi, bien que nous anticipions une baisse nominale du nombre de cas, il est constaté un sous reportage dans la période sous revue. Au premier trimestre, on constate que six D.S n'ont pas renseigné au DHIS 2: DS Cankuzo, Isale, Kiganda, Buye, Fota, Kabezi. On constate également que quatre DS n'ont pas renseigné au DHIS2 au deuxième trimestre 2018: DS Cibitoke, Kabezi, Kiganda et Mabayi.\nEn comparant la référence de 2016, il y a une amélioration de la prise en charge communautaire lorsque les cas sont diagnostiqués. Cependant, le programme PNILP devra investiguer les 19% diagnostiqués positifs qui ne recoivent pas de traitement d'une part et  les DS qui ne rapportent pas d'autre part."},{"$f":"IFERROR(IF(INDEX('Coverage Indicators_1B'!X$11:X$100,MATCH($C12,'Coverage Indicators_1B'!$B$11:$B$100,0))=\"\",\"\",INDEX('Coverage Indicators_1B'!X$11:X$100,MATCH($C12,'Coverage Indicators_1B'!$B$11:$B$100,0))),\"\")","v":""},{"$f":"IFERROR(IF(INDEX('Coverage Indicators_1B'!Y$11:Y$100,MATCH($C12,'Coverage Indicators_1B'!$B$11:$B$100,0))=\"\",\"\",INDEX('Coverage Indicators_1B'!Y$11:Y$100,MATCH($C12,'Coverage Indicators_1B'!$B$11:$B$100,0))),\"\")","v":""},{"$f":"IFERROR(IF(INDEX('Coverage Indicators_1B'!Z$11:Z$100,MATCH($C12,'Coverage Indicators_1B'!$B$11:$B$100,0))=\"\",\"\",INDEX('Coverage Indicators_1B'!Z$11:Z$100,MATCH($C12,'Coverage Indicators_1B'!$B$11:$B$100,0))),\"\")","v":""},{"$f":"IFERROR(IF(INDEX('Coverage Indicators_1B'!AA$11:AA$100,MATCH($C12,'Coverage Indicators_1B'!$B$11:$B$100,0))=\"\",\"\",INDEX('Coverage Indicators_1B'!AA$11:AA$100,MATCH($C12,'Coverage Indicators_1B'!$B$11:$B$100,0))),\"\")","v":""},{"$f":"IFERROR(INDEX('Coverage Indicators_1B'!AB$11:AB$100,MATCH($C12,'Coverage Indicators_1B'!$B$11:$B$100,0)),\"\")","v":" "},{"$f":"IFERROR(IF(INDEX('Coverage Indicators_1B'!AC$11:AC$100,MATCH($C12,'Coverage Indicators_1B'!$B$11:$B$100,0))=\"\",\"\",INDEX('Coverage Indicators_1B'!AC$11:AC$100,MATCH($C12,'Coverage Indicators_1B'!$B$11:$B$100,0))),\"\")","v":""},{"$f":"IFERROR(IF(INDEX('Coverage Indicators_1B'!AD$11:AD$100,MATCH($C12,'Coverage Indicators_1B'!$B$11:$B$100,0))=\"\",\"\",INDEX('Coverage Indicators_1B'!AD$11:AD$100,MATCH($C12,'Coverage Indicators_1B'!$B$11:$B$100,0))),\"\")","v":""},{"$f":"IFERROR(INDEX('Coverage Indicators_1B'!AE$11:AE$100,MATCH($C12,'Coverage Indicators_1B'!$B$11:$B$100,0)),\"\")","v":"No Results Reported"},null,null,null,{"$f":"IFERROR(INDEX('Coverage Indicators_1B'!AI$11:AI$100,MATCH($C12,'Coverage Indicators_1B'!$B$11:$B$100,0)),\"\")","v":" "},{"$f":"IFERROR(INDEX('Coverage Indicators_1B'!AJ$11:AJ$100,MATCH($C12,'Coverage Indicators_1B'!$B$11:$B$100,0)),\"\")","v":0},{"$f":"IFERROR(INDEX('Coverage Indicators_1B'!AK$11:AK$100,MATCH($C12,'Coverage Indicators_1B'!$B$11:$B$100,0)),\"\")","v":"No Results Reported"},6,"No","Burundi",null,null,null,null,null,"Gestión de casos","Prise en charge","DSNIS"]
["a173600000BjYdoAAF",6,"Coverage6","Case management","CM-3c: Proportion of malaria cases (presumed and confirmed) that received first line antimalarial treatment at private sector sites","CM-3c: Proportion of malaria cases (presumed and confirmed) that received first line antimalarial treatment at private sector sites",null,"CM-3c: Proportion de cas de paludisme estimés (présumés et confirmés) ayant reçu un traitement antipaludique de première intention dans des établissements de santé privés","CM-3c: Proporción de casos de malaria (supuestos y confirmados) que han recibido tratamiento antipalúdico de primera línea en establecimientos de salud del sector privado",null,"National","N-Non-cumulative",false,94012,205031,45.9,"2016","HMIS",249327,249327,100,"Numerator = Number of confirmed malaria cases that received first-line malaria treatment, in line with national policy, in private health care facilities\nDenominator = Total number of confirmed malaria cases in private health care facilities.\n\nThe public sector will contribute 5.8 percent (498,654 cases) in 2018, 6.8 percent (535,222) in 2019, and 7.8 percent (574,982) in 2020.\n\nOther partners funding the purchase of ACTs are USAID (2018: 5,530,242; 2019: 5,401,982; and 2020: 5,401,982) and World Relief (2018: 138,025; 2019: 26,650; and 2020: 53,300), i.e. in total: 5,668,267 in 2018, 5,428,632 in 2019, and 5,445,282 in 2020. The private sector will use 6 percent of the ACTs in 2018, 7 percent in 2019, and 8 percent in 2020.\n\nThe list of health products is aligned with the targets.",{"$f":"IFERROR(IF(INDEX('Coverage Indicators_1B'!Q$11:Q$100,MATCH($C13,'Coverage Indicators_1B'!$B$11:$B$100,0))=\"\",\"\",INDEX('Coverage Indicators_1B'!Q$11:Q$100,MATCH($C13,'Coverage Indicators_1B'!$B$11:$B$100,0))),\"\")","v":49569},{"$f":"IFERROR(IF(INDEX('Coverage Indicators_1B'!R$11:R$100,MATCH($C13,'Coverage Indicators_1B'!$B$11:$B$100,0))=\"\",\"\",INDEX('Coverage Indicators_1B'!R$11:R$100,MATCH($C13,'Coverage Indicators_1B'!$B$11:$B$100,0))),\"\")","v":160631},{"$f":"IFERROR(IF(INDEX('Coverage Indicators_1B'!S$11:S$100,MATCH($C13,'Coverage Indicators_1B'!$B$11:$B$100,0))=\"\",\"\",INDEX('Coverage Indicators_1B'!S$11:S$100,MATCH($C13,'Coverage Indicators_1B'!$B$11:$B$100,0))),\"\")","v":30.858925114081341},{"$f":"IFERROR(IF(INDEX('Coverage Indicators_1B'!T$11:T$100,MATCH($C13,'Coverage Indicators_1B'!$B$11:$B$100,0))=\"\",\"\",INDEX('Coverage Indicators_1B'!T$11:T$100,MATCH($C13,'Coverage Indicators_1B'!$B$11:$B$100,0))),\"\")","v":"HMIS"},{"$f":"IFERROR(INDEX('Coverage Indicators_1B'!U$11:U$100,MATCH($C13,'Coverage Indicators_1B'!$B$11:$B$100,0)),\"\")","v":0.30858925114081343},{"$f":"IFERROR(IF(INDEX('Coverage Indicators_1B'!V$11:V$100,MATCH($C13,'Coverage Indicators_1B'!$B$11:$B$100,0))=\"\",\"\",INDEX('Coverage Indicators_1B'!V$11:V$100,MATCH($C13,'Coverage Indicators_1B'!$B$11:$B$100,0))),\"\")","v":"Les structures privés qui utilisent les ACT sont les structures sous contrat PBF qui sont approvisionnées en intrants par les Districts Sanitaires. Noter que les cas traités sans test ont été éliminés car la molécule utilisée n'est pas spécifiée dans le DHSI2. Structures privées = privées et associatives .  \n\nLe numérateur est représenté par les cas confirmés de paludisme ayant reçu un traitement de première intention (ACT) dans les locaux du secteur privé. Seulement, 49 569 cas pour la période de janvier à juin 2018. Le dénominateur comprend les cas de paludisme confirmés par un test parasitologique, soit 160 631 cas. Soit un poucentage de 30.85%.\nHormis le milieu associatif, les privés n'accèdent pas aux ACT pour le moment. La quinine orale est largement utilisée dans le secteur privé. \nLa rationalisation et la conformité à la politique nationale par le secteur privé passe par l'accès réglementé au circuit d'approvisionnement public et privé."},{"$f":"IFERROR(IF(INDEX('Coverage Indicators_1B'!X$11:X$100,MATCH($C13,'Coverage Indicators_1B'!$B$11:$B$100,0))=\"\",\"\",INDEX('Coverage Indicators_1B'!X$11:X$100,MATCH($C13,'Coverage Indicators_1B'!$B$11:$B$100,0))),\"\")","v":""},{"$f":"IFERROR(IF(INDEX('Coverage Indicators_1B'!Y$11:Y$100,MATCH($C13,'Coverage Indicators_1B'!$B$11:$B$100,0))=\"\",\"\",INDEX('Coverage Indicators_1B'!Y$11:Y$100,MATCH($C13,'Coverage Indicators_1B'!$B$11:$B$100,0))),\"\")","v":""},{"$f":"IFERROR(IF(INDEX('Coverage Indicators_1B'!Z$11:Z$100,MATCH($C13,'Coverage Indicators_1B'!$B$11:$B$100,0))=\"\",\"\",INDEX('Coverage Indicators_1B'!Z$11:Z$100,MATCH($C13,'Coverage Indicators_1B'!$B$11:$B$100,0))),\"\")","v":""},{"$f":"IFERROR(IF(INDEX('Coverage Indicators_1B'!AA$11:AA$100,MATCH($C13,'Coverage Indicators_1B'!$B$11:$B$100,0))=\"\",\"\",INDEX('Coverage Indicators_1B'!AA$11:AA$100,MATCH($C13,'Coverage Indicators_1B'!$B$11:$B$100,0))),\"\")","v":""},{"$f":"IFERROR(INDEX('Coverage Indicators_1B'!AB$11:AB$100,MATCH($C13,'Coverage Indicators_1B'!$B$11:$B$100,0)),\"\")","v":" "},{"$f":"IFERROR(IF(INDEX('Coverage Indicators_1B'!AC$11:AC$100,MATCH($C13,'Coverage Indicators_1B'!$B$11:$B$100,0))=\"\",\"\",INDEX('Coverage Indicators_1B'!AC$11:AC$100,MATCH($C13,'Coverage Indicators_1B'!$B$11:$B$100,0))),\"\")","v":""},{"$f":"IFERROR(IF(INDEX('Coverage Indicators_1B'!AD$11:AD$100,MATCH($C13,'Coverage Indicators_1B'!$B$11:$B$100,0))=\"\",\"\",INDEX('Coverage Indicators_1B'!AD$11:AD$100,MATCH($C13,'Coverage Indicators_1B'!$B$11:$B$100,0))),\"\")","v":""},{"$f":"IFERROR(INDEX('Coverage Indicators_1B'!AE$11:AE$100,MATCH($C13,'Coverage Indicators_1B'!$B$11:$B$100,0)),\"\")","v":"No Results Reported"},null,null,null,{"$f":"IFERROR(INDEX('Coverage Indicators_1B'!AI$11:AI$100,MATCH($C13,'Coverage Indicators_1B'!$B$11:$B$100,0)),\"\")","v":" "},{"$f":"IFERROR(INDEX('Coverage Indicators_1B'!AJ$11:AJ$100,MATCH($C13,'Coverage Indicators_1B'!$B$11:$B$100,0)),\"\")","v":0},{"$f":"IFERROR(INDEX('Coverage Indicators_1B'!AK$11:AK$100,MATCH($C13,'Coverage Indicators_1B'!$B$11:$B$100,0)),\"\")","v":"No Results Reported"},7,"No","Burundi",null,null,null,null,null,"Gestión de casos","Prise en charge","DSNIS"]
["a173600000BjYdpAAF",7,"Coverage7","Case management","CM - other1: Percentage of CHWs not having had a stock-out for ACTs or RDTs during the reporting period in the 30 districts implementing iCCM.",null,"CM - other1: Percentage of CHWs not having had a stock-out for ACTs or RDTs during the reporting period in the 30 districts implementing iCCM.",null,null,"CM - autre1: Pourcentage d'ASC n'ayant pas connu de rupture de stock au cours de la periode pour les ACT et TDRs dans les 30 districts sanitaires faisant l'iCCM","Subnational","N-Non-cumulative",false,159,268,59.3,"2016","Data from the regional supervisors of CHWs (Caritas)",3479.2,4349,80,"Numerator: Number of CHWs implementing iCCM having reported no ACT and RDT stock-outs during the half-year period in the 30 districts implementing iCCM.                                                                                                                                                                         \nDenominator: 4,349 CHWs from 2018 onwards (CHWs implementing iCCM according to the national protocol in 30 health districts).\n\nThe baseline value refers to the 12 districts funded by the Global Fund.  The target refers to the health districts funded by all partners (total: 28 or 30, to be confirmed during grant implementation).\n\nAt end-2016, this intervention was only operational in four (Bubanza, Butezi, Mutaho and Mpanda) of the 12 districts in which the Global Fund funds iCCM. There were a total of 268 CHWs in these districts. Of these, 159 CHWs had reported no ACT and RDT stock-outs. Caritas currently covers 12 districts, with 1,290 CHWs. Caritas Burundi intends to support monitoring and evaluation activities in all 30 districts implementing iCCM from 2018 onwards (4,349 CHWs). The current targets are based on the following assumptions: 80 percent of CHWs will report no stock-outs in 2018, 85 percent in 2019, and 90 percent in 2020.\n\nA stock-out is defined in accordance with the international definition, i.e. at least one day with no ACTs in the month.\n\nBecause CHWs report on a monthly basis, the numerator will be the monthly average of CHWs reporting no stock-outs of ACTs and RDTs. The average will be taken over six months in each half-year period. At the community level, the NMCP’s agreed definition of a stock-out is one or more days without ACTs in each month.\n\nThe list of health products is aligned with the targets.",{"$f":"IFERROR(IF(INDEX('Coverage Indicators_1B'!Q$11:Q$100,MATCH($C14,'Coverage Indicators_1B'!$B$11:$B$100,0))=\"\",\"\",INDEX('Coverage Indicators_1B'!Q$11:Q$100,MATCH($C14,'Coverage Indicators_1B'!$B$11:$B$100,0))),\"\")","v":790},{"$f":"IFERROR(IF(INDEX('Coverage Indicators_1B'!R$11:R$100,MATCH($C14,'Coverage Indicators_1B'!$B$11:$B$100,0))=\"\",\"\",INDEX('Coverage Indicators_1B'!R$11:R$100,MATCH($C14,'Coverage Indicators_1B'!$B$11:$B$100,0))),\"\")","v":802},{"$f":"IFERROR(IF(INDEX('Coverage Indicators_1B'!S$11:S$100,MATCH($C14,'Coverage Indicators_1B'!$B$11:$B$100,0))=\"\",\"\",INDEX('Coverage Indicators_1B'!S$11:S$100,MATCH($C14,'Coverage Indicators_1B'!$B$11:$B$100,0))),\"\")","v":98.503740648379051},{"$f":"IFERROR(IF(INDEX('Coverage Indicators_1B'!T$11:T$100,MATCH($C14,'Coverage Indicators_1B'!$B$11:$B$100,0))=\"\",\"\",INDEX('Coverage Indicators_1B'!T$11:T$100,MATCH($C14,'Coverage Indicators_1B'!$B$11:$B$100,0))),\"\")","v":"HMIS"},{"$f":"IFERROR(INDEX('Coverage Indicators_1B'!U$11:U$100,MATCH($C14,'Coverage Indicators_1B'!$B$11:$B$100,0)),\"\")","v":1.2},{"$f":"IFERROR(IF(INDEX('Coverage Indicators_1B'!V$11:V$100,MATCH($C14,'Coverage Indicators_1B'!$B$11:$B$100,0))=\"\",\"\",INDEX('Coverage Indicators_1B'!V$11:V$100,MATCH($C14,'Coverage Indicators_1B'!$B$11:$B$100,0))),\"\")","v":"Une structure sanitaire aura connu rupture du stock quand un des intrants de base du paludisme (ACT, TDR) ne sera pas disponible pendant au moins sept jours consécutifs au cours du semestre.\nAu premier semestre 2018, selon les informations du DHIS2, 802 CDS (731 CDS publics et 71 structures associatives bénéficiaires des intrants ACT et TDR) sont opérationnels dans les 46 districts sanitaires du pays. C'est pour cela que les résultats rapportés ne sont pas limités aux 30 districts sanitaires prévus dans l'indicateur du cadre de performance. \nLa moyenne mensuelle des CDS n'ayant pas connu de rupture de stock de l'un des 2 intrants clés est de  790 sur 802.\nPour déterminer cet indicateur, le numérateur est la somme du nombre de formations sanitaires n’ayant pas connu de rupture de stock pour chaque mois du semestre et divisé par 6 (nombre des mois) Le dénominateur est la somme du nombre de formations sanitaires fonctionnelles pour chaque mois du semestre et divisé par 6 si le nombre des formations fonctionnelles a varié d’un mois à l’autre."},{"$f":"IFERROR(IF(INDEX('Coverage Indicators_1B'!X$11:X$100,MATCH($C14,'Coverage Indicators_1B'!$B$11:$B$100,0))=\"\",\"\",INDEX('Coverage Indicators_1B'!X$11:X$100,MATCH($C14,'Coverage Indicators_1B'!$B$11:$B$100,0))),\"\")","v":""},{"$f":"IFERROR(IF(INDEX('Coverage Indicators_1B'!Y$11:Y$100,MATCH($C14,'Coverage Indicators_1B'!$B$11:$B$100,0))=\"\",\"\",INDEX('Coverage Indicators_1B'!Y$11:Y$100,MATCH($C14,'Coverage Indicators_1B'!$B$11:$B$100,0))),\"\")","v":""},{"$f":"IFERROR(IF(INDEX('Coverage Indicators_1B'!Z$11:Z$100,MATCH($C14,'Coverage Indicators_1B'!$B$11:$B$100,0))=\"\",\"\",INDEX('Coverage Indicators_1B'!Z$11:Z$100,MATCH($C14,'Coverage Indicators_1B'!$B$11:$B$100,0))),\"\")","v":""},{"$f":"IFERROR(IF(INDEX('Coverage Indicators_1B'!AA$11:AA$100,MATCH($C14,'Coverage Indicators_1B'!$B$11:$B$100,0))=\"\",\"\",INDEX('Coverage Indicators_1B'!AA$11:AA$100,MATCH($C14,'Coverage Indicators_1B'!$B$11:$B$100,0))),\"\")","v":""},{"$f":"IFERROR(INDEX('Coverage Indicators_1B'!AB$11:AB$100,MATCH($C14,'Coverage Indicators_1B'!$B$11:$B$100,0)),\"\")","v":" "},{"$f":"IFERROR(IF(INDEX('Coverage Indicators_1B'!AC$11:AC$100,MATCH($C14,'Coverage Indicators_1B'!$B$11:$B$100,0))=\"\",\"\",INDEX('Coverage Indicators_1B'!AC$11:AC$100,MATCH($C14,'Coverage Indicators_1B'!$B$11:$B$100,0))),\"\")","v":""},{"$f":"IFERROR(IF(INDEX('Coverage Indicators_1B'!AD$11:AD$100,MATCH($C14,'Coverage Indicators_1B'!$B$11:$B$100,0))=\"\",\"\",INDEX('Coverage Indicators_1B'!AD$11:AD$100,MATCH($C14,'Coverage Indicators_1B'!$B$11:$B$100,0))),\"\")","v":""},{"$f":"IFERROR(INDEX('Coverage Indicators_1B'!AE$11:AE$100,MATCH($C14,'Coverage Indicators_1B'!$B$11:$B$100,0)),\"\")","v":"No Results Reported"},null,null,null,{"$f":"IFERROR(INDEX('Coverage Indicators_1B'!AI$11:AI$100,MATCH($C14,'Coverage Indicators_1B'!$B$11:$B$100,0)),\"\")","v":" "},{"$f":"IFERROR(INDEX('Coverage Indicators_1B'!AJ$11:AJ$100,MATCH($C14,'Coverage Indicators_1B'!$B$11:$B$100,0)),\"\")","v":0},{"$f":"IFERROR(INDEX('Coverage Indicators_1B'!AK$11:AK$100,MATCH($C14,'Coverage Indicators_1B'!$B$11:$B$100,0)),\"\")","v":"No Results Reported"},8,"No","Burundi",null,null,null,null,null,"Gestión de casos","Prise en charge","Données des encadreurs régionaux des ASC (Caritas)"]
["a173600000BjYdqAAF",8,"Coverage8","Specific prevention interventions (SPI)","SPI-1: Proportion of pregnant women attending antenatal clinics who received three or more doses of intermittent preventive treatment for malaria","SPI-1: Proportion of pregnant women attending antenatal clinics who received three or more doses of intermittent preventive treatment for malaria",null,"SPI-1: Pourcentage de femmes bénéficiant de services de soins prénatals ayant reçu au moins 3 doses de traitement préventif intermittent","SPI-1: Porcentaje de mujeres embarazadas que acuden a servicios de atención prenatal que recibieron  tres o más dosis de tratamiento preventivo intermitente",null,"National","N-Non-cumulative",false,140741,243404,57.8,"2016","Data reported by the BDS (health distict offices), S2",178909.76500000001,267029.5,67,"Numerator = Number of pregnant women attending antenatal clinics who received three or more doses of intermittent preventive treatment for malaria\nDenominator = Number of first visits to antenatal clinics.\n\nThe number of expected pregnancies is calculated by multiplying the total population by 5 percent (see 2015 statistical yearbook), i.e. 534,059 in 2018, 547,666 in 2019, and 560,779 in 2020. The projections for 2018, 2019 and 2020 are based on the 2015 ANC3 rate (66.5 percent of women seen at ANC1), i.e. 67 percent (357,820), 68 percent (372,413), and 70 percent (392,545).\n\nAccording to the preliminary results of the DHS III (2017), the % of pregnant women having received 3 doses or more of SP/Fansidar during the pregnancy was 12.9% (and 20.7% for 2 doses or more, and 29.6% for 1 dose or more).  The difference between the two sources of data is linked to the different methodologies (household survey, and routine data).  Improvements in routine data are expected to better measure this indicator, as well as improvements in access to IPTp.",{"$f":"IFERROR(IF(INDEX('Coverage Indicators_1B'!Q$11:Q$100,MATCH($C15,'Coverage Indicators_1B'!$B$11:$B$100,0))=\"\",\"\",INDEX('Coverage Indicators_1B'!Q$11:Q$100,MATCH($C15,'Coverage Indicators_1B'!$B$11:$B$100,0))),\"\")","v":132225},{"$f":"IFERROR(IF(INDEX('Coverage Indicators_1B'!R$11:R$100,MATCH($C15,'Coverage Indicators_1B'!$B$11:$B$100,0))=\"\",\"\",INDEX('Coverage Indicators_1B'!R$11:R$100,MATCH($C15,'Coverage Indicators_1B'!$B$11:$B$100,0))),\"\")","v":219454},{"$f":"IFERROR(IF(INDEX('Coverage Indicators_1B'!S$11:S$100,MATCH($C15,'Coverage Indicators_1B'!$B$11:$B$100,0))=\"\",\"\",INDEX('Coverage Indicators_1B'!S$11:S$100,MATCH($C15,'Coverage Indicators_1B'!$B$11:$B$100,0))),\"\")","v":60.251806756769078},{"$f":"IFERROR(IF(INDEX('Coverage Indicators_1B'!T$11:T$100,MATCH($C15,'Coverage Indicators_1B'!$B$11:$B$100,0))=\"\",\"\",INDEX('Coverage Indicators_1B'!T$11:T$100,MATCH($C15,'Coverage Indicators_1B'!$B$11:$B$100,0))),\"\")","v":"HMIS"},{"$f":"IFERROR(INDEX('Coverage Indicators_1B'!U$11:U$100,MATCH($C15,'Coverage Indicators_1B'!$B$11:$B$100,0)),\"\")","v":0.89928069786222509},{"$f":"IFERROR(IF(INDEX('Coverage Indicators_1B'!V$11:V$100,MATCH($C15,'Coverage Indicators_1B'!$B$11:$B$100,0))=\"\",\"\",INDEX('Coverage Indicators_1B'!V$11:V$100,MATCH($C15,'Coverage Indicators_1B'!$B$11:$B$100,0))),\"\")","v":"Le numérateur est le nombre de femmes enceintes fréquentant les centres de consultation prénatale ayant reçu au moins 3 doses de TPI pour la prévention du paludisme, soit 132 225 femmes enceintes. \nLe dénominateur est le nombre de première visite en centre de consultation prénatale, soit 219 454 visites. \nEn faisant une comparaison entre le pourcentage réalisé en 2016 (57.80) et celui atteint au 1er semestre 2018 (60.25%), on constate que une légère augmentation de 2.45%. Aussi, par comparaison entre le pourcentage attendu (67.00%) et celui réalisé (60.25%), on constate que un écart de 6.75%    Noter que la cible nominale attendue de 178 909 femmes enceintes ayant reçu au moins 3 doses de TPI pour prévention contre le paludisme n'a pas été atteint, soit une différence de 46 684. \nSignalons que le taux de CPN1 au 3ème trimestre de la grossesse représente 15, 07%  aucours de la période du 1er semestre 2018. Des améliorations dans l'accès au TPIg sont donc nécessaires."},{"$f":"IFERROR(IF(INDEX('Coverage Indicators_1B'!X$11:X$100,MATCH($C15,'Coverage Indicators_1B'!$B$11:$B$100,0))=\"\",\"\",INDEX('Coverage Indicators_1B'!X$11:X$100,MATCH($C15,'Coverage Indicators_1B'!$B$11:$B$100,0))),\"\")","v":""},{"$f":"IFERROR(IF(INDEX('Coverage Indicators_1B'!Y$11:Y$100,MATCH($C15,'Coverage Indicators_1B'!$B$11:$B$100,0))=\"\",\"\",INDEX('Coverage Indicators_1B'!Y$11:Y$100,MATCH($C15,'Coverage Indicators_1B'!$B$11:$B$100,0))),\"\")","v":""},{"$f":"IFERROR(IF(INDEX('Coverage Indicators_1B'!Z$11:Z$100,MATCH($C15,'Coverage Indicators_1B'!$B$11:$B$100,0))=\"\",\"\",INDEX('Coverage Indicators_1B'!Z$11:Z$100,MATCH($C15,'Coverage Indicators_1B'!$B$11:$B$100,0))),\"\")","v":""},{"$f":"IFERROR(IF(INDEX('Coverage Indicators_1B'!AA$11:AA$100,MATCH($C15,'Coverage Indicators_1B'!$B$11:$B$100,0))=\"\",\"\",INDEX('Coverage Indicators_1B'!AA$11:AA$100,MATCH($C15,'Coverage Indicators_1B'!$B$11:$B$100,0))),\"\")","v":""},{"$f":"IFERROR(INDEX('Coverage Indicators_1B'!AB$11:AB$100,MATCH($C15,'Coverage Indicators_1B'!$B$11:$B$100,0)),\"\")","v":" "},{"$f":"IFERROR(IF(INDEX('Coverage Indicators_1B'!AC$11:AC$100,MATCH($C15,'Coverage Indicators_1B'!$B$11:$B$100,0))=\"\",\"\",INDEX('Coverage Indicators_1B'!AC$11:AC$100,MATCH($C15,'Coverage Indicators_1B'!$B$11:$B$100,0))),\"\")","v":""},{"$f":"IFERROR(IF(INDEX('Coverage Indicators_1B'!AD$11:AD$100,MATCH($C15,'Coverage Indicators_1B'!$B$11:$B$100,0))=\"\",\"\",INDEX('Coverage Indicators_1B'!AD$11:AD$100,MATCH($C15,'Coverage Indicators_1B'!$B$11:$B$100,0))),\"\")","v":""},{"$f":"IFERROR(INDEX('Coverage Indicators_1B'!AE$11:AE$100,MATCH($C15,'Coverage Indicators_1B'!$B$11:$B$100,0)),\"\")","v":"No Results Reported"},null,null,null,{"$f":"IFERROR(INDEX('Coverage Indicators_1B'!AI$11:AI$100,MATCH($C15,'Coverage Indicators_1B'!$B$11:$B$100,0)),\"\")","v":" "},{"$f":"IFERROR(INDEX('Coverage Indicators_1B'!AJ$11:AJ$100,MATCH($C15,'Coverage Indicators_1B'!$B$11:$B$100,0)),\"\")","v":0},{"$f":"IFERROR(INDEX('Coverage Indicators_1B'!AK$11:AK$100,MATCH($C15,'Coverage Indicators_1B'!$B$11:$B$100,0)),\"\")","v":"No Results Reported"},9,"No","Burundi",null,null,null,null,null,"Intervenciones de prevención específicas","Interventions de prévention spécifiques","Données rapportées par les BDS, S2"]
["a173600000BjYdrAAF",9,"Coverage9","RSSH: Health management information systems and M&E","M&E-1: Percentage of HMIS or other routine reporting units submitting timely reports according to national guidelines","M&E-1: Percentage of HMIS or other routine reporting units submitting timely reports according to national guidelines",null,"M&E-1: Pourcentage d’entités déclarantes présentant leurs rapports dans les délais selon les directives nationales","M&E-1: Porcentaje de unidades notificadoras de sistemas rutinarios de información en salud que presentan informes oportunamente conforme a las directrices nacionales",null,"National","N-Non-cumulative",false,951,951,100,"2016","HMIS",1090,1090,100,"Numerator: Number of National Health Information System (NHIS) entities or other routine reporting units submitting timely reports according to national guidelines\nDenominator: Total number of NHIS entities or other routine reporting units.\n\nThe numerator and denominator assumptions are based on the number of public and private health centers submitting monthly reports to the NHIS. \n\nThe health care facility reports are transmitted to the district on the 25th day of the month, following verification by the performance-based funding (PBF) verification committee. The district then inputs the reports in the DHIS 2 system and completes the verification process no later than the 5th day of the following month.\n\nFollowing the introduction of PBF, it stands to reason that health care facilities submit health data promptly.",{"$f":"IFERROR(IF(INDEX('Coverage Indicators_1B'!Q$11:Q$100,MATCH($C16,'Coverage Indicators_1B'!$B$11:$B$100,0))=\"\",\"\",INDEX('Coverage Indicators_1B'!Q$11:Q$100,MATCH($C16,'Coverage Indicators_1B'!$B$11:$B$100,0))),\"\")","v":927},{"$f":"IFERROR(IF(INDEX('Coverage Indicators_1B'!R$11:R$100,MATCH($C16,'Coverage Indicators_1B'!$B$11:$B$100,0))=\"\",\"\",INDEX('Coverage Indicators_1B'!R$11:R$100,MATCH($C16,'Coverage Indicators_1B'!$B$11:$B$100,0))),\"\")","v":1093},{"$f":"IFERROR(IF(INDEX('Coverage Indicators_1B'!S$11:S$100,MATCH($C16,'Coverage Indicators_1B'!$B$11:$B$100,0))=\"\",\"\",INDEX('Coverage Indicators_1B'!S$11:S$100,MATCH($C16,'Coverage Indicators_1B'!$B$11:$B$100,0))),\"\")","v":84.812442817932293},{"$f":"IFERROR(IF(INDEX('Coverage Indicators_1B'!T$11:T$100,MATCH($C16,'Coverage Indicators_1B'!$B$11:$B$100,0))=\"\",\"\",INDEX('Coverage Indicators_1B'!T$11:T$100,MATCH($C16,'Coverage Indicators_1B'!$B$11:$B$100,0))),\"\")","v":"HMIS"},{"$f":"IFERROR(INDEX('Coverage Indicators_1B'!U$11:U$100,MATCH($C16,'Coverage Indicators_1B'!$B$11:$B$100,0)),\"\")","v":0.84812442817932299},{"$f":"IFERROR(IF(INDEX('Coverage Indicators_1B'!V$11:V$100,MATCH($C16,'Coverage Indicators_1B'!$B$11:$B$100,0))=\"\",\"\",INDEX('Coverage Indicators_1B'!V$11:V$100,MATCH($C16,'Coverage Indicators_1B'!$B$11:$B$100,0))),\"\")","v":"Au premier semestre de 2018, le nombre de formations sanitaires opérationnelles, publics et privés, est de 1093. Selon les informations collectées dans DHIS2, une moyenne de 927 formations sanitaires ont transmis leurs rapports. \nLa méthodologie de calcul appliquée pour déterminer le nombre de formations sanitaires ayant transmis leurs rapports dans les delais a été faite la suivantes : \n- Extraction dans DHIS2 des sections contenant des informations relatives au paludisme uniquement;\n - Calcul de la moyenne des CDS ayant soumis à temps les rapports à temps pour chaque section relative au paludisme;\n\nOn note un taux de 84.8% de formations sanitaires ayant transmis leurs rapports dans les délais selon les directives nationales. La performance enregistrée pour le période couvert pour ce rapport est de 85%.\n\nConjointement avec le PNLP, nous envisageons la relance et l'identification des entités non déclarantes pour améliorer la performance de cet indicateur.\nSource des données : DHIS2"},{"$f":"IFERROR(IF(INDEX('Coverage Indicators_1B'!X$11:X$100,MATCH($C16,'Coverage Indicators_1B'!$B$11:$B$100,0))=\"\",\"\",INDEX('Coverage Indicators_1B'!X$11:X$100,MATCH($C16,'Coverage Indicators_1B'!$B$11:$B$100,0))),\"\")","v":""},{"$f":"IFERROR(IF(INDEX('Coverage Indicators_1B'!Y$11:Y$100,MATCH($C16,'Coverage Indicators_1B'!$B$11:$B$100,0))=\"\",\"\",INDEX('Coverage Indicators_1B'!Y$11:Y$100,MATCH($C16,'Coverage Indicators_1B'!$B$11:$B$100,0))),\"\")","v":""},{"$f":"IFERROR(IF(INDEX('Coverage Indicators_1B'!Z$11:Z$100,MATCH($C16,'Coverage Indicators_1B'!$B$11:$B$100,0))=\"\",\"\",INDEX('Coverage Indicators_1B'!Z$11:Z$100,MATCH($C16,'Coverage Indicators_1B'!$B$11:$B$100,0))),\"\")","v":""},{"$f":"IFERROR(IF(INDEX('Coverage Indicators_1B'!AA$11:AA$100,MATCH($C16,'Coverage Indicators_1B'!$B$11:$B$100,0))=\"\",\"\",INDEX('Coverage Indicators_1B'!AA$11:AA$100,MATCH($C16,'Coverage Indicators_1B'!$B$11:$B$100,0))),\"\")","v":""},{"$f":"IFERROR(INDEX('Coverage Indicators_1B'!AB$11:AB$100,MATCH($C16,'Coverage Indicators_1B'!$B$11:$B$100,0)),\"\")","v":" "},{"$f":"IFERROR(IF(INDEX('Coverage Indicators_1B'!AC$11:AC$100,MATCH($C16,'Coverage Indicators_1B'!$B$11:$B$100,0))=\"\",\"\",INDEX('Coverage Indicators_1B'!AC$11:AC$100,MATCH($C16,'Coverage Indicators_1B'!$B$11:$B$100,0))),\"\")","v":""},{"$f":"IFERROR(IF(INDEX('Coverage Indicators_1B'!AD$11:AD$100,MATCH($C16,'Coverage Indicators_1B'!$B$11:$B$100,0))=\"\",\"\",INDEX('Coverage Indicators_1B'!AD$11:AD$100,MATCH($C16,'Coverage Indicators_1B'!$B$11:$B$100,0))),\"\")","v":""},{"$f":"IFERROR(INDEX('Coverage Indicators_1B'!AE$11:AE$100,MATCH($C16,'Coverage Indicators_1B'!$B$11:$B$100,0)),\"\")","v":"No Results Reported"},null,null,null,{"$f":"IFERROR(INDEX('Coverage Indicators_1B'!AI$11:AI$100,MATCH($C16,'Coverage Indicators_1B'!$B$11:$B$100,0)),\"\")","v":" "},{"$f":"IFERROR(INDEX('Coverage Indicators_1B'!AJ$11:AJ$100,MATCH($C16,'Coverage Indicators_1B'!$B$11:$B$100,0)),\"\")","v":0},{"$f":"IFERROR(INDEX('Coverage Indicators_1B'!AK$11:AK$100,MATCH($C16,'Coverage Indicators_1B'!$B$11:$B$100,0)),\"\")","v":"No Results Reported"},10,"No","Burundi",null,null,null,null,null,"SSRS: Sistemas de información en salud y monitoreo y evaluación","Systèmes de santé résilients et pérennes : système de gestion de l'information sanitaire et suivi et évaluation","DSNIS"]
["a173600000BjYdsAAF",10,"Coverage10","RSSH: Health management information systems and M&E","M&E - other1: Percentage of CHWs having submitted their monthly reports in a timely manner, from the community to the health centres.",null,"M&E - other1: Percentage of CHWs having submitted their monthly reports in a timely manner, from the community to the health centres.",null,null,"M&E - autre1: Pourcentage des ASC ayant soumis leur rapport mensuel dans les délais de la communauté au centre de santé","Subnational","N-Non-cumulative",false,229,268,85.4,"2016","Data from the regional supervisors of CHWs (Caritas)",3696.65,4349,85,"Numerator: Number of CHWs implementing iCCM having submitted monthly reports, from community to health center, in the half-year period in the 30 health districts implementing iCCM.  \nDenominator: Number of CHWs implementing iCCM activities in 30 districts.\n\nAt end-2016, this intervention was only operational in four (Bubanza, Butezi, Mutaho and Mpanda) of the 12 districts in which the Global Fund funds iCCM. There were a total of 268 CHWs in these districts. Of these, 229 CHWs submitted timely reports. Caritas currently covers 12 districts, with 1,290 CHWs\n\nCaritas Burundi intends to support monitoring and evaluation activities in all 30 districts implementing iCCM from 2018 onwards (4,349 CHWs). The current targets are based on the following assumptions: 85 percent of CHWs will submit timely reports in 2018, 90 percent in 2019, and 90 percent in 2020. CHWs collect health data at the community level on a daily basis, compiling the data into monthly reports and submitting these reports to health centers via the health promotion technician (HPT) no later than the 5th day of the month following the month covered by the report.  The concept note includes plans for a monthly CHW meeting for this purpose\n\nThe health centers then compile these reports and include some of the data in their monthly reporting template, which they forward to the NHIS. Unfortunately, the NHIS is unable to disaggregate these figures to show which come from the community level.\n\nCHWs collect health data at the community level on a daily basis, compiling the data into monthly reports and submitting these reports to health centers via the health promotion technician (HPT) no later than the 5th day of the month following the month covered by the report.  The concept note includes plans for a monthly CHW meeting for this purpose. The health centers then compile these reports and include some of the data in their monthly reporting template, which they forward to the NHIS.\n\nBecause CHWs report on a monthly basis, this number will be the monthly average of CHWs submitting timely reports in each half-year period.",{"$f":"IFERROR(IF(INDEX('Coverage Indicators_1B'!Q$11:Q$100,MATCH($C17,'Coverage Indicators_1B'!$B$11:$B$100,0))=\"\",\"\",INDEX('Coverage Indicators_1B'!Q$11:Q$100,MATCH($C17,'Coverage Indicators_1B'!$B$11:$B$100,0))),\"\")","v":3207},{"$f":"IFERROR(IF(INDEX('Coverage Indicators_1B'!R$11:R$100,MATCH($C17,'Coverage Indicators_1B'!$B$11:$B$100,0))=\"\",\"\",INDEX('Coverage Indicators_1B'!R$11:R$100,MATCH($C17,'Coverage Indicators_1B'!$B$11:$B$100,0))),\"\")","v":4349},{"$f":"IFERROR(IF(INDEX('Coverage Indicators_1B'!S$11:S$100,MATCH($C17,'Coverage Indicators_1B'!$B$11:$B$100,0))=\"\",\"\",INDEX('Coverage Indicators_1B'!S$11:S$100,MATCH($C17,'Coverage Indicators_1B'!$B$11:$B$100,0))),\"\")","v":73.74108990572546},{"$f":"IFERROR(IF(INDEX('Coverage Indicators_1B'!T$11:T$100,MATCH($C17,'Coverage Indicators_1B'!$B$11:$B$100,0))=\"\",\"\",INDEX('Coverage Indicators_1B'!T$11:T$100,MATCH($C17,'Coverage Indicators_1B'!$B$11:$B$100,0))),\"\")","v":"HMIS"},{"$f":"IFERROR(INDEX('Coverage Indicators_1B'!U$11:U$100,MATCH($C17,'Coverage Indicators_1B'!$B$11:$B$100,0)),\"\")","v":0.86754223418500542},{"$f":"IFERROR(IF(INDEX('Coverage Indicators_1B'!V$11:V$100,MATCH($C17,'Coverage Indicators_1B'!$B$11:$B$100,0))=\"\",\"\",INDEX('Coverage Indicators_1B'!V$11:V$100,MATCH($C17,'Coverage Indicators_1B'!$B$11:$B$100,0))),\"\")","v":"L'indicateur tel qu'il est formulé dans le PF ne permet pas d'être  renseigné par les données collectées à travers DHIS2. Cet indicateur est renseigné a partir de la modification proposée par le SR Caritas à l'equipe pays mais non encore validé. Le PNUD va engager des discussions avec le FM pour cadrer l'indicateur avec ce qui est mesurable dans DHIS2; \n\nToutefois, les données mentionnées dans les cases résultats sont extraites à travers DHIS2. Le numérateur concerne les rapports mensuels des ASC soumis a travers les GASC  dans les delais pendant la période de janvier à juin 2018 dans les 30 DS sanitaires impl:iqués dans l'iCCM.\nLe dénominateur concerne l'effectif des ASCs des GASC fonctionnels pendant la période de janvier à juin 2018, soit 4349 ASCs présents et actifs dans 37 DS sanitaires qui font iCCM. Nous arrivons alors à un pourcentage de rapportage de 73.74%."},{"$f":"IFERROR(IF(INDEX('Coverage Indicators_1B'!X$11:X$100,MATCH($C17,'Coverage Indicators_1B'!$B$11:$B$100,0))=\"\",\"\",INDEX('Coverage Indicators_1B'!X$11:X$100,MATCH($C17,'Coverage Indicators_1B'!$B$11:$B$100,0))),\"\")","v":""},{"$f":"IFERROR(IF(INDEX('Coverage Indicators_1B'!Y$11:Y$100,MATCH($C17,'Coverage Indicators_1B'!$B$11:$B$100,0))=\"\",\"\",INDEX('Coverage Indicators_1B'!Y$11:Y$100,MATCH($C17,'Coverage Indicators_1B'!$B$11:$B$100,0))),\"\")","v":""},{"$f":"IFERROR(IF(INDEX('Coverage Indicators_1B'!Z$11:Z$100,MATCH($C17,'Coverage Indicators_1B'!$B$11:$B$100,0))=\"\",\"\",INDEX('Coverage Indicators_1B'!Z$11:Z$100,MATCH($C17,'Coverage Indicators_1B'!$B$11:$B$100,0))),\"\")","v":""},{"$f":"IFERROR(IF(INDEX('Coverage Indicators_1B'!AA$11:AA$100,MATCH($C17,'Coverage Indicators_1B'!$B$11:$B$100,0))=\"\",\"\",INDEX('Coverage Indicators_1B'!AA$11:AA$100,MATCH($C17,'Coverage Indicators_1B'!$B$11:$B$100,0))),\"\")","v":""},{"$f":"IFERROR(INDEX('Coverage Indicators_1B'!AB$11:AB$100,MATCH($C17,'Coverage Indicators_1B'!$B$11:$B$100,0)),\"\")","v":" "},{"$f":"IFERROR(IF(INDEX('Coverage Indicators_1B'!AC$11:AC$100,MATCH($C17,'Coverage Indicators_1B'!$B$11:$B$100,0))=\"\",\"\",INDEX('Coverage Indicators_1B'!AC$11:AC$100,MATCH($C17,'Coverage Indicators_1B'!$B$11:$B$100,0))),\"\")","v":""},{"$f":"IFERROR(IF(INDEX('Coverage Indicators_1B'!AD$11:AD$100,MATCH($C17,'Coverage Indicators_1B'!$B$11:$B$100,0))=\"\",\"\",INDEX('Coverage Indicators_1B'!AD$11:AD$100,MATCH($C17,'Coverage Indicators_1B'!$B$11:$B$100,0))),\"\")","v":""},{"$f":"IFERROR(INDEX('Coverage Indicators_1B'!AE$11:AE$100,MATCH($C17,'Coverage Indicators_1B'!$B$11:$B$100,0)),\"\")","v":"No Results Reported"},null,null,null,{"$f":"IFERROR(INDEX('Coverage Indicators_1B'!AI$11:AI$100,MATCH($C17,'Coverage Indicators_1B'!$B$11:$B$100,0)),\"\")","v":" "},{"$f":"IFERROR(INDEX('Coverage Indicators_1B'!AJ$11:AJ$100,MATCH($C17,'Coverage Indicators_1B'!$B$11:$B$100,0)),\"\")","v":0},{"$f":"IFERROR(INDEX('Coverage Indicators_1B'!AK$11:AK$100,MATCH($C17,'Coverage Indicators_1B'!$B$11:$B$100,0)),\"\")","v":"No Results Reported"},11,"No","Burundi",null,null,null,null,null,"SSRS: Sistemas de información en salud y monitoreo y evaluación","Systèmes de santé résilients et pérennes : système de gestion de l'information sanitaire et suivi et évaluation","Données des encadreurs régionaux des ASC (Caritas)"]
[null,null,null,null,null,null,null,null,null,null,null,null,null,null,null,null,null,null,null,null,null,null,null,null,null,null,null,null,null,null,null,null,null,null,null,null,null,null,null,null,null,null,null,{"$f":"IFERROR(IF(M18=\"TRUE\",\"Yes\",\"No\"),\"\")","v":"No"}]

{"sheet":"Disaggregation_1B","index":11,"n_rows":150,"n_cols":28,"rows_kept":150,"cut":false,"hidden":false,"merged":[[8,27,9,27],[8,28,9,28],[8,17,9,17],[8,18,8,20],[8,21,9,21],[8,22,9,22],[8,23,9,23],[8,24,8,26],[4,2,4,22],[8,2,9,2],[8,3,9,3],[8,4,9,4],[8,5,9,5],[8,6,8,10],[8,12,8,14],[8,15,9,15],[8,16,9,16],[8,11,9,11]]}
[null,null,"Progress Report with Disbursement Request"]
[]
[null,null,"Section 1:  Programmatic Information"]
[]
[null,null,"• Guidance: The table contains those Coverage indicators that are:\n1. Included in the Grant Confirmation/Agreement through the latest signed Performance Framework\n2. Are due for reporting in the current reporting period;\n3. According to the Global Fund Modular Framework require disaggregation\n\n• Data validation checks are being performed on entered data in the columns. Any issues identified that are not resolved should be explained"]
[]
[null,null,"B- Coverage Indicators - Disaggregation"]
[]
[null,null,{"$f":"VLOOKUP(Translations!B118,Translations!B3:H508,4,0)","v":"Module"},{"$f":"VLOOKUP(Translations!B119,Translations!B3:H508,4,0)","v":"Coverage Indicator"},{"$f":"VLOOKUP(Translations!B120,Translations!B3:H508,4,0)","v":"Disaggregation"},{"$f":"VLOOKUP(Translations!B121,Translations!B3:H508,4,0)","v":"Category"},{"$f":"VLOOKUP(Translations!B122,Translations!B3:H508,4,0)","v":"Baseline"},null,null,null,null,"Country",{"$f":"VLOOKUP(Translations!B128,Translations!B3:H508,4,0)","v":"Results"},null,null,{"$f":"VLOOKUP(Translations!B127,Translations!B3:H508,4,0)","v":"Source"},{"$f":"VLOOKUP(Translations!B133,Translations!B3:H508,4,0)","v":"Comments"},null,"Verified Result",null,null,"Source","Comments",null,"Global Fund Validated Result",null,null,"Country Team comments on validated results"]
[null,null,null,null,null,null,"N#","D#","%",{"$f":"VLOOKUP(Translations!B126,Translations!B3:H508,4,0)","v":"Year"},{"$f":"VLOOKUP(Translations!B127,Translations!B3:H508,4,0)","v":"Source"},null,"N#","D#","%",null,null,null,"N#","D#","%",null,null,null,"N#","D#","%"]
[{"$f":"A10+1","v":1},{"$f":"\"Coverage\"&A11","v":"Coverage1"},{"$f":"IFERROR(INDEX('Disaggregation1B_Import-Export'!D$8:D$218,MATCH($B11,'Disaggregation1B_Import-Export'!$C$8:$C$218,0)),\"\")","v":"Case management"},{"$f":"IFERROR(INDEX('Disaggregation1B_Import-Export'!AF$8:AF$235,MATCH($B11,'Disaggregation1B_Import-Export'!$C$8:$C$235,0)),\"\")","v":"CM-1a(M): Proportion of suspected malaria cases that receive a parasitological test at public sector health facilities"},{"$f":"IFERROR(IF(INDEX('Disaggregation1B_Import-Export'!AG$8:AG$218,MATCH($B11,'Disaggregation1B_Import-Export'!$C$8:$C$218,0))=\"\",\"\",INDEX('Disaggregation1B_Import-Export'!AG$8:AG$218,MATCH($B11,'Disaggregation1B_Import-Export'!$C$8:$C$218,0))),\"\")","v":"U5"},{"$f":"IFERROR(IF(INDEX('Disaggregation1B_Import-Export'!AH$8:AH$218,MATCH($B11,'Disaggregation1B_Import-Export'!$C$8:$C$218,0))=\"\",\"\",INDEX('Disaggregation1B_Import-Export'!AH$8:AH$218,MATCH($B11,'Disaggregation1B_Import-Export'!$C$8:$C$218,0))),\"\")","v":"Age"},{"$f":"IFERROR(IF(INDEX('Disaggregation1B_Import-Export'!H$8:H$218,MATCH($B11,'Disaggregation1B_Import-Export'!$C$8:$C$218,0))=\"\",\"\",INDEX('Disaggregation1B_Import-Export'!H$8:H$218,MATCH($B11,'Disaggregation1B_Import-Export'!$C$8:$C$218,0))),\"\")","v":0},{"$f":"IFERROR(IF(INDEX('Disaggregation1B_Import-Export'!I$8:I$218,MATCH($B11,'Disaggregation1B_Import-Export'!$C$8:$C$218,0))=\"\",\"\",INDEX('Disaggregation1B_Import-Export'!I$8:I$218,MATCH($B11,'Disaggregation1B_Import-Export'!$C$8:$C$218,0))),\"\")","v":0},{"$f":"IFERROR(IF(INDEX('Disaggregation1B_Import-Export'!J$8:J$218,MATCH($B11,'Disaggregation1B_Import-Export'!$C$8:$C$218,0))=\"\",\"\",INDEX('Disaggregation1B_Import-Export'!J$8:J$218,MATCH($B11,'Disaggregation1B_Import-Export'!$C$8:$C$218,0))),\"\")","v":"0.0"},{"$f":"IFERROR(IF(INDEX('Disaggregation1B_Import-Export'!K$8:K$218,MATCH($B11,'Disaggregation1B_Import-Export'!$C$8:$C$218,0))=\"\",\"\",INDEX('Disaggregation1B_Import-Export'!K$8:K$218,MATCH($B11,'Disaggregation1B_Import-Export'!$C$8:$C$218,0))),\"\")","v":""},{"$f":"IFERROR(IF(INDEX('Disaggregation1B_Import-Export'!L$8:L$218,MATCH($B11,'Disaggregation1B_Import-Export'!$C$8:$C$218,0))=\"\",\"\",INDEX('Disaggregation1B_Import-Export'!L$8:L$218,MATCH($B11,'Disaggregation1B_Import-Export'!$C$8:$C$218,0))),\"\")","v":""},{"$f":"IFERROR(IF(INDEX('Disaggregation1B_Import-Export'!AQ$8:AQ$218,MATCH($B11,'Disaggregation1B_Import-Export'!$C$8:$C$218,0))=\"\",\"\",INDEX('Disaggregation1B_Import-Export'!AQ$8:AQ$218,MATCH($B11,'Disaggregation1B_Import-Export'!$C$8:$C$218,0))),\"\")","v":"Burundi"},null,null,{"$f":"IFERROR((M11/N11)*100,\"\")","v":""},null,"Pour le laboratoire, le canevas de rapport  ne précise pas l'âge",null,null,null,{"$f":"IFERROR((S11/T11)*100,\"\")","v":""},null,null,null,null,null,{"$f":"IFERROR(Y11/Z11,\"\")","v":""}]
[{"$f":"A11+1","v":2},{"$f":"\"Coverage\"&A12","v":"Coverage2"},{"$f":"IFERROR(INDEX('Disaggregation1B_Import-Export'!D$8:D$218,MATCH($B12,'Disaggregation1B_Import-Export'!$C$8:$C$218,0)),\"\")","v":"Case management"},{"$f":"IFERROR(INDEX('Disaggregation1B_Import-Export'!AF$8:AF$235,MATCH($B12,'Disaggregation1B_Import-Export'!$C$8:$C$235,0)),\"\")","v":"CM-1a(M): Proportion of suspected malaria cases that receive a parasitological test at public sector health facilities"},{"$f":"IFERROR(IF(INDEX('Disaggregation1B_Import-Export'!AG$8:AG$218,MATCH($B12,'Disaggregation1B_Import-Export'!$C$8:$C$218,0))=\"\",\"\",INDEX('Disaggregation1B_Import-Export'!AG$8:AG$218,MATCH($B12,'Disaggregation1B_Import-Export'!$C$8:$C$218,0))),\"\")","v":"5+"},{"$f":"IFERROR(IF(INDEX('Disaggregation1B_Import-Export'!AH$8:AH$218,MATCH($B12,'Disaggregation1B_Import-Export'!$C$8:$C$218,0))=\"\",\"\",INDEX('Disaggregation1B_Import-Export'!AH$8:AH$218,MATCH($B12,'Disaggregation1B_Import-Export'!$C$8:$C$218,0))),\"\")","v":"Age"},{"$f":"IFERROR(IF(INDEX('Disaggregation1B_Import-Export'!H$8:H$218,MATCH($B12,'Disaggregation1B_Import-Export'!$C$8:$C$218,0))=\"\",\"\",INDEX('Disaggregation1B_Import-Export'!H$8:H$218,MATCH($B12,'Disaggregation1B_Import-Export'!$C$8:$C$218,0))),\"\")","v":0},{"$f":"IFERROR(IF(INDEX('Disaggregation1B_Import-Export'!I$8:I$218,MATCH($B12,'Disaggregation1B_Import-Export'!$C$8:$C$218,0))=\"\",\"\",INDEX('Disaggregation1B_Import-Export'!I$8:I$218,MATCH($B12,'Disaggregation1B_Import-Export'!$C$8:$C$218,0))),\"\")","v":0},{"$f":"IFERROR(IF(INDEX('Disaggregation1B_Import-Export'!J$8:J$218,MATCH($B12,'Disaggregation1B_Import-Export'!$C$8:$C$218,0))=\"\",\"\",INDEX('Disaggregation1B_Import-Export'!J$8:J$218,MATCH($B12,'Disaggregation1B_Import-Export'!$C$8:$C$218,0))),\"\")","v":"0.0"},{"$f":"IFERROR(IF(INDEX('Disaggregation1B_Import-Export'!K$8:K$218,MATCH($B12,'Disaggregation1B_Import-Export'!$C$8:$C$218,0))=\"\",\"\",INDEX('Disaggregation1B_Import-Export'!K$8:K$218,MATCH($B12,'Disaggregation1B_Import-Export'!$C$8:$C$218,0))),\"\")","v":""},{"$f":"IFERROR(IF(INDEX('Disaggregation1B_Import-Export'!L$8:L$218,MATCH($B12,'Disaggregation1B_Import-Export'!$C$8:$C$218,0))=\"\",\"\",INDEX('Disaggregation1B_Import-Export'!L$8:L$218,MATCH($B12,'Disaggregation1B_Import-Export'!$C$8:$C$218,0))),\"\")","v":""},{"$f":"IFERROR(IF(INDEX('Disaggregation1B_Import-Export'!AQ$8:AQ$218,MATCH($B12,'Disaggregation1B_Import-Export'!$C$8:$C$218,0))=\"\",\"\",INDEX('Disaggregation1B_Import-Export'!AQ$8:AQ$218,MATCH($B12,'Disaggregation1B_Import-Export'!$C$8:$C$218,0))),\"\")","v":"Burundi"},null,null,"",null,"Pour le laboratoire, le canevas de rapport  ne précise pas l'âge",null,null,null,{"$f":"IFERROR((S12/T12)*100,\"\")","v":""},null,null,null,null,null,{"$f":"IFERROR(Y12/Z12,\"\")","v":""}]
[3,"Coverage3",{"$f":"IFERROR(INDEX('Disaggregation1B_Import-Export'!D$8:D$218,MATCH($B13,'Disaggregation1B_Import-Export'!$C$8:$C$218,0)),\"\")","v":"Case management"},{"$f":"IFERROR(INDEX('Disaggregation1B_Import-Export'!AF$8:AF$235,MATCH($B13,'Disaggregation1B_Import-Export'!$C$8:$C$235,0)),\"\")","v":"CM-1a(M): Proportion of suspected malaria cases that receive a parasitological test at public sector health facilities"},{"$f":"IFERROR(IF(INDEX('Disaggregation1B_Import-Export'!AG$8:AG$218,MATCH($B13,'Disaggregation1B_Import-Export'!$C$8:$C$218,0))=\"\",\"\",INDEX('Disaggregation1B_Import-Export'!AG$8:AG$218,MATCH($B13,'Disaggregation1B_Import-Export'!$C$8:$C$218,0))),\"\")","v":"Microscopy"},{"$f":"IFERROR(IF(INDEX('Disaggregation1B_Import-Export'!AH$8:AH$218,MATCH($B13,'Disaggregation1B_Import-Export'!$C$8:$C$218,0))=\"\",\"\",INDEX('Disaggregation1B_Import-Export'!AH$8:AH$218,MATCH($B13,'Disaggregation1B_Import-Export'!$C$8:$C$218,0))),\"\")","v":"Type of testing"},{"$f":"IFERROR(IF(INDEX('Disaggregation1B_Import-Export'!H$8:H$218,MATCH($B13,'Disaggregation1B_Import-Export'!$C$8:$C$218,0))=\"\",\"\",INDEX('Disaggregation1B_Import-Export'!H$8:H$218,MATCH($B13,'Disaggregation1B_Import-Export'!$C$8:$C$218,0))),\"\")","v":3441302},{"$f":"IFERROR(IF(INDEX('Disaggregation1B_Import-Export'!I$8:I$218,MATCH($B13,'Disaggregation1B_Import-Export'!$C$8:$C$218,0))=\"\",\"\",INDEX('Disaggregation1B_Import-Export'!I$8:I$218,MATCH($B13,'Disaggregation1B_Import-Export'!$C$8:$C$218,0))),\"\")","v":2199399},{"$f":"IFERROR(IF(INDEX('Disaggregation1B_Import-Export'!J$8:J$218,MATCH($B13,'Disaggregation1B_Import-Export'!$C$8:$C$218,0))=\"\",\"\",INDEX('Disaggregation1B_Import-Export'!J$8:J$218,MATCH($B13,'Disaggregation1B_Import-Export'!$C$8:$C$218,0))),\"\")","v":"1.6"},{"$f":"IFERROR(IF(INDEX('Disaggregation1B_Import-Export'!K$8:K$218,MATCH($B13,'Disaggregation1B_Import-Export'!$C$8:$C$218,0))=\"\",\"\",INDEX('Disaggregation1B_Import-Export'!K$8:K$218,MATCH($B13,'Disaggregation1B_Import-Export'!$C$8:$C$218,0))),\"\")","v":"2016"},{"$f":"IFERROR(IF(INDEX('Disaggregation1B_Import-Export'!L$8:L$218,MATCH($B13,'Disaggregation1B_Import-Export'!$C$8:$C$218,0))=\"\",\"\",INDEX('Disaggregation1B_Import-Export'!L$8:L$218,MATCH($B13,'Disaggregation1B_Import-Export'!$C$8:$C$218,0))),\"\")","v":"DHIS2"},{"$f":"IFERROR(IF(INDEX('Disaggregation1B_Import-Export'!AQ$8:AQ$218,MATCH($B13,'Disaggregation1B_Import-Export'!$C$8:$C$218,0))=\"\",\"\",INDEX('Disaggregation1B_Import-Export'!AQ$8:AQ$218,MATCH($B13,'Disaggregation1B_Import-Export'!$C$8:$C$218,0))),\"\")","v":"Burundi"},1204788,4876942,24.70375903588765,null,"Sur un total de 4 876 942 cas ayant été testés, 24.7% de ces cas ont été diagnostiqués par microscopie",null,null,null,"",null,null,null,null,null,""]
[4,"Coverage4",{"$f":"IFERROR(INDEX('Disaggregation1B_Import-Export'!D$8:D$218,MATCH($B14,'Disaggregation1B_Import-Export'!$C$8:$C$218,0)),\"\")","v":"Case management"},{"$f":"IFERROR(INDEX('Disaggregation1B_Import-Export'!AF$8:AF$235,MATCH($B14,'Disaggregation1B_Import-Export'!$C$8:$C$235,0)),\"\")","v":"CM-1a(M): Proportion of suspected malaria cases that receive a parasitological test at public sector health facilities"},{"$f":"IFERROR(IF(INDEX('Disaggregation1B_Import-Export'!AG$8:AG$218,MATCH($B14,'Disaggregation1B_Import-Export'!$C$8:$C$218,0))=\"\",\"\",INDEX('Disaggregation1B_Import-Export'!AG$8:AG$218,MATCH($B14,'Disaggregation1B_Import-Export'!$C$8:$C$218,0))),\"\")","v":"Rapid diagnostic test"},{"$f":"IFERROR(IF(INDEX('Disaggregation1B_Import-Export'!AH$8:AH$218,MATCH($B14,'Disaggregation1B_Import-Export'!$C$8:$C$218,0))=\"\",\"\",INDEX('Disaggregation1B_Import-Export'!AH$8:AH$218,MATCH($B14,'Disaggregation1B_Import-Export'!$C$8:$C$218,0))),\"\")","v":"Type of testing"},{"$f":"IFERROR(IF(INDEX('Disaggregation1B_Import-Export'!H$8:H$218,MATCH($B14,'Disaggregation1B_Import-Export'!$C$8:$C$218,0))=\"\",\"\",INDEX('Disaggregation1B_Import-Export'!H$8:H$218,MATCH($B14,'Disaggregation1B_Import-Export'!$C$8:$C$218,0))),\"\")","v":8047074},{"$f":"IFERROR(IF(INDEX('Disaggregation1B_Import-Export'!I$8:I$218,MATCH($B14,'Disaggregation1B_Import-Export'!$C$8:$C$218,0))=\"\",\"\",INDEX('Disaggregation1B_Import-Export'!I$8:I$218,MATCH($B14,'Disaggregation1B_Import-Export'!$C$8:$C$218,0))),\"\")","v":8797595},{"$f":"IFERROR(IF(INDEX('Disaggregation1B_Import-Export'!J$8:J$218,MATCH($B14,'Disaggregation1B_Import-Export'!$C$8:$C$218,0))=\"\",\"\",INDEX('Disaggregation1B_Import-Export'!J$8:J$218,MATCH($B14,'Disaggregation1B_Import-Export'!$C$8:$C$218,0))),\"\")","v":"0.9"},{"$f":"IFERROR(IF(INDEX('Disaggregation1B_Import-Export'!K$8:K$218,MATCH($B14,'Disaggregation1B_Import-Export'!$C$8:$C$218,0))=\"\",\"\",INDEX('Disaggregation1B_Import-Export'!K$8:K$218,MATCH($B14,'Disaggregation1B_Import-Export'!$C$8:$C$218,0))),\"\")","v":"2016"},{"$f":"IFERROR(IF(INDEX('Disaggregation1B_Import-Export'!L$8:L$218,MATCH($B14,'Disaggregation1B_Import-Export'!$C$8:$C$218,0))=\"\",\"\",INDEX('Disaggregation1B_Import-Export'!L$8:L$218,MATCH($B14,'Disaggregation1B_Import-Export'!$C$8:$C$218,0))),\"\")","v":"DHIS2"},{"$f":"IFERROR(IF(INDEX('Disaggregation1B_Import-Export'!AQ$8:AQ$218,MATCH($B14,'Disaggregation1B_Import-Export'!$C$8:$C$218,0))=\"\",\"\",INDEX('Disaggregation1B_Import-Export'!AQ$8:AQ$218,MATCH($B14,'Disaggregation1B_Import-Export'!$C$8:$C$218,0))),\"\")","v":"Burundi"},3672154,4876942,75.296240964112343,null,"Sur un total de 4 876 942 cas ayant été testés, 75.2% de ces cas ont été diagnostiqués par TDR",null,null,null,"",null,null,null,null,null,""]
[5,"Coverage5",{"$f":"IFERROR(INDEX('Disaggregation1B_Import-Export'!D$8:D$218,MATCH($B15,'Disaggregation1B_Import-Export'!$C$8:$C$218,0)),\"\")","v":"Case management"},{"$f":"IFERROR(INDEX('Disaggregation1B_Import-Export'!AF$8:AF$235,MATCH($B15,'Disaggregation1B_Import-Export'!$C$8:$C$235,0)),\"\")","v":"CM-1b(M): Proportion of suspected malaria cases that receive a parasitological test in the community"},{"$f":"IFERROR(IF(INDEX('Disaggregation1B_Import-Export'!AG$8:AG$218,MATCH($B15,'Disaggregation1B_Import-Export'!$C$8:$C$218,0))=\"\",\"\",INDEX('Disaggregation1B_Import-Export'!AG$8:AG$218,MATCH($B15,'Disaggregation1B_Import-Export'!$C$8:$C$218,0))),\"\")","v":"U5"},{"$f":"IFERROR(IF(INDEX('Disaggregation1B_Import-Export'!AH$8:AH$218,MATCH($B15,'Disaggregation1B_Import-Export'!$C$8:$C$218,0))=\"\",\"\",INDEX('Disaggregation1B_Import-Export'!AH$8:AH$218,MATCH($B15,'Disaggregation1B_Import-Export'!$C$8:$C$218,0))),\"\")","v":"Age"},{"$f":"IFERROR(IF(INDEX('Disaggregation1B_Import-Export'!H$8:H$218,MATCH($B15,'Disaggregation1B_Import-Export'!$C$8:$C$218,0))=\"\",\"\",INDEX('Disaggregation1B_Import-Export'!H$8:H$218,MATCH($B15,'Disaggregation1B_Import-Export'!$C$8:$C$218,0))),\"\")","v":0},{"$f":"IFERROR(IF(INDEX('Disaggregation1B_Import-Export'!I$8:I$218,MATCH($B15,'Disaggregation1B_Import-Export'!$C$8:$C$218,0))=\"\",\"\",INDEX('Disaggregation1B_Import-Export'!I$8:I$218,MATCH($B15,'Disaggregation1B_Import-Export'!$C$8:$C$218,0))),\"\")","v":0},{"$f":"IFERROR(IF(INDEX('Disaggregation1B_Import-Export'!J$8:J$218,MATCH($B15,'Disaggregation1B_Import-Export'!$C$8:$C$218,0))=\"\",\"\",INDEX('Disaggregation1B_Import-Export'!J$8:J$218,MATCH($B15,'Disaggregation1B_Import-Export'!$C$8:$C$218,0))),\"\")","v":"0.0"},{"$f":"IFERROR(IF(INDEX('Disaggregation1B_Import-Export'!K$8:K$218,MATCH($B15,'Disaggregation1B_Import-Export'!$C$8:$C$218,0))=\"\",\"\",INDEX('Disaggregation1B_Import-Export'!K$8:K$218,MATCH($B15,'Disaggregation1B_Import-Export'!$C$8:$C$218,0))),\"\")","v":""},{"$f":"IFERROR(IF(INDEX('Disaggregation1B_Import-Export'!L$8:L$218,MATCH($B15,'Disaggregation1B_Import-Export'!$C$8:$C$218,0))=\"\",\"\",INDEX('Disaggregation1B_Import-Export'!L$8:L$218,MATCH($B15,'Disaggregation1B_Import-Export'!$C$8:$C$218,0))),\"\")","v":""},{"$f":"IFERROR(IF(INDEX('Disaggregation1B_Import-Export'!AQ$8:AQ$218,MATCH($B15,'Disaggregation1B_Import-Export'!$C$8:$C$218,0))=\"\",\"\",INDEX('Disaggregation1B_Import-Export'!AQ$8:AQ$218,MATCH($B15,'Disaggregation1B_Import-Export'!$C$8:$C$218,0))),\"\")","v":"Burundi"},329235,513820,64.075940991008522,null,"Selon les directives nationales, ce sont que les enfants U5 qui sont ciblés par la stratégie de prise en charge communautaire du paludisme simple dans le cadre iCCM. Tous les cas suspects de paludisme dans la communauté ont été diagnostiqués par TDR. ",null,null,null,"",null,null,null,null,null,""]
[6,"Coverage6",{"$f":"IFERROR(INDEX('Disaggregation1B_Import-Export'!D$8:D$218,MATCH($B16,'Disaggregation1B_Import-Export'!$C$8:$C$218,0)),\"\")","v":"Case management"},{"$f":"IFERROR(INDEX('Disaggregation1B_Import-Export'!AF$8:AF$235,MATCH($B16,'Disaggregation1B_Import-Export'!$C$8:$C$235,0)),\"\")","v":"CM-1b(M): Proportion of suspected malaria cases that receive a parasitological test in the community"},{"$f":"IFERROR(IF(INDEX('Disaggregation1B_Import-Export'!AG$8:AG$218,MATCH($B16,'Disaggregation1B_Import-Export'!$C$8:$C$218,0))=\"\",\"\",INDEX('Disaggregation1B_Import-Export'!AG$8:AG$218,MATCH($B16,'Disaggregation1B_Import-Export'!$C$8:$C$218,0))),\"\")","v":"5+"},{"$f":"IFERROR(IF(INDEX('Disaggregation1B_Import-Export'!AH$8:AH$218,MATCH($B16,'Disaggregation1B_Import-Export'!$C$8:$C$218,0))=\"\",\"\",INDEX('Disaggregation1B_Import-Export'!AH$8:AH$218,MATCH($B16,'Disaggregation1B_Import-Export'!$C$8:$C$218,0))),\"\")","v":"Age"},{"$f":"IFERROR(IF(INDEX('Disaggregation1B_Import-Export'!H$8:H$218,MATCH($B16,'Disaggregation1B_Import-Export'!$C$8:$C$218,0))=\"\",\"\",INDEX('Disaggregation1B_Import-Export'!H$8:H$218,MATCH($B16,'Disaggregation1B_Import-Export'!$C$8:$C$218,0))),\"\")","v":0},{"$f":"IFERROR(IF(INDEX('Disaggregation1B_Import-Export'!I$8:I$218,MATCH($B16,'Disaggregation1B_Import-Export'!$C$8:$C$218,0))=\"\",\"\",INDEX('Disaggregation1B_Import-Export'!I$8:I$218,MATCH($B16,'Disaggregation1B_Import-Export'!$C$8:$C$218,0))),\"\")","v":0},{"$f":"IFERROR(IF(INDEX('Disaggregation1B_Import-Export'!J$8:J$218,MATCH($B16,'Disaggregation1B_Import-Export'!$C$8:$C$218,0))=\"\",\"\",INDEX('Disaggregation1B_Import-Export'!J$8:J$218,MATCH($B16,'Disaggregation1B_Import-Export'!$C$8:$C$218,0))),\"\")","v":"0.0"},{"$f":"IFERROR(IF(INDEX('Disaggregation1B_Import-Export'!K$8:K$218,MATCH($B16,'Disaggregation1B_Import-Export'!$C$8:$C$218,0))=\"\",\"\",INDEX('Disaggregation1B_Import-Export'!K$8:K$218,MATCH($B16,'Disaggregation1B_Import-Export'!$C$8:$C$218,0))),\"\")","v":""},{"$f":"IFERROR(IF(INDEX('Disaggregation1B_Import-Export'!L$8:L$218,MATCH($B16,'Disaggregation1B_Import-Export'!$C$8:$C$218,0))=\"\",\"\",INDEX('Disaggregation1B_Import-Export'!L$8:L$218,MATCH($B16,'Disaggregation1B_Import-Export'!$C$8:$C$218,0))),\"\")","v":""},{"$f":"IFERROR(IF(INDEX('Disaggregation1B_Import-Export'!AQ$8:AQ$218,MATCH($B16,'Disaggregation1B_Import-Export'!$C$8:$C$218,0))=\"\",\"\",INDEX('Disaggregation1B_Import-Export'!AQ$8:AQ$218,MATCH($B16,'Disaggregation1B_Import-Export'!$C$8:$C$218,0))),\"\")","v":"Burundi"},null,null,"",null,"Selon les directives nationales, ce sont les enfants U5 qui sont ciblés par la stratégie de prise en charge communautaire du paludisme simple  dans le cadre ICCM . Tous les cas suspects de paludisme dans la communauté doivent être soumis uniquement au test par TDR dans la communauté. ",null,null,null,"",null,null,null,null,null,""]
[7,"Coverage7",{"$f":"IFERROR(INDEX('Disaggregation1B_Import-Export'!D$8:D$218,MATCH($B17,'Disaggregation1B_Import-Export'!$C$8:$C$218,0)),\"\")","v":"Case management"},{"$f":"IFERROR(INDEX('Disaggregation1B_Import-Export'!AF$8:AF$235,MATCH($B17,'Disaggregation1B_Import-Export'!$C$8:$C$235,0)),\"\")","v":"CM-1b(M): Proportion of suspected malaria cases that receive a parasitological test in the community"},{"$f":"IFERROR(IF(INDEX('Disaggregation1B_Import-Export'!AG$8:AG$218,MATCH($B17,'Disaggregation1B_Import-Export'!$C$8:$C$218,0))=\"\",\"\",INDEX('Disaggregation1B_Import-Export'!AG$8:AG$218,MATCH($B17,'Disaggregation1B_Import-Export'!$C$8:$C$218,0))),\"\")","v":"Microscopy"},{"$f":"IFERROR(IF(INDEX('Disaggregation1B_Import-Export'!AH$8:AH$218,MATCH($B17,'Disaggregation1B_Import-Export'!$C$8:$C$218,0))=\"\",\"\",INDEX('Disaggregation1B_Import-Export'!AH$8:AH$218,MATCH($B17,'Disaggregation1B_Import-Export'!$C$8:$C$218,0))),\"\")","v":"Type of testing"},{"$f":"IFERROR(IF(INDEX('Disaggregation1B_Import-Export'!H$8:H$218,MATCH($B17,'Disaggregation1B_Import-Export'!$C$8:$C$218,0))=\"\",\"\",INDEX('Disaggregation1B_Import-Export'!H$8:H$218,MATCH($B17,'Disaggregation1B_Import-Export'!$C$8:$C$218,0))),\"\")","v":0},{"$f":"IFERROR(IF(INDEX('Disaggregation1B_Import-Export'!I$8:I$218,MATCH($B17,'Disaggregation1B_Import-Export'!$C$8:$C$218,0))=\"\",\"\",INDEX('Disaggregation1B_Import-Export'!I$8:I$218,MATCH($B17,'Disaggregation1B_Import-Export'!$C$8:$C$218,0))),\"\")","v":0},{"$f":"IFERROR(IF(INDEX('Disaggregation1B_Import-Export'!J$8:J$218,MATCH($B17,'Disaggregation1B_Import-Export'!$C$8:$C$218,0))=\"\",\"\",INDEX('Disaggregation1B_Import-Export'!J$8:J$218,MATCH($B17,'Disaggregation1B_Import-Export'!$C$8:$C$218,0))),\"\")","v":"0.0"},{"$f":"IFERROR(IF(INDEX('Disaggregation1B_Import-Export'!K$8:K$218,MATCH($B17,'Disaggregation1B_Import-Export'!$C$8:$C$218,0))=\"\",\"\",INDEX('Disaggregation1B_Import-Export'!K$8:K$218,MATCH($B17,'Disaggregation1B_Import-Export'!$C$8:$C$218,0))),\"\")","v":""},{"$f":"IFERROR(IF(INDEX('Disaggregation1B_Import-Export'!L$8:L$218,MATCH($B17,'Disaggregation1B_Import-Export'!$C$8:$C$218,0))=\"\",\"\",INDEX('Disaggregation1B_Import-Export'!L$8:L$218,MATCH($B17,'Disaggregation1B_Import-Export'!$C$8:$C$218,0))),\"\")","v":""},{"$f":"IFERROR(IF(INDEX('Disaggregation1B_Import-Export'!AQ$8:AQ$218,MATCH($B17,'Disaggregation1B_Import-Export'!$C$8:$C$218,0))=\"\",\"\",INDEX('Disaggregation1B_Import-Export'!AQ$8:AQ$218,MATCH($B17,'Disaggregation1B_Import-Export'!$C$8:$C$218,0))),\"\")","v":"Burundi"},null,null,"",null,"Tous les cas suspects de paludisme dans la communauté ayant été diagnostiqués ont ete soumis uniquement au test par TDR.",null,null,null,"",null,null,null,null,null,""]
[8,"Coverage8",{"$f":"IFERROR(INDEX('Disaggregation1B_Import-Export'!D$8:D$218,MATCH($B18,'Disaggregation1B_Import-Export'!$C$8:$C$218,0)),\"\")","v":"Case management"},{"$f":"IFERROR(INDEX('Disaggregation1B_Import-Export'!AF$8:AF$235,MATCH($B18,'Disaggregation1B_Import-Export'!$C$8:$C$235,0)),\"\")","v":"CM-1b(M): Proportion of suspected malaria cases that receive a parasitological test in the community"},{"$f":"IFERROR(IF(INDEX('Disaggregation1B_Import-Export'!AG$8:AG$218,MATCH($B18,'Disaggregation1B_Import-Export'!$C$8:$C$218,0))=\"\",\"\",INDEX('Disaggregation1B_Import-Export'!AG$8:AG$218,MATCH($B18,'Disaggregation1B_Import-Export'!$C$8:$C$218,0))),\"\")","v":"Rapid diagnostic test"},{"$f":"IFERROR(IF(INDEX('Disaggregation1B_Import-Export'!AH$8:AH$218,MATCH($B18,'Disaggregation1B_Import-Export'!$C$8:$C$218,0))=\"\",\"\",INDEX('Disaggregation1B_Import-Export'!AH$8:AH$218,MATCH($B18,'Disaggregation1B_Import-Export'!$C$8:$C$218,0))),\"\")","v":"Type of testing"},{"$f":"IFERROR(IF(INDEX('Disaggregation1B_Import-Export'!H$8:H$218,MATCH($B18,'Disaggregation1B_Import-Export'!$C$8:$C$218,0))=\"\",\"\",INDEX('Disaggregation1B_Import-Export'!H$8:H$218,MATCH($B18,'Disaggregation1B_Import-Export'!$C$8:$C$218,0))),\"\")","v":0},{"$f":"IFERROR(IF(INDEX('Disaggregation1B_Import-Export'!I$8:I$218,MATCH($B18,'Disaggregation1B_Import-Export'!$C$8:$C$218,0))=\"\",\"\",INDEX('Disaggregation1B_Import-Export'!I$8:I$218,MATCH($B18,'Disaggregation1B_Import-Export'!$C$8:$C$218,0))),\"\")","v":0},{"$f":"IFERROR(IF(INDEX('Disaggregation1B_Import-Export'!J$8:J$218,MATCH($B18,'Disaggregation1B_Import-Export'!$C$8:$C$218,0))=\"\",\"\",INDEX('Disaggregation1B_Import-Export'!J$8:J$218,MATCH($B18,'Disaggregation1B_Import-Export'!$C$8:$C$218,0))),\"\")","v":"0.0"},{"$f":"IFERROR(IF(INDEX('Disaggregation1B_Import-Export'!K$8:K$218,MATCH($B18,'Disaggregation1B_Import-Export'!$C$8:$C$218,0))=\"\",\"\",INDEX('Disaggregation1B_Import-Export'!K$8:K$218,MATCH($B18,'Disaggregation1B_Import-Export'!$C$8:$C$218,0))),\"\")","v":""},{"$f":"IFERROR(IF(INDEX('Disaggregation1B_Import-Export'!L$8:L$218,MATCH($B18,'Disaggregation1B_Import-Export'!$C$8:$C$218,0))=\"\",\"\",INDEX('Disaggregation1B_Import-Export'!L$8:L$218,MATCH($B18,'Disaggregation1B_Import-Export'!$C$8:$C$218,0))),\"\")","v":""},{"$f":"IFERROR(IF(INDEX('Disaggregation1B_Import-Export'!AQ$8:AQ$218,MATCH($B18,'Disaggregation1B_Import-Export'!$C$8:$C$218,0))=\"\",\"\",INDEX('Disaggregation1B_Import-Export'!AQ$8:AQ$218,MATCH($B18,'Disaggregation1B_Import-Export'!$C$8:$C$218,0))),\"\")","v":"Burundi"},329235,329235,100,null,"Selon les directives nationales, ce sont que les enfants U5 qui sont ciblés par la stratégie de prise en charge communautaire du paludisme simple dans le cadre iCCM. Tous les cas suspects de paludisme dans la communauté ont été diagnostiqués par TDR. ",null,null,null,"",null,null,null,null,null,""]
[9,"Coverage9",{"$f":"IFERROR(INDEX('Disaggregation1B_Import-Export'!D$8:D$218,MATCH($B19,'Disaggregation1B_Import-Export'!$C$8:$C$218,0)),\"\")","v":"Case management"},{"$f":"IFERROR(INDEX('Disaggregation1B_Import-Export'!AF$8:AF$235,MATCH($B19,'Disaggregation1B_Import-Export'!$C$8:$C$235,0)),\"\")","v":"CM-1c(M): Proportion of suspected malaria cases that receive a parasitological test at private sector sites"},{"$f":"IFERROR(IF(INDEX('Disaggregation1B_Import-Export'!AG$8:AG$218,MATCH($B19,'Disaggregation1B_Import-Export'!$C$8:$C$218,0))=\"\",\"\",INDEX('Disaggregation1B_Import-Export'!AG$8:AG$218,MATCH($B19,'Disaggregation1B_Import-Export'!$C$8:$C$218,0))),\"\")","v":"U5"},{"$f":"IFERROR(IF(INDEX('Disaggregation1B_Import-Export'!AH$8:AH$218,MATCH($B19,'Disaggregation1B_Import-Export'!$C$8:$C$218,0))=\"\",\"\",INDEX('Disaggregation1B_Import-Export'!AH$8:AH$218,MATCH($B19,'Disaggregation1B_Import-Export'!$C$8:$C$218,0))),\"\")","v":"Age"},{"$f":"IFERROR(IF(INDEX('Disaggregation1B_Import-Export'!H$8:H$218,MATCH($B19,'Disaggregation1B_Import-Export'!$C$8:$C$218,0))=\"\",\"\",INDEX('Disaggregation1B_Import-Export'!H$8:H$218,MATCH($B19,'Disaggregation1B_Import-Export'!$C$8:$C$218,0))),\"\")","v":0},{"$f":"IFERROR(IF(INDEX('Disaggregation1B_Import-Export'!I$8:I$218,MATCH($B19,'Disaggregation1B_Import-Export'!$C$8:$C$218,0))=\"\",\"\",INDEX('Disaggregation1B_Import-Export'!I$8:I$218,MATCH($B19,'Disaggregation1B_Import-Export'!$C$8:$C$218,0))),\"\")","v":0},{"$f":"IFERROR(IF(INDEX('Disaggregation1B_Import-Export'!J$8:J$218,MATCH($B19,'Disaggregation1B_Import-Export'!$C$8:$C$218,0))=\"\",\"\",INDEX('Disaggregation1B_Import-Export'!J$8:J$218,MATCH($B19,'Disaggregation1B_Import-Export'!$C$8:$C$218,0))),\"\")","v":"0.0"},{"$f":"IFERROR(IF(INDEX('Disaggregation1B_Import-Export'!K$8:K$218,MATCH($B19,'Disaggregation1B_Import-Export'!$C$8:$C$218,0))=\"\",\"\",INDEX('Disaggregation1B_Import-Export'!K$8:K$218,MATCH($B19,'Disaggregation1B_Import-Export'!$C$8:$C$218,0))),\"\")","v":""},{"$f":"IFERROR(IF(INDEX('Disaggregation1B_Import-Export'!L$8:L$218,MATCH($B19,'Disaggregation1B_Import-Export'!$C$8:$C$218,0))=\"\",\"\",INDEX('Disaggregation1B_Import-Export'!L$8:L$218,MATCH($B19,'Disaggregation1B_Import-Export'!$C$8:$C$218,0))),\"\")","v":""},{"$f":"IFERROR(IF(INDEX('Disaggregation1B_Import-Export'!AQ$8:AQ$218,MATCH($B19,'Disaggregation1B_Import-Export'!$C$8:$C$218,0))=\"\",\"\",INDEX('Disaggregation1B_Import-Export'!AQ$8:AQ$218,MATCH($B19,'Disaggregation1B_Import-Export'!$C$8:$C$218,0))),\"\")","v":"Burundi"},null,null,"",null,"Le DHIS2 n'integre pas la desagregation par age pour les données de laboratoire.",null,null,null,"",null,null,null,null,null,""]
[10,"Coverage10",{"$f":"IFERROR(INDEX('Disaggregation1B_Import-Export'!D$8:D$218,MATCH($B20,'Disaggregation1B_Import-Export'!$C$8:$C$218,0)),\"\")","v":"Case management"},{"$f":"IFERROR(INDEX('Disaggregation1B_Import-Export'!AF$8:AF$235,MATCH($B20,'Disaggregation1B_Import-Export'!$C$8:$C$235,0)),\"\")","v":"CM-1c(M): Proportion of suspected malaria cases that receive a parasitological test at private sector sites"},{"$f":"IFERROR(IF(INDEX('Disaggregation1B_Import-Export'!AG$8:AG$218,MATCH($B20,'Disaggregation1B_Import-Export'!$C$8:$C$218,0))=\"\",\"\",INDEX('Disaggregation1B_Import-Export'!AG$8:AG$218,MATCH($B20,'Disaggregation1B_Import-Export'!$C$8:$C$218,0))),\"\")","v":"Rapid diagnostic test"},{"$f":"IFERROR(IF(INDEX('Disaggregation1B_Import-Export'!AH$8:AH$218,MATCH($B20,'Disaggregation1B_Import-Export'!$C$8:$C$218,0))=\"\",\"\",INDEX('Disaggregation1B_Import-Export'!AH$8:AH$218,MATCH($B20,'Disaggregation1B_Import-Export'!$C$8:$C$218,0))),\"\")","v":"Type of testing"},{"$f":"IFERROR(IF(INDEX('Disaggregation1B_Import-Export'!H$8:H$218,MATCH($B20,'Disaggregation1B_Import-Export'!$C$8:$C$218,0))=\"\",\"\",INDEX('Disaggregation1B_Import-Export'!H$8:H$218,MATCH($B20,'Disaggregation1B_Import-Export'!$C$8:$C$218,0))),\"\")","v":252959},{"$f":"IFERROR(IF(INDEX('Disaggregation1B_Import-Export'!I$8:I$218,MATCH($B20,'Disaggregation1B_Import-Export'!$C$8:$C$218,0))=\"\",\"\",INDEX('Disaggregation1B_Import-Export'!I$8:I$218,MATCH($B20,'Disaggregation1B_Import-Export'!$C$8:$C$218,0))),\"\")","v":0},{"$f":"IFERROR(IF(INDEX('Disaggregation1B_Import-Export'!J$8:J$218,MATCH($B20,'Disaggregation1B_Import-Export'!$C$8:$C$218,0))=\"\",\"\",INDEX('Disaggregation1B_Import-Export'!J$8:J$218,MATCH($B20,'Disaggregation1B_Import-Export'!$C$8:$C$218,0))),\"\")","v":"0.0"},{"$f":"IFERROR(IF(INDEX('Disaggregation1B_Import-Export'!K$8:K$218,MATCH($B20,'Disaggregation1B_Import-Export'!$C$8:$C$218,0))=\"\",\"\",INDEX('Disaggregation1B_Import-Export'!K$8:K$218,MATCH($B20,'Disaggregation1B_Import-Export'!$C$8:$C$218,0))),\"\")","v":""},{"$f":"IFERROR(IF(INDEX('Disaggregation1B_Import-Export'!L$8:L$218,MATCH($B20,'Disaggregation1B_Import-Export'!$C$8:$C$218,0))=\"\",\"\",INDEX('Disaggregation1B_Import-Export'!L$8:L$218,MATCH($B20,'Disaggregation1B_Import-Export'!$C$8:$C$218,0))),\"\")","v":""},{"$f":"IFERROR(IF(INDEX('Disaggregation1B_Import-Export'!AQ$8:AQ$218,MATCH($B20,'Disaggregation1B_Import-Export'!$C$8:$C$218,0))=\"\",\"\",INDEX('Disaggregation1B_Import-Export'!AQ$8:AQ$218,MATCH($B20,'Disaggregation1B_Import-Export'!$C$8:$C$218,0))),\"\")","v":"Burundi"},99361,356801,27.847735852758259,null,"Au niveau des formations sanitaires privées, cette performance est visiblement renversée.",null,null,null,"",null,null,null,null,null,""]
[11,"Coverage11",{"$f":"IFERROR(INDEX('Disaggregation1B_Import-Export'!D$8:D$218,MATCH($B21,'Disaggregation1B_Import-Export'!$C$8:$C$218,0)),\"\")","v":"Case management"},{"$f":"IFERROR(INDEX('Disaggregation1B_Import-Export'!AF$8:AF$235,MATCH($B21,'Disaggregation1B_Import-Export'!$C$8:$C$235,0)),\"\")","v":"CM-1c(M): Proportion of suspected malaria cases that receive a parasitological test at private sector sites"},{"$f":"IFERROR(IF(INDEX('Disaggregation1B_Import-Export'!AG$8:AG$218,MATCH($B21,'Disaggregation1B_Import-Export'!$C$8:$C$218,0))=\"\",\"\",INDEX('Disaggregation1B_Import-Export'!AG$8:AG$218,MATCH($B21,'Disaggregation1B_Import-Export'!$C$8:$C$218,0))),\"\")","v":"Microscopy"},{"$f":"IFERROR(IF(INDEX('Disaggregation1B_Import-Export'!AH$8:AH$218,MATCH($B21,'Disaggregation1B_Import-Export'!$C$8:$C$218,0))=\"\",\"\",INDEX('Disaggregation1B_Import-Export'!AH$8:AH$218,MATCH($B21,'Disaggregation1B_Import-Export'!$C$8:$C$218,0))),\"\")","v":"Type of testing"},{"$f":"IFERROR(IF(INDEX('Disaggregation1B_Import-Export'!H$8:H$218,MATCH($B21,'Disaggregation1B_Import-Export'!$C$8:$C$218,0))=\"\",\"\",INDEX('Disaggregation1B_Import-Export'!H$8:H$218,MATCH($B21,'Disaggregation1B_Import-Export'!$C$8:$C$218,0))),\"\")","v":536615},{"$f":"IFERROR(IF(INDEX('Disaggregation1B_Import-Export'!I$8:I$218,MATCH($B21,'Disaggregation1B_Import-Export'!$C$8:$C$218,0))=\"\",\"\",INDEX('Disaggregation1B_Import-Export'!I$8:I$218,MATCH($B21,'Disaggregation1B_Import-Export'!$C$8:$C$218,0))),\"\")","v":0},{"$f":"IFERROR(IF(INDEX('Disaggregation1B_Import-Export'!J$8:J$218,MATCH($B21,'Disaggregation1B_Import-Export'!$C$8:$C$218,0))=\"\",\"\",INDEX('Disaggregation1B_Import-Export'!J$8:J$218,MATCH($B21,'Disaggregation1B_Import-Export'!$C$8:$C$218,0))),\"\")","v":"0.0"},{"$f":"IFERROR(IF(INDEX('Disaggregation1B_Import-Export'!K$8:K$218,MATCH($B21,'Disaggregation1B_Import-Export'!$C$8:$C$218,0))=\"\",\"\",INDEX('Disaggregation1B_Import-Export'!K$8:K$218,MATCH($B21,'Disaggregation1B_Import-Export'!$C$8:$C$218,0))),\"\")","v":""},{"$f":"IFERROR(IF(INDEX('Disaggregation1B_Import-Export'!L$8:L$218,MATCH($B21,'Disaggregation1B_Import-Export'!$C$8:$C$218,0))=\"\",\"\",INDEX('Disaggregation1B_Import-Export'!L$8:L$218,MATCH($B21,'Disaggregation1B_Import-Export'!$C$8:$C$218,0))),\"\")","v":""},{"$f":"IFERROR(IF(INDEX('Disaggregation1B_Import-Export'!AQ$8:AQ$218,MATCH($B21,'Disaggregation1B_Import-Export'!$C$8:$C$218,0))=\"\",\"\",INDEX('Disaggregation1B_Import-Export'!AQ$8:AQ$218,MATCH($B21,'Disaggregation1B_Import-Export'!$C$8:$C$218,0))),\"\")","v":"Burundi"},257440,356801,72.152264147241738,null,"La norme étant  de 20% pour la Microscopie et 80% pour les TDR. Cependant au niveau des formations sanitaires privés, cette performance est visiblement renversée.",null,null,null,"",null,null,null,null,null,""]
[12,"Coverage12",{"$f":"IFERROR(INDEX('Disaggregation1B_Import-Export'!D$8:D$218,MATCH($B22,'Disaggregation1B_Import-Export'!$C$8:$C$218,0)),\"\")","v":"Case management"},{"$f":"IFERROR(INDEX('Disaggregation1B_Import-Export'!AF$8:AF$235,MATCH($B22,'Disaggregation1B_Import-Export'!$C$8:$C$235,0)),\"\")","v":"CM-1c(M): Proportion of suspected malaria cases that receive a parasitological test at private sector sites"},{"$f":"IFERROR(IF(INDEX('Disaggregation1B_Import-Export'!AG$8:AG$218,MATCH($B22,'Disaggregation1B_Import-Export'!$C$8:$C$218,0))=\"\",\"\",INDEX('Disaggregation1B_Import-Export'!AG$8:AG$218,MATCH($B22,'Disaggregation1B_Import-Export'!$C$8:$C$218,0))),\"\")","v":"5+"},{"$f":"IFERROR(IF(INDEX('Disaggregation1B_Import-Export'!AH$8:AH$218,MATCH($B22,'Disaggregation1B_Import-Export'!$C$8:$C$218,0))=\"\",\"\",INDEX('Disaggregation1B_Import-Export'!AH$8:AH$218,MATCH($B22,'Disaggregation1B_Import-Export'!$C$8:$C$218,0))),\"\")","v":"Age"},{"$f":"IFERROR(IF(INDEX('Disaggregation1B_Import-Export'!H$8:H$218,MATCH($B22,'Disaggregation1B_Import-Export'!$C$8:$C$218,0))=\"\",\"\",INDEX('Disaggregation1B_Import-Export'!H$8:H$218,MATCH($B22,'Disaggregation1B_Import-Export'!$C$8:$C$218,0))),\"\")","v":0},{"$f":"IFERROR(IF(INDEX('Disaggregation1B_Import-Export'!I$8:I$218,MATCH($B22,'Disaggregation1B_Import-Export'!$C$8:$C$218,0))=\"\",\"\",INDEX('Disaggregation1B_Import-Export'!I$8:I$218,MATCH($B22,'Disaggregation1B_Import-Export'!$C$8:$C$218,0))),\"\")","v":0},{"$f":"IFERROR(IF(INDEX('Disaggregation1B_Import-Export'!J$8:J$218,MATCH($B22,'Disaggregation1B_Import-Export'!$C$8:$C$218,0))=\"\",\"\",INDEX('Disaggregation1B_Import-Export'!J$8:J$218,MATCH($B22,'Disaggregation1B_Import-Export'!$C$8:$C$218,0))),\"\")","v":"0.0"},{"$f":"IFERROR(IF(INDEX('Disaggregation1B_Import-Export'!K$8:K$218,MATCH($B22,'Disaggregation1B_Import-Export'!$C$8:$C$218,0))=\"\",\"\",INDEX('Disaggregation1B_Import-Export'!K$8:K$218,MATCH($B22,'Disaggregation1B_Import-Export'!$C$8:$C$218,0))),\"\")","v":""},{"$f":"IFERROR(IF(INDEX('Disaggregation1B_Import-Export'!L$8:L$218,MATCH($B22,'Disaggregation1B_Import-Export'!$C$8:$C$218,0))=\"\",\"\",INDEX('Disaggregation1B_Import-Export'!L$8:L$218,MATCH($B22,'Disaggregation1B_Import-Export'!$C$8:$C$218,0))),\"\")","v":""},{"$f":"IFERROR(IF(INDEX('Disaggregation1B_Import-Export'!AQ$8:AQ$218,MATCH($B22,'Disaggregation1B_Import-Export'!$C$8:$C$218,0))=\"\",\"\",INDEX('Disaggregation1B_Import-Export'!AQ$8:AQ$218,MATCH($B22,'Disaggregation1B_Import-Export'!$C$8:$C$218,0))),\"\")","v":"Burundi"},null,null,"",null,"Le DHIS2 n'integre pas la desagregation par age pour les données de laboratoire.",null,null,null,"",null,null,null,null,null,""]
[13,"Coverage13",{"$f":"IFERROR(INDEX('Disaggregation1B_Import-Export'!D$8:D$218,MATCH($B23,'Disaggregation1B_Import-Export'!$C$8:$C$218,0)),\"\")","v":"Case management"},{"$f":"IFERROR(INDEX('Disaggregation1B_Import-Export'!AF$8:AF$235,MATCH($B23,'Disaggregation1B_Import-Export'!$C$8:$C$235,0)),\"\")","v":"CM-2a(M): Proportion of confirmed malaria cases that received first-line antimalarial treatment at public sector health facilities"},{"$f":"IFERROR(IF(INDEX('Disaggregation1B_Import-Export'!AG$8:AG$218,MATCH($B23,'Disaggregation1B_Import-Export'!$C$8:$C$218,0))=\"\",\"\",INDEX('Disaggregation1B_Import-Export'!AG$8:AG$218,MATCH($B23,'Disaggregation1B_Import-Export'!$C$8:$C$218,0))),\"\")","v":"U5"},{"$f":"IFERROR(IF(INDEX('Disaggregation1B_Import-Export'!AH$8:AH$218,MATCH($B23,'Disaggregation1B_Import-Export'!$C$8:$C$218,0))=\"\",\"\",INDEX('Disaggregation1B_Import-Export'!AH$8:AH$218,MATCH($B23,'Disaggregation1B_Import-Export'!$C$8:$C$218,0))),\"\")","v":"Age"},{"$f":"IFERROR(IF(INDEX('Disaggregation1B_Import-Export'!H$8:H$218,MATCH($B23,'Disaggregation1B_Import-Export'!$C$8:$C$218,0))=\"\",\"\",INDEX('Disaggregation1B_Import-Export'!H$8:H$218,MATCH($B23,'Disaggregation1B_Import-Export'!$C$8:$C$218,0))),\"\")","v":0},{"$f":"IFERROR(IF(INDEX('Disaggregation1B_Import-Export'!I$8:I$218,MATCH($B23,'Disaggregation1B_Import-Export'!$C$8:$C$218,0))=\"\",\"\",INDEX('Disaggregation1B_Import-Export'!I$8:I$218,MATCH($B23,'Disaggregation1B_Import-Export'!$C$8:$C$218,0))),\"\")","v":0},{"$f":"IFERROR(IF(INDEX('Disaggregation1B_Import-Export'!J$8:J$218,MATCH($B23,'Disaggregation1B_Import-Export'!$C$8:$C$218,0))=\"\",\"\",INDEX('Disaggregation1B_Import-Export'!J$8:J$218,MATCH($B23,'Disaggregation1B_Import-Export'!$C$8:$C$218,0))),\"\")","v":"0.0"},{"$f":"IFERROR(IF(INDEX('Disaggregation1B_Import-Export'!K$8:K$218,MATCH($B23,'Disaggregation1B_Import-Export'!$C$8:$C$218,0))=\"\",\"\",INDEX('Disaggregation1B_Import-Export'!K$8:K$218,MATCH($B23,'Disaggregation1B_Import-Export'!$C$8:$C$218,0))),\"\")","v":""},{"$f":"IFERROR(IF(INDEX('Disaggregation1B_Import-Export'!L$8:L$218,MATCH($B23,'Disaggregation1B_Import-Export'!$C$8:$C$218,0))=\"\",\"\",INDEX('Disaggregation1B_Import-Export'!L$8:L$218,MATCH($B23,'Disaggregation1B_Import-Export'!$C$8:$C$218,0))),\"\")","v":""},{"$f":"IFERROR(IF(INDEX('Disaggregation1B_Import-Export'!AQ$8:AQ$218,MATCH($B23,'Disaggregation1B_Import-Export'!$C$8:$C$218,0))=\"\",\"\",INDEX('Disaggregation1B_Import-Export'!AQ$8:AQ$218,MATCH($B23,'Disaggregation1B_Import-Export'!$C$8:$C$218,0))),\"\")","v":"Burundi"},1315632,2374016,55.417992128106974,null,"Le système DHIS2 n'est pas paramettré pour collecter les données relatives au résultat du test de diagnostic du paludisme chez les moins de 5 ans.C'est pour celà qu'il a été considéré comme dénominateur, le nobmre de cas de paludisme confimé ayant été traité sans distinction de la tranche d'âge.",null,null,null,"",null,null,null,null,null,""]
[14,"Coverage14",{"$f":"IFERROR(INDEX('Disaggregation1B_Import-Export'!D$8:D$218,MATCH($B24,'Disaggregation1B_Import-Export'!$C$8:$C$218,0)),\"\")","v":"Case management"},{"$f":"IFERROR(INDEX('Disaggregation1B_Import-Export'!AF$8:AF$235,MATCH($B24,'Disaggregation1B_Import-Export'!$C$8:$C$235,0)),\"\")","v":"CM-2a(M): Proportion of confirmed malaria cases that received first-line antimalarial treatment at public sector health facilities"},{"$f":"IFERROR(IF(INDEX('Disaggregation1B_Import-Export'!AG$8:AG$218,MATCH($B24,'Disaggregation1B_Import-Export'!$C$8:$C$218,0))=\"\",\"\",INDEX('Disaggregation1B_Import-Export'!AG$8:AG$218,MATCH($B24,'Disaggregation1B_Import-Export'!$C$8:$C$218,0))),\"\")","v":"5+"},{"$f":"IFERROR(IF(INDEX('Disaggregation1B_Import-Export'!AH$8:AH$218,MATCH($B24,'Disaggregation1B_Import-Export'!$C$8:$C$218,0))=\"\",\"\",INDEX('Disaggregation1B_Import-Export'!AH$8:AH$218,MATCH($B24,'Disaggregation1B_Import-Export'!$C$8:$C$218,0))),\"\")","v":"Age"},{"$f":"IFERROR(IF(INDEX('Disaggregation1B_Import-Export'!H$8:H$218,MATCH($B24,'Disaggregation1B_Import-Export'!$C$8:$C$218,0))=\"\",\"\",INDEX('Disaggregation1B_Import-Export'!H$8:H$218,MATCH($B24,'Disaggregation1B_Import-Export'!$C$8:$C$218,0))),\"\")","v":0},{"$f":"IFERROR(IF(INDEX('Disaggregation1B_Import-Export'!I$8:I$218,MATCH($B24,'Disaggregation1B_Import-Export'!$C$8:$C$218,0))=\"\",\"\",INDEX('Disaggregation1B_Import-Export'!I$8:I$218,MATCH($B24,'Disaggregation1B_Import-Export'!$C$8:$C$218,0))),\"\")","v":0},{"$f":"IFERROR(IF(INDEX('Disaggregation1B_Import-Export'!J$8:J$218,MATCH($B24,'Disaggregation1B_Import-Export'!$C$8:$C$218,0))=\"\",\"\",INDEX('Disaggregation1B_Import-Export'!J$8:J$218,MATCH($B24,'Disaggregation1B_Import-Export'!$C$8:$C$218,0))),\"\")","v":"0.0"},{"$f":"IFERROR(IF(INDEX('Disaggregation1B_Import-Export'!K$8:K$218,MATCH($B24,'Disaggregation1B_Import-Export'!$C$8:$C$218,0))=\"\",\"\",INDEX('Disaggregation1B_Import-Export'!K$8:K$218,MATCH($B24,'Disaggregation1B_Import-Export'!$C$8:$C$218,0))),\"\")","v":""},{"$f":"IFERROR(IF(INDEX('Disaggregation1B_Import-Export'!L$8:L$218,MATCH($B24,'Disaggregation1B_Import-Export'!$C$8:$C$218,0))=\"\",\"\",INDEX('Disaggregation1B_Import-Export'!L$8:L$218,MATCH($B24,'Disaggregation1B_Import-Export'!$C$8:$C$218,0))),\"\")","v":""},{"$f":"IFERROR(IF(INDEX('Disaggregation1B_Import-Export'!AQ$8:AQ$218,MATCH($B24,'Disaggregation1B_Import-Export'!$C$8:$C$218,0))=\"\",\"\",INDEX('Disaggregation1B_Import-Export'!AQ$8:AQ$218,MATCH($B24,'Disaggregation1B_Import-Export'!$C$8:$C$218,0))),\"\")","v":"Burundi"},1058384,2374016,44.582007871893033,null,"Le système DHIS2 n'est pas paramettré pour collecter les données relatives au résultat du test de diagnostic du paludisme chez lesplus de 5 ans.C'est pour celà qu'il a été considéré comme dénominateur, le nobmre de cas de paludisme confimé ayant été traité sans distinction de la tranche d'âge.",null,null,null,"",null,null,null,null,null,""]
[15,"Coverage15",{"$f":"IFERROR(INDEX('Disaggregation1B_Import-Export'!D$8:D$218,MATCH($B25,'Disaggregation1B_Import-Export'!$C$8:$C$218,0)),\"\")","v":"Case management"},{"$f":"IFERROR(INDEX('Disaggregation1B_Import-Export'!AF$8:AF$235,MATCH($B25,'Disaggregation1B_Import-Export'!$C$8:$C$235,0)),\"\")","v":"CM-2b(M): Proportion of confirmed malaria cases that received first-line antimalarial treatment in the community"},{"$f":"IFERROR(IF(INDEX('Disaggregation1B_Import-Export'!AG$8:AG$218,MATCH($B25,'Disaggregation1B_Import-Export'!$C$8:$C$218,0))=\"\",\"\",INDEX('Disaggregation1B_Import-Export'!AG$8:AG$218,MATCH($B25,'Disaggregation1B_Import-Export'!$C$8:$C$218,0))),\"\")","v":"U5"},{"$f":"IFERROR(IF(INDEX('Disaggregation1B_Import-Export'!AH$8:AH$218,MATCH($B25,'Disaggregation1B_Import-Export'!$C$8:$C$218,0))=\"\",\"\",INDEX('Disaggregation1B_Import-Export'!AH$8:AH$218,MATCH($B25,'Disaggregation1B_Import-Export'!$C$8:$C$218,0))),\"\")","v":"Age"},{"$f":"IFERROR(IF(INDEX('Disaggregation1B_Import-Export'!H$8:H$218,MATCH($B25,'Disaggregation1B_Import-Export'!$C$8:$C$218,0))=\"\",\"\",INDEX('Disaggregation1B_Import-Export'!H$8:H$218,MATCH($B25,'Disaggregation1B_Import-Export'!$C$8:$C$218,0))),\"\")","v":0},{"$f":"IFERROR(IF(INDEX('Disaggregation1B_Import-Export'!I$8:I$218,MATCH($B25,'Disaggregation1B_Import-Export'!$C$8:$C$218,0))=\"\",\"\",INDEX('Disaggregation1B_Import-Export'!I$8:I$218,MATCH($B25,'Disaggregation1B_Import-Export'!$C$8:$C$218,0))),\"\")","v":0},{"$f":"IFERROR(IF(INDEX('Disaggregation1B_Import-Export'!J$8:J$218,MATCH($B25,'Disaggregation1B_Import-Export'!$C$8:$C$218,0))=\"\",\"\",INDEX('Disaggregation1B_Import-Export'!J$8:J$218,MATCH($B25,'Disaggregation1B_Import-Export'!$C$8:$C$218,0))),\"\")","v":"0.0"},{"$f":"IFERROR(IF(INDEX('Disaggregation1B_Import-Export'!K$8:K$218,MATCH($B25,'Disaggregation1B_Import-Export'!$C$8:$C$218,0))=\"\",\"\",INDEX('Disaggregation1B_Import-Export'!K$8:K$218,MATCH($B25,'Disaggregation1B_Import-Export'!$C$8:$C$218,0))),\"\")","v":""},{"$f":"IFERROR(IF(INDEX('Disaggregation1B_Import-Export'!L$8:L$218,MATCH($B25,'Disaggregation1B_Import-Export'!$C$8:$C$218,0))=\"\",\"\",INDEX('Disaggregation1B_Import-Export'!L$8:L$218,MATCH($B25,'Disaggregation1B_Import-Export'!$C$8:$C$218,0))),\"\")","v":""},{"$f":"IFERROR(IF(INDEX('Disaggregation1B_Import-Export'!AQ$8:AQ$218,MATCH($B25,'Disaggregation1B_Import-Export'!$C$8:$C$218,0))=\"\",\"\",INDEX('Disaggregation1B_Import-Export'!AQ$8:AQ$218,MATCH($B25,'Disaggregation1B_Import-Export'!$C$8:$C$218,0))),\"\")","v":"Burundi"},198130,245359,80.751062728491718,null,"Selon les directives nationales, ce sont les enfants qui sont ciblés par la stratégie de prise en charge communautaire du paludisme simple. Tous les cas suspects de paludisme dans la communauté doivent être soumis au test par TDR. ",null,null,null,"",null,null,null,null,null,""]
[16,"Coverage16",{"$f":"IFERROR(INDEX('Disaggregation1B_Import-Export'!D$8:D$218,MATCH($B26,'Disaggregation1B_Import-Export'!$C$8:$C$218,0)),\"\")","v":"Case management"},{"$f":"IFERROR(INDEX('Disaggregation1B_Import-Export'!AF$8:AF$235,MATCH($B26,'Disaggregation1B_Import-Export'!$C$8:$C$235,0)),\"\")","v":"CM-2b(M): Proportion of confirmed malaria cases that received first-line antimalarial treatment in the community"},{"$f":"IFERROR(IF(INDEX('Disaggregation1B_Import-Export'!AG$8:AG$218,MATCH($B26,'Disaggregation1B_Import-Export'!$C$8:$C$218,0))=\"\",\"\",INDEX('Disaggregation1B_Import-Export'!AG$8:AG$218,MATCH($B26,'Disaggregation1B_Import-Export'!$C$8:$C$218,0))),\"\")","v":"5+"},{"$f":"IFERROR(IF(INDEX('Disaggregation1B_Import-Export'!AH$8:AH$218,MATCH($B26,'Disaggregation1B_Import-Export'!$C$8:$C$218,0))=\"\",\"\",INDEX('Disaggregation1B_Import-Export'!AH$8:AH$218,MATCH($B26,'Disaggregation1B_Import-Export'!$C$8:$C$218,0))),\"\")","v":"Age"},{"$f":"IFERROR(IF(INDEX('Disaggregation1B_Import-Export'!H$8:H$218,MATCH($B26,'Disaggregation1B_Import-Export'!$C$8:$C$218,0))=\"\",\"\",INDEX('Disaggregation1B_Import-Export'!H$8:H$218,MATCH($B26,'Disaggregation1B_Import-Export'!$C$8:$C$218,0))),\"\")","v":0},{"$f":"IFERROR(IF(INDEX('Disaggregation1B_Import-Export'!I$8:I$218,MATCH($B26,'Disaggregation1B_Import-Export'!$C$8:$C$218,0))=\"\",\"\",INDEX('Disaggregation1B_Import-Export'!I$8:I$218,MATCH($B26,'Disaggregation1B_Import-Export'!$C$8:$C$218,0))),\"\")","v":0},{"$f":"IFERROR(IF(INDEX('Disaggregation1B_Import-Export'!J$8:J$218,MATCH($B26,'Disaggregation1B_Import-Export'!$C$8:$C$218,0))=\"\",\"\",INDEX('Disaggregation1B_Import-Export'!J$8:J$218,MATCH($B26,'Disaggregation1B_Import-Export'!$C$8:$C$218,0))),\"\")","v":"0.0"},{"$f":"IFERROR(IF(INDEX('Disaggregation1B_Import-Export'!K$8:K$218,MATCH($B26,'Disaggregation1B_Import-Export'!$C$8:$C$218,0))=\"\",\"\",INDEX('Disaggregation1B_Import-Export'!K$8:K$218,MATCH($B26,'Disaggregation1B_Import-Export'!$C$8:$C$218,0))),\"\")","v":""},{"$f":"IFERROR(IF(INDEX('Disaggregation1B_Import-Export'!L$8:L$218,MATCH($B26,'Disaggregation1B_Import-Export'!$C$8:$C$218,0))=\"\",\"\",INDEX('Disaggregation1B_Import-Export'!L$8:L$218,MATCH($B26,'Disaggregation1B_Import-Export'!$C$8:$C$218,0))),\"\")","v":""},{"$f":"IFERROR(IF(INDEX('Disaggregation1B_Import-Export'!AQ$8:AQ$218,MATCH($B26,'Disaggregation1B_Import-Export'!$C$8:$C$218,0))=\"\",\"\",INDEX('Disaggregation1B_Import-Export'!AQ$8:AQ$218,MATCH($B26,'Disaggregation1B_Import-Export'!$C$8:$C$218,0))),\"\")","v":"Burundi"},null,null,"",null,"La stratégie de prise en charge communautaire des cas de paludisme simple cible les enfants de moins de 5 ans",null,null,null,"",null,null,null,null,null,""]
[17,"Coverage17",{"$f":"IFERROR(INDEX('Disaggregation1B_Import-Export'!D$8:D$218,MATCH($B27,'Disaggregation1B_Import-Export'!$C$8:$C$218,0)),\"\")","v":"Case management"},{"$f":"IFERROR(INDEX('Disaggregation1B_Import-Export'!AF$8:AF$235,MATCH($B27,'Disaggregation1B_Import-Export'!$C$8:$C$235,0)),\"\")","v":"CM-3c: Proportion of malaria cases (presumed and confirmed) that received first line antimalarial treatment at private sector sites"},{"$f":"IFERROR(IF(INDEX('Disaggregation1B_Import-Export'!AG$8:AG$218,MATCH($B27,'Disaggregation1B_Import-Export'!$C$8:$C$218,0))=\"\",\"\",INDEX('Disaggregation1B_Import-Export'!AG$8:AG$218,MATCH($B27,'Disaggregation1B_Import-Export'!$C$8:$C$218,0))),\"\")","v":"U5"},{"$f":"IFERROR(IF(INDEX('Disaggregation1B_Import-Export'!AH$8:AH$218,MATCH($B27,'Disaggregation1B_Import-Export'!$C$8:$C$218,0))=\"\",\"\",INDEX('Disaggregation1B_Import-Export'!AH$8:AH$218,MATCH($B27,'Disaggregation1B_Import-Export'!$C$8:$C$218,0))),\"\")","v":"Age"},{"$f":"IFERROR(IF(INDEX('Disaggregation1B_Import-Export'!H$8:H$218,MATCH($B27,'Disaggregation1B_Import-Export'!$C$8:$C$218,0))=\"\",\"\",INDEX('Disaggregation1B_Import-Export'!H$8:H$218,MATCH($B27,'Disaggregation1B_Import-Export'!$C$8:$C$218,0))),\"\")","v":0},{"$f":"IFERROR(IF(INDEX('Disaggregation1B_Import-Export'!I$8:I$218,MATCH($B27,'Disaggregation1B_Import-Export'!$C$8:$C$218,0))=\"\",\"\",INDEX('Disaggregation1B_Import-Export'!I$8:I$218,MATCH($B27,'Disaggregation1B_Import-Export'!$C$8:$C$218,0))),\"\")","v":0},{"$f":"IFERROR(IF(INDEX('Disaggregation1B_Import-Export'!J$8:J$218,MATCH($B27,'Disaggregation1B_Import-Export'!$C$8:$C$218,0))=\"\",\"\",INDEX('Disaggregation1B_Import-Export'!J$8:J$218,MATCH($B27,'Disaggregation1B_Import-Export'!$C$8:$C$218,0))),\"\")","v":"0.0"},{"$f":"IFERROR(IF(INDEX('Disaggregation1B_Import-Export'!K$8:K$218,MATCH($B27,'Disaggregation1B_Import-Export'!$C$8:$C$218,0))=\"\",\"\",INDEX('Disaggregation1B_Import-Export'!K$8:K$218,MATCH($B27,'Disaggregation1B_Import-Export'!$C$8:$C$218,0))),\"\")","v":""},{"$f":"IFERROR(IF(INDEX('Disaggregation1B_Import-Export'!L$8:L$218,MATCH($B27,'Disaggregation1B_Import-Export'!$C$8:$C$218,0))=\"\",\"\",INDEX('Disaggregation1B_Import-Export'!L$8:L$218,MATCH($B27,'Disaggregation1B_Import-Export'!$C$8:$C$218,0))),\"\")","v":""},{"$f":"IFERROR(IF(INDEX('Disaggregation1B_Import-Export'!AQ$8:AQ$218,MATCH($B27,'Disaggregation1B_Import-Export'!$C$8:$C$218,0))=\"\",\"\",INDEX('Disaggregation1B_Import-Export'!AQ$8:AQ$218,MATCH($B27,'Disaggregation1B_Import-Export'!$C$8:$C$218,0))),\"\")","v":"Burundi"},24908,49569,50.249147652766844,null,"Le système DHIS2 n'est pas paramettré pour collecter les données relatives au résultat du test de diagnostic du paludisme chez les moins de 5 ans. C'est pour celà qu'il a été considéré comme dénominateur, le nobmre de cas de paludisme confimé ayant été traité sans distinction de la tranche d'âge.",null,null,null,"",null,null,null,null,null,""]
[18,"Coverage18",{"$f":"IFERROR(INDEX('Disaggregation1B_Import-Export'!D$8:D$218,MATCH($B28,'Disaggregation1B_Import-Export'!$C$8:$C$218,0)),\"\")","v":"Case management"},{"$f":"IFERROR(INDEX('Disaggregation1B_Import-Export'!AF$8:AF$235,MATCH($B28,'Disaggregation1B_Import-Export'!$C$8:$C$235,0)),\"\")","v":"CM-3c: Proportion of malaria cases (presumed and confirmed) that received first line antimalarial treatment at private sector sites"},{"$f":"IFERROR(IF(INDEX('Disaggregation1B_Import-Export'!AG$8:AG$218,MATCH($B28,'Disaggregation1B_Import-Export'!$C$8:$C$218,0))=\"\",\"\",INDEX('Disaggregation1B_Import-Export'!AG$8:AG$218,MATCH($B28,'Disaggregation1B_Import-Export'!$C$8:$C$218,0))),\"\")","v":"5+"},{"$f":"IFERROR(IF(INDEX('Disaggregation1B_Import-Export'!AH$8:AH$218,MATCH($B28,'Disaggregation1B_Import-Export'!$C$8:$C$218,0))=\"\",\"\",INDEX('Disaggregation1B_Import-Export'!AH$8:AH$218,MATCH($B28,'Disaggregation1B_Import-Export'!$C$8:$C$218,0))),\"\")","v":"Age"},{"$f":"IFERROR(IF(INDEX('Disaggregation1B_Import-Export'!H$8:H$218,MATCH($B28,'Disaggregation1B_Import-Export'!$C$8:$C$218,0))=\"\",\"\",INDEX('Disaggregation1B_Import-Export'!H$8:H$218,MATCH($B28,'Disaggregation1B_Import-Export'!$C$8:$C$218,0))),\"\")","v":0},{"$f":"IFERROR(IF(INDEX('Disaggregation1B_Import-Export'!I$8:I$218,MATCH($B28,'Disaggregation1B_Import-Export'!$C$8:$C$218,0))=\"\",\"\",INDEX('Disaggregation1B_Import-Export'!I$8:I$218,MATCH($B28,'Disaggregation1B_Import-Export'!$C$8:$C$218,0))),\"\")","v":0},{"$f":"IFERROR(IF(INDEX('Disaggregation1B_Import-Export'!J$8:J$218,MATCH($B28,'Disaggregation1B_Import-Export'!$C$8:$C$218,0))=\"\",\"\",INDEX('Disaggregation1B_Import-Export'!J$8:J$218,MATCH($B28,'Disaggregation1B_Import-Export'!$C$8:$C$218,0))),\"\")","v":"0.0"},{"$f":"IFERROR(IF(INDEX('Disaggregation1B_Import-Export'!K$8:K$218,MATCH($B28,'Disaggregation1B_Import-Export'!$C$8:$C$218,0))=\"\",\"\",INDEX('Disaggregation1B_Import-Export'!K$8:K$218,MATCH($B28,'Disaggregation1B_Import-Export'!$C$8:$C$218,0))),\"\")","v":""},{"$f":"IFERROR(IF(INDEX('Disaggregation1B_Import-Export'!L$8:L$218,MATCH($B28,'Disaggregation1B_Import-Export'!$C$8:$C$218,0))=\"\",\"\",INDEX('Disaggregation1B_Import-Export'!L$8:L$218,MATCH($B28,'Disaggregation1B_Import-Export'!$C$8:$C$218,0))),\"\")","v":""},{"$f":"IFERROR(IF(INDEX('Disaggregation1B_Import-Export'!AQ$8:AQ$218,MATCH($B28,'Disaggregation1B_Import-Export'!$C$8:$C$218,0))=\"\",\"\",INDEX('Disaggregation1B_Import-Export'!AQ$8:AQ$218,MATCH($B28,'Disaggregation1B_Import-Export'!$C$8:$C$218,0))),\"\")","v":"Burundi"},24661,49569,{"$f":"IFERROR((M28/N28)*100,\"\")","v":49.750852347233149},null,"Le système DHIS2 n'est pas paramettré pour collecter les données relatives au résultat du test de diagnostic du paludisme chez les plus de 5 ans.C'est pour celà qu'il a été considéré comme dénominateur, le nobmre de cas de paludisme confimé ayant été traité sans distinction de la tranche d'âge.",null,null,null,"",null,null,null,null,null,""]
[19,"Coverage19",{"$f":"IFERROR(INDEX('Disaggregation1B_Import-Export'!D$8:D$218,MATCH($B29,'Disaggregation1B_Import-Export'!$C$8:$C$218,0)),\"\")","v":""},{"$f":"IFERROR(INDEX('Disaggregation1B_Import-Export'!AF$8:AF$235,MATCH($B29,'Disaggregation1B_Import-Export'!$C$8:$C$235,0)),\"\")","v":""},{"$f":"IFERROR(IF(INDEX('Disaggregation1B_Import-Export'!AG$8:AG$218,MATCH($B29,'Disaggregation1B_Import-Export'!$C$8:$C$218,0))=\"\",\"\",INDEX('Disaggregation1B_Import-Export'!AG$8:AG$218,MATCH($B29,'Disaggregation1B_Import-Export'!$C$8:$C$218,0))),\"\")","v":""},{"$f":"IFERROR(IF(INDEX('Disaggregation1B_Import-Export'!AH$8:AH$218,MATCH($B29,'Disaggregation1B_Import-Export'!$C$8:$C$218,0))=\"\",\"\",INDEX('Disaggregation1B_Import-Export'!AH$8:AH$218,MATCH($B29,'Disaggregation1B_Import-Export'!$C$8:$C$218,0))),\"\")","v":""},{"$f":"IFERROR(IF(INDEX('Disaggregation1B_Import-Export'!H$8:H$218,MATCH($B29,'Disaggregation1B_Import-Export'!$C$8:$C$218,0))=\"\",\"\",INDEX('Disaggregation1B_Import-Export'!H$8:H$218,MATCH($B29,'Disaggregation1B_Import-Export'!$C$8:$C$218,0))),\"\")","v":""},{"$f":"IFERROR(IF(INDEX('Disaggregation1B_Import-Export'!I$8:I$218,MATCH($B29,'Disaggregation1B_Import-Export'!$C$8:$C$218,0))=\"\",\"\",INDEX('Disaggregation1B_Import-Export'!I$8:I$218,MATCH($B29,'Disaggregation1B_Import-Export'!$C$8:$C$218,0))),\"\")","v":""},{"$f":"IFERROR(IF(INDEX('Disaggregation1B_Import-Export'!J$8:J$218,MATCH($B29,'Disaggregation1B_Import-Export'!$C$8:$C$218,0))=\"\",\"\",INDEX('Disaggregation1B_Import-Export'!J$8:J$218,MATCH($B29,'Disaggregation1B_Import-Export'!$C$8:$C$218,0))),\"\")","v":""},{"$f":"IFERROR(IF(INDEX('Disaggregation1B_Import-Export'!K$8:K$218,MATCH($B29,'Disaggregation1B_Import-Export'!$C$8:$C$218,0))=\"\",\"\",INDEX('Disaggregation1B_Import-Export'!K$8:K$218,MATCH($B29,'Disaggregation1B_Import-Export'!$C$8:$C$218,0))),\"\")","v":""},{"$f":"IFERROR(IF(INDEX('Disaggregation1B_Import-Export'!L$8:L$218,MATCH($B29,'Disaggregation1B_Import-Export'!$C$8:$C$218,0))=\"\",\"\",INDEX('Disaggregation1B_Import-Export'!L$8:L$218,MATCH($B29,'Disaggregation1B_Import-Export'!$C$8:$C$218,0))),\"\")","v":""},{"$f":"IFERROR(IF(INDEX('Disaggregation1B_Import-Export'!AQ$8:AQ$218,MATCH($B29,'Disaggregation1B_Import-Export'!$C$8:$C$218,0))=\"\",\"\",INDEX('Disaggregation1B_Import-Export'!AQ$8:AQ$218,MATCH($B29,'Disaggregation1B_Import-Export'!$C$8:$C$218,0))),\"\")","v":""},null,null,"",null,null,null,null,null,"",null,null,null,null,null,""]
[20,"Coverage20",{"$f":"IFERROR(INDEX('Disaggregation1B_Import-Export'!D$8:D$218,MATCH($B30,'Disaggregation1B_Import-Export'!$C$8:$C$218,0)),\"\")","v":""},{"$f":"IFERROR(INDEX('Disaggregation1B_Import-Export'!AF$8:AF$235,MATCH($B30,'Disaggregation1B_Import-Export'!$C$8:$C$235,0)),\"\")","v":""},{"$f":"IFERROR(IF(INDEX('Disaggregation1B_Import-Export'!AG$8:AG$218,MATCH($B30,'Disaggregation1B_Import-Export'!$C$8:$C$218,0))=\"\",\"\",INDEX('Disaggregation1B_Import-Export'!AG$8:AG$218,MATCH($B30,'Disaggregation1B_Import-Export'!$C$8:$C$218,0))),\"\")","v":""},{"$f":"IFERROR(IF(INDEX('Disaggregation1B_Import-Export'!AH$8:AH$218,MATCH($B30,'Disaggregation1B_Import-Export'!$C$8:$C$218,0))=\"\",\"\",INDEX('Disaggregation1B_Import-Export'!AH$8:AH$218,MATCH($B30,'Disaggregation1B_Import-Export'!$C$8:$C$218,0))),\"\")","v":""},{"$f":"IFERROR(IF(INDEX('Disaggregation1B_Import-Export'!H$8:H$218,MATCH($B30,'Disaggregation1B_Import-Export'!$C$8:$C$218,0))=\"\",\"\",INDEX('Disaggregation1B_Import-Export'!H$8:H$218,MATCH($B30,'Disaggregation1B_Import-Export'!$C$8:$C$218,0))),\"\")","v":""},{"$f":"IFERROR(IF(INDEX('Disaggregation1B_Import-Export'!I$8:I$218,MATCH($B30,'Disaggregation1B_Import-Export'!$C$8:$C$218,0))=\"\",\"\",INDEX('Disaggregation1B_Import-Export'!I$8:I$218,MATCH($B30,'Disaggregation1B_Import-Export'!$C$8:$C$218,0))),\"\")","v":""},{"$f":"IFERROR(IF(INDEX('Disaggregation1B_Import-Export'!J$8:J$218,MATCH($B30,'Disaggregation1B_Import-Export'!$C$8:$C$218,0))=\"\",\"\",INDEX('Disaggregation1B_Import-Export'!J$8:J$218,MATCH($B30,'Disaggregation1B_Import-Export'!$C$8:$C$218,0))),\"\")","v":""},{"$f":"IFERROR(IF(INDEX('Disaggregation1B_Import-Export'!K$8:K$218,MATCH($B30,'Disaggregation1B_Import-Export'!$C$8:$C$218,0))=\"\",\"\",INDEX('Disaggregation1B_Import-Export'!K$8:K$218,MATCH($B30,'Disaggregation1B_Import-Export'!$C$8:$C$218,0))),\"\")","v":""},{"$f":"IFERROR(IF(INDEX('Disaggregation1B_Import-Export'!L$8:L$218,MATCH($B30,'Disaggregation1B_Import-Export'!$C$8:$C$218,0))=\"\",\"\",INDEX('Disaggregation1B_Import-Export'!L$8:L$218,MATCH($B30,'Disaggregation1B_Import-Export'!$C$8:$C$218,0))),\"\")","v":""},{"$f":"IFERROR(IF(INDEX('Disaggregation1B_Import-Export'!AQ$8:AQ$218,MATCH($B30,'Disaggregation1B_Import-Export'!$C$8:$C$218,0))=\"\",\"\",INDEX('Disaggregation1B_Import-Export'!AQ$8:AQ$218,MATCH($B30,'Disaggregation1B_Import-Export'!$C$8:$C$218,0))),\"\")","v":""},null,null,"",null,null,null,null,null,"",null,null,null,null,null,""]
[21,"Coverage21",{"$f":"IFERROR(INDEX('Disaggregation1B_Import-Export'!D$8:D$218,MATCH($B31,'Disaggregation1B_Import-Export'!$C$8:$C$218,0)),\"\")","v":""},{"$f":"IFERROR(INDEX('Disaggregation1B_Import-Export'!AF$8:AF$235,MATCH($B31,'Disaggregation1B_Import-Export'!$C$8:$C$235,0)),\"\")","v":""},{"$f":"IFERROR(IF(INDEX('Disaggregation1B_Import-Export'!AG$8:AG$218,MATCH($B31,'Disaggregation1B_Import-Export'!$C$8:$C$218,0))=\"\",\"\",INDEX('Disaggregation1B_Import-Export'!AG$8:AG$218,MATCH($B31,'Disaggregation1B_Import-Export'!$C$8:$C$218,0))),\"\")","v":""},{"$f":"IFERROR(IF(INDEX('Disaggregation1B_Import-Export'!AH$8:AH$218,MATCH($B31,'Disaggregation1B_Import-Export'!$C$8:$C$218,0))=\"\",\"\",INDEX('Disaggregation1B_Import-Export'!AH$8:AH$218,MATCH($B31,'Disaggregation1B_Import-Export'!$C$8:$C$218,0))),\"\")","v":""},{"$f":"IFERROR(IF(INDEX('Disaggregation1B_Import-Export'!H$8:H$218,MATCH($B31,'Disaggregation1B_Import-Export'!$C$8:$C$218,0))=\"\",\"\",INDEX('Disaggregation1B_Import-Export'!H$8:H$218,MATCH($B31,'Disaggregation1B_Import-Export'!$C$8:$C$218,0))),\"\")","v":""},{"$f":"IFERROR(IF(INDEX('Disaggregation1B_Import-Export'!I$8:I$218,MATCH($B31,'Disaggregation1B_Import-Export'!$C$8:$C$218,0))=\"\",\"\",INDEX('Disaggregation1B_Import-Export'!I$8:I$218,MATCH($B31,'Disaggregation1B_Import-Export'!$C$8:$C$218,0))),\"\")","v":""},{"$f":"IFERROR(IF(INDEX('Disaggregation1B_Import-Export'!J$8:J$218,MATCH($B31,'Disaggregation1B_Import-Export'!$C$8:$C$218,0))=\"\",\"\",INDEX('Disaggregation1B_Import-Export'!J$8:J$218,MATCH($B31,'Disaggregation1B_Import-Export'!$C$8:$C$218,0))),\"\")","v":""},{"$f":"IFERROR(IF(INDEX('Disaggregation1B_Import-Export'!K$8:K$218,MATCH($B31,'Disaggregation1B_Import-Export'!$C$8:$C$218,0))=\"\",\"\",INDEX('Disaggregation1B_Import-Export'!K$8:K$218,MATCH($B31,'Disaggregation1B_Import-Export'!$C$8:$C$218,0))),\"\")","v":""},{"$f":"IFERROR(IF(INDEX('Disaggregation1B_Import-Export'!L$8:L$218,MATCH($B31,'Disaggregation1B_Import-Export'!$C$8:$C$218,0))=\"\",\"\",INDEX('Disaggregation1B_Import-Export'!L$8:L$218,MATCH($B31,'Disaggregation1B_Import-Export'!$C$8:$C$218,0))),\"\")","v":""},{"$f":"IFERROR(IF(INDEX('Disaggregation1B_Import-Export'!AQ$8:AQ$218,MATCH($B31,'Disaggregation1B_Import-Export'!$C$8:$C$218,0))=\"\",\"\",INDEX('Disaggregation1B_Import-Export'!AQ$8:AQ$218,MATCH($B31,'Disaggregation1B_Import-Export'!$C$8:$C$218,0))),\"\")","v":""},null,null,"",null,null,null,null,null,"",null,null,null,null,null,""]
[22,"Coverage22",{"$f":"IFERROR(INDEX('Disaggregation1B_Import-Export'!D$8:D$218,MATCH($B32,'Disaggregation1B_Import-Export'!$C$8:$C$218,0)),\"\")","v":""},{"$f":"IFERROR(INDEX('Disaggregation1B_Import-Export'!AF$8:AF$235,MATCH($B32,'Disaggregation1B_Import-Export'!$C$8:$C$235,0)),\"\")","v":""},{"$f":"IFERROR(IF(INDEX('Disaggregation1B_Import-Export'!AG$8:AG$218,MATCH($B32,'Disaggregation1B_Import-Export'!$C$8:$C$218,0))=\"\",\"\",INDEX('Disaggregation1B_Import-Export'!AG$8:AG$218,MATCH($B32,'Disaggregation1B_Import-Export'!$C$8:$C$218,0))),\"\")","v":""},{"$f":"IFERROR(IF(INDEX('Disaggregation1B_Import-Export'!AH$8:AH$218,MATCH($B32,'Disaggregation1B_Import-Export'!$C$8:$C$218,0))=\"\",\"\",INDEX('Disaggregation1B_Import-Export'!AH$8:AH$218,MATCH($B32,'Disaggregation1B_Import-Export'!$C$8:$C$218,0))),\"\")","v":""},{"$f":"IFERROR(IF(INDEX('Disaggregation1B_Import-Export'!H$8:H$218,MATCH($B32,'Disaggregation1B_Import-Export'!$C$8:$C$218,0))=\"\",\"\",INDEX('Disaggregation1B_Import-Export'!H$8:H$218,MATCH($B32,'Disaggregation1B_Import-Export'!$C$8:$C$218,0))),\"\")","v":""},{"$f":"IFERROR(IF(INDEX('Disaggregation1B_Import-Export'!I$8:I$218,MATCH($B32,'Disaggregation1B_Import-Export'!$C$8:$C$218,0))=\"\",\"\",INDEX('Disaggregation1B_Import-Export'!I$8:I$218,MATCH($B32,'Disaggregation1B_Import-Export'!$C$8:$C$218,0))),\"\")","v":""},{"$f":"IFERROR(IF(INDEX('Disaggregation1B_Import-Export'!J$8:J$218,MATCH($B32,'Disaggregation1B_Import-Export'!$C$8:$C$218,0))=\"\",\"\",INDEX('Disaggregation1B_Import-Export'!J$8:J$218,MATCH($B32,'Disaggregation1B_Import-Export'!$C$8:$C$218,0))),\"\")","v":""},{"$f":"IFERROR(IF(INDEX('Disaggregation1B_Import-Export'!K$8:K$218,MATCH($B32,'Disaggregation1B_Import-Export'!$C$8:$C$218,0))=\"\",\"\",INDEX('Disaggregation1B_Import-Export'!K$8:K$218,MATCH($B32,'Disaggregation1B_Import-Export'!$C$8:$C$218,0))),\"\")","v":""},{"$f":"IFERROR(IF(INDEX('Disaggregation1B_Import-Export'!L$8:L$218,MATCH($B32,'Disaggregation1B_Import-Export'!$C$8:$C$218,0))=\"\",\"\",INDEX('Disaggregation1B_Import-Export'!L$8:L$218,MATCH($B32,'Disaggregation1B_Import-Export'!$C$8:$C$218,0))),\"\")","v":""},{"$f":"IFERROR(IF(INDEX('Disaggregation1B_Import-Export'!AQ$8:AQ$218,MATCH($B32,'Disaggregation1B_Import-Export'!$C$8:$C$218,0))=\"\",\"\",INDEX('Disaggregation1B_Import-Export'!AQ$8:AQ$218,MATCH($B32,'Disaggregation1B_Import-Export'!$C$8:$C$218,0))),\"\")","v":""},null,null,"",null,null,null,null,null,"",null,null,null,null,null,""]
[23,"Coverage23",{"$f":"IFERROR(INDEX('Disaggregation1B_Import-Export'!D$8:D$218,MATCH($B33,'Disaggregation1B_Import-Export'!$C$8:$C$218,0)),\"\")","v":""},{"$f":"IFERROR(INDEX('Disaggregation1B_Import-Export'!AF$8:AF$235,MATCH($B33,'Disaggregation1B_Import-Export'!$C$8:$C$235,0)),\"\")","v":""},{"$f":"IFERROR(IF(INDEX('Disaggregation1B_Import-Export'!AG$8:AG$218,MATCH($B33,'Disaggregation1B_Import-Export'!$C$8:$C$218,0))=\"\",\"\",INDEX('Disaggregation1B_Import-Export'!AG$8:AG$218,MATCH($B33,'Disaggregation1B_Import-Export'!$C$8:$C$218,0))),\"\")","v":""},{"$f":"IFERROR(IF(INDEX('Disaggregation1B_Import-Export'!AH$8:AH$218,MATCH($B33,'Disaggregation1B_Import-Export'!$C$8:$C$218,0))=\"\",\"\",INDEX('Disaggregation1B_Import-Export'!AH$8:AH$218,MATCH($B33,'Disaggregation1B_Import-Export'!$C$8:$C$218,0))),\"\")","v":""},{"$f":"IFERROR(IF(INDEX('Disaggregation1B_Import-Export'!H$8:H$218,MATCH($B33,'Disaggregation1B_Import-Export'!$C$8:$C$218,0))=\"\",\"\",INDEX('Disaggregation1B_Import-Export'!H$8:H$218,MATCH($B33,'Disaggregation1B_Import-Export'!$C$8:$C$218,0))),\"\")","v":""},{"$f":"IFERROR(IF(INDEX('Disaggregation1B_Import-Export'!I$8:I$218,MATCH($B33,'Disaggregation1B_Import-Export'!$C$8:$C$218,0))=\"\",\"\",INDEX('Disaggregation1B_Import-Export'!I$8:I$218,MATCH($B33,'Disaggregation1B_Import-Export'!$C$8:$C$218,0))),\"\")","v":""},{"$f":"IFERROR(IF(INDEX('Disaggregation1B_Import-Export'!J$8:J$218,MATCH($B33,'Disaggregation1B_Import-Export'!$C$8:$C$218,0))=\"\",\"\",INDEX('Disaggregation1B_Import-Export'!J$8:J$218,MATCH($B33,'Disaggregation1B_Import-Export'!$C$8:$C$218,0))),\"\")","v":""},{"$f":"IFERROR(IF(INDEX('Disaggregation1B_Import-Export'!K$8:K$218,MATCH($B33,'Disaggregation1B_Import-Export'!$C$8:$C$218,0))=\"\",\"\",INDEX('Disaggregation1B_Import-Export'!K$8:K$218,MATCH($B33,'Disaggregation1B_Import-Export'!$C$8:$C$218,0))),\"\")","v":""},{"$f":"IFERROR(IF(INDEX('Disaggregation1B_Import-Export'!L$8:L$218,MATCH($B33,'Disaggregation1B_Import-Export'!$C$8:$C$218,0))=\"\",\"\",INDEX('Disaggregation1B_Import-Export'!L$8:L$218,MATCH($B33,'Disaggregation1B_Import-Export'!$C$8:$C$218,0))),\"\")","v":""},{"$f":"IFERROR(IF(INDEX('Disaggregation1B_Import-Export'!AQ$8:AQ$218,MATCH($B33,'Disaggregation1B_Import-Export'!$C$8:$C$218,0))=\"\",\"\",INDEX('Disaggregation1B_Import-Export'!AQ$8:AQ$218,MATCH($B33,'Disaggregation1B_Import-Export'!$C$8:$C$218,0))),\"\")","v":""},null,null,"",null,null,null,null,null,"",null,null,null,null,null,""]
[24,"Coverage24",{"$f":"IFERROR(INDEX('Disaggregation1B_Import-Export'!D$8:D$218,MATCH($B34,'Disaggregation1B_Import-Export'!$C$8:$C$218,0)),\"\")","v":""},{"$f":"IFERROR(INDEX('Disaggregation1B_Import-Export'!AF$8:AF$235,MATCH($B34,'Disaggregation1B_Import-Export'!$C$8:$C$235,0)),\"\")","v":""},{"$f":"IFERROR(IF(INDEX('Disaggregation1B_Import-Export'!AG$8:AG$218,MATCH($B34,'Disaggregation1B_Import-Export'!$C$8:$C$218,0))=\"\",\"\",INDEX('Disaggregation1B_Import-Export'!AG$8:AG$218,MATCH($B34,'Disaggregation1B_Import-Export'!$C$8:$C$218,0))),\"\")","v":""},{"$f":"IFERROR(IF(INDEX('Disaggregation1B_Import-Export'!AH$8:AH$218,MATCH($B34,'Disaggregation1B_Import-Export'!$C$8:$C$218,0))=\"\",\"\",INDEX('Disaggregation1B_Import-Export'!AH$8:AH$218,MATCH($B34,'Disaggregation1B_Import-Export'!$C$8:$C$218,0))),\"\")","v":""},{"$f":"IFERROR(IF(INDEX('Disaggregation1B_Import-Export'!H$8:H$218,MATCH($B34,'Disaggregation1B_Import-Export'!$C$8:$C$218,0))=\"\",\"\",INDEX('Disaggregation1B_Import-Export'!H$8:H$218,MATCH($B34,'Disaggregation1B_Import-Export'!$C$8:$C$218,0))),\"\")","v":""},{"$f":"IFERROR(IF(INDEX('Disaggregation1B_Import-Export'!I$8:I$218,MATCH($B34,'Disaggregation1B_Import-Export'!$C$8:$C$218,0))=\"\",\"\",INDEX('Disaggregation1B_Import-Export'!I$8:I$218,MATCH($B34,'Disaggregation1B_Import-Export'!$C$8:$C$218,0))),\"\")","v":""},{"$f":"IFERROR(IF(INDEX('Disaggregation1B_Import-Export'!J$8:J$218,MATCH($B34,'Disaggregation1B_Import-Export'!$C$8:$C$218,0))=\"\",\"\",INDEX('Disaggregation1B_Import-Export'!J$8:J$218,MATCH($B34,'Disaggregation1B_Import-Export'!$C$8:$C$218,0))),\"\")","v":""},{"$f":"IFERROR(IF(INDEX('Disaggregation1B_Import-Export'!K$8:K$218,MATCH($B34,'Disaggregation1B_Import-Export'!$C$8:$C$218,0))=\"\",\"\",INDEX('Disaggregation1B_Import-Export'!K$8:K$218,MATCH($B34,'Disaggregation1B_Import-Export'!$C$8:$C$218,0))),\"\")","v":""},{"$f":"IFERROR(IF(INDEX('Disaggregation1B_Import-Export'!L$8:L$218,MATCH($B34,'Disaggregation1B_Import-Export'!$C$8:$C$218,0))=\"\",\"\",INDEX('Disaggregation1B_Import-Export'!L$8:L$218,MATCH($B34,'Disaggregation1B_Import-Export'!$C$8:$C$218,0))),\"\")","v":""},{"$f":"IFERROR(IF(INDEX('Disaggregation1B_Import-Export'!AQ$8:AQ$218,MATCH($B34,'Disaggregation1B_Import-Export'!$C$8:$C$218,0))=\"\",\"\",INDEX('Disaggregation1B_Import-Export'!AQ$8:AQ$218,MATCH($B34,'Disaggregation1B_Import-Export'!$C$8:$C$218,0))),\"\")","v":""},null,null,"",null,null,null,null,null,"",null,null,null,null,null,""]
[25,"Coverage25",{"$f":"IFERROR(INDEX('Disaggregation1B_Import-Export'!D$8:D$218,MATCH($B35,'Disaggregation1B_Import-Export'!$C$8:$C$218,0)),\"\")","v":""},{"$f":"IFERROR(INDEX('Disaggregation1B_Import-Export'!AF$8:AF$235,MATCH($B35,'Disaggregation1B_Import-Export'!$C$8:$C$235,0)),\"\")","v":""},{"$f":"IFERROR(IF(INDEX('Disaggregation1B_Import-Export'!AG$8:AG$218,MATCH($B35,'Disaggregation1B_Import-Export'!$C$8:$C$218,0))=\"\",\"\",INDEX('Disaggregation1B_Import-Export'!AG$8:AG$218,MATCH($B35,'Disaggregation1B_Import-Export'!$C$8:$C$218,0))),\"\")","v":""},{"$f":"IFERROR(IF(INDEX('Disaggregation1B_Import-Export'!AH$8:AH$218,MATCH($B35,'Disaggregation1B_Import-Export'!$C$8:$C$218,0))=\"\",\"\",INDEX('Disaggregation1B_Import-Export'!AH$8:AH$218,MATCH($B35,'Disaggregation1B_Import-Export'!$C$8:$C$218,0))),\"\")","v":""},{"$f":"IFERROR(IF(INDEX('Disaggregation1B_Import-Export'!H$8:H$218,MATCH($B35,'Disaggregation1B_Import-Export'!$C$8:$C$218,0))=\"\",\"\",INDEX('Disaggregation1B_Import-Export'!H$8:H$218,MATCH($B35,'Disaggregation1B_Import-Export'!$C$8:$C$218,0))),\"\")","v":""},{"$f":"IFERROR(IF(INDEX('Disaggregation1B_Import-Export'!I$8:I$218,MATCH($B35,'Disaggregation1B_Import-Export'!$C$8:$C$218,0))=\"\",\"\",INDEX('Disaggregation1B_Import-Export'!I$8:I$218,MATCH($B35,'Disaggregation1B_Import-Export'!$C$8:$C$218,0))),\"\")","v":""},{"$f":"IFERROR(IF(INDEX('Disaggregation1B_Import-Export'!J$8:J$218,MATCH($B35,'Disaggregation1B_Import-Export'!$C$8:$C$218,0))=\"\",\"\",INDEX('Disaggregation1B_Import-Export'!J$8:J$218,MATCH($B35,'Disaggregation1B_Import-Export'!$C$8:$C$218,0))),\"\")","v":""},{"$f":"IFERROR(IF(INDEX('Disaggregation1B_Import-Export'!K$8:K$218,MATCH($B35,'Disaggregation1B_Import-Export'!$C$8:$C$218,0))=\"\",\"\",INDEX('Disaggregation1B_Import-Export'!K$8:K$218,MATCH($B35,'Disaggregation1B_Import-Export'!$C$8:$C$218,0))),\"\")","v":""},{"$f":"IFERROR(IF(INDEX('Disaggregation1B_Import-Export'!L$8:L$218,MATCH($B35,'Disaggregation1B_Import-Export'!$C$8:$C$218,0))=\"\",\"\",INDEX('Disaggregation1B_Import-Export'!L$8:L$218,MATCH($B35,'Disaggregation1B_Import-Export'!$C$8:$C$218,0))),\"\")","v":""},{"$f":"IFERROR(IF(INDEX('Disaggregation1B_Import-Export'!AQ$8:AQ$218,MATCH($B35,'Disaggregation1B_Import-Export'!$C$8:$C$218,0))=\"\",\"\",INDEX('Disaggregation1B_Import-Export'!AQ$8:AQ$218,MATCH($B35,'Disaggregation1B_Import-Export'!$C$8:$C$218,0))),\"\")","v":""},null,null,"",null,null,null,null,null,"",null,null,null,null,null,""]
[26,"Coverage26",{"$f":"IFERROR(INDEX('Disaggregation1B_Import-Export'!D$8:D$218,MATCH($B36,'Disaggregation1B_Import-Export'!$C$8:$C$218,0)),\"\")","v":""},{"$f":"IFERROR(INDEX('Disaggregation1B_Import-Export'!AF$8:AF$235,MATCH($B36,'Disaggregation1B_Import-Export'!$C$8:$C$235,0)),\"\")","v":""},{"$f":"IFERROR(IF(INDEX('Disaggregation1B_Import-Export'!AG$8:AG$218,MATCH($B36,'Disaggregation1B_Import-Export'!$C$8:$C$218,0))=\"\",\"\",INDEX('Disaggregation1B_Import-Export'!AG$8:AG$218,MATCH($B36,'Disaggregation1B_Import-Export'!$C$8:$C$218,0))),\"\")","v":""},{"$f":"IFERROR(IF(INDEX('Disaggregation1B_Import-Export'!AH$8:AH$218,MATCH($B36,'Disaggregation1B_Import-Export'!$C$8:$C$218,0))=\"\",\"\",INDEX('Disaggregation1B_Import-Export'!AH$8:AH$218,MATCH($B36,'Disaggregation1B_Import-Export'!$C$8:$C$218,0))),\"\")","v":""},{"$f":"IFERROR(IF(INDEX('Disaggregation1B_Import-Export'!H$8:H$218,MATCH($B36,'Disaggregation1B_Import-Export'!$C$8:$C$218,0))=\"\",\"\",INDEX('Disaggregation1B_Import-Export'!H$8:H$218,MATCH($B36,'Disaggregation1B_Import-Export'!$C$8:$C$218,0))),\"\")","v":""},{"$f":"IFERROR(IF(INDEX('Disaggregation1B_Import-Export'!I$8:I$218,MATCH($B36,'Disaggregation1B_Import-Export'!$C$8:$C$218,0))=\"\",\"\",INDEX('Disaggregation1B_Import-Export'!I$8:I$218,MATCH($B36,'Disaggregation1B_Import-Export'!$C$8:$C$218,0))),\"\")","v":""},{"$f":"IFERROR(IF(INDEX('Disaggregation1B_Import-Export'!J$8:J$218,MATCH($B36,'Disaggregation1B_Import-Export'!$C$8:$C$218,0))=\"\",\"\",INDEX('Disaggregation1B_Import-Export'!J$8:J$218,MATCH($B36,'Disaggregation1B_Import-Export'!$C$8:$C$218,0))),\"\")","v":""},{"$f":"IFERROR(IF(INDEX('Disaggregation1B_Import-Export'!K$8:K$218,MATCH($B36,'Disaggregation1B_Import-Export'!$C$8:$C$218,0))=\"\",\"\",INDEX('Disaggregation1B_Import-Export'!K$8:K$218,MATCH($B36,'Disaggregation1B_Import-Export'!$C$8:$C$218,0))),\"\")","v":""},{"$f":"IFERROR(IF(INDEX('Disaggregation1B_Import-Export'!L$8:L$218,MATCH($B36,'Disaggregation1B_Import-Export'!$C$8:$C$218,0))=\"\",\"\",INDEX('Disaggregation1B_Import-Export'!L$8:L$218,MATCH($B36,'Disaggregation1B_Import-Export'!$C$8:$C$218,0))),\"\")","v":""},{"$f":"IFERROR(IF(INDEX('Disaggregation1B_Import-Export'!AQ$8:AQ$218,MATCH($B36,'Disaggregation1B_Import-Export'!$C$8:$C$218,0))=\"\",\"\",INDEX('Disaggregation1B_Import-Export'!AQ$8:AQ$218,MATCH($B36,'Disaggregation1B_Import-Export'!$C$8:$C$218,0))),\"\")","v":""},null,null,"",null,null,null,null,null,"",null,null,null,null,null,""]
[27,"Coverage27",{"$f":"IFERROR(INDEX('Disaggregation1B_Import-Export'!D$8:D$218,MATCH($B37,'Disaggregation1B_Import-Export'!$C$8:$C$218,0)),\"\")","v":""},{"$f":"IFERROR(INDEX('Disaggregation1B_Import-Export'!AF$8:AF$235,MATCH($B37,'Disaggregation1B_Import-Export'!$C$8:$C$235,0)),\"\")","v":""},{"$f":"IFERROR(IF(INDEX('Disaggregation1B_Import-Export'!AG$8:AG$218,MATCH($B37,'Disaggregation1B_Import-Export'!$C$8:$C$218,0))=\"\",\"\",INDEX('Disaggregation1B_Import-Export'!AG$8:AG$218,MATCH($B37,'Disaggregation1B_Import-Export'!$C$8:$C$218,0))),\"\")","v":""},{"$f":"IFERROR(IF(INDEX('Disaggregation1B_Import-Export'!AH$8:AH$218,MATCH($B37,'Disaggregation1B_Import-Export'!$C$8:$C$218,0))=\"\",\"\",INDEX('Disaggregation1B_Import-Export'!AH$8:AH$218,MATCH($B37,'Disaggregation1B_Import-Export'!$C$8:$C$218,0))),\"\")","v":""},{"$f":"IFERROR(IF(INDEX('Disaggregation1B_Import-Export'!H$8:H$218,MATCH($B37,'Disaggregation1B_Import-Export'!$C$8:$C$218,0))=\"\",\"\",INDEX('Disaggregation1B_Import-Export'!H$8:H$218,MATCH($B37,'Disaggregation1B_Import-Export'!$C$8:$C$218,0))),\"\")","v":""},{"$f":"IFERROR(IF(INDEX('Disaggregation1B_Import-Export'!I$8:I$218,MATCH($B37,'Disaggregation1B_Import-Export'!$C$8:$C$218,0))=\"\",\"\",INDEX('Disaggregation1B_Import-Export'!I$8:I$218,MATCH($B37,'Disaggregation1B_Import-Export'!$C$8:$C$218,0))),\"\")","v":""},{"$f":"IFERROR(IF(INDEX('Disaggregation1B_Import-Export'!J$8:J$218,MATCH($B37,'Disaggregation1B_Import-Export'!$C$8:$C$218,0))=\"\",\"\",INDEX('Disaggregation1B_Import-Export'!J$8:J$218,MATCH($B37,'Disaggregation1B_Import-Export'!$C$8:$C$218,0))),\"\")","v":""},{"$f":"IFERROR(IF(INDEX('Disaggregation1B_Import-Export'!K$8:K$218,MATCH($B37,'Disaggregation1B_Import-Export'!$C$8:$C$218,0))=\"\",\"\",INDEX('Disaggregation1B_Import-Export'!K$8:K$218,MATCH($B37,'Disaggregation1B_Import-Export'!$C$8:$C$218,0))),\"\")","v":""},{"$f":"IFERROR(IF(INDEX('Disaggregation1B_Import-Export'!L$8:L$218,MATCH($B37,'Disaggregation1B_Import-Export'!$C$8:$C$218,0))=\"\",\"\",INDEX('Disaggregation1B_Import-Export'!L$8:L$218,MATCH($B37,'Disaggregation1B_Import-Export'!$C$8:$C$218,0))),\"\")","v":""},{"$f":"IFERROR(IF(INDEX('Disaggregation1B_Import-Export'!AQ$8:AQ$218,MATCH($B37,'Disaggregation1B_Import-Export'!$C$8:$C$218,0))=\"\",\"\",INDEX('Disaggregation1B_Import-Export'!AQ$8:AQ$218,MATCH($B37,'Disaggregation1B_Import-Export'!$C$8:$C$218,0))),\"\")","v":""},null,null,"",null,null,null,null,null,"",null,null,null,null,null,""]
[28,"Coverage28",{"$f":"IFERROR(INDEX('Disaggregation1B_Import-Export'!D$8:D$218,MATCH($B38,'Disaggregation1B_Import-Export'!$C$8:$C$218,0)),\"\")","v":""},{"$f":"IFERROR(INDEX('Disaggregation1B_Import-Export'!AF$8:AF$235,MATCH($B38,'Disaggregation1B_Import-Export'!$C$8:$C$235,0)),\"\")","v":""},{"$f":"IFERROR(IF(INDEX('Disaggregation1B_Import-Export'!AG$8:AG$218,MATCH($B38,'Disaggregation1B_Import-Export'!$C$8:$C$218,0))=\"\",\"\",INDEX('Disaggregation1B_Import-Export'!AG$8:AG$218,MATCH($B38,'Disaggregation1B_Import-Export'!$C$8:$C$218,0))),\"\")","v":""},{"$f":"IFERROR(IF(INDEX('Disaggregation1B_Import-Export'!AH$8:AH$218,MATCH($B38,'Disaggregation1B_Import-Export'!$C$8:$C$218,0))=\"\",\"\",INDEX('Disaggregation1B_Import-Export'!AH$8:AH$218,MATCH($B38,'Disaggregation1B_Import-Export'!$C$8:$C$218,0))),\"\")","v":""},{"$f":"IFERROR(IF(INDEX('Disaggregation1B_Import-Export'!H$8:H$218,MATCH($B38,'Disaggregation1B_Import-Export'!$C$8:$C$218,0))=\"\",\"\",INDEX('Disaggregation1B_Import-Export'!H$8:H$218,MATCH($B38,'Disaggregation1B_Import-Export'!$C$8:$C$218,0))),\"\")","v":""},{"$f":"IFERROR(IF(INDEX('Disaggregation1B_Import-Export'!I$8:I$218,MATCH($B38,'Disaggregation1B_Import-Export'!$C$8:$C$218,0))=\"\",\"\",INDEX('Disaggregation1B_Import-Export'!I$8:I$218,MATCH($B38,'Disaggregation1B_Import-Export'!$C$8:$C$218,0))),\"\")","v":""},{"$f":"IFERROR(IF(INDEX('Disaggregation1B_Import-Export'!J$8:J$218,MATCH($B38,'Disaggregation1B_Import-Export'!$C$8:$C$218,0))=\"\",\"\",INDEX('Disaggregation1B_Import-Export'!J$8:J$218,MATCH($B38,'Disaggregation1B_Import-Export'!$C$8:$C$218,0))),\"\")","v":""},{"$f":"IFERROR(IF(INDEX('Disaggregation1B_Import-Export'!K$8:K$218,MATCH($B38,'Disaggregation1B_Import-Export'!$C$8:$C$218,0))=\"\",\"\",INDEX('Disaggregation1B_Import-Export'!K$8:K$218,MATCH($B38,'Disaggregation1B_Import-Export'!$C$8:$C$218,0))),\"\")","v":""},{"$f":"IFERROR(IF(INDEX('Disaggregation1B_Import-Export'!L$8:L$218,MATCH($B38,'Disaggregation1B_Import-Export'!$C$8:$C$218,0))=\"\",\"\",INDEX('Disaggregation1B_Import-Export'!L$8:L$218,MATCH($B38,'Disaggregation1B_Import-Export'!$C$8:$C$218,0))),\"\")","v":""},{"$f":"IFERROR(IF(INDEX('Disaggregation1B_Import-Export'!AQ$8:AQ$218,MATCH($B38,'Disaggregation1B_Import-Export'!$C$8:$C$218,0))=\"\",\"\",INDEX('Disaggregation1B_Import-Export'!AQ$8:AQ$218,MATCH($B38,'Disaggregation1B_Import-Export'!$C$8:$C$218,0))),\"\")","v":""},null,null,"",null,null,null,null,null,"",null,null,null,null,null,""]
[29,"Coverage29",{"$f":"IFERROR(INDEX('Disaggregation1B_Import-Export'!D$8:D$218,MATCH($B39,'Disaggregation1B_Import-Export'!$C$8:$C$218,0)),\"\")","v":""},{"$f":"IFERROR(INDEX('Disaggregation1B_Import-Export'!AF$8:AF$235,MATCH($B39,'Disaggregation1B_Import-Export'!$C$8:$C$235,0)),\"\")","v":""},{"$f":"IFERROR(IF(INDEX('Disaggregation1B_Import-Export'!AG$8:AG$218,MATCH($B39,'Disaggregation1B_Import-Export'!$C$8:$C$218,0))=\"\",\"\",INDEX('Disaggregation1B_Import-Export'!AG$8:AG$218,MATCH($B39,'Disaggregation1B_Import-Export'!$C$8:$C$218,0))),\"\")","v":""},{"$f":"IFERROR(IF(INDEX('Disaggregation1B_Import-Export'!AH$8:AH$218,MATCH($B39,'Disaggregation1B_Import-Export'!$C$8:$C$218,0))=\"\",\"\",INDEX('Disaggregation1B_Import-Export'!AH$8:AH$218,MATCH($B39,'Disaggregation1B_Import-Export'!$C$8:$C$218,0))),\"\")","v":""},{"$f":"IFERROR(IF(INDEX('Disaggregation1B_Import-Export'!H$8:H$218,MATCH($B39,'Disaggregation1B_Import-Export'!$C$8:$C$218,0))=\"\",\"\",INDEX('Disaggregation1B_Import-Export'!H$8:H$218,MATCH($B39,'Disaggregation1B_Import-Export'!$C$8:$C$218,0))),\"\")","v":""},{"$f":"IFERROR(IF(INDEX('Disaggregation1B_Import-Export'!I$8:I$218,MATCH($B39,'Disaggregation1B_Import-Export'!$C$8:$C$218,0))=\"\",\"\",INDEX('Disaggregation1B_Import-Export'!I$8:I$218,MATCH($B39,'Disaggregation1B_Import-Export'!$C$8:$C$218,0))),\"\")","v":""},{"$f":"IFERROR(IF(INDEX('Disaggregation1B_Import-Export'!J$8:J$218,MATCH($B39,'Disaggregation1B_Import-Export'!$C$8:$C$218,0))=\"\",\"\",INDEX('Disaggregation1B_Import-Export'!J$8:J$218,MATCH($B39,'Disaggregation1B_Import-Export'!$C$8:$C$218,0))),\"\")","v":""},{"$f":"IFERROR(IF(INDEX('Disaggregation1B_Import-Export'!K$8:K$218,MATCH($B39,'Disaggregation1B_Import-Export'!$C$8:$C$218,0))=\"\",\"\",INDEX('Disaggregation1B_Import-Export'!K$8:K$218,MATCH($B39,'Disaggregation1B_Import-Export'!$C$8:$C$218,0))),\"\")","v":""},{"$f":"IFERROR(IF(INDEX('Disaggregation1B_Import-Export'!L$8:L$218,MATCH($B39,'Disaggregation1B_Import-Export'!$C$8:$C$218,0))=\"\",\"\",INDEX('Disaggregation1B_Import-Export'!L$8:L$218,MATCH($B39,'Disaggregation1B_Import-Export'!$C$8:$C$218,0))),\"\")","v":""},{"$f":"IFERROR(IF(INDEX('Disaggregation1B_Import-Export'!AQ$8:AQ$218,MATCH($B39,'Disaggregation1B_Import-Export'!$C$8:$C$218,0))=\"\",\"\",INDEX('Disaggregation1B_Import-Export'!AQ$8:AQ$218,MATCH($B39,'Disaggregation1B_Import-Export'!$C$8:$C$218,0))),\"\")","v":""},null,null,"",null,null,null,null,null,"",null,null,null,null,null,""]
[30,"Coverage30",{"$f":"IFERROR(INDEX('Disaggregation1B_Import-Export'!D$8:D$218,MATCH($B40,'Disaggregation1B_Import-Export'!$C$8:$C$218,0)),\"\")","v":""},{"$f":"IFERROR(INDEX('Disaggregation1B_Import-Export'!AF$8:AF$235,MATCH($B40,'Disaggregation1B_Import-Export'!$C$8:$C$235,0)),\"\")","v":""},{"$f":"IFERROR(IF(INDEX('Disaggregation1B_Import-Export'!AG$8:AG$218,MATCH($B40,'Disaggregation1B_Import-Export'!$C$8:$C$218,0))=\"\",\"\",INDEX('Disaggregation1B_Import-Export'!AG$8:AG$218,MATCH($B40,'Disaggregation1B_Import-Export'!$C$8:$C$218,0))),\"\")","v":""},{"$f":"IFERROR(IF(INDEX('Disaggregation1B_Import-Export'!AH$8:AH$218,MATCH($B40,'Disaggregation1B_Import-Export'!$C$8:$C$218,0))=\"\",\"\",INDEX('Disaggregation1B_Import-Export'!AH$8:AH$218,MATCH($B40,'Disaggregation1B_Import-Export'!$C$8:$C$218,0))),\"\")","v":""},{"$f":"IFERROR(IF(INDEX('Disaggregation1B_Import-Export'!H$8:H$218,MATCH($B40,'Disaggregation1B_Import-Export'!$C$8:$C$218,0))=\"\",\"\",INDEX('Disaggregation1B_Import-Export'!H$8:H$218,MATCH($B40,'Disaggregation1B_Import-Export'!$C$8:$C$218,0))),\"\")","v":""},{"$f":"IFERROR(IF(INDEX('Disaggregation1B_Import-Export'!I$8:I$218,MATCH($B40,'Disaggregation1B_Import-Export'!$C$8:$C$218,0))=\"\",\"\",INDEX('Disaggregation1B_Import-Export'!I$8:I$218,MATCH($B40,'Disaggregation1B_Import-Export'!$C$8:$C$218,0))),\"\")","v":""},{"$f":"IFERROR(IF(INDEX('Disaggregation1B_Import-Export'!J$8:J$218,MATCH($B40,'Disaggregation1B_Import-Export'!$C$8:$C$218,0))=\"\",\"\",INDEX('Disaggregation1B_Import-Export'!J$8:J$218,MATCH($B40,'Disaggregation1B_Import-Export'!$C$8:$C$218,0))),\"\")","v":""},{"$f":"IFERROR(IF(INDEX('Disaggregation1B_Import-Export'!K$8:K$218,MATCH($B40,'Disaggregation1B_Import-Export'!$C$8:$C$218,0))=\"\",\"\",INDEX('Disaggregation1B_Import-Export'!K$8:K$218,MATCH($B40,'Disaggregation1B_Import-Export'!$C$8:$C$218,0))),\"\")","v":""},{"$f":"IFERROR(IF(INDEX('Disaggregation1B_Import-Export'!L$8:L$218,MATCH($B40,'Disaggregation1B_Import-Export'!$C$8:$C$218,0))=\"\",\"\",INDEX('Disaggregation1B_Import-Export'!L$8:L$218,MATCH($B40,'Disaggregation1B_Import-Export'!$C$8:$C$218,0))),\"\")","v":""},{"$f":"IFERROR(IF(INDEX('Disaggregation1B_Import-Export'!AQ$8:AQ$218,MATCH($B40,'Disaggregation1B_Import-Export'!$C$8:$C$218,0))=\"\",\"\",INDEX('Disaggregation1B_Import-Export'!AQ$8:AQ$218,MATCH($B40,'Disaggregation1B_Import-Export'!$C$8:$C$218,0))),\"\")","v":""},null,null,"",null,null,null,null,null,"",null,null,null,null,null,""]
[31,"Coverage31",{"$f":"IFERROR(INDEX('Disaggregation1B_Import-Export'!D$8:D$218,MATCH($B41,'Disaggregation1B_Import-Export'!$C$8:$C$218,0)),\"\")","v":""},{"$f":"IFERROR(INDEX('Disaggregation1B_Import-Export'!AF$8:AF$235,MATCH($B41,'Disaggregation1B_Import-Export'!$C$8:$C$235,0)),\"\")","v":""},{"$f":"IFERROR(IF(INDEX('Disaggregation1B_Import-Export'!AG$8:AG$218,MATCH($B41,'Disaggregation1B_Import-Export'!$C$8:$C$218,0))=\"\",\"\",INDEX('Disaggregation1B_Import-Export'!AG$8:AG$218,MATCH($B41,'Disaggregation1B_Import-Export'!$C$8:$C$218,0))),\"\")","v":""},{"$f":"IFERROR(IF(INDEX('Disaggregation1B_Import-Export'!AH$8:AH$218,MATCH($B41,'Disaggregation1B_Import-Export'!$C$8:$C$218,0))=\"\",\"\",INDEX('Disaggregation1B_Import-Export'!AH$8:AH$218,MATCH($B41,'Disaggregation1B_Import-Export'!$C$8:$C$218,0))),\"\")","v":""},{"$f":"IFERROR(IF(INDEX('Disaggregation1B_Import-Export'!H$8:H$218,MATCH($B41,'Disaggregation1B_Import-Export'!$C$8:$C$218,0))=\"\",\"\",INDEX('Disaggregation1B_Import-Export'!H$8:H$218,MATCH($B41,'Disaggregation1B_Import-Export'!$C$8:$C$218,0))),\"\")","v":""},{"$f":"IFERROR(IF(INDEX('Disaggregation1B_Import-Export'!I$8:I$218,MATCH($B41,'Disaggregation1B_Import-Export'!$C$8:$C$218,0))=\"\",\"\",INDEX('Disaggregation1B_Import-Export'!I$8:I$218,MATCH($B41,'Disaggregation1B_Import-Export'!$C$8:$C$218,0))),\"\")","v":""},{"$f":"IFERROR(IF(INDEX('Disaggregation1B_Import-Export'!J$8:J$218,MATCH($B41,'Disaggregation1B_Import-Export'!$C$8:$C$218,0))=\"\",\"\",INDEX('Disaggregation1B_Import-Export'!J$8:J$218,MATCH($B41,'Disaggregation1B_Import-Export'!$C$8:$C$218,0))),\"\")","v":""},{"$f":"IFERROR(IF(INDEX('Disaggregation1B_Import-Export'!K$8:K$218,MATCH($B41,'Disaggregation1B_Import-Export'!$C$8:$C$218,0))=\"\",\"\",INDEX('Disaggregation1B_Import-Export'!K$8:K$218,MATCH($B41,'Disaggregation1B_Import-Export'!$C$8:$C$218,0))),\"\")","v":""},{"$f":"IFERROR(IF(INDEX('Disaggregation1B_Import-Export'!L$8:L$218,MATCH($B41,'Disaggregation1B_Import-Export'!$C$8:$C$218,0))=\"\",\"\",INDEX('Disaggregation1B_Import-Export'!L$8:L$218,MATCH($B41,'Disaggregation1B_Import-Export'!$C$8:$C$218,0))),\"\")","v":""},{"$f":"IFERROR(IF(INDEX('Disaggregation1B_Import-Export'!AQ$8:AQ$218,MATCH($B41,'Disaggregation1B_Import-Export'!$C$8:$C$218,0))=\"\",\"\",INDEX('Disaggregation1B_Import-Export'!AQ$8:AQ$218,MATCH($B41,'Disaggregation1B_Import-Export'!$C$8:$C$218,0))),\"\")","v":""},null,null,"",null,null,null,null,null,"",null,null,null,null,null,""]
[32,"Coverage32",{"$f":"IFERROR(INDEX('Disaggregation1B_Import-Export'!D$8:D$218,MATCH($B42,'Disaggregation1B_Import-Export'!$C$8:$C$218,0)),\"\")","v":""},{"$f":"IFERROR(INDEX('Disaggregation1B_Import-Export'!AF$8:AF$235,MATCH($B42,'Disaggregation1B_Import-Export'!$C$8:$C$235,0)),\"\")","v":""},{"$f":"IFERROR(IF(INDEX('Disaggregation1B_Import-Export'!AG$8:AG$218,MATCH($B42,'Disaggregation1B_Import-Export'!$C$8:$C$218,0))=\"\",\"\",INDEX('Disaggregation1B_Import-Export'!AG$8:AG$218,MATCH($B42,'Disaggregation1B_Import-Export'!$C$8:$C$218,0))),\"\")","v":""},{"$f":"IFERROR(IF(INDEX('Disaggregation1B_Import-Export'!AH$8:AH$218,MATCH($B42,'Disaggregation1B_Import-Export'!$C$8:$C$218,0))=\"\",\"\",INDEX('Disaggregation1B_Import-Export'!AH$8:AH$218,MATCH($B42,'Disaggregation1B_Import-Export'!$C$8:$C$218,0))),\"\")","v":""},{"$f":"IFERROR(IF(INDEX('Disaggregation1B_Import-Export'!H$8:H$218,MATCH($B42,'Disaggregation1B_Import-Export'!$C$8:$C$218,0))=\"\",\"\",INDEX('Disaggregation1B_Import-Export'!H$8:H$218,MATCH($B42,'Disaggregation1B_Import-Export'!$C$8:$C$218,0))),\"\")","v":""},{"$f":"IFERROR(IF(INDEX('Disaggregation1B_Import-Export'!I$8:I$218,MATCH($B42,'Disaggregation1B_Import-Export'!$C$8:$C$218,0))=\"\",\"\",INDEX('Disaggregation1B_Import-Export'!I$8:I$218,MATCH($B42,'Disaggregation1B_Import-Export'!$C$8:$C$218,0))),\"\")","v":""},{"$f":"IFERROR(IF(INDEX('Disaggregation1B_Import-Export'!J$8:J$218,MATCH($B42,'Disaggregation1B_Import-Export'!$C$8:$C$218,0))=\"\",\"\",INDEX('Disaggregation1B_Import-Export'!J$8:J$218,MATCH($B42,'Disaggregation1B_Import-Export'!$C$8:$C$218,0))),\"\")","v":""},{"$f":"IFERROR(IF(INDEX('Disaggregation1B_Import-Export'!K$8:K$218,MATCH($B42,'Disaggregation1B_Import-Export'!$C$8:$C$218,0))=\"\",\"\",INDEX('Disaggregation1B_Import-Export'!K$8:K$218,MATCH($B42,'Disaggregation1B_Import-Export'!$C$8:$C$218,0))),\"\")","v":""},{"$f":"IFERROR(IF(INDEX('Disaggregation1B_Import-Export'!L$8:L$218,MATCH($B42,'Disaggregation1B_Import-Export'!$C$8:$C$218,0))=\"\",\"\",INDEX('Disaggregation1B_Import-Export'!L$8:L$218,MATCH($B42,'Disaggregation1B_Import-Export'!$C$8:$C$218,0))),\"\")","v":""},{"$f":"IFERROR(IF(INDEX('Disaggregation1B_Import-Export'!AQ$8:AQ$218,MATCH($B42,'Disaggregation1B_Import-Export'!$C$8:$C$218,0))=\"\",\"\",INDEX('Disaggregation1B_Import-Export'!AQ$8:AQ$218,MATCH($B42,'Disaggregation1B_Import-Export'!$C$8:$C$218,0))),\"\")","v":""},null,null,"",null,null,null,null,null,"",null,null,null,null,null,""]
[33,"Coverage33",{"$f":"IFERROR(INDEX('Disaggregation1B_Import-Export'!D$8:D$218,MATCH($B43,'Disaggregation1B_Import-Export'!$C$8:$C$218,0)),\"\")","v":""},{"$f":"IFERROR(INDEX('Disaggregation1B_Import-Export'!AF$8:AF$235,MATCH($B43,'Disaggregation1B_Import-Export'!$C$8:$C$235,0)),\"\")","v":""},{"$f":"IFERROR(IF(INDEX('Disaggregation1B_Import-Export'!AG$8:AG$218,MATCH($B43,'Disaggregation1B_Import-Export'!$C$8:$C$218,0))=\"\",\"\",INDEX('Disaggregation1B_Import-Export'!AG$8:AG$218,MATCH($B43,'Disaggregation1B_Import-Export'!$C$8:$C$218,0))),\"\")","v":""},{"$f":"IFERROR(IF(INDEX('Disaggregation1B_Import-Export'!AH$8:AH$218,MATCH($B43,'Disaggregation1B_Import-Export'!$C$8:$C$218,0))=\"\",\"\",INDEX('Disaggregation1B_Import-Export'!AH$8:AH$218,MATCH($B43,'Disaggregation1B_Import-Export'!$C$8:$C$218,0))),\"\")","v":""},{"$f":"IFERROR(IF(INDEX('Disaggregation1B_Import-Export'!H$8:H$218,MATCH($B43,'Disaggregation1B_Import-Export'!$C$8:$C$218,0))=\"\",\"\",INDEX('Disaggregation1B_Import-Export'!H$8:H$218,MATCH($B43,'Disaggregation1B_Import-Export'!$C$8:$C$218,0))),\"\")","v":""},{"$f":"IFERROR(IF(INDEX('Disaggregation1B_Import-Export'!I$8:I$218,MATCH($B43,'Disaggregation1B_Import-Export'!$C$8:$C$218,0))=\"\",\"\",INDEX('Disaggregation1B_Import-Export'!I$8:I$218,MATCH($B43,'Disaggregation1B_Import-Export'!$C$8:$C$218,0))),\"\")","v":""},{"$f":"IFERROR(IF(INDEX('Disaggregation1B_Import-Export'!J$8:J$218,MATCH($B43,'Disaggregation1B_Import-Export'!$C$8:$C$218,0))=\"\",\"\",INDEX('Disaggregation1B_Import-Export'!J$8:J$218,MATCH($B43,'Disaggregation1B_Import-Export'!$C$8:$C$218,0))),\"\")","v":""},{"$f":"IFERROR(IF(INDEX('Disaggregation1B_Import-Export'!K$8:K$218,MATCH($B43,'Disaggregation1B_Import-Export'!$C$8:$C$218,0))=\"\",\"\",INDEX('Disaggregation1B_Import-Export'!K$8:K$218,MATCH($B43,'Disaggregation1B_Import-Export'!$C$8:$C$218,0))),\"\")","v":""},{"$f":"IFERROR(IF(INDEX('Disaggregation1B_Import-Export'!L$8:L$218,MATCH($B43,'Disaggregation1B_Import-Export'!$C$8:$C$218,0))=\"\",\"\",INDEX('Disaggregation1B_Import-Export'!L$8:L$218,MATCH($B43,'Disaggregation1B_Import-Export'!$C$8:$C$218,0))),\"\")","v":""},{"$f":"IFERROR(IF(INDEX('Disaggregation1B_Import-Export'!AQ$8:AQ$218,MATCH($B43,'Disaggregation1B_Import-Export'!$C$8:$C$218,0))=\"\",\"\",INDEX('Disaggregation1B_Import-Export'!AQ$8:AQ$218,MATCH($B43,'Disaggregation1B_Import-Export'!$C$8:$C$218,0))),\"\")","v":""},null,null,"",null,null,null,null,null,"",null,null,null,null,null,""]
[34,"Coverage34",{"$f":"IFERROR(INDEX('Disaggregation1B_Import-Export'!D$8:D$218,MATCH($B44,'Disaggregation1B_Import-Export'!$C$8:$C$218,0)),\"\")","v":""},{"$f":"IFERROR(INDEX('Disaggregation1B_Import-Export'!AF$8:AF$235,MATCH($B44,'Disaggregation1B_Import-Export'!$C$8:$C$235,0)),\"\")","v":""},{"$f":"IFERROR(IF(INDEX('Disaggregation1B_Import-Export'!AG$8:AG$218,MATCH($B44,'Disaggregation1B_Import-Export'!$C$8:$C$218,0))=\"\",\"\",INDEX('Disaggregation1B_Import-Export'!AG$8:AG$218,MATCH($B44,'Disaggregation1B_Import-Export'!$C$8:$C$218,0))),\"\")","v":""},{"$f":"IFERROR(IF(INDEX('Disaggregation1B_Import-Export'!AH$8:AH$218,MATCH($B44,'Disaggregation1B_Import-Export'!$C$8:$C$218,0))=\"\",\"\",INDEX('Disaggregation1B_Import-Export'!AH$8:AH$218,MATCH($B44,'Disaggregation1B_Import-Export'!$C$8:$C$218,0))),\"\")","v":""},{"$f":"IFERROR(IF(INDEX('Disaggregation1B_Import-Export'!H$8:H$218,MATCH($B44,'Disaggregation1B_Import-Export'!$C$8:$C$218,0))=\"\",\"\",INDEX('Disaggregation1B_Import-Export'!H$8:H$218,MATCH($B44,'Disaggregation1B_Import-Export'!$C$8:$C$218,0))),\"\")","v":""},{"$f":"IFERROR(IF(INDEX('Disaggregation1B_Import-Export'!I$8:I$218,MATCH($B44,'Disaggregation1B_Import-Export'!$C$8:$C$218,0))=\"\",\"\",INDEX('Disaggregation1B_Import-Export'!I$8:I$218,MATCH($B44,'Disaggregation1B_Import-Export'!$C$8:$C$218,0))),\"\")","v":""},{"$f":"IFERROR(IF(INDEX('Disaggregation1B_Import-Export'!J$8:J$218,MATCH($B44,'Disaggregation1B_Import-Export'!$C$8:$C$218,0))=\"\",\"\",INDEX('Disaggregation1B_Import-Export'!J$8:J$218,MATCH($B44,'Disaggregation1B_Import-Export'!$C$8:$C$218,0))),\"\")","v":""},{"$f":"IFERROR(IF(INDEX('Disaggregation1B_Import-Export'!K$8:K$218,MATCH($B44,'Disaggregation1B_Import-Export'!$C$8:$C$218,0))=\"\",\"\",INDEX('Disaggregation1B_Import-Export'!K$8:K$218,MATCH($B44,'Disaggregation1B_Import-Export'!$C$8:$C$218,0))),\"\")","v":""},{"$f":"IFERROR(IF(INDEX('Disaggregation1B_Import-Export'!L$8:L$218,MATCH($B44,'Disaggregation1B_Import-Export'!$C$8:$C$218,0))=\"\",\"\",INDEX('Disaggregation1B_Import-Export'!L$8:L$218,MATCH($B44,'Disaggregation1B_Import-Export'!$C$8:$C$218,0))),\"\")","v":""},{"$f":"IFERROR(IF(INDEX('Disaggregation1B_Import-Export'!AQ$8:AQ$218,MATCH($B44,'Disaggregation1B_Import-Export'!$C$8:$C$218,0))=\"\",\"\",INDEX('Disaggregation1B_Import-Export'!AQ$8:AQ$218,MATCH($B44,'Disaggregation1B_Import-Export'!$C$8:$C$218,0))),\"\")","v":""},null,null,"",null,null,null,null,null,"",null,null,null,null,null,""]
[35,"Coverage35",{"$f":"IFERROR(INDEX('Disaggregation1B_Import-Export'!D$8:D$218,MATCH($B45,'Disaggregation1B_Import-Export'!$C$8:$C$218,0)),\"\")","v":""},{"$f":"IFERROR(INDEX('Disaggregation1B_Import-Export'!AF$8:AF$235,MATCH($B45,'Disaggregation1B_Import-Export'!$C$8:$C$235,0)),\"\")","v":""},{"$f":"IFERROR(IF(INDEX('Disaggregation1B_Import-Export'!AG$8:AG$218,MATCH($B45,'Disaggregation1B_Import-Export'!$C$8:$C$218,0))=\"\",\"\",INDEX('Disaggregation1B_Import-Export'!AG$8:AG$218,MATCH($B45,'Disaggregation1B_Import-Export'!$C$8:$C$218,0))),\"\")","v":""},{"$f":"IFERROR(IF(INDEX('Disaggregation1B_Import-Export'!AH$8:AH$218,MATCH($B45,'Disaggregation1B_Import-Export'!$C$8:$C$218,0))=\"\",\"\",INDEX('Disaggregation1B_Import-Export'!AH$8:AH$218,MATCH($B45,'Disaggregation1B_Import-Export'!$C$8:$C$218,0))),\"\")","v":""},{"$f":"IFERROR(IF(INDEX('Disaggregation1B_Import-Export'!H$8:H$218,MATCH($B45,'Disaggregation1B_Import-Export'!$C$8:$C$218,0))=\"\",\"\",INDEX('Disaggregation1B_Import-Export'!H$8:H$218,MATCH($B45,'Disaggregation1B_Import-Export'!$C$8:$C$218,0))),\"\")","v":""},{"$f":"IFERROR(IF(INDEX('Disaggregation1B_Import-Export'!I$8:I$218,MATCH($B45,'Disaggregation1B_Import-Export'!$C$8:$C$218,0))=\"\",\"\",INDEX('Disaggregation1B_Import-Export'!I$8:I$218,MATCH($B45,'Disaggregation1B_Import-Export'!$C$8:$C$218,0))),\"\")","v":""},{"$f":"IFERROR(IF(INDEX('Disaggregation1B_Import-Export'!J$8:J$218,MATCH($B45,'Disaggregation1B_Import-Export'!$C$8:$C$218,0))=\"\",\"\",INDEX('Disaggregation1B_Import-Export'!J$8:J$218,MATCH($B45,'Disaggregation1B_Import-Export'!$C$8:$C$218,0))),\"\")","v":""},{"$f":"IFERROR(IF(INDEX('Disaggregation1B_Import-Export'!K$8:K$218,MATCH($B45,'Disaggregation1B_Import-Export'!$C$8:$C$218,0))=\"\",\"\",INDEX('Disaggregation1B_Import-Export'!K$8:K$218,MATCH($B45,'Disaggregation1B_Import-Export'!$C$8:$C$218,0))),\"\")","v":""},{"$f":"IFERROR(IF(INDEX('Disaggregation1B_Import-Export'!L$8:L$218,MATCH($B45,'Disaggregation1B_Import-Export'!$C$8:$C$218,0))=\"\",\"\",INDEX('Disaggregation1B_Import-Export'!L$8:L$218,MATCH($B45,'Disaggregation1B_Import-Export'!$C$8:$C$218,0))),\"\")","v":""},{"$f":"IFERROR(IF(INDEX('Disaggregation1B_Import-Export'!AQ$8:AQ$218,MATCH($B45,'Disaggregation1B_Import-Export'!$C$8:$C$218,0))=\"\",\"\",INDEX('Disaggregation1B_Import-Export'!AQ$8:AQ$218,MATCH($B45,'Disaggregation1B_Import-Export'!$C$8:$C$218,0))),\"\")","v":""},null,null,"",null,null,null,null,null,"",null,null,null,null,null,""]
[36,"Coverage36",{"$f":"IFERROR(INDEX('Disaggregation1B_Import-Export'!D$8:D$218,MATCH($B46,'Disaggregation1B_Import-Export'!$C$8:$C$218,0)),\"\")","v":""},{"$f":"IFERROR(INDEX('Disaggregation1B_Import-Export'!AF$8:AF$235,MATCH($B46,'Disaggregation1B_Import-Export'!$C$8:$C$235,0)),\"\")","v":""},{"$f":"IFERROR(IF(INDEX('Disaggregation1B_Import-Export'!AG$8:AG$218,MATCH($B46,'Disaggregation1B_Import-Export'!$C$8:$C$218,0))=\"\",\"\",INDEX('Disaggregation1B_Import-Export'!AG$8:AG$218,MATCH($B46,'Disaggregation1B_Import-Export'!$C$8:$C$218,0))),\"\")","v":""},{"$f":"IFERROR(IF(INDEX('Disaggregation1B_Import-Export'!AH$8:AH$218,MATCH($B46,'Disaggregation1B_Import-Export'!$C$8:$C$218,0))=\"\",\"\",INDEX('Disaggregation1B_Import-Export'!AH$8:AH$218,MATCH($B46,'Disaggregation1B_Import-Export'!$C$8:$C$218,0))),\"\")","v":""},{"$f":"IFERROR(IF(INDEX('Disaggregation1B_Import-Export'!H$8:H$218,MATCH($B46,'Disaggregation1B_Import-Export'!$C$8:$C$218,0))=\"\",\"\",INDEX('Disaggregation1B_Import-Export'!H$8:H$218,MATCH($B46,'Disaggregation1B_Import-Export'!$C$8:$C$218,0))),\"\")","v":""},{"$f":"IFERROR(IF(INDEX('Disaggregation1B_Import-Export'!I$8:I$218,MATCH($B46,'Disaggregation1B_Import-Export'!$C$8:$C$218,0))=\"\",\"\",INDEX('Disaggregation1B_Import-Export'!I$8:I$218,MATCH($B46,'Disaggregation1B_Import-Export'!$C$8:$C$218,0))),\"\")","v":""},{"$f":"IFERROR(IF(INDEX('Disaggregation1B_Import-Export'!J$8:J$218,MATCH($B46,'Disaggregation1B_Import-Export'!$C$8:$C$218,0))=\"\",\"\",INDEX('Disaggregation1B_Import-Export'!J$8:J$218,MATCH($B46,'Disaggregation1B_Import-Export'!$C$8:$C$218,0))),\"\")","v":""},{"$f":"IFERROR(IF(INDEX('Disaggregation1B_Import-Export'!K$8:K$218,MATCH($B46,'Disaggregation1B_Import-Export'!$C$8:$C$218,0))=\"\",\"\",INDEX('Disaggregation1B_Import-Export'!K$8:K$218,MATCH($B46,'Disaggregation1B_Import-Export'!$C$8:$C$218,0))),\"\")","v":""},{"$f":"IFERROR(IF(INDEX('Disaggregation1B_Import-Export'!L$8:L$218,MATCH($B46,'Disaggregation1B_Import-Export'!$C$8:$C$218,0))=\"\",\"\",INDEX('Disaggregation1B_Import-Export'!L$8:L$218,MATCH($B46,'Disaggregation1B_Import-Export'!$C$8:$C$218,0))),\"\")","v":""},{"$f":"IFERROR(IF(INDEX('Disaggregation1B_Import-Export'!AQ$8:AQ$218,MATCH($B46,'Disaggregation1B_Import-Export'!$C$8:$C$218,0))=\"\",\"\",INDEX('Disaggregation1B_Import-Export'!AQ$8:AQ$218,MATCH($B46,'Disaggregation1B_Import-Export'!$C$8:$C$218,0))),\"\")","v":""},null,null,"",null,null,null,null,null,"",null,null,null,null,null,""]
[37,"Coverage37",{"$f":"IFERROR(INDEX('Disaggregation1B_Import-Export'!D$8:D$218,MATCH($B47,'Disaggregation1B_Import-Export'!$C$8:$C$218,0)),\"\")","v":""},{"$f":"IFERROR(INDEX('Disaggregation1B_Import-Export'!AF$8:AF$235,MATCH($B47,'Disaggregation1B_Import-Export'!$C$8:$C$235,0)),\"\")","v":""},{"$f":"IFERROR(IF(INDEX('Disaggregation1B_Import-Export'!AG$8:AG$218,MATCH($B47,'Disaggregation1B_Import-Export'!$C$8:$C$218,0))=\"\",\"\",INDEX('Disaggregation1B_Import-Export'!AG$8:AG$218,MATCH($B47,'Disaggregation1B_Import-Export'!$C$8:$C$218,0))),\"\")","v":""},{"$f":"IFERROR(IF(INDEX('Disaggregation1B_Import-Export'!AH$8:AH$218,MATCH($B47,'Disaggregation1B_Import-Export'!$C$8:$C$218,0))=\"\",\"\",INDEX('Disaggregation1B_Import-Export'!AH$8:AH$218,MATCH($B47,'Disaggregation1B_Import-Export'!$C$8:$C$218,0))),\"\")","v":""},{"$f":"IFERROR(IF(INDEX('Disaggregation1B_Import-Export'!H$8:H$218,MATCH($B47,'Disaggregation1B_Import-Export'!$C$8:$C$218,0))=\"\",\"\",INDEX('Disaggregation1B_Import-Export'!H$8:H$218,MATCH($B47,'Disaggregation1B_Import-Export'!$C$8:$C$218,0))),\"\")","v":""},{"$f":"IFERROR(IF(INDEX('Disaggregation1B_Import-Export'!I$8:I$218,MATCH($B47,'Disaggregation1B_Import-Export'!$C$8:$C$218,0))=\"\",\"\",INDEX('Disaggregation1B_Import-Export'!I$8:I$218,MATCH($B47,'Disaggregation1B_Import-Export'!$C$8:$C$218,0))),\"\")","v":""},{"$f":"IFERROR(IF(INDEX('Disaggregation1B_Import-Export'!J$8:J$218,MATCH($B47,'Disaggregation1B_Import-Export'!$C$8:$C$218,0))=\"\",\"\",INDEX('Disaggregation1B_Import-Export'!J$8:J$218,MATCH($B47,'Disaggregation1B_Import-Export'!$C$8:$C$218,0))),\"\")","v":""},{"$f":"IFERROR(IF(INDEX('Disaggregation1B_Import-Export'!K$8:K$218,MATCH($B47,'Disaggregation1B_Import-Export'!$C$8:$C$218,0))=\"\",\"\",INDEX('Disaggregation1B_Import-Export'!K$8:K$218,MATCH($B47,'Disaggregation1B_Import-Export'!$C$8:$C$218,0))),\"\")","v":""},{"$f":"IFERROR(IF(INDEX('Disaggregation1B_Import-Export'!L$8:L$218,MATCH($B47,'Disaggregation1B_Import-Export'!$C$8:$C$218,0))=\"\",\"\",INDEX('Disaggregation1B_Import-Export'!L$8:L$218,MATCH($B47,'Disaggregation1B_Import-Export'!$C$8:$C$218,0))),\"\")","v":""},{"$f":"IFERROR(IF(INDEX('Disaggregation1B_Import-Export'!AQ$8:AQ$218,MATCH($B47,'Disaggregation1B_Import-Export'!$C$8:$C$218,0))=\"\",\"\",INDEX('Disaggregation1B_Import-Export'!AQ$8:AQ$218,MATCH($B47,'Disaggregation1B_Import-Export'!$C$8:$C$218,0))),\"\")","v":""},null,null,"",null,null,null,null,null,"",null,null,null,null,null,""]
[38,"Coverage38",{"$f":"IFERROR(INDEX('Disaggregation1B_Import-Export'!D$8:D$218,MATCH($B48,'Disaggregation1B_Import-Export'!$C$8:$C$218,0)),\"\")","v":""},{"$f":"IFERROR(INDEX('Disaggregation1B_Import-Export'!AF$8:AF$235,MATCH($B48,'Disaggregation1B_Import-Export'!$C$8:$C$235,0)),\"\")","v":""},{"$f":"IFERROR(IF(INDEX('Disaggregation1B_Import-Export'!AG$8:AG$218,MATCH($B48,'Disaggregation1B_Import-Export'!$C$8:$C$218,0))=\"\",\"\",INDEX('Disaggregation1B_Import-Export'!AG$8:AG$218,MATCH($B48,'Disaggregation1B_Import-Export'!$C$8:$C$218,0))),\"\")","v":""},{"$f":"IFERROR(IF(INDEX('Disaggregation1B_Import-Export'!AH$8:AH$218,MATCH($B48,'Disaggregation1B_Import-Export'!$C$8:$C$218,0))=\"\",\"\",INDEX('Disaggregation1B_Import-Export'!AH$8:AH$218,MATCH($B48,'Disaggregation1B_Import-Export'!$C$8:$C$218,0))),\"\")","v":""},{"$f":"IFERROR(IF(INDEX('Disaggregation1B_Import-Export'!H$8:H$218,MATCH($B48,'Disaggregation1B_Import-Export'!$C$8:$C$218,0))=\"\",\"\",INDEX('Disaggregation1B_Import-Export'!H$8:H$218,MATCH($B48,'Disaggregation1B_Import-Export'!$C$8:$C$218,0))),\"\")","v":""},{"$f":"IFERROR(IF(INDEX('Disaggregation1B_Import-Export'!I$8:I$218,MATCH($B48,'Disaggregation1B_Import-Export'!$C$8:$C$218,0))=\"\",\"\",INDEX('Disaggregation1B_Import-Export'!I$8:I$218,MATCH($B48,'Disaggregation1B_Import-Export'!$C$8:$C$218,0))),\"\")","v":""},{"$f":"IFERROR(IF(INDEX('Disaggregation1B_Import-Export'!J$8:J$218,MATCH($B48,'Disaggregation1B_Import-Export'!$C$8:$C$218,0))=\"\",\"\",INDEX('Disaggregation1B_Import-Export'!J$8:J$218,MATCH($B48,'Disaggregation1B_Import-Export'!$C$8:$C$218,0))),\"\")","v":""},{"$f":"IFERROR(IF(INDEX('Disaggregation1B_Import-Export'!K$8:K$218,MATCH($B48,'Disaggregation1B_Import-Export'!$C$8:$C$218,0))=\"\",\"\",INDEX('Disaggregation1B_Import-Export'!K$8:K$218,MATCH($B48,'Disaggregation1B_Import-Export'!$C$8:$C$218,0))),\"\")","v":""},{"$f":"IFERROR(IF(INDEX('Disaggregation1B_Import-Export'!L$8:L$218,MATCH($B48,'Disaggregation1B_Import-Export'!$C$8:$C$218,0))=\"\",\"\",INDEX('Disaggregation1B_Import-Export'!L$8:L$218,MATCH($B48,'Disaggregation1B_Import-Export'!$C$8:$C$218,0))),\"\")","v":""},{"$f":"IFERROR(IF(INDEX('Disaggregation1B_Import-Export'!AQ$8:AQ$218,MATCH($B48,'Disaggregation1B_Import-Export'!$C$8:$C$218,0))=\"\",\"\",INDEX('Disaggregation1B_Import-Export'!AQ$8:AQ$218,MATCH($B48,'Disaggregation1B_Import-Export'!$C$8:$C$218,0))),\"\")","v":""},null,null,"",null,null,null,null,null,"",null,null,null,null,null,""]
[39,"Coverage39",{"$f":"IFERROR(INDEX('Disaggregation1B_Import-Export'!D$8:D$218,MATCH($B49,'Disaggregation1B_Import-Export'!$C$8:$C$218,0)),\"\")","v":""},{"$f":"IFERROR(INDEX('Disaggregation1B_Import-Export'!AF$8:AF$235,MATCH($B49,'Disaggregation1B_Import-Export'!$C$8:$C$235,0)),\"\")","v":""},{"$f":"IFERROR(IF(INDEX('Disaggregation1B_Import-Export'!AG$8:AG$218,MATCH($B49,'Disaggregation1B_Import-Export'!$C$8:$C$218,0))=\"\",\"\",INDEX('Disaggregation1B_Import-Export'!AG$8:AG$218,MATCH($B49,'Disaggregation1B_Import-Export'!$C$8:$C$218,0))),\"\")","v":""},{"$f":"IFERROR(IF(INDEX('Disaggregation1B_Import-Export'!AH$8:AH$218,MATCH($B49,'Disaggregation1B_Import-Export'!$C$8:$C$218,0))=\"\",\"\",INDEX('Disaggregation1B_Import-Export'!AH$8:AH$218,MATCH($B49,'Disaggregation1B_Import-Export'!$C$8:$C$218,0))),\"\")","v":""},{"$f":"IFERROR(IF(INDEX('Disaggregation1B_Import-Export'!H$8:H$218,MATCH($B49,'Disaggregation1B_Import-Export'!$C$8:$C$218,0))=\"\",\"\",INDEX('Disaggregation1B_Import-Export'!H$8:H$218,MATCH($B49,'Disaggregation1B_Import-Export'!$C$8:$C$218,0))),\"\")","v":""},{"$f":"IFERROR(IF(INDEX('Disaggregation1B_Import-Export'!I$8:I$218,MATCH($B49,'Disaggregation1B_Import-Export'!$C$8:$C$218,0))=\"\",\"\",INDEX('Disaggregation1B_Import-Export'!I$8:I$218,MATCH($B49,'Disaggregation1B_Import-Export'!$C$8:$C$218,0))),\"\")","v":""},{"$f":"IFERROR(IF(INDEX('Disaggregation1B_Import-Export'!J$8:J$218,MATCH($B49,'Disaggregation1B_Import-Export'!$C$8:$C$218,0))=\"\",\"\",INDEX('Disaggregation1B_Import-Export'!J$8:J$218,MATCH($B49,'Disaggregation1B_Import-Export'!$C$8:$C$218,0))),\"\")","v":""},{"$f":"IFERROR(IF(INDEX('Disaggregation1B_Import-Export'!K$8:K$218,MATCH($B49,'Disaggregation1B_Import-Export'!$C$8:$C$218,0))=\"\",\"\",INDEX('Disaggregation1B_Import-Export'!K$8:K$218,MATCH($B49,'Disaggregation1B_Import-Export'!$C$8:$C$218,0))),\"\")","v":""},{"$f":"IFERROR(IF(INDEX('Disaggregation1B_Import-Export'!L$8:L$218,MATCH($B49,'Disaggregation1B_Import-Export'!$C$8:$C$218,0))=\"\",\"\",INDEX('Disaggregation1B_Import-Export'!L$8:L$218,MATCH($B49,'Disaggregation1B_Import-Export'!$C$8:$C$218,0))),\"\")","v":""},{"$f":"IFERROR(IF(INDEX('Disaggregation1B_Import-Export'!AQ$8:AQ$218,MATCH($B49,'Disaggregation1B_Import-Export'!$C$8:$C$218,0))=\"\",\"\",INDEX('Disaggregation1B_Import-Export'!AQ$8:AQ$218,MATCH($B49,'Disaggregation1B_Import-Export'!$C$8:$C$218,0))),\"\")","v":""},null,null,"",null,null,null,null,null,"",null,null,null,null,null,""]
[40,{"$f":"\"Coverage\"&A50","v":"Coverage40"},{"$f":"IFERROR(INDEX('Disaggregation1B_Import-Export'!D$8:D$218,MATCH($B50,'Disaggregation1B_Import-Export'!$C$8:$C$218,0)),\"\")","v":""},{"$f":"IFERROR(INDEX('Disaggregation1B_Import-Export'!AF$8:AF$235,MATCH($B50,'Disaggregation1B_Import-Export'!$C$8:$C$235,0)),\"\")","v":""},{"$f":"IFERROR(IF(INDEX('Disaggregation1B_Import-Export'!AG$8:AG$218,MATCH($B50,'Disaggregation1B_Import-Export'!$C$8:$C$218,0))=\"\",\"\",INDEX('Disaggregation1B_Import-Export'!AG$8:AG$218,MATCH($B50,'Disaggregation1B_Import-Export'!$C$8:$C$218,0))),\"\")","v":""},{"$f":"IFERROR(IF(INDEX('Disaggregation1B_Import-Export'!AH$8:AH$218,MATCH($B50,'Disaggregation1B_Import-Export'!$C$8:$C$218,0))=\"\",\"\",INDEX('Disaggregation1B_Import-Export'!AH$8:AH$218,MATCH($B50,'Disaggregation1B_Import-Export'!$C$8:$C$218,0))),\"\")","v":""},{"$f":"IFERROR(IF(INDEX('Disaggregation1B_Import-Export'!H$8:H$218,MATCH($B50,'Disaggregation1B_Import-Export'!$C$8:$C$218,0))=\"\",\"\",INDEX('Disaggregation1B_Import-Export'!H$8:H$218,MATCH($B50,'Disaggregation1B_Import-Export'!$C$8:$C$218,0))),\"\")","v":""},{"$f":"IFERROR(IF(INDEX('Disaggregation1B_Import-Export'!I$8:I$218,MATCH($B50,'Disaggregation1B_Import-Export'!$C$8:$C$218,0))=\"\",\"\",INDEX('Disaggregation1B_Import-Export'!I$8:I$218,MATCH($B50,'Disaggregation1B_Import-Export'!$C$8:$C$218,0))),\"\")","v":""},{"$f":"IFERROR(IF(INDEX('Disaggregation1B_Import-Export'!J$8:J$218,MATCH($B50,'Disaggregation1B_Import-Export'!$C$8:$C$218,0))=\"\",\"\",INDEX('Disaggregation1B_Import-Export'!J$8:J$218,MATCH($B50,'Disaggregation1B_Import-Export'!$C$8:$C$218,0))),\"\")","v":""},{"$f":"IFERROR(IF(INDEX('Disaggregation1B_Import-Export'!K$8:K$218,MATCH($B50,'Disaggregation1B_Import-Export'!$C$8:$C$218,0))=\"\",\"\",INDEX('Disaggregation1B_Import-Export'!K$8:K$218,MATCH($B50,'Disaggregation1B_Import-Export'!$C$8:$C$218,0))),\"\")","v":""},{"$f":"IFERROR(IF(INDEX('Disaggregation1B_Import-Export'!L$8:L$218,MATCH($B50,'Disaggregation1B_Import-Export'!$C$8:$C$218,0))=\"\",\"\",INDEX('Disaggregation1B_Import-Export'!L$8:L$218,MATCH($B50,'Disaggregation1B_Import-Export'!$C$8:$C$218,0))),\"\")","v":""},{"$f":"IFERROR(IF(INDEX('Disaggregation1B_Import-Export'!AQ$8:AQ$218,MATCH($B50,'Disaggregation1B_Import-Export'!$C$8:$C$218,0))=\"\",\"\",INDEX('Disaggregation1B_Import-Export'!AQ$8:AQ$218,MATCH($B50,'Disaggregation1B_Import-Export'!$C$8:$C$218,0))),\"\")","v":""},null,null,{"$f":"IFERROR((M50/N50)*100,\"\")","v":""},null,null,null,null,null,{"$f":"IFERROR((S50/T50)*100,\"\")","v":""},null,null,null,null,null,{"$f":"IFERROR(Y50/Z50,\"\")","v":""}]
[41,"Coverage41",{"$f":"IFERROR(INDEX('Disaggregation1B_Import-Export'!D$8:D$218,MATCH($B51,'Disaggregation1B_Import-Export'!$C$8:$C$218,0)),\"\")","v":""},{"$f":"IFERROR(INDEX('Disaggregation1B_Import-Export'!AF$8:AF$235,MATCH($B51,'Disaggregation1B_Import-Export'!$C$8:$C$235,0)),\"\")","v":""},{"$f":"IFERROR(IF(INDEX('Disaggregation1B_Import-Export'!AG$8:AG$218,MATCH($B51,'Disaggregation1B_Import-Export'!$C$8:$C$218,0))=\"\",\"\",INDEX('Disaggregation1B_Import-Export'!AG$8:AG$218,MATCH($B51,'Disaggregation1B_Import-Export'!$C$8:$C$218,0))),\"\")","v":""},{"$f":"IFERROR(IF(INDEX('Disaggregation1B_Import-Export'!AH$8:AH$218,MATCH($B51,'Disaggregation1B_Import-Export'!$C$8:$C$218,0))=\"\",\"\",INDEX('Disaggregation1B_Import-Export'!AH$8:AH$218,MATCH($B51,'Disaggregation1B_Import-Export'!$C$8:$C$218,0))),\"\")","v":""},{"$f":"IFERROR(IF(INDEX('Disaggregation1B_Import-Export'!H$8:H$218,MATCH($B51,'Disaggregation1B_Import-Export'!$C$8:$C$218,0))=\"\",\"\",INDEX('Disaggregation1B_Import-Export'!H$8:H$218,MATCH($B51,'Disaggregation1B_Import-Export'!$C$8:$C$218,0))),\"\")","v":""},{"$f":"IFERROR(IF(INDEX('Disaggregation1B_Import-Export'!I$8:I$218,MATCH($B51,'Disaggregation1B_Import-Export'!$C$8:$C$218,0))=\"\",\"\",INDEX('Disaggregation1B_Import-Export'!I$8:I$218,MATCH($B51,'Disaggregation1B_Import-Export'!$C$8:$C$218,0))),\"\")","v":""},{"$f":"IFERROR(IF(INDEX('Disaggregation1B_Import-Export'!J$8:J$218,MATCH($B51,'Disaggregation1B_Import-Export'!$C$8:$C$218,0))=\"\",\"\",INDEX('Disaggregation1B_Import-Export'!J$8:J$218,MATCH($B51,'Disaggregation1B_Import-Export'!$C$8:$C$218,0))),\"\")","v":""},{"$f":"IFERROR(IF(INDEX('Disaggregation1B_Import-Export'!K$8:K$218,MATCH($B51,'Disaggregation1B_Import-Export'!$C$8:$C$218,0))=\"\",\"\",INDEX('Disaggregation1B_Import-Export'!K$8:K$218,MATCH($B51,'Disaggregation1B_Import-Export'!$C$8:$C$218,0))),\"\")","v":""},{"$f":"IFERROR(IF(INDEX('Disaggregation1B_Import-Export'!L$8:L$218,MATCH($B51,'Disaggregation1B_Import-Export'!$C$8:$C$218,0))=\"\",\"\",INDEX('Disaggregation1B_Import-Export'!L$8:L$218,MATCH($B51,'Disaggregation1B_Import-Export'!$C$8:$C$218,0))),\"\")","v":""},{"$f":"IFERROR(IF(INDEX('Disaggregation1B_Import-Export'!AQ$8:AQ$218,MATCH($B51,'Disaggregation1B_Import-Export'!$C$8:$C$218,0))=\"\",\"\",INDEX('Disaggregation1B_Import-Export'!AQ$8:AQ$218,MATCH($B51,'Disaggregation1B_Import-Export'!$C$8:$C$218,0))),\"\")","v":""},null,null,"",null,null,null,null,null,"",null,null,null,null,null,""]
[42,"Coverage42",{"$f":"IFERROR(INDEX('Disaggregation1B_Import-Export'!D$8:D$218,MATCH($B52,'Disaggregation1B_Import-Export'!$C$8:$C$218,0)),\"\")","v":""},{"$f":"IFERROR(INDEX('Disaggregation1B_Import-Export'!AF$8:AF$235,MATCH($B52,'Disaggregation1B_Import-Export'!$C$8:$C$235,0)),\"\")","v":""},{"$f":"IFERROR(IF(INDEX('Disaggregation1B_Import-Export'!AG$8:AG$218,MATCH($B52,'Disaggregation1B_Import-Export'!$C$8:$C$218,0))=\"\",\"\",INDEX('Disaggregation1B_Import-Export'!AG$8:AG$218,MATCH($B52,'Disaggregation1B_Import-Export'!$C$8:$C$218,0))),\"\")","v":""},{"$f":"IFERROR(IF(INDEX('Disaggregation1B_Import-Export'!AH$8:AH$218,MATCH($B52,'Disaggregation1B_Import-Export'!$C$8:$C$218,0))=\"\",\"\",INDEX('Disaggregation1B_Import-Export'!AH$8:AH$218,MATCH($B52,'Disaggregation1B_Import-Export'!$C$8:$C$218,0))),\"\")","v":""},{"$f":"IFERROR(IF(INDEX('Disaggregation1B_Import-Export'!H$8:H$218,MATCH($B52,'Disaggregation1B_Import-Export'!$C$8:$C$218,0))=\"\",\"\",INDEX('Disaggregation1B_Import-Export'!H$8:H$218,MATCH($B52,'Disaggregation1B_Import-Export'!$C$8:$C$218,0))),\"\")","v":""},{"$f":"IFERROR(IF(INDEX('Disaggregation1B_Import-Export'!I$8:I$218,MATCH($B52,'Disaggregation1B_Import-Export'!$C$8:$C$218,0))=\"\",\"\",INDEX('Disaggregation1B_Import-Export'!I$8:I$218,MATCH($B52,'Disaggregation1B_Import-Export'!$C$8:$C$218,0))),\"\")","v":""},{"$f":"IFERROR(IF(INDEX('Disaggregation1B_Import-Export'!J$8:J$218,MATCH($B52,'Disaggregation1B_Import-Export'!$C$8:$C$218,0))=\"\",\"\",INDEX('Disaggregation1B_Import-Export'!J$8:J$218,MATCH($B52,'Disaggregation1B_Import-Export'!$C$8:$C$218,0))),\"\")","v":""},{"$f":"IFERROR(IF(INDEX('Disaggregation1B_Import-Export'!K$8:K$218,MATCH($B52,'Disaggregation1B_Import-Export'!$C$8:$C$218,0))=\"\",\"\",INDEX('Disaggregation1B_Import-Export'!K$8:K$218,MATCH($B52,'Disaggregation1B_Import-Export'!$C$8:$C$218,0))),\"\")","v":""},{"$f":"IFERROR(IF(INDEX('Disaggregation1B_Import-Export'!L$8:L$218,MATCH($B52,'Disaggregation1B_Import-Export'!$C$8:$C$218,0))=\"\",\"\",INDEX('Disaggregation1B_Import-Export'!L$8:L$218,MATCH($B52,'Disaggregation1B_Import-Export'!$C$8:$C$218,0))),\"\")","v":""},{"$f":"IFERROR(IF(INDEX('Disaggregation1B_Import-Export'!AQ$8:AQ$218,MATCH($B52,'Disaggregation1B_Import-Export'!$C$8:$C$218,0))=\"\",\"\",INDEX('Disaggregation1B_Import-Export'!AQ$8:AQ$218,MATCH($B52,'Disaggregation1B_Import-Export'!$C$8:$C$218,0))),\"\")","v":""},null,null,"",null,null,null,null,null,"",null,null,null,null,null,""]
[43,"Coverage43",{"$f":"IFERROR(INDEX('Disaggregation1B_Import-Export'!D$8:D$218,MATCH($B53,'Disaggregation1B_Import-Export'!$C$8:$C$218,0)),\"\")","v":""},{"$f":"IFERROR(INDEX('Disaggregation1B_Import-Export'!AF$8:AF$235,MATCH($B53,'Disaggregation1B_Import-Export'!$C$8:$C$235,0)),\"\")","v":""},{"$f":"IFERROR(IF(INDEX('Disaggregation1B_Import-Export'!AG$8:AG$218,MATCH($B53,'Disaggregation1B_Import-Export'!$C$8:$C$218,0))=\"\",\"\",INDEX('Disaggregation1B_Import-Export'!AG$8:AG$218,MATCH($B53,'Disaggregation1B_Import-Export'!$C$8:$C$218,0))),\"\")","v":""},{"$f":"IFERROR(IF(INDEX('Disaggregation1B_Import-Export'!AH$8:AH$218,MATCH($B53,'Disaggregation1B_Import-Export'!$C$8:$C$218,0))=\"\",\"\",INDEX('Disaggregation1B_Import-Export'!AH$8:AH$218,MATCH($B53,'Disaggregation1B_Import-Export'!$C$8:$C$218,0))),\"\")","v":""},{"$f":"IFERROR(IF(INDEX('Disaggregation1B_Import-Export'!H$8:H$218,MATCH($B53,'Disaggregation1B_Import-Export'!$C$8:$C$218,0))=\"\",\"\",INDEX('Disaggregation1B_Import-Export'!H$8:H$218,MATCH($B53,'Disaggregation1B_Import-Export'!$C$8:$C$218,0))),\"\")","v":""},{"$f":"IFERROR(IF(INDEX('Disaggregation1B_Import-Export'!I$8:I$218,MATCH($B53,'Disaggregation1B_Import-Export'!$C$8:$C$218,0))=\"\",\"\",INDEX('Disaggregation1B_Import-Export'!I$8:I$218,MATCH($B53,'Disaggregation1B_Import-Export'!$C$8:$C$218,0))),\"\")","v":""},{"$f":"IFERROR(IF(INDEX('Disaggregation1B_Import-Export'!J$8:J$218,MATCH($B53,'Disaggregation1B_Import-Export'!$C$8:$C$218,0))=\"\",\"\",INDEX('Disaggregation1B_Import-Export'!J$8:J$218,MATCH($B53,'Disaggregation1B_Import-Export'!$C$8:$C$218,0))),\"\")","v":""},{"$f":"IFERROR(IF(INDEX('Disaggregation1B_Import-Export'!K$8:K$218,MATCH($B53,'Disaggregation1B_Import-Export'!$C$8:$C$218,0))=\"\",\"\",INDEX('Disaggregation1B_Import-Export'!K$8:K$218,MATCH($B53,'Disaggregation1B_Import-Export'!$C$8:$C$218,0))),\"\")","v":""},{"$f":"IFERROR(IF(INDEX('Disaggregation1B_Import-Export'!L$8:L$218,MATCH($B53,'Disaggregation1B_Import-Export'!$C$8:$C$218,0))=\"\",\"\",INDEX('Disaggregation1B_Import-Export'!L$8:L$218,MATCH($B53,'Disaggregation1B_Import-Export'!$C$8:$C$218,0))),\"\")","v":""},{"$f":"IFERROR(IF(INDEX('Disaggregation1B_Import-Export'!AQ$8:AQ$218,MATCH($B53,'Disaggregation1B_Import-Export'!$C$8:$C$218,0))=\"\",\"\",INDEX('Disaggregation1B_Import-Export'!AQ$8:AQ$218,MATCH($B53,'Disaggregation1B_Import-Export'!$C$8:$C$218,0))),\"\")","v":""},null,null,"",null,null,null,null,null,"",null,null,null,null,null,""]
[44,"Coverage44",{"$f":"IFERROR(INDEX('Disaggregation1B_Import-Export'!D$8:D$218,MATCH($B54,'Disaggregation1B_Import-Export'!$C$8:$C$218,0)),\"\")","v":""},{"$f":"IFERROR(INDEX('Disaggregation1B_Import-Export'!AF$8:AF$235,MATCH($B54,'Disaggregation1B_Import-Export'!$C$8:$C$235,0)),\"\")","v":""},{"$f":"IFERROR(IF(INDEX('Disaggregation1B_Import-Export'!AG$8:AG$218,MATCH($B54,'Disaggregation1B_Import-Export'!$C$8:$C$218,0))=\"\",\"\",INDEX('Disaggregation1B_Import-Export'!AG$8:AG$218,MATCH($B54,'Disaggregation1B_Import-Export'!$C$8:$C$218,0))),\"\")","v":""},{"$f":"IFERROR(IF(INDEX('Disaggregation1B_Import-Export'!AH$8:AH$218,MATCH($B54,'Disaggregation1B_Import-Export'!$C$8:$C$218,0))=\"\",\"\",INDEX('Disaggregation1B_Import-Export'!AH$8:AH$218,MATCH($B54,'Disaggregation1B_Import-Export'!$C$8:$C$218,0))),\"\")","v":""},{"$f":"IFERROR(IF(INDEX('Disaggregation1B_Import-Export'!H$8:H$218,MATCH($B54,'Disaggregation1B_Import-Export'!$C$8:$C$218,0))=\"\",\"\",INDEX('Disaggregation1B_Import-Export'!H$8:H$218,MATCH($B54,'Disaggregation1B_Import-Export'!$C$8:$C$218,0))),\"\")","v":""},{"$f":"IFERROR(IF(INDEX('Disaggregation1B_Import-Export'!I$8:I$218,MATCH($B54,'Disaggregation1B_Import-Export'!$C$8:$C$218,0))=\"\",\"\",INDEX('Disaggregation1B_Import-Export'!I$8:I$218,MATCH($B54,'Disaggregation1B_Import-Export'!$C$8:$C$218,0))),\"\")","v":""},{"$f":"IFERROR(IF(INDEX('Disaggregation1B_Import-Export'!J$8:J$218,MATCH($B54,'Disaggregation1B_Import-Export'!$C$8:$C$218,0))=\"\",\"\",INDEX('Disaggregation1B_Import-Export'!J$8:J$218,MATCH($B54,'Disaggregation1B_Import-Export'!$C$8:$C$218,0))),\"\")","v":""},{"$f":"IFERROR(IF(INDEX('Disaggregation1B_Import-Export'!K$8:K$218,MATCH($B54,'Disaggregation1B_Import-Export'!$C$8:$C$218,0))=\"\",\"\",INDEX('Disaggregation1B_Import-Export'!K$8:K$218,MATCH($B54,'Disaggregation1B_Import-Export'!$C$8:$C$218,0))),\"\")","v":""},{"$f":"IFERROR(IF(INDEX('Disaggregation1B_Import-Export'!L$8:L$218,MATCH($B54,'Disaggregation1B_Import-Export'!$C$8:$C$218,0))=\"\",\"\",INDEX('Disaggregation1B_Import-Export'!L$8:L$218,MATCH($B54,'Disaggregation1B_Import-Export'!$C$8:$C$218,0))),\"\")","v":""},{"$f":"IFERROR(IF(INDEX('Disaggregation1B_Import-Export'!AQ$8:AQ$218,MATCH($B54,'Disaggregation1B_Import-Export'!$C$8:$C$218,0))=\"\",\"\",INDEX('Disaggregation1B_Import-Export'!AQ$8:AQ$218,MATCH($B54,'Disaggregation1B_Import-Export'!$C$8:$C$218,0))),\"\")","v":""},null,null,"",null,null,null,null,null,"",null,null,null,null,null,""]
[45,"Coverage45",{"$f":"IFERROR(INDEX('Disaggregation1B_Import-Export'!D$8:D$218,MATCH($B55,'Disaggregation1B_Import-Export'!$C$8:$C$218,0)),\"\")","v":""},{"$f":"IFERROR(INDEX('Disaggregation1B_Import-Export'!AF$8:AF$235,MATCH($B55,'Disaggregation1B_Import-Export'!$C$8:$C$235,0)),\"\")","v":""},{"$f":"IFERROR(IF(INDEX('Disaggregation1B_Import-Export'!AG$8:AG$218,MATCH($B55,'Disaggregation1B_Import-Export'!$C$8:$C$218,0))=\"\",\"\",INDEX('Disaggregation1B_Import-Export'!AG$8:AG$218,MATCH($B55,'Disaggregation1B_Import-Export'!$C$8:$C$218,0))),\"\")","v":""},{"$f":"IFERROR(IF(INDEX('Disaggregation1B_Import-Export'!AH$8:AH$218,MATCH($B55,'Disaggregation1B_Import-Export'!$C$8:$C$218,0))=\"\",\"\",INDEX('Disaggregation1B_Import-Export'!AH$8:AH$218,MATCH($B55,'Disaggregation1B_Import-Export'!$C$8:$C$218,0))),\"\")","v":""},{"$f":"IFERROR(IF(INDEX('Disaggregation1B_Import-Export'!H$8:H$218,MATCH($B55,'Disaggregation1B_Import-Export'!$C$8:$C$218,0))=\"\",\"\",INDEX('Disaggregation1B_Import-Export'!H$8:H$218,MATCH($B55,'Disaggregation1B_Import-Export'!$C$8:$C$218,0))),\"\")","v":""},{"$f":"IFERROR(IF(INDEX('Disaggregation1B_Import-Export'!I$8:I$218,MATCH($B55,'Disaggregation1B_Import-Export'!$C$8:$C$218,0))=\"\",\"\",INDEX('Disaggregation1B_Import-Export'!I$8:I$218,MATCH($B55,'Disaggregation1B_Import-Export'!$C$8:$C$218,0))),\"\")","v":""},{"$f":"IFERROR(IF(INDEX('Disaggregation1B_Import-Export'!J$8:J$218,MATCH($B55,'Disaggregation1B_Import-Export'!$C$8:$C$218,0))=\"\",\"\",INDEX('Disaggregation1B_Import-Export'!J$8:J$218,MATCH($B55,'Disaggregation1B_Import-Export'!$C$8:$C$218,0))),\"\")","v":""},{"$f":"IFERROR(IF(INDEX('Disaggregation1B_Import-Export'!K$8:K$218,MATCH($B55,'Disaggregation1B_Import-Export'!$C$8:$C$218,0))=\"\",\"\",INDEX('Disaggregation1B_Import-Export'!K$8:K$218,MATCH($B55,'Disaggregation1B_Import-Export'!$C$8:$C$218,0))),\"\")","v":""},{"$f":"IFERROR(IF(INDEX('Disaggregation1B_Import-Export'!L$8:L$218,MATCH($B55,'Disaggregation1B_Import-Export'!$C$8:$C$218,0))=\"\",\"\",INDEX('Disaggregation1B_Import-Export'!L$8:L$218,MATCH($B55,'Disaggregation1B_Import-Export'!$C$8:$C$218,0))),\"\")","v":""},{"$f":"IFERROR(IF(INDEX('Disaggregation1B_Import-Export'!AQ$8:AQ$218,MATCH($B55,'Disaggregation1B_Import-Export'!$C$8:$C$218,0))=\"\",\"\",INDEX('Disaggregation1B_Import-Export'!AQ$8:AQ$218,MATCH($B55,'Disaggregation1B_Import-Export'!$C$8:$C$218,0))),\"\")","v":""},null,null,"",null,null,null,null,null,"",null,null,null,null,null,""]
[46,"Coverage46",{"$f":"IFERROR(INDEX('Disaggregation1B_Import-Export'!D$8:D$218,MATCH($B56,'Disaggregation1B_Import-Export'!$C$8:$C$218,0)),\"\")","v":""},{"$f":"IFERROR(INDEX('Disaggregation1B_Import-Export'!AF$8:AF$235,MATCH($B56,'Disaggregation1B_Import-Export'!$C$8:$C$235,0)),\"\")","v":""},{"$f":"IFERROR(IF(INDEX('Disaggregation1B_Import-Export'!AG$8:AG$218,MATCH($B56,'Disaggregation1B_Import-Export'!$C$8:$C$218,0))=\"\",\"\",INDEX('Disaggregation1B_Import-Export'!AG$8:AG$218,MATCH($B56,'Disaggregation1B_Import-Export'!$C$8:$C$218,0))),\"\")","v":""},{"$f":"IFERROR(IF(INDEX('Disaggregation1B_Import-Export'!AH$8:AH$218,MATCH($B56,'Disaggregation1B_Import-Export'!$C$8:$C$218,0))=\"\",\"\",INDEX('Disaggregation1B_Import-Export'!AH$8:AH$218,MATCH($B56,'Disaggregation1B_Import-Export'!$C$8:$C$218,0))),\"\")","v":""},{"$f":"IFERROR(IF(INDEX('Disaggregation1B_Import-Export'!H$8:H$218,MATCH($B56,'Disaggregation1B_Import-Export'!$C$8:$C$218,0))=\"\",\"\",INDEX('Disaggregation1B_Import-Export'!H$8:H$218,MATCH($B56,'Disaggregation1B_Import-Export'!$C$8:$C$218,0))),\"\")","v":""},{"$f":"IFERROR(IF(INDEX('Disaggregation1B_Import-Export'!I$8:I$218,MATCH($B56,'Disaggregation1B_Import-Export'!$C$8:$C$218,0))=\"\",\"\",INDEX('Disaggregation1B_Import-Export'!I$8:I$218,MATCH($B56,'Disaggregation1B_Import-Export'!$C$8:$C$218,0))),\"\")","v":""},{"$f":"IFERROR(IF(INDEX('Disaggregation1B_Import-Export'!J$8:J$218,MATCH($B56,'Disaggregation1B_Import-Export'!$C$8:$C$218,0))=\"\",\"\",INDEX('Disaggregation1B_Import-Export'!J$8:J$218,MATCH($B56,'Disaggregation1B_Import-Export'!$C$8:$C$218,0))),\"\")","v":""},{"$f":"IFERROR(IF(INDEX('Disaggregation1B_Import-Export'!K$8:K$218,MATCH($B56,'Disaggregation1B_Import-Export'!$C$8:$C$218,0))=\"\",\"\",INDEX('Disaggregation1B_Import-Export'!K$8:K$218,MATCH($B56,'Disaggregation1B_Import-Export'!$C$8:$C$218,0))),\"\")","v":""},{"$f":"IFERROR(IF(INDEX('Disaggregation1B_Import-Export'!L$8:L$218,MATCH($B56,'Disaggregation1B_Import-Export'!$C$8:$C$218,0))=\"\",\"\",INDEX('Disaggregation1B_Import-Export'!L$8:L$218,MATCH($B56,'Disaggregation1B_Import-Export'!$C$8:$C$218,0))),\"\")","v":""},{"$f":"IFERROR(IF(INDEX('Disaggregation1B_Import-Export'!AQ$8:AQ$218,MATCH($B56,'Disaggregation1B_Import-Export'!$C$8:$C$218,0))=\"\",\"\",INDEX('Disaggregation1B_Import-Export'!AQ$8:AQ$218,MATCH($B56,'Disaggregation1B_Import-Export'!$C$8:$C$218,0))),\"\")","v":""},null,null,"",null,null,null,null,null,"",null,null,null,null,null,""]
[47,"Coverage47",{"$f":"IFERROR(INDEX('Disaggregation1B_Import-Export'!D$8:D$218,MATCH($B57,'Disaggregation1B_Import-Export'!$C$8:$C$218,0)),\"\")","v":""},{"$f":"IFERROR(INDEX('Disaggregation1B_Import-Export'!AF$8:AF$235,MATCH($B57,'Disaggregation1B_Import-Export'!$C$8:$C$235,0)),\"\")","v":""},{"$f":"IFERROR(IF(INDEX('Disaggregation1B_Import-Export'!AG$8:AG$218,MATCH($B57,'Disaggregation1B_Import-Export'!$C$8:$C$218,0))=\"\",\"\",INDEX('Disaggregation1B_Import-Export'!AG$8:AG$218,MATCH($B57,'Disaggregation1B_Import-Export'!$C$8:$C$218,0))),\"\")","v":""},{"$f":"IFERROR(IF(INDEX('Disaggregation1B_Import-Export'!AH$8:AH$218,MATCH($B57,'Disaggregation1B_Import-Export'!$C$8:$C$218,0))=\"\",\"\",INDEX('Disaggregation1B_Import-Export'!AH$8:AH$218,MATCH($B57,'Disaggregation1B_Import-Export'!$C$8:$C$218,0))),\"\")","v":""},{"$f":"IFERROR(IF(INDEX('Disaggregation1B_Import-Export'!H$8:H$218,MATCH($B57,'Disaggregation1B_Import-Export'!$C$8:$C$218,0))=\"\",\"\",INDEX('Disaggregation1B_Import-Export'!H$8:H$218,MATCH($B57,'Disaggregation1B_Import-Export'!$C$8:$C$218,0))),\"\")","v":""},{"$f":"IFERROR(IF(INDEX('Disaggregation1B_Import-Export'!I$8:I$218,MATCH($B57,'Disaggregation1B_Import-Export'!$C$8:$C$218,0))=\"\",\"\",INDEX('Disaggregation1B_Import-Export'!I$8:I$218,MATCH($B57,'Disaggregation1B_Import-Export'!$C$8:$C$218,0))),\"\")","v":""},{"$f":"IFERROR(IF(INDEX('Disaggregation1B_Import-Export'!J$8:J$218,MATCH($B57,'Disaggregation1B_Import-Export'!$C$8:$C$218,0))=\"\",\"\",INDEX('Disaggregation1B_Import-Export'!J$8:J$218,MATCH($B57,'Disaggregation1B_Import-Export'!$C$8:$C$218,0))),\"\")","v":""},{"$f":"IFERROR(IF(INDEX('Disaggregation1B_Import-Export'!K$8:K$218,MATCH($B57,'Disaggregation1B_Import-Export'!$C$8:$C$218,0))=\"\",\"\",INDEX('Disaggregation1B_Import-Export'!K$8:K$218,MATCH($B57,'Disaggregation1B_Import-Export'!$C$8:$C$218,0))),\"\")","v":""},{"$f":"IFERROR(IF(INDEX('Disaggregation1B_Import-Export'!L$8:L$218,MATCH($B57,'Disaggregation1B_Import-Export'!$C$8:$C$218,0))=\"\",\"\",INDEX('Disaggregation1B_Import-Export'!L$8:L$218,MATCH($B57,'Disaggregation1B_Import-Export'!$C$8:$C$218,0))),\"\")","v":""},{"$f":"IFERROR(IF(INDEX('Disaggregation1B_Import-Export'!AQ$8:AQ$218,MATCH($B57,'Disaggregation1B_Import-Export'!$C$8:$C$218,0))=\"\",\"\",INDEX('Disaggregation1B_Import-Export'!AQ$8:AQ$218,MATCH($B57,'Disaggregation1B_Import-Export'!$C$8:$C$218,0))),\"\")","v":""},null,null,"",null,null,null,null,null,"",null,null,null,null,null,""]
[48,"Coverage48",{"$f":"IFERROR(INDEX('Disaggregation1B_Import-Export'!D$8:D$218,MATCH($B58,'Disaggregation1B_Import-Export'!$C$8:$C$218,0)),\"\")","v":""},{"$f":"IFERROR(INDEX('Disaggregation1B_Import-Export'!AF$8:AF$235,MATCH($B58,'Disaggregation1B_Import-Export'!$C$8:$C$235,0)),\"\")","v":""},{"$f":"IFERROR(IF(INDEX('Disaggregation1B_Import-Export'!AG$8:AG$218,MATCH($B58,'Disaggregation1B_Import-Export'!$C$8:$C$218,0))=\"\",\"\",INDEX('Disaggregation1B_Import-Export'!AG$8:AG$218,MATCH($B58,'Disaggregation1B_Import-Export'!$C$8:$C$218,0))),\"\")","v":""},{"$f":"IFERROR(IF(INDEX('Disaggregation1B_Import-Export'!AH$8:AH$218,MATCH($B58,'Disaggregation1B_Import-Export'!$C$8:$C$218,0))=\"\",\"\",INDEX('Disaggregation1B_Import-Export'!AH$8:AH$218,MATCH($B58,'Disaggregation1B_Import-Export'!$C$8:$C$218,0))),\"\")","v":""},{"$f":"IFERROR(IF(INDEX('Disaggregation1B_Import-Export'!H$8:H$218,MATCH($B58,'Disaggregation1B_Import-Export'!$C$8:$C$218,0))=\"\",\"\",INDEX('Disaggregation1B_Import-Export'!H$8:H$218,MATCH($B58,'Disaggregation1B_Import-Export'!$C$8:$C$218,0))),\"\")","v":""},{"$f":"IFERROR(IF(INDEX('Disaggregation1B_Import-Export'!I$8:I$218,MATCH($B58,'Disaggregation1B_Import-Export'!$C$8:$C$218,0))=\"\",\"\",INDEX('Disaggregation1B_Import-Export'!I$8:I$218,MATCH($B58,'Disaggregation1B_Import-Export'!$C$8:$C$218,0))),\"\")","v":""},{"$f":"IFERROR(IF(INDEX('Disaggregation1B_Import-Export'!J$8:J$218,MATCH($B58,'Disaggregation1B_Import-Export'!$C$8:$C$218,0))=\"\",\"\",INDEX('Disaggregation1B_Import-Export'!J$8:J$218,MATCH($B58,'Disaggregation1B_Import-Export'!$C$8:$C$218,0))),\"\")","v":""},{"$f":"IFERROR(IF(INDEX('Disaggregation1B_Import-Export'!K$8:K$218,MATCH($B58,'Disaggregation1B_Import-Export'!$C$8:$C$218,0))=\"\",\"\",INDEX('Disaggregation1B_Import-Export'!K$8:K$218,MATCH($B58,'Disaggregation1B_Import-Export'!$C$8:$C$218,0))),\"\")","v":""},{"$f":"IFERROR(IF(INDEX('Disaggregation1B_Import-Export'!L$8:L$218,MATCH($B58,'Disaggregation1B_Import-Export'!$C$8:$C$218,0))=\"\",\"\",INDEX('Disaggregation1B_Import-Export'!L$8:L$218,MATCH($B58,'Disaggregation1B_Import-Export'!$C$8:$C$218,0))),\"\")","v":""},{"$f":"IFERROR(IF(INDEX('Disaggregation1B_Import-Export'!AQ$8:AQ$218,MATCH($B58,'Disaggregation1B_Import-Export'!$C$8:$C$218,0))=\"\",\"\",INDEX('Disaggregation1B_Import-Export'!AQ$8:AQ$218,MATCH($B58,'Disaggregation1B_Import-Export'!$C$8:$C$218,0))),\"\")","v":""},null,null,"",null,null,null,null,null,"",null,null,null,null,null,""]
[49,"Coverage49",{"$f":"IFERROR(INDEX('Disaggregation1B_Import-Export'!D$8:D$218,MATCH($B59,'Disaggregation1B_Import-Export'!$C$8:$C$218,0)),\"\")","v":""},{"$f":"IFERROR(INDEX('Disaggregation1B_Import-Export'!AF$8:AF$235,MATCH($B59,'Disaggregation1B_Import-Export'!$C$8:$C$235,0)),\"\")","v":""},{"$f":"IFERROR(IF(INDEX('Disaggregation1B_Import-Export'!AG$8:AG$218,MATCH($B59,'Disaggregation1B_Import-Export'!$C$8:$C$218,0))=\"\",\"\",INDEX('Disaggregation1B_Import-Export'!AG$8:AG$218,MATCH($B59,'Disaggregation1B_Import-Export'!$C$8:$C$218,0))),\"\")","v":""},{"$f":"IFERROR(IF(INDEX('Disaggregation1B_Import-Export'!AH$8:AH$218,MATCH($B59,'Disaggregation1B_Import-Export'!$C$8:$C$218,0))=\"\",\"\",INDEX('Disaggregation1B_Import-Export'!AH$8:AH$218,MATCH($B59,'Disaggregation1B_Import-Export'!$C$8:$C$218,0))),\"\")","v":""},{"$f":"IFERROR(IF(INDEX('Disaggregation1B_Import-Export'!H$8:H$218,MATCH($B59,'Disaggregation1B_Import-Export'!$C$8:$C$218,0))=\"\",\"\",INDEX('Disaggregation1B_Import-Export'!H$8:H$218,MATCH($B59,'Disaggregation1B_Import-Export'!$C$8:$C$218,0))),\"\")","v":""},{"$f":"IFERROR(IF(INDEX('Disaggregation1B_Import-Export'!I$8:I$218,MATCH($B59,'Disaggregation1B_Import-Export'!$C$8:$C$218,0))=\"\",\"\",INDEX('Disaggregation1B_Import-Export'!I$8:I$218,MATCH($B59,'Disaggregation1B_Import-Export'!$C$8:$C$218,0))),\"\")","v":""},{"$f":"IFERROR(IF(INDEX('Disaggregation1B_Import-Export'!J$8:J$218,MATCH($B59,'Disaggregation1B_Import-Export'!$C$8:$C$218,0))=\"\",\"\",INDEX('Disaggregation1B_Import-Export'!J$8:J$218,MATCH($B59,'Disaggregation1B_Import-Export'!$C$8:$C$218,0))),\"\")","v":""},{"$f":"IFERROR(IF(INDEX('Disaggregation1B_Import-Export'!K$8:K$218,MATCH($B59,'Disaggregation1B_Import-Export'!$C$8:$C$218,0))=\"\",\"\",INDEX('Disaggregation1B_Import-Export'!K$8:K$218,MATCH($B59,'Disaggregation1B_Import-Export'!$C$8:$C$218,0))),\"\")","v":""},{"$f":"IFERROR(IF(INDEX('Disaggregation1B_Import-Export'!L$8:L$218,MATCH($B59,'Disaggregation1B_Import-Export'!$C$8:$C$218,0))=\"\",\"\",INDEX('Disaggregation1B_Import-Export'!L$8:L$218,MATCH($B59,'Disaggregation1B_Import-Export'!$C$8:$C$218,0))),\"\")","v":""},{"$f":"IFERROR(IF(INDEX('Disaggregation1B_Import-Export'!AQ$8:AQ$218,MATCH($B59,'Disaggregation1B_Import-Export'!$C$8:$C$218,0))=\"\",\"\",INDEX('Disaggregation1B_Import-Export'!AQ$8:AQ$218,MATCH($B59,'Disaggregation1B_Import-Export'!$C$8:$C$218,0))),\"\")","v":""},null,null,"",null,null,null,null,null,"",null,null,null,null,null,""]
[50,"Coverage50",{"$f":"IFERROR(INDEX('Disaggregation1B_Import-Export'!D$8:D$218,MATCH($B60,'Disaggregation1B_Import-Export'!$C$8:$C$218,0)),\"\")","v":""},{"$f":"IFERROR(INDEX('Disaggregation1B_Import-Export'!AF$8:AF$235,MATCH($B60,'Disaggregation1B_Import-Export'!$C$8:$C$235,0)),\"\")","v":""},{"$f":"IFERROR(IF(INDEX('Disaggregation1B_Import-Export'!AG$8:AG$218,MATCH($B60,'Disaggregation1B_Import-Export'!$C$8:$C$218,0))=\"\",\"\",INDEX('Disaggregation1B_Import-Export'!AG$8:AG$218,MATCH($B60,'Disaggregation1B_Import-Export'!$C$8:$C$218,0))),\"\")","v":""},{"$f":"IFERROR(IF(INDEX('Disaggregation1B_Import-Export'!AH$8:AH$218,MATCH($B60,'Disaggregation1B_Import-Export'!$C$8:$C$218,0))=\"\",\"\",INDEX('Disaggregation1B_Import-Export'!AH$8:AH$218,MATCH($B60,'Disaggregation1B_Import-Export'!$C$8:$C$218,0))),\"\")","v":""},{"$f":"IFERROR(IF(INDEX('Disaggregation1B_Import-Export'!H$8:H$218,MATCH($B60,'Disaggregation1B_Import-Export'!$C$8:$C$218,0))=\"\",\"\",INDEX('Disaggregation1B_Import-Export'!H$8:H$218,MATCH($B60,'Disaggregation1B_Import-Export'!$C$8:$C$218,0))),\"\")","v":""},{"$f":"IFERROR(IF(INDEX('Disaggregation1B_Import-Export'!I$8:I$218,MATCH($B60,'Disaggregation1B_Import-Export'!$C$8:$C$218,0))=\"\",\"\",INDEX('Disaggregation1B_Import-Export'!I$8:I$218,MATCH($B60,'Disaggregation1B_Import-Export'!$C$8:$C$218,0))),\"\")","v":""},{"$f":"IFERROR(IF(INDEX('Disaggregation1B_Import-Export'!J$8:J$218,MATCH($B60,'Disaggregation1B_Import-Export'!$C$8:$C$218,0))=\"\",\"\",INDEX('Disaggregation1B_Import-Export'!J$8:J$218,MATCH($B60,'Disaggregation1B_Import-Export'!$C$8:$C$218,0))),\"\")","v":""},{"$f":"IFERROR(IF(INDEX('Disaggregation1B_Import-Export'!K$8:K$218,MATCH($B60,'Disaggregation1B_Import-Export'!$C$8:$C$218,0))=\"\",\"\",INDEX('Disaggregation1B_Import-Export'!K$8:K$218,MATCH($B60,'Disaggregation1B_Import-Export'!$C$8:$C$218,0))),\"\")","v":""},{"$f":"IFERROR(IF(INDEX('Disaggregation1B_Import-Export'!L$8:L$218,MATCH($B60,'Disaggregation1B_Import-Export'!$C$8:$C$218,0))=\"\",\"\",INDEX('Disaggregation1B_Import-Export'!L$8:L$218,MATCH($B60,'Disaggregation1B_Import-Export'!$C$8:$C$218,0))),\"\")","v":""},{"$f":"IFERROR(IF(INDEX('Disaggregation1B_Import-Export'!AQ$8:AQ$218,MATCH($B60,'Disaggregation1B_Import-Export'!$C$8:$C$218,0))=\"\",\"\",INDEX('Disaggregation1B_Import-Export'!AQ$8:AQ$218,MATCH($B60,'Disaggregation1B_Import-Export'!$C$8:$C$218,0))),\"\")","v":""},null,null,"",null,null,null,null,null,"",null,null,null,null,null,""]
[51,"Coverage51",{"$f":"IFERROR(INDEX('Disaggregation1B_Import-Export'!D$8:D$218,MATCH($B61,'Disaggregation1B_Import-Export'!$C$8:$C$218,0)),\"\")","v":""},{"$f":"IFERROR(INDEX('Disaggregation1B_Import-Export'!AF$8:AF$235,MATCH($B61,'Disaggregation1B_Import-Export'!$C$8:$C$235,0)),\"\")","v":""},{"$f":"IFERROR(IF(INDEX('Disaggregation1B_Import-Export'!AG$8:AG$218,MATCH($B61,'Disaggregation1B_Import-Export'!$C$8:$C$218,0))=\"\",\"\",INDEX('Disaggregation1B_Import-Export'!AG$8:AG$218,MATCH($B61,'Disaggregation1B_Import-Export'!$C$8:$C$218,0))),\"\")","v":""},{"$f":"IFERROR(IF(INDEX('Disaggregation1B_Import-Export'!AH$8:AH$218,MATCH($B61,'Disaggregation1B_Import-Export'!$C$8:$C$218,0))=\"\",\"\",INDEX('Disaggregation1B_Import-Export'!AH$8:AH$218,MATCH($B61,'Disaggregation1B_Import-Export'!$C$8:$C$218,0))),\"\")","v":""},{"$f":"IFERROR(IF(INDEX('Disaggregation1B_Import-Export'!H$8:H$218,MATCH($B61,'Disaggregation1B_Import-Export'!$C$8:$C$218,0))=\"\",\"\",INDEX('Disaggregation1B_Import-Export'!H$8:H$218,MATCH($B61,'Disaggregation1B_Import-Export'!$C$8:$C$218,0))),\"\")","v":""},{"$f":"IFERROR(IF(INDEX('Disaggregation1B_Import-Export'!I$8:I$218,MATCH($B61,'Disaggregation1B_Import-Export'!$C$8:$C$218,0))=\"\",\"\",INDEX('Disaggregation1B_Import-Export'!I$8:I$218,MATCH($B61,'Disaggregation1B_Import-Export'!$C$8:$C$218,0))),\"\")","v":""},{"$f":"IFERROR(IF(INDEX('Disaggregation1B_Import-Export'!J$8:J$218,MATCH($B61,'Disaggregation1B_Import-Export'!$C$8:$C$218,0))=\"\",\"\",INDEX('Disaggregation1B_Import-Export'!J$8:J$218,MATCH($B61,'Disaggregation1B_Import-Export'!$C$8:$C$218,0))),\"\")","v":""},{"$f":"IFERROR(IF(INDEX('Disaggregation1B_Import-Export'!K$8:K$218,MATCH($B61,'Disaggregation1B_Import-Export'!$C$8:$C$218,0))=\"\",\"\",INDEX('Disaggregation1B_Import-Export'!K$8:K$218,MATCH($B61,'Disaggregation1B_Import-Export'!$C$8:$C$218,0))),\"\")","v":""},{"$f":"IFERROR(IF(INDEX('Disaggregation1B_Import-Export'!L$8:L$218,MATCH($B61,'Disaggregation1B_Import-Export'!$C$8:$C$218,0))=\"\",\"\",INDEX('Disaggregation1B_Import-Export'!L$8:L$218,MATCH($B61,'Disaggregation1B_Import-Export'!$C$8:$C$218,0))),\"\")","v":""},{"$f":"IFERROR(IF(INDEX('Disaggregation1B_Import-Export'!AQ$8:AQ$218,MATCH($B61,'Disaggregation1B_Import-Export'!$C$8:$C$218,0))=\"\",\"\",INDEX('Disaggregation1B_Import-Export'!AQ$8:AQ$218,MATCH($B61,'Disaggregation1B_Import-Export'!$C$8:$C$218,0))),\"\")","v":""},null,null,"",null,null,null,null,null,"",null,null,null,null,null,""]
[52,"Coverage52",{"$f":"IFERROR(INDEX('Disaggregation1B_Import-Export'!D$8:D$218,MATCH($B62,'Disaggregation1B_Import-Export'!$C$8:$C$218,0)),\"\")","v":""},{"$f":"IFERROR(INDEX('Disaggregation1B_Import-Export'!AF$8:AF$235,MATCH($B62,'Disaggregation1B_Import-Export'!$C$8:$C$235,0)),\"\")","v":""},{"$f":"IFERROR(IF(INDEX('Disaggregation1B_Import-Export'!AG$8:AG$218,MATCH($B62,'Disaggregation1B_Import-Export'!$C$8:$C$218,0))=\"\",\"\",INDEX('Disaggregation1B_Import-Export'!AG$8:AG$218,MATCH($B62,'Disaggregation1B_Import-Export'!$C$8:$C$218,0))),\"\")","v":""},{"$f":"IFERROR(IF(INDEX('Disaggregation1B_Import-Export'!AH$8:AH$218,MATCH($B62,'Disaggregation1B_Import-Export'!$C$8:$C$218,0))=\"\",\"\",INDEX('Disaggregation1B_Import-Export'!AH$8:AH$218,MATCH($B62,'Disaggregation1B_Import-Export'!$C$8:$C$218,0))),\"\")","v":""},{"$f":"IFERROR(IF(INDEX('Disaggregation1B_Import-Export'!H$8:H$218,MATCH($B62,'Disaggregation1B_Import-Export'!$C$8:$C$218,0))=\"\",\"\",INDEX('Disaggregation1B_Import-Export'!H$8:H$218,MATCH($B62,'Disaggregation1B_Import-Export'!$C$8:$C$218,0))),\"\")","v":""},{"$f":"IFERROR(IF(INDEX('Disaggregation1B_Import-Export'!I$8:I$218,MATCH($B62,'Disaggregation1B_Import-Export'!$C$8:$C$218,0))=\"\",\"\",INDEX('Disaggregation1B_Import-Export'!I$8:I$218,MATCH($B62,'Disaggregation1B_Import-Export'!$C$8:$C$218,0))),\"\")","v":""},{"$f":"IFERROR(IF(INDEX('Disaggregation1B_Import-Export'!J$8:J$218,MATCH($B62,'Disaggregation1B_Import-Export'!$C$8:$C$218,0))=\"\",\"\",INDEX('Disaggregation1B_Import-Export'!J$8:J$218,MATCH($B62,'Disaggregation1B_Import-Export'!$C$8:$C$218,0))),\"\")","v":""},{"$f":"IFERROR(IF(INDEX('Disaggregation1B_Import-Export'!K$8:K$218,MATCH($B62,'Disaggregation1B_Import-Export'!$C$8:$C$218,0))=\"\",\"\",INDEX('Disaggregation1B_Import-Export'!K$8:K$218,MATCH($B62,'Disaggregation1B_Import-Export'!$C$8:$C$218,0))),\"\")","v":""},{"$f":"IFERROR(IF(INDEX('Disaggregation1B_Import-Export'!L$8:L$218,MATCH($B62,'Disaggregation1B_Import-Export'!$C$8:$C$218,0))=\"\",\"\",INDEX('Disaggregation1B_Import-Export'!L$8:L$218,MATCH($B62,'Disaggregation1B_Import-Export'!$C$8:$C$218,0))),\"\")","v":""},{"$f":"IFERROR(IF(INDEX('Disaggregation1B_Import-Export'!AQ$8:AQ$218,MATCH($B62,'Disaggregation1B_Import-Export'!$C$8:$C$218,0))=\"\",\"\",INDEX('Disaggregation1B_Import-Export'!AQ$8:AQ$218,MATCH($B62,'Disaggregation1B_Import-Export'!$C$8:$C$218,0))),\"\")","v":""},null,null,"",null,null,null,null,null,"",null,null,null,null,null,""]
[53,"Coverage53",{"$f":"IFERROR(INDEX('Disaggregation1B_Import-Export'!D$8:D$218,MATCH($B63,'Disaggregation1B_Import-Export'!$C$8:$C$218,0)),\"\")","v":""},{"$f":"IFERROR(INDEX('Disaggregation1B_Import-Export'!AF$8:AF$235,MATCH($B63,'Disaggregation1B_Import-Export'!$C$8:$C$235,0)),\"\")","v":""},{"$f":"IFERROR(IF(INDEX('Disaggregation1B_Import-Export'!AG$8:AG$218,MATCH($B63,'Disaggregation1B_Import-Export'!$C$8:$C$218,0))=\"\",\"\",INDEX('Disaggregation1B_Import-Export'!AG$8:AG$218,MATCH($B63,'Disaggregation1B_Import-Export'!$C$8:$C$218,0))),\"\")","v":""},{"$f":"IFERROR(IF(INDEX('Disaggregation1B_Import-Export'!AH$8:AH$218,MATCH($B63,'Disaggregation1B_Import-Export'!$C$8:$C$218,0))=\"\",\"\",INDEX('Disaggregation1B_Import-Export'!AH$8:AH$218,MATCH($B63,'Disaggregation1B_Import-Export'!$C$8:$C$218,0))),\"\")","v":""},{"$f":"IFERROR(IF(INDEX('Disaggregation1B_Import-Export'!H$8:H$218,MATCH($B63,'Disaggregation1B_Import-Export'!$C$8:$C$218,0))=\"\",\"\",INDEX('Disaggregation1B_Import-Export'!H$8:H$218,MATCH($B63,'Disaggregation1B_Import-Export'!$C$8:$C$218,0))),\"\")","v":""},{"$f":"IFERROR(IF(INDEX('Disaggregation1B_Import-Export'!I$8:I$218,MATCH($B63,'Disaggregation1B_Import-Export'!$C$8:$C$218,0))=\"\",\"\",INDEX('Disaggregation1B_Import-Export'!I$8:I$218,MATCH($B63,'Disaggregation1B_Import-Export'!$C$8:$C$218,0))),\"\")","v":""},{"$f":"IFERROR(IF(INDEX('Disaggregation1B_Import-Export'!J$8:J$218,MATCH($B63,'Disaggregation1B_Import-Export'!$C$8:$C$218,0))=\"\",\"\",INDEX('Disaggregation1B_Import-Export'!J$8:J$218,MATCH($B63,'Disaggregation1B_Import-Export'!$C$8:$C$218,0))),\"\")","v":""},{"$f":"IFERROR(IF(INDEX('Disaggregation1B_Import-Export'!K$8:K$218,MATCH($B63,'Disaggregation1B_Import-Export'!$C$8:$C$218,0))=\"\",\"\",INDEX('Disaggregation1B_Import-Export'!K$8:K$218,MATCH($B63,'Disaggregation1B_Import-Export'!$C$8:$C$218,0))),\"\")","v":""},{"$f":"IFERROR(IF(INDEX('Disaggregation1B_Import-Export'!L$8:L$218,MATCH($B63,'Disaggregation1B_Import-Export'!$C$8:$C$218,0))=\"\",\"\",INDEX('Disaggregation1B_Import-Export'!L$8:L$218,MATCH($B63,'Disaggregation1B_Import-Export'!$C$8:$C$218,0))),\"\")","v":""},{"$f":"IFERROR(IF(INDEX('Disaggregation1B_Import-Export'!AQ$8:AQ$218,MATCH($B63,'Disaggregation1B_Import-Export'!$C$8:$C$218,0))=\"\",\"\",INDEX('Disaggregation1B_Import-Export'!AQ$8:AQ$218,MATCH($B63,'Disaggregation1B_Import-Export'!$C$8:$C$218,0))),\"\")","v":""},null,null,"",null,null,null,null,null,"",null,null,null,null,null,""]
[54,"Coverage54",{"$f":"IFERROR(INDEX('Disaggregation1B_Import-Export'!D$8:D$218,MATCH($B64,'Disaggregation1B_Import-Export'!$C$8:$C$218,0)),\"\")","v":""},{"$f":"IFERROR(INDEX('Disaggregation1B_Import-Export'!AF$8:AF$235,MATCH($B64,'Disaggregation1B_Import-Export'!$C$8:$C$235,0)),\"\")","v":""},{"$f":"IFERROR(IF(INDEX('Disaggregation1B_Import-Export'!AG$8:AG$218,MATCH($B64,'Disaggregation1B_Import-Export'!$C$8:$C$218,0))=\"\",\"\",INDEX('Disaggregation1B_Import-Export'!AG$8:AG$218,MATCH($B64,'Disaggregation1B_Import-Export'!$C$8:$C$218,0))),\"\")","v":""},{"$f":"IFERROR(IF(INDEX('Disaggregation1B_Import-Export'!AH$8:AH$218,MATCH($B64,'Disaggregation1B_Import-Export'!$C$8:$C$218,0))=\"\",\"\",INDEX('Disaggregation1B_Import-Export'!AH$8:AH$218,MATCH($B64,'Disaggregation1B_Import-Export'!$C$8:$C$218,0))),\"\")","v":""},{"$f":"IFERROR(IF(INDEX('Disaggregation1B_Import-Export'!H$8:H$218,MATCH($B64,'Disaggregation1B_Import-Export'!$C$8:$C$218,0))=\"\",\"\",INDEX('Disaggregation1B_Import-Export'!H$8:H$218,MATCH($B64,'Disaggregation1B_Import-Export'!$C$8:$C$218,0))),\"\")","v":""},{"$f":"IFERROR(IF(INDEX('Disaggregation1B_Import-Export'!I$8:I$218,MATCH($B64,'Disaggregation1B_Import-Export'!$C$8:$C$218,0))=\"\",\"\",INDEX('Disaggregation1B_Import-Export'!I$8:I$218,MATCH($B64,'Disaggregation1B_Import-Export'!$C$8:$C$218,0))),\"\")","v":""},{"$f":"IFERROR(IF(INDEX('Disaggregation1B_Import-Export'!J$8:J$218,MATCH($B64,'Disaggregation1B_Import-Export'!$C$8:$C$218,0))=\"\",\"\",INDEX('Disaggregation1B_Import-Export'!J$8:J$218,MATCH($B64,'Disaggregation1B_Import-Export'!$C$8:$C$218,0))),\"\")","v":""},{"$f":"IFERROR(IF(INDEX('Disaggregation1B_Import-Export'!K$8:K$218,MATCH($B64,'Disaggregation1B_Import-Export'!$C$8:$C$218,0))=\"\",\"\",INDEX('Disaggregation1B_Import-Export'!K$8:K$218,MATCH($B64,'Disaggregation1B_Import-Export'!$C$8:$C$218,0))),\"\")","v":""},{"$f":"IFERROR(IF(INDEX('Disaggregation1B_Import-Export'!L$8:L$218,MATCH($B64,'Disaggregation1B_Import-Export'!$C$8:$C$218,0))=\"\",\"\",INDEX('Disaggregation1B_Import-Export'!L$8:L$218,MATCH($B64,'Disaggregation1B_Import-Export'!$C$8:$C$218,0))),\"\")","v":""},{"$f":"IFERROR(IF(INDEX('Disaggregation1B_Import-Export'!AQ$8:AQ$218,MATCH($B64,'Disaggregation1B_Import-Export'!$C$8:$C$218,0))=\"\",\"\",INDEX('Disaggregation1B_Import-Export'!AQ$8:AQ$218,MATCH($B64,'Disaggregation1B_Import-Export'!$C$8:$C$218,0))),\"\")","v":""},null,null,"",null,null,null,null,null,"",null,null,null,null,null,""]
[55,"Coverage55",{"$f":"IFERROR(INDEX('Disaggregation1B_Import-Export'!D$8:D$218,MATCH($B65,'Disaggregation1B_Import-Export'!$C$8:$C$218,0)),\"\")","v":""},{"$f":"IFERROR(INDEX('Disaggregation1B_Import-Export'!AF$8:AF$235,MATCH($B65,'Disaggregation1B_Import-Export'!$C$8:$C$235,0)),\"\")","v":""},{"$f":"IFERROR(IF(INDEX('Disaggregation1B_Import-Export'!AG$8:AG$218,MATCH($B65,'Disaggregation1B_Import-Export'!$C$8:$C$218,0))=\"\",\"\",INDEX('Disaggregation1B_Import-Export'!AG$8:AG$218,MATCH($B65,'Disaggregation1B_Import-Export'!$C$8:$C$218,0))),\"\")","v":""},{"$f":"IFERROR(IF(INDEX('Disaggregation1B_Import-Export'!AH$8:AH$218,MATCH($B65,'Disaggregation1B_Import-Export'!$C$8:$C$218,0))=\"\",\"\",INDEX('Disaggregation1B_Import-Export'!AH$8:AH$218,MATCH($B65,'Disaggregation1B_Import-Export'!$C$8:$C$218,0))),\"\")","v":""},{"$f":"IFERROR(IF(INDEX('Disaggregation1B_Import-Export'!H$8:H$218,MATCH($B65,'Disaggregation1B_Import-Export'!$C$8:$C$218,0))=\"\",\"\",INDEX('Disaggregation1B_Import-Export'!H$8:H$218,MATCH($B65,'Disaggregation1B_Import-Export'!$C$8:$C$218,0))),\"\")","v":""},{"$f":"IFERROR(IF(INDEX('Disaggregation1B_Import-Export'!I$8:I$218,MATCH($B65,'Disaggregation1B_Import-Export'!$C$8:$C$218,0))=\"\",\"\",INDEX('Disaggregation1B_Import-Export'!I$8:I$218,MATCH($B65,'Disaggregation1B_Import-Export'!$C$8:$C$218,0))),\"\")","v":""},{"$f":"IFERROR(IF(INDEX('Disaggregation1B_Import-Export'!J$8:J$218,MATCH($B65,'Disaggregation1B_Import-Export'!$C$8:$C$218,0))=\"\",\"\",INDEX('Disaggregation1B_Import-Export'!J$8:J$218,MATCH($B65,'Disaggregation1B_Import-Export'!$C$8:$C$218,0))),\"\")","v":""},{"$f":"IFERROR(IF(INDEX('Disaggregation1B_Import-Export'!K$8:K$218,MATCH($B65,'Disaggregation1B_Import-Export'!$C$8:$C$218,0))=\"\",\"\",INDEX('Disaggregation1B_Import-Export'!K$8:K$218,MATCH($B65,'Disaggregation1B_Import-Export'!$C$8:$C$218,0))),\"\")","v":""},{"$f":"IFERROR(IF(INDEX('Disaggregation1B_Import-Export'!L$8:L$218,MATCH($B65,'Disaggregation1B_Import-Export'!$C$8:$C$218,0))=\"\",\"\",INDEX('Disaggregation1B_Import-Export'!L$8:L$218,MATCH($B65,'Disaggregation1B_Import-Export'!$C$8:$C$218,0))),\"\")","v":""},{"$f":"IFERROR(IF(INDEX('Disaggregation1B_Import-Export'!AQ$8:AQ$218,MATCH($B65,'Disaggregation1B_Import-Export'!$C$8:$C$218,0))=\"\",\"\",INDEX('Disaggregation1B_Import-Export'!AQ$8:AQ$218,MATCH($B65,'Disaggregation1B_Import-Export'!$C$8:$C$218,0))),\"\")","v":""},null,null,"",null,null,null,null,null,"",null,null,null,null,null,""]
[56,"Coverage56",{"$f":"IFERROR(INDEX('Disaggregation1B_Import-Export'!D$8:D$218,MATCH($B66,'Disaggregation1B_Import-Export'!$C$8:$C$218,0)),\"\")","v":""},{"$f":"IFERROR(INDEX('Disaggregation1B_Import-Export'!AF$8:AF$235,MATCH($B66,'Disaggregation1B_Import-Export'!$C$8:$C$235,0)),\"\")","v":""},{"$f":"IFERROR(IF(INDEX('Disaggregation1B_Import-Export'!AG$8:AG$218,MATCH($B66,'Disaggregation1B_Import-Export'!$C$8:$C$218,0))=\"\",\"\",INDEX('Disaggregation1B_Import-Export'!AG$8:AG$218,MATCH($B66,'Disaggregation1B_Import-Export'!$C$8:$C$218,0))),\"\")","v":""},{"$f":"IFERROR(IF(INDEX('Disaggregation1B_Import-Export'!AH$8:AH$218,MATCH($B66,'Disaggregation1B_Import-Export'!$C$8:$C$218,0))=\"\",\"\",INDEX('Disaggregation1B_Import-Export'!AH$8:AH$218,MATCH($B66,'Disaggregation1B_Import-Export'!$C$8:$C$218,0))),\"\")","v":""},{"$f":"IFERROR(IF(INDEX('Disaggregation1B_Import-Export'!H$8:H$218,MATCH($B66,'Disaggregation1B_Import-Export'!$C$8:$C$218,0))=\"\",\"\",INDEX('Disaggregation1B_Import-Export'!H$8:H$218,MATCH($B66,'Disaggregation1B_Import-Export'!$C$8:$C$218,0))),\"\")","v":""},{"$f":"IFERROR(IF(INDEX('Disaggregation1B_Import-Export'!I$8:I$218,MATCH($B66,'Disaggregation1B_Import-Export'!$C$8:$C$218,0))=\"\",\"\",INDEX('Disaggregation1B_Import-Export'!I$8:I$218,MATCH($B66,'Disaggregation1B_Import-Export'!$C$8:$C$218,0))),\"\")","v":""},{"$f":"IFERROR(IF(INDEX('Disaggregation1B_Import-Export'!J$8:J$218,MATCH($B66,'Disaggregation1B_Import-Export'!$C$8:$C$218,0))=\"\",\"\",INDEX('Disaggregation1B_Import-Export'!J$8:J$218,MATCH($B66,'Disaggregation1B_Import-Export'!$C$8:$C$218,0))),\"\")","v":""},{"$f":"IFERROR(IF(INDEX('Disaggregation1B_Import-Export'!K$8:K$218,MATCH($B66,'Disaggregation1B_Import-Export'!$C$8:$C$218,0))=\"\",\"\",INDEX('Disaggregation1B_Import-Export'!K$8:K$218,MATCH($B66,'Disaggregation1B_Import-Export'!$C$8:$C$218,0))),\"\")","v":""},{"$f":"IFERROR(IF(INDEX('Disaggregation1B_Import-Export'!L$8:L$218,MATCH($B66,'Disaggregation1B_Import-Export'!$C$8:$C$218,0))=\"\",\"\",INDEX('Disaggregation1B_Import-Export'!L$8:L$218,MATCH($B66,'Disaggregation1B_Import-Export'!$C$8:$C$218,0))),\"\")","v":""},{"$f":"IFERROR(IF(INDEX('Disaggregation1B_Import-Export'!AQ$8:AQ$218,MATCH($B66,'Disaggregation1B_Import-Export'!$C$8:$C$218,0))=\"\",\"\",INDEX('Disaggregation1B_Import-Export'!AQ$8:AQ$218,MATCH($B66,'Disaggregation1B_Import-Export'!$C$8:$C$218,0))),\"\")","v":""},null,null,"",null,null,null,null,null,"",null,null,null,null,null,""]
[57,"Coverage57",{"$f":"IFERROR(INDEX('Disaggregation1B_Import-Export'!D$8:D$218,MATCH($B67,'Disaggregation1B_Import-Export'!$C$8:$C$218,0)),\"\")","v":""},{"$f":"IFERROR(INDEX('Disaggregation1B_Import-Export'!AF$8:AF$235,MATCH($B67,'Disaggregation1B_Import-Export'!$C$8:$C$235,0)),\"\")","v":""},{"$f":"IFERROR(IF(INDEX('Disaggregation1B_Import-Export'!AG$8:AG$218,MATCH($B67,'Disaggregation1B_Import-Export'!$C$8:$C$218,0))=\"\",\"\",INDEX('Disaggregation1B_Import-Export'!AG$8:AG$218,MATCH($B67,'Disaggregation1B_Import-Export'!$C$8:$C$218,0))),\"\")","v":""},{"$f":"IFERROR(IF(INDEX('Disaggregation1B_Import-Export'!AH$8:AH$218,MATCH($B67,'Disaggregation1B_Import-Export'!$C$8:$C$218,0))=\"\",\"\",INDEX('Disaggregation1B_Import-Export'!AH$8:AH$218,MATCH($B67,'Disaggregation1B_Import-Export'!$C$8:$C$218,0))),\"\")","v":""},{"$f":"IFERROR(IF(INDEX('Disaggregation1B_Import-Export'!H$8:H$218,MATCH($B67,'Disaggregation1B_Import-Export'!$C$8:$C$218,0))=\"\",\"\",INDEX('Disaggregation1B_Import-Export'!H$8:H$218,MATCH($B67,'Disaggregation1B_Import-Export'!$C$8:$C$218,0))),\"\")","v":""},{"$f":"IFERROR(IF(INDEX('Disaggregation1B_Import-Export'!I$8:I$218,MATCH($B67,'Disaggregation1B_Import-Export'!$C$8:$C$218,0))=\"\",\"\",INDEX('Disaggregation1B_Import-Export'!I$8:I$218,MATCH($B67,'Disaggregation1B_Import-Export'!$C$8:$C$218,0))),\"\")","v":""},{"$f":"IFERROR(IF(INDEX('Disaggregation1B_Import-Export'!J$8:J$218,MATCH($B67,'Disaggregation1B_Import-Export'!$C$8:$C$218,0))=\"\",\"\",INDEX('Disaggregation1B_Import-Export'!J$8:J$218,MATCH($B67,'Disaggregation1B_Import-Export'!$C$8:$C$218,0))),\"\")","v":""},{"$f":"IFERROR(IF(INDEX('Disaggregation1B_Import-Export'!K$8:K$218,MATCH($B67,'Disaggregation1B_Import-Export'!$C$8:$C$218,0))=\"\",\"\",INDEX('Disaggregation1B_Import-Export'!K$8:K$218,MATCH($B67,'Disaggregation1B_Import-Export'!$C$8:$C$218,0))),\"\")","v":""},{"$f":"IFERROR(IF(INDEX('Disaggregation1B_Import-Export'!L$8:L$218,MATCH($B67,'Disaggregation1B_Import-Export'!$C$8:$C$218,0))=\"\",\"\",INDEX('Disaggregation1B_Import-Export'!L$8:L$218,MATCH($B67,'Disaggregation1B_Import-Export'!$C$8:$C$218,0))),\"\")","v":""},{"$f":"IFERROR(IF(INDEX('Disaggregation1B_Import-Export'!AQ$8:AQ$218,MATCH($B67,'Disaggregation1B_Import-Export'!$C$8:$C$218,0))=\"\",\"\",INDEX('Disaggregation1B_Import-Export'!AQ$8:AQ$218,MATCH($B67,'Disaggregation1B_Import-Export'!$C$8:$C$218,0))),\"\")","v":""},null,null,"",null,null,null,null,null,"",null,null,null,null,null,""]
[58,"Coverage58",{"$f":"IFERROR(INDEX('Disaggregation1B_Import-Export'!D$8:D$218,MATCH($B68,'Disaggregation1B_Import-Export'!$C$8:$C$218,0)),\"\")","v":""},{"$f":"IFERROR(INDEX('Disaggregation1B_Import-Export'!AF$8:AF$235,MATCH($B68,'Disaggregation1B_Import-Export'!$C$8:$C$235,0)),\"\")","v":""},{"$f":"IFERROR(IF(INDEX('Disaggregation1B_Import-Export'!AG$8:AG$218,MATCH($B68,'Disaggregation1B_Import-Export'!$C$8:$C$218,0))=\"\",\"\",INDEX('Disaggregation1B_Import-Export'!AG$8:AG$218,MATCH($B68,'Disaggregation1B_Import-Export'!$C$8:$C$218,0))),\"\")","v":""},{"$f":"IFERROR(IF(INDEX('Disaggregation1B_Import-Export'!AH$8:AH$218,MATCH($B68,'Disaggregation1B_Import-Export'!$C$8:$C$218,0))=\"\",\"\",INDEX('Disaggregation1B_Import-Export'!AH$8:AH$218,MATCH($B68,'Disaggregation1B_Import-Export'!$C$8:$C$218,0))),\"\")","v":""},{"$f":"IFERROR(IF(INDEX('Disaggregation1B_Import-Export'!H$8:H$218,MATCH($B68,'Disaggregation1B_Import-Export'!$C$8:$C$218,0))=\"\",\"\",INDEX('Disaggregation1B_Import-Export'!H$8:H$218,MATCH($B68,'Disaggregation1B_Import-Export'!$C$8:$C$218,0))),\"\")","v":""},{"$f":"IFERROR(IF(INDEX('Disaggregation1B_Import-Export'!I$8:I$218,MATCH($B68,'Disaggregation1B_Import-Export'!$C$8:$C$218,0))=\"\",\"\",INDEX('Disaggregation1B_Import-Export'!I$8:I$218,MATCH($B68,'Disaggregation1B_Import-Export'!$C$8:$C$218,0))),\"\")","v":""},{"$f":"IFERROR(IF(INDEX('Disaggregation1B_Import-Export'!J$8:J$218,MATCH($B68,'Disaggregation1B_Import-Export'!$C$8:$C$218,0))=\"\",\"\",INDEX('Disaggregation1B_Import-Export'!J$8:J$218,MATCH($B68,'Disaggregation1B_Import-Export'!$C$8:$C$218,0))),\"\")","v":""},{"$f":"IFERROR(IF(INDEX('Disaggregation1B_Import-Export'!K$8:K$218,MATCH($B68,'Disaggregation1B_Import-Export'!$C$8:$C$218,0))=\"\",\"\",INDEX('Disaggregation1B_Import-Export'!K$8:K$218,MATCH($B68,'Disaggregation1B_Import-Export'!$C$8:$C$218,0))),\"\")","v":""},{"$f":"IFERROR(IF(INDEX('Disaggregation1B_Import-Export'!L$8:L$218,MATCH($B68,'Disaggregation1B_Import-Export'!$C$8:$C$218,0))=\"\",\"\",INDEX('Disaggregation1B_Import-Export'!L$8:L$218,MATCH($B68,'Disaggregation1B_Import-Export'!$C$8:$C$218,0))),\"\")","v":""},{"$f":"IFERROR(IF(INDEX('Disaggregation1B_Import-Export'!AQ$8:AQ$218,MATCH($B68,'Disaggregation1B_Import-Export'!$C$8:$C$218,0))=\"\",\"\",INDEX('Disaggregation1B_Import-Export'!AQ$8:AQ$218,MATCH($B68,'Disaggregation1B_Import-Export'!$C$8:$C$218,0))),\"\")","v":""},null,null,"",null,null,null,null,null,"",null,null,null,null,null,""]
[59,"Coverage59",{"$f":"IFERROR(INDEX('Disaggregation1B_Import-Export'!D$8:D$218,MATCH($B69,'Disaggregation1B_Import-Export'!$C$8:$C$218,0)),\"\")","v":""},{"$f":"IFERROR(INDEX('Disaggregation1B_Import-Export'!AF$8:AF$235,MATCH($B69,'Disaggregation1B_Import-Export'!$C$8:$C$235,0)),\"\")","v":""},{"$f":"IFERROR(IF(INDEX('Disaggregation1B_Import-Export'!AG$8:AG$218,MATCH($B69,'Disaggregation1B_Import-Export'!$C$8:$C$218,0))=\"\",\"\",INDEX('Disaggregation1B_Import-Export'!AG$8:AG$218,MATCH($B69,'Disaggregation1B_Import-Export'!$C$8:$C$218,0))),\"\")","v":""},{"$f":"IFERROR(IF(INDEX('Disaggregation1B_Import-Export'!AH$8:AH$218,MATCH($B69,'Disaggregation1B_Import-Export'!$C$8:$C$218,0))=\"\",\"\",INDEX('Disaggregation1B_Import-Export'!AH$8:AH$218,MATCH($B69,'Disaggregation1B_Import-Export'!$C$8:$C$218,0))),\"\")","v":""},{"$f":"IFERROR(IF(INDEX('Disaggregation1B_Import-Export'!H$8:H$218,MATCH($B69,'Disaggregation1B_Import-Export'!$C$8:$C$218,0))=\"\",\"\",INDEX('Disaggregation1B_Import-Export'!H$8:H$218,MATCH($B69,'Disaggregation1B_Import-Export'!$C$8:$C$218,0))),\"\")","v":""},{"$f":"IFERROR(IF(INDEX('Disaggregation1B_Import-Export'!I$8:I$218,MATCH($B69,'Disaggregation1B_Import-Export'!$C$8:$C$218,0))=\"\",\"\",INDEX('Disaggregation1B_Import-Export'!I$8:I$218,MATCH($B69,'Disaggregation1B_Import-Export'!$C$8:$C$218,0))),\"\")","v":""},{"$f":"IFERROR(IF(INDEX('Disaggregation1B_Import-Export'!J$8:J$218,MATCH($B69,'Disaggregation1B_Import-Export'!$C$8:$C$218,0))=\"\",\"\",INDEX('Disaggregation1B_Import-Export'!J$8:J$218,MATCH($B69,'Disaggregation1B_Import-Export'!$C$8:$C$218,0))),\"\")","v":""},{"$f":"IFERROR(IF(INDEX('Disaggregation1B_Import-Export'!K$8:K$218,MATCH($B69,'Disaggregation1B_Import-Export'!$C$8:$C$218,0))=\"\",\"\",INDEX('Disaggregation1B_Import-Export'!K$8:K$218,MATCH($B69,'Disaggregation1B_Import-Export'!$C$8:$C$218,0))),\"\")","v":""},{"$f":"IFERROR(IF(INDEX('Disaggregation1B_Import-Export'!L$8:L$218,MATCH($B69,'Disaggregation1B_Import-Export'!$C$8:$C$218,0))=\"\",\"\",INDEX('Disaggregation1B_Import-Export'!L$8:L$218,MATCH($B69,'Disaggregation1B_Import-Export'!$C$8:$C$218,0))),\"\")","v":""},{"$f":"IFERROR(IF(INDEX('Disaggregation1B_Import-Export'!AQ$8:AQ$218,MATCH($B69,'Disaggregation1B_Import-Export'!$C$8:$C$218,0))=\"\",\"\",INDEX('Disaggregation1B_Import-Export'!AQ$8:AQ$218,MATCH($B69,'Disaggregation1B_Import-Export'!$C$8:$C$218,0))),\"\")","v":""},null,null,"",null,null,null,null,null,"",null,null,null,null,null,""]
[60,"Coverage60",{"$f":"IFERROR(INDEX('Disaggregation1B_Import-Export'!D$8:D$218,MATCH($B70,'Disaggregation1B_Import-Export'!$C$8:$C$218,0)),\"\")","v":""},{"$f":"IFERROR(INDEX('Disaggregation1B_Import-Export'!AF$8:AF$235,MATCH($B70,'Disaggregation1B_Import-Export'!$C$8:$C$235,0)),\"\")","v":""},{"$f":"IFERROR(IF(INDEX('Disaggregation1B_Import-Export'!AG$8:AG$218,MATCH($B70,'Disaggregation1B_Import-Export'!$C$8:$C$218,0))=\"\",\"\",INDEX('Disaggregation1B_Import-Export'!AG$8:AG$218,MATCH($B70,'Disaggregation1B_Import-Export'!$C$8:$C$218,0))),\"\")","v":""},{"$f":"IFERROR(IF(INDEX('Disaggregation1B_Import-Export'!AH$8:AH$218,MATCH($B70,'Disaggregation1B_Import-Export'!$C$8:$C$218,0))=\"\",\"\",INDEX('Disaggregation1B_Import-Export'!AH$8:AH$218,MATCH($B70,'Disaggregation1B_Import-Export'!$C$8:$C$218,0))),\"\")","v":""},{"$f":"IFERROR(IF(INDEX('Disaggregation1B_Import-Export'!H$8:H$218,MATCH($B70,'Disaggregation1B_Import-Export'!$C$8:$C$218,0))=\"\",\"\",INDEX('Disaggregation1B_Import-Export'!H$8:H$218,MATCH($B70,'Disaggregation1B_Import-Export'!$C$8:$C$218,0))),\"\")","v":""},{"$f":"IFERROR(IF(INDEX('Disaggregation1B_Import-Export'!I$8:I$218,MATCH($B70,'Disaggregation1B_Import-Export'!$C$8:$C$218,0))=\"\",\"\",INDEX('Disaggregation1B_Import-Export'!I$8:I$218,MATCH($B70,'Disaggregation1B_Import-Export'!$C$8:$C$218,0))),\"\")","v":""},{"$f":"IFERROR(IF(INDEX('Disaggregation1B_Import-Export'!J$8:J$218,MATCH($B70,'Disaggregation1B_Import-Export'!$C$8:$C$218,0))=\"\",\"\",INDEX('Disaggregation1B_Import-Export'!J$8:J$218,MATCH($B70,'Disaggregation1B_Import-Export'!$C$8:$C$218,0))),\"\")","v":""},{"$f":"IFERROR(IF(INDEX('Disaggregation1B_Import-Export'!K$8:K$218,MATCH($B70,'Disaggregation1B_Import-Export'!$C$8:$C$218,0))=\"\",\"\",INDEX('Disaggregation1B_Import-Export'!K$8:K$218,MATCH($B70,'Disaggregation1B_Import-Export'!$C$8:$C$218,0))),\"\")","v":""},{"$f":"IFERROR(IF(INDEX('Disaggregation1B_Import-Export'!L$8:L$218,MATCH($B70,'Disaggregation1B_Import-Export'!$C$8:$C$218,0))=\"\",\"\",INDEX('Disaggregation1B_Import-Export'!L$8:L$218,MATCH($B70,'Disaggregation1B_Import-Export'!$C$8:$C$218,0))),\"\")","v":""},{"$f":"IFERROR(IF(INDEX('Disaggregation1B_Import-Export'!AQ$8:AQ$218,MATCH($B70,'Disaggregation1B_Import-Export'!$C$8:$C$218,0))=\"\",\"\",INDEX('Disaggregation1B_Import-Export'!AQ$8:AQ$218,MATCH($B70,'Disaggregation1B_Import-Export'!$C$8:$C$218,0))),\"\")","v":""},null,null,"",null,null,null,null,null,"",null,null,null,null,null,""]
[61,"Coverage61",{"$f":"IFERROR(INDEX('Disaggregation1B_Import-Export'!D$8:D$218,MATCH($B71,'Disaggregation1B_Import-Export'!$C$8:$C$218,0)),\"\")","v":""},{"$f":"IFERROR(INDEX('Disaggregation1B_Import-Export'!AF$8:AF$235,MATCH($B71,'Disaggregation1B_Import-Export'!$C$8:$C$235,0)),\"\")","v":""},{"$f":"IFERROR(IF(INDEX('Disaggregation1B_Import-Export'!AG$8:AG$218,MATCH($B71,'Disaggregation1B_Import-Export'!$C$8:$C$218,0))=\"\",\"\",INDEX('Disaggregation1B_Import-Export'!AG$8:AG$218,MATCH($B71,'Disaggregation1B_Import-Export'!$C$8:$C$218,0))),\"\")","v":""},{"$f":"IFERROR(IF(INDEX('Disaggregation1B_Import-Export'!AH$8:AH$218,MATCH($B71,'Disaggregation1B_Import-Export'!$C$8:$C$218,0))=\"\",\"\",INDEX('Disaggregation1B_Import-Export'!AH$8:AH$218,MATCH($B71,'Disaggregation1B_Import-Export'!$C$8:$C$218,0))),\"\")","v":""},{"$f":"IFERROR(IF(INDEX('Disaggregation1B_Import-Export'!H$8:H$218,MATCH($B71,'Disaggregation1B_Import-Export'!$C$8:$C$218,0))=\"\",\"\",INDEX('Disaggregation1B_Import-Export'!H$8:H$218,MATCH($B71,'Disaggregation1B_Import-Export'!$C$8:$C$218,0))),\"\")","v":""},{"$f":"IFERROR(IF(INDEX('Disaggregation1B_Import-Export'!I$8:I$218,MATCH($B71,'Disaggregation1B_Import-Export'!$C$8:$C$218,0))=\"\",\"\",INDEX('Disaggregation1B_Import-Export'!I$8:I$218,MATCH($B71,'Disaggregation1B_Import-Export'!$C$8:$C$218,0))),\"\")","v":""},{"$f":"IFERROR(IF(INDEX('Disaggregation1B_Import-Export'!J$8:J$218,MATCH($B71,'Disaggregation1B_Import-Export'!$C$8:$C$218,0))=\"\",\"\",INDEX('Disaggregation1B_Import-Export'!J$8:J$218,MATCH($B71,'Disaggregation1B_Import-Export'!$C$8:$C$218,0))),\"\")","v":""},{"$f":"IFERROR(IF(INDEX('Disaggregation1B_Import-Export'!K$8:K$218,MATCH($B71,'Disaggregation1B_Import-Export'!$C$8:$C$218,0))=\"\",\"\",INDEX('Disaggregation1B_Import-Export'!K$8:K$218,MATCH($B71,'Disaggregation1B_Import-Export'!$C$8:$C$218,0))),\"\")","v":""},{"$f":"IFERROR(IF(INDEX('Disaggregation1B_Import-Export'!L$8:L$218,MATCH($B71,'Disaggregation1B_Import-Export'!$C$8:$C$218,0))=\"\",\"\",INDEX('Disaggregation1B_Import-Export'!L$8:L$218,MATCH($B71,'Disaggregation1B_Import-Export'!$C$8:$C$218,0))),\"\")","v":""},{"$f":"IFERROR(IF(INDEX('Disaggregation1B_Import-Export'!AQ$8:AQ$218,MATCH($B71,'Disaggregation1B_Import-Export'!$C$8:$C$218,0))=\"\",\"\",INDEX('Disaggregation1B_Import-Export'!AQ$8:AQ$218,MATCH($B71,'Disaggregation1B_Import-Export'!$C$8:$C$218,0))),\"\")","v":""},null,null,"",null,null,null,null,null,"",null,null,null,null,null,""]
[62,"Coverage62",{"$f":"IFERROR(INDEX('Disaggregation1B_Import-Export'!D$8:D$218,MATCH($B72,'Disaggregation1B_Import-Export'!$C$8:$C$218,0)),\"\")","v":""},{"$f":"IFERROR(INDEX('Disaggregation1B_Import-Export'!AF$8:AF$235,MATCH($B72,'Disaggregation1B_Import-Export'!$C$8:$C$235,0)),\"\")","v":""},{"$f":"IFERROR(IF(INDEX('Disaggregation1B_Import-Export'!AG$8:AG$218,MATCH($B72,'Disaggregation1B_Import-Export'!$C$8:$C$218,0))=\"\",\"\",INDEX('Disaggregation1B_Import-Export'!AG$8:AG$218,MATCH($B72,'Disaggregation1B_Import-Export'!$C$8:$C$218,0))),\"\")","v":""},{"$f":"IFERROR(IF(INDEX('Disaggregation1B_Import-Export'!AH$8:AH$218,MATCH($B72,'Disaggregation1B_Import-Export'!$C$8:$C$218,0))=\"\",\"\",INDEX('Disaggregation1B_Import-Export'!AH$8:AH$218,MATCH($B72,'Disaggregation1B_Import-Export'!$C$8:$C$218,0))),\"\")","v":""},{"$f":"IFERROR(IF(INDEX('Disaggregation1B_Import-Export'!H$8:H$218,MATCH($B72,'Disaggregation1B_Import-Export'!$C$8:$C$218,0))=\"\",\"\",INDEX('Disaggregation1B_Import-Export'!H$8:H$218,MATCH($B72,'Disaggregation1B_Import-Export'!$C$8:$C$218,0))),\"\")","v":""},{"$f":"IFERROR(IF(INDEX('Disaggregation1B_Import-Export'!I$8:I$218,MATCH($B72,'Disaggregation1B_Import-Export'!$C$8:$C$218,0))=\"\",\"\",INDEX('Disaggregation1B_Import-Export'!I$8:I$218,MATCH($B72,'Disaggregation1B_Import-Export'!$C$8:$C$218,0))),\"\")","v":""},{"$f":"IFERROR(IF(INDEX('Disaggregation1B_Import-Export'!J$8:J$218,MATCH($B72,'Disaggregation1B_Import-Export'!$C$8:$C$218,0))=\"\",\"\",INDEX('Disaggregation1B_Import-Export'!J$8:J$218,MATCH($B72,'Disaggregation1B_Import-Export'!$C$8:$C$218,0))),\"\")","v":""},{"$f":"IFERROR(IF(INDEX('Disaggregation1B_Import-Export'!K$8:K$218,MATCH($B72,'Disaggregation1B_Import-Export'!$C$8:$C$218,0))=\"\",\"\",INDEX('Disaggregation1B_Import-Export'!K$8:K$218,MATCH($B72,'Disaggregation1B_Import-Export'!$C$8:$C$218,0))),\"\")","v":""},{"$f":"IFERROR(IF(INDEX('Disaggregation1B_Import-Export'!L$8:L$218,MATCH($B72,'Disaggregation1B_Import-Export'!$C$8:$C$218,0))=\"\",\"\",INDEX('Disaggregation1B_Import-Export'!L$8:L$218,MATCH($B72,'Disaggregation1B_Import-Export'!$C$8:$C$218,0))),\"\")","v":""},{"$f":"IFERROR(IF(INDEX('Disaggregation1B_Import-Export'!AQ$8:AQ$218,MATCH($B72,'Disaggregation1B_Import-Export'!$C$8:$C$218,0))=\"\",\"\",INDEX('Disaggregation1B_Import-Export'!AQ$8:AQ$218,MATCH($B72,'Disaggregation1B_Import-Export'!$C$8:$C$218,0))),\"\")","v":""},null,null,"",null,null,null,null,null,"",null,null,null,null,null,""]
[63,"Coverage63",{"$f":"IFERROR(INDEX('Disaggregation1B_Import-Export'!D$8:D$218,MATCH($B73,'Disaggregation1B_Import-Export'!$C$8:$C$218,0)),\"\")","v":""},{"$f":"IFERROR(INDEX('Disaggregation1B_Import-Export'!AF$8:AF$235,MATCH($B73,'Disaggregation1B_Import-Export'!$C$8:$C$235,0)),\"\")","v":""},{"$f":"IFERROR(IF(INDEX('Disaggregation1B_Import-Export'!AG$8:AG$218,MATCH($B73,'Disaggregation1B_Import-Export'!$C$8:$C$218,0))=\"\",\"\",INDEX('Disaggregation1B_Import-Export'!AG$8:AG$218,MATCH($B73,'Disaggregation1B_Import-Export'!$C$8:$C$218,0))),\"\")","v":""},{"$f":"IFERROR(IF(INDEX('Disaggregation1B_Import-Export'!AH$8:AH$218,MATCH($B73,'Disaggregation1B_Import-Export'!$C$8:$C$218,0))=\"\",\"\",INDEX('Disaggregation1B_Import-Export'!AH$8:AH$218,MATCH($B73,'Disaggregation1B_Import-Export'!$C$8:$C$218,0))),\"\")","v":""},{"$f":"IFERROR(IF(INDEX('Disaggregation1B_Import-Export'!H$8:H$218,MATCH($B73,'Disaggregation1B_Import-Export'!$C$8:$C$218,0))=\"\",\"\",INDEX('Disaggregation1B_Import-Export'!H$8:H$218,MATCH($B73,'Disaggregation1B_Import-Export'!$C$8:$C$218,0))),\"\")","v":""},{"$f":"IFERROR(IF(INDEX('Disaggregation1B_Import-Export'!I$8:I$218,MATCH($B73,'Disaggregation1B_Import-Export'!$C$8:$C$218,0))=\"\",\"\",INDEX('Disaggregation1B_Import-Export'!I$8:I$218,MATCH($B73,'Disaggregation1B_Import-Export'!$C$8:$C$218,0))),\"\")","v":""},{"$f":"IFERROR(IF(INDEX('Disaggregation1B_Import-Export'!J$8:J$218,MATCH($B73,'Disaggregation1B_Import-Export'!$C$8:$C$218,0))=\"\",\"\",INDEX('Disaggregation1B_Import-Export'!J$8:J$218,MATCH($B73,'Disaggregation1B_Import-Export'!$C$8:$C$218,0))),\"\")","v":""},{"$f":"IFERROR(IF(INDEX('Disaggregation1B_Import-Export'!K$8:K$218,MATCH($B73,'Disaggregation1B_Import-Export'!$C$8:$C$218,0))=\"\",\"\",INDEX('Disaggregation1B_Import-Export'!K$8:K$218,MATCH($B73,'Disaggregation1B_Import-Export'!$C$8:$C$218,0))),\"\")","v":""},{"$f":"IFERROR(IF(INDEX('Disaggregation1B_Import-Export'!L$8:L$218,MATCH($B73,'Disaggregation1B_Import-Export'!$C$8:$C$218,0))=\"\",\"\",INDEX('Disaggregation1B_Import-Export'!L$8:L$218,MATCH($B73,'Disaggregation1B_Import-Export'!$C$8:$C$218,0))),\"\")","v":""},{"$f":"IFERROR(IF(INDEX('Disaggregation1B_Import-Export'!AQ$8:AQ$218,MATCH($B73,'Disaggregation1B_Import-Export'!$C$8:$C$218,0))=\"\",\"\",INDEX('Disaggregation1B_Import-Export'!AQ$8:AQ$218,MATCH($B73,'Disaggregation1B_Import-Export'!$C$8:$C$218,0))),\"\")","v":""},null,null,"",null,null,null,null,null,"",null,null,null,null,null,""]
[64,"Coverage64",{"$f":"IFERROR(INDEX('Disaggregation1B_Import-Export'!D$8:D$218,MATCH($B74,'Disaggregation1B_Import-Export'!$C$8:$C$218,0)),\"\")","v":""},{"$f":"IFERROR(INDEX('Disaggregation1B_Import-Export'!AF$8:AF$235,MATCH($B74,'Disaggregation1B_Import-Export'!$C$8:$C$235,0)),\"\")","v":""},{"$f":"IFERROR(IF(INDEX('Disaggregation1B_Import-Export'!AG$8:AG$218,MATCH($B74,'Disaggregation1B_Import-Export'!$C$8:$C$218,0))=\"\",\"\",INDEX('Disaggregation1B_Import-Export'!AG$8:AG$218,MATCH($B74,'Disaggregation1B_Import-Export'!$C$8:$C$218,0))),\"\")","v":""},{"$f":"IFERROR(IF(INDEX('Disaggregation1B_Import-Export'!AH$8:AH$218,MATCH($B74,'Disaggregation1B_Import-Export'!$C$8:$C$218,0))=\"\",\"\",INDEX('Disaggregation1B_Import-Export'!AH$8:AH$218,MATCH($B74,'Disaggregation1B_Import-Export'!$C$8:$C$218,0))),\"\")","v":""},{"$f":"IFERROR(IF(INDEX('Disaggregation1B_Import-Export'!H$8:H$218,MATCH($B74,'Disaggregation1B_Import-Export'!$C$8:$C$218,0))=\"\",\"\",INDEX('Disaggregation1B_Import-Export'!H$8:H$218,MATCH($B74,'Disaggregation1B_Import-Export'!$C$8:$C$218,0))),\"\")","v":""},{"$f":"IFERROR(IF(INDEX('Disaggregation1B_Import-Export'!I$8:I$218,MATCH($B74,'Disaggregation1B_Import-Export'!$C$8:$C$218,0))=\"\",\"\",INDEX('Disaggregation1B_Import-Export'!I$8:I$218,MATCH($B74,'Disaggregation1B_Import-Export'!$C$8:$C$218,0))),\"\")","v":""},{"$f":"IFERROR(IF(INDEX('Disaggregation1B_Import-Export'!J$8:J$218,MATCH($B74,'Disaggregation1B_Import-Export'!$C$8:$C$218,0))=\"\",\"\",INDEX('Disaggregation1B_Import-Export'!J$8:J$218,MATCH($B74,'Disaggregation1B_Import-Export'!$C$8:$C$218,0))),\"\")","v":""},{"$f":"IFERROR(IF(INDEX('Disaggregation1B_Import-Export'!K$8:K$218,MATCH($B74,'Disaggregation1B_Import-Export'!$C$8:$C$218,0))=\"\",\"\",INDEX('Disaggregation1B_Import-Export'!K$8:K$218,MATCH($B74,'Disaggregation1B_Import-Export'!$C$8:$C$218,0))),\"\")","v":""},{"$f":"IFERROR(IF(INDEX('Disaggregation1B_Import-Export'!L$8:L$218,MATCH($B74,'Disaggregation1B_Import-Export'!$C$8:$C$218,0))=\"\",\"\",INDEX('Disaggregation1B_Import-Export'!L$8:L$218,MATCH($B74,'Disaggregation1B_Import-Export'!$C$8:$C$218,0))),\"\")","v":""},{"$f":"IFERROR(IF(INDEX('Disaggregation1B_Import-Export'!AQ$8:AQ$218,MATCH($B74,'Disaggregation1B_Import-Export'!$C$8:$C$218,0))=\"\",\"\",INDEX('Disaggregation1B_Import-Export'!AQ$8:AQ$218,MATCH($B74,'Disaggregation1B_Import-Export'!$C$8:$C$218,0))),\"\")","v":""},null,null,"",null,null,null,null,null,"",null,null,null,null,null,""]
[65,"Coverage65",{"$f":"IFERROR(INDEX('Disaggregation1B_Import-Export'!D$8:D$218,MATCH($B75,'Disaggregation1B_Import-Export'!$C$8:$C$218,0)),\"\")","v":""},{"$f":"IFERROR(INDEX('Disaggregation1B_Import-Export'!AF$8:AF$235,MATCH($B75,'Disaggregation1B_Import-Export'!$C$8:$C$235,0)),\"\")","v":""},{"$f":"IFERROR(IF(INDEX('Disaggregation1B_Import-Export'!AG$8:AG$218,MATCH($B75,'Disaggregation1B_Import-Export'!$C$8:$C$218,0))=\"\",\"\",INDEX('Disaggregation1B_Import-Export'!AG$8:AG$218,MATCH($B75,'Disaggregation1B_Import-Export'!$C$8:$C$218,0))),\"\")","v":""},{"$f":"IFERROR(IF(INDEX('Disaggregation1B_Import-Export'!AH$8:AH$218,MATCH($B75,'Disaggregation1B_Import-Export'!$C$8:$C$218,0))=\"\",\"\",INDEX('Disaggregation1B_Import-Export'!AH$8:AH$218,MATCH($B75,'Disaggregation1B_Import-Export'!$C$8:$C$218,0))),\"\")","v":""},{"$f":"IFERROR(IF(INDEX('Disaggregation1B_Import-Export'!H$8:H$218,MATCH($B75,'Disaggregation1B_Import-Export'!$C$8:$C$218,0))=\"\",\"\",INDEX('Disaggregation1B_Import-Export'!H$8:H$218,MATCH($B75,'Disaggregation1B_Import-Export'!$C$8:$C$218,0))),\"\")","v":""},{"$f":"IFERROR(IF(INDEX('Disaggregation1B_Import-Export'!I$8:I$218,MATCH($B75,'Disaggregation1B_Import-Export'!$C$8:$C$218,0))=\"\",\"\",INDEX('Disaggregation1B_Import-Export'!I$8:I$218,MATCH($B75,'Disaggregation1B_Import-Export'!$C$8:$C$218,0))),\"\")","v":""},{"$f":"IFERROR(IF(INDEX('Disaggregation1B_Import-Export'!J$8:J$218,MATCH($B75,'Disaggregation1B_Import-Export'!$C$8:$C$218,0))=\"\",\"\",INDEX('Disaggregation1B_Import-Export'!J$8:J$218,MATCH($B75,'Disaggregation1B_Import-Export'!$C$8:$C$218,0))),\"\")","v":""},{"$f":"IFERROR(IF(INDEX('Disaggregation1B_Import-Export'!K$8:K$218,MATCH($B75,'Disaggregation1B_Import-Export'!$C$8:$C$218,0))=\"\",\"\",INDEX('Disaggregation1B_Import-Export'!K$8:K$218,MATCH($B75,'Disaggregation1B_Import-Export'!$C$8:$C$218,0))),\"\")","v":""},{"$f":"IFERROR(IF(INDEX('Disaggregation1B_Import-Export'!L$8:L$218,MATCH($B75,'Disaggregation1B_Import-Export'!$C$8:$C$218,0))=\"\",\"\",INDEX('Disaggregation1B_Import-Export'!L$8:L$218,MATCH($B75,'Disaggregation1B_Import-Export'!$C$8:$C$218,0))),\"\")","v":""},{"$f":"IFERROR(IF(INDEX('Disaggregation1B_Import-Export'!AQ$8:AQ$218,MATCH($B75,'Disaggregation1B_Import-Export'!$C$8:$C$218,0))=\"\",\"\",INDEX('Disaggregation1B_Import-Export'!AQ$8:AQ$218,MATCH($B75,'Disaggregation1B_Import-Export'!$C$8:$C$218,0))),\"\")","v":""},null,null,"",null,null,null,null,null,"",null,null,null,null,null,""]
[{"$f":"A75+1","v":66},"Coverage66",{"$f":"IFERROR(INDEX('Disaggregation1B_Import-Export'!D$8:D$218,MATCH($B76,'Disaggregation1B_Import-Export'!$C$8:$C$218,0)),\"\")","v":""},{"$f":"IFERROR(INDEX('Disaggregation1B_Import-Export'!AF$8:AF$235,MATCH($B76,'Disaggregation1B_Import-Export'!$C$8:$C$235,0)),\"\")","v":""},{"$f":"IFERROR(IF(INDEX('Disaggregation1B_Import-Export'!AG$8:AG$218,MATCH($B76,'Disaggregation1B_Import-Export'!$C$8:$C$218,0))=\"\",\"\",INDEX('Disaggregation1B_Import-Export'!AG$8:AG$218,MATCH($B76,'Disaggregation1B_Import-Export'!$C$8:$C$218,0))),\"\")","v":""},{"$f":"IFERROR(IF(INDEX('Disaggregation1B_Import-Export'!AH$8:AH$218,MATCH($B76,'Disaggregation1B_Import-Export'!$C$8:$C$218,0))=\"\",\"\",INDEX('Disaggregation1B_Import-Export'!AH$8:AH$218,MATCH($B76,'Disaggregation1B_Import-Export'!$C$8:$C$218,0))),\"\")","v":""},{"$f":"IFERROR(IF(INDEX('Disaggregation1B_Import-Export'!H$8:H$218,MATCH($B76,'Disaggregation1B_Import-Export'!$C$8:$C$218,0))=\"\",\"\",INDEX('Disaggregation1B_Import-Export'!H$8:H$218,MATCH($B76,'Disaggregation1B_Import-Export'!$C$8:$C$218,0))),\"\")","v":""},{"$f":"IFERROR(IF(INDEX('Disaggregation1B_Import-Export'!I$8:I$218,MATCH($B76,'Disaggregation1B_Import-Export'!$C$8:$C$218,0))=\"\",\"\",INDEX('Disaggregation1B_Import-Export'!I$8:I$218,MATCH($B76,'Disaggregation1B_Import-Export'!$C$8:$C$218,0))),\"\")","v":""},{"$f":"IFERROR(IF(INDEX('Disaggregation1B_Import-Export'!J$8:J$218,MATCH($B76,'Disaggregation1B_Import-Export'!$C$8:$C$218,0))=\"\",\"\",INDEX('Disaggregation1B_Import-Export'!J$8:J$218,MATCH($B76,'Disaggregation1B_Import-Export'!$C$8:$C$218,0))),\"\")","v":""},{"$f":"IFERROR(IF(INDEX('Disaggregation1B_Import-Export'!K$8:K$218,MATCH($B76,'Disaggregation1B_Import-Export'!$C$8:$C$218,0))=\"\",\"\",INDEX('Disaggregation1B_Import-Export'!K$8:K$218,MATCH($B76,'Disaggregation1B_Import-Export'!$C$8:$C$218,0))),\"\")","v":""},{"$f":"IFERROR(IF(INDEX('Disaggregation1B_Import-Export'!L$8:L$218,MATCH($B76,'Disaggregation1B_Import-Export'!$C$8:$C$218,0))=\"\",\"\",INDEX('Disaggregation1B_Import-Export'!L$8:L$218,MATCH($B76,'Disaggregation1B_Import-Export'!$C$8:$C$218,0))),\"\")","v":""},{"$f":"IFERROR(IF(INDEX('Disaggregation1B_Import-Export'!AQ$8:AQ$218,MATCH($B76,'Disaggregation1B_Import-Export'!$C$8:$C$218,0))=\"\",\"\",INDEX('Disaggregation1B_Import-Export'!AQ$8:AQ$218,MATCH($B76,'Disaggregation1B_Import-Export'!$C$8:$C$218,0))),\"\")","v":""},null,null,"",null,null,null,null,null,"",null,null,null,null,null,""]
[67,"Coverage67",{"$f":"IFERROR(INDEX('Disaggregation1B_Import-Export'!D$8:D$218,MATCH($B77,'Disaggregation1B_Import-Export'!$C$8:$C$218,0)),\"\")","v":""},{"$f":"IFERROR(INDEX('Disaggregation1B_Import-Export'!AF$8:AF$235,MATCH($B77,'Disaggregation1B_Import-Export'!$C$8:$C$235,0)),\"\")","v":""},{"$f":"IFERROR(IF(INDEX('Disaggregation1B_Import-Export'!AG$8:AG$218,MATCH($B77,'Disaggregation1B_Import-Export'!$C$8:$C$218,0))=\"\",\"\",INDEX('Disaggregation1B_Import-Export'!AG$8:AG$218,MATCH($B77,'Disaggregation1B_Import-Export'!$C$8:$C$218,0))),\"\")","v":""},{"$f":"IFERROR(IF(INDEX('Disaggregation1B_Import-Export'!AH$8:AH$218,MATCH($B77,'Disaggregation1B_Import-Export'!$C$8:$C$218,0))=\"\",\"\",INDEX('Disaggregation1B_Import-Export'!AH$8:AH$218,MATCH($B77,'Disaggregation1B_Import-Export'!$C$8:$C$218,0))),\"\")","v":""},{"$f":"IFERROR(IF(INDEX('Disaggregation1B_Import-Export'!H$8:H$218,MATCH($B77,'Disaggregation1B_Import-Export'!$C$8:$C$218,0))=\"\",\"\",INDEX('Disaggregation1B_Import-Export'!H$8:H$218,MATCH($B77,'Disaggregation1B_Import-Export'!$C$8:$C$218,0))),\"\")","v":""},{"$f":"IFERROR(IF(INDEX('Disaggregation1B_Import-Export'!I$8:I$218,MATCH($B77,'Disaggregation1B_Import-Export'!$C$8:$C$218,0))=\"\",\"\",INDEX('Disaggregation1B_Import-Export'!I$8:I$218,MATCH($B77,'Disaggregation1B_Import-Export'!$C$8:$C$218,0))),\"\")","v":""},{"$f":"IFERROR(IF(INDEX('Disaggregation1B_Import-Export'!J$8:J$218,MATCH($B77,'Disaggregation1B_Import-Export'!$C$8:$C$218,0))=\"\",\"\",INDEX('Disaggregation1B_Import-Export'!J$8:J$218,MATCH($B77,'Disaggregation1B_Import-Export'!$C$8:$C$218,0))),\"\")","v":""},{"$f":"IFERROR(IF(INDEX('Disaggregation1B_Import-Export'!K$8:K$218,MATCH($B77,'Disaggregation1B_Import-Export'!$C$8:$C$218,0))=\"\",\"\",INDEX('Disaggregation1B_Import-Export'!K$8:K$218,MATCH($B77,'Disaggregation1B_Import-Export'!$C$8:$C$218,0))),\"\")","v":""},{"$f":"IFERROR(IF(INDEX('Disaggregation1B_Import-Export'!L$8:L$218,MATCH($B77,'Disaggregation1B_Import-Export'!$C$8:$C$218,0))=\"\",\"\",INDEX('Disaggregation1B_Import-Export'!L$8:L$218,MATCH($B77,'Disaggregation1B_Import-Export'!$C$8:$C$218,0))),\"\")","v":""},{"$f":"IFERROR(IF(INDEX('Disaggregation1B_Import-Export'!AQ$8:AQ$218,MATCH($B77,'Disaggregation1B_Import-Export'!$C$8:$C$218,0))=\"\",\"\",INDEX('Disaggregation1B_Import-Export'!AQ$8:AQ$218,MATCH($B77,'Disaggregation1B_Import-Export'!$C$8:$C$218,0))),\"\")","v":""},null,null,"",null,null,null,null,null,"",null,null,null,null,null,""]
[68,"Coverage68",{"$f":"IFERROR(INDEX('Disaggregation1B_Import-Export'!D$8:D$218,MATCH($B78,'Disaggregation1B_Import-Export'!$C$8:$C$218,0)),\"\")","v":""},{"$f":"IFERROR(INDEX('Disaggregation1B_Import-Export'!AF$8:AF$235,MATCH($B78,'Disaggregation1B_Import-Export'!$C$8:$C$235,0)),\"\")","v":""},{"$f":"IFERROR(IF(INDEX('Disaggregation1B_Import-Export'!AG$8:AG$218,MATCH($B78,'Disaggregation1B_Import-Export'!$C$8:$C$218,0))=\"\",\"\",INDEX('Disaggregation1B_Import-Export'!AG$8:AG$218,MATCH($B78,'Disaggregation1B_Import-Export'!$C$8:$C$218,0))),\"\")","v":""},{"$f":"IFERROR(IF(INDEX('Disaggregation1B_Import-Export'!AH$8:AH$218,MATCH($B78,'Disaggregation1B_Import-Export'!$C$8:$C$218,0))=\"\",\"\",INDEX('Disaggregation1B_Import-Export'!AH$8:AH$218,MATCH($B78,'Disaggregation1B_Import-Export'!$C$8:$C$218,0))),\"\")","v":""},{"$f":"IFERROR(IF(INDEX('Disaggregation1B_Import-Export'!H$8:H$218,MATCH($B78,'Disaggregation1B_Import-Export'!$C$8:$C$218,0))=\"\",\"\",INDEX('Disaggregation1B_Import-Export'!H$8:H$218,MATCH($B78,'Disaggregation1B_Import-Export'!$C$8:$C$218,0))),\"\")","v":""},{"$f":"IFERROR(IF(INDEX('Disaggregation1B_Import-Export'!I$8:I$218,MATCH($B78,'Disaggregation1B_Import-Export'!$C$8:$C$218,0))=\"\",\"\",INDEX('Disaggregation1B_Import-Export'!I$8:I$218,MATCH($B78,'Disaggregation1B_Import-Export'!$C$8:$C$218,0))),\"\")","v":""},{"$f":"IFERROR(IF(INDEX('Disaggregation1B_Import-Export'!J$8:J$218,MATCH($B78,'Disaggregation1B_Import-Export'!$C$8:$C$218,0))=\"\",\"\",INDEX('Disaggregation1B_Import-Export'!J$8:J$218,MATCH($B78,'Disaggregation1B_Import-Export'!$C$8:$C$218,0))),\"\")","v":""},{"$f":"IFERROR(IF(INDEX('Disaggregation1B_Import-Export'!K$8:K$218,MATCH($B78,'Disaggregation1B_Import-Export'!$C$8:$C$218,0))=\"\",\"\",INDEX('Disaggregation1B_Import-Export'!K$8:K$218,MATCH($B78,'Disaggregation1B_Import-Export'!$C$8:$C$218,0))),\"\")","v":""},{"$f":"IFERROR(IF(INDEX('Disaggregation1B_Import-Export'!L$8:L$218,MATCH($B78,'Disaggregation1B_Import-Export'!$C$8:$C$218,0))=\"\",\"\",INDEX('Disaggregation1B_Import-Export'!L$8:L$218,MATCH($B78,'Disaggregation1B_Import-Export'!$C$8:$C$218,0))),\"\")","v":""},{"$f":"IFERROR(IF(INDEX('Disaggregation1B_Import-Export'!AQ$8:AQ$218,MATCH($B78,'Disaggregation1B_Import-Export'!$C$8:$C$218,0))=\"\",\"\",INDEX('Disaggregation1B_Import-Export'!AQ$8:AQ$218,MATCH($B78,'Disaggregation1B_Import-Export'!$C$8:$C$218,0))),\"\")","v":""},null,null,"",null,null,null,null,null,"",null,null,null,null,null,""]
[69,"Coverage69",{"$f":"IFERROR(INDEX('Disaggregation1B_Import-Export'!D$8:D$218,MATCH($B79,'Disaggregation1B_Import-Export'!$C$8:$C$218,0)),\"\")","v":""},{"$f":"IFERROR(INDEX('Disaggregation1B_Import-Export'!AF$8:AF$235,MATCH($B79,'Disaggregation1B_Import-Export'!$C$8:$C$235,0)),\"\")","v":""},{"$f":"IFERROR(IF(INDEX('Disaggregation1B_Import-Export'!AG$8:AG$218,MATCH($B79,'Disaggregation1B_Import-Export'!$C$8:$C$218,0))=\"\",\"\",INDEX('Disaggregation1B_Import-Export'!AG$8:AG$218,MATCH($B79,'Disaggregation1B_Import-Export'!$C$8:$C$218,0))),\"\")","v":""},{"$f":"IFERROR(IF(INDEX('Disaggregation1B_Import-Export'!AH$8:AH$218,MATCH($B79,'Disaggregation1B_Import-Export'!$C$8:$C$218,0))=\"\",\"\",INDEX('Disaggregation1B_Import-Export'!AH$8:AH$218,MATCH($B79,'Disaggregation1B_Import-Export'!$C$8:$C$218,0))),\"\")","v":""},{"$f":"IFERROR(IF(INDEX('Disaggregation1B_Import-Export'!H$8:H$218,MATCH($B79,'Disaggregation1B_Import-Export'!$C$8:$C$218,0))=\"\",\"\",INDEX('Disaggregation1B_Import-Export'!H$8:H$218,MATCH($B79,'Disaggregation1B_Import-Export'!$C$8:$C$218,0))),\"\")","v":""},{"$f":"IFERROR(IF(INDEX('Disaggregation1B_Import-Export'!I$8:I$218,MATCH($B79,'Disaggregation1B_Import-Export'!$C$8:$C$218,0))=\"\",\"\",INDEX('Disaggregation1B_Import-Export'!I$8:I$218,MATCH($B79,'Disaggregation1B_Import-Export'!$C$8:$C$218,0))),\"\")","v":""},{"$f":"IFERROR(IF(INDEX('Disaggregation1B_Import-Export'!J$8:J$218,MATCH($B79,'Disaggregation1B_Import-Export'!$C$8:$C$218,0))=\"\",\"\",INDEX('Disaggregation1B_Import-Export'!J$8:J$218,MATCH($B79,'Disaggregation1B_Import-Export'!$C$8:$C$218,0))),\"\")","v":""},{"$f":"IFERROR(IF(INDEX('Disaggregation1B_Import-Export'!K$8:K$218,MATCH($B79,'Disaggregation1B_Import-Export'!$C$8:$C$218,0))=\"\",\"\",INDEX('Disaggregation1B_Import-Export'!K$8:K$218,MATCH($B79,'Disaggregation1B_Import-Export'!$C$8:$C$218,0))),\"\")","v":""},{"$f":"IFERROR(IF(INDEX('Disaggregation1B_Import-Export'!L$8:L$218,MATCH($B79,'Disaggregation1B_Import-Export'!$C$8:$C$218,0))=\"\",\"\",INDEX('Disaggregation1B_Import-Export'!L$8:L$218,MATCH($B79,'Disaggregation1B_Import-Export'!$C$8:$C$218,0))),\"\")","v":""},{"$f":"IFERROR(IF(INDEX('Disaggregation1B_Import-Export'!AQ$8:AQ$218,MATCH($B79,'Disaggregation1B_Import-Export'!$C$8:$C$218,0))=\"\",\"\",INDEX('Disaggregation1B_Import-Export'!AQ$8:AQ$218,MATCH($B79,'Disaggregation1B_Import-Export'!$C$8:$C$218,0))),\"\")","v":""},null,null,"",null,null,null,null,null,"",null,null,null,null,null,""]
[70,"Coverage70",{"$f":"IFERROR(INDEX('Disaggregation1B_Import-Export'!D$8:D$218,MATCH($B80,'Disaggregation1B_Import-Export'!$C$8:$C$218,0)),\"\")","v":""},{"$f":"IFERROR(INDEX('Disaggregation1B_Import-Export'!AF$8:AF$235,MATCH($B80,'Disaggregation1B_Import-Export'!$C$8:$C$235,0)),\"\")","v":""},{"$f":"IFERROR(IF(INDEX('Disaggregation1B_Import-Export'!AG$8:AG$218,MATCH($B80,'Disaggregation1B_Import-Export'!$C$8:$C$218,0))=\"\",\"\",INDEX('Disaggregation1B_Import-Export'!AG$8:AG$218,MATCH($B80,'Disaggregation1B_Import-Export'!$C$8:$C$218,0))),\"\")","v":""},{"$f":"IFERROR(IF(INDEX('Disaggregation1B_Import-Export'!AH$8:AH$218,MATCH($B80,'Disaggregation1B_Import-Export'!$C$8:$C$218,0))=\"\",\"\",INDEX('Disaggregation1B_Import-Export'!AH$8:AH$218,MATCH($B80,'Disaggregation1B_Import-Export'!$C$8:$C$218,0))),\"\")","v":""},{"$f":"IFERROR(IF(INDEX('Disaggregation1B_Import-Export'!H$8:H$218,MATCH($B80,'Disaggregation1B_Import-Export'!$C$8:$C$218,0))=\"\",\"\",INDEX('Disaggregation1B_Import-Export'!H$8:H$218,MATCH($B80,'Disaggregation1B_Import-Export'!$C$8:$C$218,0))),\"\")","v":""},{"$f":"IFERROR(IF(INDEX('Disaggregation1B_Import-Export'!I$8:I$218,MATCH($B80,'Disaggregation1B_Import-Export'!$C$8:$C$218,0))=\"\",\"\",INDEX('Disaggregation1B_Import-Export'!I$8:I$218,MATCH($B80,'Disaggregation1B_Import-Export'!$C$8:$C$218,0))),\"\")","v":""},{"$f":"IFERROR(IF(INDEX('Disaggregation1B_Import-Export'!J$8:J$218,MATCH($B80,'Disaggregation1B_Import-Export'!$C$8:$C$218,0))=\"\",\"\",INDEX('Disaggregation1B_Import-Export'!J$8:J$218,MATCH($B80,'Disaggregation1B_Import-Export'!$C$8:$C$218,0))),\"\")","v":""},{"$f":"IFERROR(IF(INDEX('Disaggregation1B_Import-Export'!K$8:K$218,MATCH($B80,'Disaggregation1B_Import-Export'!$C$8:$C$218,0))=\"\",\"\",INDEX('Disaggregation1B_Import-Export'!K$8:K$218,MATCH($B80,'Disaggregation1B_Import-Export'!$C$8:$C$218,0))),\"\")","v":""},{"$f":"IFERROR(IF(INDEX('Disaggregation1B_Import-Export'!L$8:L$218,MATCH($B80,'Disaggregation1B_Import-Export'!$C$8:$C$218,0))=\"\",\"\",INDEX('Disaggregation1B_Import-Export'!L$8:L$218,MATCH($B80,'Disaggregation1B_Import-Export'!$C$8:$C$218,0))),\"\")","v":""},{"$f":"IFERROR(IF(INDEX('Disaggregation1B_Import-Export'!AQ$8:AQ$218,MATCH($B80,'Disaggregation1B_Import-Export'!$C$8:$C$218,0))=\"\",\"\",INDEX('Disaggregation1B_Import-Export'!AQ$8:AQ$218,MATCH($B80,'Disaggregation1B_Import-Export'!$C$8:$C$218,0))),\"\")","v":""},null,null,"",null,null,null,null,null,"",null,null,null,null,null,""]
[71,"Coverage71",{"$f":"IFERROR(INDEX('Disaggregation1B_Import-Export'!D$8:D$218,MATCH($B81,'Disaggregation1B_Import-Export'!$C$8:$C$218,0)),\"\")","v":""},{"$f":"IFERROR(INDEX('Disaggregation1B_Import-Export'!AF$8:AF$235,MATCH($B81,'Disaggregation1B_Import-Export'!$C$8:$C$235,0)),\"\")","v":""},{"$f":"IFERROR(IF(INDEX('Disaggregation1B_Import-Export'!AG$8:AG$218,MATCH($B81,'Disaggregation1B_Import-Export'!$C$8:$C$218,0))=\"\",\"\",INDEX('Disaggregation1B_Import-Export'!AG$8:AG$218,MATCH($B81,'Disaggregation1B_Import-Export'!$C$8:$C$218,0))),\"\")","v":""},{"$f":"IFERROR(IF(INDEX('Disaggregation1B_Import-Export'!AH$8:AH$218,MATCH($B81,'Disaggregation1B_Import-Export'!$C$8:$C$218,0))=\"\",\"\",INDEX('Disaggregation1B_Import-Export'!AH$8:AH$218,MATCH($B81,'Disaggregation1B_Import-Export'!$C$8:$C$218,0))),\"\")","v":""},{"$f":"IFERROR(IF(INDEX('Disaggregation1B_Import-Export'!H$8:H$218,MATCH($B81,'Disaggregation1B_Import-Export'!$C$8:$C$218,0))=\"\",\"\",INDEX('Disaggregation1B_Import-Export'!H$8:H$218,MATCH($B81,'Disaggregation1B_Import-Export'!$C$8:$C$218,0))),\"\")","v":""},{"$f":"IFERROR(IF(INDEX('Disaggregation1B_Import-Export'!I$8:I$218,MATCH($B81,'Disaggregation1B_Import-Export'!$C$8:$C$218,0))=\"\",\"\",INDEX('Disaggregation1B_Import-Export'!I$8:I$218,MATCH($B81,'Disaggregation1B_Import-Export'!$C$8:$C$218,0))),\"\")","v":""},{"$f":"IFERROR(IF(INDEX('Disaggregation1B_Import-Export'!J$8:J$218,MATCH($B81,'Disaggregation1B_Import-Export'!$C$8:$C$218,0))=\"\",\"\",INDEX('Disaggregation1B_Import-Export'!J$8:J$218,MATCH($B81,'Disaggregation1B_Import-Export'!$C$8:$C$218,0))),\"\")","v":""},{"$f":"IFERROR(IF(INDEX('Disaggregation1B_Import-Export'!K$8:K$218,MATCH($B81,'Disaggregation1B_Import-Export'!$C$8:$C$218,0))=\"\",\"\",INDEX('Disaggregation1B_Import-Export'!K$8:K$218,MATCH($B81,'Disaggregation1B_Import-Export'!$C$8:$C$218,0))),\"\")","v":""},{"$f":"IFERROR(IF(INDEX('Disaggregation1B_Import-Export'!L$8:L$218,MATCH($B81,'Disaggregation1B_Import-Export'!$C$8:$C$218,0))=\"\",\"\",INDEX('Disaggregation1B_Import-Export'!L$8:L$218,MATCH($B81,'Disaggregation1B_Import-Export'!$C$8:$C$218,0))),\"\")","v":""},{"$f":"IFERROR(IF(INDEX('Disaggregation1B_Import-Export'!AQ$8:AQ$218,MATCH($B81,'Disaggregation1B_Import-Export'!$C$8:$C$218,0))=\"\",\"\",INDEX('Disaggregation1B_Import-Export'!AQ$8:AQ$218,MATCH($B81,'Disaggregation1B_Import-Export'!$C$8:$C$218,0))),\"\")","v":""},null,null,"",null,null,null,null,null,"",null,null,null,null,null,""]
[72,"Coverage72",{"$f":"IFERROR(INDEX('Disaggregation1B_Import-Export'!D$8:D$218,MATCH($B82,'Disaggregation1B_Import-Export'!$C$8:$C$218,0)),\"\")","v":""},{"$f":"IFERROR(INDEX('Disaggregation1B_Import-Export'!AF$8:AF$235,MATCH($B82,'Disaggregation1B_Import-Export'!$C$8:$C$235,0)),\"\")","v":""},{"$f":"IFERROR(IF(INDEX('Disaggregation1B_Import-Export'!AG$8:AG$218,MATCH($B82,'Disaggregation1B_Import-Export'!$C$8:$C$218,0))=\"\",\"\",INDEX('Disaggregation1B_Import-Export'!AG$8:AG$218,MATCH($B82,'Disaggregation1B_Import-Export'!$C$8:$C$218,0))),\"\")","v":""},{"$f":"IFERROR(IF(INDEX('Disaggregation1B_Import-Export'!AH$8:AH$218,MATCH($B82,'Disaggregation1B_Import-Export'!$C$8:$C$218,0))=\"\",\"\",INDEX('Disaggregation1B_Import-Export'!AH$8:AH$218,MATCH($B82,'Disaggregation1B_Import-Export'!$C$8:$C$218,0))),\"\")","v":""},{"$f":"IFERROR(IF(INDEX('Disaggregation1B_Import-Export'!H$8:H$218,MATCH($B82,'Disaggregation1B_Import-Export'!$C$8:$C$218,0))=\"\",\"\",INDEX('Disaggregation1B_Import-Export'!H$8:H$218,MATCH($B82,'Disaggregation1B_Import-Export'!$C$8:$C$218,0))),\"\")","v":""},{"$f":"IFERROR(IF(INDEX('Disaggregation1B_Import-Export'!I$8:I$218,MATCH($B82,'Disaggregation1B_Import-Export'!$C$8:$C$218,0))=\"\",\"\",INDEX('Disaggregation1B_Import-Export'!I$8:I$218,MATCH($B82,'Disaggregation1B_Import-Export'!$C$8:$C$218,0))),\"\")","v":""},{"$f":"IFERROR(IF(INDEX('Disaggregation1B_Import-Export'!J$8:J$218,MATCH($B82,'Disaggregation1B_Import-Export'!$C$8:$C$218,0))=\"\",\"\",INDEX('Disaggregation1B_Import-Export'!J$8:J$218,MATCH($B82,'Disaggregation1B_Import-Export'!$C$8:$C$218,0))),\"\")","v":""},{"$f":"IFERROR(IF(INDEX('Disaggregation1B_Import-Export'!K$8:K$218,MATCH($B82,'Disaggregation1B_Import-Export'!$C$8:$C$218,0))=\"\",\"\",INDEX('Disaggregation1B_Import-Export'!K$8:K$218,MATCH($B82,'Disaggregation1B_Import-Export'!$C$8:$C$218,0))),\"\")","v":""},{"$f":"IFERROR(IF(INDEX('Disaggregation1B_Import-Export'!L$8:L$218,MATCH($B82,'Disaggregation1B_Import-Export'!$C$8:$C$218,0))=\"\",\"\",INDEX('Disaggregation1B_Import-Export'!L$8:L$218,MATCH($B82,'Disaggregation1B_Import-Export'!$C$8:$C$218,0))),\"\")","v":""},{"$f":"IFERROR(IF(INDEX('Disaggregation1B_Import-Export'!AQ$8:AQ$218,MATCH($B82,'Disaggregation1B_Import-Export'!$C$8:$C$218,0))=\"\",\"\",INDEX('Disaggregation1B_Import-Export'!AQ$8:AQ$218,MATCH($B82,'Disaggregation1B_Import-Export'!$C$8:$C$218,0))),\"\")","v":""},null,null,"",null,null,null,null,null,"",null,null,null,null,null,""]
[73,"Coverage73",{"$f":"IFERROR(INDEX('Disaggregation1B_Import-Export'!D$8:D$218,MATCH($B83,'Disaggregation1B_Import-Export'!$C$8:$C$218,0)),\"\")","v":""},{"$f":"IFERROR(INDEX('Disaggregation1B_Import-Export'!AF$8:AF$235,MATCH($B83,'Disaggregation1B_Import-Export'!$C$8:$C$235,0)),\"\")","v":""},{"$f":"IFERROR(IF(INDEX('Disaggregation1B_Import-Export'!AG$8:AG$218,MATCH($B83,'Disaggregation1B_Import-Export'!$C$8:$C$218,0))=\"\",\"\",INDEX('Disaggregation1B_Import-Export'!AG$8:AG$218,MATCH($B83,'Disaggregation1B_Import-Export'!$C$8:$C$218,0))),\"\")","v":""},{"$f":"IFERROR(IF(INDEX('Disaggregation1B_Import-Export'!AH$8:AH$218,MATCH($B83,'Disaggregation1B_Import-Export'!$C$8:$C$218,0))=\"\",\"\",INDEX('Disaggregation1B_Import-Export'!AH$8:AH$218,MATCH($B83,'Disaggregation1B_Import-Export'!$C$8:$C$218,0))),\"\")","v":""},{"$f":"IFERROR(IF(INDEX('Disaggregation1B_Import-Export'!H$8:H$218,MATCH($B83,'Disaggregation1B_Import-Export'!$C$8:$C$218,0))=\"\",\"\",INDEX('Disaggregation1B_Import-Export'!H$8:H$218,MATCH($B83,'Disaggregation1B_Import-Export'!$C$8:$C$218,0))),\"\")","v":""},{"$f":"IFERROR(IF(INDEX('Disaggregation1B_Import-Export'!I$8:I$218,MATCH($B83,'Disaggregation1B_Import-Export'!$C$8:$C$218,0))=\"\",\"\",INDEX('Disaggregation1B_Import-Export'!I$8:I$218,MATCH($B83,'Disaggregation1B_Import-Export'!$C$8:$C$218,0))),\"\")","v":""},{"$f":"IFERROR(IF(INDEX('Disaggregation1B_Import-Export'!J$8:J$218,MATCH($B83,'Disaggregation1B_Import-Export'!$C$8:$C$218,0))=\"\",\"\",INDEX('Disaggregation1B_Import-Export'!J$8:J$218,MATCH($B83,'Disaggregation1B_Import-Export'!$C$8:$C$218,0))),\"\")","v":""},{"$f":"IFERROR(IF(INDEX('Disaggregation1B_Import-Export'!K$8:K$218,MATCH($B83,'Disaggregation1B_Import-Export'!$C$8:$C$218,0))=\"\",\"\",INDEX('Disaggregation1B_Import-Export'!K$8:K$218,MATCH($B83,'Disaggregation1B_Import-Export'!$C$8:$C$218,0))),\"\")","v":""},{"$f":"IFERROR(IF(INDEX('Disaggregation1B_Import-Export'!L$8:L$218,MATCH($B83,'Disaggregation1B_Import-Export'!$C$8:$C$218,0))=\"\",\"\",INDEX('Disaggregation1B_Import-Export'!L$8:L$218,MATCH($B83,'Disaggregation1B_Import-Export'!$C$8:$C$218,0))),\"\")","v":""},{"$f":"IFERROR(IF(INDEX('Disaggregation1B_Import-Export'!AQ$8:AQ$218,MATCH($B83,'Disaggregation1B_Import-Export'!$C$8:$C$218,0))=\"\",\"\",INDEX('Disaggregation1B_Import-Export'!AQ$8:AQ$218,MATCH($B83,'Disaggregation1B_Import-Export'!$C$8:$C$218,0))),\"\")","v":""},null,null,"",null,null,null,null,null,"",null,null,null,null,null,""]
[74,"Coverage74",{"$f":"IFERROR(INDEX('Disaggregation1B_Import-Export'!D$8:D$218,MATCH($B84,'Disaggregation1B_Import-Export'!$C$8:$C$218,0)),\"\")","v":""},{"$f":"IFERROR(INDEX('Disaggregation1B_Import-Export'!AF$8:AF$235,MATCH($B84,'Disaggregation1B_Import-Export'!$C$8:$C$235,0)),\"\")","v":""},{"$f":"IFERROR(IF(INDEX('Disaggregation1B_Import-Export'!AG$8:AG$218,MATCH($B84,'Disaggregation1B_Import-Export'!$C$8:$C$218,0))=\"\",\"\",INDEX('Disaggregation1B_Import-Export'!AG$8:AG$218,MATCH($B84,'Disaggregation1B_Import-Export'!$C$8:$C$218,0))),\"\")","v":""},{"$f":"IFERROR(IF(INDEX('Disaggregation1B_Import-Export'!AH$8:AH$218,MATCH($B84,'Disaggregation1B_Import-Export'!$C$8:$C$218,0))=\"\",\"\",INDEX('Disaggregation1B_Import-Export'!AH$8:AH$218,MATCH($B84,'Disaggregation1B_Import-Export'!$C$8:$C$218,0))),\"\")","v":""},{"$f":"IFERROR(IF(INDEX('Disaggregation1B_Import-Export'!H$8:H$218,MATCH($B84,'Disaggregation1B_Import-Export'!$C$8:$C$218,0))=\"\",\"\",INDEX('Disaggregation1B_Import-Export'!H$8:H$218,MATCH($B84,'Disaggregation1B_Import-Export'!$C$8:$C$218,0))),\"\")","v":""},{"$f":"IFERROR(IF(INDEX('Disaggregation1B_Import-Export'!I$8:I$218,MATCH($B84,'Disaggregation1B_Import-Export'!$C$8:$C$218,0))=\"\",\"\",INDEX('Disaggregation1B_Import-Export'!I$8:I$218,MATCH($B84,'Disaggregation1B_Import-Export'!$C$8:$C$218,0))),\"\")","v":""},{"$f":"IFERROR(IF(INDEX('Disaggregation1B_Import-Export'!J$8:J$218,MATCH($B84,'Disaggregation1B_Import-Export'!$C$8:$C$218,0))=\"\",\"\",INDEX('Disaggregation1B_Import-Export'!J$8:J$218,MATCH($B84,'Disaggregation1B_Import-Export'!$C$8:$C$218,0))),\"\")","v":""},{"$f":"IFERROR(IF(INDEX('Disaggregation1B_Import-Export'!K$8:K$218,MATCH($B84,'Disaggregation1B_Import-Export'!$C$8:$C$218,0))=\"\",\"\",INDEX('Disaggregation1B_Import-Export'!K$8:K$218,MATCH($B84,'Disaggregation1B_Import-Export'!$C$8:$C$218,0))),\"\")","v":""},{"$f":"IFERROR(IF(INDEX('Disaggregation1B_Import-Export'!L$8:L$218,MATCH($B84,'Disaggregation1B_Import-Export'!$C$8:$C$218,0))=\"\",\"\",INDEX('Disaggregation1B_Import-Export'!L$8:L$218,MATCH($B84,'Disaggregation1B_Import-Export'!$C$8:$C$218,0))),\"\")","v":""},{"$f":"IFERROR(IF(INDEX('Disaggregation1B_Import-Export'!AQ$8:AQ$218,MATCH($B84,'Disaggregation1B_Import-Export'!$C$8:$C$218,0))=\"\",\"\",INDEX('Disaggregation1B_Import-Export'!AQ$8:AQ$218,MATCH($B84,'Disaggregation1B_Import-Export'!$C$8:$C$218,0))),\"\")","v":""},null,null,"",null,null,null,null,null,"",null,null,null,null,null,""]
[75,"Coverage75",{"$f":"IFERROR(INDEX('Disaggregation1B_Import-Export'!D$8:D$218,MATCH($B85,'Disaggregation1B_Import-Export'!$C$8:$C$218,0)),\"\")","v":""},{"$f":"IFERROR(INDEX('Disaggregation1B_Import-Export'!AF$8:AF$235,MATCH($B85,'Disaggregation1B_Import-Export'!$C$8:$C$235,0)),\"\")","v":""},{"$f":"IFERROR(IF(INDEX('Disaggregation1B_Import-Export'!AG$8:AG$218,MATCH($B85,'Disaggregation1B_Import-Export'!$C$8:$C$218,0))=\"\",\"\",INDEX('Disaggregation1B_Import-Export'!AG$8:AG$218,MATCH($B85,'Disaggregation1B_Import-Export'!$C$8:$C$218,0))),\"\")","v":""},{"$f":"IFERROR(IF(INDEX('Disaggregation1B_Import-Export'!AH$8:AH$218,MATCH($B85,'Disaggregation1B_Import-Export'!$C$8:$C$218,0))=\"\",\"\",INDEX('Disaggregation1B_Import-Export'!AH$8:AH$218,MATCH($B85,'Disaggregation1B_Import-Export'!$C$8:$C$218,0))),\"\")","v":""},{"$f":"IFERROR(IF(INDEX('Disaggregation1B_Import-Export'!H$8:H$218,MATCH($B85,'Disaggregation1B_Import-Export'!$C$8:$C$218,0))=\"\",\"\",INDEX('Disaggregation1B_Import-Export'!H$8:H$218,MATCH($B85,'Disaggregation1B_Import-Export'!$C$8:$C$218,0))),\"\")","v":""},{"$f":"IFERROR(IF(INDEX('Disaggregation1B_Import-Export'!I$8:I$218,MATCH($B85,'Disaggregation1B_Import-Export'!$C$8:$C$218,0))=\"\",\"\",INDEX('Disaggregation1B_Import-Export'!I$8:I$218,MATCH($B85,'Disaggregation1B_Import-Export'!$C$8:$C$218,0))),\"\")","v":""},{"$f":"IFERROR(IF(INDEX('Disaggregation1B_Import-Export'!J$8:J$218,MATCH($B85,'Disaggregation1B_Import-Export'!$C$8:$C$218,0))=\"\",\"\",INDEX('Disaggregation1B_Import-Export'!J$8:J$218,MATCH($B85,'Disaggregation1B_Import-Export'!$C$8:$C$218,0))),\"\")","v":""},{"$f":"IFERROR(IF(INDEX('Disaggregation1B_Import-Export'!K$8:K$218,MATCH($B85,'Disaggregation1B_Import-Export'!$C$8:$C$218,0))=\"\",\"\",INDEX('Disaggregation1B_Import-Export'!K$8:K$218,MATCH($B85,'Disaggregation1B_Import-Export'!$C$8:$C$218,0))),\"\")","v":""},{"$f":"IFERROR(IF(INDEX('Disaggregation1B_Import-Export'!L$8:L$218,MATCH($B85,'Disaggregation1B_Import-Export'!$C$8:$C$218,0))=\"\",\"\",INDEX('Disaggregation1B_Import-Export'!L$8:L$218,MATCH($B85,'Disaggregation1B_Import-Export'!$C$8:$C$218,0))),\"\")","v":""},{"$f":"IFERROR(IF(INDEX('Disaggregation1B_Import-Export'!AQ$8:AQ$218,MATCH($B85,'Disaggregation1B_Import-Export'!$C$8:$C$218,0))=\"\",\"\",INDEX('Disaggregation1B_Import-Export'!AQ$8:AQ$218,MATCH($B85,'Disaggregation1B_Import-Export'!$C$8:$C$218,0))),\"\")","v":""},null,null,"",null,null,null,null,null,"",null,null,null,null,null,""]
[76,"Coverage76",{"$f":"IFERROR(INDEX('Disaggregation1B_Import-Export'!D$8:D$218,MATCH($B86,'Disaggregation1B_Import-Export'!$C$8:$C$218,0)),\"\")","v":""},{"$f":"IFERROR(INDEX('Disaggregation1B_Import-Export'!AF$8:AF$235,MATCH($B86,'Disaggregation1B_Import-Export'!$C$8:$C$235,0)),\"\")","v":""},{"$f":"IFERROR(IF(INDEX('Disaggregation1B_Import-Export'!AG$8:AG$218,MATCH($B86,'Disaggregation1B_Import-Export'!$C$8:$C$218,0))=\"\",\"\",INDEX('Disaggregation1B_Import-Export'!AG$8:AG$218,MATCH($B86,'Disaggregation1B_Import-Export'!$C$8:$C$218,0))),\"\")","v":""},{"$f":"IFERROR(IF(INDEX('Disaggregation1B_Import-Export'!AH$8:AH$218,MATCH($B86,'Disaggregation1B_Import-Export'!$C$8:$C$218,0))=\"\",\"\",INDEX('Disaggregation1B_Import-Export'!AH$8:AH$218,MATCH($B86,'Disaggregation1B_Import-Export'!$C$8:$C$218,0))),\"\")","v":""},{"$f":"IFERROR(IF(INDEX('Disaggregation1B_Import-Export'!H$8:H$218,MATCH($B86,'Disaggregation1B_Import-Export'!$C$8:$C$218,0))=\"\",\"\",INDEX('Disaggregation1B_Import-Export'!H$8:H$218,MATCH($B86,'Disaggregation1B_Import-Export'!$C$8:$C$218,0))),\"\")","v":""},{"$f":"IFERROR(IF(INDEX('Disaggregation1B_Import-Export'!I$8:I$218,MATCH($B86,'Disaggregation1B_Import-Export'!$C$8:$C$218,0))=\"\",\"\",INDEX('Disaggregation1B_Import-Export'!I$8:I$218,MATCH($B86,'Disaggregation1B_Import-Export'!$C$8:$C$218,0))),\"\")","v":""},{"$f":"IFERROR(IF(INDEX('Disaggregation1B_Import-Export'!J$8:J$218,MATCH($B86,'Disaggregation1B_Import-Export'!$C$8:$C$218,0))=\"\",\"\",INDEX('Disaggregation1B_Import-Export'!J$8:J$218,MATCH($B86,'Disaggregation1B_Import-Export'!$C$8:$C$218,0))),\"\")","v":""},{"$f":"IFERROR(IF(INDEX('Disaggregation1B_Import-Export'!K$8:K$218,MATCH($B86,'Disaggregation1B_Import-Export'!$C$8:$C$218,0))=\"\",\"\",INDEX('Disaggregation1B_Import-Export'!K$8:K$218,MATCH($B86,'Disaggregation1B_Import-Export'!$C$8:$C$218,0))),\"\")","v":""},{"$f":"IFERROR(IF(INDEX('Disaggregation1B_Import-Export'!L$8:L$218,MATCH($B86,'Disaggregation1B_Import-Export'!$C$8:$C$218,0))=\"\",\"\",INDEX('Disaggregation1B_Import-Export'!L$8:L$218,MATCH($B86,'Disaggregation1B_Import-Export'!$C$8:$C$218,0))),\"\")","v":""},{"$f":"IFERROR(IF(INDEX('Disaggregation1B_Import-Export'!AQ$8:AQ$218,MATCH($B86,'Disaggregation1B_Import-Export'!$C$8:$C$218,0))=\"\",\"\",INDEX('Disaggregation1B_Import-Export'!AQ$8:AQ$218,MATCH($B86,'Disaggregation1B_Import-Export'!$C$8:$C$218,0))),\"\")","v":""},null,null,"",null,null,null,null,null,"",null,null,null,null,null,""]
[77,"Coverage77",{"$f":"IFERROR(INDEX('Disaggregation1B_Import-Export'!D$8:D$218,MATCH($B87,'Disaggregation1B_Import-Export'!$C$8:$C$218,0)),\"\")","v":""},{"$f":"IFERROR(INDEX('Disaggregation1B_Import-Export'!AF$8:AF$235,MATCH($B87,'Disaggregation1B_Import-Export'!$C$8:$C$235,0)),\"\")","v":""},{"$f":"IFERROR(IF(INDEX('Disaggregation1B_Import-Export'!AG$8:AG$218,MATCH($B87,'Disaggregation1B_Import-Export'!$C$8:$C$218,0))=\"\",\"\",INDEX('Disaggregation1B_Import-Export'!AG$8:AG$218,MATCH($B87,'Disaggregation1B_Import-Export'!$C$8:$C$218,0))),\"\")","v":""},{"$f":"IFERROR(IF(INDEX('Disaggregation1B_Import-Export'!AH$8:AH$218,MATCH($B87,'Disaggregation1B_Import-Export'!$C$8:$C$218,0))=\"\",\"\",INDEX('Disaggregation1B_Import-Export'!AH$8:AH$218,MATCH($B87,'Disaggregation1B_Import-Export'!$C$8:$C$218,0))),\"\")","v":""},{"$f":"IFERROR(IF(INDEX('Disaggregation1B_Import-Export'!H$8:H$218,MATCH($B87,'Disaggregation1B_Import-Export'!$C$8:$C$218,0))=\"\",\"\",INDEX('Disaggregation1B_Import-Export'!H$8:H$218,MATCH($B87,'Disaggregation1B_Import-Export'!$C$8:$C$218,0))),\"\")","v":""},{"$f":"IFERROR(IF(INDEX('Disaggregation1B_Import-Export'!I$8:I$218,MATCH($B87,'Disaggregation1B_Import-Export'!$C$8:$C$218,0))=\"\",\"\",INDEX('Disaggregation1B_Import-Export'!I$8:I$218,MATCH($B87,'Disaggregation1B_Import-Export'!$C$8:$C$218,0))),\"\")","v":""},{"$f":"IFERROR(IF(INDEX('Disaggregation1B_Import-Export'!J$8:J$218,MATCH($B87,'Disaggregation1B_Import-Export'!$C$8:$C$218,0))=\"\",\"\",INDEX('Disaggregation1B_Import-Export'!J$8:J$218,MATCH($B87,'Disaggregation1B_Import-Export'!$C$8:$C$218,0))),\"\")","v":""},{"$f":"IFERROR(IF(INDEX('Disaggregation1B_Import-Export'!K$8:K$218,MATCH($B87,'Disaggregation1B_Import-Export'!$C$8:$C$218,0))=\"\",\"\",INDEX('Disaggregation1B_Import-Export'!K$8:K$218,MATCH($B87,'Disaggregation1B_Import-Export'!$C$8:$C$218,0))),\"\")","v":""},{"$f":"IFERROR(IF(INDEX('Disaggregation1B_Import-Export'!L$8:L$218,MATCH($B87,'Disaggregation1B_Import-Export'!$C$8:$C$218,0))=\"\",\"\",INDEX('Disaggregation1B_Import-Export'!L$8:L$218,MATCH($B87,'Disaggregation1B_Import-Export'!$C$8:$C$218,0))),\"\")","v":""},{"$f":"IFERROR(IF(INDEX('Disaggregation1B_Import-Export'!AQ$8:AQ$218,MATCH($B87,'Disaggregation1B_Import-Export'!$C$8:$C$218,0))=\"\",\"\",INDEX('Disaggregation1B_Import-Export'!AQ$8:AQ$218,MATCH($B87,'Disaggregation1B_Import-Export'!$C$8:$C$218,0))),\"\")","v":""},null,null,"",null,null,null,null,null,"",null,null,null,null,null,""]
[78,"Coverage78",{"$f":"IFERROR(INDEX('Disaggregation1B_Import-Export'!D$8:D$218,MATCH($B88,'Disaggregation1B_Import-Export'!$C$8:$C$218,0)),\"\")","v":""},{"$f":"IFERROR(INDEX('Disaggregation1B_Import-Export'!AF$8:AF$235,MATCH($B88,'Disaggregation1B_Import-Export'!$C$8:$C$235,0)),\"\")","v":""},{"$f":"IFERROR(IF(INDEX('Disaggregation1B_Import-Export'!AG$8:AG$218,MATCH($B88,'Disaggregation1B_Import-Export'!$C$8:$C$218,0))=\"\",\"\",INDEX('Disaggregation1B_Import-Export'!AG$8:AG$218,MATCH($B88,'Disaggregation1B_Import-Export'!$C$8:$C$218,0))),\"\")","v":""},{"$f":"IFERROR(IF(INDEX('Disaggregation1B_Import-Export'!AH$8:AH$218,MATCH($B88,'Disaggregation1B_Import-Export'!$C$8:$C$218,0))=\"\",\"\",INDEX('Disaggregation1B_Import-Export'!AH$8:AH$218,MATCH($B88,'Disaggregation1B_Import-Export'!$C$8:$C$218,0))),\"\")","v":""},{"$f":"IFERROR(IF(INDEX('Disaggregation1B_Import-Export'!H$8:H$218,MATCH($B88,'Disaggregation1B_Import-Export'!$C$8:$C$218,0))=\"\",\"\",INDEX('Disaggregation1B_Import-Export'!H$8:H$218,MATCH($B88,'Disaggregation1B_Import-Export'!$C$8:$C$218,0))),\"\")","v":""},{"$f":"IFERROR(IF(INDEX('Disaggregation1B_Import-Export'!I$8:I$218,MATCH($B88,'Disaggregation1B_Import-Export'!$C$8:$C$218,0))=\"\",\"\",INDEX('Disaggregation1B_Import-Export'!I$8:I$218,MATCH($B88,'Disaggregation1B_Import-Export'!$C$8:$C$218,0))),\"\")","v":""},{"$f":"IFERROR(IF(INDEX('Disaggregation1B_Import-Export'!J$8:J$218,MATCH($B88,'Disaggregation1B_Import-Export'!$C$8:$C$218,0))=\"\",\"\",INDEX('Disaggregation1B_Import-Export'!J$8:J$218,MATCH($B88,'Disaggregation1B_Import-Export'!$C$8:$C$218,0))),\"\")","v":""},{"$f":"IFERROR(IF(INDEX('Disaggregation1B_Import-Export'!K$8:K$218,MATCH($B88,'Disaggregation1B_Import-Export'!$C$8:$C$218,0))=\"\",\"\",INDEX('Disaggregation1B_Import-Export'!K$8:K$218,MATCH($B88,'Disaggregation1B_Import-Export'!$C$8:$C$218,0))),\"\")","v":""},{"$f":"IFERROR(IF(INDEX('Disaggregation1B_Import-Export'!L$8:L$218,MATCH($B88,'Disaggregation1B_Import-Export'!$C$8:$C$218,0))=\"\",\"\",INDEX('Disaggregation1B_Import-Export'!L$8:L$218,MATCH($B88,'Disaggregation1B_Import-Export'!$C$8:$C$218,0))),\"\")","v":""},{"$f":"IFERROR(IF(INDEX('Disaggregation1B_Import-Export'!AQ$8:AQ$218,MATCH($B88,'Disaggregation1B_Import-Export'!$C$8:$C$218,0))=\"\",\"\",INDEX('Disaggregation1B_Import-Export'!AQ$8:AQ$218,MATCH($B88,'Disaggregation1B_Import-Export'!$C$8:$C$218,0))),\"\")","v":""},null,null,"",null,null,null,null,null,"",null,null,null,null,null,""]
[79,"Coverage79",{"$f":"IFERROR(INDEX('Disaggregation1B_Import-Export'!D$8:D$218,MATCH($B89,'Disaggregation1B_Import-Export'!$C$8:$C$218,0)),\"\")","v":""},{"$f":"IFERROR(INDEX('Disaggregation1B_Import-Export'!AF$8:AF$235,MATCH($B89,'Disaggregation1B_Import-Export'!$C$8:$C$235,0)),\"\")","v":""},{"$f":"IFERROR(IF(INDEX('Disaggregation1B_Import-Export'!AG$8:AG$218,MATCH($B89,'Disaggregation1B_Import-Export'!$C$8:$C$218,0))=\"\",\"\",INDEX('Disaggregation1B_Import-Export'!AG$8:AG$218,MATCH($B89,'Disaggregation1B_Import-Export'!$C$8:$C$218,0))),\"\")","v":""},{"$f":"IFERROR(IF(INDEX('Disaggregation1B_Import-Export'!AH$8:AH$218,MATCH($B89,'Disaggregation1B_Import-Export'!$C$8:$C$218,0))=\"\",\"\",INDEX('Disaggregation1B_Import-Export'!AH$8:AH$218,MATCH($B89,'Disaggregation1B_Import-Export'!$C$8:$C$218,0))),\"\")","v":""},{"$f":"IFERROR(IF(INDEX('Disaggregation1B_Import-Export'!H$8:H$218,MATCH($B89,'Disaggregation1B_Import-Export'!$C$8:$C$218,0))=\"\",\"\",INDEX('Disaggregation1B_Import-Export'!H$8:H$218,MATCH($B89,'Disaggregation1B_Import-Export'!$C$8:$C$218,0))),\"\")","v":""},{"$f":"IFERROR(IF(INDEX('Disaggregation1B_Import-Export'!I$8:I$218,MATCH($B89,'Disaggregation1B_Import-Export'!$C$8:$C$218,0))=\"\",\"\",INDEX('Disaggregation1B_Import-Export'!I$8:I$218,MATCH($B89,'Disaggregation1B_Import-Export'!$C$8:$C$218,0))),\"\")","v":""},{"$f":"IFERROR(IF(INDEX('Disaggregation1B_Import-Export'!J$8:J$218,MATCH($B89,'Disaggregation1B_Import-Export'!$C$8:$C$218,0))=\"\",\"\",INDEX('Disaggregation1B_Import-Export'!J$8:J$218,MATCH($B89,'Disaggregation1B_Import-Export'!$C$8:$C$218,0))),\"\")","v":""},{"$f":"IFERROR(IF(INDEX('Disaggregation1B_Import-Export'!K$8:K$218,MATCH($B89,'Disaggregation1B_Import-Export'!$C$8:$C$218,0))=\"\",\"\",INDEX('Disaggregation1B_Import-Export'!K$8:K$218,MATCH($B89,'Disaggregation1B_Import-Export'!$C$8:$C$218,0))),\"\")","v":""},{"$f":"IFERROR(IF(INDEX('Disaggregation1B_Import-Export'!L$8:L$218,MATCH($B89,'Disaggregation1B_Import-Export'!$C$8:$C$218,0))=\"\",\"\",INDEX('Disaggregation1B_Import-Export'!L$8:L$218,MATCH($B89,'Disaggregation1B_Import-Export'!$C$8:$C$218,0))),\"\")","v":""},{"$f":"IFERROR(IF(INDEX('Disaggregation1B_Import-Export'!AQ$8:AQ$218,MATCH($B89,'Disaggregation1B_Import-Export'!$C$8:$C$218,0))=\"\",\"\",INDEX('Disaggregation1B_Import-Export'!AQ$8:AQ$218,MATCH($B89,'Disaggregation1B_Import-Export'!$C$8:$C$218,0))),\"\")","v":""},null,null,"",null,null,null,null,null,"",null,null,null,null,null,""]
[80,"Coverage80",{"$f":"IFERROR(INDEX('Disaggregation1B_Import-Export'!D$8:D$218,MATCH($B90,'Disaggregation1B_Import-Export'!$C$8:$C$218,0)),\"\")","v":""},{"$f":"IFERROR(INDEX('Disaggregation1B_Import-Export'!AF$8:AF$235,MATCH($B90,'Disaggregation1B_Import-Export'!$C$8:$C$235,0)),\"\")","v":""},{"$f":"IFERROR(IF(INDEX('Disaggregation1B_Import-Export'!AG$8:AG$218,MATCH($B90,'Disaggregation1B_Import-Export'!$C$8:$C$218,0))=\"\",\"\",INDEX('Disaggregation1B_Import-Export'!AG$8:AG$218,MATCH($B90,'Disaggregation1B_Import-Export'!$C$8:$C$218,0))),\"\")","v":""},{"$f":"IFERROR(IF(INDEX('Disaggregation1B_Import-Export'!AH$8:AH$218,MATCH($B90,'Disaggregation1B_Import-Export'!$C$8:$C$218,0))=\"\",\"\",INDEX('Disaggregation1B_Import-Export'!AH$8:AH$218,MATCH($B90,'Disaggregation1B_Import-Export'!$C$8:$C$218,0))),\"\")","v":""},{"$f":"IFERROR(IF(INDEX('Disaggregation1B_Import-Export'!H$8:H$218,MATCH($B90,'Disaggregation1B_Import-Export'!$C$8:$C$218,0))=\"\",\"\",INDEX('Disaggregation1B_Import-Export'!H$8:H$218,MATCH($B90,'Disaggregation1B_Import-Export'!$C$8:$C$218,0))),\"\")","v":""},{"$f":"IFERROR(IF(INDEX('Disaggregation1B_Import-Export'!I$8:I$218,MATCH($B90,'Disaggregation1B_Import-Export'!$C$8:$C$218,0))=\"\",\"\",INDEX('Disaggregation1B_Import-Export'!I$8:I$218,MATCH($B90,'Disaggregation1B_Import-Export'!$C$8:$C$218,0))),\"\")","v":""},{"$f":"IFERROR(IF(INDEX('Disaggregation1B_Import-Export'!J$8:J$218,MATCH($B90,'Disaggregation1B_Import-Export'!$C$8:$C$218,0))=\"\",\"\",INDEX('Disaggregation1B_Import-Export'!J$8:J$218,MATCH($B90,'Disaggregation1B_Import-Export'!$C$8:$C$218,0))),\"\")","v":""},{"$f":"IFERROR(IF(INDEX('Disaggregation1B_Import-Export'!K$8:K$218,MATCH($B90,'Disaggregation1B_Import-Export'!$C$8:$C$218,0))=\"\",\"\",INDEX('Disaggregation1B_Import-Export'!K$8:K$218,MATCH($B90,'Disaggregation1B_Import-Export'!$C$8:$C$218,0))),\"\")","v":""},{"$f":"IFERROR(IF(INDEX('Disaggregation1B_Import-Export'!L$8:L$218,MATCH($B90,'Disaggregation1B_Import-Export'!$C$8:$C$218,0))=\"\",\"\",INDEX('Disaggregation1B_Import-Export'!L$8:L$218,MATCH($B90,'Disaggregation1B_Import-Export'!$C$8:$C$218,0))),\"\")","v":""},{"$f":"IFERROR(IF(INDEX('Disaggregation1B_Import-Export'!AQ$8:AQ$218,MATCH($B90,'Disaggregation1B_Import-Export'!$C$8:$C$218,0))=\"\",\"\",INDEX('Disaggregation1B_Import-Export'!AQ$8:AQ$218,MATCH($B90,'Disaggregation1B_Import-Export'!$C$8:$C$218,0))),\"\")","v":""},null,null,"",null,null,null,null,null,"",null,null,null,null,null,""]
[81,"Coverage81",{"$f":"IFERROR(INDEX('Disaggregation1B_Import-Export'!D$8:D$218,MATCH($B91,'Disaggregation1B_Import-Export'!$C$8:$C$218,0)),\"\")","v":""},{"$f":"IFERROR(INDEX('Disaggregation1B_Import-Export'!AF$8:AF$235,MATCH($B91,'Disaggregation1B_Import-Export'!$C$8:$C$235,0)),\"\")","v":""},{"$f":"IFERROR(IF(INDEX('Disaggregation1B_Import-Export'!AG$8:AG$218,MATCH($B91,'Disaggregation1B_Import-Export'!$C$8:$C$218,0))=\"\",\"\",INDEX('Disaggregation1B_Import-Export'!AG$8:AG$218,MATCH($B91,'Disaggregation1B_Import-Export'!$C$8:$C$218,0))),\"\")","v":""},{"$f":"IFERROR(IF(INDEX('Disaggregation1B_Import-Export'!AH$8:AH$218,MATCH($B91,'Disaggregation1B_Import-Export'!$C$8:$C$218,0))=\"\",\"\",INDEX('Disaggregation1B_Import-Export'!AH$8:AH$218,MATCH($B91,'Disaggregation1B_Import-Export'!$C$8:$C$218,0))),\"\")","v":""},{"$f":"IFERROR(IF(INDEX('Disaggregation1B_Import-Export'!H$8:H$218,MATCH($B91,'Disaggregation1B_Import-Export'!$C$8:$C$218,0))=\"\",\"\",INDEX('Disaggregation1B_Import-Export'!H$8:H$218,MATCH($B91,'Disaggregation1B_Import-Export'!$C$8:$C$218,0))),\"\")","v":""},{"$f":"IFERROR(IF(INDEX('Disaggregation1B_Import-Export'!I$8:I$218,MATCH($B91,'Disaggregation1B_Import-Export'!$C$8:$C$218,0))=\"\",\"\",INDEX('Disaggregation1B_Import-Export'!I$8:I$218,MATCH($B91,'Disaggregation1B_Import-Export'!$C$8:$C$218,0))),\"\")","v":""},{"$f":"IFERROR(IF(INDEX('Disaggregation1B_Import-Export'!J$8:J$218,MATCH($B91,'Disaggregation1B_Import-Export'!$C$8:$C$218,0))=\"\",\"\",INDEX('Disaggregation1B_Import-Export'!J$8:J$218,MATCH($B91,'Disaggregation1B_Import-Export'!$C$8:$C$218,0))),\"\")","v":""},{"$f":"IFERROR(IF(INDEX('Disaggregation1B_Import-Export'!K$8:K$218,MATCH($B91,'Disaggregation1B_Import-Export'!$C$8:$C$218,0))=\"\",\"\",INDEX('Disaggregation1B_Import-Export'!K$8:K$218,MATCH($B91,'Disaggregation1B_Import-Export'!$C$8:$C$218,0))),\"\")","v":""},{"$f":"IFERROR(IF(INDEX('Disaggregation1B_Import-Export'!L$8:L$218,MATCH($B91,'Disaggregation1B_Import-Export'!$C$8:$C$218,0))=\"\",\"\",INDEX('Disaggregation1B_Import-Export'!L$8:L$218,MATCH($B91,'Disaggregation1B_Import-Export'!$C$8:$C$218,0))),\"\")","v":""},{"$f":"IFERROR(IF(INDEX('Disaggregation1B_Import-Export'!AQ$8:AQ$218,MATCH($B91,'Disaggregation1B_Import-Export'!$C$8:$C$218,0))=\"\",\"\",INDEX('Disaggregation1B_Import-Export'!AQ$8:AQ$218,MATCH($B91,'Disaggregation1B_Import-Export'!$C$8:$C$218,0))),\"\")","v":""},null,null,"",null,null,null,null,null,"",null,null,null,null,null,""]
[82,"Coverage82",{"$f":"IFERROR(INDEX('Disaggregation1B_Import-Export'!D$8:D$218,MATCH($B92,'Disaggregation1B_Import-Export'!$C$8:$C$218,0)),\"\")","v":""},{"$f":"IFERROR(INDEX('Disaggregation1B_Import-Export'!AF$8:AF$235,MATCH($B92,'Disaggregation1B_Import-Export'!$C$8:$C$235,0)),\"\")","v":""},{"$f":"IFERROR(IF(INDEX('Disaggregation1B_Import-Export'!AG$8:AG$218,MATCH($B92,'Disaggregation1B_Import-Export'!$C$8:$C$218,0))=\"\",\"\",INDEX('Disaggregation1B_Import-Export'!AG$8:AG$218,MATCH($B92,'Disaggregation1B_Import-Export'!$C$8:$C$218,0))),\"\")","v":""},{"$f":"IFERROR(IF(INDEX('Disaggregation1B_Import-Export'!AH$8:AH$218,MATCH($B92,'Disaggregation1B_Import-Export'!$C$8:$C$218,0))=\"\",\"\",INDEX('Disaggregation1B_Import-Export'!AH$8:AH$218,MATCH($B92,'Disaggregation1B_Import-Export'!$C$8:$C$218,0))),\"\")","v":""},{"$f":"IFERROR(IF(INDEX('Disaggregation1B_Import-Export'!H$8:H$218,MATCH($B92,'Disaggregation1B_Import-Export'!$C$8:$C$218,0))=\"\",\"\",INDEX('Disaggregation1B_Import-Export'!H$8:H$218,MATCH($B92,'Disaggregation1B_Import-Export'!$C$8:$C$218,0))),\"\")","v":""},{"$f":"IFERROR(IF(INDEX('Disaggregation1B_Import-Export'!I$8:I$218,MATCH($B92,'Disaggregation1B_Import-Export'!$C$8:$C$218,0))=\"\",\"\",INDEX('Disaggregation1B_Import-Export'!I$8:I$218,MATCH($B92,'Disaggregation1B_Import-Export'!$C$8:$C$218,0))),\"\")","v":""},{"$f":"IFERROR(IF(INDEX('Disaggregation1B_Import-Export'!J$8:J$218,MATCH($B92,'Disaggregation1B_Import-Export'!$C$8:$C$218,0))=\"\",\"\",INDEX('Disaggregation1B_Import-Export'!J$8:J$218,MATCH($B92,'Disaggregation1B_Import-Export'!$C$8:$C$218,0))),\"\")","v":""},{"$f":"IFERROR(IF(INDEX('Disaggregation1B_Import-Export'!K$8:K$218,MATCH($B92,'Disaggregation1B_Import-Export'!$C$8:$C$218,0))=\"\",\"\",INDEX('Disaggregation1B_Import-Export'!K$8:K$218,MATCH($B92,'Disaggregation1B_Import-Export'!$C$8:$C$218,0))),\"\")","v":""},{"$f":"IFERROR(IF(INDEX('Disaggregation1B_Import-Export'!L$8:L$218,MATCH($B92,'Disaggregation1B_Import-Export'!$C$8:$C$218,0))=\"\",\"\",INDEX('Disaggregation1B_Import-Export'!L$8:L$218,MATCH($B92,'Disaggregation1B_Import-Export'!$C$8:$C$218,0))),\"\")","v":""},{"$f":"IFERROR(IF(INDEX('Disaggregation1B_Import-Export'!AQ$8:AQ$218,MATCH($B92,'Disaggregation1B_Import-Export'!$C$8:$C$218,0))=\"\",\"\",INDEX('Disaggregation1B_Import-Export'!AQ$8:AQ$218,MATCH($B92,'Disaggregation1B_Import-Export'!$C$8:$C$218,0))),\"\")","v":""},null,null,"",null,null,null,null,null,"",null,null,null,null,null,""]
[83,"Coverage83",{"$f":"IFERROR(INDEX('Disaggregation1B_Import-Export'!D$8:D$218,MATCH($B93,'Disaggregation1B_Import-Export'!$C$8:$C$218,0)),\"\")","v":""},{"$f":"IFERROR(INDEX('Disaggregation1B_Import-Export'!AF$8:AF$235,MATCH($B93,'Disaggregation1B_Import-Export'!$C$8:$C$235,0)),\"\")","v":""},{"$f":"IFERROR(IF(INDEX('Disaggregation1B_Import-Export'!AG$8:AG$218,MATCH($B93,'Disaggregation1B_Import-Export'!$C$8:$C$218,0))=\"\",\"\",INDEX('Disaggregation1B_Import-Export'!AG$8:AG$218,MATCH($B93,'Disaggregation1B_Import-Export'!$C$8:$C$218,0))),\"\")","v":""},{"$f":"IFERROR(IF(INDEX('Disaggregation1B_Import-Export'!AH$8:AH$218,MATCH($B93,'Disaggregation1B_Import-Export'!$C$8:$C$218,0))=\"\",\"\",INDEX('Disaggregation1B_Import-Export'!AH$8:AH$218,MATCH($B93,'Disaggregation1B_Import-Export'!$C$8:$C$218,0))),\"\")","v":""},{"$f":"IFERROR(IF(INDEX('Disaggregation1B_Import-Export'!H$8:H$218,MATCH($B93,'Disaggregation1B_Import-Export'!$C$8:$C$218,0))=\"\",\"\",INDEX('Disaggregation1B_Import-Export'!H$8:H$218,MATCH($B93,'Disaggregation1B_Import-Export'!$C$8:$C$218,0))),\"\")","v":""},{"$f":"IFERROR(IF(INDEX('Disaggregation1B_Import-Export'!I$8:I$218,MATCH($B93,'Disaggregation1B_Import-Export'!$C$8:$C$218,0))=\"\",\"\",INDEX('Disaggregation1B_Import-Export'!I$8:I$218,MATCH($B93,'Disaggregation1B_Import-Export'!$C$8:$C$218,0))),\"\")","v":""},{"$f":"IFERROR(IF(INDEX('Disaggregation1B_Import-Export'!J$8:J$218,MATCH($B93,'Disaggregation1B_Import-Export'!$C$8:$C$218,0))=\"\",\"\",INDEX('Disaggregation1B_Import-Export'!J$8:J$218,MATCH($B93,'Disaggregation1B_Import-Export'!$C$8:$C$218,0))),\"\")","v":""},{"$f":"IFERROR(IF(INDEX('Disaggregation1B_Import-Export'!K$8:K$218,MATCH($B93,'Disaggregation1B_Import-Export'!$C$8:$C$218,0))=\"\",\"\",INDEX('Disaggregation1B_Import-Export'!K$8:K$218,MATCH($B93,'Disaggregation1B_Import-Export'!$C$8:$C$218,0))),\"\")","v":""},{"$f":"IFERROR(IF(INDEX('Disaggregation1B_Import-Export'!L$8:L$218,MATCH($B93,'Disaggregation1B_Import-Export'!$C$8:$C$218,0))=\"\",\"\",INDEX('Disaggregation1B_Import-Export'!L$8:L$218,MATCH($B93,'Disaggregation1B_Import-Export'!$C$8:$C$218,0))),\"\")","v":""},{"$f":"IFERROR(IF(INDEX('Disaggregation1B_Import-Export'!AQ$8:AQ$218,MATCH($B93,'Disaggregation1B_Import-Export'!$C$8:$C$218,0))=\"\",\"\",INDEX('Disaggregation1B_Import-Export'!AQ$8:AQ$218,MATCH($B93,'Disaggregation1B_Import-Export'!$C$8:$C$218,0))),\"\")","v":""},null,null,"",null,null,null,null,null,"",null,null,null,null,null,""]
[84,"Coverage84",{"$f":"IFERROR(INDEX('Disaggregation1B_Import-Export'!D$8:D$218,MATCH($B94,'Disaggregation1B_Import-Export'!$C$8:$C$218,0)),\"\")","v":""},{"$f":"IFERROR(INDEX('Disaggregation1B_Import-Export'!AF$8:AF$235,MATCH($B94,'Disaggregation1B_Import-Export'!$C$8:$C$235,0)),\"\")","v":""},{"$f":"IFERROR(IF(INDEX('Disaggregation1B_Import-Export'!AG$8:AG$218,MATCH($B94,'Disaggregation1B_Import-Export'!$C$8:$C$218,0))=\"\",\"\",INDEX('Disaggregation1B_Import-Export'!AG$8:AG$218,MATCH($B94,'Disaggregation1B_Import-Export'!$C$8:$C$218,0))),\"\")","v":""},{"$f":"IFERROR(IF(INDEX('Disaggregation1B_Import-Export'!AH$8:AH$218,MATCH($B94,'Disaggregation1B_Import-Export'!$C$8:$C$218,0))=\"\",\"\",INDEX('Disaggregation1B_Import-Export'!AH$8:AH$218,MATCH($B94,'Disaggregation1B_Import-Export'!$C$8:$C$218,0))),\"\")","v":""},{"$f":"IFERROR(IF(INDEX('Disaggregation1B_Import-Export'!H$8:H$218,MATCH($B94,'Disaggregation1B_Import-Export'!$C$8:$C$218,0))=\"\",\"\",INDEX('Disaggregation1B_Import-Export'!H$8:H$218,MATCH($B94,'Disaggregation1B_Import-Export'!$C$8:$C$218,0))),\"\")","v":""},{"$f":"IFERROR(IF(INDEX('Disaggregation1B_Import-Export'!I$8:I$218,MATCH($B94,'Disaggregation1B_Import-Export'!$C$8:$C$218,0))=\"\",\"\",INDEX('Disaggregation1B_Import-Export'!I$8:I$218,MATCH($B94,'Disaggregation1B_Import-Export'!$C$8:$C$218,0))),\"\")","v":""},{"$f":"IFERROR(IF(INDEX('Disaggregation1B_Import-Export'!J$8:J$218,MATCH($B94,'Disaggregation1B_Import-Export'!$C$8:$C$218,0))=\"\",\"\",INDEX('Disaggregation1B_Import-Export'!J$8:J$218,MATCH($B94,'Disaggregation1B_Import-Export'!$C$8:$C$218,0))),\"\")","v":""},{"$f":"IFERROR(IF(INDEX('Disaggregation1B_Import-Export'!K$8:K$218,MATCH($B94,'Disaggregation1B_Import-Export'!$C$8:$C$218,0))=\"\",\"\",INDEX('Disaggregation1B_Import-Export'!K$8:K$218,MATCH($B94,'Disaggregation1B_Import-Export'!$C$8:$C$218,0))),\"\")","v":""},{"$f":"IFERROR(IF(INDEX('Disaggregation1B_Import-Export'!L$8:L$218,MATCH($B94,'Disaggregation1B_Import-Export'!$C$8:$C$218,0))=\"\",\"\",INDEX('Disaggregation1B_Import-Export'!L$8:L$218,MATCH($B94,'Disaggregation1B_Import-Export'!$C$8:$C$218,0))),\"\")","v":""},{"$f":"IFERROR(IF(INDEX('Disaggregation1B_Import-Export'!AQ$8:AQ$218,MATCH($B94,'Disaggregation1B_Import-Export'!$C$8:$C$218,0))=\"\",\"\",INDEX('Disaggregation1B_Import-Export'!AQ$8:AQ$218,MATCH($B94,'Disaggregation1B_Import-Export'!$C$8:$C$218,0))),\"\")","v":""},null,null,"",null,null,null,null,null,"",null,null,null,null,null,""]
[85,"Coverage85",{"$f":"IFERROR(INDEX('Disaggregation1B_Import-Export'!D$8:D$218,MATCH($B95,'Disaggregation1B_Import-Export'!$C$8:$C$218,0)),\"\")","v":""},{"$f":"IFERROR(INDEX('Disaggregation1B_Import-Export'!AF$8:AF$235,MATCH($B95,'Disaggregation1B_Import-Export'!$C$8:$C$235,0)),\"\")","v":""},{"$f":"IFERROR(IF(INDEX('Disaggregation1B_Import-Export'!AG$8:AG$218,MATCH($B95,'Disaggregation1B_Import-Export'!$C$8:$C$218,0))=\"\",\"\",INDEX('Disaggregation1B_Import-Export'!AG$8:AG$218,MATCH($B95,'Disaggregation1B_Import-Export'!$C$8:$C$218,0))),\"\")","v":""},{"$f":"IFERROR(IF(INDEX('Disaggregation1B_Import-Export'!AH$8:AH$218,MATCH($B95,'Disaggregation1B_Import-Export'!$C$8:$C$218,0))=\"\",\"\",INDEX('Disaggregation1B_Import-Export'!AH$8:AH$218,MATCH($B95,'Disaggregation1B_Import-Export'!$C$8:$C$218,0))),\"\")","v":""},{"$f":"IFERROR(IF(INDEX('Disaggregation1B_Import-Export'!H$8:H$218,MATCH($B95,'Disaggregation1B_Import-Export'!$C$8:$C$218,0))=\"\",\"\",INDEX('Disaggregation1B_Import-Export'!H$8:H$218,MATCH($B95,'Disaggregation1B_Import-Export'!$C$8:$C$218,0))),\"\")","v":""},{"$f":"IFERROR(IF(INDEX('Disaggregation1B_Import-Export'!I$8:I$218,MATCH($B95,'Disaggregation1B_Import-Export'!$C$8:$C$218,0))=\"\",\"\",INDEX('Disaggregation1B_Import-Export'!I$8:I$218,MATCH($B95,'Disaggregation1B_Import-Export'!$C$8:$C$218,0))),\"\")","v":""},{"$f":"IFERROR(IF(INDEX('Disaggregation1B_Import-Export'!J$8:J$218,MATCH($B95,'Disaggregation1B_Import-Export'!$C$8:$C$218,0))=\"\",\"\",INDEX('Disaggregation1B_Import-Export'!J$8:J$218,MATCH($B95,'Disaggregation1B_Import-Export'!$C$8:$C$218,0))),\"\")","v":""},{"$f":"IFERROR(IF(INDEX('Disaggregation1B_Import-Export'!K$8:K$218,MATCH($B95,'Disaggregation1B_Import-Export'!$C$8:$C$218,0))=\"\",\"\",INDEX('Disaggregation1B_Import-Export'!K$8:K$218,MATCH($B95,'Disaggregation1B_Import-Export'!$C$8:$C$218,0))),\"\")","v":""},{"$f":"IFERROR(IF(INDEX('Disaggregation1B_Import-Export'!L$8:L$218,MATCH($B95,'Disaggregation1B_Import-Export'!$C$8:$C$218,0))=\"\",\"\",INDEX('Disaggregation1B_Import-Export'!L$8:L$218,MATCH($B95,'Disaggregation1B_Import-Export'!$C$8:$C$218,0))),\"\")","v":""},{"$f":"IFERROR(IF(INDEX('Disaggregation1B_Import-Export'!AQ$8:AQ$218,MATCH($B95,'Disaggregation1B_Import-Export'!$C$8:$C$218,0))=\"\",\"\",INDEX('Disaggregation1B_Import-Export'!AQ$8:AQ$218,MATCH($B95,'Disaggregation1B_Import-Export'!$C$8:$C$218,0))),\"\")","v":""},null,null,"",null,null,null,null,null,"",null,null,null,null,null,""]
[86,"Coverage86",{"$f":"IFERROR(INDEX('Disaggregation1B_Import-Export'!D$8:D$218,MATCH($B96,'Disaggregation1B_Import-Export'!$C$8:$C$218,0)),\"\")","v":""},{"$f":"IFERROR(INDEX('Disaggregation1B_Import-Export'!AF$8:AF$235,MATCH($B96,'Disaggregation1B_Import-Export'!$C$8:$C$235,0)),\"\")","v":""},{"$f":"IFERROR(IF(INDEX('Disaggregation1B_Import-Export'!AG$8:AG$218,MATCH($B96,'Disaggregation1B_Import-Export'!$C$8:$C$218,0))=\"\",\"\",INDEX('Disaggregation1B_Import-Export'!AG$8:AG$218,MATCH($B96,'Disaggregation1B_Import-Export'!$C$8:$C$218,0))),\"\")","v":""},{"$f":"IFERROR(IF(INDEX('Disaggregation1B_Import-Export'!AH$8:AH$218,MATCH($B96,'Disaggregation1B_Import-Export'!$C$8:$C$218,0))=\"\",\"\",INDEX('Disaggregation1B_Import-Export'!AH$8:AH$218,MATCH($B96,'Disaggregation1B_Import-Export'!$C$8:$C$218,0))),\"\")","v":""},{"$f":"IFERROR(IF(INDEX('Disaggregation1B_Import-Export'!H$8:H$218,MATCH($B96,'Disaggregation1B_Import-Export'!$C$8:$C$218,0))=\"\",\"\",INDEX('Disaggregation1B_Import-Export'!H$8:H$218,MATCH($B96,'Disaggregation1B_Import-Export'!$C$8:$C$218,0))),\"\")","v":""},{"$f":"IFERROR(IF(INDEX('Disaggregation1B_Import-Export'!I$8:I$218,MATCH($B96,'Disaggregation1B_Import-Export'!$C$8:$C$218,0))=\"\",\"\",INDEX('Disaggregation1B_Import-Export'!I$8:I$218,MATCH($B96,'Disaggregation1B_Import-Export'!$C$8:$C$218,0))),\"\")","v":""},{"$f":"IFERROR(IF(INDEX('Disaggregation1B_Import-Export'!J$8:J$218,MATCH($B96,'Disaggregation1B_Import-Export'!$C$8:$C$218,0))=\"\",\"\",INDEX('Disaggregation1B_Import-Export'!J$8:J$218,MATCH($B96,'Disaggregation1B_Import-Export'!$C$8:$C$218,0))),\"\")","v":""},{"$f":"IFERROR(IF(INDEX('Disaggregation1B_Import-Export'!K$8:K$218,MATCH($B96,'Disaggregation1B_Import-Export'!$C$8:$C$218,0))=\"\",\"\",INDEX('Disaggregation1B_Import-Export'!K$8:K$218,MATCH($B96,'Disaggregation1B_Import-Export'!$C$8:$C$218,0))),\"\")","v":""},{"$f":"IFERROR(IF(INDEX('Disaggregation1B_Import-Export'!L$8:L$218,MATCH($B96,'Disaggregation1B_Import-Export'!$C$8:$C$218,0))=\"\",\"\",INDEX('Disaggregation1B_Import-Export'!L$8:L$218,MATCH($B96,'Disaggregation1B_Import-Export'!$C$8:$C$218,0))),\"\")","v":""},{"$f":"IFERROR(IF(INDEX('Disaggregation1B_Import-Export'!AQ$8:AQ$218,MATCH($B96,'Disaggregation1B_Import-Export'!$C$8:$C$218,0))=\"\",\"\",INDEX('Disaggregation1B_Import-Export'!AQ$8:AQ$218,MATCH($B96,'Disaggregation1B_Import-Export'!$C$8:$C$218,0))),\"\")","v":""},null,null,"",null,null,null,null,null,"",null,null,null,null,null,""]
[87,"Coverage87",{"$f":"IFERROR(INDEX('Disaggregation1B_Import-Export'!D$8:D$218,MATCH($B97,'Disaggregation1B_Import-Export'!$C$8:$C$218,0)),\"\")","v":""},{"$f":"IFERROR(INDEX('Disaggregation1B_Import-Export'!AF$8:AF$235,MATCH($B97,'Disaggregation1B_Import-Export'!$C$8:$C$235,0)),\"\")","v":""},{"$f":"IFERROR(IF(INDEX('Disaggregation1B_Import-Export'!AG$8:AG$218,MATCH($B97,'Disaggregation1B_Import-Export'!$C$8:$C$218,0))=\"\",\"\",INDEX('Disaggregation1B_Import-Export'!AG$8:AG$218,MATCH($B97,'Disaggregation1B_Import-Export'!$C$8:$C$218,0))),\"\")","v":""},{"$f":"IFERROR(IF(INDEX('Disaggregation1B_Import-Export'!AH$8:AH$218,MATCH($B97,'Disaggregation1B_Import-Export'!$C$8:$C$218,0))=\"\",\"\",INDEX('Disaggregation1B_Import-Export'!AH$8:AH$218,MATCH($B97,'Disaggregation1B_Import-Export'!$C$8:$C$218,0))),\"\")","v":""},{"$f":"IFERROR(IF(INDEX('Disaggregation1B_Import-Export'!H$8:H$218,MATCH($B97,'Disaggregation1B_Import-Export'!$C$8:$C$218,0))=\"\",\"\",INDEX('Disaggregation1B_Import-Export'!H$8:H$218,MATCH($B97,'Disaggregation1B_Import-Export'!$C$8:$C$218,0))),\"\")","v":""},{"$f":"IFERROR(IF(INDEX('Disaggregation1B_Import-Export'!I$8:I$218,MATCH($B97,'Disaggregation1B_Import-Export'!$C$8:$C$218,0))=\"\",\"\",INDEX('Disaggregation1B_Import-Export'!I$8:I$218,MATCH($B97,'Disaggregation1B_Import-Export'!$C$8:$C$218,0))),\"\")","v":""},{"$f":"IFERROR(IF(INDEX('Disaggregation1B_Import-Export'!J$8:J$218,MATCH($B97,'Disaggregation1B_Import-Export'!$C$8:$C$218,0))=\"\",\"\",INDEX('Disaggregation1B_Import-Export'!J$8:J$218,MATCH($B97,'Disaggregation1B_Import-Export'!$C$8:$C$218,0))),\"\")","v":""},{"$f":"IFERROR(IF(INDEX('Disaggregation1B_Import-Export'!K$8:K$218,MATCH($B97,'Disaggregation1B_Import-Export'!$C$8:$C$218,0))=\"\",\"\",INDEX('Disaggregation1B_Import-Export'!K$8:K$218,MATCH($B97,'Disaggregation1B_Import-Export'!$C$8:$C$218,0))),\"\")","v":""},{"$f":"IFERROR(IF(INDEX('Disaggregation1B_Import-Export'!L$8:L$218,MATCH($B97,'Disaggregation1B_Import-Export'!$C$8:$C$218,0))=\"\",\"\",INDEX('Disaggregation1B_Import-Export'!L$8:L$218,MATCH($B97,'Disaggregation1B_Import-Export'!$C$8:$C$218,0))),\"\")","v":""},{"$f":"IFERROR(IF(INDEX('Disaggregation1B_Import-Export'!AQ$8:AQ$218,MATCH($B97,'Disaggregation1B_Import-Export'!$C$8:$C$218,0))=\"\",\"\",INDEX('Disaggregation1B_Import-Export'!AQ$8:AQ$218,MATCH($B97,'Disaggregation1B_Import-Export'!$C$8:$C$218,0))),\"\")","v":""},null,null,"",null,null,null,null,null,"",null,null,null,null,null,""]
[88,"Coverage88",{"$f":"IFERROR(INDEX('Disaggregation1B_Import-Export'!D$8:D$218,MATCH($B98,'Disaggregation1B_Import-Export'!$C$8:$C$218,0)),\"\")","v":""},{"$f":"IFERROR(INDEX('Disaggregation1B_Import-Export'!AF$8:AF$235,MATCH($B98,'Disaggregation1B_Import-Export'!$C$8:$C$235,0)),\"\")","v":""},{"$f":"IFERROR(IF(INDEX('Disaggregation1B_Import-Export'!AG$8:AG$218,MATCH($B98,'Disaggregation1B_Import-Export'!$C$8:$C$218,0))=\"\",\"\",INDEX('Disaggregation1B_Import-Export'!AG$8:AG$218,MATCH($B98,'Disaggregation1B_Import-Export'!$C$8:$C$218,0))),\"\")","v":""},{"$f":"IFERROR(IF(INDEX('Disaggregation1B_Import-Export'!AH$8:AH$218,MATCH($B98,'Disaggregation1B_Import-Export'!$C$8:$C$218,0))=\"\",\"\",INDEX('Disaggregation1B_Import-Export'!AH$8:AH$218,MATCH($B98,'Disaggregation1B_Import-Export'!$C$8:$C$218,0))),\"\")","v":""},{"$f":"IFERROR(IF(INDEX('Disaggregation1B_Import-Export'!H$8:H$218,MATCH($B98,'Disaggregation1B_Import-Export'!$C$8:$C$218,0))=\"\",\"\",INDEX('Disaggregation1B_Import-Export'!H$8:H$218,MATCH($B98,'Disaggregation1B_Import-Export'!$C$8:$C$218,0))),\"\")","v":""},{"$f":"IFERROR(IF(INDEX('Disaggregation1B_Import-Export'!I$8:I$218,MATCH($B98,'Disaggregation1B_Import-Export'!$C$8:$C$218,0))=\"\",\"\",INDEX('Disaggregation1B_Import-Export'!I$8:I$218,MATCH($B98,'Disaggregation1B_Import-Export'!$C$8:$C$218,0))),\"\")","v":""},{"$f":"IFERROR(IF(INDEX('Disaggregation1B_Import-Export'!J$8:J$218,MATCH($B98,'Disaggregation1B_Import-Export'!$C$8:$C$218,0))=\"\",\"\",INDEX('Disaggregation1B_Import-Export'!J$8:J$218,MATCH($B98,'Disaggregation1B_Import-Export'!$C$8:$C$218,0))),\"\")","v":""},{"$f":"IFERROR(IF(INDEX('Disaggregation1B_Import-Export'!K$8:K$218,MATCH($B98,'Disaggregation1B_Import-Export'!$C$8:$C$218,0))=\"\",\"\",INDEX('Disaggregation1B_Import-Export'!K$8:K$218,MATCH($B98,'Disaggregation1B_Import-Export'!$C$8:$C$218,0))),\"\")","v":""},{"$f":"IFERROR(IF(INDEX('Disaggregation1B_Import-Export'!L$8:L$218,MATCH($B98,'Disaggregation1B_Import-Export'!$C$8:$C$218,0))=\"\",\"\",INDEX('Disaggregation1B_Import-Export'!L$8:L$218,MATCH($B98,'Disaggregation1B_Import-Export'!$C$8:$C$218,0))),\"\")","v":""},{"$f":"IFERROR(IF(INDEX('Disaggregation1B_Import-Export'!AQ$8:AQ$218,MATCH($B98,'Disaggregation1B_Import-Export'!$C$8:$C$218,0))=\"\",\"\",INDEX('Disaggregation1B_Import-Export'!AQ$8:AQ$218,MATCH($B98,'Disaggregation1B_Import-Export'!$C$8:$C$218,0))),\"\")","v":""},null,null,"",null,null,null,null,null,"",null,null,null,null,null,""]
[89,"Coverage89",{"$f":"IFERROR(INDEX('Disaggregation1B_Import-Export'!D$8:D$218,MATCH($B99,'Disaggregation1B_Import-Export'!$C$8:$C$218,0)),\"\")","v":""},{"$f":"IFERROR(INDEX('Disaggregation1B_Import-Export'!AF$8:AF$235,MATCH($B99,'Disaggregation1B_Import-Export'!$C$8:$C$235,0)),\"\")","v":""},{"$f":"IFERROR(IF(INDEX('Disaggregation1B_Import-Export'!AG$8:AG$218,MATCH($B99,'Disaggregation1B_Import-Export'!$C$8:$C$218,0))=\"\",\"\",INDEX('Disaggregation1B_Import-Export'!AG$8:AG$218,MATCH($B99,'Disaggregation1B_Import-Export'!$C$8:$C$218,0))),\"\")","v":""},{"$f":"IFERROR(IF(INDEX('Disaggregation1B_Import-Export'!AH$8:AH$218,MATCH($B99,'Disaggregation1B_Import-Export'!$C$8:$C$218,0))=\"\",\"\",INDEX('Disaggregation1B_Import-Export'!AH$8:AH$218,MATCH($B99,'Disaggregation1B_Import-Export'!$C$8:$C$218,0))),\"\")","v":""},{"$f":"IFERROR(IF(INDEX('Disaggregation1B_Import-Export'!H$8:H$218,MATCH($B99,'Disaggregation1B_Import-Export'!$C$8:$C$218,0))=\"\",\"\",INDEX('Disaggregation1B_Import-Export'!H$8:H$218,MATCH($B99,'Disaggregation1B_Import-Export'!$C$8:$C$218,0))),\"\")","v":""},{"$f":"IFERROR(IF(INDEX('Disaggregation1B_Import-Export'!I$8:I$218,MATCH($B99,'Disaggregation1B_Import-Export'!$C$8:$C$218,0))=\"\",\"\",INDEX('Disaggregation1B_Import-Export'!I$8:I$218,MATCH($B99,'Disaggregation1B_Import-Export'!$C$8:$C$218,0))),\"\")","v":""},{"$f":"IFERROR(IF(INDEX('Disaggregation1B_Import-Export'!J$8:J$218,MATCH($B99,'Disaggregation1B_Import-Export'!$C$8:$C$218,0))=\"\",\"\",INDEX('Disaggregation1B_Import-Export'!J$8:J$218,MATCH($B99,'Disaggregation1B_Import-Export'!$C$8:$C$218,0))),\"\")","v":""},{"$f":"IFERROR(IF(INDEX('Disaggregation1B_Import-Export'!K$8:K$218,MATCH($B99,'Disaggregation1B_Import-Export'!$C$8:$C$218,0))=\"\",\"\",INDEX('Disaggregation1B_Import-Export'!K$8:K$218,MATCH($B99,'Disaggregation1B_Import-Export'!$C$8:$C$218,0))),\"\")","v":""},{"$f":"IFERROR(IF(INDEX('Disaggregation1B_Import-Export'!L$8:L$218,MATCH($B99,'Disaggregation1B_Import-Export'!$C$8:$C$218,0))=\"\",\"\",INDEX('Disaggregation1B_Import-Export'!L$8:L$218,MATCH($B99,'Disaggregation1B_Import-Export'!$C$8:$C$218,0))),\"\")","v":""},{"$f":"IFERROR(IF(INDEX('Disaggregation1B_Import-Export'!AQ$8:AQ$218,MATCH($B99,'Disaggregation1B_Import-Export'!$C$8:$C$218,0))=\"\",\"\",INDEX('Disaggregation1B_Import-Export'!AQ$8:AQ$218,MATCH($B99,'Disaggregation1B_Import-Export'!$C$8:$C$218,0))),\"\")","v":""},null,null,"",null,null,null,null,null,"",null,null,null,null,null,""]
[90,"Coverage90",{"$f":"IFERROR(INDEX('Disaggregation1B_Import-Export'!D$8:D$218,MATCH($B100,'Disaggregation1B_Import-Export'!$C$8:$C$218,0)),\"\")","v":""},{"$f":"IFERROR(INDEX('Disaggregation1B_Import-Export'!AF$8:AF$235,MATCH($B100,'Disaggregation1B_Import-Export'!$C$8:$C$235,0)),\"\")","v":""},{"$f":"IFERROR(IF(INDEX('Disaggregation1B_Import-Export'!AG$8:AG$218,MATCH($B100,'Disaggregation1B_Import-Export'!$C$8:$C$218,0))=\"\",\"\",INDEX('Disaggregation1B_Import-Export'!AG$8:AG$218,MATCH($B100,'Disaggregation1B_Import-Export'!$C$8:$C$218,0))),\"\")","v":""},{"$f":"IFERROR(IF(INDEX('Disaggregation1B_Import-Export'!AH$8:AH$218,MATCH($B100,'Disaggregation1B_Import-Export'!$C$8:$C$218,0))=\"\",\"\",INDEX('Disaggregation1B_Import-Export'!AH$8:AH$218,MATCH($B100,'Disaggregation1B_Import-Export'!$C$8:$C$218,0))),\"\")","v":""},{"$f":"IFERROR(IF(INDEX('Disaggregation1B_Import-Export'!H$8:H$218,MATCH($B100,'Disaggregation1B_Import-Export'!$C$8:$C$218,0))=\"\",\"\",INDEX('Disaggregation1B_Import-Export'!H$8:H$218,MATCH($B100,'Disaggregation1B_Import-Export'!$C$8:$C$218,0))),\"\")","v":""},{"$f":"IFERROR(IF(INDEX('Disaggregation1B_Import-Export'!I$8:I$218,MATCH($B100,'Disaggregation1B_Import-Export'!$C$8:$C$218,0))=\"\",\"\",INDEX('Disaggregation1B_Import-Export'!I$8:I$218,MATCH($B100,'Disaggregation1B_Import-Export'!$C$8:$C$218,0))),\"\")","v":""},{"$f":"IFERROR(IF(INDEX('Disaggregation1B_Import-Export'!J$8:J$218,MATCH($B100,'Disaggregation1B_Import-Export'!$C$8:$C$218,0))=\"\",\"\",INDEX('Disaggregation1B_Import-Export'!J$8:J$218,MATCH($B100,'Disaggregation1B_Import-Export'!$C$8:$C$218,0))),\"\")","v":""},{"$f":"IFERROR(IF(INDEX('Disaggregation1B_Import-Export'!K$8:K$218,MATCH($B100,'Disaggregation1B_Import-Export'!$C$8:$C$218,0))=\"\",\"\",INDEX('Disaggregation1B_Import-Export'!K$8:K$218,MATCH($B100,'Disaggregation1B_Import-Export'!$C$8:$C$218,0))),\"\")","v":""},{"$f":"IFERROR(IF(INDEX('Disaggregation1B_Import-Export'!L$8:L$218,MATCH($B100,'Disaggregation1B_Import-Export'!$C$8:$C$218,0))=\"\",\"\",INDEX('Disaggregation1B_Import-Export'!L$8:L$218,MATCH($B100,'Disaggregation1B_Import-Export'!$C$8:$C$218,0))),\"\")","v":""},{"$f":"IFERROR(IF(INDEX('Disaggregation1B_Import-Export'!AQ$8:AQ$218,MATCH($B100,'Disaggregation1B_Import-Export'!$C$8:$C$218,0))=\"\",\"\",INDEX('Disaggregation1B_Import-Export'!AQ$8:AQ$218,MATCH($B100,'Disaggregation1B_Import-Export'!$C$8:$C$218,0))),\"\")","v":""},null,null,"",null,null,null,null,null,"",null,null,null,null,null,""]
[91,"Coverage91",{"$f":"IFERROR(INDEX('Disaggregation1B_Import-Export'!D$8:D$218,MATCH($B101,'Disaggregation1B_Import-Export'!$C$8:$C$218,0)),\"\")","v":""},{"$f":"IFERROR(INDEX('Disaggregation1B_Import-Export'!AF$8:AF$235,MATCH($B101,'Disaggregation1B_Import-Export'!$C$8:$C$235,0)),\"\")","v":""},{"$f":"IFERROR(IF(INDEX('Disaggregation1B_Import-Export'!AG$8:AG$218,MATCH($B101,'Disaggregation1B_Import-Export'!$C$8:$C$218,0))=\"\",\"\",INDEX('Disaggregation1B_Import-Export'!AG$8:AG$218,MATCH($B101,'Disaggregation1B_Import-Export'!$C$8:$C$218,0))),\"\")","v":""},{"$f":"IFERROR(IF(INDEX('Disaggregation1B_Import-Export'!AH$8:AH$218,MATCH($B101,'Disaggregation1B_Import-Export'!$C$8:$C$218,0))=\"\",\"\",INDEX('Disaggregation1B_Import-Export'!AH$8:AH$218,MATCH($B101,'Disaggregation1B_Import-Export'!$C$8:$C$218,0))),\"\")","v":""},{"$f":"IFERROR(IF(INDEX('Disaggregation1B_Import-Export'!H$8:H$218,MATCH($B101,'Disaggregation1B_Import-Export'!$C$8:$C$218,0))=\"\",\"\",INDEX('Disaggregation1B_Import-Export'!H$8:H$218,MATCH($B101,'Disaggregation1B_Import-Export'!$C$8:$C$218,0))),\"\")","v":""},{"$f":"IFERROR(IF(INDEX('Disaggregation1B_Import-Export'!I$8:I$218,MATCH($B101,'Disaggregation1B_Import-Export'!$C$8:$C$218,0))=\"\",\"\",INDEX('Disaggregation1B_Import-Export'!I$8:I$218,MATCH($B101,'Disaggregation1B_Import-Export'!$C$8:$C$218,0))),\"\")","v":""},{"$f":"IFERROR(IF(INDEX('Disaggregation1B_Import-Export'!J$8:J$218,MATCH($B101,'Disaggregation1B_Import-Export'!$C$8:$C$218,0))=\"\",\"\",INDEX('Disaggregation1B_Import-Export'!J$8:J$218,MATCH($B101,'Disaggregation1B_Import-Export'!$C$8:$C$218,0))),\"\")","v":""},{"$f":"IFERROR(IF(INDEX('Disaggregation1B_Import-Export'!K$8:K$218,MATCH($B101,'Disaggregation1B_Import-Export'!$C$8:$C$218,0))=\"\",\"\",INDEX('Disaggregation1B_Import-Export'!K$8:K$218,MATCH($B101,'Disaggregation1B_Import-Export'!$C$8:$C$218,0))),\"\")","v":""},{"$f":"IFERROR(IF(INDEX('Disaggregation1B_Import-Export'!L$8:L$218,MATCH($B101,'Disaggregation1B_Import-Export'!$C$8:$C$218,0))=\"\",\"\",INDEX('Disaggregation1B_Import-Export'!L$8:L$218,MATCH($B101,'Disaggregation1B_Import-Export'!$C$8:$C$218,0))),\"\")","v":""},{"$f":"IFERROR(IF(INDEX('Disaggregation1B_Import-Export'!AQ$8:AQ$218,MATCH($B101,'Disaggregation1B_Import-Export'!$C$8:$C$218,0))=\"\",\"\",INDEX('Disaggregation1B_Import-Export'!AQ$8:AQ$218,MATCH($B101,'Disaggregation1B_Import-Export'!$C$8:$C$218,0))),\"\")","v":""},null,null,"",null,null,null,null,null,"",null,null,null,null,null,""]
[92,"Coverage92",{"$f":"IFERROR(INDEX('Disaggregation1B_Import-Export'!D$8:D$218,MATCH($B102,'Disaggregation1B_Import-Export'!$C$8:$C$218,0)),\"\")","v":""},{"$f":"IFERROR(INDEX('Disaggregation1B_Import-Export'!AF$8:AF$235,MATCH($B102,'Disaggregation1B_Import-Export'!$C$8:$C$235,0)),\"\")","v":""},{"$f":"IFERROR(IF(INDEX('Disaggregation1B_Import-Export'!AG$8:AG$218,MATCH($B102,'Disaggregation1B_Import-Export'!$C$8:$C$218,0))=\"\",\"\",INDEX('Disaggregation1B_Import-Export'!AG$8:AG$218,MATCH($B102,'Disaggregation1B_Import-Export'!$C$8:$C$218,0))),\"\")","v":""},{"$f":"IFERROR(IF(INDEX('Disaggregation1B_Import-Export'!AH$8:AH$218,MATCH($B102,'Disaggregation1B_Import-Export'!$C$8:$C$218,0))=\"\",\"\",INDEX('Disaggregation1B_Import-Export'!AH$8:AH$218,MATCH($B102,'Disaggregation1B_Import-Export'!$C$8:$C$218,0))),\"\")","v":""},{"$f":"IFERROR(IF(INDEX('Disaggregation1B_Import-Export'!H$8:H$218,MATCH($B102,'Disaggregation1B_Import-Export'!$C$8:$C$218,0))=\"\",\"\",INDEX('Disaggregation1B_Import-Export'!H$8:H$218,MATCH($B102,'Disaggregation1B_Import-Export'!$C$8:$C$218,0))),\"\")","v":""},{"$f":"IFERROR(IF(INDEX('Disaggregation1B_Import-Export'!I$8:I$218,MATCH($B102,'Disaggregation1B_Import-Export'!$C$8:$C$218,0))=\"\",\"\",INDEX('Disaggregation1B_Import-Export'!I$8:I$218,MATCH($B102,'Disaggregation1B_Import-Export'!$C$8:$C$218,0))),\"\")","v":""},{"$f":"IFERROR(IF(INDEX('Disaggregation1B_Import-Export'!J$8:J$218,MATCH($B102,'Disaggregation1B_Import-Export'!$C$8:$C$218,0))=\"\",\"\",INDEX('Disaggregation1B_Import-Export'!J$8:J$218,MATCH($B102,'Disaggregation1B_Import-Export'!$C$8:$C$218,0))),\"\")","v":""},{"$f":"IFERROR(IF(INDEX('Disaggregation1B_Import-Export'!K$8:K$218,MATCH($B102,'Disaggregation1B_Import-Export'!$C$8:$C$218,0))=\"\",\"\",INDEX('Disaggregation1B_Import-Export'!K$8:K$218,MATCH($B102,'Disaggregation1B_Import-Export'!$C$8:$C$218,0))),\"\")","v":""},{"$f":"IFERROR(IF(INDEX('Disaggregation1B_Import-Export'!L$8:L$218,MATCH($B102,'Disaggregation1B_Import-Export'!$C$8:$C$218,0))=\"\",\"\",INDEX('Disaggregation1B_Import-Export'!L$8:L$218,MATCH($B102,'Disaggregation1B_Import-Export'!$C$8:$C$218,0))),\"\")","v":""},{"$f":"IFERROR(IF(INDEX('Disaggregation1B_Import-Export'!AQ$8:AQ$218,MATCH($B102,'Disaggregation1B_Import-Export'!$C$8:$C$218,0))=\"\",\"\",INDEX('Disaggregation1B_Import-Export'!AQ$8:AQ$218,MATCH($B102,'Disaggregation1B_Import-Export'!$C$8:$C$218,0))),\"\")","v":""},null,null,"",null,null,null,null,null,"",null,null,null,null,null,""]
[93,"Coverage93",{"$f":"IFERROR(INDEX('Disaggregation1B_Import-Export'!D$8:D$218,MATCH($B103,'Disaggregation1B_Import-Export'!$C$8:$C$218,0)),\"\")","v":""},{"$f":"IFERROR(INDEX('Disaggregation1B_Import-Export'!AF$8:AF$235,MATCH($B103,'Disaggregation1B_Import-Export'!$C$8:$C$235,0)),\"\")","v":""},{"$f":"IFERROR(IF(INDEX('Disaggregation1B_Import-Export'!AG$8:AG$218,MATCH($B103,'Disaggregation1B_Import-Export'!$C$8:$C$218,0))=\"\",\"\",INDEX('Disaggregation1B_Import-Export'!AG$8:AG$218,MATCH($B103,'Disaggregation1B_Import-Export'!$C$8:$C$218,0))),\"\")","v":""},{"$f":"IFERROR(IF(INDEX('Disaggregation1B_Import-Export'!AH$8:AH$218,MATCH($B103,'Disaggregation1B_Import-Export'!$C$8:$C$218,0))=\"\",\"\",INDEX('Disaggregation1B_Import-Export'!AH$8:AH$218,MATCH($B103,'Disaggregation1B_Import-Export'!$C$8:$C$218,0))),\"\")","v":""},{"$f":"IFERROR(IF(INDEX('Disaggregation1B_Import-Export'!H$8:H$218,MATCH($B103,'Disaggregation1B_Import-Export'!$C$8:$C$218,0))=\"\",\"\",INDEX('Disaggregation1B_Import-Export'!H$8:H$218,MATCH($B103,'Disaggregation1B_Import-Export'!$C$8:$C$218,0))),\"\")","v":""},{"$f":"IFERROR(IF(INDEX('Disaggregation1B_Import-Export'!I$8:I$218,MATCH($B103,'Disaggregation1B_Import-Export'!$C$8:$C$218,0))=\"\",\"\",INDEX('Disaggregation1B_Import-Export'!I$8:I$218,MATCH($B103,'Disaggregation1B_Import-Export'!$C$8:$C$218,0))),\"\")","v":""},{"$f":"IFERROR(IF(INDEX('Disaggregation1B_Import-Export'!J$8:J$218,MATCH($B103,'Disaggregation1B_Import-Export'!$C$8:$C$218,0))=\"\",\"\",INDEX('Disaggregation1B_Import-Export'!J$8:J$218,MATCH($B103,'Disaggregation1B_Import-Export'!$C$8:$C$218,0))),\"\")","v":""},{"$f":"IFERROR(IF(INDEX('Disaggregation1B_Import-Export'!K$8:K$218,MATCH($B103,'Disaggregation1B_Import-Export'!$C$8:$C$218,0))=\"\",\"\",INDEX('Disaggregation1B_Import-Export'!K$8:K$218,MATCH($B103,'Disaggregation1B_Import-Export'!$C$8:$C$218,0))),\"\")","v":""},{"$f":"IFERROR(IF(INDEX('Disaggregation1B_Import-Export'!L$8:L$218,MATCH($B103,'Disaggregation1B_Import-Export'!$C$8:$C$218,0))=\"\",\"\",INDEX('Disaggregation1B_Import-Export'!L$8:L$218,MATCH($B103,'Disaggregation1B_Import-Export'!$C$8:$C$218,0))),\"\")","v":""},{"$f":"IFERROR(IF(INDEX('Disaggregation1B_Import-Export'!AQ$8:AQ$218,MATCH($B103,'Disaggregation1B_Import-Export'!$C$8:$C$218,0))=\"\",\"\",INDEX('Disaggregation1B_Import-Export'!AQ$8:AQ$218,MATCH($B103,'Disaggregation1B_Import-Export'!$C$8:$C$218,0))),\"\")","v":""},null,null,"",null,null,null,null,null,"",null,null,null,null,null,""]
[94,"Coverage94",{"$f":"IFERROR(INDEX('Disaggregation1B_Import-Export'!D$8:D$218,MATCH($B104,'Disaggregation1B_Import-Export'!$C$8:$C$218,0)),\"\")","v":""},{"$f":"IFERROR(INDEX('Disaggregation1B_Import-Export'!AF$8:AF$235,MATCH($B104,'Disaggregation1B_Import-Export'!$C$8:$C$235,0)),\"\")","v":""},{"$f":"IFERROR(IF(INDEX('Disaggregation1B_Import-Export'!AG$8:AG$218,MATCH($B104,'Disaggregation1B_Import-Export'!$C$8:$C$218,0))=\"\",\"\",INDEX('Disaggregation1B_Import-Export'!AG$8:AG$218,MATCH($B104,'Disaggregation1B_Import-Export'!$C$8:$C$218,0))),\"\")","v":""},{"$f":"IFERROR(IF(INDEX('Disaggregation1B_Import-Export'!AH$8:AH$218,MATCH($B104,'Disaggregation1B_Import-Export'!$C$8:$C$218,0))=\"\",\"\",INDEX('Disaggregation1B_Import-Export'!AH$8:AH$218,MATCH($B104,'Disaggregation1B_Import-Export'!$C$8:$C$218,0))),\"\")","v":""},{"$f":"IFERROR(IF(INDEX('Disaggregation1B_Import-Export'!H$8:H$218,MATCH($B104,'Disaggregation1B_Import-Export'!$C$8:$C$218,0))=\"\",\"\",INDEX('Disaggregation1B_Import-Export'!H$8:H$218,MATCH($B104,'Disaggregation1B_Import-Export'!$C$8:$C$218,0))),\"\")","v":""},{"$f":"IFERROR(IF(INDEX('Disaggregation1B_Import-Export'!I$8:I$218,MATCH($B104,'Disaggregation1B_Import-Export'!$C$8:$C$218,0))=\"\",\"\",INDEX('Disaggregation1B_Import-Export'!I$8:I$218,MATCH($B104,'Disaggregation1B_Import-Export'!$C$8:$C$218,0))),\"\")","v":""},{"$f":"IFERROR(IF(INDEX('Disaggregation1B_Import-Export'!J$8:J$218,MATCH($B104,'Disaggregation1B_Import-Export'!$C$8:$C$218,0))=\"\",\"\",INDEX('Disaggregation1B_Import-Export'!J$8:J$218,MATCH($B104,'Disaggregation1B_Import-Export'!$C$8:$C$218,0))),\"\")","v":""},{"$f":"IFERROR(IF(INDEX('Disaggregation1B_Import-Export'!K$8:K$218,MATCH($B104,'Disaggregation1B_Import-Export'!$C$8:$C$218,0))=\"\",\"\",INDEX('Disaggregation1B_Import-Export'!K$8:K$218,MATCH($B104,'Disaggregation1B_Import-Export'!$C$8:$C$218,0))),\"\")","v":""},{"$f":"IFERROR(IF(INDEX('Disaggregation1B_Import-Export'!L$8:L$218,MATCH($B104,'Disaggregation1B_Import-Export'!$C$8:$C$218,0))=\"\",\"\",INDEX('Disaggregation1B_Import-Export'!L$8:L$218,MATCH($B104,'Disaggregation1B_Import-Export'!$C$8:$C$218,0))),\"\")","v":""},{"$f":"IFERROR(IF(INDEX('Disaggregation1B_Import-Export'!AQ$8:AQ$218,MATCH($B104,'Disaggregation1B_Import-Export'!$C$8:$C$218,0))=\"\",\"\",INDEX('Disaggregation1B_Import-Export'!AQ$8:AQ$218,MATCH($B104,'Disaggregation1B_Import-Export'!$C$8:$C$218,0))),\"\")","v":""},null,null,"",null,null,null,null,null,"",null,null,null,null,null,""]
[95,"Coverage95",{"$f":"IFERROR(INDEX('Disaggregation1B_Import-Export'!D$8:D$218,MATCH($B105,'Disaggregation1B_Import-Export'!$C$8:$C$218,0)),\"\")","v":""},{"$f":"IFERROR(INDEX('Disaggregation1B_Import-Export'!AF$8:AF$235,MATCH($B105,'Disaggregation1B_Import-Export'!$C$8:$C$235,0)),\"\")","v":""},{"$f":"IFERROR(IF(INDEX('Disaggregation1B_Import-Export'!AG$8:AG$218,MATCH($B105,'Disaggregation1B_Import-Export'!$C$8:$C$218,0))=\"\",\"\",INDEX('Disaggregation1B_Import-Export'!AG$8:AG$218,MATCH($B105,'Disaggregation1B_Import-Export'!$C$8:$C$218,0))),\"\")","v":""},{"$f":"IFERROR(IF(INDEX('Disaggregation1B_Import-Export'!AH$8:AH$218,MATCH($B105,'Disaggregation1B_Import-Export'!$C$8:$C$218,0))=\"\",\"\",INDEX('Disaggregation1B_Import-Export'!AH$8:AH$218,MATCH($B105,'Disaggregation1B_Import-Export'!$C$8:$C$218,0))),\"\")","v":""},{"$f":"IFERROR(IF(INDEX('Disaggregation1B_Import-Export'!H$8:H$218,MATCH($B105,'Disaggregation1B_Import-Export'!$C$8:$C$218,0))=\"\",\"\",INDEX('Disaggregation1B_Import-Export'!H$8:H$218,MATCH($B105,'Disaggregation1B_Import-Export'!$C$8:$C$218,0))),\"\")","v":""},{"$f":"IFERROR(IF(INDEX('Disaggregation1B_Import-Export'!I$8:I$218,MATCH($B105,'Disaggregation1B_Import-Export'!$C$8:$C$218,0))=\"\",\"\",INDEX('Disaggregation1B_Import-Export'!I$8:I$218,MATCH($B105,'Disaggregation1B_Import-Export'!$C$8:$C$218,0))),\"\")","v":""},{"$f":"IFERROR(IF(INDEX('Disaggregation1B_Import-Export'!J$8:J$218,MATCH($B105,'Disaggregation1B_Import-Export'!$C$8:$C$218,0))=\"\",\"\",INDEX('Disaggregation1B_Import-Export'!J$8:J$218,MATCH($B105,'Disaggregation1B_Import-Export'!$C$8:$C$218,0))),\"\")","v":""},{"$f":"IFERROR(IF(INDEX('Disaggregation1B_Import-Export'!K$8:K$218,MATCH($B105,'Disaggregation1B_Import-Export'!$C$8:$C$218,0))=\"\",\"\",INDEX('Disaggregation1B_Import-Export'!K$8:K$218,MATCH($B105,'Disaggregation1B_Import-Export'!$C$8:$C$218,0))),\"\")","v":""},{"$f":"IFERROR(IF(INDEX('Disaggregation1B_Import-Export'!L$8:L$218,MATCH($B105,'Disaggregation1B_Import-Export'!$C$8:$C$218,0))=\"\",\"\",INDEX('Disaggregation1B_Import-Export'!L$8:L$218,MATCH($B105,'Disaggregation1B_Import-Export'!$C$8:$C$218,0))),\"\")","v":""},{"$f":"IFERROR(IF(INDEX('Disaggregation1B_Import-Export'!AQ$8:AQ$218,MATCH($B105,'Disaggregation1B_Import-Export'!$C$8:$C$218,0))=\"\",\"\",INDEX('Disaggregation1B_Import-Export'!AQ$8:AQ$218,MATCH($B105,'Disaggregation1B_Import-Export'!$C$8:$C$218,0))),\"\")","v":""},null,null,"",null,null,null,null,null,"",null,null,null,null,null,""]
[96,"Coverage96",{"$f":"IFERROR(INDEX('Disaggregation1B_Import-Export'!D$8:D$218,MATCH($B106,'Disaggregation1B_Import-Export'!$C$8:$C$218,0)),\"\")","v":""},{"$f":"IFERROR(INDEX('Disaggregation1B_Import-Export'!AF$8:AF$235,MATCH($B106,'Disaggregation1B_Import-Export'!$C$8:$C$235,0)),\"\")","v":""},{"$f":"IFERROR(IF(INDEX('Disaggregation1B_Import-Export'!AG$8:AG$218,MATCH($B106,'Disaggregation1B_Import-Export'!$C$8:$C$218,0))=\"\",\"\",INDEX('Disaggregation1B_Import-Export'!AG$8:AG$218,MATCH($B106,'Disaggregation1B_Import-Export'!$C$8:$C$218,0))),\"\")","v":""},{"$f":"IFERROR(IF(INDEX('Disaggregation1B_Import-Export'!AH$8:AH$218,MATCH($B106,'Disaggregation1B_Import-Export'!$C$8:$C$218,0))=\"\",\"\",INDEX('Disaggregation1B_Import-Export'!AH$8:AH$218,MATCH($B106,'Disaggregation1B_Import-Export'!$C$8:$C$218,0))),\"\")","v":""},{"$f":"IFERROR(IF(INDEX('Disaggregation1B_Import-Export'!H$8:H$218,MATCH($B106,'Disaggregation1B_Import-Export'!$C$8:$C$218,0))=\"\",\"\",INDEX('Disaggregation1B_Import-Export'!H$8:H$218,MATCH($B106,'Disaggregation1B_Import-Export'!$C$8:$C$218,0))),\"\")","v":""},{"$f":"IFERROR(IF(INDEX('Disaggregation1B_Import-Export'!I$8:I$218,MATCH($B106,'Disaggregation1B_Import-Export'!$C$8:$C$218,0))=\"\",\"\",INDEX('Disaggregation1B_Import-Export'!I$8:I$218,MATCH($B106,'Disaggregation1B_Import-Export'!$C$8:$C$218,0))),\"\")","v":""},{"$f":"IFERROR(IF(INDEX('Disaggregation1B_Import-Export'!J$8:J$218,MATCH($B106,'Disaggregation1B_Import-Export'!$C$8:$C$218,0))=\"\",\"\",INDEX('Disaggregation1B_Import-Export'!J$8:J$218,MATCH($B106,'Disaggregation1B_Import-Export'!$C$8:$C$218,0))),\"\")","v":""},{"$f":"IFERROR(IF(INDEX('Disaggregation1B_Import-Export'!K$8:K$218,MATCH($B106,'Disaggregation1B_Import-Export'!$C$8:$C$218,0))=\"\",\"\",INDEX('Disaggregation1B_Import-Export'!K$8:K$218,MATCH($B106,'Disaggregation1B_Import-Export'!$C$8:$C$218,0))),\"\")","v":""},{"$f":"IFERROR(IF(INDEX('Disaggregation1B_Import-Export'!L$8:L$218,MATCH($B106,'Disaggregation1B_Import-Export'!$C$8:$C$218,0))=\"\",\"\",INDEX('Disaggregation1B_Import-Export'!L$8:L$218,MATCH($B106,'Disaggregation1B_Import-Export'!$C$8:$C$218,0))),\"\")","v":""},{"$f":"IFERROR(IF(INDEX('Disaggregation1B_Import-Export'!AQ$8:AQ$218,MATCH($B106,'Disaggregation1B_Import-Export'!$C$8:$C$218,0))=\"\",\"\",INDEX('Disaggregation1B_Import-Export'!AQ$8:AQ$218,MATCH($B106,'Disaggregation1B_Import-Export'!$C$8:$C$218,0))),\"\")","v":""},null,null,"",null,null,null,null,null,"",null,null,null,null,null,""]
[97,"Coverage97",{"$f":"IFERROR(INDEX('Disaggregation1B_Import-Export'!D$8:D$218,MATCH($B107,'Disaggregation1B_Import-Export'!$C$8:$C$218,0)),\"\")","v":""},{"$f":"IFERROR(INDEX('Disaggregation1B_Import-Export'!AF$8:AF$235,MATCH($B107,'Disaggregation1B_Import-Export'!$C$8:$C$235,0)),\"\")","v":""},{"$f":"IFERROR(IF(INDEX('Disaggregation1B_Import-Export'!AG$8:AG$218,MATCH($B107,'Disaggregation1B_Import-Export'!$C$8:$C$218,0))=\"\",\"\",INDEX('Disaggregation1B_Import-Export'!AG$8:AG$218,MATCH($B107,'Disaggregation1B_Import-Export'!$C$8:$C$218,0))),\"\")","v":""},{"$f":"IFERROR(IF(INDEX('Disaggregation1B_Import-Export'!AH$8:AH$218,MATCH($B107,'Disaggregation1B_Import-Export'!$C$8:$C$218,0))=\"\",\"\",INDEX('Disaggregation1B_Import-Export'!AH$8:AH$218,MATCH($B107,'Disaggregation1B_Import-Export'!$C$8:$C$218,0))),\"\")","v":""},{"$f":"IFERROR(IF(INDEX('Disaggregation1B_Import-Export'!H$8:H$218,MATCH($B107,'Disaggregation1B_Import-Export'!$C$8:$C$218,0))=\"\",\"\",INDEX('Disaggregation1B_Import-Export'!H$8:H$218,MATCH($B107,'Disaggregation1B_Import-Export'!$C$8:$C$218,0))),\"\")","v":""},{"$f":"IFERROR(IF(INDEX('Disaggregation1B_Import-Export'!I$8:I$218,MATCH($B107,'Disaggregation1B_Import-Export'!$C$8:$C$218,0))=\"\",\"\",INDEX('Disaggregation1B_Import-Export'!I$8:I$218,MATCH($B107,'Disaggregation1B_Import-Export'!$C$8:$C$218,0))),\"\")","v":""},{"$f":"IFERROR(IF(INDEX('Disaggregation1B_Import-Export'!J$8:J$218,MATCH($B107,'Disaggregation1B_Import-Export'!$C$8:$C$218,0))=\"\",\"\",INDEX('Disaggregation1B_Import-Export'!J$8:J$218,MATCH($B107,'Disaggregation1B_Import-Export'!$C$8:$C$218,0))),\"\")","v":""},{"$f":"IFERROR(IF(INDEX('Disaggregation1B_Import-Export'!K$8:K$218,MATCH($B107,'Disaggregation1B_Import-Export'!$C$8:$C$218,0))=\"\",\"\",INDEX('Disaggregation1B_Import-Export'!K$8:K$218,MATCH($B107,'Disaggregation1B_Import-Export'!$C$8:$C$218,0))),\"\")","v":""},{"$f":"IFERROR(IF(INDEX('Disaggregation1B_Import-Export'!L$8:L$218,MATCH($B107,'Disaggregation1B_Import-Export'!$C$8:$C$218,0))=\"\",\"\",INDEX('Disaggregation1B_Import-Export'!L$8:L$218,MATCH($B107,'Disaggregation1B_Import-Export'!$C$8:$C$218,0))),\"\")","v":""},{"$f":"IFERROR(IF(INDEX('Disaggregation1B_Import-Export'!AQ$8:AQ$218,MATCH($B107,'Disaggregation1B_Import-Export'!$C$8:$C$218,0))=\"\",\"\",INDEX('Disaggregation1B_Import-Export'!AQ$8:AQ$218,MATCH($B107,'Disaggregation1B_Import-Export'!$C$8:$C$218,0))),\"\")","v":""},null,null,"",null,null,null,null,null,"",null,null,null,null,null,""]
[98,"Coverage98",{"$f":"IFERROR(INDEX('Disaggregation1B_Import-Export'!D$8:D$218,MATCH($B108,'Disaggregation1B_Import-Export'!$C$8:$C$218,0)),\"\")","v":""},{"$f":"IFERROR(INDEX('Disaggregation1B_Import-Export'!AF$8:AF$235,MATCH($B108,'Disaggregation1B_Import-Export'!$C$8:$C$235,0)),\"\")","v":""},{"$f":"IFERROR(IF(INDEX('Disaggregation1B_Import-Export'!AG$8:AG$218,MATCH($B108,'Disaggregation1B_Import-Export'!$C$8:$C$218,0))=\"\",\"\",INDEX('Disaggregation1B_Import-Export'!AG$8:AG$218,MATCH($B108,'Disaggregation1B_Import-Export'!$C$8:$C$218,0))),\"\")","v":""},{"$f":"IFERROR(IF(INDEX('Disaggregation1B_Import-Export'!AH$8:AH$218,MATCH($B108,'Disaggregation1B_Import-Export'!$C$8:$C$218,0))=\"\",\"\",INDEX('Disaggregation1B_Import-Export'!AH$8:AH$218,MATCH($B108,'Disaggregation1B_Import-Export'!$C$8:$C$218,0))),\"\")","v":""},{"$f":"IFERROR(IF(INDEX('Disaggregation1B_Import-Export'!H$8:H$218,MATCH($B108,'Disaggregation1B_Import-Export'!$C$8:$C$218,0))=\"\",\"\",INDEX('Disaggregation1B_Import-Export'!H$8:H$218,MATCH($B108,'Disaggregation1B_Import-Export'!$C$8:$C$218,0))),\"\")","v":""},{"$f":"IFERROR(IF(INDEX('Disaggregation1B_Import-Export'!I$8:I$218,MATCH($B108,'Disaggregation1B_Import-Export'!$C$8:$C$218,0))=\"\",\"\",INDEX('Disaggregation1B_Import-Export'!I$8:I$218,MATCH($B108,'Disaggregation1B_Import-Export'!$C$8:$C$218,0))),\"\")","v":""},{"$f":"IFERROR(IF(INDEX('Disaggregation1B_Import-Export'!J$8:J$218,MATCH($B108,'Disaggregation1B_Import-Export'!$C$8:$C$218,0))=\"\",\"\",INDEX('Disaggregation1B_Import-Export'!J$8:J$218,MATCH($B108,'Disaggregation1B_Import-Export'!$C$8:$C$218,0))),\"\")","v":""},{"$f":"IFERROR(IF(INDEX('Disaggregation1B_Import-Export'!K$8:K$218,MATCH($B108,'Disaggregation1B_Import-Export'!$C$8:$C$218,0))=\"\",\"\",INDEX('Disaggregation1B_Import-Export'!K$8:K$218,MATCH($B108,'Disaggregation1B_Import-Export'!$C$8:$C$218,0))),\"\")","v":""},{"$f":"IFERROR(IF(INDEX('Disaggregation1B_Import-Export'!L$8:L$218,MATCH($B108,'Disaggregation1B_Import-Export'!$C$8:$C$218,0))=\"\",\"\",INDEX('Disaggregation1B_Import-Export'!L$8:L$218,MATCH($B108,'Disaggregation1B_Import-Export'!$C$8:$C$218,0))),\"\")","v":""},{"$f":"IFERROR(IF(INDEX('Disaggregation1B_Import-Export'!AQ$8:AQ$218,MATCH($B108,'Disaggregation1B_Import-Export'!$C$8:$C$218,0))=\"\",\"\",INDEX('Disaggregation1B_Import-Export'!AQ$8:AQ$218,MATCH($B108,'Disaggregation1B_Import-Export'!$C$8:$C$218,0))),\"\")","v":""},null,null,"",null,null,null,null,null,"",null,null,null,null,null,""]
[99,"Coverage99",{"$f":"IFERROR(INDEX('Disaggregation1B_Import-Export'!D$8:D$218,MATCH($B109,'Disaggregation1B_Import-Export'!$C$8:$C$218,0)),\"\")","v":""},{"$f":"IFERROR(INDEX('Disaggregation1B_Import-Export'!AF$8:AF$235,MATCH($B109,'Disaggregation1B_Import-Export'!$C$8:$C$235,0)),\"\")","v":""},{"$f":"IFERROR(IF(INDEX('Disaggregation1B_Import-Export'!AG$8:AG$218,MATCH($B109,'Disaggregation1B_Import-Export'!$C$8:$C$218,0))=\"\",\"\",INDEX('Disaggregation1B_Import-Export'!AG$8:AG$218,MATCH($B109,'Disaggregation1B_Import-Export'!$C$8:$C$218,0))),\"\")","v":""},{"$f":"IFERROR(IF(INDEX('Disaggregation1B_Import-Export'!AH$8:AH$218,MATCH($B109,'Disaggregation1B_Import-Export'!$C$8:$C$218,0))=\"\",\"\",INDEX('Disaggregation1B_Import-Export'!AH$8:AH$218,MATCH($B109,'Disaggregation1B_Import-Export'!$C$8:$C$218,0))),\"\")","v":""},{"$f":"IFERROR(IF(INDEX('Disaggregation1B_Import-Export'!H$8:H$218,MATCH($B109,'Disaggregation1B_Import-Export'!$C$8:$C$218,0))=\"\",\"\",INDEX('Disaggregation1B_Import-Export'!H$8:H$218,MATCH($B109,'Disaggregation1B_Import-Export'!$C$8:$C$218,0))),\"\")","v":""},{"$f":"IFERROR(IF(INDEX('Disaggregation1B_Import-Export'!I$8:I$218,MATCH($B109,'Disaggregation1B_Import-Export'!$C$8:$C$218,0))=\"\",\"\",INDEX('Disaggregation1B_Import-Export'!I$8:I$218,MATCH($B109,'Disaggregation1B_Import-Export'!$C$8:$C$218,0))),\"\")","v":""},{"$f":"IFERROR(IF(INDEX('Disaggregation1B_Import-Export'!J$8:J$218,MATCH($B109,'Disaggregation1B_Import-Export'!$C$8:$C$218,0))=\"\",\"\",INDEX('Disaggregation1B_Import-Export'!J$8:J$218,MATCH($B109,'Disaggregation1B_Import-Export'!$C$8:$C$218,0))),\"\")","v":""},{"$f":"IFERROR(IF(INDEX('Disaggregation1B_Import-Export'!K$8:K$218,MATCH($B109,'Disaggregation1B_Import-Export'!$C$8:$C$218,0))=\"\",\"\",INDEX('Disaggregation1B_Import-Export'!K$8:K$218,MATCH($B109,'Disaggregation1B_Import-Export'!$C$8:$C$218,0))),\"\")","v":""},{"$f":"IFERROR(IF(INDEX('Disaggregation1B_Import-Export'!L$8:L$218,MATCH($B109,'Disaggregation1B_Import-Export'!$C$8:$C$218,0))=\"\",\"\",INDEX('Disaggregation1B_Import-Export'!L$8:L$218,MATCH($B109,'Disaggregation1B_Import-Export'!$C$8:$C$218,0))),\"\")","v":""},{"$f":"IFERROR(IF(INDEX('Disaggregation1B_Import-Export'!AQ$8:AQ$218,MATCH($B109,'Disaggregation1B_Import-Export'!$C$8:$C$218,0))=\"\",\"\",INDEX('Disaggregation1B_Import-Export'!AQ$8:AQ$218,MATCH($B109,'Disaggregation1B_Import-Export'!$C$8:$C$218,0))),\"\")","v":""},null,null,"",null,null,null,null,null,"",null,null,null,null,null,""]
[100,"Coverage100",{"$f":"IFERROR(INDEX('Disaggregation1B_Import-Export'!D$8:D$218,MATCH($B110,'Disaggregation1B_Import-Export'!$C$8:$C$218,0)),\"\")","v":""},{"$f":"IFERROR(INDEX('Disaggregation1B_Import-Export'!AF$8:AF$235,MATCH($B110,'Disaggregation1B_Import-Export'!$C$8:$C$235,0)),\"\")","v":""},{"$f":"IFERROR(IF(INDEX('Disaggregation1B_Import-Export'!AG$8:AG$218,MATCH($B110,'Disaggregation1B_Import-Export'!$C$8:$C$218,0))=\"\",\"\",INDEX('Disaggregation1B_Import-Export'!AG$8:AG$218,MATCH($B110,'Disaggregation1B_Import-Export'!$C$8:$C$218,0))),\"\")","v":""},{"$f":"IFERROR(IF(INDEX('Disaggregation1B_Import-Export'!AH$8:AH$218,MATCH($B110,'Disaggregation1B_Import-Export'!$C$8:$C$218,0))=\"\",\"\",INDEX('Disaggregation1B_Import-Export'!AH$8:AH$218,MATCH($B110,'Disaggregation1B_Import-Export'!$C$8:$C$218,0))),\"\")","v":""},{"$f":"IFERROR(IF(INDEX('Disaggregation1B_Import-Export'!H$8:H$218,MATCH($B110,'Disaggregation1B_Import-Export'!$C$8:$C$218,0))=\"\",\"\",INDEX('Disaggregation1B_Import-Export'!H$8:H$218,MATCH($B110,'Disaggregation1B_Import-Export'!$C$8:$C$218,0))),\"\")","v":""},{"$f":"IFERROR(IF(INDEX('Disaggregation1B_Import-Export'!I$8:I$218,MATCH($B110,'Disaggregation1B_Import-Export'!$C$8:$C$218,0))=\"\",\"\",INDEX('Disaggregation1B_Import-Export'!I$8:I$218,MATCH($B110,'Disaggregation1B_Import-Export'!$C$8:$C$218,0))),\"\")","v":""},{"$f":"IFERROR(IF(INDEX('Disaggregation1B_Import-Export'!J$8:J$218,MATCH($B110,'Disaggregation1B_Import-Export'!$C$8:$C$218,0))=\"\",\"\",INDEX('Disaggregation1B_Import-Export'!J$8:J$218,MATCH($B110,'Disaggregation1B_Import-Export'!$C$8:$C$218,0))),\"\")","v":""},{"$f":"IFERROR(IF(INDEX('Disaggregation1B_Import-Export'!K$8:K$218,MATCH($B110,'Disaggregation1B_Import-Export'!$C$8:$C$218,0))=\"\",\"\",INDEX('Disaggregation1B_Import-Export'!K$8:K$218,MATCH($B110,'Disaggregation1B_Import-Export'!$C$8:$C$218,0))),\"\")","v":""},{"$f":"IFERROR(IF(INDEX('Disaggregation1B_Import-Export'!L$8:L$218,MATCH($B110,'Disaggregation1B_Import-Export'!$C$8:$C$218,0))=\"\",\"\",INDEX('Disaggregation1B_Import-Export'!L$8:L$218,MATCH($B110,'Disaggregation1B_Import-Export'!$C$8:$C$218,0))),\"\")","v":""},{"$f":"IFERROR(IF(INDEX('Disaggregation1B_Import-Export'!AQ$8:AQ$218,MATCH($B110,'Disaggregation1B_Import-Export'!$C$8:$C$218,0))=\"\",\"\",INDEX('Disaggregation1B_Import-Export'!AQ$8:AQ$218,MATCH($B110,'Disaggregation1B_Import-Export'!$C$8:$C$218,0))),\"\")","v":""},null,null,"",null,null,null,null,null,"",null,null,null,null,null,""]
[101,"Coverage101",{"$f":"IFERROR(INDEX('Disaggregation1B_Import-Export'!D$8:D$218,MATCH($B111,'Disaggregation1B_Import-Export'!$C$8:$C$218,0)),\"\")","v":""},{"$f":"IFERROR(INDEX('Disaggregation1B_Import-Export'!AF$8:AF$235,MATCH($B111,'Disaggregation1B_Import-Export'!$C$8:$C$235,0)),\"\")","v":""},{"$f":"IFERROR(IF(INDEX('Disaggregation1B_Import-Export'!AG$8:AG$218,MATCH($B111,'Disaggregation1B_Import-Export'!$C$8:$C$218,0))=\"\",\"\",INDEX('Disaggregation1B_Import-Export'!AG$8:AG$218,MATCH($B111,'Disaggregation1B_Import-Export'!$C$8:$C$218,0))),\"\")","v":""},{"$f":"IFERROR(IF(INDEX('Disaggregation1B_Import-Export'!AH$8:AH$218,MATCH($B111,'Disaggregation1B_Import-Export'!$C$8:$C$218,0))=\"\",\"\",INDEX('Disaggregation1B_Import-Export'!AH$8:AH$218,MATCH($B111,'Disaggregation1B_Import-Export'!$C$8:$C$218,0))),\"\")","v":""},{"$f":"IFERROR(IF(INDEX('Disaggregation1B_Import-Export'!H$8:H$218,MATCH($B111,'Disaggregation1B_Import-Export'!$C$8:$C$218,0))=\"\",\"\",INDEX('Disaggregation1B_Import-Export'!H$8:H$218,MATCH($B111,'Disaggregation1B_Import-Export'!$C$8:$C$218,0))),\"\")","v":""},{"$f":"IFERROR(IF(INDEX('Disaggregation1B_Import-Export'!I$8:I$218,MATCH($B111,'Disaggregation1B_Import-Export'!$C$8:$C$218,0))=\"\",\"\",INDEX('Disaggregation1B_Import-Export'!I$8:I$218,MATCH($B111,'Disaggregation1B_Import-Export'!$C$8:$C$218,0))),\"\")","v":""},{"$f":"IFERROR(IF(INDEX('Disaggregation1B_Import-Export'!J$8:J$218,MATCH($B111,'Disaggregation1B_Import-Export'!$C$8:$C$218,0))=\"\",\"\",INDEX('Disaggregation1B_Import-Export'!J$8:J$218,MATCH($B111,'Disaggregation1B_Import-Export'!$C$8:$C$218,0))),\"\")","v":""},{"$f":"IFERROR(IF(INDEX('Disaggregation1B_Import-Export'!K$8:K$218,MATCH($B111,'Disaggregation1B_Import-Export'!$C$8:$C$218,0))=\"\",\"\",INDEX('Disaggregation1B_Import-Export'!K$8:K$218,MATCH($B111,'Disaggregation1B_Import-Export'!$C$8:$C$218,0))),\"\")","v":""},{"$f":"IFERROR(IF(INDEX('Disaggregation1B_Import-Export'!L$8:L$218,MATCH($B111,'Disaggregation1B_Import-Export'!$C$8:$C$218,0))=\"\",\"\",INDEX('Disaggregation1B_Import-Export'!L$8:L$218,MATCH($B111,'Disaggregation1B_Import-Export'!$C$8:$C$218,0))),\"\")","v":""},{"$f":"IFERROR(IF(INDEX('Disaggregation1B_Import-Export'!AQ$8:AQ$218,MATCH($B111,'Disaggregation1B_Import-Export'!$C$8:$C$218,0))=\"\",\"\",INDEX('Disaggregation1B_Import-Export'!AQ$8:AQ$218,MATCH($B111,'Disaggregation1B_Import-Export'!$C$8:$C$218,0))),\"\")","v":""},null,null,"",null,null,null,null,null,"",null,null,null,null,null,""]
[102,"Coverage102",{"$f":"IFERROR(INDEX('Disaggregation1B_Import-Export'!D$8:D$218,MATCH($B112,'Disaggregation1B_Import-Export'!$C$8:$C$218,0)),\"\")","v":""},{"$f":"IFERROR(INDEX('Disaggregation1B_Import-Export'!AF$8:AF$235,MATCH($B112,'Disaggregation1B_Import-Export'!$C$8:$C$235,0)),\"\")","v":""},{"$f":"IFERROR(IF(INDEX('Disaggregation1B_Import-Export'!AG$8:AG$218,MATCH($B112,'Disaggregation1B_Import-Export'!$C$8:$C$218,0))=\"\",\"\",INDEX('Disaggregation1B_Import-Export'!AG$8:AG$218,MATCH($B112,'Disaggregation1B_Import-Export'!$C$8:$C$218,0))),\"\")","v":""},{"$f":"IFERROR(IF(INDEX('Disaggregation1B_Import-Export'!AH$8:AH$218,MATCH($B112,'Disaggregation1B_Import-Export'!$C$8:$C$218,0))=\"\",\"\",INDEX('Disaggregation1B_Import-Export'!AH$8:AH$218,MATCH($B112,'Disaggregation1B_Import-Export'!$C$8:$C$218,0))),\"\")","v":""},{"$f":"IFERROR(IF(INDEX('Disaggregation1B_Import-Export'!H$8:H$218,MATCH($B112,'Disaggregation1B_Import-Export'!$C$8:$C$218,0))=\"\",\"\",INDEX('Disaggregation1B_Import-Export'!H$8:H$218,MATCH($B112,'Disaggregation1B_Import-Export'!$C$8:$C$218,0))),\"\")","v":""},{"$f":"IFERROR(IF(INDEX('Disaggregation1B_Import-Export'!I$8:I$218,MATCH($B112,'Disaggregation1B_Import-Export'!$C$8:$C$218,0))=\"\",\"\",INDEX('Disaggregation1B_Import-Export'!I$8:I$218,MATCH($B112,'Disaggregation1B_Import-Export'!$C$8:$C$218,0))),\"\")","v":""},{"$f":"IFERROR(IF(INDEX('Disaggregation1B_Import-Export'!J$8:J$218,MATCH($B112,'Disaggregation1B_Import-Export'!$C$8:$C$218,0))=\"\",\"\",INDEX('Disaggregation1B_Import-Export'!J$8:J$218,MATCH($B112,'Disaggregation1B_Import-Export'!$C$8:$C$218,0))),\"\")","v":""},{"$f":"IFERROR(IF(INDEX('Disaggregation1B_Import-Export'!K$8:K$218,MATCH($B112,'Disaggregation1B_Import-Export'!$C$8:$C$218,0))=\"\",\"\",INDEX('Disaggregation1B_Import-Export'!K$8:K$218,MATCH($B112,'Disaggregation1B_Import-Export'!$C$8:$C$218,0))),\"\")","v":""},{"$f":"IFERROR(IF(INDEX('Disaggregation1B_Import-Export'!L$8:L$218,MATCH($B112,'Disaggregation1B_Import-Export'!$C$8:$C$218,0))=\"\",\"\",INDEX('Disaggregation1B_Import-Export'!L$8:L$218,MATCH($B112,'Disaggregation1B_Import-Export'!$C$8:$C$218,0))),\"\")","v":""},{"$f":"IFERROR(IF(INDEX('Disaggregation1B_Import-Export'!AQ$8:AQ$218,MATCH($B112,'Disaggregation1B_Import-Export'!$C$8:$C$218,0))=\"\",\"\",INDEX('Disaggregation1B_Import-Export'!AQ$8:AQ$218,MATCH($B112,'Disaggregation1B_Import-Export'!$C$8:$C$218,0))),\"\")","v":""},null,null,"",null,null,null,null,null,"",null,null,null,null,null,""]
[103,"Coverage103",{"$f":"IFERROR(INDEX('Disaggregation1B_Import-Export'!D$8:D$218,MATCH($B113,'Disaggregation1B_Import-Export'!$C$8:$C$218,0)),\"\")","v":""},{"$f":"IFERROR(INDEX('Disaggregation1B_Import-Export'!AF$8:AF$235,MATCH($B113,'Disaggregation1B_Import-Export'!$C$8:$C$235,0)),\"\")","v":""},{"$f":"IFERROR(IF(INDEX('Disaggregation1B_Import-Export'!AG$8:AG$218,MATCH($B113,'Disaggregation1B_Import-Export'!$C$8:$C$218,0))=\"\",\"\",INDEX('Disaggregation1B_Import-Export'!AG$8:AG$218,MATCH($B113,'Disaggregation1B_Import-Export'!$C$8:$C$218,0))),\"\")","v":""},{"$f":"IFERROR(IF(INDEX('Disaggregation1B_Import-Export'!AH$8:AH$218,MATCH($B113,'Disaggregation1B_Import-Export'!$C$8:$C$218,0))=\"\",\"\",INDEX('Disaggregation1B_Import-Export'!AH$8:AH$218,MATCH($B113,'Disaggregation1B_Import-Export'!$C$8:$C$218,0))),\"\")","v":""},{"$f":"IFERROR(IF(INDEX('Disaggregation1B_Import-Export'!H$8:H$218,MATCH($B113,'Disaggregation1B_Import-Export'!$C$8:$C$218,0))=\"\",\"\",INDEX('Disaggregation1B_Import-Export'!H$8:H$218,MATCH($B113,'Disaggregation1B_Import-Export'!$C$8:$C$218,0))),\"\")","v":""},{"$f":"IFERROR(IF(INDEX('Disaggregation1B_Import-Export'!I$8:I$218,MATCH($B113,'Disaggregation1B_Import-Export'!$C$8:$C$218,0))=\"\",\"\",INDEX('Disaggregation1B_Import-Export'!I$8:I$218,MATCH($B113,'Disaggregation1B_Import-Export'!$C$8:$C$218,0))),\"\")","v":""},{"$f":"IFERROR(IF(INDEX('Disaggregation1B_Import-Export'!J$8:J$218,MATCH($B113,'Disaggregation1B_Import-Export'!$C$8:$C$218,0))=\"\",\"\",INDEX('Disaggregation1B_Import-Export'!J$8:J$218,MATCH($B113,'Disaggregation1B_Import-Export'!$C$8:$C$218,0))),\"\")","v":""},{"$f":"IFERROR(IF(INDEX('Disaggregation1B_Import-Export'!K$8:K$218,MATCH($B113,'Disaggregation1B_Import-Export'!$C$8:$C$218,0))=\"\",\"\",INDEX('Disaggregation1B_Import-Export'!K$8:K$218,MATCH($B113,'Disaggregation1B_Import-Export'!$C$8:$C$218,0))),\"\")","v":""},{"$f":"IFERROR(IF(INDEX('Disaggregation1B_Import-Export'!L$8:L$218,MATCH($B113,'Disaggregation1B_Import-Export'!$C$8:$C$218,0))=\"\",\"\",INDEX('Disaggregation1B_Import-Export'!L$8:L$218,MATCH($B113,'Disaggregation1B_Import-Export'!$C$8:$C$218,0))),\"\")","v":""},{"$f":"IFERROR(IF(INDEX('Disaggregation1B_Import-Export'!AQ$8:AQ$218,MATCH($B113,'Disaggregation1B_Import-Export'!$C$8:$C$218,0))=\"\",\"\",INDEX('Disaggregation1B_Import-Export'!AQ$8:AQ$218,MATCH($B113,'Disaggregation1B_Import-Export'!$C$8:$C$218,0))),\"\")","v":""},null,null,"",null,null,null,null,null,"",null,null,null,null,null,""]
[104,{"$f":"\"Coverage\"&A114","v":"Coverage104"},{"$f":"IFERROR(INDEX('Disaggregation1B_Import-Export'!D$8:D$218,MATCH($B114,'Disaggregation1B_Import-Export'!$C$8:$C$218,0)),\"\")","v":""},{"$f":"IFERROR(INDEX('Disaggregation1B_Import-Export'!AF$8:AF$235,MATCH($B114,'Disaggregation1B_Import-Export'!$C$8:$C$235,0)),\"\")","v":""},{"$f":"IFERROR(IF(INDEX('Disaggregation1B_Import-Export'!AG$8:AG$218,MATCH($B114,'Disaggregation1B_Import-Export'!$C$8:$C$218,0))=\"\",\"\",INDEX('Disaggregation1B_Import-Export'!AG$8:AG$218,MATCH($B114,'Disaggregation1B_Import-Export'!$C$8:$C$218,0))),\"\")","v":""},{"$f":"IFERROR(IF(INDEX('Disaggregation1B_Import-Export'!AH$8:AH$218,MATCH($B114,'Disaggregation1B_Import-Export'!$C$8:$C$218,0))=\"\",\"\",INDEX('Disaggregation1B_Import-Export'!AH$8:AH$218,MATCH($B114,'Disaggregation1B_Import-Export'!$C$8:$C$218,0))),\"\")","v":""},{"$f":"IFERROR(IF(INDEX('Disaggregation1B_Import-Export'!H$8:H$218,MATCH($B114,'Disaggregation1B_Import-Export'!$C$8:$C$218,0))=\"\",\"\",INDEX('Disaggregation1B_Import-Export'!H$8:H$218,MATCH($B114,'Disaggregation1B_Import-Export'!$C$8:$C$218,0))),\"\")","v":""},{"$f":"IFERROR(IF(INDEX('Disaggregation1B_Import-Export'!I$8:I$218,MATCH($B114,'Disaggregation1B_Import-Export'!$C$8:$C$218,0))=\"\",\"\",INDEX('Disaggregation1B_Import-Export'!I$8:I$218,MATCH($B114,'Disaggregation1B_Import-Export'!$C$8:$C$218,0))),\"\")","v":""},{"$f":"IFERROR(IF(INDEX('Disaggregation1B_Import-Export'!J$8:J$218,MATCH($B114,'Disaggregation1B_Import-Export'!$C$8:$C$218,0))=\"\",\"\",INDEX('Disaggregation1B_Import-Export'!J$8:J$218,MATCH($B114,'Disaggregation1B_Import-Export'!$C$8:$C$218,0))),\"\")","v":""},{"$f":"IFERROR(IF(INDEX('Disaggregation1B_Import-Export'!K$8:K$218,MATCH($B114,'Disaggregation1B_Import-Export'!$C$8:$C$218,0))=\"\",\"\",INDEX('Disaggregation1B_Import-Export'!K$8:K$218,MATCH($B114,'Disaggregation1B_Import-Export'!$C$8:$C$218,0))),\"\")","v":""},{"$f":"IFERROR(IF(INDEX('Disaggregation1B_Import-Export'!L$8:L$218,MATCH($B114,'Disaggregation1B_Import-Export'!$C$8:$C$218,0))=\"\",\"\",INDEX('Disaggregation1B_Import-Export'!L$8:L$218,MATCH($B114,'Disaggregation1B_Import-Export'!$C$8:$C$218,0))),\"\")","v":""},{"$f":"IFERROR(IF(INDEX('Disaggregation1B_Import-Export'!AQ$8:AQ$218,MATCH($B114,'Disaggregation1B_Import-Export'!$C$8:$C$218,0))=\"\",\"\",INDEX('Disaggregation1B_Import-Export'!AQ$8:AQ$218,MATCH($B114,'Disaggregation1B_Import-Export'!$C$8:$C$218,0))),\"\")","v":""},null,null,{"$f":"IFERROR((M114/N114)*100,\"\")","v":""},null,null,null,null,null,{"$f":"IFERROR((S114/T114)*100,\"\")","v":""},null,null,null,null,null,{"$f":"IFERROR(Y114/Z114,\"\")","v":""}]
[105,"Coverage105",{"$f":"IFERROR(INDEX('Disaggregation1B_Import-Export'!D$8:D$218,MATCH($B115,'Disaggregation1B_Import-Export'!$C$8:$C$218,0)),\"\")","v":""},{"$f":"IFERROR(INDEX('Disaggregation1B_Import-Export'!AF$8:AF$235,MATCH($B115,'Disaggregation1B_Import-Export'!$C$8:$C$235,0)),\"\")","v":""},{"$f":"IFERROR(IF(INDEX('Disaggregation1B_Import-Export'!AG$8:AG$218,MATCH($B115,'Disaggregation1B_Import-Export'!$C$8:$C$218,0))=\"\",\"\",INDEX('Disaggregation1B_Import-Export'!AG$8:AG$218,MATCH($B115,'Disaggregation1B_Import-Export'!$C$8:$C$218,0))),\"\")","v":""},{"$f":"IFERROR(IF(INDEX('Disaggregation1B_Import-Export'!AH$8:AH$218,MATCH($B115,'Disaggregation1B_Import-Export'!$C$8:$C$218,0))=\"\",\"\",INDEX('Disaggregation1B_Import-Export'!AH$8:AH$218,MATCH($B115,'Disaggregation1B_Import-Export'!$C$8:$C$218,0))),\"\")","v":""},{"$f":"IFERROR(IF(INDEX('Disaggregation1B_Import-Export'!H$8:H$218,MATCH($B115,'Disaggregation1B_Import-Export'!$C$8:$C$218,0))=\"\",\"\",INDEX('Disaggregation1B_Import-Export'!H$8:H$218,MATCH($B115,'Disaggregation1B_Import-Export'!$C$8:$C$218,0))),\"\")","v":""},{"$f":"IFERROR(IF(INDEX('Disaggregation1B_Import-Export'!I$8:I$218,MATCH($B115,'Disaggregation1B_Import-Export'!$C$8:$C$218,0))=\"\",\"\",INDEX('Disaggregation1B_Import-Export'!I$8:I$218,MATCH($B115,'Disaggregation1B_Import-Export'!$C$8:$C$218,0))),\"\")","v":""},{"$f":"IFERROR(IF(INDEX('Disaggregation1B_Import-Export'!J$8:J$218,MATCH($B115,'Disaggregation1B_Import-Export'!$C$8:$C$218,0))=\"\",\"\",INDEX('Disaggregation1B_Import-Export'!J$8:J$218,MATCH($B115,'Disaggregation1B_Import-Export'!$C$8:$C$218,0))),\"\")","v":""},{"$f":"IFERROR(IF(INDEX('Disaggregation1B_Import-Export'!K$8:K$218,MATCH($B115,'Disaggregation1B_Import-Export'!$C$8:$C$218,0))=\"\",\"\",INDEX('Disaggregation1B_Import-Export'!K$8:K$218,MATCH($B115,'Disaggregation1B_Import-Export'!$C$8:$C$218,0))),\"\")","v":""},{"$f":"IFERROR(IF(INDEX('Disaggregation1B_Import-Export'!L$8:L$218,MATCH($B115,'Disaggregation1B_Import-Export'!$C$8:$C$218,0))=\"\",\"\",INDEX('Disaggregation1B_Import-Export'!L$8:L$218,MATCH($B115,'Disaggregation1B_Import-Export'!$C$8:$C$218,0))),\"\")","v":""},{"$f":"IFERROR(IF(INDEX('Disaggregation1B_Import-Export'!AQ$8:AQ$218,MATCH($B115,'Disaggregation1B_Import-Export'!$C$8:$C$218,0))=\"\",\"\",INDEX('Disaggregation1B_Import-Export'!AQ$8:AQ$218,MATCH($B115,'Disaggregation1B_Import-Export'!$C$8:$C$218,0))),\"\")","v":""},null,null,"",null,null,null,null,null,"",null,null,null,null,null,""]
[106,"Coverage106",{"$f":"IFERROR(INDEX('Disaggregation1B_Import-Export'!D$8:D$218,MATCH($B116,'Disaggregation1B_Import-Export'!$C$8:$C$218,0)),\"\")","v":""},{"$f":"IFERROR(INDEX('Disaggregation1B_Import-Export'!AF$8:AF$235,MATCH($B116,'Disaggregation1B_Import-Export'!$C$8:$C$235,0)),\"\")","v":""},{"$f":"IFERROR(IF(INDEX('Disaggregation1B_Import-Export'!AG$8:AG$218,MATCH($B116,'Disaggregation1B_Import-Export'!$C$8:$C$218,0))=\"\",\"\",INDEX('Disaggregation1B_Import-Export'!AG$8:AG$218,MATCH($B116,'Disaggregation1B_Import-Export'!$C$8:$C$218,0))),\"\")","v":""},{"$f":"IFERROR(IF(INDEX('Disaggregation1B_Import-Export'!AH$8:AH$218,MATCH($B116,'Disaggregation1B_Import-Export'!$C$8:$C$218,0))=\"\",\"\",INDEX('Disaggregation1B_Import-Export'!AH$8:AH$218,MATCH($B116,'Disaggregation1B_Import-Export'!$C$8:$C$218,0))),\"\")","v":""},{"$f":"IFERROR(IF(INDEX('Disaggregation1B_Import-Export'!H$8:H$218,MATCH($B116,'Disaggregation1B_Import-Export'!$C$8:$C$218,0))=\"\",\"\",INDEX('Disaggregation1B_Import-Export'!H$8:H$218,MATCH($B116,'Disaggregation1B_Import-Export'!$C$8:$C$218,0))),\"\")","v":""},{"$f":"IFERROR(IF(INDEX('Disaggregation1B_Import-Export'!I$8:I$218,MATCH($B116,'Disaggregation1B_Import-Export'!$C$8:$C$218,0))=\"\",\"\",INDEX('Disaggregation1B_Import-Export'!I$8:I$218,MATCH($B116,'Disaggregation1B_Import-Export'!$C$8:$C$218,0))),\"\")","v":""},{"$f":"IFERROR(IF(INDEX('Disaggregation1B_Import-Export'!J$8:J$218,MATCH($B116,'Disaggregation1B_Import-Export'!$C$8:$C$218,0))=\"\",\"\",INDEX('Disaggregation1B_Import-Export'!J$8:J$218,MATCH($B116,'Disaggregation1B_Import-Export'!$C$8:$C$218,0))),\"\")","v":""},{"$f":"IFERROR(IF(INDEX('Disaggregation1B_Import-Export'!K$8:K$218,MATCH($B116,'Disaggregation1B_Import-Export'!$C$8:$C$218,0))=\"\",\"\",INDEX('Disaggregation1B_Import-Export'!K$8:K$218,MATCH($B116,'Disaggregation1B_Import-Export'!$C$8:$C$218,0))),\"\")","v":""},{"$f":"IFERROR(IF(INDEX('Disaggregation1B_Import-Export'!L$8:L$218,MATCH($B116,'Disaggregation1B_Import-Export'!$C$8:$C$218,0))=\"\",\"\",INDEX('Disaggregation1B_Import-Export'!L$8:L$218,MATCH($B116,'Disaggregation1B_Import-Export'!$C$8:$C$218,0))),\"\")","v":""},{"$f":"IFERROR(IF(INDEX('Disaggregation1B_Import-Export'!AQ$8:AQ$218,MATCH($B116,'Disaggregation1B_Import-Export'!$C$8:$C$218,0))=\"\",\"\",INDEX('Disaggregation1B_Import-Export'!AQ$8:AQ$218,MATCH($B116,'Disaggregation1B_Import-Export'!$C$8:$C$218,0))),\"\")","v":""},null,null,"",null,null,null,null,null,"",null,null,null,null,null,""]
[107,"Coverage107",{"$f":"IFERROR(INDEX('Disaggregation1B_Import-Export'!D$8:D$218,MATCH($B117,'Disaggregation1B_Import-Export'!$C$8:$C$218,0)),\"\")","v":""},{"$f":"IFERROR(INDEX('Disaggregation1B_Import-Export'!AF$8:AF$235,MATCH($B117,'Disaggregation1B_Import-Export'!$C$8:$C$235,0)),\"\")","v":""},{"$f":"IFERROR(IF(INDEX('Disaggregation1B_Import-Export'!AG$8:AG$218,MATCH($B117,'Disaggregation1B_Import-Export'!$C$8:$C$218,0))=\"\",\"\",INDEX('Disaggregation1B_Import-Export'!AG$8:AG$218,MATCH($B117,'Disaggregation1B_Import-Export'!$C$8:$C$218,0))),\"\")","v":""},{"$f":"IFERROR(IF(INDEX('Disaggregation1B_Import-Export'!AH$8:AH$218,MATCH($B117,'Disaggregation1B_Import-Export'!$C$8:$C$218,0))=\"\",\"\",INDEX('Disaggregation1B_Import-Export'!AH$8:AH$218,MATCH($B117,'Disaggregation1B_Import-Export'!$C$8:$C$218,0))),\"\")","v":""},{"$f":"IFERROR(IF(INDEX('Disaggregation1B_Import-Export'!H$8:H$218,MATCH($B117,'Disaggregation1B_Import-Export'!$C$8:$C$218,0))=\"\",\"\",INDEX('Disaggregation1B_Import-Export'!H$8:H$218,MATCH($B117,'Disaggregation1B_Import-Export'!$C$8:$C$218,0))),\"\")","v":""},{"$f":"IFERROR(IF(INDEX('Disaggregation1B_Import-Export'!I$8:I$218,MATCH($B117,'Disaggregation1B_Import-Export'!$C$8:$C$218,0))=\"\",\"\",INDEX('Disaggregation1B_Import-Export'!I$8:I$218,MATCH($B117,'Disaggregation1B_Import-Export'!$C$8:$C$218,0))),\"\")","v":""},{"$f":"IFERROR(IF(INDEX('Disaggregation1B_Import-Export'!J$8:J$218,MATCH($B117,'Disaggregation1B_Import-Export'!$C$8:$C$218,0))=\"\",\"\",INDEX('Disaggregation1B_Import-Export'!J$8:J$218,MATCH($B117,'Disaggregation1B_Import-Export'!$C$8:$C$218,0))),\"\")","v":""},{"$f":"IFERROR(IF(INDEX('Disaggregation1B_Import-Export'!K$8:K$218,MATCH($B117,'Disaggregation1B_Import-Export'!$C$8:$C$218,0))=\"\",\"\",INDEX('Disaggregation1B_Import-Export'!K$8:K$218,MATCH($B117,'Disaggregation1B_Import-Export'!$C$8:$C$218,0))),\"\")","v":""},{"$f":"IFERROR(IF(INDEX('Disaggregation1B_Import-Export'!L$8:L$218,MATCH($B117,'Disaggregation1B_Import-Export'!$C$8:$C$218,0))=\"\",\"\",INDEX('Disaggregation1B_Import-Export'!L$8:L$218,MATCH($B117,'Disaggregation1B_Import-Export'!$C$8:$C$218,0))),\"\")","v":""},{"$f":"IFERROR(IF(INDEX('Disaggregation1B_Import-Export'!AQ$8:AQ$218,MATCH($B117,'Disaggregation1B_Import-Export'!$C$8:$C$218,0))=\"\",\"\",INDEX('Disaggregation1B_Import-Export'!AQ$8:AQ$218,MATCH($B117,'Disaggregation1B_Import-Export'!$C$8:$C$218,0))),\"\")","v":""},null,null,"",null,null,null,null,null,"",null,null,null,null,null,""]
[108,"Coverage108",{"$f":"IFERROR(INDEX('Disaggregation1B_Import-Export'!D$8:D$218,MATCH($B118,'Disaggregation1B_Import-Export'!$C$8:$C$218,0)),\"\")","v":""},{"$f":"IFERROR(INDEX('Disaggregation1B_Import-Export'!AF$8:AF$235,MATCH($B118,'Disaggregation1B_Import-Export'!$C$8:$C$235,0)),\"\")","v":""},{"$f":"IFERROR(IF(INDEX('Disaggregation1B_Import-Export'!AG$8:AG$218,MATCH($B118,'Disaggregation1B_Import-Export'!$C$8:$C$218,0))=\"\",\"\",INDEX('Disaggregation1B_Import-Export'!AG$8:AG$218,MATCH($B118,'Disaggregation1B_Import-Export'!$C$8:$C$218,0))),\"\")","v":""},{"$f":"IFERROR(IF(INDEX('Disaggregation1B_Import-Export'!AH$8:AH$218,MATCH($B118,'Disaggregation1B_Import-Export'!$C$8:$C$218,0))=\"\",\"\",INDEX('Disaggregation1B_Import-Export'!AH$8:AH$218,MATCH($B118,'Disaggregation1B_Import-Export'!$C$8:$C$218,0))),\"\")","v":""},{"$f":"IFERROR(IF(INDEX('Disaggregation1B_Import-Export'!H$8:H$218,MATCH($B118,'Disaggregation1B_Import-Export'!$C$8:$C$218,0))=\"\",\"\",INDEX('Disaggregation1B_Import-Export'!H$8:H$218,MATCH($B118,'Disaggregation1B_Import-Export'!$C$8:$C$218,0))),\"\")","v":""},{"$f":"IFERROR(IF(INDEX('Disaggregation1B_Import-Export'!I$8:I$218,MATCH($B118,'Disaggregation1B_Import-Export'!$C$8:$C$218,0))=\"\",\"\",INDEX('Disaggregation1B_Import-Export'!I$8:I$218,MATCH($B118,'Disaggregation1B_Import-Export'!$C$8:$C$218,0))),\"\")","v":""},{"$f":"IFERROR(IF(INDEX('Disaggregation1B_Import-Export'!J$8:J$218,MATCH($B118,'Disaggregation1B_Import-Export'!$C$8:$C$218,0))=\"\",\"\",INDEX('Disaggregation1B_Import-Export'!J$8:J$218,MATCH($B118,'Disaggregation1B_Import-Export'!$C$8:$C$218,0))),\"\")","v":""},{"$f":"IFERROR(IF(INDEX('Disaggregation1B_Import-Export'!K$8:K$218,MATCH($B118,'Disaggregation1B_Import-Export'!$C$8:$C$218,0))=\"\",\"\",INDEX('Disaggregation1B_Import-Export'!K$8:K$218,MATCH($B118,'Disaggregation1B_Import-Export'!$C$8:$C$218,0))),\"\")","v":""},{"$f":"IFERROR(IF(INDEX('Disaggregation1B_Import-Export'!L$8:L$218,MATCH($B118,'Disaggregation1B_Import-Export'!$C$8:$C$218,0))=\"\",\"\",INDEX('Disaggregation1B_Import-Export'!L$8:L$218,MATCH($B118,'Disaggregation1B_Import-Export'!$C$8:$C$218,0))),\"\")","v":""},{"$f":"IFERROR(IF(INDEX('Disaggregation1B_Import-Export'!AQ$8:AQ$218,MATCH($B118,'Disaggregation1B_Import-Export'!$C$8:$C$218,0))=\"\",\"\",INDEX('Disaggregation1B_Import-Export'!AQ$8:AQ$218,MATCH($B118,'Disaggregation1B_Import-Export'!$C$8:$C$218,0))),\"\")","v":""},null,null,"",null,null,null,null,null,"",null,null,null,null,null,""]
[109,"Coverage109",{"$f":"IFERROR(INDEX('Disaggregation1B_Import-Export'!D$8:D$218,MATCH($B119,'Disaggregation1B_Import-Export'!$C$8:$C$218,0)),\"\")","v":""},{"$f":"IFERROR(INDEX('Disaggregation1B_Import-Export'!AF$8:AF$235,MATCH($B119,'Disaggregation1B_Import-Export'!$C$8:$C$235,0)),\"\")","v":""},{"$f":"IFERROR(IF(INDEX('Disaggregation1B_Import-Export'!AG$8:AG$218,MATCH($B119,'Disaggregation1B_Import-Export'!$C$8:$C$218,0))=\"\",\"\",INDEX('Disaggregation1B_Import-Export'!AG$8:AG$218,MATCH($B119,'Disaggregation1B_Import-Export'!$C$8:$C$218,0))),\"\")","v":""},{"$f":"IFERROR(IF(INDEX('Disaggregation1B_Import-Export'!AH$8:AH$218,MATCH($B119,'Disaggregation1B_Import-Export'!$C$8:$C$218,0))=\"\",\"\",INDEX('Disaggregation1B_Import-Export'!AH$8:AH$218,MATCH($B119,'Disaggregation1B_Import-Export'!$C$8:$C$218,0))),\"\")","v":""},{"$f":"IFERROR(IF(INDEX('Disaggregation1B_Import-Export'!H$8:H$218,MATCH($B119,'Disaggregation1B_Import-Export'!$C$8:$C$218,0))=\"\",\"\",INDEX('Disaggregation1B_Import-Export'!H$8:H$218,MATCH($B119,'Disaggregation1B_Import-Export'!$C$8:$C$218,0))),\"\")","v":""},{"$f":"IFERROR(IF(INDEX('Disaggregation1B_Import-Export'!I$8:I$218,MATCH($B119,'Disaggregation1B_Import-Export'!$C$8:$C$218,0))=\"\",\"\",INDEX('Disaggregation1B_Import-Export'!I$8:I$218,MATCH($B119,'Disaggregation1B_Import-Export'!$C$8:$C$218,0))),\"\")","v":""},{"$f":"IFERROR(IF(INDEX('Disaggregation1B_Import-Export'!J$8:J$218,MATCH($B119,'Disaggregation1B_Import-Export'!$C$8:$C$218,0))=\"\",\"\",INDEX('Disaggregation1B_Import-Export'!J$8:J$218,MATCH($B119,'Disaggregation1B_Import-Export'!$C$8:$C$218,0))),\"\")","v":""},{"$f":"IFERROR(IF(INDEX('Disaggregation1B_Import-Export'!K$8:K$218,MATCH($B119,'Disaggregation1B_Import-Export'!$C$8:$C$218,0))=\"\",\"\",INDEX('Disaggregation1B_Import-Export'!K$8:K$218,MATCH($B119,'Disaggregation1B_Import-Export'!$C$8:$C$218,0))),\"\")","v":""},{"$f":"IFERROR(IF(INDEX('Disaggregation1B_Import-Export'!L$8:L$218,MATCH($B119,'Disaggregation1B_Import-Export'!$C$8:$C$218,0))=\"\",\"\",INDEX('Disaggregation1B_Import-Export'!L$8:L$218,MATCH($B119,'Disaggregation1B_Import-Export'!$C$8:$C$218,0))),\"\")","v":""},{"$f":"IFERROR(IF(INDEX('Disaggregation1B_Import-Export'!AQ$8:AQ$218,MATCH($B119,'Disaggregation1B_Import-Export'!$C$8:$C$218,0))=\"\",\"\",INDEX('Disaggregation1B_Import-Export'!AQ$8:AQ$218,MATCH($B119,'Disaggregation1B_Import-Export'!$C$8:$C$218,0))),\"\")","v":""},null,null,"",null,null,null,null,null,"",null,null,null,null,null,""]
[110,"Coverage110",{"$f":"IFERROR(INDEX('Disaggregation1B_Import-Export'!D$8:D$218,MATCH($B120,'Disaggregation1B_Import-Export'!$C$8:$C$218,0)),\"\")","v":""},{"$f":"IFERROR(INDEX('Disaggregation1B_Import-Export'!AF$8:AF$235,MATCH($B120,'Disaggregation1B_Import-Export'!$C$8:$C$235,0)),\"\")","v":""},{"$f":"IFERROR(IF(INDEX('Disaggregation1B_Import-Export'!AG$8:AG$218,MATCH($B120,'Disaggregation1B_Import-Export'!$C$8:$C$218,0))=\"\",\"\",INDEX('Disaggregation1B_Import-Export'!AG$8:AG$218,MATCH($B120,'Disaggregation1B_Import-Export'!$C$8:$C$218,0))),\"\")","v":""},{"$f":"IFERROR(IF(INDEX('Disaggregation1B_Import-Export'!AH$8:AH$218,MATCH($B120,'Disaggregation1B_Import-Export'!$C$8:$C$218,0))=\"\",\"\",INDEX('Disaggregation1B_Import-Export'!AH$8:AH$218,MATCH($B120,'Disaggregation1B_Import-Export'!$C$8:$C$218,0))),\"\")","v":""},{"$f":"IFERROR(IF(INDEX('Disaggregation1B_Import-Export'!H$8:H$218,MATCH($B120,'Disaggregation1B_Import-Export'!$C$8:$C$218,0))=\"\",\"\",INDEX('Disaggregation1B_Import-Export'!H$8:H$218,MATCH($B120,'Disaggregation1B_Import-Export'!$C$8:$C$218,0))),\"\")","v":""},{"$f":"IFERROR(IF(INDEX('Disaggregation1B_Import-Export'!I$8:I$218,MATCH($B120,'Disaggregation1B_Import-Export'!$C$8:$C$218,0))=\"\",\"\",INDEX('Disaggregation1B_Import-Export'!I$8:I$218,MATCH($B120,'Disaggregation1B_Import-Export'!$C$8:$C$218,0))),\"\")","v":""},{"$f":"IFERROR(IF(INDEX('Disaggregation1B_Import-Export'!J$8:J$218,MATCH($B120,'Disaggregation1B_Import-Export'!$C$8:$C$218,0))=\"\",\"\",INDEX('Disaggregation1B_Import-Export'!J$8:J$218,MATCH($B120,'Disaggregation1B_Import-Export'!$C$8:$C$218,0))),\"\")","v":""},{"$f":"IFERROR(IF(INDEX('Disaggregation1B_Import-Export'!K$8:K$218,MATCH($B120,'Disaggregation1B_Import-Export'!$C$8:$C$218,0))=\"\",\"\",INDEX('Disaggregation1B_Import-Export'!K$8:K$218,MATCH($B120,'Disaggregation1B_Import-Export'!$C$8:$C$218,0))),\"\")","v":""},{"$f":"IFERROR(IF(INDEX('Disaggregation1B_Import-Export'!L$8:L$218,MATCH($B120,'Disaggregation1B_Import-Export'!$C$8:$C$218,0))=\"\",\"\",INDEX('Disaggregation1B_Import-Export'!L$8:L$218,MATCH($B120,'Disaggregation1B_Import-Export'!$C$8:$C$218,0))),\"\")","v":""},{"$f":"IFERROR(IF(INDEX('Disaggregation1B_Import-Export'!AQ$8:AQ$218,MATCH($B120,'Disaggregation1B_Import-Export'!$C$8:$C$218,0))=\"\",\"\",INDEX('Disaggregation1B_Import-Export'!AQ$8:AQ$218,MATCH($B120,'Disaggregation1B_Import-Export'!$C$8:$C$218,0))),\"\")","v":""},null,null,"",null,null,null,null,null,"",null,null,null,null,null,""]
[111,"Coverage111",{"$f":"IFERROR(INDEX('Disaggregation1B_Import-Export'!D$8:D$218,MATCH($B121,'Disaggregation1B_Import-Export'!$C$8:$C$218,0)),\"\")","v":""},{"$f":"IFERROR(INDEX('Disaggregation1B_Import-Export'!AF$8:AF$235,MATCH($B121,'Disaggregation1B_Import-Export'!$C$8:$C$235,0)),\"\")","v":""},{"$f":"IFERROR(IF(INDEX('Disaggregation1B_Import-Export'!AG$8:AG$218,MATCH($B121,'Disaggregation1B_Import-Export'!$C$8:$C$218,0))=\"\",\"\",INDEX('Disaggregation1B_Import-Export'!AG$8:AG$218,MATCH($B121,'Disaggregation1B_Import-Export'!$C$8:$C$218,0))),\"\")","v":""},{"$f":"IFERROR(IF(INDEX('Disaggregation1B_Import-Export'!AH$8:AH$218,MATCH($B121,'Disaggregation1B_Import-Export'!$C$8:$C$218,0))=\"\",\"\",INDEX('Disaggregation1B_Import-Export'!AH$8:AH$218,MATCH($B121,'Disaggregation1B_Import-Export'!$C$8:$C$218,0))),\"\")","v":""},{"$f":"IFERROR(IF(INDEX('Disaggregation1B_Import-Export'!H$8:H$218,MATCH($B121,'Disaggregation1B_Import-Export'!$C$8:$C$218,0))=\"\",\"\",INDEX('Disaggregation1B_Import-Export'!H$8:H$218,MATCH($B121,'Disaggregation1B_Import-Export'!$C$8:$C$218,0))),\"\")","v":""},{"$f":"IFERROR(IF(INDEX('Disaggregation1B_Import-Export'!I$8:I$218,MATCH($B121,'Disaggregation1B_Import-Export'!$C$8:$C$218,0))=\"\",\"\",INDEX('Disaggregation1B_Import-Export'!I$8:I$218,MATCH($B121,'Disaggregation1B_Import-Export'!$C$8:$C$218,0))),\"\")","v":""},{"$f":"IFERROR(IF(INDEX('Disaggregation1B_Import-Export'!J$8:J$218,MATCH($B121,'Disaggregation1B_Import-Export'!$C$8:$C$218,0))=\"\",\"\",INDEX('Disaggregation1B_Import-Export'!J$8:J$218,MATCH($B121,'Disaggregation1B_Import-Export'!$C$8:$C$218,0))),\"\")","v":""},{"$f":"IFERROR(IF(INDEX('Disaggregation1B_Import-Export'!K$8:K$218,MATCH($B121,'Disaggregation1B_Import-Export'!$C$8:$C$218,0))=\"\",\"\",INDEX('Disaggregation1B_Import-Export'!K$8:K$218,MATCH($B121,'Disaggregation1B_Import-Export'!$C$8:$C$218,0))),\"\")","v":""},{"$f":"IFERROR(IF(INDEX('Disaggregation1B_Import-Export'!L$8:L$218,MATCH($B121,'Disaggregation1B_Import-Export'!$C$8:$C$218,0))=\"\",\"\",INDEX('Disaggregation1B_Import-Export'!L$8:L$218,MATCH($B121,'Disaggregation1B_Import-Export'!$C$8:$C$218,0))),\"\")","v":""},{"$f":"IFERROR(IF(INDEX('Disaggregation1B_Import-Export'!AQ$8:AQ$218,MATCH($B121,'Disaggregation1B_Import-Export'!$C$8:$C$218,0))=\"\",\"\",INDEX('Disaggregation1B_Import-Export'!AQ$8:AQ$218,MATCH($B121,'Disaggregation1B_Import-Export'!$C$8:$C$218,0))),\"\")","v":""},null,null,"",null,null,null,null,null,"",null,null,null,null,null,""]
[112,"Coverage112",{"$f":"IFERROR(INDEX('Disaggregation1B_Import-Export'!D$8:D$218,MATCH($B122,'Disaggregation1B_Import-Export'!$C$8:$C$218,0)),\"\")","v":""},{"$f":"IFERROR(INDEX('Disaggregation1B_Import-Export'!AF$8:AF$235,MATCH($B122,'Disaggregation1B_Import-Export'!$C$8:$C$235,0)),\"\")","v":""},{"$f":"IFERROR(IF(INDEX('Disaggregation1B_Import-Export'!AG$8:AG$218,MATCH($B122,'Disaggregation1B_Import-Export'!$C$8:$C$218,0))=\"\",\"\",INDEX('Disaggregation1B_Import-Export'!AG$8:AG$218,MATCH($B122,'Disaggregation1B_Import-Export'!$C$8:$C$218,0))),\"\")","v":""},{"$f":"IFERROR(IF(INDEX('Disaggregation1B_Import-Export'!AH$8:AH$218,MATCH($B122,'Disaggregation1B_Import-Export'!$C$8:$C$218,0))=\"\",\"\",INDEX('Disaggregation1B_Import-Export'!AH$8:AH$218,MATCH($B122,'Disaggregation1B_Import-Export'!$C$8:$C$218,0))),\"\")","v":""},{"$f":"IFERROR(IF(INDEX('Disaggregation1B_Import-Export'!H$8:H$218,MATCH($B122,'Disaggregation1B_Import-Export'!$C$8:$C$218,0))=\"\",\"\",INDEX('Disaggregation1B_Import-Export'!H$8:H$218,MATCH($B122,'Disaggregation1B_Import-Export'!$C$8:$C$218,0))),\"\")","v":""},{"$f":"IFERROR(IF(INDEX('Disaggregation1B_Import-Export'!I$8:I$218,MATCH($B122,'Disaggregation1B_Import-Export'!$C$8:$C$218,0))=\"\",\"\",INDEX('Disaggregation1B_Import-Export'!I$8:I$218,MATCH($B122,'Disaggregation1B_Import-Export'!$C$8:$C$218,0))),\"\")","v":""},{"$f":"IFERROR(IF(INDEX('Disaggregation1B_Import-Export'!J$8:J$218,MATCH($B122,'Disaggregation1B_Import-Export'!$C$8:$C$218,0))=\"\",\"\",INDEX('Disaggregation1B_Import-Export'!J$8:J$218,MATCH($B122,'Disaggregation1B_Import-Export'!$C$8:$C$218,0))),\"\")","v":""},{"$f":"IFERROR(IF(INDEX('Disaggregation1B_Import-Export'!K$8:K$218,MATCH($B122,'Disaggregation1B_Import-Export'!$C$8:$C$218,0))=\"\",\"\",INDEX('Disaggregation1B_Import-Export'!K$8:K$218,MATCH($B122,'Disaggregation1B_Import-Export'!$C$8:$C$218,0))),\"\")","v":""},{"$f":"IFERROR(IF(INDEX('Disaggregation1B_Import-Export'!L$8:L$218,MATCH($B122,'Disaggregation1B_Import-Export'!$C$8:$C$218,0))=\"\",\"\",INDEX('Disaggregation1B_Import-Export'!L$8:L$218,MATCH($B122,'Disaggregation1B_Import-Export'!$C$8:$C$218,0))),\"\")","v":""},{"$f":"IFERROR(IF(INDEX('Disaggregation1B_Import-Export'!AQ$8:AQ$218,MATCH($B122,'Disaggregation1B_Import-Export'!$C$8:$C$218,0))=\"\",\"\",INDEX('Disaggregation1B_Import-Export'!AQ$8:AQ$218,MATCH($B122,'Disaggregation1B_Import-Export'!$C$8:$C$218,0))),\"\")","v":""},null,null,"",null,null,null,null,null,"",null,null,null,null,null,""]
[113,"Coverage113",{"$f":"IFERROR(INDEX('Disaggregation1B_Import-Export'!D$8:D$218,MATCH($B123,'Disaggregation1B_Import-Export'!$C$8:$C$218,0)),\"\")","v":""},{"$f":"IFERROR(INDEX('Disaggregation1B_Import-Export'!AF$8:AF$235,MATCH($B123,'Disaggregation1B_Import-Export'!$C$8:$C$235,0)),\"\")","v":""},{"$f":"IFERROR(IF(INDEX('Disaggregation1B_Import-Export'!AG$8:AG$218,MATCH($B123,'Disaggregation1B_Import-Export'!$C$8:$C$218,0))=\"\",\"\",INDEX('Disaggregation1B_Import-Export'!AG$8:AG$218,MATCH($B123,'Disaggregation1B_Import-Export'!$C$8:$C$218,0))),\"\")","v":""},{"$f":"IFERROR(IF(INDEX('Disaggregation1B_Import-Export'!AH$8:AH$218,MATCH($B123,'Disaggregation1B_Import-Export'!$C$8:$C$218,0))=\"\",\"\",INDEX('Disaggregation1B_Import-Export'!AH$8:AH$218,MATCH($B123,'Disaggregation1B_Import-Export'!$C$8:$C$218,0))),\"\")","v":""},{"$f":"IFERROR(IF(INDEX('Disaggregation1B_Import-Export'!H$8:H$218,MATCH($B123,'Disaggregation1B_Import-Export'!$C$8:$C$218,0))=\"\",\"\",INDEX('Disaggregation1B_Import-Export'!H$8:H$218,MATCH($B123,'Disaggregation1B_Import-Export'!$C$8:$C$218,0))),\"\")","v":""},{"$f":"IFERROR(IF(INDEX('Disaggregation1B_Import-Export'!I$8:I$218,MATCH($B123,'Disaggregation1B_Import-Export'!$C$8:$C$218,0))=\"\",\"\",INDEX('Disaggregation1B_Import-Export'!I$8:I$218,MATCH($B123,'Disaggregation1B_Import-Export'!$C$8:$C$218,0))),\"\")","v":""},{"$f":"IFERROR(IF(INDEX('Disaggregation1B_Import-Export'!J$8:J$218,MATCH($B123,'Disaggregation1B_Import-Export'!$C$8:$C$218,0))=\"\",\"\",INDEX('Disaggregation1B_Import-Export'!J$8:J$218,MATCH($B123,'Disaggregation1B_Import-Export'!$C$8:$C$218,0))),\"\")","v":""},{"$f":"IFERROR(IF(INDEX('Disaggregation1B_Import-Export'!K$8:K$218,MATCH($B123,'Disaggregation1B_Import-Export'!$C$8:$C$218,0))=\"\",\"\",INDEX('Disaggregation1B_Import-Export'!K$8:K$218,MATCH($B123,'Disaggregation1B_Import-Export'!$C$8:$C$218,0))),\"\")","v":""},{"$f":"IFERROR(IF(INDEX('Disaggregation1B_Import-Export'!L$8:L$218,MATCH($B123,'Disaggregation1B_Import-Export'!$C$8:$C$218,0))=\"\",\"\",INDEX('Disaggregation1B_Import-Export'!L$8:L$218,MATCH($B123,'Disaggregation1B_Import-Export'!$C$8:$C$218,0))),\"\")","v":""},{"$f":"IFERROR(IF(INDEX('Disaggregation1B_Import-Export'!AQ$8:AQ$218,MATCH($B123,'Disaggregation1B_Import-Export'!$C$8:$C$218,0))=\"\",\"\",INDEX('Disaggregation1B_Import-Export'!AQ$8:AQ$218,MATCH($B123,'Disaggregation1B_Import-Export'!$C$8:$C$218,0))),\"\")","v":""},null,null,"",null,null,null,null,null,"",null,null,null,null,null,""]
[114,"Coverage114",{"$f":"IFERROR(INDEX('Disaggregation1B_Import-Export'!D$8:D$218,MATCH($B124,'Disaggregation1B_Import-Export'!$C$8:$C$218,0)),\"\")","v":""},{"$f":"IFERROR(INDEX('Disaggregation1B_Import-Export'!AF$8:AF$235,MATCH($B124,'Disaggregation1B_Import-Export'!$C$8:$C$235,0)),\"\")","v":""},{"$f":"IFERROR(IF(INDEX('Disaggregation1B_Import-Export'!AG$8:AG$218,MATCH($B124,'Disaggregation1B_Import-Export'!$C$8:$C$218,0))=\"\",\"\",INDEX('Disaggregation1B_Import-Export'!AG$8:AG$218,MATCH($B124,'Disaggregation1B_Import-Export'!$C$8:$C$218,0))),\"\")","v":""},{"$f":"IFERROR(IF(INDEX('Disaggregation1B_Import-Export'!AH$8:AH$218,MATCH($B124,'Disaggregation1B_Import-Export'!$C$8:$C$218,0))=\"\",\"\",INDEX('Disaggregation1B_Import-Export'!AH$8:AH$218,MATCH($B124,'Disaggregation1B_Import-Export'!$C$8:$C$218,0))),\"\")","v":""},{"$f":"IFERROR(IF(INDEX('Disaggregation1B_Import-Export'!H$8:H$218,MATCH($B124,'Disaggregation1B_Import-Export'!$C$8:$C$218,0))=\"\",\"\",INDEX('Disaggregation1B_Import-Export'!H$8:H$218,MATCH($B124,'Disaggregation1B_Import-Export'!$C$8:$C$218,0))),\"\")","v":""},{"$f":"IFERROR(IF(INDEX('Disaggregation1B_Import-Export'!I$8:I$218,MATCH($B124,'Disaggregation1B_Import-Export'!$C$8:$C$218,0))=\"\",\"\",INDEX('Disaggregation1B_Import-Export'!I$8:I$218,MATCH($B124,'Disaggregation1B_Import-Export'!$C$8:$C$218,0))),\"\")","v":""},{"$f":"IFERROR(IF(INDEX('Disaggregation1B_Import-Export'!J$8:J$218,MATCH($B124,'Disaggregation1B_Import-Export'!$C$8:$C$218,0))=\"\",\"\",INDEX('Disaggregation1B_Import-Export'!J$8:J$218,MATCH($B124,'Disaggregation1B_Import-Export'!$C$8:$C$218,0))),\"\")","v":""},{"$f":"IFERROR(IF(INDEX('Disaggregation1B_Import-Export'!K$8:K$218,MATCH($B124,'Disaggregation1B_Import-Export'!$C$8:$C$218,0))=\"\",\"\",INDEX('Disaggregation1B_Import-Export'!K$8:K$218,MATCH($B124,'Disaggregation1B_Import-Export'!$C$8:$C$218,0))),\"\")","v":""},{"$f":"IFERROR(IF(INDEX('Disaggregation1B_Import-Export'!L$8:L$218,MATCH($B124,'Disaggregation1B_Import-Export'!$C$8:$C$218,0))=\"\",\"\",INDEX('Disaggregation1B_Import-Export'!L$8:L$218,MATCH($B124,'Disaggregation1B_Import-Export'!$C$8:$C$218,0))),\"\")","v":""},{"$f":"IFERROR(IF(INDEX('Disaggregation1B_Import-Export'!AQ$8:AQ$218,MATCH($B124,'Disaggregation1B_Import-Export'!$C$8:$C$218,0))=\"\",\"\",INDEX('Disaggregation1B_Import-Export'!AQ$8:AQ$218,MATCH($B124,'Disaggregation1B_Import-Export'!$C$8:$C$218,0))),\"\")","v":""},null,null,"",null,null,null,null,null,"",null,null,null,null,null,""]
[115,"Coverage115",{"$f":"IFERROR(INDEX('Disaggregation1B_Import-Export'!D$8:D$218,MATCH($B125,'Disaggregation1B_Import-Export'!$C$8:$C$218,0)),\"\")","v":""},{"$f":"IFERROR(INDEX('Disaggregation1B_Import-Export'!AF$8:AF$235,MATCH($B125,'Disaggregation1B_Import-Export'!$C$8:$C$235,0)),\"\")","v":""},{"$f":"IFERROR(IF(INDEX('Disaggregation1B_Import-Export'!AG$8:AG$218,MATCH($B125,'Disaggregation1B_Import-Export'!$C$8:$C$218,0))=\"\",\"\",INDEX('Disaggregation1B_Import-Export'!AG$8:AG$218,MATCH($B125,'Disaggregation1B_Import-Export'!$C$8:$C$218,0))),\"\")","v":""},{"$f":"IFERROR(IF(INDEX('Disaggregation1B_Import-Export'!AH$8:AH$218,MATCH($B125,'Disaggregation1B_Import-Export'!$C$8:$C$218,0))=\"\",\"\",INDEX('Disaggregation1B_Import-Export'!AH$8:AH$218,MATCH($B125,'Disaggregation1B_Import-Export'!$C$8:$C$218,0))),\"\")","v":""},{"$f":"IFERROR(IF(INDEX('Disaggregation1B_Import-Export'!H$8:H$218,MATCH($B125,'Disaggregation1B_Import-Export'!$C$8:$C$218,0))=\"\",\"\",INDEX('Disaggregation1B_Import-Export'!H$8:H$218,MATCH($B125,'Disaggregation1B_Import-Export'!$C$8:$C$218,0))),\"\")","v":""},{"$f":"IFERROR(IF(INDEX('Disaggregation1B_Import-Export'!I$8:I$218,MATCH($B125,'Disaggregation1B_Import-Export'!$C$8:$C$218,0))=\"\",\"\",INDEX('Disaggregation1B_Import-Export'!I$8:I$218,MATCH($B125,'Disaggregation1B_Import-Export'!$C$8:$C$218,0))),\"\")","v":""},{"$f":"IFERROR(IF(INDEX('Disaggregation1B_Import-Export'!J$8:J$218,MATCH($B125,'Disaggregation1B_Import-Export'!$C$8:$C$218,0))=\"\",\"\",INDEX('Disaggregation1B_Import-Export'!J$8:J$218,MATCH($B125,'Disaggregation1B_Import-Export'!$C$8:$C$218,0))),\"\")","v":""},{"$f":"IFERROR(IF(INDEX('Disaggregation1B_Import-Export'!K$8:K$218,MATCH($B125,'Disaggregation1B_Import-Export'!$C$8:$C$218,0))=\"\",\"\",INDEX('Disaggregation1B_Import-Export'!K$8:K$218,MATCH($B125,'Disaggregation1B_Import-Export'!$C$8:$C$218,0))),\"\")","v":""},{"$f":"IFERROR(IF(INDEX('Disaggregation1B_Import-Export'!L$8:L$218,MATCH($B125,'Disaggregation1B_Import-Export'!$C$8:$C$218,0))=\"\",\"\",INDEX('Disaggregation1B_Import-Export'!L$8:L$218,MATCH($B125,'Disaggregation1B_Import-Export'!$C$8:$C$218,0))),\"\")","v":""},{"$f":"IFERROR(IF(INDEX('Disaggregation1B_Import-Export'!AQ$8:AQ$218,MATCH($B125,'Disaggregation1B_Import-Export'!$C$8:$C$218,0))=\"\",\"\",INDEX('Disaggregation1B_Import-Export'!AQ$8:AQ$218,MATCH($B125,'Disaggregation1B_Import-Export'!$C$8:$C$218,0))),\"\")","v":""},null,null,"",null,null,null,null,null,"",null,null,null,null,null,""]
[116,"Coverage116",{"$f":"IFERROR(INDEX('Disaggregation1B_Import-Export'!D$8:D$218,MATCH($B126,'Disaggregation1B_Import-Export'!$C$8:$C$218,0)),\"\")","v":""},{"$f":"IFERROR(INDEX('Disaggregation1B_Import-Export'!AF$8:AF$235,MATCH($B126,'Disaggregation1B_Import-Export'!$C$8:$C$235,0)),\"\")","v":""},{"$f":"IFERROR(IF(INDEX('Disaggregation1B_Import-Export'!AG$8:AG$218,MATCH($B126,'Disaggregation1B_Import-Export'!$C$8:$C$218,0))=\"\",\"\",INDEX('Disaggregation1B_Import-Export'!AG$8:AG$218,MATCH($B126,'Disaggregation1B_Import-Export'!$C$8:$C$218,0))),\"\")","v":""},{"$f":"IFERROR(IF(INDEX('Disaggregation1B_Import-Export'!AH$8:AH$218,MATCH($B126,'Disaggregation1B_Import-Export'!$C$8:$C$218,0))=\"\",\"\",INDEX('Disaggregation1B_Import-Export'!AH$8:AH$218,MATCH($B126,'Disaggregation1B_Import-Export'!$C$8:$C$218,0))),\"\")","v":""},{"$f":"IFERROR(IF(INDEX('Disaggregation1B_Import-Export'!H$8:H$218,MATCH($B126,'Disaggregation1B_Import-Export'!$C$8:$C$218,0))=\"\",\"\",INDEX('Disaggregation1B_Import-Export'!H$8:H$218,MATCH($B126,'Disaggregation1B_Import-Export'!$C$8:$C$218,0))),\"\")","v":""},{"$f":"IFERROR(IF(INDEX('Disaggregation1B_Import-Export'!I$8:I$218,MATCH($B126,'Disaggregation1B_Import-Export'!$C$8:$C$218,0))=\"\",\"\",INDEX('Disaggregation1B_Import-Export'!I$8:I$218,MATCH($B126,'Disaggregation1B_Import-Export'!$C$8:$C$218,0))),\"\")","v":""},{"$f":"IFERROR(IF(INDEX('Disaggregation1B_Import-Export'!J$8:J$218,MATCH($B126,'Disaggregation1B_Import-Export'!$C$8:$C$218,0))=\"\",\"\",INDEX('Disaggregation1B_Import-Export'!J$8:J$218,MATCH($B126,'Disaggregation1B_Import-Export'!$C$8:$C$218,0))),\"\")","v":""},{"$f":"IFERROR(IF(INDEX('Disaggregation1B_Import-Export'!K$8:K$218,MATCH($B126,'Disaggregation1B_Import-Export'!$C$8:$C$218,0))=\"\",\"\",INDEX('Disaggregation1B_Import-Export'!K$8:K$218,MATCH($B126,'Disaggregation1B_Import-Export'!$C$8:$C$218,0))),\"\")","v":""},{"$f":"IFERROR(IF(INDEX('Disaggregation1B_Import-Export'!L$8:L$218,MATCH($B126,'Disaggregation1B_Import-Export'!$C$8:$C$218,0))=\"\",\"\",INDEX('Disaggregation1B_Import-Export'!L$8:L$218,MATCH($B126,'Disaggregation1B_Import-Export'!$C$8:$C$218,0))),\"\")","v":""},{"$f":"IFERROR(IF(INDEX('Disaggregation1B_Import-Export'!AQ$8:AQ$218,MATCH($B126,'Disaggregation1B_Import-Export'!$C$8:$C$218,0))=\"\",\"\",INDEX('Disaggregation1B_Import-Export'!AQ$8:AQ$218,MATCH($B126,'Disaggregation1B_Import-Export'!$C$8:$C$218,0))),\"\")","v":""},null,null,"",null,null,null,null,null,"",null,null,null,null,null,""]
[117,"Coverage117",{"$f":"IFERROR(INDEX('Disaggregation1B_Import-Export'!D$8:D$218,MATCH($B127,'Disaggregation1B_Import-Export'!$C$8:$C$218,0)),\"\")","v":""},{"$f":"IFERROR(INDEX('Disaggregation1B_Import-Export'!AF$8:AF$235,MATCH($B127,'Disaggregation1B_Import-Export'!$C$8:$C$235,0)),\"\")","v":""},{"$f":"IFERROR(IF(INDEX('Disaggregation1B_Import-Export'!AG$8:AG$218,MATCH($B127,'Disaggregation1B_Import-Export'!$C$8:$C$218,0))=\"\",\"\",INDEX('Disaggregation1B_Import-Export'!AG$8:AG$218,MATCH($B127,'Disaggregation1B_Import-Export'!$C$8:$C$218,0))),\"\")","v":""},{"$f":"IFERROR(IF(INDEX('Disaggregation1B_Import-Export'!AH$8:AH$218,MATCH($B127,'Disaggregation1B_Import-Export'!$C$8:$C$218,0))=\"\",\"\",INDEX('Disaggregation1B_Import-Export'!AH$8:AH$218,MATCH($B127,'Disaggregation1B_Import-Export'!$C$8:$C$218,0))),\"\")","v":""},{"$f":"IFERROR(IF(INDEX('Disaggregation1B_Import-Export'!H$8:H$218,MATCH($B127,'Disaggregation1B_Import-Export'!$C$8:$C$218,0))=\"\",\"\",INDEX('Disaggregation1B_Import-Export'!H$8:H$218,MATCH($B127,'Disaggregation1B_Import-Export'!$C$8:$C$218,0))),\"\")","v":""},{"$f":"IFERROR(IF(INDEX('Disaggregation1B_Import-Export'!I$8:I$218,MATCH($B127,'Disaggregation1B_Import-Export'!$C$8:$C$218,0))=\"\",\"\",INDEX('Disaggregation1B_Import-Export'!I$8:I$218,MATCH($B127,'Disaggregation1B_Import-Export'!$C$8:$C$218,0))),\"\")","v":""},{"$f":"IFERROR(IF(INDEX('Disaggregation1B_Import-Export'!J$8:J$218,MATCH($B127,'Disaggregation1B_Import-Export'!$C$8:$C$218,0))=\"\",\"\",INDEX('Disaggregation1B_Import-Export'!J$8:J$218,MATCH($B127,'Disaggregation1B_Import-Export'!$C$8:$C$218,0))),\"\")","v":""},{"$f":"IFERROR(IF(INDEX('Disaggregation1B_Import-Export'!K$8:K$218,MATCH($B127,'Disaggregation1B_Import-Export'!$C$8:$C$218,0))=\"\",\"\",INDEX('Disaggregation1B_Import-Export'!K$8:K$218,MATCH($B127,'Disaggregation1B_Import-Export'!$C$8:$C$218,0))),\"\")","v":""},{"$f":"IFERROR(IF(INDEX('Disaggregation1B_Import-Export'!L$8:L$218,MATCH($B127,'Disaggregation1B_Import-Export'!$C$8:$C$218,0))=\"\",\"\",INDEX('Disaggregation1B_Import-Export'!L$8:L$218,MATCH($B127,'Disaggregation1B_Import-Export'!$C$8:$C$218,0))),\"\")","v":""},{"$f":"IFERROR(IF(INDEX('Disaggregation1B_Import-Export'!AQ$8:AQ$218,MATCH($B127,'Disaggregation1B_Import-Export'!$C$8:$C$218,0))=\"\",\"\",INDEX('Disaggregation1B_Import-Export'!AQ$8:AQ$218,MATCH($B127,'Disaggregation1B_Import-Export'!$C$8:$C$218,0))),\"\")","v":""},null,null,"",null,null,null,null,null,"",null,null,null,null,null,""]
[118,"Coverage118",{"$f":"IFERROR(INDEX('Disaggregation1B_Import-Export'!D$8:D$218,MATCH($B128,'Disaggregation1B_Import-Export'!$C$8:$C$218,0)),\"\")","v":""},{"$f":"IFERROR(INDEX('Disaggregation1B_Import-Export'!AF$8:AF$235,MATCH($B128,'Disaggregation1B_Import-Export'!$C$8:$C$235,0)),\"\")","v":""},{"$f":"IFERROR(IF(INDEX('Disaggregation1B_Import-Export'!AG$8:AG$218,MATCH($B128,'Disaggregation1B_Import-Export'!$C$8:$C$218,0))=\"\",\"\",INDEX('Disaggregation1B_Import-Export'!AG$8:AG$218,MATCH($B128,'Disaggregation1B_Import-Export'!$C$8:$C$218,0))),\"\")","v":""},{"$f":"IFERROR(IF(INDEX('Disaggregation1B_Import-Export'!AH$8:AH$218,MATCH($B128,'Disaggregation1B_Import-Export'!$C$8:$C$218,0))=\"\",\"\",INDEX('Disaggregation1B_Import-Export'!AH$8:AH$218,MATCH($B128,'Disaggregation1B_Import-Export'!$C$8:$C$218,0))),\"\")","v":""},{"$f":"IFERROR(IF(INDEX('Disaggregation1B_Import-Export'!H$8:H$218,MATCH($B128,'Disaggregation1B_Import-Export'!$C$8:$C$218,0))=\"\",\"\",INDEX('Disaggregation1B_Import-Export'!H$8:H$218,MATCH($B128,'Disaggregation1B_Import-Export'!$C$8:$C$218,0))),\"\")","v":""},{"$f":"IFERROR(IF(INDEX('Disaggregation1B_Import-Export'!I$8:I$218,MATCH($B128,'Disaggregation1B_Import-Export'!$C$8:$C$218,0))=\"\",\"\",INDEX('Disaggregation1B_Import-Export'!I$8:I$218,MATCH($B128,'Disaggregation1B_Import-Export'!$C$8:$C$218,0))),\"\")","v":""},{"$f":"IFERROR(IF(INDEX('Disaggregation1B_Import-Export'!J$8:J$218,MATCH($B128,'Disaggregation1B_Import-Export'!$C$8:$C$218,0))=\"\",\"\",INDEX('Disaggregation1B_Import-Export'!J$8:J$218,MATCH($B128,'Disaggregation1B_Import-Export'!$C$8:$C$218,0))),\"\")","v":""},{"$f":"IFERROR(IF(INDEX('Disaggregation1B_Import-Export'!K$8:K$218,MATCH($B128,'Disaggregation1B_Import-Export'!$C$8:$C$218,0))=\"\",\"\",INDEX('Disaggregation1B_Import-Export'!K$8:K$218,MATCH($B128,'Disaggregation1B_Import-Export'!$C$8:$C$218,0))),\"\")","v":""},{"$f":"IFERROR(IF(INDEX('Disaggregation1B_Import-Export'!L$8:L$218,MATCH($B128,'Disaggregation1B_Import-Export'!$C$8:$C$218,0))=\"\",\"\",INDEX('Disaggregation1B_Import-Export'!L$8:L$218,MATCH($B128,'Disaggregation1B_Import-Export'!$C$8:$C$218,0))),\"\")","v":""},{"$f":"IFERROR(IF(INDEX('Disaggregation1B_Import-Export'!AQ$8:AQ$218,MATCH($B128,'Disaggregation1B_Import-Export'!$C$8:$C$218,0))=\"\",\"\",INDEX('Disaggregation1B_Import-Export'!AQ$8:AQ$218,MATCH($B128,'Disaggregation1B_Import-Export'!$C$8:$C$218,0))),\"\")","v":""},null,null,"",null,null,null,null,null,"",null,null,null,null,null,""]
[119,"Coverage119",{"$f":"IFERROR(INDEX('Disaggregation1B_Import-Export'!D$8:D$218,MATCH($B129,'Disaggregation1B_Import-Export'!$C$8:$C$218,0)),\"\")","v":""},{"$f":"IFERROR(INDEX('Disaggregation1B_Import-Export'!AF$8:AF$235,MATCH($B129,'Disaggregation1B_Import-Export'!$C$8:$C$235,0)),\"\")","v":""},{"$f":"IFERROR(IF(INDEX('Disaggregation1B_Import-Export'!AG$8:AG$218,MATCH($B129,'Disaggregation1B_Import-Export'!$C$8:$C$218,0))=\"\",\"\",INDEX('Disaggregation1B_Import-Export'!AG$8:AG$218,MATCH($B129,'Disaggregation1B_Import-Export'!$C$8:$C$218,0))),\"\")","v":""},{"$f":"IFERROR(IF(INDEX('Disaggregation1B_Import-Export'!AH$8:AH$218,MATCH($B129,'Disaggregation1B_Import-Export'!$C$8:$C$218,0))=\"\",\"\",INDEX('Disaggregation1B_Import-Export'!AH$8:AH$218,MATCH($B129,'Disaggregation1B_Import-Export'!$C$8:$C$218,0))),\"\")","v":""},{"$f":"IFERROR(IF(INDEX('Disaggregation1B_Import-Export'!H$8:H$218,MATCH($B129,'Disaggregation1B_Import-Export'!$C$8:$C$218,0))=\"\",\"\",INDEX('Disaggregation1B_Import-Export'!H$8:H$218,MATCH($B129,'Disaggregation1B_Import-Export'!$C$8:$C$218,0))),\"\")","v":""},{"$f":"IFERROR(IF(INDEX('Disaggregation1B_Import-Export'!I$8:I$218,MATCH($B129,'Disaggregation1B_Import-Export'!$C$8:$C$218,0))=\"\",\"\",INDEX('Disaggregation1B_Import-Export'!I$8:I$218,MATCH($B129,'Disaggregation1B_Import-Export'!$C$8:$C$218,0))),\"\")","v":""},{"$f":"IFERROR(IF(INDEX('Disaggregation1B_Import-Export'!J$8:J$218,MATCH($B129,'Disaggregation1B_Import-Export'!$C$8:$C$218,0))=\"\",\"\",INDEX('Disaggregation1B_Import-Export'!J$8:J$218,MATCH($B129,'Disaggregation1B_Import-Export'!$C$8:$C$218,0))),\"\")","v":""},{"$f":"IFERROR(IF(INDEX('Disaggregation1B_Import-Export'!K$8:K$218,MATCH($B129,'Disaggregation1B_Import-Export'!$C$8:$C$218,0))=\"\",\"\",INDEX('Disaggregation1B_Import-Export'!K$8:K$218,MATCH($B129,'Disaggregation1B_Import-Export'!$C$8:$C$218,0))),\"\")","v":""},{"$f":"IFERROR(IF(INDEX('Disaggregation1B_Import-Export'!L$8:L$218,MATCH($B129,'Disaggregation1B_Import-Export'!$C$8:$C$218,0))=\"\",\"\",INDEX('Disaggregation1B_Import-Export'!L$8:L$218,MATCH($B129,'Disaggregation1B_Import-Export'!$C$8:$C$218,0))),\"\")","v":""},{"$f":"IFERROR(IF(INDEX('Disaggregation1B_Import-Export'!AQ$8:AQ$218,MATCH($B129,'Disaggregation1B_Import-Export'!$C$8:$C$218,0))=\"\",\"\",INDEX('Disaggregation1B_Import-Export'!AQ$8:AQ$218,MATCH($B129,'Disaggregation1B_Import-Export'!$C$8:$C$218,0))),\"\")","v":""},null,null,"",null,null,null,null,null,"",null,null,null,null,null,""]
[120,"Coverage120",{"$f":"IFERROR(INDEX('Disaggregation1B_Import-Export'!D$8:D$218,MATCH($B130,'Disaggregation1B_Import-Export'!$C$8:$C$218,0)),\"\")","v":""},{"$f":"IFERROR(INDEX('Disaggregation1B_Import-Export'!AF$8:AF$235,MATCH($B130,'Disaggregation1B_Import-Export'!$C$8:$C$235,0)),\"\")","v":""},{"$f":"IFERROR(IF(INDEX('Disaggregation1B_Import-Export'!AG$8:AG$218,MATCH($B130,'Disaggregation1B_Import-Export'!$C$8:$C$218,0))=\"\",\"\",INDEX('Disaggregation1B_Import-Export'!AG$8:AG$218,MATCH($B130,'Disaggregation1B_Import-Export'!$C$8:$C$218,0))),\"\")","v":""},{"$f":"IFERROR(IF(INDEX('Disaggregation1B_Import-Export'!AH$8:AH$218,MATCH($B130,'Disaggregation1B_Import-Export'!$C$8:$C$218,0))=\"\",\"\",INDEX('Disaggregation1B_Import-Export'!AH$8:AH$218,MATCH($B130,'Disaggregation1B_Import-Export'!$C$8:$C$218,0))),\"\")","v":""},{"$f":"IFERROR(IF(INDEX('Disaggregation1B_Import-Export'!H$8:H$218,MATCH($B130,'Disaggregation1B_Import-Export'!$C$8:$C$218,0))=\"\",\"\",INDEX('Disaggregation1B_Import-Export'!H$8:H$218,MATCH($B130,'Disaggregation1B_Import-Export'!$C$8:$C$218,0))),\"\")","v":""},{"$f":"IFERROR(IF(INDEX('Disaggregation1B_Import-Export'!I$8:I$218,MATCH($B130,'Disaggregation1B_Import-Export'!$C$8:$C$218,0))=\"\",\"\",INDEX('Disaggregation1B_Import-Export'!I$8:I$218,MATCH($B130,'Disaggregation1B_Import-Export'!$C$8:$C$218,0))),\"\")","v":""},{"$f":"IFERROR(IF(INDEX('Disaggregation1B_Import-Export'!J$8:J$218,MATCH($B130,'Disaggregation1B_Import-Export'!$C$8:$C$218,0))=\"\",\"\",INDEX('Disaggregation1B_Import-Export'!J$8:J$218,MATCH($B130,'Disaggregation1B_Import-Export'!$C$8:$C$218,0))),\"\")","v":""},{"$f":"IFERROR(IF(INDEX('Disaggregation1B_Import-Export'!K$8:K$218,MATCH($B130,'Disaggregation1B_Import-Export'!$C$8:$C$218,0))=\"\",\"\",INDEX('Disaggregation1B_Import-Export'!K$8:K$218,MATCH($B130,'Disaggregation1B_Import-Export'!$C$8:$C$218,0))),\"\")","v":""},{"$f":"IFERROR(IF(INDEX('Disaggregation1B_Import-Export'!L$8:L$218,MATCH($B130,'Disaggregation1B_Import-Export'!$C$8:$C$218,0))=\"\",\"\",INDEX('Disaggregation1B_Import-Export'!L$8:L$218,MATCH($B130,'Disaggregation1B_Import-Export'!$C$8:$C$218,0))),\"\")","v":""},{"$f":"IFERROR(IF(INDEX('Disaggregation1B_Import-Export'!AQ$8:AQ$218,MATCH($B130,'Disaggregation1B_Import-Export'!$C$8:$C$218,0))=\"\",\"\",INDEX('Disaggregation1B_Import-Export'!AQ$8:AQ$218,MATCH($B130,'Disaggregation1B_Import-Export'!$C$8:$C$218,0))),\"\")","v":""},null,null,"",null,null,null,null,null,"",null,null,null,null,null,""]
[121,"Coverage121",{"$f":"IFERROR(INDEX('Disaggregation1B_Import-Export'!D$8:D$218,MATCH($B131,'Disaggregation1B_Import-Export'!$C$8:$C$218,0)),\"\")","v":""},{"$f":"IFERROR(INDEX('Disaggregation1B_Import-Export'!AF$8:AF$235,MATCH($B131,'Disaggregation1B_Import-Export'!$C$8:$C$235,0)),\"\")","v":""},{"$f":"IFERROR(IF(INDEX('Disaggregation1B_Import-Export'!AG$8:AG$218,MATCH($B131,'Disaggregation1B_Import-Export'!$C$8:$C$218,0))=\"\",\"\",INDEX('Disaggregation1B_Import-Export'!AG$8:AG$218,MATCH($B131,'Disaggregation1B_Import-Export'!$C$8:$C$218,0))),\"\")","v":""},{"$f":"IFERROR(IF(INDEX('Disaggregation1B_Import-Export'!AH$8:AH$218,MATCH($B131,'Disaggregation1B_Import-Export'!$C$8:$C$218,0))=\"\",\"\",INDEX('Disaggregation1B_Import-Export'!AH$8:AH$218,MATCH($B131,'Disaggregation1B_Import-Export'!$C$8:$C$218,0))),\"\")","v":""},{"$f":"IFERROR(IF(INDEX('Disaggregation1B_Import-Export'!H$8:H$218,MATCH($B131,'Disaggregation1B_Import-Export'!$C$8:$C$218,0))=\"\",\"\",INDEX('Disaggregation1B_Import-Export'!H$8:H$218,MATCH($B131,'Disaggregation1B_Import-Export'!$C$8:$C$218,0))),\"\")","v":""},{"$f":"IFERROR(IF(INDEX('Disaggregation1B_Import-Export'!I$8:I$218,MATCH($B131,'Disaggregation1B_Import-Export'!$C$8:$C$218,0))=\"\",\"\",INDEX('Disaggregation1B_Import-Export'!I$8:I$218,MATCH($B131,'Disaggregation1B_Import-Export'!$C$8:$C$218,0))),\"\")","v":""},{"$f":"IFERROR(IF(INDEX('Disaggregation1B_Import-Export'!J$8:J$218,MATCH($B131,'Disaggregation1B_Import-Export'!$C$8:$C$218,0))=\"\",\"\",INDEX('Disaggregation1B_Import-Export'!J$8:J$218,MATCH($B131,'Disaggregation1B_Import-Export'!$C$8:$C$218,0))),\"\")","v":""},{"$f":"IFERROR(IF(INDEX('Disaggregation1B_Import-Export'!K$8:K$218,MATCH($B131,'Disaggregation1B_Import-Export'!$C$8:$C$218,0))=\"\",\"\",INDEX('Disaggregation1B_Import-Export'!K$8:K$218,MATCH($B131,'Disaggregation1B_Import-Export'!$C$8:$C$218,0))),\"\")","v":""},{"$f":"IFERROR(IF(INDEX('Disaggregation1B_Import-Export'!L$8:L$218,MATCH($B131,'Disaggregation1B_Import-Export'!$C$8:$C$218,0))=\"\",\"\",INDEX('Disaggregation1B_Import-Export'!L$8:L$218,MATCH($B131,'Disaggregation1B_Import-Export'!$C$8:$C$218,0))),\"\")","v":""},{"$f":"IFERROR(IF(INDEX('Disaggregation1B_Import-Export'!AQ$8:AQ$218,MATCH($B131,'Disaggregation1B_Import-Export'!$C$8:$C$218,0))=\"\",\"\",INDEX('Disaggregation1B_Import-Export'!AQ$8:AQ$218,MATCH($B131,'Disaggregation1B_Import-Export'!$C$8:$C$218,0))),\"\")","v":""},null,null,"",null,null,null,null,null,"",null,null,null,null,null,""]
[122,"Coverage122",{"$f":"IFERROR(INDEX('Disaggregation1B_Import-Export'!D$8:D$218,MATCH($B132,'Disaggregation1B_Import-Export'!$C$8:$C$218,0)),\"\")","v":""},{"$f":"IFERROR(INDEX('Disaggregation1B_Import-Export'!AF$8:AF$235,MATCH($B132,'Disaggregation1B_Import-Export'!$C$8:$C$235,0)),\"\")","v":""},{"$f":"IFERROR(IF(INDEX('Disaggregation1B_Import-Export'!AG$8:AG$218,MATCH($B132,'Disaggregation1B_Import-Export'!$C$8:$C$218,0))=\"\",\"\",INDEX('Disaggregation1B_Import-Export'!AG$8:AG$218,MATCH($B132,'Disaggregation1B_Import-Export'!$C$8:$C$218,0))),\"\")","v":""},{"$f":"IFERROR(IF(INDEX('Disaggregation1B_Import-Export'!AH$8:AH$218,MATCH($B132,'Disaggregation1B_Import-Export'!$C$8:$C$218,0))=\"\",\"\",INDEX('Disaggregation1B_Import-Export'!AH$8:AH$218,MATCH($B132,'Disaggregation1B_Import-Export'!$C$8:$C$218,0))),\"\")","v":""},{"$f":"IFERROR(IF(INDEX('Disaggregation1B_Import-Export'!H$8:H$218,MATCH($B132,'Disaggregation1B_Import-Export'!$C$8:$C$218,0))=\"\",\"\",INDEX('Disaggregation1B_Import-Export'!H$8:H$218,MATCH($B132,'Disaggregation1B_Import-Export'!$C$8:$C$218,0))),\"\")","v":""},{"$f":"IFERROR(IF(INDEX('Disaggregation1B_Import-Export'!I$8:I$218,MATCH($B132,'Disaggregation1B_Import-Export'!$C$8:$C$218,0))=\"\",\"\",INDEX('Disaggregation1B_Import-Export'!I$8:I$218,MATCH($B132,'Disaggregation1B_Import-Export'!$C$8:$C$218,0))),\"\")","v":""},{"$f":"IFERROR(IF(INDEX('Disaggregation1B_Import-Export'!J$8:J$218,MATCH($B132,'Disaggregation1B_Import-Export'!$C$8:$C$218,0))=\"\",\"\",INDEX('Disaggregation1B_Import-Export'!J$8:J$218,MATCH($B132,'Disaggregation1B_Import-Export'!$C$8:$C$218,0))),\"\")","v":""},{"$f":"IFERROR(IF(INDEX('Disaggregation1B_Import-Export'!K$8:K$218,MATCH($B132,'Disaggregation1B_Import-Export'!$C$8:$C$218,0))=\"\",\"\",INDEX('Disaggregation1B_Import-Export'!K$8:K$218,MATCH($B132,'Disaggregation1B_Import-Export'!$C$8:$C$218,0))),\"\")","v":""},{"$f":"IFERROR(IF(INDEX('Disaggregation1B_Import-Export'!L$8:L$218,MATCH($B132,'Disaggregation1B_Import-Export'!$C$8:$C$218,0))=\"\",\"\",INDEX('Disaggregation1B_Import-Export'!L$8:L$218,MATCH($B132,'Disaggregation1B_Import-Export'!$C$8:$C$218,0))),\"\")","v":""},{"$f":"IFERROR(IF(INDEX('Disaggregation1B_Import-Export'!AQ$8:AQ$218,MATCH($B132,'Disaggregation1B_Import-Export'!$C$8:$C$218,0))=\"\",\"\",INDEX('Disaggregation1B_Import-Export'!AQ$8:AQ$218,MATCH($B132,'Disaggregation1B_Import-Export'!$C$8:$C$218,0))),\"\")","v":""},null,null,"",null,null,null,null,null,"",null,null,null,null,null,""]
[123,"Coverage123",{"$f":"IFERROR(INDEX('Disaggregation1B_Import-Export'!D$8:D$218,MATCH($B133,'Disaggregation1B_Import-Export'!$C$8:$C$218,0)),\"\")","v":""},{"$f":"IFERROR(INDEX('Disaggregation1B_Import-Export'!AF$8:AF$235,MATCH($B133,'Disaggregation1B_Import-Export'!$C$8:$C$235,0)),\"\")","v":""},{"$f":"IFERROR(IF(INDEX('Disaggregation1B_Import-Export'!AG$8:AG$218,MATCH($B133,'Disaggregation1B_Import-Export'!$C$8:$C$218,0))=\"\",\"\",INDEX('Disaggregation1B_Import-Export'!AG$8:AG$218,MATCH($B133,'Disaggregation1B_Import-Export'!$C$8:$C$218,0))),\"\")","v":""},{"$f":"IFERROR(IF(INDEX('Disaggregation1B_Import-Export'!AH$8:AH$218,MATCH($B133,'Disaggregation1B_Import-Export'!$C$8:$C$218,0))=\"\",\"\",INDEX('Disaggregation1B_Import-Export'!AH$8:AH$218,MATCH($B133,'Disaggregation1B_Import-Export'!$C$8:$C$218,0))),\"\")","v":""},{"$f":"IFERROR(IF(INDEX('Disaggregation1B_Import-Export'!H$8:H$218,MATCH($B133,'Disaggregation1B_Import-Export'!$C$8:$C$218,0))=\"\",\"\",INDEX('Disaggregation1B_Import-Export'!H$8:H$218,MATCH($B133,'Disaggregation1B_Import-Export'!$C$8:$C$218,0))),\"\")","v":""},{"$f":"IFERROR(IF(INDEX('Disaggregation1B_Import-Export'!I$8:I$218,MATCH($B133,'Disaggregation1B_Import-Export'!$C$8:$C$218,0))=\"\",\"\",INDEX('Disaggregation1B_Import-Export'!I$8:I$218,MATCH($B133,'Disaggregation1B_Import-Export'!$C$8:$C$218,0))),\"\")","v":""},{"$f":"IFERROR(IF(INDEX('Disaggregation1B_Import-Export'!J$8:J$218,MATCH($B133,'Disaggregation1B_Import-Export'!$C$8:$C$218,0))=\"\",\"\",INDEX('Disaggregation1B_Import-Export'!J$8:J$218,MATCH($B133,'Disaggregation1B_Import-Export'!$C$8:$C$218,0))),\"\")","v":""},{"$f":"IFERROR(IF(INDEX('Disaggregation1B_Import-Export'!K$8:K$218,MATCH($B133,'Disaggregation1B_Import-Export'!$C$8:$C$218,0))=\"\",\"\",INDEX('Disaggregation1B_Import-Export'!K$8:K$218,MATCH($B133,'Disaggregation1B_Import-Export'!$C$8:$C$218,0))),\"\")","v":""},{"$f":"IFERROR(IF(INDEX('Disaggregation1B_Import-Export'!L$8:L$218,MATCH($B133,'Disaggregation1B_Import-Export'!$C$8:$C$218,0))=\"\",\"\",INDEX('Disaggregation1B_Import-Export'!L$8:L$218,MATCH($B133,'Disaggregation1B_Import-Export'!$C$8:$C$218,0))),\"\")","v":""},{"$f":"IFERROR(IF(INDEX('Disaggregation1B_Import-Export'!AQ$8:AQ$218,MATCH($B133,'Disaggregation1B_Import-Export'!$C$8:$C$218,0))=\"\",\"\",INDEX('Disaggregation1B_Import-Export'!AQ$8:AQ$218,MATCH($B133,'Disaggregation1B_Import-Export'!$C$8:$C$218,0))),\"\")","v":""},null,null,"",null,null,null,null,null,"",null,null,null,null,null,""]
[124,"Coverage124",{"$f":"IFERROR(INDEX('Disaggregation1B_Import-Export'!D$8:D$218,MATCH($B134,'Disaggregation1B_Import-Export'!$C$8:$C$218,0)),\"\")","v":""},{"$f":"IFERROR(INDEX('Disaggregation1B_Import-Export'!AF$8:AF$235,MATCH($B134,'Disaggregation1B_Import-Export'!$C$8:$C$235,0)),\"\")","v":""},{"$f":"IFERROR(IF(INDEX('Disaggregation1B_Import-Export'!AG$8:AG$218,MATCH($B134,'Disaggregation1B_Import-Export'!$C$8:$C$218,0))=\"\",\"\",INDEX('Disaggregation1B_Import-Export'!AG$8:AG$218,MATCH($B134,'Disaggregation1B_Import-Export'!$C$8:$C$218,0))),\"\")","v":""},{"$f":"IFERROR(IF(INDEX('Disaggregation1B_Import-Export'!AH$8:AH$218,MATCH($B134,'Disaggregation1B_Import-Export'!$C$8:$C$218,0))=\"\",\"\",INDEX('Disaggregation1B_Import-Export'!AH$8:AH$218,MATCH($B134,'Disaggregation1B_Import-Export'!$C$8:$C$218,0))),\"\")","v":""},{"$f":"IFERROR(IF(INDEX('Disaggregation1B_Import-Export'!H$8:H$218,MATCH($B134,'Disaggregation1B_Import-Export'!$C$8:$C$218,0))=\"\",\"\",INDEX('Disaggregation1B_Import-Export'!H$8:H$218,MATCH($B134,'Disaggregation1B_Import-Export'!$C$8:$C$218,0))),\"\")","v":""},{"$f":"IFERROR(IF(INDEX('Disaggregation1B_Import-Export'!I$8:I$218,MATCH($B134,'Disaggregation1B_Import-Export'!$C$8:$C$218,0))=\"\",\"\",INDEX('Disaggregation1B_Import-Export'!I$8:I$218,MATCH($B134,'Disaggregation1B_Import-Export'!$C$8:$C$218,0))),\"\")","v":""},{"$f":"IFERROR(IF(INDEX('Disaggregation1B_Import-Export'!J$8:J$218,MATCH($B134,'Disaggregation1B_Import-Export'!$C$8:$C$218,0))=\"\",\"\",INDEX('Disaggregation1B_Import-Export'!J$8:J$218,MATCH($B134,'Disaggregation1B_Import-Export'!$C$8:$C$218,0))),\"\")","v":""},{"$f":"IFERROR(IF(INDEX('Disaggregation1B_Import-Export'!K$8:K$218,MATCH($B134,'Disaggregation1B_Import-Export'!$C$8:$C$218,0))=\"\",\"\",INDEX('Disaggregation1B_Import-Export'!K$8:K$218,MATCH($B134,'Disaggregation1B_Import-Export'!$C$8:$C$218,0))),\"\")","v":""},{"$f":"IFERROR(IF(INDEX('Disaggregation1B_Import-Export'!L$8:L$218,MATCH($B134,'Disaggregation1B_Import-Export'!$C$8:$C$218,0))=\"\",\"\",INDEX('Disaggregation1B_Import-Export'!L$8:L$218,MATCH($B134,'Disaggregation1B_Import-Export'!$C$8:$C$218,0))),\"\")","v":""},{"$f":"IFERROR(IF(INDEX('Disaggregation1B_Import-Export'!AQ$8:AQ$218,MATCH($B134,'Disaggregation1B_Import-Export'!$C$8:$C$218,0))=\"\",\"\",INDEX('Disaggregation1B_Import-Export'!AQ$8:AQ$218,MATCH($B134,'Disaggregation1B_Import-Export'!$C$8:$C$218,0))),\"\")","v":""},null,null,"",null,null,null,null,null,"",null,null,null,null,null,""]
[125,"Coverage125",{"$f":"IFERROR(INDEX('Disaggregation1B_Import-Export'!D$8:D$218,MATCH($B135,'Disaggregation1B_Import-Export'!$C$8:$C$218,0)),\"\")","v":""},{"$f":"IFERROR(INDEX('Disaggregation1B_Import-Export'!AF$8:AF$235,MATCH($B135,'Disaggregation1B_Import-Export'!$C$8:$C$235,0)),\"\")","v":""},{"$f":"IFERROR(IF(INDEX('Disaggregation1B_Import-Export'!AG$8:AG$218,MATCH($B135,'Disaggregation1B_Import-Export'!$C$8:$C$218,0))=\"\",\"\",INDEX('Disaggregation1B_Import-Export'!AG$8:AG$218,MATCH($B135,'Disaggregation1B_Import-Export'!$C$8:$C$218,0))),\"\")","v":""},{"$f":"IFERROR(IF(INDEX('Disaggregation1B_Import-Export'!AH$8:AH$218,MATCH($B135,'Disaggregation1B_Import-Export'!$C$8:$C$218,0))=\"\",\"\",INDEX('Disaggregation1B_Import-Export'!AH$8:AH$218,MATCH($B135,'Disaggregation1B_Import-Export'!$C$8:$C$218,0))),\"\")","v":""},{"$f":"IFERROR(IF(INDEX('Disaggregation1B_Import-Export'!H$8:H$218,MATCH($B135,'Disaggregation1B_Import-Export'!$C$8:$C$218,0))=\"\",\"\",INDEX('Disaggregation1B_Import-Export'!H$8:H$218,MATCH($B135,'Disaggregation1B_Import-Export'!$C$8:$C$218,0))),\"\")","v":""},{"$f":"IFERROR(IF(INDEX('Disaggregation1B_Import-Export'!I$8:I$218,MATCH($B135,'Disaggregation1B_Import-Export'!$C$8:$C$218,0))=\"\",\"\",INDEX('Disaggregation1B_Import-Export'!I$8:I$218,MATCH($B135,'Disaggregation1B_Import-Export'!$C$8:$C$218,0))),\"\")","v":""},{"$f":"IFERROR(IF(INDEX('Disaggregation1B_Import-Export'!J$8:J$218,MATCH($B135,'Disaggregation1B_Import-Export'!$C$8:$C$218,0))=\"\",\"\",INDEX('Disaggregation1B_Import-Export'!J$8:J$218,MATCH($B135,'Disaggregation1B_Import-Export'!$C$8:$C$218,0))),\"\")","v":""},{"$f":"IFERROR(IF(INDEX('Disaggregation1B_Import-Export'!K$8:K$218,MATCH($B135,'Disaggregation1B_Import-Export'!$C$8:$C$218,0))=\"\",\"\",INDEX('Disaggregation1B_Import-Export'!K$8:K$218,MATCH($B135,'Disaggregation1B_Import-Export'!$C$8:$C$218,0))),\"\")","v":""},{"$f":"IFERROR(IF(INDEX('Disaggregation1B_Import-Export'!L$8:L$218,MATCH($B135,'Disaggregation1B_Import-Export'!$C$8:$C$218,0))=\"\",\"\",INDEX('Disaggregation1B_Import-Export'!L$8:L$218,MATCH($B135,'Disaggregation1B_Import-Export'!$C$8:$C$218,0))),\"\")","v":""},{"$f":"IFERROR(IF(INDEX('Disaggregation1B_Import-Export'!AQ$8:AQ$218,MATCH($B135,'Disaggregation1B_Import-Export'!$C$8:$C$218,0))=\"\",\"\",INDEX('Disaggregation1B_Import-Export'!AQ$8:AQ$218,MATCH($B135,'Disaggregation1B_Import-Export'!$C$8:$C$218,0))),\"\")","v":""},null,null,"",null,null,null,null,null,"",null,null,null,null,null,""]
[126,"Coverage126",{"$f":"IFERROR(INDEX('Disaggregation1B_Import-Export'!D$8:D$218,MATCH($B136,'Disaggregation1B_Import-Export'!$C$8:$C$218,0)),\"\")","v":""},{"$f":"IFERROR(INDEX('Disaggregation1B_Import-Export'!AF$8:AF$235,MATCH($B136,'Disaggregation1B_Import-Export'!$C$8:$C$235,0)),\"\")","v":""},{"$f":"IFERROR(IF(INDEX('Disaggregation1B_Import-Export'!AG$8:AG$218,MATCH($B136,'Disaggregation1B_Import-Export'!$C$8:$C$218,0))=\"\",\"\",INDEX('Disaggregation1B_Import-Export'!AG$8:AG$218,MATCH($B136,'Disaggregation1B_Import-Export'!$C$8:$C$218,0))),\"\")","v":""},{"$f":"IFERROR(IF(INDEX('Disaggregation1B_Import-Export'!AH$8:AH$218,MATCH($B136,'Disaggregation1B_Import-Export'!$C$8:$C$218,0))=\"\",\"\",INDEX('Disaggregation1B_Import-Export'!AH$8:AH$218,MATCH($B136,'Disaggregation1B_Import-Export'!$C$8:$C$218,0))),\"\")","v":""},{"$f":"IFERROR(IF(INDEX('Disaggregation1B_Import-Export'!H$8:H$218,MATCH($B136,'Disaggregation1B_Import-Export'!$C$8:$C$218,0))=\"\",\"\",INDEX('Disaggregation1B_Import-Export'!H$8:H$218,MATCH($B136,'Disaggregation1B_Import-Export'!$C$8:$C$218,0))),\"\")","v":""},{"$f":"IFERROR(IF(INDEX('Disaggregation1B_Import-Export'!I$8:I$218,MATCH($B136,'Disaggregation1B_Import-Export'!$C$8:$C$218,0))=\"\",\"\",INDEX('Disaggregation1B_Import-Export'!I$8:I$218,MATCH($B136,'Disaggregation1B_Import-Export'!$C$8:$C$218,0))),\"\")","v":""},{"$f":"IFERROR(IF(INDEX('Disaggregation1B_Import-Export'!J$8:J$218,MATCH($B136,'Disaggregation1B_Import-Export'!$C$8:$C$218,0))=\"\",\"\",INDEX('Disaggregation1B_Import-Export'!J$8:J$218,MATCH($B136,'Disaggregation1B_Import-Export'!$C$8:$C$218,0))),\"\")","v":""},{"$f":"IFERROR(IF(INDEX('Disaggregation1B_Import-Export'!K$8:K$218,MATCH($B136,'Disaggregation1B_Import-Export'!$C$8:$C$218,0))=\"\",\"\",INDEX('Disaggregation1B_Import-Export'!K$8:K$218,MATCH($B136,'Disaggregation1B_Import-Export'!$C$8:$C$218,0))),\"\")","v":""},{"$f":"IFERROR(IF(INDEX('Disaggregation1B_Import-Export'!L$8:L$218,MATCH($B136,'Disaggregation1B_Import-Export'!$C$8:$C$218,0))=\"\",\"\",INDEX('Disaggregation1B_Import-Export'!L$8:L$218,MATCH($B136,'Disaggregation1B_Import-Export'!$C$8:$C$218,0))),\"\")","v":""},{"$f":"IFERROR(IF(INDEX('Disaggregation1B_Import-Export'!AQ$8:AQ$218,MATCH($B136,'Disaggregation1B_Import-Export'!$C$8:$C$218,0))=\"\",\"\",INDEX('Disaggregation1B_Import-Export'!AQ$8:AQ$218,MATCH($B136,'Disaggregation1B_Import-Export'!$C$8:$C$218,0))),\"\")","v":""},null,null,"",null,null,null,null,null,"",null,null,null,null,null,""]
[127,"Coverage127",{"$f":"IFERROR(INDEX('Disaggregation1B_Import-Export'!D$8:D$218,MATCH($B137,'Disaggregation1B_Import-Export'!$C$8:$C$218,0)),\"\")","v":""},{"$f":"IFERROR(INDEX('Disaggregation1B_Import-Export'!AF$8:AF$235,MATCH($B137,'Disaggregation1B_Import-Export'!$C$8:$C$235,0)),\"\")","v":""},{"$f":"IFERROR(IF(INDEX('Disaggregation1B_Import-Export'!AG$8:AG$218,MATCH($B137,'Disaggregation1B_Import-Export'!$C$8:$C$218,0))=\"\",\"\",INDEX('Disaggregation1B_Import-Export'!AG$8:AG$218,MATCH($B137,'Disaggregation1B_Import-Export'!$C$8:$C$218,0))),\"\")","v":""},{"$f":"IFERROR(IF(INDEX('Disaggregation1B_Import-Export'!AH$8:AH$218,MATCH($B137,'Disaggregation1B_Import-Export'!$C$8:$C$218,0))=\"\",\"\",INDEX('Disaggregation1B_Import-Export'!AH$8:AH$218,MATCH($B137,'Disaggregation1B_Import-Export'!$C$8:$C$218,0))),\"\")","v":""},{"$f":"IFERROR(IF(INDEX('Disaggregation1B_Import-Export'!H$8:H$218,MATCH($B137,'Disaggregation1B_Import-Export'!$C$8:$C$218,0))=\"\",\"\",INDEX('Disaggregation1B_Import-Export'!H$8:H$218,MATCH($B137,'Disaggregation1B_Import-Export'!$C$8:$C$218,0))),\"\")","v":""},{"$f":"IFERROR(IF(INDEX('Disaggregation1B_Import-Export'!I$8:I$218,MATCH($B137,'Disaggregation1B_Import-Export'!$C$8:$C$218,0))=\"\",\"\",INDEX('Disaggregation1B_Import-Export'!I$8:I$218,MATCH($B137,'Disaggregation1B_Import-Export'!$C$8:$C$218,0))),\"\")","v":""},{"$f":"IFERROR(IF(INDEX('Disaggregation1B_Import-Export'!J$8:J$218,MATCH($B137,'Disaggregation1B_Import-Export'!$C$8:$C$218,0))=\"\",\"\",INDEX('Disaggregation1B_Import-Export'!J$8:J$218,MATCH($B137,'Disaggregation1B_Import-Export'!$C$8:$C$218,0))),\"\")","v":""},{"$f":"IFERROR(IF(INDEX('Disaggregation1B_Import-Export'!K$8:K$218,MATCH($B137,'Disaggregation1B_Import-Export'!$C$8:$C$218,0))=\"\",\"\",INDEX('Disaggregation1B_Import-Export'!K$8:K$218,MATCH($B137,'Disaggregation1B_Import-Export'!$C$8:$C$218,0))),\"\")","v":""},{"$f":"IFERROR(IF(INDEX('Disaggregation1B_Import-Export'!L$8:L$218,MATCH($B137,'Disaggregation1B_Import-Export'!$C$8:$C$218,0))=\"\",\"\",INDEX('Disaggregation1B_Import-Export'!L$8:L$218,MATCH($B137,'Disaggregation1B_Import-Export'!$C$8:$C$218,0))),\"\")","v":""},{"$f":"IFERROR(IF(INDEX('Disaggregation1B_Import-Export'!AQ$8:AQ$218,MATCH($B137,'Disaggregation1B_Import-Export'!$C$8:$C$218,0))=\"\",\"\",INDEX('Disaggregation1B_Import-Export'!AQ$8:AQ$218,MATCH($B137,'Disaggregation1B_Import-Export'!$C$8:$C$218,0))),\"\")","v":""},null,null,"",null,null,null,null,null,"",null,null,null,null,null,""]
[128,"Coverage128",{"$f":"IFERROR(INDEX('Disaggregation1B_Import-Export'!D$8:D$218,MATCH($B138,'Disaggregation1B_Import-Export'!$C$8:$C$218,0)),\"\")","v":""},{"$f":"IFERROR(INDEX('Disaggregation1B_Import-Export'!AF$8:AF$235,MATCH($B138,'Disaggregation1B_Import-Export'!$C$8:$C$235,0)),\"\")","v":""},{"$f":"IFERROR(IF(INDEX('Disaggregation1B_Import-Export'!AG$8:AG$218,MATCH($B138,'Disaggregation1B_Import-Export'!$C$8:$C$218,0))=\"\",\"\",INDEX('Disaggregation1B_Import-Export'!AG$8:AG$218,MATCH($B138,'Disaggregation1B_Import-Export'!$C$8:$C$218,0))),\"\")","v":""},{"$f":"IFERROR(IF(INDEX('Disaggregation1B_Import-Export'!AH$8:AH$218,MATCH($B138,'Disaggregation1B_Import-Export'!$C$8:$C$218,0))=\"\",\"\",INDEX('Disaggregation1B_Import-Export'!AH$8:AH$218,MATCH($B138,'Disaggregation1B_Import-Export'!$C$8:$C$218,0))),\"\")","v":""},{"$f":"IFERROR(IF(INDEX('Disaggregation1B_Import-Export'!H$8:H$218,MATCH($B138,'Disaggregation1B_Import-Export'!$C$8:$C$218,0))=\"\",\"\",INDEX('Disaggregation1B_Import-Export'!H$8:H$218,MATCH($B138,'Disaggregation1B_Import-Export'!$C$8:$C$218,0))),\"\")","v":""},{"$f":"IFERROR(IF(INDEX('Disaggregation1B_Import-Export'!I$8:I$218,MATCH($B138,'Disaggregation1B_Import-Export'!$C$8:$C$218,0))=\"\",\"\",INDEX('Disaggregation1B_Import-Export'!I$8:I$218,MATCH($B138,'Disaggregation1B_Import-Export'!$C$8:$C$218,0))),\"\")","v":""},{"$f":"IFERROR(IF(INDEX('Disaggregation1B_Import-Export'!J$8:J$218,MATCH($B138,'Disaggregation1B_Import-Export'!$C$8:$C$218,0))=\"\",\"\",INDEX('Disaggregation1B_Import-Export'!J$8:J$218,MATCH($B138,'Disaggregation1B_Import-Export'!$C$8:$C$218,0))),\"\")","v":""},{"$f":"IFERROR(IF(INDEX('Disaggregation1B_Import-Export'!K$8:K$218,MATCH($B138,'Disaggregation1B_Import-Export'!$C$8:$C$218,0))=\"\",\"\",INDEX('Disaggregation1B_Import-Export'!K$8:K$218,MATCH($B138,'Disaggregation1B_Import-Export'!$C$8:$C$218,0))),\"\")","v":""},{"$f":"IFERROR(IF(INDEX('Disaggregation1B_Import-Export'!L$8:L$218,MATCH($B138,'Disaggregation1B_Import-Export'!$C$8:$C$218,0))=\"\",\"\",INDEX('Disaggregation1B_Import-Export'!L$8:L$218,MATCH($B138,'Disaggregation1B_Import-Export'!$C$8:$C$218,0))),\"\")","v":""},{"$f":"IFERROR(IF(INDEX('Disaggregation1B_Import-Export'!AQ$8:AQ$218,MATCH($B138,'Disaggregation1B_Import-Export'!$C$8:$C$218,0))=\"\",\"\",INDEX('Disaggregation1B_Import-Export'!AQ$8:AQ$218,MATCH($B138,'Disaggregation1B_Import-Export'!$C$8:$C$218,0))),\"\")","v":""},null,null,"",null,null,null,null,null,"",null,null,null,null,null,""]
[129,"Coverage129",{"$f":"IFERROR(INDEX('Disaggregation1B_Import-Export'!D$8:D$218,MATCH($B139,'Disaggregation1B_Import-Export'!$C$8:$C$218,0)),\"\")","v":""},{"$f":"IFERROR(INDEX('Disaggregation1B_Import-Export'!AF$8:AF$235,MATCH($B139,'Disaggregation1B_Import-Export'!$C$8:$C$235,0)),\"\")","v":""},{"$f":"IFERROR(IF(INDEX('Disaggregation1B_Import-Export'!AG$8:AG$218,MATCH($B139,'Disaggregation1B_Import-Export'!$C$8:$C$218,0))=\"\",\"\",INDEX('Disaggregation1B_Import-Export'!AG$8:AG$218,MATCH($B139,'Disaggregation1B_Import-Export'!$C$8:$C$218,0))),\"\")","v":""},{"$f":"IFERROR(IF(INDEX('Disaggregation1B_Import-Export'!AH$8:AH$218,MATCH($B139,'Disaggregation1B_Import-Export'!$C$8:$C$218,0))=\"\",\"\",INDEX('Disaggregation1B_Import-Export'!AH$8:AH$218,MATCH($B139,'Disaggregation1B_Import-Export'!$C$8:$C$218,0))),\"\")","v":""},{"$f":"IFERROR(IF(INDEX('Disaggregation1B_Import-Export'!H$8:H$218,MATCH($B139,'Disaggregation1B_Import-Export'!$C$8:$C$218,0))=\"\",\"\",INDEX('Disaggregation1B_Import-Export'!H$8:H$218,MATCH($B139,'Disaggregation1B_Import-Export'!$C$8:$C$218,0))),\"\")","v":""},{"$f":"IFERROR(IF(INDEX('Disaggregation1B_Import-Export'!I$8:I$218,MATCH($B139,'Disaggregation1B_Import-Export'!$C$8:$C$218,0))=\"\",\"\",INDEX('Disaggregation1B_Import-Export'!I$8:I$218,MATCH($B139,'Disaggregation1B_Import-Export'!$C$8:$C$218,0))),\"\")","v":""},{"$f":"IFERROR(IF(INDEX('Disaggregation1B_Import-Export'!J$8:J$218,MATCH($B139,'Disaggregation1B_Import-Export'!$C$8:$C$218,0))=\"\",\"\",INDEX('Disaggregation1B_Import-Export'!J$8:J$218,MATCH($B139,'Disaggregation1B_Import-Export'!$C$8:$C$218,0))),\"\")","v":""},{"$f":"IFERROR(IF(INDEX('Disaggregation1B_Import-Export'!K$8:K$218,MATCH($B139,'Disaggregation1B_Import-Export'!$C$8:$C$218,0))=\"\",\"\",INDEX('Disaggregation1B_Import-Export'!K$8:K$218,MATCH($B139,'Disaggregation1B_Import-Export'!$C$8:$C$218,0))),\"\")","v":""},{"$f":"IFERROR(IF(INDEX('Disaggregation1B_Import-Export'!L$8:L$218,MATCH($B139,'Disaggregation1B_Import-Export'!$C$8:$C$218,0))=\"\",\"\",INDEX('Disaggregation1B_Import-Export'!L$8:L$218,MATCH($B139,'Disaggregation1B_Import-Export'!$C$8:$C$218,0))),\"\")","v":""},{"$f":"IFERROR(IF(INDEX('Disaggregation1B_Import-Export'!AQ$8:AQ$218,MATCH($B139,'Disaggregation1B_Import-Export'!$C$8:$C$218,0))=\"\",\"\",INDEX('Disaggregation1B_Import-Export'!AQ$8:AQ$218,MATCH($B139,'Disaggregation1B_Import-Export'!$C$8:$C$218,0))),\"\")","v":""},null,null,"",null,null,null,null,null,"",null,null,null,null,null,""]
[{"$f":"A139+1","v":130},"Coverage130",{"$f":"IFERROR(INDEX('Disaggregation1B_Import-Export'!D$8:D$218,MATCH($B140,'Disaggregation1B_Import-Export'!$C$8:$C$218,0)),\"\")","v":""},{"$f":"IFERROR(INDEX('Disaggregation1B_Import-Export'!AF$8:AF$235,MATCH($B140,'Disaggregation1B_Import-Export'!$C$8:$C$235,0)),\"\")","v":""},{"$f":"IFERROR(IF(INDEX('Disaggregation1B_Import-Export'!AG$8:AG$218,MATCH($B140,'Disaggregation1B_Import-Export'!$C$8:$C$218,0))=\"\",\"\",INDEX('Disaggregation1B_Import-Export'!AG$8:AG$218,MATCH($B140,'Disaggregation1B_Import-Export'!$C$8:$C$218,0))),\"\")","v":""},{"$f":"IFERROR(IF(INDEX('Disaggregation1B_Import-Export'!AH$8:AH$218,MATCH($B140,'Disaggregation1B_Import-Export'!$C$8:$C$218,0))=\"\",\"\",INDEX('Disaggregation1B_Import-Export'!AH$8:AH$218,MATCH($B140,'Disaggregation1B_Import-Export'!$C$8:$C$218,0))),\"\")","v":""},{"$f":"IFERROR(IF(INDEX('Disaggregation1B_Import-Export'!H$8:H$218,MATCH($B140,'Disaggregation1B_Import-Export'!$C$8:$C$218,0))=\"\",\"\",INDEX('Disaggregation1B_Import-Export'!H$8:H$218,MATCH($B140,'Disaggregation1B_Import-Export'!$C$8:$C$218,0))),\"\")","v":""},{"$f":"IFERROR(IF(INDEX('Disaggregation1B_Import-Export'!I$8:I$218,MATCH($B140,'Disaggregation1B_Import-Export'!$C$8:$C$218,0))=\"\",\"\",INDEX('Disaggregation1B_Import-Export'!I$8:I$218,MATCH($B140,'Disaggregation1B_Import-Export'!$C$8:$C$218,0))),\"\")","v":""},{"$f":"IFERROR(IF(INDEX('Disaggregation1B_Import-Export'!J$8:J$218,MATCH($B140,'Disaggregation1B_Import-Export'!$C$8:$C$218,0))=\"\",\"\",INDEX('Disaggregation1B_Import-Export'!J$8:J$218,MATCH($B140,'Disaggregation1B_Import-Export'!$C$8:$C$218,0))),\"\")","v":""},{"$f":"IFERROR(IF(INDEX('Disaggregation1B_Import-Export'!K$8:K$218,MATCH($B140,'Disaggregation1B_Import-Export'!$C$8:$C$218,0))=\"\",\"\",INDEX('Disaggregation1B_Import-Export'!K$8:K$218,MATCH($B140,'Disaggregation1B_Import-Export'!$C$8:$C$218,0))),\"\")","v":""},{"$f":"IFERROR(IF(INDEX('Disaggregation1B_Import-Export'!L$8:L$218,MATCH($B140,'Disaggregation1B_Import-Export'!$C$8:$C$218,0))=\"\",\"\",INDEX('Disaggregation1B_Import-Export'!L$8:L$218,MATCH($B140,'Disaggregation1B_Import-Export'!$C$8:$C$218,0))),\"\")","v":""},{"$f":"IFERROR(IF(INDEX('Disaggregation1B_Import-Export'!AQ$8:AQ$218,MATCH($B140,'Disaggregation1B_Import-Export'!$C$8:$C$218,0))=\"\",\"\",INDEX('Disaggregation1B_Import-Export'!AQ$8:AQ$218,MATCH($B140,'Disaggregation1B_Import-Export'!$C$8:$C$218,0))),\"\")","v":""},null,null,"",null,null,null,null,null,"",null,null,null,null,null,""]
[131,"Coverage131",{"$f":"IFERROR(INDEX('Disaggregation1B_Import-Export'!D$8:D$218,MATCH($B141,'Disaggregation1B_Import-Export'!$C$8:$C$218,0)),\"\")","v":""},{"$f":"IFERROR(INDEX('Disaggregation1B_Import-Export'!AF$8:AF$235,MATCH($B141,'Disaggregation1B_Import-Export'!$C$8:$C$235,0)),\"\")","v":""},{"$f":"IFERROR(IF(INDEX('Disaggregation1B_Import-Export'!AG$8:AG$218,MATCH($B141,'Disaggregation1B_Import-Export'!$C$8:$C$218,0))=\"\",\"\",INDEX('Disaggregation1B_Import-Export'!AG$8:AG$218,MATCH($B141,'Disaggregation1B_Import-Export'!$C$8:$C$218,0))),\"\")","v":""},{"$f":"IFERROR(IF(INDEX('Disaggregation1B_Import-Export'!AH$8:AH$218,MATCH($B141,'Disaggregation1B_Import-Export'!$C$8:$C$218,0))=\"\",\"\",INDEX('Disaggregation1B_Import-Export'!AH$8:AH$218,MATCH($B141,'Disaggregation1B_Import-Export'!$C$8:$C$218,0))),\"\")","v":""},{"$f":"IFERROR(IF(INDEX('Disaggregation1B_Import-Export'!H$8:H$218,MATCH($B141,'Disaggregation1B_Import-Export'!$C$8:$C$218,0))=\"\",\"\",INDEX('Disaggregation1B_Import-Export'!H$8:H$218,MATCH($B141,'Disaggregation1B_Import-Export'!$C$8:$C$218,0))),\"\")","v":""},{"$f":"IFERROR(IF(INDEX('Disaggregation1B_Import-Export'!I$8:I$218,MATCH($B141,'Disaggregation1B_Import-Export'!$C$8:$C$218,0))=\"\",\"\",INDEX('Disaggregation1B_Import-Export'!I$8:I$218,MATCH($B141,'Disaggregation1B_Import-Export'!$C$8:$C$218,0))),\"\")","v":""},{"$f":"IFERROR(IF(INDEX('Disaggregation1B_Import-Export'!J$8:J$218,MATCH($B141,'Disaggregation1B_Import-Export'!$C$8:$C$218,0))=\"\",\"\",INDEX('Disaggregation1B_Import-Export'!J$8:J$218,MATCH($B141,'Disaggregation1B_Import-Export'!$C$8:$C$218,0))),\"\")","v":""},{"$f":"IFERROR(IF(INDEX('Disaggregation1B_Import-Export'!K$8:K$218,MATCH($B141,'Disaggregation1B_Import-Export'!$C$8:$C$218,0))=\"\",\"\",INDEX('Disaggregation1B_Import-Export'!K$8:K$218,MATCH($B141,'Disaggregation1B_Import-Export'!$C$8:$C$218,0))),\"\")","v":""},{"$f":"IFERROR(IF(INDEX('Disaggregation1B_Import-Export'!L$8:L$218,MATCH($B141,'Disaggregation1B_Import-Export'!$C$8:$C$218,0))=\"\",\"\",INDEX('Disaggregation1B_Import-Export'!L$8:L$218,MATCH($B141,'Disaggregation1B_Import-Export'!$C$8:$C$218,0))),\"\")","v":""},{"$f":"IFERROR(IF(INDEX('Disaggregation1B_Import-Export'!AQ$8:AQ$218,MATCH($B141,'Disaggregation1B_Import-Export'!$C$8:$C$218,0))=\"\",\"\",INDEX('Disaggregation1B_Import-Export'!AQ$8:AQ$218,MATCH($B141,'Disaggregation1B_Import-Export'!$C$8:$C$218,0))),\"\")","v":""},null,null,"",null,null,null,null,null,"",null,null,null,null,null,""]
[132,"Coverage132",{"$f":"IFERROR(INDEX('Disaggregation1B_Import-Export'!D$8:D$218,MATCH($B142,'Disaggregation1B_Import-Export'!$C$8:$C$218,0)),\"\")","v":""},{"$f":"IFERROR(INDEX('Disaggregation1B_Import-Export'!AF$8:AF$235,MATCH($B142,'Disaggregation1B_Import-Export'!$C$8:$C$235,0)),\"\")","v":""},{"$f":"IFERROR(IF(INDEX('Disaggregation1B_Import-Export'!AG$8:AG$218,MATCH($B142,'Disaggregation1B_Import-Export'!$C$8:$C$218,0))=\"\",\"\",INDEX('Disaggregation1B_Import-Export'!AG$8:AG$218,MATCH($B142,'Disaggregation1B_Import-Export'!$C$8:$C$218,0))),\"\")","v":""},{"$f":"IFERROR(IF(INDEX('Disaggregation1B_Import-Export'!AH$8:AH$218,MATCH($B142,'Disaggregation1B_Import-Export'!$C$8:$C$218,0))=\"\",\"\",INDEX('Disaggregation1B_Import-Export'!AH$8:AH$218,MATCH($B142,'Disaggregation1B_Import-Export'!$C$8:$C$218,0))),\"\")","v":""},{"$f":"IFERROR(IF(INDEX('Disaggregation1B_Import-Export'!H$8:H$218,MATCH($B142,'Disaggregation1B_Import-Export'!$C$8:$C$218,0))=\"\",\"\",INDEX('Disaggregation1B_Import-Export'!H$8:H$218,MATCH($B142,'Disaggregation1B_Import-Export'!$C$8:$C$218,0))),\"\")","v":""},{"$f":"IFERROR(IF(INDEX('Disaggregation1B_Import-Export'!I$8:I$218,MATCH($B142,'Disaggregation1B_Import-Export'!$C$8:$C$218,0))=\"\",\"\",INDEX('Disaggregation1B_Import-Export'!I$8:I$218,MATCH($B142,'Disaggregation1B_Import-Export'!$C$8:$C$218,0))),\"\")","v":""},{"$f":"IFERROR(IF(INDEX('Disaggregation1B_Import-Export'!J$8:J$218,MATCH($B142,'Disaggregation1B_Import-Export'!$C$8:$C$218,0))=\"\",\"\",INDEX('Disaggregation1B_Import-Export'!J$8:J$218,MATCH($B142,'Disaggregation1B_Import-Export'!$C$8:$C$218,0))),\"\")","v":""},{"$f":"IFERROR(IF(INDEX('Disaggregation1B_Import-Export'!K$8:K$218,MATCH($B142,'Disaggregation1B_Import-Export'!$C$8:$C$218,0))=\"\",\"\",INDEX('Disaggregation1B_Import-Export'!K$8:K$218,MATCH($B142,'Disaggregation1B_Import-Export'!$C$8:$C$218,0))),\"\")","v":""},{"$f":"IFERROR(IF(INDEX('Disaggregation1B_Import-Export'!L$8:L$218,MATCH($B142,'Disaggregation1B_Import-Export'!$C$8:$C$218,0))=\"\",\"\",INDEX('Disaggregation1B_Import-Export'!L$8:L$218,MATCH($B142,'Disaggregation1B_Import-Export'!$C$8:$C$218,0))),\"\")","v":""},{"$f":"IFERROR(IF(INDEX('Disaggregation1B_Import-Export'!AQ$8:AQ$218,MATCH($B142,'Disaggregation1B_Import-Export'!$C$8:$C$218,0))=\"\",\"\",INDEX('Disaggregation1B_Import-Export'!AQ$8:AQ$218,MATCH($B142,'Disaggregation1B_Import-Export'!$C$8:$C$218,0))),\"\")","v":""},null,null,"",null,null,null,null,null,"",null,null,null,null,null,""]
[133,"Coverage133",{"$f":"IFERROR(INDEX('Disaggregation1B_Import-Export'!D$8:D$218,MATCH($B143,'Disaggregation1B_Import-Export'!$C$8:$C$218,0)),\"\")","v":""},{"$f":"IFERROR(INDEX('Disaggregation1B_Import-Export'!AF$8:AF$235,MATCH($B143,'Disaggregation1B_Import-Export'!$C$8:$C$235,0)),\"\")","v":""},{"$f":"IFERROR(IF(INDEX('Disaggregation1B_Import-Export'!AG$8:AG$218,MATCH($B143,'Disaggregation1B_Import-Export'!$C$8:$C$218,0))=\"\",\"\",INDEX('Disaggregation1B_Import-Export'!AG$8:AG$218,MATCH($B143,'Disaggregation1B_Import-Export'!$C$8:$C$218,0))),\"\")","v":""},{"$f":"IFERROR(IF(INDEX('Disaggregation1B_Import-Export'!AH$8:AH$218,MATCH($B143,'Disaggregation1B_Import-Export'!$C$8:$C$218,0))=\"\",\"\",INDEX('Disaggregation1B_Import-Export'!AH$8:AH$218,MATCH($B143,'Disaggregation1B_Import-Export'!$C$8:$C$218,0))),\"\")","v":""},{"$f":"IFERROR(IF(INDEX('Disaggregation1B_Import-Export'!H$8:H$218,MATCH($B143,'Disaggregation1B_Import-Export'!$C$8:$C$218,0))=\"\",\"\",INDEX('Disaggregation1B_Import-Export'!H$8:H$218,MATCH($B143,'Disaggregation1B_Import-Export'!$C$8:$C$218,0))),\"\")","v":""},{"$f":"IFERROR(IF(INDEX('Disaggregation1B_Import-Export'!I$8:I$218,MATCH($B143,'Disaggregation1B_Import-Export'!$C$8:$C$218,0))=\"\",\"\",INDEX('Disaggregation1B_Import-Export'!I$8:I$218,MATCH($B143,'Disaggregation1B_Import-Export'!$C$8:$C$218,0))),\"\")","v":""},{"$f":"IFERROR(IF(INDEX('Disaggregation1B_Import-Export'!J$8:J$218,MATCH($B143,'Disaggregation1B_Import-Export'!$C$8:$C$218,0))=\"\",\"\",INDEX('Disaggregation1B_Import-Export'!J$8:J$218,MATCH($B143,'Disaggregation1B_Import-Export'!$C$8:$C$218,0))),\"\")","v":""},{"$f":"IFERROR(IF(INDEX('Disaggregation1B_Import-Export'!K$8:K$218,MATCH($B143,'Disaggregation1B_Import-Export'!$C$8:$C$218,0))=\"\",\"\",INDEX('Disaggregation1B_Import-Export'!K$8:K$218,MATCH($B143,'Disaggregation1B_Import-Export'!$C$8:$C$218,0))),\"\")","v":""},{"$f":"IFERROR(IF(INDEX('Disaggregation1B_Import-Export'!L$8:L$218,MATCH($B143,'Disaggregation1B_Import-Export'!$C$8:$C$218,0))=\"\",\"\",INDEX('Disaggregation1B_Import-Export'!L$8:L$218,MATCH($B143,'Disaggregation1B_Import-Export'!$C$8:$C$218,0))),\"\")","v":""},{"$f":"IFERROR(IF(INDEX('Disaggregation1B_Import-Export'!AQ$8:AQ$218,MATCH($B143,'Disaggregation1B_Import-Export'!$C$8:$C$218,0))=\"\",\"\",INDEX('Disaggregation1B_Import-Export'!AQ$8:AQ$218,MATCH($B143,'Disaggregation1B_Import-Export'!$C$8:$C$218,0))),\"\")","v":""},null,null,"",null,null,null,null,null,"",null,null,null,null,null,""]
[134,"Coverage134",{"$f":"IFERROR(INDEX('Disaggregation1B_Import-Export'!D$8:D$218,MATCH($B144,'Disaggregation1B_Import-Export'!$C$8:$C$218,0)),\"\")","v":""},{"$f":"IFERROR(INDEX('Disaggregation1B_Import-Export'!AF$8:AF$235,MATCH($B144,'Disaggregation1B_Import-Export'!$C$8:$C$235,0)),\"\")","v":""},{"$f":"IFERROR(IF(INDEX('Disaggregation1B_Import-Export'!AG$8:AG$218,MATCH($B144,'Disaggregation1B_Import-Export'!$C$8:$C$218,0))=\"\",\"\",INDEX('Disaggregation1B_Import-Export'!AG$8:AG$218,MATCH($B144,'Disaggregation1B_Import-Export'!$C$8:$C$218,0))),\"\")","v":""},{"$f":"IFERROR(IF(INDEX('Disaggregation1B_Import-Export'!AH$8:AH$218,MATCH($B144,'Disaggregation1B_Import-Export'!$C$8:$C$218,0))=\"\",\"\",INDEX('Disaggregation1B_Import-Export'!AH$8:AH$218,MATCH($B144,'Disaggregation1B_Import-Export'!$C$8:$C$218,0))),\"\")","v":""},{"$f":"IFERROR(IF(INDEX('Disaggregation1B_Import-Export'!H$8:H$218,MATCH($B144,'Disaggregation1B_Import-Export'!$C$8:$C$218,0))=\"\",\"\",INDEX('Disaggregation1B_Import-Export'!H$8:H$218,MATCH($B144,'Disaggregation1B_Import-Export'!$C$8:$C$218,0))),\"\")","v":""},{"$f":"IFERROR(IF(INDEX('Disaggregation1B_Import-Export'!I$8:I$218,MATCH($B144,'Disaggregation1B_Import-Export'!$C$8:$C$218,0))=\"\",\"\",INDEX('Disaggregation1B_Import-Export'!I$8:I$218,MATCH($B144,'Disaggregation1B_Import-Export'!$C$8:$C$218,0))),\"\")","v":""},{"$f":"IFERROR(IF(INDEX('Disaggregation1B_Import-Export'!J$8:J$218,MATCH($B144,'Disaggregation1B_Import-Export'!$C$8:$C$218,0))=\"\",\"\",INDEX('Disaggregation1B_Import-Export'!J$8:J$218,MATCH($B144,'Disaggregation1B_Import-Export'!$C$8:$C$218,0))),\"\")","v":""},{"$f":"IFERROR(IF(INDEX('Disaggregation1B_Import-Export'!K$8:K$218,MATCH($B144,'Disaggregation1B_Import-Export'!$C$8:$C$218,0))=\"\",\"\",INDEX('Disaggregation1B_Import-Export'!K$8:K$218,MATCH($B144,'Disaggregation1B_Import-Export'!$C$8:$C$218,0))),\"\")","v":""},{"$f":"IFERROR(IF(INDEX('Disaggregation1B_Import-Export'!L$8:L$218,MATCH($B144,'Disaggregation1B_Import-Export'!$C$8:$C$218,0))=\"\",\"\",INDEX('Disaggregation1B_Import-Export'!L$8:L$218,MATCH($B144,'Disaggregation1B_Import-Export'!$C$8:$C$218,0))),\"\")","v":""},{"$f":"IFERROR(IF(INDEX('Disaggregation1B_Import-Export'!AQ$8:AQ$218,MATCH($B144,'Disaggregation1B_Import-Export'!$C$8:$C$218,0))=\"\",\"\",INDEX('Disaggregation1B_Import-Export'!AQ$8:AQ$218,MATCH($B144,'Disaggregation1B_Import-Export'!$C$8:$C$218,0))),\"\")","v":""},null,null,"",null,null,null,null,null,"",null,null,null,null,null,""]
[135,"Coverage135",{"$f":"IFERROR(INDEX('Disaggregation1B_Import-Export'!D$8:D$218,MATCH($B145,'Disaggregation1B_Import-Export'!$C$8:$C$218,0)),\"\")","v":""},{"$f":"IFERROR(INDEX('Disaggregation1B_Import-Export'!AF$8:AF$235,MATCH($B145,'Disaggregation1B_Import-Export'!$C$8:$C$235,0)),\"\")","v":""},{"$f":"IFERROR(IF(INDEX('Disaggregation1B_Import-Export'!AG$8:AG$218,MATCH($B145,'Disaggregation1B_Import-Export'!$C$8:$C$218,0))=\"\",\"\",INDEX('Disaggregation1B_Import-Export'!AG$8:AG$218,MATCH($B145,'Disaggregation1B_Import-Export'!$C$8:$C$218,0))),\"\")","v":""},{"$f":"IFERROR(IF(INDEX('Disaggregation1B_Import-Export'!AH$8:AH$218,MATCH($B145,'Disaggregation1B_Import-Export'!$C$8:$C$218,0))=\"\",\"\",INDEX('Disaggregation1B_Import-Export'!AH$8:AH$218,MATCH($B145,'Disaggregation1B_Import-Export'!$C$8:$C$218,0))),\"\")","v":""},{"$f":"IFERROR(IF(INDEX('Disaggregation1B_Import-Export'!H$8:H$218,MATCH($B145,'Disaggregation1B_Import-Export'!$C$8:$C$218,0))=\"\",\"\",INDEX('Disaggregation1B_Import-Export'!H$8:H$218,MATCH($B145,'Disaggregation1B_Import-Export'!$C$8:$C$218,0))),\"\")","v":""},{"$f":"IFERROR(IF(INDEX('Disaggregation1B_Import-Export'!I$8:I$218,MATCH($B145,'Disaggregation1B_Import-Export'!$C$8:$C$218,0))=\"\",\"\",INDEX('Disaggregation1B_Import-Export'!I$8:I$218,MATCH($B145,'Disaggregation1B_Import-Export'!$C$8:$C$218,0))),\"\")","v":""},{"$f":"IFERROR(IF(INDEX('Disaggregation1B_Import-Export'!J$8:J$218,MATCH($B145,'Disaggregation1B_Import-Export'!$C$8:$C$218,0))=\"\",\"\",INDEX('Disaggregation1B_Import-Export'!J$8:J$218,MATCH($B145,'Disaggregation1B_Import-Export'!$C$8:$C$218,0))),\"\")","v":""},{"$f":"IFERROR(IF(INDEX('Disaggregation1B_Import-Export'!K$8:K$218,MATCH($B145,'Disaggregation1B_Import-Export'!$C$8:$C$218,0))=\"\",\"\",INDEX('Disaggregation1B_Import-Export'!K$8:K$218,MATCH($B145,'Disaggregation1B_Import-Export'!$C$8:$C$218,0))),\"\")","v":""},{"$f":"IFERROR(IF(INDEX('Disaggregation1B_Import-Export'!L$8:L$218,MATCH($B145,'Disaggregation1B_Import-Export'!$C$8:$C$218,0))=\"\",\"\",INDEX('Disaggregation1B_Import-Export'!L$8:L$218,MATCH($B145,'Disaggregation1B_Import-Export'!$C$8:$C$218,0))),\"\")","v":""},{"$f":"IFERROR(IF(INDEX('Disaggregation1B_Import-Export'!AQ$8:AQ$218,MATCH($B145,'Disaggregation1B_Import-Export'!$C$8:$C$218,0))=\"\",\"\",INDEX('Disaggregation1B_Import-Export'!AQ$8:AQ$218,MATCH($B145,'Disaggregation1B_Import-Export'!$C$8:$C$218,0))),\"\")","v":""},null,null,"",null,null,null,null,null,"",null,null,null,null,null,""]
[136,"Coverage136",{"$f":"IFERROR(INDEX('Disaggregation1B_Import-Export'!D$8:D$218,MATCH($B146,'Disaggregation1B_Import-Export'!$C$8:$C$218,0)),\"\")","v":""},{"$f":"IFERROR(INDEX('Disaggregation1B_Import-Export'!AF$8:AF$235,MATCH($B146,'Disaggregation1B_Import-Export'!$C$8:$C$235,0)),\"\")","v":""},{"$f":"IFERROR(IF(INDEX('Disaggregation1B_Import-Export'!AG$8:AG$218,MATCH($B146,'Disaggregation1B_Import-Export'!$C$8:$C$218,0))=\"\",\"\",INDEX('Disaggregation1B_Import-Export'!AG$8:AG$218,MATCH($B146,'Disaggregation1B_Import-Export'!$C$8:$C$218,0))),\"\")","v":""},{"$f":"IFERROR(IF(INDEX('Disaggregation1B_Import-Export'!AH$8:AH$218,MATCH($B146,'Disaggregation1B_Import-Export'!$C$8:$C$218,0))=\"\",\"\",INDEX('Disaggregation1B_Import-Export'!AH$8:AH$218,MATCH($B146,'Disaggregation1B_Import-Export'!$C$8:$C$218,0))),\"\")","v":""},{"$f":"IFERROR(IF(INDEX('Disaggregation1B_Import-Export'!H$8:H$218,MATCH($B146,'Disaggregation1B_Import-Export'!$C$8:$C$218,0))=\"\",\"\",INDEX('Disaggregation1B_Import-Export'!H$8:H$218,MATCH($B146,'Disaggregation1B_Import-Export'!$C$8:$C$218,0))),\"\")","v":""},{"$f":"IFERROR(IF(INDEX('Disaggregation1B_Import-Export'!I$8:I$218,MATCH($B146,'Disaggregation1B_Import-Export'!$C$8:$C$218,0))=\"\",\"\",INDEX('Disaggregation1B_Import-Export'!I$8:I$218,MATCH($B146,'Disaggregation1B_Import-Export'!$C$8:$C$218,0))),\"\")","v":""},{"$f":"IFERROR(IF(INDEX('Disaggregation1B_Import-Export'!J$8:J$218,MATCH($B146,'Disaggregation1B_Import-Export'!$C$8:$C$218,0))=\"\",\"\",INDEX('Disaggregation1B_Import-Export'!J$8:J$218,MATCH($B146,'Disaggregation1B_Import-Export'!$C$8:$C$218,0))),\"\")","v":""},{"$f":"IFERROR(IF(INDEX('Disaggregation1B_Import-Export'!K$8:K$218,MATCH($B146,'Disaggregation1B_Import-Export'!$C$8:$C$218,0))=\"\",\"\",INDEX('Disaggregation1B_Import-Export'!K$8:K$218,MATCH($B146,'Disaggregation1B_Import-Export'!$C$8:$C$218,0))),\"\")","v":""},{"$f":"IFERROR(IF(INDEX('Disaggregation1B_Import-Export'!L$8:L$218,MATCH($B146,'Disaggregation1B_Import-Export'!$C$8:$C$218,0))=\"\",\"\",INDEX('Disaggregation1B_Import-Export'!L$8:L$218,MATCH($B146,'Disaggregation1B_Import-Export'!$C$8:$C$218,0))),\"\")","v":""},{"$f":"IFERROR(IF(INDEX('Disaggregation1B_Import-Export'!AQ$8:AQ$218,MATCH($B146,'Disaggregation1B_Import-Export'!$C$8:$C$218,0))=\"\",\"\",INDEX('Disaggregation1B_Import-Export'!AQ$8:AQ$218,MATCH($B146,'Disaggregation1B_Import-Export'!$C$8:$C$218,0))),\"\")","v":""},null,null,"",null,null,null,null,null,"",null,null,null,null,null,""]
[137,"Coverage137",{"$f":"IFERROR(INDEX('Disaggregation1B_Import-Export'!D$8:D$218,MATCH($B147,'Disaggregation1B_Import-Export'!$C$8:$C$218,0)),\"\")","v":""},{"$f":"IFERROR(INDEX('Disaggregation1B_Import-Export'!AF$8:AF$235,MATCH($B147,'Disaggregation1B_Import-Export'!$C$8:$C$235,0)),\"\")","v":""},{"$f":"IFERROR(IF(INDEX('Disaggregation1B_Import-Export'!AG$8:AG$218,MATCH($B147,'Disaggregation1B_Import-Export'!$C$8:$C$218,0))=\"\",\"\",INDEX('Disaggregation1B_Import-Export'!AG$8:AG$218,MATCH($B147,'Disaggregation1B_Import-Export'!$C$8:$C$218,0))),\"\")","v":""},{"$f":"IFERROR(IF(INDEX('Disaggregation1B_Import-Export'!AH$8:AH$218,MATCH($B147,'Disaggregation1B_Import-Export'!$C$8:$C$218,0))=\"\",\"\",INDEX('Disaggregation1B_Import-Export'!AH$8:AH$218,MATCH($B147,'Disaggregation1B_Import-Export'!$C$8:$C$218,0))),\"\")","v":""},{"$f":"IFERROR(IF(INDEX('Disaggregation1B_Import-Export'!H$8:H$218,MATCH($B147,'Disaggregation1B_Import-Export'!$C$8:$C$218,0))=\"\",\"\",INDEX('Disaggregation1B_Import-Export'!H$8:H$218,MATCH($B147,'Disaggregation1B_Import-Export'!$C$8:$C$218,0))),\"\")","v":""},{"$f":"IFERROR(IF(INDEX('Disaggregation1B_Import-Export'!I$8:I$218,MATCH($B147,'Disaggregation1B_Import-Export'!$C$8:$C$218,0))=\"\",\"\",INDEX('Disaggregation1B_Import-Export'!I$8:I$218,MATCH($B147,'Disaggregation1B_Import-Export'!$C$8:$C$218,0))),\"\")","v":""},{"$f":"IFERROR(IF(INDEX('Disaggregation1B_Import-Export'!J$8:J$218,MATCH($B147,'Disaggregation1B_Import-Export'!$C$8:$C$218,0))=\"\",\"\",INDEX('Disaggregation1B_Import-Export'!J$8:J$218,MATCH($B147,'Disaggregation1B_Import-Export'!$C$8:$C$218,0))),\"\")","v":""},{"$f":"IFERROR(IF(INDEX('Disaggregation1B_Import-Export'!K$8:K$218,MATCH($B147,'Disaggregation1B_Import-Export'!$C$8:$C$218,0))=\"\",\"\",INDEX('Disaggregation1B_Import-Export'!K$8:K$218,MATCH($B147,'Disaggregation1B_Import-Export'!$C$8:$C$218,0))),\"\")","v":""},{"$f":"IFERROR(IF(INDEX('Disaggregation1B_Import-Export'!L$8:L$218,MATCH($B147,'Disaggregation1B_Import-Export'!$C$8:$C$218,0))=\"\",\"\",INDEX('Disaggregation1B_Import-Export'!L$8:L$218,MATCH($B147,'Disaggregation1B_Import-Export'!$C$8:$C$218,0))),\"\")","v":""},{"$f":"IFERROR(IF(INDEX('Disaggregation1B_Import-Export'!AQ$8:AQ$218,MATCH($B147,'Disaggregation1B_Import-Export'!$C$8:$C$218,0))=\"\",\"\",INDEX('Disaggregation1B_Import-Export'!AQ$8:AQ$218,MATCH($B147,'Disaggregation1B_Import-Export'!$C$8:$C$218,0))),\"\")","v":""},null,null,"",null,null,null,null,null,"",null,null,null,null,null,""]
[138,"Coverage138",{"$f":"IFERROR(INDEX('Disaggregation1B_Import-Export'!D$8:D$218,MATCH($B148,'Disaggregation1B_Import-Export'!$C$8:$C$218,0)),\"\")","v":""},{"$f":"IFERROR(INDEX('Disaggregation1B_Import-Export'!AF$8:AF$235,MATCH($B148,'Disaggregation1B_Import-Export'!$C$8:$C$235,0)),\"\")","v":""},{"$f":"IFERROR(IF(INDEX('Disaggregation1B_Import-Export'!AG$8:AG$218,MATCH($B148,'Disaggregation1B_Import-Export'!$C$8:$C$218,0))=\"\",\"\",INDEX('Disaggregation1B_Import-Export'!AG$8:AG$218,MATCH($B148,'Disaggregation1B_Import-Export'!$C$8:$C$218,0))),\"\")","v":""},{"$f":"IFERROR(IF(INDEX('Disaggregation1B_Import-Export'!AH$8:AH$218,MATCH($B148,'Disaggregation1B_Import-Export'!$C$8:$C$218,0))=\"\",\"\",INDEX('Disaggregation1B_Import-Export'!AH$8:AH$218,MATCH($B148,'Disaggregation1B_Import-Export'!$C$8:$C$218,0))),\"\")","v":""},{"$f":"IFERROR(IF(INDEX('Disaggregation1B_Import-Export'!H$8:H$218,MATCH($B148,'Disaggregation1B_Import-Export'!$C$8:$C$218,0))=\"\",\"\",INDEX('Disaggregation1B_Import-Export'!H$8:H$218,MATCH($B148,'Disaggregation1B_Import-Export'!$C$8:$C$218,0))),\"\")","v":""},{"$f":"IFERROR(IF(INDEX('Disaggregation1B_Import-Export'!I$8:I$218,MATCH($B148,'Disaggregation1B_Import-Export'!$C$8:$C$218,0))=\"\",\"\",INDEX('Disaggregation1B_Import-Export'!I$8:I$218,MATCH($B148,'Disaggregation1B_Import-Export'!$C$8:$C$218,0))),\"\")","v":""},{"$f":"IFERROR(IF(INDEX('Disaggregation1B_Import-Export'!J$8:J$218,MATCH($B148,'Disaggregation1B_Import-Export'!$C$8:$C$218,0))=\"\",\"\",INDEX('Disaggregation1B_Import-Export'!J$8:J$218,MATCH($B148,'Disaggregation1B_Import-Export'!$C$8:$C$218,0))),\"\")","v":""},{"$f":"IFERROR(IF(INDEX('Disaggregation1B_Import-Export'!K$8:K$218,MATCH($B148,'Disaggregation1B_Import-Export'!$C$8:$C$218,0))=\"\",\"\",INDEX('Disaggregation1B_Import-Export'!K$8:K$218,MATCH($B148,'Disaggregation1B_Import-Export'!$C$8:$C$218,0))),\"\")","v":""},{"$f":"IFERROR(IF(INDEX('Disaggregation1B_Import-Export'!L$8:L$218,MATCH($B148,'Disaggregation1B_Import-Export'!$C$8:$C$218,0))=\"\",\"\",INDEX('Disaggregation1B_Import-Export'!L$8:L$218,MATCH($B148,'Disaggregation1B_Import-Export'!$C$8:$C$218,0))),\"\")","v":""},{"$f":"IFERROR(IF(INDEX('Disaggregation1B_Import-Export'!AQ$8:AQ$218,MATCH($B148,'Disaggregation1B_Import-Export'!$C$8:$C$218,0))=\"\",\"\",INDEX('Disaggregation1B_Import-Export'!AQ$8:AQ$218,MATCH($B148,'Disaggregation1B_Import-Export'!$C$8:$C$218,0))),\"\")","v":""},null,null,"",null,null,null,null,null,"",null,null,null,null,null,""]
[139,"Coverage139",{"$f":"IFERROR(INDEX('Disaggregation1B_Import-Export'!D$8:D$218,MATCH($B149,'Disaggregation1B_Import-Export'!$C$8:$C$218,0)),\"\")","v":""},{"$f":"IFERROR(INDEX('Disaggregation1B_Import-Export'!AF$8:AF$235,MATCH($B149,'Disaggregation1B_Import-Export'!$C$8:$C$235,0)),\"\")","v":""},{"$f":"IFERROR(IF(INDEX('Disaggregation1B_Import-Export'!AG$8:AG$218,MATCH($B149,'Disaggregation1B_Import-Export'!$C$8:$C$218,0))=\"\",\"\",INDEX('Disaggregation1B_Import-Export'!AG$8:AG$218,MATCH($B149,'Disaggregation1B_Import-Export'!$C$8:$C$218,0))),\"\")","v":""},{"$f":"IFERROR(IF(INDEX('Disaggregation1B_Import-Export'!AH$8:AH$218,MATCH($B149,'Disaggregation1B_Import-Export'!$C$8:$C$218,0))=\"\",\"\",INDEX('Disaggregation1B_Import-Export'!AH$8:AH$218,MATCH($B149,'Disaggregation1B_Import-Export'!$C$8:$C$218,0))),\"\")","v":""},{"$f":"IFERROR(IF(INDEX('Disaggregation1B_Import-Export'!H$8:H$218,MATCH($B149,'Disaggregation1B_Import-Export'!$C$8:$C$218,0))=\"\",\"\",INDEX('Disaggregation1B_Import-Export'!H$8:H$218,MATCH($B149,'Disaggregation1B_Import-Export'!$C$8:$C$218,0))),\"\")","v":""},{"$f":"IFERROR(IF(INDEX('Disaggregation1B_Import-Export'!I$8:I$218,MATCH($B149,'Disaggregation1B_Import-Export'!$C$8:$C$218,0))=\"\",\"\",INDEX('Disaggregation1B_Import-Export'!I$8:I$218,MATCH($B149,'Disaggregation1B_Import-Export'!$C$8:$C$218,0))),\"\")","v":""},{"$f":"IFERROR(IF(INDEX('Disaggregation1B_Import-Export'!J$8:J$218,MATCH($B149,'Disaggregation1B_Import-Export'!$C$8:$C$218,0))=\"\",\"\",INDEX('Disaggregation1B_Import-Export'!J$8:J$218,MATCH($B149,'Disaggregation1B_Import-Export'!$C$8:$C$218,0))),\"\")","v":""},{"$f":"IFERROR(IF(INDEX('Disaggregation1B_Import-Export'!K$8:K$218,MATCH($B149,'Disaggregation1B_Import-Export'!$C$8:$C$218,0))=\"\",\"\",INDEX('Disaggregation1B_Import-Export'!K$8:K$218,MATCH($B149,'Disaggregation1B_Import-Export'!$C$8:$C$218,0))),\"\")","v":""},{"$f":"IFERROR(IF(INDEX('Disaggregation1B_Import-Export'!L$8:L$218,MATCH($B149,'Disaggregation1B_Import-Export'!$C$8:$C$218,0))=\"\",\"\",INDEX('Disaggregation1B_Import-Export'!L$8:L$218,MATCH($B149,'Disaggregation1B_Import-Export'!$C$8:$C$218,0))),\"\")","v":""},{"$f":"IFERROR(IF(INDEX('Disaggregation1B_Import-Export'!AQ$8:AQ$218,MATCH($B149,'Disaggregation1B_Import-Export'!$C$8:$C$218,0))=\"\",\"\",INDEX('Disaggregation1B_Import-Export'!AQ$8:AQ$218,MATCH($B149,'Disaggregation1B_Import-Export'!$C$8:$C$218,0))),\"\")","v":""},null,null,"",null,null,null,null,null,"",null,null,null,null,null,""]
[140,"Coverage140",{"$f":"IFERROR(INDEX('Disaggregation1B_Import-Export'!D$8:D$218,MATCH($B150,'Disaggregation1B_Import-Export'!$C$8:$C$218,0)),\"\")","v":""},{"$f":"IFERROR(INDEX('Disaggregation1B_Import-Export'!AF$8:AF$235,MATCH($B150,'Disaggregation1B_Import-Export'!$C$8:$C$235,0)),\"\")","v":""},{"$f":"IFERROR(IF(INDEX('Disaggregation1B_Import-Export'!AG$8:AG$218,MATCH($B150,'Disaggregation1B_Import-Export'!$C$8:$C$218,0))=\"\",\"\",INDEX('Disaggregation1B_Import-Export'!AG$8:AG$218,MATCH($B150,'Disaggregation1B_Import-Export'!$C$8:$C$218,0))),\"\")","v":""},{"$f":"IFERROR(IF(INDEX('Disaggregation1B_Import-Export'!AH$8:AH$218,MATCH($B150,'Disaggregation1B_Import-Export'!$C$8:$C$218,0))=\"\",\"\",INDEX('Disaggregation1B_Import-Export'!AH$8:AH$218,MATCH($B150,'Disaggregation1B_Import-Export'!$C$8:$C$218,0))),\"\")","v":""},{"$f":"IFERROR(IF(INDEX('Disaggregation1B_Import-Export'!H$8:H$218,MATCH($B150,'Disaggregation1B_Import-Export'!$C$8:$C$218,0))=\"\",\"\",INDEX('Disaggregation1B_Import-Export'!H$8:H$218,MATCH($B150,'Disaggregation1B_Import-Export'!$C$8:$C$218,0))),\"\")","v":""},{"$f":"IFERROR(IF(INDEX('Disaggregation1B_Import-Export'!I$8:I$218,MATCH($B150,'Disaggregation1B_Import-Export'!$C$8:$C$218,0))=\"\",\"\",INDEX('Disaggregation1B_Import-Export'!I$8:I$218,MATCH($B150,'Disaggregation1B_Import-Export'!$C$8:$C$218,0))),\"\")","v":""},{"$f":"IFERROR(IF(INDEX('Disaggregation1B_Import-Export'!J$8:J$218,MATCH($B150,'Disaggregation1B_Import-Export'!$C$8:$C$218,0))=\"\",\"\",INDEX('Disaggregation1B_Import-Export'!J$8:J$218,MATCH($B150,'Disaggregation1B_Import-Export'!$C$8:$C$218,0))),\"\")","v":""},{"$f":"IFERROR(IF(INDEX('Disaggregation1B_Import-Export'!K$8:K$218,MATCH($B150,'Disaggregation1B_Import-Export'!$C$8:$C$218,0))=\"\",\"\",INDEX('Disaggregation1B_Import-Export'!K$8:K$218,MATCH($B150,'Disaggregation1B_Import-Export'!$C$8:$C$218,0))),\"\")","v":""},{"$f":"IFERROR(IF(INDEX('Disaggregation1B_Import-Export'!L$8:L$218,MATCH($B150,'Disaggregation1B_Import-Export'!$C$8:$C$218,0))=\"\",\"\",INDEX('Disaggregation1B_Import-Export'!L$8:L$218,MATCH($B150,'Disaggregation1B_Import-Export'!$C$8:$C$218,0))),\"\")","v":""},{"$f":"IFERROR(IF(INDEX('Disaggregation1B_Import-Export'!AQ$8:AQ$218,MATCH($B150,'Disaggregation1B_Import-Export'!$C$8:$C$218,0))=\"\",\"\",INDEX('Disaggregation1B_Import-Export'!AQ$8:AQ$218,MATCH($B150,'Disaggregation1B_Import-Export'!$C$8:$C$218,0))),\"\")","v":""},null,null,"",null,null,null,null,null,"",null,null,null,null,null,""]

{"sheet":"Disaggregation1B_Import-Export","index":12,"n_rows":26,"n_cols":43,"rows_kept":26,"cut":false,"hidden":true,"merged":[[5,30,6,30],[5,28,6,28],[5,29,6,29],[5,18,6,18],[5,19,5,21],[5,22,6,22],[5,23,6,23],[5,24,6,24],[5,25,5,27],[1,3,1,23],[5,3,6,3],[5,4,6,4],[5,5,6,5],[5,6,6,6],[5,7,5,11],[5,12,6,12],[5,13,5,15],[5,16,6,16],[5,17,6,17],[5,31,6,31],[5,32,6,32],[5,33,6,33],[5,34,6,34],[5,35,6,35],[5,41,6,41],[5,36,6,36],[5,37,6,37],[5,38,6,38],[5,39,6,39],[5,40,6,40]]}
[]
[null,null,null,"\nInstructions for population:\n1. Columns D to M should be mapped for download only\n2. Columns N to X should be mapped for import only\n3. Population should follow same rules as in tab Disaggregation_1B of current template with exception that:\na. population should be 1st sorted by field \"Coverage Indicator Number\" on the parent record Coverage Indicator \nb. It should then be sorted by field Disaggregation\n\n\n"]
[]
[null,null,null,"B - Coverage Indicators"]
[]
[null,null,null,"Module","Standard Coverage Indicator","Disaggregation","Category","Baseline",null,null,null,null,"Comments","Result",null,null,"Source","PR Comments","Data validation checks on PR data","Verified Result",null,null,"Source","LFA Comments ","Data Validation checks on LFA data","Global Fund Validated Result",null,null,"Country Team comments on validated results","Data validation checks on GF data","Coverage Indicator Number\n","Indicato rname","Disaggregation name","Category name","Indicator name spanish","Indicator name french","Disaggregation ES","Disaggregation FR","Category ES","Category FR","Comments Local","Baseline Source Local"]
["Record ID",-1,null,null,null,null,null,"Baseline N#","Baseline D#","Baseline %","Baseline Year","Baseline Source",null,"Result N# (PR)","Result D# (PR)","Result % (PR)",null,null,null,"Result N# (LFA)","Result D# (LFA)","Result % (LFA)",null,null,null,null,null,null,null,null,"Coverage Indicator Number",null,null,null,null,null,"Disaggregation ES","Disaggregation FR","Category ES","Category FR","Comments Local","Baseline Source Local","Country (Name)"]
["[Record ID]",{"$f":"B7+1","v":0},{"$f":"\"Coverage\"&B8","v":"Coverage0"},"[Module]","[Coverage Indicator Name]","[Disaggregation]","[Category]","[Baseline N#]","[Baseline D#]","[Baseline %]","[Baseline Year]","[Baseline Source]","[Comments]",{"$f":"IFERROR(IF(INDEX(Disaggregation_1B!M$11:M$150,MATCH($C8,'Disaggregation1B_Import-Export'!$C$8:$C$218,0))=\"\",\"\",INDEX(Disaggregation_1B!M$11:M$150,MATCH($C8,'Disaggregation1B_Import-Export'!$C$8:$C$218,0))),\"\")","v":""},{"$f":"IFERROR(IF(INDEX(Disaggregation_1B!N$11:N$150,MATCH($C8,'Disaggregation1B_Import-Export'!$C$8:$C$218,0))=\"\",\"\",INDEX(Disaggregation_1B!N$11:N$150,MATCH($C8,'Disaggregation1B_Import-Export'!$C$8:$C$218,0))),\"\")","v":""},{"$f":"IFERROR(IF(INDEX(Disaggregation_1B!O$11:O$150,MATCH($C8,'Disaggregation1B_Import-Export'!$C$8:$C$218,0))=\"\",\"\",INDEX(Disaggregation_1B!O$11:O$150,MATCH($C8,'Disaggregation1B_Import-Export'!$C$8:$C$218,0))),\"\")","v":""},{"$f":"IFERROR(IF(INDEX(Disaggregation_1B!P$11:P$150,MATCH($C8,'Disaggregation1B_Import-Export'!$C$8:$C$218,0))=\"\",\"\",INDEX(Disaggregation_1B!P$11:P$150,MATCH($C8,'Disaggregation1B_Import-Export'!$C$8:$C$218,0))),\"\")","v":""},{"$f":"IFERROR(IF(INDEX(Disaggregation_1B!Q$11:Q$150,MATCH($C8,'Disaggregation1B_Import-Export'!$C$8:$C$218,0))=\"\",\"\",INDEX(Disaggregation_1B!Q$11:Q$150,MATCH($C8,'Disaggregation1B_Import-Export'!$C$8:$C$218,0))),\"\")","v":"Pour le laboratoire, le canevas de rapport  ne précise pas l'âge"},{"$f":"INDEX(Disaggregation_1B!R$11:R$150,MATCH($C8,'Disaggregation1B_Import-Export'!$C$8:$C$218,0))","v":0},{"$f":"IFERROR(IF(INDEX(Disaggregation_1B!S$11:S$150,MATCH($C8,'Disaggregation1B_Import-Export'!$C$8:$C$218,0))=\"\",\"\",INDEX(Disaggregation_1B!S$11:S$150,MATCH($C8,'Disaggregation1B_Import-Export'!$C$8:$C$218,0))),\"\")","v":""},{"$f":"IFERROR(IF(INDEX(Disaggregation_1B!T$11:T$150,MATCH($C8,'Disaggregation1B_Import-Export'!$C$8:$C$218,0))=\"\",\"\",INDEX(Disaggregation_1B!T$11:T$150,MATCH($C8,'Disaggregation1B_Import-Export'!$C$8:$C$218,0))),\"\")","v":""},{"$f":"IFERROR(IF(INDEX(Disaggregation_1B!U$11:U$150,MATCH($C8,'Disaggregation1B_Import-Export'!$C$8:$C$218,0))=\"\",\"\",INDEX(Disaggregation_1B!U$11:U$150,MATCH($C8,'Disaggregation1B_Import-Export'!$C$8:$C$218,0))),\"\")","v":""},{"$f":"IFERROR(IF(INDEX(Disaggregation_1B!V$11:V$150,MATCH($C8,'Disaggregation1B_Import-Export'!$C$8:$C$218,0))=\"\",\"\",INDEX(Disaggregation_1B!V$11:V$150,MATCH($C8,'Disaggregation1B_Import-Export'!$C$8:$C$218,0))),\"\")","v":""},{"$f":"IFERROR(IF(INDEX(Disaggregation_1B!W$11:W$150,MATCH($C8,'Disaggregation1B_Import-Export'!$C$8:$C$218,0))=\"\",\"\",INDEX(Disaggregation_1B!W$11:W$150,MATCH($C8,'Disaggregation1B_Import-Export'!$C$8:$C$218,0))),\"\")","v":""},{"$f":"INDEX(Disaggregation_1B!X$11:X$150,MATCH($C8,'Disaggregation1B_Import-Export'!$C$8:$C$218,0))","v":0},null,null,null,{"$f":"INDEX(Disaggregation_1B!AB$11:AB$150,MATCH($C8,'Disaggregation1B_Import-Export'!$C$8:$C$218,0))","v":0},{"$f":"INDEX(Disaggregation_1B!AC$11:AC$150,MATCH($C8,'Disaggregation1B_Import-Export'!$C$8:$C$218,0))","v":0},"[Coverage Indicator Number]",{"$f":"IF(LangOffset=0,CONCATENATE(E8),IF(LangOffset=1,CONCATENATE(AJ8),IF(LangOffset=2,AI8)))","v":"[Coverage Indicator Name]"},{"$f":"IF(LangOffset=0,CONCATENATE(F8),IF(LangOffset=1,CONCATENATE(AL8),IF(LangOffset=2,AK8)))","v":"[Disaggregation]"},{"$f":"IF(LangOffset=0,CONCATENATE(G8),IF(LangOffset=1,CONCATENATE(AN8),IF(LangOffset=2,AM8)))","v":"[Category]"},"[Coverage Indicator Name - ES]","[Coverage Indicator Name  - FR]","[Disaggregation ES]","[Disaggregation FR]","[Category ES]","[Category FR]","[Comments Local]","[Baseline Source Local]","[Country (Name)]"]
["a15360000095ptOAAQ",{"$f":"B8+1","v":1},{"$f":"\"Coverage\"&B9","v":"Coverage1"},"Case management","CM-1a(M): Proportion of suspected malaria cases that receive a parasitological test at public sector health facilities","U5","Age",0,0,"0.0",null,null,"Data not provided in the DHIS 2",{"$f":"IFERROR(IF(INDEX(Disaggregation_1B!M$11:M$150,MATCH($C9,'Disaggregation1B_Import-Export'!$C$8:$C$218,0))=\"\",\"\",INDEX(Disaggregation_1B!M$11:M$150,MATCH($C9,'Disaggregation1B_Import-Export'!$C$8:$C$218,0))),\"\")","v":""},{"$f":"IFERROR(IF(INDEX(Disaggregation_1B!N$11:N$150,MATCH($C9,'Disaggregation1B_Import-Export'!$C$8:$C$218,0))=\"\",\"\",INDEX(Disaggregation_1B!N$11:N$150,MATCH($C9,'Disaggregation1B_Import-Export'!$C$8:$C$218,0))),\"\")","v":""},{"$f":"IFERROR(IF(INDEX(Disaggregation_1B!O$11:O$150,MATCH($C9,'Disaggregation1B_Import-Export'!$C$8:$C$218,0))=\"\",\"\",INDEX(Disaggregation_1B!O$11:O$150,MATCH($C9,'Disaggregation1B_Import-Export'!$C$8:$C$218,0))),\"\")","v":""},{"$f":"IFERROR(IF(INDEX(Disaggregation_1B!P$11:P$150,MATCH($C9,'Disaggregation1B_Import-Export'!$C$8:$C$218,0))=\"\",\"\",INDEX(Disaggregation_1B!P$11:P$150,MATCH($C9,'Disaggregation1B_Import-Export'!$C$8:$C$218,0))),\"\")","v":""},{"$f":"IFERROR(IF(INDEX(Disaggregation_1B!Q$11:Q$150,MATCH($C9,'Disaggregation1B_Import-Export'!$C$8:$C$218,0))=\"\",\"\",INDEX(Disaggregation_1B!Q$11:Q$150,MATCH($C9,'Disaggregation1B_Import-Export'!$C$8:$C$218,0))),\"\")","v":"Pour le laboratoire, le canevas de rapport  ne précise pas l'âge"},{"$f":"INDEX(Disaggregation_1B!R$11:R$150,MATCH($C9,'Disaggregation1B_Import-Export'!$C$8:$C$218,0))","v":0},{"$f":"IFERROR(IF(INDEX(Disaggregation_1B!S$11:S$150,MATCH($C9,'Disaggregation1B_Import-Export'!$C$8:$C$218,0))=\"\",\"\",INDEX(Disaggregation_1B!S$11:S$150,MATCH($C9,'Disaggregation1B_Import-Export'!$C$8:$C$218,0))),\"\")","v":""},{"$f":"IFERROR(IF(INDEX(Disaggregation_1B!T$11:T$150,MATCH($C9,'Disaggregation1B_Import-Export'!$C$8:$C$218,0))=\"\",\"\",INDEX(Disaggregation_1B!T$11:T$150,MATCH($C9,'Disaggregation1B_Import-Export'!$C$8:$C$218,0))),\"\")","v":""},{"$f":"IFERROR(IF(INDEX(Disaggregation_1B!U$11:U$150,MATCH($C9,'Disaggregation1B_Import-Export'!$C$8:$C$218,0))=\"\",\"\",INDEX(Disaggregation_1B!U$11:U$150,MATCH($C9,'Disaggregation1B_Import-Export'!$C$8:$C$218,0))),\"\")","v":""},{"$f":"IFERROR(IF(INDEX(Disaggregation_1B!V$11:V$150,MATCH($C9,'Disaggregation1B_Import-Export'!$C$8:$C$218,0))=\"\",\"\",INDEX(Disaggregation_1B!V$11:V$150,MATCH($C9,'Disaggregation1B_Import-Export'!$C$8:$C$218,0))),\"\")","v":""},{"$f":"IFERROR(IF(INDEX(Disaggregation_1B!W$11:W$150,MATCH($C9,'Disaggregation1B_Import-Export'!$C$8:$C$218,0))=\"\",\"\",INDEX(Disaggregation_1B!W$11:W$150,MATCH($C9,'Disaggregation1B_Import-Export'!$C$8:$C$218,0))),\"\")","v":""},{"$f":"INDEX(Disaggregation_1B!X$11:X$150,MATCH($C9,'Disaggregation1B_Import-Export'!$C$8:$C$218,0))","v":0},null,null,null,{"$f":"INDEX(Disaggregation_1B!AB$11:AB$150,MATCH($C9,'Disaggregation1B_Import-Export'!$C$8:$C$218,0))","v":0},{"$f":"INDEX(Disaggregation_1B!AC$11:AC$150,MATCH($C9,'Disaggregation1B_Import-Export'!$C$8:$C$218,0))","v":0},2,"CM-1a(M): Proportion of suspected malaria cases that receive a parasitological test at public sector health facilities","U5","Age","CM-1a(M): Proporción de casos sospechosos de malaria sometidos a una prueba parasitológica en establecimientos de salud del sector público","CM-1a(M): Proportion de cas suspect de paludisme soumis à un test parasitologique dans des établissements de santé du secteur public","<5","<5 ans","Edad","Age","Données non fournies dans le DHIS 2",null,"Burundi"]
["a15360000095ptPAAQ",2,"Coverage2","Case management","CM-1a(M): Proportion of suspected malaria cases that receive a parasitological test at public sector health facilities","5+","Age",0,0,"0.0",null,null,"Data not provided in the DHIS 2",{"$f":"IFERROR(IF(INDEX(Disaggregation_1B!M$11:M$150,MATCH($C10,'Disaggregation1B_Import-Export'!$C$8:$C$218,0))=\"\",\"\",INDEX(Disaggregation_1B!M$11:M$150,MATCH($C10,'Disaggregation1B_Import-Export'!$C$8:$C$218,0))),\"\")","v":1204788},{"$f":"IFERROR(IF(INDEX(Disaggregation_1B!N$11:N$150,MATCH($C10,'Disaggregation1B_Import-Export'!$C$8:$C$218,0))=\"\",\"\",INDEX(Disaggregation_1B!N$11:N$150,MATCH($C10,'Disaggregation1B_Import-Export'!$C$8:$C$218,0))),\"\")","v":4876942},{"$f":"IFERROR(IF(INDEX(Disaggregation_1B!O$11:O$150,MATCH($C10,'Disaggregation1B_Import-Export'!$C$8:$C$218,0))=\"\",\"\",INDEX(Disaggregation_1B!O$11:O$150,MATCH($C10,'Disaggregation1B_Import-Export'!$C$8:$C$218,0))),\"\")","v":24.70375903588765},{"$f":"IFERROR(IF(INDEX(Disaggregation_1B!P$11:P$150,MATCH($C10,'Disaggregation1B_Import-Export'!$C$8:$C$218,0))=\"\",\"\",INDEX(Disaggregation_1B!P$11:P$150,MATCH($C10,'Disaggregation1B_Import-Export'!$C$8:$C$218,0))),\"\")","v":""},{"$f":"IFERROR(IF(INDEX(Disaggregation_1B!Q$11:Q$150,MATCH($C10,'Disaggregation1B_Import-Export'!$C$8:$C$218,0))=\"\",\"\",INDEX(Disaggregation_1B!Q$11:Q$150,MATCH($C10,'Disaggregation1B_Import-Export'!$C$8:$C$218,0))),\"\")","v":"Sur un total de 4 876 942 cas ayant été testés, 24.7% de ces cas ont été diagnostiqués par microscopie"},{"$f":"INDEX(Disaggregation_1B!R$11:R$150,MATCH($C10,'Disaggregation1B_Import-Export'!$C$8:$C$218,0))","v":0},{"$f":"IFERROR(IF(INDEX(Disaggregation_1B!S$11:S$150,MATCH($C10,'Disaggregation1B_Import-Export'!$C$8:$C$218,0))=\"\",\"\",INDEX(Disaggregation_1B!S$11:S$150,MATCH($C10,'Disaggregation1B_Import-Export'!$C$8:$C$218,0))),\"\")","v":""},{"$f":"IFERROR(IF(INDEX(Disaggregation_1B!T$11:T$150,MATCH($C10,'Disaggregation1B_Import-Export'!$C$8:$C$218,0))=\"\",\"\",INDEX(Disaggregation_1B!T$11:T$150,MATCH($C10,'Disaggregation1B_Import-Export'!$C$8:$C$218,0))),\"\")","v":""},{"$f":"IFERROR(IF(INDEX(Disaggregation_1B!U$11:U$150,MATCH($C10,'Disaggregation1B_Import-Export'!$C$8:$C$218,0))=\"\",\"\",INDEX(Disaggregation_1B!U$11:U$150,MATCH($C10,'Disaggregation1B_Import-Export'!$C$8:$C$218,0))),\"\")","v":""},{"$f":"IFERROR(IF(INDEX(Disaggregation_1B!V$11:V$150,MATCH($C10,'Disaggregation1B_Import-Export'!$C$8:$C$218,0))=\"\",\"\",INDEX(Disaggregation_1B!V$11:V$150,MATCH($C10,'Disaggregation1B_Import-Export'!$C$8:$C$218,0))),\"\")","v":""},{"$f":"IFERROR(IF(INDEX(Disaggregation_1B!W$11:W$150,MATCH($C10,'Disaggregation1B_Import-Export'!$C$8:$C$218,0))=\"\",\"\",INDEX(Disaggregation_1B!W$11:W$150,MATCH($C10,'Disaggregation1B_Import-Export'!$C$8:$C$218,0))),\"\")","v":""},{"$f":"INDEX(Disaggregation_1B!X$11:X$150,MATCH($C10,'Disaggregation1B_Import-Export'!$C$8:$C$218,0))","v":0},null,null,null,{"$f":"INDEX(Disaggregation_1B!AB$11:AB$150,MATCH($C10,'Disaggregation1B_Import-Export'!$C$8:$C$218,0))","v":0},{"$f":"INDEX(Disaggregation_1B!AC$11:AC$150,MATCH($C10,'Disaggregation1B_Import-Export'!$C$8:$C$218,0))","v":0},2,"CM-1a(M): Proportion of suspected malaria cases that receive a parasitological test at public sector health facilities","5+","Age","CM-1a(M): Proporción de casos sospechosos de malaria sometidos a una prueba parasitológica en establecimientos de salud del sector público","CM-1a(M): Proportion de cas suspect de paludisme soumis à un test parasitologique dans des établissements de santé du secteur public","5+","+ de 5 ans","Edad","Age","Données non fournies dans le DHIS 2",null,"Burundi"]
["a15360000095ptQAAQ",3,"Coverage3","Case management","CM-1a(M): Proportion of suspected malaria cases that receive a parasitological test at public sector health facilities","Microscopy","Type of testing",3441302,2199399,"1.6","2016","DHIS2","The total of the disaggregated data (11,488,376) differs slightly from teh total of the reference value in the performance framework (11,487,514).  The totals should be the same.  This will be better verified in future reporting of data.",{"$f":"IFERROR(IF(INDEX(Disaggregation_1B!M$11:M$150,MATCH($C11,'Disaggregation1B_Import-Export'!$C$8:$C$218,0))=\"\",\"\",INDEX(Disaggregation_1B!M$11:M$150,MATCH($C11,'Disaggregation1B_Import-Export'!$C$8:$C$218,0))),\"\")","v":3672154},{"$f":"IFERROR(IF(INDEX(Disaggregation_1B!N$11:N$150,MATCH($C11,'Disaggregation1B_Import-Export'!$C$8:$C$218,0))=\"\",\"\",INDEX(Disaggregation_1B!N$11:N$150,MATCH($C11,'Disaggregation1B_Import-Export'!$C$8:$C$218,0))),\"\")","v":4876942},{"$f":"IFERROR(IF(INDEX(Disaggregation_1B!O$11:O$150,MATCH($C11,'Disaggregation1B_Import-Export'!$C$8:$C$218,0))=\"\",\"\",INDEX(Disaggregation_1B!O$11:O$150,MATCH($C11,'Disaggregation1B_Import-Export'!$C$8:$C$218,0))),\"\")","v":75.296240964112343},{"$f":"IFERROR(IF(INDEX(Disaggregation_1B!P$11:P$150,MATCH($C11,'Disaggregation1B_Import-Export'!$C$8:$C$218,0))=\"\",\"\",INDEX(Disaggregation_1B!P$11:P$150,MATCH($C11,'Disaggregation1B_Import-Export'!$C$8:$C$218,0))),\"\")","v":""},{"$f":"IFERROR(IF(INDEX(Disaggregation_1B!Q$11:Q$150,MATCH($C11,'Disaggregation1B_Import-Export'!$C$8:$C$218,0))=\"\",\"\",INDEX(Disaggregation_1B!Q$11:Q$150,MATCH($C11,'Disaggregation1B_Import-Export'!$C$8:$C$218,0))),\"\")","v":"Sur un total de 4 876 942 cas ayant été testés, 75.2% de ces cas ont été diagnostiqués par TDR"},{"$f":"INDEX(Disaggregation_1B!R$11:R$150,MATCH($C11,'Disaggregation1B_Import-Export'!$C$8:$C$218,0))","v":0},{"$f":"IFERROR(IF(INDEX(Disaggregation_1B!S$11:S$150,MATCH($C11,'Disaggregation1B_Import-Export'!$C$8:$C$218,0))=\"\",\"\",INDEX(Disaggregation_1B!S$11:S$150,MATCH($C11,'Disaggregation1B_Import-Export'!$C$8:$C$218,0))),\"\")","v":""},{"$f":"IFERROR(IF(INDEX(Disaggregation_1B!T$11:T$150,MATCH($C11,'Disaggregation1B_Import-Export'!$C$8:$C$218,0))=\"\",\"\",INDEX(Disaggregation_1B!T$11:T$150,MATCH($C11,'Disaggregation1B_Import-Export'!$C$8:$C$218,0))),\"\")","v":""},{"$f":"IFERROR(IF(INDEX(Disaggregation_1B!U$11:U$150,MATCH($C11,'Disaggregation1B_Import-Export'!$C$8:$C$218,0))=\"\",\"\",INDEX(Disaggregation_1B!U$11:U$150,MATCH($C11,'Disaggregation1B_Import-Export'!$C$8:$C$218,0))),\"\")","v":""},{"$f":"IFERROR(IF(INDEX(Disaggregation_1B!V$11:V$150,MATCH($C11,'Disaggregation1B_Import-Export'!$C$8:$C$218,0))=\"\",\"\",INDEX(Disaggregation_1B!V$11:V$150,MATCH($C11,'Disaggregation1B_Import-Export'!$C$8:$C$218,0))),\"\")","v":""},{"$f":"IFERROR(IF(INDEX(Disaggregation_1B!W$11:W$150,MATCH($C11,'Disaggregation1B_Import-Export'!$C$8:$C$218,0))=\"\",\"\",INDEX(Disaggregation_1B!W$11:W$150,MATCH($C11,'Disaggregation1B_Import-Export'!$C$8:$C$218,0))),\"\")","v":""},{"$f":"INDEX(Disaggregation_1B!X$11:X$150,MATCH($C11,'Disaggregation1B_Import-Export'!$C$8:$C$218,0))","v":0},null,null,null,{"$f":"INDEX(Disaggregation_1B!AB$11:AB$150,MATCH($C11,'Disaggregation1B_Import-Export'!$C$8:$C$218,0))","v":0},{"$f":"INDEX(Disaggregation_1B!AC$11:AC$150,MATCH($C11,'Disaggregation1B_Import-Export'!$C$8:$C$218,0))","v":0},2,"CM-1a(M): Proportion of suspected malaria cases that receive a parasitological test at public sector health facilities","Microscopy","Type of testing","CM-1a(M): Proporción de casos sospechosos de malaria sometidos a una prueba parasitológica en establecimientos de salud del sector público","CM-1a(M): Proportion de cas suspect de paludisme soumis à un test parasitologique dans des établissements de santé du secteur public","Microscopio","Microscopie","Tipo de pruebas","Type de tests","Le total des données désagrégées (11,488,376) diffère du total de la valeur de base du cadre de performance (11,487,514).  Les totaux devraient être les mêmes.  Cela sera vérifié lors du rapportage pour les prochaines années.","DHIS2","Burundi"]
["a15360000095ptRAAQ",4,"Coverage4","Case management","CM-1a(M): Proportion of suspected malaria cases that receive a parasitological test at public sector health facilities","Rapid diagnostic test","Type of testing",8047074,8797595,"0.9","2016","DHIS2","The total of the disaggregated data (11,488,376) differs slightly from teh total of the reference value in the performance framework (11,487,514).  The totals should be the same.  This will be better verified in future reporting of data.",{"$f":"IFERROR(IF(INDEX(Disaggregation_1B!M$11:M$150,MATCH($C12,'Disaggregation1B_Import-Export'!$C$8:$C$218,0))=\"\",\"\",INDEX(Disaggregation_1B!M$11:M$150,MATCH($C12,'Disaggregation1B_Import-Export'!$C$8:$C$218,0))),\"\")","v":329235},{"$f":"IFERROR(IF(INDEX(Disaggregation_1B!N$11:N$150,MATCH($C12,'Disaggregation1B_Import-Export'!$C$8:$C$218,0))=\"\",\"\",INDEX(Disaggregation_1B!N$11:N$150,MATCH($C12,'Disaggregation1B_Import-Export'!$C$8:$C$218,0))),\"\")","v":513820},{"$f":"IFERROR(IF(INDEX(Disaggregation_1B!O$11:O$150,MATCH($C12,'Disaggregation1B_Import-Export'!$C$8:$C$218,0))=\"\",\"\",INDEX(Disaggregation_1B!O$11:O$150,MATCH($C12,'Disaggregation1B_Import-Export'!$C$8:$C$218,0))),\"\")","v":64.075940991008522},{"$f":"IFERROR(IF(INDEX(Disaggregation_1B!P$11:P$150,MATCH($C12,'Disaggregation1B_Import-Export'!$C$8:$C$218,0))=\"\",\"\",INDEX(Disaggregation_1B!P$11:P$150,MATCH($C12,'Disaggregation1B_Import-Export'!$C$8:$C$218,0))),\"\")","v":""},{"$f":"IFERROR(IF(INDEX(Disaggregation_1B!Q$11:Q$150,MATCH($C12,'Disaggregation1B_Import-Export'!$C$8:$C$218,0))=\"\",\"\",INDEX(Disaggregation_1B!Q$11:Q$150,MATCH($C12,'Disaggregation1B_Import-Export'!$C$8:$C$218,0))),\"\")","v":"Selon les directives nationales, ce sont que les enfants U5 qui sont ciblés par la stratégie de prise en charge communautaire du paludisme simple dans le cadre iCCM. Tous les cas suspects de paludisme dans la communauté ont été diagnostiqués par TDR. "},{"$f":"INDEX(Disaggregation_1B!R$11:R$150,MATCH($C12,'Disaggregation1B_Import-Export'!$C$8:$C$218,0))","v":0},{"$f":"IFERROR(IF(INDEX(Disaggregation_1B!S$11:S$150,MATCH($C12,'Disaggregation1B_Import-Export'!$C$8:$C$218,0))=\"\",\"\",INDEX(Disaggregation_1B!S$11:S$150,MATCH($C12,'Disaggregation1B_Import-Export'!$C$8:$C$218,0))),\"\")","v":""},{"$f":"IFERROR(IF(INDEX(Disaggregation_1B!T$11:T$150,MATCH($C12,'Disaggregation1B_Import-Export'!$C$8:$C$218,0))=\"\",\"\",INDEX(Disaggregation_1B!T$11:T$150,MATCH($C12,'Disaggregation1B_Import-Export'!$C$8:$C$218,0))),\"\")","v":""},{"$f":"IFERROR(IF(INDEX(Disaggregation_1B!U$11:U$150,MATCH($C12,'Disaggregation1B_Import-Export'!$C$8:$C$218,0))=\"\",\"\",INDEX(Disaggregation_1B!U$11:U$150,MATCH($C12,'Disaggregation1B_Import-Export'!$C$8:$C$218,0))),\"\")","v":""},{"$f":"IFERROR(IF(INDEX(Disaggregation_1B!V$11:V$150,MATCH($C12,'Disaggregation1B_Import-Export'!$C$8:$C$218,0))=\"\",\"\",INDEX(Disaggregation_1B!V$11:V$150,MATCH($C12,'Disaggregation1B_Import-Export'!$C$8:$C$218,0))),\"\")","v":""},{"$f":"IFERROR(IF(INDEX(Disaggregation_1B!W$11:W$150,MATCH($C12,'Disaggregation1B_Import-Export'!$C$8:$C$218,0))=\"\",\"\",INDEX(Disaggregation_1B!W$11:W$150,MATCH($C12,'Disaggregation1B_Import-Export'!$C$8:$C$218,0))),\"\")","v":""},{"$f":"INDEX(Disaggregation_1B!X$11:X$150,MATCH($C12,'Disaggregation1B_Import-Export'!$C$8:$C$218,0))","v":0},null,null,null,{"$f":"INDEX(Disaggregation_1B!AB$11:AB$150,MATCH($C12,'Disaggregation1B_Import-Export'!$C$8:$C$218,0))","v":0},{"$f":"INDEX(Disaggregation_1B!AC$11:AC$150,MATCH($C12,'Disaggregation1B_Import-Export'!$C$8:$C$218,0))","v":0},2,"CM-1a(M): Proportion of suspected malaria cases that receive a parasitological test at public sector health facilities","Rapid diagnostic test","Type of testing","CM-1a(M): Proporción de casos sospechosos de malaria sometidos a una prueba parasitológica en establecimientos de salud del sector público","CM-1a(M): Proportion de cas suspect de paludisme soumis à un test parasitologique dans des établissements de santé du secteur public","Prueba de diagnóstico rápido","Test de dépistage rapide","Tipo de pruebas","Type de tests","Le total des données désagrégées (11,488,376) diffère du total de la valeur de base du cadre de performance (11,487,514).  Les totaux devraient être les mêmes.  Cela sera vérifié lors du rapportage pour les prochaines années.","DHIS2","Burundi"]
["a15360000095ptmAAA",5,"Coverage5","Case management","CM-1b(M): Proportion of suspected malaria cases that receive a parasitological test in the community","U5","Age",0,0,"0.0",null,null,"Data not provided in the DHIS 2",{"$f":"IFERROR(IF(INDEX(Disaggregation_1B!M$11:M$150,MATCH($C13,'Disaggregation1B_Import-Export'!$C$8:$C$218,0))=\"\",\"\",INDEX(Disaggregation_1B!M$11:M$150,MATCH($C13,'Disaggregation1B_Import-Export'!$C$8:$C$218,0))),\"\")","v":""},{"$f":"IFERROR(IF(INDEX(Disaggregation_1B!N$11:N$150,MATCH($C13,'Disaggregation1B_Import-Export'!$C$8:$C$218,0))=\"\",\"\",INDEX(Disaggregation_1B!N$11:N$150,MATCH($C13,'Disaggregation1B_Import-Export'!$C$8:$C$218,0))),\"\")","v":""},{"$f":"IFERROR(IF(INDEX(Disaggregation_1B!O$11:O$150,MATCH($C13,'Disaggregation1B_Import-Export'!$C$8:$C$218,0))=\"\",\"\",INDEX(Disaggregation_1B!O$11:O$150,MATCH($C13,'Disaggregation1B_Import-Export'!$C$8:$C$218,0))),\"\")","v":""},{"$f":"IFERROR(IF(INDEX(Disaggregation_1B!P$11:P$150,MATCH($C13,'Disaggregation1B_Import-Export'!$C$8:$C$218,0))=\"\",\"\",INDEX(Disaggregation_1B!P$11:P$150,MATCH($C13,'Disaggregation1B_Import-Export'!$C$8:$C$218,0))),\"\")","v":""},{"$f":"IFERROR(IF(INDEX(Disaggregation_1B!Q$11:Q$150,MATCH($C13,'Disaggregation1B_Import-Export'!$C$8:$C$218,0))=\"\",\"\",INDEX(Disaggregation_1B!Q$11:Q$150,MATCH($C13,'Disaggregation1B_Import-Export'!$C$8:$C$218,0))),\"\")","v":"Selon les directives nationales, ce sont les enfants U5 qui sont ciblés par la stratégie de prise en charge communautaire du paludisme simple  dans le cadre ICCM . Tous les cas suspects de paludisme dans la communauté doivent être soumis uniquement au test par TDR dans la communauté. "},{"$f":"INDEX(Disaggregation_1B!R$11:R$150,MATCH($C13,'Disaggregation1B_Import-Export'!$C$8:$C$218,0))","v":0},{"$f":"IFERROR(IF(INDEX(Disaggregation_1B!S$11:S$150,MATCH($C13,'Disaggregation1B_Import-Export'!$C$8:$C$218,0))=\"\",\"\",INDEX(Disaggregation_1B!S$11:S$150,MATCH($C13,'Disaggregation1B_Import-Export'!$C$8:$C$218,0))),\"\")","v":""},{"$f":"IFERROR(IF(INDEX(Disaggregation_1B!T$11:T$150,MATCH($C13,'Disaggregation1B_Import-Export'!$C$8:$C$218,0))=\"\",\"\",INDEX(Disaggregation_1B!T$11:T$150,MATCH($C13,'Disaggregation1B_Import-Export'!$C$8:$C$218,0))),\"\")","v":""},{"$f":"IFERROR(IF(INDEX(Disaggregation_1B!U$11:U$150,MATCH($C13,'Disaggregation1B_Import-Export'!$C$8:$C$218,0))=\"\",\"\",INDEX(Disaggregation_1B!U$11:U$150,MATCH($C13,'Disaggregation1B_Import-Export'!$C$8:$C$218,0))),\"\")","v":""},{"$f":"IFERROR(IF(INDEX(Disaggregation_1B!V$11:V$150,MATCH($C13,'Disaggregation1B_Import-Export'!$C$8:$C$218,0))=\"\",\"\",INDEX(Disaggregation_1B!V$11:V$150,MATCH($C13,'Disaggregation1B_Import-Export'!$C$8:$C$218,0))),\"\")","v":""},{"$f":"IFERROR(IF(INDEX(Disaggregation_1B!W$11:W$150,MATCH($C13,'Disaggregation1B_Import-Export'!$C$8:$C$218,0))=\"\",\"\",INDEX(Disaggregation_1B!W$11:W$150,MATCH($C13,'Disaggregation1B_Import-Export'!$C$8:$C$218,0))),\"\")","v":""},{"$f":"INDEX(Disaggregation_1B!X$11:X$150,MATCH($C13,'Disaggregation1B_Import-Export'!$C$8:$C$218,0))","v":0},null,null,null,{"$f":"INDEX(Disaggregation_1B!AB$11:AB$150,MATCH($C13,'Disaggregation1B_Import-Export'!$C$8:$C$218,0))","v":0},{"$f":"INDEX(Disaggregation_1B!AC$11:AC$150,MATCH($C13,'Disaggregation1B_Import-Export'!$C$8:$C$218,0))","v":0},3,"CM-1b(M): Proportion of suspected malaria cases that receive a parasitological test in the community","U5","Age","CM-1b(M): Proporción de casos sospechosos de malaria sometidos a una prueba parasitológica en la comunidad","CM-1b(M): Proportion de cas suspects de paludisme soumis à un test parasitologique dans la communauté","<5","<5 ans","Edad","Age","Données non fournies dans le DHIS 2",null,"Burundi"]
["a15360000095ptnAAA",6,"Coverage6","Case management","CM-1b(M): Proportion of suspected malaria cases that receive a parasitological test in the community","5+","Age",0,0,"0.0",null,null,"Data not provided in the DHIS 2",{"$f":"IFERROR(IF(INDEX(Disaggregation_1B!M$11:M$150,MATCH($C14,'Disaggregation1B_Import-Export'!$C$8:$C$218,0))=\"\",\"\",INDEX(Disaggregation_1B!M$11:M$150,MATCH($C14,'Disaggregation1B_Import-Export'!$C$8:$C$218,0))),\"\")","v":""},{"$f":"IFERROR(IF(INDEX(Disaggregation_1B!N$11:N$150,MATCH($C14,'Disaggregation1B_Import-Export'!$C$8:$C$218,0))=\"\",\"\",INDEX(Disaggregation_1B!N$11:N$150,MATCH($C14,'Disaggregation1B_Import-Export'!$C$8:$C$218,0))),\"\")","v":""},{"$f":"IFERROR(IF(INDEX(Disaggregation_1B!O$11:O$150,MATCH($C14,'Disaggregation1B_Import-Export'!$C$8:$C$218,0))=\"\",\"\",INDEX(Disaggregation_1B!O$11:O$150,MATCH($C14,'Disaggregation1B_Import-Export'!$C$8:$C$218,0))),\"\")","v":""},{"$f":"IFERROR(IF(INDEX(Disaggregation_1B!P$11:P$150,MATCH($C14,'Disaggregation1B_Import-Export'!$C$8:$C$218,0))=\"\",\"\",INDEX(Disaggregation_1B!P$11:P$150,MATCH($C14,'Disaggregation1B_Import-Export'!$C$8:$C$218,0))),\"\")","v":""},{"$f":"IFERROR(IF(INDEX(Disaggregation_1B!Q$11:Q$150,MATCH($C14,'Disaggregation1B_Import-Export'!$C$8:$C$218,0))=\"\",\"\",INDEX(Disaggregation_1B!Q$11:Q$150,MATCH($C14,'Disaggregation1B_Import-Export'!$C$8:$C$218,0))),\"\")","v":"Tous les cas suspects de paludisme dans la communauté ayant été diagnostiqués ont ete soumis uniquement au test par TDR."},{"$f":"INDEX(Disaggregation_1B!R$11:R$150,MATCH($C14,'Disaggregation1B_Import-Export'!$C$8:$C$218,0))","v":0},{"$f":"IFERROR(IF(INDEX(Disaggregation_1B!S$11:S$150,MATCH($C14,'Disaggregation1B_Import-Export'!$C$8:$C$218,0))=\"\",\"\",INDEX(Disaggregation_1B!S$11:S$150,MATCH($C14,'Disaggregation1B_Import-Export'!$C$8:$C$218,0))),\"\")","v":""},{"$f":"IFERROR(IF(INDEX(Disaggregation_1B!T$11:T$150,MATCH($C14,'Disaggregation1B_Import-Export'!$C$8:$C$218,0))=\"\",\"\",INDEX(Disaggregation_1B!T$11:T$150,MATCH($C14,'Disaggregation1B_Import-Export'!$C$8:$C$218,0))),\"\")","v":""},{"$f":"IFERROR(IF(INDEX(Disaggregation_1B!U$11:U$150,MATCH($C14,'Disaggregation1B_Import-Export'!$C$8:$C$218,0))=\"\",\"\",INDEX(Disaggregation_1B!U$11:U$150,MATCH($C14,'Disaggregation1B_Import-Export'!$C$8:$C$218,0))),\"\")","v":""},{"$f":"IFERROR(IF(INDEX(Disaggregation_1B!V$11:V$150,MATCH($C14,'Disaggregation1B_Import-Export'!$C$8:$C$218,0))=\"\",\"\",INDEX(Disaggregation_1B!V$11:V$150,MATCH($C14,'Disaggregation1B_Import-Export'!$C$8:$C$218,0))),\"\")","v":""},{"$f":"IFERROR(IF(INDEX(Disaggregation_1B!W$11:W$150,MATCH($C14,'Disaggregation1B_Import-Export'!$C$8:$C$218,0))=\"\",\"\",INDEX(Disaggregation_1B!W$11:W$150,MATCH($C14,'Disaggregation1B_Import-Export'!$C$8:$C$218,0))),\"\")","v":""},{"$f":"INDEX(Disaggregation_1B!X$11:X$150,MATCH($C14,'Disaggregation1B_Import-Export'!$C$8:$C$218,0))","v":0},null,null,null,{"$f":"INDEX(Disaggregation_1B!AB$11:AB$150,MATCH($C14,'Disaggregation1B_Import-Export'!$C$8:$C$218,0))","v":0},{"$f":"INDEX(Disaggregation_1B!AC$11:AC$150,MATCH($C14,'Disaggregation1B_Import-Export'!$C$8:$C$218,0))","v":0},3,"CM-1b(M): Proportion of suspected malaria cases that receive a parasitological test in the community","5+","Age","CM-1b(M): Proporción de casos sospechosos de malaria sometidos a una prueba parasitológica en la comunidad","CM-1b(M): Proportion de cas suspects de paludisme soumis à un test parasitologique dans la communauté","5+","+ de 5 ans","Edad","Age","Données non fournies dans le DHIS 2",null,"Burundi"]
["a15360000095ptoAAA",7,"Coverage7","Case management","CM-1b(M): Proportion of suspected malaria cases that receive a parasitological test in the community","Microscopy","Type of testing",0,0,"0.0",null,null,"Microscopy is not used in the community",{"$f":"IFERROR(IF(INDEX(Disaggregation_1B!M$11:M$150,MATCH($C15,'Disaggregation1B_Import-Export'!$C$8:$C$218,0))=\"\",\"\",INDEX(Disaggregation_1B!M$11:M$150,MATCH($C15,'Disaggregation1B_Import-Export'!$C$8:$C$218,0))),\"\")","v":329235},{"$f":"IFERROR(IF(INDEX(Disaggregation_1B!N$11:N$150,MATCH($C15,'Disaggregation1B_Import-Export'!$C$8:$C$218,0))=\"\",\"\",INDEX(Disaggregation_1B!N$11:N$150,MATCH($C15,'Disaggregation1B_Import-Export'!$C$8:$C$218,0))),\"\")","v":329235},{"$f":"IFERROR(IF(INDEX(Disaggregation_1B!O$11:O$150,MATCH($C15,'Disaggregation1B_Import-Export'!$C$8:$C$218,0))=\"\",\"\",INDEX(Disaggregation_1B!O$11:O$150,MATCH($C15,'Disaggregation1B_Import-Export'!$C$8:$C$218,0))),\"\")","v":100},{"$f":"IFERROR(IF(INDEX(Disaggregation_1B!P$11:P$150,MATCH($C15,'Disaggregation1B_Import-Export'!$C$8:$C$218,0))=\"\",\"\",INDEX(Disaggregation_1B!P$11:P$150,MATCH($C15,'Disaggregation1B_Import-Export'!$C$8:$C$218,0))),\"\")","v":""},{"$f":"IFERROR(IF(INDEX(Disaggregation_1B!Q$11:Q$150,MATCH($C15,'Disaggregation1B_Import-Export'!$C$8:$C$218,0))=\"\",\"\",INDEX(Disaggregation_1B!Q$11:Q$150,MATCH($C15,'Disaggregation1B_Import-Export'!$C$8:$C$218,0))),\"\")","v":"Selon les directives nationales, ce sont que les enfants U5 qui sont ciblés par la stratégie de prise en charge communautaire du paludisme simple dans le cadre iCCM. Tous les cas suspects de paludisme dans la communauté ont été diagnostiqués par TDR. "},{"$f":"INDEX(Disaggregation_1B!R$11:R$150,MATCH($C15,'Disaggregation1B_Import-Export'!$C$8:$C$218,0))","v":0},{"$f":"IFERROR(IF(INDEX(Disaggregation_1B!S$11:S$150,MATCH($C15,'Disaggregation1B_Import-Export'!$C$8:$C$218,0))=\"\",\"\",INDEX(Disaggregation_1B!S$11:S$150,MATCH($C15,'Disaggregation1B_Import-Export'!$C$8:$C$218,0))),\"\")","v":""},{"$f":"IFERROR(IF(INDEX(Disaggregation_1B!T$11:T$150,MATCH($C15,'Disaggregation1B_Import-Export'!$C$8:$C$218,0))=\"\",\"\",INDEX(Disaggregation_1B!T$11:T$150,MATCH($C15,'Disaggregation1B_Import-Export'!$C$8:$C$218,0))),\"\")","v":""},{"$f":"IFERROR(IF(INDEX(Disaggregation_1B!U$11:U$150,MATCH($C15,'Disaggregation1B_Import-Export'!$C$8:$C$218,0))=\"\",\"\",INDEX(Disaggregation_1B!U$11:U$150,MATCH($C15,'Disaggregation1B_Import-Export'!$C$8:$C$218,0))),\"\")","v":""},{"$f":"IFERROR(IF(INDEX(Disaggregation_1B!V$11:V$150,MATCH($C15,'Disaggregation1B_Import-Export'!$C$8:$C$218,0))=\"\",\"\",INDEX(Disaggregation_1B!V$11:V$150,MATCH($C15,'Disaggregation1B_Import-Export'!$C$8:$C$218,0))),\"\")","v":""},{"$f":"IFERROR(IF(INDEX(Disaggregation_1B!W$11:W$150,MATCH($C15,'Disaggregation1B_Import-Export'!$C$8:$C$218,0))=\"\",\"\",INDEX(Disaggregation_1B!W$11:W$150,MATCH($C15,'Disaggregation1B_Import-Export'!$C$8:$C$218,0))),\"\")","v":""},{"$f":"INDEX(Disaggregation_1B!X$11:X$150,MATCH($C15,'Disaggregation1B_Import-Export'!$C$8:$C$218,0))","v":0},null,null,null,{"$f":"INDEX(Disaggregation_1B!AB$11:AB$150,MATCH($C15,'Disaggregation1B_Import-Export'!$C$8:$C$218,0))","v":0},{"$f":"INDEX(Disaggregation_1B!AC$11:AC$150,MATCH($C15,'Disaggregation1B_Import-Export'!$C$8:$C$218,0))","v":0},3,"CM-1b(M): Proportion of suspected malaria cases that receive a parasitological test in the community","Microscopy","Type of testing","CM-1b(M): Proporción de casos sospechosos de malaria sometidos a una prueba parasitológica en la comunidad","CM-1b(M): Proportion de cas suspects de paludisme soumis à un test parasitologique dans la communauté","Microscopio","Microscopie","Tipo de pruebas","Type de tests","La microscopie n'est pas utilisée dans la communauté",null,"Burundi"]
["a15360000095ptpAAA",8,"Coverage8","Case management","CM-1b(M): Proportion of suspected malaria cases that receive a parasitological test in the community","Rapid diagnostic test","Type of testing",0,0,"0.0",null,null,"Microscopy is not used in the community.  The results therefore all refer to RDTs in the community.",{"$f":"IFERROR(IF(INDEX(Disaggregation_1B!M$11:M$150,MATCH($C16,'Disaggregation1B_Import-Export'!$C$8:$C$218,0))=\"\",\"\",INDEX(Disaggregation_1B!M$11:M$150,MATCH($C16,'Disaggregation1B_Import-Export'!$C$8:$C$218,0))),\"\")","v":""},{"$f":"IFERROR(IF(INDEX(Disaggregation_1B!N$11:N$150,MATCH($C16,'Disaggregation1B_Import-Export'!$C$8:$C$218,0))=\"\",\"\",INDEX(Disaggregation_1B!N$11:N$150,MATCH($C16,'Disaggregation1B_Import-Export'!$C$8:$C$218,0))),\"\")","v":""},{"$f":"IFERROR(IF(INDEX(Disaggregation_1B!O$11:O$150,MATCH($C16,'Disaggregation1B_Import-Export'!$C$8:$C$218,0))=\"\",\"\",INDEX(Disaggregation_1B!O$11:O$150,MATCH($C16,'Disaggregation1B_Import-Export'!$C$8:$C$218,0))),\"\")","v":""},{"$f":"IFERROR(IF(INDEX(Disaggregation_1B!P$11:P$150,MATCH($C16,'Disaggregation1B_Import-Export'!$C$8:$C$218,0))=\"\",\"\",INDEX(Disaggregation_1B!P$11:P$150,MATCH($C16,'Disaggregation1B_Import-Export'!$C$8:$C$218,0))),\"\")","v":""},{"$f":"IFERROR(IF(INDEX(Disaggregation_1B!Q$11:Q$150,MATCH($C16,'Disaggregation1B_Import-Export'!$C$8:$C$218,0))=\"\",\"\",INDEX(Disaggregation_1B!Q$11:Q$150,MATCH($C16,'Disaggregation1B_Import-Export'!$C$8:$C$218,0))),\"\")","v":"Le DHIS2 n'integre pas la desagregation par age pour les données de laboratoire."},{"$f":"INDEX(Disaggregation_1B!R$11:R$150,MATCH($C16,'Disaggregation1B_Import-Export'!$C$8:$C$218,0))","v":0},{"$f":"IFERROR(IF(INDEX(Disaggregation_1B!S$11:S$150,MATCH($C16,'Disaggregation1B_Import-Export'!$C$8:$C$218,0))=\"\",\"\",INDEX(Disaggregation_1B!S$11:S$150,MATCH($C16,'Disaggregation1B_Import-Export'!$C$8:$C$218,0))),\"\")","v":""},{"$f":"IFERROR(IF(INDEX(Disaggregation_1B!T$11:T$150,MATCH($C16,'Disaggregation1B_Import-Export'!$C$8:$C$218,0))=\"\",\"\",INDEX(Disaggregation_1B!T$11:T$150,MATCH($C16,'Disaggregation1B_Import-Export'!$C$8:$C$218,0))),\"\")","v":""},{"$f":"IFERROR(IF(INDEX(Disaggregation_1B!U$11:U$150,MATCH($C16,'Disaggregation1B_Import-Export'!$C$8:$C$218,0))=\"\",\"\",INDEX(Disaggregation_1B!U$11:U$150,MATCH($C16,'Disaggregation1B_Import-Export'!$C$8:$C$218,0))),\"\")","v":""},{"$f":"IFERROR(IF(INDEX(Disaggregation_1B!V$11:V$150,MATCH($C16,'Disaggregation1B_Import-Export'!$C$8:$C$218,0))=\"\",\"\",INDEX(Disaggregation_1B!V$11:V$150,MATCH($C16,'Disaggregation1B_Import-Export'!$C$8:$C$218,0))),\"\")","v":""},{"$f":"IFERROR(IF(INDEX(Disaggregation_1B!W$11:W$150,MATCH($C16,'Disaggregation1B_Import-Export'!$C$8:$C$218,0))=\"\",\"\",INDEX(Disaggregation_1B!W$11:W$150,MATCH($C16,'Disaggregation1B_Import-Export'!$C$8:$C$218,0))),\"\")","v":""},{"$f":"INDEX(Disaggregation_1B!X$11:X$150,MATCH($C16,'Disaggregation1B_Import-Export'!$C$8:$C$218,0))","v":0},null,null,null,{"$f":"INDEX(Disaggregation_1B!AB$11:AB$150,MATCH($C16,'Disaggregation1B_Import-Export'!$C$8:$C$218,0))","v":0},{"$f":"INDEX(Disaggregation_1B!AC$11:AC$150,MATCH($C16,'Disaggregation1B_Import-Export'!$C$8:$C$218,0))","v":0},3,"CM-1b(M): Proportion of suspected malaria cases that receive a parasitological test in the community","Rapid diagnostic test","Type of testing","CM-1b(M): Proporción de casos sospechosos de malaria sometidos a una prueba parasitológica en la comunidad","CM-1b(M): Proportion de cas suspects de paludisme soumis à un test parasitologique dans la communauté","Prueba de diagnóstico rápido","Test de dépistage rapide","Tipo de pruebas","Type de tests","La microscopie n'est pas utilisée dans la communauté.  Les résultats se réfèrent donc tous à des tests TDRs dans la communauté.",null,"Burundi"]
["a15360000095puAAAQ",9,"Coverage9","Case management","CM-1c(M): Proportion of suspected malaria cases that receive a parasitological test at private sector sites","U5","Age",0,0,"0.0",null,null,"Data not provided in the DHIS 2",{"$f":"IFERROR(IF(INDEX(Disaggregation_1B!M$11:M$150,MATCH($C17,'Disaggregation1B_Import-Export'!$C$8:$C$218,0))=\"\",\"\",INDEX(Disaggregation_1B!M$11:M$150,MATCH($C17,'Disaggregation1B_Import-Export'!$C$8:$C$218,0))),\"\")","v":99361},{"$f":"IFERROR(IF(INDEX(Disaggregation_1B!N$11:N$150,MATCH($C17,'Disaggregation1B_Import-Export'!$C$8:$C$218,0))=\"\",\"\",INDEX(Disaggregation_1B!N$11:N$150,MATCH($C17,'Disaggregation1B_Import-Export'!$C$8:$C$218,0))),\"\")","v":356801},{"$f":"IFERROR(IF(INDEX(Disaggregation_1B!O$11:O$150,MATCH($C17,'Disaggregation1B_Import-Export'!$C$8:$C$218,0))=\"\",\"\",INDEX(Disaggregation_1B!O$11:O$150,MATCH($C17,'Disaggregation1B_Import-Export'!$C$8:$C$218,0))),\"\")","v":27.847735852758259},{"$f":"IFERROR(IF(INDEX(Disaggregation_1B!P$11:P$150,MATCH($C17,'Disaggregation1B_Import-Export'!$C$8:$C$218,0))=\"\",\"\",INDEX(Disaggregation_1B!P$11:P$150,MATCH($C17,'Disaggregation1B_Import-Export'!$C$8:$C$218,0))),\"\")","v":""},{"$f":"IFERROR(IF(INDEX(Disaggregation_1B!Q$11:Q$150,MATCH($C17,'Disaggregation1B_Import-Export'!$C$8:$C$218,0))=\"\",\"\",INDEX(Disaggregation_1B!Q$11:Q$150,MATCH($C17,'Disaggregation1B_Import-Export'!$C$8:$C$218,0))),\"\")","v":"Au niveau des formations sanitaires privées, cette performance est visiblement renversée."},{"$f":"INDEX(Disaggregation_1B!R$11:R$150,MATCH($C17,'Disaggregation1B_Import-Export'!$C$8:$C$218,0))","v":0},{"$f":"IFERROR(IF(INDEX(Disaggregation_1B!S$11:S$150,MATCH($C17,'Disaggregation1B_Import-Export'!$C$8:$C$218,0))=\"\",\"\",INDEX(Disaggregation_1B!S$11:S$150,MATCH($C17,'Disaggregation1B_Import-Export'!$C$8:$C$218,0))),\"\")","v":""},{"$f":"IFERROR(IF(INDEX(Disaggregation_1B!T$11:T$150,MATCH($C17,'Disaggregation1B_Import-Export'!$C$8:$C$218,0))=\"\",\"\",INDEX(Disaggregation_1B!T$11:T$150,MATCH($C17,'Disaggregation1B_Import-Export'!$C$8:$C$218,0))),\"\")","v":""},{"$f":"IFERROR(IF(INDEX(Disaggregation_1B!U$11:U$150,MATCH($C17,'Disaggregation1B_Import-Export'!$C$8:$C$218,0))=\"\",\"\",INDEX(Disaggregation_1B!U$11:U$150,MATCH($C17,'Disaggregation1B_Import-Export'!$C$8:$C$218,0))),\"\")","v":""},{"$f":"IFERROR(IF(INDEX(Disaggregation_1B!V$11:V$150,MATCH($C17,'Disaggregation1B_Import-Export'!$C$8:$C$218,0))=\"\",\"\",INDEX(Disaggregation_1B!V$11:V$150,MATCH($C17,'Disaggregation1B_Import-Export'!$C$8:$C$218,0))),\"\")","v":""},{"$f":"IFERROR(IF(INDEX(Disaggregation_1B!W$11:W$150,MATCH($C17,'Disaggregation1B_Import-Export'!$C$8:$C$218,0))=\"\",\"\",INDEX(Disaggregation_1B!W$11:W$150,MATCH($C17,'Disaggregation1B_Import-Export'!$C$8:$C$218,0))),\"\")","v":""},{"$f":"INDEX(Disaggregation_1B!X$11:X$150,MATCH($C17,'Disaggregation1B_Import-Export'!$C$8:$C$218,0))","v":0},null,null,null,{"$f":"INDEX(Disaggregation_1B!AB$11:AB$150,MATCH($C17,'Disaggregation1B_Import-Export'!$C$8:$C$218,0))","v":0},{"$f":"INDEX(Disaggregation_1B!AC$11:AC$150,MATCH($C17,'Disaggregation1B_Import-Export'!$C$8:$C$218,0))","v":0},4,"CM-1c(M): Proportion of suspected malaria cases that receive a parasitological test at private sector sites","U5","Age","CM-1c(M): Proporción de casos sospechosos de malaria sometidos a una prueba parasitológica en establecimientos de salud del sector privado","CM-1c(M): Proportion de cas suspects de paludisme soumis à un test parasitologique dans des locaux du secteur privé","<5","<5 ans","Edad","Age","Données non fournies dans le DHIS 2",null,"Burundi"]
["a15360000095puBAAQ",10,"Coverage10","Case management","CM-1c(M): Proportion of suspected malaria cases that receive a parasitological test at private sector sites","Rapid diagnostic test","Type of testing",252959,0,"0.0",null,null,"Data not provided in the DHIS 2, the denominator is not available.  The disaggregated data (789,574) are different to the baseline value of the performance framework (757,055).  The totals should be the same.  This will be better verified during future reporting periods.",{"$f":"IFERROR(IF(INDEX(Disaggregation_1B!M$11:M$150,MATCH($C18,'Disaggregation1B_Import-Export'!$C$8:$C$218,0))=\"\",\"\",INDEX(Disaggregation_1B!M$11:M$150,MATCH($C18,'Disaggregation1B_Import-Export'!$C$8:$C$218,0))),\"\")","v":257440},{"$f":"IFERROR(IF(INDEX(Disaggregation_1B!N$11:N$150,MATCH($C18,'Disaggregation1B_Import-Export'!$C$8:$C$218,0))=\"\",\"\",INDEX(Disaggregation_1B!N$11:N$150,MATCH($C18,'Disaggregation1B_Import-Export'!$C$8:$C$218,0))),\"\")","v":356801},{"$f":"IFERROR(IF(INDEX(Disaggregation_1B!O$11:O$150,MATCH($C18,'Disaggregation1B_Import-Export'!$C$8:$C$218,0))=\"\",\"\",INDEX(Disaggregation_1B!O$11:O$150,MATCH($C18,'Disaggregation1B_Import-Export'!$C$8:$C$218,0))),\"\")","v":72.152264147241738},{"$f":"IFERROR(IF(INDEX(Disaggregation_1B!P$11:P$150,MATCH($C18,'Disaggregation1B_Import-Export'!$C$8:$C$218,0))=\"\",\"\",INDEX(Disaggregation_1B!P$11:P$150,MATCH($C18,'Disaggregation1B_Import-Export'!$C$8:$C$218,0))),\"\")","v":""},{"$f":"IFERROR(IF(INDEX(Disaggregation_1B!Q$11:Q$150,MATCH($C18,'Disaggregation1B_Import-Export'!$C$8:$C$218,0))=\"\",\"\",INDEX(Disaggregation_1B!Q$11:Q$150,MATCH($C18,'Disaggregation1B_Import-Export'!$C$8:$C$218,0))),\"\")","v":"La norme étant  de 20% pour la Microscopie et 80% pour les TDR. Cependant au niveau des formations sanitaires privés, cette performance est visiblement renversée."},{"$f":"INDEX(Disaggregation_1B!R$11:R$150,MATCH($C18,'Disaggregation1B_Import-Export'!$C$8:$C$218,0))","v":0},{"$f":"IFERROR(IF(INDEX(Disaggregation_1B!S$11:S$150,MATCH($C18,'Disaggregation1B_Import-Export'!$C$8:$C$218,0))=\"\",\"\",INDEX(Disaggregation_1B!S$11:S$150,MATCH($C18,'Disaggregation1B_Import-Export'!$C$8:$C$218,0))),\"\")","v":""},{"$f":"IFERROR(IF(INDEX(Disaggregation_1B!T$11:T$150,MATCH($C18,'Disaggregation1B_Import-Export'!$C$8:$C$218,0))=\"\",\"\",INDEX(Disaggregation_1B!T$11:T$150,MATCH($C18,'Disaggregation1B_Import-Export'!$C$8:$C$218,0))),\"\")","v":""},{"$f":"IFERROR(IF(INDEX(Disaggregation_1B!U$11:U$150,MATCH($C18,'Disaggregation1B_Import-Export'!$C$8:$C$218,0))=\"\",\"\",INDEX(Disaggregation_1B!U$11:U$150,MATCH($C18,'Disaggregation1B_Import-Export'!$C$8:$C$218,0))),\"\")","v":""},{"$f":"IFERROR(IF(INDEX(Disaggregation_1B!V$11:V$150,MATCH($C18,'Disaggregation1B_Import-Export'!$C$8:$C$218,0))=\"\",\"\",INDEX(Disaggregation_1B!V$11:V$150,MATCH($C18,'Disaggregation1B_Import-Export'!$C$8:$C$218,0))),\"\")","v":""},{"$f":"IFERROR(IF(INDEX(Disaggregation_1B!W$11:W$150,MATCH($C18,'Disaggregation1B_Import-Export'!$C$8:$C$218,0))=\"\",\"\",INDEX(Disaggregation_1B!W$11:W$150,MATCH($C18,'Disaggregation1B_Import-Export'!$C$8:$C$218,0))),\"\")","v":""},{"$f":"INDEX(Disaggregation_1B!X$11:X$150,MATCH($C18,'Disaggregation1B_Import-Export'!$C$8:$C$218,0))","v":0},null,null,null,{"$f":"INDEX(Disaggregation_1B!AB$11:AB$150,MATCH($C18,'Disaggregation1B_Import-Export'!$C$8:$C$218,0))","v":0},{"$f":"INDEX(Disaggregation_1B!AC$11:AC$150,MATCH($C18,'Disaggregation1B_Import-Export'!$C$8:$C$218,0))","v":0},4,"CM-1c(M): Proportion of suspected malaria cases that receive a parasitological test at private sector sites","Rapid diagnostic test","Type of testing","CM-1c(M): Proporción de casos sospechosos de malaria sometidos a una prueba parasitológica en establecimientos de salud del sector privado","CM-1c(M): Proportion de cas suspects de paludisme soumis à un test parasitologique dans des locaux du secteur privé","Prueba de diagnóstico rápido","Test de dépistage rapide","Tipo de pruebas","Type de tests","Données non fournies dans le DHIS 2, Dénominateur non disponible.  Les données désagrégées (789,574) diffèrent des données de référence du cadre de performance (757,055).  Les totaux devraient être les mêmes.  Ceci sera vérifié durant les prochaines périodes de rapportage.",null,"Burundi"]
["a15360000095puCAAQ",11,"Coverage11","Case management","CM-1c(M): Proportion of suspected malaria cases that receive a parasitological test at private sector sites","Microscopy","Type of testing",536615,0,"0.0",null,null,"Data not provided in the DHIS 2, the denominator is not available.  The disaggregated data (789,574) are different to the baseline value of the performance framework (757,055).  The totals should be the same.  This will be better verified during future reporting periods.",{"$f":"IFERROR(IF(INDEX(Disaggregation_1B!M$11:M$150,MATCH($C19,'Disaggregation1B_Import-Export'!$C$8:$C$218,0))=\"\",\"\",INDEX(Disaggregation_1B!M$11:M$150,MATCH($C19,'Disaggregation1B_Import-Export'!$C$8:$C$218,0))),\"\")","v":""},{"$f":"IFERROR(IF(INDEX(Disaggregation_1B!N$11:N$150,MATCH($C19,'Disaggregation1B_Import-Export'!$C$8:$C$218,0))=\"\",\"\",INDEX(Disaggregation_1B!N$11:N$150,MATCH($C19,'Disaggregation1B_Import-Export'!$C$8:$C$218,0))),\"\")","v":""},{"$f":"IFERROR(IF(INDEX(Disaggregation_1B!O$11:O$150,MATCH($C19,'Disaggregation1B_Import-Export'!$C$8:$C$218,0))=\"\",\"\",INDEX(Disaggregation_1B!O$11:O$150,MATCH($C19,'Disaggregation1B_Import-Export'!$C$8:$C$218,0))),\"\")","v":""},{"$f":"IFERROR(IF(INDEX(Disaggregation_1B!P$11:P$150,MATCH($C19,'Disaggregation1B_Import-Export'!$C$8:$C$218,0))=\"\",\"\",INDEX(Disaggregation_1B!P$11:P$150,MATCH($C19,'Disaggregation1B_Import-Export'!$C$8:$C$218,0))),\"\")","v":""},{"$f":"IFERROR(IF(INDEX(Disaggregation_1B!Q$11:Q$150,MATCH($C19,'Disaggregation1B_Import-Export'!$C$8:$C$218,0))=\"\",\"\",INDEX(Disaggregation_1B!Q$11:Q$150,MATCH($C19,'Disaggregation1B_Import-Export'!$C$8:$C$218,0))),\"\")","v":"Le DHIS2 n'integre pas la desagregation par age pour les données de laboratoire."},{"$f":"INDEX(Disaggregation_1B!R$11:R$150,MATCH($C19,'Disaggregation1B_Import-Export'!$C$8:$C$218,0))","v":0},{"$f":"IFERROR(IF(INDEX(Disaggregation_1B!S$11:S$150,MATCH($C19,'Disaggregation1B_Import-Export'!$C$8:$C$218,0))=\"\",\"\",INDEX(Disaggregation_1B!S$11:S$150,MATCH($C19,'Disaggregation1B_Import-Export'!$C$8:$C$218,0))),\"\")","v":""},{"$f":"IFERROR(IF(INDEX(Disaggregation_1B!T$11:T$150,MATCH($C19,'Disaggregation1B_Import-Export'!$C$8:$C$218,0))=\"\",\"\",INDEX(Disaggregation_1B!T$11:T$150,MATCH($C19,'Disaggregation1B_Import-Export'!$C$8:$C$218,0))),\"\")","v":""},{"$f":"IFERROR(IF(INDEX(Disaggregation_1B!U$11:U$150,MATCH($C19,'Disaggregation1B_Import-Export'!$C$8:$C$218,0))=\"\",\"\",INDEX(Disaggregation_1B!U$11:U$150,MATCH($C19,'Disaggregation1B_Import-Export'!$C$8:$C$218,0))),\"\")","v":""},{"$f":"IFERROR(IF(INDEX(Disaggregation_1B!V$11:V$150,MATCH($C19,'Disaggregation1B_Import-Export'!$C$8:$C$218,0))=\"\",\"\",INDEX(Disaggregation_1B!V$11:V$150,MATCH($C19,'Disaggregation1B_Import-Export'!$C$8:$C$218,0))),\"\")","v":""},{"$f":"IFERROR(IF(INDEX(Disaggregation_1B!W$11:W$150,MATCH($C19,'Disaggregation1B_Import-Export'!$C$8:$C$218,0))=\"\",\"\",INDEX(Disaggregation_1B!W$11:W$150,MATCH($C19,'Disaggregation1B_Import-Export'!$C$8:$C$218,0))),\"\")","v":""},{"$f":"INDEX(Disaggregation_1B!X$11:X$150,MATCH($C19,'Disaggregation1B_Import-Export'!$C$8:$C$218,0))","v":0},null,null,null,{"$f":"INDEX(Disaggregation_1B!AB$11:AB$150,MATCH($C19,'Disaggregation1B_Import-Export'!$C$8:$C$218,0))","v":0},{"$f":"INDEX(Disaggregation_1B!AC$11:AC$150,MATCH($C19,'Disaggregation1B_Import-Export'!$C$8:$C$218,0))","v":0},4,"CM-1c(M): Proportion of suspected malaria cases that receive a parasitological test at private sector sites","Microscopy","Type of testing","CM-1c(M): Proporción de casos sospechosos de malaria sometidos a una prueba parasitológica en establecimientos de salud del sector privado","CM-1c(M): Proportion de cas suspects de paludisme soumis à un test parasitologique dans des locaux du secteur privé","Microscopio","Microscopie","Tipo de pruebas","Type de tests","Données non fournies dans le DHIS 2, Dénominateur non disponible.  Les données désagrégées (789,574) diffèrent des données de référence du cadre de performance (757,055).  Les totaux devraient être les mêmes.  Ceci sera vérifié durant les prochaines périodes de rapportage.",null,"Burundi"]
["a15360000095puDAAQ",12,"Coverage12","Case management","CM-1c(M): Proportion of suspected malaria cases that receive a parasitological test at private sector sites","5+","Age",0,0,"0.0",null,null,"Data not provided in the DHIS 2",{"$f":"IFERROR(IF(INDEX(Disaggregation_1B!M$11:M$150,MATCH($C20,'Disaggregation1B_Import-Export'!$C$8:$C$218,0))=\"\",\"\",INDEX(Disaggregation_1B!M$11:M$150,MATCH($C20,'Disaggregation1B_Import-Export'!$C$8:$C$218,0))),\"\")","v":1315632},{"$f":"IFERROR(IF(INDEX(Disaggregation_1B!N$11:N$150,MATCH($C20,'Disaggregation1B_Import-Export'!$C$8:$C$218,0))=\"\",\"\",INDEX(Disaggregation_1B!N$11:N$150,MATCH($C20,'Disaggregation1B_Import-Export'!$C$8:$C$218,0))),\"\")","v":2374016},{"$f":"IFERROR(IF(INDEX(Disaggregation_1B!O$11:O$150,MATCH($C20,'Disaggregation1B_Import-Export'!$C$8:$C$218,0))=\"\",\"\",INDEX(Disaggregation_1B!O$11:O$150,MATCH($C20,'Disaggregation1B_Import-Export'!$C$8:$C$218,0))),\"\")","v":55.417992128106974},{"$f":"IFERROR(IF(INDEX(Disaggregation_1B!P$11:P$150,MATCH($C20,'Disaggregation1B_Import-Export'!$C$8:$C$218,0))=\"\",\"\",INDEX(Disaggregation_1B!P$11:P$150,MATCH($C20,'Disaggregation1B_Import-Export'!$C$8:$C$218,0))),\"\")","v":""},{"$f":"IFERROR(IF(INDEX(Disaggregation_1B!Q$11:Q$150,MATCH($C20,'Disaggregation1B_Import-Export'!$C$8:$C$218,0))=\"\",\"\",INDEX(Disaggregation_1B!Q$11:Q$150,MATCH($C20,'Disaggregation1B_Import-Export'!$C$8:$C$218,0))),\"\")","v":"Le système DHIS2 n'est pas paramettré pour collecter les données relatives au résultat du test de diagnostic du paludisme chez les moins de 5 ans.C'est pour celà qu'il a été considéré comme dénominateur, le nobmre de cas de paludisme confimé ayant été traité sans distinction de la tranche d'âge."},{"$f":"INDEX(Disaggregation_1B!R$11:R$150,MATCH($C20,'Disaggregation1B_Import-Export'!$C$8:$C$218,0))","v":0},{"$f":"IFERROR(IF(INDEX(Disaggregation_1B!S$11:S$150,MATCH($C20,'Disaggregation1B_Import-Export'!$C$8:$C$218,0))=\"\",\"\",INDEX(Disaggregation_1B!S$11:S$150,MATCH($C20,'Disaggregation1B_Import-Export'!$C$8:$C$218,0))),\"\")","v":""},{"$f":"IFERROR(IF(INDEX(Disaggregation_1B!T$11:T$150,MATCH($C20,'Disaggregation1B_Import-Export'!$C$8:$C$218,0))=\"\",\"\",INDEX(Disaggregation_1B!T$11:T$150,MATCH($C20,'Disaggregation1B_Import-Export'!$C$8:$C$218,0))),\"\")","v":""},{"$f":"IFERROR(IF(INDEX(Disaggregation_1B!U$11:U$150,MATCH($C20,'Disaggregation1B_Import-Export'!$C$8:$C$218,0))=\"\",\"\",INDEX(Disaggregation_1B!U$11:U$150,MATCH($C20,'Disaggregation1B_Import-Export'!$C$8:$C$218,0))),\"\")","v":""},{"$f":"IFERROR(IF(INDEX(Disaggregation_1B!V$11:V$150,MATCH($C20,'Disaggregation1B_Import-Export'!$C$8:$C$218,0))=\"\",\"\",INDEX(Disaggregation_1B!V$11:V$150,MATCH($C20,'Disaggregation1B_Import-Export'!$C$8:$C$218,0))),\"\")","v":""},{"$f":"IFERROR(IF(INDEX(Disaggregation_1B!W$11:W$150,MATCH($C20,'Disaggregation1B_Import-Export'!$C$8:$C$218,0))=\"\",\"\",INDEX(Disaggregation_1B!W$11:W$150,MATCH($C20,'Disaggregation1B_Import-Export'!$C$8:$C$218,0))),\"\")","v":""},{"$f":"INDEX(Disaggregation_1B!X$11:X$150,MATCH($C20,'Disaggregation1B_Import-Export'!$C$8:$C$218,0))","v":0},null,null,null,{"$f":"INDEX(Disaggregation_1B!AB$11:AB$150,MATCH($C20,'Disaggregation1B_Import-Export'!$C$8:$C$218,0))","v":0},{"$f":"INDEX(Disaggregation_1B!AC$11:AC$150,MATCH($C20,'Disaggregation1B_Import-Export'!$C$8:$C$218,0))","v":0},4,"CM-1c(M): Proportion of suspected malaria cases that receive a parasitological test at private sector sites","5+","Age","CM-1c(M): Proporción de casos sospechosos de malaria sometidos a una prueba parasitológica en establecimientos de salud del sector privado","CM-1c(M): Proportion de cas suspects de paludisme soumis à un test parasitologique dans des locaux du secteur privé","5+","+ de 5 ans","Edad","Age","Données non fournies dans le DHIS 2",null,"Burundi"]
["a15360000095puYAAQ",13,"Coverage13","Case management","CM-2a(M): Proportion of confirmed malaria cases that received first-line antimalarial treatment at public sector health facilities","U5","Age",0,0,"0.0",null,null,"Data not available in the DHIS2",{"$f":"IFERROR(IF(INDEX(Disaggregation_1B!M$11:M$150,MATCH($C21,'Disaggregation1B_Import-Export'!$C$8:$C$218,0))=\"\",\"\",INDEX(Disaggregation_1B!M$11:M$150,MATCH($C21,'Disaggregation1B_Import-Export'!$C$8:$C$218,0))),\"\")","v":1058384},{"$f":"IFERROR(IF(INDEX(Disaggregation_1B!N$11:N$150,MATCH($C21,'Disaggregation1B_Import-Export'!$C$8:$C$218,0))=\"\",\"\",INDEX(Disaggregation_1B!N$11:N$150,MATCH($C21,'Disaggregation1B_Import-Export'!$C$8:$C$218,0))),\"\")","v":2374016},{"$f":"IFERROR(IF(INDEX(Disaggregation_1B!O$11:O$150,MATCH($C21,'Disaggregation1B_Import-Export'!$C$8:$C$218,0))=\"\",\"\",INDEX(Disaggregation_1B!O$11:O$150,MATCH($C21,'Disaggregation1B_Import-Export'!$C$8:$C$218,0))),\"\")","v":44.582007871893033},{"$f":"IFERROR(IF(INDEX(Disaggregation_1B!P$11:P$150,MATCH($C21,'Disaggregation1B_Import-Export'!$C$8:$C$218,0))=\"\",\"\",INDEX(Disaggregation_1B!P$11:P$150,MATCH($C21,'Disaggregation1B_Import-Export'!$C$8:$C$218,0))),\"\")","v":""},{"$f":"IFERROR(IF(INDEX(Disaggregation_1B!Q$11:Q$150,MATCH($C21,'Disaggregation1B_Import-Export'!$C$8:$C$218,0))=\"\",\"\",INDEX(Disaggregation_1B!Q$11:Q$150,MATCH($C21,'Disaggregation1B_Import-Export'!$C$8:$C$218,0))),\"\")","v":"Le système DHIS2 n'est pas paramettré pour collecter les données relatives au résultat du test de diagnostic du paludisme chez lesplus de 5 ans.C'est pour celà qu'il a été considéré comme dénominateur, le nobmre de cas de paludisme confimé ayant été traité sans distinction de la tranche d'âge."},{"$f":"INDEX(Disaggregation_1B!R$11:R$150,MATCH($C21,'Disaggregation1B_Import-Export'!$C$8:$C$218,0))","v":0},{"$f":"IFERROR(IF(INDEX(Disaggregation_1B!S$11:S$150,MATCH($C21,'Disaggregation1B_Import-Export'!$C$8:$C$218,0))=\"\",\"\",INDEX(Disaggregation_1B!S$11:S$150,MATCH($C21,'Disaggregation1B_Import-Export'!$C$8:$C$218,0))),\"\")","v":""},{"$f":"IFERROR(IF(INDEX(Disaggregation_1B!T$11:T$150,MATCH($C21,'Disaggregation1B_Import-Export'!$C$8:$C$218,0))=\"\",\"\",INDEX(Disaggregation_1B!T$11:T$150,MATCH($C21,'Disaggregation1B_Import-Export'!$C$8:$C$218,0))),\"\")","v":""},{"$f":"IFERROR(IF(INDEX(Disaggregation_1B!U$11:U$150,MATCH($C21,'Disaggregation1B_Import-Export'!$C$8:$C$218,0))=\"\",\"\",INDEX(Disaggregation_1B!U$11:U$150,MATCH($C21,'Disaggregation1B_Import-Export'!$C$8:$C$218,0))),\"\")","v":""},{"$f":"IFERROR(IF(INDEX(Disaggregation_1B!V$11:V$150,MATCH($C21,'Disaggregation1B_Import-Export'!$C$8:$C$218,0))=\"\",\"\",INDEX(Disaggregation_1B!V$11:V$150,MATCH($C21,'Disaggregation1B_Import-Export'!$C$8:$C$218,0))),\"\")","v":""},{"$f":"IFERROR(IF(INDEX(Disaggregation_1B!W$11:W$150,MATCH($C21,'Disaggregation1B_Import-Export'!$C$8:$C$218,0))=\"\",\"\",INDEX(Disaggregation_1B!W$11:W$150,MATCH($C21,'Disaggregation1B_Import-Export'!$C$8:$C$218,0))),\"\")","v":""},{"$f":"INDEX(Disaggregation_1B!X$11:X$150,MATCH($C21,'Disaggregation1B_Import-Export'!$C$8:$C$218,0))","v":0},null,null,null,{"$f":"INDEX(Disaggregation_1B!AB$11:AB$150,MATCH($C21,'Disaggregation1B_Import-Export'!$C$8:$C$218,0))","v":0},{"$f":"INDEX(Disaggregation_1B!AC$11:AC$150,MATCH($C21,'Disaggregation1B_Import-Export'!$C$8:$C$218,0))","v":0},5,"CM-2a(M): Proportion of confirmed malaria cases that received first-line antimalarial treatment at public sector health facilities","U5","Age","CM-2a(M): Proporción de casos confirmados de malaria que han recibido tratamiento antipalúdico de primera línea en establecimientos de salud del sector público","CM-2a(M): Proportion de cas de paludisme confirmés ayant reçu un traitement antipaludique de première intention, conformément à la politique nationale, dans des établissements de santé du secteur public","<5","<5 ans","Edad","Age","Données non fournies dans le DHIS 2",null,"Burundi"]
["a15360000095puZAAQ",14,"Coverage14","Case management","CM-2a(M): Proportion of confirmed malaria cases that received first-line antimalarial treatment at public sector health facilities","5+","Age",0,0,"0.0",null,null,"Data not available in the DHIS2",{"$f":"IFERROR(IF(INDEX(Disaggregation_1B!M$11:M$150,MATCH($C22,'Disaggregation1B_Import-Export'!$C$8:$C$218,0))=\"\",\"\",INDEX(Disaggregation_1B!M$11:M$150,MATCH($C22,'Disaggregation1B_Import-Export'!$C$8:$C$218,0))),\"\")","v":198130},{"$f":"IFERROR(IF(INDEX(Disaggregation_1B!N$11:N$150,MATCH($C22,'Disaggregation1B_Import-Export'!$C$8:$C$218,0))=\"\",\"\",INDEX(Disaggregation_1B!N$11:N$150,MATCH($C22,'Disaggregation1B_Import-Export'!$C$8:$C$218,0))),\"\")","v":245359},{"$f":"IFERROR(IF(INDEX(Disaggregation_1B!O$11:O$150,MATCH($C22,'Disaggregation1B_Import-Export'!$C$8:$C$218,0))=\"\",\"\",INDEX(Disaggregation_1B!O$11:O$150,MATCH($C22,'Disaggregation1B_Import-Export'!$C$8:$C$218,0))),\"\")","v":80.751062728491718},{"$f":"IFERROR(IF(INDEX(Disaggregation_1B!P$11:P$150,MATCH($C22,'Disaggregation1B_Import-Export'!$C$8:$C$218,0))=\"\",\"\",INDEX(Disaggregation_1B!P$11:P$150,MATCH($C22,'Disaggregation1B_Import-Export'!$C$8:$C$218,0))),\"\")","v":""},{"$f":"IFERROR(IF(INDEX(Disaggregation_1B!Q$11:Q$150,MATCH($C22,'Disaggregation1B_Import-Export'!$C$8:$C$218,0))=\"\",\"\",INDEX(Disaggregation_1B!Q$11:Q$150,MATCH($C22,'Disaggregation1B_Import-Export'!$C$8:$C$218,0))),\"\")","v":"Selon les directives nationales, ce sont les enfants qui sont ciblés par la stratégie de prise en charge communautaire du paludisme simple. Tous les cas suspects de paludisme dans la communauté doivent être soumis au test par TDR. "},{"$f":"INDEX(Disaggregation_1B!R$11:R$150,MATCH($C22,'Disaggregation1B_Import-Export'!$C$8:$C$218,0))","v":0},{"$f":"IFERROR(IF(INDEX(Disaggregation_1B!S$11:S$150,MATCH($C22,'Disaggregation1B_Import-Export'!$C$8:$C$218,0))=\"\",\"\",INDEX(Disaggregation_1B!S$11:S$150,MATCH($C22,'Disaggregation1B_Import-Export'!$C$8:$C$218,0))),\"\")","v":""},{"$f":"IFERROR(IF(INDEX(Disaggregation_1B!T$11:T$150,MATCH($C22,'Disaggregation1B_Import-Export'!$C$8:$C$218,0))=\"\",\"\",INDEX(Disaggregation_1B!T$11:T$150,MATCH($C22,'Disaggregation1B_Import-Export'!$C$8:$C$218,0))),\"\")","v":""},{"$f":"IFERROR(IF(INDEX(Disaggregation_1B!U$11:U$150,MATCH($C22,'Disaggregation1B_Import-Export'!$C$8:$C$218,0))=\"\",\"\",INDEX(Disaggregation_1B!U$11:U$150,MATCH($C22,'Disaggregation1B_Import-Export'!$C$8:$C$218,0))),\"\")","v":""},{"$f":"IFERROR(IF(INDEX(Disaggregation_1B!V$11:V$150,MATCH($C22,'Disaggregation1B_Import-Export'!$C$8:$C$218,0))=\"\",\"\",INDEX(Disaggregation_1B!V$11:V$150,MATCH($C22,'Disaggregation1B_Import-Export'!$C$8:$C$218,0))),\"\")","v":""},{"$f":"IFERROR(IF(INDEX(Disaggregation_1B!W$11:W$150,MATCH($C22,'Disaggregation1B_Import-Export'!$C$8:$C$218,0))=\"\",\"\",INDEX(Disaggregation_1B!W$11:W$150,MATCH($C22,'Disaggregation1B_Import-Export'!$C$8:$C$218,0))),\"\")","v":""},{"$f":"INDEX(Disaggregation_1B!X$11:X$150,MATCH($C22,'Disaggregation1B_Import-Export'!$C$8:$C$218,0))","v":0},null,null,null,{"$f":"INDEX(Disaggregation_1B!AB$11:AB$150,MATCH($C22,'Disaggregation1B_Import-Export'!$C$8:$C$218,0))","v":0},{"$f":"INDEX(Disaggregation_1B!AC$11:AC$150,MATCH($C22,'Disaggregation1B_Import-Export'!$C$8:$C$218,0))","v":0},5,"CM-2a(M): Proportion of confirmed malaria cases that received first-line antimalarial treatment at public sector health facilities","5+","Age","CM-2a(M): Proporción de casos confirmados de malaria que han recibido tratamiento antipalúdico de primera línea en establecimientos de salud del sector público","CM-2a(M): Proportion de cas de paludisme confirmés ayant reçu un traitement antipaludique de première intention, conformément à la politique nationale, dans des établissements de santé du secteur public","5+","+ de 5 ans","Edad","Age","Données non fournies dans le DHIS 2",null,"Burundi"]
["a15360000095pukAAA",15,"Coverage15","Case management","CM-2b(M): Proportion of confirmed malaria cases that received first-line antimalarial treatment in the community","U5","Age",0,0,"0.0",null,null,"Data not available in the DHIS2",{"$f":"IFERROR(IF(INDEX(Disaggregation_1B!M$11:M$150,MATCH($C23,'Disaggregation1B_Import-Export'!$C$8:$C$218,0))=\"\",\"\",INDEX(Disaggregation_1B!M$11:M$150,MATCH($C23,'Disaggregation1B_Import-Export'!$C$8:$C$218,0))),\"\")","v":""},{"$f":"IFERROR(IF(INDEX(Disaggregation_1B!N$11:N$150,MATCH($C23,'Disaggregation1B_Import-Export'!$C$8:$C$218,0))=\"\",\"\",INDEX(Disaggregation_1B!N$11:N$150,MATCH($C23,'Disaggregation1B_Import-Export'!$C$8:$C$218,0))),\"\")","v":""},{"$f":"IFERROR(IF(INDEX(Disaggregation_1B!O$11:O$150,MATCH($C23,'Disaggregation1B_Import-Export'!$C$8:$C$218,0))=\"\",\"\",INDEX(Disaggregation_1B!O$11:O$150,MATCH($C23,'Disaggregation1B_Import-Export'!$C$8:$C$218,0))),\"\")","v":""},{"$f":"IFERROR(IF(INDEX(Disaggregation_1B!P$11:P$150,MATCH($C23,'Disaggregation1B_Import-Export'!$C$8:$C$218,0))=\"\",\"\",INDEX(Disaggregation_1B!P$11:P$150,MATCH($C23,'Disaggregation1B_Import-Export'!$C$8:$C$218,0))),\"\")","v":""},{"$f":"IFERROR(IF(INDEX(Disaggregation_1B!Q$11:Q$150,MATCH($C23,'Disaggregation1B_Import-Export'!$C$8:$C$218,0))=\"\",\"\",INDEX(Disaggregation_1B!Q$11:Q$150,MATCH($C23,'Disaggregation1B_Import-Export'!$C$8:$C$218,0))),\"\")","v":"La stratégie de prise en charge communautaire des cas de paludisme simple cible les enfants de moins de 5 ans"},{"$f":"INDEX(Disaggregation_1B!R$11:R$150,MATCH($C23,'Disaggregation1B_Import-Export'!$C$8:$C$218,0))","v":0},{"$f":"IFERROR(IF(INDEX(Disaggregation_1B!S$11:S$150,MATCH($C23,'Disaggregation1B_Import-Export'!$C$8:$C$218,0))=\"\",\"\",INDEX(Disaggregation_1B!S$11:S$150,MATCH($C23,'Disaggregation1B_Import-Export'!$C$8:$C$218,0))),\"\")","v":""},{"$f":"IFERROR(IF(INDEX(Disaggregation_1B!T$11:T$150,MATCH($C23,'Disaggregation1B_Import-Export'!$C$8:$C$218,0))=\"\",\"\",INDEX(Disaggregation_1B!T$11:T$150,MATCH($C23,'Disaggregation1B_Import-Export'!$C$8:$C$218,0))),\"\")","v":""},{"$f":"IFERROR(IF(INDEX(Disaggregation_1B!U$11:U$150,MATCH($C23,'Disaggregation1B_Import-Export'!$C$8:$C$218,0))=\"\",\"\",INDEX(Disaggregation_1B!U$11:U$150,MATCH($C23,'Disaggregation1B_Import-Export'!$C$8:$C$218,0))),\"\")","v":""},{"$f":"IFERROR(IF(INDEX(Disaggregation_1B!V$11:V$150,MATCH($C23,'Disaggregation1B_Import-Export'!$C$8:$C$218,0))=\"\",\"\",INDEX(Disaggregation_1B!V$11:V$150,MATCH($C23,'Disaggregation1B_Import-Export'!$C$8:$C$218,0))),\"\")","v":""},{"$f":"IFERROR(IF(INDEX(Disaggregation_1B!W$11:W$150,MATCH($C23,'Disaggregation1B_Import-Export'!$C$8:$C$218,0))=\"\",\"\",INDEX(Disaggregation_1B!W$11:W$150,MATCH($C23,'Disaggregation1B_Import-Export'!$C$8:$C$218,0))),\"\")","v":""},{"$f":"INDEX(Disaggregation_1B!X$11:X$150,MATCH($C23,'Disaggregation1B_Import-Export'!$C$8:$C$218,0))","v":0},null,null,null,{"$f":"INDEX(Disaggregation_1B!AB$11:AB$150,MATCH($C23,'Disaggregation1B_Import-Export'!$C$8:$C$218,0))","v":0},{"$f":"INDEX(Disaggregation_1B!AC$11:AC$150,MATCH($C23,'Disaggregation1B_Import-Export'!$C$8:$C$218,0))","v":0},6,"CM-2b(M): Proportion of confirmed malaria cases that received first-line antimalarial treatment in the community","U5","Age","CM-2b(M): Proporción de casos confirmados de malaria que han recibido tratamiento antipalúdico de primera línea en la comunidad","CM-2b(M): Proportion de cas de paludisme confirmés ayant reçu un traitement antipaludique de première intention dans la communauté","<5","<5 ans","Edad","Age","Données non fournies dans le DHIS 2",null,"Burundi"]
["a15360000095pulAAA",16,"Coverage16","Case management","CM-2b(M): Proportion of confirmed malaria cases that received first-line antimalarial treatment in the community","5+","Age",0,0,"0.0",null,null,"Data not available in the DHIS2",{"$f":"IFERROR(IF(INDEX(Disaggregation_1B!M$11:M$150,MATCH($C24,'Disaggregation1B_Import-Export'!$C$8:$C$218,0))=\"\",\"\",INDEX(Disaggregation_1B!M$11:M$150,MATCH($C24,'Disaggregation1B_Import-Export'!$C$8:$C$218,0))),\"\")","v":24908},{"$f":"IFERROR(IF(INDEX(Disaggregation_1B!N$11:N$150,MATCH($C24,'Disaggregation1B_Import-Export'!$C$8:$C$218,0))=\"\",\"\",INDEX(Disaggregation_1B!N$11:N$150,MATCH($C24,'Disaggregation1B_Import-Export'!$C$8:$C$218,0))),\"\")","v":49569},{"$f":"IFERROR(IF(INDEX(Disaggregation_1B!O$11:O$150,MATCH($C24,'Disaggregation1B_Import-Export'!$C$8:$C$218,0))=\"\",\"\",INDEX(Disaggregation_1B!O$11:O$150,MATCH($C24,'Disaggregation1B_Import-Export'!$C$8:$C$218,0))),\"\")","v":50.249147652766844},{"$f":"IFERROR(IF(INDEX(Disaggregation_1B!P$11:P$150,MATCH($C24,'Disaggregation1B_Import-Export'!$C$8:$C$218,0))=\"\",\"\",INDEX(Disaggregation_1B!P$11:P$150,MATCH($C24,'Disaggregation1B_Import-Export'!$C$8:$C$218,0))),\"\")","v":""},{"$f":"IFERROR(IF(INDEX(Disaggregation_1B!Q$11:Q$150,MATCH($C24,'Disaggregation1B_Import-Export'!$C$8:$C$218,0))=\"\",\"\",INDEX(Disaggregation_1B!Q$11:Q$150,MATCH($C24,'Disaggregation1B_Import-Export'!$C$8:$C$218,0))),\"\")","v":"Le système DHIS2 n'est pas paramettré pour collecter les données relatives au résultat du test de diagnostic du paludisme chez les moins de 5 ans. C'est pour celà qu'il a été considéré comme dénominateur, le nobmre de cas de paludisme confimé ayant été traité sans distinction de la tranche d'âge."},{"$f":"INDEX(Disaggregation_1B!R$11:R$150,MATCH($C24,'Disaggregation1B_Import-Export'!$C$8:$C$218,0))","v":0},{"$f":"IFERROR(IF(INDEX(Disaggregation_1B!S$11:S$150,MATCH($C24,'Disaggregation1B_Import-Export'!$C$8:$C$218,0))=\"\",\"\",INDEX(Disaggregation_1B!S$11:S$150,MATCH($C24,'Disaggregation1B_Import-Export'!$C$8:$C$218,0))),\"\")","v":""},{"$f":"IFERROR(IF(INDEX(Disaggregation_1B!T$11:T$150,MATCH($C24,'Disaggregation1B_Import-Export'!$C$8:$C$218,0))=\"\",\"\",INDEX(Disaggregation_1B!T$11:T$150,MATCH($C24,'Disaggregation1B_Import-Export'!$C$8:$C$218,0))),\"\")","v":""},{"$f":"IFERROR(IF(INDEX(Disaggregation_1B!U$11:U$150,MATCH($C24,'Disaggregation1B_Import-Export'!$C$8:$C$218,0))=\"\",\"\",INDEX(Disaggregation_1B!U$11:U$150,MATCH($C24,'Disaggregation1B_Import-Export'!$C$8:$C$218,0))),\"\")","v":""},{"$f":"IFERROR(IF(INDEX(Disaggregation_1B!V$11:V$150,MATCH($C24,'Disaggregation1B_Import-Export'!$C$8:$C$218,0))=\"\",\"\",INDEX(Disaggregation_1B!V$11:V$150,MATCH($C24,'Disaggregation1B_Import-Export'!$C$8:$C$218,0))),\"\")","v":""},{"$f":"IFERROR(IF(INDEX(Disaggregation_1B!W$11:W$150,MATCH($C24,'Disaggregation1B_Import-Export'!$C$8:$C$218,0))=\"\",\"\",INDEX(Disaggregation_1B!W$11:W$150,MATCH($C24,'Disaggregation1B_Import-Export'!$C$8:$C$218,0))),\"\")","v":""},{"$f":"INDEX(Disaggregation_1B!X$11:X$150,MATCH($C24,'Disaggregation1B_Import-Export'!$C$8:$C$218,0))","v":0},null,null,null,{"$f":"INDEX(Disaggregation_1B!AB$11:AB$150,MATCH($C24,'Disaggregation1B_Import-Export'!$C$8:$C$218,0))","v":0},{"$f":"INDEX(Disaggregation_1B!AC$11:AC$150,MATCH($C24,'Disaggregation1B_Import-Export'!$C$8:$C$218,0))","v":0},6,"CM-2b(M): Proportion of confirmed malaria cases that received first-line antimalarial treatment in the community","5+","Age","CM-2b(M): Proporción de casos confirmados de malaria que han recibido tratamiento antipalúdico de primera línea en la comunidad","CM-2b(M): Proportion de cas de paludisme confirmés ayant reçu un traitement antipaludique de première intention dans la communauté","5+","+ de 5 ans","Edad","Age","Données non fournies dans le DHIS 2",null,"Burundi"]
["a15360000095puwAAA",17,"Coverage17","Case management","CM-3c: Proportion of malaria cases (presumed and confirmed) that received first line antimalarial treatment at private sector sites","U5","Age",0,0,"0.0",null,null,"Data not available in the DHIS2",{"$f":"IFERROR(IF(INDEX(Disaggregation_1B!M$11:M$150,MATCH($C25,'Disaggregation1B_Import-Export'!$C$8:$C$218,0))=\"\",\"\",INDEX(Disaggregation_1B!M$11:M$150,MATCH($C25,'Disaggregation1B_Import-Export'!$C$8:$C$218,0))),\"\")","v":24661},{"$f":"IFERROR(IF(INDEX(Disaggregation_1B!N$11:N$150,MATCH($C25,'Disaggregation1B_Import-Export'!$C$8:$C$218,0))=\"\",\"\",INDEX(Disaggregation_1B!N$11:N$150,MATCH($C25,'Disaggregation1B_Import-Export'!$C$8:$C$218,0))),\"\")","v":49569},{"$f":"IFERROR(IF(INDEX(Disaggregation_1B!O$11:O$150,MATCH($C25,'Disaggregation1B_Import-Export'!$C$8:$C$218,0))=\"\",\"\",INDEX(Disaggregation_1B!O$11:O$150,MATCH($C25,'Disaggregation1B_Import-Export'!$C$8:$C$218,0))),\"\")","v":49.750852347233149},{"$f":"IFERROR(IF(INDEX(Disaggregation_1B!P$11:P$150,MATCH($C25,'Disaggregation1B_Import-Export'!$C$8:$C$218,0))=\"\",\"\",INDEX(Disaggregation_1B!P$11:P$150,MATCH($C25,'Disaggregation1B_Import-Export'!$C$8:$C$218,0))),\"\")","v":""},{"$f":"IFERROR(IF(INDEX(Disaggregation_1B!Q$11:Q$150,MATCH($C25,'Disaggregation1B_Import-Export'!$C$8:$C$218,0))=\"\",\"\",INDEX(Disaggregation_1B!Q$11:Q$150,MATCH($C25,'Disaggregation1B_Import-Export'!$C$8:$C$218,0))),\"\")","v":"Le système DHIS2 n'est pas paramettré pour collecter les données relatives au résultat du test de diagnostic du paludisme chez les plus de 5 ans.C'est pour celà qu'il a été considéré comme dénominateur, le nobmre de cas de paludisme confimé ayant été traité sans distinction de la tranche d'âge."},{"$f":"INDEX(Disaggregation_1B!R$11:R$150,MATCH($C25,'Disaggregation1B_Import-Export'!$C$8:$C$218,0))","v":0},{"$f":"IFERROR(IF(INDEX(Disaggregation_1B!S$11:S$150,MATCH($C25,'Disaggregation1B_Import-Export'!$C$8:$C$218,0))=\"\",\"\",INDEX(Disaggregation_1B!S$11:S$150,MATCH($C25,'Disaggregation1B_Import-Export'!$C$8:$C$218,0))),\"\")","v":""},{"$f":"IFERROR(IF(INDEX(Disaggregation_1B!T$11:T$150,MATCH($C25,'Disaggregation1B_Import-Export'!$C$8:$C$218,0))=\"\",\"\",INDEX(Disaggregation_1B!T$11:T$150,MATCH($C25,'Disaggregation1B_Import-Export'!$C$8:$C$218,0))),\"\")","v":""},{"$f":"IFERROR(IF(INDEX(Disaggregation_1B!U$11:U$150,MATCH($C25,'Disaggregation1B_Import-Export'!$C$8:$C$218,0))=\"\",\"\",INDEX(Disaggregation_1B!U$11:U$150,MATCH($C25,'Disaggregation1B_Import-Export'!$C$8:$C$218,0))),\"\")","v":""},{"$f":"IFERROR(IF(INDEX(Disaggregation_1B!V$11:V$150,MATCH($C25,'Disaggregation1B_Import-Export'!$C$8:$C$218,0))=\"\",\"\",INDEX(Disaggregation_1B!V$11:V$150,MATCH($C25,'Disaggregation1B_Import-Export'!$C$8:$C$218,0))),\"\")","v":""},{"$f":"IFERROR(IF(INDEX(Disaggregation_1B!W$11:W$150,MATCH($C25,'Disaggregation1B_Import-Export'!$C$8:$C$218,0))=\"\",\"\",INDEX(Disaggregation_1B!W$11:W$150,MATCH($C25,'Disaggregation1B_Import-Export'!$C$8:$C$218,0))),\"\")","v":""},{"$f":"INDEX(Disaggregation_1B!X$11:X$150,MATCH($C25,'Disaggregation1B_Import-Export'!$C$8:$C$218,0))","v":0},null,null,null,{"$f":"INDEX(Disaggregation_1B!AB$11:AB$150,MATCH($C25,'Disaggregation1B_Import-Export'!$C$8:$C$218,0))","v":0},{"$f":"INDEX(Disaggregation_1B!AC$11:AC$150,MATCH($C25,'Disaggregation1B_Import-Export'!$C$8:$C$218,0))","v":0},7,"CM-3c: Proportion of malaria cases (presumed and confirmed) that received first line antimalarial treatment at private sector sites","U5","Age","CM-3c: Proporción de casos de malaria (supuestos y confirmados) que han recibido tratamiento antipalúdico de primera línea en establecimientos de salud del sector privado","CM-3c: Proportion de cas de paludisme estimés (présumés et confirmés) ayant reçu un traitement antipaludique de première intention dans des établissements de santé privés","<5","<5 ans","Edad","Age","Données non fournies dans le DHIS 2",null,"Burundi"]
["a15360000095puxAAA",18,"Coverage18","Case management","CM-3c: Proportion of malaria cases (presumed and confirmed) that received first line antimalarial treatment at private sector sites","5+","Age",0,0,"0.0",null,null,"Data not available in the DHIS2",{"$f":"IFERROR(IF(INDEX(Disaggregation_1B!M$11:M$150,MATCH($C26,'Disaggregation1B_Import-Export'!$C$8:$C$218,0))=\"\",\"\",INDEX(Disaggregation_1B!M$11:M$150,MATCH($C26,'Disaggregation1B_Import-Export'!$C$8:$C$218,0))),\"\")","v":""},{"$f":"IFERROR(IF(INDEX(Disaggregation_1B!N$11:N$150,MATCH($C26,'Disaggregation1B_Import-Export'!$C$8:$C$218,0))=\"\",\"\",INDEX(Disaggregation_1B!N$11:N$150,MATCH($C26,'Disaggregation1B_Import-Export'!$C$8:$C$218,0))),\"\")","v":""},{"$f":"IFERROR(IF(INDEX(Disaggregation_1B!O$11:O$150,MATCH($C26,'Disaggregation1B_Import-Export'!$C$8:$C$218,0))=\"\",\"\",INDEX(Disaggregation_1B!O$11:O$150,MATCH($C26,'Disaggregation1B_Import-Export'!$C$8:$C$218,0))),\"\")","v":""},{"$f":"IFERROR(IF(INDEX(Disaggregation_1B!P$11:P$150,MATCH($C26,'Disaggregation1B_Import-Export'!$C$8:$C$218,0))=\"\",\"\",INDEX(Disaggregation_1B!P$11:P$150,MATCH($C26,'Disaggregation1B_Import-Export'!$C$8:$C$218,0))),\"\")","v":""},{"$f":"IFERROR(IF(INDEX(Disaggregation_1B!Q$11:Q$150,MATCH($C26,'Disaggregation1B_Import-Export'!$C$8:$C$218,0))=\"\",\"\",INDEX(Disaggregation_1B!Q$11:Q$150,MATCH($C26,'Disaggregation1B_Import-Export'!$C$8:$C$218,0))),\"\")","v":""},{"$f":"INDEX(Disaggregation_1B!R$11:R$150,MATCH($C26,'Disaggregation1B_Import-Export'!$C$8:$C$218,0))","v":0},{"$f":"IFERROR(IF(INDEX(Disaggregation_1B!S$11:S$150,MATCH($C26,'Disaggregation1B_Import-Export'!$C$8:$C$218,0))=\"\",\"\",INDEX(Disaggregation_1B!S$11:S$150,MATCH($C26,'Disaggregation1B_Import-Export'!$C$8:$C$218,0))),\"\")","v":""},{"$f":"IFERROR(IF(INDEX(Disaggregation_1B!T$11:T$150,MATCH($C26,'Disaggregation1B_Import-Export'!$C$8:$C$218,0))=\"\",\"\",INDEX(Disaggregation_1B!T$11:T$150,MATCH($C26,'Disaggregation1B_Import-Export'!$C$8:$C$218,0))),\"\")","v":""},{"$f":"IFERROR(IF(INDEX(Disaggregation_1B!U$11:U$150,MATCH($C26,'Disaggregation1B_Import-Export'!$C$8:$C$218,0))=\"\",\"\",INDEX(Disaggregation_1B!U$11:U$150,MATCH($C26,'Disaggregation1B_Import-Export'!$C$8:$C$218,0))),\"\")","v":""},{"$f":"IFERROR(IF(INDEX(Disaggregation_1B!V$11:V$150,MATCH($C26,'Disaggregation1B_Import-Export'!$C$8:$C$218,0))=\"\",\"\",INDEX(Disaggregation_1B!V$11:V$150,MATCH($C26,'Disaggregation1B_Import-Export'!$C$8:$C$218,0))),\"\")","v":""},{"$f":"IFERROR(IF(INDEX(Disaggregation_1B!W$11:W$150,MATCH($C26,'Disaggregation1B_Import-Export'!$C$8:$C$218,0))=\"\",\"\",INDEX(Disaggregation_1B!W$11:W$150,MATCH($C26,'Disaggregation1B_Import-Export'!$C$8:$C$218,0))),\"\")","v":""},{"$f":"INDEX(Disaggregation_1B!X$11:X$150,MATCH($C26,'Disaggregation1B_Import-Export'!$C$8:$C$218,0))","v":0},null,null,null,{"$f":"INDEX(Disaggregation_1B!AB$11:AB$150,MATCH($C26,'Disaggregation1B_Import-Export'!$C$8:$C$218,0))","v":0},{"$f":"INDEX(Disaggregation_1B!AC$11:AC$150,MATCH($C26,'Disaggregation1B_Import-Export'!$C$8:$C$218,0))","v":0},7,"CM-3c: Proportion of malaria cases (presumed and confirmed) that received first line antimalarial treatment at private sector sites","5+","Age","CM-3c: Proporción de casos de malaria (supuestos y confirmados) que han recibido tratamiento antipalúdico de primera línea en establecimientos de salud del sector privado","CM-3c: Proportion de cas de paludisme estimés (présumés et confirmés) ayant reçu un traitement antipaludique de première intention dans des établissements de santé privés","5+","+ de 5 ans","Edad","Age","Données non fournies dans le DHIS 2",null,"Burundi"]

{"sheet":"WPTM_1C","index":13,"n_rows":51,"n_cols":18,"rows_kept":51,"cut":false,"hidden":false,"merged":[[8,16,9,16],[8,17,9,17],[8,10,9,10],[8,11,9,11],[8,12,9,12],[8,13,9,13],[8,14,9,14],[8,15,9,15],[4,2,4,14],[8,2,9,2],[8,3,9,3],[8,4,9,4],[8,5,9,5],[8,6,9,6],[8,7,9,7],[8,8,9,8],[8,9,9,9]]}
[null,null,"Progress Report with Disbursement Request"]
[]
[null,null,"Section 1:  Programmatic Information"]
[]
[null,null,"• Guidance: The table contains those Workplan Tracking Measures that are:\n1. Included in the Grant Confirmation/Agreement through the latest signed Performance Framework\n2. Are due for reporting in the current reporting period;"]
[]
[null,null,"C- Workplan Tracking Measures"]
[]
[null,null,{"$f":"VLOOKUP(Translations!B144,Translations!B3:H508,4,0)","v":"Module Name"},{"$f":"VLOOKUP(Translations!B145,Translations!B3:H508,4,0)","v":"Intervention"},{"$f":"VLOOKUP(Translations!B146,Translations!B3:H508,4,0)","v":"Custom Intervention"},{"$f":"VLOOKUP(Translations!B147,Translations!B3:H508,4,0)","v":"Activity"},{"$f":"VLOOKUP(Translations!B148,Translations!B3:H508,4,0)","v":"Activity details- milestones/ targets"},{"$f":"VLOOKUP(Translations!B149,Translations!B3:H508,4,0)","v":"Criterion for Completion"},{"$f":"VLOOKUP(Translations!B150,Translations!B3:H508,4,0)","v":"Country (relevant for multi-country grants)"},{"$f":"VLOOKUP(Translations!B151,Translations!B3:H508,4,0)","v":"Progress Status"},{"$f":"VLOOKUP(Translations!B152,Translations!B3:H508,4,0)","v":"Score"},{"$f":"VLOOKUP(Translations!B153,Translations!B3:H508,4,0)","v":"Reasons for deviation from workplan activities and milestones"},"Progress Status","Verified Score","LFA analysis of progress and any variance between targets and results, and any other comments\n(this should not be a “Copy and Paste” of the reasons provided by the PR)","Global Fund Validated Progress Status","Global Fund Validated Score","Country Team comments on validated results"]
[]
[{"$f":"A10+1","v":1},{"$f":"\"WPTM\"&A11","v":"WPTM1"},{"$f":"IFERROR(INDEX('WPTM_1C  Import-Export'!Z$8:Z200,MATCH($B11,'WPTM_1C  Import-Export'!$C$8:$C$200,0)),\"\")","v":""},{"$f":"IFERROR(IF(INDEX('WPTM_1C  Import-Export'!E$8:E200,MATCH($B11,'WPTM_1C  Import-Export'!$C$8:$C$200,0))=\"\",\"\",INDEX('WPTM_1C  Import-Export'!E$8:E200,MATCH($B11,'WPTM_1C  Import-Export'!$C$8:$C$200,0))),\"\")","v":""},{"$f":"IFERROR(IF(INDEX('WPTM_1C  Import-Export'!F$8:F200,MATCH($B11,'WPTM_1C  Import-Export'!$C$8:$C$200,0))=\"\",\"\",INDEX('WPTM_1C  Import-Export'!F$8:F200,MATCH($B11,'WPTM_1C  Import-Export'!$C$8:$C$200,0))),\"\")","v":""},{"$f":"IFERROR(IF(INDEX('WPTM_1C  Import-Export'!AA$8:AA200,MATCH($B11,'WPTM_1C  Import-Export'!$C$8:$C$200,0))=\"\",\"\",INDEX('WPTM_1C  Import-Export'!AA$8:AA200,MATCH($B11,'WPTM_1C  Import-Export'!$C$8:$C$200,0))),\"\")","v":""},{"$f":"IFERROR(IF(INDEX('WPTM_1C  Import-Export'!AB$8:AB200,MATCH($B11,'WPTM_1C  Import-Export'!$C$8:$C$200,0))=\"\",\"\",INDEX('WPTM_1C  Import-Export'!AB$8:AB200,MATCH($B11,'WPTM_1C  Import-Export'!$C$8:$C$200,0))),\"\")","v":""},{"$f":"IFERROR(IF(INDEX('WPTM_1C  Import-Export'!I$8:I200,MATCH($B11,'WPTM_1C  Import-Export'!$C$8:$C$200,0))=\"\",\"\",INDEX('WPTM_1C  Import-Export'!I$8:I200,MATCH($B11,'WPTM_1C  Import-Export'!$C$8:$C$200,0))),\"\")","v":""},null,null,{"$f":"IFERROR(IF(J11=\"Not Started\",0,IF(J11=\"Started\",1,IF(J11=\"Advancing\",2,IF(J11=\"Completed\",3,\" \")))),\" \")","v":" "},null,null,{"$f":"IFERROR(IF(M11=\"Not Started\",0,IF(M11=\"Started\",1,IF(M11=\"Advancing\",2,IF(M11=\"Completed\",3,\" \")))),\" \")","v":" "},null,null,{"$f":"IFERROR(IF(P11=\"Not Started\",0,IF(P11=\"Started\",1,IF(P11=\"Advancing\",2,IF(P11=\"Completed\",3,\" \")))),\" \")","v":" "}]
[{"$f":"A11+1","v":2},{"$f":"\"WPTM\"&A12","v":"WPTM2"},{"$f":"IFERROR(INDEX('WPTM_1C  Import-Export'!Z$8:Z201,MATCH($B12,'WPTM_1C  Import-Export'!$C$8:$C$200,0)),\"\")","v":""},{"$f":"IFERROR(IF(INDEX('WPTM_1C  Import-Export'!E$8:E201,MATCH($B12,'WPTM_1C  Import-Export'!$C$8:$C$200,0))=\"\",\"\",INDEX('WPTM_1C  Import-Export'!E$8:E201,MATCH($B12,'WPTM_1C  Import-Export'!$C$8:$C$200,0))),\"\")","v":""},{"$f":"IFERROR(IF(INDEX('WPTM_1C  Import-Export'!F$8:F201,MATCH($B12,'WPTM_1C  Import-Export'!$C$8:$C$200,0))=\"\",\"\",INDEX('WPTM_1C  Import-Export'!F$8:F201,MATCH($B12,'WPTM_1C  Import-Export'!$C$8:$C$200,0))),\"\")","v":""},{"$f":"IFERROR(IF(INDEX('WPTM_1C  Import-Export'!AA$8:AA201,MATCH($B12,'WPTM_1C  Import-Export'!$C$8:$C$200,0))=\"\",\"\",INDEX('WPTM_1C  Import-Export'!AA$8:AA201,MATCH($B12,'WPTM_1C  Import-Export'!$C$8:$C$200,0))),\"\")","v":""},{"$f":"IFERROR(IF(INDEX('WPTM_1C  Import-Export'!AB$8:AB201,MATCH($B12,'WPTM_1C  Import-Export'!$C$8:$C$200,0))=\"\",\"\",INDEX('WPTM_1C  Import-Export'!AB$8:AB201,MATCH($B12,'WPTM_1C  Import-Export'!$C$8:$C$200,0))),\"\")","v":""},{"$f":"IFERROR(IF(INDEX('WPTM_1C  Import-Export'!I$8:I201,MATCH($B12,'WPTM_1C  Import-Export'!$C$8:$C$200,0))=\"\",\"\",INDEX('WPTM_1C  Import-Export'!I$8:I201,MATCH($B12,'WPTM_1C  Import-Export'!$C$8:$C$200,0))),\"\")","v":""},null,null,{"$f":"IFERROR(IF(J12=\"Not Started\",0,IF(J12=\"Started\",1,IF(J12=\"Advancing\",2,IF(J12=\"Completed\",3,\" \")))),\" \")","v":" "},null,null,{"$f":"IFERROR(IF(M12=\"Not Started\",0,IF(M12=\"Started\",1,IF(M12=\"Advancing\",2,IF(M12=\"Completed\",3,\" \")))),\" \")","v":" "},null,null,{"$f":"IFERROR(IF(P12=\"Not Started\",0,IF(P12=\"Started\",1,IF(P12=\"Advancing\",2,IF(P12=\"Completed\",3,\" \")))),\" \")","v":" "}]
[3,"WPTM3",{"$f":"IFERROR(INDEX('WPTM_1C  Import-Export'!Z$8:Z202,MATCH($B13,'WPTM_1C  Import-Export'!$C$8:$C$200,0)),\"\")","v":""},{"$f":"IFERROR(IF(INDEX('WPTM_1C  Import-Export'!E$8:E202,MATCH($B13,'WPTM_1C  Import-Export'!$C$8:$C$200,0))=\"\",\"\",INDEX('WPTM_1C  Import-Export'!E$8:E202,MATCH($B13,'WPTM_1C  Import-Export'!$C$8:$C$200,0))),\"\")","v":""},{"$f":"IFERROR(IF(INDEX('WPTM_1C  Import-Export'!F$8:F202,MATCH($B13,'WPTM_1C  Import-Export'!$C$8:$C$200,0))=\"\",\"\",INDEX('WPTM_1C  Import-Export'!F$8:F202,MATCH($B13,'WPTM_1C  Import-Export'!$C$8:$C$200,0))),\"\")","v":""},{"$f":"IFERROR(IF(INDEX('WPTM_1C  Import-Export'!AA$8:AA202,MATCH($B13,'WPTM_1C  Import-Export'!$C$8:$C$200,0))=\"\",\"\",INDEX('WPTM_1C  Import-Export'!AA$8:AA202,MATCH($B13,'WPTM_1C  Import-Export'!$C$8:$C$200,0))),\"\")","v":""},{"$f":"IFERROR(IF(INDEX('WPTM_1C  Import-Export'!AB$8:AB202,MATCH($B13,'WPTM_1C  Import-Export'!$C$8:$C$200,0))=\"\",\"\",INDEX('WPTM_1C  Import-Export'!AB$8:AB202,MATCH($B13,'WPTM_1C  Import-Export'!$C$8:$C$200,0))),\"\")","v":""},{"$f":"IFERROR(IF(INDEX('WPTM_1C  Import-Export'!I$8:I202,MATCH($B13,'WPTM_1C  Import-Export'!$C$8:$C$200,0))=\"\",\"\",INDEX('WPTM_1C  Import-Export'!I$8:I202,MATCH($B13,'WPTM_1C  Import-Export'!$C$8:$C$200,0))),\"\")","v":""},null,null," ",null,null," ",null,null," "]
[4,"WPTM4",{"$f":"IFERROR(INDEX('WPTM_1C  Import-Export'!Z$8:Z203,MATCH($B14,'WPTM_1C  Import-Export'!$C$8:$C$200,0)),\"\")","v":""},{"$f":"IFERROR(IF(INDEX('WPTM_1C  Import-Export'!E$8:E203,MATCH($B14,'WPTM_1C  Import-Export'!$C$8:$C$200,0))=\"\",\"\",INDEX('WPTM_1C  Import-Export'!E$8:E203,MATCH($B14,'WPTM_1C  Import-Export'!$C$8:$C$200,0))),\"\")","v":""},{"$f":"IFERROR(IF(INDEX('WPTM_1C  Import-Export'!F$8:F203,MATCH($B14,'WPTM_1C  Import-Export'!$C$8:$C$200,0))=\"\",\"\",INDEX('WPTM_1C  Import-Export'!F$8:F203,MATCH($B14,'WPTM_1C  Import-Export'!$C$8:$C$200,0))),\"\")","v":""},{"$f":"IFERROR(IF(INDEX('WPTM_1C  Import-Export'!AA$8:AA203,MATCH($B14,'WPTM_1C  Import-Export'!$C$8:$C$200,0))=\"\",\"\",INDEX('WPTM_1C  Import-Export'!AA$8:AA203,MATCH($B14,'WPTM_1C  Import-Export'!$C$8:$C$200,0))),\"\")","v":""},{"$f":"IFERROR(IF(INDEX('WPTM_1C  Import-Export'!AB$8:AB203,MATCH($B14,'WPTM_1C  Import-Export'!$C$8:$C$200,0))=\"\",\"\",INDEX('WPTM_1C  Import-Export'!AB$8:AB203,MATCH($B14,'WPTM_1C  Import-Export'!$C$8:$C$200,0))),\"\")","v":""},{"$f":"IFERROR(IF(INDEX('WPTM_1C  Import-Export'!I$8:I203,MATCH($B14,'WPTM_1C  Import-Export'!$C$8:$C$200,0))=\"\",\"\",INDEX('WPTM_1C  Import-Export'!I$8:I203,MATCH($B14,'WPTM_1C  Import-Export'!$C$8:$C$200,0))),\"\")","v":""},null,null," ",null,null," ",null,null," "]
[5,"WPTM5",{"$f":"IFERROR(INDEX('WPTM_1C  Import-Export'!Z$8:Z204,MATCH($B15,'WPTM_1C  Import-Export'!$C$8:$C$200,0)),\"\")","v":""},{"$f":"IFERROR(IF(INDEX('WPTM_1C  Import-Export'!E$8:E204,MATCH($B15,'WPTM_1C  Import-Export'!$C$8:$C$200,0))=\"\",\"\",INDEX('WPTM_1C  Import-Export'!E$8:E204,MATCH($B15,'WPTM_1C  Import-Export'!$C$8:$C$200,0))),\"\")","v":""},{"$f":"IFERROR(IF(INDEX('WPTM_1C  Import-Export'!F$8:F204,MATCH($B15,'WPTM_1C  Import-Export'!$C$8:$C$200,0))=\"\",\"\",INDEX('WPTM_1C  Import-Export'!F$8:F204,MATCH($B15,'WPTM_1C  Import-Export'!$C$8:$C$200,0))),\"\")","v":""},{"$f":"IFERROR(IF(INDEX('WPTM_1C  Import-Export'!AA$8:AA204,MATCH($B15,'WPTM_1C  Import-Export'!$C$8:$C$200,0))=\"\",\"\",INDEX('WPTM_1C  Import-Export'!AA$8:AA204,MATCH($B15,'WPTM_1C  Import-Export'!$C$8:$C$200,0))),\"\")","v":""},{"$f":"IFERROR(IF(INDEX('WPTM_1C  Import-Export'!AB$8:AB204,MATCH($B15,'WPTM_1C  Import-Export'!$C$8:$C$200,0))=\"\",\"\",INDEX('WPTM_1C  Import-Export'!AB$8:AB204,MATCH($B15,'WPTM_1C  Import-Export'!$C$8:$C$200,0))),\"\")","v":""},{"$f":"IFERROR(IF(INDEX('WPTM_1C  Import-Export'!I$8:I204,MATCH($B15,'WPTM_1C  Import-Export'!$C$8:$C$200,0))=\"\",\"\",INDEX('WPTM_1C  Import-Export'!I$8:I204,MATCH($B15,'WPTM_1C  Import-Export'!$C$8:$C$200,0))),\"\")","v":""},null,null," ",null,null," ",null,null," "]
[6,"WPTM6",{"$f":"IFERROR(INDEX('WPTM_1C  Import-Export'!Z$8:Z205,MATCH($B16,'WPTM_1C  Import-Export'!$C$8:$C$200,0)),\"\")","v":""},{"$f":"IFERROR(IF(INDEX('WPTM_1C  Import-Export'!E$8:E205,MATCH($B16,'WPTM_1C  Import-Export'!$C$8:$C$200,0))=\"\",\"\",INDEX('WPTM_1C  Import-Export'!E$8:E205,MATCH($B16,'WPTM_1C  Import-Export'!$C$8:$C$200,0))),\"\")","v":""},{"$f":"IFERROR(IF(INDEX('WPTM_1C  Import-Export'!F$8:F205,MATCH($B16,'WPTM_1C  Import-Export'!$C$8:$C$200,0))=\"\",\"\",INDEX('WPTM_1C  Import-Export'!F$8:F205,MATCH($B16,'WPTM_1C  Import-Export'!$C$8:$C$200,0))),\"\")","v":""},{"$f":"IFERROR(IF(INDEX('WPTM_1C  Import-Export'!AA$8:AA205,MATCH($B16,'WPTM_1C  Import-Export'!$C$8:$C$200,0))=\"\",\"\",INDEX('WPTM_1C  Import-Export'!AA$8:AA205,MATCH($B16,'WPTM_1C  Import-Export'!$C$8:$C$200,0))),\"\")","v":""},{"$f":"IFERROR(IF(INDEX('WPTM_1C  Import-Export'!AB$8:AB205,MATCH($B16,'WPTM_1C  Import-Export'!$C$8:$C$200,0))=\"\",\"\",INDEX('WPTM_1C  Import-Export'!AB$8:AB205,MATCH($B16,'WPTM_1C  Import-Export'!$C$8:$C$200,0))),\"\")","v":""},{"$f":"IFERROR(IF(INDEX('WPTM_1C  Import-Export'!I$8:I205,MATCH($B16,'WPTM_1C  Import-Export'!$C$8:$C$200,0))=\"\",\"\",INDEX('WPTM_1C  Import-Export'!I$8:I205,MATCH($B16,'WPTM_1C  Import-Export'!$C$8:$C$200,0))),\"\")","v":""},null,null," ",null,null," ",null,null," "]
[7,"WPTM7",{"$f":"IFERROR(INDEX('WPTM_1C  Import-Export'!Z$8:Z206,MATCH($B17,'WPTM_1C  Import-Export'!$C$8:$C$200,0)),\"\")","v":""},{"$f":"IFERROR(IF(INDEX('WPTM_1C  Import-Export'!E$8:E206,MATCH($B17,'WPTM_1C  Import-Export'!$C$8:$C$200,0))=\"\",\"\",INDEX('WPTM_1C  Import-Export'!E$8:E206,MATCH($B17,'WPTM_1C  Import-Export'!$C$8:$C$200,0))),\"\")","v":""},{"$f":"IFERROR(IF(INDEX('WPTM_1C  Import-Export'!F$8:F206,MATCH($B17,'WPTM_1C  Import-Export'!$C$8:$C$200,0))=\"\",\"\",INDEX('WPTM_1C  Import-Export'!F$8:F206,MATCH($B17,'WPTM_1C  Import-Export'!$C$8:$C$200,0))),\"\")","v":""},{"$f":"IFERROR(IF(INDEX('WPTM_1C  Import-Export'!AA$8:AA206,MATCH($B17,'WPTM_1C  Import-Export'!$C$8:$C$200,0))=\"\",\"\",INDEX('WPTM_1C  Import-Export'!AA$8:AA206,MATCH($B17,'WPTM_1C  Import-Export'!$C$8:$C$200,0))),\"\")","v":""},{"$f":"IFERROR(IF(INDEX('WPTM_1C  Import-Export'!AB$8:AB206,MATCH($B17,'WPTM_1C  Import-Export'!$C$8:$C$200,0))=\"\",\"\",INDEX('WPTM_1C  Import-Export'!AB$8:AB206,MATCH($B17,'WPTM_1C  Import-Export'!$C$8:$C$200,0))),\"\")","v":""},{"$f":"IFERROR(IF(INDEX('WPTM_1C  Import-Export'!I$8:I206,MATCH($B17,'WPTM_1C  Import-Export'!$C$8:$C$200,0))=\"\",\"\",INDEX('WPTM_1C  Import-Export'!I$8:I206,MATCH($B17,'WPTM_1C  Import-Export'!$C$8:$C$200,0))),\"\")","v":""},null,null," ",null,null," ",null,null," "]
[8,"WPTM8",{"$f":"IFERROR(INDEX('WPTM_1C  Import-Export'!Z$8:Z207,MATCH($B18,'WPTM_1C  Import-Export'!$C$8:$C$200,0)),\"\")","v":""},{"$f":"IFERROR(IF(INDEX('WPTM_1C  Import-Export'!E$8:E207,MATCH($B18,'WPTM_1C  Import-Export'!$C$8:$C$200,0))=\"\",\"\",INDEX('WPTM_1C  Import-Export'!E$8:E207,MATCH($B18,'WPTM_1C  Import-Export'!$C$8:$C$200,0))),\"\")","v":""},{"$f":"IFERROR(IF(INDEX('WPTM_1C  Import-Export'!F$8:F207,MATCH($B18,'WPTM_1C  Import-Export'!$C$8:$C$200,0))=\"\",\"\",INDEX('WPTM_1C  Import-Export'!F$8:F207,MATCH($B18,'WPTM_1C  Import-Export'!$C$8:$C$200,0))),\"\")","v":""},{"$f":"IFERROR(IF(INDEX('WPTM_1C  Import-Export'!AA$8:AA207,MATCH($B18,'WPTM_1C  Import-Export'!$C$8:$C$200,0))=\"\",\"\",INDEX('WPTM_1C  Import-Export'!AA$8:AA207,MATCH($B18,'WPTM_1C  Import-Export'!$C$8:$C$200,0))),\"\")","v":""},{"$f":"IFERROR(IF(INDEX('WPTM_1C  Import-Export'!AB$8:AB207,MATCH($B18,'WPTM_1C  Import-Export'!$C$8:$C$200,0))=\"\",\"\",INDEX('WPTM_1C  Import-Export'!AB$8:AB207,MATCH($B18,'WPTM_1C  Import-Export'!$C$8:$C$200,0))),\"\")","v":""},{"$f":"IFERROR(IF(INDEX('WPTM_1C  Import-Export'!I$8:I207,MATCH($B18,'WPTM_1C  Import-Export'!$C$8:$C$200,0))=\"\",\"\",INDEX('WPTM_1C  Import-Export'!I$8:I207,MATCH($B18,'WPTM_1C  Import-Export'!$C$8:$C$200,0))),\"\")","v":""},null,null," ",null,null," ",null,null," "]
[9,"WPTM9",{"$f":"IFERROR(INDEX('WPTM_1C  Import-Export'!Z$8:Z208,MATCH($B19,'WPTM_1C  Import-Export'!$C$8:$C$200,0)),\"\")","v":""},{"$f":"IFERROR(IF(INDEX('WPTM_1C  Import-Export'!E$8:E208,MATCH($B19,'WPTM_1C  Import-Export'!$C$8:$C$200,0))=\"\",\"\",INDEX('WPTM_1C  Import-Export'!E$8:E208,MATCH($B19,'WPTM_1C  Import-Export'!$C$8:$C$200,0))),\"\")","v":""},{"$f":"IFERROR(IF(INDEX('WPTM_1C  Import-Export'!F$8:F208,MATCH($B19,'WPTM_1C  Import-Export'!$C$8:$C$200,0))=\"\",\"\",INDEX('WPTM_1C  Import-Export'!F$8:F208,MATCH($B19,'WPTM_1C  Import-Export'!$C$8:$C$200,0))),\"\")","v":""},{"$f":"IFERROR(IF(INDEX('WPTM_1C  Import-Export'!AA$8:AA208,MATCH($B19,'WPTM_1C  Import-Export'!$C$8:$C$200,0))=\"\",\"\",INDEX('WPTM_1C  Import-Export'!AA$8:AA208,MATCH($B19,'WPTM_1C  Import-Export'!$C$8:$C$200,0))),\"\")","v":""},{"$f":"IFERROR(IF(INDEX('WPTM_1C  Import-Export'!AB$8:AB208,MATCH($B19,'WPTM_1C  Import-Export'!$C$8:$C$200,0))=\"\",\"\",INDEX('WPTM_1C  Import-Export'!AB$8:AB208,MATCH($B19,'WPTM_1C  Import-Export'!$C$8:$C$200,0))),\"\")","v":""},{"$f":"IFERROR(IF(INDEX('WPTM_1C  Import-Export'!I$8:I208,MATCH($B19,'WPTM_1C  Import-Export'!$C$8:$C$200,0))=\"\",\"\",INDEX('WPTM_1C  Import-Export'!I$8:I208,MATCH($B19,'WPTM_1C  Import-Export'!$C$8:$C$200,0))),\"\")","v":""},null,null," ",null,null," ",null,null," "]
[10,"WPTM10",{"$f":"IFERROR(INDEX('WPTM_1C  Import-Export'!Z$8:Z209,MATCH($B20,'WPTM_1C  Import-Export'!$C$8:$C$200,0)),\"\")","v":""},{"$f":"IFERROR(IF(INDEX('WPTM_1C  Import-Export'!E$8:E209,MATCH($B20,'WPTM_1C  Import-Export'!$C$8:$C$200,0))=\"\",\"\",INDEX('WPTM_1C  Import-Export'!E$8:E209,MATCH($B20,'WPTM_1C  Import-Export'!$C$8:$C$200,0))),\"\")","v":""},{"$f":"IFERROR(IF(INDEX('WPTM_1C  Import-Export'!F$8:F209,MATCH($B20,'WPTM_1C  Import-Export'!$C$8:$C$200,0))=\"\",\"\",INDEX('WPTM_1C  Import-Export'!F$8:F209,MATCH($B20,'WPTM_1C  Import-Export'!$C$8:$C$200,0))),\"\")","v":""},{"$f":"IFERROR(IF(INDEX('WPTM_1C  Import-Export'!AA$8:AA209,MATCH($B20,'WPTM_1C  Import-Export'!$C$8:$C$200,0))=\"\",\"\",INDEX('WPTM_1C  Import-Export'!AA$8:AA209,MATCH($B20,'WPTM_1C  Import-Export'!$C$8:$C$200,0))),\"\")","v":""},{"$f":"IFERROR(IF(INDEX('WPTM_1C  Import-Export'!AB$8:AB209,MATCH($B20,'WPTM_1C  Import-Export'!$C$8:$C$200,0))=\"\",\"\",INDEX('WPTM_1C  Import-Export'!AB$8:AB209,MATCH($B20,'WPTM_1C  Import-Export'!$C$8:$C$200,0))),\"\")","v":""},{"$f":"IFERROR(IF(INDEX('WPTM_1C  Import-Export'!I$8:I209,MATCH($B20,'WPTM_1C  Import-Export'!$C$8:$C$200,0))=\"\",\"\",INDEX('WPTM_1C  Import-Export'!I$8:I209,MATCH($B20,'WPTM_1C  Import-Export'!$C$8:$C$200,0))),\"\")","v":""},null,null," ",null,null," ",null,null," "]
[11,"WPTM11",{"$f":"IFERROR(INDEX('WPTM_1C  Import-Export'!Z$8:Z210,MATCH($B21,'WPTM_1C  Import-Export'!$C$8:$C$200,0)),\"\")","v":""},{"$f":"IFERROR(IF(INDEX('WPTM_1C  Import-Export'!E$8:E210,MATCH($B21,'WPTM_1C  Import-Export'!$C$8:$C$200,0))=\"\",\"\",INDEX('WPTM_1C  Import-Export'!E$8:E210,MATCH($B21,'WPTM_1C  Import-Export'!$C$8:$C$200,0))),\"\")","v":""},{"$f":"IFERROR(IF(INDEX('WPTM_1C  Import-Export'!F$8:F210,MATCH($B21,'WPTM_1C  Import-Export'!$C$8:$C$200,0))=\"\",\"\",INDEX('WPTM_1C  Import-Export'!F$8:F210,MATCH($B21,'WPTM_1C  Import-Export'!$C$8:$C$200,0))),\"\")","v":""},{"$f":"IFERROR(IF(INDEX('WPTM_1C  Import-Export'!AA$8:AA210,MATCH($B21,'WPTM_1C  Import-Export'!$C$8:$C$200,0))=\"\",\"\",INDEX('WPTM_1C  Import-Export'!AA$8:AA210,MATCH($B21,'WPTM_1C  Import-Export'!$C$8:$C$200,0))),\"\")","v":""},{"$f":"IFERROR(IF(INDEX('WPTM_1C  Import-Export'!AB$8:AB210,MATCH($B21,'WPTM_1C  Import-Export'!$C$8:$C$200,0))=\"\",\"\",INDEX('WPTM_1C  Import-Export'!AB$8:AB210,MATCH($B21,'WPTM_1C  Import-Export'!$C$8:$C$200,0))),\"\")","v":""},{"$f":"IFERROR(IF(INDEX('WPTM_1C  Import-Export'!I$8:I210,MATCH($B21,'WPTM_1C  Import-Export'!$C$8:$C$200,0))=\"\",\"\",INDEX('WPTM_1C  Import-Export'!I$8:I210,MATCH($B21,'WPTM_1C  Import-Export'!$C$8:$C$200,0))),\"\")","v":""},null,null," ",null,null," ",null,null," "]
[12,"WPTM12",{"$f":"IFERROR(INDEX('WPTM_1C  Import-Export'!Z$8:Z211,MATCH($B22,'WPTM_1C  Import-Export'!$C$8:$C$200,0)),\"\")","v":""},{"$f":"IFERROR(IF(INDEX('WPTM_1C  Import-Export'!E$8:E211,MATCH($B22,'WPTM_1C  Import-Export'!$C$8:$C$200,0))=\"\",\"\",INDEX('WPTM_1C  Import-Export'!E$8:E211,MATCH($B22,'WPTM_1C  Import-Export'!$C$8:$C$200,0))),\"\")","v":""},{"$f":"IFERROR(IF(INDEX('WPTM_1C  Import-Export'!F$8:F211,MATCH($B22,'WPTM_1C  Import-Export'!$C$8:$C$200,0))=\"\",\"\",INDEX('WPTM_1C  Import-Export'!F$8:F211,MATCH($B22,'WPTM_1C  Import-Export'!$C$8:$C$200,0))),\"\")","v":""},{"$f":"IFERROR(IF(INDEX('WPTM_1C  Import-Export'!AA$8:AA211,MATCH($B22,'WPTM_1C  Import-Export'!$C$8:$C$200,0))=\"\",\"\",INDEX('WPTM_1C  Import-Export'!AA$8:AA211,MATCH($B22,'WPTM_1C  Import-Export'!$C$8:$C$200,0))),\"\")","v":""},{"$f":"IFERROR(IF(INDEX('WPTM_1C  Import-Export'!AB$8:AB211,MATCH($B22,'WPTM_1C  Import-Export'!$C$8:$C$200,0))=\"\",\"\",INDEX('WPTM_1C  Import-Export'!AB$8:AB211,MATCH($B22,'WPTM_1C  Import-Export'!$C$8:$C$200,0))),\"\")","v":""},{"$f":"IFERROR(IF(INDEX('WPTM_1C  Import-Export'!I$8:I211,MATCH($B22,'WPTM_1C  Import-Export'!$C$8:$C$200,0))=\"\",\"\",INDEX('WPTM_1C  Import-Export'!I$8:I211,MATCH($B22,'WPTM_1C  Import-Export'!$C$8:$C$200,0))),\"\")","v":""},null,null," ",null,null," ",null,null," "]
[13,"WPTM13",{"$f":"IFERROR(INDEX('WPTM_1C  Import-Export'!Z$8:Z212,MATCH($B23,'WPTM_1C  Import-Export'!$C$8:$C$200,0)),\"\")","v":""},{"$f":"IFERROR(IF(INDEX('WPTM_1C  Import-Export'!E$8:E212,MATCH($B23,'WPTM_1C  Import-Export'!$C$8:$C$200,0))=\"\",\"\",INDEX('WPTM_1C  Import-Export'!E$8:E212,MATCH($B23,'WPTM_1C  Import-Export'!$C$8:$C$200,0))),\"\")","v":""},{"$f":"IFERROR(IF(INDEX('WPTM_1C  Import-Export'!F$8:F212,MATCH($B23,'WPTM_1C  Import-Export'!$C$8:$C$200,0))=\"\",\"\",INDEX('WPTM_1C  Import-Export'!F$8:F212,MATCH($B23,'WPTM_1C  Import-Export'!$C$8:$C$200,0))),\"\")","v":""},{"$f":"IFERROR(IF(INDEX('WPTM_1C  Import-Export'!AA$8:AA212,MATCH($B23,'WPTM_1C  Import-Export'!$C$8:$C$200,0))=\"\",\"\",INDEX('WPTM_1C  Import-Export'!AA$8:AA212,MATCH($B23,'WPTM_1C  Import-Export'!$C$8:$C$200,0))),\"\")","v":""},{"$f":"IFERROR(IF(INDEX('WPTM_1C  Import-Export'!AB$8:AB212,MATCH($B23,'WPTM_1C  Import-Export'!$C$8:$C$200,0))=\"\",\"\",INDEX('WPTM_1C  Import-Export'!AB$8:AB212,MATCH($B23,'WPTM_1C  Import-Export'!$C$8:$C$200,0))),\"\")","v":""},{"$f":"IFERROR(IF(INDEX('WPTM_1C  Import-Export'!I$8:I212,MATCH($B23,'WPTM_1C  Import-Export'!$C$8:$C$200,0))=\"\",\"\",INDEX('WPTM_1C  Import-Export'!I$8:I212,MATCH($B23,'WPTM_1C  Import-Export'!$C$8:$C$200,0))),\"\")","v":""},null,null," ",null,null," ",null,null," "]
[14,"WPTM14",{"$f":"IFERROR(INDEX('WPTM_1C  Import-Export'!Z$8:Z213,MATCH($B24,'WPTM_1C  Import-Export'!$C$8:$C$200,0)),\"\")","v":""},{"$f":"IFERROR(IF(INDEX('WPTM_1C  Import-Export'!E$8:E213,MATCH($B24,'WPTM_1C  Import-Export'!$C$8:$C$200,0))=\"\",\"\",INDEX('WPTM_1C  Import-Export'!E$8:E213,MATCH($B24,'WPTM_1C  Import-Export'!$C$8:$C$200,0))),\"\")","v":""},{"$f":"IFERROR(IF(INDEX('WPTM_1C  Import-Export'!F$8:F213,MATCH($B24,'WPTM_1C  Import-Export'!$C$8:$C$200,0))=\"\",\"\",INDEX('WPTM_1C  Import-Export'!F$8:F213,MATCH($B24,'WPTM_1C  Import-Export'!$C$8:$C$200,0))),\"\")","v":""},{"$f":"IFERROR(IF(INDEX('WPTM_1C  Import-Export'!AA$8:AA213,MATCH($B24,'WPTM_1C  Import-Export'!$C$8:$C$200,0))=\"\",\"\",INDEX('WPTM_1C  Import-Export'!AA$8:AA213,MATCH($B24,'WPTM_1C  Import-Export'!$C$8:$C$200,0))),\"\")","v":""},{"$f":"IFERROR(IF(INDEX('WPTM_1C  Import-Export'!AB$8:AB213,MATCH($B24,'WPTM_1C  Import-Export'!$C$8:$C$200,0))=\"\",\"\",INDEX('WPTM_1C  Import-Export'!AB$8:AB213,MATCH($B24,'WPTM_1C  Import-Export'!$C$8:$C$200,0))),\"\")","v":""},{"$f":"IFERROR(IF(INDEX('WPTM_1C  Import-Export'!I$8:I213,MATCH($B24,'WPTM_1C  Import-Export'!$C$8:$C$200,0))=\"\",\"\",INDEX('WPTM_1C  Import-Export'!I$8:I213,MATCH($B24,'WPTM_1C  Import-Export'!$C$8:$C$200,0))),\"\")","v":""},null,null," ",null,null," ",null,null," "]
[15,"WPTM15",{"$f":"IFERROR(INDEX('WPTM_1C  Import-Export'!Z$8:Z214,MATCH($B25,'WPTM_1C  Import-Export'!$C$8:$C$200,0)),\"\")","v":""},{"$f":"IFERROR(IF(INDEX('WPTM_1C  Import-Export'!E$8:E214,MATCH($B25,'WPTM_1C  Import-Export'!$C$8:$C$200,0))=\"\",\"\",INDEX('WPTM_1C  Import-Export'!E$8:E214,MATCH($B25,'WPTM_1C  Import-Export'!$C$8:$C$200,0))),\"\")","v":""},{"$f":"IFERROR(IF(INDEX('WPTM_1C  Import-Export'!F$8:F214,MATCH($B25,'WPTM_1C  Import-Export'!$C$8:$C$200,0))=\"\",\"\",INDEX('WPTM_1C  Import-Export'!F$8:F214,MATCH($B25,'WPTM_1C  Import-Export'!$C$8:$C$200,0))),\"\")","v":""},{"$f":"IFERROR(IF(INDEX('WPTM_1C  Import-Export'!AA$8:AA214,MATCH($B25,'WPTM_1C  Import-Export'!$C$8:$C$200,0))=\"\",\"\",INDEX('WPTM_1C  Import-Export'!AA$8:AA214,MATCH($B25,'WPTM_1C  Import-Export'!$C$8:$C$200,0))),\"\")","v":""},{"$f":"IFERROR(IF(INDEX('WPTM_1C  Import-Export'!AB$8:AB214,MATCH($B25,'WPTM_1C  Import-Export'!$C$8:$C$200,0))=\"\",\"\",INDEX('WPTM_1C  Import-Export'!AB$8:AB214,MATCH($B25,'WPTM_1C  Import-Export'!$C$8:$C$200,0))),\"\")","v":""},{"$f":"IFERROR(IF(INDEX('WPTM_1C  Import-Export'!I$8:I214,MATCH($B25,'WPTM_1C  Import-Export'!$C$8:$C$200,0))=\"\",\"\",INDEX('WPTM_1C  Import-Export'!I$8:I214,MATCH($B25,'WPTM_1C  Import-Export'!$C$8:$C$200,0))),\"\")","v":""},null,null," ",null,null," ",null,null," "]
[16,"WPTM16",{"$f":"IFERROR(INDEX('WPTM_1C  Import-Export'!Z$8:Z215,MATCH($B26,'WPTM_1C  Import-Export'!$C$8:$C$200,0)),\"\")","v":""},{"$f":"IFERROR(IF(INDEX('WPTM_1C  Import-Export'!E$8:E215,MATCH($B26,'WPTM_1C  Import-Export'!$C$8:$C$200,0))=\"\",\"\",INDEX('WPTM_1C  Import-Export'!E$8:E215,MATCH($B26,'WPTM_1C  Import-Export'!$C$8:$C$200,0))),\"\")","v":""},{"$f":"IFERROR(IF(INDEX('WPTM_1C  Import-Export'!F$8:F215,MATCH($B26,'WPTM_1C  Import-Export'!$C$8:$C$200,0))=\"\",\"\",INDEX('WPTM_1C  Import-Export'!F$8:F215,MATCH($B26,'WPTM_1C  Import-Export'!$C$8:$C$200,0))),\"\")","v":""},{"$f":"IFERROR(IF(INDEX('WPTM_1C  Import-Export'!AA$8:AA215,MATCH($B26,'WPTM_1C  Import-Export'!$C$8:$C$200,0))=\"\",\"\",INDEX('WPTM_1C  Import-Export'!AA$8:AA215,MATCH($B26,'WPTM_1C  Import-Export'!$C$8:$C$200,0))),\"\")","v":""},{"$f":"IFERROR(IF(INDEX('WPTM_1C  Import-Export'!AB$8:AB215,MATCH($B26,'WPTM_1C  Import-Export'!$C$8:$C$200,0))=\"\",\"\",INDEX('WPTM_1C  Import-Export'!AB$8:AB215,MATCH($B26,'WPTM_1C  Import-Export'!$C$8:$C$200,0))),\"\")","v":""},{"$f":"IFERROR(IF(INDEX('WPTM_1C  Import-Export'!I$8:I215,MATCH($B26,'WPTM_1C  Import-Export'!$C$8:$C$200,0))=\"\",\"\",INDEX('WPTM_1C  Import-Export'!I$8:I215,MATCH($B26,'WPTM_1C  Import-Export'!$C$8:$C$200,0))),\"\")","v":""},null,null," ",null,null," ",null,null," "]
[17,"WPTM17",{"$f":"IFERROR(INDEX('WPTM_1C  Import-Export'!Z$8:Z216,MATCH($B27,'WPTM_1C  Import-Export'!$C$8:$C$200,0)),\"\")","v":""},{"$f":"IFERROR(IF(INDEX('WPTM_1C  Import-Export'!E$8:E216,MATCH($B27,'WPTM_1C  Import-Export'!$C$8:$C$200,0))=\"\",\"\",INDEX('WPTM_1C  Import-Export'!E$8:E216,MATCH($B27,'WPTM_1C  Import-Export'!$C$8:$C$200,0))),\"\")","v":""},{"$f":"IFERROR(IF(INDEX('WPTM_1C  Import-Export'!F$8:F216,MATCH($B27,'WPTM_1C  Import-Export'!$C$8:$C$200,0))=\"\",\"\",INDEX('WPTM_1C  Import-Export'!F$8:F216,MATCH($B27,'WPTM_1C  Import-Export'!$C$8:$C$200,0))),\"\")","v":""},{"$f":"IFERROR(IF(INDEX('WPTM_1C  Import-Export'!AA$8:AA216,MATCH($B27,'WPTM_1C  Import-Export'!$C$8:$C$200,0))=\"\",\"\",INDEX('WPTM_1C  Import-Export'!AA$8:AA216,MATCH($B27,'WPTM_1C  Import-Export'!$C$8:$C$200,0))),\"\")","v":""},{"$f":"IFERROR(IF(INDEX('WPTM_1C  Import-Export'!AB$8:AB216,MATCH($B27,'WPTM_1C  Import-Export'!$C$8:$C$200,0))=\"\",\"\",INDEX('WPTM_1C  Import-Export'!AB$8:AB216,MATCH($B27,'WPTM_1C  Import-Export'!$C$8:$C$200,0))),\"\")","v":""},{"$f":"IFERROR(IF(INDEX('WPTM_1C  Import-Export'!I$8:I216,MATCH($B27,'WPTM_1C  Import-Export'!$C$8:$C$200,0))=\"\",\"\",INDEX('WPTM_1C  Import-Export'!I$8:I216,MATCH($B27,'WPTM_1C  Import-Export'!$C$8:$C$200,0))),\"\")","v":""},null,null," ",null,null," ",null,null," "]
[18,"WPTM18",{"$f":"IFERROR(INDEX('WPTM_1C  Import-Export'!Z$8:Z217,MATCH($B28,'WPTM_1C  Import-Export'!$C$8:$C$200,0)),\"\")","v":""},{"$f":"IFERROR(IF(INDEX('WPTM_1C  Import-Export'!E$8:E217,MATCH($B28,'WPTM_1C  Import-Export'!$C$8:$C$200,0))=\"\",\"\",INDEX('WPTM_1C  Import-Export'!E$8:E217,MATCH($B28,'WPTM_1C  Import-Export'!$C$8:$C$200,0))),\"\")","v":""},{"$f":"IFERROR(IF(INDEX('WPTM_1C  Import-Export'!F$8:F217,MATCH($B28,'WPTM_1C  Import-Export'!$C$8:$C$200,0))=\"\",\"\",INDEX('WPTM_1C  Import-Export'!F$8:F217,MATCH($B28,'WPTM_1C  Import-Export'!$C$8:$C$200,0))),\"\")","v":""},{"$f":"IFERROR(IF(INDEX('WPTM_1C  Import-Export'!AA$8:AA217,MATCH($B28,'WPTM_1C  Import-Export'!$C$8:$C$200,0))=\"\",\"\",INDEX('WPTM_1C  Import-Export'!AA$8:AA217,MATCH($B28,'WPTM_1C  Import-Export'!$C$8:$C$200,0))),\"\")","v":""},{"$f":"IFERROR(IF(INDEX('WPTM_1C  Import-Export'!AB$8:AB217,MATCH($B28,'WPTM_1C  Import-Export'!$C$8:$C$200,0))=\"\",\"\",INDEX('WPTM_1C  Import-Export'!AB$8:AB217,MATCH($B28,'WPTM_1C  Import-Export'!$C$8:$C$200,0))),\"\")","v":""},{"$f":"IFERROR(IF(INDEX('WPTM_1C  Import-Export'!I$8:I217,MATCH($B28,'WPTM_1C  Import-Export'!$C$8:$C$200,0))=\"\",\"\",INDEX('WPTM_1C  Import-Export'!I$8:I217,MATCH($B28,'WPTM_1C  Import-Export'!$C$8:$C$200,0))),\"\")","v":""},null,null," ",null,null," ",null,null," "]
[19,"WPTM19",{"$f":"IFERROR(INDEX('WPTM_1C  Import-Export'!Z$8:Z218,MATCH($B29,'WPTM_1C  Import-Export'!$C$8:$C$200,0)),\"\")","v":""},{"$f":"IFERROR(IF(INDEX('WPTM_1C  Import-Export'!E$8:E218,MATCH($B29,'WPTM_1C  Import-Export'!$C$8:$C$200,0))=\"\",\"\",INDEX('WPTM_1C  Import-Export'!E$8:E218,MATCH($B29,'WPTM_1C  Import-Export'!$C$8:$C$200,0))),\"\")","v":""},{"$f":"IFERROR(IF(INDEX('WPTM_1C  Import-Export'!F$8:F218,MATCH($B29,'WPTM_1C  Import-Export'!$C$8:$C$200,0))=\"\",\"\",INDEX('WPTM_1C  Import-Export'!F$8:F218,MATCH($B29,'WPTM_1C  Import-Export'!$C$8:$C$200,0))),\"\")","v":""},{"$f":"IFERROR(IF(INDEX('WPTM_1C  Import-Export'!AA$8:AA218,MATCH($B29,'WPTM_1C  Import-Export'!$C$8:$C$200,0))=\"\",\"\",INDEX('WPTM_1C  Import-Export'!AA$8:AA218,MATCH($B29,'WPTM_1C  Import-Export'!$C$8:$C$200,0))),\"\")","v":""},{"$f":"IFERROR(IF(INDEX('WPTM_1C  Import-Export'!AB$8:AB218,MATCH($B29,'WPTM_1C  Import-Export'!$C$8:$C$200,0))=\"\",\"\",INDEX('WPTM_1C  Import-Export'!AB$8:AB218,MATCH($B29,'WPTM_1C  Import-Export'!$C$8:$C$200,0))),\"\")","v":""},{"$f":"IFERROR(IF(INDEX('WPTM_1C  Import-Export'!I$8:I218,MATCH($B29,'WPTM_1C  Import-Export'!$C$8:$C$200,0))=\"\",\"\",INDEX('WPTM_1C  Import-Export'!I$8:I218,MATCH($B29,'WPTM_1C  Import-Export'!$C$8:$C$200,0))),\"\")","v":""},null,null," ",null,null," ",null,null," "]
[20,"WPTM20",{"$f":"IFERROR(INDEX('WPTM_1C  Import-Export'!Z$8:Z219,MATCH($B30,'WPTM_1C  Import-Export'!$C$8:$C$200,0)),\"\")","v":""},{"$f":"IFERROR(IF(INDEX('WPTM_1C  Import-Export'!E$8:E219,MATCH($B30,'WPTM_1C  Import-Export'!$C$8:$C$200,0))=\"\",\"\",INDEX('WPTM_1C  Import-Export'!E$8:E219,MATCH($B30,'WPTM_1C  Import-Export'!$C$8:$C$200,0))),\"\")","v":""},{"$f":"IFERROR(IF(INDEX('WPTM_1C  Import-Export'!F$8:F219,MATCH($B30,'WPTM_1C  Import-Export'!$C$8:$C$200,0))=\"\",\"\",INDEX('WPTM_1C  Import-Export'!F$8:F219,MATCH($B30,'WPTM_1C  Import-Export'!$C$8:$C$200,0))),\"\")","v":""},{"$f":"IFERROR(IF(INDEX('WPTM_1C  Import-Export'!AA$8:AA219,MATCH($B30,'WPTM_1C  Import-Export'!$C$8:$C$200,0))=\"\",\"\",INDEX('WPTM_1C  Import-Export'!AA$8:AA219,MATCH($B30,'WPTM_1C  Import-Export'!$C$8:$C$200,0))),\"\")","v":""},{"$f":"IFERROR(IF(INDEX('WPTM_1C  Import-Export'!AB$8:AB219,MATCH($B30,'WPTM_1C  Import-Export'!$C$8:$C$200,0))=\"\",\"\",INDEX('WPTM_1C  Import-Export'!AB$8:AB219,MATCH($B30,'WPTM_1C  Import-Export'!$C$8:$C$200,0))),\"\")","v":""},{"$f":"IFERROR(IF(INDEX('WPTM_1C  Import-Export'!I$8:I219,MATCH($B30,'WPTM_1C  Import-Export'!$C$8:$C$200,0))=\"\",\"\",INDEX('WPTM_1C  Import-Export'!I$8:I219,MATCH($B30,'WPTM_1C  Import-Export'!$C$8:$C$200,0))),\"\")","v":""},null,null," ",null,null," ",null,null," "]
[21,"WPTM21",{"$f":"IFERROR(INDEX('WPTM_1C  Import-Export'!Z$8:Z220,MATCH($B31,'WPTM_1C  Import-Export'!$C$8:$C$200,0)),\"\")","v":""},{"$f":"IFERROR(IF(INDEX('WPTM_1C  Import-Export'!E$8:E220,MATCH($B31,'WPTM_1C  Import-Export'!$C$8:$C$200,0))=\"\",\"\",INDEX('WPTM_1C  Import-Export'!E$8:E220,MATCH($B31,'WPTM_1C  Import-Export'!$C$8:$C$200,0))),\"\")","v":""},{"$f":"IFERROR(IF(INDEX('WPTM_1C  Import-Export'!F$8:F220,MATCH($B31,'WPTM_1C  Import-Export'!$C$8:$C$200,0))=\"\",\"\",INDEX('WPTM_1C  Import-Export'!F$8:F220,MATCH($B31,'WPTM_1C  Import-Export'!$C$8:$C$200,0))),\"\")","v":""},{"$f":"IFERROR(IF(INDEX('WPTM_1C  Import-Export'!AA$8:AA220,MATCH($B31,'WPTM_1C  Import-Export'!$C$8:$C$200,0))=\"\",\"\",INDEX('WPTM_1C  Import-Export'!AA$8:AA220,MATCH($B31,'WPTM_1C  Import-Export'!$C$8:$C$200,0))),\"\")","v":""},{"$f":"IFERROR(IF(INDEX('WPTM_1C  Import-Export'!AB$8:AB220,MATCH($B31,'WPTM_1C  Import-Export'!$C$8:$C$200,0))=\"\",\"\",INDEX('WPTM_1C  Import-Export'!AB$8:AB220,MATCH($B31,'WPTM_1C  Import-Export'!$C$8:$C$200,0))),\"\")","v":""},{"$f":"IFERROR(IF(INDEX('WPTM_1C  Import-Export'!I$8:I220,MATCH($B31,'WPTM_1C  Import-Export'!$C$8:$C$200,0))=\"\",\"\",INDEX('WPTM_1C  Import-Export'!I$8:I220,MATCH($B31,'WPTM_1C  Import-Export'!$C$8:$C$200,0))),\"\")","v":""},null,null," ",null,null," ",null,null," "]
[22,"WPTM22",{"$f":"IFERROR(INDEX('WPTM_1C  Import-Export'!Z$8:Z221,MATCH($B32,'WPTM_1C  Import-Export'!$C$8:$C$200,0)),\"\")","v":""},{"$f":"IFERROR(IF(INDEX('WPTM_1C  Import-Export'!E$8:E221,MATCH($B32,'WPTM_1C  Import-Export'!$C$8:$C$200,0))=\"\",\"\",INDEX('WPTM_1C  Import-Export'!E$8:E221,MATCH($B32,'WPTM_1C  Import-Export'!$C$8:$C$200,0))),\"\")","v":""},{"$f":"IFERROR(IF(INDEX('WPTM_1C  Import-Export'!F$8:F221,MATCH($B32,'WPTM_1C  Import-Export'!$C$8:$C$200,0))=\"\",\"\",INDEX('WPTM_1C  Import-Export'!F$8:F221,MATCH($B32,'WPTM_1C  Import-Export'!$C$8:$C$200,0))),\"\")","v":""},{"$f":"IFERROR(IF(INDEX('WPTM_1C  Import-Export'!AA$8:AA221,MATCH($B32,'WPTM_1C  Import-Export'!$C$8:$C$200,0))=\"\",\"\",INDEX('WPTM_1C  Import-Export'!AA$8:AA221,MATCH($B32,'WPTM_1C  Import-Export'!$C$8:$C$200,0))),\"\")","v":""},{"$f":"IFERROR(IF(INDEX('WPTM_1C  Import-Export'!AB$8:AB221,MATCH($B32,'WPTM_1C  Import-Export'!$C$8:$C$200,0))=\"\",\"\",INDEX('WPTM_1C  Import-Export'!AB$8:AB221,MATCH($B32,'WPTM_1C  Import-Export'!$C$8:$C$200,0))),\"\")","v":""},{"$f":"IFERROR(IF(INDEX('WPTM_1C  Import-Export'!I$8:I221,MATCH($B32,'WPTM_1C  Import-Export'!$C$8:$C$200,0))=\"\",\"\",INDEX('WPTM_1C  Import-Export'!I$8:I221,MATCH($B32,'WPTM_1C  Import-Export'!$C$8:$C$200,0))),\"\")","v":""},null,null," ",null,null," ",null,null," "]
[23,"WPTM23",{"$f":"IFERROR(INDEX('WPTM_1C  Import-Export'!Z$8:Z222,MATCH($B33,'WPTM_1C  Import-Export'!$C$8:$C$200,0)),\"\")","v":""},{"$f":"IFERROR(IF(INDEX('WPTM_1C  Import-Export'!E$8:E222,MATCH($B33,'WPTM_1C  Import-Export'!$C$8:$C$200,0))=\"\",\"\",INDEX('WPTM_1C  Import-Export'!E$8:E222,MATCH($B33,'WPTM_1C  Import-Export'!$C$8:$C$200,0))),\"\")","v":""},{"$f":"IFERROR(IF(INDEX('WPTM_1C  Import-Export'!F$8:F222,MATCH($B33,'WPTM_1C  Import-Export'!$C$8:$C$200,0))=\"\",\"\",INDEX('WPTM_1C  Import-Export'!F$8:F222,MATCH($B33,'WPTM_1C  Import-Export'!$C$8:$C$200,0))),\"\")","v":""},{"$f":"IFERROR(IF(INDEX('WPTM_1C  Import-Export'!AA$8:AA222,MATCH($B33,'WPTM_1C  Import-Export'!$C$8:$C$200,0))=\"\",\"\",INDEX('WPTM_1C  Import-Export'!AA$8:AA222,MATCH($B33,'WPTM_1C  Import-Export'!$C$8:$C$200,0))),\"\")","v":""},{"$f":"IFERROR(IF(INDEX('WPTM_1C  Import-Export'!AB$8:AB222,MATCH($B33,'WPTM_1C  Import-Export'!$C$8:$C$200,0))=\"\",\"\",INDEX('WPTM_1C  Import-Export'!AB$8:AB222,MATCH($B33,'WPTM_1C  Import-Export'!$C$8:$C$200,0))),\"\")","v":""},{"$f":"IFERROR(IF(INDEX('WPTM_1C  Import-Export'!I$8:I222,MATCH($B33,'WPTM_1C  Import-Export'!$C$8:$C$200,0))=\"\",\"\",INDEX('WPTM_1C  Import-Export'!I$8:I222,MATCH($B33,'WPTM_1C  Import-Export'!$C$8:$C$200,0))),\"\")","v":""},null,null," ",null,null," ",null,null," "]
[24,"WPTM24",{"$f":"IFERROR(INDEX('WPTM_1C  Import-Export'!Z$8:Z223,MATCH($B34,'WPTM_1C  Import-Export'!$C$8:$C$200,0)),\"\")","v":""},{"$f":"IFERROR(IF(INDEX('WPTM_1C  Import-Export'!E$8:E223,MATCH($B34,'WPTM_1C  Import-Export'!$C$8:$C$200,0))=\"\",\"\",INDEX('WPTM_1C  Import-Export'!E$8:E223,MATCH($B34,'WPTM_1C  Import-Export'!$C$8:$C$200,0))),\"\")","v":""},{"$f":"IFERROR(IF(INDEX('WPTM_1C  Import-Export'!F$8:F223,MATCH($B34,'WPTM_1C  Import-Export'!$C$8:$C$200,0))=\"\",\"\",INDEX('WPTM_1C  Import-Export'!F$8:F223,MATCH($B34,'WPTM_1C  Import-Export'!$C$8:$C$200,0))),\"\")","v":""},{"$f":"IFERROR(IF(INDEX('WPTM_1C  Import-Export'!AA$8:AA223,MATCH($B34,'WPTM_1C  Import-Export'!$C$8:$C$200,0))=\"\",\"\",INDEX('WPTM_1C  Import-Export'!AA$8:AA223,MATCH($B34,'WPTM_1C  Import-Export'!$C$8:$C$200,0))),\"\")","v":""},{"$f":"IFERROR(IF(INDEX('WPTM_1C  Import-Export'!AB$8:AB223,MATCH($B34,'WPTM_1C  Import-Export'!$C$8:$C$200,0))=\"\",\"\",INDEX('WPTM_1C  Import-Export'!AB$8:AB223,MATCH($B34,'WPTM_1C  Import-Export'!$C$8:$C$200,0))),\"\")","v":""},{"$f":"IFERROR(IF(INDEX('WPTM_1C  Import-Export'!I$8:I223,MATCH($B34,'WPTM_1C  Import-Export'!$C$8:$C$200,0))=\"\",\"\",INDEX('WPTM_1C  Import-Export'!I$8:I223,MATCH($B34,'WPTM_1C  Import-Export'!$C$8:$C$200,0))),\"\")","v":""},null,null," ",null,null," ",null,null," "]
[25,"WPTM25",{"$f":"IFERROR(INDEX('WPTM_1C  Import-Export'!Z$8:Z224,MATCH($B35,'WPTM_1C  Import-Export'!$C$8:$C$200,0)),\"\")","v":""},{"$f":"IFERROR(IF(INDEX('WPTM_1C  Import-Export'!E$8:E224,MATCH($B35,'WPTM_1C  Import-Export'!$C$8:$C$200,0))=\"\",\"\",INDEX('WPTM_1C  Import-Export'!E$8:E224,MATCH($B35,'WPTM_1C  Import-Export'!$C$8:$C$200,0))),\"\")","v":""},{"$f":"IFERROR(IF(INDEX('WPTM_1C  Import-Export'!F$8:F224,MATCH($B35,'WPTM_1C  Import-Export'!$C$8:$C$200,0))=\"\",\"\",INDEX('WPTM_1C  Import-Export'!F$8:F224,MATCH($B35,'WPTM_1C  Import-Export'!$C$8:$C$200,0))),\"\")","v":""},{"$f":"IFERROR(IF(INDEX('WPTM_1C  Import-Export'!AA$8:AA224,MATCH($B35,'WPTM_1C  Import-Export'!$C$8:$C$200,0))=\"\",\"\",INDEX('WPTM_1C  Import-Export'!AA$8:AA224,MATCH($B35,'WPTM_1C  Import-Export'!$C$8:$C$200,0))),\"\")","v":""},{"$f":"IFERROR(IF(INDEX('WPTM_1C  Import-Export'!AB$8:AB224,MATCH($B35,'WPTM_1C  Import-Export'!$C$8:$C$200,0))=\"\",\"\",INDEX('WPTM_1C  Import-Export'!AB$8:AB224,MATCH($B35,'WPTM_1C  Import-Export'!$C$8:$C$200,0))),\"\")","v":""},{"$f":"IFERROR(IF(INDEX('WPTM_1C  Import-Export'!I$8:I224,MATCH($B35,'WPTM_1C  Import-Export'!$C$8:$C$200,0))=\"\",\"\",INDEX('WPTM_1C  Import-Export'!I$8:I224,MATCH($B35,'WPTM_1C  Import-Export'!$C$8:$C$200,0))),\"\")","v":""},null,null," ",null,null," ",null,null," "]
[26,"WPTM26",{"$f":"IFERROR(INDEX('WPTM_1C  Import-Export'!Z$8:Z225,MATCH($B36,'WPTM_1C  Import-Export'!$C$8:$C$200,0)),\"\")","v":""},{"$f":"IFERROR(IF(INDEX('WPTM_1C  Import-Export'!E$8:E225,MATCH($B36,'WPTM_1C  Import-Export'!$C$8:$C$200,0))=\"\",\"\",INDEX('WPTM_1C  Import-Export'!E$8:E225,MATCH($B36,'WPTM_1C  Import-Export'!$C$8:$C$200,0))),\"\")","v":""},{"$f":"IFERROR(IF(INDEX('WPTM_1C  Import-Export'!F$8:F225,MATCH($B36,'WPTM_1C  Import-Export'!$C$8:$C$200,0))=\"\",\"\",INDEX('WPTM_1C  Import-Export'!F$8:F225,MATCH($B36,'WPTM_1C  Import-Export'!$C$8:$C$200,0))),\"\")","v":""},{"$f":"IFERROR(IF(INDEX('WPTM_1C  Import-Export'!AA$8:AA225,MATCH($B36,'WPTM_1C  Import-Export'!$C$8:$C$200,0))=\"\",\"\",INDEX('WPTM_1C  Import-Export'!AA$8:AA225,MATCH($B36,'WPTM_1C  Import-Export'!$C$8:$C$200,0))),\"\")","v":""},{"$f":"IFERROR(IF(INDEX('WPTM_1C  Import-Export'!AB$8:AB225,MATCH($B36,'WPTM_1C  Import-Export'!$C$8:$C$200,0))=\"\",\"\",INDEX('WPTM_1C  Import-Export'!AB$8:AB225,MATCH($B36,'WPTM_1C  Import-Export'!$C$8:$C$200,0))),\"\")","v":""},{"$f":"IFERROR(IF(INDEX('WPTM_1C  Import-Export'!I$8:I225,MATCH($B36,'WPTM_1C  Import-Export'!$C$8:$C$200,0))=\"\",\"\",INDEX('WPTM_1C  Import-Export'!I$8:I225,MATCH($B36,'WPTM_1C  Import-Export'!$C$8:$C$200,0))),\"\")","v":""},null,null," ",null,null," ",null,null," "]
[27,"WPTM27",{"$f":"IFERROR(INDEX('WPTM_1C  Import-Export'!Z$8:Z226,MATCH($B37,'WPTM_1C  Import-Export'!$C$8:$C$200,0)),\"\")","v":""},{"$f":"IFERROR(IF(INDEX('WPTM_1C  Import-Export'!E$8:E226,MATCH($B37,'WPTM_1C  Import-Export'!$C$8:$C$200,0))=\"\",\"\",INDEX('WPTM_1C  Import-Export'!E$8:E226,MATCH($B37,'WPTM_1C  Import-Export'!$C$8:$C$200,0))),\"\")","v":""},{"$f":"IFERROR(IF(INDEX('WPTM_1C  Import-Export'!F$8:F226,MATCH($B37,'WPTM_1C  Import-Export'!$C$8:$C$200,0))=\"\",\"\",INDEX('WPTM_1C  Import-Export'!F$8:F226,MATCH($B37,'WPTM_1C  Import-Export'!$C$8:$C$200,0))),\"\")","v":""},{"$f":"IFERROR(IF(INDEX('WPTM_1C  Import-Export'!AA$8:AA226,MATCH($B37,'WPTM_1C  Import-Export'!$C$8:$C$200,0))=\"\",\"\",INDEX('WPTM_1C  Import-Export'!AA$8:AA226,MATCH($B37,'WPTM_1C  Import-Export'!$C$8:$C$200,0))),\"\")","v":""},{"$f":"IFERROR(IF(INDEX('WPTM_1C  Import-Export'!AB$8:AB226,MATCH($B37,'WPTM_1C  Import-Export'!$C$8:$C$200,0))=\"\",\"\",INDEX('WPTM_1C  Import-Export'!AB$8:AB226,MATCH($B37,'WPTM_1C  Import-Export'!$C$8:$C$200,0))),\"\")","v":""},{"$f":"IFERROR(IF(INDEX('WPTM_1C  Import-Export'!I$8:I226,MATCH($B37,'WPTM_1C  Import-Export'!$C$8:$C$200,0))=\"\",\"\",INDEX('WPTM_1C  Import-Export'!I$8:I226,MATCH($B37,'WPTM_1C  Import-Export'!$C$8:$C$200,0))),\"\")","v":""},null,null," ",null,null," ",null,null," "]
[28,"WPTM28",{"$f":"IFERROR(INDEX('WPTM_1C  Import-Export'!Z$8:Z227,MATCH($B38,'WPTM_1C  Import-Export'!$C$8:$C$200,0)),\"\")","v":""},{"$f":"IFERROR(IF(INDEX('WPTM_1C  Import-Export'!E$8:E227,MATCH($B38,'WPTM_1C  Import-Export'!$C$8:$C$200,0))=\"\",\"\",INDEX('WPTM_1C  Import-Export'!E$8:E227,MATCH($B38,'WPTM_1C  Import-Export'!$C$8:$C$200,0))),\"\")","v":""},{"$f":"IFERROR(IF(INDEX('WPTM_1C  Import-Export'!F$8:F227,MATCH($B38,'WPTM_1C  Import-Export'!$C$8:$C$200,0))=\"\",\"\",INDEX('WPTM_1C  Import-Export'!F$8:F227,MATCH($B38,'WPTM_1C  Import-Export'!$C$8:$C$200,0))),\"\")","v":""},{"$f":"IFERROR(IF(INDEX('WPTM_1C  Import-Export'!AA$8:AA227,MATCH($B38,'WPTM_1C  Import-Export'!$C$8:$C$200,0))=\"\",\"\",INDEX('WPTM_1C  Import-Export'!AA$8:AA227,MATCH($B38,'WPTM_1C  Import-Export'!$C$8:$C$200,0))),\"\")","v":""},{"$f":"IFERROR(IF(INDEX('WPTM_1C  Import-Export'!AB$8:AB227,MATCH($B38,'WPTM_1C  Import-Export'!$C$8:$C$200,0))=\"\",\"\",INDEX('WPTM_1C  Import-Export'!AB$8:AB227,MATCH($B38,'WPTM_1C  Import-Export'!$C$8:$C$200,0))),\"\")","v":""},{"$f":"IFERROR(IF(INDEX('WPTM_1C  Import-Export'!I$8:I227,MATCH($B38,'WPTM_1C  Import-Export'!$C$8:$C$200,0))=\"\",\"\",INDEX('WPTM_1C  Import-Export'!I$8:I227,MATCH($B38,'WPTM_1C  Import-Export'!$C$8:$C$200,0))),\"\")","v":""},null,null," ",null,null," ",null,null," "]
[29,"WPTM29",{"$f":"IFERROR(INDEX('WPTM_1C  Import-Export'!Z$8:Z228,MATCH($B39,'WPTM_1C  Import-Export'!$C$8:$C$200,0)),\"\")","v":""},{"$f":"IFERROR(IF(INDEX('WPTM_1C  Import-Export'!E$8:E228,MATCH($B39,'WPTM_1C  Import-Export'!$C$8:$C$200,0))=\"\",\"\",INDEX('WPTM_1C  Import-Export'!E$8:E228,MATCH($B39,'WPTM_1C  Import-Export'!$C$8:$C$200,0))),\"\")","v":""},{"$f":"IFERROR(IF(INDEX('WPTM_1C  Import-Export'!F$8:F228,MATCH($B39,'WPTM_1C  Import-Export'!$C$8:$C$200,0))=\"\",\"\",INDEX('WPTM_1C  Import-Export'!F$8:F228,MATCH($B39,'WPTM_1C  Import-Export'!$C$8:$C$200,0))),\"\")","v":""},{"$f":"IFERROR(IF(INDEX('WPTM_1C  Import-Export'!AA$8:AA228,MATCH($B39,'WPTM_1C  Import-Export'!$C$8:$C$200,0))=\"\",\"\",INDEX('WPTM_1C  Import-Export'!AA$8:AA228,MATCH($B39,'WPTM_1C  Import-Export'!$C$8:$C$200,0))),\"\")","v":""},{"$f":"IFERROR(IF(INDEX('WPTM_1C  Import-Export'!AB$8:AB228,MATCH($B39,'WPTM_1C  Import-Export'!$C$8:$C$200,0))=\"\",\"\",INDEX('WPTM_1C  Import-Export'!AB$8:AB228,MATCH($B39,'WPTM_1C  Import-Export'!$C$8:$C$200,0))),\"\")","v":""},{"$f":"IFERROR(IF(INDEX('WPTM_1C  Import-Export'!I$8:I228,MATCH($B39,'WPTM_1C  Import-Export'!$C$8:$C$200,0))=\"\",\"\",INDEX('WPTM_1C  Import-Export'!I$8:I228,MATCH($B39,'WPTM_1C  Import-Export'!$C$8:$C$200,0))),\"\")","v":""},null,null," ",null,null," ",null,null," "]
[30,"WPTM30",{"$f":"IFERROR(INDEX('WPTM_1C  Import-Export'!Z$8:Z229,MATCH($B40,'WPTM_1C  Import-Export'!$C$8:$C$200,0)),\"\")","v":""},{"$f":"IFERROR(IF(INDEX('WPTM_1C  Import-Export'!E$8:E229,MATCH($B40,'WPTM_1C  Import-Export'!$C$8:$C$200,0))=\"\",\"\",INDEX('WPTM_1C  Import-Export'!E$8:E229,MATCH($B40,'WPTM_1C  Import-Export'!$C$8:$C$200,0))),\"\")","v":""},{"$f":"IFERROR(IF(INDEX('WPTM_1C  Import-Export'!F$8:F229,MATCH($B40,'WPTM_1C  Import-Export'!$C$8:$C$200,0))=\"\",\"\",INDEX('WPTM_1C  Import-Export'!F$8:F229,MATCH($B40,'WPTM_1C  Import-Export'!$C$8:$C$200,0))),\"\")","v":""},{"$f":"IFERROR(IF(INDEX('WPTM_1C  Import-Export'!AA$8:AA229,MATCH($B40,'WPTM_1C  Import-Export'!$C$8:$C$200,0))=\"\",\"\",INDEX('WPTM_1C  Import-Export'!AA$8:AA229,MATCH($B40,'WPTM_1C  Import-Export'!$C$8:$C$200,0))),\"\")","v":""},{"$f":"IFERROR(IF(INDEX('WPTM_1C  Import-Export'!AB$8:AB229,MATCH($B40,'WPTM_1C  Import-Export'!$C$8:$C$200,0))=\"\",\"\",INDEX('WPTM_1C  Import-Export'!AB$8:AB229,MATCH($B40,'WPTM_1C  Import-Export'!$C$8:$C$200,0))),\"\")","v":""},{"$f":"IFERROR(IF(INDEX('WPTM_1C  Import-Export'!I$8:I229,MATCH($B40,'WPTM_1C  Import-Export'!$C$8:$C$200,0))=\"\",\"\",INDEX('WPTM_1C  Import-Export'!I$8:I229,MATCH($B40,'WPTM_1C  Import-Export'!$C$8:$C$200,0))),\"\")","v":""},null,null," ",null,null," ",null,null," "]
[31,"WPTM31",{"$f":"IFERROR(INDEX('WPTM_1C  Import-Export'!Z$8:Z230,MATCH($B41,'WPTM_1C  Import-Export'!$C$8:$C$200,0)),\"\")","v":""},{"$f":"IFERROR(IF(INDEX('WPTM_1C  Import-Export'!E$8:E230,MATCH($B41,'WPTM_1C  Import-Export'!$C$8:$C$200,0))=\"\",\"\",INDEX('WPTM_1C  Import-Export'!E$8:E230,MATCH($B41,'WPTM_1C  Import-Export'!$C$8:$C$200,0))),\"\")","v":""},{"$f":"IFERROR(IF(INDEX('WPTM_1C  Import-Export'!F$8:F230,MATCH($B41,'WPTM_1C  Import-Export'!$C$8:$C$200,0))=\"\",\"\",INDEX('WPTM_1C  Import-Export'!F$8:F230,MATCH($B41,'WPTM_1C  Import-Export'!$C$8:$C$200,0))),\"\")","v":""},{"$f":"IFERROR(IF(INDEX('WPTM_1C  Import-Export'!AA$8:AA230,MATCH($B41,'WPTM_1C  Import-Export'!$C$8:$C$200,0))=\"\",\"\",INDEX('WPTM_1C  Import-Export'!AA$8:AA230,MATCH($B41,'WPTM_1C  Import-Export'!$C$8:$C$200,0))),\"\")","v":""},{"$f":"IFERROR(IF(INDEX('WPTM_1C  Import-Export'!AB$8:AB230,MATCH($B41,'WPTM_1C  Import-Export'!$C$8:$C$200,0))=\"\",\"\",INDEX('WPTM_1C  Import-Export'!AB$8:AB230,MATCH($B41,'WPTM_1C  Import-Export'!$C$8:$C$200,0))),\"\")","v":""},{"$f":"IFERROR(IF(INDEX('WPTM_1C  Import-Export'!I$8:I230,MATCH($B41,'WPTM_1C  Import-Export'!$C$8:$C$200,0))=\"\",\"\",INDEX('WPTM_1C  Import-Export'!I$8:I230,MATCH($B41,'WPTM_1C  Import-Export'!$C$8:$C$200,0))),\"\")","v":""},null,null," ",null,null," ",null,null," "]
[32,"WPTM32",{"$f":"IFERROR(INDEX('WPTM_1C  Import-Export'!Z$8:Z231,MATCH($B42,'WPTM_1C  Import-Export'!$C$8:$C$200,0)),\"\")","v":""},{"$f":"IFERROR(IF(INDEX('WPTM_1C  Import-Export'!E$8:E231,MATCH($B42,'WPTM_1C  Import-Export'!$C$8:$C$200,0))=\"\",\"\",INDEX('WPTM_1C  Import-Export'!E$8:E231,MATCH($B42,'WPTM_1C  Import-Export'!$C$8:$C$200,0))),\"\")","v":""},{"$f":"IFERROR(IF(INDEX('WPTM_1C  Import-Export'!F$8:F231,MATCH($B42,'WPTM_1C  Import-Export'!$C$8:$C$200,0))=\"\",\"\",INDEX('WPTM_1C  Import-Export'!F$8:F231,MATCH($B42,'WPTM_1C  Import-Export'!$C$8:$C$200,0))),\"\")","v":""},{"$f":"IFERROR(IF(INDEX('WPTM_1C  Import-Export'!AA$8:AA231,MATCH($B42,'WPTM_1C  Import-Export'!$C$8:$C$200,0))=\"\",\"\",INDEX('WPTM_1C  Import-Export'!AA$8:AA231,MATCH($B42,'WPTM_1C  Import-Export'!$C$8:$C$200,0))),\"\")","v":""},{"$f":"IFERROR(IF(INDEX('WPTM_1C  Import-Export'!AB$8:AB231,MATCH($B42,'WPTM_1C  Import-Export'!$C$8:$C$200,0))=\"\",\"\",INDEX('WPTM_1C  Import-Export'!AB$8:AB231,MATCH($B42,'WPTM_1C  Import-Export'!$C$8:$C$200,0))),\"\")","v":""},{"$f":"IFERROR(IF(INDEX('WPTM_1C  Import-Export'!I$8:I231,MATCH($B42,'WPTM_1C  Import-Export'!$C$8:$C$200,0))=\"\",\"\",INDEX('WPTM_1C  Import-Export'!I$8:I231,MATCH($B42,'WPTM_1C  Import-Export'!$C$8:$C$200,0))),\"\")","v":""},null,null," ",null,null," ",null,null," "]
[33,"WPTM33",{"$f":"IFERROR(INDEX('WPTM_1C  Import-Export'!Z$8:Z232,MATCH($B43,'WPTM_1C  Import-Export'!$C$8:$C$200,0)),\"\")","v":""},{"$f":"IFERROR(IF(INDEX('WPTM_1C  Import-Export'!E$8:E232,MATCH($B43,'WPTM_1C  Import-Export'!$C$8:$C$200,0))=\"\",\"\",INDEX('WPTM_1C  Import-Export'!E$8:E232,MATCH($B43,'WPTM_1C  Import-Export'!$C$8:$C$200,0))),\"\")","v":""},{"$f":"IFERROR(IF(INDEX('WPTM_1C  Import-Export'!F$8:F232,MATCH($B43,'WPTM_1C  Import-Export'!$C$8:$C$200,0))=\"\",\"\",INDEX('WPTM_1C  Import-Export'!F$8:F232,MATCH($B43,'WPTM_1C  Import-Export'!$C$8:$C$200,0))),\"\")","v":""},{"$f":"IFERROR(IF(INDEX('WPTM_1C  Import-Export'!AA$8:AA232,MATCH($B43,'WPTM_1C  Import-Export'!$C$8:$C$200,0))=\"\",\"\",INDEX('WPTM_1C  Import-Export'!AA$8:AA232,MATCH($B43,'WPTM_1C  Import-Export'!$C$8:$C$200,0))),\"\")","v":""},{"$f":"IFERROR(IF(INDEX('WPTM_1C  Import-Export'!AB$8:AB232,MATCH($B43,'WPTM_1C  Import-Export'!$C$8:$C$200,0))=\"\",\"\",INDEX('WPTM_1C  Import-Export'!AB$8:AB232,MATCH($B43,'WPTM_1C  Import-Export'!$C$8:$C$200,0))),\"\")","v":""},{"$f":"IFERROR(IF(INDEX('WPTM_1C  Import-Export'!I$8:I232,MATCH($B43,'WPTM_1C  Import-Export'!$C$8:$C$200,0))=\"\",\"\",INDEX('WPTM_1C  Import-Export'!I$8:I232,MATCH($B43,'WPTM_1C  Import-Export'!$C$8:$C$200,0))),\"\")","v":""},null,null," ",null,null," ",null,null," "]
[34,"WPTM34",{"$f":"IFERROR(INDEX('WPTM_1C  Import-Export'!Z$8:Z233,MATCH($B44,'WPTM_1C  Import-Export'!$C$8:$C$200,0)),\"\")","v":""},{"$f":"IFERROR(IF(INDEX('WPTM_1C  Import-Export'!E$8:E233,MATCH($B44,'WPTM_1C  Import-Export'!$C$8:$C$200,0))=\"\",\"\",INDEX('WPTM_1C  Import-Export'!E$8:E233,MATCH($B44,'WPTM_1C  Import-Export'!$C$8:$C$200,0))),\"\")","v":""},{"$f":"IFERROR(IF(INDEX('WPTM_1C  Import-Export'!F$8:F233,MATCH($B44,'WPTM_1C  Import-Export'!$C$8:$C$200,0))=\"\",\"\",INDEX('WPTM_1C  Import-Export'!F$8:F233,MATCH($B44,'WPTM_1C  Import-Export'!$C$8:$C$200,0))),\"\")","v":""},{"$f":"IFERROR(IF(INDEX('WPTM_1C  Import-Export'!AA$8:AA233,MATCH($B44,'WPTM_1C  Import-Export'!$C$8:$C$200,0))=\"\",\"\",INDEX('WPTM_1C  Import-Export'!AA$8:AA233,MATCH($B44,'WPTM_1C  Import-Export'!$C$8:$C$200,0))),\"\")","v":""},{"$f":"IFERROR(IF(INDEX('WPTM_1C  Import-Export'!AB$8:AB233,MATCH($B44,'WPTM_1C  Import-Export'!$C$8:$C$200,0))=\"\",\"\",INDEX('WPTM_1C  Import-Export'!AB$8:AB233,MATCH($B44,'WPTM_1C  Import-Export'!$C$8:$C$200,0))),\"\")","v":""},{"$f":"IFERROR(IF(INDEX('WPTM_1C  Import-Export'!I$8:I233,MATCH($B44,'WPTM_1C  Import-Export'!$C$8:$C$200,0))=\"\",\"\",INDEX('WPTM_1C  Import-Export'!I$8:I233,MATCH($B44,'WPTM_1C  Import-Export'!$C$8:$C$200,0))),\"\")","v":""},null,null," ",null,null," ",null,null," "]
[35,"WPTM35",{"$f":"IFERROR(INDEX('WPTM_1C  Import-Export'!Z$8:Z234,MATCH($B45,'WPTM_1C  Import-Export'!$C$8:$C$200,0)),\"\")","v":""},{"$f":"IFERROR(IF(INDEX('WPTM_1C  Import-Export'!E$8:E234,MATCH($B45,'WPTM_1C  Import-Export'!$C$8:$C$200,0))=\"\",\"\",INDEX('WPTM_1C  Import-Export'!E$8:E234,MATCH($B45,'WPTM_1C  Import-Export'!$C$8:$C$200,0))),\"\")","v":""},{"$f":"IFERROR(IF(INDEX('WPTM_1C  Import-Export'!F$8:F234,MATCH($B45,'WPTM_1C  Import-Export'!$C$8:$C$200,0))=\"\",\"\",INDEX('WPTM_1C  Import-Export'!F$8:F234,MATCH($B45,'WPTM_1C  Import-Export'!$C$8:$C$200,0))),\"\")","v":""},{"$f":"IFERROR(IF(INDEX('WPTM_1C  Import-Export'!AA$8:AA234,MATCH($B45,'WPTM_1C  Import-Export'!$C$8:$C$200,0))=\"\",\"\",INDEX('WPTM_1C  Import-Export'!AA$8:AA234,MATCH($B45,'WPTM_1C  Import-Export'!$C$8:$C$200,0))),\"\")","v":""},{"$f":"IFERROR(IF(INDEX('WPTM_1C  Import-Export'!AB$8:AB234,MATCH($B45,'WPTM_1C  Import-Export'!$C$8:$C$200,0))=\"\",\"\",INDEX('WPTM_1C  Import-Export'!AB$8:AB234,MATCH($B45,'WPTM_1C  Import-Export'!$C$8:$C$200,0))),\"\")","v":""},{"$f":"IFERROR(IF(INDEX('WPTM_1C  Import-Export'!I$8:I234,MATCH($B45,'WPTM_1C  Import-Export'!$C$8:$C$200,0))=\"\",\"\",INDEX('WPTM_1C  Import-Export'!I$8:I234,MATCH($B45,'WPTM_1C  Import-Export'!$C$8:$C$200,0))),\"\")","v":""},null,null," ",null,null," ",null,null," "]
[36,"WPTM36",{"$f":"IFERROR(INDEX('WPTM_1C  Import-Export'!Z$8:Z235,MATCH($B46,'WPTM_1C  Import-Export'!$C$8:$C$200,0)),\"\")","v":""},{"$f":"IFERROR(IF(INDEX('WPTM_1C  Import-Export'!E$8:E235,MATCH($B46,'WPTM_1C  Import-Export'!$C$8:$C$200,0))=\"\",\"\",INDEX('WPTM_1C  Import-Export'!E$8:E235,MATCH($B46,'WPTM_1C  Import-Export'!$C$8:$C$200,0))),\"\")","v":""},{"$f":"IFERROR(IF(INDEX('WPTM_1C  Import-Export'!F$8:F235,MATCH($B46,'WPTM_1C  Import-Export'!$C$8:$C$200,0))=\"\",\"\",INDEX('WPTM_1C  Import-Export'!F$8:F235,MATCH($B46,'WPTM_1C  Import-Export'!$C$8:$C$200,0))),\"\")","v":""},{"$f":"IFERROR(IF(INDEX('WPTM_1C  Import-Export'!AA$8:AA235,MATCH($B46,'WPTM_1C  Import-Export'!$C$8:$C$200,0))=\"\",\"\",INDEX('WPTM_1C  Import-Export'!AA$8:AA235,MATCH($B46,'WPTM_1C  Import-Export'!$C$8:$C$200,0))),\"\")","v":""},{"$f":"IFERROR(IF(INDEX('WPTM_1C  Import-Export'!AB$8:AB235,MATCH($B46,'WPTM_1C  Import-Export'!$C$8:$C$200,0))=\"\",\"\",INDEX('WPTM_1C  Import-Export'!AB$8:AB235,MATCH($B46,'WPTM_1C  Import-Export'!$C$8:$C$200,0))),\"\")","v":""},{"$f":"IFERROR(IF(INDEX('WPTM_1C  Import-Export'!I$8:I235,MATCH($B46,'WPTM_1C  Import-Export'!$C$8:$C$200,0))=\"\",\"\",INDEX('WPTM_1C  Import-Export'!I$8:I235,MATCH($B46,'WPTM_1C  Import-Export'!$C$8:$C$200,0))),\"\")","v":""},null,null," ",null,null," ",null,null," "]
[37,"WPTM37",{"$f":"IFERROR(INDEX('WPTM_1C  Import-Export'!Z$8:Z236,MATCH($B47,'WPTM_1C  Import-Export'!$C$8:$C$200,0)),\"\")","v":""},{"$f":"IFERROR(IF(INDEX('WPTM_1C  Import-Export'!E$8:E236,MATCH($B47,'WPTM_1C  Import-Export'!$C$8:$C$200,0))=\"\",\"\",INDEX('WPTM_1C  Import-Export'!E$8:E236,MATCH($B47,'WPTM_1C  Import-Export'!$C$8:$C$200,0))),\"\")","v":""},{"$f":"IFERROR(IF(INDEX('WPTM_1C  Import-Export'!F$8:F236,MATCH($B47,'WPTM_1C  Import-Export'!$C$8:$C$200,0))=\"\",\"\",INDEX('WPTM_1C  Import-Export'!F$8:F236,MATCH($B47,'WPTM_1C  Import-Export'!$C$8:$C$200,0))),\"\")","v":""},{"$f":"IFERROR(IF(INDEX('WPTM_1C  Import-Export'!AA$8:AA236,MATCH($B47,'WPTM_1C  Import-Export'!$C$8:$C$200,0))=\"\",\"\",INDEX('WPTM_1C  Import-Export'!AA$8:AA236,MATCH($B47,'WPTM_1C  Import-Export'!$C$8:$C$200,0))),\"\")","v":""},{"$f":"IFERROR(IF(INDEX('WPTM_1C  Import-Export'!AB$8:AB236,MATCH($B47,'WPTM_1C  Import-Export'!$C$8:$C$200,0))=\"\",\"\",INDEX('WPTM_1C  Import-Export'!AB$8:AB236,MATCH($B47,'WPTM_1C  Import-Export'!$C$8:$C$200,0))),\"\")","v":""},{"$f":"IFERROR(IF(INDEX('WPTM_1C  Import-Export'!I$8:I236,MATCH($B47,'WPTM_1C  Import-Export'!$C$8:$C$200,0))=\"\",\"\",INDEX('WPTM_1C  Import-Export'!I$8:I236,MATCH($B47,'WPTM_1C  Import-Export'!$C$8:$C$200,0))),\"\")","v":""},null,null," ",null,null," ",null,null," "]
[38,"WPTM38",{"$f":"IFERROR(INDEX('WPTM_1C  Import-Export'!Z$8:Z237,MATCH($B48,'WPTM_1C  Import-Export'!$C$8:$C$200,0)),\"\")","v":""},{"$f":"IFERROR(IF(INDEX('WPTM_1C  Import-Export'!E$8:E237,MATCH($B48,'WPTM_1C  Import-Export'!$C$8:$C$200,0))=\"\",\"\",INDEX('WPTM_1C  Import-Export'!E$8:E237,MATCH($B48,'WPTM_1C  Import-Export'!$C$8:$C$200,0))),\"\")","v":""},{"$f":"IFERROR(IF(INDEX('WPTM_1C  Import-Export'!F$8:F237,MATCH($B48,'WPTM_1C  Import-Export'!$C$8:$C$200,0))=\"\",\"\",INDEX('WPTM_1C  Import-Export'!F$8:F237,MATCH($B48,'WPTM_1C  Import-Export'!$C$8:$C$200,0))),\"\")","v":""},{"$f":"IFERROR(IF(INDEX('WPTM_1C  Import-Export'!AA$8:AA237,MATCH($B48,'WPTM_1C  Import-Export'!$C$8:$C$200,0))=\"\",\"\",INDEX('WPTM_1C  Import-Export'!AA$8:AA237,MATCH($B48,'WPTM_1C  Import-Export'!$C$8:$C$200,0))),\"\")","v":""},{"$f":"IFERROR(IF(INDEX('WPTM_1C  Import-Export'!AB$8:AB237,MATCH($B48,'WPTM_1C  Import-Export'!$C$8:$C$200,0))=\"\",\"\",INDEX('WPTM_1C  Import-Export'!AB$8:AB237,MATCH($B48,'WPTM_1C  Import-Export'!$C$8:$C$200,0))),\"\")","v":""},{"$f":"IFERROR(IF(INDEX('WPTM_1C  Import-Export'!I$8:I237,MATCH($B48,'WPTM_1C  Import-Export'!$C$8:$C$200,0))=\"\",\"\",INDEX('WPTM_1C  Import-Export'!I$8:I237,MATCH($B48,'WPTM_1C  Import-Export'!$C$8:$C$200,0))),\"\")","v":""},null,null," ",null,null," ",null,null," "]
[39,"WPTM39",{"$f":"IFERROR(INDEX('WPTM_1C  Import-Export'!Z$8:Z238,MATCH($B49,'WPTM_1C  Import-Export'!$C$8:$C$200,0)),\"\")","v":""},{"$f":"IFERROR(IF(INDEX('WPTM_1C  Import-Export'!E$8:E238,MATCH($B49,'WPTM_1C  Import-Export'!$C$8:$C$200,0))=\"\",\"\",INDEX('WPTM_1C  Import-Export'!E$8:E238,MATCH($B49,'WPTM_1C  Import-Export'!$C$8:$C$200,0))),\"\")","v":""},{"$f":"IFERROR(IF(INDEX('WPTM_1C  Import-Export'!F$8:F238,MATCH($B49,'WPTM_1C  Import-Export'!$C$8:$C$200,0))=\"\",\"\",INDEX('WPTM_1C  Import-Export'!F$8:F238,MATCH($B49,'WPTM_1C  Import-Export'!$C$8:$C$200,0))),\"\")","v":""},{"$f":"IFERROR(IF(INDEX('WPTM_1C  Import-Export'!AA$8:AA238,MATCH($B49,'WPTM_1C  Import-Export'!$C$8:$C$200,0))=\"\",\"\",INDEX('WPTM_1C  Import-Export'!AA$8:AA238,MATCH($B49,'WPTM_1C  Import-Export'!$C$8:$C$200,0))),\"\")","v":""},{"$f":"IFERROR(IF(INDEX('WPTM_1C  Import-Export'!AB$8:AB238,MATCH($B49,'WPTM_1C  Import-Export'!$C$8:$C$200,0))=\"\",\"\",INDEX('WPTM_1C  Import-Export'!AB$8:AB238,MATCH($B49,'WPTM_1C  Import-Export'!$C$8:$C$200,0))),\"\")","v":""},{"$f":"IFERROR(IF(INDEX('WPTM_1C  Import-Export'!I$8:I238,MATCH($B49,'WPTM_1C  Import-Export'!$C$8:$C$200,0))=\"\",\"\",INDEX('WPTM_1C  Import-Export'!I$8:I238,MATCH($B49,'WPTM_1C  Import-Export'!$C$8:$C$200,0))),\"\")","v":""},null,null," ",null,null," ",null,null," "]
[40,"WPTM40",{"$f":"IFERROR(INDEX('WPTM_1C  Import-Export'!Z$8:Z239,MATCH($B50,'WPTM_1C  Import-Export'!$C$8:$C$200,0)),\"\")","v":""},{"$f":"IFERROR(IF(INDEX('WPTM_1C  Import-Export'!E$8:E239,MATCH($B50,'WPTM_1C  Import-Export'!$C$8:$C$200,0))=\"\",\"\",INDEX('WPTM_1C  Import-Export'!E$8:E239,MATCH($B50,'WPTM_1C  Import-Export'!$C$8:$C$200,0))),\"\")","v":""},{"$f":"IFERROR(IF(INDEX('WPTM_1C  Import-Export'!F$8:F239,MATCH($B50,'WPTM_1C  Import-Export'!$C$8:$C$200,0))=\"\",\"\",INDEX('WPTM_1C  Import-Export'!F$8:F239,MATCH($B50,'WPTM_1C  Import-Export'!$C$8:$C$200,0))),\"\")","v":""},{"$f":"IFERROR(IF(INDEX('WPTM_1C  Import-Export'!AA$8:AA239,MATCH($B50,'WPTM_1C  Import-Export'!$C$8:$C$200,0))=\"\",\"\",INDEX('WPTM_1C  Import-Export'!AA$8:AA239,MATCH($B50,'WPTM_1C  Import-Export'!$C$8:$C$200,0))),\"\")","v":""},{"$f":"IFERROR(IF(INDEX('WPTM_1C  Import-Export'!AB$8:AB239,MATCH($B50,'WPTM_1C  Import-Export'!$C$8:$C$200,0))=\"\",\"\",INDEX('WPTM_1C  Import-Export'!AB$8:AB239,MATCH($B50,'WPTM_1C  Import-Export'!$C$8:$C$200,0))),\"\")","v":""},{"$f":"IFERROR(IF(INDEX('WPTM_1C  Import-Export'!I$8:I239,MATCH($B50,'WPTM_1C  Import-Export'!$C$8:$C$200,0))=\"\",\"\",INDEX('WPTM_1C  Import-Export'!I$8:I239,MATCH($B50,'WPTM_1C  Import-Export'!$C$8:$C$200,0))),\"\")","v":""},null,null," ",null,null," ",null,null," "]
[41,"WPTM41",{"$f":"IFERROR(INDEX('WPTM_1C  Import-Export'!Z$8:Z240,MATCH($B51,'WPTM_1C  Import-Export'!$C$8:$C$200,0)),\"\")","v":""},{"$f":"IFERROR(IF(INDEX('WPTM_1C  Import-Export'!E$8:E240,MATCH($B51,'WPTM_1C  Import-Export'!$C$8:$C$200,0))=\"\",\"\",INDEX('WPTM_1C  Import-Export'!E$8:E240,MATCH($B51,'WPTM_1C  Import-Export'!$C$8:$C$200,0))),\"\")","v":""},{"$f":"IFERROR(IF(INDEX('WPTM_1C  Import-Export'!F$8:F240,MATCH($B51,'WPTM_1C  Import-Export'!$C$8:$C$200,0))=\"\",\"\",INDEX('WPTM_1C  Import-Export'!F$8:F240,MATCH($B51,'WPTM_1C  Import-Export'!$C$8:$C$200,0))),\"\")","v":""},{"$f":"IFERROR(IF(INDEX('WPTM_1C  Import-Export'!AA$8:AA240,MATCH($B51,'WPTM_1C  Import-Export'!$C$8:$C$200,0))=\"\",\"\",INDEX('WPTM_1C  Import-Export'!AA$8:AA240,MATCH($B51,'WPTM_1C  Import-Export'!$C$8:$C$200,0))),\"\")","v":""},{"$f":"IFERROR(IF(INDEX('WPTM_1C  Import-Export'!AB$8:AB240,MATCH($B51,'WPTM_1C  Import-Export'!$C$8:$C$200,0))=\"\",\"\",INDEX('WPTM_1C  Import-Export'!AB$8:AB240,MATCH($B51,'WPTM_1C  Import-Export'!$C$8:$C$200,0))),\"\")","v":""},{"$f":"IFERROR(IF(INDEX('WPTM_1C  Import-Export'!I$8:I240,MATCH($B51,'WPTM_1C  Import-Export'!$C$8:$C$200,0))=\"\",\"\",INDEX('WPTM_1C  Import-Export'!I$8:I240,MATCH($B51,'WPTM_1C  Import-Export'!$C$8:$C$200,0))),\"\")","v":""},null,null," ",null,null," ",null,null," "]

{"sheet":"WPTM_1C  Import-Export","index":14,"n_rows":11,"n_cols":36,"rows_kept":11,"cut":false,"hidden":true,"merged":[[5,23,6,23],[5,18,6,18],[5,19,6,19],[5,20,6,20],[5,21,6,21],[5,22,6,22],[5,17,6,17],[1,3,1,19],[5,3,6,3],[5,4,6,4],[5,5,6,5],[5,6,6,6],[5,7,6,7],[5,8,6,8],[5,9,6,9],[5,10,6,10],[5,11,6,11],[5,12,6,12],[5,13,6,13],[5,14,6,14],[5,15,6,15],[5,16,6,16],[5,24,6,24],[5,25,6,25],[5,26,6,26],[5,27,6,27],[5,28,6,28],[5,34,6,34],[5,35,6,35],[5,29,6,29],[5,30,6,30],[5,31,6,31],[5,32,6,32],[5,33,6,33]]}
[]
[null,null,null,"\nInstructions for population:\n1. Columns D to N should be mapped for download only\n2. Columns O to T should be mapped for import only\n3. Population should follow same rules as in tab WPTM_1C of current template with exception that:\na. population should be 1st sorted by field \"Key Activity Number\" on the parent record key Activity \nb. It should then be sorted by field Module and then Intervention\n"]
[]
[null,null,null,"C- Workplan Tracking Measures"]
[]
[null,null,null,"Module","Intervention (concat","Custom Intervention Display","Custom Intervention EN","Custom Intervention FR","Criterion for completion display","Activity","Activity details- milestones/targets","Criterion for completion","Country (relevant for multi-country grnats)","Comments","Progress Status","Score","Reasons for deviation from workplan activities and milestones","Progress Status","Verified Score","LFA analysis of progress and any variance between targets and results, and any other comments\n(this should not be a “Copy and Paste” of the reasons provided by the PR)","Global Fund Validated Progress Status","Global Fund Validated Score","Country Team comments on validated results","Key Activity Milestone Number","Intervention mapping","Module formula","Activity Display","Key activity milestone","Module Name ES","Module Name FR","Intervention ES","Intervention FR","Comments Local","Key Activity Local","Milestone / Target Description Local","Criterion for Completion Local"]
["Record ID",-1,null,null,null,null,null,null,null,null,null,null,null,null,null,null,null,null,null,null,null,null,null,"Key Activity Milestone Number",null,null,null,null,"Module Name ES","Module Name FR","Intervention ES","Intervention FR","Comments Local","Key Activity Local","Milestone / Target Description Local","Criterion for Completion Local"]
["[Record ID]",{"$f":"B7+1","v":0},{"$f":"\"WPTM\"&B8","v":"WPTM0"},"[Module]",{"$f":"IF(LangOffset=0,CONCATENATE(Y8),IF(LangOffset=1,CONCATENATE(AF8),IF(LangOffset=2,AE8)))","v":"[Intervention]"},{"$f":"IF(LangOffset=0,CONCATENATE(G8),IF(LangOffset=1,CONCATENATE(H8),IF(LangOffset=2,H8)))","v":"[Custom Intervention - EN]"},"[Custom Intervention - EN]","[Custom Intervention - Local]",{"$f":"IF(LangOffset=0,CONCATENATE(L8),IF(LangOffset=1,CONCATENATE(AJ8),IF(LangOffset=2,AJ8)))","v":"[Criterion for Completion]"},"[Key Activity]","[Milestone / Target Description]","[Criterion for Completion]","[Country]","[Comments]",{"$f":"IFERROR(IF(INDEX(WPTM_1C!J$11:J$200,MATCH($C8,WPTM_1C!$B$11:$B$200,0))=\"\",\"\")*INDEX(WPTM_1C!J$11:J$200,MATCH($C8,WPTM_1C!$B$11:$B$200,0)),\"\")","v":""},{"$f":"IFERROR(IF(INDEX(WPTM_1C!K$11:K$200,MATCH($C8,WPTM_1C!$B$11:$B$200,0))=\"\",\"\",INDEX(WPTM_1C!K$11:K$200,MATCH($C8,WPTM_1C!$B$11:$B$200,0))),\"\")","v":""},{"$f":"IFERROR(IF(INDEX(WPTM_1C!L$11:L$200,MATCH($C8,WPTM_1C!$B$11:$B$200,0))=\"\",\"\",INDEX(WPTM_1C!L$11:L$200,MATCH($C8,WPTM_1C!$B$11:$B$200,0))),\"\")","v":""},{"$f":"IFERROR(IF(INDEX(WPTM_1C!M$11:M$200,MATCH($C8,WPTM_1C!$B$11:$B$200,0))=\"\",\"\",INDEX(WPTM_1C!M$11:M$200,MATCH($C8,WPTM_1C!$B$11:$B$200,0))),\"\")","v":""},{"$f":"IFERROR(INDEX(WPTM_1C!N$11:N$200,MATCH($C8,WPTM_1C!$B$11:$B$200,0)),\"\")","v":""},{"$f":"IFERROR(IF(INDEX(WPTM_1C!O$11:O$200,MATCH($C8,WPTM_1C!$B$11:$B$200,0))=\"\",\"\",INDEX(WPTM_1C!O$11:O$200,MATCH($C8,WPTM_1C!$B$11:$B$200,0))),\"\")","v":""},{"$f":"IFERROR(INDEX(WPTM_1C!P$11:P$200,MATCH($C8,WPTM_1C!$B$11:$B$200,0)),\"\")","v":""},{"$f":"IFERROR(INDEX(WPTM_1C!Q$11:Q$200,MATCH($C8,WPTM_1C!$B$11:$B$200,0)),\"\")","v":""},{"$f":"IFERROR(INDEX(WPTM_1C!R$11:R$200,MATCH($C8,WPTM_1C!$B$11:$B$200,0)),\"\")","v":""},"[Key Activity Milestone Number]","[Intervention]",{"$f":"IF(LangOffset=0,CONCATENATE(D8),IF(LangOffset=1,CONCATENATE(AD8),IF(LangOffset=2,AC8)))","v":"[Module]"},{"$f":"IF(LangOffset=0,CONCATENATE(J8),IF(LangOffset=1,CONCATENATE(AH8),IF(LangOffset=2,AH8)))","v":"[Key Activity]"},{"$f":"IF(LangOffset=0,CONCATENATE(K8),IF(LangOffset=1,CONCATENATE(AI8),IF(LangOffset-2,AI8)))","v":"[Milestone / Target Description]"},"[Module Name ES]","[Module Name FR]","[Intervention ES]","[Intervention FR]","[Comments Local]","[Key Activity Local]","[Milestone / Target Description Local]","[Criterion for Completion Local]"]
[]
[]
[null,null,null," "]

{"sheet":"PR Cash Reconciliation_2A,B,C,D","index":15,"n_rows":53,"n_cols":12,"rows_kept":53,"cut":false,"hidden":true,"merged":[[40,1,40,11],[45,1,45,11],[46,2,46,4],[46,5,46,8],[46,9,46,11],[28,1,28,11],[33,1,33,11],[34,1,35,1],[34,2,34,4],[34,5,34,8],[34,9,34,11],[0,0,0,10],[1,8,2,10],[4,2,4,4],[4,5,4,8],[4,9,4,11],[1,0,2,1],[1,2,1,3],[2,2,2,3],[3,1,3,11]]}
[{"$f":"CoverSheet!A1","v":"Progress Report with Disbursement Request"}]
["Section 2: Financial Information",null,{"$f":"CoverSheet!F12","v":"Period of Financial Reporting"},null,{"$f":"CoverSheet!I12","v":"Beginning Date:"},{"$f":"CoverSheet!J12","v":"2018-01-01"},{"$f":"CoverSheet!K12","v":"End Date:"},{"$f":"CoverSheet!L12","v":"2018-06-30"}]
[null,null,"Cumulative Period of Financial Reporting",null,{"$f":"CoverSheet!I12","v":"Beginning Date:"},{"$f":"CoverSheet!D13","v":"2018-01-01"},{"$f":"CoverSheet!K12","v":"End Date:"},{"$f":"CoverSheet!L12","v":"2018-06-30"}]
[null,"A. Principal Recipient Cash Reconciliation Statement in Grant Currency"]
[null,null,"Principal Recipient",null,null,"For LFA Use Only ",null,null,null,"For the Global Fund Use Only"]
["Item No.","Description","Cumulative for Previous Periods",{"$f":"VLOOKUP(Translations!B518,Translations!B3:H900,4,0)","v":"Current Reporting Period"},{"$f":"VLOOKUP(Translations!B519,Translations!B3:H900,4,0)","v":"Comments"},"Cumulative for Previous Periods as validated by Global Fund","LFA Adjustments on Current Reporting Period","As verified by LFA","Comments","CT Adjustments (incl. External Audit adjustments)","The Global Fund Validated Figures","Comments"]
["1.1","Cash Balance: Beginning of the Period",0,0,null,null,0,{"$f":"D7+G7","v":0},null,0,{"$f":"H7+J7","v":0}]
[null,{"$f":"VLOOKUP(Translations!B527,Translations!B3:H900,4,0)","v":"2. Grant Income"}]
[null,"Add: "]
["2.1",{"$f":"VLOOKUP(Translations!B528,Translations!B3:H900,4,0)","v":"Disbursement made to the Principal Recipient"},0,0,null,0,0,{"$f":"D10+G10","v":0},null,0,{"$f":"H10+J10","v":0}]
["2.2",{"$f":"VLOOKUP(Translations!B529,Translations!B3:H900,4,0)","v":"Disbursement to third parties by the Global Fund on behalf of the Principal Recipient"},0,0,null,0,0,{"$f":"D11+G11","v":0},null,0,{"$f":"H11+J11","v":0}]
["2.3","Interest received on bank accounts",0,0,null,0,0,{"$f":"D12+G12","v":0},null,0,{"$f":"H12+J12","v":0}]
["2.4","Revenue from income-generating activities (if applicable)",0,0,null,0,0,{"$f":"D13+G13","v":0},null,0,{"$f":"H13+J13","v":0}]
["2.5",{"$f":"VLOOKUP(Translations!B530,Translations!B3:H900,4,0)","v":"Other income, if applicable (e.g. VAT/Other Tax returns, income from disposal of assets etc.)"},0,0,null,0,0,{"$f":"D14+G14","v":0},null,0,{"$f":"H14+J14","v":0}]
["2.6",{"$f":"VLOOKUP(Translations!B553,Translations!B3:H900,4,0)","v":"Total Grant Income"},{"$f":"SUM(C10:C14)","v":0},{"$f":"SUM(D10:D14)","v":0},null,{"$f":"SUM(F10:F14)","v":0},{"$f":"SUM(G10:G14)","v":0},{"$f":"SUM(H10:H14)","v":0},null,{"$f":"SUM(J10:J14)","v":0},{"$f":"SUM(K10:K14)","v":0}]
[null,"3. Financial Commitments"]
[null,"Less:"]
["3.1","Principal Recipient Expenditure (including payments and other advance payments)",0,0,null,0,0,{"$f":"D18+G18","v":0},null,0,{"$f":"H18+J18","v":0}]
["3.2","Disbursement to third parties by the Global Fund on behalf of the Principal Recipient ",{"$f":"C11","v":0},{"$f":"D11","v":0},null,{"$f":"F11","v":0},{"$f":"G11","v":0},{"$f":"D19+G19","v":0},null,{"$f":"J11","v":0},{"$f":"H19+J19","v":0}]
["3.3","Principal Recipient disbursement to sub-recipients",0,0,null,0,0,{"$f":"D20+G20","v":0},null,0,{"$f":"H20+J20","v":0}]
["3.4","Bank charges on disbursements and payments",0,0,null,0,0,{"$f":"D21+G21","v":0},null,0,{"$f":"H21+J21","v":0}]
["3.5","Total Grant Cash Outflows",{"$f":"SUM(C18:C21)","v":0},{"$f":"SUM(D18:D21)","v":0},null,{"$f":"SUM(F18:F21)","v":0},{"$f":"SUM(G18:G21)","v":0},{"$f":"SUM(H18:H21)","v":0},null,{"$f":"SUM(J18:J21)","v":0},{"$f":"SUM(K18:K21)","v":0}]
[null,"4. Reconciling Adjustments"]
["4.1",{"$f":"VLOOKUP(Translations!B562,Translations!B3:H900,4,0)","v":"Other reconciliation adjustments (including for prior periods)"},0,0,null,0,0,{"$f":"D24+G24","v":0},null,0,{"$f":"H24+J24","v":0}]
["4.2","Net exchange gains/losses on translation of balances",0,0,null,0,0,{"$f":"D25+G25","v":0},null,0,{"$f":"H25+J25","v":0}]
["4.3",{"$f":"VLOOKUP(Translations!B563,Translations!B3:H900,4,0)","v":"Ineligible transactions from previous periods for which justification was approved by the Global Fund"},0,0,null,0,0,{"$f":"D26+G26","v":0},null,0,{"$f":"H26+J26","v":0}]
["4.4",{"$f":"VLOOKUP(Translations!B564,Translations!B3:H900,4,0)","v":"Reimbursement of ineligible transaction from previous periods"},0,0,null,0,0,{"$f":"D27+G27","v":0},null,0,{"$f":"H27+J27","v":0}]
["4.5",{"$f":"VLOOKUP(Translations!B567,Translations!B3:H900,4,0)","v":"Advance payment made for the next implementation period"},0,0,null,0,0,{"$f":"D28+G28","v":0},null,0,{"$f":"H28+J28","v":0}]
[null,"5. Total Cash Balances: End of the reporting period"]
["5.1","Principal Recipient Cash Balance",0,{"$f":"(D7+D15-D22)+D24+D25+D27-D28","v":0},null,null,{"$f":"G7+(G15-G22)+G25+G24-G26-G28","v":0},{"$f":"(H7+H15-H22)+H24+H25-H26-H28","v":0},null,{"$f":"J7+J15-J22+J25+J24","v":0},{"$f":"K7+K15-K22+K25+K24-K26-K28","v":0}]
["5.2","Sub-Recipient Cash Balance",0,{"$f":"'SR_Cash Reconciliation_2E'!J109","v":0},null,null,{"$f":"'SR_Cash Reconciliation_2E'!N109","v":0},{"$f":"'SR_Cash Reconciliation_2E'!O109","v":0},null,0,{"$f":"+H31+J31","v":0}]
["5.3","Total Cash Balance",{"$f":"C30+C31","v":0},{"$f":"D30+D31","v":0},null,{"$f":"F30+F31","v":0},{"$f":"G30+G31","v":0},{"$f":"H30+H31","v":0},null,{"$f":"J30+J31","v":0},{"$f":"K30+K31","v":0}]
[]
[null,"B. Principal Recipient Bank Statement Balance & Cash In Transit in Grant Currency"]
[null,null,{"$f":"C5","v":"Principal Recipient"},null,null,"For LFA Use Only ",null,null,null,"For the Global Fund Use Only"]
[null,null,null,"As At End of Current Period",{"$f":"E6","v":"Comments"},null,"LFA Adjustments on Current Reporting Period","As verified by LFA","Comments","CT Adjustments","The Global Fund Validated Figures","Comments"]
["6.1","Principal Recipient Cash Balance as per bank statements (For Information Only):",null,0,null,null,0,{"$f":"D37+G37","v":0},null,0,{"$f":"H37+J37","v":0}]
["6.2","Cash in Transit for the reporting period",null,0,null,null,0,{"$f":"D38+G38","v":0},null,0,{"$f":"H38+J38","v":0}]
["6.3","Cash in Transit after the current reporting period",null,0,null,null,0,{"$f":"D39+G39","v":0},null,0,{"$f":"H39+J39","v":0}]
[]
[null,"C. Principal Recipient Financial Commitments and Financial Obligations"]
["7.1","Financial Commitments",0,0,null,0,0,{"$f":"D42+G42","v":0},null,0,{"$f":"H42+J42","v":0}]
["7.2","Financial Obligations",0,0,null,0,0,{"$f":"D43+G43","v":0},null,0,{"$f":"H43+J43","v":0}]
["7.4","Total Financial Commitments & Financial Obligations",{"$f":"SUM(C42:C43)","v":0},{"$f":"SUM(D42:D43)","v":0},null,{"$f":"SUM(F42:F43)","v":0},{"$f":"SUM(G42:G43)","v":0},{"$f":"SUM(H42:H43)","v":0},null,{"$f":"SUM(J42:J43)","v":0},{"$f":"SUM(K42:K43)","v":0}]
[]
[null,"D. Principal Recipient Ineligible Transactions in Grant Currency "]
[null,null,{"$f":"C5","v":"Principal Recipient"},null,null,"For LFA Use Only ",null,null,null,"For the Global Fund Use Only"]
[null,null,"Cumulative for Previous Periods","Current Reporting Period",{"$f":"E6","v":"Comments"},"Cumulative for Previous Periods as validated by Global Fund","LFA Adjustments on Current Reporting Period","As verified by LFA","Comments","CT Adjustments","The Global Fund Validated Figures","Comments"]
["8.1",{"$f":"VLOOKUP(Translations!B583,Translations!B3:H900,4,0)","v":"Ineligible transactions validated for the reporting period"},0,0,null,null,0,{"$f":"D49+G49","v":0},null,0,{"$f":"H49+J49","v":0}]
["8.2",{"$f":"VLOOKUP(Translations!B584,Translations!B3:H900,4,0)","v":"Ineligible transactions from previous periods for which justification was approved by the Global Fund"},{"$f":"C26","v":0},{"$f":"D26","v":0},null,{"$f":"F26","v":0},{"$f":"G26","v":0},{"$f":"D50+G50","v":0},null,{"$f":"J26","v":0},{"$f":"H50+J50","v":0}]
["8.3",{"$f":"VLOOKUP(Translations!B585,Translations!B3:H900,4,0)","v":"Reimbursement of ineligible transactions from previous periods"},{"$f":"C27","v":0},{"$f":"D27","v":0},null,{"$f":"F27","v":0},{"$f":"G27","v":0},{"$f":"D51+G51","v":0},null,{"$f":"J27","v":0},{"$f":"H51+J51","v":0}]
["8.4",{"$f":"VLOOKUP(Translations!B586,Translations!B3:H900,4,0)","v":"Cumulative ineligible transactions for the implementation period"},0,{"$f":"D49+C52","v":0},null,0,{"$f":"H49","v":0},{"$f":"F52+G52","v":0},null,0,{"$f":"H52+J52","v":0}]
["8.5",{"$f":"VLOOKUP(Translations!B587,Translations!B3:H900,4,0)","v":"Open ineligible transactions to be justified and/or reimbursed"},{"$f":"C52-C50-C51","v":0},{"$f":"C53+D49-D50-D51","v":0},null,{"$f":"F52-F50-F51","v":0},null,{"$f":"H52-F50-F51-H50-H51","v":0},null,0,{"$f":"K52-F50-F51-K50-K51","v":0}]

{"sheet":"Commitments_Obligations","index":16,"n_rows":116,"n_cols":16,"rows_kept":116,"cut":false,"hidden":false,"merged":[[101,8,101,9],[102,8,102,9],[110,8,110,9],[103,8,103,9],[111,8,111,9],[112,8,112,9],[113,8,113,9],[104,8,104,9],[105,8,105,9],[106,8,106,9],[107,8,107,9],[108,8,108,9],[109,8,109,9],[97,8,97,9],[98,8,98,9],[99,8,99,9],[100,8,100,9],[85,8,85,9],[86,8,86,9],[87,8,87,9],[88,8,88,9],[89,8,89,9],[90,8,90,9],[92,8,92,9],[93,8,93,9],[94,8,94,9],[95,8,95,9],[96,8,96,9],[91,8,91,9],[80,8,80,9],[81,8,81,9],[82,8,82,9],[83,8,83,9],[84,8,84,9],[66,8,66,9],[79,8,79,9],[68,8,68,9],[69,8,69,9],[70,8,70,9],[71,8,71,9],[72,8,72,9],[73,8,73,9],[74,8,74,9],[67,8,67,9],[75,8,75,9],[76,8,76,9],[77,8,77,9],[78,8,78,9],[3,13,3,15],[61,1,61,9],[61,10,61,12],[61,13,61,15],[65,8,65,9],[62,8,62,9],[63,8,63,9],[64,8,64,9],[3,1,3,9],[3,10,3,12]]}
[]
["Financial Commitments"]
[]
[null,"Principal Recipient",null,null,null,null,null,null,null,null,"For LFA Use Only ",null,null,"For the Global Fund Use Only"]
["#","Module ","Intervention","Activity Description","Cost input","Amount in Grant Currency","Delivery date","Expected Payment date ","Effective Payment date ","Comments","LFA Adjustments","As verified by LFA","Comments","CT Adjustments (incl. External Audit adjustments)","The Global Fund Validated Figures","Comments"]
[1,"Gestion de programme","Gestion des subventions","ordinateurs/laptop avec dockstation","9.1 Matériel informatiquee , ordinateurs, logiciel et applications",880.8,"10/05/18","31/05/18",null,null,null,{"$f":"F6+K6","v":880.8},null,null,{"$f":"L6+N6","v":880.8}]
[2,"Gestion de programme","Gestion des subventions","Mission de suivi","2.3 Indemnités journalières liés à la supervision/enquête/collecte de données/transport/autres coût",708.8,null,"31/05/18",null,null,null,708.8,null,null,708.8]
[3,"Gestion de programme","Gestion des subventions","PRE ALLOCATED BUDGET - Gestion des subventions","2.4 Indemnités journalières liés à la sensibilisation/ transport/réunion/ et autres coût",1704,null,"02/05/2018",null,null,null,1704,null,null,1704]
[4,"Systèmes de santé résilients et pérennes : système de gestion de l'information sanitaire et suivi et évaluation","Qualité du programme et des données","Organiser des réunions semestrielles d'évaluation du programme avec tous les intervenants  ","2.3 Indemnités journalières liés à la supervision/enquête/collecte de données/transport/autres coût",944.00134177381597,"30/06/2018",null,null,null,null,944.00134177381597,null,null,944.00134177381597]
[5,"Gestion de programme","Politiques, planification, coordination et gestion des programmes nationaux de lutte contre les maladies","Assurer le paiement des Salaire du personnel de l'unité de gestion au niveau du PNILP","1.1 Salaires - gestion du programme",49.976541623319669,"30/06/2018",null,null,null,null,49.976541623319669,null,null,49.976541623319669]
[6,"Systèmes de santé résilients et pérennes : système de gestion de l'information sanitaire et suivi et évaluation","Qualité du programme et des données","Encadrement des services de traitement communautaire iCCM dans les 30 DS les plus touchés par le paludisme avec un focus sur la disponibilités des intrants, des consommables au niveau des ASCs, la qualités de l'offre et l'organisation de services iCCM au niveau des GASC, au niveau des CDS, des BDS ","2.3 Indemnités journalières liés à la supervision/enquête/collecte de données/transport/autres coût",76.494706566305609,"30/06/2018",null,null,null,null,76.494706566305609,null,null,76.494706566305609]
[7,"Prise en charge","Prise en charge dans le secteur privé","  Effectuer la conception et prétest des spots radio de communication qui seront utilisés pour l'iCCM ","10.2 Spots et programmes télévisés/radiodiffusés",1591.0898965791569,"30/06/2018",null,null,null,null,1591.0898965791569,null,null,1591.0898965791569]
[8,"Gestion de programme","Gestion des subventions","Gestion des subventions","11.3 Recouvrement des coûts indirects (RCI) - axé sur le pourcentage",{"$f":"(SUM(F6:F12))*7%","v":416.86137405798183},null,null,null,null,null,416.86137405798183,null,null,416.86137405798183]
[9,null,null,null,null,null,null,null,null,null,null,0,null,null,0]
[10,null,null,null,null,null,null,null,null,null,null,0,null,null,0]
[11,null,null,null,null,null,null,null,null,null,null,0,null,null,0]
[12,null,null,null,null,null,null,null,null,null,null,0,null,null,0]
[13,null,null,null,null,null,null,null,null,null,null,0,null,null,0]
[14,null,null,null,null,null,null,null,null,null,null,0,null,null,0]
[15,null,null,null,null,null,null,null,null,null,null,0,null,null,0]
[16,null,null,null,null,null,null,null,null,null,null,0,null,null,0]
[17,null,null,null,null,null,null,null,null,null,null,0,null,null,0]
[18,null,null,null,null,null,null,null,null,null,null,0,null,null,0]
[19,null,null,null,null,null,null,null,null,null,null,0,null,null,0]
[20,null,null,null,null,null,null,null,null,null,null,0,null,null,0]
[21,null,null,null,null,null,null,null,null,null,null,0,null,null,0]
[22,null,null,null,null,null,null,null,null,null,null,0,null,null,0]
[23,null,null,null,null,null,null,null,null,null,null,0,null,null,0]
[24,null,null,null,null,null,null,null,null,null,null,0,null,null,0]
[25,null,null,null,null,null,null,null,null,null,null,0,null,null,0]
[26,null,null,null,null,null,null,null,null,null,null,0,null,null,0]
[27,null,null,null,null,null,null,null,null,null,null,0,null,null,0]
[28,null,null,null,null,null,null,null,null,null,null,0,null,null,0]
[29,null,null,null,null,null,null,null,null,null,null,0,null,null,0]
[30,null,null,null,null,null,null,null,null,null,null,0,null,null,0]
[31,null,null,null,null,null,null,null,null,null,null,0,null,null,0]
[32,null,null,null,null,null,null,null,null,null,null,0,null,null,0]
[33,null,null,null,null,null,null,null,null,null,null,{"$f":"F38+K38","v":0},null,null,{"$f":"L38+N38","v":0}]
[34,null,null,null,null,null,null,null,null,null,null,0,null,null,0]
[35,null,null,null,null,null,null,null,null,null,null,0,null,null,0]
[36,null,null,null,null,null,null,null,null,null,null,0,null,null,0]
[37,null,null,null,null,null,null,null,null,null,null,0,null,null,0]
[38,null,null,null,null,null,null,null,null,null,null,0,null,null,0]
[39,null,null,null,null,null,null,null,null,null,null,0,null,null,0]
[40,null,null,null,null,null,null,null,null,null,null,0,null,null,0]
[41,null,null,null,null,null,null,null,null,null,null,0,null,null,0]
[42,null,null,null,null,null,null,null,null,null,null,0,null,null,0]
[43,null,null,null,null,null,null,null,null,null,null,0,null,null,0]
[44,null,null,null,null,null,null,null,null,null,null,0,null,null,0]
[45,null,null,null,null,null,null,null,null,null,null,0,null,null,0]
[46,null,null,null,null,null,null,null,null,null,null,0,null,null,0]
[47,null,null,null,null,null,null,null,null,null,null,0,null,null,0]
[48,null,null,null,null,null,null,null,null,null,null,0,null,null,0]
[49,null,null,null,null,null,null,null,null,null,null,0,null,null,0]
[50,null,null,null,null,null,null,null,null,null,null,0,null,null,0]
[null,"Total",null,null,null,{"$f":"SUM(F6:F55)","v":6372.0238606005796},null,null,null,null,{"$f":"SUM(K6:K55)","v":0},{"$f":"SUM(L6:L55)","v":6372.0238606005796},null,{"$f":"SUM(N6:N55)","v":0},{"$f":"SUM(O6:O55)","v":6372.0238606005796}]
[]
[null,null,null,null,null,{"$f":"IF(AND(ROUND(F56,0)=ROUND('PR Cash Reconciliation_2A,B,C,D'!D42,0)),\"OK\",\"WARNING -Financial Commitments not matching\")","v":"WARNING -Financial Commitments not matching"},null,null,null,null,null,{"$f":"IF(AND(ROUND(L56,0)=ROUND('PR Cash Reconciliation_2A,B,C,D'!H42,0)),\"OK\",\"WARNING -Financial Commitments not matching\")","v":"WARNING -Financial Commitments not matching"}]
[]
["Financial Obligations"]
[]
[null,"Principal Recipient",null,null,null,null,null,null,null,null,"For LFA Use Only ",null,null,"For the Global Fund Use Only"]
["#","Module ","Intervention","Activity Description","Cost input","Amount in Grant Currency","Expected Delivery date","Expected Payment date ","Comments",null,"LFA Adjustments","As verified by LFA","Comments","CT Adjustments (incl. External Audit adjustments)","The Global Fund Validated Figures","Comments"]
[1,"Prise en charge","Prise en charge intégrée des cas au niveau communautaire","Aquérir des consommables pour chaque ASC en rapport avec l'iCCM pour un total de 1290 ASCs dans les 12 DS sous financement du FM","9.3 Autre équipement non sanitaire",15007.853456540808,"25/05/2018","31/08/2018",null,null,null,{"$f":"F64+K64","v":15007.853456540808},null,null,{"$f":"L64+N64","v":15007.853456540808}]
[2,"Prise en charge","Traitement en milieu hospitalier","Antipaludéens","4.3 Antipaludéens",170057.82,"09/07/2018","31/08/2018",null,null,null,170057.82,null,null,170057.82]
[3,"Prise en charge","Traitement en milieu hospitalier","CareStart Malaria Pf/Pv (HRP2/pLHD) Ag Combo RDT; kit/25 tests; prix par piece","5.4 Test de diagnostic rapide",255398,"01/11/2018","15/11/2018",null,null,null,255398,null,null,255398]
[4,"Prise en charge","Traitement en milieu hospitalier","Contribuer au paiement des coûts GAS ","7.1 coût d'agent et de manutention",29758.3,"09/07/2018",null,null,null,null,29758.3,null,null,29758.3]
[5,"Prise en charge","Traitement en milieu hospitalier","Contribuer au paiement des coûts de fret et d'assurance ","7.2 Coûts de fret et d’assurance (produits de santé)",9486.25,"09/07/2018",null,null,null,null,9486.25,null,null,9486.25]
[6,"Gestion de programme","Gestion des subventions","Assurer le paiement des Salaire du personnel de l'unité de gestion ","1.1 Salaires - gestion du programme",1099,"07/06/2018",null,null,null,null,1099,null,null,1099]
[7,"Gestion de programme","Gestion des subventions","Gestion des subventions","11.1 Coûts liés au bureaux",205.73109674143882,"30/04/2018","19/07/2018",null,null,null,205.73109674143882,null,null,205.73109674143882]
[8,"Gestion de programme","Gestion des subventions","Gestion des subventions","11.1 Coûts liés au bureaux",8975.3692711131062,"18/03/2019",null,null,null,null,8975.3692711131062,null,null,8975.3692711131062]
[9,"Gestion de programme","Gestion des subventions","PRE ALLOCATED BUDGET - Gestion des subventions","1.1 Salaires - gestion du programme",59.4,"01/06/2018",null,"PO to be closed",null,null,59.4,null,null,59.4]
[10,"Prise en charge","Prise en charge intégrée des cas au niveau communautaire","Aquérir des consommables pour chaque ASC en rapport avec l'iCCM pour un total de 1290 ASCs dans les 12 DS sous financement du FM","9.3 Autre équipement non sanitaire",66578.993533647474,"23/07/2018","31/08/2018",null,null,null,66578.993533647474,null,null,66578.993533647474]
[11,"Prise en charge","Prise en charge intégrée des cas au niveau communautaire","Aquérir des consommables pour chaque ASC en rapport avec l'iCCM pour un total de 1290 ASCs dans les 12 DS sous financement du FM","9.3 Autre équipement non sanitaire",5721.0974667219698,"09/07/2018","06/08/2018",null,null,null,5721.0974667219698,null,null,5721.0974667219698]
[12,"Gestion de programme","Gestion des subventions","Gestion des subventions","11.3 Recouvrement des coûts indirects (RCI) - axé sur le pourcentage",{"$f":"(SUM(F64:F74))*7%","v":39364.34703773354},null,null,null,null,null,39364.34703773354,null,null,39364.34703773354]
[13,"Gestion de programme","Gestion des subventions","Gestion des subventions","11.3 Recouvrement des coûts indirects (RCI) - axé sur le pourcentage",{"$f":"1142977.48*7%","v":80008.423600000009},null,null,null,null,null,80008.423600000009,null,null,80008.423600000009]
[14,null,null,null,null,null,null,null,null,null,null,0,null,null,0]
[15,null,null,null,null,null,null,null,null,null,null,0,null,null,0]
[16,null,null,null,null,null,null,null,null,null,null,0,null,null,0]
[17,null,null,null,null,null,null,null,null,null,null,0,null,null,0]
[18,null,null,null,null,null,null,null,null,null,null,0,null,null,0]
[19,null,null,null,null,null,null,null,null,null,null,0,null,null,0]
[20,null,null,null,null,null,null,null,null,null,null,0,null,null,0]
[21,null,null,null,null,null,null,null,null,null,null,0,null,null,0]
[22,null,null,null,null,null,null,null,null,null,null,0,null,null,0]
[23,null,null,null,null,null,null,null,null,null,null,0,null,null,0]
[24,null,null,null,null,null,null,null,null,null,null,0,null,null,0]
[25,null,null,null,null,null,null,null,null,null,null,0,null,null,0]
[26,null,null,null,null,null,null,null,null,null,null,0,null,null,0]
[27,null,null,null,null,null,null,null,null,null,null,0,null,null,0]
[28,null,null,null,null,null,null,null,null,null,null,0,null,null,0]
[29,null,null,null,null,null,null,null,null,null,null,0,null,null,0]
[30,null,null,null,null,null,null,null,null,null,null,0,null,null,0]
[31,null,null,null,null,null,null,null,null,null,null,0,null,null,0]
[32,null,null,null,null,null,null,null,null,null,null,0,null,null,0]
[33,null,null,null,null,null,null,null,null,null,null,{"$f":"F96+K96","v":0},null,null,{"$f":"L96+N96","v":0}]
[34,null,null,null,null,null,null,null,null,null,null,0,null,null,0]
[35,null,null,null,null,null,null,null,null,null,null,0,null,null,0]
[36,null,null,null,null,null,null,null,null,null,null,0,null,null,0]
[37,null,null,null,null,null,null,null,null,null,null,0,null,null,0]
[38,null,null,null,null,null,null,null,null,null,null,0,null,null,0]
[39,null,null,null,null,null,null,null,null,null,null,0,null,null,0]
[40,null,null,null,null,null,null,null,null,null,null,0,null,null,0]
[41,null,null,null,null,null,null,null,null,null,null,0,null,null,0]
[42,null,null,null,null,null,null,null,null,null,null,0,null,null,0]
[43,null,null,null,null,null,null,null,null,null,null,0,null,null,0]
[44,null,null,null,null,null,null,null,null,null,null,0,null,null,0]
[45,null,null,null,null,null,null,null,null,null,null,0,null,null,0]
[46,null,null,null,null,null,null,null,null,null,null,0,null,null,0]
[47,null,null,null,null,null,null,null,null,null,null,0,null,null,0]
[48,null,null,null,null,null,null,null,null,null,null,0,null,null,0]
[49,null,null,null,null,null,null,null,null,null,null,0,null,null,0]
[50,null,null,null,null,null,null,null,null,null,null,0,null,null,0]
[null,"Total",null,null,null,{"$f":"SUM(F64:F113)","v":681720.58546249836},null,null,null,null,{"$f":"SUM(K64:K113)","v":0},{"$f":"SUM(L64:L113)","v":681720.58546249836},null,{"$f":"SUM(N64:N113)","v":0},{"$f":"SUM(O64:O113)","v":681720.58546249836}]
[]
[null,null,null,null,null,{"$f":"IF(AND(ROUND(F114,0)=ROUND('PR Cash Reconciliation_2A,B,C,D'!D43,0)),\"OK\",\"WARNING -Financial Obligations not matching\")","v":"WARNING -Financial Obligations not matching"},null,null,null,null,null,{"$f":"IF(AND(ROUND(L114,0)=ROUND('PR Cash Reconciliation_2A,B,C,D'!H43,0)),\"OK\",\"WARNING -Financial Obligations not matching\")","v":"WARNING -Financial Obligations not matching"}]

{"sheet":"PR Cash Recon Import-Export","index":17,"n_rows":40,"n_cols":8,"rows_kept":40,"cut":false,"hidden":true,"merged":[]}
[]
[]
["Record ID","Item number","PR Cumulative","PR Current","PR Comment","LFA Cumulative","LFA Current Adjust","LFA Comment"]
["[Record ID]","[Item number]",{"$f":"IFERROR(INDEX('PR Cash Reconciliation_2A,B,C,D'!$C$7:$C$55,MATCH(B4,'PR Cash Reconciliation_2A,B,C,D'!$A$7:$A$55,0)),\"\")","v":""},{"$f":"IFERROR(INDEX('PR Cash Reconciliation_2A,B,C,D'!$D$7:$D$55,MATCH(B4,'PR Cash Reconciliation_2A,B,C,D'!$A$7:$A$55,0)),\"\")","v":""},{"$f":"IFERROR(IF(INDEX('PR Cash Reconciliation_2A,B,C,D'!$E$7:$E$55,MATCH(B4,'PR Cash Reconciliation_2A,B,C,D'!$A$7:$A$55,0))=0,\"\",INDEX('PR Cash Reconciliation_2A,B,C,D'!$E$7:$E$55,MATCH(B4,'PR Cash Reconciliation_2A,B,C,D'!$A$7:$A$55,0))),\"\")","v":""},{"$f":"IFERROR(INDEX('PR Cash Reconciliation_2A,B,C,D'!$F$7:$F$55,MATCH(B4,'PR Cash Reconciliation_2A,B,C,D'!$A$7:$A$55,0)),\"\")","v":""},{"$f":"IFERROR(INDEX('PR Cash Reconciliation_2A,B,C,D'!$G$7:$G$55,MATCH(B4,'PR Cash Reconciliation_2A,B,C,D'!$A$7:$A$55,0)),\"\")","v":""},{"$f":"IFERROR(IF(INDEX('PR Cash Reconciliation_2A,B,C,D'!$I$7:$I$55,MATCH(B4,'PR Cash Reconciliation_2A,B,C,D'!$A$7:$A$55,0))=0,\"\",INDEX('PR Cash Reconciliation_2A,B,C,D'!$I$7:$I$55,MATCH(B4,'PR Cash Reconciliation_2A,B,C,D'!$A$7:$A$55,0))),\"\")","v":""}]
["a4836000000gbUtAAI","1.1",{"$f":"IFERROR(INDEX('PR Cash Reconciliation_2A,B,C,D'!$C$7:$C$55,MATCH(B5,'PR Cash Reconciliation_2A,B,C,D'!$A$7:$A$55,0)),\"\")","v":0},{"$f":"IFERROR(INDEX('PR Cash Reconciliation_2A,B,C,D'!$D$7:$D$55,MATCH(B5,'PR Cash Reconciliation_2A,B,C,D'!$A$7:$A$55,0)),\"\")","v":0},{"$f":"IFERROR(IF(INDEX('PR Cash Reconciliation_2A,B,C,D'!$E$7:$E$55,MATCH(B5,'PR Cash Reconciliation_2A,B,C,D'!$A$7:$A$55,0))=0,\"\",INDEX('PR Cash Reconciliation_2A,B,C,D'!$E$7:$E$55,MATCH(B5,'PR Cash Reconciliation_2A,B,C,D'!$A$7:$A$55,0))),\"\")","v":""},{"$f":"IFERROR(INDEX('PR Cash Reconciliation_2A,B,C,D'!$F$7:$F$55,MATCH(B5,'PR Cash Reconciliation_2A,B,C,D'!$A$7:$A$55,0)),\"\")","v":0},{"$f":"IFERROR(INDEX('PR Cash Reconciliation_2A,B,C,D'!$G$7:$G$55,MATCH(B5,'PR Cash Reconciliation_2A,B,C,D'!$A$7:$A$55,0)),\"\")","v":0},{"$f":"IFERROR(IF(INDEX('PR Cash Reconciliation_2A,B,C,D'!$I$7:$I$55,MATCH(B5,'PR Cash Reconciliation_2A,B,C,D'!$A$7:$A$55,0))=0,\"\",INDEX('PR Cash Reconciliation_2A,B,C,D'!$I$7:$I$55,MATCH(B5,'PR Cash Reconciliation_2A,B,C,D'!$A$7:$A$55,0))),\"\")","v":""}]
["a4836000000gbUuAAI","2.1",{"$f":"IFERROR(INDEX('PR Cash Reconciliation_2A,B,C,D'!$C$7:$C$55,MATCH(B6,'PR Cash Reconciliation_2A,B,C,D'!$A$7:$A$55,0)),\"\")","v":0},{"$f":"IFERROR(INDEX('PR Cash Reconciliation_2A,B,C,D'!$D$7:$D$55,MATCH(B6,'PR Cash Reconciliation_2A,B,C,D'!$A$7:$A$55,0)),\"\")","v":0},{"$f":"IFERROR(IF(INDEX('PR Cash Reconciliation_2A,B,C,D'!$E$7:$E$55,MATCH(B6,'PR Cash Reconciliation_2A,B,C,D'!$A$7:$A$55,0))=0,\"\",INDEX('PR Cash Reconciliation_2A,B,C,D'!$E$7:$E$55,MATCH(B6,'PR Cash Reconciliation_2A,B,C,D'!$A$7:$A$55,0))),\"\")","v":""},{"$f":"IFERROR(INDEX('PR Cash Reconciliation_2A,B,C,D'!$F$7:$F$55,MATCH(B6,'PR Cash Reconciliation_2A,B,C,D'!$A$7:$A$55,0)),\"\")","v":0},{"$f":"IFERROR(INDEX('PR Cash Reconciliation_2A,B,C,D'!$G$7:$G$55,MATCH(B6,'PR Cash Reconciliation_2A,B,C,D'!$A$7:$A$55,0)),\"\")","v":0},{"$f":"IFERROR(IF(INDEX('PR Cash Reconciliation_2A,B,C,D'!$I$7:$I$55,MATCH(B6,'PR Cash Reconciliation_2A,B,C,D'!$A$7:$A$55,0))=0,\"\",INDEX('PR Cash Reconciliation_2A,B,C,D'!$I$7:$I$55,MATCH(B6,'PR Cash Reconciliation_2A,B,C,D'!$A$7:$A$55,0))),\"\")","v":""}]
["a4836000000gbUvAAI","2.2",{"$f":"IFERROR(INDEX('PR Cash Reconciliation_2A,B,C,D'!$C$7:$C$55,MATCH(B7,'PR Cash Reconciliation_2A,B,C,D'!$A$7:$A$55,0)),\"\")","v":0},{"$f":"IFERROR(INDEX('PR Cash Reconciliation_2A,B,C,D'!$D$7:$D$55,MATCH(B7,'PR Cash Reconciliation_2A,B,C,D'!$A$7:$A$55,0)),\"\")","v":0},{"$f":"IFERROR(IF(INDEX('PR Cash Reconciliation_2A,B,C,D'!$E$7:$E$55,MATCH(B7,'PR Cash Reconciliation_2A,B,C,D'!$A$7:$A$55,0))=0,\"\",INDEX('PR Cash Reconciliation_2A,B,C,D'!$E$7:$E$55,MATCH(B7,'PR Cash Reconciliation_2A,B,C,D'!$A$7:$A$55,0))),\"\")","v":""},{"$f":"IFERROR(INDEX('PR Cash Reconciliation_2A,B,C,D'!$F$7:$F$55,MATCH(B7,'PR Cash Reconciliation_2A,B,C,D'!$A$7:$A$55,0)),\"\")","v":0},{"$f":"IFERROR(INDEX('PR Cash Reconciliation_2A,B,C,D'!$G$7:$G$55,MATCH(B7,'PR Cash Reconciliation_2A,B,C,D'!$A$7:$A$55,0)),\"\")","v":0},{"$f":"IFERROR(IF(INDEX('PR Cash Reconciliation_2A,B,C,D'!$I$7:$I$55,MATCH(B7,'PR Cash Reconciliation_2A,B,C,D'!$A$7:$A$55,0))=0,\"\",INDEX('PR Cash Reconciliation_2A,B,C,D'!$I$7:$I$55,MATCH(B7,'PR Cash Reconciliation_2A,B,C,D'!$A$7:$A$55,0))),\"\")","v":""}]
["a4836000000gbUwAAI","2.3",{"$f":"IFERROR(INDEX('PR Cash Reconciliation_2A,B,C,D'!$C$7:$C$55,MATCH(B8,'PR Cash Reconciliation_2A,B,C,D'!$A$7:$A$55,0)),\"\")","v":0},{"$f":"IFERROR(INDEX('PR Cash Reconciliation_2A,B,C,D'!$D$7:$D$55,MATCH(B8,'PR Cash Reconciliation_2A,B,C,D'!$A$7:$A$55,0)),\"\")","v":0},{"$f":"IFERROR(IF(INDEX('PR Cash Reconciliation_2A,B,C,D'!$E$7:$E$55,MATCH(B8,'PR Cash Reconciliation_2A,B,C,D'!$A$7:$A$55,0))=0,\"\",INDEX('PR Cash Reconciliation_2A,B,C,D'!$E$7:$E$55,MATCH(B8,'PR Cash Reconciliation_2A,B,C,D'!$A$7:$A$55,0))),\"\")","v":""},{"$f":"IFERROR(INDEX('PR Cash Reconciliation_2A,B,C,D'!$F$7:$F$55,MATCH(B8,'PR Cash Reconciliation_2A,B,C,D'!$A$7:$A$55,0)),\"\")","v":0},{"$f":"IFERROR(INDEX('PR Cash Reconciliation_2A,B,C,D'!$G$7:$G$55,MATCH(B8,'PR Cash Reconciliation_2A,B,C,D'!$A$7:$A$55,0)),\"\")","v":0},{"$f":"IFERROR(IF(INDEX('PR Cash Reconciliation_2A,B,C,D'!$I$7:$I$55,MATCH(B8,'PR Cash Reconciliation_2A,B,C,D'!$A$7:$A$55,0))=0,\"\",INDEX('PR Cash Reconciliation_2A,B,C,D'!$I$7:$I$55,MATCH(B8,'PR Cash Reconciliation_2A,B,C,D'!$A$7:$A$55,0))),\"\")","v":""}]
["a4836000000gbUxAAI","2.4",{"$f":"IFERROR(INDEX('PR Cash Reconciliation_2A,B,C,D'!$C$7:$C$55,MATCH(B9,'PR Cash Reconciliation_2A,B,C,D'!$A$7:$A$55,0)),\"\")","v":0},{"$f":"IFERROR(INDEX('PR Cash Reconciliation_2A,B,C,D'!$D$7:$D$55,MATCH(B9,'PR Cash Reconciliation_2A,B,C,D'!$A$7:$A$55,0)),\"\")","v":0},{"$f":"IFERROR(IF(INDEX('PR Cash Reconciliation_2A,B,C,D'!$E$7:$E$55,MATCH(B9,'PR Cash Reconciliation_2A,B,C,D'!$A$7:$A$55,0))=0,\"\",INDEX('PR Cash Reconciliation_2A,B,C,D'!$E$7:$E$55,MATCH(B9,'PR Cash Reconciliation_2A,B,C,D'!$A$7:$A$55,0))),\"\")","v":""},{"$f":"IFERROR(INDEX('PR Cash Reconciliation_2A,B,C,D'!$F$7:$F$55,MATCH(B9,'PR Cash Reconciliation_2A,B,C,D'!$A$7:$A$55,0)),\"\")","v":0},{"$f":"IFERROR(INDEX('PR Cash Reconciliation_2A,B,C,D'!$G$7:$G$55,MATCH(B9,'PR Cash Reconciliation_2A,B,C,D'!$A$7:$A$55,0)),\"\")","v":0},{"$f":"IFERROR(IF(INDEX('PR Cash Reconciliation_2A,B,C,D'!$I$7:$I$55,MATCH(B9,'PR Cash Reconciliation_2A,B,C,D'!$A$7:$A$55,0))=0,\"\",INDEX('PR Cash Reconciliation_2A,B,C,D'!$I$7:$I$55,MATCH(B9,'PR Cash Reconciliation_2A,B,C,D'!$A$7:$A$55,0))),\"\")","v":""}]
["a4836000000gbUyAAI","2.5",{"$f":"IFERROR(INDEX('PR Cash Reconciliation_2A,B,C,D'!$C$7:$C$55,MATCH(B10,'PR Cash Reconciliation_2A,B,C,D'!$A$7:$A$55,0)),\"\")","v":0},{"$f":"IFERROR(INDEX('PR Cash Reconciliation_2A,B,C,D'!$D$7:$D$55,MATCH(B10,'PR Cash Reconciliation_2A,B,C,D'!$A$7:$A$55,0)),\"\")","v":0},{"$f":"IFERROR(IF(INDEX('PR Cash Reconciliation_2A,B,C,D'!$E$7:$E$55,MATCH(B10,'PR Cash Reconciliation_2A,B,C,D'!$A$7:$A$55,0))=0,\"\",INDEX('PR Cash Reconciliation_2A,B,C,D'!$E$7:$E$55,MATCH(B10,'PR Cash Reconciliation_2A,B,C,D'!$A$7:$A$55,0))),\"\")","v":""},{"$f":"IFERROR(INDEX('PR Cash Reconciliation_2A,B,C,D'!$F$7:$F$55,MATCH(B10,'PR Cash Reconciliation_2A,B,C,D'!$A$7:$A$55,0)),\"\")","v":0},{"$f":"IFERROR(INDEX('PR Cash Reconciliation_2A,B,C,D'!$G$7:$G$55,MATCH(B10,'PR Cash Reconciliation_2A,B,C,D'!$A$7:$A$55,0)),\"\")","v":0},{"$f":"IFERROR(IF(INDEX('PR Cash Reconciliation_2A,B,C,D'!$I$7:$I$55,MATCH(B10,'PR Cash Reconciliation_2A,B,C,D'!$A$7:$A$55,0))=0,\"\",INDEX('PR Cash Reconciliation_2A,B,C,D'!$I$7:$I$55,MATCH(B10,'PR Cash Reconciliation_2A,B,C,D'!$A$7:$A$55,0))),\"\")","v":""}]
["a4836000000gbUzAAI","2.6",{"$f":"IFERROR(INDEX('PR Cash Reconciliation_2A,B,C,D'!$C$7:$C$55,MATCH(B11,'PR Cash Reconciliation_2A,B,C,D'!$A$7:$A$55,0)),\"\")","v":0},{"$f":"IFERROR(INDEX('PR Cash Reconciliation_2A,B,C,D'!$D$7:$D$55,MATCH(B11,'PR Cash Reconciliation_2A,B,C,D'!$A$7:$A$55,0)),\"\")","v":0},{"$f":"IFERROR(IF(INDEX('PR Cash Reconciliation_2A,B,C,D'!$E$7:$E$55,MATCH(B11,'PR Cash Reconciliation_2A,B,C,D'!$A$7:$A$55,0))=0,\"\",INDEX('PR Cash Reconciliation_2A,B,C,D'!$E$7:$E$55,MATCH(B11,'PR Cash Reconciliation_2A,B,C,D'!$A$7:$A$55,0))),\"\")","v":""},{"$f":"IFERROR(INDEX('PR Cash Reconciliation_2A,B,C,D'!$F$7:$F$55,MATCH(B11,'PR Cash Reconciliation_2A,B,C,D'!$A$7:$A$55,0)),\"\")","v":0},{"$f":"IFERROR(INDEX('PR Cash Reconciliation_2A,B,C,D'!$G$7:$G$55,MATCH(B11,'PR Cash Reconciliation_2A,B,C,D'!$A$7:$A$55,0)),\"\")","v":0},{"$f":"IFERROR(IF(INDEX('PR Cash Reconciliation_2A,B,C,D'!$I$7:$I$55,MATCH(B11,'PR Cash Reconciliation_2A,B,C,D'!$A$7:$A$55,0))=0,\"\",INDEX('PR Cash Reconciliation_2A,B,C,D'!$I$7:$I$55,MATCH(B11,'PR Cash Reconciliation_2A,B,C,D'!$A$7:$A$55,0))),\"\")","v":""}]
["a4836000000gbV0AAI","3.1",{"$f":"IFERROR(INDEX('PR Cash Reconciliation_2A,B,C,D'!$C$7:$C$55,MATCH(B12,'PR Cash Reconciliation_2A,B,C,D'!$A$7:$A$55,0)),\"\")","v":0},{"$f":"IFERROR(INDEX('PR Cash Reconciliation_2A,B,C,D'!$D$7:$D$55,MATCH(B12,'PR Cash Reconciliation_2A,B,C,D'!$A$7:$A$55,0)),\"\")","v":0},{"$f":"IFERROR(IF(INDEX('PR Cash Reconciliation_2A,B,C,D'!$E$7:$E$55,MATCH(B12,'PR Cash Reconciliation_2A,B,C,D'!$A$7:$A$55,0))=0,\"\",INDEX('PR Cash Reconciliation_2A,B,C,D'!$E$7:$E$55,MATCH(B12,'PR Cash Reconciliation_2A,B,C,D'!$A$7:$A$55,0))),\"\")","v":""},{"$f":"IFERROR(INDEX('PR Cash Reconciliation_2A,B,C,D'!$F$7:$F$55,MATCH(B12,'PR Cash Reconciliation_2A,B,C,D'!$A$7:$A$55,0)),\"\")","v":0},{"$f":"IFERROR(INDEX('PR Cash Reconciliation_2A,B,C,D'!$G$7:$G$55,MATCH(B12,'PR Cash Reconciliation_2A,B,C,D'!$A$7:$A$55,0)),\"\")","v":0},{"$f":"IFERROR(IF(INDEX('PR Cash Reconciliation_2A,B,C,D'!$I$7:$I$55,MATCH(B12,'PR Cash Reconciliation_2A,B,C,D'!$A$7:$A$55,0))=0,\"\",INDEX('PR Cash Reconciliation_2A,B,C,D'!$I$7:$I$55,MATCH(B12,'PR Cash Reconciliation_2A,B,C,D'!$A$7:$A$55,0))),\"\")","v":""}]
["a4836000000gbV1AAI","3.2",{"$f":"IFERROR(INDEX('PR Cash Reconciliation_2A,B,C,D'!$C$7:$C$55,MATCH(B13,'PR Cash Reconciliation_2A,B,C,D'!$A$7:$A$55,0)),\"\")","v":0},{"$f":"IFERROR(INDEX('PR Cash Reconciliation_2A,B,C,D'!$D$7:$D$55,MATCH(B13,'PR Cash Reconciliation_2A,B,C,D'!$A$7:$A$55,0)),\"\")","v":0},{"$f":"IFERROR(IF(INDEX('PR Cash Reconciliation_2A,B,C,D'!$E$7:$E$55,MATCH(B13,'PR Cash Reconciliation_2A,B,C,D'!$A$7:$A$55,0))=0,\"\",INDEX('PR Cash Reconciliation_2A,B,C,D'!$E$7:$E$55,MATCH(B13,'PR Cash Reconciliation_2A,B,C,D'!$A$7:$A$55,0))),\"\")","v":""},{"$f":"IFERROR(INDEX('PR Cash Reconciliation_2A,B,C,D'!$F$7:$F$55,MATCH(B13,'PR Cash Reconciliation_2A,B,C,D'!$A$7:$A$55,0)),\"\")","v":0},{"$f":"IFERROR(INDEX('PR Cash Reconciliation_2A,B,C,D'!$G$7:$G$55,MATCH(B13,'PR Cash Reconciliation_2A,B,C,D'!$A$7:$A$55,0)),\"\")","v":0},{"$f":"IFERROR(IF(INDEX('PR Cash Reconciliation_2A,B,C,D'!$I$7:$I$55,MATCH(B13,'PR Cash Reconciliation_2A,B,C,D'!$A$7:$A$55,0))=0,\"\",INDEX('PR Cash Reconciliation_2A,B,C,D'!$I$7:$I$55,MATCH(B13,'PR Cash Reconciliation_2A,B,C,D'!$A$7:$A$55,0))),\"\")","v":""}]
["a4836000000gbV2AAI","3.3",{"$f":"IFERROR(INDEX('PR Cash Reconciliation_2A,B,C,D'!$C$7:$C$55,MATCH(B14,'PR Cash Reconciliation_2A,B,C,D'!$A$7:$A$55,0)),\"\")","v":0},{"$f":"IFERROR(INDEX('PR Cash Reconciliation_2A,B,C,D'!$D$7:$D$55,MATCH(B14,'PR Cash Reconciliation_2A,B,C,D'!$A$7:$A$55,0)),\"\")","v":0},{"$f":"IFERROR(IF(INDEX('PR Cash Reconciliation_2A,B,C,D'!$E$7:$E$55,MATCH(B14,'PR Cash Reconciliation_2A,B,C,D'!$A$7:$A$55,0))=0,\"\",INDEX('PR Cash Reconciliation_2A,B,C,D'!$E$7:$E$55,MATCH(B14,'PR Cash Reconciliation_2A,B,C,D'!$A$7:$A$55,0))),\"\")","v":""},{"$f":"IFERROR(INDEX('PR Cash Reconciliation_2A,B,C,D'!$F$7:$F$55,MATCH(B14,'PR Cash Reconciliation_2A,B,C,D'!$A$7:$A$55,0)),\"\")","v":0},{"$f":"IFERROR(INDEX('PR Cash Reconciliation_2A,B,C,D'!$G$7:$G$55,MATCH(B14,'PR Cash Reconciliation_2A,B,C,D'!$A$7:$A$55,0)),\"\")","v":0},{"$f":"IFERROR(IF(INDEX('PR Cash Reconciliation_2A,B,C,D'!$I$7:$I$55,MATCH(B14,'PR Cash Reconciliation_2A,B,C,D'!$A$7:$A$55,0))=0,\"\",INDEX('PR Cash Reconciliation_2A,B,C,D'!$I$7:$I$55,MATCH(B14,'PR Cash Reconciliation_2A,B,C,D'!$A$7:$A$55,0))),\"\")","v":""}]
["a4836000000gbV3AAI","3.4",{"$f":"IFERROR(INDEX('PR Cash Reconciliation_2A,B,C,D'!$C$7:$C$55,MATCH(B15,'PR Cash Reconciliation_2A,B,C,D'!$A$7:$A$55,0)),\"\")","v":0},{"$f":"IFERROR(INDEX('PR Cash Reconciliation_2A,B,C,D'!$D$7:$D$55,MATCH(B15,'PR Cash Reconciliation_2A,B,C,D'!$A$7:$A$55,0)),\"\")","v":0},{"$f":"IFERROR(IF(INDEX('PR Cash Reconciliation_2A,B,C,D'!$E$7:$E$55,MATCH(B15,'PR Cash Reconciliation_2A,B,C,D'!$A$7:$A$55,0))=0,\"\",INDEX('PR Cash Reconciliation_2A,B,C,D'!$E$7:$E$55,MATCH(B15,'PR Cash Reconciliation_2A,B,C,D'!$A$7:$A$55,0))),\"\")","v":""},{"$f":"IFERROR(INDEX('PR Cash Reconciliation_2A,B,C,D'!$F$7:$F$55,MATCH(B15,'PR Cash Reconciliation_2A,B,C,D'!$A$7:$A$55,0)),\"\")","v":0},{"$f":"IFERROR(INDEX('PR Cash Reconciliation_2A,B,C,D'!$G$7:$G$55,MATCH(B15,'PR Cash Reconciliation_2A,B,C,D'!$A$7:$A$55,0)),\"\")","v":0},{"$f":"IFERROR(IF(INDEX('PR Cash Reconciliation_2A,B,C,D'!$I$7:$I$55,MATCH(B15,'PR Cash Reconciliation_2A,B,C,D'!$A$7:$A$55,0))=0,\"\",INDEX('PR Cash Reconciliation_2A,B,C,D'!$I$7:$I$55,MATCH(B15,'PR Cash Reconciliation_2A,B,C,D'!$A$7:$A$55,0))),\"\")","v":""}]
["a4836000000gbV4AAI","3.5",{"$f":"IFERROR(INDEX('PR Cash Reconciliation_2A,B,C,D'!$C$7:$C$55,MATCH(B16,'PR Cash Reconciliation_2A,B,C,D'!$A$7:$A$55,0)),\"\")","v":0},{"$f":"IFERROR(INDEX('PR Cash Reconciliation_2A,B,C,D'!$D$7:$D$55,MATCH(B16,'PR Cash Reconciliation_2A,B,C,D'!$A$7:$A$55,0)),\"\")","v":0},{"$f":"IFERROR(IF(INDEX('PR Cash Reconciliation_2A,B,C,D'!$E$7:$E$55,MATCH(B16,'PR Cash Reconciliation_2A,B,C,D'!$A$7:$A$55,0))=0,\"\",INDEX('PR Cash Reconciliation_2A,B,C,D'!$E$7:$E$55,MATCH(B16,'PR Cash Reconciliation_2A,B,C,D'!$A$7:$A$55,0))),\"\")","v":""},{"$f":"IFERROR(INDEX('PR Cash Reconciliation_2A,B,C,D'!$F$7:$F$55,MATCH(B16,'PR Cash Reconciliation_2A,B,C,D'!$A$7:$A$55,0)),\"\")","v":0},{"$f":"IFERROR(INDEX('PR Cash Reconciliation_2A,B,C,D'!$G$7:$G$55,MATCH(B16,'PR Cash Reconciliation_2A,B,C,D'!$A$7:$A$55,0)),\"\")","v":0},{"$f":"IFERROR(IF(INDEX('PR Cash Reconciliation_2A,B,C,D'!$I$7:$I$55,MATCH(B16,'PR Cash Reconciliation_2A,B,C,D'!$A$7:$A$55,0))=0,\"\",INDEX('PR Cash Reconciliation_2A,B,C,D'!$I$7:$I$55,MATCH(B16,'PR Cash Reconciliation_2A,B,C,D'!$A$7:$A$55,0))),\"\")","v":""}]
["a4836000000gbV5AAI","4.1",{"$f":"IFERROR(INDEX('PR Cash Reconciliation_2A,B,C,D'!$C$7:$C$55,MATCH(B17,'PR Cash Reconciliation_2A,B,C,D'!$A$7:$A$55,0)),\"\")","v":0},{"$f":"IFERROR(INDEX('PR Cash Reconciliation_2A,B,C,D'!$D$7:$D$55,MATCH(B17,'PR Cash Reconciliation_2A,B,C,D'!$A$7:$A$55,0)),\"\")","v":0},{"$f":"IFERROR(IF(INDEX('PR Cash Reconciliation_2A,B,C,D'!$E$7:$E$55,MATCH(B17,'PR Cash Reconciliation_2A,B,C,D'!$A$7:$A$55,0))=0,\"\",INDEX('PR Cash Reconciliation_2A,B,C,D'!$E$7:$E$55,MATCH(B17,'PR Cash Reconciliation_2A,B,C,D'!$A$7:$A$55,0))),\"\")","v":""},{"$f":"IFERROR(INDEX('PR Cash Reconciliation_2A,B,C,D'!$F$7:$F$55,MATCH(B17,'PR Cash Reconciliation_2A,B,C,D'!$A$7:$A$55,0)),\"\")","v":0},{"$f":"IFERROR(INDEX('PR Cash Reconciliation_2A,B,C,D'!$G$7:$G$55,MATCH(B17,'PR Cash Reconciliation_2A,B,C,D'!$A$7:$A$55,0)),\"\")","v":0},{"$f":"IFERROR(IF(INDEX('PR Cash Reconciliation_2A,B,C,D'!$I$7:$I$55,MATCH(B17,'PR Cash Reconciliation_2A,B,C,D'!$A$7:$A$55,0))=0,\"\",INDEX('PR Cash Reconciliation_2A,B,C,D'!$I$7:$I$55,MATCH(B17,'PR Cash Reconciliation_2A,B,C,D'!$A$7:$A$55,0))),\"\")","v":""}]
["a4836000000gbV6AAI","4.2",{"$f":"IFERROR(INDEX('PR Cash Reconciliation_2A,B,C,D'!$C$7:$C$55,MATCH(B18,'PR Cash Reconciliation_2A,B,C,D'!$A$7:$A$55,0)),\"\")","v":0},{"$f":"IFERROR(INDEX('PR Cash Reconciliation_2A,B,C,D'!$D$7:$D$55,MATCH(B18,'PR Cash Reconciliation_2A,B,C,D'!$A$7:$A$55,0)),\"\")","v":0},{"$f":"IFERROR(IF(INDEX('PR Cash Reconciliation_2A,B,C,D'!$E$7:$E$55,MATCH(B18,'PR Cash Reconciliation_2A,B,C,D'!$A$7:$A$55,0))=0,\"\",INDEX('PR Cash Reconciliation_2A,B,C,D'!$E$7:$E$55,MATCH(B18,'PR Cash Reconciliation_2A,B,C,D'!$A$7:$A$55,0))),\"\")","v":""},{"$f":"IFERROR(INDEX('PR Cash Reconciliation_2A,B,C,D'!$F$7:$F$55,MATCH(B18,'PR Cash Reconciliation_2A,B,C,D'!$A$7:$A$55,0)),\"\")","v":0},{"$f":"IFERROR(INDEX('PR Cash Reconciliation_2A,B,C,D'!$G$7:$G$55,MATCH(B18,'PR Cash Reconciliation_2A,B,C,D'!$A$7:$A$55,0)),\"\")","v":0},{"$f":"IFERROR(IF(INDEX('PR Cash Reconciliation_2A,B,C,D'!$I$7:$I$55,MATCH(B18,'PR Cash Reconciliation_2A,B,C,D'!$A$7:$A$55,0))=0,\"\",INDEX('PR Cash Reconciliation_2A,B,C,D'!$I$7:$I$55,MATCH(B18,'PR Cash Reconciliation_2A,B,C,D'!$A$7:$A$55,0))),\"\")","v":""}]
["a4836000000gbV7AAI","4.3",{"$f":"IFERROR(INDEX('PR Cash Reconciliation_2A,B,C,D'!$C$7:$C$55,MATCH(B19,'PR Cash Reconciliation_2A,B,C,D'!$A$7:$A$55,0)),\"\")","v":0},{"$f":"IFERROR(INDEX('PR Cash Reconciliation_2A,B,C,D'!$D$7:$D$55,MATCH(B19,'PR Cash Reconciliation_2A,B,C,D'!$A$7:$A$55,0)),\"\")","v":0},{"$f":"IFERROR(IF(INDEX('PR Cash Reconciliation_2A,B,C,D'!$E$7:$E$55,MATCH(B19,'PR Cash Reconciliation_2A,B,C,D'!$A$7:$A$55,0))=0,\"\",INDEX('PR Cash Reconciliation_2A,B,C,D'!$E$7:$E$55,MATCH(B19,'PR Cash Reconciliation_2A,B,C,D'!$A$7:$A$55,0))),\"\")","v":""},{"$f":"IFERROR(INDEX('PR Cash Reconciliation_2A,B,C,D'!$F$7:$F$55,MATCH(B19,'PR Cash Reconciliation_2A,B,C,D'!$A$7:$A$55,0)),\"\")","v":0},{"$f":"IFERROR(INDEX('PR Cash Reconciliation_2A,B,C,D'!$G$7:$G$55,MATCH(B19,'PR Cash Reconciliation_2A,B,C,D'!$A$7:$A$55,0)),\"\")","v":0},{"$f":"IFERROR(IF(INDEX('PR Cash Reconciliation_2A,B,C,D'!$I$7:$I$55,MATCH(B19,'PR Cash Reconciliation_2A,B,C,D'!$A$7:$A$55,0))=0,\"\",INDEX('PR Cash Reconciliation_2A,B,C,D'!$I$7:$I$55,MATCH(B19,'PR Cash Reconciliation_2A,B,C,D'!$A$7:$A$55,0))),\"\")","v":""}]
["a4836000000gbV8AAI","4.4",{"$f":"IFERROR(INDEX('PR Cash Reconciliation_2A,B,C,D'!$C$7:$C$55,MATCH(B20,'PR Cash Reconciliation_2A,B,C,D'!$A$7:$A$55,0)),\"\")","v":0},{"$f":"IFERROR(INDEX('PR Cash Reconciliation_2A,B,C,D'!$D$7:$D$55,MATCH(B20,'PR Cash Reconciliation_2A,B,C,D'!$A$7:$A$55,0)),\"\")","v":0},{"$f":"IFERROR(IF(INDEX('PR Cash Reconciliation_2A,B,C,D'!$E$7:$E$55,MATCH(B20,'PR Cash Reconciliation_2A,B,C,D'!$A$7:$A$55,0))=0,\"\",INDEX('PR Cash Reconciliation_2A,B,C,D'!$E$7:$E$55,MATCH(B20,'PR Cash Reconciliation_2A,B,C,D'!$A$7:$A$55,0))),\"\")","v":""},{"$f":"IFERROR(INDEX('PR Cash Reconciliation_2A,B,C,D'!$F$7:$F$55,MATCH(B20,'PR Cash Reconciliation_2A,B,C,D'!$A$7:$A$55,0)),\"\")","v":0},{"$f":"IFERROR(INDEX('PR Cash Reconciliation_2A,B,C,D'!$G$7:$G$55,MATCH(B20,'PR Cash Reconciliation_2A,B,C,D'!$A$7:$A$55,0)),\"\")","v":0},{"$f":"IFERROR(IF(INDEX('PR Cash Reconciliation_2A,B,C,D'!$I$7:$I$55,MATCH(B20,'PR Cash Reconciliation_2A,B,C,D'!$A$7:$A$55,0))=0,\"\",INDEX('PR Cash Reconciliation_2A,B,C,D'!$I$7:$I$55,MATCH(B20,'PR Cash Reconciliation_2A,B,C,D'!$A$7:$A$55,0))),\"\")","v":""}]
["a4836000000gbV9AAI","4.5",{"$f":"IFERROR(INDEX('PR Cash Reconciliation_2A,B,C,D'!$C$7:$C$55,MATCH(B21,'PR Cash Reconciliation_2A,B,C,D'!$A$7:$A$55,0)),\"\")","v":0},{"$f":"IFERROR(INDEX('PR Cash Reconciliation_2A,B,C,D'!$D$7:$D$55,MATCH(B21,'PR Cash Reconciliation_2A,B,C,D'!$A$7:$A$55,0)),\"\")","v":0},{"$f":"IFERROR(IF(INDEX('PR Cash Reconciliation_2A,B,C,D'!$E$7:$E$55,MATCH(B21,'PR Cash Reconciliation_2A,B,C,D'!$A$7:$A$55,0))=0,\"\",INDEX('PR Cash Reconciliation_2A,B,C,D'!$E$7:$E$55,MATCH(B21,'PR Cash Reconciliation_2A,B,C,D'!$A$7:$A$55,0))),\"\")","v":""},{"$f":"IFERROR(INDEX('PR Cash Reconciliation_2A,B,C,D'!$F$7:$F$55,MATCH(B21,'PR Cash Reconciliation_2A,B,C,D'!$A$7:$A$55,0)),\"\")","v":0},{"$f":"IFERROR(INDEX('PR Cash Reconciliation_2A,B,C,D'!$G$7:$G$55,MATCH(B21,'PR Cash Reconciliation_2A,B,C,D'!$A$7:$A$55,0)),\"\")","v":0},{"$f":"IFERROR(IF(INDEX('PR Cash Reconciliation_2A,B,C,D'!$I$7:$I$55,MATCH(B21,'PR Cash Reconciliation_2A,B,C,D'!$A$7:$A$55,0))=0,\"\",INDEX('PR Cash Reconciliation_2A,B,C,D'!$I$7:$I$55,MATCH(B21,'PR Cash Reconciliation_2A,B,C,D'!$A$7:$A$55,0))),\"\")","v":""}]
["a4836000000gbVAAAY","5.1",{"$f":"IFERROR(INDEX('PR Cash Reconciliation_2A,B,C,D'!$C$7:$C$55,MATCH(B22,'PR Cash Reconciliation_2A,B,C,D'!$A$7:$A$55,0)),\"\")","v":0},{"$f":"IFERROR(INDEX('PR Cash Reconciliation_2A,B,C,D'!$D$7:$D$55,MATCH(B22,'PR Cash Reconciliation_2A,B,C,D'!$A$7:$A$55,0)),\"\")","v":0},{"$f":"IFERROR(IF(INDEX('PR Cash Reconciliation_2A,B,C,D'!$E$7:$E$55,MATCH(B22,'PR Cash Reconciliation_2A,B,C,D'!$A$7:$A$55,0))=0,\"\",INDEX('PR Cash Reconciliation_2A,B,C,D'!$E$7:$E$55,MATCH(B22,'PR Cash Reconciliation_2A,B,C,D'!$A$7:$A$55,0))),\"\")","v":""},{"$f":"IFERROR(INDEX('PR Cash Reconciliation_2A,B,C,D'!$F$7:$F$55,MATCH(B22,'PR Cash Reconciliation_2A,B,C,D'!$A$7:$A$55,0)),\"\")","v":0},{"$f":"IFERROR(INDEX('PR Cash Reconciliation_2A,B,C,D'!$G$7:$G$55,MATCH(B22,'PR Cash Reconciliation_2A,B,C,D'!$A$7:$A$55,0)),\"\")","v":0},{"$f":"IFERROR(IF(INDEX('PR Cash Reconciliation_2A,B,C,D'!$I$7:$I$55,MATCH(B22,'PR Cash Reconciliation_2A,B,C,D'!$A$7:$A$55,0))=0,\"\",INDEX('PR Cash Reconciliation_2A,B,C,D'!$I$7:$I$55,MATCH(B22,'PR Cash Reconciliation_2A,B,C,D'!$A$7:$A$55,0))),\"\")","v":""}]
["a4836000000gbVBAAY","5.2",{"$f":"IFERROR(INDEX('PR Cash Reconciliation_2A,B,C,D'!$C$7:$C$55,MATCH(B23,'PR Cash Reconciliation_2A,B,C,D'!$A$7:$A$55,0)),\"\")","v":0},{"$f":"IFERROR(INDEX('PR Cash Reconciliation_2A,B,C,D'!$D$7:$D$55,MATCH(B23,'PR Cash Reconciliation_2A,B,C,D'!$A$7:$A$55,0)),\"\")","v":0},{"$f":"IFERROR(IF(INDEX('PR Cash Reconciliation_2A,B,C,D'!$E$7:$E$55,MATCH(B23,'PR Cash Reconciliation_2A,B,C,D'!$A$7:$A$55,0))=0,\"\",INDEX('PR Cash Reconciliation_2A,B,C,D'!$E$7:$E$55,MATCH(B23,'PR Cash Reconciliation_2A,B,C,D'!$A$7:$A$55,0))),\"\")","v":""},{"$f":"IFERROR(INDEX('PR Cash Reconciliation_2A,B,C,D'!$F$7:$F$55,MATCH(B23,'PR Cash Reconciliation_2A,B,C,D'!$A$7:$A$55,0)),\"\")","v":0},{"$f":"IFERROR(INDEX('PR Cash Reconciliation_2A,B,C,D'!$G$7:$G$55,MATCH(B23,'PR Cash Reconciliation_2A,B,C,D'!$A$7:$A$55,0)),\"\")","v":0},{"$f":"IFERROR(IF(INDEX('PR Cash Reconciliation_2A,B,C,D'!$I$7:$I$55,MATCH(B23,'PR Cash Reconciliation_2A,B,C,D'!$A$7:$A$55,0))=0,\"\",INDEX('PR Cash Reconciliation_2A,B,C,D'!$I$7:$I$55,MATCH(B23,'PR Cash Reconciliation_2A,B,C,D'!$A$7:$A$55,0))),\"\")","v":""}]
["a4836000000gbVCAAY","5.3",{"$f":"IFERROR(INDEX('PR Cash Reconciliation_2A,B,C,D'!$C$7:$C$55,MATCH(B24,'PR Cash Reconciliation_2A,B,C,D'!$A$7:$A$55,0)),\"\")","v":0},{"$f":"IFERROR(INDEX('PR Cash Reconciliation_2A,B,C,D'!$D$7:$D$55,MATCH(B24,'PR Cash Reconciliation_2A,B,C,D'!$A$7:$A$55,0)),\"\")","v":0},{"$f":"IFERROR(IF(INDEX('PR Cash Reconciliation_2A,B,C,D'!$E$7:$E$55,MATCH(B24,'PR Cash Reconciliation_2A,B,C,D'!$A$7:$A$55,0))=0,\"\",INDEX('PR Cash Reconciliation_2A,B,C,D'!$E$7:$E$55,MATCH(B24,'PR Cash Reconciliation_2A,B,C,D'!$A$7:$A$55,0))),\"\")","v":""},{"$f":"IFERROR(INDEX('PR Cash Reconciliation_2A,B,C,D'!$F$7:$F$55,MATCH(B24,'PR Cash Reconciliation_2A,B,C,D'!$A$7:$A$55,0)),\"\")","v":0},{"$f":"IFERROR(INDEX('PR Cash Reconciliation_2A,B,C,D'!$G$7:$G$55,MATCH(B24,'PR Cash Reconciliation_2A,B,C,D'!$A$7:$A$55,0)),\"\")","v":0},{"$f":"IFERROR(IF(INDEX('PR Cash Reconciliation_2A,B,C,D'!$I$7:$I$55,MATCH(B24,'PR Cash Reconciliation_2A,B,C,D'!$A$7:$A$55,0))=0,\"\",INDEX('PR Cash Reconciliation_2A,B,C,D'!$I$7:$I$55,MATCH(B24,'PR Cash Reconciliation_2A,B,C,D'!$A$7:$A$55,0))),\"\")","v":""}]
["a4836000000gbVDAAY","6.1",{"$f":"IFERROR(INDEX('PR Cash Reconciliation_2A,B,C,D'!$C$7:$C$55,MATCH(B25,'PR Cash Reconciliation_2A,B,C,D'!$A$7:$A$55,0)),\"\")","v":0},{"$f":"IFERROR(INDEX('PR Cash Reconciliation_2A,B,C,D'!$D$7:$D$55,MATCH(B25,'PR Cash Reconciliation_2A,B,C,D'!$A$7:$A$55,0)),\"\")","v":0},{"$f":"IFERROR(IF(INDEX('PR Cash Reconciliation_2A,B,C,D'!$E$7:$E$55,MATCH(B25,'PR Cash Reconciliation_2A,B,C,D'!$A$7:$A$55,0))=0,\"\",INDEX('PR Cash Reconciliation_2A,B,C,D'!$E$7:$E$55,MATCH(B25,'PR Cash Reconciliation_2A,B,C,D'!$A$7:$A$55,0))),\"\")","v":""},{"$f":"IFERROR(INDEX('PR Cash Reconciliation_2A,B,C,D'!$F$7:$F$55,MATCH(B25,'PR Cash Reconciliation_2A,B,C,D'!$A$7:$A$55,0)),\"\")","v":0},{"$f":"IFERROR(INDEX('PR Cash Reconciliation_2A,B,C,D'!$G$7:$G$55,MATCH(B25,'PR Cash Reconciliation_2A,B,C,D'!$A$7:$A$55,0)),\"\")","v":0},{"$f":"IFERROR(IF(INDEX('PR Cash Reconciliation_2A,B,C,D'!$I$7:$I$55,MATCH(B25,'PR Cash Reconciliation_2A,B,C,D'!$A$7:$A$55,0))=0,\"\",INDEX('PR Cash Reconciliation_2A,B,C,D'!$I$7:$I$55,MATCH(B25,'PR Cash Reconciliation_2A,B,C,D'!$A$7:$A$55,0))),\"\")","v":""}]
["a4836000000gbVEAAY","6.2",{"$f":"IFERROR(INDEX('PR Cash Reconciliation_2A,B,C,D'!$C$7:$C$55,MATCH(B26,'PR Cash Reconciliation_2A,B,C,D'!$A$7:$A$55,0)),\"\")","v":0},{"$f":"IFERROR(INDEX('PR Cash Reconciliation_2A,B,C,D'!$D$7:$D$55,MATCH(B26,'PR Cash Reconciliation_2A,B,C,D'!$A$7:$A$55,0)),\"\")","v":0},{"$f":"IFERROR(IF(INDEX('PR Cash Reconciliation_2A,B,C,D'!$E$7:$E$55,MATCH(B26,'PR Cash Reconciliation_2A,B,C,D'!$A$7:$A$55,0))=0,\"\",INDEX('PR Cash Reconciliation_2A,B,C,D'!$E$7:$E$55,MATCH(B26,'PR Cash Reconciliation_2A,B,C,D'!$A$7:$A$55,0))),\"\")","v":""},{"$f":"IFERROR(INDEX('PR Cash Reconciliation_2A,B,C,D'!$F$7:$F$55,MATCH(B26,'PR Cash Reconciliation_2A,B,C,D'!$A$7:$A$55,0)),\"\")","v":0},{"$f":"IFERROR(INDEX('PR Cash Reconciliation_2A,B,C,D'!$G$7:$G$55,MATCH(B26,'PR Cash Reconciliation_2A,B,C,D'!$A$7:$A$55,0)),\"\")","v":0},{"$f":"IFERROR(IF(INDEX('PR Cash Reconciliation_2A,B,C,D'!$I$7:$I$55,MATCH(B26,'PR Cash Reconciliation_2A,B,C,D'!$A$7:$A$55,0))=0,\"\",INDEX('PR Cash Reconciliation_2A,B,C,D'!$I$7:$I$55,MATCH(B26,'PR Cash Reconciliation_2A,B,C,D'!$A$7:$A$55,0))),\"\")","v":""}]
["a4836000000gbVFAAY","6.3",{"$f":"IFERROR(INDEX('PR Cash Reconciliation_2A,B,C,D'!$C$7:$C$55,MATCH(B27,'PR Cash Reconciliation_2A,B,C,D'!$A$7:$A$55,0)),\"\")","v":0},{"$f":"IFERROR(INDEX('PR Cash Reconciliation_2A,B,C,D'!$D$7:$D$55,MATCH(B27,'PR Cash Reconciliation_2A,B,C,D'!$A$7:$A$55,0)),\"\")","v":0},{"$f":"IFERROR(IF(INDEX('PR Cash Reconciliation_2A,B,C,D'!$E$7:$E$55,MATCH(B27,'PR Cash Reconciliation_2A,B,C,D'!$A$7:$A$55,0))=0,\"\",INDEX('PR Cash Reconciliation_2A,B,C,D'!$E$7:$E$55,MATCH(B27,'PR Cash Reconciliation_2A,B,C,D'!$A$7:$A$55,0))),\"\")","v":""},{"$f":"IFERROR(INDEX('PR Cash Reconciliation_2A,B,C,D'!$F$7:$F$55,MATCH(B27,'PR Cash Reconciliation_2A,B,C,D'!$A$7:$A$55,0)),\"\")","v":0},{"$f":"IFERROR(INDEX('PR Cash Reconciliation_2A,B,C,D'!$G$7:$G$55,MATCH(B27,'PR Cash Reconciliation_2A,B,C,D'!$A$7:$A$55,0)),\"\")","v":0},{"$f":"IFERROR(IF(INDEX('PR Cash Reconciliation_2A,B,C,D'!$I$7:$I$55,MATCH(B27,'PR Cash Reconciliation_2A,B,C,D'!$A$7:$A$55,0))=0,\"\",INDEX('PR Cash Reconciliation_2A,B,C,D'!$I$7:$I$55,MATCH(B27,'PR Cash Reconciliation_2A,B,C,D'!$A$7:$A$55,0))),\"\")","v":""}]
["a4836000000gbVGAAY","7.1",{"$f":"IFERROR(INDEX('PR Cash Reconciliation_2A,B,C,D'!$C$7:$C$55,MATCH(B28,'PR Cash Reconciliation_2A,B,C,D'!$A$7:$A$55,0)),\"\")","v":0},{"$f":"IFERROR(INDEX('PR Cash Reconciliation_2A,B,C,D'!$D$7:$D$55,MATCH(B28,'PR Cash Reconciliation_2A,B,C,D'!$A$7:$A$55,0)),\"\")","v":0},{"$f":"IFERROR(IF(INDEX('PR Cash Reconciliation_2A,B,C,D'!$E$7:$E$55,MATCH(B28,'PR Cash Reconciliation_2A,B,C,D'!$A$7:$A$55,0))=0,\"\",INDEX('PR Cash Reconciliation_2A,B,C,D'!$E$7:$E$55,MATCH(B28,'PR Cash Reconciliation_2A,B,C,D'!$A$7:$A$55,0))),\"\")","v":""},{"$f":"IFERROR(INDEX('PR Cash Reconciliation_2A,B,C,D'!$F$7:$F$55,MATCH(B28,'PR Cash Reconciliation_2A,B,C,D'!$A$7:$A$55,0)),\"\")","v":0},{"$f":"IFERROR(INDEX('PR Cash Reconciliation_2A,B,C,D'!$G$7:$G$55,MATCH(B28,'PR Cash Reconciliation_2A,B,C,D'!$A$7:$A$55,0)),\"\")","v":0},{"$f":"IFERROR(IF(INDEX('PR Cash Reconciliation_2A,B,C,D'!$I$7:$I$55,MATCH(B28,'PR Cash Reconciliation_2A,B,C,D'!$A$7:$A$55,0))=0,\"\",INDEX('PR Cash Reconciliation_2A,B,C,D'!$I$7:$I$55,MATCH(B28,'PR Cash Reconciliation_2A,B,C,D'!$A$7:$A$55,0))),\"\")","v":""}]
["a4836000000gbVHAAY","7.2",{"$f":"IFERROR(INDEX('PR Cash Reconciliation_2A,B,C,D'!$C$7:$C$55,MATCH(B29,'PR Cash Reconciliation_2A,B,C,D'!$A$7:$A$55,0)),\"\")","v":0},{"$f":"IFERROR(INDEX('PR Cash Reconciliation_2A,B,C,D'!$D$7:$D$55,MATCH(B29,'PR Cash Reconciliation_2A,B,C,D'!$A$7:$A$55,0)),\"\")","v":0},{"$f":"IFERROR(IF(INDEX('PR Cash Reconciliation_2A,B,C,D'!$E$7:$E$55,MATCH(B29,'PR Cash Reconciliation_2A,B,C,D'!$A$7:$A$55,0))=0,\"\",INDEX('PR Cash Reconciliation_2A,B,C,D'!$E$7:$E$55,MATCH(B29,'PR Cash Reconciliation_2A,B,C,D'!$A$7:$A$55,0))),\"\")","v":""},{"$f":"IFERROR(INDEX('PR Cash Reconciliation_2A,B,C,D'!$F$7:$F$55,MATCH(B29,'PR Cash Reconciliation_2A,B,C,D'!$A$7:$A$55,0)),\"\")","v":0},{"$f":"IFERROR(INDEX('PR Cash Reconciliation_2A,B,C,D'!$G$7:$G$55,MATCH(B29,'PR Cash Reconciliation_2A,B,C,D'!$A$7:$A$55,0)),\"\")","v":0},{"$f":"IFERROR(IF(INDEX('PR Cash Reconciliation_2A,B,C,D'!$I$7:$I$55,MATCH(B29,'PR Cash Reconciliation_2A,B,C,D'!$A$7:$A$55,0))=0,\"\",INDEX('PR Cash Reconciliation_2A,B,C,D'!$I$7:$I$55,MATCH(B29,'PR Cash Reconciliation_2A,B,C,D'!$A$7:$A$55,0))),\"\")","v":""}]
["a4836000000gbVIAAY","7.3",{"$f":"IFERROR(INDEX('PR Cash Reconciliation_2A,B,C,D'!$C$7:$C$55,MATCH(B30,'PR Cash Reconciliation_2A,B,C,D'!$A$7:$A$55,0)),\"\")","v":""},{"$f":"IFERROR(INDEX('PR Cash Reconciliation_2A,B,C,D'!$D$7:$D$55,MATCH(B30,'PR Cash Reconciliation_2A,B,C,D'!$A$7:$A$55,0)),\"\")","v":""},{"$f":"IFERROR(IF(INDEX('PR Cash Reconciliation_2A,B,C,D'!$E$7:$E$55,MATCH(B30,'PR Cash Reconciliation_2A,B,C,D'!$A$7:$A$55,0))=0,\"\",INDEX('PR Cash Reconciliation_2A,B,C,D'!$E$7:$E$55,MATCH(B30,'PR Cash Reconciliation_2A,B,C,D'!$A$7:$A$55,0))),\"\")","v":""},{"$f":"IFERROR(INDEX('PR Cash Reconciliation_2A,B,C,D'!$F$7:$F$55,MATCH(B30,'PR Cash Reconciliation_2A,B,C,D'!$A$7:$A$55,0)),\"\")","v":""},{"$f":"IFERROR(INDEX('PR Cash Reconciliation_2A,B,C,D'!$G$7:$G$55,MATCH(B30,'PR Cash Reconciliation_2A,B,C,D'!$A$7:$A$55,0)),\"\")","v":""},{"$f":"IFERROR(IF(INDEX('PR Cash Reconciliation_2A,B,C,D'!$I$7:$I$55,MATCH(B30,'PR Cash Reconciliation_2A,B,C,D'!$A$7:$A$55,0))=0,\"\",INDEX('PR Cash Reconciliation_2A,B,C,D'!$I$7:$I$55,MATCH(B30,'PR Cash Reconciliation_2A,B,C,D'!$A$7:$A$55,0))),\"\")","v":""}]
["a4836000000gbVJAAY","7.4",{"$f":"IFERROR(INDEX('PR Cash Reconciliation_2A,B,C,D'!$C$7:$C$55,MATCH(B31,'PR Cash Reconciliation_2A,B,C,D'!$A$7:$A$55,0)),\"\")","v":0},{"$f":"IFERROR(INDEX('PR Cash Reconciliation_2A,B,C,D'!$D$7:$D$55,MATCH(B31,'PR Cash Reconciliation_2A,B,C,D'!$A$7:$A$55,0)),\"\")","v":0},{"$f":"IFERROR(IF(INDEX('PR Cash Reconciliation_2A,B,C,D'!$E$7:$E$55,MATCH(B31,'PR Cash Reconciliation_2A,B,C,D'!$A$7:$A$55,0))=0,\"\",INDEX('PR Cash Reconciliation_2A,B,C,D'!$E$7:$E$55,MATCH(B31,'PR Cash Reconciliation_2A,B,C,D'!$A$7:$A$55,0))),\"\")","v":""},{"$f":"IFERROR(INDEX('PR Cash Reconciliation_2A,B,C,D'!$F$7:$F$55,MATCH(B31,'PR Cash Reconciliation_2A,B,C,D'!$A$7:$A$55,0)),\"\")","v":0},{"$f":"IFERROR(INDEX('PR Cash Reconciliation_2A,B,C,D'!$G$7:$G$55,MATCH(B31,'PR Cash Reconciliation_2A,B,C,D'!$A$7:$A$55,0)),\"\")","v":0},{"$f":"IFERROR(IF(INDEX('PR Cash Reconciliation_2A,B,C,D'!$I$7:$I$55,MATCH(B31,'PR Cash Reconciliation_2A,B,C,D'!$A$7:$A$55,0))=0,\"\",INDEX('PR Cash Reconciliation_2A,B,C,D'!$I$7:$I$55,MATCH(B31,'PR Cash Reconciliation_2A,B,C,D'!$A$7:$A$55,0))),\"\")","v":""}]
["a4836000000gbVKAAY","8.1",{"$f":"IFERROR(INDEX('PR Cash Reconciliation_2A,B,C,D'!$C$7:$C$55,MATCH(B32,'PR Cash Reconciliation_2A,B,C,D'!$A$7:$A$55,0)),\"\")","v":0},{"$f":"IFERROR(INDEX('PR Cash Reconciliation_2A,B,C,D'!$D$7:$D$55,MATCH(B32,'PR Cash Reconciliation_2A,B,C,D'!$A$7:$A$55,0)),\"\")","v":0},{"$f":"IFERROR(IF(INDEX('PR Cash Reconciliation_2A,B,C,D'!$E$7:$E$55,MATCH(B32,'PR Cash Reconciliation_2A,B,C,D'!$A$7:$A$55,0))=0,\"\",INDEX('PR Cash Reconciliation_2A,B,C,D'!$E$7:$E$55,MATCH(B32,'PR Cash Reconciliation_2A,B,C,D'!$A$7:$A$55,0))),\"\")","v":""},{"$f":"IFERROR(INDEX('PR Cash Reconciliation_2A,B,C,D'!$F$7:$F$55,MATCH(B32,'PR Cash Reconciliation_2A,B,C,D'!$A$7:$A$55,0)),\"\")","v":0},{"$f":"IFERROR(INDEX('PR Cash Reconciliation_2A,B,C,D'!$G$7:$G$55,MATCH(B32,'PR Cash Reconciliation_2A,B,C,D'!$A$7:$A$55,0)),\"\")","v":0},{"$f":"IFERROR(IF(INDEX('PR Cash Reconciliation_2A,B,C,D'!$I$7:$I$55,MATCH(B32,'PR Cash Reconciliation_2A,B,C,D'!$A$7:$A$55,0))=0,\"\",INDEX('PR Cash Reconciliation_2A,B,C,D'!$I$7:$I$55,MATCH(B32,'PR Cash Reconciliation_2A,B,C,D'!$A$7:$A$55,0))),\"\")","v":""}]
["a4836000000gbVLAAY","8.2",{"$f":"IFERROR(INDEX('PR Cash Reconciliation_2A,B,C,D'!$C$7:$C$55,MATCH(B33,'PR Cash Reconciliation_2A,B,C,D'!$A$7:$A$55,0)),\"\")","v":0},{"$f":"IFERROR(INDEX('PR Cash Reconciliation_2A,B,C,D'!$D$7:$D$55,MATCH(B33,'PR Cash Reconciliation_2A,B,C,D'!$A$7:$A$55,0)),\"\")","v":0},{"$f":"IFERROR(IF(INDEX('PR Cash Reconciliation_2A,B,C,D'!$E$7:$E$55,MATCH(B33,'PR Cash Reconciliation_2A,B,C,D'!$A$7:$A$55,0))=0,\"\",INDEX('PR Cash Reconciliation_2A,B,C,D'!$E$7:$E$55,MATCH(B33,'PR Cash Reconciliation_2A,B,C,D'!$A$7:$A$55,0))),\"\")","v":""},{"$f":"IFERROR(INDEX('PR Cash Reconciliation_2A,B,C,D'!$F$7:$F$55,MATCH(B33,'PR Cash Reconciliation_2A,B,C,D'!$A$7:$A$55,0)),\"\")","v":0},{"$f":"IFERROR(INDEX('PR Cash Reconciliation_2A,B,C,D'!$G$7:$G$55,MATCH(B33,'PR Cash Reconciliation_2A,B,C,D'!$A$7:$A$55,0)),\"\")","v":0},{"$f":"IFERROR(IF(INDEX('PR Cash Reconciliation_2A,B,C,D'!$I$7:$I$55,MATCH(B33,'PR Cash Reconciliation_2A,B,C,D'!$A$7:$A$55,0))=0,\"\",INDEX('PR Cash Reconciliation_2A,B,C,D'!$I$7:$I$55,MATCH(B33,'PR Cash Reconciliation_2A,B,C,D'!$A$7:$A$55,0))),\"\")","v":""}]
["a4836000000gbVMAAY","8.3",{"$f":"IFERROR(INDEX('PR Cash Reconciliation_2A,B,C,D'!$C$7:$C$55,MATCH(B34,'PR Cash Reconciliation_2A,B,C,D'!$A$7:$A$55,0)),\"\")","v":0},{"$f":"IFERROR(INDEX('PR Cash Reconciliation_2A,B,C,D'!$D$7:$D$55,MATCH(B34,'PR Cash Reconciliation_2A,B,C,D'!$A$7:$A$55,0)),\"\")","v":0},{"$f":"IFERROR(IF(INDEX('PR Cash Reconciliation_2A,B,C,D'!$E$7:$E$55,MATCH(B34,'PR Cash Reconciliation_2A,B,C,D'!$A$7:$A$55,0))=0,\"\",INDEX('PR Cash Reconciliation_2A,B,C,D'!$E$7:$E$55,MATCH(B34,'PR Cash Reconciliation_2A,B,C,D'!$A$7:$A$55,0))),\"\")","v":""},{"$f":"IFERROR(INDEX('PR Cash Reconciliation_2A,B,C,D'!$F$7:$F$55,MATCH(B34,'PR Cash Reconciliation_2A,B,C,D'!$A$7:$A$55,0)),\"\")","v":0},{"$f":"IFERROR(INDEX('PR Cash Reconciliation_2A,B,C,D'!$G$7:$G$55,MATCH(B34,'PR Cash Reconciliation_2A,B,C,D'!$A$7:$A$55,0)),\"\")","v":0},{"$f":"IFERROR(IF(INDEX('PR Cash Reconciliation_2A,B,C,D'!$I$7:$I$55,MATCH(B34,'PR Cash Reconciliation_2A,B,C,D'!$A$7:$A$55,0))=0,\"\",INDEX('PR Cash Reconciliation_2A,B,C,D'!$I$7:$I$55,MATCH(B34,'PR Cash Reconciliation_2A,B,C,D'!$A$7:$A$55,0))),\"\")","v":""}]
["a4836000000gbVNAAY","8.4",{"$f":"IFERROR(INDEX('PR Cash Reconciliation_2A,B,C,D'!$C$7:$C$55,MATCH(B35,'PR Cash Reconciliation_2A,B,C,D'!$A$7:$A$55,0)),\"\")","v":0},{"$f":"IFERROR(INDEX('PR Cash Reconciliation_2A,B,C,D'!$D$7:$D$55,MATCH(B35,'PR Cash Reconciliation_2A,B,C,D'!$A$7:$A$55,0)),\"\")","v":0},{"$f":"IFERROR(IF(INDEX('PR Cash Reconciliation_2A,B,C,D'!$E$7:$E$55,MATCH(B35,'PR Cash Reconciliation_2A,B,C,D'!$A$7:$A$55,0))=0,\"\",INDEX('PR Cash Reconciliation_2A,B,C,D'!$E$7:$E$55,MATCH(B35,'PR Cash Reconciliation_2A,B,C,D'!$A$7:$A$55,0))),\"\")","v":""},{"$f":"IFERROR(INDEX('PR Cash Reconciliation_2A,B,C,D'!$F$7:$F$55,MATCH(B35,'PR Cash Reconciliation_2A,B,C,D'!$A$7:$A$55,0)),\"\")","v":0},{"$f":"IFERROR(INDEX('PR Cash Reconciliation_2A,B,C,D'!$G$7:$G$55,MATCH(B35,'PR Cash Reconciliation_2A,B,C,D'!$A$7:$A$55,0)),\"\")","v":0},{"$f":"IFERROR(IF(INDEX('PR Cash Reconciliation_2A,B,C,D'!$I$7:$I$55,MATCH(B35,'PR Cash Reconciliation_2A,B,C,D'!$A$7:$A$55,0))=0,\"\",INDEX('PR Cash Reconciliation_2A,B,C,D'!$I$7:$I$55,MATCH(B35,'PR Cash Reconciliation_2A,B,C,D'!$A$7:$A$55,0))),\"\")","v":""}]
["a4836000000gbVOAAY","8.5",{"$f":"IFERROR(INDEX('PR Cash Reconciliation_2A,B,C,D'!$C$7:$C$55,MATCH(B36,'PR Cash Reconciliation_2A,B,C,D'!$A$7:$A$55,0)),\"\")","v":0},{"$f":"IFERROR(INDEX('PR Cash Reconciliation_2A,B,C,D'!$D$7:$D$55,MATCH(B36,'PR Cash Reconciliation_2A,B,C,D'!$A$7:$A$55,0)),\"\")","v":0},{"$f":"IFERROR(IF(INDEX('PR Cash Reconciliation_2A,B,C,D'!$E$7:$E$55,MATCH(B36,'PR Cash Reconciliation_2A,B,C,D'!$A$7:$A$55,0))=0,\"\",INDEX('PR Cash Reconciliation_2A,B,C,D'!$E$7:$E$55,MATCH(B36,'PR Cash Reconciliation_2A,B,C,D'!$A$7:$A$55,0))),\"\")","v":""},{"$f":"IFERROR(INDEX('PR Cash Reconciliation_2A,B,C,D'!$F$7:$F$55,MATCH(B36,'PR Cash Reconciliation_2A,B,C,D'!$A$7:$A$55,0)),\"\")","v":0},{"$f":"IFERROR(INDEX('PR Cash Reconciliation_2A,B,C,D'!$G$7:$G$55,MATCH(B36,'PR Cash Reconciliation_2A,B,C,D'!$A$7:$A$55,0)),\"\")","v":0},{"$f":"IFERROR(IF(INDEX('PR Cash Reconciliation_2A,B,C,D'!$I$7:$I$55,MATCH(B36,'PR Cash Reconciliation_2A,B,C,D'!$A$7:$A$55,0))=0,\"\",INDEX('PR Cash Reconciliation_2A,B,C,D'!$I$7:$I$55,MATCH(B36,'PR Cash Reconciliation_2A,B,C,D'!$A$7:$A$55,0))),\"\")","v":""}]
["a4836000000gbVPAAY","2.",{"$f":"IFERROR(INDEX('PR Cash Reconciliation_2A,B,C,D'!$C$7:$C$55,MATCH(B37,'PR Cash Reconciliation_2A,B,C,D'!$A$7:$A$55,0)),\"\")","v":""},{"$f":"IFERROR(INDEX('PR Cash Reconciliation_2A,B,C,D'!$D$7:$D$55,MATCH(B37,'PR Cash Reconciliation_2A,B,C,D'!$A$7:$A$55,0)),\"\")","v":""},{"$f":"IFERROR(IF(INDEX('PR Cash Reconciliation_2A,B,C,D'!$E$7:$E$55,MATCH(B37,'PR Cash Reconciliation_2A,B,C,D'!$A$7:$A$55,0))=0,\"\",INDEX('PR Cash Reconciliation_2A,B,C,D'!$E$7:$E$55,MATCH(B37,'PR Cash Reconciliation_2A,B,C,D'!$A$7:$A$55,0))),\"\")","v":""},{"$f":"IFERROR(INDEX('PR Cash Reconciliation_2A,B,C,D'!$F$7:$F$55,MATCH(B37,'PR Cash Reconciliation_2A,B,C,D'!$A$7:$A$55,0)),\"\")","v":""},{"$f":"IFERROR(INDEX('PR Cash Reconciliation_2A,B,C,D'!$G$7:$G$55,MATCH(B37,'PR Cash Reconciliation_2A,B,C,D'!$A$7:$A$55,0)),\"\")","v":""},{"$f":"IFERROR(IF(INDEX('PR Cash Reconciliation_2A,B,C,D'!$I$7:$I$55,MATCH(B37,'PR Cash Reconciliation_2A,B,C,D'!$A$7:$A$55,0))=0,\"\",INDEX('PR Cash Reconciliation_2A,B,C,D'!$I$7:$I$55,MATCH(B37,'PR Cash Reconciliation_2A,B,C,D'!$A$7:$A$55,0))),\"\")","v":""}]
["a4836000000gbVQAAY","3.",{"$f":"IFERROR(INDEX('PR Cash Reconciliation_2A,B,C,D'!$C$7:$C$55,MATCH(B38,'PR Cash Reconciliation_2A,B,C,D'!$A$7:$A$55,0)),\"\")","v":""},{"$f":"IFERROR(INDEX('PR Cash Reconciliation_2A,B,C,D'!$D$7:$D$55,MATCH(B38,'PR Cash Reconciliation_2A,B,C,D'!$A$7:$A$55,0)),\"\")","v":""},{"$f":"IFERROR(IF(INDEX('PR Cash Reconciliation_2A,B,C,D'!$E$7:$E$55,MATCH(B38,'PR Cash Reconciliation_2A,B,C,D'!$A$7:$A$55,0))=0,\"\",INDEX('PR Cash Reconciliation_2A,B,C,D'!$E$7:$E$55,MATCH(B38,'PR Cash Reconciliation_2A,B,C,D'!$A$7:$A$55,0))),\"\")","v":""},{"$f":"IFERROR(INDEX('PR Cash Reconciliation_2A,B,C,D'!$F$7:$F$55,MATCH(B38,'PR Cash Reconciliation_2A,B,C,D'!$A$7:$A$55,0)),\"\")","v":""},{"$f":"IFERROR(INDEX('PR Cash Reconciliation_2A,B,C,D'!$G$7:$G$55,MATCH(B38,'PR Cash Reconciliation_2A,B,C,D'!$A$7:$A$55,0)),\"\")","v":""},{"$f":"IFERROR(IF(INDEX('PR Cash Reconciliation_2A,B,C,D'!$I$7:$I$55,MATCH(B38,'PR Cash Reconciliation_2A,B,C,D'!$A$7:$A$55,0))=0,\"\",INDEX('PR Cash Reconciliation_2A,B,C,D'!$I$7:$I$55,MATCH(B38,'PR Cash Reconciliation_2A,B,C,D'!$A$7:$A$55,0))),\"\")","v":""}]
["a4836000000gbVRAAY","4.",{"$f":"IFERROR(INDEX('PR Cash Reconciliation_2A,B,C,D'!$C$7:$C$55,MATCH(B39,'PR Cash Reconciliation_2A,B,C,D'!$A$7:$A$55,0)),\"\")","v":""},{"$f":"IFERROR(INDEX('PR Cash Reconciliation_2A,B,C,D'!$D$7:$D$55,MATCH(B39,'PR Cash Reconciliation_2A,B,C,D'!$A$7:$A$55,0)),\"\")","v":""},{"$f":"IFERROR(IF(INDEX('PR Cash Reconciliation_2A,B,C,D'!$E$7:$E$55,MATCH(B39,'PR Cash Reconciliation_2A,B,C,D'!$A$7:$A$55,0))=0,\"\",INDEX('PR Cash Reconciliation_2A,B,C,D'!$E$7:$E$55,MATCH(B39,'PR Cash Reconciliation_2A,B,C,D'!$A$7:$A$55,0))),\"\")","v":""},{"$f":"IFERROR(INDEX('PR Cash Reconciliation_2A,B,C,D'!$F$7:$F$55,MATCH(B39,'PR Cash Reconciliation_2A,B,C,D'!$A$7:$A$55,0)),\"\")","v":""},{"$f":"IFERROR(INDEX('PR Cash Reconciliation_2A,B,C,D'!$G$7:$G$55,MATCH(B39,'PR Cash Reconciliation_2A,B,C,D'!$A$7:$A$55,0)),\"\")","v":""},{"$f":"IFERROR(IF(INDEX('PR Cash Reconciliation_2A,B,C,D'!$I$7:$I$55,MATCH(B39,'PR Cash Reconciliation_2A,B,C,D'!$A$7:$A$55,0))=0,\"\",INDEX('PR Cash Reconciliation_2A,B,C,D'!$I$7:$I$55,MATCH(B39,'PR Cash Reconciliation_2A,B,C,D'!$A$7:$A$55,0))),\"\")","v":""}]
["a4836000000gbVSAAY","5.",{"$f":"IFERROR(INDEX('PR Cash Reconciliation_2A,B,C,D'!$C$7:$C$55,MATCH(B40,'PR Cash Reconciliation_2A,B,C,D'!$A$7:$A$55,0)),\"\")","v":""},{"$f":"IFERROR(INDEX('PR Cash Reconciliation_2A,B,C,D'!$D$7:$D$55,MATCH(B40,'PR Cash Reconciliation_2A,B,C,D'!$A$7:$A$55,0)),\"\")","v":""},{"$f":"IFERROR(IF(INDEX('PR Cash Reconciliation_2A,B,C,D'!$E$7:$E$55,MATCH(B40,'PR Cash Reconciliation_2A,B,C,D'!$A$7:$A$55,0))=0,\"\",INDEX('PR Cash Reconciliation_2A,B,C,D'!$E$7:$E$55,MATCH(B40,'PR Cash Reconciliation_2A,B,C,D'!$A$7:$A$55,0))),\"\")","v":""},{"$f":"IFERROR(INDEX('PR Cash Reconciliation_2A,B,C,D'!$F$7:$F$55,MATCH(B40,'PR Cash Reconciliation_2A,B,C,D'!$A$7:$A$55,0)),\"\")","v":""},{"$f":"IFERROR(INDEX('PR Cash Reconciliation_2A,B,C,D'!$G$7:$G$55,MATCH(B40,'PR Cash Reconciliation_2A,B,C,D'!$A$7:$A$55,0)),\"\")","v":""},{"$f":"IFERROR(IF(INDEX('PR Cash Reconciliation_2A,B,C,D'!$I$7:$I$55,MATCH(B40,'PR Cash Reconciliation_2A,B,C,D'!$A$7:$A$55,0))=0,\"\",INDEX('PR Cash Reconciliation_2A,B,C,D'!$I$7:$I$55,MATCH(B40,'PR Cash Reconciliation_2A,B,C,D'!$A$7:$A$55,0))),\"\")","v":""}]

{"sheet":"SR_Cash Reconciliation_2E","index":18,"n_rows":111,"n_cols":19,"rows_kept":111,"cut":false,"hidden":true,"merged":[[6,2,6,12],[6,13,6,15],[6,16,6,18],[1,9,2,18],[0,2,0,18],[1,2,2,3],[1,4,1,5],[2,4,2,5],[4,2,4,18]]}
[null,null,{"$f":"VLOOKUP(Translations!B157,Translations!B3:H508,4,0)","v":"Progress Report with Disbursement Request"}]
[null,null,{"$f":"VLOOKUP(Translations!B158,Translations!B3:H508,4,0)","v":"Section 2: Financial Information"},null,{"$f":"CoverSheet!F12","v":"Period of Financial Reporting"},null,{"$f":"CoverSheet!J12","v":"2018-01-01"},{"$f":"CoverSheet!K12","v":"End Date:"},{"$f":"CoverSheet!L12","v":"2018-06-30"}]
[null,null,null,null,"Cumulative Period of Financial Reporting",null,{"$f":"CoverSheet!D13","v":"2018-01-01"},{"$f":"CoverSheet!K12","v":"End Date:"},{"$f":"CoverSheet!L12","v":"2018-06-30"}]
[]
[null,null,{"$f":"VLOOKUP(Translations!B165,Translations!B3:H508,4,0)","v":"Principal Recipient Reconciliation of funds provided to Sub-Recipients for the Current Implementation Period"}]
[]
[null,null,"Principal Recipient",null,null,null,null,null,null,null,null,null,null,"For Local Fund Agent Use Only ",null,null,"For the Global Fund Use Only"]
[null,null,{"$f":"VLOOKUP(Translations!B167,Translations!B3:H508,4,0)","v":"(1) \nSub-Recipient Name"},{"$f":"VLOOKUP(Translations!B168,Translations!B3:H508,4,0)","v":"(2) \n Cumulative Sub-Recipient expenses for prior periods at Principal Recipient level"},{"$f":"VLOOKUP(Translations!B169,Translations!B3:H508,4,0)","v":"(3) \nSub-Recipient Open Advances at Principal Recipient Level"},{"$f":"VLOOKUP(Translations!B170,Translations!B3:H508,4,0)","v":"(4) \nDisbursements made by Principal Recipient during the Reporting Period"},{"$f":"VLOOKUP(Translations!B171,Translations!B3:H508,4,0)","v":"(5) \nOther Income* during the Reporting Period "},{"$f":"VLOOKUP(Translations!B172,Translations!B3:H508,4,0)","v":"(6) \nExpenditure validated by Principal Recipient during the Reporting Period"},{"$f":"VLOOKUP(Translations!B173,Translations!B3:H508,4,0)","v":"(7)\nRefunds received  from the Sub-Recipient"},{"$f":"VLOOKUP(Translations!B174,Translations!B3:H508,4,0)","v":"(8) \nSub-Recipient Closing Balance at Principal Recipient Level"},{"$f":"VLOOKUP(Translations!B175,Translations!B3:H508,4,0)","v":"(9) \nActual Sub-Recipient Cash Balance (if applicable)"},{"$f":"VLOOKUP(Translations!B176,Translations!B3:H508,4,0)","v":" (10)\nVariances on Sub-Recipient Balances"},{"$f":"VLOOKUP(Translations!B177,Translations!B3:H508,4,0)","v":"Comments"},"LFA Adjustments","As verified by LFA","Comments","Country Team Adjustments (incl. External Audit adjustments)","The Global Fund Validated Figures","Comments"]
[{"$f":"A8+1","v":1},{"$f":"\"ID\"&A9","v":"ID1"},null,null,null,null,null,null,null,{"$f":"IFERROR(+E9+F9+G9-H9-I9,\"\")","v":0},null,{"$f":"IFERROR(+K9-J9,\"\")","v":0},null,null,{"$f":"IFERROR(J9+N9,\"\")","v":0},null,null,{"$f":"O9+Q9","v":0}]
[{"$f":"A9+1","v":2},{"$f":"\"ID\"&A10","v":"ID2"},null,null,null,null,null,null,null,{"$f":"IFERROR(+E10+F10+G10-H10-I10,\"\")","v":0},null,{"$f":"IFERROR(+K10-J10,\"\")","v":0},null,null,{"$f":"IFERROR(J10+N10,\"\")","v":0},null,null,{"$f":"O10+Q10","v":0}]
[3,"ID3",null,null,null,null,null,null,null,0,null,0,null,null,0,null,null,0]
[4,"ID4",null,null,null,null,null,null,null,0,null,0,null,null,0,null,null,0]
[5,"ID5",null,null,null,null,null,null,null,0,null,0,null,null,0,null,null,0]
[6,"ID6",null,null,null,null,null,null,null,0,null,0,null,null,0,null,null,0]
[7,"ID7",null,null,null,null,null,null,null,0,null,0,null,null,0,null,null,0]
[8,"ID8",null,null,null,null,null,null,null,0,null,0,null,null,0,null,null,0]
[9,"ID9",null,null,null,null,null,null,null,0,null,0,null,null,0,null,null,0]
[10,"ID10",null,null,null,null,null,null,null,0,null,0,null,null,0,null,null,0]
[11,"ID11",null,null,null,null,null,null,null,0,null,0,null,null,0,null,null,0]
[12,"ID12",null,null,null,null,null,null,null,0,null,0,null,null,0,null,null,0]
[13,"ID13",null,null,null,null,null,null,null,0,null,0,null,null,0,null,null,0]
[14,"ID14",null,null,null,null,null,null,null,0,null,0,null,null,0,null,null,0]
[15,"ID15",null,null,null,null,null,null,null,0,null,0,null,null,0,null,null,0]
[16,"ID16",null,null,null,null,null,null,null,0,null,0,null,null,0,null,null,0]
[17,"ID17",null,null,null,null,null,null,null,0,null,0,null,null,0,null,null,0]
[18,"ID18",null,null,null,null,null,null,null,0,null,0,null,null,0,null,null,0]
[19,"ID19",null,null,null,null,null,null,null,0,null,0,null,null,0,null,null,0]
[20,"ID20",null,null,null,null,null,null,null,0,null,0,null,null,0,null,null,0]
[21,"ID21",null,null,null,null,null,null,null,0,null,0,null,null,0,null,null,0]
[22,"ID22",null,null,null,null,null,null,null,0,null,0,null,null,0,null,null,0]
[23,"ID23",null,null,null,null,null,null,null,0,null,0,null,null,0,null,null,0]
[24,"ID24",null,null,null,null,null,null,null,0,null,0,null,null,0,null,null,0]
[25,"ID25",null,null,null,null,null,null,null,0,null,0,null,null,0,null,null,0]
[26,"ID26",null,null,null,null,null,null,null,0,null,0,null,null,0,null,null,0]
[27,"ID27",null,null,null,null,null,null,null,0,null,0,null,null,0,null,null,0]
[28,"ID28",null,null,null,null,null,null,null,0,null,0,null,null,0,null,null,0]
[29,"ID29",null,null,null,null,null,null,null,0,null,0,null,null,0,null,null,0]
[30,"ID30",null,null,null,null,null,null,null,0,null,0,null,null,0,null,null,0]
[31,"ID31",null,null,null,null,null,null,null,0,null,0,null,null,0,null,null,0]
[32,"ID32",null,null,null,null,null,null,null,0,null,0,null,null,0,null,null,0]
[33,"ID33",null,null,null,null,null,null,null,0,null,0,null,null,0,null,null,0]
[34,"ID34",null,null,null,null,null,null,null,0,null,0,null,null,0,null,null,0]
[35,"ID35",null,null,null,null,null,null,null,0,null,0,null,null,0,null,null,0]
[36,"ID36",null,null,null,null,null,null,null,0,null,0,null,null,0,null,null,0]
[37,"ID37",null,null,null,null,null,null,null,0,null,0,null,null,0,null,null,0]
[38,"ID38",null,null,null,null,null,null,null,0,null,0,null,null,0,null,null,0]
[39,"ID39",null,null,null,null,null,null,null,0,null,0,null,null,0,null,null,0]
[40,"ID40",null,null,null,null,null,null,null,0,null,0,null,null,0,null,null,0]
[41,"ID41",null,null,null,null,null,null,null,0,null,0,null,null,0,null,null,0]
[42,"ID42",null,null,null,null,null,null,null,0,null,0,null,null,0,null,null,0]
[43,"ID43",null,null,null,null,null,null,null,0,null,0,null,null,0,null,null,0]
[44,"ID44",null,null,null,null,null,null,null,0,null,0,null,null,0,null,null,0]
[45,"ID45",null,null,null,null,null,null,null,0,null,0,null,null,0,null,null,0]
[46,"ID46",null,null,null,null,null,null,null,0,null,0,null,null,0,null,null,0]
[47,"ID47",null,null,null,null,null,null,null,0,null,0,null,null,0,null,null,0]
[48,"ID48",null,null,null,null,null,null,null,0,null,0,null,null,0,null,null,0]
[49,"ID49",null,null,null,null,null,null,null,0,null,0,null,null,0,null,null,0]
[50,"ID50",null,null,null,null,null,null,null,0,null,0,null,null,0,null,null,0]
[51,"ID51",null,null,null,null,null,null,null,0,null,0,null,null,0,null,null,0]
[52,"ID52",null,null,null,null,null,null,null,0,null,0,null,null,0,null,null,0]
[53,"ID53",null,null,null,null,null,null,null,0,null,0,null,null,0,null,null,0]
[54,"ID54",null,null,null,null,null,null,null,0,null,0,null,null,0,null,null,0]
[55,"ID55",null,null,null,null,null,null,null,0,null,0,null,null,0,null,null,0]
[56,"ID56",null,null,null,null,null,null,null,0,null,0,null,null,0,null,null,0]
[57,"ID57",null,null,null,null,null,null,null,0,null,0,null,null,0,null,null,0]
[58,"ID58",null,null,null,null,null,null,null,0,null,0,null,null,0,null,null,0]
[59,"ID59",null,null,null,null,null,null,null,0,null,0,null,null,0,null,null,0]
[60,"ID60",null,null,null,null,null,null,null,0,null,0,null,null,0,null,null,0]
[61,"ID61",null,null,null,null,null,null,null,0,null,0,null,null,0,null,null,0]
[62,"ID62",null,null,null,null,null,null,null,0,null,0,null,null,0,null,null,0]
[63,"ID63",null,null,null,null,null,null,null,0,null,0,null,null,0,null,null,0]
[64,"ID64",null,null,null,null,null,null,null,0,null,0,null,null,0,null,null,0]
[65,"ID65",null,null,null,null,null,null,null,0,null,0,null,null,0,null,null,0]
[{"$f":"A73+1","v":66},{"$f":"\"ID\"&A74","v":"ID66"},null,null,null,null,null,null,null,{"$f":"IFERROR(+E74+F74+G74-H74-I74,\"\")","v":0},null,{"$f":"IFERROR(+K74-J74,\"\")","v":0},null,null,{"$f":"IFERROR(J74+N74,\"\")","v":0},null,null,{"$f":"O74+Q74","v":0}]
[67,"ID67",null,null,null,null,null,null,null,0,null,0,null,null,0,null,null,0]
[68,"ID68",null,null,null,null,null,null,null,0,null,0,null,null,0,null,null,0]
[69,"ID69",null,null,null,null,null,null,null,0,null,0,null,null,0,null,null,0]
[70,"ID70",null,null,null,null,null,null,null,0,null,0,null,null,0,null,null,0]
[71,"ID71",null,null,null,null,null,null,null,0,null,0,null,null,0,null,null,0]
[72,"ID72",null,null,null,null,null,null,null,0,null,0,null,null,0,null,null,0]
[73,"ID73",null,null,null,null,null,null,null,0,null,0,null,null,0,null,null,0]
[74,"ID74",null,null,null,null,null,null,null,0,null,0,null,null,0,null,null,0]
[75,"ID75",null,null,null,null,null,null,null,0,null,0,null,null,0,null,null,0]
[76,"ID76",null,null,null,null,null,null,null,0,null,0,null,null,0,null,null,0]
[77,"ID77",null,null,null,null,null,null,null,0,null,0,null,null,0,null,null,0]
[78,"ID78",null,null,null,null,null,null,null,0,null,0,null,null,0,null,null,0]
[79,"ID79",null,null,null,null,null,null,null,0,null,0,null,null,0,null,null,0]
[80,"ID80",null,null,null,null,null,null,null,0,null,0,null,null,0,null,null,0]
[81,"ID81",null,null,null,null,null,null,null,0,null,0,null,null,0,null,null,0]
[82,"ID82",null,null,null,null,null,null,null,0,null,0,null,null,0,null,null,0]
[83,"ID83",null,null,null,null,null,null,null,0,null,0,null,null,0,null,null,0]
[84,"ID84",null,null,null,null,null,null,null,0,null,0,null,null,0,null,null,0]
[85,"ID85",null,null,null,null,null,null,null,0,null,0,null,null,0,null,null,0]
[86,"ID86",null,null,null,null,null,null,null,0,null,0,null,null,0,null,null,0]
[87,"ID87",null,null,null,null,null,null,null,0,null,0,null,null,0,null,null,0]
[88,"ID88",null,null,null,null,null,null,null,0,null,0,null,null,0,null,null,0]
[89,"ID89",null,null,null,null,null,null,null,0,null,0,null,null,0,null,null,0]
[90,"ID90",null,null,null,null,null,null,null,0,null,0,null,null,0,null,null,0]
[91,"ID91",null,null,null,null,null,null,null,0,null,0,null,null,0,null,null,0]
[92,"ID92",null,null,null,null,null,null,null,0,null,0,null,null,0,null,null,0]
[93,"ID93",null,null,null,null,null,null,null,0,null,0,null,null,0,null,null,0]
[94,"ID94",null,null,null,null,null,null,null,0,null,0,null,null,0,null,null,0]
[95,"ID95",null,null,null,null,null,null,null,0,null,0,null,null,0,null,null,0]
[96,"ID96",null,null,null,null,null,null,null,0,null,0,null,null,0,null,null,0]
[{"$f":"A104+1","v":97},"ID97",null,null,null,null,null,null,null,0,null,0,null,null,0,null,null,0]
[98,"ID98",null,null,null,null,null,null,null,0,null,0,null,null,0,null,null,0]
[99,"ID99",null,null,null,null,null,null,null,0,null,0,null,null,0,null,null,0]
[100,"ID100",null,null,null,null,null,null,null,0,null,0,null,null,0,null,null,0]
[null,null,"Total for the Reporting Period",{"$f":"SUM(D9:D108)","v":0},0,0,0,0,0,0,0,0,null,{"$f":"SUM(N9:N108)","v":0},{"$f":"J109+N109","v":0},null,{"$f":"SUM(Q9:Q108)","v":0},{"$f":"O109+Q109","v":0}]
[]
[null,null,"* Includes interest income, income generating activites etc."]

{"sheet":"SR Cash Recon Import Export","index":19,"n_rows":105,"n_cols":14,"rows_kept":105,"cut":false,"hidden":true,"merged":[]}
["Tab should be locked"]
["Tab should be veryhidden"]
[]
["Record ID","Reporting Period ID","Counter","Look up ID","SR Name","Cumulative SR exp. for prior periods","SR Open Advances at PR Level","PR Disbursements for Rep. Period","Other Income during Rep. Period","PR validated exp. during Rep. Period","Refunds received from SR","Actual SR Cash Balance","Variances on SR Balances","LFA Adjustments"]
["[Record ID]",null,{"$f":"C3+1","v":1},{"$f":"\"ID\"&C5","v":"ID1"},{"$f":"IFERROR(IF(INDEX('SR_Cash Reconciliation_2E'!C$9:C$270,MATCH($D5,'SR_Cash Reconciliation_2E'!$B$9:$B$270,0))=\"\",\"\",INDEX('SR_Cash Reconciliation_2E'!C$9:C$270,MATCH($D5,'SR_Cash Reconciliation_2E'!$B$9:$B$270,0))),\"\")","v":""},{"$f":"IFERROR(IF(INDEX('SR_Cash Reconciliation_2E'!D$9:D$270,MATCH($D5,'SR_Cash Reconciliation_2E'!$B$9:$B$270,0))=\"\",\"\",INDEX('SR_Cash Reconciliation_2E'!D$9:D$270,MATCH($D5,'SR_Cash Reconciliation_2E'!$B$9:$B$270,0))),\"\")","v":""},{"$f":"IFERROR(IF(INDEX('SR_Cash Reconciliation_2E'!E$9:E$270,MATCH($D5,'SR_Cash Reconciliation_2E'!$B$9:$B$270,0))=\"\",\"\",INDEX('SR_Cash Reconciliation_2E'!E$9:E$270,MATCH($D5,'SR_Cash Reconciliation_2E'!$B$9:$B$270,0))),\"\")","v":""},{"$f":"IFERROR(IF(INDEX('SR_Cash Reconciliation_2E'!F$9:F$270,MATCH($D5,'SR_Cash Reconciliation_2E'!$B$9:$B$270,0))=\"\",\"\",INDEX('SR_Cash Reconciliation_2E'!F$9:F$270,MATCH($D5,'SR_Cash Reconciliation_2E'!$B$9:$B$270,0))),\"\")","v":""},{"$f":"IFERROR(IF(INDEX('SR_Cash Reconciliation_2E'!G$9:G$270,MATCH($D5,'SR_Cash Reconciliation_2E'!$B$9:$B$270,0))=\"\",\"\",INDEX('SR_Cash Reconciliation_2E'!G$9:G$270,MATCH($D5,'SR_Cash Reconciliation_2E'!$B$9:$B$270,0))),\"\")","v":""},{"$f":"IFERROR(IF(INDEX('SR_Cash Reconciliation_2E'!H$9:H$270,MATCH($D5,'SR_Cash Reconciliation_2E'!$B$9:$B$270,0))=\"\",\"\",INDEX('SR_Cash Reconciliation_2E'!H$9:H$270,MATCH($D5,'SR_Cash Reconciliation_2E'!$B$9:$B$270,0))),\"\")","v":""},{"$f":"IFERROR(IF(INDEX('SR_Cash Reconciliation_2E'!I$9:I$270,MATCH($D5,'SR_Cash Reconciliation_2E'!$B$9:$B$270,0))=\"\",\"\",INDEX('SR_Cash Reconciliation_2E'!I$9:I$270,MATCH($D5,'SR_Cash Reconciliation_2E'!$B$9:$B$270,0))),\"\")","v":""},{"$f":"IFERROR(IF(INDEX('SR_Cash Reconciliation_2E'!K$9:K$270,MATCH($D5,'SR_Cash Reconciliation_2E'!$B$9:$B$270,0))=\"\",\"\",INDEX('SR_Cash Reconciliation_2E'!K$9:K$270,MATCH($D5,'SR_Cash Reconciliation_2E'!$B$9:$B$270,0))),\"\")","v":""},{"$f":"\"\"","v":""},{"$f":"IFERROR(IF(INDEX('SR_Cash Reconciliation_2E'!N$9:N$270,MATCH($D5,'SR_Cash Reconciliation_2E'!$B$9:$B$270,0))=\"\",\"\",INDEX('SR_Cash Reconciliation_2E'!N$9:N$270,MATCH($D5,'SR_Cash Reconciliation_2E'!$B$9:$B$270,0))),\"\")","v":""}]
[null,null,{"$f":"C4+1","v":{"$error":"#VALUE!"}},{"$f":"\"ID\"&C6","v":{"$error":"#VALUE!"}},{"$f":"IFERROR(IF(INDEX('SR_Cash Reconciliation_2E'!C$9:C$270,MATCH($D6,'SR_Cash Reconciliation_2E'!$B$9:$B$270,0))=\"\",\"\",INDEX('SR_Cash Reconciliation_2E'!C$9:C$270,MATCH($D6,'SR_Cash Reconciliation_2E'!$B$9:$B$270,0))),\"\")","v":""},{"$f":"IFERROR(IF(INDEX('SR_Cash Reconciliation_2E'!D$9:D$270,MATCH($D6,'SR_Cash Reconciliation_2E'!$B$9:$B$270,0))=\"\",\"\",INDEX('SR_Cash Reconciliation_2E'!D$9:D$270,MATCH($D6,'SR_Cash Reconciliation_2E'!$B$9:$B$270,0))),\"\")","v":""},{"$f":"IFERROR(IF(INDEX('SR_Cash Reconciliation_2E'!E$9:E$270,MATCH($D6,'SR_Cash Reconciliation_2E'!$B$9:$B$270,0))=\"\",\"\",INDEX('SR_Cash Reconciliation_2E'!E$9:E$270,MATCH($D6,'SR_Cash Reconciliation_2E'!$B$9:$B$270,0))),\"\")","v":""},{"$f":"IFERROR(IF(INDEX('SR_Cash Reconciliation_2E'!F$9:F$270,MATCH($D6,'SR_Cash Reconciliation_2E'!$B$9:$B$270,0))=\"\",\"\",INDEX('SR_Cash Reconciliation_2E'!F$9:F$270,MATCH($D6,'SR_Cash Reconciliation_2E'!$B$9:$B$270,0))),\"\")","v":""},{"$f":"IFERROR(IF(INDEX('SR_Cash Reconciliation_2E'!G$9:G$270,MATCH($D6,'SR_Cash Reconciliation_2E'!$B$9:$B$270,0))=\"\",\"\",INDEX('SR_Cash Reconciliation_2E'!G$9:G$270,MATCH($D6,'SR_Cash Reconciliation_2E'!$B$9:$B$270,0))),\"\")","v":""},{"$f":"IFERROR(IF(INDEX('SR_Cash Reconciliation_2E'!H$9:H$270,MATCH($D6,'SR_Cash Reconciliation_2E'!$B$9:$B$270,0))=\"\",\"\",INDEX('SR_Cash Reconciliation_2E'!H$9:H$270,MATCH($D6,'SR_Cash Reconciliation_2E'!$B$9:$B$270,0))),\"\")","v":""},{"$f":"IFERROR(IF(INDEX('SR_Cash Reconciliation_2E'!I$9:I$270,MATCH($D6,'SR_Cash Reconciliation_2E'!$B$9:$B$270,0))=\"\",\"\",INDEX('SR_Cash Reconciliation_2E'!I$9:I$270,MATCH($D6,'SR_Cash Reconciliation_2E'!$B$9:$B$270,0))),\"\")","v":""},{"$f":"IFERROR(IF(INDEX('SR_Cash Reconciliation_2E'!K$9:K$270,MATCH($D6,'SR_Cash Reconciliation_2E'!$B$9:$B$270,0))=\"\",\"\",INDEX('SR_Cash Reconciliation_2E'!K$9:K$270,MATCH($D6,'SR_Cash Reconciliation_2E'!$B$9:$B$270,0))),\"\")","v":""},{"$f":"\"\"","v":""},{"$f":"IFERROR(IF(INDEX('SR_Cash Reconciliation_2E'!N$9:N$270,MATCH($D6,'SR_Cash Reconciliation_2E'!$B$9:$B$270,0))=\"\",\"\",INDEX('SR_Cash Reconciliation_2E'!N$9:N$270,MATCH($D6,'SR_Cash Reconciliation_2E'!$B$9:$B$270,0))),\"\")","v":""}]
[null,null,2,"ID2",{"$f":"IFERROR(IF(INDEX('SR_Cash Reconciliation_2E'!C$9:C$270,MATCH($D7,'SR_Cash Reconciliation_2E'!$B$9:$B$270,0))=\"\",\"\",INDEX('SR_Cash Reconciliation_2E'!C$9:C$270,MATCH($D7,'SR_Cash Reconciliation_2E'!$B$9:$B$270,0))),\"\")","v":""},{"$f":"IFERROR(IF(INDEX('SR_Cash Reconciliation_2E'!D$9:D$270,MATCH($D7,'SR_Cash Reconciliation_2E'!$B$9:$B$270,0))=\"\",\"\",INDEX('SR_Cash Reconciliation_2E'!D$9:D$270,MATCH($D7,'SR_Cash Reconciliation_2E'!$B$9:$B$270,0))),\"\")","v":""},{"$f":"IFERROR(IF(INDEX('SR_Cash Reconciliation_2E'!E$9:E$270,MATCH($D7,'SR_Cash Reconciliation_2E'!$B$9:$B$270,0))=\"\",\"\",INDEX('SR_Cash Reconciliation_2E'!E$9:E$270,MATCH($D7,'SR_Cash Reconciliation_2E'!$B$9:$B$270,0))),\"\")","v":""},{"$f":"IFERROR(IF(INDEX('SR_Cash Reconciliation_2E'!F$9:F$270,MATCH($D7,'SR_Cash Reconciliation_2E'!$B$9:$B$270,0))=\"\",\"\",INDEX('SR_Cash Reconciliation_2E'!F$9:F$270,MATCH($D7,'SR_Cash Reconciliation_2E'!$B$9:$B$270,0))),\"\")","v":""},{"$f":"IFERROR(IF(INDEX('SR_Cash Reconciliation_2E'!G$9:G$270,MATCH($D7,'SR_Cash Reconciliation_2E'!$B$9:$B$270,0))=\"\",\"\",INDEX('SR_Cash Reconciliation_2E'!G$9:G$270,MATCH($D7,'SR_Cash Reconciliation_2E'!$B$9:$B$270,0))),\"\")","v":""},{"$f":"IFERROR(IF(INDEX('SR_Cash Reconciliation_2E'!H$9:H$270,MATCH($D7,'SR_Cash Reconciliation_2E'!$B$9:$B$270,0))=\"\",\"\",INDEX('SR_Cash Reconciliation_2E'!H$9:H$270,MATCH($D7,'SR_Cash Reconciliation_2E'!$B$9:$B$270,0))),\"\")","v":""},{"$f":"IFERROR(IF(INDEX('SR_Cash Reconciliation_2E'!I$9:I$270,MATCH($D7,'SR_Cash Reconciliation_2E'!$B$9:$B$270,0))=\"\",\"\",INDEX('SR_Cash Reconciliation_2E'!I$9:I$270,MATCH($D7,'SR_Cash Reconciliation_2E'!$B$9:$B$270,0))),\"\")","v":""},{"$f":"IFERROR(IF(INDEX('SR_Cash Reconciliation_2E'!K$9:K$270,MATCH($D7,'SR_Cash Reconciliation_2E'!$B$9:$B$270,0))=\"\",\"\",INDEX('SR_Cash Reconciliation_2E'!K$9:K$270,MATCH($D7,'SR_Cash Reconciliation_2E'!$B$9:$B$270,0))),\"\")","v":""},{"$f":"\"\"","v":""},{"$f":"IFERROR(IF(INDEX('SR_Cash Reconciliation_2E'!N$9:N$270,MATCH($D7,'SR_Cash Reconciliation_2E'!$B$9:$B$270,0))=\"\",\"\",INDEX('SR_Cash Reconciliation_2E'!N$9:N$270,MATCH($D7,'SR_Cash Reconciliation_2E'!$B$9:$B$270,0))),\"\")","v":""}]
[null,null,{"$error":"#VALUE!"},{"$error":"#VALUE!"},{"$f":"IFERROR(IF(INDEX('SR_Cash Reconciliation_2E'!C$9:C$270,MATCH($D8,'SR_Cash Reconciliation_2E'!$B$9:$B$270,0))=\"\",\"\",INDEX('SR_Cash Reconciliation_2E'!C$9:C$270,MATCH($D8,'SR_Cash Reconciliation_2E'!$B$9:$B$270,0))),\"\")","v":""},{"$f":"IFERROR(IF(INDEX('SR_Cash Reconciliation_2E'!D$9:D$270,MATCH($D8,'SR_Cash Reconciliation_2E'!$B$9:$B$270,0))=\"\",\"\",INDEX('SR_Cash Reconciliation_2E'!D$9:D$270,MATCH($D8,'SR_Cash Reconciliation_2E'!$B$9:$B$270,0))),\"\")","v":""},{"$f":"IFERROR(IF(INDEX('SR_Cash Reconciliation_2E'!E$9:E$270,MATCH($D8,'SR_Cash Reconciliation_2E'!$B$9:$B$270,0))=\"\",\"\",INDEX('SR_Cash Reconciliation_2E'!E$9:E$270,MATCH($D8,'SR_Cash Reconciliation_2E'!$B$9:$B$270,0))),\"\")","v":""},{"$f":"IFERROR(IF(INDEX('SR_Cash Reconciliation_2E'!F$9:F$270,MATCH($D8,'SR_Cash Reconciliation_2E'!$B$9:$B$270,0))=\"\",\"\",INDEX('SR_Cash Reconciliation_2E'!F$9:F$270,MATCH($D8,'SR_Cash Reconciliation_2E'!$B$9:$B$270,0))),\"\")","v":""},{"$f":"IFERROR(IF(INDEX('SR_Cash Reconciliation_2E'!G$9:G$270,MATCH($D8,'SR_Cash Reconciliation_2E'!$B$9:$B$270,0))=\"\",\"\",INDEX('SR_Cash Reconciliation_2E'!G$9:G$270,MATCH($D8,'SR_Cash Reconciliation_2E'!$B$9:$B$270,0))),\"\")","v":""},{"$f":"IFERROR(IF(INDEX('SR_Cash Reconciliation_2E'!H$9:H$270,MATCH($D8,'SR_Cash Reconciliation_2E'!$B$9:$B$270,0))=\"\",\"\",INDEX('SR_Cash Reconciliation_2E'!H$9:H$270,MATCH($D8,'SR_Cash Reconciliation_2E'!$B$9:$B$270,0))),\"\")","v":""},{"$f":"IFERROR(IF(INDEX('SR_Cash Reconciliation_2E'!I$9:I$270,MATCH($D8,'SR_Cash Reconciliation_2E'!$B$9:$B$270,0))=\"\",\"\",INDEX('SR_Cash Reconciliation_2E'!I$9:I$270,MATCH($D8,'SR_Cash Reconciliation_2E'!$B$9:$B$270,0))),\"\")","v":""},{"$f":"IFERROR(IF(INDEX('SR_Cash Reconciliation_2E'!K$9:K$270,MATCH($D8,'SR_Cash Reconciliation_2E'!$B$9:$B$270,0))=\"\",\"\",INDEX('SR_Cash Reconciliation_2E'!K$9:K$270,MATCH($D8,'SR_Cash Reconciliation_2E'!$B$9:$B$270,0))),\"\")","v":""},{"$f":"\"\"","v":""},{"$f":"IFERROR(IF(INDEX('SR_Cash Reconciliation_2E'!N$9:N$270,MATCH($D8,'SR_Cash Reconciliation_2E'!$B$9:$B$270,0))=\"\",\"\",INDEX('SR_Cash Reconciliation_2E'!N$9:N$270,MATCH($D8,'SR_Cash Reconciliation_2E'!$B$9:$B$270,0))),\"\")","v":""}]
[null,null,3,"ID3",{"$f":"IFERROR(IF(INDEX('SR_Cash Reconciliation_2E'!C$9:C$270,MATCH($D9,'SR_Cash Reconciliation_2E'!$B$9:$B$270,0))=\"\",\"\",INDEX('SR_Cash Reconciliation_2E'!C$9:C$270,MATCH($D9,'SR_Cash Reconciliation_2E'!$B$9:$B$270,0))),\"\")","v":""},{"$f":"IFERROR(IF(INDEX('SR_Cash Reconciliation_2E'!D$9:D$270,MATCH($D9,'SR_Cash Reconciliation_2E'!$B$9:$B$270,0))=\"\",\"\",INDEX('SR_Cash Reconciliation_2E'!D$9:D$270,MATCH($D9,'SR_Cash Reconciliation_2E'!$B$9:$B$270,0))),\"\")","v":""},{"$f":"IFERROR(IF(INDEX('SR_Cash Reconciliation_2E'!E$9:E$270,MATCH($D9,'SR_Cash Reconciliation_2E'!$B$9:$B$270,0))=\"\",\"\",INDEX('SR_Cash Reconciliation_2E'!E$9:E$270,MATCH($D9,'SR_Cash Reconciliation_2E'!$B$9:$B$270,0))),\"\")","v":""},{"$f":"IFERROR(IF(INDEX('SR_Cash Reconciliation_2E'!F$9:F$270,MATCH($D9,'SR_Cash Reconciliation_2E'!$B$9:$B$270,0))=\"\",\"\",INDEX('SR_Cash Reconciliation_2E'!F$9:F$270,MATCH($D9,'SR_Cash Reconciliation_2E'!$B$9:$B$270,0))),\"\")","v":""},{"$f":"IFERROR(IF(INDEX('SR_Cash Reconciliation_2E'!G$9:G$270,MATCH($D9,'SR_Cash Reconciliation_2E'!$B$9:$B$270,0))=\"\",\"\",INDEX('SR_Cash Reconciliation_2E'!G$9:G$270,MATCH($D9,'SR_Cash Reconciliation_2E'!$B$9:$B$270,0))),\"\")","v":""},{"$f":"IFERROR(IF(INDEX('SR_Cash Reconciliation_2E'!H$9:H$270,MATCH($D9,'SR_Cash Reconciliation_2E'!$B$9:$B$270,0))=\"\",\"\",INDEX('SR_Cash Reconciliation_2E'!H$9:H$270,MATCH($D9,'SR_Cash Reconciliation_2E'!$B$9:$B$270,0))),\"\")","v":""},{"$f":"IFERROR(IF(INDEX('SR_Cash Reconciliation_2E'!I$9:I$270,MATCH($D9,'SR_Cash Reconciliation_2E'!$B$9:$B$270,0))=\"\",\"\",INDEX('SR_Cash Reconciliation_2E'!I$9:I$270,MATCH($D9,'SR_Cash Reconciliation_2E'!$B$9:$B$270,0))),\"\")","v":""},{"$f":"IFERROR(IF(INDEX('SR_Cash Reconciliation_2E'!K$9:K$270,MATCH($D9,'SR_Cash Reconciliation_2E'!$B$9:$B$270,0))=\"\",\"\",INDEX('SR_Cash Reconciliation_2E'!K$9:K$270,MATCH($D9,'SR_Cash Reconciliation_2E'!$B$9:$B$270,0))),\"\")","v":""},{"$f":"\"\"","v":""},{"$f":"IFERROR(IF(INDEX('SR_Cash Reconciliation_2E'!N$9:N$270,MATCH($D9,'SR_Cash Reconciliation_2E'!$B$9:$B$270,0))=\"\",\"\",INDEX('SR_Cash Reconciliation_2E'!N$9:N$270,MATCH($D9,'SR_Cash Reconciliation_2E'!$B$9:$B$270,0))),\"\")","v":""}]
[null,null,{"$error":"#VALUE!"},{"$error":"#VALUE!"},{"$f":"IFERROR(IF(INDEX('SR_Cash Reconciliation_2E'!C$9:C$270,MATCH($D10,'SR_Cash Reconciliation_2E'!$B$9:$B$270,0))=\"\",\"\",INDEX('SR_Cash Reconciliation_2E'!C$9:C$270,MATCH($D10,'SR_Cash Reconciliation_2E'!$B$9:$B$270,0))),\"\")","v":""},{"$f":"IFERROR(IF(INDEX('SR_Cash Reconciliation_2E'!D$9:D$270,MATCH($D10,'SR_Cash Reconciliation_2E'!$B$9:$B$270,0))=\"\",\"\",INDEX('SR_Cash Reconciliation_2E'!D$9:D$270,MATCH($D10,'SR_Cash Reconciliation_2E'!$B$9:$B$270,0))),\"\")","v":""},{"$f":"IFERROR(IF(INDEX('SR_Cash Reconciliation_2E'!E$9:E$270,MATCH($D10,'SR_Cash Reconciliation_2E'!$B$9:$B$270,0))=\"\",\"\",INDEX('SR_Cash Reconciliation_2E'!E$9:E$270,MATCH($D10,'SR_Cash Reconciliation_2E'!$B$9:$B$270,0))),\"\")","v":""},{"$f":"IFERROR(IF(INDEX('SR_Cash Reconciliation_2E'!F$9:F$270,MATCH($D10,'SR_Cash Reconciliation_2E'!$B$9:$B$270,0))=\"\",\"\",INDEX('SR_Cash Reconciliation_2E'!F$9:F$270,MATCH($D10,'SR_Cash Reconciliation_2E'!$B$9:$B$270,0))),\"\")","v":""},{"$f":"IFERROR(IF(INDEX('SR_Cash Reconciliation_2E'!G$9:G$270,MATCH($D10,'SR_Cash Reconciliation_2E'!$B$9:$B$270,0))=\"\",\"\",INDEX('SR_Cash Reconciliation_2E'!G$9:G$270,MATCH($D10,'SR_Cash Reconciliation_2E'!$B$9:$B$270,0))),\"\")","v":""},{"$f":"IFERROR(IF(INDEX('SR_Cash Reconciliation_2E'!H$9:H$270,MATCH($D10,'SR_Cash Reconciliation_2E'!$B$9:$B$270,0))=\"\",\"\",INDEX('SR_Cash Reconciliation_2E'!H$9:H$270,MATCH($D10,'SR_Cash Reconciliation_2E'!$B$9:$B$270,0))),\"\")","v":""},{"$f":"IFERROR(IF(INDEX('SR_Cash Reconciliation_2E'!I$9:I$270,MATCH($D10,'SR_Cash Reconciliation_2E'!$B$9:$B$270,0))=\"\",\"\",INDEX('SR_Cash Reconciliation_2E'!I$9:I$270,MATCH($D10,'SR_Cash Reconciliation_2E'!$B$9:$B$270,0))),\"\")","v":""},{"$f":"IFERROR(IF(INDEX('SR_Cash Reconciliation_2E'!K$9:K$270,MATCH($D10,'SR_Cash Reconciliation_2E'!$B$9:$B$270,0))=\"\",\"\",INDEX('SR_Cash Reconciliation_2E'!K$9:K$270,MATCH($D10,'SR_Cash Reconciliation_2E'!$B$9:$B$270,0))),\"\")","v":""},{"$f":"\"\"","v":""},{"$f":"IFERROR(IF(INDEX('SR_Cash Reconciliation_2E'!N$9:N$270,MATCH($D10,'SR_Cash Reconciliation_2E'!$B$9:$B$270,0))=\"\",\"\",INDEX('SR_Cash Reconciliation_2E'!N$9:N$270,MATCH($D10,'SR_Cash Reconciliation_2E'!$B$9:$B$270,0))),\"\")","v":""}]
[null,null,4,"ID4",{"$f":"IFERROR(IF(INDEX('SR_Cash Reconciliation_2E'!C$9:C$270,MATCH($D11,'SR_Cash Reconciliation_2E'!$B$9:$B$270,0))=\"\",\"\",INDEX('SR_Cash Reconciliation_2E'!C$9:C$270,MATCH($D11,'SR_Cash Reconciliation_2E'!$B$9:$B$270,0))),\"\")","v":""},{"$f":"IFERROR(IF(INDEX('SR_Cash Reconciliation_2E'!D$9:D$270,MATCH($D11,'SR_Cash Reconciliation_2E'!$B$9:$B$270,0))=\"\",\"\",INDEX('SR_Cash Reconciliation_2E'!D$9:D$270,MATCH($D11,'SR_Cash Reconciliation_2E'!$B$9:$B$270,0))),\"\")","v":""},{"$f":"IFERROR(IF(INDEX('SR_Cash Reconciliation_2E'!E$9:E$270,MATCH($D11,'SR_Cash Reconciliation_2E'!$B$9:$B$270,0))=\"\",\"\",INDEX('SR_Cash Reconciliation_2E'!E$9:E$270,MATCH($D11,'SR_Cash Reconciliation_2E'!$B$9:$B$270,0))),\"\")","v":""},{"$f":"IFERROR(IF(INDEX('SR_Cash Reconciliation_2E'!F$9:F$270,MATCH($D11,'SR_Cash Reconciliation_2E'!$B$9:$B$270,0))=\"\",\"\",INDEX('SR_Cash Reconciliation_2E'!F$9:F$270,MATCH($D11,'SR_Cash Reconciliation_2E'!$B$9:$B$270,0))),\"\")","v":""},{"$f":"IFERROR(IF(INDEX('SR_Cash Reconciliation_2E'!G$9:G$270,MATCH($D11,'SR_Cash Reconciliation_2E'!$B$9:$B$270,0))=\"\",\"\",INDEX('SR_Cash Reconciliation_2E'!G$9:G$270,MATCH($D11,'SR_Cash Reconciliation_2E'!$B$9:$B$270,0))),\"\")","v":""},{"$f":"IFERROR(IF(INDEX('SR_Cash Reconciliation_2E'!H$9:H$270,MATCH($D11,'SR_Cash Reconciliation_2E'!$B$9:$B$270,0))=\"\",\"\",INDEX('SR_Cash Reconciliation_2E'!H$9:H$270,MATCH($D11,'SR_Cash Reconciliation_2E'!$B$9:$B$270,0))),\"\")","v":""},{"$f":"IFERROR(IF(INDEX('SR_Cash Reconciliation_2E'!I$9:I$270,MATCH($D11,'SR_Cash Reconciliation_2E'!$B$9:$B$270,0))=\"\",\"\",INDEX('SR_Cash Reconciliation_2E'!I$9:I$270,MATCH($D11,'SR_Cash Reconciliation_2E'!$B$9:$B$270,0))),\"\")","v":""},{"$f":"IFERROR(IF(INDEX('SR_Cash Reconciliation_2E'!K$9:K$270,MATCH($D11,'SR_Cash Reconciliation_2E'!$B$9:$B$270,0))=\"\",\"\",INDEX('SR_Cash Reconciliation_2E'!K$9:K$270,MATCH($D11,'SR_Cash Reconciliation_2E'!$B$9:$B$270,0))),\"\")","v":""},{"$f":"\"\"","v":""},{"$f":"IFERROR(IF(INDEX('SR_Cash Reconciliation_2E'!N$9:N$270,MATCH($D11,'SR_Cash Reconciliation_2E'!$B$9:$B$270,0))=\"\",\"\",INDEX('SR_Cash Reconciliation_2E'!N$9:N$270,MATCH($D11,'SR_Cash Reconciliation_2E'!$B$9:$B$270,0))),\"\")","v":""}]
[null,null,{"$error":"#VALUE!"},{"$error":"#VALUE!"},{"$f":"IFERROR(IF(INDEX('SR_Cash Reconciliation_2E'!C$9:C$270,MATCH($D12,'SR_Cash Reconciliation_2E'!$B$9:$B$270,0))=\"\",\"\",INDEX('SR_Cash Reconciliation_2E'!C$9:C$270,MATCH($D12,'SR_Cash Reconciliation_2E'!$B$9:$B$270,0))),\"\")","v":""},{"$f":"IFERROR(IF(INDEX('SR_Cash Reconciliation_2E'!D$9:D$270,MATCH($D12,'SR_Cash Reconciliation_2E'!$B$9:$B$270,0))=\"\",\"\",INDEX('SR_Cash Reconciliation_2E'!D$9:D$270,MATCH($D12,'SR_Cash Reconciliation_2E'!$B$9:$B$270,0))),\"\")","v":""},{"$f":"IFERROR(IF(INDEX('SR_Cash Reconciliation_2E'!E$9:E$270,MATCH($D12,'SR_Cash Reconciliation_2E'!$B$9:$B$270,0))=\"\",\"\",INDEX('SR_Cash Reconciliation_2E'!E$9:E$270,MATCH($D12,'SR_Cash Reconciliation_2E'!$B$9:$B$270,0))),\"\")","v":""},{"$f":"IFERROR(IF(INDEX('SR_Cash Reconciliation_2E'!F$9:F$270,MATCH($D12,'SR_Cash Reconciliation_2E'!$B$9:$B$270,0))=\"\",\"\",INDEX('SR_Cash Reconciliation_2E'!F$9:F$270,MATCH($D12,'SR_Cash Reconciliation_2E'!$B$9:$B$270,0))),\"\")","v":""},{"$f":"IFERROR(IF(INDEX('SR_Cash Reconciliation_2E'!G$9:G$270,MATCH($D12,'SR_Cash Reconciliation_2E'!$B$9:$B$270,0))=\"\",\"\",INDEX('SR_Cash Reconciliation_2E'!G$9:G$270,MATCH($D12,'SR_Cash Reconciliation_2E'!$B$9:$B$270,0))),\"\")","v":""},{"$f":"IFERROR(IF(INDEX('SR_Cash Reconciliation_2E'!H$9:H$270,MATCH($D12,'SR_Cash Reconciliation_2E'!$B$9:$B$270,0))=\"\",\"\",INDEX('SR_Cash Reconciliation_2E'!H$9:H$270,MATCH($D12,'SR_Cash Reconciliation_2E'!$B$9:$B$270,0))),\"\")","v":""},{"$f":"IFERROR(IF(INDEX('SR_Cash Reconciliation_2E'!I$9:I$270,MATCH($D12,'SR_Cash Reconciliation_2E'!$B$9:$B$270,0))=\"\",\"\",INDEX('SR_Cash Reconciliation_2E'!I$9:I$270,MATCH($D12,'SR_Cash Reconciliation_2E'!$B$9:$B$270,0))),\"\")","v":""},{"$f":"IFERROR(IF(INDEX('SR_Cash Reconciliation_2E'!K$9:K$270,MATCH($D12,'SR_Cash Reconciliation_2E'!$B$9:$B$270,0))=\"\",\"\",INDEX('SR_Cash Reconciliation_2E'!K$9:K$270,MATCH($D12,'SR_Cash Reconciliation_2E'!$B$9:$B$270,0))),\"\")","v":""},{"$f":"\"\"","v":""},{"$f":"IFERROR(IF(INDEX('SR_Cash Reconciliation_2E'!N$9:N$270,MATCH($D12,'SR_Cash Reconciliation_2E'!$B$9:$B$270,0))=\"\",\"\",INDEX('SR_Cash Reconciliation_2E'!N$9:N$270,MATCH($D12,'SR_Cash Reconciliation_2E'!$B$9:$B$270,0))),\"\")","v":""}]
[null,null,5,"ID5",{"$f":"IFERROR(IF(INDEX('SR_Cash Reconciliation_2E'!C$9:C$270,MATCH($D13,'SR_Cash Reconciliation_2E'!$B$9:$B$270,0))=\"\",\"\",INDEX('SR_Cash Reconciliation_2E'!C$9:C$270,MATCH($D13,'SR_Cash Reconciliation_2E'!$B$9:$B$270,0))),\"\")","v":""},{"$f":"IFERROR(IF(INDEX('SR_Cash Reconciliation_2E'!D$9:D$270,MATCH($D13,'SR_Cash Reconciliation_2E'!$B$9:$B$270,0))=\"\",\"\",INDEX('SR_Cash Reconciliation_2E'!D$9:D$270,MATCH($D13,'SR_Cash Reconciliation_2E'!$B$9:$B$270,0))),\"\")","v":""},{"$f":"IFERROR(IF(INDEX('SR_Cash Reconciliation_2E'!E$9:E$270,MATCH($D13,'SR_Cash Reconciliation_2E'!$B$9:$B$270,0))=\"\",\"\",INDEX('SR_Cash Reconciliation_2E'!E$9:E$270,MATCH($D13,'SR_Cash Reconciliation_2E'!$B$9:$B$270,0))),\"\")","v":""},{"$f":"IFERROR(IF(INDEX('SR_Cash Reconciliation_2E'!F$9:F$270,MATCH($D13,'SR_Cash Reconciliation_2E'!$B$9:$B$270,0))=\"\",\"\",INDEX('SR_Cash Reconciliation_2E'!F$9:F$270,MATCH($D13,'SR_Cash Reconciliation_2E'!$B$9:$B$270,0))),\"\")","v":""},{"$f":"IFERROR(IF(INDEX('SR_Cash Reconciliation_2E'!G$9:G$270,MATCH($D13,'SR_Cash Reconciliation_2E'!$B$9:$B$270,0))=\"\",\"\",INDEX('SR_Cash Reconciliation_2E'!G$9:G$270,MATCH($D13,'SR_Cash Reconciliation_2E'!$B$9:$B$270,0))),\"\")","v":""},{"$f":"IFERROR(IF(INDEX('SR_Cash Reconciliation_2E'!H$9:H$270,MATCH($D13,'SR_Cash Reconciliation_2E'!$B$9:$B$270,0))=\"\",\"\",INDEX('SR_Cash Reconciliation_2E'!H$9:H$270,MATCH($D13,'SR_Cash Reconciliation_2E'!$B$9:$B$270,0))),\"\")","v":""},{"$f":"IFERROR(IF(INDEX('SR_Cash Reconciliation_2E'!I$9:I$270,MATCH($D13,'SR_Cash Reconciliation_2E'!$B$9:$B$270,0))=\"\",\"\",INDEX('SR_Cash Reconciliation_2E'!I$9:I$270,MATCH($D13,'SR_Cash Reconciliation_2E'!$B$9:$B$270,0))),\"\")","v":""},{"$f":"IFERROR(IF(INDEX('SR_Cash Reconciliation_2E'!K$9:K$270,MATCH($D13,'SR_Cash Reconciliation_2E'!$B$9:$B$270,0))=\"\",\"\",INDEX('SR_Cash Reconciliation_2E'!K$9:K$270,MATCH($D13,'SR_Cash Reconciliation_2E'!$B$9:$B$270,0))),\"\")","v":""},{"$f":"\"\"","v":""},{"$f":"IFERROR(IF(INDEX('SR_Cash Reconciliation_2E'!N$9:N$270,MATCH($D13,'SR_Cash Reconciliation_2E'!$B$9:$B$270,0))=\"\",\"\",INDEX('SR_Cash Reconciliation_2E'!N$9:N$270,MATCH($D13,'SR_Cash Reconciliation_2E'!$B$9:$B$270,0))),\"\")","v":""}]
[null,null,{"$error":"#VALUE!"},{"$error":"#VALUE!"},{"$f":"IFERROR(IF(INDEX('SR_Cash Reconciliation_2E'!C$9:C$270,MATCH($D14,'SR_Cash Reconciliation_2E'!$B$9:$B$270,0))=\"\",\"\",INDEX('SR_Cash Reconciliation_2E'!C$9:C$270,MATCH($D14,'SR_Cash Reconciliation_2E'!$B$9:$B$270,0))),\"\")","v":""},{"$f":"IFERROR(IF(INDEX('SR_Cash Reconciliation_2E'!D$9:D$270,MATCH($D14,'SR_Cash Reconciliation_2E'!$B$9:$B$270,0))=\"\",\"\",INDEX('SR_Cash Reconciliation_2E'!D$9:D$270,MATCH($D14,'SR_Cash Reconciliation_2E'!$B$9:$B$270,0))),\"\")","v":""},{"$f":"IFERROR(IF(INDEX('SR_Cash Reconciliation_2E'!E$9:E$270,MATCH($D14,'SR_Cash Reconciliation_2E'!$B$9:$B$270,0))=\"\",\"\",INDEX('SR_Cash Reconciliation_2E'!E$9:E$270,MATCH($D14,'SR_Cash Reconciliation_2E'!$B$9:$B$270,0))),\"\")","v":""},{"$f":"IFERROR(IF(INDEX('SR_Cash Reconciliation_2E'!F$9:F$270,MATCH($D14,'SR_Cash Reconciliation_2E'!$B$9:$B$270,0))=\"\",\"\",INDEX('SR_Cash Reconciliation_2E'!F$9:F$270,MATCH($D14,'SR_Cash Reconciliation_2E'!$B$9:$B$270,0))),\"\")","v":""},{"$f":"IFERROR(IF(INDEX('SR_Cash Reconciliation_2E'!G$9:G$270,MATCH($D14,'SR_Cash Reconciliation_2E'!$B$9:$B$270,0))=\"\",\"\",INDEX('SR_Cash Reconciliation_2E'!G$9:G$270,MATCH($D14,'SR_Cash Reconciliation_2E'!$B$9:$B$270,0))),\"\")","v":""},{"$f":"IFERROR(IF(INDEX('SR_Cash Reconciliation_2E'!H$9:H$270,MATCH($D14,'SR_Cash Reconciliation_2E'!$B$9:$B$270,0))=\"\",\"\",INDEX('SR_Cash Reconciliation_2E'!H$9:H$270,MATCH($D14,'SR_Cash Reconciliation_2E'!$B$9:$B$270,0))),\"\")","v":""},{"$f":"IFERROR(IF(INDEX('SR_Cash Reconciliation_2E'!I$9:I$270,MATCH($D14,'SR_Cash Reconciliation_2E'!$B$9:$B$270,0))=\"\",\"\",INDEX('SR_Cash Reconciliation_2E'!I$9:I$270,MATCH($D14,'SR_Cash Reconciliation_2E'!$B$9:$B$270,0))),\"\")","v":""},{"$f":"IFERROR(IF(INDEX('SR_Cash Reconciliation_2E'!K$9:K$270,MATCH($D14,'SR_Cash Reconciliation_2E'!$B$9:$B$270,0))=\"\",\"\",INDEX('SR_Cash Reconciliation_2E'!K$9:K$270,MATCH($D14,'SR_Cash Reconciliation_2E'!$B$9:$B$270,0))),\"\")","v":""},{"$f":"\"\"","v":""},{"$f":"IFERROR(IF(INDEX('SR_Cash Reconciliation_2E'!N$9:N$270,MATCH($D14,'SR_Cash Reconciliation_2E'!$B$9:$B$270,0))=\"\",\"\",INDEX('SR_Cash Reconciliation_2E'!N$9:N$270,MATCH($D14,'SR_Cash Reconciliation_2E'!$B$9:$B$270,0))),\"\")","v":""}]
[null,null,6,"ID6",{"$f":"IFERROR(IF(INDEX('SR_Cash Reconciliation_2E'!C$9:C$270,MATCH($D15,'SR_Cash Reconciliation_2E'!$B$9:$B$270,0))=\"\",\"\",INDEX('SR_Cash Reconciliation_2E'!C$9:C$270,MATCH($D15,'SR_Cash Reconciliation_2E'!$B$9:$B$270,0))),\"\")","v":""},{"$f":"IFERROR(IF(INDEX('SR_Cash Reconciliation_2E'!D$9:D$270,MATCH($D15,'SR_Cash Reconciliation_2E'!$B$9:$B$270,0))=\"\",\"\",INDEX('SR_Cash Reconciliation_2E'!D$9:D$270,MATCH($D15,'SR_Cash Reconciliation_2E'!$B$9:$B$270,0))),\"\")","v":""},{"$f":"IFERROR(IF(INDEX('SR_Cash Reconciliation_2E'!E$9:E$270,MATCH($D15,'SR_Cash Reconciliation_2E'!$B$9:$B$270,0))=\"\",\"\",INDEX('SR_Cash Reconciliation_2E'!E$9:E$270,MATCH($D15,'SR_Cash Reconciliation_2E'!$B$9:$B$270,0))),\"\")","v":""},{"$f":"IFERROR(IF(INDEX('SR_Cash Reconciliation_2E'!F$9:F$270,MATCH($D15,'SR_Cash Reconciliation_2E'!$B$9:$B$270,0))=\"\",\"\",INDEX('SR_Cash Reconciliation_2E'!F$9:F$270,MATCH($D15,'SR_Cash Reconciliation_2E'!$B$9:$B$270,0))),\"\")","v":""},{"$f":"IFERROR(IF(INDEX('SR_Cash Reconciliation_2E'!G$9:G$270,MATCH($D15,'SR_Cash Reconciliation_2E'!$B$9:$B$270,0))=\"\",\"\",INDEX('SR_Cash Reconciliation_2E'!G$9:G$270,MATCH($D15,'SR_Cash Reconciliation_2E'!$B$9:$B$270,0))),\"\")","v":""},{"$f":"IFERROR(IF(INDEX('SR_Cash Reconciliation_2E'!H$9:H$270,MATCH($D15,'SR_Cash Reconciliation_2E'!$B$9:$B$270,0))=\"\",\"\",INDEX('SR_Cash Reconciliation_2E'!H$9:H$270,MATCH($D15,'SR_Cash Reconciliation_2E'!$B$9:$B$270,0))),\"\")","v":""},{"$f":"IFERROR(IF(INDEX('SR_Cash Reconciliation_2E'!I$9:I$270,MATCH($D15,'SR_Cash Reconciliation_2E'!$B$9:$B$270,0))=\"\",\"\",INDEX('SR_Cash Reconciliation_2E'!I$9:I$270,MATCH($D15,'SR_Cash Reconciliation_2E'!$B$9:$B$270,0))),\"\")","v":""},{"$f":"IFERROR(IF(INDEX('SR_Cash Reconciliation_2E'!K$9:K$270,MATCH($D15,'SR_Cash Reconciliation_2E'!$B$9:$B$270,0))=\"\",\"\",INDEX('SR_Cash Reconciliation_2E'!K$9:K$270,MATCH($D15,'SR_Cash Reconciliation_2E'!$B$9:$B$270,0))),\"\")","v":""},{"$f":"\"\"","v":""},{"$f":"IFERROR(IF(INDEX('SR_Cash Reconciliation_2E'!N$9:N$270,MATCH($D15,'SR_Cash Reconciliation_2E'!$B$9:$B$270,0))=\"\",\"\",INDEX('SR_Cash Reconciliation_2E'!N$9:N$270,MATCH($D15,'SR_Cash Reconciliation_2E'!$B$9:$B$270,0))),\"\")","v":""}]
[null,null,{"$error":"#VALUE!"},{"$error":"#VALUE!"},{"$f":"IFERROR(IF(INDEX('SR_Cash Reconciliation_2E'!C$9:C$270,MATCH($D16,'SR_Cash Reconciliation_2E'!$B$9:$B$270,0))=\"\",\"\",INDEX('SR_Cash Reconciliation_2E'!C$9:C$270,MATCH($D16,'SR_Cash Reconciliation_2E'!$B$9:$B$270,0))),\"\")","v":""},{"$f":"IFERROR(IF(INDEX('SR_Cash Reconciliation_2E'!D$9:D$270,MATCH($D16,'SR_Cash Reconciliation_2E'!$B$9:$B$270,0))=\"\",\"\",INDEX('SR_Cash Reconciliation_2E'!D$9:D$270,MATCH($D16,'SR_Cash Reconciliation_2E'!$B$9:$B$270,0))),\"\")","v":""},{"$f":"IFERROR(IF(INDEX('SR_Cash Reconciliation_2E'!E$9:E$270,MATCH($D16,'SR_Cash Reconciliation_2E'!$B$9:$B$270,0))=\"\",\"\",INDEX('SR_Cash Reconciliation_2E'!E$9:E$270,MATCH($D16,'SR_Cash Reconciliation_2E'!$B$9:$B$270,0))),\"\")","v":""},{"$f":"IFERROR(IF(INDEX('SR_Cash Reconciliation_2E'!F$9:F$270,MATCH($D16,'SR_Cash Reconciliation_2E'!$B$9:$B$270,0))=\"\",\"\",INDEX('SR_Cash Reconciliation_2E'!F$9:F$270,MATCH($D16,'SR_Cash Reconciliation_2E'!$B$9:$B$270,0))),\"\")","v":""},{"$f":"IFERROR(IF(INDEX('SR_Cash Reconciliation_2E'!G$9:G$270,MATCH($D16,'SR_Cash Reconciliation_2E'!$B$9:$B$270,0))=\"\",\"\",INDEX('SR_Cash Reconciliation_2E'!G$9:G$270,MATCH($D16,'SR_Cash Reconciliation_2E'!$B$9:$B$270,0))),\"\")","v":""},{"$f":"IFERROR(IF(INDEX('SR_Cash Reconciliation_2E'!H$9:H$270,MATCH($D16,'SR_Cash Reconciliation_2E'!$B$9:$B$270,0))=\"\",\"\",INDEX('SR_Cash Reconciliation_2E'!H$9:H$270,MATCH($D16,'SR_Cash Reconciliation_2E'!$B$9:$B$270,0))),\"\")","v":""},{"$f":"IFERROR(IF(INDEX('SR_Cash Reconciliation_2E'!I$9:I$270,MATCH($D16,'SR_Cash Reconciliation_2E'!$B$9:$B$270,0))=\"\",\"\",INDEX('SR_Cash Reconciliation_2E'!I$9:I$270,MATCH($D16,'SR_Cash Reconciliation_2E'!$B$9:$B$270,0))),\"\")","v":""},{"$f":"IFERROR(IF(INDEX('SR_Cash Reconciliation_2E'!K$9:K$270,MATCH($D16,'SR_Cash Reconciliation_2E'!$B$9:$B$270,0))=\"\",\"\",INDEX('SR_Cash Reconciliation_2E'!K$9:K$270,MATCH($D16,'SR_Cash Reconciliation_2E'!$B$9:$B$270,0))),\"\")","v":""},{"$f":"\"\"","v":""},{"$f":"IFERROR(IF(INDEX('SR_Cash Reconciliation_2E'!N$9:N$270,MATCH($D16,'SR_Cash Reconciliation_2E'!$B$9:$B$270,0))=\"\",\"\",INDEX('SR_Cash Reconciliation_2E'!N$9:N$270,MATCH($D16,'SR_Cash Reconciliation_2E'!$B$9:$B$270,0))),\"\")","v":""}]
[null,null,7,"ID7",{"$f":"IFERROR(IF(INDEX('SR_Cash Reconciliation_2E'!C$9:C$270,MATCH($D17,'SR_Cash Reconciliation_2E'!$B$9:$B$270,0))=\"\",\"\",INDEX('SR_Cash Reconciliation_2E'!C$9:C$270,MATCH($D17,'SR_Cash Reconciliation_2E'!$B$9:$B$270,0))),\"\")","v":""},{"$f":"IFERROR(IF(INDEX('SR_Cash Reconciliation_2E'!D$9:D$270,MATCH($D17,'SR_Cash Reconciliation_2E'!$B$9:$B$270,0))=\"\",\"\",INDEX('SR_Cash Reconciliation_2E'!D$9:D$270,MATCH($D17,'SR_Cash Reconciliation_2E'!$B$9:$B$270,0))),\"\")","v":""},{"$f":"IFERROR(IF(INDEX('SR_Cash Reconciliation_2E'!E$9:E$270,MATCH($D17,'SR_Cash Reconciliation_2E'!$B$9:$B$270,0))=\"\",\"\",INDEX('SR_Cash Reconciliation_2E'!E$9:E$270,MATCH($D17,'SR_Cash Reconciliation_2E'!$B$9:$B$270,0))),\"\")","v":""},{"$f":"IFERROR(IF(INDEX('SR_Cash Reconciliation_2E'!F$9:F$270,MATCH($D17,'SR_Cash Reconciliation_2E'!$B$9:$B$270,0))=\"\",\"\",INDEX('SR_Cash Reconciliation_2E'!F$9:F$270,MATCH($D17,'SR_Cash Reconciliation_2E'!$B$9:$B$270,0))),\"\")","v":""},{"$f":"IFERROR(IF(INDEX('SR_Cash Reconciliation_2E'!G$9:G$270,MATCH($D17,'SR_Cash Reconciliation_2E'!$B$9:$B$270,0))=\"\",\"\",INDEX('SR_Cash Reconciliation_2E'!G$9:G$270,MATCH($D17,'SR_Cash Reconciliation_2E'!$B$9:$B$270,0))),\"\")","v":""},{"$f":"IFERROR(IF(INDEX('SR_Cash Reconciliation_2E'!H$9:H$270,MATCH($D17,'SR_Cash Reconciliation_2E'!$B$9:$B$270,0))=\"\",\"\",INDEX('SR_Cash Reconciliation_2E'!H$9:H$270,MATCH($D17,'SR_Cash Reconciliation_2E'!$B$9:$B$270,0))),\"\")","v":""},{"$f":"IFERROR(IF(INDEX('SR_Cash Reconciliation_2E'!I$9:I$270,MATCH($D17,'SR_Cash Reconciliation_2E'!$B$9:$B$270,0))=\"\",\"\",INDEX('SR_Cash Reconciliation_2E'!I$9:I$270,MATCH($D17,'SR_Cash Reconciliation_2E'!$B$9:$B$270,0))),\"\")","v":""},{"$f":"IFERROR(IF(INDEX('SR_Cash Reconciliation_2E'!K$9:K$270,MATCH($D17,'SR_Cash Reconciliation_2E'!$B$9:$B$270,0))=\"\",\"\",INDEX('SR_Cash Reconciliation_2E'!K$9:K$270,MATCH($D17,'SR_Cash Reconciliation_2E'!$B$9:$B$270,0))),\"\")","v":""},{"$f":"\"\"","v":""},{"$f":"IFERROR(IF(INDEX('SR_Cash Reconciliation_2E'!N$9:N$270,MATCH($D17,'SR_Cash Reconciliation_2E'!$B$9:$B$270,0))=\"\",\"\",INDEX('SR_Cash Reconciliation_2E'!N$9:N$270,MATCH($D17,'SR_Cash Reconciliation_2E'!$B$9:$B$270,0))),\"\")","v":""}]
[null,null,{"$error":"#VALUE!"},{"$error":"#VALUE!"},{"$f":"IFERROR(IF(INDEX('SR_Cash Reconciliation_2E'!C$9:C$270,MATCH($D18,'SR_Cash Reconciliation_2E'!$B$9:$B$270,0))=\"\",\"\",INDEX('SR_Cash Reconciliation_2E'!C$9:C$270,MATCH($D18,'SR_Cash Reconciliation_2E'!$B$9:$B$270,0))),\"\")","v":""},{"$f":"IFERROR(IF(INDEX('SR_Cash Reconciliation_2E'!D$9:D$270,MATCH($D18,'SR_Cash Reconciliation_2E'!$B$9:$B$270,0))=\"\",\"\",INDEX('SR_Cash Reconciliation_2E'!D$9:D$270,MATCH($D18,'SR_Cash Reconciliation_2E'!$B$9:$B$270,0))),\"\")","v":""},{"$f":"IFERROR(IF(INDEX('SR_Cash Reconciliation_2E'!E$9:E$270,MATCH($D18,'SR_Cash Reconciliation_2E'!$B$9:$B$270,0))=\"\",\"\",INDEX('SR_Cash Reconciliation_2E'!E$9:E$270,MATCH($D18,'SR_Cash Reconciliation_2E'!$B$9:$B$270,0))),\"\")","v":""},{"$f":"IFERROR(IF(INDEX('SR_Cash Reconciliation_2E'!F$9:F$270,MATCH($D18,'SR_Cash Reconciliation_2E'!$B$9:$B$270,0))=\"\",\"\",INDEX('SR_Cash Reconciliation_2E'!F$9:F$270,MATCH($D18,'SR_Cash Reconciliation_2E'!$B$9:$B$270,0))),\"\")","v":""},{"$f":"IFERROR(IF(INDEX('SR_Cash Reconciliation_2E'!G$9:G$270,MATCH($D18,'SR_Cash Reconciliation_2E'!$B$9:$B$270,0))=\"\",\"\",INDEX('SR_Cash Reconciliation_2E'!G$9:G$270,MATCH($D18,'SR_Cash Reconciliation_2E'!$B$9:$B$270,0))),\"\")","v":""},{"$f":"IFERROR(IF(INDEX('SR_Cash Reconciliation_2E'!H$9:H$270,MATCH($D18,'SR_Cash Reconciliation_2E'!$B$9:$B$270,0))=\"\",\"\",INDEX('SR_Cash Reconciliation_2E'!H$9:H$270,MATCH($D18,'SR_Cash Reconciliation_2E'!$B$9:$B$270,0))),\"\")","v":""},{"$f":"IFERROR(IF(INDEX('SR_Cash Reconciliation_2E'!I$9:I$270,MATCH($D18,'SR_Cash Reconciliation_2E'!$B$9:$B$270,0))=\"\",\"\",INDEX('SR_Cash Reconciliation_2E'!I$9:I$270,MATCH($D18,'SR_Cash Reconciliation_2E'!$B$9:$B$270,0))),\"\")","v":""},{"$f":"IFERROR(IF(INDEX('SR_Cash Reconciliation_2E'!K$9:K$270,MATCH($D18,'SR_Cash Reconciliation_2E'!$B$9:$B$270,0))=\"\",\"\",INDEX('SR_Cash Reconciliation_2E'!K$9:K$270,MATCH($D18,'SR_Cash Reconciliation_2E'!$B$9:$B$270,0))),\"\")","v":""},{"$f":"\"\"","v":""},{"$f":"IFERROR(IF(INDEX('SR_Cash Reconciliation_2E'!N$9:N$270,MATCH($D18,'SR_Cash Reconciliation_2E'!$B$9:$B$270,0))=\"\",\"\",INDEX('SR_Cash Reconciliation_2E'!N$9:N$270,MATCH($D18,'SR_Cash Reconciliation_2E'!$B$9:$B$270,0))),\"\")","v":""}]
[null,null,8,"ID8",{"$f":"IFERROR(IF(INDEX('SR_Cash Reconciliation_2E'!C$9:C$270,MATCH($D19,'SR_Cash Reconciliation_2E'!$B$9:$B$270,0))=\"\",\"\",INDEX('SR_Cash Reconciliation_2E'!C$9:C$270,MATCH($D19,'SR_Cash Reconciliation_2E'!$B$9:$B$270,0))),\"\")","v":""},{"$f":"IFERROR(IF(INDEX('SR_Cash Reconciliation_2E'!D$9:D$270,MATCH($D19,'SR_Cash Reconciliation_2E'!$B$9:$B$270,0))=\"\",\"\",INDEX('SR_Cash Reconciliation_2E'!D$9:D$270,MATCH($D19,'SR_Cash Reconciliation_2E'!$B$9:$B$270,0))),\"\")","v":""},{"$f":"IFERROR(IF(INDEX('SR_Cash Reconciliation_2E'!E$9:E$270,MATCH($D19,'SR_Cash Reconciliation_2E'!$B$9:$B$270,0))=\"\",\"\",INDEX('SR_Cash Reconciliation_2E'!E$9:E$270,MATCH($D19,'SR_Cash Reconciliation_2E'!$B$9:$B$270,0))),\"\")","v":""},{"$f":"IFERROR(IF(INDEX('SR_Cash Reconciliation_2E'!F$9:F$270,MATCH($D19,'SR_Cash Reconciliation_2E'!$B$9:$B$270,0))=\"\",\"\",INDEX('SR_Cash Reconciliation_2E'!F$9:F$270,MATCH($D19,'SR_Cash Reconciliation_2E'!$B$9:$B$270,0))),\"\")","v":""},{"$f":"IFERROR(IF(INDEX('SR_Cash Reconciliation_2E'!G$9:G$270,MATCH($D19,'SR_Cash Reconciliation_2E'!$B$9:$B$270,0))=\"\",\"\",INDEX('SR_Cash Reconciliation_2E'!G$9:G$270,MATCH($D19,'SR_Cash Reconciliation_2E'!$B$9:$B$270,0))),\"\")","v":""},{"$f":"IFERROR(IF(INDEX('SR_Cash Reconciliation_2E'!H$9:H$270,MATCH($D19,'SR_Cash Reconciliation_2E'!$B$9:$B$270,0))=\"\",\"\",INDEX('SR_Cash Reconciliation_2E'!H$9:H$270,MATCH($D19,'SR_Cash Reconciliation_2E'!$B$9:$B$270,0))),\"\")","v":""},{"$f":"IFERROR(IF(INDEX('SR_Cash Reconciliation_2E'!I$9:I$270,MATCH($D19,'SR_Cash Reconciliation_2E'!$B$9:$B$270,0))=\"\",\"\",INDEX('SR_Cash Reconciliation_2E'!I$9:I$270,MATCH($D19,'SR_Cash Reconciliation_2E'!$B$9:$B$270,0))),\"\")","v":""},{"$f":"IFERROR(IF(INDEX('SR_Cash Reconciliation_2E'!K$9:K$270,MATCH($D19,'SR_Cash Reconciliation_2E'!$B$9:$B$270,0))=\"\",\"\",INDEX('SR_Cash Reconciliation_2E'!K$9:K$270,MATCH($D19,'SR_Cash Reconciliation_2E'!$B$9:$B$270,0))),\"\")","v":""},{"$f":"\"\"","v":""},{"$f":"IFERROR(IF(INDEX('SR_Cash Reconciliation_2E'!N$9:N$270,MATCH($D19,'SR_Cash Reconciliation_2E'!$B$9:$B$270,0))=\"\",\"\",INDEX('SR_Cash Reconciliation_2E'!N$9:N$270,MATCH($D19,'SR_Cash Reconciliation_2E'!$B$9:$B$270,0))),\"\")","v":""}]
[null,null,{"$error":"#VALUE!"},{"$error":"#VALUE!"},{"$f":"IFERROR(IF(INDEX('SR_Cash Reconciliation_2E'!C$9:C$270,MATCH($D20,'SR_Cash Reconciliation_2E'!$B$9:$B$270,0))=\"\",\"\",INDEX('SR_Cash Reconciliation_2E'!C$9:C$270,MATCH($D20,'SR_Cash Reconciliation_2E'!$B$9:$B$270,0))),\"\")","v":""},{"$f":"IFERROR(IF(INDEX('SR_Cash Reconciliation_2E'!D$9:D$270,MATCH($D20,'SR_Cash Reconciliation_2E'!$B$9:$B$270,0))=\"\",\"\",INDEX('SR_Cash Reconciliation_2E'!D$9:D$270,MATCH($D20,'SR_Cash Reconciliation_2E'!$B$9:$B$270,0))),\"\")","v":""},{"$f":"IFERROR(IF(INDEX('SR_Cash Reconciliation_2E'!E$9:E$270,MATCH($D20,'SR_Cash Reconciliation_2E'!$B$9:$B$270,0))=\"\",\"\",INDEX('SR_Cash Reconciliation_2E'!E$9:E$270,MATCH($D20,'SR_Cash Reconciliation_2E'!$B$9:$B$270,0))),\"\")","v":""},{"$f":"IFERROR(IF(INDEX('SR_Cash Reconciliation_2E'!F$9:F$270,MATCH($D20,'SR_Cash Reconciliation_2E'!$B$9:$B$270,0))=\"\",\"\",INDEX('SR_Cash Reconciliation_2E'!F$9:F$270,MATCH($D20,'SR_Cash Reconciliation_2E'!$B$9:$B$270,0))),\"\")","v":""},{"$f":"IFERROR(IF(INDEX('SR_Cash Reconciliation_2E'!G$9:G$270,MATCH($D20,'SR_Cash Reconciliation_2E'!$B$9:$B$270,0))=\"\",\"\",INDEX('SR_Cash Reconciliation_2E'!G$9:G$270,MATCH($D20,'SR_Cash Reconciliation_2E'!$B$9:$B$270,0))),\"\")","v":""},{"$f":"IFERROR(IF(INDEX('SR_Cash Reconciliation_2E'!H$9:H$270,MATCH($D20,'SR_Cash Reconciliation_2E'!$B$9:$B$270,0))=\"\",\"\",INDEX('SR_Cash Reconciliation_2E'!H$9:H$270,MATCH($D20,'SR_Cash Reconciliation_2E'!$B$9:$B$270,0))),\"\")","v":""},{"$f":"IFERROR(IF(INDEX('SR_Cash Reconciliation_2E'!I$9:I$270,MATCH($D20,'SR_Cash Reconciliation_2E'!$B$9:$B$270,0))=\"\",\"\",INDEX('SR_Cash Reconciliation_2E'!I$9:I$270,MATCH($D20,'SR_Cash Reconciliation_2E'!$B$9:$B$270,0))),\"\")","v":""},{"$f":"IFERROR(IF(INDEX('SR_Cash Reconciliation_2E'!K$9:K$270,MATCH($D20,'SR_Cash Reconciliation_2E'!$B$9:$B$270,0))=\"\",\"\",INDEX('SR_Cash Reconciliation_2E'!K$9:K$270,MATCH($D20,'SR_Cash Reconciliation_2E'!$B$9:$B$270,0))),\"\")","v":""},{"$f":"\"\"","v":""},{"$f":"IFERROR(IF(INDEX('SR_Cash Reconciliation_2E'!N$9:N$270,MATCH($D20,'SR_Cash Reconciliation_2E'!$B$9:$B$270,0))=\"\",\"\",INDEX('SR_Cash Reconciliation_2E'!N$9:N$270,MATCH($D20,'SR_Cash Reconciliation_2E'!$B$9:$B$270,0))),\"\")","v":""}]
[null,null,9,"ID9",{"$f":"IFERROR(IF(INDEX('SR_Cash Reconciliation_2E'!C$9:C$270,MATCH($D21,'SR_Cash Reconciliation_2E'!$B$9:$B$270,0))=\"\",\"\",INDEX('SR_Cash Reconciliation_2E'!C$9:C$270,MATCH($D21,'SR_Cash Reconciliation_2E'!$B$9:$B$270,0))),\"\")","v":""},{"$f":"IFERROR(IF(INDEX('SR_Cash Reconciliation_2E'!D$9:D$270,MATCH($D21,'SR_Cash Reconciliation_2E'!$B$9:$B$270,0))=\"\",\"\",INDEX('SR_Cash Reconciliation_2E'!D$9:D$270,MATCH($D21,'SR_Cash Reconciliation_2E'!$B$9:$B$270,0))),\"\")","v":""},{"$f":"IFERROR(IF(INDEX('SR_Cash Reconciliation_2E'!E$9:E$270,MATCH($D21,'SR_Cash Reconciliation_2E'!$B$9:$B$270,0))=\"\",\"\",INDEX('SR_Cash Reconciliation_2E'!E$9:E$270,MATCH($D21,'SR_Cash Reconciliation_2E'!$B$9:$B$270,0))),\"\")","v":""},{"$f":"IFERROR(IF(INDEX('SR_Cash Reconciliation_2E'!F$9:F$270,MATCH($D21,'SR_Cash Reconciliation_2E'!$B$9:$B$270,0))=\"\",\"\",INDEX('SR_Cash Reconciliation_2E'!F$9:F$270,MATCH($D21,'SR_Cash Reconciliation_2E'!$B$9:$B$270,0))),\"\")","v":""},{"$f":"IFERROR(IF(INDEX('SR_Cash Reconciliation_2E'!G$9:G$270,MATCH($D21,'SR_Cash Reconciliation_2E'!$B$9:$B$270,0))=\"\",\"\",INDEX('SR_Cash Reconciliation_2E'!G$9:G$270,MATCH($D21,'SR_Cash Reconciliation_2E'!$B$9:$B$270,0))),\"\")","v":""},{"$f":"IFERROR(IF(INDEX('SR_Cash Reconciliation_2E'!H$9:H$270,MATCH($D21,'SR_Cash Reconciliation_2E'!$B$9:$B$270,0))=\"\",\"\",INDEX('SR_Cash Reconciliation_2E'!H$9:H$270,MATCH($D21,'SR_Cash Reconciliation_2E'!$B$9:$B$270,0))),\"\")","v":""},{"$f":"IFERROR(IF(INDEX('SR_Cash Reconciliation_2E'!I$9:I$270,MATCH($D21,'SR_Cash Reconciliation_2E'!$B$9:$B$270,0))=\"\",\"\",INDEX('SR_Cash Reconciliation_2E'!I$9:I$270,MATCH($D21,'SR_Cash Reconciliation_2E'!$B$9:$B$270,0))),\"\")","v":""},{"$f":"IFERROR(IF(INDEX('SR_Cash Reconciliation_2E'!K$9:K$270,MATCH($D21,'SR_Cash Reconciliation_2E'!$B$9:$B$270,0))=\"\",\"\",INDEX('SR_Cash Reconciliation_2E'!K$9:K$270,MATCH($D21,'SR_Cash Reconciliation_2E'!$B$9:$B$270,0))),\"\")","v":""},{"$f":"\"\"","v":""},{"$f":"IFERROR(IF(INDEX('SR_Cash Reconciliation_2E'!N$9:N$270,MATCH($D21,'SR_Cash Reconciliation_2E'!$B$9:$B$270,0))=\"\",\"\",INDEX('SR_Cash Reconciliation_2E'!N$9:N$270,MATCH($D21,'SR_Cash Reconciliation_2E'!$B$9:$B$270,0))),\"\")","v":""}]
[null,null,{"$error":"#VALUE!"},{"$error":"#VALUE!"},{"$f":"IFERROR(IF(INDEX('SR_Cash Reconciliation_2E'!C$9:C$270,MATCH($D22,'SR_Cash Reconciliation_2E'!$B$9:$B$270,0))=\"\",\"\",INDEX('SR_Cash Reconciliation_2E'!C$9:C$270,MATCH($D22,'SR_Cash Reconciliation_2E'!$B$9:$B$270,0))),\"\")","v":""},{"$f":"IFERROR(IF(INDEX('SR_Cash Reconciliation_2E'!D$9:D$270,MATCH($D22,'SR_Cash Reconciliation_2E'!$B$9:$B$270,0))=\"\",\"\",INDEX('SR_Cash Reconciliation_2E'!D$9:D$270,MATCH($D22,'SR_Cash Reconciliation_2E'!$B$9:$B$270,0))),\"\")","v":""},{"$f":"IFERROR(IF(INDEX('SR_Cash Reconciliation_2E'!E$9:E$270,MATCH($D22,'SR_Cash Reconciliation_2E'!$B$9:$B$270,0))=\"\",\"\",INDEX('SR_Cash Reconciliation_2E'!E$9:E$270,MATCH($D22,'SR_Cash Reconciliation_2E'!$B$9:$B$270,0))),\"\")","v":""},{"$f":"IFERROR(IF(INDEX('SR_Cash Reconciliation_2E'!F$9:F$270,MATCH($D22,'SR_Cash Reconciliation_2E'!$B$9:$B$270,0))=\"\",\"\",INDEX('SR_Cash Reconciliation_2E'!F$9:F$270,MATCH($D22,'SR_Cash Reconciliation_2E'!$B$9:$B$270,0))),\"\")","v":""},{"$f":"IFERROR(IF(INDEX('SR_Cash Reconciliation_2E'!G$9:G$270,MATCH($D22,'SR_Cash Reconciliation_2E'!$B$9:$B$270,0))=\"\",\"\",INDEX('SR_Cash Reconciliation_2E'!G$9:G$270,MATCH($D22,'SR_Cash Reconciliation_2E'!$B$9:$B$270,0))),\"\")","v":""},{"$f":"IFERROR(IF(INDEX('SR_Cash Reconciliation_2E'!H$9:H$270,MATCH($D22,'SR_Cash Reconciliation_2E'!$B$9:$B$270,0))=\"\",\"\",INDEX('SR_Cash Reconciliation_2E'!H$9:H$270,MATCH($D22,'SR_Cash Reconciliation_2E'!$B$9:$B$270,0))),\"\")","v":""},{"$f":"IFERROR(IF(INDEX('SR_Cash Reconciliation_2E'!I$9:I$270,MATCH($D22,'SR_Cash Reconciliation_2E'!$B$9:$B$270,0))=\"\",\"\",INDEX('SR_Cash Reconciliation_2E'!I$9:I$270,MATCH($D22,'SR_Cash Reconciliation_2E'!$B$9:$B$270,0))),\"\")","v":""},{"$f":"IFERROR(IF(INDEX('SR_Cash Reconciliation_2E'!K$9:K$270,MATCH($D22,'SR_Cash Reconciliation_2E'!$B$9:$B$270,0))=\"\",\"\",INDEX('SR_Cash Reconciliation_2E'!K$9:K$270,MATCH($D22,'SR_Cash Reconciliation_2E'!$B$9:$B$270,0))),\"\")","v":""},{"$f":"\"\"","v":""},{"$f":"IFERROR(IF(INDEX('SR_Cash Reconciliation_2E'!N$9:N$270,MATCH($D22,'SR_Cash Reconciliation_2E'!$B$9:$B$270,0))=\"\",\"\",INDEX('SR_Cash Reconciliation_2E'!N$9:N$270,MATCH($D22,'SR_Cash Reconciliation_2E'!$B$9:$B$270,0))),\"\")","v":""}]
[null,null,10,"ID10",{"$f":"IFERROR(IF(INDEX('SR_Cash Reconciliation_2E'!C$9:C$270,MATCH($D23,'SR_Cash Reconciliation_2E'!$B$9:$B$270,0))=\"\",\"\",INDEX('SR_Cash Reconciliation_2E'!C$9:C$270,MATCH($D23,'SR_Cash Reconciliation_2E'!$B$9:$B$270,0))),\"\")","v":""},{"$f":"IFERROR(IF(INDEX('SR_Cash Reconciliation_2E'!D$9:D$270,MATCH($D23,'SR_Cash Reconciliation_2E'!$B$9:$B$270,0))=\"\",\"\",INDEX('SR_Cash Reconciliation_2E'!D$9:D$270,MATCH($D23,'SR_Cash Reconciliation_2E'!$B$9:$B$270,0))),\"\")","v":""},{"$f":"IFERROR(IF(INDEX('SR_Cash Reconciliation_2E'!E$9:E$270,MATCH($D23,'SR_Cash Reconciliation_2E'!$B$9:$B$270,0))=\"\",\"\",INDEX('SR_Cash Reconciliation_2E'!E$9:E$270,MATCH($D23,'SR_Cash Reconciliation_2E'!$B$9:$B$270,0))),\"\")","v":""},{"$f":"IFERROR(IF(INDEX('SR_Cash Reconciliation_2E'!F$9:F$270,MATCH($D23,'SR_Cash Reconciliation_2E'!$B$9:$B$270,0))=\"\",\"\",INDEX('SR_Cash Reconciliation_2E'!F$9:F$270,MATCH($D23,'SR_Cash Reconciliation_2E'!$B$9:$B$270,0))),\"\")","v":""},{"$f":"IFERROR(IF(INDEX('SR_Cash Reconciliation_2E'!G$9:G$270,MATCH($D23,'SR_Cash Reconciliation_2E'!$B$9:$B$270,0))=\"\",\"\",INDEX('SR_Cash Reconciliation_2E'!G$9:G$270,MATCH($D23,'SR_Cash Reconciliation_2E'!$B$9:$B$270,0))),\"\")","v":""},{"$f":"IFERROR(IF(INDEX('SR_Cash Reconciliation_2E'!H$9:H$270,MATCH($D23,'SR_Cash Reconciliation_2E'!$B$9:$B$270,0))=\"\",\"\",INDEX('SR_Cash Reconciliation_2E'!H$9:H$270,MATCH($D23,'SR_Cash Reconciliation_2E'!$B$9:$B$270,0))),\"\")","v":""},{"$f":"IFERROR(IF(INDEX('SR_Cash Reconciliation_2E'!I$9:I$270,MATCH($D23,'SR_Cash Reconciliation_2E'!$B$9:$B$270,0))=\"\",\"\",INDEX('SR_Cash Reconciliation_2E'!I$9:I$270,MATCH($D23,'SR_Cash Reconciliation_2E'!$B$9:$B$270,0))),\"\")","v":""},{"$f":"IFERROR(IF(INDEX('SR_Cash Reconciliation_2E'!K$9:K$270,MATCH($D23,'SR_Cash Reconciliation_2E'!$B$9:$B$270,0))=\"\",\"\",INDEX('SR_Cash Reconciliation_2E'!K$9:K$270,MATCH($D23,'SR_Cash Reconciliation_2E'!$B$9:$B$270,0))),\"\")","v":""},{"$f":"\"\"","v":""},{"$f":"IFERROR(IF(INDEX('SR_Cash Reconciliation_2E'!N$9:N$270,MATCH($D23,'SR_Cash Reconciliation_2E'!$B$9:$B$270,0))=\"\",\"\",INDEX('SR_Cash Reconciliation_2E'!N$9:N$270,MATCH($D23,'SR_Cash Reconciliation_2E'!$B$9:$B$270,0))),\"\")","v":""}]
[null,null,{"$error":"#VALUE!"},{"$error":"#VALUE!"},{"$f":"IFERROR(IF(INDEX('SR_Cash Reconciliation_2E'!C$9:C$270,MATCH($D24,'SR_Cash Reconciliation_2E'!$B$9:$B$270,0))=\"\",\"\",INDEX('SR_Cash Reconciliation_2E'!C$9:C$270,MATCH($D24,'SR_Cash Reconciliation_2E'!$B$9:$B$270,0))),\"\")","v":""},{"$f":"IFERROR(IF(INDEX('SR_Cash Reconciliation_2E'!D$9:D$270,MATCH($D24,'SR_Cash Reconciliation_2E'!$B$9:$B$270,0))=\"\",\"\",INDEX('SR_Cash Reconciliation_2E'!D$9:D$270,MATCH($D24,'SR_Cash Reconciliation_2E'!$B$9:$B$270,0))),\"\")","v":""},{"$f":"IFERROR(IF(INDEX('SR_Cash Reconciliation_2E'!E$9:E$270,MATCH($D24,'SR_Cash Reconciliation_2E'!$B$9:$B$270,0))=\"\",\"\",INDEX('SR_Cash Reconciliation_2E'!E$9:E$270,MATCH($D24,'SR_Cash Reconciliation_2E'!$B$9:$B$270,0))),\"\")","v":""},{"$f":"IFERROR(IF(INDEX('SR_Cash Reconciliation_2E'!F$9:F$270,MATCH($D24,'SR_Cash Reconciliation_2E'!$B$9:$B$270,0))=\"\",\"\",INDEX('SR_Cash Reconciliation_2E'!F$9:F$270,MATCH($D24,'SR_Cash Reconciliation_2E'!$B$9:$B$270,0))),\"\")","v":""},{"$f":"IFERROR(IF(INDEX('SR_Cash Reconciliation_2E'!G$9:G$270,MATCH($D24,'SR_Cash Reconciliation_2E'!$B$9:$B$270,0))=\"\",\"\",INDEX('SR_Cash Reconciliation_2E'!G$9:G$270,MATCH($D24,'SR_Cash Reconciliation_2E'!$B$9:$B$270,0))),\"\")","v":""},{"$f":"IFERROR(IF(INDEX('SR_Cash Reconciliation_2E'!H$9:H$270,MATCH($D24,'SR_Cash Reconciliation_2E'!$B$9:$B$270,0))=\"\",\"\",INDEX('SR_Cash Reconciliation_2E'!H$9:H$270,MATCH($D24,'SR_Cash Reconciliation_2E'!$B$9:$B$270,0))),\"\")","v":""},{"$f":"IFERROR(IF(INDEX('SR_Cash Reconciliation_2E'!I$9:I$270,MATCH($D24,'SR_Cash Reconciliation_2E'!$B$9:$B$270,0))=\"\",\"\",INDEX('SR_Cash Reconciliation_2E'!I$9:I$270,MATCH($D24,'SR_Cash Reconciliation_2E'!$B$9:$B$270,0))),\"\")","v":""},{"$f":"IFERROR(IF(INDEX('SR_Cash Reconciliation_2E'!K$9:K$270,MATCH($D24,'SR_Cash Reconciliation_2E'!$B$9:$B$270,0))=\"\",\"\",INDEX('SR_Cash Reconciliation_2E'!K$9:K$270,MATCH($D24,'SR_Cash Reconciliation_2E'!$B$9:$B$270,0))),\"\")","v":""},{"$f":"\"\"","v":""},{"$f":"IFERROR(IF(INDEX('SR_Cash Reconciliation_2E'!N$9:N$270,MATCH($D24,'SR_Cash Reconciliation_2E'!$B$9:$B$270,0))=\"\",\"\",INDEX('SR_Cash Reconciliation_2E'!N$9:N$270,MATCH($D24,'SR_Cash Reconciliation_2E'!$B$9:$B$270,0))),\"\")","v":""}]
[null,null,11,"ID11",{"$f":"IFERROR(IF(INDEX('SR_Cash Reconciliation_2E'!C$9:C$270,MATCH($D25,'SR_Cash Reconciliation_2E'!$B$9:$B$270,0))=\"\",\"\",INDEX('SR_Cash Reconciliation_2E'!C$9:C$270,MATCH($D25,'SR_Cash Reconciliation_2E'!$B$9:$B$270,0))),\"\")","v":""},{"$f":"IFERROR(IF(INDEX('SR_Cash Reconciliation_2E'!D$9:D$270,MATCH($D25,'SR_Cash Reconciliation_2E'!$B$9:$B$270,0))=\"\",\"\",INDEX('SR_Cash Reconciliation_2E'!D$9:D$270,MATCH($D25,'SR_Cash Reconciliation_2E'!$B$9:$B$270,0))),\"\")","v":""},{"$f":"IFERROR(IF(INDEX('SR_Cash Reconciliation_2E'!E$9:E$270,MATCH($D25,'SR_Cash Reconciliation_2E'!$B$9:$B$270,0))=\"\",\"\",INDEX('SR_Cash Reconciliation_2E'!E$9:E$270,MATCH($D25,'SR_Cash Reconciliation_2E'!$B$9:$B$270,0))),\"\")","v":""},{"$f":"IFERROR(IF(INDEX('SR_Cash Reconciliation_2E'!F$9:F$270,MATCH($D25,'SR_Cash Reconciliation_2E'!$B$9:$B$270,0))=\"\",\"\",INDEX('SR_Cash Reconciliation_2E'!F$9:F$270,MATCH($D25,'SR_Cash Reconciliation_2E'!$B$9:$B$270,0))),\"\")","v":""},{"$f":"IFERROR(IF(INDEX('SR_Cash Reconciliation_2E'!G$9:G$270,MATCH($D25,'SR_Cash Reconciliation_2E'!$B$9:$B$270,0))=\"\",\"\",INDEX('SR_Cash Reconciliation_2E'!G$9:G$270,MATCH($D25,'SR_Cash Reconciliation_2E'!$B$9:$B$270,0))),\"\")","v":""},{"$f":"IFERROR(IF(INDEX('SR_Cash Reconciliation_2E'!H$9:H$270,MATCH($D25,'SR_Cash Reconciliation_2E'!$B$9:$B$270,0))=\"\",\"\",INDEX('SR_Cash Reconciliation_2E'!H$9:H$270,MATCH($D25,'SR_Cash Reconciliation_2E'!$B$9:$B$270,0))),\"\")","v":""},{"$f":"IFERROR(IF(INDEX('SR_Cash Reconciliation_2E'!I$9:I$270,MATCH($D25,'SR_Cash Reconciliation_2E'!$B$9:$B$270,0))=\"\",\"\",INDEX('SR_Cash Reconciliation_2E'!I$9:I$270,MATCH($D25,'SR_Cash Reconciliation_2E'!$B$9:$B$270,0))),\"\")","v":""},{"$f":"IFERROR(IF(INDEX('SR_Cash Reconciliation_2E'!K$9:K$270,MATCH($D25,'SR_Cash Reconciliation_2E'!$B$9:$B$270,0))=\"\",\"\",INDEX('SR_Cash Reconciliation_2E'!K$9:K$270,MATCH($D25,'SR_Cash Reconciliation_2E'!$B$9:$B$270,0))),\"\")","v":""},{"$f":"\"\"","v":""},{"$f":"IFERROR(IF(INDEX('SR_Cash Reconciliation_2E'!N$9:N$270,MATCH($D25,'SR_Cash Reconciliation_2E'!$B$9:$B$270,0))=\"\",\"\",INDEX('SR_Cash Reconciliation_2E'!N$9:N$270,MATCH($D25,'SR_Cash Reconciliation_2E'!$B$9:$B$270,0))),\"\")","v":""}]
[null,null,{"$error":"#VALUE!"},{"$error":"#VALUE!"},{"$f":"IFERROR(IF(INDEX('SR_Cash Reconciliation_2E'!C$9:C$270,MATCH($D26,'SR_Cash Reconciliation_2E'!$B$9:$B$270,0))=\"\",\"\",INDEX('SR_Cash Reconciliation_2E'!C$9:C$270,MATCH($D26,'SR_Cash Reconciliation_2E'!$B$9:$B$270,0))),\"\")","v":""},{"$f":"IFERROR(IF(INDEX('SR_Cash Reconciliation_2E'!D$9:D$270,MATCH($D26,'SR_Cash Reconciliation_2E'!$B$9:$B$270,0))=\"\",\"\",INDEX('SR_Cash Reconciliation_2E'!D$9:D$270,MATCH($D26,'SR_Cash Reconciliation_2E'!$B$9:$B$270,0))),\"\")","v":""},{"$f":"IFERROR(IF(INDEX('SR_Cash Reconciliation_2E'!E$9:E$270,MATCH($D26,'SR_Cash Reconciliation_2E'!$B$9:$B$270,0))=\"\",\"\",INDEX('SR_Cash Reconciliation_2E'!E$9:E$270,MATCH($D26,'SR_Cash Reconciliation_2E'!$B$9:$B$270,0))),\"\")","v":""},{"$f":"IFERROR(IF(INDEX('SR_Cash Reconciliation_2E'!F$9:F$270,MATCH($D26,'SR_Cash Reconciliation_2E'!$B$9:$B$270,0))=\"\",\"\",INDEX('SR_Cash Reconciliation_2E'!F$9:F$270,MATCH($D26,'SR_Cash Reconciliation_2E'!$B$9:$B$270,0))),\"\")","v":""},{"$f":"IFERROR(IF(INDEX('SR_Cash Reconciliation_2E'!G$9:G$270,MATCH($D26,'SR_Cash Reconciliation_2E'!$B$9:$B$270,0))=\"\",\"\",INDEX('SR_Cash Reconciliation_2E'!G$9:G$270,MATCH($D26,'SR_Cash Reconciliation_2E'!$B$9:$B$270,0))),\"\")","v":""},{"$f":"IFERROR(IF(INDEX('SR_Cash Reconciliation_2E'!H$9:H$270,MATCH($D26,'SR_Cash Reconciliation_2E'!$B$9:$B$270,0))=\"\",\"\",INDEX('SR_Cash Reconciliation_2E'!H$9:H$270,MATCH($D26,'SR_Cash Reconciliation_2E'!$B$9:$B$270,0))),\"\")","v":""},{"$f":"IFERROR(IF(INDEX('SR_Cash Reconciliation_2E'!I$9:I$270,MATCH($D26,'SR_Cash Reconciliation_2E'!$B$9:$B$270,0))=\"\",\"\",INDEX('SR_Cash Reconciliation_2E'!I$9:I$270,MATCH($D26,'SR_Cash Reconciliation_2E'!$B$9:$B$270,0))),\"\")","v":""},{"$f":"IFERROR(IF(INDEX('SR_Cash Reconciliation_2E'!K$9:K$270,MATCH($D26,'SR_Cash Reconciliation_2E'!$B$9:$B$270,0))=\"\",\"\",INDEX('SR_Cash Reconciliation_2E'!K$9:K$270,MATCH($D26,'SR_Cash Reconciliation_2E'!$B$9:$B$270,0))),\"\")","v":""},{"$f":"\"\"","v":""},{"$f":"IFERROR(IF(INDEX('SR_Cash Reconciliation_2E'!N$9:N$270,MATCH($D26,'SR_Cash Reconciliation_2E'!$B$9:$B$270,0))=\"\",\"\",INDEX('SR_Cash Reconciliation_2E'!N$9:N$270,MATCH($D26,'SR_Cash Reconciliation_2E'!$B$9:$B$270,0))),\"\")","v":""}]
[null,null,12,"ID12",{"$f":"IFERROR(IF(INDEX('SR_Cash Reconciliation_2E'!C$9:C$270,MATCH($D27,'SR_Cash Reconciliation_2E'!$B$9:$B$270,0))=\"\",\"\",INDEX('SR_Cash Reconciliation_2E'!C$9:C$270,MATCH($D27,'SR_Cash Reconciliation_2E'!$B$9:$B$270,0))),\"\")","v":""},{"$f":"IFERROR(IF(INDEX('SR_Cash Reconciliation_2E'!D$9:D$270,MATCH($D27,'SR_Cash Reconciliation_2E'!$B$9:$B$270,0))=\"\",\"\",INDEX('SR_Cash Reconciliation_2E'!D$9:D$270,MATCH($D27,'SR_Cash Reconciliation_2E'!$B$9:$B$270,0))),\"\")","v":""},{"$f":"IFERROR(IF(INDEX('SR_Cash Reconciliation_2E'!E$9:E$270,MATCH($D27,'SR_Cash Reconciliation_2E'!$B$9:$B$270,0))=\"\",\"\",INDEX('SR_Cash Reconciliation_2E'!E$9:E$270,MATCH($D27,'SR_Cash Reconciliation_2E'!$B$9:$B$270,0))),\"\")","v":""},{"$f":"IFERROR(IF(INDEX('SR_Cash Reconciliation_2E'!F$9:F$270,MATCH($D27,'SR_Cash Reconciliation_2E'!$B$9:$B$270,0))=\"\",\"\",INDEX('SR_Cash Reconciliation_2E'!F$9:F$270,MATCH($D27,'SR_Cash Reconciliation_2E'!$B$9:$B$270,0))),\"\")","v":""},{"$f":"IFERROR(IF(INDEX('SR_Cash Reconciliation_2E'!G$9:G$270,MATCH($D27,'SR_Cash Reconciliation_2E'!$B$9:$B$270,0))=\"\",\"\",INDEX('SR_Cash Reconciliation_2E'!G$9:G$270,MATCH($D27,'SR_Cash Reconciliation_2E'!$B$9:$B$270,0))),\"\")","v":""},{"$f":"IFERROR(IF(INDEX('SR_Cash Reconciliation_2E'!H$9:H$270,MATCH($D27,'SR_Cash Reconciliation_2E'!$B$9:$B$270,0))=\"\",\"\",INDEX('SR_Cash Reconciliation_2E'!H$9:H$270,MATCH($D27,'SR_Cash Reconciliation_2E'!$B$9:$B$270,0))),\"\")","v":""},{"$f":"IFERROR(IF(INDEX('SR_Cash Reconciliation_2E'!I$9:I$270,MATCH($D27,'SR_Cash Reconciliation_2E'!$B$9:$B$270,0))=\"\",\"\",INDEX('SR_Cash Reconciliation_2E'!I$9:I$270,MATCH($D27,'SR_Cash Reconciliation_2E'!$B$9:$B$270,0))),\"\")","v":""},{"$f":"IFERROR(IF(INDEX('SR_Cash Reconciliation_2E'!K$9:K$270,MATCH($D27,'SR_Cash Reconciliation_2E'!$B$9:$B$270,0))=\"\",\"\",INDEX('SR_Cash Reconciliation_2E'!K$9:K$270,MATCH($D27,'SR_Cash Reconciliation_2E'!$B$9:$B$270,0))),\"\")","v":""},{"$f":"\"\"","v":""},{"$f":"IFERROR(IF(INDEX('SR_Cash Reconciliation_2E'!N$9:N$270,MATCH($D27,'SR_Cash Reconciliation_2E'!$B$9:$B$270,0))=\"\",\"\",INDEX('SR_Cash Reconciliation_2E'!N$9:N$270,MATCH($D27,'SR_Cash Reconciliation_2E'!$B$9:$B$270,0))),\"\")","v":""}]
[null,null,{"$error":"#VALUE!"},{"$error":"#VALUE!"},{"$f":"IFERROR(IF(INDEX('SR_Cash Reconciliation_2E'!C$9:C$270,MATCH($D28,'SR_Cash Reconciliation_2E'!$B$9:$B$270,0))=\"\",\"\",INDEX('SR_Cash Reconciliation_2E'!C$9:C$270,MATCH($D28,'SR_Cash Reconciliation_2E'!$B$9:$B$270,0))),\"\")","v":""},{"$f":"IFERROR(IF(INDEX('SR_Cash Reconciliation_2E'!D$9:D$270,MATCH($D28,'SR_Cash Reconciliation_2E'!$B$9:$B$270,0))=\"\",\"\",INDEX('SR_Cash Reconciliation_2E'!D$9:D$270,MATCH($D28,'SR_Cash Reconciliation_2E'!$B$9:$B$270,0))),\"\")","v":""},{"$f":"IFERROR(IF(INDEX('SR_Cash Reconciliation_2E'!E$9:E$270,MATCH($D28,'SR_Cash Reconciliation_2E'!$B$9:$B$270,0))=\"\",\"\",INDEX('SR_Cash Reconciliation_2E'!E$9:E$270,MATCH($D28,'SR_Cash Reconciliation_2E'!$B$9:$B$270,0))),\"\")","v":""},{"$f":"IFERROR(IF(INDEX('SR_Cash Reconciliation_2E'!F$9:F$270,MATCH($D28,'SR_Cash Reconciliation_2E'!$B$9:$B$270,0))=\"\",\"\",INDEX('SR_Cash Reconciliation_2E'!F$9:F$270,MATCH($D28,'SR_Cash Reconciliation_2E'!$B$9:$B$270,0))),\"\")","v":""},{"$f":"IFERROR(IF(INDEX('SR_Cash Reconciliation_2E'!G$9:G$270,MATCH($D28,'SR_Cash Reconciliation_2E'!$B$9:$B$270,0))=\"\",\"\",INDEX('SR_Cash Reconciliation_2E'!G$9:G$270,MATCH($D28,'SR_Cash Reconciliation_2E'!$B$9:$B$270,0))),\"\")","v":""},{"$f":"IFERROR(IF(INDEX('SR_Cash Reconciliation_2E'!H$9:H$270,MATCH($D28,'SR_Cash Reconciliation_2E'!$B$9:$B$270,0))=\"\",\"\",INDEX('SR_Cash Reconciliation_2E'!H$9:H$270,MATCH($D28,'SR_Cash Reconciliation_2E'!$B$9:$B$270,0))),\"\")","v":""},{"$f":"IFERROR(IF(INDEX('SR_Cash Reconciliation_2E'!I$9:I$270,MATCH($D28,'SR_Cash Reconciliation_2E'!$B$9:$B$270,0))=\"\",\"\",INDEX('SR_Cash Reconciliation_2E'!I$9:I$270,MATCH($D28,'SR_Cash Reconciliation_2E'!$B$9:$B$270,0))),\"\")","v":""},{"$f":"IFERROR(IF(INDEX('SR_Cash Reconciliation_2E'!K$9:K$270,MATCH($D28,'SR_Cash Reconciliation_2E'!$B$9:$B$270,0))=\"\",\"\",INDEX('SR_Cash Reconciliation_2E'!K$9:K$270,MATCH($D28,'SR_Cash Reconciliation_2E'!$B$9:$B$270,0))),\"\")","v":""},{"$f":"\"\"","v":""},{"$f":"IFERROR(IF(INDEX('SR_Cash Reconciliation_2E'!N$9:N$270,MATCH($D28,'SR_Cash Reconciliation_2E'!$B$9:$B$270,0))=\"\",\"\",INDEX('SR_Cash Reconciliation_2E'!N$9:N$270,MATCH($D28,'SR_Cash Reconciliation_2E'!$B$9:$B$270,0))),\"\")","v":""}]
[null,null,13,"ID13",{"$f":"IFERROR(IF(INDEX('SR_Cash Reconciliation_2E'!C$9:C$270,MATCH($D29,'SR_Cash Reconciliation_2E'!$B$9:$B$270,0))=\"\",\"\",INDEX('SR_Cash Reconciliation_2E'!C$9:C$270,MATCH($D29,'SR_Cash Reconciliation_2E'!$B$9:$B$270,0))),\"\")","v":""},{"$f":"IFERROR(IF(INDEX('SR_Cash Reconciliation_2E'!D$9:D$270,MATCH($D29,'SR_Cash Reconciliation_2E'!$B$9:$B$270,0))=\"\",\"\",INDEX('SR_Cash Reconciliation_2E'!D$9:D$270,MATCH($D29,'SR_Cash Reconciliation_2E'!$B$9:$B$270,0))),\"\")","v":""},{"$f":"IFERROR(IF(INDEX('SR_Cash Reconciliation_2E'!E$9:E$270,MATCH($D29,'SR_Cash Reconciliation_2E'!$B$9:$B$270,0))=\"\",\"\",INDEX('SR_Cash Reconciliation_2E'!E$9:E$270,MATCH($D29,'SR_Cash Reconciliation_2E'!$B$9:$B$270,0))),\"\")","v":""},{"$f":"IFERROR(IF(INDEX('SR_Cash Reconciliation_2E'!F$9:F$270,MATCH($D29,'SR_Cash Reconciliation_2E'!$B$9:$B$270,0))=\"\",\"\",INDEX('SR_Cash Reconciliation_2E'!F$9:F$270,MATCH($D29,'SR_Cash Reconciliation_2E'!$B$9:$B$270,0))),\"\")","v":""},{"$f":"IFERROR(IF(INDEX('SR_Cash Reconciliation_2E'!G$9:G$270,MATCH($D29,'SR_Cash Reconciliation_2E'!$B$9:$B$270,0))=\"\",\"\",INDEX('SR_Cash Reconciliation_2E'!G$9:G$270,MATCH($D29,'SR_Cash Reconciliation_2E'!$B$9:$B$270,0))),\"\")","v":""},{"$f":"IFERROR(IF(INDEX('SR_Cash Reconciliation_2E'!H$9:H$270,MATCH($D29,'SR_Cash Reconciliation_2E'!$B$9:$B$270,0))=\"\",\"\",INDEX('SR_Cash Reconciliation_2E'!H$9:H$270,MATCH($D29,'SR_Cash Reconciliation_2E'!$B$9:$B$270,0))),\"\")","v":""},{"$f":"IFERROR(IF(INDEX('SR_Cash Reconciliation_2E'!I$9:I$270,MATCH($D29,'SR_Cash Reconciliation_2E'!$B$9:$B$270,0))=\"\",\"\",INDEX('SR_Cash Reconciliation_2E'!I$9:I$270,MATCH($D29,'SR_Cash Reconciliation_2E'!$B$9:$B$270,0))),\"\")","v":""},{"$f":"IFERROR(IF(INDEX('SR_Cash Reconciliation_2E'!K$9:K$270,MATCH($D29,'SR_Cash Reconciliation_2E'!$B$9:$B$270,0))=\"\",\"\",INDEX('SR_Cash Reconciliation_2E'!K$9:K$270,MATCH($D29,'SR_Cash Reconciliation_2E'!$B$9:$B$270,0))),\"\")","v":""},{"$f":"\"\"","v":""},{"$f":"IFERROR(IF(INDEX('SR_Cash Reconciliation_2E'!N$9:N$270,MATCH($D29,'SR_Cash Reconciliation_2E'!$B$9:$B$270,0))=\"\",\"\",INDEX('SR_Cash Reconciliation_2E'!N$9:N$270,MATCH($D29,'SR_Cash Reconciliation_2E'!$B$9:$B$270,0))),\"\")","v":""}]
[null,null,{"$error":"#VALUE!"},{"$error":"#VALUE!"},{"$f":"IFERROR(IF(INDEX('SR_Cash Reconciliation_2E'!C$9:C$270,MATCH($D30,'SR_Cash Reconciliation_2E'!$B$9:$B$270,0))=\"\",\"\",INDEX('SR_Cash Reconciliation_2E'!C$9:C$270,MATCH($D30,'SR_Cash Reconciliation_2E'!$B$9:$B$270,0))),\"\")","v":""},{"$f":"IFERROR(IF(INDEX('SR_Cash Reconciliation_2E'!D$9:D$270,MATCH($D30,'SR_Cash Reconciliation_2E'!$B$9:$B$270,0))=\"\",\"\",INDEX('SR_Cash Reconciliation_2E'!D$9:D$270,MATCH($D30,'SR_Cash Reconciliation_2E'!$B$9:$B$270,0))),\"\")","v":""},{"$f":"IFERROR(IF(INDEX('SR_Cash Reconciliation_2E'!E$9:E$270,MATCH($D30,'SR_Cash Reconciliation_2E'!$B$9:$B$270,0))=\"\",\"\",INDEX('SR_Cash Reconciliation_2E'!E$9:E$270,MATCH($D30,'SR_Cash Reconciliation_2E'!$B$9:$B$270,0))),\"\")","v":""},{"$f":"IFERROR(IF(INDEX('SR_Cash Reconciliation_2E'!F$9:F$270,MATCH($D30,'SR_Cash Reconciliation_2E'!$B$9:$B$270,0))=\"\",\"\",INDEX('SR_Cash Reconciliation_2E'!F$9:F$270,MATCH($D30,'SR_Cash Reconciliation_2E'!$B$9:$B$270,0))),\"\")","v":""},{"$f":"IFERROR(IF(INDEX('SR_Cash Reconciliation_2E'!G$9:G$270,MATCH($D30,'SR_Cash Reconciliation_2E'!$B$9:$B$270,0))=\"\",\"\",INDEX('SR_Cash Reconciliation_2E'!G$9:G$270,MATCH($D30,'SR_Cash Reconciliation_2E'!$B$9:$B$270,0))),\"\")","v":""},{"$f":"IFERROR(IF(INDEX('SR_Cash Reconciliation_2E'!H$9:H$270,MATCH($D30,'SR_Cash Reconciliation_2E'!$B$9:$B$270,0))=\"\",\"\",INDEX('SR_Cash Reconciliation_2E'!H$9:H$270,MATCH($D30,'SR_Cash Reconciliation_2E'!$B$9:$B$270,0))),\"\")","v":""},{"$f":"IFERROR(IF(INDEX('SR_Cash Reconciliation_2E'!I$9:I$270,MATCH($D30,'SR_Cash Reconciliation_2E'!$B$9:$B$270,0))=\"\",\"\",INDEX('SR_Cash Reconciliation_2E'!I$9:I$270,MATCH($D30,'SR_Cash Reconciliation_2E'!$B$9:$B$270,0))),\"\")","v":""},{"$f":"IFERROR(IF(INDEX('SR_Cash Reconciliation_2E'!K$9:K$270,MATCH($D30,'SR_Cash Reconciliation_2E'!$B$9:$B$270,0))=\"\",\"\",INDEX('SR_Cash Reconciliation_2E'!K$9:K$270,MATCH($D30,'SR_Cash Reconciliation_2E'!$B$9:$B$270,0))),\"\")","v":""},{"$f":"\"\"","v":""},{"$f":"IFERROR(IF(INDEX('SR_Cash Reconciliation_2E'!N$9:N$270,MATCH($D30,'SR_Cash Reconciliation_2E'!$B$9:$B$270,0))=\"\",\"\",INDEX('SR_Cash Reconciliation_2E'!N$9:N$270,MATCH($D30,'SR_Cash Reconciliation_2E'!$B$9:$B$270,0))),\"\")","v":""}]
[null,null,14,"ID14",{"$f":"IFERROR(IF(INDEX('SR_Cash Reconciliation_2E'!C$9:C$270,MATCH($D31,'SR_Cash Reconciliation_2E'!$B$9:$B$270,0))=\"\",\"\",INDEX('SR_Cash Reconciliation_2E'!C$9:C$270,MATCH($D31,'SR_Cash Reconciliation_2E'!$B$9:$B$270,0))),\"\")","v":""},{"$f":"IFERROR(IF(INDEX('SR_Cash Reconciliation_2E'!D$9:D$270,MATCH($D31,'SR_Cash Reconciliation_2E'!$B$9:$B$270,0))=\"\",\"\",INDEX('SR_Cash Reconciliation_2E'!D$9:D$270,MATCH($D31,'SR_Cash Reconciliation_2E'!$B$9:$B$270,0))),\"\")","v":""},{"$f":"IFERROR(IF(INDEX('SR_Cash Reconciliation_2E'!E$9:E$270,MATCH($D31,'SR_Cash Reconciliation_2E'!$B$9:$B$270,0))=\"\",\"\",INDEX('SR_Cash Reconciliation_2E'!E$9:E$270,MATCH($D31,'SR_Cash Reconciliation_2E'!$B$9:$B$270,0))),\"\")","v":""},{"$f":"IFERROR(IF(INDEX('SR_Cash Reconciliation_2E'!F$9:F$270,MATCH($D31,'SR_Cash Reconciliation_2E'!$B$9:$B$270,0))=\"\",\"\",INDEX('SR_Cash Reconciliation_2E'!F$9:F$270,MATCH($D31,'SR_Cash Reconciliation_2E'!$B$9:$B$270,0))),\"\")","v":""},{"$f":"IFERROR(IF(INDEX('SR_Cash Reconciliation_2E'!G$9:G$270,MATCH($D31,'SR_Cash Reconciliation_2E'!$B$9:$B$270,0))=\"\",\"\",INDEX('SR_Cash Reconciliation_2E'!G$9:G$270,MATCH($D31,'SR_Cash Reconciliation_2E'!$B$9:$B$270,0))),\"\")","v":""},{"$f":"IFERROR(IF(INDEX('SR_Cash Reconciliation_2E'!H$9:H$270,MATCH($D31,'SR_Cash Reconciliation_2E'!$B$9:$B$270,0))=\"\",\"\",INDEX('SR_Cash Reconciliation_2E'!H$9:H$270,MATCH($D31,'SR_Cash Reconciliation_2E'!$B$9:$B$270,0))),\"\")","v":""},{"$f":"IFERROR(IF(INDEX('SR_Cash Reconciliation_2E'!I$9:I$270,MATCH($D31,'SR_Cash Reconciliation_2E'!$B$9:$B$270,0))=\"\",\"\",INDEX('SR_Cash Reconciliation_2E'!I$9:I$270,MATCH($D31,'SR_Cash Reconciliation_2E'!$B$9:$B$270,0))),\"\")","v":""},{"$f":"IFERROR(IF(INDEX('SR_Cash Reconciliation_2E'!K$9:K$270,MATCH($D31,'SR_Cash Reconciliation_2E'!$B$9:$B$270,0))=\"\",\"\",INDEX('SR_Cash Reconciliation_2E'!K$9:K$270,MATCH($D31,'SR_Cash Reconciliation_2E'!$B$9:$B$270,0))),\"\")","v":""},{"$f":"\"\"","v":""},{"$f":"IFERROR(IF(INDEX('SR_Cash Reconciliation_2E'!N$9:N$270,MATCH($D31,'SR_Cash Reconciliation_2E'!$B$9:$B$270,0))=\"\",\"\",INDEX('SR_Cash Reconciliation_2E'!N$9:N$270,MATCH($D31,'SR_Cash Reconciliation_2E'!$B$9:$B$270,0))),\"\")","v":""}]
[null,null,{"$error":"#VALUE!"},{"$error":"#VALUE!"},{"$f":"IFERROR(IF(INDEX('SR_Cash Reconciliation_2E'!C$9:C$270,MATCH($D32,'SR_Cash Reconciliation_2E'!$B$9:$B$270,0))=\"\",\"\",INDEX('SR_Cash Reconciliation_2E'!C$9:C$270,MATCH($D32,'SR_Cash Reconciliation_2E'!$B$9:$B$270,0))),\"\")","v":""},{"$f":"IFERROR(IF(INDEX('SR_Cash Reconciliation_2E'!D$9:D$270,MATCH($D32,'SR_Cash Reconciliation_2E'!$B$9:$B$270,0))=\"\",\"\",INDEX('SR_Cash Reconciliation_2E'!D$9:D$270,MATCH($D32,'SR_Cash Reconciliation_2E'!$B$9:$B$270,0))),\"\")","v":""},{"$f":"IFERROR(IF(INDEX('SR_Cash Reconciliation_2E'!E$9:E$270,MATCH($D32,'SR_Cash Reconciliation_2E'!$B$9:$B$270,0))=\"\",\"\",INDEX('SR_Cash Reconciliation_2E'!E$9:E$270,MATCH($D32,'SR_Cash Reconciliation_2E'!$B$9:$B$270,0))),\"\")","v":""},{"$f":"IFERROR(IF(INDEX('SR_Cash Reconciliation_2E'!F$9:F$270,MATCH($D32,'SR_Cash Reconciliation_2E'!$B$9:$B$270,0))=\"\",\"\",INDEX('SR_Cash Reconciliation_2E'!F$9:F$270,MATCH($D32,'SR_Cash Reconciliation_2E'!$B$9:$B$270,0))),\"\")","v":""},{"$f":"IFERROR(IF(INDEX('SR_Cash Reconciliation_2E'!G$9:G$270,MATCH($D32,'SR_Cash Reconciliation_2E'!$B$9:$B$270,0))=\"\",\"\",INDEX('SR_Cash Reconciliation_2E'!G$9:G$270,MATCH($D32,'SR_Cash Reconciliation_2E'!$B$9:$B$270,0))),\"\")","v":""},{"$f":"IFERROR(IF(INDEX('SR_Cash Reconciliation_2E'!H$9:H$270,MATCH($D32,'SR_Cash Reconciliation_2E'!$B$9:$B$270,0))=\"\",\"\",INDEX('SR_Cash Reconciliation_2E'!H$9:H$270,MATCH($D32,'SR_Cash Reconciliation_2E'!$B$9:$B$270,0))),\"\")","v":""},{"$f":"IFERROR(IF(INDEX('SR_Cash Reconciliation_2E'!I$9:I$270,MATCH($D32,'SR_Cash Reconciliation_2E'!$B$9:$B$270,0))=\"\",\"\",INDEX('SR_Cash Reconciliation_2E'!I$9:I$270,MATCH($D32,'SR_Cash Reconciliation_2E'!$B$9:$B$270,0))),\"\")","v":""},{"$f":"IFERROR(IF(INDEX('SR_Cash Reconciliation_2E'!K$9:K$270,MATCH($D32,'SR_Cash Reconciliation_2E'!$B$9:$B$270,0))=\"\",\"\",INDEX('SR_Cash Reconciliation_2E'!K$9:K$270,MATCH($D32,'SR_Cash Reconciliation_2E'!$B$9:$B$270,0))),\"\")","v":""},{"$f":"\"\"","v":""},{"$f":"IFERROR(IF(INDEX('SR_Cash Reconciliation_2E'!N$9:N$270,MATCH($D32,'SR_Cash Reconciliation_2E'!$B$9:$B$270,0))=\"\",\"\",INDEX('SR_Cash Reconciliation_2E'!N$9:N$270,MATCH($D32,'SR_Cash Reconciliation_2E'!$B$9:$B$270,0))),\"\")","v":""}]
[null,null,15,"ID15",{"$f":"IFERROR(IF(INDEX('SR_Cash Reconciliation_2E'!C$9:C$270,MATCH($D33,'SR_Cash Reconciliation_2E'!$B$9:$B$270,0))=\"\",\"\",INDEX('SR_Cash Reconciliation_2E'!C$9:C$270,MATCH($D33,'SR_Cash Reconciliation_2E'!$B$9:$B$270,0))),\"\")","v":""},{"$f":"IFERROR(IF(INDEX('SR_Cash Reconciliation_2E'!D$9:D$270,MATCH($D33,'SR_Cash Reconciliation_2E'!$B$9:$B$270,0))=\"\",\"\",INDEX('SR_Cash Reconciliation_2E'!D$9:D$270,MATCH($D33,'SR_Cash Reconciliation_2E'!$B$9:$B$270,0))),\"\")","v":""},{"$f":"IFERROR(IF(INDEX('SR_Cash Reconciliation_2E'!E$9:E$270,MATCH($D33,'SR_Cash Reconciliation_2E'!$B$9:$B$270,0))=\"\",\"\",INDEX('SR_Cash Reconciliation_2E'!E$9:E$270,MATCH($D33,'SR_Cash Reconciliation_2E'!$B$9:$B$270,0))),\"\")","v":""},{"$f":"IFERROR(IF(INDEX('SR_Cash Reconciliation_2E'!F$9:F$270,MATCH($D33,'SR_Cash Reconciliation_2E'!$B$9:$B$270,0))=\"\",\"\",INDEX('SR_Cash Reconciliation_2E'!F$9:F$270,MATCH($D33,'SR_Cash Reconciliation_2E'!$B$9:$B$270,0))),\"\")","v":""},{"$f":"IFERROR(IF(INDEX('SR_Cash Reconciliation_2E'!G$9:G$270,MATCH($D33,'SR_Cash Reconciliation_2E'!$B$9:$B$270,0))=\"\",\"\",INDEX('SR_Cash Reconciliation_2E'!G$9:G$270,MATCH($D33,'SR_Cash Reconciliation_2E'!$B$9:$B$270,0))),\"\")","v":""},{"$f":"IFERROR(IF(INDEX('SR_Cash Reconciliation_2E'!H$9:H$270,MATCH($D33,'SR_Cash Reconciliation_2E'!$B$9:$B$270,0))=\"\",\"\",INDEX('SR_Cash Reconciliation_2E'!H$9:H$270,MATCH($D33,'SR_Cash Reconciliation_2E'!$B$9:$B$270,0))),\"\")","v":""},{"$f":"IFERROR(IF(INDEX('SR_Cash Reconciliation_2E'!I$9:I$270,MATCH($D33,'SR_Cash Reconciliation_2E'!$B$9:$B$270,0))=\"\",\"\",INDEX('SR_Cash Reconciliation_2E'!I$9:I$270,MATCH($D33,'SR_Cash Reconciliation_2E'!$B$9:$B$270,0))),\"\")","v":""},{"$f":"IFERROR(IF(INDEX('SR_Cash Reconciliation_2E'!K$9:K$270,MATCH($D33,'SR_Cash Reconciliation_2E'!$B$9:$B$270,0))=\"\",\"\",INDEX('SR_Cash Reconciliation_2E'!K$9:K$270,MATCH($D33,'SR_Cash Reconciliation_2E'!$B$9:$B$270,0))),\"\")","v":""},{"$f":"\"\"","v":""},{"$f":"IFERROR(IF(INDEX('SR_Cash Reconciliation_2E'!N$9:N$270,MATCH($D33,'SR_Cash Reconciliation_2E'!$B$9:$B$270,0))=\"\",\"\",INDEX('SR_Cash Reconciliation_2E'!N$9:N$270,MATCH($D33,'SR_Cash Reconciliation_2E'!$B$9:$B$270,0))),\"\")","v":""}]
[null,null,{"$error":"#VALUE!"},{"$error":"#VALUE!"},{"$f":"IFERROR(IF(INDEX('SR_Cash Reconciliation_2E'!C$9:C$270,MATCH($D34,'SR_Cash Reconciliation_2E'!$B$9:$B$270,0))=\"\",\"\",INDEX('SR_Cash Reconciliation_2E'!C$9:C$270,MATCH($D34,'SR_Cash Reconciliation_2E'!$B$9:$B$270,0))),\"\")","v":""},{"$f":"IFERROR(IF(INDEX('SR_Cash Reconciliation_2E'!D$9:D$270,MATCH($D34,'SR_Cash Reconciliation_2E'!$B$9:$B$270,0))=\"\",\"\",INDEX('SR_Cash Reconciliation_2E'!D$9:D$270,MATCH($D34,'SR_Cash Reconciliation_2E'!$B$9:$B$270,0))),\"\")","v":""},{"$f":"IFERROR(IF(INDEX('SR_Cash Reconciliation_2E'!E$9:E$270,MATCH($D34,'SR_Cash Reconciliation_2E'!$B$9:$B$270,0))=\"\",\"\",INDEX('SR_Cash Reconciliation_2E'!E$9:E$270,MATCH($D34,'SR_Cash Reconciliation_2E'!$B$9:$B$270,0))),\"\")","v":""},{"$f":"IFERROR(IF(INDEX('SR_Cash Reconciliation_2E'!F$9:F$270,MATCH($D34,'SR_Cash Reconciliation_2E'!$B$9:$B$270,0))=\"\",\"\",INDEX('SR_Cash Reconciliation_2E'!F$9:F$270,MATCH($D34,'SR_Cash Reconciliation_2E'!$B$9:$B$270,0))),\"\")","v":""},{"$f":"IFERROR(IF(INDEX('SR_Cash Reconciliation_2E'!G$9:G$270,MATCH($D34,'SR_Cash Reconciliation_2E'!$B$9:$B$270,0))=\"\",\"\",INDEX('SR_Cash Reconciliation_2E'!G$9:G$270,MATCH($D34,'SR_Cash Reconciliation_2E'!$B$9:$B$270,0))),\"\")","v":""},{"$f":"IFERROR(IF(INDEX('SR_Cash Reconciliation_2E'!H$9:H$270,MATCH($D34,'SR_Cash Reconciliation_2E'!$B$9:$B$270,0))=\"\",\"\",INDEX('SR_Cash Reconciliation_2E'!H$9:H$270,MATCH($D34,'SR_Cash Reconciliation_2E'!$B$9:$B$270,0))),\"\")","v":""},{"$f":"IFERROR(IF(INDEX('SR_Cash Reconciliation_2E'!I$9:I$270,MATCH($D34,'SR_Cash Reconciliation_2E'!$B$9:$B$270,0))=\"\",\"\",INDEX('SR_Cash Reconciliation_2E'!I$9:I$270,MATCH($D34,'SR_Cash Reconciliation_2E'!$B$9:$B$270,0))),\"\")","v":""},{"$f":"IFERROR(IF(INDEX('SR_Cash Reconciliation_2E'!K$9:K$270,MATCH($D34,'SR_Cash Reconciliation_2E'!$B$9:$B$270,0))=\"\",\"\",INDEX('SR_Cash Reconciliation_2E'!K$9:K$270,MATCH($D34,'SR_Cash Reconciliation_2E'!$B$9:$B$270,0))),\"\")","v":""},{"$f":"\"\"","v":""},{"$f":"IFERROR(IF(INDEX('SR_Cash Reconciliation_2E'!N$9:N$270,MATCH($D34,'SR_Cash Reconciliation_2E'!$B$9:$B$270,0))=\"\",\"\",INDEX('SR_Cash Reconciliation_2E'!N$9:N$270,MATCH($D34,'SR_Cash Reconciliation_2E'!$B$9:$B$270,0))),\"\")","v":""}]
[null,null,16,"ID16",{"$f":"IFERROR(IF(INDEX('SR_Cash Reconciliation_2E'!C$9:C$270,MATCH($D35,'SR_Cash Reconciliation_2E'!$B$9:$B$270,0))=\"\",\"\",INDEX('SR_Cash Reconciliation_2E'!C$9:C$270,MATCH($D35,'SR_Cash Reconciliation_2E'!$B$9:$B$270,0))),\"\")","v":""},{"$f":"IFERROR(IF(INDEX('SR_Cash Reconciliation_2E'!D$9:D$270,MATCH($D35,'SR_Cash Reconciliation_2E'!$B$9:$B$270,0))=\"\",\"\",INDEX('SR_Cash Reconciliation_2E'!D$9:D$270,MATCH($D35,'SR_Cash Reconciliation_2E'!$B$9:$B$270,0))),\"\")","v":""},{"$f":"IFERROR(IF(INDEX('SR_Cash Reconciliation_2E'!E$9:E$270,MATCH($D35,'SR_Cash Reconciliation_2E'!$B$9:$B$270,0))=\"\",\"\",INDEX('SR_Cash Reconciliation_2E'!E$9:E$270,MATCH($D35,'SR_Cash Reconciliation_2E'!$B$9:$B$270,0))),\"\")","v":""},{"$f":"IFERROR(IF(INDEX('SR_Cash Reconciliation_2E'!F$9:F$270,MATCH($D35,'SR_Cash Reconciliation_2E'!$B$9:$B$270,0))=\"\",\"\",INDEX('SR_Cash Reconciliation_2E'!F$9:F$270,MATCH($D35,'SR_Cash Reconciliation_2E'!$B$9:$B$270,0))),\"\")","v":""},{"$f":"IFERROR(IF(INDEX('SR_Cash Reconciliation_2E'!G$9:G$270,MATCH($D35,'SR_Cash Reconciliation_2E'!$B$9:$B$270,0))=\"\",\"\",INDEX('SR_Cash Reconciliation_2E'!G$9:G$270,MATCH($D35,'SR_Cash Reconciliation_2E'!$B$9:$B$270,0))),\"\")","v":""},{"$f":"IFERROR(IF(INDEX('SR_Cash Reconciliation_2E'!H$9:H$270,MATCH($D35,'SR_Cash Reconciliation_2E'!$B$9:$B$270,0))=\"\",\"\",INDEX('SR_Cash Reconciliation_2E'!H$9:H$270,MATCH($D35,'SR_Cash Reconciliation_2E'!$B$9:$B$270,0))),\"\")","v":""},{"$f":"IFERROR(IF(INDEX('SR_Cash Reconciliation_2E'!I$9:I$270,MATCH($D35,'SR_Cash Reconciliation_2E'!$B$9:$B$270,0))=\"\",\"\",INDEX('SR_Cash Reconciliation_2E'!I$9:I$270,MATCH($D35,'SR_Cash Reconciliation_2E'!$B$9:$B$270,0))),\"\")","v":""},{"$f":"IFERROR(IF(INDEX('SR_Cash Reconciliation_2E'!K$9:K$270,MATCH($D35,'SR_Cash Reconciliation_2E'!$B$9:$B$270,0))=\"\",\"\",INDEX('SR_Cash Reconciliation_2E'!K$9:K$270,MATCH($D35,'SR_Cash Reconciliation_2E'!$B$9:$B$270,0))),\"\")","v":""},{"$f":"\"\"","v":""},{"$f":"IFERROR(IF(INDEX('SR_Cash Reconciliation_2E'!N$9:N$270,MATCH($D35,'SR_Cash Reconciliation_2E'!$B$9:$B$270,0))=\"\",\"\",INDEX('SR_Cash Reconciliation_2E'!N$9:N$270,MATCH($D35,'SR_Cash Reconciliation_2E'!$B$9:$B$270,0))),\"\")","v":""}]
[null,null,{"$error":"#VALUE!"},{"$error":"#VALUE!"},{"$f":"IFERROR(IF(INDEX('SR_Cash Reconciliation_2E'!C$9:C$270,MATCH($D36,'SR_Cash Reconciliation_2E'!$B$9:$B$270,0))=\"\",\"\",INDEX('SR_Cash Reconciliation_2E'!C$9:C$270,MATCH($D36,'SR_Cash Reconciliation_2E'!$B$9:$B$270,0))),\"\")","v":""},{"$f":"IFERROR(IF(INDEX('SR_Cash Reconciliation_2E'!D$9:D$270,MATCH($D36,'SR_Cash Reconciliation_2E'!$B$9:$B$270,0))=\"\",\"\",INDEX('SR_Cash Reconciliation_2E'!D$9:D$270,MATCH($D36,'SR_Cash Reconciliation_2E'!$B$9:$B$270,0))),\"\")","v":""},{"$f":"IFERROR(IF(INDEX('SR_Cash Reconciliation_2E'!E$9:E$270,MATCH($D36,'SR_Cash Reconciliation_2E'!$B$9:$B$270,0))=\"\",\"\",INDEX('SR_Cash Reconciliation_2E'!E$9:E$270,MATCH($D36,'SR_Cash Reconciliation_2E'!$B$9:$B$270,0))),\"\")","v":""},{"$f":"IFERROR(IF(INDEX('SR_Cash Reconciliation_2E'!F$9:F$270,MATCH($D36,'SR_Cash Reconciliation_2E'!$B$9:$B$270,0))=\"\",\"\",INDEX('SR_Cash Reconciliation_2E'!F$9:F$270,MATCH($D36,'SR_Cash Reconciliation_2E'!$B$9:$B$270,0))),\"\")","v":""},{"$f":"IFERROR(IF(INDEX('SR_Cash Reconciliation_2E'!G$9:G$270,MATCH($D36,'SR_Cash Reconciliation_2E'!$B$9:$B$270,0))=\"\",\"\",INDEX('SR_Cash Reconciliation_2E'!G$9:G$270,MATCH($D36,'SR_Cash Reconciliation_2E'!$B$9:$B$270,0))),\"\")","v":""},{"$f":"IFERROR(IF(INDEX('SR_Cash Reconciliation_2E'!H$9:H$270,MATCH($D36,'SR_Cash Reconciliation_2E'!$B$9:$B$270,0))=\"\",\"\",INDEX('SR_Cash Reconciliation_2E'!H$9:H$270,MATCH($D36,'SR_Cash Reconciliation_2E'!$B$9:$B$270,0))),\"\")","v":""},{"$f":"IFERROR(IF(INDEX('SR_Cash Reconciliation_2E'!I$9:I$270,MATCH($D36,'SR_Cash Reconciliation_2E'!$B$9:$B$270,0))=\"\",\"\",INDEX('SR_Cash Reconciliation_2E'!I$9:I$270,MATCH($D36,'SR_Cash Reconciliation_2E'!$B$9:$B$270,0))),\"\")","v":""},{"$f":"IFERROR(IF(INDEX('SR_Cash Reconciliation_2E'!K$9:K$270,MATCH($D36,'SR_Cash Reconciliation_2E'!$B$9:$B$270,0))=\"\",\"\",INDEX('SR_Cash Reconciliation_2E'!K$9:K$270,MATCH($D36,'SR_Cash Reconciliation_2E'!$B$9:$B$270,0))),\"\")","v":""},{"$f":"\"\"","v":""},{"$f":"IFERROR(IF(INDEX('SR_Cash Reconciliation_2E'!N$9:N$270,MATCH($D36,'SR_Cash Reconciliation_2E'!$B$9:$B$270,0))=\"\",\"\",INDEX('SR_Cash Reconciliation_2E'!N$9:N$270,MATCH($D36,'SR_Cash Reconciliation_2E'!$B$9:$B$270,0))),\"\")","v":""}]
[null,null,17,"ID17",{"$f":"IFERROR(IF(INDEX('SR_Cash Reconciliation_2E'!C$9:C$270,MATCH($D37,'SR_Cash Reconciliation_2E'!$B$9:$B$270,0))=\"\",\"\",INDEX('SR_Cash Reconciliation_2E'!C$9:C$270,MATCH($D37,'SR_Cash Reconciliation_2E'!$B$9:$B$270,0))),\"\")","v":""},{"$f":"IFERROR(IF(INDEX('SR_Cash Reconciliation_2E'!D$9:D$270,MATCH($D37,'SR_Cash Reconciliation_2E'!$B$9:$B$270,0))=\"\",\"\",INDEX('SR_Cash Reconciliation_2E'!D$9:D$270,MATCH($D37,'SR_Cash Reconciliation_2E'!$B$9:$B$270,0))),\"\")","v":""},{"$f":"IFERROR(IF(INDEX('SR_Cash Reconciliation_2E'!E$9:E$270,MATCH($D37,'SR_Cash Reconciliation_2E'!$B$9:$B$270,0))=\"\",\"\",INDEX('SR_Cash Reconciliation_2E'!E$9:E$270,MATCH($D37,'SR_Cash Reconciliation_2E'!$B$9:$B$270,0))),\"\")","v":""},{"$f":"IFERROR(IF(INDEX('SR_Cash Reconciliation_2E'!F$9:F$270,MATCH($D37,'SR_Cash Reconciliation_2E'!$B$9:$B$270,0))=\"\",\"\",INDEX('SR_Cash Reconciliation_2E'!F$9:F$270,MATCH($D37,'SR_Cash Reconciliation_2E'!$B$9:$B$270,0))),\"\")","v":""},{"$f":"IFERROR(IF(INDEX('SR_Cash Reconciliation_2E'!G$9:G$270,MATCH($D37,'SR_Cash Reconciliation_2E'!$B$9:$B$270,0))=\"\",\"\",INDEX('SR_Cash Reconciliation_2E'!G$9:G$270,MATCH($D37,'SR_Cash Reconciliation_2E'!$B$9:$B$270,0))),\"\")","v":""},{"$f":"IFERROR(IF(INDEX('SR_Cash Reconciliation_2E'!H$9:H$270,MATCH($D37,'SR_Cash Reconciliation_2E'!$B$9:$B$270,0))=\"\",\"\",INDEX('SR_Cash Reconciliation_2E'!H$9:H$270,MATCH($D37,'SR_Cash Reconciliation_2E'!$B$9:$B$270,0))),\"\")","v":""},{"$f":"IFERROR(IF(INDEX('SR_Cash Reconciliation_2E'!I$9:I$270,MATCH($D37,'SR_Cash Reconciliation_2E'!$B$9:$B$270,0))=\"\",\"\",INDEX('SR_Cash Reconciliation_2E'!I$9:I$270,MATCH($D37,'SR_Cash Reconciliation_2E'!$B$9:$B$270,0))),\"\")","v":""},{"$f":"IFERROR(IF(INDEX('SR_Cash Reconciliation_2E'!K$9:K$270,MATCH($D37,'SR_Cash Reconciliation_2E'!$B$9:$B$270,0))=\"\",\"\",INDEX('SR_Cash Reconciliation_2E'!K$9:K$270,MATCH($D37,'SR_Cash Reconciliation_2E'!$B$9:$B$270,0))),\"\")","v":""},{"$f":"\"\"","v":""},{"$f":"IFERROR(IF(INDEX('SR_Cash Reconciliation_2E'!N$9:N$270,MATCH($D37,'SR_Cash Reconciliation_2E'!$B$9:$B$270,0))=\"\",\"\",INDEX('SR_Cash Reconciliation_2E'!N$9:N$270,MATCH($D37,'SR_Cash Reconciliation_2E'!$B$9:$B$270,0))),\"\")","v":""}]
[null,null,{"$error":"#VALUE!"},{"$error":"#VALUE!"},{"$f":"IFERROR(IF(INDEX('SR_Cash Reconciliation_2E'!C$9:C$270,MATCH($D38,'SR_Cash Reconciliation_2E'!$B$9:$B$270,0))=\"\",\"\",INDEX('SR_Cash Reconciliation_2E'!C$9:C$270,MATCH($D38,'SR_Cash Reconciliation_2E'!$B$9:$B$270,0))),\"\")","v":""},{"$f":"IFERROR(IF(INDEX('SR_Cash Reconciliation_2E'!D$9:D$270,MATCH($D38,'SR_Cash Reconciliation_2E'!$B$9:$B$270,0))=\"\",\"\",INDEX('SR_Cash Reconciliation_2E'!D$9:D$270,MATCH($D38,'SR_Cash Reconciliation_2E'!$B$9:$B$270,0))),\"\")","v":""},{"$f":"IFERROR(IF(INDEX('SR_Cash Reconciliation_2E'!E$9:E$270,MATCH($D38,'SR_Cash Reconciliation_2E'!$B$9:$B$270,0))=\"\",\"\",INDEX('SR_Cash Reconciliation_2E'!E$9:E$270,MATCH($D38,'SR_Cash Reconciliation_2E'!$B$9:$B$270,0))),\"\")","v":""},{"$f":"IFERROR(IF(INDEX('SR_Cash Reconciliation_2E'!F$9:F$270,MATCH($D38,'SR_Cash Reconciliation_2E'!$B$9:$B$270,0))=\"\",\"\",INDEX('SR_Cash Reconciliation_2E'!F$9:F$270,MATCH($D38,'SR_Cash Reconciliation_2E'!$B$9:$B$270,0))),\"\")","v":""},{"$f":"IFERROR(IF(INDEX('SR_Cash Reconciliation_2E'!G$9:G$270,MATCH($D38,'SR_Cash Reconciliation_2E'!$B$9:$B$270,0))=\"\",\"\",INDEX('SR_Cash Reconciliation_2E'!G$9:G$270,MATCH($D38,'SR_Cash Reconciliation_2E'!$B$9:$B$270,0))),\"\")","v":""},{"$f":"IFERROR(IF(INDEX('SR_Cash Reconciliation_2E'!H$9:H$270,MATCH($D38,'SR_Cash Reconciliation_2E'!$B$9:$B$270,0))=\"\",\"\",INDEX('SR_Cash Reconciliation_2E'!H$9:H$270,MATCH($D38,'SR_Cash Reconciliation_2E'!$B$9:$B$270,0))),\"\")","v":""},{"$f":"IFERROR(IF(INDEX('SR_Cash Reconciliation_2E'!I$9:I$270,MATCH($D38,'SR_Cash Reconciliation_2E'!$B$9:$B$270,0))=\"\",\"\",INDEX('SR_Cash Reconciliation_2E'!I$9:I$270,MATCH($D38,'SR_Cash Reconciliation_2E'!$B$9:$B$270,0))),\"\")","v":""},{"$f":"IFERROR(IF(INDEX('SR_Cash Reconciliation_2E'!K$9:K$270,MATCH($D38,'SR_Cash Reconciliation_2E'!$B$9:$B$270,0))=\"\",\"\",INDEX('SR_Cash Reconciliation_2E'!K$9:K$270,MATCH($D38,'SR_Cash Reconciliation_2E'!$B$9:$B$270,0))),\"\")","v":""},{"$f":"\"\"","v":""},{"$f":"IFERROR(IF(INDEX('SR_Cash Reconciliation_2E'!N$9:N$270,MATCH($D38,'SR_Cash Reconciliation_2E'!$B$9:$B$270,0))=\"\",\"\",INDEX('SR_Cash Reconciliation_2E'!N$9:N$270,MATCH($D38,'SR_Cash Reconciliation_2E'!$B$9:$B$270,0))),\"\")","v":""}]
[null,null,18,"ID18",{"$f":"IFERROR(IF(INDEX('SR_Cash Reconciliation_2E'!C$9:C$270,MATCH($D39,'SR_Cash Reconciliation_2E'!$B$9:$B$270,0))=\"\",\"\",INDEX('SR_Cash Reconciliation_2E'!C$9:C$270,MATCH($D39,'SR_Cash Reconciliation_2E'!$B$9:$B$270,0))),\"\")","v":""},{"$f":"IFERROR(IF(INDEX('SR_Cash Reconciliation_2E'!D$9:D$270,MATCH($D39,'SR_Cash Reconciliation_2E'!$B$9:$B$270,0))=\"\",\"\",INDEX('SR_Cash Reconciliation_2E'!D$9:D$270,MATCH($D39,'SR_Cash Reconciliation_2E'!$B$9:$B$270,0))),\"\")","v":""},{"$f":"IFERROR(IF(INDEX('SR_Cash Reconciliation_2E'!E$9:E$270,MATCH($D39,'SR_Cash Reconciliation_2E'!$B$9:$B$270,0))=\"\",\"\",INDEX('SR_Cash Reconciliation_2E'!E$9:E$270,MATCH($D39,'SR_Cash Reconciliation_2E'!$B$9:$B$270,0))),\"\")","v":""},{"$f":"IFERROR(IF(INDEX('SR_Cash Reconciliation_2E'!F$9:F$270,MATCH($D39,'SR_Cash Reconciliation_2E'!$B$9:$B$270,0))=\"\",\"\",INDEX('SR_Cash Reconciliation_2E'!F$9:F$270,MATCH($D39,'SR_Cash Reconciliation_2E'!$B$9:$B$270,0))),\"\")","v":""},{"$f":"IFERROR(IF(INDEX('SR_Cash Reconciliation_2E'!G$9:G$270,MATCH($D39,'SR_Cash Reconciliation_2E'!$B$9:$B$270,0))=\"\",\"\",INDEX('SR_Cash Reconciliation_2E'!G$9:G$270,MATCH($D39,'SR_Cash Reconciliation_2E'!$B$9:$B$270,0))),\"\")","v":""},{"$f":"IFERROR(IF(INDEX('SR_Cash Reconciliation_2E'!H$9:H$270,MATCH($D39,'SR_Cash Reconciliation_2E'!$B$9:$B$270,0))=\"\",\"\",INDEX('SR_Cash Reconciliation_2E'!H$9:H$270,MATCH($D39,'SR_Cash Reconciliation_2E'!$B$9:$B$270,0))),\"\")","v":""},{"$f":"IFERROR(IF(INDEX('SR_Cash Reconciliation_2E'!I$9:I$270,MATCH($D39,'SR_Cash Reconciliation_2E'!$B$9:$B$270,0))=\"\",\"\",INDEX('SR_Cash Reconciliation_2E'!I$9:I$270,MATCH($D39,'SR_Cash Reconciliation_2E'!$B$9:$B$270,0))),\"\")","v":""},{"$f":"IFERROR(IF(INDEX('SR_Cash Reconciliation_2E'!K$9:K$270,MATCH($D39,'SR_Cash Reconciliation_2E'!$B$9:$B$270,0))=\"\",\"\",INDEX('SR_Cash Reconciliation_2E'!K$9:K$270,MATCH($D39,'SR_Cash Reconciliation_2E'!$B$9:$B$270,0))),\"\")","v":""},{"$f":"\"\"","v":""},{"$f":"IFERROR(IF(INDEX('SR_Cash Reconciliation_2E'!N$9:N$270,MATCH($D39,'SR_Cash Reconciliation_2E'!$B$9:$B$270,0))=\"\",\"\",INDEX('SR_Cash Reconciliation_2E'!N$9:N$270,MATCH($D39,'SR_Cash Reconciliation_2E'!$B$9:$B$270,0))),\"\")","v":""}]
[null,null,{"$error":"#VALUE!"},{"$error":"#VALUE!"},{"$f":"IFERROR(IF(INDEX('SR_Cash Reconciliation_2E'!C$9:C$270,MATCH($D40,'SR_Cash Reconciliation_2E'!$B$9:$B$270,0))=\"\",\"\",INDEX('SR_Cash Reconciliation_2E'!C$9:C$270,MATCH($D40,'SR_Cash Reconciliation_2E'!$B$9:$B$270,0))),\"\")","v":""},{"$f":"IFERROR(IF(INDEX('SR_Cash Reconciliation_2E'!D$9:D$270,MATCH($D40,'SR_Cash Reconciliation_2E'!$B$9:$B$270,0))=\"\",\"\",INDEX('SR_Cash Reconciliation_2E'!D$9:D$270,MATCH($D40,'SR_Cash Reconciliation_2E'!$B$9:$B$270,0))),\"\")","v":""},{"$f":"IFERROR(IF(INDEX('SR_Cash Reconciliation_2E'!E$9:E$270,MATCH($D40,'SR_Cash Reconciliation_2E'!$B$9:$B$270,0))=\"\",\"\",INDEX('SR_Cash Reconciliation_2E'!E$9:E$270,MATCH($D40,'SR_Cash Reconciliation_2E'!$B$9:$B$270,0))),\"\")","v":""},{"$f":"IFERROR(IF(INDEX('SR_Cash Reconciliation_2E'!F$9:F$270,MATCH($D40,'SR_Cash Reconciliation_2E'!$B$9:$B$270,0))=\"\",\"\",INDEX('SR_Cash Reconciliation_2E'!F$9:F$270,MATCH($D40,'SR_Cash Reconciliation_2E'!$B$9:$B$270,0))),\"\")","v":""},{"$f":"IFERROR(IF(INDEX('SR_Cash Reconciliation_2E'!G$9:G$270,MATCH($D40,'SR_Cash Reconciliation_2E'!$B$9:$B$270,0))=\"\",\"\",INDEX('SR_Cash Reconciliation_2E'!G$9:G$270,MATCH($D40,'SR_Cash Reconciliation_2E'!$B$9:$B$270,0))),\"\")","v":""},{"$f":"IFERROR(IF(INDEX('SR_Cash Reconciliation_2E'!H$9:H$270,MATCH($D40,'SR_Cash Reconciliation_2E'!$B$9:$B$270,0))=\"\",\"\",INDEX('SR_Cash Reconciliation_2E'!H$9:H$270,MATCH($D40,'SR_Cash Reconciliation_2E'!$B$9:$B$270,0))),\"\")","v":""},{"$f":"IFERROR(IF(INDEX('SR_Cash Reconciliation_2E'!I$9:I$270,MATCH($D40,'SR_Cash Reconciliation_2E'!$B$9:$B$270,0))=\"\",\"\",INDEX('SR_Cash Reconciliation_2E'!I$9:I$270,MATCH($D40,'SR_Cash Reconciliation_2E'!$B$9:$B$270,0))),\"\")","v":""},{"$f":"IFERROR(IF(INDEX('SR_Cash Reconciliation_2E'!K$9:K$270,MATCH($D40,'SR_Cash Reconciliation_2E'!$B$9:$B$270,0))=\"\",\"\",INDEX('SR_Cash Reconciliation_2E'!K$9:K$270,MATCH($D40,'SR_Cash Reconciliation_2E'!$B$9:$B$270,0))),\"\")","v":""},{"$f":"\"\"","v":""},{"$f":"IFERROR(IF(INDEX('SR_Cash Reconciliation_2E'!N$9:N$270,MATCH($D40,'SR_Cash Reconciliation_2E'!$B$9:$B$270,0))=\"\",\"\",INDEX('SR_Cash Reconciliation_2E'!N$9:N$270,MATCH($D40,'SR_Cash Reconciliation_2E'!$B$9:$B$270,0))),\"\")","v":""}]
[null,null,19,"ID19",{"$f":"IFERROR(IF(INDEX('SR_Cash Reconciliation_2E'!C$9:C$270,MATCH($D41,'SR_Cash Reconciliation_2E'!$B$9:$B$270,0))=\"\",\"\",INDEX('SR_Cash Reconciliation_2E'!C$9:C$270,MATCH($D41,'SR_Cash Reconciliation_2E'!$B$9:$B$270,0))),\"\")","v":""},{"$f":"IFERROR(IF(INDEX('SR_Cash Reconciliation_2E'!D$9:D$270,MATCH($D41,'SR_Cash Reconciliation_2E'!$B$9:$B$270,0))=\"\",\"\",INDEX('SR_Cash Reconciliation_2E'!D$9:D$270,MATCH($D41,'SR_Cash Reconciliation_2E'!$B$9:$B$270,0))),\"\")","v":""},{"$f":"IFERROR(IF(INDEX('SR_Cash Reconciliation_2E'!E$9:E$270,MATCH($D41,'SR_Cash Reconciliation_2E'!$B$9:$B$270,0))=\"\",\"\",INDEX('SR_Cash Reconciliation_2E'!E$9:E$270,MATCH($D41,'SR_Cash Reconciliation_2E'!$B$9:$B$270,0))),\"\")","v":""},{"$f":"IFERROR(IF(INDEX('SR_Cash Reconciliation_2E'!F$9:F$270,MATCH($D41,'SR_Cash Reconciliation_2E'!$B$9:$B$270,0))=\"\",\"\",INDEX('SR_Cash Reconciliation_2E'!F$9:F$270,MATCH($D41,'SR_Cash Reconciliation_2E'!$B$9:$B$270,0))),\"\")","v":""},{"$f":"IFERROR(IF(INDEX('SR_Cash Reconciliation_2E'!G$9:G$270,MATCH($D41,'SR_Cash Reconciliation_2E'!$B$9:$B$270,0))=\"\",\"\",INDEX('SR_Cash Reconciliation_2E'!G$9:G$270,MATCH($D41,'SR_Cash Reconciliation_2E'!$B$9:$B$270,0))),\"\")","v":""},{"$f":"IFERROR(IF(INDEX('SR_Cash Reconciliation_2E'!H$9:H$270,MATCH($D41,'SR_Cash Reconciliation_2E'!$B$9:$B$270,0))=\"\",\"\",INDEX('SR_Cash Reconciliation_2E'!H$9:H$270,MATCH($D41,'SR_Cash Reconciliation_2E'!$B$9:$B$270,0))),\"\")","v":""},{"$f":"IFERROR(IF(INDEX('SR_Cash Reconciliation_2E'!I$9:I$270,MATCH($D41,'SR_Cash Reconciliation_2E'!$B$9:$B$270,0))=\"\",\"\",INDEX('SR_Cash Reconciliation_2E'!I$9:I$270,MATCH($D41,'SR_Cash Reconciliation_2E'!$B$9:$B$270,0))),\"\")","v":""},{"$f":"IFERROR(IF(INDEX('SR_Cash Reconciliation_2E'!K$9:K$270,MATCH($D41,'SR_Cash Reconciliation_2E'!$B$9:$B$270,0))=\"\",\"\",INDEX('SR_Cash Reconciliation_2E'!K$9:K$270,MATCH($D41,'SR_Cash Reconciliation_2E'!$B$9:$B$270,0))),\"\")","v":""},{"$f":"\"\"","v":""},{"$f":"IFERROR(IF(INDEX('SR_Cash Reconciliation_2E'!N$9:N$270,MATCH($D41,'SR_Cash Reconciliation_2E'!$B$9:$B$270,0))=\"\",\"\",INDEX('SR_Cash Reconciliation_2E'!N$9:N$270,MATCH($D41,'SR_Cash Reconciliation_2E'!$B$9:$B$270,0))),\"\")","v":""}]
[null,null,{"$error":"#VALUE!"},{"$error":"#VALUE!"},{"$f":"IFERROR(IF(INDEX('SR_Cash Reconciliation_2E'!C$9:C$270,MATCH($D42,'SR_Cash Reconciliation_2E'!$B$9:$B$270,0))=\"\",\"\",INDEX('SR_Cash Reconciliation_2E'!C$9:C$270,MATCH($D42,'SR_Cash Reconciliation_2E'!$B$9:$B$270,0))),\"\")","v":""},{"$f":"IFERROR(IF(INDEX('SR_Cash Reconciliation_2E'!D$9:D$270,MATCH($D42,'SR_Cash Reconciliation_2E'!$B$9:$B$270,0))=\"\",\"\",INDEX('SR_Cash Reconciliation_2E'!D$9:D$270,MATCH($D42,'SR_Cash Reconciliation_2E'!$B$9:$B$270,0))),\"\")","v":""},{"$f":"IFERROR(IF(INDEX('SR_Cash Reconciliation_2E'!E$9:E$270,MATCH($D42,'SR_Cash Reconciliation_2E'!$B$9:$B$270,0))=\"\",\"\",INDEX('SR_Cash Reconciliation_2E'!E$9:E$270,MATCH($D42,'SR_Cash Reconciliation_2E'!$B$9:$B$270,0))),\"\")","v":""},{"$f":"IFERROR(IF(INDEX('SR_Cash Reconciliation_2E'!F$9:F$270,MATCH($D42,'SR_Cash Reconciliation_2E'!$B$9:$B$270,0))=\"\",\"\",INDEX('SR_Cash Reconciliation_2E'!F$9:F$270,MATCH($D42,'SR_Cash Reconciliation_2E'!$B$9:$B$270,0))),\"\")","v":""},{"$f":"IFERROR(IF(INDEX('SR_Cash Reconciliation_2E'!G$9:G$270,MATCH($D42,'SR_Cash Reconciliation_2E'!$B$9:$B$270,0))=\"\",\"\",INDEX('SR_Cash Reconciliation_2E'!G$9:G$270,MATCH($D42,'SR_Cash Reconciliation_2E'!$B$9:$B$270,0))),\"\")","v":""},{"$f":"IFERROR(IF(INDEX('SR_Cash Reconciliation_2E'!H$9:H$270,MATCH($D42,'SR_Cash Reconciliation_2E'!$B$9:$B$270,0))=\"\",\"\",INDEX('SR_Cash Reconciliation_2E'!H$9:H$270,MATCH($D42,'SR_Cash Reconciliation_2E'!$B$9:$B$270,0))),\"\")","v":""},{"$f":"IFERROR(IF(INDEX('SR_Cash Reconciliation_2E'!I$9:I$270,MATCH($D42,'SR_Cash Reconciliation_2E'!$B$9:$B$270,0))=\"\",\"\",INDEX('SR_Cash Reconciliation_2E'!I$9:I$270,MATCH($D42,'SR_Cash Reconciliation_2E'!$B$9:$B$270,0))),\"\")","v":""},{"$f":"IFERROR(IF(INDEX('SR_Cash Reconciliation_2E'!K$9:K$270,MATCH($D42,'SR_Cash Reconciliation_2E'!$B$9:$B$270,0))=\"\",\"\",INDEX('SR_Cash Reconciliation_2E'!K$9:K$270,MATCH($D42,'SR_Cash Reconciliation_2E'!$B$9:$B$270,0))),\"\")","v":""},{"$f":"\"\"","v":""},{"$f":"IFERROR(IF(INDEX('SR_Cash Reconciliation_2E'!N$9:N$270,MATCH($D42,'SR_Cash Reconciliation_2E'!$B$9:$B$270,0))=\"\",\"\",INDEX('SR_Cash Reconciliation_2E'!N$9:N$270,MATCH($D42,'SR_Cash Reconciliation_2E'!$B$9:$B$270,0))),\"\")","v":""}]
[null,null,20,"ID20",{"$f":"IFERROR(IF(INDEX('SR_Cash Reconciliation_2E'!C$9:C$270,MATCH($D43,'SR_Cash Reconciliation_2E'!$B$9:$B$270,0))=\"\",\"\",INDEX('SR_Cash Reconciliation_2E'!C$9:C$270,MATCH($D43,'SR_Cash Reconciliation_2E'!$B$9:$B$270,0))),\"\")","v":""},{"$f":"IFERROR(IF(INDEX('SR_Cash Reconciliation_2E'!D$9:D$270,MATCH($D43,'SR_Cash Reconciliation_2E'!$B$9:$B$270,0))=\"\",\"\",INDEX('SR_Cash Reconciliation_2E'!D$9:D$270,MATCH($D43,'SR_Cash Reconciliation_2E'!$B$9:$B$270,0))),\"\")","v":""},{"$f":"IFERROR(IF(INDEX('SR_Cash Reconciliation_2E'!E$9:E$270,MATCH($D43,'SR_Cash Reconciliation_2E'!$B$9:$B$270,0))=\"\",\"\",INDEX('SR_Cash Reconciliation_2E'!E$9:E$270,MATCH($D43,'SR_Cash Reconciliation_2E'!$B$9:$B$270,0))),\"\")","v":""},{"$f":"IFERROR(IF(INDEX('SR_Cash Reconciliation_2E'!F$9:F$270,MATCH($D43,'SR_Cash Reconciliation_2E'!$B$9:$B$270,0))=\"\",\"\",INDEX('SR_Cash Reconciliation_2E'!F$9:F$270,MATCH($D43,'SR_Cash Reconciliation_2E'!$B$9:$B$270,0))),\"\")","v":""},{"$f":"IFERROR(IF(INDEX('SR_Cash Reconciliation_2E'!G$9:G$270,MATCH($D43,'SR_Cash Reconciliation_2E'!$B$9:$B$270,0))=\"\",\"\",INDEX('SR_Cash Reconciliation_2E'!G$9:G$270,MATCH($D43,'SR_Cash Reconciliation_2E'!$B$9:$B$270,0))),\"\")","v":""},{"$f":"IFERROR(IF(INDEX('SR_Cash Reconciliation_2E'!H$9:H$270,MATCH($D43,'SR_Cash Reconciliation_2E'!$B$9:$B$270,0))=\"\",\"\",INDEX('SR_Cash Reconciliation_2E'!H$9:H$270,MATCH($D43,'SR_Cash Reconciliation_2E'!$B$9:$B$270,0))),\"\")","v":""},{"$f":"IFERROR(IF(INDEX('SR_Cash Reconciliation_2E'!I$9:I$270,MATCH($D43,'SR_Cash Reconciliation_2E'!$B$9:$B$270,0))=\"\",\"\",INDEX('SR_Cash Reconciliation_2E'!I$9:I$270,MATCH($D43,'SR_Cash Reconciliation_2E'!$B$9:$B$270,0))),\"\")","v":""},{"$f":"IFERROR(IF(INDEX('SR_Cash Reconciliation_2E'!K$9:K$270,MATCH($D43,'SR_Cash Reconciliation_2E'!$B$9:$B$270,0))=\"\",\"\",INDEX('SR_Cash Reconciliation_2E'!K$9:K$270,MATCH($D43,'SR_Cash Reconciliation_2E'!$B$9:$B$270,0))),\"\")","v":""},{"$f":"\"\"","v":""},{"$f":"IFERROR(IF(INDEX('SR_Cash Reconciliation_2E'!N$9:N$270,MATCH($D43,'SR_Cash Reconciliation_2E'!$B$9:$B$270,0))=\"\",\"\",INDEX('SR_Cash Reconciliation_2E'!N$9:N$270,MATCH($D43,'SR_Cash Reconciliation_2E'!$B$9:$B$270,0))),\"\")","v":""}]
[null,null,{"$error":"#VALUE!"},{"$error":"#VALUE!"},{"$f":"IFERROR(IF(INDEX('SR_Cash Reconciliation_2E'!C$9:C$270,MATCH($D44,'SR_Cash Reconciliation_2E'!$B$9:$B$270,0))=\"\",\"\",INDEX('SR_Cash Reconciliation_2E'!C$9:C$270,MATCH($D44,'SR_Cash Reconciliation_2E'!$B$9:$B$270,0))),\"\")","v":""},{"$f":"IFERROR(IF(INDEX('SR_Cash Reconciliation_2E'!D$9:D$270,MATCH($D44,'SR_Cash Reconciliation_2E'!$B$9:$B$270,0))=\"\",\"\",INDEX('SR_Cash Reconciliation_2E'!D$9:D$270,MATCH($D44,'SR_Cash Reconciliation_2E'!$B$9:$B$270,0))),\"\")","v":""},{"$f":"IFERROR(IF(INDEX('SR_Cash Reconciliation_2E'!E$9:E$270,MATCH($D44,'SR_Cash Reconciliation_2E'!$B$9:$B$270,0))=\"\",\"\",INDEX('SR_Cash Reconciliation_2E'!E$9:E$270,MATCH($D44,'SR_Cash Reconciliation_2E'!$B$9:$B$270,0))),\"\")","v":""},{"$f":"IFERROR(IF(INDEX('SR_Cash Reconciliation_2E'!F$9:F$270,MATCH($D44,'SR_Cash Reconciliation_2E'!$B$9:$B$270,0))=\"\",\"\",INDEX('SR_Cash Reconciliation_2E'!F$9:F$270,MATCH($D44,'SR_Cash Reconciliation_2E'!$B$9:$B$270,0))),\"\")","v":""},{"$f":"IFERROR(IF(INDEX('SR_Cash Reconciliation_2E'!G$9:G$270,MATCH($D44,'SR_Cash Reconciliation_2E'!$B$9:$B$270,0))=\"\",\"\",INDEX('SR_Cash Reconciliation_2E'!G$9:G$270,MATCH($D44,'SR_Cash Reconciliation_2E'!$B$9:$B$270,0))),\"\")","v":""},{"$f":"IFERROR(IF(INDEX('SR_Cash Reconciliation_2E'!H$9:H$270,MATCH($D44,'SR_Cash Reconciliation_2E'!$B$9:$B$270,0))=\"\",\"\",INDEX('SR_Cash Reconciliation_2E'!H$9:H$270,MATCH($D44,'SR_Cash Reconciliation_2E'!$B$9:$B$270,0))),\"\")","v":""},{"$f":"IFERROR(IF(INDEX('SR_Cash Reconciliation_2E'!I$9:I$270,MATCH($D44,'SR_Cash Reconciliation_2E'!$B$9:$B$270,0))=\"\",\"\",INDEX('SR_Cash Reconciliation_2E'!I$9:I$270,MATCH($D44,'SR_Cash Reconciliation_2E'!$B$9:$B$270,0))),\"\")","v":""},{"$f":"IFERROR(IF(INDEX('SR_Cash Reconciliation_2E'!K$9:K$270,MATCH($D44,'SR_Cash Reconciliation_2E'!$B$9:$B$270,0))=\"\",\"\",INDEX('SR_Cash Reconciliation_2E'!K$9:K$270,MATCH($D44,'SR_Cash Reconciliation_2E'!$B$9:$B$270,0))),\"\")","v":""},{"$f":"\"\"","v":""},{"$f":"IFERROR(IF(INDEX('SR_Cash Reconciliation_2E'!N$9:N$270,MATCH($D44,'SR_Cash Reconciliation_2E'!$B$9:$B$270,0))=\"\",\"\",INDEX('SR_Cash Reconciliation_2E'!N$9:N$270,MATCH($D44,'SR_Cash Reconciliation_2E'!$B$9:$B$270,0))),\"\")","v":""}]
[null,null,21,"ID21",{"$f":"IFERROR(IF(INDEX('SR_Cash Reconciliation_2E'!C$9:C$270,MATCH($D45,'SR_Cash Reconciliation_2E'!$B$9:$B$270,0))=\"\",\"\",INDEX('SR_Cash Reconciliation_2E'!C$9:C$270,MATCH($D45,'SR_Cash Reconciliation_2E'!$B$9:$B$270,0))),\"\")","v":""},{"$f":"IFERROR(IF(INDEX('SR_Cash Reconciliation_2E'!D$9:D$270,MATCH($D45,'SR_Cash Reconciliation_2E'!$B$9:$B$270,0))=\"\",\"\",INDEX('SR_Cash Reconciliation_2E'!D$9:D$270,MATCH($D45,'SR_Cash Reconciliation_2E'!$B$9:$B$270,0))),\"\")","v":""},{"$f":"IFERROR(IF(INDEX('SR_Cash Reconciliation_2E'!E$9:E$270,MATCH($D45,'SR_Cash Reconciliation_2E'!$B$9:$B$270,0))=\"\",\"\",INDEX('SR_Cash Reconciliation_2E'!E$9:E$270,MATCH($D45,'SR_Cash Reconciliation_2E'!$B$9:$B$270,0))),\"\")","v":""},{"$f":"IFERROR(IF(INDEX('SR_Cash Reconciliation_2E'!F$9:F$270,MATCH($D45,'SR_Cash Reconciliation_2E'!$B$9:$B$270,0))=\"\",\"\",INDEX('SR_Cash Reconciliation_2E'!F$9:F$270,MATCH($D45,'SR_Cash Reconciliation_2E'!$B$9:$B$270,0))),\"\")","v":""},{"$f":"IFERROR(IF(INDEX('SR_Cash Reconciliation_2E'!G$9:G$270,MATCH($D45,'SR_Cash Reconciliation_2E'!$B$9:$B$270,0))=\"\",\"\",INDEX('SR_Cash Reconciliation_2E'!G$9:G$270,MATCH($D45,'SR_Cash Reconciliation_2E'!$B$9:$B$270,0))),\"\")","v":""},{"$f":"IFERROR(IF(INDEX('SR_Cash Reconciliation_2E'!H$9:H$270,MATCH($D45,'SR_Cash Reconciliation_2E'!$B$9:$B$270,0))=\"\",\"\",INDEX('SR_Cash Reconciliation_2E'!H$9:H$270,MATCH($D45,'SR_Cash Reconciliation_2E'!$B$9:$B$270,0))),\"\")","v":""},{"$f":"IFERROR(IF(INDEX('SR_Cash Reconciliation_2E'!I$9:I$270,MATCH($D45,'SR_Cash Reconciliation_2E'!$B$9:$B$270,0))=\"\",\"\",INDEX('SR_Cash Reconciliation_2E'!I$9:I$270,MATCH($D45,'SR_Cash Reconciliation_2E'!$B$9:$B$270,0))),\"\")","v":""},{"$f":"IFERROR(IF(INDEX('SR_Cash Reconciliation_2E'!K$9:K$270,MATCH($D45,'SR_Cash Reconciliation_2E'!$B$9:$B$270,0))=\"\",\"\",INDEX('SR_Cash Reconciliation_2E'!K$9:K$270,MATCH($D45,'SR_Cash Reconciliation_2E'!$B$9:$B$270,0))),\"\")","v":""},{"$f":"\"\"","v":""},{"$f":"IFERROR(IF(INDEX('SR_Cash Reconciliation_2E'!N$9:N$270,MATCH($D45,'SR_Cash Reconciliation_2E'!$B$9:$B$270,0))=\"\",\"\",INDEX('SR_Cash Reconciliation_2E'!N$9:N$270,MATCH($D45,'SR_Cash Reconciliation_2E'!$B$9:$B$270,0))),\"\")","v":""}]
[null,null,{"$error":"#VALUE!"},{"$error":"#VALUE!"},{"$f":"IFERROR(IF(INDEX('SR_Cash Reconciliation_2E'!C$9:C$270,MATCH($D46,'SR_Cash Reconciliation_2E'!$B$9:$B$270,0))=\"\",\"\",INDEX('SR_Cash Reconciliation_2E'!C$9:C$270,MATCH($D46,'SR_Cash Reconciliation_2E'!$B$9:$B$270,0))),\"\")","v":""},{"$f":"IFERROR(IF(INDEX('SR_Cash Reconciliation_2E'!D$9:D$270,MATCH($D46,'SR_Cash Reconciliation_2E'!$B$9:$B$270,0))=\"\",\"\",INDEX('SR_Cash Reconciliation_2E'!D$9:D$270,MATCH($D46,'SR_Cash Reconciliation_2E'!$B$9:$B$270,0))),\"\")","v":""},{"$f":"IFERROR(IF(INDEX('SR_Cash Reconciliation_2E'!E$9:E$270,MATCH($D46,'SR_Cash Reconciliation_2E'!$B$9:$B$270,0))=\"\",\"\",INDEX('SR_Cash Reconciliation_2E'!E$9:E$270,MATCH($D46,'SR_Cash Reconciliation_2E'!$B$9:$B$270,0))),\"\")","v":""},{"$f":"IFERROR(IF(INDEX('SR_Cash Reconciliation_2E'!F$9:F$270,MATCH($D46,'SR_Cash Reconciliation_2E'!$B$9:$B$270,0))=\"\",\"\",INDEX('SR_Cash Reconciliation_2E'!F$9:F$270,MATCH($D46,'SR_Cash Reconciliation_2E'!$B$9:$B$270,0))),\"\")","v":""},{"$f":"IFERROR(IF(INDEX('SR_Cash Reconciliation_2E'!G$9:G$270,MATCH($D46,'SR_Cash Reconciliation_2E'!$B$9:$B$270,0))=\"\",\"\",INDEX('SR_Cash Reconciliation_2E'!G$9:G$270,MATCH($D46,'SR_Cash Reconciliation_2E'!$B$9:$B$270,0))),\"\")","v":""},{"$f":"IFERROR(IF(INDEX('SR_Cash Reconciliation_2E'!H$9:H$270,MATCH($D46,'SR_Cash Reconciliation_2E'!$B$9:$B$270,0))=\"\",\"\",INDEX('SR_Cash Reconciliation_2E'!H$9:H$270,MATCH($D46,'SR_Cash Reconciliation_2E'!$B$9:$B$270,0))),\"\")","v":""},{"$f":"IFERROR(IF(INDEX('SR_Cash Reconciliation_2E'!I$9:I$270,MATCH($D46,'SR_Cash Reconciliation_2E'!$B$9:$B$270,0))=\"\",\"\",INDEX('SR_Cash Reconciliation_2E'!I$9:I$270,MATCH($D46,'SR_Cash Reconciliation_2E'!$B$9:$B$270,0))),\"\")","v":""},{"$f":"IFERROR(IF(INDEX('SR_Cash Reconciliation_2E'!K$9:K$270,MATCH($D46,'SR_Cash Reconciliation_2E'!$B$9:$B$270,0))=\"\",\"\",INDEX('SR_Cash Reconciliation_2E'!K$9:K$270,MATCH($D46,'SR_Cash Reconciliation_2E'!$B$9:$B$270,0))),\"\")","v":""},{"$f":"\"\"","v":""},{"$f":"IFERROR(IF(INDEX('SR_Cash Reconciliation_2E'!N$9:N$270,MATCH($D46,'SR_Cash Reconciliation_2E'!$B$9:$B$270,0))=\"\",\"\",INDEX('SR_Cash Reconciliation_2E'!N$9:N$270,MATCH($D46,'SR_Cash Reconciliation_2E'!$B$9:$B$270,0))),\"\")","v":""}]
[null,null,22,"ID22",{"$f":"IFERROR(IF(INDEX('SR_Cash Reconciliation_2E'!C$9:C$270,MATCH($D47,'SR_Cash Reconciliation_2E'!$B$9:$B$270,0))=\"\",\"\",INDEX('SR_Cash Reconciliation_2E'!C$9:C$270,MATCH($D47,'SR_Cash Reconciliation_2E'!$B$9:$B$270,0))),\"\")","v":""},{"$f":"IFERROR(IF(INDEX('SR_Cash Reconciliation_2E'!D$9:D$270,MATCH($D47,'SR_Cash Reconciliation_2E'!$B$9:$B$270,0))=\"\",\"\",INDEX('SR_Cash Reconciliation_2E'!D$9:D$270,MATCH($D47,'SR_Cash Reconciliation_2E'!$B$9:$B$270,0))),\"\")","v":""},{"$f":"IFERROR(IF(INDEX('SR_Cash Reconciliation_2E'!E$9:E$270,MATCH($D47,'SR_Cash Reconciliation_2E'!$B$9:$B$270,0))=\"\",\"\",INDEX('SR_Cash Reconciliation_2E'!E$9:E$270,MATCH($D47,'SR_Cash Reconciliation_2E'!$B$9:$B$270,0))),\"\")","v":""},{"$f":"IFERROR(IF(INDEX('SR_Cash Reconciliation_2E'!F$9:F$270,MATCH($D47,'SR_Cash Reconciliation_2E'!$B$9:$B$270,0))=\"\",\"\",INDEX('SR_Cash Reconciliation_2E'!F$9:F$270,MATCH($D47,'SR_Cash Reconciliation_2E'!$B$9:$B$270,0))),\"\")","v":""},{"$f":"IFERROR(IF(INDEX('SR_Cash Reconciliation_2E'!G$9:G$270,MATCH($D47,'SR_Cash Reconciliation_2E'!$B$9:$B$270,0))=\"\",\"\",INDEX('SR_Cash Reconciliation_2E'!G$9:G$270,MATCH($D47,'SR_Cash Reconciliation_2E'!$B$9:$B$270,0))),\"\")","v":""},{"$f":"IFERROR(IF(INDEX('SR_Cash Reconciliation_2E'!H$9:H$270,MATCH($D47,'SR_Cash Reconciliation_2E'!$B$9:$B$270,0))=\"\",\"\",INDEX('SR_Cash Reconciliation_2E'!H$9:H$270,MATCH($D47,'SR_Cash Reconciliation_2E'!$B$9:$B$270,0))),\"\")","v":""},{"$f":"IFERROR(IF(INDEX('SR_Cash Reconciliation_2E'!I$9:I$270,MATCH($D47,'SR_Cash Reconciliation_2E'!$B$9:$B$270,0))=\"\",\"\",INDEX('SR_Cash Reconciliation_2E'!I$9:I$270,MATCH($D47,'SR_Cash Reconciliation_2E'!$B$9:$B$270,0))),\"\")","v":""},{"$f":"IFERROR(IF(INDEX('SR_Cash Reconciliation_2E'!K$9:K$270,MATCH($D47,'SR_Cash Reconciliation_2E'!$B$9:$B$270,0))=\"\",\"\",INDEX('SR_Cash Reconciliation_2E'!K$9:K$270,MATCH($D47,'SR_Cash Reconciliation_2E'!$B$9:$B$270,0))),\"\")","v":""},{"$f":"\"\"","v":""},{"$f":"IFERROR(IF(INDEX('SR_Cash Reconciliation_2E'!N$9:N$270,MATCH($D47,'SR_Cash Reconciliation_2E'!$B$9:$B$270,0))=\"\",\"\",INDEX('SR_Cash Reconciliation_2E'!N$9:N$270,MATCH($D47,'SR_Cash Reconciliation_2E'!$B$9:$B$270,0))),\"\")","v":""}]
[null,null,{"$error":"#VALUE!"},{"$error":"#VALUE!"},{"$f":"IFERROR(IF(INDEX('SR_Cash Reconciliation_2E'!C$9:C$270,MATCH($D48,'SR_Cash Reconciliation_2E'!$B$9:$B$270,0))=\"\",\"\",INDEX('SR_Cash Reconciliation_2E'!C$9:C$270,MATCH($D48,'SR_Cash Reconciliation_2E'!$B$9:$B$270,0))),\"\")","v":""},{"$f":"IFERROR(IF(INDEX('SR_Cash Reconciliation_2E'!D$9:D$270,MATCH($D48,'SR_Cash Reconciliation_2E'!$B$9:$B$270,0))=\"\",\"\",INDEX('SR_Cash Reconciliation_2E'!D$9:D$270,MATCH($D48,'SR_Cash Reconciliation_2E'!$B$9:$B$270,0))),\"\")","v":""},{"$f":"IFERROR(IF(INDEX('SR_Cash Reconciliation_2E'!E$9:E$270,MATCH($D48,'SR_Cash Reconciliation_2E'!$B$9:$B$270,0))=\"\",\"\",INDEX('SR_Cash Reconciliation_2E'!E$9:E$270,MATCH($D48,'SR_Cash Reconciliation_2E'!$B$9:$B$270,0))),\"\")","v":""},{"$f":"IFERROR(IF(INDEX('SR_Cash Reconciliation_2E'!F$9:F$270,MATCH($D48,'SR_Cash Reconciliation_2E'!$B$9:$B$270,0))=\"\",\"\",INDEX('SR_Cash Reconciliation_2E'!F$9:F$270,MATCH($D48,'SR_Cash Reconciliation_2E'!$B$9:$B$270,0))),\"\")","v":""},{"$f":"IFERROR(IF(INDEX('SR_Cash Reconciliation_2E'!G$9:G$270,MATCH($D48,'SR_Cash Reconciliation_2E'!$B$9:$B$270,0))=\"\",\"\",INDEX('SR_Cash Reconciliation_2E'!G$9:G$270,MATCH($D48,'SR_Cash Reconciliation_2E'!$B$9:$B$270,0))),\"\")","v":""},{"$f":"IFERROR(IF(INDEX('SR_Cash Reconciliation_2E'!H$9:H$270,MATCH($D48,'SR_Cash Reconciliation_2E'!$B$9:$B$270,0))=\"\",\"\",INDEX('SR_Cash Reconciliation_2E'!H$9:H$270,MATCH($D48,'SR_Cash Reconciliation_2E'!$B$9:$B$270,0))),\"\")","v":""},{"$f":"IFERROR(IF(INDEX('SR_Cash Reconciliation_2E'!I$9:I$270,MATCH($D48,'SR_Cash Reconciliation_2E'!$B$9:$B$270,0))=\"\",\"\",INDEX('SR_Cash Reconciliation_2E'!I$9:I$270,MATCH($D48,'SR_Cash Reconciliation_2E'!$B$9:$B$270,0))),\"\")","v":""},{"$f":"IFERROR(IF(INDEX('SR_Cash Reconciliation_2E'!K$9:K$270,MATCH($D48,'SR_Cash Reconciliation_2E'!$B$9:$B$270,0))=\"\",\"\",INDEX('SR_Cash Reconciliation_2E'!K$9:K$270,MATCH($D48,'SR_Cash Reconciliation_2E'!$B$9:$B$270,0))),\"\")","v":""},{"$f":"\"\"","v":""},{"$f":"IFERROR(IF(INDEX('SR_Cash Reconciliation_2E'!N$9:N$270,MATCH($D48,'SR_Cash Reconciliation_2E'!$B$9:$B$270,0))=\"\",\"\",INDEX('SR_Cash Reconciliation_2E'!N$9:N$270,MATCH($D48,'SR_Cash Reconciliation_2E'!$B$9:$B$270,0))),\"\")","v":""}]
[null,null,23,"ID23",{"$f":"IFERROR(IF(INDEX('SR_Cash Reconciliation_2E'!C$9:C$270,MATCH($D49,'SR_Cash Reconciliation_2E'!$B$9:$B$270,0))=\"\",\"\",INDEX('SR_Cash Reconciliation_2E'!C$9:C$270,MATCH($D49,'SR_Cash Reconciliation_2E'!$B$9:$B$270,0))),\"\")","v":""},{"$f":"IFERROR(IF(INDEX('SR_Cash Reconciliation_2E'!D$9:D$270,MATCH($D49,'SR_Cash Reconciliation_2E'!$B$9:$B$270,0))=\"\",\"\",INDEX('SR_Cash Reconciliation_2E'!D$9:D$270,MATCH($D49,'SR_Cash Reconciliation_2E'!$B$9:$B$270,0))),\"\")","v":""},{"$f":"IFERROR(IF(INDEX('SR_Cash Reconciliation_2E'!E$9:E$270,MATCH($D49,'SR_Cash Reconciliation_2E'!$B$9:$B$270,0))=\"\",\"\",INDEX('SR_Cash Reconciliation_2E'!E$9:E$270,MATCH($D49,'SR_Cash Reconciliation_2E'!$B$9:$B$270,0))),\"\")","v":""},{"$f":"IFERROR(IF(INDEX('SR_Cash Reconciliation_2E'!F$9:F$270,MATCH($D49,'SR_Cash Reconciliation_2E'!$B$9:$B$270,0))=\"\",\"\",INDEX('SR_Cash Reconciliation_2E'!F$9:F$270,MATCH($D49,'SR_Cash Reconciliation_2E'!$B$9:$B$270,0))),\"\")","v":""},{"$f":"IFERROR(IF(INDEX('SR_Cash Reconciliation_2E'!G$9:G$270,MATCH($D49,'SR_Cash Reconciliation_2E'!$B$9:$B$270,0))=\"\",\"\",INDEX('SR_Cash Reconciliation_2E'!G$9:G$270,MATCH($D49,'SR_Cash Reconciliation_2E'!$B$9:$B$270,0))),\"\")","v":""},{"$f":"IFERROR(IF(INDEX('SR_Cash Reconciliation_2E'!H$9:H$270,MATCH($D49,'SR_Cash Reconciliation_2E'!$B$9:$B$270,0))=\"\",\"\",INDEX('SR_Cash Reconciliation_2E'!H$9:H$270,MATCH($D49,'SR_Cash Reconciliation_2E'!$B$9:$B$270,0))),\"\")","v":""},{"$f":"IFERROR(IF(INDEX('SR_Cash Reconciliation_2E'!I$9:I$270,MATCH($D49,'SR_Cash Reconciliation_2E'!$B$9:$B$270,0))=\"\",\"\",INDEX('SR_Cash Reconciliation_2E'!I$9:I$270,MATCH($D49,'SR_Cash Reconciliation_2E'!$B$9:$B$270,0))),\"\")","v":""},{"$f":"IFERROR(IF(INDEX('SR_Cash Reconciliation_2E'!K$9:K$270,MATCH($D49,'SR_Cash Reconciliation_2E'!$B$9:$B$270,0))=\"\",\"\",INDEX('SR_Cash Reconciliation_2E'!K$9:K$270,MATCH($D49,'SR_Cash Reconciliation_2E'!$B$9:$B$270,0))),\"\")","v":""},{"$f":"\"\"","v":""},{"$f":"IFERROR(IF(INDEX('SR_Cash Reconciliation_2E'!N$9:N$270,MATCH($D49,'SR_Cash Reconciliation_2E'!$B$9:$B$270,0))=\"\",\"\",INDEX('SR_Cash Reconciliation_2E'!N$9:N$270,MATCH($D49,'SR_Cash Reconciliation_2E'!$B$9:$B$270,0))),\"\")","v":""}]
[null,null,{"$error":"#VALUE!"},{"$error":"#VALUE!"},{"$f":"IFERROR(IF(INDEX('SR_Cash Reconciliation_2E'!C$9:C$270,MATCH($D50,'SR_Cash Reconciliation_2E'!$B$9:$B$270,0))=\"\",\"\",INDEX('SR_Cash Reconciliation_2E'!C$9:C$270,MATCH($D50,'SR_Cash Reconciliation_2E'!$B$9:$B$270,0))),\"\")","v":""},{"$f":"IFERROR(IF(INDEX('SR_Cash Reconciliation_2E'!D$9:D$270,MATCH($D50,'SR_Cash Reconciliation_2E'!$B$9:$B$270,0))=\"\",\"\",INDEX('SR_Cash Reconciliation_2E'!D$9:D$270,MATCH($D50,'SR_Cash Reconciliation_2E'!$B$9:$B$270,0))),\"\")","v":""},{"$f":"IFERROR(IF(INDEX('SR_Cash Reconciliation_2E'!E$9:E$270,MATCH($D50,'SR_Cash Reconciliation_2E'!$B$9:$B$270,0))=\"\",\"\",INDEX('SR_Cash Reconciliation_2E'!E$9:E$270,MATCH($D50,'SR_Cash Reconciliation_2E'!$B$9:$B$270,0))),\"\")","v":""},{"$f":"IFERROR(IF(INDEX('SR_Cash Reconciliation_2E'!F$9:F$270,MATCH($D50,'SR_Cash Reconciliation_2E'!$B$9:$B$270,0))=\"\",\"\",INDEX('SR_Cash Reconciliation_2E'!F$9:F$270,MATCH($D50,'SR_Cash Reconciliation_2E'!$B$9:$B$270,0))),\"\")","v":""},{"$f":"IFERROR(IF(INDEX('SR_Cash Reconciliation_2E'!G$9:G$270,MATCH($D50,'SR_Cash Reconciliation_2E'!$B$9:$B$270,0))=\"\",\"\",INDEX('SR_Cash Reconciliation_2E'!G$9:G$270,MATCH($D50,'SR_Cash Reconciliation_2E'!$B$9:$B$270,0))),\"\")","v":""},{"$f":"IFERROR(IF(INDEX('SR_Cash Reconciliation_2E'!H$9:H$270,MATCH($D50,'SR_Cash Reconciliation_2E'!$B$9:$B$270,0))=\"\",\"\",INDEX('SR_Cash Reconciliation_2E'!H$9:H$270,MATCH($D50,'SR_Cash Reconciliation_2E'!$B$9:$B$270,0))),\"\")","v":""},{"$f":"IFERROR(IF(INDEX('SR_Cash Reconciliation_2E'!I$9:I$270,MATCH($D50,'SR_Cash Reconciliation_2E'!$B$9:$B$270,0))=\"\",\"\",INDEX('SR_Cash Reconciliation_2E'!I$9:I$270,MATCH($D50,'SR_Cash Reconciliation_2E'!$B$9:$B$270,0))),\"\")","v":""},{"$f":"IFERROR(IF(INDEX('SR_Cash Reconciliation_2E'!K$9:K$270,MATCH($D50,'SR_Cash Reconciliation_2E'!$B$9:$B$270,0))=\"\",\"\",INDEX('SR_Cash Reconciliation_2E'!K$9:K$270,MATCH($D50,'SR_Cash Reconciliation_2E'!$B$9:$B$270,0))),\"\")","v":""},{"$f":"\"\"","v":""},{"$f":"IFERROR(IF(INDEX('SR_Cash Reconciliation_2E'!N$9:N$270,MATCH($D50,'SR_Cash Reconciliation_2E'!$B$9:$B$270,0))=\"\",\"\",INDEX('SR_Cash Reconciliation_2E'!N$9:N$270,MATCH($D50,'SR_Cash Reconciliation_2E'!$B$9:$B$270,0))),\"\")","v":""}]
[null,null,24,"ID24",{"$f":"IFERROR(IF(INDEX('SR_Cash Reconciliation_2E'!C$9:C$270,MATCH($D51,'SR_Cash Reconciliation_2E'!$B$9:$B$270,0))=\"\",\"\",INDEX('SR_Cash Reconciliation_2E'!C$9:C$270,MATCH($D51,'SR_Cash Reconciliation_2E'!$B$9:$B$270,0))),\"\")","v":""},{"$f":"IFERROR(IF(INDEX('SR_Cash Reconciliation_2E'!D$9:D$270,MATCH($D51,'SR_Cash Reconciliation_2E'!$B$9:$B$270,0))=\"\",\"\",INDEX('SR_Cash Reconciliation_2E'!D$9:D$270,MATCH($D51,'SR_Cash Reconciliation_2E'!$B$9:$B$270,0))),\"\")","v":""},{"$f":"IFERROR(IF(INDEX('SR_Cash Reconciliation_2E'!E$9:E$270,MATCH($D51,'SR_Cash Reconciliation_2E'!$B$9:$B$270,0))=\"\",\"\",INDEX('SR_Cash Reconciliation_2E'!E$9:E$270,MATCH($D51,'SR_Cash Reconciliation_2E'!$B$9:$B$270,0))),\"\")","v":""},{"$f":"IFERROR(IF(INDEX('SR_Cash Reconciliation_2E'!F$9:F$270,MATCH($D51,'SR_Cash Reconciliation_2E'!$B$9:$B$270,0))=\"\",\"\",INDEX('SR_Cash Reconciliation_2E'!F$9:F$270,MATCH($D51,'SR_Cash Reconciliation_2E'!$B$9:$B$270,0))),\"\")","v":""},{"$f":"IFERROR(IF(INDEX('SR_Cash Reconciliation_2E'!G$9:G$270,MATCH($D51,'SR_Cash Reconciliation_2E'!$B$9:$B$270,0))=\"\",\"\",INDEX('SR_Cash Reconciliation_2E'!G$9:G$270,MATCH($D51,'SR_Cash Reconciliation_2E'!$B$9:$B$270,0))),\"\")","v":""},{"$f":"IFERROR(IF(INDEX('SR_Cash Reconciliation_2E'!H$9:H$270,MATCH($D51,'SR_Cash Reconciliation_2E'!$B$9:$B$270,0))=\"\",\"\",INDEX('SR_Cash Reconciliation_2E'!H$9:H$270,MATCH($D51,'SR_Cash Reconciliation_2E'!$B$9:$B$270,0))),\"\")","v":""},{"$f":"IFERROR(IF(INDEX('SR_Cash Reconciliation_2E'!I$9:I$270,MATCH($D51,'SR_Cash Reconciliation_2E'!$B$9:$B$270,0))=\"\",\"\",INDEX('SR_Cash Reconciliation_2E'!I$9:I$270,MATCH($D51,'SR_Cash Reconciliation_2E'!$B$9:$B$270,0))),\"\")","v":""},{"$f":"IFERROR(IF(INDEX('SR_Cash Reconciliation_2E'!K$9:K$270,MATCH($D51,'SR_Cash Reconciliation_2E'!$B$9:$B$270,0))=\"\",\"\",INDEX('SR_Cash Reconciliation_2E'!K$9:K$270,MATCH($D51,'SR_Cash Reconciliation_2E'!$B$9:$B$270,0))),\"\")","v":""},{"$f":"\"\"","v":""},{"$f":"IFERROR(IF(INDEX('SR_Cash Reconciliation_2E'!N$9:N$270,MATCH($D51,'SR_Cash Reconciliation_2E'!$B$9:$B$270,0))=\"\",\"\",INDEX('SR_Cash Reconciliation_2E'!N$9:N$270,MATCH($D51,'SR_Cash Reconciliation_2E'!$B$9:$B$270,0))),\"\")","v":""}]
[null,null,{"$error":"#VALUE!"},{"$error":"#VALUE!"},{"$f":"IFERROR(IF(INDEX('SR_Cash Reconciliation_2E'!C$9:C$270,MATCH($D52,'SR_Cash Reconciliation_2E'!$B$9:$B$270,0))=\"\",\"\",INDEX('SR_Cash Reconciliation_2E'!C$9:C$270,MATCH($D52,'SR_Cash Reconciliation_2E'!$B$9:$B$270,0))),\"\")","v":""},{"$f":"IFERROR(IF(INDEX('SR_Cash Reconciliation_2E'!D$9:D$270,MATCH($D52,'SR_Cash Reconciliation_2E'!$B$9:$B$270,0))=\"\",\"\",INDEX('SR_Cash Reconciliation_2E'!D$9:D$270,MATCH($D52,'SR_Cash Reconciliation_2E'!$B$9:$B$270,0))),\"\")","v":""},{"$f":"IFERROR(IF(INDEX('SR_Cash Reconciliation_2E'!E$9:E$270,MATCH($D52,'SR_Cash Reconciliation_2E'!$B$9:$B$270,0))=\"\",\"\",INDEX('SR_Cash Reconciliation_2E'!E$9:E$270,MATCH($D52,'SR_Cash Reconciliation_2E'!$B$9:$B$270,0))),\"\")","v":""},{"$f":"IFERROR(IF(INDEX('SR_Cash Reconciliation_2E'!F$9:F$270,MATCH($D52,'SR_Cash Reconciliation_2E'!$B$9:$B$270,0))=\"\",\"\",INDEX('SR_Cash Reconciliation_2E'!F$9:F$270,MATCH($D52,'SR_Cash Reconciliation_2E'!$B$9:$B$270,0))),\"\")","v":""},{"$f":"IFERROR(IF(INDEX('SR_Cash Reconciliation_2E'!G$9:G$270,MATCH($D52,'SR_Cash Reconciliation_2E'!$B$9:$B$270,0))=\"\",\"\",INDEX('SR_Cash Reconciliation_2E'!G$9:G$270,MATCH($D52,'SR_Cash Reconciliation_2E'!$B$9:$B$270,0))),\"\")","v":""},{"$f":"IFERROR(IF(INDEX('SR_Cash Reconciliation_2E'!H$9:H$270,MATCH($D52,'SR_Cash Reconciliation_2E'!$B$9:$B$270,0))=\"\",\"\",INDEX('SR_Cash Reconciliation_2E'!H$9:H$270,MATCH($D52,'SR_Cash Reconciliation_2E'!$B$9:$B$270,0))),\"\")","v":""},{"$f":"IFERROR(IF(INDEX('SR_Cash Reconciliation_2E'!I$9:I$270,MATCH($D52,'SR_Cash Reconciliation_2E'!$B$9:$B$270,0))=\"\",\"\",INDEX('SR_Cash Reconciliation_2E'!I$9:I$270,MATCH($D52,'SR_Cash Reconciliation_2E'!$B$9:$B$270,0))),\"\")","v":""},{"$f":"IFERROR(IF(INDEX('SR_Cash Reconciliation_2E'!K$9:K$270,MATCH($D52,'SR_Cash Reconciliation_2E'!$B$9:$B$270,0))=\"\",\"\",INDEX('SR_Cash Reconciliation_2E'!K$9:K$270,MATCH($D52,'SR_Cash Reconciliation_2E'!$B$9:$B$270,0))),\"\")","v":""},{"$f":"\"\"","v":""},{"$f":"IFERROR(IF(INDEX('SR_Cash Reconciliation_2E'!N$9:N$270,MATCH($D52,'SR_Cash Reconciliation_2E'!$B$9:$B$270,0))=\"\",\"\",INDEX('SR_Cash Reconciliation_2E'!N$9:N$270,MATCH($D52,'SR_Cash Reconciliation_2E'!$B$9:$B$270,0))),\"\")","v":""}]
[null,null,25,"ID25",{"$f":"IFERROR(IF(INDEX('SR_Cash Reconciliation_2E'!C$9:C$270,MATCH($D53,'SR_Cash Reconciliation_2E'!$B$9:$B$270,0))=\"\",\"\",INDEX('SR_Cash Reconciliation_2E'!C$9:C$270,MATCH($D53,'SR_Cash Reconciliation_2E'!$B$9:$B$270,0))),\"\")","v":""},{"$f":"IFERROR(IF(INDEX('SR_Cash Reconciliation_2E'!D$9:D$270,MATCH($D53,'SR_Cash Reconciliation_2E'!$B$9:$B$270,0))=\"\",\"\",INDEX('SR_Cash Reconciliation_2E'!D$9:D$270,MATCH($D53,'SR_Cash Reconciliation_2E'!$B$9:$B$270,0))),\"\")","v":""},{"$f":"IFERROR(IF(INDEX('SR_Cash Reconciliation_2E'!E$9:E$270,MATCH($D53,'SR_Cash Reconciliation_2E'!$B$9:$B$270,0))=\"\",\"\",INDEX('SR_Cash Reconciliation_2E'!E$9:E$270,MATCH($D53,'SR_Cash Reconciliation_2E'!$B$9:$B$270,0))),\"\")","v":""},{"$f":"IFERROR(IF(INDEX('SR_Cash Reconciliation_2E'!F$9:F$270,MATCH($D53,'SR_Cash Reconciliation_2E'!$B$9:$B$270,0))=\"\",\"\",INDEX('SR_Cash Reconciliation_2E'!F$9:F$270,MATCH($D53,'SR_Cash Reconciliation_2E'!$B$9:$B$270,0))),\"\")","v":""},{"$f":"IFERROR(IF(INDEX('SR_Cash Reconciliation_2E'!G$9:G$270,MATCH($D53,'SR_Cash Reconciliation_2E'!$B$9:$B$270,0))=\"\",\"\",INDEX('SR_Cash Reconciliation_2E'!G$9:G$270,MATCH($D53,'SR_Cash Reconciliation_2E'!$B$9:$B$270,0))),\"\")","v":""},{"$f":"IFERROR(IF(INDEX('SR_Cash Reconciliation_2E'!H$9:H$270,MATCH($D53,'SR_Cash Reconciliation_2E'!$B$9:$B$270,0))=\"\",\"\",INDEX('SR_Cash Reconciliation_2E'!H$9:H$270,MATCH($D53,'SR_Cash Reconciliation_2E'!$B$9:$B$270,0))),\"\")","v":""},{"$f":"IFERROR(IF(INDEX('SR_Cash Reconciliation_2E'!I$9:I$270,MATCH($D53,'SR_Cash Reconciliation_2E'!$B$9:$B$270,0))=\"\",\"\",INDEX('SR_Cash Reconciliation_2E'!I$9:I$270,MATCH($D53,'SR_Cash Reconciliation_2E'!$B$9:$B$270,0))),\"\")","v":""},{"$f":"IFERROR(IF(INDEX('SR_Cash Reconciliation_2E'!K$9:K$270,MATCH($D53,'SR_Cash Reconciliation_2E'!$B$9:$B$270,0))=\"\",\"\",INDEX('SR_Cash Reconciliation_2E'!K$9:K$270,MATCH($D53,'SR_Cash Reconciliation_2E'!$B$9:$B$270,0))),\"\")","v":""},{"$f":"\"\"","v":""},{"$f":"IFERROR(IF(INDEX('SR_Cash Reconciliation_2E'!N$9:N$270,MATCH($D53,'SR_Cash Reconciliation_2E'!$B$9:$B$270,0))=\"\",\"\",INDEX('SR_Cash Reconciliation_2E'!N$9:N$270,MATCH($D53,'SR_Cash Reconciliation_2E'!$B$9:$B$270,0))),\"\")","v":""}]
[null,null,{"$error":"#VALUE!"},{"$error":"#VALUE!"},{"$f":"IFERROR(IF(INDEX('SR_Cash Reconciliation_2E'!C$9:C$270,MATCH($D54,'SR_Cash Reconciliation_2E'!$B$9:$B$270,0))=\"\",\"\",INDEX('SR_Cash Reconciliation_2E'!C$9:C$270,MATCH($D54,'SR_Cash Reconciliation_2E'!$B$9:$B$270,0))),\"\")","v":""},{"$f":"IFERROR(IF(INDEX('SR_Cash Reconciliation_2E'!D$9:D$270,MATCH($D54,'SR_Cash Reconciliation_2E'!$B$9:$B$270,0))=\"\",\"\",INDEX('SR_Cash Reconciliation_2E'!D$9:D$270,MATCH($D54,'SR_Cash Reconciliation_2E'!$B$9:$B$270,0))),\"\")","v":""},{"$f":"IFERROR(IF(INDEX('SR_Cash Reconciliation_2E'!E$9:E$270,MATCH($D54,'SR_Cash Reconciliation_2E'!$B$9:$B$270,0))=\"\",\"\",INDEX('SR_Cash Reconciliation_2E'!E$9:E$270,MATCH($D54,'SR_Cash Reconciliation_2E'!$B$9:$B$270,0))),\"\")","v":""},{"$f":"IFERROR(IF(INDEX('SR_Cash Reconciliation_2E'!F$9:F$270,MATCH($D54,'SR_Cash Reconciliation_2E'!$B$9:$B$270,0))=\"\",\"\",INDEX('SR_Cash Reconciliation_2E'!F$9:F$270,MATCH($D54,'SR_Cash Reconciliation_2E'!$B$9:$B$270,0))),\"\")","v":""},{"$f":"IFERROR(IF(INDEX('SR_Cash Reconciliation_2E'!G$9:G$270,MATCH($D54,'SR_Cash Reconciliation_2E'!$B$9:$B$270,0))=\"\",\"\",INDEX('SR_Cash Reconciliation_2E'!G$9:G$270,MATCH($D54,'SR_Cash Reconciliation_2E'!$B$9:$B$270,0))),\"\")","v":""},{"$f":"IFERROR(IF(INDEX('SR_Cash Reconciliation_2E'!H$9:H$270,MATCH($D54,'SR_Cash Reconciliation_2E'!$B$9:$B$270,0))=\"\",\"\",INDEX('SR_Cash Reconciliation_2E'!H$9:H$270,MATCH($D54,'SR_Cash Reconciliation_2E'!$B$9:$B$270,0))),\"\")","v":""},{"$f":"IFERROR(IF(INDEX('SR_Cash Reconciliation_2E'!I$9:I$270,MATCH($D54,'SR_Cash Reconciliation_2E'!$B$9:$B$270,0))=\"\",\"\",INDEX('SR_Cash Reconciliation_2E'!I$9:I$270,MATCH($D54,'SR_Cash Reconciliation_2E'!$B$9:$B$270,0))),\"\")","v":""},{"$f":"IFERROR(IF(INDEX('SR_Cash Reconciliation_2E'!K$9:K$270,MATCH($D54,'SR_Cash Reconciliation_2E'!$B$9:$B$270,0))=\"\",\"\",INDEX('SR_Cash Reconciliation_2E'!K$9:K$270,MATCH($D54,'SR_Cash Reconciliation_2E'!$B$9:$B$270,0))),\"\")","v":""},{"$f":"\"\"","v":""},{"$f":"IFERROR(IF(INDEX('SR_Cash Reconciliation_2E'!N$9:N$270,MATCH($D54,'SR_Cash Reconciliation_2E'!$B$9:$B$270,0))=\"\",\"\",INDEX('SR_Cash Reconciliation_2E'!N$9:N$270,MATCH($D54,'SR_Cash Reconciliation_2E'!$B$9:$B$270,0))),\"\")","v":""}]
[null,null,26,"ID26",{"$f":"IFERROR(IF(INDEX('SR_Cash Reconciliation_2E'!C$9:C$270,MATCH($D55,'SR_Cash Reconciliation_2E'!$B$9:$B$270,0))=\"\",\"\",INDEX('SR_Cash Reconciliation_2E'!C$9:C$270,MATCH($D55,'SR_Cash Reconciliation_2E'!$B$9:$B$270,0))),\"\")","v":""},{"$f":"IFERROR(IF(INDEX('SR_Cash Reconciliation_2E'!D$9:D$270,MATCH($D55,'SR_Cash Reconciliation_2E'!$B$9:$B$270,0))=\"\",\"\",INDEX('SR_Cash Reconciliation_2E'!D$9:D$270,MATCH($D55,'SR_Cash Reconciliation_2E'!$B$9:$B$270,0))),\"\")","v":""},{"$f":"IFERROR(IF(INDEX('SR_Cash Reconciliation_2E'!E$9:E$270,MATCH($D55,'SR_Cash Reconciliation_2E'!$B$9:$B$270,0))=\"\",\"\",INDEX('SR_Cash Reconciliation_2E'!E$9:E$270,MATCH($D55,'SR_Cash Reconciliation_2E'!$B$9:$B$270,0))),\"\")","v":""},{"$f":"IFERROR(IF(INDEX('SR_Cash Reconciliation_2E'!F$9:F$270,MATCH($D55,'SR_Cash Reconciliation_2E'!$B$9:$B$270,0))=\"\",\"\",INDEX('SR_Cash Reconciliation_2E'!F$9:F$270,MATCH($D55,'SR_Cash Reconciliation_2E'!$B$9:$B$270,0))),\"\")","v":""},{"$f":"IFERROR(IF(INDEX('SR_Cash Reconciliation_2E'!G$9:G$270,MATCH($D55,'SR_Cash Reconciliation_2E'!$B$9:$B$270,0))=\"\",\"\",INDEX('SR_Cash Reconciliation_2E'!G$9:G$270,MATCH($D55,'SR_Cash Reconciliation_2E'!$B$9:$B$270,0))),\"\")","v":""},{"$f":"IFERROR(IF(INDEX('SR_Cash Reconciliation_2E'!H$9:H$270,MATCH($D55,'SR_Cash Reconciliation_2E'!$B$9:$B$270,0))=\"\",\"\",INDEX('SR_Cash Reconciliation_2E'!H$9:H$270,MATCH($D55,'SR_Cash Reconciliation_2E'!$B$9:$B$270,0))),\"\")","v":""},{"$f":"IFERROR(IF(INDEX('SR_Cash Reconciliation_2E'!I$9:I$270,MATCH($D55,'SR_Cash Reconciliation_2E'!$B$9:$B$270,0))=\"\",\"\",INDEX('SR_Cash Reconciliation_2E'!I$9:I$270,MATCH($D55,'SR_Cash Reconciliation_2E'!$B$9:$B$270,0))),\"\")","v":""},{"$f":"IFERROR(IF(INDEX('SR_Cash Reconciliation_2E'!K$9:K$270,MATCH($D55,'SR_Cash Reconciliation_2E'!$B$9:$B$270,0))=\"\",\"\",INDEX('SR_Cash Reconciliation_2E'!K$9:K$270,MATCH($D55,'SR_Cash Reconciliation_2E'!$B$9:$B$270,0))),\"\")","v":""},{"$f":"\"\"","v":""},{"$f":"IFERROR(IF(INDEX('SR_Cash Reconciliation_2E'!N$9:N$270,MATCH($D55,'SR_Cash Reconciliation_2E'!$B$9:$B$270,0))=\"\",\"\",INDEX('SR_Cash Reconciliation_2E'!N$9:N$270,MATCH($D55,'SR_Cash Reconciliation_2E'!$B$9:$B$270,0))),\"\")","v":""}]
[null,null,{"$error":"#VALUE!"},{"$error":"#VALUE!"},{"$f":"IFERROR(IF(INDEX('SR_Cash Reconciliation_2E'!C$9:C$270,MATCH($D56,'SR_Cash Reconciliation_2E'!$B$9:$B$270,0))=\"\",\"\",INDEX('SR_Cash Reconciliation_2E'!C$9:C$270,MATCH($D56,'SR_Cash Reconciliation_2E'!$B$9:$B$270,0))),\"\")","v":""},{"$f":"IFERROR(IF(INDEX('SR_Cash Reconciliation_2E'!D$9:D$270,MATCH($D56,'SR_Cash Reconciliation_2E'!$B$9:$B$270,0))=\"\",\"\",INDEX('SR_Cash Reconciliation_2E'!D$9:D$270,MATCH($D56,'SR_Cash Reconciliation_2E'!$B$9:$B$270,0))),\"\")","v":""},{"$f":"IFERROR(IF(INDEX('SR_Cash Reconciliation_2E'!E$9:E$270,MATCH($D56,'SR_Cash Reconciliation_2E'!$B$9:$B$270,0))=\"\",\"\",INDEX('SR_Cash Reconciliation_2E'!E$9:E$270,MATCH($D56,'SR_Cash Reconciliation_2E'!$B$9:$B$270,0))),\"\")","v":""},{"$f":"IFERROR(IF(INDEX('SR_Cash Reconciliation_2E'!F$9:F$270,MATCH($D56,'SR_Cash Reconciliation_2E'!$B$9:$B$270,0))=\"\",\"\",INDEX('SR_Cash Reconciliation_2E'!F$9:F$270,MATCH($D56,'SR_Cash Reconciliation_2E'!$B$9:$B$270,0))),\"\")","v":""},{"$f":"IFERROR(IF(INDEX('SR_Cash Reconciliation_2E'!G$9:G$270,MATCH($D56,'SR_Cash Reconciliation_2E'!$B$9:$B$270,0))=\"\",\"\",INDEX('SR_Cash Reconciliation_2E'!G$9:G$270,MATCH($D56,'SR_Cash Reconciliation_2E'!$B$9:$B$270,0))),\"\")","v":""},{"$f":"IFERROR(IF(INDEX('SR_Cash Reconciliation_2E'!H$9:H$270,MATCH($D56,'SR_Cash Reconciliation_2E'!$B$9:$B$270,0))=\"\",\"\",INDEX('SR_Cash Reconciliation_2E'!H$9:H$270,MATCH($D56,'SR_Cash Reconciliation_2E'!$B$9:$B$270,0))),\"\")","v":""},{"$f":"IFERROR(IF(INDEX('SR_Cash Reconciliation_2E'!I$9:I$270,MATCH($D56,'SR_Cash Reconciliation_2E'!$B$9:$B$270,0))=\"\",\"\",INDEX('SR_Cash Reconciliation_2E'!I$9:I$270,MATCH($D56,'SR_Cash Reconciliation_2E'!$B$9:$B$270,0))),\"\")","v":""},{"$f":"IFERROR(IF(INDEX('SR_Cash Reconciliation_2E'!K$9:K$270,MATCH($D56,'SR_Cash Reconciliation_2E'!$B$9:$B$270,0))=\"\",\"\",INDEX('SR_Cash Reconciliation_2E'!K$9:K$270,MATCH($D56,'SR_Cash Reconciliation_2E'!$B$9:$B$270,0))),\"\")","v":""},{"$f":"\"\"","v":""},{"$f":"IFERROR(IF(INDEX('SR_Cash Reconciliation_2E'!N$9:N$270,MATCH($D56,'SR_Cash Reconciliation_2E'!$B$9:$B$270,0))=\"\",\"\",INDEX('SR_Cash Reconciliation_2E'!N$9:N$270,MATCH($D56,'SR_Cash Reconciliation_2E'!$B$9:$B$270,0))),\"\")","v":""}]
[null,null,27,"ID27",{"$f":"IFERROR(IF(INDEX('SR_Cash Reconciliation_2E'!C$9:C$270,MATCH($D57,'SR_Cash Reconciliation_2E'!$B$9:$B$270,0))=\"\",\"\",INDEX('SR_Cash Reconciliation_2E'!C$9:C$270,MATCH($D57,'SR_Cash Reconciliation_2E'!$B$9:$B$270,0))),\"\")","v":""},{"$f":"IFERROR(IF(INDEX('SR_Cash Reconciliation_2E'!D$9:D$270,MATCH($D57,'SR_Cash Reconciliation_2E'!$B$9:$B$270,0))=\"\",\"\",INDEX('SR_Cash Reconciliation_2E'!D$9:D$270,MATCH($D57,'SR_Cash Reconciliation_2E'!$B$9:$B$270,0))),\"\")","v":""},{"$f":"IFERROR(IF(INDEX('SR_Cash Reconciliation_2E'!E$9:E$270,MATCH($D57,'SR_Cash Reconciliation_2E'!$B$9:$B$270,0))=\"\",\"\",INDEX('SR_Cash Reconciliation_2E'!E$9:E$270,MATCH($D57,'SR_Cash Reconciliation_2E'!$B$9:$B$270,0))),\"\")","v":""},{"$f":"IFERROR(IF(INDEX('SR_Cash Reconciliation_2E'!F$9:F$270,MATCH($D57,'SR_Cash Reconciliation_2E'!$B$9:$B$270,0))=\"\",\"\",INDEX('SR_Cash Reconciliation_2E'!F$9:F$270,MATCH($D57,'SR_Cash Reconciliation_2E'!$B$9:$B$270,0))),\"\")","v":""},{"$f":"IFERROR(IF(INDEX('SR_Cash Reconciliation_2E'!G$9:G$270,MATCH($D57,'SR_Cash Reconciliation_2E'!$B$9:$B$270,0))=\"\",\"\",INDEX('SR_Cash Reconciliation_2E'!G$9:G$270,MATCH($D57,'SR_Cash Reconciliation_2E'!$B$9:$B$270,0))),\"\")","v":""},{"$f":"IFERROR(IF(INDEX('SR_Cash Reconciliation_2E'!H$9:H$270,MATCH($D57,'SR_Cash Reconciliation_2E'!$B$9:$B$270,0))=\"\",\"\",INDEX('SR_Cash Reconciliation_2E'!H$9:H$270,MATCH($D57,'SR_Cash Reconciliation_2E'!$B$9:$B$270,0))),\"\")","v":""},{"$f":"IFERROR(IF(INDEX('SR_Cash Reconciliation_2E'!I$9:I$270,MATCH($D57,'SR_Cash Reconciliation_2E'!$B$9:$B$270,0))=\"\",\"\",INDEX('SR_Cash Reconciliation_2E'!I$9:I$270,MATCH($D57,'SR_Cash Reconciliation_2E'!$B$9:$B$270,0))),\"\")","v":""},{"$f":"IFERROR(IF(INDEX('SR_Cash Reconciliation_2E'!K$9:K$270,MATCH($D57,'SR_Cash Reconciliation_2E'!$B$9:$B$270,0))=\"\",\"\",INDEX('SR_Cash Reconciliation_2E'!K$9:K$270,MATCH($D57,'SR_Cash Reconciliation_2E'!$B$9:$B$270,0))),\"\")","v":""},{"$f":"\"\"","v":""},{"$f":"IFERROR(IF(INDEX('SR_Cash Reconciliation_2E'!N$9:N$270,MATCH($D57,'SR_Cash Reconciliation_2E'!$B$9:$B$270,0))=\"\",\"\",INDEX('SR_Cash Reconciliation_2E'!N$9:N$270,MATCH($D57,'SR_Cash Reconciliation_2E'!$B$9:$B$270,0))),\"\")","v":""}]
[null,null,{"$error":"#VALUE!"},{"$error":"#VALUE!"},{"$f":"IFERROR(IF(INDEX('SR_Cash Reconciliation_2E'!C$9:C$270,MATCH($D58,'SR_Cash Reconciliation_2E'!$B$9:$B$270,0))=\"\",\"\",INDEX('SR_Cash Reconciliation_2E'!C$9:C$270,MATCH($D58,'SR_Cash Reconciliation_2E'!$B$9:$B$270,0))),\"\")","v":""},{"$f":"IFERROR(IF(INDEX('SR_Cash Reconciliation_2E'!D$9:D$270,MATCH($D58,'SR_Cash Reconciliation_2E'!$B$9:$B$270,0))=\"\",\"\",INDEX('SR_Cash Reconciliation_2E'!D$9:D$270,MATCH($D58,'SR_Cash Reconciliation_2E'!$B$9:$B$270,0))),\"\")","v":""},{"$f":"IFERROR(IF(INDEX('SR_Cash Reconciliation_2E'!E$9:E$270,MATCH($D58,'SR_Cash Reconciliation_2E'!$B$9:$B$270,0))=\"\",\"\",INDEX('SR_Cash Reconciliation_2E'!E$9:E$270,MATCH($D58,'SR_Cash Reconciliation_2E'!$B$9:$B$270,0))),\"\")","v":""},{"$f":"IFERROR(IF(INDEX('SR_Cash Reconciliation_2E'!F$9:F$270,MATCH($D58,'SR_Cash Reconciliation_2E'!$B$9:$B$270,0))=\"\",\"\",INDEX('SR_Cash Reconciliation_2E'!F$9:F$270,MATCH($D58,'SR_Cash Reconciliation_2E'!$B$9:$B$270,0))),\"\")","v":""},{"$f":"IFERROR(IF(INDEX('SR_Cash Reconciliation_2E'!G$9:G$270,MATCH($D58,'SR_Cash Reconciliation_2E'!$B$9:$B$270,0))=\"\",\"\",INDEX('SR_Cash Reconciliation_2E'!G$9:G$270,MATCH($D58,'SR_Cash Reconciliation_2E'!$B$9:$B$270,0))),\"\")","v":""},{"$f":"IFERROR(IF(INDEX('SR_Cash Reconciliation_2E'!H$9:H$270,MATCH($D58,'SR_Cash Reconciliation_2E'!$B$9:$B$270,0))=\"\",\"\",INDEX('SR_Cash Reconciliation_2E'!H$9:H$270,MATCH($D58,'SR_Cash Reconciliation_2E'!$B$9:$B$270,0))),\"\")","v":""},{"$f":"IFERROR(IF(INDEX('SR_Cash Reconciliation_2E'!I$9:I$270,MATCH($D58,'SR_Cash Reconciliation_2E'!$B$9:$B$270,0))=\"\",\"\",INDEX('SR_Cash Reconciliation_2E'!I$9:I$270,MATCH($D58,'SR_Cash Reconciliation_2E'!$B$9:$B$270,0))),\"\")","v":""},{"$f":"IFERROR(IF(INDEX('SR_Cash Reconciliation_2E'!K$9:K$270,MATCH($D58,'SR_Cash Reconciliation_2E'!$B$9:$B$270,0))=\"\",\"\",INDEX('SR_Cash Reconciliation_2E'!K$9:K$270,MATCH($D58,'SR_Cash Reconciliation_2E'!$B$9:$B$270,0))),\"\")","v":""},{"$f":"\"\"","v":""},{"$f":"IFERROR(IF(INDEX('SR_Cash Reconciliation_2E'!N$9:N$270,MATCH($D58,'SR_Cash Reconciliation_2E'!$B$9:$B$270,0))=\"\",\"\",INDEX('SR_Cash Reconciliation_2E'!N$9:N$270,MATCH($D58,'SR_Cash Reconciliation_2E'!$B$9:$B$270,0))),\"\")","v":""}]
[null,null,28,"ID28",{"$f":"IFERROR(IF(INDEX('SR_Cash Reconciliation_2E'!C$9:C$270,MATCH($D59,'SR_Cash Reconciliation_2E'!$B$9:$B$270,0))=\"\",\"\",INDEX('SR_Cash Reconciliation_2E'!C$9:C$270,MATCH($D59,'SR_Cash Reconciliation_2E'!$B$9:$B$270,0))),\"\")","v":""},{"$f":"IFERROR(IF(INDEX('SR_Cash Reconciliation_2E'!D$9:D$270,MATCH($D59,'SR_Cash Reconciliation_2E'!$B$9:$B$270,0))=\"\",\"\",INDEX('SR_Cash Reconciliation_2E'!D$9:D$270,MATCH($D59,'SR_Cash Reconciliation_2E'!$B$9:$B$270,0))),\"\")","v":""},{"$f":"IFERROR(IF(INDEX('SR_Cash Reconciliation_2E'!E$9:E$270,MATCH($D59,'SR_Cash Reconciliation_2E'!$B$9:$B$270,0))=\"\",\"\",INDEX('SR_Cash Reconciliation_2E'!E$9:E$270,MATCH($D59,'SR_Cash Reconciliation_2E'!$B$9:$B$270,0))),\"\")","v":""},{"$f":"IFERROR(IF(INDEX('SR_Cash Reconciliation_2E'!F$9:F$270,MATCH($D59,'SR_Cash Reconciliation_2E'!$B$9:$B$270,0))=\"\",\"\",INDEX('SR_Cash Reconciliation_2E'!F$9:F$270,MATCH($D59,'SR_Cash Reconciliation_2E'!$B$9:$B$270,0))),\"\")","v":""},{"$f":"IFERROR(IF(INDEX('SR_Cash Reconciliation_2E'!G$9:G$270,MATCH($D59,'SR_Cash Reconciliation_2E'!$B$9:$B$270,0))=\"\",\"\",INDEX('SR_Cash Reconciliation_2E'!G$9:G$270,MATCH($D59,'SR_Cash Reconciliation_2E'!$B$9:$B$270,0))),\"\")","v":""},{"$f":"IFERROR(IF(INDEX('SR_Cash Reconciliation_2E'!H$9:H$270,MATCH($D59,'SR_Cash Reconciliation_2E'!$B$9:$B$270,0))=\"\",\"\",INDEX('SR_Cash Reconciliation_2E'!H$9:H$270,MATCH($D59,'SR_Cash Reconciliation_2E'!$B$9:$B$270,0))),\"\")","v":""},{"$f":"IFERROR(IF(INDEX('SR_Cash Reconciliation_2E'!I$9:I$270,MATCH($D59,'SR_Cash Reconciliation_2E'!$B$9:$B$270,0))=\"\",\"\",INDEX('SR_Cash Reconciliation_2E'!I$9:I$270,MATCH($D59,'SR_Cash Reconciliation_2E'!$B$9:$B$270,0))),\"\")","v":""},{"$f":"IFERROR(IF(INDEX('SR_Cash Reconciliation_2E'!K$9:K$270,MATCH($D59,'SR_Cash Reconciliation_2E'!$B$9:$B$270,0))=\"\",\"\",INDEX('SR_Cash Reconciliation_2E'!K$9:K$270,MATCH($D59,'SR_Cash Reconciliation_2E'!$B$9:$B$270,0))),\"\")","v":""},{"$f":"\"\"","v":""},{"$f":"IFERROR(IF(INDEX('SR_Cash Reconciliation_2E'!N$9:N$270,MATCH($D59,'SR_Cash Reconciliation_2E'!$B$9:$B$270,0))=\"\",\"\",INDEX('SR_Cash Reconciliation_2E'!N$9:N$270,MATCH($D59,'SR_Cash Reconciliation_2E'!$B$9:$B$270,0))),\"\")","v":""}]
[null,null,{"$error":"#VALUE!"},{"$error":"#VALUE!"},{"$f":"IFERROR(IF(INDEX('SR_Cash Reconciliation_2E'!C$9:C$270,MATCH($D60,'SR_Cash Reconciliation_2E'!$B$9:$B$270,0))=\"\",\"\",INDEX('SR_Cash Reconciliation_2E'!C$9:C$270,MATCH($D60,'SR_Cash Reconciliation_2E'!$B$9:$B$270,0))),\"\")","v":""},{"$f":"IFERROR(IF(INDEX('SR_Cash Reconciliation_2E'!D$9:D$270,MATCH($D60,'SR_Cash Reconciliation_2E'!$B$9:$B$270,0))=\"\",\"\",INDEX('SR_Cash Reconciliation_2E'!D$9:D$270,MATCH($D60,'SR_Cash Reconciliation_2E'!$B$9:$B$270,0))),\"\")","v":""},{"$f":"IFERROR(IF(INDEX('SR_Cash Reconciliation_2E'!E$9:E$270,MATCH($D60,'SR_Cash Reconciliation_2E'!$B$9:$B$270,0))=\"\",\"\",INDEX('SR_Cash Reconciliation_2E'!E$9:E$270,MATCH($D60,'SR_Cash Reconciliation_2E'!$B$9:$B$270,0))),\"\")","v":""},{"$f":"IFERROR(IF(INDEX('SR_Cash Reconciliation_2E'!F$9:F$270,MATCH($D60,'SR_Cash Reconciliation_2E'!$B$9:$B$270,0))=\"\",\"\",INDEX('SR_Cash Reconciliation_2E'!F$9:F$270,MATCH($D60,'SR_Cash Reconciliation_2E'!$B$9:$B$270,0))),\"\")","v":""},{"$f":"IFERROR(IF(INDEX('SR_Cash Reconciliation_2E'!G$9:G$270,MATCH($D60,'SR_Cash Reconciliation_2E'!$B$9:$B$270,0))=\"\",\"\",INDEX('SR_Cash Reconciliation_2E'!G$9:G$270,MATCH($D60,'SR_Cash Reconciliation_2E'!$B$9:$B$270,0))),\"\")","v":""},{"$f":"IFERROR(IF(INDEX('SR_Cash Reconciliation_2E'!H$9:H$270,MATCH($D60,'SR_Cash Reconciliation_2E'!$B$9:$B$270,0))=\"\",\"\",INDEX('SR_Cash Reconciliation_2E'!H$9:H$270,MATCH($D60,'SR_Cash Reconciliation_2E'!$B$9:$B$270,0))),\"\")","v":""},{"$f":"IFERROR(IF(INDEX('SR_Cash Reconciliation_2E'!I$9:I$270,MATCH($D60,'SR_Cash Reconciliation_2E'!$B$9:$B$270,0))=\"\",\"\",INDEX('SR_Cash Reconciliation_2E'!I$9:I$270,MATCH($D60,'SR_Cash Reconciliation_2E'!$B$9:$B$270,0))),\"\")","v":""},{"$f":"IFERROR(IF(INDEX('SR_Cash Reconciliation_2E'!K$9:K$270,MATCH($D60,'SR_Cash Reconciliation_2E'!$B$9:$B$270,0))=\"\",\"\",INDEX('SR_Cash Reconciliation_2E'!K$9:K$270,MATCH($D60,'SR_Cash Reconciliation_2E'!$B$9:$B$270,0))),\"\")","v":""},{"$f":"\"\"","v":""},{"$f":"IFERROR(IF(INDEX('SR_Cash Reconciliation_2E'!N$9:N$270,MATCH($D60,'SR_Cash Reconciliation_2E'!$B$9:$B$270,0))=\"\",\"\",INDEX('SR_Cash Reconciliation_2E'!N$9:N$270,MATCH($D60,'SR_Cash Reconciliation_2E'!$B$9:$B$270,0))),\"\")","v":""}]
[null,null,29,"ID29",{"$f":"IFERROR(IF(INDEX('SR_Cash Reconciliation_2E'!C$9:C$270,MATCH($D61,'SR_Cash Reconciliation_2E'!$B$9:$B$270,0))=\"\",\"\",INDEX('SR_Cash Reconciliation_2E'!C$9:C$270,MATCH($D61,'SR_Cash Reconciliation_2E'!$B$9:$B$270,0))),\"\")","v":""},{"$f":"IFERROR(IF(INDEX('SR_Cash Reconciliation_2E'!D$9:D$270,MATCH($D61,'SR_Cash Reconciliation_2E'!$B$9:$B$270,0))=\"\",\"\",INDEX('SR_Cash Reconciliation_2E'!D$9:D$270,MATCH($D61,'SR_Cash Reconciliation_2E'!$B$9:$B$270,0))),\"\")","v":""},{"$f":"IFERROR(IF(INDEX('SR_Cash Reconciliation_2E'!E$9:E$270,MATCH($D61,'SR_Cash Reconciliation_2E'!$B$9:$B$270,0))=\"\",\"\",INDEX('SR_Cash Reconciliation_2E'!E$9:E$270,MATCH($D61,'SR_Cash Reconciliation_2E'!$B$9:$B$270,0))),\"\")","v":""},{"$f":"IFERROR(IF(INDEX('SR_Cash Reconciliation_2E'!F$9:F$270,MATCH($D61,'SR_Cash Reconciliation_2E'!$B$9:$B$270,0))=\"\",\"\",INDEX('SR_Cash Reconciliation_2E'!F$9:F$270,MATCH($D61,'SR_Cash Reconciliation_2E'!$B$9:$B$270,0))),\"\")","v":""},{"$f":"IFERROR(IF(INDEX('SR_Cash Reconciliation_2E'!G$9:G$270,MATCH($D61,'SR_Cash Reconciliation_2E'!$B$9:$B$270,0))=\"\",\"\",INDEX('SR_Cash Reconciliation_2E'!G$9:G$270,MATCH($D61,'SR_Cash Reconciliation_2E'!$B$9:$B$270,0))),\"\")","v":""},{"$f":"IFERROR(IF(INDEX('SR_Cash Reconciliation_2E'!H$9:H$270,MATCH($D61,'SR_Cash Reconciliation_2E'!$B$9:$B$270,0))=\"\",\"\",INDEX('SR_Cash Reconciliation_2E'!H$9:H$270,MATCH($D61,'SR_Cash Reconciliation_2E'!$B$9:$B$270,0))),\"\")","v":""},{"$f":"IFERROR(IF(INDEX('SR_Cash Reconciliation_2E'!I$9:I$270,MATCH($D61,'SR_Cash Reconciliation_2E'!$B$9:$B$270,0))=\"\",\"\",INDEX('SR_Cash Reconciliation_2E'!I$9:I$270,MATCH($D61,'SR_Cash Reconciliation_2E'!$B$9:$B$270,0))),\"\")","v":""},{"$f":"IFERROR(IF(INDEX('SR_Cash Reconciliation_2E'!K$9:K$270,MATCH($D61,'SR_Cash Reconciliation_2E'!$B$9:$B$270,0))=\"\",\"\",INDEX('SR_Cash Reconciliation_2E'!K$9:K$270,MATCH($D61,'SR_Cash Reconciliation_2E'!$B$9:$B$270,0))),\"\")","v":""},{"$f":"\"\"","v":""},{"$f":"IFERROR(IF(INDEX('SR_Cash Reconciliation_2E'!N$9:N$270,MATCH($D61,'SR_Cash Reconciliation_2E'!$B$9:$B$270,0))=\"\",\"\",INDEX('SR_Cash Reconciliation_2E'!N$9:N$270,MATCH($D61,'SR_Cash Reconciliation_2E'!$B$9:$B$270,0))),\"\")","v":""}]
[null,null,{"$error":"#VALUE!"},{"$error":"#VALUE!"},{"$f":"IFERROR(IF(INDEX('SR_Cash Reconciliation_2E'!C$9:C$270,MATCH($D62,'SR_Cash Reconciliation_2E'!$B$9:$B$270,0))=\"\",\"\",INDEX('SR_Cash Reconciliation_2E'!C$9:C$270,MATCH($D62,'SR_Cash Reconciliation_2E'!$B$9:$B$270,0))),\"\")","v":""},{"$f":"IFERROR(IF(INDEX('SR_Cash Reconciliation_2E'!D$9:D$270,MATCH($D62,'SR_Cash Reconciliation_2E'!$B$9:$B$270,0))=\"\",\"\",INDEX('SR_Cash Reconciliation_2E'!D$9:D$270,MATCH($D62,'SR_Cash Reconciliation_2E'!$B$9:$B$270,0))),\"\")","v":""},{"$f":"IFERROR(IF(INDEX('SR_Cash Reconciliation_2E'!E$9:E$270,MATCH($D62,'SR_Cash Reconciliation_2E'!$B$9:$B$270,0))=\"\",\"\",INDEX('SR_Cash Reconciliation_2E'!E$9:E$270,MATCH($D62,'SR_Cash Reconciliation_2E'!$B$9:$B$270,0))),\"\")","v":""},{"$f":"IFERROR(IF(INDEX('SR_Cash Reconciliation_2E'!F$9:F$270,MATCH($D62,'SR_Cash Reconciliation_2E'!$B$9:$B$270,0))=\"\",\"\",INDEX('SR_Cash Reconciliation_2E'!F$9:F$270,MATCH($D62,'SR_Cash Reconciliation_2E'!$B$9:$B$270,0))),\"\")","v":""},{"$f":"IFERROR(IF(INDEX('SR_Cash Reconciliation_2E'!G$9:G$270,MATCH($D62,'SR_Cash Reconciliation_2E'!$B$9:$B$270,0))=\"\",\"\",INDEX('SR_Cash Reconciliation_2E'!G$9:G$270,MATCH($D62,'SR_Cash Reconciliation_2E'!$B$9:$B$270,0))),\"\")","v":""},{"$f":"IFERROR(IF(INDEX('SR_Cash Reconciliation_2E'!H$9:H$270,MATCH($D62,'SR_Cash Reconciliation_2E'!$B$9:$B$270,0))=\"\",\"\",INDEX('SR_Cash Reconciliation_2E'!H$9:H$270,MATCH($D62,'SR_Cash Reconciliation_2E'!$B$9:$B$270,0))),\"\")","v":""},{"$f":"IFERROR(IF(INDEX('SR_Cash Reconciliation_2E'!I$9:I$270,MATCH($D62,'SR_Cash Reconciliation_2E'!$B$9:$B$270,0))=\"\",\"\",INDEX('SR_Cash Reconciliation_2E'!I$9:I$270,MATCH($D62,'SR_Cash Reconciliation_2E'!$B$9:$B$270,0))),\"\")","v":""},{"$f":"IFERROR(IF(INDEX('SR_Cash Reconciliation_2E'!K$9:K$270,MATCH($D62,'SR_Cash Reconciliation_2E'!$B$9:$B$270,0))=\"\",\"\",INDEX('SR_Cash Reconciliation_2E'!K$9:K$270,MATCH($D62,'SR_Cash Reconciliation_2E'!$B$9:$B$270,0))),\"\")","v":""},{"$f":"\"\"","v":""},{"$f":"IFERROR(IF(INDEX('SR_Cash Reconciliation_2E'!N$9:N$270,MATCH($D62,'SR_Cash Reconciliation_2E'!$B$9:$B$270,0))=\"\",\"\",INDEX('SR_Cash Reconciliation_2E'!N$9:N$270,MATCH($D62,'SR_Cash Reconciliation_2E'!$B$9:$B$270,0))),\"\")","v":""}]
[null,null,30,"ID30",{"$f":"IFERROR(IF(INDEX('SR_Cash Reconciliation_2E'!C$9:C$270,MATCH($D63,'SR_Cash Reconciliation_2E'!$B$9:$B$270,0))=\"\",\"\",INDEX('SR_Cash Reconciliation_2E'!C$9:C$270,MATCH($D63,'SR_Cash Reconciliation_2E'!$B$9:$B$270,0))),\"\")","v":""},{"$f":"IFERROR(IF(INDEX('SR_Cash Reconciliation_2E'!D$9:D$270,MATCH($D63,'SR_Cash Reconciliation_2E'!$B$9:$B$270,0))=\"\",\"\",INDEX('SR_Cash Reconciliation_2E'!D$9:D$270,MATCH($D63,'SR_Cash Reconciliation_2E'!$B$9:$B$270,0))),\"\")","v":""},{"$f":"IFERROR(IF(INDEX('SR_Cash Reconciliation_2E'!E$9:E$270,MATCH($D63,'SR_Cash Reconciliation_2E'!$B$9:$B$270,0))=\"\",\"\",INDEX('SR_Cash Reconciliation_2E'!E$9:E$270,MATCH($D63,'SR_Cash Reconciliation_2E'!$B$9:$B$270,0))),\"\")","v":""},{"$f":"IFERROR(IF(INDEX('SR_Cash Reconciliation_2E'!F$9:F$270,MATCH($D63,'SR_Cash Reconciliation_2E'!$B$9:$B$270,0))=\"\",\"\",INDEX('SR_Cash Reconciliation_2E'!F$9:F$270,MATCH($D63,'SR_Cash Reconciliation_2E'!$B$9:$B$270,0))),\"\")","v":""},{"$f":"IFERROR(IF(INDEX('SR_Cash Reconciliation_2E'!G$9:G$270,MATCH($D63,'SR_Cash Reconciliation_2E'!$B$9:$B$270,0))=\"\",\"\",INDEX('SR_Cash Reconciliation_2E'!G$9:G$270,MATCH($D63,'SR_Cash Reconciliation_2E'!$B$9:$B$270,0))),\"\")","v":""},{"$f":"IFERROR(IF(INDEX('SR_Cash Reconciliation_2E'!H$9:H$270,MATCH($D63,'SR_Cash Reconciliation_2E'!$B$9:$B$270,0))=\"\",\"\",INDEX('SR_Cash Reconciliation_2E'!H$9:H$270,MATCH($D63,'SR_Cash Reconciliation_2E'!$B$9:$B$270,0))),\"\")","v":""},{"$f":"IFERROR(IF(INDEX('SR_Cash Reconciliation_2E'!I$9:I$270,MATCH($D63,'SR_Cash Reconciliation_2E'!$B$9:$B$270,0))=\"\",\"\",INDEX('SR_Cash Reconciliation_2E'!I$9:I$270,MATCH($D63,'SR_Cash Reconciliation_2E'!$B$9:$B$270,0))),\"\")","v":""},{"$f":"IFERROR(IF(INDEX('SR_Cash Reconciliation_2E'!K$9:K$270,MATCH($D63,'SR_Cash Reconciliation_2E'!$B$9:$B$270,0))=\"\",\"\",INDEX('SR_Cash Reconciliation_2E'!K$9:K$270,MATCH($D63,'SR_Cash Reconciliation_2E'!$B$9:$B$270,0))),\"\")","v":""},{"$f":"\"\"","v":""},{"$f":"IFERROR(IF(INDEX('SR_Cash Reconciliation_2E'!N$9:N$270,MATCH($D63,'SR_Cash Reconciliation_2E'!$B$9:$B$270,0))=\"\",\"\",INDEX('SR_Cash Reconciliation_2E'!N$9:N$270,MATCH($D63,'SR_Cash Reconciliation_2E'!$B$9:$B$270,0))),\"\")","v":""}]
[null,null,{"$error":"#VALUE!"},{"$error":"#VALUE!"},{"$f":"IFERROR(IF(INDEX('SR_Cash Reconciliation_2E'!C$9:C$270,MATCH($D64,'SR_Cash Reconciliation_2E'!$B$9:$B$270,0))=\"\",\"\",INDEX('SR_Cash Reconciliation_2E'!C$9:C$270,MATCH($D64,'SR_Cash Reconciliation_2E'!$B$9:$B$270,0))),\"\")","v":""},{"$f":"IFERROR(IF(INDEX('SR_Cash Reconciliation_2E'!D$9:D$270,MATCH($D64,'SR_Cash Reconciliation_2E'!$B$9:$B$270,0))=\"\",\"\",INDEX('SR_Cash Reconciliation_2E'!D$9:D$270,MATCH($D64,'SR_Cash Reconciliation_2E'!$B$9:$B$270,0))),\"\")","v":""},{"$f":"IFERROR(IF(INDEX('SR_Cash Reconciliation_2E'!E$9:E$270,MATCH($D64,'SR_Cash Reconciliation_2E'!$B$9:$B$270,0))=\"\",\"\",INDEX('SR_Cash Reconciliation_2E'!E$9:E$270,MATCH($D64,'SR_Cash Reconciliation_2E'!$B$9:$B$270,0))),\"\")","v":""},{"$f":"IFERROR(IF(INDEX('SR_Cash Reconciliation_2E'!F$9:F$270,MATCH($D64,'SR_Cash Reconciliation_2E'!$B$9:$B$270,0))=\"\",\"\",INDEX('SR_Cash Reconciliation_2E'!F$9:F$270,MATCH($D64,'SR_Cash Reconciliation_2E'!$B$9:$B$270,0))),\"\")","v":""},{"$f":"IFERROR(IF(INDEX('SR_Cash Reconciliation_2E'!G$9:G$270,MATCH($D64,'SR_Cash Reconciliation_2E'!$B$9:$B$270,0))=\"\",\"\",INDEX('SR_Cash Reconciliation_2E'!G$9:G$270,MATCH($D64,'SR_Cash Reconciliation_2E'!$B$9:$B$270,0))),\"\")","v":""},{"$f":"IFERROR(IF(INDEX('SR_Cash Reconciliation_2E'!H$9:H$270,MATCH($D64,'SR_Cash Reconciliation_2E'!$B$9:$B$270,0))=\"\",\"\",INDEX('SR_Cash Reconciliation_2E'!H$9:H$270,MATCH($D64,'SR_Cash Reconciliation_2E'!$B$9:$B$270,0))),\"\")","v":""},{"$f":"IFERROR(IF(INDEX('SR_Cash Reconciliation_2E'!I$9:I$270,MATCH($D64,'SR_Cash Reconciliation_2E'!$B$9:$B$270,0))=\"\",\"\",INDEX('SR_Cash Reconciliation_2E'!I$9:I$270,MATCH($D64,'SR_Cash Reconciliation_2E'!$B$9:$B$270,0))),\"\")","v":""},{"$f":"IFERROR(IF(INDEX('SR_Cash Reconciliation_2E'!K$9:K$270,MATCH($D64,'SR_Cash Reconciliation_2E'!$B$9:$B$270,0))=\"\",\"\",INDEX('SR_Cash Reconciliation_2E'!K$9:K$270,MATCH($D64,'SR_Cash Reconciliation_2E'!$B$9:$B$270,0))),\"\")","v":""},{"$f":"\"\"","v":""},{"$f":"IFERROR(IF(INDEX('SR_Cash Reconciliation_2E'!N$9:N$270,MATCH($D64,'SR_Cash Reconciliation_2E'!$B$9:$B$270,0))=\"\",\"\",INDEX('SR_Cash Reconciliation_2E'!N$9:N$270,MATCH($D64,'SR_Cash Reconciliation_2E'!$B$9:$B$270,0))),\"\")","v":""}]
[null,null,31,"ID31",{"$f":"IFERROR(IF(INDEX('SR_Cash Reconciliation_2E'!C$9:C$270,MATCH($D65,'SR_Cash Reconciliation_2E'!$B$9:$B$270,0))=\"\",\"\",INDEX('SR_Cash Reconciliation_2E'!C$9:C$270,MATCH($D65,'SR_Cash Reconciliation_2E'!$B$9:$B$270,0))),\"\")","v":""},{"$f":"IFERROR(IF(INDEX('SR_Cash Reconciliation_2E'!D$9:D$270,MATCH($D65,'SR_Cash Reconciliation_2E'!$B$9:$B$270,0))=\"\",\"\",INDEX('SR_Cash Reconciliation_2E'!D$9:D$270,MATCH($D65,'SR_Cash Reconciliation_2E'!$B$9:$B$270,0))),\"\")","v":""},{"$f":"IFERROR(IF(INDEX('SR_Cash Reconciliation_2E'!E$9:E$270,MATCH($D65,'SR_Cash Reconciliation_2E'!$B$9:$B$270,0))=\"\",\"\",INDEX('SR_Cash Reconciliation_2E'!E$9:E$270,MATCH($D65,'SR_Cash Reconciliation_2E'!$B$9:$B$270,0))),\"\")","v":""},{"$f":"IFERROR(IF(INDEX('SR_Cash Reconciliation_2E'!F$9:F$270,MATCH($D65,'SR_Cash Reconciliation_2E'!$B$9:$B$270,0))=\"\",\"\",INDEX('SR_Cash Reconciliation_2E'!F$9:F$270,MATCH($D65,'SR_Cash Reconciliation_2E'!$B$9:$B$270,0))),\"\")","v":""},{"$f":"IFERROR(IF(INDEX('SR_Cash Reconciliation_2E'!G$9:G$270,MATCH($D65,'SR_Cash Reconciliation_2E'!$B$9:$B$270,0))=\"\",\"\",INDEX('SR_Cash Reconciliation_2E'!G$9:G$270,MATCH($D65,'SR_Cash Reconciliation_2E'!$B$9:$B$270,0))),\"\")","v":""},{"$f":"IFERROR(IF(INDEX('SR_Cash Reconciliation_2E'!H$9:H$270,MATCH($D65,'SR_Cash Reconciliation_2E'!$B$9:$B$270,0))=\"\",\"\",INDEX('SR_Cash Reconciliation_2E'!H$9:H$270,MATCH($D65,'SR_Cash Reconciliation_2E'!$B$9:$B$270,0))),\"\")","v":""},{"$f":"IFERROR(IF(INDEX('SR_Cash Reconciliation_2E'!I$9:I$270,MATCH($D65,'SR_Cash Reconciliation_2E'!$B$9:$B$270,0))=\"\",\"\",INDEX('SR_Cash Reconciliation_2E'!I$9:I$270,MATCH($D65,'SR_Cash Reconciliation_2E'!$B$9:$B$270,0))),\"\")","v":""},{"$f":"IFERROR(IF(INDEX('SR_Cash Reconciliation_2E'!K$9:K$270,MATCH($D65,'SR_Cash Reconciliation_2E'!$B$9:$B$270,0))=\"\",\"\",INDEX('SR_Cash Reconciliation_2E'!K$9:K$270,MATCH($D65,'SR_Cash Reconciliation_2E'!$B$9:$B$270,0))),\"\")","v":""},{"$f":"\"\"","v":""},{"$f":"IFERROR(IF(INDEX('SR_Cash Reconciliation_2E'!N$9:N$270,MATCH($D65,'SR_Cash Reconciliation_2E'!$B$9:$B$270,0))=\"\",\"\",INDEX('SR_Cash Reconciliation_2E'!N$9:N$270,MATCH($D65,'SR_Cash Reconciliation_2E'!$B$9:$B$270,0))),\"\")","v":""}]
[null,null,{"$error":"#VALUE!"},{"$error":"#VALUE!"},{"$f":"IFERROR(IF(INDEX('SR_Cash Reconciliation_2E'!C$9:C$270,MATCH($D66,'SR_Cash Reconciliation_2E'!$B$9:$B$270,0))=\"\",\"\",INDEX('SR_Cash Reconciliation_2E'!C$9:C$270,MATCH($D66,'SR_Cash Reconciliation_2E'!$B$9:$B$270,0))),\"\")","v":""},{"$f":"IFERROR(IF(INDEX('SR_Cash Reconciliation_2E'!D$9:D$270,MATCH($D66,'SR_Cash Reconciliation_2E'!$B$9:$B$270,0))=\"\",\"\",INDEX('SR_Cash Reconciliation_2E'!D$9:D$270,MATCH($D66,'SR_Cash Reconciliation_2E'!$B$9:$B$270,0))),\"\")","v":""},{"$f":"IFERROR(IF(INDEX('SR_Cash Reconciliation_2E'!E$9:E$270,MATCH($D66,'SR_Cash Reconciliation_2E'!$B$9:$B$270,0))=\"\",\"\",INDEX('SR_Cash Reconciliation_2E'!E$9:E$270,MATCH($D66,'SR_Cash Reconciliation_2E'!$B$9:$B$270,0))),\"\")","v":""},{"$f":"IFERROR(IF(INDEX('SR_Cash Reconciliation_2E'!F$9:F$270,MATCH($D66,'SR_Cash Reconciliation_2E'!$B$9:$B$270,0))=\"\",\"\",INDEX('SR_Cash Reconciliation_2E'!F$9:F$270,MATCH($D66,'SR_Cash Reconciliation_2E'!$B$9:$B$270,0))),\"\")","v":""},{"$f":"IFERROR(IF(INDEX('SR_Cash Reconciliation_2E'!G$9:G$270,MATCH($D66,'SR_Cash Reconciliation_2E'!$B$9:$B$270,0))=\"\",\"\",INDEX('SR_Cash Reconciliation_2E'!G$9:G$270,MATCH($D66,'SR_Cash Reconciliation_2E'!$B$9:$B$270,0))),\"\")","v":""},{"$f":"IFERROR(IF(INDEX('SR_Cash Reconciliation_2E'!H$9:H$270,MATCH($D66,'SR_Cash Reconciliation_2E'!$B$9:$B$270,0))=\"\",\"\",INDEX('SR_Cash Reconciliation_2E'!H$9:H$270,MATCH($D66,'SR_Cash Reconciliation_2E'!$B$9:$B$270,0))),\"\")","v":""},{"$f":"IFERROR(IF(INDEX('SR_Cash Reconciliation_2E'!I$9:I$270,MATCH($D66,'SR_Cash Reconciliation_2E'!$B$9:$B$270,0))=\"\",\"\",INDEX('SR_Cash Reconciliation_2E'!I$9:I$270,MATCH($D66,'SR_Cash Reconciliation_2E'!$B$9:$B$270,0))),\"\")","v":""},{"$f":"IFERROR(IF(INDEX('SR_Cash Reconciliation_2E'!K$9:K$270,MATCH($D66,'SR_Cash Reconciliation_2E'!$B$9:$B$270,0))=\"\",\"\",INDEX('SR_Cash Reconciliation_2E'!K$9:K$270,MATCH($D66,'SR_Cash Reconciliation_2E'!$B$9:$B$270,0))),\"\")","v":""},{"$f":"\"\"","v":""},{"$f":"IFERROR(IF(INDEX('SR_Cash Reconciliation_2E'!N$9:N$270,MATCH($D66,'SR_Cash Reconciliation_2E'!$B$9:$B$270,0))=\"\",\"\",INDEX('SR_Cash Reconciliation_2E'!N$9:N$270,MATCH($D66,'SR_Cash Reconciliation_2E'!$B$9:$B$270,0))),\"\")","v":""}]
[null,null,32,"ID32",{"$f":"IFERROR(IF(INDEX('SR_Cash Reconciliation_2E'!C$9:C$270,MATCH($D67,'SR_Cash Reconciliation_2E'!$B$9:$B$270,0))=\"\",\"\",INDEX('SR_Cash Reconciliation_2E'!C$9:C$270,MATCH($D67,'SR_Cash Reconciliation_2E'!$B$9:$B$270,0))),\"\")","v":""},{"$f":"IFERROR(IF(INDEX('SR_Cash Reconciliation_2E'!D$9:D$270,MATCH($D67,'SR_Cash Reconciliation_2E'!$B$9:$B$270,0))=\"\",\"\",INDEX('SR_Cash Reconciliation_2E'!D$9:D$270,MATCH($D67,'SR_Cash Reconciliation_2E'!$B$9:$B$270,0))),\"\")","v":""},{"$f":"IFERROR(IF(INDEX('SR_Cash Reconciliation_2E'!E$9:E$270,MATCH($D67,'SR_Cash Reconciliation_2E'!$B$9:$B$270,0))=\"\",\"\",INDEX('SR_Cash Reconciliation_2E'!E$9:E$270,MATCH($D67,'SR_Cash Reconciliation_2E'!$B$9:$B$270,0))),\"\")","v":""},{"$f":"IFERROR(IF(INDEX('SR_Cash Reconciliation_2E'!F$9:F$270,MATCH($D67,'SR_Cash Reconciliation_2E'!$B$9:$B$270,0))=\"\",\"\",INDEX('SR_Cash Reconciliation_2E'!F$9:F$270,MATCH($D67,'SR_Cash Reconciliation_2E'!$B$9:$B$270,0))),\"\")","v":""},{"$f":"IFERROR(IF(INDEX('SR_Cash Reconciliation_2E'!G$9:G$270,MATCH($D67,'SR_Cash Reconciliation_2E'!$B$9:$B$270,0))=\"\",\"\",INDEX('SR_Cash Reconciliation_2E'!G$9:G$270,MATCH($D67,'SR_Cash Reconciliation_2E'!$B$9:$B$270,0))),\"\")","v":""},{"$f":"IFERROR(IF(INDEX('SR_Cash Reconciliation_2E'!H$9:H$270,MATCH($D67,'SR_Cash Reconciliation_2E'!$B$9:$B$270,0))=\"\",\"\",INDEX('SR_Cash Reconciliation_2E'!H$9:H$270,MATCH($D67,'SR_Cash Reconciliation_2E'!$B$9:$B$270,0))),\"\")","v":""},{"$f":"IFERROR(IF(INDEX('SR_Cash Reconciliation_2E'!I$9:I$270,MATCH($D67,'SR_Cash Reconciliation_2E'!$B$9:$B$270,0))=\"\",\"\",INDEX('SR_Cash Reconciliation_2E'!I$9:I$270,MATCH($D67,'SR_Cash Reconciliation_2E'!$B$9:$B$270,0))),\"\")","v":""},{"$f":"IFERROR(IF(INDEX('SR_Cash Reconciliation_2E'!K$9:K$270,MATCH($D67,'SR_Cash Reconciliation_2E'!$B$9:$B$270,0))=\"\",\"\",INDEX('SR_Cash Reconciliation_2E'!K$9:K$270,MATCH($D67,'SR_Cash Reconciliation_2E'!$B$9:$B$270,0))),\"\")","v":""},{"$f":"\"\"","v":""},{"$f":"IFERROR(IF(INDEX('SR_Cash Reconciliation_2E'!N$9:N$270,MATCH($D67,'SR_Cash Reconciliation_2E'!$B$9:$B$270,0))=\"\",\"\",INDEX('SR_Cash Reconciliation_2E'!N$9:N$270,MATCH($D67,'SR_Cash Reconciliation_2E'!$B$9:$B$270,0))),\"\")","v":""}]
[null,null,{"$error":"#VALUE!"},{"$error":"#VALUE!"},{"$f":"IFERROR(IF(INDEX('SR_Cash Reconciliation_2E'!C$9:C$270,MATCH($D68,'SR_Cash Reconciliation_2E'!$B$9:$B$270,0))=\"\",\"\",INDEX('SR_Cash Reconciliation_2E'!C$9:C$270,MATCH($D68,'SR_Cash Reconciliation_2E'!$B$9:$B$270,0))),\"\")","v":""},{"$f":"IFERROR(IF(INDEX('SR_Cash Reconciliation_2E'!D$9:D$270,MATCH($D68,'SR_Cash Reconciliation_2E'!$B$9:$B$270,0))=\"\",\"\",INDEX('SR_Cash Reconciliation_2E'!D$9:D$270,MATCH($D68,'SR_Cash Reconciliation_2E'!$B$9:$B$270,0))),\"\")","v":""},{"$f":"IFERROR(IF(INDEX('SR_Cash Reconciliation_2E'!E$9:E$270,MATCH($D68,'SR_Cash Reconciliation_2E'!$B$9:$B$270,0))=\"\",\"\",INDEX('SR_Cash Reconciliation_2E'!E$9:E$270,MATCH($D68,'SR_Cash Reconciliation_2E'!$B$9:$B$270,0))),\"\")","v":""},{"$f":"IFERROR(IF(INDEX('SR_Cash Reconciliation_2E'!F$9:F$270,MATCH($D68,'SR_Cash Reconciliation_2E'!$B$9:$B$270,0))=\"\",\"\",INDEX('SR_Cash Reconciliation_2E'!F$9:F$270,MATCH($D68,'SR_Cash Reconciliation_2E'!$B$9:$B$270,0))),\"\")","v":""},{"$f":"IFERROR(IF(INDEX('SR_Cash Reconciliation_2E'!G$9:G$270,MATCH($D68,'SR_Cash Reconciliation_2E'!$B$9:$B$270,0))=\"\",\"\",INDEX('SR_Cash Reconciliation_2E'!G$9:G$270,MATCH($D68,'SR_Cash Reconciliation_2E'!$B$9:$B$270,0))),\"\")","v":""},{"$f":"IFERROR(IF(INDEX('SR_Cash Reconciliation_2E'!H$9:H$270,MATCH($D68,'SR_Cash Reconciliation_2E'!$B$9:$B$270,0))=\"\",\"\",INDEX('SR_Cash Reconciliation_2E'!H$9:H$270,MATCH($D68,'SR_Cash Reconciliation_2E'!$B$9:$B$270,0))),\"\")","v":""},{"$f":"IFERROR(IF(INDEX('SR_Cash Reconciliation_2E'!I$9:I$270,MATCH($D68,'SR_Cash Reconciliation_2E'!$B$9:$B$270,0))=\"\",\"\",INDEX('SR_Cash Reconciliation_2E'!I$9:I$270,MATCH($D68,'SR_Cash Reconciliation_2E'!$B$9:$B$270,0))),\"\")","v":""},{"$f":"IFERROR(IF(INDEX('SR_Cash Reconciliation_2E'!K$9:K$270,MATCH($D68,'SR_Cash Reconciliation_2E'!$B$9:$B$270,0))=\"\",\"\",INDEX('SR_Cash Reconciliation_2E'!K$9:K$270,MATCH($D68,'SR_Cash Reconciliation_2E'!$B$9:$B$270,0))),\"\")","v":""},{"$f":"\"\"","v":""},{"$f":"IFERROR(IF(INDEX('SR_Cash Reconciliation_2E'!N$9:N$270,MATCH($D68,'SR_Cash Reconciliation_2E'!$B$9:$B$270,0))=\"\",\"\",INDEX('SR_Cash Reconciliation_2E'!N$9:N$270,MATCH($D68,'SR_Cash Reconciliation_2E'!$B$9:$B$270,0))),\"\")","v":""}]
[null,null,33,"ID33",{"$f":"IFERROR(IF(INDEX('SR_Cash Reconciliation_2E'!C$9:C$270,MATCH($D69,'SR_Cash Reconciliation_2E'!$B$9:$B$270,0))=\"\",\"\",INDEX('SR_Cash Reconciliation_2E'!C$9:C$270,MATCH($D69,'SR_Cash Reconciliation_2E'!$B$9:$B$270,0))),\"\")","v":""},{"$f":"IFERROR(IF(INDEX('SR_Cash Reconciliation_2E'!D$9:D$270,MATCH($D69,'SR_Cash Reconciliation_2E'!$B$9:$B$270,0))=\"\",\"\",INDEX('SR_Cash Reconciliation_2E'!D$9:D$270,MATCH($D69,'SR_Cash Reconciliation_2E'!$B$9:$B$270,0))),\"\")","v":""},{"$f":"IFERROR(IF(INDEX('SR_Cash Reconciliation_2E'!E$9:E$270,MATCH($D69,'SR_Cash Reconciliation_2E'!$B$9:$B$270,0))=\"\",\"\",INDEX('SR_Cash Reconciliation_2E'!E$9:E$270,MATCH($D69,'SR_Cash Reconciliation_2E'!$B$9:$B$270,0))),\"\")","v":""},{"$f":"IFERROR(IF(INDEX('SR_Cash Reconciliation_2E'!F$9:F$270,MATCH($D69,'SR_Cash Reconciliation_2E'!$B$9:$B$270,0))=\"\",\"\",INDEX('SR_Cash Reconciliation_2E'!F$9:F$270,MATCH($D69,'SR_Cash Reconciliation_2E'!$B$9:$B$270,0))),\"\")","v":""},{"$f":"IFERROR(IF(INDEX('SR_Cash Reconciliation_2E'!G$9:G$270,MATCH($D69,'SR_Cash Reconciliation_2E'!$B$9:$B$270,0))=\"\",\"\",INDEX('SR_Cash Reconciliation_2E'!G$9:G$270,MATCH($D69,'SR_Cash Reconciliation_2E'!$B$9:$B$270,0))),\"\")","v":""},{"$f":"IFERROR(IF(INDEX('SR_Cash Reconciliation_2E'!H$9:H$270,MATCH($D69,'SR_Cash Reconciliation_2E'!$B$9:$B$270,0))=\"\",\"\",INDEX('SR_Cash Reconciliation_2E'!H$9:H$270,MATCH($D69,'SR_Cash Reconciliation_2E'!$B$9:$B$270,0))),\"\")","v":""},{"$f":"IFERROR(IF(INDEX('SR_Cash Reconciliation_2E'!I$9:I$270,MATCH($D69,'SR_Cash Reconciliation_2E'!$B$9:$B$270,0))=\"\",\"\",INDEX('SR_Cash Reconciliation_2E'!I$9:I$270,MATCH($D69,'SR_Cash Reconciliation_2E'!$B$9:$B$270,0))),\"\")","v":""},{"$f":"IFERROR(IF(INDEX('SR_Cash Reconciliation_2E'!K$9:K$270,MATCH($D69,'SR_Cash Reconciliation_2E'!$B$9:$B$270,0))=\"\",\"\",INDEX('SR_Cash Reconciliation_2E'!K$9:K$270,MATCH($D69,'SR_Cash Reconciliation_2E'!$B$9:$B$270,0))),\"\")","v":""},{"$f":"\"\"","v":""},{"$f":"IFERROR(IF(INDEX('SR_Cash Reconciliation_2E'!N$9:N$270,MATCH($D69,'SR_Cash Reconciliation_2E'!$B$9:$B$270,0))=\"\",\"\",INDEX('SR_Cash Reconciliation_2E'!N$9:N$270,MATCH($D69,'SR_Cash Reconciliation_2E'!$B$9:$B$270,0))),\"\")","v":""}]
[null,null,{"$f":"C68+1","v":{"$error":"#VALUE!"}},{"$f":"\"ID\"&C70","v":{"$error":"#VALUE!"}},{"$f":"IFERROR(IF(INDEX('SR_Cash Reconciliation_2E'!C$9:C$270,MATCH($D70,'SR_Cash Reconciliation_2E'!$B$9:$B$270,0))=\"\",\"\",INDEX('SR_Cash Reconciliation_2E'!C$9:C$270,MATCH($D70,'SR_Cash Reconciliation_2E'!$B$9:$B$270,0))),\"\")","v":""},{"$f":"IFERROR(IF(INDEX('SR_Cash Reconciliation_2E'!D$9:D$270,MATCH($D70,'SR_Cash Reconciliation_2E'!$B$9:$B$270,0))=\"\",\"\",INDEX('SR_Cash Reconciliation_2E'!D$9:D$270,MATCH($D70,'SR_Cash Reconciliation_2E'!$B$9:$B$270,0))),\"\")","v":""},{"$f":"IFERROR(IF(INDEX('SR_Cash Reconciliation_2E'!E$9:E$270,MATCH($D70,'SR_Cash Reconciliation_2E'!$B$9:$B$270,0))=\"\",\"\",INDEX('SR_Cash Reconciliation_2E'!E$9:E$270,MATCH($D70,'SR_Cash Reconciliation_2E'!$B$9:$B$270,0))),\"\")","v":""},{"$f":"IFERROR(IF(INDEX('SR_Cash Reconciliation_2E'!F$9:F$270,MATCH($D70,'SR_Cash Reconciliation_2E'!$B$9:$B$270,0))=\"\",\"\",INDEX('SR_Cash Reconciliation_2E'!F$9:F$270,MATCH($D70,'SR_Cash Reconciliation_2E'!$B$9:$B$270,0))),\"\")","v":""},{"$f":"IFERROR(IF(INDEX('SR_Cash Reconciliation_2E'!G$9:G$270,MATCH($D70,'SR_Cash Reconciliation_2E'!$B$9:$B$270,0))=\"\",\"\",INDEX('SR_Cash Reconciliation_2E'!G$9:G$270,MATCH($D70,'SR_Cash Reconciliation_2E'!$B$9:$B$270,0))),\"\")","v":""},{"$f":"IFERROR(IF(INDEX('SR_Cash Reconciliation_2E'!H$9:H$270,MATCH($D70,'SR_Cash Reconciliation_2E'!$B$9:$B$270,0))=\"\",\"\",INDEX('SR_Cash Reconciliation_2E'!H$9:H$270,MATCH($D70,'SR_Cash Reconciliation_2E'!$B$9:$B$270,0))),\"\")","v":""},{"$f":"IFERROR(IF(INDEX('SR_Cash Reconciliation_2E'!I$9:I$270,MATCH($D70,'SR_Cash Reconciliation_2E'!$B$9:$B$270,0))=\"\",\"\",INDEX('SR_Cash Reconciliation_2E'!I$9:I$270,MATCH($D70,'SR_Cash Reconciliation_2E'!$B$9:$B$270,0))),\"\")","v":""},{"$f":"IFERROR(IF(INDEX('SR_Cash Reconciliation_2E'!K$9:K$270,MATCH($D70,'SR_Cash Reconciliation_2E'!$B$9:$B$270,0))=\"\",\"\",INDEX('SR_Cash Reconciliation_2E'!K$9:K$270,MATCH($D70,'SR_Cash Reconciliation_2E'!$B$9:$B$270,0))),\"\")","v":""},{"$f":"\"\"","v":""},{"$f":"IFERROR(IF(INDEX('SR_Cash Reconciliation_2E'!N$9:N$270,MATCH($D70,'SR_Cash Reconciliation_2E'!$B$9:$B$270,0))=\"\",\"\",INDEX('SR_Cash Reconciliation_2E'!N$9:N$270,MATCH($D70,'SR_Cash Reconciliation_2E'!$B$9:$B$270,0))),\"\")","v":""}]
[null,null,34,"ID34",{"$f":"IFERROR(IF(INDEX('SR_Cash Reconciliation_2E'!C$9:C$270,MATCH($D71,'SR_Cash Reconciliation_2E'!$B$9:$B$270,0))=\"\",\"\",INDEX('SR_Cash Reconciliation_2E'!C$9:C$270,MATCH($D71,'SR_Cash Reconciliation_2E'!$B$9:$B$270,0))),\"\")","v":""},{"$f":"IFERROR(IF(INDEX('SR_Cash Reconciliation_2E'!D$9:D$270,MATCH($D71,'SR_Cash Reconciliation_2E'!$B$9:$B$270,0))=\"\",\"\",INDEX('SR_Cash Reconciliation_2E'!D$9:D$270,MATCH($D71,'SR_Cash Reconciliation_2E'!$B$9:$B$270,0))),\"\")","v":""},{"$f":"IFERROR(IF(INDEX('SR_Cash Reconciliation_2E'!E$9:E$270,MATCH($D71,'SR_Cash Reconciliation_2E'!$B$9:$B$270,0))=\"\",\"\",INDEX('SR_Cash Reconciliation_2E'!E$9:E$270,MATCH($D71,'SR_Cash Reconciliation_2E'!$B$9:$B$270,0))),\"\")","v":""},{"$f":"IFERROR(IF(INDEX('SR_Cash Reconciliation_2E'!F$9:F$270,MATCH($D71,'SR_Cash Reconciliation_2E'!$B$9:$B$270,0))=\"\",\"\",INDEX('SR_Cash Reconciliation_2E'!F$9:F$270,MATCH($D71,'SR_Cash Reconciliation_2E'!$B$9:$B$270,0))),\"\")","v":""},{"$f":"IFERROR(IF(INDEX('SR_Cash Reconciliation_2E'!G$9:G$270,MATCH($D71,'SR_Cash Reconciliation_2E'!$B$9:$B$270,0))=\"\",\"\",INDEX('SR_Cash Reconciliation_2E'!G$9:G$270,MATCH($D71,'SR_Cash Reconciliation_2E'!$B$9:$B$270,0))),\"\")","v":""},{"$f":"IFERROR(IF(INDEX('SR_Cash Reconciliation_2E'!H$9:H$270,MATCH($D71,'SR_Cash Reconciliation_2E'!$B$9:$B$270,0))=\"\",\"\",INDEX('SR_Cash Reconciliation_2E'!H$9:H$270,MATCH($D71,'SR_Cash Reconciliation_2E'!$B$9:$B$270,0))),\"\")","v":""},{"$f":"IFERROR(IF(INDEX('SR_Cash Reconciliation_2E'!I$9:I$270,MATCH($D71,'SR_Cash Reconciliation_2E'!$B$9:$B$270,0))=\"\",\"\",INDEX('SR_Cash Reconciliation_2E'!I$9:I$270,MATCH($D71,'SR_Cash Reconciliation_2E'!$B$9:$B$270,0))),\"\")","v":""},{"$f":"IFERROR(IF(INDEX('SR_Cash Reconciliation_2E'!K$9:K$270,MATCH($D71,'SR_Cash Reconciliation_2E'!$B$9:$B$270,0))=\"\",\"\",INDEX('SR_Cash Reconciliation_2E'!K$9:K$270,MATCH($D71,'SR_Cash Reconciliation_2E'!$B$9:$B$270,0))),\"\")","v":""},{"$f":"\"\"","v":""},{"$f":"IFERROR(IF(INDEX('SR_Cash Reconciliation_2E'!N$9:N$270,MATCH($D71,'SR_Cash Reconciliation_2E'!$B$9:$B$270,0))=\"\",\"\",INDEX('SR_Cash Reconciliation_2E'!N$9:N$270,MATCH($D71,'SR_Cash Reconciliation_2E'!$B$9:$B$270,0))),\"\")","v":""}]
[null,null,{"$error":"#VALUE!"},{"$error":"#VALUE!"},{"$f":"IFERROR(IF(INDEX('SR_Cash Reconciliation_2E'!C$9:C$270,MATCH($D72,'SR_Cash Reconciliation_2E'!$B$9:$B$270,0))=\"\",\"\",INDEX('SR_Cash Reconciliation_2E'!C$9:C$270,MATCH($D72,'SR_Cash Reconciliation_2E'!$B$9:$B$270,0))),\"\")","v":""},{"$f":"IFERROR(IF(INDEX('SR_Cash Reconciliation_2E'!D$9:D$270,MATCH($D72,'SR_Cash Reconciliation_2E'!$B$9:$B$270,0))=\"\",\"\",INDEX('SR_Cash Reconciliation_2E'!D$9:D$270,MATCH($D72,'SR_Cash Reconciliation_2E'!$B$9:$B$270,0))),\"\")","v":""},{"$f":"IFERROR(IF(INDEX('SR_Cash Reconciliation_2E'!E$9:E$270,MATCH($D72,'SR_Cash Reconciliation_2E'!$B$9:$B$270,0))=\"\",\"\",INDEX('SR_Cash Reconciliation_2E'!E$9:E$270,MATCH($D72,'SR_Cash Reconciliation_2E'!$B$9:$B$270,0))),\"\")","v":""},{"$f":"IFERROR(IF(INDEX('SR_Cash Reconciliation_2E'!F$9:F$270,MATCH($D72,'SR_Cash Reconciliation_2E'!$B$9:$B$270,0))=\"\",\"\",INDEX('SR_Cash Reconciliation_2E'!F$9:F$270,MATCH($D72,'SR_Cash Reconciliation_2E'!$B$9:$B$270,0))),\"\")","v":""},{"$f":"IFERROR(IF(INDEX('SR_Cash Reconciliation_2E'!G$9:G$270,MATCH($D72,'SR_Cash Reconciliation_2E'!$B$9:$B$270,0))=\"\",\"\",INDEX('SR_Cash Reconciliation_2E'!G$9:G$270,MATCH($D72,'SR_Cash Reconciliation_2E'!$B$9:$B$270,0))),\"\")","v":""},{"$f":"IFERROR(IF(INDEX('SR_Cash Reconciliation_2E'!H$9:H$270,MATCH($D72,'SR_Cash Reconciliation_2E'!$B$9:$B$270,0))=\"\",\"\",INDEX('SR_Cash Reconciliation_2E'!H$9:H$270,MATCH($D72,'SR_Cash Reconciliation_2E'!$B$9:$B$270,0))),\"\")","v":""},{"$f":"IFERROR(IF(INDEX('SR_Cash Reconciliation_2E'!I$9:I$270,MATCH($D72,'SR_Cash Reconciliation_2E'!$B$9:$B$270,0))=\"\",\"\",INDEX('SR_Cash Reconciliation_2E'!I$9:I$270,MATCH($D72,'SR_Cash Reconciliation_2E'!$B$9:$B$270,0))),\"\")","v":""},{"$f":"IFERROR(IF(INDEX('SR_Cash Reconciliation_2E'!K$9:K$270,MATCH($D72,'SR_Cash Reconciliation_2E'!$B$9:$B$270,0))=\"\",\"\",INDEX('SR_Cash Reconciliation_2E'!K$9:K$270,MATCH($D72,'SR_Cash Reconciliation_2E'!$B$9:$B$270,0))),\"\")","v":""},{"$f":"\"\"","v":""},{"$f":"IFERROR(IF(INDEX('SR_Cash Reconciliation_2E'!N$9:N$270,MATCH($D72,'SR_Cash Reconciliation_2E'!$B$9:$B$270,0))=\"\",\"\",INDEX('SR_Cash Reconciliation_2E'!N$9:N$270,MATCH($D72,'SR_Cash Reconciliation_2E'!$B$9:$B$270,0))),\"\")","v":""}]
[null,null,35,"ID35",{"$f":"IFERROR(IF(INDEX('SR_Cash Reconciliation_2E'!C$9:C$270,MATCH($D73,'SR_Cash Reconciliation_2E'!$B$9:$B$270,0))=\"\",\"\",INDEX('SR_Cash Reconciliation_2E'!C$9:C$270,MATCH($D73,'SR_Cash Reconciliation_2E'!$B$9:$B$270,0))),\"\")","v":""},{"$f":"IFERROR(IF(INDEX('SR_Cash Reconciliation_2E'!D$9:D$270,MATCH($D73,'SR_Cash Reconciliation_2E'!$B$9:$B$270,0))=\"\",\"\",INDEX('SR_Cash Reconciliation_2E'!D$9:D$270,MATCH($D73,'SR_Cash Reconciliation_2E'!$B$9:$B$270,0))),\"\")","v":""},{"$f":"IFERROR(IF(INDEX('SR_Cash Reconciliation_2E'!E$9:E$270,MATCH($D73,'SR_Cash Reconciliation_2E'!$B$9:$B$270,0))=\"\",\"\",INDEX('SR_Cash Reconciliation_2E'!E$9:E$270,MATCH($D73,'SR_Cash Reconciliation_2E'!$B$9:$B$270,0))),\"\")","v":""},{"$f":"IFERROR(IF(INDEX('SR_Cash Reconciliation_2E'!F$9:F$270,MATCH($D73,'SR_Cash Reconciliation_2E'!$B$9:$B$270,0))=\"\",\"\",INDEX('SR_Cash Reconciliation_2E'!F$9:F$270,MATCH($D73,'SR_Cash Reconciliation_2E'!$B$9:$B$270,0))),\"\")","v":""},{"$f":"IFERROR(IF(INDEX('SR_Cash Reconciliation_2E'!G$9:G$270,MATCH($D73,'SR_Cash Reconciliation_2E'!$B$9:$B$270,0))=\"\",\"\",INDEX('SR_Cash Reconciliation_2E'!G$9:G$270,MATCH($D73,'SR_Cash Reconciliation_2E'!$B$9:$B$270,0))),\"\")","v":""},{"$f":"IFERROR(IF(INDEX('SR_Cash Reconciliation_2E'!H$9:H$270,MATCH($D73,'SR_Cash Reconciliation_2E'!$B$9:$B$270,0))=\"\",\"\",INDEX('SR_Cash Reconciliation_2E'!H$9:H$270,MATCH($D73,'SR_Cash Reconciliation_2E'!$B$9:$B$270,0))),\"\")","v":""},{"$f":"IFERROR(IF(INDEX('SR_Cash Reconciliation_2E'!I$9:I$270,MATCH($D73,'SR_Cash Reconciliation_2E'!$B$9:$B$270,0))=\"\",\"\",INDEX('SR_Cash Reconciliation_2E'!I$9:I$270,MATCH($D73,'SR_Cash Reconciliation_2E'!$B$9:$B$270,0))),\"\")","v":""},{"$f":"IFERROR(IF(INDEX('SR_Cash Reconciliation_2E'!K$9:K$270,MATCH($D73,'SR_Cash Reconciliation_2E'!$B$9:$B$270,0))=\"\",\"\",INDEX('SR_Cash Reconciliation_2E'!K$9:K$270,MATCH($D73,'SR_Cash Reconciliation_2E'!$B$9:$B$270,0))),\"\")","v":""},{"$f":"\"\"","v":""},{"$f":"IFERROR(IF(INDEX('SR_Cash Reconciliation_2E'!N$9:N$270,MATCH($D73,'SR_Cash Reconciliation_2E'!$B$9:$B$270,0))=\"\",\"\",INDEX('SR_Cash Reconciliation_2E'!N$9:N$270,MATCH($D73,'SR_Cash Reconciliation_2E'!$B$9:$B$270,0))),\"\")","v":""}]
[null,null,{"$error":"#VALUE!"},{"$error":"#VALUE!"},{"$f":"IFERROR(IF(INDEX('SR_Cash Reconciliation_2E'!C$9:C$270,MATCH($D74,'SR_Cash Reconciliation_2E'!$B$9:$B$270,0))=\"\",\"\",INDEX('SR_Cash Reconciliation_2E'!C$9:C$270,MATCH($D74,'SR_Cash Reconciliation_2E'!$B$9:$B$270,0))),\"\")","v":""},{"$f":"IFERROR(IF(INDEX('SR_Cash Reconciliation_2E'!D$9:D$270,MATCH($D74,'SR_Cash Reconciliation_2E'!$B$9:$B$270,0))=\"\",\"\",INDEX('SR_Cash Reconciliation_2E'!D$9:D$270,MATCH($D74,'SR_Cash Reconciliation_2E'!$B$9:$B$270,0))),\"\")","v":""},{"$f":"IFERROR(IF(INDEX('SR_Cash Reconciliation_2E'!E$9:E$270,MATCH($D74,'SR_Cash Reconciliation_2E'!$B$9:$B$270,0))=\"\",\"\",INDEX('SR_Cash Reconciliation_2E'!E$9:E$270,MATCH($D74,'SR_Cash Reconciliation_2E'!$B$9:$B$270,0))),\"\")","v":""},{"$f":"IFERROR(IF(INDEX('SR_Cash Reconciliation_2E'!F$9:F$270,MATCH($D74,'SR_Cash Reconciliation_2E'!$B$9:$B$270,0))=\"\",\"\",INDEX('SR_Cash Reconciliation_2E'!F$9:F$270,MATCH($D74,'SR_Cash Reconciliation_2E'!$B$9:$B$270,0))),\"\")","v":""},{"$f":"IFERROR(IF(INDEX('SR_Cash Reconciliation_2E'!G$9:G$270,MATCH($D74,'SR_Cash Reconciliation_2E'!$B$9:$B$270,0))=\"\",\"\",INDEX('SR_Cash Reconciliation_2E'!G$9:G$270,MATCH($D74,'SR_Cash Reconciliation_2E'!$B$9:$B$270,0))),\"\")","v":""},{"$f":"IFERROR(IF(INDEX('SR_Cash Reconciliation_2E'!H$9:H$270,MATCH($D74,'SR_Cash Reconciliation_2E'!$B$9:$B$270,0))=\"\",\"\",INDEX('SR_Cash Reconciliation_2E'!H$9:H$270,MATCH($D74,'SR_Cash Reconciliation_2E'!$B$9:$B$270,0))),\"\")","v":""},{"$f":"IFERROR(IF(INDEX('SR_Cash Reconciliation_2E'!I$9:I$270,MATCH($D74,'SR_Cash Reconciliation_2E'!$B$9:$B$270,0))=\"\",\"\",INDEX('SR_Cash Reconciliation_2E'!I$9:I$270,MATCH($D74,'SR_Cash Reconciliation_2E'!$B$9:$B$270,0))),\"\")","v":""},{"$f":"IFERROR(IF(INDEX('SR_Cash Reconciliation_2E'!K$9:K$270,MATCH($D74,'SR_Cash Reconciliation_2E'!$B$9:$B$270,0))=\"\",\"\",INDEX('SR_Cash Reconciliation_2E'!K$9:K$270,MATCH($D74,'SR_Cash Reconciliation_2E'!$B$9:$B$270,0))),\"\")","v":""},{"$f":"\"\"","v":""},{"$f":"IFERROR(IF(INDEX('SR_Cash Reconciliation_2E'!N$9:N$270,MATCH($D74,'SR_Cash Reconciliation_2E'!$B$9:$B$270,0))=\"\",\"\",INDEX('SR_Cash Reconciliation_2E'!N$9:N$270,MATCH($D74,'SR_Cash Reconciliation_2E'!$B$9:$B$270,0))),\"\")","v":""}]
[null,null,36,"ID36",{"$f":"IFERROR(IF(INDEX('SR_Cash Reconciliation_2E'!C$9:C$270,MATCH($D75,'SR_Cash Reconciliation_2E'!$B$9:$B$270,0))=\"\",\"\",INDEX('SR_Cash Reconciliation_2E'!C$9:C$270,MATCH($D75,'SR_Cash Reconciliation_2E'!$B$9:$B$270,0))),\"\")","v":""},{"$f":"IFERROR(IF(INDEX('SR_Cash Reconciliation_2E'!D$9:D$270,MATCH($D75,'SR_Cash Reconciliation_2E'!$B$9:$B$270,0))=\"\",\"\",INDEX('SR_Cash Reconciliation_2E'!D$9:D$270,MATCH($D75,'SR_Cash Reconciliation_2E'!$B$9:$B$270,0))),\"\")","v":""},{"$f":"IFERROR(IF(INDEX('SR_Cash Reconciliation_2E'!E$9:E$270,MATCH($D75,'SR_Cash Reconciliation_2E'!$B$9:$B$270,0))=\"\",\"\",INDEX('SR_Cash Reconciliation_2E'!E$9:E$270,MATCH($D75,'SR_Cash Reconciliation_2E'!$B$9:$B$270,0))),\"\")","v":""},{"$f":"IFERROR(IF(INDEX('SR_Cash Reconciliation_2E'!F$9:F$270,MATCH($D75,'SR_Cash Reconciliation_2E'!$B$9:$B$270,0))=\"\",\"\",INDEX('SR_Cash Reconciliation_2E'!F$9:F$270,MATCH($D75,'SR_Cash Reconciliation_2E'!$B$9:$B$270,0))),\"\")","v":""},{"$f":"IFERROR(IF(INDEX('SR_Cash Reconciliation_2E'!G$9:G$270,MATCH($D75,'SR_Cash Reconciliation_2E'!$B$9:$B$270,0))=\"\",\"\",INDEX('SR_Cash Reconciliation_2E'!G$9:G$270,MATCH($D75,'SR_Cash Reconciliation_2E'!$B$9:$B$270,0))),\"\")","v":""},{"$f":"IFERROR(IF(INDEX('SR_Cash Reconciliation_2E'!H$9:H$270,MATCH($D75,'SR_Cash Reconciliation_2E'!$B$9:$B$270,0))=\"\",\"\",INDEX('SR_Cash Reconciliation_2E'!H$9:H$270,MATCH($D75,'SR_Cash Reconciliation_2E'!$B$9:$B$270,0))),\"\")","v":""},{"$f":"IFERROR(IF(INDEX('SR_Cash Reconciliation_2E'!I$9:I$270,MATCH($D75,'SR_Cash Reconciliation_2E'!$B$9:$B$270,0))=\"\",\"\",INDEX('SR_Cash Reconciliation_2E'!I$9:I$270,MATCH($D75,'SR_Cash Reconciliation_2E'!$B$9:$B$270,0))),\"\")","v":""},{"$f":"IFERROR(IF(INDEX('SR_Cash Reconciliation_2E'!K$9:K$270,MATCH($D75,'SR_Cash Reconciliation_2E'!$B$9:$B$270,0))=\"\",\"\",INDEX('SR_Cash Reconciliation_2E'!K$9:K$270,MATCH($D75,'SR_Cash Reconciliation_2E'!$B$9:$B$270,0))),\"\")","v":""},{"$f":"\"\"","v":""},{"$f":"IFERROR(IF(INDEX('SR_Cash Reconciliation_2E'!N$9:N$270,MATCH($D75,'SR_Cash Reconciliation_2E'!$B$9:$B$270,0))=\"\",\"\",INDEX('SR_Cash Reconciliation_2E'!N$9:N$270,MATCH($D75,'SR_Cash Reconciliation_2E'!$B$9:$B$270,0))),\"\")","v":""}]
[null,null,{"$error":"#VALUE!"},{"$error":"#VALUE!"},{"$f":"IFERROR(IF(INDEX('SR_Cash Reconciliation_2E'!C$9:C$270,MATCH($D76,'SR_Cash Reconciliation_2E'!$B$9:$B$270,0))=\"\",\"\",INDEX('SR_Cash Reconciliation_2E'!C$9:C$270,MATCH($D76,'SR_Cash Reconciliation_2E'!$B$9:$B$270,0))),\"\")","v":""},{"$f":"IFERROR(IF(INDEX('SR_Cash Reconciliation_2E'!D$9:D$270,MATCH($D76,'SR_Cash Reconciliation_2E'!$B$9:$B$270,0))=\"\",\"\",INDEX('SR_Cash Reconciliation_2E'!D$9:D$270,MATCH($D76,'SR_Cash Reconciliation_2E'!$B$9:$B$270,0))),\"\")","v":""},{"$f":"IFERROR(IF(INDEX('SR_Cash Reconciliation_2E'!E$9:E$270,MATCH($D76,'SR_Cash Reconciliation_2E'!$B$9:$B$270,0))=\"\",\"\",INDEX('SR_Cash Reconciliation_2E'!E$9:E$270,MATCH($D76,'SR_Cash Reconciliation_2E'!$B$9:$B$270,0))),\"\")","v":""},{"$f":"IFERROR(IF(INDEX('SR_Cash Reconciliation_2E'!F$9:F$270,MATCH($D76,'SR_Cash Reconciliation_2E'!$B$9:$B$270,0))=\"\",\"\",INDEX('SR_Cash Reconciliation_2E'!F$9:F$270,MATCH($D76,'SR_Cash Reconciliation_2E'!$B$9:$B$270,0))),\"\")","v":""},{"$f":"IFERROR(IF(INDEX('SR_Cash Reconciliation_2E'!G$9:G$270,MATCH($D76,'SR_Cash Reconciliation_2E'!$B$9:$B$270,0))=\"\",\"\",INDEX('SR_Cash Reconciliation_2E'!G$9:G$270,MATCH($D76,'SR_Cash Reconciliation_2E'!$B$9:$B$270,0))),\"\")","v":""},{"$f":"IFERROR(IF(INDEX('SR_Cash Reconciliation_2E'!H$9:H$270,MATCH($D76,'SR_Cash Reconciliation_2E'!$B$9:$B$270,0))=\"\",\"\",INDEX('SR_Cash Reconciliation_2E'!H$9:H$270,MATCH($D76,'SR_Cash Reconciliation_2E'!$B$9:$B$270,0))),\"\")","v":""},{"$f":"IFERROR(IF(INDEX('SR_Cash Reconciliation_2E'!I$9:I$270,MATCH($D76,'SR_Cash Reconciliation_2E'!$B$9:$B$270,0))=\"\",\"\",INDEX('SR_Cash Reconciliation_2E'!I$9:I$270,MATCH($D76,'SR_Cash Reconciliation_2E'!$B$9:$B$270,0))),\"\")","v":""},{"$f":"IFERROR(IF(INDEX('SR_Cash Reconciliation_2E'!K$9:K$270,MATCH($D76,'SR_Cash Reconciliation_2E'!$B$9:$B$270,0))=\"\",\"\",INDEX('SR_Cash Reconciliation_2E'!K$9:K$270,MATCH($D76,'SR_Cash Reconciliation_2E'!$B$9:$B$270,0))),\"\")","v":""},{"$f":"\"\"","v":""},{"$f":"IFERROR(IF(INDEX('SR_Cash Reconciliation_2E'!N$9:N$270,MATCH($D76,'SR_Cash Reconciliation_2E'!$B$9:$B$270,0))=\"\",\"\",INDEX('SR_Cash Reconciliation_2E'!N$9:N$270,MATCH($D76,'SR_Cash Reconciliation_2E'!$B$9:$B$270,0))),\"\")","v":""}]
[null,null,37,"ID37",{"$f":"IFERROR(IF(INDEX('SR_Cash Reconciliation_2E'!C$9:C$270,MATCH($D77,'SR_Cash Reconciliation_2E'!$B$9:$B$270,0))=\"\",\"\",INDEX('SR_Cash Reconciliation_2E'!C$9:C$270,MATCH($D77,'SR_Cash Reconciliation_2E'!$B$9:$B$270,0))),\"\")","v":""},{"$f":"IFERROR(IF(INDEX('SR_Cash Reconciliation_2E'!D$9:D$270,MATCH($D77,'SR_Cash Reconciliation_2E'!$B$9:$B$270,0))=\"\",\"\",INDEX('SR_Cash Reconciliation_2E'!D$9:D$270,MATCH($D77,'SR_Cash Reconciliation_2E'!$B$9:$B$270,0))),\"\")","v":""},{"$f":"IFERROR(IF(INDEX('SR_Cash Reconciliation_2E'!E$9:E$270,MATCH($D77,'SR_Cash Reconciliation_2E'!$B$9:$B$270,0))=\"\",\"\",INDEX('SR_Cash Reconciliation_2E'!E$9:E$270,MATCH($D77,'SR_Cash Reconciliation_2E'!$B$9:$B$270,0))),\"\")","v":""},{"$f":"IFERROR(IF(INDEX('SR_Cash Reconciliation_2E'!F$9:F$270,MATCH($D77,'SR_Cash Reconciliation_2E'!$B$9:$B$270,0))=\"\",\"\",INDEX('SR_Cash Reconciliation_2E'!F$9:F$270,MATCH($D77,'SR_Cash Reconciliation_2E'!$B$9:$B$270,0))),\"\")","v":""},{"$f":"IFERROR(IF(INDEX('SR_Cash Reconciliation_2E'!G$9:G$270,MATCH($D77,'SR_Cash Reconciliation_2E'!$B$9:$B$270,0))=\"\",\"\",INDEX('SR_Cash Reconciliation_2E'!G$9:G$270,MATCH($D77,'SR_Cash Reconciliation_2E'!$B$9:$B$270,0))),\"\")","v":""},{"$f":"IFERROR(IF(INDEX('SR_Cash Reconciliation_2E'!H$9:H$270,MATCH($D77,'SR_Cash Reconciliation_2E'!$B$9:$B$270,0))=\"\",\"\",INDEX('SR_Cash Reconciliation_2E'!H$9:H$270,MATCH($D77,'SR_Cash Reconciliation_2E'!$B$9:$B$270,0))),\"\")","v":""},{"$f":"IFERROR(IF(INDEX('SR_Cash Reconciliation_2E'!I$9:I$270,MATCH($D77,'SR_Cash Reconciliation_2E'!$B$9:$B$270,0))=\"\",\"\",INDEX('SR_Cash Reconciliation_2E'!I$9:I$270,MATCH($D77,'SR_Cash Reconciliation_2E'!$B$9:$B$270,0))),\"\")","v":""},{"$f":"IFERROR(IF(INDEX('SR_Cash Reconciliation_2E'!K$9:K$270,MATCH($D77,'SR_Cash Reconciliation_2E'!$B$9:$B$270,0))=\"\",\"\",INDEX('SR_Cash Reconciliation_2E'!K$9:K$270,MATCH($D77,'SR_Cash Reconciliation_2E'!$B$9:$B$270,0))),\"\")","v":""},{"$f":"\"\"","v":""},{"$f":"IFERROR(IF(INDEX('SR_Cash Reconciliation_2E'!N$9:N$270,MATCH($D77,'SR_Cash Reconciliation_2E'!$B$9:$B$270,0))=\"\",\"\",INDEX('SR_Cash Reconciliation_2E'!N$9:N$270,MATCH($D77,'SR_Cash Reconciliation_2E'!$B$9:$B$270,0))),\"\")","v":""}]
[null,null,{"$error":"#VALUE!"},{"$error":"#VALUE!"},{"$f":"IFERROR(IF(INDEX('SR_Cash Reconciliation_2E'!C$9:C$270,MATCH($D78,'SR_Cash Reconciliation_2E'!$B$9:$B$270,0))=\"\",\"\",INDEX('SR_Cash Reconciliation_2E'!C$9:C$270,MATCH($D78,'SR_Cash Reconciliation_2E'!$B$9:$B$270,0))),\"\")","v":""},{"$f":"IFERROR(IF(INDEX('SR_Cash Reconciliation_2E'!D$9:D$270,MATCH($D78,'SR_Cash Reconciliation_2E'!$B$9:$B$270,0))=\"\",\"\",INDEX('SR_Cash Reconciliation_2E'!D$9:D$270,MATCH($D78,'SR_Cash Reconciliation_2E'!$B$9:$B$270,0))),\"\")","v":""},{"$f":"IFERROR(IF(INDEX('SR_Cash Reconciliation_2E'!E$9:E$270,MATCH($D78,'SR_Cash Reconciliation_2E'!$B$9:$B$270,0))=\"\",\"\",INDEX('SR_Cash Reconciliation_2E'!E$9:E$270,MATCH($D78,'SR_Cash Reconciliation_2E'!$B$9:$B$270,0))),\"\")","v":""},{"$f":"IFERROR(IF(INDEX('SR_Cash Reconciliation_2E'!F$9:F$270,MATCH($D78,'SR_Cash Reconciliation_2E'!$B$9:$B$270,0))=\"\",\"\",INDEX('SR_Cash Reconciliation_2E'!F$9:F$270,MATCH($D78,'SR_Cash Reconciliation_2E'!$B$9:$B$270,0))),\"\")","v":""},{"$f":"IFERROR(IF(INDEX('SR_Cash Reconciliation_2E'!G$9:G$270,MATCH($D78,'SR_Cash Reconciliation_2E'!$B$9:$B$270,0))=\"\",\"\",INDEX('SR_Cash Reconciliation_2E'!G$9:G$270,MATCH($D78,'SR_Cash Reconciliation_2E'!$B$9:$B$270,0))),\"\")","v":""},{"$f":"IFERROR(IF(INDEX('SR_Cash Reconciliation_2E'!H$9:H$270,MATCH($D78,'SR_Cash Reconciliation_2E'!$B$9:$B$270,0))=\"\",\"\",INDEX('SR_Cash Reconciliation_2E'!H$9:H$270,MATCH($D78,'SR_Cash Reconciliation_2E'!$B$9:$B$270,0))),\"\")","v":""},{"$f":"IFERROR(IF(INDEX('SR_Cash Reconciliation_2E'!I$9:I$270,MATCH($D78,'SR_Cash Reconciliation_2E'!$B$9:$B$270,0))=\"\",\"\",INDEX('SR_Cash Reconciliation_2E'!I$9:I$270,MATCH($D78,'SR_Cash Reconciliation_2E'!$B$9:$B$270,0))),\"\")","v":""},{"$f":"IFERROR(IF(INDEX('SR_Cash Reconciliation_2E'!K$9:K$270,MATCH($D78,'SR_Cash Reconciliation_2E'!$B$9:$B$270,0))=\"\",\"\",INDEX('SR_Cash Reconciliation_2E'!K$9:K$270,MATCH($D78,'SR_Cash Reconciliation_2E'!$B$9:$B$270,0))),\"\")","v":""},{"$f":"\"\"","v":""},{"$f":"IFERROR(IF(INDEX('SR_Cash Reconciliation_2E'!N$9:N$270,MATCH($D78,'SR_Cash Reconciliation_2E'!$B$9:$B$270,0))=\"\",\"\",INDEX('SR_Cash Reconciliation_2E'!N$9:N$270,MATCH($D78,'SR_Cash Reconciliation_2E'!$B$9:$B$270,0))),\"\")","v":""}]
[null,null,38,"ID38",{"$f":"IFERROR(IF(INDEX('SR_Cash Reconciliation_2E'!C$9:C$270,MATCH($D79,'SR_Cash Reconciliation_2E'!$B$9:$B$270,0))=\"\",\"\",INDEX('SR_Cash Reconciliation_2E'!C$9:C$270,MATCH($D79,'SR_Cash Reconciliation_2E'!$B$9:$B$270,0))),\"\")","v":""},{"$f":"IFERROR(IF(INDEX('SR_Cash Reconciliation_2E'!D$9:D$270,MATCH($D79,'SR_Cash Reconciliation_2E'!$B$9:$B$270,0))=\"\",\"\",INDEX('SR_Cash Reconciliation_2E'!D$9:D$270,MATCH($D79,'SR_Cash Reconciliation_2E'!$B$9:$B$270,0))),\"\")","v":""},{"$f":"IFERROR(IF(INDEX('SR_Cash Reconciliation_2E'!E$9:E$270,MATCH($D79,'SR_Cash Reconciliation_2E'!$B$9:$B$270,0))=\"\",\"\",INDEX('SR_Cash Reconciliation_2E'!E$9:E$270,MATCH($D79,'SR_Cash Reconciliation_2E'!$B$9:$B$270,0))),\"\")","v":""},{"$f":"IFERROR(IF(INDEX('SR_Cash Reconciliation_2E'!F$9:F$270,MATCH($D79,'SR_Cash Reconciliation_2E'!$B$9:$B$270,0))=\"\",\"\",INDEX('SR_Cash Reconciliation_2E'!F$9:F$270,MATCH($D79,'SR_Cash Reconciliation_2E'!$B$9:$B$270,0))),\"\")","v":""},{"$f":"IFERROR(IF(INDEX('SR_Cash Reconciliation_2E'!G$9:G$270,MATCH($D79,'SR_Cash Reconciliation_2E'!$B$9:$B$270,0))=\"\",\"\",INDEX('SR_Cash Reconciliation_2E'!G$9:G$270,MATCH($D79,'SR_Cash Reconciliation_2E'!$B$9:$B$270,0))),\"\")","v":""},{"$f":"IFERROR(IF(INDEX('SR_Cash Reconciliation_2E'!H$9:H$270,MATCH($D79,'SR_Cash Reconciliation_2E'!$B$9:$B$270,0))=\"\",\"\",INDEX('SR_Cash Reconciliation_2E'!H$9:H$270,MATCH($D79,'SR_Cash Reconciliation_2E'!$B$9:$B$270,0))),\"\")","v":""},{"$f":"IFERROR(IF(INDEX('SR_Cash Reconciliation_2E'!I$9:I$270,MATCH($D79,'SR_Cash Reconciliation_2E'!$B$9:$B$270,0))=\"\",\"\",INDEX('SR_Cash Reconciliation_2E'!I$9:I$270,MATCH($D79,'SR_Cash Reconciliation_2E'!$B$9:$B$270,0))),\"\")","v":""},{"$f":"IFERROR(IF(INDEX('SR_Cash Reconciliation_2E'!K$9:K$270,MATCH($D79,'SR_Cash Reconciliation_2E'!$B$9:$B$270,0))=\"\",\"\",INDEX('SR_Cash Reconciliation_2E'!K$9:K$270,MATCH($D79,'SR_Cash Reconciliation_2E'!$B$9:$B$270,0))),\"\")","v":""},{"$f":"\"\"","v":""},{"$f":"IFERROR(IF(INDEX('SR_Cash Reconciliation_2E'!N$9:N$270,MATCH($D79,'SR_Cash Reconciliation_2E'!$B$9:$B$270,0))=\"\",\"\",INDEX('SR_Cash Reconciliation_2E'!N$9:N$270,MATCH($D79,'SR_Cash Reconciliation_2E'!$B$9:$B$270,0))),\"\")","v":""}]
[null,null,{"$error":"#VALUE!"},{"$error":"#VALUE!"},{"$f":"IFERROR(IF(INDEX('SR_Cash Reconciliation_2E'!C$9:C$270,MATCH($D80,'SR_Cash Reconciliation_2E'!$B$9:$B$270,0))=\"\",\"\",INDEX('SR_Cash Reconciliation_2E'!C$9:C$270,MATCH($D80,'SR_Cash Reconciliation_2E'!$B$9:$B$270,0))),\"\")","v":""},{"$f":"IFERROR(IF(INDEX('SR_Cash Reconciliation_2E'!D$9:D$270,MATCH($D80,'SR_Cash Reconciliation_2E'!$B$9:$B$270,0))=\"\",\"\",INDEX('SR_Cash Reconciliation_2E'!D$9:D$270,MATCH($D80,'SR_Cash Reconciliation_2E'!$B$9:$B$270,0))),\"\")","v":""},{"$f":"IFERROR(IF(INDEX('SR_Cash Reconciliation_2E'!E$9:E$270,MATCH($D80,'SR_Cash Reconciliation_2E'!$B$9:$B$270,0))=\"\",\"\",INDEX('SR_Cash Reconciliation_2E'!E$9:E$270,MATCH($D80,'SR_Cash Reconciliation_2E'!$B$9:$B$270,0))),\"\")","v":""},{"$f":"IFERROR(IF(INDEX('SR_Cash Reconciliation_2E'!F$9:F$270,MATCH($D80,'SR_Cash Reconciliation_2E'!$B$9:$B$270,0))=\"\",\"\",INDEX('SR_Cash Reconciliation_2E'!F$9:F$270,MATCH($D80,'SR_Cash Reconciliation_2E'!$B$9:$B$270,0))),\"\")","v":""},{"$f":"IFERROR(IF(INDEX('SR_Cash Reconciliation_2E'!G$9:G$270,MATCH($D80,'SR_Cash Reconciliation_2E'!$B$9:$B$270,0))=\"\",\"\",INDEX('SR_Cash Reconciliation_2E'!G$9:G$270,MATCH($D80,'SR_Cash Reconciliation_2E'!$B$9:$B$270,0))),\"\")","v":""},{"$f":"IFERROR(IF(INDEX('SR_Cash Reconciliation_2E'!H$9:H$270,MATCH($D80,'SR_Cash Reconciliation_2E'!$B$9:$B$270,0))=\"\",\"\",INDEX('SR_Cash Reconciliation_2E'!H$9:H$270,MATCH($D80,'SR_Cash Reconciliation_2E'!$B$9:$B$270,0))),\"\")","v":""},{"$f":"IFERROR(IF(INDEX('SR_Cash Reconciliation_2E'!I$9:I$270,MATCH($D80,'SR_Cash Reconciliation_2E'!$B$9:$B$270,0))=\"\",\"\",INDEX('SR_Cash Reconciliation_2E'!I$9:I$270,MATCH($D80,'SR_Cash Reconciliation_2E'!$B$9:$B$270,0))),\"\")","v":""},{"$f":"IFERROR(IF(INDEX('SR_Cash Reconciliation_2E'!K$9:K$270,MATCH($D80,'SR_Cash Reconciliation_2E'!$B$9:$B$270,0))=\"\",\"\",INDEX('SR_Cash Reconciliation_2E'!K$9:K$270,MATCH($D80,'SR_Cash Reconciliation_2E'!$B$9:$B$270,0))),\"\")","v":""},{"$f":"\"\"","v":""},{"$f":"IFERROR(IF(INDEX('SR_Cash Reconciliation_2E'!N$9:N$270,MATCH($D80,'SR_Cash Reconciliation_2E'!$B$9:$B$270,0))=\"\",\"\",INDEX('SR_Cash Reconciliation_2E'!N$9:N$270,MATCH($D80,'SR_Cash Reconciliation_2E'!$B$9:$B$270,0))),\"\")","v":""}]
[null,null,39,"ID39",{"$f":"IFERROR(IF(INDEX('SR_Cash Reconciliation_2E'!C$9:C$270,MATCH($D81,'SR_Cash Reconciliation_2E'!$B$9:$B$270,0))=\"\",\"\",INDEX('SR_Cash Reconciliation_2E'!C$9:C$270,MATCH($D81,'SR_Cash Reconciliation_2E'!$B$9:$B$270,0))),\"\")","v":""},{"$f":"IFERROR(IF(INDEX('SR_Cash Reconciliation_2E'!D$9:D$270,MATCH($D81,'SR_Cash Reconciliation_2E'!$B$9:$B$270,0))=\"\",\"\",INDEX('SR_Cash Reconciliation_2E'!D$9:D$270,MATCH($D81,'SR_Cash Reconciliation_2E'!$B$9:$B$270,0))),\"\")","v":""},{"$f":"IFERROR(IF(INDEX('SR_Cash Reconciliation_2E'!E$9:E$270,MATCH($D81,'SR_Cash Reconciliation_2E'!$B$9:$B$270,0))=\"\",\"\",INDEX('SR_Cash Reconciliation_2E'!E$9:E$270,MATCH($D81,'SR_Cash Reconciliation_2E'!$B$9:$B$270,0))),\"\")","v":""},{"$f":"IFERROR(IF(INDEX('SR_Cash Reconciliation_2E'!F$9:F$270,MATCH($D81,'SR_Cash Reconciliation_2E'!$B$9:$B$270,0))=\"\",\"\",INDEX('SR_Cash Reconciliation_2E'!F$9:F$270,MATCH($D81,'SR_Cash Reconciliation_2E'!$B$9:$B$270,0))),\"\")","v":""},{"$f":"IFERROR(IF(INDEX('SR_Cash Reconciliation_2E'!G$9:G$270,MATCH($D81,'SR_Cash Reconciliation_2E'!$B$9:$B$270,0))=\"\",\"\",INDEX('SR_Cash Reconciliation_2E'!G$9:G$270,MATCH($D81,'SR_Cash Reconciliation_2E'!$B$9:$B$270,0))),\"\")","v":""},{"$f":"IFERROR(IF(INDEX('SR_Cash Reconciliation_2E'!H$9:H$270,MATCH($D81,'SR_Cash Reconciliation_2E'!$B$9:$B$270,0))=\"\",\"\",INDEX('SR_Cash Reconciliation_2E'!H$9:H$270,MATCH($D81,'SR_Cash Reconciliation_2E'!$B$9:$B$270,0))),\"\")","v":""},{"$f":"IFERROR(IF(INDEX('SR_Cash Reconciliation_2E'!I$9:I$270,MATCH($D81,'SR_Cash Reconciliation_2E'!$B$9:$B$270,0))=\"\",\"\",INDEX('SR_Cash Reconciliation_2E'!I$9:I$270,MATCH($D81,'SR_Cash Reconciliation_2E'!$B$9:$B$270,0))),\"\")","v":""},{"$f":"IFERROR(IF(INDEX('SR_Cash Reconciliation_2E'!K$9:K$270,MATCH($D81,'SR_Cash Reconciliation_2E'!$B$9:$B$270,0))=\"\",\"\",INDEX('SR_Cash Reconciliation_2E'!K$9:K$270,MATCH($D81,'SR_Cash Reconciliation_2E'!$B$9:$B$270,0))),\"\")","v":""},{"$f":"\"\"","v":""},{"$f":"IFERROR(IF(INDEX('SR_Cash Reconciliation_2E'!N$9:N$270,MATCH($D81,'SR_Cash Reconciliation_2E'!$B$9:$B$270,0))=\"\",\"\",INDEX('SR_Cash Reconciliation_2E'!N$9:N$270,MATCH($D81,'SR_Cash Reconciliation_2E'!$B$9:$B$270,0))),\"\")","v":""}]
[null,null,{"$error":"#VALUE!"},{"$error":"#VALUE!"},{"$f":"IFERROR(IF(INDEX('SR_Cash Reconciliation_2E'!C$9:C$270,MATCH($D82,'SR_Cash Reconciliation_2E'!$B$9:$B$270,0))=\"\",\"\",INDEX('SR_Cash Reconciliation_2E'!C$9:C$270,MATCH($D82,'SR_Cash Reconciliation_2E'!$B$9:$B$270,0))),\"\")","v":""},{"$f":"IFERROR(IF(INDEX('SR_Cash Reconciliation_2E'!D$9:D$270,MATCH($D82,'SR_Cash Reconciliation_2E'!$B$9:$B$270,0))=\"\",\"\",INDEX('SR_Cash Reconciliation_2E'!D$9:D$270,MATCH($D82,'SR_Cash Reconciliation_2E'!$B$9:$B$270,0))),\"\")","v":""},{"$f":"IFERROR(IF(INDEX('SR_Cash Reconciliation_2E'!E$9:E$270,MATCH($D82,'SR_Cash Reconciliation_2E'!$B$9:$B$270,0))=\"\",\"\",INDEX('SR_Cash Reconciliation_2E'!E$9:E$270,MATCH($D82,'SR_Cash Reconciliation_2E'!$B$9:$B$270,0))),\"\")","v":""},{"$f":"IFERROR(IF(INDEX('SR_Cash Reconciliation_2E'!F$9:F$270,MATCH($D82,'SR_Cash Reconciliation_2E'!$B$9:$B$270,0))=\"\",\"\",INDEX('SR_Cash Reconciliation_2E'!F$9:F$270,MATCH($D82,'SR_Cash Reconciliation_2E'!$B$9:$B$270,0))),\"\")","v":""},{"$f":"IFERROR(IF(INDEX('SR_Cash Reconciliation_2E'!G$9:G$270,MATCH($D82,'SR_Cash Reconciliation_2E'!$B$9:$B$270,0))=\"\",\"\",INDEX('SR_Cash Reconciliation_2E'!G$9:G$270,MATCH($D82,'SR_Cash Reconciliation_2E'!$B$9:$B$270,0))),\"\")","v":""},{"$f":"IFERROR(IF(INDEX('SR_Cash Reconciliation_2E'!H$9:H$270,MATCH($D82,'SR_Cash Reconciliation_2E'!$B$9:$B$270,0))=\"\",\"\",INDEX('SR_Cash Reconciliation_2E'!H$9:H$270,MATCH($D82,'SR_Cash Reconciliation_2E'!$B$9:$B$270,0))),\"\")","v":""},{"$f":"IFERROR(IF(INDEX('SR_Cash Reconciliation_2E'!I$9:I$270,MATCH($D82,'SR_Cash Reconciliation_2E'!$B$9:$B$270,0))=\"\",\"\",INDEX('SR_Cash Reconciliation_2E'!I$9:I$270,MATCH($D82,'SR_Cash Reconciliation_2E'!$B$9:$B$270,0))),\"\")","v":""},{"$f":"IFERROR(IF(INDEX('SR_Cash Reconciliation_2E'!K$9:K$270,MATCH($D82,'SR_Cash Reconciliation_2E'!$B$9:$B$270,0))=\"\",\"\",INDEX('SR_Cash Reconciliation_2E'!K$9:K$270,MATCH($D82,'SR_Cash Reconciliation_2E'!$B$9:$B$270,0))),\"\")","v":""},{"$f":"\"\"","v":""},{"$f":"IFERROR(IF(INDEX('SR_Cash Reconciliation_2E'!N$9:N$270,MATCH($D82,'SR_Cash Reconciliation_2E'!$B$9:$B$270,0))=\"\",\"\",INDEX('SR_Cash Reconciliation_2E'!N$9:N$270,MATCH($D82,'SR_Cash Reconciliation_2E'!$B$9:$B$270,0))),\"\")","v":""}]
[null,null,40,"ID40",{"$f":"IFERROR(IF(INDEX('SR_Cash Reconciliation_2E'!C$9:C$270,MATCH($D83,'SR_Cash Reconciliation_2E'!$B$9:$B$270,0))=\"\",\"\",INDEX('SR_Cash Reconciliation_2E'!C$9:C$270,MATCH($D83,'SR_Cash Reconciliation_2E'!$B$9:$B$270,0))),\"\")","v":""},{"$f":"IFERROR(IF(INDEX('SR_Cash Reconciliation_2E'!D$9:D$270,MATCH($D83,'SR_Cash Reconciliation_2E'!$B$9:$B$270,0))=\"\",\"\",INDEX('SR_Cash Reconciliation_2E'!D$9:D$270,MATCH($D83,'SR_Cash Reconciliation_2E'!$B$9:$B$270,0))),\"\")","v":""},{"$f":"IFERROR(IF(INDEX('SR_Cash Reconciliation_2E'!E$9:E$270,MATCH($D83,'SR_Cash Reconciliation_2E'!$B$9:$B$270,0))=\"\",\"\",INDEX('SR_Cash Reconciliation_2E'!E$9:E$270,MATCH($D83,'SR_Cash Reconciliation_2E'!$B$9:$B$270,0))),\"\")","v":""},{"$f":"IFERROR(IF(INDEX('SR_Cash Reconciliation_2E'!F$9:F$270,MATCH($D83,'SR_Cash Reconciliation_2E'!$B$9:$B$270,0))=\"\",\"\",INDEX('SR_Cash Reconciliation_2E'!F$9:F$270,MATCH($D83,'SR_Cash Reconciliation_2E'!$B$9:$B$270,0))),\"\")","v":""},{"$f":"IFERROR(IF(INDEX('SR_Cash Reconciliation_2E'!G$9:G$270,MATCH($D83,'SR_Cash Reconciliation_2E'!$B$9:$B$270,0))=\"\",\"\",INDEX('SR_Cash Reconciliation_2E'!G$9:G$270,MATCH($D83,'SR_Cash Reconciliation_2E'!$B$9:$B$270,0))),\"\")","v":""},{"$f":"IFERROR(IF(INDEX('SR_Cash Reconciliation_2E'!H$9:H$270,MATCH($D83,'SR_Cash Reconciliation_2E'!$B$9:$B$270,0))=\"\",\"\",INDEX('SR_Cash Reconciliation_2E'!H$9:H$270,MATCH($D83,'SR_Cash Reconciliation_2E'!$B$9:$B$270,0))),\"\")","v":""},{"$f":"IFERROR(IF(INDEX('SR_Cash Reconciliation_2E'!I$9:I$270,MATCH($D83,'SR_Cash Reconciliation_2E'!$B$9:$B$270,0))=\"\",\"\",INDEX('SR_Cash Reconciliation_2E'!I$9:I$270,MATCH($D83,'SR_Cash Reconciliation_2E'!$B$9:$B$270,0))),\"\")","v":""},{"$f":"IFERROR(IF(INDEX('SR_Cash Reconciliation_2E'!K$9:K$270,MATCH($D83,'SR_Cash Reconciliation_2E'!$B$9:$B$270,0))=\"\",\"\",INDEX('SR_Cash Reconciliation_2E'!K$9:K$270,MATCH($D83,'SR_Cash Reconciliation_2E'!$B$9:$B$270,0))),\"\")","v":""},{"$f":"\"\"","v":""},{"$f":"IFERROR(IF(INDEX('SR_Cash Reconciliation_2E'!N$9:N$270,MATCH($D83,'SR_Cash Reconciliation_2E'!$B$9:$B$270,0))=\"\",\"\",INDEX('SR_Cash Reconciliation_2E'!N$9:N$270,MATCH($D83,'SR_Cash Reconciliation_2E'!$B$9:$B$270,0))),\"\")","v":""}]
[null,null,{"$error":"#VALUE!"},{"$error":"#VALUE!"},{"$f":"IFERROR(IF(INDEX('SR_Cash Reconciliation_2E'!C$9:C$270,MATCH($D84,'SR_Cash Reconciliation_2E'!$B$9:$B$270,0))=\"\",\"\",INDEX('SR_Cash Reconciliation_2E'!C$9:C$270,MATCH($D84,'SR_Cash Reconciliation_2E'!$B$9:$B$270,0))),\"\")","v":""},{"$f":"IFERROR(IF(INDEX('SR_Cash Reconciliation_2E'!D$9:D$270,MATCH($D84,'SR_Cash Reconciliation_2E'!$B$9:$B$270,0))=\"\",\"\",INDEX('SR_Cash Reconciliation_2E'!D$9:D$270,MATCH($D84,'SR_Cash Reconciliation_2E'!$B$9:$B$270,0))),\"\")","v":""},{"$f":"IFERROR(IF(INDEX('SR_Cash Reconciliation_2E'!E$9:E$270,MATCH($D84,'SR_Cash Reconciliation_2E'!$B$9:$B$270,0))=\"\",\"\",INDEX('SR_Cash Reconciliation_2E'!E$9:E$270,MATCH($D84,'SR_Cash Reconciliation_2E'!$B$9:$B$270,0))),\"\")","v":""},{"$f":"IFERROR(IF(INDEX('SR_Cash Reconciliation_2E'!F$9:F$270,MATCH($D84,'SR_Cash Reconciliation_2E'!$B$9:$B$270,0))=\"\",\"\",INDEX('SR_Cash Reconciliation_2E'!F$9:F$270,MATCH($D84,'SR_Cash Reconciliation_2E'!$B$9:$B$270,0))),\"\")","v":""},{"$f":"IFERROR(IF(INDEX('SR_Cash Reconciliation_2E'!G$9:G$270,MATCH($D84,'SR_Cash Reconciliation_2E'!$B$9:$B$270,0))=\"\",\"\",INDEX('SR_Cash Reconciliation_2E'!G$9:G$270,MATCH($D84,'SR_Cash Reconciliation_2E'!$B$9:$B$270,0))),\"\")","v":""},{"$f":"IFERROR(IF(INDEX('SR_Cash Reconciliation_2E'!H$9:H$270,MATCH($D84,'SR_Cash Reconciliation_2E'!$B$9:$B$270,0))=\"\",\"\",INDEX('SR_Cash Reconciliation_2E'!H$9:H$270,MATCH($D84,'SR_Cash Reconciliation_2E'!$B$9:$B$270,0))),\"\")","v":""},{"$f":"IFERROR(IF(INDEX('SR_Cash Reconciliation_2E'!I$9:I$270,MATCH($D84,'SR_Cash Reconciliation_2E'!$B$9:$B$270,0))=\"\",\"\",INDEX('SR_Cash Reconciliation_2E'!I$9:I$270,MATCH($D84,'SR_Cash Reconciliation_2E'!$B$9:$B$270,0))),\"\")","v":""},{"$f":"IFERROR(IF(INDEX('SR_Cash Reconciliation_2E'!K$9:K$270,MATCH($D84,'SR_Cash Reconciliation_2E'!$B$9:$B$270,0))=\"\",\"\",INDEX('SR_Cash Reconciliation_2E'!K$9:K$270,MATCH($D84,'SR_Cash Reconciliation_2E'!$B$9:$B$270,0))),\"\")","v":""},{"$f":"\"\"","v":""},{"$f":"IFERROR(IF(INDEX('SR_Cash Reconciliation_2E'!N$9:N$270,MATCH($D84,'SR_Cash Reconciliation_2E'!$B$9:$B$270,0))=\"\",\"\",INDEX('SR_Cash Reconciliation_2E'!N$9:N$270,MATCH($D84,'SR_Cash Reconciliation_2E'!$B$9:$B$270,0))),\"\")","v":""}]
[null,null,41,"ID41",{"$f":"IFERROR(IF(INDEX('SR_Cash Reconciliation_2E'!C$9:C$270,MATCH($D85,'SR_Cash Reconciliation_2E'!$B$9:$B$270,0))=\"\",\"\",INDEX('SR_Cash Reconciliation_2E'!C$9:C$270,MATCH($D85,'SR_Cash Reconciliation_2E'!$B$9:$B$270,0))),\"\")","v":""},{"$f":"IFERROR(IF(INDEX('SR_Cash Reconciliation_2E'!D$9:D$270,MATCH($D85,'SR_Cash Reconciliation_2E'!$B$9:$B$270,0))=\"\",\"\",INDEX('SR_Cash Reconciliation_2E'!D$9:D$270,MATCH($D85,'SR_Cash Reconciliation_2E'!$B$9:$B$270,0))),\"\")","v":""},{"$f":"IFERROR(IF(INDEX('SR_Cash Reconciliation_2E'!E$9:E$270,MATCH($D85,'SR_Cash Reconciliation_2E'!$B$9:$B$270,0))=\"\",\"\",INDEX('SR_Cash Reconciliation_2E'!E$9:E$270,MATCH($D85,'SR_Cash Reconciliation_2E'!$B$9:$B$270,0))),\"\")","v":""},{"$f":"IFERROR(IF(INDEX('SR_Cash Reconciliation_2E'!F$9:F$270,MATCH($D85,'SR_Cash Reconciliation_2E'!$B$9:$B$270,0))=\"\",\"\",INDEX('SR_Cash Reconciliation_2E'!F$9:F$270,MATCH($D85,'SR_Cash Reconciliation_2E'!$B$9:$B$270,0))),\"\")","v":""},{"$f":"IFERROR(IF(INDEX('SR_Cash Reconciliation_2E'!G$9:G$270,MATCH($D85,'SR_Cash Reconciliation_2E'!$B$9:$B$270,0))=\"\",\"\",INDEX('SR_Cash Reconciliation_2E'!G$9:G$270,MATCH($D85,'SR_Cash Reconciliation_2E'!$B$9:$B$270,0))),\"\")","v":""},{"$f":"IFERROR(IF(INDEX('SR_Cash Reconciliation_2E'!H$9:H$270,MATCH($D85,'SR_Cash Reconciliation_2E'!$B$9:$B$270,0))=\"\",\"\",INDEX('SR_Cash Reconciliation_2E'!H$9:H$270,MATCH($D85,'SR_Cash Reconciliation_2E'!$B$9:$B$270,0))),\"\")","v":""},{"$f":"IFERROR(IF(INDEX('SR_Cash Reconciliation_2E'!I$9:I$270,MATCH($D85,'SR_Cash Reconciliation_2E'!$B$9:$B$270,0))=\"\",\"\",INDEX('SR_Cash Reconciliation_2E'!I$9:I$270,MATCH($D85,'SR_Cash Reconciliation_2E'!$B$9:$B$270,0))),\"\")","v":""},{"$f":"IFERROR(IF(INDEX('SR_Cash Reconciliation_2E'!K$9:K$270,MATCH($D85,'SR_Cash Reconciliation_2E'!$B$9:$B$270,0))=\"\",\"\",INDEX('SR_Cash Reconciliation_2E'!K$9:K$270,MATCH($D85,'SR_Cash Reconciliation_2E'!$B$9:$B$270,0))),\"\")","v":""},{"$f":"\"\"","v":""},{"$f":"IFERROR(IF(INDEX('SR_Cash Reconciliation_2E'!N$9:N$270,MATCH($D85,'SR_Cash Reconciliation_2E'!$B$9:$B$270,0))=\"\",\"\",INDEX('SR_Cash Reconciliation_2E'!N$9:N$270,MATCH($D85,'SR_Cash Reconciliation_2E'!$B$9:$B$270,0))),\"\")","v":""}]
[null,null,{"$error":"#VALUE!"},{"$error":"#VALUE!"},{"$f":"IFERROR(IF(INDEX('SR_Cash Reconciliation_2E'!C$9:C$270,MATCH($D86,'SR_Cash Reconciliation_2E'!$B$9:$B$270,0))=\"\",\"\",INDEX('SR_Cash Reconciliation_2E'!C$9:C$270,MATCH($D86,'SR_Cash Reconciliation_2E'!$B$9:$B$270,0))),\"\")","v":""},{"$f":"IFERROR(IF(INDEX('SR_Cash Reconciliation_2E'!D$9:D$270,MATCH($D86,'SR_Cash Reconciliation_2E'!$B$9:$B$270,0))=\"\",\"\",INDEX('SR_Cash Reconciliation_2E'!D$9:D$270,MATCH($D86,'SR_Cash Reconciliation_2E'!$B$9:$B$270,0))),\"\")","v":""},{"$f":"IFERROR(IF(INDEX('SR_Cash Reconciliation_2E'!E$9:E$270,MATCH($D86,'SR_Cash Reconciliation_2E'!$B$9:$B$270,0))=\"\",\"\",INDEX('SR_Cash Reconciliation_2E'!E$9:E$270,MATCH($D86,'SR_Cash Reconciliation_2E'!$B$9:$B$270,0))),\"\")","v":""},{"$f":"IFERROR(IF(INDEX('SR_Cash Reconciliation_2E'!F$9:F$270,MATCH($D86,'SR_Cash Reconciliation_2E'!$B$9:$B$270,0))=\"\",\"\",INDEX('SR_Cash Reconciliation_2E'!F$9:F$270,MATCH($D86,'SR_Cash Reconciliation_2E'!$B$9:$B$270,0))),\"\")","v":""},{"$f":"IFERROR(IF(INDEX('SR_Cash Reconciliation_2E'!G$9:G$270,MATCH($D86,'SR_Cash Reconciliation_2E'!$B$9:$B$270,0))=\"\",\"\",INDEX('SR_Cash Reconciliation_2E'!G$9:G$270,MATCH($D86,'SR_Cash Reconciliation_2E'!$B$9:$B$270,0))),\"\")","v":""},{"$f":"IFERROR(IF(INDEX('SR_Cash Reconciliation_2E'!H$9:H$270,MATCH($D86,'SR_Cash Reconciliation_2E'!$B$9:$B$270,0))=\"\",\"\",INDEX('SR_Cash Reconciliation_2E'!H$9:H$270,MATCH($D86,'SR_Cash Reconciliation_2E'!$B$9:$B$270,0))),\"\")","v":""},{"$f":"IFERROR(IF(INDEX('SR_Cash Reconciliation_2E'!I$9:I$270,MATCH($D86,'SR_Cash Reconciliation_2E'!$B$9:$B$270,0))=\"\",\"\",INDEX('SR_Cash Reconciliation_2E'!I$9:I$270,MATCH($D86,'SR_Cash Reconciliation_2E'!$B$9:$B$270,0))),\"\")","v":""},{"$f":"IFERROR(IF(INDEX('SR_Cash Reconciliation_2E'!K$9:K$270,MATCH($D86,'SR_Cash Reconciliation_2E'!$B$9:$B$270,0))=\"\",\"\",INDEX('SR_Cash Reconciliation_2E'!K$9:K$270,MATCH($D86,'SR_Cash Reconciliation_2E'!$B$9:$B$270,0))),\"\")","v":""},{"$f":"\"\"","v":""},{"$f":"IFERROR(IF(INDEX('SR_Cash Reconciliation_2E'!N$9:N$270,MATCH($D86,'SR_Cash Reconciliation_2E'!$B$9:$B$270,0))=\"\",\"\",INDEX('SR_Cash Reconciliation_2E'!N$9:N$270,MATCH($D86,'SR_Cash Reconciliation_2E'!$B$9:$B$270,0))),\"\")","v":""}]
[null,null,42,"ID42",{"$f":"IFERROR(IF(INDEX('SR_Cash Reconciliation_2E'!C$9:C$270,MATCH($D87,'SR_Cash Reconciliation_2E'!$B$9:$B$270,0))=\"\",\"\",INDEX('SR_Cash Reconciliation_2E'!C$9:C$270,MATCH($D87,'SR_Cash Reconciliation_2E'!$B$9:$B$270,0))),\"\")","v":""},{"$f":"IFERROR(IF(INDEX('SR_Cash Reconciliation_2E'!D$9:D$270,MATCH($D87,'SR_Cash Reconciliation_2E'!$B$9:$B$270,0))=\"\",\"\",INDEX('SR_Cash Reconciliation_2E'!D$9:D$270,MATCH($D87,'SR_Cash Reconciliation_2E'!$B$9:$B$270,0))),\"\")","v":""},{"$f":"IFERROR(IF(INDEX('SR_Cash Reconciliation_2E'!E$9:E$270,MATCH($D87,'SR_Cash Reconciliation_2E'!$B$9:$B$270,0))=\"\",\"\",INDEX('SR_Cash Reconciliation_2E'!E$9:E$270,MATCH($D87,'SR_Cash Reconciliation_2E'!$B$9:$B$270,0))),\"\")","v":""},{"$f":"IFERROR(IF(INDEX('SR_Cash Reconciliation_2E'!F$9:F$270,MATCH($D87,'SR_Cash Reconciliation_2E'!$B$9:$B$270,0))=\"\",\"\",INDEX('SR_Cash Reconciliation_2E'!F$9:F$270,MATCH($D87,'SR_Cash Reconciliation_2E'!$B$9:$B$270,0))),\"\")","v":""},{"$f":"IFERROR(IF(INDEX('SR_Cash Reconciliation_2E'!G$9:G$270,MATCH($D87,'SR_Cash Reconciliation_2E'!$B$9:$B$270,0))=\"\",\"\",INDEX('SR_Cash Reconciliation_2E'!G$9:G$270,MATCH($D87,'SR_Cash Reconciliation_2E'!$B$9:$B$270,0))),\"\")","v":""},{"$f":"IFERROR(IF(INDEX('SR_Cash Reconciliation_2E'!H$9:H$270,MATCH($D87,'SR_Cash Reconciliation_2E'!$B$9:$B$270,0))=\"\",\"\",INDEX('SR_Cash Reconciliation_2E'!H$9:H$270,MATCH($D87,'SR_Cash Reconciliation_2E'!$B$9:$B$270,0))),\"\")","v":""},{"$f":"IFERROR(IF(INDEX('SR_Cash Reconciliation_2E'!I$9:I$270,MATCH($D87,'SR_Cash Reconciliation_2E'!$B$9:$B$270,0))=\"\",\"\",INDEX('SR_Cash Reconciliation_2E'!I$9:I$270,MATCH($D87,'SR_Cash Reconciliation_2E'!$B$9:$B$270,0))),\"\")","v":""},{"$f":"IFERROR(IF(INDEX('SR_Cash Reconciliation_2E'!K$9:K$270,MATCH($D87,'SR_Cash Reconciliation_2E'!$B$9:$B$270,0))=\"\",\"\",INDEX('SR_Cash Reconciliation_2E'!K$9:K$270,MATCH($D87,'SR_Cash Reconciliation_2E'!$B$9:$B$270,0))),\"\")","v":""},{"$f":"\"\"","v":""},{"$f":"IFERROR(IF(INDEX('SR_Cash Reconciliation_2E'!N$9:N$270,MATCH($D87,'SR_Cash Reconciliation_2E'!$B$9:$B$270,0))=\"\",\"\",INDEX('SR_Cash Reconciliation_2E'!N$9:N$270,MATCH($D87,'SR_Cash Reconciliation_2E'!$B$9:$B$270,0))),\"\")","v":""}]
[null,null,{"$error":"#VALUE!"},{"$error":"#VALUE!"},{"$f":"IFERROR(IF(INDEX('SR_Cash Reconciliation_2E'!C$9:C$270,MATCH($D88,'SR_Cash Reconciliation_2E'!$B$9:$B$270,0))=\"\",\"\",INDEX('SR_Cash Reconciliation_2E'!C$9:C$270,MATCH($D88,'SR_Cash Reconciliation_2E'!$B$9:$B$270,0))),\"\")","v":""},{"$f":"IFERROR(IF(INDEX('SR_Cash Reconciliation_2E'!D$9:D$270,MATCH($D88,'SR_Cash Reconciliation_2E'!$B$9:$B$270,0))=\"\",\"\",INDEX('SR_Cash Reconciliation_2E'!D$9:D$270,MATCH($D88,'SR_Cash Reconciliation_2E'!$B$9:$B$270,0))),\"\")","v":""},{"$f":"IFERROR(IF(INDEX('SR_Cash Reconciliation_2E'!E$9:E$270,MATCH($D88,'SR_Cash Reconciliation_2E'!$B$9:$B$270,0))=\"\",\"\",INDEX('SR_Cash Reconciliation_2E'!E$9:E$270,MATCH($D88,'SR_Cash Reconciliation_2E'!$B$9:$B$270,0))),\"\")","v":""},{"$f":"IFERROR(IF(INDEX('SR_Cash Reconciliation_2E'!F$9:F$270,MATCH($D88,'SR_Cash Reconciliation_2E'!$B$9:$B$270,0))=\"\",\"\",INDEX('SR_Cash Reconciliation_2E'!F$9:F$270,MATCH($D88,'SR_Cash Reconciliation_2E'!$B$9:$B$270,0))),\"\")","v":""},{"$f":"IFERROR(IF(INDEX('SR_Cash Reconciliation_2E'!G$9:G$270,MATCH($D88,'SR_Cash Reconciliation_2E'!$B$9:$B$270,0))=\"\",\"\",INDEX('SR_Cash Reconciliation_2E'!G$9:G$270,MATCH($D88,'SR_Cash Reconciliation_2E'!$B$9:$B$270,0))),\"\")","v":""},{"$f":"IFERROR(IF(INDEX('SR_Cash Reconciliation_2E'!H$9:H$270,MATCH($D88,'SR_Cash Reconciliation_2E'!$B$9:$B$270,0))=\"\",\"\",INDEX('SR_Cash Reconciliation_2E'!H$9:H$270,MATCH($D88,'SR_Cash Reconciliation_2E'!$B$9:$B$270,0))),\"\")","v":""},{"$f":"IFERROR(IF(INDEX('SR_Cash Reconciliation_2E'!I$9:I$270,MATCH($D88,'SR_Cash Reconciliation_2E'!$B$9:$B$270,0))=\"\",\"\",INDEX('SR_Cash Reconciliation_2E'!I$9:I$270,MATCH($D88,'SR_Cash Reconciliation_2E'!$B$9:$B$270,0))),\"\")","v":""},{"$f":"IFERROR(IF(INDEX('SR_Cash Reconciliation_2E'!K$9:K$270,MATCH($D88,'SR_Cash Reconciliation_2E'!$B$9:$B$270,0))=\"\",\"\",INDEX('SR_Cash Reconciliation_2E'!K$9:K$270,MATCH($D88,'SR_Cash Reconciliation_2E'!$B$9:$B$270,0))),\"\")","v":""},{"$f":"\"\"","v":""},{"$f":"IFERROR(IF(INDEX('SR_Cash Reconciliation_2E'!N$9:N$270,MATCH($D88,'SR_Cash Reconciliation_2E'!$B$9:$B$270,0))=\"\",\"\",INDEX('SR_Cash Reconciliation_2E'!N$9:N$270,MATCH($D88,'SR_Cash Reconciliation_2E'!$B$9:$B$270,0))),\"\")","v":""}]
[null,null,43,"ID43",{"$f":"IFERROR(IF(INDEX('SR_Cash Reconciliation_2E'!C$9:C$270,MATCH($D89,'SR_Cash Reconciliation_2E'!$B$9:$B$270,0))=\"\",\"\",INDEX('SR_Cash Reconciliation_2E'!C$9:C$270,MATCH($D89,'SR_Cash Reconciliation_2E'!$B$9:$B$270,0))),\"\")","v":""},{"$f":"IFERROR(IF(INDEX('SR_Cash Reconciliation_2E'!D$9:D$270,MATCH($D89,'SR_Cash Reconciliation_2E'!$B$9:$B$270,0))=\"\",\"\",INDEX('SR_Cash Reconciliation_2E'!D$9:D$270,MATCH($D89,'SR_Cash Reconciliation_2E'!$B$9:$B$270,0))),\"\")","v":""},{"$f":"IFERROR(IF(INDEX('SR_Cash Reconciliation_2E'!E$9:E$270,MATCH($D89,'SR_Cash Reconciliation_2E'!$B$9:$B$270,0))=\"\",\"\",INDEX('SR_Cash Reconciliation_2E'!E$9:E$270,MATCH($D89,'SR_Cash Reconciliation_2E'!$B$9:$B$270,0))),\"\")","v":""},{"$f":"IFERROR(IF(INDEX('SR_Cash Reconciliation_2E'!F$9:F$270,MATCH($D89,'SR_Cash Reconciliation_2E'!$B$9:$B$270,0))=\"\",\"\",INDEX('SR_Cash Reconciliation_2E'!F$9:F$270,MATCH($D89,'SR_Cash Reconciliation_2E'!$B$9:$B$270,0))),\"\")","v":""},{"$f":"IFERROR(IF(INDEX('SR_Cash Reconciliation_2E'!G$9:G$270,MATCH($D89,'SR_Cash Reconciliation_2E'!$B$9:$B$270,0))=\"\",\"\",INDEX('SR_Cash Reconciliation_2E'!G$9:G$270,MATCH($D89,'SR_Cash Reconciliation_2E'!$B$9:$B$270,0))),\"\")","v":""},{"$f":"IFERROR(IF(INDEX('SR_Cash Reconciliation_2E'!H$9:H$270,MATCH($D89,'SR_Cash Reconciliation_2E'!$B$9:$B$270,0))=\"\",\"\",INDEX('SR_Cash Reconciliation_2E'!H$9:H$270,MATCH($D89,'SR_Cash Reconciliation_2E'!$B$9:$B$270,0))),\"\")","v":""},{"$f":"IFERROR(IF(INDEX('SR_Cash Reconciliation_2E'!I$9:I$270,MATCH($D89,'SR_Cash Reconciliation_2E'!$B$9:$B$270,0))=\"\",\"\",INDEX('SR_Cash Reconciliation_2E'!I$9:I$270,MATCH($D89,'SR_Cash Reconciliation_2E'!$B$9:$B$270,0))),\"\")","v":""},{"$f":"IFERROR(IF(INDEX('SR_Cash Reconciliation_2E'!K$9:K$270,MATCH($D89,'SR_Cash Reconciliation_2E'!$B$9:$B$270,0))=\"\",\"\",INDEX('SR_Cash Reconciliation_2E'!K$9:K$270,MATCH($D89,'SR_Cash Reconciliation_2E'!$B$9:$B$270,0))),\"\")","v":""},{"$f":"\"\"","v":""},{"$f":"IFERROR(IF(INDEX('SR_Cash Reconciliation_2E'!N$9:N$270,MATCH($D89,'SR_Cash Reconciliation_2E'!$B$9:$B$270,0))=\"\",\"\",INDEX('SR_Cash Reconciliation_2E'!N$9:N$270,MATCH($D89,'SR_Cash Reconciliation_2E'!$B$9:$B$270,0))),\"\")","v":""}]
[null,null,{"$error":"#VALUE!"},{"$error":"#VALUE!"},{"$f":"IFERROR(IF(INDEX('SR_Cash Reconciliation_2E'!C$9:C$270,MATCH($D90,'SR_Cash Reconciliation_2E'!$B$9:$B$270,0))=\"\",\"\",INDEX('SR_Cash Reconciliation_2E'!C$9:C$270,MATCH($D90,'SR_Cash Reconciliation_2E'!$B$9:$B$270,0))),\"\")","v":""},{"$f":"IFERROR(IF(INDEX('SR_Cash Reconciliation_2E'!D$9:D$270,MATCH($D90,'SR_Cash Reconciliation_2E'!$B$9:$B$270,0))=\"\",\"\",INDEX('SR_Cash Reconciliation_2E'!D$9:D$270,MATCH($D90,'SR_Cash Reconciliation_2E'!$B$9:$B$270,0))),\"\")","v":""},{"$f":"IFERROR(IF(INDEX('SR_Cash Reconciliation_2E'!E$9:E$270,MATCH($D90,'SR_Cash Reconciliation_2E'!$B$9:$B$270,0))=\"\",\"\",INDEX('SR_Cash Reconciliation_2E'!E$9:E$270,MATCH($D90,'SR_Cash Reconciliation_2E'!$B$9:$B$270,0))),\"\")","v":""},{"$f":"IFERROR(IF(INDEX('SR_Cash Reconciliation_2E'!F$9:F$270,MATCH($D90,'SR_Cash Reconciliation_2E'!$B$9:$B$270,0))=\"\",\"\",INDEX('SR_Cash Reconciliation_2E'!F$9:F$270,MATCH($D90,'SR_Cash Reconciliation_2E'!$B$9:$B$270,0))),\"\")","v":""},{"$f":"IFERROR(IF(INDEX('SR_Cash Reconciliation_2E'!G$9:G$270,MATCH($D90,'SR_Cash Reconciliation_2E'!$B$9:$B$270,0))=\"\",\"\",INDEX('SR_Cash Reconciliation_2E'!G$9:G$270,MATCH($D90,'SR_Cash Reconciliation_2E'!$B$9:$B$270,0))),\"\")","v":""},{"$f":"IFERROR(IF(INDEX('SR_Cash Reconciliation_2E'!H$9:H$270,MATCH($D90,'SR_Cash Reconciliation_2E'!$B$9:$B$270,0))=\"\",\"\",INDEX('SR_Cash Reconciliation_2E'!H$9:H$270,MATCH($D90,'SR_Cash Reconciliation_2E'!$B$9:$B$270,0))),\"\")","v":""},{"$f":"IFERROR(IF(INDEX('SR_Cash Reconciliation_2E'!I$9:I$270,MATCH($D90,'SR_Cash Reconciliation_2E'!$B$9:$B$270,0))=\"\",\"\",INDEX('SR_Cash Reconciliation_2E'!I$9:I$270,MATCH($D90,'SR_Cash Reconciliation_2E'!$B$9:$B$270,0))),\"\")","v":""},{"$f":"IFERROR(IF(INDEX('SR_Cash Reconciliation_2E'!K$9:K$270,MATCH($D90,'SR_Cash Reconciliation_2E'!$B$9:$B$270,0))=\"\",\"\",INDEX('SR_Cash Reconciliation_2E'!K$9:K$270,MATCH($D90,'SR_Cash Reconciliation_2E'!$B$9:$B$270,0))),\"\")","v":""},{"$f":"\"\"","v":""},{"$f":"IFERROR(IF(INDEX('SR_Cash Reconciliation_2E'!N$9:N$270,MATCH($D90,'SR_Cash Reconciliation_2E'!$B$9:$B$270,0))=\"\",\"\",INDEX('SR_Cash Reconciliation_2E'!N$9:N$270,MATCH($D90,'SR_Cash Reconciliation_2E'!$B$9:$B$270,0))),\"\")","v":""}]
[null,null,44,"ID44",{"$f":"IFERROR(IF(INDEX('SR_Cash Reconciliation_2E'!C$9:C$270,MATCH($D91,'SR_Cash Reconciliation_2E'!$B$9:$B$270,0))=\"\",\"\",INDEX('SR_Cash Reconciliation_2E'!C$9:C$270,MATCH($D91,'SR_Cash Reconciliation_2E'!$B$9:$B$270,0))),\"\")","v":""},{"$f":"IFERROR(IF(INDEX('SR_Cash Reconciliation_2E'!D$9:D$270,MATCH($D91,'SR_Cash Reconciliation_2E'!$B$9:$B$270,0))=\"\",\"\",INDEX('SR_Cash Reconciliation_2E'!D$9:D$270,MATCH($D91,'SR_Cash Reconciliation_2E'!$B$9:$B$270,0))),\"\")","v":""},{"$f":"IFERROR(IF(INDEX('SR_Cash Reconciliation_2E'!E$9:E$270,MATCH($D91,'SR_Cash Reconciliation_2E'!$B$9:$B$270,0))=\"\",\"\",INDEX('SR_Cash Reconciliation_2E'!E$9:E$270,MATCH($D91,'SR_Cash Reconciliation_2E'!$B$9:$B$270,0))),\"\")","v":""},{"$f":"IFERROR(IF(INDEX('SR_Cash Reconciliation_2E'!F$9:F$270,MATCH($D91,'SR_Cash Reconciliation_2E'!$B$9:$B$270,0))=\"\",\"\",INDEX('SR_Cash Reconciliation_2E'!F$9:F$270,MATCH($D91,'SR_Cash Reconciliation_2E'!$B$9:$B$270,0))),\"\")","v":""},{"$f":"IFERROR(IF(INDEX('SR_Cash Reconciliation_2E'!G$9:G$270,MATCH($D91,'SR_Cash Reconciliation_2E'!$B$9:$B$270,0))=\"\",\"\",INDEX('SR_Cash Reconciliation_2E'!G$9:G$270,MATCH($D91,'SR_Cash Reconciliation_2E'!$B$9:$B$270,0))),\"\")","v":""},{"$f":"IFERROR(IF(INDEX('SR_Cash Reconciliation_2E'!H$9:H$270,MATCH($D91,'SR_Cash Reconciliation_2E'!$B$9:$B$270,0))=\"\",\"\",INDEX('SR_Cash Reconciliation_2E'!H$9:H$270,MATCH($D91,'SR_Cash Reconciliation_2E'!$B$9:$B$270,0))),\"\")","v":""},{"$f":"IFERROR(IF(INDEX('SR_Cash Reconciliation_2E'!I$9:I$270,MATCH($D91,'SR_Cash Reconciliation_2E'!$B$9:$B$270,0))=\"\",\"\",INDEX('SR_Cash Reconciliation_2E'!I$9:I$270,MATCH($D91,'SR_Cash Reconciliation_2E'!$B$9:$B$270,0))),\"\")","v":""},{"$f":"IFERROR(IF(INDEX('SR_Cash Reconciliation_2E'!K$9:K$270,MATCH($D91,'SR_Cash Reconciliation_2E'!$B$9:$B$270,0))=\"\",\"\",INDEX('SR_Cash Reconciliation_2E'!K$9:K$270,MATCH($D91,'SR_Cash Reconciliation_2E'!$B$9:$B$270,0))),\"\")","v":""},{"$f":"\"\"","v":""},{"$f":"IFERROR(IF(INDEX('SR_Cash Reconciliation_2E'!N$9:N$270,MATCH($D91,'SR_Cash Reconciliation_2E'!$B$9:$B$270,0))=\"\",\"\",INDEX('SR_Cash Reconciliation_2E'!N$9:N$270,MATCH($D91,'SR_Cash Reconciliation_2E'!$B$9:$B$270,0))),\"\")","v":""}]
[null,null,{"$error":"#VALUE!"},{"$error":"#VALUE!"},{"$f":"IFERROR(IF(INDEX('SR_Cash Reconciliation_2E'!C$9:C$270,MATCH($D92,'SR_Cash Reconciliation_2E'!$B$9:$B$270,0))=\"\",\"\",INDEX('SR_Cash Reconciliation_2E'!C$9:C$270,MATCH($D92,'SR_Cash Reconciliation_2E'!$B$9:$B$270,0))),\"\")","v":""},{"$f":"IFERROR(IF(INDEX('SR_Cash Reconciliation_2E'!D$9:D$270,MATCH($D92,'SR_Cash Reconciliation_2E'!$B$9:$B$270,0))=\"\",\"\",INDEX('SR_Cash Reconciliation_2E'!D$9:D$270,MATCH($D92,'SR_Cash Reconciliation_2E'!$B$9:$B$270,0))),\"\")","v":""},{"$f":"IFERROR(IF(INDEX('SR_Cash Reconciliation_2E'!E$9:E$270,MATCH($D92,'SR_Cash Reconciliation_2E'!$B$9:$B$270,0))=\"\",\"\",INDEX('SR_Cash Reconciliation_2E'!E$9:E$270,MATCH($D92,'SR_Cash Reconciliation_2E'!$B$9:$B$270,0))),\"\")","v":""},{"$f":"IFERROR(IF(INDEX('SR_Cash Reconciliation_2E'!F$9:F$270,MATCH($D92,'SR_Cash Reconciliation_2E'!$B$9:$B$270,0))=\"\",\"\",INDEX('SR_Cash Reconciliation_2E'!F$9:F$270,MATCH($D92,'SR_Cash Reconciliation_2E'!$B$9:$B$270,0))),\"\")","v":""},{"$f":"IFERROR(IF(INDEX('SR_Cash Reconciliation_2E'!G$9:G$270,MATCH($D92,'SR_Cash Reconciliation_2E'!$B$9:$B$270,0))=\"\",\"\",INDEX('SR_Cash Reconciliation_2E'!G$9:G$270,MATCH($D92,'SR_Cash Reconciliation_2E'!$B$9:$B$270,0))),\"\")","v":""},{"$f":"IFERROR(IF(INDEX('SR_Cash Reconciliation_2E'!H$9:H$270,MATCH($D92,'SR_Cash Reconciliation_2E'!$B$9:$B$270,0))=\"\",\"\",INDEX('SR_Cash Reconciliation_2E'!H$9:H$270,MATCH($D92,'SR_Cash Reconciliation_2E'!$B$9:$B$270,0))),\"\")","v":""},{"$f":"IFERROR(IF(INDEX('SR_Cash Reconciliation_2E'!I$9:I$270,MATCH($D92,'SR_Cash Reconciliation_2E'!$B$9:$B$270,0))=\"\",\"\",INDEX('SR_Cash Reconciliation_2E'!I$9:I$270,MATCH($D92,'SR_Cash Reconciliation_2E'!$B$9:$B$270,0))),\"\")","v":""},{"$f":"IFERROR(IF(INDEX('SR_Cash Reconciliation_2E'!K$9:K$270,MATCH($D92,'SR_Cash Reconciliation_2E'!$B$9:$B$270,0))=\"\",\"\",INDEX('SR_Cash Reconciliation_2E'!K$9:K$270,MATCH($D92,'SR_Cash Reconciliation_2E'!$B$9:$B$270,0))),\"\")","v":""},{"$f":"\"\"","v":""},{"$f":"IFERROR(IF(INDEX('SR_Cash Reconciliation_2E'!N$9:N$270,MATCH($D92,'SR_Cash Reconciliation_2E'!$B$9:$B$270,0))=\"\",\"\",INDEX('SR_Cash Reconciliation_2E'!N$9:N$270,MATCH($D92,'SR_Cash Reconciliation_2E'!$B$9:$B$270,0))),\"\")","v":""}]
[null,null,45,"ID45",{"$f":"IFERROR(IF(INDEX('SR_Cash Reconciliation_2E'!C$9:C$270,MATCH($D93,'SR_Cash Reconciliation_2E'!$B$9:$B$270,0))=\"\",\"\",INDEX('SR_Cash Reconciliation_2E'!C$9:C$270,MATCH($D93,'SR_Cash Reconciliation_2E'!$B$9:$B$270,0))),\"\")","v":""},{"$f":"IFERROR(IF(INDEX('SR_Cash Reconciliation_2E'!D$9:D$270,MATCH($D93,'SR_Cash Reconciliation_2E'!$B$9:$B$270,0))=\"\",\"\",INDEX('SR_Cash Reconciliation_2E'!D$9:D$270,MATCH($D93,'SR_Cash Reconciliation_2E'!$B$9:$B$270,0))),\"\")","v":""},{"$f":"IFERROR(IF(INDEX('SR_Cash Reconciliation_2E'!E$9:E$270,MATCH($D93,'SR_Cash Reconciliation_2E'!$B$9:$B$270,0))=\"\",\"\",INDEX('SR_Cash Reconciliation_2E'!E$9:E$270,MATCH($D93,'SR_Cash Reconciliation_2E'!$B$9:$B$270,0))),\"\")","v":""},{"$f":"IFERROR(IF(INDEX('SR_Cash Reconciliation_2E'!F$9:F$270,MATCH($D93,'SR_Cash Reconciliation_2E'!$B$9:$B$270,0))=\"\",\"\",INDEX('SR_Cash Reconciliation_2E'!F$9:F$270,MATCH($D93,'SR_Cash Reconciliation_2E'!$B$9:$B$270,0))),\"\")","v":""},{"$f":"IFERROR(IF(INDEX('SR_Cash Reconciliation_2E'!G$9:G$270,MATCH($D93,'SR_Cash Reconciliation_2E'!$B$9:$B$270,0))=\"\",\"\",INDEX('SR_Cash Reconciliation_2E'!G$9:G$270,MATCH($D93,'SR_Cash Reconciliation_2E'!$B$9:$B$270,0))),\"\")","v":""},{"$f":"IFERROR(IF(INDEX('SR_Cash Reconciliation_2E'!H$9:H$270,MATCH($D93,'SR_Cash Reconciliation_2E'!$B$9:$B$270,0))=\"\",\"\",INDEX('SR_Cash Reconciliation_2E'!H$9:H$270,MATCH($D93,'SR_Cash Reconciliation_2E'!$B$9:$B$270,0))),\"\")","v":""},{"$f":"IFERROR(IF(INDEX('SR_Cash Reconciliation_2E'!I$9:I$270,MATCH($D93,'SR_Cash Reconciliation_2E'!$B$9:$B$270,0))=\"\",\"\",INDEX('SR_Cash Reconciliation_2E'!I$9:I$270,MATCH($D93,'SR_Cash Reconciliation_2E'!$B$9:$B$270,0))),\"\")","v":""},{"$f":"IFERROR(IF(INDEX('SR_Cash Reconciliation_2E'!K$9:K$270,MATCH($D93,'SR_Cash Reconciliation_2E'!$B$9:$B$270,0))=\"\",\"\",INDEX('SR_Cash Reconciliation_2E'!K$9:K$270,MATCH($D93,'SR_Cash Reconciliation_2E'!$B$9:$B$270,0))),\"\")","v":""},{"$f":"\"\"","v":""},{"$f":"IFERROR(IF(INDEX('SR_Cash Reconciliation_2E'!N$9:N$270,MATCH($D93,'SR_Cash Reconciliation_2E'!$B$9:$B$270,0))=\"\",\"\",INDEX('SR_Cash Reconciliation_2E'!N$9:N$270,MATCH($D93,'SR_Cash Reconciliation_2E'!$B$9:$B$270,0))),\"\")","v":""}]
[null,null,{"$error":"#VALUE!"},{"$error":"#VALUE!"},{"$f":"IFERROR(IF(INDEX('SR_Cash Reconciliation_2E'!C$9:C$270,MATCH($D94,'SR_Cash Reconciliation_2E'!$B$9:$B$270,0))=\"\",\"\",INDEX('SR_Cash Reconciliation_2E'!C$9:C$270,MATCH($D94,'SR_Cash Reconciliation_2E'!$B$9:$B$270,0))),\"\")","v":""},{"$f":"IFERROR(IF(INDEX('SR_Cash Reconciliation_2E'!D$9:D$270,MATCH($D94,'SR_Cash Reconciliation_2E'!$B$9:$B$270,0))=\"\",\"\",INDEX('SR_Cash Reconciliation_2E'!D$9:D$270,MATCH($D94,'SR_Cash Reconciliation_2E'!$B$9:$B$270,0))),\"\")","v":""},{"$f":"IFERROR(IF(INDEX('SR_Cash Reconciliation_2E'!E$9:E$270,MATCH($D94,'SR_Cash Reconciliation_2E'!$B$9:$B$270,0))=\"\",\"\",INDEX('SR_Cash Reconciliation_2E'!E$9:E$270,MATCH($D94,'SR_Cash Reconciliation_2E'!$B$9:$B$270,0))),\"\")","v":""},{"$f":"IFERROR(IF(INDEX('SR_Cash Reconciliation_2E'!F$9:F$270,MATCH($D94,'SR_Cash Reconciliation_2E'!$B$9:$B$270,0))=\"\",\"\",INDEX('SR_Cash Reconciliation_2E'!F$9:F$270,MATCH($D94,'SR_Cash Reconciliation_2E'!$B$9:$B$270,0))),\"\")","v":""},{"$f":"IFERROR(IF(INDEX('SR_Cash Reconciliation_2E'!G$9:G$270,MATCH($D94,'SR_Cash Reconciliation_2E'!$B$9:$B$270,0))=\"\",\"\",INDEX('SR_Cash Reconciliation_2E'!G$9:G$270,MATCH($D94,'SR_Cash Reconciliation_2E'!$B$9:$B$270,0))),\"\")","v":""},{"$f":"IFERROR(IF(INDEX('SR_Cash Reconciliation_2E'!H$9:H$270,MATCH($D94,'SR_Cash Reconciliation_2E'!$B$9:$B$270,0))=\"\",\"\",INDEX('SR_Cash Reconciliation_2E'!H$9:H$270,MATCH($D94,'SR_Cash Reconciliation_2E'!$B$9:$B$270,0))),\"\")","v":""},{"$f":"IFERROR(IF(INDEX('SR_Cash Reconciliation_2E'!I$9:I$270,MATCH($D94,'SR_Cash Reconciliation_2E'!$B$9:$B$270,0))=\"\",\"\",INDEX('SR_Cash Reconciliation_2E'!I$9:I$270,MATCH($D94,'SR_Cash Reconciliation_2E'!$B$9:$B$270,0))),\"\")","v":""},{"$f":"IFERROR(IF(INDEX('SR_Cash Reconciliation_2E'!K$9:K$270,MATCH($D94,'SR_Cash Reconciliation_2E'!$B$9:$B$270,0))=\"\",\"\",INDEX('SR_Cash Reconciliation_2E'!K$9:K$270,MATCH($D94,'SR_Cash Reconciliation_2E'!$B$9:$B$270,0))),\"\")","v":""},{"$f":"\"\"","v":""},{"$f":"IFERROR(IF(INDEX('SR_Cash Reconciliation_2E'!N$9:N$270,MATCH($D94,'SR_Cash Reconciliation_2E'!$B$9:$B$270,0))=\"\",\"\",INDEX('SR_Cash Reconciliation_2E'!N$9:N$270,MATCH($D94,'SR_Cash Reconciliation_2E'!$B$9:$B$270,0))),\"\")","v":""}]
[null,null,46,"ID46",{"$f":"IFERROR(IF(INDEX('SR_Cash Reconciliation_2E'!C$9:C$270,MATCH($D95,'SR_Cash Reconciliation_2E'!$B$9:$B$270,0))=\"\",\"\",INDEX('SR_Cash Reconciliation_2E'!C$9:C$270,MATCH($D95,'SR_Cash Reconciliation_2E'!$B$9:$B$270,0))),\"\")","v":""},{"$f":"IFERROR(IF(INDEX('SR_Cash Reconciliation_2E'!D$9:D$270,MATCH($D95,'SR_Cash Reconciliation_2E'!$B$9:$B$270,0))=\"\",\"\",INDEX('SR_Cash Reconciliation_2E'!D$9:D$270,MATCH($D95,'SR_Cash Reconciliation_2E'!$B$9:$B$270,0))),\"\")","v":""},{"$f":"IFERROR(IF(INDEX('SR_Cash Reconciliation_2E'!E$9:E$270,MATCH($D95,'SR_Cash Reconciliation_2E'!$B$9:$B$270,0))=\"\",\"\",INDEX('SR_Cash Reconciliation_2E'!E$9:E$270,MATCH($D95,'SR_Cash Reconciliation_2E'!$B$9:$B$270,0))),\"\")","v":""},{"$f":"IFERROR(IF(INDEX('SR_Cash Reconciliation_2E'!F$9:F$270,MATCH($D95,'SR_Cash Reconciliation_2E'!$B$9:$B$270,0))=\"\",\"\",INDEX('SR_Cash Reconciliation_2E'!F$9:F$270,MATCH($D95,'SR_Cash Reconciliation_2E'!$B$9:$B$270,0))),\"\")","v":""},{"$f":"IFERROR(IF(INDEX('SR_Cash Reconciliation_2E'!G$9:G$270,MATCH($D95,'SR_Cash Reconciliation_2E'!$B$9:$B$270,0))=\"\",\"\",INDEX('SR_Cash Reconciliation_2E'!G$9:G$270,MATCH($D95,'SR_Cash Reconciliation_2E'!$B$9:$B$270,0))),\"\")","v":""},{"$f":"IFERROR(IF(INDEX('SR_Cash Reconciliation_2E'!H$9:H$270,MATCH($D95,'SR_Cash Reconciliation_2E'!$B$9:$B$270,0))=\"\",\"\",INDEX('SR_Cash Reconciliation_2E'!H$9:H$270,MATCH($D95,'SR_Cash Reconciliation_2E'!$B$9:$B$270,0))),\"\")","v":""},{"$f":"IFERROR(IF(INDEX('SR_Cash Reconciliation_2E'!I$9:I$270,MATCH($D95,'SR_Cash Reconciliation_2E'!$B$9:$B$270,0))=\"\",\"\",INDEX('SR_Cash Reconciliation_2E'!I$9:I$270,MATCH($D95,'SR_Cash Reconciliation_2E'!$B$9:$B$270,0))),\"\")","v":""},{"$f":"IFERROR(IF(INDEX('SR_Cash Reconciliation_2E'!K$9:K$270,MATCH($D95,'SR_Cash Reconciliation_2E'!$B$9:$B$270,0))=\"\",\"\",INDEX('SR_Cash Reconciliation_2E'!K$9:K$270,MATCH($D95,'SR_Cash Reconciliation_2E'!$B$9:$B$270,0))),\"\")","v":""},{"$f":"\"\"","v":""},{"$f":"IFERROR(IF(INDEX('SR_Cash Reconciliation_2E'!N$9:N$270,MATCH($D95,'SR_Cash Reconciliation_2E'!$B$9:$B$270,0))=\"\",\"\",INDEX('SR_Cash Reconciliation_2E'!N$9:N$270,MATCH($D95,'SR_Cash Reconciliation_2E'!$B$9:$B$270,0))),\"\")","v":""}]
[null,null,{"$error":"#VALUE!"},{"$error":"#VALUE!"},{"$f":"IFERROR(IF(INDEX('SR_Cash Reconciliation_2E'!C$9:C$270,MATCH($D96,'SR_Cash Reconciliation_2E'!$B$9:$B$270,0))=\"\",\"\",INDEX('SR_Cash Reconciliation_2E'!C$9:C$270,MATCH($D96,'SR_Cash Reconciliation_2E'!$B$9:$B$270,0))),\"\")","v":""},{"$f":"IFERROR(IF(INDEX('SR_Cash Reconciliation_2E'!D$9:D$270,MATCH($D96,'SR_Cash Reconciliation_2E'!$B$9:$B$270,0))=\"\",\"\",INDEX('SR_Cash Reconciliation_2E'!D$9:D$270,MATCH($D96,'SR_Cash Reconciliation_2E'!$B$9:$B$270,0))),\"\")","v":""},{"$f":"IFERROR(IF(INDEX('SR_Cash Reconciliation_2E'!E$9:E$270,MATCH($D96,'SR_Cash Reconciliation_2E'!$B$9:$B$270,0))=\"\",\"\",INDEX('SR_Cash Reconciliation_2E'!E$9:E$270,MATCH($D96,'SR_Cash Reconciliation_2E'!$B$9:$B$270,0))),\"\")","v":""},{"$f":"IFERROR(IF(INDEX('SR_Cash Reconciliation_2E'!F$9:F$270,MATCH($D96,'SR_Cash Reconciliation_2E'!$B$9:$B$270,0))=\"\",\"\",INDEX('SR_Cash Reconciliation_2E'!F$9:F$270,MATCH($D96,'SR_Cash Reconciliation_2E'!$B$9:$B$270,0))),\"\")","v":""},{"$f":"IFERROR(IF(INDEX('SR_Cash Reconciliation_2E'!G$9:G$270,MATCH($D96,'SR_Cash Reconciliation_2E'!$B$9:$B$270,0))=\"\",\"\",INDEX('SR_Cash Reconciliation_2E'!G$9:G$270,MATCH($D96,'SR_Cash Reconciliation_2E'!$B$9:$B$270,0))),\"\")","v":""},{"$f":"IFERROR(IF(INDEX('SR_Cash Reconciliation_2E'!H$9:H$270,MATCH($D96,'SR_Cash Reconciliation_2E'!$B$9:$B$270,0))=\"\",\"\",INDEX('SR_Cash Reconciliation_2E'!H$9:H$270,MATCH($D96,'SR_Cash Reconciliation_2E'!$B$9:$B$270,0))),\"\")","v":""},{"$f":"IFERROR(IF(INDEX('SR_Cash Reconciliation_2E'!I$9:I$270,MATCH($D96,'SR_Cash Reconciliation_2E'!$B$9:$B$270,0))=\"\",\"\",INDEX('SR_Cash Reconciliation_2E'!I$9:I$270,MATCH($D96,'SR_Cash Reconciliation_2E'!$B$9:$B$270,0))),\"\")","v":""},{"$f":"IFERROR(IF(INDEX('SR_Cash Reconciliation_2E'!K$9:K$270,MATCH($D96,'SR_Cash Reconciliation_2E'!$B$9:$B$270,0))=\"\",\"\",INDEX('SR_Cash Reconciliation_2E'!K$9:K$270,MATCH($D96,'SR_Cash Reconciliation_2E'!$B$9:$B$270,0))),\"\")","v":""},{"$f":"\"\"","v":""},{"$f":"IFERROR(IF(INDEX('SR_Cash Reconciliation_2E'!N$9:N$270,MATCH($D96,'SR_Cash Reconciliation_2E'!$B$9:$B$270,0))=\"\",\"\",INDEX('SR_Cash Reconciliation_2E'!N$9:N$270,MATCH($D96,'SR_Cash Reconciliation_2E'!$B$9:$B$270,0))),\"\")","v":""}]
[null,null,47,"ID47",{"$f":"IFERROR(IF(INDEX('SR_Cash Reconciliation_2E'!C$9:C$270,MATCH($D97,'SR_Cash Reconciliation_2E'!$B$9:$B$270,0))=\"\",\"\",INDEX('SR_Cash Reconciliation_2E'!C$9:C$270,MATCH($D97,'SR_Cash Reconciliation_2E'!$B$9:$B$270,0))),\"\")","v":""},{"$f":"IFERROR(IF(INDEX('SR_Cash Reconciliation_2E'!D$9:D$270,MATCH($D97,'SR_Cash Reconciliation_2E'!$B$9:$B$270,0))=\"\",\"\",INDEX('SR_Cash Reconciliation_2E'!D$9:D$270,MATCH($D97,'SR_Cash Reconciliation_2E'!$B$9:$B$270,0))),\"\")","v":""},{"$f":"IFERROR(IF(INDEX('SR_Cash Reconciliation_2E'!E$9:E$270,MATCH($D97,'SR_Cash Reconciliation_2E'!$B$9:$B$270,0))=\"\",\"\",INDEX('SR_Cash Reconciliation_2E'!E$9:E$270,MATCH($D97,'SR_Cash Reconciliation_2E'!$B$9:$B$270,0))),\"\")","v":""},{"$f":"IFERROR(IF(INDEX('SR_Cash Reconciliation_2E'!F$9:F$270,MATCH($D97,'SR_Cash Reconciliation_2E'!$B$9:$B$270,0))=\"\",\"\",INDEX('SR_Cash Reconciliation_2E'!F$9:F$270,MATCH($D97,'SR_Cash Reconciliation_2E'!$B$9:$B$270,0))),\"\")","v":""},{"$f":"IFERROR(IF(INDEX('SR_Cash Reconciliation_2E'!G$9:G$270,MATCH($D97,'SR_Cash Reconciliation_2E'!$B$9:$B$270,0))=\"\",\"\",INDEX('SR_Cash Reconciliation_2E'!G$9:G$270,MATCH($D97,'SR_Cash Reconciliation_2E'!$B$9:$B$270,0))),\"\")","v":""},{"$f":"IFERROR(IF(INDEX('SR_Cash Reconciliation_2E'!H$9:H$270,MATCH($D97,'SR_Cash Reconciliation_2E'!$B$9:$B$270,0))=\"\",\"\",INDEX('SR_Cash Reconciliation_2E'!H$9:H$270,MATCH($D97,'SR_Cash Reconciliation_2E'!$B$9:$B$270,0))),\"\")","v":""},{"$f":"IFERROR(IF(INDEX('SR_Cash Reconciliation_2E'!I$9:I$270,MATCH($D97,'SR_Cash Reconciliation_2E'!$B$9:$B$270,0))=\"\",\"\",INDEX('SR_Cash Reconciliation_2E'!I$9:I$270,MATCH($D97,'SR_Cash Reconciliation_2E'!$B$9:$B$270,0))),\"\")","v":""},{"$f":"IFERROR(IF(INDEX('SR_Cash Reconciliation_2E'!K$9:K$270,MATCH($D97,'SR_Cash Reconciliation_2E'!$B$9:$B$270,0))=\"\",\"\",INDEX('SR_Cash Reconciliation_2E'!K$9:K$270,MATCH($D97,'SR_Cash Reconciliation_2E'!$B$9:$B$270,0))),\"\")","v":""},{"$f":"\"\"","v":""},{"$f":"IFERROR(IF(INDEX('SR_Cash Reconciliation_2E'!N$9:N$270,MATCH($D97,'SR_Cash Reconciliation_2E'!$B$9:$B$270,0))=\"\",\"\",INDEX('SR_Cash Reconciliation_2E'!N$9:N$270,MATCH($D97,'SR_Cash Reconciliation_2E'!$B$9:$B$270,0))),\"\")","v":""}]
[null,null,{"$error":"#VALUE!"},{"$error":"#VALUE!"},{"$f":"IFERROR(IF(INDEX('SR_Cash Reconciliation_2E'!C$9:C$270,MATCH($D98,'SR_Cash Reconciliation_2E'!$B$9:$B$270,0))=\"\",\"\",INDEX('SR_Cash Reconciliation_2E'!C$9:C$270,MATCH($D98,'SR_Cash Reconciliation_2E'!$B$9:$B$270,0))),\"\")","v":""},{"$f":"IFERROR(IF(INDEX('SR_Cash Reconciliation_2E'!D$9:D$270,MATCH($D98,'SR_Cash Reconciliation_2E'!$B$9:$B$270,0))=\"\",\"\",INDEX('SR_Cash Reconciliation_2E'!D$9:D$270,MATCH($D98,'SR_Cash Reconciliation_2E'!$B$9:$B$270,0))),\"\")","v":""},{"$f":"IFERROR(IF(INDEX('SR_Cash Reconciliation_2E'!E$9:E$270,MATCH($D98,'SR_Cash Reconciliation_2E'!$B$9:$B$270,0))=\"\",\"\",INDEX('SR_Cash Reconciliation_2E'!E$9:E$270,MATCH($D98,'SR_Cash Reconciliation_2E'!$B$9:$B$270,0))),\"\")","v":""},{"$f":"IFERROR(IF(INDEX('SR_Cash Reconciliation_2E'!F$9:F$270,MATCH($D98,'SR_Cash Reconciliation_2E'!$B$9:$B$270,0))=\"\",\"\",INDEX('SR_Cash Reconciliation_2E'!F$9:F$270,MATCH($D98,'SR_Cash Reconciliation_2E'!$B$9:$B$270,0))),\"\")","v":""},{"$f":"IFERROR(IF(INDEX('SR_Cash Reconciliation_2E'!G$9:G$270,MATCH($D98,'SR_Cash Reconciliation_2E'!$B$9:$B$270,0))=\"\",\"\",INDEX('SR_Cash Reconciliation_2E'!G$9:G$270,MATCH($D98,'SR_Cash Reconciliation_2E'!$B$9:$B$270,0))),\"\")","v":""},{"$f":"IFERROR(IF(INDEX('SR_Cash Reconciliation_2E'!H$9:H$270,MATCH($D98,'SR_Cash Reconciliation_2E'!$B$9:$B$270,0))=\"\",\"\",INDEX('SR_Cash Reconciliation_2E'!H$9:H$270,MATCH($D98,'SR_Cash Reconciliation_2E'!$B$9:$B$270,0))),\"\")","v":""},{"$f":"IFERROR(IF(INDEX('SR_Cash Reconciliation_2E'!I$9:I$270,MATCH($D98,'SR_Cash Reconciliation_2E'!$B$9:$B$270,0))=\"\",\"\",INDEX('SR_Cash Reconciliation_2E'!I$9:I$270,MATCH($D98,'SR_Cash Reconciliation_2E'!$B$9:$B$270,0))),\"\")","v":""},{"$f":"IFERROR(IF(INDEX('SR_Cash Reconciliation_2E'!K$9:K$270,MATCH($D98,'SR_Cash Reconciliation_2E'!$B$9:$B$270,0))=\"\",\"\",INDEX('SR_Cash Reconciliation_2E'!K$9:K$270,MATCH($D98,'SR_Cash Reconciliation_2E'!$B$9:$B$270,0))),\"\")","v":""},{"$f":"\"\"","v":""},{"$f":"IFERROR(IF(INDEX('SR_Cash Reconciliation_2E'!N$9:N$270,MATCH($D98,'SR_Cash Reconciliation_2E'!$B$9:$B$270,0))=\"\",\"\",INDEX('SR_Cash Reconciliation_2E'!N$9:N$270,MATCH($D98,'SR_Cash Reconciliation_2E'!$B$9:$B$270,0))),\"\")","v":""}]
[null,null,48,"ID48",{"$f":"IFERROR(IF(INDEX('SR_Cash Reconciliation_2E'!C$9:C$270,MATCH($D99,'SR_Cash Reconciliation_2E'!$B$9:$B$270,0))=\"\",\"\",INDEX('SR_Cash Reconciliation_2E'!C$9:C$270,MATCH($D99,'SR_Cash Reconciliation_2E'!$B$9:$B$270,0))),\"\")","v":""},{"$f":"IFERROR(IF(INDEX('SR_Cash Reconciliation_2E'!D$9:D$270,MATCH($D99,'SR_Cash Reconciliation_2E'!$B$9:$B$270,0))=\"\",\"\",INDEX('SR_Cash Reconciliation_2E'!D$9:D$270,MATCH($D99,'SR_Cash Reconciliation_2E'!$B$9:$B$270,0))),\"\")","v":""},{"$f":"IFERROR(IF(INDEX('SR_Cash Reconciliation_2E'!E$9:E$270,MATCH($D99,'SR_Cash Reconciliation_2E'!$B$9:$B$270,0))=\"\",\"\",INDEX('SR_Cash Reconciliation_2E'!E$9:E$270,MATCH($D99,'SR_Cash Reconciliation_2E'!$B$9:$B$270,0))),\"\")","v":""},{"$f":"IFERROR(IF(INDEX('SR_Cash Reconciliation_2E'!F$9:F$270,MATCH($D99,'SR_Cash Reconciliation_2E'!$B$9:$B$270,0))=\"\",\"\",INDEX('SR_Cash Reconciliation_2E'!F$9:F$270,MATCH($D99,'SR_Cash Reconciliation_2E'!$B$9:$B$270,0))),\"\")","v":""},{"$f":"IFERROR(IF(INDEX('SR_Cash Reconciliation_2E'!G$9:G$270,MATCH($D99,'SR_Cash Reconciliation_2E'!$B$9:$B$270,0))=\"\",\"\",INDEX('SR_Cash Reconciliation_2E'!G$9:G$270,MATCH($D99,'SR_Cash Reconciliation_2E'!$B$9:$B$270,0))),\"\")","v":""},{"$f":"IFERROR(IF(INDEX('SR_Cash Reconciliation_2E'!H$9:H$270,MATCH($D99,'SR_Cash Reconciliation_2E'!$B$9:$B$270,0))=\"\",\"\",INDEX('SR_Cash Reconciliation_2E'!H$9:H$270,MATCH($D99,'SR_Cash Reconciliation_2E'!$B$9:$B$270,0))),\"\")","v":""},{"$f":"IFERROR(IF(INDEX('SR_Cash Reconciliation_2E'!I$9:I$270,MATCH($D99,'SR_Cash Reconciliation_2E'!$B$9:$B$270,0))=\"\",\"\",INDEX('SR_Cash Reconciliation_2E'!I$9:I$270,MATCH($D99,'SR_Cash Reconciliation_2E'!$B$9:$B$270,0))),\"\")","v":""},{"$f":"IFERROR(IF(INDEX('SR_Cash Reconciliation_2E'!K$9:K$270,MATCH($D99,'SR_Cash Reconciliation_2E'!$B$9:$B$270,0))=\"\",\"\",INDEX('SR_Cash Reconciliation_2E'!K$9:K$270,MATCH($D99,'SR_Cash Reconciliation_2E'!$B$9:$B$270,0))),\"\")","v":""},{"$f":"\"\"","v":""},{"$f":"IFERROR(IF(INDEX('SR_Cash Reconciliation_2E'!N$9:N$270,MATCH($D99,'SR_Cash Reconciliation_2E'!$B$9:$B$270,0))=\"\",\"\",INDEX('SR_Cash Reconciliation_2E'!N$9:N$270,MATCH($D99,'SR_Cash Reconciliation_2E'!$B$9:$B$270,0))),\"\")","v":""}]
[null,null,{"$error":"#VALUE!"},{"$error":"#VALUE!"},{"$f":"IFERROR(IF(INDEX('SR_Cash Reconciliation_2E'!C$9:C$270,MATCH($D100,'SR_Cash Reconciliation_2E'!$B$9:$B$270,0))=\"\",\"\",INDEX('SR_Cash Reconciliation_2E'!C$9:C$270,MATCH($D100,'SR_Cash Reconciliation_2E'!$B$9:$B$270,0))),\"\")","v":""},{"$f":"IFERROR(IF(INDEX('SR_Cash Reconciliation_2E'!D$9:D$270,MATCH($D100,'SR_Cash Reconciliation_2E'!$B$9:$B$270,0))=\"\",\"\",INDEX('SR_Cash Reconciliation_2E'!D$9:D$270,MATCH($D100,'SR_Cash Reconciliation_2E'!$B$9:$B$270,0))),\"\")","v":""},{"$f":"IFERROR(IF(INDEX('SR_Cash Reconciliation_2E'!E$9:E$270,MATCH($D100,'SR_Cash Reconciliation_2E'!$B$9:$B$270,0))=\"\",\"\",INDEX('SR_Cash Reconciliation_2E'!E$9:E$270,MATCH($D100,'SR_Cash Reconciliation_2E'!$B$9:$B$270,0))),\"\")","v":""},{"$f":"IFERROR(IF(INDEX('SR_Cash Reconciliation_2E'!F$9:F$270,MATCH($D100,'SR_Cash Reconciliation_2E'!$B$9:$B$270,0))=\"\",\"\",INDEX('SR_Cash Reconciliation_2E'!F$9:F$270,MATCH($D100,'SR_Cash Reconciliation_2E'!$B$9:$B$270,0))),\"\")","v":""},{"$f":"IFERROR(IF(INDEX('SR_Cash Reconciliation_2E'!G$9:G$270,MATCH($D100,'SR_Cash Reconciliation_2E'!$B$9:$B$270,0))=\"\",\"\",INDEX('SR_Cash Reconciliation_2E'!G$9:G$270,MATCH($D100,'SR_Cash Reconciliation_2E'!$B$9:$B$270,0))),\"\")","v":""},{"$f":"IFERROR(IF(INDEX('SR_Cash Reconciliation_2E'!H$9:H$270,MATCH($D100,'SR_Cash Reconciliation_2E'!$B$9:$B$270,0))=\"\",\"\",INDEX('SR_Cash Reconciliation_2E'!H$9:H$270,MATCH($D100,'SR_Cash Reconciliation_2E'!$B$9:$B$270,0))),\"\")","v":""},{"$f":"IFERROR(IF(INDEX('SR_Cash Reconciliation_2E'!I$9:I$270,MATCH($D100,'SR_Cash Reconciliation_2E'!$B$9:$B$270,0))=\"\",\"\",INDEX('SR_Cash Reconciliation_2E'!I$9:I$270,MATCH($D100,'SR_Cash Reconciliation_2E'!$B$9:$B$270,0))),\"\")","v":""},{"$f":"IFERROR(IF(INDEX('SR_Cash Reconciliation_2E'!K$9:K$270,MATCH($D100,'SR_Cash Reconciliation_2E'!$B$9:$B$270,0))=\"\",\"\",INDEX('SR_Cash Reconciliation_2E'!K$9:K$270,MATCH($D100,'SR_Cash Reconciliation_2E'!$B$9:$B$270,0))),\"\")","v":""},{"$f":"\"\"","v":""},{"$f":"IFERROR(IF(INDEX('SR_Cash Reconciliation_2E'!N$9:N$270,MATCH($D100,'SR_Cash Reconciliation_2E'!$B$9:$B$270,0))=\"\",\"\",INDEX('SR_Cash Reconciliation_2E'!N$9:N$270,MATCH($D100,'SR_Cash Reconciliation_2E'!$B$9:$B$270,0))),\"\")","v":""}]
[null,null,49,"ID49",{"$f":"IFERROR(IF(INDEX('SR_Cash Reconciliation_2E'!C$9:C$270,MATCH($D101,'SR_Cash Reconciliation_2E'!$B$9:$B$270,0))=\"\",\"\",INDEX('SR_Cash Reconciliation_2E'!C$9:C$270,MATCH($D101,'SR_Cash Reconciliation_2E'!$B$9:$B$270,0))),\"\")","v":""},{"$f":"IFERROR(IF(INDEX('SR_Cash Reconciliation_2E'!D$9:D$270,MATCH($D101,'SR_Cash Reconciliation_2E'!$B$9:$B$270,0))=\"\",\"\",INDEX('SR_Cash Reconciliation_2E'!D$9:D$270,MATCH($D101,'SR_Cash Reconciliation_2E'!$B$9:$B$270,0))),\"\")","v":""},{"$f":"IFERROR(IF(INDEX('SR_Cash Reconciliation_2E'!E$9:E$270,MATCH($D101,'SR_Cash Reconciliation_2E'!$B$9:$B$270,0))=\"\",\"\",INDEX('SR_Cash Reconciliation_2E'!E$9:E$270,MATCH($D101,'SR_Cash Reconciliation_2E'!$B$9:$B$270,0))),\"\")","v":""},{"$f":"IFERROR(IF(INDEX('SR_Cash Reconciliation_2E'!F$9:F$270,MATCH($D101,'SR_Cash Reconciliation_2E'!$B$9:$B$270,0))=\"\",\"\",INDEX('SR_Cash Reconciliation_2E'!F$9:F$270,MATCH($D101,'SR_Cash Reconciliation_2E'!$B$9:$B$270,0))),\"\")","v":""},{"$f":"IFERROR(IF(INDEX('SR_Cash Reconciliation_2E'!G$9:G$270,MATCH($D101,'SR_Cash Reconciliation_2E'!$B$9:$B$270,0))=\"\",\"\",INDEX('SR_Cash Reconciliation_2E'!G$9:G$270,MATCH($D101,'SR_Cash Reconciliation_2E'!$B$9:$B$270,0))),\"\")","v":""},{"$f":"IFERROR(IF(INDEX('SR_Cash Reconciliation_2E'!H$9:H$270,MATCH($D101,'SR_Cash Reconciliation_2E'!$B$9:$B$270,0))=\"\",\"\",INDEX('SR_Cash Reconciliation_2E'!H$9:H$270,MATCH($D101,'SR_Cash Reconciliation_2E'!$B$9:$B$270,0))),\"\")","v":""},{"$f":"IFERROR(IF(INDEX('SR_Cash Reconciliation_2E'!I$9:I$270,MATCH($D101,'SR_Cash Reconciliation_2E'!$B$9:$B$270,0))=\"\",\"\",INDEX('SR_Cash Reconciliation_2E'!I$9:I$270,MATCH($D101,'SR_Cash Reconciliation_2E'!$B$9:$B$270,0))),\"\")","v":""},{"$f":"IFERROR(IF(INDEX('SR_Cash Reconciliation_2E'!K$9:K$270,MATCH($D101,'SR_Cash Reconciliation_2E'!$B$9:$B$270,0))=\"\",\"\",INDEX('SR_Cash Reconciliation_2E'!K$9:K$270,MATCH($D101,'SR_Cash Reconciliation_2E'!$B$9:$B$270,0))),\"\")","v":""},{"$f":"\"\"","v":""},{"$f":"IFERROR(IF(INDEX('SR_Cash Reconciliation_2E'!N$9:N$270,MATCH($D101,'SR_Cash Reconciliation_2E'!$B$9:$B$270,0))=\"\",\"\",INDEX('SR_Cash Reconciliation_2E'!N$9:N$270,MATCH($D101,'SR_Cash Reconciliation_2E'!$B$9:$B$270,0))),\"\")","v":""}]
[null,null,{"$error":"#VALUE!"},{"$error":"#VALUE!"},{"$f":"IFERROR(IF(INDEX('SR_Cash Reconciliation_2E'!C$9:C$270,MATCH($D102,'SR_Cash Reconciliation_2E'!$B$9:$B$270,0))=\"\",\"\",INDEX('SR_Cash Reconciliation_2E'!C$9:C$270,MATCH($D102,'SR_Cash Reconciliation_2E'!$B$9:$B$270,0))),\"\")","v":""},{"$f":"IFERROR(IF(INDEX('SR_Cash Reconciliation_2E'!D$9:D$270,MATCH($D102,'SR_Cash Reconciliation_2E'!$B$9:$B$270,0))=\"\",\"\",INDEX('SR_Cash Reconciliation_2E'!D$9:D$270,MATCH($D102,'SR_Cash Reconciliation_2E'!$B$9:$B$270,0))),\"\")","v":""},{"$f":"IFERROR(IF(INDEX('SR_Cash Reconciliation_2E'!E$9:E$270,MATCH($D102,'SR_Cash Reconciliation_2E'!$B$9:$B$270,0))=\"\",\"\",INDEX('SR_Cash Reconciliation_2E'!E$9:E$270,MATCH($D102,'SR_Cash Reconciliation_2E'!$B$9:$B$270,0))),\"\")","v":""},{"$f":"IFERROR(IF(INDEX('SR_Cash Reconciliation_2E'!F$9:F$270,MATCH($D102,'SR_Cash Reconciliation_2E'!$B$9:$B$270,0))=\"\",\"\",INDEX('SR_Cash Reconciliation_2E'!F$9:F$270,MATCH($D102,'SR_Cash Reconciliation_2E'!$B$9:$B$270,0))),\"\")","v":""},{"$f":"IFERROR(IF(INDEX('SR_Cash Reconciliation_2E'!G$9:G$270,MATCH($D102,'SR_Cash Reconciliation_2E'!$B$9:$B$270,0))=\"\",\"\",INDEX('SR_Cash Reconciliation_2E'!G$9:G$270,MATCH($D102,'SR_Cash Reconciliation_2E'!$B$9:$B$270,0))),\"\")","v":""},{"$f":"IFERROR(IF(INDEX('SR_Cash Reconciliation_2E'!H$9:H$270,MATCH($D102,'SR_Cash Reconciliation_2E'!$B$9:$B$270,0))=\"\",\"\",INDEX('SR_Cash Reconciliation_2E'!H$9:H$270,MATCH($D102,'SR_Cash Reconciliation_2E'!$B$9:$B$270,0))),\"\")","v":""},{"$f":"IFERROR(IF(INDEX('SR_Cash Reconciliation_2E'!I$9:I$270,MATCH($D102,'SR_Cash Reconciliation_2E'!$B$9:$B$270,0))=\"\",\"\",INDEX('SR_Cash Reconciliation_2E'!I$9:I$270,MATCH($D102,'SR_Cash Reconciliation_2E'!$B$9:$B$270,0))),\"\")","v":""},{"$f":"IFERROR(IF(INDEX('SR_Cash Reconciliation_2E'!K$9:K$270,MATCH($D102,'SR_Cash Reconciliation_2E'!$B$9:$B$270,0))=\"\",\"\",INDEX('SR_Cash Reconciliation_2E'!K$9:K$270,MATCH($D102,'SR_Cash Reconciliation_2E'!$B$9:$B$270,0))),\"\")","v":""},{"$f":"\"\"","v":""},{"$f":"IFERROR(IF(INDEX('SR_Cash Reconciliation_2E'!N$9:N$270,MATCH($D102,'SR_Cash Reconciliation_2E'!$B$9:$B$270,0))=\"\",\"\",INDEX('SR_Cash Reconciliation_2E'!N$9:N$270,MATCH($D102,'SR_Cash Reconciliation_2E'!$B$9:$B$270,0))),\"\")","v":""}]
[null,null,50,"ID50",{"$f":"IFERROR(IF(INDEX('SR_Cash Reconciliation_2E'!C$9:C$270,MATCH($D103,'SR_Cash Reconciliation_2E'!$B$9:$B$270,0))=\"\",\"\",INDEX('SR_Cash Reconciliation_2E'!C$9:C$270,MATCH($D103,'SR_Cash Reconciliation_2E'!$B$9:$B$270,0))),\"\")","v":""},{"$f":"IFERROR(IF(INDEX('SR_Cash Reconciliation_2E'!D$9:D$270,MATCH($D103,'SR_Cash Reconciliation_2E'!$B$9:$B$270,0))=\"\",\"\",INDEX('SR_Cash Reconciliation_2E'!D$9:D$270,MATCH($D103,'SR_Cash Reconciliation_2E'!$B$9:$B$270,0))),\"\")","v":""},{"$f":"IFERROR(IF(INDEX('SR_Cash Reconciliation_2E'!E$9:E$270,MATCH($D103,'SR_Cash Reconciliation_2E'!$B$9:$B$270,0))=\"\",\"\",INDEX('SR_Cash Reconciliation_2E'!E$9:E$270,MATCH($D103,'SR_Cash Reconciliation_2E'!$B$9:$B$270,0))),\"\")","v":""},{"$f":"IFERROR(IF(INDEX('SR_Cash Reconciliation_2E'!F$9:F$270,MATCH($D103,'SR_Cash Reconciliation_2E'!$B$9:$B$270,0))=\"\",\"\",INDEX('SR_Cash Reconciliation_2E'!F$9:F$270,MATCH($D103,'SR_Cash Reconciliation_2E'!$B$9:$B$270,0))),\"\")","v":""},{"$f":"IFERROR(IF(INDEX('SR_Cash Reconciliation_2E'!G$9:G$270,MATCH($D103,'SR_Cash Reconciliation_2E'!$B$9:$B$270,0))=\"\",\"\",INDEX('SR_Cash Reconciliation_2E'!G$9:G$270,MATCH($D103,'SR_Cash Reconciliation_2E'!$B$9:$B$270,0))),\"\")","v":""},{"$f":"IFERROR(IF(INDEX('SR_Cash Reconciliation_2E'!H$9:H$270,MATCH($D103,'SR_Cash Reconciliation_2E'!$B$9:$B$270,0))=\"\",\"\",INDEX('SR_Cash Reconciliation_2E'!H$9:H$270,MATCH($D103,'SR_Cash Reconciliation_2E'!$B$9:$B$270,0))),\"\")","v":""},{"$f":"IFERROR(IF(INDEX('SR_Cash Reconciliation_2E'!I$9:I$270,MATCH($D103,'SR_Cash Reconciliation_2E'!$B$9:$B$270,0))=\"\",\"\",INDEX('SR_Cash Reconciliation_2E'!I$9:I$270,MATCH($D103,'SR_Cash Reconciliation_2E'!$B$9:$B$270,0))),\"\")","v":""},{"$f":"IFERROR(IF(INDEX('SR_Cash Reconciliation_2E'!K$9:K$270,MATCH($D103,'SR_Cash Reconciliation_2E'!$B$9:$B$270,0))=\"\",\"\",INDEX('SR_Cash Reconciliation_2E'!K$9:K$270,MATCH($D103,'SR_Cash Reconciliation_2E'!$B$9:$B$270,0))),\"\")","v":""},{"$f":"\"\"","v":""},{"$f":"IFERROR(IF(INDEX('SR_Cash Reconciliation_2E'!N$9:N$270,MATCH($D103,'SR_Cash Reconciliation_2E'!$B$9:$B$270,0))=\"\",\"\",INDEX('SR_Cash Reconciliation_2E'!N$9:N$270,MATCH($D103,'SR_Cash Reconciliation_2E'!$B$9:$B$270,0))),\"\")","v":""}]
[null,null,{"$error":"#VALUE!"},{"$error":"#VALUE!"},{"$f":"IFERROR(IF(INDEX('SR_Cash Reconciliation_2E'!C$9:C$270,MATCH($D104,'SR_Cash Reconciliation_2E'!$B$9:$B$270,0))=\"\",\"\",INDEX('SR_Cash Reconciliation_2E'!C$9:C$270,MATCH($D104,'SR_Cash Reconciliation_2E'!$B$9:$B$270,0))),\"\")","v":""},{"$f":"IFERROR(IF(INDEX('SR_Cash Reconciliation_2E'!D$9:D$270,MATCH($D104,'SR_Cash Reconciliation_2E'!$B$9:$B$270,0))=\"\",\"\",INDEX('SR_Cash Reconciliation_2E'!D$9:D$270,MATCH($D104,'SR_Cash Reconciliation_2E'!$B$9:$B$270,0))),\"\")","v":""},{"$f":"IFERROR(IF(INDEX('SR_Cash Reconciliation_2E'!E$9:E$270,MATCH($D104,'SR_Cash Reconciliation_2E'!$B$9:$B$270,0))=\"\",\"\",INDEX('SR_Cash Reconciliation_2E'!E$9:E$270,MATCH($D104,'SR_Cash Reconciliation_2E'!$B$9:$B$270,0))),\"\")","v":""},{"$f":"IFERROR(IF(INDEX('SR_Cash Reconciliation_2E'!F$9:F$270,MATCH($D104,'SR_Cash Reconciliation_2E'!$B$9:$B$270,0))=\"\",\"\",INDEX('SR_Cash Reconciliation_2E'!F$9:F$270,MATCH($D104,'SR_Cash Reconciliation_2E'!$B$9:$B$270,0))),\"\")","v":""},{"$f":"IFERROR(IF(INDEX('SR_Cash Reconciliation_2E'!G$9:G$270,MATCH($D104,'SR_Cash Reconciliation_2E'!$B$9:$B$270,0))=\"\",\"\",INDEX('SR_Cash Reconciliation_2E'!G$9:G$270,MATCH($D104,'SR_Cash Reconciliation_2E'!$B$9:$B$270,0))),\"\")","v":""},{"$f":"IFERROR(IF(INDEX('SR_Cash Reconciliation_2E'!H$9:H$270,MATCH($D104,'SR_Cash Reconciliation_2E'!$B$9:$B$270,0))=\"\",\"\",INDEX('SR_Cash Reconciliation_2E'!H$9:H$270,MATCH($D104,'SR_Cash Reconciliation_2E'!$B$9:$B$270,0))),\"\")","v":""},{"$f":"IFERROR(IF(INDEX('SR_Cash Reconciliation_2E'!I$9:I$270,MATCH($D104,'SR_Cash Reconciliation_2E'!$B$9:$B$270,0))=\"\",\"\",INDEX('SR_Cash Reconciliation_2E'!I$9:I$270,MATCH($D104,'SR_Cash Reconciliation_2E'!$B$9:$B$270,0))),\"\")","v":""},{"$f":"IFERROR(IF(INDEX('SR_Cash Reconciliation_2E'!K$9:K$270,MATCH($D104,'SR_Cash Reconciliation_2E'!$B$9:$B$270,0))=\"\",\"\",INDEX('SR_Cash Reconciliation_2E'!K$9:K$270,MATCH($D104,'SR_Cash Reconciliation_2E'!$B$9:$B$270,0))),\"\")","v":""},{"$f":"\"\"","v":""},{"$f":"IFERROR(IF(INDEX('SR_Cash Reconciliation_2E'!N$9:N$270,MATCH($D104,'SR_Cash Reconciliation_2E'!$B$9:$B$270,0))=\"\",\"\",INDEX('SR_Cash Reconciliation_2E'!N$9:N$270,MATCH($D104,'SR_Cash Reconciliation_2E'!$B$9:$B$270,0))),\"\")","v":""}]
[null,null,51,"ID51",{"$f":"IFERROR(IF(INDEX('SR_Cash Reconciliation_2E'!C$9:C$270,MATCH($D105,'SR_Cash Reconciliation_2E'!$B$9:$B$270,0))=\"\",\"\",INDEX('SR_Cash Reconciliation_2E'!C$9:C$270,MATCH($D105,'SR_Cash Reconciliation_2E'!$B$9:$B$270,0))),\"\")","v":""},{"$f":"IFERROR(IF(INDEX('SR_Cash Reconciliation_2E'!D$9:D$270,MATCH($D105,'SR_Cash Reconciliation_2E'!$B$9:$B$270,0))=\"\",\"\",INDEX('SR_Cash Reconciliation_2E'!D$9:D$270,MATCH($D105,'SR_Cash Reconciliation_2E'!$B$9:$B$270,0))),\"\")","v":""},{"$f":"IFERROR(IF(INDEX('SR_Cash Reconciliation_2E'!E$9:E$270,MATCH($D105,'SR_Cash Reconciliation_2E'!$B$9:$B$270,0))=\"\",\"\",INDEX('SR_Cash Reconciliation_2E'!E$9:E$270,MATCH($D105,'SR_Cash Reconciliation_2E'!$B$9:$B$270,0))),\"\")","v":""},{"$f":"IFERROR(IF(INDEX('SR_Cash Reconciliation_2E'!F$9:F$270,MATCH($D105,'SR_Cash Reconciliation_2E'!$B$9:$B$270,0))=\"\",\"\",INDEX('SR_Cash Reconciliation_2E'!F$9:F$270,MATCH($D105,'SR_Cash Reconciliation_2E'!$B$9:$B$270,0))),\"\")","v":""},{"$f":"IFERROR(IF(INDEX('SR_Cash Reconciliation_2E'!G$9:G$270,MATCH($D105,'SR_Cash Reconciliation_2E'!$B$9:$B$270,0))=\"\",\"\",INDEX('SR_Cash Reconciliation_2E'!G$9:G$270,MATCH($D105,'SR_Cash Reconciliation_2E'!$B$9:$B$270,0))),\"\")","v":""},{"$f":"IFERROR(IF(INDEX('SR_Cash Reconciliation_2E'!H$9:H$270,MATCH($D105,'SR_Cash Reconciliation_2E'!$B$9:$B$270,0))=\"\",\"\",INDEX('SR_Cash Reconciliation_2E'!H$9:H$270,MATCH($D105,'SR_Cash Reconciliation_2E'!$B$9:$B$270,0))),\"\")","v":""},{"$f":"IFERROR(IF(INDEX('SR_Cash Reconciliation_2E'!I$9:I$270,MATCH($D105,'SR_Cash Reconciliation_2E'!$B$9:$B$270,0))=\"\",\"\",INDEX('SR_Cash Reconciliation_2E'!I$9:I$270,MATCH($D105,'SR_Cash Reconciliation_2E'!$B$9:$B$270,0))),\"\")","v":""},{"$f":"IFERROR(IF(INDEX('SR_Cash Reconciliation_2E'!K$9:K$270,MATCH($D105,'SR_Cash Reconciliation_2E'!$B$9:$B$270,0))=\"\",\"\",INDEX('SR_Cash Reconciliation_2E'!K$9:K$270,MATCH($D105,'SR_Cash Reconciliation_2E'!$B$9:$B$270,0))),\"\")","v":""},{"$f":"\"\"","v":""},{"$f":"IFERROR(IF(INDEX('SR_Cash Reconciliation_2E'!N$9:N$270,MATCH($D105,'SR_Cash Reconciliation_2E'!$B$9:$B$270,0))=\"\",\"\",INDEX('SR_Cash Reconciliation_2E'!N$9:N$270,MATCH($D105,'SR_Cash Reconciliation_2E'!$B$9:$B$270,0))),\"\")","v":""}]

{"sheet":"Budget Variance_2F","index":20,"n_rows":30,"n_cols":14,"rows_kept":30,"cut":false,"hidden":true,"merged":[[27,1,27,2],[28,1,28,2],[28,7,28,8],[29,1,29,2],[29,7,29,8],[26,1,26,2],[26,7,26,8],[14,1,14,2],[14,7,14,8],[18,0,18,11],[20,3,20,13],[21,1,21,2],[21,7,21,8],[22,1,22,2],[22,7,22,8],[23,1,23,2],[23,7,23,8],[24,1,24,2],[24,7,24,8],[11,1,11,2],[11,7,11,8],[12,1,12,2],[12,7,12,8],[13,1,13,2],[13,7,13,8],[7,1,7,2],[7,7,7,8],[8,1,8,2],[8,7,8,8],[9,1,9,2],[9,7,9,8],[6,1,6,2],[6,7,6,8],[1,0,2,3],[1,4,1,5],[2,4,2,5],[3,0,3,13],[5,3,5,13],[1,9,2,13]]}
[{"$f":"CoverSheet!A1","v":"Progress Report with Disbursement Request"}]
["Section 2: Financial Information",null,null,null,{"$f":"CoverSheet!F12","v":"Period of Financial Reporting"},null,{"$f":"CoverSheet!J12","v":"2018-01-01"},{"$f":"CoverSheet!K12","v":"End Date:"},{"$f":"CoverSheet!L12","v":"2018-06-30"}]
[null,null,null,null,"Cumulative Period of Financial Reporting",null,{"$f":"CoverSheet!D13","v":"2018-01-01"},{"$f":"CoverSheet!K12","v":"End Date:"},{"$f":"CoverSheet!L12","v":"2018-06-30"}]
[{"$f":"VLOOKUP(Translations!B192,Translations!B3:H508,4,0)","v":"Total Principal Recipient Budget Variance and Funding Absorption Analysis"}]
[]
[null,null,null,{"$f":"VLOOKUP(Translations!B193,Translations!B3:H508,4,0)","v":"Principal Recipient"}]
[null,null,null,{"$f":"VLOOKUP(Translations!B194,Translations!B3:H508,4,0)","v":"Budget for Reporting Period"},{"$f":"VLOOKUP(Translations!B195,Translations!B3:H508,4,0)","v":"Actual Grant Cash Out-Flow - Cash Basis for Reporting Period"},{"$f":"VLOOKUP(Translations!B196,Translations!B3:H508,4,0)","v":"Budget Vs Actual Variances"},{"$f":"VLOOKUP(Translations!B197,Translations!B3:H508,4,0)","v":"Absorption Capacity"},{"$f":"VLOOKUP(Translations!B198,Translations!B3:H508,4,0)","v":"Reasons for Variance"},null,{"$f":"VLOOKUP(Translations!B199,Translations!B3:H508,4,0)","v":"Cumulative Budget through period of Progress Update"},{"$f":"VLOOKUP(Translations!B200,Translations!B3:H508,4,0)","v":"Cumulative Actual Grant Cash-Outflow - Cash Basis through period of Progress Update"},{"$f":"VLOOKUP(Translations!B201,Translations!B3:H508,4,0)","v":"Cumulative Budget Vs Actuals Variances"},{"$f":"VLOOKUP(Translations!B202,Translations!B3:H508,4,0)","v":"Absorption Capacity"},{"$f":"VLOOKUP(Translations!B203,Translations!B3:H508,4,0)","v":"Reasons for Variance"}]
[null,{"$f":"VLOOKUP(Translations!B204,Translations!B3:H508,4,0)","v":"1. Total Principal Recipient cash outflow vs. budget"},null,{"$f":"SUM(D9:D10)","v":4057896.7947546067},{"$f":"SUM(E9:E10)","v":0},{"$f":"IF(D8=\"\",IF(E8=\"\",\"\",D8-E8),D8-E8)","v":4057896.7947546067},{"$f":"E8/D8","v":0},null,null,{"$f":"SUM(J9:J10)","v":4057896.7947546067},{"$f":"SUM(K9:K10)","v":0},{"$f":"IF(J8=\"\",IF(K8=\"\",\"\",J8-K8),J8-K8)","v":4057896.7947546067},{"$f":"K8/J8","v":0}]
[null,{"$f":"VLOOKUP(Translations!B205,Translations!B3:H508,4,0)","v":"    1a. Principal Recipient's total expenditures (including any direct-disbursements to third-parties)"},null,{"$f":"_757bbdaf_a251_4e14_80bf_570115bbd806","v":3397182.1565958699},{"$f":"'PR Cash Reconciliation_2A,B,C,D'!D18+'PR Cash Reconciliation_2A,B,C,D'!D19+'PR Cash Reconciliation_2A,B,C,D'!D21","v":0},{"$f":"IF(D9=\"\",IF(E9=\"\",0,D9-E9),D9-E9)","v":3397182.1565958699},{"$f":"E9/D9","v":0},null,null,{"$f":"_5fc8d853_c679_4a06_bfcf_5a675070866e","v":3397182.1565958699},{"$f":"'PR Cash Reconciliation_2A,B,C,D'!D18+'PR Cash Reconciliation_2A,B,C,D'!D19+'PR Cash Reconciliation_2A,B,C,D'!D21+'PR Cash Reconciliation_2A,B,C,D'!C18+'PR Cash Reconciliation_2A,B,C,D'!C19+'PR Cash Reconciliation_2A,B,C,D'!C21","v":0},{"$f":"IF(J9=\"\",IF(K9=\"\",0,J9-K9),J9-K9)","v":3397182.1565958699},{"$f":"K9/J9","v":0}]
[null,{"$f":"VLOOKUP(Translations!B206,Translations!B3:H508,4,0)","v":"    1b. Disbursements to sub-recipients"},null,{"$f":"_b2735405_dd56_44ce_9ea7_7c9dcc4cf6e1","v":660714.63815873698},{"$f":"'PR Cash Reconciliation_2A,B,C,D'!D20","v":0},{"$f":"IF(D10=\"\",IF(E10=\"\",0,D10-E10),D10-E10)","v":660714.63815873698},{"$f":"E10/D10","v":0},null,null,{"$f":"_08e720bb_96ae_4d23_aca2_de6c0f6242bd","v":660714.63815873698},{"$f":"'PR Cash Reconciliation_2A,B,C,D'!D20+'PR Cash Reconciliation_2A,B,C,D'!C20","v":0},{"$f":"IF(J10=\"\",IF(K10=\"\",0,J10-K10),J10-K10)","v":660714.63815873698},{"$f":"K10/J10","v":0}]
[]
[null,{"$f":"VLOOKUP(Translations!B207,Translations!B3:H508,4,0)","v":"Procurement data for analytical purposes"},null,{"$f":"D7","v":"Budget for Reporting Period"},{"$f":"E7","v":"Actual Grant Cash Out-Flow - Cash Basis for Reporting Period"},{"$f":"F7","v":"Budget Vs Actual Variances"},"Absorption Capacity",{"$f":"H7","v":"Reasons for Variance"},null,{"$f":"J7","v":"Cumulative Budget through period of Progress Update"},{"$f":"K7","v":"Cumulative Actual Grant Cash-Outflow - Cash Basis through period of Progress Update"},"Cumulative Budget Vs Actuals Variances","Absorption Capacity","Reasons for Variance"]
[null,{"$f":"VLOOKUP(Translations!B218,Translations!B3:H508,4,0)","v":"2. Total pharmaceutical & non-pharmaceutical incl. equipment expenditures vs.    budget"},null,{"$f":"D14+D15","v":1770223.9},{"$f":"E14+E15","v":0},{"$f":"IF(D13=\"\",IF(E13=\"\",\"\",D13-E13),D13-E13)","v":1770223.9},{"$f":"E13/D13","v":0},null,null,{"$f":"J14+J15","v":1770223.9},{"$f":"K14+K15","v":0},{"$f":"IF(J13=\"\",IF(K13=\"\",\"\",J13-K13),J13-K13)","v":1770223.9},{"$f":"K13/J13","v":0}]
[null,{"$f":"VLOOKUP(Translations!B219,Translations!B3:H508,4,0)","v":"    2a.  Health Products- Pharmaceutical Products"},null,{"$f":"_96216c52_3538_4325_8126_72dc62827a1b","v":669838},null,{"$f":"IF(D14=\"\",IF(E14=\"\",0,D14-E14),D14-E14)","v":669838},{"$f":"E14/D14","v":0},null,null,{"$f":"_1c12bfc2_41c8_4c56_8c9f_396f5701dc1c","v":669838},null,{"$f":"IF(J14=\"\",IF(K14=\"\",0,J14-K14),J14-K14)","v":669838},{"$f":"K14/J14","v":0}]
[null,{"$f":"VLOOKUP(Translations!B220,Translations!B3:H508,4,0)","v":"    2b.  Health Products - Non-Pharmaceuticals & Equipment"},null,{"$f":"_627ca42b_04e2_43b0_9dd3_6a366d7df9ec","v":1100385.8999999999},null,{"$f":"IF(D15=\"\",IF(E15=\"\",0,D15-E15),D15-E15)","v":1100385.8999999999},{"$f":"E15/D15","v":0},null,null,{"$f":"_d7b38c7a_acf6_4726_87a0_eeda6bd08f2c","v":1100385.8999999999},null,{"$f":"IF(J15=\"\",IF(K15=\"\",0,J15-K15),J15-K15)","v":1100385.8999999999},{"$f":"K15/J15","v":0}]
[]
[]
["For LFA Use Only"]
["E. Total Principal Recipient Budget Variance and Absorption Analysis"]
[]
[null,null,null,"Local Fund Agent (LFA)"]
[null,null,null,"Budget for Reporting Period","Actual Grant Expenditure - Cash Basis for Reporting Period","Budget Vs Actual Variances","Absorption Capacity","LFA comments on thePrincipal Recipient's explanation of variances ",null,"Cumulative Budget through period of Progress Update","Cumulative Actual Grant Expenditure - Cash Basis through period of Progress Update","Cumulative Budget Vs Actuals Variances","Absorption Capacity","LFA comments on the Principal Recipient's explanation of variances "]
[null,"1. Total Principal Recipient cash outflow vs. budget",null,{"$f":"SUM(D24:D25)","v":4057896.7947546067},{"$f":"SUM(E24:E25)","v":0},{"$f":"IF(D23=\"\",IF(E23=\"\",\"\",D23-E23),D23-E23)","v":4057896.7947546067},{"$f":"E23/D23","v":0},null,null,{"$f":"SUM(J24:J25)","v":4057896.7947546067},{"$f":"SUM(K24:K25)","v":0},{"$f":"IF(J23=\"\",IF(K23=\"\",\"\",J23-K23),J23-K23)","v":4057896.7947546067},{"$f":"K23/J23","v":0}]
[null,"    1a. Principal Recipient's total expenditures (including any direct-disbursements to third-parties)",null,{"$f":"_757bbdaf_a251_4e14_80bf_570115bbd806","v":3397182.1565958699},{"$f":"'PR Cash Reconciliation_2A,B,C,D'!H18+'PR Cash Reconciliation_2A,B,C,D'!H19+'PR Cash Reconciliation_2A,B,C,D'!H21","v":0},{"$f":"IF(D24=\"\",IF(E24=\"\",0,D24-E24),D24-E24)","v":3397182.1565958699},{"$f":"E24/D24","v":0},null,null,{"$f":"_5fc8d853_c679_4a06_bfcf_5a675070866e","v":3397182.1565958699},{"$f":"'PR Cash Reconciliation_2A,B,C,D'!F18+'PR Cash Reconciliation_2A,B,C,D'!F19+'PR Cash Reconciliation_2A,B,C,D'!F21+E24","v":0},{"$f":"IF(J24=\"\",IF(K24=\"\",0,J24-K24),J24-K24)","v":3397182.1565958699},{"$f":"K24/J24","v":0}]
[null,"    1b. Disbursements to sub-recipients",null,{"$f":"_b2735405_dd56_44ce_9ea7_7c9dcc4cf6e1","v":660714.63815873698},{"$f":"'PR Cash Reconciliation_2A,B,C,D'!H20","v":0},{"$f":"IF(D25=\"\",IF(E25=\"\",0,D25-E25),D25-E25)","v":660714.63815873698},{"$f":"E25/D25","v":0},null,null,{"$f":"_08e720bb_96ae_4d23_aca2_de6c0f6242bd","v":660714.63815873698},{"$f":"'PR Cash Reconciliation_2A,B,C,D'!F20+E25","v":0},{"$f":"IF(J25=\"\",IF(K25=\"\",0,J25-K25),J25-K25)","v":660714.63815873698},{"$f":"K25/J25","v":0}]
[]
[null,"Procurement data for analytical purposes",null,"Budget for Reporting Period","Actual Grant Expenditure - Cash Basis for Reporting Period","Budget Vs Actual Variances","Absorption Capacity","LFA comments on the Principal Recipient's explanation of variances ",null,"Cumulative Budget through period of Progress Update","Cumulative Actual Grant Expenditure - Cash Basis through period of Progress Update","Cumulative Budget Vs Actuals Variances","Absorption Capacity","LFA comments on the Principal Recipient's explanation of variances "]
[null,"2. Total pharmaceutical & non-pharmaceutical incl. equipment expenditures vs. budget",null,{"$f":"D29+D30","v":1770223.9},{"$f":"E29+E30","v":0},{"$f":"IF(D28=\"\",IF(E28=\"\",\"\",D28-E28),D28-E28)","v":1770223.9},{"$f":"E28/D28","v":0},null,null,{"$f":"J29+J30","v":1770223.9},{"$f":"K29+K30","v":0},{"$f":"IF(J28=\"\",IF(K28=\"\",\"\",J28-K28),J28-K28)","v":1770223.9},{"$f":"K28/J28","v":0}]
[null,"    2a.  Health Products- Pharmaceutical Products",null,{"$f":"_96216c52_3538_4325_8126_72dc62827a1b","v":669838},null,{"$f":"IF(D29=\"\",IF(E29=\"\",0,D29-E29),D29-E29)","v":669838},{"$f":"E29/D29","v":0},null,null,{"$f":"_1c12bfc2_41c8_4c56_8c9f_396f5701dc1c","v":669838},null,{"$f":"IF(J29=\"\",IF(K29=\"\",0,J29-K29),J29-K29)","v":669838},{"$f":"K29/J29","v":0}]
[null,"    2b.  Health Products - Non-Pharmaceuticals & Equipment",null,{"$f":"_627ca42b_04e2_43b0_9dd3_6a366d7df9ec","v":1100385.8999999999},null,{"$f":"IF(D30=\"\",IF(E30=\"\",0,D30-E30),D30-E30)","v":1100385.8999999999},{"$f":"E30/D30","v":0},null,null,{"$f":"_d7b38c7a_acf6_4726_87a0_eeda6bd08f2c","v":1100385.8999999999},null,{"$f":"IF(J30=\"\",IF(K30=\"\",0,J30-K30),J30-K30)","v":1100385.8999999999},{"$f":"K30/J30","v":0}]

{"sheet":"Budget Variance Import-Export","index":21,"n_rows":15,"n_cols":9,"rows_kept":15,"cut":false,"hidden":true,"merged":[]}
["Should be locked"]
["Should very hidden"]
[]
[]
[]
[]
[]
["    1a. Principal Recipient's total expenditures (including any direct-disbursements to third-parties)","Budget for Reporting Period",3397182.1565958699,"Cumul. Budget through PU period",3397182.1565958699]
["    1b. Disbursements to sub-recipients","Budget for Reporting Period",660714.63815873698,"Cumul. Budget through PU period",660714.63815873698]
[]
["    2a.  Health Products- Pharmaceutical Products","Budget for Reporting Period",669838,"PR Actual Grant Cash Out-Flow",{"$f":"IFERROR('Budget Variance_2F'!E14,\"\")","v":0},"Cumul. Budget through PU period",669838,"PR Cumulative Actual Grant Cash Out-Flow",{"$f":"IFERROR('Budget Variance_2F'!K14,\"\")","v":0}]
["    2a.  Health Products- Pharmaceutical Products",null,null,"LFA Actual Grant Cash Out-Flow",{"$f":"IFERROR('Budget Variance_2F'!E29,\"\")","v":0},null,null,"LFA Cumul. Actual Grant Cash Out-Flow",{"$f":"IFERROR('Budget Variance_2F'!K29,\"\")","v":0}]
[]
["    2b.  Health Products - Non-Pharmaceuticals & Equipment","Budget for Reporting Period",1100385.8999999999,"PR Actual Grant Cash Out-Flow",{"$f":"IFERROR('Budget Variance_2F'!E15,\"\")","v":0},"Cumul. Budget through PU period",1100385.8999999999,"PR Cumulative Actual Grant Cash Out-Flow",{"$f":"IFERROR('Budget Variance_2F'!K15,\"\")","v":0}]
["    2b.  Health Products - Non-Pharmaceuticals & Equipment",null,null,"LFA Actual Grant Cash Out-Flow",{"$f":"IFERROR('Budget Variance_2F'!E30,\"\")","v":0},null,null,"LFA Cumul. Actual Grant Cash Out-Flow",{"$f":"IFERROR('Budget Variance_2F'!K30,\"\")","v":0}]

{"sheet":"Procurement_3","index":22,"n_rows":77,"n_cols":23,"rows_kept":77,"cut":false,"hidden":false,"merged":[[52,16,52,22],[43,12,43,22],[56,12,56,22],[48,12,48,13],[48,16,48,22],[49,12,49,13],[49,16,49,22],[50,12,50,13],[55,12,55,22],[46,12,46,13],[46,16,46,22],[47,12,47,13],[47,16,47,22],[50,16,50,22],[51,12,51,13],[51,16,51,22],[52,12,52,13],[45,12,45,13],[45,16,45,22],[36,12,36,13],[36,17,36,18],[44,12,44,13],[44,16,44,22],[37,12,37,13],[37,17,37,18],[38,12,38,13],[38,17,38,18],[39,12,39,13],[39,17,39,18],[40,12,40,13],[40,17,40,18],[41,12,41,13],[41,17,41,18],[33,12,33,13],[33,17,33,18],[34,12,34,13],[34,17,34,18],[35,12,35,13],[35,17,35,18],[32,12,32,13],[27,16,27,22],[14,12,14,13],[14,16,14,22],[15,12,15,13],[15,16,15,22],[16,12,16,13],[16,16,16,22],[17,12,17,13],[17,16,17,17],[18,12,18,22],[19,12,19,22],[24,12,24,22],[28,12,28,13],[28,16,28,22],[31,12,31,22],[11,12,11,13],[11,16,11,22],[12,12,12,13],[12,16,12,22],[13,12,13,13],[13,16,13,22],[8,12,8,13],[8,16,8,22],[9,12,9,13],[9,16,9,22],[10,12,10,13],[10,16,10,22],[7,12,7,22],[0,12,0,22],[2,12,2,21],[4,18,4,22],[5,12,5,16],[5,18,5,22]]}
[null,null,null,null,null,null,null,null,null,null,null,null,{"$f":"CoverSheet!A1","v":"Progress Report with Disbursement Request"}]
[]
[null,null,null,null,null,null,null,null,null,null,null,null,{"$f":"VLOOKUP(Translations!B252,Translations!B3:H508,4,0)","v":"Section 3A:  Principal Recipient - Procurement and Supply Management"}]
[]
[null,null,null,null,null,null,null,null,null,null,null,null,null,null,null,null,null,null,{"$f":"VLOOKUP(Translations!B254,Translations!B3:H508,4,0)","v":"Comments"}]
[null,null,null,null,null,null,null,null,null,null,null,null,{"$f":"VLOOKUP(Translations!B253,Translations!B3:H508,4,0)","v":"1.  Have you updated the Price Quality Reporting (PQR) with the required information on the pharmaceuticals and health products received during the period covered by this PU/DR’ (if applicable)?  If health products procurement information has not been entered into the PQR, please explain why.\n\n!  For further guidance on PQR data entry, please refer to the guidelines."},null,null,null,null,"N/A","Tous les produits achetés durant la période couverte n'étaient pas encore livrés au 30 juin 2018. Les données seront insérées dans le système une fois que les produits seront réceptionnés. "]
[]
[null,null,null,null,null,null,null,null,null,null,null,null,{"$f":"VLOOKUP(Translations!B255,Translations!B3:H508,4,0)","v":" 2. Based on the most up-to-date stock situation, are there any risks of stock-outs or expiries for the key pharmaceuticals & health products, listed below, at the central level in the next Reporting Period?  If yes, please comment."}]
[null,null,null,null,null,null,null,null,null,null,null,null,{"$f":"VLOOKUP(Translations!B256,Translations!B3:H508,4,0)","v":"Key Pharmaceuticals & Health Products"},null,{"$f":"VLOOKUP(Translations!B257,Translations!B3:H508,4,0)","v":"Risk of Stock-Out"},{"$f":"VLOOKUP(Translations!B258,Translations!B3:H508,4,0)","v":"Risk of Expiry"},{"$f":"VLOOKUP(Translations!B259,Translations!B3:H508,4,0)","v":"Comment (if yes, please provide information on the specific items that are at risk of stock-out or expiry and the mitigation measures in place or to be implemented)"}]
[null,null,null,null,null,null,null,null,null,null,null,null,{"$f":"VLOOKUP(Translations!B260,Translations!B3:H508,4,0)","v":"1. Anti-malaria medicines"},null,"No","No"]
[null,null,null,null,null,null,null,null,null,null,null,null,{"$f":"VLOOKUP(Translations!B261,Translations!B3:H508,4,0)","v":"2. Bed nets"},null,"N/A","N/A"]
[null,null,null,null,null,null,null,null,null,null,null,null,{"$f":"VLOOKUP(Translations!B262,Translations!B3:H508,4,0)","v":"3. In-Vitro Diagnostic Products"},null,"No","No"]
[null,null,null,null,null,null,null,null,null,null,null,null,{"$f":"VLOOKUP(Translations!B263,Translations!B3:H508,4,0)","v":"4. Condoms"},null,"N/A","N/A"]
[null,null,null,null,null,null,null,null,null,null,null,null,{"$f":"VLOOKUP(Translations!B264,Translations!B3:H508,4,0)","v":"5. Anti-retrovirals"},null,"N/A","N/A"]
[null,null,null,null,null,null,null,null,null,null,null,null,{"$f":"VLOOKUP(Translations!B265,Translations!B3:H508,4,0)","v":"6. Anti-TB medicines"},null,"N/A","N/A"]
[null,null,null,null,null,null,null,null,null,null,null,null,{"$f":"VLOOKUP(Translations!B266,Translations!B3:H508,4,0)","v":"7. Lab supplies (e.g. CD4, Viral Load, Cartridges…)"},null,"N/A","N/A"]
[null,null,null,null,null,null,null,null,null,null,null,null,{"$f":"VLOOKUP(Translations!B267,Translations!B3:H508,4,0)","v":"8. Other (Please specify in the \"Comment\" column)"},null,"N/A","N/A"]
[]
[null,null,null,null,null,null,null,null,null,null,null,null,{"$f":"VLOOKUP(Translations!B268,Translations!B3:H508,4,0)","v":"3.  Comment on additional issues related to the procurement and supply management of pharmaceuticals and health products."}]
[null,null,null,null,null,null,null,null,null,null,null,null,"Aucun problème particulier rencontré avec cette subvention par rapport à la gestion des achats et stocks des produits pharmaceutiques et de santé, dans la periode sous  revue."]
[]
[null,null,null,null,null,null,null,null,null,null,null,null,"For LFA Use Only"]
[]
[]
[null,null,null,null,null,null,null,null,null,null,null,null,"Section 3B: LFA-Verified Procurement and Supply Management Information"]
[]
[]
[null,null,null,null,null,null,null,null,null,null,null,null,null,null,"PR's response","LFA's response","LFA Comments/Analysis "]
[null,null,null,null,null,null,null,null,null,null,null,null,"1a.  Has the PR updated the Price Quality Reporting (PQR) with the required information on the pharmaceuticals and health products received during the period covered by this PU/DR’ (if applicable)?  (If health products procurement information has not been entered into the PQR, please explain why in comments box)    ",null,{"$f":"IFERROR(R6,\"\")","v":"N/A"},"Select"]
[]
[null,null,null,null,null,null,null,null,null,null,null,null,"1b.  Value of Pharmaceuticals and Health Products in the PQR (7 categories only)"]
[null,null,null,null,null,null,null,null,null,null,null,null,"(!) This table is included in the PU/DR form with the aim to improve completeness of information in the PQR system and not for comparing PQR amounts vis-à-vis expenditure per se. NB: PQR and expenditure amounts on health products may not be equal due to a timelag between payments and delivery of pharmaceuticals/health products.\n(!)  For further guidance on PQR data entry, please refer to the guidelines."]
[null,null,null,null,null,null,null,null,null,null,null,null,"Reporting Currency"]
[null,null,null,null,null,null,null,null,null,null,null,null,"PQR Product Categories",null,"Value of  products received during reporting period","Value of products entered by the PR and verified as correct by the LFA in the PQR during reporting period","Variance","Reason for Variance",null,"Cumulative value of  products received since the start of the Implementation Period","Cumulative value of products verified as correct by the LFA in the PQR since the start of the Implementation Period","Variance","Reason for Variance"]
[null,null,null,null,null,null,null,null,null,null,null,null,"1. Anti-malaria medicines",null,null,null,{"$f":"IF(O35=\"\",IF(P35=\"\",\"\",O35-P35),O35-P35)","v":""},null,null,null,null,{"$f":"IF(T35=\"\",IF(U35=\"\",\"\",T35-U35),T35-U35)","v":""}]
[null,null,null,null,null,null,null,null,null,null,null,null,"2. Bed nets",null,null,null,"",null,null,null,null,""]
[null,null,null,null,null,null,null,null,null,null,null,null,"3. In-Vitro Diagnostic Products",null,null,null,"",null,null,null,null,""]
[null,null,null,null,null,null,null,null,null,null,null,null,"4. Condoms",null,null,null,"",null,null,null,null,""]
[null,null,null,null,null,null,null,null,null,null,null,null,"5. Anti-retrovirals",null,null,null,"",null,null,null,null,""]
[null,null,null,null,null,null,null,null,null,null,null,null,"6. Anti-TB medicines",null,null,null,"",null,null,null,null,""]
[null,null,null,null,null,null,null,null,null,null,null,null,"7. Indoor Residual Spraying (IRS)",null,null,null,"",null,null,null,null,""]
[null,null,null,null,null,null,null,null,null,null,null,null,"Total",null,{"$f":"SUM(O35:O41)","v":0},{"$f":"SUM(P35:P41)","v":0},{"$f":"SUM(Q35:Q41)","v":0},null,null,{"$f":"SUM(T35:T41)","v":0},{"$f":"SUM(U35:U41)","v":0},{"$f":"SUM(V35:V41)","v":0}]
[]
[null,null,null,null,null,null,null,null,null,null,null,null," 2. Based on best information available to the LFA, are there any risks of drug stock-out or expiries at the central level in the next period of implementation?  (If yes, please explain in comments box)\n! This section should be completed by the LFA based on best information on stock at the central level available to the LFA and should not require dedicated visits for on-site checks of stocks."]
[null,null,null,null,null,null,null,null,null,null,null,null,"Key Pharmaceuticals & Health Products",null,"Risk of Stock-Out","Risk of Expiry","Comment (if yes, please provide information on the specific items that are at risk of stock-out or expiry and the mitigation measures in place or to be implemented)"]
[null,null,null,null,null,null,null,null,null,null,null,null,"1. Anti-malaria medicines",null,"Select","Select"]
[null,null,null,null,null,null,null,null,null,null,null,null,"2. Bed nets",null,"Select","Select"]
[null,null,null,null,null,null,null,null,null,null,null,null,"3. In-Vitro Diagnostic Products",null,"Select","Select"]
[null,null,null,null,null,null,null,null,null,null,null,null,"4. Condoms",null,"Select","Select"]
[null,null,null,null,null,null,null,null,null,null,null,null,"5. Anti-retrovirals",null,"Select","Select"]
[null,null,null,null,null,null,null,null,null,null,null,null,"6. Anti-TB medicines",null,"Select","Select"]
[null,null,null,null,null,null,null,null,null,null,null,null,"7. Lab supplies (e.g. CD4, Viral Load, Cartridges…)",null,"Select","Select"]
[null,null,null,null,null,null,null,null,null,null,null,null,"8. Other (Please specify in the \"Comment\" column)",null,"Select","Select"]
[]
[]
[null,null,null,null,null,null,null,null,null,null,null,null,"3. LFA analysis of issues related to the procurement and supply management of pharmaceuticals and health products"]
[]
[]
[]
[]
[]
[]
[]
[]
[]
[]
[]
[]
[]
[]
[]
[]
[null,null,null,null,null,null,null,null,null,null,null,null,"Record ID","a2R36000000eZzKEAU"]
[null,null,null,null,null,null,null,null,null,null,null,null,"PQR Response (PR)",{"$f":"IF(O29=\"Select\",\"\",O29)","v":"N/A"}]
[null,null,null,null,null,null,null,null,null,null,null,null,"PQR Response (LFA)",{"$f":"IF(P29=\"Select\",\"\",P29)","v":""}]
[null,null,null,null,null,null,null,null,null,null,null,null,"Stock Out Response (LFA)",{"$f":"IF(OR(O46=\"Yes\",O47=\"Yes\",O48=\"Yes\",O49=\"Yes\",O50=\"Yes\",O51=\"Yes\",O52=\"Yes\",O53=\"Yes\",), \"Yes\", \"No\")","v":"No"}]
[null,null,null,null,null,null,null,null,null,null,null,null,"Expiry Response (LFA)",{"$f":"IF(OR(P46=\"Yes\",P47=\"Yes\",P48=\"Yes\",P49=\"Yes\",P50=\"Yes\",P51=\"Yes\",P52=\"Yes\",P53=\"Yes\",), \"Yes\", \"No\")","v":"No"}]

{"sheet":"Grant Management_4","index":23,"n_rows":145,"n_cols":12,"rows_kept":145,"cut":false,"hidden":false,"merged":[[109,8,109,9],[110,8,110,9],[111,8,111,9],[112,8,112,9],[113,8,113,9],[114,8,114,9],[115,8,115,9],[116,8,116,9],[117,8,117,9],[135,8,135,9],[118,8,118,9],[119,8,119,9],[120,8,120,9],[121,8,121,9],[122,8,122,9],[123,8,123,9],[124,8,124,9],[125,8,125,9],[126,8,126,9],[127,8,127,9],[128,8,128,9],[129,8,129,9],[130,8,130,9],[131,8,131,9],[132,8,132,9],[133,8,133,9],[134,8,134,9],[106,8,106,9],[107,8,107,9],[108,8,108,9],[91,8,91,9],[92,8,92,9],[93,8,93,9],[94,8,94,9],[95,8,95,9],[96,8,96,9],[97,8,97,9],[98,8,98,9],[99,8,99,9],[100,8,100,9],[101,8,101,9],[102,8,102,9],[103,8,103,9],[104,8,104,9],[105,8,105,9],[82,8,82,9],[83,8,83,9],[84,8,84,9],[85,8,85,9],[86,8,86,9],[87,8,87,9],[88,8,88,9],[89,8,89,9],[90,8,90,9],[73,8,73,9],[74,8,74,9],[75,8,75,9],[76,8,76,9],[77,8,77,9],[78,8,78,9],[79,8,79,9],[80,8,80,9],[81,8,81,9],[64,8,64,9],[65,8,65,9],[66,8,66,9],[67,8,67,9],[68,8,68,9],[69,8,69,9],[70,8,70,9],[71,8,71,9],[72,8,72,9],[127,5,127,6],[128,5,128,6],[129,5,129,6],[130,5,130,6],[131,5,131,6],[132,5,132,6],[133,5,133,6],[134,5,134,6],[135,5,135,6],[118,5,118,6],[119,5,119,6],[120,5,120,6],[121,5,121,6],[122,5,122,6],[123,5,123,6],[124,5,124,6],[125,5,125,6],[126,5,126,6],[109,5,109,6],[110,5,110,6],[111,5,111,6],[112,5,112,6],[113,5,113,6],[114,5,114,6],[115,5,115,6],[116,5,116,6],[117,5,117,6],[100,5,100,6],[101,5,101,6],[102,5,102,6],[103,5,103,6],[104,5,104,6],[105,5,105,6],[106,5,106,6],[107,5,107,6],[108,5,108,6],[91,5,91,6],[92,5,92,6],[93,5,93,6],[94,5,94,6],[95,5,95,6],[96,5,96,6],[97,5,97,6],[98,5,98,6],[99,5,99,6],[82,5,82,6],[83,5,83,6],[84,5,84,6],[85,5,85,6],[86,5,86,6],[87,5,87,6],[88,5,88,6],[89,5,89,6],[90,5,90,6],[73,5,73,6],[74,5,74,6],[75,5,75,6],[76,5,76,6],[77,5,77,6],[78,5,78,6],[79,5,79,6],[80,5,80,6],[81,5,81,6],[64,5,64,6],[65,5,65,6],[66,5,66,6],[67,5,67,6],[68,5,68,6],[69,5,69,6],[70,5,70,6],[71,5,71,6],[72,5,72,6],[127,2,127,3],[128,2,128,3],[129,2,129,3],[130,2,130,3],[131,2,131,3],[132,2,132,3],[133,2,133,3],[134,2,134,3],[135,2,135,3],[118,2,118,3],[119,2,119,3],[120,2,120,3],[121,2,121,3],[122,2,122,3],[123,2,123,3],[124,2,124,3],[125,2,125,3],[126,2,126,3],[109,2,109,3],[110,2,110,3],[111,2,111,3],[112,2,112,3],[113,2,113,3],[114,2,114,3],[115,2,115,3],[116,2,116,3],[117,2,117,3],[100,2,100,3],[101,2,101,3],[102,2,102,3],[103,2,103,3],[104,2,104,3],[105,2,105,3],[106,2,106,3],[107,2,107,3],[108,2,108,3],[91,2,91,3],[92,2,92,3],[93,2,93,3],[94,2,94,3],[95,2,95,3],[96,2,96,3],[97,2,97,3],[98,2,98,3],[99,2,99,3],[82,2,82,3],[83,2,83,3],[84,2,84,3],[85,2,85,3],[86,2,86,3],[87,2,87,3],[88,2,88,3],[89,2,89,3],[90,2,90,3],[73,2,73,3],[74,2,74,3],[75,2,75,3],[76,2,76,3],[77,2,77,3],[78,2,78,3],[79,2,79,3],[80,2,80,3],[81,2,81,3],[64,2,64,3],[65,2,65,3],[66,2,66,3],[67,2,67,3],[68,2,68,3],[69,2,69,3],[70,2,70,3],[71,2,71,3],[72,2,72,3],[8,2,8,3],[62,2,62,3],[63,2,63,3],[63,5,63,6],[62,5,62,6],[54,2,54,3],[55,2,55,3],[56,2,56,3],[57,2,57,3],[58,2,58,3],[49,2,49,3],[50,2,50,3],[51,2,51,3],[52,2,52,3],[53,2,53,3],[44,2,44,3],[45,2,45,3],[46,2,46,3],[47,2,47,3],[48,2,48,3],[39,2,39,3],[40,2,40,3],[41,2,41,3],[42,2,42,3],[9,2,9,3],[10,2,10,3],[11,2,11,3],[12,2,12,3],[13,2,13,3],[24,2,24,3],[25,2,25,3],[26,2,26,3],[27,2,27,3],[19,2,19,3],[20,2,20,3],[21,2,21,3],[22,2,22,3],[23,2,23,3],[14,2,14,3],[15,2,15,3],[16,2,16,3],[17,2,17,3],[18,2,18,3],[28,2,28,3],[43,2,43,3],[34,2,34,3],[35,2,35,3],[36,2,36,3],[37,2,37,3],[38,2,38,3],[29,2,29,3],[30,2,30,3],[31,2,31,3],[32,2,32,3],[33,2,33,3],[40,8,40,9],[41,8,41,9],[42,8,42,9],[41,5,41,6],[42,5,42,6],[40,5,40,6],[53,5,53,6],[54,5,54,6],[55,5,55,6],[48,5,48,6],[49,5,49,6],[57,8,57,9],[50,5,50,6],[51,5,51,6],[52,5,52,6],[43,5,43,6],[44,5,44,6],[45,5,45,6],[46,5,46,6],[47,5,47,6],[56,5,56,6],[57,5,57,6],[38,8,38,9],[39,8,39,9],[30,8,30,9],[31,8,31,9],[32,8,32,9],[33,8,33,9],[34,8,34,9],[58,8,58,9],[63,8,63,9],[62,8,62,9],[43,8,43,9],[44,8,44,9],[45,8,45,9],[46,8,46,9],[47,8,47,9],[48,8,48,9],[49,8,49,9],[50,8,50,9],[51,8,51,9],[52,8,52,9],[53,8,53,9],[54,8,54,9],[55,8,55,9],[56,8,56,9],[29,8,29,9],[20,8,20,9],[21,8,21,9],[22,8,22,9],[23,8,23,9],[24,8,24,9],[35,8,35,9],[36,8,36,9],[37,8,37,9],[16,5,16,6],[17,5,17,6],[18,5,18,6],[9,5,9,6],[10,5,10,6],[11,5,11,6],[12,5,12,6],[13,5,13,6],[28,8,28,9],[138,2,138,7],[140,6,140,8],[140,9,140,11],[60,2,60,8],[19,5,19,6],[20,5,20,6],[21,5,21,6],[22,5,22,6],[23,5,23,6],[24,5,24,6],[25,5,25,6],[26,5,26,6],[27,5,27,6],[28,5,28,6],[38,5,38,6],[39,5,39,6],[29,5,29,6],[30,5,30,6],[31,5,31,6],[58,5,58,6],[19,8,19,9],[25,8,25,9],[26,8,26,9],[27,8,27,9],[32,5,32,6],[33,5,33,6],[34,5,34,6],[35,5,35,6],[36,5,36,6],[37,5,37,6],[6,10,6,11],[5,2,5,7],[6,2,6,5],[6,7,6,8],[8,5,8,6],[8,8,8,9],[9,8,9,9],[10,8,10,9],[11,8,11,9],[12,8,12,9],[13,8,13,9],[14,8,14,9],[15,8,15,9],[16,8,16,9],[17,8,17,9],[18,8,18,9],[14,5,14,6],[15,5,15,6]]}
[null,null,{"$f":"IF(CoverSheet!K12=\"N/A\",\"Progress Report\",\"Progress Report with Disbursement Request\")","v":"Progress Report with Disbursement Request"}]
[]
[null,null,{"$f":"VLOOKUP(Translations!B310,Translations!B3:H508,4,0)","v":"Section 4:  Grant Management"}]
[]
[null,null,{"$f":"VLOOKUP(Translations!B311,Translations!B3:H508,4,0)","v":"A.  PR and LFA Comments on the Fulfilment of Grant Requirements"}]
[]
[null,null,"! Please include in this table the Grant Requirement number as per Grant Confirmation and full text of the requirement due for fulfilment during this period or outstanding from previous periods. \n! Some may apply to more than one period of grant implementation.  Their fulfilment during one period does not automatically imply fulfilment in subsequent periods.  The LFA should verify that the status of such Grant Requirements is reported by the Principal Recipient during each period concerned.",null,null,null,null,"For LFA Use Only",null,null,"For the Global Fund Use Only"]
[]
[null,{"$f":"IF(C9<>\"\",\"Show\",\"Don't Show\")","v":"Show"},{"$f":"VLOOKUP(Translations!B313,Translations!B3:H508,4,0)","v":"Grant Requirements"},null,{"$f":"VLOOKUP(Translations!B314,Translations!B3:H508,4,0)","v":"Status"},{"$f":"VLOOKUP(Translations!B315,Translations!B3:H508,4,0)","v":"PR Comments on Progress of Implementation"},null,"Status","LFA Analysis\n(this should not be a \"\"Copy and Paste\"\" of the comments provided by the PR)",null,"Validate Status","Country Team Comments"]
["Grantreq1",{"$f":"IF(C10<>\"\",\"Show\",\"Don't Show\")","v":"Show"},{"$f":"IFERROR(INDEX('Grant Management_4 imp-exp'!$D$2:$D$8,MATCH('Grant Management_4'!A10,'Grant Management_4 imp-exp'!$B$2:$B$6,0)),\"\")","v":"Force Majeure Conditions:\n(i)\tThe parties acknowledge that as of 1 January 2018, the situation in Burundi has been characterized by high safety and security threats and political instability (collectively, the “Force Majeure Conditions”).  Under the circumstances, the parties acknowledge and agree that: \n(a)\tIn consultation with the Global Fund, the Principal Recipient may suspend or terminate the activities under this Agreement at any time if the Force Majeure Conditions so require;\n(b)\tThe budget and performance framework (including the frequency and contents of reporting) will be reviewed by the parties as needed, with a view to evaluating and accounting for any change in the Force Majeure Conditions in the country and its impact on the performance of the Grant, and, should the changes in the Force Majeure Conditions warrant a reprogramming of the Program, the Principal Recipient shall, at the request of the Global Fund, deliver to the Global Fund a revised budget and performance framework in form and substance satisfactory to the Global Fund; and\n(c)\tNotwithstanding Articles 8 and 10 of this Agreement, and except in the case of gross negligence or wilful misconduct of the Principal Recipient, the Principal Recipient shall not be liable for the loss or damage to any assets financed under this Agreement (including Health Products), as well as for the loss of any Grant Funds (the “Relevant Assets and Funds”) caused by the Force Majeure Conditions, provided that the Principal Recipient (i) has fully complied with the other terms and conditions of this Agreement and has exercised due care and diligence and (ii) has exercised all reasonable efforts to mitigate the risk of loss of the Relevant Assets and Funds. Nevertheless, the Principal Recipient shall use its best efforts to seek and obtain recovery of any potential losses to the Relevant Assets and Funds.\n\n(ii)\tThe parties agree that the aforementioned provision shall automatically terminate after the earlier of (a) 31 December 2018 and (b) the determination by the parties that the Force Majeure Conditions no longer exist, unless the period ending on the date referred to in (a) is extended by written agreement of the parties. \n(iii)The parties also acknowledge that the agreement by the Global Fund to the aforementioned provision does not commit the Global Fund to limit the liability of the Principal Recipient (a) if a loss of any Relevant Assets and Funds is not caused by the Force Majeure Conditions or (b) under any programs implemented by the Principal Recipient in any other jurisdiction."},null,"In Progress","UNDSS assessment of security status as not change. The Clause is still valid but no major changes are foreseen"]
["Grantreq2","Don't Show",{"$f":"IFERROR(INDEX('Grant Management_4 imp-exp'!$D$2:$D$8,MATCH('Grant Management_4'!A11,'Grant Management_4 imp-exp'!$B$2:$B$6,0)),\"\")","v":""}]
["Grantreq3","Don't Show",{"$f":"IFERROR(INDEX('Grant Management_4 imp-exp'!$D$2:$D$8,MATCH('Grant Management_4'!A12,'Grant Management_4 imp-exp'!$B$2:$B$6,0)),\"\")","v":""}]
["Grantreq4","Don't Show",{"$f":"IFERROR(INDEX('Grant Management_4 imp-exp'!$D$2:$D$8,MATCH('Grant Management_4'!A13,'Grant Management_4 imp-exp'!$B$2:$B$6,0)),\"\")","v":""}]
["Grantreq5","Don't Show",{"$f":"IFERROR(INDEX('Grant Management_4 imp-exp'!$D$2:$D$8,MATCH('Grant Management_4'!A14,'Grant Management_4 imp-exp'!$B$2:$B$6,0)),\"\")","v":""}]
["Grantreq6","Don't Show",{"$f":"IFERROR(INDEX('Grant Management_4 imp-exp'!$D$2:$D$8,MATCH('Grant Management_4'!A15,'Grant Management_4 imp-exp'!$B$2:$B$6,0)),\"\")","v":""}]
["Grantreq7","Don't Show",{"$f":"IFERROR(INDEX('Grant Management_4 imp-exp'!$D$2:$D$8,MATCH('Grant Management_4'!A16,'Grant Management_4 imp-exp'!$B$2:$B$6,0)),\"\")","v":""}]
["Grantreq8","Don't Show",{"$f":"IFERROR(INDEX('Grant Management_4 imp-exp'!$D$2:$D$8,MATCH('Grant Management_4'!A17,'Grant Management_4 imp-exp'!$B$2:$B$6,0)),\"\")","v":""}]
["Grantreq9","Don't Show",{"$f":"IFERROR(INDEX('Grant Management_4 imp-exp'!$D$2:$D$8,MATCH('Grant Management_4'!A18,'Grant Management_4 imp-exp'!$B$2:$B$6,0)),\"\")","v":""}]
["Grantreq10","Don't Show",{"$f":"IFERROR(INDEX('Grant Management_4 imp-exp'!$D$2:$D$8,MATCH('Grant Management_4'!A19,'Grant Management_4 imp-exp'!$B$2:$B$6,0)),\"\")","v":""}]
["Grantreq11","Don't Show",{"$f":"IFERROR(INDEX('Grant Management_4 imp-exp'!$D$2:$D$8,MATCH('Grant Management_4'!A20,'Grant Management_4 imp-exp'!$B$2:$B$6,0)),\"\")","v":""}]
["Grantreq12","Don't Show",{"$f":"IFERROR(INDEX('Grant Management_4 imp-exp'!$D$2:$D$8,MATCH('Grant Management_4'!A21,'Grant Management_4 imp-exp'!$B$2:$B$6,0)),\"\")","v":""}]
["Grantreq13","Don't Show",{"$f":"IFERROR(INDEX('Grant Management_4 imp-exp'!$D$2:$D$8,MATCH('Grant Management_4'!A22,'Grant Management_4 imp-exp'!$B$2:$B$6,0)),\"\")","v":""}]
["Grantreq14","Don't Show",{"$f":"IFERROR(INDEX('Grant Management_4 imp-exp'!$D$2:$D$8,MATCH('Grant Management_4'!A23,'Grant Management_4 imp-exp'!$B$2:$B$6,0)),\"\")","v":""}]
["Grantreq15","Don't Show",{"$f":"IFERROR(INDEX('Grant Management_4 imp-exp'!$D$2:$D$8,MATCH('Grant Management_4'!A24,'Grant Management_4 imp-exp'!$B$2:$B$6,0)),\"\")","v":""}]
["Grantreq16","Don't Show",{"$f":"IFERROR(INDEX('Grant Management_4 imp-exp'!$D$2:$D$8,MATCH('Grant Management_4'!A25,'Grant Management_4 imp-exp'!$B$2:$B$6,0)),\"\")","v":""}]
["Grantreq17","Don't Show",{"$f":"IFERROR(INDEX('Grant Management_4 imp-exp'!$D$2:$D$8,MATCH('Grant Management_4'!A26,'Grant Management_4 imp-exp'!$B$2:$B$6,0)),\"\")","v":""}]
["Grantreq18","Don't Show",{"$f":"IFERROR(INDEX('Grant Management_4 imp-exp'!$D$2:$D$8,MATCH('Grant Management_4'!A27,'Grant Management_4 imp-exp'!$B$2:$B$6,0)),\"\")","v":""}]
["Grantreq19","Don't Show",{"$f":"IFERROR(INDEX('Grant Management_4 imp-exp'!$D$2:$D$8,MATCH('Grant Management_4'!A28,'Grant Management_4 imp-exp'!$B$2:$B$6,0)),\"\")","v":""}]
["Grantreq20","Don't Show",{"$f":"IFERROR(INDEX('Grant Management_4 imp-exp'!$D$2:$D$8,MATCH('Grant Management_4'!A29,'Grant Management_4 imp-exp'!$B$2:$B$6,0)),\"\")","v":""}]
["Grantreq21","Don't Show",{"$f":"IFERROR(INDEX('Grant Management_4 imp-exp'!$D$2:$D$8,MATCH('Grant Management_4'!A30,'Grant Management_4 imp-exp'!$B$2:$B$6,0)),\"\")","v":""}]
["Grantreq22","Don't Show",{"$f":"IFERROR(INDEX('Grant Management_4 imp-exp'!$D$2:$D$8,MATCH('Grant Management_4'!A31,'Grant Management_4 imp-exp'!$B$2:$B$6,0)),\"\")","v":""}]
["Grantreq23","Don't Show",{"$f":"IFERROR(INDEX('Grant Management_4 imp-exp'!$D$2:$D$8,MATCH('Grant Management_4'!A32,'Grant Management_4 imp-exp'!$B$2:$B$6,0)),\"\")","v":""}]
["Grantreq24","Don't Show",{"$f":"IFERROR(INDEX('Grant Management_4 imp-exp'!$D$2:$D$8,MATCH('Grant Management_4'!A33,'Grant Management_4 imp-exp'!$B$2:$B$6,0)),\"\")","v":""}]
["Grantreq25","Don't Show",{"$f":"IFERROR(INDEX('Grant Management_4 imp-exp'!$D$2:$D$8,MATCH('Grant Management_4'!A34,'Grant Management_4 imp-exp'!$B$2:$B$6,0)),\"\")","v":""}]
["Grantreq26","Don't Show",{"$f":"IFERROR(INDEX('Grant Management_4 imp-exp'!$D$2:$D$8,MATCH('Grant Management_4'!A35,'Grant Management_4 imp-exp'!$B$2:$B$6,0)),\"\")","v":""}]
["Grantreq27","Don't Show",{"$f":"IFERROR(INDEX('Grant Management_4 imp-exp'!$D$2:$D$8,MATCH('Grant Management_4'!A36,'Grant Management_4 imp-exp'!$B$2:$B$6,0)),\"\")","v":""}]
["Grantreq28","Don't Show",{"$f":"IFERROR(INDEX('Grant Management_4 imp-exp'!$D$2:$D$8,MATCH('Grant Management_4'!A37,'Grant Management_4 imp-exp'!$B$2:$B$6,0)),\"\")","v":""}]
["Grantreq29","Don't Show",{"$f":"IFERROR(INDEX('Grant Management_4 imp-exp'!$D$2:$D$8,MATCH('Grant Management_4'!A38,'Grant Management_4 imp-exp'!$B$2:$B$6,0)),\"\")","v":""}]
["Grantreq30","Don't Show",{"$f":"IFERROR(INDEX('Grant Management_4 imp-exp'!$D$2:$D$8,MATCH('Grant Management_4'!A39,'Grant Management_4 imp-exp'!$B$2:$B$6,0)),\"\")","v":""}]
["Grantreq31","Don't Show",{"$f":"IFERROR(INDEX('Grant Management_4 imp-exp'!$D$2:$D$8,MATCH('Grant Management_4'!A40,'Grant Management_4 imp-exp'!$B$2:$B$6,0)),\"\")","v":""}]
["Grantreq32","Don't Show",{"$f":"IFERROR(INDEX('Grant Management_4 imp-exp'!$D$2:$D$8,MATCH('Grant Management_4'!A41,'Grant Management_4 imp-exp'!$B$2:$B$6,0)),\"\")","v":""}]
["Grantreq33","Don't Show",{"$f":"IFERROR(INDEX('Grant Management_4 imp-exp'!$D$2:$D$8,MATCH('Grant Management_4'!A42,'Grant Management_4 imp-exp'!$B$2:$B$6,0)),\"\")","v":""}]
["Grantreq34","Don't Show",{"$f":"IFERROR(INDEX('Grant Management_4 imp-exp'!$D$2:$D$8,MATCH('Grant Management_4'!A43,'Grant Management_4 imp-exp'!$B$2:$B$6,0)),\"\")","v":""}]
["Grantreq35","Don't Show",{"$f":"IFERROR(INDEX('Grant Management_4 imp-exp'!$D$2:$D$8,MATCH('Grant Management_4'!A44,'Grant Management_4 imp-exp'!$B$2:$B$6,0)),\"\")","v":""}]
["Grantreq36","Don't Show",{"$f":"IFERROR(INDEX('Grant Management_4 imp-exp'!$D$2:$D$8,MATCH('Grant Management_4'!A45,'Grant Management_4 imp-exp'!$B$2:$B$6,0)),\"\")","v":""}]
["Grantreq37","Don't Show",{"$f":"IFERROR(INDEX('Grant Management_4 imp-exp'!$D$2:$D$8,MATCH('Grant Management_4'!A46,'Grant Management_4 imp-exp'!$B$2:$B$6,0)),\"\")","v":""}]
["Grantreq38","Don't Show",{"$f":"IFERROR(INDEX('Grant Management_4 imp-exp'!$D$2:$D$8,MATCH('Grant Management_4'!A47,'Grant Management_4 imp-exp'!$B$2:$B$6,0)),\"\")","v":""}]
["Grantreq39","Don't Show",{"$f":"IFERROR(INDEX('Grant Management_4 imp-exp'!$D$2:$D$8,MATCH('Grant Management_4'!A48,'Grant Management_4 imp-exp'!$B$2:$B$6,0)),\"\")","v":""}]
["Grantreq40","Don't Show",{"$f":"IFERROR(INDEX('Grant Management_4 imp-exp'!$D$2:$D$8,MATCH('Grant Management_4'!A49,'Grant Management_4 imp-exp'!$B$2:$B$6,0)),\"\")","v":""}]
["Grantreq41","Don't Show",{"$f":"IFERROR(INDEX('Grant Management_4 imp-exp'!$D$2:$D$8,MATCH('Grant Management_4'!A50,'Grant Management_4 imp-exp'!$B$2:$B$6,0)),\"\")","v":""}]
["Grantreq42","Don't Show",{"$f":"IFERROR(INDEX('Grant Management_4 imp-exp'!$D$2:$D$8,MATCH('Grant Management_4'!A51,'Grant Management_4 imp-exp'!$B$2:$B$6,0)),\"\")","v":""}]
["Grantreq43","Don't Show",{"$f":"IFERROR(INDEX('Grant Management_4 imp-exp'!$D$2:$D$8,MATCH('Grant Management_4'!A52,'Grant Management_4 imp-exp'!$B$2:$B$6,0)),\"\")","v":""}]
["Grantreq44","Don't Show",{"$f":"IFERROR(INDEX('Grant Management_4 imp-exp'!$D$2:$D$8,MATCH('Grant Management_4'!A53,'Grant Management_4 imp-exp'!$B$2:$B$6,0)),\"\")","v":""}]
["Grantreq45","Don't Show",{"$f":"IFERROR(INDEX('Grant Management_4 imp-exp'!$D$2:$D$8,MATCH('Grant Management_4'!A54,'Grant Management_4 imp-exp'!$B$2:$B$6,0)),\"\")","v":""}]
["Grantreq46","Don't Show",{"$f":"IFERROR(INDEX('Grant Management_4 imp-exp'!$D$2:$D$8,MATCH('Grant Management_4'!A55,'Grant Management_4 imp-exp'!$B$2:$B$6,0)),\"\")","v":""}]
["Grantreq47","Don't Show",{"$f":"IFERROR(INDEX('Grant Management_4 imp-exp'!$D$2:$D$8,MATCH('Grant Management_4'!A56,'Grant Management_4 imp-exp'!$B$2:$B$6,0)),\"\")","v":""}]
["Grantreq48","Don't Show",{"$f":"IFERROR(INDEX('Grant Management_4 imp-exp'!$D$2:$D$8,MATCH('Grant Management_4'!A57,'Grant Management_4 imp-exp'!$B$2:$B$6,0)),\"\")","v":""}]
["Grantreq49","Don't Show",{"$f":"IFERROR(INDEX('Grant Management_4 imp-exp'!$D$2:$D$8,MATCH('Grant Management_4'!A58,'Grant Management_4 imp-exp'!$B$2:$B$6,0)),\"\")","v":""}]
["Grantreq50","Don't Show",{"$f":"IFERROR(INDEX('Grant Management_4 imp-exp'!$D$2:$D$8,MATCH('Grant Management_4'!A59,'Grant Management_4 imp-exp'!$B$2:$B$6,0)),\"\")","v":""}]
[null,"Show","x"]
[null,"Show","B. PR & LFA Review of Progress on Mitigating Actions"]
[null,"Show","x"]
["Record ID","Show","Risk Details",null,"Timeline","Mitigating Action",null,"PR Status","PR Comments",null,"LFA Status","LFA Comments"]
["Mitaction1","Don't Show",{"$f":"IFERROR(INDEX('Grant Management_4 imp-exp'!D$17:D$18,MATCH('Grant Management_4'!A64,'Grant Management_4 imp-exp'!$B$17:$B$18,0)),\"\")","v":""},null,{"$f":"IFERROR(INDEX('Grant Management_4 imp-exp'!F$17:F$18,MATCH('Grant Management_4'!A64,'Grant Management_4 imp-exp'!$B$17:$B$18,0)),\"\")","v":""},{"$f":"IFERROR(INDEX('Grant Management_4 imp-exp'!G$17:G$18,MATCH('Grant Management_4'!A64,'Grant Management_4 imp-exp'!$B$17:$B$18,0)),\"\")","v":""}]
["Mitaction2","Don't Show",{"$f":"IFERROR(INDEX('Grant Management_4 imp-exp'!D$17:D$18,MATCH('Grant Management_4'!A65,'Grant Management_4 imp-exp'!$B$17:$B$18,0)),\"\")","v":""},null,{"$f":"IFERROR(INDEX('Grant Management_4 imp-exp'!F$17:F$18,MATCH('Grant Management_4'!A65,'Grant Management_4 imp-exp'!$B$17:$B$18,0)),\"\")","v":""},{"$f":"IFERROR(INDEX('Grant Management_4 imp-exp'!G$17:G$18,MATCH('Grant Management_4'!A65,'Grant Management_4 imp-exp'!$B$17:$B$18,0)),\"\")","v":""}]
["Mitaction3","Don't Show",{"$f":"IFERROR(INDEX('Grant Management_4 imp-exp'!D$17:D$18,MATCH('Grant Management_4'!A66,'Grant Management_4 imp-exp'!$B$17:$B$18,0)),\"\")","v":""},null,{"$f":"IFERROR(INDEX('Grant Management_4 imp-exp'!F$17:F$18,MATCH('Grant Management_4'!A66,'Grant Management_4 imp-exp'!$B$17:$B$18,0)),\"\")","v":""},{"$f":"IFERROR(INDEX('Grant Management_4 imp-exp'!G$17:G$18,MATCH('Grant Management_4'!A66,'Grant Management_4 imp-exp'!$B$17:$B$18,0)),\"\")","v":""}]
["Mitaction4","Don't Show",{"$f":"IFERROR(INDEX('Grant Management_4 imp-exp'!D$17:D$18,MATCH('Grant Management_4'!A67,'Grant Management_4 imp-exp'!$B$17:$B$18,0)),\"\")","v":""},null,{"$f":"IFERROR(INDEX('Grant Management_4 imp-exp'!F$17:F$18,MATCH('Grant Management_4'!A67,'Grant Management_4 imp-exp'!$B$17:$B$18,0)),\"\")","v":""},{"$f":"IFERROR(INDEX('Grant Management_4 imp-exp'!G$17:G$18,MATCH('Grant Management_4'!A67,'Grant Management_4 imp-exp'!$B$17:$B$18,0)),\"\")","v":""}]
["Mitaction5","Don't Show",{"$f":"IFERROR(INDEX('Grant Management_4 imp-exp'!D$17:D$18,MATCH('Grant Management_4'!A68,'Grant Management_4 imp-exp'!$B$17:$B$18,0)),\"\")","v":""},null,{"$f":"IFERROR(INDEX('Grant Management_4 imp-exp'!F$17:F$18,MATCH('Grant Management_4'!A68,'Grant Management_4 imp-exp'!$B$17:$B$18,0)),\"\")","v":""},{"$f":"IFERROR(INDEX('Grant Management_4 imp-exp'!G$17:G$18,MATCH('Grant Management_4'!A68,'Grant Management_4 imp-exp'!$B$17:$B$18,0)),\"\")","v":""}]
["Mitaction6","Don't Show",{"$f":"IFERROR(INDEX('Grant Management_4 imp-exp'!D$17:D$18,MATCH('Grant Management_4'!A69,'Grant Management_4 imp-exp'!$B$17:$B$18,0)),\"\")","v":""},null,{"$f":"IFERROR(INDEX('Grant Management_4 imp-exp'!F$17:F$18,MATCH('Grant Management_4'!A69,'Grant Management_4 imp-exp'!$B$17:$B$18,0)),\"\")","v":""},{"$f":"IFERROR(INDEX('Grant Management_4 imp-exp'!G$17:G$18,MATCH('Grant Management_4'!A69,'Grant Management_4 imp-exp'!$B$17:$B$18,0)),\"\")","v":""}]
["Mitaction7","Don't Show",{"$f":"IFERROR(INDEX('Grant Management_4 imp-exp'!D$17:D$18,MATCH('Grant Management_4'!A70,'Grant Management_4 imp-exp'!$B$17:$B$18,0)),\"\")","v":""},null,{"$f":"IFERROR(INDEX('Grant Management_4 imp-exp'!F$17:F$18,MATCH('Grant Management_4'!A70,'Grant Management_4 imp-exp'!$B$17:$B$18,0)),\"\")","v":""},{"$f":"IFERROR(INDEX('Grant Management_4 imp-exp'!G$17:G$18,MATCH('Grant Management_4'!A70,'Grant Management_4 imp-exp'!$B$17:$B$18,0)),\"\")","v":""}]
["Mitaction8","Don't Show",{"$f":"IFERROR(INDEX('Grant Management_4 imp-exp'!D$17:D$18,MATCH('Grant Management_4'!A71,'Grant Management_4 imp-exp'!$B$17:$B$18,0)),\"\")","v":""},null,{"$f":"IFERROR(INDEX('Grant Management_4 imp-exp'!F$17:F$18,MATCH('Grant Management_4'!A71,'Grant Management_4 imp-exp'!$B$17:$B$18,0)),\"\")","v":""},{"$f":"IFERROR(INDEX('Grant Management_4 imp-exp'!G$17:G$18,MATCH('Grant Management_4'!A71,'Grant Management_4 imp-exp'!$B$17:$B$18,0)),\"\")","v":""}]
["Mitaction9","Don't Show",{"$f":"IFERROR(INDEX('Grant Management_4 imp-exp'!D$17:D$18,MATCH('Grant Management_4'!A72,'Grant Management_4 imp-exp'!$B$17:$B$18,0)),\"\")","v":""},null,{"$f":"IFERROR(INDEX('Grant Management_4 imp-exp'!F$17:F$18,MATCH('Grant Management_4'!A72,'Grant Management_4 imp-exp'!$B$17:$B$18,0)),\"\")","v":""},{"$f":"IFERROR(INDEX('Grant Management_4 imp-exp'!G$17:G$18,MATCH('Grant Management_4'!A72,'Grant Management_4 imp-exp'!$B$17:$B$18,0)),\"\")","v":""}]
["Mitaction10","Don't Show",{"$f":"IFERROR(INDEX('Grant Management_4 imp-exp'!D$17:D$18,MATCH('Grant Management_4'!A73,'Grant Management_4 imp-exp'!$B$17:$B$18,0)),\"\")","v":""},null,{"$f":"IFERROR(INDEX('Grant Management_4 imp-exp'!F$17:F$18,MATCH('Grant Management_4'!A73,'Grant Management_4 imp-exp'!$B$17:$B$18,0)),\"\")","v":""},{"$f":"IFERROR(INDEX('Grant Management_4 imp-exp'!G$17:G$18,MATCH('Grant Management_4'!A73,'Grant Management_4 imp-exp'!$B$17:$B$18,0)),\"\")","v":""}]
["Mitaction11",{"$f":"IF(C74<>\"\",\"Show\",\"Don't Show\")","v":"Don't Show"},{"$f":"IFERROR(INDEX('Grant Management_4 imp-exp'!D$17:D$18,MATCH('Grant Management_4'!A74,'Grant Management_4 imp-exp'!$B$17:$B$18,0)),\"\")","v":""},null,{"$f":"IFERROR(INDEX('Grant Management_4 imp-exp'!F$17:F$18,MATCH('Grant Management_4'!A74,'Grant Management_4 imp-exp'!$B$17:$B$18,0)),\"\")","v":""},{"$f":"IFERROR(INDEX('Grant Management_4 imp-exp'!G$17:G$18,MATCH('Grant Management_4'!A74,'Grant Management_4 imp-exp'!$B$17:$B$18,0)),\"\")","v":""}]
["Mitaction12","Don't Show",{"$f":"IFERROR(INDEX('Grant Management_4 imp-exp'!D$17:D$18,MATCH('Grant Management_4'!A75,'Grant Management_4 imp-exp'!$B$17:$B$18,0)),\"\")","v":""},null,{"$f":"IFERROR(INDEX('Grant Management_4 imp-exp'!F$17:F$18,MATCH('Grant Management_4'!A75,'Grant Management_4 imp-exp'!$B$17:$B$18,0)),\"\")","v":""},{"$f":"IFERROR(INDEX('Grant Management_4 imp-exp'!G$17:G$18,MATCH('Grant Management_4'!A75,'Grant Management_4 imp-exp'!$B$17:$B$18,0)),\"\")","v":""}]
["Mitaction13","Don't Show",{"$f":"IFERROR(INDEX('Grant Management_4 imp-exp'!D$17:D$18,MATCH('Grant Management_4'!A76,'Grant Management_4 imp-exp'!$B$17:$B$18,0)),\"\")","v":""},null,{"$f":"IFERROR(INDEX('Grant Management_4 imp-exp'!F$17:F$18,MATCH('Grant Management_4'!A76,'Grant Management_4 imp-exp'!$B$17:$B$18,0)),\"\")","v":""},{"$f":"IFERROR(INDEX('Grant Management_4 imp-exp'!G$17:G$18,MATCH('Grant Management_4'!A76,'Grant Management_4 imp-exp'!$B$17:$B$18,0)),\"\")","v":""}]
["Mitaction14","Don't Show",{"$f":"IFERROR(INDEX('Grant Management_4 imp-exp'!D$17:D$18,MATCH('Grant Management_4'!A77,'Grant Management_4 imp-exp'!$B$17:$B$18,0)),\"\")","v":""},null,{"$f":"IFERROR(INDEX('Grant Management_4 imp-exp'!F$17:F$18,MATCH('Grant Management_4'!A77,'Grant Management_4 imp-exp'!$B$17:$B$18,0)),\"\")","v":""},{"$f":"IFERROR(INDEX('Grant Management_4 imp-exp'!G$17:G$18,MATCH('Grant Management_4'!A77,'Grant Management_4 imp-exp'!$B$17:$B$18,0)),\"\")","v":""}]
["Mitaction15","Don't Show",{"$f":"IFERROR(INDEX('Grant Management_4 imp-exp'!D$17:D$18,MATCH('Grant Management_4'!A78,'Grant Management_4 imp-exp'!$B$17:$B$18,0)),\"\")","v":""},null,{"$f":"IFERROR(INDEX('Grant Management_4 imp-exp'!F$17:F$18,MATCH('Grant Management_4'!A78,'Grant Management_4 imp-exp'!$B$17:$B$18,0)),\"\")","v":""},{"$f":"IFERROR(INDEX('Grant Management_4 imp-exp'!G$17:G$18,MATCH('Grant Management_4'!A78,'Grant Management_4 imp-exp'!$B$17:$B$18,0)),\"\")","v":""}]
["Mitaction16","Don't Show",{"$f":"IFERROR(INDEX('Grant Management_4 imp-exp'!D$17:D$18,MATCH('Grant Management_4'!A79,'Grant Management_4 imp-exp'!$B$17:$B$18,0)),\"\")","v":""},null,{"$f":"IFERROR(INDEX('Grant Management_4 imp-exp'!F$17:F$18,MATCH('Grant Management_4'!A79,'Grant Management_4 imp-exp'!$B$17:$B$18,0)),\"\")","v":""},{"$f":"IFERROR(INDEX('Grant Management_4 imp-exp'!G$17:G$18,MATCH('Grant Management_4'!A79,'Grant Management_4 imp-exp'!$B$17:$B$18,0)),\"\")","v":""}]
["Mitaction17","Don't Show",{"$f":"IFERROR(INDEX('Grant Management_4 imp-exp'!D$17:D$18,MATCH('Grant Management_4'!A80,'Grant Management_4 imp-exp'!$B$17:$B$18,0)),\"\")","v":""},null,{"$f":"IFERROR(INDEX('Grant Management_4 imp-exp'!F$17:F$18,MATCH('Grant Management_4'!A80,'Grant Management_4 imp-exp'!$B$17:$B$18,0)),\"\")","v":""},{"$f":"IFERROR(INDEX('Grant Management_4 imp-exp'!G$17:G$18,MATCH('Grant Management_4'!A80,'Grant Management_4 imp-exp'!$B$17:$B$18,0)),\"\")","v":""}]
["Mitaction18","Don't Show",{"$f":"IFERROR(INDEX('Grant Management_4 imp-exp'!D$17:D$18,MATCH('Grant Management_4'!A81,'Grant Management_4 imp-exp'!$B$17:$B$18,0)),\"\")","v":""},null,{"$f":"IFERROR(INDEX('Grant Management_4 imp-exp'!F$17:F$18,MATCH('Grant Management_4'!A81,'Grant Management_4 imp-exp'!$B$17:$B$18,0)),\"\")","v":""},{"$f":"IFERROR(INDEX('Grant Management_4 imp-exp'!G$17:G$18,MATCH('Grant Management_4'!A81,'Grant Management_4 imp-exp'!$B$17:$B$18,0)),\"\")","v":""}]
["Mitaction19","Don't Show",{"$f":"IFERROR(INDEX('Grant Management_4 imp-exp'!D$17:D$18,MATCH('Grant Management_4'!A82,'Grant Management_4 imp-exp'!$B$17:$B$18,0)),\"\")","v":""},null,{"$f":"IFERROR(INDEX('Grant Management_4 imp-exp'!F$17:F$18,MATCH('Grant Management_4'!A82,'Grant Management_4 imp-exp'!$B$17:$B$18,0)),\"\")","v":""},{"$f":"IFERROR(INDEX('Grant Management_4 imp-exp'!G$17:G$18,MATCH('Grant Management_4'!A82,'Grant Management_4 imp-exp'!$B$17:$B$18,0)),\"\")","v":""}]
["Mitaction20","Don't Show",{"$f":"IFERROR(INDEX('Grant Management_4 imp-exp'!D$17:D$18,MATCH('Grant Management_4'!A83,'Grant Management_4 imp-exp'!$B$17:$B$18,0)),\"\")","v":""},null,{"$f":"IFERROR(INDEX('Grant Management_4 imp-exp'!F$17:F$18,MATCH('Grant Management_4'!A83,'Grant Management_4 imp-exp'!$B$17:$B$18,0)),\"\")","v":""},{"$f":"IFERROR(INDEX('Grant Management_4 imp-exp'!G$17:G$18,MATCH('Grant Management_4'!A83,'Grant Management_4 imp-exp'!$B$17:$B$18,0)),\"\")","v":""}]
["Mitaction21","Don't Show",{"$f":"IFERROR(INDEX('Grant Management_4 imp-exp'!D$17:D$18,MATCH('Grant Management_4'!A84,'Grant Management_4 imp-exp'!$B$17:$B$18,0)),\"\")","v":""},null,{"$f":"IFERROR(INDEX('Grant Management_4 imp-exp'!F$17:F$18,MATCH('Grant Management_4'!A84,'Grant Management_4 imp-exp'!$B$17:$B$18,0)),\"\")","v":""},{"$f":"IFERROR(INDEX('Grant Management_4 imp-exp'!G$17:G$18,MATCH('Grant Management_4'!A84,'Grant Management_4 imp-exp'!$B$17:$B$18,0)),\"\")","v":""}]
["Mitaction22","Don't Show",{"$f":"IFERROR(INDEX('Grant Management_4 imp-exp'!D$17:D$18,MATCH('Grant Management_4'!A85,'Grant Management_4 imp-exp'!$B$17:$B$18,0)),\"\")","v":""},null,{"$f":"IFERROR(INDEX('Grant Management_4 imp-exp'!F$17:F$18,MATCH('Grant Management_4'!A85,'Grant Management_4 imp-exp'!$B$17:$B$18,0)),\"\")","v":""},{"$f":"IFERROR(INDEX('Grant Management_4 imp-exp'!G$17:G$18,MATCH('Grant Management_4'!A85,'Grant Management_4 imp-exp'!$B$17:$B$18,0)),\"\")","v":""}]
["Mitaction23","Don't Show",{"$f":"IFERROR(INDEX('Grant Management_4 imp-exp'!D$17:D$18,MATCH('Grant Management_4'!A86,'Grant Management_4 imp-exp'!$B$17:$B$18,0)),\"\")","v":""},null,{"$f":"IFERROR(INDEX('Grant Management_4 imp-exp'!F$17:F$18,MATCH('Grant Management_4'!A86,'Grant Management_4 imp-exp'!$B$17:$B$18,0)),\"\")","v":""},{"$f":"IFERROR(INDEX('Grant Management_4 imp-exp'!G$17:G$18,MATCH('Grant Management_4'!A86,'Grant Management_4 imp-exp'!$B$17:$B$18,0)),\"\")","v":""}]
["Mitaction24","Don't Show",{"$f":"IFERROR(INDEX('Grant Management_4 imp-exp'!D$17:D$18,MATCH('Grant Management_4'!A87,'Grant Management_4 imp-exp'!$B$17:$B$18,0)),\"\")","v":""},null,{"$f":"IFERROR(INDEX('Grant Management_4 imp-exp'!F$17:F$18,MATCH('Grant Management_4'!A87,'Grant Management_4 imp-exp'!$B$17:$B$18,0)),\"\")","v":""},{"$f":"IFERROR(INDEX('Grant Management_4 imp-exp'!G$17:G$18,MATCH('Grant Management_4'!A87,'Grant Management_4 imp-exp'!$B$17:$B$18,0)),\"\")","v":""}]
["Mitaction25","Don't Show",{"$f":"IFERROR(INDEX('Grant Management_4 imp-exp'!D$17:D$18,MATCH('Grant Management_4'!A88,'Grant Management_4 imp-exp'!$B$17:$B$18,0)),\"\")","v":""},null,{"$f":"IFERROR(INDEX('Grant Management_4 imp-exp'!F$17:F$18,MATCH('Grant Management_4'!A88,'Grant Management_4 imp-exp'!$B$17:$B$18,0)),\"\")","v":""},{"$f":"IFERROR(INDEX('Grant Management_4 imp-exp'!G$17:G$18,MATCH('Grant Management_4'!A88,'Grant Management_4 imp-exp'!$B$17:$B$18,0)),\"\")","v":""}]
["Mitaction26","Don't Show",{"$f":"IFERROR(INDEX('Grant Management_4 imp-exp'!D$17:D$18,MATCH('Grant Management_4'!A89,'Grant Management_4 imp-exp'!$B$17:$B$18,0)),\"\")","v":""},null,{"$f":"IFERROR(INDEX('Grant Management_4 imp-exp'!F$17:F$18,MATCH('Grant Management_4'!A89,'Grant Management_4 imp-exp'!$B$17:$B$18,0)),\"\")","v":""},{"$f":"IFERROR(INDEX('Grant Management_4 imp-exp'!G$17:G$18,MATCH('Grant Management_4'!A89,'Grant Management_4 imp-exp'!$B$17:$B$18,0)),\"\")","v":""}]
["Mitaction27","Don't Show",{"$f":"IFERROR(INDEX('Grant Management_4 imp-exp'!D$17:D$18,MATCH('Grant Management_4'!A90,'Grant Management_4 imp-exp'!$B$17:$B$18,0)),\"\")","v":""},null,{"$f":"IFERROR(INDEX('Grant Management_4 imp-exp'!F$17:F$18,MATCH('Grant Management_4'!A90,'Grant Management_4 imp-exp'!$B$17:$B$18,0)),\"\")","v":""},{"$f":"IFERROR(INDEX('Grant Management_4 imp-exp'!G$17:G$18,MATCH('Grant Management_4'!A90,'Grant Management_4 imp-exp'!$B$17:$B$18,0)),\"\")","v":""}]
["Mitaction28","Don't Show",{"$f":"IFERROR(INDEX('Grant Management_4 imp-exp'!D$17:D$18,MATCH('Grant Management_4'!A91,'Grant Management_4 imp-exp'!$B$17:$B$18,0)),\"\")","v":""},null,{"$f":"IFERROR(INDEX('Grant Management_4 imp-exp'!F$17:F$18,MATCH('Grant Management_4'!A91,'Grant Management_4 imp-exp'!$B$17:$B$18,0)),\"\")","v":""},{"$f":"IFERROR(INDEX('Grant Management_4 imp-exp'!G$17:G$18,MATCH('Grant Management_4'!A91,'Grant Management_4 imp-exp'!$B$17:$B$18,0)),\"\")","v":""}]
["Mitaction29","Don't Show",{"$f":"IFERROR(INDEX('Grant Management_4 imp-exp'!D$17:D$18,MATCH('Grant Management_4'!A92,'Grant Management_4 imp-exp'!$B$17:$B$18,0)),\"\")","v":""},null,{"$f":"IFERROR(INDEX('Grant Management_4 imp-exp'!F$17:F$18,MATCH('Grant Management_4'!A92,'Grant Management_4 imp-exp'!$B$17:$B$18,0)),\"\")","v":""},{"$f":"IFERROR(INDEX('Grant Management_4 imp-exp'!G$17:G$18,MATCH('Grant Management_4'!A92,'Grant Management_4 imp-exp'!$B$17:$B$18,0)),\"\")","v":""}]
["Mitaction30","Don't Show",{"$f":"IFERROR(INDEX('Grant Management_4 imp-exp'!D$17:D$18,MATCH('Grant Management_4'!A93,'Grant Management_4 imp-exp'!$B$17:$B$18,0)),\"\")","v":""},null,{"$f":"IFERROR(INDEX('Grant Management_4 imp-exp'!F$17:F$18,MATCH('Grant Management_4'!A93,'Grant Management_4 imp-exp'!$B$17:$B$18,0)),\"\")","v":""},{"$f":"IFERROR(INDEX('Grant Management_4 imp-exp'!G$17:G$18,MATCH('Grant Management_4'!A93,'Grant Management_4 imp-exp'!$B$17:$B$18,0)),\"\")","v":""}]
["Mitaction31","Don't Show",{"$f":"IFERROR(INDEX('Grant Management_4 imp-exp'!D$17:D$18,MATCH('Grant Management_4'!A94,'Grant Management_4 imp-exp'!$B$17:$B$18,0)),\"\")","v":""},null,{"$f":"IFERROR(INDEX('Grant Management_4 imp-exp'!F$17:F$18,MATCH('Grant Management_4'!A94,'Grant Management_4 imp-exp'!$B$17:$B$18,0)),\"\")","v":""},{"$f":"IFERROR(INDEX('Grant Management_4 imp-exp'!G$17:G$18,MATCH('Grant Management_4'!A94,'Grant Management_4 imp-exp'!$B$17:$B$18,0)),\"\")","v":""}]
["Mitaction32","Don't Show",{"$f":"IFERROR(INDEX('Grant Management_4 imp-exp'!D$17:D$18,MATCH('Grant Management_4'!A95,'Grant Management_4 imp-exp'!$B$17:$B$18,0)),\"\")","v":""},null,{"$f":"IFERROR(INDEX('Grant Management_4 imp-exp'!F$17:F$18,MATCH('Grant Management_4'!A95,'Grant Management_4 imp-exp'!$B$17:$B$18,0)),\"\")","v":""},{"$f":"IFERROR(INDEX('Grant Management_4 imp-exp'!G$17:G$18,MATCH('Grant Management_4'!A95,'Grant Management_4 imp-exp'!$B$17:$B$18,0)),\"\")","v":""}]
["Mitaction33","Don't Show",{"$f":"IFERROR(INDEX('Grant Management_4 imp-exp'!D$17:D$18,MATCH('Grant Management_4'!A96,'Grant Management_4 imp-exp'!$B$17:$B$18,0)),\"\")","v":""},null,{"$f":"IFERROR(INDEX('Grant Management_4 imp-exp'!F$17:F$18,MATCH('Grant Management_4'!A96,'Grant Management_4 imp-exp'!$B$17:$B$18,0)),\"\")","v":""},{"$f":"IFERROR(INDEX('Grant Management_4 imp-exp'!G$17:G$18,MATCH('Grant Management_4'!A96,'Grant Management_4 imp-exp'!$B$17:$B$18,0)),\"\")","v":""}]
["Mitaction34","Don't Show",{"$f":"IFERROR(INDEX('Grant Management_4 imp-exp'!D$17:D$18,MATCH('Grant Management_4'!A97,'Grant Management_4 imp-exp'!$B$17:$B$18,0)),\"\")","v":""},null,{"$f":"IFERROR(INDEX('Grant Management_4 imp-exp'!F$17:F$18,MATCH('Grant Management_4'!A97,'Grant Management_4 imp-exp'!$B$17:$B$18,0)),\"\")","v":""},{"$f":"IFERROR(INDEX('Grant Management_4 imp-exp'!G$17:G$18,MATCH('Grant Management_4'!A97,'Grant Management_4 imp-exp'!$B$17:$B$18,0)),\"\")","v":""}]
["Mitaction35","Don't Show",{"$f":"IFERROR(INDEX('Grant Management_4 imp-exp'!D$17:D$18,MATCH('Grant Management_4'!A98,'Grant Management_4 imp-exp'!$B$17:$B$18,0)),\"\")","v":""},null,{"$f":"IFERROR(INDEX('Grant Management_4 imp-exp'!F$17:F$18,MATCH('Grant Management_4'!A98,'Grant Management_4 imp-exp'!$B$17:$B$18,0)),\"\")","v":""},{"$f":"IFERROR(INDEX('Grant Management_4 imp-exp'!G$17:G$18,MATCH('Grant Management_4'!A98,'Grant Management_4 imp-exp'!$B$17:$B$18,0)),\"\")","v":""}]
["Mitaction36","Don't Show",{"$f":"IFERROR(INDEX('Grant Management_4 imp-exp'!D$17:D$18,MATCH('Grant Management_4'!A99,'Grant Management_4 imp-exp'!$B$17:$B$18,0)),\"\")","v":""},null,{"$f":"IFERROR(INDEX('Grant Management_4 imp-exp'!F$17:F$18,MATCH('Grant Management_4'!A99,'Grant Management_4 imp-exp'!$B$17:$B$18,0)),\"\")","v":""},{"$f":"IFERROR(INDEX('Grant Management_4 imp-exp'!G$17:G$18,MATCH('Grant Management_4'!A99,'Grant Management_4 imp-exp'!$B$17:$B$18,0)),\"\")","v":""}]
["Mitaction37","Don't Show",{"$f":"IFERROR(INDEX('Grant Management_4 imp-exp'!D$17:D$18,MATCH('Grant Management_4'!A100,'Grant Management_4 imp-exp'!$B$17:$B$18,0)),\"\")","v":""},null,{"$f":"IFERROR(INDEX('Grant Management_4 imp-exp'!F$17:F$18,MATCH('Grant Management_4'!A100,'Grant Management_4 imp-exp'!$B$17:$B$18,0)),\"\")","v":""},{"$f":"IFERROR(INDEX('Grant Management_4 imp-exp'!G$17:G$18,MATCH('Grant Management_4'!A100,'Grant Management_4 imp-exp'!$B$17:$B$18,0)),\"\")","v":""}]
["Mitaction38","Don't Show",{"$f":"IFERROR(INDEX('Grant Management_4 imp-exp'!D$17:D$18,MATCH('Grant Management_4'!A101,'Grant Management_4 imp-exp'!$B$17:$B$18,0)),\"\")","v":""},null,{"$f":"IFERROR(INDEX('Grant Management_4 imp-exp'!F$17:F$18,MATCH('Grant Management_4'!A101,'Grant Management_4 imp-exp'!$B$17:$B$18,0)),\"\")","v":""},{"$f":"IFERROR(INDEX('Grant Management_4 imp-exp'!G$17:G$18,MATCH('Grant Management_4'!A101,'Grant Management_4 imp-exp'!$B$17:$B$18,0)),\"\")","v":""}]
["Mitaction39","Don't Show",{"$f":"IFERROR(INDEX('Grant Management_4 imp-exp'!D$17:D$18,MATCH('Grant Management_4'!A102,'Grant Management_4 imp-exp'!$B$17:$B$18,0)),\"\")","v":""},null,{"$f":"IFERROR(INDEX('Grant Management_4 imp-exp'!F$17:F$18,MATCH('Grant Management_4'!A102,'Grant Management_4 imp-exp'!$B$17:$B$18,0)),\"\")","v":""},{"$f":"IFERROR(INDEX('Grant Management_4 imp-exp'!G$17:G$18,MATCH('Grant Management_4'!A102,'Grant Management_4 imp-exp'!$B$17:$B$18,0)),\"\")","v":""}]
["Mitaction40","Don't Show",{"$f":"IFERROR(INDEX('Grant Management_4 imp-exp'!D$17:D$18,MATCH('Grant Management_4'!A103,'Grant Management_4 imp-exp'!$B$17:$B$18,0)),\"\")","v":""},null,{"$f":"IFERROR(INDEX('Grant Management_4 imp-exp'!F$17:F$18,MATCH('Grant Management_4'!A103,'Grant Management_4 imp-exp'!$B$17:$B$18,0)),\"\")","v":""},{"$f":"IFERROR(INDEX('Grant Management_4 imp-exp'!G$17:G$18,MATCH('Grant Management_4'!A103,'Grant Management_4 imp-exp'!$B$17:$B$18,0)),\"\")","v":""}]
["Mitaction41","Don't Show",{"$f":"IFERROR(INDEX('Grant Management_4 imp-exp'!D$17:D$18,MATCH('Grant Management_4'!A104,'Grant Management_4 imp-exp'!$B$17:$B$18,0)),\"\")","v":""},null,{"$f":"IFERROR(INDEX('Grant Management_4 imp-exp'!F$17:F$18,MATCH('Grant Management_4'!A104,'Grant Management_4 imp-exp'!$B$17:$B$18,0)),\"\")","v":""},{"$f":"IFERROR(INDEX('Grant Management_4 imp-exp'!G$17:G$18,MATCH('Grant Management_4'!A104,'Grant Management_4 imp-exp'!$B$17:$B$18,0)),\"\")","v":""}]
["Mitaction42","Don't Show",{"$f":"IFERROR(INDEX('Grant Management_4 imp-exp'!D$17:D$18,MATCH('Grant Management_4'!A105,'Grant Management_4 imp-exp'!$B$17:$B$18,0)),\"\")","v":""},null,{"$f":"IFERROR(INDEX('Grant Management_4 imp-exp'!F$17:F$18,MATCH('Grant Management_4'!A105,'Grant Management_4 imp-exp'!$B$17:$B$18,0)),\"\")","v":""},{"$f":"IFERROR(INDEX('Grant Management_4 imp-exp'!G$17:G$18,MATCH('Grant Management_4'!A105,'Grant Management_4 imp-exp'!$B$17:$B$18,0)),\"\")","v":""}]
["Mitaction43","Don't Show",{"$f":"IFERROR(INDEX('Grant Management_4 imp-exp'!D$17:D$18,MATCH('Grant Management_4'!A106,'Grant Management_4 imp-exp'!$B$17:$B$18,0)),\"\")","v":""},null,{"$f":"IFERROR(INDEX('Grant Management_4 imp-exp'!F$17:F$18,MATCH('Grant Management_4'!A106,'Grant Management_4 imp-exp'!$B$17:$B$18,0)),\"\")","v":""},{"$f":"IFERROR(INDEX('Grant Management_4 imp-exp'!G$17:G$18,MATCH('Grant Management_4'!A106,'Grant Management_4 imp-exp'!$B$17:$B$18,0)),\"\")","v":""}]
["Mitaction44","Don't Show",{"$f":"IFERROR(INDEX('Grant Management_4 imp-exp'!D$17:D$18,MATCH('Grant Management_4'!A107,'Grant Management_4 imp-exp'!$B$17:$B$18,0)),\"\")","v":""},null,{"$f":"IFERROR(INDEX('Grant Management_4 imp-exp'!F$17:F$18,MATCH('Grant Management_4'!A107,'Grant Management_4 imp-exp'!$B$17:$B$18,0)),\"\")","v":""},{"$f":"IFERROR(INDEX('Grant Management_4 imp-exp'!G$17:G$18,MATCH('Grant Management_4'!A107,'Grant Management_4 imp-exp'!$B$17:$B$18,0)),\"\")","v":""}]
["Mitaction45","Don't Show",{"$f":"IFERROR(INDEX('Grant Management_4 imp-exp'!D$17:D$18,MATCH('Grant Management_4'!A108,'Grant Management_4 imp-exp'!$B$17:$B$18,0)),\"\")","v":""},null,{"$f":"IFERROR(INDEX('Grant Management_4 imp-exp'!F$17:F$18,MATCH('Grant Management_4'!A108,'Grant Management_4 imp-exp'!$B$17:$B$18,0)),\"\")","v":""},{"$f":"IFERROR(INDEX('Grant Management_4 imp-exp'!G$17:G$18,MATCH('Grant Management_4'!A108,'Grant Management_4 imp-exp'!$B$17:$B$18,0)),\"\")","v":""}]
["Mitaction46","Don't Show",{"$f":"IFERROR(INDEX('Grant Management_4 imp-exp'!D$17:D$18,MATCH('Grant Management_4'!A109,'Grant Management_4 imp-exp'!$B$17:$B$18,0)),\"\")","v":""},null,{"$f":"IFERROR(INDEX('Grant Management_4 imp-exp'!F$17:F$18,MATCH('Grant Management_4'!A109,'Grant Management_4 imp-exp'!$B$17:$B$18,0)),\"\")","v":""},{"$f":"IFERROR(INDEX('Grant Management_4 imp-exp'!G$17:G$18,MATCH('Grant Management_4'!A109,'Grant Management_4 imp-exp'!$B$17:$B$18,0)),\"\")","v":""}]
["Mitaction47","Don't Show",{"$f":"IFERROR(INDEX('Grant Management_4 imp-exp'!D$17:D$18,MATCH('Grant Management_4'!A110,'Grant Management_4 imp-exp'!$B$17:$B$18,0)),\"\")","v":""},null,{"$f":"IFERROR(INDEX('Grant Management_4 imp-exp'!F$17:F$18,MATCH('Grant Management_4'!A110,'Grant Management_4 imp-exp'!$B$17:$B$18,0)),\"\")","v":""},{"$f":"IFERROR(INDEX('Grant Management_4 imp-exp'!G$17:G$18,MATCH('Grant Management_4'!A110,'Grant Management_4 imp-exp'!$B$17:$B$18,0)),\"\")","v":""}]
["Mitaction48","Don't Show",{"$f":"IFERROR(INDEX('Grant Management_4 imp-exp'!D$17:D$18,MATCH('Grant Management_4'!A111,'Grant Management_4 imp-exp'!$B$17:$B$18,0)),\"\")","v":""},null,{"$f":"IFERROR(INDEX('Grant Management_4 imp-exp'!F$17:F$18,MATCH('Grant Management_4'!A111,'Grant Management_4 imp-exp'!$B$17:$B$18,0)),\"\")","v":""},{"$f":"IFERROR(INDEX('Grant Management_4 imp-exp'!G$17:G$18,MATCH('Grant Management_4'!A111,'Grant Management_4 imp-exp'!$B$17:$B$18,0)),\"\")","v":""}]
["Mitaction49","Don't Show",{"$f":"IFERROR(INDEX('Grant Management_4 imp-exp'!D$17:D$18,MATCH('Grant Management_4'!A112,'Grant Management_4 imp-exp'!$B$17:$B$18,0)),\"\")","v":""},null,{"$f":"IFERROR(INDEX('Grant Management_4 imp-exp'!F$17:F$18,MATCH('Grant Management_4'!A112,'Grant Management_4 imp-exp'!$B$17:$B$18,0)),\"\")","v":""},{"$f":"IFERROR(INDEX('Grant Management_4 imp-exp'!G$17:G$18,MATCH('Grant Management_4'!A112,'Grant Management_4 imp-exp'!$B$17:$B$18,0)),\"\")","v":""}]
["Mitaction50","Don't Show",{"$f":"IFERROR(INDEX('Grant Management_4 imp-exp'!D$17:D$18,MATCH('Grant Management_4'!A113,'Grant Management_4 imp-exp'!$B$17:$B$18,0)),\"\")","v":""},null,{"$f":"IFERROR(INDEX('Grant Management_4 imp-exp'!F$17:F$18,MATCH('Grant Management_4'!A113,'Grant Management_4 imp-exp'!$B$17:$B$18,0)),\"\")","v":""},{"$f":"IFERROR(INDEX('Grant Management_4 imp-exp'!G$17:G$18,MATCH('Grant Management_4'!A113,'Grant Management_4 imp-exp'!$B$17:$B$18,0)),\"\")","v":""}]
["Mitaction51","Don't Show",{"$f":"IFERROR(INDEX('Grant Management_4 imp-exp'!D$17:D$18,MATCH('Grant Management_4'!A114,'Grant Management_4 imp-exp'!$B$17:$B$18,0)),\"\")","v":""},null,{"$f":"IFERROR(INDEX('Grant Management_4 imp-exp'!F$17:F$18,MATCH('Grant Management_4'!A114,'Grant Management_4 imp-exp'!$B$17:$B$18,0)),\"\")","v":""},{"$f":"IFERROR(INDEX('Grant Management_4 imp-exp'!G$17:G$18,MATCH('Grant Management_4'!A114,'Grant Management_4 imp-exp'!$B$17:$B$18,0)),\"\")","v":""}]
["Mitaction52","Don't Show",{"$f":"IFERROR(INDEX('Grant Management_4 imp-exp'!D$17:D$18,MATCH('Grant Management_4'!A115,'Grant Management_4 imp-exp'!$B$17:$B$18,0)),\"\")","v":""},null,{"$f":"IFERROR(INDEX('Grant Management_4 imp-exp'!F$17:F$18,MATCH('Grant Management_4'!A115,'Grant Management_4 imp-exp'!$B$17:$B$18,0)),\"\")","v":""},{"$f":"IFERROR(INDEX('Grant Management_4 imp-exp'!G$17:G$18,MATCH('Grant Management_4'!A115,'Grant Management_4 imp-exp'!$B$17:$B$18,0)),\"\")","v":""}]
["Mitaction53","Don't Show",{"$f":"IFERROR(INDEX('Grant Management_4 imp-exp'!D$17:D$18,MATCH('Grant Management_4'!A116,'Grant Management_4 imp-exp'!$B$17:$B$18,0)),\"\")","v":""},null,{"$f":"IFERROR(INDEX('Grant Management_4 imp-exp'!F$17:F$18,MATCH('Grant Management_4'!A116,'Grant Management_4 imp-exp'!$B$17:$B$18,0)),\"\")","v":""},{"$f":"IFERROR(INDEX('Grant Management_4 imp-exp'!G$17:G$18,MATCH('Grant Management_4'!A116,'Grant Management_4 imp-exp'!$B$17:$B$18,0)),\"\")","v":""}]
["Mitaction54","Don't Show",{"$f":"IFERROR(INDEX('Grant Management_4 imp-exp'!D$17:D$18,MATCH('Grant Management_4'!A117,'Grant Management_4 imp-exp'!$B$17:$B$18,0)),\"\")","v":""},null,{"$f":"IFERROR(INDEX('Grant Management_4 imp-exp'!F$17:F$18,MATCH('Grant Management_4'!A117,'Grant Management_4 imp-exp'!$B$17:$B$18,0)),\"\")","v":""},{"$f":"IFERROR(INDEX('Grant Management_4 imp-exp'!G$17:G$18,MATCH('Grant Management_4'!A117,'Grant Management_4 imp-exp'!$B$17:$B$18,0)),\"\")","v":""}]
["Mitaction55","Don't Show",{"$f":"IFERROR(INDEX('Grant Management_4 imp-exp'!D$17:D$18,MATCH('Grant Management_4'!A118,'Grant Management_4 imp-exp'!$B$17:$B$18,0)),\"\")","v":""},null,{"$f":"IFERROR(INDEX('Grant Management_4 imp-exp'!F$17:F$18,MATCH('Grant Management_4'!A118,'Grant Management_4 imp-exp'!$B$17:$B$18,0)),\"\")","v":""},{"$f":"IFERROR(INDEX('Grant Management_4 imp-exp'!G$17:G$18,MATCH('Grant Management_4'!A118,'Grant Management_4 imp-exp'!$B$17:$B$18,0)),\"\")","v":""}]
["Mitaction56","Don't Show",{"$f":"IFERROR(INDEX('Grant Management_4 imp-exp'!D$17:D$18,MATCH('Grant Management_4'!A119,'Grant Management_4 imp-exp'!$B$17:$B$18,0)),\"\")","v":""},null,{"$f":"IFERROR(INDEX('Grant Management_4 imp-exp'!F$17:F$18,MATCH('Grant Management_4'!A119,'Grant Management_4 imp-exp'!$B$17:$B$18,0)),\"\")","v":""},{"$f":"IFERROR(INDEX('Grant Management_4 imp-exp'!G$17:G$18,MATCH('Grant Management_4'!A119,'Grant Management_4 imp-exp'!$B$17:$B$18,0)),\"\")","v":""}]
["Mitaction57","Don't Show",{"$f":"IFERROR(INDEX('Grant Management_4 imp-exp'!D$17:D$18,MATCH('Grant Management_4'!A120,'Grant Management_4 imp-exp'!$B$17:$B$18,0)),\"\")","v":""},null,{"$f":"IFERROR(INDEX('Grant Management_4 imp-exp'!F$17:F$18,MATCH('Grant Management_4'!A120,'Grant Management_4 imp-exp'!$B$17:$B$18,0)),\"\")","v":""},{"$f":"IFERROR(INDEX('Grant Management_4 imp-exp'!G$17:G$18,MATCH('Grant Management_4'!A120,'Grant Management_4 imp-exp'!$B$17:$B$18,0)),\"\")","v":""}]
["Mitaction58","Don't Show",{"$f":"IFERROR(INDEX('Grant Management_4 imp-exp'!D$17:D$18,MATCH('Grant Management_4'!A121,'Grant Management_4 imp-exp'!$B$17:$B$18,0)),\"\")","v":""},null,{"$f":"IFERROR(INDEX('Grant Management_4 imp-exp'!F$17:F$18,MATCH('Grant Management_4'!A121,'Grant Management_4 imp-exp'!$B$17:$B$18,0)),\"\")","v":""},{"$f":"IFERROR(INDEX('Grant Management_4 imp-exp'!G$17:G$18,MATCH('Grant Management_4'!A121,'Grant Management_4 imp-exp'!$B$17:$B$18,0)),\"\")","v":""}]
["Mitaction59","Don't Show",{"$f":"IFERROR(INDEX('Grant Management_4 imp-exp'!D$17:D$18,MATCH('Grant Management_4'!A122,'Grant Management_4 imp-exp'!$B$17:$B$18,0)),\"\")","v":""},null,{"$f":"IFERROR(INDEX('Grant Management_4 imp-exp'!F$17:F$18,MATCH('Grant Management_4'!A122,'Grant Management_4 imp-exp'!$B$17:$B$18,0)),\"\")","v":""},{"$f":"IFERROR(INDEX('Grant Management_4 imp-exp'!G$17:G$18,MATCH('Grant Management_4'!A122,'Grant Management_4 imp-exp'!$B$17:$B$18,0)),\"\")","v":""}]
["Mitaction60","Don't Show",{"$f":"IFERROR(INDEX('Grant Management_4 imp-exp'!D$17:D$18,MATCH('Grant Management_4'!A123,'Grant Management_4 imp-exp'!$B$17:$B$18,0)),\"\")","v":""},null,{"$f":"IFERROR(INDEX('Grant Management_4 imp-exp'!F$17:F$18,MATCH('Grant Management_4'!A123,'Grant Management_4 imp-exp'!$B$17:$B$18,0)),\"\")","v":""},{"$f":"IFERROR(INDEX('Grant Management_4 imp-exp'!G$17:G$18,MATCH('Grant Management_4'!A123,'Grant Management_4 imp-exp'!$B$17:$B$18,0)),\"\")","v":""}]
["Mitaction61","Don't Show",{"$f":"IFERROR(INDEX('Grant Management_4 imp-exp'!D$17:D$18,MATCH('Grant Management_4'!A124,'Grant Management_4 imp-exp'!$B$17:$B$18,0)),\"\")","v":""},null,{"$f":"IFERROR(INDEX('Grant Management_4 imp-exp'!F$17:F$18,MATCH('Grant Management_4'!A124,'Grant Management_4 imp-exp'!$B$17:$B$18,0)),\"\")","v":""},{"$f":"IFERROR(INDEX('Grant Management_4 imp-exp'!G$17:G$18,MATCH('Grant Management_4'!A124,'Grant Management_4 imp-exp'!$B$17:$B$18,0)),\"\")","v":""}]
["Mitaction62","Don't Show",{"$f":"IFERROR(INDEX('Grant Management_4 imp-exp'!D$17:D$18,MATCH('Grant Management_4'!A125,'Grant Management_4 imp-exp'!$B$17:$B$18,0)),\"\")","v":""},null,{"$f":"IFERROR(INDEX('Grant Management_4 imp-exp'!F$17:F$18,MATCH('Grant Management_4'!A125,'Grant Management_4 imp-exp'!$B$17:$B$18,0)),\"\")","v":""},{"$f":"IFERROR(INDEX('Grant Management_4 imp-exp'!G$17:G$18,MATCH('Grant Management_4'!A125,'Grant Management_4 imp-exp'!$B$17:$B$18,0)),\"\")","v":""}]
["Mitaction63","Don't Show",{"$f":"IFERROR(INDEX('Grant Management_4 imp-exp'!D$17:D$18,MATCH('Grant Management_4'!A126,'Grant Management_4 imp-exp'!$B$17:$B$18,0)),\"\")","v":""},null,{"$f":"IFERROR(INDEX('Grant Management_4 imp-exp'!F$17:F$18,MATCH('Grant Management_4'!A126,'Grant Management_4 imp-exp'!$B$17:$B$18,0)),\"\")","v":""},{"$f":"IFERROR(INDEX('Grant Management_4 imp-exp'!G$17:G$18,MATCH('Grant Management_4'!A126,'Grant Management_4 imp-exp'!$B$17:$B$18,0)),\"\")","v":""}]
["Mitaction64","Don't Show",{"$f":"IFERROR(INDEX('Grant Management_4 imp-exp'!D$17:D$18,MATCH('Grant Management_4'!A127,'Grant Management_4 imp-exp'!$B$17:$B$18,0)),\"\")","v":""},null,{"$f":"IFERROR(INDEX('Grant Management_4 imp-exp'!F$17:F$18,MATCH('Grant Management_4'!A127,'Grant Management_4 imp-exp'!$B$17:$B$18,0)),\"\")","v":""},{"$f":"IFERROR(INDEX('Grant Management_4 imp-exp'!G$17:G$18,MATCH('Grant Management_4'!A127,'Grant Management_4 imp-exp'!$B$17:$B$18,0)),\"\")","v":""}]
["Mitaction65","Don't Show",{"$f":"IFERROR(INDEX('Grant Management_4 imp-exp'!D$17:D$18,MATCH('Grant Management_4'!A128,'Grant Management_4 imp-exp'!$B$17:$B$18,0)),\"\")","v":""},null,{"$f":"IFERROR(INDEX('Grant Management_4 imp-exp'!F$17:F$18,MATCH('Grant Management_4'!A128,'Grant Management_4 imp-exp'!$B$17:$B$18,0)),\"\")","v":""},{"$f":"IFERROR(INDEX('Grant Management_4 imp-exp'!G$17:G$18,MATCH('Grant Management_4'!A128,'Grant Management_4 imp-exp'!$B$17:$B$18,0)),\"\")","v":""}]
["Mitaction66","Don't Show",{"$f":"IFERROR(INDEX('Grant Management_4 imp-exp'!D$17:D$18,MATCH('Grant Management_4'!A129,'Grant Management_4 imp-exp'!$B$17:$B$18,0)),\"\")","v":""},null,{"$f":"IFERROR(INDEX('Grant Management_4 imp-exp'!F$17:F$18,MATCH('Grant Management_4'!A129,'Grant Management_4 imp-exp'!$B$17:$B$18,0)),\"\")","v":""},{"$f":"IFERROR(INDEX('Grant Management_4 imp-exp'!G$17:G$18,MATCH('Grant Management_4'!A129,'Grant Management_4 imp-exp'!$B$17:$B$18,0)),\"\")","v":""}]
["Mitaction67","Don't Show",{"$f":"IFERROR(INDEX('Grant Management_4 imp-exp'!D$17:D$18,MATCH('Grant Management_4'!A130,'Grant Management_4 imp-exp'!$B$17:$B$18,0)),\"\")","v":""},null,{"$f":"IFERROR(INDEX('Grant Management_4 imp-exp'!F$17:F$18,MATCH('Grant Management_4'!A130,'Grant Management_4 imp-exp'!$B$17:$B$18,0)),\"\")","v":""},{"$f":"IFERROR(INDEX('Grant Management_4 imp-exp'!G$17:G$18,MATCH('Grant Management_4'!A130,'Grant Management_4 imp-exp'!$B$17:$B$18,0)),\"\")","v":""}]
["Mitaction68","Don't Show",{"$f":"IFERROR(INDEX('Grant Management_4 imp-exp'!D$17:D$18,MATCH('Grant Management_4'!A131,'Grant Management_4 imp-exp'!$B$17:$B$18,0)),\"\")","v":""},null,{"$f":"IFERROR(INDEX('Grant Management_4 imp-exp'!F$17:F$18,MATCH('Grant Management_4'!A131,'Grant Management_4 imp-exp'!$B$17:$B$18,0)),\"\")","v":""},{"$f":"IFERROR(INDEX('Grant Management_4 imp-exp'!G$17:G$18,MATCH('Grant Management_4'!A131,'Grant Management_4 imp-exp'!$B$17:$B$18,0)),\"\")","v":""}]
["Mitaction69","Don't Show",{"$f":"IFERROR(INDEX('Grant Management_4 imp-exp'!D$17:D$18,MATCH('Grant Management_4'!A132,'Grant Management_4 imp-exp'!$B$17:$B$18,0)),\"\")","v":""},null,{"$f":"IFERROR(INDEX('Grant Management_4 imp-exp'!F$17:F$18,MATCH('Grant Management_4'!A132,'Grant Management_4 imp-exp'!$B$17:$B$18,0)),\"\")","v":""},{"$f":"IFERROR(INDEX('Grant Management_4 imp-exp'!G$17:G$18,MATCH('Grant Management_4'!A132,'Grant Management_4 imp-exp'!$B$17:$B$18,0)),\"\")","v":""}]
["Mitaction70","Don't Show",{"$f":"IFERROR(INDEX('Grant Management_4 imp-exp'!D$17:D$18,MATCH('Grant Management_4'!A133,'Grant Management_4 imp-exp'!$B$17:$B$18,0)),\"\")","v":""},null,{"$f":"IFERROR(INDEX('Grant Management_4 imp-exp'!F$17:F$18,MATCH('Grant Management_4'!A133,'Grant Management_4 imp-exp'!$B$17:$B$18,0)),\"\")","v":""},{"$f":"IFERROR(INDEX('Grant Management_4 imp-exp'!G$17:G$18,MATCH('Grant Management_4'!A133,'Grant Management_4 imp-exp'!$B$17:$B$18,0)),\"\")","v":""}]
["Mitaction71","Don't Show",{"$f":"IFERROR(INDEX('Grant Management_4 imp-exp'!D$17:D$18,MATCH('Grant Management_4'!A134,'Grant Management_4 imp-exp'!$B$17:$B$18,0)),\"\")","v":""},null,{"$f":"IFERROR(INDEX('Grant Management_4 imp-exp'!F$17:F$18,MATCH('Grant Management_4'!A134,'Grant Management_4 imp-exp'!$B$17:$B$18,0)),\"\")","v":""},{"$f":"IFERROR(INDEX('Grant Management_4 imp-exp'!G$17:G$18,MATCH('Grant Management_4'!A134,'Grant Management_4 imp-exp'!$B$17:$B$18,0)),\"\")","v":""}]
["Mitaction72","Don't Show",{"$f":"IFERROR(INDEX('Grant Management_4 imp-exp'!D$17:D$18,MATCH('Grant Management_4'!A135,'Grant Management_4 imp-exp'!$B$17:$B$18,0)),\"\")","v":""},null,{"$f":"IFERROR(INDEX('Grant Management_4 imp-exp'!F$17:F$18,MATCH('Grant Management_4'!A135,'Grant Management_4 imp-exp'!$B$17:$B$18,0)),\"\")","v":""},{"$f":"IFERROR(INDEX('Grant Management_4 imp-exp'!G$17:G$18,MATCH('Grant Management_4'!A135,'Grant Management_4 imp-exp'!$B$17:$B$18,0)),\"\")","v":""}]
["Mitaction73","Don't Show",{"$f":"IFERROR(INDEX('Grant Management_4 imp-exp'!D$17:D$18,MATCH('Grant Management_4'!A136,'Grant Management_4 imp-exp'!$B$17:$B$18,0)),\"\")","v":""},null,{"$f":"IFERROR(INDEX('Grant Management_4 imp-exp'!F$17:F$18,MATCH('Grant Management_4'!A136,'Grant Management_4 imp-exp'!$B$17:$B$18,0)),\"\")","v":""},{"$f":"IFERROR(INDEX('Grant Management_4 imp-exp'!G$17:G$18,MATCH('Grant Management_4'!A136,'Grant Management_4 imp-exp'!$B$17:$B$18,0)),\"\")","v":""}]
[null,"Show","x"]
[null,{"$f":"IF(C138<>\"\",\"Show\",\"Don't Show\")","v":"Show"},"x"]
[null,"Show",{"$f":"VLOOKUP(Translations!B327,Translations!B3:H508,4,0)","v":"C.  Comments on Annual Grant Reporting Requirements"}]
[null,"Show","x"]
[null,"Show",{"$f":"VLOOKUP(Translations!B328,Translations!B3:H508,4,0)","v":"! Please indicate a date for the report due for submission.  If a report is overdue, indicate the original due date and explain the reason for delay."},null,null,null,"For LFA Use Only",null,null,"For the Global Fund Use Only"]
[null,"Don't Show"]
[null,"Show",{"$f":"VLOOKUP(Translations!B329,Translations!B3:H508,4,0)","v":"Required Documentation"},{"$f":"VLOOKUP(Translations!B330,Translations!B3:H508,4,0)","v":"Due date \n(dd-mmm-yy)"},{"$f":"VLOOKUP(Translations!B331,Translations!B3:H508,4,0)","v":"Status"},{"$f":"VLOOKUP(Translations!B332,Translations!B3:H508,4,0)","v":"Comments"},"Due date\n(dd-mmm-yy)","Status","Comments","Due date\n(dd-mmm-yy)","Validate Status","Country Team Comments"]
[null,"Show",{"$f":"VLOOKUP(Translations!B337,Translations!B3:H508,4,0)","v":"PR Audit Report"},null,"Select"]
[null,"Show",{"$f":"VLOOKUP(Translations!B338,Translations!B3:H508,4,0)","v":"Annual Financial Report (AFR) / Enhanced Financial Report (EFR)"},"2019-02-28","Select","Not due during the period under review"]

{"sheet":"Grant Management_4 imp-exp","index":24,"n_rows":17,"n_cols":17,"rows_kept":17,"cut":false,"hidden":true,"merged":[[10,6,10,8],[11,6,11,8],[13,3,13,9],[8,3,8,9],[9,6,9,8]]}
["Record ID",null,-1,"Grant Requirements",null,"Status (PR)","Comments on Progress (PR)",null,"Status (LFA)","Analysis (LFA)",null,"Validate Status","Country Team Comments",null,null,"Record ID"]
["[Record ID]",{"$f":"\"Grantreq\"&C2","v":"Grantreq0"},{"$f":"C1+1","v":0},"[Grant Requirements]",null,{"$f":"IFERROR(IF(INDEX('Grant Management_4'!E$10:E$59,MATCH('Grant Management_4 imp-exp'!$B4,'Grant Management_4'!$A$10:$A$59,0))=\"\",\"\",INDEX('Grant Management_4'!E$10:E$59,MATCH('Grant Management_4 imp-exp'!$B4,'Grant Management_4'!$A$10:$A$59,0))),\"\")","v":""},{"$f":"IFERROR(IF(INDEX('Grant Management_4'!F$10:F$59,MATCH('Grant Management_4 imp-exp'!$B2,'Grant Management_4'!$A$10:$A$59,0))=\"\",\"\",INDEX('Grant Management_4'!F$10:F$59,MATCH('Grant Management_4 imp-exp'!$B2,'Grant Management_4'!$A$10:$A$59,0))),\"\")","v":""},null,{"$f":"IFERROR(IF(INDEX('Grant Management_4'!H$10:H$59,MATCH('Grant Management_4 imp-exp'!$B2,'Grant Management_4'!$A$10:$A$59,0))=\"\",\"\",INDEX('Grant Management_4'!H$10:H$59,MATCH('Grant Management_4 imp-exp'!$B2,'Grant Management_4'!$A$10:$A$59,0))),\"\")","v":""},{"$f":"IFERROR(IF(INDEX('Grant Management_4'!I$10:I$59,MATCH('Grant Management_4 imp-exp'!$B2,'Grant Management_4'!$A$10:$A$59,0))=\"\",\"\",INDEX('Grant Management_4'!I$10:I$59,MATCH('Grant Management_4 imp-exp'!$B2,'Grant Management_4'!$A$10:$A$59,0))),\"\")","v":""},null,null,null,null,null,"[Record ID]"]
["a1D36000007VJT0EAO",{"$f":"\"Grantreq\"&C3","v":"Grantreq1"},{"$f":"C2+1","v":1},"Force Majeure Conditions:\n(i)\tThe parties acknowledge that as of 1 January 2018, the situation in Burundi has been characterized by high safety and security threats and political instability (collectively, the “Force Majeure Conditions”).  Under the circumstances, the parties acknowledge and agree that: \n(a)\tIn consultation with the Global Fund, the Principal Recipient may suspend or terminate the activities under this Agreement at any time if the Force Majeure Conditions so require;\n(b)\tThe budget and performance framework (including the frequency and contents of reporting) will be reviewed by the parties as needed, with a view to evaluating and accounting for any change in the Force Majeure Conditions in the country and its impact on the performance of the Grant, and, should the changes in the Force Majeure Conditions warrant a reprogramming of the Program, the Principal Recipient shall, at the request of the Global Fund, deliver to the Global Fund a revised budget and performance framework in form and substance satisfactory to the Global Fund; and\n(c)\tNotwithstanding Articles 8 and 10 of this Agreement, and except in the case of gross negligence or wilful misconduct of the Principal Recipient, the Principal Recipient shall not be liable for the loss or damage to any assets financed under this Agreement (including Health Products), as well as for the loss of any Grant Funds (the “Relevant Assets and Funds”) caused by the Force Majeure Conditions, provided that the Principal Recipient (i) has fully complied with the other terms and conditions of this Agreement and has exercised due care and diligence and (ii) has exercised all reasonable efforts to mitigate the risk of loss of the Relevant Assets and Funds. Nevertheless, the Principal Recipient shall use its best efforts to seek and obtain recovery of any potential losses to the Relevant Assets and Funds.\n\n(ii)\tThe parties agree that the aforementioned provision shall automatically terminate after the earlier of (a) 31 December 2018 and (b) the determination by the parties that the Force Majeure Conditions no longer exist, unless the period ending on the date referred to in (a) is extended by written agreement of the parties. \n(iii)The parties also acknowledge that the agreement by the Global Fund to the aforementioned provision does not commit the Global Fund to limit the liability of the Principal Recipient (a) if a loss of any Relevant Assets and Funds is not caused by the Force Majeure Conditions or (b) under any programs implemented by the Principal Recipient in any other jurisdiction.",null,null,null,null,{"$f":"IFERROR(IF(INDEX('Grant Management_4'!H$10:H$59,MATCH('Grant Management_4 imp-exp'!$B3,'Grant Management_4'!$A$10:$A$59,0))=\"\",\"\",INDEX('Grant Management_4'!H$10:H$59,MATCH('Grant Management_4 imp-exp'!$B3,'Grant Management_4'!$A$10:$A$59,0))),\"\")","v":""},{"$f":"IFERROR(IF(INDEX('Grant Management_4'!I$10:I$59,MATCH('Grant Management_4 imp-exp'!$B3,'Grant Management_4'!$A$10:$A$59,0))=\"\",\"\",INDEX('Grant Management_4'!I$10:I$59,MATCH('Grant Management_4 imp-exp'!$B3,'Grant Management_4'!$A$10:$A$59,0))),\"\")","v":""}]
[null,null,null,null,null,null,{"$f":"IFERROR(IF(INDEX('Grant Management_4'!F$10:F$59,MATCH('Grant Management_4 imp-exp'!$B4,'Grant Management_4'!$A$10:$A$59,0))=\"\",\"\",INDEX('Grant Management_4'!F$10:F$59,MATCH('Grant Management_4 imp-exp'!$B4,'Grant Management_4'!$A$10:$A$59,0))),\"\")","v":""},null,{"$f":"IFERROR(IF(INDEX('Grant Management_4'!H$10:H$59,MATCH('Grant Management_4 imp-exp'!$B4,'Grant Management_4'!$A$10:$A$59,0))=\"\",\"\",INDEX('Grant Management_4'!H$10:H$59,MATCH('Grant Management_4 imp-exp'!$B4,'Grant Management_4'!$A$10:$A$59,0))),\"\")","v":""},{"$f":"IFERROR(IF(INDEX('Grant Management_4'!I$10:I$59,MATCH('Grant Management_4 imp-exp'!$B4,'Grant Management_4'!$A$10:$A$59,0))=\"\",\"\",INDEX('Grant Management_4'!I$10:I$59,MATCH('Grant Management_4 imp-exp'!$B4,'Grant Management_4'!$A$10:$A$59,0))),\"\")","v":""}]
[null,null,null,null,null,{"$f":"IFERROR(IF(INDEX('Grant Management_4'!E$10:E$59,MATCH('Grant Management_4 imp-exp'!$B5,'Grant Management_4'!$A$10:$A$59,0))=\"\",\"\",INDEX('Grant Management_4'!E$10:E$59,MATCH('Grant Management_4 imp-exp'!$B5,'Grant Management_4'!$A$10:$A$59,0))),\"\")","v":""},{"$f":"IFERROR(IF(INDEX('Grant Management_4'!F$10:F$59,MATCH('Grant Management_4 imp-exp'!$B5,'Grant Management_4'!$A$10:$A$59,0))=\"\",\"\",INDEX('Grant Management_4'!F$10:F$59,MATCH('Grant Management_4 imp-exp'!$B5,'Grant Management_4'!$A$10:$A$59,0))),\"\")","v":""},null,{"$f":"IFERROR(IF(INDEX('Grant Management_4'!H$10:H$59,MATCH('Grant Management_4 imp-exp'!$B5,'Grant Management_4'!$A$10:$A$59,0))=\"\",\"\",INDEX('Grant Management_4'!H$10:H$59,MATCH('Grant Management_4 imp-exp'!$B5,'Grant Management_4'!$A$10:$A$59,0))),\"\")","v":""},{"$f":"IFERROR(IF(INDEX('Grant Management_4'!I$10:I$59,MATCH('Grant Management_4 imp-exp'!$B5,'Grant Management_4'!$A$10:$A$59,0))=\"\",\"\",INDEX('Grant Management_4'!I$10:I$59,MATCH('Grant Management_4 imp-exp'!$B5,'Grant Management_4'!$A$10:$A$59,0))),\"\")","v":""}]
[null,null,null,null,null,{"$f":"IFERROR(IF(INDEX('Grant Management_4'!E$10:E$59,MATCH('Grant Management_4 imp-exp'!$B6,'Grant Management_4'!$A$10:$A$59,0))=\"\",\"\",INDEX('Grant Management_4'!E$10:E$59,MATCH('Grant Management_4 imp-exp'!$B6,'Grant Management_4'!$A$10:$A$59,0))),\"\")","v":""},{"$f":"IFERROR(IF(INDEX('Grant Management_4'!F$10:F$59,MATCH('Grant Management_4 imp-exp'!$B6,'Grant Management_4'!$A$10:$A$59,0))=\"\",\"\",INDEX('Grant Management_4'!F$10:F$59,MATCH('Grant Management_4 imp-exp'!$B6,'Grant Management_4'!$A$10:$A$59,0))),\"\")","v":""},null,{"$f":"IFERROR(IF(INDEX('Grant Management_4'!H$10:H$59,MATCH('Grant Management_4 imp-exp'!$B6,'Grant Management_4'!$A$10:$A$59,0))=\"\",\"\",INDEX('Grant Management_4'!H$10:H$59,MATCH('Grant Management_4 imp-exp'!$B6,'Grant Management_4'!$A$10:$A$59,0))),\"\")","v":""},{"$f":"IFERROR(IF(INDEX('Grant Management_4'!I$10:I$59,MATCH('Grant Management_4 imp-exp'!$B6,'Grant Management_4'!$A$10:$A$59,0))=\"\",\"\",INDEX('Grant Management_4'!I$10:I$59,MATCH('Grant Management_4 imp-exp'!$B6,'Grant Management_4'!$A$10:$A$59,0))),\"\")","v":""}]
[null,null,null,null,null,null,{"$f":"IFERROR(INDEX('Grant Management_4'!F$10:F$59,MATCH('Grant Management_4 imp-exp'!$B7,'Grant Management_4'!$A$10:$A$59,0)),\"\")","v":""},null,{"$f":"IFERROR(INDEX('Grant Management_4'!H$10:H$59,MATCH('Grant Management_4 imp-exp'!$B7,'Grant Management_4'!$A$10:$A$59,0)),\"\")","v":""},{"$f":"IFERROR(INDEX('Grant Management_4'!I$10:I$59,MATCH('Grant Management_4 imp-exp'!$B7,'Grant Management_4'!$A$10:$A$59,0)),\"\")","v":""}]
[null,null,null,null,null,null,{"$f":"IFERROR(INDEX('Grant Management_4'!F$10:F$59,MATCH('Grant Management_4 imp-exp'!$B8,'Grant Management_4'!$A$10:$A$59,0)),\"\")","v":""}]
[]
[null,null,null,null,null,"Select"]
[null,null,null,null,null,"Select"]
[null,null,null,null,null,"Select"]
[]
[null,null,null,"B. PR & LFA Review of Progress on Mitigating Actions"]
[]
["Record ID",null,-1,"Risk Details",null,"Timeline for Action","Mitigating Action",null,"PR Status","PR Comments",null,"LFA Status","LFA Comments",null,"Risk Category (Name)","Risk Name","Root Cause Name"]
["[Record ID]",{"$f":"\"Mitaction\"&C17","v":"Mitaction0"},{"$f":"C16+1","v":0},{"$f":"IFERROR(INDEX(Table4[Risk Detail], SMALL(IF($A17=Table4[Record ID], ROW(Table4[Record ID])-MIN(ROW(Table4[Record ID]))+IF(COUNTIF(Table4[Record ID],A17)>=1,1,\"NA\"),\"\"),1)),\"\")\n& IFERROR(CHAR(10) & INDEX(Table4[Risk Detail], SMALL(IF($A17=Table4[Record ID], ROW(Table4[Record ID])-MIN(ROW(Table4[Record ID]))+IF(COUNTIF(Table4[Record ID],A17)>=2,2,\"NA\"),\"\"),1)),\"\")\n& IFERROR(CHAR(10) & INDEX(Table4[Risk Detail], SMALL(IF($A17=Table4[Record ID], ROW(Table4[Record ID])-MIN(ROW(Table4[Record ID]))+IF(COUNTIF(Table4[Record ID],A17)>=3,3,\"NA\"),\"\"),1)),\"\")\n& IFERROR(CHAR(10) & INDEX(Table4[Risk Detail], SMALL(IF($A17=Table4[Record ID], ROW(Table4[Record ID])-MIN(ROW(Table4[Record ID]))+IF(COUNTIF(Table4[Record ID],A17)>=4,4,\"NA\"),\"\"),1)),\"\")\n& IFERROR(CHAR(10) & INDEX(Table4[Risk Detail], SMALL(IF($A17=Table4[Record ID], ROW(Table4[Record ID])-MIN(ROW(Table4[Record ID]))+IF(COUNTIF(Table4[Record ID],A17)>=5,5,\"NA\"),\"\"),1)),\"\")\n& IFERROR(CHAR(10) & INDEX(Table4[Risk Detail], SMALL(IF($A17=Table4[Record ID], ROW(Table4[Record ID])-MIN(ROW(Table4[Record ID]))+IF(COUNTIF(Table4[Record ID],A17)>=6,6,\"NA\"),\"\"),1)),\"\")\n& IFERROR(CHAR(10) & INDEX(Table4[Risk Detail], SMALL(IF($A17=Table4[Record ID], ROW(Table4[Record ID])-MIN(ROW(Table4[Record ID]))+IF(COUNTIF(Table4[Record ID],A17)>=7,7,\"NA\"),\"\"),1)),\"\")","v":"****[Risk Category Name]****\n\n[Risk Name]\n\n[Root Cause]\n\n[comment]\n"},null,"[Timeline for Action]","[Mitigating Action]",null,{"$f":"IFERROR(IF(INDEX('Grant Management_4'!H$64:H$136,MATCH('Grant Management_4 imp-exp'!$B17,'Grant Management_4'!A$64:$A$136,0))=\"\",\"\",INDEX('Grant Management_4'!H$64:H$136,MATCH('Grant Management_4 imp-exp'!$B17,'Grant Management_4'!A$64:$A$136,0))),\"\")","v":""},{"$f":"IFERROR(IF(INDEX('Grant Management_4'!I$64:I$136,MATCH('Grant Management_4 imp-exp'!$B17,'Grant Management_4'!A$64:$A$136,0))=\"\",\"\",INDEX('Grant Management_4'!I$64:I$136,MATCH('Grant Management_4 imp-exp'!$B17,'Grant Management_4'!A$64:$A$136,0))),\"\")","v":""},null,{"$f":"IFERROR(IF(INDEX('Grant Management_4'!K$64:K$136,MATCH('Grant Management_4 imp-exp'!$B17,'Grant Management_4'!A$64:$A$136,0))=\"\",\"\",INDEX('Grant Management_4'!K$64:K$136,MATCH('Grant Management_4 imp-exp'!$B17,'Grant Management_4'!A$64:$A$136,0))),\"\")","v":""},{"$f":"IFERROR(IF(INDEX('Grant Management_4'!L$64:L$136,MATCH('Grant Management_4 imp-exp'!$B17,'Grant Management_4'!A$64:$A$136,0))=\"\",\"\",INDEX('Grant Management_4'!L$64:L$136,MATCH('Grant Management_4 imp-exp'!$B17,'Grant Management_4'!A$64:$A$136,0))),\"\")","v":""},null,"[Risk Category (Name)]","[Risk Name]","[Root Cause Name]"]

{"sheet":"MitigationAction","index":25,"n_rows":4,"n_cols":7,"rows_kept":4,"cut":false,"hidden":true,"merged":[]}
[]
["Record ID","Record ID2","Risk Category Name","Risk Name","Root Cause","comment","Risk Detail"]
["[Record ID]","[Record ID]","[Risk Category Name]","[Risk Name]","[Root Cause]","[comment]",{"$f":"IF(A3=\"\",\"\",\"****\"&C3&\"****\"&CHAR(10)&CHAR(10)&IF(D3=\"\",\"\",D3&CHAR(10)&CHAR(10)&IF(E3=\"\",\"\",E3&CHAR(10)&CHAR(10)&F3&CHAR(10))))","v":"****[Risk Category Name]****\n\n[Risk Name]\n\n[Root Cause]\n\n[comment]\n"}]
[null,null,null,null,null,null,{"$f":"IF(A4=\"\",\"\",\"****\"&C4&\"****\"&CHAR(10)&CHAR(10)&IF(D4=\"\",\"\",D4&CHAR(10)&CHAR(10)&IF(E4=\"\",\"\",E4&CHAR(10)&CHAR(10)&F4&CHAR(10))))","v":""}]

{"sheet":"RiskData","index":26,"n_rows":289,"n_cols":15,"rows_kept":289,"cut":false,"hidden":true,"merged":[]}
[null,null,null,null,"Actor:","PR","SR",null,"Status","Not Started","In Progress",null,null,"--Select Risk Category--","--Select Risk--"]
["Risk Tracker Name","RT-0124"]
[]
[]
[null,"Risk Category Name","Risk Category Name","Record ID"]
[null,"[Risk Category Name]","[Risk Category Name]","[Record ID]"]
[null,"Programmatic and M&E",null,"a4z36000000se5KAAQ"]
[null,"Financial & Fiduciary",null,"a4z36000000se5LAAQ"]
[null,"Health Product Management & Supply Chain",null,"a4z36000000se5MAAQ"]
[null,"Governance, Oversight & Management",null,"a4z36000000se5NAAQ"]
[]
[]
[null,"Risk Category (Name)","Record ID","Risk Category Name",null,"Risk Details Name","Risk Name","Risk Tracker (Name)","Record ID"]
[null,"[Risk Category (Name)]","[Record ID]","[Risk Category Name]",null,"[Risk Details Name]","[Risk Name]","[Risk Tracker (Name)]","[Record ID]"]
[null,"Programmatic and M&E","a4z36000000se5KAAQ","Programmatic and M&E",null,"Inadequate program design and relevance",null,"RT-0124","a5036000000kEIAAA2"]
[null,"Programmatic and M&E","a4z36000000se5KAAQ","Programmatic and M&E",null,"Inadequate design and operational capacity of M&E systems",null,"RT-0124","a5036000000kEIBAA2"]
[null,"Programmatic and M&E","a4z36000000se5KAAQ","Programmatic and M&E",null,"Inadequate program quality and efficiency",null,"RT-0124","a5036000000kEICAA2"]
[null,"Programmatic and M&E","a4z36000000se5KAAQ","Programmatic and M&E",null,"Limited data availability and inadequate data quality",null,"RT-0124","a5036000000kEIDAA2"]
[null,"Programmatic and M&E","a4z36000000se5KAAQ","Programmatic and M&E",null,"Limited use of data",null,"RT-0124","a5036000000kEIEAA2"]
[null,"Programmatic and M&E","a4z36000000se5KAAQ","Programmatic and M&E",null,"Inadequate promotion of human rights and gender equality",null,"RT-0124","a5036000000kEIFAA2"]
[null,"Financial & Fiduciary","a4z36000000se5LAAQ","Financial & Fiduciary",null,"Inadequate flow of funds arrangements",null,"RT-0124","a5036000000kEIGAA2"]
[null,"Financial & Fiduciary","a4z36000000se5LAAQ","Financial & Fiduciary",null,"Inadequate internal controls",null,"RT-0124","a5036000000kEIHAA2"]
[null,"Financial & Fiduciary","a4z36000000se5LAAQ","Financial & Fiduciary",null,"Financial fraud, corruption and theft",null,"RT-0124","a5036000000kEIIAA2"]
[null,"Financial & Fiduciary","a4z36000000se5LAAQ","Financial & Fiduciary",null,"Inadequate accounting and financial reporting",null,"RT-0124","a5036000000kEIJAA2"]
[null,"Financial & Fiduciary","a4z36000000se5LAAQ","Financial & Fiduciary",null,"Limited value for money",null,"RT-0124","a5036000000kEIKAA2"]
[null,"Financial & Fiduciary","a4z36000000se5LAAQ","Financial & Fiduciary",null,"Inadequate auditing arrangements",null,"RT-0124","a5036000000kEILAA2"]
[null,"Health Product Management & Supply Chain","a4z36000000se5MAAQ","Health Product Management & Supply Chain",null,"Inappropriate selection of health product and equipment",null,"RT-0124","a5036000000kEIMAA2"]
[null,"Health Product Management & Supply Chain","a4z36000000se5MAAQ","Health Product Management & Supply Chain",null,"Unreliable forecasting, quantification and supply planning",null,"RT-0124","a5036000000kEINAA2"]
[null,"Health Product Management & Supply Chain","a4z36000000se5MAAQ","Health Product Management & Supply Chain",null,"Inefficient procurement processes and outcomes",null,"RT-0124","a5036000000kEIOAA2"]
[null,"Health Product Management & Supply Chain","a4z36000000se5MAAQ","Health Product Management & Supply Chain",null,"Inadequate warehouse and distribution systems",null,"RT-0124","a5036000000kEIPAA2"]
[null,"Health Product Management & Supply Chain","a4z36000000se5MAAQ","Health Product Management & Supply Chain",null,"Limited quality monitoring and inadequate product use",null,"RT-0124","a5036000000kEIQAA2"]
[null,"Health Product Management & Supply Chain","a4z36000000se5MAAQ","Health Product Management & Supply Chain",null,"Inadequate information (LMIS) management systems",null,"RT-0124","a5036000000kEIRAA2"]
[null,"Governance, Oversight & Management","a4z36000000se5NAAQ","Governance, Oversight & Management",null,"Inadequate national program governance",null,"RT-0124","a5036000000kEISAA2"]
[null,"Governance, Oversight & Management","a4z36000000se5NAAQ","Governance, Oversight & Management",null,"Ineffective program management",null,"RT-0124","a5036000000kEITAA2"]
[null,"Governance, Oversight & Management","a4z36000000se5NAAQ","Governance, Oversight & Management",null,"Inadequate program coordination and SR oversight",null,"RT-0124","a5036000000kEIUAA2"]
[]
[]
[]
[null,"IsActive","Risk","Risk (Name)","RT Risk Name","Root Cause","Root Cause Name","Record ID"]
[null,"[IsActive]","[Risk]","[Risk (Name)]","[RT Risk Name]","[Root Cause]","[Root Cause Name]","[Record ID]"]
[null,true,null,null,null,"What happens when a HSS grant without commodities omits this section on forecasting and quantification?","RC-0362","a5536000000k9xtAAA"]
[null,true,null,null,null,"Not all M&E investments/activities demonstrate clear effectiveness/value for money.","RC-0363","a5536000000k9zuAAA"]
[null,true,null,null,null,"1. Volatile security situation restricts the PRs' and national programs' abilities to provide the needed services across the country and to conduct sufficient oversight and supervision.","RC-0364","a5536000000kA1HAAU"]
[null,true,null,null,null,"COE Environment, several provinces with armed conflicts and susceptibility to natural disasters which at times affects regular supply and distribution of commodities and limits the continuous access of target beneficiaries,","RC-0365","a5536000000kA2tAAE"]
[null,true,null,null,null,"Dear Risk. I have not been able to find a root cause that reflects lack of controls regarding stock counts/reconciliations of inventory differences. Please let me know if I have missed it.","RC-0414","a5536000000kABeAAM"]
[null,true,"a5436000000k9guAAA","Financial fraud, corruption and theft","Financial fraud, corruption and theft","The roles and responsibilities of the audit committee/equivalent body in terms of oversight of fraud risks is not clearly defined","RC-0150","a5536000000k9fPAAQ"]
[null,true,"a5436000000k9guAAA","Financial fraud, corruption and theft","Financial fraud, corruption and theft","Those charged with governance do not have the independence, experience, and organizational stature to allow them to effectively govern the entity, particularly the responsibility for managing financial fraud risk.","RC-0151","a5536000000k9fQAAQ"]
[null,true,"a5436000000k9guAAA","Financial fraud, corruption and theft","Financial fraud, corruption and theft","The PR's fraud risk management policy is not sufficiently comprehensive to address all the elements of a well designed fraud management policy,","RC-0156","a5536000000k9fVAAQ"]
[null,true,"a5436000000k9guAAA","Financial fraud, corruption and theft","Financial fraud, corruption and theft","The PR's anti-fraud policy is not well defined to adequately prevent, detect and respond to fraud, including policies around asset misappropriation and fraudulent financial statements.","RC-0157","a5536000000k9fWAAQ"]
[null,true,"a5436000000k9guAAA","Financial fraud, corruption and theft","Financial fraud, corruption and theft","Employees are not fully aware of what constitutes fraud due to poorly articulated statement of ethical values that is not understood at all levels of the organization.","RC-0158","a5536000000k9fXAAQ"]
[null,true,"a5436000000k9guAAA","Financial fraud, corruption and theft","Financial fraud, corruption and theft","There are either no or inadequate forums, trainings and learning activities on fraud and ethical values,","RC-0159","a5536000000k9fYAAQ"]
[null,true,"a5436000000k9guAAA","Financial fraud, corruption and theft","Financial fraud, corruption and theft","The responsibility and accountability for fraud policies and procedures does not  reside with the PR management or function (Internal Audit, Audit Committee) in which the risk resides.","RC-0160","a5536000000k9fZAAQ"]
[null,true,"a5436000000k9guAAA","Financial fraud, corruption and theft","Financial fraud, corruption and theft","The PR does not  maintains an incident investigation and remediation system that includes a tracking mechanism to allow management to report on material fraud events.","RC-0161","a5536000000k9faAAA"]
[null,true,"a5436000000k9guAAA","Financial fraud, corruption and theft","Financial fraud, corruption and theft","The PR's management does conducts a periodic fraud risk assessment to identify the various ways that fraud and misconduct can occur, and no documentation of this assessment is maintained as a result of capacity issues.","RC-0162","a5536000000k9fbAAA"]
[null,true,"a5436000000k9guAAA","Financial fraud, corruption and theft","Financial fraud, corruption and theft","Inadequate PR and SR staff levels, skills and experience to develop and implement adequate procedures and controls to identify fraud / corruption / theft triggers, including insufficient oversight over financial staff by PR or SR management","RC-0163","a5536000000k9fcAAA"]
[null,true,"a5436000000k9guAAA","Financial fraud, corruption and theft","Financial fraud, corruption and theft","The PR procedures for monitoring controls and programmes at SR and other partner levels designed to prevent, deter or detect fraud are not adequate","RC-0164","a5536000000k9fdAAA"]
[null,true,"a5436000000k9guAAA","Financial fraud, corruption and theft","Financial fraud, corruption and theft","The PR does not have an audit committee/equivalent body  or the audit committee or equivalent body does not have the required competence for effective oversight of fraud risks","RC-0380","a5536000000kA7JAAU"]
[null,true,"a5436000000k9guAAA","Financial fraud, corruption and theft","Financial fraud, corruption and theft","Absence or Inadequate policy and procedures or staff on fraud risk management which does not specify a requirement for assessment of fraud risk","RC-0381","a5536000000kA7KAAU"]
[null,true,"a5436000000k9gvAAA","Accounting and financial reporting","Inadequate accounting and financial reporting","Inadequate monitoring of the key controls relating to financial management reporting","RC-0203","a5536000000k9gGAAQ"]
[null,true,"a5436000000k9gvAAA","Accounting and financial reporting","Inadequate accounting and financial reporting","The financial system does not have the capacity to link the financial information with the project's programmatic progress.","RC-0208","a5536000000k9gLAAQ"]
[null,true,"a5436000000k9gvAAA","Accounting and financial reporting","Inadequate accounting and financial reporting","Staff do not know how to use the  functionality of the software to link the financial information with the project's programmatic progress.","RC-0209","a5536000000k9gMAAQ"]
[null,true,"a5436000000k9gvAAA","Accounting and financial reporting","Inadequate accounting and financial reporting","The PR’s senior finance management does not adequately supervise and monitor key accounting reconciliations and financial reports and ascertain their linkages to programmatic results","RC-0210","a5536000000k9gNAAQ"]
[null,true,"a5436000000k9gvAAA","Accounting and financial reporting","Inadequate accounting and financial reporting","Inadequate monitoring of the key controls relating to the variance analysis process","RC-0213","a5536000000k9gQAAQ"]
[null,true,"a5436000000k9gvAAA","Accounting and financial reporting","Inadequate accounting and financial reporting","The SR and PR reporting systems are not compatible resulting in challenges in consolidation of financial reports","RC-0219","a5536000000k9gWAAQ"]
[null,true,"a5436000000k9gvAAA","Accounting and financial reporting","Inadequate accounting and financial reporting","Inadequate monitoring of the key controls relating to SR reporting","RC-0220","a5536000000k9gXAAQ"]
[null,true,"a5436000000k9gvAAA","Accounting and financial reporting","Inadequate accounting and financial reporting","The accounting system is not robust enough. This includes the following:\n-The accounting software does not have all the required functionalities\n-The accounting software does not have the required flexibilities","RC-0165","a5536000000k9feAAA"]
[null,true,"a5436000000k9gvAAA","Accounting and financial reporting","Inadequate accounting and financial reporting","Inadequate monitoring of the back up process","RC-0171","a5536000000k9fkAAA"]
[null,true,"a5436000000k9gvAAA","Accounting and financial reporting","Inadequate accounting and financial reporting","Inadequate monitoring of the key controls relating to the preparation, approval and posting of transactions.","RC-0176","a5536000000k9fpAAA"]
[null,true,"a5436000000k9gvAAA","Accounting and financial reporting","Inadequate accounting and financial reporting","Absence of or inadequate written policies and procedures or staff not systematically orientated or trained on the procedures relating to preparation and changes to the CoA.","RC-0178","a5536000000k9frAAA"]
[null,true,"a5436000000k9gvAAA","Accounting and financial reporting","Inadequate accounting and financial reporting","Inadequate monitoring of the key controls relating to the preparation and changes to the CoA","RC-0181","a5536000000k9fuAAA"]
[null,true,"a5436000000k9gvAAA","Accounting and financial reporting","Inadequate accounting and financial reporting","Poor monitoring of the key controls relating to the accounting and reported related administrative activities","RC-0189","a5536000000k9g2AAA"]
[null,true,"a5436000000k9gvAAA","Accounting and financial reporting","Inadequate accounting and financial reporting","Poor monitoring of the key controls relating to the reconciliation of the general ledger to the subsidiary ledgers","RC-0193","a5536000000k9g6AAA"]
[null,true,"a5436000000k9gvAAA","Accounting and financial reporting","Inadequate accounting and financial reporting","Inadequate monitoring of the key controls relating to the retention of accounting records","RC-0198","a5536000000k9gBAAQ"]
[null,true,"a5436000000k9gvAAA","Accounting and financial reporting","Inadequate accounting and financial reporting","Staff using the accounting software do not have access to the procedures manual of the software or not systematically orientated or trained  on the computerized accounting system","RC-0382","a5536000000kA7LAAU"]
[null,true,"a5436000000k9gvAAA","Accounting and financial reporting","Inadequate accounting and financial reporting","Absence of or inadequate written policies and procedures or staff not  systematically orientated or trained  on the the backup process","RC-0383","a5536000000kA7MAAU"]
[null,true,"a5436000000k9gvAAA","Accounting and financial reporting","Inadequate accounting and financial reporting","Absence of or inadequate written policies and procedures or staff not systematically orientated or trained  on the procedures relating to preparation, approval and posting of transactions","RC-0384","a5536000000kA7NAAU"]
[null,true,"a5436000000k9gvAAA","Accounting and financial reporting","Inadequate accounting and financial reporting","CoA is inadequate.","RC-0386","a5536000000kA7PAAU"]
[null,true,"a5436000000k9gvAAA","Accounting and financial reporting","Inadequate accounting and financial reporting","Absence of or inadequate written policies and procedures or staff not systematically orientated or trainedr with the policies and procedures relating to accounting and reporting related administrative activities.","RC-0387","a5536000000kA7QAAU"]
[null,true,"a5436000000k9gvAAA","Accounting and financial reporting","Inadequate accounting and financial reporting","Absence of or inadequate process or staff not systematically orientated or trained with the process relating to  the reconciliation of the general ledger to the subsidiary ledgers","RC-0388","a5536000000kA7RAAU"]
[null,true,"a5436000000k9gvAAA","Accounting and financial reporting","Inadequate accounting and financial reporting","Absence of or inadequate written policies and procedures or staff not systematically orientated or trained on the procedures relating to retention of accounting records","RC-0389","a5536000000kA7SAAU"]
[null,true,"a5436000000k9gvAAA","Accounting and financial reporting","Inadequate accounting and financial reporting","Absence of or inadequate written policies and procedures or staff not systematically orientated or trained  relating to financial management reporting","RC-0390","a5536000000kA7TAAU"]
[null,true,"a5436000000k9gvAAA","Accounting and financial reporting","Inadequate accounting and financial reporting","The computerized accounting system does not have the required capabilities for appropriate reporting  or staff not systematically orientated or trained  on the reporting module of the accounting software.","RC-0391","a5536000000kA7UAAU"]
[null,true,"a5436000000k9gvAAA","Accounting and financial reporting","Inadequate accounting and financial reporting","Absence of or inadequate process or staff not systematically orientated or trained  on the procedures in place  for doing proper variance analysis including taking corrective action.","RC-0392","a5536000000kA7VAAU"]
[null,true,"a5436000000k9gvAAA","Accounting and financial reporting","Inadequate accounting and financial reporting","Absence of or inadequate process or management not systematically orientated or trained  on the procedures in place  for analysing budget spending rates to make decisions about modifying activity plans","RC-0393","a5536000000kA7WAAU"]
[null,true,"a5436000000k9gvAAA","Accounting and financial reporting","Inadequate accounting and financial reporting","Absence of or inadequate process or staff not systematically orientated or trained  on the procedures in place  to ensure that the financial management system between the PR and sub recipients are sufficient to ensure timely availability and integrity of consolidated financial data.","RC-0394","a5536000000kA7XAAU"]
[null,true,"a5436000000k9gxAAA","Auditing arrangements","Inadequate auditing arrangements","Mandate of the IA does not cover GF grant","RC-0255","a5536000000k9h6AAA"]
[null,true,"a5436000000k9gxAAA","Auditing arrangements","Inadequate auditing arrangements","Lack of clearly defined authority of IA in a charter or law","RC-0260","a5536000000k9hBAAQ"]
[null,true,"a5436000000k9gxAAA","Auditing arrangements","Inadequate auditing arrangements","Appropriate tools and procedures are not available or adequate to cover the required audit scope","RC-0268","a5536000000k9hJAAQ"]
[null,true,"a5436000000k9gxAAA","Auditing arrangements","Inadequate auditing arrangements","Inadequate monitoring of the key controls related to the selection process for audit services","RC-0275","a5536000000k9hQAAQ"]
[null,true,"a5436000000k9gxAAA","Auditing arrangements","Inadequate auditing arrangements","The PR staff do not have the right competencies to prepare the financial statements","RC-0281","a5536000000k9hWAAQ"]
[null,true,"a5436000000k9gxAAA","Auditing arrangements","Inadequate auditing arrangements","The accounting system does not have the required functionality to prepare financial statements","RC-0282","a5536000000k9hXAAQ"]
[null,true,"a5436000000k9gxAAA","Auditing arrangements","Inadequate auditing arrangements","Lack of an internal audit unit due to:\n-No budget for an internal audit function\n-It is not part of the entity structure\n-Management does not place importance on internal audit","RC-0403","a5536000000kA7gAAE"]
[null,true,"a5436000000k9gxAAA","Auditing arrangements","Inadequate auditing arrangements","Lack of independence of the IA unit\n-budget influenced by management\n-IA staff are appointed and can be terminated by management\n-IA staff are involved in operational activities","RC-0404","a5536000000kA7hAAE"]
[null,true,"a5436000000k9gxAAA","Auditing arrangements","Inadequate auditing arrangements","IA unit is not adequately resourced. This includes:\n-Limited skills in the IA team\n-Inadequate qualification of the key staff\n-Lack of continuous professional training\n-Limited number of staff","RC-0405","a5536000000kA7iAAE"]
[null,true,"a5436000000k9gxAAA","Auditing arrangements","Inadequate auditing arrangements","Absence of or inadequate procedures manual  or staff not systematically orientated or trained on the procedures relating to the conduct of internal audits","RC-0406","a5536000000kA7jAAE"]
[null,true,"a5436000000k9gxAAA","Auditing arrangements","Inadequate auditing arrangements","The staff of the IA do not have the required competencies to cover the various types of audits /specific subject audits and or audit methodologies\n- Inadequate qualification\n-Inadequate relevant experience\n-Inadequate training especially on new audit techniques","RC-0407","a5536000000kA7kAAE"]
[null,true,"a5436000000k9gxAAA","Auditing arrangements","Inadequate auditing arrangements","Absence of or inadequate process  or staff not systematically orientated or trained on the process relating to the follow up of internal audit issues","RC-0408","a5536000000kA7lAAE"]
[null,true,"a5436000000k9gxAAA","Auditing arrangements","Inadequate auditing arrangements","Absence of or inadequate procedures or staff not systematically orientated or trained on the selection process for audit services","RC-0409","a5536000000kA7mAAE"]
[null,true,"a5436000000k9gxAAA","Auditing arrangements","Inadequate auditing arrangements","Inadequate quality review process of the auditor leading to poor reports  including:\n- Errors in the reports\n- Inadequate opinion on the financial statements\n- Non-compliance with the audit terms of reference","RC-0410","a5536000000kA7nAAE"]
[null,true,"a5436000000k9gxAAA","Auditing arrangements","Inadequate auditing arrangements","Inadequate oversight over the external audit process. This includes:\n-Lack of an audit committee/equivalent body tasked with external audit oversight\n-The audit committee/equivalent body does not have the right competencies for proper external audit oversight\n-The roles and responsibilities of the audit committee/equivalent body in relation to external audit oversight is not clearly defined","RC-0411","a5536000000kA7oAAE"]
[null,true,"a5436000000k9gxAAA","Auditing arrangements","Inadequate auditing arrangements","Absence of or inadequate process or staff not systematically orientated or trained on the process relating to the follow up of external audit issues","RC-0412","a5536000000kA7pAAE"]
[null,true,"a5436000000k9gnAAA","Design and operational capacity of M&E systems","Inadequate design and operational capacity of M&E systems","There is ineffective leadership and support provided by the MoH for the M&E agenda.","RC-0007","a5536000000k9d6AAA"]
[null,true,"a5436000000k9gnAAA","Design and operational capacity of M&E systems","Inadequate design and operational capacity of M&E systems","There is ineffective coordination between M&E Unit / department and disease/HSS programs.","RC-0008","a5536000000k9d7AAA"]
[null,true,"a5436000000k9gnAAA","Design and operational capacity of M&E systems","Inadequate design and operational capacity of M&E systems","There are no M&E policies and guidance produced and/or disseminated to sub-national and service level providers.","RC-0009","a5536000000k9d8AAA"]
[null,true,"a5436000000k9gnAAA","Design and operational capacity of M&E systems","Inadequate design and operational capacity of M&E systems","There is ineffective coordination forums by stakeholders involved in M&E activities at national leve resulting in duplication of M&E efforts/ resources across programs and partners.","RC-0010","a5536000000k9d9AAA"]
[null,true,"a5436000000k9gnAAA","Design and operational capacity of M&E systems","Inadequate design and operational capacity of M&E systems","Technical Assistance is not being used effectively and efficiently","RC-0011","a5536000000k9dAAAQ"]
[null,true,"a5436000000k9gnAAA","Design and operational capacity of M&E systems","Inadequate design and operational capacity of M&E systems","There is no effective coordination of M&E activities at sub-national level (e.g., partners’ investments at sub-national level are not coordinated).","RC-0012","a5536000000k9dBAAQ"]
[null,true,"a5436000000k9gnAAA","Design and operational capacity of M&E systems","Inadequate design and operational capacity of M&E systems","There is no National M&E plan developed according to standards that is linked to the NSP.","RC-0013","a5536000000k9dCAAQ"]
[null,true,"a5436000000k9gnAAA","Design and operational capacity of M&E systems","Inadequate design and operational capacity of M&E systems","Indicators to track the progress on implementation of the NSP are not well defined (i.e. standard indicators appropriate to track program performance are not being used)","RC-0014","a5536000000k9dDAAQ"]
[null,true,"a5436000000k9gnAAA","Design and operational capacity of M&E systems","Inadequate design and operational capacity of M&E systems","Robust denominators (e.g., population size and disease burden estimates, etc.) are not available, and/or consistent and accurate baseline data is not available.","RC-0015","a5536000000k9dEAAQ"]
[null,true,"a5436000000k9gnAAA","Design and operational capacity of M&E systems","Inadequate design and operational capacity of M&E systems","There is no M&E investment plan to support monitoring and reporting on progress on the implementation of NSP and/or M&E investments are not tracked and visible.","RC-0016","a5536000000k9dFAAQ"]
[null,true,"a5436000000k9gnAAA","Design and operational capacity of M&E systems","Inadequate design and operational capacity of M&E systems","There is insufficient funding dedicated to implement M&E activities","RC-0017","a5536000000k9dGAAQ"]
[null,true,"a5436000000k9gnAAA","Design and operational capacity of M&E systems","Inadequate design and operational capacity of M&E systems","There is insufficient human and material resources dedicated for M&E (i.e. staffing, training, hardware or software, collection tools).","RC-0018","a5536000000k9dHAAQ"]
[null,true,"a5436000000k9gnAAA","Design and operational capacity of M&E systems","Inadequate design and operational capacity of M&E systems","There are insufficient incentives and feedback mechanisms in the health system to produce better data.","RC-0019","a5536000000k9dIAAQ"]
[null,true,"a5436000000k9gnAAA","Design and operational capacity of M&E systems","Inadequate design and operational capacity of M&E systems","Data collection and reporting for the grant outside of the national M&E system is not integrated into the national systems.","RC-0020","a5536000000k9dJAAQ"]
[null,true,"a5436000000k9gnAAA","Design and operational capacity of M&E systems","Inadequate design and operational capacity of M&E systems","The data verification mechanism used by the PR to ensure the quality of the reported data is not effectively and appropriately fed back to SRs and SSRs.","RC-0021","a5536000000k9dKAAQ"]
[null,true,"a5436000000k9gnAAA","Design and operational capacity of M&E systems","Inadequate design and operational capacity of M&E systems","The grant-specific M&E plan does not include all indicators and measurement guidance related to the modules/interventions supported by the GF.","RC-0022","a5536000000k9dLAAQ"]
[null,true,"a5436000000k9gsAAA","Flow of funds arrangements","Inadequate flow of funds arrangements","Hyperinflation in the country/availibilty of foreign currency to make payment to suppliers","RC-0062","a5536000000k9dzAAA"]
[null,true,"a5436000000k9gsAAA","Flow of funds arrangements","Inadequate flow of funds arrangements","Low geographical coverage of banks and/or money transfer mechanisms in the country","RC-0064","a5536000000k9e1AAA"]
[null,true,"a5436000000k9gsAAA","Flow of funds arrangements","Inadequate flow of funds arrangements","Alternative fund transfer mechanism (mobile money, payment agent, etc.) are unknown or inefficient","RC-0065","a5536000000k9e2AAA"]
[null,true,"a5436000000k9gsAAA","Flow of funds arrangements","Inadequate flow of funds arrangements","Absence of or inadequate reporting and monitoring mechanisms in place to track the use of funds disbursed to SRs and other implementing partners","RC-0066","a5536000000k9e3AAA"]
[null,true,"a5436000000k9gsAAA","Flow of funds arrangements","Inadequate flow of funds arrangements","Inadequate procedures at decentralized levels (Regions or below) leading to delays in justification of previous fund advances","RC-0067","a5536000000k9e4AAA"]
[null,true,"a5436000000k9gsAAA","Flow of funds arrangements","Inadequate flow of funds arrangements","The proposed entities for implementing Global Fund grants have limited experience in handling significant volumes of donor funding","RC-0068","a5536000000k9e5AAA"]
[null,true,"a5436000000k9gsAAA","Flow of funds arrangements","Inadequate flow of funds arrangements","Poor monitoring of the key controls in the due diligence process","RC-0071","a5536000000k9e8AAA"]
[null,true,"a5436000000k9gsAAA","Flow of funds arrangements","Inadequate flow of funds arrangements","Poor monitoring of the key controls in the bank selection process","RC-0075","a5536000000k9eCAAQ"]
[null,true,"a5436000000k9gsAAA","Flow of funds arrangements","Inadequate flow of funds arrangements","Poor monitoring of the key controls in the payment mechanism selection process","RC-0079","a5536000000k9eGAAQ"]
[null,true,"a5436000000k9gsAAA","Flow of funds arrangements","Inadequate flow of funds arrangements","Poor monitoring of the key controls in the foreign exchange risk management process","RC-0084","a5536000000k9eLAAQ"]
[null,true,"a5436000000k9gsAAA","Flow of funds arrangements","Inadequate flow of funds arrangements","Absence of or Inadequate policy and procedures for the receipt, accounting and/or administration of funds by the PR or any of the other entities","RC-0086","a5536000000k9eNAAQ"]
[null,true,"a5436000000k9gsAAA","Flow of funds arrangements","Inadequate flow of funds arrangements","Poor monitoring of the key controls in the receipt, accounting and/or administration of funds by the PR or any of the other entities","RC-0089","a5536000000k9eQAAQ"]
[null,true,"a5436000000k9gsAAA","Flow of funds arrangements","Inadequate flow of funds arrangements","The implementation arrangement is complex\n-Too many implementers\n-Pass-through PRs\n-Devolved structures","RC-0366","a5536000000kA75AAE"]
[null,true,"a5436000000k9gsAAA","Flow of funds arrangements","Inadequate flow of funds arrangements","Absence of or Inadequate procedures or staff not systematically orientated/trained on the procedures for due diligence assessments","RC-0367","a5536000000kA76AAE"]
[null,true,"a5436000000k9gsAAA","Flow of funds arrangements","Inadequate flow of funds arrangements","Absence of or Inadequate procedures,  or staff not systematically orientated/trained on the procedures for selection of banks in which Global Fund funds are lodged.","RC-0368","a5536000000kA77AAE"]
[null,true,"a5436000000k9gsAAA","Flow of funds arrangements","Inadequate flow of funds arrangements","Absence of or Inadequate procedures or staff not systematically orientated/trained on the selection of alternative payment mechanisms in which Global Fund funds are lodged.","RC-0369","a5536000000kA78AAE"]
[null,true,"a5436000000k9gsAAA","Flow of funds arrangements","Inadequate flow of funds arrangements","Absence of or Inadequate procedures or staff not systematically orientated/trained on the procedures relating to management of foreign exchange risks","RC-0370","a5536000000kA79AAE"]
[null,true,"a5436000000k9gsAAA","Flow of funds arrangements","Inadequate flow of funds arrangements","Absence of or inadequate procedures or staff in place for management to identify cash flow bottlenecks and solve them","RC-0371","a5536000000kA7AAAU"]
[null,true,"a5436000000k9gsAAA","Flow of funds arrangements","Inadequate flow of funds arrangements","The banking arrangements are inadequate (mandatory use of complex treasury systems, comingled accounts, funds transfers in cash)","RC-0413","a5536000000kA7qAAE"]
[null,true,"a5436000000k9h3AAA","Information (LMIS) management systems","Inadequate information (LMIS) management systems","Logistics management information system (LMIS) does not effectively capture essential logistics data or does not effectively transmit data to appropriate supply chain management personnel; or no system  is in place","RC-0319","a5536000000k9i8AAA"]
[null,true,"a5436000000k9h3AAA","Information (LMIS) management systems","Inadequate information (LMIS) management systems","Supply chain data governance oversight and controls are weak; data storage infrastructure is inadequate; analysis/access is not structured; and/or there is no coordinating body to address cross-cutting LMIS and data information issues","RC-0320","a5536000000k9i9AAA"]
[null,true,"a5436000000k9h3AAA","Information (LMIS) management systems","Inadequate information (LMIS) management systems","Reporting and recording systems (including LMIS, HMIS and PMIS) and management processes are not adequately integrated; effective system-to-system data exchange is not possible, data standards/indicators are not harmonized, multiple tools are used by different partners and/or systems/processes are not integrated across programs","RC-0321","a5536000000k9iAAAQ"]
[null,true,"a5436000000k9h3AAA","Information (LMIS) management systems","Inadequate information (LMIS) management systems","LMIS tools are not fit for purpose; data collection systems/processes are costly or laborious; reporting rates are low; records management practices are poor;","RC-0322","a5536000000k9iBAAQ"]
[null,true,"a5436000000k9h3AAA","Information (LMIS) management systems","Inadequate information (LMIS) management systems","Gaps in data transmission between national and peripheral levels: quarterly and/or annual status reports are not regularly sent to the national level; feedback reports from national level are not regularly sent to lower level warehouses/facilities","RC-0323","a5536000000k9iCAAQ"]
[null,true,"a5436000000k9h3AAA","Information (LMIS) management systems","Inadequate information (LMIS) management systems","No defined supply chain performance monitoring framework or key performance indicators to use in analysing supply chain data and informing continuous improvement, tracking progress and effectiveness of supply chain interventions or supporting supply chain policy/operational decisions","RC-0324","a5536000000k9iDAAQ"]
[null,true,"a5436000000k9gtAAA","Internal controls","Inadequate internal controls","Absence of or inadequate written financial  policies and procedures manual describing the process flow and the embedded controls","RC-0092","a5536000000k9eTAAQ"]
[null,true,"a5436000000k9gtAAA","Internal controls","Inadequate internal controls","Poor monitoring of key controls relating to altering or establishing a new accounting principle, policy or procedure","RC-0096","a5536000000k9eXAAQ"]
[null,true,"a5436000000k9gtAAA","Internal controls","Inadequate internal controls","Poor monitoring of key controls relating to approval system for procurement  of non health products and services","RC-0102","a5536000000k9edAAA"]
[null,true,"a5436000000k9gtAAA","Internal controls","Inadequate internal controls","Poor monitoring of key controls relating to cash and bank management.","RC-0108","a5536000000k9ejAAA"]
[null,true,"a5436000000k9gtAAA","Internal controls","Inadequate internal controls","Poor monitoring of key controls relating to petty cash management.","RC-0114","a5536000000k9epAAA"]
[null,true,"a5436000000k9gtAAA","Internal controls","Inadequate internal controls","Poor monitoring of key controls relating to payment and invoicing","RC-0120","a5536000000k9evAAA"]
[null,true,"a5436000000k9gtAAA","Internal controls","Inadequate internal controls","Poor monitoring of key controls relating to payroll management","RC-0126","a5536000000k9f1AAA"]
[null,true,"a5436000000k9gtAAA","Internal controls","Inadequate internal controls","Poor monitoring of key controls relating to fixed asset management","RC-0132","a5536000000k9f7AAA"]
[null,true,"a5436000000k9gtAAA","Internal controls","Inadequate internal controls","Absence of or inadequate process in place for management to communicate financial reports provided by the various assurance providers to the board of directors or equivalent body.","RC-0134","a5536000000k9f9AAA"]
[null,true,"a5436000000k9gtAAA","Internal controls","Inadequate internal controls","Roles and responsibilities relating to the communication of financial reports provided by the various assurance providers to the board of directors or equivalent body are not clearly defined.","RC-0135","a5536000000k9fAAAQ"]
[null,true,"a5436000000k9gtAAA","Internal controls","Inadequate internal controls","Absence of or inadeqaute process in place for management to ensure that the board of directors, audit, finance or other committees, periodically reviews the financial policies and procedures.","RC-0136","a5536000000k9fBAAQ"]
[null,true,"a5436000000k9gtAAA","Internal controls","Inadequate internal controls","Roles and responsibilities relating to ensuring that the financial policies and procedures are reviewed of by the board of directors, audit, finance or other committees are not clearly defined.","RC-0137","a5536000000k9fCAAQ"]
[null,true,"a5436000000k9gtAAA","Internal controls","Inadequate internal controls","Absence of or inadequate process in place for management to ensure that the financial management system operates as intended and provide reliable data.","RC-0138","a5536000000k9fDAAQ"]
[null,true,"a5436000000k9gtAAA","Internal controls","Inadequate internal controls","Roles and responsibilities relating to the supervision of the financial management system by management to ensure that it operates as intended and provides reliable data are not clearly defined.","RC-0139","a5536000000k9fEAAQ"]
[null,true,"a5436000000k9gtAAA","Internal controls","Inadequate internal controls","The staffing of the monitoring unit established by the organisation is not competent or adequately trained and orientated on how to do things","RC-0141","a5536000000k9fGAAQ"]
[null,true,"a5436000000k9gtAAA","Internal controls","Inadequate internal controls","Senior management and the board do not  take actions on internal control deficiencies reported to them","RC-0144","a5536000000k9fJAAQ"]
[null,true,"a5436000000k9gtAAA","Internal controls","Inadequate internal controls","Absence of or inadequate written policies and procedures on monitoring including SRs/SSRs oversight","RC-0145","a5536000000k9fKAAQ"]
[null,true,"a5436000000k9gtAAA","Internal controls","Inadequate internal controls","Absence of or inadequate procedures  or staff not systematically orientated/trained on the procedures  regarding  the altering or establishing a new accounting principle, policy or procedure","RC-0372","a5536000000kA7BAAU"]
[null,true,"a5436000000k9gtAAA","Internal controls","Inadequate internal controls","Absence of or inadequate  procedures  or staff not systematically orientated/trained on the procedures regarding the approval system for procurement  of non health products and services","RC-0373","a5536000000kA7CAAU"]
[null,true,"a5436000000k9gtAAA","Internal controls","Inadequate internal controls","Absence of or inadequate policies and procedures  or staff not systematically orientated/trained on the procedures regarding cash and bank management","RC-0374","a5536000000kA7DAAU"]
[null,true,"a5436000000k9gtAAA","Internal controls","Inadequate internal controls","Absence of or inadequate  policies and procedures  or staff not systematically orientated/trained on the procedures regarding petty cash management","RC-0375","a5536000000kA7EAAU"]
[null,true,"a5436000000k9gtAAA","Internal controls","Inadequate internal controls","Absence of or inadequate written policies and procedures  or staff not systematically orientated/trained on the procedures regarding payment and invoicing","RC-0376","a5536000000kA7FAAU"]
[null,true,"a5436000000k9gtAAA","Internal controls","Inadequate internal controls","Absence of or inadequate written policies and procedures  or staff not systematically orientated/trained on the procedures relating to payroll management","RC-0377","a5536000000kA7GAAU"]
[null,true,"a5436000000k9gtAAA","Internal controls","Inadequate internal controls","Absence of or inadequate written policies and procedures  or staff not systematically orientated/trained on the procedures relating to fixed asset management","RC-0378","a5536000000kA7HAAU"]
[null,true,"a5436000000k9gtAAA","Internal controls","Inadequate internal controls","Internal control deficiencies are not communicated to senior management to take action and enforce them or communicated with significant delays to those parties responsible to take actions","RC-0379","a5536000000kA7IAAU"]
[null,true,"a5436000000k9h4AAA","National program governance","Inadequate national program governance","The implementation arrangements are not designed to implement the program effectively and efficiently.","RC-0325","a5536000000k9iEAAQ"]
[null,true,"a5436000000k9h4AAA","National program governance","Inadequate national program governance","Lines of authority and responsibility from national to local levels to implement the disease program are not clearly defined and/or do not operating effectively.","RC-0326","a5536000000k9iFAAQ"]
[null,true,"a5436000000k9h4AAA","National program governance","Inadequate national program governance","Key government officials (e.g., MoH, MoF, President or their key advisors, etc.) are not aware of the Global Fund program and do not provide the necessary support and leadership to facilitate the program achieving its objectives.","RC-0327","a5536000000k9iGAAQ"]
[null,true,"a5436000000k9h4AAA","National program governance","Inadequate national program governance","The national (and/or appropriate sub-national) government does not prioritize providing financial and/or human resources to support the disease program.","RC-0328","a5536000000k9iHAAQ"]
[null,true,"a5436000000k9h4AAA","National program governance","Inadequate national program governance","The program does not have a human resource for health (HRH) plan or  technical assistance and capacity-building activities to address known weaknesses.","RC-0329","a5536000000k9iIAAQ"]
[null,true,"a5436000000k9h4AAA","National program governance","Inadequate national program governance","The government does not hold the national programs accountable for their performance in achieving the national strategy and objectives.","RC-0330","a5536000000k9iJAAQ"]
[null,true,"a5436000000k9h4AAA","National program governance","Inadequate national program governance","The implementer is not collaborating well between government and non-government stakeholders to facilitate the achievement of program objectives.","RC-0331","a5536000000k9iKAAQ"]
[null,true,"a5436000000k9h4AAA","National program governance","Inadequate national program governance","Ineffective planning, budgeting, implementation and supervision performed across national disease programs (i.e. absence or lack of standardized forms and templates, unit costs, joint planning of supervision vision visits, etc.).","RC-0332","a5536000000k9iLAAQ"]
[null,true,"a5436000000k9h4AAA","National program governance","Inadequate national program governance","Ineffective planning, budgeting, implementation and supervision performed across GF and other external donors such as GAVI, PMI, PEPFAR, WB (i.e. duplication of geographic coverage and/or lack of harmonized unit costs, joint supervision and/or assurance activities, etc.).","RC-0333","a5536000000k9iMAAQ"]
[null,true,"a5436000000k9h4AAA","National program governance","Inadequate national program governance","The national disease program leadership does not ensure that cross-cutting HSS/RSSH interventions are being appropriately funded within the available resources to maximize the impact of the program.","RC-0334","a5536000000k9iNAAQ"]
[null,true,"a5436000000k9h6AAA","Program coordination and SR oversight","Inadequate program coordination and SR oversight","The PR does not effectively engage and coordinate with partners, stakeholders and other relevant actors in the health sector.","RC-0354","a5536000000k9ihAAA"]
[null,true,"a5436000000k9h6AAA","Program coordination and SR oversight","Inadequate program coordination and SR oversight","PR leadership does not effectively coordinate and implement support available from partners for required technical assistance and capacity building.","RC-0355","a5536000000k9iiAAA"]
[null,true,"a5436000000k9h6AAA","Program coordination and SR oversight","Inadequate program coordination and SR oversight","The organization has no defined processes, procedures and systems for a transparent and timely selection process of sub-recipients (and relevant sub-sub-recipients).","RC-0356","a5536000000k9ijAAA"]
[null,true,"a5436000000k9h6AAA","Program coordination and SR oversight","Inadequate program coordination and SR oversight","The PR's contractual agreement with SRs does not include responsibilities, accountability, targets and timelines for implementing and reporting on grant activities.","RC-0357","a5536000000k9ikAAA"]
[null,true,"a5436000000k9h6AAA","Program coordination and SR oversight","Inadequate program coordination and SR oversight","The PR does not have the managerial capacity and systems for effective management and oversight of SRs (and relevant SSRs).","RC-0358","a5536000000k9ilAAA"]
[null,true,"a5436000000k9h6AAA","Program coordination and SR oversight","Inadequate program coordination and SR oversight","There is insufficient frequency and/or quality of PR communications, site visits, or other verification of program activities.","RC-0359","a5536000000k9imAAA"]
[null,true,"a5436000000k9h6AAA","Program coordination and SR oversight","Inadequate program coordination and SR oversight","The PR does not analyse findings from SRs and/or advise on capacity strengthening or other appropriate measures in a effective manner.","RC-0360","a5536000000k9inAAA"]
[null,true,"a5436000000k9gmAAA","Program design and relevance","Inadequate program design and relevance","There is no National Strategic Plan available for the disease and for the health sector, or the disease specific National Strategic Plan is not aligned to the National Health Sector Strategy (i.e.  the NSP period does not coincide with the grant implementation period, and/or the program does not have an operational plan, which is costed and prioritized and linked to NSP).","RC-0000","a5536000000k9czAAA"]
[null,true,"a5436000000k9gmAAA","Program design and relevance","Inadequate program design and relevance","No assessment/review of the current NSP has been conducted or is planned in the near future.","RC-0001","a5536000000k9d0AAA"]
[null,true,"a5436000000k9gmAAA","Program design and relevance","Inadequate program design and relevance","The selected interventions and targets are not based on program context and implementation realities and do not address NSP priorities","RC-0002","a5536000000k9d1AAA"]
[null,true,"a5436000000k9gmAAA","Program design and relevance","Inadequate program design and relevance","There is insufficient capacity and expertise to formulate and design a program, which is relevant to the country’s epidemiological context and priorities.","RC-0003","a5536000000k9d2AAA"]
[null,true,"a5436000000k9gmAAA","Program design and relevance","Inadequate program design and relevance","There is no economic analysis of the cost of service delivery to ensure the best value for money in achieving impact.","RC-0004","a5536000000k9d3AAA"]
[null,true,"a5436000000k9gmAAA","Program design and relevance","Inadequate program design and relevance","Key interventions are not sufficiently focused on populations most in need of services, or well-linked to The achievement of program outcomes and impact indicators /interventions to reduce human rights or gender related barriers in access to services.","RC-0005","a5536000000k9d4AAA"]
[null,true,"a5436000000k9gmAAA","Program design and relevance","Inadequate program design and relevance","The scope and scale of interventions are not sufficient to achieve desired programmatic coverage, outcome and impact.","RC-0006","a5536000000k9d5AAA"]
[null,true,"a5436000000k9goAAA","Program quality and efficiency","Inadequate program quality and efficiency","Guidelines and tools to review quality of services provided are not available and/or the program is not routinely quality reviewed at national and sub-national level.","RC-0023","a5536000000k9dMAAQ"]
[null,true,"a5436000000k9goAAA","Program quality and efficiency","Inadequate program quality and efficiency","The program does not adhere to approved national or WHO guidelines when selecting medicine formulations, diagnostic tools including laboratory commodities and equipment, or other health products for procurement.","RC-0024","a5536000000k9dNAAQ"]
[null,true,"a5436000000k9goAAA","Program quality and efficiency","Inadequate program quality and efficiency","There is not adequate, regular training for health services for staff on guidelines/protocols and appropriate use and delivery of health products, non-discrimination, informed consent, medical confidentiality.","RC-0025","a5536000000k9dOAAQ"]
[null,true,"a5436000000k9goAAA","Program quality and efficiency","Inadequate program quality and efficiency","Mechanisms (e.g., a referral system) to link patients with services essential to comprehensive management of the disease, and/or the monitoring systems for integrated services (diagnostic, treatment and monitoring) are not adequate.","RC-0026","a5536000000k9dPAAQ"]
[null,true,"a5436000000k9goAAA","Program quality and efficiency","Inadequate program quality and efficiency","Up-to-date guidelines and protocols including laboratory testing protocols are not available at the facility level.","RC-0027","a5536000000k9dQAAQ"]
[null,true,"a5436000000k9goAAA","Program quality and efficiency","Inadequate program quality and efficiency","Primary health services providers are not regulated (e.g., private providers).","RC-0028","a5536000000k9dRAAQ"]
[null,true,"a5436000000k9goAAA","Program quality and efficiency","Inadequate program quality and efficiency","The program does not have a strategy/activities to integrate some of the interventions/activities with other programs (eg TB and HIV).","RC-0029","a5536000000k9dSAAQ"]
[null,true,"a5436000000k9goAAA","Program quality and efficiency","Inadequate program quality and efficiency","There is no defined package of services to be delivered at community level and/or no agreed upon list of indicators for collecting data for community level service delivery.","RC-0030","a5536000000k9dTAAQ"]
[null,true,"a5436000000k9goAAA","Program quality and efficiency","Inadequate program quality and efficiency","There is no well-defined scope of work for community health workers, i.e. the scope of work does not cover and facilitate working across all priority programs and/or services, and/or there are different profiles, training plans, salary structures and scopes of work across different diseases/regions/programs.","RC-0031","a5536000000k9dUAAQ"]
[null,true,"a5436000000k9goAAA","Program quality and efficiency","Inadequate program quality and efficiency","There are limited assurance mechanisms in place to review quality of data reported by the community health workers.","RC-0032","a5536000000k9dVAAQ"]
[null,true,"a5436000000k9goAAA","Program quality and efficiency","Inadequate program quality and efficiency","There are limited processes in place for regular capacity building, supply management, supervision and feedback to and from the point of care to higher levels of service organization.","RC-0033","a5536000000k9dWAAQ"]
[null,true,"a5436000000k9goAAA","Program quality and efficiency","Inadequate program quality and efficiency","There is no national laboratory strategic plan or the plan is not implemented","RC-0034","a5536000000k9dXAAQ"]
[null,true,"a5436000000k9goAAA","Program quality and efficiency","Inadequate program quality and efficiency","There is no integration or networking of laboratory services. Menu of tests for each level of the health system is not defined nor is there an integrated specimen transport system for referral.","RC-0035","a5536000000k9dYAAQ"]
[null,true,"a5436000000k9goAAA","Program quality and efficiency","Inadequate program quality and efficiency","There is no national Quality Standards for laboratory services or implementation of a Quality Management system.","RC-0036","a5536000000k9dZAAQ"]
[null,true,"a5436000000k9goAAA","Program quality and efficiency","Inadequate program quality and efficiency","There is no system for monitoring laboratory equipment utilization rates and management of the same.","RC-0037","a5536000000k9daAAA"]
[null,true,"a5436000000k9grAAA","Promotion of human rights and gender equality","Inadequate promotion of human rights and gender equality","There are laws, policies or regulations which hinder government funding and/or contracting of non-government organisations to support implementation of a national disease response.","RC-0051","a5536000000k9doAAA"]
[null,true,"a5436000000k9grAAA","Promotion of human rights and gender equality","Inadequate promotion of human rights and gender equality","The CCM/PR/SR have no guidelines /manuals/policies which outline commitments to the promotion and protection of human rights and gender equality and no measures are being taken to address the situation.","RC-0052","a5536000000k9dpAAA"]
[null,true,"a5436000000k9grAAA","Promotion of human rights and gender equality","Inadequate promotion of human rights and gender equality","Interventions to reduce human rights and gender related barriers in access to services are not included in the program design.","RC-0053","a5536000000k9dqAAA"]
[null,true,"a5436000000k9grAAA","Promotion of human rights and gender equality","Inadequate promotion of human rights and gender equality","There are harmful and/or discriminatory cultural practices, gender-norms and stereotypes or gender-based violence that limit access to health care by key or vulnerable populations.","RC-0054","a5536000000k9drAAA"]
[null,true,"a5436000000k9grAAA","Promotion of human rights and gender equality","Inadequate promotion of human rights and gender equality","There is evidence of overcrowding, treatment interruptions, or other abuses that negatively impact on the health of detainees where the Global Fund is financing health services in prisons or detention centres.","RC-0055","a5536000000k9dsAAA"]
[null,true,"a5436000000k9grAAA","Promotion of human rights and gender equality","Inadequate promotion of human rights and gender equality","There are laws, policies or regulations, which may hinder implementation of evidence informed programs for specific populations disproportionately impacted by the three diseases with no mitigation measures in place to ensure effective program delivery for key populations.","RC-0056","a5536000000k9dtAAA"]
[null,true,"a5436000000k9h1AAA","Warehouse and distribution systems","Inadequate warehouse and distribution systems","Indications of poor storage and/or distribution planning or budgeting at central or peripheral levels; poor coordination of storage and distribution planning; demurrage and port clearance delays; inadequate resources are available for efficient last mile operations; high working capital and/or inventory carrying costs","RC-0304","a5536000000k9htAAA"]
[null,true,"a5436000000k9h1AAA","Warehouse and distribution systems","Inadequate warehouse and distribution systems","The number of trained staff for inventory management including appropriate equipment use, proper recording (receipt and dispatch), reporting and monitoring of health commodities at any level of the supply chain is inadequate","RC-0305","a5536000000k9huAAA"]
[null,true,"a5436000000k9h1AAA","Warehouse and distribution systems","Inadequate warehouse and distribution systems","Inadequate facility capacity/store space at central or peripheral levels, either currently or anticipated shortages based on planned scale-up","RC-0306","a5536000000k9hvAAA"]
[null,true,"a5436000000k9h1AAA","Warehouse and distribution systems","Inadequate warehouse and distribution systems","Proper storage facilities for commodities are not available (i.e., store walls, floors and ceiling are not in good condition, properly equipped with the temperature monitored etc.) either at the central or peripheral level; the minimum range of warehouse equipment is lacking or poorly maintained","RC-0307","a5536000000k9hwAAA"]
[null,true,"a5436000000k9h1AAA","Warehouse and distribution systems","Inadequate warehouse and distribution systems","Physical security and access controls are not well managed leading to a high risk of leakage; traceability of items at any level of the supply-chain is difficult; sale of health products through informal or illegal channels is generally common","RC-0308","a5536000000k9hxAAA"]
[null,true,"a5436000000k9h1AAA","Warehouse and distribution systems","Inadequate warehouse and distribution systems","Insufficient oversight of stock levels (including physical stock counts and reporting) for key products at any level of the supply chain","RC-0309","a5536000000k9hyAAA"]
[null,true,"a5436000000k9h1AAA","Warehouse and distribution systems","Inadequate warehouse and distribution systems","Contracts with third party logistics service providers are not well managed and may lack KPIs; invoicing and payment for services is not well managed; absent or delayed distribution reports including timely submission of PODs","RC-0310","a5536000000k9hzAAA"]
[null,true,"a5436000000k9h1AAA","Warehouse and distribution systems","Inadequate warehouse and distribution systems","No manual exists describing all relevant warehousing and distribution activities (including standard operating procedures (SOPs) for receiving, storing and inventory management) and good distribution practices from central to peripheral stores; manual is not regularly updated; or stock management, stock replenishment, order processing and goods receiving procedures are not implemented according to SOPs","RC-0311","a5536000000k9i0AAA"]
[null,true,"a5436000000k9gyAAA","Selection of health product and equipment","Inappropriate selection of health product and equipment","Need for new medical technologies is not determined; there is insufficient planning for introduction of new products; or plans are not followed to ensure optimal placement and utilization of new products resulting in a risk of wastage of products","RC-0286","a5536000000k9hbAAA"]
[null,true,"a5436000000k9gyAAA","Selection of health product and equipment","Inappropriate selection of health product and equipment","Equipment utilization levels are sub-optimal, maintenance is poorly planned/implemented or there are indications of not meeting equipment warranty conditions","RC-0287","a5536000000k9hcAAA"]
[null,true,"a5436000000k9gyAAA","Selection of health product and equipment","Inappropriate selection of health product and equipment","Modelling of scenarios for scale down of old treatments/technologies and the scale up of new ones is not well documented to allow for adjustment of assumptions during implementation","RC-0288","a5536000000k9hdAAA"]
[null,true,"a5436000000k9h5AAA","Ineffective program management","Ineffective program management","The organization cannot operate in key areas/regions where grant activities will be implemented or does not have physical facilities, office, IT equipment, transport, etc. to monitor grant implementation in key areas/regions of the country.","RC-0348","a5536000000k9ibAAA"]
[null,true,"a5436000000k9h5AAA","Ineffective program management","Ineffective program management","The PR does not have effective policies, processes and tools in place to allow program managers to identify and manage risks associated with program implementation (at PR, SR and SSR levels).","RC-0349","a5536000000k9icAAA"]
[null,true,"a5436000000k9h5AAA","Ineffective program management","Ineffective program management","The organization does not use quantitative and qualitative analysis to identify risks.","RC-0350","a5536000000k9idAAA"]
[null,true,"a5436000000k9h5AAA","Ineffective program management","Ineffective program management","The organization does not plan risk mitigation actions or or put in place controls to manage risks to an acceptable level.","RC-0351","a5536000000k9ieAAA"]
[null,true,"a5436000000k9h5AAA","Ineffective program management","Ineffective program management","The PR does not have a risk management unit/team dedicated to manage grant risks.","RC-0352","a5536000000k9ifAAA"]
[null,true,"a5436000000k9h5AAA","Ineffective program management","Ineffective program management","The organisation does not have mechanisms in place to monitor the implementation of actions put in place to mitigate identified risks and receive assurance that the actions are effective.","RC-0353","a5536000000k9igAAA"]
[null,true,"a5436000000k9h5AAA","Ineffective program management","Ineffective program management","The organization does not have appropriate written HR policies and procedures.","RC-0335","a5536000000k9iOAAQ"]
[null,true,"a5436000000k9h5AAA","Ineffective program management","Ineffective program management","Staff do not have individual annual work plans that describe activities to be carried out during the year.","RC-0336","a5536000000k9iPAAQ"]
[null,true,"a5436000000k9h5AAA","Ineffective program management","Ineffective program management","Key individuals responsible for implementing the program do not have written job descriptions that incorporate responsibilities associated with the program.","RC-0337","a5536000000k9iQAAQ"]
[null,true,"a5436000000k9h5AAA","Ineffective program management","Ineffective program management","The organization does not have a track record of recruiting, selecting, and retaining quality human resources.","RC-0338","a5536000000k9iRAAQ"]
[null,true,"a5436000000k9h5AAA","Ineffective program management","Ineffective program management","Available personnel do not have the necessary experience, expertise and knowledge of Global Fund requirements to perform their assigned roles (i.e. there is not an appropriate mix of staff with public health expertise and cross-functional areas (finance, procurement, M&E, legal).","RC-0339","a5536000000k9iSAAQ"]
[null,true,"a5436000000k9h5AAA","Ineffective program management","Ineffective program management","Personnel are not appropriately motivated to implement their assigned roles (i.e. are not regularly paid, held accountable for poor performance, rewarded for good performance, or do not have opportunities for advancement, training, etc.).","RC-0340","a5536000000k9iTAAQ"]
[null,true,"a5436000000k9h5AAA","Ineffective program management","Ineffective program management","Evidence that the PR does not have in place or does not effectively enforce appropriate governance and internal controls, including operating procedures and control frameworks, compliance activities, internal and external audit requirements, and sufficient follow-up on issues identified.","RC-0341","a5536000000k9iUAAQ"]
[null,true,"a5436000000k9h5AAA","Ineffective program management","Ineffective program management","The organization is not legally registered in the country it is operating in.","RC-0342","a5536000000k9iVAAQ"]
[null,true,"a5436000000k9h5AAA","Ineffective program management","Ineffective program management","The organization has not implemented a program of a similar financial scale, with similar geographic spread, and been responsible for achieving programmatic results of a similar complexity.","RC-0343","a5536000000k9iWAAQ"]
[null,true,"a5436000000k9h5AAA","Ineffective program management","Ineffective program management","There is not a stable enabling environment for the program to operate within, in terms of political changes or social unrest, ongoing conflicts, poor physical infrastructure, natural disasters, humanitarian crises.","RC-0344","a5536000000k9iXAAQ"]
[null,true,"a5436000000k9h5AAA","Ineffective program management","Ineffective program management","The PR does not plan resources, activity objectives, project schedules and quality control for the staff implementing the program in an effective manner.","RC-0345","a5536000000k9iYAAQ"]
[null,true,"a5436000000k9h5AAA","Ineffective program management","Ineffective program management","The PR does not have an effective program management unit/team dedicated to the implementation of the grant (i.e., does not have processes, procedures, standardized forms and reports to manage program activities).","RC-0346","a5536000000k9iZAAQ"]
[null,true,"a5436000000k9h5AAA","Ineffective program management","Ineffective program management","The organization does not have established protocols nor appropriate infrastructure to communicate internally (including to sub-offices or sub-recipients) or to external stakeholders (donors, partners, other implementers, government, etc.).","RC-0347","a5536000000k9iaAAA"]
[null,true,"a5436000000k9h0AAA","Procurement processes and outcomes","Inefficient procurement processes and outcomes","Process to appoint bid evaluation committee does not take potential conflicts of interest into account and/or members do not sign a conflict of interest statement","RC-0296","a5536000000k9hlAAA"]
[null,true,"a5436000000k9h0AAA","Procurement processes and outcomes","Inefficient procurement processes and outcomes","Uncertain/delayed commitments by partners, including government, to procure complimentary health products","RC-0297","a5536000000k9hmAAA"]
[null,true,"a5436000000k9h0AAA","Procurement processes and outcomes","Inefficient procurement processes and outcomes","Procurement operations are not subject to regular internal or external audits","RC-0298","a5536000000k9hnAAA"]
[null,true,"a5436000000k9h0AAA","Procurement processes and outcomes","Inefficient procurement processes and outcomes","Procurement process is hindered by non-compliance with procurement procedures or the lack of a procedure manual that clearly documents procurement process (please specify)","RC-0299","a5536000000k9hoAAA"]
[null,true,"a5436000000k9h0AAA","Procurement processes and outcomes","Inefficient procurement processes and outcomes","Financial management is not effectively linked with procurement schedules to ensure that funds are available at the time of procurement","RC-0300","a5536000000k9hpAAA"]
[null,true,"a5436000000k9h0AAA","Procurement processes and outcomes","Inefficient procurement processes and outcomes","Procurement activities (e.g. properly accounting for lead times) are not planned effectively or properly organized to avoid delays in adjudication, cancellations of tenders, etc.","RC-0301","a5536000000k9hqAAA"]
[null,true,"a5436000000k9h0AAA","Procurement processes and outcomes","Inefficient procurement processes and outcomes","Staff do not have the purchasing and procurement forms, documents and registers needed to properly record and file activities and transactions; there are gaps in available procurement records","RC-0302","a5536000000k9hrAAA"]
[null,true,"a5436000000k9h0AAA","Procurement processes and outcomes","Inefficient procurement processes and outcomes","Contract management and supplier performance monitoring are not effective to prevent and/or resolve complaints, issues, delays, changes, etc. Signed contracts do not adequate address important commercial/legal issues","RC-0303","a5536000000k9hsAAA"]
[null,true,"a5436000000k9gpAAA","Data availability and data quality","Limited data availability and inadequate data quality","Coverage of national routine health information system is insufficient (e.g., less than 80% coverage).","RC-0038","a5536000000k9dbAAA"]
[null,true,"a5436000000k9gpAAA","Data availability and data quality","Limited data availability and inadequate data quality","Data is not complete or reported on a timely basis.","RC-0039","a5536000000k9dcAAA"]
[null,true,"a5436000000k9gpAAA","Data availability and data quality","Limited data availability and inadequate data quality","Core impact and/or outcome indicators and or coverage/data are not reported","RC-0040","a5536000000k9ddAAA"]
[null,true,"a5436000000k9gpAAA","Data availability and data quality","Limited data availability and inadequate data quality","Information on disease burden incidence, prevalence and on behaviour changes for general and/or key populations is not available from population based surveys","RC-0041","a5536000000k9deAAA"]
[null,true,"a5436000000k9gpAAA","Data availability and data quality","Limited data availability and inadequate data quality","Program reviews, impact assessments are not planned, funded, and implemented every 3 years","RC-0042","a5536000000k9dfAAA"]
[null,true,"a5436000000k9gpAAA","Data availability and data quality","Limited data availability and inadequate data quality","Disaggregated data is not collected or reported enabling the program to target populations, sub-groups and geographic areas.","RC-0043","a5536000000k9dgAAA"]
[null,true,"a5436000000k9gpAAA","Data availability and data quality","Limited data availability and inadequate data quality","Community level data system are not interoperable with national routine systems/HMIS.","RC-0044","a5536000000k9dhAAA"]
[null,true,"a5436000000k9gpAAA","Data availability and data quality","Limited data availability and inadequate data quality","There is no mechanism to ensure ethical collection and protection of data including privacy, confidentiality and security.","RC-0045","a5536000000k9diAAA"]
[null,true,"a5436000000k9gpAAA","Data availability and data quality","Limited data availability and inadequate data quality","There are no measures/strategies in place to ensure quality of patient data, including mechanisms to perform routine data quality reviews (or identical internal programmatic checks/controls) and/or logistics information system quality reviews.","RC-0046","a5536000000k9djAAA"]
[null,true,"a5436000000k9gpAAA","Data availability and data quality","Limited data availability and inadequate data quality","Issues coming out from the routine data reviews are not being put in place or addressed.","RC-0047","a5536000000k9dkAAA"]
[null,true,"a5436000000k9h2AAA","Quality monitoring and product use","Limited quality monitoring and inadequate product use","Lack of an adequate QA plan linked to appropriate budget for product quality monitoring activities (including list of products, costs and PSM arrangements) and accompanying SOP that describes the quality assurance activities throughout the supply chain (including link with National Quality monitoring program) for relevant pharmaceuticals and non-pharmaceuticals","RC-0312","a5536000000k9i1AAA"]
[null,true,"a5436000000k9h2AAA","Quality monitoring and product use","Limited quality monitoring and inadequate product use","Lack of qualified staff, training or tools related to product quality monitoring or maintenance of product quality during storage and distribution","RC-0313","a5536000000k9i2AAA"]
[null,true,"a5436000000k9h2AAA","Quality monitoring and product use","Limited quality monitoring and inadequate product use","Instances of past non-compliance with Global Fund health products QA policies relevant to product selection, procurement or testing during the current grant implementation period (or last implementation period for new grant); the quality control laboratory used is not WHO prequalified or ISO 17025 certified","RC-0314","a5536000000k9i3AAA"]
[null,true,"a5436000000k9h2AAA","Quality monitoring and product use","Limited quality monitoring and inadequate product use","Lack of Pharmacovigilance system that includes systematic screening, recording and reporting on standardized forms","RC-0315","a5536000000k9i4AAA"]
[null,true,"a5436000000k9h2AAA","Quality monitoring and product use","Limited quality monitoring and inadequate product use","National Regulatory Authorities (NRA) have insufficient technical capacity, testing capability or resources to ensure compliance with laws/regulations and implement effective quality monitoring activities; NRA does not ensure a coordinated approach to QA requirements across in-country actors","RC-0316","a5536000000k9i5AAA"]
[null,true,"a5436000000k9h2AAA","Quality monitoring and product use","Limited quality monitoring and inadequate product use","No system in place to remove expired, contaminated, counterfeit or otherwise poor quality products from the supply chain","RC-0317","a5536000000k9i6AAA"]
[null,true,"a5436000000k9h2AAA","Quality monitoring and product use","Limited quality monitoring and inadequate product use","Absent or inappropriate/inadequate drug resistance monitoring activities\"","RC-0318","a5536000000k9i7AAA"]
[null,true,"a5436000000k9gqAAA","Use of data","Limited use of data","There is not a regular process for reviewing data at sub-national or central level to inform program decision making.","RC-0048","a5536000000k9dlAAA"]
[null,true,"a5436000000k9gqAAA","Use of data","Limited use of data","Analysis of available data (i.e., triangulation) to assess coverage, quality and impact does not happen and is not used for strategic investments and improvements to program quality.","RC-0049","a5536000000k9dmAAA"]
[null,true,"a5436000000k9gqAAA","Use of data","Limited use of data","Regular trainings or support is not provided for program managers on data use for decision-making.","RC-0050","a5536000000k9dnAAA"]
[null,true,"a5436000000k9gwAAA","Value for money","Limited value for money","Inadequate monitoring of the key controls in the budget development process","RC-0224","a5536000000k9gbAAA"]
[null,true,"a5436000000k9gwAAA","Value for money","Limited value for money","Inadequate monitoring of the key controls in the process relating to budgetary changes","RC-0230","a5536000000k9ghAAA"]
[null,true,"a5436000000k9gwAAA","Value for money","Limited value for money","Inadequate monitoring of the key controls in the selection process for the purchasing and procurement function of non-health products.","RC-0247","a5536000000k9gyAAA"]
[null,true,"a5436000000k9gwAAA","Value for money","Limited value for money","Insufficient coordination by implementers in areas being funded by more than one donor resulting in duplications","RC-0253","a5536000000k9h4AAA"]
[null,true,"a5436000000k9gwAAA","Value for money","Limited value for money","Absence of or inadequate policies and procedures in place or staff are not systematically orientated and/or trained regarding the budget development process.","RC-0395","a5536000000kA7YAAU"]
[null,true,"a5436000000k9gwAAA","Value for money","Limited value for money","Absence of or inadequate procedures in place or staff are not systematically orientated and/or trained regarding  budgetary changes","RC-0396","a5536000000kA7ZAAU"]
[null,true,"a5436000000k9gwAAA","Value for money","Limited value for money","Absence of or inadequate policies and procedures in place or staff are not systematically orientated and/or trained to enable the determination of the cost per service delivery for key interventions.","RC-0397","a5536000000kA7aAAE"]
[null,true,"a5436000000k9gwAAA","Value for money","Limited value for money","Absence of or inadequate policies and procedures in place or staff are not systematically orientated and/or trained on the procurement cycle for non health products and services","RC-0398","a5536000000kA7bAAE"]
[null,true,"a5436000000k9gwAAA","Value for money","Limited value for money","Inadequate monitoring of the key controls relating to the procurement cycle for non health products and services","RC-0399","a5536000000kA7cAAE"]
[null,true,"a5436000000k9gwAAA","Value for money","Limited value for money","Absence of or inadequate procedures in place or staff are not systematically orientated and/or trained on the selection process for the purchasing and procurement function of non-health products.","RC-0400","a5536000000kA7dAAE"]
[null,true,"a5436000000k9gwAAA","Value for money","Limited value for money","Absence of or inadequate  procedures to ensure efficiencies in procurement, tax and foreign exchange management","RC-0401","a5536000000kA7eAAE"]
[null,true,"a5436000000k9gwAAA","Value for money","Limited value for money","Staff lack capacity in dealing with issues related to tax and foreign exchange management","RC-0402","a5536000000kA7fAAE"]
[null,true,"a5436000000k9gzAAA","Forecasting, quantification and supply planning","Unreliable forecasting, quantification and supply planning","The Forecasting/Quantification process is not appropriately managed (not coordinated, fragmented, late, poorly documented) or is not managed by qualified staff. Controls and oversight of the forecasting and supply planning function is not effective","RC-0289","a5536000000k9heAAA"]
[null,true,"a5436000000k9gzAAA","Forecasting, quantification and supply planning","Unreliable forecasting, quantification and supply planning","Forecasting of requirements does not appropriately consider program scale up limitations, changes in product use guidelines including diagnostic test algorithms or the introduction of new/alternative technologies/remedies","RC-0290","a5536000000k9hfAAA"]
[null,true,"a5436000000k9gzAAA","Forecasting, quantification and supply planning","Unreliable forecasting, quantification and supply planning","There are major problems with availability, quality and utilization of essential data particularly the lack of reliable consumption and disease caseload data","RC-0291","a5536000000k9hgAAA"]
[null,true,"a5436000000k9gzAAA","Forecasting, quantification and supply planning","Unreliable forecasting, quantification and supply planning","Diagnosis algorithm is not in place or is not used","RC-0292","a5536000000k9hhAAA"]
[null,true,"a5436000000k9gzAAA","Forecasting, quantification and supply planning","Unreliable forecasting, quantification and supply planning","There is no integrated supply plan for program commodities; existing plans do not include all product sources; plans are not updated periodically or linked to the demand forecasts including a date of procurement initiation and date of expected receipt","RC-0293","a5536000000k9hiAAA"]
[null,true,"a5436000000k9gzAAA","Forecasting, quantification and supply planning","Unreliable forecasting, quantification and supply planning","There is weak oversight of the national demand forecast function; or no system/structures are in place to document, validate, review or update forecasts and quantification decisions","RC-0294","a5536000000k9hjAAA"]
[null,true,"a5436000000k9gzAAA","Forecasting, quantification and supply planning","Unreliable forecasting, quantification and supply planning","National laboratory strategy is not in place or not followed/used","RC-0295","a5536000000k9hkAAA"]

{"sheet":"PR-LFA Evaluation_5","index":27,"n_rows":76,"n_cols":8,"rows_kept":76,"cut":false,"hidden":false,"merged":[[0,0,0,14],[40,0,45,14],[49,0,54,14],[56,0,56,10],[18,0,18,14],[19,0,23,14],[27,0,27,14],[28,0,28,10],[32,0,37,14],[39,0,39,14],[12,0,16,14],[3,0,3,14],[4,0,4,10],[5,0,9,14],[11,0,11,14]]}
[{"$f":"IF(CoverSheet!J12=\"N/A\",\"Progress Report\",\"Progress Report with Disbursement Request\")","v":"Progress Report with Disbursement Request"}]
[{"$f":"VLOOKUP(Translations!B340,Translations!B3:H508,4,0)","v":"Section 5: Principal Recipient and LFA Evaluation of Overall Performance"}]
[]
[{"$f":"VLOOKUP(Translations!B341,Translations!B3:H508,4,0)","v":"A.  Principal Recipient's Overall Self-Evaluation of Grant Performance (including a summary of how financial performance is linked to programmatic achievements)"}]
[{"$f":"VLOOKUP(Translations!B342,Translations!B3:H508,4,0)","v":"!  The self-evaluation should be undertaken by taking into account programmatic achievements, financial performance and program issues in various functional areas (M&E, Finance, Procurement, and Program Management, including management of Sub-Recipients).  See Guidelines for more detailed guidance."}]
["I. Contexte \nLa subvention Paludisme a démarré le 1er janvier 2018, avec le PNUD comme PR. Pour garantir une continuité des acquis obtenus par les subventions précédentes, Le PNUD a contracté les 5 anciens PR comme SR (PNLP, PNLS, PNLT, Caritas et la Croix Rouge Burundaise). Le PNUD a également contracté le PAM comme SR, pour maintenir l’appui nutritionnel aux PVVIH. Le PNUD a contracté la CAMEBU comme prestataire de services pour assurer le stockage et la distribution des intrants médicaux.\nLe démarrage de la subvention a connu un retard, en raison du contexte opérationnel et politique. Les contrats entre le PNUD et les 5 SR ont été signés tardivement, en février et mars 2018. Les contrats avec le PAM et la CAMEBU ont été signés en avril et mai 2018.  La modalité de gestion financière appliquée dans la gestion de la subvention est une combinaison d’avances aux SR et de paiements directs pour des activités spécifiques, en accord avec le SR. \nMalgré les difficultés de mise en œuvre, principalement dues aux différents retards de démarrage, la subvention a pu produire de bons résultats programmatiques:\n1. Proportion of suspected malaria cases that receive a parasitological test at public sector health facilities : \nnous avons réalisé une performance de 100% de l’objectif fixé\n2. Proportion of suspected malaria cases that receive a parasitological test in the community: \nnous avons réalisé une performance de 64% de l’objectif fixé\n3. Proportion of suspected malaria cases that receive a parasitological test at private sector sites: \nnous avons réalisé une performance de 99% de l’objectif fixé\n4. Proportion of confirmed malaria cases that received first-line antimalarial treatment at public sector health facilities: \nnous avons réalisé une performance de 97% de l’objectif fixé\n5. Proportion of confirmed malaria cases that received first-line antimalarial treatment in the community: \nnous avons réalisé une performance de 81% de l’objectif fixé\n6. Proportion of malaria cases (presumed and confirmed) that received first line antimalarial treatment at private sector sites: \nnous avons réalisé une performance de 31% de l’objectif fixé\n7. Percentage of CHWs not having had a stock-out for ACTs or RDTs during the reporting period in the 30 districts implementing iCCM: \nnous avons réalisé une performance de 120% de l’objectif fixé\n8. Proportion of pregnant women attending antenatal clinics who received three or more doses of intermittent preventive treatment for malaria: nous avons réalisé une performance de 90% de l’objectif fixé\n9. Percentage of HMIS or other routine reporting units submitting timely reports according to national guidelines: \nnous avons réalisé une performance de 85% de l’objectif fixé\n10. Percentage of CHWs having submitted their monthly reports in a timely manner, from the community to the health centres: \nnous avons réalisé une performance de 87% de l’objectif fixé\n\nSur un total de dix indicateurs de performance programmatique, nous avons atteint et dépassé les cibles établies pour deux indicateurs, nous avons dépassé la moyenne attendue pour sept indicateurs et nous n’avons pas atteint la moyenne attendue pour 1 indicateur. Nous considérons avoir réalisé une bonne exécution programmatique, car un seul indicateur a connu une faible performance sur les 10 indicateurs de résultats mesurés. La sous-performance de cet indicateur relève principalement des limitations du DHIS2 en termes de collecte des données de traitement au niveau du secteur privé. \n\nLes contraintes connues au niveau de l’exécution programmatique de la performance sont diverses :\n• Les retards accusés dans la mise en œuvre des contrats SR : en l’absence de ces contrats, le PNUD n’était pas en mesure d’effectuer les paiements qui devaient permettre aux SR de mener les activités programmatiques. Les retards de signature relèvent de contraintes institutionnelles et politiques connus pendant le 1er trimestre de la subvention.\n• Le retard accusé dans la réception des rapports trimestriels des SRs. Nous avons dû recourir à une analyse des résultats enregistrés dans DHIS2 afin de contourner cette contrainte majeure. Ceci a généré de longues et nombreuses séances de travail avec les SRs pour mener une analyse et une validation conjointes des résultats.\n• Les contraintes liées à la gestion des informations DHIS2 : tous les indicateurs de la subvention ne sont pas paramétrés dans DHIS2. Ceci a généré un travail de supplémentaire de sélection, d’extraction et d’analyse des données pertinentes, afin de renseigner nos indicateurs de façon correcte.\n• Les indicateurs sur la prise en charge communautaire ont également fait l’objet de nombreuses discussions car, l’intervention communautaire étant une nouvelle modalité dans la stratégie nationale, leur compréhension et leur interprétation par le SR ont généré quelques problématiques dans la préparation des rapports.\n• Les lenteurs dans les recrutements des ressources humaines additionnelles au niveau des SRs ont également contribué aux contraintes de mise en œuvre de la subvention.\nNotre perspective future est de renforcer le suivi et la collaboration au niveau des SRs. Nous sommes en train de mettre en place un plan d’action qui reflète cette stratégie. Nous allons initier des supervisions conjointes avec les SR afin d’éviter les retards de collecte et validation des résultats à la fin de la période de rapportage. Nous allons également mettre en place un cycle de revue mensuelle des résultats avec les SRs pour éviter les engorgements au moment de la préparation des prochains PUDR.\n\nII. Analyse des tendances épidémiologiques (conféré graphique onglet free sheet 1)\n\nLa tendance épidémiologique du premier semestre reste en deçà du 85ième Centile comparé à la moyenne des années 2013 à 2017. Cependant 2 pics sont observables dans la zone d’alerte en Avril 2018 portant à la fois sur le nombre nominal de cas diagnostiqués et le nombre de décès à déplorer. Le nombre de cas de paludisme a fortement diminuée comparé à la même période en 2017, La PID prévue en 2019 et 2020 couplé à la campagne de masse de distribution des MILDA en 2020 vont permettre le maintien de la pression sur le vecteur.\n\n1. Performance programmatique du premier semestre \nComparativement à l’année 2016 prise comme référence pour l’estimation des résultats sur les indicateurs du programme paludisme, le dépistage chez les patients suspects d’épisode palustre dans le secteur public et confessionnel est performant (99,9% de personnes suspects sont testées) et conforme aux directives nationales en ce qui concerne l’utilisation des combinaisons à base d’artémisinine (97%) pour la mise en traitement de première ligne ACT. La microscopie représente 25 % versus 75 % pour les TDRs dans le secteur public. \n\n2. Le secteur privé et associatif privilégie la microscopie payante au cout de revient infime, au détriment du TDR fourni gratuitement biaisant ainsi les estimations. Cependant, la stratégie diagnostic permet d’atteindre une performance de 99%. Le test par TDR représente 28% tandis que le test par GE représente 72%. \nLe traitement à base d’artémisinine est peu disponible, hormis dans le milieu associatif inclus dans le financement basé sur la performance (PBF). La prescription de quinine orale en monothérapie continue, au risque de développer des résistances à cette molécule réservée pour la deuxième intension.\nParmi les 419 structures privées ou associatives répertoriées, 34 structures ont fourni les données sur le traitement du paludisme simple par ACT.\nLes structures privées qui utilisent les ACT sont les structures sous contrat PBF qui sont approvisionnées en intrants par les Districts Sanitaires. \nIl est manifeste que la prise en compte du secteur privé et son intégration dans le système de santé est faible, en particulier, l’accès du Privé aux intrants du programme paludisme doit faire l’objet de décisions administratives et pourrait susciter l’intérêt et permettre un meilleur reportage.\n\n3. La stratégie de prise en charge communautaire, stipule que tous les cas suspects doivent être testés par un TDR dans la communauté. Seul les TDRs positifs reçoivent un traitement. \nLe dénominateur qui est défini par l'estimation du nombre de tous les cas suspects de paludisme dans la communauté dans tout le pays, 513820 cas au 1er semestre 2018 a partir des données historiques de 2016 semble être très surestimé si l'on tient compte de la tendance, à la baisse du nombre de cas suspects, observée dans le secteur public et dans le secteur privé. Ainsi, en comparant la cible de référence 2016, on constate une diminution de la performance qui peut être liée à la surestimation du dénominateur en rapport avec l’année de référence qui était une année épidémique\". L’essentiel des interventions en 2016 concernait le milieu communautaire et il serait normal que la projection de la baisse soit plus effective dans ce secteur. \nAu niveau communautaire, les cas confirmés de paludisme ayant reçu un traitement de première intention par ACT constituent l’indicateur majeur. La compréhension de cet indicateur au niveau des ASC est qu'il s'inscrit dans la gestion du protocole national ICCM paludisme de l'enfant et il est à noter que la stratégie ICCM s'est élargie au 37 DS sur 46 DS en 2018. Les Groupements des ASC (se met progressivement en place au niveau communautaire dans le cadre du programme PDF communautaire)\nAinsi, bien que nous anticipions une baisse nominale du nombre de cas, il est constaté un sous reportage dans la période sous revue. Au premier trimestre, on constate que six D.S n'ont pas renseigné le DHIS 2: DS Cankuzo, Isale, Kiganda, Buye, Fota, Kabezi ainsi que quatre DS n'ont pas renseigné au DHIS2 au deuxième trimestre 2018: DS Cibitoke, Kabezi, Kiganda et Mabayi. \nLa prise en compte du communautaire dans le reportage national est récente et en évolution. Une analyse orientée sur ces structures qui ne rapportent pas (spot checks) devrait permettre de comprendre le niveau de blocage des informations et les mesures idoines pour accélérer l’intégration. \nLes indicateurs du Cadre de Performance pour mesurer l’activité au niveau communautaire ne cadre pas avec ce qui peut être recueilli à travers le Système d’information sanitaire DHIS2/ DSNIS seul système intégré au niveau national autorisé. \nEn particulier, l’indicateur « pourcentage d’ASC ayant soumis leurs rapports mensuels aux CDS dans les délais » ne peut pas être extrait directement de DHIS2. Des discussions sont en cours entre l’Equipe-Pays, Caritas et le PNUD pour apprécier la pertinence et les implications pour mesurer l’activité dans le secteur communautaire.\nHormis cet indicateur dans le milieu communautaire, la performance du programme National de prise en charge du paludisme est bonne. Cependant des décisions fermes doivent être prise en direction du Privé qui n’est pas réellement partie prenante du dispositif sanitaire actuel. \nEn terme de gestion programmatique des SRs, la collaboration technique avec CARITAS est bonne. Les rapports sont transmis officiellement et dans des délais raisonnables mais légèrement plus tard que le délai attendu. \n\nII. Situation des intrants de prise en charge du Paludisme\n\n1. Stock de sécurité de démarrage de la subvention\nLa subvention a démarré au moment où le Burundi sortait d’une épidémie de paludisme qui a touché les années 2016 et 2017. Les stocks de sécurité étaient suffisants pour couvrir les besoins en médicaments et TDR durant la période de réapprovisionnement.\n\n2. Etat de la couverture des besoins\nSelon la situation épidémiologique actuelle et les financements disponibles, la couverture des besoins est assurée jusqu’à la fin de ce programme mais il s'agira de reconstituer un stock de securité pour faire une transition avec les futurs programmes.\n\n3. Problématique du budget approvisionnement pour la PID\nDans le cadre du financement additionnel pour la pulvérisation intra-domiciliaire qui changera de manière majeure la structure du programme et son budget, une erreur s’est glissée dans le fichier de préparation du budget PAAR de la PID, les besoins exprimés concernent un passage par an au lieu de deux. Des ajustements sont rendus nécessaire pour permettre la réalisation de deux cycles avec 2 passages par an au lieu d’un budgété. Une proposition d’ajustement a été proposée parallèlement à la soumission de ce rapport.\n\nIII. Considérations Financières\n\nSur un budget de USD 4,057,896.79 pour la période sous revue,  le PR a dépensé 714,241.57 et a un engagement de USD 688, 092.72 en addition au prépaiement de 1,142. 977.48.  Il a par ailleurs, un montant de USD 154,770.77 comme avance disponible auprès des SRs sur un montant total décaissé de USD 292,950.31. Les dépenses de la période couvrent les activités de formation, de supervision, d'achat de médicaments, de produits médicaux, de salaires et de fonctionnement et d'assistance technique.\n\nDepuis le démarrage, le montant décaissé au PNLP s’élève à USD 54.811 sur un budget de $149,775 soit 36,60%. Les dépenses du PNLP pour la période sont de USD 51,160.03 soit 34,16% du budget du semestre. Ce faible taux s’explique par le retard dans la signature des accords et la mise en place des équipes de gestion au niveau du PNLP.\n \nDepuis le démarrage, le montant décaissé à CARITAS s’élève à USD 238.165.15 sur un budget de USD 476,359.91 soit 50%. Les dépenses de CARITAS pour la période s’élève à USD 94,503.7. Ce faible d’absorption s’explique par le retard dans la mise en œuvre des activités surtout du 1er trimestre 2018 et le non-paiement des indemnités des GASCs dont le budget est très important mais en cours de résolution avec l’enregistrement des documents constitutifs de ces Groupement d’agents de santécommunautaire.\n\nPar rapport au PR, sur un budget de USD 3,397,182.15 les dépenses se sont élevées à 568,577.84 en addition au prépaiement de USD 1,142,977.48 soit un total de USD 1,711.555.32 ; d’où un taux d’absorption de 50.38%. Au niveau du PR, cette moyenne absorption s’explique par le retard dans la mise en place de l’équipe de l’unité de gestion et la reprise des quantifications des produits de santé avant les commandes.\n\nIV. Partenariats\nLe partenariat avec le programme paludisme est exemplaire, tant au niveau technique que managériale. Cependant, ce programme n’est pas le seul partenaire de la contrepartie nationale et d’autres agendas viennent souvent perturber la programmation. La réconciliation des dépenses dans les délais a permis de faire une deuxième avance pour permettre le fonctionnement harmonieux du programme. A l’usage il est apparu que certains couts pour la réalisation pratique des activités étaient sous-estimés au niveau des assomptions budgétaires. Le PR a utilisé toutes les flexibilités possibles pour rendre les opérations plus soutenables. Tirant les leçons du premier semestre Le PR va proposer un budget réajusté globalement en accord avec le programme et dans le cadre des flexibilités budgétaires. \nLa collaboration avec CARITAS est aussi bonne,  cependant quelques ajustement restent a faire en matiere de maitrise des indicateurs du secteur communautaires. En particuliers la compréhension des dénominateurs des indicateurs doit etre systématiquement notifés dans les rapports. \nLa collaboration avec le Programme PMI de l’USAID est excellente. Les échanges d’information sont productifs et permettent une meilleure planification et une bonne complémentarité.\n\n\n"]
[]
[]
[]
[]
[]
[{"$f":"VLOOKUP(Translations!B343,Translations!B3:H508,4,0)","v":"B.  Planned Changes in the Program, if any"}]
["The Country wad granted a PAAR additional funding that shall be included in this grant and shall result in an adjusted budget and work plan submitted along with this PU. "]
[]
[]
[]
[]
[]
[{"$f":"VLOOKUP(Translations!B344,Translations!B3:H508,4,0)","v":"C.  External factors beyond the control of the Principal Recipient that have impacted or may impact the Program"}]
["Delayed signature from the former Ministry of Health have delayed implemaentation by a quarter. All SRs were authorized to sign by 27 of March putting all grants and sub grants at risk. \nQuantifications for health products had to be reviewed in the first quarter due to poor consumptions datas."]
[]
[]
[]
[]
[]
["For LFA Use Only"]
[]
["A. LFA  Overall Evaluation and Rating of Grant Performance (including a summary of how financial performance is linked to programmatic achievements)"]
["!  The evaluation should be undertaken by taking into account programmatic achievements, financial performance and program issues in various functional areas (M&E, Finance, Procurement, and Program Management, including management of Sub-Recipients).  See Guidelines for more detailed guidance on the completion of this section."]
[]
["Indicator rating","Select",null,"Any major management issues resulting in downgrade?","Select",null,"Overall Grant Rating","Select"]
[]
[]
[]
[]
[]
[]
[]
[]
["B.  LFA comments on the Principal Recipient planned changes in the program, if any"]
[]
[]
[]
[]
[]
[]
[]
[]
["C.  LFA Comments on External Factors Beyond Control of the Principal Recipients that have impacted or may impact program"]
[]
[]
[]
[]
[]
[]
[]
[]
[]
[]
[]
[]
[]
[]
[]
[]
[]
[]
[]
[]
[]
[]
[]
["Record ID","a2Q360000019HZiEAM"]
["Quantitative Indicator (LFA)",{"$f":"IF(B31=\"Select\",\"\",B31)","v":""}]
["Major Issues Identified (LFA)",{"$f":"IF(E31=\"Select\",\"\",E31)","v":""}]
["Overall Rating (LFA)",{"$f":"IF(H31=\"Select\",\"\",H31)","v":""}]

{"sheet":"LFA_Findings&Recommendations_6","index":28,"n_rows":108,"n_cols":16,"rows_kept":108,"cut":false,"hidden":false,"merged":[[0,2,0,11],[2,2,2,11],[3,2,3,11],[5,2,5,11]]}
[null,null,{"$f":"IF(CoverSheet!J12=\"N/A\",\"Progress Report\",\"Progress Report with Disbursement Request\")","v":"Progress Report with Disbursement Request"}]
[]
[null,null,"For LFA Use Only"]
[null,null,"Section 6: LFA Findings & Recommendations  "]
[]
[null,null,"! Based on the information provided in the previous sections and your understanding of the grant, please summarise any important management issues, proposing a recommendation for each.\nNB: an issue is considered as 'important' if it impacts or is likely to impact program implementation and results. \n! Instead of repeating detailed descriptions of issues covered in other sections, it is acceptable to state the issue and reference the section containing the details.\n"]
[]
[null,null,"Risk Category","Risk","Root Cause","Root Cause Comment","Mitigating Action","Actor","Actor Type","Timeline DD/MM/YYYY]","Status","LFA Comments"]
[{"$f":"OR(NOT(ISBLANK(C9)),NOT(ISBLANK(D9)),NOT(ISBLANK(E9)),NOT(ISBLANK(G9)),NOT(ISBLANK(H9)),NOT(ISBLANK(I9)),NOT(ISBLANK(J9)))","v":false},"Finding1",null,null,null,null,null,null,null,null,null,null,null,null,{"$f":"AND(OR(ISBLANK(D9),ISBLANK(E9),ISBLANK(G9),ISBLANK(H9),ISBLANK(I9),ISBLANK(C9)),\n    OR(NOT(ISBLANK(D9)),NOT(ISBLANK(E9)),NOT(ISBLANK(G9)),NOT(ISBLANK(H9)),NOT(ISBLANK(I9)),NOT(ISBLANK(C9))))","v":false},{"$f":"IF(A9=TRUE,_xlfn.IFNA(INDEX(RiskData!$H$40:$H$290,MATCH(TRUE,INDEX(RIGHT(RiskData!$F$40:$F$290,255)=RIGHT(F9,255),0),0)), \"\"),\"\")","v":""}]
[{"$f":"OR(NOT(ISBLANK(C10)),NOT(ISBLANK(D10)),NOT(ISBLANK(E10)),NOT(ISBLANK(G10)),NOT(ISBLANK(H10)),NOT(ISBLANK(I10)),NOT(ISBLANK(J10)))","v":false},"Finding2",null,null,null,null,null,null,null,null,null,null,null,null,{"$f":"AND(OR(ISBLANK(D10),ISBLANK(E10),ISBLANK(G10),ISBLANK(H10),ISBLANK(I10),ISBLANK(C10)),\n    OR(NOT(ISBLANK(D10)),NOT(ISBLANK(E10)),NOT(ISBLANK(G10)),NOT(ISBLANK(H10)),NOT(ISBLANK(I10)),NOT(ISBLANK(C10))))","v":false},{"$f":"IF(A10=TRUE,_xlfn.IFNA(INDEX(RiskData!$H$40:$H$290,MATCH(TRUE,INDEX(RIGHT(RiskData!$F$40:$F$290,255)=RIGHT(F10,255),0),0)), \"\"),\"\")","v":""}]
[false,"Finding3",null,null,null,null,null,null,null,null,null,null,null,null,false,{"$f":"IF(A11=TRUE,_xlfn.IFNA(INDEX(RiskData!$H$40:$H$290,MATCH(TRUE,INDEX(RIGHT(RiskData!$F$40:$F$290,255)=RIGHT(F11,255),0),0)), \"\"),\"\")","v":""}]
[false,"Finding4",null,null,null,null,null,null,null,null,null,null,null,null,false,{"$f":"IF(A12=TRUE,_xlfn.IFNA(INDEX(RiskData!$H$40:$H$290,MATCH(TRUE,INDEX(RIGHT(RiskData!$F$40:$F$290,255)=RIGHT(F12,255),0),0)), \"\"),\"\")","v":""}]
[false,"Finding5",null,null,null,null,null,null,null,null,null,null,null,null,false,{"$f":"IF(A13=TRUE,_xlfn.IFNA(INDEX(RiskData!$H$40:$H$290,MATCH(TRUE,INDEX(RIGHT(RiskData!$F$40:$F$290,255)=RIGHT(F13,255),0),0)), \"\"),\"\")","v":""}]
[false,"Finding6",null,null,null,null,null,null,null,null,null,null,null,null,false,{"$f":"IF(A14=TRUE,_xlfn.IFNA(INDEX(RiskData!$H$40:$H$290,MATCH(TRUE,INDEX(RIGHT(RiskData!$F$40:$F$290,255)=RIGHT(F14,255),0),0)), \"\"),\"\")","v":""}]
[false,"Finding7",null,null,null,null,null,null,null,null,null,null,null,null,false,{"$f":"IF(A15=TRUE,_xlfn.IFNA(INDEX(RiskData!$H$40:$H$290,MATCH(TRUE,INDEX(RIGHT(RiskData!$F$40:$F$290,255)=RIGHT(F15,255),0),0)), \"\"),\"\")","v":""}]
[false,"Finding8",null,null,null,null,null,null,null,null,null,null,null,null,false,{"$f":"IF(A16=TRUE,_xlfn.IFNA(INDEX(RiskData!$H$40:$H$290,MATCH(TRUE,INDEX(RIGHT(RiskData!$F$40:$F$290,255)=RIGHT(F16,255),0),0)), \"\"),\"\")","v":""}]
[false,"Finding9",null,null,null,null,null,null,null,null,null,null,null,null,false,{"$f":"IF(A17=TRUE,_xlfn.IFNA(INDEX(RiskData!$H$40:$H$290,MATCH(TRUE,INDEX(RIGHT(RiskData!$F$40:$F$290,255)=RIGHT(F17,255),0),0)), \"\"),\"\")","v":""}]
[false,"Finding10",null,null,null,null,null,null,null,null,null,null,null,null,false,{"$f":"IF(A18=TRUE,_xlfn.IFNA(INDEX(RiskData!$H$40:$H$290,MATCH(TRUE,INDEX(RIGHT(RiskData!$F$40:$F$290,255)=RIGHT(F18,255),0),0)), \"\"),\"\")","v":""}]
[false,"Finding11",null,null,null,null,null,null,null,null,null,null,null,null,false,{"$f":"IF(A19=TRUE,_xlfn.IFNA(INDEX(RiskData!$H$40:$H$290,MATCH(TRUE,INDEX(RIGHT(RiskData!$F$40:$F$290,255)=RIGHT(F19,255),0),0)), \"\"),\"\")","v":""}]
[false,"Finding12",null,null,null,null,null,null,null,null,null,null,null,null,false,{"$f":"IF(A20=TRUE,_xlfn.IFNA(INDEX(RiskData!$H$40:$H$290,MATCH(TRUE,INDEX(RIGHT(RiskData!$F$40:$F$290,255)=RIGHT(F20,255),0),0)), \"\"),\"\")","v":""}]
[false,"Finding13",null,null,null,null,null,null,null,null,null,null,null,null,false,{"$f":"IF(A21=TRUE,_xlfn.IFNA(INDEX(RiskData!$H$40:$H$290,MATCH(TRUE,INDEX(RIGHT(RiskData!$F$40:$F$290,255)=RIGHT(F21,255),0),0)), \"\"),\"\")","v":""}]
[false,"Finding14",null,null,null,null,null,null,null,null,null,null,null,null,false,{"$f":"IF(A22=TRUE,_xlfn.IFNA(INDEX(RiskData!$H$40:$H$290,MATCH(TRUE,INDEX(RIGHT(RiskData!$F$40:$F$290,255)=RIGHT(F22,255),0),0)), \"\"),\"\")","v":""}]
[false,"Finding15",null,null,null,null,null,null,null,null,null,null,null,null,false,{"$f":"IF(A23=TRUE,_xlfn.IFNA(INDEX(RiskData!$H$40:$H$290,MATCH(TRUE,INDEX(RIGHT(RiskData!$F$40:$F$290,255)=RIGHT(F23,255),0),0)), \"\"),\"\")","v":""}]
[false,"Finding16",null,null,null,null,null,null,null,null,null,null,null,null,false,{"$f":"IF(A24=TRUE,_xlfn.IFNA(INDEX(RiskData!$H$40:$H$290,MATCH(TRUE,INDEX(RIGHT(RiskData!$F$40:$F$290,255)=RIGHT(F24,255),0),0)), \"\"),\"\")","v":""}]
[false,"Finding17",null,null,null,null,null,null,null,null,null,null,null,null,false,{"$f":"IF(A25=TRUE,_xlfn.IFNA(INDEX(RiskData!$H$40:$H$290,MATCH(TRUE,INDEX(RIGHT(RiskData!$F$40:$F$290,255)=RIGHT(F25,255),0),0)), \"\"),\"\")","v":""}]
[false,"Finding18",null,null,null,null,null,null,null,null,null,null,null,null,false,{"$f":"IF(A26=TRUE,_xlfn.IFNA(INDEX(RiskData!$H$40:$H$290,MATCH(TRUE,INDEX(RIGHT(RiskData!$F$40:$F$290,255)=RIGHT(F26,255),0),0)), \"\"),\"\")","v":""}]
[false,"Finding19",null,null,null,null,null,null,null,null,null,null,null,null,false,{"$f":"IF(A27=TRUE,_xlfn.IFNA(INDEX(RiskData!$H$40:$H$290,MATCH(TRUE,INDEX(RIGHT(RiskData!$F$40:$F$290,255)=RIGHT(F27,255),0),0)), \"\"),\"\")","v":""}]
[false,"Finding20",null,null,null,null,null,null,null,null,null,null,null,null,false,{"$f":"IF(A28=TRUE,_xlfn.IFNA(INDEX(RiskData!$H$40:$H$290,MATCH(TRUE,INDEX(RIGHT(RiskData!$F$40:$F$290,255)=RIGHT(F28,255),0),0)), \"\"),\"\")","v":""}]
[false,"Finding21",null,null,null,null,null,null,null,null,null,null,null,null,false,{"$f":"IF(A29=TRUE,_xlfn.IFNA(INDEX(RiskData!$H$40:$H$290,MATCH(TRUE,INDEX(RIGHT(RiskData!$F$40:$F$290,255)=RIGHT(F29,255),0),0)), \"\"),\"\")","v":""}]
[false,"Finding22",null,null,null,null,null,null,null,null,null,null,null,null,false,{"$f":"IF(A30=TRUE,_xlfn.IFNA(INDEX(RiskData!$H$40:$H$290,MATCH(TRUE,INDEX(RIGHT(RiskData!$F$40:$F$290,255)=RIGHT(F30,255),0),0)), \"\"),\"\")","v":""}]
[false,"Finding23",null,null,null,null,null,null,null,null,null,null,null,null,false,{"$f":"IF(A31=TRUE,_xlfn.IFNA(INDEX(RiskData!$H$40:$H$290,MATCH(TRUE,INDEX(RIGHT(RiskData!$F$40:$F$290,255)=RIGHT(F31,255),0),0)), \"\"),\"\")","v":""}]
[false,"Finding24",null,null,null,null,null,null,null,null,null,null,null,null,false,{"$f":"IF(A32=TRUE,_xlfn.IFNA(INDEX(RiskData!$H$40:$H$290,MATCH(TRUE,INDEX(RIGHT(RiskData!$F$40:$F$290,255)=RIGHT(F32,255),0),0)), \"\"),\"\")","v":""}]
[false,"Finding25",null,null,null,null,null,null,null,null,null,null,null,null,false,{"$f":"IF(A33=TRUE,_xlfn.IFNA(INDEX(RiskData!$H$40:$H$290,MATCH(TRUE,INDEX(RIGHT(RiskData!$F$40:$F$290,255)=RIGHT(F33,255),0),0)), \"\"),\"\")","v":""}]
[false,"Finding26",null,null,null,null,null,null,null,null,null,null,null,null,false,{"$f":"IF(A34=TRUE,_xlfn.IFNA(INDEX(RiskData!$H$40:$H$290,MATCH(TRUE,INDEX(RIGHT(RiskData!$F$40:$F$290,255)=RIGHT(F34,255),0),0)), \"\"),\"\")","v":""}]
[false,"Finding27",null,null,null,null,null,null,null,null,null,null,null,null,false,{"$f":"IF(A35=TRUE,_xlfn.IFNA(INDEX(RiskData!$H$40:$H$290,MATCH(TRUE,INDEX(RIGHT(RiskData!$F$40:$F$290,255)=RIGHT(F35,255),0),0)), \"\"),\"\")","v":""}]
[false,"Finding28",null,null,null,null,null,null,null,null,null,null,null,null,false,{"$f":"IF(A36=TRUE,_xlfn.IFNA(INDEX(RiskData!$H$40:$H$290,MATCH(TRUE,INDEX(RIGHT(RiskData!$F$40:$F$290,255)=RIGHT(F36,255),0),0)), \"\"),\"\")","v":""}]
[false,"Finding29",null,null,null,null,null,null,null,null,null,null,null,null,false,{"$f":"IF(A37=TRUE,_xlfn.IFNA(INDEX(RiskData!$H$40:$H$290,MATCH(TRUE,INDEX(RIGHT(RiskData!$F$40:$F$290,255)=RIGHT(F37,255),0),0)), \"\"),\"\")","v":""}]
[false,"Finding30",null,null,null,null,null,null,null,null,null,null,null,null,false,{"$f":"IF(A38=TRUE,_xlfn.IFNA(INDEX(RiskData!$H$40:$H$290,MATCH(TRUE,INDEX(RIGHT(RiskData!$F$40:$F$290,255)=RIGHT(F38,255),0),0)), \"\"),\"\")","v":""}]
[false,"Finding31",null,null,null,null,null,null,null,null,null,null,null,null,false,{"$f":"IF(A39=TRUE,_xlfn.IFNA(INDEX(RiskData!$H$40:$H$290,MATCH(TRUE,INDEX(RIGHT(RiskData!$F$40:$F$290,255)=RIGHT(F39,255),0),0)), \"\"),\"\")","v":""}]
[false,"Finding32",null,null,null,null,null,null,null,null,null,null,null,null,false,{"$f":"IF(A40=TRUE,_xlfn.IFNA(INDEX(RiskData!$H$40:$H$290,MATCH(TRUE,INDEX(RIGHT(RiskData!$F$40:$F$290,255)=RIGHT(F40,255),0),0)), \"\"),\"\")","v":""}]
[false,"Finding33",null,null,null,null,null,null,null,null,null,null,null,null,false,{"$f":"IF(A41=TRUE,_xlfn.IFNA(INDEX(RiskData!$H$40:$H$290,MATCH(TRUE,INDEX(RIGHT(RiskData!$F$40:$F$290,255)=RIGHT(F41,255),0),0)), \"\"),\"\")","v":""}]
[false,"Finding34",null,null,null,null,null,null,null,null,null,null,null,null,false,{"$f":"IF(A42=TRUE,_xlfn.IFNA(INDEX(RiskData!$H$40:$H$290,MATCH(TRUE,INDEX(RIGHT(RiskData!$F$40:$F$290,255)=RIGHT(F42,255),0),0)), \"\"),\"\")","v":""}]
[false,"Finding35",null,null,null,null,null,null,null,null,null,null,null,null,false,{"$f":"IF(A43=TRUE,_xlfn.IFNA(INDEX(RiskData!$H$40:$H$290,MATCH(TRUE,INDEX(RIGHT(RiskData!$F$40:$F$290,255)=RIGHT(F43,255),0),0)), \"\"),\"\")","v":""}]
[false,"Finding36",null,null,null,null,null,null,null,null,null,null,null,null,false,{"$f":"IF(A44=TRUE,_xlfn.IFNA(INDEX(RiskData!$H$40:$H$290,MATCH(TRUE,INDEX(RIGHT(RiskData!$F$40:$F$290,255)=RIGHT(F44,255),0),0)), \"\"),\"\")","v":""}]
[false,"Finding37",null,null,null,null,null,null,null,null,null,null,null,null,false,{"$f":"IF(A45=TRUE,_xlfn.IFNA(INDEX(RiskData!$H$40:$H$290,MATCH(TRUE,INDEX(RIGHT(RiskData!$F$40:$F$290,255)=RIGHT(F45,255),0),0)), \"\"),\"\")","v":""}]
[false,"Finding38",null,null,null,null,null,null,null,null,null,null,null,null,false,{"$f":"IF(A46=TRUE,_xlfn.IFNA(INDEX(RiskData!$H$40:$H$290,MATCH(TRUE,INDEX(RIGHT(RiskData!$F$40:$F$290,255)=RIGHT(F46,255),0),0)), \"\"),\"\")","v":""}]
[false,"Finding39",null,null,null,null,null,null,null,null,null,null,null,null,false,{"$f":"IF(A47=TRUE,_xlfn.IFNA(INDEX(RiskData!$H$40:$H$290,MATCH(TRUE,INDEX(RIGHT(RiskData!$F$40:$F$290,255)=RIGHT(F47,255),0),0)), \"\"),\"\")","v":""}]
[false,"Finding40",null,null,null,null,null,null,null,null,null,null,null,null,false,{"$f":"IF(A48=TRUE,_xlfn.IFNA(INDEX(RiskData!$H$40:$H$290,MATCH(TRUE,INDEX(RIGHT(RiskData!$F$40:$F$290,255)=RIGHT(F48,255),0),0)), \"\"),\"\")","v":""}]
[false,"Finding41",null,null,null,null,null,null,null,null,null,null,null,null,false,{"$f":"IF(A49=TRUE,_xlfn.IFNA(INDEX(RiskData!$H$40:$H$290,MATCH(TRUE,INDEX(RIGHT(RiskData!$F$40:$F$290,255)=RIGHT(F49,255),0),0)), \"\"),\"\")","v":""}]
[false,"Finding42",null,null,null,null,null,null,null,null,null,null,null,null,false,{"$f":"IF(A50=TRUE,_xlfn.IFNA(INDEX(RiskData!$H$40:$H$290,MATCH(TRUE,INDEX(RIGHT(RiskData!$F$40:$F$290,255)=RIGHT(F50,255),0),0)), \"\"),\"\")","v":""}]
[false,"Finding43",null,null,null,null,null,null,null,null,null,null,null,null,false,{"$f":"IF(A51=TRUE,_xlfn.IFNA(INDEX(RiskData!$H$40:$H$290,MATCH(TRUE,INDEX(RIGHT(RiskData!$F$40:$F$290,255)=RIGHT(F51,255),0),0)), \"\"),\"\")","v":""}]
[false,"Finding44",null,null,null,null,null,null,null,null,null,null,null,null,false,{"$f":"IF(A52=TRUE,_xlfn.IFNA(INDEX(RiskData!$H$40:$H$290,MATCH(TRUE,INDEX(RIGHT(RiskData!$F$40:$F$290,255)=RIGHT(F52,255),0),0)), \"\"),\"\")","v":""}]
[false,"Finding45",null,null,null,null,null,null,null,null,null,null,null,null,false,{"$f":"IF(A53=TRUE,_xlfn.IFNA(INDEX(RiskData!$H$40:$H$290,MATCH(TRUE,INDEX(RIGHT(RiskData!$F$40:$F$290,255)=RIGHT(F53,255),0),0)), \"\"),\"\")","v":""}]
[false,"Finding46",null,null,null,null,null,null,null,null,null,null,null,null,false,{"$f":"IF(A54=TRUE,_xlfn.IFNA(INDEX(RiskData!$H$40:$H$290,MATCH(TRUE,INDEX(RIGHT(RiskData!$F$40:$F$290,255)=RIGHT(F54,255),0),0)), \"\"),\"\")","v":""}]
[false,"Finding47",null,null,null,null,null,null,null,null,null,null,null,null,false,{"$f":"IF(A55=TRUE,_xlfn.IFNA(INDEX(RiskData!$H$40:$H$290,MATCH(TRUE,INDEX(RIGHT(RiskData!$F$40:$F$290,255)=RIGHT(F55,255),0),0)), \"\"),\"\")","v":""}]
[false,"Finding48",null,null,null,null,null,null,null,null,null,null,null,null,false,{"$f":"IF(A56=TRUE,_xlfn.IFNA(INDEX(RiskData!$H$40:$H$290,MATCH(TRUE,INDEX(RIGHT(RiskData!$F$40:$F$290,255)=RIGHT(F56,255),0),0)), \"\"),\"\")","v":""}]
[false,"Finding49",null,null,null,null,null,null,null,null,null,null,null,null,false,{"$f":"IF(A57=TRUE,_xlfn.IFNA(INDEX(RiskData!$H$40:$H$290,MATCH(TRUE,INDEX(RIGHT(RiskData!$F$40:$F$290,255)=RIGHT(F57,255),0),0)), \"\"),\"\")","v":""}]
[false,"Finding50",null,null,null,null,null,null,null,null,null,null,null,null,false,{"$f":"IF(A58=TRUE,_xlfn.IFNA(INDEX(RiskData!$H$40:$H$290,MATCH(TRUE,INDEX(RIGHT(RiskData!$F$40:$F$290,255)=RIGHT(F58,255),0),0)), \"\"),\"\")","v":""}]
[false,"Finding51",null,null,null,null,null,null,null,null,null,null,null,null,false,{"$f":"IF(A59=TRUE,_xlfn.IFNA(INDEX(RiskData!$H$40:$H$290,MATCH(TRUE,INDEX(RIGHT(RiskData!$F$40:$F$290,255)=RIGHT(F59,255),0),0)), \"\"),\"\")","v":""}]
[false,"Finding52",null,null,null,null,null,null,null,null,null,null,null,null,false,{"$f":"IF(A60=TRUE,_xlfn.IFNA(INDEX(RiskData!$H$40:$H$290,MATCH(TRUE,INDEX(RIGHT(RiskData!$F$40:$F$290,255)=RIGHT(F60,255),0),0)), \"\"),\"\")","v":""}]
[false,"Finding53",null,null,null,null,null,null,null,null,null,null,null,null,false,{"$f":"IF(A61=TRUE,_xlfn.IFNA(INDEX(RiskData!$H$40:$H$290,MATCH(TRUE,INDEX(RIGHT(RiskData!$F$40:$F$290,255)=RIGHT(F61,255),0),0)), \"\"),\"\")","v":""}]
[false,"Finding54",null,null,null,null,null,null,null,null,null,null,null,null,false,{"$f":"IF(A62=TRUE,_xlfn.IFNA(INDEX(RiskData!$H$40:$H$290,MATCH(TRUE,INDEX(RIGHT(RiskData!$F$40:$F$290,255)=RIGHT(F62,255),0),0)), \"\"),\"\")","v":""}]
[false,"Finding55",null,null,null,null,null,null,null,null,null,null,null,null,false,{"$f":"IF(A63=TRUE,_xlfn.IFNA(INDEX(RiskData!$H$40:$H$290,MATCH(TRUE,INDEX(RIGHT(RiskData!$F$40:$F$290,255)=RIGHT(F63,255),0),0)), \"\"),\"\")","v":""}]
[false,"Finding56",null,null,null,null,null,null,null,null,null,null,null,null,false,{"$f":"IF(A64=TRUE,_xlfn.IFNA(INDEX(RiskData!$H$40:$H$290,MATCH(TRUE,INDEX(RIGHT(RiskData!$F$40:$F$290,255)=RIGHT(F64,255),0),0)), \"\"),\"\")","v":""}]
[false,"Finding57",null,null,null,null,null,null,null,null,null,null,null,null,false,{"$f":"IF(A65=TRUE,_xlfn.IFNA(INDEX(RiskData!$H$40:$H$290,MATCH(TRUE,INDEX(RIGHT(RiskData!$F$40:$F$290,255)=RIGHT(F65,255),0),0)), \"\"),\"\")","v":""}]
[false,"Finding58",null,null,null,null,null,null,null,null,null,null,null,null,false,{"$f":"IF(A66=TRUE,_xlfn.IFNA(INDEX(RiskData!$H$40:$H$290,MATCH(TRUE,INDEX(RIGHT(RiskData!$F$40:$F$290,255)=RIGHT(F66,255),0),0)), \"\"),\"\")","v":""}]
[false,"Finding59",null,null,null,null,null,null,null,null,null,null,null,null,false,{"$f":"IF(A67=TRUE,_xlfn.IFNA(INDEX(RiskData!$H$40:$H$290,MATCH(TRUE,INDEX(RIGHT(RiskData!$F$40:$F$290,255)=RIGHT(F67,255),0),0)), \"\"),\"\")","v":""}]
[false,"Finding60",null,null,null,null,null,null,null,null,null,null,null,null,false,{"$f":"IF(A68=TRUE,_xlfn.IFNA(INDEX(RiskData!$H$40:$H$290,MATCH(TRUE,INDEX(RIGHT(RiskData!$F$40:$F$290,255)=RIGHT(F68,255),0),0)), \"\"),\"\")","v":""}]
[false,"Finding61",null,null,null,null,null,null,null,null,null,null,null,null,false,{"$f":"IF(A69=TRUE,_xlfn.IFNA(INDEX(RiskData!$H$40:$H$290,MATCH(TRUE,INDEX(RIGHT(RiskData!$F$40:$F$290,255)=RIGHT(F69,255),0),0)), \"\"),\"\")","v":""}]
[false,"Finding62",null,null,null,null,null,null,null,null,null,null,null,null,false,{"$f":"IF(A70=TRUE,_xlfn.IFNA(INDEX(RiskData!$H$40:$H$290,MATCH(TRUE,INDEX(RIGHT(RiskData!$F$40:$F$290,255)=RIGHT(F70,255),0),0)), \"\"),\"\")","v":""}]
[false,"Finding63",null,null,null,null,null,null,null,null,null,null,null,null,false,{"$f":"IF(A71=TRUE,_xlfn.IFNA(INDEX(RiskData!$H$40:$H$290,MATCH(TRUE,INDEX(RIGHT(RiskData!$F$40:$F$290,255)=RIGHT(F71,255),0),0)), \"\"),\"\")","v":""}]
[false,"Finding64",null,null,null,null,null,null,null,null,null,null,null,null,false,{"$f":"IF(A72=TRUE,_xlfn.IFNA(INDEX(RiskData!$H$40:$H$290,MATCH(TRUE,INDEX(RIGHT(RiskData!$F$40:$F$290,255)=RIGHT(F72,255),0),0)), \"\"),\"\")","v":""}]
[false,"Finding65",null,null,null,null,null,null,null,null,null,null,null,null,false,{"$f":"IF(A73=TRUE,_xlfn.IFNA(INDEX(RiskData!$H$40:$H$290,MATCH(TRUE,INDEX(RIGHT(RiskData!$F$40:$F$290,255)=RIGHT(F73,255),0),0)), \"\"),\"\")","v":""}]
[{"$f":"OR(NOT(ISBLANK(C74)),NOT(ISBLANK(D74)),NOT(ISBLANK(E74)),NOT(ISBLANK(G74)),NOT(ISBLANK(H74)),NOT(ISBLANK(I74)),NOT(ISBLANK(J74)))","v":false},"Finding66",null,null,null,null,null,null,null,null,null,null,null,null,{"$f":"AND(OR(ISBLANK(D74),ISBLANK(E74),ISBLANK(G74),ISBLANK(H74),ISBLANK(I74),ISBLANK(C74)),\n    OR(NOT(ISBLANK(D74)),NOT(ISBLANK(E74)),NOT(ISBLANK(G74)),NOT(ISBLANK(H74)),NOT(ISBLANK(I74)),NOT(ISBLANK(C74))))","v":false},{"$f":"IF(A74=TRUE,_xlfn.IFNA(INDEX(RiskData!$H$40:$H$290,MATCH(TRUE,INDEX(RIGHT(RiskData!$F$40:$F$290,255)=RIGHT(F74,255),0),0)), \"\"),\"\")","v":""}]
[false,"Finding67",null,null,null,null,null,null,null,null,null,null,null,null,false,{"$f":"IF(A75=TRUE,_xlfn.IFNA(INDEX(RiskData!$H$40:$H$290,MATCH(TRUE,INDEX(RIGHT(RiskData!$F$40:$F$290,255)=RIGHT(F75,255),0),0)), \"\"),\"\")","v":""}]
[false,"Finding68",null,null,null,null,null,null,null,null,null,null,null,null,false,{"$f":"IF(A76=TRUE,_xlfn.IFNA(INDEX(RiskData!$H$40:$H$290,MATCH(TRUE,INDEX(RIGHT(RiskData!$F$40:$F$290,255)=RIGHT(F76,255),0),0)), \"\"),\"\")","v":""}]
[false,"Finding69",null,null,null,null,null,null,null,null,null,null,null,null,false,{"$f":"IF(A77=TRUE,_xlfn.IFNA(INDEX(RiskData!$H$40:$H$290,MATCH(TRUE,INDEX(RIGHT(RiskData!$F$40:$F$290,255)=RIGHT(F77,255),0),0)), \"\"),\"\")","v":""}]
[false,"Finding70",null,null,null,null,null,null,null,null,null,null,null,null,false,{"$f":"IF(A78=TRUE,_xlfn.IFNA(INDEX(RiskData!$H$40:$H$290,MATCH(TRUE,INDEX(RIGHT(RiskData!$F$40:$F$290,255)=RIGHT(F78,255),0),0)), \"\"),\"\")","v":""}]
[false,"Finding71",null,null,null,null,null,null,null,null,null,null,null,null,false,{"$f":"IF(A79=TRUE,_xlfn.IFNA(INDEX(RiskData!$H$40:$H$290,MATCH(TRUE,INDEX(RIGHT(RiskData!$F$40:$F$290,255)=RIGHT(F79,255),0),0)), \"\"),\"\")","v":""}]
[false,"Finding72",null,null,null,null,null,null,null,null,null,null,null,null,false,{"$f":"IF(A80=TRUE,_xlfn.IFNA(INDEX(RiskData!$H$40:$H$290,MATCH(TRUE,INDEX(RIGHT(RiskData!$F$40:$F$290,255)=RIGHT(F80,255),0),0)), \"\"),\"\")","v":""}]
[false,"Finding73",null,null,null,null,null,null,null,null,null,null,null,null,false,{"$f":"IF(A81=TRUE,_xlfn.IFNA(INDEX(RiskData!$H$40:$H$290,MATCH(TRUE,INDEX(RIGHT(RiskData!$F$40:$F$290,255)=RIGHT(F81,255),0),0)), \"\"),\"\")","v":""}]
[false,"Finding74",null,null,null,null,null,null,null,null,null,null,null,null,false,{"$f":"IF(A82=TRUE,_xlfn.IFNA(INDEX(RiskData!$H$40:$H$290,MATCH(TRUE,INDEX(RIGHT(RiskData!$F$40:$F$290,255)=RIGHT(F82,255),0),0)), \"\"),\"\")","v":""}]
[false,"Finding75",null,null,null,null,null,null,null,null,null,null,null,null,false,{"$f":"IF(A83=TRUE,_xlfn.IFNA(INDEX(RiskData!$H$40:$H$290,MATCH(TRUE,INDEX(RIGHT(RiskData!$F$40:$F$290,255)=RIGHT(F83,255),0),0)), \"\"),\"\")","v":""}]
[false,"Finding76",null,null,null,null,null,null,null,null,null,null,null,null,false,{"$f":"IF(A84=TRUE,_xlfn.IFNA(INDEX(RiskData!$H$40:$H$290,MATCH(TRUE,INDEX(RIGHT(RiskData!$F$40:$F$290,255)=RIGHT(F84,255),0),0)), \"\"),\"\")","v":""}]
[false,"Finding77",null,null,null,null,null,null,null,null,null,null,null,null,false,{"$f":"IF(A85=TRUE,_xlfn.IFNA(INDEX(RiskData!$H$40:$H$290,MATCH(TRUE,INDEX(RIGHT(RiskData!$F$40:$F$290,255)=RIGHT(F85,255),0),0)), \"\"),\"\")","v":""}]
[false,"Finding78",null,null,null,null,null,null,null,null,null,null,null,null,false,{"$f":"IF(A86=TRUE,_xlfn.IFNA(INDEX(RiskData!$H$40:$H$290,MATCH(TRUE,INDEX(RIGHT(RiskData!$F$40:$F$290,255)=RIGHT(F86,255),0),0)), \"\"),\"\")","v":""}]
[false,"Finding79",null,null,null,null,null,null,null,null,null,null,null,null,false,{"$f":"IF(A87=TRUE,_xlfn.IFNA(INDEX(RiskData!$H$40:$H$290,MATCH(TRUE,INDEX(RIGHT(RiskData!$F$40:$F$290,255)=RIGHT(F87,255),0),0)), \"\"),\"\")","v":""}]
[false,"Finding80",null,null,null,null,null,null,null,null,null,null,null,null,false,{"$f":"IF(A88=TRUE,_xlfn.IFNA(INDEX(RiskData!$H$40:$H$290,MATCH(TRUE,INDEX(RIGHT(RiskData!$F$40:$F$290,255)=RIGHT(F88,255),0),0)), \"\"),\"\")","v":""}]
[false,"Finding81",null,null,null,null,null,null,null,null,null,null,null,null,false,{"$f":"IF(A89=TRUE,_xlfn.IFNA(INDEX(RiskData!$H$40:$H$290,MATCH(TRUE,INDEX(RIGHT(RiskData!$F$40:$F$290,255)=RIGHT(F89,255),0),0)), \"\"),\"\")","v":""}]
[false,"Finding82",null,null,null,null,null,null,null,null,null,null,null,null,false,{"$f":"IF(A90=TRUE,_xlfn.IFNA(INDEX(RiskData!$H$40:$H$290,MATCH(TRUE,INDEX(RIGHT(RiskData!$F$40:$F$290,255)=RIGHT(F90,255),0),0)), \"\"),\"\")","v":""}]
[false,"Finding83",null,null,null,null,null,null,null,null,null,null,null,null,false,{"$f":"IF(A91=TRUE,_xlfn.IFNA(INDEX(RiskData!$H$40:$H$290,MATCH(TRUE,INDEX(RIGHT(RiskData!$F$40:$F$290,255)=RIGHT(F91,255),0),0)), \"\"),\"\")","v":""}]
[false,"Finding84",null,null,null,null,null,null,null,null,null,null,null,null,false,{"$f":"IF(A92=TRUE,_xlfn.IFNA(INDEX(RiskData!$H$40:$H$290,MATCH(TRUE,INDEX(RIGHT(RiskData!$F$40:$F$290,255)=RIGHT(F92,255),0),0)), \"\"),\"\")","v":""}]
[false,"Finding85",null,null,null,null,null,null,null,null,null,null,null,null,false,{"$f":"IF(A93=TRUE,_xlfn.IFNA(INDEX(RiskData!$H$40:$H$290,MATCH(TRUE,INDEX(RIGHT(RiskData!$F$40:$F$290,255)=RIGHT(F93,255),0),0)), \"\"),\"\")","v":""}]
[false,"Finding86",null,null,null,null,null,null,null,null,null,null,null,null,false,{"$f":"IF(A94=TRUE,_xlfn.IFNA(INDEX(RiskData!$H$40:$H$290,MATCH(TRUE,INDEX(RIGHT(RiskData!$F$40:$F$290,255)=RIGHT(F94,255),0),0)), \"\"),\"\")","v":""}]
[false,"Finding87",null,null,null,null,null,null,null,null,null,null,null,null,false,{"$f":"IF(A95=TRUE,_xlfn.IFNA(INDEX(RiskData!$H$40:$H$290,MATCH(TRUE,INDEX(RIGHT(RiskData!$F$40:$F$290,255)=RIGHT(F95,255),0),0)), \"\"),\"\")","v":""}]
[false,"Finding88",null,null,null,null,null,null,null,null,null,null,null,null,false,{"$f":"IF(A96=TRUE,_xlfn.IFNA(INDEX(RiskData!$H$40:$H$290,MATCH(TRUE,INDEX(RIGHT(RiskData!$F$40:$F$290,255)=RIGHT(F96,255),0),0)), \"\"),\"\")","v":""}]
[false,"Finding89",null,null,null,null,null,null,null,null,null,null,null,null,false,{"$f":"IF(A97=TRUE,_xlfn.IFNA(INDEX(RiskData!$H$40:$H$290,MATCH(TRUE,INDEX(RIGHT(RiskData!$F$40:$F$290,255)=RIGHT(F97,255),0),0)), \"\"),\"\")","v":""}]
[false,"Finding90",null,null,null,null,null,null,null,null,null,null,null,null,false,{"$f":"IF(A98=TRUE,_xlfn.IFNA(INDEX(RiskData!$H$40:$H$290,MATCH(TRUE,INDEX(RIGHT(RiskData!$F$40:$F$290,255)=RIGHT(F98,255),0),0)), \"\"),\"\")","v":""}]
[false,"Finding91",null,null,null,null,null,null,null,null,null,null,null,null,false,{"$f":"IF(A99=TRUE,_xlfn.IFNA(INDEX(RiskData!$H$40:$H$290,MATCH(TRUE,INDEX(RIGHT(RiskData!$F$40:$F$290,255)=RIGHT(F99,255),0),0)), \"\"),\"\")","v":""}]
[false,"Finding92",null,null,null,null,null,null,null,null,null,null,null,null,false,{"$f":"IF(A100=TRUE,_xlfn.IFNA(INDEX(RiskData!$H$40:$H$290,MATCH(TRUE,INDEX(RIGHT(RiskData!$F$40:$F$290,255)=RIGHT(F100,255),0),0)), \"\"),\"\")","v":""}]
[false,"Finding93",null,null,null,null,null,null,null,null,null,null,null,null,false,{"$f":"IF(A101=TRUE,_xlfn.IFNA(INDEX(RiskData!$H$40:$H$290,MATCH(TRUE,INDEX(RIGHT(RiskData!$F$40:$F$290,255)=RIGHT(F101,255),0),0)), \"\"),\"\")","v":""}]
[false,"Finding94",null,null,null,null,null,null,null,null,null,null,null,null,false,{"$f":"IF(A102=TRUE,_xlfn.IFNA(INDEX(RiskData!$H$40:$H$290,MATCH(TRUE,INDEX(RIGHT(RiskData!$F$40:$F$290,255)=RIGHT(F102,255),0),0)), \"\"),\"\")","v":""}]
[false,"Finding95",null,null,null,null,null,null,null,null,null,null,null,null,false,{"$f":"IF(A103=TRUE,_xlfn.IFNA(INDEX(RiskData!$H$40:$H$290,MATCH(TRUE,INDEX(RIGHT(RiskData!$F$40:$F$290,255)=RIGHT(F103,255),0),0)), \"\"),\"\")","v":""}]
[false,"Finding96",null,null,null,null,null,null,null,null,null,null,null,null,false,{"$f":"IF(A104=TRUE,_xlfn.IFNA(INDEX(RiskData!$H$40:$H$290,MATCH(TRUE,INDEX(RIGHT(RiskData!$F$40:$F$290,255)=RIGHT(F104,255),0),0)), \"\"),\"\")","v":""}]
[false,"Finding97",null,null,null,null,null,null,null,null,null,null,null,null,false,{"$f":"IF(A105=TRUE,_xlfn.IFNA(INDEX(RiskData!$H$40:$H$290,MATCH(TRUE,INDEX(RIGHT(RiskData!$F$40:$F$290,255)=RIGHT(F105,255),0),0)), \"\"),\"\")","v":""}]
[false,"Finding98",null,null,null,null,null,null,null,null,null,null,null,null,false,{"$f":"IF(A106=TRUE,_xlfn.IFNA(INDEX(RiskData!$H$40:$H$290,MATCH(TRUE,INDEX(RIGHT(RiskData!$F$40:$F$290,255)=RIGHT(F106,255),0),0)), \"\"),\"\")","v":""}]
[false,"Finding99",null,null,null,null,null,null,null,null,null,null,null,null,false,{"$f":"IF(A107=TRUE,_xlfn.IFNA(INDEX(RiskData!$H$40:$H$290,MATCH(TRUE,INDEX(RIGHT(RiskData!$F$40:$F$290,255)=RIGHT(F107,255),0),0)), \"\"),\"\")","v":""}]
[false,"Finding100",null,null,null,null,null,null,null,null,null,null,null,null,false,{"$f":"IF(A108=TRUE,_xlfn.IFNA(INDEX(RiskData!$H$40:$H$290,MATCH(TRUE,INDEX(RIGHT(RiskData!$F$40:$F$290,255)=RIGHT(F108,255),0),0)), \"\"),\"\")","v":""}]

{"sheet":"LFA_Findings&Recom export","index":29,"n_rows":34,"n_cols":25,"rows_kept":34,"cut":false,"hidden":true,"merged":[]}
[null,null,null,2,3,4,5,6,7,8,9,10,11,null,12,null,13,14,15,16,17,18,19,20,21]
["Record ID",-1,null,"Risk Category","Risk","Root Cause","Root Cause Comment","Mitigating Action","Actor","Actor Type","Timeline","Status","LFA Comments",null,"All Validation","Is Valid?","Risk Category","Risk Details","Root Cause","Reporting Period","Implementation Period","GF Comments","Status","Root Cause Comment","Timeline"]
["[Record ID]",{"$f":"B2+1","v":0},{"$f":"\"Finding\"&B3","v":"Finding0"},{"$f":"IFERROR(IF(INDEX('LFA_Findings&Recommendations_6'!C$9:C$108,MATCH('LFA_Findings&Recom export'!$C3,'LFA_Findings&Recommendations_6'!$B$9:$B$108,0))=\"\",\"\",INDEX('LFA_Findings&Recommendations_6'!C$9:C$108,MATCH('LFA_Findings&Recom export'!$C3,'LFA_Findings&Recommendations_6'!$B$9:$B$108,0))),\"\")","v":""},{"$f":"IFERROR(IF(INDEX('LFA_Findings&Recommendations_6'!D$9:D$108,MATCH('LFA_Findings&Recom export'!$C3,'LFA_Findings&Recommendations_6'!$B$9:$B$108,0))=\"\",\"\",INDEX('LFA_Findings&Recommendations_6'!D$9:D$108,MATCH('LFA_Findings&Recom export'!$C3,'LFA_Findings&Recommendations_6'!$B$9:$B$108,0))),\"\")","v":""},{"$f":"IFERROR(IF(INDEX('LFA_Findings&Recommendations_6'!E$9:E$108,MATCH('LFA_Findings&Recom export'!$C3,'LFA_Findings&Recommendations_6'!$B$9:$B$108,0))=\"\",\"\",INDEX('LFA_Findings&Recommendations_6'!E$9:E$108,MATCH('LFA_Findings&Recom export'!$C3,'LFA_Findings&Recommendations_6'!$B$9:$B$108,0))),\"\")","v":""},{"$f":"IFERROR(IF(INDEX('LFA_Findings&Recommendations_6'!F$9:F$108,MATCH('LFA_Findings&Recom export'!$C3,'LFA_Findings&Recommendations_6'!$B$9:$B$108,0))=\"\",\"\",INDEX('LFA_Findings&Recommendations_6'!F$9:F$108,MATCH('LFA_Findings&Recom export'!$C3,'LFA_Findings&Recommendations_6'!$B$9:$B$108,0))),\"\")","v":""},{"$f":"IFERROR(IF(INDEX('LFA_Findings&Recommendations_6'!G$9:G$108,MATCH('LFA_Findings&Recom export'!$C3,'LFA_Findings&Recommendations_6'!$B$9:$B$108,0))=\"\",\"\",INDEX('LFA_Findings&Recommendations_6'!G$9:G$108,MATCH('LFA_Findings&Recom export'!$C3,'LFA_Findings&Recommendations_6'!$B$9:$B$108,0))),\"\")","v":""},{"$f":"IFERROR(IF(INDEX('LFA_Findings&Recommendations_6'!H$9:H$108,MATCH('LFA_Findings&Recom export'!$C3,'LFA_Findings&Recommendations_6'!$B$9:$B$108,0))=\"\",\"\",INDEX('LFA_Findings&Recommendations_6'!H$9:H$108,MATCH('LFA_Findings&Recom export'!$C3,'LFA_Findings&Recommendations_6'!$B$9:$B$108,0))),\"\")","v":""},{"$f":"IFERROR(IF(INDEX('LFA_Findings&Recommendations_6'!I$9:I$108,MATCH('LFA_Findings&Recom export'!$C3,'LFA_Findings&Recommendations_6'!$B$9:$B$108,0))=\"\",\"\",INDEX('LFA_Findings&Recommendations_6'!I$9:I$108,MATCH('LFA_Findings&Recom export'!$C3,'LFA_Findings&Recommendations_6'!$B$9:$B$108,0))),\"\")","v":""},{"$f":"IFERROR(IF(INDEX('LFA_Findings&Recommendations_6'!J$9:J$108,MATCH('LFA_Findings&Recom export'!$C3,'LFA_Findings&Recommendations_6'!$B$9:$B$108,0))=\"\",\"\",INDEX('LFA_Findings&Recommendations_6'!J$9:J$108,MATCH('LFA_Findings&Recom export'!$C3,'LFA_Findings&Recommendations_6'!$B$9:$B$108,0))),\"\")","v":""},{"$f":"IFERROR(IF(INDEX('LFA_Findings&Recommendations_6'!K$9:K$108,MATCH('LFA_Findings&Recom export'!$C3,'LFA_Findings&Recommendations_6'!$B$9:$B$108,0))=\"\",\"\",INDEX('LFA_Findings&Recommendations_6'!K$9:K$108,MATCH('LFA_Findings&Recom export'!$C3,'LFA_Findings&Recommendations_6'!$B$9:$B$108,0))),\"\")","v":""},{"$f":"IFERROR(IF(INDEX('LFA_Findings&Recommendations_6'!L$9:L$108,MATCH('LFA_Findings&Recom export'!$C3,'LFA_Findings&Recommendations_6'!$B$9:$B$108,0))=\"\",\"\",INDEX('LFA_Findings&Recommendations_6'!L$9:L$108,MATCH('LFA_Findings&Recom export'!$C3,'LFA_Findings&Recommendations_6'!$B$9:$B$108,0))),\"\")","v":""},null,{"$f":"AND(OR(ISBLANK(D3),ISBLANK(E3),ISBLANK(F3),ISBLANK(H3),ISBLANK(I3),ISBLANK(J3)),\n    OR(NOT(ISBLANK(D3)),NOT(ISBLANK(E3)),NOT(ISBLANK(F3)),NOT(ISBLANK(H3)),NOT(ISBLANK(I3)),NOT(ISBLANK(J3))))","v":false},{"$f":"IFERROR(IF(INDEX('LFA_Findings&Recommendations_6'!A$9:A$108,MATCH('LFA_Findings&Recom export'!$C3,'LFA_Findings&Recommendations_6'!$B$9:$B$108,0))=\"\",\"\",INDEX('LFA_Findings&Recommendations_6'!A$9:A$108,MATCH('LFA_Findings&Recom export'!$C3,'LFA_Findings&Recommendations_6'!$B$9:$B$108,0))),\"\")","v":""},{"$f":"IF(P3=TRUE,_xlfn.IFNA(VLOOKUP(D3,RiskData!$B$5:$D$11,3,FALSE), \"\"),\"\")","v":""},{"$f":"IF(P3=TRUE,_xlfn.IFNA(VLOOKUP(E3,RiskData!$F$13:$I$36,4,FALSE), \"\"),\"\")","v":""},{"$f":"IF(P3=TRUE,_xlfn.IFNA(INDEX(RiskData!$H$40:$H$290,MATCH(TRUE,INDEX(RIGHT(RiskData!$F$40:$F$290,255)=RIGHT(F3,255),0),0)), \"\"),\"\")","v":""},{"$f":"IF(OR(P3=TRUE,ISBLANK(D3)),'Admin Sheet'!$B$44,\"\")","v":""},{"$f":"IF(OR(ISBLANK(D3), P3=TRUE),'Admin Sheet'!$B$41,\"\")","v":""},{"$f":"IF(OR(ISBLANK(M3), P3<>TRUE), \"\", M3)","v":""},{"$f":"IF(OR(ISBLANK(L3), P3<>TRUE), \"\", L3)","v":""},{"$f":"IF(OR($M3=TRUE, ISBLANK($D3)),\"\",G3)","v":""},{"$f":"IF(OR($M3=TRUE, ISBLANK($H3)), \"\", K3)","v":""}]
[null,{"$f":"B3+1","v":1},{"$f":"\"Finding\"&B4","v":"Finding1"},{"$f":"IFERROR(IF(INDEX('LFA_Findings&Recommendations_6'!C$9:C$108,MATCH('LFA_Findings&Recom export'!$C4,'LFA_Findings&Recommendations_6'!$B$9:$B$108,0))=\"\",\"\",INDEX('LFA_Findings&Recommendations_6'!C$9:C$108,MATCH('LFA_Findings&Recom export'!$C4,'LFA_Findings&Recommendations_6'!$B$9:$B$108,0))),\"\")","v":""},{"$f":"IFERROR(IF(INDEX('LFA_Findings&Recommendations_6'!D$9:D$108,MATCH('LFA_Findings&Recom export'!$C4,'LFA_Findings&Recommendations_6'!$B$9:$B$108,0))=\"\",\"\",INDEX('LFA_Findings&Recommendations_6'!D$9:D$108,MATCH('LFA_Findings&Recom export'!$C4,'LFA_Findings&Recommendations_6'!$B$9:$B$108,0))),\"\")","v":""},{"$f":"IFERROR(IF(INDEX('LFA_Findings&Recommendations_6'!E$9:E$108,MATCH('LFA_Findings&Recom export'!$C4,'LFA_Findings&Recommendations_6'!$B$9:$B$108,0))=\"\",\"\",INDEX('LFA_Findings&Recommendations_6'!E$9:E$108,MATCH('LFA_Findings&Recom export'!$C4,'LFA_Findings&Recommendations_6'!$B$9:$B$108,0))),\"\")","v":""},{"$f":"IFERROR(IF(INDEX('LFA_Findings&Recommendations_6'!F$9:F$108,MATCH('LFA_Findings&Recom export'!$C4,'LFA_Findings&Recommendations_6'!$B$9:$B$108,0))=\"\",\"\",INDEX('LFA_Findings&Recommendations_6'!F$9:F$108,MATCH('LFA_Findings&Recom export'!$C4,'LFA_Findings&Recommendations_6'!$B$9:$B$108,0))),\"\")","v":""},{"$f":"IFERROR(IF(INDEX('LFA_Findings&Recommendations_6'!G$9:G$108,MATCH('LFA_Findings&Recom export'!$C4,'LFA_Findings&Recommendations_6'!$B$9:$B$108,0))=\"\",\"\",INDEX('LFA_Findings&Recommendations_6'!G$9:G$108,MATCH('LFA_Findings&Recom export'!$C4,'LFA_Findings&Recommendations_6'!$B$9:$B$108,0))),\"\")","v":""},{"$f":"IFERROR(IF(INDEX('LFA_Findings&Recommendations_6'!H$9:H$108,MATCH('LFA_Findings&Recom export'!$C4,'LFA_Findings&Recommendations_6'!$B$9:$B$108,0))=\"\",\"\",INDEX('LFA_Findings&Recommendations_6'!H$9:H$108,MATCH('LFA_Findings&Recom export'!$C4,'LFA_Findings&Recommendations_6'!$B$9:$B$108,0))),\"\")","v":""},{"$f":"IFERROR(IF(INDEX('LFA_Findings&Recommendations_6'!I$9:I$108,MATCH('LFA_Findings&Recom export'!$C4,'LFA_Findings&Recommendations_6'!$B$9:$B$108,0))=\"\",\"\",INDEX('LFA_Findings&Recommendations_6'!I$9:I$108,MATCH('LFA_Findings&Recom export'!$C4,'LFA_Findings&Recommendations_6'!$B$9:$B$108,0))),\"\")","v":""},{"$f":"IFERROR(IF(INDEX('LFA_Findings&Recommendations_6'!J$9:J$108,MATCH('LFA_Findings&Recom export'!$C4,'LFA_Findings&Recommendations_6'!$B$9:$B$108,0))=\"\",\"\",INDEX('LFA_Findings&Recommendations_6'!J$9:J$108,MATCH('LFA_Findings&Recom export'!$C4,'LFA_Findings&Recommendations_6'!$B$9:$B$108,0))),\"\")","v":""},{"$f":"IFERROR(IF(INDEX('LFA_Findings&Recommendations_6'!K$9:K$108,MATCH('LFA_Findings&Recom export'!$C4,'LFA_Findings&Recommendations_6'!$B$9:$B$108,0))=\"\",\"\",INDEX('LFA_Findings&Recommendations_6'!K$9:K$108,MATCH('LFA_Findings&Recom export'!$C4,'LFA_Findings&Recommendations_6'!$B$9:$B$108,0))),\"\")","v":""},{"$f":"IFERROR(IF(INDEX('LFA_Findings&Recommendations_6'!L$9:L$108,MATCH('LFA_Findings&Recom export'!$C4,'LFA_Findings&Recommendations_6'!$B$9:$B$108,0))=\"\",\"\",INDEX('LFA_Findings&Recommendations_6'!L$9:L$108,MATCH('LFA_Findings&Recom export'!$C4,'LFA_Findings&Recommendations_6'!$B$9:$B$108,0))),\"\")","v":""},null,{"$f":"AND(OR(ISBLANK(D4),ISBLANK(E4),ISBLANK(F4),ISBLANK(H4),ISBLANK(I4),ISBLANK(J4)),\n    OR(NOT(ISBLANK(D4)),NOT(ISBLANK(E4)),NOT(ISBLANK(F4)),NOT(ISBLANK(H4)),NOT(ISBLANK(I4)),NOT(ISBLANK(J4))))","v":false},{"$f":"IFERROR(IF(INDEX('LFA_Findings&Recommendations_6'!A$9:A$108,MATCH('LFA_Findings&Recom export'!$C4,'LFA_Findings&Recommendations_6'!$B$9:$B$108,0))=\"\",\"\",INDEX('LFA_Findings&Recommendations_6'!A$9:A$108,MATCH('LFA_Findings&Recom export'!$C4,'LFA_Findings&Recommendations_6'!$B$9:$B$108,0))),\"\")","v":false},{"$f":"IF(P4=TRUE,_xlfn.IFNA(VLOOKUP(D4,RiskData!$B$5:$D$11,3,FALSE), \"\"),\"\")","v":""},{"$f":"IF(P4=TRUE,_xlfn.IFNA(VLOOKUP(E4,RiskData!$F$13:$I$36,4,FALSE), \"\"),\"\")","v":""},{"$f":"IF(P4=TRUE,_xlfn.IFNA(INDEX(RiskData!$H$40:$H$290,MATCH(TRUE,INDEX(RIGHT(RiskData!$F$40:$F$290,255)=RIGHT(F4,255),0),0)), \"\"),\"\")","v":""},{"$f":"IF(OR(P4=TRUE,ISBLANK(D4)),'Admin Sheet'!$B$44,\"\")","v":""},{"$f":"IF(OR(ISBLANK(D4), P4=TRUE),'Admin Sheet'!$B$41,\"\")","v":""},{"$f":"IF(OR(ISBLANK(M4), P4<>TRUE), \"\", M4)","v":""},{"$f":"IF(OR(ISBLANK(L4), P4<>TRUE), \"\", L4)","v":""},{"$f":"IF(OR($M4=TRUE, ISBLANK($D4)),\"\",G4)","v":""},{"$f":"IF(OR($M4=TRUE, ISBLANK($H4)), \"\", K4)","v":""}]
[null,2,"Finding2",{"$f":"IFERROR(IF(INDEX('LFA_Findings&Recommendations_6'!C$9:C$108,MATCH('LFA_Findings&Recom export'!$C5,'LFA_Findings&Recommendations_6'!$B$9:$B$108,0))=\"\",\"\",INDEX('LFA_Findings&Recommendations_6'!C$9:C$108,MATCH('LFA_Findings&Recom export'!$C5,'LFA_Findings&Recommendations_6'!$B$9:$B$108,0))),\"\")","v":""},{"$f":"IFERROR(IF(INDEX('LFA_Findings&Recommendations_6'!D$9:D$108,MATCH('LFA_Findings&Recom export'!$C5,'LFA_Findings&Recommendations_6'!$B$9:$B$108,0))=\"\",\"\",INDEX('LFA_Findings&Recommendations_6'!D$9:D$108,MATCH('LFA_Findings&Recom export'!$C5,'LFA_Findings&Recommendations_6'!$B$9:$B$108,0))),\"\")","v":""},{"$f":"IFERROR(IF(INDEX('LFA_Findings&Recommendations_6'!E$9:E$108,MATCH('LFA_Findings&Recom export'!$C5,'LFA_Findings&Recommendations_6'!$B$9:$B$108,0))=\"\",\"\",INDEX('LFA_Findings&Recommendations_6'!E$9:E$108,MATCH('LFA_Findings&Recom export'!$C5,'LFA_Findings&Recommendations_6'!$B$9:$B$108,0))),\"\")","v":""},{"$f":"IFERROR(IF(INDEX('LFA_Findings&Recommendations_6'!F$9:F$108,MATCH('LFA_Findings&Recom export'!$C5,'LFA_Findings&Recommendations_6'!$B$9:$B$108,0))=\"\",\"\",INDEX('LFA_Findings&Recommendations_6'!F$9:F$108,MATCH('LFA_Findings&Recom export'!$C5,'LFA_Findings&Recommendations_6'!$B$9:$B$108,0))),\"\")","v":""},{"$f":"IFERROR(IF(INDEX('LFA_Findings&Recommendations_6'!G$9:G$108,MATCH('LFA_Findings&Recom export'!$C5,'LFA_Findings&Recommendations_6'!$B$9:$B$108,0))=\"\",\"\",INDEX('LFA_Findings&Recommendations_6'!G$9:G$108,MATCH('LFA_Findings&Recom export'!$C5,'LFA_Findings&Recommendations_6'!$B$9:$B$108,0))),\"\")","v":""},{"$f":"IFERROR(IF(INDEX('LFA_Findings&Recommendations_6'!H$9:H$108,MATCH('LFA_Findings&Recom export'!$C5,'LFA_Findings&Recommendations_6'!$B$9:$B$108,0))=\"\",\"\",INDEX('LFA_Findings&Recommendations_6'!H$9:H$108,MATCH('LFA_Findings&Recom export'!$C5,'LFA_Findings&Recommendations_6'!$B$9:$B$108,0))),\"\")","v":""},{"$f":"IFERROR(IF(INDEX('LFA_Findings&Recommendations_6'!I$9:I$108,MATCH('LFA_Findings&Recom export'!$C5,'LFA_Findings&Recommendations_6'!$B$9:$B$108,0))=\"\",\"\",INDEX('LFA_Findings&Recommendations_6'!I$9:I$108,MATCH('LFA_Findings&Recom export'!$C5,'LFA_Findings&Recommendations_6'!$B$9:$B$108,0))),\"\")","v":""},{"$f":"IFERROR(IF(INDEX('LFA_Findings&Recommendations_6'!J$9:J$108,MATCH('LFA_Findings&Recom export'!$C5,'LFA_Findings&Recommendations_6'!$B$9:$B$108,0))=\"\",\"\",INDEX('LFA_Findings&Recommendations_6'!J$9:J$108,MATCH('LFA_Findings&Recom export'!$C5,'LFA_Findings&Recommendations_6'!$B$9:$B$108,0))),\"\")","v":""},{"$f":"IFERROR(IF(INDEX('LFA_Findings&Recommendations_6'!K$9:K$108,MATCH('LFA_Findings&Recom export'!$C5,'LFA_Findings&Recommendations_6'!$B$9:$B$108,0))=\"\",\"\",INDEX('LFA_Findings&Recommendations_6'!K$9:K$108,MATCH('LFA_Findings&Recom export'!$C5,'LFA_Findings&Recommendations_6'!$B$9:$B$108,0))),\"\")","v":""},{"$f":"IFERROR(IF(INDEX('LFA_Findings&Recommendations_6'!L$9:L$108,MATCH('LFA_Findings&Recom export'!$C5,'LFA_Findings&Recommendations_6'!$B$9:$B$108,0))=\"\",\"\",INDEX('LFA_Findings&Recommendations_6'!L$9:L$108,MATCH('LFA_Findings&Recom export'!$C5,'LFA_Findings&Recommendations_6'!$B$9:$B$108,0))),\"\")","v":""},null,false,{"$f":"IFERROR(IF(INDEX('LFA_Findings&Recommendations_6'!A$9:A$108,MATCH('LFA_Findings&Recom export'!$C5,'LFA_Findings&Recommendations_6'!$B$9:$B$108,0))=\"\",\"\",INDEX('LFA_Findings&Recommendations_6'!A$9:A$108,MATCH('LFA_Findings&Recom export'!$C5,'LFA_Findings&Recommendations_6'!$B$9:$B$108,0))),\"\")","v":false},{"$f":"IF(P5=TRUE,_xlfn.IFNA(VLOOKUP(D5,RiskData!$B$5:$D$11,3,FALSE), \"\"),\"\")","v":""},{"$f":"IF(P5=TRUE,_xlfn.IFNA(VLOOKUP(E5,RiskData!$F$13:$I$36,4,FALSE), \"\"),\"\")","v":""},{"$f":"IF(P5=TRUE,_xlfn.IFNA(INDEX(RiskData!$H$40:$H$290,MATCH(TRUE,INDEX(RIGHT(RiskData!$F$40:$F$290,255)=RIGHT(F5,255),0),0)), \"\"),\"\")","v":""},{"$f":"IF(OR(P5=TRUE,ISBLANK(D5)),'Admin Sheet'!$B$44,\"\")","v":""},{"$f":"IF(OR(ISBLANK(D5), P5=TRUE),'Admin Sheet'!$B$41,\"\")","v":""},"","","",""]
[null,3,"Finding3",{"$f":"IFERROR(IF(INDEX('LFA_Findings&Recommendations_6'!C$9:C$108,MATCH('LFA_Findings&Recom export'!$C6,'LFA_Findings&Recommendations_6'!$B$9:$B$108,0))=\"\",\"\",INDEX('LFA_Findings&Recommendations_6'!C$9:C$108,MATCH('LFA_Findings&Recom export'!$C6,'LFA_Findings&Recommendations_6'!$B$9:$B$108,0))),\"\")","v":""},{"$f":"IFERROR(IF(INDEX('LFA_Findings&Recommendations_6'!D$9:D$108,MATCH('LFA_Findings&Recom export'!$C6,'LFA_Findings&Recommendations_6'!$B$9:$B$108,0))=\"\",\"\",INDEX('LFA_Findings&Recommendations_6'!D$9:D$108,MATCH('LFA_Findings&Recom export'!$C6,'LFA_Findings&Recommendations_6'!$B$9:$B$108,0))),\"\")","v":""},{"$f":"IFERROR(IF(INDEX('LFA_Findings&Recommendations_6'!E$9:E$108,MATCH('LFA_Findings&Recom export'!$C6,'LFA_Findings&Recommendations_6'!$B$9:$B$108,0))=\"\",\"\",INDEX('LFA_Findings&Recommendations_6'!E$9:E$108,MATCH('LFA_Findings&Recom export'!$C6,'LFA_Findings&Recommendations_6'!$B$9:$B$108,0))),\"\")","v":""},{"$f":"IFERROR(IF(INDEX('LFA_Findings&Recommendations_6'!F$9:F$108,MATCH('LFA_Findings&Recom export'!$C6,'LFA_Findings&Recommendations_6'!$B$9:$B$108,0))=\"\",\"\",INDEX('LFA_Findings&Recommendations_6'!F$9:F$108,MATCH('LFA_Findings&Recom export'!$C6,'LFA_Findings&Recommendations_6'!$B$9:$B$108,0))),\"\")","v":""},{"$f":"IFERROR(IF(INDEX('LFA_Findings&Recommendations_6'!G$9:G$108,MATCH('LFA_Findings&Recom export'!$C6,'LFA_Findings&Recommendations_6'!$B$9:$B$108,0))=\"\",\"\",INDEX('LFA_Findings&Recommendations_6'!G$9:G$108,MATCH('LFA_Findings&Recom export'!$C6,'LFA_Findings&Recommendations_6'!$B$9:$B$108,0))),\"\")","v":""},{"$f":"IFERROR(IF(INDEX('LFA_Findings&Recommendations_6'!H$9:H$108,MATCH('LFA_Findings&Recom export'!$C6,'LFA_Findings&Recommendations_6'!$B$9:$B$108,0))=\"\",\"\",INDEX('LFA_Findings&Recommendations_6'!H$9:H$108,MATCH('LFA_Findings&Recom export'!$C6,'LFA_Findings&Recommendations_6'!$B$9:$B$108,0))),\"\")","v":""},{"$f":"IFERROR(IF(INDEX('LFA_Findings&Recommendations_6'!I$9:I$108,MATCH('LFA_Findings&Recom export'!$C6,'LFA_Findings&Recommendations_6'!$B$9:$B$108,0))=\"\",\"\",INDEX('LFA_Findings&Recommendations_6'!I$9:I$108,MATCH('LFA_Findings&Recom export'!$C6,'LFA_Findings&Recommendations_6'!$B$9:$B$108,0))),\"\")","v":""},{"$f":"IFERROR(IF(INDEX('LFA_Findings&Recommendations_6'!J$9:J$108,MATCH('LFA_Findings&Recom export'!$C6,'LFA_Findings&Recommendations_6'!$B$9:$B$108,0))=\"\",\"\",INDEX('LFA_Findings&Recommendations_6'!J$9:J$108,MATCH('LFA_Findings&Recom export'!$C6,'LFA_Findings&Recommendations_6'!$B$9:$B$108,0))),\"\")","v":""},{"$f":"IFERROR(IF(INDEX('LFA_Findings&Recommendations_6'!K$9:K$108,MATCH('LFA_Findings&Recom export'!$C6,'LFA_Findings&Recommendations_6'!$B$9:$B$108,0))=\"\",\"\",INDEX('LFA_Findings&Recommendations_6'!K$9:K$108,MATCH('LFA_Findings&Recom export'!$C6,'LFA_Findings&Recommendations_6'!$B$9:$B$108,0))),\"\")","v":""},{"$f":"IFERROR(IF(INDEX('LFA_Findings&Recommendations_6'!L$9:L$108,MATCH('LFA_Findings&Recom export'!$C6,'LFA_Findings&Recommendations_6'!$B$9:$B$108,0))=\"\",\"\",INDEX('LFA_Findings&Recommendations_6'!L$9:L$108,MATCH('LFA_Findings&Recom export'!$C6,'LFA_Findings&Recommendations_6'!$B$9:$B$108,0))),\"\")","v":""},null,false,{"$f":"IFERROR(IF(INDEX('LFA_Findings&Recommendations_6'!A$9:A$108,MATCH('LFA_Findings&Recom export'!$C6,'LFA_Findings&Recommendations_6'!$B$9:$B$108,0))=\"\",\"\",INDEX('LFA_Findings&Recommendations_6'!A$9:A$108,MATCH('LFA_Findings&Recom export'!$C6,'LFA_Findings&Recommendations_6'!$B$9:$B$108,0))),\"\")","v":false},{"$f":"IF(P6=TRUE,_xlfn.IFNA(VLOOKUP(D6,RiskData!$B$5:$D$11,3,FALSE), \"\"),\"\")","v":""},{"$f":"IF(P6=TRUE,_xlfn.IFNA(VLOOKUP(E6,RiskData!$F$13:$I$36,4,FALSE), \"\"),\"\")","v":""},{"$f":"IF(P6=TRUE,_xlfn.IFNA(INDEX(RiskData!$H$40:$H$290,MATCH(TRUE,INDEX(RIGHT(RiskData!$F$40:$F$290,255)=RIGHT(F6,255),0),0)), \"\"),\"\")","v":""},{"$f":"IF(OR(P6=TRUE,ISBLANK(D6)),'Admin Sheet'!$B$44,\"\")","v":""},{"$f":"IF(OR(ISBLANK(D6), P6=TRUE),'Admin Sheet'!$B$41,\"\")","v":""},"","","",""]
[null,4,"Finding4",{"$f":"IFERROR(IF(INDEX('LFA_Findings&Recommendations_6'!C$9:C$108,MATCH('LFA_Findings&Recom export'!$C7,'LFA_Findings&Recommendations_6'!$B$9:$B$108,0))=\"\",\"\",INDEX('LFA_Findings&Recommendations_6'!C$9:C$108,MATCH('LFA_Findings&Recom export'!$C7,'LFA_Findings&Recommendations_6'!$B$9:$B$108,0))),\"\")","v":""},{"$f":"IFERROR(IF(INDEX('LFA_Findings&Recommendations_6'!D$9:D$108,MATCH('LFA_Findings&Recom export'!$C7,'LFA_Findings&Recommendations_6'!$B$9:$B$108,0))=\"\",\"\",INDEX('LFA_Findings&Recommendations_6'!D$9:D$108,MATCH('LFA_Findings&Recom export'!$C7,'LFA_Findings&Recommendations_6'!$B$9:$B$108,0))),\"\")","v":""},{"$f":"IFERROR(IF(INDEX('LFA_Findings&Recommendations_6'!E$9:E$108,MATCH('LFA_Findings&Recom export'!$C7,'LFA_Findings&Recommendations_6'!$B$9:$B$108,0))=\"\",\"\",INDEX('LFA_Findings&Recommendations_6'!E$9:E$108,MATCH('LFA_Findings&Recom export'!$C7,'LFA_Findings&Recommendations_6'!$B$9:$B$108,0))),\"\")","v":""},{"$f":"IFERROR(IF(INDEX('LFA_Findings&Recommendations_6'!F$9:F$108,MATCH('LFA_Findings&Recom export'!$C7,'LFA_Findings&Recommendations_6'!$B$9:$B$108,0))=\"\",\"\",INDEX('LFA_Findings&Recommendations_6'!F$9:F$108,MATCH('LFA_Findings&Recom export'!$C7,'LFA_Findings&Recommendations_6'!$B$9:$B$108,0))),\"\")","v":""},{"$f":"IFERROR(IF(INDEX('LFA_Findings&Recommendations_6'!G$9:G$108,MATCH('LFA_Findings&Recom export'!$C7,'LFA_Findings&Recommendations_6'!$B$9:$B$108,0))=\"\",\"\",INDEX('LFA_Findings&Recommendations_6'!G$9:G$108,MATCH('LFA_Findings&Recom export'!$C7,'LFA_Findings&Recommendations_6'!$B$9:$B$108,0))),\"\")","v":""},{"$f":"IFERROR(IF(INDEX('LFA_Findings&Recommendations_6'!H$9:H$108,MATCH('LFA_Findings&Recom export'!$C7,'LFA_Findings&Recommendations_6'!$B$9:$B$108,0))=\"\",\"\",INDEX('LFA_Findings&Recommendations_6'!H$9:H$108,MATCH('LFA_Findings&Recom export'!$C7,'LFA_Findings&Recommendations_6'!$B$9:$B$108,0))),\"\")","v":""},{"$f":"IFERROR(IF(INDEX('LFA_Findings&Recommendations_6'!I$9:I$108,MATCH('LFA_Findings&Recom export'!$C7,'LFA_Findings&Recommendations_6'!$B$9:$B$108,0))=\"\",\"\",INDEX('LFA_Findings&Recommendations_6'!I$9:I$108,MATCH('LFA_Findings&Recom export'!$C7,'LFA_Findings&Recommendations_6'!$B$9:$B$108,0))),\"\")","v":""},{"$f":"IFERROR(IF(INDEX('LFA_Findings&Recommendations_6'!J$9:J$108,MATCH('LFA_Findings&Recom export'!$C7,'LFA_Findings&Recommendations_6'!$B$9:$B$108,0))=\"\",\"\",INDEX('LFA_Findings&Recommendations_6'!J$9:J$108,MATCH('LFA_Findings&Recom export'!$C7,'LFA_Findings&Recommendations_6'!$B$9:$B$108,0))),\"\")","v":""},{"$f":"IFERROR(IF(INDEX('LFA_Findings&Recommendations_6'!K$9:K$108,MATCH('LFA_Findings&Recom export'!$C7,'LFA_Findings&Recommendations_6'!$B$9:$B$108,0))=\"\",\"\",INDEX('LFA_Findings&Recommendations_6'!K$9:K$108,MATCH('LFA_Findings&Recom export'!$C7,'LFA_Findings&Recommendations_6'!$B$9:$B$108,0))),\"\")","v":""},{"$f":"IFERROR(IF(INDEX('LFA_Findings&Recommendations_6'!L$9:L$108,MATCH('LFA_Findings&Recom export'!$C7,'LFA_Findings&Recommendations_6'!$B$9:$B$108,0))=\"\",\"\",INDEX('LFA_Findings&Recommendations_6'!L$9:L$108,MATCH('LFA_Findings&Recom export'!$C7,'LFA_Findings&Recommendations_6'!$B$9:$B$108,0))),\"\")","v":""},null,false,{"$f":"IFERROR(IF(INDEX('LFA_Findings&Recommendations_6'!A$9:A$108,MATCH('LFA_Findings&Recom export'!$C7,'LFA_Findings&Recommendations_6'!$B$9:$B$108,0))=\"\",\"\",INDEX('LFA_Findings&Recommendations_6'!A$9:A$108,MATCH('LFA_Findings&Recom export'!$C7,'LFA_Findings&Recommendations_6'!$B$9:$B$108,0))),\"\")","v":false},{"$f":"IF(P7=TRUE,_xlfn.IFNA(VLOOKUP(D7,RiskData!$B$5:$D$11,3,FALSE), \"\"),\"\")","v":""},{"$f":"IF(P7=TRUE,_xlfn.IFNA(VLOOKUP(E7,RiskData!$F$13:$I$36,4,FALSE), \"\"),\"\")","v":""},{"$f":"IF(P7=TRUE,_xlfn.IFNA(INDEX(RiskData!$H$40:$H$290,MATCH(TRUE,INDEX(RIGHT(RiskData!$F$40:$F$290,255)=RIGHT(F7,255),0),0)), \"\"),\"\")","v":""},{"$f":"IF(OR(P7=TRUE,ISBLANK(D7)),'Admin Sheet'!$B$44,\"\")","v":""},{"$f":"IF(OR(ISBLANK(D7), P7=TRUE),'Admin Sheet'!$B$41,\"\")","v":""},"","","",""]
[null,5,"Finding5",{"$f":"IFERROR(IF(INDEX('LFA_Findings&Recommendations_6'!C$9:C$108,MATCH('LFA_Findings&Recom export'!$C8,'LFA_Findings&Recommendations_6'!$B$9:$B$108,0))=\"\",\"\",INDEX('LFA_Findings&Recommendations_6'!C$9:C$108,MATCH('LFA_Findings&Recom export'!$C8,'LFA_Findings&Recommendations_6'!$B$9:$B$108,0))),\"\")","v":""},{"$f":"IFERROR(IF(INDEX('LFA_Findings&Recommendations_6'!D$9:D$108,MATCH('LFA_Findings&Recom export'!$C8,'LFA_Findings&Recommendations_6'!$B$9:$B$108,0))=\"\",\"\",INDEX('LFA_Findings&Recommendations_6'!D$9:D$108,MATCH('LFA_Findings&Recom export'!$C8,'LFA_Findings&Recommendations_6'!$B$9:$B$108,0))),\"\")","v":""},{"$f":"IFERROR(IF(INDEX('LFA_Findings&Recommendations_6'!E$9:E$108,MATCH('LFA_Findings&Recom export'!$C8,'LFA_Findings&Recommendations_6'!$B$9:$B$108,0))=\"\",\"\",INDEX('LFA_Findings&Recommendations_6'!E$9:E$108,MATCH('LFA_Findings&Recom export'!$C8,'LFA_Findings&Recommendations_6'!$B$9:$B$108,0))),\"\")","v":""},{"$f":"IFERROR(IF(INDEX('LFA_Findings&Recommendations_6'!F$9:F$108,MATCH('LFA_Findings&Recom export'!$C8,'LFA_Findings&Recommendations_6'!$B$9:$B$108,0))=\"\",\"\",INDEX('LFA_Findings&Recommendations_6'!F$9:F$108,MATCH('LFA_Findings&Recom export'!$C8,'LFA_Findings&Recommendations_6'!$B$9:$B$108,0))),\"\")","v":""},{"$f":"IFERROR(IF(INDEX('LFA_Findings&Recommendations_6'!G$9:G$108,MATCH('LFA_Findings&Recom export'!$C8,'LFA_Findings&Recommendations_6'!$B$9:$B$108,0))=\"\",\"\",INDEX('LFA_Findings&Recommendations_6'!G$9:G$108,MATCH('LFA_Findings&Recom export'!$C8,'LFA_Findings&Recommendations_6'!$B$9:$B$108,0))),\"\")","v":""},{"$f":"IFERROR(IF(INDEX('LFA_Findings&Recommendations_6'!H$9:H$108,MATCH('LFA_Findings&Recom export'!$C8,'LFA_Findings&Recommendations_6'!$B$9:$B$108,0))=\"\",\"\",INDEX('LFA_Findings&Recommendations_6'!H$9:H$108,MATCH('LFA_Findings&Recom export'!$C8,'LFA_Findings&Recommendations_6'!$B$9:$B$108,0))),\"\")","v":""},{"$f":"IFERROR(IF(INDEX('LFA_Findings&Recommendations_6'!I$9:I$108,MATCH('LFA_Findings&Recom export'!$C8,'LFA_Findings&Recommendations_6'!$B$9:$B$108,0))=\"\",\"\",INDEX('LFA_Findings&Recommendations_6'!I$9:I$108,MATCH('LFA_Findings&Recom export'!$C8,'LFA_Findings&Recommendations_6'!$B$9:$B$108,0))),\"\")","v":""},{"$f":"IFERROR(IF(INDEX('LFA_Findings&Recommendations_6'!J$9:J$108,MATCH('LFA_Findings&Recom export'!$C8,'LFA_Findings&Recommendations_6'!$B$9:$B$108,0))=\"\",\"\",INDEX('LFA_Findings&Recommendations_6'!J$9:J$108,MATCH('LFA_Findings&Recom export'!$C8,'LFA_Findings&Recommendations_6'!$B$9:$B$108,0))),\"\")","v":""},{"$f":"IFERROR(IF(INDEX('LFA_Findings&Recommendations_6'!K$9:K$108,MATCH('LFA_Findings&Recom export'!$C8,'LFA_Findings&Recommendations_6'!$B$9:$B$108,0))=\"\",\"\",INDEX('LFA_Findings&Recommendations_6'!K$9:K$108,MATCH('LFA_Findings&Recom export'!$C8,'LFA_Findings&Recommendations_6'!$B$9:$B$108,0))),\"\")","v":""},{"$f":"IFERROR(IF(INDEX('LFA_Findings&Recommendations_6'!L$9:L$108,MATCH('LFA_Findings&Recom export'!$C8,'LFA_Findings&Recommendations_6'!$B$9:$B$108,0))=\"\",\"\",INDEX('LFA_Findings&Recommendations_6'!L$9:L$108,MATCH('LFA_Findings&Recom export'!$C8,'LFA_Findings&Recommendations_6'!$B$9:$B$108,0))),\"\")","v":""},null,false,{"$f":"IFERROR(IF(INDEX('LFA_Findings&Recommendations_6'!A$9:A$108,MATCH('LFA_Findings&Recom export'!$C8,'LFA_Findings&Recommendations_6'!$B$9:$B$108,0))=\"\",\"\",INDEX('LFA_Findings&Recommendations_6'!A$9:A$108,MATCH('LFA_Findings&Recom export'!$C8,'LFA_Findings&Recommendations_6'!$B$9:$B$108,0))),\"\")","v":false},{"$f":"IF(P8=TRUE,_xlfn.IFNA(VLOOKUP(D8,RiskData!$B$5:$D$11,3,FALSE), \"\"),\"\")","v":""},{"$f":"IF(P8=TRUE,_xlfn.IFNA(VLOOKUP(E8,RiskData!$F$13:$I$36,4,FALSE), \"\"),\"\")","v":""},{"$f":"IF(P8=TRUE,_xlfn.IFNA(INDEX(RiskData!$H$40:$H$290,MATCH(TRUE,INDEX(RIGHT(RiskData!$F$40:$F$290,255)=RIGHT(F8,255),0),0)), \"\"),\"\")","v":""},{"$f":"IF(OR(P8=TRUE,ISBLANK(D8)),'Admin Sheet'!$B$44,\"\")","v":""},{"$f":"IF(OR(ISBLANK(D8), P8=TRUE),'Admin Sheet'!$B$41,\"\")","v":""},"","","",""]
[null,6,"Finding6",{"$f":"IFERROR(IF(INDEX('LFA_Findings&Recommendations_6'!C$9:C$108,MATCH('LFA_Findings&Recom export'!$C9,'LFA_Findings&Recommendations_6'!$B$9:$B$108,0))=\"\",\"\",INDEX('LFA_Findings&Recommendations_6'!C$9:C$108,MATCH('LFA_Findings&Recom export'!$C9,'LFA_Findings&Recommendations_6'!$B$9:$B$108,0))),\"\")","v":""},{"$f":"IFERROR(IF(INDEX('LFA_Findings&Recommendations_6'!D$9:D$108,MATCH('LFA_Findings&Recom export'!$C9,'LFA_Findings&Recommendations_6'!$B$9:$B$108,0))=\"\",\"\",INDEX('LFA_Findings&Recommendations_6'!D$9:D$108,MATCH('LFA_Findings&Recom export'!$C9,'LFA_Findings&Recommendations_6'!$B$9:$B$108,0))),\"\")","v":""},{"$f":"IFERROR(IF(INDEX('LFA_Findings&Recommendations_6'!E$9:E$108,MATCH('LFA_Findings&Recom export'!$C9,'LFA_Findings&Recommendations_6'!$B$9:$B$108,0))=\"\",\"\",INDEX('LFA_Findings&Recommendations_6'!E$9:E$108,MATCH('LFA_Findings&Recom export'!$C9,'LFA_Findings&Recommendations_6'!$B$9:$B$108,0))),\"\")","v":""},{"$f":"IFERROR(IF(INDEX('LFA_Findings&Recommendations_6'!F$9:F$108,MATCH('LFA_Findings&Recom export'!$C9,'LFA_Findings&Recommendations_6'!$B$9:$B$108,0))=\"\",\"\",INDEX('LFA_Findings&Recommendations_6'!F$9:F$108,MATCH('LFA_Findings&Recom export'!$C9,'LFA_Findings&Recommendations_6'!$B$9:$B$108,0))),\"\")","v":""},{"$f":"IFERROR(IF(INDEX('LFA_Findings&Recommendations_6'!G$9:G$108,MATCH('LFA_Findings&Recom export'!$C9,'LFA_Findings&Recommendations_6'!$B$9:$B$108,0))=\"\",\"\",INDEX('LFA_Findings&Recommendations_6'!G$9:G$108,MATCH('LFA_Findings&Recom export'!$C9,'LFA_Findings&Recommendations_6'!$B$9:$B$108,0))),\"\")","v":""},{"$f":"IFERROR(IF(INDEX('LFA_Findings&Recommendations_6'!H$9:H$108,MATCH('LFA_Findings&Recom export'!$C9,'LFA_Findings&Recommendations_6'!$B$9:$B$108,0))=\"\",\"\",INDEX('LFA_Findings&Recommendations_6'!H$9:H$108,MATCH('LFA_Findings&Recom export'!$C9,'LFA_Findings&Recommendations_6'!$B$9:$B$108,0))),\"\")","v":""},{"$f":"IFERROR(IF(INDEX('LFA_Findings&Recommendations_6'!I$9:I$108,MATCH('LFA_Findings&Recom export'!$C9,'LFA_Findings&Recommendations_6'!$B$9:$B$108,0))=\"\",\"\",INDEX('LFA_Findings&Recommendations_6'!I$9:I$108,MATCH('LFA_Findings&Recom export'!$C9,'LFA_Findings&Recommendations_6'!$B$9:$B$108,0))),\"\")","v":""},{"$f":"IFERROR(IF(INDEX('LFA_Findings&Recommendations_6'!J$9:J$108,MATCH('LFA_Findings&Recom export'!$C9,'LFA_Findings&Recommendations_6'!$B$9:$B$108,0))=\"\",\"\",INDEX('LFA_Findings&Recommendations_6'!J$9:J$108,MATCH('LFA_Findings&Recom export'!$C9,'LFA_Findings&Recommendations_6'!$B$9:$B$108,0))),\"\")","v":""},{"$f":"IFERROR(IF(INDEX('LFA_Findings&Recommendations_6'!K$9:K$108,MATCH('LFA_Findings&Recom export'!$C9,'LFA_Findings&Recommendations_6'!$B$9:$B$108,0))=\"\",\"\",INDEX('LFA_Findings&Recommendations_6'!K$9:K$108,MATCH('LFA_Findings&Recom export'!$C9,'LFA_Findings&Recommendations_6'!$B$9:$B$108,0))),\"\")","v":""},{"$f":"IFERROR(IF(INDEX('LFA_Findings&Recommendations_6'!L$9:L$108,MATCH('LFA_Findings&Recom export'!$C9,'LFA_Findings&Recommendations_6'!$B$9:$B$108,0))=\"\",\"\",INDEX('LFA_Findings&Recommendations_6'!L$9:L$108,MATCH('LFA_Findings&Recom export'!$C9,'LFA_Findings&Recommendations_6'!$B$9:$B$108,0))),\"\")","v":""},null,false,{"$f":"IFERROR(IF(INDEX('LFA_Findings&Recommendations_6'!A$9:A$108,MATCH('LFA_Findings&Recom export'!$C9,'LFA_Findings&Recommendations_6'!$B$9:$B$108,0))=\"\",\"\",INDEX('LFA_Findings&Recommendations_6'!A$9:A$108,MATCH('LFA_Findings&Recom export'!$C9,'LFA_Findings&Recommendations_6'!$B$9:$B$108,0))),\"\")","v":false},{"$f":"IF(P9=TRUE,_xlfn.IFNA(VLOOKUP(D9,RiskData!$B$5:$D$11,3,FALSE), \"\"),\"\")","v":""},{"$f":"IF(P9=TRUE,_xlfn.IFNA(VLOOKUP(E9,RiskData!$F$13:$I$36,4,FALSE), \"\"),\"\")","v":""},{"$f":"IF(P9=TRUE,_xlfn.IFNA(INDEX(RiskData!$H$40:$H$290,MATCH(TRUE,INDEX(RIGHT(RiskData!$F$40:$F$290,255)=RIGHT(F9,255),0),0)), \"\"),\"\")","v":""},{"$f":"IF(OR(P9=TRUE,ISBLANK(D9)),'Admin Sheet'!$B$44,\"\")","v":""},{"$f":"IF(OR(ISBLANK(D9), P9=TRUE),'Admin Sheet'!$B$41,\"\")","v":""},"","","",""]
[null,7,"Finding7",{"$f":"IFERROR(IF(INDEX('LFA_Findings&Recommendations_6'!C$9:C$108,MATCH('LFA_Findings&Recom export'!$C10,'LFA_Findings&Recommendations_6'!$B$9:$B$108,0))=\"\",\"\",INDEX('LFA_Findings&Recommendations_6'!C$9:C$108,MATCH('LFA_Findings&Recom export'!$C10,'LFA_Findings&Recommendations_6'!$B$9:$B$108,0))),\"\")","v":""},{"$f":"IFERROR(IF(INDEX('LFA_Findings&Recommendations_6'!D$9:D$108,MATCH('LFA_Findings&Recom export'!$C10,'LFA_Findings&Recommendations_6'!$B$9:$B$108,0))=\"\",\"\",INDEX('LFA_Findings&Recommendations_6'!D$9:D$108,MATCH('LFA_Findings&Recom export'!$C10,'LFA_Findings&Recommendations_6'!$B$9:$B$108,0))),\"\")","v":""},{"$f":"IFERROR(IF(INDEX('LFA_Findings&Recommendations_6'!E$9:E$108,MATCH('LFA_Findings&Recom export'!$C10,'LFA_Findings&Recommendations_6'!$B$9:$B$108,0))=\"\",\"\",INDEX('LFA_Findings&Recommendations_6'!E$9:E$108,MATCH('LFA_Findings&Recom export'!$C10,'LFA_Findings&Recommendations_6'!$B$9:$B$108,0))),\"\")","v":""},{"$f":"IFERROR(IF(INDEX('LFA_Findings&Recommendations_6'!F$9:F$108,MATCH('LFA_Findings&Recom export'!$C10,'LFA_Findings&Recommendations_6'!$B$9:$B$108,0))=\"\",\"\",INDEX('LFA_Findings&Recommendations_6'!F$9:F$108,MATCH('LFA_Findings&Recom export'!$C10,'LFA_Findings&Recommendations_6'!$B$9:$B$108,0))),\"\")","v":""},{"$f":"IFERROR(IF(INDEX('LFA_Findings&Recommendations_6'!G$9:G$108,MATCH('LFA_Findings&Recom export'!$C10,'LFA_Findings&Recommendations_6'!$B$9:$B$108,0))=\"\",\"\",INDEX('LFA_Findings&Recommendations_6'!G$9:G$108,MATCH('LFA_Findings&Recom export'!$C10,'LFA_Findings&Recommendations_6'!$B$9:$B$108,0))),\"\")","v":""},{"$f":"IFERROR(IF(INDEX('LFA_Findings&Recommendations_6'!H$9:H$108,MATCH('LFA_Findings&Recom export'!$C10,'LFA_Findings&Recommendations_6'!$B$9:$B$108,0))=\"\",\"\",INDEX('LFA_Findings&Recommendations_6'!H$9:H$108,MATCH('LFA_Findings&Recom export'!$C10,'LFA_Findings&Recommendations_6'!$B$9:$B$108,0))),\"\")","v":""},{"$f":"IFERROR(IF(INDEX('LFA_Findings&Recommendations_6'!I$9:I$108,MATCH('LFA_Findings&Recom export'!$C10,'LFA_Findings&Recommendations_6'!$B$9:$B$108,0))=\"\",\"\",INDEX('LFA_Findings&Recommendations_6'!I$9:I$108,MATCH('LFA_Findings&Recom export'!$C10,'LFA_Findings&Recommendations_6'!$B$9:$B$108,0))),\"\")","v":""},{"$f":"IFERROR(IF(INDEX('LFA_Findings&Recommendations_6'!J$9:J$108,MATCH('LFA_Findings&Recom export'!$C10,'LFA_Findings&Recommendations_6'!$B$9:$B$108,0))=\"\",\"\",INDEX('LFA_Findings&Recommendations_6'!J$9:J$108,MATCH('LFA_Findings&Recom export'!$C10,'LFA_Findings&Recommendations_6'!$B$9:$B$108,0))),\"\")","v":""},{"$f":"IFERROR(IF(INDEX('LFA_Findings&Recommendations_6'!K$9:K$108,MATCH('LFA_Findings&Recom export'!$C10,'LFA_Findings&Recommendations_6'!$B$9:$B$108,0))=\"\",\"\",INDEX('LFA_Findings&Recommendations_6'!K$9:K$108,MATCH('LFA_Findings&Recom export'!$C10,'LFA_Findings&Recommendations_6'!$B$9:$B$108,0))),\"\")","v":""},{"$f":"IFERROR(IF(INDEX('LFA_Findings&Recommendations_6'!L$9:L$108,MATCH('LFA_Findings&Recom export'!$C10,'LFA_Findings&Recommendations_6'!$B$9:$B$108,0))=\"\",\"\",INDEX('LFA_Findings&Recommendations_6'!L$9:L$108,MATCH('LFA_Findings&Recom export'!$C10,'LFA_Findings&Recommendations_6'!$B$9:$B$108,0))),\"\")","v":""},null,false,{"$f":"IFERROR(IF(INDEX('LFA_Findings&Recommendations_6'!A$9:A$108,MATCH('LFA_Findings&Recom export'!$C10,'LFA_Findings&Recommendations_6'!$B$9:$B$108,0))=\"\",\"\",INDEX('LFA_Findings&Recommendations_6'!A$9:A$108,MATCH('LFA_Findings&Recom export'!$C10,'LFA_Findings&Recommendations_6'!$B$9:$B$108,0))),\"\")","v":false},{"$f":"IF(P10=TRUE,_xlfn.IFNA(VLOOKUP(D10,RiskData!$B$5:$D$11,3,FALSE), \"\"),\"\")","v":""},{"$f":"IF(P10=TRUE,_xlfn.IFNA(VLOOKUP(E10,RiskData!$F$13:$I$36,4,FALSE), \"\"),\"\")","v":""},{"$f":"IF(P10=TRUE,_xlfn.IFNA(INDEX(RiskData!$H$40:$H$290,MATCH(TRUE,INDEX(RIGHT(RiskData!$F$40:$F$290,255)=RIGHT(F10,255),0),0)), \"\"),\"\")","v":""},{"$f":"IF(OR(P10=TRUE,ISBLANK(D10)),'Admin Sheet'!$B$44,\"\")","v":""},{"$f":"IF(OR(ISBLANK(D10), P10=TRUE),'Admin Sheet'!$B$41,\"\")","v":""},"","","",""]
[null,8,"Finding8",{"$f":"IFERROR(IF(INDEX('LFA_Findings&Recommendations_6'!C$9:C$108,MATCH('LFA_Findings&Recom export'!$C11,'LFA_Findings&Recommendations_6'!$B$9:$B$108,0))=\"\",\"\",INDEX('LFA_Findings&Recommendations_6'!C$9:C$108,MATCH('LFA_Findings&Recom export'!$C11,'LFA_Findings&Recommendations_6'!$B$9:$B$108,0))),\"\")","v":""},{"$f":"IFERROR(IF(INDEX('LFA_Findings&Recommendations_6'!D$9:D$108,MATCH('LFA_Findings&Recom export'!$C11,'LFA_Findings&Recommendations_6'!$B$9:$B$108,0))=\"\",\"\",INDEX('LFA_Findings&Recommendations_6'!D$9:D$108,MATCH('LFA_Findings&Recom export'!$C11,'LFA_Findings&Recommendations_6'!$B$9:$B$108,0))),\"\")","v":""},{"$f":"IFERROR(IF(INDEX('LFA_Findings&Recommendations_6'!E$9:E$108,MATCH('LFA_Findings&Recom export'!$C11,'LFA_Findings&Recommendations_6'!$B$9:$B$108,0))=\"\",\"\",INDEX('LFA_Findings&Recommendations_6'!E$9:E$108,MATCH('LFA_Findings&Recom export'!$C11,'LFA_Findings&Recommendations_6'!$B$9:$B$108,0))),\"\")","v":""},{"$f":"IFERROR(IF(INDEX('LFA_Findings&Recommendations_6'!F$9:F$108,MATCH('LFA_Findings&Recom export'!$C11,'LFA_Findings&Recommendations_6'!$B$9:$B$108,0))=\"\",\"\",INDEX('LFA_Findings&Recommendations_6'!F$9:F$108,MATCH('LFA_Findings&Recom export'!$C11,'LFA_Findings&Recommendations_6'!$B$9:$B$108,0))),\"\")","v":""},{"$f":"IFERROR(IF(INDEX('LFA_Findings&Recommendations_6'!G$9:G$108,MATCH('LFA_Findings&Recom export'!$C11,'LFA_Findings&Recommendations_6'!$B$9:$B$108,0))=\"\",\"\",INDEX('LFA_Findings&Recommendations_6'!G$9:G$108,MATCH('LFA_Findings&Recom export'!$C11,'LFA_Findings&Recommendations_6'!$B$9:$B$108,0))),\"\")","v":""},{"$f":"IFERROR(IF(INDEX('LFA_Findings&Recommendations_6'!H$9:H$108,MATCH('LFA_Findings&Recom export'!$C11,'LFA_Findings&Recommendations_6'!$B$9:$B$108,0))=\"\",\"\",INDEX('LFA_Findings&Recommendations_6'!H$9:H$108,MATCH('LFA_Findings&Recom export'!$C11,'LFA_Findings&Recommendations_6'!$B$9:$B$108,0))),\"\")","v":""},{"$f":"IFERROR(IF(INDEX('LFA_Findings&Recommendations_6'!I$9:I$108,MATCH('LFA_Findings&Recom export'!$C11,'LFA_Findings&Recommendations_6'!$B$9:$B$108,0))=\"\",\"\",INDEX('LFA_Findings&Recommendations_6'!I$9:I$108,MATCH('LFA_Findings&Recom export'!$C11,'LFA_Findings&Recommendations_6'!$B$9:$B$108,0))),\"\")","v":""},{"$f":"IFERROR(IF(INDEX('LFA_Findings&Recommendations_6'!J$9:J$108,MATCH('LFA_Findings&Recom export'!$C11,'LFA_Findings&Recommendations_6'!$B$9:$B$108,0))=\"\",\"\",INDEX('LFA_Findings&Recommendations_6'!J$9:J$108,MATCH('LFA_Findings&Recom export'!$C11,'LFA_Findings&Recommendations_6'!$B$9:$B$108,0))),\"\")","v":""},{"$f":"IFERROR(IF(INDEX('LFA_Findings&Recommendations_6'!K$9:K$108,MATCH('LFA_Findings&Recom export'!$C11,'LFA_Findings&Recommendations_6'!$B$9:$B$108,0))=\"\",\"\",INDEX('LFA_Findings&Recommendations_6'!K$9:K$108,MATCH('LFA_Findings&Recom export'!$C11,'LFA_Findings&Recommendations_6'!$B$9:$B$108,0))),\"\")","v":""},{"$f":"IFERROR(IF(INDEX('LFA_Findings&Recommendations_6'!L$9:L$108,MATCH('LFA_Findings&Recom export'!$C11,'LFA_Findings&Recommendations_6'!$B$9:$B$108,0))=\"\",\"\",INDEX('LFA_Findings&Recommendations_6'!L$9:L$108,MATCH('LFA_Findings&Recom export'!$C11,'LFA_Findings&Recommendations_6'!$B$9:$B$108,0))),\"\")","v":""},null,false,{"$f":"IFERROR(IF(INDEX('LFA_Findings&Recommendations_6'!A$9:A$108,MATCH('LFA_Findings&Recom export'!$C11,'LFA_Findings&Recommendations_6'!$B$9:$B$108,0))=\"\",\"\",INDEX('LFA_Findings&Recommendations_6'!A$9:A$108,MATCH('LFA_Findings&Recom export'!$C11,'LFA_Findings&Recommendations_6'!$B$9:$B$108,0))),\"\")","v":false},{"$f":"IF(P11=TRUE,_xlfn.IFNA(VLOOKUP(D11,RiskData!$B$5:$D$11,3,FALSE), \"\"),\"\")","v":""},{"$f":"IF(P11=TRUE,_xlfn.IFNA(VLOOKUP(E11,RiskData!$F$13:$I$36,4,FALSE), \"\"),\"\")","v":""},{"$f":"IF(P11=TRUE,_xlfn.IFNA(INDEX(RiskData!$H$40:$H$290,MATCH(TRUE,INDEX(RIGHT(RiskData!$F$40:$F$290,255)=RIGHT(F11,255),0),0)), \"\"),\"\")","v":""},{"$f":"IF(OR(P11=TRUE,ISBLANK(D11)),'Admin Sheet'!$B$44,\"\")","v":""},{"$f":"IF(OR(ISBLANK(D11), P11=TRUE),'Admin Sheet'!$B$41,\"\")","v":""},"","","",""]
[null,9,"Finding9",{"$f":"IFERROR(IF(INDEX('LFA_Findings&Recommendations_6'!C$9:C$108,MATCH('LFA_Findings&Recom export'!$C12,'LFA_Findings&Recommendations_6'!$B$9:$B$108,0))=\"\",\"\",INDEX('LFA_Findings&Recommendations_6'!C$9:C$108,MATCH('LFA_Findings&Recom export'!$C12,'LFA_Findings&Recommendations_6'!$B$9:$B$108,0))),\"\")","v":""},{"$f":"IFERROR(IF(INDEX('LFA_Findings&Recommendations_6'!D$9:D$108,MATCH('LFA_Findings&Recom export'!$C12,'LFA_Findings&Recommendations_6'!$B$9:$B$108,0))=\"\",\"\",INDEX('LFA_Findings&Recommendations_6'!D$9:D$108,MATCH('LFA_Findings&Recom export'!$C12,'LFA_Findings&Recommendations_6'!$B$9:$B$108,0))),\"\")","v":""},{"$f":"IFERROR(IF(INDEX('LFA_Findings&Recommendations_6'!E$9:E$108,MATCH('LFA_Findings&Recom export'!$C12,'LFA_Findings&Recommendations_6'!$B$9:$B$108,0))=\"\",\"\",INDEX('LFA_Findings&Recommendations_6'!E$9:E$108,MATCH('LFA_Findings&Recom export'!$C12,'LFA_Findings&Recommendations_6'!$B$9:$B$108,0))),\"\")","v":""},{"$f":"IFERROR(IF(INDEX('LFA_Findings&Recommendations_6'!F$9:F$108,MATCH('LFA_Findings&Recom export'!$C12,'LFA_Findings&Recommendations_6'!$B$9:$B$108,0))=\"\",\"\",INDEX('LFA_Findings&Recommendations_6'!F$9:F$108,MATCH('LFA_Findings&Recom export'!$C12,'LFA_Findings&Recommendations_6'!$B$9:$B$108,0))),\"\")","v":""},{"$f":"IFERROR(IF(INDEX('LFA_Findings&Recommendations_6'!G$9:G$108,MATCH('LFA_Findings&Recom export'!$C12,'LFA_Findings&Recommendations_6'!$B$9:$B$108,0))=\"\",\"\",INDEX('LFA_Findings&Recommendations_6'!G$9:G$108,MATCH('LFA_Findings&Recom export'!$C12,'LFA_Findings&Recommendations_6'!$B$9:$B$108,0))),\"\")","v":""},{"$f":"IFERROR(IF(INDEX('LFA_Findings&Recommendations_6'!H$9:H$108,MATCH('LFA_Findings&Recom export'!$C12,'LFA_Findings&Recommendations_6'!$B$9:$B$108,0))=\"\",\"\",INDEX('LFA_Findings&Recommendations_6'!H$9:H$108,MATCH('LFA_Findings&Recom export'!$C12,'LFA_Findings&Recommendations_6'!$B$9:$B$108,0))),\"\")","v":""},{"$f":"IFERROR(IF(INDEX('LFA_Findings&Recommendations_6'!I$9:I$108,MATCH('LFA_Findings&Recom export'!$C12,'LFA_Findings&Recommendations_6'!$B$9:$B$108,0))=\"\",\"\",INDEX('LFA_Findings&Recommendations_6'!I$9:I$108,MATCH('LFA_Findings&Recom export'!$C12,'LFA_Findings&Recommendations_6'!$B$9:$B$108,0))),\"\")","v":""},{"$f":"IFERROR(IF(INDEX('LFA_Findings&Recommendations_6'!J$9:J$108,MATCH('LFA_Findings&Recom export'!$C12,'LFA_Findings&Recommendations_6'!$B$9:$B$108,0))=\"\",\"\",INDEX('LFA_Findings&Recommendations_6'!J$9:J$108,MATCH('LFA_Findings&Recom export'!$C12,'LFA_Findings&Recommendations_6'!$B$9:$B$108,0))),\"\")","v":""},{"$f":"IFERROR(IF(INDEX('LFA_Findings&Recommendations_6'!K$9:K$108,MATCH('LFA_Findings&Recom export'!$C12,'LFA_Findings&Recommendations_6'!$B$9:$B$108,0))=\"\",\"\",INDEX('LFA_Findings&Recommendations_6'!K$9:K$108,MATCH('LFA_Findings&Recom export'!$C12,'LFA_Findings&Recommendations_6'!$B$9:$B$108,0))),\"\")","v":""},{"$f":"IFERROR(IF(INDEX('LFA_Findings&Recommendations_6'!L$9:L$108,MATCH('LFA_Findings&Recom export'!$C12,'LFA_Findings&Recommendations_6'!$B$9:$B$108,0))=\"\",\"\",INDEX('LFA_Findings&Recommendations_6'!L$9:L$108,MATCH('LFA_Findings&Recom export'!$C12,'LFA_Findings&Recommendations_6'!$B$9:$B$108,0))),\"\")","v":""},null,false,{"$f":"IFERROR(IF(INDEX('LFA_Findings&Recommendations_6'!A$9:A$108,MATCH('LFA_Findings&Recom export'!$C12,'LFA_Findings&Recommendations_6'!$B$9:$B$108,0))=\"\",\"\",INDEX('LFA_Findings&Recommendations_6'!A$9:A$108,MATCH('LFA_Findings&Recom export'!$C12,'LFA_Findings&Recommendations_6'!$B$9:$B$108,0))),\"\")","v":false},{"$f":"IF(P12=TRUE,_xlfn.IFNA(VLOOKUP(D12,RiskData!$B$5:$D$11,3,FALSE), \"\"),\"\")","v":""},{"$f":"IF(P12=TRUE,_xlfn.IFNA(VLOOKUP(E12,RiskData!$F$13:$I$36,4,FALSE), \"\"),\"\")","v":""},{"$f":"IF(P12=TRUE,_xlfn.IFNA(INDEX(RiskData!$H$40:$H$290,MATCH(TRUE,INDEX(RIGHT(RiskData!$F$40:$F$290,255)=RIGHT(F12,255),0),0)), \"\"),\"\")","v":""},{"$f":"IF(OR(P12=TRUE,ISBLANK(D12)),'Admin Sheet'!$B$44,\"\")","v":""},{"$f":"IF(OR(ISBLANK(D12), P12=TRUE),'Admin Sheet'!$B$41,\"\")","v":""},"","","",""]
[null,10,"Finding10",{"$f":"IFERROR(IF(INDEX('LFA_Findings&Recommendations_6'!C$9:C$108,MATCH('LFA_Findings&Recom export'!$C13,'LFA_Findings&Recommendations_6'!$B$9:$B$108,0))=\"\",\"\",INDEX('LFA_Findings&Recommendations_6'!C$9:C$108,MATCH('LFA_Findings&Recom export'!$C13,'LFA_Findings&Recommendations_6'!$B$9:$B$108,0))),\"\")","v":""},{"$f":"IFERROR(IF(INDEX('LFA_Findings&Recommendations_6'!D$9:D$108,MATCH('LFA_Findings&Recom export'!$C13,'LFA_Findings&Recommendations_6'!$B$9:$B$108,0))=\"\",\"\",INDEX('LFA_Findings&Recommendations_6'!D$9:D$108,MATCH('LFA_Findings&Recom export'!$C13,'LFA_Findings&Recommendations_6'!$B$9:$B$108,0))),\"\")","v":""},{"$f":"IFERROR(IF(INDEX('LFA_Findings&Recommendations_6'!E$9:E$108,MATCH('LFA_Findings&Recom export'!$C13,'LFA_Findings&Recommendations_6'!$B$9:$B$108,0))=\"\",\"\",INDEX('LFA_Findings&Recommendations_6'!E$9:E$108,MATCH('LFA_Findings&Recom export'!$C13,'LFA_Findings&Recommendations_6'!$B$9:$B$108,0))),\"\")","v":""},{"$f":"IFERROR(IF(INDEX('LFA_Findings&Recommendations_6'!F$9:F$108,MATCH('LFA_Findings&Recom export'!$C13,'LFA_Findings&Recommendations_6'!$B$9:$B$108,0))=\"\",\"\",INDEX('LFA_Findings&Recommendations_6'!F$9:F$108,MATCH('LFA_Findings&Recom export'!$C13,'LFA_Findings&Recommendations_6'!$B$9:$B$108,0))),\"\")","v":""},{"$f":"IFERROR(IF(INDEX('LFA_Findings&Recommendations_6'!G$9:G$108,MATCH('LFA_Findings&Recom export'!$C13,'LFA_Findings&Recommendations_6'!$B$9:$B$108,0))=\"\",\"\",INDEX('LFA_Findings&Recommendations_6'!G$9:G$108,MATCH('LFA_Findings&Recom export'!$C13,'LFA_Findings&Recommendations_6'!$B$9:$B$108,0))),\"\")","v":""},{"$f":"IFERROR(IF(INDEX('LFA_Findings&Recommendations_6'!H$9:H$108,MATCH('LFA_Findings&Recom export'!$C13,'LFA_Findings&Recommendations_6'!$B$9:$B$108,0))=\"\",\"\",INDEX('LFA_Findings&Recommendations_6'!H$9:H$108,MATCH('LFA_Findings&Recom export'!$C13,'LFA_Findings&Recommendations_6'!$B$9:$B$108,0))),\"\")","v":""},{"$f":"IFERROR(IF(INDEX('LFA_Findings&Recommendations_6'!I$9:I$108,MATCH('LFA_Findings&Recom export'!$C13,'LFA_Findings&Recommendations_6'!$B$9:$B$108,0))=\"\",\"\",INDEX('LFA_Findings&Recommendations_6'!I$9:I$108,MATCH('LFA_Findings&Recom export'!$C13,'LFA_Findings&Recommendations_6'!$B$9:$B$108,0))),\"\")","v":""},{"$f":"IFERROR(IF(INDEX('LFA_Findings&Recommendations_6'!J$9:J$108,MATCH('LFA_Findings&Recom export'!$C13,'LFA_Findings&Recommendations_6'!$B$9:$B$108,0))=\"\",\"\",INDEX('LFA_Findings&Recommendations_6'!J$9:J$108,MATCH('LFA_Findings&Recom export'!$C13,'LFA_Findings&Recommendations_6'!$B$9:$B$108,0))),\"\")","v":""},{"$f":"IFERROR(IF(INDEX('LFA_Findings&Recommendations_6'!K$9:K$108,MATCH('LFA_Findings&Recom export'!$C13,'LFA_Findings&Recommendations_6'!$B$9:$B$108,0))=\"\",\"\",INDEX('LFA_Findings&Recommendations_6'!K$9:K$108,MATCH('LFA_Findings&Recom export'!$C13,'LFA_Findings&Recommendations_6'!$B$9:$B$108,0))),\"\")","v":""},{"$f":"IFERROR(IF(INDEX('LFA_Findings&Recommendations_6'!L$9:L$108,MATCH('LFA_Findings&Recom export'!$C13,'LFA_Findings&Recommendations_6'!$B$9:$B$108,0))=\"\",\"\",INDEX('LFA_Findings&Recommendations_6'!L$9:L$108,MATCH('LFA_Findings&Recom export'!$C13,'LFA_Findings&Recommendations_6'!$B$9:$B$108,0))),\"\")","v":""},null,false,{"$f":"IFERROR(IF(INDEX('LFA_Findings&Recommendations_6'!A$9:A$108,MATCH('LFA_Findings&Recom export'!$C13,'LFA_Findings&Recommendations_6'!$B$9:$B$108,0))=\"\",\"\",INDEX('LFA_Findings&Recommendations_6'!A$9:A$108,MATCH('LFA_Findings&Recom export'!$C13,'LFA_Findings&Recommendations_6'!$B$9:$B$108,0))),\"\")","v":false},{"$f":"IF(P13=TRUE,_xlfn.IFNA(VLOOKUP(D13,RiskData!$B$5:$D$11,3,FALSE), \"\"),\"\")","v":""},{"$f":"IF(P13=TRUE,_xlfn.IFNA(VLOOKUP(E13,RiskData!$F$13:$I$36,4,FALSE), \"\"),\"\")","v":""},{"$f":"IF(P13=TRUE,_xlfn.IFNA(INDEX(RiskData!$H$40:$H$290,MATCH(TRUE,INDEX(RIGHT(RiskData!$F$40:$F$290,255)=RIGHT(F13,255),0),0)), \"\"),\"\")","v":""},{"$f":"IF(OR(P13=TRUE,ISBLANK(D13)),'Admin Sheet'!$B$44,\"\")","v":""},{"$f":"IF(OR(ISBLANK(D13), P13=TRUE),'Admin Sheet'!$B$41,\"\")","v":""},"","","",""]
[null,11,"Finding11",{"$f":"IFERROR(IF(INDEX('LFA_Findings&Recommendations_6'!C$9:C$108,MATCH('LFA_Findings&Recom export'!$C14,'LFA_Findings&Recommendations_6'!$B$9:$B$108,0))=\"\",\"\",INDEX('LFA_Findings&Recommendations_6'!C$9:C$108,MATCH('LFA_Findings&Recom export'!$C14,'LFA_Findings&Recommendations_6'!$B$9:$B$108,0))),\"\")","v":""},{"$f":"IFERROR(IF(INDEX('LFA_Findings&Recommendations_6'!D$9:D$108,MATCH('LFA_Findings&Recom export'!$C14,'LFA_Findings&Recommendations_6'!$B$9:$B$108,0))=\"\",\"\",INDEX('LFA_Findings&Recommendations_6'!D$9:D$108,MATCH('LFA_Findings&Recom export'!$C14,'LFA_Findings&Recommendations_6'!$B$9:$B$108,0))),\"\")","v":""},{"$f":"IFERROR(IF(INDEX('LFA_Findings&Recommendations_6'!E$9:E$108,MATCH('LFA_Findings&Recom export'!$C14,'LFA_Findings&Recommendations_6'!$B$9:$B$108,0))=\"\",\"\",INDEX('LFA_Findings&Recommendations_6'!E$9:E$108,MATCH('LFA_Findings&Recom export'!$C14,'LFA_Findings&Recommendations_6'!$B$9:$B$108,0))),\"\")","v":""},{"$f":"IFERROR(IF(INDEX('LFA_Findings&Recommendations_6'!F$9:F$108,MATCH('LFA_Findings&Recom export'!$C14,'LFA_Findings&Recommendations_6'!$B$9:$B$108,0))=\"\",\"\",INDEX('LFA_Findings&Recommendations_6'!F$9:F$108,MATCH('LFA_Findings&Recom export'!$C14,'LFA_Findings&Recommendations_6'!$B$9:$B$108,0))),\"\")","v":""},{"$f":"IFERROR(IF(INDEX('LFA_Findings&Recommendations_6'!G$9:G$108,MATCH('LFA_Findings&Recom export'!$C14,'LFA_Findings&Recommendations_6'!$B$9:$B$108,0))=\"\",\"\",INDEX('LFA_Findings&Recommendations_6'!G$9:G$108,MATCH('LFA_Findings&Recom export'!$C14,'LFA_Findings&Recommendations_6'!$B$9:$B$108,0))),\"\")","v":""},{"$f":"IFERROR(IF(INDEX('LFA_Findings&Recommendations_6'!H$9:H$108,MATCH('LFA_Findings&Recom export'!$C14,'LFA_Findings&Recommendations_6'!$B$9:$B$108,0))=\"\",\"\",INDEX('LFA_Findings&Recommendations_6'!H$9:H$108,MATCH('LFA_Findings&Recom export'!$C14,'LFA_Findings&Recommendations_6'!$B$9:$B$108,0))),\"\")","v":""},{"$f":"IFERROR(IF(INDEX('LFA_Findings&Recommendations_6'!I$9:I$108,MATCH('LFA_Findings&Recom export'!$C14,'LFA_Findings&Recommendations_6'!$B$9:$B$108,0))=\"\",\"\",INDEX('LFA_Findings&Recommendations_6'!I$9:I$108,MATCH('LFA_Findings&Recom export'!$C14,'LFA_Findings&Recommendations_6'!$B$9:$B$108,0))),\"\")","v":""},{"$f":"IFERROR(IF(INDEX('LFA_Findings&Recommendations_6'!J$9:J$108,MATCH('LFA_Findings&Recom export'!$C14,'LFA_Findings&Recommendations_6'!$B$9:$B$108,0))=\"\",\"\",INDEX('LFA_Findings&Recommendations_6'!J$9:J$108,MATCH('LFA_Findings&Recom export'!$C14,'LFA_Findings&Recommendations_6'!$B$9:$B$108,0))),\"\")","v":""},{"$f":"IFERROR(IF(INDEX('LFA_Findings&Recommendations_6'!K$9:K$108,MATCH('LFA_Findings&Recom export'!$C14,'LFA_Findings&Recommendations_6'!$B$9:$B$108,0))=\"\",\"\",INDEX('LFA_Findings&Recommendations_6'!K$9:K$108,MATCH('LFA_Findings&Recom export'!$C14,'LFA_Findings&Recommendations_6'!$B$9:$B$108,0))),\"\")","v":""},{"$f":"IFERROR(IF(INDEX('LFA_Findings&Recommendations_6'!L$9:L$108,MATCH('LFA_Findings&Recom export'!$C14,'LFA_Findings&Recommendations_6'!$B$9:$B$108,0))=\"\",\"\",INDEX('LFA_Findings&Recommendations_6'!L$9:L$108,MATCH('LFA_Findings&Recom export'!$C14,'LFA_Findings&Recommendations_6'!$B$9:$B$108,0))),\"\")","v":""},null,false,{"$f":"IFERROR(IF(INDEX('LFA_Findings&Recommendations_6'!A$9:A$108,MATCH('LFA_Findings&Recom export'!$C14,'LFA_Findings&Recommendations_6'!$B$9:$B$108,0))=\"\",\"\",INDEX('LFA_Findings&Recommendations_6'!A$9:A$108,MATCH('LFA_Findings&Recom export'!$C14,'LFA_Findings&Recommendations_6'!$B$9:$B$108,0))),\"\")","v":false},{"$f":"IF(P14=TRUE,_xlfn.IFNA(VLOOKUP(D14,RiskData!$B$5:$D$11,3,FALSE), \"\"),\"\")","v":""},{"$f":"IF(P14=TRUE,_xlfn.IFNA(VLOOKUP(E14,RiskData!$F$13:$I$36,4,FALSE), \"\"),\"\")","v":""},{"$f":"IF(P14=TRUE,_xlfn.IFNA(INDEX(RiskData!$H$40:$H$290,MATCH(TRUE,INDEX(RIGHT(RiskData!$F$40:$F$290,255)=RIGHT(F14,255),0),0)), \"\"),\"\")","v":""},{"$f":"IF(OR(P14=TRUE,ISBLANK(D14)),'Admin Sheet'!$B$44,\"\")","v":""},{"$f":"IF(OR(ISBLANK(D14), P14=TRUE),'Admin Sheet'!$B$41,\"\")","v":""},"","","",""]
[null,12,"Finding12",{"$f":"IFERROR(IF(INDEX('LFA_Findings&Recommendations_6'!C$9:C$108,MATCH('LFA_Findings&Recom export'!$C15,'LFA_Findings&Recommendations_6'!$B$9:$B$108,0))=\"\",\"\",INDEX('LFA_Findings&Recommendations_6'!C$9:C$108,MATCH('LFA_Findings&Recom export'!$C15,'LFA_Findings&Recommendations_6'!$B$9:$B$108,0))),\"\")","v":""},{"$f":"IFERROR(IF(INDEX('LFA_Findings&Recommendations_6'!D$9:D$108,MATCH('LFA_Findings&Recom export'!$C15,'LFA_Findings&Recommendations_6'!$B$9:$B$108,0))=\"\",\"\",INDEX('LFA_Findings&Recommendations_6'!D$9:D$108,MATCH('LFA_Findings&Recom export'!$C15,'LFA_Findings&Recommendations_6'!$B$9:$B$108,0))),\"\")","v":""},{"$f":"IFERROR(IF(INDEX('LFA_Findings&Recommendations_6'!E$9:E$108,MATCH('LFA_Findings&Recom export'!$C15,'LFA_Findings&Recommendations_6'!$B$9:$B$108,0))=\"\",\"\",INDEX('LFA_Findings&Recommendations_6'!E$9:E$108,MATCH('LFA_Findings&Recom export'!$C15,'LFA_Findings&Recommendations_6'!$B$9:$B$108,0))),\"\")","v":""},{"$f":"IFERROR(IF(INDEX('LFA_Findings&Recommendations_6'!F$9:F$108,MATCH('LFA_Findings&Recom export'!$C15,'LFA_Findings&Recommendations_6'!$B$9:$B$108,0))=\"\",\"\",INDEX('LFA_Findings&Recommendations_6'!F$9:F$108,MATCH('LFA_Findings&Recom export'!$C15,'LFA_Findings&Recommendations_6'!$B$9:$B$108,0))),\"\")","v":""},{"$f":"IFERROR(IF(INDEX('LFA_Findings&Recommendations_6'!G$9:G$108,MATCH('LFA_Findings&Recom export'!$C15,'LFA_Findings&Recommendations_6'!$B$9:$B$108,0))=\"\",\"\",INDEX('LFA_Findings&Recommendations_6'!G$9:G$108,MATCH('LFA_Findings&Recom export'!$C15,'LFA_Findings&Recommendations_6'!$B$9:$B$108,0))),\"\")","v":""},{"$f":"IFERROR(IF(INDEX('LFA_Findings&Recommendations_6'!H$9:H$108,MATCH('LFA_Findings&Recom export'!$C15,'LFA_Findings&Recommendations_6'!$B$9:$B$108,0))=\"\",\"\",INDEX('LFA_Findings&Recommendations_6'!H$9:H$108,MATCH('LFA_Findings&Recom export'!$C15,'LFA_Findings&Recommendations_6'!$B$9:$B$108,0))),\"\")","v":""},{"$f":"IFERROR(IF(INDEX('LFA_Findings&Recommendations_6'!I$9:I$108,MATCH('LFA_Findings&Recom export'!$C15,'LFA_Findings&Recommendations_6'!$B$9:$B$108,0))=\"\",\"\",INDEX('LFA_Findings&Recommendations_6'!I$9:I$108,MATCH('LFA_Findings&Recom export'!$C15,'LFA_Findings&Recommendations_6'!$B$9:$B$108,0))),\"\")","v":""},{"$f":"IFERROR(IF(INDEX('LFA_Findings&Recommendations_6'!J$9:J$108,MATCH('LFA_Findings&Recom export'!$C15,'LFA_Findings&Recommendations_6'!$B$9:$B$108,0))=\"\",\"\",INDEX('LFA_Findings&Recommendations_6'!J$9:J$108,MATCH('LFA_Findings&Recom export'!$C15,'LFA_Findings&Recommendations_6'!$B$9:$B$108,0))),\"\")","v":""},{"$f":"IFERROR(IF(INDEX('LFA_Findings&Recommendations_6'!K$9:K$108,MATCH('LFA_Findings&Recom export'!$C15,'LFA_Findings&Recommendations_6'!$B$9:$B$108,0))=\"\",\"\",INDEX('LFA_Findings&Recommendations_6'!K$9:K$108,MATCH('LFA_Findings&Recom export'!$C15,'LFA_Findings&Recommendations_6'!$B$9:$B$108,0))),\"\")","v":""},{"$f":"IFERROR(IF(INDEX('LFA_Findings&Recommendations_6'!L$9:L$108,MATCH('LFA_Findings&Recom export'!$C15,'LFA_Findings&Recommendations_6'!$B$9:$B$108,0))=\"\",\"\",INDEX('LFA_Findings&Recommendations_6'!L$9:L$108,MATCH('LFA_Findings&Recom export'!$C15,'LFA_Findings&Recommendations_6'!$B$9:$B$108,0))),\"\")","v":""},null,false,{"$f":"IFERROR(IF(INDEX('LFA_Findings&Recommendations_6'!A$9:A$108,MATCH('LFA_Findings&Recom export'!$C15,'LFA_Findings&Recommendations_6'!$B$9:$B$108,0))=\"\",\"\",INDEX('LFA_Findings&Recommendations_6'!A$9:A$108,MATCH('LFA_Findings&Recom export'!$C15,'LFA_Findings&Recommendations_6'!$B$9:$B$108,0))),\"\")","v":false},{"$f":"IF(P15=TRUE,_xlfn.IFNA(VLOOKUP(D15,RiskData!$B$5:$D$11,3,FALSE), \"\"),\"\")","v":""},{"$f":"IF(P15=TRUE,_xlfn.IFNA(VLOOKUP(E15,RiskData!$F$13:$I$36,4,FALSE), \"\"),\"\")","v":""},{"$f":"IF(P15=TRUE,_xlfn.IFNA(INDEX(RiskData!$H$40:$H$290,MATCH(TRUE,INDEX(RIGHT(RiskData!$F$40:$F$290,255)=RIGHT(F15,255),0),0)), \"\"),\"\")","v":""},{"$f":"IF(OR(P15=TRUE,ISBLANK(D15)),'Admin Sheet'!$B$44,\"\")","v":""},{"$f":"IF(OR(ISBLANK(D15), P15=TRUE),'Admin Sheet'!$B$41,\"\")","v":""},"","","",""]
[null,13,"Finding13",{"$f":"IFERROR(IF(INDEX('LFA_Findings&Recommendations_6'!C$9:C$108,MATCH('LFA_Findings&Recom export'!$C16,'LFA_Findings&Recommendations_6'!$B$9:$B$108,0))=\"\",\"\",INDEX('LFA_Findings&Recommendations_6'!C$9:C$108,MATCH('LFA_Findings&Recom export'!$C16,'LFA_Findings&Recommendations_6'!$B$9:$B$108,0))),\"\")","v":""},{"$f":"IFERROR(IF(INDEX('LFA_Findings&Recommendations_6'!D$9:D$108,MATCH('LFA_Findings&Recom export'!$C16,'LFA_Findings&Recommendations_6'!$B$9:$B$108,0))=\"\",\"\",INDEX('LFA_Findings&Recommendations_6'!D$9:D$108,MATCH('LFA_Findings&Recom export'!$C16,'LFA_Findings&Recommendations_6'!$B$9:$B$108,0))),\"\")","v":""},{"$f":"IFERROR(IF(INDEX('LFA_Findings&Recommendations_6'!E$9:E$108,MATCH('LFA_Findings&Recom export'!$C16,'LFA_Findings&Recommendations_6'!$B$9:$B$108,0))=\"\",\"\",INDEX('LFA_Findings&Recommendations_6'!E$9:E$108,MATCH('LFA_Findings&Recom export'!$C16,'LFA_Findings&Recommendations_6'!$B$9:$B$108,0))),\"\")","v":""},{"$f":"IFERROR(IF(INDEX('LFA_Findings&Recommendations_6'!F$9:F$108,MATCH('LFA_Findings&Recom export'!$C16,'LFA_Findings&Recommendations_6'!$B$9:$B$108,0))=\"\",\"\",INDEX('LFA_Findings&Recommendations_6'!F$9:F$108,MATCH('LFA_Findings&Recom export'!$C16,'LFA_Findings&Recommendations_6'!$B$9:$B$108,0))),\"\")","v":""},{"$f":"IFERROR(IF(INDEX('LFA_Findings&Recommendations_6'!G$9:G$108,MATCH('LFA_Findings&Recom export'!$C16,'LFA_Findings&Recommendations_6'!$B$9:$B$108,0))=\"\",\"\",INDEX('LFA_Findings&Recommendations_6'!G$9:G$108,MATCH('LFA_Findings&Recom export'!$C16,'LFA_Findings&Recommendations_6'!$B$9:$B$108,0))),\"\")","v":""},{"$f":"IFERROR(IF(INDEX('LFA_Findings&Recommendations_6'!H$9:H$108,MATCH('LFA_Findings&Recom export'!$C16,'LFA_Findings&Recommendations_6'!$B$9:$B$108,0))=\"\",\"\",INDEX('LFA_Findings&Recommendations_6'!H$9:H$108,MATCH('LFA_Findings&Recom export'!$C16,'LFA_Findings&Recommendations_6'!$B$9:$B$108,0))),\"\")","v":""},{"$f":"IFERROR(IF(INDEX('LFA_Findings&Recommendations_6'!I$9:I$108,MATCH('LFA_Findings&Recom export'!$C16,'LFA_Findings&Recommendations_6'!$B$9:$B$108,0))=\"\",\"\",INDEX('LFA_Findings&Recommendations_6'!I$9:I$108,MATCH('LFA_Findings&Recom export'!$C16,'LFA_Findings&Recommendations_6'!$B$9:$B$108,0))),\"\")","v":""},{"$f":"IFERROR(IF(INDEX('LFA_Findings&Recommendations_6'!J$9:J$108,MATCH('LFA_Findings&Recom export'!$C16,'LFA_Findings&Recommendations_6'!$B$9:$B$108,0))=\"\",\"\",INDEX('LFA_Findings&Recommendations_6'!J$9:J$108,MATCH('LFA_Findings&Recom export'!$C16,'LFA_Findings&Recommendations_6'!$B$9:$B$108,0))),\"\")","v":""},{"$f":"IFERROR(IF(INDEX('LFA_Findings&Recommendations_6'!K$9:K$108,MATCH('LFA_Findings&Recom export'!$C16,'LFA_Findings&Recommendations_6'!$B$9:$B$108,0))=\"\",\"\",INDEX('LFA_Findings&Recommendations_6'!K$9:K$108,MATCH('LFA_Findings&Recom export'!$C16,'LFA_Findings&Recommendations_6'!$B$9:$B$108,0))),\"\")","v":""},{"$f":"IFERROR(IF(INDEX('LFA_Findings&Recommendations_6'!L$9:L$108,MATCH('LFA_Findings&Recom export'!$C16,'LFA_Findings&Recommendations_6'!$B$9:$B$108,0))=\"\",\"\",INDEX('LFA_Findings&Recommendations_6'!L$9:L$108,MATCH('LFA_Findings&Recom export'!$C16,'LFA_Findings&Recommendations_6'!$B$9:$B$108,0))),\"\")","v":""},null,false,{"$f":"IFERROR(IF(INDEX('LFA_Findings&Recommendations_6'!A$9:A$108,MATCH('LFA_Findings&Recom export'!$C16,'LFA_Findings&Recommendations_6'!$B$9:$B$108,0))=\"\",\"\",INDEX('LFA_Findings&Recommendations_6'!A$9:A$108,MATCH('LFA_Findings&Recom export'!$C16,'LFA_Findings&Recommendations_6'!$B$9:$B$108,0))),\"\")","v":false},{"$f":"IF(P16=TRUE,_xlfn.IFNA(VLOOKUP(D16,RiskData!$B$5:$D$11,3,FALSE), \"\"),\"\")","v":""},{"$f":"IF(P16=TRUE,_xlfn.IFNA(VLOOKUP(E16,RiskData!$F$13:$I$36,4,FALSE), \"\"),\"\")","v":""},{"$f":"IF(P16=TRUE,_xlfn.IFNA(INDEX(RiskData!$H$40:$H$290,MATCH(TRUE,INDEX(RIGHT(RiskData!$F$40:$F$290,255)=RIGHT(F16,255),0),0)), \"\"),\"\")","v":""},{"$f":"IF(OR(P16=TRUE,ISBLANK(D16)),'Admin Sheet'!$B$44,\"\")","v":""},{"$f":"IF(OR(ISBLANK(D16), P16=TRUE),'Admin Sheet'!$B$41,\"\")","v":""},"","","",""]
[null,14,"Finding14",{"$f":"IFERROR(IF(INDEX('LFA_Findings&Recommendations_6'!C$9:C$108,MATCH('LFA_Findings&Recom export'!$C17,'LFA_Findings&Recommendations_6'!$B$9:$B$108,0))=\"\",\"\",INDEX('LFA_Findings&Recommendations_6'!C$9:C$108,MATCH('LFA_Findings&Recom export'!$C17,'LFA_Findings&Recommendations_6'!$B$9:$B$108,0))),\"\")","v":""},{"$f":"IFERROR(IF(INDEX('LFA_Findings&Recommendations_6'!D$9:D$108,MATCH('LFA_Findings&Recom export'!$C17,'LFA_Findings&Recommendations_6'!$B$9:$B$108,0))=\"\",\"\",INDEX('LFA_Findings&Recommendations_6'!D$9:D$108,MATCH('LFA_Findings&Recom export'!$C17,'LFA_Findings&Recommendations_6'!$B$9:$B$108,0))),\"\")","v":""},{"$f":"IFERROR(IF(INDEX('LFA_Findings&Recommendations_6'!E$9:E$108,MATCH('LFA_Findings&Recom export'!$C17,'LFA_Findings&Recommendations_6'!$B$9:$B$108,0))=\"\",\"\",INDEX('LFA_Findings&Recommendations_6'!E$9:E$108,MATCH('LFA_Findings&Recom export'!$C17,'LFA_Findings&Recommendations_6'!$B$9:$B$108,0))),\"\")","v":""},{"$f":"IFERROR(IF(INDEX('LFA_Findings&Recommendations_6'!F$9:F$108,MATCH('LFA_Findings&Recom export'!$C17,'LFA_Findings&Recommendations_6'!$B$9:$B$108,0))=\"\",\"\",INDEX('LFA_Findings&Recommendations_6'!F$9:F$108,MATCH('LFA_Findings&Recom export'!$C17,'LFA_Findings&Recommendations_6'!$B$9:$B$108,0))),\"\")","v":""},{"$f":"IFERROR(IF(INDEX('LFA_Findings&Recommendations_6'!G$9:G$108,MATCH('LFA_Findings&Recom export'!$C17,'LFA_Findings&Recommendations_6'!$B$9:$B$108,0))=\"\",\"\",INDEX('LFA_Findings&Recommendations_6'!G$9:G$108,MATCH('LFA_Findings&Recom export'!$C17,'LFA_Findings&Recommendations_6'!$B$9:$B$108,0))),\"\")","v":""},{"$f":"IFERROR(IF(INDEX('LFA_Findings&Recommendations_6'!H$9:H$108,MATCH('LFA_Findings&Recom export'!$C17,'LFA_Findings&Recommendations_6'!$B$9:$B$108,0))=\"\",\"\",INDEX('LFA_Findings&Recommendations_6'!H$9:H$108,MATCH('LFA_Findings&Recom export'!$C17,'LFA_Findings&Recommendations_6'!$B$9:$B$108,0))),\"\")","v":""},{"$f":"IFERROR(IF(INDEX('LFA_Findings&Recommendations_6'!I$9:I$108,MATCH('LFA_Findings&Recom export'!$C17,'LFA_Findings&Recommendations_6'!$B$9:$B$108,0))=\"\",\"\",INDEX('LFA_Findings&Recommendations_6'!I$9:I$108,MATCH('LFA_Findings&Recom export'!$C17,'LFA_Findings&Recommendations_6'!$B$9:$B$108,0))),\"\")","v":""},{"$f":"IFERROR(IF(INDEX('LFA_Findings&Recommendations_6'!J$9:J$108,MATCH('LFA_Findings&Recom export'!$C17,'LFA_Findings&Recommendations_6'!$B$9:$B$108,0))=\"\",\"\",INDEX('LFA_Findings&Recommendations_6'!J$9:J$108,MATCH('LFA_Findings&Recom export'!$C17,'LFA_Findings&Recommendations_6'!$B$9:$B$108,0))),\"\")","v":""},{"$f":"IFERROR(IF(INDEX('LFA_Findings&Recommendations_6'!K$9:K$108,MATCH('LFA_Findings&Recom export'!$C17,'LFA_Findings&Recommendations_6'!$B$9:$B$108,0))=\"\",\"\",INDEX('LFA_Findings&Recommendations_6'!K$9:K$108,MATCH('LFA_Findings&Recom export'!$C17,'LFA_Findings&Recommendations_6'!$B$9:$B$108,0))),\"\")","v":""},{"$f":"IFERROR(IF(INDEX('LFA_Findings&Recommendations_6'!L$9:L$108,MATCH('LFA_Findings&Recom export'!$C17,'LFA_Findings&Recommendations_6'!$B$9:$B$108,0))=\"\",\"\",INDEX('LFA_Findings&Recommendations_6'!L$9:L$108,MATCH('LFA_Findings&Recom export'!$C17,'LFA_Findings&Recommendations_6'!$B$9:$B$108,0))),\"\")","v":""},null,false,{"$f":"IFERROR(IF(INDEX('LFA_Findings&Recommendations_6'!A$9:A$108,MATCH('LFA_Findings&Recom export'!$C17,'LFA_Findings&Recommendations_6'!$B$9:$B$108,0))=\"\",\"\",INDEX('LFA_Findings&Recommendations_6'!A$9:A$108,MATCH('LFA_Findings&Recom export'!$C17,'LFA_Findings&Recommendations_6'!$B$9:$B$108,0))),\"\")","v":false},{"$f":"IF(P17=TRUE,_xlfn.IFNA(VLOOKUP(D17,RiskData!$B$5:$D$11,3,FALSE), \"\"),\"\")","v":""},{"$f":"IF(P17=TRUE,_xlfn.IFNA(VLOOKUP(E17,RiskData!$F$13:$I$36,4,FALSE), \"\"),\"\")","v":""},{"$f":"IF(P17=TRUE,_xlfn.IFNA(INDEX(RiskData!$H$40:$H$290,MATCH(TRUE,INDEX(RIGHT(RiskData!$F$40:$F$290,255)=RIGHT(F17,255),0),0)), \"\"),\"\")","v":""},{"$f":"IF(OR(P17=TRUE,ISBLANK(D17)),'Admin Sheet'!$B$44,\"\")","v":""},{"$f":"IF(OR(ISBLANK(D17), P17=TRUE),'Admin Sheet'!$B$41,\"\")","v":""},"","","",""]
[null,15,"Finding15",{"$f":"IFERROR(IF(INDEX('LFA_Findings&Recommendations_6'!C$9:C$108,MATCH('LFA_Findings&Recom export'!$C18,'LFA_Findings&Recommendations_6'!$B$9:$B$108,0))=\"\",\"\",INDEX('LFA_Findings&Recommendations_6'!C$9:C$108,MATCH('LFA_Findings&Recom export'!$C18,'LFA_Findings&Recommendations_6'!$B$9:$B$108,0))),\"\")","v":""},{"$f":"IFERROR(IF(INDEX('LFA_Findings&Recommendations_6'!D$9:D$108,MATCH('LFA_Findings&Recom export'!$C18,'LFA_Findings&Recommendations_6'!$B$9:$B$108,0))=\"\",\"\",INDEX('LFA_Findings&Recommendations_6'!D$9:D$108,MATCH('LFA_Findings&Recom export'!$C18,'LFA_Findings&Recommendations_6'!$B$9:$B$108,0))),\"\")","v":""},{"$f":"IFERROR(IF(INDEX('LFA_Findings&Recommendations_6'!E$9:E$108,MATCH('LFA_Findings&Recom export'!$C18,'LFA_Findings&Recommendations_6'!$B$9:$B$108,0))=\"\",\"\",INDEX('LFA_Findings&Recommendations_6'!E$9:E$108,MATCH('LFA_Findings&Recom export'!$C18,'LFA_Findings&Recommendations_6'!$B$9:$B$108,0))),\"\")","v":""},{"$f":"IFERROR(IF(INDEX('LFA_Findings&Recommendations_6'!F$9:F$108,MATCH('LFA_Findings&Recom export'!$C18,'LFA_Findings&Recommendations_6'!$B$9:$B$108,0))=\"\",\"\",INDEX('LFA_Findings&Recommendations_6'!F$9:F$108,MATCH('LFA_Findings&Recom export'!$C18,'LFA_Findings&Recommendations_6'!$B$9:$B$108,0))),\"\")","v":""},{"$f":"IFERROR(IF(INDEX('LFA_Findings&Recommendations_6'!G$9:G$108,MATCH('LFA_Findings&Recom export'!$C18,'LFA_Findings&Recommendations_6'!$B$9:$B$108,0))=\"\",\"\",INDEX('LFA_Findings&Recommendations_6'!G$9:G$108,MATCH('LFA_Findings&Recom export'!$C18,'LFA_Findings&Recommendations_6'!$B$9:$B$108,0))),\"\")","v":""},{"$f":"IFERROR(IF(INDEX('LFA_Findings&Recommendations_6'!H$9:H$108,MATCH('LFA_Findings&Recom export'!$C18,'LFA_Findings&Recommendations_6'!$B$9:$B$108,0))=\"\",\"\",INDEX('LFA_Findings&Recommendations_6'!H$9:H$108,MATCH('LFA_Findings&Recom export'!$C18,'LFA_Findings&Recommendations_6'!$B$9:$B$108,0))),\"\")","v":""},{"$f":"IFERROR(IF(INDEX('LFA_Findings&Recommendations_6'!I$9:I$108,MATCH('LFA_Findings&Recom export'!$C18,'LFA_Findings&Recommendations_6'!$B$9:$B$108,0))=\"\",\"\",INDEX('LFA_Findings&Recommendations_6'!I$9:I$108,MATCH('LFA_Findings&Recom export'!$C18,'LFA_Findings&Recommendations_6'!$B$9:$B$108,0))),\"\")","v":""},{"$f":"IFERROR(IF(INDEX('LFA_Findings&Recommendations_6'!J$9:J$108,MATCH('LFA_Findings&Recom export'!$C18,'LFA_Findings&Recommendations_6'!$B$9:$B$108,0))=\"\",\"\",INDEX('LFA_Findings&Recommendations_6'!J$9:J$108,MATCH('LFA_Findings&Recom export'!$C18,'LFA_Findings&Recommendations_6'!$B$9:$B$108,0))),\"\")","v":""},{"$f":"IFERROR(IF(INDEX('LFA_Findings&Recommendations_6'!K$9:K$108,MATCH('LFA_Findings&Recom export'!$C18,'LFA_Findings&Recommendations_6'!$B$9:$B$108,0))=\"\",\"\",INDEX('LFA_Findings&Recommendations_6'!K$9:K$108,MATCH('LFA_Findings&Recom export'!$C18,'LFA_Findings&Recommendations_6'!$B$9:$B$108,0))),\"\")","v":""},{"$f":"IFERROR(IF(INDEX('LFA_Findings&Recommendations_6'!L$9:L$108,MATCH('LFA_Findings&Recom export'!$C18,'LFA_Findings&Recommendations_6'!$B$9:$B$108,0))=\"\",\"\",INDEX('LFA_Findings&Recommendations_6'!L$9:L$108,MATCH('LFA_Findings&Recom export'!$C18,'LFA_Findings&Recommendations_6'!$B$9:$B$108,0))),\"\")","v":""},null,false,{"$f":"IFERROR(IF(INDEX('LFA_Findings&Recommendations_6'!A$9:A$108,MATCH('LFA_Findings&Recom export'!$C18,'LFA_Findings&Recommendations_6'!$B$9:$B$108,0))=\"\",\"\",INDEX('LFA_Findings&Recommendations_6'!A$9:A$108,MATCH('LFA_Findings&Recom export'!$C18,'LFA_Findings&Recommendations_6'!$B$9:$B$108,0))),\"\")","v":false},{"$f":"IF(P18=TRUE,_xlfn.IFNA(VLOOKUP(D18,RiskData!$B$5:$D$11,3,FALSE), \"\"),\"\")","v":""},{"$f":"IF(P18=TRUE,_xlfn.IFNA(VLOOKUP(E18,RiskData!$F$13:$I$36,4,FALSE), \"\"),\"\")","v":""},{"$f":"IF(P18=TRUE,_xlfn.IFNA(INDEX(RiskData!$H$40:$H$290,MATCH(TRUE,INDEX(RIGHT(RiskData!$F$40:$F$290,255)=RIGHT(F18,255),0),0)), \"\"),\"\")","v":""},{"$f":"IF(OR(P18=TRUE,ISBLANK(D18)),'Admin Sheet'!$B$44,\"\")","v":""},{"$f":"IF(OR(ISBLANK(D18), P18=TRUE),'Admin Sheet'!$B$41,\"\")","v":""},"","","",""]
[null,16,"Finding16",{"$f":"IFERROR(IF(INDEX('LFA_Findings&Recommendations_6'!C$9:C$108,MATCH('LFA_Findings&Recom export'!$C19,'LFA_Findings&Recommendations_6'!$B$9:$B$108,0))=\"\",\"\",INDEX('LFA_Findings&Recommendations_6'!C$9:C$108,MATCH('LFA_Findings&Recom export'!$C19,'LFA_Findings&Recommendations_6'!$B$9:$B$108,0))),\"\")","v":""},{"$f":"IFERROR(IF(INDEX('LFA_Findings&Recommendations_6'!D$9:D$108,MATCH('LFA_Findings&Recom export'!$C19,'LFA_Findings&Recommendations_6'!$B$9:$B$108,0))=\"\",\"\",INDEX('LFA_Findings&Recommendations_6'!D$9:D$108,MATCH('LFA_Findings&Recom export'!$C19,'LFA_Findings&Recommendations_6'!$B$9:$B$108,0))),\"\")","v":""},{"$f":"IFERROR(IF(INDEX('LFA_Findings&Recommendations_6'!E$9:E$108,MATCH('LFA_Findings&Recom export'!$C19,'LFA_Findings&Recommendations_6'!$B$9:$B$108,0))=\"\",\"\",INDEX('LFA_Findings&Recommendations_6'!E$9:E$108,MATCH('LFA_Findings&Recom export'!$C19,'LFA_Findings&Recommendations_6'!$B$9:$B$108,0))),\"\")","v":""},{"$f":"IFERROR(IF(INDEX('LFA_Findings&Recommendations_6'!F$9:F$108,MATCH('LFA_Findings&Recom export'!$C19,'LFA_Findings&Recommendations_6'!$B$9:$B$108,0))=\"\",\"\",INDEX('LFA_Findings&Recommendations_6'!F$9:F$108,MATCH('LFA_Findings&Recom export'!$C19,'LFA_Findings&Recommendations_6'!$B$9:$B$108,0))),\"\")","v":""},{"$f":"IFERROR(IF(INDEX('LFA_Findings&Recommendations_6'!G$9:G$108,MATCH('LFA_Findings&Recom export'!$C19,'LFA_Findings&Recommendations_6'!$B$9:$B$108,0))=\"\",\"\",INDEX('LFA_Findings&Recommendations_6'!G$9:G$108,MATCH('LFA_Findings&Recom export'!$C19,'LFA_Findings&Recommendations_6'!$B$9:$B$108,0))),\"\")","v":""},{"$f":"IFERROR(IF(INDEX('LFA_Findings&Recommendations_6'!H$9:H$108,MATCH('LFA_Findings&Recom export'!$C19,'LFA_Findings&Recommendations_6'!$B$9:$B$108,0))=\"\",\"\",INDEX('LFA_Findings&Recommendations_6'!H$9:H$108,MATCH('LFA_Findings&Recom export'!$C19,'LFA_Findings&Recommendations_6'!$B$9:$B$108,0))),\"\")","v":""},{"$f":"IFERROR(IF(INDEX('LFA_Findings&Recommendations_6'!I$9:I$108,MATCH('LFA_Findings&Recom export'!$C19,'LFA_Findings&Recommendations_6'!$B$9:$B$108,0))=\"\",\"\",INDEX('LFA_Findings&Recommendations_6'!I$9:I$108,MATCH('LFA_Findings&Recom export'!$C19,'LFA_Findings&Recommendations_6'!$B$9:$B$108,0))),\"\")","v":""},{"$f":"IFERROR(IF(INDEX('LFA_Findings&Recommendations_6'!J$9:J$108,MATCH('LFA_Findings&Recom export'!$C19,'LFA_Findings&Recommendations_6'!$B$9:$B$108,0))=\"\",\"\",INDEX('LFA_Findings&Recommendations_6'!J$9:J$108,MATCH('LFA_Findings&Recom export'!$C19,'LFA_Findings&Recommendations_6'!$B$9:$B$108,0))),\"\")","v":""},{"$f":"IFERROR(IF(INDEX('LFA_Findings&Recommendations_6'!K$9:K$108,MATCH('LFA_Findings&Recom export'!$C19,'LFA_Findings&Recommendations_6'!$B$9:$B$108,0))=\"\",\"\",INDEX('LFA_Findings&Recommendations_6'!K$9:K$108,MATCH('LFA_Findings&Recom export'!$C19,'LFA_Findings&Recommendations_6'!$B$9:$B$108,0))),\"\")","v":""},{"$f":"IFERROR(IF(INDEX('LFA_Findings&Recommendations_6'!L$9:L$108,MATCH('LFA_Findings&Recom export'!$C19,'LFA_Findings&Recommendations_6'!$B$9:$B$108,0))=\"\",\"\",INDEX('LFA_Findings&Recommendations_6'!L$9:L$108,MATCH('LFA_Findings&Recom export'!$C19,'LFA_Findings&Recommendations_6'!$B$9:$B$108,0))),\"\")","v":""},null,false,{"$f":"IFERROR(IF(INDEX('LFA_Findings&Recommendations_6'!A$9:A$108,MATCH('LFA_Findings&Recom export'!$C19,'LFA_Findings&Recommendations_6'!$B$9:$B$108,0))=\"\",\"\",INDEX('LFA_Findings&Recommendations_6'!A$9:A$108,MATCH('LFA_Findings&Recom export'!$C19,'LFA_Findings&Recommendations_6'!$B$9:$B$108,0))),\"\")","v":false},{"$f":"IF(P19=TRUE,_xlfn.IFNA(VLOOKUP(D19,RiskData!$B$5:$D$11,3,FALSE), \"\"),\"\")","v":""},{"$f":"IF(P19=TRUE,_xlfn.IFNA(VLOOKUP(E19,RiskData!$F$13:$I$36,4,FALSE), \"\"),\"\")","v":""},{"$f":"IF(P19=TRUE,_xlfn.IFNA(INDEX(RiskData!$H$40:$H$290,MATCH(TRUE,INDEX(RIGHT(RiskData!$F$40:$F$290,255)=RIGHT(F19,255),0),0)), \"\"),\"\")","v":""},{"$f":"IF(OR(P19=TRUE,ISBLANK(D19)),'Admin Sheet'!$B$44,\"\")","v":""},{"$f":"IF(OR(ISBLANK(D19), P19=TRUE),'Admin Sheet'!$B$41,\"\")","v":""},"","","",""]
[null,17,"Finding17",{"$f":"IFERROR(IF(INDEX('LFA_Findings&Recommendations_6'!C$9:C$108,MATCH('LFA_Findings&Recom export'!$C20,'LFA_Findings&Recommendations_6'!$B$9:$B$108,0))=\"\",\"\",INDEX('LFA_Findings&Recommendations_6'!C$9:C$108,MATCH('LFA_Findings&Recom export'!$C20,'LFA_Findings&Recommendations_6'!$B$9:$B$108,0))),\"\")","v":""},{"$f":"IFERROR(IF(INDEX('LFA_Findings&Recommendations_6'!D$9:D$108,MATCH('LFA_Findings&Recom export'!$C20,'LFA_Findings&Recommendations_6'!$B$9:$B$108,0))=\"\",\"\",INDEX('LFA_Findings&Recommendations_6'!D$9:D$108,MATCH('LFA_Findings&Recom export'!$C20,'LFA_Findings&Recommendations_6'!$B$9:$B$108,0))),\"\")","v":""},{"$f":"IFERROR(IF(INDEX('LFA_Findings&Recommendations_6'!E$9:E$108,MATCH('LFA_Findings&Recom export'!$C20,'LFA_Findings&Recommendations_6'!$B$9:$B$108,0))=\"\",\"\",INDEX('LFA_Findings&Recommendations_6'!E$9:E$108,MATCH('LFA_Findings&Recom export'!$C20,'LFA_Findings&Recommendations_6'!$B$9:$B$108,0))),\"\")","v":""},{"$f":"IFERROR(IF(INDEX('LFA_Findings&Recommendations_6'!F$9:F$108,MATCH('LFA_Findings&Recom export'!$C20,'LFA_Findings&Recommendations_6'!$B$9:$B$108,0))=\"\",\"\",INDEX('LFA_Findings&Recommendations_6'!F$9:F$108,MATCH('LFA_Findings&Recom export'!$C20,'LFA_Findings&Recommendations_6'!$B$9:$B$108,0))),\"\")","v":""},{"$f":"IFERROR(IF(INDEX('LFA_Findings&Recommendations_6'!G$9:G$108,MATCH('LFA_Findings&Recom export'!$C20,'LFA_Findings&Recommendations_6'!$B$9:$B$108,0))=\"\",\"\",INDEX('LFA_Findings&Recommendations_6'!G$9:G$108,MATCH('LFA_Findings&Recom export'!$C20,'LFA_Findings&Recommendations_6'!$B$9:$B$108,0))),\"\")","v":""},{"$f":"IFERROR(IF(INDEX('LFA_Findings&Recommendations_6'!H$9:H$108,MATCH('LFA_Findings&Recom export'!$C20,'LFA_Findings&Recommendations_6'!$B$9:$B$108,0))=\"\",\"\",INDEX('LFA_Findings&Recommendations_6'!H$9:H$108,MATCH('LFA_Findings&Recom export'!$C20,'LFA_Findings&Recommendations_6'!$B$9:$B$108,0))),\"\")","v":""},{"$f":"IFERROR(IF(INDEX('LFA_Findings&Recommendations_6'!I$9:I$108,MATCH('LFA_Findings&Recom export'!$C20,'LFA_Findings&Recommendations_6'!$B$9:$B$108,0))=\"\",\"\",INDEX('LFA_Findings&Recommendations_6'!I$9:I$108,MATCH('LFA_Findings&Recom export'!$C20,'LFA_Findings&Recommendations_6'!$B$9:$B$108,0))),\"\")","v":""},{"$f":"IFERROR(IF(INDEX('LFA_Findings&Recommendations_6'!J$9:J$108,MATCH('LFA_Findings&Recom export'!$C20,'LFA_Findings&Recommendations_6'!$B$9:$B$108,0))=\"\",\"\",INDEX('LFA_Findings&Recommendations_6'!J$9:J$108,MATCH('LFA_Findings&Recom export'!$C20,'LFA_Findings&Recommendations_6'!$B$9:$B$108,0))),\"\")","v":""},{"$f":"IFERROR(IF(INDEX('LFA_Findings&Recommendations_6'!K$9:K$108,MATCH('LFA_Findings&Recom export'!$C20,'LFA_Findings&Recommendations_6'!$B$9:$B$108,0))=\"\",\"\",INDEX('LFA_Findings&Recommendations_6'!K$9:K$108,MATCH('LFA_Findings&Recom export'!$C20,'LFA_Findings&Recommendations_6'!$B$9:$B$108,0))),\"\")","v":""},{"$f":"IFERROR(IF(INDEX('LFA_Findings&Recommendations_6'!L$9:L$108,MATCH('LFA_Findings&Recom export'!$C20,'LFA_Findings&Recommendations_6'!$B$9:$B$108,0))=\"\",\"\",INDEX('LFA_Findings&Recommendations_6'!L$9:L$108,MATCH('LFA_Findings&Recom export'!$C20,'LFA_Findings&Recommendations_6'!$B$9:$B$108,0))),\"\")","v":""},null,false,{"$f":"IFERROR(IF(INDEX('LFA_Findings&Recommendations_6'!A$9:A$108,MATCH('LFA_Findings&Recom export'!$C20,'LFA_Findings&Recommendations_6'!$B$9:$B$108,0))=\"\",\"\",INDEX('LFA_Findings&Recommendations_6'!A$9:A$108,MATCH('LFA_Findings&Recom export'!$C20,'LFA_Findings&Recommendations_6'!$B$9:$B$108,0))),\"\")","v":false},{"$f":"IF(P20=TRUE,_xlfn.IFNA(VLOOKUP(D20,RiskData!$B$5:$D$11,3,FALSE), \"\"),\"\")","v":""},{"$f":"IF(P20=TRUE,_xlfn.IFNA(VLOOKUP(E20,RiskData!$F$13:$I$36,4,FALSE), \"\"),\"\")","v":""},{"$f":"IF(P20=TRUE,_xlfn.IFNA(INDEX(RiskData!$H$40:$H$290,MATCH(TRUE,INDEX(RIGHT(RiskData!$F$40:$F$290,255)=RIGHT(F20,255),0),0)), \"\"),\"\")","v":""},{"$f":"IF(OR(P20=TRUE,ISBLANK(D20)),'Admin Sheet'!$B$44,\"\")","v":""},{"$f":"IF(OR(ISBLANK(D20), P20=TRUE),'Admin Sheet'!$B$41,\"\")","v":""},"","","",""]
[null,18,"Finding18",{"$f":"IFERROR(IF(INDEX('LFA_Findings&Recommendations_6'!C$9:C$108,MATCH('LFA_Findings&Recom export'!$C21,'LFA_Findings&Recommendations_6'!$B$9:$B$108,0))=\"\",\"\",INDEX('LFA_Findings&Recommendations_6'!C$9:C$108,MATCH('LFA_Findings&Recom export'!$C21,'LFA_Findings&Recommendations_6'!$B$9:$B$108,0))),\"\")","v":""},{"$f":"IFERROR(IF(INDEX('LFA_Findings&Recommendations_6'!D$9:D$108,MATCH('LFA_Findings&Recom export'!$C21,'LFA_Findings&Recommendations_6'!$B$9:$B$108,0))=\"\",\"\",INDEX('LFA_Findings&Recommendations_6'!D$9:D$108,MATCH('LFA_Findings&Recom export'!$C21,'LFA_Findings&Recommendations_6'!$B$9:$B$108,0))),\"\")","v":""},{"$f":"IFERROR(IF(INDEX('LFA_Findings&Recommendations_6'!E$9:E$108,MATCH('LFA_Findings&Recom export'!$C21,'LFA_Findings&Recommendations_6'!$B$9:$B$108,0))=\"\",\"\",INDEX('LFA_Findings&Recommendations_6'!E$9:E$108,MATCH('LFA_Findings&Recom export'!$C21,'LFA_Findings&Recommendations_6'!$B$9:$B$108,0))),\"\")","v":""},{"$f":"IFERROR(IF(INDEX('LFA_Findings&Recommendations_6'!F$9:F$108,MATCH('LFA_Findings&Recom export'!$C21,'LFA_Findings&Recommendations_6'!$B$9:$B$108,0))=\"\",\"\",INDEX('LFA_Findings&Recommendations_6'!F$9:F$108,MATCH('LFA_Findings&Recom export'!$C21,'LFA_Findings&Recommendations_6'!$B$9:$B$108,0))),\"\")","v":""},{"$f":"IFERROR(IF(INDEX('LFA_Findings&Recommendations_6'!G$9:G$108,MATCH('LFA_Findings&Recom export'!$C21,'LFA_Findings&Recommendations_6'!$B$9:$B$108,0))=\"\",\"\",INDEX('LFA_Findings&Recommendations_6'!G$9:G$108,MATCH('LFA_Findings&Recom export'!$C21,'LFA_Findings&Recommendations_6'!$B$9:$B$108,0))),\"\")","v":""},{"$f":"IFERROR(IF(INDEX('LFA_Findings&Recommendations_6'!H$9:H$108,MATCH('LFA_Findings&Recom export'!$C21,'LFA_Findings&Recommendations_6'!$B$9:$B$108,0))=\"\",\"\",INDEX('LFA_Findings&Recommendations_6'!H$9:H$108,MATCH('LFA_Findings&Recom export'!$C21,'LFA_Findings&Recommendations_6'!$B$9:$B$108,0))),\"\")","v":""},{"$f":"IFERROR(IF(INDEX('LFA_Findings&Recommendations_6'!I$9:I$108,MATCH('LFA_Findings&Recom export'!$C21,'LFA_Findings&Recommendations_6'!$B$9:$B$108,0))=\"\",\"\",INDEX('LFA_Findings&Recommendations_6'!I$9:I$108,MATCH('LFA_Findings&Recom export'!$C21,'LFA_Findings&Recommendations_6'!$B$9:$B$108,0))),\"\")","v":""},{"$f":"IFERROR(IF(INDEX('LFA_Findings&Recommendations_6'!J$9:J$108,MATCH('LFA_Findings&Recom export'!$C21,'LFA_Findings&Recommendations_6'!$B$9:$B$108,0))=\"\",\"\",INDEX('LFA_Findings&Recommendations_6'!J$9:J$108,MATCH('LFA_Findings&Recom export'!$C21,'LFA_Findings&Recommendations_6'!$B$9:$B$108,0))),\"\")","v":""},{"$f":"IFERROR(IF(INDEX('LFA_Findings&Recommendations_6'!K$9:K$108,MATCH('LFA_Findings&Recom export'!$C21,'LFA_Findings&Recommendations_6'!$B$9:$B$108,0))=\"\",\"\",INDEX('LFA_Findings&Recommendations_6'!K$9:K$108,MATCH('LFA_Findings&Recom export'!$C21,'LFA_Findings&Recommendations_6'!$B$9:$B$108,0))),\"\")","v":""},{"$f":"IFERROR(IF(INDEX('LFA_Findings&Recommendations_6'!L$9:L$108,MATCH('LFA_Findings&Recom export'!$C21,'LFA_Findings&Recommendations_6'!$B$9:$B$108,0))=\"\",\"\",INDEX('LFA_Findings&Recommendations_6'!L$9:L$108,MATCH('LFA_Findings&Recom export'!$C21,'LFA_Findings&Recommendations_6'!$B$9:$B$108,0))),\"\")","v":""},null,false,{"$f":"IFERROR(IF(INDEX('LFA_Findings&Recommendations_6'!A$9:A$108,MATCH('LFA_Findings&Recom export'!$C21,'LFA_Findings&Recommendations_6'!$B$9:$B$108,0))=\"\",\"\",INDEX('LFA_Findings&Recommendations_6'!A$9:A$108,MATCH('LFA_Findings&Recom export'!$C21,'LFA_Findings&Recommendations_6'!$B$9:$B$108,0))),\"\")","v":false},{"$f":"IF(P21=TRUE,_xlfn.IFNA(VLOOKUP(D21,RiskData!$B$5:$D$11,3,FALSE), \"\"),\"\")","v":""},{"$f":"IF(P21=TRUE,_xlfn.IFNA(VLOOKUP(E21,RiskData!$F$13:$I$36,4,FALSE), \"\"),\"\")","v":""},{"$f":"IF(P21=TRUE,_xlfn.IFNA(INDEX(RiskData!$H$40:$H$290,MATCH(TRUE,INDEX(RIGHT(RiskData!$F$40:$F$290,255)=RIGHT(F21,255),0),0)), \"\"),\"\")","v":""},{"$f":"IF(OR(P21=TRUE,ISBLANK(D21)),'Admin Sheet'!$B$44,\"\")","v":""},{"$f":"IF(OR(ISBLANK(D21), P21=TRUE),'Admin Sheet'!$B$41,\"\")","v":""},"","","",""]
[null,19,"Finding19",{"$f":"IFERROR(IF(INDEX('LFA_Findings&Recommendations_6'!C$9:C$108,MATCH('LFA_Findings&Recom export'!$C22,'LFA_Findings&Recommendations_6'!$B$9:$B$108,0))=\"\",\"\",INDEX('LFA_Findings&Recommendations_6'!C$9:C$108,MATCH('LFA_Findings&Recom export'!$C22,'LFA_Findings&Recommendations_6'!$B$9:$B$108,0))),\"\")","v":""},{"$f":"IFERROR(IF(INDEX('LFA_Findings&Recommendations_6'!D$9:D$108,MATCH('LFA_Findings&Recom export'!$C22,'LFA_Findings&Recommendations_6'!$B$9:$B$108,0))=\"\",\"\",INDEX('LFA_Findings&Recommendations_6'!D$9:D$108,MATCH('LFA_Findings&Recom export'!$C22,'LFA_Findings&Recommendations_6'!$B$9:$B$108,0))),\"\")","v":""},{"$f":"IFERROR(IF(INDEX('LFA_Findings&Recommendations_6'!E$9:E$108,MATCH('LFA_Findings&Recom export'!$C22,'LFA_Findings&Recommendations_6'!$B$9:$B$108,0))=\"\",\"\",INDEX('LFA_Findings&Recommendations_6'!E$9:E$108,MATCH('LFA_Findings&Recom export'!$C22,'LFA_Findings&Recommendations_6'!$B$9:$B$108,0))),\"\")","v":""},{"$f":"IFERROR(IF(INDEX('LFA_Findings&Recommendations_6'!F$9:F$108,MATCH('LFA_Findings&Recom export'!$C22,'LFA_Findings&Recommendations_6'!$B$9:$B$108,0))=\"\",\"\",INDEX('LFA_Findings&Recommendations_6'!F$9:F$108,MATCH('LFA_Findings&Recom export'!$C22,'LFA_Findings&Recommendations_6'!$B$9:$B$108,0))),\"\")","v":""},{"$f":"IFERROR(IF(INDEX('LFA_Findings&Recommendations_6'!G$9:G$108,MATCH('LFA_Findings&Recom export'!$C22,'LFA_Findings&Recommendations_6'!$B$9:$B$108,0))=\"\",\"\",INDEX('LFA_Findings&Recommendations_6'!G$9:G$108,MATCH('LFA_Findings&Recom export'!$C22,'LFA_Findings&Recommendations_6'!$B$9:$B$108,0))),\"\")","v":""},{"$f":"IFERROR(IF(INDEX('LFA_Findings&Recommendations_6'!H$9:H$108,MATCH('LFA_Findings&Recom export'!$C22,'LFA_Findings&Recommendations_6'!$B$9:$B$108,0))=\"\",\"\",INDEX('LFA_Findings&Recommendations_6'!H$9:H$108,MATCH('LFA_Findings&Recom export'!$C22,'LFA_Findings&Recommendations_6'!$B$9:$B$108,0))),\"\")","v":""},{"$f":"IFERROR(IF(INDEX('LFA_Findings&Recommendations_6'!I$9:I$108,MATCH('LFA_Findings&Recom export'!$C22,'LFA_Findings&Recommendations_6'!$B$9:$B$108,0))=\"\",\"\",INDEX('LFA_Findings&Recommendations_6'!I$9:I$108,MATCH('LFA_Findings&Recom export'!$C22,'LFA_Findings&Recommendations_6'!$B$9:$B$108,0))),\"\")","v":""},{"$f":"IFERROR(IF(INDEX('LFA_Findings&Recommendations_6'!J$9:J$108,MATCH('LFA_Findings&Recom export'!$C22,'LFA_Findings&Recommendations_6'!$B$9:$B$108,0))=\"\",\"\",INDEX('LFA_Findings&Recommendations_6'!J$9:J$108,MATCH('LFA_Findings&Recom export'!$C22,'LFA_Findings&Recommendations_6'!$B$9:$B$108,0))),\"\")","v":""},{"$f":"IFERROR(IF(INDEX('LFA_Findings&Recommendations_6'!K$9:K$108,MATCH('LFA_Findings&Recom export'!$C22,'LFA_Findings&Recommendations_6'!$B$9:$B$108,0))=\"\",\"\",INDEX('LFA_Findings&Recommendations_6'!K$9:K$108,MATCH('LFA_Findings&Recom export'!$C22,'LFA_Findings&Recommendations_6'!$B$9:$B$108,0))),\"\")","v":""},{"$f":"IFERROR(IF(INDEX('LFA_Findings&Recommendations_6'!L$9:L$108,MATCH('LFA_Findings&Recom export'!$C22,'LFA_Findings&Recommendations_6'!$B$9:$B$108,0))=\"\",\"\",INDEX('LFA_Findings&Recommendations_6'!L$9:L$108,MATCH('LFA_Findings&Recom export'!$C22,'LFA_Findings&Recommendations_6'!$B$9:$B$108,0))),\"\")","v":""},null,false,{"$f":"IFERROR(IF(INDEX('LFA_Findings&Recommendations_6'!A$9:A$108,MATCH('LFA_Findings&Recom export'!$C22,'LFA_Findings&Recommendations_6'!$B$9:$B$108,0))=\"\",\"\",INDEX('LFA_Findings&Recommendations_6'!A$9:A$108,MATCH('LFA_Findings&Recom export'!$C22,'LFA_Findings&Recommendations_6'!$B$9:$B$108,0))),\"\")","v":false},{"$f":"IF(P22=TRUE,_xlfn.IFNA(VLOOKUP(D22,RiskData!$B$5:$D$11,3,FALSE), \"\"),\"\")","v":""},{"$f":"IF(P22=TRUE,_xlfn.IFNA(VLOOKUP(E22,RiskData!$F$13:$I$36,4,FALSE), \"\"),\"\")","v":""},{"$f":"IF(P22=TRUE,_xlfn.IFNA(INDEX(RiskData!$H$40:$H$290,MATCH(TRUE,INDEX(RIGHT(RiskData!$F$40:$F$290,255)=RIGHT(F22,255),0),0)), \"\"),\"\")","v":""},{"$f":"IF(OR(P22=TRUE,ISBLANK(D22)),'Admin Sheet'!$B$44,\"\")","v":""},{"$f":"IF(OR(ISBLANK(D22), P22=TRUE),'Admin Sheet'!$B$41,\"\")","v":""},"","","",""]
[null,20,"Finding20",{"$f":"IFERROR(IF(INDEX('LFA_Findings&Recommendations_6'!C$9:C$108,MATCH('LFA_Findings&Recom export'!$C23,'LFA_Findings&Recommendations_6'!$B$9:$B$108,0))=\"\",\"\",INDEX('LFA_Findings&Recommendations_6'!C$9:C$108,MATCH('LFA_Findings&Recom export'!$C23,'LFA_Findings&Recommendations_6'!$B$9:$B$108,0))),\"\")","v":""},{"$f":"IFERROR(IF(INDEX('LFA_Findings&Recommendations_6'!D$9:D$108,MATCH('LFA_Findings&Recom export'!$C23,'LFA_Findings&Recommendations_6'!$B$9:$B$108,0))=\"\",\"\",INDEX('LFA_Findings&Recommendations_6'!D$9:D$108,MATCH('LFA_Findings&Recom export'!$C23,'LFA_Findings&Recommendations_6'!$B$9:$B$108,0))),\"\")","v":""},{"$f":"IFERROR(IF(INDEX('LFA_Findings&Recommendations_6'!E$9:E$108,MATCH('LFA_Findings&Recom export'!$C23,'LFA_Findings&Recommendations_6'!$B$9:$B$108,0))=\"\",\"\",INDEX('LFA_Findings&Recommendations_6'!E$9:E$108,MATCH('LFA_Findings&Recom export'!$C23,'LFA_Findings&Recommendations_6'!$B$9:$B$108,0))),\"\")","v":""},{"$f":"IFERROR(IF(INDEX('LFA_Findings&Recommendations_6'!F$9:F$108,MATCH('LFA_Findings&Recom export'!$C23,'LFA_Findings&Recommendations_6'!$B$9:$B$108,0))=\"\",\"\",INDEX('LFA_Findings&Recommendations_6'!F$9:F$108,MATCH('LFA_Findings&Recom export'!$C23,'LFA_Findings&Recommendations_6'!$B$9:$B$108,0))),\"\")","v":""},{"$f":"IFERROR(IF(INDEX('LFA_Findings&Recommendations_6'!G$9:G$108,MATCH('LFA_Findings&Recom export'!$C23,'LFA_Findings&Recommendations_6'!$B$9:$B$108,0))=\"\",\"\",INDEX('LFA_Findings&Recommendations_6'!G$9:G$108,MATCH('LFA_Findings&Recom export'!$C23,'LFA_Findings&Recommendations_6'!$B$9:$B$108,0))),\"\")","v":""},{"$f":"IFERROR(IF(INDEX('LFA_Findings&Recommendations_6'!H$9:H$108,MATCH('LFA_Findings&Recom export'!$C23,'LFA_Findings&Recommendations_6'!$B$9:$B$108,0))=\"\",\"\",INDEX('LFA_Findings&Recommendations_6'!H$9:H$108,MATCH('LFA_Findings&Recom export'!$C23,'LFA_Findings&Recommendations_6'!$B$9:$B$108,0))),\"\")","v":""},{"$f":"IFERROR(IF(INDEX('LFA_Findings&Recommendations_6'!I$9:I$108,MATCH('LFA_Findings&Recom export'!$C23,'LFA_Findings&Recommendations_6'!$B$9:$B$108,0))=\"\",\"\",INDEX('LFA_Findings&Recommendations_6'!I$9:I$108,MATCH('LFA_Findings&Recom export'!$C23,'LFA_Findings&Recommendations_6'!$B$9:$B$108,0))),\"\")","v":""},{"$f":"IFERROR(IF(INDEX('LFA_Findings&Recommendations_6'!J$9:J$108,MATCH('LFA_Findings&Recom export'!$C23,'LFA_Findings&Recommendations_6'!$B$9:$B$108,0))=\"\",\"\",INDEX('LFA_Findings&Recommendations_6'!J$9:J$108,MATCH('LFA_Findings&Recom export'!$C23,'LFA_Findings&Recommendations_6'!$B$9:$B$108,0))),\"\")","v":""},{"$f":"IFERROR(IF(INDEX('LFA_Findings&Recommendations_6'!K$9:K$108,MATCH('LFA_Findings&Recom export'!$C23,'LFA_Findings&Recommendations_6'!$B$9:$B$108,0))=\"\",\"\",INDEX('LFA_Findings&Recommendations_6'!K$9:K$108,MATCH('LFA_Findings&Recom export'!$C23,'LFA_Findings&Recommendations_6'!$B$9:$B$108,0))),\"\")","v":""},{"$f":"IFERROR(IF(INDEX('LFA_Findings&Recommendations_6'!L$9:L$108,MATCH('LFA_Findings&Recom export'!$C23,'LFA_Findings&Recommendations_6'!$B$9:$B$108,0))=\"\",\"\",INDEX('LFA_Findings&Recommendations_6'!L$9:L$108,MATCH('LFA_Findings&Recom export'!$C23,'LFA_Findings&Recommendations_6'!$B$9:$B$108,0))),\"\")","v":""},null,false,{"$f":"IFERROR(IF(INDEX('LFA_Findings&Recommendations_6'!A$9:A$108,MATCH('LFA_Findings&Recom export'!$C23,'LFA_Findings&Recommendations_6'!$B$9:$B$108,0))=\"\",\"\",INDEX('LFA_Findings&Recommendations_6'!A$9:A$108,MATCH('LFA_Findings&Recom export'!$C23,'LFA_Findings&Recommendations_6'!$B$9:$B$108,0))),\"\")","v":false},{"$f":"IF(P23=TRUE,_xlfn.IFNA(VLOOKUP(D23,RiskData!$B$5:$D$11,3,FALSE), \"\"),\"\")","v":""},{"$f":"IF(P23=TRUE,_xlfn.IFNA(VLOOKUP(E23,RiskData!$F$13:$I$36,4,FALSE), \"\"),\"\")","v":""},{"$f":"IF(P23=TRUE,_xlfn.IFNA(INDEX(RiskData!$H$40:$H$290,MATCH(TRUE,INDEX(RIGHT(RiskData!$F$40:$F$290,255)=RIGHT(F23,255),0),0)), \"\"),\"\")","v":""},{"$f":"IF(OR(P23=TRUE,ISBLANK(D23)),'Admin Sheet'!$B$44,\"\")","v":""},{"$f":"IF(OR(ISBLANK(D23), P23=TRUE),'Admin Sheet'!$B$41,\"\")","v":""},"","","",""]
[null,21,"Finding21",{"$f":"IFERROR(IF(INDEX('LFA_Findings&Recommendations_6'!C$9:C$108,MATCH('LFA_Findings&Recom export'!$C24,'LFA_Findings&Recommendations_6'!$B$9:$B$108,0))=\"\",\"\",INDEX('LFA_Findings&Recommendations_6'!C$9:C$108,MATCH('LFA_Findings&Recom export'!$C24,'LFA_Findings&Recommendations_6'!$B$9:$B$108,0))),\"\")","v":""},{"$f":"IFERROR(IF(INDEX('LFA_Findings&Recommendations_6'!D$9:D$108,MATCH('LFA_Findings&Recom export'!$C24,'LFA_Findings&Recommendations_6'!$B$9:$B$108,0))=\"\",\"\",INDEX('LFA_Findings&Recommendations_6'!D$9:D$108,MATCH('LFA_Findings&Recom export'!$C24,'LFA_Findings&Recommendations_6'!$B$9:$B$108,0))),\"\")","v":""},{"$f":"IFERROR(IF(INDEX('LFA_Findings&Recommendations_6'!E$9:E$108,MATCH('LFA_Findings&Recom export'!$C24,'LFA_Findings&Recommendations_6'!$B$9:$B$108,0))=\"\",\"\",INDEX('LFA_Findings&Recommendations_6'!E$9:E$108,MATCH('LFA_Findings&Recom export'!$C24,'LFA_Findings&Recommendations_6'!$B$9:$B$108,0))),\"\")","v":""},{"$f":"IFERROR(IF(INDEX('LFA_Findings&Recommendations_6'!F$9:F$108,MATCH('LFA_Findings&Recom export'!$C24,'LFA_Findings&Recommendations_6'!$B$9:$B$108,0))=\"\",\"\",INDEX('LFA_Findings&Recommendations_6'!F$9:F$108,MATCH('LFA_Findings&Recom export'!$C24,'LFA_Findings&Recommendations_6'!$B$9:$B$108,0))),\"\")","v":""},{"$f":"IFERROR(IF(INDEX('LFA_Findings&Recommendations_6'!G$9:G$108,MATCH('LFA_Findings&Recom export'!$C24,'LFA_Findings&Recommendations_6'!$B$9:$B$108,0))=\"\",\"\",INDEX('LFA_Findings&Recommendations_6'!G$9:G$108,MATCH('LFA_Findings&Recom export'!$C24,'LFA_Findings&Recommendations_6'!$B$9:$B$108,0))),\"\")","v":""},{"$f":"IFERROR(IF(INDEX('LFA_Findings&Recommendations_6'!H$9:H$108,MATCH('LFA_Findings&Recom export'!$C24,'LFA_Findings&Recommendations_6'!$B$9:$B$108,0))=\"\",\"\",INDEX('LFA_Findings&Recommendations_6'!H$9:H$108,MATCH('LFA_Findings&Recom export'!$C24,'LFA_Findings&Recommendations_6'!$B$9:$B$108,0))),\"\")","v":""},{"$f":"IFERROR(IF(INDEX('LFA_Findings&Recommendations_6'!I$9:I$108,MATCH('LFA_Findings&Recom export'!$C24,'LFA_Findings&Recommendations_6'!$B$9:$B$108,0))=\"\",\"\",INDEX('LFA_Findings&Recommendations_6'!I$9:I$108,MATCH('LFA_Findings&Recom export'!$C24,'LFA_Findings&Recommendations_6'!$B$9:$B$108,0))),\"\")","v":""},{"$f":"IFERROR(IF(INDEX('LFA_Findings&Recommendations_6'!J$9:J$108,MATCH('LFA_Findings&Recom export'!$C24,'LFA_Findings&Recommendations_6'!$B$9:$B$108,0))=\"\",\"\",INDEX('LFA_Findings&Recommendations_6'!J$9:J$108,MATCH('LFA_Findings&Recom export'!$C24,'LFA_Findings&Recommendations_6'!$B$9:$B$108,0))),\"\")","v":""},{"$f":"IFERROR(IF(INDEX('LFA_Findings&Recommendations_6'!K$9:K$108,MATCH('LFA_Findings&Recom export'!$C24,'LFA_Findings&Recommendations_6'!$B$9:$B$108,0))=\"\",\"\",INDEX('LFA_Findings&Recommendations_6'!K$9:K$108,MATCH('LFA_Findings&Recom export'!$C24,'LFA_Findings&Recommendations_6'!$B$9:$B$108,0))),\"\")","v":""},{"$f":"IFERROR(IF(INDEX('LFA_Findings&Recommendations_6'!L$9:L$108,MATCH('LFA_Findings&Recom export'!$C24,'LFA_Findings&Recommendations_6'!$B$9:$B$108,0))=\"\",\"\",INDEX('LFA_Findings&Recommendations_6'!L$9:L$108,MATCH('LFA_Findings&Recom export'!$C24,'LFA_Findings&Recommendations_6'!$B$9:$B$108,0))),\"\")","v":""},null,false,{"$f":"IFERROR(IF(INDEX('LFA_Findings&Recommendations_6'!A$9:A$108,MATCH('LFA_Findings&Recom export'!$C24,'LFA_Findings&Recommendations_6'!$B$9:$B$108,0))=\"\",\"\",INDEX('LFA_Findings&Recommendations_6'!A$9:A$108,MATCH('LFA_Findings&Recom export'!$C24,'LFA_Findings&Recommendations_6'!$B$9:$B$108,0))),\"\")","v":false},{"$f":"IF(P24=TRUE,_xlfn.IFNA(VLOOKUP(D24,RiskData!$B$5:$D$11,3,FALSE), \"\"),\"\")","v":""},{"$f":"IF(P24=TRUE,_xlfn.IFNA(VLOOKUP(E24,RiskData!$F$13:$I$36,4,FALSE), \"\"),\"\")","v":""},{"$f":"IF(P24=TRUE,_xlfn.IFNA(INDEX(RiskData!$H$40:$H$290,MATCH(TRUE,INDEX(RIGHT(RiskData!$F$40:$F$290,255)=RIGHT(F24,255),0),0)), \"\"),\"\")","v":""},{"$f":"IF(OR(P24=TRUE,ISBLANK(D24)),'Admin Sheet'!$B$44,\"\")","v":""},{"$f":"IF(OR(ISBLANK(D24), P24=TRUE),'Admin Sheet'!$B$41,\"\")","v":""},"","","",""]
[null,22,"Finding22",{"$f":"IFERROR(IF(INDEX('LFA_Findings&Recommendations_6'!C$9:C$108,MATCH('LFA_Findings&Recom export'!$C25,'LFA_Findings&Recommendations_6'!$B$9:$B$108,0))=\"\",\"\",INDEX('LFA_Findings&Recommendations_6'!C$9:C$108,MATCH('LFA_Findings&Recom export'!$C25,'LFA_Findings&Recommendations_6'!$B$9:$B$108,0))),\"\")","v":""},{"$f":"IFERROR(IF(INDEX('LFA_Findings&Recommendations_6'!D$9:D$108,MATCH('LFA_Findings&Recom export'!$C25,'LFA_Findings&Recommendations_6'!$B$9:$B$108,0))=\"\",\"\",INDEX('LFA_Findings&Recommendations_6'!D$9:D$108,MATCH('LFA_Findings&Recom export'!$C25,'LFA_Findings&Recommendations_6'!$B$9:$B$108,0))),\"\")","v":""},{"$f":"IFERROR(IF(INDEX('LFA_Findings&Recommendations_6'!E$9:E$108,MATCH('LFA_Findings&Recom export'!$C25,'LFA_Findings&Recommendations_6'!$B$9:$B$108,0))=\"\",\"\",INDEX('LFA_Findings&Recommendations_6'!E$9:E$108,MATCH('LFA_Findings&Recom export'!$C25,'LFA_Findings&Recommendations_6'!$B$9:$B$108,0))),\"\")","v":""},{"$f":"IFERROR(IF(INDEX('LFA_Findings&Recommendations_6'!F$9:F$108,MATCH('LFA_Findings&Recom export'!$C25,'LFA_Findings&Recommendations_6'!$B$9:$B$108,0))=\"\",\"\",INDEX('LFA_Findings&Recommendations_6'!F$9:F$108,MATCH('LFA_Findings&Recom export'!$C25,'LFA_Findings&Recommendations_6'!$B$9:$B$108,0))),\"\")","v":""},{"$f":"IFERROR(IF(INDEX('LFA_Findings&Recommendations_6'!G$9:G$108,MATCH('LFA_Findings&Recom export'!$C25,'LFA_Findings&Recommendations_6'!$B$9:$B$108,0))=\"\",\"\",INDEX('LFA_Findings&Recommendations_6'!G$9:G$108,MATCH('LFA_Findings&Recom export'!$C25,'LFA_Findings&Recommendations_6'!$B$9:$B$108,0))),\"\")","v":""},{"$f":"IFERROR(IF(INDEX('LFA_Findings&Recommendations_6'!H$9:H$108,MATCH('LFA_Findings&Recom export'!$C25,'LFA_Findings&Recommendations_6'!$B$9:$B$108,0))=\"\",\"\",INDEX('LFA_Findings&Recommendations_6'!H$9:H$108,MATCH('LFA_Findings&Recom export'!$C25,'LFA_Findings&Recommendations_6'!$B$9:$B$108,0))),\"\")","v":""},{"$f":"IFERROR(IF(INDEX('LFA_Findings&Recommendations_6'!I$9:I$108,MATCH('LFA_Findings&Recom export'!$C25,'LFA_Findings&Recommendations_6'!$B$9:$B$108,0))=\"\",\"\",INDEX('LFA_Findings&Recommendations_6'!I$9:I$108,MATCH('LFA_Findings&Recom export'!$C25,'LFA_Findings&Recommendations_6'!$B$9:$B$108,0))),\"\")","v":""},{"$f":"IFERROR(IF(INDEX('LFA_Findings&Recommendations_6'!J$9:J$108,MATCH('LFA_Findings&Recom export'!$C25,'LFA_Findings&Recommendations_6'!$B$9:$B$108,0))=\"\",\"\",INDEX('LFA_Findings&Recommendations_6'!J$9:J$108,MATCH('LFA_Findings&Recom export'!$C25,'LFA_Findings&Recommendations_6'!$B$9:$B$108,0))),\"\")","v":""},{"$f":"IFERROR(IF(INDEX('LFA_Findings&Recommendations_6'!K$9:K$108,MATCH('LFA_Findings&Recom export'!$C25,'LFA_Findings&Recommendations_6'!$B$9:$B$108,0))=\"\",\"\",INDEX('LFA_Findings&Recommendations_6'!K$9:K$108,MATCH('LFA_Findings&Recom export'!$C25,'LFA_Findings&Recommendations_6'!$B$9:$B$108,0))),\"\")","v":""},{"$f":"IFERROR(IF(INDEX('LFA_Findings&Recommendations_6'!L$9:L$108,MATCH('LFA_Findings&Recom export'!$C25,'LFA_Findings&Recommendations_6'!$B$9:$B$108,0))=\"\",\"\",INDEX('LFA_Findings&Recommendations_6'!L$9:L$108,MATCH('LFA_Findings&Recom export'!$C25,'LFA_Findings&Recommendations_6'!$B$9:$B$108,0))),\"\")","v":""},null,false,{"$f":"IFERROR(IF(INDEX('LFA_Findings&Recommendations_6'!A$9:A$108,MATCH('LFA_Findings&Recom export'!$C25,'LFA_Findings&Recommendations_6'!$B$9:$B$108,0))=\"\",\"\",INDEX('LFA_Findings&Recommendations_6'!A$9:A$108,MATCH('LFA_Findings&Recom export'!$C25,'LFA_Findings&Recommendations_6'!$B$9:$B$108,0))),\"\")","v":false},{"$f":"IF(P25=TRUE,_xlfn.IFNA(VLOOKUP(D25,RiskData!$B$5:$D$11,3,FALSE), \"\"),\"\")","v":""},{"$f":"IF(P25=TRUE,_xlfn.IFNA(VLOOKUP(E25,RiskData!$F$13:$I$36,4,FALSE), \"\"),\"\")","v":""},{"$f":"IF(P25=TRUE,_xlfn.IFNA(INDEX(RiskData!$H$40:$H$290,MATCH(TRUE,INDEX(RIGHT(RiskData!$F$40:$F$290,255)=RIGHT(F25,255),0),0)), \"\"),\"\")","v":""},{"$f":"IF(OR(P25=TRUE,ISBLANK(D25)),'Admin Sheet'!$B$44,\"\")","v":""},{"$f":"IF(OR(ISBLANK(D25), P25=TRUE),'Admin Sheet'!$B$41,\"\")","v":""},"","","",""]
[null,23,"Finding23",{"$f":"IFERROR(IF(INDEX('LFA_Findings&Recommendations_6'!C$9:C$108,MATCH('LFA_Findings&Recom export'!$C26,'LFA_Findings&Recommendations_6'!$B$9:$B$108,0))=\"\",\"\",INDEX('LFA_Findings&Recommendations_6'!C$9:C$108,MATCH('LFA_Findings&Recom export'!$C26,'LFA_Findings&Recommendations_6'!$B$9:$B$108,0))),\"\")","v":""},{"$f":"IFERROR(IF(INDEX('LFA_Findings&Recommendations_6'!D$9:D$108,MATCH('LFA_Findings&Recom export'!$C26,'LFA_Findings&Recommendations_6'!$B$9:$B$108,0))=\"\",\"\",INDEX('LFA_Findings&Recommendations_6'!D$9:D$108,MATCH('LFA_Findings&Recom export'!$C26,'LFA_Findings&Recommendations_6'!$B$9:$B$108,0))),\"\")","v":""},{"$f":"IFERROR(IF(INDEX('LFA_Findings&Recommendations_6'!E$9:E$108,MATCH('LFA_Findings&Recom export'!$C26,'LFA_Findings&Recommendations_6'!$B$9:$B$108,0))=\"\",\"\",INDEX('LFA_Findings&Recommendations_6'!E$9:E$108,MATCH('LFA_Findings&Recom export'!$C26,'LFA_Findings&Recommendations_6'!$B$9:$B$108,0))),\"\")","v":""},{"$f":"IFERROR(IF(INDEX('LFA_Findings&Recommendations_6'!F$9:F$108,MATCH('LFA_Findings&Recom export'!$C26,'LFA_Findings&Recommendations_6'!$B$9:$B$108,0))=\"\",\"\",INDEX('LFA_Findings&Recommendations_6'!F$9:F$108,MATCH('LFA_Findings&Recom export'!$C26,'LFA_Findings&Recommendations_6'!$B$9:$B$108,0))),\"\")","v":""},{"$f":"IFERROR(IF(INDEX('LFA_Findings&Recommendations_6'!G$9:G$108,MATCH('LFA_Findings&Recom export'!$C26,'LFA_Findings&Recommendations_6'!$B$9:$B$108,0))=\"\",\"\",INDEX('LFA_Findings&Recommendations_6'!G$9:G$108,MATCH('LFA_Findings&Recom export'!$C26,'LFA_Findings&Recommendations_6'!$B$9:$B$108,0))),\"\")","v":""},{"$f":"IFERROR(IF(INDEX('LFA_Findings&Recommendations_6'!H$9:H$108,MATCH('LFA_Findings&Recom export'!$C26,'LFA_Findings&Recommendations_6'!$B$9:$B$108,0))=\"\",\"\",INDEX('LFA_Findings&Recommendations_6'!H$9:H$108,MATCH('LFA_Findings&Recom export'!$C26,'LFA_Findings&Recommendations_6'!$B$9:$B$108,0))),\"\")","v":""},{"$f":"IFERROR(IF(INDEX('LFA_Findings&Recommendations_6'!I$9:I$108,MATCH('LFA_Findings&Recom export'!$C26,'LFA_Findings&Recommendations_6'!$B$9:$B$108,0))=\"\",\"\",INDEX('LFA_Findings&Recommendations_6'!I$9:I$108,MATCH('LFA_Findings&Recom export'!$C26,'LFA_Findings&Recommendations_6'!$B$9:$B$108,0))),\"\")","v":""},{"$f":"IFERROR(IF(INDEX('LFA_Findings&Recommendations_6'!J$9:J$108,MATCH('LFA_Findings&Recom export'!$C26,'LFA_Findings&Recommendations_6'!$B$9:$B$108,0))=\"\",\"\",INDEX('LFA_Findings&Recommendations_6'!J$9:J$108,MATCH('LFA_Findings&Recom export'!$C26,'LFA_Findings&Recommendations_6'!$B$9:$B$108,0))),\"\")","v":""},{"$f":"IFERROR(IF(INDEX('LFA_Findings&Recommendations_6'!K$9:K$108,MATCH('LFA_Findings&Recom export'!$C26,'LFA_Findings&Recommendations_6'!$B$9:$B$108,0))=\"\",\"\",INDEX('LFA_Findings&Recommendations_6'!K$9:K$108,MATCH('LFA_Findings&Recom export'!$C26,'LFA_Findings&Recommendations_6'!$B$9:$B$108,0))),\"\")","v":""},{"$f":"IFERROR(IF(INDEX('LFA_Findings&Recommendations_6'!L$9:L$108,MATCH('LFA_Findings&Recom export'!$C26,'LFA_Findings&Recommendations_6'!$B$9:$B$108,0))=\"\",\"\",INDEX('LFA_Findings&Recommendations_6'!L$9:L$108,MATCH('LFA_Findings&Recom export'!$C26,'LFA_Findings&Recommendations_6'!$B$9:$B$108,0))),\"\")","v":""},null,false,{"$f":"IFERROR(IF(INDEX('LFA_Findings&Recommendations_6'!A$9:A$108,MATCH('LFA_Findings&Recom export'!$C26,'LFA_Findings&Recommendations_6'!$B$9:$B$108,0))=\"\",\"\",INDEX('LFA_Findings&Recommendations_6'!A$9:A$108,MATCH('LFA_Findings&Recom export'!$C26,'LFA_Findings&Recommendations_6'!$B$9:$B$108,0))),\"\")","v":false},{"$f":"IF(P26=TRUE,_xlfn.IFNA(VLOOKUP(D26,RiskData!$B$5:$D$11,3,FALSE), \"\"),\"\")","v":""},{"$f":"IF(P26=TRUE,_xlfn.IFNA(VLOOKUP(E26,RiskData!$F$13:$I$36,4,FALSE), \"\"),\"\")","v":""},{"$f":"IF(P26=TRUE,_xlfn.IFNA(INDEX(RiskData!$H$40:$H$290,MATCH(TRUE,INDEX(RIGHT(RiskData!$F$40:$F$290,255)=RIGHT(F26,255),0),0)), \"\"),\"\")","v":""},{"$f":"IF(OR(P26=TRUE,ISBLANK(D26)),'Admin Sheet'!$B$44,\"\")","v":""},{"$f":"IF(OR(ISBLANK(D26), P26=TRUE),'Admin Sheet'!$B$41,\"\")","v":""},"","","",""]
[null,24,"Finding24",{"$f":"IFERROR(IF(INDEX('LFA_Findings&Recommendations_6'!C$9:C$108,MATCH('LFA_Findings&Recom export'!$C27,'LFA_Findings&Recommendations_6'!$B$9:$B$108,0))=\"\",\"\",INDEX('LFA_Findings&Recommendations_6'!C$9:C$108,MATCH('LFA_Findings&Recom export'!$C27,'LFA_Findings&Recommendations_6'!$B$9:$B$108,0))),\"\")","v":""},{"$f":"IFERROR(IF(INDEX('LFA_Findings&Recommendations_6'!D$9:D$108,MATCH('LFA_Findings&Recom export'!$C27,'LFA_Findings&Recommendations_6'!$B$9:$B$108,0))=\"\",\"\",INDEX('LFA_Findings&Recommendations_6'!D$9:D$108,MATCH('LFA_Findings&Recom export'!$C27,'LFA_Findings&Recommendations_6'!$B$9:$B$108,0))),\"\")","v":""},{"$f":"IFERROR(IF(INDEX('LFA_Findings&Recommendations_6'!E$9:E$108,MATCH('LFA_Findings&Recom export'!$C27,'LFA_Findings&Recommendations_6'!$B$9:$B$108,0))=\"\",\"\",INDEX('LFA_Findings&Recommendations_6'!E$9:E$108,MATCH('LFA_Findings&Recom export'!$C27,'LFA_Findings&Recommendations_6'!$B$9:$B$108,0))),\"\")","v":""},{"$f":"IFERROR(IF(INDEX('LFA_Findings&Recommendations_6'!F$9:F$108,MATCH('LFA_Findings&Recom export'!$C27,'LFA_Findings&Recommendations_6'!$B$9:$B$108,0))=\"\",\"\",INDEX('LFA_Findings&Recommendations_6'!F$9:F$108,MATCH('LFA_Findings&Recom export'!$C27,'LFA_Findings&Recommendations_6'!$B$9:$B$108,0))),\"\")","v":""},{"$f":"IFERROR(IF(INDEX('LFA_Findings&Recommendations_6'!G$9:G$108,MATCH('LFA_Findings&Recom export'!$C27,'LFA_Findings&Recommendations_6'!$B$9:$B$108,0))=\"\",\"\",INDEX('LFA_Findings&Recommendations_6'!G$9:G$108,MATCH('LFA_Findings&Recom export'!$C27,'LFA_Findings&Recommendations_6'!$B$9:$B$108,0))),\"\")","v":""},{"$f":"IFERROR(IF(INDEX('LFA_Findings&Recommendations_6'!H$9:H$108,MATCH('LFA_Findings&Recom export'!$C27,'LFA_Findings&Recommendations_6'!$B$9:$B$108,0))=\"\",\"\",INDEX('LFA_Findings&Recommendations_6'!H$9:H$108,MATCH('LFA_Findings&Recom export'!$C27,'LFA_Findings&Recommendations_6'!$B$9:$B$108,0))),\"\")","v":""},{"$f":"IFERROR(IF(INDEX('LFA_Findings&Recommendations_6'!I$9:I$108,MATCH('LFA_Findings&Recom export'!$C27,'LFA_Findings&Recommendations_6'!$B$9:$B$108,0))=\"\",\"\",INDEX('LFA_Findings&Recommendations_6'!I$9:I$108,MATCH('LFA_Findings&Recom export'!$C27,'LFA_Findings&Recommendations_6'!$B$9:$B$108,0))),\"\")","v":""},{"$f":"IFERROR(IF(INDEX('LFA_Findings&Recommendations_6'!J$9:J$108,MATCH('LFA_Findings&Recom export'!$C27,'LFA_Findings&Recommendations_6'!$B$9:$B$108,0))=\"\",\"\",INDEX('LFA_Findings&Recommendations_6'!J$9:J$108,MATCH('LFA_Findings&Recom export'!$C27,'LFA_Findings&Recommendations_6'!$B$9:$B$108,0))),\"\")","v":""},{"$f":"IFERROR(IF(INDEX('LFA_Findings&Recommendations_6'!K$9:K$108,MATCH('LFA_Findings&Recom export'!$C27,'LFA_Findings&Recommendations_6'!$B$9:$B$108,0))=\"\",\"\",INDEX('LFA_Findings&Recommendations_6'!K$9:K$108,MATCH('LFA_Findings&Recom export'!$C27,'LFA_Findings&Recommendations_6'!$B$9:$B$108,0))),\"\")","v":""},{"$f":"IFERROR(IF(INDEX('LFA_Findings&Recommendations_6'!L$9:L$108,MATCH('LFA_Findings&Recom export'!$C27,'LFA_Findings&Recommendations_6'!$B$9:$B$108,0))=\"\",\"\",INDEX('LFA_Findings&Recommendations_6'!L$9:L$108,MATCH('LFA_Findings&Recom export'!$C27,'LFA_Findings&Recommendations_6'!$B$9:$B$108,0))),\"\")","v":""},null,false,{"$f":"IFERROR(IF(INDEX('LFA_Findings&Recommendations_6'!A$9:A$108,MATCH('LFA_Findings&Recom export'!$C27,'LFA_Findings&Recommendations_6'!$B$9:$B$108,0))=\"\",\"\",INDEX('LFA_Findings&Recommendations_6'!A$9:A$108,MATCH('LFA_Findings&Recom export'!$C27,'LFA_Findings&Recommendations_6'!$B$9:$B$108,0))),\"\")","v":false},{"$f":"IF(P27=TRUE,_xlfn.IFNA(VLOOKUP(D27,RiskData!$B$5:$D$11,3,FALSE), \"\"),\"\")","v":""},{"$f":"IF(P27=TRUE,_xlfn.IFNA(VLOOKUP(E27,RiskData!$F$13:$I$36,4,FALSE), \"\"),\"\")","v":""},{"$f":"IF(P27=TRUE,_xlfn.IFNA(INDEX(RiskData!$H$40:$H$290,MATCH(TRUE,INDEX(RIGHT(RiskData!$F$40:$F$290,255)=RIGHT(F27,255),0),0)), \"\"),\"\")","v":""},{"$f":"IF(OR(P27=TRUE,ISBLANK(D27)),'Admin Sheet'!$B$44,\"\")","v":""},{"$f":"IF(OR(ISBLANK(D27), P27=TRUE),'Admin Sheet'!$B$41,\"\")","v":""},"","","",""]
[null,25,"Finding25",{"$f":"IFERROR(IF(INDEX('LFA_Findings&Recommendations_6'!C$9:C$108,MATCH('LFA_Findings&Recom export'!$C28,'LFA_Findings&Recommendations_6'!$B$9:$B$108,0))=\"\",\"\",INDEX('LFA_Findings&Recommendations_6'!C$9:C$108,MATCH('LFA_Findings&Recom export'!$C28,'LFA_Findings&Recommendations_6'!$B$9:$B$108,0))),\"\")","v":""},{"$f":"IFERROR(IF(INDEX('LFA_Findings&Recommendations_6'!D$9:D$108,MATCH('LFA_Findings&Recom export'!$C28,'LFA_Findings&Recommendations_6'!$B$9:$B$108,0))=\"\",\"\",INDEX('LFA_Findings&Recommendations_6'!D$9:D$108,MATCH('LFA_Findings&Recom export'!$C28,'LFA_Findings&Recommendations_6'!$B$9:$B$108,0))),\"\")","v":""},{"$f":"IFERROR(IF(INDEX('LFA_Findings&Recommendations_6'!E$9:E$108,MATCH('LFA_Findings&Recom export'!$C28,'LFA_Findings&Recommendations_6'!$B$9:$B$108,0))=\"\",\"\",INDEX('LFA_Findings&Recommendations_6'!E$9:E$108,MATCH('LFA_Findings&Recom export'!$C28,'LFA_Findings&Recommendations_6'!$B$9:$B$108,0))),\"\")","v":""},{"$f":"IFERROR(IF(INDEX('LFA_Findings&Recommendations_6'!F$9:F$108,MATCH('LFA_Findings&Recom export'!$C28,'LFA_Findings&Recommendations_6'!$B$9:$B$108,0))=\"\",\"\",INDEX('LFA_Findings&Recommendations_6'!F$9:F$108,MATCH('LFA_Findings&Recom export'!$C28,'LFA_Findings&Recommendations_6'!$B$9:$B$108,0))),\"\")","v":""},{"$f":"IFERROR(IF(INDEX('LFA_Findings&Recommendations_6'!G$9:G$108,MATCH('LFA_Findings&Recom export'!$C28,'LFA_Findings&Recommendations_6'!$B$9:$B$108,0))=\"\",\"\",INDEX('LFA_Findings&Recommendations_6'!G$9:G$108,MATCH('LFA_Findings&Recom export'!$C28,'LFA_Findings&Recommendations_6'!$B$9:$B$108,0))),\"\")","v":""},{"$f":"IFERROR(IF(INDEX('LFA_Findings&Recommendations_6'!H$9:H$108,MATCH('LFA_Findings&Recom export'!$C28,'LFA_Findings&Recommendations_6'!$B$9:$B$108,0))=\"\",\"\",INDEX('LFA_Findings&Recommendations_6'!H$9:H$108,MATCH('LFA_Findings&Recom export'!$C28,'LFA_Findings&Recommendations_6'!$B$9:$B$108,0))),\"\")","v":""},{"$f":"IFERROR(IF(INDEX('LFA_Findings&Recommendations_6'!I$9:I$108,MATCH('LFA_Findings&Recom export'!$C28,'LFA_Findings&Recommendations_6'!$B$9:$B$108,0))=\"\",\"\",INDEX('LFA_Findings&Recommendations_6'!I$9:I$108,MATCH('LFA_Findings&Recom export'!$C28,'LFA_Findings&Recommendations_6'!$B$9:$B$108,0))),\"\")","v":""},{"$f":"IFERROR(IF(INDEX('LFA_Findings&Recommendations_6'!J$9:J$108,MATCH('LFA_Findings&Recom export'!$C28,'LFA_Findings&Recommendations_6'!$B$9:$B$108,0))=\"\",\"\",INDEX('LFA_Findings&Recommendations_6'!J$9:J$108,MATCH('LFA_Findings&Recom export'!$C28,'LFA_Findings&Recommendations_6'!$B$9:$B$108,0))),\"\")","v":""},{"$f":"IFERROR(IF(INDEX('LFA_Findings&Recommendations_6'!K$9:K$108,MATCH('LFA_Findings&Recom export'!$C28,'LFA_Findings&Recommendations_6'!$B$9:$B$108,0))=\"\",\"\",INDEX('LFA_Findings&Recommendations_6'!K$9:K$108,MATCH('LFA_Findings&Recom export'!$C28,'LFA_Findings&Recommendations_6'!$B$9:$B$108,0))),\"\")","v":""},{"$f":"IFERROR(IF(INDEX('LFA_Findings&Recommendations_6'!L$9:L$108,MATCH('LFA_Findings&Recom export'!$C28,'LFA_Findings&Recommendations_6'!$B$9:$B$108,0))=\"\",\"\",INDEX('LFA_Findings&Recommendations_6'!L$9:L$108,MATCH('LFA_Findings&Recom export'!$C28,'LFA_Findings&Recommendations_6'!$B$9:$B$108,0))),\"\")","v":""},null,false,{"$f":"IFERROR(IF(INDEX('LFA_Findings&Recommendations_6'!A$9:A$108,MATCH('LFA_Findings&Recom export'!$C28,'LFA_Findings&Recommendations_6'!$B$9:$B$108,0))=\"\",\"\",INDEX('LFA_Findings&Recommendations_6'!A$9:A$108,MATCH('LFA_Findings&Recom export'!$C28,'LFA_Findings&Recommendations_6'!$B$9:$B$108,0))),\"\")","v":false},{"$f":"IF(P28=TRUE,_xlfn.IFNA(VLOOKUP(D28,RiskData!$B$5:$D$11,3,FALSE), \"\"),\"\")","v":""},{"$f":"IF(P28=TRUE,_xlfn.IFNA(VLOOKUP(E28,RiskData!$F$13:$I$36,4,FALSE), \"\"),\"\")","v":""},{"$f":"IF(P28=TRUE,_xlfn.IFNA(INDEX(RiskData!$H$40:$H$290,MATCH(TRUE,INDEX(RIGHT(RiskData!$F$40:$F$290,255)=RIGHT(F28,255),0),0)), \"\"),\"\")","v":""},{"$f":"IF(OR(P28=TRUE,ISBLANK(D28)),'Admin Sheet'!$B$44,\"\")","v":""},{"$f":"IF(OR(ISBLANK(D28), P28=TRUE),'Admin Sheet'!$B$41,\"\")","v":""},"","","",""]
[null,26,"Finding26",{"$f":"IFERROR(IF(INDEX('LFA_Findings&Recommendations_6'!C$9:C$108,MATCH('LFA_Findings&Recom export'!$C29,'LFA_Findings&Recommendations_6'!$B$9:$B$108,0))=\"\",\"\",INDEX('LFA_Findings&Recommendations_6'!C$9:C$108,MATCH('LFA_Findings&Recom export'!$C29,'LFA_Findings&Recommendations_6'!$B$9:$B$108,0))),\"\")","v":""},{"$f":"IFERROR(IF(INDEX('LFA_Findings&Recommendations_6'!D$9:D$108,MATCH('LFA_Findings&Recom export'!$C29,'LFA_Findings&Recommendations_6'!$B$9:$B$108,0))=\"\",\"\",INDEX('LFA_Findings&Recommendations_6'!D$9:D$108,MATCH('LFA_Findings&Recom export'!$C29,'LFA_Findings&Recommendations_6'!$B$9:$B$108,0))),\"\")","v":""},{"$f":"IFERROR(IF(INDEX('LFA_Findings&Recommendations_6'!E$9:E$108,MATCH('LFA_Findings&Recom export'!$C29,'LFA_Findings&Recommendations_6'!$B$9:$B$108,0))=\"\",\"\",INDEX('LFA_Findings&Recommendations_6'!E$9:E$108,MATCH('LFA_Findings&Recom export'!$C29,'LFA_Findings&Recommendations_6'!$B$9:$B$108,0))),\"\")","v":""},{"$f":"IFERROR(IF(INDEX('LFA_Findings&Recommendations_6'!F$9:F$108,MATCH('LFA_Findings&Recom export'!$C29,'LFA_Findings&Recommendations_6'!$B$9:$B$108,0))=\"\",\"\",INDEX('LFA_Findings&Recommendations_6'!F$9:F$108,MATCH('LFA_Findings&Recom export'!$C29,'LFA_Findings&Recommendations_6'!$B$9:$B$108,0))),\"\")","v":""},{"$f":"IFERROR(IF(INDEX('LFA_Findings&Recommendations_6'!G$9:G$108,MATCH('LFA_Findings&Recom export'!$C29,'LFA_Findings&Recommendations_6'!$B$9:$B$108,0))=\"\",\"\",INDEX('LFA_Findings&Recommendations_6'!G$9:G$108,MATCH('LFA_Findings&Recom export'!$C29,'LFA_Findings&Recommendations_6'!$B$9:$B$108,0))),\"\")","v":""},{"$f":"IFERROR(IF(INDEX('LFA_Findings&Recommendations_6'!H$9:H$108,MATCH('LFA_Findings&Recom export'!$C29,'LFA_Findings&Recommendations_6'!$B$9:$B$108,0))=\"\",\"\",INDEX('LFA_Findings&Recommendations_6'!H$9:H$108,MATCH('LFA_Findings&Recom export'!$C29,'LFA_Findings&Recommendations_6'!$B$9:$B$108,0))),\"\")","v":""},{"$f":"IFERROR(IF(INDEX('LFA_Findings&Recommendations_6'!I$9:I$108,MATCH('LFA_Findings&Recom export'!$C29,'LFA_Findings&Recommendations_6'!$B$9:$B$108,0))=\"\",\"\",INDEX('LFA_Findings&Recommendations_6'!I$9:I$108,MATCH('LFA_Findings&Recom export'!$C29,'LFA_Findings&Recommendations_6'!$B$9:$B$108,0))),\"\")","v":""},{"$f":"IFERROR(IF(INDEX('LFA_Findings&Recommendations_6'!J$9:J$108,MATCH('LFA_Findings&Recom export'!$C29,'LFA_Findings&Recommendations_6'!$B$9:$B$108,0))=\"\",\"\",INDEX('LFA_Findings&Recommendations_6'!J$9:J$108,MATCH('LFA_Findings&Recom export'!$C29,'LFA_Findings&Recommendations_6'!$B$9:$B$108,0))),\"\")","v":""},{"$f":"IFERROR(IF(INDEX('LFA_Findings&Recommendations_6'!K$9:K$108,MATCH('LFA_Findings&Recom export'!$C29,'LFA_Findings&Recommendations_6'!$B$9:$B$108,0))=\"\",\"\",INDEX('LFA_Findings&Recommendations_6'!K$9:K$108,MATCH('LFA_Findings&Recom export'!$C29,'LFA_Findings&Recommendations_6'!$B$9:$B$108,0))),\"\")","v":""},{"$f":"IFERROR(IF(INDEX('LFA_Findings&Recommendations_6'!L$9:L$108,MATCH('LFA_Findings&Recom export'!$C29,'LFA_Findings&Recommendations_6'!$B$9:$B$108,0))=\"\",\"\",INDEX('LFA_Findings&Recommendations_6'!L$9:L$108,MATCH('LFA_Findings&Recom export'!$C29,'LFA_Findings&Recommendations_6'!$B$9:$B$108,0))),\"\")","v":""},null,false,{"$f":"IFERROR(IF(INDEX('LFA_Findings&Recommendations_6'!A$9:A$108,MATCH('LFA_Findings&Recom export'!$C29,'LFA_Findings&Recommendations_6'!$B$9:$B$108,0))=\"\",\"\",INDEX('LFA_Findings&Recommendations_6'!A$9:A$108,MATCH('LFA_Findings&Recom export'!$C29,'LFA_Findings&Recommendations_6'!$B$9:$B$108,0))),\"\")","v":false},{"$f":"IF(P29=TRUE,_xlfn.IFNA(VLOOKUP(D29,RiskData!$B$5:$D$11,3,FALSE), \"\"),\"\")","v":""},{"$f":"IF(P29=TRUE,_xlfn.IFNA(VLOOKUP(E29,RiskData!$F$13:$I$36,4,FALSE), \"\"),\"\")","v":""},{"$f":"IF(P29=TRUE,_xlfn.IFNA(INDEX(RiskData!$H$40:$H$290,MATCH(TRUE,INDEX(RIGHT(RiskData!$F$40:$F$290,255)=RIGHT(F29,255),0),0)), \"\"),\"\")","v":""},{"$f":"IF(OR(P29=TRUE,ISBLANK(D29)),'Admin Sheet'!$B$44,\"\")","v":""},{"$f":"IF(OR(ISBLANK(D29), P29=TRUE),'Admin Sheet'!$B$41,\"\")","v":""},"","","",""]
[null,27,"Finding27",{"$f":"IFERROR(IF(INDEX('LFA_Findings&Recommendations_6'!C$9:C$108,MATCH('LFA_Findings&Recom export'!$C30,'LFA_Findings&Recommendations_6'!$B$9:$B$108,0))=\"\",\"\",INDEX('LFA_Findings&Recommendations_6'!C$9:C$108,MATCH('LFA_Findings&Recom export'!$C30,'LFA_Findings&Recommendations_6'!$B$9:$B$108,0))),\"\")","v":""},{"$f":"IFERROR(IF(INDEX('LFA_Findings&Recommendations_6'!D$9:D$108,MATCH('LFA_Findings&Recom export'!$C30,'LFA_Findings&Recommendations_6'!$B$9:$B$108,0))=\"\",\"\",INDEX('LFA_Findings&Recommendations_6'!D$9:D$108,MATCH('LFA_Findings&Recom export'!$C30,'LFA_Findings&Recommendations_6'!$B$9:$B$108,0))),\"\")","v":""},{"$f":"IFERROR(IF(INDEX('LFA_Findings&Recommendations_6'!E$9:E$108,MATCH('LFA_Findings&Recom export'!$C30,'LFA_Findings&Recommendations_6'!$B$9:$B$108,0))=\"\",\"\",INDEX('LFA_Findings&Recommendations_6'!E$9:E$108,MATCH('LFA_Findings&Recom export'!$C30,'LFA_Findings&Recommendations_6'!$B$9:$B$108,0))),\"\")","v":""},{"$f":"IFERROR(IF(INDEX('LFA_Findings&Recommendations_6'!F$9:F$108,MATCH('LFA_Findings&Recom export'!$C30,'LFA_Findings&Recommendations_6'!$B$9:$B$108,0))=\"\",\"\",INDEX('LFA_Findings&Recommendations_6'!F$9:F$108,MATCH('LFA_Findings&Recom export'!$C30,'LFA_Findings&Recommendations_6'!$B$9:$B$108,0))),\"\")","v":""},{"$f":"IFERROR(IF(INDEX('LFA_Findings&Recommendations_6'!G$9:G$108,MATCH('LFA_Findings&Recom export'!$C30,'LFA_Findings&Recommendations_6'!$B$9:$B$108,0))=\"\",\"\",INDEX('LFA_Findings&Recommendations_6'!G$9:G$108,MATCH('LFA_Findings&Recom export'!$C30,'LFA_Findings&Recommendations_6'!$B$9:$B$108,0))),\"\")","v":""},{"$f":"IFERROR(IF(INDEX('LFA_Findings&Recommendations_6'!H$9:H$108,MATCH('LFA_Findings&Recom export'!$C30,'LFA_Findings&Recommendations_6'!$B$9:$B$108,0))=\"\",\"\",INDEX('LFA_Findings&Recommendations_6'!H$9:H$108,MATCH('LFA_Findings&Recom export'!$C30,'LFA_Findings&Recommendations_6'!$B$9:$B$108,0))),\"\")","v":""},{"$f":"IFERROR(IF(INDEX('LFA_Findings&Recommendations_6'!I$9:I$108,MATCH('LFA_Findings&Recom export'!$C30,'LFA_Findings&Recommendations_6'!$B$9:$B$108,0))=\"\",\"\",INDEX('LFA_Findings&Recommendations_6'!I$9:I$108,MATCH('LFA_Findings&Recom export'!$C30,'LFA_Findings&Recommendations_6'!$B$9:$B$108,0))),\"\")","v":""},{"$f":"IFERROR(IF(INDEX('LFA_Findings&Recommendations_6'!J$9:J$108,MATCH('LFA_Findings&Recom export'!$C30,'LFA_Findings&Recommendations_6'!$B$9:$B$108,0))=\"\",\"\",INDEX('LFA_Findings&Recommendations_6'!J$9:J$108,MATCH('LFA_Findings&Recom export'!$C30,'LFA_Findings&Recommendations_6'!$B$9:$B$108,0))),\"\")","v":""},{"$f":"IFERROR(IF(INDEX('LFA_Findings&Recommendations_6'!K$9:K$108,MATCH('LFA_Findings&Recom export'!$C30,'LFA_Findings&Recommendations_6'!$B$9:$B$108,0))=\"\",\"\",INDEX('LFA_Findings&Recommendations_6'!K$9:K$108,MATCH('LFA_Findings&Recom export'!$C30,'LFA_Findings&Recommendations_6'!$B$9:$B$108,0))),\"\")","v":""},{"$f":"IFERROR(IF(INDEX('LFA_Findings&Recommendations_6'!L$9:L$108,MATCH('LFA_Findings&Recom export'!$C30,'LFA_Findings&Recommendations_6'!$B$9:$B$108,0))=\"\",\"\",INDEX('LFA_Findings&Recommendations_6'!L$9:L$108,MATCH('LFA_Findings&Recom export'!$C30,'LFA_Findings&Recommendations_6'!$B$9:$B$108,0))),\"\")","v":""},null,false,{"$f":"IFERROR(IF(INDEX('LFA_Findings&Recommendations_6'!A$9:A$108,MATCH('LFA_Findings&Recom export'!$C30,'LFA_Findings&Recommendations_6'!$B$9:$B$108,0))=\"\",\"\",INDEX('LFA_Findings&Recommendations_6'!A$9:A$108,MATCH('LFA_Findings&Recom export'!$C30,'LFA_Findings&Recommendations_6'!$B$9:$B$108,0))),\"\")","v":false},{"$f":"IF(P30=TRUE,_xlfn.IFNA(VLOOKUP(D30,RiskData!$B$5:$D$11,3,FALSE), \"\"),\"\")","v":""},{"$f":"IF(P30=TRUE,_xlfn.IFNA(VLOOKUP(E30,RiskData!$F$13:$I$36,4,FALSE), \"\"),\"\")","v":""},{"$f":"IF(P30=TRUE,_xlfn.IFNA(INDEX(RiskData!$H$40:$H$290,MATCH(TRUE,INDEX(RIGHT(RiskData!$F$40:$F$290,255)=RIGHT(F30,255),0),0)), \"\"),\"\")","v":""},{"$f":"IF(OR(P30=TRUE,ISBLANK(D30)),'Admin Sheet'!$B$44,\"\")","v":""},{"$f":"IF(OR(ISBLANK(D30), P30=TRUE),'Admin Sheet'!$B$41,\"\")","v":""},"","","",""]
[null,28,"Finding28",{"$f":"IFERROR(IF(INDEX('LFA_Findings&Recommendations_6'!C$9:C$108,MATCH('LFA_Findings&Recom export'!$C31,'LFA_Findings&Recommendations_6'!$B$9:$B$108,0))=\"\",\"\",INDEX('LFA_Findings&Recommendations_6'!C$9:C$108,MATCH('LFA_Findings&Recom export'!$C31,'LFA_Findings&Recommendations_6'!$B$9:$B$108,0))),\"\")","v":""},{"$f":"IFERROR(IF(INDEX('LFA_Findings&Recommendations_6'!D$9:D$108,MATCH('LFA_Findings&Recom export'!$C31,'LFA_Findings&Recommendations_6'!$B$9:$B$108,0))=\"\",\"\",INDEX('LFA_Findings&Recommendations_6'!D$9:D$108,MATCH('LFA_Findings&Recom export'!$C31,'LFA_Findings&Recommendations_6'!$B$9:$B$108,0))),\"\")","v":""},{"$f":"IFERROR(IF(INDEX('LFA_Findings&Recommendations_6'!E$9:E$108,MATCH('LFA_Findings&Recom export'!$C31,'LFA_Findings&Recommendations_6'!$B$9:$B$108,0))=\"\",\"\",INDEX('LFA_Findings&Recommendations_6'!E$9:E$108,MATCH('LFA_Findings&Recom export'!$C31,'LFA_Findings&Recommendations_6'!$B$9:$B$108,0))),\"\")","v":""},{"$f":"IFERROR(IF(INDEX('LFA_Findings&Recommendations_6'!F$9:F$108,MATCH('LFA_Findings&Recom export'!$C31,'LFA_Findings&Recommendations_6'!$B$9:$B$108,0))=\"\",\"\",INDEX('LFA_Findings&Recommendations_6'!F$9:F$108,MATCH('LFA_Findings&Recom export'!$C31,'LFA_Findings&Recommendations_6'!$B$9:$B$108,0))),\"\")","v":""},{"$f":"IFERROR(IF(INDEX('LFA_Findings&Recommendations_6'!G$9:G$108,MATCH('LFA_Findings&Recom export'!$C31,'LFA_Findings&Recommendations_6'!$B$9:$B$108,0))=\"\",\"\",INDEX('LFA_Findings&Recommendations_6'!G$9:G$108,MATCH('LFA_Findings&Recom export'!$C31,'LFA_Findings&Recommendations_6'!$B$9:$B$108,0))),\"\")","v":""},{"$f":"IFERROR(IF(INDEX('LFA_Findings&Recommendations_6'!H$9:H$108,MATCH('LFA_Findings&Recom export'!$C31,'LFA_Findings&Recommendations_6'!$B$9:$B$108,0))=\"\",\"\",INDEX('LFA_Findings&Recommendations_6'!H$9:H$108,MATCH('LFA_Findings&Recom export'!$C31,'LFA_Findings&Recommendations_6'!$B$9:$B$108,0))),\"\")","v":""},{"$f":"IFERROR(IF(INDEX('LFA_Findings&Recommendations_6'!I$9:I$108,MATCH('LFA_Findings&Recom export'!$C31,'LFA_Findings&Recommendations_6'!$B$9:$B$108,0))=\"\",\"\",INDEX('LFA_Findings&Recommendations_6'!I$9:I$108,MATCH('LFA_Findings&Recom export'!$C31,'LFA_Findings&Recommendations_6'!$B$9:$B$108,0))),\"\")","v":""},{"$f":"IFERROR(IF(INDEX('LFA_Findings&Recommendations_6'!J$9:J$108,MATCH('LFA_Findings&Recom export'!$C31,'LFA_Findings&Recommendations_6'!$B$9:$B$108,0))=\"\",\"\",INDEX('LFA_Findings&Recommendations_6'!J$9:J$108,MATCH('LFA_Findings&Recom export'!$C31,'LFA_Findings&Recommendations_6'!$B$9:$B$108,0))),\"\")","v":""},{"$f":"IFERROR(IF(INDEX('LFA_Findings&Recommendations_6'!K$9:K$108,MATCH('LFA_Findings&Recom export'!$C31,'LFA_Findings&Recommendations_6'!$B$9:$B$108,0))=\"\",\"\",INDEX('LFA_Findings&Recommendations_6'!K$9:K$108,MATCH('LFA_Findings&Recom export'!$C31,'LFA_Findings&Recommendations_6'!$B$9:$B$108,0))),\"\")","v":""},{"$f":"IFERROR(IF(INDEX('LFA_Findings&Recommendations_6'!L$9:L$108,MATCH('LFA_Findings&Recom export'!$C31,'LFA_Findings&Recommendations_6'!$B$9:$B$108,0))=\"\",\"\",INDEX('LFA_Findings&Recommendations_6'!L$9:L$108,MATCH('LFA_Findings&Recom export'!$C31,'LFA_Findings&Recommendations_6'!$B$9:$B$108,0))),\"\")","v":""},null,false,{"$f":"IFERROR(IF(INDEX('LFA_Findings&Recommendations_6'!A$9:A$108,MATCH('LFA_Findings&Recom export'!$C31,'LFA_Findings&Recommendations_6'!$B$9:$B$108,0))=\"\",\"\",INDEX('LFA_Findings&Recommendations_6'!A$9:A$108,MATCH('LFA_Findings&Recom export'!$C31,'LFA_Findings&Recommendations_6'!$B$9:$B$108,0))),\"\")","v":false},{"$f":"IF(P31=TRUE,_xlfn.IFNA(VLOOKUP(D31,RiskData!$B$5:$D$11,3,FALSE), \"\"),\"\")","v":""},{"$f":"IF(P31=TRUE,_xlfn.IFNA(VLOOKUP(E31,RiskData!$F$13:$I$36,4,FALSE), \"\"),\"\")","v":""},{"$f":"IF(P31=TRUE,_xlfn.IFNA(INDEX(RiskData!$H$40:$H$290,MATCH(TRUE,INDEX(RIGHT(RiskData!$F$40:$F$290,255)=RIGHT(F31,255),0),0)), \"\"),\"\")","v":""},{"$f":"IF(OR(P31=TRUE,ISBLANK(D31)),'Admin Sheet'!$B$44,\"\")","v":""},{"$f":"IF(OR(ISBLANK(D31), P31=TRUE),'Admin Sheet'!$B$41,\"\")","v":""},"","","",""]
[null,29,"Finding29",{"$f":"IFERROR(IF(INDEX('LFA_Findings&Recommendations_6'!C$9:C$108,MATCH('LFA_Findings&Recom export'!$C32,'LFA_Findings&Recommendations_6'!$B$9:$B$108,0))=\"\",\"\",INDEX('LFA_Findings&Recommendations_6'!C$9:C$108,MATCH('LFA_Findings&Recom export'!$C32,'LFA_Findings&Recommendations_6'!$B$9:$B$108,0))),\"\")","v":""},{"$f":"IFERROR(IF(INDEX('LFA_Findings&Recommendations_6'!D$9:D$108,MATCH('LFA_Findings&Recom export'!$C32,'LFA_Findings&Recommendations_6'!$B$9:$B$108,0))=\"\",\"\",INDEX('LFA_Findings&Recommendations_6'!D$9:D$108,MATCH('LFA_Findings&Recom export'!$C32,'LFA_Findings&Recommendations_6'!$B$9:$B$108,0))),\"\")","v":""},{"$f":"IFERROR(IF(INDEX('LFA_Findings&Recommendations_6'!E$9:E$108,MATCH('LFA_Findings&Recom export'!$C32,'LFA_Findings&Recommendations_6'!$B$9:$B$108,0))=\"\",\"\",INDEX('LFA_Findings&Recommendations_6'!E$9:E$108,MATCH('LFA_Findings&Recom export'!$C32,'LFA_Findings&Recommendations_6'!$B$9:$B$108,0))),\"\")","v":""},{"$f":"IFERROR(IF(INDEX('LFA_Findings&Recommendations_6'!F$9:F$108,MATCH('LFA_Findings&Recom export'!$C32,'LFA_Findings&Recommendations_6'!$B$9:$B$108,0))=\"\",\"\",INDEX('LFA_Findings&Recommendations_6'!F$9:F$108,MATCH('LFA_Findings&Recom export'!$C32,'LFA_Findings&Recommendations_6'!$B$9:$B$108,0))),\"\")","v":""},{"$f":"IFERROR(IF(INDEX('LFA_Findings&Recommendations_6'!G$9:G$108,MATCH('LFA_Findings&Recom export'!$C32,'LFA_Findings&Recommendations_6'!$B$9:$B$108,0))=\"\",\"\",INDEX('LFA_Findings&Recommendations_6'!G$9:G$108,MATCH('LFA_Findings&Recom export'!$C32,'LFA_Findings&Recommendations_6'!$B$9:$B$108,0))),\"\")","v":""},{"$f":"IFERROR(IF(INDEX('LFA_Findings&Recommendations_6'!H$9:H$108,MATCH('LFA_Findings&Recom export'!$C32,'LFA_Findings&Recommendations_6'!$B$9:$B$108,0))=\"\",\"\",INDEX('LFA_Findings&Recommendations_6'!H$9:H$108,MATCH('LFA_Findings&Recom export'!$C32,'LFA_Findings&Recommendations_6'!$B$9:$B$108,0))),\"\")","v":""},{"$f":"IFERROR(IF(INDEX('LFA_Findings&Recommendations_6'!I$9:I$108,MATCH('LFA_Findings&Recom export'!$C32,'LFA_Findings&Recommendations_6'!$B$9:$B$108,0))=\"\",\"\",INDEX('LFA_Findings&Recommendations_6'!I$9:I$108,MATCH('LFA_Findings&Recom export'!$C32,'LFA_Findings&Recommendations_6'!$B$9:$B$108,0))),\"\")","v":""},{"$f":"IFERROR(IF(INDEX('LFA_Findings&Recommendations_6'!J$9:J$108,MATCH('LFA_Findings&Recom export'!$C32,'LFA_Findings&Recommendations_6'!$B$9:$B$108,0))=\"\",\"\",INDEX('LFA_Findings&Recommendations_6'!J$9:J$108,MATCH('LFA_Findings&Recom export'!$C32,'LFA_Findings&Recommendations_6'!$B$9:$B$108,0))),\"\")","v":""},{"$f":"IFERROR(IF(INDEX('LFA_Findings&Recommendations_6'!K$9:K$108,MATCH('LFA_Findings&Recom export'!$C32,'LFA_Findings&Recommendations_6'!$B$9:$B$108,0))=\"\",\"\",INDEX('LFA_Findings&Recommendations_6'!K$9:K$108,MATCH('LFA_Findings&Recom export'!$C32,'LFA_Findings&Recommendations_6'!$B$9:$B$108,0))),\"\")","v":""},{"$f":"IFERROR(IF(INDEX('LFA_Findings&Recommendations_6'!L$9:L$108,MATCH('LFA_Findings&Recom export'!$C32,'LFA_Findings&Recommendations_6'!$B$9:$B$108,0))=\"\",\"\",INDEX('LFA_Findings&Recommendations_6'!L$9:L$108,MATCH('LFA_Findings&Recom export'!$C32,'LFA_Findings&Recommendations_6'!$B$9:$B$108,0))),\"\")","v":""},null,false,{"$f":"IFERROR(IF(INDEX('LFA_Findings&Recommendations_6'!A$9:A$108,MATCH('LFA_Findings&Recom export'!$C32,'LFA_Findings&Recommendations_6'!$B$9:$B$108,0))=\"\",\"\",INDEX('LFA_Findings&Recommendations_6'!A$9:A$108,MATCH('LFA_Findings&Recom export'!$C32,'LFA_Findings&Recommendations_6'!$B$9:$B$108,0))),\"\")","v":false},{"$f":"IF(P32=TRUE,_xlfn.IFNA(VLOOKUP(D32,RiskData!$B$5:$D$11,3,FALSE), \"\"),\"\")","v":""},{"$f":"IF(P32=TRUE,_xlfn.IFNA(VLOOKUP(E32,RiskData!$F$13:$I$36,4,FALSE), \"\"),\"\")","v":""},{"$f":"IF(P32=TRUE,_xlfn.IFNA(INDEX(RiskData!$H$40:$H$290,MATCH(TRUE,INDEX(RIGHT(RiskData!$F$40:$F$290,255)=RIGHT(F32,255),0),0)), \"\"),\"\")","v":""},{"$f":"IF(OR(P32=TRUE,ISBLANK(D32)),'Admin Sheet'!$B$44,\"\")","v":""},{"$f":"IF(OR(ISBLANK(D32), P32=TRUE),'Admin Sheet'!$B$41,\"\")","v":""},"","","",""]
[null,30,"Finding30",{"$f":"IFERROR(IF(INDEX('LFA_Findings&Recommendations_6'!C$9:C$108,MATCH('LFA_Findings&Recom export'!$C33,'LFA_Findings&Recommendations_6'!$B$9:$B$108,0))=\"\",\"\",INDEX('LFA_Findings&Recommendations_6'!C$9:C$108,MATCH('LFA_Findings&Recom export'!$C33,'LFA_Findings&Recommendations_6'!$B$9:$B$108,0))),\"\")","v":""},{"$f":"IFERROR(IF(INDEX('LFA_Findings&Recommendations_6'!D$9:D$108,MATCH('LFA_Findings&Recom export'!$C33,'LFA_Findings&Recommendations_6'!$B$9:$B$108,0))=\"\",\"\",INDEX('LFA_Findings&Recommendations_6'!D$9:D$108,MATCH('LFA_Findings&Recom export'!$C33,'LFA_Findings&Recommendations_6'!$B$9:$B$108,0))),\"\")","v":""},{"$f":"IFERROR(IF(INDEX('LFA_Findings&Recommendations_6'!E$9:E$108,MATCH('LFA_Findings&Recom export'!$C33,'LFA_Findings&Recommendations_6'!$B$9:$B$108,0))=\"\",\"\",INDEX('LFA_Findings&Recommendations_6'!E$9:E$108,MATCH('LFA_Findings&Recom export'!$C33,'LFA_Findings&Recommendations_6'!$B$9:$B$108,0))),\"\")","v":""},{"$f":"IFERROR(IF(INDEX('LFA_Findings&Recommendations_6'!F$9:F$108,MATCH('LFA_Findings&Recom export'!$C33,'LFA_Findings&Recommendations_6'!$B$9:$B$108,0))=\"\",\"\",INDEX('LFA_Findings&Recommendations_6'!F$9:F$108,MATCH('LFA_Findings&Recom export'!$C33,'LFA_Findings&Recommendations_6'!$B$9:$B$108,0))),\"\")","v":""},{"$f":"IFERROR(IF(INDEX('LFA_Findings&Recommendations_6'!G$9:G$108,MATCH('LFA_Findings&Recom export'!$C33,'LFA_Findings&Recommendations_6'!$B$9:$B$108,0))=\"\",\"\",INDEX('LFA_Findings&Recommendations_6'!G$9:G$108,MATCH('LFA_Findings&Recom export'!$C33,'LFA_Findings&Recommendations_6'!$B$9:$B$108,0))),\"\")","v":""},{"$f":"IFERROR(IF(INDEX('LFA_Findings&Recommendations_6'!H$9:H$108,MATCH('LFA_Findings&Recom export'!$C33,'LFA_Findings&Recommendations_6'!$B$9:$B$108,0))=\"\",\"\",INDEX('LFA_Findings&Recommendations_6'!H$9:H$108,MATCH('LFA_Findings&Recom export'!$C33,'LFA_Findings&Recommendations_6'!$B$9:$B$108,0))),\"\")","v":""},{"$f":"IFERROR(IF(INDEX('LFA_Findings&Recommendations_6'!I$9:I$108,MATCH('LFA_Findings&Recom export'!$C33,'LFA_Findings&Recommendations_6'!$B$9:$B$108,0))=\"\",\"\",INDEX('LFA_Findings&Recommendations_6'!I$9:I$108,MATCH('LFA_Findings&Recom export'!$C33,'LFA_Findings&Recommendations_6'!$B$9:$B$108,0))),\"\")","v":""},{"$f":"IFERROR(IF(INDEX('LFA_Findings&Recommendations_6'!J$9:J$108,MATCH('LFA_Findings&Recom export'!$C33,'LFA_Findings&Recommendations_6'!$B$9:$B$108,0))=\"\",\"\",INDEX('LFA_Findings&Recommendations_6'!J$9:J$108,MATCH('LFA_Findings&Recom export'!$C33,'LFA_Findings&Recommendations_6'!$B$9:$B$108,0))),\"\")","v":""},{"$f":"IFERROR(IF(INDEX('LFA_Findings&Recommendations_6'!K$9:K$108,MATCH('LFA_Findings&Recom export'!$C33,'LFA_Findings&Recommendations_6'!$B$9:$B$108,0))=\"\",\"\",INDEX('LFA_Findings&Recommendations_6'!K$9:K$108,MATCH('LFA_Findings&Recom export'!$C33,'LFA_Findings&Recommendations_6'!$B$9:$B$108,0))),\"\")","v":""},{"$f":"IFERROR(IF(INDEX('LFA_Findings&Recommendations_6'!L$9:L$108,MATCH('LFA_Findings&Recom export'!$C33,'LFA_Findings&Recommendations_6'!$B$9:$B$108,0))=\"\",\"\",INDEX('LFA_Findings&Recommendations_6'!L$9:L$108,MATCH('LFA_Findings&Recom export'!$C33,'LFA_Findings&Recommendations_6'!$B$9:$B$108,0))),\"\")","v":""},null,false,{"$f":"IFERROR(IF(INDEX('LFA_Findings&Recommendations_6'!A$9:A$108,MATCH('LFA_Findings&Recom export'!$C33,'LFA_Findings&Recommendations_6'!$B$9:$B$108,0))=\"\",\"\",INDEX('LFA_Findings&Recommendations_6'!A$9:A$108,MATCH('LFA_Findings&Recom export'!$C33,'LFA_Findings&Recommendations_6'!$B$9:$B$108,0))),\"\")","v":false},{"$f":"IF(P33=TRUE,_xlfn.IFNA(VLOOKUP(D33,RiskData!$B$5:$D$11,3,FALSE), \"\"),\"\")","v":""},{"$f":"IF(P33=TRUE,_xlfn.IFNA(VLOOKUP(E33,RiskData!$F$13:$I$36,4,FALSE), \"\"),\"\")","v":""},{"$f":"IF(P33=TRUE,_xlfn.IFNA(INDEX(RiskData!$H$40:$H$290,MATCH(TRUE,INDEX(RIGHT(RiskData!$F$40:$F$290,255)=RIGHT(F33,255),0),0)), \"\"),\"\")","v":""},{"$f":"IF(OR(P33=TRUE,ISBLANK(D33)),'Admin Sheet'!$B$44,\"\")","v":""},{"$f":"IF(OR(ISBLANK(D33), P33=TRUE),'Admin Sheet'!$B$41,\"\")","v":""},"","","",""]
[null,{"$f":"B3+1","v":1},{"$f":"\"Finding\"&B34","v":"Finding1"},{"$f":"IFERROR(IF(INDEX('LFA_Findings&Recommendations_6'!C$9:C$108,MATCH('LFA_Findings&Recom export'!$C34,'LFA_Findings&Recommendations_6'!$B$9:$B$108,0))=\"\",\"\",INDEX('LFA_Findings&Recommendations_6'!C$9:C$108,MATCH('LFA_Findings&Recom export'!$C34,'LFA_Findings&Recommendations_6'!$B$9:$B$108,0))),\"\")","v":""},{"$f":"IFERROR(IF(INDEX('LFA_Findings&Recommendations_6'!D$9:D$108,MATCH('LFA_Findings&Recom export'!$C34,'LFA_Findings&Recommendations_6'!$B$9:$B$108,0))=\"\",\"\",INDEX('LFA_Findings&Recommendations_6'!D$9:D$108,MATCH('LFA_Findings&Recom export'!$C34,'LFA_Findings&Recommendations_6'!$B$9:$B$108,0))),\"\")","v":""},{"$f":"IFERROR(IF(INDEX('LFA_Findings&Recommendations_6'!E$9:E$108,MATCH('LFA_Findings&Recom export'!$C34,'LFA_Findings&Recommendations_6'!$B$9:$B$108,0))=\"\",\"\",INDEX('LFA_Findings&Recommendations_6'!E$9:E$108,MATCH('LFA_Findings&Recom export'!$C34,'LFA_Findings&Recommendations_6'!$B$9:$B$108,0))),\"\")","v":""},{"$f":"IFERROR(IF(INDEX('LFA_Findings&Recommendations_6'!F$9:F$108,MATCH('LFA_Findings&Recom export'!$C34,'LFA_Findings&Recommendations_6'!$B$9:$B$108,0))=\"\",\"\",INDEX('LFA_Findings&Recommendations_6'!F$9:F$108,MATCH('LFA_Findings&Recom export'!$C34,'LFA_Findings&Recommendations_6'!$B$9:$B$108,0))),\"\")","v":""},{"$f":"IFERROR(IF(INDEX('LFA_Findings&Recommendations_6'!G$9:G$108,MATCH('LFA_Findings&Recom export'!$C34,'LFA_Findings&Recommendations_6'!$B$9:$B$108,0))=\"\",\"\",INDEX('LFA_Findings&Recommendations_6'!G$9:G$108,MATCH('LFA_Findings&Recom export'!$C34,'LFA_Findings&Recommendations_6'!$B$9:$B$108,0))),\"\")","v":""},{"$f":"IFERROR(IF(INDEX('LFA_Findings&Recommendations_6'!H$9:H$108,MATCH('LFA_Findings&Recom export'!$C34,'LFA_Findings&Recommendations_6'!$B$9:$B$108,0))=\"\",\"\",INDEX('LFA_Findings&Recommendations_6'!H$9:H$108,MATCH('LFA_Findings&Recom export'!$C34,'LFA_Findings&Recommendations_6'!$B$9:$B$108,0))),\"\")","v":""},{"$f":"IFERROR(IF(INDEX('LFA_Findings&Recommendations_6'!I$9:I$108,MATCH('LFA_Findings&Recom export'!$C34,'LFA_Findings&Recommendations_6'!$B$9:$B$108,0))=\"\",\"\",INDEX('LFA_Findings&Recommendations_6'!I$9:I$108,MATCH('LFA_Findings&Recom export'!$C34,'LFA_Findings&Recommendations_6'!$B$9:$B$108,0))),\"\")","v":""},{"$f":"IFERROR(IF(INDEX('LFA_Findings&Recommendations_6'!J$9:J$108,MATCH('LFA_Findings&Recom export'!$C34,'LFA_Findings&Recommendations_6'!$B$9:$B$108,0))=\"\",\"\",INDEX('LFA_Findings&Recommendations_6'!J$9:J$108,MATCH('LFA_Findings&Recom export'!$C34,'LFA_Findings&Recommendations_6'!$B$9:$B$108,0))),\"\")","v":""},{"$f":"IFERROR(IF(INDEX('LFA_Findings&Recommendations_6'!K$9:K$108,MATCH('LFA_Findings&Recom export'!$C34,'LFA_Findings&Recommendations_6'!$B$9:$B$108,0))=\"\",\"\",INDEX('LFA_Findings&Recommendations_6'!K$9:K$108,MATCH('LFA_Findings&Recom export'!$C34,'LFA_Findings&Recommendations_6'!$B$9:$B$108,0))),\"\")","v":""},{"$f":"IFERROR(IF(INDEX('LFA_Findings&Recommendations_6'!L$9:L$108,MATCH('LFA_Findings&Recom export'!$C34,'LFA_Findings&Recommendations_6'!$B$9:$B$108,0))=\"\",\"\",INDEX('LFA_Findings&Recommendations_6'!L$9:L$108,MATCH('LFA_Findings&Recom export'!$C34,'LFA_Findings&Recommendations_6'!$B$9:$B$108,0))),\"\")","v":""},null,null,{"$f":"IFERROR(IF(INDEX('LFA_Findings&Recommendations_6'!A$9:A$108,MATCH('LFA_Findings&Recom export'!$C34,'LFA_Findings&Recommendations_6'!$B$9:$B$108,0))=\"\",\"\",INDEX('LFA_Findings&Recommendations_6'!A$9:A$108,MATCH('LFA_Findings&Recom export'!$C34,'LFA_Findings&Recommendations_6'!$B$9:$B$108,0))),\"\")","v":false},{"$f":"IF(P34=TRUE,_xlfn.IFNA(VLOOKUP(D34,RiskData!$B$5:$D$11,3,FALSE), \"\"),\"\")","v":""}]

{"sheet":"PR Expenditure_7A","index":30,"n_rows":278,"n_cols":21,"rows_kept":278,"cut":false,"hidden":false,"merged":[[2,5,2,6],[3,5,3,6],[219,2,219,3],[274,2,274,3],[0,2,0,13]]}
[null,null,{"$f":"IF(CoverSheet!J12=\"N/A\",\"Progress Report\",\"Progress Report with Disbursement Request\")","v":"Progress Report with Disbursement Request"}]
[null,null,"Section 7A.The Principal Recipient Expenditure Report Completed by the Principal Recipient"]
[null,null,null,null,null,{"$f":"CoverSheet!F12","v":"Period of Financial Reporting"},null,{"$f":"CoverSheet!J12","v":"2018-01-01"},null,{"$f":"CoverSheet!K12","v":"End Date:"},{"$f":"CoverSheet!L12","v":"2018-06-30"}]
[null,null,null,null,null,"Cumulative Period of Financial Reporting",null,{"$f":"CoverSheet!D13","v":"2018-01-01"},null,{"$f":"CoverSheet!K12","v":"End Date:"},{"$f":"CoverSheet!L12","v":"2018-06-30"}]
[null,null,"A- BREAKDOWN BY COST GROUPING OR COST INPUT"]
[]
["Show",null,null,"Current Reporting Period",null,null,null,null,null,null,"Cumulative for the Implementation Period"]
["Show",null,"Costing Dimension (Cost Grouping or Cost Input)",null,"Budget for Reporting Period","Actual Expenditure","Budget Vs Actual Variances","Absorption Rate","Explanation of Variances (mandatory for all percentages below 95% & above 105%)",null,"Cumulative Budget","Cumulative Actual Expenditure","Cumulative Budget Vs Actuals Variances","Absorption Rate"]
[{"$f":"IF(C9<>\"\",\"Show\",\"Don't Show\")","v":"Show"},"Costgrp1",{"$f":"IFERROR(INDEX('PR Expenditure_7A import-export'!A$2:A$18,MATCH('PR Expenditure_7A'!B9,'PR Expenditure_7A import-export'!N$2:N$18,0)),\"\")","v":"1. Human Resources (HR)"},null,{"$f":"IFERROR(INDEX('PR Expenditure_7A import-export'!C$2:C$18,MATCH('PR Expenditure_7A'!B9,'PR Expenditure_7A import-export'!N$2:N$18,0)),\"\")","v":1005908.79914906},377439.69,{"$f":"IFERROR(E9-F9,0)","v":628469.10914905998},{"$f":"IF(AND(E9=0,F9=0),\"N/A\",IF(AND(E9=0,F9<>0),\"Not Budgeted\",F9/E9))","v":0.37522257516714425},"Cet écart s'explique par :\n* les économies de USD 199,189.19 sur les ressources humaines du PR en raison du retard dans la mise en place du personnel du personnel du PMU et de l'équipe intérimaire respectivement sur les act 140 (USD 120,947.04) et 150 (USD 78,242.15); Sur ces économies du PR , USD 81.522.42 seront utilisés pour le Consultant M&E and le Deputy Programme (cf act 140)\n* les économies de USD 60,391.13 sur les RH du PNILP en raison du retard dans la mise en place des unités de Gestion act 67 (USD 55,090.45) et du non paiement au 30 juin 2018 des primes du 2e trimestre 2018 act 66 (USD 5,300.68); Il faut signaler que cette dernière activité a été reportée\n* les économies de USD 368,888.79 sur les RH de Caritas en raison non seulement de la prise en charge par le Fonds Mondial d'un certain nombre de personnel dans le cadre des clotures act 121 et 124 (USD 31,222.41) et d'une surestimation des frais d'assurance maladie (act 125 USD - 8,310.63) mais aussi du fait que les motivations des 417 GASC (act 118) n'ont pas été payées pour USD 329,355.75 en raison de la non harmonisation des modalités de paiement entre le FM et le ministère de la santé. \nSur ces économies de CARITAS, USD 109,785.25 relatifs à l'act 118 seront utilisés à partir de Juillet 2018 pour payer les GASC.",null,{"$f":"IFERROR(INDEX('PR Expenditure_7A import-export'!I$2:I$18,MATCH('PR Expenditure_7A'!B9,'PR Expenditure_7A import-export'!N$2:N$18,0)),\"\")","v":1005908.79914906},{"$f":"F9","v":377439.69},{"$f":"IFERROR(K9-L9,0)","v":628469.10914905998},{"$f":"IF(AND(K9=0,L9=0),\"N/A\",IF(AND(K9=0,L9<>0),\"Not Budgeted\",L9/K9))","v":0.37522257516714425}]
[{"$f":"IF(C10<>\"\",\"Show\",\"Don't Show\")","v":"Show"},"Costgrp2",{"$f":"IFERROR(INDEX('PR Expenditure_7A import-export'!A$2:A$18,MATCH('PR Expenditure_7A'!B10,'PR Expenditure_7A import-export'!N$2:N$18,0)),\"\")","v":"10. Communication Material and Publications (CMP)"},null,{"$f":"IFERROR(INDEX('PR Expenditure_7A import-export'!C$2:C$18,MATCH('PR Expenditure_7A'!B10,'PR Expenditure_7A import-export'!N$2:N$18,0)),\"\")","v":3469.2620152808299},0,{"$f":"IFERROR(E10-F10,0)","v":3469.2620152808299},{"$f":"IF(AND(E10=0,F10=0),\"N/A\",IF(AND(E10=0,F10<>0),\"Not Budgeted\",F10/E10))","v":0},"Cet écart s'explique par :\n* le budget de USD 155.29 relatif au bulletin épidémiologique  (act 76) non édité durant cette période. Cette activité est reportée pour la période suivante.\n* les économies de USD 1,722.85  relatif aux spots radios (act 119) durant la période et les engagements de USD 1,591.09 au 300618",null,{"$f":"IFERROR(INDEX('PR Expenditure_7A import-export'!I$2:I$18,MATCH('PR Expenditure_7A'!B10,'PR Expenditure_7A import-export'!N$2:N$18,0)),\"\")","v":3469.2620152808299},{"$f":"F10","v":0},{"$f":"IFERROR(K10-L10,0)","v":3469.2620152808299},{"$f":"IF(AND(K10=0,L10=0),\"N/A\",IF(AND(K10=0,L10<>0),\"Not Budgeted\",L10/K10))","v":0}]
["Show","Costgrp3",{"$f":"IFERROR(INDEX('PR Expenditure_7A import-export'!A$2:A$18,MATCH('PR Expenditure_7A'!B11,'PR Expenditure_7A import-export'!N$2:N$18,0)),\"\")","v":"11. Programme Administration costs (PA)"},null,{"$f":"IFERROR(INDEX('PR Expenditure_7A import-export'!C$2:C$18,MATCH('PR Expenditure_7A'!B11,'PR Expenditure_7A import-export'!N$2:N$18,0)),\"\")","v":377924.55271437601},121316.6,256607.95271437601,0.32100745804596464,"Cet écart comprend:\n* USD 8,101.24 représentant les économies liées au fonctionnement du PR (act 146 et 153) en raison du retard dans la mise en place de l'équipe;\n* USD 224,601.12 représentant les économies liés aux frais de gestion dues à la non réalisation de toutes les activités inscrites au plan de travail.\n* USD 23,905.59 représentant les économies sur le fonctionnement du PNILP (act 65 - USD 10,784.81) et de CARITAS (act 122-  USD 13,120.78) due à la faible ou non exécution des dépenses de fonctionnement du premier trimestre 2018, les activités n'ayant pas activement démarré avant fin mars 2018.",null,{"$f":"IFERROR(INDEX('PR Expenditure_7A import-export'!I$2:I$18,MATCH('PR Expenditure_7A'!B11,'PR Expenditure_7A import-export'!N$2:N$18,0)),\"\")","v":377924.55271437601},{"$f":"F11","v":121316.6},256607.95271437601,0.32100745804596464]
[null,null,{"$f":"IFERROR(INDEX('PR Expenditure_7A import-export'!A$2:A$18,MATCH('PR Expenditure_7A'!B12,'PR Expenditure_7A import-export'!N$2:N$18,0)),\"\")","v":""},null,{"$f":"IFERROR(INDEX('PR Expenditure_7A import-export'!C$2:C$18,MATCH('PR Expenditure_7A'!B12,'PR Expenditure_7A import-export'!N$2:N$18,0)),\"\")","v":""},null,0,{"$error":"#VALUE!"},null,null,{"$f":"IFERROR(INDEX('PR Expenditure_7A import-export'!I$2:I$18,MATCH('PR Expenditure_7A'!B12,'PR Expenditure_7A import-export'!N$2:N$18,0)),\"\")","v":""},null,0,{"$error":"#VALUE!"}]
[null,null,{"$f":"IFERROR(INDEX('PR Expenditure_7A import-export'!A$2:A$18,MATCH('PR Expenditure_7A'!B13,'PR Expenditure_7A import-export'!N$2:N$18,0)),\"\")","v":""},null,{"$f":"IFERROR(INDEX('PR Expenditure_7A import-export'!C$2:C$18,MATCH('PR Expenditure_7A'!B13,'PR Expenditure_7A import-export'!N$2:N$18,0)),\"\")","v":""},null,{"$f":"IFERROR(E13-F13,0)","v":0},{"$f":"IF(AND(E13=0,F13=0),\"N/A\",IF(AND(E13=0,F13<>0),\"Not Budgeted\",F13/E13))","v":{"$error":"#VALUE!"}},null,null,{"$f":"IFERROR(INDEX('PR Expenditure_7A import-export'!I$2:I$18,MATCH('PR Expenditure_7A'!B13,'PR Expenditure_7A import-export'!N$2:N$18,0)),\"\")","v":""},null,{"$f":"IFERROR(K13-L13,0)","v":0},{"$f":"IF(AND(K13=0,L13=0),\"N/A\",IF(AND(K13=0,L13<>0),\"Not Budgeted\",L13/K13))","v":{"$error":"#VALUE!"}}]
[null,null,{"$f":"IFERROR(INDEX('PR Expenditure_7A import-export'!A$2:A$18,MATCH('PR Expenditure_7A'!B14,'PR Expenditure_7A import-export'!N$2:N$18,0)),\"\")","v":""},null,{"$f":"IFERROR(INDEX('PR Expenditure_7A import-export'!C$2:C$18,MATCH('PR Expenditure_7A'!B14,'PR Expenditure_7A import-export'!N$2:N$18,0)),\"\")","v":""},null,0,{"$error":"#VALUE!"},null,null,{"$f":"IFERROR(INDEX('PR Expenditure_7A import-export'!I$2:I$18,MATCH('PR Expenditure_7A'!B14,'PR Expenditure_7A import-export'!N$2:N$18,0)),\"\")","v":""},null,0,{"$error":"#VALUE!"}]
[null,null,{"$f":"IFERROR(INDEX('PR Expenditure_7A import-export'!A$2:A$18,MATCH('PR Expenditure_7A'!B15,'PR Expenditure_7A import-export'!N$2:N$18,0)),\"\")","v":""},null,{"$f":"IFERROR(INDEX('PR Expenditure_7A import-export'!C$2:C$18,MATCH('PR Expenditure_7A'!B15,'PR Expenditure_7A import-export'!N$2:N$18,0)),\"\")","v":""},null,0,{"$error":"#VALUE!"},null,null,{"$f":"IFERROR(INDEX('PR Expenditure_7A import-export'!I$2:I$18,MATCH('PR Expenditure_7A'!B15,'PR Expenditure_7A import-export'!N$2:N$18,0)),\"\")","v":""},null,0,{"$error":"#VALUE!"}]
["Show","Costgrp4",{"$f":"IFERROR(INDEX('PR Expenditure_7A import-export'!A$2:A$18,MATCH('PR Expenditure_7A'!B16,'PR Expenditure_7A import-export'!N$2:N$18,0)),\"\")","v":"12. Living support to client/ target population (LSCTP)"},null,{"$f":"IFERROR(INDEX('PR Expenditure_7A import-export'!C$2:C$18,MATCH('PR Expenditure_7A'!B16,'PR Expenditure_7A import-export'!N$2:N$18,0)),\"\")","v":0},null,0,"N/A","N/A",null,{"$f":"IFERROR(INDEX('PR Expenditure_7A import-export'!I$2:I$18,MATCH('PR Expenditure_7A'!B16,'PR Expenditure_7A import-export'!N$2:N$18,0)),\"\")","v":0},{"$f":"F16","v":0},0,"N/A"]
["Show","Costgrp5",{"$f":"IFERROR(INDEX('PR Expenditure_7A import-export'!A$2:A$18,MATCH('PR Expenditure_7A'!B17,'PR Expenditure_7A import-export'!N$2:N$18,0)),\"\")","v":"13. Payment for Results"},null,{"$f":"IFERROR(INDEX('PR Expenditure_7A import-export'!C$2:C$18,MATCH('PR Expenditure_7A'!B17,'PR Expenditure_7A import-export'!N$2:N$18,0)),\"\")","v":0},null,0,"N/A","N/A",null,{"$f":"IFERROR(INDEX('PR Expenditure_7A import-export'!I$2:I$18,MATCH('PR Expenditure_7A'!B17,'PR Expenditure_7A import-export'!N$2:N$18,0)),\"\")","v":0},0,0,"N/A"]
["Show","Costgrp6",{"$f":"IFERROR(INDEX('PR Expenditure_7A import-export'!A$2:A$18,MATCH('PR Expenditure_7A'!B18,'PR Expenditure_7A import-export'!N$2:N$18,0)),\"\")","v":"2. Travel related costs (TRC)"},null,{"$f":"IFERROR(INDEX('PR Expenditure_7A import-export'!C$2:C$18,MATCH('PR Expenditure_7A'!B18,'PR Expenditure_7A import-export'!N$2:N$18,0)),\"\")","v":184199.43522428701},86752.16,97447.275224287005,0.47096865359205825,"Cet écart s'explique par :\n* les économies de USD 32,347.17 sur les couts liés au déplacement du PR (act 151 et 167) dues au retard dans la mise en place de l'équipe et le fait que le PR n'ait pas effectué beaucoup de missions sur le terrain;\n* le budget de 3,390 relatif à l'act 63 car aucune personne n'a participé aux conférences internationales de l'OMS ou du RBM durant cette periode; cette activité a été reportée sur la période à venir.\n*les économies de USD 11,439.6 sur les act 36,40, 116, 117 et 120 partiellement réalisées ou avec peu de ressources par CARITAS;  Les activités 40 et 116 seront reportées sur la période suivante.\n* le budget de USD 22,899.69 pour les activités non réalisées  par CARITAS (act 37- USD 13,074.68; act 39 - USD 9,825.01) en raison du calendrier et reportées pour la période suivante;\n* les économies de USD 27,370.82 sur les activités réalisées (44, 64, 72 et 73)  et non réalisée (71) par le PNLP dues à la réalisation ou  non avec peu de ressources et/ou  à cause du calendrier",null,{"$f":"IFERROR(INDEX('PR Expenditure_7A import-export'!I$2:I$18,MATCH('PR Expenditure_7A'!B18,'PR Expenditure_7A import-export'!N$2:N$18,0)),\"\")","v":184199.43522428701},86752.16,97447.275224287005,0.47096865359205825]
["Show","Costgrp7",{"$f":"IFERROR(INDEX('PR Expenditure_7A import-export'!A$2:A$18,MATCH('PR Expenditure_7A'!B19,'PR Expenditure_7A import-export'!N$2:N$18,0)),\"\")","v":"3. External Professional services (EPS)"},null,{"$f":"IFERROR(INDEX('PR Expenditure_7A import-export'!C$2:C$18,MATCH('PR Expenditure_7A'!B19,'PR Expenditure_7A import-export'!N$2:N$18,0)),\"\")","v":13200},6600,6600,0.5,"Cet écart représente les économies relatives aux honoraires du consultant évaluation des capacités des SRs (act 152)",null,{"$f":"IFERROR(INDEX('PR Expenditure_7A import-export'!I$2:I$18,MATCH('PR Expenditure_7A'!B19,'PR Expenditure_7A import-export'!N$2:N$18,0)),\"\")","v":13200},6600,6600,0.5]
["Show","Costgrp8",{"$f":"IFERROR(INDEX('PR Expenditure_7A import-export'!A$2:A$18,MATCH('PR Expenditure_7A'!B20,'PR Expenditure_7A import-export'!N$2:N$18,0)),\"\")","v":"4. Health Products - Pharmaceutical Products (HPPP)"},null,{"$f":"IFERROR(INDEX('PR Expenditure_7A import-export'!C$2:C$18,MATCH('PR Expenditure_7A'!B20,'PR Expenditure_7A import-export'!N$2:N$18,0)),\"\")","v":669838},null,669838,0,"Cet écart représente le budget des médicaments (act 134). Il faut signaler que lesdits médicaments ont été commandés et un engagement existe pour USD 1,155,382.32",null,{"$f":"IFERROR(INDEX('PR Expenditure_7A import-export'!I$2:I$18,MATCH('PR Expenditure_7A'!B20,'PR Expenditure_7A import-export'!N$2:N$18,0)),\"\")","v":669838},0,669838,0]
["Show","Costgrp9",{"$f":"IFERROR(INDEX('PR Expenditure_7A import-export'!A$2:A$18,MATCH('PR Expenditure_7A'!B21,'PR Expenditure_7A import-export'!N$2:N$18,0)),\"\")","v":"5. Health Products - Non-Pharmaceuticals (HPNP)"},null,{"$f":"IFERROR(INDEX('PR Expenditure_7A import-export'!C$2:C$18,MATCH('PR Expenditure_7A'!B21,'PR Expenditure_7A import-export'!N$2:N$18,0)),\"\")","v":1100385.8999999999},8482.31,1091903.5899999999,7.7084866318261622E-3,"Cet écart représente le solde du budget des TDRs (act 135). Au 30 juin 2018, des TDRs commandés pour USD 255,398 n'ont pas été livrés.",null,{"$f":"IFERROR(INDEX('PR Expenditure_7A import-export'!I$2:I$18,MATCH('PR Expenditure_7A'!B21,'PR Expenditure_7A import-export'!N$2:N$18,0)),\"\")","v":1100385.8999999999},8482.31,1091903.5899999999,7.7084866318261622E-3]
["Show","Costgrp10",{"$f":"IFERROR(INDEX('PR Expenditure_7A import-export'!A$2:A$18,MATCH('PR Expenditure_7A'!B22,'PR Expenditure_7A import-export'!N$2:N$18,0)),\"\")","v":"6. Health Products - Equipment (HPE)"},null,{"$f":"IFERROR(INDEX('PR Expenditure_7A import-export'!C$2:C$18,MATCH('PR Expenditure_7A'!B22,'PR Expenditure_7A import-export'!N$2:N$18,0)),\"\")","v":0},null,0,"N/A","N/A",null,{"$f":"IFERROR(INDEX('PR Expenditure_7A import-export'!I$2:I$18,MATCH('PR Expenditure_7A'!B22,'PR Expenditure_7A import-export'!N$2:N$18,0)),\"\")","v":0},0,0,"N/A"]
["Show","Costgrp11",{"$f":"IFERROR(INDEX('PR Expenditure_7A import-export'!A$2:A$18,MATCH('PR Expenditure_7A'!B23,'PR Expenditure_7A import-export'!N$2:N$18,0)),\"\")","v":"7. Procurement and Supply-Chain Management costs (PSM)"},null,{"$f":"IFERROR(INDEX('PR Expenditure_7A import-export'!C$2:C$18,MATCH('PR Expenditure_7A'!B23,'PR Expenditure_7A import-export'!N$2:N$18,0)),\"\")","v":438374.24},16.61,438357.63,3.7890000105845635E-5,"Cet écart s'explique par :\n* USD 62,655 le budget du cout d'agent et des frais de manutention des produits de santé (act 136), aucun cout n'ayant été payé; des engagements de USD 69,171.28 existent au 30 juin 2018\n* USD 267,198.39  représentant le solde du budget du fret et des frais d'assurance (act 137). Au 30 juin 2018, des engagements de USD 118,740 existent pour les produits commandés non encore réceptionnés;\n* USD 88,509.24 représentant le budget des frais d'entreposage et de stockage des produits de santé (act 138) non payés;\n * USD 20,095 représentant le budget des couts liés à l'assurance et au controle de qualité des produits de santé (act 139) car aucun médicament n'est recu pour que le controle de qualité soit fait.\nTous les achats n'étant pas terminés et les commandes réceptionnées, les activités 136, 137, 138 et 139 seront reportées sur la période suivante.",null,{"$f":"IFERROR(INDEX('PR Expenditure_7A import-export'!I$2:I$18,MATCH('PR Expenditure_7A'!B23,'PR Expenditure_7A import-export'!N$2:N$18,0)),\"\")","v":438374.24},16.61,438357.63,3.7890000105845635E-5]
["Show","Costgrp12",{"$f":"IFERROR(INDEX('PR Expenditure_7A import-export'!A$2:A$18,MATCH('PR Expenditure_7A'!B24,'PR Expenditure_7A import-export'!N$2:N$18,0)),\"\")","v":"8. Infrastructure (INF)"},null,{"$f":"IFERROR(INDEX('PR Expenditure_7A import-export'!C$2:C$18,MATCH('PR Expenditure_7A'!B24,'PR Expenditure_7A import-export'!N$2:N$18,0)),\"\")","v":49796},10516.78,39279.22,0.21119728492248374,"Cet écart s'explique par :\n* les économies de USD 8,411.36 sur l'achat du mobilier (act 143) car les fauteuils de bureau, armoires, chaises visiteurs et table de conférence ont été gratuitement mis à disposition par le bureau du PNUD;\n*  les économies de USD 30,867.86 sur la rénovation (act 147) car aucune grande renovation n'a été effectuée. Ainsi un montant de USD 21,891 sera reporté sur la période à venir.",null,{"$f":"IFERROR(INDEX('PR Expenditure_7A import-export'!I$2:I$18,MATCH('PR Expenditure_7A'!B24,'PR Expenditure_7A import-export'!N$2:N$18,0)),\"\")","v":49796},10516.78,39279.22,0.21119728492248374]
["Show","Costgrp13",{"$f":"IFERROR(INDEX('PR Expenditure_7A import-export'!A$2:A$18,MATCH('PR Expenditure_7A'!B25,'PR Expenditure_7A import-export'!N$2:N$18,0)),\"\")","v":"9. Non-health equipment (NHP)"},null,{"$f":"IFERROR(INDEX('PR Expenditure_7A import-export'!C$2:C$18,MATCH('PR Expenditure_7A'!B25,'PR Expenditure_7A import-export'!N$2:N$18,0)),\"\")","v":214800.605651608},103117.42,111683.185651608,0.4800611231387748,"Cet écart s'explique par :\n* le budget de USD 72,884.61 relatifs aux équipements des GASC (act 115) commandés mais non recus et payés au 300618.  Des engagements de USD 87,307.95 existent à cette date car le PR a anticipé pour sur le budget prévu pour les périodes à venir;\n* le gap de -24,073.42 sur l'achat du véhicule et des ordinateurs (act 141 et 142) en raison d'une sous-estimation des prix. Au 30 Juin 2018, il y a un engagement de USD 880.9 sur l'act 142.\n* les économies de USD 60,100 sur l'act 144 dues à la mise à disposition par le PNUD d'un groupe électrogène gratuitement et à la non acquisition des équipements de sécurité et de communication. Ce budget sera reporté sur la période suivante afin d'exécuter les dépenses.\n* les économies de USD 2,772 sur la maintenance des équipements du PMU à  l'état neuf desdits équipements,aucune maintenance n'ayant été effectuée.",null,{"$f":"IFERROR(INDEX('PR Expenditure_7A import-export'!I$2:I$18,MATCH('PR Expenditure_7A'!B25,'PR Expenditure_7A import-export'!N$2:N$18,0)),\"\")","v":214800.605651608},103117.42,111683.185651608,0.4800611231387748]
["Don't Show","Costgrp14",{"$f":"IFERROR(INDEX('PR Expenditure_7A import-export'!A$2:A$18,MATCH('PR Expenditure_7A'!B26,'PR Expenditure_7A import-export'!N$2:N$18,0)),\"\")","v":""},null,{"$f":"IFERROR(INDEX('PR Expenditure_7A import-export'!C$2:C$18,MATCH('PR Expenditure_7A'!B26,'PR Expenditure_7A import-export'!N$2:N$18,0)),\"\")","v":""},null,0,{"$error":"#VALUE!"},null,null,{"$f":"IFERROR(INDEX('PR Expenditure_7A import-export'!I$2:I$18,MATCH('PR Expenditure_7A'!B26,'PR Expenditure_7A import-export'!N$2:N$18,0)),\"\")","v":""},null,0,{"$error":"#VALUE!"}]
["Don't Show","Costgrp15",{"$f":"IFERROR(INDEX('PR Expenditure_7A import-export'!A$2:A$18,MATCH('PR Expenditure_7A'!B27,'PR Expenditure_7A import-export'!N$2:N$18,0)),\"\")","v":""},null,{"$f":"IFERROR(INDEX('PR Expenditure_7A import-export'!C$2:C$18,MATCH('PR Expenditure_7A'!B27,'PR Expenditure_7A import-export'!N$2:N$18,0)),\"\")","v":""},null,0,{"$error":"#VALUE!"},null,null,{"$f":"IFERROR(INDEX('PR Expenditure_7A import-export'!I$2:I$18,MATCH('PR Expenditure_7A'!B27,'PR Expenditure_7A import-export'!N$2:N$18,0)),\"\")","v":""},null,0,{"$error":"#VALUE!"}]
["Don't Show","Costgrp16",{"$f":"IFERROR(INDEX('PR Expenditure_7A import-export'!A$2:A$18,MATCH('PR Expenditure_7A'!B28,'PR Expenditure_7A import-export'!N$2:N$18,0)),\"\")","v":""},null,{"$f":"IFERROR(INDEX('PR Expenditure_7A import-export'!C$2:C$18,MATCH('PR Expenditure_7A'!B28,'PR Expenditure_7A import-export'!N$2:N$18,0)),\"\")","v":""},null,0,{"$error":"#VALUE!"},null,null,{"$f":"IFERROR(INDEX('PR Expenditure_7A import-export'!I$2:I$18,MATCH('PR Expenditure_7A'!B28,'PR Expenditure_7A import-export'!N$2:N$18,0)),\"\")","v":""},null,0,{"$error":"#VALUE!"}]
["Don't Show","Costgrp17",{"$f":"IFERROR(INDEX('PR Expenditure_7A import-export'!A$2:A$18,MATCH('PR Expenditure_7A'!B29,'PR Expenditure_7A import-export'!N$2:N$18,0)),\"\")","v":""},null,{"$f":"IFERROR(INDEX('PR Expenditure_7A import-export'!C$2:C$18,MATCH('PR Expenditure_7A'!B29,'PR Expenditure_7A import-export'!N$2:N$18,0)),\"\")","v":""},null,0,{"$error":"#VALUE!"},null,null,{"$f":"IFERROR(INDEX('PR Expenditure_7A import-export'!I$2:I$18,MATCH('PR Expenditure_7A'!B29,'PR Expenditure_7A import-export'!N$2:N$18,0)),\"\")","v":""},null,0,{"$error":"#VALUE!"}]
["Don't Show","Costgrp18",{"$f":"IFERROR(INDEX('PR Expenditure_7A import-export'!A$2:A$18,MATCH('PR Expenditure_7A'!B30,'PR Expenditure_7A import-export'!N$2:N$18,0)),\"\")","v":""},null,{"$f":"IFERROR(INDEX('PR Expenditure_7A import-export'!C$2:C$18,MATCH('PR Expenditure_7A'!B30,'PR Expenditure_7A import-export'!N$2:N$18,0)),\"\")","v":""},null,0,{"$error":"#VALUE!"},null,null,{"$f":"IFERROR(INDEX('PR Expenditure_7A import-export'!I$2:I$18,MATCH('PR Expenditure_7A'!B30,'PR Expenditure_7A import-export'!N$2:N$18,0)),\"\")","v":""},null,0,{"$error":"#VALUE!"}]
["Don't Show","Costgrp19",{"$f":"IFERROR(INDEX('PR Expenditure_7A import-export'!A$2:A$18,MATCH('PR Expenditure_7A'!B31,'PR Expenditure_7A import-export'!N$2:N$18,0)),\"\")","v":""},null,{"$f":"IFERROR(INDEX('PR Expenditure_7A import-export'!C$2:C$18,MATCH('PR Expenditure_7A'!B31,'PR Expenditure_7A import-export'!N$2:N$18,0)),\"\")","v":""},null,0,{"$error":"#VALUE!"},null,null,{"$f":"IFERROR(INDEX('PR Expenditure_7A import-export'!I$2:I$18,MATCH('PR Expenditure_7A'!B31,'PR Expenditure_7A import-export'!N$2:N$18,0)),\"\")","v":""},null,0,{"$error":"#VALUE!"}]
[{"$f":"IF(C32<>\"\",\"Show\",\"Don't Show\")","v":"Don't Show"},"Costgrp20",{"$f":"IFERROR(INDEX('PR Expenditure_7A import-export'!A$2:A$18,MATCH('PR Expenditure_7A'!B32,'PR Expenditure_7A import-export'!N$2:N$18,0)),\"\")","v":""},null,{"$f":"IFERROR(INDEX('PR Expenditure_7A import-export'!C$2:C$18,MATCH('PR Expenditure_7A'!B32,'PR Expenditure_7A import-export'!N$2:N$18,0)),\"\")","v":""},null,0,{"$error":"#VALUE!"},null,null,{"$f":"IFERROR(INDEX('PR Expenditure_7A import-export'!I$2:I$18,MATCH('PR Expenditure_7A'!B32,'PR Expenditure_7A import-export'!N$2:N$18,0)),\"\")","v":""},null,0,{"$error":"#VALUE!"}]
["Don't Show","Costgrp21",{"$f":"IFERROR(INDEX('PR Expenditure_7A import-export'!A$2:A$18,MATCH('PR Expenditure_7A'!B33,'PR Expenditure_7A import-export'!N$2:N$18,0)),\"\")","v":""},null,{"$f":"IFERROR(INDEX('PR Expenditure_7A import-export'!C$2:C$18,MATCH('PR Expenditure_7A'!B33,'PR Expenditure_7A import-export'!N$2:N$18,0)),\"\")","v":""},null,0,{"$error":"#VALUE!"},null,null,{"$f":"IFERROR(INDEX('PR Expenditure_7A import-export'!I$2:I$18,MATCH('PR Expenditure_7A'!B33,'PR Expenditure_7A import-export'!N$2:N$18,0)),\"\")","v":""},null,0,{"$error":"#VALUE!"}]
["Don't Show","Costgrp22",{"$f":"IFERROR(INDEX('PR Expenditure_7A import-export'!A$2:A$18,MATCH('PR Expenditure_7A'!B34,'PR Expenditure_7A import-export'!N$2:N$18,0)),\"\")","v":""},null,{"$f":"IFERROR(INDEX('PR Expenditure_7A import-export'!C$2:C$18,MATCH('PR Expenditure_7A'!B34,'PR Expenditure_7A import-export'!N$2:N$18,0)),\"\")","v":""},null,0,{"$error":"#VALUE!"},null,null,{"$f":"IFERROR(INDEX('PR Expenditure_7A import-export'!I$2:I$18,MATCH('PR Expenditure_7A'!B34,'PR Expenditure_7A import-export'!N$2:N$18,0)),\"\")","v":""},null,0,{"$error":"#VALUE!"}]
["Don't Show","Costgrp23",{"$f":"IFERROR(INDEX('PR Expenditure_7A import-export'!A$2:A$18,MATCH('PR Expenditure_7A'!B35,'PR Expenditure_7A import-export'!N$2:N$18,0)),\"\")","v":""},null,{"$f":"IFERROR(INDEX('PR Expenditure_7A import-export'!C$2:C$18,MATCH('PR Expenditure_7A'!B35,'PR Expenditure_7A import-export'!N$2:N$18,0)),\"\")","v":""},null,0,{"$error":"#VALUE!"},null,null,{"$f":"IFERROR(INDEX('PR Expenditure_7A import-export'!I$2:I$18,MATCH('PR Expenditure_7A'!B35,'PR Expenditure_7A import-export'!N$2:N$18,0)),\"\")","v":""},null,0,{"$error":"#VALUE!"}]
["Don't Show","Costgrp24",{"$f":"IFERROR(INDEX('PR Expenditure_7A import-export'!A$2:A$18,MATCH('PR Expenditure_7A'!B36,'PR Expenditure_7A import-export'!N$2:N$18,0)),\"\")","v":""},null,{"$f":"IFERROR(INDEX('PR Expenditure_7A import-export'!C$2:C$18,MATCH('PR Expenditure_7A'!B36,'PR Expenditure_7A import-export'!N$2:N$18,0)),\"\")","v":""},null,0,{"$error":"#VALUE!"},null,null,{"$f":"IFERROR(INDEX('PR Expenditure_7A import-export'!I$2:I$18,MATCH('PR Expenditure_7A'!B36,'PR Expenditure_7A import-export'!N$2:N$18,0)),\"\")","v":""},null,0,{"$error":"#VALUE!"}]
["Don't Show","Costgrp25",{"$f":"IFERROR(INDEX('PR Expenditure_7A import-export'!A$2:A$18,MATCH('PR Expenditure_7A'!B37,'PR Expenditure_7A import-export'!N$2:N$18,0)),\"\")","v":""},null,{"$f":"IFERROR(INDEX('PR Expenditure_7A import-export'!C$2:C$18,MATCH('PR Expenditure_7A'!B37,'PR Expenditure_7A import-export'!N$2:N$18,0)),\"\")","v":""},null,0,{"$error":"#VALUE!"},null,null,{"$f":"IFERROR(INDEX('PR Expenditure_7A import-export'!I$2:I$18,MATCH('PR Expenditure_7A'!B37,'PR Expenditure_7A import-export'!N$2:N$18,0)),\"\")","v":""},null,0,{"$error":"#VALUE!"}]
["Don't Show","Costgrp26",{"$f":"IFERROR(INDEX('PR Expenditure_7A import-export'!A$2:A$18,MATCH('PR Expenditure_7A'!B38,'PR Expenditure_7A import-export'!N$2:N$18,0)),\"\")","v":""},null,{"$f":"IFERROR(INDEX('PR Expenditure_7A import-export'!C$2:C$18,MATCH('PR Expenditure_7A'!B38,'PR Expenditure_7A import-export'!N$2:N$18,0)),\"\")","v":""},null,0,{"$error":"#VALUE!"},null,null,{"$f":"IFERROR(INDEX('PR Expenditure_7A import-export'!I$2:I$18,MATCH('PR Expenditure_7A'!B38,'PR Expenditure_7A import-export'!N$2:N$18,0)),\"\")","v":""},null,0,{"$error":"#VALUE!"}]
["Don't Show","Costgrp27",{"$f":"IFERROR(INDEX('PR Expenditure_7A import-export'!A$2:A$18,MATCH('PR Expenditure_7A'!B39,'PR Expenditure_7A import-export'!N$2:N$18,0)),\"\")","v":""},null,{"$f":"IFERROR(INDEX('PR Expenditure_7A import-export'!C$2:C$18,MATCH('PR Expenditure_7A'!B39,'PR Expenditure_7A import-export'!N$2:N$18,0)),\"\")","v":""},null,0,{"$error":"#VALUE!"},null,null,{"$f":"IFERROR(INDEX('PR Expenditure_7A import-export'!I$2:I$18,MATCH('PR Expenditure_7A'!B39,'PR Expenditure_7A import-export'!N$2:N$18,0)),\"\")","v":""},null,0,{"$error":"#VALUE!"}]
["Don't Show","Costgrp28",{"$f":"IFERROR(INDEX('PR Expenditure_7A import-export'!A$2:A$18,MATCH('PR Expenditure_7A'!B40,'PR Expenditure_7A import-export'!N$2:N$18,0)),\"\")","v":""},null,{"$f":"IFERROR(INDEX('PR Expenditure_7A import-export'!C$2:C$18,MATCH('PR Expenditure_7A'!B40,'PR Expenditure_7A import-export'!N$2:N$18,0)),\"\")","v":""},null,0,{"$error":"#VALUE!"},null,null,{"$f":"IFERROR(INDEX('PR Expenditure_7A import-export'!I$2:I$18,MATCH('PR Expenditure_7A'!B40,'PR Expenditure_7A import-export'!N$2:N$18,0)),\"\")","v":""},null,0,{"$error":"#VALUE!"}]
["Don't Show","Costgrp29",{"$f":"IFERROR(INDEX('PR Expenditure_7A import-export'!A$2:A$18,MATCH('PR Expenditure_7A'!B41,'PR Expenditure_7A import-export'!N$2:N$18,0)),\"\")","v":""},null,{"$f":"IFERROR(INDEX('PR Expenditure_7A import-export'!C$2:C$18,MATCH('PR Expenditure_7A'!B41,'PR Expenditure_7A import-export'!N$2:N$18,0)),\"\")","v":""},null,0,{"$error":"#VALUE!"},null,null,{"$f":"IFERROR(INDEX('PR Expenditure_7A import-export'!I$2:I$18,MATCH('PR Expenditure_7A'!B41,'PR Expenditure_7A import-export'!N$2:N$18,0)),\"\")","v":""},null,0,{"$error":"#VALUE!"}]
["Don't Show","Costgrp30",{"$f":"IFERROR(INDEX('PR Expenditure_7A import-export'!A$2:A$18,MATCH('PR Expenditure_7A'!B42,'PR Expenditure_7A import-export'!N$2:N$18,0)),\"\")","v":""},null,{"$f":"IFERROR(INDEX('PR Expenditure_7A import-export'!C$2:C$18,MATCH('PR Expenditure_7A'!B42,'PR Expenditure_7A import-export'!N$2:N$18,0)),\"\")","v":""},null,0,{"$error":"#VALUE!"},null,null,{"$f":"IFERROR(INDEX('PR Expenditure_7A import-export'!I$2:I$18,MATCH('PR Expenditure_7A'!B42,'PR Expenditure_7A import-export'!N$2:N$18,0)),\"\")","v":""},null,0,{"$error":"#VALUE!"}]
["Don't Show","Costgrp31",{"$f":"IFERROR(INDEX('PR Expenditure_7A import-export'!A$2:A$18,MATCH('PR Expenditure_7A'!B43,'PR Expenditure_7A import-export'!N$2:N$18,0)),\"\")","v":""},null,{"$f":"IFERROR(INDEX('PR Expenditure_7A import-export'!C$2:C$18,MATCH('PR Expenditure_7A'!B43,'PR Expenditure_7A import-export'!N$2:N$18,0)),\"\")","v":""},null,0,{"$error":"#VALUE!"},null,null,{"$f":"IFERROR(INDEX('PR Expenditure_7A import-export'!I$2:I$18,MATCH('PR Expenditure_7A'!B43,'PR Expenditure_7A import-export'!N$2:N$18,0)),\"\")","v":""},null,0,{"$error":"#VALUE!"}]
["Don't Show","Costgrp32",{"$f":"IFERROR(INDEX('PR Expenditure_7A import-export'!A$2:A$18,MATCH('PR Expenditure_7A'!B44,'PR Expenditure_7A import-export'!N$2:N$18,0)),\"\")","v":""},null,{"$f":"IFERROR(INDEX('PR Expenditure_7A import-export'!C$2:C$18,MATCH('PR Expenditure_7A'!B44,'PR Expenditure_7A import-export'!N$2:N$18,0)),\"\")","v":""},null,0,{"$error":"#VALUE!"},null,null,{"$f":"IFERROR(INDEX('PR Expenditure_7A import-export'!I$2:I$18,MATCH('PR Expenditure_7A'!B44,'PR Expenditure_7A import-export'!N$2:N$18,0)),\"\")","v":""},null,0,{"$error":"#VALUE!"}]
["Don't Show","Costgrp33",{"$f":"IFERROR(INDEX('PR Expenditure_7A import-export'!A$2:A$18,MATCH('PR Expenditure_7A'!B45,'PR Expenditure_7A import-export'!N$2:N$18,0)),\"\")","v":""},null,{"$f":"IFERROR(INDEX('PR Expenditure_7A import-export'!C$2:C$18,MATCH('PR Expenditure_7A'!B45,'PR Expenditure_7A import-export'!N$2:N$18,0)),\"\")","v":""},null,0,{"$error":"#VALUE!"},null,null,{"$f":"IFERROR(INDEX('PR Expenditure_7A import-export'!I$2:I$18,MATCH('PR Expenditure_7A'!B45,'PR Expenditure_7A import-export'!N$2:N$18,0)),\"\")","v":""},null,0,{"$error":"#VALUE!"}]
["Don't Show","Costgrp34",{"$f":"IFERROR(INDEX('PR Expenditure_7A import-export'!A$2:A$18,MATCH('PR Expenditure_7A'!B46,'PR Expenditure_7A import-export'!N$2:N$18,0)),\"\")","v":""},null,{"$f":"IFERROR(INDEX('PR Expenditure_7A import-export'!C$2:C$18,MATCH('PR Expenditure_7A'!B46,'PR Expenditure_7A import-export'!N$2:N$18,0)),\"\")","v":""},null,0,{"$error":"#VALUE!"},null,null,{"$f":"IFERROR(INDEX('PR Expenditure_7A import-export'!I$2:I$18,MATCH('PR Expenditure_7A'!B46,'PR Expenditure_7A import-export'!N$2:N$18,0)),\"\")","v":""},null,0,{"$error":"#VALUE!"}]
["Don't Show","Costgrp35",{"$f":"IFERROR(INDEX('PR Expenditure_7A import-export'!A$2:A$18,MATCH('PR Expenditure_7A'!B47,'PR Expenditure_7A import-export'!N$2:N$18,0)),\"\")","v":""},null,{"$f":"IFERROR(INDEX('PR Expenditure_7A import-export'!C$2:C$18,MATCH('PR Expenditure_7A'!B47,'PR Expenditure_7A import-export'!N$2:N$18,0)),\"\")","v":""},null,0,{"$error":"#VALUE!"},null,null,{"$f":"IFERROR(INDEX('PR Expenditure_7A import-export'!I$2:I$18,MATCH('PR Expenditure_7A'!B47,'PR Expenditure_7A import-export'!N$2:N$18,0)),\"\")","v":""},null,0,{"$error":"#VALUE!"}]
["Don't Show","Costgrp36",{"$f":"IFERROR(INDEX('PR Expenditure_7A import-export'!A$2:A$18,MATCH('PR Expenditure_7A'!B48,'PR Expenditure_7A import-export'!N$2:N$18,0)),\"\")","v":""},null,{"$f":"IFERROR(INDEX('PR Expenditure_7A import-export'!C$2:C$18,MATCH('PR Expenditure_7A'!B48,'PR Expenditure_7A import-export'!N$2:N$18,0)),\"\")","v":""},null,0,{"$error":"#VALUE!"},null,null,{"$f":"IFERROR(INDEX('PR Expenditure_7A import-export'!I$2:I$18,MATCH('PR Expenditure_7A'!B48,'PR Expenditure_7A import-export'!N$2:N$18,0)),\"\")","v":""},null,0,{"$error":"#VALUE!"}]
["Don't Show","Costgrp37",{"$f":"IFERROR(INDEX('PR Expenditure_7A import-export'!A$2:A$18,MATCH('PR Expenditure_7A'!B49,'PR Expenditure_7A import-export'!N$2:N$18,0)),\"\")","v":""},null,{"$f":"IFERROR(INDEX('PR Expenditure_7A import-export'!C$2:C$18,MATCH('PR Expenditure_7A'!B49,'PR Expenditure_7A import-export'!N$2:N$18,0)),\"\")","v":""},null,0,{"$error":"#VALUE!"},null,null,{"$f":"IFERROR(INDEX('PR Expenditure_7A import-export'!I$2:I$18,MATCH('PR Expenditure_7A'!B49,'PR Expenditure_7A import-export'!N$2:N$18,0)),\"\")","v":""},null,0,{"$error":"#VALUE!"}]
["Don't Show","Costgrp38",{"$f":"IFERROR(INDEX('PR Expenditure_7A import-export'!A$2:A$18,MATCH('PR Expenditure_7A'!B50,'PR Expenditure_7A import-export'!N$2:N$18,0)),\"\")","v":""},null,{"$f":"IFERROR(INDEX('PR Expenditure_7A import-export'!C$2:C$18,MATCH('PR Expenditure_7A'!B50,'PR Expenditure_7A import-export'!N$2:N$18,0)),\"\")","v":""},null,0,{"$error":"#VALUE!"},null,null,{"$f":"IFERROR(INDEX('PR Expenditure_7A import-export'!I$2:I$18,MATCH('PR Expenditure_7A'!B50,'PR Expenditure_7A import-export'!N$2:N$18,0)),\"\")","v":""},null,0,{"$error":"#VALUE!"}]
["Don't Show","Costgrp39",{"$f":"IFERROR(INDEX('PR Expenditure_7A import-export'!A$2:A$18,MATCH('PR Expenditure_7A'!B51,'PR Expenditure_7A import-export'!N$2:N$18,0)),\"\")","v":""},null,{"$f":"IFERROR(INDEX('PR Expenditure_7A import-export'!C$2:C$18,MATCH('PR Expenditure_7A'!B51,'PR Expenditure_7A import-export'!N$2:N$18,0)),\"\")","v":""},null,0,{"$error":"#VALUE!"},null,null,{"$f":"IFERROR(INDEX('PR Expenditure_7A import-export'!I$2:I$18,MATCH('PR Expenditure_7A'!B51,'PR Expenditure_7A import-export'!N$2:N$18,0)),\"\")","v":""},null,0,{"$error":"#VALUE!"}]
["Don't Show","Costgrp40",{"$f":"IFERROR(INDEX('PR Expenditure_7A import-export'!A$2:A$18,MATCH('PR Expenditure_7A'!B52,'PR Expenditure_7A import-export'!N$2:N$18,0)),\"\")","v":""},null,{"$f":"IFERROR(INDEX('PR Expenditure_7A import-export'!C$2:C$18,MATCH('PR Expenditure_7A'!B52,'PR Expenditure_7A import-export'!N$2:N$18,0)),\"\")","v":""},null,0,{"$error":"#VALUE!"},null,null,{"$f":"IFERROR(INDEX('PR Expenditure_7A import-export'!I$2:I$18,MATCH('PR Expenditure_7A'!B52,'PR Expenditure_7A import-export'!N$2:N$18,0)),\"\")","v":""},null,0,{"$error":"#VALUE!"}]
["Don't Show","Costgrp41",{"$f":"IFERROR(INDEX('PR Expenditure_7A import-export'!A$2:A$18,MATCH('PR Expenditure_7A'!B53,'PR Expenditure_7A import-export'!N$2:N$18,0)),\"\")","v":""},null,{"$f":"IFERROR(INDEX('PR Expenditure_7A import-export'!C$2:C$18,MATCH('PR Expenditure_7A'!B53,'PR Expenditure_7A import-export'!N$2:N$18,0)),\"\")","v":""},null,0,{"$error":"#VALUE!"},null,null,{"$f":"IFERROR(INDEX('PR Expenditure_7A import-export'!I$2:I$18,MATCH('PR Expenditure_7A'!B53,'PR Expenditure_7A import-export'!N$2:N$18,0)),\"\")","v":""},null,0,{"$error":"#VALUE!"}]
["Don't Show","Costgrp42",{"$f":"IFERROR(INDEX('PR Expenditure_7A import-export'!A$2:A$18,MATCH('PR Expenditure_7A'!B54,'PR Expenditure_7A import-export'!N$2:N$18,0)),\"\")","v":""},null,{"$f":"IFERROR(INDEX('PR Expenditure_7A import-export'!C$2:C$18,MATCH('PR Expenditure_7A'!B54,'PR Expenditure_7A import-export'!N$2:N$18,0)),\"\")","v":""},null,0,{"$error":"#VALUE!"},null,null,{"$f":"IFERROR(INDEX('PR Expenditure_7A import-export'!I$2:I$18,MATCH('PR Expenditure_7A'!B54,'PR Expenditure_7A import-export'!N$2:N$18,0)),\"\")","v":""},null,0,{"$error":"#VALUE!"}]
["Don't Show","Costgrp43",{"$f":"IFERROR(INDEX('PR Expenditure_7A import-export'!A$2:A$18,MATCH('PR Expenditure_7A'!B55,'PR Expenditure_7A import-export'!N$2:N$18,0)),\"\")","v":""},null,{"$f":"IFERROR(INDEX('PR Expenditure_7A import-export'!C$2:C$18,MATCH('PR Expenditure_7A'!B55,'PR Expenditure_7A import-export'!N$2:N$18,0)),\"\")","v":""},null,0,{"$error":"#VALUE!"},null,null,{"$f":"IFERROR(INDEX('PR Expenditure_7A import-export'!I$2:I$18,MATCH('PR Expenditure_7A'!B55,'PR Expenditure_7A import-export'!N$2:N$18,0)),\"\")","v":""},null,0,{"$error":"#VALUE!"}]
["Don't Show","Costgrp44",{"$f":"IFERROR(INDEX('PR Expenditure_7A import-export'!A$2:A$18,MATCH('PR Expenditure_7A'!B56,'PR Expenditure_7A import-export'!N$2:N$18,0)),\"\")","v":""},null,{"$f":"IFERROR(INDEX('PR Expenditure_7A import-export'!C$2:C$18,MATCH('PR Expenditure_7A'!B56,'PR Expenditure_7A import-export'!N$2:N$18,0)),\"\")","v":""},null,0,{"$error":"#VALUE!"},null,null,{"$f":"IFERROR(INDEX('PR Expenditure_7A import-export'!I$2:I$18,MATCH('PR Expenditure_7A'!B56,'PR Expenditure_7A import-export'!N$2:N$18,0)),\"\")","v":""},null,0,{"$error":"#VALUE!"}]
["Don't Show","Costgrp45",{"$f":"IFERROR(INDEX('PR Expenditure_7A import-export'!A$2:A$18,MATCH('PR Expenditure_7A'!B57,'PR Expenditure_7A import-export'!N$2:N$18,0)),\"\")","v":""},null,{"$f":"IFERROR(INDEX('PR Expenditure_7A import-export'!C$2:C$18,MATCH('PR Expenditure_7A'!B57,'PR Expenditure_7A import-export'!N$2:N$18,0)),\"\")","v":""},null,0,{"$error":"#VALUE!"},null,null,{"$f":"IFERROR(INDEX('PR Expenditure_7A import-export'!I$2:I$18,MATCH('PR Expenditure_7A'!B57,'PR Expenditure_7A import-export'!N$2:N$18,0)),\"\")","v":""},null,0,{"$error":"#VALUE!"}]
["Don't Show","Costgrp46",{"$f":"IFERROR(INDEX('PR Expenditure_7A import-export'!A$2:A$18,MATCH('PR Expenditure_7A'!B58,'PR Expenditure_7A import-export'!N$2:N$18,0)),\"\")","v":""},null,{"$f":"IFERROR(INDEX('PR Expenditure_7A import-export'!C$2:C$18,MATCH('PR Expenditure_7A'!B58,'PR Expenditure_7A import-export'!N$2:N$18,0)),\"\")","v":""},null,0,{"$error":"#VALUE!"},null,null,{"$f":"IFERROR(INDEX('PR Expenditure_7A import-export'!I$2:I$18,MATCH('PR Expenditure_7A'!B58,'PR Expenditure_7A import-export'!N$2:N$18,0)),\"\")","v":""},null,0,{"$error":"#VALUE!"}]
["Don't Show","Costgrp47",{"$f":"IFERROR(INDEX('PR Expenditure_7A import-export'!A$2:A$18,MATCH('PR Expenditure_7A'!B59,'PR Expenditure_7A import-export'!N$2:N$18,0)),\"\")","v":""},null,{"$f":"IFERROR(INDEX('PR Expenditure_7A import-export'!C$2:C$18,MATCH('PR Expenditure_7A'!B59,'PR Expenditure_7A import-export'!N$2:N$18,0)),\"\")","v":""},null,0,{"$error":"#VALUE!"},null,null,{"$f":"IFERROR(INDEX('PR Expenditure_7A import-export'!I$2:I$18,MATCH('PR Expenditure_7A'!B59,'PR Expenditure_7A import-export'!N$2:N$18,0)),\"\")","v":""},null,0,{"$error":"#VALUE!"}]
["Don't Show","Costgrp48",{"$f":"IFERROR(INDEX('PR Expenditure_7A import-export'!A$2:A$18,MATCH('PR Expenditure_7A'!B60,'PR Expenditure_7A import-export'!N$2:N$18,0)),\"\")","v":""},null,{"$f":"IFERROR(INDEX('PR Expenditure_7A import-export'!C$2:C$18,MATCH('PR Expenditure_7A'!B60,'PR Expenditure_7A import-export'!N$2:N$18,0)),\"\")","v":""},null,0,{"$error":"#VALUE!"},null,null,{"$f":"IFERROR(INDEX('PR Expenditure_7A import-export'!I$2:I$18,MATCH('PR Expenditure_7A'!B60,'PR Expenditure_7A import-export'!N$2:N$18,0)),\"\")","v":""},null,0,{"$error":"#VALUE!"}]
["Don't Show","Costgrp49",{"$f":"IFERROR(INDEX('PR Expenditure_7A import-export'!A$2:A$18,MATCH('PR Expenditure_7A'!B61,'PR Expenditure_7A import-export'!N$2:N$18,0)),\"\")","v":""},null,{"$f":"IFERROR(INDEX('PR Expenditure_7A import-export'!C$2:C$18,MATCH('PR Expenditure_7A'!B61,'PR Expenditure_7A import-export'!N$2:N$18,0)),\"\")","v":""},null,0,{"$error":"#VALUE!"},null,null,{"$f":"IFERROR(INDEX('PR Expenditure_7A import-export'!I$2:I$18,MATCH('PR Expenditure_7A'!B61,'PR Expenditure_7A import-export'!N$2:N$18,0)),\"\")","v":""},null,0,{"$error":"#VALUE!"}]
["Don't Show","Costgrp50",{"$f":"IFERROR(INDEX('PR Expenditure_7A import-export'!A$2:A$18,MATCH('PR Expenditure_7A'!B62,'PR Expenditure_7A import-export'!N$2:N$18,0)),\"\")","v":""},null,{"$f":"IFERROR(INDEX('PR Expenditure_7A import-export'!C$2:C$18,MATCH('PR Expenditure_7A'!B62,'PR Expenditure_7A import-export'!N$2:N$18,0)),\"\")","v":""},null,0,{"$error":"#VALUE!"},null,null,{"$f":"IFERROR(INDEX('PR Expenditure_7A import-export'!I$2:I$18,MATCH('PR Expenditure_7A'!B62,'PR Expenditure_7A import-export'!N$2:N$18,0)),\"\")","v":""},null,0,{"$error":"#VALUE!"}]
["Don't Show","Costgrp51",{"$f":"IFERROR(INDEX('PR Expenditure_7A import-export'!A$2:A$18,MATCH('PR Expenditure_7A'!B63,'PR Expenditure_7A import-export'!N$2:N$18,0)),\"\")","v":""},null,{"$f":"IFERROR(INDEX('PR Expenditure_7A import-export'!C$2:C$18,MATCH('PR Expenditure_7A'!B63,'PR Expenditure_7A import-export'!N$2:N$18,0)),\"\")","v":""},null,0,{"$error":"#VALUE!"},null,null,{"$f":"IFERROR(INDEX('PR Expenditure_7A import-export'!I$2:I$18,MATCH('PR Expenditure_7A'!B63,'PR Expenditure_7A import-export'!N$2:N$18,0)),\"\")","v":""},null,0,{"$error":"#VALUE!"}]
["Don't Show","Costgrp52",{"$f":"IFERROR(INDEX('PR Expenditure_7A import-export'!A$2:A$18,MATCH('PR Expenditure_7A'!B64,'PR Expenditure_7A import-export'!N$2:N$18,0)),\"\")","v":""},null,{"$f":"IFERROR(INDEX('PR Expenditure_7A import-export'!C$2:C$18,MATCH('PR Expenditure_7A'!B64,'PR Expenditure_7A import-export'!N$2:N$18,0)),\"\")","v":""},null,0,{"$error":"#VALUE!"},null,null,{"$f":"IFERROR(INDEX('PR Expenditure_7A import-export'!I$2:I$18,MATCH('PR Expenditure_7A'!B64,'PR Expenditure_7A import-export'!N$2:N$18,0)),\"\")","v":""},null,0,{"$error":"#VALUE!"}]
["Don't Show","Costgrp53",{"$f":"IFERROR(INDEX('PR Expenditure_7A import-export'!A$2:A$18,MATCH('PR Expenditure_7A'!B65,'PR Expenditure_7A import-export'!N$2:N$18,0)),\"\")","v":""},null,{"$f":"IFERROR(INDEX('PR Expenditure_7A import-export'!C$2:C$18,MATCH('PR Expenditure_7A'!B65,'PR Expenditure_7A import-export'!N$2:N$18,0)),\"\")","v":""},null,0,{"$error":"#VALUE!"},null,null,{"$f":"IFERROR(INDEX('PR Expenditure_7A import-export'!I$2:I$18,MATCH('PR Expenditure_7A'!B65,'PR Expenditure_7A import-export'!N$2:N$18,0)),\"\")","v":""},null,0,{"$error":"#VALUE!"}]
["Don't Show","Costgrp54",{"$f":"IFERROR(INDEX('PR Expenditure_7A import-export'!A$2:A$18,MATCH('PR Expenditure_7A'!B66,'PR Expenditure_7A import-export'!N$2:N$18,0)),\"\")","v":""},null,{"$f":"IFERROR(INDEX('PR Expenditure_7A import-export'!C$2:C$18,MATCH('PR Expenditure_7A'!B66,'PR Expenditure_7A import-export'!N$2:N$18,0)),\"\")","v":""},null,0,{"$error":"#VALUE!"},null,null,{"$f":"IFERROR(INDEX('PR Expenditure_7A import-export'!I$2:I$18,MATCH('PR Expenditure_7A'!B66,'PR Expenditure_7A import-export'!N$2:N$18,0)),\"\")","v":""},null,0,{"$error":"#VALUE!"}]
["Don't Show","Costgrp55",{"$f":"IFERROR(INDEX('PR Expenditure_7A import-export'!A$2:A$18,MATCH('PR Expenditure_7A'!B67,'PR Expenditure_7A import-export'!N$2:N$18,0)),\"\")","v":""},null,{"$f":"IFERROR(INDEX('PR Expenditure_7A import-export'!C$2:C$18,MATCH('PR Expenditure_7A'!B67,'PR Expenditure_7A import-export'!N$2:N$18,0)),\"\")","v":""},null,0,{"$error":"#VALUE!"},null,null,{"$f":"IFERROR(INDEX('PR Expenditure_7A import-export'!I$2:I$18,MATCH('PR Expenditure_7A'!B67,'PR Expenditure_7A import-export'!N$2:N$18,0)),\"\")","v":""},null,0,{"$error":"#VALUE!"}]
["Don't Show","Costgrp56",{"$f":"IFERROR(INDEX('PR Expenditure_7A import-export'!A$2:A$18,MATCH('PR Expenditure_7A'!B68,'PR Expenditure_7A import-export'!N$2:N$18,0)),\"\")","v":""},null,{"$f":"IFERROR(INDEX('PR Expenditure_7A import-export'!C$2:C$18,MATCH('PR Expenditure_7A'!B68,'PR Expenditure_7A import-export'!N$2:N$18,0)),\"\")","v":""},null,0,{"$error":"#VALUE!"},null,null,{"$f":"IFERROR(INDEX('PR Expenditure_7A import-export'!I$2:I$18,MATCH('PR Expenditure_7A'!B68,'PR Expenditure_7A import-export'!N$2:N$18,0)),\"\")","v":""},null,0,{"$error":"#VALUE!"}]
["Don't Show","Costgrpnew1",null,null,0,null,{"$f":"IFERROR(E69-F69,0)","v":0},{"$f":"IF(AND(E69=0,F69=0),\"N/A\",IF(AND(E69=0,F69<>0),\"Not Budgeted\",F69/E69))","v":"N/A"},null,null,null,null,{"$f":"IFERROR(K69-L69,0)","v":0},{"$f":"IF(AND(K69=0,L69=0),\"N/A\",IF(AND(K69=0,L69<>0),\"Not Budgeted\",L69/K69))","v":"N/A"},null,null,null,null,null,null,{"$f":"_402d6ddb_8386_4816_be97_0d59ffbe8160","v":""}]
["Don't Show","Costgrpnew2",null,null,0,null,{"$f":"IFERROR(E70-F70,0)","v":0},{"$f":"IF(AND(E70=0,F70=0),\"N/A\",IF(AND(E70=0,F70<>0),\"Not Budgeted\",F70/E70))","v":"N/A"},null,null,null,null,{"$f":"IFERROR(K70-L70,0)","v":0},{"$f":"IF(AND(K70=0,L70=0),\"N/A\",IF(AND(K70=0,L70<>0),\"Not Budgeted\",L70/K70))","v":"N/A"}]
["Don't Show","Costgrpnew3",null,null,0,null,0,"N/A",null,null,null,null,0,"N/A"]
["Don't Show","Costgrpnew4",null,null,0,null,0,"N/A",null,null,null,null,0,"N/A"]
["Don't Show","Costgrpnew5",null,null,0,null,0,"N/A",null,null,null,null,0,"N/A"]
["Don't Show","Costgrpnew6",null,null,0,null,0,"N/A",null,null,null,null,0,"N/A"]
["Don't Show","Costgrpnew7",null,null,0,null,0,"N/A",null,null,null,null,0,"N/A"]
["Don't Show","Costgrpnew8",null,null,0,null,0,"N/A",null,null,null,null,0,"N/A"]
["Don't Show","Costgrpnew9",null,null,0,null,0,"N/A",null,null,null,null,0,"N/A"]
["Don't Show","Costgrpnew10",null,null,0,null,0,"N/A",null,null,null,null,0,"N/A"]
["Don't Show","Costgrpnew11",null,null,0,null,0,"N/A",null,null,null,null,0,"N/A"]
["Don't Show","Costgrpnew12",null,null,0,null,0,"N/A",null,null,null,null,0,"N/A"]
["Don't Show","Costgrpnew13",null,null,0,null,0,"N/A",null,null,null,null,0,"N/A"]
["Don't Show","Costgrpnew14",null,null,0,null,0,"N/A",null,null,null,null,0,"N/A"]
["Don't Show","Costgrpnew15",null,null,0,null,0,"N/A",null,null,null,null,0,"N/A"]
["Don't Show","Costgrpnew16",null,null,0,null,0,"N/A",null,null,null,null,0,"N/A"]
["Don't Show","Costgrpnew17",null,null,0,null,0,"N/A",null,null,null,null,0,"N/A"]
["Don't Show","Costgrpnew18",null,null,0,null,0,"N/A",null,null,null,null,0,"N/A"]
["Don't Show","Costgrpnew19",null,null,0,null,0,"N/A",null,null,null,null,0,"N/A"]
["Don't Show","Costgrpnew20",null,null,0,null,0,"N/A",null,null,null,null,0,"N/A"]
["Don't Show","Costgrpnew21",null,null,0,null,0,"N/A",null,null,null,null,0,"N/A"]
["Don't Show","Costgrpnew22",null,null,0,null,0,"N/A",null,null,null,null,0,"N/A"]
["Don't Show","Costgrpnew23",null,null,0,null,0,"N/A",null,null,null,null,0,"N/A"]
["Don't Show","Costgrpnew24",null,null,0,null,0,"N/A",null,null,null,null,0,"N/A"]
["Don't Show","Costgrpnew25",null,null,0,null,0,"N/A",null,null,null,null,0,"N/A"]
["Don't Show","Costgrpnew26",null,null,0,null,0,"N/A",null,null,null,null,0,"N/A"]
[{"$f":"IF(C95<>\"\",\"Show\",\"Don't Show\")","v":"Don't Show"},"Costgrpnew27",null,null,0,null,0,"N/A",null,null,null,null,0,"N/A"]
["Don't Show","Costgrpnew28",null,null,0,null,0,"N/A",null,null,null,null,0,"N/A"]
["Don't Show","Costgrpnew29",null,null,0,null,0,"N/A",null,null,null,null,0,"N/A"]
["Don't Show","Costgrpnew30",null,null,0,null,0,"N/A",null,null,null,null,0,"N/A"]
["Show",null,"Grand Total",null,{"$f":"ROUND(SUM(E9:E98),2)","v":4057896.79},{"$f":"ROUND(SUM(F9:F98),2)","v":714241.57},{"$f":"ROUND(SUM(G9:G98),2)","v":3343655.22},{"$f":"(F99/E99)*100","v":17.601274920548189},null,null,{"$f":"ROUND(SUM(K9:K98),2)","v":4057896.79},{"$f":"ROUND(SUM(L9:L98),2)","v":714241.57},{"$f":"SUM(M9:M98)","v":3343655.2247546115},{"$f":"(L99/K99)","v":0.17601274920548188}]
["Show"]
["Show",null,"B. BREAKDOWN BY INTERVENTIONS"]
["Show"]
["Show",null,"Modular Approach - Modules","Modular Approach - Interventions","Budget for Reporting Period","Actual Expenditure","Budget Vs Actual Variances","Absorption Rate","Explanation of Variances (mandatory for all percentages below 95% & above 105%)",null,"Cumulative Budget","Cumulative Actual Expenditure","Cumulative Budget Vs Actuals Variances","Absorption Rate"]
[{"$f":"IF(C104<>\"\",\"Show\",\"Don't Show\")","v":"Show"},"Int1",{"$f":"IFERROR(INDEX('PR Expenditure_7A import-export'!A$22:A$33,MATCH($B104,'PR Expenditure_7A import-export'!$N$22:$N$33,0)),\"\")","v":"Vector control"},{"$f":"IFERROR(INDEX('PR Expenditure_7A import-export'!B$22:B$33,MATCH($B104,'PR Expenditure_7A import-export'!$N$22:$N$33,0)),\"\")","v":"IEC/BCC (Vector control)"},{"$f":"IFERROR(INDEX('PR Expenditure_7A import-export'!C$22:C$33,MATCH($B104,'PR Expenditure_7A import-export'!$N$22:$N$33,0)),\"\")","v":54087.803655188698},25716.67,{"$f":"IFERROR(E104-F104,0)","v":28371.1336551887},{"$f":"IF(AND(E104=0,F104=0),\"N/A\",IF(AND(E104=0,F104<>0),\"Not Budgeted\",F104/E104))","v":0.47546153221425863},"Cet écart s'explique par :\n* les économies de USD 5,583.62 sur les act 40 et 44;\n* le gap de USD -112.18 sur l'act 36;\n* le budget de USD 22,899.69 pour les activités non réalisées (act 37- USD 13,074.68; act 39 - USD 9,825.01) en raison du calendrier et reportées pour la période suivante",null,{"$f":"IFERROR(INDEX('PR Expenditure_7A import-export'!I$22:I$33,MATCH($B104,'PR Expenditure_7A import-export'!$N$22:$N$33,0)),\"\")","v":54087.803655188698},{"$f":"F104","v":25716.67},{"$f":"IFERROR(K104-L104,0)","v":28371.1336551887},{"$f":"IF(AND(K104=0,L104=0),\"N/A\",IF(AND(K104=0,L104<>0),\"Not Budgeted\",L104/K104))","v":0.47546153221425863}]
[{"$f":"IF(C105<>\"\",\"Show\",\"Don't Show\")","v":"Show"},"Int2",{"$f":"IFERROR(INDEX('PR Expenditure_7A import-export'!A$22:A$33,MATCH($B105,'PR Expenditure_7A import-export'!$N$22:$N$33,0)),\"\")","v":"RSSH: Health management information systems and M&E"},{"$f":"IFERROR(INDEX('PR Expenditure_7A import-export'!B$22:B$33,MATCH($B105,'PR Expenditure_7A import-export'!$N$22:$N$33,0)),\"\")","v":"Analysis, review and transparency"},{"$f":"IFERROR(INDEX('PR Expenditure_7A import-export'!C$22:C$33,MATCH($B105,'PR Expenditure_7A import-export'!$N$22:$N$33,0)),\"\")","v":3390},null,{"$f":"IFERROR(E105-F105,0)","v":3390},{"$f":"IF(AND(E105=0,F105=0),\"N/A\",IF(AND(E105=0,F105<>0),\"Not Budgeted\",F105/E105))","v":0},"Cet écart représente le budget de USD 3,390 de l'act 63 car aucune personne n'a participé aux conférences internationales de l'OMS ou du RBM durant cette periode",null,{"$f":"IFERROR(INDEX('PR Expenditure_7A import-export'!I$22:I$33,MATCH($B105,'PR Expenditure_7A import-export'!$N$22:$N$33,0)),\"\")","v":3390},0,{"$f":"IFERROR(K105-L105,0)","v":3390},{"$f":"IF(AND(K105=0,L105=0),\"N/A\",IF(AND(K105=0,L105<>0),\"Not Budgeted\",L105/K105))","v":0}]
["Show","Int3",{"$f":"IFERROR(INDEX('PR Expenditure_7A import-export'!A$22:A$33,MATCH($B106,'PR Expenditure_7A import-export'!$N$22:$N$33,0)),\"\")","v":"Program management"},{"$f":"IFERROR(INDEX('PR Expenditure_7A import-export'!B$22:B$33,MATCH($B106,'PR Expenditure_7A import-export'!$N$22:$N$33,0)),\"\")","v":"Policy, planning, coordination and management of national disease control programs"},{"$f":"IFERROR(INDEX('PR Expenditure_7A import-export'!C$22:C$33,MATCH($B106,'PR Expenditure_7A import-export'!$N$22:$N$33,0)),\"\")","v":92875.790708516404},21699.849999999995,71175.940708516413,0.2336437712611602,"Cet écart s'explique par :\n* les économies de USD 60,391.13 sur les RH du PNILP en raison du retard dans la mise en place des unités de Gestion act 67 (USD 55,090.45) et du non paiement au 30 juin 2018 des primes du 2e trimestre 2018 act 66 (USD 5,300.68);\n* les économies de USD 10,784.81 sur le fonctionnement du PNILP (act 65) due à la faible ou non exécution des dépenses de fonctionnement du premier trimestre 2018, les activités n'ayant pas activement démarré",null,{"$f":"IFERROR(INDEX('PR Expenditure_7A import-export'!I$22:I$33,MATCH($B106,'PR Expenditure_7A import-export'!$N$22:$N$33,0)),\"\")","v":92875.790708516404},21699.849999999995,71175.940708516413,0.2336437712611602]
["Show","Int4",{"$f":"IFERROR(INDEX('PR Expenditure_7A import-export'!A$22:A$33,MATCH($B107,'PR Expenditure_7A import-export'!$N$22:$N$33,0)),\"\")","v":"RSSH: Health management information systems and M&E"},{"$f":"IFERROR(INDEX('PR Expenditure_7A import-export'!B$22:B$33,MATCH($B107,'PR Expenditure_7A import-export'!$N$22:$N$33,0)),\"\")","v":"Program and data quality"},{"$f":"IFERROR(INDEX('PR Expenditure_7A import-export'!C$22:C$33,MATCH($B107,'PR Expenditure_7A import-export'!$N$22:$N$33,0)),\"\")","v":55228.813697177298},21734.55,33494.263697177303,0.39353642682190793,"Cet écart comprend:\n*26,991 USD représentant les économies sur les activités 64 (USD 1,290.65), 72 (USD 19,771.85), 73 (USD 3,824.69) 117 (USD 1,904.4 et 120 (USD 199.41) exécutées avec peu de ressources;\n* USD 5,861.68 représentant le solde du budget de l'act 116 exécutée partiellement;\n* USD 641.58 représentant le budget des activités 71 et 76  non éxécutées pour raison de calendrier",null,{"$f":"IFERROR(INDEX('PR Expenditure_7A import-export'!I$22:I$33,MATCH($B107,'PR Expenditure_7A import-export'!$N$22:$N$33,0)),\"\")","v":55228.813697177298},21734.55,33494.263697177303,0.39353642682190793]
["Show","Int5",{"$f":"IFERROR(INDEX('PR Expenditure_7A import-export'!A$22:A$33,MATCH($B108,'PR Expenditure_7A import-export'!$N$22:$N$33,0)),\"\")","v":"RSSH: Health management information systems and M&E"},{"$f":"IFERROR(INDEX('PR Expenditure_7A import-export'!B$22:B$33,MATCH($B108,'PR Expenditure_7A import-export'!$N$22:$N$33,0)),\"\")","v":"Surveys"},{"$f":"IFERROR(INDEX('PR Expenditure_7A import-export'!C$22:C$33,MATCH($B108,'PR Expenditure_7A import-export'!$N$22:$N$33,0)),\"\")","v":0},null,0,"N/A","N/A",null,{"$f":"IFERROR(INDEX('PR Expenditure_7A import-export'!I$22:I$33,MATCH($B108,'PR Expenditure_7A import-export'!$N$22:$N$33,0)),\"\")","v":0},0,0,"N/A"]
["Show","Int6",{"$f":"IFERROR(INDEX('PR Expenditure_7A import-export'!A$22:A$33,MATCH($B109,'PR Expenditure_7A import-export'!$N$22:$N$33,0)),\"\")","v":"RSSH: Financial management systems"},{"$f":"IFERROR(INDEX('PR Expenditure_7A import-export'!B$22:B$33,MATCH($B109,'PR Expenditure_7A import-export'!$N$22:$N$33,0)),\"\")","v":"Routine financial management improvement (non-PFM)"},{"$f":"IFERROR(INDEX('PR Expenditure_7A import-export'!C$22:C$33,MATCH($B109,'PR Expenditure_7A import-export'!$N$22:$N$33,0)),\"\")","v":0},null,0,"N/A","N/A",null,{"$f":"IFERROR(INDEX('PR Expenditure_7A import-export'!I$22:I$33,MATCH($B109,'PR Expenditure_7A import-export'!$N$22:$N$33,0)),\"\")","v":0},0,0,"N/A"]
["Show","Int7",{"$f":"IFERROR(INDEX('PR Expenditure_7A import-export'!A$22:A$33,MATCH($B110,'PR Expenditure_7A import-export'!$N$22:$N$33,0)),\"\")","v":"Case management"},{"$f":"IFERROR(INDEX('PR Expenditure_7A import-export'!B$22:B$33,MATCH($B110,'PR Expenditure_7A import-export'!$N$22:$N$33,0)),\"\")","v":"Integrated community case management (ICCM)"},{"$f":"IFERROR(INDEX('PR Expenditure_7A import-export'!C$22:C$33,MATCH($B110,'PR Expenditure_7A import-export'!$N$22:$N$33,0)),\"\")","v":402240.35134409199},null,402240.35134409199,0,"Cet écart s'explique par :\n* le budget de USD 72,884.6057 relatifs aux équipements des GASC (act 115) commandés mais non recus et payés au 300618.  Des engagements de USD 87,307.95 existent à cette date car le PR a anticipé pour sur le budget prévu pour les périodes à venir;\n* le budget de USD 329,355.7457 motivations des 417 GASC (act 118) non payées en raison de la non harmonisation des modalités de paiement entre le FM et le ministère de la santé.",null,{"$f":"IFERROR(INDEX('PR Expenditure_7A import-export'!I$22:I$33,MATCH($B110,'PR Expenditure_7A import-export'!$N$22:$N$33,0)),\"\")","v":402240.35134409199},{"$f":"F109","v":0},402240.35134409199,0]
["Show","Int8",{"$f":"IFERROR(INDEX('PR Expenditure_7A import-export'!A$22:A$33,MATCH($B111,'PR Expenditure_7A import-export'!$N$22:$N$33,0)),\"\")","v":"Case management"},{"$f":"IFERROR(INDEX('PR Expenditure_7A import-export'!B$22:B$33,MATCH($B111,'PR Expenditure_7A import-export'!$N$22:$N$33,0)),\"\")","v":"Private sector case management"},{"$f":"IFERROR(INDEX('PR Expenditure_7A import-export'!C$22:C$33,MATCH($B111,'PR Expenditure_7A import-export'!$N$22:$N$33,0)),\"\")","v":3313.9672872015599},null,{"$f":"IFERROR(E111-F111,0)","v":3313.9672872015599},{"$f":"IF(AND(E111=0,F111=0),\"N/A\",IF(AND(E111=0,F111<>0),\"Not Budgeted\",F111/E111))","v":0},"Cet écart s'explique par le budget de USD 3,313.97 relatif aux spots radios (act 119) non payés durant la période et pour lesquels un engagement de USD 1,591.09 existe",null,{"$f":"IFERROR(INDEX('PR Expenditure_7A import-export'!I$22:I$33,MATCH($B111,'PR Expenditure_7A import-export'!$N$22:$N$33,0)),\"\")","v":3313.9672872015599},{"$f":"F111","v":0},{"$f":"IFERROR(K111-L111,0)","v":3313.9672872015599},{"$f":"IF(AND(K111=0,L111=0),\"N/A\",IF(AND(K111=0,L111<>0),\"Not Budgeted\",L111/K111))","v":0}]
["Show","Int9",{"$f":"IFERROR(INDEX('PR Expenditure_7A import-export'!A$22:A$33,MATCH($B112,'PR Expenditure_7A import-export'!$N$22:$N$33,0)),\"\")","v":"Program management"},{"$f":"IFERROR(INDEX('PR Expenditure_7A import-export'!B$22:B$33,MATCH($B112,'PR Expenditure_7A import-export'!$N$22:$N$33,0)),\"\")","v":"Grant management"},{"$f":"IFERROR(INDEX('PR Expenditure_7A import-export'!C$22:C$33,MATCH($B112,'PR Expenditure_7A import-export'!$N$22:$N$33,0)),\"\")","v":1238161.9280624299},636591.57999999996,601570.34806242993,0.51414242803943011,"Cet écart s'explique par :\n* les économies de USD 238,722.23 sur les RH du PR (act 140 et 150 pour USD 199,189.19) et de CARITAS (act 121,124 et 125 pour USD 39,533.04)  en raison respectivement du retard dans la mise en place du personnel du personnel du PMU et de l'équipe interéimaire et de la prise en charge par le Fonds Mondial d'un certain nombre de personnel dans le cadre des clotures et d'une surestimation des frais d'assurance maladie pour ce qui est de Caritas;\n* les économies de USD 21,222.02 sur les couts indirects du PR (act 146 et 153 pour USD 8,101.24) et de CARITAS (act 122-  USD 13,120.78)  en raison du retard dans la mise en place de l'équipe du PR et de la faible des dépenses de fonctionnement du premier trimestre 2018 pour CARITAS, les activités n'yant pas activement démarré;\n* USD 224,601.12 représentant les économies liées aux frais de gestion dues à la non réalisation de toutes les activités inscrites au plan de travail.\n* les économies de USD 32,347.17 sur les couts liés au déplacement  en raison du retard de la mise en place de l'équipe du PR (act 151 et 167);\n* les économies de USD 6,600 relatives aux honoraires du consultant évaluation des capacités des SRs (act 152);\n* les économies de USD 39,279.22 sur le mobilier (act 143 - USD 8,411.36) et les rénovations (act 147- USD 30,867.86) en raison respectivement de la mise à disposition gratuite par le PNUD des divers mobiliers et du fait qu'aucune grande renovation n' a été faite.\n* les économies de USD 62,872 sur les act 144 et 145 dues à la non acquisition du groupe électrogène (mis à disposition gratuitement par le PNUD), du matériel de communication et de sécurité pour raison de spécification et car aucune maintenance n'a été effectuée, les équipements acquis étant tous neufs.\n* le gap de -24,073.24 sur l'achat du véhicule et des ordinateurs (act 141 et 142) en raison d'une sousestimation des prix. Au 30 Juin 2018, il y a un engagement de USD 880.9 sur l'act 142.",null,{"$f":"IFERROR(INDEX('PR Expenditure_7A import-export'!I$22:I$33,MATCH($B112,'PR Expenditure_7A import-export'!$N$22:$N$33,0)),\"\")","v":1238161.9280624299},{"$f":"F112","v":636591.57999999996},601570.34806242993,0.51414242803943011]
["Show","Int10",{"$f":"IFERROR(INDEX('PR Expenditure_7A import-export'!A$22:A$33,MATCH($B113,'PR Expenditure_7A import-export'!$N$22:$N$33,0)),\"\")","v":"Case management"},{"$f":"IFERROR(INDEX('PR Expenditure_7A import-export'!B$22:B$33,MATCH($B113,'PR Expenditure_7A import-export'!$N$22:$N$33,0)),\"\")","v":"Facility-based treatment"},{"$f":"IFERROR(INDEX('PR Expenditure_7A import-export'!C$22:C$33,MATCH($B113,'PR Expenditure_7A import-export'!$N$22:$N$33,0)),\"\")","v":2208598.14},8498.9200000000019,2200099.2200000002,3.8481061113272517E-3,"Cet écart s'explique par :\n* USD 1,091,903.59 représentant le solde du budget des TDRs (act 135) car le paiement n'a pas été fait pour les TDRs partiellement commandés. Au 30 juin 2018, des TDRs commandés pour USD 255,398 n'ont pas été livrés;\n* USD 669,838  représentant le budget des médicaments (act 134). Il faut signaler que lesdits médicaments ont été commandés et un engagement existe pour USD 1,155,382.32;\n* USD 438,357.63 représentant le solde du budget des couts de gestion des achats (act 136, 137, 138 et 139) car les produits commandés n'ont pas été en majorité recus et les frais y relatifs payés. A la date du 30 Juin 2018, les engagements s'élèvent à USD 69,171.28 pour l'act 136 et USD 118740 pour l'act 137\n",null,{"$f":"IFERROR(INDEX('PR Expenditure_7A import-export'!I$22:I$33,MATCH($B113,'PR Expenditure_7A import-export'!$N$22:$N$33,0)),\"\")","v":2208598.14},{"$f":"F113","v":8498.9200000000019},2200099.2200000002,3.8481061113272517E-3]
["Don't Show","Int11",{"$f":"IFERROR(INDEX('PR Expenditure_7A import-export'!A$22:A$33,MATCH($B114,'PR Expenditure_7A import-export'!$N$22:$N$33,0)),\"\")","v":""},{"$f":"IFERROR(INDEX('PR Expenditure_7A import-export'!B$22:B$33,MATCH($B114,'PR Expenditure_7A import-export'!$N$22:$N$33,0)),\"\")","v":""},{"$f":"IFERROR(INDEX('PR Expenditure_7A import-export'!C$22:C$33,MATCH($B114,'PR Expenditure_7A import-export'!$N$22:$N$33,0)),\"\")","v":""},null,0,{"$error":"#VALUE!"},null,null,{"$f":"IFERROR(INDEX('PR Expenditure_7A import-export'!I$22:I$33,MATCH($B114,'PR Expenditure_7A import-export'!$N$22:$N$33,0)),\"\")","v":""},null,0,{"$error":"#VALUE!"}]
["Don't Show","Int12",{"$f":"IFERROR(INDEX('PR Expenditure_7A import-export'!A$22:A$33,MATCH($B115,'PR Expenditure_7A import-export'!$N$22:$N$33,0)),\"\")","v":""},{"$f":"IFERROR(INDEX('PR Expenditure_7A import-export'!B$22:B$33,MATCH($B115,'PR Expenditure_7A import-export'!$N$22:$N$33,0)),\"\")","v":""},{"$f":"IFERROR(INDEX('PR Expenditure_7A import-export'!C$22:C$33,MATCH($B115,'PR Expenditure_7A import-export'!$N$22:$N$33,0)),\"\")","v":""},null,0,{"$error":"#VALUE!"},null,null,{"$f":"IFERROR(INDEX('PR Expenditure_7A import-export'!I$22:I$33,MATCH($B115,'PR Expenditure_7A import-export'!$N$22:$N$33,0)),\"\")","v":""},null,0,{"$error":"#VALUE!"}]
["Don't Show","Int13",{"$f":"IFERROR(INDEX('PR Expenditure_7A import-export'!A$22:A$33,MATCH($B116,'PR Expenditure_7A import-export'!$N$22:$N$33,0)),\"\")","v":""},{"$f":"IFERROR(INDEX('PR Expenditure_7A import-export'!B$22:B$33,MATCH($B116,'PR Expenditure_7A import-export'!$N$22:$N$33,0)),\"\")","v":""},{"$f":"IFERROR(INDEX('PR Expenditure_7A import-export'!C$22:C$33,MATCH($B116,'PR Expenditure_7A import-export'!$N$22:$N$33,0)),\"\")","v":""},null,0,{"$error":"#VALUE!"},null,null,{"$f":"IFERROR(INDEX('PR Expenditure_7A import-export'!I$22:I$33,MATCH($B116,'PR Expenditure_7A import-export'!$N$22:$N$33,0)),\"\")","v":""},null,0,{"$error":"#VALUE!"}]
["Don't Show","Int14",{"$f":"IFERROR(INDEX('PR Expenditure_7A import-export'!A$22:A$33,MATCH($B117,'PR Expenditure_7A import-export'!$N$22:$N$33,0)),\"\")","v":""},{"$f":"IFERROR(INDEX('PR Expenditure_7A import-export'!B$22:B$33,MATCH($B117,'PR Expenditure_7A import-export'!$N$22:$N$33,0)),\"\")","v":""},{"$f":"IFERROR(INDEX('PR Expenditure_7A import-export'!C$22:C$33,MATCH($B117,'PR Expenditure_7A import-export'!$N$22:$N$33,0)),\"\")","v":""},null,0,{"$error":"#VALUE!"},null,null,{"$f":"IFERROR(INDEX('PR Expenditure_7A import-export'!I$22:I$33,MATCH($B117,'PR Expenditure_7A import-export'!$N$22:$N$33,0)),\"\")","v":""},null,0,{"$error":"#VALUE!"}]
["Don't Show","Int15",{"$f":"IFERROR(INDEX('PR Expenditure_7A import-export'!A$22:A$33,MATCH($B118,'PR Expenditure_7A import-export'!$N$22:$N$33,0)),\"\")","v":""},{"$f":"IFERROR(INDEX('PR Expenditure_7A import-export'!B$22:B$33,MATCH($B118,'PR Expenditure_7A import-export'!$N$22:$N$33,0)),\"\")","v":""},{"$f":"IFERROR(INDEX('PR Expenditure_7A import-export'!C$22:C$33,MATCH($B118,'PR Expenditure_7A import-export'!$N$22:$N$33,0)),\"\")","v":""},null,0,{"$error":"#VALUE!"},null,null,{"$f":"IFERROR(INDEX('PR Expenditure_7A import-export'!I$22:I$33,MATCH($B118,'PR Expenditure_7A import-export'!$N$22:$N$33,0)),\"\")","v":""},null,0,{"$error":"#VALUE!"}]
["Don't Show","Int16",{"$f":"IFERROR(INDEX('PR Expenditure_7A import-export'!A$22:A$33,MATCH($B119,'PR Expenditure_7A import-export'!$N$22:$N$33,0)),\"\")","v":""},{"$f":"IFERROR(INDEX('PR Expenditure_7A import-export'!B$22:B$33,MATCH($B119,'PR Expenditure_7A import-export'!$N$22:$N$33,0)),\"\")","v":""},{"$f":"IFERROR(INDEX('PR Expenditure_7A import-export'!C$22:C$33,MATCH($B119,'PR Expenditure_7A import-export'!$N$22:$N$33,0)),\"\")","v":""},null,0,{"$error":"#VALUE!"},null,null,{"$f":"IFERROR(INDEX('PR Expenditure_7A import-export'!I$22:I$33,MATCH($B119,'PR Expenditure_7A import-export'!$N$22:$N$33,0)),\"\")","v":""},null,0,{"$error":"#VALUE!"}]
["Don't Show","Int17",{"$f":"IFERROR(INDEX('PR Expenditure_7A import-export'!A$22:A$33,MATCH($B120,'PR Expenditure_7A import-export'!$N$22:$N$33,0)),\"\")","v":""},{"$f":"IFERROR(INDEX('PR Expenditure_7A import-export'!B$22:B$33,MATCH($B120,'PR Expenditure_7A import-export'!$N$22:$N$33,0)),\"\")","v":""},{"$f":"IFERROR(INDEX('PR Expenditure_7A import-export'!C$22:C$33,MATCH($B120,'PR Expenditure_7A import-export'!$N$22:$N$33,0)),\"\")","v":""},null,0,{"$error":"#VALUE!"},null,null,{"$f":"IFERROR(INDEX('PR Expenditure_7A import-export'!I$22:I$33,MATCH($B120,'PR Expenditure_7A import-export'!$N$22:$N$33,0)),\"\")","v":""},null,0,{"$error":"#VALUE!"}]
["Don't Show","Int18",{"$f":"IFERROR(INDEX('PR Expenditure_7A import-export'!A$22:A$33,MATCH($B121,'PR Expenditure_7A import-export'!$N$22:$N$33,0)),\"\")","v":""},{"$f":"IFERROR(INDEX('PR Expenditure_7A import-export'!B$22:B$33,MATCH($B121,'PR Expenditure_7A import-export'!$N$22:$N$33,0)),\"\")","v":""},{"$f":"IFERROR(INDEX('PR Expenditure_7A import-export'!C$22:C$33,MATCH($B121,'PR Expenditure_7A import-export'!$N$22:$N$33,0)),\"\")","v":""},null,0,{"$error":"#VALUE!"},null,null,{"$f":"IFERROR(INDEX('PR Expenditure_7A import-export'!I$22:I$33,MATCH($B121,'PR Expenditure_7A import-export'!$N$22:$N$33,0)),\"\")","v":""},null,0,{"$error":"#VALUE!"}]
["Don't Show","Int19",{"$f":"IFERROR(INDEX('PR Expenditure_7A import-export'!A$22:A$33,MATCH($B122,'PR Expenditure_7A import-export'!$N$22:$N$33,0)),\"\")","v":""},{"$f":"IFERROR(INDEX('PR Expenditure_7A import-export'!B$22:B$33,MATCH($B122,'PR Expenditure_7A import-export'!$N$22:$N$33,0)),\"\")","v":""},{"$f":"IFERROR(INDEX('PR Expenditure_7A import-export'!C$22:C$33,MATCH($B122,'PR Expenditure_7A import-export'!$N$22:$N$33,0)),\"\")","v":""},null,0,{"$error":"#VALUE!"},null,null,{"$f":"IFERROR(INDEX('PR Expenditure_7A import-export'!I$22:I$33,MATCH($B122,'PR Expenditure_7A import-export'!$N$22:$N$33,0)),\"\")","v":""},null,0,{"$error":"#VALUE!"}]
["Don't Show","Int20",{"$f":"IFERROR(INDEX('PR Expenditure_7A import-export'!A$22:A$33,MATCH($B123,'PR Expenditure_7A import-export'!$N$22:$N$33,0)),\"\")","v":""},{"$f":"IFERROR(INDEX('PR Expenditure_7A import-export'!B$22:B$33,MATCH($B123,'PR Expenditure_7A import-export'!$N$22:$N$33,0)),\"\")","v":""},{"$f":"IFERROR(INDEX('PR Expenditure_7A import-export'!C$22:C$33,MATCH($B123,'PR Expenditure_7A import-export'!$N$22:$N$33,0)),\"\")","v":""},null,0,{"$error":"#VALUE!"},null,null,{"$f":"IFERROR(INDEX('PR Expenditure_7A import-export'!I$22:I$33,MATCH($B123,'PR Expenditure_7A import-export'!$N$22:$N$33,0)),\"\")","v":""},null,0,{"$error":"#VALUE!"}]
["Don't Show","Int21",{"$f":"IFERROR(INDEX('PR Expenditure_7A import-export'!A$22:A$33,MATCH($B124,'PR Expenditure_7A import-export'!$N$22:$N$33,0)),\"\")","v":""},{"$f":"IFERROR(INDEX('PR Expenditure_7A import-export'!B$22:B$33,MATCH($B124,'PR Expenditure_7A import-export'!$N$22:$N$33,0)),\"\")","v":""},{"$f":"IFERROR(INDEX('PR Expenditure_7A import-export'!C$22:C$33,MATCH($B124,'PR Expenditure_7A import-export'!$N$22:$N$33,0)),\"\")","v":""},null,0,{"$error":"#VALUE!"},null,null,{"$f":"IFERROR(INDEX('PR Expenditure_7A import-export'!I$22:I$33,MATCH($B124,'PR Expenditure_7A import-export'!$N$22:$N$33,0)),\"\")","v":""},null,0,{"$error":"#VALUE!"}]
["Don't Show","Int22",{"$f":"IFERROR(INDEX('PR Expenditure_7A import-export'!A$22:A$33,MATCH($B125,'PR Expenditure_7A import-export'!$N$22:$N$33,0)),\"\")","v":""},{"$f":"IFERROR(INDEX('PR Expenditure_7A import-export'!B$22:B$33,MATCH($B125,'PR Expenditure_7A import-export'!$N$22:$N$33,0)),\"\")","v":""},{"$f":"IFERROR(INDEX('PR Expenditure_7A import-export'!C$22:C$33,MATCH($B125,'PR Expenditure_7A import-export'!$N$22:$N$33,0)),\"\")","v":""},null,0,{"$error":"#VALUE!"},null,null,{"$f":"IFERROR(INDEX('PR Expenditure_7A import-export'!I$22:I$33,MATCH($B125,'PR Expenditure_7A import-export'!$N$22:$N$33,0)),\"\")","v":""},null,0,{"$error":"#VALUE!"}]
["Don't Show","Int23",{"$f":"IFERROR(INDEX('PR Expenditure_7A import-export'!A$22:A$33,MATCH($B126,'PR Expenditure_7A import-export'!$N$22:$N$33,0)),\"\")","v":""},{"$f":"IFERROR(INDEX('PR Expenditure_7A import-export'!B$22:B$33,MATCH($B126,'PR Expenditure_7A import-export'!$N$22:$N$33,0)),\"\")","v":""},{"$f":"IFERROR(INDEX('PR Expenditure_7A import-export'!C$22:C$33,MATCH($B126,'PR Expenditure_7A import-export'!$N$22:$N$33,0)),\"\")","v":""},null,0,{"$error":"#VALUE!"},null,null,{"$f":"IFERROR(INDEX('PR Expenditure_7A import-export'!I$22:I$33,MATCH($B126,'PR Expenditure_7A import-export'!$N$22:$N$33,0)),\"\")","v":""},null,0,{"$error":"#VALUE!"}]
["Don't Show","Int24",{"$f":"IFERROR(INDEX('PR Expenditure_7A import-export'!A$22:A$33,MATCH($B127,'PR Expenditure_7A import-export'!$N$22:$N$33,0)),\"\")","v":""},{"$f":"IFERROR(INDEX('PR Expenditure_7A import-export'!B$22:B$33,MATCH($B127,'PR Expenditure_7A import-export'!$N$22:$N$33,0)),\"\")","v":""},{"$f":"IFERROR(INDEX('PR Expenditure_7A import-export'!C$22:C$33,MATCH($B127,'PR Expenditure_7A import-export'!$N$22:$N$33,0)),\"\")","v":""},null,0,{"$error":"#VALUE!"},null,null,{"$f":"IFERROR(INDEX('PR Expenditure_7A import-export'!I$22:I$33,MATCH($B127,'PR Expenditure_7A import-export'!$N$22:$N$33,0)),\"\")","v":""},null,0,{"$error":"#VALUE!"}]
["Don't Show","Int25",{"$f":"IFERROR(INDEX('PR Expenditure_7A import-export'!A$22:A$33,MATCH($B128,'PR Expenditure_7A import-export'!$N$22:$N$33,0)),\"\")","v":""},{"$f":"IFERROR(INDEX('PR Expenditure_7A import-export'!B$22:B$33,MATCH($B128,'PR Expenditure_7A import-export'!$N$22:$N$33,0)),\"\")","v":""},{"$f":"IFERROR(INDEX('PR Expenditure_7A import-export'!C$22:C$33,MATCH($B128,'PR Expenditure_7A import-export'!$N$22:$N$33,0)),\"\")","v":""},null,0,{"$error":"#VALUE!"},null,null,{"$f":"IFERROR(INDEX('PR Expenditure_7A import-export'!I$22:I$33,MATCH($B128,'PR Expenditure_7A import-export'!$N$22:$N$33,0)),\"\")","v":""},null,0,{"$error":"#VALUE!"}]
["Don't Show","Int26",{"$f":"IFERROR(INDEX('PR Expenditure_7A import-export'!A$22:A$33,MATCH($B129,'PR Expenditure_7A import-export'!$N$22:$N$33,0)),\"\")","v":""},{"$f":"IFERROR(INDEX('PR Expenditure_7A import-export'!B$22:B$33,MATCH($B129,'PR Expenditure_7A import-export'!$N$22:$N$33,0)),\"\")","v":""},{"$f":"IFERROR(INDEX('PR Expenditure_7A import-export'!C$22:C$33,MATCH($B129,'PR Expenditure_7A import-export'!$N$22:$N$33,0)),\"\")","v":""},null,0,{"$error":"#VALUE!"},null,null,{"$f":"IFERROR(INDEX('PR Expenditure_7A import-export'!I$22:I$33,MATCH($B129,'PR Expenditure_7A import-export'!$N$22:$N$33,0)),\"\")","v":""},null,0,{"$error":"#VALUE!"}]
["Don't Show","Int27",{"$f":"IFERROR(INDEX('PR Expenditure_7A import-export'!A$22:A$33,MATCH($B130,'PR Expenditure_7A import-export'!$N$22:$N$33,0)),\"\")","v":""},{"$f":"IFERROR(INDEX('PR Expenditure_7A import-export'!B$22:B$33,MATCH($B130,'PR Expenditure_7A import-export'!$N$22:$N$33,0)),\"\")","v":""},{"$f":"IFERROR(INDEX('PR Expenditure_7A import-export'!C$22:C$33,MATCH($B130,'PR Expenditure_7A import-export'!$N$22:$N$33,0)),\"\")","v":""},null,0,{"$error":"#VALUE!"},null,null,{"$f":"IFERROR(INDEX('PR Expenditure_7A import-export'!I$22:I$33,MATCH($B130,'PR Expenditure_7A import-export'!$N$22:$N$33,0)),\"\")","v":""},null,0,{"$error":"#VALUE!"}]
["Don't Show","Int28",{"$f":"IFERROR(INDEX('PR Expenditure_7A import-export'!A$22:A$33,MATCH($B131,'PR Expenditure_7A import-export'!$N$22:$N$33,0)),\"\")","v":""},{"$f":"IFERROR(INDEX('PR Expenditure_7A import-export'!B$22:B$33,MATCH($B131,'PR Expenditure_7A import-export'!$N$22:$N$33,0)),\"\")","v":""},{"$f":"IFERROR(INDEX('PR Expenditure_7A import-export'!C$22:C$33,MATCH($B131,'PR Expenditure_7A import-export'!$N$22:$N$33,0)),\"\")","v":""},null,0,{"$error":"#VALUE!"},null,null,{"$f":"IFERROR(INDEX('PR Expenditure_7A import-export'!I$22:I$33,MATCH($B131,'PR Expenditure_7A import-export'!$N$22:$N$33,0)),\"\")","v":""},null,0,{"$error":"#VALUE!"}]
["Don't Show","Int29",{"$f":"IFERROR(INDEX('PR Expenditure_7A import-export'!A$22:A$33,MATCH($B132,'PR Expenditure_7A import-export'!$N$22:$N$33,0)),\"\")","v":""},{"$f":"IFERROR(INDEX('PR Expenditure_7A import-export'!B$22:B$33,MATCH($B132,'PR Expenditure_7A import-export'!$N$22:$N$33,0)),\"\")","v":""},{"$f":"IFERROR(INDEX('PR Expenditure_7A import-export'!C$22:C$33,MATCH($B132,'PR Expenditure_7A import-export'!$N$22:$N$33,0)),\"\")","v":""},null,0,{"$error":"#VALUE!"},null,null,{"$f":"IFERROR(INDEX('PR Expenditure_7A import-export'!I$22:I$33,MATCH($B132,'PR Expenditure_7A import-export'!$N$22:$N$33,0)),\"\")","v":""},null,0,{"$error":"#VALUE!"}]
["Don't Show","Int30",{"$f":"IFERROR(INDEX('PR Expenditure_7A import-export'!A$22:A$33,MATCH($B133,'PR Expenditure_7A import-export'!$N$22:$N$33,0)),\"\")","v":""},{"$f":"IFERROR(INDEX('PR Expenditure_7A import-export'!B$22:B$33,MATCH($B133,'PR Expenditure_7A import-export'!$N$22:$N$33,0)),\"\")","v":""},{"$f":"IFERROR(INDEX('PR Expenditure_7A import-export'!C$22:C$33,MATCH($B133,'PR Expenditure_7A import-export'!$N$22:$N$33,0)),\"\")","v":""},null,0,{"$error":"#VALUE!"},null,null,{"$f":"IFERROR(INDEX('PR Expenditure_7A import-export'!I$22:I$33,MATCH($B133,'PR Expenditure_7A import-export'!$N$22:$N$33,0)),\"\")","v":""},null,0,{"$error":"#VALUE!"}]
["Don't Show","Int31",{"$f":"IFERROR(INDEX('PR Expenditure_7A import-export'!A$22:A$33,MATCH($B134,'PR Expenditure_7A import-export'!$N$22:$N$33,0)),\"\")","v":""},{"$f":"IFERROR(INDEX('PR Expenditure_7A import-export'!B$22:B$33,MATCH($B134,'PR Expenditure_7A import-export'!$N$22:$N$33,0)),\"\")","v":""},{"$f":"IFERROR(INDEX('PR Expenditure_7A import-export'!C$22:C$33,MATCH($B134,'PR Expenditure_7A import-export'!$N$22:$N$33,0)),\"\")","v":""},null,0,{"$error":"#VALUE!"},null,null,{"$f":"IFERROR(INDEX('PR Expenditure_7A import-export'!I$22:I$33,MATCH($B134,'PR Expenditure_7A import-export'!$N$22:$N$33,0)),\"\")","v":""},null,0,{"$error":"#VALUE!"}]
["Don't Show","Int32",{"$f":"IFERROR(INDEX('PR Expenditure_7A import-export'!A$22:A$33,MATCH($B135,'PR Expenditure_7A import-export'!$N$22:$N$33,0)),\"\")","v":""},{"$f":"IFERROR(INDEX('PR Expenditure_7A import-export'!B$22:B$33,MATCH($B135,'PR Expenditure_7A import-export'!$N$22:$N$33,0)),\"\")","v":""},{"$f":"IFERROR(INDEX('PR Expenditure_7A import-export'!C$22:C$33,MATCH($B135,'PR Expenditure_7A import-export'!$N$22:$N$33,0)),\"\")","v":""},null,0,{"$error":"#VALUE!"},null,null,{"$f":"IFERROR(INDEX('PR Expenditure_7A import-export'!I$22:I$33,MATCH($B135,'PR Expenditure_7A import-export'!$N$22:$N$33,0)),\"\")","v":""},null,0,{"$error":"#VALUE!"}]
["Don't Show","Int33",{"$f":"IFERROR(INDEX('PR Expenditure_7A import-export'!A$22:A$33,MATCH($B136,'PR Expenditure_7A import-export'!$N$22:$N$33,0)),\"\")","v":""},{"$f":"IFERROR(INDEX('PR Expenditure_7A import-export'!B$22:B$33,MATCH($B136,'PR Expenditure_7A import-export'!$N$22:$N$33,0)),\"\")","v":""},{"$f":"IFERROR(INDEX('PR Expenditure_7A import-export'!C$22:C$33,MATCH($B136,'PR Expenditure_7A import-export'!$N$22:$N$33,0)),\"\")","v":""},null,0,{"$error":"#VALUE!"},null,null,{"$f":"IFERROR(INDEX('PR Expenditure_7A import-export'!I$22:I$33,MATCH($B136,'PR Expenditure_7A import-export'!$N$22:$N$33,0)),\"\")","v":""},null,0,{"$error":"#VALUE!"}]
["Don't Show","Int34",{"$f":"IFERROR(INDEX('PR Expenditure_7A import-export'!A$22:A$33,MATCH($B137,'PR Expenditure_7A import-export'!$N$22:$N$33,0)),\"\")","v":""},{"$f":"IFERROR(INDEX('PR Expenditure_7A import-export'!B$22:B$33,MATCH($B137,'PR Expenditure_7A import-export'!$N$22:$N$33,0)),\"\")","v":""},{"$f":"IFERROR(INDEX('PR Expenditure_7A import-export'!C$22:C$33,MATCH($B137,'PR Expenditure_7A import-export'!$N$22:$N$33,0)),\"\")","v":""},null,0,{"$error":"#VALUE!"},null,null,{"$f":"IFERROR(INDEX('PR Expenditure_7A import-export'!I$22:I$33,MATCH($B137,'PR Expenditure_7A import-export'!$N$22:$N$33,0)),\"\")","v":""},null,0,{"$error":"#VALUE!"}]
["Don't Show","Int35",{"$f":"IFERROR(INDEX('PR Expenditure_7A import-export'!A$22:A$33,MATCH($B138,'PR Expenditure_7A import-export'!$N$22:$N$33,0)),\"\")","v":""},{"$f":"IFERROR(INDEX('PR Expenditure_7A import-export'!B$22:B$33,MATCH($B138,'PR Expenditure_7A import-export'!$N$22:$N$33,0)),\"\")","v":""},{"$f":"IFERROR(INDEX('PR Expenditure_7A import-export'!C$22:C$33,MATCH($B138,'PR Expenditure_7A import-export'!$N$22:$N$33,0)),\"\")","v":""},null,0,{"$error":"#VALUE!"},null,null,{"$f":"IFERROR(INDEX('PR Expenditure_7A import-export'!I$22:I$33,MATCH($B138,'PR Expenditure_7A import-export'!$N$22:$N$33,0)),\"\")","v":""},null,0,{"$error":"#VALUE!"}]
["Don't Show","Int36",{"$f":"IFERROR(INDEX('PR Expenditure_7A import-export'!A$22:A$33,MATCH($B139,'PR Expenditure_7A import-export'!$N$22:$N$33,0)),\"\")","v":""},{"$f":"IFERROR(INDEX('PR Expenditure_7A import-export'!B$22:B$33,MATCH($B139,'PR Expenditure_7A import-export'!$N$22:$N$33,0)),\"\")","v":""},{"$f":"IFERROR(INDEX('PR Expenditure_7A import-export'!C$22:C$33,MATCH($B139,'PR Expenditure_7A import-export'!$N$22:$N$33,0)),\"\")","v":""},null,0,{"$error":"#VALUE!"},null,null,{"$f":"IFERROR(INDEX('PR Expenditure_7A import-export'!I$22:I$33,MATCH($B139,'PR Expenditure_7A import-export'!$N$22:$N$33,0)),\"\")","v":""},null,0,{"$error":"#VALUE!"}]
["Don't Show","Int37",{"$f":"IFERROR(INDEX('PR Expenditure_7A import-export'!A$22:A$33,MATCH($B140,'PR Expenditure_7A import-export'!$N$22:$N$33,0)),\"\")","v":""},{"$f":"IFERROR(INDEX('PR Expenditure_7A import-export'!B$22:B$33,MATCH($B140,'PR Expenditure_7A import-export'!$N$22:$N$33,0)),\"\")","v":""},{"$f":"IFERROR(INDEX('PR Expenditure_7A import-export'!C$22:C$33,MATCH($B140,'PR Expenditure_7A import-export'!$N$22:$N$33,0)),\"\")","v":""},null,0,{"$error":"#VALUE!"},null,null,{"$f":"IFERROR(INDEX('PR Expenditure_7A import-export'!I$22:I$33,MATCH($B140,'PR Expenditure_7A import-export'!$N$22:$N$33,0)),\"\")","v":""},null,0,{"$error":"#VALUE!"}]
["Don't Show","Int38",{"$f":"IFERROR(INDEX('PR Expenditure_7A import-export'!A$22:A$33,MATCH($B141,'PR Expenditure_7A import-export'!$N$22:$N$33,0)),\"\")","v":""},{"$f":"IFERROR(INDEX('PR Expenditure_7A import-export'!B$22:B$33,MATCH($B141,'PR Expenditure_7A import-export'!$N$22:$N$33,0)),\"\")","v":""},{"$f":"IFERROR(INDEX('PR Expenditure_7A import-export'!C$22:C$33,MATCH($B141,'PR Expenditure_7A import-export'!$N$22:$N$33,0)),\"\")","v":""},null,0,{"$error":"#VALUE!"},null,null,{"$f":"IFERROR(INDEX('PR Expenditure_7A import-export'!I$22:I$33,MATCH($B141,'PR Expenditure_7A import-export'!$N$22:$N$33,0)),\"\")","v":""},null,0,{"$error":"#VALUE!"}]
["Don't Show","Int39",{"$f":"IFERROR(INDEX('PR Expenditure_7A import-export'!A$22:A$33,MATCH($B142,'PR Expenditure_7A import-export'!$N$22:$N$33,0)),\"\")","v":""},{"$f":"IFERROR(INDEX('PR Expenditure_7A import-export'!B$22:B$33,MATCH($B142,'PR Expenditure_7A import-export'!$N$22:$N$33,0)),\"\")","v":""},{"$f":"IFERROR(INDEX('PR Expenditure_7A import-export'!C$22:C$33,MATCH($B142,'PR Expenditure_7A import-export'!$N$22:$N$33,0)),\"\")","v":""},null,0,{"$error":"#VALUE!"},null,null,{"$f":"IFERROR(INDEX('PR Expenditure_7A import-export'!I$22:I$33,MATCH($B142,'PR Expenditure_7A import-export'!$N$22:$N$33,0)),\"\")","v":""},null,0,{"$error":"#VALUE!"}]
["Don't Show","Int40",{"$f":"IFERROR(INDEX('PR Expenditure_7A import-export'!A$22:A$33,MATCH($B143,'PR Expenditure_7A import-export'!$N$22:$N$33,0)),\"\")","v":""},{"$f":"IFERROR(INDEX('PR Expenditure_7A import-export'!B$22:B$33,MATCH($B143,'PR Expenditure_7A import-export'!$N$22:$N$33,0)),\"\")","v":""},{"$f":"IFERROR(INDEX('PR Expenditure_7A import-export'!C$22:C$33,MATCH($B143,'PR Expenditure_7A import-export'!$N$22:$N$33,0)),\"\")","v":""},null,0,{"$error":"#VALUE!"},null,null,{"$f":"IFERROR(INDEX('PR Expenditure_7A import-export'!I$22:I$33,MATCH($B143,'PR Expenditure_7A import-export'!$N$22:$N$33,0)),\"\")","v":""},null,0,{"$error":"#VALUE!"}]
["Don't Show","Int41",{"$f":"IFERROR(INDEX('PR Expenditure_7A import-export'!A$22:A$33,MATCH($B144,'PR Expenditure_7A import-export'!$N$22:$N$33,0)),\"\")","v":""},{"$f":"IFERROR(INDEX('PR Expenditure_7A import-export'!B$22:B$33,MATCH($B144,'PR Expenditure_7A import-export'!$N$22:$N$33,0)),\"\")","v":""},{"$f":"IFERROR(INDEX('PR Expenditure_7A import-export'!C$22:C$33,MATCH($B144,'PR Expenditure_7A import-export'!$N$22:$N$33,0)),\"\")","v":""},null,0,{"$error":"#VALUE!"},null,null,{"$f":"IFERROR(INDEX('PR Expenditure_7A import-export'!I$22:I$33,MATCH($B144,'PR Expenditure_7A import-export'!$N$22:$N$33,0)),\"\")","v":""},null,0,{"$error":"#VALUE!"}]
["Don't Show","Int42",{"$f":"IFERROR(INDEX('PR Expenditure_7A import-export'!A$22:A$33,MATCH($B145,'PR Expenditure_7A import-export'!$N$22:$N$33,0)),\"\")","v":""},{"$f":"IFERROR(INDEX('PR Expenditure_7A import-export'!B$22:B$33,MATCH($B145,'PR Expenditure_7A import-export'!$N$22:$N$33,0)),\"\")","v":""},{"$f":"IFERROR(INDEX('PR Expenditure_7A import-export'!C$22:C$33,MATCH($B145,'PR Expenditure_7A import-export'!$N$22:$N$33,0)),\"\")","v":""},null,0,{"$error":"#VALUE!"},null,null,{"$f":"IFERROR(INDEX('PR Expenditure_7A import-export'!I$22:I$33,MATCH($B145,'PR Expenditure_7A import-export'!$N$22:$N$33,0)),\"\")","v":""},null,0,{"$error":"#VALUE!"}]
["Don't Show","Int43",{"$f":"IFERROR(INDEX('PR Expenditure_7A import-export'!A$22:A$33,MATCH($B146,'PR Expenditure_7A import-export'!$N$22:$N$33,0)),\"\")","v":""},{"$f":"IFERROR(INDEX('PR Expenditure_7A import-export'!B$22:B$33,MATCH($B146,'PR Expenditure_7A import-export'!$N$22:$N$33,0)),\"\")","v":""},{"$f":"IFERROR(INDEX('PR Expenditure_7A import-export'!C$22:C$33,MATCH($B146,'PR Expenditure_7A import-export'!$N$22:$N$33,0)),\"\")","v":""},null,0,{"$error":"#VALUE!"},null,null,{"$f":"IFERROR(INDEX('PR Expenditure_7A import-export'!I$22:I$33,MATCH($B146,'PR Expenditure_7A import-export'!$N$22:$N$33,0)),\"\")","v":""},null,0,{"$error":"#VALUE!"}]
["Don't Show","Int44",{"$f":"IFERROR(INDEX('PR Expenditure_7A import-export'!A$22:A$33,MATCH($B147,'PR Expenditure_7A import-export'!$N$22:$N$33,0)),\"\")","v":""},{"$f":"IFERROR(INDEX('PR Expenditure_7A import-export'!B$22:B$33,MATCH($B147,'PR Expenditure_7A import-export'!$N$22:$N$33,0)),\"\")","v":""},{"$f":"IFERROR(INDEX('PR Expenditure_7A import-export'!C$22:C$33,MATCH($B147,'PR Expenditure_7A import-export'!$N$22:$N$33,0)),\"\")","v":""},null,0,{"$error":"#VALUE!"},null,null,{"$f":"IFERROR(INDEX('PR Expenditure_7A import-export'!I$22:I$33,MATCH($B147,'PR Expenditure_7A import-export'!$N$22:$N$33,0)),\"\")","v":""},null,0,{"$error":"#VALUE!"}]
["Don't Show","Int45",{"$f":"IFERROR(INDEX('PR Expenditure_7A import-export'!A$22:A$33,MATCH($B148,'PR Expenditure_7A import-export'!$N$22:$N$33,0)),\"\")","v":""},{"$f":"IFERROR(INDEX('PR Expenditure_7A import-export'!B$22:B$33,MATCH($B148,'PR Expenditure_7A import-export'!$N$22:$N$33,0)),\"\")","v":""},{"$f":"IFERROR(INDEX('PR Expenditure_7A import-export'!C$22:C$33,MATCH($B148,'PR Expenditure_7A import-export'!$N$22:$N$33,0)),\"\")","v":""},null,0,{"$error":"#VALUE!"},null,null,{"$f":"IFERROR(INDEX('PR Expenditure_7A import-export'!I$22:I$33,MATCH($B148,'PR Expenditure_7A import-export'!$N$22:$N$33,0)),\"\")","v":""},null,0,{"$error":"#VALUE!"}]
["Don't Show","Int46",{"$f":"IFERROR(INDEX('PR Expenditure_7A import-export'!A$22:A$33,MATCH($B149,'PR Expenditure_7A import-export'!$N$22:$N$33,0)),\"\")","v":""},{"$f":"IFERROR(INDEX('PR Expenditure_7A import-export'!B$22:B$33,MATCH($B149,'PR Expenditure_7A import-export'!$N$22:$N$33,0)),\"\")","v":""},{"$f":"IFERROR(INDEX('PR Expenditure_7A import-export'!C$22:C$33,MATCH($B149,'PR Expenditure_7A import-export'!$N$22:$N$33,0)),\"\")","v":""},null,0,{"$error":"#VALUE!"},null,null,{"$f":"IFERROR(INDEX('PR Expenditure_7A import-export'!I$22:I$33,MATCH($B149,'PR Expenditure_7A import-export'!$N$22:$N$33,0)),\"\")","v":""},null,0,{"$error":"#VALUE!"}]
["Don't Show","Int47",{"$f":"IFERROR(INDEX('PR Expenditure_7A import-export'!A$22:A$33,MATCH($B150,'PR Expenditure_7A import-export'!$N$22:$N$33,0)),\"\")","v":""},{"$f":"IFERROR(INDEX('PR Expenditure_7A import-export'!B$22:B$33,MATCH($B150,'PR Expenditure_7A import-export'!$N$22:$N$33,0)),\"\")","v":""},{"$f":"IFERROR(INDEX('PR Expenditure_7A import-export'!C$22:C$33,MATCH($B150,'PR Expenditure_7A import-export'!$N$22:$N$33,0)),\"\")","v":""},null,0,{"$error":"#VALUE!"},null,null,{"$f":"IFERROR(INDEX('PR Expenditure_7A import-export'!I$22:I$33,MATCH($B150,'PR Expenditure_7A import-export'!$N$22:$N$33,0)),\"\")","v":""},null,0,{"$error":"#VALUE!"}]
["Don't Show","Int48",{"$f":"IFERROR(INDEX('PR Expenditure_7A import-export'!A$22:A$33,MATCH($B151,'PR Expenditure_7A import-export'!$N$22:$N$33,0)),\"\")","v":""},{"$f":"IFERROR(INDEX('PR Expenditure_7A import-export'!B$22:B$33,MATCH($B151,'PR Expenditure_7A import-export'!$N$22:$N$33,0)),\"\")","v":""},{"$f":"IFERROR(INDEX('PR Expenditure_7A import-export'!C$22:C$33,MATCH($B151,'PR Expenditure_7A import-export'!$N$22:$N$33,0)),\"\")","v":""},null,0,{"$error":"#VALUE!"},null,null,{"$f":"IFERROR(INDEX('PR Expenditure_7A import-export'!I$22:I$33,MATCH($B151,'PR Expenditure_7A import-export'!$N$22:$N$33,0)),\"\")","v":""},null,0,{"$error":"#VALUE!"}]
["Don't Show","Int49",{"$f":"IFERROR(INDEX('PR Expenditure_7A import-export'!A$22:A$33,MATCH($B152,'PR Expenditure_7A import-export'!$N$22:$N$33,0)),\"\")","v":""},{"$f":"IFERROR(INDEX('PR Expenditure_7A import-export'!B$22:B$33,MATCH($B152,'PR Expenditure_7A import-export'!$N$22:$N$33,0)),\"\")","v":""},{"$f":"IFERROR(INDEX('PR Expenditure_7A import-export'!C$22:C$33,MATCH($B152,'PR Expenditure_7A import-export'!$N$22:$N$33,0)),\"\")","v":""},null,0,{"$error":"#VALUE!"},null,null,{"$f":"IFERROR(INDEX('PR Expenditure_7A import-export'!I$22:I$33,MATCH($B152,'PR Expenditure_7A import-export'!$N$22:$N$33,0)),\"\")","v":""},null,0,{"$error":"#VALUE!"}]
["Don't Show","Int50",{"$f":"IFERROR(INDEX('PR Expenditure_7A import-export'!A$22:A$33,MATCH($B153,'PR Expenditure_7A import-export'!$N$22:$N$33,0)),\"\")","v":""},{"$f":"IFERROR(INDEX('PR Expenditure_7A import-export'!B$22:B$33,MATCH($B153,'PR Expenditure_7A import-export'!$N$22:$N$33,0)),\"\")","v":""},{"$f":"IFERROR(INDEX('PR Expenditure_7A import-export'!C$22:C$33,MATCH($B153,'PR Expenditure_7A import-export'!$N$22:$N$33,0)),\"\")","v":""},null,0,{"$error":"#VALUE!"},null,null,{"$f":"IFERROR(INDEX('PR Expenditure_7A import-export'!I$22:I$33,MATCH($B153,'PR Expenditure_7A import-export'!$N$22:$N$33,0)),\"\")","v":""},null,0,{"$error":"#VALUE!"}]
["Don't Show","Int51",{"$f":"IFERROR(INDEX('PR Expenditure_7A import-export'!A$22:A$33,MATCH($B154,'PR Expenditure_7A import-export'!$N$22:$N$33,0)),\"\")","v":""},{"$f":"IFERROR(INDEX('PR Expenditure_7A import-export'!B$22:B$33,MATCH($B154,'PR Expenditure_7A import-export'!$N$22:$N$33,0)),\"\")","v":""},{"$f":"IFERROR(INDEX('PR Expenditure_7A import-export'!C$22:C$33,MATCH($B154,'PR Expenditure_7A import-export'!$N$22:$N$33,0)),\"\")","v":""},null,0,{"$error":"#VALUE!"},null,null,{"$f":"IFERROR(INDEX('PR Expenditure_7A import-export'!I$22:I$33,MATCH($B154,'PR Expenditure_7A import-export'!$N$22:$N$33,0)),\"\")","v":""},null,0,{"$error":"#VALUE!"}]
["Don't Show","Int52",{"$f":"IFERROR(INDEX('PR Expenditure_7A import-export'!A$22:A$33,MATCH($B155,'PR Expenditure_7A import-export'!$N$22:$N$33,0)),\"\")","v":""},{"$f":"IFERROR(INDEX('PR Expenditure_7A import-export'!B$22:B$33,MATCH($B155,'PR Expenditure_7A import-export'!$N$22:$N$33,0)),\"\")","v":""},{"$f":"IFERROR(INDEX('PR Expenditure_7A import-export'!C$22:C$33,MATCH($B155,'PR Expenditure_7A import-export'!$N$22:$N$33,0)),\"\")","v":""},null,0,{"$error":"#VALUE!"},null,null,{"$f":"IFERROR(INDEX('PR Expenditure_7A import-export'!I$22:I$33,MATCH($B155,'PR Expenditure_7A import-export'!$N$22:$N$33,0)),\"\")","v":""},null,0,{"$error":"#VALUE!"}]
["Don't Show","Int53",{"$f":"IFERROR(INDEX('PR Expenditure_7A import-export'!A$22:A$33,MATCH($B156,'PR Expenditure_7A import-export'!$N$22:$N$33,0)),\"\")","v":""},{"$f":"IFERROR(INDEX('PR Expenditure_7A import-export'!B$22:B$33,MATCH($B156,'PR Expenditure_7A import-export'!$N$22:$N$33,0)),\"\")","v":""},{"$f":"IFERROR(INDEX('PR Expenditure_7A import-export'!C$22:C$33,MATCH($B156,'PR Expenditure_7A import-export'!$N$22:$N$33,0)),\"\")","v":""},null,0,{"$error":"#VALUE!"},null,null,{"$f":"IFERROR(INDEX('PR Expenditure_7A import-export'!I$22:I$33,MATCH($B156,'PR Expenditure_7A import-export'!$N$22:$N$33,0)),\"\")","v":""},null,0,{"$error":"#VALUE!"}]
["Don't Show","Int54",{"$f":"IFERROR(INDEX('PR Expenditure_7A import-export'!A$22:A$33,MATCH($B157,'PR Expenditure_7A import-export'!$N$22:$N$33,0)),\"\")","v":""},{"$f":"IFERROR(INDEX('PR Expenditure_7A import-export'!B$22:B$33,MATCH($B157,'PR Expenditure_7A import-export'!$N$22:$N$33,0)),\"\")","v":""},{"$f":"IFERROR(INDEX('PR Expenditure_7A import-export'!C$22:C$33,MATCH($B157,'PR Expenditure_7A import-export'!$N$22:$N$33,0)),\"\")","v":""},null,0,{"$error":"#VALUE!"},null,null,{"$f":"IFERROR(INDEX('PR Expenditure_7A import-export'!I$22:I$33,MATCH($B157,'PR Expenditure_7A import-export'!$N$22:$N$33,0)),\"\")","v":""},null,0,{"$error":"#VALUE!"}]
["Don't Show","Int55",{"$f":"IFERROR(INDEX('PR Expenditure_7A import-export'!A$22:A$33,MATCH($B158,'PR Expenditure_7A import-export'!$N$22:$N$33,0)),\"\")","v":""},{"$f":"IFERROR(INDEX('PR Expenditure_7A import-export'!B$22:B$33,MATCH($B158,'PR Expenditure_7A import-export'!$N$22:$N$33,0)),\"\")","v":""},{"$f":"IFERROR(INDEX('PR Expenditure_7A import-export'!C$22:C$33,MATCH($B158,'PR Expenditure_7A import-export'!$N$22:$N$33,0)),\"\")","v":""},null,0,{"$error":"#VALUE!"},null,null,{"$f":"IFERROR(INDEX('PR Expenditure_7A import-export'!I$22:I$33,MATCH($B158,'PR Expenditure_7A import-export'!$N$22:$N$33,0)),\"\")","v":""},null,0,{"$error":"#VALUE!"}]
["Don't Show","Int56",{"$f":"IFERROR(INDEX('PR Expenditure_7A import-export'!A$22:A$33,MATCH($B159,'PR Expenditure_7A import-export'!$N$22:$N$33,0)),\"\")","v":""},{"$f":"IFERROR(INDEX('PR Expenditure_7A import-export'!B$22:B$33,MATCH($B159,'PR Expenditure_7A import-export'!$N$22:$N$33,0)),\"\")","v":""},{"$f":"IFERROR(INDEX('PR Expenditure_7A import-export'!C$22:C$33,MATCH($B159,'PR Expenditure_7A import-export'!$N$22:$N$33,0)),\"\")","v":""},null,0,{"$error":"#VALUE!"},null,null,{"$f":"IFERROR(INDEX('PR Expenditure_7A import-export'!I$22:I$33,MATCH($B159,'PR Expenditure_7A import-export'!$N$22:$N$33,0)),\"\")","v":""},null,0,{"$error":"#VALUE!"}]
["Don't Show","Int57",{"$f":"IFERROR(INDEX('PR Expenditure_7A import-export'!A$22:A$33,MATCH($B160,'PR Expenditure_7A import-export'!$N$22:$N$33,0)),\"\")","v":""},{"$f":"IFERROR(INDEX('PR Expenditure_7A import-export'!B$22:B$33,MATCH($B160,'PR Expenditure_7A import-export'!$N$22:$N$33,0)),\"\")","v":""},{"$f":"IFERROR(INDEX('PR Expenditure_7A import-export'!C$22:C$33,MATCH($B160,'PR Expenditure_7A import-export'!$N$22:$N$33,0)),\"\")","v":""},null,0,{"$error":"#VALUE!"},null,null,{"$f":"IFERROR(INDEX('PR Expenditure_7A import-export'!I$22:I$33,MATCH($B160,'PR Expenditure_7A import-export'!$N$22:$N$33,0)),\"\")","v":""},null,0,{"$error":"#VALUE!"}]
["Don't Show","Int58",{"$f":"IFERROR(INDEX('PR Expenditure_7A import-export'!A$22:A$33,MATCH($B161,'PR Expenditure_7A import-export'!$N$22:$N$33,0)),\"\")","v":""},{"$f":"IFERROR(INDEX('PR Expenditure_7A import-export'!B$22:B$33,MATCH($B161,'PR Expenditure_7A import-export'!$N$22:$N$33,0)),\"\")","v":""},{"$f":"IFERROR(INDEX('PR Expenditure_7A import-export'!C$22:C$33,MATCH($B161,'PR Expenditure_7A import-export'!$N$22:$N$33,0)),\"\")","v":""},null,0,{"$error":"#VALUE!"},null,null,{"$f":"IFERROR(INDEX('PR Expenditure_7A import-export'!I$22:I$33,MATCH($B161,'PR Expenditure_7A import-export'!$N$22:$N$33,0)),\"\")","v":""},null,0,{"$error":"#VALUE!"}]
["Don't Show","Int59",{"$f":"IFERROR(INDEX('PR Expenditure_7A import-export'!A$22:A$33,MATCH($B162,'PR Expenditure_7A import-export'!$N$22:$N$33,0)),\"\")","v":""},{"$f":"IFERROR(INDEX('PR Expenditure_7A import-export'!B$22:B$33,MATCH($B162,'PR Expenditure_7A import-export'!$N$22:$N$33,0)),\"\")","v":""},{"$f":"IFERROR(INDEX('PR Expenditure_7A import-export'!C$22:C$33,MATCH($B162,'PR Expenditure_7A import-export'!$N$22:$N$33,0)),\"\")","v":""},null,0,{"$error":"#VALUE!"},null,null,{"$f":"IFERROR(INDEX('PR Expenditure_7A import-export'!I$22:I$33,MATCH($B162,'PR Expenditure_7A import-export'!$N$22:$N$33,0)),\"\")","v":""},null,0,{"$error":"#VALUE!"}]
["Don't Show","Int60",{"$f":"IFERROR(INDEX('PR Expenditure_7A import-export'!A$22:A$33,MATCH($B163,'PR Expenditure_7A import-export'!$N$22:$N$33,0)),\"\")","v":""},{"$f":"IFERROR(INDEX('PR Expenditure_7A import-export'!B$22:B$33,MATCH($B163,'PR Expenditure_7A import-export'!$N$22:$N$33,0)),\"\")","v":""},{"$f":"IFERROR(INDEX('PR Expenditure_7A import-export'!C$22:C$33,MATCH($B163,'PR Expenditure_7A import-export'!$N$22:$N$33,0)),\"\")","v":""},null,0,{"$error":"#VALUE!"},null,null,{"$f":"IFERROR(INDEX('PR Expenditure_7A import-export'!I$22:I$33,MATCH($B163,'PR Expenditure_7A import-export'!$N$22:$N$33,0)),\"\")","v":""},null,0,{"$error":"#VALUE!"}]
["Don't Show","Int61",{"$f":"IFERROR(INDEX('PR Expenditure_7A import-export'!A$22:A$33,MATCH($B164,'PR Expenditure_7A import-export'!$N$22:$N$33,0)),\"\")","v":""},{"$f":"IFERROR(INDEX('PR Expenditure_7A import-export'!B$22:B$33,MATCH($B164,'PR Expenditure_7A import-export'!$N$22:$N$33,0)),\"\")","v":""},{"$f":"IFERROR(INDEX('PR Expenditure_7A import-export'!C$22:C$33,MATCH($B164,'PR Expenditure_7A import-export'!$N$22:$N$33,0)),\"\")","v":""},null,0,{"$error":"#VALUE!"},null,null,{"$f":"IFERROR(INDEX('PR Expenditure_7A import-export'!I$22:I$33,MATCH($B164,'PR Expenditure_7A import-export'!$N$22:$N$33,0)),\"\")","v":""},null,0,{"$error":"#VALUE!"}]
["Don't Show","Int62",{"$f":"IFERROR(INDEX('PR Expenditure_7A import-export'!A$22:A$33,MATCH($B165,'PR Expenditure_7A import-export'!$N$22:$N$33,0)),\"\")","v":""},{"$f":"IFERROR(INDEX('PR Expenditure_7A import-export'!B$22:B$33,MATCH($B165,'PR Expenditure_7A import-export'!$N$22:$N$33,0)),\"\")","v":""},{"$f":"IFERROR(INDEX('PR Expenditure_7A import-export'!C$22:C$33,MATCH($B165,'PR Expenditure_7A import-export'!$N$22:$N$33,0)),\"\")","v":""},null,0,{"$error":"#VALUE!"},null,null,{"$f":"IFERROR(INDEX('PR Expenditure_7A import-export'!I$22:I$33,MATCH($B165,'PR Expenditure_7A import-export'!$N$22:$N$33,0)),\"\")","v":""},null,0,{"$error":"#VALUE!"}]
["Don't Show","Int63",{"$f":"IFERROR(INDEX('PR Expenditure_7A import-export'!A$22:A$33,MATCH($B166,'PR Expenditure_7A import-export'!$N$22:$N$33,0)),\"\")","v":""},{"$f":"IFERROR(INDEX('PR Expenditure_7A import-export'!B$22:B$33,MATCH($B166,'PR Expenditure_7A import-export'!$N$22:$N$33,0)),\"\")","v":""},{"$f":"IFERROR(INDEX('PR Expenditure_7A import-export'!C$22:C$33,MATCH($B166,'PR Expenditure_7A import-export'!$N$22:$N$33,0)),\"\")","v":""},null,0,{"$error":"#VALUE!"},null,null,{"$f":"IFERROR(INDEX('PR Expenditure_7A import-export'!I$22:I$33,MATCH($B166,'PR Expenditure_7A import-export'!$N$22:$N$33,0)),\"\")","v":""},null,0,{"$error":"#VALUE!"}]
["Don't Show","Int64",{"$f":"IFERROR(INDEX('PR Expenditure_7A import-export'!A$22:A$33,MATCH($B167,'PR Expenditure_7A import-export'!$N$22:$N$33,0)),\"\")","v":""},{"$f":"IFERROR(INDEX('PR Expenditure_7A import-export'!B$22:B$33,MATCH($B167,'PR Expenditure_7A import-export'!$N$22:$N$33,0)),\"\")","v":""},{"$f":"IFERROR(INDEX('PR Expenditure_7A import-export'!C$22:C$33,MATCH($B167,'PR Expenditure_7A import-export'!$N$22:$N$33,0)),\"\")","v":""},null,0,{"$error":"#VALUE!"},null,null,{"$f":"IFERROR(INDEX('PR Expenditure_7A import-export'!I$22:I$33,MATCH($B167,'PR Expenditure_7A import-export'!$N$22:$N$33,0)),\"\")","v":""},null,0,{"$error":"#VALUE!"}]
["Don't Show","Int65",{"$f":"IFERROR(INDEX('PR Expenditure_7A import-export'!A$22:A$33,MATCH($B168,'PR Expenditure_7A import-export'!$N$22:$N$33,0)),\"\")","v":""},{"$f":"IFERROR(INDEX('PR Expenditure_7A import-export'!B$22:B$33,MATCH($B168,'PR Expenditure_7A import-export'!$N$22:$N$33,0)),\"\")","v":""},{"$f":"IFERROR(INDEX('PR Expenditure_7A import-export'!C$22:C$33,MATCH($B168,'PR Expenditure_7A import-export'!$N$22:$N$33,0)),\"\")","v":""},null,0,{"$error":"#VALUE!"},null,null,{"$f":"IFERROR(INDEX('PR Expenditure_7A import-export'!I$22:I$33,MATCH($B168,'PR Expenditure_7A import-export'!$N$22:$N$33,0)),\"\")","v":""},null,0,{"$error":"#VALUE!"}]
["Don't Show","Int66",{"$f":"IFERROR(INDEX('PR Expenditure_7A import-export'!A$22:A$33,MATCH($B169,'PR Expenditure_7A import-export'!$N$22:$N$33,0)),\"\")","v":""},{"$f":"IFERROR(INDEX('PR Expenditure_7A import-export'!B$22:B$33,MATCH($B169,'PR Expenditure_7A import-export'!$N$22:$N$33,0)),\"\")","v":""},{"$f":"IFERROR(INDEX('PR Expenditure_7A import-export'!C$22:C$33,MATCH($B169,'PR Expenditure_7A import-export'!$N$22:$N$33,0)),\"\")","v":""},null,0,{"$error":"#VALUE!"},null,null,{"$f":"IFERROR(INDEX('PR Expenditure_7A import-export'!I$22:I$33,MATCH($B169,'PR Expenditure_7A import-export'!$N$22:$N$33,0)),\"\")","v":""},null,0,{"$error":"#VALUE!"}]
["Don't Show","Int67",{"$f":"IFERROR(INDEX('PR Expenditure_7A import-export'!A$22:A$33,MATCH($B170,'PR Expenditure_7A import-export'!$N$22:$N$33,0)),\"\")","v":""},{"$f":"IFERROR(INDEX('PR Expenditure_7A import-export'!B$22:B$33,MATCH($B170,'PR Expenditure_7A import-export'!$N$22:$N$33,0)),\"\")","v":""},{"$f":"IFERROR(INDEX('PR Expenditure_7A import-export'!C$22:C$33,MATCH($B170,'PR Expenditure_7A import-export'!$N$22:$N$33,0)),\"\")","v":""},null,0,{"$error":"#VALUE!"},null,null,{"$f":"IFERROR(INDEX('PR Expenditure_7A import-export'!I$22:I$33,MATCH($B170,'PR Expenditure_7A import-export'!$N$22:$N$33,0)),\"\")","v":""},null,0,{"$error":"#VALUE!"}]
["Don't Show","Int68",{"$f":"IFERROR(INDEX('PR Expenditure_7A import-export'!A$22:A$33,MATCH($B171,'PR Expenditure_7A import-export'!$N$22:$N$33,0)),\"\")","v":""},{"$f":"IFERROR(INDEX('PR Expenditure_7A import-export'!B$22:B$33,MATCH($B171,'PR Expenditure_7A import-export'!$N$22:$N$33,0)),\"\")","v":""},{"$f":"IFERROR(INDEX('PR Expenditure_7A import-export'!C$22:C$33,MATCH($B171,'PR Expenditure_7A import-export'!$N$22:$N$33,0)),\"\")","v":""},null,0,{"$error":"#VALUE!"},null,null,{"$f":"IFERROR(INDEX('PR Expenditure_7A import-export'!I$22:I$33,MATCH($B171,'PR Expenditure_7A import-export'!$N$22:$N$33,0)),\"\")","v":""},null,0,{"$error":"#VALUE!"}]
["Don't Show","Int69",{"$f":"IFERROR(INDEX('PR Expenditure_7A import-export'!A$22:A$33,MATCH($B172,'PR Expenditure_7A import-export'!$N$22:$N$33,0)),\"\")","v":""},{"$f":"IFERROR(INDEX('PR Expenditure_7A import-export'!B$22:B$33,MATCH($B172,'PR Expenditure_7A import-export'!$N$22:$N$33,0)),\"\")","v":""},{"$f":"IFERROR(INDEX('PR Expenditure_7A import-export'!C$22:C$33,MATCH($B172,'PR Expenditure_7A import-export'!$N$22:$N$33,0)),\"\")","v":""},null,0,{"$error":"#VALUE!"},null,null,{"$f":"IFERROR(INDEX('PR Expenditure_7A import-export'!I$22:I$33,MATCH($B172,'PR Expenditure_7A import-export'!$N$22:$N$33,0)),\"\")","v":""},null,0,{"$error":"#VALUE!"}]
["Don't Show","Int70",{"$f":"IFERROR(INDEX('PR Expenditure_7A import-export'!A$22:A$33,MATCH($B173,'PR Expenditure_7A import-export'!$N$22:$N$33,0)),\"\")","v":""},{"$f":"IFERROR(INDEX('PR Expenditure_7A import-export'!B$22:B$33,MATCH($B173,'PR Expenditure_7A import-export'!$N$22:$N$33,0)),\"\")","v":""},{"$f":"IFERROR(INDEX('PR Expenditure_7A import-export'!C$22:C$33,MATCH($B173,'PR Expenditure_7A import-export'!$N$22:$N$33,0)),\"\")","v":""},null,0,{"$error":"#VALUE!"},null,null,{"$f":"IFERROR(INDEX('PR Expenditure_7A import-export'!I$22:I$33,MATCH($B173,'PR Expenditure_7A import-export'!$N$22:$N$33,0)),\"\")","v":""},null,0,{"$error":"#VALUE!"}]
["Don't Show","Int71",{"$f":"IFERROR(INDEX('PR Expenditure_7A import-export'!A$22:A$33,MATCH($B174,'PR Expenditure_7A import-export'!$N$22:$N$33,0)),\"\")","v":""},{"$f":"IFERROR(INDEX('PR Expenditure_7A import-export'!B$22:B$33,MATCH($B174,'PR Expenditure_7A import-export'!$N$22:$N$33,0)),\"\")","v":""},{"$f":"IFERROR(INDEX('PR Expenditure_7A import-export'!C$22:C$33,MATCH($B174,'PR Expenditure_7A import-export'!$N$22:$N$33,0)),\"\")","v":""},null,0,{"$error":"#VALUE!"},null,null,{"$f":"IFERROR(INDEX('PR Expenditure_7A import-export'!I$22:I$33,MATCH($B174,'PR Expenditure_7A import-export'!$N$22:$N$33,0)),\"\")","v":""},null,0,{"$error":"#VALUE!"}]
["Don't Show","Int72",{"$f":"IFERROR(INDEX('PR Expenditure_7A import-export'!A$22:A$33,MATCH($B175,'PR Expenditure_7A import-export'!$N$22:$N$33,0)),\"\")","v":""},{"$f":"IFERROR(INDEX('PR Expenditure_7A import-export'!B$22:B$33,MATCH($B175,'PR Expenditure_7A import-export'!$N$22:$N$33,0)),\"\")","v":""},{"$f":"IFERROR(INDEX('PR Expenditure_7A import-export'!C$22:C$33,MATCH($B175,'PR Expenditure_7A import-export'!$N$22:$N$33,0)),\"\")","v":""},null,{"$f":"IFERROR(E175-F175,0)","v":0},{"$f":"IF(AND(E175=0,F175=0),\"N/A\",IF(AND(E175=0,F175<>0),\"Not Budgeted\",F175/E175))","v":{"$error":"#VALUE!"}},null,null,{"$f":"IFERROR(INDEX('PR Expenditure_7A import-export'!I$22:I$33,MATCH($B175,'PR Expenditure_7A import-export'!$N$22:$N$33,0)),\"\")","v":""},null,{"$f":"IFERROR(K175-L175,0)","v":0},{"$f":"IF(AND(K175=0,L175=0),\"N/A\",IF(AND(K175=0,L175<>0),\"Not Budgeted\",L175/K175))","v":{"$error":"#VALUE!"}}]
["Don't Show","Int73",{"$f":"IFERROR(INDEX('PR Expenditure_7A import-export'!A$22:A$33,MATCH($B176,'PR Expenditure_7A import-export'!$N$22:$N$33,0)),\"\")","v":""},{"$f":"IFERROR(INDEX('PR Expenditure_7A import-export'!B$22:B$33,MATCH($B176,'PR Expenditure_7A import-export'!$N$22:$N$33,0)),\"\")","v":""},{"$f":"IFERROR(INDEX('PR Expenditure_7A import-export'!C$22:C$33,MATCH($B176,'PR Expenditure_7A import-export'!$N$22:$N$33,0)),\"\")","v":""},null,0,{"$error":"#VALUE!"},null,null,{"$f":"IFERROR(INDEX('PR Expenditure_7A import-export'!I$22:I$33,MATCH($B176,'PR Expenditure_7A import-export'!$N$22:$N$33,0)),\"\")","v":""},null,0,{"$error":"#VALUE!"}]
["Don't Show","Int74",{"$f":"IFERROR(INDEX('PR Expenditure_7A import-export'!A$22:A$33,MATCH($B177,'PR Expenditure_7A import-export'!$N$22:$N$33,0)),\"\")","v":""},{"$f":"IFERROR(INDEX('PR Expenditure_7A import-export'!B$22:B$33,MATCH($B177,'PR Expenditure_7A import-export'!$N$22:$N$33,0)),\"\")","v":""},{"$f":"IFERROR(INDEX('PR Expenditure_7A import-export'!C$22:C$33,MATCH($B177,'PR Expenditure_7A import-export'!$N$22:$N$33,0)),\"\")","v":""},null,0,{"$error":"#VALUE!"},null,null,{"$f":"IFERROR(INDEX('PR Expenditure_7A import-export'!I$22:I$33,MATCH($B177,'PR Expenditure_7A import-export'!$N$22:$N$33,0)),\"\")","v":""},null,0,{"$error":"#VALUE!"}]
["Don't Show","Int75",{"$f":"IFERROR(INDEX('PR Expenditure_7A import-export'!A$22:A$33,MATCH($B178,'PR Expenditure_7A import-export'!$N$22:$N$33,0)),\"\")","v":""},{"$f":"IFERROR(INDEX('PR Expenditure_7A import-export'!B$22:B$33,MATCH($B178,'PR Expenditure_7A import-export'!$N$22:$N$33,0)),\"\")","v":""},{"$f":"IFERROR(INDEX('PR Expenditure_7A import-export'!C$22:C$33,MATCH($B178,'PR Expenditure_7A import-export'!$N$22:$N$33,0)),\"\")","v":""},null,0,{"$error":"#VALUE!"},null,null,{"$f":"IFERROR(INDEX('PR Expenditure_7A import-export'!I$22:I$33,MATCH($B178,'PR Expenditure_7A import-export'!$N$22:$N$33,0)),\"\")","v":""},null,0,{"$error":"#VALUE!"}]
["Don't Show","Int76",{"$f":"IFERROR(INDEX('PR Expenditure_7A import-export'!A$22:A$33,MATCH($B179,'PR Expenditure_7A import-export'!$N$22:$N$33,0)),\"\")","v":""},{"$f":"IFERROR(INDEX('PR Expenditure_7A import-export'!B$22:B$33,MATCH($B179,'PR Expenditure_7A import-export'!$N$22:$N$33,0)),\"\")","v":""},{"$f":"IFERROR(INDEX('PR Expenditure_7A import-export'!C$22:C$33,MATCH($B179,'PR Expenditure_7A import-export'!$N$22:$N$33,0)),\"\")","v":""},null,0,{"$error":"#VALUE!"},null,null,{"$f":"IFERROR(INDEX('PR Expenditure_7A import-export'!I$22:I$33,MATCH($B179,'PR Expenditure_7A import-export'!$N$22:$N$33,0)),\"\")","v":""},null,0,{"$error":"#VALUE!"}]
["Don't Show","Int77",{"$f":"IFERROR(INDEX('PR Expenditure_7A import-export'!A$22:A$33,MATCH($B180,'PR Expenditure_7A import-export'!$N$22:$N$33,0)),\"\")","v":""},{"$f":"IFERROR(INDEX('PR Expenditure_7A import-export'!B$22:B$33,MATCH($B180,'PR Expenditure_7A import-export'!$N$22:$N$33,0)),\"\")","v":""},{"$f":"IFERROR(INDEX('PR Expenditure_7A import-export'!C$22:C$33,MATCH($B180,'PR Expenditure_7A import-export'!$N$22:$N$33,0)),\"\")","v":""},null,0,{"$error":"#VALUE!"},null,null,{"$f":"IFERROR(INDEX('PR Expenditure_7A import-export'!I$22:I$33,MATCH($B180,'PR Expenditure_7A import-export'!$N$22:$N$33,0)),\"\")","v":""},null,0,{"$error":"#VALUE!"}]
["Don't Show","Int78",{"$f":"IFERROR(INDEX('PR Expenditure_7A import-export'!A$22:A$33,MATCH($B181,'PR Expenditure_7A import-export'!$N$22:$N$33,0)),\"\")","v":""},{"$f":"IFERROR(INDEX('PR Expenditure_7A import-export'!B$22:B$33,MATCH($B181,'PR Expenditure_7A import-export'!$N$22:$N$33,0)),\"\")","v":""},{"$f":"IFERROR(INDEX('PR Expenditure_7A import-export'!C$22:C$33,MATCH($B181,'PR Expenditure_7A import-export'!$N$22:$N$33,0)),\"\")","v":""},null,0,{"$error":"#VALUE!"},null,null,{"$f":"IFERROR(INDEX('PR Expenditure_7A import-export'!I$22:I$33,MATCH($B181,'PR Expenditure_7A import-export'!$N$22:$N$33,0)),\"\")","v":""},null,0,{"$error":"#VALUE!"}]
["Don't Show","Int79",{"$f":"IFERROR(INDEX('PR Expenditure_7A import-export'!A$22:A$33,MATCH($B182,'PR Expenditure_7A import-export'!$N$22:$N$33,0)),\"\")","v":""},{"$f":"IFERROR(INDEX('PR Expenditure_7A import-export'!B$22:B$33,MATCH($B182,'PR Expenditure_7A import-export'!$N$22:$N$33,0)),\"\")","v":""},{"$f":"IFERROR(INDEX('PR Expenditure_7A import-export'!C$22:C$33,MATCH($B182,'PR Expenditure_7A import-export'!$N$22:$N$33,0)),\"\")","v":""},null,0,{"$error":"#VALUE!"},null,null,{"$f":"IFERROR(INDEX('PR Expenditure_7A import-export'!I$22:I$33,MATCH($B182,'PR Expenditure_7A import-export'!$N$22:$N$33,0)),\"\")","v":""},null,0,{"$error":"#VALUE!"}]
["Don't Show","Int80",{"$f":"IFERROR(INDEX('PR Expenditure_7A import-export'!A$22:A$33,MATCH($B183,'PR Expenditure_7A import-export'!$N$22:$N$33,0)),\"\")","v":""},{"$f":"IFERROR(INDEX('PR Expenditure_7A import-export'!B$22:B$33,MATCH($B183,'PR Expenditure_7A import-export'!$N$22:$N$33,0)),\"\")","v":""},{"$f":"IFERROR(INDEX('PR Expenditure_7A import-export'!C$22:C$33,MATCH($B183,'PR Expenditure_7A import-export'!$N$22:$N$33,0)),\"\")","v":""},null,0,{"$error":"#VALUE!"},null,null,{"$f":"IFERROR(INDEX('PR Expenditure_7A import-export'!I$22:I$33,MATCH($B183,'PR Expenditure_7A import-export'!$N$22:$N$33,0)),\"\")","v":""},null,0,{"$error":"#VALUE!"}]
["Don't Show","Int81",{"$f":"IFERROR(INDEX('PR Expenditure_7A import-export'!A$22:A$33,MATCH($B184,'PR Expenditure_7A import-export'!$N$22:$N$33,0)),\"\")","v":""},{"$f":"IFERROR(INDEX('PR Expenditure_7A import-export'!B$22:B$33,MATCH($B184,'PR Expenditure_7A import-export'!$N$22:$N$33,0)),\"\")","v":""},{"$f":"IFERROR(INDEX('PR Expenditure_7A import-export'!C$22:C$33,MATCH($B184,'PR Expenditure_7A import-export'!$N$22:$N$33,0)),\"\")","v":""},null,0,{"$error":"#VALUE!"},null,null,{"$f":"IFERROR(INDEX('PR Expenditure_7A import-export'!I$22:I$33,MATCH($B184,'PR Expenditure_7A import-export'!$N$22:$N$33,0)),\"\")","v":""},null,0,{"$error":"#VALUE!"}]
["Don't Show","Int82",{"$f":"IFERROR(INDEX('PR Expenditure_7A import-export'!A$22:A$33,MATCH($B185,'PR Expenditure_7A import-export'!$N$22:$N$33,0)),\"\")","v":""},{"$f":"IFERROR(INDEX('PR Expenditure_7A import-export'!B$22:B$33,MATCH($B185,'PR Expenditure_7A import-export'!$N$22:$N$33,0)),\"\")","v":""},{"$f":"IFERROR(INDEX('PR Expenditure_7A import-export'!C$22:C$33,MATCH($B185,'PR Expenditure_7A import-export'!$N$22:$N$33,0)),\"\")","v":""},null,0,{"$error":"#VALUE!"},null,null,{"$f":"IFERROR(INDEX('PR Expenditure_7A import-export'!I$22:I$33,MATCH($B185,'PR Expenditure_7A import-export'!$N$22:$N$33,0)),\"\")","v":""},null,0,{"$error":"#VALUE!"}]
["Don't Show","Int83",{"$f":"IFERROR(INDEX('PR Expenditure_7A import-export'!A$22:A$33,MATCH($B186,'PR Expenditure_7A import-export'!$N$22:$N$33,0)),\"\")","v":""},{"$f":"IFERROR(INDEX('PR Expenditure_7A import-export'!B$22:B$33,MATCH($B186,'PR Expenditure_7A import-export'!$N$22:$N$33,0)),\"\")","v":""},{"$f":"IFERROR(INDEX('PR Expenditure_7A import-export'!C$22:C$33,MATCH($B186,'PR Expenditure_7A import-export'!$N$22:$N$33,0)),\"\")","v":""},null,0,{"$error":"#VALUE!"},null,null,{"$f":"IFERROR(INDEX('PR Expenditure_7A import-export'!I$22:I$33,MATCH($B186,'PR Expenditure_7A import-export'!$N$22:$N$33,0)),\"\")","v":""},null,0,{"$error":"#VALUE!"}]
["Don't Show","Int84",{"$f":"IFERROR(INDEX('PR Expenditure_7A import-export'!A$22:A$33,MATCH($B187,'PR Expenditure_7A import-export'!$N$22:$N$33,0)),\"\")","v":""},{"$f":"IFERROR(INDEX('PR Expenditure_7A import-export'!B$22:B$33,MATCH($B187,'PR Expenditure_7A import-export'!$N$22:$N$33,0)),\"\")","v":""},{"$f":"IFERROR(INDEX('PR Expenditure_7A import-export'!C$22:C$33,MATCH($B187,'PR Expenditure_7A import-export'!$N$22:$N$33,0)),\"\")","v":""},null,0,{"$error":"#VALUE!"},null,null,{"$f":"IFERROR(INDEX('PR Expenditure_7A import-export'!I$22:I$33,MATCH($B187,'PR Expenditure_7A import-export'!$N$22:$N$33,0)),\"\")","v":""},null,0,{"$error":"#VALUE!"}]
["Don't Show","Int85",{"$f":"IFERROR(INDEX('PR Expenditure_7A import-export'!A$22:A$33,MATCH($B188,'PR Expenditure_7A import-export'!$N$22:$N$33,0)),\"\")","v":""},{"$f":"IFERROR(INDEX('PR Expenditure_7A import-export'!B$22:B$33,MATCH($B188,'PR Expenditure_7A import-export'!$N$22:$N$33,0)),\"\")","v":""},{"$f":"IFERROR(INDEX('PR Expenditure_7A import-export'!C$22:C$33,MATCH($B188,'PR Expenditure_7A import-export'!$N$22:$N$33,0)),\"\")","v":""},null,0,{"$error":"#VALUE!"},null,null,{"$f":"IFERROR(INDEX('PR Expenditure_7A import-export'!I$22:I$33,MATCH($B188,'PR Expenditure_7A import-export'!$N$22:$N$33,0)),\"\")","v":""},null,0,{"$error":"#VALUE!"}]
["Don't Show","Int86",{"$f":"IFERROR(INDEX('PR Expenditure_7A import-export'!A$22:A$33,MATCH($B189,'PR Expenditure_7A import-export'!$N$22:$N$33,0)),\"\")","v":""},{"$f":"IFERROR(INDEX('PR Expenditure_7A import-export'!B$22:B$33,MATCH($B189,'PR Expenditure_7A import-export'!$N$22:$N$33,0)),\"\")","v":""},{"$f":"IFERROR(INDEX('PR Expenditure_7A import-export'!C$22:C$33,MATCH($B189,'PR Expenditure_7A import-export'!$N$22:$N$33,0)),\"\")","v":""},null,0,{"$error":"#VALUE!"},null,null,{"$f":"IFERROR(INDEX('PR Expenditure_7A import-export'!I$22:I$33,MATCH($B189,'PR Expenditure_7A import-export'!$N$22:$N$33,0)),\"\")","v":""},null,0,{"$error":"#VALUE!"}]
["Don't Show","Int87",{"$f":"IFERROR(INDEX('PR Expenditure_7A import-export'!A$22:A$33,MATCH($B190,'PR Expenditure_7A import-export'!$N$22:$N$33,0)),\"\")","v":""},{"$f":"IFERROR(INDEX('PR Expenditure_7A import-export'!B$22:B$33,MATCH($B190,'PR Expenditure_7A import-export'!$N$22:$N$33,0)),\"\")","v":""},{"$f":"IFERROR(INDEX('PR Expenditure_7A import-export'!C$22:C$33,MATCH($B190,'PR Expenditure_7A import-export'!$N$22:$N$33,0)),\"\")","v":""},null,0,{"$error":"#VALUE!"},null,null,{"$f":"IFERROR(INDEX('PR Expenditure_7A import-export'!I$22:I$33,MATCH($B190,'PR Expenditure_7A import-export'!$N$22:$N$33,0)),\"\")","v":""},null,0,{"$error":"#VALUE!"}]
["Don't Show","Int88",{"$f":"IFERROR(INDEX('PR Expenditure_7A import-export'!A$22:A$33,MATCH($B191,'PR Expenditure_7A import-export'!$N$22:$N$33,0)),\"\")","v":""},{"$f":"IFERROR(INDEX('PR Expenditure_7A import-export'!B$22:B$33,MATCH($B191,'PR Expenditure_7A import-export'!$N$22:$N$33,0)),\"\")","v":""},{"$f":"IFERROR(INDEX('PR Expenditure_7A import-export'!C$22:C$33,MATCH($B191,'PR Expenditure_7A import-export'!$N$22:$N$33,0)),\"\")","v":""},null,0,{"$error":"#VALUE!"},null,null,{"$f":"IFERROR(INDEX('PR Expenditure_7A import-export'!I$22:I$33,MATCH($B191,'PR Expenditure_7A import-export'!$N$22:$N$33,0)),\"\")","v":""},null,0,{"$error":"#VALUE!"}]
["Don't Show","Int89",{"$f":"IFERROR(INDEX('PR Expenditure_7A import-export'!A$22:A$33,MATCH($B192,'PR Expenditure_7A import-export'!$N$22:$N$33,0)),\"\")","v":""},{"$f":"IFERROR(INDEX('PR Expenditure_7A import-export'!B$22:B$33,MATCH($B192,'PR Expenditure_7A import-export'!$N$22:$N$33,0)),\"\")","v":""},{"$f":"IFERROR(INDEX('PR Expenditure_7A import-export'!C$22:C$33,MATCH($B192,'PR Expenditure_7A import-export'!$N$22:$N$33,0)),\"\")","v":""},null,0,{"$error":"#VALUE!"},null,null,{"$f":"IFERROR(INDEX('PR Expenditure_7A import-export'!I$22:I$33,MATCH($B192,'PR Expenditure_7A import-export'!$N$22:$N$33,0)),\"\")","v":""},null,0,{"$error":"#VALUE!"}]
["Don't Show","Int90",{"$f":"IFERROR(INDEX('PR Expenditure_7A import-export'!A$22:A$33,MATCH($B193,'PR Expenditure_7A import-export'!$N$22:$N$33,0)),\"\")","v":""},{"$f":"IFERROR(INDEX('PR Expenditure_7A import-export'!B$22:B$33,MATCH($B193,'PR Expenditure_7A import-export'!$N$22:$N$33,0)),\"\")","v":""},{"$f":"IFERROR(INDEX('PR Expenditure_7A import-export'!C$22:C$33,MATCH($B193,'PR Expenditure_7A import-export'!$N$22:$N$33,0)),\"\")","v":""},null,0,{"$error":"#VALUE!"},null,null,{"$f":"IFERROR(INDEX('PR Expenditure_7A import-export'!I$22:I$33,MATCH($B193,'PR Expenditure_7A import-export'!$N$22:$N$33,0)),\"\")","v":""},null,0,{"$error":"#VALUE!"}]
["Don't Show","Int91",{"$f":"IFERROR(INDEX('PR Expenditure_7A import-export'!A$22:A$33,MATCH($B194,'PR Expenditure_7A import-export'!$N$22:$N$33,0)),\"\")","v":""},{"$f":"IFERROR(INDEX('PR Expenditure_7A import-export'!B$22:B$33,MATCH($B194,'PR Expenditure_7A import-export'!$N$22:$N$33,0)),\"\")","v":""},{"$f":"IFERROR(INDEX('PR Expenditure_7A import-export'!C$22:C$33,MATCH($B194,'PR Expenditure_7A import-export'!$N$22:$N$33,0)),\"\")","v":""},null,0,{"$error":"#VALUE!"},null,null,{"$f":"IFERROR(INDEX('PR Expenditure_7A import-export'!I$22:I$33,MATCH($B194,'PR Expenditure_7A import-export'!$N$22:$N$33,0)),\"\")","v":""},null,0,{"$error":"#VALUE!"}]
["Don't Show","Int92",{"$f":"IFERROR(INDEX('PR Expenditure_7A import-export'!A$22:A$33,MATCH($B195,'PR Expenditure_7A import-export'!$N$22:$N$33,0)),\"\")","v":""},{"$f":"IFERROR(INDEX('PR Expenditure_7A import-export'!B$22:B$33,MATCH($B195,'PR Expenditure_7A import-export'!$N$22:$N$33,0)),\"\")","v":""},{"$f":"IFERROR(INDEX('PR Expenditure_7A import-export'!C$22:C$33,MATCH($B195,'PR Expenditure_7A import-export'!$N$22:$N$33,0)),\"\")","v":""},null,0,{"$error":"#VALUE!"},null,null,{"$f":"IFERROR(INDEX('PR Expenditure_7A import-export'!I$22:I$33,MATCH($B195,'PR Expenditure_7A import-export'!$N$22:$N$33,0)),\"\")","v":""},null,0,{"$error":"#VALUE!"}]
["Don't Show","Int93",{"$f":"IFERROR(INDEX('PR Expenditure_7A import-export'!A$22:A$33,MATCH($B196,'PR Expenditure_7A import-export'!$N$22:$N$33,0)),\"\")","v":""},{"$f":"IFERROR(INDEX('PR Expenditure_7A import-export'!B$22:B$33,MATCH($B196,'PR Expenditure_7A import-export'!$N$22:$N$33,0)),\"\")","v":""},{"$f":"IFERROR(INDEX('PR Expenditure_7A import-export'!C$22:C$33,MATCH($B196,'PR Expenditure_7A import-export'!$N$22:$N$33,0)),\"\")","v":""},null,0,{"$error":"#VALUE!"},null,null,{"$f":"IFERROR(INDEX('PR Expenditure_7A import-export'!I$22:I$33,MATCH($B196,'PR Expenditure_7A import-export'!$N$22:$N$33,0)),\"\")","v":""},null,0,{"$error":"#VALUE!"}]
["Don't Show","Int94",{"$f":"IFERROR(INDEX('PR Expenditure_7A import-export'!A$22:A$33,MATCH($B197,'PR Expenditure_7A import-export'!$N$22:$N$33,0)),\"\")","v":""},{"$f":"IFERROR(INDEX('PR Expenditure_7A import-export'!B$22:B$33,MATCH($B197,'PR Expenditure_7A import-export'!$N$22:$N$33,0)),\"\")","v":""},{"$f":"IFERROR(INDEX('PR Expenditure_7A import-export'!C$22:C$33,MATCH($B197,'PR Expenditure_7A import-export'!$N$22:$N$33,0)),\"\")","v":""},null,0,{"$error":"#VALUE!"},null,null,{"$f":"IFERROR(INDEX('PR Expenditure_7A import-export'!I$22:I$33,MATCH($B197,'PR Expenditure_7A import-export'!$N$22:$N$33,0)),\"\")","v":""},null,0,{"$error":"#VALUE!"}]
["Don't Show","Int95",{"$f":"IFERROR(INDEX('PR Expenditure_7A import-export'!A$22:A$33,MATCH($B198,'PR Expenditure_7A import-export'!$N$22:$N$33,0)),\"\")","v":""},{"$f":"IFERROR(INDEX('PR Expenditure_7A import-export'!B$22:B$33,MATCH($B198,'PR Expenditure_7A import-export'!$N$22:$N$33,0)),\"\")","v":""},{"$f":"IFERROR(INDEX('PR Expenditure_7A import-export'!C$22:C$33,MATCH($B198,'PR Expenditure_7A import-export'!$N$22:$N$33,0)),\"\")","v":""},null,0,{"$error":"#VALUE!"},null,null,{"$f":"IFERROR(INDEX('PR Expenditure_7A import-export'!I$22:I$33,MATCH($B198,'PR Expenditure_7A import-export'!$N$22:$N$33,0)),\"\")","v":""},null,0,{"$error":"#VALUE!"}]
["Don't Show","Int96",{"$f":"IFERROR(INDEX('PR Expenditure_7A import-export'!A$22:A$33,MATCH($B199,'PR Expenditure_7A import-export'!$N$22:$N$33,0)),\"\")","v":""},{"$f":"IFERROR(INDEX('PR Expenditure_7A import-export'!B$22:B$33,MATCH($B199,'PR Expenditure_7A import-export'!$N$22:$N$33,0)),\"\")","v":""},{"$f":"IFERROR(INDEX('PR Expenditure_7A import-export'!C$22:C$33,MATCH($B199,'PR Expenditure_7A import-export'!$N$22:$N$33,0)),\"\")","v":""},null,0,{"$error":"#VALUE!"},null,null,{"$f":"IFERROR(INDEX('PR Expenditure_7A import-export'!I$22:I$33,MATCH($B199,'PR Expenditure_7A import-export'!$N$22:$N$33,0)),\"\")","v":""},null,0,{"$error":"#VALUE!"}]
["Don't Show","Int97",{"$f":"IFERROR(INDEX('PR Expenditure_7A import-export'!A$22:A$33,MATCH($B200,'PR Expenditure_7A import-export'!$N$22:$N$33,0)),\"\")","v":""},{"$f":"IFERROR(INDEX('PR Expenditure_7A import-export'!B$22:B$33,MATCH($B200,'PR Expenditure_7A import-export'!$N$22:$N$33,0)),\"\")","v":""},{"$f":"IFERROR(INDEX('PR Expenditure_7A import-export'!C$22:C$33,MATCH($B200,'PR Expenditure_7A import-export'!$N$22:$N$33,0)),\"\")","v":""},null,0,{"$error":"#VALUE!"},null,null,{"$f":"IFERROR(INDEX('PR Expenditure_7A import-export'!I$22:I$33,MATCH($B200,'PR Expenditure_7A import-export'!$N$22:$N$33,0)),\"\")","v":""},null,0,{"$error":"#VALUE!"}]
["Don't Show","Int98",{"$f":"IFERROR(INDEX('PR Expenditure_7A import-export'!A$22:A$33,MATCH($B201,'PR Expenditure_7A import-export'!$N$22:$N$33,0)),\"\")","v":""},{"$f":"IFERROR(INDEX('PR Expenditure_7A import-export'!B$22:B$33,MATCH($B201,'PR Expenditure_7A import-export'!$N$22:$N$33,0)),\"\")","v":""},{"$f":"IFERROR(INDEX('PR Expenditure_7A import-export'!C$22:C$33,MATCH($B201,'PR Expenditure_7A import-export'!$N$22:$N$33,0)),\"\")","v":""},null,0,{"$error":"#VALUE!"},null,null,{"$f":"IFERROR(INDEX('PR Expenditure_7A import-export'!I$22:I$33,MATCH($B201,'PR Expenditure_7A import-export'!$N$22:$N$33,0)),\"\")","v":""},null,0,{"$error":"#VALUE!"}]
["Don't Show","Int99",{"$f":"IFERROR(INDEX('PR Expenditure_7A import-export'!A$22:A$33,MATCH($B202,'PR Expenditure_7A import-export'!$N$22:$N$33,0)),\"\")","v":""},{"$f":"IFERROR(INDEX('PR Expenditure_7A import-export'!B$22:B$33,MATCH($B202,'PR Expenditure_7A import-export'!$N$22:$N$33,0)),\"\")","v":""},{"$f":"IFERROR(INDEX('PR Expenditure_7A import-export'!C$22:C$33,MATCH($B202,'PR Expenditure_7A import-export'!$N$22:$N$33,0)),\"\")","v":""},null,0,{"$error":"#VALUE!"},null,null,{"$f":"IFERROR(INDEX('PR Expenditure_7A import-export'!I$22:I$33,MATCH($B202,'PR Expenditure_7A import-export'!$N$22:$N$33,0)),\"\")","v":""},null,0,{"$error":"#VALUE!"}]
["Don't Show","Int100",{"$f":"IFERROR(INDEX('PR Expenditure_7A import-export'!A$22:A$33,MATCH($B203,'PR Expenditure_7A import-export'!$N$22:$N$33,0)),\"\")","v":""},{"$f":"IFERROR(INDEX('PR Expenditure_7A import-export'!B$22:B$33,MATCH($B203,'PR Expenditure_7A import-export'!$N$22:$N$33,0)),\"\")","v":""},{"$f":"IFERROR(INDEX('PR Expenditure_7A import-export'!C$22:C$33,MATCH($B203,'PR Expenditure_7A import-export'!$N$22:$N$33,0)),\"\")","v":""},null,0,{"$error":"#VALUE!"},null,null,{"$f":"IFERROR(INDEX('PR Expenditure_7A import-export'!I$22:I$33,MATCH($B203,'PR Expenditure_7A import-export'!$N$22:$N$33,0)),\"\")","v":""},null,0,{"$error":"#VALUE!"}]
["Show","NewMod1",null,null,0,null,{"$f":"IFERROR(E204-F204,0)","v":0},{"$f":"IF(AND(E204=0,F204=0),\"N/A\",IF(AND(E204=0,F204<>0),\"Not Budgeted\",F204/E204))","v":"N/A"},null,null,0,null,{"$f":"IFERROR(K204-L204,0)","v":0},{"$f":"IF(AND(K204=0,L204=0),\"N/A\",IF(AND(K204=0,L204<>0),\"Not Budgeted\",L204/K204))","v":"N/A"},{"$f":"IFERROR(IF(VLOOKUP(C204,'Reference Records'!$B$12:$D$25,3,FALSE)=0,\"\",VLOOKUP(C204,'Reference Records'!$B$12:$D$25,3,FALSE)),\"\")","v":""},null,{"$f":"'PR Expenditure_7A import-export'!O34","v":""},null,{"$f":"_7268c752_e187_487c_ae1f_8d8e309992e6","v":"[Record ID]"}]
["Show","NewMod2",null,null,0,null,{"$f":"IFERROR(E205-F205,0)","v":0},{"$f":"IF(AND(E205=0,F205=0),\"N/A\",IF(AND(E205=0,F205<>0),\"Not Budgeted\",F205/E205))","v":"N/A"},null,null,0,null,{"$f":"IFERROR(K205-L205,0)","v":0},{"$f":"IF(AND(K205=0,L205=0),\"N/A\",IF(AND(K205=0,L205<>0),\"Not Budgeted\",L205/K205))","v":"N/A"},{"$f":"IFERROR(IF(VLOOKUP(C205,'Reference Records'!$B$12:$D$25,3,FALSE)=0,\"\",VLOOKUP(C205,'Reference Records'!$B$12:$D$25,3,FALSE)),\"\")","v":""}]
["Show","NewMod3",null,null,0,null,0,"N/A",null,null,0,null,0,"N/A",{"$f":"IFERROR(IF(VLOOKUP(C206,'Reference Records'!$B$12:$D$25,3,FALSE)=0,\"\",VLOOKUP(C206,'Reference Records'!$B$12:$D$25,3,FALSE)),\"\")","v":""}]
["Show","NewMod4",null,null,0,null,0,"N/A",null,null,0,null,0,"N/A",{"$f":"IFERROR(IF(VLOOKUP(C207,'Reference Records'!$B$12:$D$25,3,FALSE)=0,\"\",VLOOKUP(C207,'Reference Records'!$B$12:$D$25,3,FALSE)),\"\")","v":""}]
["Show","NewMod5",null,null,0,null,0,"N/A",null,null,0,null,0,"N/A",{"$f":"IFERROR(IF(VLOOKUP(C208,'Reference Records'!$B$12:$D$25,3,FALSE)=0,\"\",VLOOKUP(C208,'Reference Records'!$B$12:$D$25,3,FALSE)),\"\")","v":""}]
["Show","NewMod6",null,null,0,null,0,"N/A",null,null,0,null,0,"N/A",{"$f":"IFERROR(IF(VLOOKUP(C209,'Reference Records'!$B$12:$D$25,3,FALSE)=0,\"\",VLOOKUP(C209,'Reference Records'!$B$12:$D$25,3,FALSE)),\"\")","v":""}]
["Show","NewMod7",null,null,0,null,0,"N/A",null,null,0,null,0,"N/A",{"$f":"IFERROR(IF(VLOOKUP(C210,'Reference Records'!$B$12:$D$25,3,FALSE)=0,\"\",VLOOKUP(C210,'Reference Records'!$B$12:$D$25,3,FALSE)),\"\")","v":""}]
["Show","NewMod8",null,null,0,null,0,"N/A",null,null,0,null,0,"N/A",{"$f":"IFERROR(IF(VLOOKUP(C211,'Reference Records'!$B$12:$D$25,3,FALSE)=0,\"\",VLOOKUP(C211,'Reference Records'!$B$12:$D$25,3,FALSE)),\"\")","v":""}]
["Show","NewMod9",null,null,0,null,0,"N/A",null,null,0,null,0,"N/A",{"$f":"IFERROR(IF(VLOOKUP(C212,'Reference Records'!$B$12:$D$25,3,FALSE)=0,\"\",VLOOKUP(C212,'Reference Records'!$B$12:$D$25,3,FALSE)),\"\")","v":""}]
["Show","NewMod10",null,null,0,null,0,"N/A",null,null,0,null,0,"N/A",{"$f":"IFERROR(IF(VLOOKUP(C213,'Reference Records'!$B$12:$D$25,3,FALSE)=0,\"\",VLOOKUP(C213,'Reference Records'!$B$12:$D$25,3,FALSE)),\"\")","v":""}]
["Show","NewMod11",null,null,0,null,0,"N/A",null,null,0,null,0,"N/A",{"$f":"IFERROR(IF(VLOOKUP(C214,'Reference Records'!$B$12:$D$25,3,FALSE)=0,\"\",VLOOKUP(C214,'Reference Records'!$B$12:$D$25,3,FALSE)),\"\")","v":""}]
["Show","NewMod12",null,null,0,null,0,"N/A",null,null,0,null,0,"N/A",{"$f":"IFERROR(IF(VLOOKUP(C215,'Reference Records'!$B$12:$D$25,3,FALSE)=0,\"\",VLOOKUP(C215,'Reference Records'!$B$12:$D$25,3,FALSE)),\"\")","v":""}]
["Show","NewMod13",null,null,0,null,0,"N/A",null,null,0,null,0,"N/A",{"$f":"IFERROR(IF(VLOOKUP(C216,'Reference Records'!$B$12:$D$25,3,FALSE)=0,\"\",VLOOKUP(C216,'Reference Records'!$B$12:$D$25,3,FALSE)),\"\")","v":""}]
["Show","NewMod14",null,null,0,null,0,"N/A",null,null,0,null,0,"N/A",{"$f":"IFERROR(IF(VLOOKUP(C217,'Reference Records'!$B$12:$D$25,3,FALSE)=0,\"\",VLOOKUP(C217,'Reference Records'!$B$12:$D$25,3,FALSE)),\"\")","v":""}]
["Show","NewMod15",null,null,0,null,0,"N/A",null,null,0,null,0,"N/A",{"$f":"IFERROR(IF(VLOOKUP(C218,'Reference Records'!$B$12:$D$25,3,FALSE)=0,\"\",VLOOKUP(C218,'Reference Records'!$B$12:$D$25,3,FALSE)),\"\")","v":""}]
["Show","NewMod16",null,null,0,null,0,"N/A",null,null,0,null,0,"N/A",{"$f":"IFERROR(IF(VLOOKUP(C219,'Reference Records'!$B$12:$D$25,3,FALSE)=0,\"\",VLOOKUP(C219,'Reference Records'!$B$12:$D$25,3,FALSE)),\"\")","v":""}]
["Show",null,"Grand Total",null,{"$f":"ROUND(SUM(E104:E219),2)","v":4057896.79},{"$f":"ROUND(SUM(F104:F219),2)","v":714241.57},{"$f":"ROUND(SUM(G104:G219),2)","v":3343655.22},{"$f":"(F220/E220)*100","v":17.601274920548189},null,null,{"$f":"ROUND(SUM(K104:K219),2)","v":4057896.79},{"$f":"ROUND(SUM(L104:L219),2)","v":714241.57},{"$f":"ROUND(SUM(M104:M219),2)","v":3343655.22},{"$f":"(L220/K220)","v":0.17601274920548188}]
["Show"]
["Show",null,"C. BREAKDOWN BY IMPLEMENTING ENTITY"]
["Show"]
["Show",null,"Implementing Entity","Type of Implementing Entity","Budget for Reporting Period","Actual Expenditure","Budget Vs Actual Variances","Absorption Rate","Explanation of Variances (mandatory for all percentages below 95% & above 105%)",null,"Cumulative Budget","Cumulative Actual Expenditure","Cumulative Budget Vs Actuals Variances","Absorption Rate"]
[{"$f":"IF(C225<>\"\",\"Show\",\"Don't Show\")","v":"Show"},"IP1",{"$f":"IFERROR(INDEX('PR Expenditure_7A import-export'!A$52:A$56,MATCH('PR Expenditure_7A'!$B225,'PR Expenditure_7A import-export'!$N$52:$N$56,0)),\"\")","v":"CED-Caritas"},{"$f":"IFERROR(INDEX('PR Expenditure_7A import-export'!B$52:B$56,MATCH('PR Expenditure_7A'!$B225,'PR Expenditure_7A import-export'!$N$52:$N$56,0)),\"\")","v":"-"},{"$f":"IFERROR(INDEX('PR Expenditure_7A import-export'!C$52:C$56,MATCH('PR Expenditure_7A'!$B225,'PR Expenditure_7A import-export'!$N$52:$N$56,0)),\"\")","v":510939.31497165601},94503.7,{"$f":"IFERROR(E225-F225,0)","v":416435.614971656},{"$f":"IF(AND(E225=0,F225=0),\"N/A\",IF(AND(E225=0,F225<>0),\"Not Budgeted\",F225/E225))","v":0.18496071300608863},"Cet écart s'explique par :\n* les économies de USD 368,888.79 sur les RH de Caritas en raison non seulement de la prise en charge par le Fonds Mondial d'un certain nombre de personnel dans le cadre des clotures act 121 et 124 (USD 31,222.41) et d'une surestimation des frais d'assurance maladie (act 125 USD - 8,310.63) mais aussi du fait que les motivations des 417 GASC (act 118) n'ont pas été payées pour USD 329,355.75 en raison de la non harmonisation des modalités de paiement entre le FM et le ministère de la santé.\n*  les économies de USD 13,120.78 sur le fonctionnement  (act 122) due à la faible exécution des dépenses de fonctionnement du premier trimestre 2018, les activités n'ayant pas activement démarré;\n* les économies de USD 11,526.36 sur les act 36,40, 116, 117 et 120 partiellement réalisées ou avec peu de ressources par CARITAS;\n* le budget de USD 22,899.69 pour les activités non réalisées  par CARITAS (act 37- USD 13,074.68; act 39 - USD 9,825.01) en raison du calendrier et reportées pour la période suivante;",null,{"$f":"IFERROR(INDEX('PR Expenditure_7A import-export'!I$52:I$56,MATCH('PR Expenditure_7A'!$B225,'PR Expenditure_7A import-export'!$N$52:$N$56,0)),\"\")","v":510939.31497165601},{"$f":"F225","v":94503.7},{"$f":"IFERROR(K225-L225,0)","v":416435.614971656},{"$f":"IF(AND(K225=0,L225=0),\"N/A\",IF(AND(K225=0,L225<>0),\"Not Budgeted\",L225/K225))","v":0.18496071300608863}]
[{"$f":"IF(C226<>\"\",\"Show\",\"Don't Show\")","v":"Show"},"IP2",{"$f":"IFERROR(INDEX('PR Expenditure_7A import-export'!A$52:A$56,MATCH('PR Expenditure_7A'!$B226,'PR Expenditure_7A import-export'!$N$52:$N$56,0)),\"\")","v":"Ministry of Public Health and Fight against AIDS of the Republic of Burundi"},{"$f":"IFERROR(INDEX('PR Expenditure_7A import-export'!B$52:B$56,MATCH('PR Expenditure_7A'!$B226,'PR Expenditure_7A import-export'!$N$52:$N$56,0)),\"\")","v":"-"},{"$f":"IFERROR(INDEX('PR Expenditure_7A import-export'!C$52:C$56,MATCH('PR Expenditure_7A'!$B226,'PR Expenditure_7A import-export'!$N$52:$N$56,0)),\"\")","v":149775.323187081},51160.03,98615.293187080999,0.34157849845596494,"Cet écart s'explique par :\n* les économies de USD 60,391.13 sur les RH du PNLP en raison du retard dans la mise en place des unités de Gestion act 67 (USD 55,090.45) et du non paiement au 30 juin 2018 des primes du 2e trimestre 2018 act 66 (USD 5,300.68);\n* le budget de USD 155.29 relatif au bulletin épidémiologique (act 76) non édité durant cette période. Cette activité est reportée pour la période suivante.\n* les économies de USD USD 10,784.81 sur l'activité 65 fonctionnement du PNLP résultant de la faiblesse des dépenses de fonctionnement du premier trimestre 2018, les activités n'ayant pas activement démarré;\n* les économies de USD 27,284.06 sur les activités 44, 64,72, 73  et 117 dues à leur réalisation partielle et la non réalisation de l'activité 71",null,{"$f":"IFERROR(INDEX('PR Expenditure_7A import-export'!I$52:I$56,MATCH('PR Expenditure_7A'!$B226,'PR Expenditure_7A import-export'!$N$52:$N$56,0)),\"\")","v":149775.323187081},{"$f":"F226","v":51160.03},98615.293187080999,0.34157849845596494]
["Show","IP3",{"$f":"IFERROR(INDEX('PR Expenditure_7A import-export'!A$52:A$56,MATCH('PR Expenditure_7A'!$B227,'PR Expenditure_7A import-export'!$N$52:$N$56,0)),\"\")","v":"UNDP"},{"$f":"IFERROR(INDEX('PR Expenditure_7A import-export'!B$52:B$56,MATCH('PR Expenditure_7A'!$B227,'PR Expenditure_7A import-export'!$N$52:$N$56,0)),\"\")","v":"-"},{"$f":"IFERROR(INDEX('PR Expenditure_7A import-export'!C$52:C$56,MATCH('PR Expenditure_7A'!$B227,'PR Expenditure_7A import-export'!$N$52:$N$56,0)),\"\")","v":3397182.1565958699},568577.83999999985,2828604.3165958701,0.16736748687322101,"Cet écart s'explique par :\n* les économies de USD 199,189.19 sur les ressources humaines du PR en raison du retard dans la mise en place du personnel du personnel du PMU et de l'équipe interéimaire respectivement sur les act 140 (USD 120,947.04) et 150 (USD 78,242.15);\n*le budget de USD 3,313.97 relatif aux spots radios (act 119) non payés durant la période et pour lesquels un engagement de USD 1,591.09 existe;\n* USD 8,101.24 représentant les économies liées au fonctionnement du PR (act 146 et 153) en raison du retard dans la mise en place de l'équipe; par ailleurs, des engagements de USD 9,181.09 existent au 300618\n* USD 224,601.12 représentant les économies liées aux frais de gestion dues à la non réalisation de toutes les activités inscrites au plan de travail.\n* les économies de USD 32,347.17 sur les couts liés au déplacement du PR (act 151 et 167) dues au retard dans la mise en place de l'équipe et le fait que le PR n'ait pas effectué beaucoup de missions sur le terrain;\n* le budget de 3,390 relatif à l'act 63 car aucune personne n'a participé aux conférences internationales de l'OMS ou du RBM durant cette periode;\n*  les économies relatives aux honoraires du consultant évaluation des capacités des SRs (act 152) pour USD 6,600\n*  le budget des médicaments (act 134) de USD 669,838 . Il faut signaler que lesdits médicaments ont été commandés et un engagement existe pour USD 1,155,382.32;\n*  le solde du budget des TDRs (act 135) pour USD 1,091, 903.59 car tous les TDRs n'ont pas été commandés teant compte de la nouvelle quantification et des stocks disponibles. Au 30 juin 2018, des TDRs commandés pour USD 255,398 n'ont pas été livrés.\n* USD 62,655 le budget du cout d'agent et des frais de manutention des produits de santé (act 136), aucun cout n'ayant été payé; des engagements de USD 69,171.28 existent au 30 juin 2018\n* USD 267,198.39  représentant le solde du budget du fret et des frais d'assurance (act 137). Au 30 juin 2018, des engagements de USD 118,740 existent pour les produits commandés non encore réceptionnés;\n* USD 88,509.24 représentant le budget des frais d'entreposage et de stockage des produits de santé (act 138) non payés;\n * USD 20,095 représentant le budget des couts liés à l'assurance et au controle de qualité des produits de santé (act 139) car aucun médicament n'est recu pour que le controle de qualité soit fait.\n* les économies de USD 8,411.36 sur l'achat du mobilier (act 143) car les fauteuils de bureau, armoires, chaises visiteurs et table de conférence ont été gratuitement mis à disposition par le bureau du PNUD;\n*  les économies de USD 30,867.86 sur la rénovation (act 147) car aucune grande renovation n'a été effectuée.\n le budget de USD 72,884.61 relatifs aux équipements des GASC (act 115) commandés mais non recus et payés au 300618.  Des engagements de USD 87,307.95 existent à cette date car le PR a anticipé pour sur le budget prévu pour les périodes à venir;\n* le gap de -24,073.42 sur l'achat du véhicule et des ordinateurs (act 141 et 142) en raison d'une sousestimation des prix. Au 30 Juin 2018, il y a un engagement de USD 880.9 sur l'act 142.\n* les économies de USD 60,100 sur l'act 144 dues à la mise à disposition par le PNUD d'un groupe électrogène gratuitement et à la non acquisition des équipements de sécurité et de communication\n* les économies de USD 2,772 sur la maintenance des équipements du PMU à  l'état neuf desdits équipements,aucune maintenance n'ayant été effectuée.\n",null,{"$f":"IFERROR(INDEX('PR Expenditure_7A import-export'!I$52:I$56,MATCH('PR Expenditure_7A'!$B227,'PR Expenditure_7A import-export'!$N$52:$N$56,0)),\"\")","v":3397182.1565958699},{"$f":"F227","v":568577.83999999985},2828604.3165958701,0.16736748687322101]
["Don't Show","IP4",{"$f":"IFERROR(INDEX('PR Expenditure_7A import-export'!A$52:A$56,MATCH('PR Expenditure_7A'!$B228,'PR Expenditure_7A import-export'!$N$52:$N$56,0)),\"\")","v":""},{"$f":"IFERROR(INDEX('PR Expenditure_7A import-export'!B$52:B$56,MATCH('PR Expenditure_7A'!$B228,'PR Expenditure_7A import-export'!$N$52:$N$56,0)),\"\")","v":""},{"$f":"IFERROR(INDEX('PR Expenditure_7A import-export'!C$52:C$56,MATCH('PR Expenditure_7A'!$B228,'PR Expenditure_7A import-export'!$N$52:$N$56,0)),\"\")","v":""},null,0,{"$error":"#VALUE!"},null,null,{"$f":"IFERROR(INDEX('PR Expenditure_7A import-export'!I$52:I$56,MATCH('PR Expenditure_7A'!$B228,'PR Expenditure_7A import-export'!$N$52:$N$56,0)),\"\")","v":""},null,0,{"$error":"#VALUE!"}]
["Don't Show","IP5",{"$f":"IFERROR(INDEX('PR Expenditure_7A import-export'!A$52:A$56,MATCH('PR Expenditure_7A'!$B229,'PR Expenditure_7A import-export'!$N$52:$N$56,0)),\"\")","v":""},{"$f":"IFERROR(INDEX('PR Expenditure_7A import-export'!B$52:B$56,MATCH('PR Expenditure_7A'!$B229,'PR Expenditure_7A import-export'!$N$52:$N$56,0)),\"\")","v":""},{"$f":"IFERROR(INDEX('PR Expenditure_7A import-export'!C$52:C$56,MATCH('PR Expenditure_7A'!$B229,'PR Expenditure_7A import-export'!$N$52:$N$56,0)),\"\")","v":""},null,0,{"$error":"#VALUE!"},null,null,{"$f":"IFERROR(INDEX('PR Expenditure_7A import-export'!I$52:I$56,MATCH('PR Expenditure_7A'!$B229,'PR Expenditure_7A import-export'!$N$52:$N$56,0)),\"\")","v":""},null,0,{"$error":"#VALUE!"}]
["Don't Show","IP6",{"$f":"IFERROR(INDEX('PR Expenditure_7A import-export'!A$52:A$56,MATCH('PR Expenditure_7A'!$B230,'PR Expenditure_7A import-export'!$N$52:$N$56,0)),\"\")","v":""},{"$f":"IFERROR(INDEX('PR Expenditure_7A import-export'!B$52:B$56,MATCH('PR Expenditure_7A'!$B230,'PR Expenditure_7A import-export'!$N$52:$N$56,0)),\"\")","v":""},{"$f":"IFERROR(INDEX('PR Expenditure_7A import-export'!C$52:C$56,MATCH('PR Expenditure_7A'!$B230,'PR Expenditure_7A import-export'!$N$52:$N$56,0)),\"\")","v":""},null,0,{"$error":"#VALUE!"},null,null,{"$f":"IFERROR(INDEX('PR Expenditure_7A import-export'!I$52:I$56,MATCH('PR Expenditure_7A'!$B230,'PR Expenditure_7A import-export'!$N$52:$N$56,0)),\"\")","v":""},null,0,{"$error":"#VALUE!"}]
["Don't Show","IP7",{"$f":"IFERROR(INDEX('PR Expenditure_7A import-export'!A$52:A$56,MATCH('PR Expenditure_7A'!$B231,'PR Expenditure_7A import-export'!$N$52:$N$56,0)),\"\")","v":""},{"$f":"IFERROR(INDEX('PR Expenditure_7A import-export'!B$52:B$56,MATCH('PR Expenditure_7A'!$B231,'PR Expenditure_7A import-export'!$N$52:$N$56,0)),\"\")","v":""},{"$f":"IFERROR(INDEX('PR Expenditure_7A import-export'!C$52:C$56,MATCH('PR Expenditure_7A'!$B231,'PR Expenditure_7A import-export'!$N$52:$N$56,0)),\"\")","v":""},null,0,{"$error":"#VALUE!"},null,null,{"$f":"IFERROR(INDEX('PR Expenditure_7A import-export'!I$52:I$56,MATCH('PR Expenditure_7A'!$B231,'PR Expenditure_7A import-export'!$N$52:$N$56,0)),\"\")","v":""},null,0,{"$error":"#VALUE!"}]
["Don't Show","IP8",{"$f":"IFERROR(INDEX('PR Expenditure_7A import-export'!A$52:A$56,MATCH('PR Expenditure_7A'!$B232,'PR Expenditure_7A import-export'!$N$52:$N$56,0)),\"\")","v":""},{"$f":"IFERROR(INDEX('PR Expenditure_7A import-export'!B$52:B$56,MATCH('PR Expenditure_7A'!$B232,'PR Expenditure_7A import-export'!$N$52:$N$56,0)),\"\")","v":""},{"$f":"IFERROR(INDEX('PR Expenditure_7A import-export'!C$52:C$56,MATCH('PR Expenditure_7A'!$B232,'PR Expenditure_7A import-export'!$N$52:$N$56,0)),\"\")","v":""},null,0,{"$error":"#VALUE!"},null,null,{"$f":"IFERROR(INDEX('PR Expenditure_7A import-export'!I$52:I$56,MATCH('PR Expenditure_7A'!$B232,'PR Expenditure_7A import-export'!$N$52:$N$56,0)),\"\")","v":""},null,0,{"$error":"#VALUE!"}]
["Don't Show","IP9",{"$f":"IFERROR(INDEX('PR Expenditure_7A import-export'!A$52:A$56,MATCH('PR Expenditure_7A'!$B233,'PR Expenditure_7A import-export'!$N$52:$N$56,0)),\"\")","v":""},{"$f":"IFERROR(INDEX('PR Expenditure_7A import-export'!B$52:B$56,MATCH('PR Expenditure_7A'!$B233,'PR Expenditure_7A import-export'!$N$52:$N$56,0)),\"\")","v":""},{"$f":"IFERROR(INDEX('PR Expenditure_7A import-export'!C$52:C$56,MATCH('PR Expenditure_7A'!$B233,'PR Expenditure_7A import-export'!$N$52:$N$56,0)),\"\")","v":""},null,0,{"$error":"#VALUE!"},null,null,{"$f":"IFERROR(INDEX('PR Expenditure_7A import-export'!I$52:I$56,MATCH('PR Expenditure_7A'!$B233,'PR Expenditure_7A import-export'!$N$52:$N$56,0)),\"\")","v":""},null,0,{"$error":"#VALUE!"}]
["Don't Show","IP10",{"$f":"IFERROR(INDEX('PR Expenditure_7A import-export'!A$52:A$56,MATCH('PR Expenditure_7A'!$B234,'PR Expenditure_7A import-export'!$N$52:$N$56,0)),\"\")","v":""},{"$f":"IFERROR(INDEX('PR Expenditure_7A import-export'!B$52:B$56,MATCH('PR Expenditure_7A'!$B234,'PR Expenditure_7A import-export'!$N$52:$N$56,0)),\"\")","v":""},{"$f":"IFERROR(INDEX('PR Expenditure_7A import-export'!C$52:C$56,MATCH('PR Expenditure_7A'!$B234,'PR Expenditure_7A import-export'!$N$52:$N$56,0)),\"\")","v":""},null,0,{"$error":"#VALUE!"},null,null,{"$f":"IFERROR(INDEX('PR Expenditure_7A import-export'!I$52:I$56,MATCH('PR Expenditure_7A'!$B234,'PR Expenditure_7A import-export'!$N$52:$N$56,0)),\"\")","v":""},null,0,{"$error":"#VALUE!"}]
["Don't Show","IP11",{"$f":"IFERROR(INDEX('PR Expenditure_7A import-export'!A$52:A$56,MATCH('PR Expenditure_7A'!$B235,'PR Expenditure_7A import-export'!$N$52:$N$56,0)),\"\")","v":""},{"$f":"IFERROR(INDEX('PR Expenditure_7A import-export'!B$52:B$56,MATCH('PR Expenditure_7A'!$B235,'PR Expenditure_7A import-export'!$N$52:$N$56,0)),\"\")","v":""},{"$f":"IFERROR(INDEX('PR Expenditure_7A import-export'!C$52:C$56,MATCH('PR Expenditure_7A'!$B235,'PR Expenditure_7A import-export'!$N$52:$N$56,0)),\"\")","v":""},null,0,{"$error":"#VALUE!"},null,null,{"$f":"IFERROR(INDEX('PR Expenditure_7A import-export'!I$52:I$56,MATCH('PR Expenditure_7A'!$B235,'PR Expenditure_7A import-export'!$N$52:$N$56,0)),\"\")","v":""},null,0,{"$error":"#VALUE!"}]
["Don't Show","IP12",{"$f":"IFERROR(INDEX('PR Expenditure_7A import-export'!A$52:A$56,MATCH('PR Expenditure_7A'!$B236,'PR Expenditure_7A import-export'!$N$52:$N$56,0)),\"\")","v":""},{"$f":"IFERROR(INDEX('PR Expenditure_7A import-export'!B$52:B$56,MATCH('PR Expenditure_7A'!$B236,'PR Expenditure_7A import-export'!$N$52:$N$56,0)),\"\")","v":""},{"$f":"IFERROR(INDEX('PR Expenditure_7A import-export'!C$52:C$56,MATCH('PR Expenditure_7A'!$B236,'PR Expenditure_7A import-export'!$N$52:$N$56,0)),\"\")","v":""},null,0,{"$error":"#VALUE!"},null,null,{"$f":"IFERROR(INDEX('PR Expenditure_7A import-export'!I$52:I$56,MATCH('PR Expenditure_7A'!$B236,'PR Expenditure_7A import-export'!$N$52:$N$56,0)),\"\")","v":""},null,0,{"$error":"#VALUE!"}]
["Don't Show","IP13",{"$f":"IFERROR(INDEX('PR Expenditure_7A import-export'!A$52:A$56,MATCH('PR Expenditure_7A'!$B237,'PR Expenditure_7A import-export'!$N$52:$N$56,0)),\"\")","v":""},{"$f":"IFERROR(INDEX('PR Expenditure_7A import-export'!B$52:B$56,MATCH('PR Expenditure_7A'!$B237,'PR Expenditure_7A import-export'!$N$52:$N$56,0)),\"\")","v":""},{"$f":"IFERROR(INDEX('PR Expenditure_7A import-export'!C$52:C$56,MATCH('PR Expenditure_7A'!$B237,'PR Expenditure_7A import-export'!$N$52:$N$56,0)),\"\")","v":""},null,0,{"$error":"#VALUE!"},null,null,{"$f":"IFERROR(INDEX('PR Expenditure_7A import-export'!I$52:I$56,MATCH('PR Expenditure_7A'!$B237,'PR Expenditure_7A import-export'!$N$52:$N$56,0)),\"\")","v":""},null,0,{"$error":"#VALUE!"}]
["Don't Show","IP14",{"$f":"IFERROR(INDEX('PR Expenditure_7A import-export'!A$52:A$56,MATCH('PR Expenditure_7A'!$B238,'PR Expenditure_7A import-export'!$N$52:$N$56,0)),\"\")","v":""},{"$f":"IFERROR(INDEX('PR Expenditure_7A import-export'!B$52:B$56,MATCH('PR Expenditure_7A'!$B238,'PR Expenditure_7A import-export'!$N$52:$N$56,0)),\"\")","v":""},{"$f":"IFERROR(INDEX('PR Expenditure_7A import-export'!C$52:C$56,MATCH('PR Expenditure_7A'!$B238,'PR Expenditure_7A import-export'!$N$52:$N$56,0)),\"\")","v":""},null,0,{"$error":"#VALUE!"},null,null,{"$f":"IFERROR(INDEX('PR Expenditure_7A import-export'!I$52:I$56,MATCH('PR Expenditure_7A'!$B238,'PR Expenditure_7A import-export'!$N$52:$N$56,0)),\"\")","v":""},null,0,{"$error":"#VALUE!"}]
["Don't Show","IP15",{"$f":"IFERROR(INDEX('PR Expenditure_7A import-export'!A$52:A$56,MATCH('PR Expenditure_7A'!$B239,'PR Expenditure_7A import-export'!$N$52:$N$56,0)),\"\")","v":""},{"$f":"IFERROR(INDEX('PR Expenditure_7A import-export'!B$52:B$56,MATCH('PR Expenditure_7A'!$B239,'PR Expenditure_7A import-export'!$N$52:$N$56,0)),\"\")","v":""},{"$f":"IFERROR(INDEX('PR Expenditure_7A import-export'!C$52:C$56,MATCH('PR Expenditure_7A'!$B239,'PR Expenditure_7A import-export'!$N$52:$N$56,0)),\"\")","v":""},null,0,{"$error":"#VALUE!"},null,null,{"$f":"IFERROR(INDEX('PR Expenditure_7A import-export'!I$52:I$56,MATCH('PR Expenditure_7A'!$B239,'PR Expenditure_7A import-export'!$N$52:$N$56,0)),\"\")","v":""},null,0,{"$error":"#VALUE!"}]
["Don't Show","IP16",{"$f":"IFERROR(INDEX('PR Expenditure_7A import-export'!A$52:A$56,MATCH('PR Expenditure_7A'!$B240,'PR Expenditure_7A import-export'!$N$52:$N$56,0)),\"\")","v":""},{"$f":"IFERROR(INDEX('PR Expenditure_7A import-export'!B$52:B$56,MATCH('PR Expenditure_7A'!$B240,'PR Expenditure_7A import-export'!$N$52:$N$56,0)),\"\")","v":""},{"$f":"IFERROR(INDEX('PR Expenditure_7A import-export'!C$52:C$56,MATCH('PR Expenditure_7A'!$B240,'PR Expenditure_7A import-export'!$N$52:$N$56,0)),\"\")","v":""},null,0,{"$error":"#VALUE!"},null,null,{"$f":"IFERROR(INDEX('PR Expenditure_7A import-export'!I$52:I$56,MATCH('PR Expenditure_7A'!$B240,'PR Expenditure_7A import-export'!$N$52:$N$56,0)),\"\")","v":""},null,0,{"$error":"#VALUE!"}]
["Don't Show","IP17",{"$f":"IFERROR(INDEX('PR Expenditure_7A import-export'!A$52:A$56,MATCH('PR Expenditure_7A'!$B241,'PR Expenditure_7A import-export'!$N$52:$N$56,0)),\"\")","v":""},{"$f":"IFERROR(INDEX('PR Expenditure_7A import-export'!B$52:B$56,MATCH('PR Expenditure_7A'!$B241,'PR Expenditure_7A import-export'!$N$52:$N$56,0)),\"\")","v":""},{"$f":"IFERROR(INDEX('PR Expenditure_7A import-export'!C$52:C$56,MATCH('PR Expenditure_7A'!$B241,'PR Expenditure_7A import-export'!$N$52:$N$56,0)),\"\")","v":""},null,0,{"$error":"#VALUE!"},null,null,{"$f":"IFERROR(INDEX('PR Expenditure_7A import-export'!I$52:I$56,MATCH('PR Expenditure_7A'!$B241,'PR Expenditure_7A import-export'!$N$52:$N$56,0)),\"\")","v":""},null,0,{"$error":"#VALUE!"}]
["Don't Show","IP18",{"$f":"IFERROR(INDEX('PR Expenditure_7A import-export'!A$52:A$56,MATCH('PR Expenditure_7A'!$B242,'PR Expenditure_7A import-export'!$N$52:$N$56,0)),\"\")","v":""},{"$f":"IFERROR(INDEX('PR Expenditure_7A import-export'!B$52:B$56,MATCH('PR Expenditure_7A'!$B242,'PR Expenditure_7A import-export'!$N$52:$N$56,0)),\"\")","v":""},{"$f":"IFERROR(INDEX('PR Expenditure_7A import-export'!C$52:C$56,MATCH('PR Expenditure_7A'!$B242,'PR Expenditure_7A import-export'!$N$52:$N$56,0)),\"\")","v":""},null,0,{"$error":"#VALUE!"},null,null,{"$f":"IFERROR(INDEX('PR Expenditure_7A import-export'!I$52:I$56,MATCH('PR Expenditure_7A'!$B242,'PR Expenditure_7A import-export'!$N$52:$N$56,0)),\"\")","v":""},null,0,{"$error":"#VALUE!"}]
["Don't Show","IP19",{"$f":"IFERROR(INDEX('PR Expenditure_7A import-export'!A$52:A$56,MATCH('PR Expenditure_7A'!$B243,'PR Expenditure_7A import-export'!$N$52:$N$56,0)),\"\")","v":""},{"$f":"IFERROR(INDEX('PR Expenditure_7A import-export'!B$52:B$56,MATCH('PR Expenditure_7A'!$B243,'PR Expenditure_7A import-export'!$N$52:$N$56,0)),\"\")","v":""},{"$f":"IFERROR(INDEX('PR Expenditure_7A import-export'!C$52:C$56,MATCH('PR Expenditure_7A'!$B243,'PR Expenditure_7A import-export'!$N$52:$N$56,0)),\"\")","v":""},null,0,{"$error":"#VALUE!"},null,null,{"$f":"IFERROR(INDEX('PR Expenditure_7A import-export'!I$52:I$56,MATCH('PR Expenditure_7A'!$B243,'PR Expenditure_7A import-export'!$N$52:$N$56,0)),\"\")","v":""},null,0,{"$error":"#VALUE!"}]
["Don't Show","IP20",{"$f":"IFERROR(INDEX('PR Expenditure_7A import-export'!A$52:A$56,MATCH('PR Expenditure_7A'!$B244,'PR Expenditure_7A import-export'!$N$52:$N$56,0)),\"\")","v":""},{"$f":"IFERROR(INDEX('PR Expenditure_7A import-export'!B$52:B$56,MATCH('PR Expenditure_7A'!$B244,'PR Expenditure_7A import-export'!$N$52:$N$56,0)),\"\")","v":""},{"$f":"IFERROR(INDEX('PR Expenditure_7A import-export'!C$52:C$56,MATCH('PR Expenditure_7A'!$B244,'PR Expenditure_7A import-export'!$N$52:$N$56,0)),\"\")","v":""},null,0,{"$error":"#VALUE!"},null,null,{"$f":"IFERROR(INDEX('PR Expenditure_7A import-export'!I$52:I$56,MATCH('PR Expenditure_7A'!$B244,'PR Expenditure_7A import-export'!$N$52:$N$56,0)),\"\")","v":""},null,0,{"$error":"#VALUE!"}]
["Don't Show","IP21",{"$f":"IFERROR(INDEX('PR Expenditure_7A import-export'!A$52:A$56,MATCH('PR Expenditure_7A'!$B245,'PR Expenditure_7A import-export'!$N$52:$N$56,0)),\"\")","v":""},{"$f":"IFERROR(INDEX('PR Expenditure_7A import-export'!B$52:B$56,MATCH('PR Expenditure_7A'!$B245,'PR Expenditure_7A import-export'!$N$52:$N$56,0)),\"\")","v":""},{"$f":"IFERROR(INDEX('PR Expenditure_7A import-export'!C$52:C$56,MATCH('PR Expenditure_7A'!$B245,'PR Expenditure_7A import-export'!$N$52:$N$56,0)),\"\")","v":""},null,0,{"$error":"#VALUE!"},null,null,{"$f":"IFERROR(INDEX('PR Expenditure_7A import-export'!I$52:I$56,MATCH('PR Expenditure_7A'!$B245,'PR Expenditure_7A import-export'!$N$52:$N$56,0)),\"\")","v":""},null,0,{"$error":"#VALUE!"}]
["Don't Show","IP22",{"$f":"IFERROR(INDEX('PR Expenditure_7A import-export'!A$52:A$56,MATCH('PR Expenditure_7A'!$B246,'PR Expenditure_7A import-export'!$N$52:$N$56,0)),\"\")","v":""},{"$f":"IFERROR(INDEX('PR Expenditure_7A import-export'!B$52:B$56,MATCH('PR Expenditure_7A'!$B246,'PR Expenditure_7A import-export'!$N$52:$N$56,0)),\"\")","v":""},{"$f":"IFERROR(INDEX('PR Expenditure_7A import-export'!C$52:C$56,MATCH('PR Expenditure_7A'!$B246,'PR Expenditure_7A import-export'!$N$52:$N$56,0)),\"\")","v":""},null,0,{"$error":"#VALUE!"},null,null,{"$f":"IFERROR(INDEX('PR Expenditure_7A import-export'!I$52:I$56,MATCH('PR Expenditure_7A'!$B246,'PR Expenditure_7A import-export'!$N$52:$N$56,0)),\"\")","v":""},null,0,{"$error":"#VALUE!"}]
["Don't Show","IP23",{"$f":"IFERROR(INDEX('PR Expenditure_7A import-export'!A$52:A$56,MATCH('PR Expenditure_7A'!$B247,'PR Expenditure_7A import-export'!$N$52:$N$56,0)),\"\")","v":""},{"$f":"IFERROR(INDEX('PR Expenditure_7A import-export'!B$52:B$56,MATCH('PR Expenditure_7A'!$B247,'PR Expenditure_7A import-export'!$N$52:$N$56,0)),\"\")","v":""},{"$f":"IFERROR(INDEX('PR Expenditure_7A import-export'!C$52:C$56,MATCH('PR Expenditure_7A'!$B247,'PR Expenditure_7A import-export'!$N$52:$N$56,0)),\"\")","v":""},null,0,{"$error":"#VALUE!"},null,null,{"$f":"IFERROR(INDEX('PR Expenditure_7A import-export'!I$52:I$56,MATCH('PR Expenditure_7A'!$B247,'PR Expenditure_7A import-export'!$N$52:$N$56,0)),\"\")","v":""},null,0,{"$error":"#VALUE!"}]
["Don't Show","IP24",{"$f":"IFERROR(INDEX('PR Expenditure_7A import-export'!A$52:A$56,MATCH('PR Expenditure_7A'!$B248,'PR Expenditure_7A import-export'!$N$52:$N$56,0)),\"\")","v":""},{"$f":"IFERROR(INDEX('PR Expenditure_7A import-export'!B$52:B$56,MATCH('PR Expenditure_7A'!$B248,'PR Expenditure_7A import-export'!$N$52:$N$56,0)),\"\")","v":""},{"$f":"IFERROR(INDEX('PR Expenditure_7A import-export'!C$52:C$56,MATCH('PR Expenditure_7A'!$B248,'PR Expenditure_7A import-export'!$N$52:$N$56,0)),\"\")","v":""},null,0,{"$error":"#VALUE!"},null,null,{"$f":"IFERROR(INDEX('PR Expenditure_7A import-export'!I$52:I$56,MATCH('PR Expenditure_7A'!$B248,'PR Expenditure_7A import-export'!$N$52:$N$56,0)),\"\")","v":""},null,0,{"$error":"#VALUE!"}]
["Don't Show","IP25",{"$f":"IFERROR(INDEX('PR Expenditure_7A import-export'!A$52:A$56,MATCH('PR Expenditure_7A'!$B249,'PR Expenditure_7A import-export'!$N$52:$N$56,0)),\"\")","v":""},{"$f":"IFERROR(INDEX('PR Expenditure_7A import-export'!B$52:B$56,MATCH('PR Expenditure_7A'!$B249,'PR Expenditure_7A import-export'!$N$52:$N$56,0)),\"\")","v":""},{"$f":"IFERROR(INDEX('PR Expenditure_7A import-export'!C$52:C$56,MATCH('PR Expenditure_7A'!$B249,'PR Expenditure_7A import-export'!$N$52:$N$56,0)),\"\")","v":""},null,0,{"$error":"#VALUE!"},null,null,{"$f":"IFERROR(INDEX('PR Expenditure_7A import-export'!I$52:I$56,MATCH('PR Expenditure_7A'!$B249,'PR Expenditure_7A import-export'!$N$52:$N$56,0)),\"\")","v":""},null,0,{"$error":"#VALUE!"}]
["Don't Show","IP26",{"$f":"IFERROR(INDEX('PR Expenditure_7A import-export'!A$52:A$56,MATCH('PR Expenditure_7A'!$B250,'PR Expenditure_7A import-export'!$N$52:$N$56,0)),\"\")","v":""},{"$f":"IFERROR(INDEX('PR Expenditure_7A import-export'!B$52:B$56,MATCH('PR Expenditure_7A'!$B250,'PR Expenditure_7A import-export'!$N$52:$N$56,0)),\"\")","v":""},{"$f":"IFERROR(INDEX('PR Expenditure_7A import-export'!C$52:C$56,MATCH('PR Expenditure_7A'!$B250,'PR Expenditure_7A import-export'!$N$52:$N$56,0)),\"\")","v":""},null,0,{"$error":"#VALUE!"},null,null,{"$f":"IFERROR(INDEX('PR Expenditure_7A import-export'!I$52:I$56,MATCH('PR Expenditure_7A'!$B250,'PR Expenditure_7A import-export'!$N$52:$N$56,0)),\"\")","v":""},null,0,{"$error":"#VALUE!"}]
["Don't Show","IP27",{"$f":"IFERROR(INDEX('PR Expenditure_7A import-export'!A$52:A$56,MATCH('PR Expenditure_7A'!$B251,'PR Expenditure_7A import-export'!$N$52:$N$56,0)),\"\")","v":""},{"$f":"IFERROR(INDEX('PR Expenditure_7A import-export'!B$52:B$56,MATCH('PR Expenditure_7A'!$B251,'PR Expenditure_7A import-export'!$N$52:$N$56,0)),\"\")","v":""},{"$f":"IFERROR(INDEX('PR Expenditure_7A import-export'!C$52:C$56,MATCH('PR Expenditure_7A'!$B251,'PR Expenditure_7A import-export'!$N$52:$N$56,0)),\"\")","v":""},null,0,{"$error":"#VALUE!"},null,null,{"$f":"IFERROR(INDEX('PR Expenditure_7A import-export'!I$52:I$56,MATCH('PR Expenditure_7A'!$B251,'PR Expenditure_7A import-export'!$N$52:$N$56,0)),\"\")","v":""},null,0,{"$error":"#VALUE!"}]
["Don't Show","IP28",{"$f":"IFERROR(INDEX('PR Expenditure_7A import-export'!A$52:A$56,MATCH('PR Expenditure_7A'!$B252,'PR Expenditure_7A import-export'!$N$52:$N$56,0)),\"\")","v":""},{"$f":"IFERROR(INDEX('PR Expenditure_7A import-export'!B$52:B$56,MATCH('PR Expenditure_7A'!$B252,'PR Expenditure_7A import-export'!$N$52:$N$56,0)),\"\")","v":""},{"$f":"IFERROR(INDEX('PR Expenditure_7A import-export'!C$52:C$56,MATCH('PR Expenditure_7A'!$B252,'PR Expenditure_7A import-export'!$N$52:$N$56,0)),\"\")","v":""},null,0,{"$error":"#VALUE!"},null,null,{"$f":"IFERROR(INDEX('PR Expenditure_7A import-export'!I$52:I$56,MATCH('PR Expenditure_7A'!$B252,'PR Expenditure_7A import-export'!$N$52:$N$56,0)),\"\")","v":""},null,0,{"$error":"#VALUE!"}]
["Don't Show","IP29",{"$f":"IFERROR(INDEX('PR Expenditure_7A import-export'!A$52:A$56,MATCH('PR Expenditure_7A'!$B253,'PR Expenditure_7A import-export'!$N$52:$N$56,0)),\"\")","v":""},{"$f":"IFERROR(INDEX('PR Expenditure_7A import-export'!B$52:B$56,MATCH('PR Expenditure_7A'!$B253,'PR Expenditure_7A import-export'!$N$52:$N$56,0)),\"\")","v":""},{"$f":"IFERROR(INDEX('PR Expenditure_7A import-export'!C$52:C$56,MATCH('PR Expenditure_7A'!$B253,'PR Expenditure_7A import-export'!$N$52:$N$56,0)),\"\")","v":""},null,0,{"$error":"#VALUE!"},null,null,{"$f":"IFERROR(INDEX('PR Expenditure_7A import-export'!I$52:I$56,MATCH('PR Expenditure_7A'!$B253,'PR Expenditure_7A import-export'!$N$52:$N$56,0)),\"\")","v":""},null,0,{"$error":"#VALUE!"}]
["Don't Show","IP30",{"$f":"IFERROR(INDEX('PR Expenditure_7A import-export'!A$52:A$56,MATCH('PR Expenditure_7A'!$B254,'PR Expenditure_7A import-export'!$N$52:$N$56,0)),\"\")","v":""},{"$f":"IFERROR(INDEX('PR Expenditure_7A import-export'!B$52:B$56,MATCH('PR Expenditure_7A'!$B254,'PR Expenditure_7A import-export'!$N$52:$N$56,0)),\"\")","v":""},{"$f":"IFERROR(INDEX('PR Expenditure_7A import-export'!C$52:C$56,MATCH('PR Expenditure_7A'!$B254,'PR Expenditure_7A import-export'!$N$52:$N$56,0)),\"\")","v":""},null,0,{"$error":"#VALUE!"},null,null,{"$f":"IFERROR(INDEX('PR Expenditure_7A import-export'!I$52:I$56,MATCH('PR Expenditure_7A'!$B254,'PR Expenditure_7A import-export'!$N$52:$N$56,0)),\"\")","v":""},null,0,{"$error":"#VALUE!"}]
["Don't Show","IP31",{"$f":"IFERROR(INDEX('PR Expenditure_7A import-export'!A$52:A$56,MATCH('PR Expenditure_7A'!$B255,'PR Expenditure_7A import-export'!$N$52:$N$56,0)),\"\")","v":""},{"$f":"IFERROR(INDEX('PR Expenditure_7A import-export'!B$52:B$56,MATCH('PR Expenditure_7A'!$B255,'PR Expenditure_7A import-export'!$N$52:$N$56,0)),\"\")","v":""},{"$f":"IFERROR(INDEX('PR Expenditure_7A import-export'!C$52:C$56,MATCH('PR Expenditure_7A'!$B255,'PR Expenditure_7A import-export'!$N$52:$N$56,0)),\"\")","v":""},null,0,{"$error":"#VALUE!"},null,null,{"$f":"IFERROR(INDEX('PR Expenditure_7A import-export'!I$52:I$56,MATCH('PR Expenditure_7A'!$B255,'PR Expenditure_7A import-export'!$N$52:$N$56,0)),\"\")","v":""},null,0,{"$error":"#VALUE!"}]
["Don't Show","IP32",{"$f":"IFERROR(INDEX('PR Expenditure_7A import-export'!A$52:A$56,MATCH('PR Expenditure_7A'!$B256,'PR Expenditure_7A import-export'!$N$52:$N$56,0)),\"\")","v":""},{"$f":"IFERROR(INDEX('PR Expenditure_7A import-export'!B$52:B$56,MATCH('PR Expenditure_7A'!$B256,'PR Expenditure_7A import-export'!$N$52:$N$56,0)),\"\")","v":""},{"$f":"IFERROR(INDEX('PR Expenditure_7A import-export'!C$52:C$56,MATCH('PR Expenditure_7A'!$B256,'PR Expenditure_7A import-export'!$N$52:$N$56,0)),\"\")","v":""},null,0,{"$error":"#VALUE!"},null,null,{"$f":"IFERROR(INDEX('PR Expenditure_7A import-export'!I$52:I$56,MATCH('PR Expenditure_7A'!$B256,'PR Expenditure_7A import-export'!$N$52:$N$56,0)),\"\")","v":""},null,0,{"$error":"#VALUE!"}]
["Don't Show","IP33",{"$f":"IFERROR(INDEX('PR Expenditure_7A import-export'!A$52:A$56,MATCH('PR Expenditure_7A'!$B257,'PR Expenditure_7A import-export'!$N$52:$N$56,0)),\"\")","v":""},{"$f":"IFERROR(INDEX('PR Expenditure_7A import-export'!B$52:B$56,MATCH('PR Expenditure_7A'!$B257,'PR Expenditure_7A import-export'!$N$52:$N$56,0)),\"\")","v":""},{"$f":"IFERROR(INDEX('PR Expenditure_7A import-export'!C$52:C$56,MATCH('PR Expenditure_7A'!$B257,'PR Expenditure_7A import-export'!$N$52:$N$56,0)),\"\")","v":""},null,0,{"$error":"#VALUE!"},null,null,{"$f":"IFERROR(INDEX('PR Expenditure_7A import-export'!I$52:I$56,MATCH('PR Expenditure_7A'!$B257,'PR Expenditure_7A import-export'!$N$52:$N$56,0)),\"\")","v":""},null,0,{"$error":"#VALUE!"}]
["Don't Show","IP34",{"$f":"IFERROR(INDEX('PR Expenditure_7A import-export'!A$52:A$56,MATCH('PR Expenditure_7A'!$B258,'PR Expenditure_7A import-export'!$N$52:$N$56,0)),\"\")","v":""},{"$f":"IFERROR(INDEX('PR Expenditure_7A import-export'!B$52:B$56,MATCH('PR Expenditure_7A'!$B258,'PR Expenditure_7A import-export'!$N$52:$N$56,0)),\"\")","v":""},{"$f":"IFERROR(INDEX('PR Expenditure_7A import-export'!C$52:C$56,MATCH('PR Expenditure_7A'!$B258,'PR Expenditure_7A import-export'!$N$52:$N$56,0)),\"\")","v":""},null,0,{"$error":"#VALUE!"},null,null,{"$f":"IFERROR(INDEX('PR Expenditure_7A import-export'!I$52:I$56,MATCH('PR Expenditure_7A'!$B258,'PR Expenditure_7A import-export'!$N$52:$N$56,0)),\"\")","v":""},null,0,{"$error":"#VALUE!"}]
["Don't Show","IP35",{"$f":"IFERROR(INDEX('PR Expenditure_7A import-export'!A$52:A$56,MATCH('PR Expenditure_7A'!$B259,'PR Expenditure_7A import-export'!$N$52:$N$56,0)),\"\")","v":""},{"$f":"IFERROR(INDEX('PR Expenditure_7A import-export'!B$52:B$56,MATCH('PR Expenditure_7A'!$B259,'PR Expenditure_7A import-export'!$N$52:$N$56,0)),\"\")","v":""},{"$f":"IFERROR(INDEX('PR Expenditure_7A import-export'!C$52:C$56,MATCH('PR Expenditure_7A'!$B259,'PR Expenditure_7A import-export'!$N$52:$N$56,0)),\"\")","v":""},null,0,{"$error":"#VALUE!"},null,null,{"$f":"IFERROR(INDEX('PR Expenditure_7A import-export'!I$52:I$56,MATCH('PR Expenditure_7A'!$B259,'PR Expenditure_7A import-export'!$N$52:$N$56,0)),\"\")","v":""},null,0,{"$error":"#VALUE!"}]
["Don't Show","IP36",{"$f":"IFERROR(INDEX('PR Expenditure_7A import-export'!A$52:A$56,MATCH('PR Expenditure_7A'!$B260,'PR Expenditure_7A import-export'!$N$52:$N$56,0)),\"\")","v":""},{"$f":"IFERROR(INDEX('PR Expenditure_7A import-export'!B$52:B$56,MATCH('PR Expenditure_7A'!$B260,'PR Expenditure_7A import-export'!$N$52:$N$56,0)),\"\")","v":""},{"$f":"IFERROR(INDEX('PR Expenditure_7A import-export'!C$52:C$56,MATCH('PR Expenditure_7A'!$B260,'PR Expenditure_7A import-export'!$N$52:$N$56,0)),\"\")","v":""},null,0,{"$error":"#VALUE!"},null,null,{"$f":"IFERROR(INDEX('PR Expenditure_7A import-export'!I$52:I$56,MATCH('PR Expenditure_7A'!$B260,'PR Expenditure_7A import-export'!$N$52:$N$56,0)),\"\")","v":""},null,0,{"$error":"#VALUE!"}]
["Don't Show","IP37",{"$f":"IFERROR(INDEX('PR Expenditure_7A import-export'!A$52:A$56,MATCH('PR Expenditure_7A'!$B261,'PR Expenditure_7A import-export'!$N$52:$N$56,0)),\"\")","v":""},{"$f":"IFERROR(INDEX('PR Expenditure_7A import-export'!B$52:B$56,MATCH('PR Expenditure_7A'!$B261,'PR Expenditure_7A import-export'!$N$52:$N$56,0)),\"\")","v":""},{"$f":"IFERROR(INDEX('PR Expenditure_7A import-export'!C$52:C$56,MATCH('PR Expenditure_7A'!$B261,'PR Expenditure_7A import-export'!$N$52:$N$56,0)),\"\")","v":""},null,0,{"$error":"#VALUE!"},null,null,{"$f":"IFERROR(INDEX('PR Expenditure_7A import-export'!I$52:I$56,MATCH('PR Expenditure_7A'!$B261,'PR Expenditure_7A import-export'!$N$52:$N$56,0)),\"\")","v":""},null,0,{"$error":"#VALUE!"}]
["Don't Show","IP38",{"$f":"IFERROR(INDEX('PR Expenditure_7A import-export'!A$52:A$56,MATCH('PR Expenditure_7A'!$B262,'PR Expenditure_7A import-export'!$N$52:$N$56,0)),\"\")","v":""},{"$f":"IFERROR(INDEX('PR Expenditure_7A import-export'!B$52:B$56,MATCH('PR Expenditure_7A'!$B262,'PR Expenditure_7A import-export'!$N$52:$N$56,0)),\"\")","v":""},{"$f":"IFERROR(INDEX('PR Expenditure_7A import-export'!C$52:C$56,MATCH('PR Expenditure_7A'!$B262,'PR Expenditure_7A import-export'!$N$52:$N$56,0)),\"\")","v":""},null,0,{"$error":"#VALUE!"},null,null,{"$f":"IFERROR(INDEX('PR Expenditure_7A import-export'!I$52:I$56,MATCH('PR Expenditure_7A'!$B262,'PR Expenditure_7A import-export'!$N$52:$N$56,0)),\"\")","v":""},null,0,{"$error":"#VALUE!"}]
["Don't Show","IP39",{"$f":"IFERROR(INDEX('PR Expenditure_7A import-export'!A$52:A$56,MATCH('PR Expenditure_7A'!$B263,'PR Expenditure_7A import-export'!$N$52:$N$56,0)),\"\")","v":""},{"$f":"IFERROR(INDEX('PR Expenditure_7A import-export'!B$52:B$56,MATCH('PR Expenditure_7A'!$B263,'PR Expenditure_7A import-export'!$N$52:$N$56,0)),\"\")","v":""},{"$f":"IFERROR(INDEX('PR Expenditure_7A import-export'!C$52:C$56,MATCH('PR Expenditure_7A'!$B263,'PR Expenditure_7A import-export'!$N$52:$N$56,0)),\"\")","v":""},null,0,{"$error":"#VALUE!"},null,null,{"$f":"IFERROR(INDEX('PR Expenditure_7A import-export'!I$52:I$56,MATCH('PR Expenditure_7A'!$B263,'PR Expenditure_7A import-export'!$N$52:$N$56,0)),\"\")","v":""},null,0,{"$error":"#VALUE!"}]
["Don't Show","IP40",{"$f":"IFERROR(INDEX('PR Expenditure_7A import-export'!A$52:A$56,MATCH('PR Expenditure_7A'!$B264,'PR Expenditure_7A import-export'!$N$52:$N$56,0)),\"\")","v":""},{"$f":"IFERROR(INDEX('PR Expenditure_7A import-export'!B$52:B$56,MATCH('PR Expenditure_7A'!$B264,'PR Expenditure_7A import-export'!$N$52:$N$56,0)),\"\")","v":""},{"$f":"IFERROR(INDEX('PR Expenditure_7A import-export'!C$52:C$56,MATCH('PR Expenditure_7A'!$B264,'PR Expenditure_7A import-export'!$N$52:$N$56,0)),\"\")","v":""},null,0,{"$error":"#VALUE!"},null,null,{"$f":"IFERROR(INDEX('PR Expenditure_7A import-export'!I$52:I$56,MATCH('PR Expenditure_7A'!$B264,'PR Expenditure_7A import-export'!$N$52:$N$56,0)),\"\")","v":""},null,0,{"$error":"#VALUE!"}]
["Don't Show","IP41",{"$f":"IFERROR(INDEX('PR Expenditure_7A import-export'!A$52:A$56,MATCH('PR Expenditure_7A'!$B265,'PR Expenditure_7A import-export'!$N$52:$N$56,0)),\"\")","v":""},{"$f":"IFERROR(INDEX('PR Expenditure_7A import-export'!B$52:B$56,MATCH('PR Expenditure_7A'!$B265,'PR Expenditure_7A import-export'!$N$52:$N$56,0)),\"\")","v":""},{"$f":"IFERROR(INDEX('PR Expenditure_7A import-export'!C$52:C$56,MATCH('PR Expenditure_7A'!$B265,'PR Expenditure_7A import-export'!$N$52:$N$56,0)),\"\")","v":""},null,0,{"$error":"#VALUE!"},null,null,{"$f":"IFERROR(INDEX('PR Expenditure_7A import-export'!I$52:I$56,MATCH('PR Expenditure_7A'!$B265,'PR Expenditure_7A import-export'!$N$52:$N$56,0)),\"\")","v":""},null,0,{"$error":"#VALUE!"}]
["Don't Show","IP42",{"$f":"IFERROR(INDEX('PR Expenditure_7A import-export'!A$52:A$56,MATCH('PR Expenditure_7A'!$B266,'PR Expenditure_7A import-export'!$N$52:$N$56,0)),\"\")","v":""},{"$f":"IFERROR(INDEX('PR Expenditure_7A import-export'!B$52:B$56,MATCH('PR Expenditure_7A'!$B266,'PR Expenditure_7A import-export'!$N$52:$N$56,0)),\"\")","v":""},{"$f":"IFERROR(INDEX('PR Expenditure_7A import-export'!C$52:C$56,MATCH('PR Expenditure_7A'!$B266,'PR Expenditure_7A import-export'!$N$52:$N$56,0)),\"\")","v":""},null,0,{"$error":"#VALUE!"},null,null,{"$f":"IFERROR(INDEX('PR Expenditure_7A import-export'!I$52:I$56,MATCH('PR Expenditure_7A'!$B266,'PR Expenditure_7A import-export'!$N$52:$N$56,0)),\"\")","v":""},null,0,{"$error":"#VALUE!"}]
["Don't Show","IP43",{"$f":"IFERROR(INDEX('PR Expenditure_7A import-export'!A$52:A$56,MATCH('PR Expenditure_7A'!$B267,'PR Expenditure_7A import-export'!$N$52:$N$56,0)),\"\")","v":""},{"$f":"IFERROR(INDEX('PR Expenditure_7A import-export'!B$52:B$56,MATCH('PR Expenditure_7A'!$B267,'PR Expenditure_7A import-export'!$N$52:$N$56,0)),\"\")","v":""},{"$f":"IFERROR(INDEX('PR Expenditure_7A import-export'!C$52:C$56,MATCH('PR Expenditure_7A'!$B267,'PR Expenditure_7A import-export'!$N$52:$N$56,0)),\"\")","v":""},null,0,{"$error":"#VALUE!"},null,null,{"$f":"IFERROR(INDEX('PR Expenditure_7A import-export'!I$52:I$56,MATCH('PR Expenditure_7A'!$B267,'PR Expenditure_7A import-export'!$N$52:$N$56,0)),\"\")","v":""},null,0,{"$error":"#VALUE!"}]
["Don't Show","IP44",{"$f":"IFERROR(INDEX('PR Expenditure_7A import-export'!A$52:A$56,MATCH('PR Expenditure_7A'!$B268,'PR Expenditure_7A import-export'!$N$52:$N$56,0)),\"\")","v":""},{"$f":"IFERROR(INDEX('PR Expenditure_7A import-export'!B$52:B$56,MATCH('PR Expenditure_7A'!$B268,'PR Expenditure_7A import-export'!$N$52:$N$56,0)),\"\")","v":""},{"$f":"IFERROR(INDEX('PR Expenditure_7A import-export'!C$52:C$56,MATCH('PR Expenditure_7A'!$B268,'PR Expenditure_7A import-export'!$N$52:$N$56,0)),\"\")","v":""},null,0,{"$error":"#VALUE!"},null,null,{"$f":"IFERROR(INDEX('PR Expenditure_7A import-export'!I$52:I$56,MATCH('PR Expenditure_7A'!$B268,'PR Expenditure_7A import-export'!$N$52:$N$56,0)),\"\")","v":""},null,0,{"$error":"#VALUE!"}]
["Don't Show","IP45",{"$f":"IFERROR(INDEX('PR Expenditure_7A import-export'!A$52:A$56,MATCH('PR Expenditure_7A'!$B269,'PR Expenditure_7A import-export'!$N$52:$N$56,0)),\"\")","v":""},{"$f":"IFERROR(INDEX('PR Expenditure_7A import-export'!B$52:B$56,MATCH('PR Expenditure_7A'!$B269,'PR Expenditure_7A import-export'!$N$52:$N$56,0)),\"\")","v":""},{"$f":"IFERROR(INDEX('PR Expenditure_7A import-export'!C$52:C$56,MATCH('PR Expenditure_7A'!$B269,'PR Expenditure_7A import-export'!$N$52:$N$56,0)),\"\")","v":""},null,0,{"$error":"#VALUE!"},null,null,{"$f":"IFERROR(INDEX('PR Expenditure_7A import-export'!I$52:I$56,MATCH('PR Expenditure_7A'!$B269,'PR Expenditure_7A import-export'!$N$52:$N$56,0)),\"\")","v":""},null,0,{"$error":"#VALUE!"}]
["Don't Show","IP46",{"$f":"IFERROR(INDEX('PR Expenditure_7A import-export'!A$52:A$56,MATCH('PR Expenditure_7A'!$B270,'PR Expenditure_7A import-export'!$N$52:$N$56,0)),\"\")","v":""},{"$f":"IFERROR(INDEX('PR Expenditure_7A import-export'!B$52:B$56,MATCH('PR Expenditure_7A'!$B270,'PR Expenditure_7A import-export'!$N$52:$N$56,0)),\"\")","v":""},{"$f":"IFERROR(INDEX('PR Expenditure_7A import-export'!C$52:C$56,MATCH('PR Expenditure_7A'!$B270,'PR Expenditure_7A import-export'!$N$52:$N$56,0)),\"\")","v":""},null,0,{"$error":"#VALUE!"},null,null,{"$f":"IFERROR(INDEX('PR Expenditure_7A import-export'!I$52:I$56,MATCH('PR Expenditure_7A'!$B270,'PR Expenditure_7A import-export'!$N$52:$N$56,0)),\"\")","v":""},null,0,{"$error":"#VALUE!"}]
["Don't Show","IP47",{"$f":"IFERROR(INDEX('PR Expenditure_7A import-export'!A$52:A$56,MATCH('PR Expenditure_7A'!$B271,'PR Expenditure_7A import-export'!$N$52:$N$56,0)),\"\")","v":""},{"$f":"IFERROR(INDEX('PR Expenditure_7A import-export'!B$52:B$56,MATCH('PR Expenditure_7A'!$B271,'PR Expenditure_7A import-export'!$N$52:$N$56,0)),\"\")","v":""},{"$f":"IFERROR(INDEX('PR Expenditure_7A import-export'!C$52:C$56,MATCH('PR Expenditure_7A'!$B271,'PR Expenditure_7A import-export'!$N$52:$N$56,0)),\"\")","v":""},null,0,{"$error":"#VALUE!"},null,null,{"$f":"IFERROR(INDEX('PR Expenditure_7A import-export'!I$52:I$56,MATCH('PR Expenditure_7A'!$B271,'PR Expenditure_7A import-export'!$N$52:$N$56,0)),\"\")","v":""},null,0,{"$error":"#VALUE!"}]
["Don't Show","IP48",{"$f":"IFERROR(INDEX('PR Expenditure_7A import-export'!A$52:A$56,MATCH('PR Expenditure_7A'!$B272,'PR Expenditure_7A import-export'!$N$52:$N$56,0)),\"\")","v":""},{"$f":"IFERROR(INDEX('PR Expenditure_7A import-export'!B$52:B$56,MATCH('PR Expenditure_7A'!$B272,'PR Expenditure_7A import-export'!$N$52:$N$56,0)),\"\")","v":""},{"$f":"IFERROR(INDEX('PR Expenditure_7A import-export'!C$52:C$56,MATCH('PR Expenditure_7A'!$B272,'PR Expenditure_7A import-export'!$N$52:$N$56,0)),\"\")","v":""},null,0,{"$error":"#VALUE!"},null,null,{"$f":"IFERROR(INDEX('PR Expenditure_7A import-export'!I$52:I$56,MATCH('PR Expenditure_7A'!$B272,'PR Expenditure_7A import-export'!$N$52:$N$56,0)),\"\")","v":""},null,0,{"$error":"#VALUE!"}]
["Don't Show","IP49",{"$f":"IFERROR(INDEX('PR Expenditure_7A import-export'!A$52:A$56,MATCH('PR Expenditure_7A'!$B273,'PR Expenditure_7A import-export'!$N$52:$N$56,0)),\"\")","v":""},{"$f":"IFERROR(INDEX('PR Expenditure_7A import-export'!B$52:B$56,MATCH('PR Expenditure_7A'!$B273,'PR Expenditure_7A import-export'!$N$52:$N$56,0)),\"\")","v":""},{"$f":"IFERROR(INDEX('PR Expenditure_7A import-export'!C$52:C$56,MATCH('PR Expenditure_7A'!$B273,'PR Expenditure_7A import-export'!$N$52:$N$56,0)),\"\")","v":""},null,0,{"$error":"#VALUE!"},null,null,{"$f":"IFERROR(INDEX('PR Expenditure_7A import-export'!I$52:I$56,MATCH('PR Expenditure_7A'!$B273,'PR Expenditure_7A import-export'!$N$52:$N$56,0)),\"\")","v":""},null,0,{"$error":"#VALUE!"}]
["Don't Show","IP50",{"$f":"IFERROR(INDEX('PR Expenditure_7A import-export'!A$52:A$56,MATCH('PR Expenditure_7A'!$B274,'PR Expenditure_7A import-export'!$N$52:$N$56,0)),\"\")","v":""},{"$f":"IFERROR(INDEX('PR Expenditure_7A import-export'!B$52:B$56,MATCH('PR Expenditure_7A'!$B274,'PR Expenditure_7A import-export'!$N$52:$N$56,0)),\"\")","v":""},{"$f":"IFERROR(INDEX('PR Expenditure_7A import-export'!C$52:C$56,MATCH('PR Expenditure_7A'!$B274,'PR Expenditure_7A import-export'!$N$52:$N$56,0)),\"\")","v":""},null,0,{"$error":"#VALUE!"},null,null,{"$f":"IFERROR(INDEX('PR Expenditure_7A import-export'!I$52:I$56,MATCH('PR Expenditure_7A'!$B274,'PR Expenditure_7A import-export'!$N$52:$N$56,0)),\"\")","v":""},null,0,{"$error":"#VALUE!"}]
["Show",null,"Grand Total",null,{"$f":"ROUND(SUM(E225:E274),2)","v":4057896.79},{"$f":"ROUND(SUM(F225:F274),2)","v":714241.57},{"$f":"ROUND(SUM(G225:G274),2)","v":3343655.22},{"$f":"(F275/E275)*100","v":17.601274920548189},null,null,{"$f":"ROUND(SUM(K225:K274),2)","v":4057896.79},{"$f":"ROUND(SUM(L225:L274),2)","v":714241.57},{"$f":"ROUND(SUM(M225:M274),2)","v":3343655.22},{"$f":"(L275/K275)","v":0.17601274920548188}]
[]
["Show"]
["Show",null,"Validation of Grand Total ",null,{"$f":"IF(AND(ROUND(E99,0)=ROUND(E220,0),ROUND(E220,0)=ROUND(E275,0)),\"OK\",\"WARNING - Sum of the three tables not matching\")","v":"OK"},{"$f":"IF(AND(ROUND(F99,0)=ROUND(F220,0),ROUND(F220,0)=ROUND(F275,0)),\"OK\",\"WARNING - Sum of the three tables not matching\")","v":"OK"},null,null,null,null,{"$f":"IF(AND(ROUND(K99,0)=ROUND(K220,0),ROUND(K220,0)=ROUND(K275,0)),\"OK\",\"WARNING - Sum of the three tables not matching\")","v":"OK"},{"$f":"IF(AND(ROUND(L99,0)=ROUND(L220,0),ROUND(L220,0)=ROUND(L275,0)),\"OK\",\"WARNING - Sum of the three tables not matching\")","v":"OK"}]

{"sheet":"PR Expenditure_7A import-export","index":31,"n_rows":74,"n_cols":28,"rows_kept":74,"cut":false,"hidden":true,"merged":[]}
["Costing Dimension (Cost Grouping)",null,"Budget for Reporting Period","Actual Expenditure","Budget Vs Actual Variances","Absorption Rate","Explanation of Variances (mandatory for all percentages below 95% & above 105%)",null,"Cumulative Budget","Cumulative Actual Expenditure","Cumulative Budget Vs Actuals Variances","Absorption Rate",-1,null,"Record ID","Cost Grouping Number","Cost Grouping Number"]
["[Costing Dimension (Cost Grouping)]",null,"[Budget for Reporting Period]",{"$f":"IFERROR(INDEX('PR Expenditure_7A'!F$9:F$98,MATCH('PR Expenditure_7A import-export'!N2,'PR Expenditure_7A'!B$9:B$98,0)),\"\")","v":""},null,null,null,null,"[Cumulative Budget]",{"$f":"IFERROR(INDEX('PR Expenditure_7A'!L$9:L$98,MATCH('PR Expenditure_7A import-export'!N2,'PR Expenditure_7A'!B$9:B$98,0)),\"\")","v":""},null,null,{"$f":"M1+1","v":0},{"$f":"\"Costgrp\"&M2","v":"Costgrp0"},"[Record ID]","[Cost Grouping Number]","[Cost Grouping Number]"]
["1. Human Resources (HR)",null,1005908.79914906,{"$f":"IFERROR(INDEX('PR Expenditure_7A'!F$9:F$98,MATCH('PR Expenditure_7A import-export'!N3,'PR Expenditure_7A'!B$9:B$98,0)),\"\")","v":377439.69},null,null,null,null,1005908.79914906,{"$f":"IFERROR(INDEX('PR Expenditure_7A'!L$9:L$98,MATCH('PR Expenditure_7A import-export'!N3,'PR Expenditure_7A'!B$9:B$98,0)),\"\")","v":377439.69},null,null,{"$f":"M2+1","v":1},{"$f":"\"Costgrp\"&M3","v":"Costgrp1"},"a2G36000001u8CcEAI",null,1]
["10. Communication Material and Publications (CMP)",null,3469.2620152808299,{"$f":"IFERROR(INDEX('PR Expenditure_7A'!F$9:F$98,MATCH('PR Expenditure_7A import-export'!N4,'PR Expenditure_7A'!B$9:B$98,0)),\"\")","v":0},null,null,null,null,3469.2620152808299,{"$f":"IFERROR(INDEX('PR Expenditure_7A'!L$9:L$98,MATCH('PR Expenditure_7A import-export'!N4,'PR Expenditure_7A'!B$9:B$98,0)),\"\")","v":0},null,null,2,"Costgrp2","a2G36000001u8ChEAI",null,10]
["11. Programme Administration costs (PA)",null,377924.55271437601,{"$f":"IFERROR(INDEX('PR Expenditure_7A'!F$9:F$98,MATCH('PR Expenditure_7A import-export'!N5,'PR Expenditure_7A'!B$9:B$98,0)),\"\")","v":121316.6},null,null,null,null,377924.55271437601,{"$f":"IFERROR(INDEX('PR Expenditure_7A'!L$9:L$98,MATCH('PR Expenditure_7A import-export'!N5,'PR Expenditure_7A'!B$9:B$98,0)),\"\")","v":121316.6},null,null,3,"Costgrp3","a2G36000001u8CaEAI",null,11]
["12. Living support to client/ target population (LSCTP)",null,0,{"$f":"IFERROR(INDEX('PR Expenditure_7A'!F$9:F$98,MATCH('PR Expenditure_7A import-export'!N6,'PR Expenditure_7A'!B$9:B$98,0)),\"\")","v":0},null,null,null,null,0,{"$f":"IFERROR(INDEX('PR Expenditure_7A'!L$9:L$98,MATCH('PR Expenditure_7A import-export'!N6,'PR Expenditure_7A'!B$9:B$98,0)),\"\")","v":0},null,null,4,"Costgrp4","a2G36000001u8DCEAY",null,12]
["13. Payment for Results",null,0,{"$f":"IFERROR(INDEX('PR Expenditure_7A'!F$9:F$98,MATCH('PR Expenditure_7A import-export'!N7,'PR Expenditure_7A'!B$9:B$98,0)),\"\")","v":0},null,null,null,null,0,{"$f":"IFERROR(INDEX('PR Expenditure_7A'!L$9:L$98,MATCH('PR Expenditure_7A import-export'!N7,'PR Expenditure_7A'!B$9:B$98,0)),\"\")","v":0},null,null,5,"Costgrp5","a2G36000001u8DDEAY",null,13]
["2. Travel related costs (TRC)",null,184199.43522428701,{"$f":"IFERROR(INDEX('PR Expenditure_7A'!F$9:F$98,MATCH('PR Expenditure_7A import-export'!N8,'PR Expenditure_7A'!B$9:B$98,0)),\"\")","v":86752.16},null,null,null,null,184199.43522428701,{"$f":"IFERROR(INDEX('PR Expenditure_7A'!L$9:L$98,MATCH('PR Expenditure_7A import-export'!N8,'PR Expenditure_7A'!B$9:B$98,0)),\"\")","v":86752.16},null,null,6,"Costgrp6","a2G36000001u8CSEAY",null,2]
["3. External Professional services (EPS)",null,13200,{"$f":"IFERROR(INDEX('PR Expenditure_7A'!F$9:F$98,MATCH('PR Expenditure_7A import-export'!N9,'PR Expenditure_7A'!B$9:B$98,0)),\"\")","v":6600},null,null,null,null,13200,{"$f":"IFERROR(INDEX('PR Expenditure_7A'!L$9:L$98,MATCH('PR Expenditure_7A import-export'!N9,'PR Expenditure_7A'!B$9:B$98,0)),\"\")","v":6600},null,null,7,"Costgrp7","a2G36000001u8CtEAI",null,3]
["4. Health Products - Pharmaceutical Products (HPPP)",null,669838,{"$f":"IFERROR(INDEX('PR Expenditure_7A'!F$9:F$98,MATCH('PR Expenditure_7A import-export'!N10,'PR Expenditure_7A'!B$9:B$98,0)),\"\")","v":0},null,null,null,null,669838,{"$f":"IFERROR(INDEX('PR Expenditure_7A'!L$9:L$98,MATCH('PR Expenditure_7A import-export'!N10,'PR Expenditure_7A'!B$9:B$98,0)),\"\")","v":0},null,null,8,"Costgrp8","a2G36000001u8D3EAI",null,4]
["5. Health Products - Non-Pharmaceuticals (HPNP)",null,1100385.8999999999,{"$f":"IFERROR(INDEX('PR Expenditure_7A'!F$9:F$98,MATCH('PR Expenditure_7A import-export'!N11,'PR Expenditure_7A'!B$9:B$98,0)),\"\")","v":8482.31},null,null,null,null,1100385.8999999999,{"$f":"IFERROR(INDEX('PR Expenditure_7A'!L$9:L$98,MATCH('PR Expenditure_7A import-export'!N11,'PR Expenditure_7A'!B$9:B$98,0)),\"\")","v":8482.31},null,null,9,"Costgrp9","a2G36000001u8D5EAI",null,5]
["6. Health Products - Equipment (HPE)",null,0,{"$f":"IFERROR(INDEX('PR Expenditure_7A'!F$9:F$98,MATCH('PR Expenditure_7A import-export'!N12,'PR Expenditure_7A'!B$9:B$98,0)),\"\")","v":0},null,null,null,null,0,{"$f":"IFERROR(INDEX('PR Expenditure_7A'!L$9:L$98,MATCH('PR Expenditure_7A import-export'!N12,'PR Expenditure_7A'!B$9:B$98,0)),\"\")","v":0},null,null,10,"Costgrp10","a2G36000001u8DEEAY",null,6]
["7. Procurement and Supply-Chain Management costs (PSM)",null,438374.24,{"$f":"IFERROR(INDEX('PR Expenditure_7A'!F$9:F$98,MATCH('PR Expenditure_7A import-export'!N13,'PR Expenditure_7A'!B$9:B$98,0)),\"\")","v":16.61},null,null,null,null,438374.24,{"$f":"IFERROR(INDEX('PR Expenditure_7A'!L$9:L$98,MATCH('PR Expenditure_7A import-export'!N13,'PR Expenditure_7A'!B$9:B$98,0)),\"\")","v":16.61},null,null,11,"Costgrp11","a2G36000001u8D7EAI",null,7]
["8. Infrastructure (INF)",null,49796,{"$f":"IFERROR(INDEX('PR Expenditure_7A'!F$9:F$98,MATCH('PR Expenditure_7A import-export'!N14,'PR Expenditure_7A'!B$9:B$98,0)),\"\")","v":10516.78},null,null,null,null,49796,{"$f":"IFERROR(INDEX('PR Expenditure_7A'!L$9:L$98,MATCH('PR Expenditure_7A import-export'!N14,'PR Expenditure_7A'!B$9:B$98,0)),\"\")","v":10516.78},null,null,12,"Costgrp12","a2G36000001u8CwEAI",null,8]
["9. Non-health equipment (NHP)",null,214800.605651608,{"$f":"IFERROR(INDEX('PR Expenditure_7A'!F$9:F$98,MATCH('PR Expenditure_7A import-export'!N15,'PR Expenditure_7A'!B$9:B$98,0)),\"\")","v":103117.42},null,null,null,null,214800.605651608,{"$f":"IFERROR(INDEX('PR Expenditure_7A'!L$9:L$98,MATCH('PR Expenditure_7A import-export'!N15,'PR Expenditure_7A'!B$9:B$98,0)),\"\")","v":103117.42},null,null,13,"Costgrp13","a2G36000001u8CmEAI",null,9]
[null,null,null,null,null,null,null,null,null,null,null,null,-1,null,"Record ID","Cost Grouping Number","Cost Input Number"]
["[Costing Dimension (Cost Input)]",null,"[Budget for Reporting Period]",{"$f":"IFERROR(INDEX('PR Expenditure_7A'!F$9:F$98,MATCH('PR Expenditure_7A import-export'!N17,'PR Expenditure_7A'!B$9:B$25,0)),\"\")","v":""},null,null,null,null,"[Cumulative Budget]",{"$f":"IFERROR(INDEX('PR Expenditure_7A'!L$9:L$98,MATCH('PR Expenditure_7A import-export'!N17,'PR Expenditure_7A'!B$9:B$25,0)),\"\")","v":""},null,null,{"$f":"M16+1","v":0},{"$f":"\"Costgrp\"&M17","v":"Costgrp0"},"[Record ID]","[Cost Grouping Number]","[Cost Input Number]"]
[null,null,null,null,null,null,null,null,null,null,null,null,-1,null,"Record ID",null,null,null,"Cost Input"]
[{"$f":"IFERROR(INDEX('PR Expenditure_7A'!C$9:C$25,MATCH('PR Expenditure_7A import-export'!N19,'PR Expenditure_7A'!B$9:B$25,0)),\"\")","v":""},null,"[Budget for Reporting Period]",{"$f":"IFERROR(INDEX('PR Expenditure_7A'!F$9:F$98,MATCH('PR Expenditure_7A import-export'!N19,'PR Expenditure_7A'!B$9:B$25,0)),\"\")","v":""},null,null,null,null,"[Cumulative Budget]",{"$f":"IFERROR(INDEX('PR Expenditure_7A'!L$9:L$98,MATCH('PR Expenditure_7A import-export'!N19,'PR Expenditure_7A'!B$9:B$25,0)),\"\")","v":""},null,null,0,{"$f":"\"Costgrpnew\"&M19","v":"Costgrpnew0"},"[Record ID]",null,null,null,{"$f":"IF(A19<>\"\",VLOOKUP(A19,'Reference Records'!$E$94:$G$95,3,FALSE),\"\")","v":""}]
[]
["Modular Approach - Modules","Modular Approach - Interventions","Budget for Reporting Period","Actual Expenditure","Budget Vs Actual Variances","Absorption Rate","Explanation of Variances (mandatory for all percentages below 95% & above 105%)",null,"Cumulative Budget","Cumulative Actual Expenditure","Cumulative Budget Vs Actuals Variances","Absorption Rate",-1,null,"Record ID"]
["[Module]","[Intervention]","[Budget for Reporting Period]",{"$f":"IFERROR(INDEX('PR Expenditure_7A'!F$104:F$203,MATCH('PR Expenditure_7A import-export'!N22,'PR Expenditure_7A'!B$104:B$203,0)),\"\")","v":""},null,null,null,null,"[Cumulative Budget]",{"$f":"IFERROR(INDEX('PR Expenditure_7A'!L$104:L$203,MATCH('PR Expenditure_7A import-export'!N22,'PR Expenditure_7A'!B$104:B$203,0)),\"\")","v":""},null,null,{"$f":"M21+1","v":0},{"$f":"\"Int\"&M22","v":"Int0"},"[Record ID]"]
["Vector control","IEC/BCC (Vector control)",54087.803655188698,{"$f":"IFERROR(INDEX('PR Expenditure_7A'!F$104:F$203,MATCH('PR Expenditure_7A import-export'!N23,'PR Expenditure_7A'!B$104:B$203,0)),\"\")","v":25716.67},null,null,null,null,54087.803655188698,{"$f":"IFERROR(INDEX('PR Expenditure_7A'!L$104:L$203,MATCH('PR Expenditure_7A import-export'!N23,'PR Expenditure_7A'!B$104:B$203,0)),\"\")","v":25716.67},null,null,{"$f":"M22+1","v":1},{"$f":"\"Int\"&M23","v":"Int1"},"a2G36000001u8CQEAY"]
["RSSH: Health management information systems and M&E","Analysis, review and transparency",3390,{"$f":"IFERROR(INDEX('PR Expenditure_7A'!F$104:F$203,MATCH('PR Expenditure_7A import-export'!N24,'PR Expenditure_7A'!B$104:B$203,0)),\"\")","v":0},null,null,null,null,3390,{"$f":"IFERROR(INDEX('PR Expenditure_7A'!L$104:L$203,MATCH('PR Expenditure_7A import-export'!N24,'PR Expenditure_7A'!B$104:B$203,0)),\"\")","v":0},null,null,2,"Int2","a2G36000001u8CWEAY"]
["Program management","Policy, planning, coordination and management of national disease control programs",92875.790708516404,{"$f":"IFERROR(INDEX('PR Expenditure_7A'!F$104:F$203,MATCH('PR Expenditure_7A import-export'!N25,'PR Expenditure_7A'!B$104:B$203,0)),\"\")","v":21699.849999999995},null,null,null,null,92875.790708516404,{"$f":"IFERROR(INDEX('PR Expenditure_7A'!L$104:L$203,MATCH('PR Expenditure_7A import-export'!N25,'PR Expenditure_7A'!B$104:B$203,0)),\"\")","v":21699.849999999995},null,null,3,"Int3","a2G36000001u8CZEAY"]
["RSSH: Health management information systems and M&E","Program and data quality",55228.813697177298,{"$f":"IFERROR(INDEX('PR Expenditure_7A'!F$104:F$203,MATCH('PR Expenditure_7A import-export'!N26,'PR Expenditure_7A'!B$104:B$203,0)),\"\")","v":21734.55},null,null,null,null,55228.813697177298,{"$f":"IFERROR(INDEX('PR Expenditure_7A'!L$104:L$203,MATCH('PR Expenditure_7A import-export'!N26,'PR Expenditure_7A'!B$104:B$203,0)),\"\")","v":21734.55},null,null,4,"Int4","a2G36000001u8CfEAI"]
["RSSH: Health management information systems and M&E","Surveys",0,{"$f":"IFERROR(INDEX('PR Expenditure_7A'!F$104:F$203,MATCH('PR Expenditure_7A import-export'!N27,'PR Expenditure_7A'!B$104:B$203,0)),\"\")","v":0},null,null,null,null,0,{"$f":"IFERROR(INDEX('PR Expenditure_7A'!L$104:L$203,MATCH('PR Expenditure_7A import-export'!N27,'PR Expenditure_7A'!B$104:B$203,0)),\"\")","v":0},null,null,5,"Int5","a2G36000001u8CjEAI"]
["RSSH: Financial management systems","Routine financial management improvement (non-PFM)",0,{"$f":"IFERROR(INDEX('PR Expenditure_7A'!F$104:F$203,MATCH('PR Expenditure_7A import-export'!N28,'PR Expenditure_7A'!B$104:B$203,0)),\"\")","v":0},null,null,null,null,0,{"$f":"IFERROR(INDEX('PR Expenditure_7A'!L$104:L$203,MATCH('PR Expenditure_7A import-export'!N28,'PR Expenditure_7A'!B$104:B$203,0)),\"\")","v":0},null,null,6,"Int6","a2G36000001u8CkEAI"]
["Case management","Integrated community case management (ICCM)",402240.35134409199,{"$f":"IFERROR(INDEX('PR Expenditure_7A'!F$104:F$203,MATCH('PR Expenditure_7A import-export'!N29,'PR Expenditure_7A'!B$104:B$203,0)),\"\")","v":0},null,null,null,null,402240.35134409199,{"$f":"IFERROR(INDEX('PR Expenditure_7A'!L$104:L$203,MATCH('PR Expenditure_7A import-export'!N29,'PR Expenditure_7A'!B$104:B$203,0)),\"\")","v":0},null,null,7,"Int7","a2G36000001u8ClEAI"]
["Case management","Private sector case management",3313.9672872015599,{"$f":"IFERROR(INDEX('PR Expenditure_7A'!F$104:F$203,MATCH('PR Expenditure_7A import-export'!N30,'PR Expenditure_7A'!B$104:B$203,0)),\"\")","v":0},null,null,null,null,3313.9672872015599,{"$f":"IFERROR(INDEX('PR Expenditure_7A'!L$104:L$203,MATCH('PR Expenditure_7A import-export'!N30,'PR Expenditure_7A'!B$104:B$203,0)),\"\")","v":0},null,null,8,"Int8","a2G36000001u8CpEAI"]
["Program management","Grant management",1238161.9280624299,{"$f":"IFERROR(INDEX('PR Expenditure_7A'!F$104:F$203,MATCH('PR Expenditure_7A import-export'!N31,'PR Expenditure_7A'!B$104:B$203,0)),\"\")","v":636591.57999999996},null,null,null,null,1238161.9280624299,{"$f":"IFERROR(INDEX('PR Expenditure_7A'!L$104:L$203,MATCH('PR Expenditure_7A import-export'!N31,'PR Expenditure_7A'!B$104:B$203,0)),\"\")","v":636591.57999999996},null,null,9,"Int9","a2G36000001u8CrEAI"]
["Case management","Facility-based treatment",2208598.14,{"$f":"IFERROR(INDEX('PR Expenditure_7A'!F$104:F$203,MATCH('PR Expenditure_7A import-export'!N32,'PR Expenditure_7A'!B$104:B$203,0)),\"\")","v":8498.9200000000019},null,null,null,null,2208598.14,{"$f":"IFERROR(INDEX('PR Expenditure_7A'!L$104:L$203,MATCH('PR Expenditure_7A import-export'!N32,'PR Expenditure_7A'!B$104:B$203,0)),\"\")","v":8498.9200000000019},null,null,10,"Int10","a2G36000001u8D2EAI"]
[null,null,null,null,null,null,null,null,null,null,null,null,-1,null,"ModuleName",null,"Record ID"]
[{"$f":"IFERROR(INDEX('PR Expenditure_7A'!C$204:C$219,MATCH('PR Expenditure_7A import-export'!N34,'PR Expenditure_7A'!B$204:B$219,0)),\"\")","v":""},{"$f":"IFERROR(INDEX('PR Expenditure_7A'!D$204:D$219,MATCH('PR Expenditure_7A import-export'!N34,'PR Expenditure_7A'!B$204:B$219,0)),\"\")","v":""},"[Budget for Reporting Period]",{"$f":"IFERROR(INDEX('PR Expenditure_7A'!F$204:F$219,MATCH('PR Expenditure_7A import-export'!N34,'PR Expenditure_7A'!B$204:B$219,0)),\"\")","v":""},null,null,null,null,"[Cumulative Budget]",{"$f":"IFERROR(INDEX('PR Expenditure_7A'!L$204:L$219,MATCH('PR Expenditure_7A import-export'!N34,'PR Expenditure_7A'!B$204:B$219,0)),\"\")","v":""},null,null,{"$f":"M33+1","v":0},{"$f":"\"NewMod\"&M34","v":"NewMod0"},{"$f":"IFERROR(IF(VLOOKUP(A34,'Reference Records'!$B$12:$D$25,3,FALSE)=0,\"\",VLOOKUP(A34,'Reference Records'!$B$12:$D$25,3,FALSE)),\"\")","v":""},null,"[Record ID]"]
[{"$f":"IFERROR(INDEX('PR Expenditure_7A'!C$204:C$219,MATCH('PR Expenditure_7A import-export'!N35,'PR Expenditure_7A'!B$204:B$219,0)),\"\")","v":0},{"$f":"IFERROR(INDEX('PR Expenditure_7A'!D$204:D$219,MATCH('PR Expenditure_7A import-export'!N35,'PR Expenditure_7A'!B$204:B$219,0)),\"\")","v":0},0,{"$f":"IFERROR(INDEX('PR Expenditure_7A'!F$204:F$219,MATCH('PR Expenditure_7A import-export'!N35,'PR Expenditure_7A'!B$204:B$219,0)),\"\")","v":0},null,null,null,null,0,{"$f":"IFERROR(INDEX('PR Expenditure_7A'!L$204:L$219,MATCH('PR Expenditure_7A import-export'!N35,'PR Expenditure_7A'!B$204:B$219,0)),\"\")","v":0},null,null,{"$f":"M34+1","v":1},{"$f":"\"NewMod\"&M35","v":"NewMod1"},{"$f":"IFERROR(IF(VLOOKUP(A35,'Reference Records'!$B$12:$D$25,3,FALSE)=0,\"\",VLOOKUP(A35,'Reference Records'!$B$12:$D$25,3,FALSE)),\"\")","v":""},null,"a2G36000001u8DFEAY"]
[{"$f":"IFERROR(INDEX('PR Expenditure_7A'!C$204:C$219,MATCH('PR Expenditure_7A import-export'!N36,'PR Expenditure_7A'!B$204:B$219,0)),\"\")","v":0},{"$f":"IFERROR(INDEX('PR Expenditure_7A'!D$204:D$219,MATCH('PR Expenditure_7A import-export'!N36,'PR Expenditure_7A'!B$204:B$219,0)),\"\")","v":0},0,{"$f":"IFERROR(INDEX('PR Expenditure_7A'!F$204:F$219,MATCH('PR Expenditure_7A import-export'!N36,'PR Expenditure_7A'!B$204:B$219,0)),\"\")","v":0},null,null,null,null,0,{"$f":"IFERROR(INDEX('PR Expenditure_7A'!L$204:L$219,MATCH('PR Expenditure_7A import-export'!N36,'PR Expenditure_7A'!B$204:B$219,0)),\"\")","v":0},null,null,2,"NewMod2",{"$f":"IFERROR(IF(VLOOKUP(A36,'Reference Records'!$B$12:$D$25,3,FALSE)=0,\"\",VLOOKUP(A36,'Reference Records'!$B$12:$D$25,3,FALSE)),\"\")","v":""},null,"a2G36000001u8DGEAY"]
[{"$f":"IFERROR(INDEX('PR Expenditure_7A'!C$204:C$219,MATCH('PR Expenditure_7A import-export'!N37,'PR Expenditure_7A'!B$204:B$219,0)),\"\")","v":0},{"$f":"IFERROR(INDEX('PR Expenditure_7A'!D$204:D$219,MATCH('PR Expenditure_7A import-export'!N37,'PR Expenditure_7A'!B$204:B$219,0)),\"\")","v":0},0,{"$f":"IFERROR(INDEX('PR Expenditure_7A'!F$204:F$219,MATCH('PR Expenditure_7A import-export'!N37,'PR Expenditure_7A'!B$204:B$219,0)),\"\")","v":0},null,null,null,null,0,{"$f":"IFERROR(INDEX('PR Expenditure_7A'!L$204:L$219,MATCH('PR Expenditure_7A import-export'!N37,'PR Expenditure_7A'!B$204:B$219,0)),\"\")","v":0},null,null,3,"NewMod3",{"$f":"IFERROR(IF(VLOOKUP(A37,'Reference Records'!$B$12:$D$25,3,FALSE)=0,\"\",VLOOKUP(A37,'Reference Records'!$B$12:$D$25,3,FALSE)),\"\")","v":""},null,"a2G36000001u8DHEAY"]
[{"$f":"IFERROR(INDEX('PR Expenditure_7A'!C$204:C$219,MATCH('PR Expenditure_7A import-export'!N38,'PR Expenditure_7A'!B$204:B$219,0)),\"\")","v":0},{"$f":"IFERROR(INDEX('PR Expenditure_7A'!D$204:D$219,MATCH('PR Expenditure_7A import-export'!N38,'PR Expenditure_7A'!B$204:B$219,0)),\"\")","v":0},0,{"$f":"IFERROR(INDEX('PR Expenditure_7A'!F$204:F$219,MATCH('PR Expenditure_7A import-export'!N38,'PR Expenditure_7A'!B$204:B$219,0)),\"\")","v":0},null,null,null,null,0,{"$f":"IFERROR(INDEX('PR Expenditure_7A'!L$204:L$219,MATCH('PR Expenditure_7A import-export'!N38,'PR Expenditure_7A'!B$204:B$219,0)),\"\")","v":0},null,null,4,"NewMod4",{"$f":"IFERROR(IF(VLOOKUP(A38,'Reference Records'!$B$12:$D$25,3,FALSE)=0,\"\",VLOOKUP(A38,'Reference Records'!$B$12:$D$25,3,FALSE)),\"\")","v":""},null,"a2G36000001u8DIEAY"]
[{"$f":"IFERROR(INDEX('PR Expenditure_7A'!C$204:C$219,MATCH('PR Expenditure_7A import-export'!N39,'PR Expenditure_7A'!B$204:B$219,0)),\"\")","v":0},{"$f":"IFERROR(INDEX('PR Expenditure_7A'!D$204:D$219,MATCH('PR Expenditure_7A import-export'!N39,'PR Expenditure_7A'!B$204:B$219,0)),\"\")","v":0},0,{"$f":"IFERROR(INDEX('PR Expenditure_7A'!F$204:F$219,MATCH('PR Expenditure_7A import-export'!N39,'PR Expenditure_7A'!B$204:B$219,0)),\"\")","v":0},null,null,null,null,0,{"$f":"IFERROR(INDEX('PR Expenditure_7A'!L$204:L$219,MATCH('PR Expenditure_7A import-export'!N39,'PR Expenditure_7A'!B$204:B$219,0)),\"\")","v":0},null,null,5,"NewMod5",{"$f":"IFERROR(IF(VLOOKUP(A39,'Reference Records'!$B$12:$D$25,3,FALSE)=0,\"\",VLOOKUP(A39,'Reference Records'!$B$12:$D$25,3,FALSE)),\"\")","v":""},null,"a2G36000001u8DJEAY"]
[{"$f":"IFERROR(INDEX('PR Expenditure_7A'!C$204:C$219,MATCH('PR Expenditure_7A import-export'!N40,'PR Expenditure_7A'!B$204:B$219,0)),\"\")","v":0},{"$f":"IFERROR(INDEX('PR Expenditure_7A'!D$204:D$219,MATCH('PR Expenditure_7A import-export'!N40,'PR Expenditure_7A'!B$204:B$219,0)),\"\")","v":0},0,{"$f":"IFERROR(INDEX('PR Expenditure_7A'!F$204:F$219,MATCH('PR Expenditure_7A import-export'!N40,'PR Expenditure_7A'!B$204:B$219,0)),\"\")","v":0},null,null,null,null,0,{"$f":"IFERROR(INDEX('PR Expenditure_7A'!L$204:L$219,MATCH('PR Expenditure_7A import-export'!N40,'PR Expenditure_7A'!B$204:B$219,0)),\"\")","v":0},null,null,6,"NewMod6",{"$f":"IFERROR(IF(VLOOKUP(A40,'Reference Records'!$B$12:$D$25,3,FALSE)=0,\"\",VLOOKUP(A40,'Reference Records'!$B$12:$D$25,3,FALSE)),\"\")","v":""},null,"a2G36000001u8DKEAY"]
[{"$f":"IFERROR(INDEX('PR Expenditure_7A'!C$204:C$219,MATCH('PR Expenditure_7A import-export'!N41,'PR Expenditure_7A'!B$204:B$219,0)),\"\")","v":0},{"$f":"IFERROR(INDEX('PR Expenditure_7A'!D$204:D$219,MATCH('PR Expenditure_7A import-export'!N41,'PR Expenditure_7A'!B$204:B$219,0)),\"\")","v":0},0,{"$f":"IFERROR(INDEX('PR Expenditure_7A'!F$204:F$219,MATCH('PR Expenditure_7A import-export'!N41,'PR Expenditure_7A'!B$204:B$219,0)),\"\")","v":0},null,null,null,null,0,{"$f":"IFERROR(INDEX('PR Expenditure_7A'!L$204:L$219,MATCH('PR Expenditure_7A import-export'!N41,'PR Expenditure_7A'!B$204:B$219,0)),\"\")","v":0},null,null,7,"NewMod7",{"$f":"IFERROR(IF(VLOOKUP(A41,'Reference Records'!$B$12:$D$25,3,FALSE)=0,\"\",VLOOKUP(A41,'Reference Records'!$B$12:$D$25,3,FALSE)),\"\")","v":""},null,"a2G36000001u8DLEAY"]
[{"$f":"IFERROR(INDEX('PR Expenditure_7A'!C$204:C$219,MATCH('PR Expenditure_7A import-export'!N42,'PR Expenditure_7A'!B$204:B$219,0)),\"\")","v":0},{"$f":"IFERROR(INDEX('PR Expenditure_7A'!D$204:D$219,MATCH('PR Expenditure_7A import-export'!N42,'PR Expenditure_7A'!B$204:B$219,0)),\"\")","v":0},0,{"$f":"IFERROR(INDEX('PR Expenditure_7A'!F$204:F$219,MATCH('PR Expenditure_7A import-export'!N42,'PR Expenditure_7A'!B$204:B$219,0)),\"\")","v":0},null,null,null,null,0,{"$f":"IFERROR(INDEX('PR Expenditure_7A'!L$204:L$219,MATCH('PR Expenditure_7A import-export'!N42,'PR Expenditure_7A'!B$204:B$219,0)),\"\")","v":0},null,null,8,"NewMod8",{"$f":"IFERROR(IF(VLOOKUP(A42,'Reference Records'!$B$12:$D$25,3,FALSE)=0,\"\",VLOOKUP(A42,'Reference Records'!$B$12:$D$25,3,FALSE)),\"\")","v":""},null,"a2G36000001u8DMEAY"]
[{"$f":"IFERROR(INDEX('PR Expenditure_7A'!C$204:C$219,MATCH('PR Expenditure_7A import-export'!N43,'PR Expenditure_7A'!B$204:B$219,0)),\"\")","v":0},{"$f":"IFERROR(INDEX('PR Expenditure_7A'!D$204:D$219,MATCH('PR Expenditure_7A import-export'!N43,'PR Expenditure_7A'!B$204:B$219,0)),\"\")","v":0},0,{"$f":"IFERROR(INDEX('PR Expenditure_7A'!F$204:F$219,MATCH('PR Expenditure_7A import-export'!N43,'PR Expenditure_7A'!B$204:B$219,0)),\"\")","v":0},null,null,null,null,0,{"$f":"IFERROR(INDEX('PR Expenditure_7A'!L$204:L$219,MATCH('PR Expenditure_7A import-export'!N43,'PR Expenditure_7A'!B$204:B$219,0)),\"\")","v":0},null,null,9,"NewMod9",{"$f":"IFERROR(IF(VLOOKUP(A43,'Reference Records'!$B$12:$D$25,3,FALSE)=0,\"\",VLOOKUP(A43,'Reference Records'!$B$12:$D$25,3,FALSE)),\"\")","v":""},null,"a2G36000001u8DNEAY"]
[{"$f":"IFERROR(INDEX('PR Expenditure_7A'!C$204:C$219,MATCH('PR Expenditure_7A import-export'!N44,'PR Expenditure_7A'!B$204:B$219,0)),\"\")","v":0},{"$f":"IFERROR(INDEX('PR Expenditure_7A'!D$204:D$219,MATCH('PR Expenditure_7A import-export'!N44,'PR Expenditure_7A'!B$204:B$219,0)),\"\")","v":0},0,{"$f":"IFERROR(INDEX('PR Expenditure_7A'!F$204:F$219,MATCH('PR Expenditure_7A import-export'!N44,'PR Expenditure_7A'!B$204:B$219,0)),\"\")","v":0},null,null,null,null,0,{"$f":"IFERROR(INDEX('PR Expenditure_7A'!L$204:L$219,MATCH('PR Expenditure_7A import-export'!N44,'PR Expenditure_7A'!B$204:B$219,0)),\"\")","v":0},null,null,10,"NewMod10",{"$f":"IFERROR(IF(VLOOKUP(A44,'Reference Records'!$B$12:$D$25,3,FALSE)=0,\"\",VLOOKUP(A44,'Reference Records'!$B$12:$D$25,3,FALSE)),\"\")","v":""},null,"a2G36000001u8DOEAY"]
[{"$f":"IFERROR(INDEX('PR Expenditure_7A'!C$204:C$219,MATCH('PR Expenditure_7A import-export'!N45,'PR Expenditure_7A'!B$204:B$219,0)),\"\")","v":0},{"$f":"IFERROR(INDEX('PR Expenditure_7A'!D$204:D$219,MATCH('PR Expenditure_7A import-export'!N45,'PR Expenditure_7A'!B$204:B$219,0)),\"\")","v":0},0,{"$f":"IFERROR(INDEX('PR Expenditure_7A'!F$204:F$219,MATCH('PR Expenditure_7A import-export'!N45,'PR Expenditure_7A'!B$204:B$219,0)),\"\")","v":0},null,null,null,null,0,{"$f":"IFERROR(INDEX('PR Expenditure_7A'!L$204:L$219,MATCH('PR Expenditure_7A import-export'!N45,'PR Expenditure_7A'!B$204:B$219,0)),\"\")","v":0},null,null,11,"NewMod11",{"$f":"IFERROR(IF(VLOOKUP(A45,'Reference Records'!$B$12:$D$25,3,FALSE)=0,\"\",VLOOKUP(A45,'Reference Records'!$B$12:$D$25,3,FALSE)),\"\")","v":""},null,"a2G36000001u8DPEAY"]
[{"$f":"IFERROR(INDEX('PR Expenditure_7A'!C$204:C$219,MATCH('PR Expenditure_7A import-export'!N46,'PR Expenditure_7A'!B$204:B$219,0)),\"\")","v":0},{"$f":"IFERROR(INDEX('PR Expenditure_7A'!D$204:D$219,MATCH('PR Expenditure_7A import-export'!N46,'PR Expenditure_7A'!B$204:B$219,0)),\"\")","v":0},0,{"$f":"IFERROR(INDEX('PR Expenditure_7A'!F$204:F$219,MATCH('PR Expenditure_7A import-export'!N46,'PR Expenditure_7A'!B$204:B$219,0)),\"\")","v":0},null,null,null,null,0,{"$f":"IFERROR(INDEX('PR Expenditure_7A'!L$204:L$219,MATCH('PR Expenditure_7A import-export'!N46,'PR Expenditure_7A'!B$204:B$219,0)),\"\")","v":0},null,null,12,"NewMod12",{"$f":"IFERROR(IF(VLOOKUP(A46,'Reference Records'!$B$12:$D$25,3,FALSE)=0,\"\",VLOOKUP(A46,'Reference Records'!$B$12:$D$25,3,FALSE)),\"\")","v":""},null,"a2G36000001u8DQEAY"]
[{"$f":"IFERROR(INDEX('PR Expenditure_7A'!C$204:C$219,MATCH('PR Expenditure_7A import-export'!N47,'PR Expenditure_7A'!B$204:B$219,0)),\"\")","v":0},{"$f":"IFERROR(INDEX('PR Expenditure_7A'!D$204:D$219,MATCH('PR Expenditure_7A import-export'!N47,'PR Expenditure_7A'!B$204:B$219,0)),\"\")","v":0},0,{"$f":"IFERROR(INDEX('PR Expenditure_7A'!F$204:F$219,MATCH('PR Expenditure_7A import-export'!N47,'PR Expenditure_7A'!B$204:B$219,0)),\"\")","v":0},null,null,null,null,0,{"$f":"IFERROR(INDEX('PR Expenditure_7A'!L$204:L$219,MATCH('PR Expenditure_7A import-export'!N47,'PR Expenditure_7A'!B$204:B$219,0)),\"\")","v":0},null,null,13,"NewMod13",{"$f":"IFERROR(IF(VLOOKUP(A47,'Reference Records'!$B$12:$D$25,3,FALSE)=0,\"\",VLOOKUP(A47,'Reference Records'!$B$12:$D$25,3,FALSE)),\"\")","v":""},null,"a2G36000001u8DREAY"]
[{"$f":"IFERROR(INDEX('PR Expenditure_7A'!C$204:C$219,MATCH('PR Expenditure_7A import-export'!N48,'PR Expenditure_7A'!B$204:B$219,0)),\"\")","v":0},{"$f":"IFERROR(INDEX('PR Expenditure_7A'!D$204:D$219,MATCH('PR Expenditure_7A import-export'!N48,'PR Expenditure_7A'!B$204:B$219,0)),\"\")","v":0},0,{"$f":"IFERROR(INDEX('PR Expenditure_7A'!F$204:F$219,MATCH('PR Expenditure_7A import-export'!N48,'PR Expenditure_7A'!B$204:B$219,0)),\"\")","v":0},null,null,null,null,0,{"$f":"IFERROR(INDEX('PR Expenditure_7A'!L$204:L$219,MATCH('PR Expenditure_7A import-export'!N48,'PR Expenditure_7A'!B$204:B$219,0)),\"\")","v":0},null,null,14,"NewMod14",{"$f":"IFERROR(IF(VLOOKUP(A48,'Reference Records'!$B$12:$D$25,3,FALSE)=0,\"\",VLOOKUP(A48,'Reference Records'!$B$12:$D$25,3,FALSE)),\"\")","v":""},null,"a2G36000001u8DSEAY"]
[{"$f":"IFERROR(INDEX('PR Expenditure_7A'!C$204:C$219,MATCH('PR Expenditure_7A import-export'!N49,'PR Expenditure_7A'!B$204:B$219,0)),\"\")","v":0},{"$f":"IFERROR(INDEX('PR Expenditure_7A'!D$204:D$219,MATCH('PR Expenditure_7A import-export'!N49,'PR Expenditure_7A'!B$204:B$219,0)),\"\")","v":0},0,{"$f":"IFERROR(INDEX('PR Expenditure_7A'!F$204:F$219,MATCH('PR Expenditure_7A import-export'!N49,'PR Expenditure_7A'!B$204:B$219,0)),\"\")","v":0},null,null,null,null,0,{"$f":"IFERROR(INDEX('PR Expenditure_7A'!L$204:L$219,MATCH('PR Expenditure_7A import-export'!N49,'PR Expenditure_7A'!B$204:B$219,0)),\"\")","v":0},null,null,15,"NewMod15",{"$f":"IFERROR(IF(VLOOKUP(A49,'Reference Records'!$B$12:$D$25,3,FALSE)=0,\"\",VLOOKUP(A49,'Reference Records'!$B$12:$D$25,3,FALSE)),\"\")","v":""},null,"a2G36000001u8DTEAY"]
[]
["Implementing Entity","Type of Implementing Entity","Budget for Reporting Period","Actual Expenditure","Budget Vs Actual Variances","Absorption Rate","Explanation of Variances (mandatory for all percentages below 95% & above 105%)",null,"Cumulative Budget","Cumulative Actual Expenditure","Cumulative Budget Vs Actuals Variances","Absorption Rate",-1,null,"Record ID"]
["[Implementing Entity to display]","[Full Type]","[Budget for Reporting Period]",{"$f":"IFERROR(INDEX('PR Expenditure_7A'!F$225:F$274,MATCH('PR Expenditure_7A import-export'!N52,'PR Expenditure_7A'!B$225:B$274,0)),\"\")","v":""},null,null,null,null,"[Cumulative Budget]",{"$f":"IFERROR(INDEX('PR Expenditure_7A'!L$225:L$274,MATCH('PR Expenditure_7A import-export'!N52,'PR Expenditure_7A'!B$225:B$274,0)),\"\")","v":""},null,null,{"$f":"M51+1","v":0},{"$f":"\"IP\"&M52","v":"IP0"},"[Record ID]",null,null,null,null,null,null,null,null,null,null,null,null,"Type of Recipient"]
["CED-Caritas","-",510939.31497165601,{"$f":"IFERROR(INDEX('PR Expenditure_7A'!F$225:F$274,MATCH('PR Expenditure_7A import-export'!N53,'PR Expenditure_7A'!B$225:B$274,0)),\"\")","v":94503.7},null,null,null,null,510939.31497165601,{"$f":"IFERROR(INDEX('PR Expenditure_7A'!L$225:L$274,MATCH('PR Expenditure_7A import-export'!N53,'PR Expenditure_7A'!B$225:B$274,0)),\"\")","v":94503.7},null,null,{"$f":"M52+1","v":1},{"$f":"\"IP\"&M53","v":"IP1"},"a2G36000001u8CREAY"]
["Ministry of Public Health and Fight against AIDS of the Republic of Burundi","-",149775.323187081,{"$f":"IFERROR(INDEX('PR Expenditure_7A'!F$225:F$274,MATCH('PR Expenditure_7A import-export'!N54,'PR Expenditure_7A'!B$225:B$274,0)),\"\")","v":51160.03},null,null,null,null,149775.323187081,{"$f":"IFERROR(INDEX('PR Expenditure_7A'!L$225:L$274,MATCH('PR Expenditure_7A import-export'!N54,'PR Expenditure_7A'!B$225:B$274,0)),\"\")","v":51160.03},null,null,2,"IP2","a2G36000001u8CVEAY"]
["UNDP","-",3397182.1565958699,{"$f":"IFERROR(INDEX('PR Expenditure_7A'!F$225:F$274,MATCH('PR Expenditure_7A import-export'!N55,'PR Expenditure_7A'!B$225:B$274,0)),\"\")","v":568577.83999999985},null,null,null,null,3397182.1565958699,{"$f":"IFERROR(INDEX('PR Expenditure_7A'!L$225:L$274,MATCH('PR Expenditure_7A import-export'!N55,'PR Expenditure_7A'!B$225:B$274,0)),\"\")","v":568577.83999999985},null,null,3,"IP3","a2G36000001u8CXEAY"]
[]
[]
[]
[]
[]
[]
[]
[]
[]
[]
[]
[]
[]
[]
[]
[]
[]
[]
[null,null,"`"]

{"sheet":"LFA Expenditure_7B","index":32,"n_rows":277,"n_cols":21,"rows_kept":277,"cut":false,"hidden":false,"merged":[[1,6,1,7],[2,6,2,7],[0,2,0,14],[1,12,2,14]]}
[null,null,{"$f":"IF(CoverSheet!J12=\"N/A\",\"Progress Report\",\"Progress Report with Disbursement Request\")","v":"Progress Report with Disbursement Request"}]
[null,null,"Section 7B.The Principal Recipient Expenditure Report Verified by the LFA",null,null,null,{"$f":"CoverSheet!F12","v":"Period of Financial Reporting"},null,{"$f":"CoverSheet!J12","v":"2018-01-01"},null,{"$f":"CoverSheet!K12","v":"End Date:"},{"$f":"CoverSheet!L12","v":"2018-06-30"}]
[null,null,"Has the LFA Verified Principal Recipient Expenditure Report?","Select",null,null,"Cumulative Period of Financial Reporting",null,{"$f":"CoverSheet!D13","v":"2018-01-01"},null,{"$f":"CoverSheet!K12","v":"End Date:"},{"$f":"CoverSheet!L12","v":"2018-06-30"}]
[null,null,"A- BREAKDOWN BY COST GROUPING OR COST INPUT"]
[]
[null,null,null,null,"Current Reporting Period",null,null,null,null,null,null,"Cumulative for the Implementation Period"]
["Show",null,"Costing Dimension (Cost Grouping or Cost Input)",null,"Budget for Reporting Period","Actual Expenditure ","Local Fund Agent Adjustment on Expenditures","Budget Vs Actual Variances","Absorption Rate","LFA comments on the Principal Recipient's explanation of variances",null,"Cumulative Budget","Cumulative Actual Expenditure","Cumulative Budget Vs Actuals Variances","Absorption Rate"]
[{"$f":"IF(C8<>\"\",\"Show\",\"Don't Show\")","v":"Show"},"Costgrp1",{"$f":"IFERROR(INDEX('LFA Expenditure_7B imp-exp'!A$2:A$18,MATCH('LFA Expenditure_7B'!B8,'LFA Expenditure_7B imp-exp'!N$2:N$18,0)),\"\")","v":"1. Human Resources (HR)"},null,{"$f":"IFERROR(INDEX('LFA Expenditure_7B imp-exp'!C$2:C$18,MATCH('LFA Expenditure_7B'!B8,'LFA Expenditure_7B imp-exp'!N$2:N$18,0)),\"\")","v":1005908.79914906},{"$f":"'PR Expenditure_7A'!F9","v":377439.69},null,{"$f":"IFERROR((E8)-(F8+G8),0)","v":628469.10914905998},{"$f":"IF(AND((E8)=0,(F8+G8)=0),\"N/A\",IF(AND((E8)=0,(F8+G8)<>0),\"Not Budgeted\",(F8+G8)/(E8)))","v":0.37522257516714425},null,null,{"$f":"IFERROR(INDEX('LFA Expenditure_7B imp-exp'!J$2:J$18,MATCH('LFA Expenditure_7B'!B8,'LFA Expenditure_7B imp-exp'!N$2:N$18,0)),\"\")","v":1005908.79914906},null,{"$f":"IFERROR(L8-M8,0)","v":1005908.79914906},{"$f":"IF(AND(L8=0,M8=0),\"N/A\",IF(AND(L8=0,M8<>0),\"Not Budgeted\",M8/L8))","v":0}]
[{"$f":"IF(C9<>\"\",\"Show\",\"Don't Show\")","v":"Show"},"Costgrp2",{"$f":"IFERROR(INDEX('LFA Expenditure_7B imp-exp'!A$2:A$18,MATCH('LFA Expenditure_7B'!B9,'LFA Expenditure_7B imp-exp'!N$2:N$18,0)),\"\")","v":"10. Communication Material and Publications (CMP)"},null,{"$f":"IFERROR(INDEX('LFA Expenditure_7B imp-exp'!C$2:C$18,MATCH('LFA Expenditure_7B'!B9,'LFA Expenditure_7B imp-exp'!N$2:N$18,0)),\"\")","v":3469.2620152808299},{"$f":"'PR Expenditure_7A'!F10","v":0},null,{"$f":"IFERROR((E9)-(F9+G9),0)","v":3469.2620152808299},{"$f":"IF(AND((E9)=0,(F9+G9)=0),\"N/A\",IF(AND((E9)=0,(F9+G9)<>0),\"Not Budgeted\",(F9+G9)/(E9)))","v":0},null,null,{"$f":"IFERROR(INDEX('LFA Expenditure_7B imp-exp'!J$2:J$18,MATCH('LFA Expenditure_7B'!B9,'LFA Expenditure_7B imp-exp'!N$2:N$18,0)),\"\")","v":3469.2620152808299},null,{"$f":"IFERROR(L9-M9,0)","v":3469.2620152808299},{"$f":"IF(AND(L9=0,M9=0),\"N/A\",IF(AND(L9=0,M9<>0),\"Not Budgeted\",M9/L9))","v":0}]
["Show","Costgrp3",{"$f":"IFERROR(INDEX('LFA Expenditure_7B imp-exp'!A$2:A$18,MATCH('LFA Expenditure_7B'!B10,'LFA Expenditure_7B imp-exp'!N$2:N$18,0)),\"\")","v":"11. Programme Administration costs (PA)"},null,{"$f":"IFERROR(INDEX('LFA Expenditure_7B imp-exp'!C$2:C$18,MATCH('LFA Expenditure_7B'!B10,'LFA Expenditure_7B imp-exp'!N$2:N$18,0)),\"\")","v":377924.55271437601},{"$f":"'PR Expenditure_7A'!F11","v":121316.6},null,256607.95271437601,0.32100745804596464,null,null,{"$f":"IFERROR(INDEX('LFA Expenditure_7B imp-exp'!J$2:J$18,MATCH('LFA Expenditure_7B'!B10,'LFA Expenditure_7B imp-exp'!N$2:N$18,0)),\"\")","v":377924.55271437601},null,377924.55271437601,0]
["Show","Costgrp4",{"$f":"IFERROR(INDEX('LFA Expenditure_7B imp-exp'!A$2:A$18,MATCH('LFA Expenditure_7B'!B11,'LFA Expenditure_7B imp-exp'!N$2:N$18,0)),\"\")","v":"12. Living support to client/ target population (LSCTP)"},null,{"$f":"IFERROR(INDEX('LFA Expenditure_7B imp-exp'!C$2:C$18,MATCH('LFA Expenditure_7B'!B11,'LFA Expenditure_7B imp-exp'!N$2:N$18,0)),\"\")","v":0},{"$f":"'PR Expenditure_7A'!F16","v":0},null,0,"N/A",null,null,{"$f":"IFERROR(INDEX('LFA Expenditure_7B imp-exp'!J$2:J$18,MATCH('LFA Expenditure_7B'!B11,'LFA Expenditure_7B imp-exp'!N$2:N$18,0)),\"\")","v":0},null,0,"N/A"]
["Show","Costgrp5",{"$f":"IFERROR(INDEX('LFA Expenditure_7B imp-exp'!A$2:A$18,MATCH('LFA Expenditure_7B'!B12,'LFA Expenditure_7B imp-exp'!N$2:N$18,0)),\"\")","v":"13. Payment for Results"},null,{"$f":"IFERROR(INDEX('LFA Expenditure_7B imp-exp'!C$2:C$18,MATCH('LFA Expenditure_7B'!B12,'LFA Expenditure_7B imp-exp'!N$2:N$18,0)),\"\")","v":0},{"$f":"'PR Expenditure_7A'!F17","v":0},null,0,"N/A",null,null,{"$f":"IFERROR(INDEX('LFA Expenditure_7B imp-exp'!J$2:J$18,MATCH('LFA Expenditure_7B'!B12,'LFA Expenditure_7B imp-exp'!N$2:N$18,0)),\"\")","v":0},null,0,"N/A"]
["Show","Costgrp6",{"$f":"IFERROR(INDEX('LFA Expenditure_7B imp-exp'!A$2:A$18,MATCH('LFA Expenditure_7B'!B13,'LFA Expenditure_7B imp-exp'!N$2:N$18,0)),\"\")","v":"2. Travel related costs (TRC)"},null,{"$f":"IFERROR(INDEX('LFA Expenditure_7B imp-exp'!C$2:C$18,MATCH('LFA Expenditure_7B'!B13,'LFA Expenditure_7B imp-exp'!N$2:N$18,0)),\"\")","v":184199.43522428701},{"$f":"'PR Expenditure_7A'!F18","v":86752.16},null,97447.275224287005,0.47096865359205825,null,null,{"$f":"IFERROR(INDEX('LFA Expenditure_7B imp-exp'!J$2:J$18,MATCH('LFA Expenditure_7B'!B13,'LFA Expenditure_7B imp-exp'!N$2:N$18,0)),\"\")","v":184199.43522428701},null,184199.43522428701,0]
["Show","Costgrp7",{"$f":"IFERROR(INDEX('LFA Expenditure_7B imp-exp'!A$2:A$18,MATCH('LFA Expenditure_7B'!B14,'LFA Expenditure_7B imp-exp'!N$2:N$18,0)),\"\")","v":"3. External Professional services (EPS)"},null,{"$f":"IFERROR(INDEX('LFA Expenditure_7B imp-exp'!C$2:C$18,MATCH('LFA Expenditure_7B'!B14,'LFA Expenditure_7B imp-exp'!N$2:N$18,0)),\"\")","v":13200},{"$f":"'PR Expenditure_7A'!F19","v":6600},null,6600,0.5,null,null,{"$f":"IFERROR(INDEX('LFA Expenditure_7B imp-exp'!J$2:J$18,MATCH('LFA Expenditure_7B'!B14,'LFA Expenditure_7B imp-exp'!N$2:N$18,0)),\"\")","v":13200},null,13200,0]
["Show","Costgrp8",{"$f":"IFERROR(INDEX('LFA Expenditure_7B imp-exp'!A$2:A$18,MATCH('LFA Expenditure_7B'!B15,'LFA Expenditure_7B imp-exp'!N$2:N$18,0)),\"\")","v":"4. Health Products - Pharmaceutical Products (HPPP)"},null,{"$f":"IFERROR(INDEX('LFA Expenditure_7B imp-exp'!C$2:C$18,MATCH('LFA Expenditure_7B'!B15,'LFA Expenditure_7B imp-exp'!N$2:N$18,0)),\"\")","v":669838},{"$f":"'PR Expenditure_7A'!F16","v":0},null,669838,0,null,null,{"$f":"IFERROR(INDEX('LFA Expenditure_7B imp-exp'!J$2:J$18,MATCH('LFA Expenditure_7B'!B15,'LFA Expenditure_7B imp-exp'!N$2:N$18,0)),\"\")","v":669838},null,669838,0]
[{"$f":"IF(C16<>\"\",\"Show\",\"Don't Show\")","v":"Show"},"Costgrp9",{"$f":"IFERROR(INDEX('LFA Expenditure_7B imp-exp'!A$2:A$18,MATCH('LFA Expenditure_7B'!B16,'LFA Expenditure_7B imp-exp'!N$2:N$18,0)),\"\")","v":"5. Health Products - Non-Pharmaceuticals (HPNP)"},null,{"$f":"IFERROR(INDEX('LFA Expenditure_7B imp-exp'!C$2:C$18,MATCH('LFA Expenditure_7B'!B16,'LFA Expenditure_7B imp-exp'!N$2:N$18,0)),\"\")","v":1100385.8999999999},{"$f":"'PR Expenditure_7A'!F17","v":0},null,{"$f":"IFERROR((E16)-(F16+G16),0)","v":1100385.8999999999},{"$f":"IF(AND((E16)=0,(F16+G16)=0),\"N/A\",IF(AND((E16)=0,(F16+G16)<>0),\"Not Budgeted\",(F16+G16)/(E16)))","v":0},null,null,{"$f":"IFERROR(INDEX('LFA Expenditure_7B imp-exp'!J$2:J$18,MATCH('LFA Expenditure_7B'!B16,'LFA Expenditure_7B imp-exp'!N$2:N$18,0)),\"\")","v":1100385.8999999999},null,{"$f":"IFERROR(L16-M16,0)","v":1100385.8999999999},{"$f":"IF(AND(L16=0,M16=0),\"N/A\",IF(AND(L16=0,M16<>0),\"Not Budgeted\",M16/L16))","v":0}]
["Show","Costgrp10",{"$f":"IFERROR(INDEX('LFA Expenditure_7B imp-exp'!A$2:A$18,MATCH('LFA Expenditure_7B'!B17,'LFA Expenditure_7B imp-exp'!N$2:N$18,0)),\"\")","v":"6. Health Products - Equipment (HPE)"},null,{"$f":"IFERROR(INDEX('LFA Expenditure_7B imp-exp'!C$2:C$18,MATCH('LFA Expenditure_7B'!B17,'LFA Expenditure_7B imp-exp'!N$2:N$18,0)),\"\")","v":0},{"$f":"'PR Expenditure_7A'!F18","v":86752.16},null,-86752.16,"Not Budgeted",null,null,{"$f":"IFERROR(INDEX('LFA Expenditure_7B imp-exp'!J$2:J$18,MATCH('LFA Expenditure_7B'!B17,'LFA Expenditure_7B imp-exp'!N$2:N$18,0)),\"\")","v":0},null,0,"N/A"]
["Show","Costgrp11",{"$f":"IFERROR(INDEX('LFA Expenditure_7B imp-exp'!A$2:A$18,MATCH('LFA Expenditure_7B'!B18,'LFA Expenditure_7B imp-exp'!N$2:N$18,0)),\"\")","v":"7. Procurement and Supply-Chain Management costs (PSM)"},null,{"$f":"IFERROR(INDEX('LFA Expenditure_7B imp-exp'!C$2:C$18,MATCH('LFA Expenditure_7B'!B18,'LFA Expenditure_7B imp-exp'!N$2:N$18,0)),\"\")","v":438374.24},{"$f":"'PR Expenditure_7A'!F23","v":16.61},null,438357.63,3.7890000105845635E-5,null,null,{"$f":"IFERROR(INDEX('LFA Expenditure_7B imp-exp'!J$2:J$18,MATCH('LFA Expenditure_7B'!B18,'LFA Expenditure_7B imp-exp'!N$2:N$18,0)),\"\")","v":438374.24},null,438374.24,0]
["Show","Costgrp12",{"$f":"IFERROR(INDEX('LFA Expenditure_7B imp-exp'!A$2:A$18,MATCH('LFA Expenditure_7B'!B19,'LFA Expenditure_7B imp-exp'!N$2:N$18,0)),\"\")","v":"8. Infrastructure (INF)"},null,{"$f":"IFERROR(INDEX('LFA Expenditure_7B imp-exp'!C$2:C$18,MATCH('LFA Expenditure_7B'!B19,'LFA Expenditure_7B imp-exp'!N$2:N$18,0)),\"\")","v":49796},{"$f":"'PR Expenditure_7A'!F24","v":10516.78},null,39279.22,0.21119728492248374,null,null,{"$f":"IFERROR(INDEX('LFA Expenditure_7B imp-exp'!J$2:J$18,MATCH('LFA Expenditure_7B'!B19,'LFA Expenditure_7B imp-exp'!N$2:N$18,0)),\"\")","v":49796},null,49796,0]
["Show","Costgrp13",{"$f":"IFERROR(INDEX('LFA Expenditure_7B imp-exp'!A$2:A$18,MATCH('LFA Expenditure_7B'!B20,'LFA Expenditure_7B imp-exp'!N$2:N$18,0)),\"\")","v":"9. Non-health equipment (NHP)"},null,{"$f":"IFERROR(INDEX('LFA Expenditure_7B imp-exp'!C$2:C$18,MATCH('LFA Expenditure_7B'!B20,'LFA Expenditure_7B imp-exp'!N$2:N$18,0)),\"\")","v":214800.605651608},{"$f":"'PR Expenditure_7A'!F25","v":103117.42},null,111683.185651608,0.4800611231387748,null,null,{"$f":"IFERROR(INDEX('LFA Expenditure_7B imp-exp'!J$2:J$18,MATCH('LFA Expenditure_7B'!B20,'LFA Expenditure_7B imp-exp'!N$2:N$18,0)),\"\")","v":214800.605651608},null,214800.605651608,0]
["Don't Show","Costgrp14",{"$f":"IFERROR(INDEX('LFA Expenditure_7B imp-exp'!A$2:A$18,MATCH('LFA Expenditure_7B'!B21,'LFA Expenditure_7B imp-exp'!N$2:N$18,0)),\"\")","v":""},null,{"$f":"IFERROR(INDEX('LFA Expenditure_7B imp-exp'!C$2:C$18,MATCH('LFA Expenditure_7B'!B21,'LFA Expenditure_7B imp-exp'!N$2:N$18,0)),\"\")","v":""},{"$f":"'PR Expenditure_7A'!F26","v":0},null,0,{"$error":"#VALUE!"},null,null,{"$f":"IFERROR(INDEX('LFA Expenditure_7B imp-exp'!J$2:J$18,MATCH('LFA Expenditure_7B'!B21,'LFA Expenditure_7B imp-exp'!N$2:N$18,0)),\"\")","v":""},null,0,{"$error":"#VALUE!"}]
["Don't Show","Costgrp15",{"$f":"IFERROR(INDEX('LFA Expenditure_7B imp-exp'!A$2:A$18,MATCH('LFA Expenditure_7B'!B22,'LFA Expenditure_7B imp-exp'!N$2:N$18,0)),\"\")","v":""},null,{"$f":"IFERROR(INDEX('LFA Expenditure_7B imp-exp'!C$2:C$18,MATCH('LFA Expenditure_7B'!B22,'LFA Expenditure_7B imp-exp'!N$2:N$18,0)),\"\")","v":""},{"$f":"'PR Expenditure_7A'!F23","v":16.61},null,0,{"$error":"#VALUE!"},null,null,{"$f":"IFERROR(INDEX('LFA Expenditure_7B imp-exp'!J$2:J$18,MATCH('LFA Expenditure_7B'!B22,'LFA Expenditure_7B imp-exp'!N$2:N$18,0)),\"\")","v":""},null,0,{"$error":"#VALUE!"}]
["Don't Show","Costgrp16",{"$f":"IFERROR(INDEX('LFA Expenditure_7B imp-exp'!A$2:A$18,MATCH('LFA Expenditure_7B'!B23,'LFA Expenditure_7B imp-exp'!N$2:N$18,0)),\"\")","v":""},null,{"$f":"IFERROR(INDEX('LFA Expenditure_7B imp-exp'!C$2:C$18,MATCH('LFA Expenditure_7B'!B23,'LFA Expenditure_7B imp-exp'!N$2:N$18,0)),\"\")","v":""},{"$f":"'PR Expenditure_7A'!F24","v":10516.78},null,0,{"$error":"#VALUE!"},null,null,{"$f":"IFERROR(INDEX('LFA Expenditure_7B imp-exp'!J$2:J$18,MATCH('LFA Expenditure_7B'!B23,'LFA Expenditure_7B imp-exp'!N$2:N$18,0)),\"\")","v":""},null,0,{"$error":"#VALUE!"}]
["Don't Show","Costgrp17",{"$f":"IFERROR(INDEX('LFA Expenditure_7B imp-exp'!A$2:A$18,MATCH('LFA Expenditure_7B'!B24,'LFA Expenditure_7B imp-exp'!N$2:N$18,0)),\"\")","v":""},null,{"$f":"IFERROR(INDEX('LFA Expenditure_7B imp-exp'!C$2:C$18,MATCH('LFA Expenditure_7B'!B24,'LFA Expenditure_7B imp-exp'!N$2:N$18,0)),\"\")","v":""},{"$f":"'PR Expenditure_7A'!F25","v":103117.42},null,0,{"$error":"#VALUE!"},null,null,{"$f":"IFERROR(INDEX('LFA Expenditure_7B imp-exp'!J$2:J$18,MATCH('LFA Expenditure_7B'!B24,'LFA Expenditure_7B imp-exp'!N$2:N$18,0)),\"\")","v":""},null,0,{"$error":"#VALUE!"}]
["Don't Show","Costgrp18",{"$f":"IFERROR(INDEX('LFA Expenditure_7B imp-exp'!A$2:A$18,MATCH('LFA Expenditure_7B'!B25,'LFA Expenditure_7B imp-exp'!N$2:N$18,0)),\"\")","v":""},null,{"$f":"IFERROR(INDEX('LFA Expenditure_7B imp-exp'!C$2:C$18,MATCH('LFA Expenditure_7B'!B25,'LFA Expenditure_7B imp-exp'!N$2:N$18,0)),\"\")","v":""},{"$f":"'PR Expenditure_7A'!F30","v":0},null,0,{"$error":"#VALUE!"},null,null,{"$f":"IFERROR(INDEX('LFA Expenditure_7B imp-exp'!J$2:J$18,MATCH('LFA Expenditure_7B'!B25,'LFA Expenditure_7B imp-exp'!N$2:N$18,0)),\"\")","v":""},null,0,{"$error":"#VALUE!"}]
["Don't Show","Costgrp19",{"$f":"IFERROR(INDEX('LFA Expenditure_7B imp-exp'!A$2:A$18,MATCH('LFA Expenditure_7B'!B26,'LFA Expenditure_7B imp-exp'!N$2:N$18,0)),\"\")","v":""},null,{"$f":"IFERROR(INDEX('LFA Expenditure_7B imp-exp'!C$2:C$18,MATCH('LFA Expenditure_7B'!B26,'LFA Expenditure_7B imp-exp'!N$2:N$18,0)),\"\")","v":""},{"$f":"'PR Expenditure_7A'!F31","v":0},null,0,{"$error":"#VALUE!"},null,null,{"$f":"IFERROR(INDEX('LFA Expenditure_7B imp-exp'!J$2:J$18,MATCH('LFA Expenditure_7B'!B26,'LFA Expenditure_7B imp-exp'!N$2:N$18,0)),\"\")","v":""},null,0,{"$error":"#VALUE!"}]
["Don't Show","Costgrp20",{"$f":"IFERROR(INDEX('LFA Expenditure_7B imp-exp'!A$2:A$18,MATCH('LFA Expenditure_7B'!B27,'LFA Expenditure_7B imp-exp'!N$2:N$18,0)),\"\")","v":""},null,{"$f":"IFERROR(INDEX('LFA Expenditure_7B imp-exp'!C$2:C$18,MATCH('LFA Expenditure_7B'!B27,'LFA Expenditure_7B imp-exp'!N$2:N$18,0)),\"\")","v":""},{"$f":"'PR Expenditure_7A'!F32","v":0},null,0,{"$error":"#VALUE!"},null,null,{"$f":"IFERROR(INDEX('LFA Expenditure_7B imp-exp'!J$2:J$18,MATCH('LFA Expenditure_7B'!B27,'LFA Expenditure_7B imp-exp'!N$2:N$18,0)),\"\")","v":""},null,0,{"$error":"#VALUE!"}]
["Don't Show","Costgrp21",{"$f":"IFERROR(INDEX('LFA Expenditure_7B imp-exp'!A$2:A$18,MATCH('LFA Expenditure_7B'!B28,'LFA Expenditure_7B imp-exp'!N$2:N$18,0)),\"\")","v":""},null,{"$f":"IFERROR(INDEX('LFA Expenditure_7B imp-exp'!C$2:C$18,MATCH('LFA Expenditure_7B'!B28,'LFA Expenditure_7B imp-exp'!N$2:N$18,0)),\"\")","v":""},{"$f":"'PR Expenditure_7A'!F33","v":0},null,0,{"$error":"#VALUE!"},null,null,{"$f":"IFERROR(INDEX('LFA Expenditure_7B imp-exp'!J$2:J$18,MATCH('LFA Expenditure_7B'!B28,'LFA Expenditure_7B imp-exp'!N$2:N$18,0)),\"\")","v":""},null,0,{"$error":"#VALUE!"}]
["Don't Show","Costgrp22",{"$f":"IFERROR(INDEX('LFA Expenditure_7B imp-exp'!A$2:A$18,MATCH('LFA Expenditure_7B'!B29,'LFA Expenditure_7B imp-exp'!N$2:N$18,0)),\"\")","v":""},null,{"$f":"IFERROR(INDEX('LFA Expenditure_7B imp-exp'!C$2:C$18,MATCH('LFA Expenditure_7B'!B29,'LFA Expenditure_7B imp-exp'!N$2:N$18,0)),\"\")","v":""},{"$f":"'PR Expenditure_7A'!F30","v":0},null,0,{"$error":"#VALUE!"},null,null,{"$f":"IFERROR(INDEX('LFA Expenditure_7B imp-exp'!J$2:J$18,MATCH('LFA Expenditure_7B'!B29,'LFA Expenditure_7B imp-exp'!N$2:N$18,0)),\"\")","v":""},null,0,{"$error":"#VALUE!"}]
["Don't Show","Costgrp23",{"$f":"IFERROR(INDEX('LFA Expenditure_7B imp-exp'!A$2:A$18,MATCH('LFA Expenditure_7B'!B30,'LFA Expenditure_7B imp-exp'!N$2:N$18,0)),\"\")","v":""},null,{"$f":"IFERROR(INDEX('LFA Expenditure_7B imp-exp'!C$2:C$18,MATCH('LFA Expenditure_7B'!B30,'LFA Expenditure_7B imp-exp'!N$2:N$18,0)),\"\")","v":""},{"$f":"'PR Expenditure_7A'!F31","v":0},null,0,{"$error":"#VALUE!"},null,null,{"$f":"IFERROR(INDEX('LFA Expenditure_7B imp-exp'!J$2:J$18,MATCH('LFA Expenditure_7B'!B30,'LFA Expenditure_7B imp-exp'!N$2:N$18,0)),\"\")","v":""},null,0,{"$error":"#VALUE!"}]
["Don't Show","Costgrp24",{"$f":"IFERROR(INDEX('LFA Expenditure_7B imp-exp'!A$2:A$18,MATCH('LFA Expenditure_7B'!B31,'LFA Expenditure_7B imp-exp'!N$2:N$18,0)),\"\")","v":""},null,{"$f":"IFERROR(INDEX('LFA Expenditure_7B imp-exp'!C$2:C$18,MATCH('LFA Expenditure_7B'!B31,'LFA Expenditure_7B imp-exp'!N$2:N$18,0)),\"\")","v":""},{"$f":"'PR Expenditure_7A'!F32","v":0},null,0,{"$error":"#VALUE!"},null,null,{"$f":"IFERROR(INDEX('LFA Expenditure_7B imp-exp'!J$2:J$18,MATCH('LFA Expenditure_7B'!B31,'LFA Expenditure_7B imp-exp'!N$2:N$18,0)),\"\")","v":""},null,0,{"$error":"#VALUE!"}]
["Don't Show","Costgrp25",{"$f":"IFERROR(INDEX('LFA Expenditure_7B imp-exp'!A$2:A$18,MATCH('LFA Expenditure_7B'!B32,'LFA Expenditure_7B imp-exp'!N$2:N$18,0)),\"\")","v":""},null,{"$f":"IFERROR(INDEX('LFA Expenditure_7B imp-exp'!C$2:C$18,MATCH('LFA Expenditure_7B'!B32,'LFA Expenditure_7B imp-exp'!N$2:N$18,0)),\"\")","v":""},{"$f":"'PR Expenditure_7A'!F37","v":0},null,0,{"$error":"#VALUE!"},null,null,{"$f":"IFERROR(INDEX('LFA Expenditure_7B imp-exp'!J$2:J$18,MATCH('LFA Expenditure_7B'!B32,'LFA Expenditure_7B imp-exp'!N$2:N$18,0)),\"\")","v":""},null,0,{"$error":"#VALUE!"}]
["Don't Show","Costgrp26",{"$f":"IFERROR(INDEX('LFA Expenditure_7B imp-exp'!A$2:A$18,MATCH('LFA Expenditure_7B'!B33,'LFA Expenditure_7B imp-exp'!N$2:N$18,0)),\"\")","v":""},null,{"$f":"IFERROR(INDEX('LFA Expenditure_7B imp-exp'!C$2:C$18,MATCH('LFA Expenditure_7B'!B33,'LFA Expenditure_7B imp-exp'!N$2:N$18,0)),\"\")","v":""},{"$f":"'PR Expenditure_7A'!F38","v":0},null,0,{"$error":"#VALUE!"},null,null,{"$f":"IFERROR(INDEX('LFA Expenditure_7B imp-exp'!J$2:J$18,MATCH('LFA Expenditure_7B'!B33,'LFA Expenditure_7B imp-exp'!N$2:N$18,0)),\"\")","v":""},null,0,{"$error":"#VALUE!"}]
["Don't Show","Costgrp27",{"$f":"IFERROR(INDEX('LFA Expenditure_7B imp-exp'!A$2:A$18,MATCH('LFA Expenditure_7B'!B34,'LFA Expenditure_7B imp-exp'!N$2:N$18,0)),\"\")","v":""},null,{"$f":"IFERROR(INDEX('LFA Expenditure_7B imp-exp'!C$2:C$18,MATCH('LFA Expenditure_7B'!B34,'LFA Expenditure_7B imp-exp'!N$2:N$18,0)),\"\")","v":""},{"$f":"'PR Expenditure_7A'!F39","v":0},null,0,{"$error":"#VALUE!"},null,null,{"$f":"IFERROR(INDEX('LFA Expenditure_7B imp-exp'!J$2:J$18,MATCH('LFA Expenditure_7B'!B34,'LFA Expenditure_7B imp-exp'!N$2:N$18,0)),\"\")","v":""},null,0,{"$error":"#VALUE!"}]
["Don't Show","Costgrp28",{"$f":"IFERROR(INDEX('LFA Expenditure_7B imp-exp'!A$2:A$18,MATCH('LFA Expenditure_7B'!B35,'LFA Expenditure_7B imp-exp'!N$2:N$18,0)),\"\")","v":""},null,{"$f":"IFERROR(INDEX('LFA Expenditure_7B imp-exp'!C$2:C$18,MATCH('LFA Expenditure_7B'!B35,'LFA Expenditure_7B imp-exp'!N$2:N$18,0)),\"\")","v":""},{"$f":"'PR Expenditure_7A'!F40","v":0},null,0,{"$error":"#VALUE!"},null,null,{"$f":"IFERROR(INDEX('LFA Expenditure_7B imp-exp'!J$2:J$18,MATCH('LFA Expenditure_7B'!B35,'LFA Expenditure_7B imp-exp'!N$2:N$18,0)),\"\")","v":""},null,0,{"$error":"#VALUE!"}]
["Don't Show","Costgrp29",{"$f":"IFERROR(INDEX('LFA Expenditure_7B imp-exp'!A$2:A$18,MATCH('LFA Expenditure_7B'!B36,'LFA Expenditure_7B imp-exp'!N$2:N$18,0)),\"\")","v":""},null,{"$f":"IFERROR(INDEX('LFA Expenditure_7B imp-exp'!C$2:C$18,MATCH('LFA Expenditure_7B'!B36,'LFA Expenditure_7B imp-exp'!N$2:N$18,0)),\"\")","v":""},{"$f":"'PR Expenditure_7A'!F37","v":0},null,0,{"$error":"#VALUE!"},null,null,{"$f":"IFERROR(INDEX('LFA Expenditure_7B imp-exp'!J$2:J$18,MATCH('LFA Expenditure_7B'!B36,'LFA Expenditure_7B imp-exp'!N$2:N$18,0)),\"\")","v":""},null,0,{"$error":"#VALUE!"}]
["Don't Show","Costgrp30",{"$f":"IFERROR(INDEX('LFA Expenditure_7B imp-exp'!A$2:A$18,MATCH('LFA Expenditure_7B'!B37,'LFA Expenditure_7B imp-exp'!N$2:N$18,0)),\"\")","v":""},null,{"$f":"IFERROR(INDEX('LFA Expenditure_7B imp-exp'!C$2:C$18,MATCH('LFA Expenditure_7B'!B37,'LFA Expenditure_7B imp-exp'!N$2:N$18,0)),\"\")","v":""},{"$f":"'PR Expenditure_7A'!F38","v":0},null,0,{"$error":"#VALUE!"},null,null,{"$f":"IFERROR(INDEX('LFA Expenditure_7B imp-exp'!J$2:J$18,MATCH('LFA Expenditure_7B'!B37,'LFA Expenditure_7B imp-exp'!N$2:N$18,0)),\"\")","v":""},null,0,{"$error":"#VALUE!"}]
["Don't Show","Costgrp31",{"$f":"IFERROR(INDEX('LFA Expenditure_7B imp-exp'!A$2:A$18,MATCH('LFA Expenditure_7B'!B38,'LFA Expenditure_7B imp-exp'!N$2:N$18,0)),\"\")","v":""},null,{"$f":"IFERROR(INDEX('LFA Expenditure_7B imp-exp'!C$2:C$18,MATCH('LFA Expenditure_7B'!B38,'LFA Expenditure_7B imp-exp'!N$2:N$18,0)),\"\")","v":""},{"$f":"'PR Expenditure_7A'!F39","v":0},null,0,{"$error":"#VALUE!"},null,null,{"$f":"IFERROR(INDEX('LFA Expenditure_7B imp-exp'!J$2:J$18,MATCH('LFA Expenditure_7B'!B38,'LFA Expenditure_7B imp-exp'!N$2:N$18,0)),\"\")","v":""},null,0,{"$error":"#VALUE!"}]
["Don't Show","Costgrp32",{"$f":"IFERROR(INDEX('LFA Expenditure_7B imp-exp'!A$2:A$18,MATCH('LFA Expenditure_7B'!B39,'LFA Expenditure_7B imp-exp'!N$2:N$18,0)),\"\")","v":""},null,{"$f":"IFERROR(INDEX('LFA Expenditure_7B imp-exp'!C$2:C$18,MATCH('LFA Expenditure_7B'!B39,'LFA Expenditure_7B imp-exp'!N$2:N$18,0)),\"\")","v":""},{"$f":"'PR Expenditure_7A'!F44","v":0},null,0,{"$error":"#VALUE!"},null,null,{"$f":"IFERROR(INDEX('LFA Expenditure_7B imp-exp'!J$2:J$18,MATCH('LFA Expenditure_7B'!B39,'LFA Expenditure_7B imp-exp'!N$2:N$18,0)),\"\")","v":""},null,0,{"$error":"#VALUE!"}]
["Don't Show","Costgrp33",{"$f":"IFERROR(INDEX('LFA Expenditure_7B imp-exp'!A$2:A$18,MATCH('LFA Expenditure_7B'!B40,'LFA Expenditure_7B imp-exp'!N$2:N$18,0)),\"\")","v":""},null,{"$f":"IFERROR(INDEX('LFA Expenditure_7B imp-exp'!C$2:C$18,MATCH('LFA Expenditure_7B'!B40,'LFA Expenditure_7B imp-exp'!N$2:N$18,0)),\"\")","v":""},{"$f":"'PR Expenditure_7A'!F45","v":0},null,0,{"$error":"#VALUE!"},null,null,{"$f":"IFERROR(INDEX('LFA Expenditure_7B imp-exp'!J$2:J$18,MATCH('LFA Expenditure_7B'!B40,'LFA Expenditure_7B imp-exp'!N$2:N$18,0)),\"\")","v":""},null,0,{"$error":"#VALUE!"}]
["Don't Show","Costgrp34",{"$f":"IFERROR(INDEX('LFA Expenditure_7B imp-exp'!A$2:A$18,MATCH('LFA Expenditure_7B'!B41,'LFA Expenditure_7B imp-exp'!N$2:N$18,0)),\"\")","v":""},null,{"$f":"IFERROR(INDEX('LFA Expenditure_7B imp-exp'!C$2:C$18,MATCH('LFA Expenditure_7B'!B41,'LFA Expenditure_7B imp-exp'!N$2:N$18,0)),\"\")","v":""},{"$f":"'PR Expenditure_7A'!F46","v":0},null,0,{"$error":"#VALUE!"},null,null,{"$f":"IFERROR(INDEX('LFA Expenditure_7B imp-exp'!J$2:J$18,MATCH('LFA Expenditure_7B'!B41,'LFA Expenditure_7B imp-exp'!N$2:N$18,0)),\"\")","v":""},null,0,{"$error":"#VALUE!"}]
["Don't Show","Costgrp35",{"$f":"IFERROR(INDEX('LFA Expenditure_7B imp-exp'!A$2:A$18,MATCH('LFA Expenditure_7B'!B42,'LFA Expenditure_7B imp-exp'!N$2:N$18,0)),\"\")","v":""},null,{"$f":"IFERROR(INDEX('LFA Expenditure_7B imp-exp'!C$2:C$18,MATCH('LFA Expenditure_7B'!B42,'LFA Expenditure_7B imp-exp'!N$2:N$18,0)),\"\")","v":""},{"$f":"'PR Expenditure_7A'!F47","v":0},null,0,{"$error":"#VALUE!"},null,null,{"$f":"IFERROR(INDEX('LFA Expenditure_7B imp-exp'!J$2:J$18,MATCH('LFA Expenditure_7B'!B42,'LFA Expenditure_7B imp-exp'!N$2:N$18,0)),\"\")","v":""},null,0,{"$error":"#VALUE!"}]
["Don't Show","Costgrp36",{"$f":"IFERROR(INDEX('LFA Expenditure_7B imp-exp'!A$2:A$18,MATCH('LFA Expenditure_7B'!B43,'LFA Expenditure_7B imp-exp'!N$2:N$18,0)),\"\")","v":""},null,{"$f":"IFERROR(INDEX('LFA Expenditure_7B imp-exp'!C$2:C$18,MATCH('LFA Expenditure_7B'!B43,'LFA Expenditure_7B imp-exp'!N$2:N$18,0)),\"\")","v":""},{"$f":"'PR Expenditure_7A'!F44","v":0},null,0,{"$error":"#VALUE!"},null,null,{"$f":"IFERROR(INDEX('LFA Expenditure_7B imp-exp'!J$2:J$18,MATCH('LFA Expenditure_7B'!B43,'LFA Expenditure_7B imp-exp'!N$2:N$18,0)),\"\")","v":""},null,0,{"$error":"#VALUE!"}]
["Don't Show","Costgrp37",{"$f":"IFERROR(INDEX('LFA Expenditure_7B imp-exp'!A$2:A$18,MATCH('LFA Expenditure_7B'!B44,'LFA Expenditure_7B imp-exp'!N$2:N$18,0)),\"\")","v":""},null,{"$f":"IFERROR(INDEX('LFA Expenditure_7B imp-exp'!C$2:C$18,MATCH('LFA Expenditure_7B'!B44,'LFA Expenditure_7B imp-exp'!N$2:N$18,0)),\"\")","v":""},{"$f":"'PR Expenditure_7A'!F45","v":0},null,0,{"$error":"#VALUE!"},null,null,{"$f":"IFERROR(INDEX('LFA Expenditure_7B imp-exp'!J$2:J$18,MATCH('LFA Expenditure_7B'!B44,'LFA Expenditure_7B imp-exp'!N$2:N$18,0)),\"\")","v":""},null,0,{"$error":"#VALUE!"}]
["Don't Show","Costgrp38",{"$f":"IFERROR(INDEX('LFA Expenditure_7B imp-exp'!A$2:A$18,MATCH('LFA Expenditure_7B'!B45,'LFA Expenditure_7B imp-exp'!N$2:N$18,0)),\"\")","v":""},null,{"$f":"IFERROR(INDEX('LFA Expenditure_7B imp-exp'!C$2:C$18,MATCH('LFA Expenditure_7B'!B45,'LFA Expenditure_7B imp-exp'!N$2:N$18,0)),\"\")","v":""},{"$f":"'PR Expenditure_7A'!F46","v":0},null,0,{"$error":"#VALUE!"},null,null,{"$f":"IFERROR(INDEX('LFA Expenditure_7B imp-exp'!J$2:J$18,MATCH('LFA Expenditure_7B'!B45,'LFA Expenditure_7B imp-exp'!N$2:N$18,0)),\"\")","v":""},null,0,{"$error":"#VALUE!"}]
["Don't Show","Costgrp39",{"$f":"IFERROR(INDEX('LFA Expenditure_7B imp-exp'!A$2:A$18,MATCH('LFA Expenditure_7B'!B46,'LFA Expenditure_7B imp-exp'!N$2:N$18,0)),\"\")","v":""},null,{"$f":"IFERROR(INDEX('LFA Expenditure_7B imp-exp'!C$2:C$18,MATCH('LFA Expenditure_7B'!B46,'LFA Expenditure_7B imp-exp'!N$2:N$18,0)),\"\")","v":""},{"$f":"'PR Expenditure_7A'!F51","v":0},null,0,{"$error":"#VALUE!"},null,null,{"$f":"IFERROR(INDEX('LFA Expenditure_7B imp-exp'!J$2:J$18,MATCH('LFA Expenditure_7B'!B46,'LFA Expenditure_7B imp-exp'!N$2:N$18,0)),\"\")","v":""},null,0,{"$error":"#VALUE!"}]
["Don't Show","Costgrp40",{"$f":"IFERROR(INDEX('LFA Expenditure_7B imp-exp'!A$2:A$18,MATCH('LFA Expenditure_7B'!B47,'LFA Expenditure_7B imp-exp'!N$2:N$18,0)),\"\")","v":""},null,{"$f":"IFERROR(INDEX('LFA Expenditure_7B imp-exp'!C$2:C$18,MATCH('LFA Expenditure_7B'!B47,'LFA Expenditure_7B imp-exp'!N$2:N$18,0)),\"\")","v":""},{"$f":"'PR Expenditure_7A'!F52","v":0},null,0,{"$error":"#VALUE!"},null,null,{"$f":"IFERROR(INDEX('LFA Expenditure_7B imp-exp'!J$2:J$18,MATCH('LFA Expenditure_7B'!B47,'LFA Expenditure_7B imp-exp'!N$2:N$18,0)),\"\")","v":""},null,0,{"$error":"#VALUE!"}]
["Don't Show","Costgrp41",{"$f":"IFERROR(INDEX('LFA Expenditure_7B imp-exp'!A$2:A$18,MATCH('LFA Expenditure_7B'!B48,'LFA Expenditure_7B imp-exp'!N$2:N$18,0)),\"\")","v":""},null,{"$f":"IFERROR(INDEX('LFA Expenditure_7B imp-exp'!C$2:C$18,MATCH('LFA Expenditure_7B'!B48,'LFA Expenditure_7B imp-exp'!N$2:N$18,0)),\"\")","v":""},{"$f":"'PR Expenditure_7A'!F53","v":0},null,0,{"$error":"#VALUE!"},null,null,{"$f":"IFERROR(INDEX('LFA Expenditure_7B imp-exp'!J$2:J$18,MATCH('LFA Expenditure_7B'!B48,'LFA Expenditure_7B imp-exp'!N$2:N$18,0)),\"\")","v":""},null,0,{"$error":"#VALUE!"}]
["Don't Show","Costgrp42",{"$f":"IFERROR(INDEX('LFA Expenditure_7B imp-exp'!A$2:A$18,MATCH('LFA Expenditure_7B'!B49,'LFA Expenditure_7B imp-exp'!N$2:N$18,0)),\"\")","v":""},null,{"$f":"IFERROR(INDEX('LFA Expenditure_7B imp-exp'!C$2:C$18,MATCH('LFA Expenditure_7B'!B49,'LFA Expenditure_7B imp-exp'!N$2:N$18,0)),\"\")","v":""},{"$f":"'PR Expenditure_7A'!F54","v":0},null,0,{"$error":"#VALUE!"},null,null,{"$f":"IFERROR(INDEX('LFA Expenditure_7B imp-exp'!J$2:J$18,MATCH('LFA Expenditure_7B'!B49,'LFA Expenditure_7B imp-exp'!N$2:N$18,0)),\"\")","v":""},null,0,{"$error":"#VALUE!"}]
["Don't Show","Costgrp43",{"$f":"IFERROR(INDEX('LFA Expenditure_7B imp-exp'!A$2:A$18,MATCH('LFA Expenditure_7B'!B50,'LFA Expenditure_7B imp-exp'!N$2:N$18,0)),\"\")","v":""},null,{"$f":"IFERROR(INDEX('LFA Expenditure_7B imp-exp'!C$2:C$18,MATCH('LFA Expenditure_7B'!B50,'LFA Expenditure_7B imp-exp'!N$2:N$18,0)),\"\")","v":""},{"$f":"'PR Expenditure_7A'!F51","v":0},null,0,{"$error":"#VALUE!"},null,null,{"$f":"IFERROR(INDEX('LFA Expenditure_7B imp-exp'!J$2:J$18,MATCH('LFA Expenditure_7B'!B50,'LFA Expenditure_7B imp-exp'!N$2:N$18,0)),\"\")","v":""},null,0,{"$error":"#VALUE!"}]
["Don't Show","Costgrp44",{"$f":"IFERROR(INDEX('LFA Expenditure_7B imp-exp'!A$2:A$18,MATCH('LFA Expenditure_7B'!B51,'LFA Expenditure_7B imp-exp'!N$2:N$18,0)),\"\")","v":""},null,{"$f":"IFERROR(INDEX('LFA Expenditure_7B imp-exp'!C$2:C$18,MATCH('LFA Expenditure_7B'!B51,'LFA Expenditure_7B imp-exp'!N$2:N$18,0)),\"\")","v":""},{"$f":"'PR Expenditure_7A'!F52","v":0},null,0,{"$error":"#VALUE!"},null,null,{"$f":"IFERROR(INDEX('LFA Expenditure_7B imp-exp'!J$2:J$18,MATCH('LFA Expenditure_7B'!B51,'LFA Expenditure_7B imp-exp'!N$2:N$18,0)),\"\")","v":""},null,0,{"$error":"#VALUE!"}]
["Don't Show","Costgrp45",{"$f":"IFERROR(INDEX('LFA Expenditure_7B imp-exp'!A$2:A$18,MATCH('LFA Expenditure_7B'!B52,'LFA Expenditure_7B imp-exp'!N$2:N$18,0)),\"\")","v":""},null,{"$f":"IFERROR(INDEX('LFA Expenditure_7B imp-exp'!C$2:C$18,MATCH('LFA Expenditure_7B'!B52,'LFA Expenditure_7B imp-exp'!N$2:N$18,0)),\"\")","v":""},{"$f":"'PR Expenditure_7A'!F53","v":0},null,0,{"$error":"#VALUE!"},null,null,{"$f":"IFERROR(INDEX('LFA Expenditure_7B imp-exp'!J$2:J$18,MATCH('LFA Expenditure_7B'!B52,'LFA Expenditure_7B imp-exp'!N$2:N$18,0)),\"\")","v":""},null,0,{"$error":"#VALUE!"}]
["Don't Show","Costgrp46",{"$f":"IFERROR(INDEX('LFA Expenditure_7B imp-exp'!A$2:A$18,MATCH('LFA Expenditure_7B'!B53,'LFA Expenditure_7B imp-exp'!N$2:N$18,0)),\"\")","v":""},null,{"$f":"IFERROR(INDEX('LFA Expenditure_7B imp-exp'!C$2:C$18,MATCH('LFA Expenditure_7B'!B53,'LFA Expenditure_7B imp-exp'!N$2:N$18,0)),\"\")","v":""},{"$f":"'PR Expenditure_7A'!F58","v":0},null,0,{"$error":"#VALUE!"},null,null,{"$f":"IFERROR(INDEX('LFA Expenditure_7B imp-exp'!J$2:J$18,MATCH('LFA Expenditure_7B'!B53,'LFA Expenditure_7B imp-exp'!N$2:N$18,0)),\"\")","v":""},null,0,{"$error":"#VALUE!"}]
["Don't Show","Costgrp47",{"$f":"IFERROR(INDEX('LFA Expenditure_7B imp-exp'!A$2:A$18,MATCH('LFA Expenditure_7B'!B54,'LFA Expenditure_7B imp-exp'!N$2:N$18,0)),\"\")","v":""},null,{"$f":"IFERROR(INDEX('LFA Expenditure_7B imp-exp'!C$2:C$18,MATCH('LFA Expenditure_7B'!B54,'LFA Expenditure_7B imp-exp'!N$2:N$18,0)),\"\")","v":""},{"$f":"'PR Expenditure_7A'!F59","v":0},null,0,{"$error":"#VALUE!"},null,null,{"$f":"IFERROR(INDEX('LFA Expenditure_7B imp-exp'!J$2:J$18,MATCH('LFA Expenditure_7B'!B54,'LFA Expenditure_7B imp-exp'!N$2:N$18,0)),\"\")","v":""},null,0,{"$error":"#VALUE!"}]
["Don't Show","Costgrp48",{"$f":"IFERROR(INDEX('LFA Expenditure_7B imp-exp'!A$2:A$18,MATCH('LFA Expenditure_7B'!B55,'LFA Expenditure_7B imp-exp'!N$2:N$18,0)),\"\")","v":""},null,{"$f":"IFERROR(INDEX('LFA Expenditure_7B imp-exp'!C$2:C$18,MATCH('LFA Expenditure_7B'!B55,'LFA Expenditure_7B imp-exp'!N$2:N$18,0)),\"\")","v":""},{"$f":"'PR Expenditure_7A'!F60","v":0},null,0,{"$error":"#VALUE!"},null,null,{"$f":"IFERROR(INDEX('LFA Expenditure_7B imp-exp'!J$2:J$18,MATCH('LFA Expenditure_7B'!B55,'LFA Expenditure_7B imp-exp'!N$2:N$18,0)),\"\")","v":""},null,0,{"$error":"#VALUE!"}]
["Don't Show","Costgrp49",{"$f":"IFERROR(INDEX('LFA Expenditure_7B imp-exp'!A$2:A$18,MATCH('LFA Expenditure_7B'!B56,'LFA Expenditure_7B imp-exp'!N$2:N$18,0)),\"\")","v":""},null,{"$f":"IFERROR(INDEX('LFA Expenditure_7B imp-exp'!C$2:C$18,MATCH('LFA Expenditure_7B'!B56,'LFA Expenditure_7B imp-exp'!N$2:N$18,0)),\"\")","v":""},{"$f":"'PR Expenditure_7A'!F61","v":0},null,0,{"$error":"#VALUE!"},null,null,{"$f":"IFERROR(INDEX('LFA Expenditure_7B imp-exp'!J$2:J$18,MATCH('LFA Expenditure_7B'!B56,'LFA Expenditure_7B imp-exp'!N$2:N$18,0)),\"\")","v":""},null,0,{"$error":"#VALUE!"}]
["Don't Show","Costgrp50",{"$f":"IFERROR(INDEX('LFA Expenditure_7B imp-exp'!A$2:A$18,MATCH('LFA Expenditure_7B'!B57,'LFA Expenditure_7B imp-exp'!N$2:N$18,0)),\"\")","v":""},null,{"$f":"IFERROR(INDEX('LFA Expenditure_7B imp-exp'!C$2:C$18,MATCH('LFA Expenditure_7B'!B57,'LFA Expenditure_7B imp-exp'!N$2:N$18,0)),\"\")","v":""},{"$f":"'PR Expenditure_7A'!F58","v":0},null,0,{"$error":"#VALUE!"},null,null,{"$f":"IFERROR(INDEX('LFA Expenditure_7B imp-exp'!J$2:J$18,MATCH('LFA Expenditure_7B'!B57,'LFA Expenditure_7B imp-exp'!N$2:N$18,0)),\"\")","v":""},null,0,{"$error":"#VALUE!"}]
["Don't Show","Costgrp51",{"$f":"IFERROR(INDEX('LFA Expenditure_7B imp-exp'!A$2:A$18,MATCH('LFA Expenditure_7B'!B58,'LFA Expenditure_7B imp-exp'!N$2:N$18,0)),\"\")","v":""},null,{"$f":"IFERROR(INDEX('LFA Expenditure_7B imp-exp'!C$2:C$18,MATCH('LFA Expenditure_7B'!B58,'LFA Expenditure_7B imp-exp'!N$2:N$18,0)),\"\")","v":""},{"$f":"'PR Expenditure_7A'!F59","v":0},null,0,{"$error":"#VALUE!"},null,null,{"$f":"IFERROR(INDEX('LFA Expenditure_7B imp-exp'!J$2:J$18,MATCH('LFA Expenditure_7B'!B58,'LFA Expenditure_7B imp-exp'!N$2:N$18,0)),\"\")","v":""},null,0,{"$error":"#VALUE!"}]
["Don't Show","Costgrp52",{"$f":"IFERROR(INDEX('LFA Expenditure_7B imp-exp'!A$2:A$18,MATCH('LFA Expenditure_7B'!B59,'LFA Expenditure_7B imp-exp'!N$2:N$18,0)),\"\")","v":""},null,{"$f":"IFERROR(INDEX('LFA Expenditure_7B imp-exp'!C$2:C$18,MATCH('LFA Expenditure_7B'!B59,'LFA Expenditure_7B imp-exp'!N$2:N$18,0)),\"\")","v":""},{"$f":"'PR Expenditure_7A'!F60","v":0},null,0,{"$error":"#VALUE!"},null,null,{"$f":"IFERROR(INDEX('LFA Expenditure_7B imp-exp'!J$2:J$18,MATCH('LFA Expenditure_7B'!B59,'LFA Expenditure_7B imp-exp'!N$2:N$18,0)),\"\")","v":""},null,0,{"$error":"#VALUE!"}]
["Don't Show","Costgrp53",{"$f":"IFERROR(INDEX('LFA Expenditure_7B imp-exp'!A$2:A$18,MATCH('LFA Expenditure_7B'!B60,'LFA Expenditure_7B imp-exp'!N$2:N$18,0)),\"\")","v":""},null,{"$f":"IFERROR(INDEX('LFA Expenditure_7B imp-exp'!C$2:C$18,MATCH('LFA Expenditure_7B'!B60,'LFA Expenditure_7B imp-exp'!N$2:N$18,0)),\"\")","v":""},{"$f":"'PR Expenditure_7A'!F65","v":0},null,0,{"$error":"#VALUE!"},null,null,{"$f":"IFERROR(INDEX('LFA Expenditure_7B imp-exp'!J$2:J$18,MATCH('LFA Expenditure_7B'!B60,'LFA Expenditure_7B imp-exp'!N$2:N$18,0)),\"\")","v":""},null,0,{"$error":"#VALUE!"}]
["Don't Show","Costgrp54",{"$f":"IFERROR(INDEX('LFA Expenditure_7B imp-exp'!A$2:A$18,MATCH('LFA Expenditure_7B'!B61,'LFA Expenditure_7B imp-exp'!N$2:N$18,0)),\"\")","v":""},null,{"$f":"IFERROR(INDEX('LFA Expenditure_7B imp-exp'!C$2:C$18,MATCH('LFA Expenditure_7B'!B61,'LFA Expenditure_7B imp-exp'!N$2:N$18,0)),\"\")","v":""},{"$f":"'PR Expenditure_7A'!F66","v":0},null,0,{"$error":"#VALUE!"},null,null,{"$f":"IFERROR(INDEX('LFA Expenditure_7B imp-exp'!J$2:J$18,MATCH('LFA Expenditure_7B'!B61,'LFA Expenditure_7B imp-exp'!N$2:N$18,0)),\"\")","v":""},null,0,{"$error":"#VALUE!"}]
["Don't Show","Costgrp55",{"$f":"IFERROR(INDEX('LFA Expenditure_7B imp-exp'!A$2:A$18,MATCH('LFA Expenditure_7B'!B62,'LFA Expenditure_7B imp-exp'!N$2:N$18,0)),\"\")","v":""},null,{"$f":"IFERROR(INDEX('LFA Expenditure_7B imp-exp'!C$2:C$18,MATCH('LFA Expenditure_7B'!B62,'LFA Expenditure_7B imp-exp'!N$2:N$18,0)),\"\")","v":""},{"$f":"'PR Expenditure_7A'!F67","v":0},null,0,{"$error":"#VALUE!"},null,null,{"$f":"IFERROR(INDEX('LFA Expenditure_7B imp-exp'!J$2:J$18,MATCH('LFA Expenditure_7B'!B62,'LFA Expenditure_7B imp-exp'!N$2:N$18,0)),\"\")","v":""},null,0,{"$error":"#VALUE!"}]
["Don't Show","Costgrp56",{"$f":"IFERROR(INDEX('LFA Expenditure_7B imp-exp'!A$2:A$18,MATCH('LFA Expenditure_7B'!B63,'LFA Expenditure_7B imp-exp'!N$2:N$18,0)),\"\")","v":""},null,{"$f":"IFERROR(INDEX('LFA Expenditure_7B imp-exp'!C$2:C$18,MATCH('LFA Expenditure_7B'!B63,'LFA Expenditure_7B imp-exp'!N$2:N$18,0)),\"\")","v":""},{"$f":"'PR Expenditure_7A'!F68","v":0},null,0,{"$error":"#VALUE!"},null,null,{"$f":"IFERROR(INDEX('LFA Expenditure_7B imp-exp'!J$2:J$18,MATCH('LFA Expenditure_7B'!B63,'LFA Expenditure_7B imp-exp'!N$2:N$18,0)),\"\")","v":""},null,0,{"$error":"#VALUE!"}]
["Don't Show","Costgrp57",{"$f":"IFERROR(INDEX('LFA Expenditure_7B imp-exp'!A$2:A$18,MATCH('LFA Expenditure_7B'!B64,'LFA Expenditure_7B imp-exp'!N$2:N$18,0)),\"\")","v":""},null,{"$f":"IFERROR(INDEX('LFA Expenditure_7B imp-exp'!C$2:C$18,MATCH('LFA Expenditure_7B'!B64,'LFA Expenditure_7B imp-exp'!N$2:N$18,0)),\"\")","v":""},{"$f":"'PR Expenditure_7A'!F65","v":0},null,0,{"$error":"#VALUE!"},null,null,{"$f":"IFERROR(INDEX('LFA Expenditure_7B imp-exp'!J$2:J$18,MATCH('LFA Expenditure_7B'!B64,'LFA Expenditure_7B imp-exp'!N$2:N$18,0)),\"\")","v":""},null,0,{"$error":"#VALUE!"}]
["Don't Show","Costgrp58",{"$f":"IFERROR(INDEX('LFA Expenditure_7B imp-exp'!A$2:A$18,MATCH('LFA Expenditure_7B'!B65,'LFA Expenditure_7B imp-exp'!N$2:N$18,0)),\"\")","v":""},null,{"$f":"IFERROR(INDEX('LFA Expenditure_7B imp-exp'!C$2:C$18,MATCH('LFA Expenditure_7B'!B65,'LFA Expenditure_7B imp-exp'!N$2:N$18,0)),\"\")","v":""},{"$f":"'PR Expenditure_7A'!F66","v":0},null,0,{"$error":"#VALUE!"},null,null,{"$f":"IFERROR(INDEX('LFA Expenditure_7B imp-exp'!J$2:J$18,MATCH('LFA Expenditure_7B'!B65,'LFA Expenditure_7B imp-exp'!N$2:N$18,0)),\"\")","v":""},null,0,{"$error":"#VALUE!"}]
["Don't Show","Costgrp59",{"$f":"IFERROR(INDEX('LFA Expenditure_7B imp-exp'!A$2:A$18,MATCH('LFA Expenditure_7B'!B66,'LFA Expenditure_7B imp-exp'!N$2:N$18,0)),\"\")","v":""},null,{"$f":"IFERROR(INDEX('LFA Expenditure_7B imp-exp'!C$2:C$18,MATCH('LFA Expenditure_7B'!B66,'LFA Expenditure_7B imp-exp'!N$2:N$18,0)),\"\")","v":""},{"$f":"'PR Expenditure_7A'!F67","v":0},null,0,{"$error":"#VALUE!"},null,null,{"$f":"IFERROR(INDEX('LFA Expenditure_7B imp-exp'!J$2:J$18,MATCH('LFA Expenditure_7B'!B66,'LFA Expenditure_7B imp-exp'!N$2:N$18,0)),\"\")","v":""},null,0,{"$error":"#VALUE!"}]
["Don't Show","Costgrp60",{"$f":"IFERROR(INDEX('LFA Expenditure_7B imp-exp'!A$2:A$18,MATCH('LFA Expenditure_7B'!B67,'LFA Expenditure_7B imp-exp'!N$2:N$18,0)),\"\")","v":""},null,{"$f":"IFERROR(INDEX('LFA Expenditure_7B imp-exp'!C$2:C$18,MATCH('LFA Expenditure_7B'!B67,'LFA Expenditure_7B imp-exp'!N$2:N$18,0)),\"\")","v":""},{"$f":"'PR Expenditure_7A'!F72","v":0},null,0,{"$error":"#VALUE!"},null,null,{"$f":"IFERROR(INDEX('LFA Expenditure_7B imp-exp'!J$2:J$18,MATCH('LFA Expenditure_7B'!B67,'LFA Expenditure_7B imp-exp'!N$2:N$18,0)),\"\")","v":""},null,0,{"$error":"#VALUE!"}]
["Don't Show","NewCostgrp1",null,null,0,{"$f":"'PR Expenditure_7A'!F69","v":0},null,{"$f":"IFERROR((E68)-(F68+G68),0)","v":0},{"$f":"IF(AND((E68)=0,(F68+G68)=0),\"N/A\",IF(AND((E68)=0,(F68+G68)<>0),\"Not Budgeted\",(F68+G68)/(E68)))","v":"N/A"},null,null,0,null,{"$f":"IFERROR(L68-M68,0)","v":0},{"$f":"IF(AND(L68=0,M68=0),\"N/A\",IF(AND(L68=0,M68<>0),\"Not Budgeted\",M68/L68))","v":"N/A"},null,null,null,null,null,{"$f":"IF(C68<>\"\",VLOOKUP(C68,'Reference Records'!$E$94:$G$95,3,FALSE),\"\")","v":""}]
["Don't Show","NewCostgrp2",null,null,0,{"$f":"'PR Expenditure_7A'!F70","v":0},null,{"$f":"IFERROR((E69)-(F69+G69),0)","v":0},{"$f":"IF(AND((E69)=0,(F69+G69)=0),\"N/A\",IF(AND((E69)=0,(F69+G69)<>0),\"Not Budgeted\",(F69+G69)/(E69)))","v":"N/A"},null,null,0,null,{"$f":"IFERROR(L69-M69,0)","v":0},{"$f":"IF(AND(L69=0,M69=0),\"N/A\",IF(AND(L69=0,M69<>0),\"Not Budgeted\",M69/L69))","v":"N/A"}]
["Don't Show","NewCostgrp3",null,null,0,{"$f":"'PR Expenditure_7A'!F71","v":0},null,0,"N/A",null,null,0,null,0,"N/A"]
["Don't Show","NewCostgrp4",null,null,0,{"$f":"'PR Expenditure_7A'!F72","v":0},null,0,"N/A",null,null,0,null,0,"N/A"]
["Don't Show","NewCostgrp5",null,null,0,{"$f":"'PR Expenditure_7A'!F73","v":0},null,0,"N/A",null,null,0,null,0,"N/A"]
["Don't Show","NewCostgrp6",null,null,0,{"$f":"'PR Expenditure_7A'!F74","v":0},null,0,"N/A",null,null,0,null,0,"N/A"]
["Don't Show","NewCostgrp7",null,null,0,{"$f":"'PR Expenditure_7A'!F75","v":0},null,0,"N/A",null,null,0,null,0,"N/A"]
["Don't Show","NewCostgrp8",null,null,0,{"$f":"'PR Expenditure_7A'!F76","v":0},null,0,"N/A",null,null,0,null,0,"N/A"]
["Don't Show","NewCostgrp9",null,null,0,{"$f":"'PR Expenditure_7A'!F77","v":0},null,0,"N/A",null,null,0,null,0,"N/A"]
["Don't Show","NewCostgrp10",null,null,0,{"$f":"'PR Expenditure_7A'!F78","v":0},null,0,"N/A",null,null,0,null,0,"N/A"]
["Don't Show","NewCostgrp11",null,null,0,{"$f":"'PR Expenditure_7A'!F79","v":0},null,0,"N/A",null,null,0,null,0,"N/A"]
["Don't Show","NewCostgrp12",null,null,0,{"$f":"'PR Expenditure_7A'!F80","v":0},null,0,"N/A",null,null,0,null,0,"N/A"]
["Don't Show","NewCostgrp13",null,null,0,{"$f":"'PR Expenditure_7A'!F81","v":0},null,0,"N/A",null,null,0,null,0,"N/A"]
["Don't Show","NewCostgrp14",null,null,0,{"$f":"'PR Expenditure_7A'!F82","v":0},null,0,"N/A",null,null,0,null,0,"N/A"]
["Don't Show","NewCostgrp15",null,null,0,{"$f":"'PR Expenditure_7A'!F83","v":0},null,0,"N/A",null,null,0,null,0,"N/A"]
["Don't Show","NewCostgrp16",null,null,0,{"$f":"'PR Expenditure_7A'!F84","v":0},null,0,"N/A",null,null,0,null,0,"N/A"]
["Don't Show","NewCostgrp17",null,null,0,{"$f":"'PR Expenditure_7A'!F85","v":0},null,0,"N/A",null,null,0,null,0,"N/A"]
["Don't Show","NewCostgrp18",null,null,0,{"$f":"'PR Expenditure_7A'!F86","v":0},null,0,"N/A",null,null,0,null,0,"N/A"]
["Don't Show","NewCostgrp19",null,null,0,{"$f":"'PR Expenditure_7A'!F87","v":0},null,0,"N/A",null,null,0,null,0,"N/A"]
["Don't Show","NewCostgrp20",null,null,0,{"$f":"'PR Expenditure_7A'!F88","v":0},null,0,"N/A",null,null,0,null,0,"N/A"]
["Don't Show","NewCostgrp21",null,null,0,{"$f":"'PR Expenditure_7A'!F89","v":0},null,0,"N/A",null,null,0,null,0,"N/A"]
["Don't Show","NewCostgrp22",null,null,0,{"$f":"'PR Expenditure_7A'!F90","v":0},null,0,"N/A",null,null,0,null,0,"N/A"]
["Don't Show","NewCostgrp23",null,null,0,{"$f":"'PR Expenditure_7A'!F91","v":0},null,0,"N/A",null,null,0,null,0,"N/A"]
["Don't Show","NewCostgrp24",null,null,0,{"$f":"'PR Expenditure_7A'!F92","v":0},null,0,"N/A",null,null,0,null,0,"N/A"]
["Don't Show","NewCostgrp25",null,null,0,{"$f":"'PR Expenditure_7A'!F93","v":0},null,0,"N/A",null,null,0,null,0,"N/A"]
["Don't Show","NewCostgrp26",null,null,0,{"$f":"'PR Expenditure_7A'!F94","v":0},null,0,"N/A",null,null,0,null,0,"N/A"]
[{"$f":"IF(C94<>\"\",\"Show\",\"Don't Show\")","v":"Don't Show"},"NewCostgrp27",null,null,0,{"$f":"'PR Expenditure_7A'!F95","v":0},null,0,"N/A",null,null,0,null,0,"N/A"]
["Don't Show","NewCostgrp28",null,null,0,{"$f":"'PR Expenditure_7A'!F96","v":0},null,0,"N/A",null,null,0,null,0,"N/A"]
["Don't Show","NewCostgrp29",null,null,0,{"$f":"'PR Expenditure_7A'!F97","v":0},null,0,"N/A",null,null,0,null,0,"N/A"]
["Don't Show","NewCostgrp30",null,null,0,{"$f":"'PR Expenditure_7A'!F98","v":0},null,0,"N/A",null,null,0,null,0,"N/A"]
["Show",null,"Grand Total",null,{"$f":"ROUND(SUM(E8:E97),2)","v":4057896.79},{"$f":"ROUND(SUM(F8:F97),2)","v":906162.23},{"$f":"ROUND(SUM(G8:G97),2)","v":0},{"$f":"ROUND(SUM(H8:H97),2)","v":3265385.37},{"$f":"(F98+G98)/(E98)","v":0.22330834836240376},null,null,{"$f":"ROUND(SUM(L8:L97),2)","v":4057896.79},{"$f":"ROUND(SUM(M8:M97),2)","v":0},{"$f":"ROUND(SUM(N8:N97),2)","v":4057896.79},{"$f":"M98/L98","v":0}]
["Show"]
["Show",null,"B. BREAKDOWN BY INTERVENTIONS"]
["Show"]
["Show",null,"Modular Approach - Modules","Modular Approach - Interventions","Budget for Reporting Period","Actual Expenditure ","Local Fund Agent Adjustment on Expenditures","Budget Vs Actual Variances","Absorption Rate","LFA comments on the Principal Recipient's explanation of variances",null,"Cumulative Budget","Cumulative Actual Expenditure","Cumulative Budget Vs Actuals Variances","Absorption Rate"]
[{"$f":"IF(C103<>\"\",\"Show\",\"Don't Show\")","v":"Show"},"Int1",{"$f":"IFERROR(INDEX('LFA Expenditure_7B imp-exp'!A$22:A$33,MATCH('LFA Expenditure_7B'!B103,'LFA Expenditure_7B imp-exp'!N$22:N$33,0)),\"\")","v":"Vector control"},{"$f":"IFERROR(INDEX('LFA Expenditure_7B imp-exp'!B$22:B$33,MATCH('LFA Expenditure_7B'!B103,'LFA Expenditure_7B imp-exp'!N$22:N$33,0)),\"\")","v":"IEC/BCC (Vector control)"},{"$f":"IFERROR(INDEX('LFA Expenditure_7B imp-exp'!C$22:C$33,MATCH('LFA Expenditure_7B'!B103,'LFA Expenditure_7B imp-exp'!N$22:N$33,0)),\"\")","v":54087.803655188698},{"$f":"'PR Expenditure_7A'!F104","v":25716.67},null,{"$f":"IFERROR((E103)-(F103+G103),0)","v":28371.1336551887},{"$f":"IF(AND((E103)=0,(F103+G103)=0),\"N/A\",IF(AND((E103)=0,(F103+G103)<>0),\"Not Budgeted\",(F103+G103)/(E103)))","v":0.47546153221425863},null,null,{"$f":"IFERROR(INDEX('LFA Expenditure_7B imp-exp'!J$22:J$33,MATCH('LFA Expenditure_7B'!B103,'LFA Expenditure_7B imp-exp'!N$22:N$33,0)),\"\")","v":54087.803655188698},null,{"$f":"IFERROR(L103-M103,0)","v":54087.803655188698},{"$f":"IF(AND(L103=0,M103=0),\"N/A\",IF(AND(L103=0,M103<>0),\"Not Budgeted\",M103/L103))","v":0}]
[{"$f":"IF(C104<>\"\",\"Show\",\"Don't Show\")","v":"Show"},"Int2",{"$f":"IFERROR(INDEX('LFA Expenditure_7B imp-exp'!A$22:A$33,MATCH('LFA Expenditure_7B'!B104,'LFA Expenditure_7B imp-exp'!N$22:N$33,0)),\"\")","v":"RSSH: Health management information systems and M&E"},{"$f":"IFERROR(INDEX('LFA Expenditure_7B imp-exp'!B$22:B$33,MATCH('LFA Expenditure_7B'!B104,'LFA Expenditure_7B imp-exp'!N$22:N$33,0)),\"\")","v":"Analysis, review and transparency"},{"$f":"IFERROR(INDEX('LFA Expenditure_7B imp-exp'!C$22:C$33,MATCH('LFA Expenditure_7B'!B104,'LFA Expenditure_7B imp-exp'!N$22:N$33,0)),\"\")","v":3390},{"$f":"'PR Expenditure_7A'!F105","v":0},null,{"$f":"IFERROR((E104)-(F104+G104),0)","v":3390},{"$f":"IF(AND((E104)=0,(F104+G104)=0),\"N/A\",IF(AND((E104)=0,(F104+G104)<>0),\"Not Budgeted\",(F104+G104)/(E104)))","v":0},null,null,{"$f":"IFERROR(INDEX('LFA Expenditure_7B imp-exp'!J$22:J$33,MATCH('LFA Expenditure_7B'!B104,'LFA Expenditure_7B imp-exp'!N$22:N$33,0)),\"\")","v":3390},null,{"$f":"IFERROR(L104-M104,0)","v":3390},{"$f":"IF(AND(L104=0,M104=0),\"N/A\",IF(AND(L104=0,M104<>0),\"Not Budgeted\",M104/L104))","v":0}]
["Show","Int3",{"$f":"IFERROR(INDEX('LFA Expenditure_7B imp-exp'!A$22:A$33,MATCH('LFA Expenditure_7B'!B105,'LFA Expenditure_7B imp-exp'!N$22:N$33,0)),\"\")","v":"Program management"},{"$f":"IFERROR(INDEX('LFA Expenditure_7B imp-exp'!B$22:B$33,MATCH('LFA Expenditure_7B'!B105,'LFA Expenditure_7B imp-exp'!N$22:N$33,0)),\"\")","v":"Policy, planning, coordination and management of national disease control programs"},{"$f":"IFERROR(INDEX('LFA Expenditure_7B imp-exp'!C$22:C$33,MATCH('LFA Expenditure_7B'!B105,'LFA Expenditure_7B imp-exp'!N$22:N$33,0)),\"\")","v":92875.790708516404},{"$f":"'PR Expenditure_7A'!F106","v":21699.849999999995},null,71175.940708516413,0.2336437712611602,null,null,{"$f":"IFERROR(INDEX('LFA Expenditure_7B imp-exp'!J$22:J$33,MATCH('LFA Expenditure_7B'!B105,'LFA Expenditure_7B imp-exp'!N$22:N$33,0)),\"\")","v":92875.790708516404},null,92875.790708516404,0]
["Show","Int4",{"$f":"IFERROR(INDEX('LFA Expenditure_7B imp-exp'!A$22:A$33,MATCH('LFA Expenditure_7B'!B106,'LFA Expenditure_7B imp-exp'!N$22:N$33,0)),\"\")","v":"RSSH: Health management information systems and M&E"},{"$f":"IFERROR(INDEX('LFA Expenditure_7B imp-exp'!B$22:B$33,MATCH('LFA Expenditure_7B'!B106,'LFA Expenditure_7B imp-exp'!N$22:N$33,0)),\"\")","v":"Program and data quality"},{"$f":"IFERROR(INDEX('LFA Expenditure_7B imp-exp'!C$22:C$33,MATCH('LFA Expenditure_7B'!B106,'LFA Expenditure_7B imp-exp'!N$22:N$33,0)),\"\")","v":55228.813697177298},{"$f":"'PR Expenditure_7A'!F107","v":21734.55},null,33494.263697177303,0.39353642682190793,null,null,{"$f":"IFERROR(INDEX('LFA Expenditure_7B imp-exp'!J$22:J$33,MATCH('LFA Expenditure_7B'!B106,'LFA Expenditure_7B imp-exp'!N$22:N$33,0)),\"\")","v":55228.813697177298},null,55228.813697177298,0]
["Show","Int5",{"$f":"IFERROR(INDEX('LFA Expenditure_7B imp-exp'!A$22:A$33,MATCH('LFA Expenditure_7B'!B107,'LFA Expenditure_7B imp-exp'!N$22:N$33,0)),\"\")","v":"RSSH: Health management information systems and M&E"},{"$f":"IFERROR(INDEX('LFA Expenditure_7B imp-exp'!B$22:B$33,MATCH('LFA Expenditure_7B'!B107,'LFA Expenditure_7B imp-exp'!N$22:N$33,0)),\"\")","v":"Surveys"},{"$f":"IFERROR(INDEX('LFA Expenditure_7B imp-exp'!C$22:C$33,MATCH('LFA Expenditure_7B'!B107,'LFA Expenditure_7B imp-exp'!N$22:N$33,0)),\"\")","v":0},{"$f":"'PR Expenditure_7A'!F108","v":0},null,0,"N/A",null,null,{"$f":"IFERROR(INDEX('LFA Expenditure_7B imp-exp'!J$22:J$33,MATCH('LFA Expenditure_7B'!B107,'LFA Expenditure_7B imp-exp'!N$22:N$33,0)),\"\")","v":0},null,0,"N/A"]
["Show","Int6",{"$f":"IFERROR(INDEX('LFA Expenditure_7B imp-exp'!A$22:A$33,MATCH('LFA Expenditure_7B'!B108,'LFA Expenditure_7B imp-exp'!N$22:N$33,0)),\"\")","v":"RSSH: Financial management systems"},{"$f":"IFERROR(INDEX('LFA Expenditure_7B imp-exp'!B$22:B$33,MATCH('LFA Expenditure_7B'!B108,'LFA Expenditure_7B imp-exp'!N$22:N$33,0)),\"\")","v":"Routine financial management improvement (non-PFM)"},{"$f":"IFERROR(INDEX('LFA Expenditure_7B imp-exp'!C$22:C$33,MATCH('LFA Expenditure_7B'!B108,'LFA Expenditure_7B imp-exp'!N$22:N$33,0)),\"\")","v":0},{"$f":"'PR Expenditure_7A'!F109","v":0},null,0,"N/A",null,null,{"$f":"IFERROR(INDEX('LFA Expenditure_7B imp-exp'!J$22:J$33,MATCH('LFA Expenditure_7B'!B108,'LFA Expenditure_7B imp-exp'!N$22:N$33,0)),\"\")","v":0},null,0,"N/A"]
[{"$f":"IF(C109<>\"\",\"Show\",\"Don't Show\")","v":"Show"},"Int7",{"$f":"IFERROR(INDEX('LFA Expenditure_7B imp-exp'!A$22:A$33,MATCH('LFA Expenditure_7B'!B109,'LFA Expenditure_7B imp-exp'!N$22:N$33,0)),\"\")","v":"Case management"},{"$f":"IFERROR(INDEX('LFA Expenditure_7B imp-exp'!B$22:B$33,MATCH('LFA Expenditure_7B'!B109,'LFA Expenditure_7B imp-exp'!N$22:N$33,0)),\"\")","v":"Integrated community case management (ICCM)"},{"$f":"IFERROR(INDEX('LFA Expenditure_7B imp-exp'!C$22:C$33,MATCH('LFA Expenditure_7B'!B109,'LFA Expenditure_7B imp-exp'!N$22:N$33,0)),\"\")","v":402240.35134409199},{"$f":"'PR Expenditure_7A'!F110","v":0},null,{"$f":"IFERROR((E109)-(F109+G109),0)","v":402240.35134409199},{"$f":"IF(AND((E109)=0,(F109+G109)=0),\"N/A\",IF(AND((E109)=0,(F109+G109)<>0),\"Not Budgeted\",(F109+G109)/(E109)))","v":0},null,null,{"$f":"IFERROR(INDEX('LFA Expenditure_7B imp-exp'!J$22:J$33,MATCH('LFA Expenditure_7B'!B109,'LFA Expenditure_7B imp-exp'!N$22:N$33,0)),\"\")","v":402240.35134409199},null,{"$f":"IFERROR(L109-M109,0)","v":402240.35134409199},{"$f":"IF(AND(L109=0,M109=0),\"N/A\",IF(AND(L109=0,M109<>0),\"Not Budgeted\",M109/L109))","v":0}]
["Show","Int8",{"$f":"IFERROR(INDEX('LFA Expenditure_7B imp-exp'!A$22:A$33,MATCH('LFA Expenditure_7B'!B110,'LFA Expenditure_7B imp-exp'!N$22:N$33,0)),\"\")","v":"Case management"},{"$f":"IFERROR(INDEX('LFA Expenditure_7B imp-exp'!B$22:B$33,MATCH('LFA Expenditure_7B'!B110,'LFA Expenditure_7B imp-exp'!N$22:N$33,0)),\"\")","v":"Private sector case management"},{"$f":"IFERROR(INDEX('LFA Expenditure_7B imp-exp'!C$22:C$33,MATCH('LFA Expenditure_7B'!B110,'LFA Expenditure_7B imp-exp'!N$22:N$33,0)),\"\")","v":3313.9672872015599},{"$f":"'PR Expenditure_7A'!F111","v":0},null,3313.9672872015599,0,null,null,{"$f":"IFERROR(INDEX('LFA Expenditure_7B imp-exp'!J$22:J$33,MATCH('LFA Expenditure_7B'!B110,'LFA Expenditure_7B imp-exp'!N$22:N$33,0)),\"\")","v":3313.9672872015599},null,3313.9672872015599,0]
["Show","Int9",{"$f":"IFERROR(INDEX('LFA Expenditure_7B imp-exp'!A$22:A$33,MATCH('LFA Expenditure_7B'!B111,'LFA Expenditure_7B imp-exp'!N$22:N$33,0)),\"\")","v":"Program management"},{"$f":"IFERROR(INDEX('LFA Expenditure_7B imp-exp'!B$22:B$33,MATCH('LFA Expenditure_7B'!B111,'LFA Expenditure_7B imp-exp'!N$22:N$33,0)),\"\")","v":"Grant management"},{"$f":"IFERROR(INDEX('LFA Expenditure_7B imp-exp'!C$22:C$33,MATCH('LFA Expenditure_7B'!B111,'LFA Expenditure_7B imp-exp'!N$22:N$33,0)),\"\")","v":1238161.9280624299},{"$f":"'PR Expenditure_7A'!F112","v":636591.57999999996},null,601570.34806242993,0.51414242803943011,null,null,{"$f":"IFERROR(INDEX('LFA Expenditure_7B imp-exp'!J$22:J$33,MATCH('LFA Expenditure_7B'!B111,'LFA Expenditure_7B imp-exp'!N$22:N$33,0)),\"\")","v":1238161.9280624299},null,1238161.9280624299,0]
["Show","Int10",{"$f":"IFERROR(INDEX('LFA Expenditure_7B imp-exp'!A$22:A$33,MATCH('LFA Expenditure_7B'!B112,'LFA Expenditure_7B imp-exp'!N$22:N$33,0)),\"\")","v":"Case management"},{"$f":"IFERROR(INDEX('LFA Expenditure_7B imp-exp'!B$22:B$33,MATCH('LFA Expenditure_7B'!B112,'LFA Expenditure_7B imp-exp'!N$22:N$33,0)),\"\")","v":"Facility-based treatment"},{"$f":"IFERROR(INDEX('LFA Expenditure_7B imp-exp'!C$22:C$33,MATCH('LFA Expenditure_7B'!B112,'LFA Expenditure_7B imp-exp'!N$22:N$33,0)),\"\")","v":2208598.14},{"$f":"'PR Expenditure_7A'!F113","v":8498.9200000000019},null,2200099.2200000002,3.8481061113272517E-3,null,null,{"$f":"IFERROR(INDEX('LFA Expenditure_7B imp-exp'!J$22:J$33,MATCH('LFA Expenditure_7B'!B112,'LFA Expenditure_7B imp-exp'!N$22:N$33,0)),\"\")","v":2208598.14},null,2208598.14,0]
["Don't Show","Int11",{"$f":"IFERROR(INDEX('LFA Expenditure_7B imp-exp'!A$22:A$33,MATCH('LFA Expenditure_7B'!B113,'LFA Expenditure_7B imp-exp'!N$22:N$33,0)),\"\")","v":""},{"$f":"IFERROR(INDEX('LFA Expenditure_7B imp-exp'!B$22:B$33,MATCH('LFA Expenditure_7B'!B113,'LFA Expenditure_7B imp-exp'!N$22:N$33,0)),\"\")","v":""},{"$f":"IFERROR(INDEX('LFA Expenditure_7B imp-exp'!C$22:C$33,MATCH('LFA Expenditure_7B'!B113,'LFA Expenditure_7B imp-exp'!N$22:N$33,0)),\"\")","v":""},{"$f":"'PR Expenditure_7A'!F114","v":0},null,0,{"$error":"#VALUE!"},null,null,{"$f":"IFERROR(INDEX('LFA Expenditure_7B imp-exp'!J$22:J$33,MATCH('LFA Expenditure_7B'!B113,'LFA Expenditure_7B imp-exp'!N$22:N$33,0)),\"\")","v":""},null,0,{"$error":"#VALUE!"}]
["Don't Show","Int12",{"$f":"IFERROR(INDEX('LFA Expenditure_7B imp-exp'!A$22:A$33,MATCH('LFA Expenditure_7B'!B114,'LFA Expenditure_7B imp-exp'!N$22:N$33,0)),\"\")","v":""},{"$f":"IFERROR(INDEX('LFA Expenditure_7B imp-exp'!B$22:B$33,MATCH('LFA Expenditure_7B'!B114,'LFA Expenditure_7B imp-exp'!N$22:N$33,0)),\"\")","v":""},{"$f":"IFERROR(INDEX('LFA Expenditure_7B imp-exp'!C$22:C$33,MATCH('LFA Expenditure_7B'!B114,'LFA Expenditure_7B imp-exp'!N$22:N$33,0)),\"\")","v":""},{"$f":"'PR Expenditure_7A'!F115","v":0},null,0,{"$error":"#VALUE!"},null,null,{"$f":"IFERROR(INDEX('LFA Expenditure_7B imp-exp'!J$22:J$33,MATCH('LFA Expenditure_7B'!B114,'LFA Expenditure_7B imp-exp'!N$22:N$33,0)),\"\")","v":""},null,0,{"$error":"#VALUE!"}]
["Don't Show","Int13",{"$f":"IFERROR(INDEX('LFA Expenditure_7B imp-exp'!A$22:A$33,MATCH('LFA Expenditure_7B'!B115,'LFA Expenditure_7B imp-exp'!N$22:N$33,0)),\"\")","v":""},{"$f":"IFERROR(INDEX('LFA Expenditure_7B imp-exp'!B$22:B$33,MATCH('LFA Expenditure_7B'!B115,'LFA Expenditure_7B imp-exp'!N$22:N$33,0)),\"\")","v":""},{"$f":"IFERROR(INDEX('LFA Expenditure_7B imp-exp'!C$22:C$33,MATCH('LFA Expenditure_7B'!B115,'LFA Expenditure_7B imp-exp'!N$22:N$33,0)),\"\")","v":""},{"$f":"'PR Expenditure_7A'!F116","v":0},null,0,{"$error":"#VALUE!"},null,null,{"$f":"IFERROR(INDEX('LFA Expenditure_7B imp-exp'!J$22:J$33,MATCH('LFA Expenditure_7B'!B115,'LFA Expenditure_7B imp-exp'!N$22:N$33,0)),\"\")","v":""},null,0,{"$error":"#VALUE!"}]
["Don't Show","Int14",{"$f":"IFERROR(INDEX('LFA Expenditure_7B imp-exp'!A$22:A$33,MATCH('LFA Expenditure_7B'!B116,'LFA Expenditure_7B imp-exp'!N$22:N$33,0)),\"\")","v":""},{"$f":"IFERROR(INDEX('LFA Expenditure_7B imp-exp'!B$22:B$33,MATCH('LFA Expenditure_7B'!B116,'LFA Expenditure_7B imp-exp'!N$22:N$33,0)),\"\")","v":""},{"$f":"IFERROR(INDEX('LFA Expenditure_7B imp-exp'!C$22:C$33,MATCH('LFA Expenditure_7B'!B116,'LFA Expenditure_7B imp-exp'!N$22:N$33,0)),\"\")","v":""},{"$f":"'PR Expenditure_7A'!F117","v":0},null,0,{"$error":"#VALUE!"},null,null,{"$f":"IFERROR(INDEX('LFA Expenditure_7B imp-exp'!J$22:J$33,MATCH('LFA Expenditure_7B'!B116,'LFA Expenditure_7B imp-exp'!N$22:N$33,0)),\"\")","v":""},null,0,{"$error":"#VALUE!"}]
["Don't Show","Int15",{"$f":"IFERROR(INDEX('LFA Expenditure_7B imp-exp'!A$22:A$33,MATCH('LFA Expenditure_7B'!B117,'LFA Expenditure_7B imp-exp'!N$22:N$33,0)),\"\")","v":""},{"$f":"IFERROR(INDEX('LFA Expenditure_7B imp-exp'!B$22:B$33,MATCH('LFA Expenditure_7B'!B117,'LFA Expenditure_7B imp-exp'!N$22:N$33,0)),\"\")","v":""},{"$f":"IFERROR(INDEX('LFA Expenditure_7B imp-exp'!C$22:C$33,MATCH('LFA Expenditure_7B'!B117,'LFA Expenditure_7B imp-exp'!N$22:N$33,0)),\"\")","v":""},{"$f":"'PR Expenditure_7A'!F118","v":0},null,0,{"$error":"#VALUE!"},null,null,{"$f":"IFERROR(INDEX('LFA Expenditure_7B imp-exp'!J$22:J$33,MATCH('LFA Expenditure_7B'!B117,'LFA Expenditure_7B imp-exp'!N$22:N$33,0)),\"\")","v":""},null,0,{"$error":"#VALUE!"}]
["Don't Show","Int16",{"$f":"IFERROR(INDEX('LFA Expenditure_7B imp-exp'!A$22:A$33,MATCH('LFA Expenditure_7B'!B118,'LFA Expenditure_7B imp-exp'!N$22:N$33,0)),\"\")","v":""},{"$f":"IFERROR(INDEX('LFA Expenditure_7B imp-exp'!B$22:B$33,MATCH('LFA Expenditure_7B'!B118,'LFA Expenditure_7B imp-exp'!N$22:N$33,0)),\"\")","v":""},{"$f":"IFERROR(INDEX('LFA Expenditure_7B imp-exp'!C$22:C$33,MATCH('LFA Expenditure_7B'!B118,'LFA Expenditure_7B imp-exp'!N$22:N$33,0)),\"\")","v":""},{"$f":"'PR Expenditure_7A'!F119","v":0},null,0,{"$error":"#VALUE!"},null,null,{"$f":"IFERROR(INDEX('LFA Expenditure_7B imp-exp'!J$22:J$33,MATCH('LFA Expenditure_7B'!B118,'LFA Expenditure_7B imp-exp'!N$22:N$33,0)),\"\")","v":""},null,0,{"$error":"#VALUE!"}]
["Don't Show","Int17",{"$f":"IFERROR(INDEX('LFA Expenditure_7B imp-exp'!A$22:A$33,MATCH('LFA Expenditure_7B'!B119,'LFA Expenditure_7B imp-exp'!N$22:N$33,0)),\"\")","v":""},{"$f":"IFERROR(INDEX('LFA Expenditure_7B imp-exp'!B$22:B$33,MATCH('LFA Expenditure_7B'!B119,'LFA Expenditure_7B imp-exp'!N$22:N$33,0)),\"\")","v":""},{"$f":"IFERROR(INDEX('LFA Expenditure_7B imp-exp'!C$22:C$33,MATCH('LFA Expenditure_7B'!B119,'LFA Expenditure_7B imp-exp'!N$22:N$33,0)),\"\")","v":""},{"$f":"'PR Expenditure_7A'!F120","v":0},null,0,{"$error":"#VALUE!"},null,null,{"$f":"IFERROR(INDEX('LFA Expenditure_7B imp-exp'!J$22:J$33,MATCH('LFA Expenditure_7B'!B119,'LFA Expenditure_7B imp-exp'!N$22:N$33,0)),\"\")","v":""},null,0,{"$error":"#VALUE!"}]
["Don't Show","Int18",{"$f":"IFERROR(INDEX('LFA Expenditure_7B imp-exp'!A$22:A$33,MATCH('LFA Expenditure_7B'!B120,'LFA Expenditure_7B imp-exp'!N$22:N$33,0)),\"\")","v":""},{"$f":"IFERROR(INDEX('LFA Expenditure_7B imp-exp'!B$22:B$33,MATCH('LFA Expenditure_7B'!B120,'LFA Expenditure_7B imp-exp'!N$22:N$33,0)),\"\")","v":""},{"$f":"IFERROR(INDEX('LFA Expenditure_7B imp-exp'!C$22:C$33,MATCH('LFA Expenditure_7B'!B120,'LFA Expenditure_7B imp-exp'!N$22:N$33,0)),\"\")","v":""},{"$f":"'PR Expenditure_7A'!F121","v":0},null,0,{"$error":"#VALUE!"},null,null,{"$f":"IFERROR(INDEX('LFA Expenditure_7B imp-exp'!J$22:J$33,MATCH('LFA Expenditure_7B'!B120,'LFA Expenditure_7B imp-exp'!N$22:N$33,0)),\"\")","v":""},null,0,{"$error":"#VALUE!"}]
["Don't Show","Int19",{"$f":"IFERROR(INDEX('LFA Expenditure_7B imp-exp'!A$22:A$33,MATCH('LFA Expenditure_7B'!B121,'LFA Expenditure_7B imp-exp'!N$22:N$33,0)),\"\")","v":""},{"$f":"IFERROR(INDEX('LFA Expenditure_7B imp-exp'!B$22:B$33,MATCH('LFA Expenditure_7B'!B121,'LFA Expenditure_7B imp-exp'!N$22:N$33,0)),\"\")","v":""},{"$f":"IFERROR(INDEX('LFA Expenditure_7B imp-exp'!C$22:C$33,MATCH('LFA Expenditure_7B'!B121,'LFA Expenditure_7B imp-exp'!N$22:N$33,0)),\"\")","v":""},{"$f":"'PR Expenditure_7A'!F122","v":0},null,0,{"$error":"#VALUE!"},null,null,{"$f":"IFERROR(INDEX('LFA Expenditure_7B imp-exp'!J$22:J$33,MATCH('LFA Expenditure_7B'!B121,'LFA Expenditure_7B imp-exp'!N$22:N$33,0)),\"\")","v":""},null,0,{"$error":"#VALUE!"}]
["Don't Show","Int20",{"$f":"IFERROR(INDEX('LFA Expenditure_7B imp-exp'!A$22:A$33,MATCH('LFA Expenditure_7B'!B122,'LFA Expenditure_7B imp-exp'!N$22:N$33,0)),\"\")","v":""},{"$f":"IFERROR(INDEX('LFA Expenditure_7B imp-exp'!B$22:B$33,MATCH('LFA Expenditure_7B'!B122,'LFA Expenditure_7B imp-exp'!N$22:N$33,0)),\"\")","v":""},{"$f":"IFERROR(INDEX('LFA Expenditure_7B imp-exp'!C$22:C$33,MATCH('LFA Expenditure_7B'!B122,'LFA Expenditure_7B imp-exp'!N$22:N$33,0)),\"\")","v":""},{"$f":"'PR Expenditure_7A'!F123","v":0},null,0,{"$error":"#VALUE!"},null,null,{"$f":"IFERROR(INDEX('LFA Expenditure_7B imp-exp'!J$22:J$33,MATCH('LFA Expenditure_7B'!B122,'LFA Expenditure_7B imp-exp'!N$22:N$33,0)),\"\")","v":""},null,0,{"$error":"#VALUE!"}]
["Don't Show","Int21",{"$f":"IFERROR(INDEX('LFA Expenditure_7B imp-exp'!A$22:A$33,MATCH('LFA Expenditure_7B'!B123,'LFA Expenditure_7B imp-exp'!N$22:N$33,0)),\"\")","v":""},{"$f":"IFERROR(INDEX('LFA Expenditure_7B imp-exp'!B$22:B$33,MATCH('LFA Expenditure_7B'!B123,'LFA Expenditure_7B imp-exp'!N$22:N$33,0)),\"\")","v":""},{"$f":"IFERROR(INDEX('LFA Expenditure_7B imp-exp'!C$22:C$33,MATCH('LFA Expenditure_7B'!B123,'LFA Expenditure_7B imp-exp'!N$22:N$33,0)),\"\")","v":""},{"$f":"'PR Expenditure_7A'!F124","v":0},null,0,{"$error":"#VALUE!"},null,null,{"$f":"IFERROR(INDEX('LFA Expenditure_7B imp-exp'!J$22:J$33,MATCH('LFA Expenditure_7B'!B123,'LFA Expenditure_7B imp-exp'!N$22:N$33,0)),\"\")","v":""},null,0,{"$error":"#VALUE!"}]
["Don't Show","Int22",{"$f":"IFERROR(INDEX('LFA Expenditure_7B imp-exp'!A$22:A$33,MATCH('LFA Expenditure_7B'!B124,'LFA Expenditure_7B imp-exp'!N$22:N$33,0)),\"\")","v":""},{"$f":"IFERROR(INDEX('LFA Expenditure_7B imp-exp'!B$22:B$33,MATCH('LFA Expenditure_7B'!B124,'LFA Expenditure_7B imp-exp'!N$22:N$33,0)),\"\")","v":""},{"$f":"IFERROR(INDEX('LFA Expenditure_7B imp-exp'!C$22:C$33,MATCH('LFA Expenditure_7B'!B124,'LFA Expenditure_7B imp-exp'!N$22:N$33,0)),\"\")","v":""},{"$f":"'PR Expenditure_7A'!F125","v":0},null,0,{"$error":"#VALUE!"},null,null,{"$f":"IFERROR(INDEX('LFA Expenditure_7B imp-exp'!J$22:J$33,MATCH('LFA Expenditure_7B'!B124,'LFA Expenditure_7B imp-exp'!N$22:N$33,0)),\"\")","v":""},null,0,{"$error":"#VALUE!"}]
["Don't Show","Int23",{"$f":"IFERROR(INDEX('LFA Expenditure_7B imp-exp'!A$22:A$33,MATCH('LFA Expenditure_7B'!B125,'LFA Expenditure_7B imp-exp'!N$22:N$33,0)),\"\")","v":""},{"$f":"IFERROR(INDEX('LFA Expenditure_7B imp-exp'!B$22:B$33,MATCH('LFA Expenditure_7B'!B125,'LFA Expenditure_7B imp-exp'!N$22:N$33,0)),\"\")","v":""},{"$f":"IFERROR(INDEX('LFA Expenditure_7B imp-exp'!C$22:C$33,MATCH('LFA Expenditure_7B'!B125,'LFA Expenditure_7B imp-exp'!N$22:N$33,0)),\"\")","v":""},{"$f":"'PR Expenditure_7A'!F126","v":0},null,0,{"$error":"#VALUE!"},null,null,{"$f":"IFERROR(INDEX('LFA Expenditure_7B imp-exp'!J$22:J$33,MATCH('LFA Expenditure_7B'!B125,'LFA Expenditure_7B imp-exp'!N$22:N$33,0)),\"\")","v":""},null,0,{"$error":"#VALUE!"}]
["Don't Show","Int24",{"$f":"IFERROR(INDEX('LFA Expenditure_7B imp-exp'!A$22:A$33,MATCH('LFA Expenditure_7B'!B126,'LFA Expenditure_7B imp-exp'!N$22:N$33,0)),\"\")","v":""},{"$f":"IFERROR(INDEX('LFA Expenditure_7B imp-exp'!B$22:B$33,MATCH('LFA Expenditure_7B'!B126,'LFA Expenditure_7B imp-exp'!N$22:N$33,0)),\"\")","v":""},{"$f":"IFERROR(INDEX('LFA Expenditure_7B imp-exp'!C$22:C$33,MATCH('LFA Expenditure_7B'!B126,'LFA Expenditure_7B imp-exp'!N$22:N$33,0)),\"\")","v":""},{"$f":"'PR Expenditure_7A'!F127","v":0},null,0,{"$error":"#VALUE!"},null,null,{"$f":"IFERROR(INDEX('LFA Expenditure_7B imp-exp'!J$22:J$33,MATCH('LFA Expenditure_7B'!B126,'LFA Expenditure_7B imp-exp'!N$22:N$33,0)),\"\")","v":""},null,0,{"$error":"#VALUE!"}]
["Don't Show","Int25",{"$f":"IFERROR(INDEX('LFA Expenditure_7B imp-exp'!A$22:A$33,MATCH('LFA Expenditure_7B'!B127,'LFA Expenditure_7B imp-exp'!N$22:N$33,0)),\"\")","v":""},{"$f":"IFERROR(INDEX('LFA Expenditure_7B imp-exp'!B$22:B$33,MATCH('LFA Expenditure_7B'!B127,'LFA Expenditure_7B imp-exp'!N$22:N$33,0)),\"\")","v":""},{"$f":"IFERROR(INDEX('LFA Expenditure_7B imp-exp'!C$22:C$33,MATCH('LFA Expenditure_7B'!B127,'LFA Expenditure_7B imp-exp'!N$22:N$33,0)),\"\")","v":""},{"$f":"'PR Expenditure_7A'!F128","v":0},null,0,{"$error":"#VALUE!"},null,null,{"$f":"IFERROR(INDEX('LFA Expenditure_7B imp-exp'!J$22:J$33,MATCH('LFA Expenditure_7B'!B127,'LFA Expenditure_7B imp-exp'!N$22:N$33,0)),\"\")","v":""},null,0,{"$error":"#VALUE!"}]
["Don't Show","Int26",{"$f":"IFERROR(INDEX('LFA Expenditure_7B imp-exp'!A$22:A$33,MATCH('LFA Expenditure_7B'!B128,'LFA Expenditure_7B imp-exp'!N$22:N$33,0)),\"\")","v":""},{"$f":"IFERROR(INDEX('LFA Expenditure_7B imp-exp'!B$22:B$33,MATCH('LFA Expenditure_7B'!B128,'LFA Expenditure_7B imp-exp'!N$22:N$33,0)),\"\")","v":""},{"$f":"IFERROR(INDEX('LFA Expenditure_7B imp-exp'!C$22:C$33,MATCH('LFA Expenditure_7B'!B128,'LFA Expenditure_7B imp-exp'!N$22:N$33,0)),\"\")","v":""},{"$f":"'PR Expenditure_7A'!F129","v":0},null,0,{"$error":"#VALUE!"},null,null,{"$f":"IFERROR(INDEX('LFA Expenditure_7B imp-exp'!J$22:J$33,MATCH('LFA Expenditure_7B'!B128,'LFA Expenditure_7B imp-exp'!N$22:N$33,0)),\"\")","v":""},null,0,{"$error":"#VALUE!"}]
["Don't Show","Int27",{"$f":"IFERROR(INDEX('LFA Expenditure_7B imp-exp'!A$22:A$33,MATCH('LFA Expenditure_7B'!B129,'LFA Expenditure_7B imp-exp'!N$22:N$33,0)),\"\")","v":""},{"$f":"IFERROR(INDEX('LFA Expenditure_7B imp-exp'!B$22:B$33,MATCH('LFA Expenditure_7B'!B129,'LFA Expenditure_7B imp-exp'!N$22:N$33,0)),\"\")","v":""},{"$f":"IFERROR(INDEX('LFA Expenditure_7B imp-exp'!C$22:C$33,MATCH('LFA Expenditure_7B'!B129,'LFA Expenditure_7B imp-exp'!N$22:N$33,0)),\"\")","v":""},{"$f":"'PR Expenditure_7A'!F130","v":0},null,0,{"$error":"#VALUE!"},null,null,{"$f":"IFERROR(INDEX('LFA Expenditure_7B imp-exp'!J$22:J$33,MATCH('LFA Expenditure_7B'!B129,'LFA Expenditure_7B imp-exp'!N$22:N$33,0)),\"\")","v":""},null,0,{"$error":"#VALUE!"}]
["Don't Show","Int28",{"$f":"IFERROR(INDEX('LFA Expenditure_7B imp-exp'!A$22:A$33,MATCH('LFA Expenditure_7B'!B130,'LFA Expenditure_7B imp-exp'!N$22:N$33,0)),\"\")","v":""},{"$f":"IFERROR(INDEX('LFA Expenditure_7B imp-exp'!B$22:B$33,MATCH('LFA Expenditure_7B'!B130,'LFA Expenditure_7B imp-exp'!N$22:N$33,0)),\"\")","v":""},{"$f":"IFERROR(INDEX('LFA Expenditure_7B imp-exp'!C$22:C$33,MATCH('LFA Expenditure_7B'!B130,'LFA Expenditure_7B imp-exp'!N$22:N$33,0)),\"\")","v":""},{"$f":"'PR Expenditure_7A'!F131","v":0},null,0,{"$error":"#VALUE!"},null,null,{"$f":"IFERROR(INDEX('LFA Expenditure_7B imp-exp'!J$22:J$33,MATCH('LFA Expenditure_7B'!B130,'LFA Expenditure_7B imp-exp'!N$22:N$33,0)),\"\")","v":""},null,0,{"$error":"#VALUE!"}]
["Don't Show","Int29",{"$f":"IFERROR(INDEX('LFA Expenditure_7B imp-exp'!A$22:A$33,MATCH('LFA Expenditure_7B'!B131,'LFA Expenditure_7B imp-exp'!N$22:N$33,0)),\"\")","v":""},{"$f":"IFERROR(INDEX('LFA Expenditure_7B imp-exp'!B$22:B$33,MATCH('LFA Expenditure_7B'!B131,'LFA Expenditure_7B imp-exp'!N$22:N$33,0)),\"\")","v":""},{"$f":"IFERROR(INDEX('LFA Expenditure_7B imp-exp'!C$22:C$33,MATCH('LFA Expenditure_7B'!B131,'LFA Expenditure_7B imp-exp'!N$22:N$33,0)),\"\")","v":""},{"$f":"'PR Expenditure_7A'!F132","v":0},null,0,{"$error":"#VALUE!"},null,null,{"$f":"IFERROR(INDEX('LFA Expenditure_7B imp-exp'!J$22:J$33,MATCH('LFA Expenditure_7B'!B131,'LFA Expenditure_7B imp-exp'!N$22:N$33,0)),\"\")","v":""},null,0,{"$error":"#VALUE!"}]
["Don't Show","Int30",{"$f":"IFERROR(INDEX('LFA Expenditure_7B imp-exp'!A$22:A$33,MATCH('LFA Expenditure_7B'!B132,'LFA Expenditure_7B imp-exp'!N$22:N$33,0)),\"\")","v":""},{"$f":"IFERROR(INDEX('LFA Expenditure_7B imp-exp'!B$22:B$33,MATCH('LFA Expenditure_7B'!B132,'LFA Expenditure_7B imp-exp'!N$22:N$33,0)),\"\")","v":""},{"$f":"IFERROR(INDEX('LFA Expenditure_7B imp-exp'!C$22:C$33,MATCH('LFA Expenditure_7B'!B132,'LFA Expenditure_7B imp-exp'!N$22:N$33,0)),\"\")","v":""},{"$f":"'PR Expenditure_7A'!F133","v":0},null,0,{"$error":"#VALUE!"},null,null,{"$f":"IFERROR(INDEX('LFA Expenditure_7B imp-exp'!J$22:J$33,MATCH('LFA Expenditure_7B'!B132,'LFA Expenditure_7B imp-exp'!N$22:N$33,0)),\"\")","v":""},null,0,{"$error":"#VALUE!"}]
["Don't Show","Int31",{"$f":"IFERROR(INDEX('LFA Expenditure_7B imp-exp'!A$22:A$33,MATCH('LFA Expenditure_7B'!B133,'LFA Expenditure_7B imp-exp'!N$22:N$33,0)),\"\")","v":""},{"$f":"IFERROR(INDEX('LFA Expenditure_7B imp-exp'!B$22:B$33,MATCH('LFA Expenditure_7B'!B133,'LFA Expenditure_7B imp-exp'!N$22:N$33,0)),\"\")","v":""},{"$f":"IFERROR(INDEX('LFA Expenditure_7B imp-exp'!C$22:C$33,MATCH('LFA Expenditure_7B'!B133,'LFA Expenditure_7B imp-exp'!N$22:N$33,0)),\"\")","v":""},{"$f":"'PR Expenditure_7A'!F134","v":0},null,0,{"$error":"#VALUE!"},null,null,{"$f":"IFERROR(INDEX('LFA Expenditure_7B imp-exp'!J$22:J$33,MATCH('LFA Expenditure_7B'!B133,'LFA Expenditure_7B imp-exp'!N$22:N$33,0)),\"\")","v":""},null,0,{"$error":"#VALUE!"}]
["Don't Show","Int32",{"$f":"IFERROR(INDEX('LFA Expenditure_7B imp-exp'!A$22:A$33,MATCH('LFA Expenditure_7B'!B134,'LFA Expenditure_7B imp-exp'!N$22:N$33,0)),\"\")","v":""},{"$f":"IFERROR(INDEX('LFA Expenditure_7B imp-exp'!B$22:B$33,MATCH('LFA Expenditure_7B'!B134,'LFA Expenditure_7B imp-exp'!N$22:N$33,0)),\"\")","v":""},{"$f":"IFERROR(INDEX('LFA Expenditure_7B imp-exp'!C$22:C$33,MATCH('LFA Expenditure_7B'!B134,'LFA Expenditure_7B imp-exp'!N$22:N$33,0)),\"\")","v":""},{"$f":"'PR Expenditure_7A'!F135","v":0},null,0,{"$error":"#VALUE!"},null,null,{"$f":"IFERROR(INDEX('LFA Expenditure_7B imp-exp'!J$22:J$33,MATCH('LFA Expenditure_7B'!B134,'LFA Expenditure_7B imp-exp'!N$22:N$33,0)),\"\")","v":""},null,0,{"$error":"#VALUE!"}]
["Don't Show","Int33",{"$f":"IFERROR(INDEX('LFA Expenditure_7B imp-exp'!A$22:A$33,MATCH('LFA Expenditure_7B'!B135,'LFA Expenditure_7B imp-exp'!N$22:N$33,0)),\"\")","v":""},{"$f":"IFERROR(INDEX('LFA Expenditure_7B imp-exp'!B$22:B$33,MATCH('LFA Expenditure_7B'!B135,'LFA Expenditure_7B imp-exp'!N$22:N$33,0)),\"\")","v":""},{"$f":"IFERROR(INDEX('LFA Expenditure_7B imp-exp'!C$22:C$33,MATCH('LFA Expenditure_7B'!B135,'LFA Expenditure_7B imp-exp'!N$22:N$33,0)),\"\")","v":""},{"$f":"'PR Expenditure_7A'!F136","v":0},null,0,{"$error":"#VALUE!"},null,null,{"$f":"IFERROR(INDEX('LFA Expenditure_7B imp-exp'!J$22:J$33,MATCH('LFA Expenditure_7B'!B135,'LFA Expenditure_7B imp-exp'!N$22:N$33,0)),\"\")","v":""},null,0,{"$error":"#VALUE!"}]
["Don't Show","Int34",{"$f":"IFERROR(INDEX('LFA Expenditure_7B imp-exp'!A$22:A$33,MATCH('LFA Expenditure_7B'!B136,'LFA Expenditure_7B imp-exp'!N$22:N$33,0)),\"\")","v":""},{"$f":"IFERROR(INDEX('LFA Expenditure_7B imp-exp'!B$22:B$33,MATCH('LFA Expenditure_7B'!B136,'LFA Expenditure_7B imp-exp'!N$22:N$33,0)),\"\")","v":""},{"$f":"IFERROR(INDEX('LFA Expenditure_7B imp-exp'!C$22:C$33,MATCH('LFA Expenditure_7B'!B136,'LFA Expenditure_7B imp-exp'!N$22:N$33,0)),\"\")","v":""},{"$f":"'PR Expenditure_7A'!F137","v":0},null,0,{"$error":"#VALUE!"},null,null,{"$f":"IFERROR(INDEX('LFA Expenditure_7B imp-exp'!J$22:J$33,MATCH('LFA Expenditure_7B'!B136,'LFA Expenditure_7B imp-exp'!N$22:N$33,0)),\"\")","v":""},null,0,{"$error":"#VALUE!"}]
["Don't Show","Int35",{"$f":"IFERROR(INDEX('LFA Expenditure_7B imp-exp'!A$22:A$33,MATCH('LFA Expenditure_7B'!B137,'LFA Expenditure_7B imp-exp'!N$22:N$33,0)),\"\")","v":""},{"$f":"IFERROR(INDEX('LFA Expenditure_7B imp-exp'!B$22:B$33,MATCH('LFA Expenditure_7B'!B137,'LFA Expenditure_7B imp-exp'!N$22:N$33,0)),\"\")","v":""},{"$f":"IFERROR(INDEX('LFA Expenditure_7B imp-exp'!C$22:C$33,MATCH('LFA Expenditure_7B'!B137,'LFA Expenditure_7B imp-exp'!N$22:N$33,0)),\"\")","v":""},{"$f":"'PR Expenditure_7A'!F138","v":0},null,0,{"$error":"#VALUE!"},null,null,{"$f":"IFERROR(INDEX('LFA Expenditure_7B imp-exp'!J$22:J$33,MATCH('LFA Expenditure_7B'!B137,'LFA Expenditure_7B imp-exp'!N$22:N$33,0)),\"\")","v":""},null,0,{"$error":"#VALUE!"}]
["Don't Show","Int36",{"$f":"IFERROR(INDEX('LFA Expenditure_7B imp-exp'!A$22:A$33,MATCH('LFA Expenditure_7B'!B138,'LFA Expenditure_7B imp-exp'!N$22:N$33,0)),\"\")","v":""},{"$f":"IFERROR(INDEX('LFA Expenditure_7B imp-exp'!B$22:B$33,MATCH('LFA Expenditure_7B'!B138,'LFA Expenditure_7B imp-exp'!N$22:N$33,0)),\"\")","v":""},{"$f":"IFERROR(INDEX('LFA Expenditure_7B imp-exp'!C$22:C$33,MATCH('LFA Expenditure_7B'!B138,'LFA Expenditure_7B imp-exp'!N$22:N$33,0)),\"\")","v":""},{"$f":"'PR Expenditure_7A'!F139","v":0},null,0,{"$error":"#VALUE!"},null,null,{"$f":"IFERROR(INDEX('LFA Expenditure_7B imp-exp'!J$22:J$33,MATCH('LFA Expenditure_7B'!B138,'LFA Expenditure_7B imp-exp'!N$22:N$33,0)),\"\")","v":""},null,0,{"$error":"#VALUE!"}]
["Don't Show","Int37",{"$f":"IFERROR(INDEX('LFA Expenditure_7B imp-exp'!A$22:A$33,MATCH('LFA Expenditure_7B'!B139,'LFA Expenditure_7B imp-exp'!N$22:N$33,0)),\"\")","v":""},{"$f":"IFERROR(INDEX('LFA Expenditure_7B imp-exp'!B$22:B$33,MATCH('LFA Expenditure_7B'!B139,'LFA Expenditure_7B imp-exp'!N$22:N$33,0)),\"\")","v":""},{"$f":"IFERROR(INDEX('LFA Expenditure_7B imp-exp'!C$22:C$33,MATCH('LFA Expenditure_7B'!B139,'LFA Expenditure_7B imp-exp'!N$22:N$33,0)),\"\")","v":""},{"$f":"'PR Expenditure_7A'!F140","v":0},null,0,{"$error":"#VALUE!"},null,null,{"$f":"IFERROR(INDEX('LFA Expenditure_7B imp-exp'!J$22:J$33,MATCH('LFA Expenditure_7B'!B139,'LFA Expenditure_7B imp-exp'!N$22:N$33,0)),\"\")","v":""},null,0,{"$error":"#VALUE!"}]
["Don't Show","Int38",{"$f":"IFERROR(INDEX('LFA Expenditure_7B imp-exp'!A$22:A$33,MATCH('LFA Expenditure_7B'!B140,'LFA Expenditure_7B imp-exp'!N$22:N$33,0)),\"\")","v":""},{"$f":"IFERROR(INDEX('LFA Expenditure_7B imp-exp'!B$22:B$33,MATCH('LFA Expenditure_7B'!B140,'LFA Expenditure_7B imp-exp'!N$22:N$33,0)),\"\")","v":""},{"$f":"IFERROR(INDEX('LFA Expenditure_7B imp-exp'!C$22:C$33,MATCH('LFA Expenditure_7B'!B140,'LFA Expenditure_7B imp-exp'!N$22:N$33,0)),\"\")","v":""},{"$f":"'PR Expenditure_7A'!F141","v":0},null,0,{"$error":"#VALUE!"},null,null,{"$f":"IFERROR(INDEX('LFA Expenditure_7B imp-exp'!J$22:J$33,MATCH('LFA Expenditure_7B'!B140,'LFA Expenditure_7B imp-exp'!N$22:N$33,0)),\"\")","v":""},null,0,{"$error":"#VALUE!"}]
["Don't Show","Int39",{"$f":"IFERROR(INDEX('LFA Expenditure_7B imp-exp'!A$22:A$33,MATCH('LFA Expenditure_7B'!B141,'LFA Expenditure_7B imp-exp'!N$22:N$33,0)),\"\")","v":""},{"$f":"IFERROR(INDEX('LFA Expenditure_7B imp-exp'!B$22:B$33,MATCH('LFA Expenditure_7B'!B141,'LFA Expenditure_7B imp-exp'!N$22:N$33,0)),\"\")","v":""},{"$f":"IFERROR(INDEX('LFA Expenditure_7B imp-exp'!C$22:C$33,MATCH('LFA Expenditure_7B'!B141,'LFA Expenditure_7B imp-exp'!N$22:N$33,0)),\"\")","v":""},{"$f":"'PR Expenditure_7A'!F142","v":0},null,0,{"$error":"#VALUE!"},null,null,{"$f":"IFERROR(INDEX('LFA Expenditure_7B imp-exp'!J$22:J$33,MATCH('LFA Expenditure_7B'!B141,'LFA Expenditure_7B imp-exp'!N$22:N$33,0)),\"\")","v":""},null,0,{"$error":"#VALUE!"}]
["Don't Show","Int40",{"$f":"IFERROR(INDEX('LFA Expenditure_7B imp-exp'!A$22:A$33,MATCH('LFA Expenditure_7B'!B142,'LFA Expenditure_7B imp-exp'!N$22:N$33,0)),\"\")","v":""},{"$f":"IFERROR(INDEX('LFA Expenditure_7B imp-exp'!B$22:B$33,MATCH('LFA Expenditure_7B'!B142,'LFA Expenditure_7B imp-exp'!N$22:N$33,0)),\"\")","v":""},{"$f":"IFERROR(INDEX('LFA Expenditure_7B imp-exp'!C$22:C$33,MATCH('LFA Expenditure_7B'!B142,'LFA Expenditure_7B imp-exp'!N$22:N$33,0)),\"\")","v":""},{"$f":"'PR Expenditure_7A'!F143","v":0},null,0,{"$error":"#VALUE!"},null,null,{"$f":"IFERROR(INDEX('LFA Expenditure_7B imp-exp'!J$22:J$33,MATCH('LFA Expenditure_7B'!B142,'LFA Expenditure_7B imp-exp'!N$22:N$33,0)),\"\")","v":""},null,0,{"$error":"#VALUE!"}]
["Don't Show","Int41",{"$f":"IFERROR(INDEX('LFA Expenditure_7B imp-exp'!A$22:A$33,MATCH('LFA Expenditure_7B'!B143,'LFA Expenditure_7B imp-exp'!N$22:N$33,0)),\"\")","v":""},{"$f":"IFERROR(INDEX('LFA Expenditure_7B imp-exp'!B$22:B$33,MATCH('LFA Expenditure_7B'!B143,'LFA Expenditure_7B imp-exp'!N$22:N$33,0)),\"\")","v":""},{"$f":"IFERROR(INDEX('LFA Expenditure_7B imp-exp'!C$22:C$33,MATCH('LFA Expenditure_7B'!B143,'LFA Expenditure_7B imp-exp'!N$22:N$33,0)),\"\")","v":""},{"$f":"'PR Expenditure_7A'!F144","v":0},null,0,{"$error":"#VALUE!"},null,null,{"$f":"IFERROR(INDEX('LFA Expenditure_7B imp-exp'!J$22:J$33,MATCH('LFA Expenditure_7B'!B143,'LFA Expenditure_7B imp-exp'!N$22:N$33,0)),\"\")","v":""},null,0,{"$error":"#VALUE!"}]
["Don't Show","Int42",{"$f":"IFERROR(INDEX('LFA Expenditure_7B imp-exp'!A$22:A$33,MATCH('LFA Expenditure_7B'!B144,'LFA Expenditure_7B imp-exp'!N$22:N$33,0)),\"\")","v":""},{"$f":"IFERROR(INDEX('LFA Expenditure_7B imp-exp'!B$22:B$33,MATCH('LFA Expenditure_7B'!B144,'LFA Expenditure_7B imp-exp'!N$22:N$33,0)),\"\")","v":""},{"$f":"IFERROR(INDEX('LFA Expenditure_7B imp-exp'!C$22:C$33,MATCH('LFA Expenditure_7B'!B144,'LFA Expenditure_7B imp-exp'!N$22:N$33,0)),\"\")","v":""},{"$f":"'PR Expenditure_7A'!F145","v":0},null,0,{"$error":"#VALUE!"},null,null,{"$f":"IFERROR(INDEX('LFA Expenditure_7B imp-exp'!J$22:J$33,MATCH('LFA Expenditure_7B'!B144,'LFA Expenditure_7B imp-exp'!N$22:N$33,0)),\"\")","v":""},null,0,{"$error":"#VALUE!"}]
["Don't Show","Int43",{"$f":"IFERROR(INDEX('LFA Expenditure_7B imp-exp'!A$22:A$33,MATCH('LFA Expenditure_7B'!B145,'LFA Expenditure_7B imp-exp'!N$22:N$33,0)),\"\")","v":""},{"$f":"IFERROR(INDEX('LFA Expenditure_7B imp-exp'!B$22:B$33,MATCH('LFA Expenditure_7B'!B145,'LFA Expenditure_7B imp-exp'!N$22:N$33,0)),\"\")","v":""},{"$f":"IFERROR(INDEX('LFA Expenditure_7B imp-exp'!C$22:C$33,MATCH('LFA Expenditure_7B'!B145,'LFA Expenditure_7B imp-exp'!N$22:N$33,0)),\"\")","v":""},{"$f":"'PR Expenditure_7A'!F146","v":0},null,0,{"$error":"#VALUE!"},null,null,{"$f":"IFERROR(INDEX('LFA Expenditure_7B imp-exp'!J$22:J$33,MATCH('LFA Expenditure_7B'!B145,'LFA Expenditure_7B imp-exp'!N$22:N$33,0)),\"\")","v":""},null,0,{"$error":"#VALUE!"}]
["Don't Show","Int44",{"$f":"IFERROR(INDEX('LFA Expenditure_7B imp-exp'!A$22:A$33,MATCH('LFA Expenditure_7B'!B146,'LFA Expenditure_7B imp-exp'!N$22:N$33,0)),\"\")","v":""},{"$f":"IFERROR(INDEX('LFA Expenditure_7B imp-exp'!B$22:B$33,MATCH('LFA Expenditure_7B'!B146,'LFA Expenditure_7B imp-exp'!N$22:N$33,0)),\"\")","v":""},{"$f":"IFERROR(INDEX('LFA Expenditure_7B imp-exp'!C$22:C$33,MATCH('LFA Expenditure_7B'!B146,'LFA Expenditure_7B imp-exp'!N$22:N$33,0)),\"\")","v":""},{"$f":"'PR Expenditure_7A'!F147","v":0},null,0,{"$error":"#VALUE!"},null,null,{"$f":"IFERROR(INDEX('LFA Expenditure_7B imp-exp'!J$22:J$33,MATCH('LFA Expenditure_7B'!B146,'LFA Expenditure_7B imp-exp'!N$22:N$33,0)),\"\")","v":""},null,0,{"$error":"#VALUE!"}]
["Don't Show","Int45",{"$f":"IFERROR(INDEX('LFA Expenditure_7B imp-exp'!A$22:A$33,MATCH('LFA Expenditure_7B'!B147,'LFA Expenditure_7B imp-exp'!N$22:N$33,0)),\"\")","v":""},{"$f":"IFERROR(INDEX('LFA Expenditure_7B imp-exp'!B$22:B$33,MATCH('LFA Expenditure_7B'!B147,'LFA Expenditure_7B imp-exp'!N$22:N$33,0)),\"\")","v":""},{"$f":"IFERROR(INDEX('LFA Expenditure_7B imp-exp'!C$22:C$33,MATCH('LFA Expenditure_7B'!B147,'LFA Expenditure_7B imp-exp'!N$22:N$33,0)),\"\")","v":""},{"$f":"'PR Expenditure_7A'!F148","v":0},null,0,{"$error":"#VALUE!"},null,null,{"$f":"IFERROR(INDEX('LFA Expenditure_7B imp-exp'!J$22:J$33,MATCH('LFA Expenditure_7B'!B147,'LFA Expenditure_7B imp-exp'!N$22:N$33,0)),\"\")","v":""},null,0,{"$error":"#VALUE!"}]
["Don't Show","Int46",{"$f":"IFERROR(INDEX('LFA Expenditure_7B imp-exp'!A$22:A$33,MATCH('LFA Expenditure_7B'!B148,'LFA Expenditure_7B imp-exp'!N$22:N$33,0)),\"\")","v":""},{"$f":"IFERROR(INDEX('LFA Expenditure_7B imp-exp'!B$22:B$33,MATCH('LFA Expenditure_7B'!B148,'LFA Expenditure_7B imp-exp'!N$22:N$33,0)),\"\")","v":""},{"$f":"IFERROR(INDEX('LFA Expenditure_7B imp-exp'!C$22:C$33,MATCH('LFA Expenditure_7B'!B148,'LFA Expenditure_7B imp-exp'!N$22:N$33,0)),\"\")","v":""},{"$f":"'PR Expenditure_7A'!F149","v":0},null,0,{"$error":"#VALUE!"},null,null,{"$f":"IFERROR(INDEX('LFA Expenditure_7B imp-exp'!J$22:J$33,MATCH('LFA Expenditure_7B'!B148,'LFA Expenditure_7B imp-exp'!N$22:N$33,0)),\"\")","v":""},null,0,{"$error":"#VALUE!"}]
["Don't Show","Int47",{"$f":"IFERROR(INDEX('LFA Expenditure_7B imp-exp'!A$22:A$33,MATCH('LFA Expenditure_7B'!B149,'LFA Expenditure_7B imp-exp'!N$22:N$33,0)),\"\")","v":""},{"$f":"IFERROR(INDEX('LFA Expenditure_7B imp-exp'!B$22:B$33,MATCH('LFA Expenditure_7B'!B149,'LFA Expenditure_7B imp-exp'!N$22:N$33,0)),\"\")","v":""},{"$f":"IFERROR(INDEX('LFA Expenditure_7B imp-exp'!C$22:C$33,MATCH('LFA Expenditure_7B'!B149,'LFA Expenditure_7B imp-exp'!N$22:N$33,0)),\"\")","v":""},{"$f":"'PR Expenditure_7A'!F150","v":0},null,0,{"$error":"#VALUE!"},null,null,{"$f":"IFERROR(INDEX('LFA Expenditure_7B imp-exp'!J$22:J$33,MATCH('LFA Expenditure_7B'!B149,'LFA Expenditure_7B imp-exp'!N$22:N$33,0)),\"\")","v":""},null,0,{"$error":"#VALUE!"}]
["Don't Show","Int48",{"$f":"IFERROR(INDEX('LFA Expenditure_7B imp-exp'!A$22:A$33,MATCH('LFA Expenditure_7B'!B150,'LFA Expenditure_7B imp-exp'!N$22:N$33,0)),\"\")","v":""},{"$f":"IFERROR(INDEX('LFA Expenditure_7B imp-exp'!B$22:B$33,MATCH('LFA Expenditure_7B'!B150,'LFA Expenditure_7B imp-exp'!N$22:N$33,0)),\"\")","v":""},{"$f":"IFERROR(INDEX('LFA Expenditure_7B imp-exp'!C$22:C$33,MATCH('LFA Expenditure_7B'!B150,'LFA Expenditure_7B imp-exp'!N$22:N$33,0)),\"\")","v":""},{"$f":"'PR Expenditure_7A'!F151","v":0},null,0,{"$error":"#VALUE!"},null,null,{"$f":"IFERROR(INDEX('LFA Expenditure_7B imp-exp'!J$22:J$33,MATCH('LFA Expenditure_7B'!B150,'LFA Expenditure_7B imp-exp'!N$22:N$33,0)),\"\")","v":""},null,0,{"$error":"#VALUE!"}]
["Don't Show","Int49",{"$f":"IFERROR(INDEX('LFA Expenditure_7B imp-exp'!A$22:A$33,MATCH('LFA Expenditure_7B'!B151,'LFA Expenditure_7B imp-exp'!N$22:N$33,0)),\"\")","v":""},{"$f":"IFERROR(INDEX('LFA Expenditure_7B imp-exp'!B$22:B$33,MATCH('LFA Expenditure_7B'!B151,'LFA Expenditure_7B imp-exp'!N$22:N$33,0)),\"\")","v":""},{"$f":"IFERROR(INDEX('LFA Expenditure_7B imp-exp'!C$22:C$33,MATCH('LFA Expenditure_7B'!B151,'LFA Expenditure_7B imp-exp'!N$22:N$33,0)),\"\")","v":""},{"$f":"'PR Expenditure_7A'!F152","v":0},null,0,{"$error":"#VALUE!"},null,null,{"$f":"IFERROR(INDEX('LFA Expenditure_7B imp-exp'!J$22:J$33,MATCH('LFA Expenditure_7B'!B151,'LFA Expenditure_7B imp-exp'!N$22:N$33,0)),\"\")","v":""},null,0,{"$error":"#VALUE!"}]
["Don't Show","Int50",{"$f":"IFERROR(INDEX('LFA Expenditure_7B imp-exp'!A$22:A$33,MATCH('LFA Expenditure_7B'!B152,'LFA Expenditure_7B imp-exp'!N$22:N$33,0)),\"\")","v":""},{"$f":"IFERROR(INDEX('LFA Expenditure_7B imp-exp'!B$22:B$33,MATCH('LFA Expenditure_7B'!B152,'LFA Expenditure_7B imp-exp'!N$22:N$33,0)),\"\")","v":""},{"$f":"IFERROR(INDEX('LFA Expenditure_7B imp-exp'!C$22:C$33,MATCH('LFA Expenditure_7B'!B152,'LFA Expenditure_7B imp-exp'!N$22:N$33,0)),\"\")","v":""},{"$f":"'PR Expenditure_7A'!F153","v":0},null,0,{"$error":"#VALUE!"},null,null,{"$f":"IFERROR(INDEX('LFA Expenditure_7B imp-exp'!J$22:J$33,MATCH('LFA Expenditure_7B'!B152,'LFA Expenditure_7B imp-exp'!N$22:N$33,0)),\"\")","v":""},null,0,{"$error":"#VALUE!"}]
["Don't Show","Int51",{"$f":"IFERROR(INDEX('LFA Expenditure_7B imp-exp'!A$22:A$33,MATCH('LFA Expenditure_7B'!B153,'LFA Expenditure_7B imp-exp'!N$22:N$33,0)),\"\")","v":""},{"$f":"IFERROR(INDEX('LFA Expenditure_7B imp-exp'!B$22:B$33,MATCH('LFA Expenditure_7B'!B153,'LFA Expenditure_7B imp-exp'!N$22:N$33,0)),\"\")","v":""},{"$f":"IFERROR(INDEX('LFA Expenditure_7B imp-exp'!C$22:C$33,MATCH('LFA Expenditure_7B'!B153,'LFA Expenditure_7B imp-exp'!N$22:N$33,0)),\"\")","v":""},{"$f":"'PR Expenditure_7A'!F154","v":0},null,0,{"$error":"#VALUE!"},null,null,{"$f":"IFERROR(INDEX('LFA Expenditure_7B imp-exp'!J$22:J$33,MATCH('LFA Expenditure_7B'!B153,'LFA Expenditure_7B imp-exp'!N$22:N$33,0)),\"\")","v":""},null,0,{"$error":"#VALUE!"}]
["Don't Show","Int52",{"$f":"IFERROR(INDEX('LFA Expenditure_7B imp-exp'!A$22:A$33,MATCH('LFA Expenditure_7B'!B154,'LFA Expenditure_7B imp-exp'!N$22:N$33,0)),\"\")","v":""},{"$f":"IFERROR(INDEX('LFA Expenditure_7B imp-exp'!B$22:B$33,MATCH('LFA Expenditure_7B'!B154,'LFA Expenditure_7B imp-exp'!N$22:N$33,0)),\"\")","v":""},{"$f":"IFERROR(INDEX('LFA Expenditure_7B imp-exp'!C$22:C$33,MATCH('LFA Expenditure_7B'!B154,'LFA Expenditure_7B imp-exp'!N$22:N$33,0)),\"\")","v":""},{"$f":"'PR Expenditure_7A'!F155","v":0},null,0,{"$error":"#VALUE!"},null,null,{"$f":"IFERROR(INDEX('LFA Expenditure_7B imp-exp'!J$22:J$33,MATCH('LFA Expenditure_7B'!B154,'LFA Expenditure_7B imp-exp'!N$22:N$33,0)),\"\")","v":""},null,0,{"$error":"#VALUE!"}]
["Don't Show","Int53",{"$f":"IFERROR(INDEX('LFA Expenditure_7B imp-exp'!A$22:A$33,MATCH('LFA Expenditure_7B'!B155,'LFA Expenditure_7B imp-exp'!N$22:N$33,0)),\"\")","v":""},{"$f":"IFERROR(INDEX('LFA Expenditure_7B imp-exp'!B$22:B$33,MATCH('LFA Expenditure_7B'!B155,'LFA Expenditure_7B imp-exp'!N$22:N$33,0)),\"\")","v":""},{"$f":"IFERROR(INDEX('LFA Expenditure_7B imp-exp'!C$22:C$33,MATCH('LFA Expenditure_7B'!B155,'LFA Expenditure_7B imp-exp'!N$22:N$33,0)),\"\")","v":""},{"$f":"'PR Expenditure_7A'!F156","v":0},null,0,{"$error":"#VALUE!"},null,null,{"$f":"IFERROR(INDEX('LFA Expenditure_7B imp-exp'!J$22:J$33,MATCH('LFA Expenditure_7B'!B155,'LFA Expenditure_7B imp-exp'!N$22:N$33,0)),\"\")","v":""},null,0,{"$error":"#VALUE!"}]
["Don't Show","Int54",{"$f":"IFERROR(INDEX('LFA Expenditure_7B imp-exp'!A$22:A$33,MATCH('LFA Expenditure_7B'!B156,'LFA Expenditure_7B imp-exp'!N$22:N$33,0)),\"\")","v":""},{"$f":"IFERROR(INDEX('LFA Expenditure_7B imp-exp'!B$22:B$33,MATCH('LFA Expenditure_7B'!B156,'LFA Expenditure_7B imp-exp'!N$22:N$33,0)),\"\")","v":""},{"$f":"IFERROR(INDEX('LFA Expenditure_7B imp-exp'!C$22:C$33,MATCH('LFA Expenditure_7B'!B156,'LFA Expenditure_7B imp-exp'!N$22:N$33,0)),\"\")","v":""},{"$f":"'PR Expenditure_7A'!F157","v":0},null,0,{"$error":"#VALUE!"},null,null,{"$f":"IFERROR(INDEX('LFA Expenditure_7B imp-exp'!J$22:J$33,MATCH('LFA Expenditure_7B'!B156,'LFA Expenditure_7B imp-exp'!N$22:N$33,0)),\"\")","v":""},null,0,{"$error":"#VALUE!"}]
["Don't Show","Int55",{"$f":"IFERROR(INDEX('LFA Expenditure_7B imp-exp'!A$22:A$33,MATCH('LFA Expenditure_7B'!B157,'LFA Expenditure_7B imp-exp'!N$22:N$33,0)),\"\")","v":""},{"$f":"IFERROR(INDEX('LFA Expenditure_7B imp-exp'!B$22:B$33,MATCH('LFA Expenditure_7B'!B157,'LFA Expenditure_7B imp-exp'!N$22:N$33,0)),\"\")","v":""},{"$f":"IFERROR(INDEX('LFA Expenditure_7B imp-exp'!C$22:C$33,MATCH('LFA Expenditure_7B'!B157,'LFA Expenditure_7B imp-exp'!N$22:N$33,0)),\"\")","v":""},{"$f":"'PR Expenditure_7A'!F158","v":0},null,0,{"$error":"#VALUE!"},null,null,{"$f":"IFERROR(INDEX('LFA Expenditure_7B imp-exp'!J$22:J$33,MATCH('LFA Expenditure_7B'!B157,'LFA Expenditure_7B imp-exp'!N$22:N$33,0)),\"\")","v":""},null,0,{"$error":"#VALUE!"}]
["Don't Show","Int56",{"$f":"IFERROR(INDEX('LFA Expenditure_7B imp-exp'!A$22:A$33,MATCH('LFA Expenditure_7B'!B158,'LFA Expenditure_7B imp-exp'!N$22:N$33,0)),\"\")","v":""},{"$f":"IFERROR(INDEX('LFA Expenditure_7B imp-exp'!B$22:B$33,MATCH('LFA Expenditure_7B'!B158,'LFA Expenditure_7B imp-exp'!N$22:N$33,0)),\"\")","v":""},{"$f":"IFERROR(INDEX('LFA Expenditure_7B imp-exp'!C$22:C$33,MATCH('LFA Expenditure_7B'!B158,'LFA Expenditure_7B imp-exp'!N$22:N$33,0)),\"\")","v":""},{"$f":"'PR Expenditure_7A'!F159","v":0},null,0,{"$error":"#VALUE!"},null,null,{"$f":"IFERROR(INDEX('LFA Expenditure_7B imp-exp'!J$22:J$33,MATCH('LFA Expenditure_7B'!B158,'LFA Expenditure_7B imp-exp'!N$22:N$33,0)),\"\")","v":""},null,0,{"$error":"#VALUE!"}]
["Don't Show","Int57",{"$f":"IFERROR(INDEX('LFA Expenditure_7B imp-exp'!A$22:A$33,MATCH('LFA Expenditure_7B'!B159,'LFA Expenditure_7B imp-exp'!N$22:N$33,0)),\"\")","v":""},{"$f":"IFERROR(INDEX('LFA Expenditure_7B imp-exp'!B$22:B$33,MATCH('LFA Expenditure_7B'!B159,'LFA Expenditure_7B imp-exp'!N$22:N$33,0)),\"\")","v":""},{"$f":"IFERROR(INDEX('LFA Expenditure_7B imp-exp'!C$22:C$33,MATCH('LFA Expenditure_7B'!B159,'LFA Expenditure_7B imp-exp'!N$22:N$33,0)),\"\")","v":""},{"$f":"'PR Expenditure_7A'!F160","v":0},null,0,{"$error":"#VALUE!"},null,null,{"$f":"IFERROR(INDEX('LFA Expenditure_7B imp-exp'!J$22:J$33,MATCH('LFA Expenditure_7B'!B159,'LFA Expenditure_7B imp-exp'!N$22:N$33,0)),\"\")","v":""},null,0,{"$error":"#VALUE!"}]
["Don't Show","Int58",{"$f":"IFERROR(INDEX('LFA Expenditure_7B imp-exp'!A$22:A$33,MATCH('LFA Expenditure_7B'!B160,'LFA Expenditure_7B imp-exp'!N$22:N$33,0)),\"\")","v":""},{"$f":"IFERROR(INDEX('LFA Expenditure_7B imp-exp'!B$22:B$33,MATCH('LFA Expenditure_7B'!B160,'LFA Expenditure_7B imp-exp'!N$22:N$33,0)),\"\")","v":""},{"$f":"IFERROR(INDEX('LFA Expenditure_7B imp-exp'!C$22:C$33,MATCH('LFA Expenditure_7B'!B160,'LFA Expenditure_7B imp-exp'!N$22:N$33,0)),\"\")","v":""},{"$f":"'PR Expenditure_7A'!F161","v":0},null,0,{"$error":"#VALUE!"},null,null,{"$f":"IFERROR(INDEX('LFA Expenditure_7B imp-exp'!J$22:J$33,MATCH('LFA Expenditure_7B'!B160,'LFA Expenditure_7B imp-exp'!N$22:N$33,0)),\"\")","v":""},null,0,{"$error":"#VALUE!"}]
["Don't Show","Int59",{"$f":"IFERROR(INDEX('LFA Expenditure_7B imp-exp'!A$22:A$33,MATCH('LFA Expenditure_7B'!B161,'LFA Expenditure_7B imp-exp'!N$22:N$33,0)),\"\")","v":""},{"$f":"IFERROR(INDEX('LFA Expenditure_7B imp-exp'!B$22:B$33,MATCH('LFA Expenditure_7B'!B161,'LFA Expenditure_7B imp-exp'!N$22:N$33,0)),\"\")","v":""},{"$f":"IFERROR(INDEX('LFA Expenditure_7B imp-exp'!C$22:C$33,MATCH('LFA Expenditure_7B'!B161,'LFA Expenditure_7B imp-exp'!N$22:N$33,0)),\"\")","v":""},{"$f":"'PR Expenditure_7A'!F162","v":0},null,0,{"$error":"#VALUE!"},null,null,{"$f":"IFERROR(INDEX('LFA Expenditure_7B imp-exp'!J$22:J$33,MATCH('LFA Expenditure_7B'!B161,'LFA Expenditure_7B imp-exp'!N$22:N$33,0)),\"\")","v":""},null,0,{"$error":"#VALUE!"}]
["Don't Show","Int60",{"$f":"IFERROR(INDEX('LFA Expenditure_7B imp-exp'!A$22:A$33,MATCH('LFA Expenditure_7B'!B162,'LFA Expenditure_7B imp-exp'!N$22:N$33,0)),\"\")","v":""},{"$f":"IFERROR(INDEX('LFA Expenditure_7B imp-exp'!B$22:B$33,MATCH('LFA Expenditure_7B'!B162,'LFA Expenditure_7B imp-exp'!N$22:N$33,0)),\"\")","v":""},{"$f":"IFERROR(INDEX('LFA Expenditure_7B imp-exp'!C$22:C$33,MATCH('LFA Expenditure_7B'!B162,'LFA Expenditure_7B imp-exp'!N$22:N$33,0)),\"\")","v":""},{"$f":"'PR Expenditure_7A'!F163","v":0},null,0,{"$error":"#VALUE!"},null,null,{"$f":"IFERROR(INDEX('LFA Expenditure_7B imp-exp'!J$22:J$33,MATCH('LFA Expenditure_7B'!B162,'LFA Expenditure_7B imp-exp'!N$22:N$33,0)),\"\")","v":""},null,0,{"$error":"#VALUE!"}]
["Don't Show","Int61",{"$f":"IFERROR(INDEX('LFA Expenditure_7B imp-exp'!A$22:A$33,MATCH('LFA Expenditure_7B'!B163,'LFA Expenditure_7B imp-exp'!N$22:N$33,0)),\"\")","v":""},{"$f":"IFERROR(INDEX('LFA Expenditure_7B imp-exp'!B$22:B$33,MATCH('LFA Expenditure_7B'!B163,'LFA Expenditure_7B imp-exp'!N$22:N$33,0)),\"\")","v":""},{"$f":"IFERROR(INDEX('LFA Expenditure_7B imp-exp'!C$22:C$33,MATCH('LFA Expenditure_7B'!B163,'LFA Expenditure_7B imp-exp'!N$22:N$33,0)),\"\")","v":""},{"$f":"'PR Expenditure_7A'!F164","v":0},null,0,{"$error":"#VALUE!"},null,null,{"$f":"IFERROR(INDEX('LFA Expenditure_7B imp-exp'!J$22:J$33,MATCH('LFA Expenditure_7B'!B163,'LFA Expenditure_7B imp-exp'!N$22:N$33,0)),\"\")","v":""},null,0,{"$error":"#VALUE!"}]
["Don't Show","Int62",{"$f":"IFERROR(INDEX('LFA Expenditure_7B imp-exp'!A$22:A$33,MATCH('LFA Expenditure_7B'!B164,'LFA Expenditure_7B imp-exp'!N$22:N$33,0)),\"\")","v":""},{"$f":"IFERROR(INDEX('LFA Expenditure_7B imp-exp'!B$22:B$33,MATCH('LFA Expenditure_7B'!B164,'LFA Expenditure_7B imp-exp'!N$22:N$33,0)),\"\")","v":""},{"$f":"IFERROR(INDEX('LFA Expenditure_7B imp-exp'!C$22:C$33,MATCH('LFA Expenditure_7B'!B164,'LFA Expenditure_7B imp-exp'!N$22:N$33,0)),\"\")","v":""},{"$f":"'PR Expenditure_7A'!F165","v":0},null,0,{"$error":"#VALUE!"},null,null,{"$f":"IFERROR(INDEX('LFA Expenditure_7B imp-exp'!J$22:J$33,MATCH('LFA Expenditure_7B'!B164,'LFA Expenditure_7B imp-exp'!N$22:N$33,0)),\"\")","v":""},null,0,{"$error":"#VALUE!"}]
["Don't Show","Int63",{"$f":"IFERROR(INDEX('LFA Expenditure_7B imp-exp'!A$22:A$33,MATCH('LFA Expenditure_7B'!B165,'LFA Expenditure_7B imp-exp'!N$22:N$33,0)),\"\")","v":""},{"$f":"IFERROR(INDEX('LFA Expenditure_7B imp-exp'!B$22:B$33,MATCH('LFA Expenditure_7B'!B165,'LFA Expenditure_7B imp-exp'!N$22:N$33,0)),\"\")","v":""},{"$f":"IFERROR(INDEX('LFA Expenditure_7B imp-exp'!C$22:C$33,MATCH('LFA Expenditure_7B'!B165,'LFA Expenditure_7B imp-exp'!N$22:N$33,0)),\"\")","v":""},{"$f":"'PR Expenditure_7A'!F166","v":0},null,0,{"$error":"#VALUE!"},null,null,{"$f":"IFERROR(INDEX('LFA Expenditure_7B imp-exp'!J$22:J$33,MATCH('LFA Expenditure_7B'!B165,'LFA Expenditure_7B imp-exp'!N$22:N$33,0)),\"\")","v":""},null,0,{"$error":"#VALUE!"}]
["Don't Show","Int64",{"$f":"IFERROR(INDEX('LFA Expenditure_7B imp-exp'!A$22:A$33,MATCH('LFA Expenditure_7B'!B166,'LFA Expenditure_7B imp-exp'!N$22:N$33,0)),\"\")","v":""},{"$f":"IFERROR(INDEX('LFA Expenditure_7B imp-exp'!B$22:B$33,MATCH('LFA Expenditure_7B'!B166,'LFA Expenditure_7B imp-exp'!N$22:N$33,0)),\"\")","v":""},{"$f":"IFERROR(INDEX('LFA Expenditure_7B imp-exp'!C$22:C$33,MATCH('LFA Expenditure_7B'!B166,'LFA Expenditure_7B imp-exp'!N$22:N$33,0)),\"\")","v":""},{"$f":"'PR Expenditure_7A'!F167","v":0},null,0,{"$error":"#VALUE!"},null,null,{"$f":"IFERROR(INDEX('LFA Expenditure_7B imp-exp'!J$22:J$33,MATCH('LFA Expenditure_7B'!B166,'LFA Expenditure_7B imp-exp'!N$22:N$33,0)),\"\")","v":""},null,0,{"$error":"#VALUE!"}]
["Don't Show","Int65",{"$f":"IFERROR(INDEX('LFA Expenditure_7B imp-exp'!A$22:A$33,MATCH('LFA Expenditure_7B'!B167,'LFA Expenditure_7B imp-exp'!N$22:N$33,0)),\"\")","v":""},{"$f":"IFERROR(INDEX('LFA Expenditure_7B imp-exp'!B$22:B$33,MATCH('LFA Expenditure_7B'!B167,'LFA Expenditure_7B imp-exp'!N$22:N$33,0)),\"\")","v":""},{"$f":"IFERROR(INDEX('LFA Expenditure_7B imp-exp'!C$22:C$33,MATCH('LFA Expenditure_7B'!B167,'LFA Expenditure_7B imp-exp'!N$22:N$33,0)),\"\")","v":""},{"$f":"'PR Expenditure_7A'!F168","v":0},null,0,{"$error":"#VALUE!"},null,null,{"$f":"IFERROR(INDEX('LFA Expenditure_7B imp-exp'!J$22:J$33,MATCH('LFA Expenditure_7B'!B167,'LFA Expenditure_7B imp-exp'!N$22:N$33,0)),\"\")","v":""},null,0,{"$error":"#VALUE!"}]
["Don't Show","Int66",{"$f":"IFERROR(INDEX('LFA Expenditure_7B imp-exp'!A$22:A$33,MATCH('LFA Expenditure_7B'!B168,'LFA Expenditure_7B imp-exp'!N$22:N$33,0)),\"\")","v":""},{"$f":"IFERROR(INDEX('LFA Expenditure_7B imp-exp'!B$22:B$33,MATCH('LFA Expenditure_7B'!B168,'LFA Expenditure_7B imp-exp'!N$22:N$33,0)),\"\")","v":""},{"$f":"IFERROR(INDEX('LFA Expenditure_7B imp-exp'!C$22:C$33,MATCH('LFA Expenditure_7B'!B168,'LFA Expenditure_7B imp-exp'!N$22:N$33,0)),\"\")","v":""},{"$f":"'PR Expenditure_7A'!F169","v":0},null,0,{"$error":"#VALUE!"},null,null,{"$f":"IFERROR(INDEX('LFA Expenditure_7B imp-exp'!J$22:J$33,MATCH('LFA Expenditure_7B'!B168,'LFA Expenditure_7B imp-exp'!N$22:N$33,0)),\"\")","v":""},null,0,{"$error":"#VALUE!"}]
["Don't Show","Int67",{"$f":"IFERROR(INDEX('LFA Expenditure_7B imp-exp'!A$22:A$33,MATCH('LFA Expenditure_7B'!B169,'LFA Expenditure_7B imp-exp'!N$22:N$33,0)),\"\")","v":""},{"$f":"IFERROR(INDEX('LFA Expenditure_7B imp-exp'!B$22:B$33,MATCH('LFA Expenditure_7B'!B169,'LFA Expenditure_7B imp-exp'!N$22:N$33,0)),\"\")","v":""},{"$f":"IFERROR(INDEX('LFA Expenditure_7B imp-exp'!C$22:C$33,MATCH('LFA Expenditure_7B'!B169,'LFA Expenditure_7B imp-exp'!N$22:N$33,0)),\"\")","v":""},{"$f":"'PR Expenditure_7A'!F170","v":0},null,0,{"$error":"#VALUE!"},null,null,{"$f":"IFERROR(INDEX('LFA Expenditure_7B imp-exp'!J$22:J$33,MATCH('LFA Expenditure_7B'!B169,'LFA Expenditure_7B imp-exp'!N$22:N$33,0)),\"\")","v":""},null,0,{"$error":"#VALUE!"}]
["Don't Show","Int68",{"$f":"IFERROR(INDEX('LFA Expenditure_7B imp-exp'!A$22:A$33,MATCH('LFA Expenditure_7B'!B170,'LFA Expenditure_7B imp-exp'!N$22:N$33,0)),\"\")","v":""},{"$f":"IFERROR(INDEX('LFA Expenditure_7B imp-exp'!B$22:B$33,MATCH('LFA Expenditure_7B'!B170,'LFA Expenditure_7B imp-exp'!N$22:N$33,0)),\"\")","v":""},{"$f":"IFERROR(INDEX('LFA Expenditure_7B imp-exp'!C$22:C$33,MATCH('LFA Expenditure_7B'!B170,'LFA Expenditure_7B imp-exp'!N$22:N$33,0)),\"\")","v":""},{"$f":"'PR Expenditure_7A'!F171","v":0},null,0,{"$error":"#VALUE!"},null,null,{"$f":"IFERROR(INDEX('LFA Expenditure_7B imp-exp'!J$22:J$33,MATCH('LFA Expenditure_7B'!B170,'LFA Expenditure_7B imp-exp'!N$22:N$33,0)),\"\")","v":""},null,0,{"$error":"#VALUE!"}]
["Don't Show","Int69",{"$f":"IFERROR(INDEX('LFA Expenditure_7B imp-exp'!A$22:A$33,MATCH('LFA Expenditure_7B'!B171,'LFA Expenditure_7B imp-exp'!N$22:N$33,0)),\"\")","v":""},{"$f":"IFERROR(INDEX('LFA Expenditure_7B imp-exp'!B$22:B$33,MATCH('LFA Expenditure_7B'!B171,'LFA Expenditure_7B imp-exp'!N$22:N$33,0)),\"\")","v":""},{"$f":"IFERROR(INDEX('LFA Expenditure_7B imp-exp'!C$22:C$33,MATCH('LFA Expenditure_7B'!B171,'LFA Expenditure_7B imp-exp'!N$22:N$33,0)),\"\")","v":""},{"$f":"'PR Expenditure_7A'!F172","v":0},null,0,{"$error":"#VALUE!"},null,null,{"$f":"IFERROR(INDEX('LFA Expenditure_7B imp-exp'!J$22:J$33,MATCH('LFA Expenditure_7B'!B171,'LFA Expenditure_7B imp-exp'!N$22:N$33,0)),\"\")","v":""},null,0,{"$error":"#VALUE!"}]
["Don't Show","Int70",{"$f":"IFERROR(INDEX('LFA Expenditure_7B imp-exp'!A$22:A$33,MATCH('LFA Expenditure_7B'!B172,'LFA Expenditure_7B imp-exp'!N$22:N$33,0)),\"\")","v":""},{"$f":"IFERROR(INDEX('LFA Expenditure_7B imp-exp'!B$22:B$33,MATCH('LFA Expenditure_7B'!B172,'LFA Expenditure_7B imp-exp'!N$22:N$33,0)),\"\")","v":""},{"$f":"IFERROR(INDEX('LFA Expenditure_7B imp-exp'!C$22:C$33,MATCH('LFA Expenditure_7B'!B172,'LFA Expenditure_7B imp-exp'!N$22:N$33,0)),\"\")","v":""},{"$f":"'PR Expenditure_7A'!F173","v":0},null,0,{"$error":"#VALUE!"},null,null,{"$f":"IFERROR(INDEX('LFA Expenditure_7B imp-exp'!J$22:J$33,MATCH('LFA Expenditure_7B'!B172,'LFA Expenditure_7B imp-exp'!N$22:N$33,0)),\"\")","v":""},null,0,{"$error":"#VALUE!"}]
[{"$f":"IF(C173<>\"\",\"Show\",\"Don't Show\")","v":"Don't Show"},"Int71",{"$f":"IFERROR(INDEX('LFA Expenditure_7B imp-exp'!A$22:A$33,MATCH('LFA Expenditure_7B'!B173,'LFA Expenditure_7B imp-exp'!N$22:N$33,0)),\"\")","v":""},{"$f":"IFERROR(INDEX('LFA Expenditure_7B imp-exp'!B$22:B$33,MATCH('LFA Expenditure_7B'!B173,'LFA Expenditure_7B imp-exp'!N$22:N$33,0)),\"\")","v":""},{"$f":"IFERROR(INDEX('LFA Expenditure_7B imp-exp'!C$22:C$33,MATCH('LFA Expenditure_7B'!B173,'LFA Expenditure_7B imp-exp'!N$22:N$33,0)),\"\")","v":""},{"$f":"'PR Expenditure_7A'!F174","v":0},null,{"$f":"IFERROR((E173)-(F173+G173),0)","v":0},{"$f":"IF(AND((E173)=0,(F173+G173)=0),\"N/A\",IF(AND((E173)=0,(F173+G173)<>0),\"Not Budgeted\",(F173+G173)/(E173)))","v":{"$error":"#VALUE!"}},null,null,{"$f":"IFERROR(INDEX('LFA Expenditure_7B imp-exp'!J$22:J$33,MATCH('LFA Expenditure_7B'!B173,'LFA Expenditure_7B imp-exp'!N$22:N$33,0)),\"\")","v":""},null,{"$f":"IFERROR(L173-M173,0)","v":0},{"$f":"IF(AND(L173=0,M173=0),\"N/A\",IF(AND(L173=0,M173<>0),\"Not Budgeted\",M173/L173))","v":{"$error":"#VALUE!"}}]
["Don't Show","Int72",{"$f":"IFERROR(INDEX('LFA Expenditure_7B imp-exp'!A$22:A$33,MATCH('LFA Expenditure_7B'!B174,'LFA Expenditure_7B imp-exp'!N$22:N$33,0)),\"\")","v":""},{"$f":"IFERROR(INDEX('LFA Expenditure_7B imp-exp'!B$22:B$33,MATCH('LFA Expenditure_7B'!B174,'LFA Expenditure_7B imp-exp'!N$22:N$33,0)),\"\")","v":""},{"$f":"IFERROR(INDEX('LFA Expenditure_7B imp-exp'!C$22:C$33,MATCH('LFA Expenditure_7B'!B174,'LFA Expenditure_7B imp-exp'!N$22:N$33,0)),\"\")","v":""},{"$f":"'PR Expenditure_7A'!F175","v":0},null,0,{"$error":"#VALUE!"},null,null,{"$f":"IFERROR(INDEX('LFA Expenditure_7B imp-exp'!J$22:J$33,MATCH('LFA Expenditure_7B'!B174,'LFA Expenditure_7B imp-exp'!N$22:N$33,0)),\"\")","v":""},null,0,{"$error":"#VALUE!"}]
["Don't Show","Int73",{"$f":"IFERROR(INDEX('LFA Expenditure_7B imp-exp'!A$22:A$33,MATCH('LFA Expenditure_7B'!B175,'LFA Expenditure_7B imp-exp'!N$22:N$33,0)),\"\")","v":""},{"$f":"IFERROR(INDEX('LFA Expenditure_7B imp-exp'!B$22:B$33,MATCH('LFA Expenditure_7B'!B175,'LFA Expenditure_7B imp-exp'!N$22:N$33,0)),\"\")","v":""},{"$f":"IFERROR(INDEX('LFA Expenditure_7B imp-exp'!C$22:C$33,MATCH('LFA Expenditure_7B'!B175,'LFA Expenditure_7B imp-exp'!N$22:N$33,0)),\"\")","v":""},{"$f":"'PR Expenditure_7A'!F176","v":0},null,0,{"$error":"#VALUE!"},null,null,{"$f":"IFERROR(INDEX('LFA Expenditure_7B imp-exp'!J$22:J$33,MATCH('LFA Expenditure_7B'!B175,'LFA Expenditure_7B imp-exp'!N$22:N$33,0)),\"\")","v":""},null,0,{"$error":"#VALUE!"}]
["Don't Show","Int74",{"$f":"IFERROR(INDEX('LFA Expenditure_7B imp-exp'!A$22:A$33,MATCH('LFA Expenditure_7B'!B176,'LFA Expenditure_7B imp-exp'!N$22:N$33,0)),\"\")","v":""},{"$f":"IFERROR(INDEX('LFA Expenditure_7B imp-exp'!B$22:B$33,MATCH('LFA Expenditure_7B'!B176,'LFA Expenditure_7B imp-exp'!N$22:N$33,0)),\"\")","v":""},{"$f":"IFERROR(INDEX('LFA Expenditure_7B imp-exp'!C$22:C$33,MATCH('LFA Expenditure_7B'!B176,'LFA Expenditure_7B imp-exp'!N$22:N$33,0)),\"\")","v":""},{"$f":"'PR Expenditure_7A'!F177","v":0},null,0,{"$error":"#VALUE!"},null,null,{"$f":"IFERROR(INDEX('LFA Expenditure_7B imp-exp'!J$22:J$33,MATCH('LFA Expenditure_7B'!B176,'LFA Expenditure_7B imp-exp'!N$22:N$33,0)),\"\")","v":""},null,0,{"$error":"#VALUE!"}]
["Don't Show","Int75",{"$f":"IFERROR(INDEX('LFA Expenditure_7B imp-exp'!A$22:A$33,MATCH('LFA Expenditure_7B'!B177,'LFA Expenditure_7B imp-exp'!N$22:N$33,0)),\"\")","v":""},{"$f":"IFERROR(INDEX('LFA Expenditure_7B imp-exp'!B$22:B$33,MATCH('LFA Expenditure_7B'!B177,'LFA Expenditure_7B imp-exp'!N$22:N$33,0)),\"\")","v":""},{"$f":"IFERROR(INDEX('LFA Expenditure_7B imp-exp'!C$22:C$33,MATCH('LFA Expenditure_7B'!B177,'LFA Expenditure_7B imp-exp'!N$22:N$33,0)),\"\")","v":""},{"$f":"'PR Expenditure_7A'!F178","v":0},null,0,{"$error":"#VALUE!"},null,null,{"$f":"IFERROR(INDEX('LFA Expenditure_7B imp-exp'!J$22:J$33,MATCH('LFA Expenditure_7B'!B177,'LFA Expenditure_7B imp-exp'!N$22:N$33,0)),\"\")","v":""},null,0,{"$error":"#VALUE!"}]
["Don't Show","Int76",{"$f":"IFERROR(INDEX('LFA Expenditure_7B imp-exp'!A$22:A$33,MATCH('LFA Expenditure_7B'!B178,'LFA Expenditure_7B imp-exp'!N$22:N$33,0)),\"\")","v":""},{"$f":"IFERROR(INDEX('LFA Expenditure_7B imp-exp'!B$22:B$33,MATCH('LFA Expenditure_7B'!B178,'LFA Expenditure_7B imp-exp'!N$22:N$33,0)),\"\")","v":""},{"$f":"IFERROR(INDEX('LFA Expenditure_7B imp-exp'!C$22:C$33,MATCH('LFA Expenditure_7B'!B178,'LFA Expenditure_7B imp-exp'!N$22:N$33,0)),\"\")","v":""},{"$f":"'PR Expenditure_7A'!F179","v":0},null,0,{"$error":"#VALUE!"},null,null,{"$f":"IFERROR(INDEX('LFA Expenditure_7B imp-exp'!J$22:J$33,MATCH('LFA Expenditure_7B'!B178,'LFA Expenditure_7B imp-exp'!N$22:N$33,0)),\"\")","v":""},null,0,{"$error":"#VALUE!"}]
["Don't Show","Int77",{"$f":"IFERROR(INDEX('LFA Expenditure_7B imp-exp'!A$22:A$33,MATCH('LFA Expenditure_7B'!B179,'LFA Expenditure_7B imp-exp'!N$22:N$33,0)),\"\")","v":""},{"$f":"IFERROR(INDEX('LFA Expenditure_7B imp-exp'!B$22:B$33,MATCH('LFA Expenditure_7B'!B179,'LFA Expenditure_7B imp-exp'!N$22:N$33,0)),\"\")","v":""},{"$f":"IFERROR(INDEX('LFA Expenditure_7B imp-exp'!C$22:C$33,MATCH('LFA Expenditure_7B'!B179,'LFA Expenditure_7B imp-exp'!N$22:N$33,0)),\"\")","v":""},{"$f":"'PR Expenditure_7A'!F180","v":0},null,0,{"$error":"#VALUE!"},null,null,{"$f":"IFERROR(INDEX('LFA Expenditure_7B imp-exp'!J$22:J$33,MATCH('LFA Expenditure_7B'!B179,'LFA Expenditure_7B imp-exp'!N$22:N$33,0)),\"\")","v":""},null,0,{"$error":"#VALUE!"}]
["Don't Show","Int78",{"$f":"IFERROR(INDEX('LFA Expenditure_7B imp-exp'!A$22:A$33,MATCH('LFA Expenditure_7B'!B180,'LFA Expenditure_7B imp-exp'!N$22:N$33,0)),\"\")","v":""},{"$f":"IFERROR(INDEX('LFA Expenditure_7B imp-exp'!B$22:B$33,MATCH('LFA Expenditure_7B'!B180,'LFA Expenditure_7B imp-exp'!N$22:N$33,0)),\"\")","v":""},{"$f":"IFERROR(INDEX('LFA Expenditure_7B imp-exp'!C$22:C$33,MATCH('LFA Expenditure_7B'!B180,'LFA Expenditure_7B imp-exp'!N$22:N$33,0)),\"\")","v":""},{"$f":"'PR Expenditure_7A'!F181","v":0},null,0,{"$error":"#VALUE!"},null,null,{"$f":"IFERROR(INDEX('LFA Expenditure_7B imp-exp'!J$22:J$33,MATCH('LFA Expenditure_7B'!B180,'LFA Expenditure_7B imp-exp'!N$22:N$33,0)),\"\")","v":""},null,0,{"$error":"#VALUE!"}]
["Don't Show","Int79",{"$f":"IFERROR(INDEX('LFA Expenditure_7B imp-exp'!A$22:A$33,MATCH('LFA Expenditure_7B'!B181,'LFA Expenditure_7B imp-exp'!N$22:N$33,0)),\"\")","v":""},{"$f":"IFERROR(INDEX('LFA Expenditure_7B imp-exp'!B$22:B$33,MATCH('LFA Expenditure_7B'!B181,'LFA Expenditure_7B imp-exp'!N$22:N$33,0)),\"\")","v":""},{"$f":"IFERROR(INDEX('LFA Expenditure_7B imp-exp'!C$22:C$33,MATCH('LFA Expenditure_7B'!B181,'LFA Expenditure_7B imp-exp'!N$22:N$33,0)),\"\")","v":""},{"$f":"'PR Expenditure_7A'!F182","v":0},null,0,{"$error":"#VALUE!"},null,null,{"$f":"IFERROR(INDEX('LFA Expenditure_7B imp-exp'!J$22:J$33,MATCH('LFA Expenditure_7B'!B181,'LFA Expenditure_7B imp-exp'!N$22:N$33,0)),\"\")","v":""},null,0,{"$error":"#VALUE!"}]
["Don't Show","Int80",{"$f":"IFERROR(INDEX('LFA Expenditure_7B imp-exp'!A$22:A$33,MATCH('LFA Expenditure_7B'!B182,'LFA Expenditure_7B imp-exp'!N$22:N$33,0)),\"\")","v":""},{"$f":"IFERROR(INDEX('LFA Expenditure_7B imp-exp'!B$22:B$33,MATCH('LFA Expenditure_7B'!B182,'LFA Expenditure_7B imp-exp'!N$22:N$33,0)),\"\")","v":""},{"$f":"IFERROR(INDEX('LFA Expenditure_7B imp-exp'!C$22:C$33,MATCH('LFA Expenditure_7B'!B182,'LFA Expenditure_7B imp-exp'!N$22:N$33,0)),\"\")","v":""},{"$f":"'PR Expenditure_7A'!F183","v":0},null,0,{"$error":"#VALUE!"},null,null,{"$f":"IFERROR(INDEX('LFA Expenditure_7B imp-exp'!J$22:J$33,MATCH('LFA Expenditure_7B'!B182,'LFA Expenditure_7B imp-exp'!N$22:N$33,0)),\"\")","v":""},null,0,{"$error":"#VALUE!"}]
["Don't Show","Int81",{"$f":"IFERROR(INDEX('LFA Expenditure_7B imp-exp'!A$22:A$33,MATCH('LFA Expenditure_7B'!B183,'LFA Expenditure_7B imp-exp'!N$22:N$33,0)),\"\")","v":""},{"$f":"IFERROR(INDEX('LFA Expenditure_7B imp-exp'!B$22:B$33,MATCH('LFA Expenditure_7B'!B183,'LFA Expenditure_7B imp-exp'!N$22:N$33,0)),\"\")","v":""},{"$f":"IFERROR(INDEX('LFA Expenditure_7B imp-exp'!C$22:C$33,MATCH('LFA Expenditure_7B'!B183,'LFA Expenditure_7B imp-exp'!N$22:N$33,0)),\"\")","v":""},{"$f":"'PR Expenditure_7A'!F184","v":0},null,0,{"$error":"#VALUE!"},null,null,{"$f":"IFERROR(INDEX('LFA Expenditure_7B imp-exp'!J$22:J$33,MATCH('LFA Expenditure_7B'!B183,'LFA Expenditure_7B imp-exp'!N$22:N$33,0)),\"\")","v":""},null,0,{"$error":"#VALUE!"}]
["Don't Show","Int82",{"$f":"IFERROR(INDEX('LFA Expenditure_7B imp-exp'!A$22:A$33,MATCH('LFA Expenditure_7B'!B184,'LFA Expenditure_7B imp-exp'!N$22:N$33,0)),\"\")","v":""},{"$f":"IFERROR(INDEX('LFA Expenditure_7B imp-exp'!B$22:B$33,MATCH('LFA Expenditure_7B'!B184,'LFA Expenditure_7B imp-exp'!N$22:N$33,0)),\"\")","v":""},{"$f":"IFERROR(INDEX('LFA Expenditure_7B imp-exp'!C$22:C$33,MATCH('LFA Expenditure_7B'!B184,'LFA Expenditure_7B imp-exp'!N$22:N$33,0)),\"\")","v":""},{"$f":"'PR Expenditure_7A'!F185","v":0},null,0,{"$error":"#VALUE!"},null,null,{"$f":"IFERROR(INDEX('LFA Expenditure_7B imp-exp'!J$22:J$33,MATCH('LFA Expenditure_7B'!B184,'LFA Expenditure_7B imp-exp'!N$22:N$33,0)),\"\")","v":""},null,0,{"$error":"#VALUE!"}]
["Don't Show","Int83",{"$f":"IFERROR(INDEX('LFA Expenditure_7B imp-exp'!A$22:A$33,MATCH('LFA Expenditure_7B'!B185,'LFA Expenditure_7B imp-exp'!N$22:N$33,0)),\"\")","v":""},{"$f":"IFERROR(INDEX('LFA Expenditure_7B imp-exp'!B$22:B$33,MATCH('LFA Expenditure_7B'!B185,'LFA Expenditure_7B imp-exp'!N$22:N$33,0)),\"\")","v":""},{"$f":"IFERROR(INDEX('LFA Expenditure_7B imp-exp'!C$22:C$33,MATCH('LFA Expenditure_7B'!B185,'LFA Expenditure_7B imp-exp'!N$22:N$33,0)),\"\")","v":""},{"$f":"'PR Expenditure_7A'!F186","v":0},null,0,{"$error":"#VALUE!"},null,null,{"$f":"IFERROR(INDEX('LFA Expenditure_7B imp-exp'!J$22:J$33,MATCH('LFA Expenditure_7B'!B185,'LFA Expenditure_7B imp-exp'!N$22:N$33,0)),\"\")","v":""},null,0,{"$error":"#VALUE!"}]
["Don't Show","Int84",{"$f":"IFERROR(INDEX('LFA Expenditure_7B imp-exp'!A$22:A$33,MATCH('LFA Expenditure_7B'!B186,'LFA Expenditure_7B imp-exp'!N$22:N$33,0)),\"\")","v":""},{"$f":"IFERROR(INDEX('LFA Expenditure_7B imp-exp'!B$22:B$33,MATCH('LFA Expenditure_7B'!B186,'LFA Expenditure_7B imp-exp'!N$22:N$33,0)),\"\")","v":""},{"$f":"IFERROR(INDEX('LFA Expenditure_7B imp-exp'!C$22:C$33,MATCH('LFA Expenditure_7B'!B186,'LFA Expenditure_7B imp-exp'!N$22:N$33,0)),\"\")","v":""},{"$f":"'PR Expenditure_7A'!F187","v":0},null,0,{"$error":"#VALUE!"},null,null,{"$f":"IFERROR(INDEX('LFA Expenditure_7B imp-exp'!J$22:J$33,MATCH('LFA Expenditure_7B'!B186,'LFA Expenditure_7B imp-exp'!N$22:N$33,0)),\"\")","v":""},null,0,{"$error":"#VALUE!"}]
["Don't Show","Int85",{"$f":"IFERROR(INDEX('LFA Expenditure_7B imp-exp'!A$22:A$33,MATCH('LFA Expenditure_7B'!B187,'LFA Expenditure_7B imp-exp'!N$22:N$33,0)),\"\")","v":""},{"$f":"IFERROR(INDEX('LFA Expenditure_7B imp-exp'!B$22:B$33,MATCH('LFA Expenditure_7B'!B187,'LFA Expenditure_7B imp-exp'!N$22:N$33,0)),\"\")","v":""},{"$f":"IFERROR(INDEX('LFA Expenditure_7B imp-exp'!C$22:C$33,MATCH('LFA Expenditure_7B'!B187,'LFA Expenditure_7B imp-exp'!N$22:N$33,0)),\"\")","v":""},{"$f":"'PR Expenditure_7A'!F188","v":0},null,0,{"$error":"#VALUE!"},null,null,{"$f":"IFERROR(INDEX('LFA Expenditure_7B imp-exp'!J$22:J$33,MATCH('LFA Expenditure_7B'!B187,'LFA Expenditure_7B imp-exp'!N$22:N$33,0)),\"\")","v":""},null,0,{"$error":"#VALUE!"}]
["Don't Show","Int86",{"$f":"IFERROR(INDEX('LFA Expenditure_7B imp-exp'!A$22:A$33,MATCH('LFA Expenditure_7B'!B188,'LFA Expenditure_7B imp-exp'!N$22:N$33,0)),\"\")","v":""},{"$f":"IFERROR(INDEX('LFA Expenditure_7B imp-exp'!B$22:B$33,MATCH('LFA Expenditure_7B'!B188,'LFA Expenditure_7B imp-exp'!N$22:N$33,0)),\"\")","v":""},{"$f":"IFERROR(INDEX('LFA Expenditure_7B imp-exp'!C$22:C$33,MATCH('LFA Expenditure_7B'!B188,'LFA Expenditure_7B imp-exp'!N$22:N$33,0)),\"\")","v":""},{"$f":"'PR Expenditure_7A'!F189","v":0},null,0,{"$error":"#VALUE!"},null,null,{"$f":"IFERROR(INDEX('LFA Expenditure_7B imp-exp'!J$22:J$33,MATCH('LFA Expenditure_7B'!B188,'LFA Expenditure_7B imp-exp'!N$22:N$33,0)),\"\")","v":""},null,0,{"$error":"#VALUE!"}]
["Don't Show","Int87",{"$f":"IFERROR(INDEX('LFA Expenditure_7B imp-exp'!A$22:A$33,MATCH('LFA Expenditure_7B'!B189,'LFA Expenditure_7B imp-exp'!N$22:N$33,0)),\"\")","v":""},{"$f":"IFERROR(INDEX('LFA Expenditure_7B imp-exp'!B$22:B$33,MATCH('LFA Expenditure_7B'!B189,'LFA Expenditure_7B imp-exp'!N$22:N$33,0)),\"\")","v":""},{"$f":"IFERROR(INDEX('LFA Expenditure_7B imp-exp'!C$22:C$33,MATCH('LFA Expenditure_7B'!B189,'LFA Expenditure_7B imp-exp'!N$22:N$33,0)),\"\")","v":""},{"$f":"'PR Expenditure_7A'!F190","v":0},null,0,{"$error":"#VALUE!"},null,null,{"$f":"IFERROR(INDEX('LFA Expenditure_7B imp-exp'!J$22:J$33,MATCH('LFA Expenditure_7B'!B189,'LFA Expenditure_7B imp-exp'!N$22:N$33,0)),\"\")","v":""},null,0,{"$error":"#VALUE!"}]
["Don't Show","Int88",{"$f":"IFERROR(INDEX('LFA Expenditure_7B imp-exp'!A$22:A$33,MATCH('LFA Expenditure_7B'!B190,'LFA Expenditure_7B imp-exp'!N$22:N$33,0)),\"\")","v":""},{"$f":"IFERROR(INDEX('LFA Expenditure_7B imp-exp'!B$22:B$33,MATCH('LFA Expenditure_7B'!B190,'LFA Expenditure_7B imp-exp'!N$22:N$33,0)),\"\")","v":""},{"$f":"IFERROR(INDEX('LFA Expenditure_7B imp-exp'!C$22:C$33,MATCH('LFA Expenditure_7B'!B190,'LFA Expenditure_7B imp-exp'!N$22:N$33,0)),\"\")","v":""},{"$f":"'PR Expenditure_7A'!F191","v":0},null,0,{"$error":"#VALUE!"},null,null,{"$f":"IFERROR(INDEX('LFA Expenditure_7B imp-exp'!J$22:J$33,MATCH('LFA Expenditure_7B'!B190,'LFA Expenditure_7B imp-exp'!N$22:N$33,0)),\"\")","v":""},null,0,{"$error":"#VALUE!"}]
["Don't Show","Int89",{"$f":"IFERROR(INDEX('LFA Expenditure_7B imp-exp'!A$22:A$33,MATCH('LFA Expenditure_7B'!B191,'LFA Expenditure_7B imp-exp'!N$22:N$33,0)),\"\")","v":""},{"$f":"IFERROR(INDEX('LFA Expenditure_7B imp-exp'!B$22:B$33,MATCH('LFA Expenditure_7B'!B191,'LFA Expenditure_7B imp-exp'!N$22:N$33,0)),\"\")","v":""},{"$f":"IFERROR(INDEX('LFA Expenditure_7B imp-exp'!C$22:C$33,MATCH('LFA Expenditure_7B'!B191,'LFA Expenditure_7B imp-exp'!N$22:N$33,0)),\"\")","v":""},{"$f":"'PR Expenditure_7A'!F192","v":0},null,0,{"$error":"#VALUE!"},null,null,{"$f":"IFERROR(INDEX('LFA Expenditure_7B imp-exp'!J$22:J$33,MATCH('LFA Expenditure_7B'!B191,'LFA Expenditure_7B imp-exp'!N$22:N$33,0)),\"\")","v":""},null,0,{"$error":"#VALUE!"}]
["Don't Show","Int90",{"$f":"IFERROR(INDEX('LFA Expenditure_7B imp-exp'!A$22:A$33,MATCH('LFA Expenditure_7B'!B192,'LFA Expenditure_7B imp-exp'!N$22:N$33,0)),\"\")","v":""},{"$f":"IFERROR(INDEX('LFA Expenditure_7B imp-exp'!B$22:B$33,MATCH('LFA Expenditure_7B'!B192,'LFA Expenditure_7B imp-exp'!N$22:N$33,0)),\"\")","v":""},{"$f":"IFERROR(INDEX('LFA Expenditure_7B imp-exp'!C$22:C$33,MATCH('LFA Expenditure_7B'!B192,'LFA Expenditure_7B imp-exp'!N$22:N$33,0)),\"\")","v":""},{"$f":"'PR Expenditure_7A'!F193","v":0},null,0,{"$error":"#VALUE!"},null,null,{"$f":"IFERROR(INDEX('LFA Expenditure_7B imp-exp'!J$22:J$33,MATCH('LFA Expenditure_7B'!B192,'LFA Expenditure_7B imp-exp'!N$22:N$33,0)),\"\")","v":""},null,0,{"$error":"#VALUE!"}]
["Don't Show","Int91",{"$f":"IFERROR(INDEX('LFA Expenditure_7B imp-exp'!A$22:A$33,MATCH('LFA Expenditure_7B'!B193,'LFA Expenditure_7B imp-exp'!N$22:N$33,0)),\"\")","v":""},{"$f":"IFERROR(INDEX('LFA Expenditure_7B imp-exp'!B$22:B$33,MATCH('LFA Expenditure_7B'!B193,'LFA Expenditure_7B imp-exp'!N$22:N$33,0)),\"\")","v":""},{"$f":"IFERROR(INDEX('LFA Expenditure_7B imp-exp'!C$22:C$33,MATCH('LFA Expenditure_7B'!B193,'LFA Expenditure_7B imp-exp'!N$22:N$33,0)),\"\")","v":""},{"$f":"'PR Expenditure_7A'!F194","v":0},null,0,{"$error":"#VALUE!"},null,null,{"$f":"IFERROR(INDEX('LFA Expenditure_7B imp-exp'!J$22:J$33,MATCH('LFA Expenditure_7B'!B193,'LFA Expenditure_7B imp-exp'!N$22:N$33,0)),\"\")","v":""},null,0,{"$error":"#VALUE!"}]
["Don't Show","Int92",{"$f":"IFERROR(INDEX('LFA Expenditure_7B imp-exp'!A$22:A$33,MATCH('LFA Expenditure_7B'!B194,'LFA Expenditure_7B imp-exp'!N$22:N$33,0)),\"\")","v":""},{"$f":"IFERROR(INDEX('LFA Expenditure_7B imp-exp'!B$22:B$33,MATCH('LFA Expenditure_7B'!B194,'LFA Expenditure_7B imp-exp'!N$22:N$33,0)),\"\")","v":""},{"$f":"IFERROR(INDEX('LFA Expenditure_7B imp-exp'!C$22:C$33,MATCH('LFA Expenditure_7B'!B194,'LFA Expenditure_7B imp-exp'!N$22:N$33,0)),\"\")","v":""},{"$f":"'PR Expenditure_7A'!F195","v":0},null,0,{"$error":"#VALUE!"},null,null,{"$f":"IFERROR(INDEX('LFA Expenditure_7B imp-exp'!J$22:J$33,MATCH('LFA Expenditure_7B'!B194,'LFA Expenditure_7B imp-exp'!N$22:N$33,0)),\"\")","v":""},null,0,{"$error":"#VALUE!"}]
["Don't Show","Int93",{"$f":"IFERROR(INDEX('LFA Expenditure_7B imp-exp'!A$22:A$33,MATCH('LFA Expenditure_7B'!B195,'LFA Expenditure_7B imp-exp'!N$22:N$33,0)),\"\")","v":""},{"$f":"IFERROR(INDEX('LFA Expenditure_7B imp-exp'!B$22:B$33,MATCH('LFA Expenditure_7B'!B195,'LFA Expenditure_7B imp-exp'!N$22:N$33,0)),\"\")","v":""},{"$f":"IFERROR(INDEX('LFA Expenditure_7B imp-exp'!C$22:C$33,MATCH('LFA Expenditure_7B'!B195,'LFA Expenditure_7B imp-exp'!N$22:N$33,0)),\"\")","v":""},{"$f":"'PR Expenditure_7A'!F196","v":0},null,0,{"$error":"#VALUE!"},null,null,{"$f":"IFERROR(INDEX('LFA Expenditure_7B imp-exp'!J$22:J$33,MATCH('LFA Expenditure_7B'!B195,'LFA Expenditure_7B imp-exp'!N$22:N$33,0)),\"\")","v":""},null,0,{"$error":"#VALUE!"}]
["Don't Show","Int94",{"$f":"IFERROR(INDEX('LFA Expenditure_7B imp-exp'!A$22:A$33,MATCH('LFA Expenditure_7B'!B196,'LFA Expenditure_7B imp-exp'!N$22:N$33,0)),\"\")","v":""},{"$f":"IFERROR(INDEX('LFA Expenditure_7B imp-exp'!B$22:B$33,MATCH('LFA Expenditure_7B'!B196,'LFA Expenditure_7B imp-exp'!N$22:N$33,0)),\"\")","v":""},{"$f":"IFERROR(INDEX('LFA Expenditure_7B imp-exp'!C$22:C$33,MATCH('LFA Expenditure_7B'!B196,'LFA Expenditure_7B imp-exp'!N$22:N$33,0)),\"\")","v":""},{"$f":"'PR Expenditure_7A'!F197","v":0},null,0,{"$error":"#VALUE!"},null,null,{"$f":"IFERROR(INDEX('LFA Expenditure_7B imp-exp'!J$22:J$33,MATCH('LFA Expenditure_7B'!B196,'LFA Expenditure_7B imp-exp'!N$22:N$33,0)),\"\")","v":""},null,0,{"$error":"#VALUE!"}]
["Don't Show","Int95",{"$f":"IFERROR(INDEX('LFA Expenditure_7B imp-exp'!A$22:A$33,MATCH('LFA Expenditure_7B'!B197,'LFA Expenditure_7B imp-exp'!N$22:N$33,0)),\"\")","v":""},{"$f":"IFERROR(INDEX('LFA Expenditure_7B imp-exp'!B$22:B$33,MATCH('LFA Expenditure_7B'!B197,'LFA Expenditure_7B imp-exp'!N$22:N$33,0)),\"\")","v":""},{"$f":"IFERROR(INDEX('LFA Expenditure_7B imp-exp'!C$22:C$33,MATCH('LFA Expenditure_7B'!B197,'LFA Expenditure_7B imp-exp'!N$22:N$33,0)),\"\")","v":""},{"$f":"'PR Expenditure_7A'!F198","v":0},null,0,{"$error":"#VALUE!"},null,null,{"$f":"IFERROR(INDEX('LFA Expenditure_7B imp-exp'!J$22:J$33,MATCH('LFA Expenditure_7B'!B197,'LFA Expenditure_7B imp-exp'!N$22:N$33,0)),\"\")","v":""},null,0,{"$error":"#VALUE!"}]
["Don't Show","Int96",{"$f":"IFERROR(INDEX('LFA Expenditure_7B imp-exp'!A$22:A$33,MATCH('LFA Expenditure_7B'!B198,'LFA Expenditure_7B imp-exp'!N$22:N$33,0)),\"\")","v":""},{"$f":"IFERROR(INDEX('LFA Expenditure_7B imp-exp'!B$22:B$33,MATCH('LFA Expenditure_7B'!B198,'LFA Expenditure_7B imp-exp'!N$22:N$33,0)),\"\")","v":""},{"$f":"IFERROR(INDEX('LFA Expenditure_7B imp-exp'!C$22:C$33,MATCH('LFA Expenditure_7B'!B198,'LFA Expenditure_7B imp-exp'!N$22:N$33,0)),\"\")","v":""},{"$f":"'PR Expenditure_7A'!F199","v":0},null,0,{"$error":"#VALUE!"},null,null,{"$f":"IFERROR(INDEX('LFA Expenditure_7B imp-exp'!J$22:J$33,MATCH('LFA Expenditure_7B'!B198,'LFA Expenditure_7B imp-exp'!N$22:N$33,0)),\"\")","v":""},null,0,{"$error":"#VALUE!"}]
["Don't Show","Int97",{"$f":"IFERROR(INDEX('LFA Expenditure_7B imp-exp'!A$22:A$33,MATCH('LFA Expenditure_7B'!B199,'LFA Expenditure_7B imp-exp'!N$22:N$33,0)),\"\")","v":""},{"$f":"IFERROR(INDEX('LFA Expenditure_7B imp-exp'!B$22:B$33,MATCH('LFA Expenditure_7B'!B199,'LFA Expenditure_7B imp-exp'!N$22:N$33,0)),\"\")","v":""},{"$f":"IFERROR(INDEX('LFA Expenditure_7B imp-exp'!C$22:C$33,MATCH('LFA Expenditure_7B'!B199,'LFA Expenditure_7B imp-exp'!N$22:N$33,0)),\"\")","v":""},{"$f":"'PR Expenditure_7A'!F200","v":0},null,0,{"$error":"#VALUE!"},null,null,{"$f":"IFERROR(INDEX('LFA Expenditure_7B imp-exp'!J$22:J$33,MATCH('LFA Expenditure_7B'!B199,'LFA Expenditure_7B imp-exp'!N$22:N$33,0)),\"\")","v":""},null,0,{"$error":"#VALUE!"}]
["Don't Show","Int98",{"$f":"IFERROR(INDEX('LFA Expenditure_7B imp-exp'!A$22:A$33,MATCH('LFA Expenditure_7B'!B200,'LFA Expenditure_7B imp-exp'!N$22:N$33,0)),\"\")","v":""},{"$f":"IFERROR(INDEX('LFA Expenditure_7B imp-exp'!B$22:B$33,MATCH('LFA Expenditure_7B'!B200,'LFA Expenditure_7B imp-exp'!N$22:N$33,0)),\"\")","v":""},{"$f":"IFERROR(INDEX('LFA Expenditure_7B imp-exp'!C$22:C$33,MATCH('LFA Expenditure_7B'!B200,'LFA Expenditure_7B imp-exp'!N$22:N$33,0)),\"\")","v":""},{"$f":"'PR Expenditure_7A'!F201","v":0},null,0,{"$error":"#VALUE!"},null,null,{"$f":"IFERROR(INDEX('LFA Expenditure_7B imp-exp'!J$22:J$33,MATCH('LFA Expenditure_7B'!B200,'LFA Expenditure_7B imp-exp'!N$22:N$33,0)),\"\")","v":""},null,0,{"$error":"#VALUE!"}]
["Don't Show","Int99",{"$f":"IFERROR(INDEX('LFA Expenditure_7B imp-exp'!A$22:A$33,MATCH('LFA Expenditure_7B'!B201,'LFA Expenditure_7B imp-exp'!N$22:N$33,0)),\"\")","v":""},{"$f":"IFERROR(INDEX('LFA Expenditure_7B imp-exp'!B$22:B$33,MATCH('LFA Expenditure_7B'!B201,'LFA Expenditure_7B imp-exp'!N$22:N$33,0)),\"\")","v":""},{"$f":"IFERROR(INDEX('LFA Expenditure_7B imp-exp'!C$22:C$33,MATCH('LFA Expenditure_7B'!B201,'LFA Expenditure_7B imp-exp'!N$22:N$33,0)),\"\")","v":""},{"$f":"'PR Expenditure_7A'!F202","v":0},null,0,{"$error":"#VALUE!"},null,null,{"$f":"IFERROR(INDEX('LFA Expenditure_7B imp-exp'!J$22:J$33,MATCH('LFA Expenditure_7B'!B201,'LFA Expenditure_7B imp-exp'!N$22:N$33,0)),\"\")","v":""},null,0,{"$error":"#VALUE!"}]
["Don't Show","Int100",{"$f":"IFERROR(INDEX('LFA Expenditure_7B imp-exp'!A$22:A$33,MATCH('LFA Expenditure_7B'!B202,'LFA Expenditure_7B imp-exp'!N$22:N$33,0)),\"\")","v":""},{"$f":"IFERROR(INDEX('LFA Expenditure_7B imp-exp'!B$22:B$33,MATCH('LFA Expenditure_7B'!B202,'LFA Expenditure_7B imp-exp'!N$22:N$33,0)),\"\")","v":""},{"$f":"IFERROR(INDEX('LFA Expenditure_7B imp-exp'!C$22:C$33,MATCH('LFA Expenditure_7B'!B202,'LFA Expenditure_7B imp-exp'!N$22:N$33,0)),\"\")","v":""},{"$f":"'PR Expenditure_7A'!F203","v":0},null,0,{"$error":"#VALUE!"},null,null,{"$f":"IFERROR(INDEX('LFA Expenditure_7B imp-exp'!J$22:J$33,MATCH('LFA Expenditure_7B'!B202,'LFA Expenditure_7B imp-exp'!N$22:N$33,0)),\"\")","v":""},null,0,{"$error":"#VALUE!"}]
["Show","Intcustom1",null,null,0,{"$f":"'PR Expenditure_7A'!F204","v":0},null,{"$f":"IFERROR((E203)-(F203+G203),0)","v":0},{"$f":"IF(AND((E203)=0,(F203+G203)=0),\"N/A\",IF(AND((E203)=0,(F203+G203)<>0),\"Not Budgeted\",(F203+G203)/(E203)))","v":"N/A"},null,null,0,null,{"$f":"IFERROR(L203-M203,0)","v":0},{"$f":"IF(AND(L203=0,M203=0),\"N/A\",IF(AND(L203=0,M203<>0),\"Not Budgeted\",M203/L203))","v":"N/A"},null,{"$f":"IFERROR(IF(VLOOKUP(C203,'Reference Records'!$B$12:$D$25,3,FALSE)=0,\"\",VLOOKUP(C203,'Reference Records'!$B$12:$D$25,3,FALSE)),\"\")","v":""}]
["Show","Intcustom2",null,null,0,{"$f":"'PR Expenditure_7A'!F205","v":0},null,{"$f":"IFERROR((E204)-(F204+G204),0)","v":0},{"$f":"IF(AND((E204)=0,(F204+G204)=0),\"N/A\",IF(AND((E204)=0,(F204+G204)<>0),\"Not Budgeted\",(F204+G204)/(E204)))","v":"N/A"},null,null,0,null,{"$f":"IFERROR(L204-M204,0)","v":0},{"$f":"IF(AND(L204=0,M204=0),\"N/A\",IF(AND(L204=0,M204<>0),\"Not Budgeted\",M204/L204))","v":"N/A"},{"$f":"IFERROR(IF(VLOOKUP(C203,'Reference Records'!$B$12:$D$25,3,FALSE)=0,\"\",VLOOKUP(C203,'Reference Records'!$B$12:$D$25,3,FALSE)),\"\")","v":""}]
["Show","Intcustom3",null,null,0,{"$f":"'PR Expenditure_7A'!F206","v":0},null,0,"N/A",null,null,0,null,0,"N/A",{"$f":"IFERROR(IF(VLOOKUP(C204,'Reference Records'!$B$12:$D$25,3,FALSE)=0,\"\",VLOOKUP(C204,'Reference Records'!$B$12:$D$25,3,FALSE)),\"\")","v":""}]
["Show","Intcustom4",null,null,0,{"$f":"'PR Expenditure_7A'!F207","v":0},null,0,"N/A",null,null,0,null,0,"N/A",{"$f":"IFERROR(IF(VLOOKUP(C205,'Reference Records'!$B$12:$D$25,3,FALSE)=0,\"\",VLOOKUP(C205,'Reference Records'!$B$12:$D$25,3,FALSE)),\"\")","v":""}]
["Show","Intcustom5",null,null,0,{"$f":"'PR Expenditure_7A'!F208","v":0},null,0,"N/A",null,null,0,null,0,"N/A",{"$f":"IFERROR(IF(VLOOKUP(C206,'Reference Records'!$B$12:$D$25,3,FALSE)=0,\"\",VLOOKUP(C206,'Reference Records'!$B$12:$D$25,3,FALSE)),\"\")","v":""}]
["Show","Intcustom6",null,null,0,{"$f":"'PR Expenditure_7A'!F209","v":0},null,0,"N/A",null,null,0,null,0,"N/A",{"$f":"IFERROR(IF(VLOOKUP(C207,'Reference Records'!$B$12:$D$25,3,FALSE)=0,\"\",VLOOKUP(C207,'Reference Records'!$B$12:$D$25,3,FALSE)),\"\")","v":""}]
["Show","Intcustom7",null,null,0,{"$f":"'PR Expenditure_7A'!F210","v":0},null,0,"N/A",null,null,0,null,0,"N/A",{"$f":"IFERROR(IF(VLOOKUP(C208,'Reference Records'!$B$12:$D$25,3,FALSE)=0,\"\",VLOOKUP(C208,'Reference Records'!$B$12:$D$25,3,FALSE)),\"\")","v":""}]
["Show","Intcustom8",null,null,0,{"$f":"'PR Expenditure_7A'!F211","v":0},null,0,"N/A",null,null,0,null,0,"N/A",{"$f":"IFERROR(IF(VLOOKUP(C209,'Reference Records'!$B$12:$D$25,3,FALSE)=0,\"\",VLOOKUP(C209,'Reference Records'!$B$12:$D$25,3,FALSE)),\"\")","v":""}]
["Show","Intcustom9",null,null,0,{"$f":"'PR Expenditure_7A'!F212","v":0},null,0,"N/A",null,null,0,null,0,"N/A",{"$f":"IFERROR(IF(VLOOKUP(C210,'Reference Records'!$B$12:$D$25,3,FALSE)=0,\"\",VLOOKUP(C210,'Reference Records'!$B$12:$D$25,3,FALSE)),\"\")","v":""}]
["Show","Intcustom10",null,null,0,{"$f":"'PR Expenditure_7A'!F213","v":0},null,0,"N/A",null,null,0,null,0,"N/A",{"$f":"IFERROR(IF(VLOOKUP(C211,'Reference Records'!$B$12:$D$25,3,FALSE)=0,\"\",VLOOKUP(C211,'Reference Records'!$B$12:$D$25,3,FALSE)),\"\")","v":""}]
["Show","Intcustom11",null,null,0,{"$f":"'PR Expenditure_7A'!F214","v":0},null,0,"N/A",null,null,0,null,0,"N/A",{"$f":"IFERROR(IF(VLOOKUP(C212,'Reference Records'!$B$12:$D$25,3,FALSE)=0,\"\",VLOOKUP(C212,'Reference Records'!$B$12:$D$25,3,FALSE)),\"\")","v":""}]
["Show","Intcustom12",null,null,0,{"$f":"'PR Expenditure_7A'!F215","v":0},null,0,"N/A",null,null,0,null,0,"N/A",{"$f":"IFERROR(IF(VLOOKUP(C213,'Reference Records'!$B$12:$D$25,3,FALSE)=0,\"\",VLOOKUP(C213,'Reference Records'!$B$12:$D$25,3,FALSE)),\"\")","v":""}]
["Show","Intcustom13",null,null,0,{"$f":"'PR Expenditure_7A'!F216","v":0},null,0,"N/A",null,null,0,null,0,"N/A",{"$f":"IFERROR(IF(VLOOKUP(C214,'Reference Records'!$B$12:$D$25,3,FALSE)=0,\"\",VLOOKUP(C214,'Reference Records'!$B$12:$D$25,3,FALSE)),\"\")","v":""}]
["Show","Intcustom14",null,null,0,{"$f":"'PR Expenditure_7A'!F217","v":0},null,0,"N/A",null,null,0,null,0,"N/A",{"$f":"IFERROR(IF(VLOOKUP(C215,'Reference Records'!$B$12:$D$25,3,FALSE)=0,\"\",VLOOKUP(C215,'Reference Records'!$B$12:$D$25,3,FALSE)),\"\")","v":""}]
["Show","Intcustom15",null,null,0,{"$f":"'PR Expenditure_7A'!F218","v":0},null,0,"N/A",null,null,0,null,0,"N/A",{"$f":"IFERROR(IF(VLOOKUP(C216,'Reference Records'!$B$12:$D$25,3,FALSE)=0,\"\",VLOOKUP(C216,'Reference Records'!$B$12:$D$25,3,FALSE)),\"\")","v":""}]
["Show","Intcustom16",null,null,0,{"$f":"'PR Expenditure_7A'!F219","v":0},null,0,"N/A",null,null,0,null,0,"N/A",{"$f":"IFERROR(IF(VLOOKUP(C217,'Reference Records'!$B$12:$D$25,3,FALSE)=0,\"\",VLOOKUP(C217,'Reference Records'!$B$12:$D$25,3,FALSE)),\"\")","v":""}]
["Show",null,"Grand Total",null,{"$f":"ROUND(SUM(E103:E218),2)","v":4057896.79},{"$f":"ROUND(SUM(F103:F218),2)","v":714241.57},{"$f":"ROUND(SUM(G103:G218),2)","v":0},{"$f":"ROUND(SUM(H103:H218),2)","v":3343655.22},{"$f":"(F219+G219)/E219","v":0.17601274920548188},null,null,{"$f":"ROUND(SUM(L103:L218),2)","v":4057896.79},{"$f":"ROUND(SUM(M103:M218),2)","v":0},{"$f":"ROUND(SUM(N103:N218),2)","v":4057896.79},{"$f":"M219/L219","v":0}]
["Show"]
["Show",null,"C. BREAKDOWN BY IMPLEMENTING ENTITY"]
["Show"]
["Show",null,"Implementing Entity","Type of Implementing Entity","Budget for Reporting Period","Actual Expenditure ","Local Fund Agent Adjustment on Expenditures","Budget Vs Actual Variances","Absorption Rate","LFA comments on the Principal Recipient's explanation of variances",null,"Cumulative Budget","Cumulative Actual Expenditure","Cumulative Budget Vs Actuals Variances","Absorption Rate"]
[{"$f":"IF(C224<>\"\",\"Show\",\"Don't Show\")","v":"Show"},"IP1",{"$f":"IFERROR(INDEX('LFA Expenditure_7B imp-exp'!A$52:A$56,MATCH('LFA Expenditure_7B'!B224,'LFA Expenditure_7B imp-exp'!N$52:N$56,0)),\"\")","v":"CED-Caritas"},{"$f":"IFERROR(INDEX('LFA Expenditure_7B imp-exp'!B$52:B$56,MATCH('LFA Expenditure_7B'!B224,'LFA Expenditure_7B imp-exp'!N$52:N$56,0)),\"\")","v":"-"},{"$f":"IFERROR(INDEX('LFA Expenditure_7B imp-exp'!C$52:C$56,MATCH('LFA Expenditure_7B'!B224,'LFA Expenditure_7B imp-exp'!N$52:N$56,0)),\"\")","v":510939.31497165601},{"$f":"'PR Expenditure_7A'!F225","v":94503.7},null,{"$f":"IFERROR((E224)-(F224+G224),0)","v":416435.614971656},{"$f":"IF(AND((E224)=0,(F224+G224)=0),\"N/A\",IF(AND((E224)=0,(F224+G224)<>0),\"Not Budgeted\",(F224+G224)/(E224)))","v":0.18496071300608863},null,null,{"$f":"IFERROR(INDEX('LFA Expenditure_7B imp-exp'!J$52:J$56,MATCH('LFA Expenditure_7B'!B224,'LFA Expenditure_7B imp-exp'!N$52:N$56,0)),\"\")","v":510939.31497165601},null,{"$f":"IFERROR(L224-M224,0)","v":510939.31497165601},{"$f":"IF(AND(L224=0,M224=0),\"N/A\",IF(AND(L224=0,M224<>0),\"Not Budgeted\",M224/L224))","v":0}]
[{"$f":"IF(C225<>\"\",\"Show\",\"Don't Show\")","v":"Show"},"IP2",{"$f":"IFERROR(INDEX('LFA Expenditure_7B imp-exp'!A$52:A$56,MATCH('LFA Expenditure_7B'!B225,'LFA Expenditure_7B imp-exp'!N$52:N$56,0)),\"\")","v":"Ministry of Public Health and Fight against AIDS of the Republic of Burundi"},{"$f":"IFERROR(INDEX('LFA Expenditure_7B imp-exp'!B$52:B$56,MATCH('LFA Expenditure_7B'!B225,'LFA Expenditure_7B imp-exp'!N$52:N$56,0)),\"\")","v":"-"},{"$f":"IFERROR(INDEX('LFA Expenditure_7B imp-exp'!C$52:C$56,MATCH('LFA Expenditure_7B'!B225,'LFA Expenditure_7B imp-exp'!N$52:N$56,0)),\"\")","v":149775.323187081},{"$f":"'PR Expenditure_7A'!F226","v":51160.03},null,{"$f":"IFERROR((E225)-(F225+G225),0)","v":98615.293187080999},{"$f":"IF(AND((E225)=0,(F225+G225)=0),\"N/A\",IF(AND((E225)=0,(F225+G225)<>0),\"Not Budgeted\",(F225+G225)/(E225)))","v":0.34157849845596494},null,null,{"$f":"IFERROR(INDEX('LFA Expenditure_7B imp-exp'!J$52:J$56,MATCH('LFA Expenditure_7B'!B225,'LFA Expenditure_7B imp-exp'!N$52:N$56,0)),\"\")","v":149775.323187081},null,{"$f":"IFERROR(L225-M225,0)","v":149775.323187081},{"$f":"IF(AND(L225=0,M225=0),\"N/A\",IF(AND(L225=0,M225<>0),\"Not Budgeted\",M225/L225))","v":0}]
["Show","IP3",{"$f":"IFERROR(INDEX('LFA Expenditure_7B imp-exp'!A$52:A$56,MATCH('LFA Expenditure_7B'!B226,'LFA Expenditure_7B imp-exp'!N$52:N$56,0)),\"\")","v":"UNDP"},{"$f":"IFERROR(INDEX('LFA Expenditure_7B imp-exp'!B$52:B$56,MATCH('LFA Expenditure_7B'!B226,'LFA Expenditure_7B imp-exp'!N$52:N$56,0)),\"\")","v":"-"},{"$f":"IFERROR(INDEX('LFA Expenditure_7B imp-exp'!C$52:C$56,MATCH('LFA Expenditure_7B'!B226,'LFA Expenditure_7B imp-exp'!N$52:N$56,0)),\"\")","v":3397182.1565958699},{"$f":"'PR Expenditure_7A'!F227","v":568577.83999999985},null,2828604.3165958701,0.16736748687322101,null,null,{"$f":"IFERROR(INDEX('LFA Expenditure_7B imp-exp'!J$52:J$56,MATCH('LFA Expenditure_7B'!B226,'LFA Expenditure_7B imp-exp'!N$52:N$56,0)),\"\")","v":3397182.1565958699},null,3397182.1565958699,0]
["Don't Show","IP4",{"$f":"IFERROR(INDEX('LFA Expenditure_7B imp-exp'!A$52:A$56,MATCH('LFA Expenditure_7B'!B227,'LFA Expenditure_7B imp-exp'!N$52:N$56,0)),\"\")","v":""},{"$f":"IFERROR(INDEX('LFA Expenditure_7B imp-exp'!B$52:B$56,MATCH('LFA Expenditure_7B'!B227,'LFA Expenditure_7B imp-exp'!N$52:N$56,0)),\"\")","v":""},{"$f":"IFERROR(INDEX('LFA Expenditure_7B imp-exp'!C$52:C$56,MATCH('LFA Expenditure_7B'!B227,'LFA Expenditure_7B imp-exp'!N$52:N$56,0)),\"\")","v":""},{"$f":"'PR Expenditure_7A'!F228","v":0},null,0,{"$error":"#VALUE!"},null,null,{"$f":"IFERROR(INDEX('LFA Expenditure_7B imp-exp'!J$52:J$56,MATCH('LFA Expenditure_7B'!B227,'LFA Expenditure_7B imp-exp'!N$52:N$56,0)),\"\")","v":""},null,0,{"$error":"#VALUE!"}]
["Don't Show","IP5",{"$f":"IFERROR(INDEX('LFA Expenditure_7B imp-exp'!A$52:A$56,MATCH('LFA Expenditure_7B'!B228,'LFA Expenditure_7B imp-exp'!N$52:N$56,0)),\"\")","v":""},{"$f":"IFERROR(INDEX('LFA Expenditure_7B imp-exp'!B$52:B$56,MATCH('LFA Expenditure_7B'!B228,'LFA Expenditure_7B imp-exp'!N$52:N$56,0)),\"\")","v":""},{"$f":"IFERROR(INDEX('LFA Expenditure_7B imp-exp'!C$52:C$56,MATCH('LFA Expenditure_7B'!B228,'LFA Expenditure_7B imp-exp'!N$52:N$56,0)),\"\")","v":""},{"$f":"'PR Expenditure_7A'!F229","v":0},null,0,{"$error":"#VALUE!"},null,null,{"$f":"IFERROR(INDEX('LFA Expenditure_7B imp-exp'!J$52:J$56,MATCH('LFA Expenditure_7B'!B228,'LFA Expenditure_7B imp-exp'!N$52:N$56,0)),\"\")","v":""},null,0,{"$error":"#VALUE!"}]
["Don't Show","IP6",{"$f":"IFERROR(INDEX('LFA Expenditure_7B imp-exp'!A$52:A$56,MATCH('LFA Expenditure_7B'!B229,'LFA Expenditure_7B imp-exp'!N$52:N$56,0)),\"\")","v":""},{"$f":"IFERROR(INDEX('LFA Expenditure_7B imp-exp'!B$52:B$56,MATCH('LFA Expenditure_7B'!B229,'LFA Expenditure_7B imp-exp'!N$52:N$56,0)),\"\")","v":""},{"$f":"IFERROR(INDEX('LFA Expenditure_7B imp-exp'!C$52:C$56,MATCH('LFA Expenditure_7B'!B229,'LFA Expenditure_7B imp-exp'!N$52:N$56,0)),\"\")","v":""},{"$f":"'PR Expenditure_7A'!F230","v":0},null,0,{"$error":"#VALUE!"},null,null,{"$f":"IFERROR(INDEX('LFA Expenditure_7B imp-exp'!J$52:J$56,MATCH('LFA Expenditure_7B'!B229,'LFA Expenditure_7B imp-exp'!N$52:N$56,0)),\"\")","v":""},null,0,{"$error":"#VALUE!"}]
["Don't Show","IP7",{"$f":"IFERROR(INDEX('LFA Expenditure_7B imp-exp'!A$52:A$56,MATCH('LFA Expenditure_7B'!B230,'LFA Expenditure_7B imp-exp'!N$52:N$56,0)),\"\")","v":""},{"$f":"IFERROR(INDEX('LFA Expenditure_7B imp-exp'!B$52:B$56,MATCH('LFA Expenditure_7B'!B230,'LFA Expenditure_7B imp-exp'!N$52:N$56,0)),\"\")","v":""},{"$f":"IFERROR(INDEX('LFA Expenditure_7B imp-exp'!C$52:C$56,MATCH('LFA Expenditure_7B'!B230,'LFA Expenditure_7B imp-exp'!N$52:N$56,0)),\"\")","v":""},{"$f":"'PR Expenditure_7A'!F231","v":0},null,0,{"$error":"#VALUE!"},null,null,{"$f":"IFERROR(INDEX('LFA Expenditure_7B imp-exp'!J$52:J$56,MATCH('LFA Expenditure_7B'!B230,'LFA Expenditure_7B imp-exp'!N$52:N$56,0)),\"\")","v":""},null,0,{"$error":"#VALUE!"}]
["Don't Show","IP8",{"$f":"IFERROR(INDEX('LFA Expenditure_7B imp-exp'!A$52:A$56,MATCH('LFA Expenditure_7B'!B231,'LFA Expenditure_7B imp-exp'!N$52:N$56,0)),\"\")","v":""},{"$f":"IFERROR(INDEX('LFA Expenditure_7B imp-exp'!B$52:B$56,MATCH('LFA Expenditure_7B'!B231,'LFA Expenditure_7B imp-exp'!N$52:N$56,0)),\"\")","v":""},{"$f":"IFERROR(INDEX('LFA Expenditure_7B imp-exp'!C$52:C$56,MATCH('LFA Expenditure_7B'!B231,'LFA Expenditure_7B imp-exp'!N$52:N$56,0)),\"\")","v":""},{"$f":"'PR Expenditure_7A'!F232","v":0},null,0,{"$error":"#VALUE!"},null,null,{"$f":"IFERROR(INDEX('LFA Expenditure_7B imp-exp'!J$52:J$56,MATCH('LFA Expenditure_7B'!B231,'LFA Expenditure_7B imp-exp'!N$52:N$56,0)),\"\")","v":""},null,0,{"$error":"#VALUE!"}]
["Don't Show","IP9",{"$f":"IFERROR(INDEX('LFA Expenditure_7B imp-exp'!A$52:A$56,MATCH('LFA Expenditure_7B'!B232,'LFA Expenditure_7B imp-exp'!N$52:N$56,0)),\"\")","v":""},{"$f":"IFERROR(INDEX('LFA Expenditure_7B imp-exp'!B$52:B$56,MATCH('LFA Expenditure_7B'!B232,'LFA Expenditure_7B imp-exp'!N$52:N$56,0)),\"\")","v":""},{"$f":"IFERROR(INDEX('LFA Expenditure_7B imp-exp'!C$52:C$56,MATCH('LFA Expenditure_7B'!B232,'LFA Expenditure_7B imp-exp'!N$52:N$56,0)),\"\")","v":""},{"$f":"'PR Expenditure_7A'!F233","v":0},null,0,{"$error":"#VALUE!"},null,null,{"$f":"IFERROR(INDEX('LFA Expenditure_7B imp-exp'!J$52:J$56,MATCH('LFA Expenditure_7B'!B232,'LFA Expenditure_7B imp-exp'!N$52:N$56,0)),\"\")","v":""},null,0,{"$error":"#VALUE!"}]
["Don't Show","IP10",{"$f":"IFERROR(INDEX('LFA Expenditure_7B imp-exp'!A$52:A$56,MATCH('LFA Expenditure_7B'!B233,'LFA Expenditure_7B imp-exp'!N$52:N$56,0)),\"\")","v":""},{"$f":"IFERROR(INDEX('LFA Expenditure_7B imp-exp'!B$52:B$56,MATCH('LFA Expenditure_7B'!B233,'LFA Expenditure_7B imp-exp'!N$52:N$56,0)),\"\")","v":""},{"$f":"IFERROR(INDEX('LFA Expenditure_7B imp-exp'!C$52:C$56,MATCH('LFA Expenditure_7B'!B233,'LFA Expenditure_7B imp-exp'!N$52:N$56,0)),\"\")","v":""},{"$f":"'PR Expenditure_7A'!F234","v":0},null,0,{"$error":"#VALUE!"},null,null,{"$f":"IFERROR(INDEX('LFA Expenditure_7B imp-exp'!J$52:J$56,MATCH('LFA Expenditure_7B'!B233,'LFA Expenditure_7B imp-exp'!N$52:N$56,0)),\"\")","v":""},null,0,{"$error":"#VALUE!"}]
["Don't Show","IP11",{"$f":"IFERROR(INDEX('LFA Expenditure_7B imp-exp'!A$52:A$56,MATCH('LFA Expenditure_7B'!B234,'LFA Expenditure_7B imp-exp'!N$52:N$56,0)),\"\")","v":""},{"$f":"IFERROR(INDEX('LFA Expenditure_7B imp-exp'!B$52:B$56,MATCH('LFA Expenditure_7B'!B234,'LFA Expenditure_7B imp-exp'!N$52:N$56,0)),\"\")","v":""},{"$f":"IFERROR(INDEX('LFA Expenditure_7B imp-exp'!C$52:C$56,MATCH('LFA Expenditure_7B'!B234,'LFA Expenditure_7B imp-exp'!N$52:N$56,0)),\"\")","v":""},{"$f":"'PR Expenditure_7A'!F235","v":0},null,0,{"$error":"#VALUE!"},null,null,{"$f":"IFERROR(INDEX('LFA Expenditure_7B imp-exp'!J$52:J$56,MATCH('LFA Expenditure_7B'!B234,'LFA Expenditure_7B imp-exp'!N$52:N$56,0)),\"\")","v":""},null,0,{"$error":"#VALUE!"}]
["Don't Show","IP12",{"$f":"IFERROR(INDEX('LFA Expenditure_7B imp-exp'!A$52:A$56,MATCH('LFA Expenditure_7B'!B235,'LFA Expenditure_7B imp-exp'!N$52:N$56,0)),\"\")","v":""},{"$f":"IFERROR(INDEX('LFA Expenditure_7B imp-exp'!B$52:B$56,MATCH('LFA Expenditure_7B'!B235,'LFA Expenditure_7B imp-exp'!N$52:N$56,0)),\"\")","v":""},{"$f":"IFERROR(INDEX('LFA Expenditure_7B imp-exp'!C$52:C$56,MATCH('LFA Expenditure_7B'!B235,'LFA Expenditure_7B imp-exp'!N$52:N$56,0)),\"\")","v":""},{"$f":"'PR Expenditure_7A'!F236","v":0},null,0,{"$error":"#VALUE!"},null,null,{"$f":"IFERROR(INDEX('LFA Expenditure_7B imp-exp'!J$52:J$56,MATCH('LFA Expenditure_7B'!B235,'LFA Expenditure_7B imp-exp'!N$52:N$56,0)),\"\")","v":""},null,0,{"$error":"#VALUE!"}]
["Don't Show","IP13",{"$f":"IFERROR(INDEX('LFA Expenditure_7B imp-exp'!A$52:A$56,MATCH('LFA Expenditure_7B'!B236,'LFA Expenditure_7B imp-exp'!N$52:N$56,0)),\"\")","v":""},{"$f":"IFERROR(INDEX('LFA Expenditure_7B imp-exp'!B$52:B$56,MATCH('LFA Expenditure_7B'!B236,'LFA Expenditure_7B imp-exp'!N$52:N$56,0)),\"\")","v":""},{"$f":"IFERROR(INDEX('LFA Expenditure_7B imp-exp'!C$52:C$56,MATCH('LFA Expenditure_7B'!B236,'LFA Expenditure_7B imp-exp'!N$52:N$56,0)),\"\")","v":""},{"$f":"'PR Expenditure_7A'!F237","v":0},null,0,{"$error":"#VALUE!"},null,null,{"$f":"IFERROR(INDEX('LFA Expenditure_7B imp-exp'!J$52:J$56,MATCH('LFA Expenditure_7B'!B236,'LFA Expenditure_7B imp-exp'!N$52:N$56,0)),\"\")","v":""},null,0,{"$error":"#VALUE!"}]
["Don't Show","IP14",{"$f":"IFERROR(INDEX('LFA Expenditure_7B imp-exp'!A$52:A$56,MATCH('LFA Expenditure_7B'!B237,'LFA Expenditure_7B imp-exp'!N$52:N$56,0)),\"\")","v":""},{"$f":"IFERROR(INDEX('LFA Expenditure_7B imp-exp'!B$52:B$56,MATCH('LFA Expenditure_7B'!B237,'LFA Expenditure_7B imp-exp'!N$52:N$56,0)),\"\")","v":""},{"$f":"IFERROR(INDEX('LFA Expenditure_7B imp-exp'!C$52:C$56,MATCH('LFA Expenditure_7B'!B237,'LFA Expenditure_7B imp-exp'!N$52:N$56,0)),\"\")","v":""},{"$f":"'PR Expenditure_7A'!F238","v":0},null,0,{"$error":"#VALUE!"},null,null,{"$f":"IFERROR(INDEX('LFA Expenditure_7B imp-exp'!J$52:J$56,MATCH('LFA Expenditure_7B'!B237,'LFA Expenditure_7B imp-exp'!N$52:N$56,0)),\"\")","v":""},null,0,{"$error":"#VALUE!"}]
["Don't Show","IP15",{"$f":"IFERROR(INDEX('LFA Expenditure_7B imp-exp'!A$52:A$56,MATCH('LFA Expenditure_7B'!B238,'LFA Expenditure_7B imp-exp'!N$52:N$56,0)),\"\")","v":""},{"$f":"IFERROR(INDEX('LFA Expenditure_7B imp-exp'!B$52:B$56,MATCH('LFA Expenditure_7B'!B238,'LFA Expenditure_7B imp-exp'!N$52:N$56,0)),\"\")","v":""},{"$f":"IFERROR(INDEX('LFA Expenditure_7B imp-exp'!C$52:C$56,MATCH('LFA Expenditure_7B'!B238,'LFA Expenditure_7B imp-exp'!N$52:N$56,0)),\"\")","v":""},{"$f":"'PR Expenditure_7A'!F239","v":0},null,0,{"$error":"#VALUE!"},null,null,{"$f":"IFERROR(INDEX('LFA Expenditure_7B imp-exp'!J$52:J$56,MATCH('LFA Expenditure_7B'!B238,'LFA Expenditure_7B imp-exp'!N$52:N$56,0)),\"\")","v":""},null,0,{"$error":"#VALUE!"}]
["Don't Show","IP16",{"$f":"IFERROR(INDEX('LFA Expenditure_7B imp-exp'!A$52:A$56,MATCH('LFA Expenditure_7B'!B239,'LFA Expenditure_7B imp-exp'!N$52:N$56,0)),\"\")","v":""},{"$f":"IFERROR(INDEX('LFA Expenditure_7B imp-exp'!B$52:B$56,MATCH('LFA Expenditure_7B'!B239,'LFA Expenditure_7B imp-exp'!N$52:N$56,0)),\"\")","v":""},{"$f":"IFERROR(INDEX('LFA Expenditure_7B imp-exp'!C$52:C$56,MATCH('LFA Expenditure_7B'!B239,'LFA Expenditure_7B imp-exp'!N$52:N$56,0)),\"\")","v":""},{"$f":"'PR Expenditure_7A'!F240","v":0},null,0,{"$error":"#VALUE!"},null,null,{"$f":"IFERROR(INDEX('LFA Expenditure_7B imp-exp'!J$52:J$56,MATCH('LFA Expenditure_7B'!B239,'LFA Expenditure_7B imp-exp'!N$52:N$56,0)),\"\")","v":""},null,0,{"$error":"#VALUE!"}]
["Don't Show","IP17",{"$f":"IFERROR(INDEX('LFA Expenditure_7B imp-exp'!A$52:A$56,MATCH('LFA Expenditure_7B'!B240,'LFA Expenditure_7B imp-exp'!N$52:N$56,0)),\"\")","v":""},{"$f":"IFERROR(INDEX('LFA Expenditure_7B imp-exp'!B$52:B$56,MATCH('LFA Expenditure_7B'!B240,'LFA Expenditure_7B imp-exp'!N$52:N$56,0)),\"\")","v":""},{"$f":"IFERROR(INDEX('LFA Expenditure_7B imp-exp'!C$52:C$56,MATCH('LFA Expenditure_7B'!B240,'LFA Expenditure_7B imp-exp'!N$52:N$56,0)),\"\")","v":""},{"$f":"'PR Expenditure_7A'!F241","v":0},null,0,{"$error":"#VALUE!"},null,null,{"$f":"IFERROR(INDEX('LFA Expenditure_7B imp-exp'!J$52:J$56,MATCH('LFA Expenditure_7B'!B240,'LFA Expenditure_7B imp-exp'!N$52:N$56,0)),\"\")","v":""},null,0,{"$error":"#VALUE!"}]
["Don't Show","IP18",{"$f":"IFERROR(INDEX('LFA Expenditure_7B imp-exp'!A$52:A$56,MATCH('LFA Expenditure_7B'!B241,'LFA Expenditure_7B imp-exp'!N$52:N$56,0)),\"\")","v":""},{"$f":"IFERROR(INDEX('LFA Expenditure_7B imp-exp'!B$52:B$56,MATCH('LFA Expenditure_7B'!B241,'LFA Expenditure_7B imp-exp'!N$52:N$56,0)),\"\")","v":""},{"$f":"IFERROR(INDEX('LFA Expenditure_7B imp-exp'!C$52:C$56,MATCH('LFA Expenditure_7B'!B241,'LFA Expenditure_7B imp-exp'!N$52:N$56,0)),\"\")","v":""},{"$f":"'PR Expenditure_7A'!F242","v":0},null,0,{"$error":"#VALUE!"},null,null,{"$f":"IFERROR(INDEX('LFA Expenditure_7B imp-exp'!J$52:J$56,MATCH('LFA Expenditure_7B'!B241,'LFA Expenditure_7B imp-exp'!N$52:N$56,0)),\"\")","v":""},null,0,{"$error":"#VALUE!"}]
["Don't Show","IP19",{"$f":"IFERROR(INDEX('LFA Expenditure_7B imp-exp'!A$52:A$56,MATCH('LFA Expenditure_7B'!B242,'LFA Expenditure_7B imp-exp'!N$52:N$56,0)),\"\")","v":""},{"$f":"IFERROR(INDEX('LFA Expenditure_7B imp-exp'!B$52:B$56,MATCH('LFA Expenditure_7B'!B242,'LFA Expenditure_7B imp-exp'!N$52:N$56,0)),\"\")","v":""},{"$f":"IFERROR(INDEX('LFA Expenditure_7B imp-exp'!C$52:C$56,MATCH('LFA Expenditure_7B'!B242,'LFA Expenditure_7B imp-exp'!N$52:N$56,0)),\"\")","v":""},{"$f":"'PR Expenditure_7A'!F243","v":0},null,0,{"$error":"#VALUE!"},null,null,{"$f":"IFERROR(INDEX('LFA Expenditure_7B imp-exp'!J$52:J$56,MATCH('LFA Expenditure_7B'!B242,'LFA Expenditure_7B imp-exp'!N$52:N$56,0)),\"\")","v":""},null,0,{"$error":"#VALUE!"}]
["Don't Show","IP20",{"$f":"IFERROR(INDEX('LFA Expenditure_7B imp-exp'!A$52:A$56,MATCH('LFA Expenditure_7B'!B243,'LFA Expenditure_7B imp-exp'!N$52:N$56,0)),\"\")","v":""},{"$f":"IFERROR(INDEX('LFA Expenditure_7B imp-exp'!B$52:B$56,MATCH('LFA Expenditure_7B'!B243,'LFA Expenditure_7B imp-exp'!N$52:N$56,0)),\"\")","v":""},{"$f":"IFERROR(INDEX('LFA Expenditure_7B imp-exp'!C$52:C$56,MATCH('LFA Expenditure_7B'!B243,'LFA Expenditure_7B imp-exp'!N$52:N$56,0)),\"\")","v":""},{"$f":"'PR Expenditure_7A'!F244","v":0},null,0,{"$error":"#VALUE!"},null,null,{"$f":"IFERROR(INDEX('LFA Expenditure_7B imp-exp'!J$52:J$56,MATCH('LFA Expenditure_7B'!B243,'LFA Expenditure_7B imp-exp'!N$52:N$56,0)),\"\")","v":""},null,0,{"$error":"#VALUE!"}]
["Don't Show","IP21",{"$f":"IFERROR(INDEX('LFA Expenditure_7B imp-exp'!A$52:A$56,MATCH('LFA Expenditure_7B'!B244,'LFA Expenditure_7B imp-exp'!N$52:N$56,0)),\"\")","v":""},{"$f":"IFERROR(INDEX('LFA Expenditure_7B imp-exp'!B$52:B$56,MATCH('LFA Expenditure_7B'!B244,'LFA Expenditure_7B imp-exp'!N$52:N$56,0)),\"\")","v":""},{"$f":"IFERROR(INDEX('LFA Expenditure_7B imp-exp'!C$52:C$56,MATCH('LFA Expenditure_7B'!B244,'LFA Expenditure_7B imp-exp'!N$52:N$56,0)),\"\")","v":""},{"$f":"'PR Expenditure_7A'!F245","v":0},null,0,{"$error":"#VALUE!"},null,null,{"$f":"IFERROR(INDEX('LFA Expenditure_7B imp-exp'!J$52:J$56,MATCH('LFA Expenditure_7B'!B244,'LFA Expenditure_7B imp-exp'!N$52:N$56,0)),\"\")","v":""},null,0,{"$error":"#VALUE!"}]
["Don't Show","IP22",{"$f":"IFERROR(INDEX('LFA Expenditure_7B imp-exp'!A$52:A$56,MATCH('LFA Expenditure_7B'!B245,'LFA Expenditure_7B imp-exp'!N$52:N$56,0)),\"\")","v":""},{"$f":"IFERROR(INDEX('LFA Expenditure_7B imp-exp'!B$52:B$56,MATCH('LFA Expenditure_7B'!B245,'LFA Expenditure_7B imp-exp'!N$52:N$56,0)),\"\")","v":""},{"$f":"IFERROR(INDEX('LFA Expenditure_7B imp-exp'!C$52:C$56,MATCH('LFA Expenditure_7B'!B245,'LFA Expenditure_7B imp-exp'!N$52:N$56,0)),\"\")","v":""},{"$f":"'PR Expenditure_7A'!F246","v":0},null,0,{"$error":"#VALUE!"},null,null,{"$f":"IFERROR(INDEX('LFA Expenditure_7B imp-exp'!J$52:J$56,MATCH('LFA Expenditure_7B'!B245,'LFA Expenditure_7B imp-exp'!N$52:N$56,0)),\"\")","v":""},null,0,{"$error":"#VALUE!"}]
["Don't Show","IP23",{"$f":"IFERROR(INDEX('LFA Expenditure_7B imp-exp'!A$52:A$56,MATCH('LFA Expenditure_7B'!B246,'LFA Expenditure_7B imp-exp'!N$52:N$56,0)),\"\")","v":""},{"$f":"IFERROR(INDEX('LFA Expenditure_7B imp-exp'!B$52:B$56,MATCH('LFA Expenditure_7B'!B246,'LFA Expenditure_7B imp-exp'!N$52:N$56,0)),\"\")","v":""},{"$f":"IFERROR(INDEX('LFA Expenditure_7B imp-exp'!C$52:C$56,MATCH('LFA Expenditure_7B'!B246,'LFA Expenditure_7B imp-exp'!N$52:N$56,0)),\"\")","v":""},{"$f":"'PR Expenditure_7A'!F247","v":0},null,0,{"$error":"#VALUE!"},null,null,{"$f":"IFERROR(INDEX('LFA Expenditure_7B imp-exp'!J$52:J$56,MATCH('LFA Expenditure_7B'!B246,'LFA Expenditure_7B imp-exp'!N$52:N$56,0)),\"\")","v":""},null,0,{"$error":"#VALUE!"}]
["Don't Show","IP24",{"$f":"IFERROR(INDEX('LFA Expenditure_7B imp-exp'!A$52:A$56,MATCH('LFA Expenditure_7B'!B247,'LFA Expenditure_7B imp-exp'!N$52:N$56,0)),\"\")","v":""},{"$f":"IFERROR(INDEX('LFA Expenditure_7B imp-exp'!B$52:B$56,MATCH('LFA Expenditure_7B'!B247,'LFA Expenditure_7B imp-exp'!N$52:N$56,0)),\"\")","v":""},{"$f":"IFERROR(INDEX('LFA Expenditure_7B imp-exp'!C$52:C$56,MATCH('LFA Expenditure_7B'!B247,'LFA Expenditure_7B imp-exp'!N$52:N$56,0)),\"\")","v":""},{"$f":"'PR Expenditure_7A'!F248","v":0},null,0,{"$error":"#VALUE!"},null,null,{"$f":"IFERROR(INDEX('LFA Expenditure_7B imp-exp'!J$52:J$56,MATCH('LFA Expenditure_7B'!B247,'LFA Expenditure_7B imp-exp'!N$52:N$56,0)),\"\")","v":""},null,0,{"$error":"#VALUE!"}]
["Don't Show","IP25",{"$f":"IFERROR(INDEX('LFA Expenditure_7B imp-exp'!A$52:A$56,MATCH('LFA Expenditure_7B'!B248,'LFA Expenditure_7B imp-exp'!N$52:N$56,0)),\"\")","v":""},{"$f":"IFERROR(INDEX('LFA Expenditure_7B imp-exp'!B$52:B$56,MATCH('LFA Expenditure_7B'!B248,'LFA Expenditure_7B imp-exp'!N$52:N$56,0)),\"\")","v":""},{"$f":"IFERROR(INDEX('LFA Expenditure_7B imp-exp'!C$52:C$56,MATCH('LFA Expenditure_7B'!B248,'LFA Expenditure_7B imp-exp'!N$52:N$56,0)),\"\")","v":""},{"$f":"'PR Expenditure_7A'!F249","v":0},null,0,{"$error":"#VALUE!"},null,null,{"$f":"IFERROR(INDEX('LFA Expenditure_7B imp-exp'!J$52:J$56,MATCH('LFA Expenditure_7B'!B248,'LFA Expenditure_7B imp-exp'!N$52:N$56,0)),\"\")","v":""},null,0,{"$error":"#VALUE!"}]
["Don't Show","IP26",{"$f":"IFERROR(INDEX('LFA Expenditure_7B imp-exp'!A$52:A$56,MATCH('LFA Expenditure_7B'!B249,'LFA Expenditure_7B imp-exp'!N$52:N$56,0)),\"\")","v":""},{"$f":"IFERROR(INDEX('LFA Expenditure_7B imp-exp'!B$52:B$56,MATCH('LFA Expenditure_7B'!B249,'LFA Expenditure_7B imp-exp'!N$52:N$56,0)),\"\")","v":""},{"$f":"IFERROR(INDEX('LFA Expenditure_7B imp-exp'!C$52:C$56,MATCH('LFA Expenditure_7B'!B249,'LFA Expenditure_7B imp-exp'!N$52:N$56,0)),\"\")","v":""},{"$f":"'PR Expenditure_7A'!F250","v":0},null,0,{"$error":"#VALUE!"},null,null,{"$f":"IFERROR(INDEX('LFA Expenditure_7B imp-exp'!J$52:J$56,MATCH('LFA Expenditure_7B'!B249,'LFA Expenditure_7B imp-exp'!N$52:N$56,0)),\"\")","v":""},null,0,{"$error":"#VALUE!"}]
["Don't Show","IP27",{"$f":"IFERROR(INDEX('LFA Expenditure_7B imp-exp'!A$52:A$56,MATCH('LFA Expenditure_7B'!B250,'LFA Expenditure_7B imp-exp'!N$52:N$56,0)),\"\")","v":""},{"$f":"IFERROR(INDEX('LFA Expenditure_7B imp-exp'!B$52:B$56,MATCH('LFA Expenditure_7B'!B250,'LFA Expenditure_7B imp-exp'!N$52:N$56,0)),\"\")","v":""},{"$f":"IFERROR(INDEX('LFA Expenditure_7B imp-exp'!C$52:C$56,MATCH('LFA Expenditure_7B'!B250,'LFA Expenditure_7B imp-exp'!N$52:N$56,0)),\"\")","v":""},{"$f":"'PR Expenditure_7A'!F251","v":0},null,0,{"$error":"#VALUE!"},null,null,{"$f":"IFERROR(INDEX('LFA Expenditure_7B imp-exp'!J$52:J$56,MATCH('LFA Expenditure_7B'!B250,'LFA Expenditure_7B imp-exp'!N$52:N$56,0)),\"\")","v":""},null,0,{"$error":"#VALUE!"}]
["Don't Show","IP28",{"$f":"IFERROR(INDEX('LFA Expenditure_7B imp-exp'!A$52:A$56,MATCH('LFA Expenditure_7B'!B251,'LFA Expenditure_7B imp-exp'!N$52:N$56,0)),\"\")","v":""},{"$f":"IFERROR(INDEX('LFA Expenditure_7B imp-exp'!B$52:B$56,MATCH('LFA Expenditure_7B'!B251,'LFA Expenditure_7B imp-exp'!N$52:N$56,0)),\"\")","v":""},{"$f":"IFERROR(INDEX('LFA Expenditure_7B imp-exp'!C$52:C$56,MATCH('LFA Expenditure_7B'!B251,'LFA Expenditure_7B imp-exp'!N$52:N$56,0)),\"\")","v":""},{"$f":"'PR Expenditure_7A'!F252","v":0},null,0,{"$error":"#VALUE!"},null,null,{"$f":"IFERROR(INDEX('LFA Expenditure_7B imp-exp'!J$52:J$56,MATCH('LFA Expenditure_7B'!B251,'LFA Expenditure_7B imp-exp'!N$52:N$56,0)),\"\")","v":""},null,0,{"$error":"#VALUE!"}]
["Don't Show","IP29",{"$f":"IFERROR(INDEX('LFA Expenditure_7B imp-exp'!A$52:A$56,MATCH('LFA Expenditure_7B'!B252,'LFA Expenditure_7B imp-exp'!N$52:N$56,0)),\"\")","v":""},{"$f":"IFERROR(INDEX('LFA Expenditure_7B imp-exp'!B$52:B$56,MATCH('LFA Expenditure_7B'!B252,'LFA Expenditure_7B imp-exp'!N$52:N$56,0)),\"\")","v":""},{"$f":"IFERROR(INDEX('LFA Expenditure_7B imp-exp'!C$52:C$56,MATCH('LFA Expenditure_7B'!B252,'LFA Expenditure_7B imp-exp'!N$52:N$56,0)),\"\")","v":""},{"$f":"'PR Expenditure_7A'!F253","v":0},null,0,{"$error":"#VALUE!"},null,null,{"$f":"IFERROR(INDEX('LFA Expenditure_7B imp-exp'!J$52:J$56,MATCH('LFA Expenditure_7B'!B252,'LFA Expenditure_7B imp-exp'!N$52:N$56,0)),\"\")","v":""},null,0,{"$error":"#VALUE!"}]
["Don't Show","IP30",{"$f":"IFERROR(INDEX('LFA Expenditure_7B imp-exp'!A$52:A$56,MATCH('LFA Expenditure_7B'!B253,'LFA Expenditure_7B imp-exp'!N$52:N$56,0)),\"\")","v":""},{"$f":"IFERROR(INDEX('LFA Expenditure_7B imp-exp'!B$52:B$56,MATCH('LFA Expenditure_7B'!B253,'LFA Expenditure_7B imp-exp'!N$52:N$56,0)),\"\")","v":""},{"$f":"IFERROR(INDEX('LFA Expenditure_7B imp-exp'!C$52:C$56,MATCH('LFA Expenditure_7B'!B253,'LFA Expenditure_7B imp-exp'!N$52:N$56,0)),\"\")","v":""},{"$f":"'PR Expenditure_7A'!F254","v":0},null,0,{"$error":"#VALUE!"},null,null,{"$f":"IFERROR(INDEX('LFA Expenditure_7B imp-exp'!J$52:J$56,MATCH('LFA Expenditure_7B'!B253,'LFA Expenditure_7B imp-exp'!N$52:N$56,0)),\"\")","v":""},null,0,{"$error":"#VALUE!"}]
["Don't Show","IP31",{"$f":"IFERROR(INDEX('LFA Expenditure_7B imp-exp'!A$52:A$56,MATCH('LFA Expenditure_7B'!B254,'LFA Expenditure_7B imp-exp'!N$52:N$56,0)),\"\")","v":""},{"$f":"IFERROR(INDEX('LFA Expenditure_7B imp-exp'!B$52:B$56,MATCH('LFA Expenditure_7B'!B254,'LFA Expenditure_7B imp-exp'!N$52:N$56,0)),\"\")","v":""},{"$f":"IFERROR(INDEX('LFA Expenditure_7B imp-exp'!C$52:C$56,MATCH('LFA Expenditure_7B'!B254,'LFA Expenditure_7B imp-exp'!N$52:N$56,0)),\"\")","v":""},{"$f":"'PR Expenditure_7A'!F255","v":0},null,0,{"$error":"#VALUE!"},null,null,{"$f":"IFERROR(INDEX('LFA Expenditure_7B imp-exp'!J$52:J$56,MATCH('LFA Expenditure_7B'!B254,'LFA Expenditure_7B imp-exp'!N$52:N$56,0)),\"\")","v":""},null,0,{"$error":"#VALUE!"}]
["Don't Show","IP32",{"$f":"IFERROR(INDEX('LFA Expenditure_7B imp-exp'!A$52:A$56,MATCH('LFA Expenditure_7B'!B255,'LFA Expenditure_7B imp-exp'!N$52:N$56,0)),\"\")","v":""},{"$f":"IFERROR(INDEX('LFA Expenditure_7B imp-exp'!B$52:B$56,MATCH('LFA Expenditure_7B'!B255,'LFA Expenditure_7B imp-exp'!N$52:N$56,0)),\"\")","v":""},{"$f":"IFERROR(INDEX('LFA Expenditure_7B imp-exp'!C$52:C$56,MATCH('LFA Expenditure_7B'!B255,'LFA Expenditure_7B imp-exp'!N$52:N$56,0)),\"\")","v":""},{"$f":"'PR Expenditure_7A'!F256","v":0},null,0,{"$error":"#VALUE!"},null,null,{"$f":"IFERROR(INDEX('LFA Expenditure_7B imp-exp'!J$52:J$56,MATCH('LFA Expenditure_7B'!B255,'LFA Expenditure_7B imp-exp'!N$52:N$56,0)),\"\")","v":""},null,0,{"$error":"#VALUE!"}]
["Don't Show","IP33",{"$f":"IFERROR(INDEX('LFA Expenditure_7B imp-exp'!A$52:A$56,MATCH('LFA Expenditure_7B'!B256,'LFA Expenditure_7B imp-exp'!N$52:N$56,0)),\"\")","v":""},{"$f":"IFERROR(INDEX('LFA Expenditure_7B imp-exp'!B$52:B$56,MATCH('LFA Expenditure_7B'!B256,'LFA Expenditure_7B imp-exp'!N$52:N$56,0)),\"\")","v":""},{"$f":"IFERROR(INDEX('LFA Expenditure_7B imp-exp'!C$52:C$56,MATCH('LFA Expenditure_7B'!B256,'LFA Expenditure_7B imp-exp'!N$52:N$56,0)),\"\")","v":""},{"$f":"'PR Expenditure_7A'!F257","v":0},null,0,{"$error":"#VALUE!"},null,null,{"$f":"IFERROR(INDEX('LFA Expenditure_7B imp-exp'!J$52:J$56,MATCH('LFA Expenditure_7B'!B256,'LFA Expenditure_7B imp-exp'!N$52:N$56,0)),\"\")","v":""},null,0,{"$error":"#VALUE!"}]
["Don't Show","IP34",{"$f":"IFERROR(INDEX('LFA Expenditure_7B imp-exp'!A$52:A$56,MATCH('LFA Expenditure_7B'!B257,'LFA Expenditure_7B imp-exp'!N$52:N$56,0)),\"\")","v":""},{"$f":"IFERROR(INDEX('LFA Expenditure_7B imp-exp'!B$52:B$56,MATCH('LFA Expenditure_7B'!B257,'LFA Expenditure_7B imp-exp'!N$52:N$56,0)),\"\")","v":""},{"$f":"IFERROR(INDEX('LFA Expenditure_7B imp-exp'!C$52:C$56,MATCH('LFA Expenditure_7B'!B257,'LFA Expenditure_7B imp-exp'!N$52:N$56,0)),\"\")","v":""},{"$f":"'PR Expenditure_7A'!F258","v":0},null,0,{"$error":"#VALUE!"},null,null,{"$f":"IFERROR(INDEX('LFA Expenditure_7B imp-exp'!J$52:J$56,MATCH('LFA Expenditure_7B'!B257,'LFA Expenditure_7B imp-exp'!N$52:N$56,0)),\"\")","v":""},null,0,{"$error":"#VALUE!"}]
["Don't Show","IP35",{"$f":"IFERROR(INDEX('LFA Expenditure_7B imp-exp'!A$52:A$56,MATCH('LFA Expenditure_7B'!B258,'LFA Expenditure_7B imp-exp'!N$52:N$56,0)),\"\")","v":""},{"$f":"IFERROR(INDEX('LFA Expenditure_7B imp-exp'!B$52:B$56,MATCH('LFA Expenditure_7B'!B258,'LFA Expenditure_7B imp-exp'!N$52:N$56,0)),\"\")","v":""},{"$f":"IFERROR(INDEX('LFA Expenditure_7B imp-exp'!C$52:C$56,MATCH('LFA Expenditure_7B'!B258,'LFA Expenditure_7B imp-exp'!N$52:N$56,0)),\"\")","v":""},{"$f":"'PR Expenditure_7A'!F259","v":0},null,0,{"$error":"#VALUE!"},null,null,{"$f":"IFERROR(INDEX('LFA Expenditure_7B imp-exp'!J$52:J$56,MATCH('LFA Expenditure_7B'!B258,'LFA Expenditure_7B imp-exp'!N$52:N$56,0)),\"\")","v":""},null,0,{"$error":"#VALUE!"}]
["Don't Show","IP36",{"$f":"IFERROR(INDEX('LFA Expenditure_7B imp-exp'!A$52:A$56,MATCH('LFA Expenditure_7B'!B259,'LFA Expenditure_7B imp-exp'!N$52:N$56,0)),\"\")","v":""},{"$f":"IFERROR(INDEX('LFA Expenditure_7B imp-exp'!B$52:B$56,MATCH('LFA Expenditure_7B'!B259,'LFA Expenditure_7B imp-exp'!N$52:N$56,0)),\"\")","v":""},{"$f":"IFERROR(INDEX('LFA Expenditure_7B imp-exp'!C$52:C$56,MATCH('LFA Expenditure_7B'!B259,'LFA Expenditure_7B imp-exp'!N$52:N$56,0)),\"\")","v":""},{"$f":"'PR Expenditure_7A'!F260","v":0},null,0,{"$error":"#VALUE!"},null,null,{"$f":"IFERROR(INDEX('LFA Expenditure_7B imp-exp'!J$52:J$56,MATCH('LFA Expenditure_7B'!B259,'LFA Expenditure_7B imp-exp'!N$52:N$56,0)),\"\")","v":""},null,0,{"$error":"#VALUE!"}]
["Don't Show","IP37",{"$f":"IFERROR(INDEX('LFA Expenditure_7B imp-exp'!A$52:A$56,MATCH('LFA Expenditure_7B'!B260,'LFA Expenditure_7B imp-exp'!N$52:N$56,0)),\"\")","v":""},{"$f":"IFERROR(INDEX('LFA Expenditure_7B imp-exp'!B$52:B$56,MATCH('LFA Expenditure_7B'!B260,'LFA Expenditure_7B imp-exp'!N$52:N$56,0)),\"\")","v":""},{"$f":"IFERROR(INDEX('LFA Expenditure_7B imp-exp'!C$52:C$56,MATCH('LFA Expenditure_7B'!B260,'LFA Expenditure_7B imp-exp'!N$52:N$56,0)),\"\")","v":""},{"$f":"'PR Expenditure_7A'!F261","v":0},null,0,{"$error":"#VALUE!"},null,null,{"$f":"IFERROR(INDEX('LFA Expenditure_7B imp-exp'!J$52:J$56,MATCH('LFA Expenditure_7B'!B260,'LFA Expenditure_7B imp-exp'!N$52:N$56,0)),\"\")","v":""},null,0,{"$error":"#VALUE!"}]
["Don't Show","IP38",{"$f":"IFERROR(INDEX('LFA Expenditure_7B imp-exp'!A$52:A$56,MATCH('LFA Expenditure_7B'!B261,'LFA Expenditure_7B imp-exp'!N$52:N$56,0)),\"\")","v":""},{"$f":"IFERROR(INDEX('LFA Expenditure_7B imp-exp'!B$52:B$56,MATCH('LFA Expenditure_7B'!B261,'LFA Expenditure_7B imp-exp'!N$52:N$56,0)),\"\")","v":""},{"$f":"IFERROR(INDEX('LFA Expenditure_7B imp-exp'!C$52:C$56,MATCH('LFA Expenditure_7B'!B261,'LFA Expenditure_7B imp-exp'!N$52:N$56,0)),\"\")","v":""},{"$f":"'PR Expenditure_7A'!F262","v":0},null,0,{"$error":"#VALUE!"},null,null,{"$f":"IFERROR(INDEX('LFA Expenditure_7B imp-exp'!J$52:J$56,MATCH('LFA Expenditure_7B'!B261,'LFA Expenditure_7B imp-exp'!N$52:N$56,0)),\"\")","v":""},null,0,{"$error":"#VALUE!"}]
["Don't Show","IP39",{"$f":"IFERROR(INDEX('LFA Expenditure_7B imp-exp'!A$52:A$56,MATCH('LFA Expenditure_7B'!B262,'LFA Expenditure_7B imp-exp'!N$52:N$56,0)),\"\")","v":""},{"$f":"IFERROR(INDEX('LFA Expenditure_7B imp-exp'!B$52:B$56,MATCH('LFA Expenditure_7B'!B262,'LFA Expenditure_7B imp-exp'!N$52:N$56,0)),\"\")","v":""},{"$f":"IFERROR(INDEX('LFA Expenditure_7B imp-exp'!C$52:C$56,MATCH('LFA Expenditure_7B'!B262,'LFA Expenditure_7B imp-exp'!N$52:N$56,0)),\"\")","v":""},{"$f":"'PR Expenditure_7A'!F263","v":0},null,0,{"$error":"#VALUE!"},null,null,{"$f":"IFERROR(INDEX('LFA Expenditure_7B imp-exp'!J$52:J$56,MATCH('LFA Expenditure_7B'!B262,'LFA Expenditure_7B imp-exp'!N$52:N$56,0)),\"\")","v":""},null,0,{"$error":"#VALUE!"}]
["Don't Show","IP40",{"$f":"IFERROR(INDEX('LFA Expenditure_7B imp-exp'!A$52:A$56,MATCH('LFA Expenditure_7B'!B263,'LFA Expenditure_7B imp-exp'!N$52:N$56,0)),\"\")","v":""},{"$f":"IFERROR(INDEX('LFA Expenditure_7B imp-exp'!B$52:B$56,MATCH('LFA Expenditure_7B'!B263,'LFA Expenditure_7B imp-exp'!N$52:N$56,0)),\"\")","v":""},{"$f":"IFERROR(INDEX('LFA Expenditure_7B imp-exp'!C$52:C$56,MATCH('LFA Expenditure_7B'!B263,'LFA Expenditure_7B imp-exp'!N$52:N$56,0)),\"\")","v":""},{"$f":"'PR Expenditure_7A'!F264","v":0},null,0,{"$error":"#VALUE!"},null,null,{"$f":"IFERROR(INDEX('LFA Expenditure_7B imp-exp'!J$52:J$56,MATCH('LFA Expenditure_7B'!B263,'LFA Expenditure_7B imp-exp'!N$52:N$56,0)),\"\")","v":""},null,0,{"$error":"#VALUE!"}]
["Don't Show","IP41",{"$f":"IFERROR(INDEX('LFA Expenditure_7B imp-exp'!A$52:A$56,MATCH('LFA Expenditure_7B'!B264,'LFA Expenditure_7B imp-exp'!N$52:N$56,0)),\"\")","v":""},{"$f":"IFERROR(INDEX('LFA Expenditure_7B imp-exp'!B$52:B$56,MATCH('LFA Expenditure_7B'!B264,'LFA Expenditure_7B imp-exp'!N$52:N$56,0)),\"\")","v":""},{"$f":"IFERROR(INDEX('LFA Expenditure_7B imp-exp'!C$52:C$56,MATCH('LFA Expenditure_7B'!B264,'LFA Expenditure_7B imp-exp'!N$52:N$56,0)),\"\")","v":""},{"$f":"'PR Expenditure_7A'!F265","v":0},null,0,{"$error":"#VALUE!"},null,null,{"$f":"IFERROR(INDEX('LFA Expenditure_7B imp-exp'!J$52:J$56,MATCH('LFA Expenditure_7B'!B264,'LFA Expenditure_7B imp-exp'!N$52:N$56,0)),\"\")","v":""},null,0,{"$error":"#VALUE!"}]
["Don't Show","IP42",{"$f":"IFERROR(INDEX('LFA Expenditure_7B imp-exp'!A$52:A$56,MATCH('LFA Expenditure_7B'!B265,'LFA Expenditure_7B imp-exp'!N$52:N$56,0)),\"\")","v":""},{"$f":"IFERROR(INDEX('LFA Expenditure_7B imp-exp'!B$52:B$56,MATCH('LFA Expenditure_7B'!B265,'LFA Expenditure_7B imp-exp'!N$52:N$56,0)),\"\")","v":""},{"$f":"IFERROR(INDEX('LFA Expenditure_7B imp-exp'!C$52:C$56,MATCH('LFA Expenditure_7B'!B265,'LFA Expenditure_7B imp-exp'!N$52:N$56,0)),\"\")","v":""},{"$f":"'PR Expenditure_7A'!F266","v":0},null,0,{"$error":"#VALUE!"},null,null,{"$f":"IFERROR(INDEX('LFA Expenditure_7B imp-exp'!J$52:J$56,MATCH('LFA Expenditure_7B'!B265,'LFA Expenditure_7B imp-exp'!N$52:N$56,0)),\"\")","v":""},null,0,{"$error":"#VALUE!"}]
["Don't Show","IP43",{"$f":"IFERROR(INDEX('LFA Expenditure_7B imp-exp'!A$52:A$56,MATCH('LFA Expenditure_7B'!B266,'LFA Expenditure_7B imp-exp'!N$52:N$56,0)),\"\")","v":""},{"$f":"IFERROR(INDEX('LFA Expenditure_7B imp-exp'!B$52:B$56,MATCH('LFA Expenditure_7B'!B266,'LFA Expenditure_7B imp-exp'!N$52:N$56,0)),\"\")","v":""},{"$f":"IFERROR(INDEX('LFA Expenditure_7B imp-exp'!C$52:C$56,MATCH('LFA Expenditure_7B'!B266,'LFA Expenditure_7B imp-exp'!N$52:N$56,0)),\"\")","v":""},{"$f":"'PR Expenditure_7A'!F267","v":0},null,{"$f":"IFERROR((E266)-(F266+G266),0)","v":0},{"$f":"IF(AND((E266)=0,(F266+G266)=0),\"N/A\",IF(AND((E266)=0,(F266+G266)<>0),\"Not Budgeted\",(F266+G266)/(E266)))","v":{"$error":"#VALUE!"}},null,null,{"$f":"IFERROR(INDEX('LFA Expenditure_7B imp-exp'!J$52:J$56,MATCH('LFA Expenditure_7B'!B266,'LFA Expenditure_7B imp-exp'!N$52:N$56,0)),\"\")","v":""},null,0,{"$error":"#VALUE!"}]
["Don't Show","IP44",{"$f":"IFERROR(INDEX('LFA Expenditure_7B imp-exp'!A$52:A$56,MATCH('LFA Expenditure_7B'!B267,'LFA Expenditure_7B imp-exp'!N$52:N$56,0)),\"\")","v":""},{"$f":"IFERROR(INDEX('LFA Expenditure_7B imp-exp'!B$52:B$56,MATCH('LFA Expenditure_7B'!B267,'LFA Expenditure_7B imp-exp'!N$52:N$56,0)),\"\")","v":""},{"$f":"IFERROR(INDEX('LFA Expenditure_7B imp-exp'!C$52:C$56,MATCH('LFA Expenditure_7B'!B267,'LFA Expenditure_7B imp-exp'!N$52:N$56,0)),\"\")","v":""},{"$f":"'PR Expenditure_7A'!F268","v":0},null,0,{"$error":"#VALUE!"},null,null,{"$f":"IFERROR(INDEX('LFA Expenditure_7B imp-exp'!J$52:J$56,MATCH('LFA Expenditure_7B'!B267,'LFA Expenditure_7B imp-exp'!N$52:N$56,0)),\"\")","v":""},null,0,{"$error":"#VALUE!"}]
["Don't Show","IP45",{"$f":"IFERROR(INDEX('LFA Expenditure_7B imp-exp'!A$52:A$56,MATCH('LFA Expenditure_7B'!B268,'LFA Expenditure_7B imp-exp'!N$52:N$56,0)),\"\")","v":""},{"$f":"IFERROR(INDEX('LFA Expenditure_7B imp-exp'!B$52:B$56,MATCH('LFA Expenditure_7B'!B268,'LFA Expenditure_7B imp-exp'!N$52:N$56,0)),\"\")","v":""},{"$f":"IFERROR(INDEX('LFA Expenditure_7B imp-exp'!C$52:C$56,MATCH('LFA Expenditure_7B'!B268,'LFA Expenditure_7B imp-exp'!N$52:N$56,0)),\"\")","v":""},{"$f":"'PR Expenditure_7A'!F269","v":0},null,0,{"$error":"#VALUE!"},null,null,{"$f":"IFERROR(INDEX('LFA Expenditure_7B imp-exp'!J$52:J$56,MATCH('LFA Expenditure_7B'!B268,'LFA Expenditure_7B imp-exp'!N$52:N$56,0)),\"\")","v":""},null,0,{"$error":"#VALUE!"}]
["Don't Show","IP46",{"$f":"IFERROR(INDEX('LFA Expenditure_7B imp-exp'!A$52:A$56,MATCH('LFA Expenditure_7B'!B269,'LFA Expenditure_7B imp-exp'!N$52:N$56,0)),\"\")","v":""},{"$f":"IFERROR(INDEX('LFA Expenditure_7B imp-exp'!B$52:B$56,MATCH('LFA Expenditure_7B'!B269,'LFA Expenditure_7B imp-exp'!N$52:N$56,0)),\"\")","v":""},{"$f":"IFERROR(INDEX('LFA Expenditure_7B imp-exp'!C$52:C$56,MATCH('LFA Expenditure_7B'!B269,'LFA Expenditure_7B imp-exp'!N$52:N$56,0)),\"\")","v":""},{"$f":"'PR Expenditure_7A'!F270","v":0},null,{"$f":"IFERROR((E269)-(F269+G269),0)","v":0},{"$f":"IF(AND((E269)=0,(F269+G269)=0),\"N/A\",IF(AND((E269)=0,(F269+G269)<>0),\"Not Budgeted\",(F269+G269)/(E269)))","v":{"$error":"#VALUE!"}},null,null,{"$f":"IFERROR(INDEX('LFA Expenditure_7B imp-exp'!J$52:J$56,MATCH('LFA Expenditure_7B'!B269,'LFA Expenditure_7B imp-exp'!N$52:N$56,0)),\"\")","v":""},null,0,{"$error":"#VALUE!"}]
["Don't Show","IP47",{"$f":"IFERROR(INDEX('LFA Expenditure_7B imp-exp'!A$52:A$56,MATCH('LFA Expenditure_7B'!B270,'LFA Expenditure_7B imp-exp'!N$52:N$56,0)),\"\")","v":""},{"$f":"IFERROR(INDEX('LFA Expenditure_7B imp-exp'!B$52:B$56,MATCH('LFA Expenditure_7B'!B270,'LFA Expenditure_7B imp-exp'!N$52:N$56,0)),\"\")","v":""},{"$f":"IFERROR(INDEX('LFA Expenditure_7B imp-exp'!C$52:C$56,MATCH('LFA Expenditure_7B'!B270,'LFA Expenditure_7B imp-exp'!N$52:N$56,0)),\"\")","v":""},{"$f":"'PR Expenditure_7A'!F271","v":0},null,0,{"$error":"#VALUE!"},null,null,{"$f":"IFERROR(INDEX('LFA Expenditure_7B imp-exp'!J$52:J$56,MATCH('LFA Expenditure_7B'!B270,'LFA Expenditure_7B imp-exp'!N$52:N$56,0)),\"\")","v":""},null,0,{"$error":"#VALUE!"}]
["Don't Show","IP48",{"$f":"IFERROR(INDEX('LFA Expenditure_7B imp-exp'!A$52:A$56,MATCH('LFA Expenditure_7B'!B271,'LFA Expenditure_7B imp-exp'!N$52:N$56,0)),\"\")","v":""},{"$f":"IFERROR(INDEX('LFA Expenditure_7B imp-exp'!B$52:B$56,MATCH('LFA Expenditure_7B'!B271,'LFA Expenditure_7B imp-exp'!N$52:N$56,0)),\"\")","v":""},{"$f":"IFERROR(INDEX('LFA Expenditure_7B imp-exp'!C$52:C$56,MATCH('LFA Expenditure_7B'!B271,'LFA Expenditure_7B imp-exp'!N$52:N$56,0)),\"\")","v":""},{"$f":"'PR Expenditure_7A'!F272","v":0},null,0,{"$error":"#VALUE!"},null,null,{"$f":"IFERROR(INDEX('LFA Expenditure_7B imp-exp'!J$52:J$56,MATCH('LFA Expenditure_7B'!B271,'LFA Expenditure_7B imp-exp'!N$52:N$56,0)),\"\")","v":""},null,0,{"$error":"#VALUE!"}]
["Don't Show","IP49",{"$f":"IFERROR(INDEX('LFA Expenditure_7B imp-exp'!A$52:A$56,MATCH('LFA Expenditure_7B'!B272,'LFA Expenditure_7B imp-exp'!N$52:N$56,0)),\"\")","v":""},{"$f":"IFERROR(INDEX('LFA Expenditure_7B imp-exp'!B$52:B$56,MATCH('LFA Expenditure_7B'!B272,'LFA Expenditure_7B imp-exp'!N$52:N$56,0)),\"\")","v":""},{"$f":"IFERROR(INDEX('LFA Expenditure_7B imp-exp'!C$52:C$56,MATCH('LFA Expenditure_7B'!B272,'LFA Expenditure_7B imp-exp'!N$52:N$56,0)),\"\")","v":""},{"$f":"'PR Expenditure_7A'!F273","v":0},null,0,{"$error":"#VALUE!"},null,null,{"$f":"IFERROR(INDEX('LFA Expenditure_7B imp-exp'!J$52:J$56,MATCH('LFA Expenditure_7B'!B272,'LFA Expenditure_7B imp-exp'!N$52:N$56,0)),\"\")","v":""},null,0,{"$error":"#VALUE!"}]
["Don't Show","IP50",{"$f":"IFERROR(INDEX('LFA Expenditure_7B imp-exp'!A$52:A$56,MATCH('LFA Expenditure_7B'!B273,'LFA Expenditure_7B imp-exp'!N$52:N$56,0)),\"\")","v":""},{"$f":"IFERROR(INDEX('LFA Expenditure_7B imp-exp'!B$52:B$56,MATCH('LFA Expenditure_7B'!B273,'LFA Expenditure_7B imp-exp'!N$52:N$56,0)),\"\")","v":""},{"$f":"IFERROR(INDEX('LFA Expenditure_7B imp-exp'!C$52:C$56,MATCH('LFA Expenditure_7B'!B273,'LFA Expenditure_7B imp-exp'!N$52:N$56,0)),\"\")","v":""},{"$f":"'PR Expenditure_7A'!F274","v":0},null,0,{"$error":"#VALUE!"},null,null,{"$f":"IFERROR(INDEX('LFA Expenditure_7B imp-exp'!J$52:J$56,MATCH('LFA Expenditure_7B'!B273,'LFA Expenditure_7B imp-exp'!N$52:N$56,0)),\"\")","v":""},null,0,{"$error":"#VALUE!"}]
["Show",null,"Grand Total",null,{"$f":"ROUND(SUM(E224:E273),2)","v":4057896.79},{"$f":"ROUND(SUM(F224:F273),2)","v":714241.57},{"$f":"ROUND(SUM(G224:G273),2)","v":0},{"$f":"ROUND(SUM(H224:H273),2)","v":3343655.22},{"$f":"(F274+G274)/E274","v":0.17601274920548188},null,null,{"$f":"ROUND(SUM(L224:L273),2)","v":4057896.79},{"$f":"ROUND(SUM(M224:M273),2)","v":0},{"$f":"ROUND(SUM(N224:N273),2)","v":4057896.79},{"$f":"M274/L274","v":0}]
["Show"]
["Show"]
["Show",null,"Validation of Grand Total ",null,{"$f":"IF(AND(ROUND(E98,0)=ROUND(E219,0),ROUND(E274,0)=ROUND(E219,0)),\"OK\",\"WARNING - Sum of the three tables not matching\")","v":"OK"},{"$f":"IF(AND(ROUND(F98,0)=ROUND(F219,0),ROUND(F274,0)=ROUND(F219,0)),\"OK\",\"WARNING - Sum of the three tables not matching\")","v":"WARNING - Sum of the three tables not matching"},{"$f":"IF(AND(ROUND(G98,0)=ROUND(G219,0),ROUND(G274,0)=ROUND(G219,0)),\"OK\",\"WARNING - Sum of the three tables not matching\")","v":"OK"},null,null,null,null,{"$f":"IF(AND(ROUND(L98,0)=ROUND(L219,0),ROUND(L219,0)=ROUND(L274,0)),\"OK\",\"WARNING - Sum of the three tables not matching\")","v":"OK"},{"$f":"IF(AND(ROUND(M98,0)=ROUND(M219,0),ROUND(M219,0)=ROUND(M274,0)),\"OK\",\"WARNING - Sum of the three tables not matching\")","v":"OK"}]

{"sheet":"LFA Expenditure_7B imp-exp","index":33,"n_rows":55,"n_cols":19,"rows_kept":55,"cut":false,"hidden":true,"merged":[]}
["Costing Dimension (Cost Grouping or Cost Input)",null,"Budget for Reporting Period","Actual Expenditure ","Local Fund Agent Adjustment on Expenditures","Budget Vs Actual Variances","Absorption Rate","LFA comments on the Principal Recipient's explanation of variances",-1,"Cumulative Budget","Cumulative Actual Expenditure","Cumulative Budget Vs Actuals Variances","Absorption Rate",-1,"Record ID","Cost Grouping Number","Cost Grouping Number"]
["[Costing Dimension (Cost Grouping)]",null,"[Budget for Reporting Period]",null,{"$f":"IFERROR(INDEX('LFA Expenditure_7B'!G$8:G$97,MATCH('LFA Expenditure_7B imp-exp'!N2,'LFA Expenditure_7B'!B$8:B$97,0)),\"\")","v":""},null,null,null,{"$f":"I1+1","v":0},"[Cumulative Budget]",{"$f":"IFERROR(INDEX('LFA Expenditure_7B'!M$8:M$97,MATCH('LFA Expenditure_7B imp-exp'!N2,'LFA Expenditure_7B'!B$8:B$97,0)),\"\")","v":""},null,null,{"$f":"\"Costgrp\"&I2","v":"Costgrp0"},"[Record ID]","[Cost Grouping Number]","[Cost Grouping Number]"]
["1. Human Resources (HR)",null,1005908.79914906,null,{"$f":"IFERROR(INDEX('LFA Expenditure_7B'!G$8:G$97,MATCH('LFA Expenditure_7B imp-exp'!N3,'LFA Expenditure_7B'!B$8:B$97,0)),\"\")","v":0},null,null,null,{"$f":"I2+1","v":1},1005908.79914906,{"$f":"IFERROR(INDEX('LFA Expenditure_7B'!M$8:M$97,MATCH('LFA Expenditure_7B imp-exp'!N3,'LFA Expenditure_7B'!B$8:B$97,0)),\"\")","v":0},null,null,{"$f":"\"Costgrp\"&I3","v":"Costgrp1"},"a2G36000001u8CcEAI",null,1]
["10. Communication Material and Publications (CMP)",null,3469.2620152808299,null,{"$f":"IFERROR(INDEX('LFA Expenditure_7B'!G$8:G$97,MATCH('LFA Expenditure_7B imp-exp'!N4,'LFA Expenditure_7B'!B$8:B$97,0)),\"\")","v":0},null,null,null,2,3469.2620152808299,{"$f":"IFERROR(INDEX('LFA Expenditure_7B'!M$8:M$97,MATCH('LFA Expenditure_7B imp-exp'!N4,'LFA Expenditure_7B'!B$8:B$97,0)),\"\")","v":0},null,null,"Costgrp2","a2G36000001u8ChEAI",null,10]
["11. Programme Administration costs (PA)",null,377924.55271437601,null,{"$f":"IFERROR(INDEX('LFA Expenditure_7B'!G$8:G$97,MATCH('LFA Expenditure_7B imp-exp'!N5,'LFA Expenditure_7B'!B$8:B$97,0)),\"\")","v":0},null,null,null,3,377924.55271437601,{"$f":"IFERROR(INDEX('LFA Expenditure_7B'!M$8:M$97,MATCH('LFA Expenditure_7B imp-exp'!N5,'LFA Expenditure_7B'!B$8:B$97,0)),\"\")","v":0},null,null,"Costgrp3","a2G36000001u8CaEAI",null,11]
["12. Living support to client/ target population (LSCTP)",null,0,null,{"$f":"IFERROR(INDEX('LFA Expenditure_7B'!G$8:G$97,MATCH('LFA Expenditure_7B imp-exp'!N6,'LFA Expenditure_7B'!B$8:B$97,0)),\"\")","v":0},null,null,null,4,0,{"$f":"IFERROR(INDEX('LFA Expenditure_7B'!M$8:M$97,MATCH('LFA Expenditure_7B imp-exp'!N6,'LFA Expenditure_7B'!B$8:B$97,0)),\"\")","v":0},null,null,"Costgrp4","a2G36000001u8DCEAY",null,12]
["13. Payment for Results",null,0,null,{"$f":"IFERROR(INDEX('LFA Expenditure_7B'!G$8:G$97,MATCH('LFA Expenditure_7B imp-exp'!N7,'LFA Expenditure_7B'!B$8:B$97,0)),\"\")","v":0},null,null,null,5,0,{"$f":"IFERROR(INDEX('LFA Expenditure_7B'!M$8:M$97,MATCH('LFA Expenditure_7B imp-exp'!N7,'LFA Expenditure_7B'!B$8:B$97,0)),\"\")","v":0},null,null,"Costgrp5","a2G36000001u8DDEAY",null,13]
["2. Travel related costs (TRC)",null,184199.43522428701,null,{"$f":"IFERROR(INDEX('LFA Expenditure_7B'!G$8:G$97,MATCH('LFA Expenditure_7B imp-exp'!N8,'LFA Expenditure_7B'!B$8:B$97,0)),\"\")","v":0},null,null,null,6,184199.43522428701,{"$f":"IFERROR(INDEX('LFA Expenditure_7B'!M$8:M$97,MATCH('LFA Expenditure_7B imp-exp'!N8,'LFA Expenditure_7B'!B$8:B$97,0)),\"\")","v":0},null,null,"Costgrp6","a2G36000001u8CSEAY",null,2]
["3. External Professional services (EPS)",null,13200,null,{"$f":"IFERROR(INDEX('LFA Expenditure_7B'!G$8:G$97,MATCH('LFA Expenditure_7B imp-exp'!N9,'LFA Expenditure_7B'!B$8:B$97,0)),\"\")","v":0},null,null,null,7,13200,{"$f":"IFERROR(INDEX('LFA Expenditure_7B'!M$8:M$97,MATCH('LFA Expenditure_7B imp-exp'!N9,'LFA Expenditure_7B'!B$8:B$97,0)),\"\")","v":0},null,null,"Costgrp7","a2G36000001u8CtEAI",null,3]
["4. Health Products - Pharmaceutical Products (HPPP)",null,669838,null,{"$f":"IFERROR(INDEX('LFA Expenditure_7B'!G$8:G$97,MATCH('LFA Expenditure_7B imp-exp'!N10,'LFA Expenditure_7B'!B$8:B$97,0)),\"\")","v":0},null,null,null,8,669838,{"$f":"IFERROR(INDEX('LFA Expenditure_7B'!M$8:M$97,MATCH('LFA Expenditure_7B imp-exp'!N10,'LFA Expenditure_7B'!B$8:B$97,0)),\"\")","v":0},null,null,"Costgrp8","a2G36000001u8D3EAI",null,4]
["5. Health Products - Non-Pharmaceuticals (HPNP)",null,1100385.8999999999,null,{"$f":"IFERROR(INDEX('LFA Expenditure_7B'!G$8:G$97,MATCH('LFA Expenditure_7B imp-exp'!N11,'LFA Expenditure_7B'!B$8:B$97,0)),\"\")","v":0},null,null,null,9,1100385.8999999999,{"$f":"IFERROR(INDEX('LFA Expenditure_7B'!M$8:M$97,MATCH('LFA Expenditure_7B imp-exp'!N11,'LFA Expenditure_7B'!B$8:B$97,0)),\"\")","v":0},null,null,"Costgrp9","a2G36000001u8D5EAI",null,5]
["6. Health Products - Equipment (HPE)",null,0,null,{"$f":"IFERROR(INDEX('LFA Expenditure_7B'!G$8:G$97,MATCH('LFA Expenditure_7B imp-exp'!N12,'LFA Expenditure_7B'!B$8:B$97,0)),\"\")","v":0},null,null,null,10,0,{"$f":"IFERROR(INDEX('LFA Expenditure_7B'!M$8:M$97,MATCH('LFA Expenditure_7B imp-exp'!N12,'LFA Expenditure_7B'!B$8:B$97,0)),\"\")","v":0},null,null,"Costgrp10","a2G36000001u8DEEAY",null,6]
["7. Procurement and Supply-Chain Management costs (PSM)",null,438374.24,null,{"$f":"IFERROR(INDEX('LFA Expenditure_7B'!G$8:G$97,MATCH('LFA Expenditure_7B imp-exp'!N13,'LFA Expenditure_7B'!B$8:B$97,0)),\"\")","v":0},null,null,null,11,438374.24,{"$f":"IFERROR(INDEX('LFA Expenditure_7B'!M$8:M$97,MATCH('LFA Expenditure_7B imp-exp'!N13,'LFA Expenditure_7B'!B$8:B$97,0)),\"\")","v":0},null,null,"Costgrp11","a2G36000001u8D7EAI",null,7]
["8. Infrastructure (INF)",null,49796,null,{"$f":"IFERROR(INDEX('LFA Expenditure_7B'!G$8:G$97,MATCH('LFA Expenditure_7B imp-exp'!N14,'LFA Expenditure_7B'!B$8:B$97,0)),\"\")","v":0},null,null,null,12,49796,{"$f":"IFERROR(INDEX('LFA Expenditure_7B'!M$8:M$97,MATCH('LFA Expenditure_7B imp-exp'!N14,'LFA Expenditure_7B'!B$8:B$97,0)),\"\")","v":0},null,null,"Costgrp12","a2G36000001u8CwEAI",null,8]
["9. Non-health equipment (NHP)",null,214800.605651608,null,{"$f":"IFERROR(INDEX('LFA Expenditure_7B'!G$8:G$97,MATCH('LFA Expenditure_7B imp-exp'!N15,'LFA Expenditure_7B'!B$8:B$97,0)),\"\")","v":0},null,null,null,13,214800.605651608,{"$f":"IFERROR(INDEX('LFA Expenditure_7B'!M$8:M$97,MATCH('LFA Expenditure_7B imp-exp'!N15,'LFA Expenditure_7B'!B$8:B$97,0)),\"\")","v":0},null,null,"Costgrp13","a2G36000001u8CmEAI",null,9]
["Costing Dimension (Cost Input)",null,"Budget for Reporting Period",null,"LFA Adjustment on Expenditures",null,null,null,-1,"Cumulative Budget","LFA Cumulative Expenditures",null,null,null,"Record ID","Cost Grouping Number","Cost Input Number"]
["[Costing Dimension (Cost Input)]",null,"[Budget for Reporting Period]",{"$f":"'PR Expenditure_7A'!#REF!","v":{"$error":"#REF!"}},{"$f":"IFERROR(INDEX('LFA Expenditure_7B'!G$8:G$97,MATCH('LFA Expenditure_7B imp-exp'!N17,'LFA Expenditure_7B'!B$8:B$67,0)),\"\")","v":""},null,null,null,{"$f":"I16+1","v":0},"[Cumulative Budget]",{"$f":"IFERROR(INDEX('LFA Expenditure_7B'!M$8:M$97,MATCH('LFA Expenditure_7B imp-exp'!N17,'LFA Expenditure_7B'!B$8:B$97,0)),\"\")","v":""},null,null,{"$f":"\"Costgrp\"&I17","v":"Costgrp0"},"[Record ID]","[Cost Grouping Number]","[Cost Input Number]"]
[null,null,"Budget for Reporting Period",null,"LFA Adjustment on Expenditures",null,null,null,-1,"Cumulative Budget","LFA Cumulative Expenditures",null,null,null,"Record ID",null,null,null,"Cost Input"]
[{"$f":"IFERROR(INDEX('LFA Expenditure_7B'!C$68:C$97,MATCH('LFA Expenditure_7B imp-exp'!N19,'LFA Expenditure_7B'!B$68:B$97,0)),\"\")","v":""},null,"[Budget for Reporting Period]",{"$f":"'PR Expenditure_7A'!F69","v":0},{"$f":"IFERROR(INDEX('LFA Expenditure_7B'!G$68:G$97,MATCH('LFA Expenditure_7B imp-exp'!N19,'LFA Expenditure_7B'!B$68:B$97,0)),\"\")","v":""},null,null,null,0,"[Cumulative Budget]",{"$f":"IFERROR(INDEX('LFA Expenditure_7B'!M$68:M$97,MATCH('LFA Expenditure_7B imp-exp'!N19,'LFA Expenditure_7B'!B$68:B$97,0)),\"\")","v":""},null,null,{"$f":"\"NewCostgrp\"","v":"NewCostgrp"},"[Record ID]",null,null,null,{"$f":"IF(A19<>\"\",VLOOKUP(A19,'Reference Records'!$E$94:$G$95,3,FALSE),\"\")","v":""}]
[]
["Modular Approach - Modules","Modular Approach - Interventions","Budget for Reporting Period","Actual Expenditure ","Local Fund Agent Adjustment on Expenditures","Budget Vs Actual Variances","Absorption Rate","LFA comments on the Principal Recipient's explanation of variances",-1,"Cumulative Budget","Cumulative Actual Expenditure","Cumulative Budget Vs Actuals Variances","Absorption Rate",null,"Record ID"]
["[Module]","[Intervention]","[Budget for Reporting Period]",{"$f":"'PR Expenditure_7A'!F104","v":25716.67},{"$f":"IFERROR(INDEX('LFA Expenditure_7B'!G$103:G$202,MATCH('LFA Expenditure_7B imp-exp'!N22,'LFA Expenditure_7B'!B$103:B$202,0)),\"\")","v":""},null,null,null,{"$f":"I21+1","v":0},"[Cumulative Budget]",{"$f":"IFERROR(INDEX('LFA Expenditure_7B'!M$103:M$202,MATCH('LFA Expenditure_7B imp-exp'!N22,'LFA Expenditure_7B'!B$103:B$202,0)),\"\")","v":""},null,null,{"$f":"\"Int\"&I22","v":"Int0"},"[Record ID]"]
["Vector control","IEC/BCC (Vector control)",54087.803655188698,{"$f":"'PR Expenditure_7A'!F105","v":0},{"$f":"IFERROR(INDEX('LFA Expenditure_7B'!G$103:G$202,MATCH('LFA Expenditure_7B imp-exp'!N23,'LFA Expenditure_7B'!B$103:B$202,0)),\"\")","v":0},null,null,null,{"$f":"I22+1","v":1},54087.803655188698,{"$f":"IFERROR(INDEX('LFA Expenditure_7B'!M$103:M$202,MATCH('LFA Expenditure_7B imp-exp'!N23,'LFA Expenditure_7B'!B$103:B$202,0)),\"\")","v":0},null,null,{"$f":"\"Int\"&I23","v":"Int1"},"a2G36000001u8CQEAY"]
["RSSH: Health management information systems and M&E","Analysis, review and transparency",3390,{"$f":"'PR Expenditure_7A'!F106","v":21699.849999999995},{"$f":"IFERROR(INDEX('LFA Expenditure_7B'!G$103:G$202,MATCH('LFA Expenditure_7B imp-exp'!N24,'LFA Expenditure_7B'!B$103:B$202,0)),\"\")","v":0},null,null,null,2,3390,{"$f":"IFERROR(INDEX('LFA Expenditure_7B'!M$103:M$202,MATCH('LFA Expenditure_7B imp-exp'!N24,'LFA Expenditure_7B'!B$103:B$202,0)),\"\")","v":0},null,null,"Int2","a2G36000001u8CWEAY"]
["Program management","Policy, planning, coordination and management of national disease control programs",92875.790708516404,{"$f":"'PR Expenditure_7A'!F107","v":21734.55},{"$f":"IFERROR(INDEX('LFA Expenditure_7B'!G$103:G$202,MATCH('LFA Expenditure_7B imp-exp'!N25,'LFA Expenditure_7B'!B$103:B$202,0)),\"\")","v":0},null,null,null,3,92875.790708516404,{"$f":"IFERROR(INDEX('LFA Expenditure_7B'!M$103:M$202,MATCH('LFA Expenditure_7B imp-exp'!N25,'LFA Expenditure_7B'!B$103:B$202,0)),\"\")","v":0},null,null,"Int3","a2G36000001u8CZEAY"]
["RSSH: Health management information systems and M&E","Program and data quality",55228.813697177298,{"$f":"'PR Expenditure_7A'!F108","v":0},{"$f":"IFERROR(INDEX('LFA Expenditure_7B'!G$103:G$202,MATCH('LFA Expenditure_7B imp-exp'!N26,'LFA Expenditure_7B'!B$103:B$202,0)),\"\")","v":0},null,null,null,4,55228.813697177298,{"$f":"IFERROR(INDEX('LFA Expenditure_7B'!M$103:M$202,MATCH('LFA Expenditure_7B imp-exp'!N26,'LFA Expenditure_7B'!B$103:B$202,0)),\"\")","v":0},null,null,"Int4","a2G36000001u8CfEAI"]
["RSSH: Health management information systems and M&E","Surveys",0,{"$f":"'PR Expenditure_7A'!F109","v":0},{"$f":"IFERROR(INDEX('LFA Expenditure_7B'!G$103:G$202,MATCH('LFA Expenditure_7B imp-exp'!N27,'LFA Expenditure_7B'!B$103:B$202,0)),\"\")","v":0},null,null,null,5,0,{"$f":"IFERROR(INDEX('LFA Expenditure_7B'!M$103:M$202,MATCH('LFA Expenditure_7B imp-exp'!N27,'LFA Expenditure_7B'!B$103:B$202,0)),\"\")","v":0},null,null,"Int5","a2G36000001u8CjEAI"]
["RSSH: Financial management systems","Routine financial management improvement (non-PFM)",0,{"$f":"'PR Expenditure_7A'!F110","v":0},{"$f":"IFERROR(INDEX('LFA Expenditure_7B'!G$103:G$202,MATCH('LFA Expenditure_7B imp-exp'!N28,'LFA Expenditure_7B'!B$103:B$202,0)),\"\")","v":0},null,null,null,6,0,{"$f":"IFERROR(INDEX('LFA Expenditure_7B'!M$103:M$202,MATCH('LFA Expenditure_7B imp-exp'!N28,'LFA Expenditure_7B'!B$103:B$202,0)),\"\")","v":0},null,null,"Int6","a2G36000001u8CkEAI"]
["Case management","Integrated community case management (ICCM)",402240.35134409199,{"$f":"'PR Expenditure_7A'!F111","v":0},{"$f":"IFERROR(INDEX('LFA Expenditure_7B'!G$103:G$202,MATCH('LFA Expenditure_7B imp-exp'!N29,'LFA Expenditure_7B'!B$103:B$202,0)),\"\")","v":0},null,null,null,7,402240.35134409199,{"$f":"IFERROR(INDEX('LFA Expenditure_7B'!M$103:M$202,MATCH('LFA Expenditure_7B imp-exp'!N29,'LFA Expenditure_7B'!B$103:B$202,0)),\"\")","v":0},null,null,"Int7","a2G36000001u8ClEAI"]
["Case management","Private sector case management",3313.9672872015599,{"$f":"'PR Expenditure_7A'!F112","v":636591.57999999996},{"$f":"IFERROR(INDEX('LFA Expenditure_7B'!G$103:G$202,MATCH('LFA Expenditure_7B imp-exp'!N30,'LFA Expenditure_7B'!B$103:B$202,0)),\"\")","v":0},null,null,null,8,3313.9672872015599,{"$f":"IFERROR(INDEX('LFA Expenditure_7B'!M$103:M$202,MATCH('LFA Expenditure_7B imp-exp'!N30,'LFA Expenditure_7B'!B$103:B$202,0)),\"\")","v":0},null,null,"Int8","a2G36000001u8CpEAI"]
["Program management","Grant management",1238161.9280624299,{"$f":"'PR Expenditure_7A'!F113","v":8498.9200000000019},{"$f":"IFERROR(INDEX('LFA Expenditure_7B'!G$103:G$202,MATCH('LFA Expenditure_7B imp-exp'!N31,'LFA Expenditure_7B'!B$103:B$202,0)),\"\")","v":0},null,null,null,9,1238161.9280624299,{"$f":"IFERROR(INDEX('LFA Expenditure_7B'!M$103:M$202,MATCH('LFA Expenditure_7B imp-exp'!N31,'LFA Expenditure_7B'!B$103:B$202,0)),\"\")","v":0},null,null,"Int9","a2G36000001u8CrEAI"]
["Case management","Facility-based treatment",2208598.14,{"$f":"'PR Expenditure_7A'!F114","v":0},{"$f":"IFERROR(INDEX('LFA Expenditure_7B'!G$103:G$202,MATCH('LFA Expenditure_7B imp-exp'!N32,'LFA Expenditure_7B'!B$103:B$202,0)),\"\")","v":0},null,null,null,10,2208598.14,{"$f":"IFERROR(INDEX('LFA Expenditure_7B'!M$103:M$202,MATCH('LFA Expenditure_7B imp-exp'!N32,'LFA Expenditure_7B'!B$103:B$202,0)),\"\")","v":0},null,null,"Int10","a2G36000001u8D2EAI"]
["Module","Intervention","Budget for Reporting Period",null,"LFA Adjustment on Expenditures",null,null,null,-1,"Cumulative Budget","LFA Cumulative Expenditures",null,null,null,"Module",null,"Record ID"]
[{"$f":"IFERROR(IF(INDEX('LFA Expenditure_7B'!C203:C218,MATCH(N34,'LFA Expenditure_7B'!B$203:B$218,0))=\"\",\"\",INDEX('LFA Expenditure_7B'!C203:C218,MATCH(N34,'LFA Expenditure_7B'!B$203:B$218,0))),\"\")","v":""},{"$f":"IFERROR(IF(INDEX('LFA Expenditure_7B'!D203:D218,MATCH(N34,'LFA Expenditure_7B'!B$203:B$218,0))=\"\",\"\",INDEX('LFA Expenditure_7B'!D203:D218,MATCH(N34,'LFA Expenditure_7B'!B$203:B$218,0))),\"\")","v":""},"[Budget for Reporting Period]",{"$f":"'PR Expenditure_7A'!F204","v":0},{"$f":"IFERROR(INDEX('LFA Expenditure_7B'!G203:G218,MATCH(N34,'LFA Expenditure_7B'!B$203:B$218,0)),\"\")","v":""},null,null,null,{"$f":"I33+1","v":0},"[Cumulative Budget]",{"$f":"IFERROR(INDEX('LFA Expenditure_7B'!M203:M218,MATCH(N34,'LFA Expenditure_7B'!B$203:B$218,0)),\"\")","v":""},null,null,{"$f":"\"Intcustom\"&I34","v":"Intcustom0"},{"$f":"IFERROR(IF(VLOOKUP(A34,'Reference Records'!$B$12:$D$25,3,FALSE)=0,\"\",VLOOKUP(A34,'Reference Records'!$B$12:$D$25,3,FALSE)),\"\")","v":""},null,"[Record ID]"]
[{"$f":"IFERROR(IF(INDEX('LFA Expenditure_7B'!C204:C219,MATCH(N35,'LFA Expenditure_7B'!B$203:B$218,0))=\"\",\"\",INDEX('LFA Expenditure_7B'!C204:C219,MATCH(N35,'LFA Expenditure_7B'!B$203:B$218,0))),\"\")","v":""},{"$f":"IFERROR(IF(INDEX('LFA Expenditure_7B'!D204:D219,MATCH(N35,'LFA Expenditure_7B'!B$203:B$218,0))=\"\",\"\",INDEX('LFA Expenditure_7B'!D204:D219,MATCH(N35,'LFA Expenditure_7B'!B$203:B$218,0))),\"\")","v":""},0,{"$f":"'PR Expenditure_7A'!F205","v":0},{"$f":"IFERROR(INDEX('LFA Expenditure_7B'!G204:G219,MATCH(N35,'LFA Expenditure_7B'!B$203:B$218,0)),\"\")","v":0},null,null,null,{"$f":"I34+1","v":1},0,{"$f":"IFERROR(INDEX('LFA Expenditure_7B'!M204:M219,MATCH(N35,'LFA Expenditure_7B'!B$203:B$218,0)),\"\")","v":0},null,null,{"$f":"\"Intcustom\"&I35","v":"Intcustom1"},{"$f":"IFERROR(IF(VLOOKUP(A35,'Reference Records'!$B$12:$D$25,3,FALSE)=0,\"\",VLOOKUP(A35,'Reference Records'!$B$12:$D$25,3,FALSE)),\"\")","v":""},null,"a2G36000001u8DFEAY"]
[{"$f":"IFERROR(IF(INDEX('LFA Expenditure_7B'!C205:C220,MATCH(N36,'LFA Expenditure_7B'!B$203:B$218,0))=\"\",\"\",INDEX('LFA Expenditure_7B'!C205:C220,MATCH(N36,'LFA Expenditure_7B'!B$203:B$218,0))),\"\")","v":""},{"$f":"IFERROR(IF(INDEX('LFA Expenditure_7B'!D205:D220,MATCH(N36,'LFA Expenditure_7B'!B$203:B$218,0))=\"\",\"\",INDEX('LFA Expenditure_7B'!D205:D220,MATCH(N36,'LFA Expenditure_7B'!B$203:B$218,0))),\"\")","v":""},0,{"$f":"'PR Expenditure_7A'!F206","v":0},{"$f":"IFERROR(INDEX('LFA Expenditure_7B'!G205:G220,MATCH(N36,'LFA Expenditure_7B'!B$203:B$218,0)),\"\")","v":0},null,null,null,2,0,{"$f":"IFERROR(INDEX('LFA Expenditure_7B'!M205:M220,MATCH(N36,'LFA Expenditure_7B'!B$203:B$218,0)),\"\")","v":0},null,null,"Intcustom2",{"$f":"IFERROR(IF(VLOOKUP(A36,'Reference Records'!$B$12:$D$25,3,FALSE)=0,\"\",VLOOKUP(A36,'Reference Records'!$B$12:$D$25,3,FALSE)),\"\")","v":""},null,"a2G36000001u8DGEAY"]
[{"$f":"IFERROR(IF(INDEX('LFA Expenditure_7B'!C206:C221,MATCH(N37,'LFA Expenditure_7B'!B$203:B$218,0))=\"\",\"\",INDEX('LFA Expenditure_7B'!C206:C221,MATCH(N37,'LFA Expenditure_7B'!B$203:B$218,0))),\"\")","v":""},{"$f":"IFERROR(IF(INDEX('LFA Expenditure_7B'!D206:D221,MATCH(N37,'LFA Expenditure_7B'!B$203:B$218,0))=\"\",\"\",INDEX('LFA Expenditure_7B'!D206:D221,MATCH(N37,'LFA Expenditure_7B'!B$203:B$218,0))),\"\")","v":""},0,{"$f":"'PR Expenditure_7A'!F207","v":0},{"$f":"IFERROR(INDEX('LFA Expenditure_7B'!G206:G221,MATCH(N37,'LFA Expenditure_7B'!B$203:B$218,0)),\"\")","v":0},null,null,null,3,0,{"$f":"IFERROR(INDEX('LFA Expenditure_7B'!M206:M221,MATCH(N37,'LFA Expenditure_7B'!B$203:B$218,0)),\"\")","v":0},null,null,"Intcustom3",{"$f":"IFERROR(IF(VLOOKUP(A37,'Reference Records'!$B$12:$D$25,3,FALSE)=0,\"\",VLOOKUP(A37,'Reference Records'!$B$12:$D$25,3,FALSE)),\"\")","v":""},null,"a2G36000001u8DHEAY"]
[{"$f":"IFERROR(IF(INDEX('LFA Expenditure_7B'!C207:C222,MATCH(N38,'LFA Expenditure_7B'!B$203:B$218,0))=\"\",\"\",INDEX('LFA Expenditure_7B'!C207:C222,MATCH(N38,'LFA Expenditure_7B'!B$203:B$218,0))),\"\")","v":""},{"$f":"IFERROR(IF(INDEX('LFA Expenditure_7B'!D207:D222,MATCH(N38,'LFA Expenditure_7B'!B$203:B$218,0))=\"\",\"\",INDEX('LFA Expenditure_7B'!D207:D222,MATCH(N38,'LFA Expenditure_7B'!B$203:B$218,0))),\"\")","v":""},0,{"$f":"'PR Expenditure_7A'!F208","v":0},{"$f":"IFERROR(INDEX('LFA Expenditure_7B'!G207:G222,MATCH(N38,'LFA Expenditure_7B'!B$203:B$218,0)),\"\")","v":0},null,null,null,4,0,{"$f":"IFERROR(INDEX('LFA Expenditure_7B'!M207:M222,MATCH(N38,'LFA Expenditure_7B'!B$203:B$218,0)),\"\")","v":0},null,null,"Intcustom4",{"$f":"IFERROR(IF(VLOOKUP(A38,'Reference Records'!$B$12:$D$25,3,FALSE)=0,\"\",VLOOKUP(A38,'Reference Records'!$B$12:$D$25,3,FALSE)),\"\")","v":""},null,"a2G36000001u8DIEAY"]
[{"$f":"IFERROR(IF(INDEX('LFA Expenditure_7B'!C208:C223,MATCH(N39,'LFA Expenditure_7B'!B$203:B$218,0))=\"\",\"\",INDEX('LFA Expenditure_7B'!C208:C223,MATCH(N39,'LFA Expenditure_7B'!B$203:B$218,0))),\"\")","v":""},{"$f":"IFERROR(IF(INDEX('LFA Expenditure_7B'!D208:D223,MATCH(N39,'LFA Expenditure_7B'!B$203:B$218,0))=\"\",\"\",INDEX('LFA Expenditure_7B'!D208:D223,MATCH(N39,'LFA Expenditure_7B'!B$203:B$218,0))),\"\")","v":""},0,{"$f":"'PR Expenditure_7A'!F209","v":0},{"$f":"IFERROR(INDEX('LFA Expenditure_7B'!G208:G223,MATCH(N39,'LFA Expenditure_7B'!B$203:B$218,0)),\"\")","v":0},null,null,null,5,0,{"$f":"IFERROR(INDEX('LFA Expenditure_7B'!M208:M223,MATCH(N39,'LFA Expenditure_7B'!B$203:B$218,0)),\"\")","v":0},null,null,"Intcustom5",{"$f":"IFERROR(IF(VLOOKUP(A39,'Reference Records'!$B$12:$D$25,3,FALSE)=0,\"\",VLOOKUP(A39,'Reference Records'!$B$12:$D$25,3,FALSE)),\"\")","v":""},null,"a2G36000001u8DJEAY"]
[{"$f":"IFERROR(IF(INDEX('LFA Expenditure_7B'!C209:C224,MATCH(N40,'LFA Expenditure_7B'!B$203:B$218,0))=\"\",\"\",INDEX('LFA Expenditure_7B'!C209:C224,MATCH(N40,'LFA Expenditure_7B'!B$203:B$218,0))),\"\")","v":""},{"$f":"IFERROR(IF(INDEX('LFA Expenditure_7B'!D209:D224,MATCH(N40,'LFA Expenditure_7B'!B$203:B$218,0))=\"\",\"\",INDEX('LFA Expenditure_7B'!D209:D224,MATCH(N40,'LFA Expenditure_7B'!B$203:B$218,0))),\"\")","v":""},0,{"$f":"'PR Expenditure_7A'!F210","v":0},{"$f":"IFERROR(INDEX('LFA Expenditure_7B'!G209:G224,MATCH(N40,'LFA Expenditure_7B'!B$203:B$218,0)),\"\")","v":0},null,null,null,6,0,{"$f":"IFERROR(INDEX('LFA Expenditure_7B'!M209:M224,MATCH(N40,'LFA Expenditure_7B'!B$203:B$218,0)),\"\")","v":0},null,null,"Intcustom6",{"$f":"IFERROR(IF(VLOOKUP(A40,'Reference Records'!$B$12:$D$25,3,FALSE)=0,\"\",VLOOKUP(A40,'Reference Records'!$B$12:$D$25,3,FALSE)),\"\")","v":""},null,"a2G36000001u8DKEAY"]
[{"$f":"IFERROR(IF(INDEX('LFA Expenditure_7B'!C210:C225,MATCH(N41,'LFA Expenditure_7B'!B$203:B$218,0))=\"\",\"\",INDEX('LFA Expenditure_7B'!C210:C225,MATCH(N41,'LFA Expenditure_7B'!B$203:B$218,0))),\"\")","v":""},{"$f":"IFERROR(IF(INDEX('LFA Expenditure_7B'!D210:D225,MATCH(N41,'LFA Expenditure_7B'!B$203:B$218,0))=\"\",\"\",INDEX('LFA Expenditure_7B'!D210:D225,MATCH(N41,'LFA Expenditure_7B'!B$203:B$218,0))),\"\")","v":""},0,{"$f":"'PR Expenditure_7A'!F211","v":0},{"$f":"IFERROR(INDEX('LFA Expenditure_7B'!G210:G225,MATCH(N41,'LFA Expenditure_7B'!B$203:B$218,0)),\"\")","v":0},null,null,null,7,0,{"$f":"IFERROR(INDEX('LFA Expenditure_7B'!M210:M225,MATCH(N41,'LFA Expenditure_7B'!B$203:B$218,0)),\"\")","v":0},null,null,"Intcustom7",{"$f":"IFERROR(IF(VLOOKUP(A41,'Reference Records'!$B$12:$D$25,3,FALSE)=0,\"\",VLOOKUP(A41,'Reference Records'!$B$12:$D$25,3,FALSE)),\"\")","v":""},null,"a2G36000001u8DLEAY"]
[{"$f":"IFERROR(IF(INDEX('LFA Expenditure_7B'!C211:C226,MATCH(N42,'LFA Expenditure_7B'!B$203:B$218,0))=\"\",\"\",INDEX('LFA Expenditure_7B'!C211:C226,MATCH(N42,'LFA Expenditure_7B'!B$203:B$218,0))),\"\")","v":""},{"$f":"IFERROR(IF(INDEX('LFA Expenditure_7B'!D211:D226,MATCH(N42,'LFA Expenditure_7B'!B$203:B$218,0))=\"\",\"\",INDEX('LFA Expenditure_7B'!D211:D226,MATCH(N42,'LFA Expenditure_7B'!B$203:B$218,0))),\"\")","v":""},0,{"$f":"'PR Expenditure_7A'!F212","v":0},{"$f":"IFERROR(INDEX('LFA Expenditure_7B'!G211:G226,MATCH(N42,'LFA Expenditure_7B'!B$203:B$218,0)),\"\")","v":0},null,null,null,8,0,{"$f":"IFERROR(INDEX('LFA Expenditure_7B'!M211:M226,MATCH(N42,'LFA Expenditure_7B'!B$203:B$218,0)),\"\")","v":0},null,null,"Intcustom8",{"$f":"IFERROR(IF(VLOOKUP(A42,'Reference Records'!$B$12:$D$25,3,FALSE)=0,\"\",VLOOKUP(A42,'Reference Records'!$B$12:$D$25,3,FALSE)),\"\")","v":""},null,"a2G36000001u8DMEAY"]
[{"$f":"IFERROR(IF(INDEX('LFA Expenditure_7B'!C212:C227,MATCH(N43,'LFA Expenditure_7B'!B$203:B$218,0))=\"\",\"\",INDEX('LFA Expenditure_7B'!C212:C227,MATCH(N43,'LFA Expenditure_7B'!B$203:B$218,0))),\"\")","v":""},{"$f":"IFERROR(IF(INDEX('LFA Expenditure_7B'!D212:D227,MATCH(N43,'LFA Expenditure_7B'!B$203:B$218,0))=\"\",\"\",INDEX('LFA Expenditure_7B'!D212:D227,MATCH(N43,'LFA Expenditure_7B'!B$203:B$218,0))),\"\")","v":""},0,{"$f":"'PR Expenditure_7A'!F213","v":0},{"$f":"IFERROR(INDEX('LFA Expenditure_7B'!G212:G227,MATCH(N43,'LFA Expenditure_7B'!B$203:B$218,0)),\"\")","v":0},null,null,null,9,0,{"$f":"IFERROR(INDEX('LFA Expenditure_7B'!M212:M227,MATCH(N43,'LFA Expenditure_7B'!B$203:B$218,0)),\"\")","v":0},null,null,"Intcustom9",{"$f":"IFERROR(IF(VLOOKUP(A43,'Reference Records'!$B$12:$D$25,3,FALSE)=0,\"\",VLOOKUP(A43,'Reference Records'!$B$12:$D$25,3,FALSE)),\"\")","v":""},null,"a2G36000001u8DNEAY"]
[{"$f":"IFERROR(IF(INDEX('LFA Expenditure_7B'!C213:C228,MATCH(N44,'LFA Expenditure_7B'!B$203:B$218,0))=\"\",\"\",INDEX('LFA Expenditure_7B'!C213:C228,MATCH(N44,'LFA Expenditure_7B'!B$203:B$218,0))),\"\")","v":""},{"$f":"IFERROR(IF(INDEX('LFA Expenditure_7B'!D213:D228,MATCH(N44,'LFA Expenditure_7B'!B$203:B$218,0))=\"\",\"\",INDEX('LFA Expenditure_7B'!D213:D228,MATCH(N44,'LFA Expenditure_7B'!B$203:B$218,0))),\"\")","v":""},0,{"$f":"'PR Expenditure_7A'!F214","v":0},{"$f":"IFERROR(INDEX('LFA Expenditure_7B'!G213:G228,MATCH(N44,'LFA Expenditure_7B'!B$203:B$218,0)),\"\")","v":0},null,null,null,10,0,{"$f":"IFERROR(INDEX('LFA Expenditure_7B'!M213:M228,MATCH(N44,'LFA Expenditure_7B'!B$203:B$218,0)),\"\")","v":0},null,null,"Intcustom10",{"$f":"IFERROR(IF(VLOOKUP(A44,'Reference Records'!$B$12:$D$25,3,FALSE)=0,\"\",VLOOKUP(A44,'Reference Records'!$B$12:$D$25,3,FALSE)),\"\")","v":""},null,"a2G36000001u8DOEAY"]
[{"$f":"IFERROR(IF(INDEX('LFA Expenditure_7B'!C214:C229,MATCH(N45,'LFA Expenditure_7B'!B$203:B$218,0))=\"\",\"\",INDEX('LFA Expenditure_7B'!C214:C229,MATCH(N45,'LFA Expenditure_7B'!B$203:B$218,0))),\"\")","v":"CED-Caritas"},{"$f":"IFERROR(IF(INDEX('LFA Expenditure_7B'!D214:D229,MATCH(N45,'LFA Expenditure_7B'!B$203:B$218,0))=\"\",\"\",INDEX('LFA Expenditure_7B'!D214:D229,MATCH(N45,'LFA Expenditure_7B'!B$203:B$218,0))),\"\")","v":"-"},0,{"$f":"'PR Expenditure_7A'!F215","v":0},{"$f":"IFERROR(INDEX('LFA Expenditure_7B'!G214:G229,MATCH(N45,'LFA Expenditure_7B'!B$203:B$218,0)),\"\")","v":0},null,null,null,11,0,{"$f":"IFERROR(INDEX('LFA Expenditure_7B'!M214:M229,MATCH(N45,'LFA Expenditure_7B'!B$203:B$218,0)),\"\")","v":0},null,null,"Intcustom11",{"$f":"IFERROR(IF(VLOOKUP(A45,'Reference Records'!$B$12:$D$25,3,FALSE)=0,\"\",VLOOKUP(A45,'Reference Records'!$B$12:$D$25,3,FALSE)),\"\")","v":""},null,"a2G36000001u8DPEAY"]
[{"$f":"IFERROR(IF(INDEX('LFA Expenditure_7B'!C215:C230,MATCH(N46,'LFA Expenditure_7B'!B$203:B$218,0))=\"\",\"\",INDEX('LFA Expenditure_7B'!C215:C230,MATCH(N46,'LFA Expenditure_7B'!B$203:B$218,0))),\"\")","v":"UNDP"},{"$f":"IFERROR(IF(INDEX('LFA Expenditure_7B'!D215:D230,MATCH(N46,'LFA Expenditure_7B'!B$203:B$218,0))=\"\",\"\",INDEX('LFA Expenditure_7B'!D215:D230,MATCH(N46,'LFA Expenditure_7B'!B$203:B$218,0))),\"\")","v":"-"},0,{"$f":"'PR Expenditure_7A'!F216","v":0},{"$f":"IFERROR(INDEX('LFA Expenditure_7B'!G215:G230,MATCH(N46,'LFA Expenditure_7B'!B$203:B$218,0)),\"\")","v":0},null,null,null,12,0,{"$f":"IFERROR(INDEX('LFA Expenditure_7B'!M215:M230,MATCH(N46,'LFA Expenditure_7B'!B$203:B$218,0)),\"\")","v":0},null,null,"Intcustom12",{"$f":"IFERROR(IF(VLOOKUP(A46,'Reference Records'!$B$12:$D$25,3,FALSE)=0,\"\",VLOOKUP(A46,'Reference Records'!$B$12:$D$25,3,FALSE)),\"\")","v":""},null,"a2G36000001u8DQEAY"]
[{"$f":"IFERROR(IF(INDEX('LFA Expenditure_7B'!C216:C231,MATCH(N47,'LFA Expenditure_7B'!B$203:B$218,0))=\"\",\"\",INDEX('LFA Expenditure_7B'!C216:C231,MATCH(N47,'LFA Expenditure_7B'!B$203:B$218,0))),\"\")","v":""},{"$f":"IFERROR(IF(INDEX('LFA Expenditure_7B'!D216:D231,MATCH(N47,'LFA Expenditure_7B'!B$203:B$218,0))=\"\",\"\",INDEX('LFA Expenditure_7B'!D216:D231,MATCH(N47,'LFA Expenditure_7B'!B$203:B$218,0))),\"\")","v":""},0,{"$f":"'PR Expenditure_7A'!F217","v":0},{"$f":"IFERROR(INDEX('LFA Expenditure_7B'!G216:G231,MATCH(N47,'LFA Expenditure_7B'!B$203:B$218,0)),\"\")","v":0},null,null,null,13,0,{"$f":"IFERROR(INDEX('LFA Expenditure_7B'!M216:M231,MATCH(N47,'LFA Expenditure_7B'!B$203:B$218,0)),\"\")","v":0},null,null,"Intcustom13",{"$f":"IFERROR(IF(VLOOKUP(A47,'Reference Records'!$B$12:$D$25,3,FALSE)=0,\"\",VLOOKUP(A47,'Reference Records'!$B$12:$D$25,3,FALSE)),\"\")","v":""},null,"a2G36000001u8DREAY"]
[{"$f":"IFERROR(IF(INDEX('LFA Expenditure_7B'!C217:C232,MATCH(N48,'LFA Expenditure_7B'!B$203:B$218,0))=\"\",\"\",INDEX('LFA Expenditure_7B'!C217:C232,MATCH(N48,'LFA Expenditure_7B'!B$203:B$218,0))),\"\")","v":""},{"$f":"IFERROR(IF(INDEX('LFA Expenditure_7B'!D217:D232,MATCH(N48,'LFA Expenditure_7B'!B$203:B$218,0))=\"\",\"\",INDEX('LFA Expenditure_7B'!D217:D232,MATCH(N48,'LFA Expenditure_7B'!B$203:B$218,0))),\"\")","v":""},0,{"$f":"'PR Expenditure_7A'!F218","v":0},{"$f":"IFERROR(INDEX('LFA Expenditure_7B'!G217:G232,MATCH(N48,'LFA Expenditure_7B'!B$203:B$218,0)),\"\")","v":0},null,null,null,14,0,{"$f":"IFERROR(INDEX('LFA Expenditure_7B'!M217:M232,MATCH(N48,'LFA Expenditure_7B'!B$203:B$218,0)),\"\")","v":0},null,null,"Intcustom14",{"$f":"IFERROR(IF(VLOOKUP(A48,'Reference Records'!$B$12:$D$25,3,FALSE)=0,\"\",VLOOKUP(A48,'Reference Records'!$B$12:$D$25,3,FALSE)),\"\")","v":""},null,"a2G36000001u8DSEAY"]
[{"$f":"IFERROR(IF(INDEX('LFA Expenditure_7B'!C218:C233,MATCH(N49,'LFA Expenditure_7B'!B$203:B$218,0))=\"\",\"\",INDEX('LFA Expenditure_7B'!C218:C233,MATCH(N49,'LFA Expenditure_7B'!B$203:B$218,0))),\"\")","v":""},{"$f":"IFERROR(IF(INDEX('LFA Expenditure_7B'!D218:D233,MATCH(N49,'LFA Expenditure_7B'!B$203:B$218,0))=\"\",\"\",INDEX('LFA Expenditure_7B'!D218:D233,MATCH(N49,'LFA Expenditure_7B'!B$203:B$218,0))),\"\")","v":""},0,{"$f":"'PR Expenditure_7A'!F219","v":0},{"$f":"IFERROR(INDEX('LFA Expenditure_7B'!G218:G233,MATCH(N49,'LFA Expenditure_7B'!B$203:B$218,0)),\"\")","v":0},null,null,null,15,0,{"$f":"IFERROR(INDEX('LFA Expenditure_7B'!M218:M233,MATCH(N49,'LFA Expenditure_7B'!B$203:B$218,0)),\"\")","v":0},null,null,"Intcustom15",{"$f":"IFERROR(IF(VLOOKUP(A49,'Reference Records'!$B$12:$D$25,3,FALSE)=0,\"\",VLOOKUP(A49,'Reference Records'!$B$12:$D$25,3,FALSE)),\"\")","v":""},null,"a2G36000001u8DTEAY"]
[]
["Implementing Entity","Type of Implementing Entity","Budget for Reporting Period","Actual Expenditure ","Local Fund Agent Adjustment on Expenditures","Budget Vs Actual Variances","Absorption Rate","LFA comments on the Principal Recipient's explanation of variances",-1,"Cumulative Budget","Cumulative Actual Expenditure",null,null,null,"Record ID"]
["[Implementing Entity to display]","[Full Type]","[Budget for Reporting Period]",{"$f":"'PR Expenditure_7A'!#REF!","v":{"$error":"#REF!"}},{"$f":"IFERROR(INDEX('LFA Expenditure_7B'!G$224:G$273,MATCH(N52,'LFA Expenditure_7B'!B$224:B$273,0)),\"\")","v":""},null,null,null,{"$f":"I51+1","v":0},"[Cumulative Budget]",{"$f":"IFERROR(INDEX('LFA Expenditure_7B'!M$224:M$273,MATCH(N52,'LFA Expenditure_7B'!B$224:B$273,0)),\"\")","v":""},null,null,{"$f":"\"IP\"&I52","v":"IP0"},"[Record ID]"]
["CED-Caritas","-",510939.31497165601,{"$f":"'PR Expenditure_7A'!#REF!","v":{"$error":"#REF!"}},{"$f":"IFERROR(INDEX('LFA Expenditure_7B'!G$224:G$273,MATCH(N53,'LFA Expenditure_7B'!B$224:B$273,0)),\"\")","v":0},null,null,null,{"$f":"I52+1","v":1},510939.31497165601,{"$f":"IFERROR(INDEX('LFA Expenditure_7B'!M$224:M$273,MATCH(N53,'LFA Expenditure_7B'!B$224:B$273,0)),\"\")","v":0},null,null,{"$f":"\"IP\"&I53","v":"IP1"},"a2G36000001u8CREAY"]
["Ministry of Public Health and Fight against AIDS of the Republic of Burundi","-",149775.323187081,{"$f":"'PR Expenditure_7A'!#REF!","v":{"$error":"#REF!"}},{"$f":"IFERROR(INDEX('LFA Expenditure_7B'!G$224:G$273,MATCH(N54,'LFA Expenditure_7B'!B$224:B$273,0)),\"\")","v":0},null,null,null,2,149775.323187081,{"$f":"IFERROR(INDEX('LFA Expenditure_7B'!M$224:M$273,MATCH(N54,'LFA Expenditure_7B'!B$224:B$273,0)),\"\")","v":0},null,null,"IP2","a2G36000001u8CVEAY"]
["UNDP","-",3397182.1565958699,{"$f":"'PR Expenditure_7A'!#REF!","v":{"$error":"#REF!"}},{"$f":"IFERROR(INDEX('LFA Expenditure_7B'!G$224:G$273,MATCH(N55,'LFA Expenditure_7B'!B$224:B$273,0)),\"\")","v":0},null,null,null,3,3397182.1565958699,{"$f":"IFERROR(INDEX('LFA Expenditure_7B'!M$224:M$273,MATCH(N55,'LFA Expenditure_7B'!B$224:B$273,0)),\"\")","v":0},null,null,"IP3","a2G36000001u8CXEAY"]

{"sheet":"Cash Forecast_8A","index":34,"n_rows":220,"n_cols":18,"rows_kept":220,"cut":false,"hidden":false,"merged":[[204,2,207,2],[3,12,3,14],[0,2,0,15],[2,4,2,6],[3,4,3,6],[200,2,203,2]]}
[null,null,{"$f":"IF(CoverSheet!J12=\"N/A\",\"Progress Report\",\"Progress Report with Disbursement Request\")","v":"Progress Report with Disbursement Request"}]
[]
[null,null,{"$f":"VLOOKUP(Translations!B362,Translations!B3:H508,4,0)","v":"Section 8A: The Global Fund  Forecast Template"},null,{"$f":"CoverSheet!F15","v":"Disbursement Request Execution Period"},null,null,{"$f":"CoverSheet!I15","v":"Beginning Date:"},{"$f":"CoverSheet!J15","v":"2018-07-01"},{"$f":"CoverSheet!K15","v":"End Date:"},{"$f":"CoverSheet!L15","v":"2018-12-31"}]
[null,null,null,null,{"$f":"CoverSheet!F16","v":"Disbursement Request Buffer Period"},null,null,{"$f":"CoverSheet!I15","v":"Beginning Date:"},{"$f":"CoverSheet!J16","v":"2019-01-01"},{"$f":"CoverSheet!K15","v":"End Date:"},{"$f":"CoverSheet!L16","v":"2019-03-31"},null,"Has the LFA Verified the Principal Recipient Forecast?",null,null,"Select"]
[]
[null,null,{"$f":"VLOOKUP(Translations!B368,Translations!B3:H508,4,0)","v":"Summary Breakdown by Cost Grouping"}]
[]
[null,null,{"$f":"VLOOKUP(Translations!B369,Translations!B3:H508,4,0)","v":"Costing Dimension (Cost Grouping)"},null,{"$f":"VLOOKUP(Translations!B370,Translations!B3:H508,4,0)","v":"Budget for Forecast Period"},{"$f":"VLOOKUP(Translations!B371,Translations!B3:H508,4,0)","v":"Principal Recipient Forecast for the period (not including the Buffer)"},{"$f":"VLOOKUP(Translations!B372,Translations!B3:H508,4,0)","v":"Budget for the Buffer Period"},{"$f":"VLOOKUP(Translations!B373,Translations!B3:H508,4,0)","v":"Principal Recipient Forecast for the Buffer Period"},{"$f":"VLOOKUP(Translations!B374,Translations!B3:H508,4,0)","v":"Total Principal Recipient Forecast (including Buffer)"},{"$f":"VLOOKUP(Translations!B375,Translations!B3:H508,4,0)","v":"Comments"},null,"Local Fund Agent Adjusted Principal Recipient Forecast for the period (not including the Buffer)","Local Fund Agent Adjusted Principal Recipient Forecast for the Buffer Period",null,"Local Fund Agent - Adjusted Forecast (including the buffer)","Comments"]
[null,"Costgrp1",{"$f":"IFERROR(INDEX('Cash Forecast_8A import-export'!A$9:A$23,MATCH('Cash Forecast_8A'!B9,'Cash Forecast_8A import-export'!O$9:O$23,0)),\"\")","v":"1. Human Resources (HR)"},null,{"$f":"IFERROR(INDEX('Cash Forecast_8A import-export'!C$9:C$23,MATCH('Cash Forecast_8A'!B9,'Cash Forecast_8A import-export'!O$9:O$23,0)),\"\")","v":862240.69281447004},1025431.7446029101,{"$f":"IFERROR(INDEX('Cash Forecast_8A import-export'!E$9:E$23,MATCH('Cash Forecast_8A'!B9,'Cash Forecast_8A import-export'!O$9:O$23,0)),\"\")","v":360907.31351857202},395385.9840666973,{"$f":"IFERROR(F9+H9,\"\")","v":1420817.7286696075},"Augmentation de USD 197,670 due par :\n* USD 109785.25 paiement des GASC reporté sur période Q3 par CARITAS (act 118);\n* USD 5203.65 primes Avril à juin et INSS PNLP (act 66 et 67)\n* USD 81,522. 42 montant reporté RH et USD 1,099 d'engagement du PR",null,null,null,null,{"$f":"IFERROR(L9+M9,\"\")","v":0}]
[null,"Costgrp2",{"$f":"IFERROR(INDEX('Cash Forecast_8A import-export'!A$9:A$23,MATCH('Cash Forecast_8A'!B10,'Cash Forecast_8A import-export'!O$9:O$23,0)),\"\")","v":"2. Travel related costs (TRC)"},null,{"$f":"IFERROR(INDEX('Cash Forecast_8A import-export'!C$9:C$23,MATCH('Cash Forecast_8A'!B10,'Cash Forecast_8A import-export'!O$9:O$23,0)),\"\")","v":68957.748711902896},117163.84803282586,{"$f":"IFERROR(INDEX('Cash Forecast_8A import-export'!E$9:E$23,MATCH('Cash Forecast_8A'!B10,'Cash Forecast_8A import-export'!O$9:O$23,0)),\"\")","v":173570.50024540201},179510.50024540222,{"$f":"IFERROR(F10+H10,\"\")","v":296674.34827822808},"Augmentation résultant de :\n* USD 17,820 frais de suivi et de supervision du PR nouvellement inséré;\n* USD 29,502.8 activités (37, 39, 40 et 116) reportées pour Caritas sur Q3 et Q4 et lees engagements de USD 76,49 ;\n* USD 944 représentant les engagements du PNLP (act 64)\n* USD 3390 act 63 reportée du PR et 2,412.8 représentant les engagements au 300618 (act 151 et 167) ",null,null,null,null,{"$f":"IFERROR(L10+M10,\"\")","v":0}]
[null,"Costgrp3",{"$f":"IFERROR(INDEX('Cash Forecast_8A import-export'!A$9:A$23,MATCH('Cash Forecast_8A'!B11,'Cash Forecast_8A import-export'!O$9:O$23,0)),\"\")","v":"3. External Professional services (EPS)"},null,{"$f":"IFERROR(INDEX('Cash Forecast_8A import-export'!C$9:C$23,MATCH('Cash Forecast_8A'!B11,'Cash Forecast_8A import-export'!O$9:O$23,0)),\"\")","v":10000},10000,{"$f":"IFERROR(INDEX('Cash Forecast_8A import-export'!E$9:E$23,MATCH('Cash Forecast_8A'!B11,'Cash Forecast_8A import-export'!O$9:O$23,0)),\"\")","v":0},null,10000,"Il s'agit du budget prévu pour Q3  et Q4",null,null,null,null,0]
[null,"Costgrp4",{"$f":"IFERROR(INDEX('Cash Forecast_8A import-export'!A$9:A$23,MATCH('Cash Forecast_8A'!B12,'Cash Forecast_8A import-export'!O$9:O$23,0)),\"\")","v":"4. Health Products - Pharmaceutical Products (HPPP)"},null,{"$f":"IFERROR(INDEX('Cash Forecast_8A import-export'!C$9:C$23,MATCH('Cash Forecast_8A'!B12,'Cash Forecast_8A import-export'!O$9:O$23,0)),\"\")","v":0},402390.91548793297,{"$f":"IFERROR(INDEX('Cash Forecast_8A import-export'!E$9:E$23,MATCH('Cash Forecast_8A'!B12,'Cash Forecast_8A import-export'!O$9:O$23,0)),\"\")","v":2411410.86},1693533.4645120667,2095924.3799999997,"Cette réduction des médicaments de USD -315,486.48 s'explique par la réduction du montant trop engagé de USD  -485,544.3 sur la période antérieure et l'augmentation des engagements de  USD 170,057.82\n",null,null,null,null,0]
[null,"Costgrp5",{"$f":"IFERROR(INDEX('Cash Forecast_8A import-export'!A$9:A$23,MATCH('Cash Forecast_8A'!B13,'Cash Forecast_8A import-export'!O$9:O$23,0)),\"\")","v":"5. Health Products - Non-Pharmaceuticals (HPNP)"},null,{"$f":"IFERROR(INDEX('Cash Forecast_8A import-export'!C$9:C$23,MATCH('Cash Forecast_8A'!B13,'Cash Forecast_8A import-export'!O$9:O$23,0)),\"\")","v":0},859364.35571428505,{"$f":"IFERROR(INDEX('Cash Forecast_8A import-export'!E$9:E$23,MATCH('Cash Forecast_8A'!B13,'Cash Forecast_8A import-export'!O$9:O$23,0)),\"\")","v":13108702.300000001},13108702.299999999,13968066.655714285,"Ce montant comprend outre le budget de Q5 des moustiquaires et TDRs, le montant des engagements (au 300618) de USD 255,398 et le budget prévu pour l'achat de Q3-Q4 des TDRs de USD  603,966.36",null,null,null,null,0]
[null,"Costgrp6",{"$f":"IFERROR(INDEX('Cash Forecast_8A import-export'!A$9:A$23,MATCH('Cash Forecast_8A'!B14,'Cash Forecast_8A import-export'!O$9:O$23,0)),\"\")","v":"6. Health Products - Equipment (HPE)"},null,{"$f":"IFERROR(INDEX('Cash Forecast_8A import-export'!C$9:C$23,MATCH('Cash Forecast_8A'!B14,'Cash Forecast_8A import-export'!O$9:O$23,0)),\"\")","v":0},null,{"$f":"IFERROR(INDEX('Cash Forecast_8A import-export'!E$9:E$23,MATCH('Cash Forecast_8A'!B14,'Cash Forecast_8A import-export'!O$9:O$23,0)),\"\")","v":0},null,0,null,null,null,null,null,0]
[null,"Costgrp7",{"$f":"IFERROR(INDEX('Cash Forecast_8A import-export'!A$9:A$23,MATCH('Cash Forecast_8A'!B15,'Cash Forecast_8A import-export'!O$9:O$23,0)),\"\")","v":"7. Procurement and Supply-Chain Management costs (PSM)"},null,{"$f":"IFERROR(INDEX('Cash Forecast_8A import-export'!C$9:C$23,MATCH('Cash Forecast_8A'!B15,'Cash Forecast_8A import-export'!O$9:O$23,0)),\"\")","v":0},306745.68572842143,{"$f":"IFERROR(INDEX('Cash Forecast_8A import-export'!E$9:E$23,MATCH('Cash Forecast_8A'!B15,'Cash Forecast_8A import-export'!O$9:O$23,0)),\"\")","v":3183250.65},3139107.3618572927,3445853.0475857141,"Augmentation résultant de :\n* USD  223,357.85 représentant les PSM costs reportés et \n* USD 39,244.55 représentant les engagements au 300618 des act 136 et 137",null,null,null,null,0]
[null,"Costgrp8",{"$f":"IFERROR(INDEX('Cash Forecast_8A import-export'!A$9:A$23,MATCH('Cash Forecast_8A'!B16,'Cash Forecast_8A import-export'!O$9:O$23,0)),\"\")","v":"8. Infrastructure (INF)"},null,{"$f":"IFERROR(INDEX('Cash Forecast_8A import-export'!C$9:C$23,MATCH('Cash Forecast_8A'!B16,'Cash Forecast_8A import-export'!O$9:O$23,0)),\"\")","v":0},30867,{"$f":"IFERROR(INDEX('Cash Forecast_8A import-export'!E$9:E$23,MATCH('Cash Forecast_8A'!B16,'Cash Forecast_8A import-export'!O$9:O$23,0)),\"\")","v":0},null,30867,"Augmentation résultant :\n* Des engagements au 300618 de 8,975.37\n* de l'activité reporté 147 pour USD 21,895.63",null,null,null,null,0]
[null,"Costgrp9",{"$f":"IFERROR(INDEX('Cash Forecast_8A import-export'!A$9:A$23,MATCH('Cash Forecast_8A'!B17,'Cash Forecast_8A import-export'!O$9:O$23,0)),\"\")","v":"9. Non-health equipment (NHP)"},null,{"$f":"IFERROR(INDEX('Cash Forecast_8A import-export'!C$9:C$23,MATCH('Cash Forecast_8A'!B17,'Cash Forecast_8A import-export'!O$9:O$23,0)),\"\")","v":75656.605651607795},223945.4501085181,{"$f":"IFERROR(INDEX('Cash Forecast_8A import-export'!E$9:E$23,MATCH('Cash Forecast_8A'!B17,'Cash Forecast_8A import-export'!O$9:O$23,0)),\"\")","v":74270.605651607795},74270.605651607839,298216.05576012592,"Augmentation de USD 148,288.84 due par :\n* USD 88,188.84 représentant les engagements au 300618 pour les act 115 et 142.\n* USD 60,100 représentant le budget reporté pour l'act 144",null,null,null,null,0]
[null,"Costgrp10",{"$f":"IFERROR(INDEX('Cash Forecast_8A import-export'!A$9:A$23,MATCH('Cash Forecast_8A'!B18,'Cash Forecast_8A import-export'!O$9:O$23,0)),\"\")","v":"10. Communication Material and Publications (CMP)"},null,{"$f":"IFERROR(INDEX('Cash Forecast_8A import-export'!C$9:C$23,MATCH('Cash Forecast_8A'!B18,'Cash Forecast_8A import-export'!O$9:O$23,0)),\"\")","v":3469.2620152808299},5215.6466399392621,{"$f":"IFERROR(INDEX('Cash Forecast_8A import-export'!E$9:E$23,MATCH('Cash Forecast_8A'!B18,'Cash Forecast_8A import-export'!O$9:O$23,0)),\"\")","v":1656.9836436007799},1656.9836436007834,6872.6302835400456,"On note une augmentation du budget de USD 1,746.38 correspondant aux engagements au 300618 de USD 1,591.09 (act 119) et USD 155.29 relatif à l'activité 76 reportée ",null,null,null,null,0]
[null,"Costgrp11",{"$f":"IFERROR(INDEX('Cash Forecast_8A import-export'!A$9:A$23,MATCH('Cash Forecast_8A'!B19,'Cash Forecast_8A import-export'!O$9:O$23,0)),\"\")","v":"11. Programme Administration costs (PA)"},null,{"$f":"IFERROR(INDEX('Cash Forecast_8A import-export'!C$9:C$23,MATCH('Cash Forecast_8A'!B19,'Cash Forecast_8A import-export'!O$9:O$23,0)),\"\")","v":188840.484238618},406325.06371064112,{"$f":"IFERROR(INDEX('Cash Forecast_8A import-export'!E$9:E$23,MATCH('Cash Forecast_8A'!B19,'Cash Forecast_8A import-export'!O$9:O$23,0)),\"\")","v":1412749.6468529699},1362237.5059371905,1768562.5696478316,"Augmentation de USD 166,972.44 résultant de :\n- des engagements au 300618 de USD 119.995.37 sur les act 146 et 154;\n* des frais de gestion (154 - GMS) de USD 97,489.21 sur les activités reportées, anticipées et pour lesquelles un dépassement est prévu;\n* et de la diminution des frais de gestion (act 154) pour USD -50,512.14 sur les activités dont un dépassement est possible et celle dont une économie est prévue\n",null,null,null,null,0]
[null,"Costgrp12",{"$f":"IFERROR(INDEX('Cash Forecast_8A import-export'!A$9:A$23,MATCH('Cash Forecast_8A'!B20,'Cash Forecast_8A import-export'!O$9:O$23,0)),\"\")","v":"12. Living support to client/ target population (LSCTP)"},null,{"$f":"IFERROR(INDEX('Cash Forecast_8A import-export'!C$9:C$23,MATCH('Cash Forecast_8A'!B20,'Cash Forecast_8A import-export'!O$9:O$23,0)),\"\")","v":0},null,{"$f":"IFERROR(INDEX('Cash Forecast_8A import-export'!E$9:E$23,MATCH('Cash Forecast_8A'!B20,'Cash Forecast_8A import-export'!O$9:O$23,0)),\"\")","v":0},null,0,null,null,null,null,null,0]
[null,"Costgrp13",{"$f":"IFERROR(INDEX('Cash Forecast_8A import-export'!A$9:A$23,MATCH('Cash Forecast_8A'!B21,'Cash Forecast_8A import-export'!O$9:O$23,0)),\"\")","v":"13. Payment for Results"},null,{"$f":"IFERROR(INDEX('Cash Forecast_8A import-export'!C$9:C$23,MATCH('Cash Forecast_8A'!B21,'Cash Forecast_8A import-export'!O$9:O$23,0)),\"\")","v":0},null,{"$f":"IFERROR(INDEX('Cash Forecast_8A import-export'!E$9:E$23,MATCH('Cash Forecast_8A'!B21,'Cash Forecast_8A import-export'!O$9:O$23,0)),\"\")","v":0},null,0,null,null,null,null,null,0]
[null,null,"Grand Total",null,{"$f":"ROUND(SUM(E9:E21),2)","v":1209164.79},{"$f":"ROUND(SUM(F9:F21),2)","v":3387449.71},{"$f":"ROUND(SUM(G9:G21),2)","v":20726518.859999999},{"$f":"ROUND(SUM(H9:H21),2)","v":19954404.710000001},{"$f":"ROUND(SUM(I9:I21),2)","v":23341854.420000002},null,null,{"$f":"ROUND(SUM(L9:L21),2)","v":0},{"$f":"ROUND(SUM(M9:M21),2)","v":0},{"$f":"ROUND(SUM(N9:N21),2)","v":0},{"$f":"ROUND(SUM(O9:O21),2)","v":0}]
[]
[]
[null,null,"Summary Breakdown by Interventions"]
[null,null,{"$f":"VLOOKUP(Translations!B382,Translations!B3:H508,4,0)","v":"Modular Approach - Modules"},{"$f":"VLOOKUP(Translations!B383,Translations!B3:H508,4,0)","v":"Modular Approach - Interventions"},{"$f":"E8","v":"Budget for Forecast Period"},{"$f":"F8","v":"Principal Recipient Forecast for the period (not including the Buffer)"},"Budget for the Buffer Period","Principal Recipient Forecast for the Buffer Period","Total Principal Recipient Forecast (including Buffer)","Comments",null,"Local Fund Agent Adjusted Principal Recipient Forecast for the period (not including the Buffer)","Local Fund Agent Adjusted Principal Recipient Forecast for the Buffer Period",null,"Local Fund Agent - Adjusted Forecast (including the buffer)","Comments"]
[null,"Int1",{"$f":"IFERROR(INDEX('Cash Forecast_8A import-export'!A$29:A$41,MATCH('Cash Forecast_8A'!B27,'Cash Forecast_8A import-export'!O$29:O$41,0)),\"\")","v":"Vector control"},{"$f":"IFERROR(INDEX('Cash Forecast_8A import-export'!B$29:B$41,MATCH('Cash Forecast_8A'!B27,'Cash Forecast_8A import-export'!O$29:O$41,0)),\"\")","v":"IEC/BCC (Vector control)"},{"$f":"IFERROR(INDEX('Cash Forecast_8A import-export'!C$29:C$41,MATCH('Cash Forecast_8A'!B27,'Cash Forecast_8A import-export'!O$29:O$41,0)),\"\")","v":10494.229742805001},36981.147441849811,{"$f":"IFERROR(INDEX('Cash Forecast_8A import-export'!E$29:E$41,MATCH('Cash Forecast_8A'!B27,'Cash Forecast_8A import-export'!O$29:O$41,0)),\"\")","v":20848.1857380035},20848.185738003511,{"$f":"IFERROR(F27+H27,\"\")","v":57829.333179853318},"Augmentation de USD 26,486.92 réprésentant le budget des activités (37, 39 et 40) reportées sur la période de forecastiong",null,null,null,null,{"$f":"IFERROR(L27+M27,\"\")","v":0}]
[null,"Int2",{"$f":"IFERROR(INDEX('Cash Forecast_8A import-export'!A$29:A$41,MATCH('Cash Forecast_8A'!B28,'Cash Forecast_8A import-export'!O$29:O$41,0)),\"\")","v":"RSSH: Health management information systems and M&E"},{"$f":"IFERROR(INDEX('Cash Forecast_8A import-export'!B$29:B$41,MATCH('Cash Forecast_8A'!B28,'Cash Forecast_8A import-export'!O$29:O$41,0)),\"\")","v":"Analysis, review and transparency"},{"$f":"IFERROR(INDEX('Cash Forecast_8A import-export'!C$29:C$41,MATCH('Cash Forecast_8A'!B28,'Cash Forecast_8A import-export'!O$29:O$41,0)),\"\")","v":3390},6780,{"$f":"IFERROR(INDEX('Cash Forecast_8A import-export'!E$29:E$41,MATCH('Cash Forecast_8A'!B28,'Cash Forecast_8A import-export'!O$29:O$41,0)),\"\")","v":3390},3390,{"$f":"IFERROR(F28+H28,\"\")","v":10170},"Augmentation de USD 3390 résultant de l'activité 63 reportée sur la période de forecasting",null,null,null,null,{"$f":"IFERROR(L28+M28,\"\")","v":0}]
[null,"Int3",{"$f":"IFERROR(INDEX('Cash Forecast_8A import-export'!A$29:A$41,MATCH('Cash Forecast_8A'!B29,'Cash Forecast_8A import-export'!O$29:O$41,0)),\"\")","v":"Program management"},{"$f":"IFERROR(INDEX('Cash Forecast_8A import-export'!B$29:B$41,MATCH('Cash Forecast_8A'!B29,'Cash Forecast_8A import-export'!O$29:O$41,0)),\"\")","v":"Policy, planning, coordination and management of national disease control programs"},{"$f":"IFERROR(INDEX('Cash Forecast_8A import-export'!C$29:C$41,MATCH('Cash Forecast_8A'!B29,'Cash Forecast_8A import-export'!O$29:O$41,0)),\"\")","v":92875.790708516404},98079.443220282003,{"$f":"IFERROR(INDEX('Cash Forecast_8A import-export'!E$29:E$41,MATCH('Cash Forecast_8A'!B29,'Cash Forecast_8A import-export'!O$29:O$41,0)),\"\")","v":42577.650380799598},42577.65038079954,140657.09360108155,"Augmentation de USD 5,203.65 résultant de l'engagement de USD 49.98 pour l'act 67 et de l'activité 66 reportée pour USD 5,153.68",null,null,null,null,0]
[null,"Int4",{"$f":"IFERROR(INDEX('Cash Forecast_8A import-export'!A$29:A$41,MATCH('Cash Forecast_8A'!B30,'Cash Forecast_8A import-export'!O$29:O$41,0)),\"\")","v":"RSSH: Health management information systems and M&E"},{"$f":"IFERROR(INDEX('Cash Forecast_8A import-export'!B$29:B$41,MATCH('Cash Forecast_8A'!B30,'Cash Forecast_8A import-export'!O$29:O$41,0)),\"\")","v":"Program and data quality"},{"$f":"IFERROR(INDEX('Cash Forecast_8A import-export'!C$29:C$41,MATCH('Cash Forecast_8A'!B30,'Cash Forecast_8A import-export'!O$29:O$41,0)),\"\")","v":55228.813697177298},59420.490047134597,{"$f":"IFERROR(INDEX('Cash Forecast_8A import-export'!E$29:E$41,MATCH('Cash Forecast_8A'!B30,'Cash Forecast_8A import-export'!O$29:O$41,0)),\"\")","v":26193.6383512176},26193.638351217571,85614.128398352172,"Augmentation de USD 4,191.68 provenant :\n- des engagements  de USD 1,020.5 sur les activités 64 et 117*\n- des activités reportées (76 et 116) sur la période de forecasting pour USD 3,171.18",null,null,null,null,0]
[null,"Int5",{"$f":"IFERROR(INDEX('Cash Forecast_8A import-export'!A$29:A$41,MATCH('Cash Forecast_8A'!B31,'Cash Forecast_8A import-export'!O$29:O$41,0)),\"\")","v":"RSSH: Health management information systems and M&E"},{"$f":"IFERROR(INDEX('Cash Forecast_8A import-export'!B$29:B$41,MATCH('Cash Forecast_8A'!B31,'Cash Forecast_8A import-export'!O$29:O$41,0)),\"\")","v":"Surveys"},{"$f":"IFERROR(INDEX('Cash Forecast_8A import-export'!C$29:C$41,MATCH('Cash Forecast_8A'!B31,'Cash Forecast_8A import-export'!O$29:O$41,0)),\"\")","v":0},null,{"$f":"IFERROR(INDEX('Cash Forecast_8A import-export'!E$29:E$41,MATCH('Cash Forecast_8A'!B31,'Cash Forecast_8A import-export'!O$29:O$41,0)),\"\")","v":22179.909629341899},22179.909629341917,22179.909629341917,null,null,null,null,null,0]
[null,"Int6",{"$f":"IFERROR(INDEX('Cash Forecast_8A import-export'!A$29:A$41,MATCH('Cash Forecast_8A'!B32,'Cash Forecast_8A import-export'!O$29:O$41,0)),\"\")","v":"RSSH: Financial management systems"},{"$f":"IFERROR(INDEX('Cash Forecast_8A import-export'!B$29:B$41,MATCH('Cash Forecast_8A'!B32,'Cash Forecast_8A import-export'!O$29:O$41,0)),\"\")","v":"Routine financial management improvement (non-PFM)"},{"$f":"IFERROR(INDEX('Cash Forecast_8A import-export'!C$29:C$41,MATCH('Cash Forecast_8A'!B32,'Cash Forecast_8A import-export'!O$29:O$41,0)),\"\")","v":0},null,{"$f":"IFERROR(INDEX('Cash Forecast_8A import-export'!E$29:E$41,MATCH('Cash Forecast_8A'!B32,'Cash Forecast_8A import-export'!O$29:O$41,0)),\"\")","v":0},null,{"$f":"IFERROR(F32+H32,\"\")","v":0},null,null,null,null,null,{"$f":"IFERROR(L32+M32,\"\")","v":0}]
[null,"Int7",{"$f":"IFERROR(INDEX('Cash Forecast_8A import-export'!A$29:A$41,MATCH('Cash Forecast_8A'!B33,'Cash Forecast_8A import-export'!O$29:O$41,0)),\"\")","v":"Case management"},{"$f":"IFERROR(INDEX('Cash Forecast_8A import-export'!B$29:B$41,MATCH('Cash Forecast_8A'!B33,'Cash Forecast_8A import-export'!O$29:O$41,0)),\"\")","v":"Integrated community case management (ICCM)"},{"$f":"IFERROR(INDEX('Cash Forecast_8A import-export'!C$29:C$41,MATCH('Cash Forecast_8A'!B33,'Cash Forecast_8A import-export'!O$29:O$41,0)),\"\")","v":402240.35134409199},599333.54452955059,{"$f":"IFERROR(INDEX('Cash Forecast_8A import-export'!E$29:E$41,MATCH('Cash Forecast_8A'!B33,'Cash Forecast_8A import-export'!O$29:O$41,0)),\"\")","v":158012.53486151301},158012.53486151324,757346.07939106389,"Augmentattion de USD 197,093.19 résultant des engagements au 300618 de USD 87,307.94 et de l'act 118 reportée pour USD 119,785.25 sur la période de forecasting",null,null,null,null,0]
[null,"Int8",{"$f":"IFERROR(INDEX('Cash Forecast_8A import-export'!A$29:A$41,MATCH('Cash Forecast_8A'!B34,'Cash Forecast_8A import-export'!O$29:O$41,0)),\"\")","v":"Case management"},{"$f":"IFERROR(INDEX('Cash Forecast_8A import-export'!B$29:B$41,MATCH('Cash Forecast_8A'!B34,'Cash Forecast_8A import-export'!O$29:O$41,0)),\"\")","v":"Private sector case management"},{"$f":"IFERROR(INDEX('Cash Forecast_8A import-export'!C$29:C$41,MATCH('Cash Forecast_8A'!B34,'Cash Forecast_8A import-export'!O$29:O$41,0)),\"\")","v":3313.9672872015599},4905.0571837807238,{"$f":"IFERROR(INDEX('Cash Forecast_8A import-export'!E$29:E$41,MATCH('Cash Forecast_8A'!B34,'Cash Forecast_8A import-export'!O$29:O$41,0)),\"\")","v":1656.9836436007799},1656.9836436007834,6562.0408273815074,"Augmentation de USD 1,591.09 représentant le montant des engagements au 300618 de l'act 119",null,null,null,null,0]
[null,"Int9",{"$f":"IFERROR(INDEX('Cash Forecast_8A import-export'!A$29:A$41,MATCH('Cash Forecast_8A'!B35,'Cash Forecast_8A import-export'!O$29:O$41,0)),\"\")","v":"Program management"},{"$f":"IFERROR(INDEX('Cash Forecast_8A import-export'!B$29:B$41,MATCH('Cash Forecast_8A'!B35,'Cash Forecast_8A import-export'!O$29:O$41,0)),\"\")","v":"Grant management"},{"$f":"IFERROR(INDEX('Cash Forecast_8A import-export'!C$29:C$41,MATCH('Cash Forecast_8A'!B35,'Cash Forecast_8A import-export'!O$29:O$41,0)),\"\")","v":641621.64065208798},1013449.0706722371,{"$f":"IFERROR(INDEX('Cash Forecast_8A import-export'!E$29:E$41,MATCH('Cash Forecast_8A'!B35,'Cash Forecast_8A import-export'!O$29:O$41,0)),\"\")","v":1646579.9025437599},1636486.432176108,2649935.5028483449,"Augmentation de 361,733.96 résultant de :\n* l'augmentation du budget de la période de forecasting pour USD \n371,827.43 comprenant outre les engagements (USD 133,422.84), les activités reportées (USD 206,339.64), les activitées anticipées (19,353.35) et celles un dépassement est prévu pour USD 12,711.6;\n* la diminution de USD -10,093.47 du budget de la période de buffer provenant des activités (140 et 154) dont le budget peut etre dépassé et celles (167 et 154) dont une économie est prévue \n",null,null,null,null,0]
[null,"Int10",{"$f":"IFERROR(INDEX('Cash Forecast_8A import-export'!A$29:A$41,MATCH('Cash Forecast_8A'!B36,'Cash Forecast_8A import-export'!O$29:O$41,0)),\"\")","v":"Case management"},{"$f":"IFERROR(INDEX('Cash Forecast_8A import-export'!B$29:B$41,MATCH('Cash Forecast_8A'!B36,'Cash Forecast_8A import-export'!O$29:O$41,0)),\"\")","v":"Facility-based treatment"},{"$f":"IFERROR(INDEX('Cash Forecast_8A import-export'!C$29:C$41,MATCH('Cash Forecast_8A'!B36,'Cash Forecast_8A import-export'!O$29:O$41,0)),\"\")","v":0},1568500.9569306395,{"$f":"IFERROR(INDEX('Cash Forecast_8A import-export'!E$29:E$41,MATCH('Cash Forecast_8A'!B36,'Cash Forecast_8A import-export'!O$29:O$41,0)),\"\")","v":3885896.8824279802},{"$f":"3885896.88242798-232333.095487933-9293.32381951732-34849.9643231899-485544.3","v":3123876.19879734},4692377.1557279797,"On note une augmentation du budget approuvé de USD 806,480.27 s'expliquant par :\n* les engagements au 300618 de USD 464,700.37 pour les act 134, 135, 136 et 137;\n* les activités (135, 136, 137, 138 et 139) reportées sur  la période de forecasting pour USD 827,324.2;\n* les activités (134, 136 et 137) anticipées pour USD 276,476.38\n* les activités (134, 136, 137) annulées de la période de buffer pour USD -276,476.38;\n* le montant de USD -485,544.3 représentant le montant payé sur les périodes antérieures pour l'act 134",null,null,null,null,0]
[null,"Int11",{"$f":"IFERROR(INDEX('Cash Forecast_8A import-export'!A$29:A$41,MATCH('Cash Forecast_8A'!B37,'Cash Forecast_8A import-export'!O$29:O$41,0)),\"\")","v":"Vector control"},{"$f":"IFERROR(INDEX('Cash Forecast_8A import-export'!B$29:B$41,MATCH('Cash Forecast_8A'!B37,'Cash Forecast_8A import-export'!O$29:O$41,0)),\"\")","v":"Long-lasting insecticidal nets (LLIN) - Mass campaign"},{"$f":"IFERROR(INDEX('Cash Forecast_8A import-export'!C$29:C$41,MATCH('Cash Forecast_8A'!B37,'Cash Forecast_8A import-export'!O$29:O$41,0)),\"\")","v":0},null,{"$f":"IFERROR(INDEX('Cash Forecast_8A import-export'!E$29:E$41,MATCH('Cash Forecast_8A'!B37,'Cash Forecast_8A import-export'!O$29:O$41,0)),\"\")","v":14919183.1723359},14919183.172335932,14919183.172335932,null,null,null,null,null,0]
[null,"Int12",{"$f":"IFERROR(INDEX('Cash Forecast_8A import-export'!A$29:A$41,MATCH('Cash Forecast_8A'!B38,'Cash Forecast_8A import-export'!O$29:O$41,0)),\"\")","v":""},{"$f":"IFERROR(INDEX('Cash Forecast_8A import-export'!B$29:B$41,MATCH('Cash Forecast_8A'!B38,'Cash Forecast_8A import-export'!O$29:O$41,0)),\"\")","v":""},{"$f":"IFERROR(INDEX('Cash Forecast_8A import-export'!C$29:C$41,MATCH('Cash Forecast_8A'!B38,'Cash Forecast_8A import-export'!O$29:O$41,0)),\"\")","v":""},null,{"$f":"IFERROR(INDEX('Cash Forecast_8A import-export'!E$29:E$41,MATCH('Cash Forecast_8A'!B38,'Cash Forecast_8A import-export'!O$29:O$41,0)),\"\")","v":""},null,0,null,null,null,null,null,0]
[null,"Int13",{"$f":"IFERROR(INDEX('Cash Forecast_8A import-export'!A$29:A$41,MATCH('Cash Forecast_8A'!B39,'Cash Forecast_8A import-export'!O$29:O$41,0)),\"\")","v":""},{"$f":"IFERROR(INDEX('Cash Forecast_8A import-export'!B$29:B$41,MATCH('Cash Forecast_8A'!B39,'Cash Forecast_8A import-export'!O$29:O$41,0)),\"\")","v":""},{"$f":"IFERROR(INDEX('Cash Forecast_8A import-export'!C$29:C$41,MATCH('Cash Forecast_8A'!B39,'Cash Forecast_8A import-export'!O$29:O$41,0)),\"\")","v":""},null,{"$f":"IFERROR(INDEX('Cash Forecast_8A import-export'!E$29:E$41,MATCH('Cash Forecast_8A'!B39,'Cash Forecast_8A import-export'!O$29:O$41,0)),\"\")","v":""},null,0,null,null,null,null,null,0]
[null,"Int14",{"$f":"IFERROR(INDEX('Cash Forecast_8A import-export'!A$29:A$41,MATCH('Cash Forecast_8A'!B40,'Cash Forecast_8A import-export'!O$29:O$41,0)),\"\")","v":""},{"$f":"IFERROR(INDEX('Cash Forecast_8A import-export'!B$29:B$41,MATCH('Cash Forecast_8A'!B40,'Cash Forecast_8A import-export'!O$29:O$41,0)),\"\")","v":""},{"$f":"IFERROR(INDEX('Cash Forecast_8A import-export'!C$29:C$41,MATCH('Cash Forecast_8A'!B40,'Cash Forecast_8A import-export'!O$29:O$41,0)),\"\")","v":""},null,{"$f":"IFERROR(INDEX('Cash Forecast_8A import-export'!E$29:E$41,MATCH('Cash Forecast_8A'!B40,'Cash Forecast_8A import-export'!O$29:O$41,0)),\"\")","v":""},null,0,null,null,null,null,null,0]
[null,"Int15",{"$f":"IFERROR(INDEX('Cash Forecast_8A import-export'!A$29:A$41,MATCH('Cash Forecast_8A'!B41,'Cash Forecast_8A import-export'!O$29:O$41,0)),\"\")","v":""},{"$f":"IFERROR(INDEX('Cash Forecast_8A import-export'!B$29:B$41,MATCH('Cash Forecast_8A'!B41,'Cash Forecast_8A import-export'!O$29:O$41,0)),\"\")","v":""},{"$f":"IFERROR(INDEX('Cash Forecast_8A import-export'!C$29:C$41,MATCH('Cash Forecast_8A'!B41,'Cash Forecast_8A import-export'!O$29:O$41,0)),\"\")","v":""},null,{"$f":"IFERROR(INDEX('Cash Forecast_8A import-export'!E$29:E$41,MATCH('Cash Forecast_8A'!B41,'Cash Forecast_8A import-export'!O$29:O$41,0)),\"\")","v":""},null,0,null,null,null,null,null,0]
[null,"Int16",{"$f":"IFERROR(INDEX('Cash Forecast_8A import-export'!A$29:A$41,MATCH('Cash Forecast_8A'!B42,'Cash Forecast_8A import-export'!O$29:O$41,0)),\"\")","v":""},{"$f":"IFERROR(INDEX('Cash Forecast_8A import-export'!B$29:B$41,MATCH('Cash Forecast_8A'!B42,'Cash Forecast_8A import-export'!O$29:O$41,0)),\"\")","v":""},{"$f":"IFERROR(INDEX('Cash Forecast_8A import-export'!C$29:C$41,MATCH('Cash Forecast_8A'!B42,'Cash Forecast_8A import-export'!O$29:O$41,0)),\"\")","v":""},null,{"$f":"IFERROR(INDEX('Cash Forecast_8A import-export'!E$29:E$41,MATCH('Cash Forecast_8A'!B42,'Cash Forecast_8A import-export'!O$29:O$41,0)),\"\")","v":""},null,0,null,null,null,null,null,0]
[null,"Int17",{"$f":"IFERROR(INDEX('Cash Forecast_8A import-export'!A$29:A$41,MATCH('Cash Forecast_8A'!B43,'Cash Forecast_8A import-export'!O$29:O$41,0)),\"\")","v":""},{"$f":"IFERROR(INDEX('Cash Forecast_8A import-export'!B$29:B$41,MATCH('Cash Forecast_8A'!B43,'Cash Forecast_8A import-export'!O$29:O$41,0)),\"\")","v":""},{"$f":"IFERROR(INDEX('Cash Forecast_8A import-export'!C$29:C$41,MATCH('Cash Forecast_8A'!B43,'Cash Forecast_8A import-export'!O$29:O$41,0)),\"\")","v":""},null,{"$f":"IFERROR(INDEX('Cash Forecast_8A import-export'!E$29:E$41,MATCH('Cash Forecast_8A'!B43,'Cash Forecast_8A import-export'!O$29:O$41,0)),\"\")","v":""},null,0,null,null,null,null,null,0]
[null,"Int18",{"$f":"IFERROR(INDEX('Cash Forecast_8A import-export'!A$29:A$41,MATCH('Cash Forecast_8A'!B44,'Cash Forecast_8A import-export'!O$29:O$41,0)),\"\")","v":""},{"$f":"IFERROR(INDEX('Cash Forecast_8A import-export'!B$29:B$41,MATCH('Cash Forecast_8A'!B44,'Cash Forecast_8A import-export'!O$29:O$41,0)),\"\")","v":""},{"$f":"IFERROR(INDEX('Cash Forecast_8A import-export'!C$29:C$41,MATCH('Cash Forecast_8A'!B44,'Cash Forecast_8A import-export'!O$29:O$41,0)),\"\")","v":""},null,{"$f":"IFERROR(INDEX('Cash Forecast_8A import-export'!E$29:E$41,MATCH('Cash Forecast_8A'!B44,'Cash Forecast_8A import-export'!O$29:O$41,0)),\"\")","v":""},null,0,null,null,null,null,null,0]
[null,"Int19",{"$f":"IFERROR(INDEX('Cash Forecast_8A import-export'!A$29:A$41,MATCH('Cash Forecast_8A'!B45,'Cash Forecast_8A import-export'!O$29:O$41,0)),\"\")","v":""},{"$f":"IFERROR(INDEX('Cash Forecast_8A import-export'!B$29:B$41,MATCH('Cash Forecast_8A'!B45,'Cash Forecast_8A import-export'!O$29:O$41,0)),\"\")","v":""},{"$f":"IFERROR(INDEX('Cash Forecast_8A import-export'!C$29:C$41,MATCH('Cash Forecast_8A'!B45,'Cash Forecast_8A import-export'!O$29:O$41,0)),\"\")","v":""},null,{"$f":"IFERROR(INDEX('Cash Forecast_8A import-export'!E$29:E$41,MATCH('Cash Forecast_8A'!B45,'Cash Forecast_8A import-export'!O$29:O$41,0)),\"\")","v":""},null,0,null,null,null,null,null,0]
[null,"Int20",{"$f":"IFERROR(INDEX('Cash Forecast_8A import-export'!A$29:A$41,MATCH('Cash Forecast_8A'!B46,'Cash Forecast_8A import-export'!O$29:O$41,0)),\"\")","v":""},{"$f":"IFERROR(INDEX('Cash Forecast_8A import-export'!B$29:B$41,MATCH('Cash Forecast_8A'!B46,'Cash Forecast_8A import-export'!O$29:O$41,0)),\"\")","v":""},{"$f":"IFERROR(INDEX('Cash Forecast_8A import-export'!C$29:C$41,MATCH('Cash Forecast_8A'!B46,'Cash Forecast_8A import-export'!O$29:O$41,0)),\"\")","v":""},null,{"$f":"IFERROR(INDEX('Cash Forecast_8A import-export'!E$29:E$41,MATCH('Cash Forecast_8A'!B46,'Cash Forecast_8A import-export'!O$29:O$41,0)),\"\")","v":""},null,0,null,null,null,null,null,0]
[null,"Int21",{"$f":"IFERROR(INDEX('Cash Forecast_8A import-export'!A$29:A$41,MATCH('Cash Forecast_8A'!B47,'Cash Forecast_8A import-export'!O$29:O$41,0)),\"\")","v":""},{"$f":"IFERROR(INDEX('Cash Forecast_8A import-export'!B$29:B$41,MATCH('Cash Forecast_8A'!B47,'Cash Forecast_8A import-export'!O$29:O$41,0)),\"\")","v":""},{"$f":"IFERROR(INDEX('Cash Forecast_8A import-export'!C$29:C$41,MATCH('Cash Forecast_8A'!B47,'Cash Forecast_8A import-export'!O$29:O$41,0)),\"\")","v":""},null,{"$f":"IFERROR(INDEX('Cash Forecast_8A import-export'!E$29:E$41,MATCH('Cash Forecast_8A'!B47,'Cash Forecast_8A import-export'!O$29:O$41,0)),\"\")","v":""},null,0,null,null,null,null,null,0]
[null,"Int22",{"$f":"IFERROR(INDEX('Cash Forecast_8A import-export'!A$29:A$41,MATCH('Cash Forecast_8A'!B48,'Cash Forecast_8A import-export'!O$29:O$41,0)),\"\")","v":""},{"$f":"IFERROR(INDEX('Cash Forecast_8A import-export'!B$29:B$41,MATCH('Cash Forecast_8A'!B48,'Cash Forecast_8A import-export'!O$29:O$41,0)),\"\")","v":""},{"$f":"IFERROR(INDEX('Cash Forecast_8A import-export'!C$29:C$41,MATCH('Cash Forecast_8A'!B48,'Cash Forecast_8A import-export'!O$29:O$41,0)),\"\")","v":""},null,{"$f":"IFERROR(INDEX('Cash Forecast_8A import-export'!E$29:E$41,MATCH('Cash Forecast_8A'!B48,'Cash Forecast_8A import-export'!O$29:O$41,0)),\"\")","v":""},null,0,null,null,null,null,null,0]
[null,"Int23",{"$f":"IFERROR(INDEX('Cash Forecast_8A import-export'!A$29:A$41,MATCH('Cash Forecast_8A'!B49,'Cash Forecast_8A import-export'!O$29:O$41,0)),\"\")","v":""},{"$f":"IFERROR(INDEX('Cash Forecast_8A import-export'!B$29:B$41,MATCH('Cash Forecast_8A'!B49,'Cash Forecast_8A import-export'!O$29:O$41,0)),\"\")","v":""},{"$f":"IFERROR(INDEX('Cash Forecast_8A import-export'!C$29:C$41,MATCH('Cash Forecast_8A'!B49,'Cash Forecast_8A import-export'!O$29:O$41,0)),\"\")","v":""},null,{"$f":"IFERROR(INDEX('Cash Forecast_8A import-export'!E$29:E$41,MATCH('Cash Forecast_8A'!B49,'Cash Forecast_8A import-export'!O$29:O$41,0)),\"\")","v":""},null,0,null,null,null,null,null,0]
[null,"Int24",{"$f":"IFERROR(INDEX('Cash Forecast_8A import-export'!A$29:A$41,MATCH('Cash Forecast_8A'!B50,'Cash Forecast_8A import-export'!O$29:O$41,0)),\"\")","v":""},{"$f":"IFERROR(INDEX('Cash Forecast_8A import-export'!B$29:B$41,MATCH('Cash Forecast_8A'!B50,'Cash Forecast_8A import-export'!O$29:O$41,0)),\"\")","v":""},{"$f":"IFERROR(INDEX('Cash Forecast_8A import-export'!C$29:C$41,MATCH('Cash Forecast_8A'!B50,'Cash Forecast_8A import-export'!O$29:O$41,0)),\"\")","v":""},null,{"$f":"IFERROR(INDEX('Cash Forecast_8A import-export'!E$29:E$41,MATCH('Cash Forecast_8A'!B50,'Cash Forecast_8A import-export'!O$29:O$41,0)),\"\")","v":""},null,0,null,null,null,null,null,0]
[null,"Int25",{"$f":"IFERROR(INDEX('Cash Forecast_8A import-export'!A$29:A$41,MATCH('Cash Forecast_8A'!B51,'Cash Forecast_8A import-export'!O$29:O$41,0)),\"\")","v":""},{"$f":"IFERROR(INDEX('Cash Forecast_8A import-export'!B$29:B$41,MATCH('Cash Forecast_8A'!B51,'Cash Forecast_8A import-export'!O$29:O$41,0)),\"\")","v":""},{"$f":"IFERROR(INDEX('Cash Forecast_8A import-export'!C$29:C$41,MATCH('Cash Forecast_8A'!B51,'Cash Forecast_8A import-export'!O$29:O$41,0)),\"\")","v":""},null,{"$f":"IFERROR(INDEX('Cash Forecast_8A import-export'!E$29:E$41,MATCH('Cash Forecast_8A'!B51,'Cash Forecast_8A import-export'!O$29:O$41,0)),\"\")","v":""},null,0,null,null,null,null,null,0]
[null,"Int26",{"$f":"IFERROR(INDEX('Cash Forecast_8A import-export'!A$29:A$41,MATCH('Cash Forecast_8A'!B52,'Cash Forecast_8A import-export'!O$29:O$41,0)),\"\")","v":""},{"$f":"IFERROR(INDEX('Cash Forecast_8A import-export'!B$29:B$41,MATCH('Cash Forecast_8A'!B52,'Cash Forecast_8A import-export'!O$29:O$41,0)),\"\")","v":""},{"$f":"IFERROR(INDEX('Cash Forecast_8A import-export'!C$29:C$41,MATCH('Cash Forecast_8A'!B52,'Cash Forecast_8A import-export'!O$29:O$41,0)),\"\")","v":""},null,{"$f":"IFERROR(INDEX('Cash Forecast_8A import-export'!E$29:E$41,MATCH('Cash Forecast_8A'!B52,'Cash Forecast_8A import-export'!O$29:O$41,0)),\"\")","v":""},null,0,null,null,null,null,null,0]
[null,"Int27",{"$f":"IFERROR(INDEX('Cash Forecast_8A import-export'!A$29:A$41,MATCH('Cash Forecast_8A'!B53,'Cash Forecast_8A import-export'!O$29:O$41,0)),\"\")","v":""},{"$f":"IFERROR(INDEX('Cash Forecast_8A import-export'!B$29:B$41,MATCH('Cash Forecast_8A'!B53,'Cash Forecast_8A import-export'!O$29:O$41,0)),\"\")","v":""},{"$f":"IFERROR(INDEX('Cash Forecast_8A import-export'!C$29:C$41,MATCH('Cash Forecast_8A'!B53,'Cash Forecast_8A import-export'!O$29:O$41,0)),\"\")","v":""},null,{"$f":"IFERROR(INDEX('Cash Forecast_8A import-export'!E$29:E$41,MATCH('Cash Forecast_8A'!B53,'Cash Forecast_8A import-export'!O$29:O$41,0)),\"\")","v":""},null,0,null,null,null,null,null,0]
[null,"Int28",{"$f":"IFERROR(INDEX('Cash Forecast_8A import-export'!A$29:A$41,MATCH('Cash Forecast_8A'!B54,'Cash Forecast_8A import-export'!O$29:O$41,0)),\"\")","v":""},{"$f":"IFERROR(INDEX('Cash Forecast_8A import-export'!B$29:B$41,MATCH('Cash Forecast_8A'!B54,'Cash Forecast_8A import-export'!O$29:O$41,0)),\"\")","v":""},{"$f":"IFERROR(INDEX('Cash Forecast_8A import-export'!C$29:C$41,MATCH('Cash Forecast_8A'!B54,'Cash Forecast_8A import-export'!O$29:O$41,0)),\"\")","v":""},null,{"$f":"IFERROR(INDEX('Cash Forecast_8A import-export'!E$29:E$41,MATCH('Cash Forecast_8A'!B54,'Cash Forecast_8A import-export'!O$29:O$41,0)),\"\")","v":""},null,0,null,null,null,null,null,0]
[null,"Int29",{"$f":"IFERROR(INDEX('Cash Forecast_8A import-export'!A$29:A$41,MATCH('Cash Forecast_8A'!B55,'Cash Forecast_8A import-export'!O$29:O$41,0)),\"\")","v":""},{"$f":"IFERROR(INDEX('Cash Forecast_8A import-export'!B$29:B$41,MATCH('Cash Forecast_8A'!B55,'Cash Forecast_8A import-export'!O$29:O$41,0)),\"\")","v":""},{"$f":"IFERROR(INDEX('Cash Forecast_8A import-export'!C$29:C$41,MATCH('Cash Forecast_8A'!B55,'Cash Forecast_8A import-export'!O$29:O$41,0)),\"\")","v":""},null,{"$f":"IFERROR(INDEX('Cash Forecast_8A import-export'!E$29:E$41,MATCH('Cash Forecast_8A'!B55,'Cash Forecast_8A import-export'!O$29:O$41,0)),\"\")","v":""},null,0,null,null,null,null,null,0]
[null,"Int30",{"$f":"IFERROR(INDEX('Cash Forecast_8A import-export'!A$29:A$41,MATCH('Cash Forecast_8A'!B56,'Cash Forecast_8A import-export'!O$29:O$41,0)),\"\")","v":""},{"$f":"IFERROR(INDEX('Cash Forecast_8A import-export'!B$29:B$41,MATCH('Cash Forecast_8A'!B56,'Cash Forecast_8A import-export'!O$29:O$41,0)),\"\")","v":""},{"$f":"IFERROR(INDEX('Cash Forecast_8A import-export'!C$29:C$41,MATCH('Cash Forecast_8A'!B56,'Cash Forecast_8A import-export'!O$29:O$41,0)),\"\")","v":""},null,{"$f":"IFERROR(INDEX('Cash Forecast_8A import-export'!E$29:E$41,MATCH('Cash Forecast_8A'!B56,'Cash Forecast_8A import-export'!O$29:O$41,0)),\"\")","v":""},null,0,null,null,null,null,null,0]
[null,"Int31",{"$f":"IFERROR(INDEX('Cash Forecast_8A import-export'!A$29:A$41,MATCH('Cash Forecast_8A'!B57,'Cash Forecast_8A import-export'!O$29:O$41,0)),\"\")","v":""},{"$f":"IFERROR(INDEX('Cash Forecast_8A import-export'!B$29:B$41,MATCH('Cash Forecast_8A'!B57,'Cash Forecast_8A import-export'!O$29:O$41,0)),\"\")","v":""},{"$f":"IFERROR(INDEX('Cash Forecast_8A import-export'!C$29:C$41,MATCH('Cash Forecast_8A'!B57,'Cash Forecast_8A import-export'!O$29:O$41,0)),\"\")","v":""},null,{"$f":"IFERROR(INDEX('Cash Forecast_8A import-export'!E$29:E$41,MATCH('Cash Forecast_8A'!B57,'Cash Forecast_8A import-export'!O$29:O$41,0)),\"\")","v":""},null,0,null,null,null,null,null,0]
[null,"Int32",{"$f":"IFERROR(INDEX('Cash Forecast_8A import-export'!A$29:A$41,MATCH('Cash Forecast_8A'!B58,'Cash Forecast_8A import-export'!O$29:O$41,0)),\"\")","v":""},{"$f":"IFERROR(INDEX('Cash Forecast_8A import-export'!B$29:B$41,MATCH('Cash Forecast_8A'!B58,'Cash Forecast_8A import-export'!O$29:O$41,0)),\"\")","v":""},{"$f":"IFERROR(INDEX('Cash Forecast_8A import-export'!C$29:C$41,MATCH('Cash Forecast_8A'!B58,'Cash Forecast_8A import-export'!O$29:O$41,0)),\"\")","v":""},null,{"$f":"IFERROR(INDEX('Cash Forecast_8A import-export'!E$29:E$41,MATCH('Cash Forecast_8A'!B58,'Cash Forecast_8A import-export'!O$29:O$41,0)),\"\")","v":""},null,0,null,null,null,null,null,0]
[null,"Int33",{"$f":"IFERROR(INDEX('Cash Forecast_8A import-export'!A$29:A$41,MATCH('Cash Forecast_8A'!B59,'Cash Forecast_8A import-export'!O$29:O$41,0)),\"\")","v":""},{"$f":"IFERROR(INDEX('Cash Forecast_8A import-export'!B$29:B$41,MATCH('Cash Forecast_8A'!B59,'Cash Forecast_8A import-export'!O$29:O$41,0)),\"\")","v":""},{"$f":"IFERROR(INDEX('Cash Forecast_8A import-export'!C$29:C$41,MATCH('Cash Forecast_8A'!B59,'Cash Forecast_8A import-export'!O$29:O$41,0)),\"\")","v":""},null,{"$f":"IFERROR(INDEX('Cash Forecast_8A import-export'!E$29:E$41,MATCH('Cash Forecast_8A'!B59,'Cash Forecast_8A import-export'!O$29:O$41,0)),\"\")","v":""},null,0,null,null,null,null,null,0]
[null,"Int34",{"$f":"IFERROR(INDEX('Cash Forecast_8A import-export'!A$29:A$41,MATCH('Cash Forecast_8A'!B60,'Cash Forecast_8A import-export'!O$29:O$41,0)),\"\")","v":""},{"$f":"IFERROR(INDEX('Cash Forecast_8A import-export'!B$29:B$41,MATCH('Cash Forecast_8A'!B60,'Cash Forecast_8A import-export'!O$29:O$41,0)),\"\")","v":""},{"$f":"IFERROR(INDEX('Cash Forecast_8A import-export'!C$29:C$41,MATCH('Cash Forecast_8A'!B60,'Cash Forecast_8A import-export'!O$29:O$41,0)),\"\")","v":""},null,{"$f":"IFERROR(INDEX('Cash Forecast_8A import-export'!E$29:E$41,MATCH('Cash Forecast_8A'!B60,'Cash Forecast_8A import-export'!O$29:O$41,0)),\"\")","v":""},null,0,null,null,null,null,null,0]
[null,"Int35",{"$f":"IFERROR(INDEX('Cash Forecast_8A import-export'!A$29:A$41,MATCH('Cash Forecast_8A'!B61,'Cash Forecast_8A import-export'!O$29:O$41,0)),\"\")","v":""},{"$f":"IFERROR(INDEX('Cash Forecast_8A import-export'!B$29:B$41,MATCH('Cash Forecast_8A'!B61,'Cash Forecast_8A import-export'!O$29:O$41,0)),\"\")","v":""},{"$f":"IFERROR(INDEX('Cash Forecast_8A import-export'!C$29:C$41,MATCH('Cash Forecast_8A'!B61,'Cash Forecast_8A import-export'!O$29:O$41,0)),\"\")","v":""},null,{"$f":"IFERROR(INDEX('Cash Forecast_8A import-export'!E$29:E$41,MATCH('Cash Forecast_8A'!B61,'Cash Forecast_8A import-export'!O$29:O$41,0)),\"\")","v":""},null,0,null,null,null,null,null,0]
[null,"Int36",{"$f":"IFERROR(INDEX('Cash Forecast_8A import-export'!A$29:A$41,MATCH('Cash Forecast_8A'!B62,'Cash Forecast_8A import-export'!O$29:O$41,0)),\"\")","v":""},{"$f":"IFERROR(INDEX('Cash Forecast_8A import-export'!B$29:B$41,MATCH('Cash Forecast_8A'!B62,'Cash Forecast_8A import-export'!O$29:O$41,0)),\"\")","v":""},{"$f":"IFERROR(INDEX('Cash Forecast_8A import-export'!C$29:C$41,MATCH('Cash Forecast_8A'!B62,'Cash Forecast_8A import-export'!O$29:O$41,0)),\"\")","v":""},null,{"$f":"IFERROR(INDEX('Cash Forecast_8A import-export'!E$29:E$41,MATCH('Cash Forecast_8A'!B62,'Cash Forecast_8A import-export'!O$29:O$41,0)),\"\")","v":""},null,0,null,null,null,null,null,0]
[null,"Int37",{"$f":"IFERROR(INDEX('Cash Forecast_8A import-export'!A$29:A$41,MATCH('Cash Forecast_8A'!B63,'Cash Forecast_8A import-export'!O$29:O$41,0)),\"\")","v":""},{"$f":"IFERROR(INDEX('Cash Forecast_8A import-export'!B$29:B$41,MATCH('Cash Forecast_8A'!B63,'Cash Forecast_8A import-export'!O$29:O$41,0)),\"\")","v":""},{"$f":"IFERROR(INDEX('Cash Forecast_8A import-export'!C$29:C$41,MATCH('Cash Forecast_8A'!B63,'Cash Forecast_8A import-export'!O$29:O$41,0)),\"\")","v":""},null,{"$f":"IFERROR(INDEX('Cash Forecast_8A import-export'!E$29:E$41,MATCH('Cash Forecast_8A'!B63,'Cash Forecast_8A import-export'!O$29:O$41,0)),\"\")","v":""},null,0,null,null,null,null,null,0]
[null,"Int38",{"$f":"IFERROR(INDEX('Cash Forecast_8A import-export'!A$29:A$41,MATCH('Cash Forecast_8A'!B64,'Cash Forecast_8A import-export'!O$29:O$41,0)),\"\")","v":""},{"$f":"IFERROR(INDEX('Cash Forecast_8A import-export'!B$29:B$41,MATCH('Cash Forecast_8A'!B64,'Cash Forecast_8A import-export'!O$29:O$41,0)),\"\")","v":""},{"$f":"IFERROR(INDEX('Cash Forecast_8A import-export'!C$29:C$41,MATCH('Cash Forecast_8A'!B64,'Cash Forecast_8A import-export'!O$29:O$41,0)),\"\")","v":""},null,{"$f":"IFERROR(INDEX('Cash Forecast_8A import-export'!E$29:E$41,MATCH('Cash Forecast_8A'!B64,'Cash Forecast_8A import-export'!O$29:O$41,0)),\"\")","v":""},null,0,null,null,null,null,null,0]
[null,"Int39",{"$f":"IFERROR(INDEX('Cash Forecast_8A import-export'!A$29:A$41,MATCH('Cash Forecast_8A'!B65,'Cash Forecast_8A import-export'!O$29:O$41,0)),\"\")","v":""},{"$f":"IFERROR(INDEX('Cash Forecast_8A import-export'!B$29:B$41,MATCH('Cash Forecast_8A'!B65,'Cash Forecast_8A import-export'!O$29:O$41,0)),\"\")","v":""},{"$f":"IFERROR(INDEX('Cash Forecast_8A import-export'!C$29:C$41,MATCH('Cash Forecast_8A'!B65,'Cash Forecast_8A import-export'!O$29:O$41,0)),\"\")","v":""},null,{"$f":"IFERROR(INDEX('Cash Forecast_8A import-export'!E$29:E$41,MATCH('Cash Forecast_8A'!B65,'Cash Forecast_8A import-export'!O$29:O$41,0)),\"\")","v":""},null,0,null,null,null,null,null,0]
[null,"Int40",{"$f":"IFERROR(INDEX('Cash Forecast_8A import-export'!A$29:A$41,MATCH('Cash Forecast_8A'!B66,'Cash Forecast_8A import-export'!O$29:O$41,0)),\"\")","v":""},{"$f":"IFERROR(INDEX('Cash Forecast_8A import-export'!B$29:B$41,MATCH('Cash Forecast_8A'!B66,'Cash Forecast_8A import-export'!O$29:O$41,0)),\"\")","v":""},{"$f":"IFERROR(INDEX('Cash Forecast_8A import-export'!C$29:C$41,MATCH('Cash Forecast_8A'!B66,'Cash Forecast_8A import-export'!O$29:O$41,0)),\"\")","v":""},null,{"$f":"IFERROR(INDEX('Cash Forecast_8A import-export'!E$29:E$41,MATCH('Cash Forecast_8A'!B66,'Cash Forecast_8A import-export'!O$29:O$41,0)),\"\")","v":""},null,0,null,null,null,null,null,0]
[null,"Int41",{"$f":"IFERROR(INDEX('Cash Forecast_8A import-export'!A$29:A$41,MATCH('Cash Forecast_8A'!B67,'Cash Forecast_8A import-export'!O$29:O$41,0)),\"\")","v":""},{"$f":"IFERROR(INDEX('Cash Forecast_8A import-export'!B$29:B$41,MATCH('Cash Forecast_8A'!B67,'Cash Forecast_8A import-export'!O$29:O$41,0)),\"\")","v":""},{"$f":"IFERROR(INDEX('Cash Forecast_8A import-export'!C$29:C$41,MATCH('Cash Forecast_8A'!B67,'Cash Forecast_8A import-export'!O$29:O$41,0)),\"\")","v":""},null,{"$f":"IFERROR(INDEX('Cash Forecast_8A import-export'!E$29:E$41,MATCH('Cash Forecast_8A'!B67,'Cash Forecast_8A import-export'!O$29:O$41,0)),\"\")","v":""},null,0,null,null,null,null,null,0]
[null,"Int42",{"$f":"IFERROR(INDEX('Cash Forecast_8A import-export'!A$29:A$41,MATCH('Cash Forecast_8A'!B68,'Cash Forecast_8A import-export'!O$29:O$41,0)),\"\")","v":""},{"$f":"IFERROR(INDEX('Cash Forecast_8A import-export'!B$29:B$41,MATCH('Cash Forecast_8A'!B68,'Cash Forecast_8A import-export'!O$29:O$41,0)),\"\")","v":""},{"$f":"IFERROR(INDEX('Cash Forecast_8A import-export'!C$29:C$41,MATCH('Cash Forecast_8A'!B68,'Cash Forecast_8A import-export'!O$29:O$41,0)),\"\")","v":""},null,{"$f":"IFERROR(INDEX('Cash Forecast_8A import-export'!E$29:E$41,MATCH('Cash Forecast_8A'!B68,'Cash Forecast_8A import-export'!O$29:O$41,0)),\"\")","v":""},null,0,null,null,null,null,null,0]
[null,"Int43",{"$f":"IFERROR(INDEX('Cash Forecast_8A import-export'!A$29:A$41,MATCH('Cash Forecast_8A'!B69,'Cash Forecast_8A import-export'!O$29:O$41,0)),\"\")","v":""},{"$f":"IFERROR(INDEX('Cash Forecast_8A import-export'!B$29:B$41,MATCH('Cash Forecast_8A'!B69,'Cash Forecast_8A import-export'!O$29:O$41,0)),\"\")","v":""},{"$f":"IFERROR(INDEX('Cash Forecast_8A import-export'!C$29:C$41,MATCH('Cash Forecast_8A'!B69,'Cash Forecast_8A import-export'!O$29:O$41,0)),\"\")","v":""},null,{"$f":"IFERROR(INDEX('Cash Forecast_8A import-export'!E$29:E$41,MATCH('Cash Forecast_8A'!B69,'Cash Forecast_8A import-export'!O$29:O$41,0)),\"\")","v":""},null,0,null,null,null,null,null,0]
[null,"Int44",{"$f":"IFERROR(INDEX('Cash Forecast_8A import-export'!A$29:A$41,MATCH('Cash Forecast_8A'!B70,'Cash Forecast_8A import-export'!O$29:O$41,0)),\"\")","v":""},{"$f":"IFERROR(INDEX('Cash Forecast_8A import-export'!B$29:B$41,MATCH('Cash Forecast_8A'!B70,'Cash Forecast_8A import-export'!O$29:O$41,0)),\"\")","v":""},{"$f":"IFERROR(INDEX('Cash Forecast_8A import-export'!C$29:C$41,MATCH('Cash Forecast_8A'!B70,'Cash Forecast_8A import-export'!O$29:O$41,0)),\"\")","v":""},null,{"$f":"IFERROR(INDEX('Cash Forecast_8A import-export'!E$29:E$41,MATCH('Cash Forecast_8A'!B70,'Cash Forecast_8A import-export'!O$29:O$41,0)),\"\")","v":""},null,0,null,null,null,null,null,0]
[null,"Int45",{"$f":"IFERROR(INDEX('Cash Forecast_8A import-export'!A$29:A$41,MATCH('Cash Forecast_8A'!B71,'Cash Forecast_8A import-export'!O$29:O$41,0)),\"\")","v":""},{"$f":"IFERROR(INDEX('Cash Forecast_8A import-export'!B$29:B$41,MATCH('Cash Forecast_8A'!B71,'Cash Forecast_8A import-export'!O$29:O$41,0)),\"\")","v":""},{"$f":"IFERROR(INDEX('Cash Forecast_8A import-export'!C$29:C$41,MATCH('Cash Forecast_8A'!B71,'Cash Forecast_8A import-export'!O$29:O$41,0)),\"\")","v":""},null,{"$f":"IFERROR(INDEX('Cash Forecast_8A import-export'!E$29:E$41,MATCH('Cash Forecast_8A'!B71,'Cash Forecast_8A import-export'!O$29:O$41,0)),\"\")","v":""},null,0,null,null,null,null,null,0]
[null,"Int46",{"$f":"IFERROR(INDEX('Cash Forecast_8A import-export'!A$29:A$41,MATCH('Cash Forecast_8A'!B72,'Cash Forecast_8A import-export'!O$29:O$41,0)),\"\")","v":""},{"$f":"IFERROR(INDEX('Cash Forecast_8A import-export'!B$29:B$41,MATCH('Cash Forecast_8A'!B72,'Cash Forecast_8A import-export'!O$29:O$41,0)),\"\")","v":""},{"$f":"IFERROR(INDEX('Cash Forecast_8A import-export'!C$29:C$41,MATCH('Cash Forecast_8A'!B72,'Cash Forecast_8A import-export'!O$29:O$41,0)),\"\")","v":""},null,{"$f":"IFERROR(INDEX('Cash Forecast_8A import-export'!E$29:E$41,MATCH('Cash Forecast_8A'!B72,'Cash Forecast_8A import-export'!O$29:O$41,0)),\"\")","v":""},null,0,null,null,null,null,null,0]
[null,"Int47",{"$f":"IFERROR(INDEX('Cash Forecast_8A import-export'!A$29:A$41,MATCH('Cash Forecast_8A'!B73,'Cash Forecast_8A import-export'!O$29:O$41,0)),\"\")","v":""},{"$f":"IFERROR(INDEX('Cash Forecast_8A import-export'!B$29:B$41,MATCH('Cash Forecast_8A'!B73,'Cash Forecast_8A import-export'!O$29:O$41,0)),\"\")","v":""},{"$f":"IFERROR(INDEX('Cash Forecast_8A import-export'!C$29:C$41,MATCH('Cash Forecast_8A'!B73,'Cash Forecast_8A import-export'!O$29:O$41,0)),\"\")","v":""},null,{"$f":"IFERROR(INDEX('Cash Forecast_8A import-export'!E$29:E$41,MATCH('Cash Forecast_8A'!B73,'Cash Forecast_8A import-export'!O$29:O$41,0)),\"\")","v":""},null,0,null,null,null,null,null,0]
[null,"Int48",{"$f":"IFERROR(INDEX('Cash Forecast_8A import-export'!A$29:A$41,MATCH('Cash Forecast_8A'!B74,'Cash Forecast_8A import-export'!O$29:O$41,0)),\"\")","v":""},{"$f":"IFERROR(INDEX('Cash Forecast_8A import-export'!B$29:B$41,MATCH('Cash Forecast_8A'!B74,'Cash Forecast_8A import-export'!O$29:O$41,0)),\"\")","v":""},{"$f":"IFERROR(INDEX('Cash Forecast_8A import-export'!C$29:C$41,MATCH('Cash Forecast_8A'!B74,'Cash Forecast_8A import-export'!O$29:O$41,0)),\"\")","v":""},null,{"$f":"IFERROR(INDEX('Cash Forecast_8A import-export'!E$29:E$41,MATCH('Cash Forecast_8A'!B74,'Cash Forecast_8A import-export'!O$29:O$41,0)),\"\")","v":""},null,0,null,null,null,null,null,0]
[null,"Int49",{"$f":"IFERROR(INDEX('Cash Forecast_8A import-export'!A$29:A$41,MATCH('Cash Forecast_8A'!B75,'Cash Forecast_8A import-export'!O$29:O$41,0)),\"\")","v":""},{"$f":"IFERROR(INDEX('Cash Forecast_8A import-export'!B$29:B$41,MATCH('Cash Forecast_8A'!B75,'Cash Forecast_8A import-export'!O$29:O$41,0)),\"\")","v":""},{"$f":"IFERROR(INDEX('Cash Forecast_8A import-export'!C$29:C$41,MATCH('Cash Forecast_8A'!B75,'Cash Forecast_8A import-export'!O$29:O$41,0)),\"\")","v":""},null,{"$f":"IFERROR(INDEX('Cash Forecast_8A import-export'!E$29:E$41,MATCH('Cash Forecast_8A'!B75,'Cash Forecast_8A import-export'!O$29:O$41,0)),\"\")","v":""},null,0,null,null,null,null,null,0]
[null,"Int50",{"$f":"IFERROR(INDEX('Cash Forecast_8A import-export'!A$29:A$41,MATCH('Cash Forecast_8A'!B76,'Cash Forecast_8A import-export'!O$29:O$41,0)),\"\")","v":""},{"$f":"IFERROR(INDEX('Cash Forecast_8A import-export'!B$29:B$41,MATCH('Cash Forecast_8A'!B76,'Cash Forecast_8A import-export'!O$29:O$41,0)),\"\")","v":""},{"$f":"IFERROR(INDEX('Cash Forecast_8A import-export'!C$29:C$41,MATCH('Cash Forecast_8A'!B76,'Cash Forecast_8A import-export'!O$29:O$41,0)),\"\")","v":""},null,{"$f":"IFERROR(INDEX('Cash Forecast_8A import-export'!E$29:E$41,MATCH('Cash Forecast_8A'!B76,'Cash Forecast_8A import-export'!O$29:O$41,0)),\"\")","v":""},null,0,null,null,null,null,null,0]
[null,"Int51",{"$f":"IFERROR(INDEX('Cash Forecast_8A import-export'!A$29:A$41,MATCH('Cash Forecast_8A'!B77,'Cash Forecast_8A import-export'!O$29:O$41,0)),\"\")","v":""},{"$f":"IFERROR(INDEX('Cash Forecast_8A import-export'!B$29:B$41,MATCH('Cash Forecast_8A'!B77,'Cash Forecast_8A import-export'!O$29:O$41,0)),\"\")","v":""},{"$f":"IFERROR(INDEX('Cash Forecast_8A import-export'!C$29:C$41,MATCH('Cash Forecast_8A'!B77,'Cash Forecast_8A import-export'!O$29:O$41,0)),\"\")","v":""},null,{"$f":"IFERROR(INDEX('Cash Forecast_8A import-export'!E$29:E$41,MATCH('Cash Forecast_8A'!B77,'Cash Forecast_8A import-export'!O$29:O$41,0)),\"\")","v":""},null,0,null,null,null,null,null,0]
[null,"Int52",{"$f":"IFERROR(INDEX('Cash Forecast_8A import-export'!A$29:A$41,MATCH('Cash Forecast_8A'!B78,'Cash Forecast_8A import-export'!O$29:O$41,0)),\"\")","v":""},{"$f":"IFERROR(INDEX('Cash Forecast_8A import-export'!B$29:B$41,MATCH('Cash Forecast_8A'!B78,'Cash Forecast_8A import-export'!O$29:O$41,0)),\"\")","v":""},{"$f":"IFERROR(INDEX('Cash Forecast_8A import-export'!C$29:C$41,MATCH('Cash Forecast_8A'!B78,'Cash Forecast_8A import-export'!O$29:O$41,0)),\"\")","v":""},null,{"$f":"IFERROR(INDEX('Cash Forecast_8A import-export'!E$29:E$41,MATCH('Cash Forecast_8A'!B78,'Cash Forecast_8A import-export'!O$29:O$41,0)),\"\")","v":""},null,0,null,null,null,null,null,0]
[null,"Int53",{"$f":"IFERROR(INDEX('Cash Forecast_8A import-export'!A$29:A$41,MATCH('Cash Forecast_8A'!B79,'Cash Forecast_8A import-export'!O$29:O$41,0)),\"\")","v":""},{"$f":"IFERROR(INDEX('Cash Forecast_8A import-export'!B$29:B$41,MATCH('Cash Forecast_8A'!B79,'Cash Forecast_8A import-export'!O$29:O$41,0)),\"\")","v":""},{"$f":"IFERROR(INDEX('Cash Forecast_8A import-export'!C$29:C$41,MATCH('Cash Forecast_8A'!B79,'Cash Forecast_8A import-export'!O$29:O$41,0)),\"\")","v":""},null,{"$f":"IFERROR(INDEX('Cash Forecast_8A import-export'!E$29:E$41,MATCH('Cash Forecast_8A'!B79,'Cash Forecast_8A import-export'!O$29:O$41,0)),\"\")","v":""},null,0,null,null,null,null,null,0]
[null,"Int54",{"$f":"IFERROR(INDEX('Cash Forecast_8A import-export'!A$29:A$41,MATCH('Cash Forecast_8A'!B80,'Cash Forecast_8A import-export'!O$29:O$41,0)),\"\")","v":""},{"$f":"IFERROR(INDEX('Cash Forecast_8A import-export'!B$29:B$41,MATCH('Cash Forecast_8A'!B80,'Cash Forecast_8A import-export'!O$29:O$41,0)),\"\")","v":""},{"$f":"IFERROR(INDEX('Cash Forecast_8A import-export'!C$29:C$41,MATCH('Cash Forecast_8A'!B80,'Cash Forecast_8A import-export'!O$29:O$41,0)),\"\")","v":""},null,{"$f":"IFERROR(INDEX('Cash Forecast_8A import-export'!E$29:E$41,MATCH('Cash Forecast_8A'!B80,'Cash Forecast_8A import-export'!O$29:O$41,0)),\"\")","v":""},null,0,null,null,null,null,null,0]
[null,"Int55",{"$f":"IFERROR(INDEX('Cash Forecast_8A import-export'!A$29:A$41,MATCH('Cash Forecast_8A'!B81,'Cash Forecast_8A import-export'!O$29:O$41,0)),\"\")","v":""},{"$f":"IFERROR(INDEX('Cash Forecast_8A import-export'!B$29:B$41,MATCH('Cash Forecast_8A'!B81,'Cash Forecast_8A import-export'!O$29:O$41,0)),\"\")","v":""},{"$f":"IFERROR(INDEX('Cash Forecast_8A import-export'!C$29:C$41,MATCH('Cash Forecast_8A'!B81,'Cash Forecast_8A import-export'!O$29:O$41,0)),\"\")","v":""},null,{"$f":"IFERROR(INDEX('Cash Forecast_8A import-export'!E$29:E$41,MATCH('Cash Forecast_8A'!B81,'Cash Forecast_8A import-export'!O$29:O$41,0)),\"\")","v":""},null,0,null,null,null,null,null,0]
[null,"Int56",{"$f":"IFERROR(INDEX('Cash Forecast_8A import-export'!A$29:A$41,MATCH('Cash Forecast_8A'!B82,'Cash Forecast_8A import-export'!O$29:O$41,0)),\"\")","v":""},{"$f":"IFERROR(INDEX('Cash Forecast_8A import-export'!B$29:B$41,MATCH('Cash Forecast_8A'!B82,'Cash Forecast_8A import-export'!O$29:O$41,0)),\"\")","v":""},{"$f":"IFERROR(INDEX('Cash Forecast_8A import-export'!C$29:C$41,MATCH('Cash Forecast_8A'!B82,'Cash Forecast_8A import-export'!O$29:O$41,0)),\"\")","v":""},null,{"$f":"IFERROR(INDEX('Cash Forecast_8A import-export'!E$29:E$41,MATCH('Cash Forecast_8A'!B82,'Cash Forecast_8A import-export'!O$29:O$41,0)),\"\")","v":""},null,0,null,null,null,null,null,0]
[null,"Int57",{"$f":"IFERROR(INDEX('Cash Forecast_8A import-export'!A$29:A$41,MATCH('Cash Forecast_8A'!B83,'Cash Forecast_8A import-export'!O$29:O$41,0)),\"\")","v":""},{"$f":"IFERROR(INDEX('Cash Forecast_8A import-export'!B$29:B$41,MATCH('Cash Forecast_8A'!B83,'Cash Forecast_8A import-export'!O$29:O$41,0)),\"\")","v":""},{"$f":"IFERROR(INDEX('Cash Forecast_8A import-export'!C$29:C$41,MATCH('Cash Forecast_8A'!B83,'Cash Forecast_8A import-export'!O$29:O$41,0)),\"\")","v":""},null,{"$f":"IFERROR(INDEX('Cash Forecast_8A import-export'!E$29:E$41,MATCH('Cash Forecast_8A'!B83,'Cash Forecast_8A import-export'!O$29:O$41,0)),\"\")","v":""},null,0,null,null,null,null,null,0]
[null,"Int58",{"$f":"IFERROR(INDEX('Cash Forecast_8A import-export'!A$29:A$41,MATCH('Cash Forecast_8A'!B84,'Cash Forecast_8A import-export'!O$29:O$41,0)),\"\")","v":""},{"$f":"IFERROR(INDEX('Cash Forecast_8A import-export'!B$29:B$41,MATCH('Cash Forecast_8A'!B84,'Cash Forecast_8A import-export'!O$29:O$41,0)),\"\")","v":""},{"$f":"IFERROR(INDEX('Cash Forecast_8A import-export'!C$29:C$41,MATCH('Cash Forecast_8A'!B84,'Cash Forecast_8A import-export'!O$29:O$41,0)),\"\")","v":""},null,{"$f":"IFERROR(INDEX('Cash Forecast_8A import-export'!E$29:E$41,MATCH('Cash Forecast_8A'!B84,'Cash Forecast_8A import-export'!O$29:O$41,0)),\"\")","v":""},null,0,null,null,null,null,null,0]
[null,"Int59",{"$f":"IFERROR(INDEX('Cash Forecast_8A import-export'!A$29:A$41,MATCH('Cash Forecast_8A'!B85,'Cash Forecast_8A import-export'!O$29:O$41,0)),\"\")","v":""},{"$f":"IFERROR(INDEX('Cash Forecast_8A import-export'!B$29:B$41,MATCH('Cash Forecast_8A'!B85,'Cash Forecast_8A import-export'!O$29:O$41,0)),\"\")","v":""},{"$f":"IFERROR(INDEX('Cash Forecast_8A import-export'!C$29:C$41,MATCH('Cash Forecast_8A'!B85,'Cash Forecast_8A import-export'!O$29:O$41,0)),\"\")","v":""},null,{"$f":"IFERROR(INDEX('Cash Forecast_8A import-export'!E$29:E$41,MATCH('Cash Forecast_8A'!B85,'Cash Forecast_8A import-export'!O$29:O$41,0)),\"\")","v":""},null,0,null,null,null,null,null,0]
[null,"Int60",{"$f":"IFERROR(INDEX('Cash Forecast_8A import-export'!A$29:A$41,MATCH('Cash Forecast_8A'!B86,'Cash Forecast_8A import-export'!O$29:O$41,0)),\"\")","v":""},{"$f":"IFERROR(INDEX('Cash Forecast_8A import-export'!B$29:B$41,MATCH('Cash Forecast_8A'!B86,'Cash Forecast_8A import-export'!O$29:O$41,0)),\"\")","v":""},{"$f":"IFERROR(INDEX('Cash Forecast_8A import-export'!C$29:C$41,MATCH('Cash Forecast_8A'!B86,'Cash Forecast_8A import-export'!O$29:O$41,0)),\"\")","v":""},null,{"$f":"IFERROR(INDEX('Cash Forecast_8A import-export'!E$29:E$41,MATCH('Cash Forecast_8A'!B86,'Cash Forecast_8A import-export'!O$29:O$41,0)),\"\")","v":""},null,0,null,null,null,null,null,0]
[null,"Int61",{"$f":"IFERROR(INDEX('Cash Forecast_8A import-export'!A$29:A$41,MATCH('Cash Forecast_8A'!B87,'Cash Forecast_8A import-export'!O$29:O$41,0)),\"\")","v":""},{"$f":"IFERROR(INDEX('Cash Forecast_8A import-export'!B$29:B$41,MATCH('Cash Forecast_8A'!B87,'Cash Forecast_8A import-export'!O$29:O$41,0)),\"\")","v":""},{"$f":"IFERROR(INDEX('Cash Forecast_8A import-export'!C$29:C$41,MATCH('Cash Forecast_8A'!B87,'Cash Forecast_8A import-export'!O$29:O$41,0)),\"\")","v":""},null,{"$f":"IFERROR(INDEX('Cash Forecast_8A import-export'!E$29:E$41,MATCH('Cash Forecast_8A'!B87,'Cash Forecast_8A import-export'!O$29:O$41,0)),\"\")","v":""},null,0,null,null,null,null,null,0]
[null,"Int62",{"$f":"IFERROR(INDEX('Cash Forecast_8A import-export'!A$29:A$41,MATCH('Cash Forecast_8A'!B88,'Cash Forecast_8A import-export'!O$29:O$41,0)),\"\")","v":""},{"$f":"IFERROR(INDEX('Cash Forecast_8A import-export'!B$29:B$41,MATCH('Cash Forecast_8A'!B88,'Cash Forecast_8A import-export'!O$29:O$41,0)),\"\")","v":""},{"$f":"IFERROR(INDEX('Cash Forecast_8A import-export'!C$29:C$41,MATCH('Cash Forecast_8A'!B88,'Cash Forecast_8A import-export'!O$29:O$41,0)),\"\")","v":""},null,{"$f":"IFERROR(INDEX('Cash Forecast_8A import-export'!E$29:E$41,MATCH('Cash Forecast_8A'!B88,'Cash Forecast_8A import-export'!O$29:O$41,0)),\"\")","v":""},null,0,null,null,null,null,null,0]
[null,"Int63",{"$f":"IFERROR(INDEX('Cash Forecast_8A import-export'!A$29:A$41,MATCH('Cash Forecast_8A'!B89,'Cash Forecast_8A import-export'!O$29:O$41,0)),\"\")","v":""},{"$f":"IFERROR(INDEX('Cash Forecast_8A import-export'!B$29:B$41,MATCH('Cash Forecast_8A'!B89,'Cash Forecast_8A import-export'!O$29:O$41,0)),\"\")","v":""},{"$f":"IFERROR(INDEX('Cash Forecast_8A import-export'!C$29:C$41,MATCH('Cash Forecast_8A'!B89,'Cash Forecast_8A import-export'!O$29:O$41,0)),\"\")","v":""},null,{"$f":"IFERROR(INDEX('Cash Forecast_8A import-export'!E$29:E$41,MATCH('Cash Forecast_8A'!B89,'Cash Forecast_8A import-export'!O$29:O$41,0)),\"\")","v":""},null,0,null,null,null,null,null,0]
[null,"Int64",{"$f":"IFERROR(INDEX('Cash Forecast_8A import-export'!A$29:A$41,MATCH('Cash Forecast_8A'!B90,'Cash Forecast_8A import-export'!O$29:O$41,0)),\"\")","v":""},{"$f":"IFERROR(INDEX('Cash Forecast_8A import-export'!B$29:B$41,MATCH('Cash Forecast_8A'!B90,'Cash Forecast_8A import-export'!O$29:O$41,0)),\"\")","v":""},{"$f":"IFERROR(INDEX('Cash Forecast_8A import-export'!C$29:C$41,MATCH('Cash Forecast_8A'!B90,'Cash Forecast_8A import-export'!O$29:O$41,0)),\"\")","v":""},null,{"$f":"IFERROR(INDEX('Cash Forecast_8A import-export'!E$29:E$41,MATCH('Cash Forecast_8A'!B90,'Cash Forecast_8A import-export'!O$29:O$41,0)),\"\")","v":""},null,0,null,null,null,null,null,0]
[null,"Int65",{"$f":"IFERROR(INDEX('Cash Forecast_8A import-export'!A$29:A$41,MATCH('Cash Forecast_8A'!B91,'Cash Forecast_8A import-export'!O$29:O$41,0)),\"\")","v":""},{"$f":"IFERROR(INDEX('Cash Forecast_8A import-export'!B$29:B$41,MATCH('Cash Forecast_8A'!B91,'Cash Forecast_8A import-export'!O$29:O$41,0)),\"\")","v":""},{"$f":"IFERROR(INDEX('Cash Forecast_8A import-export'!C$29:C$41,MATCH('Cash Forecast_8A'!B91,'Cash Forecast_8A import-export'!O$29:O$41,0)),\"\")","v":""},null,{"$f":"IFERROR(INDEX('Cash Forecast_8A import-export'!E$29:E$41,MATCH('Cash Forecast_8A'!B91,'Cash Forecast_8A import-export'!O$29:O$41,0)),\"\")","v":""},null,0,null,null,null,null,null,0]
[null,"Int66",{"$f":"IFERROR(INDEX('Cash Forecast_8A import-export'!A$29:A$41,MATCH('Cash Forecast_8A'!B92,'Cash Forecast_8A import-export'!O$29:O$41,0)),\"\")","v":""},{"$f":"IFERROR(INDEX('Cash Forecast_8A import-export'!B$29:B$41,MATCH('Cash Forecast_8A'!B92,'Cash Forecast_8A import-export'!O$29:O$41,0)),\"\")","v":""},{"$f":"IFERROR(INDEX('Cash Forecast_8A import-export'!C$29:C$41,MATCH('Cash Forecast_8A'!B92,'Cash Forecast_8A import-export'!O$29:O$41,0)),\"\")","v":""},null,{"$f":"IFERROR(INDEX('Cash Forecast_8A import-export'!E$29:E$41,MATCH('Cash Forecast_8A'!B92,'Cash Forecast_8A import-export'!O$29:O$41,0)),\"\")","v":""},null,0,null,null,null,null,null,0]
[null,"Int67",{"$f":"IFERROR(INDEX('Cash Forecast_8A import-export'!A$29:A$41,MATCH('Cash Forecast_8A'!B93,'Cash Forecast_8A import-export'!O$29:O$41,0)),\"\")","v":""},{"$f":"IFERROR(INDEX('Cash Forecast_8A import-export'!B$29:B$41,MATCH('Cash Forecast_8A'!B93,'Cash Forecast_8A import-export'!O$29:O$41,0)),\"\")","v":""},{"$f":"IFERROR(INDEX('Cash Forecast_8A import-export'!C$29:C$41,MATCH('Cash Forecast_8A'!B93,'Cash Forecast_8A import-export'!O$29:O$41,0)),\"\")","v":""},null,{"$f":"IFERROR(INDEX('Cash Forecast_8A import-export'!E$29:E$41,MATCH('Cash Forecast_8A'!B93,'Cash Forecast_8A import-export'!O$29:O$41,0)),\"\")","v":""},null,0,null,null,null,null,null,0]
[null,"Int68",{"$f":"IFERROR(INDEX('Cash Forecast_8A import-export'!A$29:A$41,MATCH('Cash Forecast_8A'!B94,'Cash Forecast_8A import-export'!O$29:O$41,0)),\"\")","v":""},{"$f":"IFERROR(INDEX('Cash Forecast_8A import-export'!B$29:B$41,MATCH('Cash Forecast_8A'!B94,'Cash Forecast_8A import-export'!O$29:O$41,0)),\"\")","v":""},{"$f":"IFERROR(INDEX('Cash Forecast_8A import-export'!C$29:C$41,MATCH('Cash Forecast_8A'!B94,'Cash Forecast_8A import-export'!O$29:O$41,0)),\"\")","v":""},null,{"$f":"IFERROR(INDEX('Cash Forecast_8A import-export'!E$29:E$41,MATCH('Cash Forecast_8A'!B94,'Cash Forecast_8A import-export'!O$29:O$41,0)),\"\")","v":""},null,0,null,null,null,null,null,0]
[null,"Int69",{"$f":"IFERROR(INDEX('Cash Forecast_8A import-export'!A$29:A$41,MATCH('Cash Forecast_8A'!B95,'Cash Forecast_8A import-export'!O$29:O$41,0)),\"\")","v":""},{"$f":"IFERROR(INDEX('Cash Forecast_8A import-export'!B$29:B$41,MATCH('Cash Forecast_8A'!B95,'Cash Forecast_8A import-export'!O$29:O$41,0)),\"\")","v":""},{"$f":"IFERROR(INDEX('Cash Forecast_8A import-export'!C$29:C$41,MATCH('Cash Forecast_8A'!B95,'Cash Forecast_8A import-export'!O$29:O$41,0)),\"\")","v":""},null,{"$f":"IFERROR(INDEX('Cash Forecast_8A import-export'!E$29:E$41,MATCH('Cash Forecast_8A'!B95,'Cash Forecast_8A import-export'!O$29:O$41,0)),\"\")","v":""},null,0,null,null,null,null,null,0]
[null,"Int70",{"$f":"IFERROR(INDEX('Cash Forecast_8A import-export'!A$29:A$41,MATCH('Cash Forecast_8A'!B96,'Cash Forecast_8A import-export'!O$29:O$41,0)),\"\")","v":""},{"$f":"IFERROR(INDEX('Cash Forecast_8A import-export'!B$29:B$41,MATCH('Cash Forecast_8A'!B96,'Cash Forecast_8A import-export'!O$29:O$41,0)),\"\")","v":""},{"$f":"IFERROR(INDEX('Cash Forecast_8A import-export'!C$29:C$41,MATCH('Cash Forecast_8A'!B96,'Cash Forecast_8A import-export'!O$29:O$41,0)),\"\")","v":""},null,{"$f":"IFERROR(INDEX('Cash Forecast_8A import-export'!E$29:E$41,MATCH('Cash Forecast_8A'!B96,'Cash Forecast_8A import-export'!O$29:O$41,0)),\"\")","v":""},null,{"$f":"IFERROR(F96+H96,\"\")","v":0},null,null,null,null,null,{"$f":"IFERROR(L96+M96,\"\")","v":0}]
[null,"Int71",{"$f":"IFERROR(INDEX('Cash Forecast_8A import-export'!A$29:A$41,MATCH('Cash Forecast_8A'!B97,'Cash Forecast_8A import-export'!O$29:O$41,0)),\"\")","v":""},{"$f":"IFERROR(INDEX('Cash Forecast_8A import-export'!B$29:B$41,MATCH('Cash Forecast_8A'!B97,'Cash Forecast_8A import-export'!O$29:O$41,0)),\"\")","v":""},{"$f":"IFERROR(INDEX('Cash Forecast_8A import-export'!C$29:C$41,MATCH('Cash Forecast_8A'!B97,'Cash Forecast_8A import-export'!O$29:O$41,0)),\"\")","v":""},null,{"$f":"IFERROR(INDEX('Cash Forecast_8A import-export'!E$29:E$41,MATCH('Cash Forecast_8A'!B97,'Cash Forecast_8A import-export'!O$29:O$41,0)),\"\")","v":""},null,0,null,null,null,null,null,0]
[null,"Int72",{"$f":"IFERROR(INDEX('Cash Forecast_8A import-export'!A$29:A$41,MATCH('Cash Forecast_8A'!B98,'Cash Forecast_8A import-export'!O$29:O$41,0)),\"\")","v":""},{"$f":"IFERROR(INDEX('Cash Forecast_8A import-export'!B$29:B$41,MATCH('Cash Forecast_8A'!B98,'Cash Forecast_8A import-export'!O$29:O$41,0)),\"\")","v":""},{"$f":"IFERROR(INDEX('Cash Forecast_8A import-export'!C$29:C$41,MATCH('Cash Forecast_8A'!B98,'Cash Forecast_8A import-export'!O$29:O$41,0)),\"\")","v":""},null,{"$f":"IFERROR(INDEX('Cash Forecast_8A import-export'!E$29:E$41,MATCH('Cash Forecast_8A'!B98,'Cash Forecast_8A import-export'!O$29:O$41,0)),\"\")","v":""},null,0,null,null,null,null,null,0]
[null,"Int73",{"$f":"IFERROR(INDEX('Cash Forecast_8A import-export'!A$29:A$41,MATCH('Cash Forecast_8A'!B99,'Cash Forecast_8A import-export'!O$29:O$41,0)),\"\")","v":""},{"$f":"IFERROR(INDEX('Cash Forecast_8A import-export'!B$29:B$41,MATCH('Cash Forecast_8A'!B99,'Cash Forecast_8A import-export'!O$29:O$41,0)),\"\")","v":""},{"$f":"IFERROR(INDEX('Cash Forecast_8A import-export'!C$29:C$41,MATCH('Cash Forecast_8A'!B99,'Cash Forecast_8A import-export'!O$29:O$41,0)),\"\")","v":""},null,{"$f":"IFERROR(INDEX('Cash Forecast_8A import-export'!E$29:E$41,MATCH('Cash Forecast_8A'!B99,'Cash Forecast_8A import-export'!O$29:O$41,0)),\"\")","v":""},null,0,null,null,null,null,null,0]
[null,"Int74",{"$f":"IFERROR(INDEX('Cash Forecast_8A import-export'!A$29:A$41,MATCH('Cash Forecast_8A'!B100,'Cash Forecast_8A import-export'!O$29:O$41,0)),\"\")","v":""},{"$f":"IFERROR(INDEX('Cash Forecast_8A import-export'!B$29:B$41,MATCH('Cash Forecast_8A'!B100,'Cash Forecast_8A import-export'!O$29:O$41,0)),\"\")","v":""},{"$f":"IFERROR(INDEX('Cash Forecast_8A import-export'!C$29:C$41,MATCH('Cash Forecast_8A'!B100,'Cash Forecast_8A import-export'!O$29:O$41,0)),\"\")","v":""},null,{"$f":"IFERROR(INDEX('Cash Forecast_8A import-export'!E$29:E$41,MATCH('Cash Forecast_8A'!B100,'Cash Forecast_8A import-export'!O$29:O$41,0)),\"\")","v":""},null,0,null,null,null,null,null,0]
[null,"Int75",{"$f":"IFERROR(INDEX('Cash Forecast_8A import-export'!A$29:A$41,MATCH('Cash Forecast_8A'!B101,'Cash Forecast_8A import-export'!O$29:O$41,0)),\"\")","v":""},{"$f":"IFERROR(INDEX('Cash Forecast_8A import-export'!B$29:B$41,MATCH('Cash Forecast_8A'!B101,'Cash Forecast_8A import-export'!O$29:O$41,0)),\"\")","v":""},{"$f":"IFERROR(INDEX('Cash Forecast_8A import-export'!C$29:C$41,MATCH('Cash Forecast_8A'!B101,'Cash Forecast_8A import-export'!O$29:O$41,0)),\"\")","v":""},null,{"$f":"IFERROR(INDEX('Cash Forecast_8A import-export'!E$29:E$41,MATCH('Cash Forecast_8A'!B101,'Cash Forecast_8A import-export'!O$29:O$41,0)),\"\")","v":""},null,0,null,null,null,null,null,0]
[null,"Int76",{"$f":"IFERROR(INDEX('Cash Forecast_8A import-export'!A$29:A$41,MATCH('Cash Forecast_8A'!B102,'Cash Forecast_8A import-export'!O$29:O$41,0)),\"\")","v":""},{"$f":"IFERROR(INDEX('Cash Forecast_8A import-export'!B$29:B$41,MATCH('Cash Forecast_8A'!B102,'Cash Forecast_8A import-export'!O$29:O$41,0)),\"\")","v":""},{"$f":"IFERROR(INDEX('Cash Forecast_8A import-export'!C$29:C$41,MATCH('Cash Forecast_8A'!B102,'Cash Forecast_8A import-export'!O$29:O$41,0)),\"\")","v":""},null,{"$f":"IFERROR(INDEX('Cash Forecast_8A import-export'!E$29:E$41,MATCH('Cash Forecast_8A'!B102,'Cash Forecast_8A import-export'!O$29:O$41,0)),\"\")","v":""},null,0,null,null,null,null,null,0]
[null,"Int77",{"$f":"IFERROR(INDEX('Cash Forecast_8A import-export'!A$29:A$41,MATCH('Cash Forecast_8A'!B103,'Cash Forecast_8A import-export'!O$29:O$41,0)),\"\")","v":""},{"$f":"IFERROR(INDEX('Cash Forecast_8A import-export'!B$29:B$41,MATCH('Cash Forecast_8A'!B103,'Cash Forecast_8A import-export'!O$29:O$41,0)),\"\")","v":""},{"$f":"IFERROR(INDEX('Cash Forecast_8A import-export'!C$29:C$41,MATCH('Cash Forecast_8A'!B103,'Cash Forecast_8A import-export'!O$29:O$41,0)),\"\")","v":""},null,{"$f":"IFERROR(INDEX('Cash Forecast_8A import-export'!E$29:E$41,MATCH('Cash Forecast_8A'!B103,'Cash Forecast_8A import-export'!O$29:O$41,0)),\"\")","v":""},null,0,null,null,null,null,null,0]
[null,"Int78",{"$f":"IFERROR(INDEX('Cash Forecast_8A import-export'!A$29:A$41,MATCH('Cash Forecast_8A'!B104,'Cash Forecast_8A import-export'!O$29:O$41,0)),\"\")","v":""},{"$f":"IFERROR(INDEX('Cash Forecast_8A import-export'!B$29:B$41,MATCH('Cash Forecast_8A'!B104,'Cash Forecast_8A import-export'!O$29:O$41,0)),\"\")","v":""},{"$f":"IFERROR(INDEX('Cash Forecast_8A import-export'!C$29:C$41,MATCH('Cash Forecast_8A'!B104,'Cash Forecast_8A import-export'!O$29:O$41,0)),\"\")","v":""},null,{"$f":"IFERROR(INDEX('Cash Forecast_8A import-export'!E$29:E$41,MATCH('Cash Forecast_8A'!B104,'Cash Forecast_8A import-export'!O$29:O$41,0)),\"\")","v":""},null,0,null,null,null,null,null,0]
[null,"Int79",{"$f":"IFERROR(INDEX('Cash Forecast_8A import-export'!A$29:A$41,MATCH('Cash Forecast_8A'!B105,'Cash Forecast_8A import-export'!O$29:O$41,0)),\"\")","v":""},{"$f":"IFERROR(INDEX('Cash Forecast_8A import-export'!B$29:B$41,MATCH('Cash Forecast_8A'!B105,'Cash Forecast_8A import-export'!O$29:O$41,0)),\"\")","v":""},{"$f":"IFERROR(INDEX('Cash Forecast_8A import-export'!C$29:C$41,MATCH('Cash Forecast_8A'!B105,'Cash Forecast_8A import-export'!O$29:O$41,0)),\"\")","v":""},null,{"$f":"IFERROR(INDEX('Cash Forecast_8A import-export'!E$29:E$41,MATCH('Cash Forecast_8A'!B105,'Cash Forecast_8A import-export'!O$29:O$41,0)),\"\")","v":""},null,0,null,null,null,null,null,0]
[null,"Int80",{"$f":"IFERROR(INDEX('Cash Forecast_8A import-export'!A$29:A$41,MATCH('Cash Forecast_8A'!B106,'Cash Forecast_8A import-export'!O$29:O$41,0)),\"\")","v":""},{"$f":"IFERROR(INDEX('Cash Forecast_8A import-export'!B$29:B$41,MATCH('Cash Forecast_8A'!B106,'Cash Forecast_8A import-export'!O$29:O$41,0)),\"\")","v":""},{"$f":"IFERROR(INDEX('Cash Forecast_8A import-export'!C$29:C$41,MATCH('Cash Forecast_8A'!B106,'Cash Forecast_8A import-export'!O$29:O$41,0)),\"\")","v":""},null,{"$f":"IFERROR(INDEX('Cash Forecast_8A import-export'!E$29:E$41,MATCH('Cash Forecast_8A'!B106,'Cash Forecast_8A import-export'!O$29:O$41,0)),\"\")","v":""},null,0,null,null,null,null,null,0]
[null,"Int81",{"$f":"IFERROR(INDEX('Cash Forecast_8A import-export'!A$29:A$41,MATCH('Cash Forecast_8A'!B107,'Cash Forecast_8A import-export'!O$29:O$41,0)),\"\")","v":""},{"$f":"IFERROR(INDEX('Cash Forecast_8A import-export'!B$29:B$41,MATCH('Cash Forecast_8A'!B107,'Cash Forecast_8A import-export'!O$29:O$41,0)),\"\")","v":""},{"$f":"IFERROR(INDEX('Cash Forecast_8A import-export'!C$29:C$41,MATCH('Cash Forecast_8A'!B107,'Cash Forecast_8A import-export'!O$29:O$41,0)),\"\")","v":""},null,{"$f":"IFERROR(INDEX('Cash Forecast_8A import-export'!E$29:E$41,MATCH('Cash Forecast_8A'!B107,'Cash Forecast_8A import-export'!O$29:O$41,0)),\"\")","v":""},null,0,null,null,null,null,null,0]
[null,"Int82",{"$f":"IFERROR(INDEX('Cash Forecast_8A import-export'!A$29:A$41,MATCH('Cash Forecast_8A'!B108,'Cash Forecast_8A import-export'!O$29:O$41,0)),\"\")","v":""},{"$f":"IFERROR(INDEX('Cash Forecast_8A import-export'!B$29:B$41,MATCH('Cash Forecast_8A'!B108,'Cash Forecast_8A import-export'!O$29:O$41,0)),\"\")","v":""},{"$f":"IFERROR(INDEX('Cash Forecast_8A import-export'!C$29:C$41,MATCH('Cash Forecast_8A'!B108,'Cash Forecast_8A import-export'!O$29:O$41,0)),\"\")","v":""},null,{"$f":"IFERROR(INDEX('Cash Forecast_8A import-export'!E$29:E$41,MATCH('Cash Forecast_8A'!B108,'Cash Forecast_8A import-export'!O$29:O$41,0)),\"\")","v":""},null,0,null,null,null,null,null,0]
[null,"Int83",{"$f":"IFERROR(INDEX('Cash Forecast_8A import-export'!A$29:A$41,MATCH('Cash Forecast_8A'!B109,'Cash Forecast_8A import-export'!O$29:O$41,0)),\"\")","v":""},{"$f":"IFERROR(INDEX('Cash Forecast_8A import-export'!B$29:B$41,MATCH('Cash Forecast_8A'!B109,'Cash Forecast_8A import-export'!O$29:O$41,0)),\"\")","v":""},{"$f":"IFERROR(INDEX('Cash Forecast_8A import-export'!C$29:C$41,MATCH('Cash Forecast_8A'!B109,'Cash Forecast_8A import-export'!O$29:O$41,0)),\"\")","v":""},null,{"$f":"IFERROR(INDEX('Cash Forecast_8A import-export'!E$29:E$41,MATCH('Cash Forecast_8A'!B109,'Cash Forecast_8A import-export'!O$29:O$41,0)),\"\")","v":""},null,0,null,null,null,null,null,0]
[null,"Int84",{"$f":"IFERROR(INDEX('Cash Forecast_8A import-export'!A$29:A$41,MATCH('Cash Forecast_8A'!B110,'Cash Forecast_8A import-export'!O$29:O$41,0)),\"\")","v":""},{"$f":"IFERROR(INDEX('Cash Forecast_8A import-export'!B$29:B$41,MATCH('Cash Forecast_8A'!B110,'Cash Forecast_8A import-export'!O$29:O$41,0)),\"\")","v":""},{"$f":"IFERROR(INDEX('Cash Forecast_8A import-export'!C$29:C$41,MATCH('Cash Forecast_8A'!B110,'Cash Forecast_8A import-export'!O$29:O$41,0)),\"\")","v":""},null,{"$f":"IFERROR(INDEX('Cash Forecast_8A import-export'!E$29:E$41,MATCH('Cash Forecast_8A'!B110,'Cash Forecast_8A import-export'!O$29:O$41,0)),\"\")","v":""},null,0,null,null,null,null,null,0]
[null,"Int85",{"$f":"IFERROR(INDEX('Cash Forecast_8A import-export'!A$29:A$41,MATCH('Cash Forecast_8A'!B111,'Cash Forecast_8A import-export'!O$29:O$41,0)),\"\")","v":""},{"$f":"IFERROR(INDEX('Cash Forecast_8A import-export'!B$29:B$41,MATCH('Cash Forecast_8A'!B111,'Cash Forecast_8A import-export'!O$29:O$41,0)),\"\")","v":""},{"$f":"IFERROR(INDEX('Cash Forecast_8A import-export'!C$29:C$41,MATCH('Cash Forecast_8A'!B111,'Cash Forecast_8A import-export'!O$29:O$41,0)),\"\")","v":""},null,{"$f":"IFERROR(INDEX('Cash Forecast_8A import-export'!E$29:E$41,MATCH('Cash Forecast_8A'!B111,'Cash Forecast_8A import-export'!O$29:O$41,0)),\"\")","v":""},null,0,null,null,null,null,null,0]
[null,"Int86",{"$f":"IFERROR(INDEX('Cash Forecast_8A import-export'!A$29:A$41,MATCH('Cash Forecast_8A'!B112,'Cash Forecast_8A import-export'!O$29:O$41,0)),\"\")","v":""},{"$f":"IFERROR(INDEX('Cash Forecast_8A import-export'!B$29:B$41,MATCH('Cash Forecast_8A'!B112,'Cash Forecast_8A import-export'!O$29:O$41,0)),\"\")","v":""},{"$f":"IFERROR(INDEX('Cash Forecast_8A import-export'!C$29:C$41,MATCH('Cash Forecast_8A'!B112,'Cash Forecast_8A import-export'!O$29:O$41,0)),\"\")","v":""},null,{"$f":"IFERROR(INDEX('Cash Forecast_8A import-export'!E$29:E$41,MATCH('Cash Forecast_8A'!B112,'Cash Forecast_8A import-export'!O$29:O$41,0)),\"\")","v":""},null,0,null,null,null,null,null,0]
[null,"Int87",{"$f":"IFERROR(INDEX('Cash Forecast_8A import-export'!A$29:A$41,MATCH('Cash Forecast_8A'!B113,'Cash Forecast_8A import-export'!O$29:O$41,0)),\"\")","v":""},{"$f":"IFERROR(INDEX('Cash Forecast_8A import-export'!B$29:B$41,MATCH('Cash Forecast_8A'!B113,'Cash Forecast_8A import-export'!O$29:O$41,0)),\"\")","v":""},{"$f":"IFERROR(INDEX('Cash Forecast_8A import-export'!C$29:C$41,MATCH('Cash Forecast_8A'!B113,'Cash Forecast_8A import-export'!O$29:O$41,0)),\"\")","v":""},null,{"$f":"IFERROR(INDEX('Cash Forecast_8A import-export'!E$29:E$41,MATCH('Cash Forecast_8A'!B113,'Cash Forecast_8A import-export'!O$29:O$41,0)),\"\")","v":""},null,0,null,null,null,null,null,0]
[null,"Int88",{"$f":"IFERROR(INDEX('Cash Forecast_8A import-export'!A$29:A$41,MATCH('Cash Forecast_8A'!B114,'Cash Forecast_8A import-export'!O$29:O$41,0)),\"\")","v":""},{"$f":"IFERROR(INDEX('Cash Forecast_8A import-export'!B$29:B$41,MATCH('Cash Forecast_8A'!B114,'Cash Forecast_8A import-export'!O$29:O$41,0)),\"\")","v":""},{"$f":"IFERROR(INDEX('Cash Forecast_8A import-export'!C$29:C$41,MATCH('Cash Forecast_8A'!B114,'Cash Forecast_8A import-export'!O$29:O$41,0)),\"\")","v":""},null,{"$f":"IFERROR(INDEX('Cash Forecast_8A import-export'!E$29:E$41,MATCH('Cash Forecast_8A'!B114,'Cash Forecast_8A import-export'!O$29:O$41,0)),\"\")","v":""},null,0,null,null,null,null,null,0]
[null,"Int89",{"$f":"IFERROR(INDEX('Cash Forecast_8A import-export'!A$29:A$41,MATCH('Cash Forecast_8A'!B115,'Cash Forecast_8A import-export'!O$29:O$41,0)),\"\")","v":""},{"$f":"IFERROR(INDEX('Cash Forecast_8A import-export'!B$29:B$41,MATCH('Cash Forecast_8A'!B115,'Cash Forecast_8A import-export'!O$29:O$41,0)),\"\")","v":""},{"$f":"IFERROR(INDEX('Cash Forecast_8A import-export'!C$29:C$41,MATCH('Cash Forecast_8A'!B115,'Cash Forecast_8A import-export'!O$29:O$41,0)),\"\")","v":""},null,{"$f":"IFERROR(INDEX('Cash Forecast_8A import-export'!E$29:E$41,MATCH('Cash Forecast_8A'!B115,'Cash Forecast_8A import-export'!O$29:O$41,0)),\"\")","v":""},null,0,null,null,null,null,null,0]
[null,"Int90",{"$f":"IFERROR(INDEX('Cash Forecast_8A import-export'!A$29:A$41,MATCH('Cash Forecast_8A'!B116,'Cash Forecast_8A import-export'!O$29:O$41,0)),\"\")","v":""},{"$f":"IFERROR(INDEX('Cash Forecast_8A import-export'!B$29:B$41,MATCH('Cash Forecast_8A'!B116,'Cash Forecast_8A import-export'!O$29:O$41,0)),\"\")","v":""},{"$f":"IFERROR(INDEX('Cash Forecast_8A import-export'!C$29:C$41,MATCH('Cash Forecast_8A'!B116,'Cash Forecast_8A import-export'!O$29:O$41,0)),\"\")","v":""},null,{"$f":"IFERROR(INDEX('Cash Forecast_8A import-export'!E$29:E$41,MATCH('Cash Forecast_8A'!B116,'Cash Forecast_8A import-export'!O$29:O$41,0)),\"\")","v":""},null,0,null,null,null,null,null,0]
[null,"Int91",{"$f":"IFERROR(INDEX('Cash Forecast_8A import-export'!A$29:A$41,MATCH('Cash Forecast_8A'!B117,'Cash Forecast_8A import-export'!O$29:O$41,0)),\"\")","v":""},{"$f":"IFERROR(INDEX('Cash Forecast_8A import-export'!B$29:B$41,MATCH('Cash Forecast_8A'!B117,'Cash Forecast_8A import-export'!O$29:O$41,0)),\"\")","v":""},{"$f":"IFERROR(INDEX('Cash Forecast_8A import-export'!C$29:C$41,MATCH('Cash Forecast_8A'!B117,'Cash Forecast_8A import-export'!O$29:O$41,0)),\"\")","v":""},null,{"$f":"IFERROR(INDEX('Cash Forecast_8A import-export'!E$29:E$41,MATCH('Cash Forecast_8A'!B117,'Cash Forecast_8A import-export'!O$29:O$41,0)),\"\")","v":""},null,0,null,null,null,null,null,0]
[null,"Int92",{"$f":"IFERROR(INDEX('Cash Forecast_8A import-export'!A$29:A$41,MATCH('Cash Forecast_8A'!B118,'Cash Forecast_8A import-export'!O$29:O$41,0)),\"\")","v":""},{"$f":"IFERROR(INDEX('Cash Forecast_8A import-export'!B$29:B$41,MATCH('Cash Forecast_8A'!B118,'Cash Forecast_8A import-export'!O$29:O$41,0)),\"\")","v":""},{"$f":"IFERROR(INDEX('Cash Forecast_8A import-export'!C$29:C$41,MATCH('Cash Forecast_8A'!B118,'Cash Forecast_8A import-export'!O$29:O$41,0)),\"\")","v":""},null,{"$f":"IFERROR(INDEX('Cash Forecast_8A import-export'!E$29:E$41,MATCH('Cash Forecast_8A'!B118,'Cash Forecast_8A import-export'!O$29:O$41,0)),\"\")","v":""},null,0,null,null,null,null,null,0]
[null,"Int93",{"$f":"IFERROR(INDEX('Cash Forecast_8A import-export'!A$29:A$41,MATCH('Cash Forecast_8A'!B119,'Cash Forecast_8A import-export'!O$29:O$41,0)),\"\")","v":""},{"$f":"IFERROR(INDEX('Cash Forecast_8A import-export'!B$29:B$41,MATCH('Cash Forecast_8A'!B119,'Cash Forecast_8A import-export'!O$29:O$41,0)),\"\")","v":""},{"$f":"IFERROR(INDEX('Cash Forecast_8A import-export'!C$29:C$41,MATCH('Cash Forecast_8A'!B119,'Cash Forecast_8A import-export'!O$29:O$41,0)),\"\")","v":""},null,{"$f":"IFERROR(INDEX('Cash Forecast_8A import-export'!E$29:E$41,MATCH('Cash Forecast_8A'!B119,'Cash Forecast_8A import-export'!O$29:O$41,0)),\"\")","v":""},null,0,null,null,null,null,null,0]
[null,"Int94",{"$f":"IFERROR(INDEX('Cash Forecast_8A import-export'!A$29:A$41,MATCH('Cash Forecast_8A'!B120,'Cash Forecast_8A import-export'!O$29:O$41,0)),\"\")","v":""},{"$f":"IFERROR(INDEX('Cash Forecast_8A import-export'!B$29:B$41,MATCH('Cash Forecast_8A'!B120,'Cash Forecast_8A import-export'!O$29:O$41,0)),\"\")","v":""},{"$f":"IFERROR(INDEX('Cash Forecast_8A import-export'!C$29:C$41,MATCH('Cash Forecast_8A'!B120,'Cash Forecast_8A import-export'!O$29:O$41,0)),\"\")","v":""},null,{"$f":"IFERROR(INDEX('Cash Forecast_8A import-export'!E$29:E$41,MATCH('Cash Forecast_8A'!B120,'Cash Forecast_8A import-export'!O$29:O$41,0)),\"\")","v":""},null,0,null,null,null,null,null,0]
[null,null,null,null,0,null,0,null,{"$f":"IFERROR(F121+H121,\"\")","v":0},null,null,null,null,null,{"$f":"IFERROR(L121+M121,\"\")","v":0},null,null,{"$f":"IFERROR(IF(VLOOKUP(C121,'Reference Records'!$B$12:$D$25,3,FALSE)=0,\"\",VLOOKUP(C121,'Reference Records'!$B$12:$D$25,3,FALSE)),\"\")","v":""}]
[null,null,null,null,0,null,0,null,{"$f":"IFERROR(F122+H122,\"\")","v":0},null,null,null,null,null,{"$f":"IFERROR(L122+M122,\"\")","v":0}]
[null,null,null,null,0,null,0,null,0,null,null,null,null,null,0]
[null,null,null,null,0,null,0,null,0,null,null,null,null,null,0]
[null,null,null,null,0,null,0,null,0,null,null,null,null,null,0]
[null,null,null,null,0,null,0,null,0,null,null,null,null,null,0]
[null,null,null,null,0,null,0,null,0,null,null,null,null,null,0]
[null,null,null,null,0,null,0,null,0,null,null,null,null,null,0]
[null,null,null,null,0,null,0,null,0,null,null,null,null,null,0]
[null,null,null,null,0,null,0,null,0,null,null,null,null,null,0]
[null,null,null,null,0,null,0,null,0,null,null,null,null,null,0]
[null,null,null,null,0,null,0,null,0,null,null,null,null,null,0]
[null,null,null,null,0,null,0,null,0,null,null,null,null,null,0]
[null,null,null,null,0,null,0,null,0,null,null,null,null,null,0]
[null,null,null,null,0,null,0,null,0,null,null,null,null,null,0]
[null,null,null,null,0,null,0,null,0,null,null,null,null,null,0]
[null,null,"Grand Total",null,{"$f":"ROUND(SUM(E27:E136),2)","v":1209164.79},{"$f":"ROUND(SUM(F27:F136),2)","v":3387449.71},{"$f":"ROUND(SUM(G27:G136),2)","v":20726518.859999999},{"$f":"ROUND(SUM(H27:H136),2)","v":19954404.710000001},{"$f":"ROUND(SUM(I27:I136),2)","v":23341854.420000002},null,null,{"$f":"ROUND(SUM(L27:L136),2)","v":0},{"$f":"ROUND(SUM(M27:M136),2)","v":0},{"$f":"ROUND(SUM(N27:N120),2)","v":0},{"$f":"ROUND(SUM(O27:O136),2)","v":0}]
[]
[null,null,"Summary Breakdown by Implementing Entity"]
[null,null,{"$f":"VLOOKUP(Translations!B395,Translations!B3:H508,4,0)","v":"Implementing Entity"},null,{"$f":"E26","v":"Budget for Forecast Period"},{"$f":"F26","v":"Principal Recipient Forecast for the period (not including the Buffer)"},"Budget for the Buffer Period","Principal Recipient Forecast for the Buffer Period","Total Principal Recipient Forecast (including Buffer)","Comments",null,"Local Fund Agent Adjusted Principal Recipient Forecast for the period (not including the Buffer)","Local Fund Agent Adjusted Principal Recipient Forecast for the Buffer Period",null,"Local Fund Agent - Adjusted Forecast (including the buffer)","Comments"]
[null,"IE1",{"$f":"IFERROR(INDEX('Cash Forecast_8A import-export'!A$73:A$77,MATCH('Cash Forecast_8A'!B141,'Cash Forecast_8A import-export'!O$73:O$77,0)),\"\")","v":"CED-Caritas"},{"$f":"IFERROR(INDEX('Cash Forecast_8A import-export'!B$73:B$77,MATCH('Cash Forecast_8A'!B141,'Cash Forecast_8A import-export'!O$73:O$77,0)),\"\")","v":0},{"$f":"IFERROR(INDEX('Cash Forecast_8A import-export'!C$73:C$77,MATCH('Cash Forecast_8A'!B141,'Cash Forecast_8A import-export'!O$73:O$77,0)),\"\")","v":476359.90745624801},615724.44999999995,{"$f":"IFERROR(INDEX('Cash Forecast_8A import-export'!E$73:E$77,MATCH('Cash Forecast_8A'!B141,'Cash Forecast_8A import-export'!O$73:O$77,0)),\"\")","v":188611.79642494899},188611.79642494934,{"$f":"IFERROR(F141+H141,\"\")","v":804336.24642494926},"On note une augmentation du budget de la période de forecasting de USD 139.364.54 résultant : \n* des engagements au 300618 de USD 76.49 (act 117);\n- des activités (37,39,40, 116,0118 reportées pour USD 139,288.05 ",null,null,null,null,{"$f":"IFERROR(L141+M141,\"\")","v":0}]
[null,"IE2",{"$f":"IFERROR(INDEX('Cash Forecast_8A import-export'!A$73:A$77,MATCH('Cash Forecast_8A'!B142,'Cash Forecast_8A import-export'!O$73:O$77,0)),\"\")","v":"UNDP"},{"$f":"IFERROR(INDEX('Cash Forecast_8A import-export'!B$73:B$77,MATCH('Cash Forecast_8A'!B142,'Cash Forecast_8A import-export'!O$73:O$77,0)),\"\")","v":0},{"$f":"IFERROR(INDEX('Cash Forecast_8A import-export'!C$73:C$77,MATCH('Cash Forecast_8A'!B142,'Cash Forecast_8A import-export'!O$73:O$77,0)),\"\")","v":603489.65782484296},2636107.0791291208,{"$f":"IFERROR(INDEX('Cash Forecast_8A import-export'!E$73:E$77,MATCH('Cash Forecast_8A'!B142,'Cash Forecast_8A import-export'!O$73:O$77,0)),\"\")","v":20354634.308489401},19582520.154491086,{"$f":"IFERROR(F142+H142,\"\")","v":22218627.233620208},"On note une augmentation du budget de la période de forecasting de USD 1,260.503.26 résultant:\n* des engagements au 300618 de USD 687,022.24 (pour lesquel il faut déduire  USD 1,591.09 relatif à l'act 119) pour les act 115, 134, 135, 136, 137, 140, 142, 147, 150, 151, 154 et 167;\n*  des activités reportées  (63, 135, 136, 137, 138,  139, 140, 144,  147 et 154  ) pour USD 1,037,053.85;\n* des activités anticipées (134, 136, 137 et 154) pour USD 295,829.73;\n* des activités dont un dépassement du budget est prévu pour USD 55,959.58 (act 140, 154, 167);\n* des activités annulées (134, 136, 137 et 154) pour USD 295,829.73;\n* des activitées antérieurement (act 134 et 154) payées pour USD -519,532.40\n\n",null,null,null,null,{"$f":"IFERROR(L142+M142,\"\")","v":0}]
[null,"IE3",{"$f":"IFERROR(INDEX('Cash Forecast_8A import-export'!A$73:A$77,MATCH('Cash Forecast_8A'!B143,'Cash Forecast_8A import-export'!O$73:O$77,0)),\"\")","v":"Ministry of Public Health and Fight against AIDS of the Republic of Burundi"},{"$f":"IFERROR(INDEX('Cash Forecast_8A import-export'!B$73:B$77,MATCH('Cash Forecast_8A'!B143,'Cash Forecast_8A import-export'!O$73:O$77,0)),\"\")","v":0},{"$f":"IFERROR(INDEX('Cash Forecast_8A import-export'!C$73:C$77,MATCH('Cash Forecast_8A'!B143,'Cash Forecast_8A import-export'!O$73:O$77,0)),\"\")","v":129315.228150788},135618.17673240716,{"$f":"IFERROR(INDEX('Cash Forecast_8A import-export'!E$73:E$77,MATCH('Cash Forecast_8A'!B143,'Cash Forecast_8A import-export'!O$73:O$77,0)),\"\")","v":183272.75499782001},183272.75499782027,318890.93173022743,"On note une augmentation du budget de la période de forecasting de USD 6,302.95 résultant : \n* des engagements (act 64 et 67) au 300618 de USD 993.98 (en addition à ceux de l'act 119 pour USD 1,591.09)\n* les activités (66 et 76) reportées pour USD 5,308.97",null,null,null,null,0]
[null,"IE4",{"$f":"IFERROR(INDEX('Cash Forecast_8A import-export'!A$73:A$77,MATCH('Cash Forecast_8A'!B144,'Cash Forecast_8A import-export'!O$73:O$77,0)),\"\")","v":""},{"$f":"IFERROR(INDEX('Cash Forecast_8A import-export'!B$73:B$77,MATCH('Cash Forecast_8A'!B144,'Cash Forecast_8A import-export'!O$73:O$77,0)),\"\")","v":""},{"$f":"IFERROR(INDEX('Cash Forecast_8A import-export'!C$73:C$77,MATCH('Cash Forecast_8A'!B144,'Cash Forecast_8A import-export'!O$73:O$77,0)),\"\")","v":""},null,{"$f":"IFERROR(INDEX('Cash Forecast_8A import-export'!E$73:E$77,MATCH('Cash Forecast_8A'!B144,'Cash Forecast_8A import-export'!O$73:O$77,0)),\"\")","v":""},null,0,null,null,null,null,null,0]
[null,"IE5",{"$f":"IFERROR(INDEX('Cash Forecast_8A import-export'!A$73:A$77,MATCH('Cash Forecast_8A'!B145,'Cash Forecast_8A import-export'!O$73:O$77,0)),\"\")","v":""},{"$f":"IFERROR(INDEX('Cash Forecast_8A import-export'!B$73:B$77,MATCH('Cash Forecast_8A'!B145,'Cash Forecast_8A import-export'!O$73:O$77,0)),\"\")","v":""},{"$f":"IFERROR(INDEX('Cash Forecast_8A import-export'!C$73:C$77,MATCH('Cash Forecast_8A'!B145,'Cash Forecast_8A import-export'!O$73:O$77,0)),\"\")","v":""},null,{"$f":"IFERROR(INDEX('Cash Forecast_8A import-export'!E$73:E$77,MATCH('Cash Forecast_8A'!B145,'Cash Forecast_8A import-export'!O$73:O$77,0)),\"\")","v":""},null,0,null,null,null,null,null,0]
[null,"IE6",{"$f":"IFERROR(INDEX('Cash Forecast_8A import-export'!A$73:A$77,MATCH('Cash Forecast_8A'!B146,'Cash Forecast_8A import-export'!O$73:O$77,0)),\"\")","v":""},{"$f":"IFERROR(INDEX('Cash Forecast_8A import-export'!B$73:B$77,MATCH('Cash Forecast_8A'!B146,'Cash Forecast_8A import-export'!O$73:O$77,0)),\"\")","v":""},{"$f":"IFERROR(INDEX('Cash Forecast_8A import-export'!C$73:C$77,MATCH('Cash Forecast_8A'!B146,'Cash Forecast_8A import-export'!O$73:O$77,0)),\"\")","v":""},null,{"$f":"IFERROR(INDEX('Cash Forecast_8A import-export'!E$73:E$77,MATCH('Cash Forecast_8A'!B146,'Cash Forecast_8A import-export'!O$73:O$77,0)),\"\")","v":""},null,0,null,null,null,null,null,0]
[null,"IE7",{"$f":"IFERROR(INDEX('Cash Forecast_8A import-export'!A$73:A$77,MATCH('Cash Forecast_8A'!B147,'Cash Forecast_8A import-export'!O$73:O$77,0)),\"\")","v":""},{"$f":"IFERROR(INDEX('Cash Forecast_8A import-export'!B$73:B$77,MATCH('Cash Forecast_8A'!B147,'Cash Forecast_8A import-export'!O$73:O$77,0)),\"\")","v":""},{"$f":"IFERROR(INDEX('Cash Forecast_8A import-export'!C$73:C$77,MATCH('Cash Forecast_8A'!B147,'Cash Forecast_8A import-export'!O$73:O$77,0)),\"\")","v":""},null,{"$f":"IFERROR(INDEX('Cash Forecast_8A import-export'!E$73:E$77,MATCH('Cash Forecast_8A'!B147,'Cash Forecast_8A import-export'!O$73:O$77,0)),\"\")","v":""},null,0,null,null,null,null,null,0]
[null,"IE8",{"$f":"IFERROR(INDEX('Cash Forecast_8A import-export'!A$73:A$77,MATCH('Cash Forecast_8A'!B148,'Cash Forecast_8A import-export'!O$73:O$77,0)),\"\")","v":""},{"$f":"IFERROR(INDEX('Cash Forecast_8A import-export'!B$73:B$77,MATCH('Cash Forecast_8A'!B148,'Cash Forecast_8A import-export'!O$73:O$77,0)),\"\")","v":""},{"$f":"IFERROR(INDEX('Cash Forecast_8A import-export'!C$73:C$77,MATCH('Cash Forecast_8A'!B148,'Cash Forecast_8A import-export'!O$73:O$77,0)),\"\")","v":""},null,{"$f":"IFERROR(INDEX('Cash Forecast_8A import-export'!E$73:E$77,MATCH('Cash Forecast_8A'!B148,'Cash Forecast_8A import-export'!O$73:O$77,0)),\"\")","v":""},null,0,null,null,null,null,null,0]
[null,"IE9",{"$f":"IFERROR(INDEX('Cash Forecast_8A import-export'!A$73:A$77,MATCH('Cash Forecast_8A'!B149,'Cash Forecast_8A import-export'!O$73:O$77,0)),\"\")","v":""},{"$f":"IFERROR(INDEX('Cash Forecast_8A import-export'!B$73:B$77,MATCH('Cash Forecast_8A'!B149,'Cash Forecast_8A import-export'!O$73:O$77,0)),\"\")","v":""},{"$f":"IFERROR(INDEX('Cash Forecast_8A import-export'!C$73:C$77,MATCH('Cash Forecast_8A'!B149,'Cash Forecast_8A import-export'!O$73:O$77,0)),\"\")","v":""},null,{"$f":"IFERROR(INDEX('Cash Forecast_8A import-export'!E$73:E$77,MATCH('Cash Forecast_8A'!B149,'Cash Forecast_8A import-export'!O$73:O$77,0)),\"\")","v":""},null,0,null,null,null,null,null,0]
[null,"IE10",{"$f":"IFERROR(INDEX('Cash Forecast_8A import-export'!A$73:A$77,MATCH('Cash Forecast_8A'!B150,'Cash Forecast_8A import-export'!O$73:O$77,0)),\"\")","v":""},{"$f":"IFERROR(INDEX('Cash Forecast_8A import-export'!B$73:B$77,MATCH('Cash Forecast_8A'!B150,'Cash Forecast_8A import-export'!O$73:O$77,0)),\"\")","v":""},{"$f":"IFERROR(INDEX('Cash Forecast_8A import-export'!C$73:C$77,MATCH('Cash Forecast_8A'!B150,'Cash Forecast_8A import-export'!O$73:O$77,0)),\"\")","v":""},null,{"$f":"IFERROR(INDEX('Cash Forecast_8A import-export'!E$73:E$77,MATCH('Cash Forecast_8A'!B150,'Cash Forecast_8A import-export'!O$73:O$77,0)),\"\")","v":""},null,0,null,null,null,null,null,0]
[null,"IE11",{"$f":"IFERROR(INDEX('Cash Forecast_8A import-export'!A$73:A$77,MATCH('Cash Forecast_8A'!B151,'Cash Forecast_8A import-export'!O$73:O$77,0)),\"\")","v":""},{"$f":"IFERROR(INDEX('Cash Forecast_8A import-export'!B$73:B$77,MATCH('Cash Forecast_8A'!B151,'Cash Forecast_8A import-export'!O$73:O$77,0)),\"\")","v":""},{"$f":"IFERROR(INDEX('Cash Forecast_8A import-export'!C$73:C$77,MATCH('Cash Forecast_8A'!B151,'Cash Forecast_8A import-export'!O$73:O$77,0)),\"\")","v":""},null,{"$f":"IFERROR(INDEX('Cash Forecast_8A import-export'!E$73:E$77,MATCH('Cash Forecast_8A'!B151,'Cash Forecast_8A import-export'!O$73:O$77,0)),\"\")","v":""},null,0,null,null,null,null,null,0]
[null,"IE12",{"$f":"IFERROR(INDEX('Cash Forecast_8A import-export'!A$73:A$77,MATCH('Cash Forecast_8A'!B152,'Cash Forecast_8A import-export'!O$73:O$77,0)),\"\")","v":""},{"$f":"IFERROR(INDEX('Cash Forecast_8A import-export'!B$73:B$77,MATCH('Cash Forecast_8A'!B152,'Cash Forecast_8A import-export'!O$73:O$77,0)),\"\")","v":""},{"$f":"IFERROR(INDEX('Cash Forecast_8A import-export'!C$73:C$77,MATCH('Cash Forecast_8A'!B152,'Cash Forecast_8A import-export'!O$73:O$77,0)),\"\")","v":""},null,{"$f":"IFERROR(INDEX('Cash Forecast_8A import-export'!E$73:E$77,MATCH('Cash Forecast_8A'!B152,'Cash Forecast_8A import-export'!O$73:O$77,0)),\"\")","v":""},null,0,null,null,null,null,null,0]
[null,"IE13",{"$f":"IFERROR(INDEX('Cash Forecast_8A import-export'!A$73:A$77,MATCH('Cash Forecast_8A'!B153,'Cash Forecast_8A import-export'!O$73:O$77,0)),\"\")","v":""},{"$f":"IFERROR(INDEX('Cash Forecast_8A import-export'!B$73:B$77,MATCH('Cash Forecast_8A'!B153,'Cash Forecast_8A import-export'!O$73:O$77,0)),\"\")","v":""},{"$f":"IFERROR(INDEX('Cash Forecast_8A import-export'!C$73:C$77,MATCH('Cash Forecast_8A'!B153,'Cash Forecast_8A import-export'!O$73:O$77,0)),\"\")","v":""},null,{"$f":"IFERROR(INDEX('Cash Forecast_8A import-export'!E$73:E$77,MATCH('Cash Forecast_8A'!B153,'Cash Forecast_8A import-export'!O$73:O$77,0)),\"\")","v":""},null,0,null,null,null,null,null,0]
[null,"IE14",{"$f":"IFERROR(INDEX('Cash Forecast_8A import-export'!A$73:A$77,MATCH('Cash Forecast_8A'!B154,'Cash Forecast_8A import-export'!O$73:O$77,0)),\"\")","v":""},{"$f":"IFERROR(INDEX('Cash Forecast_8A import-export'!B$73:B$77,MATCH('Cash Forecast_8A'!B154,'Cash Forecast_8A import-export'!O$73:O$77,0)),\"\")","v":""},{"$f":"IFERROR(INDEX('Cash Forecast_8A import-export'!C$73:C$77,MATCH('Cash Forecast_8A'!B154,'Cash Forecast_8A import-export'!O$73:O$77,0)),\"\")","v":""},null,{"$f":"IFERROR(INDEX('Cash Forecast_8A import-export'!E$73:E$77,MATCH('Cash Forecast_8A'!B154,'Cash Forecast_8A import-export'!O$73:O$77,0)),\"\")","v":""},null,0,null,null,null,null,null,0]
[null,"IE15",{"$f":"IFERROR(INDEX('Cash Forecast_8A import-export'!A$73:A$77,MATCH('Cash Forecast_8A'!B155,'Cash Forecast_8A import-export'!O$73:O$77,0)),\"\")","v":""},{"$f":"IFERROR(INDEX('Cash Forecast_8A import-export'!B$73:B$77,MATCH('Cash Forecast_8A'!B155,'Cash Forecast_8A import-export'!O$73:O$77,0)),\"\")","v":""},{"$f":"IFERROR(INDEX('Cash Forecast_8A import-export'!C$73:C$77,MATCH('Cash Forecast_8A'!B155,'Cash Forecast_8A import-export'!O$73:O$77,0)),\"\")","v":""},null,{"$f":"IFERROR(INDEX('Cash Forecast_8A import-export'!E$73:E$77,MATCH('Cash Forecast_8A'!B155,'Cash Forecast_8A import-export'!O$73:O$77,0)),\"\")","v":""},null,0,null,null,null,null,null,0]
[null,"IE16",{"$f":"IFERROR(INDEX('Cash Forecast_8A import-export'!A$73:A$77,MATCH('Cash Forecast_8A'!B156,'Cash Forecast_8A import-export'!O$73:O$77,0)),\"\")","v":""},{"$f":"IFERROR(INDEX('Cash Forecast_8A import-export'!B$73:B$77,MATCH('Cash Forecast_8A'!B156,'Cash Forecast_8A import-export'!O$73:O$77,0)),\"\")","v":""},{"$f":"IFERROR(INDEX('Cash Forecast_8A import-export'!C$73:C$77,MATCH('Cash Forecast_8A'!B156,'Cash Forecast_8A import-export'!O$73:O$77,0)),\"\")","v":""},null,{"$f":"IFERROR(INDEX('Cash Forecast_8A import-export'!E$73:E$77,MATCH('Cash Forecast_8A'!B156,'Cash Forecast_8A import-export'!O$73:O$77,0)),\"\")","v":""},null,0,null,null,null,null,null,0]
[null,"IE17",{"$f":"IFERROR(INDEX('Cash Forecast_8A import-export'!A$73:A$77,MATCH('Cash Forecast_8A'!B157,'Cash Forecast_8A import-export'!O$73:O$77,0)),\"\")","v":""},{"$f":"IFERROR(INDEX('Cash Forecast_8A import-export'!B$73:B$77,MATCH('Cash Forecast_8A'!B157,'Cash Forecast_8A import-export'!O$73:O$77,0)),\"\")","v":""},{"$f":"IFERROR(INDEX('Cash Forecast_8A import-export'!C$73:C$77,MATCH('Cash Forecast_8A'!B157,'Cash Forecast_8A import-export'!O$73:O$77,0)),\"\")","v":""},null,{"$f":"IFERROR(INDEX('Cash Forecast_8A import-export'!E$73:E$77,MATCH('Cash Forecast_8A'!B157,'Cash Forecast_8A import-export'!O$73:O$77,0)),\"\")","v":""},null,0,null,null,null,null,null,0]
[null,"IE18",{"$f":"IFERROR(INDEX('Cash Forecast_8A import-export'!A$73:A$77,MATCH('Cash Forecast_8A'!B158,'Cash Forecast_8A import-export'!O$73:O$77,0)),\"\")","v":""},{"$f":"IFERROR(INDEX('Cash Forecast_8A import-export'!B$73:B$77,MATCH('Cash Forecast_8A'!B158,'Cash Forecast_8A import-export'!O$73:O$77,0)),\"\")","v":""},{"$f":"IFERROR(INDEX('Cash Forecast_8A import-export'!C$73:C$77,MATCH('Cash Forecast_8A'!B158,'Cash Forecast_8A import-export'!O$73:O$77,0)),\"\")","v":""},null,{"$f":"IFERROR(INDEX('Cash Forecast_8A import-export'!E$73:E$77,MATCH('Cash Forecast_8A'!B158,'Cash Forecast_8A import-export'!O$73:O$77,0)),\"\")","v":""},null,0,null,null,null,null,null,0]
[null,"IE19",{"$f":"IFERROR(INDEX('Cash Forecast_8A import-export'!A$73:A$77,MATCH('Cash Forecast_8A'!B159,'Cash Forecast_8A import-export'!O$73:O$77,0)),\"\")","v":""},{"$f":"IFERROR(INDEX('Cash Forecast_8A import-export'!B$73:B$77,MATCH('Cash Forecast_8A'!B159,'Cash Forecast_8A import-export'!O$73:O$77,0)),\"\")","v":""},{"$f":"IFERROR(INDEX('Cash Forecast_8A import-export'!C$73:C$77,MATCH('Cash Forecast_8A'!B159,'Cash Forecast_8A import-export'!O$73:O$77,0)),\"\")","v":""},null,{"$f":"IFERROR(INDEX('Cash Forecast_8A import-export'!E$73:E$77,MATCH('Cash Forecast_8A'!B159,'Cash Forecast_8A import-export'!O$73:O$77,0)),\"\")","v":""},null,0,null,null,null,null,null,0]
[null,"IE20",{"$f":"IFERROR(INDEX('Cash Forecast_8A import-export'!A$73:A$77,MATCH('Cash Forecast_8A'!B160,'Cash Forecast_8A import-export'!O$73:O$77,0)),\"\")","v":""},{"$f":"IFERROR(INDEX('Cash Forecast_8A import-export'!B$73:B$77,MATCH('Cash Forecast_8A'!B160,'Cash Forecast_8A import-export'!O$73:O$77,0)),\"\")","v":""},{"$f":"IFERROR(INDEX('Cash Forecast_8A import-export'!C$73:C$77,MATCH('Cash Forecast_8A'!B160,'Cash Forecast_8A import-export'!O$73:O$77,0)),\"\")","v":""},null,{"$f":"IFERROR(INDEX('Cash Forecast_8A import-export'!E$73:E$77,MATCH('Cash Forecast_8A'!B160,'Cash Forecast_8A import-export'!O$73:O$77,0)),\"\")","v":""},null,0,null,null,null,null,null,0]
[null,"IE21",{"$f":"IFERROR(INDEX('Cash Forecast_8A import-export'!A$73:A$77,MATCH('Cash Forecast_8A'!B161,'Cash Forecast_8A import-export'!O$73:O$77,0)),\"\")","v":""},{"$f":"IFERROR(INDEX('Cash Forecast_8A import-export'!B$73:B$77,MATCH('Cash Forecast_8A'!B161,'Cash Forecast_8A import-export'!O$73:O$77,0)),\"\")","v":""},{"$f":"IFERROR(INDEX('Cash Forecast_8A import-export'!C$73:C$77,MATCH('Cash Forecast_8A'!B161,'Cash Forecast_8A import-export'!O$73:O$77,0)),\"\")","v":""},null,{"$f":"IFERROR(INDEX('Cash Forecast_8A import-export'!E$73:E$77,MATCH('Cash Forecast_8A'!B161,'Cash Forecast_8A import-export'!O$73:O$77,0)),\"\")","v":""},null,0,null,null,null,null,null,0]
[null,"IE22",{"$f":"IFERROR(INDEX('Cash Forecast_8A import-export'!A$73:A$77,MATCH('Cash Forecast_8A'!B162,'Cash Forecast_8A import-export'!O$73:O$77,0)),\"\")","v":""},{"$f":"IFERROR(INDEX('Cash Forecast_8A import-export'!B$73:B$77,MATCH('Cash Forecast_8A'!B162,'Cash Forecast_8A import-export'!O$73:O$77,0)),\"\")","v":""},{"$f":"IFERROR(INDEX('Cash Forecast_8A import-export'!C$73:C$77,MATCH('Cash Forecast_8A'!B162,'Cash Forecast_8A import-export'!O$73:O$77,0)),\"\")","v":""},null,{"$f":"IFERROR(INDEX('Cash Forecast_8A import-export'!E$73:E$77,MATCH('Cash Forecast_8A'!B162,'Cash Forecast_8A import-export'!O$73:O$77,0)),\"\")","v":""},null,0,null,null,null,null,null,0]
[null,"IE23",{"$f":"IFERROR(INDEX('Cash Forecast_8A import-export'!A$73:A$77,MATCH('Cash Forecast_8A'!B163,'Cash Forecast_8A import-export'!O$73:O$77,0)),\"\")","v":""},{"$f":"IFERROR(INDEX('Cash Forecast_8A import-export'!B$73:B$77,MATCH('Cash Forecast_8A'!B163,'Cash Forecast_8A import-export'!O$73:O$77,0)),\"\")","v":""},{"$f":"IFERROR(INDEX('Cash Forecast_8A import-export'!C$73:C$77,MATCH('Cash Forecast_8A'!B163,'Cash Forecast_8A import-export'!O$73:O$77,0)),\"\")","v":""},null,{"$f":"IFERROR(INDEX('Cash Forecast_8A import-export'!E$73:E$77,MATCH('Cash Forecast_8A'!B163,'Cash Forecast_8A import-export'!O$73:O$77,0)),\"\")","v":""},null,0,null,null,null,null,null,0]
[null,"IE24",{"$f":"IFERROR(INDEX('Cash Forecast_8A import-export'!A$73:A$77,MATCH('Cash Forecast_8A'!B164,'Cash Forecast_8A import-export'!O$73:O$77,0)),\"\")","v":""},{"$f":"IFERROR(INDEX('Cash Forecast_8A import-export'!B$73:B$77,MATCH('Cash Forecast_8A'!B164,'Cash Forecast_8A import-export'!O$73:O$77,0)),\"\")","v":""},{"$f":"IFERROR(INDEX('Cash Forecast_8A import-export'!C$73:C$77,MATCH('Cash Forecast_8A'!B164,'Cash Forecast_8A import-export'!O$73:O$77,0)),\"\")","v":""},null,{"$f":"IFERROR(INDEX('Cash Forecast_8A import-export'!E$73:E$77,MATCH('Cash Forecast_8A'!B164,'Cash Forecast_8A import-export'!O$73:O$77,0)),\"\")","v":""},null,0,null,null,null,null,null,0]
[null,"IE25",{"$f":"IFERROR(INDEX('Cash Forecast_8A import-export'!A$73:A$77,MATCH('Cash Forecast_8A'!B165,'Cash Forecast_8A import-export'!O$73:O$77,0)),\"\")","v":""},{"$f":"IFERROR(INDEX('Cash Forecast_8A import-export'!B$73:B$77,MATCH('Cash Forecast_8A'!B165,'Cash Forecast_8A import-export'!O$73:O$77,0)),\"\")","v":""},{"$f":"IFERROR(INDEX('Cash Forecast_8A import-export'!C$73:C$77,MATCH('Cash Forecast_8A'!B165,'Cash Forecast_8A import-export'!O$73:O$77,0)),\"\")","v":""},null,{"$f":"IFERROR(INDEX('Cash Forecast_8A import-export'!E$73:E$77,MATCH('Cash Forecast_8A'!B165,'Cash Forecast_8A import-export'!O$73:O$77,0)),\"\")","v":""},null,0,null,null,null,null,null,0]
[null,"IE26",{"$f":"IFERROR(INDEX('Cash Forecast_8A import-export'!A$73:A$77,MATCH('Cash Forecast_8A'!B166,'Cash Forecast_8A import-export'!O$73:O$77,0)),\"\")","v":""},{"$f":"IFERROR(INDEX('Cash Forecast_8A import-export'!B$73:B$77,MATCH('Cash Forecast_8A'!B166,'Cash Forecast_8A import-export'!O$73:O$77,0)),\"\")","v":""},{"$f":"IFERROR(INDEX('Cash Forecast_8A import-export'!C$73:C$77,MATCH('Cash Forecast_8A'!B166,'Cash Forecast_8A import-export'!O$73:O$77,0)),\"\")","v":""},null,{"$f":"IFERROR(INDEX('Cash Forecast_8A import-export'!E$73:E$77,MATCH('Cash Forecast_8A'!B166,'Cash Forecast_8A import-export'!O$73:O$77,0)),\"\")","v":""},null,0,null,null,null,null,null,0]
[null,"IE27",{"$f":"IFERROR(INDEX('Cash Forecast_8A import-export'!A$73:A$77,MATCH('Cash Forecast_8A'!B167,'Cash Forecast_8A import-export'!O$73:O$77,0)),\"\")","v":""},{"$f":"IFERROR(INDEX('Cash Forecast_8A import-export'!B$73:B$77,MATCH('Cash Forecast_8A'!B167,'Cash Forecast_8A import-export'!O$73:O$77,0)),\"\")","v":""},{"$f":"IFERROR(INDEX('Cash Forecast_8A import-export'!C$73:C$77,MATCH('Cash Forecast_8A'!B167,'Cash Forecast_8A import-export'!O$73:O$77,0)),\"\")","v":""},null,{"$f":"IFERROR(INDEX('Cash Forecast_8A import-export'!E$73:E$77,MATCH('Cash Forecast_8A'!B167,'Cash Forecast_8A import-export'!O$73:O$77,0)),\"\")","v":""},null,0,null,null,null,null,null,0]
[null,"IE28",{"$f":"IFERROR(INDEX('Cash Forecast_8A import-export'!A$73:A$77,MATCH('Cash Forecast_8A'!B168,'Cash Forecast_8A import-export'!O$73:O$77,0)),\"\")","v":""},{"$f":"IFERROR(INDEX('Cash Forecast_8A import-export'!B$73:B$77,MATCH('Cash Forecast_8A'!B168,'Cash Forecast_8A import-export'!O$73:O$77,0)),\"\")","v":""},{"$f":"IFERROR(INDEX('Cash Forecast_8A import-export'!C$73:C$77,MATCH('Cash Forecast_8A'!B168,'Cash Forecast_8A import-export'!O$73:O$77,0)),\"\")","v":""},null,{"$f":"IFERROR(INDEX('Cash Forecast_8A import-export'!E$73:E$77,MATCH('Cash Forecast_8A'!B168,'Cash Forecast_8A import-export'!O$73:O$77,0)),\"\")","v":""},null,0,null,null,null,null,null,0]
[null,"IE29",{"$f":"IFERROR(INDEX('Cash Forecast_8A import-export'!A$73:A$77,MATCH('Cash Forecast_8A'!B169,'Cash Forecast_8A import-export'!O$73:O$77,0)),\"\")","v":""},{"$f":"IFERROR(INDEX('Cash Forecast_8A import-export'!B$73:B$77,MATCH('Cash Forecast_8A'!B169,'Cash Forecast_8A import-export'!O$73:O$77,0)),\"\")","v":""},{"$f":"IFERROR(INDEX('Cash Forecast_8A import-export'!C$73:C$77,MATCH('Cash Forecast_8A'!B169,'Cash Forecast_8A import-export'!O$73:O$77,0)),\"\")","v":""},null,{"$f":"IFERROR(INDEX('Cash Forecast_8A import-export'!E$73:E$77,MATCH('Cash Forecast_8A'!B169,'Cash Forecast_8A import-export'!O$73:O$77,0)),\"\")","v":""},null,0,null,null,null,null,null,0]
[null,"IE30",{"$f":"IFERROR(INDEX('Cash Forecast_8A import-export'!A$73:A$77,MATCH('Cash Forecast_8A'!B170,'Cash Forecast_8A import-export'!O$73:O$77,0)),\"\")","v":""},{"$f":"IFERROR(INDEX('Cash Forecast_8A import-export'!B$73:B$77,MATCH('Cash Forecast_8A'!B170,'Cash Forecast_8A import-export'!O$73:O$77,0)),\"\")","v":""},{"$f":"IFERROR(INDEX('Cash Forecast_8A import-export'!C$73:C$77,MATCH('Cash Forecast_8A'!B170,'Cash Forecast_8A import-export'!O$73:O$77,0)),\"\")","v":""},null,{"$f":"IFERROR(INDEX('Cash Forecast_8A import-export'!E$73:E$77,MATCH('Cash Forecast_8A'!B170,'Cash Forecast_8A import-export'!O$73:O$77,0)),\"\")","v":""},null,0,null,null,null,null,null,0]
[null,"IE31",{"$f":"IFERROR(INDEX('Cash Forecast_8A import-export'!A$73:A$77,MATCH('Cash Forecast_8A'!B171,'Cash Forecast_8A import-export'!O$73:O$77,0)),\"\")","v":""},{"$f":"IFERROR(INDEX('Cash Forecast_8A import-export'!B$73:B$77,MATCH('Cash Forecast_8A'!B171,'Cash Forecast_8A import-export'!O$73:O$77,0)),\"\")","v":""},{"$f":"IFERROR(INDEX('Cash Forecast_8A import-export'!C$73:C$77,MATCH('Cash Forecast_8A'!B171,'Cash Forecast_8A import-export'!O$73:O$77,0)),\"\")","v":""},null,{"$f":"IFERROR(INDEX('Cash Forecast_8A import-export'!E$73:E$77,MATCH('Cash Forecast_8A'!B171,'Cash Forecast_8A import-export'!O$73:O$77,0)),\"\")","v":""},null,0,null,null,null,null,null,0]
[null,"IE32",{"$f":"IFERROR(INDEX('Cash Forecast_8A import-export'!A$73:A$77,MATCH('Cash Forecast_8A'!B172,'Cash Forecast_8A import-export'!O$73:O$77,0)),\"\")","v":""},{"$f":"IFERROR(INDEX('Cash Forecast_8A import-export'!B$73:B$77,MATCH('Cash Forecast_8A'!B172,'Cash Forecast_8A import-export'!O$73:O$77,0)),\"\")","v":""},{"$f":"IFERROR(INDEX('Cash Forecast_8A import-export'!C$73:C$77,MATCH('Cash Forecast_8A'!B172,'Cash Forecast_8A import-export'!O$73:O$77,0)),\"\")","v":""},null,{"$f":"IFERROR(INDEX('Cash Forecast_8A import-export'!E$73:E$77,MATCH('Cash Forecast_8A'!B172,'Cash Forecast_8A import-export'!O$73:O$77,0)),\"\")","v":""},null,0,null,null,null,null,null,0]
[null,"IE33",{"$f":"IFERROR(INDEX('Cash Forecast_8A import-export'!A$73:A$77,MATCH('Cash Forecast_8A'!B173,'Cash Forecast_8A import-export'!O$73:O$77,0)),\"\")","v":""},{"$f":"IFERROR(INDEX('Cash Forecast_8A import-export'!B$73:B$77,MATCH('Cash Forecast_8A'!B173,'Cash Forecast_8A import-export'!O$73:O$77,0)),\"\")","v":""},{"$f":"IFERROR(INDEX('Cash Forecast_8A import-export'!C$73:C$77,MATCH('Cash Forecast_8A'!B173,'Cash Forecast_8A import-export'!O$73:O$77,0)),\"\")","v":""},null,{"$f":"IFERROR(INDEX('Cash Forecast_8A import-export'!E$73:E$77,MATCH('Cash Forecast_8A'!B173,'Cash Forecast_8A import-export'!O$73:O$77,0)),\"\")","v":""},null,0,null,null,null,null,null,0]
[null,"IE34",{"$f":"IFERROR(INDEX('Cash Forecast_8A import-export'!A$73:A$77,MATCH('Cash Forecast_8A'!B174,'Cash Forecast_8A import-export'!O$73:O$77,0)),\"\")","v":""},{"$f":"IFERROR(INDEX('Cash Forecast_8A import-export'!B$73:B$77,MATCH('Cash Forecast_8A'!B174,'Cash Forecast_8A import-export'!O$73:O$77,0)),\"\")","v":""},{"$f":"IFERROR(INDEX('Cash Forecast_8A import-export'!C$73:C$77,MATCH('Cash Forecast_8A'!B174,'Cash Forecast_8A import-export'!O$73:O$77,0)),\"\")","v":""},null,{"$f":"IFERROR(INDEX('Cash Forecast_8A import-export'!E$73:E$77,MATCH('Cash Forecast_8A'!B174,'Cash Forecast_8A import-export'!O$73:O$77,0)),\"\")","v":""},null,0,null,null,null,null,null,0]
[null,"IE35",{"$f":"IFERROR(INDEX('Cash Forecast_8A import-export'!A$73:A$77,MATCH('Cash Forecast_8A'!B175,'Cash Forecast_8A import-export'!O$73:O$77,0)),\"\")","v":""},{"$f":"IFERROR(INDEX('Cash Forecast_8A import-export'!B$73:B$77,MATCH('Cash Forecast_8A'!B175,'Cash Forecast_8A import-export'!O$73:O$77,0)),\"\")","v":""},{"$f":"IFERROR(INDEX('Cash Forecast_8A import-export'!C$73:C$77,MATCH('Cash Forecast_8A'!B175,'Cash Forecast_8A import-export'!O$73:O$77,0)),\"\")","v":""},null,{"$f":"IFERROR(INDEX('Cash Forecast_8A import-export'!E$73:E$77,MATCH('Cash Forecast_8A'!B175,'Cash Forecast_8A import-export'!O$73:O$77,0)),\"\")","v":""},null,0,null,null,null,null,null,0]
[null,"IE36",{"$f":"IFERROR(INDEX('Cash Forecast_8A import-export'!A$73:A$77,MATCH('Cash Forecast_8A'!B176,'Cash Forecast_8A import-export'!O$73:O$77,0)),\"\")","v":""},{"$f":"IFERROR(INDEX('Cash Forecast_8A import-export'!B$73:B$77,MATCH('Cash Forecast_8A'!B176,'Cash Forecast_8A import-export'!O$73:O$77,0)),\"\")","v":""},{"$f":"IFERROR(INDEX('Cash Forecast_8A import-export'!C$73:C$77,MATCH('Cash Forecast_8A'!B176,'Cash Forecast_8A import-export'!O$73:O$77,0)),\"\")","v":""},null,{"$f":"IFERROR(INDEX('Cash Forecast_8A import-export'!E$73:E$77,MATCH('Cash Forecast_8A'!B176,'Cash Forecast_8A import-export'!O$73:O$77,0)),\"\")","v":""},null,0,null,null,null,null,null,0]
[null,"IE37",{"$f":"IFERROR(INDEX('Cash Forecast_8A import-export'!A$73:A$77,MATCH('Cash Forecast_8A'!B177,'Cash Forecast_8A import-export'!O$73:O$77,0)),\"\")","v":""},{"$f":"IFERROR(INDEX('Cash Forecast_8A import-export'!B$73:B$77,MATCH('Cash Forecast_8A'!B177,'Cash Forecast_8A import-export'!O$73:O$77,0)),\"\")","v":""},{"$f":"IFERROR(INDEX('Cash Forecast_8A import-export'!C$73:C$77,MATCH('Cash Forecast_8A'!B177,'Cash Forecast_8A import-export'!O$73:O$77,0)),\"\")","v":""},null,{"$f":"IFERROR(INDEX('Cash Forecast_8A import-export'!E$73:E$77,MATCH('Cash Forecast_8A'!B177,'Cash Forecast_8A import-export'!O$73:O$77,0)),\"\")","v":""},null,0,null,null,null,null,null,0]
[null,"IE38",{"$f":"IFERROR(INDEX('Cash Forecast_8A import-export'!A$73:A$77,MATCH('Cash Forecast_8A'!B178,'Cash Forecast_8A import-export'!O$73:O$77,0)),\"\")","v":""},{"$f":"IFERROR(INDEX('Cash Forecast_8A import-export'!B$73:B$77,MATCH('Cash Forecast_8A'!B178,'Cash Forecast_8A import-export'!O$73:O$77,0)),\"\")","v":""},{"$f":"IFERROR(INDEX('Cash Forecast_8A import-export'!C$73:C$77,MATCH('Cash Forecast_8A'!B178,'Cash Forecast_8A import-export'!O$73:O$77,0)),\"\")","v":""},null,{"$f":"IFERROR(INDEX('Cash Forecast_8A import-export'!E$73:E$77,MATCH('Cash Forecast_8A'!B178,'Cash Forecast_8A import-export'!O$73:O$77,0)),\"\")","v":""},null,0,null,null,null,null,null,0]
[null,"IE39",{"$f":"IFERROR(INDEX('Cash Forecast_8A import-export'!A$73:A$77,MATCH('Cash Forecast_8A'!B179,'Cash Forecast_8A import-export'!O$73:O$77,0)),\"\")","v":""},{"$f":"IFERROR(INDEX('Cash Forecast_8A import-export'!B$73:B$77,MATCH('Cash Forecast_8A'!B179,'Cash Forecast_8A import-export'!O$73:O$77,0)),\"\")","v":""},{"$f":"IFERROR(INDEX('Cash Forecast_8A import-export'!C$73:C$77,MATCH('Cash Forecast_8A'!B179,'Cash Forecast_8A import-export'!O$73:O$77,0)),\"\")","v":""},null,{"$f":"IFERROR(INDEX('Cash Forecast_8A import-export'!E$73:E$77,MATCH('Cash Forecast_8A'!B179,'Cash Forecast_8A import-export'!O$73:O$77,0)),\"\")","v":""},null,0,null,null,null,null,null,0]
[null,"IE40",{"$f":"IFERROR(INDEX('Cash Forecast_8A import-export'!A$73:A$77,MATCH('Cash Forecast_8A'!B180,'Cash Forecast_8A import-export'!O$73:O$77,0)),\"\")","v":""},{"$f":"IFERROR(INDEX('Cash Forecast_8A import-export'!B$73:B$77,MATCH('Cash Forecast_8A'!B180,'Cash Forecast_8A import-export'!O$73:O$77,0)),\"\")","v":""},{"$f":"IFERROR(INDEX('Cash Forecast_8A import-export'!C$73:C$77,MATCH('Cash Forecast_8A'!B180,'Cash Forecast_8A import-export'!O$73:O$77,0)),\"\")","v":""},null,{"$f":"IFERROR(INDEX('Cash Forecast_8A import-export'!E$73:E$77,MATCH('Cash Forecast_8A'!B180,'Cash Forecast_8A import-export'!O$73:O$77,0)),\"\")","v":""},null,0,null,null,null,null,null,0]
[null,"IE41",{"$f":"IFERROR(INDEX('Cash Forecast_8A import-export'!A$73:A$77,MATCH('Cash Forecast_8A'!B181,'Cash Forecast_8A import-export'!O$73:O$77,0)),\"\")","v":""},{"$f":"IFERROR(INDEX('Cash Forecast_8A import-export'!B$73:B$77,MATCH('Cash Forecast_8A'!B181,'Cash Forecast_8A import-export'!O$73:O$77,0)),\"\")","v":""},{"$f":"IFERROR(INDEX('Cash Forecast_8A import-export'!C$73:C$77,MATCH('Cash Forecast_8A'!B181,'Cash Forecast_8A import-export'!O$73:O$77,0)),\"\")","v":""},null,{"$f":"IFERROR(INDEX('Cash Forecast_8A import-export'!E$73:E$77,MATCH('Cash Forecast_8A'!B181,'Cash Forecast_8A import-export'!O$73:O$77,0)),\"\")","v":""},null,0,null,null,null,null,null,0]
[null,"IE42",{"$f":"IFERROR(INDEX('Cash Forecast_8A import-export'!A$73:A$77,MATCH('Cash Forecast_8A'!B182,'Cash Forecast_8A import-export'!O$73:O$77,0)),\"\")","v":""},{"$f":"IFERROR(INDEX('Cash Forecast_8A import-export'!B$73:B$77,MATCH('Cash Forecast_8A'!B182,'Cash Forecast_8A import-export'!O$73:O$77,0)),\"\")","v":""},{"$f":"IFERROR(INDEX('Cash Forecast_8A import-export'!C$73:C$77,MATCH('Cash Forecast_8A'!B182,'Cash Forecast_8A import-export'!O$73:O$77,0)),\"\")","v":""},null,{"$f":"IFERROR(INDEX('Cash Forecast_8A import-export'!E$73:E$77,MATCH('Cash Forecast_8A'!B182,'Cash Forecast_8A import-export'!O$73:O$77,0)),\"\")","v":""},null,0,null,null,null,null,null,0]
[null,"IE43",{"$f":"IFERROR(INDEX('Cash Forecast_8A import-export'!A$73:A$77,MATCH('Cash Forecast_8A'!B183,'Cash Forecast_8A import-export'!O$73:O$77,0)),\"\")","v":""},{"$f":"IFERROR(INDEX('Cash Forecast_8A import-export'!B$73:B$77,MATCH('Cash Forecast_8A'!B183,'Cash Forecast_8A import-export'!O$73:O$77,0)),\"\")","v":""},{"$f":"IFERROR(INDEX('Cash Forecast_8A import-export'!C$73:C$77,MATCH('Cash Forecast_8A'!B183,'Cash Forecast_8A import-export'!O$73:O$77,0)),\"\")","v":""},null,{"$f":"IFERROR(INDEX('Cash Forecast_8A import-export'!E$73:E$77,MATCH('Cash Forecast_8A'!B183,'Cash Forecast_8A import-export'!O$73:O$77,0)),\"\")","v":""},null,0,null,null,null,null,null,0]
[null,"IE44",{"$f":"IFERROR(INDEX('Cash Forecast_8A import-export'!A$73:A$77,MATCH('Cash Forecast_8A'!B184,'Cash Forecast_8A import-export'!O$73:O$77,0)),\"\")","v":""},{"$f":"IFERROR(INDEX('Cash Forecast_8A import-export'!B$73:B$77,MATCH('Cash Forecast_8A'!B184,'Cash Forecast_8A import-export'!O$73:O$77,0)),\"\")","v":""},{"$f":"IFERROR(INDEX('Cash Forecast_8A import-export'!C$73:C$77,MATCH('Cash Forecast_8A'!B184,'Cash Forecast_8A import-export'!O$73:O$77,0)),\"\")","v":""},null,{"$f":"IFERROR(INDEX('Cash Forecast_8A import-export'!E$73:E$77,MATCH('Cash Forecast_8A'!B184,'Cash Forecast_8A import-export'!O$73:O$77,0)),\"\")","v":""},null,0,null,null,null,null,null,0]
[null,"IE45",{"$f":"IFERROR(INDEX('Cash Forecast_8A import-export'!A$73:A$77,MATCH('Cash Forecast_8A'!B185,'Cash Forecast_8A import-export'!O$73:O$77,0)),\"\")","v":""},{"$f":"IFERROR(INDEX('Cash Forecast_8A import-export'!B$73:B$77,MATCH('Cash Forecast_8A'!B185,'Cash Forecast_8A import-export'!O$73:O$77,0)),\"\")","v":""},{"$f":"IFERROR(INDEX('Cash Forecast_8A import-export'!C$73:C$77,MATCH('Cash Forecast_8A'!B185,'Cash Forecast_8A import-export'!O$73:O$77,0)),\"\")","v":""},null,{"$f":"IFERROR(INDEX('Cash Forecast_8A import-export'!E$73:E$77,MATCH('Cash Forecast_8A'!B185,'Cash Forecast_8A import-export'!O$73:O$77,0)),\"\")","v":""},null,0,null,null,null,null,null,0]
[null,"IE46",{"$f":"IFERROR(INDEX('Cash Forecast_8A import-export'!A$73:A$77,MATCH('Cash Forecast_8A'!B186,'Cash Forecast_8A import-export'!O$73:O$77,0)),\"\")","v":""},{"$f":"IFERROR(INDEX('Cash Forecast_8A import-export'!B$73:B$77,MATCH('Cash Forecast_8A'!B186,'Cash Forecast_8A import-export'!O$73:O$77,0)),\"\")","v":""},{"$f":"IFERROR(INDEX('Cash Forecast_8A import-export'!C$73:C$77,MATCH('Cash Forecast_8A'!B186,'Cash Forecast_8A import-export'!O$73:O$77,0)),\"\")","v":""},null,{"$f":"IFERROR(INDEX('Cash Forecast_8A import-export'!E$73:E$77,MATCH('Cash Forecast_8A'!B186,'Cash Forecast_8A import-export'!O$73:O$77,0)),\"\")","v":""},null,0,null,null,null,null,null,0]
[null,"IE47",{"$f":"IFERROR(INDEX('Cash Forecast_8A import-export'!A$73:A$77,MATCH('Cash Forecast_8A'!B187,'Cash Forecast_8A import-export'!O$73:O$77,0)),\"\")","v":""},{"$f":"IFERROR(INDEX('Cash Forecast_8A import-export'!B$73:B$77,MATCH('Cash Forecast_8A'!B187,'Cash Forecast_8A import-export'!O$73:O$77,0)),\"\")","v":""},{"$f":"IFERROR(INDEX('Cash Forecast_8A import-export'!C$73:C$77,MATCH('Cash Forecast_8A'!B187,'Cash Forecast_8A import-export'!O$73:O$77,0)),\"\")","v":""},null,{"$f":"IFERROR(INDEX('Cash Forecast_8A import-export'!E$73:E$77,MATCH('Cash Forecast_8A'!B187,'Cash Forecast_8A import-export'!O$73:O$77,0)),\"\")","v":""},null,0,null,null,null,null,null,0]
[null,"IE48",{"$f":"IFERROR(INDEX('Cash Forecast_8A import-export'!A$73:A$77,MATCH('Cash Forecast_8A'!B188,'Cash Forecast_8A import-export'!O$73:O$77,0)),\"\")","v":""},{"$f":"IFERROR(INDEX('Cash Forecast_8A import-export'!B$73:B$77,MATCH('Cash Forecast_8A'!B188,'Cash Forecast_8A import-export'!O$73:O$77,0)),\"\")","v":""},{"$f":"IFERROR(INDEX('Cash Forecast_8A import-export'!C$73:C$77,MATCH('Cash Forecast_8A'!B188,'Cash Forecast_8A import-export'!O$73:O$77,0)),\"\")","v":""},null,{"$f":"IFERROR(INDEX('Cash Forecast_8A import-export'!E$73:E$77,MATCH('Cash Forecast_8A'!B188,'Cash Forecast_8A import-export'!O$73:O$77,0)),\"\")","v":""},null,0,null,null,null,null,null,0]
[null,"IE49",{"$f":"IFERROR(INDEX('Cash Forecast_8A import-export'!A$73:A$77,MATCH('Cash Forecast_8A'!B189,'Cash Forecast_8A import-export'!O$73:O$77,0)),\"\")","v":""},{"$f":"IFERROR(INDEX('Cash Forecast_8A import-export'!B$73:B$77,MATCH('Cash Forecast_8A'!B189,'Cash Forecast_8A import-export'!O$73:O$77,0)),\"\")","v":""},{"$f":"IFERROR(INDEX('Cash Forecast_8A import-export'!C$73:C$77,MATCH('Cash Forecast_8A'!B189,'Cash Forecast_8A import-export'!O$73:O$77,0)),\"\")","v":""},null,{"$f":"IFERROR(INDEX('Cash Forecast_8A import-export'!E$73:E$77,MATCH('Cash Forecast_8A'!B189,'Cash Forecast_8A import-export'!O$73:O$77,0)),\"\")","v":""},null,0,null,null,null,null,null,0]
[null,"IE50",{"$f":"IFERROR(INDEX('Cash Forecast_8A import-export'!A$73:A$77,MATCH('Cash Forecast_8A'!B190,'Cash Forecast_8A import-export'!O$73:O$77,0)),\"\")","v":""},{"$f":"IFERROR(INDEX('Cash Forecast_8A import-export'!B$73:B$77,MATCH('Cash Forecast_8A'!B190,'Cash Forecast_8A import-export'!O$73:O$77,0)),\"\")","v":""},{"$f":"IFERROR(INDEX('Cash Forecast_8A import-export'!C$73:C$77,MATCH('Cash Forecast_8A'!B190,'Cash Forecast_8A import-export'!O$73:O$77,0)),\"\")","v":""},null,{"$f":"IFERROR(INDEX('Cash Forecast_8A import-export'!E$73:E$77,MATCH('Cash Forecast_8A'!B190,'Cash Forecast_8A import-export'!O$73:O$77,0)),\"\")","v":""},null,0,null,null,null,null,null,0]
[null,null,"Grand Total",null,{"$f":"ROUND(SUM(E141:E190),2)","v":1209164.79},{"$f":"ROUND(SUM(F141:F190),2)","v":3387449.71},{"$f":"ROUND(SUM(G141:G190),2)","v":20726518.859999999},{"$f":"ROUND(SUM(H141:H190),2)","v":19954404.710000001},{"$f":"ROUND(SUM(I141:I190),2)","v":23341854.41},null,null,{"$f":"ROUND(SUM(L141:L190),2)","v":0},{"$f":"ROUND(SUM(M141:M190),2)","v":0},{"$f":"ROUND(SUM(N140:N141),2)","v":0},{"$f":"ROUND(SUM(O141:O190),2)","v":0}]
[]
[null,null,"Validation of Grand Total ",null,{"$f":"IF(AND(ROUND(E22,0)=ROUND(E137,0),ROUND(E137,0)=ROUND(E191,0)),\"OK\",\"WARNING - Sum of the three tables not matching\")","v":"OK"},{"$f":"IF(AND(ROUND(F22,0)=ROUND(F137,0),ROUND(F137,0)=ROUND(F191,0)),\"OK\",\"WARNING - Sum of the three tables not matching\")","v":"OK"},{"$f":"IF(AND(ROUND(G22,0)=ROUND(G137,0),ROUND(G137,0)=ROUND(G191,0)),\"OK\",\"WARNING - Sum of the three tables not matching\")","v":"OK"},{"$f":"IF(AND(ROUND(H22,0)=ROUND(H137,0),ROUND(H137,0)=ROUND(H191,0)),\"OK\",\"WARNING - Sum of the three tables not matching\")","v":"OK"},{"$f":"IF(AND(ROUND(I22,0)=ROUND(I137,0),ROUND(I137,0)=ROUND(I191,0)),\"OK\",\"WARNING - Sum of the three tables not matching\")","v":"OK"},null,null,{"$f":"IF(AND(ROUND(L22,0)=ROUND(L137,0),ROUND(L137,0)=ROUND(L191,0)),\"OK\",\"WARNING - Sum of the three tables not matching\")","v":"OK"},{"$f":"IF(AND(ROUND(M22,0)=ROUND(M137,0),ROUND(M137,0)=ROUND(M191,0)),\"OK\",\"WARNING - Sum of the three tables not matching\")","v":"OK"},{"$f":"IF(AND(ROUND(N22,0)=ROUND(N137,0),ROUND(N137,0)=ROUND(N191,0)),\"OK\",\"WARNING - Sum of the three tables not matching\")","v":"OK"},{"$f":"IF(AND(ROUND(O22,0)=ROUND(O137,0),ROUND(O137,0)=ROUND(O191,0)),\"OK\",\"WARNING - Sum of the three tables not matching\")","v":"OK"}]
[]
[]
[]
[]
[null,null,"Summary Breakdown by Quarter"]
[null,null,null,"Calendar Period ",{"$f":"'Cash Forecast_8A import-export'!C86","v":"01/Jul/2018-30/Sep/2018"},{"$f":"'Cash Forecast_8A import-export'!D86","v":"01/Oct/2018-31/Dec/2018"},{"$f":"'Cash Forecast_8A import-export'!E86","v":""},{"$f":"'Cash Forecast_8A import-export'!F86","v":""},"Total",{"$f":"'Cash Forecast_8A import-export'!H86","v":"01/Jan/2019-31/Mar/2019"},{"$f":"'Cash Forecast_8A import-export'!I86","v":""},"Total"]
[null,null,null,"Approved Budget",{"$f":"INDEX('Cash Forecast_8A import-export'!C$87:C$90,MATCH('Cash Forecast_8A'!$D200,'Cash Forecast_8A import-export'!$B$87:$B$90,0))","v":0},{"$f":"INDEX('Cash Forecast_8A import-export'!D$87:D$90,MATCH('Cash Forecast_8A'!$D200,'Cash Forecast_8A import-export'!$B$87:$B$90,0))","v":0},{"$f":"INDEX('Cash Forecast_8A import-export'!E$87:E$90,MATCH('Cash Forecast_8A'!$D200,'Cash Forecast_8A import-export'!$B$87:$B$90,0))","v":0},{"$f":"INDEX('Cash Forecast_8A import-export'!F$87:F$90,MATCH('Cash Forecast_8A'!$D200,'Cash Forecast_8A import-export'!$B$87:$B$90,0))","v":0},{"$f":"SUM(E200:H200)","v":0},{"$f":"INDEX('Cash Forecast_8A import-export'!H$87:H$90,MATCH('Cash Forecast_8A'!$D200,'Cash Forecast_8A import-export'!$B$87:$B$90,0))","v":0},{"$f":"INDEX('Cash Forecast_8A import-export'!I$87:I$90,MATCH('Cash Forecast_8A'!$D200,'Cash Forecast_8A import-export'!$B$87:$B$90,0))","v":0},{"$f":"SUM(J200:K200)","v":0},{"$f":"I200+L200","v":0},"[Record ID]"]
[null,null,"Principal Recipient","Forecasted Direct Disbursement",null,null,null,null,{"$f":"SUM(E201:H201)","v":0},null,null,{"$f":"SUM(J201:K201)","v":0},{"$f":"I201+L201","v":0}]
[null,null,null,"Forecasted Disbursement to Principal Recipient",2340957.9330891725,1046491.7769363015,null,null,{"$f":"SUM(E202:H202)","v":3387449.710025474},19954404.705913857,null,{"$f":"SUM(J202:K202)","v":19954404.705913857},{"$f":"I202+L202","v":23341854.415939331}]
[null,null,null,"PPM/eMP (Wambo.org) forecasted Amount",null,null,null,null,{"$f":"SUM(E203:H203)","v":0},null,null,{"$f":"SUM(J203:K203)","v":0},0,"[Record ID]"]
[null,null,null,"Total",{"$f":"ROUND(SUM(E201:E203),2)","v":2340957.9300000002},{"$f":"ROUND(SUM(F201:F203),2)","v":1046491.78},{"$f":"ROUND(SUM(G201:G203),2)","v":0},{"$f":"ROUND(SUM(H201:H203),2)","v":0},{"$f":"ROUND(SUM(E204:H204),2)","v":3387449.71},{"$f":"ROUND(SUM(J201:J203),2)","v":19954404.710000001},{"$f":"ROUND(SUM(K201:K203),2)","v":0},{"$f":"ROUND(SUM(J204:K204),2)","v":19954404.710000001},{"$f":"I204+L204","v":23341854.420000002}]
[null,null,"Local Fund Agent","Forecasted Direct Disbursement",null,null,null,null,{"$f":"SUM(E205:H205)","v":0},null,null,{"$f":"SUM(J205:K205)","v":0},{"$f":"I205+L205","v":0},"Record ID"]
[null,null,null,"Forecasted Disbursement to Principal Recipient",null,null,null,null,{"$f":"SUM(E206:H206)","v":0},null,null,{"$f":"SUM(J206:K206)","v":0},{"$f":"I206+L206","v":0}]
[null,null,null,"PPM/eMP (Wambo.org) forecasted Amount",null,null,null,null,0,null,null,0,0,"[Record ID]"]
[null,null,null,"Total",{"$f":"ROUND(SUM(E205:E207),2)","v":0},{"$f":"ROUND(SUM(F205:F207),2)","v":0},{"$f":"ROUND(SUM(G205:G207),2)","v":0},{"$f":"ROUND(SUM(H205:H207),2)","v":0},{"$f":"ROUND(SUM(E208:H208),2)","v":0},{"$f":"ROUND(SUM(J205:J207),2)","v":0},{"$f":"ROUND(SUM(K205:K207),2)","v":0},{"$f":"ROUND(SUM(J208:K208),2)","v":0},{"$f":"I208+L208","v":0}]
[]
[]
[null,null,"Validation of Principal Recipient Grand Total ",null,null,null,null,null,{"$f":"IF(AND(ROUND(F22,0)=ROUND(F137,0),ROUND(F137,0)=ROUND(F191,0),ROUND(F191,0)=ROUND(I204,0)),\"OK\",\"WARNING - Sum of the three tables not matching\")","v":"OK"},null,null,{"$f":"IF(AND(ROUND(H22,0)=ROUND(H137,0),ROUND(H137,0)=ROUND(H191,0),ROUND(H191,0)=ROUND(L204,0)),\"OK\",\"WARNING - Sum of the three tables not matching\")","v":"OK"}]
[]
[null,null,"Validation of Local Fund Agent Grand Total ",null,null,null,null,null,{"$f":"IF(AND(ROUND(L22,0)=ROUND(L137,0),ROUND(L137,0)=ROUND(L191,0),ROUND(L191,0)=ROUND(I208,0)),\"OK\",\"WARNING - Sum of the three tables not matching\")","v":"OK"},null,null,{"$f":"IF(AND(ROUND(M22,0)=ROUND(M137,0),ROUND(M137,0)=ROUND(M191,0),ROUND(M191,0)=ROUND(L208,0)),\"OK\",\"WARNING - Sum of the three tables not matching\")","v":"OK"}]
[]
[]
[]
[]
[]
[]
[null,null,null,null,"Cash Forecast '!E53+'Cash Forecast '!D53+'Cash Forecast '!C53-B14-B15-B16+D23+D24,D13)))"]

{"sheet":"Cash Forecast_8A import-export","index":35,"n_rows":184,"n_cols":18,"rows_kept":184,"cut":false,"hidden":true,"merged":[[101,0,102,0],[0,0,0,8],[2,2,2,5],[3,2,3,5],[3,10,3,12],[94,0,95,0]]}
[]
[]
["Section 8A: The Global Fund  Forecast Template"]
[null,null,null,null,null,null,null,null,null,null,"Has the LFA Verified the Principal Recipient Forecast?",null,null,"Select"]
[]
["Summary Breakdown by Cost Grouping"]
[null,null,null,null,null,null,null,null,null,null,"[LFA Cumulative Expenditures]"]
["Costing Dimension (Cost Grouping)",null,"Budget for Forecast Period","Principal Recipient Forecast for the period (not including the Buffer)","Budget for the Buffer Period","Principal Recipient Forecast for the Buffer Period","Total Principal Recipient Forecast (including Buffer)","Comments",-1,"Local Fund Agent Adjusted Principal Recipient Forecast for the period (not including the Buffer)","Local Fund Agent Adjusted Principal Recipient Forecast for the Buffer Period",null,"Local Fund Agent - Adjusted Forecast (including the buffer)","Comments",null,"Record ID","Cost Grouping Number","Cost Grouping Number"]
["[Costing Dimension (Cost Grouping)]",null,"[Budget for Forecast Period]",{"$f":"IFERROR(INDEX('Cash Forecast_8A'!F$9:F$21,MATCH('Cash Forecast_8A import-export'!O9,'Cash Forecast_8A'!B$9:B$21,0)),\"\")","v":""},"[Budget for the Buffer Period]",{"$f":"IFERROR(INDEX('Cash Forecast_8A'!H$9:H$21,MATCH('Cash Forecast_8A import-export'!O9,'Cash Forecast_8A'!B$9:B$21,0)),\"\")","v":""},{"$f":"IFERROR(D9+F9,\"\")","v":""},{"$f":"IFERROR(INDEX('Cash Forecast_8A'!J$9:J$21,MATCH('Cash Forecast_8A import-export'!O9,'Cash Forecast_8A'!B$9:B$21,0)),\"\")","v":""},{"$f":"I8+1","v":0},{"$f":"IFERROR(INDEX('Cash Forecast_8A'!L$9:L$21,MATCH('Cash Forecast_8A import-export'!O9,'Cash Forecast_8A'!B$9:B$21,0)),\"\")","v":""},{"$f":"IFERROR(INDEX('Cash Forecast_8A'!M$9:M$21,MATCH('Cash Forecast_8A import-export'!O9,'Cash Forecast_8A'!B$9:B$21,0)),\"\")","v":""},null,{"$f":"IFERROR(J9+K9,\"\")","v":""},{"$f":"IFERROR(INDEX('Cash Forecast_8A'!N$9:N$21,MATCH('Cash Forecast_8A import-export'!O9,'Cash Forecast_8A'!B$9:B$21,0)),\"\")","v":""},{"$f":"\"Costgrp\"&I9","v":"Costgrp0"},"[Record ID]","[Cost Grouping Number]","[Cost Grouping Number]"]
["1. Human Resources (HR)",null,862240.69281447004,{"$f":"IFERROR(INDEX('Cash Forecast_8A'!F$9:F$21,MATCH('Cash Forecast_8A import-export'!O10,'Cash Forecast_8A'!B$9:B$21,0)),\"\")","v":1025431.7446029101},360907.31351857202,{"$f":"IFERROR(INDEX('Cash Forecast_8A'!H$9:H$21,MATCH('Cash Forecast_8A import-export'!O10,'Cash Forecast_8A'!B$9:B$21,0)),\"\")","v":395385.9840666973},{"$f":"IFERROR(D10+F10,\"\")","v":1420817.7286696075},{"$f":"IFERROR(INDEX('Cash Forecast_8A'!J$9:J$21,MATCH('Cash Forecast_8A import-export'!O10,'Cash Forecast_8A'!B$9:B$21,0)),\"\")","v":"Augmentation de USD 197,670 due par :\n* USD 109785.25 paiement des GASC reporté sur période Q3 par CARITAS (act 118);\n* USD 5203.65 primes Avril à juin et INSS PNLP (act 66 et 67)\n* USD 81,522. 42 montant reporté RH et USD 1,099 d'engagement du PR"},{"$f":"I9+1","v":1},{"$f":"IFERROR(INDEX('Cash Forecast_8A'!L$9:L$21,MATCH('Cash Forecast_8A import-export'!O10,'Cash Forecast_8A'!B$9:B$21,0)),\"\")","v":0},{"$f":"IFERROR(INDEX('Cash Forecast_8A'!M$9:M$21,MATCH('Cash Forecast_8A import-export'!O10,'Cash Forecast_8A'!B$9:B$21,0)),\"\")","v":0},null,{"$f":"IFERROR(J10+K10,\"\")","v":0},{"$f":"IFERROR(INDEX('Cash Forecast_8A'!N$9:N$21,MATCH('Cash Forecast_8A import-export'!O10,'Cash Forecast_8A'!B$9:B$21,0)),\"\")","v":0},{"$f":"\"Costgrp\"&I10","v":"Costgrp1"},"a3y36000002ILFwAAO",1,1]
["2. Travel related costs (TRC)",null,68957.748711902896,{"$f":"IFERROR(INDEX('Cash Forecast_8A'!F$9:F$21,MATCH('Cash Forecast_8A import-export'!O11,'Cash Forecast_8A'!B$9:B$21,0)),\"\")","v":117163.84803282586},173570.50024540201,{"$f":"IFERROR(INDEX('Cash Forecast_8A'!H$9:H$21,MATCH('Cash Forecast_8A import-export'!O11,'Cash Forecast_8A'!B$9:B$21,0)),\"\")","v":179510.50024540222},296674.34827822808,{"$f":"IFERROR(INDEX('Cash Forecast_8A'!J$9:J$21,MATCH('Cash Forecast_8A import-export'!O11,'Cash Forecast_8A'!B$9:B$21,0)),\"\")","v":"Augmentation résultant de :\n* USD 17,820 frais de suivi et de supervision du PR nouvellement inséré;\n* USD 29,502.8 activités (37, 39, 40 et 116) reportées pour Caritas sur Q3 et Q4 et lees engagements de USD 76,49 ;\n* USD 944 représentant les engagements du PNLP (act 64)\n* USD 3390 act 63 reportée du PR et 2,412.8 représentant les engagements au 300618 (act 151 et 167) "},2,{"$f":"IFERROR(INDEX('Cash Forecast_8A'!L$9:L$21,MATCH('Cash Forecast_8A import-export'!O11,'Cash Forecast_8A'!B$9:B$21,0)),\"\")","v":0},{"$f":"IFERROR(INDEX('Cash Forecast_8A'!M$9:M$21,MATCH('Cash Forecast_8A import-export'!O11,'Cash Forecast_8A'!B$9:B$21,0)),\"\")","v":0},null,0,{"$f":"IFERROR(INDEX('Cash Forecast_8A'!N$9:N$21,MATCH('Cash Forecast_8A import-export'!O11,'Cash Forecast_8A'!B$9:B$21,0)),\"\")","v":0},"Costgrp2","a3y36000002ILFqAAO",2,2]
["3. External Professional services (EPS)",null,10000,{"$f":"IFERROR(INDEX('Cash Forecast_8A'!F$9:F$21,MATCH('Cash Forecast_8A import-export'!O12,'Cash Forecast_8A'!B$9:B$21,0)),\"\")","v":10000},0,{"$f":"IFERROR(INDEX('Cash Forecast_8A'!H$9:H$21,MATCH('Cash Forecast_8A import-export'!O12,'Cash Forecast_8A'!B$9:B$21,0)),\"\")","v":0},10000,{"$f":"IFERROR(INDEX('Cash Forecast_8A'!J$9:J$21,MATCH('Cash Forecast_8A import-export'!O12,'Cash Forecast_8A'!B$9:B$21,0)),\"\")","v":"Il s'agit du budget prévu pour Q3  et Q4"},3,{"$f":"IFERROR(INDEX('Cash Forecast_8A'!L$9:L$21,MATCH('Cash Forecast_8A import-export'!O12,'Cash Forecast_8A'!B$9:B$21,0)),\"\")","v":0},{"$f":"IFERROR(INDEX('Cash Forecast_8A'!M$9:M$21,MATCH('Cash Forecast_8A import-export'!O12,'Cash Forecast_8A'!B$9:B$21,0)),\"\")","v":0},null,0,{"$f":"IFERROR(INDEX('Cash Forecast_8A'!N$9:N$21,MATCH('Cash Forecast_8A import-export'!O12,'Cash Forecast_8A'!B$9:B$21,0)),\"\")","v":0},"Costgrp3","a3y36000002ILG5AAO",3,3]
["4. Health Products - Pharmaceutical Products (HPPP)",null,0,{"$f":"IFERROR(INDEX('Cash Forecast_8A'!F$9:F$21,MATCH('Cash Forecast_8A import-export'!O13,'Cash Forecast_8A'!B$9:B$21,0)),\"\")","v":402390.91548793297},2411410.86,{"$f":"IFERROR(INDEX('Cash Forecast_8A'!H$9:H$21,MATCH('Cash Forecast_8A import-export'!O13,'Cash Forecast_8A'!B$9:B$21,0)),\"\")","v":1693533.4645120667},2095924.3799999997,{"$f":"IFERROR(INDEX('Cash Forecast_8A'!J$9:J$21,MATCH('Cash Forecast_8A import-export'!O13,'Cash Forecast_8A'!B$9:B$21,0)),\"\")","v":"Cette réduction des médicaments de USD -315,486.48 s'explique par la réduction du montant trop engagé de USD  -485,544.3 sur la période antérieure et l'augmentation des engagements de  USD 170,057.82\n"},4,{"$f":"IFERROR(INDEX('Cash Forecast_8A'!L$9:L$21,MATCH('Cash Forecast_8A import-export'!O13,'Cash Forecast_8A'!B$9:B$21,0)),\"\")","v":0},{"$f":"IFERROR(INDEX('Cash Forecast_8A'!M$9:M$21,MATCH('Cash Forecast_8A import-export'!O13,'Cash Forecast_8A'!B$9:B$21,0)),\"\")","v":0},null,0,{"$f":"IFERROR(INDEX('Cash Forecast_8A'!N$9:N$21,MATCH('Cash Forecast_8A import-export'!O13,'Cash Forecast_8A'!B$9:B$21,0)),\"\")","v":0},"Costgrp4","a3y36000002ILG9AAO",4,4]
["5. Health Products - Non-Pharmaceuticals (HPNP)",null,0,{"$f":"IFERROR(INDEX('Cash Forecast_8A'!F$9:F$21,MATCH('Cash Forecast_8A import-export'!O14,'Cash Forecast_8A'!B$9:B$21,0)),\"\")","v":859364.35571428505},13108702.300000001,{"$f":"IFERROR(INDEX('Cash Forecast_8A'!H$9:H$21,MATCH('Cash Forecast_8A import-export'!O14,'Cash Forecast_8A'!B$9:B$21,0)),\"\")","v":13108702.299999999},13968066.655714285,{"$f":"IFERROR(INDEX('Cash Forecast_8A'!J$9:J$21,MATCH('Cash Forecast_8A import-export'!O14,'Cash Forecast_8A'!B$9:B$21,0)),\"\")","v":"Ce montant comprend outre le budget de Q5 des moustiquaires et TDRs, le montant des engagements (au 300618) de USD 255,398 et le budget prévu pour l'achat de Q3-Q4 des TDRs de USD  603,966.36"},5,{"$f":"IFERROR(INDEX('Cash Forecast_8A'!L$9:L$21,MATCH('Cash Forecast_8A import-export'!O14,'Cash Forecast_8A'!B$9:B$21,0)),\"\")","v":0},{"$f":"IFERROR(INDEX('Cash Forecast_8A'!M$9:M$21,MATCH('Cash Forecast_8A import-export'!O14,'Cash Forecast_8A'!B$9:B$21,0)),\"\")","v":0},null,0,{"$f":"IFERROR(INDEX('Cash Forecast_8A'!N$9:N$21,MATCH('Cash Forecast_8A import-export'!O14,'Cash Forecast_8A'!B$9:B$21,0)),\"\")","v":0},"Costgrp5","a3y36000002ILG8AAO",5,5]
["6. Health Products - Equipment (HPE)",null,0,{"$f":"IFERROR(INDEX('Cash Forecast_8A'!F$9:F$21,MATCH('Cash Forecast_8A import-export'!O15,'Cash Forecast_8A'!B$9:B$21,0)),\"\")","v":0},0,{"$f":"IFERROR(INDEX('Cash Forecast_8A'!H$9:H$21,MATCH('Cash Forecast_8A import-export'!O15,'Cash Forecast_8A'!B$9:B$21,0)),\"\")","v":0},0,{"$f":"IFERROR(INDEX('Cash Forecast_8A'!J$9:J$21,MATCH('Cash Forecast_8A import-export'!O15,'Cash Forecast_8A'!B$9:B$21,0)),\"\")","v":0},6,{"$f":"IFERROR(INDEX('Cash Forecast_8A'!L$9:L$21,MATCH('Cash Forecast_8A import-export'!O15,'Cash Forecast_8A'!B$9:B$21,0)),\"\")","v":0},{"$f":"IFERROR(INDEX('Cash Forecast_8A'!M$9:M$21,MATCH('Cash Forecast_8A import-export'!O15,'Cash Forecast_8A'!B$9:B$21,0)),\"\")","v":0},null,0,{"$f":"IFERROR(INDEX('Cash Forecast_8A'!N$9:N$21,MATCH('Cash Forecast_8A import-export'!O15,'Cash Forecast_8A'!B$9:B$21,0)),\"\")","v":0},"Costgrp6","a3y36000002ILGEAA4",6,6]
["7. Procurement and Supply-Chain Management costs (PSM)",null,0,{"$f":"IFERROR(INDEX('Cash Forecast_8A'!F$9:F$21,MATCH('Cash Forecast_8A import-export'!O16,'Cash Forecast_8A'!B$9:B$21,0)),\"\")","v":306745.68572842143},3183250.65,{"$f":"IFERROR(INDEX('Cash Forecast_8A'!H$9:H$21,MATCH('Cash Forecast_8A import-export'!O16,'Cash Forecast_8A'!B$9:B$21,0)),\"\")","v":3139107.3618572927},3445853.0475857141,{"$f":"IFERROR(INDEX('Cash Forecast_8A'!J$9:J$21,MATCH('Cash Forecast_8A import-export'!O16,'Cash Forecast_8A'!B$9:B$21,0)),\"\")","v":"Augmentation résultant de :\n* USD  223,357.85 représentant les PSM costs reportés et \n* USD 39,244.55 représentant les engagements au 300618 des act 136 et 137"},7,{"$f":"IFERROR(INDEX('Cash Forecast_8A'!L$9:L$21,MATCH('Cash Forecast_8A import-export'!O16,'Cash Forecast_8A'!B$9:B$21,0)),\"\")","v":0},{"$f":"IFERROR(INDEX('Cash Forecast_8A'!M$9:M$21,MATCH('Cash Forecast_8A import-export'!O16,'Cash Forecast_8A'!B$9:B$21,0)),\"\")","v":0},null,0,{"$f":"IFERROR(INDEX('Cash Forecast_8A'!N$9:N$21,MATCH('Cash Forecast_8A import-export'!O16,'Cash Forecast_8A'!B$9:B$21,0)),\"\")","v":0},"Costgrp7","a3y36000002ILG7AAO",7,7]
["8. Infrastructure (INF)",null,0,{"$f":"IFERROR(INDEX('Cash Forecast_8A'!F$9:F$21,MATCH('Cash Forecast_8A import-export'!O17,'Cash Forecast_8A'!B$9:B$21,0)),\"\")","v":30867},0,{"$f":"IFERROR(INDEX('Cash Forecast_8A'!H$9:H$21,MATCH('Cash Forecast_8A import-export'!O17,'Cash Forecast_8A'!B$9:B$21,0)),\"\")","v":0},30867,{"$f":"IFERROR(INDEX('Cash Forecast_8A'!J$9:J$21,MATCH('Cash Forecast_8A import-export'!O17,'Cash Forecast_8A'!B$9:B$21,0)),\"\")","v":"Augmentation résultant :\n* Des engagements au 300618 de 8,975.37\n* de l'activité reporté 147 pour USD 21,895.63"},8,{"$f":"IFERROR(INDEX('Cash Forecast_8A'!L$9:L$21,MATCH('Cash Forecast_8A import-export'!O17,'Cash Forecast_8A'!B$9:B$21,0)),\"\")","v":0},{"$f":"IFERROR(INDEX('Cash Forecast_8A'!M$9:M$21,MATCH('Cash Forecast_8A import-export'!O17,'Cash Forecast_8A'!B$9:B$21,0)),\"\")","v":0},null,0,{"$f":"IFERROR(INDEX('Cash Forecast_8A'!N$9:N$21,MATCH('Cash Forecast_8A import-export'!O17,'Cash Forecast_8A'!B$9:B$21,0)),\"\")","v":0},"Costgrp8","a3y36000002ILGBAA4",8,8]
["9. Non-health equipment (NHP)",null,75656.605651607795,{"$f":"IFERROR(INDEX('Cash Forecast_8A'!F$9:F$21,MATCH('Cash Forecast_8A import-export'!O18,'Cash Forecast_8A'!B$9:B$21,0)),\"\")","v":223945.4501085181},74270.605651607795,{"$f":"IFERROR(INDEX('Cash Forecast_8A'!H$9:H$21,MATCH('Cash Forecast_8A import-export'!O18,'Cash Forecast_8A'!B$9:B$21,0)),\"\")","v":74270.605651607839},298216.05576012592,{"$f":"IFERROR(INDEX('Cash Forecast_8A'!J$9:J$21,MATCH('Cash Forecast_8A import-export'!O18,'Cash Forecast_8A'!B$9:B$21,0)),\"\")","v":"Augmentation de USD 148,288.84 due par :\n* USD 88,188.84 représentant les engagements au 300618 pour les act 115 et 142.\n* USD 60,100 représentant le budget reporté pour l'act 144"},9,{"$f":"IFERROR(INDEX('Cash Forecast_8A'!L$9:L$21,MATCH('Cash Forecast_8A import-export'!O18,'Cash Forecast_8A'!B$9:B$21,0)),\"\")","v":0},{"$f":"IFERROR(INDEX('Cash Forecast_8A'!M$9:M$21,MATCH('Cash Forecast_8A import-export'!O18,'Cash Forecast_8A'!B$9:B$21,0)),\"\")","v":0},null,0,{"$f":"IFERROR(INDEX('Cash Forecast_8A'!N$9:N$21,MATCH('Cash Forecast_8A import-export'!O18,'Cash Forecast_8A'!B$9:B$21,0)),\"\")","v":0},"Costgrp9","a3y36000002ILG2AAO",9,9]
["10. Communication Material and Publications (CMP)",null,3469.2620152808299,{"$f":"IFERROR(INDEX('Cash Forecast_8A'!F$9:F$21,MATCH('Cash Forecast_8A import-export'!O19,'Cash Forecast_8A'!B$9:B$21,0)),\"\")","v":5215.6466399392621},1656.9836436007799,{"$f":"IFERROR(INDEX('Cash Forecast_8A'!H$9:H$21,MATCH('Cash Forecast_8A import-export'!O19,'Cash Forecast_8A'!B$9:B$21,0)),\"\")","v":1656.9836436007834},6872.6302835400456,{"$f":"IFERROR(INDEX('Cash Forecast_8A'!J$9:J$21,MATCH('Cash Forecast_8A import-export'!O19,'Cash Forecast_8A'!B$9:B$21,0)),\"\")","v":"On note une augmentation du budget de USD 1,746.38 correspondant aux engagements au 300618 de USD 1,591.09 (act 119) et USD 155.29 relatif à l'activité 76 reportée "},10,{"$f":"IFERROR(INDEX('Cash Forecast_8A'!L$9:L$21,MATCH('Cash Forecast_8A import-export'!O19,'Cash Forecast_8A'!B$9:B$21,0)),\"\")","v":0},{"$f":"IFERROR(INDEX('Cash Forecast_8A'!M$9:M$21,MATCH('Cash Forecast_8A import-export'!O19,'Cash Forecast_8A'!B$9:B$21,0)),\"\")","v":0},null,0,{"$f":"IFERROR(INDEX('Cash Forecast_8A'!N$9:N$21,MATCH('Cash Forecast_8A import-export'!O19,'Cash Forecast_8A'!B$9:B$21,0)),\"\")","v":0},"Costgrp10","a3y36000002ILFyAAO",10,10]
["11. Programme Administration costs (PA)",null,188840.484238618,{"$f":"IFERROR(INDEX('Cash Forecast_8A'!F$9:F$21,MATCH('Cash Forecast_8A import-export'!O20,'Cash Forecast_8A'!B$9:B$21,0)),\"\")","v":406325.06371064112},1412749.6468529699,{"$f":"IFERROR(INDEX('Cash Forecast_8A'!H$9:H$21,MATCH('Cash Forecast_8A import-export'!O20,'Cash Forecast_8A'!B$9:B$21,0)),\"\")","v":1362237.5059371905},1768562.5696478316,{"$f":"IFERROR(INDEX('Cash Forecast_8A'!J$9:J$21,MATCH('Cash Forecast_8A import-export'!O20,'Cash Forecast_8A'!B$9:B$21,0)),\"\")","v":"Augmentation de USD 166,972.44 résultant de :\n- des engagements au 300618 de USD 119.995.37 sur les act 146 et 154;\n* des frais de gestion (154 - GMS) de USD 97,489.21 sur les activités reportées, anticipées et pour lesquelles un dépassement est prévu;\n* et de la diminution des frais de gestion (act 154) pour USD -50,512.14 sur les activités dont un dépassement est possible et celle dont une économie est prévue\n"},11,{"$f":"IFERROR(INDEX('Cash Forecast_8A'!L$9:L$21,MATCH('Cash Forecast_8A import-export'!O20,'Cash Forecast_8A'!B$9:B$21,0)),\"\")","v":0},{"$f":"IFERROR(INDEX('Cash Forecast_8A'!M$9:M$21,MATCH('Cash Forecast_8A import-export'!O20,'Cash Forecast_8A'!B$9:B$21,0)),\"\")","v":0},null,0,{"$f":"IFERROR(INDEX('Cash Forecast_8A'!N$9:N$21,MATCH('Cash Forecast_8A import-export'!O20,'Cash Forecast_8A'!B$9:B$21,0)),\"\")","v":0},"Costgrp11","a3y36000002ILFvAAO",11,11]
["12. Living support to client/ target population (LSCTP)",null,0,{"$f":"IFERROR(INDEX('Cash Forecast_8A'!F$9:F$21,MATCH('Cash Forecast_8A import-export'!O21,'Cash Forecast_8A'!B$9:B$21,0)),\"\")","v":0},0,{"$f":"IFERROR(INDEX('Cash Forecast_8A'!H$9:H$21,MATCH('Cash Forecast_8A import-export'!O21,'Cash Forecast_8A'!B$9:B$21,0)),\"\")","v":0},0,{"$f":"IFERROR(INDEX('Cash Forecast_8A'!J$9:J$21,MATCH('Cash Forecast_8A import-export'!O21,'Cash Forecast_8A'!B$9:B$21,0)),\"\")","v":0},12,{"$f":"IFERROR(INDEX('Cash Forecast_8A'!L$9:L$21,MATCH('Cash Forecast_8A import-export'!O21,'Cash Forecast_8A'!B$9:B$21,0)),\"\")","v":0},{"$f":"IFERROR(INDEX('Cash Forecast_8A'!M$9:M$21,MATCH('Cash Forecast_8A import-export'!O21,'Cash Forecast_8A'!B$9:B$21,0)),\"\")","v":0},null,0,{"$f":"IFERROR(INDEX('Cash Forecast_8A'!N$9:N$21,MATCH('Cash Forecast_8A import-export'!O21,'Cash Forecast_8A'!B$9:B$21,0)),\"\")","v":0},"Costgrp12","a3y36000002ILGCAA4",12,12]
["13. Payment for Results",null,0,{"$f":"IFERROR(INDEX('Cash Forecast_8A'!F$9:F$21,MATCH('Cash Forecast_8A import-export'!O22,'Cash Forecast_8A'!B$9:B$21,0)),\"\")","v":0},0,{"$f":"IFERROR(INDEX('Cash Forecast_8A'!H$9:H$21,MATCH('Cash Forecast_8A import-export'!O22,'Cash Forecast_8A'!B$9:B$21,0)),\"\")","v":0},0,{"$f":"IFERROR(INDEX('Cash Forecast_8A'!J$9:J$21,MATCH('Cash Forecast_8A import-export'!O22,'Cash Forecast_8A'!B$9:B$21,0)),\"\")","v":0},13,{"$f":"IFERROR(INDEX('Cash Forecast_8A'!L$9:L$21,MATCH('Cash Forecast_8A import-export'!O22,'Cash Forecast_8A'!B$9:B$21,0)),\"\")","v":0},{"$f":"IFERROR(INDEX('Cash Forecast_8A'!M$9:M$21,MATCH('Cash Forecast_8A import-export'!O22,'Cash Forecast_8A'!B$9:B$21,0)),\"\")","v":0},null,0,{"$f":"IFERROR(INDEX('Cash Forecast_8A'!N$9:N$21,MATCH('Cash Forecast_8A import-export'!O22,'Cash Forecast_8A'!B$9:B$21,0)),\"\")","v":0},"Costgrp13","a3y36000002ILGDAA4",13,13]
[]
["Grand Total",null,{"$f":"ROUND(SUM(C9:C23),2)","v":1209164.79},{"$f":"ROUND(SUM(D9:D23),2)","v":3387449.71},{"$f":"ROUND(SUM(E9:E23),2)","v":20726518.859999999},{"$f":"ROUND(SUM(F9:F23),2)","v":19954404.710000001},{"$f":"ROUND(SUM(G9:G23),2)","v":23341854.420000002},null,null,{"$f":"ROUND(SUM(J9:J23),2)","v":0},{"$f":"ROUND(SUM(K9:K23),2)","v":0},{"$f":"ROUND(SUM(L9:L23),2)","v":0},{"$f":"ROUND(SUM(M9:M23),2)","v":0}]
[]
[]
["Summary Breakdown by Interventions"]
["Modular Approach - Modules","Modular Approach - Interventions","Budget for Forecast Period","Principal Recipient Forecast for the period (not including the Buffer)","Budget for the Buffer Period","Principal Recipient Forecast for the Buffer Period","Total Principal Recipient Forecast (including Buffer)","Comments",-1,"Local Fund Agent Adjusted Principal Recipient Forecast for the period (not including the Buffer)","Local Fund Agent Adjusted Principal Recipient Forecast for the Buffer Period",null,"Local Fund Agent - Adjusted Forecast (including the buffer)",null,null,"Record ID"]
["[Module]","[Intervention]","[Budget for Forecast Period]",{"$f":"IFERROR(INDEX('Cash Forecast_8A'!F$27:F$120,MATCH('Cash Forecast_8A import-export'!O29,'Cash Forecast_8A'!B$27:B$120,0)),\"\")","v":""},"[Budget for the Buffer Period]",{"$f":"IFERROR(INDEX('Cash Forecast_8A'!H$27:H$120,MATCH('Cash Forecast_8A import-export'!O29,'Cash Forecast_8A'!B$27:B$120,0)),\"\")","v":""},{"$f":"IFERROR(D29+F29,\"\")","v":""},"[PR Comments]",{"$f":"I28+1","v":0},{"$f":"IFERROR(INDEX('Cash Forecast_8A'!L$27:L$120,MATCH('Cash Forecast_8A import-export'!O29,'Cash Forecast_8A'!B$27:B$120,0)),\"\")","v":""},{"$f":"IFERROR(INDEX('Cash Forecast_8A'!M$27:M$120,MATCH('Cash Forecast_8A import-export'!O29,'Cash Forecast_8A'!B$27:B$120,0)),\"\")","v":""},null,{"$f":"IFERROR(J29+K29,\"\")","v":""},null,{"$f":"\"Int\"&I29","v":"Int0"},"[Record ID]"]
["Vector control","IEC/BCC (Vector control)",10494.229742805001,{"$f":"IFERROR(INDEX('Cash Forecast_8A'!F$27:F$120,MATCH('Cash Forecast_8A import-export'!O30,'Cash Forecast_8A'!B$27:B$120,0)),\"\")","v":36981.147441849811},20848.1857380035,{"$f":"IFERROR(INDEX('Cash Forecast_8A'!H$27:H$120,MATCH('Cash Forecast_8A import-export'!O30,'Cash Forecast_8A'!B$27:B$120,0)),\"\")","v":20848.185738003511},{"$f":"IFERROR(D30+F30,\"\")","v":57829.333179853318},null,{"$f":"I29+1","v":1},{"$f":"IFERROR(INDEX('Cash Forecast_8A'!L$27:L$120,MATCH('Cash Forecast_8A import-export'!O30,'Cash Forecast_8A'!B$27:B$120,0)),\"\")","v":0},{"$f":"IFERROR(INDEX('Cash Forecast_8A'!M$27:M$120,MATCH('Cash Forecast_8A import-export'!O30,'Cash Forecast_8A'!B$27:B$120,0)),\"\")","v":0},null,{"$f":"IFERROR(J30+K30,\"\")","v":0},null,{"$f":"\"Int\"&I30","v":"Int1"},"a3y36000002ILFoAAO"]
["RSSH: Health management information systems and M&E","Analysis, review and transparency",3390,{"$f":"IFERROR(INDEX('Cash Forecast_8A'!F$27:F$120,MATCH('Cash Forecast_8A import-export'!O31,'Cash Forecast_8A'!B$27:B$120,0)),\"\")","v":6780},3390,{"$f":"IFERROR(INDEX('Cash Forecast_8A'!H$27:H$120,MATCH('Cash Forecast_8A import-export'!O31,'Cash Forecast_8A'!B$27:B$120,0)),\"\")","v":3390},10170,null,2,{"$f":"IFERROR(INDEX('Cash Forecast_8A'!L$27:L$120,MATCH('Cash Forecast_8A import-export'!O31,'Cash Forecast_8A'!B$27:B$120,0)),\"\")","v":0},{"$f":"IFERROR(INDEX('Cash Forecast_8A'!M$27:M$120,MATCH('Cash Forecast_8A import-export'!O31,'Cash Forecast_8A'!B$27:B$120,0)),\"\")","v":0},null,0,null,"Int2","a3y36000002ILFrAAO"]
["Program management","Policy, planning, coordination and management of national disease control programs",92875.790708516404,{"$f":"IFERROR(INDEX('Cash Forecast_8A'!F$27:F$120,MATCH('Cash Forecast_8A import-export'!O32,'Cash Forecast_8A'!B$27:B$120,0)),\"\")","v":98079.443220282003},42577.650380799598,{"$f":"IFERROR(INDEX('Cash Forecast_8A'!H$27:H$120,MATCH('Cash Forecast_8A import-export'!O32,'Cash Forecast_8A'!B$27:B$120,0)),\"\")","v":42577.65038079954},140657.09360108155,null,3,{"$f":"IFERROR(INDEX('Cash Forecast_8A'!L$27:L$120,MATCH('Cash Forecast_8A import-export'!O32,'Cash Forecast_8A'!B$27:B$120,0)),\"\")","v":0},{"$f":"IFERROR(INDEX('Cash Forecast_8A'!M$27:M$120,MATCH('Cash Forecast_8A import-export'!O32,'Cash Forecast_8A'!B$27:B$120,0)),\"\")","v":0},null,0,null,"Int3","a3y36000002ILFtAAO"]
["RSSH: Health management information systems and M&E","Program and data quality",55228.813697177298,{"$f":"IFERROR(INDEX('Cash Forecast_8A'!F$27:F$120,MATCH('Cash Forecast_8A import-export'!O33,'Cash Forecast_8A'!B$27:B$120,0)),\"\")","v":59420.490047134597},26193.6383512176,{"$f":"IFERROR(INDEX('Cash Forecast_8A'!H$27:H$120,MATCH('Cash Forecast_8A import-export'!O33,'Cash Forecast_8A'!B$27:B$120,0)),\"\")","v":26193.638351217571},85614.128398352172,null,4,{"$f":"IFERROR(INDEX('Cash Forecast_8A'!L$27:L$120,MATCH('Cash Forecast_8A import-export'!O33,'Cash Forecast_8A'!B$27:B$120,0)),\"\")","v":0},{"$f":"IFERROR(INDEX('Cash Forecast_8A'!M$27:M$120,MATCH('Cash Forecast_8A import-export'!O33,'Cash Forecast_8A'!B$27:B$120,0)),\"\")","v":0},null,0,null,"Int4","a3y36000002ILFxAAO"]
["RSSH: Health management information systems and M&E","Surveys",0,{"$f":"IFERROR(INDEX('Cash Forecast_8A'!F$27:F$120,MATCH('Cash Forecast_8A import-export'!O34,'Cash Forecast_8A'!B$27:B$120,0)),\"\")","v":0},22179.909629341899,{"$f":"IFERROR(INDEX('Cash Forecast_8A'!H$27:H$120,MATCH('Cash Forecast_8A import-export'!O34,'Cash Forecast_8A'!B$27:B$120,0)),\"\")","v":22179.909629341917},22179.909629341917,null,5,{"$f":"IFERROR(INDEX('Cash Forecast_8A'!L$27:L$120,MATCH('Cash Forecast_8A import-export'!O34,'Cash Forecast_8A'!B$27:B$120,0)),\"\")","v":0},{"$f":"IFERROR(INDEX('Cash Forecast_8A'!M$27:M$120,MATCH('Cash Forecast_8A import-export'!O34,'Cash Forecast_8A'!B$27:B$120,0)),\"\")","v":0},null,0,null,"Int5","a3y36000002ILFzAAO"]
["RSSH: Financial management systems","Routine financial management improvement (non-PFM)",0,{"$f":"IFERROR(INDEX('Cash Forecast_8A'!F$27:F$120,MATCH('Cash Forecast_8A import-export'!O35,'Cash Forecast_8A'!B$27:B$120,0)),\"\")","v":0},0,{"$f":"IFERROR(INDEX('Cash Forecast_8A'!H$27:H$120,MATCH('Cash Forecast_8A import-export'!O35,'Cash Forecast_8A'!B$27:B$120,0)),\"\")","v":0},0,null,6,{"$f":"IFERROR(INDEX('Cash Forecast_8A'!L$27:L$120,MATCH('Cash Forecast_8A import-export'!O35,'Cash Forecast_8A'!B$27:B$120,0)),\"\")","v":0},{"$f":"IFERROR(INDEX('Cash Forecast_8A'!M$27:M$120,MATCH('Cash Forecast_8A import-export'!O35,'Cash Forecast_8A'!B$27:B$120,0)),\"\")","v":0},null,0,null,"Int6","a3y36000002ILG0AAO"]
["Case management","Integrated community case management (ICCM)",402240.35134409199,{"$f":"IFERROR(INDEX('Cash Forecast_8A'!F$27:F$120,MATCH('Cash Forecast_8A import-export'!O36,'Cash Forecast_8A'!B$27:B$120,0)),\"\")","v":599333.54452955059},158012.53486151301,{"$f":"IFERROR(INDEX('Cash Forecast_8A'!H$27:H$120,MATCH('Cash Forecast_8A import-export'!O36,'Cash Forecast_8A'!B$27:B$120,0)),\"\")","v":158012.53486151324},757346.07939106389,null,7,{"$f":"IFERROR(INDEX('Cash Forecast_8A'!L$27:L$120,MATCH('Cash Forecast_8A import-export'!O36,'Cash Forecast_8A'!B$27:B$120,0)),\"\")","v":0},{"$f":"IFERROR(INDEX('Cash Forecast_8A'!M$27:M$120,MATCH('Cash Forecast_8A import-export'!O36,'Cash Forecast_8A'!B$27:B$120,0)),\"\")","v":0},null,0,null,"Int7","a3y36000002ILG1AAO"]
["Case management","Private sector case management",3313.9672872015599,{"$f":"IFERROR(INDEX('Cash Forecast_8A'!F$27:F$120,MATCH('Cash Forecast_8A import-export'!O37,'Cash Forecast_8A'!B$27:B$120,0)),\"\")","v":4905.0571837807238},1656.9836436007799,{"$f":"IFERROR(INDEX('Cash Forecast_8A'!H$27:H$120,MATCH('Cash Forecast_8A import-export'!O37,'Cash Forecast_8A'!B$27:B$120,0)),\"\")","v":1656.9836436007834},6562.0408273815074,null,8,{"$f":"IFERROR(INDEX('Cash Forecast_8A'!L$27:L$120,MATCH('Cash Forecast_8A import-export'!O37,'Cash Forecast_8A'!B$27:B$120,0)),\"\")","v":0},{"$f":"IFERROR(INDEX('Cash Forecast_8A'!M$27:M$120,MATCH('Cash Forecast_8A import-export'!O37,'Cash Forecast_8A'!B$27:B$120,0)),\"\")","v":0},null,0,null,"Int8","a3y36000002ILG3AAO"]
["Program management","Grant management",641621.64065208798,{"$f":"IFERROR(INDEX('Cash Forecast_8A'!F$27:F$120,MATCH('Cash Forecast_8A import-export'!O38,'Cash Forecast_8A'!B$27:B$120,0)),\"\")","v":1013449.0706722371},1646579.9025437599,{"$f":"IFERROR(INDEX('Cash Forecast_8A'!H$27:H$120,MATCH('Cash Forecast_8A import-export'!O38,'Cash Forecast_8A'!B$27:B$120,0)),\"\")","v":1636486.432176108},2649935.5028483449,null,9,{"$f":"IFERROR(INDEX('Cash Forecast_8A'!L$27:L$120,MATCH('Cash Forecast_8A import-export'!O38,'Cash Forecast_8A'!B$27:B$120,0)),\"\")","v":0},{"$f":"IFERROR(INDEX('Cash Forecast_8A'!M$27:M$120,MATCH('Cash Forecast_8A import-export'!O38,'Cash Forecast_8A'!B$27:B$120,0)),\"\")","v":0},null,0,null,"Int9","a3y36000002ILG4AAO"]
["Case management","Facility-based treatment",0,{"$f":"IFERROR(INDEX('Cash Forecast_8A'!F$27:F$120,MATCH('Cash Forecast_8A import-export'!O39,'Cash Forecast_8A'!B$27:B$120,0)),\"\")","v":1568500.9569306395},3885896.8824279802,{"$f":"IFERROR(INDEX('Cash Forecast_8A'!H$27:H$120,MATCH('Cash Forecast_8A import-export'!O39,'Cash Forecast_8A'!B$27:B$120,0)),\"\")","v":3123876.19879734},4692377.1557279797,null,10,{"$f":"IFERROR(INDEX('Cash Forecast_8A'!L$27:L$120,MATCH('Cash Forecast_8A import-export'!O39,'Cash Forecast_8A'!B$27:B$120,0)),\"\")","v":0},{"$f":"IFERROR(INDEX('Cash Forecast_8A'!M$27:M$120,MATCH('Cash Forecast_8A import-export'!O39,'Cash Forecast_8A'!B$27:B$120,0)),\"\")","v":0},null,0,null,"Int10","a3y36000002ILG6AAO"]
["Vector control","Long-lasting insecticidal nets (LLIN) - Mass campaign",0,{"$f":"IFERROR(INDEX('Cash Forecast_8A'!F$27:F$120,MATCH('Cash Forecast_8A import-export'!O40,'Cash Forecast_8A'!B$27:B$120,0)),\"\")","v":0},14919183.1723359,{"$f":"IFERROR(INDEX('Cash Forecast_8A'!H$27:H$120,MATCH('Cash Forecast_8A import-export'!O40,'Cash Forecast_8A'!B$27:B$120,0)),\"\")","v":14919183.172335932},14919183.172335932,null,11,{"$f":"IFERROR(INDEX('Cash Forecast_8A'!L$27:L$120,MATCH('Cash Forecast_8A import-export'!O40,'Cash Forecast_8A'!B$27:B$120,0)),\"\")","v":0},{"$f":"IFERROR(INDEX('Cash Forecast_8A'!M$27:M$120,MATCH('Cash Forecast_8A import-export'!O40,'Cash Forecast_8A'!B$27:B$120,0)),\"\")","v":0},null,0,null,"Int11","a3y36000002ILGAAA4"]
["Module","Intervention",null,"PR Forecast for the period",null,"PR Forecast for the Buffer Period",null,"PR Comments",-1,"LFA Adjusted Forecast for the period","LFA Adj. Forecast for the Buffer period",null,null,"LFA Comments",null,null,null,"Record ID"]
["[Module]","[Intervention]","[Budget for Forecast Period]",{"$f":"IFERROR(INDEX('Cash Forecast_8A'!F$121:F$136,MATCH('Cash Forecast_8A import-export'!O42,'Cash Forecast_8A'!B$121:B$136,0)),\"\")","v":""},"[Budget for the Buffer Period]",{"$f":"IFERROR(INDEX('Cash Forecast_8A'!H$121:H$136,MATCH('Cash Forecast_8A import-export'!O42,'Cash Forecast_8A'!B$121:B$136,0)),\"\")","v":""},{"$f":"IFERROR(D42+F42,\"\")","v":""},"[PR Comments]",{"$f":"I41+0","v":-1},{"$f":"IFERROR(INDEX('Cash Forecast_8A'!L$121:L$136,MATCH('Cash Forecast_8A import-export'!O42,'Cash Forecast_8A'!B$121:B$136,0)),\"\")","v":""},{"$f":"IFERROR(INDEX('Cash Forecast_8A'!M$121:M$136,MATCH('Cash Forecast_8A import-export'!O42,'Cash Forecast_8A'!B$121:B$136,0)),\"\")","v":""},null,{"$f":"IFERROR(J42+K42,\"\")","v":""},"[LFA Comments]",{"$f":"\"Int\"&I42","v":"Int-1"},{"$f":"IFERROR(IF(VLOOKUP(A42,'Reference Records'!$B$12:$D$25,3,FALSE)=0,\"\",VLOOKUP(A42,'Reference Records'!$B$12:$D$25,3,FALSE)),\"\")","v":""},null,"[Record ID]"]
[null,null,0,{"$f":"IFERROR(INDEX('Cash Forecast_8A'!F$121:F$136,MATCH('Cash Forecast_8A import-export'!O43,'Cash Forecast_8A'!B$121:B$136,0)),\"\")","v":""},0,{"$f":"IFERROR(INDEX('Cash Forecast_8A'!H$121:H$136,MATCH('Cash Forecast_8A import-export'!O43,'Cash Forecast_8A'!B$121:B$136,0)),\"\")","v":""},{"$f":"IFERROR(D43+F43,\"\")","v":""},null,{"$f":"I42+0","v":-1},{"$f":"IFERROR(INDEX('Cash Forecast_8A'!L$121:L$136,MATCH('Cash Forecast_8A import-export'!O43,'Cash Forecast_8A'!B$121:B$136,0)),\"\")","v":""},{"$f":"IFERROR(INDEX('Cash Forecast_8A'!M$121:M$136,MATCH('Cash Forecast_8A import-export'!O43,'Cash Forecast_8A'!B$121:B$136,0)),\"\")","v":""},null,{"$f":"IFERROR(J43+K43,\"\")","v":""},null,{"$f":"\"Int\"&I43","v":"Int-1"},{"$f":"IFERROR(IF(VLOOKUP(A43,'Reference Records'!$B$12:$D$25,3,FALSE)=0,\"\",VLOOKUP(A43,'Reference Records'!$B$12:$D$25,3,FALSE)),\"\")","v":""},null,"a3y36000002ILGFAA4"]
[null,null,0,{"$f":"IFERROR(INDEX('Cash Forecast_8A'!F$121:F$136,MATCH('Cash Forecast_8A import-export'!O44,'Cash Forecast_8A'!B$121:B$136,0)),\"\")","v":""},0,{"$f":"IFERROR(INDEX('Cash Forecast_8A'!H$121:H$136,MATCH('Cash Forecast_8A import-export'!O44,'Cash Forecast_8A'!B$121:B$136,0)),\"\")","v":""},"",null,-1,{"$f":"IFERROR(INDEX('Cash Forecast_8A'!L$121:L$136,MATCH('Cash Forecast_8A import-export'!O44,'Cash Forecast_8A'!B$121:B$136,0)),\"\")","v":""},{"$f":"IFERROR(INDEX('Cash Forecast_8A'!M$121:M$136,MATCH('Cash Forecast_8A import-export'!O44,'Cash Forecast_8A'!B$121:B$136,0)),\"\")","v":""},null,"",null,"Int-1",{"$f":"IFERROR(IF(VLOOKUP(A44,'Reference Records'!$B$12:$D$25,3,FALSE)=0,\"\",VLOOKUP(A44,'Reference Records'!$B$12:$D$25,3,FALSE)),\"\")","v":""},null,"a3y36000002ILGGAA4"]
[null,null,0,{"$f":"IFERROR(INDEX('Cash Forecast_8A'!F$121:F$136,MATCH('Cash Forecast_8A import-export'!O45,'Cash Forecast_8A'!B$121:B$136,0)),\"\")","v":""},0,{"$f":"IFERROR(INDEX('Cash Forecast_8A'!H$121:H$136,MATCH('Cash Forecast_8A import-export'!O45,'Cash Forecast_8A'!B$121:B$136,0)),\"\")","v":""},"",null,-1,{"$f":"IFERROR(INDEX('Cash Forecast_8A'!L$121:L$136,MATCH('Cash Forecast_8A import-export'!O45,'Cash Forecast_8A'!B$121:B$136,0)),\"\")","v":""},{"$f":"IFERROR(INDEX('Cash Forecast_8A'!M$121:M$136,MATCH('Cash Forecast_8A import-export'!O45,'Cash Forecast_8A'!B$121:B$136,0)),\"\")","v":""},null,"",null,"Int-1",{"$f":"IFERROR(IF(VLOOKUP(A45,'Reference Records'!$B$12:$D$25,3,FALSE)=0,\"\",VLOOKUP(A45,'Reference Records'!$B$12:$D$25,3,FALSE)),\"\")","v":""},null,"a3y36000002ILGHAA4"]
[null,null,0,{"$f":"IFERROR(INDEX('Cash Forecast_8A'!F$121:F$136,MATCH('Cash Forecast_8A import-export'!O46,'Cash Forecast_8A'!B$121:B$136,0)),\"\")","v":""},0,{"$f":"IFERROR(INDEX('Cash Forecast_8A'!H$121:H$136,MATCH('Cash Forecast_8A import-export'!O46,'Cash Forecast_8A'!B$121:B$136,0)),\"\")","v":""},"",null,-1,{"$f":"IFERROR(INDEX('Cash Forecast_8A'!L$121:L$136,MATCH('Cash Forecast_8A import-export'!O46,'Cash Forecast_8A'!B$121:B$136,0)),\"\")","v":""},{"$f":"IFERROR(INDEX('Cash Forecast_8A'!M$121:M$136,MATCH('Cash Forecast_8A import-export'!O46,'Cash Forecast_8A'!B$121:B$136,0)),\"\")","v":""},null,"",null,"Int-1",{"$f":"IFERROR(IF(VLOOKUP(A46,'Reference Records'!$B$12:$D$25,3,FALSE)=0,\"\",VLOOKUP(A46,'Reference Records'!$B$12:$D$25,3,FALSE)),\"\")","v":""},null,"a3y36000002ILGIAA4"]
[null,null,0,{"$f":"IFERROR(INDEX('Cash Forecast_8A'!F$121:F$136,MATCH('Cash Forecast_8A import-export'!O47,'Cash Forecast_8A'!B$121:B$136,0)),\"\")","v":""},0,{"$f":"IFERROR(INDEX('Cash Forecast_8A'!H$121:H$136,MATCH('Cash Forecast_8A import-export'!O47,'Cash Forecast_8A'!B$121:B$136,0)),\"\")","v":""},"",null,-1,{"$f":"IFERROR(INDEX('Cash Forecast_8A'!L$121:L$136,MATCH('Cash Forecast_8A import-export'!O47,'Cash Forecast_8A'!B$121:B$136,0)),\"\")","v":""},{"$f":"IFERROR(INDEX('Cash Forecast_8A'!M$121:M$136,MATCH('Cash Forecast_8A import-export'!O47,'Cash Forecast_8A'!B$121:B$136,0)),\"\")","v":""},null,"",null,"Int-1",{"$f":"IFERROR(IF(VLOOKUP(A47,'Reference Records'!$B$12:$D$25,3,FALSE)=0,\"\",VLOOKUP(A47,'Reference Records'!$B$12:$D$25,3,FALSE)),\"\")","v":""},null,"a3y36000002ILGJAA4"]
[null,null,0,{"$f":"IFERROR(INDEX('Cash Forecast_8A'!F$121:F$136,MATCH('Cash Forecast_8A import-export'!O48,'Cash Forecast_8A'!B$121:B$136,0)),\"\")","v":""},0,{"$f":"IFERROR(INDEX('Cash Forecast_8A'!H$121:H$136,MATCH('Cash Forecast_8A import-export'!O48,'Cash Forecast_8A'!B$121:B$136,0)),\"\")","v":""},"",null,-1,{"$f":"IFERROR(INDEX('Cash Forecast_8A'!L$121:L$136,MATCH('Cash Forecast_8A import-export'!O48,'Cash Forecast_8A'!B$121:B$136,0)),\"\")","v":""},{"$f":"IFERROR(INDEX('Cash Forecast_8A'!M$121:M$136,MATCH('Cash Forecast_8A import-export'!O48,'Cash Forecast_8A'!B$121:B$136,0)),\"\")","v":""},null,"",null,"Int-1",{"$f":"IFERROR(IF(VLOOKUP(A48,'Reference Records'!$B$12:$D$25,3,FALSE)=0,\"\",VLOOKUP(A48,'Reference Records'!$B$12:$D$25,3,FALSE)),\"\")","v":""},null,"a3y36000002ILGKAA4"]
[null,null,0,{"$f":"IFERROR(INDEX('Cash Forecast_8A'!F$121:F$136,MATCH('Cash Forecast_8A import-export'!O49,'Cash Forecast_8A'!B$121:B$136,0)),\"\")","v":""},0,{"$f":"IFERROR(INDEX('Cash Forecast_8A'!H$121:H$136,MATCH('Cash Forecast_8A import-export'!O49,'Cash Forecast_8A'!B$121:B$136,0)),\"\")","v":""},"",null,-1,{"$f":"IFERROR(INDEX('Cash Forecast_8A'!L$121:L$136,MATCH('Cash Forecast_8A import-export'!O49,'Cash Forecast_8A'!B$121:B$136,0)),\"\")","v":""},{"$f":"IFERROR(INDEX('Cash Forecast_8A'!M$121:M$136,MATCH('Cash Forecast_8A import-export'!O49,'Cash Forecast_8A'!B$121:B$136,0)),\"\")","v":""},null,"",null,"Int-1",{"$f":"IFERROR(IF(VLOOKUP(A49,'Reference Records'!$B$12:$D$25,3,FALSE)=0,\"\",VLOOKUP(A49,'Reference Records'!$B$12:$D$25,3,FALSE)),\"\")","v":""},null,"a3y36000002ILGLAA4"]
[null,null,0,{"$f":"IFERROR(INDEX('Cash Forecast_8A'!F$121:F$136,MATCH('Cash Forecast_8A import-export'!O50,'Cash Forecast_8A'!B$121:B$136,0)),\"\")","v":""},0,{"$f":"IFERROR(INDEX('Cash Forecast_8A'!H$121:H$136,MATCH('Cash Forecast_8A import-export'!O50,'Cash Forecast_8A'!B$121:B$136,0)),\"\")","v":""},"",null,-1,{"$f":"IFERROR(INDEX('Cash Forecast_8A'!L$121:L$136,MATCH('Cash Forecast_8A import-export'!O50,'Cash Forecast_8A'!B$121:B$136,0)),\"\")","v":""},{"$f":"IFERROR(INDEX('Cash Forecast_8A'!M$121:M$136,MATCH('Cash Forecast_8A import-export'!O50,'Cash Forecast_8A'!B$121:B$136,0)),\"\")","v":""},null,"",null,"Int-1",{"$f":"IFERROR(IF(VLOOKUP(A50,'Reference Records'!$B$12:$D$25,3,FALSE)=0,\"\",VLOOKUP(A50,'Reference Records'!$B$12:$D$25,3,FALSE)),\"\")","v":""},null,"a3y36000002ILGMAA4"]
[null,null,0,{"$f":"IFERROR(INDEX('Cash Forecast_8A'!F$121:F$136,MATCH('Cash Forecast_8A import-export'!O51,'Cash Forecast_8A'!B$121:B$136,0)),\"\")","v":""},0,{"$f":"IFERROR(INDEX('Cash Forecast_8A'!H$121:H$136,MATCH('Cash Forecast_8A import-export'!O51,'Cash Forecast_8A'!B$121:B$136,0)),\"\")","v":""},"",null,-1,{"$f":"IFERROR(INDEX('Cash Forecast_8A'!L$121:L$136,MATCH('Cash Forecast_8A import-export'!O51,'Cash Forecast_8A'!B$121:B$136,0)),\"\")","v":""},{"$f":"IFERROR(INDEX('Cash Forecast_8A'!M$121:M$136,MATCH('Cash Forecast_8A import-export'!O51,'Cash Forecast_8A'!B$121:B$136,0)),\"\")","v":""},null,"",null,"Int-1",{"$f":"IFERROR(IF(VLOOKUP(A51,'Reference Records'!$B$12:$D$25,3,FALSE)=0,\"\",VLOOKUP(A51,'Reference Records'!$B$12:$D$25,3,FALSE)),\"\")","v":""},null,"a3y36000002ILGNAA4"]
[null,null,0,{"$f":"IFERROR(INDEX('Cash Forecast_8A'!F$121:F$136,MATCH('Cash Forecast_8A import-export'!O52,'Cash Forecast_8A'!B$121:B$136,0)),\"\")","v":""},0,{"$f":"IFERROR(INDEX('Cash Forecast_8A'!H$121:H$136,MATCH('Cash Forecast_8A import-export'!O52,'Cash Forecast_8A'!B$121:B$136,0)),\"\")","v":""},"",null,-1,{"$f":"IFERROR(INDEX('Cash Forecast_8A'!L$121:L$136,MATCH('Cash Forecast_8A import-export'!O52,'Cash Forecast_8A'!B$121:B$136,0)),\"\")","v":""},{"$f":"IFERROR(INDEX('Cash Forecast_8A'!M$121:M$136,MATCH('Cash Forecast_8A import-export'!O52,'Cash Forecast_8A'!B$121:B$136,0)),\"\")","v":""},null,"",null,"Int-1",{"$f":"IFERROR(IF(VLOOKUP(A52,'Reference Records'!$B$12:$D$25,3,FALSE)=0,\"\",VLOOKUP(A52,'Reference Records'!$B$12:$D$25,3,FALSE)),\"\")","v":""},null,"a3y36000002ILGOAA4"]
[null,null,0,{"$f":"IFERROR(INDEX('Cash Forecast_8A'!F$121:F$136,MATCH('Cash Forecast_8A import-export'!O53,'Cash Forecast_8A'!B$121:B$136,0)),\"\")","v":""},0,{"$f":"IFERROR(INDEX('Cash Forecast_8A'!H$121:H$136,MATCH('Cash Forecast_8A import-export'!O53,'Cash Forecast_8A'!B$121:B$136,0)),\"\")","v":""},"",null,-1,{"$f":"IFERROR(INDEX('Cash Forecast_8A'!L$121:L$136,MATCH('Cash Forecast_8A import-export'!O53,'Cash Forecast_8A'!B$121:B$136,0)),\"\")","v":""},{"$f":"IFERROR(INDEX('Cash Forecast_8A'!M$121:M$136,MATCH('Cash Forecast_8A import-export'!O53,'Cash Forecast_8A'!B$121:B$136,0)),\"\")","v":""},null,"",null,"Int-1",{"$f":"IFERROR(IF(VLOOKUP(A53,'Reference Records'!$B$12:$D$25,3,FALSE)=0,\"\",VLOOKUP(A53,'Reference Records'!$B$12:$D$25,3,FALSE)),\"\")","v":""},null,"a3y36000002ILGPAA4"]
[null,null,0,{"$f":"IFERROR(INDEX('Cash Forecast_8A'!F$121:F$136,MATCH('Cash Forecast_8A import-export'!O54,'Cash Forecast_8A'!B$121:B$136,0)),\"\")","v":""},0,{"$f":"IFERROR(INDEX('Cash Forecast_8A'!H$121:H$136,MATCH('Cash Forecast_8A import-export'!O54,'Cash Forecast_8A'!B$121:B$136,0)),\"\")","v":""},"",null,-1,{"$f":"IFERROR(INDEX('Cash Forecast_8A'!L$121:L$136,MATCH('Cash Forecast_8A import-export'!O54,'Cash Forecast_8A'!B$121:B$136,0)),\"\")","v":""},{"$f":"IFERROR(INDEX('Cash Forecast_8A'!M$121:M$136,MATCH('Cash Forecast_8A import-export'!O54,'Cash Forecast_8A'!B$121:B$136,0)),\"\")","v":""},null,"",null,"Int-1",{"$f":"IFERROR(IF(VLOOKUP(A54,'Reference Records'!$B$12:$D$25,3,FALSE)=0,\"\",VLOOKUP(A54,'Reference Records'!$B$12:$D$25,3,FALSE)),\"\")","v":""},null,"a3y36000002ILGQAA4"]
[null,null,0,{"$f":"IFERROR(INDEX('Cash Forecast_8A'!F$121:F$136,MATCH('Cash Forecast_8A import-export'!O55,'Cash Forecast_8A'!B$121:B$136,0)),\"\")","v":""},0,{"$f":"IFERROR(INDEX('Cash Forecast_8A'!H$121:H$136,MATCH('Cash Forecast_8A import-export'!O55,'Cash Forecast_8A'!B$121:B$136,0)),\"\")","v":""},"",null,-1,{"$f":"IFERROR(INDEX('Cash Forecast_8A'!L$121:L$136,MATCH('Cash Forecast_8A import-export'!O55,'Cash Forecast_8A'!B$121:B$136,0)),\"\")","v":""},{"$f":"IFERROR(INDEX('Cash Forecast_8A'!M$121:M$136,MATCH('Cash Forecast_8A import-export'!O55,'Cash Forecast_8A'!B$121:B$136,0)),\"\")","v":""},null,"",null,"Int-1",{"$f":"IFERROR(IF(VLOOKUP(A55,'Reference Records'!$B$12:$D$25,3,FALSE)=0,\"\",VLOOKUP(A55,'Reference Records'!$B$12:$D$25,3,FALSE)),\"\")","v":""},null,"a3y36000002ILGRAA4"]
[null,null,0,{"$f":"IFERROR(INDEX('Cash Forecast_8A'!F$121:F$136,MATCH('Cash Forecast_8A import-export'!O56,'Cash Forecast_8A'!B$121:B$136,0)),\"\")","v":""},0,{"$f":"IFERROR(INDEX('Cash Forecast_8A'!H$121:H$136,MATCH('Cash Forecast_8A import-export'!O56,'Cash Forecast_8A'!B$121:B$136,0)),\"\")","v":""},"",null,-1,{"$f":"IFERROR(INDEX('Cash Forecast_8A'!L$121:L$136,MATCH('Cash Forecast_8A import-export'!O56,'Cash Forecast_8A'!B$121:B$136,0)),\"\")","v":""},{"$f":"IFERROR(INDEX('Cash Forecast_8A'!M$121:M$136,MATCH('Cash Forecast_8A import-export'!O56,'Cash Forecast_8A'!B$121:B$136,0)),\"\")","v":""},null,"",null,"Int-1",{"$f":"IFERROR(IF(VLOOKUP(A56,'Reference Records'!$B$12:$D$25,3,FALSE)=0,\"\",VLOOKUP(A56,'Reference Records'!$B$12:$D$25,3,FALSE)),\"\")","v":""},null,"a3y36000002ILGSAA4"]
[null,null,0,{"$f":"IFERROR(INDEX('Cash Forecast_8A'!F$121:F$136,MATCH('Cash Forecast_8A import-export'!O57,'Cash Forecast_8A'!B$121:B$136,0)),\"\")","v":""},0,{"$f":"IFERROR(INDEX('Cash Forecast_8A'!H$121:H$136,MATCH('Cash Forecast_8A import-export'!O57,'Cash Forecast_8A'!B$121:B$136,0)),\"\")","v":""},"",null,-1,{"$f":"IFERROR(INDEX('Cash Forecast_8A'!L$121:L$136,MATCH('Cash Forecast_8A import-export'!O57,'Cash Forecast_8A'!B$121:B$136,0)),\"\")","v":""},{"$f":"IFERROR(INDEX('Cash Forecast_8A'!M$121:M$136,MATCH('Cash Forecast_8A import-export'!O57,'Cash Forecast_8A'!B$121:B$136,0)),\"\")","v":""},null,"",null,"Int-1",{"$f":"IFERROR(IF(VLOOKUP(A57,'Reference Records'!$B$12:$D$25,3,FALSE)=0,\"\",VLOOKUP(A57,'Reference Records'!$B$12:$D$25,3,FALSE)),\"\")","v":""},null,"a3y36000002ILGTAA4"]
[null,null,0,{"$f":"IFERROR(INDEX('Cash Forecast_8A'!F$121:F$136,MATCH('Cash Forecast_8A import-export'!O58,'Cash Forecast_8A'!B$121:B$136,0)),\"\")","v":""},0,{"$f":"IFERROR(INDEX('Cash Forecast_8A'!H$121:H$136,MATCH('Cash Forecast_8A import-export'!O58,'Cash Forecast_8A'!B$121:B$136,0)),\"\")","v":""},"",null,-1,{"$f":"IFERROR(INDEX('Cash Forecast_8A'!L$121:L$136,MATCH('Cash Forecast_8A import-export'!O58,'Cash Forecast_8A'!B$121:B$136,0)),\"\")","v":""},{"$f":"IFERROR(INDEX('Cash Forecast_8A'!M$121:M$136,MATCH('Cash Forecast_8A import-export'!O58,'Cash Forecast_8A'!B$121:B$136,0)),\"\")","v":""},null,"",null,"Int-1",{"$f":"IFERROR(IF(VLOOKUP(A58,'Reference Records'!$B$12:$D$25,3,FALSE)=0,\"\",VLOOKUP(A58,'Reference Records'!$B$12:$D$25,3,FALSE)),\"\")","v":""},null,"a3y36000002ILGUAA4"]
[null,null,0,{"$f":"IFERROR(INDEX('Cash Forecast_8A'!F$121:F$136,MATCH('Cash Forecast_8A import-export'!O59,'Cash Forecast_8A'!B$121:B$136,0)),\"\")","v":""},0,{"$f":"IFERROR(INDEX('Cash Forecast_8A'!H$121:H$136,MATCH('Cash Forecast_8A import-export'!O59,'Cash Forecast_8A'!B$121:B$136,0)),\"\")","v":""},"",null,-1,{"$f":"IFERROR(INDEX('Cash Forecast_8A'!L$121:L$136,MATCH('Cash Forecast_8A import-export'!O59,'Cash Forecast_8A'!B$121:B$136,0)),\"\")","v":""},{"$f":"IFERROR(INDEX('Cash Forecast_8A'!M$121:M$136,MATCH('Cash Forecast_8A import-export'!O59,'Cash Forecast_8A'!B$121:B$136,0)),\"\")","v":""},null,"",null,"Int-1",{"$f":"IFERROR(IF(VLOOKUP(A59,'Reference Records'!$B$12:$D$25,3,FALSE)=0,\"\",VLOOKUP(A59,'Reference Records'!$B$12:$D$25,3,FALSE)),\"\")","v":""},null,"a3y36000002ILGVAA4"]
[null,null,0,{"$f":"IFERROR(INDEX('Cash Forecast_8A'!F$121:F$136,MATCH('Cash Forecast_8A import-export'!O60,'Cash Forecast_8A'!B$121:B$136,0)),\"\")","v":""},0,{"$f":"IFERROR(INDEX('Cash Forecast_8A'!H$121:H$136,MATCH('Cash Forecast_8A import-export'!O60,'Cash Forecast_8A'!B$121:B$136,0)),\"\")","v":""},"",null,-1,{"$f":"IFERROR(INDEX('Cash Forecast_8A'!L$121:L$136,MATCH('Cash Forecast_8A import-export'!O60,'Cash Forecast_8A'!B$121:B$136,0)),\"\")","v":""},{"$f":"IFERROR(INDEX('Cash Forecast_8A'!M$121:M$136,MATCH('Cash Forecast_8A import-export'!O60,'Cash Forecast_8A'!B$121:B$136,0)),\"\")","v":""},null,"",null,"Int-1",{"$f":"IFERROR(IF(VLOOKUP(A60,'Reference Records'!$B$12:$D$25,3,FALSE)=0,\"\",VLOOKUP(A60,'Reference Records'!$B$12:$D$25,3,FALSE)),\"\")","v":""},null,"a3y36000002ILGWAA4"]
[null,null,0,{"$f":"IFERROR(INDEX('Cash Forecast_8A'!F$121:F$136,MATCH('Cash Forecast_8A import-export'!O61,'Cash Forecast_8A'!B$121:B$136,0)),\"\")","v":""},0,{"$f":"IFERROR(INDEX('Cash Forecast_8A'!H$121:H$136,MATCH('Cash Forecast_8A import-export'!O61,'Cash Forecast_8A'!B$121:B$136,0)),\"\")","v":""},"",null,-1,{"$f":"IFERROR(INDEX('Cash Forecast_8A'!L$121:L$136,MATCH('Cash Forecast_8A import-export'!O61,'Cash Forecast_8A'!B$121:B$136,0)),\"\")","v":""},{"$f":"IFERROR(INDEX('Cash Forecast_8A'!M$121:M$136,MATCH('Cash Forecast_8A import-export'!O61,'Cash Forecast_8A'!B$121:B$136,0)),\"\")","v":""},null,"",null,"Int-1",{"$f":"IFERROR(IF(VLOOKUP(A61,'Reference Records'!$B$12:$D$25,3,FALSE)=0,\"\",VLOOKUP(A61,'Reference Records'!$B$12:$D$25,3,FALSE)),\"\")","v":""},null,"a3y36000002ILGXAA4"]
[null,null,0,{"$f":"IFERROR(INDEX('Cash Forecast_8A'!F$121:F$136,MATCH('Cash Forecast_8A import-export'!O62,'Cash Forecast_8A'!B$121:B$136,0)),\"\")","v":""},0,{"$f":"IFERROR(INDEX('Cash Forecast_8A'!H$121:H$136,MATCH('Cash Forecast_8A import-export'!O62,'Cash Forecast_8A'!B$121:B$136,0)),\"\")","v":""},"",null,-1,{"$f":"IFERROR(INDEX('Cash Forecast_8A'!L$121:L$136,MATCH('Cash Forecast_8A import-export'!O62,'Cash Forecast_8A'!B$121:B$136,0)),\"\")","v":""},{"$f":"IFERROR(INDEX('Cash Forecast_8A'!M$121:M$136,MATCH('Cash Forecast_8A import-export'!O62,'Cash Forecast_8A'!B$121:B$136,0)),\"\")","v":""},null,"",null,"Int-1",{"$f":"IFERROR(IF(VLOOKUP(A62,'Reference Records'!$B$12:$D$25,3,FALSE)=0,\"\",VLOOKUP(A62,'Reference Records'!$B$12:$D$25,3,FALSE)),\"\")","v":""},null,"a3y36000002ILGYAA4"]
[null,null,0,{"$f":"IFERROR(INDEX('Cash Forecast_8A'!F$121:F$136,MATCH('Cash Forecast_8A import-export'!O63,'Cash Forecast_8A'!B$121:B$136,0)),\"\")","v":""},0,{"$f":"IFERROR(INDEX('Cash Forecast_8A'!H$121:H$136,MATCH('Cash Forecast_8A import-export'!O63,'Cash Forecast_8A'!B$121:B$136,0)),\"\")","v":""},"",null,-1,{"$f":"IFERROR(INDEX('Cash Forecast_8A'!L$121:L$136,MATCH('Cash Forecast_8A import-export'!O63,'Cash Forecast_8A'!B$121:B$136,0)),\"\")","v":""},{"$f":"IFERROR(INDEX('Cash Forecast_8A'!M$121:M$136,MATCH('Cash Forecast_8A import-export'!O63,'Cash Forecast_8A'!B$121:B$136,0)),\"\")","v":""},null,"",null,"Int-1",{"$f":"IFERROR(IF(VLOOKUP(A63,'Reference Records'!$B$12:$D$25,3,FALSE)=0,\"\",VLOOKUP(A63,'Reference Records'!$B$12:$D$25,3,FALSE)),\"\")","v":""},null,"a3y36000002ILGZAA4"]
[null,null,0,{"$f":"IFERROR(INDEX('Cash Forecast_8A'!F$121:F$136,MATCH('Cash Forecast_8A import-export'!O64,'Cash Forecast_8A'!B$121:B$136,0)),\"\")","v":""},0,{"$f":"IFERROR(INDEX('Cash Forecast_8A'!H$121:H$136,MATCH('Cash Forecast_8A import-export'!O64,'Cash Forecast_8A'!B$121:B$136,0)),\"\")","v":""},"",null,-1,{"$f":"IFERROR(INDEX('Cash Forecast_8A'!L$121:L$136,MATCH('Cash Forecast_8A import-export'!O64,'Cash Forecast_8A'!B$121:B$136,0)),\"\")","v":""},{"$f":"IFERROR(INDEX('Cash Forecast_8A'!M$121:M$136,MATCH('Cash Forecast_8A import-export'!O64,'Cash Forecast_8A'!B$121:B$136,0)),\"\")","v":""},null,"",null,"Int-1",{"$f":"IFERROR(IF(VLOOKUP(A64,'Reference Records'!$B$12:$D$25,3,FALSE)=0,\"\",VLOOKUP(A64,'Reference Records'!$B$12:$D$25,3,FALSE)),\"\")","v":""},null,"a3y36000002ILGaAAO"]
[null,null,0,{"$f":"IFERROR(INDEX('Cash Forecast_8A'!F$121:F$136,MATCH('Cash Forecast_8A import-export'!O65,'Cash Forecast_8A'!B$121:B$136,0)),\"\")","v":""},0,{"$f":"IFERROR(INDEX('Cash Forecast_8A'!H$121:H$136,MATCH('Cash Forecast_8A import-export'!O65,'Cash Forecast_8A'!B$121:B$136,0)),\"\")","v":""},"",null,-1,{"$f":"IFERROR(INDEX('Cash Forecast_8A'!L$121:L$136,MATCH('Cash Forecast_8A import-export'!O65,'Cash Forecast_8A'!B$121:B$136,0)),\"\")","v":""},{"$f":"IFERROR(INDEX('Cash Forecast_8A'!M$121:M$136,MATCH('Cash Forecast_8A import-export'!O65,'Cash Forecast_8A'!B$121:B$136,0)),\"\")","v":""},null,"",null,"Int-1",{"$f":"IFERROR(IF(VLOOKUP(A65,'Reference Records'!$B$12:$D$25,3,FALSE)=0,\"\",VLOOKUP(A65,'Reference Records'!$B$12:$D$25,3,FALSE)),\"\")","v":""},null,"a3y36000002ILGbAAO"]
[null,null,0,{"$f":"IFERROR(INDEX('Cash Forecast_8A'!F$121:F$136,MATCH('Cash Forecast_8A import-export'!O66,'Cash Forecast_8A'!B$121:B$136,0)),\"\")","v":""},0,{"$f":"IFERROR(INDEX('Cash Forecast_8A'!H$121:H$136,MATCH('Cash Forecast_8A import-export'!O66,'Cash Forecast_8A'!B$121:B$136,0)),\"\")","v":""},"",null,-1,{"$f":"IFERROR(INDEX('Cash Forecast_8A'!L$121:L$136,MATCH('Cash Forecast_8A import-export'!O66,'Cash Forecast_8A'!B$121:B$136,0)),\"\")","v":""},{"$f":"IFERROR(INDEX('Cash Forecast_8A'!M$121:M$136,MATCH('Cash Forecast_8A import-export'!O66,'Cash Forecast_8A'!B$121:B$136,0)),\"\")","v":""},null,"",null,"Int-1",{"$f":"IFERROR(IF(VLOOKUP(A66,'Reference Records'!$B$12:$D$25,3,FALSE)=0,\"\",VLOOKUP(A66,'Reference Records'!$B$12:$D$25,3,FALSE)),\"\")","v":""},null,"a3y36000002ILGcAAO"]
[null,null,0,{"$f":"IFERROR(INDEX('Cash Forecast_8A'!F$121:F$136,MATCH('Cash Forecast_8A import-export'!O67,'Cash Forecast_8A'!B$121:B$136,0)),\"\")","v":""},0,{"$f":"IFERROR(INDEX('Cash Forecast_8A'!H$121:H$136,MATCH('Cash Forecast_8A import-export'!O67,'Cash Forecast_8A'!B$121:B$136,0)),\"\")","v":""},"",null,-1,{"$f":"IFERROR(INDEX('Cash Forecast_8A'!L$121:L$136,MATCH('Cash Forecast_8A import-export'!O67,'Cash Forecast_8A'!B$121:B$136,0)),\"\")","v":""},{"$f":"IFERROR(INDEX('Cash Forecast_8A'!M$121:M$136,MATCH('Cash Forecast_8A import-export'!O67,'Cash Forecast_8A'!B$121:B$136,0)),\"\")","v":""},null,"",null,"Int-1",{"$f":"IFERROR(IF(VLOOKUP(A67,'Reference Records'!$B$12:$D$25,3,FALSE)=0,\"\",VLOOKUP(A67,'Reference Records'!$B$12:$D$25,3,FALSE)),\"\")","v":""},null,"a3y36000002ILGdAAO"]
[]
["Grand Total",null,{"$f":"ROUND(SUM(C29:C68),2)","v":1209164.79},{"$f":"ROUND(SUM(D29:D68),2)","v":3387449.71},{"$f":"ROUND(SUM(E29:E68),2)","v":20726518.859999999},{"$f":"ROUND(SUM(F29:F68),2)","v":19954404.710000001},{"$f":"ROUND(SUM(G29:G68),2)","v":23341854.420000002},null,null,{"$f":"ROUND(SUM(J29:J68),2)","v":0},0,0,{"$f":"ROUND(SUM(M29:M68),2)","v":0}]
[]
["Summary Breakdown by Implementing Entity"]
["Implementing Entity",null,"Budget for Forecast Period","PR Forecast for the period","Budget for the Buffer Period","PR Forecast for the Buffer Period","Total Principal Recipient Forecast (including Buffer)","PR Comments",-1,"LFA Adjusted Forecast for the period","LFA Adj. Forecast for the Buffer period",null,"Local Fund Agent - Adjusted Forecast (including the buffer)",null,null,"Record ID"]
["[Implementing Entity]",null,"[Budget for Forecast Period]",{"$f":"IFERROR(INDEX('Cash Forecast_8A'!F$141:F$190,MATCH('Cash Forecast_8A import-export'!O73,'Cash Forecast_8A'!B$141:B$190,0)),\"\")","v":""},"[Budget for the Buffer Period]",{"$f":"IFERROR(INDEX('Cash Forecast_8A'!H$141:H$190,MATCH('Cash Forecast_8A import-export'!O73,'Cash Forecast_8A'!B$141:B$190,0)),\"\")","v":""},{"$f":"IFERROR(D73+F73,\"\")","v":""},"[PR Comments]",{"$f":"I72+1","v":0},{"$f":"IFERROR(INDEX('Cash Forecast_8A'!L$141:L$190,MATCH('Cash Forecast_8A import-export'!O73,'Cash Forecast_8A'!B$141:B$190,0)),\"\")","v":""},{"$f":"IFERROR(INDEX('Cash Forecast_8A'!K$141:K$190,MATCH('Cash Forecast_8A import-export'!O73,'Cash Forecast_8A'!B$141:B$190,0)),\"\")","v":""},null,{"$f":"IFERROR(J73+K73,\"\")","v":""},null,{"$f":"\"IE\"&I73","v":"IE0"},"[Record ID]"]
["CED-Caritas",null,476359.90745624801,{"$f":"IFERROR(INDEX('Cash Forecast_8A'!F$141:F$190,MATCH('Cash Forecast_8A import-export'!O74,'Cash Forecast_8A'!B$141:B$190,0)),\"\")","v":615724.44999999995},188611.79642494899,{"$f":"IFERROR(INDEX('Cash Forecast_8A'!H$141:H$190,MATCH('Cash Forecast_8A import-export'!O74,'Cash Forecast_8A'!B$141:B$190,0)),\"\")","v":188611.79642494934},{"$f":"IFERROR(D74+F74,\"\")","v":804336.24642494926},null,{"$f":"I73+1","v":1},{"$f":"IFERROR(INDEX('Cash Forecast_8A'!L$141:L$190,MATCH('Cash Forecast_8A import-export'!O74,'Cash Forecast_8A'!B$141:B$190,0)),\"\")","v":0},{"$f":"IFERROR(INDEX('Cash Forecast_8A'!K$141:K$190,MATCH('Cash Forecast_8A import-export'!O74,'Cash Forecast_8A'!B$141:B$190,0)),\"\")","v":0},null,{"$f":"IFERROR(J74+K74,\"\")","v":0},null,{"$f":"\"IE\"&I74","v":"IE1"},"a3y36000002ILFpAAO"]
["UNDP",null,603489.65782484296,{"$f":"IFERROR(INDEX('Cash Forecast_8A'!F$141:F$190,MATCH('Cash Forecast_8A import-export'!O75,'Cash Forecast_8A'!B$141:B$190,0)),\"\")","v":2636107.0791291208},20354634.308489401,{"$f":"IFERROR(INDEX('Cash Forecast_8A'!H$141:H$190,MATCH('Cash Forecast_8A import-export'!O75,'Cash Forecast_8A'!B$141:B$190,0)),\"\")","v":19582520.154491086},22218627.233620208,null,2,{"$f":"IFERROR(INDEX('Cash Forecast_8A'!L$141:L$190,MATCH('Cash Forecast_8A import-export'!O75,'Cash Forecast_8A'!B$141:B$190,0)),\"\")","v":0},{"$f":"IFERROR(INDEX('Cash Forecast_8A'!K$141:K$190,MATCH('Cash Forecast_8A import-export'!O75,'Cash Forecast_8A'!B$141:B$190,0)),\"\")","v":0},null,0,null,"IE2","a3y36000002ILFsAAO"]
["Ministry of Public Health and Fight against AIDS of the Republic of Burundi",null,129315.228150788,{"$f":"IFERROR(INDEX('Cash Forecast_8A'!F$141:F$190,MATCH('Cash Forecast_8A import-export'!O76,'Cash Forecast_8A'!B$141:B$190,0)),\"\")","v":135618.17673240716},183272.75499782001,{"$f":"IFERROR(INDEX('Cash Forecast_8A'!H$141:H$190,MATCH('Cash Forecast_8A import-export'!O76,'Cash Forecast_8A'!B$141:B$190,0)),\"\")","v":183272.75499782027},318890.93173022743,null,3,{"$f":"IFERROR(INDEX('Cash Forecast_8A'!L$141:L$190,MATCH('Cash Forecast_8A import-export'!O76,'Cash Forecast_8A'!B$141:B$190,0)),\"\")","v":0},{"$f":"IFERROR(INDEX('Cash Forecast_8A'!K$141:K$190,MATCH('Cash Forecast_8A import-export'!O76,'Cash Forecast_8A'!B$141:B$190,0)),\"\")","v":0},null,0,null,"IE3","a3y36000002ILFuAAO"]
[]
["Grand Total",null,{"$f":"ROUND(SUM(C73:C77),2)","v":1209164.79},{"$f":"ROUND(SUM(D73:D77),2)","v":3387449.71},{"$f":"ROUND(SUM(E73:E77),2)","v":20726518.859999999},{"$f":"ROUND(SUM(F73:F77),2)","v":19954404.710000001},{"$f":"ROUND(SUM(G73:G77),2)","v":23341854.41},null,null,{"$f":"ROUND(SUM(J73:J77),2)","v":0},{"$f":"ROUND(SUM(K73:K77),2)","v":0},{"$f":"ROUND(SUM(L72:L73),2)","v":0},{"$f":"ROUND(SUM(M73:M77),2)","v":0}]
[]
["Validation of Grand Total ",null,{"$f":"IF(AND(ROUND(C24,0)=ROUND(C69,0),ROUND(C69,0)=ROUND(C78,0)),\"OK\",\"WARNING - Sum of the three tables not matching\")","v":"OK"},{"$f":"IF(AND(ROUND(D24,0)=ROUND(D69,0),ROUND(D69,0)=ROUND(D78,0)),\"OK\",\"WARNING - Sum of the three tables not matching\")","v":"OK"},{"$f":"IF(AND(ROUND(E24,0)=ROUND(E69,0),ROUND(E69,0)=ROUND(E78,0)),\"OK\",\"WARNING - Sum of the three tables not matching\")","v":"OK"},{"$f":"IF(AND(ROUND(F24,0)=ROUND(F69,0),ROUND(F69,0)=ROUND(F78,0)),\"OK\",\"WARNING - Sum of the three tables not matching\")","v":"OK"},{"$f":"IF(AND(ROUND(G24,0)=ROUND(G69,0),ROUND(G69,0)=ROUND(G78,0)),\"OK\",\"WARNING - Sum of the three tables not matching\")","v":"OK"},null,null,{"$f":"IF(AND(ROUND(J24,0)=ROUND(J69,0),ROUND(J69,0)=ROUND(J78,0)),\"OK\",\"WARNING - Sum of the three tables not matching\")","v":"OK"},{"$f":"IF(AND(ROUND(K24,0)=ROUND(K69,0),ROUND(K69,0)=ROUND(K78,0)),\"OK\",\"WARNING - Sum of the three tables not matching\")","v":"OK"},{"$f":"IF(AND(ROUND(L24,0)=ROUND(L69,0),ROUND(L69,0)=ROUND(L78,0)),\"OK\",\"WARNING - Sum of the three tables not matching\")","v":"OK"},{"$f":"IF(AND(ROUND(M24,0)=ROUND(M69,0),ROUND(M69,0)=ROUND(M78,0)),\"OK\",\"WARNING - Sum of the three tables not matching\")","v":"OK"}]
[]
[]
[]
[]
["Summary Breakdown by Quarter"]
[null,"Calendar Period ",{"$f":"IFERROR(VLOOKUP(1,D140:E144,2,0),\"\")","v":"01/Jul/2018-30/Sep/2018"},{"$f":"IFERROR(VLOOKUP(2,D140:E144,2,0),\"\")","v":"01/Oct/2018-31/Dec/2018"},{"$f":"IFERROR(VLOOKUP(3,D140:E144,2,0),\"\")","v":""},{"$f":"IFERROR(VLOOKUP(4,D140:E144,2,0),\"\")","v":""},"Total",{"$f":"IFERROR(VLOOKUP(1,D147:E150,2,0),\"\")","v":"01/Jan/2019-31/Mar/2019"},{"$f":"IFERROR(VLOOKUP(2,D147:E150,2,0),\"\")","v":""},"Total"]
[null,"Quarterly Cash Forecast Name","Forecast Q1","Forecast Q2","Forecast Q3","Forecast Q4",null,"Buffer Q1","Buffer Q2",{"$f":"SUM(H87:I87)","v":0},{"$f":"G87+J87","v":0},"Record ID","Record ID"]
[null,"[Quarterly Cash Forecast Name]","[Forecast Q1]","[Forecast Q2]","[Forecast Q3]","[Forecast Q4]",{"$f":"SUM(C88:F88)","v":0},"[Buffer Q1]","[Buffer Q2]",{"$f":"SUM(H88:I88)","v":0},{"$f":"G88+J88","v":0},"[Record ID]","[Record ID]"]
[null,"Approved Budget",0,0,0,0,{"$f":"SUM(C89:F89)","v":0},0,0,{"$f":"SUM(H89:I89)","v":0},{"$f":"G89+J89","v":0},null,"a4A36000000qB4hEAE"]
[null,null,null,null,null,null,null,null,null,{"$f":"SUM(H90:I90)","v":0},{"$f":"G90+J90","v":0}]
[null,"[Quarterly Cash Forecast Name]",{"$f":"IFERROR(INDEX('Cash Forecast_8A'!E$201:E203,MATCH($B91,'Cash Forecast_8A'!$D$201:$D203,0)),\"\")","v":""},{"$f":"IFERROR(INDEX('Cash Forecast_8A'!F$201:F203,MATCH($B91,'Cash Forecast_8A'!$D$201:$D203,0)),\"\")","v":""},{"$f":"IFERROR(INDEX('Cash Forecast_8A'!G$201:G203,MATCH($B91,'Cash Forecast_8A'!$D$201:$D203,0)),\"\")","v":""},{"$f":"IFERROR(INDEX('Cash Forecast_8A'!H$201:H203,MATCH($B91,'Cash Forecast_8A'!$D$201:$D203,0)),\"\")","v":""},{"$f":"SUM(C91:F91)","v":0},{"$f":"IFERROR(INDEX('Cash Forecast_8A'!J$201:J203,MATCH($B91,'Cash Forecast_8A'!$D$201:$D203,0)),\"\")","v":""},{"$f":"IFERROR(INDEX('Cash Forecast_8A'!K$201:K203,MATCH($B91,'Cash Forecast_8A'!$D$201:$D203,0)),\"\")","v":""},{"$f":"SUM(H91:I91)","v":0},null,null,"[Record ID]"]
[null,"Forecasted Disbursement to Principal Recipient",{"$f":"IFERROR(INDEX('Cash Forecast_8A'!E$201:E204,MATCH($B92,'Cash Forecast_8A'!$D$201:$D204,0)),\"\")","v":2340957.9330891725},{"$f":"IFERROR(INDEX('Cash Forecast_8A'!F$201:F204,MATCH($B92,'Cash Forecast_8A'!$D$201:$D204,0)),\"\")","v":1046491.7769363015},{"$f":"IFERROR(INDEX('Cash Forecast_8A'!G$201:G204,MATCH($B92,'Cash Forecast_8A'!$D$201:$D204,0)),\"\")","v":0},{"$f":"IFERROR(INDEX('Cash Forecast_8A'!H$201:H204,MATCH($B92,'Cash Forecast_8A'!$D$201:$D204,0)),\"\")","v":0},{"$f":"SUM(C92:F92)","v":3387449.710025474},{"$f":"IFERROR(INDEX('Cash Forecast_8A'!J$201:J204,MATCH($B92,'Cash Forecast_8A'!$D$201:$D204,0)),\"\")","v":19954404.705913857},{"$f":"IFERROR(INDEX('Cash Forecast_8A'!K$201:K204,MATCH($B92,'Cash Forecast_8A'!$D$201:$D204,0)),\"\")","v":0},{"$f":"SUM(H92:I92)","v":19954404.705913857},null,null,"a4A36000000qB4iEAE"]
[null,"Forecasted Direct Disbursement",{"$f":"IFERROR(INDEX('Cash Forecast_8A'!E$201:E205,MATCH($B93,'Cash Forecast_8A'!$D$201:$D205,0)),\"\")","v":0},{"$f":"IFERROR(INDEX('Cash Forecast_8A'!F$201:F205,MATCH($B93,'Cash Forecast_8A'!$D$201:$D205,0)),\"\")","v":0},{"$f":"IFERROR(INDEX('Cash Forecast_8A'!G$201:G205,MATCH($B93,'Cash Forecast_8A'!$D$201:$D205,0)),\"\")","v":0},{"$f":"IFERROR(INDEX('Cash Forecast_8A'!H$201:H205,MATCH($B93,'Cash Forecast_8A'!$D$201:$D205,0)),\"\")","v":0},0,{"$f":"IFERROR(INDEX('Cash Forecast_8A'!J$201:J205,MATCH($B93,'Cash Forecast_8A'!$D$201:$D205,0)),\"\")","v":0},{"$f":"IFERROR(INDEX('Cash Forecast_8A'!K$201:K205,MATCH($B93,'Cash Forecast_8A'!$D$201:$D205,0)),\"\")","v":0},0,null,null,"a4A36000000qB4jEAE"]
[null,"PPM/eMP (Wambo.org) forecasted Amount",{"$f":"IFERROR(INDEX('Cash Forecast_8A'!E$201:E206,MATCH($B94,'Cash Forecast_8A'!$D$201:$D206,0)),\"\")","v":0},{"$f":"IFERROR(INDEX('Cash Forecast_8A'!F$201:F206,MATCH($B94,'Cash Forecast_8A'!$D$201:$D206,0)),\"\")","v":0},{"$f":"IFERROR(INDEX('Cash Forecast_8A'!G$201:G206,MATCH($B94,'Cash Forecast_8A'!$D$201:$D206,0)),\"\")","v":0},{"$f":"IFERROR(INDEX('Cash Forecast_8A'!H$201:H206,MATCH($B94,'Cash Forecast_8A'!$D$201:$D206,0)),\"\")","v":0},0,{"$f":"IFERROR(INDEX('Cash Forecast_8A'!J$201:J206,MATCH($B94,'Cash Forecast_8A'!$D$201:$D206,0)),\"\")","v":0},{"$f":"IFERROR(INDEX('Cash Forecast_8A'!K$201:K206,MATCH($B94,'Cash Forecast_8A'!$D$201:$D206,0)),\"\")","v":0},0,null,null,"a4A36000000qB4kEAE"]
["Principal Recipient",null,null,null,null,null,null,null,null,null,null,"[Record ID]"]
[null,"Total",{"$f":"ROUND(SUM(C91:C95),2)","v":2340957.9300000002},{"$f":"ROUND(SUM(D91:D95),2)","v":1046491.78},{"$f":"ROUND(SUM(E91:E95),2)","v":0},{"$f":"ROUND(SUM(F91:F95),2)","v":0},{"$f":"ROUND(SUM(C96:F96),2)","v":3387449.71},{"$f":"ROUND(SUM(H91:H95),2)","v":19954404.710000001},{"$f":"ROUND(SUM(I91:I95),2)","v":0},{"$f":"ROUND(SUM(H96:I96),2)","v":19954404.710000001},{"$f":"G96+J96","v":23341854.420000002},null,"Record ID"]
[null,null,"Forecast Q1","Forecast Q2","Forecast Q3","Forecast Q4",null,"Buffer Q1","Buffer Q2",{"$f":"SUM(H97:I97)","v":0},{"$f":"G97+J97","v":0}]
[null,"[Quarterly Cash Forecast Name]",{"$f":"IFERROR(INDEX('Cash Forecast_8A'!E$205:E207,MATCH($B98,'Cash Forecast_8A'!$D$205:$D207,0)),\"\")","v":""},{"$f":"IFERROR(INDEX('Cash Forecast_8A'!F$205:F207,MATCH($B98,'Cash Forecast_8A'!$D$205:$D207,0)),\"\")","v":""},{"$f":"IFERROR(INDEX('Cash Forecast_8A'!G$205:G207,MATCH($B98,'Cash Forecast_8A'!$D$205:$D207,0)),\"\")","v":""},{"$f":"IFERROR(INDEX('Cash Forecast_8A'!H$205:H207,MATCH($B98,'Cash Forecast_8A'!$D$205:$D207,0)),\"\")","v":""},{"$f":"SUM(C98:F98)","v":0},{"$f":"IFERROR(INDEX('Cash Forecast_8A'!J$205:J207,MATCH($B98,'Cash Forecast_8A'!$D$205:$D207,0)),\"\")","v":""},{"$f":"IFERROR(INDEX('Cash Forecast_8A'!K$205:K207,MATCH($B98,'Cash Forecast_8A'!$D$205:$D207,0)),\"\")","v":""},{"$f":"SUM(H98:I98)","v":0},null,"Record ID","[Record ID]"]
[null,"Forecasted Disbursement to Principal Recipient",{"$f":"IFERROR(INDEX('Cash Forecast_8A'!E$205:E208,MATCH($B99,'Cash Forecast_8A'!$D$205:$D208,0)),\"\")","v":0},{"$f":"IFERROR(INDEX('Cash Forecast_8A'!F$205:F208,MATCH($B99,'Cash Forecast_8A'!$D$205:$D208,0)),\"\")","v":0},{"$f":"IFERROR(INDEX('Cash Forecast_8A'!G$205:G208,MATCH($B99,'Cash Forecast_8A'!$D$205:$D208,0)),\"\")","v":0},{"$f":"IFERROR(INDEX('Cash Forecast_8A'!H$205:H208,MATCH($B99,'Cash Forecast_8A'!$D$205:$D208,0)),\"\")","v":0},{"$f":"SUM(C99:F99)","v":0},{"$f":"IFERROR(INDEX('Cash Forecast_8A'!J$205:J208,MATCH($B99,'Cash Forecast_8A'!$D$205:$D208,0)),\"\")","v":0},{"$f":"IFERROR(INDEX('Cash Forecast_8A'!K$205:K208,MATCH($B99,'Cash Forecast_8A'!$D$205:$D208,0)),\"\")","v":0},{"$f":"SUM(H99:I99)","v":0},null,null,"a4A36000000qB4lEAE"]
[null,"Forecasted Direct Disbursement",{"$f":"IFERROR(INDEX('Cash Forecast_8A'!E$205:E209,MATCH($B100,'Cash Forecast_8A'!$D$205:$D209,0)),\"\")","v":0},{"$f":"IFERROR(INDEX('Cash Forecast_8A'!F$205:F209,MATCH($B100,'Cash Forecast_8A'!$D$205:$D209,0)),\"\")","v":0},{"$f":"IFERROR(INDEX('Cash Forecast_8A'!G$205:G209,MATCH($B100,'Cash Forecast_8A'!$D$205:$D209,0)),\"\")","v":0},{"$f":"IFERROR(INDEX('Cash Forecast_8A'!H$205:H209,MATCH($B100,'Cash Forecast_8A'!$D$205:$D209,0)),\"\")","v":0},0,{"$f":"IFERROR(INDEX('Cash Forecast_8A'!J$205:J209,MATCH($B100,'Cash Forecast_8A'!$D$205:$D209,0)),\"\")","v":0},{"$f":"IFERROR(INDEX('Cash Forecast_8A'!K$205:K209,MATCH($B100,'Cash Forecast_8A'!$D$205:$D209,0)),\"\")","v":0},0,null,null,"a4A36000000qB4mEAE"]
[null,"PPM/eMP (Wambo.org) forecasted Amount",{"$f":"IFERROR(INDEX('Cash Forecast_8A'!E$205:E210,MATCH($B101,'Cash Forecast_8A'!$D$205:$D210,0)),\"\")","v":0},{"$f":"IFERROR(INDEX('Cash Forecast_8A'!F$205:F210,MATCH($B101,'Cash Forecast_8A'!$D$205:$D210,0)),\"\")","v":0},{"$f":"IFERROR(INDEX('Cash Forecast_8A'!G$205:G210,MATCH($B101,'Cash Forecast_8A'!$D$205:$D210,0)),\"\")","v":0},{"$f":"IFERROR(INDEX('Cash Forecast_8A'!H$205:H210,MATCH($B101,'Cash Forecast_8A'!$D$205:$D210,0)),\"\")","v":0},0,{"$f":"IFERROR(INDEX('Cash Forecast_8A'!J$205:J210,MATCH($B101,'Cash Forecast_8A'!$D$205:$D210,0)),\"\")","v":0},{"$f":"IFERROR(INDEX('Cash Forecast_8A'!K$205:K210,MATCH($B101,'Cash Forecast_8A'!$D$205:$D210,0)),\"\")","v":0},0,null,null,"a4A36000000qB4nEAE"]
["Local Fund Agent",null,null,null,null,null,null,null,null,null,null,"[Record ID]"]
[null,"Total",{"$f":"ROUND(SUM(C98:C102),2)","v":0},{"$f":"ROUND(SUM(D98:D102),2)","v":0},{"$f":"ROUND(SUM(E98:E102),2)","v":0},{"$f":"ROUND(SUM(F98:F102),2)","v":0},{"$f":"ROUND(SUM(G98:G102),2)","v":0},{"$f":"ROUND(SUM(H98:H98),2)","v":0},{"$f":"ROUND(SUM(I98:I98),2)","v":0},{"$f":"ROUND(SUM(J98:J102),2)","v":0},{"$f":"ROUND(SUM(K98:K102),2)","v":0}]
[]
[]
["Validation of Principal Recipient Grand Total ",null,null,null,null,null,{"$f":"IF(AND(ROUND(D24,0)=ROUND(D69,0),ROUND(D69,0)=ROUND(D78,0),ROUND(D78,0)=ROUND(G96,0)),\"OK\",\"WARNING - Sum of the three tables not matching\")","v":"OK"},null,null,{"$f":"IF(AND(ROUND(F24,0)=ROUND(F69,0),ROUND(F69,0)=ROUND(F78,0),ROUND(F78,0)=ROUND(J96,0)),\"OK\",\"WARNING - Sum of the three tables not matching\")","v":"OK"}]
[]
["Validation of Local Fund Agent Grand Total ",null,null,null,null,null,{"$f":"IF(AND(ROUND(J24,0)=ROUND(J69,0),ROUND(J69,0)=ROUND(J78,0),ROUND(J78,0)=ROUND(G103,0)),\"OK\",\"WARNING - Sum of the three tables not matching\")","v":"OK"},null,null,{"$f":"IF(AND(ROUND(K24,0)=ROUND(K69,0),ROUND(K69,0)=ROUND(K78,0),ROUND(K78,0)=ROUND(J103,0)),\"OK\",\"WARNING - Sum of the three tables not matching\")","v":"OK"}]
[]
[]
[]
[]
[null,null,"Cash Forecast '!E53+'Cash Forecast '!D53+'Cash Forecast '!C53-B14-B15-B16+D23+D24,D13)))"]
[]
[]
[]
[]
[]
[]
[]
[]
[]
[]
[]
[]
[]
[]
["Reporting period"]
[]
[]
[]
["Disbursement Execution Start Date","2018-07-01",{"$f":"IF(B132=\"\",1/1/2000,B132)","v":"2018-07-01"}]
["Disbursement Execution End Date","2018-12-31",{"$f":"IF(B133=\"\",1/1/2000,B133)","v":"2018-12-31"}]
["Disbursement Buffer Start Date","2019-01-01","2019-01-01"]
["Disbursement Buffer End Date","2019-03-31","2019-03-31"]
[]
[]
[]
["Time Object -Forecast"]
["Time ID","Start Date","End date",-1,null,"Record ID"]
["[Time ID]","[Start Date]","[End date]",{"$f":"D140+1","v":0},{"$f":"TEXT(B141,\"DD/MMM/YYYY\")&\"-\"&TEXT(C141,\"DD/MMM/YYYY\")","v":"[Start Date]-[End date]"},"[Record ID]"]
["TIME-19083","2018-07-01","2018-09-30",{"$f":"D141+1","v":1},{"$f":"TEXT(B142,\"DD/MMM/YYYY\")&\"-\"&TEXT(C142,\"DD/MMM/YYYY\")","v":"01/Jul/2018-30/Sep/2018"},"a2T360000039Z7cEAE"]
["TIME-19084","2018-10-01","2018-12-31",2,"01/Oct/2018-31/Dec/2018","a2T360000039Z7dEAE"]
[]
[]
["Time Object - Buffer"]
["Time ID","Start Date","End date",-1,null,"Record ID"]
["[Time ID]","[Start Date]","[End date]",{"$f":"D147+1","v":0},{"$f":"TEXT(B148,\"DD/MMM/YYYY\")&\"-\"&TEXT(C148,\"DD/MMM/YYYY\")","v":"[Start Date]-[End date]"},"[Record ID]"]
["TIME-19085","2019-01-01","2019-03-31",{"$f":"D148+1","v":1},{"$f":"TEXT(B149,\"DD/MMM/YYYY\")&\"-\"&TEXT(C149,\"DD/MMM/YYYY\")","v":"01/Jan/2019-31/Mar/2019"},"a2T360000039Z7eEAE"]
[]
[]
[]
[]
[]
[]
[]
[]
[]
[]
[]
[]
[]
[]
[]
[]
[]
[]
[]
[]
[]
[]
[]
[]
[]
[]
[]
[]
[]
[]
[]
[]
[]
[]
["`"]

{"sheet":"Request and Recommendation_8B","index":36,"n_rows":107,"n_cols":16,"rows_kept":107,"cut":false,"hidden":true,"merged":[[62,4,62,10],[63,4,63,10],[64,4,64,10],[67,4,67,9],[69,4,73,10],[9,1,9,4],[9,7,9,8],[9,15,26,23],[14,11,15,11],[16,11,17,11],[32,0,32,23],[33,15,33,23],[35,1,35,4],[35,7,35,8],[35,15,52,23],[40,11,41,11],[42,11,43,11],[0,0,0,17],[2,4,2,7],[3,4,3,7],[6,0,6,23],[7,15,7,23],[2,0,3,3]]}
["Progress Report with Disbursement Request"]
[]
["Section 8B.  Disbursement Request and Recommendation",null,null,null,{"$f":"CoverSheet!F15","v":"Disbursement Request Execution Period"},null,null,null,{"$f":"CoverSheet!I15","v":"Beginning Date:"},{"$f":"CoverSheet!J15","v":"2018-07-01"},{"$f":"CoverSheet!K15","v":"End Date:"},{"$f":"CoverSheet!L15","v":"2018-12-31"}]
[null,null,null,null,{"$f":"CoverSheet!F16","v":"Disbursement Request Buffer Period"},null,null,null,{"$f":"CoverSheet!I15","v":"Beginning Date:"},{"$f":"CoverSheet!J16","v":"2019-01-01"},{"$f":"CoverSheet!K15","v":"End Date:"},{"$f":"CoverSheet!L16","v":"2019-03-31"}]
[{"$f":"VLOOKUP(Translations!B421,Translations!B3:H508,4,0)","v":"Total forecasted net cash expenditures by the Principal Recipient for the period immediately following the period covered by the Progress Update:"}]
[]
[{"$f":"VLOOKUP(Translations!B422,Translations!B3:H508,4,0)","v":"Principal RECIPIENT"}]
[null,null,null,null,null,null,null,null,null,null,null,null,null,null,null,{"$f":"VLOOKUP(Translations!B423,Translations!B3:H508,4,0)","v":"Explanation of any significant variance between forecasted amounts and amounts as originally budgeted.  Please explain any significant variance (based on your judgment) between the forecasted amounts and the amounts as per approved budgets.  Please specify the main factors and related amounts that are the major drivers of the variance. "}]
[]
[null,{"$f":"VLOOKUP(Translations!B424,Translations!B3:H508,4,0)","v":"Execution Period"},null,null,null,"Total",null,"Buffer Period",null,"Total"]
["Calendar Period",{"$f":"'Cash Forecast_8A'!E199","v":"01/Jul/2018-30/Sep/2018"},{"$f":"'Cash Forecast_8A'!F199","v":"01/Oct/2018-31/Dec/2018"},{"$f":"'Cash Forecast_8A'!G199","v":""},{"$f":"'Cash Forecast_8A'!H199","v":""},null,null,{"$f":"'Cash Forecast_8A'!J199","v":"01/Jan/2019-31/Mar/2019"},{"$f":"'Cash Forecast_8A'!K199","v":""}]
["Approved Budget",{"$f":"B101","v":0},{"$f":"C101","v":0},{"$f":"D101","v":0},{"$f":"E101","v":0},{"$f":"SUM(B12:E12)","v":0},null,{"$f":"G101","v":0},{"$f":"H101","v":0},{"$f":"SUM(H12:I12)","v":0},{"$f":"F12+J12","v":0}]
["Principal Recipient Forecast",{"$f":"'Cash Forecast_8A'!E204","v":2340957.9300000002},{"$f":"'Cash Forecast_8A'!F204","v":1046491.78},{"$f":"'Cash Forecast_8A'!G204","v":0},{"$f":"'Cash Forecast_8A'!H204","v":0},{"$f":"SUM(B13:E13)","v":3387449.71},null,{"$f":"'Cash Forecast_8A'!J204","v":19954404.710000001},{"$f":"'Cash Forecast_8A'!K204","v":0},{"$f":"SUM(H13:I13)","v":19954404.710000001},{"$f":"F13+J13","v":23341854.420000002}]
[{"$f":"VLOOKUP(Translations!B431,Translations!B3:H508,4,0)","v":"Cash Balance: End of period covered by Progress Update (Item 5.3 in PRLFA Cash Reconciliation):"},{"$f":"'PR Cash Reconciliation_2A,B,C,D'!D32","v":0}]
[{"$f":"VLOOKUP(Translations!B432,Translations!B3:H508,4,0)","v":"Cash in Transit for the reporting period (Disbursements to PR:"},null,null,null,null,null,null,null,null,null,null,{"$f":"IF(AND(ROUND(SUM(B15:B16),0)=ROUND('PR Cash Reconciliation_2A,B,C,D'!D38,0)),\"Cash in Transit OK\",\"WARNING - Cash in Transit not matching\")","v":"Cash in Transit OK"}]
[{"$f":"VLOOKUP(Translations!B433,Translations!B3:H508,4,0)","v":"Cash in Transit for the reporting period (Third party disbursements):"}]
[{"$f":"VLOOKUP(Translations!B434,Translations!B3:H508,4,0)","v":"Cash in Transit after the current reporting period (Disbursements to PR"},null,null,null,null,null,null,null,null,null,null,{"$f":"IF(AND(ROUND(SUM(B17:B18),0)=ROUND('PR Cash Reconciliation_2A,B,C,D'!D39,0)),\"Cash in Transit OK\",\"WARNING - Cash in Transit not matching\")","v":"Cash in Transit OK"}]
[{"$f":"VLOOKUP(Translations!B435,Translations!B3:H508,4,0)","v":"Cash in Transit after the current reporting period (Third party disbursements) :"}]
[{"$f":"VLOOKUP(Translations!B436,Translations!B3:H508,4,0)","v":"Disbursement Request"},{"$f":"IF(B13=0,0,IF(AND(B103-$B$14-$B$15-$B$17<=0,B25+B26<=0),0,IF(AND(B103-$B$14-$B$15-$B$17<=0,B25+B26>0),B25+B26,IF(AND(B13-$B$14-$B$15-$B$17<=B25+B26,B25+B26>0),B25+B26,B103-$B$14-$B$15-$B$17+B25+B26))))","v":2340957.9330891725},{"$f":"IF(C13=0,0,IF(AND(B103+C103-$B$14-$B$15-$B$17<=0,C25+C26<=0),0,IF(AND(B103+C103-$B$14-$B$15-$B$17<=0,C25+C26>0),C25+C26,IF(AND(B13+C13-$B$14-$B$15-$B$17<=C25+C26,C25+C26>0),C25+C26,B103+C103-$B$14-$B$15-$B$17-B24+C25+C26))))","v":1046491.7769363015},{"$f":"IF(D13=0,0,IF(AND(B103+C103+D103-$B$14-$B$15-$B$17<=0,D25+D26<=0),0,IF(AND(B103+C103+D103-$B$14-$B$15-$B$17<=0,D25+D26>0),D25+D26,IF(AND(B13+C13+D13-$B$14-$B$15-$B$17<=D25+D26,D25+D26>0),D25+D26,B103+C103+D103-$B$14-$B$15-$B$17-B24-C24+D25+D26))))","v":0},{"$f":"IF(E13=0,0,IF(AND(B103+C103+D103+E103-$B$14-$B$15-$B$17<=0,E25+E26<=0),0,IF(AND(B103+C103+D103+E103-$B$14-$B$15-$B$17<=0,E25+E26>0),E25+E26,IF(AND(B13+C13+D13+E13-$B$14-$B$15-$B$17<=E25+E26,E25+E26>0),E25+E26,B103+C103+D103+E103-$B$14-$B$15-$B$17-B24-C24-D24+E25+E26))))","v":0},{"$f":"SUM(B19:E20)","v":3387449.710025474},null,{"$f":"IF(H13=0,0,IF(AND(B103+C103+D103+E103+G103-$B$14-$B$15-$B$17<=0,H25+H26<=0),0,IF(AND(B103+C103+D103+E103+G103-$B$14-$B$15-$B$17<=0,H25+H26>0),H25+H26,IF(AND(B13+C13+D13+E13+H13-$B$14-$B$15-$B$17<=H25+H26,H25+H26>0),H25+H26,B103+C103+D103+E103+G103-$B$14-$B$15-$B$17-B24-C24-D24-E24+H25+H26))))","v":19954404.705913857},{"$f":"IF(I13=0,0,IF(AND(B103+C103+D103+E103+G103+H103-$B$14-$B$15-$B$17<=0,I25+I26<=0),0,IF(AND(B103+C103+D103+E103+G103+H103-$B$14-$B$15-$B$17<=0,I25+I26>0),I25+I26,IF(AND(B13+C13+D13+E13+H13+I13-$B$14-$B$15-$B$17<=I25+I26,I25+I26>0),I25+I26,B103+C103+D103+E103+G103+H103-$B$14-$B$15-$B$17-B24-C24-D24-E24-H24+I25+I26))))","v":0},{"$f":"SUM(H19:I19)","v":19954404.705913857},{"$f":"J19+F19","v":23341854.415939331}]
[]
[]
[]
[]
["Forecasted Disbursement to Principal Recipient",{"$f":"IF(B19=0,0,B19-SUM(B25:B26))","v":2340957.9330891725},{"$f":"IF(C19=0,0,C19-SUM(C25:C26))","v":1046491.7769363015},{"$f":"IF(D19=0,0,D19-SUM(D25:D26))","v":0},{"$f":"IF(E19=0,0,E19-SUM(E25:E26))","v":0},{"$f":"SUM(B24:E24)","v":3387449.710025474},null,{"$f":"H19-SUM(H25:H26)","v":19954404.705913857},{"$f":"I19-SUM(I25:I26)","v":0},{"$f":"SUM(H24:I24)","v":19954404.705913857},{"$f":"IF(AND(ROUND(F24+J24,0)=ROUND(F103+I103-B14-B15-B17,0)),\"OK\",\"WARNING - Sum not matching\")","v":"OK"}]
["Forecasted Direct Disbursement",{"$f":"IF('Request and Recommendation_8B'!B102-$B$16-$B$18<=0,0,'Request and Recommendation_8B'!B102-$B$16-$B$18)","v":0},{"$f":"IF(('Request and Recommendation_8B'!C102+'Request and Recommendation_8B'!B102)-$B$16-$B$18<=0,0,('Request and Recommendation_8B'!C102+'Request and Recommendation_8B'!B102)-B25-$B$16-$B$18)","v":0},{"$f":"IF(('Request and Recommendation_8B'!D102+'Request and Recommendation_8B'!C102+'Request and Recommendation_8B'!B102)-$B$16-$B$18<=0,0,('Request and Recommendation_8B'!D102+'Request and Recommendation_8B'!C102+'Request and Recommendation_8B'!B102)-B25-C25-$B$16-$B$18)","v":0},{"$f":"IF(('Request and Recommendation_8B'!E102+'Request and Recommendation_8B'!D102+'Request and Recommendation_8B'!C102+'Request and Recommendation_8B'!B102)-$B$16-$B$18<=0,0,('Request and Recommendation_8B'!E102+'Request and Recommendation_8B'!D102+'Request and Recommendation_8B'!C102+'Request and Recommendation_8B'!B102)-B25-C25-D25-$B$16-$B$18)","v":0},{"$f":"SUM(B25:E25)","v":0},null,{"$f":"IF(('Request and Recommendation_8B'!G102+'Request and Recommendation_8B'!E102+'Request and Recommendation_8B'!D102+'Request and Recommendation_8B'!C102+'Request and Recommendation_8B'!B102)-$B$16-$B$18<=0,0,('Request and Recommendation_8B'!G102+'Request and Recommendation_8B'!E102+'Request and Recommendation_8B'!D102+'Request and Recommendation_8B'!C102+'Request and Recommendation_8B'!B102)-B25-C25-D25-E25-$B$16-$B$18)","v":0},{"$f":"IF(('Request and Recommendation_8B'!H102+'Request and Recommendation_8B'!G102+'Request and Recommendation_8B'!E102+'Request and Recommendation_8B'!D102+'Request and Recommendation_8B'!C102+'Request and Recommendation_8B'!B102)-$B$16-$B$18<=0,0,('Request and Recommendation_8B'!H102+'Request and Recommendation_8B'!G102+'Request and Recommendation_8B'!E102+'Request and Recommendation_8B'!D102+'Request and Recommendation_8B'!C102+'Request and Recommendation_8B'!B102)-B25-C25-D25-E25-H25-$B$16-$B$18)","v":0},{"$f":"SUM(H25:I25)","v":0},{"$f":"IF(AND(ROUND(F25+J25,0)=ROUND(F102+I102-B16-B18,0)),\"OK\",\"WARNING - Sum not matching\")","v":"OK"}]
["PPM/Wambo.org  forecasted disbursement",{"$f":"'Request and Recommendation_8B'!B104","v":0},{"$f":"'Request and Recommendation_8B'!C104","v":0},{"$f":"'Request and Recommendation_8B'!D104","v":0},{"$f":"'Request and Recommendation_8B'!E104","v":0},{"$f":"SUM(B26:E26)","v":0},null,{"$f":"'Request and Recommendation_8B'!G104","v":0},{"$f":"'Request and Recommendation_8B'!H104","v":0},{"$f":"SUM(H26:I26)","v":0},{"$f":"IF(AND(ROUND(F26+J26,0)=ROUND(F104+I104,0)),\"OK\",\"WARNING - Sum not matching\")","v":"OK"}]
["Disbursement Request",{"$f":"SUM(B24:B26)","v":2340957.9330891725},{"$f":"SUM(C24:C26)","v":1046491.7769363015},{"$f":"SUM(D24:D26)","v":0},{"$f":"SUM(E24:E26)","v":0},{"$f":"SUM(F24:F26)","v":3387449.710025474},null,{"$f":"SUM(H24:H26)","v":19954404.705913857},{"$f":"SUM(I24:I26)","v":0},{"$f":"SUM(J24:J26)","v":19954404.705913857},{"$f":"F27+J27","v":23341854.415939331}]
[]
[null,null,null,null,null,null,null,null,null,null,{"$f":"IF(AND(ROUND(K19,0)=ROUND(K27,0)),\"OK\",\"WARNING - Sum not matching\")","v":"OK"}]
[]
[]
[]
["For LFA Use Only"]
[null,null,null,null,null,null,null,null,null,null,null,null,null,null,null,{"$f":"VLOOKUP(Translations!B442,Translations!B3:H508,4,0)","v":"LFA comments on PR's explanation of any significant variance between forecasted amounts and amounts as originally budgeted."}]
[]
[null,"Execution Period",null,null,null,"Total",null,"Buffer Period",null,"Total"]
["Calendar Period",{"$f":"'Cash Forecast_8A'!E199","v":"01/Jul/2018-30/Sep/2018"},{"$f":"'Cash Forecast_8A'!F199","v":"01/Oct/2018-31/Dec/2018"},{"$f":"'Cash Forecast_8A'!G199","v":""},{"$f":"'Cash Forecast_8A'!H199","v":""},null,null,{"$f":"'Cash Forecast_8A'!J199","v":"01/Jan/2019-31/Mar/2019"},{"$f":"'Cash Forecast_8A'!K199","v":""}]
["Approved Budget",{"$f":"B101","v":0},{"$f":"C101","v":0},{"$f":"D101","v":0},{"$f":"E101","v":0},{"$f":"SUM(B38:E38)","v":0},null,{"$f":"G101","v":0},{"$f":"H101","v":0},{"$f":"SUM(H38:I38)","v":0},{"$f":"J38+F38","v":0}]
["Local Fund Agent  Forecast",{"$f":"'Cash Forecast_8A'!E208","v":0},{"$f":"'Cash Forecast_8A'!F208","v":0},{"$f":"'Cash Forecast_8A'!G208","v":0},{"$f":"'Cash Forecast_8A'!H208","v":0},{"$f":"SUM(B39:E39)","v":0},null,{"$f":"'Cash Forecast_8A'!J208","v":0},{"$f":"'Cash Forecast_8A'!K208","v":0},{"$f":"SUM(H39:I39)","v":0},{"$f":"J39+F39","v":0}]
["Cash Balance: End of period covered by Progress Update (Item 5.3 in PRLFA Cash Reconciliation):",{"$f":"'PR Cash Reconciliation_2A,B,C,D'!H32","v":0}]
["Cash in Transit for the reporting period (Disbursements to PR:",null,null,null,null,null,null,null,null,null,null,{"$f":"IF(AND(ROUND(SUM(B41:B42),0)=ROUND('PR Cash Reconciliation_2A,B,C,D'!H38,0)),\"Cash in Transit OK\",\"WARNING - Cash in Transit not matching\")","v":"Cash in Transit OK"}]
["Cash in Transit for the reporting period (Third party disbursements):"]
["Cash in Transit after the current reporting period (Disbursements to PR:",null,null,null,null,null,null,null,null,null,null,{"$f":"IF(AND(ROUND(SUM(B43:B44),0)=ROUND('PR Cash Reconciliation_2A,B,C,D'!H39,0)),\"Cash in Transit OK\",\"WARNING - Cash in Transit not matching\")","v":"Cash in Transit OK"}]
["Cash in Transit after the current reporting period (Third party disbursements) :"]
["Disbursement Request",{"$f":"IF(B39=0,0,IF(AND(B106-$B$40-$B$41-$B$43<=0,B51+B52<=0),0,IF(AND(B106-$B$40-$B$41-$B$43<=0,B51+B52>0),B51+B52,IF(AND(B39-$B$40-$B$41-$B$43<=B51+B52,B51+B52>0),B51+B52,B106-$B$40-$B$41-$B$43+B51+B52))))","v":0},{"$f":"IF(C39=0,0,IF(AND(B106+C106-$B$40-$B$41-$B$43<=0,C51+C52<=0),0,IF(AND(B106+C106-$B$40-$B$41-$B$43<=0,C51+C52>0),C51+C52,IF(AND(B39+C39-$B$40-$B$41-$B$43<=C51+C52,C51+C52>0),C51+C52,B106+C106-$B$40-$B$41-$B$43-B50+C51+C52))))","v":0},{"$f":"IF(D39=0,0,IF(AND(B106+C106+D106-$B$40-$B$41-$B$43<=0,D51+D52<=0),0,IF(AND(B106+C106+D106-$B$40-$B$41-$B$43<=0,D51+D52>0),D51+D52,IF(AND(B39+C39+D39-$B$40-$B$41-$B$43<=D51+D52,D51+D52>0),D51+D52,B106+C106+D106-$B$40-$B$41-$B$43-B50-C50+D51+D52))))","v":0},{"$f":"IF(E39=0,0,IF(AND(B106+C106+D106+E106-$B$40-$B$41-$B$43<=0,E51+E52<=0),0,IF(AND(B106+C106+D106+E106-$B$40-$B$41-$B$43<=0,E51+E52>0),E51+E52,IF(AND(B39+C39+D39+E39-$B$40-$B$41-$B$43<=E51+E52,E51+E52>0),E51+E52,B106+C106+D106+E106-$B$40-$B$41-$B$43-B50-C50-D50+E51+E52))))","v":0},{"$f":"SUM(B45:E45)","v":0},null,{"$f":"IF(H39=0,0,IF(AND(B106+C106+D106+E106+G106-$B$40-$B$41-$B$43<=0,H51+H52<=0),0,IF(AND(B106+C106+D106+E106+G106-$B$40-$B$41-$B$43<=0,H51+H52>0),H51+H52,IF(AND(B39+C39+D39+E39+H39-$B$40-$B$41-$B$43<=H51+H52,H51+H52>0),H51+H52,B106+C106+D106+E106+G106-$B$40-$B$41-$B$43-B50-C50-D50-E50+H51+H52))))","v":0},{"$f":"IF(I39=0,0,IF(AND(B106+C106+D106+E106+G106+H106-$B$40-$B$41-$B$43<=0,I51+I52<=0),0,IF(AND(B106+C106+D106+E106+G106+H106-$B$40-$B$41-$B$43<=0,I51+I52>0),I51+I52,IF(AND(B39+C39+D39+E39+H39+I39-$B$40-$B$41-$B$43<=I51+I52,I51+I52>0),I51+I52,B106+C106+D106+E106+G106+H106-$B$40-$B$41-$B$43-B50-C50-D50-E50-H50+I51+I52))))","v":0},{"$f":"SUM(H45:I45)","v":0},{"$f":"F45+J45","v":0}]
[]
[]
[]
[]
["Forecasted Disbursement to Principal Recipient",{"$f":"B45-SUM(B51:B52)","v":0},{"$f":"C45-SUM(C51:C52)","v":0},{"$f":"D45-SUM(D51:D52)","v":0},{"$f":"E45-SUM(E51:E52)","v":0},{"$f":"SUM(B50:E50)","v":0},null,{"$f":"H45-SUM(H51:H52)","v":0},{"$f":"I45-SUM(I51:I52)","v":0},{"$f":"SUM(H50:I50)","v":0},{"$f":"IF(AND(ROUND(F50+J50,0)=ROUND(F106+I106-B40-B41-B43,0)),\"OK\",\"WARNING - Sum not matching\")","v":"OK"}]
["Forecasted Direct Disbursement",{"$f":"IF('Request and Recommendation_8B'!B105-$B$42-$B$44<=0,0,'Request and Recommendation_8B'!B105-$B$42-$B$44)","v":0},{"$f":"IF('Request and Recommendation_8B'!B105+'Request and Recommendation_8B'!C105-$B$42-$B$44<=0,0,'Request and Recommendation_8B'!B105+'Request and Recommendation_8B'!C105-B51-$B$42-$B$44)","v":0},{"$f":"IF('Request and Recommendation_8B'!B105+'Request and Recommendation_8B'!C105+'Request and Recommendation_8B'!D105-$B$42-$B$44<=0,0,'Request and Recommendation_8B'!B105+'Request and Recommendation_8B'!C105+'Request and Recommendation_8B'!D105-C51-B51-$B$42-$B$44)","v":0},{"$f":"IF('Request and Recommendation_8B'!B105+'Request and Recommendation_8B'!C105+'Request and Recommendation_8B'!D105+'Request and Recommendation_8B'!E105-$B$42-$B$44<=0,0,'Request and Recommendation_8B'!B105+'Request and Recommendation_8B'!C105+'Request and Recommendation_8B'!D105+'Request and Recommendation_8B'!E105-D51-C51-B51-$B$42-$B$44)","v":0},{"$f":"SUM(B51:E51)","v":0},null,{"$f":"IF('Request and Recommendation_8B'!B105+'Request and Recommendation_8B'!C105+'Request and Recommendation_8B'!D105+'Request and Recommendation_8B'!E105+'Request and Recommendation_8B'!G105-$B$42-$B$44<=0,0,'Request and Recommendation_8B'!B105+'Request and Recommendation_8B'!C105+'Request and Recommendation_8B'!D105+'Request and Recommendation_8B'!E105+'Request and Recommendation_8B'!G105-E51-D51-C51-B51-$B$42-$B$44)","v":0},{"$f":"IF(('Request and Recommendation_8B'!B105+'Request and Recommendation_8B'!C105+'Request and Recommendation_8B'!D105+'Request and Recommendation_8B'!E105+'Request and Recommendation_8B'!G105+'Request and Recommendation_8B'!H105)-$B$42-$B$44<=0,0,('Request and Recommendation_8B'!B105+'Request and Recommendation_8B'!C105+'Request and Recommendation_8B'!D105+'Request and Recommendation_8B'!E105+'Request and Recommendation_8B'!H105+'Request and Recommendation_8B'!G105)-B51-C51-D51-E51-H51-$B$42-$B$44)","v":0},{"$f":"SUM(H51:I51)","v":0},{"$f":"IF(AND(ROUND(F51+J51,0)=ROUND(F105+I105-B42-B44,0)),\"OK\",\"WARNING - Sum not matching\")","v":"OK"}]
["PPM/Wambo.org  forecasted disbursement",{"$f":"'Request and Recommendation_8B'!B107","v":0},{"$f":"'Request and Recommendation_8B'!C107","v":0},{"$f":"'Request and Recommendation_8B'!D107","v":0},{"$f":"'Request and Recommendation_8B'!E107","v":0},{"$f":"SUM(B52:E52)","v":0},null,{"$f":"'Request and Recommendation_8B'!G107","v":0},{"$f":"'Request and Recommendation_8B'!H107","v":0},{"$f":"SUM(H52:I52)","v":0},{"$f":"IF(AND(ROUND(F52+J52,0)=ROUND(F107+I107,0)),\"OK\",\"WARNING - Sum not matching\")","v":"OK"}]
["Disbursement Request",{"$f":"SUM(B50:B52)","v":0},{"$f":"SUM(C50:C52)","v":0},{"$f":"SUM(D50:D52)","v":0},{"$f":"SUM(E50:E52)","v":0},{"$f":"SUM(F50:F52)","v":0},null,{"$f":"SUM(H50:H52)","v":0},{"$f":"SUM(I50:I52)","v":0},{"$f":"SUM(J50:J52)","v":0},{"$f":"F53+J53","v":0}]
[]
[null,null,null,null,null,null,null,null,null,null,{"$f":"IF(AND(ROUND(K45,0)=ROUND(K53,0)),\"OK\",\"WARNING - Sum not matching\")","v":"OK"}]
[]
[]
[]
[]
["Exchange Rate"]
[null,"Rates used by the PR","LFA-verified rates",null,"Name of local currency, date and source of the exchange rate, and other comments (if appropriate) "]
[]
["'- used to convert Opening Cash Balance",0,0]
["- used to convert Closing Cash Balance",0,0]
["- used to convert Total PR Cash Outflow for the Progress Update Period",0,0]
[]
[]
[null,null,null,null,"LFA comments on the exchange rates used by the PR"]
[]
[]
[]
[]
[]
[]
[]
[]
[]
[]
[]
[]
[]
[]
[]
[]
[]
[]
[]
[]
[]
[]
[]
[]
[]
[]
[]
[]
[]
[]
[]
[]
["Approved Budget",{"$f":"IFERROR(VLOOKUP($A101,'Cash Forecast_8A'!$D$200:$L$203,2,FALSE),\"\")","v":0},{"$f":"IFERROR(VLOOKUP($A101,'Cash Forecast_8A'!$D$200:$L$203,3,FALSE),\"\")","v":0},{"$f":"IFERROR(VLOOKUP($A101,'Cash Forecast_8A'!$D$200:$L$203,4,FALSE),\"\")","v":0},{"$f":"IFERROR(VLOOKUP($A101,'Cash Forecast_8A'!$D$200:$L$203,5,FALSE),\"\")","v":0},{"$f":"IFERROR(VLOOKUP($A101,'Cash Forecast_8A'!$D$200:$L$203,6,FALSE),\"\")","v":0},{"$f":"IFERROR(VLOOKUP($A101,'Cash Forecast_8A'!$D$200:$L$203,7,FALSE),\"\")","v":0},{"$f":"IFERROR(VLOOKUP($A101,'Cash Forecast_8A'!$D$200:$L$203,8,FALSE),\"\")","v":0},{"$f":"IFERROR(VLOOKUP($A101,'Cash Forecast_8A'!$D$200:$L$203,9,FALSE),\"\")","v":0}]
["Forecasted Direct Disbursement",{"$f":"IFERROR(VLOOKUP($A102,'Cash Forecast_8A'!$D$200:$L$203,2,FALSE),\"\")","v":0},{"$f":"IFERROR(VLOOKUP($A102,'Cash Forecast_8A'!$D$200:$L$203,3,FALSE),\"\")","v":0},{"$f":"IFERROR(VLOOKUP($A102,'Cash Forecast_8A'!$D$200:$L$203,4,FALSE),\"\")","v":0},{"$f":"IFERROR(VLOOKUP($A102,'Cash Forecast_8A'!$D$200:$L$203,5,FALSE),\"\")","v":0},{"$f":"IFERROR(VLOOKUP($A102,'Cash Forecast_8A'!$D$200:$L$203,6,FALSE),\"\")","v":0},{"$f":"IFERROR(VLOOKUP($A102,'Cash Forecast_8A'!$D$200:$L$203,7,FALSE),\"\")","v":0},{"$f":"IFERROR(VLOOKUP($A102,'Cash Forecast_8A'!$D$200:$L$203,8,FALSE),\"\")","v":0},{"$f":"IFERROR(VLOOKUP($A102,'Cash Forecast_8A'!$D$200:$L$203,9,FALSE),\"\")","v":0}]
["Forecasted Disbursement to Principal Recipient",{"$f":"IFERROR(VLOOKUP($A103,'Cash Forecast_8A'!$D$200:$L$203,2,FALSE),\"\")","v":2340957.9330891725},{"$f":"IFERROR(VLOOKUP($A103,'Cash Forecast_8A'!$D$200:$L$203,3,FALSE),\"\")","v":1046491.7769363015},{"$f":"IFERROR(VLOOKUP($A103,'Cash Forecast_8A'!$D$200:$L$203,4,FALSE),\"\")","v":0},{"$f":"IFERROR(VLOOKUP($A103,'Cash Forecast_8A'!$D$200:$L$203,5,FALSE),\"\")","v":0},{"$f":"IFERROR(VLOOKUP($A103,'Cash Forecast_8A'!$D$200:$L$203,6,FALSE),\"\")","v":3387449.710025474},{"$f":"IFERROR(VLOOKUP($A103,'Cash Forecast_8A'!$D$200:$L$203,7,FALSE),\"\")","v":19954404.705913857},{"$f":"IFERROR(VLOOKUP($A103,'Cash Forecast_8A'!$D$200:$L$203,8,FALSE),\"\")","v":0},{"$f":"IFERROR(VLOOKUP($A103,'Cash Forecast_8A'!$D$200:$L$203,9,FALSE),\"\")","v":19954404.705913857}]
["PPM/eMP (Wambo.org) forecasted Amount",{"$f":"IFERROR(VLOOKUP($A104,'Cash Forecast_8A'!$D$200:$L$203,2,FALSE),\"\")","v":0},{"$f":"IFERROR(VLOOKUP($A104,'Cash Forecast_8A'!$D$200:$L$203,3,FALSE),\"\")","v":0},{"$f":"IFERROR(VLOOKUP($A104,'Cash Forecast_8A'!$D$200:$L$203,4,FALSE),\"\")","v":0},{"$f":"IFERROR(VLOOKUP($A104,'Cash Forecast_8A'!$D$200:$L$203,5,FALSE),\"\")","v":0},{"$f":"IFERROR(VLOOKUP($A104,'Cash Forecast_8A'!$D$200:$L$203,6,FALSE),\"\")","v":0},{"$f":"IFERROR(VLOOKUP($A104,'Cash Forecast_8A'!$D$200:$L$203,7,FALSE),\"\")","v":0},{"$f":"IFERROR(VLOOKUP($A104,'Cash Forecast_8A'!$D$200:$L$203,8,FALSE),\"\")","v":0},{"$f":"IFERROR(VLOOKUP($A104,'Cash Forecast_8A'!$D$200:$L$203,9,FALSE),\"\")","v":0}]
["Forecasted Direct Disbursement",{"$f":"IFERROR(VLOOKUP($A104,'Cash Forecast_8A'!$D$205:$L$207,2,FALSE),\"\")","v":0},{"$f":"IFERROR(VLOOKUP($A104,'Cash Forecast_8A'!$D$205:$L$207,3,FALSE),\"\")","v":0},{"$f":"IFERROR(VLOOKUP($A104,'Cash Forecast_8A'!$D$205:$L$207,4,FALSE),\"\")","v":0},{"$f":"IFERROR(VLOOKUP($A104,'Cash Forecast_8A'!$D$205:$L$207,5,FALSE),\"\")","v":0},{"$f":"IFERROR(VLOOKUP($A104,'Cash Forecast_8A'!$D$205:$L$207,6,FALSE),\"\")","v":0},{"$f":"IFERROR(VLOOKUP($A104,'Cash Forecast_8A'!$D$205:$L$207,7,FALSE),\"\")","v":0},{"$f":"IFERROR(VLOOKUP($A104,'Cash Forecast_8A'!$D$205:$L$207,8,FALSE),\"\")","v":0},{"$f":"IFERROR(VLOOKUP($A104,'Cash Forecast_8A'!$D$205:$L$207,9,FALSE),\"\")","v":0}]
["Forecasted Disbursement to Principal Recipient",{"$f":"IFERROR(VLOOKUP($A105,'Cash Forecast_8A'!$D$205:$L$207,2,FALSE),\"\")","v":0},{"$f":"IFERROR(VLOOKUP($A105,'Cash Forecast_8A'!$D$205:$L$207,3,FALSE),\"\")","v":0},{"$f":"IFERROR(VLOOKUP($A105,'Cash Forecast_8A'!$D$205:$L$207,4,FALSE),\"\")","v":0},{"$f":"IFERROR(VLOOKUP($A105,'Cash Forecast_8A'!$D$205:$L$207,5,FALSE),\"\")","v":0},{"$f":"IFERROR(VLOOKUP($A105,'Cash Forecast_8A'!$D$205:$L$207,6,FALSE),\"\")","v":0},{"$f":"IFERROR(VLOOKUP($A105,'Cash Forecast_8A'!$D$205:$L$207,7,FALSE),\"\")","v":0},{"$f":"IFERROR(VLOOKUP($A105,'Cash Forecast_8A'!$D$205:$L$207,8,FALSE),\"\")","v":0},{"$f":"IFERROR(VLOOKUP($A105,'Cash Forecast_8A'!$D$205:$L$207,9,FALSE),\"\")","v":0}]
["PPM/eMP (Wambo.org) forecasted Amount",{"$f":"IFERROR(VLOOKUP($A106,'Cash Forecast_8A'!$D$205:$L$207,2,FALSE),\"\")","v":0},{"$f":"IFERROR(VLOOKUP($A106,'Cash Forecast_8A'!$D$205:$L$207,3,FALSE),\"\")","v":0},{"$f":"IFERROR(VLOOKUP($A106,'Cash Forecast_8A'!$D$205:$L$207,4,FALSE),\"\")","v":0},{"$f":"IFERROR(VLOOKUP($A106,'Cash Forecast_8A'!$D$205:$L$207,5,FALSE),\"\")","v":0},{"$f":"IFERROR(VLOOKUP($A106,'Cash Forecast_8A'!$D$205:$L$207,6,FALSE),\"\")","v":0},{"$f":"IFERROR(VLOOKUP($A106,'Cash Forecast_8A'!$D$205:$L$207,7,FALSE),\"\")","v":0},{"$f":"IFERROR(VLOOKUP($A106,'Cash Forecast_8A'!$D$205:$L$207,8,FALSE),\"\")","v":0},{"$f":"IFERROR(VLOOKUP($A106,'Cash Forecast_8A'!$D$205:$L$207,9,FALSE),\"\")","v":0}]

{"sheet":"Reference Records","index":37,"n_rows":182,"n_cols":12,"rows_kept":182,"cut":false,"hidden":true,"merged":[]}
[]
[]
[]
[null,"Grant Components"]
[null,"Grant Component Name",null,"Component (Name)"]
[null,"[Grant Component Name]",null,"[Component (Name)]"]
[null,"GC-04591",null,"Malaria"]
[]
[]
[null,"Module Data - Component - Indicator Reference"]
[null,"Module","Column1","Module-Coverage-Intervention Reference (Name)","Column2","Column3","Column4","Column5","unique id","unique name list","Record ID"]
[null,"[Name]",null,"[Module-Coverage-Intervention Reference (Name)]",null,null,null,null,{"$f":"IFERROR(INDEX($D$12:$D$25, MATCH(0, COUNTIF($I$11:I11, $D$12:$D$25&\"\") + IF($D$12:$D$25=\"\",1,0), 0)), \"\")","v":"[Module-Coverage-Intervention Reference (Name)]"},{"$f":"IFERROR(IF(INDEX($B$12:$B$25,MATCH(LEFT(I12,255),LEFT($D$12:$D$25,255),0))=0,\"\",INDEX($B$12:$B$25,MATCH(LEFT(I12,255),LEFT($D$12:$D$25,255),0))),\"\")","v":"[Name]"},"[Record ID]"]
[null,"Vector control",null,"MCI-00011",null,null,null,null,{"$f":"IFERROR(INDEX($D$12:$D$25, MATCH(0, COUNTIF($I$11:I12, $D$12:$D$25&\"\") + IF($D$12:$D$25=\"\",1,0), 0)), \"\")","v":"MCI-00011"},{"$f":"IFERROR(IF(INDEX($B$12:$B$25,MATCH(LEFT(I13,255),LEFT($D$12:$D$25,255),0))=0,\"\",INDEX($B$12:$B$25,MATCH(LEFT(I13,255),LEFT($D$12:$D$25,255),0))),\"\")","v":"Vector control"},"a3z360000009C26AAE"]
[null,"Case management",null,"MCI-00012",null,null,null,null,{"$f":"IFERROR(INDEX($D$12:$D$25, MATCH(0, COUNTIF($I$11:I13, $D$12:$D$25&\"\") + IF($D$12:$D$25=\"\",1,0), 0)), \"\")","v":"MCI-00012"},{"$f":"IFERROR(IF(INDEX($B$12:$B$25,MATCH(LEFT(I14,255),LEFT($D$12:$D$25,255),0))=0,\"\",INDEX($B$12:$B$25,MATCH(LEFT(I14,255),LEFT($D$12:$D$25,255),0))),\"\")","v":"Case management"},"a3z360000009C27AAE"]
[null,"Specific prevention interventions (SPI)",null,"MCI-00013",null,null,null,null,{"$f":"IFERROR(INDEX($D$12:$D$25, MATCH(0, COUNTIF($I$11:I14, $D$12:$D$25&\"\") + IF($D$12:$D$25=\"\",1,0), 0)), \"\")","v":"MCI-00013"},{"$f":"IFERROR(IF(INDEX($B$12:$B$25,MATCH(LEFT(I15,255),LEFT($D$12:$D$25,255),0))=0,\"\",INDEX($B$12:$B$25,MATCH(LEFT(I15,255),LEFT($D$12:$D$25,255),0))),\"\")","v":"Specific prevention interventions (SPI)"},"a3z360000009C28AAE"]
[null,"RSSH: Integrated service delivery and quality improvement",null,"MCI-00014",null,null,null,null,{"$f":"IFERROR(INDEX($D$12:$D$25, MATCH(0, COUNTIF($I$11:I15, $D$12:$D$25&\"\") + IF($D$12:$D$25=\"\",1,0), 0)), \"\")","v":"MCI-00014"},{"$f":"IFERROR(IF(INDEX($B$12:$B$25,MATCH(LEFT(I16,255),LEFT($D$12:$D$25,255),0))=0,\"\",INDEX($B$12:$B$25,MATCH(LEFT(I16,255),LEFT($D$12:$D$25,255),0))),\"\")","v":"RSSH: Integrated service delivery and quality improvement"},"a3z360000009C29AAE"]
[null,"RSSH: Human resources for health (HRH), including community health workers",null,"MCI-00015",null,null,null,null,{"$f":"IFERROR(INDEX($D$12:$D$25, MATCH(0, COUNTIF($I$11:I16, $D$12:$D$25&\"\") + IF($D$12:$D$25=\"\",1,0), 0)), \"\")","v":"MCI-00015"},{"$f":"IFERROR(IF(INDEX($B$12:$B$25,MATCH(LEFT(I17,255),LEFT($D$12:$D$25,255),0))=0,\"\",INDEX($B$12:$B$25,MATCH(LEFT(I17,255),LEFT($D$12:$D$25,255),0))),\"\")","v":"RSSH: Human resources for health (HRH), including community health workers"},"a3z360000009C2AAAU"]
[null,"RSSH: Procurement and supply chain management systems",null,"MCI-00016",null,null,null,null,{"$f":"IFERROR(INDEX($D$12:$D$25, MATCH(0, COUNTIF($I$11:I17, $D$12:$D$25&\"\") + IF($D$12:$D$25=\"\",1,0), 0)), \"\")","v":"MCI-00016"},{"$f":"IFERROR(IF(INDEX($B$12:$B$25,MATCH(LEFT(I18,255),LEFT($D$12:$D$25,255),0))=0,\"\",INDEX($B$12:$B$25,MATCH(LEFT(I18,255),LEFT($D$12:$D$25,255),0))),\"\")","v":"RSSH: Procurement and supply chain management systems"},"a3z360000009C2BAAU"]
[null,"RSSH: Financial management systems",null,"MCI-00019",null,null,null,null,{"$f":"IFERROR(INDEX($D$12:$D$25, MATCH(0, COUNTIF($I$11:I18, $D$12:$D$25&\"\") + IF($D$12:$D$25=\"\",1,0), 0)), \"\")","v":"MCI-00019"},{"$f":"IFERROR(IF(INDEX($B$12:$B$25,MATCH(LEFT(I19,255),LEFT($D$12:$D$25,255),0))=0,\"\",INDEX($B$12:$B$25,MATCH(LEFT(I19,255),LEFT($D$12:$D$25,255),0))),\"\")","v":"RSSH: Financial management systems"},"a3z360000009C2EAAU"]
[null,"RSSH: Community responses and systems",null,"MCI-00021",null,null,null,null,{"$f":"IFERROR(INDEX($D$12:$D$25, MATCH(0, COUNTIF($I$11:I19, $D$12:$D$25&\"\") + IF($D$12:$D$25=\"\",1,0), 0)), \"\")","v":"MCI-00021"},{"$f":"IFERROR(IF(INDEX($B$12:$B$25,MATCH(LEFT(I20,255),LEFT($D$12:$D$25,255),0))=0,\"\",INDEX($B$12:$B$25,MATCH(LEFT(I20,255),LEFT($D$12:$D$25,255),0))),\"\")","v":"RSSH: Community responses and systems"},"a3z360000009C2FAAU"]
[null,"RSSH: Health management information systems and M&E",null,"MCI-00022",null,null,null,null,{"$f":"IFERROR(INDEX($D$12:$D$25, MATCH(0, COUNTIF($I$11:I20, $D$12:$D$25&\"\") + IF($D$12:$D$25=\"\",1,0), 0)), \"\")","v":"MCI-00022"},{"$f":"IFERROR(IF(INDEX($B$12:$B$25,MATCH(LEFT(I21,255),LEFT($D$12:$D$25,255),0))=0,\"\",INDEX($B$12:$B$25,MATCH(LEFT(I21,255),LEFT($D$12:$D$25,255),0))),\"\")","v":"RSSH: Health management information systems and M&E"},"a3z360000009C2GAAU"]
[null,"Program management",null,"MCI-00023",null,null,null,null,{"$f":"IFERROR(INDEX($D$12:$D$25, MATCH(0, COUNTIF($I$11:I21, $D$12:$D$25&\"\") + IF($D$12:$D$25=\"\",1,0), 0)), \"\")","v":"MCI-00023"},{"$f":"IFERROR(IF(INDEX($B$12:$B$25,MATCH(LEFT(I22,255),LEFT($D$12:$D$25,255),0))=0,\"\",INDEX($B$12:$B$25,MATCH(LEFT(I22,255),LEFT($D$12:$D$25,255),0))),\"\")","v":"Program management"},"a3z360000009C2HAAU"]
[null,"Payment for results",null,"MCI-00024",null,null,null,null,{"$f":"IFERROR(INDEX($D$12:$D$25, MATCH(0, COUNTIF($I$11:I22, $D$12:$D$25&\"\") + IF($D$12:$D$25=\"\",1,0), 0)), \"\")","v":"MCI-00024"},{"$f":"IFERROR(IF(INDEX($B$12:$B$25,MATCH(LEFT(I23,255),LEFT($D$12:$D$25,255),0))=0,\"\",INDEX($B$12:$B$25,MATCH(LEFT(I23,255),LEFT($D$12:$D$25,255),0))),\"\")","v":"Payment for results"},"a3z360000009C2IAAU"]
[null,"RSSH: National health strategies",null,"MCI-00536",null,null,null,null,{"$f":"IFERROR(INDEX($D$12:$D$25, MATCH(0, COUNTIF($I$11:I23, $D$12:$D$25&\"\") + IF($D$12:$D$25=\"\",1,0), 0)), \"\")","v":"MCI-00536"},{"$f":"IFERROR(IF(INDEX($B$12:$B$25,MATCH(LEFT(I24,255),LEFT($D$12:$D$25,255),0))=0,\"\",INDEX($B$12:$B$25,MATCH(LEFT(I24,255),LEFT($D$12:$D$25,255),0))),\"\")","v":"RSSH: National health strategies"},"a3z360000009C4DAAU"]
[]
[]
[]
[]
[null,"Intervention Data - Module-Coverage-Intervention Reference"]
[null,"Module","Column1","Name ID","Name","Column2","Column5","Column6","Column4","Column3","Record ID","Column8"]
[null,"[Module (Name)]",null,"[Name ID]","[Name]",null,null,null,null,null,"[Record ID]"]
[null,"MCI-00012",null,"MCI-00159","Severe malaria",null,null,null,null,null,"a1O36000001EGHjEAO"]
[null,"MCI-00012",null,"MCI-00161","Private sector case management",null,null,null,null,null,"a1O36000001EGHlEAO"]
[null,"MCI-00012",null,"MCI-00162","Ensuring drug and other health product quality",null,null,null,null,null,"a1O36000001EGHmEAO"]
[null,"MCI-00011",null,"MCI-00148","Long-lasting insecticidal nets (LLIN) - Mass campaign",null,null,null,null,null,"a1O36000001EGHYEA4"]
[null,"MCI-00011",null,"MCI-00149","Long-lasting insecticidal nets (LLIN) - Continuous distribution",null,null,null,null,null,"a1O36000001EGHZEA4"]
[null,"MCI-00011",null,"MCI-00150","Indoor residual spraying (IRS)",null,null,null,null,null,"a1O36000001EGHaEAO"]
[null,"MCI-00012",null,"MCI-00163","IEC/BCC (Case management)",null,null,null,null,null,"a1O36000001EGHnEAO"]
[null,"MCI-00012",null,"MCI-00164","Other case management intervention(s)",null,null,null,null,null,"a1O36000001EGHoEAO"]
[null,"MCI-00013",null,"MCI-00165","Intermittent preventive treatment (IPT) - In pregnancy",null,null,null,null,null,"a1O36000001EGHpEAO"]
[null,"MCI-00013",null,"MCI-00166","Intermittent preventive treatment (IPT) - In infancy",null,null,null,null,null,"a1O36000001EGHqEAO"]
[null,"MCI-00013",null,"MCI-00167","Seasonal malaria chemoprevention",null,null,null,null,null,"a1O36000001EGHrEAO"]
[null,"MCI-00015",null,"MCI-00177","Other health and community workforce intervention(s)",null,null,null,null,null,"a1O36000001EGI1EAO"]
[null,"MCI-00016",null,"MCI-00178","National costed supply chain master plan, and implementation",null,null,null,null,null,"a1O36000001EGI2EAO"]
[null,"MCI-00016",null,"MCI-00179","Supply chain infrastructure and development of tools",null,null,null,null,null,"a1O36000001EGI3EAO"]
[null,"MCI-00016",null,"MCI-00180","Other procurement supply chain management intervention(s)",null,null,null,null,null,"a1O36000001EGI4EAO"]
[null,"MCI-00011",null,"MCI-00151","Other vector control measure(s)",null,null,null,null,null,"a1O36000001EGHbEAO"]
[null,"MCI-00011",null,"MCI-00152","Entomological monitoring",null,null,null,null,null,"a1O36000001EGHcEAO"]
[null,"MCI-00011",null,"MCI-00153","IEC/BCC (Vector control)",null,null,null,null,null,"a1O36000001EGHdEAO"]
[null,"MCI-00012",null,"MCI-00154","Facility-based treatment",null,null,null,null,null,"a1O36000001EGHeEAO"]
[null,"MCI-00021",null,"MCI-00195","Community-based monitoring",null,null,null,null,null,"a1O36000001EGIJEA4"]
[null,"MCI-00021",null,"MCI-00196","Community led advocacy",null,null,null,null,null,"a1O36000001EGIKEA4"]
[null,"MCI-00021",null,"MCI-00197","Social mobilization, building community linkages, collaboration and coordination",null,null,null,null,null,"a1O36000001EGILEA4"]
[null,"MCI-00012",null,"MCI-00155","Epidemic preparedness",null,null,null,null,null,"a1O36000001EGHfEAO"]
[null,"MCI-00012",null,"MCI-00156","Integrated community case management (ICCM)",null,null,null,null,null,"a1O36000001EGHgEAO"]
[null,"MCI-00012",null,"MCI-00157","Active case detection and investigation (elimination phase)",null,null,null,null,null,"a1O36000001EGHhEAO"]
[null,"MCI-00012",null,"MCI-00158","Therapeutic efficacy surveillance",null,null,null,null,null,"a1O36000001EGHiEAO"]
[null,"MCI-00013",null,"MCI-00168","IEC/BCC (SPI)",null,null,null,null,null,"a1O36000001EGHsEAO"]
[null,"MCI-00013",null,"MCI-00169","Other specific prevention intervention(s)",null,null,null,null,null,"a1O36000001EGHtEAO"]
[null,"MCI-00014",null,"MCI-00170","Service organization and facility management",null,null,null,null,null,"a1O36000001EGHuEAO"]
[null,"MCI-00014",null,"MCI-00171","Laboratory systems for disease prevention, control, treatment and disease surveillance",null,null,null,null,null,"a1O36000001EGHvEAO"]
[null,"MCI-00021",null,"MCI-00198","Institutional capacity building, planning and leadership development",null,null,null,null,null,"a1O36000001EGIMEA4"]
[null,"MCI-00021",null,"MCI-00199","Other community responses and systems intervention(s)",null,null,null,null,null,"a1O36000001EGINEA4"]
[null,"MCI-00022",null,"MCI-00200","Routine reporting",null,null,null,null,null,"a1O36000001EGIOEA4"]
[null,"MCI-00022",null,"MCI-00201","Analysis, review and transparency",null,null,null,null,null,"a1O36000001EGIPEA4"]
[null,"MCI-00014",null,"MCI-00172","Improving service delivery infrastructure",null,null,null,null,null,"a1O36000001EGHwEAO"]
[null,"MCI-00014",null,"MCI-00173","Other service delivery intervention(s)",null,null,null,null,null,"a1O36000001EGHxEAO"]
[null,"MCI-00015",null,"MCI-00174","Capacity building for health workers, including those at community level",null,null,null,null,null,"a1O36000001EGHyEAO"]
[null,"MCI-00015",null,"MCI-00175","Retention and scale-up of health workers, including for community health workers",null,null,null,null,null,"a1O36000001EGHzEAO"]
[null,"MCI-00019",null,"MCI-00187","Public financial management (PFM) strengthening",null,null,null,null,null,"a1O36000001EGIBEA4"]
[null,"MCI-00019",null,"MCI-00188","Other financial management intervention(s)",null,null,null,null,null,"a1O36000001EGICEA4"]
[null,"MCI-00022",null,"MCI-00202","Surveys",null,null,null,null,null,"a1O36000001EGIQEA4"]
[null,"MCI-00022",null,"MCI-00203","Administrative and finance data sources",null,null,null,null,null,"a1O36000001EGIREA4"]
[null,"MCI-00022",null,"MCI-00204","Vital registration system",null,null,null,null,null,"a1O36000001EGISEA4"]
[null,"MCI-00022",null,"MCI-00205","Other health information systems and M&E intervention(s)",null,null,null,null,null,"a1O36000001EGITEA4"]
[null,"MCI-00023",null,"MCI-00206","Policy, planning, coordination and management of national disease control programs",null,null,null,null,null,"a1O36000001EGIUEA4"]
[null,"MCI-00023",null,"MCI-00207","Grant management",null,null,null,null,null,"a1O36000001EGIVEA4"]
[null,"MCI-00023",null,"MCI-00209","Other program management intervention(s)",null,null,null,null,null,"a1O36000001EGIXEA4"]
[null,"MCI-00024",null,"MCI-00210","Payment for results",null,null,null,null,null,"a1O36000001EGIYEA4"]
[null,"MCI-00011",null,"MCI-00594","Removing human rights and gender related barriers to vector control programmes",null,null,null,null,null,"a1O36000001qZ8tEAE"]
[null,"MCI-00012",null,"MCI-00595","Removing human rights and gender related barriers to case management",null,null,null,null,null,"a1O36000001qZ8uEAE"]
[null,"MCI-00013",null,"MCI-00596","Removing human rights and gender related barriers to specific prevention interventions",null,null,null,null,null,"a1O36000001qZ8vEAE"]
[null,"MCI-00013",null,"MCI-00597","Mass drug administration",null,null,null,null,null,"a1O36000001qZ8wEAE"]
[null,"MCI-00016",null,"MCI-00598","Procurement strategy",null,null,null,null,null,"a1O36000001qZ8xEAE"]
[null,"MCI-00016",null,"MCI-00599","National product selection, registration and quality monitoring",null,null,null,null,null,"a1O36000001qZ8yEAE"]
[null,"MCI-00022",null,"MCI-00600","Program and data quality",null,null,null,null,null,"a1O36000001qZ8zEAE"]
[null,"MCI-00014",null,"MCI-00601","Supportive policy and programmatic environment",null,null,null,null,null,"a1O36000001qZ90EAE"]
[null,"MCI-00014",null,"MCI-00602","Provider initiated feedback mechanisms",null,null,null,null,null,"a1O36000001qZ91EAE"]
[null,"MCI-00019",null,"MCI-00603","Routine financial management improvement (non-PFM)",null,null,null,null,null,"a1O36000001qZ92EAE"]
[null,"MCI-00536",null,"MCI-00611","National health strategies, alignment with disease-specific plans, health sector governance and financing",null,null,null,null,null,"a1O36000001qZ9AEAU"]
[null,"MCI-00536",null,"MCI-00612","Other policy and governance intervention(s)",null,null,null,null,null,"a1O36000001qZ9BEAU"]
[]
[null,"Cost Input"]
[null,"Name","Cost Grouping Number","Cost Input Number","Cost Input Name",null,"Record ID"]
[null,"[Name]","[Cost Grouping Number]","[Cost Input Number]",{"$f":"C95 & \".\" & D95 & \" \" & B95","v":"[Cost Grouping Number].[Cost Input Number] [Name]"},null,"[Record ID]"]
[null,"Performance based suppliments, incentives",1,3,{"$f":"C96 & \".\" & D96 & \" \" & B96","v":"1.3 Performance based suppliments, incentives"},null,"a2C360000007DAQEA2"]
[null,"Other HR Costs",1,4,"1.4 Other HR Costs",null,"a2C360000007DB5EAM"]
[null,"Human Resources (HR)",1,0,"1.0 Human Resources (HR)",null,"a2C360000007DA3EAM"]
[null,"Salaries - program management",1,1,"1.1 Salaries - program management",null,"a2C360000007DA4EAM"]
[null,"Salaries - outreach workers, medical staff and other service providers",1,2,"1.2 Salaries - outreach workers, medical staff and other service providers",null,"a2C360000007DAFEA2"]
[null,"Meeting/Advocacy related per diems/transport/other costs",2,4,"2.4 Meeting/Advocacy related per diems/transport/other costs",null,"a2C360000007DB9EAM"]
[null,"Travel related costs (TRC)",2,0,"2.0 Travel related costs (TRC)",null,"a2C360000007DAbEAM"]
[null,"Training related per diems/transport/other costs",2,1,"2.1 Training related per diems/transport/other costs",null,"a2C360000007DAmEAM"]
[null,"Technical assistance-related per diems/transport/other costs",2,2,"2.2 Technical assistance-related per diems/transport/other costs",null,"a2C360000007DAtEAM"]
[null,"Supervision/surveys/data collection related per diems/transport/other costs",2,3,"2.3 Supervision/surveys/data collection related per diems/transport/other costs",null,"a2C360000007DB3EAM"]
[null,"Other Transportation costs",2,5,"2.5 Other Transportation costs",null,"a2C360000007DB6EAM"]
[null,"Insurance related costs (EPS)",3,5,"3.5 Insurance related costs (EPS)",null,"a2C36000000vIr1EAE"]
[null,"External Professional services (EPS)",3,0,"3.0 External Professional services (EPS)",null,"a2C360000007DBAEA2"]
[null,"Technical Assistance Fees/Consultants",3,1,"3.1 Technical Assistance Fees/Consultants",null,"a2C360000007DA5EAM"]
[null,"Fiscal/Fiduciary Agent fees",3,2,"3.2 Fiscal/Fiduciary Agent fees",null,"a2C360000007DA6EAM"]
[null,"External audit fees",3,3,"3.3 External audit fees",null,"a2C360000007DA7EAM"]
[null,"Other external professional services",3,4,"3.4 Other external professional services",null,"a2C360000007DA8EAM"]
[null,"Other medicines",4,7,"4.7 Other medicines",null,"a2C360000007DAHEA2"]
[null,"Health Products - Pharmaceutical Products (HPPP)",4,0,"4.0 Health Products - Pharmaceutical Products (HPPP)",null,"a2C360000007DA9EAM"]
[null,"Antiretroviral medicines",4,1,"4.1 Antiretroviral medicines",null,"a2C360000007DAAEA2"]
[null,"Anti-tuberculosis medicines",4,2,"4.2 Anti-tuberculosis medicines",null,"a2C360000007DABEA2"]
[null,"Antimalarial medicines",4,3,"4.3 Antimalarial medicines",null,"a2C360000007DACEA2"]
[null,"Opioid substitution medicines",4,4,"4.4 Opioid substitution medicines",null,"a2C360000007DADEA2"]
[null,"Opportunistic infections and STI medicines",4,5,"4.5 Opportunistic infections and STI medicines",null,"a2C360000007DAEEA2"]
[null,"Private Sector subsidies for ACTs (co-payment to 4.3)",4,6,"4.6 Private Sector subsidies for ACTs (co-payment to 4.3)",null,"a2C360000007DAGEA2"]
[null,"Health Products - Non-Pharmaceuticals (HPNP)",5,0,"5.0 Health Products - Non-Pharmaceuticals (HPNP)",null,"a2C360000007DAIEA2"]
[null,"Insecticide-treated Nets (LLINs/ITNs)",5,1,"5.1 Insecticide-treated Nets (LLINs/ITNs)",null,"a2C360000007DAJEA2"]
[null,"Condoms - Male",5,2,"5.2 Condoms - Male",null,"a2C360000007DAKEA2"]
[null,"Condoms - Female",5,3,"5.3 Condoms - Female",null,"a2C360000007DALEA2"]
[null,"Rapid Diagnostic Test",5,4,"5.4 Rapid Diagnostic Test",null,"a2C360000007DAMEA2"]
[null,"Insecticides",5,5,"5.5 Insecticides",null,"a2C360000007DANEA2"]
[null,"Laboratory reagents",5,6,"5.6 Laboratory reagents",null,"a2C360000007DAOEA2"]
[null,"Syringes and needles",5,7,"5.7 Syringes and needles",null,"a2C360000007DAPEA2"]
[null,"Other consumables",5,8,"5.8 Other consumables",null,"a2C360000007DAREA2"]
[null,"Private Sector subsidies for RDTs (co-payment to 5.4)",5,9,"5.9 Private Sector subsidies for RDTs (co-payment to 5.4)",null,"a2C360000007uJgEAI"]
[null,"Health Products - Equipment (HPE)",6,0,"6.0 Health Products - Equipment (HPE)",null,"a2C360000007DASEA2"]
[null,"CD4 analyser/accessories",6,1,"6.1 CD4 analyser/accessories",null,"a2C360000007DATEA2"]
[null,"HIV Viral Load analyser/accessories",6,2,"6.2 HIV Viral Load analyser/accessories",null,"a2C360000007DAUEA2"]
[null,"Microscopes",6,3,"6.3 Microscopes",null,"a2C360000007DAVEA2"]
[null,"TB Molecular Test equipment",6,4,"6.4 TB Molecular Test equipment",null,"a2C360000007DAWEA2"]
[null,"Maintenance and service costs for health equipment",6,5,"6.5 Maintenance and service costs for health equipment",null,"a2C360000007DAXEA2"]
[null,"Other health equipment",6,6,"6.6 Other health equipment",null,"a2C360000007DAYEA2"]
[null,"Procurement and Supply-Chain Management costs (PSM)",7,0,"7.0 Procurement and Supply-Chain Management costs (PSM)",null,"a2C360000007DAZEA2"]
[null,"Procurement agent and handling fees",7,1,"7.1 Procurement agent and handling fees",null,"a2C360000007DAaEAM"]
[null,"Freight and insurance costs (Health products)",7,2,"7.2 Freight and insurance costs (Health products)",null,"a2C360000007DAcEAM"]
[null,"Warehouse and Storage Costs",7,3,"7.3 Warehouse and Storage Costs",null,"a2C360000007DAdEAM"]
[null,"In-country distribution costs",7,4,"7.4 In-country distribution costs",null,"a2C360000007DAeEAM"]
[null,"Quality assurance and quality control costs (QA/QC)",7,5,"7.5 Quality assurance and quality control costs (QA/QC)",null,"a2C360000007DAfEAM"]
[null,"PSM Customs Clearance",7,6,"7.6 PSM Customs Clearance",null,"a2C360000007DAgEAM"]
[null,"Other PSM costs",7,7,"7.7 Other PSM costs",null,"a2C360000007DAhEAM"]
[null,"Infrastructure (INF)",8,0,"8.0 Infrastructure (INF)",null,"a2C360000007DAiEAM"]
[null,"Furniture",8,1,"8.1 Furniture",null,"a2C360000007DAjEAM"]
[null,"Renovation/constructions",8,2,"8.2 Renovation/constructions",null,"a2C360000007DAkEAM"]
[null,"Infrastructure maintenance and other INF costs",8,3,"8.3 Infrastructure maintenance and other INF costs",null,"a2C360000007DAlEAM"]
[null,"Non-health equipment (NHP)",9,0,"9.0 Non-health equipment (NHP)",null,"a2C360000007DAnEAM"]
[null,"IT - Computers, computer equipment, Software and applications",9,1,"9.1 IT - Computers, computer equipment, Software and applications",null,"a2C360000007DAoEAM"]
[null,"Vehicles",9,2,"9.2 Vehicles",null,"a2C360000007DApEAM"]
[null,"Other non-health equipment",9,3,"9.3 Other non-health equipment",null,"a2C360000007DAqEAM"]
[null,"Maintenance and service costs non-health equipment",9,4,"9.4 Maintenance and service costs non-health equipment",null,"a2C360000007DArEAM"]
[null,"Communication Material and Publications (CMP)",10,0,"10.0 Communication Material and Publications (CMP)",null,"a2C360000007D9UEAU"]
[null,"Printed materials (forms, books, guidelines, brochure, leaflets...)",10,1,"10.1 Printed materials (forms, books, guidelines, brochure, leaflets...)",null,"a2C360000007D9VEAU"]
[null,"Television/Radio spots and programmes",10,2,"10.2 Television/Radio spots and programmes",null,"a2C360000007D9WEAU"]
[null,"Promotional Material (t-shirts, mugs, pins...) and other CMP costs",10,3,"10.3 Promotional Material (t-shirts, mugs, pins...) and other CMP costs",null,"a2C360000007D9XEAU"]
[null,"Programme Administration costs (PA)",11,0,"11.0 Programme Administration costs (PA)",null,"a2C360000007DAsEAM"]
[null,"Office related costs",11,1,{"$f":"C160 & \".\" & D160 & \" \" & B160","v":"11.1 Office related costs"},null,"a2C360000007DAuEAM"]
[null,"Unrecoverable taxes and duties",11,2,"11.2 Unrecoverable taxes and duties",null,"a2C360000007DAvEAM"]
[null,"Indirect cost recovery (ICR) - % based",11,3,"11.3 Indirect cost recovery (ICR) - % based",null,"a2C360000007DAwEAM"]
[null,"Other PA costs",11,4,"11.4 Other PA costs",null,"a2C360000007DAxEAM"]
[null,"Living support to client/ target population (LSCTP)",12,0,"12.0 Living support to client/ target population (LSCTP)",null,"a2C360000007DAyEAM"]
[null,"OVC Support (school fees, uniforms, books...)",12,1,"12.1 OVC Support (school fees, uniforms, books...)",null,"a2C360000007DAzEAM"]
[null,"Food and care packages",12,2,"12.2 Food and care packages",null,"a2C360000007DB0EAM"]
[null,"Cash incentives/transfer to patients/beneficiaries/counsellors/mediators",12,3,"12.3 Cash incentives/transfer to patients/beneficiaries/counsellors/mediators",null,"a2C360000007DB1EAM"]
[null,"Micro-loans and micro-grants",12,4,"12.4 Micro-loans and micro-grants",null,"a2C360000007DB2EAM"]
[null,"Other LSCTP costs",12,5,"12.5 Other LSCTP costs",null,"a2C360000007DB4EAM"]
[null,"Payment for Results",13,1,"13.1 Payment for Results",null,"a2C360000007DB8EAM"]
[]
[]
[]
[]
[]
[]
[]
[]
[]
[]
[]
[null,null,null,null,{"$f":"OFFSET(Modulestart,MATCH(O94,Modulecolumn,0)-1,3,COUNTIF(Modulecolumn,O94),1)","v":{"$error":"#N/A"}}]

{"sheet":"PR Authorization_9A","index":38,"n_rows":18,"n_cols":10,"rows_kept":18,"cut":false,"hidden":false,"merged":[[19,0,19,14],[11,0,11,14],[13,0,13,4],[13,5,13,9],[14,5,14,9],[15,5,15,9],[16,5,16,9],[17,5,17,9],[16,0,16,3],[9,0,9,4],[9,5,9,9],[0,0,0,14],[4,0,4,4],[4,5,4,9],[8,0,8,4],[8,5,8,9],[5,5,5,6],[6,5,6,6],[7,5,7,6]]}
[{"$f":"IF(CoverSheet!J12=\"N/A\",\"Progress Report\",\"Progress Report with Disbursement Request\")","v":"Progress Report with Disbursement Request"}]
[{"$f":"VLOOKUP(Translations!B469,Translations!B3:H508,4,0)","v":"Section 9A.  Principal Recipient Authorization"}]
[]
[]
[{"$f":"VLOOKUP(Translations!B470,Translations!B3:H508,4,0)","v":"Grant Name:"},null,null,null,null,{"$f":"CoverSheet!D10","v":"BDI-M-UNDP"}]
[{"$f":"CoverSheet!F9","v":"Period of Programmatic Reporting"},null,null,null,null,{"$f":"CoverSheet!I12","v":"Beginning Date:"},null,{"$f":"CoverSheet!J9","v":"2018-01-01"},{"$f":"CoverSheet!K12","v":"End Date:"},{"$f":"CoverSheet!L9","v":"2018-06-30"}]
[{"$f":"CoverSheet!F15","v":"Disbursement Request Execution Period"},null,null,null,null,{"$f":"CoverSheet!I12","v":"Beginning Date:"},null,{"$f":"CoverSheet!J15","v":"2018-07-01"},{"$f":"CoverSheet!K12","v":"End Date:"},{"$f":"CoverSheet!L15","v":"2018-12-31"}]
[{"$f":"CoverSheet!F16","v":"Disbursement Request Buffer Period"},null,null,null,null,{"$f":"CoverSheet!I12","v":"Beginning Date:"},null,{"$f":"CoverSheet!J16","v":"2019-01-01"},{"$f":"CoverSheet!K12","v":"End Date:"},{"$f":"CoverSheet!L16","v":"2019-03-31"}]
[{"$f":"VLOOKUP(Translations!B480,Translations!B3:H508,4,0)","v":"Currency:"},null,null,null,null,{"$f":"CoverSheet!D14","v":"USD"}]
[{"$f":"VLOOKUP(Translations!B481,Translations!B3:H508,4,0)","v":"Disbursement Request Amount:"},null,null,null,null,{"$f":"'Request and Recommendation_8B'!K19","v":23341854.415939331}]
[]
[{"$f":"VLOOKUP(Translations!B482,Translations!B3:H508,4,0)","v":"The undersigned acknowledges that: (i) all the information (programmatic, financial, or otherwise) provided in this Progress Update and Disbursement Request is complete and accurate; (ii) funds disbursed in accordance with this request shall be deposited in the bank account specified in the Core Data Forms; and (iii) funds disbursed under the Grant Agreement shall be used in accordance with the Grant Agreement."}]
[]
[{"$f":"VLOOKUP(Translations!B483,Translations!B3:H508,4,0)","v":"Signed on behalf of the Principal Recipient:\n(signature of Authorized Designated Representative)"}]
[{"$f":"VLOOKUP(Translations!B484,Translations!B3:H508,4,0)","v":"Name:"},null,null,null,null,"Alfredo Teixeira, "]
[{"$f":"VLOOKUP(Translations!B485,Translations!B3:H508,4,0)","v":"Title:"},null,null,null,null,"Directeur pays du PNUD au Burundi"]
["Date\n(Mandatory field to enter in excel)",null,null,null,null,"2018-08-22"]
["Place",null,null,null,null,"Bujumbura, Burundi "]

{"sheet":"LFA Authorization_9B","index":39,"n_rows":22,"n_cols":11,"rows_kept":22,"cut":false,"hidden":false,"merged":[[19,3,19,5],[23,0,23,14],[12,0,12,14],[13,0,13,14],[14,0,14,14],[15,0,15,14],[17,3,17,5],[18,3,18,5],[17,6,17,8],[18,6,18,8],[19,6,19,8],[21,3,21,5],[21,6,21,8],[20,3,20,9],[10,0,10,4],[10,5,10,9],[0,0,0,14],[5,0,5,4],[5,5,5,9],[9,0,9,4],[9,5,9,9],[6,5,6,6],[7,5,7,6],[8,5,8,6]]}
[{"$f":"IF(CoverSheet!J12=\"N/A\",\"Progress Report\",\"Progress Report with Disbursement Request\")","v":"Progress Report with Disbursement Request"}]
[]
["For LFA Use Only"]
["Section 9B.  LFA Authorization"]
[]
["Grant Name:",null,null,null,null,{"$f":"CoverSheet!D10","v":"BDI-M-UNDP"}]
["Principal Recipient Reporting - Period Covered:",null,null,null,null,{"$f":"CoverSheet!I12","v":"Beginning Date:"},null,{"$f":"CoverSheet!J9","v":"2018-01-01"},{"$f":"CoverSheet!K12","v":"End Date:"},{"$f":"CoverSheet!L9","v":"2018-06-30"}]
["Disbursement Request  - Period Covered:",null,null,null,null,{"$f":"CoverSheet!I12","v":"Beginning Date:"},null,{"$f":"CoverSheet!J15","v":"2018-07-01"},{"$f":"CoverSheet!K12","v":"End Date:"},{"$f":"CoverSheet!L15","v":"2018-12-31"}]
[{"$f":"CoverSheet!F16","v":"Disbursement Request Buffer Period"},null,null,null,null,{"$f":"CoverSheet!I12","v":"Beginning Date:"},null,{"$f":"CoverSheet!J16","v":"2019-01-01"},{"$f":"CoverSheet!K12","v":"End Date:"},{"$f":"CoverSheet!L16","v":"2019-03-31"}]
["Currency:",null,null,null,null,{"$f":"CoverSheet!D14","v":"USD"}]
["Disbursement Recommendation Amount:",null,null,null,null,{"$f":"'Request and Recommendation_8B'!K53","v":0}]
["Summary of the LFA's approach used for verification of financial, programmatic and procurement data and Quality Assurance undertaken by the LFA"]
["In this section the LFA should indicate, as applicable, what percentage of expenditures was verified at PR level, if any expenditures were verified at SR level, how many site visits were made, what tender documentation was verified, and any other material parts of verification procedures in line with the verification approach agreed upfront between the LFA and the Global Fund's Secretariat based on country/grant risks.  As a good practice, the verification approach needs to be reviewed jointly by the LFA and the Secretariat annually."]
[]
[]
["The LFA should sign a printed version of the verified PU/DR and send it to the Secretariat as a pdf file by email, or include an electronic signature in the Excel file to be submitted to the Global Fund."]
[]
["Signed on behalf of the LFA:"]
["Name:"]
["Title:"]
["Date\n(Mandatory field to enter in excel)",null,null,null,null,null,null,null,null,null,"Please enter the date in the excel document"]
["Place"]

{"sheet":"Financial Triggers_10","index":40,"n_rows":15,"n_cols":6,"rows_kept":15,"cut":false,"hidden":true,"merged":[[0,0,0,5],[2,0,2,5],[3,2,3,3],[3,4,3,5]]}
["Principal Recipient Reporting"]
[]
["Financial  Triggers for Principal Recipient Reporting"]
[null,null,"Principal Recipient",null,"For LFA Use Only"]
["Item No.","Financial Triggers","Answer","Comments","As verified by LFA","Comments"]
[1,"Cash balance not reconciled to the cash reconciliation and bank account with significant (+/-5%) and unexplained differences"]
[2,"Audit Report overdue"]
[3,"Qualified, adverse or disclaimer of opinion received for the latest audit"]
[4,"Enhanced Financial Report/Annual Financial Report has not been fully completed or does not include all the grant's expenditures for the period"]
[5,"Inadequate explanation of significant variance (+/-10%) between budget and actual expenditures by intervention/Service Delivery Area and/or cost grouping/cost category linked to programmatic results"]
[6,"Critical recommendations by auditors, OIG or the Global Fund on internal controls are not implemented or being addressed by the PR"]
[7,"Presence of major issues identified with respect to the Financial Management and Systems Area"]
[8,"Expenditure vs. Budget (in EFR/AFR) rate below 50% for the prior annual period. "]
[9,"If answer to point 8 is \"yes\", the Annual Cash Forecast has been adjusted to take into consideration the past absorption"]
[10,"Finance related Conditions are not met or are partly met"]

{"sheet":"Free Sheet 1","index":41,"n_rows":1,"n_cols":1,"rows_kept":1,"cut":false,"hidden":false,"merged":[]}
["        I.            Analyse des tendances épidémiologiques"]

{"sheet":"Free Sheet 2","index":42,"n_rows":0,"n_cols":0,"rows_kept":0,"cut":false,"hidden":false,"merged":[]}

{"sheet":"Free Sheet 3","index":43,"n_rows":0,"n_cols":0,"rows_kept":0,"cut":false,"hidden":false,"merged":[]}

{"sheet":"apttusmetadata","index":44,"n_rows":158,"n_cols":86,"rows_kept":158,"cut":false,"hidden":true,"merged":[]}
["ff921f16-0f78-49d2-a726-af02be12057d","     ",null,null,null,null,null,null,null,null,null,null,null,null,null,null,null,null,null,null,null,null,null,null,"PickListValue","PickListKey","AIM_Implementation_Period__c.AIM_Grant_Currency__c","AIM_Procurement__c.AIM_Expiry_Response_LFA__c","AIM_Procurement__c.AIM_PQR_Response_LFA__c","AIM_Procurement__c.AIM_PQR_Response_PR__c","AIM_Procurement__c.AIM_Stock_Out_Response_LFA__c","AIM_Budget_Variance__c.AIM_Description__c","AIM_Quarterly_Cash_Forecast__c.AIM_Type__c","AIM_Performance__c.AIM_Major_Issues_Identified_LFA__c","AIM_Performance__c.AIM_Overall_Rating_LFA__c","AIM_Performance__c.AIM_Quantitative_Indicator_LFA__c","AIM_Grant_Requirement__c.AIM_Status_LFA__c","AIM_Grant_Requirement__c.Annual_Grant_Reporting__Requirements.AIM_Status_LFA__c","AIM_Grant_Requirement__c.Findings_and_Recomendations.AIM_Status_LFA__c","AIM_Grant_Requirement__c.Grant_Requirements.AIM_Status_LFA__c","AIM_Grant_Requirement__c.Management_Actions.AIM_Status_LFA__c","AIM_Grant_Requirement__c.Master.AIM_Status_LFA__c","AIM_Grant_Requirement__c.AIM_Status_PR__c","AIM_Grant_Requirement__c.Annual_Grant_Reporting__Requirements.AIM_Status_PR__c","AIM_Grant_Requirement__c.Findings_and_Recomendations.AIM_Status_PR__c","AIM_Grant_Requirement__c.Grant_Requirements.AIM_Status_PR__c","AIM_Grant_Requirement__c.Management_Actions.AIM_Status_PR__c","AIM_Grant_Requirement__c.Master.AIM_Status_PR__c","AIM_Findings_and_Recommendations__c.AIM_Actor_Type__c","AIM_Findings_and_Recommendations__c.AIM_Status__c","AIM_Coverage_Indicator__c.AIM_Geographic_Coverage__c","AIM_Coverage_Indicator__c.AIM_Rating_Cumulation_Type__c","AIM_Coverage_Indicator__c.AIM_Year__c","AIM_Coverage_Indicator_Targets_Results__c.AIM_Data_Source_Result_LFA__c","AIM_Coverage_Indicator_Targets_Results__c.AIM_Verification_Method_LFA__c","AIM_Coverage_Indicator_Targets_Results__c.AIM_Due_for_Reporting__c","AIM_Coverage_Indicator_Targets_Results__c.AIM_Data_Source_Result_PR__c","AIM_Coverage_Disaggregation_Result__c.AIM_LFA_Source__c","AIM_Coverage_Disaggregation_Result__c.AIM_Source_PR__c","AIM_Impact_Indicator__c.AIM_Baseline_Year__c","AIM_Impact_Indicator_Targets_Results__c.AIM_Year_of_Target__c","AIM_Impact_Indicator_Targets_Results__c.AIM_Data_Source_Result_LFA__c","AIM_Impact_Indicator_Targets_Results__c.AIM_Data_Source_Result_PR__c","AIM_Impact_Indicator_Targets_Results__c.AIM_Verification_Method_LFA__c","AIM_Impact_Indicator_Targets_Results__c.AIM_Year_of_Result_LFA__c","AIM_Impact_Indicator_Targets_Results__c.AIM_Year_of_Result_PR__c","AIM_Impact_Indicator_Targets_Results__c.AIM_Due_for_Reporting__c","AIM_Impact_Disaggregation__c.AIM_Baseline_Year__c","AIM_Impact_Disagaggregation_Results__c.AIM_Result_Source_PR__c","AIM_Impact_Disagaggregation_Results__c.AIM_Verified_Result_Source_LFA__c","AIM_Outcome_Indicator__c.AIM_Baseline_Year__c","AIM_Outcome_Indicator_Targets_Result__c.AIM_Year_of_Target__c","AIM_Outcome_Indicator_Targets_Result__c.AIM_Data_Source_Result_LFA__c","AIM_Outcome_Indicator_Targets_Result__c.AIM_Data_Source_Result_PR__c","AIM_Outcome_Indicator_Targets_Result__c.AIM_Verification_Method_LFA__c","AIM_Outcome_Indicator_Targets_Result__c.AIM_Year_of_Result_LFA__c","AIM_Outcome_Indicator_Targets_Result__c.AIM_Year_of_Result_PR__c","AIM_Outcome_Indicator_Targets_Result__c.AIM_Due_for_Reporting__c","AIM_Outcome_Disaggregation_Results__c.AIM_Result_Source_PR__c","AIM_Outcome_Disaggregation_Results__c.AIM_Verified_Result_Source_LFA__c","AIM_WPTM_Results__c.AIM_Progress_Status_PR__c","AIM_WPTM_Results__c.AIM_Progress_Status_LFA__c","AIM_Opt_Ins__c.AIM_Tab_Name__c","AIM_Opt_Ins__c.AIM_Type__c","IRT_Mitigating_Action_Details__c.AIM_PR_Status__c","IRT_Mitigating_Action_Details__c.AIM_LFA_Status__c"]
[null,null,null,null,null,null,null,null,null,null,null,null,null,null,null,null,null,null,null,null,null,null,null,null,"Annual Grant Reporting  Requirements","Annual_Grant_Reporting__Requirements","CHF","Yes","Yes","Yes","Yes","PR total expenditures","Approved Budget","Yes","A1","A1","Met","Met","Met","Met","Met","Met","Met","Met","Met","Met","Met","Met","PR","Not Started","National","Y- Cumulative annually","2002","HMIS","Not Verified","Yes","HMIS","HMIS","HMIS","2002","2002","HMIS","HMIS","Not Verified","2002","2002","Yes","2002","HMIS","HMIS","2002","2002","HMIS","HMIS","Not Verified","2002","2002","Yes","HMIS","HMIS","Not Started","Not Started","Impact Outcome Indicators_1A","PR Reporting","In Progress","In Progress"]
[null,null,null,null,null,null,null,null,null,null,null,null,null,null,null,null,null,null,null,null,null,null,null,null,"Findings and Recomendations","Findings_and_Recomendations","EUR","No","No","No","No","Disbursement to SRs","PR","No","A2","A2","Waived","Waived","Waived","Waived","Waived","Waived","Waived","Waived","Waived","Waived","Waived","Waived","SR","In Progress","Subnational","N-Non-cumulative","2003","Patient records","Desk Review","No","Patient records","Patient records","Patient records","2003","2003","Patient records","Patient records","Desk Review","2003","2003","No","2003","Patient records","Patient records","2003","2003","Patient records","Patient records","Desk Review","2003","2003","No","Patient records","Patient records","Started","Started","Disaggregation_1A","Cash Balance","Delayed","Delayed"]
[null,null,null,null,null,null,null,null,null,null,null,null,null,null,null,null,null,null,null,null,null,null,null,null,"Grant Requirements","Grant_Requirements","USD","N/A","N/A","N/A","N/A","Pharmaceutical Products","LFA","N.A.","B1","B1","Not Started","Not Started","Not Started","Not Started","Not Started","Not Started","Not Started","Not Started","Not Started","Not Started","Not Started","Not Started",null,"Rejected",null,"N-Non -cumulative (other)","2004","Training records","Other","TBD","Training records","Training records","Training records","2004","2004","Training records","Training records","Other","2004","2004","TBD","2004","Training records","Training records","2004","2004","Training records","Training records","Other","2004","2004","TBD","Training records","Training records","Advancing","Advancing","Coverage Indicators_1B","Tax Reporting","Not Started","Not Started"]
[null,null,null,null,null,null,null,null,null,null,null,null,null,null,null,null,null,null,null,null,null,null,null,null,"Management Actions","Management_Actions","AFN",null,null,null,null,"Non-Pharmaceutical Products","GF",null,"B2","B2","In Progress","In Progress","In Progress","In Progress","In Progress","In Progress","In Progress","In Progress","In Progress","In Progress","In Progress","In Progress",null,null,null,"N-Non -cumulative (special)","2005","MICS (Multiple Indicator Cluster Survey)",null,null,"MICS (Multiple Indicator Cluster Survey)","MICS (Multiple Indicator Cluster Survey)","MICS (Multiple Indicator Cluster Survey)","2005","2005","MICS (Multiple Indicator Cluster Survey)","MICS (Multiple Indicator Cluster Survey)",null,"2005","2005",null,"2005","MICS (Multiple Indicator Cluster Survey)","MICS (Multiple Indicator Cluster Survey)","2005","2005","MICS (Multiple Indicator Cluster Survey)","MICS (Multiple Indicator Cluster Survey)",null,"2005","2005",null,"MICS (Multiple Indicator Cluster Survey)","MICS (Multiple Indicator Cluster Survey)","Completed","Completed","Disaggregation_1B",null,"Met","Met"]
[null,null,null,null,null,null,null,null,null,null,null,null,null,null,null,null,null,null,null,null,null,null,null,null,"Master","Master","AMD",null,null,null,null,null,"Disb - Final Forecast",null,"C","C",null,null,null,null,null,null,null,null,null,null,null,null,null,null,null,null,"2006","DHS/DHS+ (Demographic and Health Survey)",null,null,"DHS/DHS+ (Demographic and Health Survey)","DHS/DHS+ (Demographic and Health Survey)","DHS/DHS+ (Demographic and Health Survey)","2006","2006","DHS/DHS+ (Demographic and Health Survey)","DHS/DHS+ (Demographic and Health Survey)",null,"2006","2006",null,"2006","DHS/DHS+ (Demographic and Health Survey)","DHS/DHS+ (Demographic and Health Survey)","2006","2006","DHS/DHS+ (Demographic and Health Survey)","DHS/DHS+ (Demographic and Health Survey)",null,"2006","2006",null,"DHS/DHS+ (Demographic and Health Survey)","DHS/DHS+ (Demographic and Health Survey)",null,null,"WPTM_1C"]
[null,null,null,null,null,null,null,null,null,null,null,null,null,null,null,null,null,null,null,null,null,null,null,null,"Annual Grant Reporting  Requirements","Annual_Grant_Reporting__Requirements","AUD",null,null,null,null,null,null,null,null,null,null,null,null,null,null,null,null,null,null,null,null,null,null,null,null,null,"2007","AIS (AIDS Indicator Survey)",null,null,"AIS (AIDS Indicator Survey)","AIS (AIDS Indicator Survey)","AIS (AIDS Indicator Survey)","2007","2007","AIS (AIDS Indicator Survey)","AIS (AIDS Indicator Survey)",null,"2007","2007",null,"2007","AIS (AIDS Indicator Survey)","AIS (AIDS Indicator Survey)","2007","2007","AIS (AIDS Indicator Survey)","AIS (AIDS Indicator Survey)",null,"2007","2007",null,"AIS (AIDS Indicator Survey)","AIS (AIDS Indicator Survey)",null,null,"LFA Expenditure_7B"]
[null,null,null,null,null,null,null,null,null,null,null,null,null,null,null,null,null,null,null,null,null,null,null,null,"Findings and Recomendations","Findings_and_Recomendations","BAM",null,null,null,null,null,null,null,null,null,null,null,null,null,null,null,null,null,null,null,null,null,null,null,null,null,"2008","BSS (Behavioral Surveillance Survey)",null,null,"BSS (Behavioral Surveillance Survey)","BSS (Behavioral Surveillance Survey)","BSS (Behavioral Surveillance Survey)","2008","2008","BSS (Behavioral Surveillance Survey)","BSS (Behavioral Surveillance Survey)",null,"2008","2008",null,"2008","BSS (Behavioral Surveillance Survey)","BSS (Behavioral Surveillance Survey)","2008","2008","BSS (Behavioral Surveillance Survey)","BSS (Behavioral Surveillance Survey)",null,"2008","2008",null,"BSS (Behavioral Surveillance Survey)","BSS (Behavioral Surveillance Survey)",null,null,"Annual Cash Forecast_8A"]
[null,null,null,null,null,null,null,null,null,null,null,null,null,null,null,null,null,null,null,null,null,null,null,null,"Grant Requirements","Grant_Requirements","BDT",null,null,null,null,null,null,null,null,null,null,null,null,null,null,null,null,null,null,null,null,null,null,null,null,null,"2009","Health Facility survey",null,null,"Health Facility survey","Health Facility survey","Health Facility survey","2009","2009","Health Facility survey","Health Facility survey",null,"2009","2009",null,"2009","Health Facility survey","Health Facility survey","2009","2009","Health Facility survey","Health Facility survey",null,"2009","2009",null,"Health Facility survey","Health Facility survey",null,null,"PR Cash Reconciliation_2ABCD"]
[null,null,null,null,null,null,null,null,null,null,null,null,null,null,null,null,null,null,null,null,null,null,null,null,"Management Actions","Management_Actions","BGN",null,null,null,null,null,null,null,null,null,null,null,null,null,null,null,null,null,null,null,null,null,null,null,null,null,"2010","SAMS (Service Availability Mapping Survey)",null,null,"SAMS (Service Availability Mapping Survey)","SAMS (Service Availability Mapping Survey)","SAMS (Service Availability Mapping Survey)","2010","2010","SAMS (Service Availability Mapping Survey)","SAMS (Service Availability Mapping Survey)",null,"2010","2010",null,"2010","SAMS (Service Availability Mapping Survey)","SAMS (Service Availability Mapping Survey)","2010","2010","SAMS (Service Availability Mapping Survey)","SAMS (Service Availability Mapping Survey)",null,"2010","2010",null,"SAMS (Service Availability Mapping Survey)","SAMS (Service Availability Mapping Survey)",null,null,"SR Cash Reconciliation_2E"]
[null,null,null,null,null,null,null,null,null,null,null,null,null,null,null,null,null,null,null,null,null,null,null,null,"Master","Master","BTN",null,null,null,null,null,null,null,null,null,null,null,null,null,null,null,null,null,null,null,null,null,null,null,null,null,"2011","Households survey",null,null,"Households survey","Households survey","Households survey","2011","2011","Households survey","Households survey",null,"2011","2011",null,"2011","Households survey","Households survey","2011","2011","Households survey","Households survey",null,"2011","2011",null,"Households survey","Households survey",null,null,"Budget Variance_2F"]
[null,null,null,null,null,null,null,null,null,null,null,null,null,null,null,null,null,null,null,null,null,null,null,null,null,null,"BYR",null,null,null,null,null,null,null,null,null,null,null,null,null,null,null,null,null,null,null,null,null,null,null,null,null,"2012","Specific surveys and research (specify)",null,null,"Specific surveys and research (specify)","Specific surveys and research (specify)","Specific surveys and research (specify)","2012","2012","Specific surveys and research (specify)","Specific surveys and research (specify)",null,"2012","2012",null,"2012","Specific surveys and research (specify)","Specific surveys and research (specify)","2012","2012","Specific surveys and research (specify)","Specific surveys and research (specify)",null,"2012","2012",null,"Specific surveys and research (specify)","Specific surveys and research (specify)",null,null,"Procurement_3"]
[null,null,null,null,null,null,null,null,null,null,null,null,null,null,null,null,null,null,null,null,null,null,null,null,null,null,"CNY",null,null,null,null,null,null,null,null,null,null,null,null,null,null,null,null,null,null,null,null,null,null,null,null,null,"2013","Reports (specify)",null,null,"Reports (specify)","Reports (specify)","Reports (specify)","2013","2013","Reports (specify)","Reports (specify)",null,"2013","2013",null,"2013","Reports (specify)","Reports (specify)","2013","2013","Reports (specify)","Reports (specify)",null,"2013","2013",null,"Reports (specify)","Reports (specify)",null,null,"Grant Management_4"]
[null,null,null,null,null,null,null,null,null,null,null,null,null,null,null,null,null,null,null,null,null,null,null,null,null,null,"COP",null,null,null,null,null,null,null,null,null,null,null,null,null,null,null,null,null,null,null,null,null,null,null,null,null,"2014","Vital and disease-specific registry",null,null,"Vital and disease-specific registry","Vital and disease-specific registry","Vital and disease-specific registry","2014","2014","Vital and disease-specific registry","Vital and disease-specific registry",null,"2014","2014",null,"2014","Vital and disease-specific registry","Vital and disease-specific registry","2014","2014","Vital and disease-specific registry","Vital and disease-specific registry",null,"2014","2014",null,"Vital and disease-specific registry","Vital and disease-specific registry",null,null,"PR/LFA Evaluation_5"]
[null,null,null,null,null,null,null,null,null,null,null,null,null,null,null,null,null,null,null,null,null,null,null,null,null,null,"DOP",null,null,null,null,null,null,null,null,null,null,null,null,null,null,null,null,null,null,null,null,null,null,null,null,null,"2015","Operational Research",null,null,"Operational Research","Operational Research","Operational Research","2015","2015","Operational Research","Operational Research",null,"2015","2015",null,"2015","Operational Research","Operational Research","2015","2015","Operational Research","Operational Research",null,"2015","2015",null,"Operational Research","Operational Research",null,null,"LFA Findings and Recommendation_6"]
[null,null,null,null,null,null,null,null,null,null,null,null,null,null,null,null,null,null,null,null,null,null,null,null,null,null,"GBP",null,null,null,null,null,null,null,null,null,null,null,null,null,null,null,null,null,null,null,null,null,null,null,null,null,"2016","Health Provider survey",null,null,"Health Provider survey","Health Provider survey","Health Provider survey","2016","2016","Health Provider survey","Health Provider survey",null,"2016","2016",null,"2016","Health Provider survey","Health Provider survey","2016","2016","Health Provider survey","Health Provider survey",null,"2016","2016",null,"Health Provider survey","Health Provider survey",null,null,"PR Expenditure_7A"]
[null,null,null,null,null,null,null,null,null,null,null,null,null,null,null,null,null,null,null,null,null,null,null,null,null,null,"GEL",null,null,null,null,null,null,null,null,null,null,null,null,null,null,null,null,null,null,null,null,null,null,null,null,null,"2017","National Health Account",null,null,"National Health Account","National Health Account","National Health Account","2017","2017","National Health Account","National Health Account",null,"2017","2017",null,"2017","National Health Account","National Health Account","2017","2017","National Health Account","National Health Account",null,"2017","2017",null,"National Health Account","National Health Account",null,null,"Semi-Annual Cash Forecast_8AA"]
[null,null,null,null,null,null,null,null,null,null,null,null,null,null,null,null,null,null,null,null,null,null,null,null,null,null,"GHS",null,null,null,null,null,null,null,null,null,null,null,null,null,null,null,null,null,null,null,null,null,null,null,null,null,"2018","Administrative records",null,null,"Administrative records","Administrative records","Administrative records","2018","2018","Administrative records","Administrative records",null,"2018","2018",null,"2018","Administrative records","Administrative records","2018","2018","Administrative records","Administrative records",null,"2018","2018",null,"Administrative records","Administrative records",null,null,"Request and Recommendation_8B"]
[null,null,null,null,null,null,null,null,null,null,null,null,null,null,null,null,null,null,null,null,null,null,null,null,null,null,"GNF",null,null,null,null,null,null,null,null,null,null,null,null,null,null,null,null,null,null,null,null,null,null,null,null,null,"2019","R&R TB system, quarterly reports",null,null,"R&R TB system, quarterly reports","R&R TB system, quarterly reports","R&R TB system, quarterly reports","2019","2019","R&R TB system, quarterly reports","R&R TB system, quarterly reports",null,"2019","2019",null,"2019","R&R TB system, quarterly reports","R&R TB system, quarterly reports","2019","2019","R&R TB system, quarterly reports","R&R TB system, quarterly reports",null,"2019","2019",null,"R&R TB system, quarterly reports","R&R TB system, quarterly reports",null,null,"PR Authorization_9A"]
[null,null,null,null,null,null,null,null,null,null,null,null,null,null,null,null,null,null,null,null,null,null,null,null,null,null,"GTQ",null,null,null,null,null,null,null,null,null,null,null,null,null,null,null,null,null,null,null,null,null,null,null,null,null,"2020","R&R TB system, yearly management report ",null,null,"R&R TB system, yearly management report ","R&R TB system, yearly management report ","R&R TB system, yearly management report ","2020","2020","R&R TB system, yearly management report ","R&R TB system, yearly management report ",null,"2020","2020",null,"2020","R&R TB system, yearly management report ","R&R TB system, yearly management report ","2020","2020","R&R TB system, yearly management report ","R&R TB system, yearly management report ",null,"2020","2020",null,"R&R TB system, yearly management report ","R&R TB system, yearly management report ",null,null,"LFA Authorization_9B"]
[null,null,null,null,null,null,null,null,null,null,null,null,null,null,null,null,null,null,null,null,null,null,null,null,null,null,"IDR",null,null,null,null,null,null,null,null,null,null,null,null,null,null,null,null,null,null,null,null,null,null,null,null,null,"2021","TB prevalence survey",null,null,"TB prevalence survey","TB prevalence survey","TB prevalence survey","2021","2021","TB prevalence survey","TB prevalence survey",null,"2021","2021",null,"2021","TB prevalence survey","TB prevalence survey","2021","2021","TB prevalence survey","TB prevalence survey",null,"2021","2021",null,"TB prevalence survey","TB prevalence survey",null,null,"Quarterly Cash Info_QFR1"]
[null,null,null,null,null,null,null,null,null,null,null,null,null,null,null,null,null,null,null,null,null,null,null,null,null,null,"ILS",null,null,null,null,null,null,null,null,null,null,null,null,null,null,null,null,null,null,null,null,null,null,null,null,null,"2022","TB patient register",null,null,"TB patient register","TB patient register","TB patient register","2022","2022","TB patient register","TB patient register",null,"2022","2022",null,"2022","TB patient register","TB patient register","2022","2022","TB patient register","TB patient register",null,"2022","2022",null,"TB patient register","TB patient register",null,null,"Tax Reporting_QFR2"]
[null,null,null,null,null,null,null,null,null,null,null,null,null,null,null,null,null,null,null,null,null,null,null,null,null,null,"INR",null,null,null,null,null,null,null,null,null,null,null,null,null,null,null,null,null,null,null,null,null,null,null,null,null,"2023","TB laboratory register",null,null,"TB laboratory register","TB laboratory register","TB laboratory register","2023","2023","TB laboratory register","TB laboratory register",null,"2023","2023",null,"2023","TB laboratory register","TB laboratory register","2023","2023","TB laboratory register","TB laboratory register",null,"2023","2023",null,"TB laboratory register","TB laboratory register",null,null,"Financial Triggers_10"]
[null,null,null,null,null,null,null,null,null,null,null,null,null,null,null,null,null,null,null,null,null,null,null,null,null,null,"JMD",null,null,null,null,null,null,null,null,null,null,null,null,null,null,null,null,null,null,null,null,null,null,null,null,null,"2024","TB treatment card",null,null,"TB treatment card","TB treatment card","TB treatment card","2024","2024","TB treatment card","TB treatment card",null,"2024","2024",null,"2024","TB treatment card","TB treatment card","2024","2024","TB treatment card","TB treatment card",null,"2024","2024",null,"TB treatment card","TB treatment card",null,null,"Cash Forecast_8A"]
[null,null,null,null,null,null,null,null,null,null,null,null,null,null,null,null,null,null,null,null,null,null,null,null,null,null,"JOD",null,null,null,null,null,null,null,null,null,null,null,null,null,null,null,null,null,null,null,null,null,null,null,null,null,"2025","Specify- Reports, Surveys, Questionnaires etc.",null,null,"Specify- Reports, Surveys, Questionnaires etc.","Specify- Reports, Surveys, Questionnaires etc.","Specify- Reports, Surveys, Questionnaires etc.","2025","2025","Specify- Reports, Surveys, Questionnaires etc.","Specify- Reports, Surveys, Questionnaires etc.",null,"2025","2025",null,"2025","Specify- Reports, Surveys, Questionnaires etc.","Specify- Reports, Surveys, Questionnaires etc.","2025","2025","Specify- Reports, Surveys, Questionnaires etc.","Specify- Reports, Surveys, Questionnaires etc.",null,"2025","2025",null,"Specify- Reports, Surveys, Questionnaires etc.","Specify- Reports, Surveys, Questionnaires etc."]
[null,null,null,null,null,null,null,null,null,null,null,null,null,null,null,null,null,null,null,null,null,null,null,null,null,null,"JPY",null,null,null,null,null,null,null,null,null,null,null,null,null,null,null,null,null,null,null,null,null,null,null,null,null,null,"MIS (Malaria Indicator Survey)",null,null,"MIS (Malaria Indicator Survey)","MIS (Malaria Indicator Survey)","MIS (Malaria Indicator Survey)",null,null,"MIS (Malaria Indicator Survey)","MIS (Malaria Indicator Survey)",null,null,null,null,null,"MIS (Malaria Indicator Survey)","MIS (Malaria Indicator Survey)",null,null,"MIS (Malaria Indicator Survey)","MIS (Malaria Indicator Survey)",null,null,null,null,"MIS (Malaria Indicator Survey)","MIS (Malaria Indicator Survey)"]
[null,null,null,null,null,null,null,null,null,null,null,null,null,null,null,null,null,null,null,null,null,null,null,null,null,null,"KES",null,null,null,null,null,null,null,null,null,null,null,null,null,null,null,null,null,null,null,null,null,null,null,null,null,null,"Situation Analysis",null,null,"Situation Analysis","Situation Analysis","Situation Analysis",null,null,"Situation Analysis","Situation Analysis",null,null,null,null,null,"Situation Analysis","Situation Analysis",null,null,"Situation Analysis","Situation Analysis",null,null,null,null,"Situation Analysis","Situation Analysis"]
[null,null,null,null,null,null,null,null,null,null,null,null,null,null,null,null,null,null,null,null,null,null,null,null,null,null,"KZT",null,null,null,null,null,null,null,null,null,null,null,null,null,null,null,null,null,null,null,null,null,null,null,null,null,null,"Key informant survey",null,null,"Key informant survey","Key informant survey","Key informant survey",null,null,"Key informant survey","Key informant survey",null,null,null,null,null,"Key informant survey","Key informant survey",null,null,"Key informant survey","Key informant survey",null,null,null,null,"Key informant survey","Key informant survey"]
[null,null,null,null,null,null,null,null,null,null,null,null,null,null,null,null,null,null,null,null,null,null,null,null,null,null,"MAD",null,null,null,null,null,null,null,null,null,null,null,null,null,null,null,null,null,null,null,null,null,null,null,null,null,null,"Surveillance systems",null,null,"Surveillance systems","Surveillance systems","Surveillance systems",null,null,"Surveillance systems","Surveillance systems",null,null,null,null,null,"Surveillance systems","Surveillance systems",null,null,"Surveillance systems","Surveillance systems",null,null,null,null,"Surveillance systems","Surveillance systems"]
[null,null,null,null,null,null,null,null,null,null,null,null,null,null,null,null,null,null,null,null,null,null,null,null,null,null,"MGA",null,null,null,null,null,null,null,null,null,null,null,null,null,null,null,null,null,null,null,null,null,null,null,null,null,null,"Modelled",null,null,"Modelled","Modelled","Modelled",null,null,"Modelled","Modelled",null,null,null,null,null,"Modelled","Modelled",null,null,"Modelled","Modelled",null,null,null,null,"Modelled","Modelled"]
[null,null,null,null,null,null,null,null,null,null,null,null,null,null,null,null,null,null,null,null,null,null,null,null,null,null,"MKD",null,null,null,null,null,null,null,null,null,null,null,null,null,null,null,null,null,null,null,null,null,null,null,null,null,null,"Other survey, specify",null,null,"Other survey, specify","Other survey, specify","Other survey, specify",null,null,"Other survey, specify","Other survey, specify",null,null,null,null,null,"Other survey, specify","Other survey, specify",null,null,"Other survey, specify","Other survey, specify",null,null,null,null,"Other survey, specify","Other survey, specify"]
[null,null,null,null,null,null,null,null,null,null,null,null,null,null,null,null,null,null,null,null,null,null,null,null,null,null,"MUR",null,null,null,null,null,null,null,null,null,null,null,null,null,null,null,null,null,null,null,null,null,null,null,null,null,null,"IBBS",null,null,"IBBS","IBBS","IBBS",null,null,"IBBS","IBBS",null,null,null,null,null,"IBBS","IBBS",null,null,"IBBS","IBBS",null,null,null,null,"IBBS","IBBS"]
[null,null,null,null,null,null,null,null,null,null,null,null,null,null,null,null,null,null,null,null,null,null,null,null,null,null,"NAD"]
[null,null,null,null,null,null,null,null,null,null,null,null,null,null,null,null,null,null,null,null,null,null,null,null,null,null,"NGN"]
[null,null,null,null,null,null,null,null,null,null,null,null,null,null,null,null,null,null,null,null,null,null,null,null,null,null,"NZD"]
[null,null,null,null,null,null,null,null,null,null,null,null,null,null,null,null,null,null,null,null,null,null,null,null,null,null,"PGK"]
[null,null,null,null,null,null,null,null,null,null,null,null,null,null,null,null,null,null,null,null,null,null,null,null,null,null,"PHP"]
[null,null,null,null,null,null,null,null,null,null,null,null,null,null,null,null,null,null,null,null,null,null,null,null,null,null,"PYG"]
[null,null,null,null,null,null,null,null,null,null,null,null,null,null,null,null,null,null,null,null,null,null,null,null,null,null,"RSD"]
[null,null,null,null,null,null,null,null,null,null,null,null,null,null,null,null,null,null,null,null,null,null,null,null,null,null,"RUB"]
[null,null,null,null,null,null,null,null,null,null,null,null,null,null,null,null,null,null,null,null,null,null,null,null,null,null,"SLL"]
[null,null,null,null,null,null,null,null,null,null,null,null,null,null,null,null,null,null,null,null,null,null,null,null,null,null,"SRD"]
[null,null,null,null,null,null,null,null,null,null,null,null,null,null,null,null,null,null,null,null,null,null,null,null,null,null,"SZL"]
[null,null,null,null,null,null,null,null,null,null,null,null,null,null,null,null,null,null,null,null,null,null,null,null,null,null,"THB"]
[null,null,null,null,null,null,null,null,null,null,null,null,null,null,null,null,null,null,null,null,null,null,null,null,null,null,"TND"]
[null,null,null,null,null,null,null,null,null,null,null,null,null,null,null,null,null,null,null,null,null,null,null,null,null,null,"TZS"]
[null,null,null,null,null,null,null,null,null,null,null,null,null,null,null,null,null,null,null,null,null,null,null,null,null,null,"UAH"]
[null,null,null,null,null,null,null,null,null,null,null,null,null,null,null,null,null,null,null,null,null,null,null,null,null,null,"XAF"]
[null,null,null,null,null,null,null,null,null,null,null,null,null,null,null,null,null,null,null,null,null,null,null,null,null,null,"XOF"]
[null,null,null,null,null,null,null,null,null,null,null,null,null,null,null,null,null,null,null,null,null,null,null,null,null,null,"YER"]
[null,null,null,null,null,null,null,null,null,null,null,null,null,null,null,null,null,null,null,null,null,null,null,null,null,null,"ZAR"]
[null,null,null,null,null,null,null,null,null,null,null,null,null,null,null,null,null,null,null,null,null,null,null,null,null,null,"CAD"]
[null,null,null,null,null,null,null,null,null,null,null,null,null,null,null,null,null,null,null,null,null,null,null,null,null,null,"SEK"]
[null,null,null,null,null,null,null,null,null,null,null,null,null,null,null,null,null,null,null,null,null,null,null,null,null,null,"NOK"]
[null,null,null,null,null,null,null,null,null,null,null,null,null,null,null,null,null,null,null,null,null,null,null,null,null,null,"DKK"]
[null,null,null,null,null,null,null,null,null,null,null,null,null,null,null,null,null,null,null,null,null,null,null,null,null,null,"ISK"]
[null,null,null,null,null,null,null,null,null,null,null,null,null,null,null,null,null,null,null,null,null,null,null,null,null,null,"EGP"]
[null,null,null,null,null,null,null,null,null,null,null,null,null,null,null,null,null,null,null,null,null,null,null,null,null,null,"AED"]
[null,null,null,null,null,null,null,null,null,null,null,null,null,null,null,null,null,null,null,null,null,null,null,null,null,null,"ALL"]
[null,null,null,null,null,null,null,null,null,null,null,null,null,null,null,null,null,null,null,null,null,null,null,null,null,null,"AOA"]
[null,null,null,null,null,null,null,null,null,null,null,null,null,null,null,null,null,null,null,null,null,null,null,null,null,null,"ARS"]
[null,null,null,null,null,null,null,null,null,null,null,null,null,null,null,null,null,null,null,null,null,null,null,null,null,null,"AWG"]
[null,null,null,null,null,null,null,null,null,null,null,null,null,null,null,null,null,null,null,null,null,null,null,null,null,null,"AZN"]
[null,null,null,null,null,null,null,null,null,null,null,null,null,null,null,null,null,null,null,null,null,null,null,null,null,null,"BBD"]
[null,null,null,null,null,null,null,null,null,null,null,null,null,null,null,null,null,null,null,null,null,null,null,null,null,null,"BHD"]
[null,null,null,null,null,null,null,null,null,null,null,null,null,null,null,null,null,null,null,null,null,null,null,null,null,null,"BIF"]
[null,null,null,null,null,null,null,null,null,null,null,null,null,null,null,null,null,null,null,null,null,null,null,null,null,null,"BND"]
[null,null,null,null,null,null,null,null,null,null,null,null,null,null,null,null,null,null,null,null,null,null,null,null,null,null,"BOB"]
[null,null,null,null,null,null,null,null,null,null,null,null,null,null,null,null,null,null,null,null,null,null,null,null,null,null,"BRL"]
[null,null,null,null,null,null,null,null,null,null,null,null,null,null,null,null,null,null,null,null,null,null,null,null,null,null,"BSD"]
[null,null,null,null,null,null,null,null,null,null,null,null,null,null,null,null,null,null,null,null,null,null,null,null,null,null,"BWP"]
[null,null,null,null,null,null,null,null,null,null,null,null,null,null,null,null,null,null,null,null,null,null,null,null,null,null,"BZD"]
[null,null,null,null,null,null,null,null,null,null,null,null,null,null,null,null,null,null,null,null,null,null,null,null,null,null,"CDF"]
[null,null,null,null,null,null,null,null,null,null,null,null,null,null,null,null,null,null,null,null,null,null,null,null,null,null,"CLP"]
[null,null,null,null,null,null,null,null,null,null,null,null,null,null,null,null,null,null,null,null,null,null,null,null,null,null,"CRC"]
[null,null,null,null,null,null,null,null,null,null,null,null,null,null,null,null,null,null,null,null,null,null,null,null,null,null,"CUC"]
[null,null,null,null,null,null,null,null,null,null,null,null,null,null,null,null,null,null,null,null,null,null,null,null,null,null,"CVE"]
[null,null,null,null,null,null,null,null,null,null,null,null,null,null,null,null,null,null,null,null,null,null,null,null,null,null,"CZK"]
[null,null,null,null,null,null,null,null,null,null,null,null,null,null,null,null,null,null,null,null,null,null,null,null,null,null,"DJF"]
[null,null,null,null,null,null,null,null,null,null,null,null,null,null,null,null,null,null,null,null,null,null,null,null,null,null,"DZD"]
[null,null,null,null,null,null,null,null,null,null,null,null,null,null,null,null,null,null,null,null,null,null,null,null,null,null,"EEK"]
[null,null,null,null,null,null,null,null,null,null,null,null,null,null,null,null,null,null,null,null,null,null,null,null,null,null,"ERN"]
[null,null,null,null,null,null,null,null,null,null,null,null,null,null,null,null,null,null,null,null,null,null,null,null,null,null,"ETB"]
[null,null,null,null,null,null,null,null,null,null,null,null,null,null,null,null,null,null,null,null,null,null,null,null,null,null,"FJD"]
[null,null,null,null,null,null,null,null,null,null,null,null,null,null,null,null,null,null,null,null,null,null,null,null,null,null,"FKP"]
[null,null,null,null,null,null,null,null,null,null,null,null,null,null,null,null,null,null,null,null,null,null,null,null,null,null,"GIP"]
[null,null,null,null,null,null,null,null,null,null,null,null,null,null,null,null,null,null,null,null,null,null,null,null,null,null,"GMD"]
[null,null,null,null,null,null,null,null,null,null,null,null,null,null,null,null,null,null,null,null,null,null,null,null,null,null,"GYD"]
[null,null,null,null,null,null,null,null,null,null,null,null,null,null,null,null,null,null,null,null,null,null,null,null,null,null,"HKD"]
[null,null,null,null,null,null,null,null,null,null,null,null,null,null,null,null,null,null,null,null,null,null,null,null,null,null,"HNL"]
[null,null,null,null,null,null,null,null,null,null,null,null,null,null,null,null,null,null,null,null,null,null,null,null,null,null,"HRK"]
[null,null,null,null,null,null,null,null,null,null,null,null,null,null,null,null,null,null,null,null,null,null,null,null,null,null,"HTG"]
[null,null,null,null,null,null,null,null,null,null,null,null,null,null,null,null,null,null,null,null,null,null,null,null,null,null,"HUF"]
[null,null,null,null,null,null,null,null,null,null,null,null,null,null,null,null,null,null,null,null,null,null,null,null,null,null,"IQD"]
[null,null,null,null,null,null,null,null,null,null,null,null,null,null,null,null,null,null,null,null,null,null,null,null,null,null,"IRR"]
[null,null,null,null,null,null,null,null,null,null,null,null,null,null,null,null,null,null,null,null,null,null,null,null,null,null,"KGS"]
[null,null,null,null,null,null,null,null,null,null,null,null,null,null,null,null,null,null,null,null,null,null,null,null,null,null,"KHR"]
[null,null,null,null,null,null,null,null,null,null,null,null,null,null,null,null,null,null,null,null,null,null,null,null,null,null,"KMF"]
[null,null,null,null,null,null,null,null,null,null,null,null,null,null,null,null,null,null,null,null,null,null,null,null,null,null,"KPW"]
[null,null,null,null,null,null,null,null,null,null,null,null,null,null,null,null,null,null,null,null,null,null,null,null,null,null,"KRW"]
[null,null,null,null,null,null,null,null,null,null,null,null,null,null,null,null,null,null,null,null,null,null,null,null,null,null,"KWD"]
[null,null,null,null,null,null,null,null,null,null,null,null,null,null,null,null,null,null,null,null,null,null,null,null,null,null,"KYD"]
[null,null,null,null,null,null,null,null,null,null,null,null,null,null,null,null,null,null,null,null,null,null,null,null,null,null,"LAK"]
[null,null,null,null,null,null,null,null,null,null,null,null,null,null,null,null,null,null,null,null,null,null,null,null,null,null,"LBP"]
[null,null,null,null,null,null,null,null,null,null,null,null,null,null,null,null,null,null,null,null,null,null,null,null,null,null,"LKR"]
[null,null,null,null,null,null,null,null,null,null,null,null,null,null,null,null,null,null,null,null,null,null,null,null,null,null,"LRD"]
[null,null,null,null,null,null,null,null,null,null,null,null,null,null,null,null,null,null,null,null,null,null,null,null,null,null,"LSL"]
[null,null,null,null,null,null,null,null,null,null,null,null,null,null,null,null,null,null,null,null,null,null,null,null,null,null,"LTL"]
[null,null,null,null,null,null,null,null,null,null,null,null,null,null,null,null,null,null,null,null,null,null,null,null,null,null,"LVL"]
[null,null,null,null,null,null,null,null,null,null,null,null,null,null,null,null,null,null,null,null,null,null,null,null,null,null,"LYD"]
[null,null,null,null,null,null,null,null,null,null,null,null,null,null,null,null,null,null,null,null,null,null,null,null,null,null,"MDL"]
[null,null,null,null,null,null,null,null,null,null,null,null,null,null,null,null,null,null,null,null,null,null,null,null,null,null,"MMK"]
[null,null,null,null,null,null,null,null,null,null,null,null,null,null,null,null,null,null,null,null,null,null,null,null,null,null,"MNT"]
[null,null,null,null,null,null,null,null,null,null,null,null,null,null,null,null,null,null,null,null,null,null,null,null,null,null,"MOP"]
[null,null,null,null,null,null,null,null,null,null,null,null,null,null,null,null,null,null,null,null,null,null,null,null,null,null,"MRO"]
[null,null,null,null,null,null,null,null,null,null,null,null,null,null,null,null,null,null,null,null,null,null,null,null,null,null,"MVR"]
[null,null,null,null,null,null,null,null,null,null,null,null,null,null,null,null,null,null,null,null,null,null,null,null,null,null,"MWK"]
[null,null,null,null,null,null,null,null,null,null,null,null,null,null,null,null,null,null,null,null,null,null,null,null,null,null,"MXN"]
[null,null,null,null,null,null,null,null,null,null,null,null,null,null,null,null,null,null,null,null,null,null,null,null,null,null,"MYR"]
[null,null,null,null,null,null,null,null,null,null,null,null,null,null,null,null,null,null,null,null,null,null,null,null,null,null,"NIO"]
[null,null,null,null,null,null,null,null,null,null,null,null,null,null,null,null,null,null,null,null,null,null,null,null,null,null,"NPR"]
[null,null,null,null,null,null,null,null,null,null,null,null,null,null,null,null,null,null,null,null,null,null,null,null,null,null,"OMR"]
[null,null,null,null,null,null,null,null,null,null,null,null,null,null,null,null,null,null,null,null,null,null,null,null,null,null,"PAB"]
[null,null,null,null,null,null,null,null,null,null,null,null,null,null,null,null,null,null,null,null,null,null,null,null,null,null,"PEN"]
[null,null,null,null,null,null,null,null,null,null,null,null,null,null,null,null,null,null,null,null,null,null,null,null,null,null,"PKR"]
[null,null,null,null,null,null,null,null,null,null,null,null,null,null,null,null,null,null,null,null,null,null,null,null,null,null,"PLN"]
[null,null,null,null,null,null,null,null,null,null,null,null,null,null,null,null,null,null,null,null,null,null,null,null,null,null,"QAR"]
[null,null,null,null,null,null,null,null,null,null,null,null,null,null,null,null,null,null,null,null,null,null,null,null,null,null,"RON"]
[null,null,null,null,null,null,null,null,null,null,null,null,null,null,null,null,null,null,null,null,null,null,null,null,null,null,"RWF"]
[null,null,null,null,null,null,null,null,null,null,null,null,null,null,null,null,null,null,null,null,null,null,null,null,null,null,"SAR"]
[null,null,null,null,null,null,null,null,null,null,null,null,null,null,null,null,null,null,null,null,null,null,null,null,null,null,"SBD"]
[null,null,null,null,null,null,null,null,null,null,null,null,null,null,null,null,null,null,null,null,null,null,null,null,null,null,"SCR"]
[null,null,null,null,null,null,null,null,null,null,null,null,null,null,null,null,null,null,null,null,null,null,null,null,null,null,"SDG"]
[null,null,null,null,null,null,null,null,null,null,null,null,null,null,null,null,null,null,null,null,null,null,null,null,null,null,"SGD"]
[null,null,null,null,null,null,null,null,null,null,null,null,null,null,null,null,null,null,null,null,null,null,null,null,null,null,"SHP"]
[null,null,null,null,null,null,null,null,null,null,null,null,null,null,null,null,null,null,null,null,null,null,null,null,null,null,"SKK"]
[null,null,null,null,null,null,null,null,null,null,null,null,null,null,null,null,null,null,null,null,null,null,null,null,null,null,"SOS"]
[null,null,null,null,null,null,null,null,null,null,null,null,null,null,null,null,null,null,null,null,null,null,null,null,null,null,"STD"]
[null,null,null,null,null,null,null,null,null,null,null,null,null,null,null,null,null,null,null,null,null,null,null,null,null,null,"SYP"]
[null,null,null,null,null,null,null,null,null,null,null,null,null,null,null,null,null,null,null,null,null,null,null,null,null,null,"TJS"]
[null,null,null,null,null,null,null,null,null,null,null,null,null,null,null,null,null,null,null,null,null,null,null,null,null,null,"TOP"]
[null,null,null,null,null,null,null,null,null,null,null,null,null,null,null,null,null,null,null,null,null,null,null,null,null,null,"TRY"]
[null,null,null,null,null,null,null,null,null,null,null,null,null,null,null,null,null,null,null,null,null,null,null,null,null,null,"TTD"]
[null,null,null,null,null,null,null,null,null,null,null,null,null,null,null,null,null,null,null,null,null,null,null,null,null,null,"TWD"]
[null,null,null,null,null,null,null,null,null,null,null,null,null,null,null,null,null,null,null,null,null,null,null,null,null,null,"UGX"]
[null,null,null,null,null,null,null,null,null,null,null,null,null,null,null,null,null,null,null,null,null,null,null,null,null,null,"UYU"]
[null,null,null,null,null,null,null,null,null,null,null,null,null,null,null,null,null,null,null,null,null,null,null,null,null,null,"UZS"]
[null,null,null,null,null,null,null,null,null,null,null,null,null,null,null,null,null,null,null,null,null,null,null,null,null,null,"VND"]
[null,null,null,null,null,null,null,null,null,null,null,null,null,null,null,null,null,null,null,null,null,null,null,null,null,null,"VUV"]
[null,null,null,null,null,null,null,null,null,null,null,null,null,null,null,null,null,null,null,null,null,null,null,null,null,null,"WST"]
[null,null,null,null,null,null,null,null,null,null,null,null,null,null,null,null,null,null,null,null,null,null,null,null,null,null,"XCD"]
[null,null,null,null,null,null,null,null,null,null,null,null,null,null,null,null,null,null,null,null,null,null,null,null,null,null,"XPF"]
[null,null,null,null,null,null,null,null,null,null,null,null,null,null,null,null,null,null,null,null,null,null,null,null,null,null,"ZWD"]
[null,null,null,null,null,null,null,null,null,null,null,null,null,null,null,null,null,null,null,null,null,null,null,null,null,null,"MZN"]
[null,null,null,null,null,null,null,null,null,null,null,null,null,null,null,null,null,null,null,null,null,null,null,null,null,null,"TMT"]
[null,null,null,null,null,null,null,null,null,null,null,null,null,null,null,null,null,null,null,null,null,null,null,null,null,null,"VEF"]
[null,null,null,null,null,null,null,null,null,null,null,null,null,null,null,null,null,null,null,null,null,null,null,null,null,null,"ZMW"]
[null,null,null,null,null,null,null,null,null,null,null,null,null,null,null,null,null,null,null,null,null,null,null,null,null,null,"SSP"]